{"text_format":"1","workbook":"xlsx","n_sheets":35,"sheets":["ReadMe","Q-1","Q-2","Q-3","Q-4","Q-5","Q-6","Q-7","2011 Survey responses","Sec_1","Sec_2","Sec_3","Sec_4","Sec_5","Sec_6","Sec_7","Sec_8","Sec_9","Sec_10","Unused_figs","Level2","Overall_progress","Graphics_data","Question_grouping","2007 Survey responses","Responses","2007_comparison","2008_comparison_HID","Quality Control","Changelog","Indicator_data","XLSTAT_STATPLANET_prep","SCA1_FIG_3.4","SCA_FIG_5.5","SCA_FIG_4.7"],"not_rendered":{"charts":440,"images":0,"macros":1,"external_links":1,"defined_names":22,"comments":8,"pivot_tables":0},"unopened":[],"bounds":{"document_bytes":16777216,"sheet_cells":100000,"rows_first":2000,"rows_last":500,"rows_between":2000,"halvings":0,"cell_chars":16384,"cell_head_chars":4096},"cells_cut":0,"cells_raw":0,"read":"whole","date_system":"1904"}

{"sheet":"ReadMe","index":0,"n_rows":28,"n_cols":2,"rows_kept":28,"cut":false,"hidden":false,"merged":[]}
[]
["This database contains graphical representations of all questions in the 2012 survey on the status of integrated approaches to water resources management, conducted on behalf of UN-Water in 2011, and published in 2012. "]
[]
["The report based on the results of the survey can be found here: http://www.unwater.org/rio2012/report/index.html , \nor here: http://www.unepdhi.org/Publications.aspx"]
[]
["Green tabs show the responses in the order of the survey."]
[]
["Orange tabs show the responses in the order they appear in the report. "]
[]
[]
["Wide use of the figures is encouraged. Please reference figures as follows: "]
["UN-Water 2012. Status report on the application of integrated approaches to water resources management. "]
[]
["The answers to each question from the questionnaire have been aggregated in two ways: "]
["1. By Human Development Index (HDI) group, as defined by UNDP in 2011. This gives 4 categories: Low, Medium, High and Very High development categories. The global average is also given as the fifth category."]
["2. By major region as defined by UNCSD"]
[]
["Key for regional abbreviations: "]
[]
["AFR","Africa"]
["ASP","Asia and Pacific"]
["EES","Eastern European States"]
["LAC","Latin America and the Caribbean"]
["WEO","Western Europe and Others"]
[]
[]
["For further information, please refer to the report mentioned above, or contact Paul Glennie (pgl@dhigroup.com), Gareth James Lloyd (gjl@dhigroup.com) or Peter Koefoed Bjørnsen (pkb@dhigroup.com)"]
["We regret any errors in the database. Please report any errors to Paul Glennie pgl@dhigroup.com"]

{"sheet":"Q-1","index":1,"n_rows":321,"n_cols":11,"rows_kept":321,"cut":false,"hidden":false,"merged":[[0,0,0,13]]}
["The following data is based on surveys collected during 2011 on behalf of UN-Water and published in the following report and should be cited as follows: \nUN-Water 2012. Status report on the application of integrated approaches to water resources management. The survey and report were developed by a partnership of the UNEP-DHI Centre for Water and Environment, UNEP, UNDP, SIWI, GWP, and individual consultants. For further information, please contact Paul Glennie (pgl@dhigroup.com) or Peter Koefoed Bjørnsen (pkb@dhigroup.com)"]
[]
["1. Policy, Strategic Planning and Legal Framework"]
[null,"1.1 Enabling environment for the development, management and use of water resources"]
[null,null,"1.1.1 Main national/federal instruments for water resources management"]
[null,null,null,"1.1.1.a National/Federal water resources policy"]
[]
[null,null,null,null,null,null,null,null,null,null,"HDI Grouping"]
[]
[]
[]
[]
[]
[]
[null,null,null,null,null,null,null,null,null,null,"Regional Grouping"]
[]
[]
[]
[]
[]
[]
[null,null,null,"1.1.1.b Sub-national/provincial/state water ressource policy"]
[]
[null,null,null,null,null,null,null,null,null,null,"HDI Grouping"]
[]
[]
[]
[]
[]
[]
[null,null,null,null,null,null,null,null,null,null,"Regional Grouping"]
[]
[]
[]
[]
[]
[]
[null,null,null,"1.1.1.c National/federal water laws"]
[]
[null,null,null,null,null,null,null,null,null,null,"HDI Grouping"]
[]
[]
[]
[]
[]
[]
[null,null,null,null,null,null,null,null,null,null,"Regional Grouping"]
[]
[]
[]
[]
[]
[]
[null,null,null,"1.1.1.d Sub-natonal/provincial/state water law"]
[]
[null,null,null,null,null,null,null,null,null,null,"HDI Grouping"]
[]
[]
[]
[]
[]
[]
[null,null,null,null,null,null,null,null,null,null,"Regional Grouping"]
[]
[]
[]
[]
[]
[]
[null,null,null,"1.1.1.e National or federal integrated water resources management plan/s or equivalent strategic plan document/s"]
[]
[null,null,null,null,null,null,null,null,null,null,"HDI Grouping"]
[]
[]
[]
[]
[]
[]
[null,null,null,null,null,null,null,null,null,null,"Regional Grouping"]
[]
[]
[]
[]
[]
[]
[null,null,null,"1.1.1.f Seperate national or federal water efficiency plan/s"]
[]
[null,null,null,null,null,null,null,null,null,null,"HDI Grouping"]
[]
[]
[]
[]
[]
[]
[null,null,null,null,null,null,null,null,null,null,"Regional Grouping"]
[]
[]
[]
[]
[]
[]
[null,null,null,"1.1.1.g Water efficiency in integrated water resources management plan or equivalent"]
[]
[null,null,null,null,null,null,null,null,null,null,"HDI Grouping"]
[]
[]
[]
[]
[]
[]
[null,null,null,null,null,null,null,null,null,null,"Regional Grouping"]
[]
[]
[]
[]
[]
[]
[null,null,"1.1.2 Other national/federal instruments that may incorporate water resources management"]
[null,null,null,"1.1.2.a Integrated national policy/strategy/plan for land and water resources management"]
[]
[null,null,null,null,null,null,null,null,null,null,"HDI Grouping"]
[]
[]
[]
[]
[]
[]
[null,null,null,null,null,null,null,null,null,null,"Regional Grouping"]
[]
[]
[]
[]
[]
[]
[null,null,null,"1.1.2.b Poverty Reduction Strategy (PRS) with water resources management component"]
[]
[null,null,null,null,null,null,null,null,null,null,"HDI Grouping"]
[]
[]
[]
[]
[]
[]
[null,null,null,null,null,null,null,null,null,null,"Regional Grouping"]
[]
[]
[]
[]
[]
[]
[null,null,null,"1.1.2.c National Strategy for Sustainable Development"]
[]
[null,null,null,null,null,null,null,null,null,null,"HDI Grouping"]
[]
[]
[]
[]
[]
[]
[null,null,null,null,null,null,null,null,null,null,"Regional Grouping"]
[]
[]
[]
[]
[]
[]
[null,null,null,"1.1.2.d National Development Plan with water resources management component"]
[]
[null,null,null,null,null,null,null,null,null,null,"HDI Grouping"]
[]
[]
[]
[]
[]
[]
[null,null,null,null,null,null,null,null,null,null,"Regional Grouping"]
[]
[]
[]
[]
[]
[]
[null,null,null,"1.1.2.e National Environmental Action Plan water resources management component"]
[]
[null,null,null,null,null,null,null,null,null,null,"HDI Grouping"]
[]
[]
[]
[]
[]
[]
[null,null,null,null,null,null,null,null,null,null,"Regional Grouping"]
[]
[]
[]
[]
[]
[]
[null,null,null,"1.1.2.f National climate change adaptation policy/strategy/plan with water resources management component"]
[]
[null,null,null,null,null,null,null,null,null,null,"HDI Grouping"]
[]
[]
[]
[]
[]
[]
[null,null,null,null,null,null,null,null,null,null,"Regional Grouping"]
[]
[]
[]
[]
[]
[]
[null,null,null,"1.1.2.g National Agricultural Plan with water resources management component"]
[]
[null,null,null,null,null,null,null,null,null,null,"HDI Grouing"]
[]
[]
[]
[]
[]
[]
[null,null,null,null,null,null,null,null,null,null,"Regional Grouping"]
[]
[]
[]
[]
[]
[]
[null,null,null,"1.1.2.h National energy policy/strategy/plan with water resources management component"]
[]
[null,null,null,null,null,null,null,null,null,null,"HDI Grouping"]
[]
[]
[]
[]
[]
[]
[null,null,null,null,null,null,null,null,null,null,"Regional Grouping"]
[]
[]
[]
[]
[]
[]
[null,null,null,"1.1.2.i National desertification policy/strategy/plan with water resources management component"]
[]
[null,null,null,null,null,null,null,null,null,null,"HDI Grouping"]
[]
[]
[]
[]
[]
[]
[null,null,null,null,null,null,null,null,null,null,"Regional Grouping"]
[]
[]
[]
[]
[]
[]
[null,null,null,"1.1.2.j National wetland policy/strategy/plan with water resources management component"]
[]
[null,null,null,null,null,null,null,null,null,null,"HDI Grouping"]
[]
[]
[]
[]
[]
[]
[null,null,null,null,null,null,null,null,null,null,"Regional Grouping"]
[]
[]
[]
[]
[]
[]
[null,null,null,"1.1.2.k National biodiversity policy/strategy/plan with water resources management component"]
[]
[null,null,null,null,null,null,null,null,null,null,"HDI Grouping"]
[]
[]
[]
[]
[]
[]
[null,null,null,null,null,null,null,null,null,null,"Regional Grouping"]
[]
[]
[]
[]
[]
[]
[null,null,"1.1.3 International agreements on water resources management to which your country is party"]
[null,null,null,"1.1.3.a Regional/sub-regional water resources management agreements"]
[]
[null,null,null,null,null,null,null,null,null,null,"HDI Grouping"]
[]
[]
[]
[]
[]
[]
[null,null,null,null,null,null,null,null,null,null,"Regional Grouping"]
[]
[]
[]
[]
[]
[]
[null,null,null,"1.1.3.b Transboundary water resources management agreements for specific river basins"]
[]
[null,null,null,null,null,null,null,null,null,null,"HDI Grouping"]
[]
[]
[]
[]
[]
[]
[null,null,null,null,null,null,null,null,null,null,"Regional Grouping"]

{"sheet":"Q-2","index":2,"n_rows":321,"n_cols":11,"rows_kept":321,"cut":false,"hidden":false,"merged":[[0,0,0,13]]}
["The following data is based on surveys collected during 2011 on behalf of UN-Water and published in the following report and should be cited as follows: \nUN-Water 2012. Status report on the application of integrated approaches to water resources management. The survey and report were developed by a partnership of the UNEP-DHI Centre for Water and Environment, UNEP, UNDP, SIWI, GWP, and individual consultants. For further information, please contact Paul Glennie (pgl@dhigroup.com) or Peter Koefoed Bjørnsen (pkb@dhigroup.com)"]
[]
["2. Governance and Institutional Frameworks"]
[null,"2.1 Governance systems for the development, management and use of water resources"]
[null,null,"2.1.1 Institutional Frameworks"]
[null,null,null,"2.1.1.a Mechamnisms (e.g. commisions, councils) for river basin management"]
[]
[null,null,null,null,null,null,null,null,null,null,"HDI Grouping"]
[]
[]
[]
[]
[]
[]
[null,null,null,null,null,null,null,null,null,null,"Regional Grouping"]
[]
[]
[]
[]
[]
[]
[null,null,null,"2.1.1.b Mechanisms for management of groundwater"]
[]
[null,null,null,null,null,null,null,null,null,null,"HDI Grouping"]
[]
[]
[]
[]
[]
[]
[null,null,null,null,null,null,null,null,null,null,"Regional Grouping"]
[]
[]
[]
[]
[]
[]
[null,null,null,"2.1.1.c Mechanisms for management of lakes"]
[]
[null,null,null,null,null,null,null,null,null,null,"HDI Grouping"]
[]
[]
[]
[]
[]
[]
[null,null,null,null,null,null,null,null,null,null,"Regional Grouping"]
[]
[]
[]
[]
[]
[]
[null,null,null,"2.1.1.d Mechanisms for cross-sector management of water resources"]
[]
[null,null,null,null,null,null,null,null,null,null,"HDI Grouping"]
[]
[]
[]
[]
[]
[]
[null,null,null,null,null,null,null,null,null,null,"Regional Grouping"]
[]
[]
[]
[]
[]
[]
[null,null,null,"2.1.1.e Mechanisms for transboundary water resources management"]
[]
[null,null,null,null,null,null,null,null,null,null,"HDI Grouping"]
[]
[]
[]
[]
[]
[]
[null,null,null,null,null,null,null,null,null,null,"Regional Grouping"]
[]
[]
[]
[]
[]
[]
[null,null,null,"2.1.1.f Decentralized structures for water resources management"]
[]
[null,null,null,null,null,null,null,null,null,null,"HDI Grouping"]
[]
[]
[]
[]
[]
[]
[null,null,null,null,null,null,null,null,null,null,"Regional Grouping"]
[]
[]
[]
[]
[]
[]
[null,null,"2.1.2 Stakeholder Participation"]
[null,null,null,"2.1.2.a Stakeholder have access to information on national water resources management and development"]
[]
[null,null,null,null,null,null,null,null,null,null,"HDI Grouping"]
[]
[]
[]
[]
[]
[]
[null,null,null,null,null,null,null,null,null,null,"Regional Grouping"]
[]
[]
[]
[]
[]
[]
[null,null,null,"2.1.2.b Public awareness campaigns on water resources management and development"]
[]
[null,null,null,null,null,null,null,null,null,null,"HDI Grouping"]
[]
[]
[]
[]
[]
[]
[null,null,null,null,null,null,null,null,null,null,"Regional Grouping"]
[]
[]
[]
[]
[]
[]
[null,null,null,"2.1.2.c Involvment of general public, civil society organizations and non-government organizations in water resources management and development at the national level"]
[]
[null,null,null,null,null,null,null,null,null,null,"HDI Grouping"]
[]
[]
[]
[]
[]
[]
[null,null,null,null,null,null,null,null,null,null,"Regional Grouping"]
[]
[]
[]
[]
[]
[]
[null,null,null,"2.1.2.d Involvement of the private sector in water resources management and development at the national level"]
[]
[null,null,null,null,null,null,null,null,null,null,"HDI Grouping"]
[]
[]
[]
[]
[]
[]
[null,null,null,null,null,null,null,null,null,null,"Regional Grouping"]
[]
[]
[]
[]
[]
[]
[null,null,null,"2.1.2.e Involvement of general public, civil society organizations and non-government organizations in water resurces management and development at the basin level"]
[]
[null,null,null,null,null,null,null,null,null,null,"HDI Grouping"]
[]
[]
[]
[]
[]
[]
[null,null,null,null,null,null,null,null,null,null,"Regional Grouping"]
[]
[]
[]
[]
[]
[]
[null,null,null,"2.1.2.f Involvement of the private sector in water resources management and development at the basin level"]
[]
[null,null,null,null,null,null,null,null,null,null,"HDI Grouping"]
[]
[]
[]
[]
[]
[]
[null,null,null,null,null,null,null,null,null,null,"Regional Grouping"]
[]
[]
[]
[]
[]
[]
[null,null,null,"2.1.2.g Gender mainstreaming in water resources management and development"]
[]
[null,null,null,null,null,null,null,null,null,null,"HDI Grouping"]
[]
[]
[]
[]
[]
[]
[null,null,null,null,null,null,null,null,null,null,"Regional Grouping"]
[]
[]
[]
[]
[]
[]
[null,null,"2.1.3 Capacity Building"]
[null,null,null,"2.1.3.a Assessment of capacity needs in water resources management at natonal level"]
[]
[null,null,null,null,null,null,null,null,null,null,"HDI Grouping"]
[]
[]
[]
[]
[]
[]
[null,null,null,null,null,null,null,null,null,null,"Regional Grouping"]
[]
[]
[]
[]
[]
[]
[null,null,null,"2.1.3.b Assessment of capacity needs in water resources management at sub-national level"]
[]
[null,null,null,null,null,null,null,null,null,null,"HDI Grouping"]
[]
[]
[]
[]
[]
[]
[null,null,null,null,null,null,null,null,null,null,"Regional Grouping"]
[]
[]
[]
[]
[]
[]
[null,null,null,"2.1.3.c Programs for capacity development in water resources management institutions/organizations at national level"]
[]
[null,null,null,null,null,null,null,null,null,null,"HDI Grouping"]
[]
[]
[]
[]
[]
[]
[null,null,null,null,null,null,null,null,null,null,"Regional Grouping"]
[]
[]
[]
[]
[]
[]
[null,null,null,"2.1.3.d Programs for capacity development in water resources management institutions/organizations at sub-national levels"]
[]
[null,null,null,null,null,null,null,null,null,null,"HDI Grouping"]
[]
[]
[]
[]
[]
[]
[null,null,null,null,null,null,null,null,null,null,"Regional Grouping"]
[]
[]
[]
[]
[]
[]
[null,null,null,"2.1.3.e Programs for in-service training of staff/professionals in water resources management"]
[]
[null,null,null,null,null,null,null,null,null,null,"HDI Grouping"]
[]
[]
[]
[]
[]
[]
[null,null,null,null,null,null,null,null,null,null,"Regional Grouping"]
[]
[]
[]
[]
[]
[]
[null,null,null,"2.1.3.f Water resources management in the technical/higher education curriculum"]
[]
[null,null,null,null,null,null,null,null,null,null,"HDI Grouping"]
[]
[]
[]
[]
[]
[]
[null,null,null,null,null,null,null,null,null,null,"Regional Grouping"]
[]
[]
[]
[]
[]
[]
[null,null,null,"2.1.3.g Research programs in water resources management"]
[]
[null,null,null,null,null,null,null,null,null,null,"HDI Grouping"]
[]
[]
[]
[]
[]
[]
[null,null,null,null,null,null,null,null,null,null,"Regional Grouping"]

{"sheet":"Q-3","index":3,"n_rows":531,"n_cols":11,"rows_kept":531,"cut":false,"hidden":false,"merged":[[0,0,0,13]]}
["The following data is based on surveys collected during 2011 on behalf of UN-Water and published in the following report and should be cited as follows: \nUN-Water 2012. Status report on the application of integrated approaches to water resources management. The survey and report were developed by a partnership of the UNEP-DHI Centre for Water and Environment, UNEP, UNDP, SIWI, GWP, and individual consultants. For further information, please contact Paul Glennie (pgl@dhigroup.com) or Peter Koefoed Bjørnsen (pkb@dhigroup.com)"]
[]
["3. Management Instrumets"]
[null,"3.1 Management instruments for the development, management and use of water resources"]
[null,null,"3.1.1 Water Resources Development"]
[null,null,null,"3.1.1.a Basin studies for long-term development and management of water resources"]
[]
[null,null,null,null,null,null,null,null,null,null,"HDI Grouping"]
[]
[]
[]
[]
[]
[]
[null,null,null,null,null,null,null,null,null,null,"Regional Grouping"]
[]
[]
[]
[]
[]
[]
[null,null,null,"3.1.1.b Periodical assessment of water resources"]
[]
[null,null,null,null,null,null,null,null,null,null,"HDI Grouping"]
[]
[]
[]
[]
[]
[]
[null,null,null,null,null,null,null,null,null,null,"Regional Grouping"]
[]
[]
[]
[]
[]
[]
[null,null,null,"3.1.1.c Regulatory norms and guidelines for sustainable development of water resources"]
[]
[null,null,null,null,null,null,null,null,null,null,"HDI Grouping"]
[]
[]
[]
[]
[]
[]
[null,null,null,null,null,null,null,null,null,null,"Regional Grouping"]
[]
[]
[]
[]
[]
[]
[null,null,null,"3.1.1.d Programs to value water-related or dependent ecosystem services"]
[]
[null,null,null,null,null,null,null,null,null,null,"HDI Grouping"]
[]
[]
[]
[]
[]
[]
[null,null,null,null,null,null,null,null,null,null,"Regional Grouping"]
[]
[]
[]
[]
[]
[]
[null,null,"3.1.2 Water Resources Management Programs"]
[null,null,null,"3.1.2.a Groundwater management program"]
[]
[null,null,null,null,null,null,null,null,null,null,"HDI Grouping"]
[]
[]
[]
[]
[]
[]
[null,null,null,null,null,null,null,null,null,null,"Regional Grouping"]
[]
[]
[]
[]
[]
[]
[null,null,null,"3.1.2.b Surface water management program"]
[]
[null,null,null,null,null,null,null,null,null,null,"HDI Grouping"]
[]
[]
[]
[]
[]
[]
[null,null,null,null,null,null,null,null,null,null,"Regional Grouping"]
[]
[]
[]
[]
[]
[]
[null,null,null,"3.1.2.c Linked ground and surface water management program"]
[]
[null,null,null,null,null,null,null,null,null,null,"HDI Grouping"]
[]
[]
[]
[]
[]
[]
[null,null,null,null,null,null,null,null,null,null,"Regional Grouping"]
[]
[]
[]
[]
[]
[]
[null,null,null,"3.1.2.d Programs for efficient allocation of water resources among competing uses"]
[]
[null,null,null,null,null,null,null,null,null,null,"HDI Grouping"]
[]
[]
[]
[]
[]
[]
[null,null,null,null,null,null,null,null,null,null,"Regional Grouping"]
[]
[]
[]
[]
[]
[]
[null,null,null,"3.1.2.e Land/natural resources management programs that include water resources management component"]
[]
[null,null,null,null,null,null,null,null,null,null,"HDI Grouping"]
[]
[]
[]
[]
[]
[]
[null,null,null,null,null,null,null,null,null,null,"Regional Grouping"]
[]
[]
[]
[]
[]
[]
[null,null,null,"3.1.2.f Programs for allocating water resources that include environmental considerations"]
[]
[null,null,null,null,null,null,null,null,null,null,"HDI Grouping"]
[]
[]
[]
[]
[]
[]
[null,null,null,null,null,null,null,null,null,null,"Regional Grouping"]
[]
[]
[]
[]
[]
[]
[null,null,null,"3.1.2.g Demand management measures to improve water use efficiency in all sectors"]
[]
[null,null,null,null,null,null,null,null,null,null,"HDI Grouping"]
[]
[]
[]
[]
[]
[]
[null,null,null,null,null,null,null,null,null,null,"Regional Grouping"]
[]
[]
[]
[]
[]
[]
[null,null,null,"3.1.2.h Program for re-use or recycling of water"]
[]
[null,null,null,null,null,null,null,null,null,null,"HDI Grouping"]
[]
[]
[]
[]
[]
[]
[null,null,null,null,null,null,null,null,null,null,"Regional Grouping"]
[]
[]
[]
[]
[]
[]
[null,null,null,"3.1.2.i Programs to evaluate environmental impacts of water projects"]
[]
[null,null,null,null,null,null,null,null,null,null,"HDI Grouping"]
[]
[]
[]
[]
[]
[]
[null,null,null,null,null,null,null,null,null,null,"Regional Grouping"]
[]
[]
[]
[]
[]
[]
[null,null,null,"3.1.2.j Programs to address water-related disasters (e.g. floods and droughts)"]
[]
[null,null,null,null,null,null,null,null,null,null,"HDI Grouping"]
[]
[]
[]
[]
[]
[]
[null,null,null,null,null,null,null,null,null,null,"Regional Grouping"]
[]
[]
[]
[]
[]
[]
[null,null,null,"3.1.2.k Programs to address climate change adaptation through water resources management"]
[]
[null,null,null,null,null,null,null,null,null,null,"HDI Grouping"]
[]
[]
[]
[]
[]
[]
[null,null,null,null,null,null,null,null,null,null,"Regional Grouping"]
[]
[]
[]
[]
[]
[]
[null,null,null,"3.1.2.l Cooperatove programs managing transboundary water resources"]
[]
[null,null,null,null,null,null,null,null,null,null,"HDI Grouping"]
[]
[]
[]
[]
[]
[]
[null,null,null,null,null,null,null,null,null,null,"Regional Grouping"]
[]
[]
[]
[]
[]
[]
[null,null,null,"3.1.2.m Programs to reverse environmental/ecosystem degradation"]
[]
[null,null,null,null,null,null,null,null,null,null,"HDI Grouping"]
[]
[]
[]
[]
[]
[]
[null,null,null,null,null,null,null,null,null,null,"Regional Grouping"]
[]
[]
[]
[]
[]
[]
[null,null,"3.1.3 Monitoring and Information Management"]
[null,null,null,"3.1.3.a Government responsibility for hydro-meteorological monitoring adequately addressed in national legislation"]
[]
[null,null,null,null,null,null,null,null,null,null,"HDI Grouping"]
[]
[]
[]
[]
[]
[]
[null,null,null,null,null,null,null,null,null,null,"Regional Grouping"]
[]
[]
[]
[]
[]
[]
[null,null,null,"3.1.3.b Monitoring of surface water quantity"]
[]
[null,null,null,null,null,null,null,null,null,null,"HDI Grouping"]
[]
[]
[]
[]
[]
[]
[null,null,null,null,null,null,null,null,null,null,"Regional Grouping"]
[]
[]
[]
[]
[]
[]
[null,null,null,"3.1.3.c Monitoring of ground water quantity"]
[]
[null,null,null,null,null,null,null,null,null,null,"HDI Grouping"]
[]
[]
[]
[]
[]
[]
[null,null,null,null,null,null,null,null,null,null,"Regional Grouping"]
[]
[]
[]
[]
[]
[]
[null,null,null,"3.1.3.d Monitoring of water quality"]
[]
[null,null,null,null,null,null,null,null,null,null,"HDI Grouping"]
[]
[]
[]
[]
[]
[]
[null,null,null,null,null,null,null,null,null,null,"Regional Grouping"]
[]
[]
[]
[]
[]
[]
[null,null,null,"3.1.3.e Monitoring of aquatic ecosystems"]
[]
[null,null,null,null,null,null,null,null,null,null,"HDI Grouping"]
[]
[]
[]
[]
[]
[]
[null,null,null,null,null,null,null,null,null,null,"Regional Grouping"]
[]
[]
[]
[]
[]
[]
[null,null,null,"3.1.3.f Monitoring of water use"]
[]
[null,null,null,null,null,null,null,null,null,null,"HDI Grouping"]
[]
[]
[]
[]
[]
[]
[null,null,null,null,null,null,null,null,null,null,"Regional Grouping"]
[]
[]
[]
[]
[]
[]
[null,null,null,"3.1.3.g Monitoring of water use efficienc"]
[]
[null,null,null,null,null,null,null,null,null,null,"HDI Grouping"]
[]
[]
[]
[]
[]
[]
[null,null,null,null,null,null,null,null,null,null,"Regional Grouping"]
[]
[]
[]
[]
[]
[]
[null,null,null,"3.1.3.h Water resources information system"]
[]
[null,null,null,null,null,null,null,null,null,null,"HDI Grouping"]
[]
[]
[]
[]
[]
[]
[null,null,null,null,null,null,null,null,null,null,"Regional Grouping"]
[]
[]
[]
[]
[]
[]
[null,null,null,"3.1.3.i Forecasting and early warning systems"]
[]
[null,null,null,null,null,null,null,null,null,null,"HDI Grouping"]
[]
[]
[]
[]
[]
[]
[null,null,null,null,null,null,null,null,null,null,"Regional Grouping"]
[]
[]
[]
[]
[]
[]
[null,null,"3.1.4 Knowledge Sharing"]
[null,null,null,"3.1.4.a Programs for information exchange and knowledge sharing of good practices"]
[]
[null,null,null,null,null,null,null,null,null,null,"HDI Grouping"]
[]
[]
[]
[]
[]
[]
[null,null,null,null,null,null,null,null,null,null,"Regional Grouping"]
[]
[]
[]
[]
[]
[]
[null,null,null,"3.1.4.b Programs for providing advisory (extension) services on water management issues to end users"]
[]
[null,null,null,null,null,null,null,null,null,null,"HDI Grouping"]
[]
[]
[]
[]
[]
[]
[null,null,null,null,null,null,null,null,null,null,"Regional Grouping"]
[]
[]
[]
[]
[]
[]
[null,null,null,"3.1.4.c Programs for transferring improved and cost effective water saving technologies"]
[]
[null,null,null,null,null,null,null,null,null,null,"HDI Grouping"]
[]
[]
[]
[]
[]
[]
[null,null,null,null,null,null,null,null,null,null,"Regional Grouping"]
[]
[]
[]
[]
[]
[]
[null,null,null,"3.1.4.d Mechanisms for exchanging information between countries"]
[]
[null,null,null,null,null,null,null,null,null,null,"HDI Grouping"]
[]
[]
[]
[]
[]
[]
[null,null,null,null,null,null,null,null,null,null,"Regional Grouping"]
[]
[]
[]
[]
[]
[]
[null,null,"3.1.5 Financing of Water Resources Management"]
[null,null,null,"3.1.5.a Cost recovery mechanisms/progressive tariff structures for all water uses"]
[]
[null,null,null,null,null,null,null,null,null,null,"HDI Grouping"]
[]
[]
[]
[]
[]
[]
[null,null,null,null,null,null,null,null,null,null,"Regional Grouping"]
[]
[]
[]
[]
[]
[]
[null,null,null,"3.1.5.b Subsidies for promoting water efficiency"]
[]
[null,null,null,null,null,null,null,null,null,null,"HDI Grouping"]
[]
[]
[]
[]
[]
[]
[null,null,null,null,null,null,null,null,null,null,"Regional Grouping"]
[]
[]
[]
[]
[]
[]
[null,null,null,"3.1.5.c Charges for water ressource management (e.g. pollution charges)"]
[]
[null,null,null,null,null,null,null,null,null,null,"HDI Grouping"]
[]
[]
[]
[]
[]
[]
[null,null,null,null,null,null,null,null,null,null,"Regional Grouping"]

{"sheet":"Q-4","index":4,"n_rows":320,"n_cols":11,"rows_kept":320,"cut":false,"hidden":false,"merged":[[0,0,0,13]]}
["The following data is based on surveys collected during 2011 on behalf of UN-Water and published in the following report and should be cited as follows: \nUN-Water 2012. Status report on the application of integrated approaches to water resources management. The survey and report were developed by a partnership of the UNEP-DHI Centre for Water and Environment, UNEP, UNDP, SIWI, GWP, and individual consultants. For further information, please contact Paul Glennie (pgl@dhigroup.com) or Peter Koefoed Bjørnsen (pkb@dhigroup.com)"]
[]
["4. Infrastructure Development and Financing"]
[null,"4.1 Infrastructure development for the development, management and use of water resources"]
[null,null,"4.1.1 Investment plans and programs"]
[null,null,null,"4.1.1.a Water resources included in national infrastructure investment plans"]
[]
[null,null,null,null,null,null,null,null,null,null,"HDI Grouping"]
[]
[]
[]
[]
[]
[]
[null,null,null,null,null,null,null,null,null,null,"Regional Grouping"]
[]
[]
[]
[]
[]
[]
[null,null,null,"4.1.1.b Irrigation"]
[]
[null,null,null,null,null,null,null,null,null,null,"HDI Grouping"]
[]
[]
[]
[]
[]
[]
[null,null,null,null,null,null,null,null,null,null,"Regional Grouping"]
[]
[]
[]
[]
[]
[]
[null,null,null,"4.1.1.c Energy/hydropower"]
[]
[null,null,null,null,null,null,null,null,null,null,"HDI Grouping"]
[]
[]
[]
[]
[]
[]
[null,null,null,null,null,null,null,null,null,null,"Regional Grouping"]
[]
[]
[]
[]
[]
[]
[null,null,null,"4.1.1.d Groundwater (e.g. boreholes, pumps and treatment)"]
[]
[null,null,null,null,null,null,null,null,null,null,"HDI Grouping"]
[]
[]
[]
[]
[]
[]
[null,null,null,null,null,null,null,null,null,null,"Regional Grouping"]
[]
[]
[]
[]
[]
[]
[null,null,null,"4.1.1.e Flood management"]
[]
[null,null,null,null,null,null,null,null,null,null,"HDI Grouping"]
[]
[]
[]
[]
[]
[]
[null,null,null,null,null,null,null,null,null,null,"Regional Grouping"]
[]
[]
[]
[]
[]
[]
[null,null,null,"4.1.1.f Water supply (domestic and industrial)"]
[]
[null,null,null,null,null,null,null,null,null,null,"HDI Grouping"]
[]
[]
[]
[]
[]
[]
[null,null,null,null,null,null,null,null,null,null,"Regional Grouping"]
[]
[]
[]
[]
[]
[]
[null,null,null,"4.1.1.g Wastewater treatment"]
[]
[null,null,null,null,null,null,null,null,null,null,"HDI Grouping"]
[]
[]
[]
[]
[]
[]
[null,null,null,null,null,null,null,null,null,null,"Regional Grouping"]
[]
[]
[]
[]
[]
[]
[null,null,null,"4.1.1.h Desalination of seawater"]
[]
[null,null,null,null,null,null,null,null,null,null,"HDI Grouping"]
[]
[]
[]
[]
[]
[]
[null,null,null,null,null,null,null,null,null,null,"Regional Grouping"]
[]
[]
[]
[]
[]
[]
[null,null,null,"4.1.1.i Rainwater harvesting"]
[]
[null,null,null,null,null,null,null,null,null,null,"HDI Grouping"]
[]
[]
[]
[]
[]
[]
[null,null,null,null,null,null,null,null,null,null,"Regional Grouping"]
[]
[]
[]
[]
[]
[]
[null,null,null,"4.1.1.j Natural systems (e.g. wetlands, floodplains and catchment restoration)"]
[]
[null,null,null,null,null,null,null,null,null,null,"HDI Grouping"]
[]
[]
[]
[]
[]
[]
[null,null,null,null,null,null,null,null,null,null,"Regional Grouping"]
[]
[]
[]
[]
[]
[]
[null,null,"4.1.2 Mobilizing financing for water resources infrastructure"]
[null,null,null,"4.1.2.a Financing for water resources included in national investment plans"]
[]
[null,null,null,null,null,null,null,null,null,null,"HDI Grouping"]
[]
[]
[]
[]
[]
[]
[null,null,null,null,null,null,null,null,null,null,"Regional Grouping"]
[]
[]
[]
[]
[]
[]
[null,null,null,"4.1.2.b Financing for irrigation"]
[]
[null,null,null,null,null,null,null,null,null,null,"HDI Grouping"]
[]
[]
[]
[]
[]
[]
[null,null,null,null,null,null,null,null,null,null,"Regional Grouping"]
[]
[]
[]
[]
[]
[]
[null,null,null,"4.1.2.c Financing for energy/hydropower"]
[]
[null,null,null,null,null,null,null,null,null,null,"HDI Grouping"]
[]
[]
[]
[]
[]
[]
[null,null,null,null,null,null,null,null,null,null,"Regional Grouping"]
[]
[]
[]
[]
[]
[]
[null,null,null,"4.1.2.d Financing for groundwater (e.g. boreholes, pump and treatment)"]
[]
[null,null,null,null,null,null,null,null,null,null,"HDI Grouping"]
[]
[]
[]
[]
[]
[]
[null,null,null,null,null,null,null,null,null,null,"Regional Grouping"]
[]
[]
[]
[]
[]
[]
[null,null,null,"4.1.2.e Financing for flood management"]
[]
[null,null,null,null,null,null,null,null,null,null,"HDI Grouping"]
[]
[]
[]
[]
[]
[]
[null,null,null,null,null,null,null,null,null,null,"Regional Grouping"]
[]
[]
[]
[]
[]
[]
[null,null,null,"4.1.2.f Financing for water supply (domestic and industrial)"]
[]
[null,null,null,null,null,null,null,null,null,null,"HDI Grouping"]
[]
[]
[]
[]
[]
[]
[null,null,null,null,null,null,null,null,null,null,"Regional Grouping"]
[]
[]
[]
[]
[]
[]
[null,null,null,"4.1.2.g Financing for wastewater treatment"]
[]
[null,null,null,null,null,null,null,null,null,null,"HDI Grouping"]
[]
[]
[]
[]
[]
[]
[null,null,null,null,null,null,null,null,null,null,"Regional Grouping"]
[]
[]
[]
[]
[]
[]
[null,null,null,"4.1.2.h Financing for desalination of seawater"]
[]
[null,null,null,null,null,null,null,null,null,null,"HDI Grouping"]
[]
[]
[]
[]
[]
[]
[null,null,null,null,null,null,null,null,null,null,"Regional Grouping"]
[]
[]
[]
[]
[]
[]
[null,null,null,"4.1.2.i Financing for rainwater harvesting"]
[]
[null,null,null,null,null,null,null,null,null,null,"HDI Grouping"]
[]
[]
[]
[]
[]
[]
[null,null,null,null,null,null,null,null,null,null,"Regional Grouping"]
[]
[]
[]
[]
[]
[]
[null,null,null,"4.1.2.j Financing for natural systems (e.g. wetlands, floodplains and catchment restoration)"]
[]
[null,null,null,null,null,null,null,null,null,null,"HDI Grouping"]
[]
[]
[]
[]
[]
[]
[null,null,null,null,null,null,null,null,null,null,"Regional Grouping"]

{"sheet":"Q-5","index":5,"n_rows":94,"n_cols":10,"rows_kept":94,"cut":false,"hidden":false,"merged":[[0,0,0,13]]}
["The following data is based on surveys collected during 2011 on behalf of UN-Water and published in the following report and should be cited as follows: \nUN-Water 2012. Status report on the application of integrated approaches to water resources management. The survey and report were developed by a partnership of the UNEP-DHI Centre for Water and Environment, UNEP, UNDP, SIWI, GWP, and individual consultants. For further information, please contact Paul Glennie (pgl@dhigroup.com) or Peter Koefoed Bjørnsen (pkb@dhigroup.com)"]
[]
["5. Sources of Financing for the Development of Water Resources"]
[null,"5.1 Sources of financing for the development of water resources"]
[null,null,"5.1.a Government budget allocation (as % of GDP) for water resources development"]
[]
[null,null,null,null,null,null,null,null,null,"HDI Grouping"]
[]
[]
[]
[]
[]
[]
[null,null,null,null,null,null,null,null,null,"Regional Grouping"]
[]
[]
[]
[]
[]
[]
[null,null,"5.1.b Grabts and loans from aid agencies for water resources development"]
[]
[null,null,null,null,null,null,null,null,null,"HDI Grouping"]
[]
[]
[]
[]
[]
[]
[null,null,null,null,null,null,null,null,null,"Regional Grouping"]
[]
[]
[]
[]
[]
[]
[null,null,"5.1.c Invetment from International Financing Institutions (e.g. World Bank) for water resources development"]
[]
[null,null,null,null,null,null,null,null,null,"HDI Grouping"]
[]
[]
[]
[]
[]
[]
[null,null,null,null,null,null,null,null,null,"Regional Grouping"]
[]
[]
[]
[]
[]
[]
[null,null,"5.1.d Investments from private sources /e.g. banks, and private operators, non-profit) for water resources development"]
[]
[null,null,null,null,null,null,null,null,null,"HDI Grouping"]
[]
[]
[]
[]
[]
[]
[null,null,null,null,null,null,null,null,null,"Regional Grouping"]
[]
[]
[]
[]
[]
[]
[null,null,"5.1.e Revenues (e.g. from water use charges/tariffs) used for water resources development"]
[]
[null,null,null,null,null,null,null,null,null,"HDI Grouping"]
[]
[]
[]
[]
[]
[]
[null,null,null,null,null,null,null,null,null,"Regional Grouping"]
[]
[]
[]
[]
[]
[]
[null,null,"5.1.f Payment for ecosystem services and related benefit/cost transfer schemes"]
[]
[]
[]
[]
[]
[]
[]
[]
[null,null,null,null,null,null,null,null,null,"Regional Grouping"]

{"sheet":"Q-6","index":6,"n_rows":254,"n_cols":10,"rows_kept":254,"cut":false,"hidden":false,"merged":[[0,0,0,13]]}
["The following data is based on surveys collected during 2011 on behalf of UN-Water and published in the following report and should be cited as follows: \nUN-Water 2012. Status report on the application of integrated approaches to water resources management. The survey and report were developed by a partnership of the UNEP-DHI Centre for Water and Environment, UNEP, UNDP, SIWI, GWP, and individual consultants. For further information, please contact Paul Glennie (pgl@dhigroup.com) or Peter Koefoed Bjørnsen (pkb@dhigroup.com)"]
[]
["6. Outcomes and Impacts"]
[null,"6.1 Improvd Water Resources Mangement"]
[null,null,"6.1.a Improved policy, strategic planning and legal frameworks (Economic)"]
[]
[null,null,null,null,null,null,null,null,null,"HDI Grouping"]
[]
[]
[]
[]
[]
[]
[null,null,null,null,null,null,null,null,null,"Regional Grouping"]
[]
[]
[]
[]
[]
[]
[null,null,"6.1.a Improved policy, strategic planning and legal frameworks (Social)"]
[]
[null,null,null,null,null,null,null,null,null,"HDI Grouping"]
[]
[]
[]
[]
[]
[]
[null,null,null,null,null,null,null,null,null,"Regional Grouping"]
[]
[]
[]
[]
[]
[]
[null,null,"6.1.a Improved policy, strategic planning and legal frameworks (Environmental)"]
[]
[null,null,null,null,null,null,null,null,null,"HDI Grouping"]
[]
[]
[]
[]
[]
[]
[null,null,null,null,null,null,null,null,null,"Regional Grouping"]
[]
[]
[]
[]
[]
[]
[null,null,"6.1.a Improved policy, strategic planning and legal frameworks (Overall)"]
[]
[null,null,null,null,null,null,null,null,null,"HDI Grouping"]
[]
[]
[]
[]
[]
[]
[null,null,null,null,null,null,null,null,null,"Regional Grouping"]
[]
[]
[]
[]
[]
[]
[null,null,"6.1.b Improved governance and institutional framework (Economic)"]
[]
[null,null,null,null,null,null,null,null,null,"HDI Grouping"]
[]
[]
[]
[]
[]
[]
[null,null,null,null,null,null,null,null,null,"Regional Grouping"]
[]
[]
[]
[]
[]
[]
[null,null,"6.1.b Improved governance and institutional framework (Social)"]
[]
[null,null,null,null,null,null,null,null,null,"HDI Grouping"]
[]
[]
[]
[]
[]
[]
[null,null,null,null,null,null,null,null,null,"Regional Grouping"]
[]
[]
[]
[]
[]
[]
[null,null,"6.1.b Improved governance and institutional framework (Environmental)"]
[]
[null,null,null,null,null,null,null,null,null,"HDI Grouping"]
[]
[]
[]
[]
[]
[]
[null,null,null,null,null,null,null,null,null,"Regional Grouping"]
[]
[]
[]
[]
[]
[]
[null,null,"6.1.b Improved governance and institutional framework (Overall)"]
[]
[null,null,null,null,null,null,null,null,null,"HDI Grouping"]
[]
[]
[]
[]
[]
[]
[null,null,null,null,null,null,null,null,null,"Regional Grouping"]
[]
[]
[]
[]
[]
[]
[null,null,"6.1.c Improved management instruments (Economic)"]
[]
[null,null,null,null,null,null,null,null,null,"HDI Grouping"]
[]
[]
[]
[]
[]
[]
[null,null,null,null,null,null,null,null,null,"Regional Grouping"]
[]
[]
[]
[]
[]
[]
[null,null,"6.1.c Improved management instruments (Social)"]
[]
[null,null,null,null,null,null,null,null,null,"HDI Grouping"]
[]
[]
[]
[]
[]
[]
[null,null,null,null,null,null,null,null,null,"Regional Grouping"]
[]
[]
[]
[]
[]
[]
[null,null,"6.1.c Improved management instruments (Environmental)"]
[]
[null,null,null,null,null,null,null,null,null,"HDI Grouping"]
[]
[]
[]
[]
[]
[]
[null,null,null,null,null,null,null,null,null,"Regional Grouping"]
[]
[]
[]
[]
[]
[]
[null,null,"6.1.c Improved management instruments (Overall)"]
[]
[null,null,null,null,null,null,null,null,null,"HDI Grouping"]
[]
[]
[]
[]
[]
[]
[null,null,null,null,null,null,null,null,null,"Regional Grouping"]
[]
[]
[]
[]
[]
[]
[null,null,"6.1.d Improved infrastructure development (Economic)"]
[]
[null,null,null,null,null,null,null,null,null,"HDI Grouping"]
[]
[]
[]
[]
[]
[]
[null,null,null,null,null,null,null,null,null,"Regional Grouping"]
[]
[]
[]
[]
[]
[]
[null,null,"6.1.d Improved infrastructure development (Social)"]
[]
[null,null,null,null,null,null,null,null,null,"HDI Grouping"]
[]
[]
[]
[]
[]
[]
[null,null,null,null,null,null,null,null,null,"Regional Grouping"]
[]
[]
[]
[]
[]
[]
[null,null,"6.1.d Improved infrastructure development (Environmental)"]
[]
[null,null,null,null,null,null,null,null,null,"HDI Grouping"]
[]
[]
[]
[]
[]
[]
[null,null,null,null,null,null,null,null,null,"Regional Grouping"]
[]
[]
[]
[]
[]
[]
[null,null,"6.1.d Improved infrastructure development (Overall)"]
[]
[null,null,null,null,null,null,null,null,null,"HDI Grouping"]
[]
[]
[]
[]
[]
[]
[null,null,null,null,null,null,null,null,null,"Regional Grouping"]

{"sheet":"Q-7","index":7,"n_rows":975,"n_cols":11,"rows_kept":975,"cut":false,"hidden":false,"merged":[[0,0,0,13]]}
["The following data is based on surveys collected during 2011 on behalf of UN-Water and published in the following report and should be cited as follows: \nUN-Water 2012. Status report on the application of integrated approaches to water resources management. The survey and report were developed by a partnership of the UNEP-DHI Centre for Water and Environment, UNEP, UNDP, SIWI, GWP, and individual consultants. For further information, please contact Paul Glennie (pgl@dhigroup.com) or Peter Koefoed Bjørnsen (pkb@dhigroup.com)"]
[]
["7. Priority challenges"]
[null,"7.1 Priority water resources challenge areas"]
[null,null,"7.1.1 Water Uses"]
[null,null,null,"7.1.1.a Water for agriculture"]
[]
[null,null,null,null,null,null,null,null,null,null,"HDI Grouping"]
[]
[]
[]
[]
[]
[]
[null,null,null,null,null,null,null,null,null,null,"Regional Grouping"]
[]
[]
[]
[]
[]
[]
[null,null,null,"7.1.1.b Water for domestic use"]
[]
[null,null,null,null,null,null,null,null,null,null,"HDI Grouping"]
[]
[]
[]
[]
[]
[]
[null,null,null,null,null,null,null,null,null,null,"Regional Grouping"]
[]
[]
[]
[]
[]
[]
[null,null,null,"7.1.1.c Water for industry"]
[]
[null,null,null,null,null,null,null,null,null,null,"HDI Grouping"]
[]
[]
[]
[]
[]
[]
[null,null,null,null,null,null,null,null,null,null,"Regional Grouping"]
[]
[]
[]
[]
[]
[]
[null,null,null,"7.1.1.d Water for energy"]
[]
[null,null,null,null,null,null,null,null,null,null,"HDI Grouping"]
[]
[]
[]
[]
[]
[]
[null,null,null,null,null,null,null,null,null,null,"Regional Grouping"]
[]
[]
[]
[]
[]
[]
[null,null,null,"7.1.1.e Water for ecosystems/environment"]
[]
[null,null,null,null,null,null,null,null,null,null,"HDI Grouping"]
[]
[]
[]
[]
[]
[]
[null,null,null,null,null,null,null,null,null,null,"Regional Grouping"]
[]
[]
[]
[]
[]
[]
[null,null,null,"7.1.1.f Water for growing cities"]
[]
[null,null,null,null,null,null,null,null,null,null,"HDI Grouping"]
[]
[]
[]
[]
[]
[]
[null,null,null,null,null,null,null,null,null,null,"Regional Grouping"]
[]
[]
[]
[]
[]
[]
[null,null,"7.1.2 Threats to the resource"]
[null,null,null,"7.1.2.a Floods"]
[]
[null,null,null,null,null,null,null,null,null,null,"HDI Grouping"]
[]
[]
[]
[]
[]
[]
[null,null,null,null,null,null,null,null,null,null,"Regional Grouping"]
[]
[]
[]
[]
[]
[]
[null,null,null,"7.1.2.b Droughts"]
[]
[null,null,null,null,null,null,null,null,null,null,"HDI Grouping"]
[]
[]
[]
[]
[]
[]
[null,null,null,null,null,null,null,null,null,null,"Regional Grouping"]
[]
[]
[]
[]
[]
[]
[null,null,null,"7.1.2.c Water scarcity (surface water)"]
[]
[null,null,null,null,null,null,null,null,null,null,"HDI Grouping"]
[]
[]
[]
[]
[]
[]
[null,null,null,null,null,null,null,null,null,null,"Regional Grouping"]
[]
[]
[]
[]
[]
[]
[null,null,null,"7.1.2.d Water scarcity (groundwater)"]
[]
[null,null,null,null,null,null,null,null,null,null,"HDI Grouping"]
[]
[]
[]
[]
[]
[]
[null,null,null,null,null,null,null,null,null,null,"Regional Grouping"]
[]
[]
[]
[]
[]
[]
[null,null,null,"7.1.2.e Water quality (surface water)"]
[]
[null,null,null,null,null,null,null,null,null,null,"HDI Grouping"]
[]
[]
[]
[]
[]
[]
[null,null,null,null,null,null,null,null,null,null,"Regional Grouping"]
[]
[]
[]
[]
[]
[]
[null,null,null,"7.1.2.f Water quality (groundwater)"]
[]
[null,null,null,null,null,null,null,null,null,null,"HDI Grouping"]
[]
[]
[]
[]
[]
[]
[null,null,null,null,null,null,null,null,null,null,"Regional Grouping"]
[]
[]
[]
[]
[]
[]
[null,"7.2 Priority water resources challenge changes"]
[null,null,"7.2.1 Water Uses"]
[null,null,null,"7.2.1.a Water for agriculture"]
[]
[null,null,null,null,null,null,null,null,null,null,"HDI Grouping"]
[]
[]
[]
[]
[]
[]
[null,null,null,null,null,null,null,null,null,null,"Regional Grouping"]
[]
[]
[]
[]
[]
[]
[null,null,null,"7.2.1.b Water for domestic use"]
[]
[null,null,null,null,null,null,null,null,null,null,"HDI Grouping"]
[]
[]
[]
[]
[]
[]
[null,null,null,null,null,null,null,null,null,null,"Regional Grouping"]
[]
[]
[]
[]
[]
[]
[null,null,null,"7.2.1.c Water for industry"]
[]
[null,null,null,null,null,null,null,null,null,null,"HDI Grouping"]
[]
[]
[]
[]
[]
[]
[null,null,null,null,null,null,null,null,null,null,"Regional Grouping"]
[]
[]
[]
[]
[]
[]
[null,null,null,"7.2.1.d Water for energy"]
[]
[null,null,null,null,null,null,null,null,null,null,"HDI Grouping"]
[]
[]
[]
[]
[]
[]
[null,null,null,null,null,null,null,null,null,null,"Regional Grouping"]
[]
[]
[]
[]
[]
[]
[null,null,null,"7.2.1.e Water for ecosystems/environment"]
[]
[null,null,null,null,null,null,null,null,null,null,"HDI Grouping"]
[]
[]
[]
[]
[]
[]
[null,null,null,null,null,null,null,null,null,null,"Regional Grouping"]
[]
[]
[]
[]
[]
[]
[null,null,null,"7.2.1.f Water for growing cities"]
[]
[null,null,null,null,null,null,null,null,null,null,"HDI Grouping"]
[]
[]
[]
[]
[]
[]
[null,null,null,null,null,null,null,null,null,null,"Regional Grouping"]
[]
[]
[]
[]
[]
[]
[null,null,"7.2.2 Threats to the resource"]
[null,null,null,"7.2.2.a Floods"]
[]
[null,null,null,null,null,null,null,null,null,null,"HDI Grouping"]
[]
[]
[]
[]
[]
[]
[null,null,null,null,null,null,null,null,null,null,"Regional Grouping"]
[]
[]
[]
[]
[]
[]
[null,null,null,"7.2.2.b Droughts"]
[]
[null,null,null,null,null,null,null,null,null,null,"HDI Grouping"]
[]
[]
[]
[]
[]
[]
[null,null,null,null,null,null,null,null,null,null,"Regional Grouping"]
[]
[]
[]
[]
[]
[]
[null,null,null,"7.2.2.c Water scarcity (surface water)"]
[]
[null,null,null,null,null,null,null,null,null,null,"HDI Grouping"]
[]
[]
[]
[]
[]
[]
[null,null,null,null,null,null,null,null,null,null,"Regional Grouping"]
[]
[]
[]
[]
[]
[]
[null,null,null,"7.2.2.d Water scarcity (groundwater)"]
[]
[null,null,null,null,null,null,null,null,null,null,"HDI Grouping"]
[]
[]
[]
[]
[]
[]
[null,null,null,null,null,null,null,null,null,null,"Regional Grouping"]
[]
[]
[]
[]
[]
[]
[null,null,null,"7.2.2.e Water quality (surface water)"]
[]
[null,null,null,null,null,null,null,null,null,null,"HDI Grouping"]
[]
[]
[]
[]
[]
[]
[null,null,null,null,null,null,null,null,null,null,"Regional Grouping"]
[]
[]
[]
[]
[]
[]
[null,null,null,"7.2.2.f Water quality (groundwater)"]
[]
[null,null,null,null,null,null,null,null,null,null,"HDI Grouping"]
[]
[]
[]
[]
[]
[]
[null,null,null,null,null,null,null,null,null,null,"Regional Grouping"]
[]
[]
[]
[]
[]
[]
[null,"7.3 Priority water management challenge areas"]
[null,null,"7.3.1 Levels of management"]
[null,null,null,"7.3.1a Institutional capacity at national level"]
[]
[null,null,null,null,null,null,null,null,null,null,"HDI Grouping"]
[]
[]
[]
[]
[]
[]
[null,null,null,null,null,null,null,null,null,null,"Regional Grouping"]
[]
[]
[]
[]
[]
[]
[null,null,null,"7.3.1b Institutional capacity at sub-national level"]
[]
[null,null,null,null,null,null,null,null,null,null,"HDI Grouping"]
[]
[]
[]
[]
[]
[]
[null,null,null,null,null,null,null,null,null,null,"Regional Grouping"]
[]
[]
[]
[]
[]
[]
[null,null,null,"7.3.1c Transboundary capacity at international level"]
[]
[null,null,null,null,null,null,null,null,null,null,"HDI Grouping"]
[]
[]
[]
[]
[]
[]
[null,null,null,null,null,null,null,null,null,null,"Regional Grouping"]
[]
[]
[]
[]
[]
[]
[null,null,null,"7.3.1d Transboundary capacity at national/sub-national level"]
[]
[null,null,null,null,null,null,null,null,null,null,"HDI Grouping"]
[]
[]
[]
[]
[]
[]
[null,null,null,null,null,null,null,null,null,null,"Regional Grouping"]
[]
[]
[]
[]
[]
[]
[null,null,null,"7.3.1e Management through private enterprise"]
[]
[null,null,null,null,null,null,null,null,null,null,"HDI Grouping"]
[]
[]
[]
[]
[]
[]
[null,null,null,null,null,null,null,null,null,null,"Regional Grouping"]
[]
[]
[]
[]
[]
[]
[null,null,null,"7.3.1f Stakeholder participation"]
[]
[null,null,null,null,null,null,null,null,null,null,"HDI Grouping"]
[]
[]
[]
[]
[]
[]
[null,null,null,null,null,null,null,null,null,null,"Regional Grouping"]
[]
[]
[]
[]
[]
[]
[null,null,null,"7.3.1g Coordination between levels and types of management"]
[]
[null,null,null,null,null,null,null,null,null,null,"HDI Grouping"]
[]
[]
[]
[]
[]
[]
[null,null,null,null,null,null,null,null,null,null,"Regional Grouping"]
[]
[]
[]
[]
[]
[]
[null,null,"7.3.2 Management between sectors at national level"]
[null,null,null,"7.3.2a Coordination between sectors at national level"]
[]
[null,null,null,null,null,null,null,null,null,null,"HDI Grouping"]
[]
[]
[]
[]
[]
[]
[null,null,null,null,null,null,null,null,null,null,"Regional Grouping"]
[]
[]
[]
[]
[]
[]
[null,null,null,"7.3.2b Coordination between sectors at sub-national level"]
[]
[null,null,null,null,null,null,null,null,null,null,"HDI Grouping"]
[]
[]
[]
[]
[]
[]
[null,null,null,null,null,null,null,null,null,null,"Regional Grouping"]
[]
[]
[]
[]
[]
[]
[null,null,"7.3.3 Other governance issues"]
[null,null,null,"7.3.3a Legislation"]
[]
[null,null,null,null,null,null,null,null,null,null,"HDI Grouping"]
[]
[]
[]
[]
[]
[]
[null,null,null,null,null,null,null,null,null,null,"Regional Grouping"]
[]
[]
[]
[]
[]
[]
[null,null,null,"7.3.3b Infrastructure development"]
[]
[null,null,null,null,null,null,null,null,null,null,"HDI Grouping"]
[]
[]
[]
[]
[]
[]
[null,null,null,null,null,null,null,null,null,null,"Regional Grouping"]
[]
[]
[]
[]
[]
[]
[null,null,null,"7.3.3c Financing of water resources management"]
[]
[null,null,null,null,null,null,null,null,null,null,"HDI Grouping"]
[]
[]
[]
[]
[]
[]
[null,null,null,null,null,null,null,null,null,null,"Regional Grouping"]
[]
[]
[]
[]
[]
[]
[null,null,null,"7.3.3d Financing of infrastructure"]
[]
[null,null,null,null,null,null,null,null,null,null,"HDI Grouping"]
[]
[]
[]
[]
[]
[]
[null,null,null,null,null,null,null,null,null,null,"Regional Grouping"]
[]
[]
[]
[]
[]
[]
[null,null,"7.3.4 Managing resource information"]
[null,null,null,"7.3.4a Monitoring the resource"]
[]
[null,null,null,null,null,null,null,null,null,null,"HDI Grouping"]
[]
[]
[]
[]
[]
[]
[null,null,null,null,null,null,null,null,null,null,"Regional Grouping"]
[]
[]
[]
[]
[]
[]
[null,null,null,"7.3.4b Knowledge sharing"]
[]
[null,null,null,null,null,null,null,null,null,null,"HDI Grouping"]
[]
[]
[]
[]
[]
[]
[null,null,null,null,null,null,null,null,null,null,"Regional Grouping"]
[]
[]
[]
[]
[]
[]
[null,null,"7.3.5 Specific types of management"]
[null,null,null,"7.3.5.a Disaster management"]
[]
[null,null,null,null,null,null,null,null,null,null,"HDI Grouping"]
[]
[]
[]
[]
[]
[]
[null,null,null,null,null,null,null,null,null,null,"Regional Grouping"]
[]
[]
[]
[]
[]
[]
[null,null,null,"7.3.5.b Climate change adaptation management"]
[]
[null,null,null,null,null,null,null,null,null,null,"HDI Grouping"]
[]
[]
[]
[]
[]
[]
[null,null,null,null,null,null,null,null,null,null,"Regional Grouping"]
[]
[]
[]
[]
[]
[]
[null,null,null,"7.3.5.c Water use efficiency management"]
[]
[null,null,null,null,null,null,null,null,null,null,"HDI Grouping"]
[]
[]
[]
[]
[]
[]
[null,null,null,null,null,null,null,null,null,null,"Regional Grouping"]
[]
[]
[]
[]
[]
[]
[null,"7.4 Priority water management challenge areas"]
[null,null,"7.4.1 Levels of management"]
[null,null,null,"7.4.1a Institutional capacity at national level"]
[]
[null,null,null,null,null,null,null,null,null,null,"HDI Grouping"]
[]
[]
[]
[]
[]
[]
[null,null,null,null,null,null,null,null,null,null,"Regional Grouping"]
[]
[]
[]
[]
[]
[]
[null,null,null,"7.4.1b Institutional capacity at sub-national level"]
[]
[null,null,null,null,null,null,null,null,null,null,"HDI Grouping"]
[]
[]
[]
[]
[]
[]
[null,null,null,null,null,null,null,null,null,null,"Regional Grouping"]
[]
[]
[]
[]
[]
[]
[null,null,null,"7.4.1c Transboundary capacity at international level"]
[]
[null,null,null,null,null,null,null,null,null,null,"HDI Grouping"]
[]
[]
[]
[]
[]
[]
[null,null,null,null,null,null,null,null,null,null,"Regional Grouping"]
[]
[]
[]
[]
[]
[]
[null,null,null,"7.4.1d Transboundary capacity at national/sub-national level"]
[]
[null,null,null,null,null,null,null,null,null,null,"HDI Grouping"]
[]
[]
[]
[]
[]
[]
[null,null,null,null,null,null,null,null,null,null,"Regional Grouping"]
[]
[]
[]
[]
[]
[]
[null,null,null,"7.4.1e Management through private enterprise"]
[]
[null,null,null,null,null,null,null,null,null,null,"HDI Grouping"]
[]
[]
[]
[]
[]
[]
[null,null,null,null,null,null,null,null,null,null,"Regional Grouping"]
[]
[]
[]
[]
[]
[]
[null,null,null,"7.4.1f Stakeholder participation"]
[]
[null,null,null,null,null,null,null,null,null,null,"HDI Grouping"]
[]
[]
[]
[]
[]
[]
[null,null,null,null,null,null,null,null,null,null,"Regional Grouping"]
[]
[]
[]
[]
[]
[]
[null,null,null,"7.4.1g Coordination between levels and types of management"]
[]
[null,null,null,null,null,null,null,null,null,null,"HDI Grouping"]
[]
[]
[]
[]
[]
[]
[null,null,null,null,null,null,null,null,null,null,"Regional Grouping"]
[]
[]
[]
[]
[]
[]
[null,null,"7.4.2 Management between sectors"]
[null,null,null,"7.4.2a Coordination between sectors at national level"]
[]
[null,null,null,null,null,null,null,null,null,null,"HDI Grouping"]
[]
[]
[]
[]
[]
[]
[null,null,null,null,null,null,null,null,null,null,"Regional Grouping"]
[]
[]
[]
[]
[]
[]
[null,null,null,"7.4.2b Coordination between sectors at sub-national level"]
[]
[null,null,null,null,null,null,null,null,null,null,"HDI Grouping"]
[]
[]
[]
[]
[]
[]
[null,null,null,null,null,null,null,null,null,null,"Regional Grouping"]
[]
[]
[]
[]
[]
[]
[null,null,"7.4.3 Other governance issues"]
[null,null,null,"7.4.3a Legislation"]
[]
[null,null,null,null,null,null,null,null,null,null,"HDI Grouping"]
[]
[]
[]
[]
[]
[]
[null,null,null,null,null,null,null,null,null,null,"Regional Grouping"]
[]
[]
[]
[]
[]
[]
[null,null,null,"7.4.3b Infrastructure development"]
[]
[null,null,null,null,null,null,null,null,null,null,"HDI Grouping"]
[]
[]
[]
[]
[]
[]
[null,null,null,null,null,null,null,null,null,null,"Regional Grouping"]
[]
[]
[]
[]
[]
[]
[null,null,null,"7.4.3c Financing of water resources management"]
[]
[null,null,null,null,null,null,null,null,null,null,"HDI Grouping"]
[]
[]
[]
[]
[]
[]
[null,null,null,null,null,null,null,null,null,null,"Regional Grouping"]
[]
[]
[]
[]
[]
[]
[null,null,null,"7.4.3d Financing of infrastructure"]
[]
[null,null,null,null,null,null,null,null,null,null,"HDI Grouping"]
[]
[]
[]
[]
[]
[]
[null,null,null,null,null,null,null,null,null,null,"Regional Grouping"]
[]
[]
[]
[]
[]
[]
[null,null,"7.4.4 Managing resource information"]
[null,null,null,"7.4.4a Monitoring the resource"]
[]
[null,null,null,null,null,null,null,null,null,null,"HDI Grouping"]
[]
[]
[]
[]
[]
[]
[null,null,null,null,null,null,null,null,null,null,"Regional Grouping"]
[]
[]
[]
[]
[]
[]
[null,null,null,"7.4.4b Knowledge sharing"]
[]
[null,null,null,null,null,null,null,null,null,null,"HDI Grouping"]
[]
[]
[]
[]
[]
[]
[null,null,null,null,null,null,null,null,null,null,"Regional Grouping"]
[]
[]
[]
[]
[]
[]
[null,null,"7.4.5 Specific tyes of management"]
[null,null,null,"7.4.5.a Disaster management"]
[]
[null,null,null,null,null,null,null,null,null,null,"HDI Grouping"]
[]
[]
[]
[]
[]
[]
[null,null,null,null,null,null,null,null,null,null,"Regional Grouping"]
[]
[]
[]
[]
[]
[]
[null,null,null,"7.4.5.b Climate change adaptation management"]
[]
[null,null,null,null,null,null,null,null,null,null,"HDI Grouping"]
[]
[]
[]
[]
[]
[]
[null,null,null,null,null,null,null,null,null,null,"Regional Grouping"]
[]
[]
[]
[]
[]
[]
[null,null,null,"7.4.5.c Water use efficiency management"]
[]
[null,null,null,null,null,null,null,null,null,null,"HDI Grouping"]
[]
[]
[]
[]
[]
[]
[null,null,null,null,null,null,null,null,null,null,"Regional Grouping"]

{"sheet":"2011 Survey responses","index":8,"n_rows":334,"n_cols":206,"rows_kept":334,"cut":false,"hidden":true,"merged":[[0,19,0,20],[0,1,0,7],[0,8,0,18],[0,21,0,26],[0,27,0,33],[0,34,0,40],[0,41,0,44],[0,45,0,57],[0,58,0,66],[0,67,0,70],[0,71,0,73],[0,74,0,83],[0,84,0,93],[0,94,0,99],[0,100,0,115],[0,118,0,123],[0,124,0,129],[0,130,0,135],[0,136,0,141],[0,142,0,148],[0,167,0,168],[0,169,0,172],[0,173,0,174],[0,175,0,177],[0,149,0,150],[0,151,0,154],[0,155,0,156],[0,157,0,159],[0,160,0,166]]}
["Countries","1.1.1 Main national/federal instruments for water resources management",null,null,null,null,null,null,"1.1.2 Other national/federal instruments that may incorporate water resources management",null,null,null,null,null,null,null,null,null,null,"1.1.3 International agreements on water resources management to which your country is party",null,"2.1.1 Institutional Frameworks",null,null,null,null,null,"2.1.2 Stakeholder Participation",null,null,null,null,null,null,"2.1.3 Capacity Building",null,null,null,null,null,null,"3.1.1 Water Resources Development                                                                   ",null,null,null,"3.1.2 Water Resources Management Programs                                                         ",null,null,null,null,null,null,null,null,null,null,null,null,"3.1.3 Monitoring and Information Management",null,null,null,null,null,null,null,null,"3.1.4 Knowledge Sharing",null,null,null,"3.1.5 Financing of Water Resources Management",null,null,"4.1.1 Investment plans and programs",null,null,null,null,null,null,null,null,null,"4.1.2 Mobilizing financing for water resources infrastructure",null,null,null,null,null,null,null,null,null,"5.1 Sources of financing for the development of water resources",null,null,null,null,null,"6.1 Improved Water Resources Management",null,null,null,null,null,null,null,null,null,null,null,null,null,null,null,"6.2.a","6.2.b","7.1.1 Water Uses",null,null,null,null,null,"7.1.2 Threats to the resource",null,null,null,null,null,"7.2.1 Water Uses",null,null,null,null,null,"7.2.2 Threats to the resource",null,null,null,null,null,"7.3.1 Levels of management",null,null,null,null,null,null,"7.3.2 Management between sectors",null,"7.3.3 Other governance issues",null,null,null,"7.3.4 Managing resource information",null,"7.3.5 Specific types of management",null,null,"7.4.1 Levels of management",null,null,null,null,null,null,"7.4.2 Management between sectors",null,"7.4.3 Other governance issues",null,null,null,"7.4.4 Managing resource information",null,"7.4.5 Specific types of management",null,null,"Additional Comments","Received ","Respondent ID","CollectorID","StartDate","EndDate","IP Address","Respondent 1",null,null,null,null,null,null,null,"Respondent 2 (if necess.)",null,null,null,null,null,null,null,"Are you finished?"]
[null,"a) National/federal water resources policy","b) Sub-national/provincial/state water resources policy","c) National/federal water laws","d) Sub-national/provincial/state water law","e) National or federal integrated water resources management plan/s or equivalent strategic plan document/s","f) Separate national or federal water efficiency plan/s","g) Water efficiency in integrated water resources management plan or equivalent","a) Integrated national policy/strategy/plan for land and water resources management","b) Poverty Reduction Strategy (PRS) with water resources management component","c) National Strategy for Sustainable Development","d) National Development Plan with water resources management component","e) National Environmental Action Plan water resources management component","f) National climate change adaptation policy/strategy/plan with water resources management component","g) National Agricultural Plan with water resources management component","h) National energy policy/strategy/plan with water resources management component","i) National desertification policy/strategy/plan with water resources management component","j) National wetland policy/strategy/plan with water resources management component","k) National biodiversity policy/strategy/plan with water resources management component","a) Regional/sub-regional water resources management agreements","b) Transboundary water resources management agreements for specific river basins","a) Mechanisms (e.g. commissions, councils) for river basin management","b) Mechanisms for management of groundwater","c) Mechanisms for management of lakes","d) Mechanisms for cross-sector management of water resources","e) Mechanisms for transboundary water resources management","f) Decentralized structures for water resources management (other than above)","a) Stakeholders have access to information on national water resources management and development","b) Public awareness campaigns on water resources management and development","c) Involvement of gen. public, civil society orgs. and non-govt orgs in water resources man. and devpt at the national level","d) Involvement of the private sector in water resources management and development at the national level","e) Involvement of general public, civil society orgs. and non-govt orgs in water resources management and devpt at  the basin level","f) Involvement of the private sector in water resources management and development at the basin level","g) Gender mainstreaming in  water resources management and development","a) Assessment of capacity needs in water resources management at national level","b) Assessment of capacity needs in water resources management at sub- national level","c) Programs for capacity development in water resources management institutions/organizations at national level","d) Programs for capacity development in water resources management institutions/organizations at sub-national levels","e) Programs for in-service training of staff/professionals in water resources management","f) Water resources management in the technical/higher education curriculum","g) Research programs in water resources management","a) Basin studies for long-term development and management of water resources","b) Periodical assessment of water resources","c) Regulatory norms and guidelines for sustainable development of water resources","d) Programs to value water-related or dependent ecosystem services","a) Groundwater management program","b) Surface water management program","c) Linked ground and surface water management program","d) Programs for efficient allocation of water resources among competing uses","e) Land/natural resources management programs that include water resources management components","f) Programs for allocating water resources that  include environmental considerations","g) Demand management measures to improve water use efficiency in all sectors","h) Program for  re-use or recycling of water","i) Programs to evaluate environmental impacts of water projects","j) Programs to address water-related disasters (e.g. floods and droughts)","k) Programs to address climate change adaptation through water resources management","l) Cooperative programs managing transboundary water resources","m) Programs to reverse environmental/ecosystem degradation","a) Government responsibility for hydro-meteorological monitoring adequately addressed in national legislation","b) Monitoring of surface water quantity","c) Monitoring of ground water quantity","d) Monitoring of water quality","e) Monitoring of aquatic ecosystems","f) Monitoring of water use","g) Monitoring of water use efficiency","h) Water resources information system","i) Forecasting and early warning systems","a) Programs for information exchange and knowledge sharing of good practices","b) Programs for providing advisory (extension) services on water management issues to end users","c) Programs for transferring improved and cost effective water saving technologies","d) Mechanisms for exchanging information between countries","a) Cost recovery mechanisms/progressive tariff structures for all water uses","b) Subsidies for promoting water efficiency","c) Charges for water resource management (e.g. pollution charges)","a) Water resources included in national infrastructure investment plans","b) Irrigation","c) Energy/hydropower","d) Groundwater (e.g. boreholes, pumps and treatment)","e) Flood management","f) Water supply (domestic and industrial)","g) Wastewater treatment","h) Desalination of seawater","i) Rainwater harvesting","j) Natural systems (e.g. wetlands, floodplains and catchment restoration)","a) Financing for water resources included in national investment plans","b) Financing for irrigation","c) Financing for energy/hydropower","d) Financing for groundwater (e.g. boreholes, pumps and treatment)","e) Financing for flood management","f) Financing for water supply (domestic and industrial)","g) Financing for wastewater treatment","h) Financing for desalination of seawater","i) Financing for rainwater harvesting","j) Financing for natural systems (e.g. wetlands, floodplains and catchment restoration)","a) Government budget allocation (as % of GDP) for water resources development","b) Grants and loans from aid agencies for water resources development","c) Investments from International Financing Institutions (e.g. World Bank) for water resources development","d) Investments from private sources (e.g. banks and private operators, non-profit) for water resources devpt.","e) Revenues (e.g. from water use charges/tariffs) used for water resources development","f) Payments for ecosystem services and related benefit/cost transfer schemes ","a) Improved policy, strategic planning and legal frameworks - Economic devpt objectives  impact in past 20 years","a) Improved policy, strategic planning and legal frameworks - Social devpt objectives impact in past 20 years","a) Improved policy, strategic planning and legal frameworks - Environmental objectives  impact in past 20 years","a) Improved policy, strategic planning and legal frameworks - Overall national devpt impact in past 20 years","b) Improved governance and institutional frameworks - Economic devpt objectives  impact in past 20 years","b) Improved governance and institutional frameworks - Social devpt objectives impact in past 20 years","b) Improved governance and institutional frameworks - Environmental objectives  impact in past 20 years","b) Improved governance and institutional frameworks - Overall national devpt impact in past 20 years","c) Improved management instruments - Economic development objectives  impact in past 20 years","c) Improved management instruments - Social development objectives impact in past 20 years","c) Improved management instruments - Environmental objectives  impact in past 20 years","c) Improved management instruments - Overall national development impact in past 20 years","d) Improved infrastructure development - Economic development objectives  impact in past 20 years","d) Improved infrastructure development - Social development objectives impact in past 20 years","d) Improved infrastructure development - Environmental objectives  impact in past 20 years","d) Improved infrastructure development - Overall national development impact in past 20 years","List the outcomes and key results achieved as a result of implementing integrated approaches to the devpt, management and use of water resources.","Briefly list constraints or obstacles that your country has experienced in implementing integrated approaches to water resources management.","a) Water for agriculture","b) Water for domestic use","c) Water for industry","d) Water for energy","e) Water for ecosystems / environment","f) Water for growing cities","a) Floods","b) Droughts","c) Water scarcity (surface water)","d) Water scarcity (groundwater)","e) Water quality (surface water)","f) Water quality (groundwater)","a) Water for agriculture","b) Water for domestic use","c) Water for industry","d) Water for energy","e) Water for ecosystems / environment","f) Water for growing cities","a) Floods","b) Droughts","c) Water scarcity (surface water)","d) Water scarcity (groundwater)","e) Water quality (surface water)","f) Water quality (groundwater)","a) Institutional capacity at national level","b) Institutional capacity at sub-national level","c) Transboundary capacity at international level","d) Transboundary capacity at national/sub-national level","e) Management through private enterprise","f) Stakeholder participation","g) Coordination between levels and types of management","a) Coordination between sectors at national level","b) Coordination between sectors at sub-national level","a) Legislation","b) Infrastructure development","c) Financing of water resources management","d) Financing of infrastructure","a) Monitoring the resource","b) Knowledge sharing","a) Disaster management","b) Climate change adaptation management","c) Water use efficiency management","a) Institutional capacity at national level","b) Institutional capacity at sub-national level","c) Transboundary capacity at international level","d) Transboundary capacity at national/sub-national level","e) Management through private enterprise","f) Stakeholder participation","g) Coordination between levels and types of management","a) Coordination between sectors at national level","b) Coordination between sectors at sub-national level","a) Legislation","b) Infrastructure development","c) Financing of water resources management","d) Financing of infrastructure","a) Monitoring the resource","b) Knowledge sharing","a) Disaster management","b) Climate change adaptation management","c) Water use efficiency management","Open-Ended Response","1= online (SurveyMonkey); 2=email/fax","\u0000","\u0000","\u0000","\u0000","\u0000","Name:","Email address:","Job title:","Ministry/Department:","Telephone number:","Address line 1:","Address line 2:","Country:","Name:","Email address:","Job title:","Ministry/Department:","Telephone number:","Address line 1:","Address line 2:","Country:","1 = I confirm that I am satisfied with my answers and wish to submit the questionnaire to UN-Water.",null,"Responses check",null,"Internal comments (not for distribution)"]
["Afghanistan",null,null,null,null,null,null,null,null,null,null,null,null,null,null,null,null,null,null,null,null,null,null,null,null,null,null,null,null,null,null,null,null,null,null,null,null,null,null,null,null,null,null,null,null,null,null,null,null,null,null,null,null,null,null,null,null,null,null,null,null,null,null,null,null,null,null,null,null,null,null,null,null,null,null,null,null,null,null,null,null,null,null,null,null,null,null,null,null,null,null,null,null,null,null,null,null,null,null,null,null,null,null,null,null,null,null,null,null,null,null,null,null,null,null,null,null,null,null,null,null,null,null,null,null,null,null,null,null,null,null,null,null,null,null,null,null,null,null,null,null,null,null,null,null,null,null,null,null,null,null,null,null,null,null,null,null,null,null,null,null,null,null,null,null,null,null,null,null,null,null,null,null,null,null,null,null,null,null,null,null,null,null,null,null,null,null,null,null,null,null,null,null,null,null,null,null,null,null,null,null,null,null,{"$f":"(COUNTIF(FX3,\">0\")-(COUNTIF(GT3,\">0\")))","v":0}]
["Albania",2,2,2,2,2,2,2,4,2,2,4,3,3,5,1,1,1,5,4,4,5,5,5,5,5,1,5,3,3,3,5,4,4,2,2,2,2,2,1,1,2,2,2,1,2,2,1,2,1,2,2,1,1,2,2,2,4,1,2,2,2,2,2,2,2,1,2,1,1,2,2,2,2,2,2,2,1,2,4,4,1,1,1,2,2,4,2,3,4,4,1,1,2,3,3,3,1,1,1,3,2,3,3,3,3,3,3,3,3,3,3,3,3,3,3,"• Approximation of lows with EU legislation;  • Strengthening capacity at central and local level in management of water recourses;   • Income growth in state budget, as result of increased efficiency of use;  • Reduce of pollution in surface and bathing water;   • Reduce of losses in water supply network;    • Increased number of population connected to the water supply and sanitation network;    • Improve the protection of rivers banks, by reducing the use of river gravel;    • Poverty reduction;","• Weak financial resources;   • Legal framework not relevant with EU;   • Lack of strategic document s for water resources management;     • Overlapping of competences between the water management structures;     • Weak capacity for water management;      • Lack of electronic archive on water resources;   • Lack of basin management plan:   • Weak monitoring system;     • Insufficient system for distribution of drinking water",4,5,3,5,4,4,4,3,4,3,4,4,4,5,4,5,4,4,4,3,4,4,4,3,4,3,3,3,4,4,4,4,3,5,5,4,4,3,3,4,3,4,4,4,4,4,4,4,4,4,4,5,5,4,5,4,4,4,3,4,null,2,null,null,null,null,null,"Margarita LUTAJ","mlutaj@moe.gov.al","Specialist on Water Sector","Ministry of Environment, Forestry and Water Administration, Albania","00 355 69 20 78 468","No 27,  Rr DURRES",null,"Albania",null,null,null,null,null,null,null,null,1,null,0]
["Algeria",5,5,6,1,5,1,1,5,5,5,5,5,2,null,2,3,4,2,5,1,5,1,1,6,2,5,6,5,1,1,5,1,2,4,4,3,4,4,5,2,5,6,3,1,4,5,4,5,2,2,4,3,3,3,6,5,5,2,6,5,4,2,3,3,5,4,2,2,4,5,6,6,6,5,5,1,5,4,6,5,6,3,2,4,4,null,4,4,4,4,4,4,4,4,2,3,2,5,1,4,4,3,4,5,4,4,4,3,3,3,4,4,4,3,4,"Elaboration d'un plan national de l'eau.   Mise en place de 5 agences de bassins hydrographiques.  Promulgation du 2005...  Refonte du organizational...    Please see scanned version of the submitted questionnaire for the full version of this response in French.","Occurence de cycles.  Insuffisauce des méchanismes et instruments.  Infrastructures de distribution de l'eau potable.  Insuffisauces de capacites nationales d'ingeniere.    Please see scanned version of the submitted questionnaire for the full version of this response in French.",null,4,4,3,null,5,5,5,5,5,5,5,null,5,5,4,3,5,4,5,1,1,2,1,4,4,1,1,1,null,1,4,4,1,4,1,1,5,1,4,4,4,1,1,3,3,3,3,3,3,3,1,1,1,1,1,3,1,2,2,null,2,null,null,null,null,null,"TAIBI Rachid","anrh@anrh.dz","Director","Ministry of water resources","+213 21 542559","ANRH- 40, Avenue Mohamedi- Bir ","Mourad Rais- Alger - Algéria","Algeria",null,null,null,null,null,null,null,null,1,null,0]
["Andorra",5,5,5,1,5,3,3,5,1,3,1,3,1,3,3,1,5,5,5,5,4,4,4,4,5,6,5,5,4,4,3,3,5,6,6,1,5,1,2,4,4,6,4,5,5,5,5,1,6,4,4,4,2,4,3,5,5,5,6,4,6,6,6,3,5,4,5,5,4,5,5,1,4,5,1,6,5,5,6,6,1,4,3,5,1,6,5,5,6,6,1,1,4,4,2,2,4,4,4,3,5,5,4,3,4,5,2,3,4,5,4,4,5,5,5,"- Drinking water treatment  - Water supply (quality and quantity) upgraded  - Wastewater treatment  - Rivers water quality improved  - Knowledge improved in groundwater  - Knowledge improved in resource management  - Resource and water uses quantified  - Knowledge improved in hydrological system and floods  - Etc.","- Economic costs  - Etc.",2,3,2,3,3,4,4,2,2,2,3,4,4,5,4,4,5,5,5,4,4,4,5,4,5,4,5,4,3,3,4,4,3,5,4,3,3,5,5,4,4,4,4,5,5,4,3,5,5,5,5,3,5,4,3,5,5,5,5,5,null,1,null,null,null,null,null,"Carles MIQUEL","carles_miquel@govern.ad","Head of the water quality unit","Ministry of the Environment, Agriculture and Natural Heritage","(00) (376) 875700","c\\ Prat de la Creu, 62-64","AD500 - Andorra la Vella","ANDORRA",null,null,null,null,null,null,null,null,1,null,0]
["Angola",5,5,4,4,2,1,1,2,5,3,1,5,4,3,4,4,2,4,5,5,4,2,1,2,2,2,2,2,2,1,2,1,1,2,2,2,2,2,1,1,2,2,2,1,1,2,1,1,2,1,1,1,4,1,2,2,2,4,4,4,2,2,1,1,5,1,1,1,1,4,1,1,2,null,3,5,1,1,5,1,1,1,2,2,5,5,4,1,5,1,1,1,2,4,3,3,2,1,2,1,2,3,2,2,3,3,3,3,3,3,3,3,3,2,3,"-As far as the Republic of Angola is concerned it is to early to speak about the implementation of integrated approaches to development, management and use of Water Resources. For many years, since independence in November 1975, very little attention was paid to Water Resources management at national level. Most of the attention was paid to water supply of provincial capital cities.    -Only in June 2002, the Government of Angola passed the Water Law. Regulations to emanated from the Water Law are still under preparation. In 2008 was created the National Directorate of Water Resources (DNRH) within the Ministry of Energy and Water. DNRH is currently the entity in charge of the management of Water Resources at National level.    -During the last quarter of 2010 the Government of Angola approved the creation of the National Institute for Water Resources Management (INARH). INARH  is the body who will execute all government policy and strategy towards the implementation of integrated Water Resources management countrywide.","-The lack of human capacity is one of the main constraints for the implementation of integrated approaches to Water Resources management. The lack of appropriate regulations is also seen as another constraint to the implementation of integrated approaches to Water Resources management.    -The unclear understanding of IWRM by some local actors is also a constraint.    -The reduced number of River Basin Authorities / River Basin Organizations also hinders the implementation of integrated approaches to Water Resources management.",4,5,3,4,3,5,2,2,2,2,4,4,3,5,3,4,4,5,3,3,3,3,5,5,5,4,4,4,1,4,4,3,3,5,4,4,4,4,4,4,3,2,3,3,4,4,3,4,3,4,4,4,null,4,5,3,3,4,4,3,null,2,null,null,null,null,null,"Manuel Quintino","quintinos@nexus.ao; manuel_quintino59@yahoo.com.br","National Director","Energy and Water / Water Resources","+ 244 222 339 988 / + 244 924 986 232","-","-","-",null,null,null,null,null,null,null,null,1,null,0]
["Antigua and Barbuda",3,1,6,1,2,1,2,3,1,4,4,null,3,2,3,1,1,1,1,1,1,3,2,2,1,1,2,4,3,2,2,2,1,5,1,2,1,4,4,2,2,6,4,2,5,5,2,2,3,2,2,2,2,4,3,1,2,2,5,5,4,5,3,4,4,4,2,4,4,2,2,2,2,4,2,1,4,4,5,2,5,6,2,2,2,1,4,4,5,2,5,6,4,2,4,2,4,4,2,2,3,3,3,3,3,3,3,3,3,2,3,3,3,2,3,"1. We were able to identify interest of stakeholders – with minor changes to operation.  We were able to improve source.  2. By sharing resources we were able to get more accomplished.  3. Aided in planning future infrastructural needs.","1. Overcoming stakeholders perceptions and years of mistrust.",4,5,3,2,2,2,5,5,4,4,4,3,2,4,4,3,3,3,5,4,4,4,5,4,4,1,1,1,2,3,4,3,1,4,5,4,4,4,3,4,3,3,4,3,3,3,4,4,5,4,3,4,5,5,5,5,4,5,5,5,null,2,null,null,null,null,null,"Ivan Rodrigues","ivan@apua.ag","Manager, Apua Water Division","Antigua Public Utilities Authority","(268)480-7170","P.O. Box 416","St. John’s","Antigua",null,null,null,null,null,null,null,null,1,null,0]
["Argentina",null,null,null,null,null,null,null,null,null,null,null,null,null,null,null,null,null,null,null,null,null,null,null,null,null,null,null,null,null,null,null,null,null,null,null,null,null,null,null,null,null,null,null,null,null,null,null,null,null,null,null,null,null,null,null,null,null,null,null,null,null,null,null,null,null,null,null,null,null,null,null,null,null,null,null,null,null,null,null,null,null,null,null,null,null,null,null,null,null,null,null,null,null,null,null,null,null,null,null,null,null,null,null,null,null,null,null,null,null,null,null,null,null,null,null,null,null,null,null,null,null,null,null,null,null,null,null,null,null,null,null,null,null,null,null,null,null,null,null,null,null,null,null,null,null,null,null,null,null,null,null,null,null,null,null,null,null,null,null,null,null,null,null,null,null,null,null,null,null,null,null,null,null,null,null,null,null,null,null,null,null,null,null,null,null,null,null,null,null,null,null,null,null,null,null,null,null,null,null,null,null,null,0]
["Armenia",5,2,5,2,5,4,2,2,2,2,5,4,2,2,3,3,2,2,2,2,2,2,2,2,2,2,4,4,2,2,2,2,2,3,2,2,2,2,2,2,2,2,2,2,2,2,2,2,2,2,3,2,2,2,2,2,2,3,3,2,3,1,2,2,3,2,2,1,1,2,2,2,2,2,2,2,2,2,2,2,null,null,2,2,2,2,2,2,2,2,null,null,2,3,4,4,2,2,1,3,3,3,3,3,3,3,3,2,2,2,2,2,2,2,2,"- The legal issues related to the Water Resources Management (policy and strategy) are developed at national level. However they need to be developed at Basin (6 Basin Management Organization) level as well.     - State Water Cadastre is established (Date Warehouse).","Because of the lack of financial funds the Plans of Basin Management for 6 Basin Management Organization (BMOs) are not processed. This because an obstacle for the decentralization of the Water Resources Management.",4,3,2,2,4,2,2,3,4,4,3,3,4,4,3,3,4,3,3,3,4,4,3,3,4,3,3,2,3,3,3,3,3,3,3,4,4,3,3,3,3,3,4,4,4,4,4,4,4,4,4,4,4,4,4,4,4,4,4,4,"- Existence of computer program for supporting of decision making.    - In Armenia, the background of the development and implementation in that program is created (State Water Cadastre, Date Warehouse and GIS system), but the program is not develop.",2,null,null,null,null,null,"Volodya Narimanyan","narimanyan59@mail.ru","Deputy Head of Water Resources Management Agency","Ministry of Nature Protection","/+37410/ 54 08 94","3rd Government building, Republic Square","0010, Yerevan","Armenia","Gayane Hovsepyan","hovgayush@list.ru","Leading specialist of Water Cadastre and Monitoring division of the Water Resources Management Agency","Ministry of Nature Protection","/+37410/ 54 08 75","3rd Government building, Republic Square","0010, Yerevan","Armenia",1,null,0]
["Australia",6,6,6,5,5,1,5,5,1,6,1,5,5,1,2,1,2,5,1,1,6,6,6,6,6,6,5,5,1,1,2,2,null,6,4,6,6,6,6,6,6,6,6,6,6,6,6,6,6,6,6,6,6,6,6,6,6,6,6,5,6,4,5,5,4,5,4,5,5,5,5,1,5,5,6,6,6,6,6,6,6,6,6,6,6,6,6,6,6,6,6,6,6,4,2,2,4,4,4,4,4,4,4,4,4,4,4,4,4,4,4,4,4,4,4,"1. The Australian National Water Initiative (NWI) of 2004 is the blueprint for water reform in Australia and represents consensus on the national policy direction with a focus on implementing water resource planning and market mechanisms to drive economically productive activity and environmental outcomes. It has been responsible for significant reform, at all levels of government.   2. The NWI has spurred many reforms to improve the quality and transparency of water management in Australia. Improvements to Water Plans, Water Registers, market rules and public accountability reporting, and the inclusion of public benefit and environmental outcomes into water planning have been key outcomes of the NWI.  3. One of the key impacts of the NWI Planning and Entitlements framework has been to unlock the commercial value embodied in access to water.  The NWI bolstered legal reforms that set out secure entitlements and helped to develop the regulatory planning framework to support these property rights.   4. In the context of statutory water planning, entitlements provide greater certainty, under variable rainfall conditions, as the delivery of available water under a statutory plan creates a transparent process for allocating water on an annual basis based on water availability.  The entitlements can be used as security against loans, or sold in whole or in part to provide income without requiring the sale of land.  This system of entitlements and allocations has put decision making power into the hands of entitlement holders allowing for year by year decisions on allocations (including trade) and providing a great deal of financial and resource flexibility.  The operation of the market has further allowed water to move to high value uses, such as the irrigation of high capital investment agriculture over water intensive lower value cropping.  5. The NWI provides for the development of markets in water access entitlement products and encourages trading to provide a strong mechanism for water reform, allowing water to flow to its most productive use. The NWI contributes to sustainable water management by creating policy settings that encourage growth in water trade.   6. The 1994 Council of Australian Governments (COAG) water reform framework began the process of separating water entitlements from property rights in land, separating the functions of water delivery from that of regulation and making explicit provision for environmental water.  The NWI built on these reforms and facilitated the efficient operation of the water market, leading to the introduction of significant flexibility (e.g. separation of delivery and use approvals from the entitlement to water) and giving water users the ability to derive income from both permanent trade in water entitlements and trade in seasonal allocations.  Water trading has assisted irrigators to manage their way through the recent extended drought.  Following from the NWI, the growth in markets and trade has resulted in a high level of productivity in irrigated agriculture despite difficult and extensive drought conditions in south-eastern Australia.    7. Governments have also entered the water markets. The purchase of water (buy-back) by the national government has become a major tool to bring over-allocated water systems back to health while minimising impacts on individual water entitlement holders. By participating in water markets, governments can take action to rebalance over-allocated river systems.  8. The NWI requirement for water planning to include surface and groundwater systems of high conservation value and to manage these systems to protect and enhance those values (NWI Cl. 25 (x) provides that water access entitlements and planning frameworks will: “identify and acknowledge surface and groundwater systems of high conservation value, and manage these systems to protect and enhance those values”) has supported joint work between the state, territory and national governments to develop nationally consistent methods for classifying aquatic ecosystems, identifying those of high ecological value and how they function, and for assessing their condition.  Maintaining the health of key environmental assets and key ecosystem functions is integral to addressing aquatic ecosystem health.    9. The NWI’s focus on the need for adequate measurement, monitoring and reporting systems to support public and investor confidence in water management and the market prompted initial work on national water accounting standards.  The Bureau of Meteorology is now using state water account information to create a national water account as a way of reporting on the status of Australia’s water resource.    10. In line with NWI commitments on knowledge and capacity building, national efforts have delivered foundational studies on the state of Australian water resources (e.g. http://www.environment.gov.au/water/policy-programs/sustainable-yields/index.html - CSIRO Sustainable Yields studies) and begun reforms to improve monitoring and data collection. This area is still developing and has required substantial national investments through ‘Water for the Future’ and legislative reform to improve national water information that can support decision making in water management for many different types of users.    11. The national Water Act 2007 builds on the NWI. It is an important element in Australia’s water reform as it:   • establishes an independent Murray-Darling Basin Authority which is responsible for the development and enforcement of the Basin Plan, a whole-of-basin plan for water resource management across the several states and territories in the Murray Darling Basin. The Basin Plan will set environmentally sustainable limits on the amount of water that can be taken from the Basin’s water resources and take into account economic, social and environmental outcomes.     • provides for the Australian Competition and Consumer Commission to enforce rules around the water market and water charges in the Murray Darling Basin.  • establishes a Commonwealth Environmental Water Holder to manage the Australian Government’s environmental water entitlements.  • expands the role of the Bureau of Meteorology to collect and publish water information and establish a National Water Account.","1. A key issue Australia is grappling with in ensuring momentum in its water reform agenda is dealing with ‘reform fatigue’. With such large scale and comprehensive reforms having occurred and continuing to occur there is potential for the public commitment to flag due to the continuing nature of the reform. In water reform, while all state and territory governments agree to the reform agenda, implementation has been slower than desirable (although nevertheless significant) and patchy across jurisdictions, due both to the scale and complexity, and the resource demands.  2. The uneven implementation of the NWI has resulted in the slow delivery of water plans in all catchments in many states.  There are plans in place for most key catchments or water resources but not all necessary plans exist yet.  Where they do exist, this has improved transparency of approach and decision making on allocations (leading to better environmental outcomes).  Where not in place there is less certainty for irrigators, they may be unable to trade, and there may not be clear pathways to return overused systems to sustainable use.  3. While the NWI provides a framework for more open trade in water access entitlement products, some states continue to limit trade.",4,4,3,3,4,4,3,5,4,4,3,3,5,5,5,5,5,5,4,5,5,5,4,4,4,4,1,5,3,4,4,4,3,2,4,3,3,4,4,3,4,4,5,5,3,2,3,4,4,3,3,3,3,3,3,4,4,4,4,4,null,2,null,null,null,null,null,"Kerry Smith","Kerry.smith@environment.gov.au","Assistant Secretary","Department for Sustainability, Environment, Water, Population and Communities","+61 2 6274 1904","GPO Box 787","Canberra, ACT 2601","Australia","Katy Nicholls","Katy.nicholls@environment.gov.au","Director","Department for Sustainability, Environment, Water, Population and Communities","+61 2 6274 1797","GPO Box 787","Canberra, ACT 2601","Australia",1,null,0]
["Austria",null,null,null,null,null,null,null,null,null,null,null,null,null,null,null,null,null,null,null,null,null,null,null,null,null,null,null,null,null,null,null,null,null,null,null,null,null,null,null,null,null,null,null,null,null,null,null,null,null,null,null,null,null,null,null,null,null,null,null,null,null,null,null,null,null,null,null,null,null,null,null,null,null,null,null,null,null,null,null,null,null,null,null,null,null,null,null,null,null,null,null,null,null,null,null,null,null,null,null,null,null,null,null,null,null,null,null,null,null,null,null,null,null,null,null,null,null,null,null,null,null,null,null,null,null,null,null,null,null,null,null,null,null,null,null,null,null,null,null,null,null,null,null,null,null,null,null,null,null,null,null,null,null,null,null,null,null,null,null,null,null,null,null,null,null,null,null,null,null,null,null,null,null,null,null,null,null,null,null,null,null,null,null,null,null,null,null,null,null,null,null,null,null,null,null,null,null,null,null,null,null,null,0]
["Azerbaijan",4,4,4,4,4,2,2,2,4,4,4,4,2,4,4,4,4,4,2,4,4,2,2,4,2,2,4,4,4,2,4,2,2,2,2,4,4,4,4,4,4,4,4,2,2,4,2,4,4,4,4,2,5,4,2,4,2,5,5,5,5,5,5,5,4,5,4,2,2,null,4,4,5,4,4,4,4,2,4,4,2,1,2,4,4,4,4,2,4,4,2,1,2,4,1,4,1,4,1,5,4,5,4,4,4,5,4,4,4,4,4,4,4,4,4,"As a result of adopted Comprehensive Plan on Improvement of Ecological Situation of Azerbaijan Republic for 2006-2010 and National Programme of Sustainable Social-Economic  Development of Country as well as to achieve the goals of millennium development are being implemented wide projects on renovation of sanitation systems, reconstruction of old treatment systems and construction of new ones as well as  large projects on water supply to refine drink water allocation. It is aimed that each citizen have to access to clean and qualified water by 2015.","• Azerbaijan is located in downstream of the South Caucasus basin and 70 % of it’s water flow is composing outside of the territory of country. Because of it main rivers like Kura and Araz  are very contaminated and this situation creates ecological tension as nearly 80 % of water for drink and agriculture is taken from this water resources. Moreover there is a high risk of lost of renovation abilities of rivers.    • This should be mentioned that Azerbaijan is a party of the Convention on Protection and Use of Transboundary Watercourses and International Lakes but none of the upstream countries are party of it.",3,3,1,1,1,3,4,3,3,1,4,1,4,2,2,4,3,4,5,4,4,3,5,4,3,4,3,3,2,1,1,2,3,2,1,1,1,1,2,1,3,1,1,1,2,2,2,1,2,1,2,2,1,1,1,1,1,1,2,2,null,2,null,null,null,null,null,"Mr. Mutallim Abdulhasanov ","mutallim@baku.az","Head of Ecology Policy Sector","Ministry of Ecology and Natural Recourses","99 4125983954",null,null,"Azerbaijan",null,null,null,null,null,null,null,null,1,null,0]
["Bahamas",4,3,4,3,4,4,4,5,1,3,3,4,4,2,3,2,3,3,5,1,1,3,1,2,1,2,5,5,5,3,2,2,2,5,5,3,3,3,2,5,5,4,4,4,5,2,2,4,4,3,4,2,2,4,5,1,2,4,2,5,5,4,4,5,3,4,5,3,2,3,3,3,3,4,4,2,5,4,6,5,6,4,3,5,4,2,5,4,5,4,6,3,3,5,4,3,3,3,2,4,3,3,4,3,3,3,4,3,3,3,3,4,3,3,4,"Per the 2004 US Army Corp of Engineers Assessment of the Water Resources for The Bahamas: \"Freshwater resources are finite and vulnerable in The Bahamas. The extent of freshwater resources is limited to very fragile freshwater 'lenses' in the shallow karstic limestone aquifers.\" \"The availability of water is a limiting factor for economic and social development.\"    Outcomes and Key Results:    • Treating ground water as a strategic national resource, promoting the protection from over-abstraction and pollution.  • Regulatory instruments proposed that should be enacted as soon as possible. An Act of Parliament required to enact these instruments.  • Ground water threats particular to each island addressed, using the appropriate proposed regulatory instruments.  • Establishment of a new environmental regulatory body to regulate certain activities involving ground water abstraction, which give rise to ground water pollution (pending). Established Ministry of the Environment to regulate such activities.","Existing Water & Sewerage Act of 1976 - An Act to establish a Water and Sewerage Corporation for the grant and control of water rights, the protection of water resources, regulating the extraction, use and supply of water, the disposal of sewage and for connected purposes.    Required upgrade/revisions to the existing Act (water laws), towards a more integrated water resources management approach is pending!    Act of Parliament Required!",2,5,3,2,3,3,4,5,1,4,2,5,2,5,4,3,3,4,4,5,3,5,3,5,5,3,1,1,2,2,3,4,3,5,5,4,4,4,3,4,5,4,4,3,1,1,2,1,2,4,3,3,3,3,3,2,2,4,5,3,"Further documentation on the required advancement of IWRM at the National Level should be emphasised.    For the Bahamas, although the Constitution and the provisions of the WSC Act, 1976 lay a good foundation for the Water & Sewerage Corporation or a specified regulator to consider IWRM, IWRM is presently not clearly defined in any one piece of legislation.    IWRM shall have to implemented at the Regional Level and filter down to the National Level.",1,null,null,null,null,null,"John A Bowleg II","wcjbowleg@wsc.com.bs, johnabowleg@aol.com","Hydrologist/Engineer","Water & Sewerage Coporation (WSC)","242-302-5607","#87 Thompson Blvd","PO Box N-3905, Nassau NP","Bahamas",null,null,null,null,null,null,null,null,1,null,0]
["Bahrain",null,null,null,null,null,null,null,null,null,null,null,null,null,null,null,null,null,null,null,null,null,null,null,null,null,null,null,null,null,null,null,null,null,null,null,null,null,null,null,null,null,null,null,null,null,null,null,null,null,null,null,null,null,null,null,null,null,null,null,null,null,null,null,null,null,null,null,null,null,null,null,null,null,null,null,null,null,null,null,null,null,null,null,null,null,null,null,null,null,null,null,null,null,null,null,null,null,null,null,null,null,null,null,null,null,null,null,null,null,null,null,null,null,null,null,null,null,null,null,null,null,null,null,null,null,null,null,null,null,null,null,null,null,null,null,null,null,null,null,null,null,null,null,null,null,null,null,null,null,null,null,null,null,null,null,null,null,null,null,null,null,null,null,null,null,null,null,null,null,null,null,null,null,null,null,null,null,null,null,null,null,null,null,null,null,null,null,null,null,null,null,null,null,null,null,null,null,null,null,null,null,null,0]
["Bangladesh",6,1,2,1,6,1,2,6,6,2,6,6,6,6,6,2,2,2,1,6,6,6,2,6,2,1,5,5,5,3,6,6,4,3,3,5,5,6,1,6,5,5,6,2,5,5,2,2,6,6,2,2,6,6,5,5,2,6,6,6,6,4,4,4,6,6,5,3,3,5,5,2,1,6,6,6,6,6,5,5,2,2,2,6,6,6,6,6,5,5,3,3,4,4,4,4,1,3,1,5,4,3,4,3,3,3,3,4,4,3,3,5,4,3,4,"The list of outcomes and key results achieved are:  (i)  Participatory development and management process established in water resources development projects  (ii) Improved coordination mechanism developed among the co-sectoral agencies  (iii) Ensured optimal utilization of the natural resources  (iv) Ensured sustainability of the projects in long term   (v) Improved awareness and belongingness developed among the stakeholders/water managers","The list of constraints are:  (i) Water managers/professionals are not adequately trained on IWRM knowledge  (ii) Lack of participation among interagency stakeholders and multidisciplinary planners  (iii) Lack of adequate funds for application of integrated approach  (iv) Lack of modern tools and techniques",4,5,4,4,5,5,5,3,5,5,4,4,5,5,5,4,1,1,4,4,5,5,5,5,4,4,4,4,3,4,5,5,5,4,5,5,5,5,5,4,5,4,4,4,3,3,4,4,4,4,4,4,3,3,3,4,4,4,4,4,null,2,null,null,null,null,null,"Md. Abdul Wadud Bhuiyan","wadudm@yahoo.com","ADG (Planning)","MoWR/BWDB","+880-2-9550253 (Office)","Room no. 210, WAPDA Building (2nd floor)","Motijheel C/A, Dhaka-1000","Bangladesh","Md. Waji Ullah","mdwajiullah@yahoo.com","Executive Engineer (Civil)","MoWR/BWDB",{"$f":"880-1715833006","v":-1715832126},"WAPDA Building (3rd floor)","Motijheel C/A, Dhaka-1000","Bangladesh",1,null,0]
["Barbados",5,null,2,null,2,2,2,4,null,4,4,3,4,2,3,4,2,null,null,1,1,5,1,2,1,1,2,4,2,2,2,2,2,3,null,2,null,2,5,2,4,4,4,2,5,2,2,2,4,2,4,2,4,4,4,1,2,2,2,4,5,5,5,4,2,2,4,4,2,4,4,4,2,4,4,null,5,4,5,4,4,4,2,5,4,null,5,4,5,4,4,4,2,null,5,5,1,1,2,3,4,3,4,3,3,4,3,2,2,3,3,3,3,3,3,"• Wider understanding of available water resource  • Need for controlled and managed landuse to protect groundwater quality  • High level support for improved water resources management  • Incorporation of water resources concerns into national development policies  • Greater acceptance of need for efficient water use by most sectors","• Slow decision making  • Limited resources  • Lack of proper understanding of the need for such",4,4,4,2,2,4,4,4,2,5,3,5,3,5,4,3,3,5,5,5,3,5,4,5,4,null,2,1,3,3,4,4,4,4,5,4,5,4,4,4,4,4,5,3,3,3,3,4,4,4,3,4,5,4,4,4,4,4,4,4,null,2,null,null,null,null,null,"Bwalya John Mwansa","John.mwansa@gmail.com","Manager Of Engineering","Ministry of Environment, Water Resources and Drainage","246- 438-9687","Barbados Water Authority. Manager Lodge  Office Complex","Green Hill St. Michael","Barbados",null,null,null,null,null,null,null,null,1,null,0]
["Belarus",null,null,null,null,null,null,null,null,null,null,null,null,null,null,null,null,null,null,null,null,null,null,null,null,null,null,null,null,null,null,null,null,null,null,null,null,null,null,null,null,null,null,null,null,null,null,null,null,null,null,null,null,null,null,null,null,null,null,null,null,null,null,null,null,null,null,null,null,null,null,null,null,null,null,null,null,null,null,null,null,null,null,null,null,null,null,null,null,null,null,null,null,null,null,null,null,null,null,null,null,null,null,null,null,null,null,null,null,null,null,null,null,null,null,null,null,null,null,null,null,null,null,null,null,null,null,null,null,null,null,null,null,null,null,null,null,null,null,null,null,null,null,null,null,null,null,null,null,null,null,null,null,null,null,null,null,null,null,null,null,null,null,null,null,null,null,null,null,null,null,null,null,null,null,null,null,null,null,null,null,null,null,null,null,null,null,null,null,null,null,null,null,null,null,null,null,null,null,null,null,null,null,0]
["Belgium",6,6,6,6,5,5,5,6,6,6,6,6,2,6,6,1,6,2,6,6,6,6,6,6,6,6,6,6,6,6,6,6,1,5,5,5,5,6,6,6,5,6,6,2,5,5,4,2,4,2,2,2,6,6,2,5,5,6,6,6,6,6,6,4,5,5,6,6,5,6,6,5,6,6,1,5,5,5,6,5,1,5,4,6,1,5,6,5,6,6,1,5,4,4,null,null,4,4,2,3,3,4,1,3,3,4,1,3,3,4,1,2,3,4,1,"Division of competences and coordination in Belgium in the field of international water policy.  Division of competences  The competences of the Federal State, the communities and the regions are laid down in the Belgian Constitution and the Special Law of 8 August 1980 on institutional reforms.  Pursuant to this constitutional division of competences, the regions (Walloon Region, Brussels Capital Region and Flemish Region) are on their entire territory competent for following matters regarding the implementation of the international water policy:   1)\twater policy (including drinking water policy);  2)\tland development;  3)\tnature conservation;  4)\tpublic works and transport  5)\tcoastal & territorial waters: infrastructure, mobility (water ways, ports, sea walls, navigation of ships to the ports, the beaconing from and to the ports, rescue services and train services of boats) & fisheries  The Federal Government is competent for following environmental matters:  1)\tfor the entire Belgian territory: product regulation (and authorisations to put products on the market), protection against ionising radiation, including radioactive waste, the economic aspects of drinking water provision (i.e. the establishment of maximum prices and the approval of price increases);  2)\tfor coastal and territorial waters (from lowest low-waterline): environmental competences.   Coordination  The federal and regional competences are exclusive, equivalent material competences, without any hierarchy. A federal and a regional legal norm have the same legal value.    For the exercise of these competences in implementation of the international water policy, internal Belgian coordination is necessary. The coordination is established on 2 levels on the basis of legally binding instruments):  1) In a broad international perspective, formalised in the Scheldt and Meuse treaties (Treaties of Ghent 03/12/02). The treaties were concluded by the Federal State and the 3 regions, together with the neighbouring countries with which these respective river basins are shared (the regions are competent to sign and ratify treaties within their material competences).  In accordance with article 3 of the EU Water Framework Directive, the transnational coordination for the international river basin districts of the Scheldt and the Meuse takes place in the Scheldt Commission and the Meuse Commission.     2) In addition, for the regular and systematic internal Belgian coordination of the environmental policy, there is a consultative body, the Coordination Committee International Environmental Policy (CCIEP). The CCIEP was established by the “Cooperation agreement of 5 April 1995 between the Federal State, the Flemish Region, the Walloon Region and the Brussels Capital Region regarding international environmental policy”. This cooperation agreement is legally binding for these authorities after ratification by each authority by law, decree or ordonnance.   The secretary and presidency of the CCIEP is being acted by the Federal State. The CCIEP has established several technical working groups that are responsible for the coordination of specific environmental issues. Within this framework, the CCIM Steering Group Water (presided by the Flemish Region, i.c. the Flemish Environment Agency) is the consultative body that is in charge of the necessary coordination of the implementation of the international water policy between the different competent authorities in Belgium. Cf. article 1, 3° of the cooperation agreement: “the consultation in order to come to a coordinated execution of recommendations and decisions of international organisations”.    FLEMISH REGION  The improvement of the water quality has been a major component of the Flemish environmental policy for many years, not least inspired by the European directives including the Urban Waste Water Directive. The Water Framework was added to this in 2000, which is intended to bring the surface water (and groundwater) to a ‘good status’. For the surface water this means both having a good chemical and a good ecological status. One of the obligations of the WFD is the formulation of river basin manage¬ment plans, including measures to achieve those targets.  In October 2010, the Flemish Government endorsed  the Scheldt and the Meuse river basin management plans, and the accompanying measures program for Flanders. These plans include additional measures to Flanders in the coming years will take to the condition of the water to improve. This is not only cleaner water, but also to a good quality of sediments, adequate surface and groundwater, a more natural structure for the water, a healthy flora and fauna in and along the rivers, ...   Water is under pressure in Flanders result of high population density, high urbanization, high degree of industrialization, mainly intensive agriculture, often limited space for watercourses,  The pollutant load with a domestic origin that the Flemish surface waters have to deal with has decreased further in the period 2000-2008 due to the systematic expansion and improvement of the public waste water treatment network. Yet households still have the largest share in the load to the surface water from chemical oxygen demand (COD).   Companies achieved the largest decrease in the period 2000-2005; in 2006 and 2007 there was no clear development. In 2008 and 2009 there was again a clear decrease. Probably the financial-economic crisis played a significant role in this. The small proportion of companies in the pressure on the surface water with COD, nitrogen (N) and phosphorous (P) is remarkable.   The nitrogen losses from agriculture have been at a lower level since 2003 than previously, but in recent years they have been increasing again. The calculated phosphorous losses have decreased since 2000, although in recent years the tempo has slowed. Via fertilisation, agriculture is responsible for the largest share of the total N and P load that gets into the surface water.  In the period 2000-2008 the average oxygen concentration has increased slowly and the average phosphate concentration has decreased. The ammonia concentrations also decreased. These positive developments are in the first place thanks to a decrease in the pressure on the surface water (see the pressure on the surface water from oxygen-binding substances and nutrients).   To improve water quality further, the public waste water treatment system must be expanded further and improved. In addition, a reduction in the losses from agriculture is needed.  In the course of the last two decades the biological quality of the Flemish surface waters has improved slowly but surely. The percentage of measurement locations with an extremely or very bad quality decreased significantly and the percentage with a moderate or good quality increased significantly. The positive developments are the result of the expansion and improvement of the public waste water treatment system and the efforts made by companies and agriculture.  The fish index is an instrument that allows the condition of the fish community to be qualitatively evaluated. A healthy fish community requires in the first place a good physical-chemical water quality; for example, sufficient oxygen and not too many nutrients or toxic substances. Next to this, the structure of a watercourse also plays a major role. Sufficient possibilities for migration, free meandering and natural banks are important elements of this.   At 663 measurement locations sampled in the period 2004-2009, only one achieved an excellent score, while 7 % had a good score. 64 % had an inadequate or bad score. To bring the fish communities in all of the Flemish watercourses to a good status there is therefore a lot of work still to be done.   For 494 measurement locations a comparison can be made between the results from 2004-2009 and those from 1998-2003. Half of the locations have not changed quality class, 28 % have improved and 22 % have become at least one class worse. The percentage measurement locations with a good or excellent quality increased slightly. In net terms there is therefore a slight improvement, even though the relatively large number that get worse is food for thought.    Good ecological status and good ecological potential …  The European Water Framework Directive specifies the ‘good status’ foremost as the objective for the water bodies. For natural surface waters this means, among other things, a good ecological status. For artificial and heavily modified surface waters the targets can be lower (= good ecological potential). The biological quality elements phytoplankton, macrophytes, phytobenthos, macro-invertebrates and fish and a number of hydromorphological, chemical and physical-chemical parameters determine the ecological condition. In the final assessment of a water body the least good score determines the final score (‘one out all out’).    In Flanders there is very little water available   Depending on the method, it appears that on average in Flanders and Brussels there is between 1 100 and 1 700 m³ of water available per person per year. Internationally this is classified as ‘very little’. Only a few Western countries have even less water per inhabitant.  The most important cause of this low water availability is the large population density in Flanders and Brussels. The available water must be shared with a large number of inhabitants, while the surface area is limited. Furthermore there are also no very large rivers flowing into Flanders.   These analyses show once again why, also in Flanders, it is important to deal with the available water economically and efficiently.    Decreasing groundwater levels demand a differentiated approach  The measurement results from 507 series of measurements for the period 1999-2009 were analysed statistically (absolute trends, with respect to TAW). Approximately 40 % showed no statistically significant trend and there are more decreases than increases. Decreasing groundwater levels therefore remain a major problem. In general: the deeper the groundwater level, the more significant the trends, the more increases and the more large decreases. Hence the Sokkel Aquifer, consisting of deep water-bearing layers mainly in East and West Flanders, show both the largest relative increases and decreases. The decreasing trends show that at certain places too much groundwater is still being extracted. The rising trends are probably the result of local measures. Nearly half of the least deep measurement series (depth of first measurement 0-1 m) show a significant decrease. In absolute terms, these are often small decreases, but even the small decreases can have an ecological impact.  Because the trends often differ greatly according to the layer and the area, a tailored approach is needed. Consequently, the groundwater levies policy will be differentiated further with a layer and area factor and the permit policy has been adjusted for the local situation.    Walloon Region  In 2008, over 70 % of the 54 sites of the Walloon watercourses quality monitoring network revealed good to very good biological water quality (diatoms and macro-invertebrates indicators). The number of sites where biological quality of water is found to be moderate to very good has gone up over the past 15 years, largely because of the rise of the treatment rate of waste water, the drop of pollutant discharges, the omplementation of the PGDA (Programme de Gestion Durable de l'Azote en Agriculture) and the ecological restoration of watercourses.   By late 2008, around 85 % of the walloon sewerage network was operational : major investments have been made (± 300 million euros since 2003) to complete the network before 2015 and to renovate the existing defective sewers. On 31/12/2008, Wallonia had 358 urban waste water treatment plants capable of processing a 3,370,000 PE pollution load, which represents a 72 % equipment rate. Since 2000, collective treatment of waste water has almost doubled, thanks to the bringing into service of large-capacity UWWTPs. At the end of 2008, UWWTPs that were still to be installed represented only 8 % of the objectives which needed to be reached at the end of 2005. This is the result of considerable investments (1.6 billion euros) that have been made over the past ten years.  Since 1994, industrial pollution released into walloon watercourses went down by 20 % to 91 % depending on the type of compound.This encouraging trend is the result of the application of a tax on the discharge of industrial waste water, of the end to the most pollutant activities and the effort made by manufacturers in terms of treatment and improving certain processes.   By the end of 2009, the Walloon Region had 190 prevention zones and 4 surveillance zones (groundwater catchment protection areas), whose delimitation has been adopted. Almost all of the prevention zones (182) concern water destined for the public water distribution. They include 383 groundwater points, representing ± 37 % of annual abstraction of drinkable groundwater. The volumes affected by the protection measures have multiplied by 25 since 2001.   Since 2003, the number of water catchment sites and volumes of groundwater affected by the presence of pesticides have been tending to level off. This is probably the result of measures taken both at federal level (e.g. withdrawal of acceptance for certain molecules) and regional level (restricting or banning the use of certain active substances in water catchment protection zones, control of field crop  prayers, plant protection product warning service, awareness-raising campaigns etc.).  More than 85 % of the walloon territory is covered by a river contract (River contracts are participative management structures whose aim is to bring together everyone working in the same water catchment basin, whether they come from a political, administrative, financial, associative or scientific background, in order to define a programme for restoring watercourses and their surrounding areas in a consensual way). The river contracts currently incorporate more than 5,400 actions, the majority of which (66 %) are intended to practically preserve and improve the qualitative (physical, chemical and biological), quantitative, historical and aesthetic aspects of watercourses. They thus contribute significantly to the watercourses reaching a good status by 2015, in accordance with the objectives set by the European water framework directive. In its projects to inform and raise awareness among the general public, the river contract is also a point of reference for the distribution of public enquiries relating to water management in the Walloon Region.","With 204 inhab/km2 (or 2 inhab/ha), the Walloon Region is one of the most densely populated areas in Europe. Nearly 14 % of the land is built on: houses and other buildings, sites of economic activity, infrastructures, public facilities, etc. In terms of the environment, urbanisation exerts different pressures on natural, agricultural and forest resources: an almost irreversible mobilisation of available space, sealing of the soil and changes to water cycles, fragmentation of the area, degradation of natural habitats and the natural landscape and pollution. The utilised agricultural area (UAA) represents 45 % of the land in Wallonia. So agriculture has a very important role to play in terms of managing water resources. Agricultural practices are still quite intensive (quantities of nitrogen fertilizers and pesticides used per ha are above european average values). Moreover, Wallonia was the first region in continental Europe to undergo the Industrial Revolution, and through the 19th century it was a major steel producer, leaving many disused and soil polluted sites.  Budgetary constraints for building UWWT plants and restoring the quality of some watercourses. The costs for building UWWT are now partially covered through the drinking water bill, increasing progressively. There are social measures through the “Walloon Water Social Fund” to help low-income households pay their water bill.  Abstraction from walloon aquifers represents ± 385 million m3 a year, or 70 % of the volumes which are naturally refilled by rain. Most of this abstracted water is destined to be distributed as public drinking water in the Walloon Region as well as in other Regions of the country (for ± 40 %). With a density of water uptakes higher than 18,000 m3/(km2.year), Wallonia  exploits its aquifers more than most other regions in Europe. This situation needs to be put into context with the density of the population and the large proportion of exported volumes to Brussels and the Flemish Region.",2,3,3,3,3,3,4,4,4,4,5,5,4,4,4,3,4,4,5,4,4,4,4,4,3,3,3,3,2,3,3,3,3,3,4,4,4,4,3,4,3,4,3,3,4,4,3,4,5,4,4,4,5,4,5,4,3,5,4,4,null,2,null,null,null,null,null,"Steven Vinckier","s.vinckier@vmm.be","Policy advisor","VMM",486404626,"A. Van de Maelestraat","96 9320 Erembodegem","Belgium","Catherine Latour","Catherine.latour@spw.wallonie.be","Attachée","SPW-DGARNE",null,null,null,null,1,null,0]
["Belize",3,3,3,1,3,1,3,3,2,2,3,3,3,2,2,2,2,2,2,2,2,1,1,3,2,2,2,4,3,4,3,2,4,2,2,2,2,2,2,1,1,2,2,2,1,4,1,3,3,3,3,1,4,6,5,3,2,3,5,1,5,6,3,2,2,4,2,2,2,2,3,3,3,3,3,5,2,3,5,5,6,1,1,3,2,6,1,2,2,2,5,1,1,4,4,4,2,2,2,2,3,5,3,3,3,4,4,2,2,3,3,3,3,4,3,"An integrated management bill has been passed but not yet signed into law. Therefore, there has been very little implementation on the ground.","Greatest constraints are human and financial resources.",1,1,1,1,1,3,2,1,1,1,1,1,4,5,3,5,4,5,3,3,3,3,3,3,3,3,3,3,3,4,4,4,1,3,5,5,2,5,5,5,5,5,1,1,1,1,4,4,4,3,4,4,1,1,1,1,3,5,5,1,"Some questions do overlap  or repeated in a different context.",1,null,null,null,null,null,"Dennis Gonguez","dgonguez@hydromet.gov.bz","Chief Meteorologist","National meteorological service of Belize/ Ministry of Natural Resources and the Environment",{"$f":"501-225-2012","v":-1736},"Philip Goldson International Airport","Ladyville","Belize",null,null,null,null,null,null,null,null,1,null,0]
["Benin",4,4,4,4,4,4,5,5,5,5,5,5,5,5,5,5,5,5,4,4,3,4,4,4,4,5,6,6,6,6,6,6,6,5,5,5,5,5,5,5,5,2,5,2,2,2,2,5,5,5,2,2,5,null,5,3,5,3,2,2,2,2,2,2,2,2,5,2,2,5,null,null,3,4,4,4,4,4,4,4,1,1,1,4,4,4,4,2,null,4,1,2,4,1,4,3,4,1,1,4,4,4,4,4,4,4,4,4,4,4,4,3,3,4,4,"-\tParticipative approaches in water management involving all stakeholders (public private, NGO, users associations municipalities)  -\tEstablishment of a new national water law  -\tEstablishment of a new national water policy,   -\tOn going setting up of water institutions ;   -\tBuilding cooperation with regional water management association ;  -\tPromoting of Integrated Water Resources Management   -\tCommunication et sensitization on IWRM addressed to all stakeholders   -\tImproving water access to communities by building infrastructures","-\tconflicts between publics administrations involved in water management or users ;   -\ta long delay for setting up a new water institutions according to the new national water law  - Financial constraints for sensitization and vulgarization on a new national water law",5,4,4,4,5,5,5,5,5,5,5,5,2,2,2,2,2,2,3,4,4,4,4,4,4,4,4,4,4,5,5,null,null,5,5,5,5,5,5,5,5,5,4,4,4,4,4,4,4,4,4,4,4,4,4,4,4,4,4,4,null,2,null,null,null,null,null,"Pulchérie SIMEON DONOUMASSOU","Simeonp69@yahoo.fr simeonpu69@yahoo.fr","CONSEILLER Technique Juridique du Ministre","Ministère de l’Environnement de l’Habitat et de L’Urbanisme","00 229.97734946","01 BP 3621 Cotonou",null,"Bénin",null,null,null,null,null,null,null,null,1,null,0]
["Bhutan",3,2,3,2,2,3,3,3,3,4,3,3,3,3,3,3,3,3,1,1,2,2,4,2,1,2,3,4,3,3,2,3,3,3,3,3,3,3,3,3,3,3,3,3,3,4,3,2,3,3,3,3,3,3,3,3,3,3,4,3,4,3,3,3,3,3,4,3,3,3,3,3,3,2,2,3,3,3,3,3,3,4,3,2,3,3,2,3,3,3,3,4,3,1,3,2,2,4,2,null,null,null,null,null,null,null,null,null,null,null,null,null,null,null,null,"Yet to be implemented.","The integrated approach is being reflected as the cornerstone on the water Act, and we are hoping to implement this from 2012.",4,4,3,4,5,4,4,4,3,1,4,1,3,4,3,5,5,4,4,4,1,4,4,1,4,4,4,4,3,5,5,5,4,4,4,4,4,3,3,4,4,4,4,3,3,3,3,4,3,null,null,null,null,null,null,null,null,null,null,null,"On #6 , it is very difficult to give a rating. The legislations including the Water Act is under legislation and we are yet to assess if this instrument will have any impacts.",2,null,null,null,null,null,"G. Karma Chhopel","gkchhopel@nec.gov.bt","Chief Enviroment Officer","National Environment Commission","+975 2 323384","P.O Box 466","Thimphu","Bhutan",null,null,null,null,null,null,null,null,1,null,0]
["Bolivia (Plurinational State of)",null,null,null,null,null,null,null,null,null,null,null,null,null,null,null,null,null,null,null,null,null,null,null,null,null,null,null,null,null,null,null,null,null,null,null,null,null,null,null,null,null,null,null,null,null,null,null,null,null,null,null,null,null,null,null,null,null,null,null,null,null,null,null,null,null,null,null,null,null,null,null,null,null,null,null,null,null,null,null,null,null,null,null,null,null,null,null,null,null,null,null,null,null,null,null,null,null,null,null,null,null,null,null,null,null,null,null,null,null,null,null,null,null,null,null,null,null,null,null,null,null,null,null,null,null,null,null,null,null,null,null,null,null,null,null,null,null,null,null,null,null,null,null,null,null,null,null,null,null,null,null,null,null,null,null,null,null,null,null,null,null,null,null,null,null,null,null,null,null,null,null,null,null,null,null,null,null,null,null,null,null,null,null,null,null,null,null,null,null,null,null,null,null,null,null,null,null,null,null,null,null,null,0]
["Bosnia and Herzegovina",3,3,3,4,2,2,2,2,2,3,3,2,2,3,null,null,1,2,3,5,2,2,2,2,2,5,3,2,5,1,1,1,5,4,4,4,5,4,4,4,2,4,4,4,4,4,4,4,4,3,4,2,4,4,2,5,5,5,4,4,4,4,4,4,3,3,2,2,2,3,3,2,3,3,3,3,3,3,3,3,2,2,1,4,4,5,4,4,4,4,1,1,1,4,4,4,1,3,3,3,3,3,3,2,2,2,2,3,3,3,3,2,2,2,2,"- The main problems we have faced while working on water resources:    • Lack of water policies and legislation,  • Insufficiently developed capacities, which are in addition to the split between the entities and cantons,  • Lack of public participation in decision-making in politics and the environment,  • The common institutions that deal with water, forests, environment, health, agriculture, etc.  • Lack of monitoring equipment,  • Lack of communication between the entities, and stakeholders (Government, NGOs, citizens, etc.),  • Lack of economic initiatives (duties, taxes, the principle of \"polluter pays\"),  • Inadequate training and lack of expertise, poor management, lack of staff and financial resources, as well as adequate training,  • Lack of interest in environmental issues, and lack of knowledge of the general public     • Water policy in B&H on national level has not yet been defined and water management strategies as well as river basin management plans have not yet been elaborated. According to the new Water Laws, Entity Ministers are responsible for the preparation of Entity Strategies for water management. In December 2007 Federation of B&H has commenced the elaboration of a 12 years Strategy, which was adopted in the House of Representatives of the FB&H in October 2011.  • The above mentioned laws prescribed adoption of sub-laws and defined responsibilities of different bodies in this respect. The necessary secondary legislation is however lagging behind by one to two years, so that currently a great part of the legislation is still blocked for use in practice.","1. Bosnia and Herzegovina suffers from weak administrative capacity in the water sector. A State-level Water Law ensuring harmonized nationwide water protection has not been adopted,     2. Much of the implementing legislation still needs to be put in place in order to ensure further alignment with the acquis.    - Provision of sufficient quantities of quality water supply and other purposes,  - Protection of water resources and preserve the quality of surface and groundwater,  - Protection from flooding.    Rationalized the use of water.",3,3,3,3,3,3,4,3,2,2,4,4,3,3,3,3,4,4,5,5,4,4,4,4,4,4,4,4,4,4,4,5,5,4,4,4,4,4,4,4,4,4,3,4,4,4,1,3,3,4,4,3,4,4,4,3,3,3,3,3,null,2,null,null,null,null,null,"Biljana Rajic","biljana.rajic@mvteo.gov.ba","Advisor for water resources","Ministry of Foreign Trade and Economic Relation B&H","+ 387 33 262 155","Musala 9, 71000","Sarajevo","Bosnia and Herzegovina",null,null,null,null,null,null,null,null,1,null,0]
["Botswana",2,2,6,6,2,2,2,4,3,4,4,1,2,4,4,4,4,4,5,4,4,4,1,4,4,2,4,4,4,4,4,2,2,4,4,4,4,6,4,3,3,4,2,2,6,6,1,2,2,2,2,null,4,null,2,4,4,4,4,4,4,4,4,2,4,2,4,2,2,4,3,1,null,4,2,1,3,2,4,2,2,2,2,6,5,5,1,2,3,3,null,2,2,4,3,2,2,1,1,3,3,4,3,3,3,3,3,3,3,3,3,4,4,4,4,"\tThe development of surface and groundwater resources and their conjunctive use has resulted in the improved availability of water for domestic use.  \tIn some places groundwater resources are spared from mining (abstracting without any recharge) as Government resorts to using surface water resources. It is envisage that in future the Government of Botswana will enhance the availability of groundwater resources by embarking on research in Artificial Groundwater Recharge. These studies may lead to construction of artificial recharge facilities hence improved availability of water resources.  \tThe conjunctive use of surface and groundwater resources is confined to the eastern part of the country where topography and drainage systems (runoff) permits the construction of surface reservoirs.  \tTo improve our water resources management initiatives, all recently implemented groundwater resources development project have had installation of monitoring networks as part of the projects objectives/activities.  \tThe implementation of Okavango Delta Management Plan (ODMP), a cross-sectoral project has resulted in improved water resources management and protection from development scenarios (hydropower, irrigation, deforestation, etc) in the upstream basin States of Angola and Namibia and within the country. The ODMP will ensured/recommended that, this water resource/environment that is considered to be in Pristine (water quality and bio-physical environment) state is conserved.  \tThe Department of Water Affairs and indeed the Ministry is currently undergoing a restructuring process that will ensure that the Department of Water Affairs assumes a water resources management role that should ensure optimum utilization of our Water Resources to drive National Developments.","\tMonitoring of the water resources is in-adequate because Botswana as a developing country focused more on development of water resources to facilitate the National Development Plans.  \tMonitoring of our groundwater and surface water resources is experiencing problems mainly due inappropriate technology as characterized by frequent breakdown of instruments. Most measuring instruments (data loggers) are not able to withstand the weather and pressures due to deep installation depths that are often in excess of 100m.  \t In the Western and South-Western parts of the country where water supplies are dependent on groundwater resources only, groundwater mining is in-evitable because of extremely low to nil groundwater recharge  \tThe Department of Water Affairs has been executing water service delivery functions in competition with Local authorities and a parastatal and kind of lost its mandate of development of legal framework, policy and regulatory functions for water resources management.  \tProtection of water resources from adverse human activities, watershed management has been a challenge owing to lack of delineation of aquifer boundaries.  \tLack of cheaper technology for desalinization of saline waters.  \tLack of capacity for information management, early warnings for flood management and water resources management modeling skills.  \tLack of robust infrastructure for early warning systems.",null,null,null,null,null,null,null,4,4,4,4,4,4,4,4,4,3,4,4,3,3,3,3,3,5,5,4,4,3,4,4,4,4,5,4,4,4,5,5,5,5,5,1,1,2,2,3,4,4,4,4,3,4,4,4,3,3,4,3,3,"Main respondent: Dr. Obolokile Obakeng, oobakeng@gov.bw, Director, Minerals, Energy & Water Resources/Water Affairs, +267 3607100, Private Bag 0029 Gaborone, Botswana",2,null,null,null,null,null,"Ontlogetse Dikgomo","odikgomo@gov.bw","Principal Hydrological Engineer","Minerals, Energy & Water Resources/Water Affairs","267 3607100","Private Bag 0029 Gaborone",null,"Botswana","Oakantse Moses Moehadu","omoehadu@gov.bw","Principal Hydrogeologist","Minerals, Energy & Water Resources/Water Affairs","+267 3607100","Private Bag 0029 Gaborone",null,"Botswana",1,null,0]
["Brazil",5,4,5,5,4,3,2,4,2,3,2,4,2,2,4,3,3,2,4,4,5,4,2,2,3,5,5,5,5,5,5,5,4,5,4,4,4,5,5,5,5,5,5,4,4,5,2,4,4,4,4,4,4,4,2,4,4,6,5,2,4,2,4,4,4,4,4,4,2,4,4,2,4,5,4,5,4,4,5,4,2,2,2,4,2,5,2,2,5,4,2,2,2,5,4,4,4,1,4,1,4,3,3,2,4,3,3,2,4,3,3,2,4,2,3,"• Solid implementation of water resources management instruments with particular attention to river basins that showed poor water quantity and quality standards.  • Better water quality indexes in river basins that have invested in sewage treatment plants supported by programs such as the River Basin Clean-up Program (PRODES).  • Balancing multiple uses and increased investment in infrastructure through the development of water resources plans.  • Setting classification standards in rivers basins that required developed WRM instruments in a most diverse environment (physical, biological and social).  • Development of GW management instruments and institutional framework, exemplified by Guarani Aquifer Agreement signed in August 2010.","• For being a federative country made of 27 States and 5564 municipalities and involving such a diverse group of stakeholders in its decision making process, Brazil is often experiencing difficulties in reaching consensus and balancing the needs of water resources management and land use planning.  • Existing gap between federal state and local entities with respect to capacity-building and institutional strengthening.",4,4,4,4,4,5,4,4,4,4,4,4,5,5,5,5,5,5,5,4,4,4,4,3,2,4,3,3,1,3,4,4,4,2,4,3,4,3,3,4,3,4,2,2,2,2,3,1,5,3,5,1,4,4,4,2,2,2,4,2,"• The questionnaire presents sound improvements from its earlier versions.  • However, in the case of Brazil, where implementation of WRM instruments is still in its early phase, we would like to suggest that an additional option be included as an intermediate stage (ongoing implementation) for sections 1 to 4, thus better reflecting current progress achieved so far. Considering that the ongoing implementation option was not available, we opted for “Implementation Started” in most of the cases, indicating progress between 25% and 75%.  • Similarly in item 3.1.3. we had to consider both federal and state advances to assess progress.",2,null,null,null,null,null,"Luiz Amore","asint@ana.gov.br","International Affairs Advisor","National Water Agency of Brazil","55 61 2109-5170","Setor Policial Sul Área 5, Quadra 3 Bloco M","70610-200 Brasília - DF","Brazil","Julio Thadeu Silva Kettelhut","Julio.kettelhut@mma.gov.br","Deputy Director/Department of Water  Resources/Secretariat of Water Resources and Urban Environment","Brazilian Ministry of the Environment","55 61 2028-2040","SEPN 505 – Lote 02 – Bloco B","Edifício Marie Prendi Cruz – Sala T04 – 70730-542 - Brasília - DF","Brazil",1,null,0]
["Brunei Darussalam",null,null,null,null,null,null,null,null,null,null,null,null,null,null,null,null,null,null,null,null,null,null,null,null,null,null,null,null,null,null,null,null,null,null,null,null,null,null,null,null,null,null,null,null,null,null,null,null,null,null,null,null,null,null,null,null,null,null,null,null,null,null,null,null,null,null,null,null,null,null,null,null,null,null,null,null,null,null,null,null,null,null,null,null,null,null,null,null,null,null,null,null,null,null,null,null,null,null,null,null,null,null,null,null,null,null,null,null,null,null,null,null,null,null,null,null,null,null,null,null,null,null,null,null,null,null,null,null,null,null,null,null,null,null,null,null,null,null,null,null,null,null,null,null,null,null,null,null,null,null,null,null,null,null,null,null,null,null,null,null,null,null,null,null,null,null,null,null,null,null,null,null,null,null,null,null,null,null,null,null,null,null,null,null,null,null,null,null,null,null,null,null,null,null,null,null,null,null,null,null,null,null,0]
["Bulgaria",5,4,6,1,5,1,4,1,1,2,5,2,5,4,5,5,5,5,1,6,6,6,6,6,6,6,6,6,6,6,6,6,1,5,5,5,4,5,6,5,6,6,6,5,5,5,5,5,6,6,6,4,6,4,5,5,5,6,6,6,6,6,6,6,6,6,6,5,5,6,2,2,6,6,6,6,6,5,5,6,1,2,5,6,6,6,6,6,6,6,1,1,6,5,4,4,4,4,1,4,5,5,5,4,4,5,4,4,4,5,4,5,4,4,4,"• Improved cross-sectoral cooperation at national level  • River Basin Management Plans and Programmes of Measures for all 4 river basins districts in the country developed and under implementation  • Mechanisms for cooperation on water management issues in transboundary river basins developed and applied  • Policy and legal framework adapted to provide for implementation of key principles of integrated water resources management","• Financial Constraints  • Capacity building and administrative reforms take time to be implemented and produce results",4,5,3,4,4,4,5,4,4,5,5,4,1,4,2,4,5,5,4,4,2,3,2,3,4,3,4,4,3,4,4,4,4,5,5,4,5,4,3,5,4,4,2,2,2,2,2,1,2,2,2,2,2,2,2,4,3,3,5,4,null,2,null,null,null,null,null,"Violeta Roiatchka","vroyachka@moew.government.bg","State Expert","Ministry of Environment and Water","+ 359 2 9406561","22, Maria Luisa Blvd.","Sofia 1000","Bulgaria",null,null,null,null,null,null,null,null,1,null,0]
["Burkina Faso",6,1,5,1,6,1,5,4,5,5,5,5,5,5,5,5,5,5,5,5,6,6,1,5,5,4,6,5,6,6,5,5,4,5,5,5,5,5,5,5,4,6,6,3,6,6,6,5,5,6,5,4,6,6,4,5,5,6,6,6,6,6,6,6,6,5,5,5,5,6,5,4,4,6,6,6,6,6,6,6,1,5,4,6,6,6,6,6,6,5,1,5,4,4,4,4,4,4,2,3,3,3,3,3,3,3,3,3,3,3,3,3,3,3,3,"- Actual transfer of water management in the municipalities in water supply and sanitation  - Action plan for the integrated water management   - National program for drinking water and sanitation  - Implementation of national and international agencies for water management","- Broadcasting of information  - Slowness in mobilization of financing  - Forming of actors",4,5,5,3,2,4,1,5,4,4,4,4,4,4,4,4,4,4,3,2,4,4,3,2,1,2,1,2,5,5,5,5,5,1,1,5,5,5,5,5,5,5,5,4,4,4,4,4,4,4,4,5,4,4,4,4,4,4,4,4,null,2,null,null,null,null,null,"SOMDA Maxime","Maxime.somda@gmail.com","Chef de service suivi-évaluation","MAHRH/DGRE","+226 70 25 48 12","03 BP 7025","OUAGADOUGOU 03","Burkina Faso","THANOU Ousseini","Ous.tha@gmail.com","Directeur général","MAHRH/DGRE","+226 70 23 08 45","03 BP 7025","OUAGADOUGOU 03","Burkina Faso",1,null,0]
["Burundi",4,2,3,1,3,1,3,2,2,2,2,2,2,2,2,null,null,null,2,2,null,null,null,3,5,2,3,3,4,2,3,3,null,6,2,2,2,2,2,2,null,5,2,null,null,3,null,2,2,2,2,null,null,null,null,2,null,5,4,3,null,null,null,null,6,5,3,3,null,3,2,2,2,2,2,null,null,null,3,3,1,2,null,2,null,null,null,null,null,null,1,null,null,2,4,4,2,2,2,1,1,1,1,1,1,1,1,1,1,1,1,2,2,2,2,"The instruments such as Water policy, IWRM, Water law for Water Resources Management have been developed in 2009  other are still under development.  So they are not yet  fully implemented to produce positive impact to economic, social  and environmental behaviour.","At the beginning of the process in 2007, the concept  of IWRM was not well  understood by the decision makers; so problem of GVt support, Poor awareness of the water professionals in IWRM approaches, lack of financial means to develop and implement IWRM Action Plan, There was inadequate institutional structure to implement IWRM Plan, Lack of capacity to develop and implement the Water policy and IWRM Plan, Political Instability: water sector has experienced many changes of ministries, Development Partners were not coordinated as well as the numerous NGOs.",4,5,3,4,4,4,4,5,2,2,3,3,3,2,3,2,3,4,3,4,4,4,5,4,4,4,4,3,2,4,4,4,4,5,4,5,5,5,4,4,5,4,2,3,2,3,3,2,2,2,3,2,3,3,2,2,2,2,3,3,null,1,null,null,null,null,null,"SINARINZI Evariste","Evaristesinarinzi@yahoo.com","Senior Adciser to Director General and Chair of Burundi water Partnership","Ministry of Water, Environment and Land management","+257 79 959 259","BP 34 Gitega, Burundi",null,"Burundi",null,null,null,null,null,null,null,null,1,null,0]
["Cambodia",5,4,6,5,5,5,5,3,5,5,5,5,4,5,5,2,2,4,5,5,6,4,4,5,5,4,5,5,5,4,5,4,5,5,5,5,5,5,5,5,2,4,5,4,3,4,3,5,5,5,4,2,5,5,5,5,5,5,5,4,5,4,5,5,4,5,5,5,4,5,4,2,4,5,5,4,5,5,5,4,1,4,4,4,4,3,4,4,4,3,1,4,4,4,4,4,4,4,4,4,4,4,4,4,4,4,4,4,4,4,4,5,4,3,4,"- Integrated knowledge and capacity building among stakeholders including decision makers for sustainable development of water and related resources in the country applying integrated river basin concepts   - The establishment of the Pilot river Basin appying IWRM called 4-Ps river basin governing body covering 4 tributaries (Prek Preh, Prek Krieng, Prek Te and Prek Kampi) located in two provinces, Kratie and Mondulkiri, supported by GWP and ADB (2007-2010) with results proposed 4-Ps Basin Coordinating Committee for Development and Management and developed IWRM-based basin development Roadmap for next 5 years  - The establishment of national mechanisms under the Mekong River Commission Basin Development Program (BDP) at national (Steering Committee and BDP Coordination Unit) level and sub-national (Sub-Area Working Group) level. They have participated in IWRM-based basin development planning process at national and each sub-area. Other stakholders are also involved actively in the process. The results of the BDP are including basin/sub-areas profiles for planning, Basin-wide development scenarios, IWRM-based basin development strategy as approved in January 2011 by MRC Council, and initiated national indicative plan.      - IWRM concepts/principles have been introduced to concerned institutions at national and sub-national levels, as well as to communities, civil society organizations, academics, private sectors and NGOs   - Joint Strategy for water uses between Ministry of Agriculture, Forestry and Fisheries and Ministry of Water Resources and Meteorology was established  - Establishment of Fishery Communities, Forest Communities, Farmer Water Users Communities, etc.... leading to an improvement of people’s living in the areas  - Flood preparedness program has been also introduced to flood prone areas in relation to issues which may happen before, during and after flood so that concerned authorities, communities, and local people aware of disaster which may occur.","- IWRM concepts/principles are new holistic approach changing the traditional sector approach to be implemented  -  Capacity of concerned institutions, staff, academics, academics, civil society organizations, etc… is still limited leading to a low cooperation and coordination among concerned parties and stakeholders to implement IWRM-based development planning  - Although IWRM approach has been stated in the Law on Water Resources Management of Cambodia 2007 (Art. 4), the implementation is just at the beginning stage    - Financing issues are very big constraints for both national and sub-national levels  - Developments by sector remain issues of concerns as the project owners pay not much attention in consulting with other sectors whether the project may cause any negative impacts to other fields, including trans-boundary impacts, distribution of equitable benefits, as well as environmental impacts.",5,5,4,4,4,4,4,4,3,3,3,4,5,4,4,4,4,4,4,4,3,3,4,3,4,5,4,5,4,4,4,4,4,4,4,4,4,4,4,4,4,4,4,5,4,4,4,4,4,4,4,4,4,4,4,4,4,4,4,4,null,2,null,null,null,null,null,"Vannak CHHUN,Ph.D","vannakchhun@hotmail.com","Advisor to Senior Minister and Minister of Environment & Deputy Director General for Inspection","Ministry of Environment","(00855) 12 792 494",null,null,"Kingdom of Cambodia",null,null,null,null,null,null,null,null,1,null,0]
["Cameroon",2,2,4,4,2,2,2,4,2,3,2,3,3,4,3,3,5,2,4,4,2,2,4,2,4,2,4,2,3,3,3,4,2,3,3,2,2,2,4,3,3,2,2,1,1,2,2,1,3,1,1,1,2,4,3,3,2,2,4,2,2,1,2,2,2,1,2,1,2,2,2,2,4,null,3,4,4,4,3,4,1,1,3,5,5,5,3,3,5,4,1,2,2,4,4,4,4,3,2,2,3,4,3,3,3,3,3,2,2,3,2,3,3,2,3,"• Preparation of four (4) thematic papers on the assessment of the state of the water sector as part of the development of the national IWRM action plan.    • Introduction of a training module on Integrated Water Resources Management in the Master's programme for water management at the University of Dschang.    • Establishment of a unit responsible for Integrated Water Resources Management within the Department of Hydraulics and Hydrology, at the Ministry of Energy and Water, and creation of a budget line for IWRM in the public investment budget    • Integration of IWRM in the Economic, Financial, Social and Cultural Programme of Cameroon for 2010, which was presented by the Prime Minister, Head of Government, to the MPs of Parliament in December 2009    • Consideration of the IWRM approach in all actions concerning the management and use of water resources in the framework of the three-year economic and financial programme (EFP, 2010-2012) presented by the Prime Minister to the Parliament in 2009.","• Ownership of the integrated approach to water resources management is laborious in views of the dynamics that one can observe at the top of the relevant institution. Indeed, the positions of minister are mainly unstable and advocacy can sometimes be quite heavy when the recipient within the government keeps changing, meaning that everything has to be done again.    • The complete planning of financial resources needed to conduct the process of developing an IWRM plan must be effective prior to the launch of such a process.    • As part of the development of national IWRM plans, it makes sense to set up a team completely disconnected from the government agencies, which would have for only task to handle the process.",3,4,3,4,2,4,3,4,2,2,4,4,4,5,4,5,4,5,5,5,4,4,5,4,4,4,5,4,3,3,2,3,2,4,4,4,4,3,3,3,4,3,4,4,5,4,4,5,4,4,4,5,5,4,4,4,4,5,5,4,null,2,null,null,null,null,null,"BIDJOCKA JEAN PIERRE","jeanpierrebidjocka@yahoo.fr","Sub-Director of Urban hydraulics and Sanitation","Energy and Water Resources","22 22 99 27","Ministère de l’Energie et de l’Eau Direction de l’Hydraulique et de l’Hydrologie","B.P. :  70 Yaoundé","Cameroon","BAPAH Paul Dieudonné","Bapah_paul@yahoo.fr","Sub-Director of Urban hydraulics and Sanitation","Energy and Water Resources","22 67 64 15","Ministère de l’Energie et de l’Eau Direction de l’Hydraulique et de l’Hydrologie","B.P. :  70 Yaoundé","Cameroon",1,null,0]
["Canada",5,4,6,6,4,1,5,5,1,5,1,4,3,5,null,1,5,5,1,6,6,4,6,6,6,5,5,5,6,6,6,6,1,2,6,6,6,6,6,6,5,6,6,5,4,5,4,3,4,3,2,4,6,5,3,6,5,6,6,5,6,6,5,4,5,6,5,5,5,6,4,4,4,6,6,6,6,5,5,5,1,4,5,6,6,6,6,6,5,5,1,1,4,1,2,2,1,4,1,2,2,4,2,2,2,3,2,2,2,4,2,2,2,2,2,"Canada has a strong history of integrated water management (IWM) going back as far as the 1930s in some provinces.  IWM approaches are implemented in varying forms due to environmental, social, and economic differences across the country.  All forms of IWM have incorporated strong partnerships across government levels, industry, non-governmental organizations and the public at large.  Improvements in knowledge-based decision making and stakeholder participation in the decision-making process as a result of IWM (across partnerships as well as across environmental/social/economic lines) have been observed.","- Regional diversity (environmental, social, and economical) creates very different needs and scales for IWRM.  In particular, implementing an IWM approach in small, rural/remote areas of Canada is challenging. A single national-level approach is difficult and would not necessarily be suitable for a geographically large and varied country such as Canada. Therefore, IWM is primarily addressed at the appropriate local, regional and/or watershed level.  Multiple federal jurisdictions with some responsibility or linkage to water resources (whether it be legislative, regulatory, or otherwise) can create challenges for co-ordinating integrated responses in IWRM.   - Ensuring adequate high quality information (e.g. monitoring systems) representative of environmental conditions is an ongoing challenge",3,4,3,4,3,3,4,4,3,3,4,3,5,3,1,5,4,4,4,4,4,4,4,5,2,2,2,2,1,2,2,2,2,3,4,3,4,3,4,4,3,3,3,4,3,3,3,4,4,4,4,4,4,4,4,3,4,4,4,4,"With 6% renewable water resources annually and a strong natural resources economy, Canada takes its water resource management responsibilities seriously. Canada’s federation-style democracy has resulted in a shared water management structure between federal and provincial governments with primary responsibility for water quality and quantity resting at the provincial level.  This allows for the development of appropriate water resource management tools that reflect regional environments, economies, and societies as well as the country as a whole.   Implementation is advanced for most aspects of water management.    With respect to improved water resources management (Section 6.1), it should be noted that the majority of Canada’s water resources management approaches are more than 20 years old. Canada has maintained a very high standard of water resources management over this period, with most systems working at or above expectation, therefore not needing to be significantly improved.",2,null,null,null,null,null,"Matt Parry","Matt.Parry@ec.gc.ca","EXecutive Director","Environment Canada Policy Development","819-934-0257","Les Terrasses de la Chaudière  Floor: 22 - Room: 2213  10 Wellington Street","Gatineau, Quebec  K1A 0H3","Canada",null,null,null,null,null,null,null,null,1,null,0]
["Cape Verde",5,5,5,5,4,4,4,4,4,4,4,4,4,5,2,3,2,3,4,1,4,5,2,5,1,5,4,4,4,4,4,4,4,3,3,3,3,2,2,2,4,5,5,4,5,4,4,5,5,5,5,5,4,4,4,1,3,4,4,5,5,1,5,5,5,4,3,3,3,2,3,4,2,5,5,4,5,2,5,5,5,5,4,5,5,2,5,2,5,4,5,2,2,4,4,4,4,4,5,4,3,3,3,3,3,3,3,4,4,4,4,3,3,3,3,"The Integrated water resource plan is developed but the implementation is not yet started.","See a)",4,5,4,2,3,4,3,4,4,4,4,4,4,5,4,3,4,5,4,4,4,4,4,4,4,4,1,1,3,3,3,3,3,3,3,4,4,3,3,3,3,3,4,4,3,3,4,4,4,4,4,4,4,4,4,3,3,3,4,4,null,2,null,null,null,null,null,"Maria de Lourdes Lima","lourdesl@ingrh.gov.cv","Head of the INGRH","Environment","(238)2613974/(238)2616000","INGRH Cha d´Areia","-","Cape Verde",null,null,null,null,null,null,null,null,1,null,0]
["Central African Republic",null,null,null,null,null,null,null,null,null,null,null,null,null,null,null,null,null,null,null,null,null,null,null,null,null,null,null,null,null,null,null,null,null,null,null,null,null,null,null,null,null,null,null,null,null,null,null,null,null,null,null,null,null,null,null,null,null,null,null,null,null,null,null,null,null,null,null,null,null,null,null,null,null,null,null,null,null,null,null,null,null,null,null,null,null,null,null,null,null,null,null,null,null,null,null,null,null,null,null,null,null,null,null,null,null,null,null,null,null,null,null,null,null,null,null,null,null,null,null,null,null,null,null,null,null,null,null,null,null,null,null,null,null,null,null,null,null,null,null,null,null,null,null,null,null,null,null,null,null,null,null,null,null,null,null,null,null,null,null,null,null,null,null,null,null,null,null,null,null,null,null,null,null,null,null,null,null,null,null,null,null,null,null,null,null,null,null,null,null,null,null,null,null,null,null,null,null,null,null,null,null,null,{"$f":"(COUNTIF(FX35,\">0\")-(COUNTIF(GT35,\">0\")))","v":0}]
["Chad",4,2,3,2,2,2,2,2,3,3,3,3,3,4,1,4,2,2,5,5,5,5,5,5,5,5,2,2,2,2,2,2,2,2,2,2,2,4,5,5,5,5,3,3,5,5,4,2,2,2,2,2,2,2,2,3,3,3,5,5,4,4,4,2,2,4,2,2,2,2,2,2,2,4,4,2,4,2,4,2,1,4,2,4,4,2,4,2,4,2,1,4,2,4,4,5,1,1,1,3,4,1,2,2,2,2,2,1,1,1,1,3,2,1,2,"• Increased access to water supply from a rate of 15% in 1990 to a rate of about 50% in 2011  • Reduce child mortality rate due to water-related diseases  • Improved livelihoods of cattle farmers and their cattle thanks to the building of pastoral facilities","• Absence of detailed studies in some areas of the water sector and more specifically on surface waters",4,5,3,2,3,5,4,4,4,4,4,4,4,5,4,3,2,4,4,4,4,4,4,4,5,4,4,3,3,3,3,3,3,4,4,4,4,4,4,4,4,4,5,4,4,3,3,3,3,3,3,4,4,4,4,4,4,4,4,4,null,2,null,null,null,null,null,"DJASRABE  NGUEMADJITA","djasrab@yahoo.fr","Chef de Division de l’Hydrologie","Ministère de l’Eau","(+235) 66 21 03 45 / 95 23 59 00","D.R.E.M.  B.P 429","N’DJAMENA","TCHAD","TAHIR ABDEL AZIZ AWAM","tahirazizawam@yahoo.fr","Représentant GWP TCHAD","Ministère de l’Eau","(+235) 66299838 / 99 970000","B.P 1769","N’DJAMENA","TCHAD",1,null,0]
["Chile",5,2,6,1,2,4,2,2,2,4,4,4,4,5,5,2,4,4,4,2,2,6,6,2,3,6,6,5,6,6,6,6,6,6,6,4,4,2,6,6,6,5,5,5,6,6,4,6,6,6,4,4,6,6,4,4,5,6,6,6,6,6,6,5,4,4,6,4,4,4,6,6,6,6,6,6,6,4,6,6,2,6,2,6,6,6,6,4,6,6,2,6,2,4,5,5,4,2,2,5,5,3,4,5,5,5,5,4,4,4,4,5,5,5,5,"- Tratamiento de casi el 100% de las aguas servidas urbanas del país.  - Abastecimiento con agua potabvle al 100% de la población urbana y casi al 85% de la población rural concentrada.  - Implementación de sistema de derechos de agua que ha permitido transparentar el valor real del agua y su reasignación eficiente en épocas de escasez.  - Implementación de normas de emisión de residuos liquidos a sistemas naturales y artificiales, con el objeto de proteger la calidad del agua de sistemas hídricos.  - Erradicación de las enfermedades entéricas en el país.  - Institucionalidad sólida que ha permitido la gestión de las aguas por los actores privados con  una participación subsidiario por parte del Estado.","- Financiamiento.",4,1,1,2,4,1,2,5,5,4,3,3,4,1,1,4,5,3,4,5,5,5,1,4,4,4,3,3,3,4,4,3,3,1,4,5,5,4,4,4,4,3,4,4,3,3,2,2,4,4,4,2,4,5,5,4,4,5,5,5,null,1,null,null,null,null,null,"Matías Desmadryl Lira","matias.desmadryl@mop.gov.cl","Director General de Aguas","Ministerio de Obras Públicas","+56 2 4493753","Morandé 59 piso 8, Santiago","Ciudad de Santiago","Chile",null,null,null,null,null,null,null,null,1,null,0]
["China",5,5,5,5,5,5,5,5,5,5,5,5,5,5,5,5,5,2,2,2,5,4,4,4,4,2,5,5,4,3,4,2,2,5,5,5,5,5,5,5,6,5,5,2,5,6,5,6,4,5,5,5,5,6,6,2,4,6,6,6,6,5,6,6,6,6,6,4,4,4,5,5,6,6,6,6,6,6,6,6,5,6,5,6,6,6,5,6,6,6,5,6,5,4,3,3,4,5,1,5,5,4,5,4,4,4,4,4,4,4,4,5,5,4,5,"1. The building of a water-saving society. Implement the most strict water management system by drawing the “three red lines” for controlling water development and utilization, water use efficiency and pollutants-bearing capacity of water function zones. During the year 2005 to 2010, water use per RMB 10,000yuan (about $1,470) was reduced from 304 cubic meters to 200 cubic meters; water use coefficient of irrigation was increased from 0.4 to 0.5.     2. Urban and rural water supply. The annual water supply capacity of hydropower projects amounts to 700 billion cubic meters. During 2005 to 2010, the UN millennium goal of “reducing the population inaccessible to water by half till 2015” was reached 6 years in advance of schedule.     3. The improvement of flood prevention and forecasting system. Give priority to the harness of medium-sized and small rivers and major tributaries of big rivers, strengthen key hazardous reservoirs, prevent mountain flood, etc. Over 870,000 reservoirs with total capacity of over 706 million cubic meters were constructed. Embankments with total length of 290,000km have been built.","The implementation of integrated approaches to water resources management in China has been well carried out on the whole.  There are two aspects that still need to be improved:    1. The introduction and extension of advanced technologies.  Continuously learn and introduce advanced technologies from other countries and enhance technological exchange with other counties.     2. Capacity building around the country on a well-leveraged way.  Give priority to aid backward regions in water infrastructure establishment, the application of new technologies, hydropower projects construction, etc.",3,4,4,3,4,5,5,5,5,4,4,4,3,4,4,3,4,5,4,4,3,4,4,3,3,3,3,3,2,3,4,4,4,3,3,4,3,3,4,4,4,4,2,2,4,4,3,4,4,4,4,4,3,4,2,3,3,3,3,3,null,2,null,null,null,null,null,"JIN Hai","hjin@mwr.gov.cn","Division Director","Ministry of Water Resources, P.R.China","86-10-63202706","No.2, Lane 2,Baiguang Road, Xicheng District,","Beijing, China,100053","China",null,null,null,null,null,null,null,null,1,null,0]
["Colombia",null,null,null,null,null,null,null,null,null,null,null,null,null,null,null,null,null,null,null,null,null,null,null,null,null,null,null,null,null,null,null,null,null,null,null,null,null,null,null,null,null,null,null,null,null,null,null,null,null,null,null,null,null,null,null,null,null,null,null,null,null,null,null,null,null,null,null,null,null,null,null,null,null,null,null,null,null,null,null,null,null,null,null,null,null,null,null,null,null,null,null,null,null,null,null,null,null,null,null,null,null,null,null,null,null,null,null,null,null,null,null,null,null,null,null,null,null,null,null,null,null,null,null,null,null,null,null,null,null,null,null,null,null,null,null,null,null,null,null,null,null,null,null,null,null,null,null,null,null,null,null,null,null,null,null,null,null,null,null,null,null,null,null,null,null,null,null,null,null,null,null,null,null,null,null,null,null,null,null,null,null,null,null,null,null,null,null,null,null,null,null,null,null,null,null,null,null,null,null,null,null,null,0]
["Comoros",null,null,null,null,null,null,null,null,null,null,null,null,null,null,null,null,null,null,null,null,null,null,null,null,null,null,null,null,null,null,null,null,null,null,null,null,null,null,null,null,null,null,null,null,null,null,null,null,null,null,null,null,null,null,null,null,null,null,null,null,null,null,null,null,null,null,null,null,null,null,null,null,null,null,null,null,null,null,null,null,null,null,null,null,null,null,null,null,null,null,null,null,null,null,null,null,null,null,null,null,null,null,null,null,null,null,null,null,null,null,null,null,null,null,null,null,null,null,null,null,null,null,null,null,null,null,null,null,null,null,null,null,null,null,null,null,null,null,null,null,null,null,null,null,null,null,null,null,null,null,null,null,null,null,null,null,null,null,null,null,null,null,null,null,null,null,null,null,null,null,null,null,null,null,null,null,null,null,null,null,null,null,null,null,null,null,null,null,null,null,null,null,null,null,null,null,null,null,null,null,null,null,0]
["Congo",2,1,4,1,1,1,1,1,2,2,2,2,2,2,2,1,2,2,3,4,5,1,1,2,4,2,2,1,2,1,2,1,1,1,1,1,1,1,1,1,1,1,1,1,1,1,1,2,1,1,1,1,1,2,2,4,2,2,1,1,1,2,1,1,2,1,2,1,1,2,2,1,2,2,1,5,5,2,5,2,1,2,1,2,1,5,5,2,5,2,1,3,1,2,2,1,1,2,1,2,2,2,2,3,3,3,3,2,2,2,2,1,1,1,1,"With a potential of 88,196 cubic meters per year per capita, the Republic of Congo has abundant water resources, which results in it being classified in the category of countries with \"enormous amounts  of water resources.\" But the country has never been able to capitalize on this asset in order to provide substantial support for this vital sector. Until the beginning of the decade 2000-2010, the government’s attention was only focussed on satisfying the needs of its citizens in terms of drinking water supply. There was neither governance nor an institutional framework for the development, management and utilisation of water resources, and actors were involved in the sector in an unorganised way.    A major transformation occurred in 2003 with the enactment of the Water Law (No. 13-2003), which includes the following guidelines for water resources management:    • Delineation of the public water bodies  • Commitment to implement a national water policy designed to: i) ensure a rational use of the water resources to meet users needs, ii) protect against harmful effects of water; iii) fight against water pollution.  • Creation of the Advisory Water Board, an inter-sectoral public body responsible for ensuring comprehensive, integrated and cooperative water resources management  • Establishment of a water police  • Liberalisation of the operation of public water utilities and introduction of a water regulation.    Since the promulgation of the Law, there has been a genuine desire from government to move towards an integrated approach to water resources development, management and utilisation. This approach, which is consistent with recommendations from the international community, has been translated into the following commitments:    • Adoption in 2010, by government, of a strategy development document as well as a ‘policy letter ’ for the water sector including a major component on IWRM issues  • Adoption of a regulatory framework for the organisation and operation of the Advisory Water Board  • Joining several international and sub-regional initiatives promoting integrated water resources management (GWP, CICOS, ECCAS, etc.).    But we believe that, when it comes to integrated water resources management, the Republic of Congo is still in its infancy and the major projects that it will launch in the coming months include:    • Develop and implement the national water policy as well as the related action plan  • Establish river basin organisations  • Operationalise the Advisory Water Board in which all categories of stakeholders are represented  • Mobilise the necessary funding for water resources development, management and utilisation.","• Lack of clearly formulated national policy, shared by all national and international actors  • Inadequate human and material resources within the government departments responsible for implementing IWRM development  • Risk or threat following the slow mobilisation of financial resources allocated to the sector, particularly for water resources sustainability and protection  • Threat related to the low response capacity of certain actors, particularly the private sector and civil society.",4,5,4,5,4,5,4,1,1,1,4,2,4,5,4,5,3,5,3,3,3,3,3,3,4,4,4,4,2,4,4,4,4,4,4,4,4,5,5,4,5,4,2,3,2,3,3,2,2,3,3,2,2,3,2,3,3,3,3,3,null,2,null,null,null,null,null,"Eugène Ikounga","ikoungaeugene@yahoo.fr","Directeur Général","Ministère des Mines, Energie & Hydrauliqe",null,null,null,"Congo (Brazzaville)",null,null,null,null,null,null,null,null,1,null,0]
["Costa Rica",5,1,2,1,4,1,3,2,2,5,4,2,3,2,5,2,3,2,4,2,1,4,1,1,2,2,4,1,2,2,2,2,2,4,4,4,1,3,2,2,4,6,5,6,2,2,2,4,1,5,5,5,6,5,2,1,4,5,5,2,2,2,5,2,5,5,null,null,null,null,null,null,null,4,4,5,5,4,5,5,1,1,5,1,1,5,5,5,5,5,1,1,2,3,3,5,5,4,4,3,2,2,2,1,1,2,2,3,3,3,3,3,3,3,3,"In Spanish: Costa Rica en los últimos 13 años ha visto trasformada la gestión de agua de forma sustantiva, lo cual se da de forma colateral al transformarse una institución autónoma denominada Servicio Nacional de Electricidad (SNE) que era una institución de funciones sustantivas en materia de tarifas de servicios públicos y que el agua estaba por ley en esta institucion, al transformarse en la Autoridad Reguladora de los Servicios Públicos, la gestión del agua (Ley de Aguas) y se traslada las competencias en 1997 al Ministerio de Ambiente y Energía (MINAET), lo cual se convierte en una accion aunque collateral no programada, en una acción estratégica para la GIRH en Costa Rica. A partir de este año (1997) se ha avanzado con una serie de acciones tendientes a la GIRH, tales como:    Nomativa en material de regulación de la perforación de pozos, promoción y gestión por cuencas, promulgación de principios que regulan la gestión de agua, Registro Nacional de Concesiones de Agua disponible su acceso en tiempo real en internet, reglamentacion de los vertidos y reuso de agua tratadas, normative legal de principios en la asignación del agua, la consideracion de la variable ambiental en la gestión de proyectos hidraulicos, reglamento de calidad de cuerpos de agua y mas recientemente la promulgacion de la Estrategia Nacional para estión Integrada de los Recursos Hídricos y luego el Plan Nacional de Gestión Nacional del Recurso Hídrico, Balance Hídrico por cuencas considerando al demanda  y Balance Hídrico Nacional la Política Nacional de Aguas, instrumentos económicos con la creación e implementación del canon por aprovechamiento de agua y el canon ambiental por vertidos, Sistema Nacional de Permisos y Concesiones para el trámite digital de derechos de agua y perforaciones del subsuelo par alas aguas subterráneas.","In Spanish:    - Limitaciones para la GIRH    - Actualización del marco jurídico en materia de Ley de Agua, si bien se ha desarrollado un proceso de 10 años continuo en busca de promulgar una Ley Marco de Agua que deregue la actual de 1942, no se ha podido alcanzar.    - Ley de Aguas actual de 1942 no tiene normativa ni instrumentos jurídicos actuales    - Traslape de competencias entre instituciones    - Políticas de Hacienda    - Cultura de abundancia de agua que prevalece en los costarricenses    - Intereses particulares    - Falta de inversion en infraestructura hidráulica en aprovechamiento, almacenamieto y sanitaria.    - Falta de institucionalizar la participación de actores    - Luchas políticas.",5,5,3,4,3,4,4,4,3,3,5,5,4,5,5,4,3,4,5,4,3,4,2,3,5,3,4,3,2,4,5,5,4,5,5,5,5,5,5,5,5,5,3,3,4,4,2,4,3,4,3,5,5,5,5,5,5,4,5,4,null,2,null,null,null,null,null,"JOSE MIGUEL ZELEDON CALDERON","mzeledon@gmail.com","DIRECTOR AGUAS","MINISTERIO AMBIENTE Y ENERGIA","(506) 8829-4254/ (506) 2222-6025","San José","-","Costa Rica",null,null,null,null,null,null,null,null,1,null,0]
["Côte d'Ivoire",3,null,3,null,3,null,1,1,3,3,2,3,2,2,1,1,1,1,5,5,2,2,1,2,4,2,2,2,2,1,2,1,1,2,2,2,1,1,2,2,2,1,2,1,2,2,2,1,1,1,1,1,2,1,2,2,2,1,3,1,3,1,2,1,2,1,1,1,1,2,1,1,2,2,5,5,2,1,5,2,1,2,1,2,4,5,3,1,5,1,1,1,1,1,1,2,1,1,1,1,1,1,1,2,2,1,2,1,1,1,1,3,3,2,3,"We do not have outcomes and key results because we hope to start the coming year implementing the integrated approaches. It has been a long way the water act has been promulgated in 1998.  Since 2010, we have a National Water Vision in the scope of the year 2040. We hope to be able to build IWRM Plan in 2011 and be able to do the Monitoring and Evaluation every 5 years.","Water act has been promulgated in 1998 but the institutional framework has not been put in place because of the social and political turmoil Cote d’Ivoire is experiencing since 1999.  Water act has three (3) pillars: (1) the integrated water management approaches, (2) the distinction between Water manager and Water users and (3) the financing mechanisms.   Since 2010, we had a national water policy document and this year in 2011, we are going to put in place the institutional framework and the financing tools in order to implement the integrated approaches.  In our Water act, a clear distinction has been made between Water manager and Water users. But Water manager lacks fund to fully implement the integrated water resource management in terms of assessing water quantity and quality.",3,5,4,4,2,5,2,4,3,5,5,5,3,5,4,3,3,4,2,3,3,5,5,5,4,4,3,3,2,2,4,4,4,1,4,4,5,4,4,4,4,4,3,3,4,4,3,3,3,3,3,4,2,2,2,2,4,1,1,1,null,2,null,null,null,null,null,"N’GUESSAN Bi Tozan Michel","michel_tozan@yahoo.fr","Director of Water Resources","Ministry of Waters and Forest","+225 22 42 34 48","20 BP 650 Abidjan 20",null,"COTE D’IVOIRE",null,null,null,null,null,null,null,null,1,null,0]
["Croatia",null,null,null,null,null,null,null,null,null,null,null,null,null,null,null,null,null,null,null,null,null,null,null,null,null,null,null,null,null,null,null,null,null,null,null,null,null,null,null,null,null,null,null,null,null,null,null,null,null,null,null,null,null,null,null,null,null,null,null,null,null,null,null,null,null,null,null,null,null,null,null,null,null,null,null,null,null,null,null,null,null,null,null,null,null,null,null,null,null,null,null,null,null,null,null,null,null,null,null,null,null,null,null,null,null,null,null,null,null,null,null,null,null,null,null,null,null,null,null,null,null,null,null,null,null,null,null,null,null,null,null,null,null,null,null,null,null,null,null,null,null,null,null,null,null,null,null,null,null,null,null,null,null,null,null,null,null,null,null,null,null,null,null,null,null,null,null,null,null,null,null,null,null,null,null,null,null,null,null,null,null,null,null,null,null,null,null,null,null,null,null,null,null,null,null,null,null,null,null,null,null,null,0]
["Cuba",5,5,5,5,5,1,5,5,5,5,5,5,5,5,5,5,4,5,5,1,6,5,5,5,1,5,5,5,5,4,5,4,4,5,5,5,5,5,5,5,5,5,5,4,5,5,5,5,5,5,5,4,5,5,5,1,5,5,5,5,5,5,5,5,5,5,5,5,4,4,3,3,3,5,5,5,5,5,5,5,5,4,4,6,5,5,6,5,6,5,5,4,4,4,4,2,2,2,2,4,5,4,5,4,4,4,4,4,4,4,4,5,4,4,5,"1. Development and strengthening of the hydraulic infrastructure and water governance structures.  2. Development and integrated water use master plan (national, provincial, local)  3. Development technical human capacities in the field of water resources management.  4. Create and developments of hydrographic basin councils (national, provincial, basin)  5. Assessment and action plans to mitigate the impact of extreme hydrological events (droughts, hurricane, and flood)","1. Obtain new and additional financial resources",5,5,4,2,4,4,5,5,3,3,4,3,4,4,4,4,4,4,5,5,3,3,4,3,5,5,1,1,1,4,4,5,5,4,5,4,5,4,4,5,5,5,5,5,null,5,null,4,5,5,5,4,4,5,5,5,5,5,5,5,null,2,null,null,null,null,null,"Jorge Mario García Fernández; Gisel Pérez Wong","jorgem@hidro.cu; gisel@hidro.cu","Director Cuencas Hidrográficas; Directora Ciencia y Técnica","Instituto Nacional de Recursos Hidráulicos (INRH)","53 7 836 3449;  53 7 8365574","Humboldt esquina P. Plaza, Vedado","La Habana","CUBA","Aymée Aguirre Hernández","aimee@hidro.cu","Vicepresidenta","Instituto Nacional de Recursos Hidráulicos (INRH)","53 7 836 6783","Humboldt esquina P. Plaza, Vedado","La Habana","CUBA",1,null,0]
["Cyprus",5,1,6,1,3,1,5,5,1,6,1,1,2,5,1,2,1,2,2,2,5,5,5,5,1,1,6,6,6,6,6,6,6,5,1,5,1,5,5,5,3,5,5,4,5,5,5,5,5,4,5,5,5,5,5,1,4,6,6,6,6,6,6,6,4,3,2,5,2,5,5,5,3,5,5,1,5,2,5,5,5,2,5,5,5,1,5,2,5,5,5,2,4,5,5,3,1,4,1,3,3,3,3,3,3,3,3,3,3,3,3,3,3,3,3,"Cyprus implements an integrated approach to water resources management based on water demand management and the sustainable use of conventional and non-conventional supply side measures. This approach is necessary to provide sustainably to the people of Cyprus sufficient, safe, clean and reliable water for domestic and irrigation needs and for the environment.    Water demand management     Several water saving measures are implemented, such as:    - Water pricing and metering  - Leakage reduction in distribution networks  - Water rationing during periods of drought  - Economic incentives, subsidized measures for saving potable water  - Water saving devices for domestic use  - Improvement of irrigation efficiency though modern and highly efficient irrigation systems  - Allocation of water to agriculture using a quota control system  - Educational and awareness campaigns promoting a water-saving culture  - Abstraction controls through the issuance of permits for the extraction and use of groundwater     Water supply management    - The dams´ capacity was increased from 6 million cubic meters in 1960 to 328 million cubic meters today  - Boreholes were drilled for domestic and irrigation purposes  - Water treatment plants and recharge works were constructed  - Desalination plants were constructed to eliminate dependency on rainfall. Cyprus faces severe water scarcity and drought problems and desalination remains the only means of achieving water security for the domestic sector  - Recycling of treated municipal effluents is promoted in order to cover water needs of agricultural sector and ensure a gradual integration into the water balance","Water scarcity and droughts in Cyprus is one of the main constraints for the development of economic activity and the preservation and protection of the environment. The problem is continuously growing due to the increasing demand for water and the declining rainfall caused by climate change, which for the Southern European region is expected to result in a rise in temperature and an increase in the intensity and frequency of extreme drought events. Islands, like Cyprus, confront additional challenges compared to mainland countries and are more vulnerable to climate change due to their size, geographic isolation, limited natural and financial resources and uneven water resources distribution. Statistical analysis of rainfall in Cyprus reveals a stepped drop in the early 70´s, which persists.     Despite the many demand management measures as well as costly supply enhancement measures implemented, the problem of water scarcity remains and during 2008, Cyprus was faced with one of the most acute and prolonged droughts since the beginning of the twentieth century, with very severe water shortages and socio-economic and environmental impacts.     As illustrated by the recent water crisis, Cyprus needed to invest in alternative water supply options, such as desalination and recycling of treated municipal effluents in order to increase water availability and adapt to climate change. These options involve a high financial cost, but they remain the only means of achieving water security and independence from climatic conditions.",4,5,4,2,4,5,3,5,5,5,4,4,3,3,3,3,5,3,3,5,5,5,4,4,2,4,1,1,3,4,4,5,5,5,5,5,5,5,5,5,5,5,5,5,3,3,5,5,5,5,5,5,5,5,5,5,5,5,5,5,null,1,null,null,null,null,null,"Sofoclis Aletraris","director@wdd.moa.gov.cy","Director","Ministry of Agriculture, Natural Resources and Environment/Water Development Department","+357 22609400","100-110 Kennenty Avenue, 1047 Pallouriotissa","Nicosia","Cyprus",null,null,null,null,null,null,null,null,1,null,0]
["Czech Republic",5,3,6,1,5,4,4,6,1,5,2,6,5,5,5,1,1,5,6,6,6,6,1,5,6,6,5,5,5,5,5,5,3,6,3,6,3,5,6,6,6,6,6,4,6,6,6,6,3,3,6,4,6,5,3,6,5,6,6,6,6,5,6,5,6,6,4,4,2,6,5,5,6,6,3,5,5,5,5,5,1,1,5,6,3,3,3,6,3,6,1,1,6,3,4,4,4,4,1,3,3,4,4,3,3,3,3,3,3,4,4,4,3,4,4,null,null,2,2,2,2,2,1,4,2,3,2,3,3,3,3,3,3,3,3,5,4,3,3,2,2,2,2,2,2,3,3,3,3,2,3,4,3,3,2,2,4,4,3,2,2,2,2,2,3,3,3,2,3,2,2,2,3,2,2,4,3,"NOTE: Multiple responses have been received, the answers are calculated averages. /Jakob",2,null,null,null,null,null,"Arnošt Kult","Arnost_Kult@vuv.cz","Researcher","Water Research Institute",420220000000,"Podbabská 30/2582","Prague 6","Czech Republic","Mr. Premysl Stepanek","premysl.stepanek@mzp.cz","Expert","Ministry of the Environment","+420 267 122 309","Vrsovicka 65","Prague, zip code 100 10","Czech Republic",1,null,0]
["Democratic People's Republic of Korea",4,4,4,null,2,2,2,2,null,2,2,2,2,2,2,2,2,2,2,2,4,3,3,3,2,1,4,3,3,1,4,1,4,2,2,2,2,3,3,4,2,2,2,2,2,4,2,3,3,2,2,2,3,3,2,2,2,5,5,3,4,4,2,1,2,2,2,2,2,2,5,2,4,5,5,5,3,4,5,4,2,2,3,5,5,5,2,3,5,3,2,2,3,1,1,2,2,1,1,5,5,5,5,5,5,5,5,4,4,4,4,4,4,4,4,"- For efficient use of fresh water, multi-functional use of water and save energy, many barrages and reservoirs built, ex. West Sea barrage, which brought some sufficient water supply and rational use as well as flood and drought control.  - For full supply water to economy, especially agriculture, Irrigation system improvement with naturally flowing waterway construction, ex. Miru-field waterway, etc. which resulted in agricultural production increase and decreased water scarcity in rural area.  - Increased waste water recycling and waste water treatment capacity come to prevention of water pollution and increased water resources available","Advanced technology transfer  Insufficient capacity of integrated water resource management  Financial constraints",3,3,3,2,3,3,5,4,3,2,3,4,2,2,3,3,3,4,5,5,4,3,4,3,5,5,4,4,null,3,3,3,3,3,5,5,5,3,3,5,5,5,4,4,4,4,null,2,2,2,2,1,1,4,4,null,2,4,3,3,null,2,null,null,null,null,null,"Mr. KIM Chol Guk","Hyong.chol.ri@undp.org","Water Focal Point","National Coordinating Committee for Environment","Central District, Pyongyang, DPRK",null,null,null,"Mr. JANG Chol Gun","guktodae@star-co.net.kp","Senior Officer","Ministry of Land and Environment","Mangyongdae District, Pyongyang, DPRK",null,null,null,1,null,0]
["Democratic Republic of the Congo",null,null,null,null,null,null,null,null,null,null,null,null,null,null,null,null,null,null,null,null,null,null,null,null,null,null,null,null,null,null,null,null,null,null,null,null,null,null,null,null,null,null,null,null,null,null,null,null,null,null,null,null,null,null,null,null,null,null,null,null,null,null,null,null,null,null,null,null,null,null,null,null,null,null,null,null,null,null,null,null,null,null,null,null,null,null,null,null,null,null,null,null,null,null,null,null,null,null,null,null,null,null,null,null,null,null,null,null,null,null,null,null,null,null,null,null,null,null,null,null,null,null,null,null,null,null,null,null,null,null,null,null,null,null,null,null,null,null,null,null,null,null,null,null,null,null,null,null,null,null,null,null,null,null,null,null,null,null,null,null,null,null,null,null,null,null,null,null,null,null,null,null,null,null,null,null,null,null,null,null,null,null,null,null,null,null,null,null,null,null,null,null,null,null,null,null,null,null,null,null,null,null,0]
["Denmark",null,1,6,1,null,null,5,null,2,5,1,1,2,1,2,1,1,5,2,2,1,1,1,2,2,6,6,2,6,6,6,6,1,1,1,1,1,1,6,6,6,6,6,6,2,2,2,1,null,2,2,1,2,6,2,2,6,1,6,6,6,6,6,2,6,1,1,1,1,2,6,2,6,1,1,1,6,1,6,6,1,2,6,2,1,1,6,1,6,6,1,2,6,1,2,2,2,1,2,1,1,4,1,1,1,4,1,1,1,4,1,1,1,4,1,"An integrated approach to water resources is being developed under the EU Water Framework Directive. The plans are not yet finalised I Denmark, and the outcomes and key results will consequently only be visible at a later stage.","The main constraint is to find the balance between economic and environmental interests.",4,4,1,1,4,4,1,1,1,4,1,5,4,4,3,3,5,5,4,3,3,4,5,5,1,1,1,1,5,1,4,4,4,4,4,4,4,4,4,3,4,4,5,5,5,5,5,5,5,5,5,5,5,5,5,5,5,4,4,4,"Water management is progressively being improved as specified by EU Directives under implementation.",2,null,null,null,null,null,"Robert Jensen","rje@nst.dk","Head of Section","Ministry of Environment","(+45)7254 4911 (direct line)","Haraldsgade 53","2100 Copenhagen","Denmark",null,null,null,null,null,null,null,null,1,null,0]
["Djibouti",null,null,null,null,null,null,null,null,null,null,null,null,null,null,null,null,null,null,null,null,null,null,null,null,null,null,null,null,null,null,null,null,null,null,null,null,null,null,null,null,null,null,null,null,null,null,null,null,null,null,null,null,null,null,null,null,null,null,null,null,null,null,null,null,null,null,null,null,null,null,null,null,null,null,null,null,null,null,null,null,null,null,null,null,null,null,null,null,null,null,null,null,null,null,null,null,null,null,null,null,null,null,null,null,null,null,null,null,null,null,null,null,null,null,null,null,null,null,null,null,null,null,null,null,null,null,null,null,null,null,null,null,null,null,null,null,null,null,null,null,null,null,null,null,null,null,null,null,null,null,null,null,null,null,null,null,null,null,null,null,null,null,null,null,null,null,null,null,null,null,null,null,null,null,null,null,null,null,null,null,null,null,null,null,null,null,null,null,null,null,null,null,null,null,null,null,null,null,null,null,null,null,0]
["Dominica",2,1,2,1,2,1,2,2,2,1,2,2,2,2,2,1,1,2,1,1,1,1,1,1,1,1,2,2,2,2,2,2,1,2,2,2,2,2,2,2,2,3,2,1,1,2,1,1,3,2,2,1,1,2,2,1,1,2,2,1,4,3,4,2,2,2,3,3,2,2,2,1,1,3,3,4,1,1,4,4,1,3,1,2,3,2,1,1,4,4,1,1,1,4,4,4,4,4,2,2,3,3,3,2,3,3,2,2,2,2,2,3,4,3,3,null,null,2,3,3,2,1,3,2,2,2,1,3,1,3,3,4,3,3,4,4,4,4,3,4,3,3,3,1,1,3,3,3,3,3,3,4,3,4,4,4,4,3,3,2,2,3,3,3,3,3,3,3,3,3,3,3,3,3,3,3,3,"NOTE: Several responses was received, these answers are calculated averages.",1,"& 2!",null,null,null,null,null,null,null,null,null,null,null,null,null,null,null,null,null,null,null,null,1,null,0]
["Dominican Republic",null,null,null,null,null,null,null,null,null,null,null,null,null,null,null,null,null,null,null,null,null,null,null,null,null,null,null,null,null,null,null,null,null,null,null,null,null,null,null,null,null,null,null,null,null,null,null,null,null,null,null,null,null,null,null,null,null,null,null,null,null,null,null,null,null,null,null,null,null,null,null,null,null,null,null,null,null,null,null,null,null,null,null,null,null,null,null,null,null,null,null,null,null,null,null,null,null,null,null,null,null,null,null,null,null,null,null,null,null,null,null,null,null,null,null,null,null,null,null,null,null,null,null,null,null,null,null,null,null,null,null,null,null,null,null,null,null,null,null,null,null,null,null,null,null,null,null,null,null,null,null,null,null,null,null,null,null,null,null,null,null,null,null,null,null,null,null,null,null,null,null,null,null,null,null,null,null,null,null,null,null,null,null,null,null,null,null,null,null,null,null,null,null,null,null,null,null,null,null,null,null,null,0]
["Ecuador",4,4,3,3,2,2,2,2,2,4,4,2,2,2,4,2,4,3,2,4,4,2,2,2,4,4,5,4,5,1,5,2,2,3,3,5,5,5,5,2,2,4,2,3,2,2,2,2,2,2,2,2,5,4,4,4,2,3,5,4,4,4,4,2,2,4,2,2,2,4,2,2,2,5,5,5,4,5,5,4,4,4,2,4,4,4,2,4,4,2,2,2,2,1,4,4,1,4,4,2,2,1,2,1,1,1,1,1,1,1,1,2,2,2,2,"- Creation of the National Water Secretariat - in 2008 (The Sole Water Authority in Ecuador)   - Establishment -in the New Constitution of Ecuador- of principles ruling the water resources management     - Model of river basins management    - Approval of the COTAD (Organic Code of Territorial Organization, Autonomy and Decentralization)      - Proposal of Law for water resources management    - Policies on integrated management of water resources, adopted in 2011    - Proposal recently presented by Ecuador at Bonn, Germany, before the UN Framework Convention on Climate Change for incorporating the water resources management issue in the context of negotiations.","-Difficulty in approving the new Law of Water – low socialization of the law and lack of agreements to approve it;   -Lack of information on water resources in the past, a problem not yet completely solved.   -Lack of policies for integrated management of water resources.  -Maintenance of political zoning for the State Development Planning",5,3,2,3,4,4,4,4,4,3,4,4,4,4,3,4,2,4,3,2,2,2,1,2,4,4,3,4,2,4,4,4,4,5,3,4,3,5,4,4,4,4,4,4,4,4,3,4,4,4,4,4,4,4,4,4,4,4,4,4,null,2,null,null,null,null,null,"SENAGUA’s Technical, Territorial and Social Team","Domingo.paredes@senagua.gob.ec; secretarionacional@senagua.gob.ec","Department of International Relations – Secretaría Nacional del Agua - SENAGUA","SENAGUA","(593) 2 2554154 – 2 554115  Fax: (593) 2 2554171 - 2554251","Av. Eloy Alfaro y Amazonas, Edf. MAGAP, 3er Piso",null,"Ecuador","Pamela Dávila (responsible for gathering this information)","pamela.davila@senagua.gob.ec",null,null,null,null,null,null,1,null,0]
["Egypt",4,4,5,5,4,1,5,4,4,4,4,4,2,4,2,2,2,2,5,6,5,5,5,2,2,4,4,4,4,4,2,2,4,4,4,4,4,5,4,5,2,5,5,5,4,4,4,4,4,4,4,2,5,5,3,2,2,5,5,5,5,4,5,5,6,6,4,4,4,2,4,5,2,5,5,5,5,5,5,4,2,5,2,5,5,5,5,5,5,4,3,5,3,3,4,4,4,null,null,1,2,2,2,1,1,1,1,1,1,1,1,1,2,2,2,"•Increase agriculture productivity.  •Secure more farm cash income through expansion of cultivation area of sugarcane, wheat, and other cultivable cash crops.  •Stabilize rural community through agriculture development.  •More equitable water distribution.  •Crop yield are increased because of improved water management.  •Water saving.   •Better water management under water storage conditions.","•Water Shortage.  •Budget shortage.  •Difficulties facing the reform of the administrative structure.  •The need to raise the efficiency of workers in the water sector.  •The need to raise the public water awareness.",4,5,4,4,3,4,3,4,4,4,5,5,5,5,5,4,3,5,3,4,5,4,5,4,4,4,4,4,3,4,4,4,4,4,5,4,5,4,4,3,4,4,4,4,3,3,4,5,4,4,4,4,5,4,4,4,4,4,5,5,null,1,null,null,null,null,null,"Dr. Essam A.Khalifa","essam@mwri.gov.eg","Sector Head, Ministes's Office","Ministry of Water Resources and Irrigation","+20 (2) 35443420/30","12666 Kornich El Nile - Imbaba-Giza","5th floor - MWRI building","Egypt","Prof. Dr. Mohamed  Abdel Motaleb","motaleb@mwri.gov.eg","Head of the Planning Sector","Ministry of Water Resources and Irrigation","+20 (2) 35449456","12666 Kornich El Nile - Imbaba-Giza","6th floor - MWRI building","Egypt",1,null,0]
["El Salvador",2,1,2,1,2,2,2,2,5,2,4,2,2,1,1,1,1,1,2,3,1,2,2,2,2,2,3,4,4,2,4,4,4,2,2,2,2,2,2,2,2,2,2,2,2,2,2,1,1,2,1,1,2,2,2,2,2,5,4,3,4,2,2,1,2,3,2,2,2,2,2,2,2,2,4,5,4,3,4,3,1,4,1,2,2,4,2,2,2,2,1,2,2,1,5,5,2,2,2,2,2,2,2,1,1,3,2,2,2,3,2,3,3,2,3,null,"Water resources in El Salvador have limitations given by nature, to which are added problems caused by improper management.   1. This situation is aggravated by climate variability in recent years has increased the occurrence of extreme events of hydrological origin, which affects the availability of both the temporal and spatial scale.   2. The population growth and urban conglomerate increases the need to provide supply services and also generate solid and liquid waste by not having the proper disposition, becomes a very serious problem of contamination of water resources, particularly surface water.   3. The current state of the availability and quality of water has been influenced by a poor legal and institutional framework, weak and fragmented, which has failed to respond to the need for development planning. It has rules which presents numerous overlaps and contradictions in the institutional, but also leaves gaps in regulation.",3,4,2,3,4,5,5,3,5,4,5,4,2,5,4,4,1,5,5,4,5,4,5,4,5,4,4,4,3,4,4,5,4,5,3,5,3,5,4,5,5,3,3,3,3,3,3,4,3,3,3,3,4,3,3,4,4,5,4,3,null,1,null,null,null,null,null,"Hernan Romero","hromero@marn.gob.sv","Director de Ordenamiento, Evaluacion y Cumplimiento","Ministerio de Medio Ambiente y Recursos Naturales","(503) 2132-9370; (503) 2132-9344","Km 5 ½ , carretera a Santa Tecla, Calle y Colonia Las Mercedes,","instalaciones ISTA, Edificio MARN. San Salvador.","El Salvador",null,null,null,null,null,null,null,null,1,null,0]
["Equatorial Guinea",null,null,null,null,null,null,null,null,null,null,null,null,null,null,null,null,null,null,null,null,null,null,null,null,null,null,null,null,null,null,null,null,null,null,null,null,null,null,null,null,null,null,null,null,null,null,null,null,null,null,null,null,null,null,null,null,null,null,null,null,null,null,null,null,null,null,null,null,null,null,null,null,null,null,null,null,null,null,null,null,null,null,null,null,null,null,null,null,null,null,null,null,null,null,null,null,null,null,null,null,null,null,null,null,null,null,null,null,null,null,null,null,null,null,null,null,null,null,null,null,null,null,null,null,null,null,null,null,null,null,null,null,null,null,null,null,null,null,null,null,null,null,null,null,null,null,null,null,null,null,null,null,null,null,null,null,null,null,null,null,null,null,null,null,null,null,null,null,null,null,null,null,null,null,null,null,null,null,null,null,null,null,null,null,null,null,null,null,null,null,null,null,null,null,null,null,null,null,null,null,null,null,0]
["Eritrea",null,null,null,null,null,null,null,null,null,null,null,null,null,null,null,null,null,null,null,null,null,null,null,null,null,null,null,null,null,null,null,null,null,null,null,null,null,null,null,null,null,null,null,null,null,null,null,null,null,null,null,null,null,null,null,null,null,null,null,null,null,null,null,null,null,null,null,null,null,null,null,null,null,null,null,null,null,null,null,null,null,null,null,null,null,null,null,null,null,null,null,null,null,null,null,null,null,null,null,null,null,null,null,null,null,null,null,null,null,null,null,null,null,null,null,null,null,null,null,null,null,null,null,null,null,null,null,null,null,null,null,null,null,null,null,null,null,null,null,null,null,null,null,null,null,null,null,null,null,null,null,null,null,null,null,null,null,null,null,null,null,null,null,null,null,null,null,null,null,null,null,null,null,null,null,null,null,null,null,null,null,null,null,null,null,null,null,null,null,null,null,null,null,null,null,null,null,null,null,null,null,null,0]
["Estonia",4,4,4,4,4,4,4,2,5,5,5,5,2,5,5,1,2,5,5,5,6,6,6,6,6,6,5,5,5,5,5,5,5,5,5,5,5,5,5,5,6,6,5,4,1,1,5,5,6,null,5,1,6,3,3,5,4,6,5,5,5,5,5,5,5,4,5,5,4,4,4,2,6,5,1,5,5,2,5,5,1,2,3,5,1,5,5,2,5,5,1,2,2,4,4,4,4,4,4,3,4,5,3,3,3,4,4,3,3,4,4,5,5,5,5,"• High quality of drinking water available to every person  • All the wastewater discharged into water bodies is treated.  • The quality and quantity of of surface and groundwaters continues to improve.","• Lack of financial sources to finance the necessary activities  • Low environmental awareness  • Lack of institutional, administrative capacity to prepare and manage infrastructure improvement projects  • Lack of information on relations between pressures, impacts, status and adequate response activities.",5,4,3,3,3,3,2,2,2,3,4,4,5,4,3,4,3,2,4,3,3,3,4,4,4,4,3,2,3,4,3,3,2,4,4,5,5,4,3,2,2,2,4,5,3,3,4,5,4,4,3,4,5,5,5,4,3,3,3,3,null,2,null,null,null,null,null,"Rene Reisner","rene.reisner@envir.ee","Senior officer","Ministry of the Environment/Water Department","+372 6262 855","Narva mnt 7A","Tallinn, 15172","Estonia",null,null,null,null,null,null,null,null,1,null,0]
["Ethiopia",5,1,5,1,5,null,3,5,6,6,6,5,4,null,null,null,2,null,null,3,4,4,4,4,4,5,6,5,5,4,4,4,5,5,5,4,4,2,5,4,5,5,3,2,5,5,2,2,4,3,2,null,5,5,4,3,4,6,5,4,4,3,4,3,4,4,4,2,2,2,3,3,3,5,5,5,5,4,5,3,1,4,4,5,5,5,5,4,5,3,1,4,4,4,null,null,null,null,null,null,null,null,null,null,null,null,null,null,null,null,null,null,null,null,null,null,null,4,3,3,4,3,3,3,4,4,3,3,4,2,2,2,1,3,2,4,3,4,4,2,2,4,4,4,4,3,3,3,4,4,3,4,4,4,3,3,3,4,4,2,1,2,2,2,2,2,2,2,1,1,1,1,2,2,2,2,2,null,2,null,null,null,null,null,"Fekahmed Negash","abbaybasin@ethionet.et","Director","Ministry of Water and Energy","251 11 661 11 11","PO Box 5744 Addis Ababa",null,"Ethiopia","Tefera Beyene","tbeyene@nilebasin.org","Director","Ministry of Water and Energy","251 11 663 53 41","PO Box 5744 Addis Ababa",null,"Ethiopia",1,null,0]
["Fiji",3,2,3,2,3,2,2,2,2,3,3,3,2,2,2,2,2,2,2,2,4,4,4,2,2,2,4,4,4,4,4,4,3,2,2,2,2,4,2,3,2,4,4,4,4,4,2,2,2,2,4,2,4,4,4,3,4,4,4,4,4,4,4,3,3,4,4,4,2,3,2,2,2,4,4,4,4,4,6,6,2,2,4,4,4,5,5,4,5,5,2,2,2,4,4,4,2,4,1,4,4,4,4,4,4,4,4,4,4,4,4,4,4,4,4,null,null,1,4,4,3,3,4,3,4,2,2,4,4,3,5,5,4,4,5,3,3,4,4,5,5,4,4,3,3,3,4,4,4,4,3,4,4,4,4,4,4,3,4,3,3,3,3,2,3,3,3,3,2,2,3,3,3,3,3,3,3,null,2,null,null,null,null,null,"Opetaia Ravai","oravai@waf.com.fj","Acting Chief Executive Officer","Water Authority of Fiji",3346777,"Level 4 Manohan Building","Nasinu.","Fiji",null,null,null,null,null,null,null,null,1,null,0]
["Finland",6,6,6,1,6,5,5,6,1,6,1,1,5,5,4,1,4,4,6,6,6,6,6,5,6,6,6,4,6,6,6,6,6,6,6,6,6,6,6,6,5,6,6,2,6,6,2,6,5,6,6,1,6,6,4,6,5,6,6,6,6,6,6,4,6,6,5,5,5,6,5,4,5,1,1,5,1,5,6,6,1,1,5,5,1,5,5,5,6,6,1,1,5,3,2,2,3,5,1,4,null,5,null,4,null,5,null,3,null,4,null,3,null,4,null,null,null,1,2,2,null,3,1,3,2,1,1,3,2,3,2,3,3,3,3,4,4,3,3,3,3,2,2,2,2,3,3,3,3,3,2,3,3,3,3,2,2,3,3,2,2,3,3,3,4,4,4,4,4,3,2,2,2,4,4,3,3,null,2,null,null,null,null,null,"Hannele Nyroos","hannele.nyroos@ymparisto.fi","Councellor","Environment/Department of Natural Environment",358510000000,"POB 35","FI-0023 Government Finland","Finland",null,null,null,null,null,null,null,null,1,null,0]
["France",6,6,6,6,6,1,5,6,1,5,1,6,4,2,6,5,6,6,6,6,6,6,6,6,6,6,6,6,6,6,6,6,1,1,6,6,6,6,6,5,6,6,6,5,6,6,6,6,6,6,5,5,6,6,5,6,5,6,6,6,6,6,6,6,6,6,5,5,5,6,5,5,6,6,6,6,6,6,6,6,1,2,6,6,6,6,6,6,6,6,1,4,5,2,4,5,5,4,4,2,1,4,null,2,1,4,null,3,1,4,null,3,1,5,null,"- Global improvement of water quality.  - Improved domestic and industrial water uses (quality, quantity)  - Management plans agreed by all stakeholders in each river basin.","Problems of diffuse pollution (agriculture)",3,5,3,3,4,null,4,4,2,2,5,5,5,4,3,3,5,null,5,5,5,5,4,4,1,1,3,4,3,5,4,4,4,3,4,1,1,3,3,4,4,4,3,3,4,4,3,4,4,5,5,2,4,3,3,4,4,4,5,5,"We strongly regret to have only received an English copy of the questionnaire.    We globally find the survey tool could have been designed with clearer objectives (how to follow up on CSD 13 and what has evolved since the same kind of questionnaire for CSD16, how the report resulting from this set of questionnaires will be useful to prepare CSD 20 and the UNCSD “Rio+20”).    Additionally, this would probably have helped to better formulate the “questions”: some of the items are unclear, hence difficult to assess and answer. The guidance note could have included some explanations (main objectives of each section, etc.)     Many questions refer to “sub-national” levels: in France, the whole system of water resources management is based on the basin scale: the water basin is the relevant level for water management, planning, financing, etc. This should be proposed as an option in the questionnaire.    The item “not relevant” is proposed in some questions, which is fine. The option “not existing” could also be useful: a policy and instrument can be very relevant for a country, yet neither developed/implemented nor even existing.",2,null,null,null,null,null,"RIVAUD Jean-Paul","jean-paul.rivaud@developpement-durable.gouv.fr","Head International unit water directorate","Ecology","33 1 40 81 37 23",null,null,"France",null,null,null,null,null,null,null,null,1,null,0]
["Gabon",2,2,2,1,2,2,2,3,4,2,3,3,3,3,4,1,3,2,2,2,2,3,3,1,2,2,4,4,4,5,2,5,2,2,2,2,2,2,4,2,2,2,2,2,2,2,2,2,2,2,4,2,6,3,4,2,2,6,4,2,5,2,2,2,2,2,2,2,2,2,2,6,2,6,4,6,6,5,6,2,1,5,2,5,4,5,5,4,5,5,1,5,2,4,5,5,1,4,1,4,4,5,4,3,3,3,3,3,3,3,3,4,4,4,4,"1. Stakeholders consultation  2. Synergistic efforts for managing the sector  3. Savings on the investments that will have to be made  4. Better definition of the development objectives","1. Problem with stakeholders training [I understand lack of/low capacities]  2. The IWRM institutional framework must be developed.",4,5,5,5,4,5,3,1,3,1,3,3,4,5,5,5,4,5,3,1,3,1,3,3,5,3,3,1,3,3,5,5,1,5,5,5,5,5,4,4,5,5,5,4,3,3,4,4,4,4,3,5,5,5,5,5,4,4,4,5,null,2,null,null,null,null,null,"Nkegna Joel","nkegna_joel@yahoo.fr","Chargé d'Etudes au Cabinet","Ministère de l'Energie et des Resources Hydrologiques","+241 06 68 31 47","BP 1172","Libreville","Gabon","Mambari Sidney","sidney_mambari@yahoo.fr","Directeur Assainissement","Ministère de l'Energie et des Resources Hydrologiques","+241 07 38 16 04","BP 1172","Libreville","Gabon",1,null,0]
["Gambia",4,1,null,null,3,null,null,null,6,4,3,3,2,3,3,null,null,3,5,5,6,2,null,3,null,5,5,5,5,5,5,5,5,3,3,2,2,2,2,null,2,2,2,2,2,2,2,2,2,2,2,null,4,3,3,2,3,2,3,3,5,null,5,5,2,3,2,2,2,3,4,null,2,6,6,6,6,4,4,null,1,2,2,6,6,6,6,3,4,1,1,2,2,4,4,5,1,1,1,4,4,4,4,4,4,4,4,4,4,4,4,5,4,4,4,"Key results: (objectives)  To support the establishment of IWRM in the Gambia in line with national Water Partnerships (NWP) and the IWRM roadmap.    Expect Outcomes:   - Improved governance of water resources based on IWRM   - Efficient allocation of water resources from improved knowledge of the resource  - Enhanced capacity in the Gambia to manage the nation's water resources  - Water sector actors and stakeholders at all levels supporting of IWRM","Constraints/Obstacles:  - Capacity: low human and technical capacity to generate and maintain minimum capacity to implement IWRM.  - Coordination between sectors: lack of functional roadmap of steering bodies (Task Forces and oversight body) to facilitate smooth coordination of IWRM in the roadmap implementation.  - Poor data: inadequate water resources information systems to improve data archiving, analysis, mapping, data sharing and decision support cpabilities.",5,4,4,4,4,5,4,4,3,3,3,3,4,5,3,4,4,4,5,4,3,4,3,4,5,4,4,4,4,4,4,5,5,4,4,5,5,5,4,5,5,5,5,5,5,null,4,4,4,5,5,5,5,5,5,5,5,5,5,5,null,2,null,null,null,null,null,"Pa Ousman Tarju","pajarju@yahoo.co.uk","Director","Water Resources","+220 422 76 31","7 Marina","Parade","Gambia","Mr. Yusupha Bojang","wallimang@yahoo.co.uk","Hydrological superintendent","Department of Water Resources","+220 422 76 31","7 Marina","Parade","Gambia",1,null,0]
["Georgia",2,2,3,1,1,1,1,1,4,2,1,2,2,1,1,2,1,4,2,4,1,1,1,2,2,1,5,5,4,3,3,2,6,3,3,3,3,3,3,4,2,3,3,1,1,2,1,2,1,5,2,1,3,3,3,3,2,6,4,1,4,3,4,3,4,4,2,1,1,3,1,1,1,2,2,2,2,2,4,3,1,1,2,3,3,3,1,2,3,3,1,1,1,1,4,4,4,4,2,3,3,3,3,4,4,3,4,3,3,3,3,4,4,3,4,null,null,4,4,2,3,2,4,4,3,3,3,4,3,4,4,3,4,3,4,3,2,2,2,2,2,3,2,2,3,3,3,4,3,3,4,4,4,5,4,3,4,4,4,3,3,3,3,3,4,2,2,2,4,4,4,5,4,3,4,4,3,"NOTE: Multiple responses received, answers are calculated averages. /Jakob",2,null,null,null,null,null,"Mariam Makarova","Waterdept_mm@yahoo.com","Head of the Water Resources Management Division","Ministry of Environment Protection of Georgia, Integrated Environmental Management Department","+ 995 32 72 72 27","6 Gulua Str.","Tbilisi","Georgia","Kakha Nadiradze","knadiradze@economy.ge","Head of Sustainable Development Department","Ministry of Economy and Sustainable Development of Georgia","+99532 991 155","12 Str. Chanturia","Tbilisi 0108","Georgia",1,null,0]
["Germany",6,1,6,1,5,1,5,4,1,5,1,1,4,1,5,1,5,4,6,6,6,6,6,5,6,1,6,5,5,6,6,5,1,1,1,1,1,6,6,6,6,6,6,2,6,6,6,1,6,1,5,5,6,6,6,6,5,6,6,6,6,6,6,6,6,6,6,6,6,6,6,1,6,6,6,6,6,6,6,6,1,5,5,6,6,6,6,6,6,6,1,5,6,4,2,2,4,4,5,2,1,4,1,1,1,3,1,2,1,4,1,2,3,2,1,"- improved transboundary cooperation, trust-building, increased understanding  - whole population is connected to drinking water and waste water treatment infrastructures  - improvement of chemical and ecological water quality  - better exchange of know-how, better capacity building with regard to other countries in and outside Europe","- time constraints with regard to EU water law  - water uses and water protection can not always be balanced  - cross sector management still a problem  - effects of climate change not yet clear",2,2,3,4,3,3,3,1,1,1,3,3,3,2,5,4,5,4,4,null,3,3,1,2,1,1,1,1,1,3,1,3,3,1,1,3,3,1,1,1,4,3,4,4,4,4,4,5,4,5,5,3,3,4,3,4,5,4,5,4,null,2,null,null,null,null,null,"Heide Jekel","Heide.Jekel@bmu.bund.de","Head of Division","Federal Ministry for the Environment, Nature Conservation and Nuclear Safety","+49 228 99 305 2521","Robert-Schuman-Platz 3","D – 53175 Bonn","Germany",null,null,null,null,null,null,null,null,1,null,{"$f":"(COUNTIF(FX67,\">0\")-(COUNTIF(GT67,\">0\")))","v":0}]
["Ghana",5,1,6,1,2,1,1,2,4,4,4,4,1,1,5,5,1,4,5,6,6,2,6,6,6,6,6,6,6,6,6,6,5,6,6,6,6,5,5,6,5,5,5,3,5,6,5,5,5,6,4,null,6,6,6,6,6,3,6,6,6,6,6,null,4,3,5,1,5,5,6,1,4,2,4,null,5,5,5,1,4,2,2,5,5,5,5,6,6,1,5,2,2,5,4,5,2,4,1,4,4,5,4,4,4,3,4,4,4,4,4,3,3,3,3,"• Avoidance of conflict has been one of the main outputs of water resources management.  The Ghana Development agenda over the years has outlined diverse uses of the water resources. They have been in the form of Irrigation, Water for hydropower, water for domestic supply among many others. Appreciable level of development has been attained over the years as a result of sound Integrated water resources management.    • Reduction/control of water pollution, flood prevention and sustainable climate change adaptation measures are some of the key results achieved through the integrated approaches of Water Resources Management","• Integrated approach to water resources management achieves sustainable result. However it is time consuming and financially demanding.  • Government’s financial allocation has not been adequately sufficient to meet the demands of the Integrated Approach. Donor funds come in with much restrictions, making it practically difficult to asses the funds .  • The Integrated approach has as part of its nature the involvement of all stakeholders. Harnessing the support and involvement of diverse stakeholders is an uneasy task. It consumes much time and other resources.",4,5,4,5,2,4,5,5,4,2,4,3,4,5,2,2,1,5,5,5,5,3,1,2,5,5,5,4,3,5,4,5,4,4,3,3,4,5,4,5,4,3,5,5,5,5,5,5,5,5,5,5,5,5,5,5,5,5,4,4,null,2,null,null,null,null,null,"Enoch Ofosu","blessedenoch@yahoo.co.uk","Water Resources Engineer (Specialist)","Ministry of Water Resources, Works and Housing- Ghana","+233 249106152","P. O. Box M43","Ministries, Accra","Ghana","Mr. Bob Alfa (Ph.D)","bobalfa@yahoo.com","Water Resources Engineer (Surface Water)","Water Resources Commission, Ghana","+233 24321064","The WRC, PMB,","Accra","Ghana",1,null,0]
["Greece",5,1,5,1,4,null,null,null,null,null,null,null,null,null,null,null,null,null,2,4,3,4,4,4,3,null,2,2,2,2,2,2,null,4,4,5,null,null,null,null,4,5,null,null,4,4,4,null,null,4,4,4,null,3,3,2,4,5,5,5,5,4,5,null,4,4,4,null,3,3,null,null,null,null,4,null,null,2,null,5,5,null,null,5,null,null,5,5,null,5,5,null,null,null,null,null,null,4,null,null,null,null,null,null,null,null,null,null,null,null,null,null,null,null,null,"Water resources management in Greece is based on the Water Framework Directive and other EU legislation, which have become key instruments for sustainable water policy in the country.  The Directive provides an integrated management on the basis of river basins, rather than administrative borders. It radically reorganized the domestic water policy: The policy moves from protection of particular waters of special interest to a national water policy that promote sustainable water use based on a long term protection of available water resources.","The main obstacles and challenges can be distinguished into organisational and technical. Some of the organisational challenges involve the establishment and the effectiveness of coordination mechanism between the competent authorities in the case of transboundary river basins, the promotion of public awareness on water issues, the allocation of adequate resources, personnel and funds to enable a timely execution of the required tasks, etc.  The technical problems are related to national, regional and/or local situations and conditions and include, inter alia, the lack of sufficient data in certain fields (biological data, economic data), the lack of appropriate monitoring systems, the severe shortage of capacity to manage water resources, frequent extended droughts causing water shortage problems and the increased irrigation with tendency of resulting in environmental problems, such as ground water pollution from nutrients and pesticides.",4,4,3,3,4,3,null,null,null,null,null,null,2,2,null,null,null,null,4,4,4,4,4,4,4,4,4,4,null,4,5,5,5,4,4,4,4,4,4,3,3,4,5,5,4,4,null,5,5,5,5,4,4,null,null,5,4,3,5,5,null,2,null,null,null,null,null,"Spyros Tasoglou","s.tasoglou@prv.ypeka.gr","Special Secretariat for Water",null,null,null,null,null,"Maria Chrysi","m.chrysi@prv.ypeka.gr","Special Secretariat for Water",null,null,null,null,null,1,null,0]
["Grenada",4,1,3,1,3,1,1,2,2,2,2,2,2,2,2,2,2,2,3,1,1,2,2,2,1,2,4,4,4,4,3,2,3,2,2,2,2,2,2,2,2,2,2,2,2,2,2,2,3,2,2,1,2,2,2,1,1,3,2,2,4,2,2,2,5,4,2,2,2,3,3,1,1,1,4,2,2,2,3,2,2,3,1,1,2,1,2,1,2,2,2,2,1,null,null,null,null,null,null,null,null,null,null,null,null,null,null,null,null,null,null,null,null,null,null,"• IWRM roadmap developed.  • Better Forestry Management and development of Forestry policy.  • Adoption of a National Water Policy, and Water Sector Review Reports.  • Implementation of National Water Information System  • Increased to 95% number of households with pipe borne water.  • Improved public/private/NGO/CBO and other sectors participation in water related activities  • Improved Public Awareness.","• Financial  • Lack of Capacity (Human, Technical ,etc.)  • Delays in implementing National Policies and Legislation relating to IWRM  • Changing political support for IWRM.  • Lack of knowledge of IWRM at senior Policy Levels",5,5,5,2,2,2,4,4,5,5,5,5,5,5,5,2,4,3,5,5,5,5,5,5,5,5,3,3,3,4,4,4,4,5,5,5,5,5,5,5,5,5,5,5,3,4,4,4,4,5,5,5,5,5,5,5,5,5,5,5,null,2,null,null,null,null,null,"Trevor Thompson","trevort_lud@yahoo.com","Land Use Officer","Ministry of Agriculture, Land Use Division","473-440-2708","Ministerial Complex","Tanteen, St. George’s.","Grenada",null,null,null,null,null,null,null,null,1,null,0]
["Guatemala",4,2,2,2,4,2,3,4,5,3,3,3,4,2,4,3,2,3,2,1,4,2,5,2,1,1,2,2,2,4,1,1,2,3,2,2,1,3,4,3,2,5,2,2,2,3,3,2,4,2,1,3,2,2,3,2,3,5,5,2,5,2,2,1,4,4,3,2,2,2,1,2,3,4,4,5,4,4,4,4,1,4,2,4,4,5,4,4,4,4,1,3,2,1,5,5,4,2,1,3,2,2,2,2,2,2,2,2,1,1,2,2,2,2,2,"The results achieved by the use of water resources has been to increase the coverage of water supply from 52.3% in 1981 to 79% in 2006 and sanitation coverage of 24.8% in 1981 to 55% in 2006; irrigated area has increased of 130,000 hectares in 1992 to 310,000 hectares in 2006 (about 24% of the total potential of the country), and hydroelectric generation has increased from 481.7 MW in 1982 to 853 MW in the 2011 (approximately 10% of the country's total potential).","The challenges of water resource management are to achieve integrated management that contributes to national development. During the past 20 years has been an increase in the use of water resources, however, requires moving from a sectoral to an integral management. The promotion of multipurpose hydraulic works, water management in transboundary basins, is also a challenge.   The challenge is to use water resources in a comprehensive manner and to conserve the resource in both quantity and quality and maintain the timing of it.",3,5,3,4,2,5,5,5,3,3,3,2,4,5,4,5,4,5,5,5,4,4,3,3,5,4,5,2,3,3,3,5,4,4,5,5,5,5,4,5,5,4,1,2,3,3,4,4,4,4,4,3,4,4,4,1,2,4,4,3,null,2,null,null,null,null,null,"Marco Morales","Marco.morales75@gmail.com","Advisor","Specific Cabinet on Water","502 5160 9097","26 Ave 10-76 z.7 KJ I Guatemala C.A.",null,null,null,null,null,null,null,null,null,null,1,null,0]
["Guinea",2,1,6,1,2,1,1,1,6,6,1,1,6,1,1,1,1,1,6,6,4,2,2,2,4,2,2,2,2,2,4,2,2,1,1,2,2,2,2,1,2,5,3,3,1,2,1,2,1,1,2,1,3,2,3,4,4,2,4,1,1,1,1,1,1,1,2,2,1,4,1,1,3,1,1,1,1,1,1,1,1,1,1,1,1,1,1,1,1,1,1,1,1,1,5,4,1,1,1,1,1,1,1,1,1,1,1,1,1,1,1,1,1,1,1,"Implementation of IWRM pilot projects in the Niger upper basin (setting up of basin organisations)  Sub-regional cooperation in terms of shared management of the river basins (Organisation for the development of the Gambia river; Organisation for the development of the Senegal river; Niger basin authority)  Launching of the national IWRM roadmap process.","Lack of financial resources  Lack of involvement of decision makers  Lack of involvement of the private sector  Lack of trained human resources",5,4,4,5,4,5,4,4,4,4,4,4,3,5,3,5,3,5,4,5,4,4,4,4,5,5,4,4,3,4,4,4,4,3,5,5,5,4,5,5,4,5,5,5,4,4,4,5,5,5,5,4,5,5,5,4,4,5,4,5,null,2,null,null,null,null,null,"Mme Mariama Dalanda DIALLO","dalandiallo2002@yahoo.fr","Coordinatrice Nationale GIRE","Ministère d’Etat Chargé de l’Environnement et de  l’Energie","+224 60 29 08 23/ +224 64 71 74 85","333, Rue RO 343 Kipé, Ratoma, Conakry",null,null,"Dr Mamadou 2 DIABY","mddiaby@yahoo.fr / nenemadi2@hotmail.fr","Coordonnateur du Programme de Gestion Intégrée des Ressources en Eau du Niger Supérieur (GIRENS)","Ministère d’Etat Chargé de l’Environnement et de  l’Energie","+224 62 22 04 35 / +224 24 22 04 35","333, Rue RO 343 Kipé, Ratoma, Conakry",null,null,1,null,0]
["Guinea-Bissau",null,null,null,null,null,null,null,null,null,null,null,null,null,null,null,null,null,null,null,null,null,null,null,null,null,null,null,null,null,null,null,null,null,null,null,null,null,null,null,null,null,null,null,null,null,null,null,null,null,null,null,null,null,null,null,null,null,null,null,null,null,null,null,null,null,null,null,null,null,null,null,null,null,null,null,null,null,null,null,null,null,null,null,null,null,null,null,null,null,null,null,null,null,null,null,null,null,null,null,null,null,null,null,null,null,null,null,null,null,null,null,null,null,null,null,null,null,null,null,null,null,null,null,null,null,null,null,null,null,null,null,null,null,null,null,null,null,null,null,null,null,null,null,null,null,null,null,null,null,null,null,null,null,null,null,null,null,null,null,null,null,null,null,null,null,null,null,null,null,null,null,null,null,null,null,null,null,null,null,null,null,null,null,null,null,null,null,null,null,null,null,null,null,null,null,null,null,null,null,null,null,null,0]
["Guyana",null,null,null,null,null,null,null,null,null,null,null,null,null,null,null,null,null,null,null,null,null,null,null,null,null,null,null,null,null,null,null,null,null,null,null,null,null,null,null,null,null,null,null,null,null,null,null,null,null,null,null,null,null,null,null,null,null,null,null,null,null,null,null,null,null,null,null,null,null,null,null,null,null,null,null,null,null,null,null,null,null,null,null,null,null,null,null,null,null,null,null,null,null,null,null,null,null,null,null,null,null,null,null,null,null,null,null,null,null,null,null,null,null,null,null,null,null,null,null,null,null,null,null,null,null,null,null,null,null,null,null,null,null,null,null,null,null,null,null,null,null,null,null,null,null,null,null,null,null,null,null,null,null,null,null,null,null,null,null,null,null,null,null,null,null,null,null,null,null,null,null,null,null,null,null,null,null,null,null,null,null,null,null,null,null,null,null,null,null,null,null,null,null,null,null,null,null,null,null,null,null,null,0]
["Haiti",2,1,4,1,2,2,2,2,3,2,3,2,2,2,2,2,2,2,2,2,2,2,2,2,2,2,2,2,2,2,2,2,2,2,2,2,2,2,2,2,2,2,2,2,2,2,2,2,2,2,2,2,2,2,2,2,2,3,3,3,3,3,3,3,3,3,3,3,3,3,2,2,2,3,3,3,3,3,4,4,1,4,4,3,3,3,3,3,3,3,3,3,3,1,1,1,1,1,1,3,3,3,3,2,2,2,2,2,2,2,2,3,3,3,3,"• Establishment of a National Water and Sanitation Authority letting to consolidate sector information to provide a holistic approach for developing policies and investments.  • River basin master plans for several regions in the country.","• Political instability  • Natural disasters",3,5,null,3,4,4,4,2,3,3,4,4,5,5,5,5,5,5,5,5,5,5,5,5,5,3,3,3,4,4,3,5,3,5,5,5,5,5,5,5,5,5,5,5,5,5,5,5,5,5,5,5,5,5,5,5,5,5,5,5,null,2,null,null,null,null,null,"Gerald Jean-Baptiste","gerald.jeanbaptiste@dinepa.gouv.ht","Top Manager","DINEPA","(+509) 25 13 20 78  (+509) 29 40 08 73","4, Angle Rue Metellus et Ibo-Lele Petionville","-","Haiti",null,null,null,null,null,null,null,null,1,null,0]
["Honduras",null,null,null,null,null,null,null,null,null,null,null,null,null,null,null,null,null,null,null,null,null,null,null,null,null,null,null,null,null,null,null,null,null,null,null,null,null,null,null,null,null,null,null,null,null,null,null,null,null,null,null,null,null,null,null,null,null,null,null,null,null,null,null,null,null,null,null,null,null,null,null,null,null,null,null,null,null,null,null,null,null,null,null,null,null,null,null,null,null,null,null,null,null,null,null,null,null,null,null,null,null,null,null,null,null,null,null,null,null,null,null,null,null,null,null,null,null,null,null,null,null,null,null,null,null,null,null,null,null,null,null,null,null,null,null,null,null,null,null,null,null,null,null,null,null,null,null,null,null,null,null,null,null,null,null,null,null,null,null,null,null,null,null,null,null,null,null,null,null,null,null,null,null,null,null,null,null,null,null,null,null,null,null,null,null,null,null,null,null,null,null,null,null,null,null,null,null,null,null,null,null,null,0]
["Hungary",null,null,null,null,null,null,null,null,null,null,null,null,null,null,null,null,null,null,null,null,null,null,null,null,null,null,null,null,null,null,null,null,null,null,null,null,null,null,null,null,null,null,null,null,null,null,null,null,null,null,null,null,null,null,null,null,null,null,null,null,null,null,null,null,null,null,null,null,null,null,null,null,null,null,null,null,null,null,null,null,null,null,null,null,null,null,null,null,null,null,null,null,null,null,null,null,null,null,null,null,null,null,null,null,null,null,null,null,null,null,null,null,null,null,null,null,null,null,null,null,null,null,null,null,null,null,null,null,null,null,null,null,null,null,null,null,null,null,null,null,null,null,null,null,null,null,null,null,null,null,null,null,null,null,null,null,null,null,null,null,null,null,null,null,null,null,null,null,null,null,null,null,null,null,null,null,null,null,null,null,null,null,null,null,null,null,null,null,null,null,null,null,null,null,null,null,null,null,null,null,null,null,0]
["Iceland",6,1,6,1,6,2,2,2,1,6,6,2,2,1,6,6,6,2,1,1,6,6,6,1,1,1,6,6,6,6,6,6,6,6,6,1,1,6,6,6,6,6,6,6,6,6,6,6,6,6,6,1,6,6,1,1,6,6,6,6,6,6,6,6,6,1,6,6,6,1,1,1,2,6,1,6,6,6,6,4,1,1,2,2,1,2,2,2,4,6,1,1,1,1,2,2,1,2,null,5,5,5,5,5,5,5,5,5,5,5,5,5,5,5,5,"- Overview of water usage and water management and water resource management  - both quality and quantity.  - Good cooperation between local authorites and State Agencies","- Limited experience in intersectoral work between government and communities  - Stakeholders and Water users ar unwilling to pay for utilazation of water and waste water treatment",1,1,1,1,1,1,1,1,1,1,1,1,3,3,3,3,3,3,3,3,3,3,3,3,1,1,1,1,1,4,4,4,2,5,5,4,4,4,4,5,3,4,5,4,null,null,4,5,5,5,5,5,5,4,4,4,5,5,4,4,"Iceland has implementet the EU Water framework directive",2,null,null,null,null,null,"Danfridur Skarphedinsdottir","danfridur.skarphedinsdottir@environment.is","Head of Department","Ministry for the Environment","+354 5458600","Skuggasund 1","IS 150 Reykjavik","ICELAND",null,null,null,null,null,null,null,null,1,null,0]
["India",null,null,null,null,null,null,null,null,null,null,null,null,null,null,null,null,null,null,null,null,null,null,null,null,null,null,null,null,null,null,null,null,null,null,null,null,null,null,null,null,null,null,null,null,null,null,null,null,null,null,null,null,null,null,null,null,null,null,null,null,null,null,null,null,null,null,null,null,null,null,null,null,null,null,null,null,null,null,null,null,null,null,null,null,null,null,null,null,null,null,null,null,null,null,null,null,null,null,null,null,null,null,null,null,null,null,null,null,null,null,null,null,null,null,null,null,null,null,null,null,null,null,null,null,null,null,null,null,null,null,null,null,null,null,null,null,null,null,null,null,null,null,null,null,null,null,null,null,null,null,null,null,null,null,null,null,null,null,null,null,null,null,null,null,null,null,null,null,null,null,null,null,null,null,null,null,null,null,null,null,null,null,null,null,null,null,null,null,null,null,null,null,null,null,null,null,null,null,null,null,null,null,0]
["Indonesia",4,3,4,1,4,2,2,4,2,3,3,3,3,3,3,2,3,3,1,2,4,3,3,3,2,4,4,4,4,2,4,1,3,3,3,4,4,4,4,4,4,3,4,2,3,4,3,4,4,4,3,3,3,3,3,2,2,4,4,4,4,3,3,3,4,3,4,3,3,4,2,2,3,5,5,5,4,4,4,3,1,4,3,5,5,4,4,4,4,3,1,3,3,4,3,3,1,4,1,2,2,2,2,3,3,3,3,2,2,2,2,3,3,3,3,"Strategic plans (\"POLA\") have been developed for several river basins, WR Councils have also been established in several river basins so that involvement of stakeholders in WR management has taken place     Farmers are more happy since they are involved in the irrigation management and took part in the development plan.","Involvement of stakeholder in the process of WR management has somehow been slowing down development process in WR sectors, eventhough it reduces potential conflict after the development.",4,4,4,3,3,4,4,3,4,3,4,3,4,5,5,3,3,4,4,3,4,4,4,3,4,4,3,3,2,4,4,4,3,4,4,3,4,3,3,4,4,3,2,2,3,3,3,4,4,4,4,4,4,3,4,3,3,4,4,3,null,1,null,null,null,null,null,"agus suprapto k","agus_s_k@yahoo.com","head of sub directorate of policy and strategy","public works, water resources","+62 21 7262013","jl patimura 20 kebayoran","jakarta","indonesia",null,null,null,null,null,null,null,null,1,null,0]
["Iran (Islamic Republic of)",5,4,6,5,5,4,5,5,5,5,5,5,3,3,5,4,3,3,6,6,6,5,5,4,6,4,3,3,3,3,3,3,3,4,4,3,3,4,4,4,5,5,5,5,4,5,5,5,5,5,5,5,5,5,5,5,5,5,5,5,5,4,5,5,5,5,5,5,5,5,4,4,4,5,3,5,4,5,5,5,4,5,5,5,4,5,4,5,5,5,3,4,4,4,4,4,4,4,4,3,3,2,3,3,3,1,3,4,3,2,3,3,3,2,3,null,null,3,4,4,4,5,4,3,4,5,5,4,4,5,5,5,5,3,5,5,5,5,5,5,5,4,4,5,5,4,3,3,4,3,3,4,5,5,5,3,5,5,5,4,4,5,5,4,4,4,5,5,4,4,5,5,5,4,5,5,5,null,1,null,null,null,null,null,"Alireza Najafi","a.r_najafi@yahoo.com","Head of Transboundary Water Researches Center","Ministry of Energy (Water & Electricity)",98921000000000,"6th floor of Ministry of Energy Building, Niayesh Highway, Vali-Asr Ave,. Tehran, Iran","Home adderss: No.24, Soroosh 11 Aley, Seraj Street, Tehran, Iran","Iran",null,null,null,null,null,null,null,null,1,null,0]
["Iraq",2,4,1,4,2,2,1,5,3,5,5,2,2,5,5,4,4,2,1,1,5,5,5,2,5,3,4,4,4,2,2,2,4,5,5,5,5,5,5,5,5,5,5,4,5,5,5,5,5,5,4,4,4,5,2,5,2,5,6,5,5,2,2,2,5,2,4,5,4,4,1,4,2,5,5,5,5,5,5,5,2,4,4,5,5,5,5,5,5,4,2,4,4,4,4,4,2,2,1,4,3,2,4,3,2,2,2,3,3,2,3,3,2,2,3,"• Participation in seciritizing an essential part of food security for the country through conveying water to arable lands.    • Distribute water fairly among different users.    • Preserve as much as possible the ecosystem, especially for restoring marshes which it was abandoned from its habitant in southern Iraq.    • Control the water resources and store it and release it according to future plans and manage anticipated crisis such as floods and droughts.","• We haven’t reached yet a final agreement with Turkey, Syria regarding Iraq’s share in Euphrates and Tigris waters.    • We don’t have  a full knowledge of water resources operation plans for upstream countries and the absence of coordination companies and contractors are not committed to finish their work within its time table.    • Lack of awareness among water users.",5,5,4,4,3,4,4,5,5,4,4,4,5,5,3,5,4,4,4,5,5,4,4,4,4,4,5,4,1,3,3,4,4,4,5,5,5,4,4,4,4,4,4,4,4,4,3,3,4,4,4,4,4,4,4,4,4,4,4,4,null,2,null,null,null,null,null,"Salar Bakr Sami","info_gdfpad_mwr_iraqi@yahoo.com","Director General","Ministry of Water Resources",9647720240,"Palestine Street","Baghdad","Iraq",null,null,null,null,null,null,null,null,1,null,0]
["Ireland",5,5,5,null,5,4,3,null,null,4,5,null,4,4,4,1,null,3,5,5,6,6,6,4,4,null,6,6,4,3,6,6,6,5,5,5,5,6,6,6,2,5,null,4,6,5,5,4,5,4,null,null,5,5,4,5,3,6,6,6,6,6,4,4,5,4,5,5,4,5,4,null,4,6,1,null,5,4,5,5,1,2,4,6,1,null,5,4,5,5,1,2,4,4,2,2,2,4,5,4,4,5,5,3,3,3,3,4,4,4,4,4,4,4,4,"River Basin Management Plans have been prepared, as required by the EU Water Framework Directive, The implementation of the ‘programme of measures’ has commenced. In addition, the Good Agricultural Practices Regulations is contributing to the reduction of nutrients in water.","Prior to the implementation of the EU Water Framework Directive, various water categories ( groundwater, rivers, lakes , transitional and coastal) were not considered in a holistic, integrated way. The implementation of the EU Strategic Environmental Assessment Directive since 2004, has led to greater integration and  evaluation of water resources  into the plans and programmes of a range of different sectors – in particular land use.",2,4,3,2,4,5,4,4,3,3,5,4,3,4,3,3,4,5,5,3,3,3,5,5,4,5,2,2,null,null,null,4,4,null,null,null,null,5,4,2,4,5,5,5,3,3,null,null,null,5,5,5,5,null,null,5,4,2,4,5,null,2,null,null,null,null,null,null,null,null,null,null,null,null,null,null,null,null,null,null,null,null,null,1,null,0]
["Israel",5,5,6,1,6,6,6,5,1,4,4,4,3,5,4,5,4,3,6,6,6,6,6,6,6,1,6,6,6,6,1,1,1,3,3,4,4,4,4,6,6,6,6,6,6,6,6,6,4,4,6,6,4,6,4,1,4,6,6,6,6,6,6,6,6,6,6,4,6,4,5,5,5,6,6,1,6,5,6,6,6,5,5,6,6,1,6,4,6,5,6,4,4,3,2,2,4,4,4,4,3,4,4,5,3,3,4,5,3,3,4,5,5,4,5,"As a result of the decision of the Stae of Israel to implement the IWRM policy for its water sector, the following measures were taken:   Irrigation with recycled effluents in exchange of potable water quota release;  Significant increase of seawater and brackish water desalination;  Demand Management through quoatas and cutbacks quotas for agriculture and industry;  Strict separation between water and sewage municipal companies and overall municipal management;   Reform in water tariffs based on cost recovery principle - who consumes more - pays more!;  Impemetation of policy for leakage reduce and metering in municipal water systems;   One governmental proffesional authority for water regulation, development and management.    Due to implementation of the IWRM policy israel suceeded to overcome a severe 7 years of droughts.","Stakeholders resistance to tariff reform (based on cost recovery principle).  Municipalities resistance to separation of the municipal water companies from the municipalities structure.",2,3,1,2,4,3,1,4,4,4,4,4,1,1,3,3,1,1,1,1,1,1,1,1,4,3,3,1,3,3,4,4,3,4,2,2,2,3,3,4,4,4,4,2,3,3,5,5,5,4,3,5,5,5,5,3,3,5,5,4,null,1,null,null,null,null,null,"Olga Slepner","olgas10@water.gov.il","Head of Foreign Relations Unit","Israeli Water Authority","972-3-6369600","Hamasger 14, Tel Aviv POB 20365,","Israel 61203","Israel","Oded Fixler","odedf10@water.gov.il","Deputy Director General (Engineering)","Israeli Water Authority","972-3-6369600","Hamasger 14, Tel Aviv POB 20365,","Israel 61203","Israel",1,null,0]
["Italy",null,null,null,null,null,null,null,null,null,null,null,null,null,null,null,null,null,null,null,null,null,null,null,null,null,null,null,null,null,null,null,null,null,null,null,null,null,null,null,null,null,null,null,null,null,null,null,null,null,null,null,null,null,null,null,null,null,null,null,null,null,null,null,null,null,null,null,null,null,null,null,null,null,null,null,null,null,null,null,null,null,null,null,null,null,null,null,null,null,null,null,null,null,null,null,null,null,null,null,null,null,null,null,null,null,null,null,null,null,null,null,null,null,null,null,null,null,null,null,null,null,null,null,null,null,null,null,null,null,null,null,null,null,null,null,null,null,null,null,null,null,null,null,null,null,null,null,null,null,null,null,null,null,null,null,null,null,null,null,null,null,null,null,null,null,null,null,null,null,null,null,null,null,null,null,null,null,null,null,null,null,null,null,null,null,null,null,null,null,null,null,null,null,null,null,null,null,null,null,null,null,null,0]
["Jamaica",6,1,6,1,5,1,5,5,5,5,5,5,6,5,6,5,5,6,1,1,6,6,1,6,1,1,6,6,6,6,6,5,1,6,1,5,1,6,6,6,6,6,6,2,6,6,6,6,2,6,2,2,5,6,5,1,2,6,6,6,6,null,6,4,6,6,6,6,2,5,5,2,2,5,5,5,6,5,6,5,1,5,4,5,5,3,5,5,6,5,1,4,2,4,4,4,5,4,1,4,4,3,4,4,3,4,4,3,2,4,3,4,4,3,4,"• Increased interagency linkages and the recognition of the role/impact of decisions made outside of consultation  • Increased awareness of Water Resources Management Issues by the general public  • Increased awareness by the Political Directorate of the importance of water resources management if water supplies are to be sustainable.  • Increased funding for water resources management; however in a recession this is given a low priority.","• Public is not sure what is IWRM   • While there are inter-agency linkages the continued reticence to share information and data has created a less than efficient IWRM  • There is a distinct lack of trainers in IWRM and while various international agencies provide some assistance in increasing capability in IWRM it is inadequate. The advances in IWRM are less than expected.  • There is also the need to have the planning and political directorate accept that IWRM should be a part of the national plans and an economic component for IWRM should be included in all budgets.",4,5,3,4,3,null,3,4,2,1,4,5,1,1,2,3,3,3,3,2,3,3,2,1,4,1,1,1,2,3,1,3,1,3,4,5,5,1,1,4,5,4,1,null,null,null,null,1,3,1,null,2,1,2,2,2,1,3,4,4,null,2,null,null,null,null,null,"Basil Fernandez","bfernandez@wra.gov.jm","Managing Director","Ministry of Water and Housing-Water Resources Authority","876 927-1878","Hope Gardens, PO Box 91","Kingston 7","Jamaica",null,null,null,null,null,null,null,null,1,null,0]
["Japan",6,6,6,6,6,6,6,6,1,6,6,6,6,6,6,1,1,6,1,1,6,2,6,6,1,6,6,5,5,1,5,1,1,6,6,6,6,6,6,6,6,6,6,1,6,6,2,6,1,6,1,6,6,6,6,6,6,6,6,6,6,6,6,6,6,6,6,6,6,6,6,6,1,5,5,5,1,5,6,null,4,1,5,6,6,6,6,6,6,6,6,1,6,3,2,2,2,1,1,3,3,5,3,3,3,4,3,3,3,4,4,3,3,4,4,"Before implementing integrated approach, there was a severe drought which caused 513 days water supply limitation (1963-1964). After dam construction and other measures complete, despite less precipitation than that time, water supply limitation lasted only 41 days(1996).",null,1,1,1,1,1,1,4,4,4,1,2,2,2,2,2,2,4,2,3,3,3,3,2,4,1,1,1,1,2,3,3,3,3,1,1,1,1,1,1,5,4,3,3,3,3,3,3,3,4,4,4,3,3,3,3,3,3,3,3,3,null,2,null,null,null,null,null,"Yosuke TOMIZAWA(Mr.)","tomizawa-y87ea@mlit.go.jp","Deputy Director","Ministry of Land, Infrastructure, Transport and Tourism (MLIT) / Water Resources Planning Division","81-3-5253-8390","2-1-2, Kasumigaseki, Chiyodaku","Tokyo, 100-8919","Japan",null,null,null,null,null,null,null,null,1,null,0]
["Jordan",6,6,2,1,6,6,6,6,2,5,6,3,2,2,4,null,4,3,6,6,6,6,null,5,5,5,6,6,6,6,6,6,6,6,6,6,6,6,6,6,4,5,5,4,5,5,5,6,4,5,6,6,5,3,4,4,3,5,5,5,6,2,6,5,6,2,4,5,5,2,4,4,2,5,5,5,5,4,5,6,2,5,3,5,5,5,6,3,5,5,2,5,2,4,4,4,5,5,2,4,3,4,5,3,4,4,4,4,3,3,4,5,4,4,4,"Within the field of data and information management, MWI aims at bringing together the existing data and information for integrated management of water resources and developing reliable water allocation for different sectors scenarios. In this context the water Evaluation and Planning Tool, WEAP, (a water allocation model for strategic water resource management) is in the process of being developed. Currently, the software covers 90 % of the Jordanian territory (Jordan's surface- and groundwater). Parallel, to this, MWI is working on establishing a network between universities and international and national public institutions in order to further support the sustainable and integrated management of water resources.    In the field of promoting the reuse of marginal water resources for irrigation purposes, the Jordan Valley Authrority is actively participating in the establishment and functioning of a cross-sector network, including institutions from the health and safety field. This cooperation allows for concerted action to secure and healthy use of marginal water in irrigation. Farmers who use treated wastewater for irrigation has risen from 2.950 to 3.960 within a 2 year time period.    In its endeavors to promote sustainable groundwater usage in the Highlands of Jordan, MWI has engaged in a stakeholder dialogue with all relevant public institutions and water users mainly from the agricultural sector. The aim of the dialogue is to elaborate a comprehensive and socially-acceptable Action Plan to reduce groundwater consumption especially by the agricultural sector. The measures in the Action Plan target 4 major fields of intervention, which also touch upon non-water sectors, i.e. (i) On-farm efficiency, (ii) Alternative income opportunities, (iii) Legal and institutional framework conditions and (iv) Community development and awareness raising measures.    - Requirement of public engagement in water management.  - Private sector participation  - Overall institutional and legal aspects","A major and challenge in the promotion of IWRM principles is the coordination between sectors at national and sub-national level. Different national strategies are not always moving in the same direction and there is still a significant lack of shared access to information. Cooperation and coordination among public institutions whose mandates are pertinent to the water sector should also include establishing structures and systems for regular information exchange. The challenge of coordination also extends to cooperation with and among foreign donors.     -Financing for new water resources and rehabilitation of existing resources  -Droughts in relation to crisis management.   -shortage of water and water scarcity as Jordan having almost 15% of available water for coverage health standards",3,5,3,3,2,3,1,5,5,5,5,4,2,4,3,3,3,3,3,5,5,5,5,5,4,4,4,4,4,4,4,4,4,4,4,4,4,4,4,3,4,4,5,5,5,5,5,4,4,4,4,4,4,4,4,4,3,3,4,4,null,2,null,null,null,null,null,"Ali Subah","Ali.Subah@mwi.gov-jo","Assistant Secretary General","Ministry of Water and Irrigation","962 06 56 522 65","Amman-Shomesani","Belund Marriot Hotel","Jordan",null,null,null,null,null,null,null,null,1,null,0]
["Kazakhstan",null,null,null,null,null,null,null,null,null,null,null,null,null,null,null,null,null,null,null,null,null,null,null,null,null,null,null,null,null,null,null,null,null,null,null,null,null,null,null,null,null,null,null,null,null,null,null,null,null,null,null,null,null,null,null,null,null,null,null,null,null,null,null,null,null,null,null,null,null,null,null,null,null,null,null,null,null,null,null,null,null,null,null,null,null,null,null,null,null,null,null,null,null,null,null,null,null,null,null,null,null,null,null,null,null,null,null,null,null,null,null,null,null,null,null,null,null,null,null,null,null,null,null,null,null,null,null,null,null,null,null,null,null,null,null,null,null,null,null,null,null,null,null,null,null,null,null,null,null,null,null,null,null,null,null,null,null,null,null,null,null,null,null,null,null,null,null,null,null,null,null,null,null,null,null,null,null,null,null,null,null,null,null,null,null,null,null,null,null,null,null,null,null,null,null,null,null,null,null,null,null,null,0]
["Kenya",6,1,6,1,5,1,4,1,3,6,5,4,2,2,3,1,4,3,2,2,6,3,2,2,2,5,4,5,4,2,2,2,4,null,2,2,2,4,2,2,2,2,3,2,2,3,1,4,1,3,1,1,4,4,2,5,4,5,4,2,4,null,null,null,5,4,1,2,2,2,4,1,4,4,4,5,4,3,5,5,2,4,4,4,4,4,4,4,5,4,2,4,4,5,3,null,2,2,2,null,null,null,null,null,null,null,null,null,null,null,null,null,null,null,null,null,null,3,5,2,null,4,2,4,4,3,2,3,2,5,5,5,5,4,5,5,5,5,5,5,5,2,3,null,null,2,3,2,2,2,4,3,2,3,2,2,3,2,2,5,5,3,4,4,4,4,5,5,5,4,4,5,4,4,4,3,4,null,2,null,null,null,null,null,"Fred Mwango","fredmwango@yahoo.com","Head-Transboundary Waters","Ministry of Water and Irrigation","+254- 20- 2716103","P O Box 49720 – 00100 Nairobi",null,"Kenya","C. Omodi. Juma",null,"Chief Principal Research Officer","Ministry of Water and Irrigation","+254- 20- 2716103","P O Box 49720 – 00100 Nairobi",null,"Kenya",1,null,0]
["Kiribati",null,null,null,null,null,null,null,null,null,null,null,null,null,null,null,null,null,null,null,null,null,null,null,null,null,null,null,null,null,null,null,null,null,null,null,null,null,null,null,null,null,null,null,null,null,null,null,null,null,null,null,null,null,null,null,null,null,null,null,null,null,null,null,null,null,null,null,null,null,null,null,null,null,null,null,null,null,null,null,null,null,null,null,null,null,null,null,null,null,null,null,null,null,null,null,null,null,null,null,null,null,null,null,null,null,null,null,null,null,null,null,null,null,null,null,null,null,null,null,null,null,null,null,null,null,null,null,null,null,null,null,null,null,null,null,null,null,null,null,null,null,null,null,null,null,null,null,null,null,null,null,null,null,null,null,null,null,null,null,null,null,null,null,null,null,null,null,null,null,null,null,null,null,null,null,null,null,null,null,null,null,null,null,null,null,null,null,null,null,null,null,null,null,null,null,null,null,null,null,null,null,null,0]
["Kuwait",null,null,null,null,null,null,null,null,null,null,null,null,null,null,null,null,null,null,null,null,null,null,null,null,null,null,null,null,null,null,null,null,null,null,null,null,null,null,null,null,null,null,null,null,null,null,null,null,null,null,null,null,null,null,null,null,null,null,null,null,null,null,null,null,null,null,null,null,null,null,null,null,null,null,null,null,null,null,null,null,null,null,null,null,null,null,null,null,null,null,null,null,null,null,null,null,null,null,null,null,null,null,null,null,null,null,null,null,null,null,null,null,null,null,null,null,null,null,null,null,null,null,null,null,null,null,null,null,null,null,null,null,null,null,null,null,null,null,null,null,null,null,null,null,null,null,null,null,null,null,null,null,null,null,null,null,null,null,null,null,null,null,null,null,null,null,null,null,null,null,null,null,null,null,null,null,null,null,null,null,null,null,null,null,null,null,null,null,null,null,null,null,null,null,null,null,null,null,null,null,null,null,0]
["Kyrgyzstan",null,null,null,null,null,null,null,null,null,null,null,null,null,null,null,null,null,null,null,null,null,null,null,null,null,null,null,null,null,null,null,null,null,null,null,null,null,null,null,null,null,null,null,null,null,null,null,null,null,null,null,null,null,null,null,null,null,null,null,null,null,null,null,null,null,null,null,null,null,null,null,null,null,null,null,null,null,null,null,null,null,null,null,null,null,null,null,null,null,null,null,null,null,null,null,null,null,null,null,null,null,null,null,null,null,null,null,null,null,null,null,null,null,null,null,null,null,null,null,null,null,null,null,null,null,null,null,null,null,null,null,null,null,null,null,null,null,null,null,null,null,null,null,null,null,null,null,null,null,null,null,null,null,null,null,null,null,null,null,null,null,null,null,null,null,null,null,null,null,null,null,null,null,null,null,null,null,null,null,null,null,null,null,null,null,null,null,null,null,null,null,null,null,null,null,null,null,null,null,null,null,null,0]
["Lao People's Democratic Republic",null,null,null,null,null,null,null,null,null,null,null,null,null,null,null,null,null,null,null,null,null,null,null,null,null,null,null,null,null,null,null,null,null,null,null,null,null,null,null,null,null,null,null,null,null,null,null,null,null,null,null,null,null,null,null,null,null,null,null,null,null,null,null,null,null,null,null,null,null,null,null,null,null,null,null,null,null,null,null,null,null,null,null,null,null,null,null,null,null,null,null,null,null,null,null,null,null,null,null,null,null,null,null,null,null,null,null,null,null,null,null,null,null,null,null,null,null,null,null,null,null,null,null,null,null,null,null,null,null,null,null,null,null,null,null,null,null,null,null,null,null,null,null,null,null,null,null,null,null,null,null,null,null,null,null,null,null,null,null,null,null,null,null,null,null,null,null,null,null,null,null,null,null,null,null,null,null,null,null,null,null,null,null,null,null,null,null,null,null,null,null,null,null,null,null,null,null,null,null,null,null,null,0]
["Latvia",5,1,5,1,5,1,3,5,1,4,4,5,1,5,1,1,1,6,1,3,5,5,5,5,3,1,5,5,4,4,4,4,1,6,6,6,6,6,6,6,4,5,2,1,4,4,1,1,1,1,1,1,5,4,1,null,4,6,5,5,5,4,5,5,5,5,4,4,1,5,5,null,5,6,1,5,4,5,5,5,1,1,4,1,1,1,4,5,5,5,1,1,4,4,4,3,4,4,2,3,1,5,3,1,1,4,3,1,1,4,1,3,3,5,3,"• More information on outcomes and key results will be available by 2015, when the first period covered by river basin management plans will come to the end. At the moment we can mention the following:   • Improved cooperation and information exchange with neighboring countries, which are EU Member States, more joint projects  dealing with water resources protection and management;  • Record keeping on (measuring of) water use and policy of tariffs and taxation of natural resources extraction has encouraged more efficient use of water resources, especially in the communal sector;  • Amounts of discharged wastewater as well amounts of most main pollutants in wastewater are decreasing during last 10 years.","• Obstacle is non-formalized cooperation with the neighboring countries that are not EU Member States. It is complicated to improve water quality, especially in the Baltic Sea, if improvements are not jointly agreed and planned in our largest river basin.    • Integration in the policies of the other sectors is also challenging as the thinking and planning of the other sectors are not based on the ecosystem services approach. Therefore, real value of water resources, which are vital for quality and efficiency of agricultural, industrial etc. activities, is not always recognized. As a result water resources protection is not always regarded as a real priority by other sectors.",1,1,1,2,2,2,2,1,1,1,3,3,1,2,1,4,4,2,3,3,3,3,4,4,3,4,4,3,3,3,4,4,3,1,4,5,5,4,3,2,2,2,5,5,4,4,3,2,4,3,3,5,5,5,5,5,3,3,4,4,null,2,null,null,null,null,null,"Iveta Teibe","Iveta.Teibe@vidm.gov.lv","Expert","Latvian Ministry of Environmental Protection and Regional Development/ Environmental Protection Department",37167000000,"Peldu iela 25","Riga, LV 1494","Latvia",null,null,null,null,null,null,null,null,1,null,0]
["Lebanon",4,1,4,1,2,1,2,2,1,1,1,3,3,3,3,1,1,1,5,5,2,4,1,3,5,5,2,4,4,4,2,2,4,4,4,4,4,4,4,4,2,3,3,1,3,4,3,2,2,2,2,3,4,2,3,5,2,2,5,5,5,3,4,4,4,3,2,2,3,2,2,2,2,3,3,2,5,4,4,4,1,4,1,4,4,4,4,4,4,4,4,1,4,4,5,3,3,1,1,3,3,1,3,3,3,1,3,3,3,1,3,3,3,1,3,"- increased involvement and coordination of relevant stakeholders on water resources management;  - enhanced donors’ coordination and more effective sector support through foreign aid;  - improved water mainstreaming in other sectors’ policies and vice-versa ;  - creation of new laws providing a more integrated approach to water resources management;  - improved monitoring of water resources;  -identification of sector’s priority actions for the short, medium and long term;- increased capacity of stakeholders dealing with water management","- Financing  - Political will  - Political Instability  - Lack of capacity (needs for capacity building)",4,5,3,5,3,5,3,4,4,4,4,4,4,5,3,5,4,5,4,5,5,5,5,5,4,4,4,4,4,3,4,4,4,4,4,4,4,5,4,4,4,4,3,3,5,3,4,4,4,4,4,4,4,3,3,4,3,3,4,3,"-  Questions answered as “Not relevant” refer in most of the cases to issues for which no exact information is available.",2,null,null,null,null,null,"Dr. Fadi Comair","gdher@terra.net.lb","Director General of Hydraulic & Electric Resources","Ministry of Energy & Water","+961 1 565013/014","Ministry of Energy & Water","Corniche El Naher Beirut","Lebanon",null,null,null,null,null,null,null,null,1,null,0]
["Lesotho",4,1,4,1,2,1,1,1,3,2,3,2,2,1,2,2,4,2,5,5,4,6,5,1,6,2,4,5,5,2,2,2,3,4,4,4,1,1,4,1,4,2,1,null,4,4,2,1,1,6,2,1,6,2,2,5,2,4,6,5,5,4,2,1,4,2,4,1,2,5,4,1,4,2,2,5,5,2,5,5,1,4,4,2,2,5,5,2,5,5,1,4,4,4,5,4,3,1,5,4,3,3,4,3,3,3,3,2,2,2,2,4,4,3,4,"SECTOR WIDE APPROACH (SWAP)  which guided and culminated to Sector Budget Support to the Water Sector by different funding Agencies","CAPACITY CONSTRAINTS:  Human and Financial",null,null,null,null,null,null,null,null,null,null,null,null,null,null,null,null,null,null,null,null,null,null,null,null,null,null,null,null,null,null,null,null,null,null,null,null,null,null,null,null,null,null,null,null,null,null,null,null,null,null,null,null,null,null,null,null,null,null,null,null,"1.  The tinted marked boxes means that the heading is relevant but the item has not yet been developed.  2.  Under Item 7. (Priority challenges), an E-mail was made requesting the clarification as the team compiling this report could not have the same understanding. No guiding response has been received since May 2011.",2,null,null,null,null,null,"Emmanuel Lesoma","Lwsip.lesoma@yahoo.com","Commissioner of Water","Water Commission","+266 22320127","U.N. Road Sentinel Park, Maseru",null,"LESOTHO",null,null,null,null,null,null,null,null,1,null,0]
["Liberia",null,null,null,null,2,1,2,null,5,2,2,3,4,3,4,3,3,3,5,null,null,null,3,3,null,null,4,4,5,3,null,null,4,3,3,3,2,4,null,null,null,null,null,3,null,3,null,3,3,null,null,null,3,4,4,null,3,3,3,null,3,null,null,null,null,null,4,3,2,2,2,1,2,2,3,3,4,4,4,4,1,null,3,3,4,4,4,4,4,2,1,2,2,3,4,4,2,1,1,null,null,null,null,null,null,null,null,null,null,null,null,null,null,null,null,"Summary of Narratives on outcomes and key results in Liberia  Since 2006, water resources management instruments have been developed compatible with IWRM strategy. The IWRM Policy of Liberia completed in July 2009 and facets of implementation are ongoing. This policy (IWRM) called for the development of other sub-sector policies which have been developed also. The Water Supply and Sanitation Policy (WSSP) was completed in November 2009.  The Energy, Agriculture and environmental Protection policies have been developed concurrently. Some level of International Development partners assistances are very encouraging. The African Water Facility is sponsoring the conduct of National Water Sector Reform Study (WSRS) based at the Ministry of Lands, Mines and Energy. AfDB has committed several millions of Euros tor the Rehabilitation of Water supply and sanitation systems in Monrovia, the Three Capitals Water supply and Sanitation project for Kakata, Buchanan and Zwedru. USAID is financing the restoration water supply and sanitation systems in Robertsport, Sanniquellie and Voinjama.  The UN Organs (UNICEF, UNDP, FAO, WHO, etc ) are  all contributing significantly.  Liberia have implemented the Poverty Reduction Strategy (PRS I) and the PRS II have also being developed to improve Liberian Living Standards from the current to the “Middle Level Society- Liberia Rising 2030.  The above are important milestones in Liberia.","The major impeding constraints in the Development of IWRM in Liberia range from ‘limited trained Human Capacities, inadequate financial support mechanisms and bureaucracy in accessing Development Partners’ Assistance”. The limitation in human resource capacities resulted from “aging staff and lack of institutional capacities” to ensure national training agenda in this Sector.",4,4,3,4,3,4,4,1,2,2,4,4,5,5,4,4,3,4,5,null,4,4,5,4,5,4,5,4,3,4,5,5,4,5,5,5,5,4,5,4,5,5,4,3,3,3,4,5,null,4,4,4,4,4,3,4,4,4,4,4,"Please note that “TBD” means to be developed. Liberia is emerging from business as usual to proper water governance. Therefore the question is not addressing the needs of Liberia, we add TBD indicating that we need to develop the instrument (s).",2,null,null,null,null,null,"Jefferson W. Wylie","Jeffersonw.wylie@yahoo.com","D I R E C T O R","MLM&E/Liberian Hydrological Service","+231 6 815 802","Oldroad, Sinkor","Monrovia","Liberia","Saye H. Gwaikolo","shgwaikolo@yahoo.com","Technical Assistance/Water Resources","Ministry of Lands, Mines and Energy (MLM&E)","+231 6 558 215","Capitol Hill","Monrovia","Liberia",1,null,0]
["Libyan Arab Jamahiriya ",6,6,6,1,6,1,4,4,4,4,4,4,2,5,4,3,1,2,5,1,1,5,1,4,5,5,5,5,4,4,4,4,2,5,5,5,5,5,5,3,5,6,4,2,5,5,5,5,4,4,5,4,4,4,2,5,2,6,5,5,5,2,5,4,5,2,5,5,4,5,2,2,2,5,5,1,5,1,5,4,5,5,1,5,5,1,5,1,5,4,5,5,1,4,2,2,1,1,1,4,4,2,3,4,3,2,2,4,2,2,2,3,3,2,3,"- better water use   - improved water distribution  - improved wastewater treatment and reuse  - better awareness  - improved water monitoring   - improved data processing systems  - improved coordination among water users  - improve dcapacity building  - improved infrastructure","- finance constraints  - slow implementation of national policies  - inadequate infrastructure  - insufficient high level training   - administrative constraints",4,5,3,1,2,4,2,4,3,4,2,4,5,5,4,3,3,4,3,5,4,5,3,5,4,4,3,3,2,4,4,4,4,4,4,4,4,4,3,2,3,4,4,4,5,4,4,4,4,4,4,5,4,4,4,3,4,3,3,4,null,1,null,null,null,null,null,"Lutfi Ali Madi","gwazone5@hotmail.com","Director of Zone 5","General Water Authority","+218 21 360 0391","P.O.Box 5332","Tripoli","Libya","Omar salem","gwalibya@hotmail.com","Chairman of GWA","General Water Authority","+218 21 487 2024","P.O.Box 5332","Tripoli","Libya",1,null,{"$f":"(COUNTIF(FX99,\">0\")-(COUNTIF(GT99,\">0\")))","v":0}]
["Liechtenstein",null,null,null,null,null,null,null,null,null,null,null,null,null,null,null,null,null,null,null,null,null,null,null,null,null,null,null,null,null,null,null,null,null,null,null,null,null,null,null,null,null,null,null,null,null,null,null,null,null,null,null,null,null,null,null,null,null,null,null,null,null,null,null,null,null,null,null,null,null,null,null,null,null,null,null,null,null,null,null,null,null,null,null,null,null,null,null,null,null,null,null,null,null,null,null,null,null,null,null,null,null,null,null,null,null,null,null,null,null,null,null,null,null,null,null,null,null,null,null,null,null,null,null,null,null,null,null,null,null,null,null,null,null,null,null,null,null,null,null,null,null,null,null,null,null,null,null,null,null,null,null,null,null,null,null,null,null,null,null,null,null,null,null,null,null,null,null,null,null,null,null,null,null,null,null,null,null,null,null,null,null,null,null,null,null,null,null,null,null,null,null,null,null,null,null,null,null,null,null,null,null,null,0]
["Lithuania",6,6,6,6,6,6,6,6,5,6,6,6,6,6,6,5,5,6,5,5,6,6,6,6,5,1,6,6,6,6,6,6,6,5,5,5,5,1,1,5,6,6,6,6,6,6,6,1,5,1,5,1,6,5,1,5,4,6,6,6,6,6,6,6,6,5,4,4,1,5,6,5,6,5,1,5,5,5,5,5,1,1,2,5,1,5,5,5,5,5,1,1,4,4,1,1,1,4,1,5,5,2,4,5,5,2,4,4,4,2,3,5,5,5,5,"One of the outcomes is the elaboration of the river basin management plans, which present an overview of water problems, the complex analysis of their causes and the role of different sectors, water protection objectives and a set of measures to reach these objectives targeting different sectors and responsible institutions. The real outcomes will be possible to assess only after the measures in those plans will be implemented, but for now the plans represent an important tool that sets the stage for real improvements in water status in the future.","Some challenges emerged in the process of preparation of such integrated planning documents like river basin management plans. These were related to difficulties to harmonize environmental interests with the socio-economic interests of agricultural and energy (hydropower) sectors in particular. Other similar challenges could emerge when the measures in the basin management plans will start to be implemented in practice.",1,1,1,1,1,1,1,1,1,1,4,4,1,1,1,4,2,2,4,4,3,3,2,4,3,3,3,3,3,4,3,3,3,4,4,4,4,4,4,3,1,4,5,3,3,3,3,4,3,3,3,5,5,5,5,4,4,3,1,5,null,2,null,null,null,null,null,"Simonas Noreika","s.noreika@am.lt","Chief Desk Officer","Ministry of Environment / Water Department","+370 5 266 2706","A. Jakšto g. 4/9","LT-01105 Vilnius","Lithuania","Dalius Krinickas","d.krinickas@am.lt","Director","Ministry of Environment / Water department","+370 5 266 3521","A. Jakšto g. 4/9","LT-01105 Vilnius","Lithuania",1,null,0]
["Luxembourg",null,null,null,null,null,null,null,null,null,null,null,null,null,null,null,null,null,null,null,null,null,null,null,null,null,null,null,null,null,null,null,null,null,null,null,null,null,null,null,null,null,null,null,null,null,null,null,null,null,null,null,null,null,null,null,null,null,null,null,null,null,null,null,null,null,null,null,null,null,null,null,null,null,null,null,null,null,null,null,null,null,null,null,null,null,null,null,null,null,null,null,null,null,null,null,null,null,null,null,null,null,null,null,null,null,null,null,null,null,null,null,null,null,null,null,null,null,null,null,null,null,null,null,null,null,null,null,null,null,null,null,null,null,null,null,null,null,null,null,null,null,null,null,null,null,null,null,null,null,null,null,null,null,null,null,null,null,null,null,null,null,null,null,null,null,null,null,null,null,null,null,null,null,null,null,null,null,null,null,null,null,null,null,null,null,null,null,null,null,null,null,null,null,null,null,null,null,null,null,null,null,null,0]
["Madagascar",2,1,5,1,2,3,2,1,3,3,3,3,2,3,2,1,1,1,1,1,2,2,2,2,1,2,3,4,4,5,4,5,4,4,3,3,3,2,5,2,2,2,4,2,3,3,3,2,2,3,3,1,3,2,2,1,2,6,3,3,3,2,5,4,null,3,4,3,2,2,5,4,3,5,5,5,5,5,5,2,1,2,1,3,3,3,5,4,6,2,1,2,1,1,4,4,5,4,1,4,5,3,5,4,5,3,3,3,4,3,3,5,5,2,4,"Avaibility of : a water law (code de l’eau), the national authority of water and sanitation (ANDEA:Autorité Nationale de l’Eau et de l’Assainissement), the Ministry of Water, the National Programme for access to potable water and basic sanitation (PNAEPA:Programme national d’accès à l’eau potable et à l’assainissement), the water and sanitation date base system (BDEA: base de données du secteur eau et assainissement), projet de mise en place d’un schéma-directeur de l’eau financé par le Pnud.","1- Lack of funds to implement  a  water resources assessment and  monitoring programme  2- Insufficient budget  to implement sufficiently the PNAEPA ( the national  programme  for  access to potable water and sanitation)   3- Lack of a development of energy policy",4,5,3,3,2,4,4,4,3,2,3,2,4,5,3,2,3,5,5,4,4,4,3,3,5,5,1,1,5,5,3,3,3,3,5,5,5,5,3,4,2,3,3,4,3,3,4,4,3,4,4,3,4,4,4,3,4,4,4,4,null,2,null,null,null,null,null,"Jean Herivelo Rakotondrainibe","rjherivelo@yahoo.fr","National Coordinator of Diorano-Wash","Diorano-Wash  (National Wash Coalition)","261 32 07 100 60","Lot II D 92 Manjaka","Antananarivo","Madagascar",null,null,null,null,null,null,null,null,1,null,0]
["Malawi",5,4,5,5,4,1,4,4,4,4,4,4,4,4,4,1,4,4,4,4,2,2,2,4,4,4,4,4,4,4,2,2,4,4,4,4,4,4,4,4,4,4,4,2,4,4,2,2,2,2,4,2,4,4,4,4,4,4,4,4,4,4,4,2,4,4,4,4,4,4,4,2,4,2,4,4,4,2,4,4,1,4,2,4,4,4,4,4,4,4,1,4,4,4,4,4,4,1,1,4,4,4,4,4,4,4,4,4,4,4,4,4,4,4,4,"1.   Approaches to managing and developing water and land resources follow integrated principles.  2.  Greater appreciation of the integrated method.  3.  Helped in poverty alleviation.  4.  Helped in the preservation of the environment.","1.  Lack of funds.  2.  Limited awareness",4,4,4,4,2,4,3,4,4,4,4,4,5,5,4,4,2,5,4,4,4,4,2,2,4,4,4,4,2,4,4,4,4,4,4,4,4,3,4,3,3,3,4,4,5,4,3,4,4,4,4,3,4,4,4,3,4,4,4,4,null,2,null,null,null,null,null,"W.P.C. CHIPETA","wpcchipeta@yahoo.com","Chief Water Resources Development Officer","Irrigation and Water Development",266000000000,"Irrigation and Water Development, Private Bag 390","Lilongwe 3","Malawi",null,null,null,null,null,null,null,null,1,null,0]
["Malaysia",2,2,2,4,2,2,2,2,3,4,4,4,4,4,4,4,4,4,1,4,5,5,4,4,4,4,4,4,4,4,4,4,4,4,4,4,4,4,4,4,4,4,4,4,5,5,4,3,4,4,4,4,4,5,4,4,4,5,5,5,5,5,5,5,5,5,4,4,4,4,4,1,4,4,5,5,4,5,5,5,3,4,5,4,5,5,4,5,5,5,3,4,4,4,1,1,1,4,4,5,5,5,5,5,5,5,5,5,5,5,5,5,5,5,5,"i. National Study for the Effective Implementation of Integrated Water Resource Management (IWRM) in Malaysia  ii. Best Management Practices (BMP) in Awareness Raising Capacity Building Towards The Implementation of IWRM in Malaysia  iii. Development of Flood Warning System and Drought Monitoring System  iv. Integrated River Basin Management  in Malaysia and BMP.","i. Water management in Malaysia is fragmented whereby there are different agencies responsible for water resources and water services.  ii. Formulation of a comprehensive policy on water resources management is in progress.  iii. Water resources is under the state jurisdiction and the Federal Government is required to formulate an act for purposes of uniformity.",4,5,4,4,4,4,4,4,4,4,4,4,4,4,4,4,4,5,4,4,4,4,4,4,4,4,4,4,2,4,4,4,4,4,4,4,4,4,4,4,4,4,4,4,4,4,4,4,4,4,4,4,4,4,4,4,4,4,4,4,null,1,null,null,null,null,null,"Rogayah Kadari","rogayah@kettha.gov.my","Under Secretary","Ministry of Energy, Green Technology and Water","603-88836266","Level 2, Block E4/5, Parcel E","Putrajaya","Malaysia",null,null,null,null,null,null,null,null,1,null,0]
["Maldives",null,null,null,null,null,null,null,null,null,null,null,null,null,null,null,null,null,null,null,null,null,null,null,null,null,null,null,null,null,null,null,null,null,null,null,null,null,null,null,null,null,null,null,null,null,null,null,null,null,null,null,null,null,null,null,null,null,null,null,null,null,null,null,null,null,null,null,null,null,null,null,null,null,null,null,null,null,null,null,null,null,null,null,null,null,null,null,null,null,null,null,null,null,null,null,null,null,null,null,null,null,null,null,null,null,null,null,null,null,null,null,null,null,null,null,null,null,null,null,null,null,null,null,null,null,null,null,null,null,null,null,null,null,null,null,null,null,null,null,null,null,null,null,null,null,null,null,null,null,null,null,null,null,null,null,null,null,null,null,null,null,null,null,null,null,null,null,null,null,null,null,null,null,null,null,null,null,null,null,null,null,null,null,null,null,null,null,null,null,null,null,null,null,null,null,null,null,null,null,null,null,null,0]
["Mali",null,null,null,null,null,null,null,null,null,null,null,null,null,null,null,null,null,null,null,null,null,null,null,null,null,null,null,null,null,null,null,null,null,null,null,null,null,null,null,null,null,null,null,null,null,null,null,null,null,null,null,null,null,null,null,null,null,null,null,null,null,null,null,null,null,null,null,null,null,null,null,null,null,null,null,null,null,null,null,null,null,null,null,null,null,null,null,null,null,null,null,null,null,null,null,null,null,null,null,null,null,null,null,null,null,null,null,null,null,null,null,null,null,null,null,null,null,null,null,null,null,null,null,null,null,null,null,null,null,null,null,null,null,null,null,null,null,null,null,null,null,null,null,null,null,null,null,null,null,null,null,null,null,null,null,null,null,null,null,null,null,null,null,null,null,null,null,null,null,null,null,null,null,null,null,null,null,null,null,null,null,null,null,null,null,null,null,null,null,null,null,null,null,null,null,null,null,null,null,null,null,null,0]
["Malta",null,null,null,null,null,null,null,null,null,null,null,null,null,null,null,null,null,null,null,null,null,null,null,null,null,null,null,null,null,null,null,null,null,null,null,null,null,null,null,null,null,null,null,null,null,null,null,null,null,null,null,null,null,null,null,null,null,null,null,null,null,null,null,null,null,null,null,null,null,null,null,null,null,null,null,null,null,null,null,null,null,null,null,null,null,null,null,null,null,null,null,null,null,null,null,null,null,null,null,null,null,null,null,null,null,null,null,null,null,null,null,null,null,null,null,null,null,null,null,null,null,null,null,null,null,null,null,null,null,null,null,null,null,null,null,null,null,null,null,null,null,null,null,null,null,null,null,null,null,null,null,null,null,null,null,null,null,null,null,null,null,null,null,null,null,null,null,null,null,null,null,null,null,null,null,null,null,null,null,null,null,null,null,null,null,null,null,null,null,null,null,null,null,null,null,null,null,null,null,null,null,null,0]
["Marshall Islands",2,2,2,2,2,2,3,2,2,3,2,2,3,1,3,1,1,1,2,1,1,4,1,2,1,1,2,4,4,2,4,2,2,2,2,2,2,2,1,1,4,2,2,3,4,4,2,2,3,3,3,3,3,4,3,2,2,2,5,5,5,2,3,3,2,4,4,3,2,4,2,2,3,3,1,3,4,1,3,3,4,4,1,3,1,1,4,1,3,3,3,3,1,5,5,4,1,5,2,2,2,2,2,1,1,2,2,2,1,2,2,1,1,2,2,"Development of a Water Policy Framework as key output of recent National Water Summit held on March 22-23rd, with policy recommendations to feed into development of a National Water Policy.","Efforts to address water issues/needs in the RMI are more disintegrated than integrated, establishment of a National Integrated Water Management Task-force by the Cabinet is a milestone and a step forward in better understanding national water needs. Water, until recently, has been a low priority in the RMI.",3,3,3,4,2,2,2,4,5,5,5,5,3,5,4,4,3,4,3,5,5,5,5,5,4,4,4,4,4,4,4,5,5,4,4,4,4,4,4,4,4,4,4,4,4,4,4,4,4,4,4,3,3,3,3,4,4,4,4,3,null,1,null,null,null,null,null,"Moriana Phillip","morianaphilips@gmail.com","GEF-IWRM Project Manager","Environmental Protection Agency","692-625-3035/5203","p.o box 3764","Majuro, MH 96960",692,"Deborah B Manase","deb.manase@gmail.com","General Manager","Environmental Protection Agency","692-625-3035/5203","p.o box 1322","Majuro, MH 96960",692,1,null,0]
["Mauritania",null,null,null,null,null,null,null,null,null,null,null,null,null,null,null,null,null,null,null,null,null,null,null,null,null,null,null,null,null,null,null,null,null,null,null,null,null,null,null,null,null,null,null,null,null,null,null,null,null,null,null,null,null,null,null,null,null,null,null,null,null,null,null,null,null,null,null,null,null,null,null,null,null,null,null,null,null,null,null,null,null,null,null,null,null,null,null,null,null,null,null,null,null,null,null,null,null,null,null,null,null,null,null,null,null,null,null,null,null,null,null,null,null,null,null,null,null,null,null,null,null,null,null,null,null,null,null,null,null,null,null,null,null,null,null,null,null,null,null,null,null,null,null,null,null,null,null,null,null,null,null,null,null,null,null,null,null,null,null,null,null,null,null,null,null,null,null,null,null,null,null,null,null,null,null,null,null,null,null,null,null,null,null,null,null,null,null,null,null,null,null,null,null,null,null,null,null,null,null,null,null,null,0]
["Mauritius",2,1,2,1,2,1,2,2,1,2,3,3,2,null,5,4,null,5,1,1,1,5,4,4,1,1,2,5,5,2,1,1,4,2,1,3,1,3,3,3,5,5,4,4,5,4,4,2,4,5,2,4,5,4,4,1,4,5,5,5,5,4,4,4,2,2,4,5,2,4,5,2,3,5,5,5,5,2,5,4,2,2,4,4,4,4,4,4,4,4,2,2,2,4,4,4,4,4,1,4,4,4,4,3,2,2,3,3,3,4,4,5,4,4,5,"The adoption of an integrated approach to Water Resources Management has enabled a judicious use of water resources by the different sectors of the economy. This has also ensured that water allocations for environmental considerations be prioritised.  With increasing demand and climate change impact management of water resources, especially in times of scarcity become challenging.  A sound allocation of water to the private sectors has enabled the country to tread on the growth path over the years.","Mauritius is a SIDS and as such is subject to the impacts of climate change with respect to decreasing rainfall tendencies, rising sea levels, urbanization and increasing amount of effluents being discharged into the watercourses and on-land. These impacts though remaining a challenge have been curtailed down with sound legal framework backed by sufficient funding and institutional set up for implementing appropriate measures to address these impacts.",4,5,4,3,null,null,null,null,null,null,null,null,4,5,5,5,4,4,3,5,4,4,4,5,4,2,1,1,3,4,4,4,2,4,5,4,4,4,3,4,3,3,4,4,null,null,3,4,4,4,null,3,4,4,4,4,3,4,4,4,null,2,null,null,null,null,null,"DEEPCHAND Dhaneshwar","ddeepchand@mail.gov.mu","Director","MEPU/WRU",2304657988,"Rose- Hill",null,"Mauritius","Juggoo.L","ljuggoo@mail.gov.mu","Deputy Director","MEPU/wru",2304657988,"Rose- Hill",null,"Mauritius",1,null,0]
["Mexico",5,5,5,5,5,1,5,4,2,5,5,5,5,5,3,2,2,4,2,6,6,6,6,2,4,2,6,6,6,6,6,6,2,3,3,4,4,4,5,3,5,5,5,2,5,5,3,5,5,2,4,4,5,5,2,5,2,5,5,5,4,4,5,4,5,4,3,5,5,4,3,4,5,5,5,5,5,5,5,5,5,2,2,5,5,4,5,5,5,5,5,1,2,4,5,5,5,4,4,3,3,3,3,3,3,3,3,3,3,3,3,3,3,3,3,"• The rate of exploitation or degradation of water resources has decreased, thanks in part to existing knowledge and measures relating to IWRM among institutions at both national and local levels. The technicians are increasingly using or trying to introduce in their programs concepts such as protection of recharge areas, reuse, green energy, sustainable use, interagency agreements and citizen participation.","• Political interests or powerful groups are delaying the implementation of actions.  • Difficult access to financing.  • Difficulties in gathering all kind of resources from different sectors towards a common target, since each sector promotes their own objectives.   • Differential involvement of stakeholders in the various regions.",3,3,3,3,3,5,5,4,4,5,4,4,2,3,3,3,5,5,4,3,5,5,4,4,3,4,4,4,3,4,3,3,3,3,4,4,4,4,4,5,4,5,3,4,4,4,4,4,3,4,3,4,4,5,5,4,5,4,5,5,"In many tables the questionnaire forces us (could be a good strategy) to choose between the first two categories: “not relevant” and “under development”. In other words: “we are now working on an item, or if not, then the item is not relevant for us”. Maybe instead of “not relevant”, the category could be “not priority”. An item is maybe important, but resources are preferably directed to higher priority items. That doesn´t mean the item is “not relevant”.",2,null,null,null,null,null,"Mario López Pérez","mario.lopezperez@conagua.gob.mx","Manager of Engineering and Technical Standards","National Water Commission","+52 (55) 51 74 40 37 +52 (55) 51 74 40 38 +52 (55) 51 74 40 00 ext 1522 Fax +52 (55) 51 74 40 00 ext 1520 & 1521","Insurgentes Sur 2416, colonia Copilco el Bajo, delegación Álvaro Obregón","Zip Code 04340, México, Distrito Federal","México",null,null,null,null,null,null,null,null,1,null,0]
["Micronesia (Federated States of)",null,null,null,null,null,null,null,null,null,null,null,null,null,null,null,null,null,null,null,null,null,null,null,null,null,null,null,null,null,null,null,null,null,null,null,null,null,null,null,null,null,null,null,null,null,null,null,null,null,null,null,null,null,null,null,null,null,null,null,null,null,null,null,null,null,null,null,null,null,null,null,null,null,null,null,null,null,null,null,null,null,null,null,null,null,null,null,null,null,null,null,null,null,null,null,null,null,null,null,null,null,null,null,null,null,null,null,null,null,null,null,null,null,null,null,null,null,null,null,null,null,null,null,null,null,null,null,null,null,null,null,null,null,null,null,null,null,null,null,null,null,null,null,null,null,null,null,null,null,null,null,null,null,null,null,null,null,null,null,null,null,null,null,null,null,null,null,null,null,null,null,null,null,null,null,null,null,null,null,null,null,null,null,null,null,null,null,null,null,null,null,null,null,null,null,null,null,null,null,null,null,null,0]
["Monaco",5,1,5,1,5,1,6,5,1,5,5,5,5,1,5,1,1,1,5,3,1,5,1,1,3,1,5,5,6,6,1,1,6,6,1,6,1,6,1,5,1,5,5,1,4,1,1,1,1,4,4,3,4,1,4,3,4,6,6,4,6,6,6,5,5,5,5,5,5,5,5,5,5,6,1,1,6,1,6,6,4,6,1,6,1,1,6,6,6,6,1,6,1,5,2,2,2,4,2,2,2,5,3,3,2,5,3,2,2,5,3,4,4,5,3,"Safety of water ressource supply ( volume and quality)  Limitation of water importation using local ressources  Reduction of water consumption  Complete recovery and treatment of waste water","None",1,5,5,1,5,1,1,1,1,4,1,4,3,5,5,3,5,3,3,3,3,5,3,5,5,1,5,1,5,5,5,5,1,5,5,5,5,5,5,4,5,5,5,3,5,3,5,5,5,5,3,5,5,5,5,5,5,4,5,5,null,1,null,null,null,null,null,"M. Cyril GOMEZ","environnement@gouv.mc","Director","Département de l'Equipement de l'Environnement et de l'Urbanisme / Direction de l'Environnement","+377 98 98 83 41","3. avenue de Fontvieille","MC 98000 MONACO","MONACO","M. Olivier LAVAGNA","amenagement@gouv.mc","Director","Département de l'Equipement de l'Environnement et de l'Urbanisme / Direction de l'Aménagement Urbain","+377 98 98 22 77","22. quai Jean Charles Rey","MC 98000 MONACO","MONACO",1,null,0]
["Mongolia",4,3,4,3,4,4,3,3,2,4,3,2,3,3,3,2,2,2,2,3,3,3,2,2,2,3,3,2,2,3,2,2,1,2,1,2,1,2,1,1,2,4,2,1,3,4,3,2,2,2,2,1,4,2,1,2,1,4,4,4,3,2,3,2,1,2,1,1,2,2,1,1,2,2,3,2,1,2,4,2,1,2,2,2,2,2,2,2,2,2,1,2,2,null,null,5,null,5,null,2,2,1,2,3,1,1,2,3,1,1,2,2,2,2,2,"1. National Water Resources Plan (NWRP) for Mongolia   2. Pilot River Basin Management Plan for a selected river basin, based on the NWRP, with a River Basin Council established and properly prepared through training and guidance on the basis of the RBM plan.    3. Two universities having developed an adequate knowledge base in IWRM to be used for the specific activities of their respective Water Resources Centres as well as the development of a specialisation in Water Management incorporated into their existing curricula.  4. Two universities and two R&D institutes having established a sustainable research base in terms of human resources and knowledge in IWRM/RBM.   5. Enhanced functioning of the Water Authority Agency (WAA) in terms of: initiating, guiding and supervising the establishment of River Basin Councils; providing recommendations for water pricing mechanisms; financing opportunities in water sector; considering public-private partnerships, public-provision, and co-operative investment through government policy.  6. Reinforced relationship between educational, research and professional sectors in the field of IWRM/RBM.  7. Pre-determined, direct applicable research outputs for RBM to be elaborated and quantified towards the end of the inception phase.","-Lack of capacity and human resources  -Lack of funding and administrative, communication and financing infrastructures  -Lack of enforcement of existing legislation and regulatory framework  -Lack of stakeholders involvement and cross-sectoral management  -Lack of research, monitoring, and information sharing  -Lack of ecosystem concerns and environmental impacts",4,5,4,3,5,5,4,5,4,4,4,4,5,4,5,3,3,5,5,5,5,5,5,5,4,4,4,4,4,5,5,5,5,3,4,5,5,4,4,4,4,4,1,1,2,2,3,3,3,3,3,4,3,3,3,4,3,4,3,3,null,1,null,null,null,null,null,"Choikhand Janchivlamdan","choikhandj@yahoo.com","Researcher","University of Leicester, Department of Geography","+976 99995673","Ministry of Nature, Environment and Tourism","Ulaanbaatar","MONGOLIA",null,null,null,null,null,null,null,null,1,null,0]
["Montenegro",5,1,5,1,2,2,2,1,4,5,1,2,2,5,5,2,1,4,4,4,4,4,4,4,4,4,5,2,5,5,5,5,1,2,2,2,2,2,4,2,4,4,4,1,2,3,3,4,2,4,2,2,5,3,2,2,3,6,5,2,5,3,4,4,3,2,2,3,2,2,5,2,5,4,4,3,4,4,5,4,1,4,2,5,4,3,5,5,5,5,1,5,2,4,4,4,4,4,2,2,2,3,2,2,2,3,2,2,2,3,2,3,3,3,3,"Accepting international principles and standards, with a focus on community acquis, Montenegro is intensively working on harmonization and building of its own legislation in view of water resources management and use. With gradual implementation, these norms, formal at the beginning, will bring progress in the area of water resources use. Some of the results achieved are the creation of legislative framework ensuring: - establishing a system of integral water management; -water management at the level of the river basin; -rational use of natural resources, which contributes to achieving the aims of preservation, protection and improvement of environment quality; -gradual reduction of water pollution, thus ensuring adequate quality of surface and underground waters for the needs of sustainable use; - also, instruments were developed in accordance with the Aarhus Convention and the national legislative for adequate public participation in decision-making pertaining to water; -division of waters to waters of importance for Montenegro and waters of local importance, with the aim of creating bases for more significant participation of local government in water management. Establishment of Water Administration as an administration body responsible for water management affairs represents one of the most important steps in strengthening the institutional framework in this area. Improved development of communal infrastructure in the area of waste waters started after the Government of Montenegro adopted strategic documents in 2005 (Master Plan for conducting waste waters from Montenegrin seaside and municipality Cetinje and the Strategic masterplan for sewage and waste waters in the central and northern region of Montenegro). Period prior to the adoption of these documents is characterized by minimum and unsynchronized development of communal infrastructure, which resulted in insufficiently constructed sewage systems and lack of waste water treatment plants in the majority of municipalities.  The mentioned strategic master plans defined the need to construct waste water treatment plants and sewage network in all municipalities with the bill of quantities and a plan until 2030. After that development of project documents started, and in the period from 2005 to date the major part of project documents have been developed in most municipalities, and the construction of sewaged network and waste water treatment plants started in several municipalities. Two companies have been established as institutional support to municipalities in the implementation of projects (“Vodacom”doo and “Procon”doo), which have the role of project implementation units, all under the coordination of the sector for communal development of the Ministry for Sustainable Development and Tourism. Also, credit arrangements have been provided from Reconstruction Credit Institute (KfW) and European Investment Bank (EIB), as well as a significant part of donations (Instrument for Pre-Accession Assistance (IPA), Infrastructure Project Facility –Technical Assistance (IPF-TA), Infrastructure Project Facility – Municipal Window (IPF-MW); United States Agency for International Development (USAID).  Implementation of projects defined by strategic documents concerning waste waters means implementation in practice of the Directive on waste water treatment 271/91/EEC and of its annex. Also, strategic planning implementation contributes to the fact that more than 50 % of municipalities in Montenegro will have built sewage systems and waste water treatment plants by the end of 2013 and the beginning of 2014, which is a great progress in relation to the present level of somewhat more than 10% of treated water. Progress can be noticed also in the area of population water supply, concretely through the construction of the regional water supply system for Montenegrin seaside.","Besides the indisputably great potential and richness in water resources, water management in Montenegro could be called the „neglected branch “. What is typical for the considered period (in the period until 80s) is lack of continuity in the water resources management development, and this practically in all aspects. More detailed research for the past 20 years as a base for decision making is lacking, progress in integral water management is limited, investments are minimum, there is a very expressed lack of trained personnel. The existing human and material capacities of institutions in charge of water quality and management are not adequate and should be strengthened. In compliance with the previous issue on the implementation of projects defined by the Master plan for conducting waste waters from Montenegrin seaside and the municipality Cetinje and the Strategic Master Plan for sewage system and waste waters in the central and northern region of Montenegro, problems have also been identified concerning limited personnel capacities of municipalities, which influenced the dynamics and the speed of preparation of the necessary documents and the spatial-planning preconditions. Besides lack of expert staff for their implementation and imperfect structure of the system of subjects participating in management, there is also overlapping of competencies and doubling of tasks between institutions in charge of legislation implementation in the area of environmental protection as another significant problem. Overlapping occurs mainly in the area of monitoring, register of polluters and information systems. Having in mind the above stated, coordination between several institutions in the area of waste waters, as well as the fact that water resources management inspection has limited capacities, which will in particular become prominent in the period when systems for waste water treatment are put into function, can also be recognized as a deficiency. Regarding this issue, the Ministry of Sustainable Development and Tourism has also organized developement of an analysis of the laws and other acts in the area of waters from the aspect of implementation of projects which are defined by strategic master plans in the area of waste waters (i.e. implementation of 271/91/EEC Directive in practice).  Lack of funds does not allow implementation of larger, more complex projects, which makes difficult integral water management, i.e. – it is realized more in a partial way. Only scarce funds are allocated for financing water management, which implies a complicated procedure and a long time period from an idea to the realization of a project, purchase of equipment, means for work, additional education and professional training. Lack of funds is overcome in particular cases with the international actors’ assistance, when – if the funds are well applied – concrete cases of positive results of quality water resources management are achieved.",4,5,3,4,4,5,5,3,3,3,5,5,3,3,2,4,4,5,5,3,3,3,3,3,5,5,4,4,3,3,4,5,5,5,4,4,4,4,4,4,4,4,4,4,4,4,3,4,4,4,4,5,5,4,5,4,4,4,4,3,"1. Policy, strategic planning and legal framework  1.1.1. Main national/federal instruments for water resources management  a. National/federal policy for water resources  Water Management Bases of the Republic of Montenegro from 2001 is a long term national plan of water management, which is to be reviewed ten years after its adoption, thus an obligation to be done this year. e. National or federal plan/s for integral water resources management or adequate strategic planning documents Law on Waters provides for adoption of Water Management Plans for the water area of a river basin or its part. To date an Ordinance on the content and manner of preparation of the water management plan has been developed, but work on the Plans has not started yet.  12  f. Special national or federal plan/s for efficient water use Law on Waters planned adoption of a special water management plan for particular issues of water management in case implementation of water base cannot be provided through water management plans. In that case an Ordinance on the content and manner of preparation of a special water management plan needs to be adopted previously. g. Efficient water use in the plan for integral water management or an adequate document Future water management plans will include, among other, programmes of measures and the manner and dynamics for achievement of determined objectives in the area of water use (provision of drinking water and water for other needs, control of water catchment and accumulation, including also ban of water use, economic prices for water use and other.). 1.1.3 International Agreements on water resources management the country signed a. Regional/sub-regional agreements on water resources management Relations of Montenegro with the neighboring countries Croatia and Albania are regulated by the following agreements concluded between the states:  - Agreement between the Government of Republic of Montenegro and the Government of Republic of Croatia on mutual relations in the area of water management, made and signed on September 04 2007 in Zagreb;  - Agreement between the Government of Republic of Montenegro and the Government of Republic of Albania on the problems of waters, concluded on October 31 2001 in Podgorica.  Based on the Contract, Commissions were established that work jointly for the consideration and resolving of all the problems related to international river systems management. Activities for preparation of the Agreement with the Frederation of B&H are under way, and the relations with Serbia are yet to be regulated as well. b. Cross-border contracts on water resources management for specific river basins Convention on the protection of the river Danube: Montenegro has been a full member of the Commission for the Protection of the Danube Tiver (ICPDR) since October 2008. Convention on the protection of sea water and the coastal area of the Mediterranean - Barcelona Convention: the Parliament of Montenegro ratified Barcelona Convention and four accompanying protocols in October 2007. Convention on the protection and use of cross-border water courses and international lakes - Convention on Waters: The Parliament of Montenegro has not acceeded to this Convention, but participates in its work as an observer. Framework Agreement for the Sava river basin: Montenegro participates in the work of the International Sava River Basin Commission (ISRBC), in the capacity of an observer.  2. Management and Institutional Frameworks  2.1.1 Institutional Frameworks  Apart from institutions in charge of filling in this Questionnaire, the following also have competencies in water management - Ministry of Health regarding drinking water quality and the Ministry of Transport and Maritime Affairs regarding pollution of sea water from ships.  a - d. The Council for Waters is a Govermnent advisory and expert body, which considers and gives opinions on major issues in the area of waters regarding regulations, planning acts and proposals for improvement of the situation in the water management area.  13  e. Mechanisms for cross-border water resources management - Regulated by international agreements and signed conventions. f. Decentralized structures for water resources management Law on Waters provides that waters and water assets at the territory of Montenegro are divided into waters and water assets important for Montenegro and waters and water assets of local importance. In this way competencies have been divided between state administation (Water Administration - UZV) and the local self-government (Municipality). 2.1.2 Stakeholders participation In the process of adoption of laws, decisions on granting of concessions in the area of waters, water management plans in the water area of one river basin or a part of it, active participation of the public and stakeholders is enabled, which can give objections, proposals and suggestions. Data included in the Water Information System, which is to be set up and led by Water Administration are also public.  2.1.3 Capacity building  a. i b. The assessment of capacities needed for water resources management has not been done, even though it was important to do it. The National Programme of Integration (NPI) for the period 2011 to 2015, includes the employment plan according to which the number of employees in the water management sector of the Ministry of Agriculture and Rural Development should be increased from the present 7 to 20 in 2015, and in the Administration for Water from the present 5 it should be raised to 20 until 2015.  3. Instruments for management  3.1 Management instruments for development, management and use of water resources  3.1.1 Water resources development  a. - c. This has been analyzed within the „Water Management Bases of the Republic of Montenegro “, which , as the long-term national plan for maintenance and improvement of water situation, includes the current state of regime of waters and water management objects, conditions for maintenance and development of water regime that ensure the most favourable and most efficient technical, economic and ecological solutions for unique water management and gives guidelines for further development.  3.1.2 Programs for water resources management  j. Programs for resolving disasters related to waters (eg. floods and droughts) Protection from adverse effect of waters is organized and conducted in compliance with the general and operative plans of protection from adverse action of waters, which is adopted for waters important for Montenegro and waters of local importance. The General plan of protection from adverse effects of waters, for waters of importance for Montenegro has been adopted for the period from 2010 to 2016, and preparation of the Operative plan of protection is under way.  3.1.3 Monitoring and Information Management  h. Information System for Water Resources  Law on Waters has planned establishment of Water Information System, which is under the competence of Water Administration. At the moment, Ordinance on the content and manner of keeping water information system has been adopted.  3.1.4 Financing of water resources management  14  a. Mechanisms for return of costs /structure progressive tariffs for all water uses Funds that are provided from the water fees, fees for obtaining the right to water, fees from lease of public water goods and other sources in compliance with the Law on Waters are used for financing water management according to the programs adopted by the Government of Montenegro and the competent local self-government bodies. c. Fees for Water Resources Management (e.g. fees for pollution) Fees for use of waters, protection of waters from pollution and for material taken out of water courses are determined by the Decision on the amount and manner of calculating water fees and criteria and the manner of determining degree of water pollution.  4. Infrastructure Construction and Financing  4.1.1 Investment plans and programs  Programs of the Government of Montenegro, which are implemented over the Ministry of Agriculture and Rural Development and Water Administration:  - Program for use of resources in water resources management – finances works on the water supply objects in the rural and suburban areas, work of the Council for Waters, participation of Montenegro in the International Commission for Protection of the River Danube (ICPDR) and other;  - Program of resources use for water resources management – activities in water management area are financed: development of planning and design documents in the area of water resources management, protection from adverse action of waters voda, protection of waters from pollution and water supply projects in waterless areas;  - Agro-budget – finances the construction of rainwater harvesting tanks, catchments, reservoirs, adaptation of existing rainwater harvesting tanks, purchase of pipes of various profiles and building of wells.  The competent local self-government bodies adopt their programmes for financing water management affairs under the competencies of local self-government bodies. c. tender procedure for giving concessions for construction of hydro power plants on the river Moraca is under way. Deadline for submission of bids has been prolonged by September 30 2011, after which signing of the Agreement based on the concession is expected. In August 2010, 5 concession agreements have been signed with 4 concessionaires for research and construction of small hydro power plants on the water courses in Montenegro of 10 MW capacities while in 2009 8 agreements have been signed with 6 concessionaires. 4.1.2 Mobilization of financing for water resources infrastructure Funds for financing programme from item 4.1.1. are provided from the Budget of Montenegro and the local self-government budgets in compliance with the Law on Water Management Financing. c. financing of projects from the area of hydro-energy is performed based on concessions so that the concessionaire ensures all the needed funds and in that manner acquires the right to use hydro-potential for the period defined by the Contract.  5. Sources of financing for water resources development  a. Allocations from the Government budget (as % of GDP) for water resources development – the trend was growing until 2010, when the resources were reduced by around 30 %.",2,null,null,null,null,null,"1. Policy, strategic planning and legal framework  1.1.1. Main national/federal instruments for water resources management  a. National/federal policy for water resources  Water Management Bases of the Republic of Montenegro from 2001 is a long term national plan of water management, which is to be reviewed ten years after its adoption, thus an obligation to be done this year. e. National or federal plan/s for integral water resources management or adequate strategic planning documents Law on Waters provides for adoption of Water Management Plans for the water area of a river basin or its part. To date an Ordinance on the content and manner of preparation of the water management plan has been developed, but work on the Plans has not started yet.  12  f. Special national or federal plan/s for efficient water use Law on Waters planned adoption of a special water management plan for particular issues of water management in case implementation of water base cannot be provided through water management plans. In that case an Ordinance on the content and manner of preparation of a special water management plan needs to be adopted previously. g. Efficient water use in the plan for integral water management or an adequate document Future water management plans will include, among other, programmes of measures and the manner and dynamics for achievement of determined objectives in the area of water use (provision of drinking water and water for other needs, control of water catchment and accumulation, including also ban of water use, economic prices for water use and other.). 1.1.3 International Agreements on water resources management the country signed a. Regional/sub-regional agreements on water resources management Relations of Montenegro with the neighboring countries Croatia and Albania are regulated by the following agreements concluded between the states:  - Agreement between the Government of Republic of Montenegro and the Government of Republic of Croatia on mutual relations in the area of water management, made and signed on September 04 2007 in Zagreb;  - Agreement between the Government of Republic of Montenegro and the Government of Republic of Albania on the problems of waters, concluded on October 31 2001 in Podgorica.  Based on the Contract, Commissions were established that work jointly for the consideration and resolving of all the problems related to international river systems management. Activities for preparation of the Agreement with the Frederation of B&H are under way, and the relations with Serbia are yet to be regulated as well. b. Cross-border contracts on water resources management for specific river basins Convention on the protection of the river Danube: Montenegro has been a full member of the Commission for the Protection of the Danube Tiver (ICPDR) since October 2008. Convention on the protection of sea water and the coastal area of the Mediterranean - Barcelona Convention: the Parliament of Montenegro ratified Barcelona Convention and four accompanying protocols in October 2007. Convention on the protection and use of cross-border water courses and international lakes - Convention on Waters: The Parliament of Montenegro has not acceeded to this Convention, but participates in its work as an observer. Framework Agreement for the Sava river basin: Montenegro participates in the work of the International Sava River Basin Commission (ISRBC), in the capacity of an observer.  2. Management and Institutional Frameworks  2.1.1 Institutional Frameworks  Apart from institutions in charge of filling in this Questionnaire, the following also have competencies in water management - Ministry of Health regarding drinking water quality and the Ministry of Transport and Maritime Affairs regarding pollution of sea water from ships.  a - d. The Council for Waters is a Govermnent advisory and expert body, which considers and gives opinions on major issues in the area of waters regarding regulations, planning acts and proposals for improvement of the situation in the water management area.  13  e. Mechanisms for cross-border water resources management - Regulated by international agreements and signed conventions. f. Decentralized structures for water resources management Law on Waters provides that waters and water assets at the territory of Montenegro are divided into waters and water assets important for Montenegro and waters and water assets of local importance. In this way competencies have been divided between state administation (Water Administration - UZV) and the local self-government (Municipality). 2.1.2 Stakeholders participation In the process of adoption of laws, decisions on granting of concessions in the area of waters, water management plans in the water area of one river basin or a part of it, active participation of the public and stakeholders is enabled, which can give objections, proposals and suggestions. Data included in the Water Information System, which is to be set up and led by Water Administration are also public.  2.1.3 Capacity building  a. i b. The assessment of capacities needed for water resources management has not been done, even though it was important to do it. The National Programme of Integration (NPI) for the period 2011 to 2015, includes the employment plan according to which the number of employees in the water management sector of the Ministry of Agriculture and Rural Development should be increased from the present 7 to 20 in 2015, and in the Administration for Water from the present 5 it should be raised to 20 until 2015.  3. Instruments for management  3.1 Management instruments for development, management and use of water resources  3.1.1 Water resources development  a. - c. This has been analyzed within the „Water Management Bases of the Republic of Montenegro “, which , as the long-term national plan for maintenance and improvement of water situation, includes the current state of regime of waters and water management objects, conditions for maintenance and development of water regime that ensure the most favourable and most efficient technical, economic and ecological solutions for unique water management and gives guidelines for further development.  3.1.2 Programs for water resources management  j. Programs for resolving disasters related to waters (eg. floods and droughts) Protection from adverse effect of waters is organized and conducted in compliance with the general and operative plans of protection from adverse action of waters, which is adopted for waters important for Montenegro and waters of local importance. The General plan of protection from adverse effects of waters, for waters of importance for Montenegro has been adopted for the period from 2010 to 2016, and preparation of the Operative plan of protection is under way.  3.1.3 Monitoring and Information Management  h. Information System for Water Resources  Law on Waters has planned establishment of Water Information System, which is under the competence of Water Administration. At the moment, Ordinance on the content and manner of keeping water information system has been adopted.  3.1.4 Financing of water resources management  14  a. Mechanisms for return of costs /structure progressive tariffs for all water uses Funds that are provided from the water fees, fees for obtaining the right to water, fees from lease of public water goods and other sources in compliance with the Law on Waters are used for financing water management according to the programs adopted by the Government of Montenegro and the competent local self-government bodies. c. Fees for Water Resources Management (e.g. fees for pollution) Fees for use of waters, protection of waters from pollution and for material taken out of water courses are determined by the Decision on the amount and manner of calculating water fees and criteria and the manner of determining degree of water pollution.  4. Infrastructure Construction and Financing  4.1.1 Investment plans and programs  Programs of the Government of Montenegro, which are implemented over the Ministry of Agriculture and Rural Development and Water Administration:  - Program for use of resources in water resources management – finances works on the water supply objects in the rural and suburban areas, work of the Council for Waters, participation of Montenegro in the International Commission for Protection of the River Danube (ICPDR) and other;  - Program of resources use for water resources management – activities in water management area are financed: development of planning and design documents in the area of water resources management, protection from adverse action of waters voda, protection of waters from pollution and water supply projects in waterless areas;  - Agro-budget – finances the construction of rainwater harvesting tanks, catchments, reservoirs, adaptation of existing rainwater harvesting tanks, purchase of pipes of various profiles and building of wells.  The competent local self-government bodies adopt their programmes for financing water management affairs under the competencies of local self-government bodies. c. tender procedure for giving concessions for construction of hydro power plants on the river Moraca is under way. Deadline for submission of bids has been prolonged by September 30 2011, after which signing of the Agreement based on the concession is expected. In August 2010, 5 concession agreements have been signed with 4 concessionaires for research and construction of small hydro power plants on the water courses in Montenegro of 10 MW capacities while in 2009 8 agreements have been signed with 6 concessionaires. 4.1.2 Mobilization of financing for water resources infrastructure Funds for financing programme from item 4.1.1. are provided from the Budget of Montenegro and the local self-government budgets in compliance with the Law on Water Management Financing. c. financing of projects from the area of hydro-energy is performed based on concessions so that the concessionaire ensures all the needed funds and in that manner acquires the right to use hydro-potential for the period defined by the Contract.  5. Sources of financing for water resources development  a. Allocations from the Government budget (as % of GDP) for water resources development – the trend was growing until 2010, when the resources were reduced by around 30 %.","National Council for Sustainable Development, Bosiljka Vukovid, Aneta Kankaraš","kor@t-com.me, kor@kor.gov.me","Acting Head of the Office for Sustainable Development, Associate","Office for Sustainable Development","+ 382 20 241 536","Jovana Tomaševida bb, 81000 Podgorica","Montenegro","Nevzeta Alilovid","nevzeta.alilovic@meteo.co.me","Senior Advisor, Sector for Hydrology","Hydro-meteorological Institute of Montenegro","(+382) 20 655 183","IV Proleterske Brigade 19","81000 Podgorica","Montenegro",1,null,0]
["Morocco",5,5,5,5,5,5,5,5,5,5,5,5,5,5,5,5,5,5,5,5,5,5,4,5,null,6,5,4,5,5,5,5,4,5,5,5,5,5,5,5,6,6,5,5,5,6,5,5,5,4,5,4,6,5,5,null,4,5,5,5,5,null,5,4,5,5,4,5,4,5,5,5,4,5,5,5,5,5,5,5,5,5,5,5,5,5,5,5,5,5,4,5,5,4,5,5,5,4,null,5,5,4,5,4,4,4,4,4,4,4,4,4,4,4,4,"The mobilization of resources in water by:    \t130 big dams:  Total capacity of 17 Billions of m3    \tOf the thousands of boring and wells    \t13 systems of water transfer: 1100 km and 210 m3/s  Permitted:  \tRegular supply by drinking water:  Urban servicing 92%,  rural servicing 80%  \tDevelopment of the big scale irrigation: 1.5 millions of hectares irrigated    \tReform the politics of water started by the law 10-95 (Creation of the hydraulic basin agency, introduction of the financial instruments…)  \tProduction of 2.300 kWh of electricity, 10 % of the total production  \t Reducing the effects of floods and periods of droughts","\tScarcity of water resources  \tRegional deficit in water resources  \tOver exploitation of ground water resources  \tPollution of water resources  \tImpact of climate change: flood and  drought",4,5,4,4,4,4,4,4,4,4,4,4,4,4,4,4,4,4,4,4,3,1,2,2,4,4,null,null,4,4,4,4,4,4,4,4,4,4,4,4,4,4,5,5,null,null,5,5,5,5,5,5,5,5,5,5,5,4,5,4,null,2,null,null,null,null,null,"Ms. Safaa BAHIJE","Bahije@water.gov.ma","In charge of cooperation department","State Secretariat in charge of  Water and Environment – Water Department","+212 37 77 87 27 mobile + 212 61 08 62 94","Street Hassan Benchekroun","Agdal Rabat, Po Box Rabat Chellah","Morocco",null,null,null,null,null,null,null,null,1,null,0]
["Mozambique",4,1,5,1,4,1,3,4,5,3,4,4,4,3,4,4,4,4,5,5,5,2,2,4,6,6,4,3,5,4,5,5,4,3,4,4,4,3,4,1,4,2,2,2,2,4,2,4,4,2,3,1,2,5,4,5,2,4,4,2,3,2,2,1,4,4,4,2,1,4,4,1,3,4,4,4,4,5,5,1,1,3,1,4,4,4,2,5,5,1,1,3,1,4,4,4,4,4,1,3,4,2,3,4,4,4,4,3,3,2,3,3,2,2,2,"Large Text In PDF","Large Text In PDF",4,5,4,4,3,5,5,5,4,3,3,5,4,5,4,3,3,5,5,5,4,3,4,3,4,5,5,4,3,3,5,4,5,3,5,4,5,4,5,4,3,2,2,1,2,1,1,1,2,2,4,1,3,2,2,2,1,1,4,3,null,1,null,null,null,null,null,"National Directorate of Water","ringuane@gmail.com","International Rivers Office (DNA-GRI)","Ministry of Public Works and Housing","+258 21309621","Rua da Imprensa Nr 162, 3⁰ Andar - GRI, Maputo - Mozambique",null,"Mozambique",null,null,null,null,null,null,null,null,1,null,0]
["Myanmar",1,1,1,1,2,1,4,2,2,4,4,4,2,4,4,4,4,3,4,4,2,2,2,3,2,1,2,2,4,4,2,2,2,2,4,4,4,4,4,4,2,2,2,4,4,4,4,2,2,2,2,2,4,4,2,4,4,4,2,2,2,2,2,2,2,5,4,4,2,4,2,1,2,4,5,5,5,5,5,5,2,2,5,5,5,5,5,5,5,5,2,2,2,4,1,1,1,1,1,3,3,3,3,3,3,3,3,3,3,3,3,3,3,3,3,"- one of the most important achievements in water sector is the established of the national level \"Myanmar Water Resources Committee\" in February 2005 with the approval of the Government which is also outcome of the roundtable workshop on \"Myanmar Water Vision\".  - Developed national sustainable development strategy (Myanmar)  - Statutes for the Myanmar water partnership have been adopted and put up to the government and waiting for approval.  - Formation Myanmar Water Partnership is during in the interim stage.","- In Myanmar, several agencies under the different ministries engage in water use sector but those agencies implement their main duties and at the same time, they involve the IWRM concerned tasks.  - Lack of river basin organization.  - Weak community participation.",2,2,2,1,2,2,3,3,2,2,2,2,4,4,4,4,5,5,5,5,5,5,4,4,3,3,3,3,3,3,3,2,3,4,4,4,4,3,3,2,2,2,4,4,4,4,4,4,4,4,4,4,4,4,4,4,4,5,5,4,null,2,null,null,null,null,null,"U SEIN TUN","Theinaung07@gmail.com","Civil Engineer","Directorate of Water Resources and Improvement Of River Systems  Ministry Of Transport",null,null,null,"MYANMAR","U AUNG YE' HTUT","aungyehtut@gmail.com","Civil Engineer","Directorate of Water Resources and Improvement Of River Systems Ministry Of Transport","951-572598",null,null,"MYANMAR",1,null,0]
["Namibia",6,1,2,null,3,2,2,2,2,2,4,2,3,2,2,2,2,2,5,5,4,4,1,2,4,2,3,4,3,2,3,3,2,3,1,2,1,2,4,2,3,4,null,2,4,4,4,2,2,2,2,4,3,4,3,5,2,5,5,5,5,5,2,2,4,5,2,2,2,4,4,2,2,3,4,4,4,4,4,4,4,3,3,4,4,4,4,4,4,4,4,4,4,4,3,3,2,2,2,3,3,2,4,2,3,2,3,3,3,2,2,3,4,2,3,"New policies were developed which advocates for integrated water resources management. These are:  • The National Water Policy, 2000 (focusing on resource management)  • Water Supply and Sanitation Policy, 1993 and reviewed in 2008 (focusing on water supply, sanitation and community based management)    Institutional reform  • Based on a comprehensive review of the water sector, institutional reform took place in the early 1990s. A government owned water bulk water supply institution (Namibia Water Corporation Ltd) was established in 1997. The Directorate of Rural Water Supply was also established in 1993, tasked with water supply to rural communal areas. The establishment of Rural Water Supply led to a significant increase in access to water services for rural communities. The overall water resource management function remained with the Directorate of Water Affairs. In 2008, the Directorate of Rural Water Supply was converted into the Directorate of Water Supply and Sanitation Coordination, so as to take on sanitation functions.    Capacity building  • Since the adoption of the new policies Namibia invested in capacity building for the water sector. The Department of Water Affairs and Forestry supports its staff to further their qualifications through scholarships and incentives (e.g. paid study leave). This is for both full time post degree programmes and short courses.    Stakeholder participation  • Stakeholder participation is a key component of Namibian water policies. This is achieved mainly through the basin management and community based management approaches.    Payment for water  • The Water Supply and Sanitation Policy and Namwater Act are based on principle of cost recovery. The community based management approach is designed to promote community contribution (in terms of payment and management) to water supply and management. Payment for water has been increasing since 1993. There have been considerable efforts to increase awareness on this.    Use efficiency  • Water demand management tools have been introduced in some water use sectors (Local Authorities, industries and to a less extent in irrigation).  • Stakeholder participation and awareness raising contribute water use efficiency.    Water Infrastructure development – which led to improved water services and increased access    Access to water supply has increased from 65% in 1991 to 87% 2001.","Water law (not enacted)  • A Water Resources Management Act was passed through cabinet in 2004. Implementation of the Act never commenced. It is now being reviewed. It has halted implementation of major water resource management efforts.    Payment for water by the poor  • Cost recovery for water services remains a big challenge in both urban and rural areas. In rural areas affordability is a key concern. The government embarked upon a subsidization and cross-subsidisation policy which is not yet finalized.    Varied capacity and understanding  • Although efforts have been put on professional training, there are still limited technical capacities and a need for on the job mentoring and support – for implementation. Understanding on the application of integrated water resources management is at different levels across and within the sectors.",4,4,3,4,3,4,4,4,4,4,3,3,4,4,3,3,3,4,4,4,3,3,3,3,3,3,4,3,3,2,3,4,3,4,4,2,3,3,3,4,4,3,4,4,4,4,4,5,4,4,3,4,4,4,4,3,3,4,4,3,null,2,null,null,null,null,null,"Maria Amakali","amakalim@mawf.gov.na","Deputy Director","Ministry of Agriculture, Water and Forestry/ Department of Water Affairs","+264 61 208 7167","Private Bag 13193","Windhoek","Namibia",null,null,null,null,null,null,null,null,1,null,0]
["Nauru",null,null,null,null,null,null,null,null,null,null,null,null,null,null,null,null,null,null,null,null,null,null,null,null,null,null,null,null,null,null,null,null,null,null,null,null,null,null,null,null,null,null,null,null,null,null,null,null,null,null,null,null,null,null,null,null,null,null,null,null,null,null,null,null,null,null,null,null,null,null,null,null,null,null,null,null,null,null,null,null,null,null,null,null,null,null,null,null,null,null,null,null,null,null,null,null,null,null,null,null,null,null,null,null,null,null,null,null,null,null,null,null,null,null,null,null,null,null,null,null,null,null,null,null,null,null,null,null,null,null,null,null,null,null,null,null,null,null,null,null,null,null,null,null,null,null,null,null,null,null,null,null,null,null,null,null,null,null,null,null,null,null,null,null,null,null,null,null,null,null,null,null,null,null,null,null,null,null,null,null,null,null,null,null,null,null,null,null,null,null,null,null,null,null,null,null,null,null,null,null,null,null,0]
["Nepal",null,null,null,null,null,null,null,null,null,null,null,null,null,null,null,null,null,null,null,null,null,null,null,null,null,null,null,null,null,null,null,null,null,null,null,null,null,null,null,null,null,null,null,null,null,null,null,null,null,null,null,null,null,null,null,null,null,null,null,null,null,null,null,null,null,null,null,null,null,null,null,null,null,null,null,null,null,null,null,null,null,null,null,null,null,null,null,null,null,null,null,null,null,null,null,null,null,null,null,null,null,null,null,null,null,null,null,null,null,null,null,null,null,null,null,null,null,null,null,null,null,null,null,null,null,null,null,null,null,null,null,null,null,null,null,null,null,null,null,null,null,null,null,null,null,null,null,null,null,null,null,null,null,null,null,null,null,null,null,null,null,null,null,null,null,null,null,null,null,null,null,null,null,null,null,null,null,null,null,null,null,null,null,null,null,null,null,null,null,null,null,null,null,null,null,null,null,null,null,null,null,null,0]
["Netherlands",6,6,6,6,6,1,1,6,1,4,1,6,4,1,1,1,6,4,6,6,6,6,6,6,6,6,6,6,6,6,6,6,1,6,6,6,6,6,6,6,6,6,6,4,6,6,6,6,6,6,6,1,6,6,5,6,6,6,6,6,6,6,6,1,6,6,6,6,6,6,6,1,6,6,1,6,6,5,6,6,1,1,6,6,1,6,6,6,6,6,1,1,6,4,2,2,1,4,1,null,null,null,null,null,null,null,null,null,null,null,null,null,null,null,null,"Water quality has improved much since implementation of plans. Still diffuse sources exist.  Flood risks have largely been countered. Current accent towards expected higher flood risk because of climate change.  Ecological situation has improved. Ongoing activities towards rehabilitation of water related ecosystems.","Fragmentation over various water management administrations  Transboundary influences of water management",2,2,2,2,3,2,4,3,3,3,2,2,3,3,3,3,5,3,5,5,5,5,2,2,1,1,1,1,1,1,1,1,1,1,1,1,1,1,1,4,4,1,1,1,1,1,2,1,1,1,1,1,1,1,1,1,1,5,5,3,"Some text is included at the relevant questions.",2,null,null,null,null,null,"Jos Timmerman","Jos.timmerman@miniem.nl","Senior policy advisor","Ministry of Infrastructure and Environment Directorate-General for Water Affairs","+31 615 369 532","P.O. Box 20901","2500 EX The Hague","The Netherlands",null,null,null,null,null,null,null,null,1,null,0]
["New Zealand",3,6,6,6,2,1,2,2,1,1,1,1,4,1,5,1,2,2,5,1,6,5,5,4,4,5,5,5,5,5,5,5,6,2,4,2,4,5,5,6,4,5,6,4,4,5,2,2,4,2,4,2,6,6,2,1,5,5,6,6,6,6,5,4,5,5,5,5,5,6,4,1,4,6,2,6,6,6,6,6,1,4,5,6,3,6,6,6,6,6,1,4,4,3,2,2,4,4,2,4,4,5,4,4,4,5,4,3,4,5,4,5,5,3,4,"- Over the last 20 years there have been many efforts to better manage water resources in an integrated way, as required under New Zealand’s legislative framework. Important outcomes that have been sought include:   - sufficient quantity and quality of fresh water for human and animal consumption, cultural values, irrigation, industry, recreation and healthy ecosystems.   - effective and equitable systems for deciding how fresh water should be managed.    New Zealand has made significant progress towards achieving these outcomes over the last 20 years. However as population increase and a growing economy place more pressure on our water resources we are still working towards fully realising these outcomes.   Some key results we have seen from integrated water management include:   - The Resource Management Act 1991 (RMA) is New Zealand’s key piece of legislation governing the management of water resources. It is itself an achievement as it provides for water to be managed in an integrated way. It requires that any land-based activities must be assessed for the impact they could have on water systems. One important achievement resulting from the implementation of the RMA is that discharges of pollutants to water ways from point-sources (e.g. pipes, streams, drains, factories, sewage outlets) have been largely controlled and reduced.    - Clear roles for Regional Councils (sub-national resource management agencies) were established under the Resource Management Act 1991. These Councils have responsibilities, among other things, for managing water at the catchment (river basin) level. Although there is still room for a lot of improvement this management approach has allowed water systems in many places to be managed from the “mountains to the sea”. This means that activities upstream that affect water conditions can be controlled based on their effects further downstream. The functions and planning processes of Regional Councils also ensure that decisions about water management can be made at the local level where people who are affected can have their say.     - Some of the more complex challenges facing water management include pollutants from non-point source origins and shortages of water for irrigation or urban use due to technical over-allocation on paper. In the last 10 years we have had begun to see successful, collaborative ways of dealing with these problems. Lake Taupo, our largest lake, has long been overloaded with nutrients from farms within the catchment. However agreements have been made in the surrounding catchment to run a cap-and-trade system for nutrients that enter the waterways. This programme is still new but is a promising step towards long-term improvement in the quality of the lake and river.   - The region of Canterbury is one of our driest regions but is also one of the most productive areas of agriculture in the country. For years the region’s surface and ground water resources have been used up to, and over, the limit of what is sustainable. Long running disputes have centered on how to fairly distribute water for all who need it. Recently, however, the Canterbury Regional Council has been able to gather groups of stakeholders to work out how ensure everyone within a catchment can share the available water resources. There have also been improvements in the ways we extract and store water for irrigation that are continuing under the Canterbury Water Management Strategy.   - On a national scale we have had success in using collaborative processes that bring together industry groups, non-government groups, tribal representatives and recreation groups to discuss and negotiate competing priorities for water management. A stakeholder-led collaborative body called the Land and Water Forum was commissioned to provide a report and recommendations to central government on water reform options. This report was delivered in September 2010. Connections and relationships were also built across the sectors that were represented that have led to ongoing discussion and cooperation on conflicting interests in water use.    - The Government has also provided funding for developing integrated water management in the agricultural sector. This funding has meant that many farms across the country have been able to establish systems to reduce their impacts on waterways. Government has also supported initiatives by companies and sectors to progressively improve the environment performance of their operations. One example is the Dairying and Clean Streams Accord set up by a partnership of Fonterra, our largest dairying company, central Government and local Government. The implementation of this Accord has lead to measurable improvements in water quality. The broader primary sector is now following suit with the Primary Sector Water Partnership.    - Our information base for managing water has also grown and improved significantly. As well as large quantity of regular data collected by the Regional Councils we are also developing national data bases to inform policy decisions. One significant database is the Freshwater Environments of New Zealand (FENZ). FENZ consists of a large set of spatial data layers and supporting information on New Zealand’s rivers, lakes and wetlands. It contains data on physical descriptions of freshwater environments, classifications that group similar streams, rivers, wetlands and lakes, estimates of human impact, and rankings of biodiversity values for conservation purposes. It can be used as a powerful tool to inform decision-making.","- Freshwater resources are under increasing pressure from competing human uses, and water quality and quantity levels are unacceptable in some catchments – especially in lowland areas.   - The allocation of water has been growing substantially and we are hitting resource limits. The growing demand and scarcity of water is leading to inefficiencies in the current allocation system, which is predominantly first-in-first served. It has also been difficult for Councils to set and manage limits.  - There are few practical tools to manage water in an integrated way. Not all resource managers make full use of the tools and instruments that are available under the current framework, particularly the provisions that enable regional Councils to manage land uses with effects on water.  - Programmes to manage whole catchments have been established but often suffer from limited resources. There is also limited integration of the management of water between land use and sea, although we are starting to see some improvements (e.g. sedimentation of harbours being addressed by land-use controls upstream).  - Tensions can arise between different interest-groups over conflicting values for water use. As discussed, we are starting to make some progress with developing collaborative solutions, especially at the catchment level in some regions, but parties with strongly held values still maintain high expectations making progress difficult.   - Some Councils need additional resources and stronger governance skills. Iwi groups  find it difficult to engage as a partner with Councils.    - There are still inconsistencies in our data collection, monitoring and analysis. Over the last decade there has not been a strong commitment to investment in scientific research on water (although the situation is now improving). As a result it is often difficult to obtain evidence of the impact of activities on water conditions and therefore manage their adverse effects.   - All of these constraints, and other issues, are being addressed through a series of freshwater policy reforms to be developed and implemented over the next few years. Integrated management of resources is a strong theme of the Resource Management Act 1991, New Zealand’s primary environmental statute. There is a growing awareness in New Zealand of the need to manage water by including all the interest groups and activities that use and affect water.",4,5,4,5,4,4,3,4,5,3,4,3,5,4,4,4,4,4,3,5,5,4,5,4,2,3,null,null,3,4,4,4,4,4,3,3,3,4,3,3,4,4,1,4,null,null,4,5,5,4,5,4,2,4,2,5,5,5,5,4,"Some of the question we found to be ambiguous, or difficult to understand. Some more explanation on what is intended by each set of questions would be helpful.",2,null,null,null,null,null,"Joshua McLennan-Deans","joshua.mclennan-deans@mfe.govt.nz","Analyst","Ministry for the Environment","+64 04 439 7420","23 Kate Sheppard Place, Thorndon","Wellington","New Zealand","Peter Ettema","peter.ettema@mfe.govt.nz","Analyst","Ministry for the Environment",null,null,null,null,1,null,0]
["Nicaragua",2,2,4,1,2,2,2,2,4,4,4,3,3,3,2,2,4,4,2,3,3,3,3,3,2,2,4,4,4,2,4,2,4,2,2,2,2,4,2,5,2,2,4,2,2,2,2,2,2,2,2,2,3,5,4,3,2,5,3,3,3,2,2,2,2,4,2,2,2,2,2,2,2,2,2,5,2,2,5,4,1,1,1,2,1,4,1,4,5,5,1,1,1,1,5,5,5,2,2,1,1,1,1,1,1,1,1,2,2,2,2,1,1,1,1,"Integrated approaches have been part of the usual language but no integration was achieved, it is only in the last 5 years that Nicaragua has started to really use integrated approaches, in such a short period there is almost nothing to list.","Lack of human resorces that were trained in an integrated way.",4,5,4,4,3,5,5,5,4,5,5,5,5,5,5,4,2,5,5,5,5,3,4,4,5,5,3,3,2,1,5,5,5,1,5,5,5,4,4,4,4,4,4,4,3,3,2,5,3,4,4,5,5,3,3,3,3,5,4,4,"When you say \"no relevant\" i think it means we don't care, and at times I wanted to say we have not done it but it is very relevant to us!    Regards,  Luis Angel Montenegro  Minister director  National Water Authority",1,null,null,null,null,null,"Luis Angel Montenegro Padilla","lamp@ana.gob.ni","Minister director","National Water Authority",50523000000,"Costado Noroeste Parque las palmas, 50 metros oeste","Managua","Nicaragua",null,null,null,null,null,null,null,null,1,null,0]
["Niger",null,null,null,null,null,null,null,null,null,null,null,null,null,null,null,null,null,null,null,null,null,null,null,null,null,null,null,null,null,null,null,null,null,null,null,null,null,null,null,null,null,null,null,null,null,null,null,null,null,null,null,null,null,null,null,null,null,null,null,null,null,null,null,null,null,null,null,null,null,null,null,null,null,null,null,null,null,null,null,null,null,null,null,null,null,null,null,null,null,null,null,null,null,null,null,null,null,null,null,null,null,null,null,null,null,null,null,null,null,null,null,null,null,null,null,null,null,null,null,null,null,null,null,null,null,null,null,null,null,null,null,null,null,null,null,null,null,null,null,null,null,null,null,null,null,null,null,null,null,null,null,null,null,null,null,null,null,null,null,null,null,null,null,null,null,null,null,null,null,null,null,null,null,null,null,null,null,null,null,null,null,null,null,null,null,null,null,null,null,null,null,null,null,null,null,null,null,null,null,null,null,null,0]
["Nigeria",4,4,4,4,3,2,2,2,2,4,3,2,2,2,2,2,2,2,4,4,4,4,2,3,4,3,2,2,4,3,3,4,3,3,2,4,3,4,3,4,3,4,3,3,2,2,2,2,2,2,2,2,4,4,2,4,4,4,4,4,4,4,2,2,2,4,2,2,2,4,2,2,2,4,4,4,5,2,4,2,1,2,2,4,4,4,5,4,4,2,1,2,2,5,5,5,4,3,1,2,2,2,2,2,3,3,3,2,2,2,2,3,3,3,3,"1. Adoption of integrated approach to water resources management and development which commenced with the development of Catchment Management Plan (CMP) for Komadugu-Yobe sub-basin.  2. To implement the CMP, a Trust Fund was established to mobilize the resources.  3. A Water Charter to govern water use and allocation has been drawn up but yet to be approved by summit of Governors of the riparian states.  4. Improvement of environmental flow in the catchment has been achieved.     5. Improvement of Institutional framework by the establishment of Nigeria Integrated Water Resources Management Commission.","1. Delay in finalization of National Water Policy and revision of Water Law.  2. Low Human Capacity    3. Poor funding",4,5,4,5,2,4,4,4,4,3,4,4,2,2,2,2,2,2,4,4,4,4,4,4,4,3,3,3,4,5,4,3,4,4,5,4,4,3,3,4,3,4,2,2,2,2,3,2,2,2,2,4,2,2,2,4,2,3,2,2,null,2,null,null,null,null,null,"ENGR. Yahaya D. Kazaure","ydalha@yahoo.com","HEAD Corporate Support Services","Nigeria Integrated Water Resources Management Commission","+234 802 321 2942, +234 806 539 9058","UTB close, Off Muhammadu Buhari Way, Central Business District, P.M.B.7020, Area I Post Office","Garki, Abuja","Nigeria","The Management - NIWRMC","razaqjim@yahoo.com","Coordinating Director","Nigeria Integrated Water Resources Management Commission","+234 803 321 2348","UTB close, Off Muhammadu Buhari Way, Central Business District, P.M.B.7020, Area I Post Office","Garki, Abuja","Nigeria",1,null,0]
["Norway",5,5,6,1,1,1,1,6,1,6,1,1,2,5,6,1,6,6,6,5,5,5,5,5,5,5,5,5,5,5,5,5,1,4,4,6,6,6,6,6,5,6,6,2,5,5,1,4,1,5,4,1,5,5,2,5,4,6,6,6,5,5,6,6,5,6,5,4,4,5,6,1,6,1,1,1,1,1,1,1,1,1,1,1,1,1,1,1,1,1,1,1,1,4,1,1,4,4,4,4,3,5,5,4,3,5,5,4,3,5,5,4,3,5,5,"Probably better water management in general.  Integrated water resources management per se is the overall goal in Norways implementation of the European water directive in 2006 and we will the results after we prodused the first ordinary river basin management plan in 2015","No constraints in particular as far as we can see.",3,3,3,4,4,3,3,2,1,1,3,1,4,4,4,4,4,3,4,3,3,3,3,3,1,1,1,1,1,1,1,1,1,1,1,3,1,4,4,4,4,2,4,4,3,3,3,4,4,4,4,5,3,4,3,4,4,4,4,3,null,1,null,null,null,null,null,"Tor Simon Pedersen","tsp@md.dep.no","Senior adviser","Ministry of the Environment","+47 22245962","P.B. 8013 Dep","N- 0030 Oslo","Norway",null,null,null,null,null,null,null,null,1,null,0]
["Oman",null,null,null,null,null,null,null,null,null,null,null,null,null,null,null,null,null,null,null,null,null,null,null,null,null,null,null,null,null,null,null,null,null,null,null,null,null,null,null,null,null,null,null,null,null,null,null,null,null,null,null,null,null,null,null,null,null,null,null,null,null,null,null,null,null,null,null,null,null,null,null,null,null,null,null,null,null,null,null,null,null,null,null,null,null,null,null,null,null,null,null,null,null,null,null,null,null,null,null,null,null,null,null,null,null,null,null,null,null,null,null,null,null,null,null,null,null,null,null,null,null,null,null,null,null,null,null,null,null,null,null,null,null,null,null,null,null,null,null,null,null,null,null,null,null,null,null,null,null,null,null,null,null,null,null,null,null,null,null,null,null,null,null,null,null,null,null,null,null,null,null,null,null,null,null,null,null,null,null,null,null,null,null,null,null,null,null,null,null,null,null,null,null,null,null,null,null,null,null,null,null,null,0]
["Pakistan",2,2,5,5,2,2,2,2,2,5,5,3,2,3,4,2,2,2,5,4,6,5,2,2,2,4,4,4,4,2,4,4,4,4,4,4,4,4,5,5,4,4,3,1,4,2,4,4,2,4,4,2,4,4,2,2,2,4,4,4,4,2,4,4,4,5,4,4,4,2,4,4,2,4,4,4,4,5,4,3,2,2,2,5,5,4,4,5,4,2,2,2,4,4,3,3,2,2,2,3,3,2,3,3,3,2,3,3,3,2,3,3,3,3,3,"- Pakistan has the largest contiguous irrigation system in the world.  The water resources are managed through an integrated system by involvement of all major stakeholders.  The Indus Rivers System Authority is responsible for management of the waters of the Indus Basin.  Of late, there is enhanced awareness about benefits of Integrated Water Resources Management, involving Water, Land, Ecosystems and people.","1. Lack of adequate water storages to meet the ever increasing demands for agriculture and hydropower generation.  Another constraint has been thin spread of financial resources and some weak  Institutional linkages.  There has been some progress on beneficiary participation and gender balance.  Water Sector has been successful to meet the food and fiber needs of the country to a substantial extent.  Poverty alleviation and social uplift of the rural communities still needs a lot of work..",5,5,3,4,3,4,5,4,5,5,4,4,1,4,2,1,1,1,5,5,5,5,5,5,4,4,5,4,2,4,3,4,3,4,5,4,4,4,4,5,4,4,4,4,2,4,4,4,4,4,4,4,4,4,4,4,4,4,4,4,null,2,null,null,null,null,null,"Riaz Ahmad Khan","advisor@mowp.gov.pk","Advisor, Water & Power","Ministry of Water &Power","051-92-9213666","Block-A, Pak. Secretariat","Islamabad","Pakistan",null,null,null,null,null,null,null,null,1,null,0]
["Palau",null,null,null,null,null,null,null,null,null,null,null,null,null,null,null,null,null,null,null,null,null,null,null,null,null,null,null,null,null,null,null,null,null,null,null,null,null,null,null,null,null,null,null,null,null,null,null,null,null,null,null,null,null,null,null,null,null,null,null,null,null,null,null,null,null,null,null,null,null,null,null,null,null,null,null,null,null,null,null,null,null,null,null,null,null,null,null,null,null,null,null,null,null,null,null,null,null,null,null,null,null,null,null,null,null,null,null,null,null,null,null,null,null,null,null,null,null,null,null,null,null,null,null,null,null,null,null,null,null,null,null,null,null,null,null,null,null,null,null,null,null,null,null,null,null,null,null,null,null,null,null,null,null,null,null,null,null,null,null,null,null,null,null,null,null,null,null,null,null,null,null,null,null,null,null,null,null,null,null,null,null,null,null,null,null,null,null,null,null,null,null,null,null,null,null,null,null,null,null,null,null,null,{"$f":"(COUNTIF(FX131,\">0\")-(COUNTIF(GT131,\">0\")))","v":0}]
["Panama",5,3,5,4,3,3,2,3,6,5,4,4,5,5,5,5,5,5,5,6,3,3,2,4,5,3,6,4,5,5,5,5,5,4,3,4,4,4,4,4,5,4,6,4,3,4,3,2,3,4,4,2,5,3,5,6,3,6,5,4,5,4,5,4,2,6,4,3,2,3,4,2,5,3,4,5,5,5,5,5,1,2,5,5,5,5,5,5,5,5,1,1,4,4,4,4,4,4,4,null,null,null,null,null,null,null,null,null,null,null,null,null,null,null,null,"Reduction of the National Poverty in a 5% according to report of Cepal, 2008.   The referential document “National Strategy of the Atmosphere: Environmental management for Sustainable Development 2008-2012” (ANAM, 1999) details the environmental policy of the country, and all the sectors of the society must participate in their execution. It contains lineaments, objectives and specific attachment lines to improve the management of the hydric resources, as they are it: the environmental public political consolidation of the frame legal and, the fortification of the services that are lent, the improvement of the institutional management at interinstitutional level intra and, and the impulse of the cooperation in the scopes national and international. Of complementary way, the explicit strategy the premises for the treatment of aspects associated to the use of the water, eg: the adaptation and mitigation of the climatic change; the development in agreements and international obligations in environmental matter; the improvement of the technical capacity of the ANAM; the promotion of instruments and economic strategies in the environmental management; the conservation and sustainable use of the biodiversity; and of specific way the conservation and restoration of hydrographic river basins Implementation of the new tariff of natural water use CNA-002-2009, ANAM based on the fairness concepts and social justice. Project of Cleaning of the Bay of Panama, for 350 million. Project of Water and Cleaning (YOU HAPPEN) that the Ministry of Health in the rural areas and indigenous regions of the country executes. It is counted on 9 Environmental Public Policies, as of the 2007, between which is the one of Hydric Resources. 3 Resolution ANAM AG-0127-2006 of the March of 2006, published in the Official Newspaper of the 27 of March of the same year, defines the ecological volume it establishes and it of transitory way for the users of the country like “the hydric regime that occurs in a river, moist soil or coastal zone to maintain ecosystems and their benefits where uses of the water occur that compete to each other and where the volumes are regulated. It is counted for the first time on 10 hydrographic river basins with hydric balance.","The three main problems of the hydric management in Panama are emphasized by Escalante (2009) in their analysis of a model of effective management of the hydric resource in Panama: deficiency of institutional coordination, breach of the environmental norm, and water wastefulness in some activities. The management of the water in Panama is very fragmented and it does not have structured mechanisms that they make possible efficient intra-institution an Inter coordination/. The country lacks academic supply specialized for the formation of professionals and technicians involved in the hydric sector. An suitable system of investigation does not exist either seaplane-scientist. The Policy of promotion of the investigation in the hydric scope has limited resources, incapable to break the present dependency of technological imports. Lack a binding territorial ordering for the advantage and conservation of the hydric resources. The public institutions of environmental management that count on their Sectorial Environmental Units, are concentrated almost exclusively in the evaluation of the studies of environmental impact (EIA), leaving in background the coordinated attention of the social conflicts related to the water. There is responsibility no shared in the control of the advantage of the resource. Many illegal users in the production systems of potable water exist and of irrigation for want of control, thus he is not had trustworthy information on the real volumes of consumption: this context foments the evasion of payments and the breach of the existing norms.  Luis Carlos Escalante Henríquez. M.Sc. Investigator and Doctorando in Natural Sciences for the Development. National university, Costa Rica. Email: lcescalante@yahoo.com",5,5,2,5,3,5,5,5,5,5,5,5,5,5,3,4,4,5,5,5,5,5,5,5,4,3,4,4,4,5,4,4,3,4,4,5,5,4,4,4,4,3,4,4,5,4,4,4,5,4,3,4,4,5,4,4,4,5,5,3,null,2,null,null,null,null,null,"LUIS CARLOS ESCALANTE HENRIQUEZ","l.escalante@anam.gob.pa","Specialist in Hydric Resources.","Autoridad Nacional del Ambiente","00507-500-0855 ext 6025/ movil (507) 6639-8087","ALBROOK, EDIFICIO 804, BALBOA ANCON PANAMA",null,null,"BOLIVAR PEREZ","b.perez@anam.gob.pa","National director of hydrographic river basins","Autoridad Nacional del Ambiente","00507-500-0855 ext 6856","ALBROOK, EDIFICIO 804, BALBOA ANCON PANAMA",null,null,1,null,0]
["Papua New Guinea",null,null,null,null,null,null,null,null,null,null,null,null,null,null,null,null,null,null,null,null,null,null,null,null,null,null,null,null,null,null,null,null,null,null,null,null,null,null,null,null,null,null,null,null,null,null,null,null,null,null,null,null,null,null,null,null,null,null,null,null,null,null,null,null,null,null,null,null,null,null,null,null,null,null,null,null,null,null,null,null,null,null,null,null,null,null,null,null,null,null,null,null,null,null,null,null,null,null,null,null,null,null,null,null,null,null,null,null,null,null,null,null,null,null,null,null,null,null,null,null,null,null,null,null,null,null,null,null,null,null,null,null,null,null,null,null,null,null,null,null,null,null,null,null,null,null,null,null,null,null,null,null,null,null,null,null,null,null,null,null,null,null,null,null,null,null,null,null,null,null,null,null,null,null,null,null,null,null,null,null,null,null,null,null,null,null,null,null,null,null,null,null,null,null,null,null,null,null,null,null,null,null,0]
["Paraguay",null,null,null,null,null,null,null,null,null,null,null,null,null,null,null,null,null,null,null,null,null,null,null,null,null,null,null,null,null,null,null,null,null,null,null,null,null,null,null,null,null,null,null,null,null,null,null,null,null,null,null,null,null,null,null,null,null,null,null,null,null,null,null,null,null,null,null,null,null,null,null,null,null,null,null,null,null,null,null,null,null,null,null,null,null,null,null,null,null,null,null,null,null,null,null,null,null,null,null,null,null,null,null,null,null,null,null,null,null,null,null,null,null,null,null,null,null,null,null,null,null,null,null,null,null,null,null,null,null,null,null,null,null,null,null,null,null,null,null,null,null,null,null,null,null,null,null,null,null,null,null,null,null,null,null,null,null,null,null,null,null,null,null,null,null,null,null,null,null,null,null,null,null,null,null,null,null,null,null,null,null,null,null,null,null,null,null,null,null,null,null,null,null,null,null,null,null,null,null,null,null,null,0]
["Peru",4,1,4,1,2,2,2,2,2,2,2,2,2,2,2,2,2,2,2,4,2,2,2,2,4,4,4,4,4,2,4,2,1,3,2,4,4,4,1,1,4,4,4,2,4,4,2,2,2,2,2,2,2,2,2,4,2,5,4,4,4,4,5,2,5,2,2,2,1,4,4,1,4,5,5,5,4,2,5,4,2,1,2,4,4,4,4,4,4,4,2,1,4,4,4,4,4,4,4,4,4,3,3,4,4,3,3,4,4,4,4,4,4,3,3,"The new policies, legal framework, better management tools and institutions for better management of water resources, have been definitely an improvement on the following aspects:    • Economically: the formalization of water use rights, as well as better management of water use in productive activities as agriculture, mining, among others, influenced economic improvement in many areas.  • On social issues: poverty reduction, health improvement and water culture.  • In environmental, conservation and protection of their sources, ecosystems and natural assets related to water resources.","• Little knowledge of the new legal framework.  • Insufficient water culture with a focus on integrated management of water resources.  • Some aspects of regional traditional (and customs).  • Interference of some actors motivated by political and economic interests",4,5,4,4,4,5,4,4,4,4,5,5,5,5,5,5,4,5,5,5,5,5,5,5,5,5,4,4,4,4,null,4,4,5,5,5,5,5,5,5,5,5,5,4,4,4,4,4,5,5,5,5,5,5,5,4,5,5,5,5,null,2,null,null,null,null,null,"Percy Palomino Marín","ppalomino@ana.gob.pe","Deputy Director for International Cooperation",null,"051 1 2268667","Calle Diecisiete Nº 355 Ur. El Palomar San Isidro","Lima 27","Perú",null,null,null,null,null,null,null,null,1,null,0]
["Philippines",2,1,6,1,5,2,2,1,5,6,6,5,4,2,1,1,1,2,5,1,5,4,5,5,1,5,5,5,5,5,4,4,3,4,1,4,1,4,5,5,5,4,5,2,5,5,1,6,1,5,5,5,6,5,4,1,4,6,5,5,5,5,5,1,5,5,5,4,4,4,4,1,5,6,6,6,1,6,6,4,1,1,5,6,6,6,1,6,6,4,1,1,5,1,1,1,1,2,1,2,2,2,2,2,2,2,2,2,2,2,2,2,2,2,2,null,"Political intervention  Inadequate financial support  Inadequate Research on the interdependency of surface and groundwater",3,5,3,2,4,4,5,5,3,4,4,3,3,2,3,3,2,4,4,4,3,4,4,4,3,1,1,1,1,3,4,4,1,4,4,4,4,4,4,5,5,3,2,3,3,3,2,2,2,2,3,2,2,3,3,4,2,2,3,3,"The questionnaire is very broad. The column \"not relevant\" is not clearly defined. The questions on water challenges on the later is confusing.",1,null,null,null,null,null,"Isidra D. Penaranda","idp_nwrb@yahoo.com","OIC, Policy and Program Division","National Water Resources Board","(632) 920-2724","8th Floor NIA Bldg. EDSA,","Quezon City","Philippines","Josephine R. Billones","jrbillones@yahoo.com","Engineer II","National Water Resources Board","(632) 920-2724/920-2681","8th Floor NIA Bldg. EDSA,","Quezon City","Philippines",1,null,0]
["Poland",2,2,6,1,4,1,2,2,1,4,5,4,2,4,4,2,5,5,5,4,6,6,6,6,5,1,6,5,6,1,6,5,null,2,2,2,2,2,6,6,4,5,6,5,4,4,4,2,4,2,2,4,6,2,2,3,5,6,6,6,6,5,6,2,2,6,2,1,2,6,2,1,6,5,1,2,2,2,5,5,1,1,2,2,1,2,2,2,5,5,1,1,2,5,5,4,2,5,2,5,1,5,null,3,1,5,null,3,2,5,null,5,4,5,null,"The main achievement is growing public awareness of water protection and management issues as well as increasing participation in the consultation of decision-making processes. Water protection and management issues start to be included in other sectors policies, strategies, decisions.","• River basin approach is limited to water management related issues. Not all surface water resources are managed on the river-basin basis.  • Limited influence of water authorities on authorisation of water use (eg. water uptake, wastewater discharge).",4,5,4,4,4,3,5,3,3,2,5,5,3,2,1,4,4,4,4,4,4,3,2,2,4,4,4,4,1,3,3,3,3,1,5,5,5,4,3,3,3,4,4,4,4,4,3,5,4,4,4,1,5,5,5,4,4,4,4,4,null,2,null,null,null,null,null,"Adriana Dembowska","adriana.dembowska@kzgw.gov.pl","Deputy Director","National Water Management Authority, Planning and Water Resources department","+ 48 22 37 20 240","80/82 Grzybowska Str.","00-844 Warsaw","Poland",null,null,null,null,null,null,null,null,1,null,0]
["Portugal",5,5,5,5,2,3,2,2,2,4,2,2,2,2,2,4,2,2,5,6,6,6,6,5,5,1,5,4,2,5,2,5,1,2,2,2,2,5,4,5,2,5,4,4,2,2,2,2,2,2,2,2,5,2,2,4,2,5,5,5,5,4,5,4,5,5,4,2,2,5,2,2,4,2,2,2,2,2,5,5,1,1,2,4,4,4,2,2,4,4,1,1,1,1,1,1,1,1,1,4,4,4,4,3,3,3,3,3,4,4,4,4,4,2,3,"Better Decision-making due to the fact that is more data-supported;    Better Environmental Protection;    Better Water Supply and Wastewater Systems;    Lower Vulnerability to extreme events.","Conflicting uses (e.g. Agriculture vs. Energy or Flood Control; habitat conservation vs. Energy; flood control vs. urban planning)",3,4,3,5,3,4,3,3,3,3,3,3,2,4,3,5,4,4,4,4,4,4,4,4,4,4,4,4,3,2,3,3,3,4,4,4,4,3,3,4,3,3,4,4,4,4,4,4,4,4,4,5,4,4,4,4,4,4,4,4,null,1,null,null,null,null,null,"Rui Rodrigues","rrr@inag.pt","Head of Monitoring Department - National Institute for Water","Environment and Land Use Planning","+351 21 8430300","Av Alm. Gago Coutinho 30","1049-066 - LISBON","PORTUGAL",null,null,null,null,null,null,null,null,1,null,0]
["Qatar",null,null,null,null,null,null,null,null,null,null,null,null,null,null,null,null,null,null,null,null,null,null,null,null,null,null,null,null,null,null,null,null,null,null,null,null,null,null,null,null,null,null,null,null,null,null,null,null,null,null,null,null,null,null,null,null,null,null,null,null,null,null,null,null,null,null,null,null,null,null,null,null,null,null,null,null,null,null,null,null,null,null,null,null,null,null,null,null,null,null,null,null,null,null,null,null,null,null,null,null,null,null,null,null,null,null,null,null,null,null,null,null,null,null,null,null,null,null,null,null,null,null,null,null,null,null,null,null,null,null,null,null,null,null,null,null,null,null,null,null,null,null,null,null,null,null,null,null,null,null,null,null,null,null,null,null,null,null,null,null,null,null,null,null,null,null,null,null,null,null,null,null,null,null,null,null,null,null,null,null,null,null,null,null,null,null,null,null,null,null,null,null,null,null,null,null,null,null,null,null,null,null,0]
["Republic of Korea",6,6,6,6,6,5,5,6,6,6,5,5,4,6,6,1,5,4,3,3,6,6,6,5,5,5,5,4,5,5,5,5,5,5,4,5,4,5,6,6,6,6,5,5,6,6,4,5,5,5,5,5,5,5,4,5,5,6,6,6,6,5,6,5,6,6,5,5,4,4,5,5,5,6,6,6,6,6,6,6,4,5,4,6,6,6,6,6,6,6,4,5,4,4,2,2,2,4,1,5,3,3,5,3,4,5,5,3,4,5,5,3,4,5,5,"• Perentage of population with improved drinking water resources, 2009: 93.5%  • Percentage of population with waste treatment facilities, 2009: 89.4%  • Coverage with river channel improvement to reduce flood demage, 2008: 63.8%","• Fragmented water resources mangements and institutions  • Absence of water law with integrated approach principle  • Difficulties securing of stable water-inftra structure budgets",2,4,4,3,5,5,5,5,5,3,5,3,2,4,4,1,5,5,4,3,3,3,5,4,5,3,3,3,3,4,4,5,4,5,3,4,4,5,5,5,2,3,4,4,3,3,4,4,5,4,4,5,3,4,4,5,5,5,2,3,null,2,null,null,null,null,null,"Park, Jaeheyon","Truss1@mltm.go.kr","Director","Ministry of Land, Transport and Maritime Affairs",{"$f":"82-7-780-6872","v":-7577},"88 Gwanmun-Ro, Gwacheon-Si, Gyeonggi-Do","427-271","Republic of Korea",null,null,null,null,null,null,null,null,1,null,0]
["Republic of Moldova",4,1,2,2,2,2,2,2,2,2,2,3,2,2,2,2,2,5,4,3,2,2,2,2,2,2,3,3,4,3,2,2,3,2,2,2,2,4,5,3,2,4,2,2,2,2,2,2,2,2,2,2,2,2,2,2,2,5,5,5,5,5,5,2,2,5,2,4,4,4,2,null,null,2,2,2,4,2,null,null,null,1,2,2,2,2,null,2,3,2,1,1,3,4,4,4,2,4,4,3,2,3,2,3,3,3,3,3,3,3,3,3,3,3,3,"1. Elaboration of legislative framework  2. Projects implementation  3. Decisional transparency","1. Lack of a monitoring mechanism (data base)  2. Lack of financial resources",4,3,2,3,4,4,3,3,3,2,5,4,1,2,1,2,4,5,4,4,4,4,4,4,3,2,4,4,3,4,4,3,3,4,4,3,4,4,3,4,4,4,4,4,5,4,4,5,4,4,4,5,4,4,4,4,4,4,4,4,null,2,null,null,null,null,null,"Eni Inga","eni@mediu.gov.md","Main specialist, Water Management Department","Ministry of Environment","+ 373 22 204 530","9, Cosmonautilor str., MD-2005, Chisinau, Republic of Moldova",null,null,"Chilaru Nadejda","chilaru@mediu.gov.md","Head of Aquatic Resources Division, Natural Resources and Biodiversity Department","Ministry of Environment","+ 373 22 204 538","9, Cosmonautilor str., MD-2005, Chisinau, Republic of Moldova",null,null,1,null,0]
["Romania",5,5,6,null,6,5,5,5,null,5,5,5,5,5,5,5,5,5,5,6,6,5,6,5,5,null,6,5,5,5,5,4,5,5,5,5,5,6,6,5,6,6,5,4,6,6,6,null,5,5,5,5,4,5,5,5,4,6,6,6,6,5,5,4,6,6,5,5,4,6,6,4,6,5,5,6,6,6,5,5,1,4,4,6,5,6,6,6,5,5,1,3,5,4,4,4,5,4,5,4,3,4,4,4,3,4,4,3,4,5,4,4,3,4,4,"Implementing the Water Framework Directive, the River basin Management Plans were provided for all major river basins in Romania, and in collaboration with the riverane countries for the Danube Basin – ICPDR had a major role in coordinating this process. The anthropogenic pressures in the basin were identified and lists of the important measures were defined.  At the Danube basin is under implementation a common action plan, and now is under preparation the hazard and risk maps, will be ready for 2013; for high risk areas new measures will be proposed, under the solidarity principle application (no measure up-stream will induce additional risk downstream). Romania adopted during 2011 at the policy level the Long Term Strategy for Flood Risk Management. This includes an integrated approach at the basin level, and the monitoring system includes the Inter-ministerial Water Council at the national level and Basin Committee at the basin level. Responsible for the Strategy implementation is the Authority for Floods and Water Management, under the Ministry of Environment and Forests.  Land Development Plans takes care by one hand by the available resources proposing solutions for land development, as well as by reserves and Natura 2000 and by other hand, development plans of localities take care about the flood risk – in high risk areas is forbidden further constructions.  Green energy production, by hydropower development is encouraged by large reservoirs development, with integrated purposes: hydropower production, flood defense and water supply. Compensation measures are proposed, for the water regime regulation and impact.","No major obstacle can be mentioned.",3,5,4,5,5,4,5,4,3,3,4,4,2,4,4,4,5,4,5,4,3,3,5,5,4,4,4,4,3,5,4,4,4,4,5,4,5,5,5,5,5,4,4,4,5,5,4,5,5,4,2,4,4,4,4,4,4,5,5,4,null,2,null,null,null,null,null,"Mary-Jeanne Adler","mj.adler@mmediu.ro","Director","Flood Risk Management Directorate","+40.21.316 05 21","12 Libertatii Blv, S5, Bucharest",null,null,null,null,null,null,null,null,null,null,1,null,0]
["Russian Federation",5,5,5,5,5,2,5,null,null,null,null,null,null,null,null,null,null,null,null,5,5,null,5,5,5,5,5,5,5,5,5,5,null,2,2,2,2,5,5,5,2,2,2,null,null,2,null,2,null,2,2,null,5,5,null,5,2,5,5,null,5,5,5,null,4,null,null,null,null,5,null,5,5,5,null,null,null,5,null,null,null,null,null,5,null,null,null,5,null,null,null,null,null,4,null,null,null,4,null,null,null,null,null,null,null,null,null,null,null,null,null,null,null,null,null,"Currently the Scheme of Integrated Use and Protection of Water Resources (SKIOVO) and Standards of Maximum Permissible Exposure (NDV) are under development. The documents should be adopted after 01.01.2015.","The information could be submitted after adoption of the Scheme of Integrated Use and Protection of Water Resources (SKIOVO) and Standards of Maximum Permissible Exposure (NDV) after 01.01.2015.",3,4,1,2,3,4,4,3,3,null,5,null,null,null,null,null,null,null,2,1,3,null,5,null,4,4,4,null,null,4,4,4,null,null,null,4,4,4,4,4,null,4,null,null,5,null,null,null,null,null,null,null,null,null,null,4,2,1,null,2,null,2,null,null,null,null,null,"Mr. Nuritdin Inamov","inamov@mnr.gov.ru","Director of the Department of International Co-operation","Ministry of Natural Resources and Environment of the Russian Federation","+7 (499) 766-2672","Bolshaya Gruzinskaya str., 4/6","Moscow, 123995, ","Russia",null,null,null,"Federal Agency for Water Resources","+7(499) 125-52-79","Kedrova Str., 8","Building 1","Moscow, Russia",1,null,0]
["Rwanda",3,1,4,1,3,1,3,4,5,5,5,5,2,4,4,4,3,3,5,5,2,2,4,2,4,2,4,2,4,4,3,3,3,3,3,3,3,2,4,4,4,4,2,2,2,2,2,2,4,2,2,2,5,4,4,4,4,4,4,4,4,4,2,2,4,3,2,4,4,4,2,2,2,4,4,4,4,4,5,4,1,4,4,4,4,5,4,4,5,3,1,4,4,4,4,4,2,1,1,3,3,4,3,3,3,4,3,3,3,3,3,4,4,4,4,"The key outcomes from water resources management measures are:  • Improved access rate to drinking water by the communities  • Improved rainwater harvesting techniques especially in drought and flood prone areas  • Enhanced protection of rivers and lakes shores by creating buffer zones on some of them  • Improved control of water hyacinth and other invasive weeds in water bodies  • Increased rehabilitation of critically degraded watersheds and fragile ecosystems   • Improved water monitoring and assessment system through hydrological networks","The constraints in Integrated Water Resources Management are:  • Point-source and non-point source pollution of water bodies  • Negative effects of climate change on water resources  • High siltation of rivers and lakes due to excessive soil erosion resulting from the inappropriate land use;  • Unplanned rural and urban human settlement   • Inadequate human and institutional capacity in the WRM  sector   • Inadequate financing for water resources management  • Low awareness of the PUBLIC on IWRM",3,4,3,4,2,4,4,4,3,2,4,4,4,5,4,5,2,5,5,5,4,4,5,5,4,4,4,4,3,3,4,4,4,4,4,5,4,4,4,5,5,5,2,2,2,2,2,2,2,2,2,2,1,3,1,2,2,2,2,2,null,2,null,null,null,null,null,"SAFARI Patrick","Sapatrick2003@yahoo.fr","Director of Strategic Planning and Policy","Ministry of Natural Resources","(+250) 078830 96 42","KIGALI","-","RWANDA","TETERO Francois-Xavier","fteterov@yahoo.fr","Watersheds Mgt Coordinator","Ministry of Natural Resources","(+250)0788466012","KIGALI","-","RWANDA",1,null,0]
["Saint Kitts and Nevis",1,1,1,1,3,2,1,1,1,2,2,2,1,2,2,1,1,1,6,1,1,4,2,1,1,1,3,4,4,1,1,1,1,2,2,2,2,4,4,4,1,2,2,1,4,2,4,1,1,2,2,1,2,3,3,1,2,4,4,5,5,2,4,4,4,4,4,4,4,2,4,4,1,4,4,1,5,2,5,1,1,6,2,5,5,1,6,2,6,2,1,6,2,4,4,3,4,4,2,3,2,2,3,2,3,3,3,4,4,4,3,5,5,5,5,"The Island enjoys a 24hrs supply 91% from boreholes 9% from springs   100% metered     95% coverage","Fiancial",4,5,3,1,1,4,5,5,3,1,5,5,5,5,3,3,3,5,5,5,2,5,5,3,4,1,1,1,1,2,1,2,2,3,4,4,4,4,4,4,3,4,3,3,3,3,3,4,4,3,3,3,5,5,5,5,5,4,3,5,null,1,null,null,null,null,null,"George Morris","gmorris@niagov.com","Manager","Water Dept","1869 469 5979","box 506","Charlestown","Nevis",null,null,null,null,null,null,null,null,1,null,0]
["Saint Lucia",5,1,6,1,3,2,3,3,2,2,3,3,4,4,3,2,2,4,2,1,4,4,1,4,1,2,2,2,3,3,3,3,5,4,4,4,4,2,2,2,2,2,3,2,2,2,2,2,2,4,2,2,4,4,4,1,4,5,3,3,5,5,3,3,2,4,2,4,4,2,3,2,3,5,4,1,3,4,5,4,4,4,4,5,4,1,3,5,5,4,2,3,5,5,5,5,5,2,2,3,2,2,3,3,4,3,4,3,3,2,3,3,3,3,3,"There is consideration for all competing uses of water in the decision making process.  Improvement of the involvement and consultation with stakeholders in key decisions involving water resources.  Greater awareness of the roles of each institution, which adds value to for example, responsibilities in responding to disasters.  Greater degree of information sharing, transparency and better understanding by policy makers of national issues and challenges.  Holistic development of water services, waste water services and water resources management.","Financing of institutions and projects required to reform and modernize the water sector.  Effectively coordinate and communicate among all institutions and players in the water sector.  Enforcing of regulations and monitoring for non compliance.  Having equitable representation among all competing users, more powerful groups better represented.",4,5,4,2,5,4,4,4,4,3,4,3,4,5,4,3,4,5,5,4,4,3,5,3,3,4,1,1,2,4,4,4,4,2,5,5,5,5,4,5,5,5,4,4,3,3,3,4,4,4,4,5,4,4,4,4,4,5,4,4,null,1,null,null,null,null,null,"Barrymore Felicien","bfelicien@gosl.gov.lc","Chief Public Utlities Officer","Communications, Works, Transport & Public Utilities","1-758-468-4320","Union, Castries","Castries","Saint Lucia","Micheal Flood","rflood@gosl.gov.lc","Public Utilities Officer","Communications, Works, Transport & Public Utilities","1-758-468-4366","Union","Castries","Saint Lucia",1,null,0]
["Saint Vincent and the Grenadines",null,null,null,null,null,null,null,null,null,null,null,null,null,null,null,null,null,null,null,null,null,null,null,null,null,null,null,null,null,null,null,null,null,null,null,null,null,null,null,null,null,null,null,null,null,null,null,null,null,null,null,null,null,null,null,null,null,null,null,null,null,null,null,null,null,null,null,null,null,null,null,null,null,null,null,null,null,null,null,null,null,null,null,null,null,null,null,null,null,null,null,null,null,null,null,null,null,null,null,null,null,null,null,null,null,null,null,null,null,null,null,null,null,null,null,null,null,null,null,null,null,null,null,null,null,null,null,null,null,null,null,null,null,null,null,null,null,null,null,null,null,null,null,null,null,null,null,null,null,null,null,null,null,null,null,null,null,null,null,null,null,null,null,null,null,null,null,null,null,null,null,null,null,null,null,null,null,null,null,null,null,null,null,null,null,null,null,null,null,null,null,null,null,null,null,null,null,null,null,null,null,null,0]
["Samoa",4,1,4,2,4,1,2,2,1,5,5,4,5,2,4,2,2,4,5,1,4,3,3,4,1,4,4,5,5,4,5,3,4,4,4,4,4,4,5,4,4,4,3,2,4,4,3,2,3,2,2,1,4,4,4,1,2,5,5,4,4,4,3,2,4,4,4,4,2,4,4,2,3,3,1,5,5,4,5,4,1,5,3,4,1,5,4,4,5,4,1,5,4,4,4,4,5,5,2,4,4,4,4,4,3,4,4,4,3,3,4,4,4,4,4,"The integrated approach within the water sector and in particular the water resources management sub-sector, has:  - improved coordination amongst water resources stakeholders.  - provided a holistic approach to water resources management especially through the integrated water resources management program implementing the ridge to reef concept.  - facilitated the setup of a Water Sector Coordination Unit which has led to the effective mobilisation of funding and other resources.   - allowed for all issues to be taken into account in formulating watershed management plans, stragergies, policy and legal frameworks.","- Human resources, and their capacity. Especially in hydrometric monitoring and groundwater investigations. Also in terms of drilling expertise for groundwater investigations and development.  - Implementation of recently reformed policy and legal framework  - Enforcement and compliance to water laws and regulations  - Limited community understanding and appreciation of responsible water management  - Insufficient knowledge and understanding on water resources  -  Land ownership issues as more than 80% of the land in Samoa is under customary land ownership. This corresponds to water ownership  - Stakeholder collaborations and participation  - Community willingness/attitude changes  - Conflict on water resource use by the water supply and hydropower generation.  -Fragmented management of water resource was perhaps an earlier problem which was overcome with the establishment of the WSCU within the WRD  -Climate Change and Natural Disasters.",2,5,4,4,3,4,4,3,5,4,5,5,3,5,5,5,4,5,5,4,5,4,5,4,4,4,1,3,3,5,4,5,5,5,4,5,4,5,4,5,5,5,5,5,3,4,4,5,5,5,4,5,5,5,5,5,5,5,5,5,null,2,null,null,null,null,null,"Suluimalo A. Penaia","amataga.penaia@mnre.gov.ws","Assistant Chief Executive Officer Water Resources Division [WRD]","Ministry of Natural Resources and Environment [MNRE]","+685-23800","Private Bag Apia",null,"SAMOA",null,null,null,null,null,null,null,null,1,null,0]
["San Marino",null,null,null,null,null,null,null,null,null,null,null,null,null,null,null,null,null,null,null,null,null,null,null,null,null,null,null,null,null,null,null,null,null,null,null,null,null,null,null,null,null,null,null,null,null,null,null,null,null,null,null,null,null,null,null,null,null,null,null,null,null,null,null,null,null,null,null,null,null,null,null,null,null,null,null,null,null,null,null,null,null,null,null,null,null,null,null,null,null,null,null,null,null,null,null,null,null,null,null,null,null,null,null,null,null,null,null,null,null,null,null,null,null,null,null,null,null,null,null,null,null,null,null,null,null,null,null,null,null,null,null,null,null,null,null,null,null,null,null,null,null,null,null,null,null,null,null,null,null,null,null,null,null,null,null,null,null,null,null,null,null,null,null,null,null,null,null,null,null,null,null,null,null,null,null,null,null,null,null,null,null,null,null,null,null,null,null,null,null,null,null,null,null,null,null,null,null,null,null,null,null,null,0]
["Sao Tome and Principe",3,1,3,1,3,2,2,2,3,1,2,4,4,4,2,4,3,4,2,1,3,2,1,3,1,2,4,4,3,2,2,2,3,4,3,4,3,4,2,2,3,4,2,2,2,3,3,3,1,3,3,2,null,2,3,1,3,1,4,3,4,4,2,2,3,3,2,2,2,2,2,2,3,4,3,3,2,2,4,2,1,2,2,4,5,4,3,2,5,2,1,3,2,1,4,4,2,5,5,2,2,2,2,2,2,2,2,1,1,1,1,3,3,2,3,"A) Participatory elaboration of the strategy of water and sanitation that defines four pillars:  1. Politics and Institutions  2. Integrated water resources management  3. Infrastructure  4. Education, training and awareness    B) Preparation of water Law imposing the policy of the sector.    C) Preparation of master plan which consisted in:  1. Characterization and analysis of current situation of the country.  2. Detailed characterization of the water resources of the country in terms of quantity and quality.  3. Defining the needs at the level of training of human resources in the sector.  4. Preparation of a proposal for recasting institutional model, management and tariff for water and sanitation sector.  5. Allocation of water resources of the country to different uses.  6. Preparation of preliminary studies and technical implementation for the projects of water supply and sanitation in the short, medium and long term – technical component, feasibility, environmental and social impact.    D) Implementation of 6 water supply projects and 10 irrigation","• There are only a limited set of scattered legislation with impact in the area.  • Lack of regulation of national water Policy.  • Unclear definition of sector actors.  • No definition of fees and fines.  • Frame failure to meet the needs of the sector.  • Limited technical capacity of the communities for the management of water resources.  • Weak coordination of actions and methods and messages in relation to awareness-raising component.",4,4,2,3,3,4,2,3,3,2,4,2,4,4,3,3,3,4,2,4,4,3,3,3,4,3,1,1,2,4,4,4,4,4,4,4,4,4,3,3,4,4,4,3,3,3,3,4,4,4,4,4,4,4,4,4,3,3,4,4,null,2,null,null,null,null,null,"Lígia Cristina Soares de Barros","ligia-barros@hotmail.com","Director","Ministry of Public Works and Natural Resources / General Direction of Natural Resources and Energy","00 239 2222 747/990 80 40","Avenida Marginal 12 de Julho","-","Sao Tome and Principe","Argentino d’ Oliveira da Costa Vangente","vangente58@hotmail.com","Assistant","Ministry of Public Works and Natural Resources / General Direction of Natural Resources and Energy","00 239 2222 669/991 01 19","Avenida Marginal 12 de Julho","-","Sao Tome and Principe",1,null,0]
["Saudi Arabia",4,1,2,1,2,2,3,2,3,3,4,2,3,3,3,3,2,3,2,1,1,4,1,3,2,2,5,5,5,3,2,1,1,3,3,3,3,5,4,5,1,2,2,3,2,2,2,3,3,3,5,5,2,5,4,1,2,3,4,4,4,1,4,2,4,4,3,2,5,2,2,3,2,5,2,4,5,4,5,5,5,3,1,5,3,4,5,5,5,5,5,2,1,4,2,2,4,2,1,3,4,3,4,3,4,4,3,3,4,4,3,3,4,4,4,"1. Sustainable development of non-renewable water resources by reducing consumption and increasing efficiency of water use and illumination of non-added value activities.    2. Urban water demand management by utilizing advanced technologies to reduce water consumption up to (40%) through reduction of unaccounted for Water (UFW) from water distribution system by implementing National Water Conservation Program (NWCP).    3. Using advanced technologies for wastewater treatment and significance increase of reclaimed water reuse in industries landscaping and agriculture due to huge investment in wastewater treatment, transmission and storage.","1. High urban population growth and high per capita water consumption.    2. Relatively excessive water use and high economical growth in all sectors due to high unaccounted-for-water in urban water supply system.    3. Relatively low tariff structure and low value of water, results little or no incentives for water conservation.    3. Insufficient number of highly skilled professionals for water treatment plant designs and operations.",5,4,4,null,2,5,3,2,4,4,2,2,1,2,2,null,2,2,1,3,2,3,1,1,4,4,2,2,3,3,2,3,3,2,2,1,1,2,2,3,2,2,2,2,3,3,2,2,1,1,1,1,1,1,1,1,2,2,1,2,"The present survey provides present status, achievements and constraints if any, related with sustainable and integrated management of water resources of UN member countries and will help for better cooperation and knowledge transfer among member countries.",2,null,null,null,null,null,"Dr. Mohammed I. Al-Saud","malsaud@mowe.gov.sa","Deputy Minister for Water Affairs","Ministry of Water & Electricity","+966 1 2052734","Saud Center, King Fahd Road","Riyadh","Kingdom of Saudi Arabia","Mr. Helal Al-Harthi","halarthi@mowe.gov.sa","Water Consultant","Ministry of Water & Electricity","+966 1 2058888 - 2850","Saud Center, King Fahd Road","Riyadh","Kingdom of Saudi Arabia",1,null,0]
["Senegal",null,null,null,null,null,null,null,null,null,null,null,null,null,null,null,null,null,null,null,null,null,null,null,null,null,null,null,null,null,null,null,null,null,null,null,null,null,null,null,null,null,null,null,null,null,null,null,null,null,null,null,null,null,null,null,null,null,null,null,null,null,null,null,null,null,null,null,null,null,null,null,null,null,null,null,null,null,null,null,null,null,null,null,null,null,null,null,null,null,null,null,null,null,null,null,null,null,null,null,null,null,null,null,null,null,null,null,null,null,null,null,null,null,null,null,null,null,null,null,null,null,null,null,null,null,null,null,null,null,null,null,null,null,null,null,null,null,null,null,null,null,null,null,null,null,null,null,null,null,null,null,null,null,null,null,null,null,null,null,null,null,null,null,null,null,null,null,null,null,null,null,null,null,null,null,null,null,null,null,null,null,null,null,null,null,null,null,null,null,null,null,null,null,null,null,null,null,null,null,null,null,null,0]
["Serbia",4,4,4,1,2,1,2,2,5,5,4,4,3,2,2,2,2,2,5,2,2,2,2,5,2,5,5,5,3,3,2,2,2,2,2,2,2,2,3,4,2,4,2,2,2,2,2,2,2,2,2,2,4,2,2,2,2,5,5,5,5,2,2,2,4,4,2,2,2,4,2,2,3,4,2,4,4,4,4,4,1,1,2,4,2,4,4,4,4,4,1,1,2,3,4,4,5,4,1,3,3,2,2,3,3,2,2,3,3,2,2,3,3,2,2,"• Preparation and implementation of Water Management Master Plan, adopted by the Government in 2002, presented integrated approach in the process of planning and management of water resources.    • Cooperation between ministries and other important stakeholder is improved (water management issues are included in sectorial policies).    • Republic of Serbia is member of International Commission for the Protection of the Danube River (ICPDR) and International Sava River Basin Commission. Republic of  Serbia cooperate with Hungary in accordance with Agreement between the Governments of the Popular Federative Republic of Yugoslavia and the Popular Republic of Hungary (1955), through work of Commission and subcommissions for water protection, water management, and protection of water quality. Negotiation on new agreement between Serbia and Hungary will start in September 2011.    • Republic of Serbia and Romania cooperate in accordance with Agreement between the Popular Republic of Romania and the Popular Federativ Republic of Yugoslavia through Joint Commission on transboundary waters responsible to examine the hydro-technical issues, measures and works on hydro-technical systems and watercourses on the border or crossed by the State border which could influence both the watercourse regime – quality and quantity, and to make proposals regarding their regu;lations. Negotiation between Serbia and Romania on new Agreement started in November 2010 and will be continued in June 2011.    • Project of Water Management Information System (EuropeAid/121208/D/SV/YU Project No05SER01/05/004) has been finished in 2009. We are now in the process of it`s implementation.","• New Law on Water (\"Official gazette RS NO. 30/10) that transposes the Water Framework Directive in national legislation is adopted. Existing strategy of water sector was adopted  by Government  in 2002. Regulations, by-laws, Water Management Strategy, River basin Management Plans with Programs of measures are under preparation.    • Government adopted National Programme of Enviromental Protection (\"Official gazette RS\" no.12/10) for the period of 10 years. Action Plan, which is the short term instrument for the implementation of the National Programme, is under preparation.    • Project of Water Management Information System (EuropeAid/121208/D/SV/YU Project No05SER01/05/004) has been finished in 2009. We are now in the process of it`s implementation.     • After adoption of the new Water Law in 2010, we are in the process of the preparation and adoption regulations, by-laws, Water management Strategy and River Basin Management Plans with Programs of measures. Cooperation between sectors, different institutions, agencies is better but we need to improve good dialog in the field of water. We are facing problems of human capacities, technical resources and not adequate financial resources in the process of implementation integrated water resources management.",4,5,4,3,4,3,5,4,4,4,4,3,3,4,2,3,3,4,4,4,4,4,4,3,4,4,4,4,3,4,4,4,4,4,4,5,5,4,4,3,3,4,2,2,2,2,3,4,4,4,4,5,4,4,4,4,4,5,4,4,null,2,null,null,null,null,null,"Dragana Milovanovic","Dragana.milovanovic@minpolj.gov.rs","Head of Department for Strategic Planning and Management and International Cooperation in Water Sector","Ministry of Agriculture, Trade, Forestry and Water Management, Directorate for Water","+381 11 213 49 03","Bulevar umetnosti 2a","11070 Belgrade","Serbia",null,null,null,null,null,null,null,null,1,null,0]
["Seychelles",null,null,null,null,null,null,null,null,null,null,null,null,null,null,null,null,null,null,null,null,null,null,null,null,null,null,null,null,null,null,null,null,null,null,null,null,null,null,null,null,null,null,null,null,null,null,null,null,null,null,null,null,null,null,null,null,null,null,null,null,null,null,null,null,null,null,null,null,null,null,null,null,null,null,null,null,null,null,null,null,null,null,null,null,null,null,null,null,null,null,null,null,null,null,null,null,null,null,null,null,null,null,null,null,null,null,null,null,null,null,null,null,null,null,null,null,null,null,null,null,null,null,null,null,null,null,null,null,null,null,null,null,null,null,null,null,null,null,null,null,null,null,null,null,null,null,null,null,null,null,null,null,null,null,null,null,null,null,null,null,null,null,null,null,null,null,null,null,null,null,null,null,null,null,null,null,null,null,null,null,null,null,null,null,null,null,null,null,null,null,null,null,null,null,null,null,null,null,null,null,null,null,0]
["Sierra Leone",2,1,2,1,2,2,2,2,3,2,2,2,2,2,2,1,2,2,2,2,2,2,2,2,2,2,2,2,2,2,2,2,2,2,2,2,2,2,2,2,2,2,2,2,2,2,2,2,2,2,2,1,2,2,2,2,2,2,2,2,2,2,2,2,2,2,2,2,2,2,2,2,2,2,2,2,2,2,2,2,1,2,2,2,2,2,2,2,2,2,1,2,2,1,1,1,1,3,1,2,2,2,2,2,2,2,2,2,2,2,2,2,2,2,2,"Key results/ issues identified so far:    • Need for IWRM Policy    • Need for co-ordination of Water Resources Management activities    • Need for a new water code (law) for the country    • Need for capacity building program for the sector","Capacity constraints relating to:  • Policy environment as - there is no coherent and detailed policy for Water Resources Management – only reference to water resource management in the water and sanitation policy  • Legislation (water code ) for the sector is out-dated   • Limited human resource capacity in terms of adequacy (quantity) and quality    Collaboration and effective co-ordination challenges resulting from lack of information sharing and thus duplication of efforts",3,5,3,3,2,4,2,2,2,3,4,3,3,5,3,4,4,4,3,3,4,4,4,3,5,4,3,3,2,4,4,4,4,4,4,4,4,5,4,3,3,3,5,5,4,5,4,4,5,5,5,5,5,5,5,5,5,4,4,4,null,2,null,null,null,null,null,"Francis Moijue","fmoijue@gmail.com; fmoijue@hotmail.com","Senior Executive Engineer","Water Department, Ministry of Energy & Water Resources","+232 76610558","Water Supply Division, Ministry of Energy & Water Resources","4th Floor Electricity House, 39 Siaka Stevens Street, Freetown","Sierra Leone",null,null,null,null,null,null,null,null,1,null,0]
["Singapore",6,1,6,1,6,1,6,6,6,6,6,6,4,1,1,1,1,1,1,1,6,1,6,1,1,1,6,6,6,6,1,1,1,6,1,6,1,6,6,6,6,6,1,1,1,6,1,6,6,1,6,6,6,6,6,6,1,1,6,1,6,1,6,6,4,5,6,6,6,6,6,6,6,6,1,1,1,6,6,6,6,6,6,6,1,1,1,6,6,6,6,6,6,4,2,2,4,4,2,5,3,5,4,5,3,5,4,5,3,5,4,5,3,5,4,"Reliable and sustainable water supply through Four National Taps strategy.  Reduction in domestic water consumption per capita through water conservation efforts.  Stakeholder participation through engagement of the 3P sectors (public, private, people).","Although Singapore receives about 2.4m of rainfall annually, we have limited land for water catchment and storage.",1,3,4,3,1,3,3,4,3,1,3,1,3,2,5,3,3,4,4,4,4,3,4,3,4,1,1,1,2,4,3,4,1,3,3,3,3,3,3,3,4,4,4,3,3,3,4,5,5,5,3,4,5,3,3,4,4,4,5,4,null,1,null,null,null,null,null,"Louis Goh Shou Ming","goh_shou_ming@mewr.gov.sg","Senior Assistant Director","Ministry of the Environment and Water Resources","(65) 6731 9875","40 Scotts Road #24-00","Singapore 228231","Singapore",null,null,null,null,null,null,null,null,1,null,0]
["Slovakia",5,null,5,null,5,null,5,5,null,5,5,5,5,5,5,5,5,5,5,5,5,5,5,5,5,null,5,5,5,5,5,5,5,5,null,5,null,5,5,5,5,5,5,4,5,5,4,5,5,5,5,3,5,5,5,5,4,5,5,5,5,5,5,5,5,4,5,4,2,5,4,2,5,5,null,null,5,5,5,5,1,2,5,5,null,null,5,5,5,5,1,3,2,null,null,4,4,5,null,4,3,5,5,3,3,4,3,3,3,4,3,3,3,4,4,"Outcomes are in harmony with deadlines in relevant EU water directives (Water Framework Directive, Nitrat Directive, Urban Waste Water Treatment Directive, Groundwater Directive, Environmental Standards Directive etc.)  and with the Slovak Water Management Plan and its Programme of Measures.","Main constrain is lack of financial sources, mainly for implementation of directive 91/271/ECE (Urban Waste Water Treatment Directive)",4,5,3,4,4,3,5,3,2,3,null,null,3,3,3,4,5,4,5,4,4,4,4,5,5,null,5,null,3,3,4,5,null,5,5,5,5,4,4,4,4,4,3,null,3,null,5,5,4,3,null,3,4,4,4,4,4,4,4,4,null,2,null,null,null,null,null,"Water Policy Department (Zdena Kelnarova)","kelnarova.zdena@enviro.gov.sk","Senior state adviser","Ministry of Environment of the Slovak Republic, Water Protection Department","+421 2 59343375","Nam. L. Stura 1, 812 35  Bratislava",null,null,null,null,null,null,null,null,null,null,1,null,0]
["Slovenia",null,null,null,null,null,null,null,null,null,null,null,null,null,null,null,null,null,null,null,null,null,null,null,null,null,null,null,null,null,null,null,null,null,null,null,null,null,null,null,null,null,null,null,null,null,null,null,null,null,null,null,null,null,null,null,null,null,null,null,null,null,null,null,null,null,null,null,null,null,null,null,null,null,null,null,null,null,null,null,null,null,null,null,null,null,null,null,null,null,null,null,null,null,null,null,null,null,null,null,null,null,null,null,null,null,null,null,null,null,null,null,null,null,null,null,null,null,null,null,null,null,null,null,null,null,null,null,null,null,null,null,null,null,null,null,null,null,null,null,null,null,null,null,null,null,null,null,null,null,null,null,null,null,null,null,null,null,null,null,null,null,null,null,null,null,null,null,null,null,null,null,null,null,null,null,null,null,null,null,null,null,null,null,null,null,null,null,null,null,null,null,null,null,null,null,null,null,null,null,null,null,null,0]
["Solomon Islands",2,1,2,1,2,1,2,2,1,1,1,1,2,2,2,1,1,1,1,1,2,2,1,2,1,1,2,2,2,2,1,1,2,2,1,2,2,4,2,1,2,4,2,2,2,2,2,1,2,1,2,1,2,4,2,1,1,4,2,2,2,2,2,2,4,2,2,4,1,1,2,2,2,2,1,2,2,2,2,2,1,2,1,4,1,4,4,2,4,2,1,4,1,null,null,null,null,null,2,3,4,1,3,3,3,1,3,2,2,2,3,2,3,1,3,"1. Reliable water supply to communities  2. Improved water quality  3. Reduce water waste  4. Improve living condition  5. Increase social and economic activities in communities  6. Improved healthiness of population  7. Increase awareness  8. Environmental protection  9. Sustainable water supply","1. Fragmented institution responsible to water resources management  2. Uncoordinated approach  3. Weak policy and legislation  4. Weak Government support  5. Weak political will  6. Lack human resources  7. Lack financial support",2,5,2,3,3,4,3,3,3,3,3,3,2,5,4,4,2,5,4,4,4,4,4,4,5,3,1,1,3,4,4,5,3,4,3,4,4,3,3,4,4,4,5,4,3,3,4,5,4,5,4,5,4,4,4,5,5,5,5,5,null,1,null,null,null,null,null,"Charlie Bepapa","bepapa_charlie@hotmail.com","Director Water Resources","Mines, Energy and Rural Electrification","(677) 21522","P O Box G37","Honiara","Solomon Islands",null,null,null,null,null,null,null,null,1,null,0]
["Somalia",null,null,null,null,null,null,null,null,null,null,null,null,null,null,null,null,null,null,null,null,null,null,null,null,null,null,null,null,null,null,null,null,null,null,null,null,null,null,null,null,null,null,null,null,null,null,null,null,null,null,null,null,null,null,null,null,null,null,null,null,null,null,null,null,null,null,null,null,null,null,null,null,null,null,null,null,null,null,null,null,null,null,null,null,null,null,null,null,null,null,null,null,null,null,null,null,null,null,null,null,null,null,null,null,null,null,null,null,null,null,null,null,null,null,null,null,null,null,null,null,null,null,null,null,null,null,null,null,null,null,null,null,null,null,null,null,null,null,null,null,null,null,null,null,null,null,null,null,null,null,null,null,null,null,null,null,null,null,null,null,null,null,null,null,null,null,null,null,null,null,null,null,null,null,null,null,null,null,null,null,null,null,null,null,null,null,null,null,null,null,null,null,null,null,null,null,null,null,null,null,null,null,0]
["South Africa",6,1,5,1,4,1,4,null,4,2,2,2,2,2,2,1,4,4,4,4,4,4,5,5,4,5,5,5,5,5,5,5,5,2,2,4,4,4,5,5,5,5,4,4,4,4,4,4,4,5,4,4,5,5,2,4,4,5,5,4,5,4,4,4,5,5,4,4,4,4,4,1,4,5,5,5,5,5,5,5,4,4,4,5,5,5,5,5,5,5,4,4,4,3,2,2,4,4,1,4,4,4,4,4,3,3,3,4,3,3,3,4,3,3,3,"* Achievements  * New legislation based on integrated WRM and also recognizes the environment  * Focus to making water accessible as a basic human right  * Contribution to achievement of MDGs – education, health, etc  * MDG Target 7C to halve by 2015, the proportion of people without sustainable access to safe drinking water has been achieved  * There has been progress on Regional integration through transboundary water management","* Institutional governance & framework under development   * Lack of education – hampers stakeholder participation  * Lack of skills and capacity  * Equitable allocation of water not fully implemented (race & gender)  * Funding for water resource infrastructure   * Operation & maintenance of infrastructure",2,5,4,5,5,4,2,4,5,5,5,5,3,5,4,4,5,5,3,3,4,4,5,4,5,5,5,5,2,2,5,5,5,2,4,4,5,4,4,3,5,5,5,5,5,5,3,4,5,5,5,1,4,5,5,4,4,3,5,5,"The questionnaire is very confusing & difficult to interpret",2,null,null,null,null,null,"Trevor Balzer","BalzerT@dwa.gov.za","Director General","Water Affairs",null,"Water Affairs",null,"South Africa",null,null,null,null,null,null,null,null,1,null,0]
["Spain",6,6,6,6,6,6,6,6,1,2,1,1,6,6,2,6,6,6,6,6,6,6,6,6,6,6,6,6,6,6,6,6,1,1,1,6,6,6,6,6,6,6,6,6,6,6,6,6,6,6,6,5,6,6,5,6,6,6,6,6,6,6,6,6,6,6,6,6,6,6,6,5,6,6,6,6,6,6,6,6,6,6,6,6,6,6,6,6,6,6,6,6,5,4,2,2,5,4,4,5,5,5,5,5,4,4,4,5,4,4,4,5,4,4,4,"• Spain has been one of the former promoters of IWRM at basin level, with the establishment of the Ebro’s River Basin Authority (Confederación Hidrográfica del Ebro) in 1926.   • Therefore, all the sector’s achievements should be considered an outcome of this specific approach.","1. An accurate data base of available resources and an evaluation of future demands.    2. Administrative coordination at national, regional and local level    3. Extreme events: floods, scarcity and droughts",4,5,4,4,5,5,5,5,5,5,5,5,5,4,4,4,5,4,5,5,5,5,5,5,1,5,3,3,2,4,5,5,5,3,3,4,4,4,4,5,5,5,4,5,3,3,5,5,5,5,5,4,4,5,5,5,5,5,5,5,null,2,null,null,null,null,null,"Miguel Antolín","mantolin@mma.es","Head of the International Affairs Unit","Ministry of the Environment, and Rural and Marine Affairs. Directorate General for Water.","+34 91 597 60 95","Plaza San Juan de la Cruz S/N C-604","28071 Madrid","Spain",null,null,null,null,null,null,null,null,1,null,0]
["Sri Lanka",2,1,2,1,5,4,4,2,5,5,4,5,4,4,4,1,4,1,1,1,2,2,1,2,1,3,2,2,4,2,3,3,2,3,3,5,3,4,4,5,3,4,4,4,2,4,2,4,4,4,4,5,4,5,4,1,3,4,5,4,4,4,5,4,4,5,4,5,4,5,4,4,4,5,5,5,5,5,5,4,2,5,5,5,5,5,4,5,5,4,2,5,4,4,3,3,2,4,2,2,1,3,2,2,2,2,2,2,3,2,3,4,4,3,4,"Development priorities in the middle of last century to around 1980 were irrigation development and resettling people in the dry zone. Now the emphasis has changed and water resources development includes provision of water for agriculture, domestic needs environment, agro-based industry, industrial use, inland fisheries, recreation etc. This approach has improved the living standards, and has provided a cushion against the impacts of increasing pollution of water sources. Another positive impact is minimizing the environmental damages resulting from development, which enhances the sustainability of development.","Lack of consensus on key policy issues such as sharing water, value of water etc are constraints to the integrated approach. There is a need to improve the access to data, which is being addressed. Attitudinal changes have to be emphasized.",4,5,3,3,4,4,4,4,4,4,4,4,2,5,4,2,4,5,5,5,4,4,5,5,3,4,1,1,3,4,4,4,4,3,3,4,3,4,4,4,4,5,2,3,null,null,3,2,2,2,3,4,2,5,5,5,4,4,4,4,null,2,null,null,null,null,null,"K.W. Ivan de Silva","Gayan.kiwi82@yahoo.com","Secretary","Ministry of Irrigation and Water Resources Management","0094 773040857","500, T.B. Jayah Mawatha","Colombo 10","Sri Lanka","Upali Wickramaratne","upaliwic@sltnet.lk","Actg. Additional Secretary","Ministry of Irrigation and Water Resources Management",94,"500, T.B. Jayah Mawatha","Colombo 10","Sri Lanka",1,null,{"$f":"(COUNTIF(FX163,\">0\")-(COUNTIF(GT163,\">0\")))","v":0}]
["Sudan",5,4,6,5,4,2,4,5,5,5,5,5,5,5,4,5,2,2,6,2,2,2,null,2,2,5,5,2,6,5,5,4,5,5,5,5,4,5,2,2,5,null,2,2,4,5,2,2,4,4,4,4,1,4,4,4,2,6,6,5,5,4,null,3,5,5,5,2,1,2,4,2,1,4,5,5,5,5,5,2,4,4,2,5,6,6,5,4,5,2,4,4,2,3,4,2,4,4,1,3,4,2,3,3,3,2,3,4,3,2,3,4,4,3,4,"Increase in the application of methods and equipments  Improve in the efficiency of the water use  Improvement in the productivity of crops, livestock and fishery  Improvement hydropower generation  Improvement in the production of drinking water","• Financing the construction of water infrastructure  • Lack of water education and training for stakeholders  • Conflicts on water resources are obstacles to the water development and create water crisis and ground water degradation",4,5,3,4,3,4,5,5,5,4,5,4,2,1,2,1,3,2,2,3,3,3,3,3,4,4,3,4,2,4,4,4,4,4,4,5,5,4,4,4,5,5,4,4,5,5,3,5,4,4,4,4,5,4,5,2,4,4,4,4,null,2,null,null,null,null,null,"Ibrahim Salih Adam","Ibradam75@yahoo.co.uk","Chairman of the Water Resources Technical Organ","Ministry of irrigation and water resources",249910000000,"P.O.Box 878 Khartoum, Sudan",null,null,"Suzan Sedahmed Mustafa","suzanmustafa@gmail.com","Civil engineer","Ministry of irrigation and water resources",249920000000,"P.O.Box 878 Khartoum, Sudan",null,null,1,null,0]
["Suriname",null,null,null,null,null,null,null,null,null,null,null,null,null,null,null,null,null,null,null,null,null,null,null,null,null,null,null,null,null,null,null,null,null,null,null,null,null,null,null,null,null,null,null,null,null,null,null,null,null,null,null,null,null,null,null,null,null,null,null,null,null,null,null,null,null,null,null,null,null,null,null,null,null,null,null,null,null,null,null,null,null,null,null,null,null,null,null,null,null,null,null,null,null,null,null,null,null,null,null,null,null,null,null,null,null,null,null,null,null,null,null,null,null,null,null,null,null,null,null,null,null,null,null,null,null,null,null,null,null,null,null,null,null,null,null,null,null,null,null,null,null,null,null,null,null,null,null,null,null,null,null,null,null,null,null,null,null,null,null,null,null,null,null,null,null,null,null,null,null,null,null,null,null,null,null,null,null,null,null,null,null,null,null,null,null,null,null,null,null,null,null,null,null,null,null,null,null,null,null,null,null,null,0]
["Swaziland",2,1,4,1,2,2,2,1,2,4,2,2,2,2,2,1,2,2,5,5,3,3,2,4,5,3,3,2,2,2,2,2,2,2,2,2,2,3,4,2,6,4,2,2,2,2,2,2,1,2,4,1,3,3,2,5,2,3,4,4,4,2,4,2,2,2,2,1,2,2,2,2,2,4,4,2,4,2,4,4,1,4,2,4,4,2,4,2,4,4,1,4,2,5,5,5,5,2,2,3,3,5,4,4,4,4,4,3,3,4,3,4,4,3,4,"1. More participatory approach to water management.  2. Attention to environmental sustainability is prominent.  3. Increased attention to potable water supply.  4. Investment in water resources infrastructure and openness to multiple use of such infrastructure.  5. Restructuring of institutional arrangements.","1. Operationalising decentralised water management institutions.  2. Data and Information Management is a difficulty.  3. National hydro-meteorological monitoring networks need investment.  4. Sustainability in potable water supply to rural areas.  5. Inter-sectoral linkages still need work to enhance integration.  6. Implementation of institutional arrangements.  7. Capacity constraints in relation to water resources professionals, engineers, technicians, IT support as well as instrumentation and equipment.",5,5,4,3,4,3,2,5,5,5,4,4,5,5,5,5,4,5,3,5,5,5,4,4,5,5,5,5,3,4,4,4,4,3,5,5,5,5,5,4,4,4,5,5,5,5,3,4,4,5,5,3,5,5,5,5,5,5,5,4,null,1,null,null,null,null,null,"Sakhiwe Nkomo","msaaksz@gmail.com","Senior Water Engineer","Department of Water Affairs","+268 2404 2061","P O Box 6201","Mbabane","Swaziland","Trevor Shongwe","t_shongwe@yahoo.co.uk","Chief Water Engineer","Department of Water Affairs","+268 2404 2061","P O Box 6201","Mbabane","Swaziland",1,null,0]
["Sweden",6,6,6,1,6,6,4,6,1,6,6,6,3,5,null,1,4,5,2,6,6,6,6,6,6,6,6,6,6,6,6,6,1,6,6,6,6,6,6,6,6,6,6,6,6,6,4,5,6,6,6,1,6,6,6,6,6,6,6,6,6,6,6,6,6,6,6,1,6,6,6,1,6,6,6,6,6,6,6,6,1,1,4,1,1,6,6,6,6,6,1,1,4,2,2,2,4,4,1,4,4,4,4,4,4,4,4,4,4,4,4,4,4,4,4,"• Some improvements in the Baltic Sea, e.g. bladder wrack (sw: “blåstång”) increases.    • Nutrient emissions decrease continuously, e.g. reduced usage of pesticides and commercial fertilizers.    • Swedish waste water treatment plants have high levels of purification, higher than minimum EU requirements.","• Different agendas from the stakeholders.    • The value of clean water is underestimated.    • The public needs to be more aware.",5,2,3,4,4,2,3,3,1,2,4,3,5,4,3,2,3,3,5,3,3,4,5,5,4,4,1,1,3,5,5,4,4,4,3,4,4,4,5,2,5,3,5,5,4,4,4,5,5,5,5,5,3,4,4,4,5,3,5,2,null,2,null,null,null,null,null,"Niclas Hjerdt","Niclas.hjerdt@smhi.se","WFD Program Director","SMHI",{"$f":"46-11-4958082","v":-4958047},"Folkborgsvägen 1","60176 Norrköping","Sweden","Niklas Holmgren","Niklas.holmgren@lansstyrelsen.se","Subsidary Director, South Baltic River Basin District Authority","Vattenmyndigheterna",{"$f":"46-480-82305","v":-82739},"Malmbrogatan 6","39186 Kalmar","Sweden",1,null,0]
["Switzerland",6,6,6,6,null,1,1,3,1,5,1,1,3,5,5,1,5,3,5,6,4,5,5,4,6,6,5,5,6,6,6,4,1,6,6,6,6,6,5,6,5,6,4,4,5,5,4,2,5,4,4,1,5,5,3,6,4,6,6,6,6,6,5,1,6,5,5,5,1,5,5,1,4,6,4,5,6,6,6,6,1,1,5,5,4,5,6,6,6,6,1,1,5,5,2,2,5,5,5,null,null,null,null,null,null,null,null,null,null,null,null,null,null,null,null,null,null,3,3,3,3,3,3,4,2,2,2,3,3,4,3,3,4,4,3,5,3,3,3,4,4,1,1,1,1,1,1,3,2,3,3,3,2,3,3,3,4,3,1,3,3,3,3,3,3,3,4,4,4,4,3,4,4,3,5,5,3,null,2,null,null,null,null,null,"Monika Schaffner","Monika.schaffner@bafu.admin.ch","Scientific officer","Federal Office for the Environment",null,"PO Box 3003 Berne",null,null,"Olivier Overney","olivier.overney@bafu.admin.ch","Head of Section","Federal Office for the Environment","PO Box 3003 Berne",null,null,null,1,null,0]
["Syrian Arab Republic",null,null,null,null,null,null,null,null,null,null,null,null,null,null,null,null,null,null,null,null,null,null,null,null,null,null,null,null,null,null,null,null,null,null,null,null,null,null,null,null,null,null,null,null,null,null,null,null,null,null,null,null,null,null,null,null,null,null,null,null,null,null,null,null,null,null,null,null,null,null,null,null,null,null,null,null,null,null,null,null,null,null,null,null,null,null,null,null,null,null,null,null,null,null,null,null,null,null,null,null,null,null,null,null,null,null,null,null,null,null,null,null,null,null,null,null,null,null,null,null,null,null,null,null,null,null,null,null,null,null,null,null,null,null,null,null,null,null,null,null,null,null,null,null,null,null,null,null,null,null,null,null,null,null,null,null,null,null,null,null,null,null,null,null,null,null,null,null,null,null,null,null,null,null,null,null,null,null,null,null,null,null,null,null,null,null,null,null,null,null,null,null,null,null,null,null,null,null,null,null,null,null,0]
["Tajikistan",3,2,4,1,2,1,2,2,5,5,2,3,4,2,2,3,1,2,4,2,2,2,1,2,3,4,2,2,2,1,2,2,2,2,2,1,1,1,4,2,2,1,3,2,1,2,1,2,1,1,1,1,1,3,2,4,1,5,4,3,3,1,4,1,2,4,1,2,1,4,2,1,4,4,4,4,4,4,4,4,1,1,1,4,4,4,4,3,4,3,1,1,1,3,4,4,4,4,3,2,1,4,3,1,1,2,1,2,1,2,2,1,1,1,1,"• Tajikistan at present period is under developing of national strategic plane of transfer existing administrative water resources management institutional mechanism to the IWRM. In beginning of 2011 by support of UNECE was started National policy dialog on IWRM. However, in the country water allocation still based on the developed in Soviet period “Complex scheme on use and protection of water resources” of appropriate rivers basins. On the base of these “Schemes” were developed all irrigation schemes in the country, had take to the account water needs of other sectors. But, during last 20 years were many changes in demography and water related sectors of economy, changed national and regional water policy, changed national and international priorities. Transfer to the market economy and on going democratization processes demand reviewing of old water resources approaches and use of IWRM.    • Upcoming water sector reform in Tajikistan allow transfer of water resources management from administrative boundaries to the river basins and start implement IWRM","• Main obstacle of transfer of the administrative borders based water management system to the river basin water management approach is complexity of ensuring of appropriate functioning of existing irrigation infrastructures in transition period. The transition period will take about 3-5 years.    • Established Basins water resources management authorities will use IWRM approach and involve all water users, sectors  and stakeholders to the water resources management processes.    • Next obstacles is rehabilitation of old water infrastructures before transfer these to the Water Users Associations (WUA) and Federation of WUAs. It is important note that at present period WUAs not yet established in the whole country and existing WUAs serving only around 30% of irrigated lands. It foresees that drinking water supply, industry, fishering and other water users sectors will be served by Federation of WUAs.    • Other obstacles have linkage with improvement of economical mechanism of water resources management system, taxation issues, water fee and tariffs, training of water sector employees and others.",5,5,2,5,2,3,5,4,3,4,2,2,4,5,2,5,1,4,5,4,4,4,2,2,4,4,4,4,3,3,4,4,4,3,5,5,5,4,4,5,3,4,5,5,5,5,3,3,4,4,4,4,5,5,5,4,5,5,3,3,null,2,null,null,null,null,null,"Sulton Rahimov","sulton30@mail.ru","First Deputy Minister","Ministry of Melioration and Water Resources of the Republic of Tajikistan","+ 992 37 235 99 14","5/1, Shamsi. Str.","Dushanbe","Tajikistan",null,null,null,null,null,null,null,null,1,null,0]
["Thailand",3,3,2,2,4,3,3,3,3,4,3,3,2,3,2,2,3,3,3,3,4,4,4,3,3,3,4,4,4,3,4,3,3,4,3,4,3,3,4,4,4,4,3,2,3,4,3,3,4,4,3,3,4,4,3,3,3,4,4,3,4,3,3,3,3,4,3,3,2,3,2,1,2,4,5,4,4,3,3,3,2,3,3,4,4,4,4,4,3,3,2,2,3,null,null,null,null,null,null,3,3,3,3,3,3,3,3,3,2,3,2,3,3,3,3,null,null,4,4,3,3,3,4,4,4,4,3,4,3,4,4,4,4,3,4,4,4,3,3,3,3,4,3,3,4,3,4,4,4,4,4,3,3,3,4,4,4,4,4,4,4,3,3,3,4,3,4,4,3,4,3,4,3,3,4,4,3,"NOTE: Multiple responses have been received, these answers are calculated averages.",1,"and 2!",null,null,null,null,null,null,null,null,null,null,null,null,null,null,null,null,null,null,null,null,1,null,0]
["The former Yugoslav Republic of Macedonia \n",2,4,2,2,2,null,null,2,3,4,4,4,3,3,null,null,null,null,4,4,2,2,2,2,2,2,2,2,2,2,2,2,2,2,2,2,2,2,2,2,2,2,2,2,2,2,null,null,null,null,null,2,2,2,null,null,null,5,5,5,5,2,2,2,2,2,2,2,null,null,2,2,2,4,4,4,4,4,5,4,null,null,null,4,4,4,4,4,4,4,null,null,null,1,1,4,2,3,3,null,null,null,2,null,null,null,2,null,null,null,2,null,null,null,2,null,null,4,5,3,4,3,3,2,2,4,5,4,5,3,4,4,4,3,4,3,3,4,4,4,4,5,4,4,4,3,3,5,5,4,5,4,4,4,5,5,3,3,4,4,4,3,3,3,3,3,4,4,4,3,3,3,3,4,3,4,4,null,2,null,null,null,null,null,"Ylber Mirta","i.mirta@moepp.gov.mk","Head of Water Department","Ministry of environment and P.P.","+389 3 251 463","Bul.Goce Delcev,bb; Skopje, Macedonia",null,null,null,null,null,null,null,null,null,null,1,null,0]
["Timor-Leste",2,1,2,1,2,1,1,1,1,2,2,2,3,2,1,1,2,2,1,2,1,2,1,1,2,2,2,1,2,1,1,1,4,2,1,1,1,2,1,1,2,4,2,1,2,2,2,1,1,2,1,1,1,2,2,2,2,2,4,2,4,2,1,1,2,1,1,1,1,2,1,1,1,2,4,5,4,2,4,2,1,2,1,2,3,5,4,4,4,2,1,2,1,4,4,2,2,2,2,1,1,1,1,1,1,1,2,1,1,1,1,3,2,1,2,"the main improvement has been in urban and rural water supply and sanitation which has improved the chances of meeting MDG in 2015","the main constraints in integrating water resource management has been the fragmented responsibilites between agriculture, forestry, water supply and water management, and the lack of funding to support the wate management plans.",2,4,1,2,2,3,4,5,4,3,2,2,3,2,3,3,3,4,3,4,3,3,3,3,4,2,3,2,1,3,3,3,1,4,4,2,4,2,2,3,4,1,2,3,2,3,3,2,2,2,3,2,2,2,1,2,3,2,2,3,"The country has recently aplied for membership of the south east asian division of GWP and is awaiting the response. Recent moves have included development of water resource, water supply and sanitation policies and legislation. The country has participated in the NAPA and first communication. The main challenge to water resource management has been the limited funding towards the Directorate of Water Resource Management and limited staff and capacity. The country is preparing for discussions with Indonesia on trans-boundary river and water resources management. the country cannot yet identify its water resources due to lack of funding for groundwater monitoring and stream gauging and limited meteorological data collection.",1,null,null,null,null,null,"Mr Lindsay Furness","lfurness@besiktimor.org","water resource and climate adaptation advisor","Directorate of Water Resources","+670 7814842","PO Box 17","Dili","Timor Leste","Joaquim M.C. Ximenes","ximenesjoaquim@yahoo.com","Director","Directorate of Water Resources","+670 7297404","PO Box 17","Dili","Timor Leste",1,null,0]
["Togo",4,null,4,null,4,null,4,null,4,3,4,1,4,4,2,4,3,3,5,5,2,3,4,4,4,4,4,4,4,4,4,4,4,4,4,3,3,3,2,3,2,4,4,1,4,4,4,4,3,2,4,null,4,4,3,4,3,4,4,4,3,2,4,null,2,2,2,4,4,5,2,2,2,2,4,2,4,2,null,null,null,null,2,2,2,5,5,3,5,2,null,4,2,4,4,4,4,2,1,4,4,4,4,3,3,3,3,3,3,5,3,4,4,2,4,"- Coordination and consultation have started between the various public structures intervening in the water sector.  - The private sector has started to be more aware as they are now asking for authorisations for withdrawals and for commercialisation of water from the Ministry in charge of water.","- On the political and legal level: the water code [national water law] was passed in June 2010. What needs to be done now is to communicate around it and pass the ‘implementation decrees’, which are all already developed. Likewise, we need to inform the general public about the national water policy and the various sectorial policies.  - On the institutional and organisational level: a number of structures intervene in the water sector, they are used to a fragmented approach [by sector] with little stakeholders participation. Capacity-building [is needed] at all levels.  - Constraints linked to management tools: lack of monitoring stations (hydrology, hydrogeology and hydro-climatology), not enough stations but also poor quality of material and human resources  - Constraints linked to financial capacity: mobilisation of the financial resources needed for implementing the national IWRM plan.",4,5,4,4,3,4,4,3,4,4,4,4,5,5,4,4,4,4,5,4,4,4,4,4,4,4,4,4,4,5,4,5,5,4,4,5,5,5,4,4,4,4,4,4,4,4,4,4,4,4,4,5,4,4,5,4,4,4,3,3,null,2,null,null,null,null,null,"Akakpo Wohou","akakpo_naouf@yahoo.fr, maman_dan@yahoo.fr","Directeur de la Planification et de la Gestion des Ressources en Eau","Ministére de l'Eau (Ministry of Water)","(228) 22 21 87 92","O1 BP 119","Republique Togolaise","Togo",null,null,null,null,null,null,null,null,1,null,0]
["Tonga",6,1,6,1,3,3,2,3,2,4,4,4,3,2,3,2,2,3,1,1,1,5,1,5,1,5,2,3,4,4,4,4,4,2,3,4,4,3,3,2,3,2,3,3,3,1,1,2,2,3,5,2,3,1,3,4,3,4,4,4,2,2,3,3,3,4,3,2,2,2,5,1,2,4,2,1,5,1,3,2,2,4,2,5,3,1,5,1,4,null,3,3,3,2,3,5,2,4,2,2,3,1,2,3,3,2,3,3,3,1,2,2,2,1,2,"1. Sustainable Water Resource  - Effective and sound policies from the National Water Resource Committee  - Updated legislative framework in managing water resources  -Sound management of the Water Resources by Ministry of Land, Survey & Natural Resources: on the management of the underground water resources; Ministry of Health on the rural village water supply; Tonga Water Board on the urban center’s water supply, Ministry of Marine, on the coastal waters; Ministry’s of Agriculture, Forestry and Fisheries for irrigations and coastal mangroves forest management.  -Sound management of the quality of water by all line ministries including WHO within the Ministry of Health.","1. Fragmentation of the Management of the Water resources between 3 ministries and one public enterprise. Therefore tendencies for overlap and gaps exist resulting in inefficiencies and exploitation of resources.",2,4,3,1,3,4,1,4,3,4,3,4,4,3,3,1,3,5,1,3,4,4,4,5,4,4,3,1,4,5,4,4,4,5,4,4,4,4,4,4,4,4,5,5,1,4,4,4,4,5,5,5,4,4,4,4,4,4,4,4,null,2,null,null,null,null,null,"Viliami T. Manu","mafsoils@kalianet.to","Acting Director","Ministry of Agriculture, Food, Forestry & Fisheries","676 23038","Head Office, Vuna Rd","Queen Salote Wharf, Nuku’alofa","Tonga",null,null,null,null,null,null,null,null,1,null,0]
["Trinidad and Tobago",null,null,null,null,null,null,null,null,null,null,null,null,null,null,null,null,null,null,null,null,null,null,null,null,null,null,null,null,null,null,null,null,null,null,null,null,null,null,null,null,null,null,null,null,null,null,null,null,null,null,null,null,null,null,null,null,null,null,null,null,null,null,null,null,null,null,null,null,null,null,null,null,null,null,null,null,null,null,null,null,null,null,null,null,null,null,null,null,null,null,null,null,null,null,null,null,null,null,null,null,null,null,null,null,null,null,null,null,null,null,null,null,null,null,null,null,null,null,null,null,null,null,null,null,null,null,null,null,null,null,null,null,null,null,null,null,null,null,null,null,null,null,null,null,null,null,null,null,null,null,null,null,null,null,null,null,null,null,null,null,null,null,null,null,null,null,null,null,null,null,null,null,null,null,null,null,null,null,null,null,null,null,null,null,null,null,null,null,null,null,null,null,null,null,null,null,null,null,null,null,null,null,0]
["Tunisia",6,1,6,1,5,5,4,4,4,5,5,5,3,6,3,6,5,5,5,5,5,5,1,5,5,1,4,5,2,1,1,1,2,5,5,5,5,5,5,5,5,5,5,5,5,5,5,5,3,5,5,4,5,5,5,5,4,5,5,5,5,5,5,5,5,5,4,4,4,5,4,4,4,5,5,1,5,5,5,5,4,1,5,5,5,1,5,5,5,5,4,1,5,4,5,5,4,4,4,4,3,4,4,2,2,2,2,3,3,2,2,5,4,3,4,"-  Recharge of overexploited aquifers with conventional water (water from Dams)  - Utilization of surface and groundwater for irrigation  - Utilization of treated waste water for irrigation and aquifers recharge  - Surface water transfer to dry and poor regions.","- Successive period of dryness and water shortage  - The poor quality of treated waste water  - The high cost of investment.",3,4,4,1,3,4,4,5,2,2,1,4,5,5,4,3,4,5,5,5,3,3,3,5,4,5,3,1,3,5,5,4,4,4,4,3,4,4,3,4,3,5,4,5,3,3,3,5,5,4,4,4,5,3,5,4,3,4,4,4,null,2,null,null,null,null,null,"Khanfir Rachid","khanfirachid@yahoo.fr","General Director","Water Resources Department – Ministry of Agriculture and Environement","+ 216 71 399 320","43, rue Saida El-Manoubia","Monfleury","1008 – Tunis - Tunisia","Yousra Ben Salah","Yousra.bensalah@iresa.agrinet.tn","Sub Director","Water Resources Department – Ministry of Agriculture and Environement","+ 216 71 399 320","43, rue Saida El-Manoubia","Monfleury","1008 – Tunis - Tunisia",1,null,0]
["Turkey",null,null,null,null,null,null,null,null,null,null,null,null,null,null,null,null,null,null,null,null,null,null,null,null,null,null,null,null,null,null,null,null,null,null,null,null,null,null,null,null,null,null,null,null,null,null,null,null,null,null,null,null,null,null,null,null,null,null,null,null,null,null,null,null,null,null,null,null,null,null,null,null,null,null,null,null,null,null,null,null,null,null,null,null,null,null,null,null,null,null,null,null,null,null,null,null,null,null,null,null,null,null,null,null,null,null,null,null,null,null,null,null,null,null,null,null,null,null,null,null,null,null,null,null,null,null,null,null,null,null,null,null,null,null,null,null,null,null,null,null,null,null,null,null,null,null,null,null,null,null,null,null,null,null,null,null,null,null,null,null,null,null,null,null,null,null,null,null,null,null,null,null,null,null,null,null,null,null,null,null,null,null,null,null,null,null,null,null,null,null,null,null,null,null,null,null,null,null,null,null,null,null,0]
["Turkmenistan",null,null,null,null,null,null,null,null,null,null,null,null,null,null,null,null,null,null,null,null,null,null,null,null,null,null,null,null,null,null,null,null,null,null,null,null,null,null,null,null,null,null,null,null,null,null,null,null,null,null,null,null,null,null,null,null,null,null,null,null,null,null,null,null,null,null,null,null,null,null,null,null,null,null,null,null,null,null,null,null,null,null,null,null,null,null,null,null,null,null,null,null,null,null,null,null,null,null,null,null,null,null,null,null,null,null,null,null,null,null,null,null,null,null,null,null,null,null,null,null,null,null,null,null,null,null,null,null,null,null,null,null,null,null,null,null,null,null,null,null,null,null,null,null,null,null,null,null,null,null,null,null,null,null,null,null,null,null,null,null,null,null,null,null,null,null,null,null,null,null,null,null,null,null,null,null,null,null,null,null,null,null,null,null,null,null,null,null,null,null,null,null,null,null,null,null,null,null,null,null,null,null,0]
["Tuvalu",null,null,null,null,null,null,null,null,null,null,null,null,null,null,null,null,null,null,null,null,null,null,null,null,null,null,null,null,null,null,null,null,null,null,null,null,null,null,null,null,null,null,null,null,null,null,null,null,null,null,null,null,null,null,null,null,null,null,null,null,null,null,null,null,null,null,null,null,null,null,null,null,null,null,null,null,null,null,null,null,null,null,null,null,null,null,null,null,null,null,null,null,null,null,null,null,null,null,null,null,null,null,null,null,null,null,null,null,null,null,null,null,null,null,null,null,null,null,null,null,null,null,null,null,null,null,null,null,null,null,null,null,null,null,null,null,null,null,null,null,null,null,null,null,null,null,null,null,null,null,null,null,null,null,null,null,null,null,null,null,null,null,null,null,null,null,null,null,null,null,null,null,null,null,null,null,null,null,null,null,null,null,null,null,null,null,null,null,null,null,null,null,null,null,null,null,null,null,null,null,null,null,0]
["Uganda",5,5,5,5,4,2,2,4,4,2,4,5,2,2,2,4,5,5,4,2,4,4,4,4,4,4,4,4,4,4,4,2,4,3,3,5,4,5,2,5,5,5,5,2,5,5,5,4,4,3,2,2,5,4,4,5,5,5,5,5,5,4,4,2,4,4,2,2,2,2,3,2,5,4,2,5,4,2,5,4,1,5,5,4,2,5,5,2,5,4,1,5,5,3,4,5,1,5,1,3,3,4,3,2,4,4,4,2,2,4,3,3,4,2,4,"- Sustainable provision of water to meet the various water demands from irrigation, hydropower, navigation, domestic water supply, fisheries etc    - Improved protection of water resources from pollution and overexploitation     - Improved access to safe drinking water     - Sustainable hydropower production to avoid shocks in power supply systems","- Limited institutional and human capacity    - Low awareness about the need for management of water resources and in integrated manner    - Limited funding for water resources management    -  Existence of sectoral approaches to planning and implementation    - Inadequate framework for stakeholders involvement in water resources management",4,4,4,4,3,4,4,4,3,3,4,4,4,5,4,5,3,4,5,5,4,4,5,4,4,4,4,3,2,4,4,4,4,3,4,4,4,4,4,4,4,4,4,3,4,3,3,4,4,4,4,3,4,4,4,5,4,5,5,4,"In general, Uganda has fairly adequate legal and policy framework in a number of areas but what is still weak is implementation. The design of the questionnaire however does not provide an opportunity to provide information on the level of implementation of the various laws, policies and strategies.",2,null,null,null,null,null,"Dr. Callist Tindimugaya","Callist.tindimugaya@mwe.go.ug","Commissioner for Water Resources Planning and Regulation","Ministry of Water and Environment","256 77 2 521413","P.O.Box 20026","Kampala","Uganda",null,null,null,null,null,null,null,null,1,null,0]
["Ukraine",null,null,null,null,null,null,null,null,null,null,null,null,null,null,null,null,null,null,null,null,null,null,null,null,null,null,null,null,null,null,null,null,null,null,null,null,null,null,null,null,null,null,null,null,null,null,null,null,null,null,null,null,null,null,null,null,null,null,null,null,null,null,null,null,null,null,null,null,null,null,null,null,null,null,null,null,null,null,null,null,null,null,null,null,null,null,null,null,null,null,null,null,null,null,null,null,null,null,null,null,null,null,null,null,null,null,null,null,null,null,null,null,null,null,null,null,null,null,null,null,null,null,null,null,null,null,null,null,null,null,null,null,null,null,null,null,null,null,null,null,null,null,null,null,null,null,null,null,null,null,null,null,null,null,null,null,null,null,null,null,null,null,null,null,null,null,null,null,null,null,null,null,null,null,null,null,null,null,null,null,null,null,null,null,null,null,null,null,null,null,null,null,null,null,null,null,null,null,null,null,null,null,0]
["United Arab Emirates",4,4,5,4,null,3,3,3,4,3,4,3,3,3,3,3,3,3,4,null,null,4,null,4,4,null,4,4,4,4,4,4,4,5,5,5,5,5,5,5,4,4,4,4,3,3,3,3,3,3,3,3,3,5,3,3,3,3,3,3,3,3,3,3,3,3,4,4,4,4,4,4,4,4,4,4,4,4,4,4,4,4,4,4,4,4,4,4,4,4,4,4,4,4,4,4,4,4,4,4,4,3,4,4,4,4,4,4,4,4,4,4,4,4,4,"-decreasing groundwater depletion  -decreasing soil and water salinization  -high economic growth  -high standard of living","-scarcity of natural fresh water resources  -increasing water demand",3,5,5,5,4,5,5,5,5,5,5,5,4,5,5,4,3,5,5,5,5,5,5,5,5,5,5,5,5,5,5,4,4,4,4,4,4,4,4,4,4,4,4,4,4,4,4,4,4,4,4,4,4,4,4,4,4,4,4,4,null,2,null,null,null,null,null,"Mrs  Nada Butti Al Suweidi","nbs@moew.gov.ae","Head of Water Resources Sector","Environment aaaaaaaaaaaaaaaaaa7 Water",null,"P.O. Box 1509 Dubai",null,null,null,null,null,null,null,null,null,null,1,null,0]
["United Kingdom of Great Britain and Northern Ireland",6,6,6,6,6,4,4,2,1,6,1,5,5,5,5,1,5,5,1,5,5,5,5,5,1,1,6,4,5,5,5,5,1,5,5,5,5,1,5,5,6,6,5,3,6,6,6,3,4,5,4,3,6,6,4,1,4,1,6,6,6,6,6,4,4,5,5,5,5,5,6,5,6,2,1,3,1,6,6,6,1,1,4,1,1,1,1,6,1,1,1,1,1,2,2,1,4,4,4,3,3,4,3,3,3,4,3,3,3,4,3,3,3,4,3,null,null,3,5,3,3,4,5,2,3,3,3,3,3,3,3,3,3,3,3,5,5,5,5,5,5,2,2,1,1,2,4,3,3,3,2,3,2,3,2,3,3,3,4,4,4,4,4,4,4,4,4,4,4,4,4,4,4,4,4,4,4,"This is a response for England not UK.",1,null,null,null,null,null,"Peter Jiggins","peter.jiggins@defra.gsi.gov.uk","Head of Team - Drinking Water Quality","Department for Environment and Rural Affairs",2072385897,"Area 2C Ergon House","Horseferry Road","London SW1P 2AL",null,null,null,null,null,null,null,null,1,null,0]
["United Republic of Tanzania",5,1,4,1,2,1,2,2,4,4,4,3,3,4,1,1,4,4,3,4,5,5,5,5,5,5,4,4,4,4,4,4,4,6,6,4,4,4,5,3,5,5,5,5,4,4,4,4,2,4,4,4,4,4,4,4,4,5,5,4,4,3,4,3,4,4,3,3,3,1,4,1,4,1,4,4,3,2,4,4,1,4,2,4,4,4,null,null,4,4,1,4,4,4,4,4,4,4,1,3,4,4,3,3,3,4,3,4,2,4,3,2,2,2,2,"Integrated Water resources management is still evolving in Tanzania and is at its infancy stage  However most of the essential foundations have been made. The first 5 out of 9 IWRMD Plans are under preparation for Rufiji, Internal Drainage,  Wami-Ruvu and Lake Victoria basins.   The process to start preparing IWRM-Plans for the other basins is at an advance stage.  Currently there is a high awareness of the IWRM approaches, the new policy, strategy, legislation upon which the IWRMD_Plans will be based.  Institutionally there are 9-Basin Water Boards (BWB) and the National Water Board (NWB).  There are 9-Water Basin Offices managing the resource.  Water allocation permits are being granted by the Basin Boards, and all water use activities, have to apply for these permits.  Environmental issues are fully integrated into WRM systems and infrastructure for water resources data collection are being installed/rehabilitated.    The stakeholders are fully involved as members of the NWB or BWB, or Catchment committees or water user associations.  The profile of IWRM has risen and understanding of the issues and challenges has also risen.","• The platform for IWRM is highly underfunded and resourced and this has significant consequences on key sectors of the economy and livelihoods of the people.  Currently Tanzania is implemented a Water Sector Development Programme, but still financing is not regular.  • There still is under appreciation of the role of water resources in the economy.  • The link between Water Resources and development decisions is still weak,  • Conflicts over water use have minimized but still mechanisms and negotiation skills for conflict resolution are required  • Training and capacity building for WRM management remain a challenge.",4,3,3,3,4,3,3,4,4,3,3,3,4,3,3,3,4,3,3,4,4,3,3,3,4,4,4,4,3,4,4,4,4,null,4,4,4,4,3,3,4,4,5,5,4,4,3,5,4,4,4,1,5,5,5,5,5,3,3,3,null,2,null,null,null,null,null,"Ipyana E Mwakalinga","iemwakalinga@yahoo.co.uk","Principal Hydrologist","Ministry of Water, Water Resources Division","2.5578E+11","P O Box 35066, Dar es Salaam,  Tanzania",null,null,"Saidi A Faraji","saidifaraji@yahoo.co.uk","Principal Hydrologist","Ministry of Water, Water Resources Division",255750000000,"P O Box 35066, Dar es Salaam,  Tanzania",null,null,1,null,0]
["United States of America",null,null,null,null,null,null,null,null,null,null,null,null,null,null,null,null,null,null,null,null,null,null,null,null,null,null,null,null,null,null,null,null,null,null,null,null,null,null,null,null,null,null,null,null,null,null,null,null,null,null,null,null,null,null,null,null,null,null,null,null,null,null,null,null,null,null,null,null,null,null,null,null,null,null,null,null,null,null,null,null,null,null,null,null,null,null,null,null,null,null,null,null,null,null,null,null,null,null,null,null,null,null,null,null,null,null,null,null,null,null,null,null,null,null,null,null,null,null,null,null,null,null,null,null,null,null,null,null,null,null,null,null,null,null,null,null,null,null,null,null,null,null,null,null,null,null,null,null,null,null,null,null,null,null,null,null,null,null,null,null,null,null,null,null,null,null,null,null,null,null,null,null,null,null,null,null,null,null,null,null,null,null,null,null,null,null,null,null,null,null,null,null,null,null,null,null,null,null,null,null,null,null,0]
["Uruguay",5,1,6,1,5,1,6,5,5,5,5,5,5,3,4,1,3,3,5,5,4,3,2,5,5,5,5,4,6,5,5,5,5,4,1,3,1,3,4,5,4,6,5,2,2,5,5,5,2,3,5,1,5,5,5,5,2,6,6,2,4,4,5,4,5,4,4,4,2,5,2,1,2,4,5,6,4,5,6,5,1,4,2,1,1,6,1,4,5,5,1,4,2,4,4,4,2,2,2,4,3,3,4,3,3,3,3,4,4,3,4,4,2,3,3,"Uruguay has a hydrological network of nearly 100 years of records: 25 flow stations and 60 precipitation stations (less than 200,000 km2).  30 years been developing Regional Irrigation Boards have negotiated the competition for water.  Water Code of 1978, in 2004 he joined the Constitutional Reform of Water and in 2009 the National Water Policy Law.  Are created 3 Regional Councils and River Basin Commissions.  In 2010 it introduced the Agenda for Action: Plan for Integrated Management of Water Resources PLANAGUA: www.mvotma.gub.uy / planagua)   In 2010 it introduced the National Response Plan to Climate Change (www.cambioclimatico.gub.uy)","The functioning of participatory institutional structures and interagency coordination.",4,5,4,5,3,3,3,4,1,1,2,2,5,5,4,3,4,5,5,5,3,3,4,3,4,1,5,1,2,5,4,5,4,5,4,4,3,4,5,5,5,5,5,3,5,4,4,5,5,5,4,5,4,4,4,4,4,5,5,4,null,1,null,null,null,null,null,"JOSE LUIS GENTA","jlgenta@mvotma.gub.uy","NATIONAL DIRECTOR OF WATER","MVOTMA / DINAGUA","+(598) 29170710 INT 5000","AV. RONDEAU 1665","MONTEVIDEO","URUGUAY",null,null,null,null,null,null,null,null,1,null,0]
["Uzbekistan",4,4,5,1,3,5,4,3,4,3,3,4,4,4,4,4,4,4,3,3,5,2,2,2,2,1,4,5,4,1,4,1,4,4,4,4,4,3,3,3,2,4,2,2,2,2,2,3,3,3,4,3,3,3,3,3,3,3,3,2,2,2,3,3,3,2,4,4,4,3,2,2,2,2,4,4,2,2,3,2,1,2,3,2,2,3,2,2,2,2,1,2,2,3,5,4,1,1,1,3,2,2,2,3,3,2,2,3,3,3,3,2,2,3,2,"• In the field of introduction of IWRM into day-to-day practice, Uzbekistan is the recognized leader in the Central Asia according to the analytic reviews of the World Bank, ADB, and other international organizations. The hydro-graphic and participatory principles of water resources management have been already applied on over 120,000 hectares in the Fergana Valley, and nowadays are in the process of introduction on extra 250,000 hectares in other provinces. IWRM allows to increase the reliability of water use, to give the key stakeholders access to water governance and simultaneously to reduce water consumption to a considerable degree.    • The joint activities of stakeholders at the each level of hierarchy and in junction points were based on the agreed procedures and methods for equitable water allocation and public supervision. By this way, the six key IWRM principles were implemented in Fergana Valley: the hydrographic institutional setting, linking of a few hierarchy levels, integration of sectors (in the form of Union of Water Users), linking of different types of water, shift from supply management to demand management, and finally – water saving.     • The principal goal for recent stage of water development in Uzbekistan is to achieve significant reduction of water withdrawal from river. During the seven years of the IWRM activities the total water withdrawal to the system of the South Fergana Canal in Uzbekistan was decreased more than by 20 per cent – mainly due to institutional reforms and improvement of mutual discipline of water managers and water users.    • In the same time within the project area there were improved indicators of water use efficiency and water productivity at farm level. These improvements promoted possibilities for increasing of the financial sustainability of farmers and Water Users Associations.","• National Water Authority has not support from political level to initiate development and adoption of the National IWRM Plan (or IWRM Vision)     • There is need for harmonization of the Water Law (adopted in December 2009) with Land Law and Tax law and other legal regulations    • Lack of economic mechanisms and financial instruments to provide financial sustainability at the lower institutional levels, where final products are created by means of water uses.    • Investments for improvements of infrastructure are not effective without adequate completion of the institutional reforms    • There is need for special programme on “water education” and creation of the new generation of water leaders.",5,5,4,4,5,4,4,5,5,5,4,4,5,5,4,3,5,4,4,5,5,4,4,4,4,4,5,5,2,5,5,4,3,4,3,5,3,5,4,4,4,5,5,5,5,5,2,5,5,4,4,5,4,5,4,5,5,4,4,5,null,2,null,null,null,null,null,"Vokhid Akhmadjonov","suvchi@mail.ru","Head of Water Resources Department","Ministry of Agriculture and Water Resources","+998 71 241 27 14","Navoi Street, 4","Tashkent, 100004","Uzbekistan",null,null,null,null,null,null,null,null,1,null,0]
["Vanuatu",null,null,null,null,null,null,null,null,null,null,null,null,null,null,null,null,null,null,null,null,null,null,null,null,null,null,null,null,null,null,null,null,null,null,null,null,null,null,null,null,null,null,null,null,null,null,null,null,null,null,null,null,null,null,null,null,null,null,null,null,null,null,null,null,null,null,null,null,null,null,null,null,null,null,null,null,null,null,null,null,null,null,null,null,null,null,null,null,null,null,null,null,null,null,null,null,null,null,null,null,null,null,null,null,null,null,null,null,null,null,null,null,null,null,null,null,null,null,null,null,null,null,null,null,null,null,null,null,null,null,null,null,null,null,null,null,null,null,null,null,null,null,null,null,null,null,null,null,null,null,null,null,null,null,null,null,null,null,null,null,null,null,null,null,null,null,null,null,null,null,null,null,null,null,null,null,null,null,null,null,null,null,null,null,null,null,null,null,null,null,null,null,null,null,null,null,null,null,null,null,null,null,0]
["Venezuela (Bolivarian Republic of)",null,null,null,null,null,null,null,null,null,null,null,null,null,null,null,null,null,null,null,null,null,null,null,null,null,null,null,null,null,null,null,null,null,null,null,null,null,null,null,null,null,null,null,null,null,null,null,null,null,null,null,null,null,null,null,null,null,null,null,null,null,null,null,null,null,null,null,null,null,null,null,null,null,null,null,null,null,null,null,null,null,null,null,null,null,null,null,null,null,null,null,null,null,null,null,null,null,null,null,null,null,null,null,null,null,null,null,null,null,null,null,null,null,null,null,null,null,null,null,null,null,null,null,null,null,null,null,null,null,null,null,null,null,null,null,null,null,null,null,null,null,null,null,null,null,null,null,null,null,null,null,null,null,null,null,null,null,null,null,null,null,null,null,null,null,null,null,null,null,null,null,null,null,null,null,null,null,null,null,null,null,null,null,null,null,null,null,null,null,null,null,null,null,null,null,null,null,null,null,null,null,null,0]
["Viet Nam",5,4,5,null,4,2,2,2,2,2,2,2,3,2,2,2,2,2,2,2,3,2,2,2,2,2,3,3,3,2,2,2,2,2,2,2,2,2,2,2,2,1,2,2,2,2,2,2,2,2,2,2,2,2,2,2,2,4,4,4,4,4,2,2,2,2,2,2,2,2,2,2,2,2,3,3,3,3,4,4,2,2,2,2,3,3,3,3,3,3,2,2,2,1,4,2,3,3,3,3,3,3,3,3,3,3,3,2,2,2,2,3,3,3,3,"IWRM concept started to be introduced to Vietnam since 1998, when for the first  time, a national workshop was organized under GWP sponsorship on “IWRM and  GWP”. During the past ten years, a number of water related external programs  contributed basically to the water sector reform in term of policy, legal and  institutional aspects. In 2005, with UNEP support, an evaluation of IWRM five  year implementation was undertaken by the water resources line agency, the  Department of Water Resources Management, Ministry of Natural Resources and  Environment (MONRE), in collaboration with several stakeholders. In 2008,  MONRE, with ADB support, carried out another overall evaluation - the Water  Sector Review - followed by a National Target Program for future implementation.  These are among key basis for the present Study.","Main issues and challenges  1/ Strengthening of water resources management  The function of water resources management was set up by the Law on Water  Resources in 1998. Since then and with the introduction of IWRM in 2000, the  country has made many progresses in regulations, strategies, policies, institutional  reforms and action plans. The separation of water resources management from  water utilization management was finally realized by 2008. Key weak points  remain with mechanism and management capacity for proper implementation;  overcoming fragmentation in the water sector is still a long way to go.  2/ Sustainable development of water resources  32  Development of water resources has long experiences, notably in irrigationdrainage  and flood control. Hydropower and water supply, both urban and rural,  are on high track. Facing to growth and population increase pressings, water is  seen as a resource to be exploited as required for social and economic purposes.  Policy actions themselves have sometimes deviated from right track and so, at the  price of environmental and social benefits. Major development projects continued  to be prepared with neither attention to the needs of the rivers or aquifers for their  long-term viability, nor measures to protect the fundamental health of water  sources. Cumulative impacts of developments have not been considered properly.  3/ Effective protection of river basin water resources  The concept of water as an integral part of an ecosystem was not part of the 1998  water law, but has been recognized in many water legal documents issued during  the past decade; that may hopefully become a feature of water management in the  revising water law.  4/ Efficient and economical use of waters  Users pay principle is applied more and more substantially in water supply but the  abolishment of collecting irrigation service fees is a major step backwards from  IWRM. Sewerage and water pollution treatment needed to catch up urgent  requirements, and in the future that must be subjected to polluters pay principle for  sustainable management. Sanitation is being dealt with actively by many sectors  but lacking of coordination at national level. The linking between sanitation with  water resources management and protection is still vague.  5/ Improvement of water public information and communication  Awareness raising, training and policy dialogue activities which are undertaken by  several stakeholders, especially by the civil society, have contributed positively to  water policy formulation and water sector improvement. Information and  communication activities should focus more in basin and local levels, for  encouraging and supporting communities involved more to water management.  That would benefit all parties through learning by doing.  6/ Enlargement of stakeholder participation  The Government has key role in the water sector reform, but not unique. National  legislation has specified ket players including line agencies, water developers",3,5,4,4,4,4,5,5,4,4,4,4,5,5,5,5,4,5,5,5,5,5,5,5,5,4,4,4,3,3,3,3,3,4,4,3,3,4,4,4,5,4,5,4,4,4,4,4,4,4,4,4,4,4,4,4,4,4,4,4,null,2,null,null,null,null,null,null,null,null,"MoNRE",null,null,null,"Vietnam",null,null,null,null,null,null,null,null,1,null,0]
["Yemen",null,null,null,null,null,null,null,null,null,null,null,null,null,null,null,null,null,null,null,null,null,null,null,null,null,null,null,null,null,null,null,null,null,null,null,null,null,null,null,null,null,null,null,null,null,null,null,null,null,null,null,null,null,null,null,null,null,null,null,null,null,null,null,null,null,null,null,null,null,null,null,null,null,null,null,null,null,null,null,null,null,null,null,null,null,null,null,null,null,null,null,null,null,null,null,null,null,null,null,null,null,null,null,null,null,null,null,null,null,null,null,null,null,null,null,null,null,null,null,null,null,null,null,null,null,null,null,null,null,null,null,null,null,null,null,null,null,null,null,null,null,null,null,null,null,null,null,null,null,null,null,null,null,null,null,null,null,null,null,null,null,null,null,null,null,null,null,null,null,null,null,null,null,null,null,null,null,null,null,null,null,null,null,null,null,null,null,null,null,null,null,null,null,null,null,null,null,null,null,null,null,null,0]
["Zambia",4,1,3,1,3,1,3,3,3,4,4,4,4,4,4,1,3,1,4,5,2,2,2,2,2,2,4,4,4,2,2,2,2,3,1,2,1,4,null,4,4,5,4,4,4,5,4,5,4,4,4,1,4,4,4,3,2,5,4,4,5,4,5,4,5,4,5,4,4,4,2,2,4,4,4,5,5,3,4,4,1,4,4,5,4,5,5,4,5,4,1,4,4,5,5,5,5,4,1,4,2,2,3,4,1,1,2,2,1,1,2,3,1,1,2,"• Better access to the resources  • Improved benefits  • Reduce conflicts","Taking into consideration all aspects of integrated water resources management",4,5,4,4,4,3,3,3,5,3,4,3,4,5,4,4,4,3,3,3,4,4,4,4,4,2,2,3,1,4,4,4,3,4,5,4,5,4,3,4,3,3,4,3,4,3,3,4,4,5,4,5,4,4,4,4,4,4,4,4,null,2,null,null,null,null,null,"Christopher Chileshe","cchileshe@mewd.gov.zm","Assistant Director","Energy and Water Development",{"$f":"260-211-243543","v":-243494},"P.O. Box 50288","Lusaka","Zambia",null,null,null,null,null,null,null,null,1,null,0]
["Zimbabwe",2,2,6,6,6,2,2,2,2,5,2,5,5,5,2,2,2,2,6,6,6,6,6,6,6,6,6,5,6,2,4,4,5,2,2,5,3,5,6,6,5,5,5,4,4,5,5,2,3,6,5,5,5,5,5,6,5,6,6,5,5,5,6,5,5,6,4,5,5,6,5,5,6,5,5,5,5,5,5,5,1,3,3,5,5,5,5,3,5,5,1,2,2,3,3,2,2,5,5,2,2,2,3,2,2,2,2,3,3,3,3,2,2,2,2,"For Zimbabwe there was the piloting of Water resources strategy leading to creation of catchment and sub catchment councils, review of water policy, creation of new institutions eg Environmental management agency, Zimbabwe National water authority (ZINWA) pollution control guidelines and recently creation of a National Action Committee that looks at Water ,Sanitation and hygiene issues. A new policy on water resources is under development and other sector initiatives are to create water accounts, capacity building carry out assessments to revamp the sector under theme “building back better”.","Zimbabwe has faced an economic decline due to political and social challenges that saw some targeted sanctions, skills flight, declining capacity lack of infrastructure investment. The country has faced some isolation and this saw a halt in advancement of water resources implementation. Thus some of the challenges can be itemized as:  •\tLack of capacity due to skills flight  •\tEconomic decline leading to lack of funding  •\tSettlement patterns making it difficult to bill new settler",4,5,4,4,4,5,4,4,4,4,5,4,5,5,5,5,4,4,5,5,5,5,5,5,5,5,4,null,4,5,5,5,5,5,5,5,5,5,4,5,5,5,1,1,4,1,null,3,2,2,2,3,null,1,1,2,2,3,5,2,null,2,null,null,null,null,null,"Mr Mawere","zmanyangadze@hotmail.com","Acting Director","Ministry of Water Resources Development and Management","263-4700596","P Bag 7767 Causeway","4thFloor Charter House Corner Samora Machel and Julius, Nyerere, Harare","Zimbabwe","Mr T Mutazu/Miss Tatenda Mawokomatanda","tmutazu@hotmail.com /tanamawoko@yahoo.co.uk","Director/Principal Engineer","Ministry of Water Resources Development and Management","263-4700596","P Bag 7767 Cuaseway","3rd Floor Charter House Corner Samora Machel and Julius, Nyerere, Harare","Zimbabwe",1,null,0]
[]
[]
["Total responses: Low HDI",{"$f":"COUNTIFS(B$3:B$194,\">0\",ID_HDIG,1)","v":31},{"$f":"COUNTIFS(C$3:C$194,\">0\",ID_HDIG,1)","v":29},{"$f":"COUNTIFS(D$3:D$194,\">0\",ID_HDIG,1)","v":30},{"$f":"COUNTIFS(E$3:E$194,\">0\",ID_HDIG,1)","v":28},{"$f":"COUNTIFS(F$3:F$194,\">0\",ID_HDIG,1)","v":32},28,31,29,32,32,32,32,32,31,31,29,30,30,31,31,30,30,29,32,30,31,32,32,32,32,31,31,{"$f":"COUNTIFS(AH$3:AH$194,\">0\",ID_HDIG,1)","v":31},31,32,32,32,32,30,30,30,30,31,30,30,32,30,32,32,31,31,27,30,30,31,31,31,32,32,31,31,28,28,28,{"$f":"COUNTIFS(BN$3:BN$194,\">0\",ID_HDIG,1)","v":30},31,32,32,31,32,31,30,32,30,32,31,31,31,31,30,31,30,31,32,31,31,30,30,30,31,31,31,31,31,30,29,{"$f":"COUNTIFS(CT$3:CT$194,\">0\",ID_HDIG,1)","v":30},30,31,29,29,29,29,29,29,29,29,29,29,29,29,29,29,29,29,null,null,{"$f":"COUNTIFS(DO$3:DO$194,\">0\",ID_HDIG,1)","v":31},31,30,30,31,31,31,31,31,31,31,31,31,31,31,31,31,31,31,30,31,31,31,31,31,31,30,29,31,31,31,30,{"$f":"COUNTIFS(EU$3:EU$194,\">0\",ID_HDIG,1)","v":30},30,31,31,31,31,31,31,31,31,31,31,31,30,30,31,30,31,31,31,29,31,31,31,31,31,31,31]
["Total responses: Medium HDI",{"$f":"COUNTIFS(B$3:B$194,\">0\",ID_HDIG,2)","v":31},{"$f":"COUNTIFS(C$3:C$194,\">0\",ID_HDIG,2)","v":31},{"$f":"COUNTIFS(D$3:D$194,\">0\",ID_HDIG,2)","v":31},{"$f":"COUNTIFS(E$3:E$194,\">0\",ID_HDIG,2)","v":28},{"$f":"COUNTIFS(F$3:F$194,\">0\",ID_HDIG,2)","v":31},31,31,30,30,31,31,31,31,30,31,30,31,31,31,31,31,31,30,31,30,31,31,31,31,31,31,31,{"$f":"COUNTIFS(AH$3:AH$194,\">0\",ID_HDIG,2)","v":31},31,31,31,31,31,31,31,31,31,30,31,31,31,31,31,31,31,31,29,31,30,31,30,31,31,31,31,31,30,31,30,{"$f":"COUNTIFS(BN$3:BN$194,\">0\",ID_HDIG,2)","v":31},31,31,31,31,31,31,30,29,31,31,30,31,31,30,30,30,31,31,31,31,30,30,31,31,31,30,31,31,29,29,30,{"$f":"COUNTIFS(CT$3:CT$194,\">0\",ID_HDIG,2)","v":29},29,27,30,30,30,30,30,30,30,30,30,30,30,30,30,30,30,30,null,null,{"$f":"COUNTIFS(DO$3:DO$194,\">0\",ID_HDIG,2)","v":29},30,30,30,29,30,30,31,31,31,31,31,30,31,31,31,31,31,31,31,31,31,31,31,31,31,30,30,30,30,31,31,{"$f":"COUNTIFS(EU$3:EU$194,\">0\",ID_HDIG,2)","v":31},31,31,31,31,31,31,31,31,31,31,31,29,29,30,31,31,30,30,30,30,30,30,29,30,30,30,30]
["Total responses: High HDI",{"$f":"COUNTIFS(B$3:B$194,\">0\",ID_HDIG,3)","v":36},{"$f":"COUNTIFS(C$3:C$194,\">0\",ID_HDIG,3)","v":36},{"$f":"COUNTIFS(D$3:D$194,\">0\",ID_HDIG,3)","v":36},{"$f":"COUNTIFS(E$3:E$194,\">0\",ID_HDIG,3)","v":35},{"$f":"COUNTIFS(F$3:F$194,\">0\",ID_HDIG,3)","v":36},35,35,35,34,35,35,34,35,34,33,33,33,34,35,36,36,35,36,36,36,35,36,36,36,36,36,36,{"$f":"COUNTIFS(AH$3:AH$194,\">0\",ID_HDIG,3)","v":35},36,36,36,36,36,36,36,36,36,36,35,35,36,34,34,34,35,35,35,36,36,34,35,35,36,36,35,36,35,36,35,{"$f":"COUNTIFS(BN$3:BN$194,\">0\",ID_HDIG,3)","v":36},35,34,34,33,33,34,35,35,36,35,35,35,36,35,35,33,33,34,36,35,35,35,36,35,34,33,33,34,35,34,34,{"$f":"COUNTIFS(CT$3:CT$194,\">0\",ID_HDIG,3)","v":34},35,34,32,32,32,33,32,32,32,33,32,32,32,33,32,32,32,33,null,null,{"$f":"COUNTIFS(DO$3:DO$194,\">0\",ID_HDIG,3)","v":36},36,36,35,35,34,35,35,35,34,35,34,35,35,35,34,35,35,36,36,36,35,36,35,36,36,36,35,35,36,35,36,{"$f":"COUNTIFS(EU$3:EU$194,\">0\",ID_HDIG,3)","v":35},35,35,36,36,36,36,36,35,36,35,34,33,33,33,35,35,35,33,35,35,35,35,36,36,36,35,36]
["Total responses: Very High HDI",{"$f":"COUNTIFS(B$3:B$194,\">0\",ID_HDIG,4)","v":33},{"$f":"COUNTIFS(C$3:C$194,\">0\",ID_HDIG,4)","v":32},{"$f":"COUNTIFS(D$3:D$194,\">0\",ID_HDIG,4)","v":34},{"$f":"COUNTIFS(E$3:E$194,\">0\",ID_HDIG,4)","v":31},{"$f":"COUNTIFS(F$3:F$194,\">0\",ID_HDIG,4)","v":31},31,33,31,30,33,33,32,33,33,31,33,32,32,33,33,33,34,33,34,34,30,34,34,34,34,34,34,{"$f":"COUNTIFS(AH$3:AH$194,\">0\",ID_HDIG,4)","v":31},34,32,34,31,33,33,33,34,34,32,33,34,34,34,33,32,33,33,33,33,34,34,33,34,34,34,34,34,34,34,33,{"$f":"COUNTIFS(BN$3:BN$194,\">0\",ID_HDIG,4)","v":34},34,34,33,34,34,33,31,33,33,33,30,33,34,33,33,34,33,33,34,32,30,34,34,33,34,34,33,33,31,31,32,{"$f":"COUNTIFS(CT$3:CT$194,\">0\",ID_HDIG,4)","v":33},34,31,31,30,31,28,31,30,31,28,31,30,31,28,31,30,31,28,null,null,{"$f":"COUNTIFS(DO$3:DO$194,\">0\",ID_HDIG,4)","v":34},34,34,33,34,33,33,33,33,33,32,32,34,34,33,33,33,32,34,33,34,34,34,34,34,32,33,32,32,33,33,34,{"$f":"COUNTIFS(EU$3:EU$194,\">0\",ID_HDIG,4)","v":33},33,33,33,33,34,34,34,34,34,34,33,32,31,32,33,33,34,33,34,34,32,32,34,34,34,34,34]
["Total number of responses: Global",{"$f":"COUNT(B3:B194)","v":131},{"$f":"COUNT(C3:C194)","v":128},{"$f":"COUNT(D3:D194)","v":131},{"$f":"COUNT(E3:E194)","v":122},{"$f":"COUNT(F3:F194)","v":130},125,130,125,126,131,131,129,131,128,126,125,126,127,130,131,130,130,128,133,130,127,133,133,133,133,132,132,{"$f":"COUNT(AH3:AH194)","v":128},132,131,133,130,132,130,130,131,131,129,129,130,133,129,130,129,130,130,124,130,130,130,129,131,133,133,131,132,127,129,126,{"$f":"COUNT(BN3:BN194)","v":131},131,131,130,129,130,129,126,129,130,131,126,130,132,129,128,128,127,129,133,129,126,129,131,129,130,128,128,129,126,124,125,{"$f":"COUNT(CT3:CT194)","v":126},128,123,122,121,122,120,122,121,122,120,122,121,122,120,122,121,122,120,null,null,{"$f":"COUNT(DO3:DO194)","v":130},131,130,128,129,128,129,130,130,129,129,128,130,131,130,129,130,129,132,130,132,131,132,131,132,130,129,126,128,130,130,131,{"$f":"COUNT(EU3:EU194)","v":129},129,130,131,131,132,132,132,131,132,131,129,125,123,125,130,129,130,127,130,128,128,128,130,131,131,130,131,"Total Check",{"$f":"COUNTIF(FX3:FX194,\">0\")","v":133},null,null,null,null,null,null,null,null,null,null,null,null,null,null,null,null,null,null,null,null,"Total No. check",{"$f":"SUM(GT4:GT195)","v":133}]
[]
["% responded: Low HDI",{"$f":"B197/Responses!$B$6","v":0.96875},{"$f":"C197/Responses!$B$6","v":0.90625},{"$f":"D197/Responses!$B$6","v":0.9375},{"$f":"E197/Responses!$B$6","v":0.875},{"$f":"F197/Responses!$B$6","v":1},{"$f":"G197/Responses!$B$6","v":0.875},{"$f":"H197/Responses!$B$6","v":0.96875},{"$f":"I197/Responses!$B$6","v":0.90625},{"$f":"J197/Responses!$B$6","v":1},{"$f":"K197/Responses!$B$6","v":1},{"$f":"L197/Responses!$B$6","v":1},{"$f":"M197/Responses!$B$6","v":1},{"$f":"N197/Responses!$B$6","v":1},{"$f":"O197/Responses!$B$6","v":0.96875},{"$f":"P197/Responses!$B$6","v":0.96875},{"$f":"Q197/Responses!$B$6","v":0.90625},{"$f":"R197/Responses!$B$6","v":0.9375},{"$f":"S197/Responses!$B$6","v":0.9375},{"$f":"T197/Responses!$B$6","v":0.96875},{"$f":"U197/Responses!$B$6","v":0.96875},{"$f":"V197/Responses!$B$6","v":0.9375},{"$f":"W197/Responses!$B$6","v":0.9375},{"$f":"X197/Responses!$B$6","v":0.90625},{"$f":"Y197/Responses!$B$6","v":1},{"$f":"Z197/Responses!$B$6","v":0.9375},{"$f":"AA197/Responses!$B$6","v":0.96875},{"$f":"AB197/Responses!$B$6","v":1},{"$f":"AC197/Responses!$B$6","v":1},{"$f":"AD197/Responses!$B$6","v":1},{"$f":"AE197/Responses!$B$6","v":1},{"$f":"AF197/Responses!$B$6","v":0.96875},{"$f":"AG197/Responses!$B$6","v":0.96875},{"$f":"AH197/Responses!$B$6","v":0.96875},{"$f":"AI197/Responses!$B$6","v":0.96875},{"$f":"AJ197/Responses!$B$6","v":1},{"$f":"AK197/Responses!$B$6","v":1},{"$f":"AL197/Responses!$B$6","v":1},{"$f":"AM197/Responses!$B$6","v":1},{"$f":"AN197/Responses!$B$6","v":0.9375},{"$f":"AO197/Responses!$B$6","v":0.9375},{"$f":"AP197/Responses!$B$6","v":0.9375},{"$f":"AQ197/Responses!$B$6","v":0.9375},{"$f":"AR197/Responses!$B$6","v":0.96875},{"$f":"AS197/Responses!$B$6","v":0.9375},{"$f":"AT197/Responses!$B$6","v":0.9375},{"$f":"AU197/Responses!$B$6","v":1},{"$f":"AV197/Responses!$B$6","v":0.9375},{"$f":"AW197/Responses!$B$6","v":1},{"$f":"AX197/Responses!$B$6","v":1},{"$f":"AY197/Responses!$B$6","v":0.96875},{"$f":"AZ197/Responses!$B$6","v":0.96875},{"$f":"BA197/Responses!$B$6","v":0.84375},{"$f":"BB197/Responses!$B$6","v":0.9375},{"$f":"BC197/Responses!$B$6","v":0.9375},{"$f":"BD197/Responses!$B$6","v":0.96875},{"$f":"BE197/Responses!$B$6","v":0.96875},{"$f":"BF197/Responses!$B$6","v":0.96875},{"$f":"BG197/Responses!$B$6","v":1},{"$f":"BH197/Responses!$B$6","v":1},{"$f":"BI197/Responses!$B$6","v":0.96875},{"$f":"BJ197/Responses!$B$6","v":0.96875},{"$f":"BK197/Responses!$B$6","v":0.875},{"$f":"BL197/Responses!$B$6","v":0.875},{"$f":"BM197/Responses!$B$6","v":0.875},{"$f":"BN197/Responses!$B$6","v":0.9375},{"$f":"BO197/Responses!$B$6","v":0.96875},{"$f":"BP197/Responses!$B$6","v":1},{"$f":"BQ197/Responses!$B$6","v":1},{"$f":"BR197/Responses!$B$6","v":0.96875},{"$f":"BS197/Responses!$B$6","v":1},{"$f":"BT197/Responses!$B$6","v":0.96875},{"$f":"BU197/Responses!$B$6","v":0.9375},{"$f":"BV197/Responses!$B$6","v":1},{"$f":"BW197/Responses!$B$6","v":0.9375},{"$f":"BX197/Responses!$B$6","v":1},{"$f":"BY197/Responses!$B$6","v":0.96875},{"$f":"BZ197/Responses!$B$6","v":0.96875},{"$f":"CA197/Responses!$B$6","v":0.96875},{"$f":"CB197/Responses!$B$6","v":0.96875},{"$f":"CC197/Responses!$B$6","v":0.9375},{"$f":"CD197/Responses!$B$6","v":0.96875},{"$f":"CE197/Responses!$B$6","v":0.9375},{"$f":"CF197/Responses!$B$6","v":0.96875},{"$f":"CG197/Responses!$B$6","v":1},{"$f":"CH197/Responses!$B$6","v":0.96875},{"$f":"CI197/Responses!$B$6","v":0.96875},{"$f":"CJ197/Responses!$B$6","v":0.9375},{"$f":"CK197/Responses!$B$6","v":0.9375},{"$f":"CL197/Responses!$B$6","v":0.9375},{"$f":"CM197/Responses!$B$6","v":0.96875},{"$f":"CN197/Responses!$B$6","v":0.96875},{"$f":"CO197/Responses!$B$6","v":0.96875},{"$f":"CP197/Responses!$B$6","v":0.96875},{"$f":"CQ197/Responses!$B$6","v":0.96875},{"$f":"CR197/Responses!$B$6","v":0.9375},{"$f":"CS197/Responses!$B$6","v":0.90625},{"$f":"CT197/Responses!$B$6","v":0.9375},{"$f":"CU197/Responses!$B$6","v":0.9375},{"$f":"CV197/Responses!$B$6","v":0.96875},{"$f":"CW197/Responses!$B$6","v":0.90625},{"$f":"CX197/Responses!$B$6","v":0.90625},{"$f":"CY197/Responses!$B$6","v":0.90625},{"$f":"CZ197/Responses!$B$6","v":0.90625},{"$f":"DA197/Responses!$B$6","v":0.90625},{"$f":"DB197/Responses!$B$6","v":0.90625},{"$f":"DC197/Responses!$B$6","v":0.90625},{"$f":"DD197/Responses!$B$6","v":0.90625},{"$f":"DE197/Responses!$B$6","v":0.90625},{"$f":"DF197/Responses!$B$6","v":0.90625},{"$f":"DG197/Responses!$B$6","v":0.90625},{"$f":"DH197/Responses!$B$6","v":0.90625},{"$f":"DI197/Responses!$B$6","v":0.90625},{"$f":"DJ197/Responses!$B$6","v":0.90625},{"$f":"DK197/Responses!$B$6","v":0.90625},{"$f":"DL197/Responses!$B$6","v":0.90625},null,null,{"$f":"DO197/Responses!$B$6","v":0.96875},{"$f":"DP197/Responses!$B$6","v":0.96875},{"$f":"DQ197/Responses!$B$6","v":0.9375},{"$f":"DR197/Responses!$B$6","v":0.9375},{"$f":"DS197/Responses!$B$6","v":0.96875},{"$f":"DT197/Responses!$B$6","v":0.96875},{"$f":"DU197/Responses!$B$6","v":0.96875},{"$f":"DV197/Responses!$B$6","v":0.96875},{"$f":"DW197/Responses!$B$6","v":0.96875},{"$f":"DX197/Responses!$B$6","v":0.96875},{"$f":"DY197/Responses!$B$6","v":0.96875},{"$f":"DZ197/Responses!$B$6","v":0.96875},{"$f":"EA197/Responses!$B$6","v":0.96875},{"$f":"EB197/Responses!$B$6","v":0.96875},{"$f":"EC197/Responses!$B$6","v":0.96875},{"$f":"ED197/Responses!$B$6","v":0.96875},{"$f":"EE197/Responses!$B$6","v":0.96875},{"$f":"EF197/Responses!$B$6","v":0.96875},{"$f":"EG197/Responses!$B$6","v":0.96875},{"$f":"EH197/Responses!$B$6","v":0.9375},{"$f":"EI197/Responses!$B$6","v":0.96875},{"$f":"EJ197/Responses!$B$6","v":0.96875},{"$f":"EK197/Responses!$B$6","v":0.96875},{"$f":"EL197/Responses!$B$6","v":0.96875},{"$f":"EM197/Responses!$B$6","v":0.96875},{"$f":"EN197/Responses!$B$6","v":0.96875},{"$f":"EO197/Responses!$B$6","v":0.9375},{"$f":"EP197/Responses!$B$6","v":0.90625},{"$f":"EQ197/Responses!$B$6","v":0.96875},{"$f":"ER197/Responses!$B$6","v":0.96875},{"$f":"ES197/Responses!$B$6","v":0.96875},{"$f":"ET197/Responses!$B$6","v":0.9375},{"$f":"EU197/Responses!$B$6","v":0.9375},{"$f":"EV197/Responses!$B$6","v":0.9375},{"$f":"EW197/Responses!$B$6","v":0.96875},{"$f":"EX197/Responses!$B$6","v":0.96875},{"$f":"EY197/Responses!$B$6","v":0.96875},{"$f":"EZ197/Responses!$B$6","v":0.96875},{"$f":"FA197/Responses!$B$6","v":0.96875},{"$f":"FB197/Responses!$B$6","v":0.96875},{"$f":"FC197/Responses!$B$6","v":0.96875},{"$f":"FD197/Responses!$B$6","v":0.96875},{"$f":"FE197/Responses!$B$6","v":0.96875},{"$f":"FF197/Responses!$B$6","v":0.96875},{"$f":"FG197/Responses!$B$6","v":0.96875},{"$f":"FH197/Responses!$B$6","v":0.9375},{"$f":"FI197/Responses!$B$6","v":0.9375},{"$f":"FJ197/Responses!$B$6","v":0.96875},{"$f":"FK197/Responses!$B$6","v":0.9375},{"$f":"FL197/Responses!$B$6","v":0.96875},{"$f":"FM197/Responses!$B$6","v":0.96875},{"$f":"FN197/Responses!$B$6","v":0.96875},{"$f":"FO197/Responses!$B$6","v":0.90625},{"$f":"FP197/Responses!$B$6","v":0.96875},{"$f":"FQ197/Responses!$B$6","v":0.96875},{"$f":"FR197/Responses!$B$6","v":0.96875},{"$f":"FS197/Responses!$B$6","v":0.96875},{"$f":"FT197/Responses!$B$6","v":0.96875},{"$f":"FU197/Responses!$B$6","v":0.96875},{"$f":"FV197/Responses!$B$6","v":0.96875}]
["% responded: Medium HDI",{"$f":"B198/Responses!$B$7","v":1},{"$f":"C198/Responses!$B$7","v":1},{"$f":"D198/Responses!$B$7","v":1},{"$f":"E198/Responses!$B$7","v":0.90322580645161288},{"$f":"F198/Responses!$B$7","v":1},{"$f":"G198/Responses!$B$7","v":1},{"$f":"H198/Responses!$B$7","v":1},{"$f":"I198/Responses!$B$7","v":0.967741935483871},{"$f":"J198/Responses!$B$7","v":0.967741935483871},{"$f":"K198/Responses!$B$7","v":1},{"$f":"L198/Responses!$B$7","v":1},{"$f":"M198/Responses!$B$7","v":1},{"$f":"N198/Responses!$B$7","v":1},{"$f":"O198/Responses!$B$7","v":0.967741935483871},{"$f":"P198/Responses!$B$7","v":1},{"$f":"Q198/Responses!$B$7","v":0.967741935483871},{"$f":"R198/Responses!$B$7","v":1},{"$f":"S198/Responses!$B$7","v":1},{"$f":"T198/Responses!$B$7","v":1},{"$f":"U198/Responses!$B$7","v":1},{"$f":"V198/Responses!$B$7","v":1},{"$f":"W198/Responses!$B$7","v":1},{"$f":"X198/Responses!$B$7","v":0.967741935483871},{"$f":"Y198/Responses!$B$7","v":1},{"$f":"Z198/Responses!$B$7","v":0.967741935483871},{"$f":"AA198/Responses!$B$7","v":1},{"$f":"AB198/Responses!$B$7","v":1},{"$f":"AC198/Responses!$B$7","v":1},{"$f":"AD198/Responses!$B$7","v":1},{"$f":"AE198/Responses!$B$7","v":1},{"$f":"AF198/Responses!$B$7","v":1},{"$f":"AG198/Responses!$B$7","v":1},{"$f":"AH198/Responses!$B$7","v":1},{"$f":"AI198/Responses!$B$7","v":1},{"$f":"AJ198/Responses!$B$7","v":1},{"$f":"AK198/Responses!$B$7","v":1},{"$f":"AL198/Responses!$B$7","v":1},{"$f":"AM198/Responses!$B$7","v":1},{"$f":"AN198/Responses!$B$7","v":1},{"$f":"AO198/Responses!$B$7","v":1},{"$f":"AP198/Responses!$B$7","v":1},{"$f":"AQ198/Responses!$B$7","v":1},{"$f":"AR198/Responses!$B$7","v":0.967741935483871},{"$f":"AS198/Responses!$B$7","v":1},{"$f":"AT198/Responses!$B$7","v":1},{"$f":"AU198/Responses!$B$7","v":1},{"$f":"AV198/Responses!$B$7","v":1},{"$f":"AW198/Responses!$B$7","v":1},{"$f":"AX198/Responses!$B$7","v":1},{"$f":"AY198/Responses!$B$7","v":1},{"$f":"AZ198/Responses!$B$7","v":1},{"$f":"BA198/Responses!$B$7","v":0.93548387096774188},{"$f":"BB198/Responses!$B$7","v":1},{"$f":"BC198/Responses!$B$7","v":0.967741935483871},{"$f":"BD198/Responses!$B$7","v":1},{"$f":"BE198/Responses!$B$7","v":0.967741935483871},{"$f":"BF198/Responses!$B$7","v":1},{"$f":"BG198/Responses!$B$7","v":1},{"$f":"BH198/Responses!$B$7","v":1},{"$f":"BI198/Responses!$B$7","v":1},{"$f":"BJ198/Responses!$B$7","v":1},{"$f":"BK198/Responses!$B$7","v":0.967741935483871},{"$f":"BL198/Responses!$B$7","v":1},{"$f":"BM198/Responses!$B$7","v":0.967741935483871},{"$f":"BN198/Responses!$B$7","v":1},{"$f":"BO198/Responses!$B$7","v":1},{"$f":"BP198/Responses!$B$7","v":1},{"$f":"BQ198/Responses!$B$7","v":1},{"$f":"BR198/Responses!$B$7","v":1},{"$f":"BS198/Responses!$B$7","v":1},{"$f":"BT198/Responses!$B$7","v":1},{"$f":"BU198/Responses!$B$7","v":0.967741935483871},{"$f":"BV198/Responses!$B$7","v":0.93548387096774188},{"$f":"BW198/Responses!$B$7","v":1},{"$f":"BX198/Responses!$B$7","v":1},{"$f":"BY198/Responses!$B$7","v":0.967741935483871},{"$f":"BZ198/Responses!$B$7","v":1},{"$f":"CA198/Responses!$B$7","v":1},{"$f":"CB198/Responses!$B$7","v":0.967741935483871},{"$f":"CC198/Responses!$B$7","v":0.967741935483871},{"$f":"CD198/Responses!$B$7","v":0.967741935483871},{"$f":"CE198/Responses!$B$7","v":1},{"$f":"CF198/Responses!$B$7","v":1},{"$f":"CG198/Responses!$B$7","v":1},{"$f":"CH198/Responses!$B$7","v":1},{"$f":"CI198/Responses!$B$7","v":0.967741935483871},{"$f":"CJ198/Responses!$B$7","v":0.967741935483871},{"$f":"CK198/Responses!$B$7","v":1},{"$f":"CL198/Responses!$B$7","v":1},{"$f":"CM198/Responses!$B$7","v":1},{"$f":"CN198/Responses!$B$7","v":0.967741935483871},{"$f":"CO198/Responses!$B$7","v":1},{"$f":"CP198/Responses!$B$7","v":1},{"$f":"CQ198/Responses!$B$7","v":0.93548387096774188},{"$f":"CR198/Responses!$B$7","v":0.93548387096774188},{"$f":"CS198/Responses!$B$7","v":0.967741935483871},{"$f":"CT198/Responses!$B$7","v":0.93548387096774188},{"$f":"CU198/Responses!$B$7","v":0.93548387096774188},{"$f":"CV198/Responses!$B$7","v":0.87096774193548387},{"$f":"CW198/Responses!$B$7","v":0.967741935483871},{"$f":"CX198/Responses!$B$7","v":0.967741935483871},{"$f":"CY198/Responses!$B$7","v":0.967741935483871},{"$f":"CZ198/Responses!$B$7","v":0.967741935483871},{"$f":"DA198/Responses!$B$7","v":0.967741935483871},{"$f":"DB198/Responses!$B$7","v":0.967741935483871},{"$f":"DC198/Responses!$B$7","v":0.967741935483871},{"$f":"DD198/Responses!$B$7","v":0.967741935483871},{"$f":"DE198/Responses!$B$7","v":0.967741935483871},{"$f":"DF198/Responses!$B$7","v":0.967741935483871},{"$f":"DG198/Responses!$B$7","v":0.967741935483871},{"$f":"DH198/Responses!$B$7","v":0.967741935483871},{"$f":"DI198/Responses!$B$7","v":0.967741935483871},{"$f":"DJ198/Responses!$B$7","v":0.967741935483871},{"$f":"DK198/Responses!$B$7","v":0.967741935483871},{"$f":"DL198/Responses!$B$7","v":0.967741935483871},null,null,{"$f":"DO198/Responses!$B$7","v":0.93548387096774188},{"$f":"DP198/Responses!$B$7","v":0.967741935483871},{"$f":"DQ198/Responses!$B$7","v":0.967741935483871},{"$f":"DR198/Responses!$B$7","v":0.967741935483871},{"$f":"DS198/Responses!$B$7","v":0.93548387096774188},{"$f":"DT198/Responses!$B$7","v":0.967741935483871},{"$f":"DU198/Responses!$B$7","v":0.967741935483871},{"$f":"DV198/Responses!$B$7","v":1},{"$f":"DW198/Responses!$B$7","v":1},{"$f":"DX198/Responses!$B$7","v":1},{"$f":"DY198/Responses!$B$7","v":1},{"$f":"DZ198/Responses!$B$7","v":1},{"$f":"EA198/Responses!$B$7","v":0.967741935483871},{"$f":"EB198/Responses!$B$7","v":1},{"$f":"EC198/Responses!$B$7","v":1},{"$f":"ED198/Responses!$B$7","v":1},{"$f":"EE198/Responses!$B$7","v":1},{"$f":"EF198/Responses!$B$7","v":1},{"$f":"EG198/Responses!$B$7","v":1},{"$f":"EH198/Responses!$B$7","v":1},{"$f":"EI198/Responses!$B$7","v":1},{"$f":"EJ198/Responses!$B$7","v":1},{"$f":"EK198/Responses!$B$7","v":1},{"$f":"EL198/Responses!$B$7","v":1},{"$f":"EM198/Responses!$B$7","v":1},{"$f":"EN198/Responses!$B$7","v":1},{"$f":"EO198/Responses!$B$7","v":0.967741935483871},{"$f":"EP198/Responses!$B$7","v":0.967741935483871},{"$f":"EQ198/Responses!$B$7","v":0.967741935483871},{"$f":"ER198/Responses!$B$7","v":0.967741935483871},{"$f":"ES198/Responses!$B$7","v":1},{"$f":"ET198/Responses!$B$7","v":1},{"$f":"EU198/Responses!$B$7","v":1},{"$f":"EV198/Responses!$B$7","v":1},{"$f":"EW198/Responses!$B$7","v":1},{"$f":"EX198/Responses!$B$7","v":1},{"$f":"EY198/Responses!$B$7","v":1},{"$f":"EZ198/Responses!$B$7","v":1},{"$f":"FA198/Responses!$B$7","v":1},{"$f":"FB198/Responses!$B$7","v":1},{"$f":"FC198/Responses!$B$7","v":1},{"$f":"FD198/Responses!$B$7","v":1},{"$f":"FE198/Responses!$B$7","v":1},{"$f":"FF198/Responses!$B$7","v":1},{"$f":"FG198/Responses!$B$7","v":0.93548387096774188},{"$f":"FH198/Responses!$B$7","v":0.93548387096774188},{"$f":"FI198/Responses!$B$7","v":0.967741935483871},{"$f":"FJ198/Responses!$B$7","v":1},{"$f":"FK198/Responses!$B$7","v":1},{"$f":"FL198/Responses!$B$7","v":0.967741935483871},{"$f":"FM198/Responses!$B$7","v":0.967741935483871},{"$f":"FN198/Responses!$B$7","v":0.967741935483871},{"$f":"FO198/Responses!$B$7","v":0.967741935483871},{"$f":"FP198/Responses!$B$7","v":0.967741935483871},{"$f":"FQ198/Responses!$B$7","v":0.967741935483871},{"$f":"FR198/Responses!$B$7","v":0.93548387096774188},{"$f":"FS198/Responses!$B$7","v":0.967741935483871},{"$f":"FT198/Responses!$B$7","v":0.967741935483871},{"$f":"FU198/Responses!$B$7","v":0.967741935483871},{"$f":"FV198/Responses!$B$7","v":0.967741935483871}]
["% responded: High HDI",{"$f":"B199/Responses!$B$8","v":1},{"$f":"C199/Responses!$B$8","v":1},{"$f":"D199/Responses!$B$8","v":1},{"$f":"E199/Responses!$B$8","v":0.97222222222222221},{"$f":"F199/Responses!$B$8","v":1},{"$f":"G199/Responses!$B$8","v":0.97222222222222221},{"$f":"H199/Responses!$B$8","v":0.97222222222222221},{"$f":"I199/Responses!$B$8","v":0.97222222222222221},{"$f":"J199/Responses!$B$8","v":0.94444444444444442},{"$f":"K199/Responses!$B$8","v":0.97222222222222221},{"$f":"L199/Responses!$B$8","v":0.97222222222222221},{"$f":"M199/Responses!$B$8","v":0.94444444444444442},{"$f":"N199/Responses!$B$8","v":0.97222222222222221},{"$f":"O199/Responses!$B$8","v":0.94444444444444442},{"$f":"P199/Responses!$B$8","v":0.91666666666666663},{"$f":"Q199/Responses!$B$8","v":0.91666666666666663},{"$f":"R199/Responses!$B$8","v":0.91666666666666663},{"$f":"S199/Responses!$B$8","v":0.94444444444444442},{"$f":"T199/Responses!$B$8","v":0.97222222222222221},{"$f":"U199/Responses!$B$8","v":1},{"$f":"V199/Responses!$B$8","v":1},{"$f":"W199/Responses!$B$8","v":0.97222222222222221},{"$f":"X199/Responses!$B$8","v":1},{"$f":"Y199/Responses!$B$8","v":1},{"$f":"Z199/Responses!$B$8","v":1},{"$f":"AA199/Responses!$B$8","v":0.97222222222222221},{"$f":"AB199/Responses!$B$8","v":1},{"$f":"AC199/Responses!$B$8","v":1},{"$f":"AD199/Responses!$B$8","v":1},{"$f":"AE199/Responses!$B$8","v":1},{"$f":"AF199/Responses!$B$8","v":1},{"$f":"AG199/Responses!$B$8","v":1},{"$f":"AH199/Responses!$B$8","v":0.97222222222222221},{"$f":"AI199/Responses!$B$8","v":1},{"$f":"AJ199/Responses!$B$8","v":1},{"$f":"AK199/Responses!$B$8","v":1},{"$f":"AL199/Responses!$B$8","v":1},{"$f":"AM199/Responses!$B$8","v":1},{"$f":"AN199/Responses!$B$8","v":1},{"$f":"AO199/Responses!$B$8","v":1},{"$f":"AP199/Responses!$B$8","v":1},{"$f":"AQ199/Responses!$B$8","v":1},{"$f":"AR199/Responses!$B$8","v":1},{"$f":"AS199/Responses!$B$8","v":0.97222222222222221},{"$f":"AT199/Responses!$B$8","v":0.97222222222222221},{"$f":"AU199/Responses!$B$8","v":1},{"$f":"AV199/Responses!$B$8","v":0.94444444444444442},{"$f":"AW199/Responses!$B$8","v":0.94444444444444442},{"$f":"AX199/Responses!$B$8","v":0.94444444444444442},{"$f":"AY199/Responses!$B$8","v":0.97222222222222221},{"$f":"AZ199/Responses!$B$8","v":0.97222222222222221},{"$f":"BA199/Responses!$B$8","v":0.97222222222222221},{"$f":"BB199/Responses!$B$8","v":1},{"$f":"BC199/Responses!$B$8","v":1},{"$f":"BD199/Responses!$B$8","v":0.94444444444444442},{"$f":"BE199/Responses!$B$8","v":0.97222222222222221},{"$f":"BF199/Responses!$B$8","v":0.97222222222222221},{"$f":"BG199/Responses!$B$8","v":1},{"$f":"BH199/Responses!$B$8","v":1},{"$f":"BI199/Responses!$B$8","v":0.97222222222222221},{"$f":"BJ199/Responses!$B$8","v":1},{"$f":"BK199/Responses!$B$8","v":0.97222222222222221},{"$f":"BL199/Responses!$B$8","v":1},{"$f":"BM199/Responses!$B$8","v":0.97222222222222221},{"$f":"BN199/Responses!$B$8","v":1},{"$f":"BO199/Responses!$B$8","v":0.97222222222222221},{"$f":"BP199/Responses!$B$8","v":0.94444444444444442},{"$f":"BQ199/Responses!$B$8","v":0.94444444444444442},{"$f":"BR199/Responses!$B$8","v":0.91666666666666663},{"$f":"BS199/Responses!$B$8","v":0.91666666666666663},{"$f":"BT199/Responses!$B$8","v":0.94444444444444442},{"$f":"BU199/Responses!$B$8","v":0.97222222222222221},{"$f":"BV199/Responses!$B$8","v":0.97222222222222221},{"$f":"BW199/Responses!$B$8","v":1},{"$f":"BX199/Responses!$B$8","v":0.97222222222222221},{"$f":"BY199/Responses!$B$8","v":0.97222222222222221},{"$f":"BZ199/Responses!$B$8","v":0.97222222222222221},{"$f":"CA199/Responses!$B$8","v":1},{"$f":"CB199/Responses!$B$8","v":0.97222222222222221},{"$f":"CC199/Responses!$B$8","v":0.97222222222222221},{"$f":"CD199/Responses!$B$8","v":0.91666666666666663},{"$f":"CE199/Responses!$B$8","v":0.91666666666666663},{"$f":"CF199/Responses!$B$8","v":0.94444444444444442},{"$f":"CG199/Responses!$B$8","v":1},{"$f":"CH199/Responses!$B$8","v":0.97222222222222221},{"$f":"CI199/Responses!$B$8","v":0.97222222222222221},{"$f":"CJ199/Responses!$B$8","v":0.97222222222222221},{"$f":"CK199/Responses!$B$8","v":1},{"$f":"CL199/Responses!$B$8","v":0.97222222222222221},{"$f":"CM199/Responses!$B$8","v":0.94444444444444442},{"$f":"CN199/Responses!$B$8","v":0.91666666666666663},{"$f":"CO199/Responses!$B$8","v":0.91666666666666663},{"$f":"CP199/Responses!$B$8","v":0.94444444444444442},{"$f":"CQ199/Responses!$B$8","v":0.97222222222222221},{"$f":"CR199/Responses!$B$8","v":0.94444444444444442},{"$f":"CS199/Responses!$B$8","v":0.94444444444444442},{"$f":"CT199/Responses!$B$8","v":0.94444444444444442},{"$f":"CU199/Responses!$B$8","v":0.97222222222222221},{"$f":"CV199/Responses!$B$8","v":0.94444444444444442},{"$f":"CW199/Responses!$B$8","v":0.88888888888888884},{"$f":"CX199/Responses!$B$8","v":0.88888888888888884},{"$f":"CY199/Responses!$B$8","v":0.88888888888888884},{"$f":"CZ199/Responses!$B$8","v":0.91666666666666663},{"$f":"DA199/Responses!$B$8","v":0.88888888888888884},{"$f":"DB199/Responses!$B$8","v":0.88888888888888884},{"$f":"DC199/Responses!$B$8","v":0.88888888888888884},{"$f":"DD199/Responses!$B$8","v":0.91666666666666663},{"$f":"DE199/Responses!$B$8","v":0.88888888888888884},{"$f":"DF199/Responses!$B$8","v":0.88888888888888884},{"$f":"DG199/Responses!$B$8","v":0.88888888888888884},{"$f":"DH199/Responses!$B$8","v":0.91666666666666663},{"$f":"DI199/Responses!$B$8","v":0.88888888888888884},{"$f":"DJ199/Responses!$B$8","v":0.88888888888888884},{"$f":"DK199/Responses!$B$8","v":0.88888888888888884},{"$f":"DL199/Responses!$B$8","v":0.91666666666666663},null,null,{"$f":"DO199/Responses!$B$8","v":1},{"$f":"DP199/Responses!$B$8","v":1},{"$f":"DQ199/Responses!$B$8","v":1},{"$f":"DR199/Responses!$B$8","v":0.97222222222222221},{"$f":"DS199/Responses!$B$8","v":0.97222222222222221},{"$f":"DT199/Responses!$B$8","v":0.94444444444444442},{"$f":"DU199/Responses!$B$8","v":0.97222222222222221},{"$f":"DV199/Responses!$B$8","v":0.97222222222222221},{"$f":"DW199/Responses!$B$8","v":0.97222222222222221},{"$f":"DX199/Responses!$B$8","v":0.94444444444444442},{"$f":"DY199/Responses!$B$8","v":0.97222222222222221},{"$f":"DZ199/Responses!$B$8","v":0.94444444444444442},{"$f":"EA199/Responses!$B$8","v":0.97222222222222221},{"$f":"EB199/Responses!$B$8","v":0.97222222222222221},{"$f":"EC199/Responses!$B$8","v":0.97222222222222221},{"$f":"ED199/Responses!$B$8","v":0.94444444444444442},{"$f":"EE199/Responses!$B$8","v":0.97222222222222221},{"$f":"EF199/Responses!$B$8","v":0.97222222222222221},{"$f":"EG199/Responses!$B$8","v":1},{"$f":"EH199/Responses!$B$8","v":1},{"$f":"EI199/Responses!$B$8","v":1},{"$f":"EJ199/Responses!$B$8","v":0.97222222222222221},{"$f":"EK199/Responses!$B$8","v":1},{"$f":"EL199/Responses!$B$8","v":0.97222222222222221},{"$f":"EM199/Responses!$B$8","v":1},{"$f":"EN199/Responses!$B$8","v":1},{"$f":"EO199/Responses!$B$8","v":1},{"$f":"EP199/Responses!$B$8","v":0.97222222222222221},{"$f":"EQ199/Responses!$B$8","v":0.97222222222222221},{"$f":"ER199/Responses!$B$8","v":1},{"$f":"ES199/Responses!$B$8","v":0.97222222222222221},{"$f":"ET199/Responses!$B$8","v":1},{"$f":"EU199/Responses!$B$8","v":0.97222222222222221},{"$f":"EV199/Responses!$B$8","v":0.97222222222222221},{"$f":"EW199/Responses!$B$8","v":0.97222222222222221},{"$f":"EX199/Responses!$B$8","v":1},{"$f":"EY199/Responses!$B$8","v":1},{"$f":"EZ199/Responses!$B$8","v":1},{"$f":"FA199/Responses!$B$8","v":1},{"$f":"FB199/Responses!$B$8","v":1},{"$f":"FC199/Responses!$B$8","v":0.97222222222222221},{"$f":"FD199/Responses!$B$8","v":1},{"$f":"FE199/Responses!$B$8","v":0.97222222222222221},{"$f":"FF199/Responses!$B$8","v":0.94444444444444442},{"$f":"FG199/Responses!$B$8","v":0.91666666666666663},{"$f":"FH199/Responses!$B$8","v":0.91666666666666663},{"$f":"FI199/Responses!$B$8","v":0.91666666666666663},{"$f":"FJ199/Responses!$B$8","v":0.97222222222222221},{"$f":"FK199/Responses!$B$8","v":0.97222222222222221},{"$f":"FL199/Responses!$B$8","v":0.97222222222222221},{"$f":"FM199/Responses!$B$8","v":0.91666666666666663},{"$f":"FN199/Responses!$B$8","v":0.97222222222222221},{"$f":"FO199/Responses!$B$8","v":0.97222222222222221},{"$f":"FP199/Responses!$B$8","v":0.97222222222222221},{"$f":"FQ199/Responses!$B$8","v":0.97222222222222221},{"$f":"FR199/Responses!$B$8","v":1},{"$f":"FS199/Responses!$B$8","v":1},{"$f":"FT199/Responses!$B$8","v":1},{"$f":"FU199/Responses!$B$8","v":0.97222222222222221},{"$f":"FV199/Responses!$B$8","v":1}]
["% responded: Very High HDI",{"$f":"B200/Responses!$B$9","v":0.97058823529411764},{"$f":"C200/Responses!$B$9","v":0.94117647058823528},{"$f":"D200/Responses!$B$9","v":1},{"$f":"E200/Responses!$B$9","v":0.91176470588235292},{"$f":"F200/Responses!$B$9","v":0.91176470588235292},{"$f":"G200/Responses!$B$9","v":0.91176470588235292},{"$f":"H200/Responses!$B$9","v":0.97058823529411764},{"$f":"I200/Responses!$B$9","v":0.91176470588235292},{"$f":"J200/Responses!$B$9","v":0.88235294117647056},{"$f":"K200/Responses!$B$9","v":0.97058823529411764},{"$f":"L200/Responses!$B$9","v":0.97058823529411764},{"$f":"M200/Responses!$B$9","v":0.94117647058823528},{"$f":"N200/Responses!$B$9","v":0.97058823529411764},{"$f":"O200/Responses!$B$9","v":0.97058823529411764},{"$f":"P200/Responses!$B$9","v":0.91176470588235292},{"$f":"Q200/Responses!$B$9","v":0.97058823529411764},{"$f":"R200/Responses!$B$9","v":0.94117647058823528},{"$f":"S200/Responses!$B$9","v":0.94117647058823528},{"$f":"T200/Responses!$B$9","v":0.97058823529411764},{"$f":"U200/Responses!$B$9","v":0.97058823529411764},{"$f":"V200/Responses!$B$9","v":0.97058823529411764},{"$f":"W200/Responses!$B$9","v":1},{"$f":"X200/Responses!$B$9","v":0.97058823529411764},{"$f":"Y200/Responses!$B$9","v":1},{"$f":"Z200/Responses!$B$9","v":1},{"$f":"AA200/Responses!$B$9","v":0.88235294117647056},{"$f":"AB200/Responses!$B$9","v":1},{"$f":"AC200/Responses!$B$9","v":1},{"$f":"AD200/Responses!$B$9","v":1},{"$f":"AE200/Responses!$B$9","v":1},{"$f":"AF200/Responses!$B$9","v":1},{"$f":"AG200/Responses!$B$9","v":1},{"$f":"AH200/Responses!$B$9","v":0.91176470588235292},{"$f":"AI200/Responses!$B$9","v":1},{"$f":"AJ200/Responses!$B$9","v":0.94117647058823528},{"$f":"AK200/Responses!$B$9","v":1},{"$f":"AL200/Responses!$B$9","v":0.91176470588235292},{"$f":"AM200/Responses!$B$9","v":0.97058823529411764},{"$f":"AN200/Responses!$B$9","v":0.97058823529411764},{"$f":"AO200/Responses!$B$9","v":0.97058823529411764},{"$f":"AP200/Responses!$B$9","v":1},{"$f":"AQ200/Responses!$B$9","v":1},{"$f":"AR200/Responses!$B$9","v":0.94117647058823528},{"$f":"AS200/Responses!$B$9","v":0.97058823529411764},{"$f":"AT200/Responses!$B$9","v":1},{"$f":"AU200/Responses!$B$9","v":1},{"$f":"AV200/Responses!$B$9","v":1},{"$f":"AW200/Responses!$B$9","v":0.97058823529411764},{"$f":"AX200/Responses!$B$9","v":0.94117647058823528},{"$f":"AY200/Responses!$B$9","v":0.97058823529411764},{"$f":"AZ200/Responses!$B$9","v":0.97058823529411764},{"$f":"BA200/Responses!$B$9","v":0.97058823529411764},{"$f":"BB200/Responses!$B$9","v":0.97058823529411764},{"$f":"BC200/Responses!$B$9","v":1},{"$f":"BD200/Responses!$B$9","v":1},{"$f":"BE200/Responses!$B$9","v":0.97058823529411764},{"$f":"BF200/Responses!$B$9","v":1},{"$f":"BG200/Responses!$B$9","v":1},{"$f":"BH200/Responses!$B$9","v":1},{"$f":"BI200/Responses!$B$9","v":1},{"$f":"BJ200/Responses!$B$9","v":1},{"$f":"BK200/Responses!$B$9","v":1},{"$f":"BL200/Responses!$B$9","v":1},{"$f":"BM200/Responses!$B$9","v":0.97058823529411764},{"$f":"BN200/Responses!$B$9","v":1},{"$f":"BO200/Responses!$B$9","v":1},{"$f":"BP200/Responses!$B$9","v":1},{"$f":"BQ200/Responses!$B$9","v":0.97058823529411764},{"$f":"BR200/Responses!$B$9","v":1},{"$f":"BS200/Responses!$B$9","v":1},{"$f":"BT200/Responses!$B$9","v":0.97058823529411764},{"$f":"BU200/Responses!$B$9","v":0.91176470588235292},{"$f":"BV200/Responses!$B$9","v":0.97058823529411764},{"$f":"BW200/Responses!$B$9","v":0.97058823529411764},{"$f":"BX200/Responses!$B$9","v":0.97058823529411764},{"$f":"BY200/Responses!$B$9","v":0.88235294117647056},{"$f":"BZ200/Responses!$B$9","v":0.97058823529411764},{"$f":"CA200/Responses!$B$9","v":1},{"$f":"CB200/Responses!$B$9","v":0.97058823529411764},{"$f":"CC200/Responses!$B$9","v":0.97058823529411764},{"$f":"CD200/Responses!$B$9","v":1},{"$f":"CE200/Responses!$B$9","v":0.97058823529411764},{"$f":"CF200/Responses!$B$9","v":0.97058823529411764},{"$f":"CG200/Responses!$B$9","v":1},{"$f":"CH200/Responses!$B$9","v":0.94117647058823528},{"$f":"CI200/Responses!$B$9","v":0.88235294117647056},{"$f":"CJ200/Responses!$B$9","v":1},{"$f":"CK200/Responses!$B$9","v":1},{"$f":"CL200/Responses!$B$9","v":0.97058823529411764},{"$f":"CM200/Responses!$B$9","v":1},{"$f":"CN200/Responses!$B$9","v":1},{"$f":"CO200/Responses!$B$9","v":0.97058823529411764},{"$f":"CP200/Responses!$B$9","v":0.97058823529411764},{"$f":"CQ200/Responses!$B$9","v":0.91176470588235292},{"$f":"CR200/Responses!$B$9","v":0.91176470588235292},{"$f":"CS200/Responses!$B$9","v":0.94117647058823528},{"$f":"CT200/Responses!$B$9","v":0.97058823529411764},{"$f":"CU200/Responses!$B$9","v":1},{"$f":"CV200/Responses!$B$9","v":0.91176470588235292},{"$f":"CW200/Responses!$B$9","v":0.91176470588235292},{"$f":"CX200/Responses!$B$9","v":0.88235294117647056},{"$f":"CY200/Responses!$B$9","v":0.91176470588235292},{"$f":"CZ200/Responses!$B$9","v":0.82352941176470584},{"$f":"DA200/Responses!$B$9","v":0.91176470588235292},{"$f":"DB200/Responses!$B$9","v":0.88235294117647056},{"$f":"DC200/Responses!$B$9","v":0.91176470588235292},{"$f":"DD200/Responses!$B$9","v":0.82352941176470584},{"$f":"DE200/Responses!$B$9","v":0.91176470588235292},{"$f":"DF200/Responses!$B$9","v":0.88235294117647056},{"$f":"DG200/Responses!$B$9","v":0.91176470588235292},{"$f":"DH200/Responses!$B$9","v":0.82352941176470584},{"$f":"DI200/Responses!$B$9","v":0.91176470588235292},{"$f":"DJ200/Responses!$B$9","v":0.88235294117647056},{"$f":"DK200/Responses!$B$9","v":0.91176470588235292},{"$f":"DL200/Responses!$B$9","v":0.82352941176470584},null,null,{"$f":"DO200/Responses!$B$9","v":1},{"$f":"DP200/Responses!$B$9","v":1},{"$f":"DQ200/Responses!$B$9","v":1},{"$f":"DR200/Responses!$B$9","v":0.97058823529411764},{"$f":"DS200/Responses!$B$9","v":1},{"$f":"DT200/Responses!$B$9","v":0.97058823529411764},{"$f":"DU200/Responses!$B$9","v":0.97058823529411764},{"$f":"DV200/Responses!$B$9","v":0.97058823529411764},{"$f":"DW200/Responses!$B$9","v":0.97058823529411764},{"$f":"DX200/Responses!$B$9","v":0.97058823529411764},{"$f":"DY200/Responses!$B$9","v":0.94117647058823528},{"$f":"DZ200/Responses!$B$9","v":0.94117647058823528},{"$f":"EA200/Responses!$B$9","v":1},{"$f":"EB200/Responses!$B$9","v":1},{"$f":"EC200/Responses!$B$9","v":0.97058823529411764},{"$f":"ED200/Responses!$B$9","v":0.97058823529411764},{"$f":"EE200/Responses!$B$9","v":0.97058823529411764},{"$f":"EF200/Responses!$B$9","v":0.94117647058823528},{"$f":"EG200/Responses!$B$9","v":1},{"$f":"EH200/Responses!$B$9","v":0.97058823529411764},{"$f":"EI200/Responses!$B$9","v":1},{"$f":"EJ200/Responses!$B$9","v":1},{"$f":"EK200/Responses!$B$9","v":1},{"$f":"EL200/Responses!$B$9","v":1},{"$f":"EM200/Responses!$B$9","v":1},{"$f":"EN200/Responses!$B$9","v":0.94117647058823528},{"$f":"EO200/Responses!$B$9","v":0.97058823529411764},{"$f":"EP200/Responses!$B$9","v":0.94117647058823528},{"$f":"EQ200/Responses!$B$9","v":0.94117647058823528},{"$f":"ER200/Responses!$B$9","v":0.97058823529411764},{"$f":"ES200/Responses!$B$9","v":0.97058823529411764},{"$f":"ET200/Responses!$B$9","v":1},{"$f":"EU200/Responses!$B$9","v":0.97058823529411764},{"$f":"EV200/Responses!$B$9","v":0.97058823529411764},{"$f":"EW200/Responses!$B$9","v":0.97058823529411764},{"$f":"EX200/Responses!$B$9","v":0.97058823529411764},{"$f":"EY200/Responses!$B$9","v":0.97058823529411764},{"$f":"EZ200/Responses!$B$9","v":1},{"$f":"FA200/Responses!$B$9","v":1},{"$f":"FB200/Responses!$B$9","v":1},{"$f":"FC200/Responses!$B$9","v":1},{"$f":"FD200/Responses!$B$9","v":1},{"$f":"FE200/Responses!$B$9","v":1},{"$f":"FF200/Responses!$B$9","v":0.97058823529411764},{"$f":"FG200/Responses!$B$9","v":0.94117647058823528},{"$f":"FH200/Responses!$B$9","v":0.91176470588235292},{"$f":"FI200/Responses!$B$9","v":0.94117647058823528},{"$f":"FJ200/Responses!$B$9","v":0.97058823529411764},{"$f":"FK200/Responses!$B$9","v":0.97058823529411764},{"$f":"FL200/Responses!$B$9","v":1},{"$f":"FM200/Responses!$B$9","v":0.97058823529411764},{"$f":"FN200/Responses!$B$9","v":1},{"$f":"FO200/Responses!$B$9","v":1},{"$f":"FP200/Responses!$B$9","v":0.94117647058823528},{"$f":"FQ200/Responses!$B$9","v":0.94117647058823528},{"$f":"FR200/Responses!$B$9","v":1},{"$f":"FS200/Responses!$B$9","v":1},{"$f":"FT200/Responses!$B$9","v":1},{"$f":"FU200/Responses!$B$9","v":1},{"$f":"FV200/Responses!$B$9","v":1}]
["% responded: Global",{"$f":"B201/Responses!$B$4","v":0.98496240601503759},{"$f":"C201/Responses!$B$4","v":0.96240601503759393},{"$f":"D201/Responses!$B$4","v":0.98496240601503759},{"$f":"E201/Responses!$B$4","v":0.91729323308270672},{"$f":"F201/Responses!$B$4","v":0.97744360902255634},{"$f":"G201/Responses!$B$4","v":0.93984962406015038},{"$f":"H201/Responses!$B$4","v":0.97744360902255634},{"$f":"I201/Responses!$B$4","v":0.93984962406015038},{"$f":"J201/Responses!$B$4","v":0.94736842105263153},{"$f":"K201/Responses!$B$4","v":0.98496240601503759},{"$f":"L201/Responses!$B$4","v":0.98496240601503759},{"$f":"M201/Responses!$B$4","v":0.96992481203007519},{"$f":"N201/Responses!$B$4","v":0.98496240601503759},{"$f":"O201/Responses!$B$4","v":0.96240601503759393},{"$f":"P201/Responses!$B$4","v":0.94736842105263153},{"$f":"Q201/Responses!$B$4","v":0.93984962406015038},{"$f":"R201/Responses!$B$4","v":0.94736842105263153},{"$f":"S201/Responses!$B$4","v":0.95488721804511278},{"$f":"T201/Responses!$B$4","v":0.97744360902255634},{"$f":"U201/Responses!$B$4","v":0.98496240601503759},{"$f":"V201/Responses!$B$4","v":0.97744360902255634},{"$f":"W201/Responses!$B$4","v":0.97744360902255634},{"$f":"X201/Responses!$B$4","v":0.96240601503759393},{"$f":"Y201/Responses!$B$4","v":1},{"$f":"Z201/Responses!$B$4","v":0.97744360902255634},{"$f":"AA201/Responses!$B$4","v":0.95488721804511278},{"$f":"AB201/Responses!$B$4","v":1},{"$f":"AC201/Responses!$B$4","v":1},{"$f":"AD201/Responses!$B$4","v":1},{"$f":"AE201/Responses!$B$4","v":1},{"$f":"AF201/Responses!$B$4","v":0.99248120300751874},{"$f":"AG201/Responses!$B$4","v":0.99248120300751874},{"$f":"AH201/Responses!$B$4","v":0.96240601503759393},{"$f":"AI201/Responses!$B$4","v":0.99248120300751874},{"$f":"AJ201/Responses!$B$4","v":0.98496240601503759},{"$f":"AK201/Responses!$B$4","v":1},{"$f":"AL201/Responses!$B$4","v":0.97744360902255634},{"$f":"AM201/Responses!$B$4","v":0.99248120300751874},{"$f":"AN201/Responses!$B$4","v":0.97744360902255634},{"$f":"AO201/Responses!$B$4","v":0.97744360902255634},{"$f":"AP201/Responses!$B$4","v":0.98496240601503759},{"$f":"AQ201/Responses!$B$4","v":0.98496240601503759},{"$f":"AR201/Responses!$B$4","v":0.96992481203007519},{"$f":"AS201/Responses!$B$4","v":0.96992481203007519},{"$f":"AT201/Responses!$B$4","v":0.97744360902255634},{"$f":"AU201/Responses!$B$4","v":1},{"$f":"AV201/Responses!$B$4","v":0.96992481203007519},{"$f":"AW201/Responses!$B$4","v":0.97744360902255634},{"$f":"AX201/Responses!$B$4","v":0.96992481203007519},{"$f":"AY201/Responses!$B$4","v":0.97744360902255634},{"$f":"AZ201/Responses!$B$4","v":0.97744360902255634},{"$f":"BA201/Responses!$B$4","v":0.93233082706766912},{"$f":"BB201/Responses!$B$4","v":0.97744360902255634},{"$f":"BC201/Responses!$B$4","v":0.97744360902255634},{"$f":"BD201/Responses!$B$4","v":0.97744360902255634},{"$f":"BE201/Responses!$B$4","v":0.96992481203007519},{"$f":"BF201/Responses!$B$4","v":0.98496240601503759},{"$f":"BG201/Responses!$B$4","v":1},{"$f":"BH201/Responses!$B$4","v":1},{"$f":"BI201/Responses!$B$4","v":0.98496240601503759},{"$f":"BJ201/Responses!$B$4","v":0.99248120300751874},{"$f":"BK201/Responses!$B$4","v":0.95488721804511278},{"$f":"BL201/Responses!$B$4","v":0.96992481203007519},{"$f":"BM201/Responses!$B$4","v":0.94736842105263153},{"$f":"BN201/Responses!$B$4","v":0.98496240601503759},{"$f":"BO201/Responses!$B$4","v":0.98496240601503759},{"$f":"BP201/Responses!$B$4","v":0.98496240601503759},{"$f":"BQ201/Responses!$B$4","v":0.97744360902255634},{"$f":"BR201/Responses!$B$4","v":0.96992481203007519},{"$f":"BS201/Responses!$B$4","v":0.97744360902255634},{"$f":"BT201/Responses!$B$4","v":0.96992481203007519},{"$f":"BU201/Responses!$B$4","v":0.94736842105263153},{"$f":"BV201/Responses!$B$4","v":0.96992481203007519},{"$f":"BW201/Responses!$B$4","v":0.97744360902255634},{"$f":"BX201/Responses!$B$4","v":0.98496240601503759},{"$f":"BY201/Responses!$B$4","v":0.94736842105263153},{"$f":"BZ201/Responses!$B$4","v":0.97744360902255634},{"$f":"CA201/Responses!$B$4","v":0.99248120300751874},{"$f":"CB201/Responses!$B$4","v":0.96992481203007519},{"$f":"CC201/Responses!$B$4","v":0.96240601503759393},{"$f":"CD201/Responses!$B$4","v":0.96240601503759393},{"$f":"CE201/Responses!$B$4","v":0.95488721804511278},{"$f":"CF201/Responses!$B$4","v":0.96992481203007519},{"$f":"CG201/Responses!$B$4","v":1},{"$f":"CH201/Responses!$B$4","v":0.96992481203007519},{"$f":"CI201/Responses!$B$4","v":0.94736842105263153},{"$f":"CJ201/Responses!$B$4","v":0.96992481203007519},{"$f":"CK201/Responses!$B$4","v":0.98496240601503759},{"$f":"CL201/Responses!$B$4","v":0.96992481203007519},{"$f":"CM201/Responses!$B$4","v":0.97744360902255634},{"$f":"CN201/Responses!$B$4","v":0.96240601503759393},{"$f":"CO201/Responses!$B$4","v":0.96240601503759393},{"$f":"CP201/Responses!$B$4","v":0.96992481203007519},{"$f":"CQ201/Responses!$B$4","v":0.94736842105263153},{"$f":"CR201/Responses!$B$4","v":0.93233082706766912},{"$f":"CS201/Responses!$B$4","v":0.93984962406015038},{"$f":"CT201/Responses!$B$4","v":0.94736842105263153},{"$f":"CU201/Responses!$B$4","v":0.96240601503759393},{"$f":"CV201/Responses!$B$4","v":0.92481203007518797},{"$f":"CW201/Responses!$B$4","v":0.91729323308270672},{"$f":"CX201/Responses!$B$4","v":0.90977443609022557},{"$f":"CY201/Responses!$B$4","v":0.91729323308270672},{"$f":"CZ201/Responses!$B$4","v":0.90225563909774431},{"$f":"DA201/Responses!$B$4","v":0.91729323308270672},{"$f":"DB201/Responses!$B$4","v":0.90977443609022557},{"$f":"DC201/Responses!$B$4","v":0.91729323308270672},{"$f":"DD201/Responses!$B$4","v":0.90225563909774431},{"$f":"DE201/Responses!$B$4","v":0.91729323308270672},{"$f":"DF201/Responses!$B$4","v":0.90977443609022557},{"$f":"DG201/Responses!$B$4","v":0.91729323308270672},{"$f":"DH201/Responses!$B$4","v":0.90225563909774431},{"$f":"DI201/Responses!$B$4","v":0.91729323308270672},{"$f":"DJ201/Responses!$B$4","v":0.90977443609022557},{"$f":"DK201/Responses!$B$4","v":0.91729323308270672},{"$f":"DL201/Responses!$B$4","v":0.90225563909774431},null,null,{"$f":"DO201/Responses!$B$4","v":0.97744360902255634},{"$f":"DP201/Responses!$B$4","v":0.98496240601503759},{"$f":"DQ201/Responses!$B$4","v":0.97744360902255634},{"$f":"DR201/Responses!$B$4","v":0.96240601503759393},{"$f":"DS201/Responses!$B$4","v":0.96992481203007519},{"$f":"DT201/Responses!$B$4","v":0.96240601503759393},{"$f":"DU201/Responses!$B$4","v":0.96992481203007519},{"$f":"DV201/Responses!$B$4","v":0.97744360902255634},{"$f":"DW201/Responses!$B$4","v":0.97744360902255634},{"$f":"DX201/Responses!$B$4","v":0.96992481203007519},{"$f":"DY201/Responses!$B$4","v":0.96992481203007519},{"$f":"DZ201/Responses!$B$4","v":0.96240601503759393},{"$f":"EA201/Responses!$B$4","v":0.97744360902255634},{"$f":"EB201/Responses!$B$4","v":0.98496240601503759},{"$f":"EC201/Responses!$B$4","v":0.97744360902255634},{"$f":"ED201/Responses!$B$4","v":0.96992481203007519},{"$f":"EE201/Responses!$B$4","v":0.97744360902255634},{"$f":"EF201/Responses!$B$4","v":0.96992481203007519},{"$f":"EG201/Responses!$B$4","v":0.99248120300751874},{"$f":"EH201/Responses!$B$4","v":0.97744360902255634},{"$f":"EI201/Responses!$B$4","v":0.99248120300751874},{"$f":"EJ201/Responses!$B$4","v":0.98496240601503759},{"$f":"EK201/Responses!$B$4","v":0.99248120300751874},{"$f":"EL201/Responses!$B$4","v":0.98496240601503759},{"$f":"EM201/Responses!$B$4","v":0.99248120300751874},{"$f":"EN201/Responses!$B$4","v":0.97744360902255634},{"$f":"EO201/Responses!$B$4","v":0.96992481203007519},{"$f":"EP201/Responses!$B$4","v":0.94736842105263153},{"$f":"EQ201/Responses!$B$4","v":0.96240601503759393},{"$f":"ER201/Responses!$B$4","v":0.97744360902255634},{"$f":"ES201/Responses!$B$4","v":0.97744360902255634},{"$f":"ET201/Responses!$B$4","v":0.98496240601503759},{"$f":"EU201/Responses!$B$4","v":0.96992481203007519},{"$f":"EV201/Responses!$B$4","v":0.96992481203007519},{"$f":"EW201/Responses!$B$4","v":0.97744360902255634},{"$f":"EX201/Responses!$B$4","v":0.98496240601503759},{"$f":"EY201/Responses!$B$4","v":0.98496240601503759},{"$f":"EZ201/Responses!$B$4","v":0.99248120300751874},{"$f":"FA201/Responses!$B$4","v":0.99248120300751874},{"$f":"FB201/Responses!$B$4","v":0.99248120300751874},{"$f":"FC201/Responses!$B$4","v":0.98496240601503759},{"$f":"FD201/Responses!$B$4","v":0.99248120300751874},{"$f":"FE201/Responses!$B$4","v":0.98496240601503759},{"$f":"FF201/Responses!$B$4","v":0.96992481203007519},{"$f":"FG201/Responses!$B$4","v":0.93984962406015038},{"$f":"FH201/Responses!$B$4","v":0.92481203007518797},{"$f":"FI201/Responses!$B$4","v":0.93984962406015038},{"$f":"FJ201/Responses!$B$4","v":0.97744360902255634},{"$f":"FK201/Responses!$B$4","v":0.96992481203007519},{"$f":"FL201/Responses!$B$4","v":0.97744360902255634},{"$f":"FM201/Responses!$B$4","v":0.95488721804511278},{"$f":"FN201/Responses!$B$4","v":0.97744360902255634},{"$f":"FO201/Responses!$B$4","v":0.96240601503759393},{"$f":"FP201/Responses!$B$4","v":0.96240601503759393},{"$f":"FQ201/Responses!$B$4","v":0.96240601503759393},{"$f":"FR201/Responses!$B$4","v":0.97744360902255634},{"$f":"FS201/Responses!$B$4","v":0.98496240601503759},{"$f":"FT201/Responses!$B$4","v":0.98496240601503759},{"$f":"FU201/Responses!$B$4","v":0.97744360902255634},{"$f":"FV201/Responses!$B$4","v":0.98496240601503759}]
[]
["Total responses: LAC",{"$f":"COUNTIFS(B$3:B$194,\">0\",ID_REG,1)","v":22},{"$f":"COUNTIFS(C$3:C$194,\">0\",ID_REG,1)","v":21},{"$f":"COUNTIFS(D$3:D$194,\">0\",ID_REG,1)","v":22},{"$f":"COUNTIFS(E$3:E$194,\">0\",ID_REG,1)","v":21},{"$f":"COUNTIFS(F$3:F$194,\">0\",ID_REG,1)","v":22},22,22,22,21,22,22,21,22,22,22,22,22,21,21,22,22,22,22,22,22,22,22,22,22,22,22,22,{"$f":"COUNTIFS(AH$3:AH$194,\">0\",ID_REG,1)","v":22},22,21,22,21,22,22,22,22,22,22,22,22,22,22,22,22,22,22,22,22,22,22,22,22,22,22,22,22,21,22,22,{"$f":"COUNTIFS(BN$3:BN$194,\">0\",ID_REG,1)","v":22},22,21,21,21,21,21,21,21,22,22,21,22,22,22,22,22,22,22,22,22,21,22,22,22,22,22,22,22,20,21,21,{"$f":"COUNTIFS(CT$3:CT$194,\">0\",ID_REG,1)","v":21},21,21,20,20,20,20,20,20,20,20,20,20,20,20,20,20,20,20,null,null,{"$f":"COUNTIFS(DO$3:DO$194,\">0\",ID_REG,1)","v":22},22,21,22,22,21,22,22,22,22,22,22,22,22,22,22,22,22,22,22,22,22,22,22,22,21,22,22,22,22,21,22,{"$f":"COUNTIFS(EU$3:EU$194,\">0\",ID_REG,1)","v":22},22,22,22,22,22,22,22,22,22,22,21,20,21,20,22,22,22,21,22,22,22,22,22,22,22,22,22]
["Total responses: ASP",{"$f":"COUNTIFS(B$3:B$194,\">0\",ID_REG,2)","v":28},{"$f":"COUNTIFS(C$3:C$194,\">0\",ID_REG,2)","v":28},{"$f":"COUNTIFS(D$3:D$194,\">0\",ID_REG,2)","v":28},{"$f":"COUNTIFS(E$3:E$194,\">0\",ID_REG,2)","v":26},{"$f":"COUNTIFS(F$3:F$194,\">0\",ID_REG,2)","v":27},28,28,28,27,28,28,28,28,28,28,27,28,28,28,27,27,28,26,28,28,27,28,28,28,28,28,28,{"$f":"COUNTIFS(AH$3:AH$194,\">0\",ID_REG,2)","v":28},28,28,28,28,28,28,28,28,28,28,28,28,28,28,28,28,28,28,28,28,28,28,28,28,28,28,28,28,28,28,28,{"$f":"COUNTIFS(BN$3:BN$194,\">0\",ID_REG,2)","v":28},28,28,28,28,28,28,28,28,28,28,28,28,28,28,28,28,28,28,28,28,28,28,28,28,27,28,28,28,25,25,26,{"$f":"COUNTIFS(CT$3:CT$194,\">0\",ID_REG,2)","v":25},26,26,27,27,27,27,27,27,27,27,27,27,27,27,27,27,27,27,null,null,{"$f":"COUNTIFS(DO$3:DO$194,\">0\",ID_REG,2)","v":28},28,28,27,28,28,28,28,28,28,28,28,28,28,28,27,28,28,28,28,28,28,28,28,28,28,28,28,27,28,28,28,{"$f":"COUNTIFS(EU$3:EU$194,\">0\",ID_REG,2)","v":28},28,28,28,28,28,28,28,28,28,28,28,27,27,27,28,28,27,27,27,27,27,27,26,27,27,27,27]
["Total responses: AFR",{"$f":"COUNTIFS(B$3:B$194,\">0\",ID_REG,3)","v":39},{"$f":"COUNTIFS(C$3:C$194,\">0\",ID_REG,3)","v":37},{"$f":"COUNTIFS(D$3:D$194,\">0\",ID_REG,3)","v":38},{"$f":"COUNTIFS(E$3:E$194,\">0\",ID_REG,3)","v":35},{"$f":"COUNTIFS(F$3:F$194,\">0\",ID_REG,3)","v":40},36,39,36,40,40,40,40,40,37,39,37,37,38,39,39,38,38,37,40,37,39,40,40,40,40,39,39,{"$f":"COUNTIFS(AH$3:AH$194,\">0\",ID_REG,3)","v":39},39,40,40,40,40,38,38,38,38,38,38,38,40,38,40,40,39,39,33,38,37,39,38,39,40,40,39,39,35,36,35,{"$f":"COUNTIFS(BN$3:BN$194,\">0\",ID_REG,3)","v":38},39,40,40,39,40,39,38,39,38,40,38,39,39,39,38,39,38,39,40,39,38,38,38,38,39,38,39,39,40,39,38,{"$f":"COUNTIFS(CT$3:CT$194,\">0\",ID_REG,3)","v":39},38,37,37,37,37,37,37,37,37,37,37,37,37,37,37,37,37,37,null,null,{"$f":"COUNTIFS(DO$3:DO$194,\">0\",ID_REG,3)","v":37},38,38,37,36,37,37,38,38,38,38,38,38,39,39,39,39,39,39,38,39,39,39,39,39,39,37,36,39,38,39,38,{"$f":"COUNTIFS(EU$3:EU$194,\">0\",ID_REG,3)","v":38},38,39,39,39,39,39,39,39,39,39,39,37,36,38,39,38,39,38,39,37,39,39,39,39,39,39,39]
["Total responses: EES",{"$f":"COUNTIFS(B$3:B$194,\">0\",ID_REG,4)","v":19},{"$f":"COUNTIFS(C$3:C$194,\">0\",ID_REG,4)","v":18},{"$f":"COUNTIFS(D$3:D$194,\">0\",ID_REG,4)","v":19},{"$f":"COUNTIFS(E$3:E$194,\">0\",ID_REG,4)","v":17},{"$f":"COUNTIFS(F$3:F$194,\">0\",ID_REG,4)","v":19},17,18,18,16,18,18,18,18,18,16,16,17,17,18,19,19,18,19,19,19,17,19,19,19,19,19,19,{"$f":"COUNTIFS(AH$3:AH$194,\">0\",ID_REG,4)","v":17},19,18,19,18,19,19,19,19,19,19,18,18,19,17,17,17,17,18,18,19,19,17,18,18,19,19,18,19,19,19,18,{"$f":"COUNTIFS(BN$3:BN$194,\">0\",ID_REG,4)","v":19},18,18,18,17,17,18,18,18,19,17,17,18,19,17,17,15,16,17,19,17,17,17,19,18,18,16,16,17,18,17,18,{"$f":"COUNTIFS(CT$3:CT$194,\">0\",ID_REG,4)","v":18},19,17,17,17,17,17,17,17,17,17,17,17,17,17,17,17,17,17,null,null,{"$f":"COUNTIFS(DO$3:DO$194,\">0\",ID_REG,4)","v":19},19,19,19,19,19,19,19,19,18,18,17,18,18,18,18,18,18,19,19,19,18,19,18,19,18,19,17,18,19,19,19,{"$f":"COUNTIFS(EU$3:EU$194,\">0\",ID_REG,4)","v":17},18,18,19,19,19,19,19,18,19,18,17,19,17,18,18,18,18,17,18,18,18,18,19,19,19,18,19]
["Total responses: WEO",{"$f":"COUNTIFS(B$3:B$194,\">0\",ID_REG,5)","v":23},{"$f":"COUNTIFS(C$3:C$194,\">0\",ID_REG,5)","v":24},{"$f":"COUNTIFS(D$3:D$194,\">0\",ID_REG,5)","v":24},{"$f":"COUNTIFS(E$3:E$194,\">0\",ID_REG,5)","v":23},{"$f":"COUNTIFS(F$3:F$194,\">0\",ID_REG,5)","v":22},22,23,21,22,23,23,22,23,23,21,23,22,23,24,24,24,24,24,24,24,22,24,24,24,24,24,24,{"$f":"COUNTIFS(AH$3:AH$194,\">0\",ID_REG,5)","v":22},24,24,24,23,23,23,23,24,24,22,23,24,24,24,23,22,24,23,23,23,24,24,23,24,24,24,24,24,24,24,23,{"$f":"COUNTIFS(BN$3:BN$194,\">0\",ID_REG,5)","v":24},24,24,23,24,24,23,21,23,23,24,22,23,24,23,23,24,23,23,24,23,22,24,24,23,24,24,23,23,23,22,22,{"$f":"COUNTIFS(CT$3:CT$194,\">0\",ID_REG,5)","v":23},24,22,21,20,21,19,21,20,21,19,21,20,21,19,21,20,21,19,null,null,{"$f":"COUNTIFS(DO$3:DO$194,\">0\",ID_REG,5)","v":24},24,24,23,24,23,23,23,23,23,23,23,24,24,23,23,23,22,24,23,24,24,24,24,24,24,23,23,22,23,23,24,{"$f":"COUNTIFS(EU$3:EU$194,\">0\",ID_REG,5)","v":24},23,23,23,23,24,24,24,24,24,24,24,22,22,22,23,23,24,24,24,24,22,22,24,24,24,24,24]
[]
["% responded: LAC",{"$f":"B209/Responses!$B$12","v":1},{"$f":"C209/Responses!$B$12","v":0.95454545454545459},{"$f":"D209/Responses!$B$12","v":1},{"$f":"E209/Responses!$B$12","v":0.95454545454545459},{"$f":"F209/Responses!$B$12","v":1},{"$f":"G209/Responses!$B$12","v":1},{"$f":"H209/Responses!$B$12","v":1},{"$f":"I209/Responses!$B$12","v":1},{"$f":"J209/Responses!$B$12","v":0.95454545454545459},{"$f":"K209/Responses!$B$12","v":1},{"$f":"L209/Responses!$B$12","v":1},{"$f":"M209/Responses!$B$12","v":0.95454545454545459},{"$f":"N209/Responses!$B$12","v":1},{"$f":"O209/Responses!$B$12","v":1},{"$f":"P209/Responses!$B$12","v":1},{"$f":"Q209/Responses!$B$12","v":1},{"$f":"R209/Responses!$B$12","v":1},{"$f":"S209/Responses!$B$12","v":0.95454545454545459},{"$f":"T209/Responses!$B$12","v":0.95454545454545459},{"$f":"U209/Responses!$B$12","v":1},{"$f":"V209/Responses!$B$12","v":1},{"$f":"W209/Responses!$B$12","v":1},{"$f":"X209/Responses!$B$12","v":1},{"$f":"Y209/Responses!$B$12","v":1},{"$f":"Z209/Responses!$B$12","v":1},{"$f":"AA209/Responses!$B$12","v":1},{"$f":"AB209/Responses!$B$12","v":1},{"$f":"AC209/Responses!$B$12","v":1},{"$f":"AD209/Responses!$B$12","v":1},{"$f":"AE209/Responses!$B$12","v":1},{"$f":"AF209/Responses!$B$12","v":1},{"$f":"AG209/Responses!$B$12","v":1},{"$f":"AH209/Responses!$B$12","v":1},{"$f":"AI209/Responses!$B$12","v":1},{"$f":"AJ209/Responses!$B$12","v":0.95454545454545459},{"$f":"AK209/Responses!$B$12","v":1},{"$f":"AL209/Responses!$B$12","v":0.95454545454545459},{"$f":"AM209/Responses!$B$12","v":1},{"$f":"AN209/Responses!$B$12","v":1},{"$f":"AO209/Responses!$B$12","v":1},{"$f":"AP209/Responses!$B$12","v":1},{"$f":"AQ209/Responses!$B$12","v":1},{"$f":"AR209/Responses!$B$12","v":1},{"$f":"AS209/Responses!$B$12","v":1},{"$f":"AT209/Responses!$B$12","v":1},{"$f":"AU209/Responses!$B$12","v":1},{"$f":"AV209/Responses!$B$12","v":1},{"$f":"AW209/Responses!$B$12","v":1},{"$f":"AX209/Responses!$B$12","v":1},{"$f":"AY209/Responses!$B$12","v":1},{"$f":"AZ209/Responses!$B$12","v":1},{"$f":"BA209/Responses!$B$12","v":1},{"$f":"BB209/Responses!$B$12","v":1},{"$f":"BC209/Responses!$B$12","v":1},{"$f":"BD209/Responses!$B$12","v":1},{"$f":"BE209/Responses!$B$12","v":1},{"$f":"BF209/Responses!$B$12","v":1},{"$f":"BG209/Responses!$B$12","v":1},{"$f":"BH209/Responses!$B$12","v":1},{"$f":"BI209/Responses!$B$12","v":1},{"$f":"BJ209/Responses!$B$12","v":1},{"$f":"BK209/Responses!$B$12","v":0.95454545454545459},{"$f":"BL209/Responses!$B$12","v":1},{"$f":"BM209/Responses!$B$12","v":1},{"$f":"BN209/Responses!$B$12","v":1},{"$f":"BO209/Responses!$B$12","v":1},{"$f":"BP209/Responses!$B$12","v":0.95454545454545459},{"$f":"BQ209/Responses!$B$12","v":0.95454545454545459},{"$f":"BR209/Responses!$B$12","v":0.95454545454545459},{"$f":"BS209/Responses!$B$12","v":0.95454545454545459},{"$f":"BT209/Responses!$B$12","v":0.95454545454545459},{"$f":"BU209/Responses!$B$12","v":0.95454545454545459},{"$f":"BV209/Responses!$B$12","v":0.95454545454545459},{"$f":"BW209/Responses!$B$12","v":1},{"$f":"BX209/Responses!$B$12","v":1},{"$f":"BY209/Responses!$B$12","v":0.95454545454545459},{"$f":"BZ209/Responses!$B$12","v":1},{"$f":"CA209/Responses!$B$12","v":1},{"$f":"CB209/Responses!$B$12","v":1},{"$f":"CC209/Responses!$B$12","v":1},{"$f":"CD209/Responses!$B$12","v":1},{"$f":"CE209/Responses!$B$12","v":1},{"$f":"CF209/Responses!$B$12","v":1},{"$f":"CG209/Responses!$B$12","v":1},{"$f":"CH209/Responses!$B$12","v":1},{"$f":"CI209/Responses!$B$12","v":0.95454545454545459},{"$f":"CJ209/Responses!$B$12","v":1},{"$f":"CK209/Responses!$B$12","v":1},{"$f":"CL209/Responses!$B$12","v":1},{"$f":"CM209/Responses!$B$12","v":1},{"$f":"CN209/Responses!$B$12","v":1},{"$f":"CO209/Responses!$B$12","v":1},{"$f":"CP209/Responses!$B$12","v":1},{"$f":"CQ209/Responses!$B$12","v":0.90909090909090906},{"$f":"CR209/Responses!$B$12","v":0.95454545454545459},{"$f":"CS209/Responses!$B$12","v":0.95454545454545459},{"$f":"CT209/Responses!$B$12","v":0.95454545454545459},{"$f":"CU209/Responses!$B$12","v":0.95454545454545459},{"$f":"CV209/Responses!$B$12","v":0.95454545454545459},{"$f":"CW209/Responses!$B$12","v":0.90909090909090906},{"$f":"CX209/Responses!$B$12","v":0.90909090909090906},{"$f":"CY209/Responses!$B$12","v":0.90909090909090906},{"$f":"CZ209/Responses!$B$12","v":0.90909090909090906},{"$f":"DA209/Responses!$B$12","v":0.90909090909090906},{"$f":"DB209/Responses!$B$12","v":0.90909090909090906},{"$f":"DC209/Responses!$B$12","v":0.90909090909090906},{"$f":"DD209/Responses!$B$12","v":0.90909090909090906},{"$f":"DE209/Responses!$B$12","v":0.90909090909090906},{"$f":"DF209/Responses!$B$12","v":0.90909090909090906},{"$f":"DG209/Responses!$B$12","v":0.90909090909090906},{"$f":"DH209/Responses!$B$12","v":0.90909090909090906},{"$f":"DI209/Responses!$B$12","v":0.90909090909090906},{"$f":"DJ209/Responses!$B$12","v":0.90909090909090906},{"$f":"DK209/Responses!$B$12","v":0.90909090909090906},{"$f":"DL209/Responses!$B$12","v":0.90909090909090906},null,null,{"$f":"DO209/Responses!$B$12","v":1},{"$f":"DP209/Responses!$B$12","v":1},{"$f":"DQ209/Responses!$B$12","v":0.95454545454545459},{"$f":"DR209/Responses!$B$12","v":1},{"$f":"DS209/Responses!$B$12","v":1},{"$f":"DT209/Responses!$B$12","v":0.95454545454545459},{"$f":"DU209/Responses!$B$12","v":1},{"$f":"DV209/Responses!$B$12","v":1},{"$f":"DW209/Responses!$B$12","v":1},{"$f":"DX209/Responses!$B$12","v":1},{"$f":"DY209/Responses!$B$12","v":1},{"$f":"DZ209/Responses!$B$12","v":1},{"$f":"EA209/Responses!$B$12","v":1},{"$f":"EB209/Responses!$B$12","v":1},{"$f":"EC209/Responses!$B$12","v":1},{"$f":"ED209/Responses!$B$12","v":1},{"$f":"EE209/Responses!$B$12","v":1},{"$f":"EF209/Responses!$B$12","v":1},{"$f":"EG209/Responses!$B$12","v":1},{"$f":"EH209/Responses!$B$12","v":1},{"$f":"EI209/Responses!$B$12","v":1},{"$f":"EJ209/Responses!$B$12","v":1},{"$f":"EK209/Responses!$B$12","v":1},{"$f":"EL209/Responses!$B$12","v":1},{"$f":"EM209/Responses!$B$12","v":1},{"$f":"EN209/Responses!$B$12","v":0.95454545454545459},{"$f":"EO209/Responses!$B$12","v":1},{"$f":"EP209/Responses!$B$12","v":1},{"$f":"EQ209/Responses!$B$12","v":1},{"$f":"ER209/Responses!$B$12","v":1},{"$f":"ES209/Responses!$B$12","v":0.95454545454545459},{"$f":"ET209/Responses!$B$12","v":1},{"$f":"EU209/Responses!$B$12","v":1},{"$f":"EV209/Responses!$B$12","v":1},{"$f":"EW209/Responses!$B$12","v":1},{"$f":"EX209/Responses!$B$12","v":1},{"$f":"EY209/Responses!$B$12","v":1},{"$f":"EZ209/Responses!$B$12","v":1},{"$f":"FA209/Responses!$B$12","v":1},{"$f":"FB209/Responses!$B$12","v":1},{"$f":"FC209/Responses!$B$12","v":1},{"$f":"FD209/Responses!$B$12","v":1},{"$f":"FE209/Responses!$B$12","v":1},{"$f":"FF209/Responses!$B$12","v":0.95454545454545459},{"$f":"FG209/Responses!$B$12","v":0.90909090909090906},{"$f":"FH209/Responses!$B$12","v":0.95454545454545459},{"$f":"FI209/Responses!$B$12","v":0.90909090909090906},{"$f":"FJ209/Responses!$B$12","v":1},{"$f":"FK209/Responses!$B$12","v":1},{"$f":"FL209/Responses!$B$12","v":1},{"$f":"FM209/Responses!$B$12","v":0.95454545454545459},{"$f":"FN209/Responses!$B$12","v":1},{"$f":"FO209/Responses!$B$12","v":1},{"$f":"FP209/Responses!$B$12","v":1},{"$f":"FQ209/Responses!$B$12","v":1},{"$f":"FR209/Responses!$B$12","v":1},{"$f":"FS209/Responses!$B$12","v":1},{"$f":"FT209/Responses!$B$12","v":1},{"$f":"FU209/Responses!$B$12","v":1},{"$f":"FV209/Responses!$B$12","v":1}]
["% responded: ASP",{"$f":"B210/Responses!$B$13","v":1},{"$f":"C210/Responses!$B$13","v":1},{"$f":"D210/Responses!$B$13","v":1},{"$f":"E210/Responses!$B$13","v":0.9285714285714286},{"$f":"F210/Responses!$B$13","v":0.9642857142857143},{"$f":"G210/Responses!$B$13","v":1},{"$f":"H210/Responses!$B$13","v":1},{"$f":"I210/Responses!$B$13","v":1},{"$f":"J210/Responses!$B$13","v":0.9642857142857143},{"$f":"K210/Responses!$B$13","v":1},{"$f":"L210/Responses!$B$13","v":1},{"$f":"M210/Responses!$B$13","v":1},{"$f":"N210/Responses!$B$13","v":1},{"$f":"O210/Responses!$B$13","v":1},{"$f":"P210/Responses!$B$13","v":1},{"$f":"Q210/Responses!$B$13","v":0.9642857142857143},{"$f":"R210/Responses!$B$13","v":1},{"$f":"S210/Responses!$B$13","v":1},{"$f":"T210/Responses!$B$13","v":1},{"$f":"U210/Responses!$B$13","v":0.9642857142857143},{"$f":"V210/Responses!$B$13","v":0.9642857142857143},{"$f":"W210/Responses!$B$13","v":1},{"$f":"X210/Responses!$B$13","v":0.9285714285714286},{"$f":"Y210/Responses!$B$13","v":1},{"$f":"Z210/Responses!$B$13","v":1},{"$f":"AA210/Responses!$B$13","v":0.9642857142857143},{"$f":"AB210/Responses!$B$13","v":1},{"$f":"AC210/Responses!$B$13","v":1},{"$f":"AD210/Responses!$B$13","v":1},{"$f":"AE210/Responses!$B$13","v":1},{"$f":"AF210/Responses!$B$13","v":1},{"$f":"AG210/Responses!$B$13","v":1},{"$f":"AH210/Responses!$B$13","v":1},{"$f":"AI210/Responses!$B$13","v":1},{"$f":"AJ210/Responses!$B$13","v":1},{"$f":"AK210/Responses!$B$13","v":1},{"$f":"AL210/Responses!$B$13","v":1},{"$f":"AM210/Responses!$B$13","v":1},{"$f":"AN210/Responses!$B$13","v":1},{"$f":"AO210/Responses!$B$13","v":1},{"$f":"AP210/Responses!$B$13","v":1},{"$f":"AQ210/Responses!$B$13","v":1},{"$f":"AR210/Responses!$B$13","v":1},{"$f":"AS210/Responses!$B$13","v":1},{"$f":"AT210/Responses!$B$13","v":1},{"$f":"AU210/Responses!$B$13","v":1},{"$f":"AV210/Responses!$B$13","v":1},{"$f":"AW210/Responses!$B$13","v":1},{"$f":"AX210/Responses!$B$13","v":1},{"$f":"AY210/Responses!$B$13","v":1},{"$f":"AZ210/Responses!$B$13","v":1},{"$f":"BA210/Responses!$B$13","v":1},{"$f":"BB210/Responses!$B$13","v":1},{"$f":"BC210/Responses!$B$13","v":1},{"$f":"BD210/Responses!$B$13","v":1},{"$f":"BE210/Responses!$B$13","v":1},{"$f":"BF210/Responses!$B$13","v":1},{"$f":"BG210/Responses!$B$13","v":1},{"$f":"BH210/Responses!$B$13","v":1},{"$f":"BI210/Responses!$B$13","v":1},{"$f":"BJ210/Responses!$B$13","v":1},{"$f":"BK210/Responses!$B$13","v":1},{"$f":"BL210/Responses!$B$13","v":1},{"$f":"BM210/Responses!$B$13","v":1},{"$f":"BN210/Responses!$B$13","v":1},{"$f":"BO210/Responses!$B$13","v":1},{"$f":"BP210/Responses!$B$13","v":1},{"$f":"BQ210/Responses!$B$13","v":1},{"$f":"BR210/Responses!$B$13","v":1},{"$f":"BS210/Responses!$B$13","v":1},{"$f":"BT210/Responses!$B$13","v":1},{"$f":"BU210/Responses!$B$13","v":1},{"$f":"BV210/Responses!$B$13","v":1},{"$f":"BW210/Responses!$B$13","v":1},{"$f":"BX210/Responses!$B$13","v":1},{"$f":"BY210/Responses!$B$13","v":1},{"$f":"BZ210/Responses!$B$13","v":1},{"$f":"CA210/Responses!$B$13","v":1},{"$f":"CB210/Responses!$B$13","v":1},{"$f":"CC210/Responses!$B$13","v":1},{"$f":"CD210/Responses!$B$13","v":1},{"$f":"CE210/Responses!$B$13","v":1},{"$f":"CF210/Responses!$B$13","v":1},{"$f":"CG210/Responses!$B$13","v":1},{"$f":"CH210/Responses!$B$13","v":1},{"$f":"CI210/Responses!$B$13","v":1},{"$f":"CJ210/Responses!$B$13","v":1},{"$f":"CK210/Responses!$B$13","v":1},{"$f":"CL210/Responses!$B$13","v":1},{"$f":"CM210/Responses!$B$13","v":0.9642857142857143},{"$f":"CN210/Responses!$B$13","v":1},{"$f":"CO210/Responses!$B$13","v":1},{"$f":"CP210/Responses!$B$13","v":1},{"$f":"CQ210/Responses!$B$13","v":0.8928571428571429},{"$f":"CR210/Responses!$B$13","v":0.8928571428571429},{"$f":"CS210/Responses!$B$13","v":0.9285714285714286},{"$f":"CT210/Responses!$B$13","v":0.8928571428571429},{"$f":"CU210/Responses!$B$13","v":0.9285714285714286},{"$f":"CV210/Responses!$B$13","v":0.9285714285714286},{"$f":"CW210/Responses!$B$13","v":0.9642857142857143},{"$f":"CX210/Responses!$B$13","v":0.9642857142857143},{"$f":"CY210/Responses!$B$13","v":0.9642857142857143},{"$f":"CZ210/Responses!$B$13","v":0.9642857142857143},{"$f":"DA210/Responses!$B$13","v":0.9642857142857143},{"$f":"DB210/Responses!$B$13","v":0.9642857142857143},{"$f":"DC210/Responses!$B$13","v":0.9642857142857143},{"$f":"DD210/Responses!$B$13","v":0.9642857142857143},{"$f":"DE210/Responses!$B$13","v":0.9642857142857143},{"$f":"DF210/Responses!$B$13","v":0.9642857142857143},{"$f":"DG210/Responses!$B$13","v":0.9642857142857143},{"$f":"DH210/Responses!$B$13","v":0.9642857142857143},{"$f":"DI210/Responses!$B$13","v":0.9642857142857143},{"$f":"DJ210/Responses!$B$13","v":0.9642857142857143},{"$f":"DK210/Responses!$B$13","v":0.9642857142857143},{"$f":"DL210/Responses!$B$13","v":0.9642857142857143},null,null,{"$f":"DO210/Responses!$B$13","v":1},{"$f":"DP210/Responses!$B$13","v":1},{"$f":"DQ210/Responses!$B$13","v":1},{"$f":"DR210/Responses!$B$13","v":0.9642857142857143},{"$f":"DS210/Responses!$B$13","v":1},{"$f":"DT210/Responses!$B$13","v":1},{"$f":"DU210/Responses!$B$13","v":1},{"$f":"DV210/Responses!$B$13","v":1},{"$f":"DW210/Responses!$B$13","v":1},{"$f":"DX210/Responses!$B$13","v":1},{"$f":"DY210/Responses!$B$13","v":1},{"$f":"DZ210/Responses!$B$13","v":1},{"$f":"EA210/Responses!$B$13","v":1},{"$f":"EB210/Responses!$B$13","v":1},{"$f":"EC210/Responses!$B$13","v":1},{"$f":"ED210/Responses!$B$13","v":0.9642857142857143},{"$f":"EE210/Responses!$B$13","v":1},{"$f":"EF210/Responses!$B$13","v":1},{"$f":"EG210/Responses!$B$13","v":1},{"$f":"EH210/Responses!$B$13","v":1},{"$f":"EI210/Responses!$B$13","v":1},{"$f":"EJ210/Responses!$B$13","v":1},{"$f":"EK210/Responses!$B$13","v":1},{"$f":"EL210/Responses!$B$13","v":1},{"$f":"EM210/Responses!$B$13","v":1},{"$f":"EN210/Responses!$B$13","v":1},{"$f":"EO210/Responses!$B$13","v":1},{"$f":"EP210/Responses!$B$13","v":1},{"$f":"EQ210/Responses!$B$13","v":0.9642857142857143},{"$f":"ER210/Responses!$B$13","v":1},{"$f":"ES210/Responses!$B$13","v":1},{"$f":"ET210/Responses!$B$13","v":1},{"$f":"EU210/Responses!$B$13","v":1},{"$f":"EV210/Responses!$B$13","v":1},{"$f":"EW210/Responses!$B$13","v":1},{"$f":"EX210/Responses!$B$13","v":1},{"$f":"EY210/Responses!$B$13","v":1},{"$f":"EZ210/Responses!$B$13","v":1},{"$f":"FA210/Responses!$B$13","v":1},{"$f":"FB210/Responses!$B$13","v":1},{"$f":"FC210/Responses!$B$13","v":1},{"$f":"FD210/Responses!$B$13","v":1},{"$f":"FE210/Responses!$B$13","v":1},{"$f":"FF210/Responses!$B$13","v":1},{"$f":"FG210/Responses!$B$13","v":0.9642857142857143},{"$f":"FH210/Responses!$B$13","v":0.9642857142857143},{"$f":"FI210/Responses!$B$13","v":0.9642857142857143},{"$f":"FJ210/Responses!$B$13","v":1},{"$f":"FK210/Responses!$B$13","v":1},{"$f":"FL210/Responses!$B$13","v":0.9642857142857143},{"$f":"FM210/Responses!$B$13","v":0.9642857142857143},{"$f":"FN210/Responses!$B$13","v":0.9642857142857143},{"$f":"FO210/Responses!$B$13","v":0.9642857142857143},{"$f":"FP210/Responses!$B$13","v":0.9642857142857143},{"$f":"FQ210/Responses!$B$13","v":0.9642857142857143},{"$f":"FR210/Responses!$B$13","v":0.9285714285714286},{"$f":"FS210/Responses!$B$13","v":0.9642857142857143},{"$f":"FT210/Responses!$B$13","v":0.9642857142857143},{"$f":"FU210/Responses!$B$13","v":0.9642857142857143},{"$f":"FV210/Responses!$B$13","v":0.9642857142857143}]
["% responded: AFR",{"$f":"B211/Responses!$B$14","v":0.97499999999999998},{"$f":"C211/Responses!$B$14","v":0.92500000000000004},{"$f":"D211/Responses!$B$14","v":0.95},{"$f":"E211/Responses!$B$14","v":0.875},{"$f":"F211/Responses!$B$14","v":1},{"$f":"G211/Responses!$B$14","v":0.9},{"$f":"H211/Responses!$B$14","v":0.97499999999999998},{"$f":"I211/Responses!$B$14","v":0.9},{"$f":"J211/Responses!$B$14","v":1},{"$f":"K211/Responses!$B$14","v":1},{"$f":"L211/Responses!$B$14","v":1},{"$f":"M211/Responses!$B$14","v":1},{"$f":"N211/Responses!$B$14","v":1},{"$f":"O211/Responses!$B$14","v":0.92500000000000004},{"$f":"P211/Responses!$B$14","v":0.97499999999999998},{"$f":"Q211/Responses!$B$14","v":0.92500000000000004},{"$f":"R211/Responses!$B$14","v":0.92500000000000004},{"$f":"S211/Responses!$B$14","v":0.95},{"$f":"T211/Responses!$B$14","v":0.97499999999999998},{"$f":"U211/Responses!$B$14","v":0.97499999999999998},{"$f":"V211/Responses!$B$14","v":0.95},{"$f":"W211/Responses!$B$14","v":0.95},{"$f":"X211/Responses!$B$14","v":0.92500000000000004},{"$f":"Y211/Responses!$B$14","v":1},{"$f":"Z211/Responses!$B$14","v":0.92500000000000004},{"$f":"AA211/Responses!$B$14","v":0.97499999999999998},{"$f":"AB211/Responses!$B$14","v":1},{"$f":"AC211/Responses!$B$14","v":1},{"$f":"AD211/Responses!$B$14","v":1},{"$f":"AE211/Responses!$B$14","v":1},{"$f":"AF211/Responses!$B$14","v":0.97499999999999998},{"$f":"AG211/Responses!$B$14","v":0.97499999999999998},{"$f":"AH211/Responses!$B$14","v":0.97499999999999998},{"$f":"AI211/Responses!$B$14","v":0.97499999999999998},{"$f":"AJ211/Responses!$B$14","v":1},{"$f":"AK211/Responses!$B$14","v":1},{"$f":"AL211/Responses!$B$14","v":1},{"$f":"AM211/Responses!$B$14","v":1},{"$f":"AN211/Responses!$B$14","v":0.95},{"$f":"AO211/Responses!$B$14","v":0.95},{"$f":"AP211/Responses!$B$14","v":0.95},{"$f":"AQ211/Responses!$B$14","v":0.95},{"$f":"AR211/Responses!$B$14","v":0.95},{"$f":"AS211/Responses!$B$14","v":0.95},{"$f":"AT211/Responses!$B$14","v":0.95},{"$f":"AU211/Responses!$B$14","v":1},{"$f":"AV211/Responses!$B$14","v":0.95},{"$f":"AW211/Responses!$B$14","v":1},{"$f":"AX211/Responses!$B$14","v":1},{"$f":"AY211/Responses!$B$14","v":0.97499999999999998},{"$f":"AZ211/Responses!$B$14","v":0.97499999999999998},{"$f":"BA211/Responses!$B$14","v":0.82499999999999996},{"$f":"BB211/Responses!$B$14","v":0.95},{"$f":"BC211/Responses!$B$14","v":0.92500000000000004},{"$f":"BD211/Responses!$B$14","v":0.97499999999999998},{"$f":"BE211/Responses!$B$14","v":0.95},{"$f":"BF211/Responses!$B$14","v":0.97499999999999998},{"$f":"BG211/Responses!$B$14","v":1},{"$f":"BH211/Responses!$B$14","v":1},{"$f":"BI211/Responses!$B$14","v":0.97499999999999998},{"$f":"BJ211/Responses!$B$14","v":0.97499999999999998},{"$f":"BK211/Responses!$B$14","v":0.875},{"$f":"BL211/Responses!$B$14","v":0.9},{"$f":"BM211/Responses!$B$14","v":0.875},{"$f":"BN211/Responses!$B$14","v":0.95},{"$f":"BO211/Responses!$B$14","v":0.97499999999999998},{"$f":"BP211/Responses!$B$14","v":1},{"$f":"BQ211/Responses!$B$14","v":1},{"$f":"BR211/Responses!$B$14","v":0.97499999999999998},{"$f":"BS211/Responses!$B$14","v":1},{"$f":"BT211/Responses!$B$14","v":0.97499999999999998},{"$f":"BU211/Responses!$B$14","v":0.95},{"$f":"BV211/Responses!$B$14","v":0.97499999999999998},{"$f":"BW211/Responses!$B$14","v":0.95},{"$f":"BX211/Responses!$B$14","v":1},{"$f":"BY211/Responses!$B$14","v":0.95},{"$f":"BZ211/Responses!$B$14","v":0.97499999999999998},{"$f":"CA211/Responses!$B$14","v":0.97499999999999998},{"$f":"CB211/Responses!$B$14","v":0.97499999999999998},{"$f":"CC211/Responses!$B$14","v":0.95},{"$f":"CD211/Responses!$B$14","v":0.97499999999999998},{"$f":"CE211/Responses!$B$14","v":0.95},{"$f":"CF211/Responses!$B$14","v":0.97499999999999998},{"$f":"CG211/Responses!$B$14","v":1},{"$f":"CH211/Responses!$B$14","v":0.97499999999999998},{"$f":"CI211/Responses!$B$14","v":0.95},{"$f":"CJ211/Responses!$B$14","v":0.95},{"$f":"CK211/Responses!$B$14","v":0.95},{"$f":"CL211/Responses!$B$14","v":0.95},{"$f":"CM211/Responses!$B$14","v":0.97499999999999998},{"$f":"CN211/Responses!$B$14","v":0.95},{"$f":"CO211/Responses!$B$14","v":0.97499999999999998},{"$f":"CP211/Responses!$B$14","v":0.97499999999999998},{"$f":"CQ211/Responses!$B$14","v":1},{"$f":"CR211/Responses!$B$14","v":0.97499999999999998},{"$f":"CS211/Responses!$B$14","v":0.95},{"$f":"CT211/Responses!$B$14","v":0.97499999999999998},{"$f":"CU211/Responses!$B$14","v":0.95},{"$f":"CV211/Responses!$B$14","v":0.92500000000000004},{"$f":"CW211/Responses!$B$14","v":0.92500000000000004},{"$f":"CX211/Responses!$B$14","v":0.92500000000000004},{"$f":"CY211/Responses!$B$14","v":0.92500000000000004},{"$f":"CZ211/Responses!$B$14","v":0.92500000000000004},{"$f":"DA211/Responses!$B$14","v":0.92500000000000004},{"$f":"DB211/Responses!$B$14","v":0.92500000000000004},{"$f":"DC211/Responses!$B$14","v":0.92500000000000004},{"$f":"DD211/Responses!$B$14","v":0.92500000000000004},{"$f":"DE211/Responses!$B$14","v":0.92500000000000004},{"$f":"DF211/Responses!$B$14","v":0.92500000000000004},{"$f":"DG211/Responses!$B$14","v":0.92500000000000004},{"$f":"DH211/Responses!$B$14","v":0.92500000000000004},{"$f":"DI211/Responses!$B$14","v":0.92500000000000004},{"$f":"DJ211/Responses!$B$14","v":0.92500000000000004},{"$f":"DK211/Responses!$B$14","v":0.92500000000000004},{"$f":"DL211/Responses!$B$14","v":0.92500000000000004},null,null,{"$f":"DO211/Responses!$B$14","v":0.92500000000000004},{"$f":"DP211/Responses!$B$14","v":0.95},{"$f":"DQ211/Responses!$B$14","v":0.95},{"$f":"DR211/Responses!$B$14","v":0.92500000000000004},{"$f":"DS211/Responses!$B$14","v":0.9},{"$f":"DT211/Responses!$B$14","v":0.92500000000000004},{"$f":"DU211/Responses!$B$14","v":0.92500000000000004},{"$f":"DV211/Responses!$B$14","v":0.95},{"$f":"DW211/Responses!$B$14","v":0.95},{"$f":"DX211/Responses!$B$14","v":0.95},{"$f":"DY211/Responses!$B$14","v":0.95},{"$f":"DZ211/Responses!$B$14","v":0.95},{"$f":"EA211/Responses!$B$14","v":0.95},{"$f":"EB211/Responses!$B$14","v":0.97499999999999998},{"$f":"EC211/Responses!$B$14","v":0.97499999999999998},{"$f":"ED211/Responses!$B$14","v":0.97499999999999998},{"$f":"EE211/Responses!$B$14","v":0.97499999999999998},{"$f":"EF211/Responses!$B$14","v":0.97499999999999998},{"$f":"EG211/Responses!$B$14","v":0.97499999999999998},{"$f":"EH211/Responses!$B$14","v":0.95},{"$f":"EI211/Responses!$B$14","v":0.97499999999999998},{"$f":"EJ211/Responses!$B$14","v":0.97499999999999998},{"$f":"EK211/Responses!$B$14","v":0.97499999999999998},{"$f":"EL211/Responses!$B$14","v":0.97499999999999998},{"$f":"EM211/Responses!$B$14","v":0.97499999999999998},{"$f":"EN211/Responses!$B$14","v":0.97499999999999998},{"$f":"EO211/Responses!$B$14","v":0.92500000000000004},{"$f":"EP211/Responses!$B$14","v":0.9},{"$f":"EQ211/Responses!$B$14","v":0.97499999999999998},{"$f":"ER211/Responses!$B$14","v":0.95},{"$f":"ES211/Responses!$B$14","v":0.97499999999999998},{"$f":"ET211/Responses!$B$14","v":0.95},{"$f":"EU211/Responses!$B$14","v":0.95},{"$f":"EV211/Responses!$B$14","v":0.95},{"$f":"EW211/Responses!$B$14","v":0.97499999999999998},{"$f":"EX211/Responses!$B$14","v":0.97499999999999998},{"$f":"EY211/Responses!$B$14","v":0.97499999999999998},{"$f":"EZ211/Responses!$B$14","v":0.97499999999999998},{"$f":"FA211/Responses!$B$14","v":0.97499999999999998},{"$f":"FB211/Responses!$B$14","v":0.97499999999999998},{"$f":"FC211/Responses!$B$14","v":0.97499999999999998},{"$f":"FD211/Responses!$B$14","v":0.97499999999999998},{"$f":"FE211/Responses!$B$14","v":0.97499999999999998},{"$f":"FF211/Responses!$B$14","v":0.97499999999999998},{"$f":"FG211/Responses!$B$14","v":0.92500000000000004},{"$f":"FH211/Responses!$B$14","v":0.9},{"$f":"FI211/Responses!$B$14","v":0.95},{"$f":"FJ211/Responses!$B$14","v":0.97499999999999998},{"$f":"FK211/Responses!$B$14","v":0.95},{"$f":"FL211/Responses!$B$14","v":0.97499999999999998},{"$f":"FM211/Responses!$B$14","v":0.95},{"$f":"FN211/Responses!$B$14","v":0.97499999999999998},{"$f":"FO211/Responses!$B$14","v":0.92500000000000004},{"$f":"FP211/Responses!$B$14","v":0.97499999999999998},{"$f":"FQ211/Responses!$B$14","v":0.97499999999999998},{"$f":"FR211/Responses!$B$14","v":0.97499999999999998},{"$f":"FS211/Responses!$B$14","v":0.97499999999999998},{"$f":"FT211/Responses!$B$14","v":0.97499999999999998},{"$f":"FU211/Responses!$B$14","v":0.97499999999999998},{"$f":"FV211/Responses!$B$14","v":0.97499999999999998}]
["% responded: EES",{"$f":"B212/Responses!$B$15","v":1},{"$f":"C212/Responses!$B$15","v":0.94736842105263153},{"$f":"D212/Responses!$B$15","v":1},{"$f":"E212/Responses!$B$15","v":0.89473684210526316},{"$f":"F212/Responses!$B$15","v":1},{"$f":"G212/Responses!$B$15","v":0.89473684210526316},{"$f":"H212/Responses!$B$15","v":0.94736842105263153},{"$f":"I212/Responses!$B$15","v":0.94736842105263153},{"$f":"J212/Responses!$B$15","v":0.84210526315789469},{"$f":"K212/Responses!$B$15","v":0.94736842105263153},{"$f":"L212/Responses!$B$15","v":0.94736842105263153},{"$f":"M212/Responses!$B$15","v":0.94736842105263153},{"$f":"N212/Responses!$B$15","v":0.94736842105263153},{"$f":"O212/Responses!$B$15","v":0.94736842105263153},{"$f":"P212/Responses!$B$15","v":0.84210526315789469},{"$f":"Q212/Responses!$B$15","v":0.84210526315789469},{"$f":"R212/Responses!$B$15","v":0.89473684210526316},{"$f":"S212/Responses!$B$15","v":0.89473684210526316},{"$f":"T212/Responses!$B$15","v":0.94736842105263153},{"$f":"U212/Responses!$B$15","v":1},{"$f":"V212/Responses!$B$15","v":1},{"$f":"W212/Responses!$B$15","v":0.94736842105263153},{"$f":"X212/Responses!$B$15","v":1},{"$f":"Y212/Responses!$B$15","v":1},{"$f":"Z212/Responses!$B$15","v":1},{"$f":"AA212/Responses!$B$15","v":0.89473684210526316},{"$f":"AB212/Responses!$B$15","v":1},{"$f":"AC212/Responses!$B$15","v":1},{"$f":"AD212/Responses!$B$15","v":1},{"$f":"AE212/Responses!$B$15","v":1},{"$f":"AF212/Responses!$B$15","v":1},{"$f":"AG212/Responses!$B$15","v":1},{"$f":"AH212/Responses!$B$15","v":0.89473684210526316},{"$f":"AI212/Responses!$B$15","v":1},{"$f":"AJ212/Responses!$B$15","v":0.94736842105263153},{"$f":"AK212/Responses!$B$15","v":1},{"$f":"AL212/Responses!$B$15","v":0.94736842105263153},{"$f":"AM212/Responses!$B$15","v":1},{"$f":"AN212/Responses!$B$15","v":1},{"$f":"AO212/Responses!$B$15","v":1},{"$f":"AP212/Responses!$B$15","v":1},{"$f":"AQ212/Responses!$B$15","v":1},{"$f":"AR212/Responses!$B$15","v":1},{"$f":"AS212/Responses!$B$15","v":0.94736842105263153},{"$f":"AT212/Responses!$B$15","v":0.94736842105263153},{"$f":"AU212/Responses!$B$15","v":1},{"$f":"AV212/Responses!$B$15","v":0.89473684210526316},{"$f":"AW212/Responses!$B$15","v":0.89473684210526316},{"$f":"AX212/Responses!$B$15","v":0.89473684210526316},{"$f":"AY212/Responses!$B$15","v":0.89473684210526316},{"$f":"AZ212/Responses!$B$15","v":0.94736842105263153},{"$f":"BA212/Responses!$B$15","v":0.94736842105263153},{"$f":"BB212/Responses!$B$15","v":1},{"$f":"BC212/Responses!$B$15","v":1},{"$f":"BD212/Responses!$B$15","v":0.89473684210526316},{"$f":"BE212/Responses!$B$15","v":0.94736842105263153},{"$f":"BF212/Responses!$B$15","v":0.94736842105263153},{"$f":"BG212/Responses!$B$15","v":1},{"$f":"BH212/Responses!$B$15","v":1},{"$f":"BI212/Responses!$B$15","v":0.94736842105263153},{"$f":"BJ212/Responses!$B$15","v":1},{"$f":"BK212/Responses!$B$15","v":1},{"$f":"BL212/Responses!$B$15","v":1},{"$f":"BM212/Responses!$B$15","v":0.94736842105263153},{"$f":"BN212/Responses!$B$15","v":1},{"$f":"BO212/Responses!$B$15","v":0.94736842105263153},{"$f":"BP212/Responses!$B$15","v":0.94736842105263153},{"$f":"BQ212/Responses!$B$15","v":0.94736842105263153},{"$f":"BR212/Responses!$B$15","v":0.89473684210526316},{"$f":"BS212/Responses!$B$15","v":0.89473684210526316},{"$f":"BT212/Responses!$B$15","v":0.94736842105263153},{"$f":"BU212/Responses!$B$15","v":0.94736842105263153},{"$f":"BV212/Responses!$B$15","v":0.94736842105263153},{"$f":"BW212/Responses!$B$15","v":1},{"$f":"BX212/Responses!$B$15","v":0.89473684210526316},{"$f":"BY212/Responses!$B$15","v":0.89473684210526316},{"$f":"BZ212/Responses!$B$15","v":0.94736842105263153},{"$f":"CA212/Responses!$B$15","v":1},{"$f":"CB212/Responses!$B$15","v":0.89473684210526316},{"$f":"CC212/Responses!$B$15","v":0.89473684210526316},{"$f":"CD212/Responses!$B$15","v":0.78947368421052633},{"$f":"CE212/Responses!$B$15","v":0.84210526315789469},{"$f":"CF212/Responses!$B$15","v":0.89473684210526316},{"$f":"CG212/Responses!$B$15","v":1},{"$f":"CH212/Responses!$B$15","v":0.89473684210526316},{"$f":"CI212/Responses!$B$15","v":0.89473684210526316},{"$f":"CJ212/Responses!$B$15","v":0.89473684210526316},{"$f":"CK212/Responses!$B$15","v":1},{"$f":"CL212/Responses!$B$15","v":0.94736842105263153},{"$f":"CM212/Responses!$B$15","v":0.94736842105263153},{"$f":"CN212/Responses!$B$15","v":0.84210526315789469},{"$f":"CO212/Responses!$B$15","v":0.84210526315789469},{"$f":"CP212/Responses!$B$15","v":0.89473684210526316},{"$f":"CQ212/Responses!$B$15","v":0.94736842105263153},{"$f":"CR212/Responses!$B$15","v":0.89473684210526316},{"$f":"CS212/Responses!$B$15","v":0.94736842105263153},{"$f":"CT212/Responses!$B$15","v":0.94736842105263153},{"$f":"CU212/Responses!$B$15","v":1},{"$f":"CV212/Responses!$B$15","v":0.89473684210526316},{"$f":"CW212/Responses!$B$15","v":0.89473684210526316},{"$f":"CX212/Responses!$B$15","v":0.89473684210526316},{"$f":"CY212/Responses!$B$15","v":0.89473684210526316},{"$f":"CZ212/Responses!$B$15","v":0.89473684210526316},{"$f":"DA212/Responses!$B$15","v":0.89473684210526316},{"$f":"DB212/Responses!$B$15","v":0.89473684210526316},{"$f":"DC212/Responses!$B$15","v":0.89473684210526316},{"$f":"DD212/Responses!$B$15","v":0.89473684210526316},{"$f":"DE212/Responses!$B$15","v":0.89473684210526316},{"$f":"DF212/Responses!$B$15","v":0.89473684210526316},{"$f":"DG212/Responses!$B$15","v":0.89473684210526316},{"$f":"DH212/Responses!$B$15","v":0.89473684210526316},{"$f":"DI212/Responses!$B$15","v":0.89473684210526316},{"$f":"DJ212/Responses!$B$15","v":0.89473684210526316},{"$f":"DK212/Responses!$B$15","v":0.89473684210526316},{"$f":"DL212/Responses!$B$15","v":0.89473684210526316},null,null,{"$f":"DO212/Responses!$B$15","v":1},{"$f":"DP212/Responses!$B$15","v":1},{"$f":"DQ212/Responses!$B$15","v":1},{"$f":"DR212/Responses!$B$15","v":1},{"$f":"DS212/Responses!$B$15","v":1},{"$f":"DT212/Responses!$B$15","v":1},{"$f":"DU212/Responses!$B$15","v":1},{"$f":"DV212/Responses!$B$15","v":1},{"$f":"DW212/Responses!$B$15","v":1},{"$f":"DX212/Responses!$B$15","v":0.94736842105263153},{"$f":"DY212/Responses!$B$15","v":0.94736842105263153},{"$f":"DZ212/Responses!$B$15","v":0.89473684210526316},{"$f":"EA212/Responses!$B$15","v":0.94736842105263153},{"$f":"EB212/Responses!$B$15","v":0.94736842105263153},{"$f":"EC212/Responses!$B$15","v":0.94736842105263153},{"$f":"ED212/Responses!$B$15","v":0.94736842105263153},{"$f":"EE212/Responses!$B$15","v":0.94736842105263153},{"$f":"EF212/Responses!$B$15","v":0.94736842105263153},{"$f":"EG212/Responses!$B$15","v":1},{"$f":"EH212/Responses!$B$15","v":1},{"$f":"EI212/Responses!$B$15","v":1},{"$f":"EJ212/Responses!$B$15","v":0.94736842105263153},{"$f":"EK212/Responses!$B$15","v":1},{"$f":"EL212/Responses!$B$15","v":0.94736842105263153},{"$f":"EM212/Responses!$B$15","v":1},{"$f":"EN212/Responses!$B$15","v":0.94736842105263153},{"$f":"EO212/Responses!$B$15","v":1},{"$f":"EP212/Responses!$B$15","v":0.89473684210526316},{"$f":"EQ212/Responses!$B$15","v":0.94736842105263153},{"$f":"ER212/Responses!$B$15","v":1},{"$f":"ES212/Responses!$B$15","v":1},{"$f":"ET212/Responses!$B$15","v":1},{"$f":"EU212/Responses!$B$15","v":0.89473684210526316},{"$f":"EV212/Responses!$B$15","v":0.94736842105263153},{"$f":"EW212/Responses!$B$15","v":0.94736842105263153},{"$f":"EX212/Responses!$B$15","v":1},{"$f":"EY212/Responses!$B$15","v":1},{"$f":"EZ212/Responses!$B$15","v":1},{"$f":"FA212/Responses!$B$15","v":1},{"$f":"FB212/Responses!$B$15","v":1},{"$f":"FC212/Responses!$B$15","v":0.94736842105263153},{"$f":"FD212/Responses!$B$15","v":1},{"$f":"FE212/Responses!$B$15","v":0.94736842105263153},{"$f":"FF212/Responses!$B$15","v":0.89473684210526316},{"$f":"FG212/Responses!$B$15","v":1},{"$f":"FH212/Responses!$B$15","v":0.89473684210526316},{"$f":"FI212/Responses!$B$15","v":0.94736842105263153},{"$f":"FJ212/Responses!$B$15","v":0.94736842105263153},{"$f":"FK212/Responses!$B$15","v":0.94736842105263153},{"$f":"FL212/Responses!$B$15","v":0.94736842105263153},{"$f":"FM212/Responses!$B$15","v":0.89473684210526316},{"$f":"FN212/Responses!$B$15","v":0.94736842105263153},{"$f":"FO212/Responses!$B$15","v":0.94736842105263153},{"$f":"FP212/Responses!$B$15","v":0.94736842105263153},{"$f":"FQ212/Responses!$B$15","v":0.94736842105263153},{"$f":"FR212/Responses!$B$15","v":1},{"$f":"FS212/Responses!$B$15","v":1},{"$f":"FT212/Responses!$B$15","v":1},{"$f":"FU212/Responses!$B$15","v":0.94736842105263153},{"$f":"FV212/Responses!$B$15","v":1}]
["% responded: WEO",{"$f":"B213/Responses!$B$16","v":0.95833333333333337},{"$f":"C213/Responses!$B$16","v":1},{"$f":"D213/Responses!$B$16","v":1},{"$f":"E213/Responses!$B$16","v":0.95833333333333337},{"$f":"F213/Responses!$B$16","v":0.91666666666666663},{"$f":"G213/Responses!$B$16","v":0.91666666666666663},{"$f":"H213/Responses!$B$16","v":0.95833333333333337},{"$f":"I213/Responses!$B$16","v":0.875},{"$f":"J213/Responses!$B$16","v":0.91666666666666663},{"$f":"K213/Responses!$B$16","v":0.95833333333333337},{"$f":"L213/Responses!$B$16","v":0.95833333333333337},{"$f":"M213/Responses!$B$16","v":0.91666666666666663},{"$f":"N213/Responses!$B$16","v":0.95833333333333337},{"$f":"O213/Responses!$B$16","v":0.95833333333333337},{"$f":"P213/Responses!$B$16","v":0.875},{"$f":"Q213/Responses!$B$16","v":0.95833333333333337},{"$f":"R213/Responses!$B$16","v":0.91666666666666663},{"$f":"S213/Responses!$B$16","v":0.95833333333333337},{"$f":"T213/Responses!$B$16","v":1},{"$f":"U213/Responses!$B$16","v":1},{"$f":"V213/Responses!$B$16","v":1},{"$f":"W213/Responses!$B$16","v":1},{"$f":"X213/Responses!$B$16","v":1},{"$f":"Y213/Responses!$B$16","v":1},{"$f":"Z213/Responses!$B$16","v":1},{"$f":"AA213/Responses!$B$16","v":0.91666666666666663},{"$f":"AB213/Responses!$B$16","v":1},{"$f":"AC213/Responses!$B$16","v":1},{"$f":"AD213/Responses!$B$16","v":1},{"$f":"AE213/Responses!$B$16","v":1},{"$f":"AF213/Responses!$B$16","v":1},{"$f":"AG213/Responses!$B$16","v":1},{"$f":"AH213/Responses!$B$16","v":0.91666666666666663},{"$f":"AI213/Responses!$B$16","v":1},{"$f":"AJ213/Responses!$B$16","v":1},{"$f":"AK213/Responses!$B$16","v":1},{"$f":"AL213/Responses!$B$16","v":0.95833333333333337},{"$f":"AM213/Responses!$B$16","v":0.95833333333333337},{"$f":"AN213/Responses!$B$16","v":0.95833333333333337},{"$f":"AO213/Responses!$B$16","v":0.95833333333333337},{"$f":"AP213/Responses!$B$16","v":1},{"$f":"AQ213/Responses!$B$16","v":1},{"$f":"AR213/Responses!$B$16","v":0.91666666666666663},{"$f":"AS213/Responses!$B$16","v":0.95833333333333337},{"$f":"AT213/Responses!$B$16","v":1},{"$f":"AU213/Responses!$B$16","v":1},{"$f":"AV213/Responses!$B$16","v":1},{"$f":"AW213/Responses!$B$16","v":0.95833333333333337},{"$f":"AX213/Responses!$B$16","v":0.91666666666666663},{"$f":"AY213/Responses!$B$16","v":1},{"$f":"AZ213/Responses!$B$16","v":0.95833333333333337},{"$f":"BA213/Responses!$B$16","v":0.95833333333333337},{"$f":"BB213/Responses!$B$16","v":0.95833333333333337},{"$f":"BC213/Responses!$B$16","v":1},{"$f":"BD213/Responses!$B$16","v":1},{"$f":"BE213/Responses!$B$16","v":0.95833333333333337},{"$f":"BF213/Responses!$B$16","v":1},{"$f":"BG213/Responses!$B$16","v":1},{"$f":"BH213/Responses!$B$16","v":1},{"$f":"BI213/Responses!$B$16","v":1},{"$f":"BJ213/Responses!$B$16","v":1},{"$f":"BK213/Responses!$B$16","v":1},{"$f":"BL213/Responses!$B$16","v":1},{"$f":"BM213/Responses!$B$16","v":0.95833333333333337},{"$f":"BN213/Responses!$B$16","v":1},{"$f":"BO213/Responses!$B$16","v":1},{"$f":"BP213/Responses!$B$16","v":1},{"$f":"BQ213/Responses!$B$16","v":0.95833333333333337},{"$f":"BR213/Responses!$B$16","v":1},{"$f":"BS213/Responses!$B$16","v":1},{"$f":"BT213/Responses!$B$16","v":0.95833333333333337},{"$f":"BU213/Responses!$B$16","v":0.875},{"$f":"BV213/Responses!$B$16","v":0.95833333333333337},{"$f":"BW213/Responses!$B$16","v":0.95833333333333337},{"$f":"BX213/Responses!$B$16","v":1},{"$f":"BY213/Responses!$B$16","v":0.91666666666666663},{"$f":"BZ213/Responses!$B$16","v":0.95833333333333337},{"$f":"CA213/Responses!$B$16","v":1},{"$f":"CB213/Responses!$B$16","v":0.95833333333333337},{"$f":"CC213/Responses!$B$16","v":0.95833333333333337},{"$f":"CD213/Responses!$B$16","v":1},{"$f":"CE213/Responses!$B$16","v":0.95833333333333337},{"$f":"CF213/Responses!$B$16","v":0.95833333333333337},{"$f":"CG213/Responses!$B$16","v":1},{"$f":"CH213/Responses!$B$16","v":0.95833333333333337},{"$f":"CI213/Responses!$B$16","v":0.91666666666666663},{"$f":"CJ213/Responses!$B$16","v":1},{"$f":"CK213/Responses!$B$16","v":1},{"$f":"CL213/Responses!$B$16","v":0.95833333333333337},{"$f":"CM213/Responses!$B$16","v":1},{"$f":"CN213/Responses!$B$16","v":1},{"$f":"CO213/Responses!$B$16","v":0.95833333333333337},{"$f":"CP213/Responses!$B$16","v":0.95833333333333337},{"$f":"CQ213/Responses!$B$16","v":0.95833333333333337},{"$f":"CR213/Responses!$B$16","v":0.91666666666666663},{"$f":"CS213/Responses!$B$16","v":0.91666666666666663},{"$f":"CT213/Responses!$B$16","v":0.95833333333333337},{"$f":"CU213/Responses!$B$16","v":1},{"$f":"CV213/Responses!$B$16","v":0.91666666666666663},{"$f":"CW213/Responses!$B$16","v":0.875},{"$f":"CX213/Responses!$B$16","v":0.83333333333333337},{"$f":"CY213/Responses!$B$16","v":0.875},{"$f":"CZ213/Responses!$B$16","v":0.79166666666666663},{"$f":"DA213/Responses!$B$16","v":0.875},{"$f":"DB213/Responses!$B$16","v":0.83333333333333337},{"$f":"DC213/Responses!$B$16","v":0.875},{"$f":"DD213/Responses!$B$16","v":0.79166666666666663},{"$f":"DE213/Responses!$B$16","v":0.875},{"$f":"DF213/Responses!$B$16","v":0.83333333333333337},{"$f":"DG213/Responses!$B$16","v":0.875},{"$f":"DH213/Responses!$B$16","v":0.79166666666666663},{"$f":"DI213/Responses!$B$16","v":0.875},{"$f":"DJ213/Responses!$B$16","v":0.83333333333333337},{"$f":"DK213/Responses!$B$16","v":0.875},{"$f":"DL213/Responses!$B$16","v":0.79166666666666663},null,null,{"$f":"DO213/Responses!$B$16","v":1},{"$f":"DP213/Responses!$B$16","v":1},{"$f":"DQ213/Responses!$B$16","v":1},{"$f":"DR213/Responses!$B$16","v":0.95833333333333337},{"$f":"DS213/Responses!$B$16","v":1},{"$f":"DT213/Responses!$B$16","v":0.95833333333333337},{"$f":"DU213/Responses!$B$16","v":0.95833333333333337},{"$f":"DV213/Responses!$B$16","v":0.95833333333333337},{"$f":"DW213/Responses!$B$16","v":0.95833333333333337},{"$f":"DX213/Responses!$B$16","v":0.95833333333333337},{"$f":"DY213/Responses!$B$16","v":0.95833333333333337},{"$f":"DZ213/Responses!$B$16","v":0.95833333333333337},{"$f":"EA213/Responses!$B$16","v":1},{"$f":"EB213/Responses!$B$16","v":1},{"$f":"EC213/Responses!$B$16","v":0.95833333333333337},{"$f":"ED213/Responses!$B$16","v":0.95833333333333337},{"$f":"EE213/Responses!$B$16","v":0.95833333333333337},{"$f":"EF213/Responses!$B$16","v":0.91666666666666663},{"$f":"EG213/Responses!$B$16","v":1},{"$f":"EH213/Responses!$B$16","v":0.95833333333333337},{"$f":"EI213/Responses!$B$16","v":1},{"$f":"EJ213/Responses!$B$16","v":1},{"$f":"EK213/Responses!$B$16","v":1},{"$f":"EL213/Responses!$B$16","v":1},{"$f":"EM213/Responses!$B$16","v":1},{"$f":"EN213/Responses!$B$16","v":1},{"$f":"EO213/Responses!$B$16","v":0.95833333333333337},{"$f":"EP213/Responses!$B$16","v":0.95833333333333337},{"$f":"EQ213/Responses!$B$16","v":0.91666666666666663},{"$f":"ER213/Responses!$B$16","v":0.95833333333333337},{"$f":"ES213/Responses!$B$16","v":0.95833333333333337},{"$f":"ET213/Responses!$B$16","v":1},{"$f":"EU213/Responses!$B$16","v":1},{"$f":"EV213/Responses!$B$16","v":0.95833333333333337},{"$f":"EW213/Responses!$B$16","v":0.95833333333333337},{"$f":"EX213/Responses!$B$16","v":0.95833333333333337},{"$f":"EY213/Responses!$B$16","v":0.95833333333333337},{"$f":"EZ213/Responses!$B$16","v":1},{"$f":"FA213/Responses!$B$16","v":1},{"$f":"FB213/Responses!$B$16","v":1},{"$f":"FC213/Responses!$B$16","v":1},{"$f":"FD213/Responses!$B$16","v":1},{"$f":"FE213/Responses!$B$16","v":1},{"$f":"FF213/Responses!$B$16","v":1},{"$f":"FG213/Responses!$B$16","v":0.91666666666666663},{"$f":"FH213/Responses!$B$16","v":0.91666666666666663},{"$f":"FI213/Responses!$B$16","v":0.91666666666666663},{"$f":"FJ213/Responses!$B$16","v":0.95833333333333337},{"$f":"FK213/Responses!$B$16","v":0.95833333333333337},{"$f":"FL213/Responses!$B$16","v":1},{"$f":"FM213/Responses!$B$16","v":1},{"$f":"FN213/Responses!$B$16","v":1},{"$f":"FO213/Responses!$B$16","v":1},{"$f":"FP213/Responses!$B$16","v":0.91666666666666663},{"$f":"FQ213/Responses!$B$16","v":0.91666666666666663},{"$f":"FR213/Responses!$B$16","v":1},{"$f":"FS213/Responses!$B$16","v":1},{"$f":"FT213/Responses!$B$16","v":1},{"$f":"FU213/Responses!$B$16","v":1},{"$f":"FV213/Responses!$B$16","v":1}]
[]
[]
["Low HD: % of responses as 1",{"$f":"(COUNTIFS(B$3:B$194,1,ID_HDIG,1))/B$197","v":3.2258064516129031E-2},{"$f":"(COUNTIFS(C$3:C$194,1,ID_HDIG,1))/C$197","v":0.62068965517241381},{"$f":"(COUNTIFS(D$3:D$194,1,ID_HDIG,1))/D$197","v":3.3333333333333333E-2},{"$f":"(COUNTIFS(E$3:E$194,1,ID_HDIG,1))/E$197","v":0.6428571428571429},{"$f":"(COUNTIFS(F$3:F$194,1,ID_HDIG,1))/F$197","v":0},0.5714285714285714,0.16129032258064516,0.20689655172413793,6.25E-2,6.25E-2,9.375E-2,9.375E-2,0,6.4516129032258063E-2,0.16129032258064516,0.34482758620689657,0.13333333333333333,0.16666666666666666,0.12903225806451613,9.6774193548387094E-2,3.3333333333333333E-2,0,0.20689655172413793,6.25E-2,0.1,9.6774193548387094E-2,0,3.125E-2,0,9.375E-2,6.4516129032258063E-2,0.12903225806451613,{"$f":"(COUNTIFS(AH$3:AH$194,1,ID_HDIG,1))/AH$197","v":6.4516129032258063E-2},3.2258064516129031E-2,0.125,3.125E-2,0.125,6.25E-2,0.1,0.2,0,3.3333333333333333E-2,3.2258064516129031E-2,0.2,0.1,0,0.1,0.1875,0.1875,0.16129032258064516,0.16129032258064516,0.44444444444444442,6.6666666666666666E-2,6.6666666666666666E-2,0,9.6774193548387094E-2,3.2258064516129031E-2,6.25E-2,0,6.4516129032258063E-2,3.2258064516129031E-2,0.10714285714285714,0.10714285714285714,0.21428571428571427,{"$f":"(COUNTIFS(BN$3:BN$194,1,ID_HDIG,1))/BN$197","v":3.3333333333333333E-2},0.16129032258064516,0.125,0.15625,0.22580645161290322,6.25E-2,0.12903225806451613,0.33333333333333331,9.375E-2,6.6666666666666666E-2,6.25E-2,3.2258064516129031E-2,6.4516129032258063E-2,9.6774193548387094E-2,3.2258064516129031E-2,0.1,0.83870967741935487,0.13333333333333333,0.22580645161290322,3.125E-2,6.4516129032258063E-2,3.2258064516129031E-2,3.3333333333333333E-2,0.1,3.3333333333333333E-2,0.16129032258064516,0.80645161290322576,9.6774193548387094E-2,0.19354838709677419,0.22580645161290322,0.13333333333333333,0.10344827586206896,{"$f":"(COUNTIFS(CT$3:CT$194,1,ID_HDIG,1))/CT$197","v":0.3},0.4,0.64516129032258063,0.17241379310344829,0.13793103448275862,0.20689655172413793,0.13793103448275862,0.10344827586206896,0.13793103448275862,0.20689655172413793,6.8965517241379309E-2,0.20689655172413793,0.2413793103448276,0.2413793103448276,0.20689655172413793,3.4482758620689655E-2,6.8965517241379309E-2,0.17241379310344829,3.4482758620689655E-2,null,null,{"$f":"(COUNTIFS(DO$3:DO$194,1,ID_HDIG,1))/DO$197","v":0},0,3.3333333333333333E-2,3.3333333333333333E-2,0,0,3.2258064516129031E-2,3.2258064516129031E-2,0,0,0,0,3.2258064516129031E-2,3.2258064516129031E-2,0,9.6774193548387094E-2,6.4516129032258063E-2,6.4516129032258063E-2,0,0,0,0,0,0,3.2258064516129031E-2,0,0.13333333333333333,0.10344827586206896,9.6774193548387094E-2,0,0,0,{"$f":"(COUNTIFS(EU$3:EU$194,1,ID_HDIG,1))/EU$197","v":3.3333333333333333E-2},6.6666666666666666E-2,3.2258064516129031E-2,0,0,0,0,0,0,3.2258064516129031E-2,3.2258064516129031E-2,9.6774193548387094E-2,0,6.6666666666666666E-2,3.3333333333333333E-2,3.2258064516129031E-2,0,0,0,9.6774193548387094E-2,6.8965517241379309E-2,6.4516129032258063E-2,0.12903225806451613,0,3.2258064516129031E-2,6.4516129032258063E-2,3.2258064516129031E-2,3.2258064516129031E-2]
["Low HD: % of responses as 2",{"$f":"(COUNTIFS(B$3:B$194,2,ID_HDIG,1))/B$197","v":0.29032258064516131},{"$f":"(COUNTIFS(C$3:C$194,2,ID_HDIG,1))/C$197","v":0.17241379310344829},{"$f":"(COUNTIFS(D$3:D$194,2,ID_HDIG,1))/D$197","v":0.13333333333333333},{"$f":"(COUNTIFS(E$3:E$194,2,ID_HDIG,1))/E$197","v":3.5714285714285712E-2},{"$f":"(COUNTIFS(F$3:F$194,2,ID_HDIG,1))/F$197","v":0.4375},0.35714285714285715,0.45161290322580644,0.41379310344827586,0.1875,0.25,0.25,0.1875,0.4375,0.29032258064516131,0.35483870967741937,0.20689655172413793,0.36666666666666664,0.36666666666666664,0.16129032258064516,0.22580645161290322,0.4,0.56666666666666665,0.41379310344827586,0.40625,0.33333333333333331,0.41935483870967744,0.3125,0.375,0.25,0.375,0.35483870967741937,0.35483870967741937,{"$f":"(COUNTIFS(AH$3:AH$194,2,ID_HDIG,1))/AH$197","v":0.25806451612903225},0.29032258064516131,0.28125,0.375,0.34375,0.34375,0.4,0.26666666666666666,0.4,0.36666666666666664,0.45161290322580644,0.5,0.4,0.40625,0.53333333333333333,0.46875,0.40625,0.38709677419354838,0.4838709677419355,0.40740740740740738,0.23333333333333334,0.26666666666666666,0.41935483870967744,0.25806451612903225,0.41935483870967744,0.15625,0.125,0.25806451612903225,0.19354838709677419,0.35714285714285715,0.39285714285714285,0.39285714285714285,{"$f":"(COUNTIFS(BN$3:BN$194,2,ID_HDIG,1))/BN$197","v":0.33333333333333331},0.16129032258064516,0.34375,0.375,0.45161290322580644,0.40625,0.41935483870967744,0.5,0.4375,0.3,0.125,0.12903225806451613,0.12903225806451613,0.35483870967741937,6.4516129032258063E-2,0.3,0.12903225806451613,0.4,0.38709677419354838,0.21875,0.12903225806451613,6.4516129032258063E-2,6.6666666666666666E-2,0.23333333333333334,3.3333333333333333E-2,0.35483870967741937,9.6774193548387094E-2,0.35483870967741937,0.38709677419354838,3.2258064516129031E-2,0,0.13793103448275862,{"$f":"(COUNTIFS(CT$3:CT$194,2,ID_HDIG,1))/CT$197","v":0.3},0.16666666666666666,0.25806451612903225,0.17241379310344829,0.20689655172413793,0.27586206896551724,0.17241379310344829,0.31034482758620691,0.20689655172413793,0.2413793103448276,0.27586206896551724,0.27586206896551724,0.27586206896551724,0.27586206896551724,0.20689655172413793,0.17241379310344829,0.2413793103448276,0.41379310344827586,0.27586206896551724,null,null,{"$f":"(COUNTIFS(DO$3:DO$194,2,ID_HDIG,1))/DO$197","v":9.6774193548387094E-2},3.2258064516129031E-2,0.13333333333333333,6.6666666666666666E-2,0.32258064516129031,6.4516129032258063E-2,0.12903225806451613,9.6774193548387094E-2,0.19354838709677419,0.29032258064516131,6.4516129032258063E-2,0.16129032258064516,0.16129032258064516,0.16129032258064516,0.16129032258064516,0.12903225806451613,0.19354838709677419,0.12903225806451613,9.6774193548387094E-2,3.3333333333333333E-2,0,0,6.4516129032258063E-2,9.6774193548387094E-2,3.2258064516129031E-2,9.6774193548387094E-2,3.3333333333333333E-2,6.8965517241379309E-2,0.29032258064516131,3.2258064516129031E-2,6.4516129032258063E-2,6.6666666666666666E-2,{"$f":"(COUNTIFS(EU$3:EU$194,2,ID_HDIG,1))/EU$197","v":6.6666666666666666E-2},0,0,6.4516129032258063E-2,0,6.4516129032258063E-2,6.4516129032258063E-2,3.2258064516129031E-2,9.6774193548387094E-2,0.12903225806451613,0.19354838709677419,6.4516129032258063E-2,0.22580645161290322,0.1,6.6666666666666666E-2,0.16129032258064516,0.23333333333333334,0.22580645161290322,0.12903225806451613,9.6774193548387094E-2,0.10344827586206896,0.12903225806451613,0.12903225806451613,0.25806451612903225,0.16129032258064516,0.12903225806451613,0.12903225806451613,0.12903225806451613]
["Low HD: % of responses as 3",{"$f":"(COUNTIFS(B$3:B$194,3,ID_HDIG,1))/B$197","v":9.6774193548387094E-2},{"$f":"(COUNTIFS(C$3:C$194,3,ID_HDIG,1))/C$197","v":0},{"$f":"(COUNTIFS(D$3:D$194,3,ID_HDIG,1))/D$197","v":0.16666666666666666},{"$f":"(COUNTIFS(E$3:E$194,3,ID_HDIG,1))/E$197","v":0},{"$f":"(COUNTIFS(F$3:F$194,3,ID_HDIG,1))/F$197","v":0.21875},3.5714285714285712E-2,0.16129032258064516,3.4482758620689655E-2,0.28125,0.21875,0.1875,0.25,0.125,0.19354838709677419,9.6774193548387094E-2,6.8965517241379309E-2,0.16666666666666666,0.2,3.2258064516129031E-2,3.2258064516129031E-2,6.6666666666666666E-2,6.6666666666666666E-2,3.4482758620689655E-2,0.1875,0,3.2258064516129031E-2,6.25E-2,6.25E-2,6.25E-2,0.125,0.12903225806451613,6.4516129032258063E-2,{"$f":"(COUNTIFS(AH$3:AH$194,3,ID_HDIG,1))/AH$197","v":0.12903225806451613},0.29032258064516131,0.25,0.125,0.1875,6.25E-2,3.3333333333333333E-2,0.1,0.1,0,0.19354838709677419,0.16666666666666666,3.3333333333333333E-2,0.15625,6.6666666666666666E-2,6.25E-2,0.125,0.16129032258064516,9.6774193548387094E-2,0,0.1,3.3333333333333333E-2,0.16129032258064516,0.16129032258064516,0.16129032258064516,0.125,0.15625,0.16129032258064516,0.19354838709677419,0.10714285714285714,3.5714285714285712E-2,0.14285714285714285,{"$f":"(COUNTIFS(BN$3:BN$194,3,ID_HDIG,1))/BN$197","v":6.6666666666666666E-2},0.16129032258064516,9.375E-2,0.1875,9.6774193548387094E-2,9.375E-2,6.4516129032258063E-2,3.3333333333333333E-2,0.1875,3.3333333333333333E-2,0.15625,9.6774193548387094E-2,6.4516129032258063E-2,9.6774193548387094E-2,6.4516129032258063E-2,0.1,0,6.6666666666666666E-2,9.6774193548387094E-2,9.375E-2,9.6774193548387094E-2,6.4516129032258063E-2,0.13333333333333333,0.16666666666666666,3.3333333333333333E-2,9.6774193548387094E-2,6.4516129032258063E-2,0.12903225806451613,3.2258064516129031E-2,0.12903225806451613,0.13333333333333333,0.10344827586206896,{"$f":"(COUNTIFS(CT$3:CT$194,3,ID_HDIG,1))/CT$197","v":3.3333333333333333E-2},0.13333333333333333,0,0.37931034482758619,0.27586206896551724,0.2413793103448276,0.44827586206896552,0.37931034482758619,0.44827586206896552,0.31034482758620691,0.48275862068965519,0.31034482758620691,0.31034482758620691,0.27586206896551724,0.48275862068965519,0.51724137931034486,0.37931034482758619,0.27586206896551724,0.34482758620689657,null,null,{"$f":"(COUNTIFS(DO$3:DO$194,3,ID_HDIG,1))/DO$197","v":0.19354838709677419},6.4516129032258063E-2,0.4,0.23333333333333334,0.35483870967741937,0.12903225806451613,0.22580645161290322,0.19354838709677419,0.29032258064516131,0.35483870967741937,0.25806451612903225,0.19354838709677419,0.19354838709677419,3.2258064516129031E-2,0.29032258064516131,0.19354838709677419,0.35483870967741937,6.4516129032258063E-2,0.25806451612903225,0.2,0.16129032258064516,0.19354838709677419,0.22580645161290322,0.22580645161290322,3.2258064516129031E-2,0.19354838709677419,0.23333333333333334,0.31034482758620691,0.35483870967741937,0.25806451612903225,0.22580645161290322,0.2,{"$f":"(COUNTIFS(EU$3:EU$194,3,ID_HDIG,1))/EU$197","v":0.26666666666666666},0.16666666666666666,6.4516129032258063E-2,0,3.2258064516129031E-2,0.19354838709677419,0.29032258064516131,0.25806451612903225,0.19354838709677419,0.16129032258064516,9.6774193548387094E-2,0.25806451612903225,0.19354838709677419,0.33333333333333331,0.4,9.6774193548387094E-2,0.13333333333333333,6.4516129032258063E-2,0.12903225806451613,0.12903225806451613,0.10344827586206896,9.6774193548387094E-2,6.4516129032258063E-2,9.6774193548387094E-2,9.6774193548387094E-2,0.12903225806451613,0.12903225806451613,0.19354838709677419]
["Low HD: % of responses as 4",{"$f":"(COUNTIFS(B$3:B$194,4,ID_HDIG,1))/B$197","v":0.29032258064516131},{"$f":"(COUNTIFS(C$3:C$194,4,ID_HDIG,1))/C$197","v":0.13793103448275862},{"$f":"(COUNTIFS(D$3:D$194,4,ID_HDIG,1))/D$197","v":0.3},{"$f":"(COUNTIFS(E$3:E$194,4,ID_HDIG,1))/E$197","v":0.14285714285714285},{"$f":"(COUNTIFS(F$3:F$194,4,ID_HDIG,1))/F$197","v":0.1875},3.5714285714285712E-2,0.16129032258064516,0.20689655172413793,0.125,0.1875,0.21875,0.1875,0.25,0.29032258064516131,0.29032258064516131,0.27586206896551724,0.2,0.16666666666666666,0.22580645161290322,0.22580645161290322,0.2,0.13333333333333333,0.20689655172413793,0.1875,0.33333333333333331,0.16129032258064516,0.40625,0.28125,0.375,0.25,0.25806451612903225,0.25806451612903225,{"$f":"(COUNTIFS(AH$3:AH$194,4,ID_HDIG,1))/AH$197","v":0.38709677419354838},0.19354838709677419,0.1875,0.28125,0.25,0.34375,0.2,0.2,0.23333333333333334,0.26666666666666666,0.12903225806451613,0.1,0.3,0.1875,0.2,0.1875,0.1875,0.12903225806451613,0.19354838709677419,0.1111111111111111,0.33333333333333331,0.46666666666666667,0.32258064516129031,0.25806451612903225,0.25806451612903225,0.3125,0.4375,0.29032258064516131,0.32258064516129031,0.35714285714285715,0.2857142857142857,0.14285714285714285,{"$f":"(COUNTIFS(BN$3:BN$194,4,ID_HDIG,1))/BN$197","v":0.3},0.29032258064516131,0.28125,0.21875,0.16129032258064516,0.25,0.25806451612903225,0.1,0.21875,0.4,0.375,0.25806451612903225,0.38709677419354838,0.19354838709677419,0.38709677419354838,0.3,3.2258064516129031E-2,0.33333333333333331,0.22580645161290322,0.34375,0.35483870967741937,0.32258064516129031,0.33333333333333331,0.33333333333333331,0.3,0.22580645161290322,3.2258064516129031E-2,0.35483870967741937,0.35483870967741937,0.5161290322580645,0.6,0.48275862068965519,{"$f":"(COUNTIFS(CT$3:CT$194,4,ID_HDIG,1))/CT$197","v":0.3},0.2,0,0.2413793103448276,0.34482758620689657,0.27586206896551724,0.20689655172413793,0.20689655172413793,0.17241379310344829,0.2413793103448276,0.17241379310344829,0.20689655172413793,0.17241379310344829,0.17241379310344829,0.10344827586206896,0.17241379310344829,0.27586206896551724,0.13793103448275862,0.34482758620689657,null,null,{"$f":"(COUNTIFS(DO$3:DO$194,4,ID_HDIG,1))/DO$197","v":0.58064516129032262},0.32258064516129031,0.4,0.6,0.25806451612903225,0.5161290322580645,0.45161290322580644,0.4838709677419355,0.35483870967741937,0.22580645161290322,0.54838709677419351,0.54838709677419351,0.38709677419354838,0.12903225806451613,0.41935483870967744,0.35483870967741937,0.32258064516129031,0.38709677419354838,0.22580645161290322,0.43333333333333335,0.64516129032258063,0.58064516129032262,0.32258064516129031,0.41935483870967744,0.58064516129032262,0.58064516129032262,0.46666666666666667,0.51724137931034486,0.19354838709677419,0.5161290322580645,0.5161290322580645,0.46666666666666667,{"$f":"(COUNTIFS(EU$3:EU$194,4,ID_HDIG,1))/EU$197","v":0.43333333333333335},0.56666666666666665,0.54838709677419351,0.5161290322580645,0.4838709677419355,0.41935483870967744,0.41935483870967744,0.45161290322580644,0.38709677419354838,0.38709677419354838,0.38709677419354838,0.38709677419354838,0.41935483870967744,0.4,0.46666666666666667,0.4838709677419355,0.53333333333333333,0.4838709677419355,0.58064516129032262,0.38709677419354838,0.48275862068965519,0.54838709677419351,0.38709677419354838,0.45161290322580644,0.54838709677419351,0.45161290322580644,0.4838709677419355,0.5161290322580645]
["Low HD: % of responses as 5",{"$f":"(COUNTIFS(B$3:B$194,5,ID_HDIG,1))/B$197","v":0.19354838709677419},{"$f":"(COUNTIFS(C$3:C$194,5,ID_HDIG,1))/C$197","v":6.8965517241379309E-2},{"$f":"(COUNTIFS(D$3:D$194,5,ID_HDIG,1))/D$197","v":0.23333333333333334},{"$f":"(COUNTIFS(E$3:E$194,5,ID_HDIG,1))/E$197","v":0.14285714285714285},{"$f":"(COUNTIFS(F$3:F$194,5,ID_HDIG,1))/F$197","v":6.25E-2},0,6.4516129032258063E-2,0.10344827586206896,0.21875,0.1875,0.1875,0.25,0.125,0.12903225806451613,6.4516129032258063E-2,0.10344827586206896,0.13333333333333333,0.1,0.35483870967741937,0.32258064516129031,0.1,0.1,0.10344827586206896,9.375E-2,0.13333333333333333,0.22580645161290322,9.375E-2,0.21875,0.1875,9.375E-2,0.12903225806451613,0.12903225806451613,{"$f":"(COUNTIFS(AH$3:AH$194,5,ID_HDIG,1))/AH$197","v":0.12903225806451613},0.12903225806451613,0.125,0.1875,9.375E-2,0.15625,0.23333333333333334,0.16666666666666666,0.26666666666666666,0.3,0.12903225806451613,3.3333333333333333E-2,0.13333333333333333,0.21875,6.6666666666666666E-2,9.375E-2,6.25E-2,3.2258064516129031E-2,6.4516129032258063E-2,3.7037037037037035E-2,0.16666666666666666,0.1,9.6774193548387094E-2,0.19354838709677419,0.12903225806451613,0.15625,0.125,0.16129032258064516,0.19354838709677419,3.5714285714285712E-2,0.10714285714285714,7.1428571428571425E-2,{"$f":"(COUNTIFS(BN$3:BN$194,5,ID_HDIG,1))/BN$197","v":0.16666666666666666},0.16129032258064516,0.15625,6.25E-2,6.4516129032258063E-2,0.125,0.12903225806451613,3.3333333333333333E-2,3.125E-2,0.1,0.1875,0.38709677419354838,0.25806451612903225,0.19354838709677419,0.41935483870967744,0.16666666666666666,0,6.6666666666666666E-2,6.4516129032258063E-2,0.21875,0.22580645161290322,0.38709677419354838,0.33333333333333331,0.1,0.53333333333333333,0.16129032258064516,0,6.4516129032258063E-2,3.2258064516129031E-2,9.6774193548387094E-2,0.13333333333333333,0.17241379310344829,{"$f":"(COUNTIFS(CT$3:CT$194,5,ID_HDIG,1))/CT$197","v":6.6666666666666666E-2},0.1,9.6774193548387094E-2,3.4482758620689655E-2,3.4482758620689655E-2,0,3.4482758620689655E-2,0,3.4482758620689655E-2,0,0,0,0,3.4482758620689655E-2,0,0.10344827586206896,3.4482758620689655E-2,0,0,null,null,{"$f":"(COUNTIFS(DO$3:DO$194,5,ID_HDIG,1))/DO$197","v":0.12903225806451613},0.58064516129032262,3.3333333333333333E-2,6.6666666666666666E-2,6.4516129032258063E-2,0.29032258064516131,0.16129032258064516,0.19354838709677419,0.16129032258064516,0.12903225806451613,0.12903225806451613,9.6774193548387094E-2,0.22580645161290322,0.64516129032258063,0.12903225806451613,0.22580645161290322,6.4516129032258063E-2,0.35483870967741937,0.41935483870967744,0.33333333333333331,0.19354838709677419,0.22580645161290322,0.38709677419354838,0.25806451612903225,0.32258064516129031,0.12903225806451613,0.13333333333333333,0,6.4516129032258063E-2,0.19354838709677419,0.19354838709677419,0.26666666666666666,{"$f":"(COUNTIFS(EU$3:EU$194,5,ID_HDIG,1))/EU$197","v":0.2},0.2,0.35483870967741937,0.41935483870967744,0.4838709677419355,0.32258064516129031,0.22580645161290322,0.25806451612903225,0.32258064516129031,0.29032258064516131,0.29032258064516131,0.19354838709677419,0.16129032258064516,0.1,3.3333333333333333E-2,0.22580645161290322,0.1,0.22580645161290322,0.16129032258064516,0.29032258064516131,0.2413793103448276,0.16129032258064516,0.29032258064516131,0.19354838709677419,0.16129032258064516,0.22580645161290322,0.22580645161290322,0.12903225806451613]
["Low HD: % of responses as 6",{"$f":"(COUNTIFS(B$3:B$194,6,ID_HDIG,1))/B$197","v":9.6774193548387094E-2},{"$f":"(COUNTIFS(C$3:C$194,6,ID_HDIG,1))/C$197","v":0},{"$f":"(COUNTIFS(D$3:D$194,6,ID_HDIG,1))/D$197","v":0.13333333333333333},{"$f":"(COUNTIFS(E$3:E$194,6,ID_HDIG,1))/E$197","v":3.5714285714285712E-2},{"$f":"(COUNTIFS(F$3:F$194,6,ID_HDIG,1))/F$197","v":9.375E-2},0,0,3.4482758620689655E-2,0.125,9.375E-2,6.25E-2,3.125E-2,6.25E-2,3.2258064516129031E-2,3.2258064516129031E-2,0,0,0,9.6774193548387094E-2,9.6774193548387094E-2,0.2,0.13333333333333333,3.4482758620689655E-2,6.25E-2,0.1,6.4516129032258063E-2,0.125,3.125E-2,0.125,6.25E-2,6.4516129032258063E-2,6.4516129032258063E-2,{"$f":"(COUNTIFS(AH$3:AH$194,6,ID_HDIG,1))/AH$197","v":3.2258064516129031E-2},6.4516129032258063E-2,3.125E-2,0,0,3.125E-2,3.3333333333333333E-2,6.6666666666666666E-2,0,3.3333333333333333E-2,6.4516129032258063E-2,0,3.3333333333333333E-2,3.125E-2,3.3333333333333333E-2,0,3.125E-2,0.12903225806451613,0,0,0.1,6.6666666666666666E-2,0,3.2258064516129031E-2,0,0.1875,0.15625,6.4516129032258063E-2,6.4516129032258063E-2,3.5714285714285712E-2,7.1428571428571425E-2,3.5714285714285712E-2,{"$f":"(COUNTIFS(BN$3:BN$194,6,ID_HDIG,1))/BN$197","v":0.1},6.4516129032258063E-2,0,0,0,6.25E-2,0,0,3.125E-2,0.1,9.375E-2,9.6774193548387094E-2,9.6774193548387094E-2,6.4516129032258063E-2,3.2258064516129031E-2,3.3333333333333333E-2,0,0,0,9.375E-2,0.12903225806451613,0.12903225806451613,0.1,6.6666666666666666E-2,6.6666666666666666E-2,0,0,0,0]
["Medium HD: % of responses as 1",{"$f":"(COUNTIFS(B$3:B$194,1,ID_HDIG,2))/B$198","v":0},{"$f":"(COUNTIFS(C$3:C$194,1,ID_HDIG,2))/C$198","v":0.32258064516129031},{"$f":"(COUNTIFS(D$3:D$194,1,ID_HDIG,2))/D$198","v":3.2258064516129031E-2},{"$f":"(COUNTIFS(E$3:E$194,1,ID_HDIG,2))/E$198","v":0.5},{"$f":"(COUNTIFS(F$3:F$194,1,ID_HDIG,2))/F$198","v":3.2258064516129031E-2},0.22580645161290322,0.12903225806451613,0.1,3.3333333333333333E-2,0,0,3.2258064516129031E-2,3.2258064516129031E-2,6.6666666666666666E-2,6.4516129032258063E-2,0.23333333333333334,0.12903225806451613,6.4516129032258063E-2,0.12903225806451613,0.25806451612903225,3.2258064516129031E-2,6.4516129032258063E-2,0.2,3.2258064516129031E-2,0.2,9.6774193548387094E-2,0,3.2258064516129031E-2,3.2258064516129031E-2,0.16129032258064516,3.2258064516129031E-2,0.19354838709677419,{"$f":"(COUNTIFS(AH$3:AH$194,1,ID_HDIG,2))/AH$198","v":6.4516129032258063E-2},3.2258064516129031E-2,0.12903225806451613,6.4516129032258063E-2,0.19354838709677419,6.4516129032258063E-2,6.4516129032258063E-2,6.4516129032258063E-2,3.2258064516129031E-2,9.6774193548387094E-2,3.3333333333333333E-2,9.6774193548387094E-2,6.4516129032258063E-2,3.2258064516129031E-2,0.12903225806451613,3.2258064516129031E-2,0.16129032258064516,6.4516129032258063E-2,0.12903225806451613,0.20689655172413793,6.4516129032258063E-2,0,3.2258064516129031E-2,0.13333333333333333,6.4516129032258063E-2,0,3.2258064516129031E-2,3.2258064516129031E-2,3.2258064516129031E-2,6.6666666666666666E-2,3.2258064516129031E-2,0.2,{"$f":"(COUNTIFS(BN$3:BN$194,1,ID_HDIG,2))/BN$198","v":3.2258064516129031E-2},3.2258064516129031E-2,6.4516129032258063E-2,0.12903225806451613,6.4516129032258063E-2,0,9.6774193548387094E-2,0.26666666666666666,0,0,6.4516129032258063E-2,6.6666666666666666E-2,6.4516129032258063E-2,0,0,3.3333333333333333E-2,0.43333333333333335,0.12903225806451613,0.12903225806451613,0,9.6774193548387094E-2,0,0.1,0,0,3.2258064516129031E-2,0.46666666666666667,0.12903225806451613,9.6774193548387094E-2,0.2413793103448276,6.8965517241379309E-2,6.6666666666666666E-2,{"$f":"(COUNTIFS(CT$3:CT$194,1,ID_HDIG,2))/CT$198","v":0.17241379310344829},0.10344827586206896,0.51851851851851849,6.6666666666666666E-2,0.1,6.6666666666666666E-2,3.3333333333333333E-2,0.13333333333333333,0.16666666666666666,0.1,0.1,3.3333333333333333E-2,0.13333333333333333,0.1,3.3333333333333333E-2,0.13333333333333333,0.1,0.1,0.1,null,null,{"$f":"(COUNTIFS(DO$3:DO$194,1,ID_HDIG,2))/DO$198","v":3.4482758620689655E-2},0,0,0,0,0,3.3333333333333333E-2,6.4516129032258063E-2,3.2258064516129031E-2,9.6774193548387094E-2,0,3.2258064516129031E-2,3.3333333333333333E-2,0,3.2258064516129031E-2,0,9.6774193548387094E-2,0,0,3.2258064516129031E-2,6.4516129032258063E-2,9.6774193548387094E-2,3.2258064516129031E-2,6.4516129032258063E-2,0,3.2258064516129031E-2,0.16666666666666666,0.16666666666666666,0.1,3.3333333333333333E-2,3.2258064516129031E-2,0,{"$f":"(COUNTIFS(EU$3:EU$194,1,ID_HDIG,2))/EU$198","v":6.4516129032258063E-2},6.4516129032258063E-2,0,3.2258064516129031E-2,3.2258064516129031E-2,0,3.2258064516129031E-2,0,0,0,0.12903225806451613,9.6774193548387094E-2,0,0,0,0,0,0,0,0.1,6.6666666666666666E-2,3.3333333333333333E-2,3.3333333333333333E-2,6.8965517241379309E-2,0,3.3333333333333333E-2,0,0]
["Medium HD: % of responses as 2",{"$f":"(COUNTIFS(B$3:B$194,2,ID_HDIG,2))/B$198","v":0.29032258064516131},{"$f":"(COUNTIFS(C$3:C$194,2,ID_HDIG,2))/C$198","v":0.22580645161290322},{"$f":"(COUNTIFS(D$3:D$194,2,ID_HDIG,2))/D$198","v":0.25806451612903225},{"$f":"(COUNTIFS(E$3:E$194,2,ID_HDIG,2))/E$198","v":0.21428571428571427},{"$f":"(COUNTIFS(F$3:F$194,2,ID_HDIG,2))/F$198","v":0.35483870967741937},0.45161290322580644,0.45161290322580644,0.36666666666666664,0.3,0.25806451612903225,0.22580645161290322,0.29032258064516131,0.41935483870967744,0.43333333333333335,0.45161290322580644,0.4,0.41935483870967744,0.45161290322580644,0.29032258064516131,0.22580645161290322,0.16129032258064516,0.29032258064516131,0.23333333333333334,0.45161290322580644,0.4,0.35483870967741937,0.12903225806451613,0.16129032258064516,0.16129032258064516,0.25806451612903225,0.32258064516129031,0.32258064516129031,{"$f":"(COUNTIFS(AH$3:AH$194,2,ID_HDIG,2))/AH$198","v":0.32258064516129031},0.35483870967741937,0.35483870967741937,0.35483870967741937,0.25806451612903225,0.19354838709677419,0.16129032258064516,0.25806451612903225,0.41935483870967744,0.12903225806451613,0.33333333333333331,0.54838709677419351,0.32258064516129031,0.25806451612903225,0.32258064516129031,0.45161290322580644,0.29032258064516131,0.45161290322580644,0.25806451612903225,0.27586206896551724,0.12903225806451613,0.2,0.32258064516129031,0.33333333333333331,0.41935483870967744,6.4516129032258063E-2,0,9.6774193548387094E-2,3.2258064516129031E-2,0.36666666666666664,0.25806451612903225,0.33333333333333331,{"$f":"(COUNTIFS(BN$3:BN$194,2,ID_HDIG,2))/BN$198","v":0.29032258064516131},0.29032258064516131,0.32258064516129031,0.32258064516129031,0.41935483870967744,0.38709677419354838,0.38709677419354838,0.4,0.51724137931034486,0.29032258064516131,0.12903225806451613,0.1,6.4516129032258063E-2,0.25806451612903225,0,0.16666666666666666,0.3,0.25806451612903225,0.32258064516129031,0.25806451612903225,0.12903225806451613,0.13333333333333333,0.16666666666666666,0.25806451612903225,9.6774193548387094E-2,0.16129032258064516,0.23333333333333334,0.32258064516129031,0.38709677419354838,3.4482758620689655E-2,0.10344827586206896,0.16666666666666666,{"$f":"(COUNTIFS(CT$3:CT$194,2,ID_HDIG,2))/CT$198","v":0.37931034482758619},0.27586206896551724,0.29629629629629628,0.23333333333333334,0.3,0.3,0.33333333333333331,0.13333333333333333,0.13333333333333333,0.23333333333333334,0.23333333333333334,0.3,0.23333333333333334,0.3,0.36666666666666664,0.13333333333333333,0.2,0.23333333333333334,0.16666666666666666,null,null,{"$f":"(COUNTIFS(DO$3:DO$194,2,ID_HDIG,2))/DO$198","v":6.8965517241379309E-2},0,0.1,0.1,0.13793103448275862,0,6.6666666666666666E-2,0,3.2258064516129031E-2,0.12903225806451613,3.2258064516129031E-2,9.6774193548387094E-2,0.13333333333333333,9.6774193548387094E-2,6.4516129032258063E-2,9.6774193548387094E-2,6.4516129032258063E-2,0,0,0,0,0,9.6774193548387094E-2,9.6774193548387094E-2,0,3.2258064516129031E-2,0,3.3333333333333333E-2,0.2,6.6666666666666666E-2,0,0,{"$f":"(COUNTIFS(EU$3:EU$194,2,ID_HDIG,2))/EU$198","v":0},3.2258064516129031E-2,0,3.2258064516129031E-2,0,0,0,0,0,0,0.16129032258064516,9.6774193548387094E-2,0.10344827586206896,6.8965517241379309E-2,0.13333333333333333,0.12903225806451613,0.12903225806451613,0.1,3.3333333333333333E-2,0.1,0.13333333333333333,0,6.6666666666666666E-2,0,0.1,3.3333333333333333E-2,3.3333333333333333E-2,3.3333333333333333E-2]
["Medium HD: % of responses as 3",{"$f":"(COUNTIFS(B$3:B$194,3,ID_HDIG,2))/B$198","v":0.12903225806451613},{"$f":"(COUNTIFS(C$3:C$194,3,ID_HDIG,2))/C$198","v":9.6774193548387094E-2},{"$f":"(COUNTIFS(D$3:D$194,3,ID_HDIG,2))/D$198","v":6.4516129032258063E-2},{"$f":"(COUNTIFS(E$3:E$194,3,ID_HDIG,2))/E$198","v":3.5714285714285712E-2},{"$f":"(COUNTIFS(F$3:F$194,3,ID_HDIG,2))/F$198","v":9.6774193548387094E-2},6.4516129032258063E-2,0.12903225806451613,0.2,0.13333333333333333,0.12903225806451613,0.25806451612903225,0.32258064516129031,0.22580645161290322,0.2,9.6774193548387094E-2,0.16666666666666666,0.12903225806451613,0.19354838709677419,9.6774193548387094E-2,0.19354838709677419,0.12903225806451613,0.22580645161290322,0.16666666666666666,0.12903225806451613,6.6666666666666666E-2,0.16129032258064516,0.22580645161290322,9.6774193548387094E-2,0.12903225806451613,0.16129032258064516,6.4516129032258063E-2,0.16129032258064516,{"$f":"(COUNTIFS(AH$3:AH$194,3,ID_HDIG,2))/AH$198","v":0.19354838709677419},0.19354838709677419,0.16129032258064516,9.6774193548387094E-2,0.12903225806451613,0.19354838709677419,9.6774193548387094E-2,0.19354838709677419,0.12903225806451613,6.4516129032258063E-2,0.16666666666666666,6.4516129032258063E-2,0.16129032258064516,3.2258064516129031E-2,0.22580645161290322,9.6774193548387094E-2,0.12903225806451613,6.4516129032258063E-2,9.6774193548387094E-2,0.20689655172413793,0.25806451612903225,0.3,0.22580645161290322,0.16666666666666666,0.22580645161290322,0.12903225806451613,6.4516129032258063E-2,0.19354838709677419,9.6774193548387094E-2,0.1,0.22580645161290322,0.2,{"$f":"(COUNTIFS(BN$3:BN$194,3,ID_HDIG,2))/BN$198","v":0.12903225806451613},0.12903225806451613,9.6774193548387094E-2,0.12903225806451613,9.6774193548387094E-2,0.12903225806451613,9.6774193548387094E-2,3.3333333333333333E-2,0.13793103448275862,6.4516129032258063E-2,6.4516129032258063E-2,6.6666666666666666E-2,0.12903225806451613,0.12903225806451613,0.1,0.13333333333333333,3.3333333333333333E-2,9.6774193548387094E-2,0.25806451612903225,0,6.4516129032258063E-2,0.13333333333333333,3.3333333333333333E-2,0.16129032258064516,0.16129032258064516,0.25806451612903225,6.6666666666666666E-2,9.6774193548387094E-2,0.19354838709677419,0.13793103448275862,0.20689655172413793,0.16666666666666666,{"$f":"(COUNTIFS(CT$3:CT$194,3,ID_HDIG,2))/CT$198","v":3.4482758620689655E-2},3.4482758620689655E-2,7.407407407407407E-2,0.26666666666666666,0.26666666666666666,0.2,0.16666666666666666,0.4,0.4,0.36666666666666664,0.33333333333333331,0.33333333333333331,0.4,0.33333333333333331,0.26666666666666666,0.3,0.26666666666666666,0.4,0.33333333333333331,null,null,{"$f":"(COUNTIFS(DO$3:DO$194,3,ID_HDIG,2))/DO$198","v":0.2413793103448276},6.6666666666666666E-2,0.26666666666666666,0.36666666666666664,0.34482758620689657,0.13333333333333333,0.16666666666666666,0.12903225806451613,0.25806451612903225,0.12903225806451613,0.16129032258064516,0.19354838709677419,0.2,0,0.19354838709677419,0.29032258064516131,0.32258064516129031,3.2258064516129031E-2,0.22580645161290322,0.16129032258064516,0.29032258064516131,0.25806451612903225,0.19354838709677419,0.32258064516129031,0.16129032258064516,0.12903225806451613,0.2,0.2,0.56666666666666665,0.3,0.19354838709677419,0.12903225806451613,{"$f":"(COUNTIFS(EU$3:EU$194,3,ID_HDIG,2))/EU$198","v":0.22580645161290322},0.25806451612903225,0.22580645161290322,0.16129032258064516,0.22580645161290322,0.19354838709677419,0.19354838709677419,0.12903225806451613,9.6774193548387094E-2,0.19354838709677419,6.4516129032258063E-2,0.19354838709677419,0.44827586206896552,0.44827586206896552,0.46666666666666667,0.16129032258064516,0.22580645161290322,0.16666666666666666,0.3,0.16666666666666666,6.6666666666666666E-2,0.26666666666666666,0.16666666666666666,0.31034482758620691,0.4,0.2,0.26666666666666666,0.43333333333333335]
["Medium HD: % of responses as 4",{"$f":"(COUNTIFS(B$3:B$194,4,ID_HDIG,2))/B$198","v":0.25806451612903225},{"$f":"(COUNTIFS(C$3:C$194,4,ID_HDIG,2))/C$198","v":0.19354838709677419},{"$f":"(COUNTIFS(D$3:D$194,4,ID_HDIG,2))/D$198","v":0.25806451612903225},{"$f":"(COUNTIFS(E$3:E$194,4,ID_HDIG,2))/E$198","v":3.5714285714285712E-2},{"$f":"(COUNTIFS(F$3:F$194,4,ID_HDIG,2))/F$198","v":0.29032258064516131},9.6774193548387094E-2,0.12903225806451613,0.16666666666666666,0.23333333333333334,0.29032258064516131,0.25806451612903225,0.16129032258064516,0.22580645161290322,0.13333333333333333,0.22580645161290322,0.1,0.25806451612903225,0.22580645161290322,0.12903225806451613,9.6774193548387094E-2,0.32258064516129031,0.25806451612903225,0.2,0.12903225806451613,0.16666666666666666,0.16129032258064516,0.38709677419354838,0.41935483870967744,0.45161290322580644,0.22580645161290322,0.35483870967741937,0.16129032258064516,{"$f":"(COUNTIFS(AH$3:AH$194,4,ID_HDIG,2))/AH$198","v":0.29032258064516131},0.22580645161290322,0.16129032258064516,0.25806451612903225,0.22580645161290322,0.29032258064516131,0.32258064516129031,0.12903225806451613,0.16129032258064516,0.38709677419354838,0.16666666666666666,0.22580645161290322,0.19354838709677419,0.41935483870967744,0.16129032258064516,0.12903225806451613,0.25806451612903225,0.16129032258064516,0.35483870967741937,0.13793103448275862,0.25806451612903225,0.16666666666666666,0.25806451612903225,0.16666666666666666,0.19354838709677419,0.25806451612903225,0.38709677419354838,0.32258064516129031,0.38709677419354838,0.3,0.16129032258064516,0.1,{"$f":"(COUNTIFS(BN$3:BN$194,4,ID_HDIG,2))/BN$198","v":0.25806451612903225},0.25806451612903225,0.38709677419354838,0.25806451612903225,0.35483870967741937,0.32258064516129031,0.25806451612903225,0.13333333333333333,0.2413793103448276,0.19354838709677419,0.29032258064516131,0.23333333333333334,0.29032258064516131,0.29032258064516131,0.3,0.4,0.1,0.25806451612903225,0.16129032258064516,0.29032258064516131,0.29032258064516131,0.2,0.33333333333333331,0.32258064516129031,0.22580645161290322,0.32258064516129031,0.13333333333333333,0.22580645161290322,0.22580645161290322,0.51724137931034486,0.37931034482758619,0.33333333333333331,{"$f":"(COUNTIFS(CT$3:CT$194,4,ID_HDIG,2))/CT$198","v":0.2413793103448276},0.41379310344827586,7.407407407407407E-2,0.33333333333333331,0.23333333333333334,0.3,0.33333333333333331,0.26666666666666666,0.26666666666666666,0.26666666666666666,0.3,0.33333333333333331,0.23333333333333334,0.26666666666666666,0.33333333333333331,0.33333333333333331,0.4,0.26666666666666666,0.36666666666666664,null,null,{"$f":"(COUNTIFS(DO$3:DO$194,4,ID_HDIG,2))/DO$198","v":0.48275862068965519},0.26666666666666666,0.6,0.36666666666666664,0.37931034482758619,0.6,0.4,0.41935483870967744,0.38709677419354838,0.45161290322580644,0.54838709677419351,0.5161290322580645,0.36666666666666664,0.29032258064516131,0.38709677419354838,0.32258064516129031,0.41935483870967744,0.38709677419354838,0.45161290322580644,0.41935483870967744,0.29032258064516131,0.5161290322580645,0.38709677419354838,0.35483870967741937,0.5161290322580645,0.58064516129032262,0.43333333333333335,0.46666666666666667,0.13333333333333333,0.43333333333333335,0.58064516129032262,0.58064516129032262,{"$f":"(COUNTIFS(EU$3:EU$194,4,ID_HDIG,2))/EU$198","v":0.58064516129032262},0.5161290322580645,0.5161290322580645,0.41935483870967744,0.41935483870967744,0.4838709677419355,0.67741935483870963,0.61290322580645162,0.58064516129032262,0.58064516129032262,0.32258064516129031,0.32258064516129031,0.20689655172413793,0.27586206896551724,0.3,0.45161290322580644,0.4838709677419355,0.56666666666666665,0.53333333333333333,0.4,0.46666666666666667,0.4,0.46666666666666667,0.37931034482758619,0.3,0.53333333333333333,0.53333333333333333,0.36666666666666664]
["Medium HD: % of responses as 5",{"$f":"(COUNTIFS(B$3:B$194,5,ID_HDIG,2))/B$198","v":0.22580645161290322},{"$f":"(COUNTIFS(C$3:C$194,5,ID_HDIG,2))/C$198","v":0.12903225806451613},{"$f":"(COUNTIFS(D$3:D$194,5,ID_HDIG,2))/D$198","v":0.22580645161290322},{"$f":"(COUNTIFS(E$3:E$194,5,ID_HDIG,2))/E$198","v":0.17857142857142858},{"$f":"(COUNTIFS(F$3:F$194,5,ID_HDIG,2))/F$198","v":0.19354838709677419},0.12903225806451613,0.12903225806451613,0.13333333333333333,0.3,0.29032258064516131,0.19354838709677419,0.19354838709677419,9.6774193548387094E-2,0.16666666666666666,0.16129032258064516,0.1,6.4516129032258063E-2,6.4516129032258063E-2,0.32258064516129031,0.12903225806451613,0.25806451612903225,0.12903225806451613,0.16666666666666666,0.19354838709677419,0.13333333333333333,0.16129032258064516,0.16129032258064516,0.22580645161290322,0.16129032258064516,0.12903225806451613,0.16129032258064516,9.6774193548387094E-2,{"$f":"(COUNTIFS(AH$3:AH$194,5,ID_HDIG,2))/AH$198","v":9.6774193548387094E-2},0.12903225806451613,0.12903225806451613,0.16129032258064516,0.12903225806451613,0.19354838709677419,0.32258064516129031,0.29032258064516131,0.16129032258064516,0.25806451612903225,0.3,6.4516129032258063E-2,0.22580645161290322,0.12903225806451613,0.16129032258064516,0.19354838709677419,0.16129032258064516,0.22580645161290322,0.12903225806451613,0.13793103448275862,0.16129032258064516,0.26666666666666666,6.4516129032258063E-2,0.16666666666666666,6.4516129032258063E-2,0.45161290322580644,0.38709677419354838,0.29032258064516131,0.35483870967741937,0.13333333333333333,0.22580645161290322,0.13333333333333333,{"$f":"(COUNTIFS(BN$3:BN$194,5,ID_HDIG,2))/BN$198","v":0.19354838709677419},0.22580645161290322,9.6774193548387094E-2,0.16129032258064516,6.4516129032258063E-2,0.16129032258064516,9.6774193548387094E-2,0.1,3.4482758620689655E-2,0.35483870967741937,0.38709677419354838,0.43333333333333335,0.38709677419354838,0.25806451612903225,0.43333333333333335,0.16666666666666666,0.1,0.22580645161290322,0.12903225806451613,0.35483870967741937,0.35483870967741937,0.46666666666666667,0.33333333333333331,0.16129032258064516,0.41935483870967744,0.19354838709677419,0.1,0.19354838709677419,9.6774193548387094E-2,6.8965517241379309E-2,0.2413793103448276,0.26666666666666666,{"$f":"(COUNTIFS(CT$3:CT$194,5,ID_HDIG,2))/CT$198","v":0.17241379310344829},0.17241379310344829,3.7037037037037035E-2,0.1,0.1,0.13333333333333333,0.13333333333333333,6.6666666666666666E-2,3.3333333333333333E-2,3.3333333333333333E-2,3.3333333333333333E-2,0,0,0,0,0.1,3.3333333333333333E-2,0,3.3333333333333333E-2,null,null,{"$f":"(COUNTIFS(DO$3:DO$194,5,ID_HDIG,2))/DO$198","v":0.17241379310344829},0.66666666666666663,3.3333333333333333E-2,0.16666666666666666,0.13793103448275862,0.26666666666666666,0.33333333333333331,0.38709677419354838,0.29032258064516131,0.19354838709677419,0.25806451612903225,0.16129032258064516,0.26666666666666666,0.61290322580645162,0.32258064516129031,0.29032258064516131,9.6774193548387094E-2,0.58064516129032262,0.32258064516129031,0.38709677419354838,0.35483870967741937,0.12903225806451613,0.29032258064516131,0.16129032258064516,0.32258064516129031,0.22580645161290322,0.2,0.13333333333333333,0,0.16666666666666666,0.19354838709677419,0.29032258064516131,{"$f":"(COUNTIFS(EU$3:EU$194,5,ID_HDIG,2))/EU$198","v":0.12903225806451613},0.12903225806451613,0.25806451612903225,0.35483870967741937,0.32258064516129031,0.32258064516129031,9.6774193548387094E-2,0.25806451612903225,0.32258064516129031,0.22580645161290322,0.32258064516129031,0.29032258064516131,0.2413793103448276,0.20689655172413793,0.1,0.25806451612903225,0.16129032258064516,0.16666666666666666,0.13333333333333333,0.23333333333333334,0.26666666666666666,0.3,0.26666666666666666,0.2413793103448276,0.2,0.2,0.16666666666666666,0.16666666666666666]
["Medium HD: % of responses as 6",{"$f":"(COUNTIFS(B$3:B$194,6,ID_HDIG,2))/B$198","v":9.6774193548387094E-2},{"$f":"(COUNTIFS(C$3:C$194,6,ID_HDIG,2))/C$198","v":3.2258064516129031E-2},{"$f":"(COUNTIFS(D$3:D$194,6,ID_HDIG,2))/D$198","v":0.16129032258064516},{"$f":"(COUNTIFS(E$3:E$194,6,ID_HDIG,2))/E$198","v":3.5714285714285712E-2},{"$f":"(COUNTIFS(F$3:F$194,6,ID_HDIG,2))/F$198","v":3.2258064516129031E-2},3.2258064516129031E-2,3.2258064516129031E-2,3.3333333333333333E-2,0,3.2258064516129031E-2,6.4516129032258063E-2,0,0,0,0,0,0,0,3.2258064516129031E-2,9.6774193548387094E-2,9.6774193548387094E-2,3.2258064516129031E-2,3.3333333333333333E-2,6.4516129032258063E-2,3.3333333333333333E-2,6.4516129032258063E-2,9.6774193548387094E-2,6.4516129032258063E-2,6.4516129032258063E-2,6.4516129032258063E-2,6.4516129032258063E-2,6.4516129032258063E-2,{"$f":"(COUNTIFS(AH$3:AH$194,6,ID_HDIG,2))/AH$198","v":3.2258064516129031E-2},6.4516129032258063E-2,6.4516129032258063E-2,6.4516129032258063E-2,6.4516129032258063E-2,6.4516129032258063E-2,3.2258064516129031E-2,6.4516129032258063E-2,9.6774193548387094E-2,6.4516129032258063E-2,0,0,3.2258064516129031E-2,0.12903225806451613,0,9.6774193548387094E-2,0,3.2258064516129031E-2,3.2258064516129031E-2,3.4482758620689655E-2,0.12903225806451613,6.6666666666666666E-2,9.6774193548387094E-2,3.3333333333333333E-2,3.2258064516129031E-2,9.6774193548387094E-2,0.12903225806451613,6.4516129032258063E-2,9.6774193548387094E-2,3.3333333333333333E-2,9.6774193548387094E-2,3.3333333333333333E-2,{"$f":"(COUNTIFS(BN$3:BN$194,6,ID_HDIG,2))/BN$198","v":9.6774193548387094E-2},6.4516129032258063E-2,3.2258064516129031E-2,0,0,0,6.4516129032258063E-2,6.6666666666666666E-2,6.8965517241379309E-2,9.6774193548387094E-2,6.4516129032258063E-2,0.1,6.4516129032258063E-2,6.4516129032258063E-2,0.16666666666666666,0.1,3.3333333333333333E-2,3.2258064516129031E-2,0,9.6774193548387094E-2,6.4516129032258063E-2,6.6666666666666666E-2,3.3333333333333333E-2,9.6774193548387094E-2,9.6774193548387094E-2,3.2258064516129031E-2,0,3.2258064516129031E-2,0]
["High HD: % of responses as 1",{"$f":"(COUNTIFS(B$3:B$194,1,ID_HDIG,3))/B$199","v":2.7777777777777776E-2},{"$f":"(COUNTIFS(C$3:C$194,1,ID_HDIG,3))/C$199","v":0.41666666666666669},{"$f":"(COUNTIFS(D$3:D$194,1,ID_HDIG,3))/D$199","v":2.7777777777777776E-2},{"$f":"(COUNTIFS(E$3:E$194,1,ID_HDIG,3))/E$199","v":0.5714285714285714},{"$f":"(COUNTIFS(F$3:F$194,1,ID_HDIG,3))/F$199","v":2.7777777777777776E-2},0.42857142857142855,8.5714285714285715E-2,0.11428571428571428,0.17647058823529413,5.7142857142857141E-2,8.5714285714285715E-2,0,2.8571428571428571E-2,5.8823529411764705E-2,6.0606060606060608E-2,0.21212121212121213,0.30303030303030304,0.11764705882352941,0.2,0.3611111111111111,0.33333333333333331,8.5714285714285715E-2,0.3611111111111111,8.3333333333333329E-2,0.30555555555555558,0.25714285714285712,0,2.7777777777777776E-2,0,0.1111111111111111,0.1111111111111111,0.1388888888888889,{"$f":"(COUNTIFS(AH$3:AH$194,1,ID_HDIG,3))/AH$199","v":0.22857142857142856},0,0.1111111111111111,0,0.1388888888888889,0,8.3333333333333329E-2,0.1111111111111111,8.3333333333333329E-2,0,0,0.17142857142857143,8.5714285714285715E-2,2.7777777777777776E-2,0.14705882352941177,5.8823529411764705E-2,0.11764705882352941,0,0,0.2,5.5555555555555552E-2,2.7777777777777776E-2,0,0.31428571428571428,5.7142857142857141E-2,2.7777777777777776E-2,0,8.5714285714285715E-2,0,5.7142857142857141E-2,0,0,{"$f":"(COUNTIFS(BN$3:BN$194,1,ID_HDIG,3))/BN$199","v":0},2.8571428571428571E-2,0,8.8235294117647065E-2,0.12121212121212122,0,2.9411764705882353E-2,0.2,0.11428571428571428,2.7777777777777776E-2,2.8571428571428571E-2,0.17142857142857143,5.7142857142857141E-2,0.1111111111111111,0,2.8571428571428571E-2,0.39393939393939392,0.24242424242424243,0.26470588235294118,8.3333333333333329E-2,8.5714285714285715E-2,0.22857142857142856,0.11428571428571428,0.1388888888888889,0,0,0.39393939393939392,0.42424242424242425,0.23529411764705882,8.5714285714285715E-2,8.8235294117647065E-2,2.9411764705882353E-2,{"$f":"(COUNTIFS(CT$3:CT$194,1,ID_HDIG,3))/CT$199","v":0.20588235294117646},0.11428571428571428,0.29411764705882354,3.125E-2,0,9.375E-2,0,9.375E-2,9.375E-2,9.375E-2,3.0303030303030304E-2,3.125E-2,6.25E-2,9.375E-2,3.0303030303030304E-2,3.125E-2,3.125E-2,6.25E-2,0,null,null,{"$f":"(COUNTIFS(DO$3:DO$194,1,ID_HDIG,3))/DO$199","v":2.7777777777777776E-2},2.7777777777777776E-2,8.3333333333333329E-2,0.17142857142857143,0.11428571428571428,0,2.8571428571428571E-2,2.8571428571428571E-2,8.5714285714285715E-2,0.17647058823529413,5.7142857142857141E-2,8.8235294117647065E-2,8.5714285714285715E-2,2.8571428571428571E-2,0,2.9411764705882353E-2,0,0,5.5555555555555552E-2,2.7777777777777776E-2,0,0,5.5555555555555552E-2,5.7142857142857141E-2,0,0.1111111111111111,0.22222222222222221,0.31428571428571428,8.5714285714285715E-2,2.7777777777777776E-2,8.5714285714285715E-2,0,{"$f":"(COUNTIFS(EU$3:EU$194,1,ID_HDIG,3))/EU$199","v":8.5714285714285715E-2},0,2.8571428571428571E-2,5.5555555555555552E-2,5.5555555555555552E-2,5.5555555555555552E-2,2.7777777777777776E-2,2.7777777777777776E-2,0,2.7777777777777776E-2,8.5714285714285715E-2,5.8823529411764705E-2,9.0909090909090912E-2,6.0606060606060608E-2,3.0303030303030304E-2,0.14285714285714285,2.8571428571428571E-2,8.5714285714285715E-2,3.0303030303030304E-2,5.7142857142857141E-2,0.11428571428571428,8.5714285714285715E-2,8.5714285714285715E-2,8.3333333333333329E-2,5.5555555555555552E-2,5.5555555555555552E-2,2.8571428571428571E-2,2.7777777777777776E-2]
["High HD: % of responses as 2",{"$f":"(COUNTIFS(B$3:B$194,2,ID_HDIG,3))/B$199","v":0.19444444444444445},{"$f":"(COUNTIFS(C$3:C$194,2,ID_HDIG,3))/C$199","v":0.1388888888888889},{"$f":"(COUNTIFS(D$3:D$194,2,ID_HDIG,3))/D$199","v":0.22222222222222221},{"$f":"(COUNTIFS(E$3:E$194,2,ID_HDIG,3))/E$199","v":0.11428571428571428},{"$f":"(COUNTIFS(F$3:F$194,2,ID_HDIG,3))/F$199","v":0.3888888888888889},0.34285714285714286,0.45714285714285713,0.42857142857142855,0.41176470588235292,0.2857142857142857,0.17142857142857143,0.35294117647058826,0.34285714285714286,0.38235294117647056,0.18181818181818182,0.36363636363636365,0.27272727272727271,0.29411764705882354,0.2857142857142857,0.1111111111111111,0.19444444444444445,0.22857142857142856,0.3611111111111111,0.33333333333333331,0.25,0.2857142857142857,0.25,0.1388888888888889,0.1388888888888889,0.25,0.25,0.41666666666666669,{"$f":"(COUNTIFS(AH$3:AH$194,2,ID_HDIG,3))/AH$199","v":0.31428571428571428},0.3611111111111111,0.3611111111111111,0.33333333333333331,0.30555555555555558,0.27777777777777779,0.22222222222222221,0.27777777777777779,0.3611111111111111,0.30555555555555558,0.33333333333333331,0.37142857142857144,0.34285714285714286,0.3888888888888889,0.38235294117647056,0.44117647058823528,0.29411764705882354,0.34285714285714286,0.42857142857142855,0.4,0.22222222222222221,0.22222222222222221,0.38235294117647056,0.14285714285714285,0.51428571428571423,0.1111111111111111,0.1111111111111111,0.2,8.3333333333333329E-2,0.2857142857142857,0.1388888888888889,0.31428571428571428,{"$f":"(COUNTIFS(BN$3:BN$194,2,ID_HDIG,3))/BN$199","v":0.25},0.2,0.41176470588235292,0.3235294117647059,0.48484848484848486,0.33333333333333331,0.38235294117647056,0.48571428571428571,0.31428571428571428,8.3333333333333329E-2,0.2,0.17142857142857143,0.11428571428571428,0.22222222222222221,2.8571428571428571E-2,0.11428571428571428,0.21212121212121213,0.18181818181818182,0.38235294117647056,0.1111111111111111,0.2,8.5714285714285715E-2,0.14285714285714285,0.16666666666666666,8.5714285714285715E-2,0.17647058823529413,0.21212121212121213,0.15151515151515152,0.38235294117647056,5.7142857142857141E-2,5.8823529411764705E-2,0.11764705882352941,{"$f":"(COUNTIFS(CT$3:CT$194,2,ID_HDIG,3))/CT$199","v":0.17647058823529413},0.17142857142857143,0.35294117647058826,0.21875,0.21875,0.21875,0.21212121212121213,0.1875,0.125,0.25,0.27272727272727271,0.1875,0.1875,0.28125,0.27272727272727271,0.15625,0.15625,0.28125,0.21212121212121213,null,null,{"$f":"(COUNTIFS(DO$3:DO$194,2,ID_HDIG,3))/DO$199","v":8.3333333333333329E-2},0,0.1111111111111111,0.22857142857142856,0.17142857142857143,0.11764705882352941,0.17142857142857143,8.5714285714285715E-2,0.11428571428571428,5.8823529411764705E-2,0.11428571428571428,5.8823529411764705E-2,0.11428571428571428,5.7142857142857141E-2,0.17142857142857143,2.9411764705882353E-2,5.7142857142857141E-2,2.8571428571428571E-2,2.7777777777777776E-2,8.3333333333333329E-2,0.1388888888888889,5.7142857142857141E-2,0.1111111111111111,5.7142857142857141E-2,2.7777777777777776E-2,5.5555555555555552E-2,5.5555555555555552E-2,5.7142857142857141E-2,0.2857142857142857,5.5555555555555552E-2,2.8571428571428571E-2,5.5555555555555552E-2,{"$f":"(COUNTIFS(EU$3:EU$194,2,ID_HDIG,3))/EU$199","v":5.7142857142857141E-2},0.11428571428571428,2.8571428571428571E-2,0,2.7777777777777776E-2,2.7777777777777776E-2,5.5555555555555552E-2,2.7777777777777776E-2,2.8571428571428571E-2,2.7777777777777776E-2,0.14285714285714285,0.14705882352941177,0.12121212121212122,0.12121212121212122,0.15151515151515152,2.8571428571428571E-2,0.11428571428571428,5.7142857142857141E-2,0.12121212121212122,8.5714285714285715E-2,2.8571428571428571E-2,5.7142857142857141E-2,5.7142857142857141E-2,8.3333333333333329E-2,0.1111111111111111,5.5555555555555552E-2,2.8571428571428571E-2,0.1111111111111111]
["High HD: % of responses as 3",{"$f":"(COUNTIFS(B$3:B$194,3,ID_HDIG,3))/B$199","v":8.3333333333333329E-2},{"$f":"(COUNTIFS(C$3:C$194,3,ID_HDIG,3))/C$199","v":0.1111111111111111},{"$f":"(COUNTIFS(D$3:D$194,3,ID_HDIG,3))/D$199","v":0.1388888888888889},{"$f":"(COUNTIFS(E$3:E$194,3,ID_HDIG,3))/E$199","v":5.7142857142857141E-2},{"$f":"(COUNTIFS(F$3:F$194,3,ID_HDIG,3))/F$199","v":0.16666666666666666},8.5714285714285715E-2,0.14285714285714285,0.14285714285714285,8.8235294117647065E-2,0.14285714285714285,0.14285714285714285,0.14705882352941177,0.34285714285714286,0.17647058823529413,0.30303030303030304,0.12121212121212122,0.15151515151515152,0.17647058823529413,5.7142857142857141E-2,0,2.7777777777777776E-2,0.11428571428571428,0,8.3333333333333329E-2,2.7777777777777776E-2,2.8571428571428571E-2,8.3333333333333329E-2,8.3333333333333329E-2,0.16666666666666666,0.19444444444444445,0.1388888888888889,5.5555555555555552E-2,{"$f":"(COUNTIFS(AH$3:AH$194,3,ID_HDIG,3))/AH$199","v":5.7142857142857141E-2},0.16666666666666666,0.16666666666666666,0.16666666666666666,0.1111111111111111,0.16666666666666666,0.1111111111111111,8.3333333333333329E-2,2.7777777777777776E-2,8.3333333333333329E-2,0.1111111111111111,0.11428571428571428,8.5714285714285715E-2,2.7777777777777776E-2,0.11764705882352941,8.8235294117647065E-2,0.23529411764705882,0.2,8.5714285714285715E-2,5.7142857142857141E-2,8.3333333333333329E-2,0.1111111111111111,0.17647058823529413,5.7142857142857141E-2,8.5714285714285715E-2,0.1388888888888889,5.5555555555555552E-2,2.8571428571428571E-2,2.7777777777777776E-2,0.11428571428571428,0.1388888888888889,0.11428571428571428,{"$f":"(COUNTIFS(BN$3:BN$194,3,ID_HDIG,3))/BN$199","v":0.1388888888888889},5.7142857142857141E-2,0.11764705882352941,0.14705882352941177,3.0303030303030304E-2,0.15151515151515152,0.20588235294117646,0.11428571428571428,0.22857142857142856,0.16666666666666666,0.14285714285714285,8.5714285714285715E-2,5.7142857142857141E-2,5.5555555555555552E-2,0.11428571428571428,8.5714285714285715E-2,3.0303030303030304E-2,9.0909090909090912E-2,2.9411764705882353E-2,8.3333333333333329E-2,0.11428571428571428,8.5714285714285715E-2,2.8571428571428571E-2,2.7777777777777776E-2,5.7142857142857141E-2,5.8823529411764705E-2,0.12121212121212122,0.15151515151515152,5.8823529411764705E-2,0.11428571428571428,8.8235294117647065E-2,0.11764705882352941,{"$f":"(COUNTIFS(CT$3:CT$194,3,ID_HDIG,3))/CT$199","v":5.8823529411764705E-2},8.5714285714285715E-2,5.8823529411764705E-2,0.375,0.46875,0.4375,0.45454545454545453,0.4375,0.5,0.40625,0.39393939393939392,0.5,0.4375,0.3125,0.45454545454545453,0.40625,0.40625,0.375,0.42424242424242425,null,null,{"$f":"(COUNTIFS(DO$3:DO$194,3,ID_HDIG,3))/DO$199","v":0.22222222222222221},0.19444444444444445,0.44444444444444442,0.17142857142857143,0.34285714285714286,0.23529411764705882,0.14285714285714285,0.2,0.2857142857142857,0.23529411764705882,8.5714285714285715E-2,0.17647058823529413,0.17142857142857143,0.14285714285714285,0.2857142857142857,0.38235294117647056,0.4,0.11428571428571428,0.25,0.22222222222222221,0.27777777777777779,0.34285714285714286,0.16666666666666666,0.37142857142857144,0.16666666666666666,0.22222222222222221,0.27777777777777779,0.22857142857142856,0.4,0.30555555555555558,0.14285714285714285,0.19444444444444445,{"$f":"(COUNTIFS(EU$3:EU$194,3,ID_HDIG,3))/EU$199","v":0.2857142857142857},0.2,5.7142857142857141E-2,8.3333333333333329E-2,5.5555555555555552E-2,8.3333333333333329E-2,0.30555555555555558,0.1111111111111111,0.34285714285714286,0.1388888888888889,0.17142857142857143,0.20588235294117646,0.27272727272727271,0.27272727272727271,0.33333333333333331,8.5714285714285715E-2,0.17142857142857143,0.11428571428571428,0.21212121212121213,0.17142857142857143,0.11428571428571428,0.17142857142857143,0.14285714285714285,0.1111111111111111,0.22222222222222221,0.19444444444444445,0.14285714285714285,0.22222222222222221]
["High HD: % of responses as 4",{"$f":"(COUNTIFS(B$3:B$194,4,ID_HDIG,3))/B$199","v":0.22222222222222221},{"$f":"(COUNTIFS(C$3:C$194,4,ID_HDIG,3))/C$199","v":0.19444444444444445},{"$f":"(COUNTIFS(D$3:D$194,4,ID_HDIG,3))/D$199","v":0.1388888888888889},{"$f":"(COUNTIFS(E$3:E$194,4,ID_HDIG,3))/E$199","v":0.11428571428571428},{"$f":"(COUNTIFS(F$3:F$194,4,ID_HDIG,3))/F$199","v":0.1111111111111111},8.5714285714285715E-2,0.11428571428571428,0.14285714285714285,0.14705882352941177,0.2,0.34285714285714286,0.29411764705882354,8.5714285714285715E-2,0.11764705882352941,0.18181818181818182,0.12121212121212122,0.12121212121212122,0.17647058823529413,0.14285714285714285,0.25,0.1388888888888889,0.22857142857142856,8.3333333333333329E-2,0.22222222222222221,0.1388888888888889,0.14285714285714285,0.19444444444444445,0.3611111111111111,0.27777777777777779,0.19444444444444445,0.16666666666666666,0.16666666666666666,{"$f":"(COUNTIFS(AH$3:AH$194,4,ID_HDIG,3))/AH$199","v":0.22857142857142856},0.22222222222222221,0.19444444444444445,0.30555555555555558,0.27777777777777779,0.27777777777777779,0.30555555555555558,0.25,0.19444444444444445,0.25,0.25,0.22857142857142856,0.17142857142857143,0.22222222222222221,0.11764705882352941,0.17647058823529413,0.20588235294117646,0.2,0.2,0.22857142857142856,0.25,0.30555555555555558,0.14705882352941177,0.17142857142857143,0.22857142857142856,8.3333333333333329E-2,0.16666666666666666,0.17142857142857143,0.30555555555555558,0.25714285714285712,0.30555555555555558,0.37142857142857144,{"$f":"(COUNTIFS(BN$3:BN$194,4,ID_HDIG,3))/BN$199","v":0.25},0.42857142857142855,0.26470588235294118,0.20588235294117646,0.24242424242424243,0.27272727272727271,0.23529411764705882,0.17142857142857143,0.14285714285714285,0.30555555555555558,0.2857142857142857,0.14285714285714285,0.34285714285714286,0.27777777777777779,0.17142857142857143,0.37142857142857144,0.15151515151515152,0.33333333333333331,0.14705882352941177,0.27777777777777779,0.31428571428571428,0.2857142857142857,0.31428571428571428,0.27777777777777779,0.31428571428571428,0.38235294117647056,6.0606060606060608E-2,0.15151515151515152,0.20588235294117646,0.6,0.61764705882352944,0.58823529411764708,{"$f":"(COUNTIFS(CT$3:CT$194,4,ID_HDIG,3))/CT$199","v":0.38235294117647056},0.6,0.26470588235294118,0.3125,0.21875,0.125,0.24242424242424243,0.25,0.25,0.15625,0.27272727272727271,0.25,0.28125,0.21875,0.21212121212121213,0.21875,0.34375,0.21875,0.24242424242424243,null,null,{"$f":"(COUNTIFS(DO$3:DO$194,4,ID_HDIG,3))/DO$199","v":0.5},0.19444444444444445,0.33333333333333331,0.2857142857142857,0.2857142857142857,0.44117647058823528,0.4,0.51428571428571423,0.4,0.3235294117647059,0.48571428571428571,0.38235294117647056,0.37142857142857144,0.2857142857142857,0.37142857142857144,0.35294117647058826,0.42857142857142855,0.42857142857142855,0.22222222222222221,0.27777777777777779,0.3888888888888889,0.31428571428571428,0.33333333333333331,0.17142857142857143,0.61111111111111116,0.47222222222222221,0.3888888888888889,0.37142857142857144,0.22857142857142856,0.47222222222222221,0.65714285714285714,0.55555555555555558,{"$f":"(COUNTIFS(EU$3:EU$194,4,ID_HDIG,3))/EU$199","v":0.45714285714285713},0.37142857142857144,0.54285714285714282,0.61111111111111116,0.52777777777777779,0.55555555555555558,0.41666666666666669,0.52777777777777779,0.31428571428571428,0.52777777777777779,0.45714285714285713,0.47058823529411764,0.30303030303030304,0.45454545454545453,0.48484848484848486,0.65714285714285714,0.45714285714285713,0.5714285714285714,0.45454545454545453,0.4,0.51428571428571423,0.42857142857142855,0.37142857142857144,0.55555555555555558,0.44444444444444442,0.3888888888888889,0.42857142857142855,0.44444444444444442]
["High HD: % of responses as 5",{"$f":"(COUNTIFS(B$3:B$194,5,ID_HDIG,3))/B$199","v":0.3611111111111111},{"$f":"(COUNTIFS(C$3:C$194,5,ID_HDIG,3))/C$199","v":0.1111111111111111},{"$f":"(COUNTIFS(D$3:D$194,5,ID_HDIG,3))/D$199","v":0.19444444444444445},{"$f":"(COUNTIFS(E$3:E$194,5,ID_HDIG,3))/E$199","v":0.14285714285714285},{"$f":"(COUNTIFS(F$3:F$194,5,ID_HDIG,3))/F$199","v":0.25},5.7142857142857141E-2,0.17142857142857143,0.17142857142857143,0.14705882352941177,0.31428571428571428,0.25714285714285712,0.20588235294117646,0.17142857142857143,0.23529411764705882,0.24242424242424243,0.15151515151515152,0.15151515151515152,0.20588235294117646,0.25714285714285712,0.1388888888888889,0.1388888888888889,0.25714285714285712,0.1111111111111111,0.22222222222222221,0.22222222222222221,0.25714285714285712,0.33333333333333331,0.30555555555555558,0.30555555555555558,0.16666666666666666,0.25,0.16666666666666666,{"$f":"(COUNTIFS(AH$3:AH$194,5,ID_HDIG,3))/AH$199","v":0.14285714285714285},0.22222222222222221,0.16666666666666666,0.19444444444444445,0.16666666666666666,0.22222222222222221,0.19444444444444445,0.25,0.25,0.16666666666666666,0.22222222222222221,8.5714285714285715E-2,0.25714285714285712,0.27777777777777779,0.17647058823529413,0.20588235294117646,0.11764705882352941,0.2,0.25714285714285712,0.11428571428571428,0.33333333333333331,0.27777777777777779,0.29411764705882354,0.2857142857142857,0.11428571428571428,0.3888888888888889,0.55555555555555558,0.42857142857142855,0.5,0.22857142857142856,0.3611111111111111,0.17142857142857143,{"$f":"(COUNTIFS(BN$3:BN$194,5,ID_HDIG,3))/BN$199","v":0.27777777777777779},0.17142857142857143,0.14705882352941177,0.20588235294117646,0.12121212121212122,0.18181818181818182,0.11764705882352941,2.8571428571428571E-2,0.14285714285714285,0.3888888888888889,0.31428571428571428,0.34285714285714286,0.34285714285714286,0.30555555555555558,0.6,0.37142857142857144,0.15151515151515152,9.0909090909090912E-2,0.17647058823529413,0.3611111111111111,0.25714285714285712,0.2,0.2857142857142857,0.33333333333333331,0.42857142857142855,0.35294117647058826,0.18181818181818182,6.0606060606060608E-2,8.8235294117647065E-2,0.14285714285714285,0.14705882352941177,0.14705882352941177,{"$f":"(COUNTIFS(CT$3:CT$194,5,ID_HDIG,3))/CT$199","v":0.17647058823529413},2.8571428571428571E-2,2.9411764705882353E-2,6.25E-2,9.375E-2,0.125,9.0909090909090912E-2,3.125E-2,3.125E-2,9.375E-2,3.0303030303030304E-2,3.125E-2,3.125E-2,9.375E-2,3.0303030303030304E-2,0.1875,6.25E-2,6.25E-2,0.12121212121212122,null,null,{"$f":"(COUNTIFS(DO$3:DO$194,5,ID_HDIG,3))/DO$199","v":0.16666666666666666},0.58333333333333337,2.7777777777777776E-2,0.14285714285714285,8.5714285714285715E-2,0.20588235294117646,0.25714285714285712,0.17142857142857143,0.11428571428571428,0.20588235294117646,0.25714285714285712,0.29411764705882354,0.25714285714285712,0.48571428571428571,0.17142857142857143,0.20588235294117646,0.11428571428571428,0.42857142857142855,0.44444444444444442,0.3888888888888889,0.19444444444444445,0.2857142857142857,0.33333333333333331,0.34285714285714286,0.19444444444444445,0.1388888888888889,5.5555555555555552E-2,2.8571428571428571E-2,0,0.1388888888888889,8.5714285714285715E-2,0.19444444444444445,{"$f":"(COUNTIFS(EU$3:EU$194,5,ID_HDIG,3))/EU$199","v":0.11428571428571428},0.31428571428571428,0.34285714285714286,0.25,0.33333333333333331,0.27777777777777779,0.19444444444444445,0.30555555555555558,0.31428571428571428,0.27777777777777779,0.14285714285714285,0.11764705882352941,0.21212121212121213,9.0909090909090912E-2,0,8.5714285714285715E-2,0.22857142857142856,0.17142857142857143,0.18181818181818182,0.2857142857142857,0.22857142857142856,0.25714285714285712,0.34285714285714286,0.16666666666666666,0.16666666666666666,0.30555555555555558,0.37142857142857144,0.19444444444444445]
["High HD: % of responses as 6",{"$f":"(COUNTIFS(B$3:B$194,6,ID_HDIG,3))/B$199","v":0.1111111111111111},{"$f":"(COUNTIFS(C$3:C$194,6,ID_HDIG,3))/C$199","v":2.7777777777777776E-2},{"$f":"(COUNTIFS(D$3:D$194,6,ID_HDIG,3))/D$199","v":0.27777777777777779},{"$f":"(COUNTIFS(E$3:E$194,6,ID_HDIG,3))/E$199","v":0},{"$f":"(COUNTIFS(F$3:F$194,6,ID_HDIG,3))/F$199","v":5.5555555555555552E-2},0,2.8571428571428571E-2,0,2.9411764705882353E-2,0,0,0,2.8571428571428571E-2,2.9411764705882353E-2,3.0303030303030304E-2,3.0303030303030304E-2,0,2.9411764705882353E-2,5.7142857142857141E-2,0.1388888888888889,0.16666666666666666,8.5714285714285715E-2,8.3333333333333329E-2,5.5555555555555552E-2,5.5555555555555552E-2,2.8571428571428571E-2,0.1388888888888889,8.3333333333333329E-2,0.1111111111111111,8.3333333333333329E-2,8.3333333333333329E-2,5.5555555555555552E-2,{"$f":"(COUNTIFS(AH$3:AH$194,6,ID_HDIG,3))/AH$199","v":2.8571428571428571E-2},2.7777777777777776E-2,0,0,0,5.5555555555555552E-2,8.3333333333333329E-2,2.7777777777777776E-2,8.3333333333333329E-2,0.19444444444444445,8.3333333333333329E-2,2.8571428571428571E-2,5.7142857142857141E-2,5.5555555555555552E-2,5.8823529411764705E-2,2.9411764705882353E-2,2.9411764705882353E-2,5.7142857142857141E-2,2.8571428571428571E-2,0,5.5555555555555552E-2,5.5555555555555552E-2,0,2.8571428571428571E-2,0,0.25,0.1111111111111111,8.5714285714285715E-2,8.3333333333333329E-2,5.7142857142857141E-2,5.5555555555555552E-2,2.8571428571428571E-2,{"$f":"(COUNTIFS(BN$3:BN$194,6,ID_HDIG,3))/BN$199","v":8.3333333333333329E-2},0.11428571428571428,5.8823529411764705E-2,2.9411764705882353E-2,0,6.0606060606060608E-2,2.9411764705882353E-2,0,5.7142857142857141E-2,2.7777777777777776E-2,2.8571428571428571E-2,8.5714285714285715E-2,8.5714285714285715E-2,2.7777777777777776E-2,8.5714285714285715E-2,2.8571428571428571E-2,6.0606060606060608E-2,6.0606060606060608E-2,0,8.3333333333333329E-2,2.8571428571428571E-2,0.11428571428571428,0.11428571428571428,5.5555555555555552E-2,0.11428571428571428,2.9411764705882353E-2,3.0303030303030304E-2,6.0606060606060608E-2,2.9411764705882353E-2]
["Very High HD: % of responses as 1",{"$f":"(COUNTIFS(B$3:B$194,1,ID_HDIG,4))/B$200","v":0},{"$f":"(COUNTIFS(C$3:C$194,1,ID_HDIG,4))/C$200","v":0.25},{"$f":"(COUNTIFS(D$3:D$194,1,ID_HDIG,4))/D$200","v":0},{"$f":"(COUNTIFS(E$3:E$194,1,ID_HDIG,4))/E$200","v":0.5161290322580645},{"$f":"(COUNTIFS(F$3:F$194,1,ID_HDIG,4))/F$200","v":3.2258064516129031E-2},0.41935483870967744,9.0909090909090912E-2,0,0.7,3.0303030303030304E-2,0.42424242424242425,0.25,6.0606060606060608E-2,0.24242424242424243,0.12903225806451613,0.63636363636363635,0.21875,6.25E-2,0.21212121212121213,0.18181818181818182,9.0909090909090912E-2,5.8823529411764705E-2,0.12121212121212122,8.8235294117647065E-2,0.17647058823529413,0.4,0,0,2.9411764705882353E-2,8.8235294117647065E-2,8.8235294117647065E-2,0.11764705882352941,{"$f":"(COUNTIFS(AH$3:AH$194,1,ID_HDIG,4))/AH$200","v":0.5161290322580645},0.11764705882352941,0.1875,0.11764705882352941,0.19354838709677419,0.12121212121212122,6.0606060606060608E-2,0,2.9411764705882353E-2,0,3.125E-2,0.12121212121212122,5.8823529411764705E-2,5.8823529411764705E-2,0.11764705882352941,0.18181818181818182,0.125,0.12121212121212122,6.0606060606060608E-2,0.30303030303030304,0,2.9411764705882353E-2,8.8235294117647065E-2,0.18181818181818182,2.9411764705882353E-2,8.8235294117647065E-2,0,2.9411764705882353E-2,0,2.9411764705882353E-2,0,6.0606060606060608E-2,{"$f":"(COUNTIFS(BN$3:BN$194,1,ID_HDIG,4))/BN$200","v":0},5.8823529411764705E-2,2.9411764705882353E-2,9.0909090909090912E-2,0.11764705882352941,2.9411764705882353E-2,3.0303030303030304E-2,0.32258064516129031,3.0303030303030304E-2,9.0909090909090912E-2,0.45454545454545453,0.2,0.15151515151515152,8.8235294117647065E-2,3.0303030303030304E-2,3.0303030303030304E-2,0.6470588235294118,0.39393939393939392,6.0606060606060608E-2,0.11764705882352941,0.5,0.26666666666666666,8.8235294117647065E-2,5.8823529411764705E-2,6.0606060606060608E-2,5.8823529411764705E-2,0.67647058823529416,0.45454545454545453,0.15151515151515152,0.12903225806451613,9.6774193548387094E-2,0.125,{"$f":"(COUNTIFS(CT$3:CT$194,1,ID_HDIG,4))/CT$200","v":0.21212121212121213},0.11764705882352941,0.32258064516129031,3.2258064516129031E-2,0.16666666666666666,0,0.10714285714285714,9.6774193548387094E-2,0.16666666666666666,0,0.10714285714285714,6.4516129032258063E-2,0.13333333333333333,0,0.14285714285714285,3.2258064516129031E-2,6.6666666666666666E-2,0,0.10714285714285714,null,null,{"$f":"(COUNTIFS(DO$3:DO$194,1,ID_HDIG,4))/DO$200","v":0.20588235294117646},0.14705882352941177,0.20588235294117646,0.15151515151515152,0.11764705882352941,0.21212121212121213,0.15151515151515152,0.18181818181818182,0.27272727272727271,0.24242424242424243,9.375E-2,9.375E-2,8.8235294117647065E-2,8.8235294117647065E-2,0.15151515151515152,3.0303030303030304E-2,3.0303030303030304E-2,3.125E-2,2.9411764705882353E-2,3.0303030303030304E-2,2.9411764705882353E-2,2.9411764705882353E-2,8.8235294117647065E-2,2.9411764705882353E-2,0.26470588235294118,0.3125,0.36363636363636365,0.4375,0.21875,0.12121212121212122,9.0909090909090912E-2,5.8823529411764705E-2,{"$f":"(COUNTIFS(EU$3:EU$194,1,ID_HDIG,4))/EU$200","v":0.12121212121212122},0.21212121212121213,0.12121212121212122,9.0909090909090912E-2,0.12121212121212122,8.8235294117647065E-2,8.8235294117647065E-2,2.9411764705882353E-2,2.9411764705882353E-2,5.8823529411764705E-2,5.8823529411764705E-2,3.0303030303030304E-2,3.125E-2,3.2258064516129031E-2,0,3.0303030303030304E-2,3.0303030303030304E-2,2.9411764705882353E-2,3.0303030303030304E-2,5.8823529411764705E-2,2.9411764705882353E-2,3.125E-2,3.125E-2,2.9411764705882353E-2,2.9411764705882353E-2,0,2.9411764705882353E-2,0]
["Very High HD: % of responses as 2",{"$f":"(COUNTIFS(B$3:B$194,2,ID_HDIG,4))/B$200","v":3.0303030303030304E-2},{"$f":"(COUNTIFS(C$3:C$194,2,ID_HDIG,4))/C$200","v":6.25E-2},{"$f":"(COUNTIFS(D$3:D$194,2,ID_HDIG,4))/D$200","v":2.9411764705882353E-2},{"$f":"(COUNTIFS(E$3:E$194,2,ID_HDIG,4))/E$200","v":0},{"$f":"(COUNTIFS(F$3:F$194,2,ID_HDIG,4))/F$200","v":0.12903225806451613},6.4516129032258063E-2,0.18181818181818182,0.22580645161290322,0.1,3.0303030303030304E-2,6.0606060606060608E-2,6.25E-2,0.24242424242424243,9.0909090909090912E-2,0.12903225806451613,9.0909090909090912E-2,0.15625,0.15625,0.12121212121212122,9.0909090909090912E-2,3.0303030303030304E-2,2.9411764705882353E-2,0,8.8235294117647065E-2,2.9411764705882353E-2,0,5.8823529411764705E-2,5.8823529411764705E-2,8.8235294117647065E-2,5.8823529411764705E-2,0.11764705882352941,8.8235294117647065E-2,{"$f":"(COUNTIFS(AH$3:AH$194,2,ID_HDIG,4))/AH$200","v":3.2258064516129031E-2},0.11764705882352941,6.25E-2,0.11764705882352941,6.4516129032258063E-2,9.0909090909090912E-2,3.0303030303030304E-2,3.0303030303030304E-2,5.8823529411764705E-2,0,3.125E-2,0.15151515151515152,5.8823529411764705E-2,8.8235294117647065E-2,0.17647058823529413,0.18181818181818182,3.125E-2,0.18181818181818182,0.15151515151515152,0.12121212121212122,6.0606060606060608E-2,5.8823529411764705E-2,0.17647058823529413,6.0606060606060608E-2,5.8823529411764705E-2,2.9411764705882353E-2,2.9411764705882353E-2,0,0,0,0,6.0606060606060608E-2,{"$f":"(COUNTIFS(BN$3:BN$194,2,ID_HDIG,4))/BN$200","v":5.8823529411764705E-2},2.9411764705882353E-2,5.8823529411764705E-2,3.0303030303030304E-2,0.17647058823529413,2.9411764705882353E-2,6.0606060606060608E-2,0.12903225806451613,6.0606060606060608E-2,6.0606060606060608E-2,6.0606060606060608E-2,6.6666666666666666E-2,6.0606060606060608E-2,0.14705882352941177,0,0,2.9411764705882353E-2,0.18181818181818182,0.18181818181818182,8.8235294117647065E-2,0,6.6666666666666666E-2,8.8235294117647065E-2,0.14705882352941177,0,0,2.9411764705882353E-2,0.12121212121212122,0.15151515151515152,9.6774193548387094E-2,0.61290322580645162,0.5625,{"$f":"(COUNTIFS(CT$3:CT$194,2,ID_HDIG,4))/CT$200","v":0.18181818181818182},5.8823529411764705E-2,0.29032258064516131,0.12903225806451613,6.6666666666666666E-2,3.2258064516129031E-2,3.5714285714285712E-2,6.4516129032258063E-2,6.6666666666666666E-2,3.2258064516129031E-2,7.1428571428571425E-2,0.12903225806451613,0.13333333333333333,3.2258064516129031E-2,3.5714285714285712E-2,9.6774193548387094E-2,3.3333333333333333E-2,9.6774193548387094E-2,3.5714285714285712E-2,null,null,{"$f":"(COUNTIFS(DO$3:DO$194,2,ID_HDIG,4))/DO$200","v":0.23529411764705882},0.14705882352941177,0.11764705882352941,0.24242424242424243,8.8235294117647065E-2,9.0909090909090912E-2,0.12121212121212122,0.18181818181818182,0.18181818181818182,0.18181818181818182,6.25E-2,9.375E-2,0.11764705882352941,0.20588235294117646,3.0303030303030304E-2,6.0606060606060608E-2,3.0303030303030304E-2,0.125,0,0,0,0,0.14705882352941177,0.11764705882352941,0.17647058823529413,0.125,0.15151515151515152,0.15625,0.15625,6.0606060606060608E-2,3.0303030303030304E-2,5.8823529411764705E-2,{"$f":"(COUNTIFS(EU$3:EU$194,2,ID_HDIG,4))/EU$200","v":0.12121212121212122},9.0909090909090912E-2,3.0303030303030304E-2,9.0909090909090912E-2,3.0303030303030304E-2,5.8823529411764705E-2,5.8823529411764705E-2,0.14705882352941177,8.8235294117647065E-2,8.8235294117647065E-2,5.8823529411764705E-2,9.0909090909090912E-2,3.125E-2,6.4516129032258063E-2,9.375E-2,6.0606060606060608E-2,0,0,3.0303030303030304E-2,5.8823529411764705E-2,5.8823529411764705E-2,6.25E-2,9.375E-2,2.9411764705882353E-2,2.9411764705882353E-2,5.8823529411764705E-2,2.9411764705882353E-2,2.9411764705882353E-2]
["Very High HD: % of responses as 3",{"$f":"(COUNTIFS(B$3:B$194,3,ID_HDIG,4))/B$200","v":3.0303030303030304E-2},{"$f":"(COUNTIFS(C$3:C$194,3,ID_HDIG,4))/C$200","v":3.125E-2},{"$f":"(COUNTIFS(D$3:D$194,3,ID_HDIG,4))/D$200","v":0},{"$f":"(COUNTIFS(E$3:E$194,3,ID_HDIG,4))/E$200","v":0},{"$f":"(COUNTIFS(F$3:F$194,3,ID_HDIG,4))/F$200","v":3.2258064516129031E-2},9.6774193548387094E-2,0.12121212121212122,6.4516129032258063E-2,0,6.0606060606060608E-2,0,9.375E-2,0.15151515151515152,6.0606060606060608E-2,9.6774193548387094E-2,3.0303030303030304E-2,3.125E-2,0.125,3.0303030303030304E-2,9.0909090909090912E-2,3.0303030303030304E-2,0,0,0,0.11764705882352941,0,0,0,0,2.9411764705882353E-2,2.9411764705882353E-2,2.9411764705882353E-2,{"$f":"(COUNTIFS(AH$3:AH$194,3,ID_HDIG,4))/AH$200","v":3.2258064516129031E-2},5.8823529411764705E-2,6.25E-2,0,3.2258064516129031E-2,0,0,0,2.9411764705882353E-2,0,0,3.0303030303030304E-2,2.9411764705882353E-2,2.9411764705882353E-2,2.9411764705882353E-2,9.0909090909090912E-2,6.25E-2,9.0909090909090912E-2,3.0303030303030304E-2,0.12121212121212122,3.0303030303030304E-2,5.8823529411764705E-2,0.20588235294117646,9.0909090909090912E-2,5.8823529411764705E-2,2.9411764705882353E-2,2.9411764705882353E-2,2.9411764705882353E-2,2.9411764705882353E-2,2.9411764705882353E-2,2.9411764705882353E-2,6.0606060606060608E-2,{"$f":"(COUNTIFS(BN$3:BN$194,3,ID_HDIG,4))/BN$200","v":2.9411764705882353E-2},5.8823529411764705E-2,0,0,2.9411764705882353E-2,2.9411764705882353E-2,0,0,3.0303030303030304E-2,0,3.0303030303030304E-2,3.3333333333333333E-2,0,0,0,0,0,0,6.0606060606060608E-2,0,6.25E-2,3.3333333333333333E-2,2.9411764705882353E-2,0,3.0303030303030304E-2,0,0,3.0303030303030304E-2,0,0.16129032258064516,0,6.25E-2,{"$f":"(COUNTIFS(CT$3:CT$194,3,ID_HDIG,4))/CT$200","v":3.0303030303030304E-2},0,0,0.29032258064516131,0.33333333333333331,0.16129032258064516,0.21428571428571427,0.45161290322580644,0.43333333333333335,0.22580645161290322,0.35714285714285715,0.45161290322580644,0.33333333333333331,9.6774193548387094E-2,0.21428571428571427,0.29032258064516131,0.36666666666666664,9.6774193548387094E-2,0.21428571428571427,null,null,{"$f":"(COUNTIFS(DO$3:DO$194,3,ID_HDIG,4))/DO$200","v":0.20588235294117646},0.17647058823529413,0.41176470588235292,0.30303030303030304,0.26470588235294118,0.33333333333333331,0.27272727272727271,0.18181818181818182,0.24242424242424243,0.27272727272727271,0.40625,0.375,0.38235294117647056,0.23529411764705882,0.45454545454545453,0.42424242424242425,0.27272727272727271,0.34375,0.17647058823529413,0.33333333333333331,0.47058823529411764,0.41176470588235292,0.11764705882352941,0.11764705882352941,8.8235294117647065E-2,0.15625,0.24242424242424243,0.1875,0.53125,0.33333333333333331,0.33333333333333331,0.3235294117647059,{"$f":"(COUNTIFS(EU$3:EU$194,3,ID_HDIG,4))/EU$200","v":0.42424242424242425},0.21212121212121213,0.24242424242424243,0.27272727272727271,0.27272727272727271,0.20588235294117646,0.3235294117647059,0.23529411764705882,0.26470588235294118,0.26470588235294118,0.17647058823529413,0.24242424242424243,0.53125,0.5161290322580645,0.40625,9.0909090909090912E-2,9.0909090909090912E-2,0.14705882352941177,0.24242424242424243,0.17647058823529413,0.20588235294117646,0.15625,0.21875,0.11764705882352941,0.17647058823529413,0.17647058823529413,8.8235294117647065E-2,0.23529411764705882]
["Very High HD: % of responses as 4",{"$f":"(COUNTIFS(B$3:B$194,4,ID_HDIG,4))/B$200","v":6.0606060606060608E-2},{"$f":"(COUNTIFS(C$3:C$194,4,ID_HDIG,4))/C$200","v":9.375E-2},{"$f":"(COUNTIFS(D$3:D$194,4,ID_HDIG,4))/D$200","v":2.9411764705882353E-2},{"$f":"(COUNTIFS(E$3:E$194,4,ID_HDIG,4))/E$200","v":6.4516129032258063E-2},{"$f":"(COUNTIFS(F$3:F$194,4,ID_HDIG,4))/F$200","v":0.12903225806451613},0.16129032258064516,0.12121212121212122,6.4516129032258063E-2,3.3333333333333333E-2,0.24242424242424243,0.15151515151515152,0.125,0.27272727272727271,6.0606060606060608E-2,0.12903225806451613,6.0606060606060608E-2,0.125,0.15625,6.0606060606060608E-2,6.0606060606060608E-2,6.0606060606060608E-2,0.11764705882352941,6.0606060606060608E-2,0.17647058823529413,8.8235294117647065E-2,0,2.9411764705882353E-2,0.17647058823529413,0.11764705882352941,8.8235294117647065E-2,5.8823529411764705E-2,8.8235294117647065E-2,{"$f":"(COUNTIFS(AH$3:AH$194,4,ID_HDIG,4))/AH$200","v":3.2258064516129031E-2},5.8823529411764705E-2,0.15625,5.8823529411764705E-2,0.12903225806451613,3.0303030303030304E-2,6.0606060606060608E-2,3.0303030303030304E-2,0.20588235294117646,5.8823529411764705E-2,0.15625,0.30303030303030304,0.17647058823529413,8.8235294117647065E-2,0.26470588235294118,6.0606060606060608E-2,0.21875,0.21212121212121213,0.27272727272727271,0.18181818181818182,9.0909090909090912E-2,8.8235294117647065E-2,0.23529411764705882,6.0606060606060608E-2,0.3235294117647059,0,0,8.8235294117647065E-2,0,0.11764705882352941,2.9411764705882353E-2,0.24242424242424243,{"$f":"(COUNTIFS(BN$3:BN$194,4,ID_HDIG,4))/BN$200","v":0.17647058823529413},0.17647058823529413,0.23529411764705882,0.27272727272727271,0.20588235294117646,0.17647058823529413,0.21212121212121213,0.12903225806451613,0.21212121212121213,6.0606060606060608E-2,0.12121212121212122,3.3333333333333333E-2,6.0606060606060608E-2,0.11764705882352941,3.0303030303030304E-2,9.0909090909090912E-2,0.14705882352941177,0.15151515151515152,0.21212121212121213,5.8823529411764705E-2,0.125,6.6666666666666666E-2,5.8823529411764705E-2,0.14705882352941177,9.0909090909090912E-2,8.8235294117647065E-2,8.8235294117647065E-2,0.15151515151515152,0.36363636363636365,0.4838709677419355,0.16129032258064516,0.15625,{"$f":"(COUNTIFS(CT$3:CT$194,4,ID_HDIG,4))/CT$200","v":0.48484848484848486},0.70588235294117652,0.29032258064516131,0.32258064516129031,0.26666666666666666,0.35483870967741937,0.42857142857142855,0.19354838709677419,0.23333333333333334,0.41935483870967744,0.32142857142857145,0.22580645161290322,0.36666666666666664,0.61290322580645162,0.5,0.29032258064516131,0.3,0.41935483870967744,0.35714285714285715,null,null,{"$f":"(COUNTIFS(DO$3:DO$194,4,ID_HDIG,4))/DO$200","v":0.29411764705882354},0.26470588235294118,0.20588235294117646,0.21212121212121213,0.44117647058823528,0.18181818181818182,0.30303030303030304,0.27272727272727271,0.12121212121212122,0.18181818181818182,0.21875,0.21875,0.20588235294117646,0.3235294117647059,0.21212121212121213,0.39393939393939392,0.30303030303030304,0.28125,0.41176470588235292,0.33333333333333331,0.23529411764705882,0.26470588235294118,0.38235294117647056,0.44117647058823528,0.3235294117647059,0.3125,0.12121212121212122,0.15625,0,0.36363636363636365,0.39393939393939392,0.38235294117647056,{"$f":"(COUNTIFS(EU$3:EU$194,4,ID_HDIG,4))/EU$200","v":0.24242424242424243},0.30303030303030304,0.42424242424242425,0.33333333333333331,0.33333333333333331,0.5,0.38235294117647056,0.44117647058823528,0.5,0.47058823529411764,0.38235294117647056,0.33333333333333331,0.3125,0.35483870967741937,0.3125,0.36363636363636365,0.48484848484848486,0.47058823529411764,0.36363636363636365,0.35294117647058826,0.29411764705882354,0.4375,0.3125,0.52941176470588236,0.47058823529411764,0.44117647058823528,0.44117647058823528,0.47058823529411764]
["Very High HD: % of responses as 5",{"$f":"(COUNTIFS(B$3:B$194,5,ID_HDIG,4))/B$200","v":0.42424242424242425},{"$f":"(COUNTIFS(C$3:C$194,5,ID_HDIG,4))/C$200","v":0.15625},{"$f":"(COUNTIFS(D$3:D$194,5,ID_HDIG,4))/D$200","v":0.23529411764705882},{"$f":"(COUNTIFS(E$3:E$194,5,ID_HDIG,4))/E$200","v":6.4516129032258063E-2},{"$f":"(COUNTIFS(F$3:F$194,5,ID_HDIG,4))/F$200","v":0.29032258064516131},9.6774193548387094E-2,0.30303030303030304,0.25806451612903225,6.6666666666666666E-2,0.27272727272727271,0.18181818181818182,0.21875,0.18181818181818182,0.39393939393939392,0.29032258064516131,0.12121212121212122,0.28125,0.3125,0.30303030303030304,0.21212121212121213,0.15151515151515152,0.26470588235294118,0.21212121212121213,0.29411764705882354,0.20588235294117646,0.13333333333333333,0.38235294117647056,0.44117647058823528,0.26470588235294118,0.23529411764705882,0.23529411764705882,0.29411764705882354,{"$f":"(COUNTIFS(AH$3:AH$194,5,ID_HDIG,4))/AH$200","v":0.12903225806451613},0.26470588235294118,0.1875,0.29411764705882354,0.22580645161290322,0.24242424242424243,0.24242424242424243,0.27272727272727271,0.17647058823529413,0.29411764705882354,0.21875,0.18181818181818182,0.20588235294117646,0.26470588235294118,0.11764705882352941,0.15151515151515152,0.21875,0.12121212121212122,0.21212121212121213,0.15151515151515152,0.24242424242424243,0.29411764705882354,0.14705882352941177,0.24242424242424243,0.3235294117647059,0.14705882352941177,0.14705882352941177,0.20588235294117646,0.20588235294117646,0.20588235294117646,0.29411764705882354,0.24242424242424243,{"$f":"(COUNTIFS(BN$3:BN$194,5,ID_HDIG,4))/BN$200","v":0.3235294117647059},0.29411764705882354,0.38235294117647056,0.39393939393939392,0.23529411764705882,0.35294117647058826,0.33333333333333331,0.32258064516129031,0.21212121212121213,0.24242424242424243,6.0606060606060608E-2,0.26666666666666666,0.27272727272727271,0.3235294117647059,0.33333333333333331,0.36363636363636365,5.8823529411764705E-2,0.12121212121212122,0.30303030303030304,0.26470588235294118,3.125E-2,0.16666666666666666,0.26470588235294118,0.20588235294117646,0.27272727272727271,0.29411764705882354,5.8823529411764705E-2,9.0909090909090912E-2,0.12121212121212122,0.12903225806451613,0.12903225806451613,9.375E-2,{"$f":"(COUNTIFS(CT$3:CT$194,5,ID_HDIG,4))/CT$200","v":9.0909090909090912E-2},0.11764705882352941,9.6774193548387094E-2,0.22580645161290322,0.16666666666666666,0.45161290322580644,0.21428571428571427,0.19354838709677419,0.1,0.32258064516129031,0.14285714285714285,0.12903225806451613,3.3333333333333333E-2,0.25806451612903225,0.10714285714285714,0.29032258064516131,0.23333333333333334,0.38709677419354838,0.2857142857142857,null,null,{"$f":"(COUNTIFS(DO$3:DO$194,5,ID_HDIG,4))/DO$200","v":5.8823529411764705E-2},0.26470588235294118,5.8823529411764705E-2,9.0909090909090912E-2,8.8235294117647065E-2,0.18181818181818182,0.15151515151515152,0.18181818181818182,0.18181818181818182,0.12121212121212122,0.21875,0.21875,0.20588235294117646,0.14705882352941177,0.15151515151515152,9.0909090909090912E-2,0.36363636363636365,0.21875,0.38235294117647056,0.30303030303030304,0.26470588235294118,0.29411764705882354,0.26470588235294118,0.29411764705882354,0.14705882352941177,9.375E-2,0.12121212121212122,6.25E-2,9.375E-2,0.12121212121212122,0.15151515151515152,0.17647058823529413,{"$f":"(COUNTIFS(EU$3:EU$194,5,ID_HDIG,4))/EU$200","v":9.0909090909090912E-2},0.18181818181818182,0.18181818181818182,0.21212121212121213,0.24242424242424243,0.14705882352941177,0.14705882352941177,0.14705882352941177,0.11764705882352941,0.11764705882352941,0.3235294117647059,0.30303030303030304,9.375E-2,3.2258064516129031E-2,0.1875,0.45454545454545453,0.39393939393939392,0.35294117647058826,0.33333333333333331,0.35294117647058826,0.41176470588235292,0.3125,0.34375,0.29411764705882354,0.29411764705882354,0.3235294117647059,0.41176470588235292,0.26470588235294118]
["Very High HD: % of responses as 6",{"$f":"(COUNTIFS(B$3:B$194,6,ID_HDIG,4))/B$200","v":0.45454545454545453},{"$f":"(COUNTIFS(C$3:C$194,6,ID_HDIG,4))/C$200","v":0.40625},{"$f":"(COUNTIFS(D$3:D$194,6,ID_HDIG,4))/D$200","v":0.70588235294117652},{"$f":"(COUNTIFS(E$3:E$194,6,ID_HDIG,4))/E$200","v":0.35483870967741937},{"$f":"(COUNTIFS(F$3:F$194,6,ID_HDIG,4))/F$200","v":0.38709677419354838},0.16129032258064516,0.18181818181818182,0.38709677419354838,0.1,0.36363636363636365,0.18181818181818182,0.25,9.0909090909090912E-2,0.15151515151515152,0.22580645161290322,6.0606060606060608E-2,0.1875,0.1875,0.27272727272727271,0.36363636363636365,0.63636363636363635,0.52941176470588236,0.60606060606060608,0.35294117647058826,0.38235294117647056,0.46666666666666667,0.52941176470588236,0.3235294117647059,0.5,0.5,0.47058823529411764,0.38235294117647056,{"$f":"(COUNTIFS(AH$3:AH$194,6,ID_HDIG,4))/AH$200","v":0.25806451612903225},0.38235294117647056,0.34375,0.41176470588235292,0.35483870967741937,0.51515151515151514,0.60606060606060608,0.66666666666666663,0.5,0.6470588235294118,0.5625,0.21212121212121213,0.47058823529411764,0.47058823529411764,0.29411764705882354,0.33333333333333331,0.34375,0.27272727272727271,0.27272727272727271,0.12121212121212122,0.5757575757575758,0.47058823529411764,0.14705882352941177,0.36363636363636365,0.20588235294117646,0.70588235294117652,0.79411764705882348,0.6470588235294118,0.76470588235294112,0.61764705882352944,0.6470588235294118,0.33333333333333331,{"$f":"(COUNTIFS(BN$3:BN$194,6,ID_HDIG,4))/BN$200","v":0.41176470588235292},0.38235294117647056,0.29411764705882354,0.21212121212121213,0.23529411764705882,0.38235294117647056,0.36363636363636365,9.6774193548387094E-2,0.45454545454545453,0.54545454545454541,0.27272727272727271,0.4,0.45454545454545453,0.3235294117647059,0.60606060606060608,0.51515151515151514,0.11764705882352941,0.15151515151515152,0.18181818181818182,0.47058823529411764,0.28125,0.4,0.47058823529411764,0.44117647058823528,0.54545454545454541,0.55882352941176472,0.14705882352941177,0.15151515151515152,0.21212121212121213]
["Global: % of responses as 1",{"$f":"(COUNTIF(B$3:B$194,1))/B$201","v":1.5267175572519083E-2},{"$f":"(COUNTIF(C$3:C$194,1))/C$201","v":0.3984375},{"$f":"(COUNTIF(D$3:D$194,1))/D$201","v":2.2900763358778626E-2},{"$f":"(COUNTIF(E$3:E$194,1))/E$201","v":0.55737704918032782},{"$f":"(COUNTIF(F$3:F$194,1))/F$201","v":2.3076923076923078E-2},0.40799999999999997,0.11538461538461539,0.104,0.23809523809523808,3.8167938931297711E-2,0.15267175572519084,9.3023255813953487E-2,3.0534351145038167E-2,0.109375,0.10317460317460317,0.36,0.1984126984126984,0.10236220472440945,0.16923076923076924,0.22900763358778625,0.13076923076923078,5.3846153846153849E-2,0.2265625,6.7669172932330823E-2,0.2,0.2125984251968504,0,2.2556390977443608E-2,1.5037593984962405E-2,0.11278195488721804,7.575757575757576E-2,0.14393939393939395,{"$f":"(COUNTIF(AH$3:AH$194,1))/AH$201","v":0.21875},4.5454545454545456E-2,0.13740458015267176,5.2631578947368418E-2,0.16153846153846155,6.0606060606060608E-2,7.6923076923076927E-2,9.2307692307692313E-2,3.8167938931297711E-2,3.0534351145038167E-2,2.3255813953488372E-2,0.14728682170542637,7.6923076923076927E-2,3.007518796992481E-2,0.12403100775193798,0.11538461538461539,0.14728682170542637,8.461538461538462E-2,8.461538461538462E-2,0.28225806451612906,4.6153846153846156E-2,3.0769230769230771E-2,3.0769230769230771E-2,0.18604651162790697,4.5801526717557252E-2,4.5112781954887216E-2,7.5187969924812026E-3,5.3435114503816793E-2,1.5151515151515152E-2,6.2992125984251968E-2,3.1007751937984496E-2,0.1111111111111111,{"$f":"(COUNTIF(BN$3:BN$194,1))/BN$201","v":1.5267175572519083E-2},6.8702290076335881E-2,5.3435114503816793E-2,0.11538461538461539,0.13178294573643412,2.3076923076923078E-2,6.9767441860465115E-2,0.27777777777777779,6.2015503875968991E-2,4.6153846153846156E-2,0.15267175572519084,0.11904761904761904,8.461538461538462E-2,7.575757575757576E-2,1.5503875968992248E-2,4.6875E-2,0.578125,0.2283464566929134,0.17054263565891473,6.0150375939849621E-2,0.18604651162790697,0.13492063492063491,8.5271317829457363E-2,7.6335877862595422E-2,2.3255813953488372E-2,6.1538461538461542E-2,0.5859375,0.28125,0.17054263565891473,0.16666666666666666,9.6774193548387094E-2,0.08,{"$f":"(COUNTIF(CT$3:CT$194,1))/CT$201","v":0.22222222222222221},0.1796875,0.43902439024390244,7.3770491803278687E-2,9.9173553719008267E-2,9.0163934426229511E-2,6.6666666666666666E-2,0.10655737704918032,0.14049586776859505,9.8360655737704916E-2,7.4999999999999997E-2,8.1967213114754092E-2,0.14049586776859505,0.10655737704918032,0.1,5.737704918032787E-2,6.6115702479338845E-2,8.1967213114754092E-2,5.8333333333333334E-2,null,null,{"$f":"(COUNTIF(DO$3:DO$194,1))/DO$201","v":6.9230769230769235E-2},4.5801526717557252E-2,8.461538461538462E-2,9.375E-2,6.2015503875968991E-2,5.46875E-2,6.2015503875968991E-2,7.6923076923076927E-2,0.1,0.13178294573643412,3.875968992248062E-2,5.46875E-2,6.1538461538461542E-2,3.8167938931297711E-2,4.6153846153846156E-2,3.875968992248062E-2,4.6153846153846156E-2,2.3255813953488372E-2,2.2727272727272728E-2,2.3076923076923078E-2,2.2727272727272728E-2,3.0534351145038167E-2,4.5454545454545456E-2,3.8167938931297711E-2,7.575757575757576E-2,0.11538461538461539,0.22480620155038761,0.26190476190476192,0.125,4.6153846153846156E-2,5.3846153846153849E-2,1.5267175572519083E-2,{"$f":"(COUNTIF(EU$3:EU$194,1))/EU$201","v":7.7519379844961239E-2},8.5271317829457363E-2,4.6153846153846156E-2,4.5801526717557252E-2,5.3435114503816793E-2,3.787878787878788E-2,3.787878787878788E-2,1.5151515151515152E-2,7.6335877862595417E-3,3.0303030303030304E-2,7.6335877862595422E-2,6.9767441860465115E-2,3.2000000000000001E-2,4.065040650406504E-2,1.6E-2,5.3846153846153849E-2,1.5503875968992248E-2,3.0769230769230771E-2,1.5748031496062992E-2,7.6923076923076927E-2,7.03125E-2,5.46875E-2,7.03125E-2,4.6153846153846156E-2,3.0534351145038167E-2,3.8167938931297711E-2,2.3076923076923078E-2,1.5267175572519083E-2]
["Global: % of responses as 2",{"$f":"(COUNTIF(B$3:B$194,2))/B$201","v":0.19847328244274809},{"$f":"(COUNTIF(C$3:C$194,2))/C$201","v":0.1484375},{"$f":"(COUNTIF(D$3:D$194,2))/D$201","v":0.16030534351145037},{"$f":"(COUNTIF(E$3:E$194,2))/E$201","v":9.0163934426229511E-2},{"$f":"(COUNTIF(F$3:F$194,2))/F$201","v":0.33076923076923076},0.30399999999999999,0.38461538461538464,0.36,0.25396825396825395,0.20610687022900764,0.17557251908396945,0.22480620155038761,0.35877862595419846,0.296875,0.27777777777777779,0.26400000000000001,0.30158730158730157,0.31496062992125984,0.2153846153846154,0.16030534351145037,0.19230769230769232,0.26923076923076922,0.25,0.31578947368421051,0.24615384615384617,0.26771653543307089,0.18796992481203006,0.18045112781954886,0.15789473684210525,0.23308270676691728,0.25757575757575757,0.29545454545454547,{"$f":"(COUNTIF(AH$3:AH$194,2))/AH$201","v":0.234375},0.28030303030303028,0.26717557251908397,0.2932330827067669,0.24615384615384617,0.22727272727272727,0.2,0.2076923076923077,0.30534351145038169,0.19847328244274809,0.2868217054263566,0.38759689922480622,0.27692307692307694,0.2857142857142857,0.34883720930232559,0.38461538461538464,0.2558139534883721,0.33846153846153848,0.33076923076923076,0.29838709677419356,0.16153846153846155,0.18461538461538463,0.32307692307692309,0.19379844961240311,0.35114503816793891,9.0225563909774431E-2,6.7669172932330823E-2,0.13740458015267176,7.575757575757576E-2,0.24409448818897639,0.18604651162790697,0.26984126984126983,{"$f":"(COUNTIF(BN$3:BN$194,2))/BN$201","v":0.22900763358778625},0.16793893129770993,0.28244274809160308,0.26153846153846155,0.37984496124031009,0.2846153846153846,0.31007751937984496,0.38095238095238093,0.32558139534883723,0.17692307692307693,0.12977099236641221,0.11904761904761904,9.2307692307692313E-2,0.24242424242424243,2.3255813953488372E-2,0.140625,0.1640625,0.25196850393700787,0.31782945736434109,0.16541353383458646,0.11627906976744186,8.7301587301587297E-2,0.11627906976744186,0.19847328244274809,5.4263565891472867E-2,0.16923076923076924,0.140625,0.234375,0.32558139534883723,5.5555555555555552E-2,0.19354838709677419,0.248,{"$f":"(COUNTIF(CT$3:CT$194,2))/CT$201","v":0.25396825396825395},0.1640625,0.30081300813008133,0.18852459016393441,0.19834710743801653,0.20491803278688525,0.19166666666666668,0.1721311475409836,0.13223140495867769,0.18852459016393441,0.21666666666666667,0.22131147540983606,0.20661157024793389,0.22131147540983606,0.22500000000000001,0.13934426229508196,0.15702479338842976,0.25409836065573771,0.17499999999999999,null,null,{"$f":"(COUNTIF(DO$3:DO$194,2))/DO$201","v":0.12307692307692308},4.5801526717557252E-2,0.11538461538461539,0.1640625,0.17829457364341086,7.03125E-2,0.12403100775193798,9.2307692307692313E-2,0.13076923076923078,0.16279069767441862,6.9767441860465115E-2,0.1015625,0.13076923076923078,0.12977099236641221,0.1076923076923077,7.7519379844961239E-2,8.461538461538462E-2,6.9767441860465115E-2,3.0303030303030304E-2,3.0769230769230771E-2,3.787878787878788E-2,1.5267175572519083E-2,0.10606060606060606,9.1603053435114504E-2,6.0606060606060608E-2,7.6923076923076927E-2,6.2015503875968991E-2,7.9365079365079361E-2,0.234375,5.3846153846153849E-2,3.0769230769230771E-2,4.5801526717557252E-2,{"$f":"(COUNTIF(EU$3:EU$194,2))/EU$201","v":6.2015503875968991E-2},6.2015503875968991E-2,1.5384615384615385E-2,4.5801526717557252E-2,1.5267175572519083E-2,3.787878787878788E-2,4.5454545454545456E-2,5.3030303030303032E-2,5.3435114503816793E-2,6.0606060606060608E-2,0.13740458015267176,0.10077519379844961,0.12,8.943089430894309E-2,0.112,9.2307692307692313E-2,0.11627906976744186,9.2307692307692313E-2,7.874015748031496E-2,8.461538461538462E-2,7.8125E-2,6.25E-2,8.59375E-2,9.2307692307692313E-2,9.9236641221374045E-2,6.8702290076335881E-2,5.3846153846153849E-2,7.6335877862595422E-2]
["Global: % of responses as 3",{"$f":"(COUNTIF(B$3:B$194,3))/B$201","v":8.3969465648854963E-2},{"$f":"(COUNTIF(C$3:C$194,3))/C$201","v":6.25E-2},{"$f":"(COUNTIF(D$3:D$194,3))/D$201","v":9.1603053435114504E-2},{"$f":"(COUNTIF(E$3:E$194,3))/E$201","v":2.4590163934426229E-2},{"$f":"(COUNTIF(F$3:F$194,3))/F$201","v":0.13076923076923078},7.1999999999999995E-2,0.13846153846153847,0.112,0.12698412698412698,0.13740458015267176,0.14503816793893129,0.20155038759689922,0.21374045801526717,0.15625,0.15079365079365079,9.6000000000000002E-2,0.11904761904761904,0.17322834645669291,5.3846153846153849E-2,7.6335877862595422E-2,6.1538461538461542E-2,0.1,4.6875E-2,9.7744360902255634E-2,5.3846153846153849E-2,5.5118110236220472E-2,9.0225563909774431E-2,6.0150375939849621E-2,9.0225563909774431E-2,0.12781954887218044,9.0909090909090912E-2,7.575757575757576E-2,{"$f":"(COUNTIF(AH$3:AH$194,3))/AH$201","v":0.1015625},0.17424242424242425,0.16030534351145037,9.7744360902255634E-2,0.11538461538461539,0.10606060606060606,6.1538461538461542E-2,9.2307692307692313E-2,6.8702290076335881E-2,3.8167938931297711E-2,0.11627906976744186,9.3023255813953487E-2,7.6923076923076927E-2,6.0150375939849621E-2,0.10852713178294573,8.461538461538462E-2,0.13953488372093023,0.13076923076923078,7.6923076923076927E-2,9.6774193548387094E-2,0.11538461538461539,0.12307692307692308,0.19230769230769232,0.11627906976744186,0.12977099236641221,0.10526315789473684,7.5187969924812026E-2,9.9236641221374045E-2,8.3333333333333329E-2,8.6614173228346455E-2,0.10852713178294573,0.12698412698412698,{"$f":"(COUNTIF(BN$3:BN$194,3))/BN$201","v":9.1603053435114504E-2},9.9236641221374045E-2,7.6335877862595422E-2,0.11538461538461539,6.2015503875968991E-2,0.1,9.3023255813953487E-2,4.7619047619047616E-2,0.14728682170542637,6.9230769230769235E-2,9.9236641221374045E-2,7.1428571428571425E-2,6.1538461538461542E-2,6.8181818181818177E-2,6.9767441860465115E-2,7.8125E-2,1.5625E-2,6.2992125984251968E-2,0.10852713178294573,4.5112781954887216E-2,8.5271317829457363E-2,7.9365079365079361E-2,5.4263565891472867E-2,8.3969465648854963E-2,6.9767441860465115E-2,0.1,6.25E-2,0.1015625,6.9767441860465115E-2,0.13492063492063491,0.10483870967741936,0.112,{"$f":"(COUNTIF(CT$3:CT$194,3))/CT$201","v":3.968253968253968E-2},6.25E-2,3.2520325203252036E-2,0.32786885245901637,0.33884297520661155,0.26229508196721313,0.32500000000000001,0.41803278688524592,0.4462809917355372,0.32786885245901637,0.39166666666666666,0.40163934426229508,0.37190082644628097,0.25409836065573771,0.35833333333333334,0.37704918032786883,0.35537190082644626,0.28688524590163933,0.33333333333333331,null,null,{"$f":"(COUNTIF(DO$3:DO$194,3))/DO$201","v":0.2153846153846154},0.12977099236641221,0.38461538461538464,0.265625,0.32558139534883723,0.2109375,0.20155038759689922,0.17692307692307693,0.26923076923076922,0.24806201550387597,0.22480620155038761,0.234375,0.23846153846153847,0.10687022900763359,0.30769230769230771,0.32558139534883723,0.33846153846153848,0.13953488372093023,0.22727272727272727,0.23076923076923078,0.30303030303030304,0.30534351145038169,0.17424242424242425,0.25954198473282442,0.11363636363636363,0.17692307692307693,0.24031007751937986,0.23015873015873015,0.4609375,0.3,0.22307692307692309,0.21374045801526717,{"$f":"(COUNTIF(EU$3:EU$194,3))/EU$201","v":0.30232558139534882},0.20930232558139536,0.14615384615384616,0.12977099236641221,0.14503816793893129,0.16666666666666666,0.28030303030303028,0.18181818181818182,0.22900763358778625,0.18939393939393939,0.12977099236641221,0.22480620155038761,0.36,0.3902439024390244,0.4,0.1076923076923077,0.15503875968992248,0.12307692307692308,0.22047244094488189,0.16153846153846155,0.125,0.171875,0.1484375,0.15384615384615385,0.22137404580152673,0.17557251908396945,0.15384615384615385,0.26717557251908397]
["Global: % of responses as 4",{"$f":"(COUNTIF(B$3:B$194,4))/B$201","v":0.20610687022900764},{"$f":"(COUNTIF(C$3:C$194,4))/C$201","v":0.15625},{"$f":"(COUNTIF(D$3:D$194,4))/D$201","v":0.17557251908396945},{"$f":"(COUNTIF(E$3:E$194,4))/E$201","v":9.0163934426229511E-2},{"$f":"(COUNTIF(F$3:F$194,4))/F$201","v":0.17692307692307693},9.6000000000000002E-2,0.13076923076923078,0.14399999999999999,0.13492063492063491,0.22900763358778625,0.24427480916030533,0.19379844961240311,0.20610687022900764,0.1484375,0.20634920634920634,0.13600000000000001,0.17460317460317459,0.18110236220472442,0.13846153846153847,0.16030534351145037,0.17692307692307693,0.18461538461538463,0.1328125,0.18045112781954886,0.17692307692307693,0.11811023622047244,0.24812030075187969,0.30827067669172931,0.3007518796992481,0.18796992481203006,0.20454545454545456,0.16666666666666666,{"$f":"(COUNTIF(AH$3:AH$194,4))/AH$201","v":0.234375},0.17424242424242425,0.17557251908396945,0.22556390977443608,0.22307692307692309,0.23484848484848486,0.22307692307692309,0.15384615384615385,0.19847328244274809,0.23664122137404581,0.17829457364341086,0.21705426356589147,0.2076923076923077,0.22556390977443608,0.18604651162790697,0.13846153846153847,0.21705426356589147,0.17692307692307693,0.25384615384615383,0.16935483870967741,0.23076923076923078,0.25384615384615383,0.23846153846153847,0.16279069767441862,0.25190839694656486,0.15789473684210525,0.24060150375939848,0.21374045801526717,0.25,0.25196850393700787,0.19379844961240311,0.22222222222222221,{"$f":"(COUNTIF(BN$3:BN$194,4))/BN$201","v":0.24427480916030533},0.29007633587786258,0.29007633587786258,0.23846153846153847,0.24031007751937986,0.25384615384615383,0.24031007751937986,0.13492063492063491,0.20155038759689922,0.23846153846153847,0.26717557251908397,0.16666666666666666,0.26923076923076922,0.2196969696969697,0.21705426356589147,0.2890625,0.109375,0.26771653543307089,0.18604651162790697,0.24060150375939848,0.27131782945736432,0.22222222222222221,0.2558139534883721,0.26717557251908397,0.23255813953488372,0.25384615384615383,7.8125E-2,0.21875,0.2868217054263566,0.53174603174603174,0.44354838709677419,0.39200000000000002,{"$f":"(COUNTIF(CT$3:CT$194,4))/CT$201","v":0.35714285714285715},0.4921875,0.16260162601626016,0.30327868852459017,0.26446280991735538,0.26229508196721313,0.3,0.22950819672131148,0.23140495867768596,0.27049180327868855,0.26666666666666666,0.25409836065573771,0.26446280991735538,0.31967213114754101,0.28333333333333333,0.25409836065573771,0.33057851239669422,0.26229508196721313,0.32500000000000001,null,null,{"$f":"(COUNTIF(DO$3:DO$194,4))/DO$201","v":0.46153846153846156},0.25954198473282442,0.37692307692307692,0.359375,0.34108527131782945,0.4296875,0.38759689922480622,0.42307692307692307,0.31538461538461537,0.29457364341085274,0.44961240310077522,0.4140625,0.33076923076923076,0.25954198473282442,0.34615384615384615,0.35658914728682173,0.36923076923076925,0.37209302325581395,0.32575757575757575,0.36153846153846153,0.38636363636363635,0.41221374045801529,0.35606060606060608,0.34351145038167941,0.50757575757575757,0.48461538461538461,0.34883720930232559,0.37301587301587302,0.140625,0.44615384615384618,0.53846153846153844,0.49618320610687022,{"$f":"(COUNTIF(EU$3:EU$194,4))/EU$201","v":0.4263565891472868},0.43410852713178294,0.50769230769230766,0.47328244274809161,0.44274809160305345,0.49242424242424243,0.46969696969696972,0.50757575757575757,0.44274809160305345,0.49242424242424243,0.38931297709923662,0.37984496124031009,0.312,0.37398373983739835,0.39200000000000002,0.49230769230769234,0.48837209302325579,0.52307692307692311,0.48031496062992124,0.38461538461538464,0.4375,0.453125,0.3828125,0.48461538461538461,0.44274809160305345,0.45038167938931295,0.46923076923076923,0.45038167938931295]
["Global: % of responses as 5",{"$f":"(COUNTIF(B$3:B$194,5))/B$201","v":0.30534351145038169},{"$f":"(COUNTIF(C$3:C$194,5))/C$201","v":0.1171875},{"$f":"(COUNTIF(D$3:D$194,5))/D$201","v":0.22137404580152673},{"$f":"(COUNTIF(E$3:E$194,5))/E$201","v":0.13114754098360656},{"$f":"(COUNTIF(F$3:F$194,5))/F$201","v":0.2},7.1999999999999995E-2,0.16923076923076924,0.16800000000000001,0.18253968253968253,0.26717557251908397,0.20610687022900764,0.21705426356589147,0.14503816793893129,0.234375,0.19047619047619047,0.12,0.15873015873015872,0.17322834645669291,0.30769230769230771,0.19847328244274809,0.16153846153846155,0.19230769230769232,0.1484375,0.20300751879699247,0.17692307692307693,0.19685039370078741,0.24812030075187969,0.3007518796992481,0.23308270676691728,0.15789473684210525,0.19696969696969696,0.17424242424242425,{"$f":"(COUNTIF(AH$3:AH$194,5))/AH$201","v":0.125},0.18939393939393939,0.15267175572519084,0.21052631578947367,0.15384615384615385,0.20454545454545456,0.24615384615384617,0.24615384615384617,0.21374045801526717,0.25190839694656486,0.21705426356589147,9.3023255813953487E-2,0.2076923076923077,0.22556390977443608,0.13178294573643412,0.16153846153846155,0.13953488372093023,0.14615384615384616,0.16923076923076924,0.11290322580645161,0.23076923076923078,0.23846153846153847,0.15384615384615385,0.22480620155038761,0.16030534351145037,0.2857142857142857,0.30827067669172931,0.27480916030534353,0.31818181818181818,0.15748031496062992,0.2558139534883721,0.15873015873015872,{"$f":"(COUNTIF(BN$3:BN$194,5))/BN$201","v":0.24427480916030533},0.21374045801526717,0.19847328244274809,0.2076923076923077,0.12403100775193798,0.2076923076923077,0.17054263565891473,0.11904761904761904,0.10852713178294573,0.27692307692307694,0.23664122137404581,0.35714285714285715,0.31538461538461537,0.27272727272727271,0.44961240310077522,0.2734375,7.8125E-2,0.12598425196850394,0.17054263565891473,0.3007518796992481,0.21705426356589147,0.30158730158730157,0.30232558139534882,0.20610687022900764,0.41085271317829458,0.25384615384615383,8.59375E-2,0.1015625,8.5271317829457363E-2,0.1111111111111111,0.16129032258064516,0.16800000000000001,{"$f":"(COUNTIF(CT$3:CT$194,5))/CT$201","v":0.12698412698412698},0.1015625,6.5040650406504072E-2,0.10655737704918032,9.9173553719008267E-2,0.18032786885245902,0.11666666666666667,7.3770491803278687E-2,4.9586776859504134E-2,0.11475409836065574,0.05,4.0983606557377046E-2,1.6528925619834711E-2,9.8360655737704916E-2,3.3333333333333333E-2,0.1721311475409836,9.0909090909090912E-2,0.11475409836065574,0.10833333333333334,null,null,{"$f":"(COUNTIF(DO$3:DO$194,5))/DO$201","v":0.13076923076923078},0.51908396946564883,3.8461538461538464E-2,0.1171875,9.3023255813953487E-2,0.234375,0.22480620155038761,0.23076923076923078,0.18461538461538463,0.16279069767441862,0.21705426356589147,0.1953125,0.23846153846153847,0.46564885496183206,0.19230769230769232,0.20155038759689922,0.16153846153846155,0.39534883720930231,0.39393939393939392,0.35384615384615387,0.25,0.23664122137404581,0.31818181818181818,0.26717557251908397,0.24242424242424243,0.14615384615384616,0.12403100775193798,5.5555555555555552E-2,3.90625E-2,0.15384615384615385,0.15384615384615385,0.22900763358778625,{"$f":"(COUNTIF(EU$3:EU$194,5))/EU$201","v":0.13178294573643412},0.20930232558139536,0.2846153846153846,0.30534351145038169,0.34351145038167941,0.26515151515151514,0.16666666666666666,0.24242424242424243,0.26717557251908397,0.22727272727272727,0.26717557251908397,0.22480620155038761,0.17599999999999999,0.10569105691056911,0.08,0.25384615384615383,0.22480620155038761,0.23076923076923078,0.20472440944881889,0.29230769230769232,0.2890625,0.2578125,0.3125,0.22307692307692309,0.20610687022900764,0.26717557251908397,0.3,0.19083969465648856]
["Global: % of responses as 6",{"$f":"(COUNTIF(B$3:B$194,6))/B$201","v":0.19083969465648856},{"$f":"(COUNTIF(C$3:C$194,6))/C$201","v":0.1171875},{"$f":"(COUNTIF(D$3:D$194,6))/D$201","v":0.3282442748091603},{"$f":"(COUNTIF(E$3:E$194,6))/E$201","v":0.10655737704918032},{"$f":"(COUNTIF(F$3:F$194,6))/F$201","v":0.13846153846153847},4.8000000000000001E-2,6.1538461538461542E-2,0.112,6.3492063492063489E-2,0.12213740458015267,7.6335877862595422E-2,6.9767441860465115E-2,4.5801526717557252E-2,5.46875E-2,7.1428571428571425E-2,2.4E-2,4.7619047619047616E-2,5.5118110236220472E-2,0.11538461538461539,0.17557251908396945,0.27692307692307694,0.2,0.1953125,0.13533834586466165,0.14615384615384616,0.14960629921259844,0.22556390977443608,0.12781954887218044,0.20300751879699247,0.18045112781954886,0.17424242424242425,0.14393939393939395,{"$f":"(COUNTIF(AH$3:AH$194,6))/AH$201","v":8.59375E-2},0.13636363636363635,0.10687022900763359,0.12030075187969924,0.1,0.16666666666666666,0.19230769230769232,0.2076923076923077,0.17557251908396945,0.24427480916030533,0.17829457364341086,6.2015503875968991E-2,0.15384615384615385,0.17293233082706766,0.10077519379844961,0.11538461538461539,0.10077519379844961,0.12307692307692308,8.461538461538462E-2,4.0322580645161289E-2,0.2153846153846154,0.16923076923076924,6.1538461538461542E-2,0.11627906976744186,6.1068702290076333E-2,0.31578947368421051,0.3007518796992481,0.22137404580152673,0.25757575757575757,0.19685039370078741,0.22480620155038761,0.1111111111111111,{"$f":"(COUNTIF(BN$3:BN$194,6))/BN$201","v":0.17557251908396945},0.16030534351145037,9.9236641221374045E-2,6.1538461538461542E-2,6.2015503875968991E-2,0.13076923076923078,0.11627906976744186,3.968253968253968E-2,0.15503875968992248,0.19230769230769232,0.11450381679389313,0.16666666666666666,0.17692307692307693,0.12121212121212122,0.22480620155038761,0.171875,5.46875E-2,6.2992125984251968E-2,4.6511627906976744E-2,0.18796992481203006,0.12403100775193798,0.17460317460317459,0.18604651162790697,0.16793893129770993,0.20930232558139536,0.16153846153846155,4.6875E-2,6.25E-2,6.2015503875968991E-2]
[]
["Global: % of responses as 2-6",{"$f":"(COUNTIF(B$3:B$194,2)+COUNTIF(B$3:B$194,3)+COUNTIF(B$3:B$194,4)+COUNTIF(B$3:B$194,5)+COUNTIF(B$3:B$194,6))/Responses!$B$4","v":0.96992481203007519},{"$f":"(COUNTIF(C$3:C$194,2)+COUNTIF(C$3:C$194,3)+COUNTIF(C$3:C$194,4)+COUNTIF(C$3:C$194,5)+COUNTIF(C$3:C$194,6))/Responses!$B$4","v":0.57894736842105265},{"$f":"(COUNTIF(D$3:D$194,2)+COUNTIF(D$3:D$194,3)+COUNTIF(D$3:D$194,4)+COUNTIF(D$3:D$194,5)+COUNTIF(D$3:D$194,6))/Responses!$B$4","v":0.96240601503759393},{"$f":"(COUNTIF(E$3:E$194,2)+COUNTIF(E$3:E$194,3)+COUNTIF(E$3:E$194,4)+COUNTIF(E$3:E$194,5)+COUNTIF(E$3:E$194,6))/Responses!$B$4","v":0.40601503759398494},{"$f":"(COUNTIF(F$3:F$194,2)+COUNTIF(F$3:F$194,3)+COUNTIF(F$3:F$194,4)+COUNTIF(F$3:F$194,5)+COUNTIF(F$3:F$194,6))/Responses!$B$4","v":0.95488721804511278},{"$f":"(COUNTIF(G$3:G$194,2)+COUNTIF(G$3:G$194,3)+COUNTIF(G$3:G$194,4)+COUNTIF(G$3:G$194,5)+COUNTIF(G$3:G$194,6))/Responses!$B$4","v":0.55639097744360899},{"$f":"(COUNTIF(H$3:H$194,2)+COUNTIF(H$3:H$194,3)+COUNTIF(H$3:H$194,4)+COUNTIF(H$3:H$194,5)+COUNTIF(H$3:H$194,6))/Responses!$B$4","v":0.86466165413533835},{"$f":"(COUNTIF(I$3:I$194,2)+COUNTIF(I$3:I$194,3)+COUNTIF(I$3:I$194,4)+COUNTIF(I$3:I$194,5)+COUNTIF(I$3:I$194,6))/Responses!$B$4","v":0.84210526315789469},{"$f":"(COUNTIF(J$3:J$194,2)+COUNTIF(J$3:J$194,3)+COUNTIF(J$3:J$194,4)+COUNTIF(J$3:J$194,5)+COUNTIF(J$3:J$194,6))/Responses!$B$4","v":0.72180451127819545},{"$f":"(COUNTIF(K$3:K$194,2)+COUNTIF(K$3:K$194,3)+COUNTIF(K$3:K$194,4)+COUNTIF(K$3:K$194,5)+COUNTIF(K$3:K$194,6))/Responses!$B$4","v":0.94736842105263153},{"$f":"(COUNTIF(L$3:L$194,2)+COUNTIF(L$3:L$194,3)+COUNTIF(L$3:L$194,4)+COUNTIF(L$3:L$194,5)+COUNTIF(L$3:L$194,6))/Responses!$B$4","v":0.83458646616541354},{"$f":"(COUNTIF(M$3:M$194,2)+COUNTIF(M$3:M$194,3)+COUNTIF(M$3:M$194,4)+COUNTIF(M$3:M$194,5)+COUNTIF(M$3:M$194,6))/Responses!$B$4","v":0.87969924812030076},{"$f":"(COUNTIF(N$3:N$194,2)+COUNTIF(N$3:N$194,3)+COUNTIF(N$3:N$194,4)+COUNTIF(N$3:N$194,5)+COUNTIF(N$3:N$194,6))/Responses!$B$4","v":0.95488721804511278},{"$f":"(COUNTIF(O$3:O$194,2)+COUNTIF(O$3:O$194,3)+COUNTIF(O$3:O$194,4)+COUNTIF(O$3:O$194,5)+COUNTIF(O$3:O$194,6))/Responses!$B$4","v":0.8571428571428571},{"$f":"(COUNTIF(P$3:P$194,2)+COUNTIF(P$3:P$194,3)+COUNTIF(P$3:P$194,4)+COUNTIF(P$3:P$194,5)+COUNTIF(P$3:P$194,6))/Responses!$B$4","v":0.84962406015037595},{"$f":"(COUNTIF(Q$3:Q$194,2)+COUNTIF(Q$3:Q$194,3)+COUNTIF(Q$3:Q$194,4)+COUNTIF(Q$3:Q$194,5)+COUNTIF(Q$3:Q$194,6))/Responses!$B$4","v":0.60150375939849621},{"$f":"(COUNTIF(R$3:R$194,2)+COUNTIF(R$3:R$194,3)+COUNTIF(R$3:R$194,4)+COUNTIF(R$3:R$194,5)+COUNTIF(R$3:R$194,6))/Responses!$B$4","v":0.75939849624060152},{"$f":"(COUNTIF(S$3:S$194,2)+COUNTIF(S$3:S$194,3)+COUNTIF(S$3:S$194,4)+COUNTIF(S$3:S$194,5)+COUNTIF(S$3:S$194,6))/Responses!$B$4","v":0.8571428571428571},{"$f":"(COUNTIF(T$3:T$194,2)+COUNTIF(T$3:T$194,3)+COUNTIF(T$3:T$194,4)+COUNTIF(T$3:T$194,5)+COUNTIF(T$3:T$194,6))/Responses!$B$4","v":0.81203007518796988},{"$f":"(COUNTIF(U$3:U$194,2)+COUNTIF(U$3:U$194,3)+COUNTIF(U$3:U$194,4)+COUNTIF(U$3:U$194,5)+COUNTIF(U$3:U$194,6))/Responses!$B$4","v":0.75939849624060152},{"$f":"(COUNTIF(V$3:V$194,2)+COUNTIF(V$3:V$194,3)+COUNTIF(V$3:V$194,4)+COUNTIF(V$3:V$194,5)+COUNTIF(V$3:V$194,6))/Responses!$B$4","v":0.84962406015037595},{"$f":"(COUNTIF(W$3:W$194,2)+COUNTIF(W$3:W$194,3)+COUNTIF(W$3:W$194,4)+COUNTIF(W$3:W$194,5)+COUNTIF(W$3:W$194,6))/Responses!$B$4","v":0.92481203007518797},{"$f":"(COUNTIF(X$3:X$194,2)+COUNTIF(X$3:X$194,3)+COUNTIF(X$3:X$194,4)+COUNTIF(X$3:X$194,5)+COUNTIF(X$3:X$194,6))/Responses!$B$4","v":0.74436090225563911},{"$f":"(COUNTIF(Y$3:Y$194,2)+COUNTIF(Y$3:Y$194,3)+COUNTIF(Y$3:Y$194,4)+COUNTIF(Y$3:Y$194,5)+COUNTIF(Y$3:Y$194,6))/Responses!$B$4","v":0.93233082706766912},{"$f":"(COUNTIF(Z$3:Z$194,2)+COUNTIF(Z$3:Z$194,3)+COUNTIF(Z$3:Z$194,4)+COUNTIF(Z$3:Z$194,5)+COUNTIF(Z$3:Z$194,6))/Responses!$B$4","v":0.78195488721804507},{"$f":"(COUNTIF(AA$3:AA$194,2)+COUNTIF(AA$3:AA$194,3)+COUNTIF(AA$3:AA$194,4)+COUNTIF(AA$3:AA$194,5)+COUNTIF(AA$3:AA$194,6))/Responses!$B$4","v":0.75187969924812026},{"$f":"(COUNTIF(AB$3:AB$194,2)+COUNTIF(AB$3:AB$194,3)+COUNTIF(AB$3:AB$194,4)+COUNTIF(AB$3:AB$194,5)+COUNTIF(AB$3:AB$194,6))/Responses!$B$4","v":1},{"$f":"(COUNTIF(AC$3:AC$194,2)+COUNTIF(AC$3:AC$194,3)+COUNTIF(AC$3:AC$194,4)+COUNTIF(AC$3:AC$194,5)+COUNTIF(AC$3:AC$194,6))/Responses!$B$4","v":0.97744360902255634},{"$f":"(COUNTIF(AD$3:AD$194,2)+COUNTIF(AD$3:AD$194,3)+COUNTIF(AD$3:AD$194,4)+COUNTIF(AD$3:AD$194,5)+COUNTIF(AD$3:AD$194,6))/Responses!$B$4","v":0.98496240601503759},{"$f":"(COUNTIF(AE$3:AE$194,2)+COUNTIF(AE$3:AE$194,3)+COUNTIF(AE$3:AE$194,4)+COUNTIF(AE$3:AE$194,5)+COUNTIF(AE$3:AE$194,6))/Responses!$B$4","v":0.88721804511278191},{"$f":"(COUNTIF(AF$3:AF$194,2)+COUNTIF(AF$3:AF$194,3)+COUNTIF(AF$3:AF$194,4)+COUNTIF(AF$3:AF$194,5)+COUNTIF(AF$3:AF$194,6))/Responses!$B$4","v":0.91729323308270672},{"$f":"(COUNTIF(AG$3:AG$194,2)+COUNTIF(AG$3:AG$194,3)+COUNTIF(AG$3:AG$194,4)+COUNTIF(AG$3:AG$194,5)+COUNTIF(AG$3:AG$194,6))/Responses!$B$4","v":0.84962406015037595},{"$f":"(COUNTIF(AH$3:AH$194,2)+COUNTIF(AH$3:AH$194,3)+COUNTIF(AH$3:AH$194,4)+COUNTIF(AH$3:AH$194,5)+COUNTIF(AH$3:AH$194,6))/Responses!$B$4","v":0.75187969924812026},{"$f":"(COUNTIF(AI$3:AI$194,2)+COUNTIF(AI$3:AI$194,3)+COUNTIF(AI$3:AI$194,4)+COUNTIF(AI$3:AI$194,5)+COUNTIF(AI$3:AI$194,6))/Responses!$B$4","v":0.94736842105263153},{"$f":"(COUNTIF(AJ$3:AJ$194,2)+COUNTIF(AJ$3:AJ$194,3)+COUNTIF(AJ$3:AJ$194,4)+COUNTIF(AJ$3:AJ$194,5)+COUNTIF(AJ$3:AJ$194,6))/Responses!$B$4","v":0.84962406015037595},{"$f":"(COUNTIF(AK$3:AK$194,2)+COUNTIF(AK$3:AK$194,3)+COUNTIF(AK$3:AK$194,4)+COUNTIF(AK$3:AK$194,5)+COUNTIF(AK$3:AK$194,6))/Responses!$B$4","v":0.94736842105263153},{"$f":"(COUNTIF(AL$3:AL$194,2)+COUNTIF(AL$3:AL$194,3)+COUNTIF(AL$3:AL$194,4)+COUNTIF(AL$3:AL$194,5)+COUNTIF(AL$3:AL$194,6))/Responses!$B$4","v":0.81954887218045114},{"$f":"(COUNTIF(AM$3:AM$194,2)+COUNTIF(AM$3:AM$194,3)+COUNTIF(AM$3:AM$194,4)+COUNTIF(AM$3:AM$194,5)+COUNTIF(AM$3:AM$194,6))/Responses!$B$4","v":0.93233082706766912},{"$f":"(COUNTIF(AN$3:AN$194,2)+COUNTIF(AN$3:AN$194,3)+COUNTIF(AN$3:AN$194,4)+COUNTIF(AN$3:AN$194,5)+COUNTIF(AN$3:AN$194,6))/Responses!$B$4","v":0.90225563909774431},{"$f":"(COUNTIF(AO$3:AO$194,2)+COUNTIF(AO$3:AO$194,3)+COUNTIF(AO$3:AO$194,4)+COUNTIF(AO$3:AO$194,5)+COUNTIF(AO$3:AO$194,6))/Responses!$B$4","v":0.88721804511278191},{"$f":"(COUNTIF(AP$3:AP$194,2)+COUNTIF(AP$3:AP$194,3)+COUNTIF(AP$3:AP$194,4)+COUNTIF(AP$3:AP$194,5)+COUNTIF(AP$3:AP$194,6))/Responses!$B$4","v":0.94736842105263153},{"$f":"(COUNTIF(AQ$3:AQ$194,2)+COUNTIF(AQ$3:AQ$194,3)+COUNTIF(AQ$3:AQ$194,4)+COUNTIF(AQ$3:AQ$194,5)+COUNTIF(AQ$3:AQ$194,6))/Responses!$B$4","v":0.95488721804511278},{"$f":"(COUNTIF(AR$3:AR$194,2)+COUNTIF(AR$3:AR$194,3)+COUNTIF(AR$3:AR$194,4)+COUNTIF(AR$3:AR$194,5)+COUNTIF(AR$3:AR$194,6))/Responses!$B$4","v":0.94736842105263153},{"$f":"(COUNTIF(AS$3:AS$194,2)+COUNTIF(AS$3:AS$194,3)+COUNTIF(AS$3:AS$194,4)+COUNTIF(AS$3:AS$194,5)+COUNTIF(AS$3:AS$194,6))/Responses!$B$4","v":0.82706766917293228},{"$f":"(COUNTIF(AT$3:AT$194,2)+COUNTIF(AT$3:AT$194,3)+COUNTIF(AT$3:AT$194,4)+COUNTIF(AT$3:AT$194,5)+COUNTIF(AT$3:AT$194,6))/Responses!$B$4","v":0.90225563909774431},{"$f":"(COUNTIF(AU$3:AU$194,2)+COUNTIF(AU$3:AU$194,3)+COUNTIF(AU$3:AU$194,4)+COUNTIF(AU$3:AU$194,5)+COUNTIF(AU$3:AU$194,6))/Responses!$B$4","v":0.96992481203007519},{"$f":"(COUNTIF(AV$3:AV$194,2)+COUNTIF(AV$3:AV$194,3)+COUNTIF(AV$3:AV$194,4)+COUNTIF(AV$3:AV$194,5)+COUNTIF(AV$3:AV$194,6))/Responses!$B$4","v":0.84962406015037595},{"$f":"(COUNTIF(AW$3:AW$194,2)+COUNTIF(AW$3:AW$194,3)+COUNTIF(AW$3:AW$194,4)+COUNTIF(AW$3:AW$194,5)+COUNTIF(AW$3:AW$194,6))/Responses!$B$4","v":0.86466165413533835},{"$f":"(COUNTIF(AX$3:AX$194,2)+COUNTIF(AX$3:AX$194,3)+COUNTIF(AX$3:AX$194,4)+COUNTIF(AX$3:AX$194,5)+COUNTIF(AX$3:AX$194,6))/Responses!$B$4","v":0.82706766917293228},{"$f":"(COUNTIF(AY$3:AY$194,2)+COUNTIF(AY$3:AY$194,3)+COUNTIF(AY$3:AY$194,4)+COUNTIF(AY$3:AY$194,5)+COUNTIF(AY$3:AY$194,6))/Responses!$B$4","v":0.89473684210526316},{"$f":"(COUNTIF(AZ$3:AZ$194,2)+COUNTIF(AZ$3:AZ$194,3)+COUNTIF(AZ$3:AZ$194,4)+COUNTIF(AZ$3:AZ$194,5)+COUNTIF(AZ$3:AZ$194,6))/Responses!$B$4","v":0.89473684210526316},{"$f":"(COUNTIF(BA$3:BA$194,2)+COUNTIF(BA$3:BA$194,3)+COUNTIF(BA$3:BA$194,4)+COUNTIF(BA$3:BA$194,5)+COUNTIF(BA$3:BA$194,6))/Responses!$B$4","v":0.66917293233082709},{"$f":"(COUNTIF(BB$3:BB$194,2)+COUNTIF(BB$3:BB$194,3)+COUNTIF(BB$3:BB$194,4)+COUNTIF(BB$3:BB$194,5)+COUNTIF(BB$3:BB$194,6))/Responses!$B$4","v":0.93233082706766912},{"$f":"(COUNTIF(BC$3:BC$194,2)+COUNTIF(BC$3:BC$194,3)+COUNTIF(BC$3:BC$194,4)+COUNTIF(BC$3:BC$194,5)+COUNTIF(BC$3:BC$194,6))/Responses!$B$4","v":0.94736842105263153},{"$f":"(COUNTIF(BD$3:BD$194,2)+COUNTIF(BD$3:BD$194,3)+COUNTIF(BD$3:BD$194,4)+COUNTIF(BD$3:BD$194,5)+COUNTIF(BD$3:BD$194,6))/Responses!$B$4","v":0.94736842105263153},{"$f":"(COUNTIF(BE$3:BE$194,2)+COUNTIF(BE$3:BE$194,3)+COUNTIF(BE$3:BE$194,4)+COUNTIF(BE$3:BE$194,5)+COUNTIF(BE$3:BE$194,6))/Responses!$B$4","v":0.78947368421052633},{"$f":"(COUNTIF(BF$3:BF$194,2)+COUNTIF(BF$3:BF$194,3)+COUNTIF(BF$3:BF$194,4)+COUNTIF(BF$3:BF$194,5)+COUNTIF(BF$3:BF$194,6))/Responses!$B$4","v":0.93984962406015038},{"$f":"(COUNTIF(BG$3:BG$194,2)+COUNTIF(BG$3:BG$194,3)+COUNTIF(BG$3:BG$194,4)+COUNTIF(BG$3:BG$194,5)+COUNTIF(BG$3:BG$194,6))/Responses!$B$4","v":0.95488721804511278},{"$f":"(COUNTIF(BH$3:BH$194,2)+COUNTIF(BH$3:BH$194,3)+COUNTIF(BH$3:BH$194,4)+COUNTIF(BH$3:BH$194,5)+COUNTIF(BH$3:BH$194,6))/Responses!$B$4","v":0.99248120300751874},{"$f":"(COUNTIF(BI$3:BI$194,2)+COUNTIF(BI$3:BI$194,3)+COUNTIF(BI$3:BI$194,4)+COUNTIF(BI$3:BI$194,5)+COUNTIF(BI$3:BI$194,6))/Responses!$B$4","v":0.93233082706766912},{"$f":"(COUNTIF(BJ$3:BJ$194,2)+COUNTIF(BJ$3:BJ$194,3)+COUNTIF(BJ$3:BJ$194,4)+COUNTIF(BJ$3:BJ$194,5)+COUNTIF(BJ$3:BJ$194,6))/Responses!$B$4","v":0.97744360902255634},{"$f":"(COUNTIF(BK$3:BK$194,2)+COUNTIF(BK$3:BK$194,3)+COUNTIF(BK$3:BK$194,4)+COUNTIF(BK$3:BK$194,5)+COUNTIF(BK$3:BK$194,6))/Responses!$B$4","v":0.89473684210526316},{"$f":"(COUNTIF(BL$3:BL$194,2)+COUNTIF(BL$3:BL$194,3)+COUNTIF(BL$3:BL$194,4)+COUNTIF(BL$3:BL$194,5)+COUNTIF(BL$3:BL$194,6))/Responses!$B$4","v":0.93984962406015038},{"$f":"(COUNTIF(BM$3:BM$194,2)+COUNTIF(BM$3:BM$194,3)+COUNTIF(BM$3:BM$194,4)+COUNTIF(BM$3:BM$194,5)+COUNTIF(BM$3:BM$194,6))/Responses!$B$4","v":0.84210526315789469},{"$f":"(COUNTIF(BN$3:BN$194,2)+COUNTIF(BN$3:BN$194,3)+COUNTIF(BN$3:BN$194,4)+COUNTIF(BN$3:BN$194,5)+COUNTIF(BN$3:BN$194,6))/Responses!$B$4","v":0.96992481203007519},{"$f":"(COUNTIF(BO$3:BO$194,2)+COUNTIF(BO$3:BO$194,3)+COUNTIF(BO$3:BO$194,4)+COUNTIF(BO$3:BO$194,5)+COUNTIF(BO$3:BO$194,6))/Responses!$B$4","v":0.91729323308270672},{"$f":"(COUNTIF(BP$3:BP$194,2)+COUNTIF(BP$3:BP$194,3)+COUNTIF(BP$3:BP$194,4)+COUNTIF(BP$3:BP$194,5)+COUNTIF(BP$3:BP$194,6))/Responses!$B$4","v":0.93233082706766912},{"$f":"(COUNTIF(BQ$3:BQ$194,2)+COUNTIF(BQ$3:BQ$194,3)+COUNTIF(BQ$3:BQ$194,4)+COUNTIF(BQ$3:BQ$194,5)+COUNTIF(BQ$3:BQ$194,6))/Responses!$B$4","v":0.86466165413533835},{"$f":"(COUNTIF(BR$3:BR$194,2)+COUNTIF(BR$3:BR$194,3)+COUNTIF(BR$3:BR$194,4)+COUNTIF(BR$3:BR$194,5)+COUNTIF(BR$3:BR$194,6))/Responses!$B$4","v":0.84210526315789469},{"$f":"(COUNTIF(BS$3:BS$194,2)+COUNTIF(BS$3:BS$194,3)+COUNTIF(BS$3:BS$194,4)+COUNTIF(BS$3:BS$194,5)+COUNTIF(BS$3:BS$194,6))/Responses!$B$4","v":0.95488721804511278},{"$f":"(COUNTIF(BT$3:BT$194,2)+COUNTIF(BT$3:BT$194,3)+COUNTIF(BT$3:BT$194,4)+COUNTIF(BT$3:BT$194,5)+COUNTIF(BT$3:BT$194,6))/Responses!$B$4","v":0.90225563909774431},{"$f":"(COUNTIF(BU$3:BU$194,2)+COUNTIF(BU$3:BU$194,3)+COUNTIF(BU$3:BU$194,4)+COUNTIF(BU$3:BU$194,5)+COUNTIF(BU$3:BU$194,6))/Responses!$B$4","v":0.68421052631578949},{"$f":"(COUNTIF(BV$3:BV$194,2)+COUNTIF(BV$3:BV$194,3)+COUNTIF(BV$3:BV$194,4)+COUNTIF(BV$3:BV$194,5)+COUNTIF(BV$3:BV$194,6))/Responses!$B$4","v":0.90977443609022557},{"$f":"(COUNTIF(BW$3:BW$194,2)+COUNTIF(BW$3:BW$194,3)+COUNTIF(BW$3:BW$194,4)+COUNTIF(BW$3:BW$194,5)+COUNTIF(BW$3:BW$194,6))/Responses!$B$4","v":0.93233082706766912},{"$f":"(COUNTIF(BX$3:BX$194,2)+COUNTIF(BX$3:BX$194,3)+COUNTIF(BX$3:BX$194,4)+COUNTIF(BX$3:BX$194,5)+COUNTIF(BX$3:BX$194,6))/Responses!$B$4","v":0.83458646616541354},{"$f":"(COUNTIF(BY$3:BY$194,2)+COUNTIF(BY$3:BY$194,3)+COUNTIF(BY$3:BY$194,4)+COUNTIF(BY$3:BY$194,5)+COUNTIF(BY$3:BY$194,6))/Responses!$B$4","v":0.83458646616541354},{"$f":"(COUNTIF(BZ$3:BZ$194,2)+COUNTIF(BZ$3:BZ$194,3)+COUNTIF(BZ$3:BZ$194,4)+COUNTIF(BZ$3:BZ$194,5)+COUNTIF(BZ$3:BZ$194,6))/Responses!$B$4","v":0.89473684210526316},{"$f":"(COUNTIF(CA$3:CA$194,2)+COUNTIF(CA$3:CA$194,3)+COUNTIF(CA$3:CA$194,4)+COUNTIF(CA$3:CA$194,5)+COUNTIF(CA$3:CA$194,6))/Responses!$B$4","v":0.91729323308270672},{"$f":"(COUNTIF(CB$3:CB$194,2)+COUNTIF(CB$3:CB$194,3)+COUNTIF(CB$3:CB$194,4)+COUNTIF(CB$3:CB$194,5)+COUNTIF(CB$3:CB$194,6))/Responses!$B$4","v":0.95488721804511278},{"$f":"(COUNTIF(CC$3:CC$194,2)+COUNTIF(CC$3:CC$194,3)+COUNTIF(CC$3:CC$194,4)+COUNTIF(CC$3:CC$194,5)+COUNTIF(CC$3:CC$194,6))/Responses!$B$4","v":0.91729323308270672},{"$f":"(COUNTIF(CD$3:CD$194,2)+COUNTIF(CD$3:CD$194,3)+COUNTIF(CD$3:CD$194,4)+COUNTIF(CD$3:CD$194,5)+COUNTIF(CD$3:CD$194,6))/Responses!$B$4","v":0.40601503759398494},{"$f":"(COUNTIF(CE$3:CE$194,2)+COUNTIF(CE$3:CE$194,3)+COUNTIF(CE$3:CE$194,4)+COUNTIF(CE$3:CE$194,5)+COUNTIF(CE$3:CE$194,6))/Responses!$B$4","v":0.73684210526315785},{"$f":"(COUNTIF(CF$3:CF$194,2)+COUNTIF(CF$3:CF$194,3)+COUNTIF(CF$3:CF$194,4)+COUNTIF(CF$3:CF$194,5)+COUNTIF(CF$3:CF$194,6))/Responses!$B$4","v":0.80451127819548873},{"$f":"(COUNTIF(CG$3:CG$194,2)+COUNTIF(CG$3:CG$194,3)+COUNTIF(CG$3:CG$194,4)+COUNTIF(CG$3:CG$194,5)+COUNTIF(CG$3:CG$194,6))/Responses!$B$4","v":0.93984962406015038},{"$f":"(COUNTIF(CH$3:CH$194,2)+COUNTIF(CH$3:CH$194,3)+COUNTIF(CH$3:CH$194,4)+COUNTIF(CH$3:CH$194,5)+COUNTIF(CH$3:CH$194,6))/Responses!$B$4","v":0.78947368421052633},{"$f":"(COUNTIF(CI$3:CI$194,2)+COUNTIF(CI$3:CI$194,3)+COUNTIF(CI$3:CI$194,4)+COUNTIF(CI$3:CI$194,5)+COUNTIF(CI$3:CI$194,6))/Responses!$B$4","v":0.81954887218045114},{"$f":"(COUNTIF(CJ$3:CJ$194,2)+COUNTIF(CJ$3:CJ$194,3)+COUNTIF(CJ$3:CJ$194,4)+COUNTIF(CJ$3:CJ$194,5)+COUNTIF(CJ$3:CJ$194,6))/Responses!$B$4","v":0.88721804511278191},{"$f":"(COUNTIF(CK$3:CK$194,2)+COUNTIF(CK$3:CK$194,3)+COUNTIF(CK$3:CK$194,4)+COUNTIF(CK$3:CK$194,5)+COUNTIF(CK$3:CK$194,6))/Responses!$B$4","v":0.90977443609022557},{"$f":"(COUNTIF(CL$3:CL$194,2)+COUNTIF(CL$3:CL$194,3)+COUNTIF(CL$3:CL$194,4)+COUNTIF(CL$3:CL$194,5)+COUNTIF(CL$3:CL$194,6))/Responses!$B$4","v":0.94736842105263153},{"$f":"(COUNTIF(CM$3:CM$194,2)+COUNTIF(CM$3:CM$194,3)+COUNTIF(CM$3:CM$194,4)+COUNTIF(CM$3:CM$194,5)+COUNTIF(CM$3:CM$194,6))/Responses!$B$4","v":0.91729323308270672},{"$f":"(COUNTIF(CN$3:CN$194,2)+COUNTIF(CN$3:CN$194,3)+COUNTIF(CN$3:CN$194,4)+COUNTIF(CN$3:CN$194,5)+COUNTIF(CN$3:CN$194,6))/Responses!$B$4","v":0.39849624060150374},{"$f":"(COUNTIF(CO$3:CO$194,2)+COUNTIF(CO$3:CO$194,3)+COUNTIF(CO$3:CO$194,4)+COUNTIF(CO$3:CO$194,5)+COUNTIF(CO$3:CO$194,6))/Responses!$B$4","v":0.69172932330827064},{"$f":"(COUNTIF(CP$3:CP$194,2)+COUNTIF(CP$3:CP$194,3)+COUNTIF(CP$3:CP$194,4)+COUNTIF(CP$3:CP$194,5)+COUNTIF(CP$3:CP$194,6))/Responses!$B$4","v":0.80451127819548873}]
[]
["AFR: % of responses as 1",{"$f":"(COUNTIFS(B$3:B$194,1,ID_REG,3))/B211","v":0},{"$f":"(COUNTIFS(C$3:C$194,1,ID_REG,3))/C211","v":0.54054054054054057},{"$f":"(COUNTIFS(D$3:D$194,1,ID_REG,3))/D211","v":0},{"$f":"(COUNTIFS(E$3:E$194,1,ID_REG,3))/E211","v":0.62857142857142856},{"$f":"(COUNTIFS(F$3:F$194,1,ID_REG,3))/F211","v":2.5000000000000001E-2},0.52777777777777779,0.17948717948717949,0.19444444444444445,2.5000000000000001E-2,2.5000000000000001E-2,0.05,7.4999999999999997E-2,2.5000000000000001E-2,8.1081081081081086E-2,0.10256410256410256,0.32432432432432434,0.13513513513513514,0.10526315789473684,5.128205128205128E-2,0.15384615384615385,5.2631578947368418E-2,5.2631578947368418E-2,0.27027027027027029,0.05,0.10810810810810811,5.128205128205128E-2,0,2.5000000000000001E-2,2.5000000000000001E-2,0.125,5.128205128205128E-2,0.15384615384615385,{"$f":"(COUNTIFS(AH$3:AH$194,1,ID_REG,3))/AH211","v":7.6923076923076927E-2},5.128205128205128E-2,0.125,2.5000000000000001E-2,0.15,7.4999999999999997E-2,5.2631578947368418E-2,0.13157894736842105,2.6315789473684209E-2,5.2631578947368418E-2,5.2631578947368418E-2,0.15789473684210525,0.10526315789473684,2.5000000000000001E-2,0.13157894736842105,0.1,0.17499999999999999,0.12820512820512819,0.12820512820512819,0.36363636363636365,5.2631578947368418E-2,5.4054054054054057E-2,0,0.10526315789473684,0,0.05,2.5000000000000001E-2,7.6923076923076927E-2,5.128205128205128E-2,0.11428571428571428,8.3333333333333329E-2,0.17142857142857143,{"$f":"(COUNTIFS(BN$3:BN$194,1,ID_REG,3))/BN211","v":2.6315789473684209E-2},0.12820512820512819,7.4999999999999997E-2,0.17499999999999999,0.15384615384615385,2.5000000000000001E-2,7.6923076923076927E-2,0.31578947368421051,2.564102564102564E-2,5.2631578947368418E-2,0.05,0.13157894736842105,5.128205128205128E-2,0.10256410256410256,2.564102564102564E-2,0.10526315789473684,0.66666666666666663,0.13157894736842105,0.17948717948717949,2.5000000000000001E-2,5.128205128205128E-2,7.8947368421052627E-2,5.2631578947368418E-2,0.10526315789473684,2.6315789473684209E-2,0.15384615384615385,0.68421052631578949,0.10256410256410256,0.15384615384615385,0.15,5.128205128205128E-2,5.2631578947368418E-2,{"$f":"(COUNTIFS(CT$3:CT$194,1,ID_REG,3))/CT211","v":0.23076923076923078},0.31578947368421051,0.67567567567567566,0.13513513513513514,8.1081081081081086E-2,0.10810810810810811,8.1081081081081086E-2,8.1081081081081086E-2,0.10810810810810811,0.13513513513513514,8.1081081081081086E-2,0.16216216216216217,0.1891891891891892,0.1891891891891892,0.16216216216216217,8.1081081081081086E-2,8.1081081081081086E-2,0.10810810810810811,5.4054054054054057E-2,null,null,{"$f":"(COUNTIFS(DO$3:DO$194,1,ID_REG,3))/DO211","v":0},0,0,5.4054054054054057E-2,0,0,2.7027027027027029E-2,7.8947368421052627E-2,2.6315789473684209E-2,5.2631578947368418E-2,2.6315789473684209E-2,0,0,2.564102564102564E-2,0,5.128205128205128E-2,2.564102564102564E-2,0,0,2.6315789473684209E-2,2.564102564102564E-2,7.6923076923076927E-2,2.564102564102564E-2,2.564102564102564E-2,2.564102564102564E-2,0,0.16216216216216217,0.19444444444444445,7.6923076923076927E-2,0,2.564102564102564E-2,0,{"$f":"(COUNTIFS(EU$3:EU$194,1,ID_REG,3))/EU211","v":2.6315789473684209E-2},7.8947368421052627E-2,2.564102564102564E-2,2.564102564102564E-2,2.564102564102564E-2,0,2.564102564102564E-2,0,0,0,7.6923076923076927E-2,0.12820512820512819,0,5.5555555555555552E-2,2.6315789473684209E-2,2.564102564102564E-2,0,0,0,0.12820512820512819,8.1081081081081086E-2,7.6923076923076927E-2,0.10256410256410256,2.564102564102564E-2,2.564102564102564E-2,7.6923076923076927E-2,2.564102564102564E-2,2.564102564102564E-2]
["AFR: % of responses as 2",{"$f":"(COUNTIFS(B$3:B$194,2,ID_REG,3))/B211","v":0.25641025641025639},{"$f":"(COUNTIFS(C$3:C$194,2,ID_REG,3))/C211","v":0.16216216216216217},{"$f":"(COUNTIFS(D$3:D$194,2,ID_REG,3))/D211","v":0.10526315789473684},{"$f":"(COUNTIFS(E$3:E$194,2,ID_REG,3))/E211","v":2.8571428571428571E-2},{"$f":"(COUNTIFS(F$3:F$194,2,ID_REG,3))/F211","v":0.35},0.33333333333333331,0.38461538461538464,0.30555555555555558,0.17499999999999999,0.25,0.25,0.2,0.45,0.27027027027027029,0.41025641025641024,0.13513513513513514,0.32432432432432434,0.36842105263157893,0.12820512820512819,0.15384615384615385,0.26315789473684209,0.36842105263157893,0.27027027027027029,0.32500000000000001,0.21621621621621623,0.38461538461538464,0.2,0.25,0.2,0.3,0.33333333333333331,0.30769230769230771,{"$f":"(COUNTIFS(AH$3:AH$194,2,ID_REG,3))/AH211","v":0.30769230769230771},0.23076923076923078,0.27500000000000002,0.32500000000000001,0.27500000000000002,0.3,0.28947368421052633,0.31578947368421051,0.26315789473684209,0.26315789473684209,0.34210526315789475,0.44736842105263158,0.28947368421052633,0.27500000000000002,0.36842105263157893,0.45,0.32500000000000001,0.35897435897435898,0.35897435897435898,0.27272727272727271,0.13157894736842105,0.1891891891891892,0.33333333333333331,0.18421052631578946,0.38461538461538464,0.15,0.05,0.15384615384615385,0.10256410256410256,0.31428571428571428,0.30555555555555558,0.37142857142857144,{"$f":"(COUNTIFS(BN$3:BN$194,2,ID_REG,3))/BN211","v":0.31578947368421051},0.23076923076923078,0.375,0.4,0.46153846153846156,0.4,0.35897435897435898,0.42105263157894735,0.4358974358974359,0.23684210526315788,0.125,0.10526315789473684,7.6923076923076927E-2,0.35897435897435898,2.564102564102564E-2,0.26315789473684209,0.10256410256410256,0.28947368421052633,0.41025641025641024,0.17499999999999999,0.10256410256410256,0.10526315789473684,5.2631578947368418E-2,0.26315789473684209,2.6315789473684209E-2,0.23076923076923078,5.2631578947368418E-2,0.30769230769230771,0.4358974358974359,0.05,0.10256410256410256,0.15789473684210525,{"$f":"(COUNTIFS(CT$3:CT$194,2,ID_REG,3))/CT211","v":0.28205128205128205},0.15789473684210525,0.1891891891891892,0.16216216216216217,0.21621621621621623,0.29729729729729731,0.1891891891891892,0.27027027027027029,0.1891891891891892,0.24324324324324326,0.21621621621621623,0.1891891891891892,0.21621621621621623,0.24324324324324326,0.24324324324324326,0.10810810810810811,0.1891891891891892,0.40540540540540543,0.21621621621621623,null,null,{"$f":"(COUNTIFS(DO$3:DO$194,2,ID_REG,3))/DO211","v":2.7027027027027029E-2},0,5.2631578947368418E-2,5.4054054054054057E-2,0.27777777777777779,2.7027027027027029E-2,0.1891891891891892,5.2631578947368418E-2,0.15789473684210525,0.26315789473684209,2.6315789473684209E-2,0.10526315789473684,0.10526315789473684,0.10256410256410256,0.12820512820512819,0.12820512820512819,0.12820512820512819,0.10256410256410256,7.6923076923076927E-2,2.6315789473684209E-2,0,0,0.10256410256410256,0.12820512820512819,2.564102564102564E-2,7.6923076923076927E-2,2.7027027027027029E-2,2.7777777777777776E-2,0.28205128205128205,7.8947368421052627E-2,5.128205128205128E-2,2.6315789473684209E-2,{"$f":"(COUNTIFS(EU$3:EU$194,2,ID_REG,3))/EU211","v":7.8947368421052627E-2},2.6315789473684209E-2,0,5.128205128205128E-2,0,2.564102564102564E-2,2.564102564102564E-2,2.564102564102564E-2,5.128205128205128E-2,7.6923076923076927E-2,0.15384615384615385,5.128205128205128E-2,0.1891891891891892,0.1111111111111111,5.2631578947368418E-2,0.12820512820512819,0.18421052631578946,0.15384615384615385,0.10526315789473684,7.6923076923076927E-2,8.1081081081081086E-2,7.6923076923076927E-2,0.12820512820512819,0.17948717948717949,0.12820512820512819,7.6923076923076927E-2,0.10256410256410256,0.12820512820512819]
["AFR: % of responses as 3",{"$f":"(COUNTIFS(B$3:B$194,3,ID_REG,3))/B211","v":7.6923076923076927E-2},{"$f":"(COUNTIFS(C$3:C$194,3,ID_REG,3))/C211","v":0},{"$f":"(COUNTIFS(D$3:D$194,3,ID_REG,3))/D211","v":0.13157894736842105},{"$f":"(COUNTIFS(E$3:E$194,3,ID_REG,3))/E211","v":0},{"$f":"(COUNTIFS(F$3:F$194,3,ID_REG,3))/F211","v":0.2},2.7777777777777776E-2,0.12820512820512819,5.5555555555555552E-2,0.22500000000000001,0.17499999999999999,0.17499999999999999,0.22500000000000001,0.15,0.16216216216216217,0.10256410256410256,0.13513513513513514,0.16216216216216217,0.15789473684210525,5.128205128205128E-2,2.564102564102564E-2,7.8947368421052627E-2,0.10526315789473684,5.4054054054054057E-2,0.125,0,5.128205128205128E-2,0.1,0.05,7.4999999999999997E-2,7.4999999999999997E-2,0.12820512820512819,7.6923076923076927E-2,{"$f":"(COUNTIFS(AH$3:AH$194,3,ID_REG,3))/AH211","v":0.10256410256410256},0.25641025641025639,0.2,0.17499999999999999,0.17499999999999999,0.1,5.2631578947368418E-2,0.15789473684210525,0.13157894736842105,0,0.15789473684210525,0.15789473684210525,2.6315789473684209E-2,0.125,5.2631578947368418E-2,0.05,0.125,0.12820512820512819,7.6923076923076927E-2,3.0303030303030304E-2,0.15789473684210525,0.10810810810810811,0.17948717948717949,0.13157894736842105,0.15384615384615385,0.125,0.1,0.10256410256410256,0.12820512820512819,5.7142857142857141E-2,2.7777777777777776E-2,0.11428571428571428,{"$f":"(COUNTIFS(BN$3:BN$194,3,ID_REG,3))/BN211","v":2.6315789473684209E-2},0.12820512820512819,7.4999999999999997E-2,0.125,5.128205128205128E-2,0.05,0.10256410256410256,2.6315789473684209E-2,0.17948717948717949,2.6315789473684209E-2,0.1,5.2631578947368418E-2,5.128205128205128E-2,5.128205128205128E-2,5.128205128205128E-2,5.2631578947368418E-2,0,0.10526315789473684,0.10256410256410256,0.05,2.564102564102564E-2,2.6315789473684209E-2,7.8947368421052627E-2,0.10526315789473684,2.6315789473684209E-2,7.6923076923076927E-2,2.6315789473684209E-2,7.6923076923076927E-2,2.564102564102564E-2,0.15,0.12820512820512819,0.10526315789473684,{"$f":"(COUNTIFS(CT$3:CT$194,3,ID_REG,3))/CT211","v":2.564102564102564E-2},7.8947368421052627E-2,0,0.27027027027027029,0.27027027027027029,0.16216216216216217,0.32432432432432434,0.32432432432432434,0.43243243243243246,0.35135135135135137,0.45945945945945948,0.3783783783783784,0.40540540540540543,0.27027027027027029,0.3783783783783784,0.40540540540540543,0.29729729729729731,0.27027027027027029,0.29729729729729731,null,null,{"$f":"(COUNTIFS(DO$3:DO$194,3,ID_REG,3))/DO211","v":0.16216216216216217},5.2631578947368418E-2,0.34210526315789475,0.21621621621621623,0.3611111111111111,0.10810810810810811,0.21621621621621623,7.8947368421052627E-2,0.23684210526315788,0.21052631578947367,0.23684210526315788,0.21052631578947367,0.15789473684210525,2.564102564102564E-2,0.23076923076923078,0.23076923076923078,0.41025641025641024,5.128205128205128E-2,0.35897435897435898,0.23684210526315788,0.25641025641025639,0.25641025641025639,0.30769230769230771,0.25641025641025639,2.564102564102564E-2,0.12820512820512819,0.1891891891891892,0.25,0.4358974358974359,0.21052631578947367,0.12820512820512819,0.15789473684210525,{"$f":"(COUNTIFS(EU$3:EU$194,3,ID_REG,3))/EU211","v":0.15789473684210525},0.18421052631578946,7.6923076923076927E-2,5.128205128205128E-2,5.128205128205128E-2,0.15384615384615385,0.30769230769230771,0.25641025641025639,0.25641025641025639,0.23076923076923078,7.6923076923076927E-2,0.20512820512820512,0.24324324324324326,0.3611111111111111,0.47368421052631576,0.10256410256410256,0.13157894736842105,0.10256410256410256,0.18421052631578946,0.17948717948717949,5.4054054054054057E-2,0.10256410256410256,2.564102564102564E-2,0.20512820512820512,0.23076923076923078,0.20512820512820512,0.17948717948717949,0.20512820512820512]
["AFR: % of responses as 4",{"$f":"(COUNTIFS(B$3:B$194,4,ID_REG,3))/B211","v":0.25641025641025639},{"$f":"(COUNTIFS(C$3:C$194,4,ID_REG,3))/C211","v":0.13513513513513514},{"$f":"(COUNTIFS(D$3:D$194,4,ID_REG,3))/D211","v":0.26315789473684209},{"$f":"(COUNTIFS(E$3:E$194,4,ID_REG,3))/E211","v":0.11428571428571428},{"$f":"(COUNTIFS(F$3:F$194,4,ID_REG,3))/F211","v":0.22500000000000001},5.5555555555555552E-2,0.20512820512820512,0.30555555555555558,0.27500000000000002,0.27500000000000002,0.3,0.22500000000000001,0.22500000000000001,0.27027027027027029,0.25641025641025639,0.24324324324324326,0.21621621621621623,0.21052631578947367,0.20512820512820512,0.20512820512820512,0.26315789473684209,0.18421052631578946,0.21621621621621623,0.25,0.3783783783783784,0.12820512820512819,0.42499999999999999,0.35,0.375,0.27500000000000002,0.25641025641025639,0.23076923076923078,{"$f":"(COUNTIFS(AH$3:AH$194,4,ID_REG,3))/AH211","v":0.33333333333333331},0.20512820512820512,0.17499999999999999,0.25,0.25,0.25,0.26315789473684209,0.13157894736842105,0.18421052631578946,0.21052631578947367,0.18421052631578946,0.13157894736842105,0.28947368421052633,0.25,0.26315789473684209,0.17499999999999999,0.25,0.15384615384615385,0.28205128205128205,0.27272727272727271,0.28947368421052633,0.40540540540540543,0.33333333333333331,0.26315789473684209,0.30769230769230771,0.22500000000000001,0.4,0.28205128205128205,0.28205128205128205,0.37142857142857144,0.27777777777777779,0.17142857142857143,{"$f":"(COUNTIFS(BN$3:BN$194,4,ID_REG,3))/BN211","v":0.26315789473684209},0.28205128205128205,0.32500000000000001,0.17499999999999999,0.25641025641025639,0.27500000000000002,0.28205128205128205,0.10526315789473684,0.28205128205128205,0.31578947368421051,0.35,0.23684210526315788,0.30769230769230771,0.20512820512820512,0.30769230769230771,0.34210526315789475,0.12820512820512819,0.28947368421052633,0.23076923076923078,0.35,0.41025641025641024,0.26315789473684209,0.28947368421052633,0.34210526315789475,0.26315789473684209,0.35897435897435898,0.15789473684210525,0.35897435897435898,0.30769230769230771,0.52500000000000002,0.51282051282051277,0.42105263157894735,{"$f":"(COUNTIFS(CT$3:CT$194,4,ID_REG,3))/CT211","v":0.35897435897435898},0.34210526315789475,2.7027027027027029E-2,0.40540540540540543,0.3783783783783784,0.35135135135135137,0.35135135135135137,0.29729729729729731,0.24324324324324326,0.27027027027027029,0.24324324324324326,0.27027027027027029,0.1891891891891892,0.27027027027027029,0.21621621621621623,0.29729729729729731,0.40540540540540543,0.21621621621621623,0.40540540540540543,null,null,{"$f":"(COUNTIFS(DO$3:DO$194,4,ID_REG,3))/DO211","v":0.70270270270270274},0.31578947368421051,0.55263157894736847,0.51351351351351349,0.30555555555555558,0.56756756756756754,0.43243243243243246,0.55263157894736847,0.42105263157894735,0.34210526315789475,0.52631578947368418,0.52631578947368418,0.5,0.12820512820512819,0.46153846153846156,0.33333333333333331,0.41025641025641024,0.41025641025641024,0.25641025641025639,0.36842105263157893,0.58974358974358976,0.53846153846153844,0.28205128205128205,0.38461538461538464,0.58974358974358976,0.5641025641025641,0.45945945945945948,0.47222222222222221,0.15384615384615385,0.5,0.58974358974358976,0.60526315789473684,{"$f":"(COUNTIFS(EU$3:EU$194,4,ID_REG,3))/EU211","v":0.57894736842105265},0.52631578947368418,0.58974358974358976,0.53846153846153844,0.48717948717948717,0.46153846153846156,0.4358974358974359,0.51282051282051277,0.38461538461538464,0.38461538461538464,0.38461538461538464,0.35897435897435898,0.35135135135135137,0.33333333333333331,0.39473684210526316,0.48717948717948717,0.52631578947368418,0.51282051282051277,0.5,0.33333333333333331,0.45945945945945948,0.51282051282051277,0.38461538461538464,0.38461538461538464,0.46153846153846156,0.48717948717948717,0.48717948717948717,0.51282051282051277]
["AFR: % of responses as 5",{"$f":"(COUNTIFS(B$3:B$194,5,ID_REG,3))/B211","v":0.25641025641025639},{"$f":"(COUNTIFS(C$3:C$194,5,ID_REG,3))/C211","v":0.13513513513513514},{"$f":"(COUNTIFS(D$3:D$194,5,ID_REG,3))/D211","v":0.26315789473684209},{"$f":"(COUNTIFS(E$3:E$194,5,ID_REG,3))/E211","v":0.17142857142857143},{"$f":"(COUNTIFS(F$3:F$194,5,ID_REG,3))/F211","v":0.125},5.5555555555555552E-2,0.10256410256410256,0.1388888888888889,0.22500000000000001,0.2,0.2,0.27500000000000002,0.125,0.1891891891891892,0.12820512820512819,0.13513513513513514,0.16216216216216217,0.15789473684210525,0.48717948717948717,0.35897435897435898,0.21052631578947367,0.21052631578947367,0.13513513513513514,0.17499999999999999,0.1891891891891892,0.28205128205128205,0.125,0.27500000000000002,0.2,0.15,0.17948717948717949,0.17948717948717949,{"$f":"(COUNTIFS(AH$3:AH$194,5,ID_REG,3))/AH211","v":0.15384615384615385},0.17948717948717949,0.17499999999999999,0.2,0.125,0.25,0.31578947368421051,0.21052631578947367,0.34210526315789475,0.36842105263157893,0.23684210526315788,0.10526315789473684,0.23684210526315788,0.22500000000000001,0.15789473684210525,0.22500000000000001,0.125,0.12820512820512819,0.15384615384615385,6.0606060606060608E-2,0.23684210526315788,0.1891891891891892,0.10256410256410256,0.26315789473684209,0.12820512820512819,0.27500000000000002,0.27500000000000002,0.33333333333333331,0.38461538461538464,8.5714285714285715E-2,0.22222222222222221,0.14285714285714285,{"$f":"(COUNTIFS(BN$3:BN$194,5,ID_REG,3))/BN211","v":0.28947368421052633},0.17948717948717949,0.15,0.125,7.6923076923076927E-2,0.2,0.12820512820512819,7.8947368421052627E-2,2.564102564102564E-2,0.28947368421052633,0.32500000000000001,0.39473684210526316,0.4358974358974359,0.25641025641025639,0.51282051282051277,0.21052631578947367,7.6923076923076927E-2,0.18421052631578946,7.6923076923076927E-2,0.32500000000000001,0.33333333333333331,0.44736842105263158,0.47368421052631576,0.13157894736842105,0.57894736842105265,0.17948717948717949,7.8947368421052627E-2,0.15384615384615385,7.6923076923076927E-2,0.125,0.20512820512820512,0.26315789473684209,{"$f":"(COUNTIFS(CT$3:CT$194,5,ID_REG,3))/CT211","v":0.10256410256410256},0.10526315789473684,0.10810810810810811,2.7027027027027029E-2,5.4054054054054057E-2,8.1081081081081086E-2,5.4054054054054057E-2,2.7027027027027029E-2,2.7027027027027029E-2,0,0,0,0,2.7027027027027029E-2,0,0.10810810810810811,2.7027027027027029E-2,0,2.7027027027027029E-2,null,null,{"$f":"(COUNTIFS(DO$3:DO$194,5,ID_REG,3))/DO211","v":0.10810810810810811},0.63157894736842102,5.2631578947368418E-2,0.16216216216216217,5.5555555555555552E-2,0.29729729729729731,0.13513513513513514,0.23684210526315788,0.15789473684210525,0.13157894736842105,0.18421052631578946,0.15789473684210525,0.23684210526315788,0.71794871794871795,0.17948717948717949,0.25641025641025639,2.564102564102564E-2,0.4358974358974359,0.30769230769230771,0.34210526315789475,0.12820512820512819,0.12820512820512819,0.28205128205128205,0.20512820512820512,0.33333333333333331,0.23076923076923078,0.16216216216216217,5.5555555555555552E-2,5.128205128205128E-2,0.21052631578947367,0.20512820512820512,0.21052631578947367,{"$f":"(COUNTIFS(EU$3:EU$194,5,ID_REG,3))/EU211","v":0.15789473684210525},0.18421052631578946,0.30769230769230771,0.33333333333333331,0.4358974358974359,0.35897435897435898,0.20512820512820512,0.20512820512820512,0.30769230769230771,0.30769230769230771,0.30769230769230771,0.25641025641025639,0.21621621621621623,0.1388888888888889,5.2631578947368418E-2,0.25641025641025639,0.15789473684210525,0.23076923076923078,0.21052631578947367,0.28205128205128205,0.32432432432432434,0.23076923076923078,0.35897435897435898,0.20512820512820512,0.15384615384615385,0.15384615384615385,0.20512820512820512,0.12820512820512819]
["AFR: % of responses as 6",{"$f":"(COUNTIFS(B$3:B$194,6,ID_REG,3))/B211","v":0.15384615384615385},{"$f":"(COUNTIFS(C$3:C$194,6,ID_REG,3))/C211","v":2.7027027027027029E-2},{"$f":"(COUNTIFS(D$3:D$194,6,ID_REG,3))/D211","v":0.23684210526315788},{"$f":"(COUNTIFS(E$3:E$194,6,ID_REG,3))/E211","v":5.7142857142857141E-2},{"$f":"(COUNTIFS(F$3:F$194,6,ID_REG,3))/F211","v":7.4999999999999997E-2},0,0,0,7.4999999999999997E-2,7.4999999999999997E-2,2.5000000000000001E-2,0,2.5000000000000001E-2,2.7027027027027029E-2,0,2.7027027027027029E-2,0,0,7.6923076923076927E-2,0.10256410256410256,0.13157894736842105,7.8947368421052627E-2,5.4054054054054057E-2,7.4999999999999997E-2,0.10810810810810811,0.10256410256410256,0.15,0.05,0.125,7.4999999999999997E-2,5.128205128205128E-2,5.128205128205128E-2,{"$f":"(COUNTIFS(AH$3:AH$194,6,ID_REG,3))/AH211","v":2.564102564102564E-2},7.6923076923076927E-2,0.05,2.5000000000000001E-2,2.5000000000000001E-2,2.5000000000000001E-2,2.6315789473684209E-2,5.2631578947368418E-2,5.2631578947368418E-2,0.10526315789473684,2.6315789473684209E-2,0,5.2631578947368418E-2,0.1,2.6315789473684209E-2,0,0,0.10256410256410256,0,0,0.13157894736842105,5.4054054054054057E-2,5.128205128205128E-2,5.2631578947368418E-2,2.564102564102564E-2,0.17499999999999999,0.15,5.128205128205128E-2,5.128205128205128E-2,5.7142857142857141E-2,8.3333333333333329E-2,2.8571428571428571E-2,{"$f":"(COUNTIFS(BN$3:BN$194,6,ID_REG,3))/BN211","v":7.8947368421052627E-2},5.128205128205128E-2,0,0,0,0.05,5.128205128205128E-2,5.2631578947368418E-2,5.128205128205128E-2,7.8947368421052627E-2,0.05,7.8947368421052627E-2,7.6923076923076927E-2,2.564102564102564E-2,7.6923076923076927E-2,2.6315789473684209E-2,2.564102564102564E-2,0,0,7.4999999999999997E-2,7.6923076923076927E-2,7.8947368421052627E-2,5.2631578947368418E-2,5.2631578947368418E-2,7.8947368421052627E-2,0,0,0,0]
["ASP: % of responses as 1",{"$f":"(COUNTIFS(B$3:B$194,1,ID_REG,2))/B210","v":3.5714285714285712E-2},{"$f":"(COUNTIFS(C$3:C$194,1,ID_REG,2))/C210","v":0.39285714285714285},{"$f":"(COUNTIFS(D$3:D$194,1,ID_REG,2))/D210","v":7.1428571428571425E-2},{"$f":"(COUNTIFS(E$3:E$194,1,ID_REG,2))/E210","v":0.46153846153846156},{"$f":"(COUNTIFS(F$3:F$194,1,ID_REG,2))/F210","v":0},0.25,7.1428571428571425E-2,7.1428571428571425E-2,0.14814814814814814,7.1428571428571425E-2,7.1428571428571425E-2,3.5714285714285712E-2,0,7.1428571428571425E-2,0.10714285714285714,0.29629629629629628,0.17857142857142858,0.17857142857142858,0.35714285714285715,0.37037037037037035,0.14814814814814814,3.5714285714285712E-2,0.26923076923076922,7.1428571428571425E-2,0.2857142857142857,0.22222222222222221,0,3.5714285714285712E-2,0,7.1428571428571425E-2,0.10714285714285714,0.21428571428571427,{"$f":"(COUNTIFS(AH$3:AH$194,1,ID_REG,2))/AH210","v":0.10714285714285714},0,0.17857142857142858,3.5714285714285712E-2,0.14285714285714285,0,0.14285714285714285,0.14285714285714285,3.5714285714285712E-2,3.5714285714285712E-2,3.5714285714285712E-2,0.17857142857142858,3.5714285714285712E-2,3.5714285714285712E-2,0.10714285714285714,7.1428571428571425E-2,7.1428571428571425E-2,7.1428571428571425E-2,3.5714285714285712E-2,0.14285714285714285,3.5714285714285712E-2,3.5714285714285712E-2,3.5714285714285712E-2,0.17857142857142858,0.10714285714285714,3.5714285714285712E-2,0,3.5714285714285712E-2,0,7.1428571428571425E-2,3.5714285714285712E-2,0.10714285714285714,{"$f":"(COUNTIFS(BN$3:BN$194,1,ID_REG,2))/BN210","v":3.5714285714285712E-2},3.5714285714285712E-2,7.1428571428571425E-2,7.1428571428571425E-2,7.1428571428571425E-2,3.5714285714285712E-2,0.10714285714285714,0.25,7.1428571428571425E-2,0,0.14285714285714285,7.1428571428571425E-2,0.10714285714285714,7.1428571428571425E-2,0,0,0.2857142857142857,3.5714285714285712E-2,0.17857142857142858,0,0.14285714285714285,0.10714285714285714,7.1428571428571425E-2,7.1428571428571425E-2,0,0,0.25,7.1428571428571425E-2,0.14285714285714285,0.16,0.16,0.11538461538461539,{"$f":"(COUNTIFS(CT$3:CT$194,1,ID_REG,2))/CT210","v":0.24},0.11538461538461539,0.42307692307692307,3.7037037037037035E-2,7.407407407407407E-2,0.18518518518518517,3.7037037037037035E-2,7.407407407407407E-2,0.1111111111111111,0.18518518518518517,0,3.7037037037037035E-2,0.1111111111111111,0.14814814814814814,3.7037037037037035E-2,3.7037037037037035E-2,3.7037037037037035E-2,0.14814814814814814,0,null,null,{"$f":"(COUNTIFS(DO$3:DO$194,1,ID_REG,2))/DO210","v":7.1428571428571425E-2},0,3.5714285714285712E-2,7.407407407407407E-2,3.5714285714285712E-2,0,7.1428571428571425E-2,0,0,7.1428571428571425E-2,0,7.1428571428571425E-2,7.1428571428571425E-2,0,0,0.1111111111111111,7.1428571428571425E-2,7.1428571428571425E-2,7.1428571428571425E-2,0,3.5714285714285712E-2,0,3.5714285714285712E-2,7.1428571428571425E-2,0,7.1428571428571425E-2,0.17857142857142858,0.17857142857142858,0.1111111111111111,0,0,0,{"$f":"(COUNTIFS(EU$3:EU$194,1,ID_REG,2))/EU210","v":0.10714285714285714},0,0,3.5714285714285712E-2,3.5714285714285712E-2,0,0,0,0,3.5714285714285712E-2,3.5714285714285712E-2,3.5714285714285712E-2,3.7037037037037035E-2,0,0,0,3.5714285714285712E-2,3.7037037037037035E-2,3.7037037037037035E-2,7.407407407407407E-2,7.407407407407407E-2,3.7037037037037035E-2,7.407407407407407E-2,3.8461538461538464E-2,0,0,3.7037037037037035E-2,0]
["ASP: % of responses as 2",{"$f":"(COUNTIFS(B$3:B$194,2,ID_REG,2))/B210","v":0.2857142857142857},{"$f":"(COUNTIFS(C$3:C$194,2,ID_REG,2))/C210","v":0.17857142857142858},{"$f":"(COUNTIFS(D$3:D$194,2,ID_REG,2))/D210","v":0.32142857142857145},{"$f":"(COUNTIFS(E$3:E$194,2,ID_REG,2))/E210","v":0.19230769230769232},{"$f":"(COUNTIFS(F$3:F$194,2,ID_REG,2))/F210","v":0.40740740740740738},0.35714285714285715,0.42857142857142855,0.42857142857142855,0.33333333333333331,0.14285714285714285,0.14285714285714285,0.25,0.2857142857142857,0.32142857142857145,0.17857142857142858,0.40740740740740738,0.39285714285714285,0.35714285714285715,0.25,0.22222222222222221,0.18518518518518517,0.21428571428571427,0.19230769230769232,0.32142857142857145,0.35714285714285715,0.22222222222222221,0.25,0.14285714285714285,0.10714285714285714,0.25,0.25,0.25,{"$f":"(COUNTIFS(AH$3:AH$194,2,ID_REG,2))/AH210","v":0.21428571428571427},0.32142857142857145,0.14285714285714285,0.21428571428571427,0.17857142857142858,0.14285714285714285,0.10714285714285714,7.1428571428571425E-2,0.32142857142857145,0.17857142857142858,0.2857142857142857,0.32142857142857145,0.21428571428571427,0.17857142857142858,0.32142857142857145,0.35714285714285715,0.2857142857142857,0.2857142857142857,0.2857142857142857,0.2857142857142857,0.10714285714285714,0.14285714285714285,0.25,0.2857142857142857,0.39285714285714285,0.10714285714285714,7.1428571428571425E-2,0.10714285714285714,0.10714285714285714,0.32142857142857145,0.17857142857142858,0.25,{"$f":"(COUNTIFS(BN$3:BN$194,2,ID_REG,2))/BN210","v":0.17857142857142858},0.21428571428571427,0.14285714285714285,0.17857142857142858,0.32142857142857145,0.32142857142857145,0.32142857142857145,0.35714285714285715,0.42857142857142855,0.17857142857142858,0.10714285714285714,0.10714285714285714,3.5714285714285712E-2,0.10714285714285714,3.5714285714285712E-2,0.14285714285714285,0.39285714285714285,0.32142857142857145,0.17857142857142858,0.14285714285714285,3.5714285714285712E-2,3.5714285714285712E-2,0.10714285714285714,7.1428571428571425E-2,3.5714285714285712E-2,0.14814814814814814,0.32142857142857145,0.32142857142857145,0.17857142857142858,0.04,0.12,0.26923076923076922,{"$f":"(COUNTIFS(CT$3:CT$194,2,ID_REG,2))/CT210","v":0.36},0.19230769230769232,0.38461538461538464,0.22222222222222221,0.14814814814814814,0.22222222222222221,0.22222222222222221,7.407407407407407E-2,0.1111111111111111,0.22222222222222221,0.22222222222222221,0.22222222222222221,0.18518518518518517,0.33333333333333331,0.25925925925925924,0.14814814814814814,0.18518518518518517,0.18518518518518517,0.18518518518518517,null,null,{"$f":"(COUNTIFS(DO$3:DO$194,2,ID_REG,2))/DO210","v":0.21428571428571427},3.5714285714285712E-2,7.1428571428571425E-2,0.1111111111111111,0.17857142857142858,7.1428571428571425E-2,3.5714285714285712E-2,3.5714285714285712E-2,7.1428571428571425E-2,0.10714285714285714,0.10714285714285714,0.10714285714285714,0.17857142857142858,0.17857142857142858,7.1428571428571425E-2,3.7037037037037035E-2,0.10714285714285714,3.5714285714285712E-2,0,0,3.5714285714285712E-2,0,0,0,0,3.5714285714285712E-2,3.5714285714285712E-2,7.1428571428571425E-2,0.18518518518518517,0,3.5714285714285712E-2,3.5714285714285712E-2,{"$f":"(COUNTIFS(EU$3:EU$194,2,ID_REG,2))/EU210","v":0},3.5714285714285712E-2,3.5714285714285712E-2,3.5714285714285712E-2,0,7.1428571428571425E-2,7.1428571428571425E-2,3.5714285714285712E-2,0.10714285714285714,7.1428571428571425E-2,0.21428571428571427,0.10714285714285714,0.1111111111111111,3.7037037037037035E-2,0.1111111111111111,0.17857142857142858,0.14285714285714285,0.14814814814814814,3.7037037037037035E-2,0.1111111111111111,0.14814814814814814,3.7037037037037035E-2,3.7037037037037035E-2,3.8461538461538464E-2,0.1111111111111111,0.1111111111111111,7.407407407407407E-2,3.7037037037037035E-2]
["ASP: % of responses as 3",{"$f":"(COUNTIFS(B$3:B$194,3,ID_REG,2))/B210","v":0.10714285714285714},{"$f":"(COUNTIFS(C$3:C$194,3,ID_REG,2))/C210","v":0.10714285714285714},{"$f":"(COUNTIFS(D$3:D$194,3,ID_REG,2))/D210","v":7.1428571428571425E-2},{"$f":"(COUNTIFS(E$3:E$194,3,ID_REG,2))/E210","v":3.8461538461538464E-2},{"$f":"(COUNTIFS(F$3:F$194,3,ID_REG,2))/F210","v":7.407407407407407E-2},0.14285714285714285,0.21428571428571427,0.21428571428571427,0.18518518518518517,0.17857142857142858,0.17857142857142858,0.2857142857142857,0.39285714285714285,0.32142857142857145,0.2857142857142857,0.1111111111111111,0.17857142857142858,0.32142857142857145,7.1428571428571425E-2,0.1111111111111111,7.407407407407407E-2,0.14285714285714285,0.11538461538461539,0.21428571428571427,3.5714285714285712E-2,0.14814814814814814,0.14285714285714285,0.14285714285714285,0.14285714285714285,0.25,7.1428571428571425E-2,0.17857142857142858,{"$f":"(COUNTIFS(AH$3:AH$194,3,ID_REG,2))/AH210","v":0.21428571428571427},0.17857142857142858,0.25,0.10714285714285714,0.17857142857142858,0.14285714285714285,0.10714285714285714,7.1428571428571425E-2,0.10714285714285714,0.10714285714285714,0.21428571428571427,0.14285714285714285,0.2857142857142857,3.5714285714285712E-2,0.2857142857142857,0.17857142857142858,0.21428571428571427,0.17857142857142858,0.17857142857142858,0.21428571428571427,0.21428571428571427,0.14285714285714285,0.25,0.14285714285714285,0.21428571428571427,0.10714285714285714,3.5714285714285712E-2,0.14285714285714285,7.1428571428571425E-2,0.17857142857142858,0.2857142857142857,0.25,{"$f":"(COUNTIFS(BN$3:BN$194,3,ID_REG,2))/BN210","v":0.17857142857142858},0.14285714285714285,0.10714285714285714,0.17857142857142858,0.14285714285714285,0.10714285714285714,3.5714285714285712E-2,7.1428571428571425E-2,0.14285714285714285,0.10714285714285714,0.14285714285714285,0.10714285714285714,0.10714285714285714,0.10714285714285714,0.14285714285714285,0.17857142857142858,7.1428571428571425E-2,7.1428571428571425E-2,0.21428571428571427,3.5714285714285712E-2,0.17857142857142858,0.10714285714285714,3.5714285714285712E-2,0.14285714285714285,0.14285714285714285,0.25925925925925924,0.21428571428571427,0.14285714285714285,0.17857142857142858,0,0.24,0.19230769230769232,{"$f":"(COUNTIFS(CT$3:CT$194,3,ID_REG,2))/CT210","v":0.08},7.6923076923076927E-2,3.8461538461538464E-2,0.29629629629629628,0.40740740740740738,0.29629629629629628,0.25925925925925924,0.55555555555555558,0.44444444444444442,0.18518518518518517,0.40740740740740738,0.33333333333333331,0.37037037037037035,0.18518518518518517,0.33333333333333331,0.40740740740740738,0.33333333333333331,0.29629629629629628,0.33333333333333331,null,null,{"$f":"(COUNTIFS(DO$3:DO$194,3,ID_REG,2))/DO210","v":0.2857142857142857},0.10714285714285714,0.35714285714285715,0.37037037037037035,0.35714285714285715,0.14285714285714285,0.25,0.17857142857142858,0.25,0.21428571428571427,0.17857142857142858,0.17857142857142858,0.2857142857142857,3.5714285714285712E-2,0.2857142857142857,0.29629629629629628,0.39285714285714285,3.5714285714285712E-2,0.14285714285714285,0.17857142857142858,0.21428571428571427,0.25,7.1428571428571425E-2,0.25,0.14285714285714285,0.17857142857142858,0.2857142857142857,0.21428571428571427,0.40740740740740738,0.35714285714285715,0.2857142857142857,0.14285714285714285,{"$f":"(COUNTIFS(EU$3:EU$194,3,ID_REG,2))/EU210","v":0.2857142857142857},0.25,0.21428571428571427,0.14285714285714285,0.17857142857142858,0.25,0.25,0.14285714285714285,3.5714285714285712E-2,0.10714285714285714,7.1428571428571425E-2,0.25,0.40740740740740738,0.44444444444444442,0.29629629629629628,0.10714285714285714,0.14285714285714285,7.407407407407407E-2,0.22222222222222221,7.407407407407407E-2,0.18518518518518517,0.33333333333333331,0.25925925925925924,0.15384615384615385,0.29629629629629628,0.14814814814814814,0.18518518518518517,0.40740740740740738]
["ASP: % of responses as 4",{"$f":"(COUNTIFS(B$3:B$194,4,ID_REG,2))/B210","v":0.25},{"$f":"(COUNTIFS(C$3:C$194,4,ID_REG,2))/C210","v":0.21428571428571427},{"$f":"(COUNTIFS(D$3:D$194,4,ID_REG,2))/D210","v":0.17857142857142858},{"$f":"(COUNTIFS(E$3:E$194,4,ID_REG,2))/E210","v":0.11538461538461539},{"$f":"(COUNTIFS(F$3:F$194,4,ID_REG,2))/F210","v":0.18518518518518517},0.10714285714285714,7.1428571428571425E-2,3.5714285714285712E-2,3.7037037037037035E-2,0.21428571428571427,0.21428571428571427,0.14285714285714285,0.21428571428571427,0.10714285714285714,0.21428571428571427,0.14814814814814814,0.17857142857142858,0.14285714285714285,7.1428571428571425E-2,0.1111111111111111,0.18518518518518517,0.32142857142857145,0.23076923076923078,0.17857142857142858,0.10714285714285714,0.22222222222222221,0.32142857142857145,0.39285714285714285,0.4642857142857143,0.2857142857142857,0.39285714285714285,0.25,{"$f":"(COUNTIFS(AH$3:AH$194,4,ID_REG,2))/AH210","v":0.35714285714285715},0.25,0.25,0.32142857142857145,0.2857142857142857,0.39285714285714285,0.2857142857142857,0.2857142857142857,0.2857142857142857,0.42857142857142855,0.17857142857142858,0.2857142857142857,0.21428571428571427,0.42857142857142855,0.14285714285714285,0.10714285714285714,0.21428571428571427,0.17857142857142858,0.21428571428571427,7.1428571428571425E-2,0.35714285714285715,0.25,0.2857142857142857,0.14285714285714285,0.17857142857142858,0.35714285714285715,0.35714285714285715,0.35714285714285715,0.39285714285714285,0.2857142857142857,0.17857142857142858,0.14285714285714285,{"$f":"(COUNTIFS(BN$3:BN$194,4,ID_REG,2))/BN210","v":0.32142857142857145},0.21428571428571427,0.42857142857142855,0.32142857142857145,0.32142857142857145,0.35714285714285715,0.32142857142857145,0.21428571428571427,0.21428571428571427,0.25,0.14285714285714285,0.21428571428571427,0.32142857142857145,0.2857142857142857,0.25,0.2857142857142857,0.14285714285714285,0.32142857142857145,0.17857142857142858,0.2857142857142857,0.21428571428571427,0.25,0.4642857142857143,0.2857142857142857,0.2857142857142857,0.22222222222222221,0.10714285714285714,0.25,0.39285714285714285,0.76,0.4,0.34615384615384615,{"$f":"(COUNTIFS(CT$3:CT$194,4,ID_REG,2))/CT210","v":0.24},0.42307692307692307,0.15384615384615385,0.22222222222222221,0.25925925925925924,0.18518518518518517,0.29629629629629628,0.18518518518518517,0.25925925925925924,0.25925925925925924,0.25925925925925924,0.33333333333333331,0.29629629629629628,0.22222222222222221,0.29629629629629628,0.18518518518518517,0.37037037037037035,0.25925925925925924,0.37037037037037035,null,null,{"$f":"(COUNTIFS(DO$3:DO$194,4,ID_REG,2))/DO210","v":0.2857142857142857},0.35714285714285715,0.5,0.37037037037037035,0.25,0.5357142857142857,0.35714285714285715,0.4642857142857143,0.32142857142857145,0.39285714285714285,0.5357142857142857,0.5357142857142857,0.25,0.35714285714285715,0.32142857142857145,0.33333333333333331,0.32142857142857145,0.35714285714285715,0.4642857142857143,0.39285714285714285,0.2857142857142857,0.39285714285714285,0.42857142857142855,0.25,0.6785714285714286,0.6071428571428571,0.35714285714285715,0.42857142857142855,0.25925925925925924,0.4642857142857143,0.5357142857142857,0.5714285714285714,{"$f":"(COUNTIFS(EU$3:EU$194,4,ID_REG,2))/EU210","v":0.4642857142857143},0.6071428571428571,0.6071428571428571,0.5714285714285714,0.6071428571428571,0.5,0.6071428571428571,0.6071428571428571,0.6428571428571429,0.6428571428571429,0.5,0.4642857142857143,0.33333333333333331,0.44444444444444442,0.55555555555555558,0.6071428571428571,0.5714285714285714,0.55555555555555558,0.62962962962962965,0.59259259259259256,0.51851851851851849,0.48148148148148145,0.51851851851851849,0.57692307692307687,0.48148148148148145,0.55555555555555558,0.51851851851851849,0.44444444444444442]
["ASP: % of responses as 5",{"$f":"(COUNTIFS(B$3:B$194,5,ID_REG,2))/B210","v":0.14285714285714285},{"$f":"(COUNTIFS(C$3:C$194,5,ID_REG,2))/C210","v":3.5714285714285712E-2},{"$f":"(COUNTIFS(D$3:D$194,5,ID_REG,2))/D210","v":0.14285714285714285},{"$f":"(COUNTIFS(E$3:E$194,5,ID_REG,2))/E210","v":0.15384615384615385},{"$f":"(COUNTIFS(F$3:F$194,5,ID_REG,2))/F210","v":0.18518518518518517},0.10714285714285714,0.14285714285714285,0.10714285714285714,0.18518518518518517,0.2857142857142857,0.25,0.21428571428571427,7.1428571428571425E-2,0.10714285714285714,0.14285714285714285,3.7037037037037035E-2,7.1428571428571425E-2,0,0.17857142857142858,7.407407407407407E-2,0.14814814814814814,0.17857142857142858,0.11538461538461539,0.17857142857142858,0.17857142857142858,0.18518518518518517,0.21428571428571427,0.21428571428571427,0.21428571428571427,7.1428571428571425E-2,0.10714285714285714,3.5714285714285712E-2,{"$f":"(COUNTIFS(AH$3:AH$194,5,ID_REG,2))/AH210","v":7.1428571428571425E-2},0.17857142857142858,0.14285714285714285,0.25,0.17857142857142858,0.21428571428571427,0.25,0.2857142857142857,0.14285714285714285,0.17857142857142858,0.25,7.1428571428571425E-2,0.21428571428571427,0.21428571428571427,0.14285714285714285,0.14285714285714285,0.14285714285714285,0.25,0.21428571428571427,0.21428571428571427,0.17857142857142858,0.32142857142857145,0.10714285714285714,0.21428571428571427,0.10714285714285714,0.25,0.35714285714285715,0.25,0.25,0.14285714285714285,0.17857142857142858,0.17857142857142858,{"$f":"(COUNTIFS(BN$3:BN$194,5,ID_REG,2))/BN210","v":0.14285714285714285},0.2857142857142857,0.17857142857142858,0.21428571428571427,0.10714285714285714,0.14285714285714285,0.17857142857142858,7.1428571428571425E-2,7.1428571428571425E-2,0.2857142857142857,0.32142857142857145,0.35714285714285715,0.32142857142857145,0.25,0.39285714285714285,0.21428571428571427,7.1428571428571425E-2,0.17857142857142858,0.21428571428571427,0.35714285714285715,0.2857142857142857,0.35714285714285715,0.21428571428571427,0.25,0.39285714285714285,0.25925925925925924,7.1428571428571425E-2,0.14285714285714285,7.1428571428571425E-2,0.04,0.08,7.6923076923076927E-2,{"$f":"(COUNTIFS(CT$3:CT$194,5,ID_REG,2))/CT210","v":0.08},0.19230769230769232,0,0.22222222222222221,0.1111111111111111,0.1111111111111111,0.18518518518518517,0.1111111111111111,7.407407407407407E-2,0.14814814814814814,0.1111111111111111,7.407407407407407E-2,3.7037037037037035E-2,0.1111111111111111,7.407407407407407E-2,0.22222222222222221,7.407407407407407E-2,0.1111111111111111,0.1111111111111111,null,null,{"$f":"(COUNTIFS(DO$3:DO$194,5,ID_REG,2))/DO210","v":0.14285714285714285},0.5,3.5714285714285712E-2,7.407407407407407E-2,0.17857142857142858,0.25,0.2857142857142857,0.32142857142857145,0.35714285714285715,0.21428571428571427,0.17857142857142858,0.10714285714285714,0.21428571428571427,0.42857142857142855,0.32142857142857145,0.22222222222222221,0.10714285714285714,0.5,0.32142857142857145,0.42857142857142855,0.42857142857142855,0.35714285714285715,0.4642857142857143,0.42857142857142855,0.17857142857142858,0.10714285714285714,0.14285714285714285,0.10714285714285714,3.7037037037037035E-2,0.17857142857142858,0.14285714285714285,0.25,{"$f":"(COUNTIFS(EU$3:EU$194,5,ID_REG,2))/EU210","v":0.14285714285714285},0.10714285714285714,0.14285714285714285,0.21428571428571427,0.17857142857142858,0.17857142857142858,7.1428571428571425E-2,0.21428571428571427,0.21428571428571427,0.14285714285714285,0.17857142857142858,0.14285714285714285,0.1111111111111111,7.407407407407407E-2,3.7037037037037035E-2,0.10714285714285714,0.10714285714285714,0.18518518518518517,7.407407407407407E-2,0.14814814814814814,7.407407407407407E-2,0.1111111111111111,0.1111111111111111,0.19230769230769232,0.1111111111111111,0.18518518518518517,0.18518518518518517,0.1111111111111111]
["ASP: % of responses as 6",{"$f":"(COUNTIFS(B$3:B$194,6,ID_REG,2))/B210","v":0.17857142857142858},{"$f":"(COUNTIFS(C$3:C$194,6,ID_REG,2))/C210","v":7.1428571428571425E-2},{"$f":"(COUNTIFS(D$3:D$194,6,ID_REG,2))/D210","v":0.21428571428571427},{"$f":"(COUNTIFS(E$3:E$194,6,ID_REG,2))/E210","v":3.8461538461538464E-2},{"$f":"(COUNTIFS(F$3:F$194,6,ID_REG,2))/F210","v":0.14814814814814814},3.5714285714285712E-2,7.1428571428571425E-2,0.14285714285714285,0.1111111111111111,0.10714285714285714,0.14285714285714285,7.1428571428571425E-2,3.5714285714285712E-2,7.1428571428571425E-2,7.1428571428571425E-2,0,0,0,7.1428571428571425E-2,0.1111111111111111,0.25925925925925924,0.10714285714285714,7.6923076923076927E-2,3.5714285714285712E-2,3.5714285714285712E-2,0,7.1428571428571425E-2,7.1428571428571425E-2,7.1428571428571425E-2,7.1428571428571425E-2,7.1428571428571425E-2,7.1428571428571425E-2,{"$f":"(COUNTIFS(AH$3:AH$194,6,ID_REG,2))/AH210","v":3.5714285714285712E-2},7.1428571428571425E-2,3.5714285714285712E-2,7.1428571428571425E-2,3.5714285714285712E-2,0.10714285714285714,0.10714285714285714,0.14285714285714285,0.10714285714285714,7.1428571428571425E-2,3.5714285714285712E-2,0,3.5714285714285712E-2,0.10714285714285714,0,0.14285714285714285,7.1428571428571425E-2,3.5714285714285712E-2,7.1428571428571425E-2,7.1428571428571425E-2,0.10714285714285714,0.10714285714285714,7.1428571428571425E-2,3.5714285714285712E-2,0,0.14285714285714285,0.17857142857142858,0.10714285714285714,0.17857142857142858,0,0.14285714285714285,7.1428571428571425E-2,{"$f":"(COUNTIFS(BN$3:BN$194,6,ID_REG,2))/BN210","v":0.14285714285714285},0.10714285714285714,7.1428571428571425E-2,3.5714285714285712E-2,3.5714285714285712E-2,3.5714285714285712E-2,3.5714285714285712E-2,3.5714285714285712E-2,7.1428571428571425E-2,0.17857142857142858,0.14285714285714285,0.14285714285714285,0.10714285714285714,0.17857142857142858,0.17857142857142858,0.17857142857142858,3.5714285714285712E-2,7.1428571428571425E-2,3.5714285714285712E-2,0.17857142857142858,0.14285714285714285,0.14285714285714285,0.10714285714285714,0.17857142857142858,0.14285714285714285,0.1111111111111111,3.5714285714285712E-2,7.1428571428571425E-2,3.5714285714285712E-2]
["EES: % of responses as 1",{"$f":"(COUNTIFS(B$3:B$194,1,ID_REG,4))/B212","v":0},{"$f":"(COUNTIFS(C$3:C$194,1,ID_REG,4))/C212","v":0.16666666666666666},{"$f":"(COUNTIFS(D$3:D$194,1,ID_REG,4))/D212","v":0},{"$f":"(COUNTIFS(E$3:E$194,1,ID_REG,4))/E212","v":0.52941176470588236},{"$f":"(COUNTIFS(F$3:F$194,1,ID_REG,4))/F212","v":5.2631578947368418E-2},0.35294117647058826,5.5555555555555552E-2,0.16666666666666666,0.25,0,0.16666666666666666,5.5555555555555552E-2,0,5.5555555555555552E-2,0.1875,0.1875,0.41176470588235292,0,5.5555555555555552E-2,0,5.2631578947368418E-2,5.5555555555555552E-2,0.15789473684210525,0,5.2631578947368418E-2,0.29411764705882354,0,0,0,0.21052631578947367,5.2631578947368418E-2,0.10526315789473684,{"$f":"(COUNTIFS(AH$3:AH$194,1,ID_REG,4))/AH212","v":0.11764705882352941},0,5.5555555555555552E-2,5.2631578947368418E-2,0.1111111111111111,5.2631578947368418E-2,5.2631578947368418E-2,5.2631578947368418E-2,0,5.2631578947368418E-2,0,0.16666666666666666,0.16666666666666666,5.2631578947368418E-2,0.17647058823529413,0,0.17647058823529413,5.8823529411764705E-2,5.5555555555555552E-2,0.22222222222222221,0.10526315789473684,0,0,5.5555555555555552E-2,5.5555555555555552E-2,5.2631578947368418E-2,0,5.5555555555555552E-2,0,0.10526315789473684,0,5.5555555555555552E-2,{"$f":"(COUNTIFS(BN$3:BN$194,1,ID_REG,4))/BN212","v":0},5.5555555555555552E-2,5.5555555555555552E-2,0.22222222222222221,0.23529411764705882,0,5.5555555555555552E-2,0.16666666666666666,5.5555555555555552E-2,0,0.11764705882352941,5.8823529411764705E-2,5.5555555555555552E-2,0,0,0,0.8,0.5,0.17647058823529413,0,0.11764705882352941,5.8823529411764705E-2,5.8823529411764705E-2,0,0,0,0.875,0.625,0.17647058823529413,0.1111111111111111,0.11764705882352941,0,{"$f":"(COUNTIFS(CT$3:CT$194,1,ID_REG,4))/CT212","v":0.27777777777777779},0.10526315789473684,0.47058823529411764,0,0.11764705882352941,0,0,5.8823529411764705E-2,0.11764705882352941,0,5.8823529411764705E-2,0,5.8823529411764705E-2,0,0,5.8823529411764705E-2,5.8823529411764705E-2,5.8823529411764705E-2,5.8823529411764705E-2,null,null,{"$f":"(COUNTIFS(DO$3:DO$194,1,ID_REG,4))/DO212","v":0},0,0.10526315789473684,5.2631578947368418E-2,5.2631578947368418E-2,5.2631578947368418E-2,0,0,0,5.5555555555555552E-2,0,5.8823529411764705E-2,0.1111111111111111,0,0.1111111111111111,0,5.5555555555555552E-2,0,0,5.2631578947368418E-2,0,0,0,0,0,0,5.2631578947368418E-2,5.8823529411764705E-2,5.5555555555555552E-2,5.2631578947368418E-2,5.2631578947368418E-2,0,{"$f":"(COUNTIFS(EU$3:EU$194,1,ID_REG,4))/EU212","v":0},5.5555555555555552E-2,5.5555555555555552E-2,5.2631578947368418E-2,5.2631578947368418E-2,5.2631578947368418E-2,0,5.2631578947368418E-2,0,5.2631578947368418E-2,5.5555555555555552E-2,5.8823529411764705E-2,0,0,5.5555555555555552E-2,0.1111111111111111,0,5.5555555555555552E-2,0,5.5555555555555552E-2,5.5555555555555552E-2,5.5555555555555552E-2,5.5555555555555552E-2,5.2631578947368418E-2,5.2631578947368418E-2,0.10526315789473684,0,0]
["EES: % of responses as 2",{"$f":"(COUNTIFS(B$3:B$194,2,ID_REG,4))/B212","v":0.21052631578947367},{"$f":"(COUNTIFS(C$3:C$194,2,ID_REG,4))/C212","v":0.27777777777777779},{"$f":"(COUNTIFS(D$3:D$194,2,ID_REG,4))/D212","v":0.15789473684210525},{"$f":"(COUNTIFS(E$3:E$194,2,ID_REG,4))/E212","v":0.23529411764705882},{"$f":"(COUNTIFS(F$3:F$194,2,ID_REG,4))/F212","v":0.36842105263157893},0.35294117647058826,0.5,0.5,0.25,0.27777777777777779,0.16666666666666666,0.22222222222222221,0.5,0.22222222222222221,0.1875,0.375,0.23529411764705882,0.29411764705882354,0.22222222222222221,0.21052631578947367,0.31578947368421051,0.44444444444444442,0.36842105263157893,0.36842105263157893,0.42105263157894735,0.23529411764705882,0.10526315789473684,0.21052631578947367,0.15789473684210525,0.15789473684210525,0.26315789473684209,0.36842105263157893,{"$f":"(COUNTIFS(AH$3:AH$194,2,ID_REG,4))/AH212","v":0.29411764705882354},0.47368421052631576,0.55555555555555558,0.42105263157894735,0.44444444444444442,0.31578947368421051,0.10526315789473684,0.21052631578947367,0.52631578947368418,0.21052631578947367,0.36842105263157893,0.3888888888888889,0.44444444444444442,0.47368421052631576,0.29411764705882354,0.47058823529411764,0.23529411764705882,0.35294117647058826,0.3888888888888889,0.3888888888888889,0.15789473684210525,0.31578947368421051,0.52941176470588236,0.27777777777777779,0.33333333333333331,0,5.2631578947368418E-2,0.22222222222222221,0.10526315789473684,0.21052631578947367,0.21052631578947367,0.33333333333333331,{"$f":"(COUNTIFS(BN$3:BN$194,2,ID_REG,4))/BN212","v":0.26315789473684209},0.22222222222222221,0.55555555555555558,0.27777777777777779,0.47058823529411764,0.17647058823529413,0.5,0.55555555555555558,0.22222222222222221,0.26315789473684209,0.29411764705882354,0.29411764705882354,0.22222222222222221,0.47368421052631576,5.8823529411764705E-2,0.11764705882352941,0.13333333333333333,0.375,0.41176470588235292,0.26315789473684209,0.29411764705882354,0.17647058823529413,0.23529411764705882,0.42105263157894735,0.1111111111111111,0.16666666666666666,6.25E-2,0.1875,0.52941176470588236,0,0,0,{"$f":"(COUNTIFS(CT$3:CT$194,2,ID_REG,4))/CT212","v":0.22222222222222221},5.2631578947368418E-2,0.17647058823529413,0.11764705882352941,0.23529411764705882,0.11764705882352941,0.29411764705882354,0.11764705882352941,0.11764705882352941,0.23529411764705882,0.29411764705882354,0.17647058823529413,0.17647058823529413,0.17647058823529413,0.29411764705882354,0.17647058823529413,0.17647058823529413,0.17647058823529413,0.29411764705882354,null,null,{"$f":"(COUNTIFS(DO$3:DO$194,2,ID_REG,4))/DO212","v":5.2631578947368418E-2},5.2631578947368418E-2,0.26315789473684209,0.21052631578947367,0.15789473684210525,5.2631578947368418E-2,0.15789473684210525,0.15789473684210525,0.15789473684210525,0.22222222222222221,5.5555555555555552E-2,5.8823529411764705E-2,5.5555555555555552E-2,0.16666666666666666,0.27777777777777779,5.5555555555555552E-2,0,5.5555555555555552E-2,5.2631578947368418E-2,5.2631578947368418E-2,0.10526315789473684,5.5555555555555552E-2,0.26315789473684209,0.22222222222222221,0.10526315789473684,0.16666666666666666,0.10526315789473684,0.17647058823529413,0.1111111111111111,0,0,5.2631578947368418E-2,{"$f":"(COUNTIFS(EU$3:EU$194,2,ID_REG,4))/EU212","v":0.11764705882352941},5.5555555555555552E-2,0,0,0,5.2631578947368418E-2,0.10526315789473684,5.2631578947368418E-2,5.5555555555555552E-2,5.2631578947368418E-2,0.16666666666666666,0.17647058823529413,0.21052631578947367,0.23529411764705882,0.22222222222222221,0,0.16666666666666666,0.1111111111111111,0.29411764705882354,0.1111111111111111,0.1111111111111111,0.1111111111111111,0.1111111111111111,0,0.10526315789473684,5.2631578947368418E-2,5.5555555555555552E-2,0.10526315789473684]
["EES: % of responses as 3",{"$f":"(COUNTIFS(B$3:B$194,3,ID_REG,4))/B212","v":0.10526315789473684},{"$f":"(COUNTIFS(C$3:C$194,3,ID_REG,4))/C212","v":0.1111111111111111},{"$f":"(COUNTIFS(D$3:D$194,3,ID_REG,4))/D212","v":0.10526315789473684},{"$f":"(COUNTIFS(E$3:E$194,3,ID_REG,4))/E212","v":0},{"$f":"(COUNTIFS(F$3:F$194,3,ID_REG,4))/F212","v":0.10526315789473684},0,0,5.5555555555555552E-2,6.25E-2,0.1111111111111111,0.1111111111111111,0.16666666666666666,0.16666666666666666,0.1111111111111111,6.25E-2,0.125,0,0,0.1111111111111111,0.10526315789473684,0,0,0,0,5.2631578947368418E-2,0,0.10526315789473684,0.10526315789473684,0.10526315789473684,0.21052631578947367,5.2631578947368418E-2,0,{"$f":"(COUNTIFS(AH$3:AH$194,3,ID_REG,4))/AH212","v":0.11764705882352941},0.10526315789473684,0.1111111111111111,5.2631578947368418E-2,0.1111111111111111,0.10526315789473684,0.15789473684210525,0.10526315789473684,5.2631578947368418E-2,5.2631578947368418E-2,0.10526315789473684,0,0,5.2631578947368418E-2,5.8823529411764705E-2,5.8823529411764705E-2,0.11764705882352941,0.17647058823529413,5.5555555555555552E-2,0.1111111111111111,0.10526315789473684,0.26315789473684209,0.23529411764705882,0.16666666666666666,0.1111111111111111,0.10526315789473684,0.10526315789473684,5.5555555555555552E-2,0.10526315789473684,0.10526315789473684,5.2631578947368418E-2,0.1111111111111111,{"$f":"(COUNTIFS(BN$3:BN$194,3,ID_REG,4))/BN212","v":0.21052631578947367},0.1111111111111111,0,5.5555555555555552E-2,0,0.17647058823529413,5.5555555555555552E-2,0,0.16666666666666666,5.2631578947368418E-2,0.11764705882352941,0.11764705882352941,5.5555555555555552E-2,5.2631578947368418E-2,0.11764705882352941,0.11764705882352941,0,0,0.11764705882352941,5.2631578947368418E-2,0.11764705882352941,0.23529411764705882,5.8823529411764705E-2,0.10526315789473684,0.16666666666666666,0.1111111111111111,0,0.125,5.8823529411764705E-2,0.33333333333333331,5.8823529411764705E-2,0.1111111111111111,{"$f":"(COUNTIFS(CT$3:CT$194,3,ID_REG,4))/CT212","v":0},0.10526315789473684,0.17647058823529413,0.58823529411764708,0.47058823529411764,0.41176470588235292,0.41176470588235292,0.58823529411764708,0.58823529411764708,0.41176470588235292,0.35294117647058826,0.70588235294117652,0.58823529411764708,0.41176470588235292,0.41176470588235292,0.35294117647058826,0.47058823529411764,0.35294117647058826,0.23529411764705882,null,null,{"$f":"(COUNTIFS(DO$3:DO$194,3,ID_REG,4))/DO212","v":0.21052631578947367},0.21052631578947367,0.36842105263157893,0.26315789473684209,0.21052631578947367,0.42105263157894735,0.10526315789473684,0.52631578947368418,0.47368421052631576,0.33333333333333331,0.1111111111111111,0.23529411764705882,0.44444444444444442,0.27777777777777779,0.3888888888888889,0.33333333333333331,0.33333333333333331,0.16666666666666666,0.21052631578947367,0.26315789473684209,0.26315789473684209,0.3888888888888889,0.10526315789473684,0.27777777777777779,0.15789473684210525,0.16666666666666666,0.21052631578947367,0.17647058823529413,0.72222222222222221,0.42105263157894735,0.21052631578947367,0.31578947368421051,{"$f":"(COUNTIFS(EU$3:EU$194,3,ID_REG,4))/EU212","v":0.41176470588235292},0.16666666666666666,0.1111111111111111,0.10526315789473684,0.10526315789473684,0.10526315789473684,0.36842105263157893,0.21052631578947367,0.3888888888888889,0.10526315789473684,0.16666666666666666,5.8823529411764705E-2,0.26315789473684209,0.23529411764705882,0.33333333333333331,0.22222222222222221,0.16666666666666666,0.1111111111111111,5.8823529411764705E-2,0.16666666666666666,5.5555555555555552E-2,5.5555555555555552E-2,5.5555555555555552E-2,0.15789473684210525,0.21052631578947367,0.21052631578947367,0.22222222222222221,0.31578947368421051]
["EES: % of responses as 4",{"$f":"(COUNTIFS(B$3:B$194,4,ID_REG,4))/B212","v":0.26315789473684209},{"$f":"(COUNTIFS(C$3:C$194,4,ID_REG,4))/C212","v":0.33333333333333331},{"$f":"(COUNTIFS(D$3:D$194,4,ID_REG,4))/D212","v":0.21052631578947367},{"$f":"(COUNTIFS(E$3:E$194,4,ID_REG,4))/E212","v":0.17647058823529413},{"$f":"(COUNTIFS(F$3:F$194,4,ID_REG,4))/F212","v":0.15789473684210525},0.17647058823529413,0.22222222222222221,5.5555555555555552E-2,0.25,0.16666666666666666,0.22222222222222221,0.33333333333333331,0.1111111111111111,0.22222222222222221,0.1875,0.125,0.11764705882352941,0.23529411764705882,0.27777777777777779,0.31578947368421051,0.10526315789473684,5.5555555555555552E-2,5.2631578947368418E-2,0.10526315789473684,5.2631578947368418E-2,0.11764705882352941,0.15789473684210525,0.10526315789473684,0.21052631578947367,0,0.10526315789473684,0.10526315789473684,{"$f":"(COUNTIFS(AH$3:AH$194,4,ID_REG,4))/AH212","v":0.11764705882352941},0.10526315789473684,0.1111111111111111,0.15789473684210525,0.16666666666666666,0.15789473684210525,0.21052631578947367,0.21052631578947367,0.15789473684210525,0.31578947368421051,0.15789473684210525,0.33333333333333331,0.1111111111111111,0.15789473684210525,0.17647058823529413,0.17647058823529413,0.17647058823529413,0.17647058823529413,0.16666666666666666,0.16666666666666666,0.15789473684210525,0.15789473684210525,0,0.1111111111111111,0.27777777777777779,0,0.15789473684210525,5.5555555555555552E-2,0.10526315789473684,5.2631578947368418E-2,0.21052631578947367,0.16666666666666666,{"$f":"(COUNTIFS(BN$3:BN$194,4,ID_REG,4))/BN212","v":0.26315789473684209},0.27777777777777779,0.16666666666666666,0.22222222222222221,0.23529411764705882,0.23529411764705882,0.16666666666666666,0.1111111111111111,5.5555555555555552E-2,0.26315789473684209,0.29411764705882354,0.29411764705882354,0.33333333333333331,0.21052631578947367,0.29411764705882354,0.35294117647058826,0,0.125,5.8823529411764705E-2,0.26315789473684209,0.29411764705882354,0.29411764705882354,0.29411764705882354,0.15789473684210525,0.33333333333333331,0.27777777777777779,0,0,5.8823529411764705E-2,0.3888888888888889,0.6470588235294118,0.88888888888888884,{"$f":"(COUNTIFS(CT$3:CT$194,4,ID_REG,4))/CT212","v":0.3888888888888889},0.63157894736842102,0.11764705882352941,0.17647058823529413,0.11764705882352941,0.17647058823529413,0.17647058823529413,0.23529411764705882,0.17647058823529413,0.17647058823529413,0.29411764705882354,0.11764705882352941,0.17647058823529413,0.23529411764705882,0.29411764705882354,0.23529411764705882,0.23529411764705882,0.29411764705882354,0.35294117647058826,null,null,{"$f":"(COUNTIFS(DO$3:DO$194,4,ID_REG,4))/DO212","v":0.57894736842105265},0.15789473684210525,0.26315789473684209,0.31578947368421051,0.47368421052631576,0.36842105263157893,0.36842105263157893,0.21052631578947367,0.26315789473684209,0.16666666666666666,0.55555555555555558,0.47058823529411764,0.27777777777777779,0.3888888888888889,0.22222222222222221,0.5,0.33333333333333331,0.61111111111111116,0.36842105263157893,0.47368421052631576,0.52631578947368418,0.5,0.47368421052631576,0.3888888888888889,0.57894736842105265,0.61111111111111116,0.52631578947368418,0.52941176470588236,0.1111111111111111,0.42105263157894735,0.63157894736842102,0.36842105263157893,{"$f":"(COUNTIFS(EU$3:EU$194,4,ID_REG,4))/EU212","v":0.29411764705882354},0.3888888888888889,0.44444444444444442,0.47368421052631576,0.36842105263157893,0.57894736842105265,0.36842105263157893,0.47368421052631576,0.44444444444444442,0.68421052631578949,0.44444444444444442,0.47058823529411764,0.26315789473684209,0.35294117647058826,0.27777777777777779,0.27777777777777779,0.5,0.66666666666666663,0.58823529411764708,0.33333333333333331,0.44444444444444442,0.5,0.3888888888888889,0.68421052631578949,0.47368421052631576,0.42105263157894735,0.55555555555555558,0.47368421052631576]
["EES: % of responses as 5",{"$f":"(COUNTIFS(B$3:B$194,5,ID_REG,4))/B212","v":0.42105263157894735},{"$f":"(COUNTIFS(C$3:C$194,5,ID_REG,4))/C212","v":0.1111111111111111},{"$f":"(COUNTIFS(D$3:D$194,5,ID_REG,4))/D212","v":0.26315789473684209},{"$f":"(COUNTIFS(E$3:E$194,5,ID_REG,4))/E212","v":5.8823529411764705E-2},{"$f":"(COUNTIFS(F$3:F$194,5,ID_REG,4))/F212","v":0.26315789473684209},0.11764705882352941,0.22222222222222221,0.16666666666666666,0.1875,0.3888888888888889,0.33333333333333331,0.16666666666666666,0.22222222222222221,0.3888888888888889,0.375,0.1875,0.23529411764705882,0.47058823529411764,0.27777777777777779,0.21052631578947367,0.26315789473684209,0.22222222222222221,0.21052631578947367,0.36842105263157893,0.26315789473684209,0.17647058823529413,0.42105263157894735,0.47368421052631576,0.36842105263157893,0.31578947368421051,0.36842105263157893,0.31578947368421051,{"$f":"(COUNTIFS(AH$3:AH$194,5,ID_REG,4))/AH212","v":0.23529411764705882},0.26315789473684209,0.16666666666666666,0.26315789473684209,0.16666666666666666,0.31578947368421051,0.26315789473684209,0.31578947368421051,5.2631578947368418E-2,0.15789473684210525,0.21052631578947367,0.1111111111111111,0.16666666666666666,0.15789473684210525,0.17647058823529413,0.23529411764705882,0.17647058823529413,0.17647058823529413,0.22222222222222221,0.1111111111111111,0.26315789473684209,0.26315789473684209,0.23529411764705882,0.33333333333333331,0.22222222222222221,0.42105263157894735,0.42105263157894735,0.33333333333333331,0.42105263157894735,0.42105263157894735,0.31578947368421051,0.22222222222222221,{"$f":"(COUNTIFS(BN$3:BN$194,5,ID_REG,4))/BN212","v":0.10526315789473684},0.1111111111111111,0.16666666666666666,0.22222222222222221,5.8823529411764705E-2,0.17647058823529413,0.16666666666666666,0.16666666666666666,0.22222222222222221,0.31578947368421051,0.11764705882352941,0.11764705882352941,0.22222222222222221,0.21052631578947367,0.52941176470588236,0.35294117647058826,6.6666666666666666E-2,0,0.23529411764705882,0.26315789473684209,0.11764705882352941,0.11764705882352941,0.23529411764705882,0.15789473684210525,0.33333333333333331,0.33333333333333331,6.25E-2,6.25E-2,5.8823529411764705E-2,0.16666666666666666,0.17647058823529413,0,{"$f":"(COUNTIFS(CT$3:CT$194,5,ID_REG,4))/CT212","v":0.1111111111111111},0.10526315789473684,5.8823529411764705E-2,0.11764705882352941,5.8823529411764705E-2,0.29411764705882354,0.11764705882352941,0,0,0.17647058823529413,0,0,0,0.17647058823529413,0,0.17647058823529413,5.8823529411764705E-2,0.11764705882352941,5.8823529411764705E-2,null,null,{"$f":"(COUNTIFS(DO$3:DO$194,5,ID_REG,4))/DO212","v":0.15789473684210525},0.57894736842105265,0,0.15789473684210525,0.10526315789473684,0.10526315789473684,0.36842105263157893,0.10526315789473684,0.10526315789473684,0.22222222222222221,0.27777777777777779,0.17647058823529413,0.1111111111111111,0.16666666666666666,0,0.1111111111111111,0.27777777777777779,0.16666666666666666,0.36842105263157893,0.15789473684210525,0.10526315789473684,5.5555555555555552E-2,0.15789473684210525,0.1111111111111111,0.15789473684210525,5.5555555555555552E-2,0.10526315789473684,5.8823529411764705E-2,0,0.10526315789473684,0.10526315789473684,0.26315789473684209,{"$f":"(COUNTIFS(EU$3:EU$194,5,ID_REG,4))/EU212","v":0.17647058823529413},0.33333333333333331,0.3888888888888889,0.36842105263157893,0.47368421052631576,0.21052631578947367,0.15789473684210525,0.21052631578947367,0.1111111111111111,0.10526315789473684,0.16666666666666666,0.23529411764705882,0.26315789473684209,0.17647058823529413,0.1111111111111111,0.3888888888888889,0.16666666666666666,5.5555555555555552E-2,5.8823529411764705E-2,0.33333333333333331,0.33333333333333331,0.27777777777777779,0.3888888888888889,0.10526315789473684,0.15789473684210525,0.21052631578947367,0.16666666666666666,0.10526315789473684]
["EES: % of responses as 6",{"$f":"(COUNTIFS(B$3:B$194,6,ID_REG,4))/B212","v":0},{"$f":"(COUNTIFS(C$3:C$194,6,ID_REG,4))/C212","v":0},{"$f":"(COUNTIFS(D$3:D$194,6,ID_REG,4))/D212","v":0.26315789473684209},{"$f":"(COUNTIFS(E$3:E$194,6,ID_REG,4))/E212","v":0},{"$f":"(COUNTIFS(F$3:F$194,6,ID_REG,4))/F212","v":5.2631578947368418E-2},0,0,5.5555555555555552E-2,0,5.5555555555555552E-2,0,5.5555555555555552E-2,0,0,0,0,0,0,5.5555555555555552E-2,0.15789473684210525,0.26315789473684209,0.22222222222222221,0.21052631578947367,0.15789473684210525,0.15789473684210525,0.17647058823529413,0.21052631578947367,0.10526315789473684,0.15789473684210525,0.10526315789473684,0.15789473684210525,0.10526315789473684,{"$f":"(COUNTIFS(AH$3:AH$194,6,ID_REG,4))/AH212","v":0.11764705882352941},5.2631578947368418E-2,0,5.2631578947368418E-2,0,5.2631578947368418E-2,0.21052631578947367,0.10526315789473684,0.21052631578947367,0.21052631578947367,0.15789473684210525,0,0.1111111111111111,0.10526315789473684,0.11764705882352941,5.8823529411764705E-2,0.11764705882352941,5.8823529411764705E-2,0.1111111111111111,0,0.21052631578947367,0,0,5.5555555555555552E-2,0,0.42105263157894735,0.26315789473684209,0.27777777777777779,0.26315789473684209,0.10526315789473684,0.21052631578947367,0.1111111111111111,{"$f":"(COUNTIFS(BN$3:BN$194,6,ID_REG,4))/BN212","v":0.15789473684210525},0.22222222222222221,5.5555555555555552E-2,0,0,0.23529411764705882,5.5555555555555552E-2,0,0.27777777777777779,0.10526315789473684,5.8823529411764705E-2,0.11764705882352941,0.1111111111111111,5.2631578947368418E-2,0,5.8823529411764705E-2,0,0,0,0.15789473684210525,5.8823529411764705E-2,0.11764705882352941,0.11764705882352941,0.15789473684210525,5.5555555555555552E-2,0.1111111111111111,0,0,0.11764705882352941]
["LAC: % of responses as 1",{"$f":"(COUNTIFS(B$3:B$194,1,ID_REG,1))/B209","v":4.5454545454545456E-2},{"$f":"(COUNTIFS(C$3:C$194,1,ID_REG,1))/C209","v":0.52380952380952384},{"$f":"(COUNTIFS(D$3:D$194,1,ID_REG,1))/D209","v":4.5454545454545456E-2},{"$f":"(COUNTIFS(E$3:E$194,1,ID_REG,1))/E209","v":0.66666666666666663},{"$f":"(COUNTIFS(F$3:F$194,1,ID_REG,1))/F209","v":0},0.40909090909090912,9.0909090909090912E-2,4.5454545454545456E-2,0.14285714285714285,4.5454545454545456E-2,0,0,4.5454545454545456E-2,4.5454545454545456E-2,4.5454545454545456E-2,0.22727272727272727,0.18181818181818182,0.14285714285714285,0.14285714285714285,0.45454545454545453,0.36363636363636365,9.0909090909090912E-2,0.31818181818181818,0.13636363636363635,0.45454545454545453,0.27272727272727271,0,4.5454545454545456E-2,0,9.0909090909090912E-2,9.0909090909090912E-2,9.0909090909090912E-2,{"$f":"(COUNTIFS(AH$3:AH$194,1,ID_REG,1))/AH209","v":0.22727272727272727},0,0.14285714285714285,0,0.23809523809523808,0,4.5454545454545456E-2,9.0909090909090912E-2,9.0909090909090912E-2,0,0,9.0909090909090912E-2,9.0909090909090912E-2,0,9.0909090909090912E-2,0.13636363636363635,0.13636363636363635,0,9.0909090909090912E-2,0.27272727272727271,4.5454545454545456E-2,0,0,0.45454545454545453,9.0909090909090912E-2,0,0,9.0909090909090912E-2,0,0,0,9.0909090909090912E-2,{"$f":"(COUNTIFS(BN$3:BN$194,1,ID_REG,1))/BN209","v":0},0,0,0,4.7619047619047616E-2,0,4.7619047619047616E-2,0.19047619047619047,0.14285714285714285,4.5454545454545456E-2,0,0.14285714285714285,4.5454545454545456E-2,4.5454545454545456E-2,0,4.5454545454545456E-2,0.45454545454545453,0.18181818181818182,0.22727272727272727,0.13636363636363635,0.13636363636363635,0.19047619047619047,0.18181818181818182,9.0909090909090912E-2,0,0,0.40909090909090912,0.31818181818181818,0.18181818181818182,0.25,4.7619047619047616E-2,4.7619047619047616E-2,{"$f":"(COUNTIFS(CT$3:CT$194,1,ID_REG,1))/CT209","v":0.14285714285714285},0.14285714285714285,0.14285714285714285,0.1,0.05,0.1,0.05,0.2,0.2,0.1,0.1,0.05,0.1,0.1,0.05,0.05,0.05,0.05,0.05,null,null,{"$f":"(COUNTIFS(DO$3:DO$194,1,ID_REG,1))/DO209","v":4.5454545454545456E-2},9.0909090909090912E-2,9.5238095238095233E-2,9.0909090909090912E-2,0.13636363636363635,4.7619047619047616E-2,0,4.5454545454545456E-2,0.13636363636363635,0.22727272727272727,4.5454545454545456E-2,9.0909090909090912E-2,4.5454545454545456E-2,9.0909090909090912E-2,4.5454545454545456E-2,0,4.5454545454545456E-2,0,0,0,0,0,9.0909090909090912E-2,4.5454545454545456E-2,0,0.19047619047619047,0.31818181818181818,0.40909090909090912,0.13636363636363635,4.5454545454545456E-2,9.5238095238095233E-2,0,{"$f":"(COUNTIFS(EU$3:EU$194,1,ID_REG,1))/EU209","v":0.13636363636363635},9.0909090909090912E-2,0,0,0,4.5454545454545456E-2,4.5454545454545456E-2,0,0,0,0.13636363636363635,4.7619047619047616E-2,0.1,9.5238095238095233E-2,0,0.13636363636363635,0,4.5454545454545456E-2,0,4.5454545454545456E-2,9.0909090909090912E-2,4.5454545454545456E-2,4.5454545454545456E-2,9.0909090909090912E-2,4.5454545454545456E-2,0,0,4.5454545454545456E-2]
["LAC: % of responses as 2",{"$f":"(COUNTIFS(B$3:B$194,2,ID_REG,1))/B209","v":0.18181818181818182},{"$f":"(COUNTIFS(C$3:C$194,2,ID_REG,1))/C209","v":0.14285714285714285},{"$f":"(COUNTIFS(D$3:D$194,2,ID_REG,1))/D209","v":0.22727272727272727},{"$f":"(COUNTIFS(E$3:E$194,2,ID_REG,1))/E209","v":4.7619047619047616E-2},{"$f":"(COUNTIFS(F$3:F$194,2,ID_REG,1))/F209","v":0.40909090909090912},0.40909090909090912,0.5,0.40909090909090912,0.47619047619047616,0.31818181818181818,0.22727272727272727,0.38095238095238093,0.31818181818181818,0.59090909090909094,0.31818181818181818,0.5,0.36363636363636365,0.33333333333333331,0.42857142857142855,0.18181818181818182,0.18181818181818182,0.27272727272727271,0.45454545454545453,0.54545454545454541,0.22727272727272727,0.40909090909090912,0.31818181818181818,0.18181818181818182,0.22727272727272727,0.36363636363636365,0.27272727272727271,0.5,{"$f":"(COUNTIFS(AH$3:AH$194,2,ID_REG,1))/AH209","v":0.31818181818181818},0.31818181818181818,0.42857142857142855,0.45454545454545453,0.33333333333333331,0.36363636363636365,0.40909090909090912,0.40909090909090912,0.40909090909090912,0.31818181818181818,0.36363636363636365,0.59090909090909094,0.40909090909090912,0.5,0.54545454545454541,0.45454545454545453,0.31818181818181818,0.54545454545454541,0.45454545454545453,0.45454545454545453,0.36363636363636365,0.27272727272727271,0.36363636363636365,0.13636363636363635,0.59090909090909094,0.13636363636363635,0.18181818181818182,0.22727272727272727,4.5454545454545456E-2,0.33333333333333331,0.18181818181818182,0.31818181818181818,{"$f":"(COUNTIFS(BN$3:BN$194,2,ID_REG,1))/BN209","v":0.36363636363636365},0.13636363636363635,0.38095238095238093,0.33333333333333331,0.61904761904761907,0.38095238095238093,0.33333333333333331,0.47619047619047616,0.38095238095238093,9.0909090909090912E-2,9.0909090909090912E-2,9.5238095238095233E-2,0.13636363636363635,0.18181818181818182,0,9.0909090909090912E-2,0.18181818181818182,0.13636363636363635,0.45454545454545453,0.18181818181818182,0.22727272727272727,9.5238095238095233E-2,0.18181818181818182,0.18181818181818182,0.13636363636363635,0.27272727272727271,0.27272727272727271,0.18181818181818182,0.5,0.05,0,9.5238095238095233E-2,{"$f":"(COUNTIFS(CT$3:CT$194,2,ID_REG,1))/CT209","v":0.19047619047619047},0.38095238095238093,0.5714285714285714,0.25,0.3,0.25,0.2,0.25,0.1,0.15,0.25,0.4,0.35,0.25,0.25,0.15,0.15,0.25,0.1,null,null,{"$f":"(COUNTIFS(DO$3:DO$194,2,ID_REG,1))/DO209","v":9.0909090909090912E-2},0,0.14285714285714285,0.36363636363636365,0.18181818181818182,9.5238095238095233E-2,0.13636363636363635,9.0909090909090912E-2,0.13636363636363635,0,9.0909090909090912E-2,9.0909090909090912E-2,0.18181818181818182,0,4.5454545454545456E-2,4.5454545454545456E-2,9.0909090909090912E-2,0,0,9.0909090909090912E-2,9.0909090909090912E-2,4.5454545454545456E-2,9.0909090909090912E-2,4.5454545454545456E-2,4.5454545454545456E-2,0,4.5454545454545456E-2,4.5454545454545456E-2,0.36363636363636365,9.0909090909090912E-2,0,4.5454545454545456E-2,{"$f":"(COUNTIFS(EU$3:EU$194,2,ID_REG,1))/EU209","v":4.5454545454545456E-2},9.0909090909090912E-2,0,0,4.5454545454545456E-2,0,0,0,0,0,9.0909090909090912E-2,0.14285714285714285,0.05,4.7619047619047616E-2,0.2,4.5454545454545456E-2,4.5454545454545456E-2,0,0,9.0909090909090912E-2,0,4.5454545454545456E-2,4.5454545454545456E-2,0.13636363636363635,0.13636363636363635,4.5454545454545456E-2,0,4.5454545454545456E-2]
["LAC: % of responses as 3",{"$f":"(COUNTIFS(B$3:B$194,3,ID_REG,1))/B209","v":9.0909090909090912E-2},{"$f":"(COUNTIFS(C$3:C$194,3,ID_REG,1))/C209","v":0.14285714285714285},{"$f":"(COUNTIFS(D$3:D$194,3,ID_REG,1))/D209","v":0.13636363636363635},{"$f":"(COUNTIFS(E$3:E$194,3,ID_REG,1))/E209","v":9.5238095238095233E-2},{"$f":"(COUNTIFS(F$3:F$194,3,ID_REG,1))/F209","v":0.22727272727272727},9.0909090909090912E-2,0.18181818181818182,0.18181818181818182,4.7619047619047616E-2,0.13636363636363635,0.22727272727272727,0.23809523809523808,0.18181818181818182,9.0909090909090912E-2,0.22727272727272727,9.0909090909090912E-2,0.18181818181818182,0.19047619047619047,4.7619047619047616E-2,9.0909090909090912E-2,9.0909090909090912E-2,0.22727272727272727,4.5454545454545456E-2,9.0909090909090912E-2,9.0909090909090912E-2,4.5454545454545456E-2,9.0909090909090912E-2,0,0.13636363636363635,9.0909090909090912E-2,0.13636363636363635,4.5454545454545456E-2,{"$f":"(COUNTIFS(AH$3:AH$194,3,ID_REG,1))/AH209","v":4.5454545454545456E-2},0.22727272727272727,0.14285714285714285,9.0909090909090912E-2,4.7619047619047616E-2,0.18181818181818182,0,9.0909090909090912E-2,0,4.5454545454545456E-2,4.5454545454545456E-2,4.5454545454545456E-2,4.5454545454545456E-2,4.5454545454545456E-2,0.13636363636363635,4.5454545454545456E-2,0.22727272727272727,0.13636363636363635,4.5454545454545456E-2,4.5454545454545456E-2,4.5454545454545456E-2,9.0909090909090912E-2,0.13636363636363635,9.0909090909090912E-2,9.0909090909090912E-2,0.18181818181818182,0.13636363636363635,0.18181818181818182,9.0909090909090912E-2,9.5238095238095233E-2,0.18181818181818182,9.0909090909090912E-2,{"$f":"(COUNTIFS(BN$3:BN$194,3,ID_REG,1))/BN209","v":9.0909090909090912E-2},9.0909090909090912E-2,0.19047619047619047,0.19047619047619047,4.7619047619047616E-2,0.19047619047619047,0.2857142857142857,0.14285714285714285,0.23809523809523808,0.18181818181818182,0.13636363636363635,4.7619047619047616E-2,9.0909090909090912E-2,0.13636363636363635,4.5454545454545456E-2,4.5454545454545456E-2,0,9.0909090909090912E-2,4.5454545454545456E-2,9.0909090909090912E-2,9.0909090909090912E-2,9.5238095238095233E-2,9.0909090909090912E-2,4.5454545454545456E-2,4.5454545454545456E-2,4.5454545454545456E-2,4.5454545454545456E-2,0.18181818181818182,9.0909090909090912E-2,0.05,4.7619047619047616E-2,9.5238095238095233E-2,{"$f":"(COUNTIFS(CT$3:CT$194,3,ID_REG,1))/CT209","v":4.7619047619047616E-2},4.7619047619047616E-2,0,0.35,0.35,0.55000000000000004,0.45,0.35,0.45,0.5,0.35,0.3,0.25,0.4,0.5,0.45,0.45,0.5,0.6,null,null,{"$f":"(COUNTIFS(DO$3:DO$194,3,ID_REG,1))/DO209","v":0.18181818181818182},0.13636363636363635,0.38095238095238093,0.18181818181818182,0.31818181818181818,0.19047619047619047,9.0909090909090912E-2,4.5454545454545456E-2,0.22727272727272727,0.27272727272727271,0.18181818181818182,0.18181818181818182,9.0909090909090912E-2,9.0909090909090912E-2,0.22727272727272727,0.40909090909090912,0.31818181818181818,0.18181818181818182,0.13636363636363635,9.0909090909090912E-2,0.31818181818181818,0.31818181818181818,0.13636363636363635,0.40909090909090912,0.18181818181818182,0.2857142857142857,0.31818181818181818,0.31818181818181818,0.36363636363636365,0.27272727272727271,0.23809523809523808,0.22727272727272727,{"$f":"(COUNTIFS(EU$3:EU$194,3,ID_REG,1))/EU209","v":0.27272727272727271},0.22727272727272727,9.0909090909090912E-2,9.0909090909090912E-2,0.13636363636363635,4.5454545454545456E-2,0.13636363636363635,0,0.18181818181818182,0.22727272727272727,0.18181818181818182,0.33333333333333331,0.5,0.42857142857142855,0.35,4.5454545454545456E-2,0.27272727272727271,0.22727272727272727,0.42857142857142855,0.22727272727272727,9.0909090909090912E-2,0.18181818181818182,0.18181818181818182,9.0909090909090912E-2,0.13636363636363635,9.0909090909090912E-2,9.0909090909090912E-2,0.22727272727272727]
["LAC: % of responses as 4",{"$f":"(COUNTIFS(B$3:B$194,4,ID_REG,1))/B209","v":0.22727272727272727},{"$f":"(COUNTIFS(C$3:C$194,4,ID_REG,1))/C209","v":9.5238095238095233E-2},{"$f":"(COUNTIFS(D$3:D$194,4,ID_REG,1))/D209","v":0.18181818181818182},{"$f":"(COUNTIFS(E$3:E$194,4,ID_REG,1))/E209","v":4.7619047619047616E-2},{"$f":"(COUNTIFS(F$3:F$194,4,ID_REG,1))/F209","v":0.18181818181818182},9.0909090909090912E-2,4.5454545454545456E-2,0.18181818181818182,4.7619047619047616E-2,0.22727272727272727,0.36363636363636365,0.19047619047619047,0.22727272727272727,4.5454545454545456E-2,0.18181818181818182,4.5454545454545456E-2,0.18181818181818182,0.19047619047619047,0.14285714285714285,0.13636363636363635,0.18181818181818182,0.18181818181818182,0,9.0909090909090912E-2,0.13636363636363635,9.0909090909090912E-2,0.18181818181818182,0.5,0.22727272727272727,0.18181818181818182,0.13636363636363635,9.0909090909090912E-2,{"$f":"(COUNTIFS(AH$3:AH$194,4,ID_REG,1))/AH209","v":0.22727272727272727},0.18181818181818182,0.14285714285714285,0.31818181818181818,0.2857142857142857,0.27272727272727271,0.22727272727272727,9.0909090909090912E-2,0.18181818181818182,0.22727272727272727,0.22727272727272727,0.18181818181818182,0.13636363636363635,0.13636363636363635,9.0909090909090912E-2,0.13636363636363635,0.18181818181818182,0.13636363636363635,0.27272727272727271,0.18181818181818182,0.18181818181818182,0.27272727272727271,0.22727272727272727,0.18181818181818182,0.13636363636363635,9.0909090909090912E-2,0.13636363636363635,0.18181818181818182,0.40909090909090912,0.2857142857142857,0.22727272727272727,0.36363636363636365,{"$f":"(COUNTIFS(BN$3:BN$194,4,ID_REG,1))/BN209","v":0.22727272727272727},0.59090909090909094,0.23809523809523808,0.33333333333333331,0.23809523809523808,0.33333333333333331,0.23809523809523808,0.14285714285714285,9.5238095238095233E-2,0.31818181818181818,0.45454545454545453,4.7619047619047616E-2,0.31818181818181818,0.36363636363636365,0.18181818181818182,0.40909090909090912,0.13636363636363635,0.40909090909090912,0.18181818181818182,0.18181818181818182,0.27272727272727271,0.23809523809523808,0.13636363636363635,0.40909090909090912,0.18181818181818182,0.31818181818181818,4.5454545454545456E-2,0.18181818181818182,0.18181818181818182,0.5,0.5714285714285714,0.38095238095238093,{"$f":"(COUNTIFS(CT$3:CT$194,4,ID_REG,1))/CT209","v":0.38095238095238093},0.42857142857142855,0.2857142857142857,0.25,0.2,0.05,0.25,0.15,0.2,0.2,0.25,0.25,0.3,0.25,0.2,0.2,0.25,0.1,0.1,null,null,{"$f":"(COUNTIFS(DO$3:DO$194,4,ID_REG,1))/DO209","v":0.45454545454545453},0.13636363636363635,0.33333333333333331,0.27272727272727271,0.31818181818181818,0.33333333333333331,0.40909090909090912,0.45454545454545453,0.31818181818181818,0.27272727272727271,0.36363636363636365,0.22727272727272727,0.31818181818181818,0.13636363636363635,0.40909090909090912,0.31818181818181818,0.36363636363636365,0.22727272727272727,0.18181818181818182,0.27272727272727271,0.22727272727272727,0.22727272727272727,0.31818181818181818,0.22727272727272727,0.36363636363636365,0.33333333333333331,0.22727272727272727,0.22727272727272727,0.13636363636363635,0.5,0.5714285714285714,0.40909090909090912,{"$f":"(COUNTIFS(EU$3:EU$194,4,ID_REG,1))/EU209","v":0.45454545454545453},0.22727272727272727,0.36363636363636365,0.36363636363636365,0.27272727272727271,0.5,0.54545454545454541,0.5,0.27272727272727271,0.36363636363636365,0.31818181818181818,0.33333333333333331,0.2,0.33333333333333331,0.4,0.63636363636363635,0.36363636363636365,0.5,0.33333333333333331,0.31818181818181818,0.45454545454545453,0.27272727272727271,0.31818181818181818,0.40909090909090912,0.36363636363636365,0.31818181818181818,0.36363636363636365,0.31818181818181818]
["LAC: % of responses as 5",{"$f":"(COUNTIFS(B$3:B$194,5,ID_REG,1))/B209","v":0.40909090909090912},{"$f":"(COUNTIFS(C$3:C$194,5,ID_REG,1))/C209","v":9.5238095238095233E-2},{"$f":"(COUNTIFS(D$3:D$194,5,ID_REG,1))/D209","v":0.18181818181818182},{"$f":"(COUNTIFS(E$3:E$194,5,ID_REG,1))/E209","v":0.14285714285714285},{"$f":"(COUNTIFS(F$3:F$194,5,ID_REG,1))/F209","v":0.18181818181818182},0,0.13636363636363635,0.18181818181818182,0.23809523809523808,0.27272727272727271,0.18181818181818182,0.19047619047619047,0.18181818181818182,0.22727272727272727,0.18181818181818182,0.13636363636363635,9.0909090909090912E-2,9.5238095238095233E-2,0.19047619047619047,4.5454545454545456E-2,4.5454545454545456E-2,9.0909090909090912E-2,9.0909090909090912E-2,9.0909090909090912E-2,9.0909090909090912E-2,0.13636363636363635,0.22727272727272727,0.18181818181818182,0.22727272727272727,0.13636363636363635,0.22727272727272727,0.18181818181818182,{"$f":"(COUNTIFS(AH$3:AH$194,5,ID_REG,1))/AH209","v":0.13636363636363635},0.18181818181818182,9.5238095238095233E-2,0.13636363636363635,9.5238095238095233E-2,0.13636363636363635,0.22727272727272727,0.22727272727272727,0.22727272727272727,0.22727272727272727,0.27272727272727271,4.5454545454545456E-2,0.22727272727272727,0.22727272727272727,9.0909090909090912E-2,0.13636363636363635,9.0909090909090912E-2,9.0909090909090912E-2,0.13636363636363635,4.5454545454545456E-2,0.27272727272727271,0.22727272727272727,0.27272727272727271,9.0909090909090912E-2,9.0909090909090912E-2,0.36363636363636365,0.40909090909090912,0.22727272727272727,0.36363636363636365,0.19047619047619047,0.31818181818181818,0.13636363636363635,{"$f":"(COUNTIFS(BN$3:BN$194,5,ID_REG,1))/BN209","v":0.27272727272727271},9.0909090909090912E-2,9.5238095238095233E-2,9.5238095238095233E-2,4.7619047619047616E-2,9.5238095238095233E-2,4.7619047619047616E-2,0,9.5238095238095233E-2,0.31818181818181818,0.27272727272727271,0.5714285714285714,0.31818181818181818,0.27272727272727271,0.59090909090909094,0.36363636363636365,0.13636363636363635,4.5454545454545456E-2,9.0909090909090912E-2,0.31818181818181818,0.22727272727272727,0.23809523809523808,0.27272727272727271,0.27272727272727271,0.45454545454545453,0.31818181818181818,0.18181818181818182,0,4.5454545454545456E-2,0.15,0.33333333333333331,0.38095238095238093,{"$f":"(COUNTIFS(CT$3:CT$194,5,ID_REG,1))/CT209","v":0.23809523809523808},0,0,0.05,0.1,0.05,0.05,0.05,0.05,0.05,0.05,0,0,0,0,0.15,0.1,0.1,0.15,null,null,{"$f":"(COUNTIFS(DO$3:DO$194,5,ID_REG,1))/DO209","v":0.22727272727272727},0.63636363636363635,4.7619047619047616E-2,9.0909090909090912E-2,4.5454545454545456E-2,0.33333333333333331,0.36363636363636365,0.36363636363636365,0.18181818181818182,0.22727272727272727,0.31818181818181818,0.40909090909090912,0.36363636363636365,0.68181818181818177,0.27272727272727271,0.22727272727272727,0.18181818181818182,0.59090909090909094,0.68181818181818177,0.54545454545454541,0.36363636363636365,0.40909090909090912,0.36363636363636365,0.27272727272727271,0.40909090909090912,0.19047619047619047,9.0909090909090912E-2,0,0,9.0909090909090912E-2,9.5238095238095233E-2,0.31818181818181818,{"$f":"(COUNTIFS(EU$3:EU$194,5,ID_REG,1))/EU209","v":9.0909090909090912E-2},0.36363636363636365,0.54545454545454541,0.54545454545454541,0.54545454545454541,0.40909090909090912,0.27272727272727271,0.5,0.54545454545454541,0.40909090909090912,0.27272727272727271,0.14285714285714285,0.15,9.5238095238095233E-2,0.05,0.13636363636363635,0.31818181818181818,0.22727272727272727,0.23809523809523808,0.31818181818181818,0.36363636363636365,0.45454545454545453,0.40909090909090912,0.27272727272727271,0.31818181818181818,0.54545454545454541,0.54545454545454541,0.36363636363636365]
["LAC: % of responses as 6",{"$f":"(COUNTIFS(B$3:B$194,6,ID_REG,1))/B209","v":4.5454545454545456E-2},{"$f":"(COUNTIFS(C$3:C$194,6,ID_REG,1))/C209","v":0},{"$f":"(COUNTIFS(D$3:D$194,6,ID_REG,1))/D209","v":0.22727272727272727},{"$f":"(COUNTIFS(E$3:E$194,6,ID_REG,1))/E209","v":0},{"$f":"(COUNTIFS(F$3:F$194,6,ID_REG,1))/F209","v":0},0,4.5454545454545456E-2,0,4.7619047619047616E-2,0,0,0,4.5454545454545456E-2,0,4.5454545454545456E-2,0,0,4.7619047619047616E-2,4.7619047619047616E-2,9.0909090909090912E-2,0.13636363636363635,0.13636363636363635,9.0909090909090912E-2,4.5454545454545456E-2,0,4.5454545454545456E-2,0.18181818181818182,9.0909090909090912E-2,0.18181818181818182,0.13636363636363635,0.13636363636363635,9.0909090909090912E-2,{"$f":"(COUNTIFS(AH$3:AH$194,6,ID_REG,1))/AH209","v":4.5454545454545456E-2},9.0909090909090912E-2,4.7619047619047616E-2,0,0,4.5454545454545456E-2,9.0909090909090912E-2,9.0909090909090912E-2,9.0909090909090912E-2,0.18181818181818182,9.0909090909090912E-2,4.5454545454545456E-2,9.0909090909090912E-2,9.0909090909090912E-2,4.5454545454545456E-2,9.0909090909090912E-2,4.5454545454545456E-2,9.0909090909090912E-2,0,0,9.0909090909090912E-2,0.13636363636363635,0,4.5454545454545456E-2,0,0.22727272727272727,0.13636363636363635,9.0909090909090912E-2,9.0909090909090912E-2,9.5238095238095233E-2,9.0909090909090912E-2,0,{"$f":"(COUNTIFS(BN$3:BN$194,6,ID_REG,1))/BN209","v":4.5454545454545456E-2},9.0909090909090912E-2,9.5238095238095233E-2,4.7619047619047616E-2,0,0,4.7619047619047616E-2,4.7619047619047616E-2,4.7619047619047616E-2,4.5454545454545456E-2,4.5454545454545456E-2,9.5238095238095233E-2,9.0909090909090912E-2,0,0.18181818181818182,4.5454545454545456E-2,9.0909090909090912E-2,0.13636363636363635,0,9.0909090909090912E-2,4.5454545454545456E-2,0.14285714285714285,0.13636363636363635,0,0.18181818181818182,4.5454545454545456E-2,4.5454545454545456E-2,0.13636363636363635,0]
["WEO: % of responses as 1",{"$f":"(COUNTIFS(B$3:B$194,1,ID_REG,5))/B213","v":0},{"$f":"(COUNTIFS(C$3:C$194,1,ID_REG,5))/C213","v":0.25},{"$f":"(COUNTIFS(D$3:D$194,1,ID_REG,5))/D213","v":0},{"$f":"(COUNTIFS(E$3:E$194,1,ID_REG,5))/E213","v":0.47826086956521741},{"$f":"(COUNTIFS(F$3:F$194,1,ID_REG,5))/F213","v":4.5454545454545456E-2},0.45454545454545453,0.13043478260869565,0,0.81818181818181823,4.3478260869565216E-2,0.56521739130434778,0.31818181818181818,8.6956521739130432E-2,0.30434782608695654,9.5238095238095233E-2,0.73913043478260865,0.18181818181818182,4.3478260869565216E-2,0.25,0.16666666666666666,8.3333333333333329E-2,4.1666666666666664E-2,8.3333333333333329E-2,8.3333333333333329E-2,0.125,0.36363636363636365,0,0,4.1666666666666664E-2,8.3333333333333329E-2,8.3333333333333329E-2,0.125,{"$f":"(COUNTIFS(AH$3:AH$194,1,ID_REG,5))/AH213","v":0.68181818181818177},0.16666666666666666,0.16666666666666666,0.16666666666666666,0.17391304347826086,0.17391304347826086,8.6956521739130432E-2,0,4.1666666666666664E-2,0,0,0.13043478260869565,0,4.1666666666666664E-2,0.125,0.2608695652173913,0.18181818181818182,0.125,8.6956521739130432E-2,0.39130434782608697,0,4.1666666666666664E-2,0.125,0.17391304347826086,0,8.3333333333333329E-2,0,0,0,0,0,8.6956521739130432E-2,{"$f":"(COUNTIFS(BN$3:BN$194,1,ID_REG,5))/BN213","v":0},8.3333333333333329E-2,4.1666666666666664E-2,8.6956521739130432E-2,0.16666666666666666,4.1666666666666664E-2,4.3478260869565216E-2,0.42857142857142855,4.3478260869565216E-2,0.13043478260869565,0.5,0.18181818181818182,0.17391304347826086,0.125,4.3478260869565216E-2,4.3478260869565216E-2,0.75,0.47826086956521741,8.6956521739130432E-2,0.16666666666666666,0.56521739130434778,0.27272727272727271,8.3333333333333329E-2,8.3333333333333329E-2,8.6956521739130432E-2,8.3333333333333329E-2,0.79166666666666663,0.56521739130434778,0.21739130434782608,0.17391304347826086,0.13636363636363635,0.18181818181818182,{"$f":"(COUNTIFS(CT$3:CT$194,1,ID_REG,5))/CT213","v":0.21739130434782608},0.125,0.31818181818181818,4.7619047619047616E-2,0.2,0,0.15789473684210525,0.14285714285714285,0.2,0,0.15789473684210525,9.5238095238095233E-2,0.2,0,0.21052631578947367,4.7619047619047616E-2,0.1,0,0.15789473684210525,null,null,{"$f":"(COUNTIFS(DO$3:DO$194,1,ID_REG,5))/DO213","v":0.25},0.16666666666666666,0.25,0.21739130434782608,0.125,0.21739130434782608,0.21739130434782608,0.2608695652173913,0.39130434782608697,0.30434782608695654,0.13043478260869565,8.6956521739130432E-2,0.125,8.3333333333333329E-2,0.13043478260869565,0,4.3478260869565216E-2,4.5454545454545456E-2,4.1666666666666664E-2,4.3478260869565216E-2,4.1666666666666664E-2,4.1666666666666664E-2,8.3333333333333329E-2,4.1666666666666664E-2,0.375,0.375,0.43478260869565216,0.47826086956521741,0.27272727272727271,0.17391304347826086,0.13043478260869565,8.3333333333333329E-2,{"$f":"(COUNTIFS(EU$3:EU$194,1,ID_REG,5))/EU213","v":0.125},0.21739130434782608,0.17391304347826086,0.13043478260869565,0.17391304347826086,0.125,0.125,4.1666666666666664E-2,4.1666666666666664E-2,8.3333333333333329E-2,8.3333333333333329E-2,4.1666666666666664E-2,4.5454545454545456E-2,4.5454545454545456E-2,0,4.3478260869565216E-2,4.3478260869565216E-2,4.1666666666666664E-2,4.1666666666666664E-2,4.1666666666666664E-2,4.1666666666666664E-2,4.5454545454545456E-2,4.5454545454545456E-2,4.1666666666666664E-2,4.1666666666666664E-2,0,4.1666666666666664E-2,0]
["WEO: % of responses as 2",{"$f":"(COUNTIFS(B$3:B$194,2,ID_REG,5))/B213","v":0},{"$f":"(COUNTIFS(C$3:C$194,2,ID_REG,5))/C213","v":0},{"$f":"(COUNTIFS(D$3:D$194,2,ID_REG,5))/D213","v":0},{"$f":"(COUNTIFS(E$3:E$194,2,ID_REG,5))/E213","v":0},{"$f":"(COUNTIFS(F$3:F$194,2,ID_REG,5))/F213","v":9.0909090909090912E-2},4.5454545454545456E-2,0.13043478260869565,0.19047619047619047,9.0909090909090912E-2,4.3478260869565216E-2,4.3478260869565216E-2,9.0909090909090912E-2,0.21739130434782608,8.6956521739130432E-2,0.19047619047619047,0,0.13636363636363635,0.17391304347826086,0.125,4.1666666666666664E-2,0,4.1666666666666664E-2,0,4.1666666666666664E-2,4.1666666666666664E-2,0,4.1666666666666664E-2,8.3333333333333329E-2,8.3333333333333329E-2,4.1666666666666664E-2,0.125,8.3333333333333329E-2,{"$f":"(COUNTIFS(AH$3:AH$194,2,ID_REG,5))/AH213","v":0},0.125,4.1666666666666664E-2,8.3333333333333329E-2,4.3478260869565216E-2,0,4.3478260869565216E-2,0,8.3333333333333329E-2,0,4.5454545454545456E-2,0.17391304347826086,8.3333333333333329E-2,8.3333333333333329E-2,0.20833333333333334,0.17391304347826086,4.5454545454545456E-2,0.16666666666666666,0.17391304347826086,0.13043478260869565,8.6956521739130432E-2,4.1666666666666664E-2,0.20833333333333334,8.6956521739130432E-2,4.1666666666666664E-2,0,0,0,0,0,0,4.3478260869565216E-2,{"$f":"(COUNTIFS(BN$3:BN$194,2,ID_REG,5))/BN213","v":0},0,0,4.3478260869565216E-2,4.1666666666666664E-2,4.1666666666666664E-2,4.3478260869565216E-2,9.5238095238095233E-2,4.3478260869565216E-2,8.6956521739130432E-2,8.3333333333333329E-2,4.5454545454545456E-2,4.3478260869565216E-2,8.3333333333333329E-2,0,0,0,0.13043478260869565,0.13043478260869565,8.3333333333333329E-2,0,4.5454545454545456E-2,8.3333333333333329E-2,8.3333333333333329E-2,0,0,0,8.6956521739130432E-2,0,0.13043478260869565,0.77272727272727271,0.72727272727272729,{"$f":"(COUNTIFS(CT$3:CT$194,2,ID_REG,5))/CT213","v":0.17391304347826086},4.1666666666666664E-2,0.22727272727272727,0.19047619047619047,0.1,4.7619047619047616E-2,5.2631578947368418E-2,9.5238095238095233E-2,0.1,4.7619047619047616E-2,0.10526315789473684,0.14285714285714285,0.1,4.7619047619047616E-2,5.2631578947368418E-2,0.14285714285714285,0.05,0.14285714285714285,5.2631578947368418E-2,null,null,{"$f":"(COUNTIFS(DO$3:DO$194,2,ID_REG,5))/DO213","v":0.25},0.16666666666666666,0.125,0.17391304347826086,4.1666666666666664E-2,0.13043478260869565,8.6956521739130432E-2,0.17391304347826086,0.13043478260869565,0.17391304347826086,8.6956521739130432E-2,0.13043478260869565,0.125,0.20833333333333334,4.3478260869565216E-2,8.6956521739130432E-2,4.3478260869565216E-2,0.13636363636363635,0,0,0,0,0.125,8.3333333333333329E-2,0.16666666666666666,0.125,0.13043478260869565,0.13043478260869565,0.18181818181818182,8.6956521739130432E-2,4.3478260869565216E-2,8.3333333333333329E-2,{"$f":"(COUNTIFS(EU$3:EU$194,2,ID_REG,5))/EU213","v":8.3333333333333329E-2},0.13043478260869565,4.3478260869565216E-2,0.13043478260869565,4.3478260869565216E-2,4.1666666666666664E-2,4.1666666666666664E-2,0.16666666666666666,4.1666666666666664E-2,8.3333333333333329E-2,4.1666666666666664E-2,8.3333333333333329E-2,0,4.5454545454545456E-2,4.5454545454545456E-2,4.3478260869565216E-2,0,0,0,4.1666666666666664E-2,4.1666666666666664E-2,4.5454545454545456E-2,9.0909090909090912E-2,4.1666666666666664E-2,0,4.1666666666666664E-2,0,4.1666666666666664E-2]
["WEO: % of responses as 3",{"$f":"(COUNTIFS(B$3:B$194,3,ID_REG,5))/B213","v":4.3478260869565216E-2},{"$f":"(COUNTIFS(C$3:C$194,3,ID_REG,5))/C213","v":0},{"$f":"(COUNTIFS(D$3:D$194,3,ID_REG,5))/D213","v":0},{"$f":"(COUNTIFS(E$3:E$194,3,ID_REG,5))/E213","v":0},{"$f":"(COUNTIFS(F$3:F$194,3,ID_REG,5))/F213","v":0},9.0909090909090912E-2,0.13043478260869565,4.7619047619047616E-2,0,4.3478260869565216E-2,0,4.5454545454545456E-2,0.17391304347826086,4.3478260869565216E-2,4.7619047619047616E-2,0,0,0.13043478260869565,0,8.3333333333333329E-2,4.1666666666666664E-2,0,0,0,0.125,0,0,0,0,4.1666666666666664E-2,4.1666666666666664E-2,4.1666666666666664E-2,{"$f":"(COUNTIFS(AH$3:AH$194,3,ID_REG,5))/AH213","v":0},4.1666666666666664E-2,4.1666666666666664E-2,0,0,0,0,0,0,0,0,4.3478260869565216E-2,0,0,0,8.6956521739130432E-2,0,4.1666666666666664E-2,0,8.6956521739130432E-2,0,4.1666666666666664E-2,0.16666666666666666,4.3478260869565216E-2,4.1666666666666664E-2,0,0,0,0,0,0,4.3478260869565216E-2,{"$f":"(COUNTIFS(BN$3:BN$194,3,ID_REG,5))/BN213","v":0},0,0,0,4.1666666666666664E-2,4.1666666666666664E-2,0,0,0,0,0,4.5454545454545456E-2,0,0,0,0,0,0,4.3478260869565216E-2,0,4.3478260869565216E-2,0,0,0,0,0,0,0,0,0.17391304347826086,0,4.5454545454545456E-2,{"$f":"(COUNTIFS(CT$3:CT$194,3,ID_REG,5))/CT213","v":4.3478260869565216E-2},0,0,0.23809523809523808,0.25,0,0.21052631578947367,0.33333333333333331,0.35,0.23809523809523808,0.31578947368421051,0.38095238095238093,0.25,4.7619047619047616E-2,0.15789473684210525,0.23809523809523808,0.3,4.7619047619047616E-2,0.21052631578947367,null,null,{"$f":"(COUNTIFS(DO$3:DO$194,3,ID_REG,5))/DO213","v":0.25},0.20833333333333334,0.5,0.30434782608695654,0.33333333333333331,0.30434782608695654,0.30434782608695654,0.17391304347826086,0.21739130434782608,0.2608695652173913,0.39130434782608697,0.39130434782608697,0.29166666666666669,0.20833333333333334,0.47826086956521741,0.43478260869565216,0.17391304347826086,0.36363636363636365,0.20833333333333334,0.39130434782608697,0.5,0.375,0.16666666666666666,0.125,0.125,0.16666666666666666,0.21739130434782608,0.17391304347826086,0.45454545454545453,0.30434782608695654,0.30434782608695654,0.29166666666666669,{"$f":"(COUNTIFS(EU$3:EU$194,3,ID_REG,5))/EU213","v":0.5},0.21739130434782608,0.2608695652173913,0.30434782608695654,0.30434782608695654,0.25,0.33333333333333331,0.25,0.33333333333333331,0.25,0.20833333333333334,0.25,0.45454545454545453,0.45454545454545453,0.5,8.6956521739130432E-2,8.6956521739130432E-2,0.125,0.20833333333333334,0.16666666666666666,0.25,0.18181818181818182,0.27272727272727271,0.125,0.20833333333333334,0.20833333333333334,8.3333333333333329E-2,0.20833333333333334]
["WEO: % of responses as 4",{"$f":"(COUNTIFS(B$3:B$194,4,ID_REG,5))/B213","v":0},{"$f":"(COUNTIFS(C$3:C$194,4,ID_REG,5))/C213","v":4.1666666666666664E-2},{"$f":"(COUNTIFS(D$3:D$194,4,ID_REG,5))/D213","v":0},{"$f":"(COUNTIFS(E$3:E$194,4,ID_REG,5))/E213","v":0},{"$f":"(COUNTIFS(F$3:F$194,4,ID_REG,5))/F213","v":9.0909090909090912E-2},9.0909090909090912E-2,8.6956521739130432E-2,4.7619047619047616E-2,0,0.21739130434782608,8.6956521739130432E-2,9.0909090909090912E-2,0.21739130434782608,4.3478260869565216E-2,0.14285714285714285,4.3478260869565216E-2,0.13636363636363635,0.13043478260869565,0,4.1666666666666664E-2,8.3333333333333329E-2,0.125,8.3333333333333329E-2,0.20833333333333334,8.3333333333333329E-2,0,0,0.125,0.125,8.3333333333333329E-2,4.1666666666666664E-2,8.3333333333333329E-2,{"$f":"(COUNTIFS(AH$3:AH$194,4,ID_REG,5))/AH213","v":0},8.3333333333333329E-2,0.16666666666666666,4.1666666666666664E-2,8.6956521739130432E-2,4.3478260869565216E-2,8.6956521739130432E-2,4.3478260869565216E-2,0.16666666666666666,0,0.13636363636363635,0.21739130434782608,0.20833333333333334,8.3333333333333329E-2,0.20833333333333334,8.6956521739130432E-2,0.22727272727272727,0.25,0.30434782608695654,0.13043478260869565,8.6956521739130432E-2,8.3333333333333329E-2,0.20833333333333334,4.3478260869565216E-2,0.33333333333333331,0,0,8.3333333333333329E-2,0,0.16666666666666666,4.1666666666666664E-2,0.30434782608695654,{"$f":"(COUNTIFS(BN$3:BN$194,4,ID_REG,5))/BN213","v":0.125},0.125,0.20833333333333334,0.17391304347826086,0.125,4.1666666666666664E-2,0.13043478260869565,9.5238095238095233E-2,0.2608695652173913,0,8.3333333333333329E-2,0,4.3478260869565216E-2,4.1666666666666664E-2,0,4.3478260869565216E-2,8.3333333333333329E-2,0.13043478260869565,0.21739130434782608,4.1666666666666664E-2,8.6956521739130432E-2,4.5454545454545456E-2,4.1666666666666664E-2,8.3333333333333329E-2,8.6956521739130432E-2,4.1666666666666664E-2,0,0.13043478260869565,0.39130434782608697,0.43478260869565216,9.0909090909090912E-2,0,{"$f":"(COUNTIFS(CT$3:CT$194,4,ID_REG,5))/CT213","v":0.43478260869565216},0.75,0.31818181818181818,0.38095238095238093,0.25,0.47619047619047616,0.36842105263157893,0.23809523809523808,0.25,0.42857142857142855,0.31578947368421051,0.23809523809523808,0.4,0.66666666666666663,0.47368421052631576,0.33333333333333331,0.3,0.47619047619047616,0.31578947368421051,null,null,{"$f":"(COUNTIFS(DO$3:DO$194,4,ID_REG,5))/DO213","v":0.20833333333333334},0.25,8.3333333333333329E-2,0.21739130434782608,0.41666666666666669,0.21739130434782608,0.34782608695652173,0.30434782608695654,0.17391304347826086,0.21739130434782608,0.21739130434782608,0.21739130434782608,0.20833333333333334,0.375,0.21739130434782608,0.34782608695652173,0.39130434782608697,0.27272727272727271,0.375,0.30434782608695654,0.20833333333333334,0.33333333333333331,0.33333333333333331,0.45833333333333331,0.25,0.25,0.13043478260869565,0.17391304347826086,0,0.30434782608695654,0.34782608695652173,0.41666666666666669,{"$f":"(COUNTIFS(EU$3:EU$194,4,ID_REG,5))/EU213","v":0.20833333333333334},0.30434782608695654,0.43478260869565216,0.34782608695652173,0.39130434782608697,0.45833333333333331,0.375,0.41666666666666669,0.45833333333333331,0.45833333333333331,0.29166666666666669,0.29166666666666669,0.36363636363636365,0.40909090909090912,0.27272727272727271,0.39130434782608697,0.43478260869565216,0.41666666666666669,0.33333333333333331,0.33333333333333331,0.29166666666666669,0.45454545454545453,0.27272727272727271,0.45833333333333331,0.41666666666666669,0.41666666666666669,0.41666666666666669,0.45833333333333331]
["WEO: % of responses as 5",{"$f":"(COUNTIFS(B$3:B$194,5,ID_REG,5))/B213","v":0.39130434782608697},{"$f":"(COUNTIFS(C$3:C$194,5,ID_REG,5))/C213","v":0.20833333333333334},{"$f":"(COUNTIFS(D$3:D$194,5,ID_REG,5))/D213","v":0.25},{"$f":"(COUNTIFS(E$3:E$194,5,ID_REG,5))/E213","v":8.6956521739130432E-2},{"$f":"(COUNTIFS(F$3:F$194,5,ID_REG,5))/F213","v":0.31818181818181818},9.0909090909090912E-2,0.30434782608695654,0.2857142857142857,4.5454545454545456E-2,0.2608695652173913,8.6956521739130432E-2,0.18181818181818182,0.17391304347826086,0.34782608695652173,0.23809523809523808,0.13043478260869565,0.27272727272727271,0.2608695652173913,0.29166666666666669,0.20833333333333334,0.125,0.25,0.20833333333333334,0.25,0.16666666666666666,0.13636363636363635,0.375,0.41666666666666669,0.20833333333333334,0.16666666666666666,0.16666666666666666,0.20833333333333334,{"$f":"(COUNTIFS(AH$3:AH$194,5,ID_REG,5))/AH213","v":4.5454545454545456E-2},0.16666666666666666,0.16666666666666666,0.20833333333333334,0.21739130434782608,8.6956521739130432E-2,0.13043478260869565,0.21739130434782608,0.20833333333333334,0.25,9.0909090909090912E-2,0.13043478260869565,0.16666666666666666,0.29166666666666669,8.3333333333333329E-2,4.3478260869565216E-2,0.18181818181818182,8.3333333333333329E-2,0.13043478260869565,0.13043478260869565,0.21739130434782608,0.20833333333333334,0.125,0.21739130434782608,0.29166666666666669,0.16666666666666666,0.125,0.20833333333333334,0.16666666666666666,4.1666666666666664E-2,0.29166666666666669,0.13043478260869565,{"$f":"(COUNTIFS(BN$3:BN$194,5,ID_REG,5))/BN213","v":0.375},0.375,0.41666666666666669,0.43478260869565216,0.33333333333333331,0.41666666666666669,0.34782608695652173,0.33333333333333331,0.21739130434782608,0.17391304347826086,4.1666666666666664E-2,0.27272727272727271,0.17391304347826086,0.375,0.21739130434782608,0.30434782608695654,4.1666666666666664E-2,0.13043478260869565,0.30434782608695654,0.20833333333333334,0,0.18181818181818182,0.20833333333333334,0.25,0.17391304347826086,0.25,4.1666666666666664E-2,8.6956521739130432E-2,0.17391304347826086,8.6956521739130432E-2,0,4.5454545454545456E-2,{"$f":"(COUNTIFS(CT$3:CT$194,5,ID_REG,5))/CT213","v":0.13043478260869565},8.3333333333333329E-2,0.13636363636363635,0.14285714285714285,0.2,0.47619047619047616,0.21052631578947367,0.19047619047619047,0.1,0.2857142857142857,0.10526315789473684,0.14285714285714285,0.05,0.23809523809523808,0.10526315789473684,0.23809523809523808,0.25,0.33333333333333331,0.26315789473684209,null,null,{"$f":"(COUNTIFS(DO$3:DO$194,5,ID_REG,5))/DO213","v":4.1666666666666664E-2},0.20833333333333334,4.1666666666666664E-2,8.6956521739130432E-2,8.3333333333333329E-2,0.13043478260869565,4.3478260869565216E-2,8.6956521739130432E-2,8.6956521739130432E-2,4.3478260869565216E-2,0.17391304347826086,0.17391304347826086,0.25,0.125,0.13043478260869565,0.13043478260869565,0.34782608695652173,0.18181818181818182,0.375,0.2608695652173913,0.25,0.25,0.29166666666666669,0.29166666666666669,8.3333333333333329E-2,8.3333333333333329E-2,8.6956521739130432E-2,4.3478260869565216E-2,9.0909090909090912E-2,0.13043478260869565,0.17391304347826086,0.125,{"$f":"(COUNTIFS(EU$3:EU$194,5,ID_REG,5))/EU213","v":8.3333333333333329E-2},0.13043478260869565,8.6956521739130432E-2,8.6956521739130432E-2,8.6956521739130432E-2,0.125,0.125,0.125,0.125,0.125,0.375,0.33333333333333331,0.13636363636363635,4.5454545454545456E-2,0.18181818181818182,0.43478260869565216,0.43478260869565216,0.41666666666666669,0.41666666666666669,0.41666666666666669,0.375,0.27272727272727271,0.31818181818181818,0.33333333333333331,0.33333333333333331,0.33333333333333331,0.45833333333333331,0.29166666666666669]
["WEO: % of responses as 6",{"$f":"(COUNTIFS(B$3:B$194,6,ID_REG,5))/B213","v":0.56521739130434778},{"$f":"(COUNTIFS(C$3:C$194,6,ID_REG,5))/C213","v":0.5},{"$f":"(COUNTIFS(D$3:D$194,6,ID_REG,5))/D213","v":0.75},{"$f":"(COUNTIFS(E$3:E$194,6,ID_REG,5))/E213","v":0.43478260869565216},{"$f":"(COUNTIFS(F$3:F$194,6,ID_REG,5))/F213","v":0.45454545454545453},0.22727272727272727,0.21739130434782608,0.42857142857142855,4.5454545454545456E-2,0.39130434782608697,0.21739130434782608,0.27272727272727271,0.13043478260869565,0.17391304347826086,0.2857142857142857,8.6956521739130432E-2,0.27272727272727271,0.2608695652173913,0.33333333333333331,0.45833333333333331,0.66666666666666663,0.54166666666666663,0.625,0.41666666666666669,0.45833333333333331,0.5,0.58333333333333337,0.375,0.54166666666666663,0.58333333333333337,0.54166666666666663,0.45833333333333331,{"$f":"(COUNTIFS(AH$3:AH$194,6,ID_REG,5))/AH213","v":0.27272727272727271},0.41666666666666669,0.41666666666666669,0.5,0.47826086956521741,0.69565217391304346,0.65217391304347827,0.73913043478260865,0.5,0.75,0.72727272727272729,0.30434782608695654,0.54166666666666663,0.5,0.375,0.34782608695652173,0.36363636363636365,0.33333333333333331,0.30434782608695654,0.13043478260869565,0.60869565217391308,0.58333333333333337,0.16666666666666666,0.43478260869565216,0.29166666666666669,0.75,0.875,0.70833333333333337,0.83333333333333337,0.79166666666666663,0.66666666666666663,0.39130434782608697,{"$f":"(COUNTIFS(BN$3:BN$194,6,ID_REG,5))/BN213","v":0.5},0.41666666666666669,0.33333333333333331,0.2608695652173913,0.29166666666666669,0.41666666666666669,0.43478260869565216,4.7619047619047616E-2,0.43478260869565216,0.60869565217391308,0.29166666666666669,0.45454545454545453,0.56521739130434778,0.375,0.73913043478260865,0.60869565217391308,0.125,0.13043478260869565,0.21739130434782608,0.5,0.30434782608695654,0.45454545454545453,0.58333333333333337,0.5,0.65217391304347827,0.625,0.16666666666666666,0.13043478260869565,0.21739130434782608]
["Global: % of responses as 1",{"$f":"(COUNTIF(B$3:B$194,1))/B$201","v":1.5267175572519083E-2},{"$f":"(COUNTIF(C$3:C$194,1))/C$201","v":0.3984375},{"$f":"(COUNTIF(D$3:D$194,1))/D$201","v":2.2900763358778626E-2},{"$f":"(COUNTIF(E$3:E$194,1))/E$201","v":0.55737704918032782},{"$f":"(COUNTIF(F$3:F$194,1))/F$201","v":2.3076923076923078E-2},0.40799999999999997,0.11538461538461539,0.104,0.23809523809523808,3.8167938931297711E-2,0.15267175572519084,9.3023255813953487E-2,3.0534351145038167E-2,0.109375,0.10317460317460317,0.36,0.1984126984126984,0.10236220472440945,0.16923076923076924,0.22900763358778625,0.13076923076923078,5.3846153846153849E-2,0.2265625,6.7669172932330823E-2,0.2,0.2125984251968504,0,2.2556390977443608E-2,1.5037593984962405E-2,0.11278195488721804,7.575757575757576E-2,0.14393939393939395,{"$f":"(COUNTIF(AH$3:AH$194,1))/AH$201","v":0.21875},4.5454545454545456E-2,0.13740458015267176,5.2631578947368418E-2,0.16153846153846155,6.0606060606060608E-2,7.6923076923076927E-2,9.2307692307692313E-2,3.8167938931297711E-2,3.0534351145038167E-2,2.3255813953488372E-2,0.14728682170542637,7.6923076923076927E-2,3.007518796992481E-2,0.12403100775193798,0.11538461538461539,0.14728682170542637,8.461538461538462E-2,8.461538461538462E-2,0.28225806451612906,4.6153846153846156E-2,3.0769230769230771E-2,3.0769230769230771E-2,0.18604651162790697,4.5801526717557252E-2,4.5112781954887216E-2,7.5187969924812026E-3,5.3435114503816793E-2,1.5151515151515152E-2,6.2992125984251968E-2,3.1007751937984496E-2,0.1111111111111111,{"$f":"(COUNTIF(BN$3:BN$194,1))/BN$201","v":1.5267175572519083E-2},6.8702290076335881E-2,5.3435114503816793E-2,0.11538461538461539,0.13178294573643412,2.3076923076923078E-2,6.9767441860465115E-2,0.27777777777777779,6.2015503875968991E-2,4.6153846153846156E-2,0.15267175572519084,0.11904761904761904,8.461538461538462E-2,7.575757575757576E-2,1.5503875968992248E-2,4.6875E-2,0.578125,0.2283464566929134,0.17054263565891473,6.0150375939849621E-2,0.18604651162790697,0.13492063492063491,8.5271317829457363E-2,7.6335877862595422E-2,2.3255813953488372E-2,6.1538461538461542E-2,0.5859375,0.28125,0.17054263565891473,0.16666666666666666,9.6774193548387094E-2,0.08,{"$f":"(COUNTIF(CT$3:CT$194,1))/CT$201","v":0.22222222222222221},0.1796875,0.43902439024390244,7.3770491803278687E-2,9.9173553719008267E-2,9.0163934426229511E-2,6.6666666666666666E-2,0.10655737704918032,0.14049586776859505,9.8360655737704916E-2,7.4999999999999997E-2,8.1967213114754092E-2,0.14049586776859505,0.10655737704918032,0.1,5.737704918032787E-2,6.6115702479338845E-2,8.1967213114754092E-2,5.8333333333333334E-2,null,null,{"$f":"(COUNTIF(DO$3:DO$194,1))/DO$201","v":6.9230769230769235E-2},4.5801526717557252E-2,8.461538461538462E-2,9.375E-2,6.2015503875968991E-2,5.46875E-2,6.2015503875968991E-2,7.6923076923076927E-2,0.1,0.13178294573643412,3.875968992248062E-2,5.46875E-2,6.1538461538461542E-2,3.8167938931297711E-2,4.6153846153846156E-2,3.875968992248062E-2,4.6153846153846156E-2,2.3255813953488372E-2,2.2727272727272728E-2,2.3076923076923078E-2,2.2727272727272728E-2,3.0534351145038167E-2,4.5454545454545456E-2,3.8167938931297711E-2,7.575757575757576E-2,0.11538461538461539,0.22480620155038761,0.26190476190476192,0.125,4.6153846153846156E-2,5.3846153846153849E-2,1.5267175572519083E-2,{"$f":"(COUNTIF(EU$3:EU$194,1))/EU$201","v":7.7519379844961239E-2},8.5271317829457363E-2,4.6153846153846156E-2,4.5801526717557252E-2,5.3435114503816793E-2,3.787878787878788E-2,3.787878787878788E-2,1.5151515151515152E-2,7.6335877862595417E-3,3.0303030303030304E-2,7.6335877862595422E-2,6.9767441860465115E-2,3.2000000000000001E-2,4.065040650406504E-2,1.6E-2,5.3846153846153849E-2,1.5503875968992248E-2,3.0769230769230771E-2,1.5748031496062992E-2,7.6923076923076927E-2,7.03125E-2,5.46875E-2,7.03125E-2,4.6153846153846156E-2,3.0534351145038167E-2,3.8167938931297711E-2,2.3076923076923078E-2,1.5267175572519083E-2]
["Global: % of responses as 2",{"$f":"(COUNTIF(B$3:B$194,2))/B$201","v":0.19847328244274809},{"$f":"(COUNTIF(C$3:C$194,2))/C$201","v":0.1484375},{"$f":"(COUNTIF(D$3:D$194,2))/D$201","v":0.16030534351145037},{"$f":"(COUNTIF(E$3:E$194,2))/E$201","v":9.0163934426229511E-2},{"$f":"(COUNTIF(F$3:F$194,2))/F$201","v":0.33076923076923076},0.30399999999999999,0.38461538461538464,0.36,0.25396825396825395,0.20610687022900764,0.17557251908396945,0.22480620155038761,0.35877862595419846,0.296875,0.27777777777777779,0.26400000000000001,0.30158730158730157,0.31496062992125984,0.2153846153846154,0.16030534351145037,0.19230769230769232,0.26923076923076922,0.25,0.31578947368421051,0.24615384615384617,0.26771653543307089,0.18796992481203006,0.18045112781954886,0.15789473684210525,0.23308270676691728,0.25757575757575757,0.29545454545454547,{"$f":"(COUNTIF(AH$3:AH$194,2))/AH$201","v":0.234375},0.28030303030303028,0.26717557251908397,0.2932330827067669,0.24615384615384617,0.22727272727272727,0.2,0.2076923076923077,0.30534351145038169,0.19847328244274809,0.2868217054263566,0.38759689922480622,0.27692307692307694,0.2857142857142857,0.34883720930232559,0.38461538461538464,0.2558139534883721,0.33846153846153848,0.33076923076923076,0.29838709677419356,0.16153846153846155,0.18461538461538463,0.32307692307692309,0.19379844961240311,0.35114503816793891,9.0225563909774431E-2,6.7669172932330823E-2,0.13740458015267176,7.575757575757576E-2,0.24409448818897639,0.18604651162790697,0.26984126984126983,{"$f":"(COUNTIF(BN$3:BN$194,2))/BN$201","v":0.22900763358778625},0.16793893129770993,0.28244274809160308,0.26153846153846155,0.37984496124031009,0.2846153846153846,0.31007751937984496,0.38095238095238093,0.32558139534883723,0.17692307692307693,0.12977099236641221,0.11904761904761904,9.2307692307692313E-2,0.24242424242424243,2.3255813953488372E-2,0.140625,0.1640625,0.25196850393700787,0.31782945736434109,0.16541353383458646,0.11627906976744186,8.7301587301587297E-2,0.11627906976744186,0.19847328244274809,5.4263565891472867E-2,0.16923076923076924,0.140625,0.234375,0.32558139534883723,5.5555555555555552E-2,0.19354838709677419,0.248,{"$f":"(COUNTIF(CT$3:CT$194,2))/CT$201","v":0.25396825396825395},0.1640625,0.30081300813008133,0.18852459016393441,0.19834710743801653,0.20491803278688525,0.19166666666666668,0.1721311475409836,0.13223140495867769,0.18852459016393441,0.21666666666666667,0.22131147540983606,0.20661157024793389,0.22131147540983606,0.22500000000000001,0.13934426229508196,0.15702479338842976,0.25409836065573771,0.17499999999999999,null,null,{"$f":"(COUNTIF(DO$3:DO$194,2))/DO$201","v":0.12307692307692308},4.5801526717557252E-2,0.11538461538461539,0.1640625,0.17829457364341086,7.03125E-2,0.12403100775193798,9.2307692307692313E-2,0.13076923076923078,0.16279069767441862,6.9767441860465115E-2,0.1015625,0.13076923076923078,0.12977099236641221,0.1076923076923077,7.7519379844961239E-2,8.461538461538462E-2,6.9767441860465115E-2,3.0303030303030304E-2,3.0769230769230771E-2,3.787878787878788E-2,1.5267175572519083E-2,0.10606060606060606,9.1603053435114504E-2,6.0606060606060608E-2,7.6923076923076927E-2,6.2015503875968991E-2,7.9365079365079361E-2,0.234375,5.3846153846153849E-2,3.0769230769230771E-2,4.5801526717557252E-2,{"$f":"(COUNTIF(EU$3:EU$194,2))/EU$201","v":6.2015503875968991E-2},6.2015503875968991E-2,1.5384615384615385E-2,4.5801526717557252E-2,1.5267175572519083E-2,3.787878787878788E-2,4.5454545454545456E-2,5.3030303030303032E-2,5.3435114503816793E-2,6.0606060606060608E-2,0.13740458015267176,0.10077519379844961,0.12,8.943089430894309E-2,0.112,9.2307692307692313E-2,0.11627906976744186,9.2307692307692313E-2,7.874015748031496E-2,8.461538461538462E-2,7.8125E-2,6.25E-2,8.59375E-2,9.2307692307692313E-2,9.9236641221374045E-2,6.8702290076335881E-2,5.3846153846153849E-2,7.6335877862595422E-2]
["Global: % of responses as 3",{"$f":"(COUNTIF(B$3:B$194,3))/B$201","v":8.3969465648854963E-2},{"$f":"(COUNTIF(C$3:C$194,3))/C$201","v":6.25E-2},{"$f":"(COUNTIF(D$3:D$194,3))/D$201","v":9.1603053435114504E-2},{"$f":"(COUNTIF(E$3:E$194,3))/E$201","v":2.4590163934426229E-2},{"$f":"(COUNTIF(F$3:F$194,3))/F$201","v":0.13076923076923078},7.1999999999999995E-2,0.13846153846153847,0.112,0.12698412698412698,0.13740458015267176,0.14503816793893129,0.20155038759689922,0.21374045801526717,0.15625,0.15079365079365079,9.6000000000000002E-2,0.11904761904761904,0.17322834645669291,5.3846153846153849E-2,7.6335877862595422E-2,6.1538461538461542E-2,0.1,4.6875E-2,9.7744360902255634E-2,5.3846153846153849E-2,5.5118110236220472E-2,9.0225563909774431E-2,6.0150375939849621E-2,9.0225563909774431E-2,0.12781954887218044,9.0909090909090912E-2,7.575757575757576E-2,{"$f":"(COUNTIF(AH$3:AH$194,3))/AH$201","v":0.1015625},0.17424242424242425,0.16030534351145037,9.7744360902255634E-2,0.11538461538461539,0.10606060606060606,6.1538461538461542E-2,9.2307692307692313E-2,6.8702290076335881E-2,3.8167938931297711E-2,0.11627906976744186,9.3023255813953487E-2,7.6923076923076927E-2,6.0150375939849621E-2,0.10852713178294573,8.461538461538462E-2,0.13953488372093023,0.13076923076923078,7.6923076923076927E-2,9.6774193548387094E-2,0.11538461538461539,0.12307692307692308,0.19230769230769232,0.11627906976744186,0.12977099236641221,0.10526315789473684,7.5187969924812026E-2,9.9236641221374045E-2,8.3333333333333329E-2,8.6614173228346455E-2,0.10852713178294573,0.12698412698412698,{"$f":"(COUNTIF(BN$3:BN$194,3))/BN$201","v":9.1603053435114504E-2},9.9236641221374045E-2,7.6335877862595422E-2,0.11538461538461539,6.2015503875968991E-2,0.1,9.3023255813953487E-2,4.7619047619047616E-2,0.14728682170542637,6.9230769230769235E-2,9.9236641221374045E-2,7.1428571428571425E-2,6.1538461538461542E-2,6.8181818181818177E-2,6.9767441860465115E-2,7.8125E-2,1.5625E-2,6.2992125984251968E-2,0.10852713178294573,4.5112781954887216E-2,8.5271317829457363E-2,7.9365079365079361E-2,5.4263565891472867E-2,8.3969465648854963E-2,6.9767441860465115E-2,0.1,6.25E-2,0.1015625,6.9767441860465115E-2,0.13492063492063491,0.10483870967741936,0.112,{"$f":"(COUNTIF(CT$3:CT$194,3))/CT$201","v":3.968253968253968E-2},6.25E-2,3.2520325203252036E-2,0.32786885245901637,0.33884297520661155,0.26229508196721313,0.32500000000000001,0.41803278688524592,0.4462809917355372,0.32786885245901637,0.39166666666666666,0.40163934426229508,0.37190082644628097,0.25409836065573771,0.35833333333333334,0.37704918032786883,0.35537190082644626,0.28688524590163933,0.33333333333333331,null,null,{"$f":"(COUNTIF(DO$3:DO$194,3))/DO$201","v":0.2153846153846154},0.12977099236641221,0.38461538461538464,0.265625,0.32558139534883723,0.2109375,0.20155038759689922,0.17692307692307693,0.26923076923076922,0.24806201550387597,0.22480620155038761,0.234375,0.23846153846153847,0.10687022900763359,0.30769230769230771,0.32558139534883723,0.33846153846153848,0.13953488372093023,0.22727272727272727,0.23076923076923078,0.30303030303030304,0.30534351145038169,0.17424242424242425,0.25954198473282442,0.11363636363636363,0.17692307692307693,0.24031007751937986,0.23015873015873015,0.4609375,0.3,0.22307692307692309,0.21374045801526717,{"$f":"(COUNTIF(EU$3:EU$194,3))/EU$201","v":0.30232558139534882},0.20930232558139536,0.14615384615384616,0.12977099236641221,0.14503816793893129,0.16666666666666666,0.28030303030303028,0.18181818181818182,0.22900763358778625,0.18939393939393939,0.12977099236641221,0.22480620155038761,0.36,0.3902439024390244,0.4,0.1076923076923077,0.15503875968992248,0.12307692307692308,0.22047244094488189,0.16153846153846155,0.125,0.171875,0.1484375,0.15384615384615385,0.22137404580152673,0.17557251908396945,0.15384615384615385,0.26717557251908397]
["Global: % of responses as 4",{"$f":"(COUNTIF(B$3:B$194,4))/B$201","v":0.20610687022900764},{"$f":"(COUNTIF(C$3:C$194,4))/C$201","v":0.15625},{"$f":"(COUNTIF(D$3:D$194,4))/D$201","v":0.17557251908396945},{"$f":"(COUNTIF(E$3:E$194,4))/E$201","v":9.0163934426229511E-2},{"$f":"(COUNTIF(F$3:F$194,4))/F$201","v":0.17692307692307693},9.6000000000000002E-2,0.13076923076923078,0.14399999999999999,0.13492063492063491,0.22900763358778625,0.24427480916030533,0.19379844961240311,0.20610687022900764,0.1484375,0.20634920634920634,0.13600000000000001,0.17460317460317459,0.18110236220472442,0.13846153846153847,0.16030534351145037,0.17692307692307693,0.18461538461538463,0.1328125,0.18045112781954886,0.17692307692307693,0.11811023622047244,0.24812030075187969,0.30827067669172931,0.3007518796992481,0.18796992481203006,0.20454545454545456,0.16666666666666666,{"$f":"(COUNTIF(AH$3:AH$194,4))/AH$201","v":0.234375},0.17424242424242425,0.17557251908396945,0.22556390977443608,0.22307692307692309,0.23484848484848486,0.22307692307692309,0.15384615384615385,0.19847328244274809,0.23664122137404581,0.17829457364341086,0.21705426356589147,0.2076923076923077,0.22556390977443608,0.18604651162790697,0.13846153846153847,0.21705426356589147,0.17692307692307693,0.25384615384615383,0.16935483870967741,0.23076923076923078,0.25384615384615383,0.23846153846153847,0.16279069767441862,0.25190839694656486,0.15789473684210525,0.24060150375939848,0.21374045801526717,0.25,0.25196850393700787,0.19379844961240311,0.22222222222222221,{"$f":"(COUNTIF(BN$3:BN$194,4))/BN$201","v":0.24427480916030533},0.29007633587786258,0.29007633587786258,0.23846153846153847,0.24031007751937986,0.25384615384615383,0.24031007751937986,0.13492063492063491,0.20155038759689922,0.23846153846153847,0.26717557251908397,0.16666666666666666,0.26923076923076922,0.2196969696969697,0.21705426356589147,0.2890625,0.109375,0.26771653543307089,0.18604651162790697,0.24060150375939848,0.27131782945736432,0.22222222222222221,0.2558139534883721,0.26717557251908397,0.23255813953488372,0.25384615384615383,7.8125E-2,0.21875,0.2868217054263566,0.53174603174603174,0.44354838709677419,0.39200000000000002,{"$f":"(COUNTIF(CT$3:CT$194,4))/CT$201","v":0.35714285714285715},0.4921875,0.16260162601626016,0.30327868852459017,0.26446280991735538,0.26229508196721313,0.3,0.22950819672131148,0.23140495867768596,0.27049180327868855,0.26666666666666666,0.25409836065573771,0.26446280991735538,0.31967213114754101,0.28333333333333333,0.25409836065573771,0.33057851239669422,0.26229508196721313,0.32500000000000001,null,null,{"$f":"(COUNTIF(DO$3:DO$194,4))/DO$201","v":0.46153846153846156},0.25954198473282442,0.37692307692307692,0.359375,0.34108527131782945,0.4296875,0.38759689922480622,0.42307692307692307,0.31538461538461537,0.29457364341085274,0.44961240310077522,0.4140625,0.33076923076923076,0.25954198473282442,0.34615384615384615,0.35658914728682173,0.36923076923076925,0.37209302325581395,0.32575757575757575,0.36153846153846153,0.38636363636363635,0.41221374045801529,0.35606060606060608,0.34351145038167941,0.50757575757575757,0.48461538461538461,0.34883720930232559,0.37301587301587302,0.140625,0.44615384615384618,0.53846153846153844,0.49618320610687022,{"$f":"(COUNTIF(EU$3:EU$194,4))/EU$201","v":0.4263565891472868},0.43410852713178294,0.50769230769230766,0.47328244274809161,0.44274809160305345,0.49242424242424243,0.46969696969696972,0.50757575757575757,0.44274809160305345,0.49242424242424243,0.38931297709923662,0.37984496124031009,0.312,0.37398373983739835,0.39200000000000002,0.49230769230769234,0.48837209302325579,0.52307692307692311,0.48031496062992124,0.38461538461538464,0.4375,0.453125,0.3828125,0.48461538461538461,0.44274809160305345,0.45038167938931295,0.46923076923076923,0.45038167938931295]
["Global: % of responses as 5",{"$f":"(COUNTIF(B$3:B$194,5))/B$201","v":0.30534351145038169},{"$f":"(COUNTIF(C$3:C$194,5))/C$201","v":0.1171875},{"$f":"(COUNTIF(D$3:D$194,5))/D$201","v":0.22137404580152673},{"$f":"(COUNTIF(E$3:E$194,5))/E$201","v":0.13114754098360656},{"$f":"(COUNTIF(F$3:F$194,5))/F$201","v":0.2},7.1999999999999995E-2,0.16923076923076924,0.16800000000000001,0.18253968253968253,0.26717557251908397,0.20610687022900764,0.21705426356589147,0.14503816793893129,0.234375,0.19047619047619047,0.12,0.15873015873015872,0.17322834645669291,0.30769230769230771,0.19847328244274809,0.16153846153846155,0.19230769230769232,0.1484375,0.20300751879699247,0.17692307692307693,0.19685039370078741,0.24812030075187969,0.3007518796992481,0.23308270676691728,0.15789473684210525,0.19696969696969696,0.17424242424242425,{"$f":"(COUNTIF(AH$3:AH$194,5))/AH$201","v":0.125},0.18939393939393939,0.15267175572519084,0.21052631578947367,0.15384615384615385,0.20454545454545456,0.24615384615384617,0.24615384615384617,0.21374045801526717,0.25190839694656486,0.21705426356589147,9.3023255813953487E-2,0.2076923076923077,0.22556390977443608,0.13178294573643412,0.16153846153846155,0.13953488372093023,0.14615384615384616,0.16923076923076924,0.11290322580645161,0.23076923076923078,0.23846153846153847,0.15384615384615385,0.22480620155038761,0.16030534351145037,0.2857142857142857,0.30827067669172931,0.27480916030534353,0.31818181818181818,0.15748031496062992,0.2558139534883721,0.15873015873015872,{"$f":"(COUNTIF(BN$3:BN$194,5))/BN$201","v":0.24427480916030533},0.21374045801526717,0.19847328244274809,0.2076923076923077,0.12403100775193798,0.2076923076923077,0.17054263565891473,0.11904761904761904,0.10852713178294573,0.27692307692307694,0.23664122137404581,0.35714285714285715,0.31538461538461537,0.27272727272727271,0.44961240310077522,0.2734375,7.8125E-2,0.12598425196850394,0.17054263565891473,0.3007518796992481,0.21705426356589147,0.30158730158730157,0.30232558139534882,0.20610687022900764,0.41085271317829458,0.25384615384615383,8.59375E-2,0.1015625,8.5271317829457363E-2,0.1111111111111111,0.16129032258064516,0.16800000000000001,{"$f":"(COUNTIF(CT$3:CT$194,5))/CT$201","v":0.12698412698412698},0.1015625,6.5040650406504072E-2,0.10655737704918032,9.9173553719008267E-2,0.18032786885245902,0.11666666666666667,7.3770491803278687E-2,4.9586776859504134E-2,0.11475409836065574,0.05,4.0983606557377046E-2,1.6528925619834711E-2,9.8360655737704916E-2,3.3333333333333333E-2,0.1721311475409836,9.0909090909090912E-2,0.11475409836065574,0.10833333333333334,null,null,{"$f":"(COUNTIF(DO$3:DO$194,5))/DO$201","v":0.13076923076923078},0.51908396946564883,3.8461538461538464E-2,0.1171875,9.3023255813953487E-2,0.234375,0.22480620155038761,0.23076923076923078,0.18461538461538463,0.16279069767441862,0.21705426356589147,0.1953125,0.23846153846153847,0.46564885496183206,0.19230769230769232,0.20155038759689922,0.16153846153846155,0.39534883720930231,0.39393939393939392,0.35384615384615387,0.25,0.23664122137404581,0.31818181818181818,0.26717557251908397,0.24242424242424243,0.14615384615384616,0.12403100775193798,5.5555555555555552E-2,3.90625E-2,0.15384615384615385,0.15384615384615385,0.22900763358778625,{"$f":"(COUNTIF(EU$3:EU$194,5))/EU$201","v":0.13178294573643412},0.20930232558139536,0.2846153846153846,0.30534351145038169,0.34351145038167941,0.26515151515151514,0.16666666666666666,0.24242424242424243,0.26717557251908397,0.22727272727272727,0.26717557251908397,0.22480620155038761,0.17599999999999999,0.10569105691056911,0.08,0.25384615384615383,0.22480620155038761,0.23076923076923078,0.20472440944881889,0.29230769230769232,0.2890625,0.2578125,0.3125,0.22307692307692309,0.20610687022900764,0.26717557251908397,0.3,0.19083969465648856]
["Global: % of responses as 6",{"$f":"(COUNTIF(B$3:B$194,6))/B$201","v":0.19083969465648856},{"$f":"(COUNTIF(C$3:C$194,6))/C$201","v":0.1171875},{"$f":"(COUNTIF(D$3:D$194,6))/D$201","v":0.3282442748091603},{"$f":"(COUNTIF(E$3:E$194,6))/E$201","v":0.10655737704918032},{"$f":"(COUNTIF(F$3:F$194,6))/F$201","v":0.13846153846153847},4.8000000000000001E-2,6.1538461538461542E-2,0.112,6.3492063492063489E-2,0.12213740458015267,7.6335877862595422E-2,6.9767441860465115E-2,4.5801526717557252E-2,5.46875E-2,7.1428571428571425E-2,2.4E-2,4.7619047619047616E-2,5.5118110236220472E-2,0.11538461538461539,0.17557251908396945,0.27692307692307694,0.2,0.1953125,0.13533834586466165,0.14615384615384616,0.14960629921259844,0.22556390977443608,0.12781954887218044,0.20300751879699247,0.18045112781954886,0.17424242424242425,0.14393939393939395,{"$f":"(COUNTIF(AH$3:AH$194,6))/AH$201","v":8.59375E-2},0.13636363636363635,0.10687022900763359,0.12030075187969924,0.1,0.16666666666666666,0.19230769230769232,0.2076923076923077,0.17557251908396945,0.24427480916030533,0.17829457364341086,6.2015503875968991E-2,0.15384615384615385,0.17293233082706766,0.10077519379844961,0.11538461538461539,0.10077519379844961,0.12307692307692308,8.461538461538462E-2,4.0322580645161289E-2,0.2153846153846154,0.16923076923076924,6.1538461538461542E-2,0.11627906976744186,6.1068702290076333E-2,0.31578947368421051,0.3007518796992481,0.22137404580152673,0.25757575757575757,0.19685039370078741,0.22480620155038761,0.1111111111111111,{"$f":"(COUNTIF(BN$3:BN$194,6))/BN$201","v":0.17557251908396945},0.16030534351145037,9.9236641221374045E-2,6.1538461538461542E-2,6.2015503875968991E-2,0.13076923076923078,0.11627906976744186,3.968253968253968E-2,0.15503875968992248,0.19230769230769232,0.11450381679389313,0.16666666666666666,0.17692307692307693,0.12121212121212122,0.22480620155038761,0.171875,5.46875E-2,6.2992125984251968E-2,4.6511627906976744E-2,0.18796992481203006,0.12403100775193798,0.17460317460317459,0.18604651162790697,0.16793893129770993,0.20930232558139536,0.16153846153846155,4.6875E-2,6.25E-2,6.2015503875968991E-2]
[]
[]
["The below is less relevant and could be deleted"]
[]
[]
[]
[]
["Qs 1-4"]
["Total no. responses as 1",{"$f":"COUNTIF(B$3:B$194,1)","v":2},{"$f":"COUNTIF(C$3:C$194,1)","v":51},{"$f":"COUNTIF(D$3:D$194,1)","v":3},{"$f":"COUNTIF(E$3:E$194,1)","v":68},{"$f":"COUNTIF(F$3:F$194,1)","v":3},51,15,13,30,5,20,12,4,14,13,45,25,13,22,30,17,7,29,9,26,27,0,3,2,15,10,19,28,6,18,7,{"$f":"COUNTIF(AL$3:AL$194,1)","v":21},8,10,12,5,4,3,19,10,4,16,15,19,11,11,35,6,4,4,24,6,6,1,7,2,8,4,14,2,{"$f":"COUNTIF(BO$3:BO$194,1)","v":9},7,15,17,3,9,35,8,6,20,15,11,10,2,6,74,29,22,8,24,17,11,10,3,8,75,36,22]
["Total no. responses as 2 or 3",{"$f":"COUNTIF(B$3:B$194,2)+COUNTIF(B$3:B$194,3)","v":37},{"$f":"COUNTIF(C$3:C$194,2)+COUNTIF(C$3:C$194,3)","v":27},{"$f":"COUNTIF(D$3:D$194,2)+COUNTIF(D$3:D$194,3)","v":33},{"$f":"COUNTIF(E$3:E$194,2)+COUNTIF(E$3:E$194,3)","v":14},{"$f":"COUNTIF(F$3:F$194,2)+COUNTIF(F$3:F$194,3)","v":60},47,68,59,48,45,42,55,75,58,54,45,53,62,35,31,33,48,38,55,39,41,37,32,33,48,46,49,43,60,56,52,{"$f":"COUNTIF(AL$3:AL$194,2)+COUNTIF(AL$3:AL$194,3)","v":47},44,34,39,49,31,52,62,46,46,59,61,51,61,53,49,36,40,67,40,63,26,19,31,21,42,38,50,42,{"$f":"COUNTIF(BO$3:BO$194,2)+COUNTIF(BO$3:BO$194,3)","v":35},47,49,57,50,52,54,61,32,30,24,20,41,12,28,23,40,55,28,26,21,22,37,16,35,26,43,51]
["Total no. responses as 4 or 5",{"$f":"COUNTIF(B$3:B$194,4)+COUNTIF(B$3:B$194,5)","v":67},{"$f":"COUNTIF(C$3:C$194,4)+COUNTIF(C$3:C$194,5)","v":35},{"$f":"COUNTIF(D$3:D$194,4)+COUNTIF(D$3:D$194,5)","v":52},{"$f":"COUNTIF(E$3:E$194,4)+COUNTIF(E$3:E$194,5)","v":27},{"$f":"COUNTIF(F$3:F$194,4)+COUNTIF(F$3:F$194,5)","v":49},21,39,39,40,65,59,53,46,49,50,32,42,45,58,47,44,49,36,51,46,40,66,81,71,46,53,45,46,48,43,58,{"$f":"COUNTIF(AL$3:AL$194,4)+COUNTIF(AL$3:AL$194,5)","v":49},58,61,52,54,64,51,40,54,60,41,39,46,42,55,35,60,64,51,50,54,59,73,64,75,52,58,48,64,{"$f":"COUNTIF(BO$3:BO$194,4)+COUNTIF(BO$3:BO$194,5)","v":66},64,58,47,60,53,32,40,67,66,66,76,65,86,72,24,50,46,72,63,66,72,62,83,66,21,41,48]
["Total no. responses as 6",{"$f":"COUNTIF(B$3:B$194,6)","v":25},{"$f":"COUNTIF(C$3:C$194,6)","v":15},{"$f":"COUNTIF(D$3:D$194,6)","v":43},{"$f":"COUNTIF(E$3:E$194,6)","v":13},{"$f":"COUNTIF(F$3:F$194,6)","v":18},6,8,14,8,16,10,9,6,7,9,3,6,7,15,23,36,26,25,18,19,19,30,17,27,24,23,19,11,18,14,16,{"$f":"COUNTIF(AL$3:AL$194,6)","v":13},22,25,27,23,32,23,8,20,23,13,15,13,16,11,5,28,22,8,15,8,42,40,29,34,25,29,14,23,{"$f":"COUNTIF(BO$3:BO$194,6)","v":21},13,8,8,17,15,5,20,25,15,21,23,16,29,22,7,8,6,25,16,22,24,22,27,21,6,8,8]
["Qs 6-7"]
["Total no. responses as 1, 2 or 3",null,null,null,null,null,null,null,null,null,null,null,null,null,null,null,null,null,null,null,null,null,null,null,null,null,null,null,null,null,null,null,null,null,null,null,null,null,null,null,null,null,null,null,null,null,null,null,null,null,null,null,null,null,null,null,null,null,null,null,null,null,null,null,null,null,null,null,null,null,null,null,null,null,null,null,null,null,null,null,null,null,null,null,null,null,null,null,null,null,null,null,null,null,null,null,null,null,null,null,{"$f":"COUNTIF(CW$3:CW$194,1)+COUNTIF(CW$3:CW$194,2)+COUNTIF(CW$3:CW$194,3)","v":72},{"$f":"COUNTIF(CX$3:CX$194,1)+COUNTIF(CX$3:CX$194,2)+COUNTIF(CX$3:CX$194,3)","v":77},68,70,85,87,75,82,86,87,71,82,70,70,76,68,null,null,53,29,76,67,73,43,50,45,65,70,43,50,56,36,60,57,61,30,37,37,48,46,43,51,33,48,68,72,105,52,40,36,57,46,27,29,28,32,48,33,38,37,45,51,64,64,66,{"$f":"COUNTIF(FJ$3:FJ$194,1)+COUNTIF(FJ$3:FJ$194,2)+COUNTIF(FJ$3:FJ$194,3)","v":33},37,32,40,42,35,37,39,38,46,37,30,47]
["Total no. responses as 4",null,null,null,null,null,null,null,null,null,null,null,null,null,null,null,null,null,null,null,null,null,null,null,null,null,null,null,null,null,null,null,null,null,null,null,null,null,null,null,null,null,null,null,null,null,null,null,null,null,null,null,null,null,null,null,null,null,null,null,null,null,null,null,null,null,null,null,null,null,null,null,null,null,null,null,null,null,null,null,null,null,null,null,null,null,null,null,null,null,null,null,null,null,null,null,null,null,null,null,{"$f":"COUNTIF(CW$3:CW$194,4)","v":37},{"$f":"COUNTIF(CX$3:CX$194,4)","v":32},32,36,28,28,33,32,31,32,39,34,31,40,32,39,null,null,60,34,49,46,44,55,50,55,41,38,58,53,43,34,45,46,48,48,43,47,51,54,47,45,67,63,45,47,18,58,70,65,55,56,66,62,58,65,62,67,58,65,51,49,39,46,49,{"$f":"COUNTIF(FJ$3:FJ$194,4)","v":64},63,68,61,50,56,58,49,63,58,59,61,59]
["Total no. responses as 5",null,null,null,null,null,null,null,null,null,null,null,null,null,null,null,null,null,null,null,null,null,null,null,null,null,null,null,null,null,null,null,null,null,null,null,null,null,null,null,null,null,null,null,null,null,null,null,null,null,null,null,null,null,null,null,null,null,null,null,null,null,null,null,null,null,null,null,null,null,null,null,null,null,null,null,null,null,null,null,null,null,null,null,null,null,null,null,null,null,null,null,null,null,null,null,null,null,null,null,{"$f":"COUNTIF(CW$3:CW$194,5)","v":13},{"$f":"COUNTIF(CX$3:CX$194,5)","v":12},22,14,9,6,14,6,5,2,12,4,21,11,14,13,null,null,17,68,5,15,12,30,29,30,24,21,28,25,31,61,25,26,21,51,52,46,33,31,42,35,32,19,16,7,5,20,20,30,17,27,37,40,45,35,22,32,35,30,35,29,22,13,10,{"$f":"COUNTIF(FJ$3:FJ$194,5)","v":33},29,30,26,38,37,33,40,29,27,35,39,25]
[]
["Total no. responses as 1",{"$f":"COUNTIF(B$3:B$194,1)","v":2},{"$f":"COUNTIF(C$3:C$194,1)","v":51},{"$f":"COUNTIF(D$3:D$194,1)","v":3},{"$f":"COUNTIF(E$3:E$194,1)","v":68},{"$f":"COUNTIF(F$3:F$194,1)","v":3},51,15,13,30,5,20,12,4,14,13,45,25,13,22,30,17,7,29,9,26,27,0,3,2,15,10,19,28,6,18,7,{"$f":"COUNTIF(AL$3:AL$194,1)","v":21},8,10,12,5,4,3,19,10,4,16,15,19,11,11,35,6,4,4,24,6,6,1,7,2,8,4,14,2,{"$f":"COUNTIF(BO$3:BO$194,1)","v":9},7,15,17,3,9,35,8,6,20,15,11,10,2,6,74,29,22,8,24,17,11,10,3,8,75,36,22,21,12,10,28,23,54,9,12,11,8,13,17,12,9,10,17,13,12,7,8,10,7,null,null,9,6,11,12,8,7,8,10,13,17,5,7,{"$f":"COUNTIF(EA$3:EA$194,1)","v":8},5,6,5,6,3,3,3,3,4,6,5,10,15,29,33,16,6,7,2,10,11,6,6,7,5,5,2,1,4,10,9,4,5,2,7,2,4,2,10,9,7,9,6,4,5,3,2]
["Total no. responses as 2",{"$f":"COUNTIF(B$3:B$194,2)","v":26},{"$f":"COUNTIF(C$3:C$194,2)","v":19},{"$f":"COUNTIF(D$3:D$194,2)","v":21},{"$f":"COUNTIF(E$3:E$194,2)","v":11},{"$f":"COUNTIF(F$3:F$194,2)","v":43},38,50,45,32,27,23,29,47,38,35,33,38,40,28,21,25,35,32,42,32,34,25,24,21,31,34,39,30,37,35,39,{"$f":"COUNTIF(AL$3:AL$194,2)","v":32},30,26,27,40,26,37,50,36,38,45,50,33,44,43,37,21,24,42,25,46,12,9,18,10,31,24,34,30,{"$f":"COUNTIF(BO$3:BO$194,2)","v":22},37,34,49,37,40,48,42,23,17,15,12,32,3,18,21,32,41,22,15,11,15,26,7,22,18,30,42,7,24,31,32,21,37,23,24,25,23,21,16,23,26,27,25,27,27,17,19,31,21,null,null,16,6,15,21,23,9,16,12,17,21,9,13,{"$f":"COUNTIF(EA$3:EA$194,2)","v":17},17,14,10,11,9,4,4,5,2,14,12,8,10,8,10,30,7,4,6,8,8,2,6,2,5,6,7,7,8,18,13,15,11,14,12,15,12,10,11,10,8,11,12,13,9,7,10]
["Total no. responses as 3",{"$f":"COUNTIF(B$3:B$194,3)","v":11},{"$f":"COUNTIF(C$3:C$194,3)","v":8},{"$f":"COUNTIF(D$3:D$194,3)","v":12},{"$f":"COUNTIF(E$3:E$194,3)","v":3},{"$f":"COUNTIF(F$3:F$194,3)","v":17},9,18,14,16,18,19,26,28,20,19,12,15,22,7,10,8,13,6,13,7,7,12,8,12,17,12,10,13,23,21,13,{"$f":"COUNTIF(AL$3:AL$194,3)","v":15},14,8,12,9,5,15,12,10,8,14,11,18,17,10,12,15,16,25,15,17,14,10,13,11,11,14,16,12,{"$f":"COUNTIF(BO$3:BO$194,3)","v":13},10,15,8,13,12,6,19,9,13,9,8,9,9,10,2,8,14,6,11,10,7,11,9,13,8,13,9,17,13,14,5,8,4,40,41,32,39,51,54,40,47,49,45,31,43,46,43,35,40,null,null,28,17,50,34,42,27,26,23,35,32,29,30,{"$f":"COUNTIF(EA$3:EA$194,3)","v":31},14,40,42,44,18,30,30,40,40,23,34,15,23,31,29,59,39,29,28,39,27,19,17,19,22,37,24,30,25,17,29,45,48,50,14,20,16,28,21,16,22,19,20,29,23,20,35]
["Total no. responses as 4",{"$f":"COUNTIF(B$3:B$194,4)","v":27},{"$f":"COUNTIF(C$3:C$194,4)","v":20},{"$f":"COUNTIF(D$3:D$194,4)","v":23},{"$f":"COUNTIF(E$3:E$194,4)","v":11},{"$f":"COUNTIF(F$3:F$194,4)","v":23},12,17,18,17,30,32,25,27,19,26,17,22,23,18,21,23,24,17,24,23,15,33,41,40,25,27,22,30,23,23,30,{"$f":"COUNTIF(AL$3:AL$194,4)","v":29},31,29,20,26,31,23,28,27,30,24,18,28,23,33,21,30,33,31,21,33,21,32,28,33,32,25,28,32,{"$f":"COUNTIF(BO$3:BO$194,4)","v":38},38,31,31,33,31,17,26,31,35,21,35,29,28,37,14,34,24,32,35,28,33,35,30,33,10,28,37,67,55,49,45,63,20,37,32,32,36,28,28,33,32,31,32,39,34,31,40,32,39,null,null,60,34,49,46,44,55,50,55,41,38,58,53,{"$f":"COUNTIF(EA$3:EA$194,4)","v":43},34,45,46,48,48,43,47,51,54,47,45,67,63,45,47,18,58,70,65,55,56,66,62,58,65,62,67,58,65,51,49,39,46,49,64,63,68,61,50,56,58,49,63,58,59,61,59]
["Total no. responses as 5",{"$f":"COUNTIF(B$3:B$194,5)","v":40},{"$f":"COUNTIF(C$3:C$194,5)","v":15},{"$f":"COUNTIF(D$3:D$194,5)","v":29},{"$f":"COUNTIF(E$3:E$194,5)","v":16},{"$f":"COUNTIF(F$3:F$194,5)","v":26},9,22,21,23,35,27,28,19,30,24,15,20,22,40,26,21,25,19,27,23,25,33,40,31,21,26,23,16,25,20,28,{"$f":"COUNTIF(AL$3:AL$194,5)","v":20},27,32,32,28,33,28,12,27,30,17,21,18,19,22,14,30,31,20,29,21,38,41,36,42,20,33,20,32,{"$f":"COUNTIF(BO$3:BO$194,5)","v":28},26,27,16,27,22,15,14,36,31,45,41,36,58,35,10,16,22,40,28,38,39,27,53,33,11,13,11,14,20,21,16,13,8,13,12,22,14,9,6,14,6,5,2,12,4,21,11,14,13,null,null,17,68,5,15,12,30,29,30,24,21,28,25,{"$f":"COUNTIF(EA$3:EA$194,5)","v":31},61,25,26,21,51,52,46,33,31,42,35,32,19,16,7,5,20,20,30,17,27,37,40,45,35,22,32,35,30,35,29,22,13,10,33,29,30,26,38,37,33,40,29,27,35,39,25]
["Total no. responses as 6",{"$f":"COUNTIF(B$3:B$194,6)","v":25},{"$f":"COUNTIF(C$3:C$194,6)","v":15},{"$f":"COUNTIF(D$3:D$194,6)","v":43},{"$f":"COUNTIF(E$3:E$194,6)","v":13},{"$f":"COUNTIF(F$3:F$194,6)","v":18},6,8,14,8,16,10,9,6,7,9,3,6,7,15,23,36,26,25,18,19,19,30,17,27,24,23,19,11,18,14,16,{"$f":"COUNTIF(AL$3:AL$194,6)","v":13},22,25,27,23,32,23,8,20,23,13,15,13,16,11,5,28,22,8,15,8,42,40,29,34,25,29,14,23,{"$f":"COUNTIF(BO$3:BO$194,6)","v":21},13,8,8,17,15,5,20,25,15,21,23,16,29,22,7,8,6,25,16,22,24,22,27,21,6,8,8]
[]
["HDI: Low HD - average",{"$f":"AVERAGEIFS(B$3:B$194,B$3:B$194,\">1\",ID_HDIG,1)","v":3.7},{"$f":"AVERAGEIFS(C$3:C$194,C$3:C$194,\">1\",ID_HDIG,1)","v":3.2727272727272729},{"$f":"AVERAGEIFS(D$3:D$194,D$3:D$194,\">1\",ID_HDIG,1)","v":4.068965517241379},{"$f":"AVERAGEIFS(E$3:E$194,E$3:E$194,\">1\",ID_HDIG,1)","v":4.4000000000000004},{"$f":"AVERAGEIFS(F$3:F$194,F$3:F$194,\">1\",ID_HDIG,1)","v":3.15625},2.25,2.8076923076923075,3.1304347826086958,3.8,3.6333333333333333,3.5862068965517242,3.6551724137931036,3.25,3.3793103448275863,3.1923076923076925,3.4210526315789473,3.1153846153846154,3,4.2222222222222223,4.0357142857142856,3.6206896551724137,3.1666666666666665,3.1304347826086958,3.1666666666666665,3.6296296296296298,3.4285714285714284,3.65625,3.4516129032258065,3.875,3.2758620689655173,3.3793103448275863,3.4074074074074074,{"$f":"AVERAGEIFS(AH$3:AH$194,AH$3:AH$194,\">1\",ID_HDIG,1)","v":3.5172413793103448},3.3666666666666667,3.2857142857142856,3.2903225806451615,3.1071428571428572,3.4333333333333331,3.4074074074074074,3.5833333333333335,3.3666666666666667,3.6206896551724137,3.1333333333333333,2.5833333333333335,3.2962962962962963,3.3125,2.8888888888888888,2.8846153846153846,3,3.2307692307692308,2.8076923076923075,2.6,3.7857142857142856,3.6428571428571428,3.096774193548387,3.5357142857142856,3.1,4.0999999999999996,4.03125,3.5862068965517242,3.7333333333333334,3.2,3.36,3,{"$f":"AVERAGEIFS(BN$3:BN$194,BN$3:BN$194,\">1\",ID_HDIG,1)","v":3.6206896551724137},3.7692307692307692,3.2857142857142856,2.9629629629629628,2.7916666666666665,3.3,3.1111111111111112,2.5,2.9310344827586206,3.6428571428571428,3.9666666666666668,4.2333333333333334,4.1379310344827589,3.4642857142857144,4.3,3.4814814814814814,2.4,3.0769230769230771,2.9583333333333335,3.870967741935484,4.1379310344827589,4.4666666666666668,4.2758620689655169,3.5555555555555554,4.5862068965517242,3.2307692307692308,2.6666666666666665,3.1428571428571428,3.04,null,null,null,null,null,null,{"$f":"AVERAGEIFS(CW$3:CW$194,CW$3:CW$194,\">1\",ID_HDIG,1)","v":3.1666666666666665},3.24,3,3.12,2.8846153846153846,3.04,3,2.8888888888888888,2.9130434782608696,2.8636363636363638,2.9545454545454546,2.8695652173913042,3.2142857142857144,3.1111111111111112,2.6666666666666665,3.0714285714285716,null,null,{"$f":"AVERAGEIFS(DO$3:DO$194,DO$3:DO$194,\">1\",ID_HDIG,1)","v":3.7419354838709675},4.4516129032258061,3.3448275862068964,3.6896551724137931,3.064516129032258,4.032258064516129,3.6666666666666665,3.8,3.4838709677419355,3.193548387096774,3.7419354838709675,3.5806451612903225,3.7,4.3,3.5161290322580645,3.75,3.2758620689655173,4.0344827586206895,3.967741935483871,4.0666666666666664,4.032258064516129,4.032258064516129,4.032258064516129,3.838709677419355,4.2333333333333334,3.7419354838709675,3.8076923076923075,3.5,3.0357142857142856,3.870967741935484,3.838709677419355,3.9333333333333331,{"$f":"AVERAGEIFS(EU$3:EU$194,EU$3:EU$194,\">1\",ID_HDIG,1)","v":3.7931034482758621},4.0357142857142856,4.3,4.290322580645161,4.4516129032258061,4,3.806451612903226,3.935483870967742,3.935483870967742,3.8666666666666667,3.8,3.7857142857142856,3.5161290322580645,3.5357142857142856,3.4827586206896552,3.8,3.5,3.7096774193548385,3.774193548387097,3.9642857142857144,3.925925925925926,3.7931034482758621,3.9629629629629628,3.5806451612903225,3.7333333333333334,3.8275862068965516,3.8333333333333335,3.6666666666666665]
["HDI: Medium HD - average",{"$f":"AVERAGEIFS(B$3:B$194,B$3:B$194,\">1\",ID_HDIG,2)","v":3.7096774193548385},{"$f":"AVERAGEIFS(C$3:C$194,C$3:C$194,\">1\",ID_HDIG,2)","v":3.4761904761904763},{"$f":"AVERAGEIFS(D$3:D$194,D$3:D$194,\">1\",ID_HDIG,2)","v":3.9666666666666668},{"$f":"AVERAGEIFS(E$3:E$194,E$3:E$194,\">1\",ID_HDIG,2)","v":3.5714285714285716},{"$f":"AVERAGEIFS(F$3:F$194,F$3:F$194,\">1\",ID_HDIG,2)","v":3.4333333333333331},3,3.0370370370370372,3.1851851851851851,3.5517241379310347,3.7096774193548385,3.6129032258064515,3.2666666666666666,3,3.0357142857142856,3.103448275862069,2.8695652173913042,2.9629629629629628,2.896551724137931,3.6666666666666665,3.5652173913043477,4,3.3448275862068964,3.5,3.2666666666666666,3.1666666666666665,3.3571428571428572,3.870967741935484,3.9333333333333331,3.8333333333333335,3.5,3.5666666666666669,3.28,{"$f":"AVERAGEIFS(AH$3:AH$194,AH$3:AH$194,\">1\",ID_HDIG,2)","v":3.2758620689655173},3.3333333333333335,3.2962962962962963,3.4482758620689653,3.52,3.7241379310344827,3.9655172413793105,3.6896551724137931,3.3666666666666667,4.0714285714285712,3.4482758620689653,2.7857142857142856,3.4482758620689653,3.8333333333333335,3.1851851851851851,3.3666666666666667,3.3461538461538463,3.2758620689655173,3.5185185185185186,3.3043478260869565,3.896551724137931,3.7,3.3666666666666667,3.3076923076923075,3,4.387096774193548,4.5999999999999996,4.0333333333333332,4.4000000000000004,3.3214285714285716,3.6666666666666665,3.1666666666666665,{"$f":"AVERAGEIFS(BN$3:BN$194,BN$3:BN$194,\">1\",ID_HDIG,2)","v":3.6666666666666665},3.6333333333333333,3.3793103448275863,3.2962962962962963,3.0689655172413794,3.2580645161290325,3.2857142857142856,3.1818181818181817,3,3.903225806451613,4.2068965517241379,4.3928571428571432,4.2758620689655169,3.7419354838709675,4.666666666666667,3.896551724137931,3.1764705882352939,3.6296296296296298,3.1111111111111112,4.032258064516129,4.1785714285714288,4.2,4.0370370370370372,3.6774193548387095,4.258064516129032,3.6666666666666665,3.1875,3.4444444444444446,3.0357142857142856,null,null,null,null,null,null,{"$f":"AVERAGEIFS(CW$3:CW$194,CW$3:CW$194,\">1\",ID_HDIG,2)","v":3.3214285714285716},3.1481481481481484,3.2857142857142856,3.2758620689655173,3.3076923076923075,3.24,3.1111111111111112,3.1481481481481484,3.0344827586206895,3,2.9629629629629628,2.9655172413793105,3.4615384615384617,3.2962962962962963,3.0370370370370372,3.2962962962962963,null,null,{"$f":"AVERAGEIFS(DO$3:DO$194,DO$3:DO$194,\">1\",ID_HDIG,2)","v":3.7857142857142856},4.5999999999999996,3.5666666666666669,3.6,3.5172413793103448,4.1333333333333337,4.0344827586206895,4.2758620689655169,3.9666666666666668,3.7857142857142856,4.032258064516129,3.7666666666666666,3.7931034482758621,4.419354838709677,4,3.806451612903226,3.6071428571428572,4.5483870967741939,4.096774193548387,4.2333333333333334,4.068965517241379,3.8571428571428572,3.9,3.6206896551724137,4.161290322580645,4.0333333333333332,4,3.84,2.925925925925926,3.7241379310344827,4,4.161290322580645,{"$f":"AVERAGEIFS(EU$3:EU$194,EU$3:EU$194,\">1\",ID_HDIG,2)","v":3.896551724137931},3.7931034482758621,4.032258064516129,4.1333333333333337,4.0999999999999996,4.129032258064516,3.9,4.129032258064516,4.225806451612903,4.032258064516129,3.925925925925926,3.8928571428571428,3.5862068965517242,3.6206896551724137,3.3666666666666667,3.838709677419355,3.6774193548387095,3.8,3.7666666666666666,3.8518518518518516,3.9285714285714284,4.0344827586206895,3.9655172413793105,3.925925925925926,3.6,3.9310344827586206,3.8333333333333335,3.6666666666666665]
["HDI: High HD - average",{"$f":"AVERAGEIFS(B$3:B$194,B$3:B$194,\">1\",ID_HDIG,3)","v":4.1142857142857139},{"$f":"AVERAGEIFS(C$3:C$194,C$3:C$194,\">1\",ID_HDIG,3)","v":3.6190476190476191},{"$f":"AVERAGEIFS(D$3:D$194,D$3:D$194,\">1\",ID_HDIG,3)","v":4.1714285714285717},{"$f":"AVERAGEIFS(E$3:E$194,E$3:E$194,\">1\",ID_HDIG,3)","v":3.6666666666666665},{"$f":"AVERAGEIFS(F$3:F$194,F$3:F$194,\">1\",ID_HDIG,3)","v":3.4},2.75,3.09375,3.064516129032258,3.1428571428571428,3.5757575757575757,3.75,3.3529411764705883,3.1764705882352939,3.3125,3.6129032258064515,3.1923076923076925,3.2173913043478262,3.4333333333333331,3.6785714285714284,4.3043478260869561,4.083333333333333,3.84375,3.3043478260869565,3.5454545454545454,3.72,3.6153846153846154,4.0277777777777777,4.1142857142857139,4.083333333333333,3.59375,3.75,3.2903225806451615,{"$f":"AVERAGEIFS(AH$3:AH$194,AH$3:AH$194,\">1\",ID_HDIG,3)","v":3.3703703703703702},3.3888888888888888,3.1875,3.3611111111111112,3.3548387096774195,3.6111111111111112,3.7878787878787881,3.625,3.6363636363636362,3.8611111111111112,3.6111111111111112,3.1379310344827585,3.5625,3.5714285714285716,3.3103448275862069,3.25,3.2666666666666666,3.4285714285714284,3.3714285714285714,3.0714285714285716,3.9117647058823528,3.8285714285714287,3.3529411764705883,4,2.9393939393939394,4.5428571428571427,4.5,4.1875,4.4722222222222223,3.6363636363636362,4.0555555555555554,3.4857142857142858,{"$f":"AVERAGEIFS(BN$3:BN$194,BN$3:BN$194,\">1\",ID_HDIG,3)","v":3.8055555555555554},3.9411764705882355,3.3235294117647061,3.4193548387096775,3,3.4848484848484849,3.1818181818181817,2.6785714285714284,3.3225806451612905,4.1142857142857139,3.8235294117647061,4.1034482758620694,4.2424242424242422,3.84375,4.5999999999999996,4.117647058823529,3.7,3.68,3.16,4.2424242424242422,3.78125,4.2222222222222223,4.225806451612903,4.096774193548387,4.4285714285714288,4,3.5,3.5263157894736841,3.1153846153846154,null,null,null,null,null,null,{"$f":"AVERAGEIFS(CW$3:CW$194,CW$3:CW$194,\">1\",ID_HDIG,3)","v":3.225806451612903},3.1875,3.1724137931034484,3.2121212121212119,3.1379310344827585,3.2068965517241379,3.103448275862069,3.0625,3.129032258064516,3.1666666666666665,3.1379310344827585,3,3.4516129032258065,3.3225806451612905,3.0666666666666669,3.2727272727272729,null,null,{"$f":"AVERAGEIFS(DO$3:DO$194,DO$3:DO$194,\">1\",ID_HDIG,3)","v":3.7714285714285714},4.4000000000000004,3.3030303030303032,3.4137931034482758,3.3225806451612905,3.7352941176470589,3.7647058823529411,3.7941176470588234,3.5625,3.8214285714285716,3.9393939393939394,4,3.84375,4.2352941176470589,3.5428571428571427,3.7575757575757578,3.6,4.2571428571428571,4.1470588235294121,4,3.6388888888888888,3.8285714285714287,3.9411764705882355,3.8484848484848486,3.9722222222222223,3.78125,3.5714285714285716,3.5416666666666665,2.9375,3.7142857142857144,3.875,3.8888888888888888,{"$f":"AVERAGEIFS(EU$3:EU$194,EU$3:EU$194,\">1\",ID_HDIG,3)","v":3.6875},3.8857142857142857,4.2352941176470589,4.1764705882352944,4.2352941176470589,4.1470588235294121,3.7714285714285714,4.1428571428571432,3.9142857142857141,4.0857142857142854,3.65625,3.59375,3.6666666666666665,3.5483870967741935,3.34375,3.9333333333333331,3.8235294117647061,3.9375,3.71875,3.9393939393939394,4.064516129032258,3.96875,4.09375,3.8787878787878789,3.7058823529411766,4,4.1764705882352944,3.7428571428571429]
["HDI: Very high HD - average",{"$f":"AVERAGEIFS(B$3:B$194,B$3:B$194,\">1\",ID_HDIG,4)","v":5.2424242424242422},{"$f":"AVERAGEIFS(C$3:C$194,C$3:C$194,\">1\",ID_HDIG,4)","v":5.083333333333333},{"$f":"AVERAGEIFS(D$3:D$194,D$3:D$194,\">1\",ID_HDIG,4)","v":5.5882352941176467},{"$f":"AVERAGEIFS(E$3:E$194,E$3:E$194,\">1\",ID_HDIG,4)","v":5.6},{"$f":"AVERAGEIFS(F$3:F$194,F$3:F$194,\">1\",ID_HDIG,4)","v":4.8},4.333333333333333,4.2,4.5161290322580649,4.2222222222222223,4.90625,4.7368421052631575,4.666666666666667,3.7096774193548385,4.5999999999999996,4.4444444444444446,4.083333333333333,4.4000000000000004,4.2666666666666666,4.7307692307692308,4.8148148148148149,5.4666666666666668,5.34375,5.6206896551724137,4.903225806451613,4.9642857142857144,5.7777777777777777,5.3235294117647056,4.9705882352941178,5.1212121212121211,5.193548387096774,5,4.9666666666666668,{"$f":"AVERAGEIFS(AH$3:AH$194,AH$3:AH$194,\">1\",ID_HDIG,4)","v":5.1333333333333337},4.833333333333333,4.8461538461538458,5,4.96,5.2413793103448274,5.4838709677419351,5.5454545454545459,5.0606060606060606,5.5882352941176467,5.32258064516129,4.3103448275862073,5.0625,5.0625,4.3666666666666663,4.4444444444444446,4.8928571428571432,4.2413793103448274,4.4516129032258061,4.0434782608695654,5.2424242424242422,5.0909090909090908,3.870967741935484,4.9259259259259256,4.5757575757575761,5.612903225806452,5.6470588235294121,5.5151515151515156,5.7058823529411766,5.4545454545454541,5.5588235294117645,4.774193548387097,{"$f":"AVERAGEIFS(BN$3:BN$194,BN$3:BN$194,\">1\",ID_HDIG,4)","v":5},5,4.8787878787878789,4.833333333333333,4.3666666666666663,5.0606060606060606,4.96875,4.3809523809523814,5,5.333333333333333,4.833333333333333,5.125,5.25,4.741935483870968,5.59375,5.4375,4.666666666666667,4.0999999999999996,4.258064516129032,5.166666666666667,5.0625,5.0909090909090908,5.096774193548387,4.84375,5.419354838709677,5.5,4.9090909090909092,4.2222222222222223,4.2857142857142856,null,null,null,null,null,null,{"$f":"AVERAGEIFS(CW$3:CW$194,CW$3:CW$194,\">1\",ID_HDIG,4)","v":3.6666666666666665},3.64,4.225806451612903,3.92,3.5714285714285716,3.44,4.032258064516129,3.6,3.3793103448275863,3.3461538461538463,4.096774193548387,3.7916666666666665,3.8,3.7857142857142856,4.096774193548387,4,null,null,{"$f":"AVERAGEIFS(DO$3:DO$194,DO$3:DO$194,\">1\",ID_HDIG,4)","v":3.2222222222222223},3.7586206896551726,3.2592592592592591,3.1785714285714284,3.6,3.5769230769230771,3.5714285714285716,3.5555555555555554,3.4166666666666665,3.32,3.6551724137931036,3.6206896551724137,3.5483870967741935,3.4516129032258065,3.5714285714285716,3.53125,4.03125,3.6129032258064515,4.2121212121212119,3.96875,3.7878787878787881,3.8787878787878789,3.838709677419355,3.9393939393939394,3.6,3.5454545454545454,3.3333333333333335,3.2222222222222223,3.04,3.6206896551724137,3.7333333333333334,3.71875,{"$f":"AVERAGEIFS(EU$3:EU$194,EU$3:EU$194,\">1\",ID_HDIG,4)","v":3.3448275862068964},3.7307692307692308,3.8620689655172415,3.7333333333333334,3.896551724137931,3.806451612903226,3.6774193548387095,3.606060606060606,3.6666666666666665,3.65625,4.03125,3.875,3.4838709677419355,3.3666666666666667,3.59375,4.25,4.3125,4.2121212121212119,4.03125,4.0625,4.0909090909090908,4.032258064516129,3.935483870967742,4.1212121212121211,4.0606060606060606,4.0294117647058822,4.2727272727272725,3.9705882352941178]
[]
["Global Average (ignoring '1's for Q's 1-4) ",{"$f":"AVERAGEIF(B3:B194,\">1\",B3:B194)","v":4.2093023255813957},{"$f":"AVERAGEIF(C3:C194,\">1\",C3:C194)","v":3.9870129870129869},{"$f":"AVERAGEIF(D3:D194,\">1\",D3:D194)","v":4.4765625},{"$f":"AVERAGEIF(E3:E194,\">1\",E3:E194)","v":4.3148148148148149},{"$f":"AVERAGEIF(F3:F194,\">1\",F3:F194)","v":3.6771653543307088},3.1351351351351351,3.3043478260869565,3.5089285714285716,3.5729166666666665,3.9603174603174605,3.8378378378378377,3.675213675213675,3.2834645669291338,3.5438596491228069,3.584070796460177,3.2875000000000001,3.4158415841584158,3.4210526315789473,4.0648148148148149,4.1980198019801982,4.3097345132743365,3.9512195121951219,3.9898989898989901,3.725806451612903,3.9038461538461537,3.88,4.2330827067669174,4.1384615384615389,4.2366412213740459,3.9152542372881354,3.9344262295081966,3.7610619469026547,{"$f":"AVERAGEIF(AH3:AH194,\">1\",AH3:AH194)","v":3.65},3.7142857142857144,3.6194690265486726,3.753968253968254,3.6972477064220182,3.975806451612903,4.1833333333333336,4.1694915254237293,3.8809523809523809,4.3149606299212602,3.8809523809523809,3.2363636363636363,3.875,3.9379844961240309,3.4601769911504423,3.4782608695652173,3.6363636363636362,3.5462184873949578,3.5630252100840338,3.303370786516854,4.2338709677419351,4.087301587301587,3.4206349206349205,3.9428571428571431,3.4239999999999999,4.6614173228346454,4.7045454545454541,4.362903225806452,4.6076923076923073,3.9747899159663866,4.2320000000000002,3.6785714285714284,{"$f":"AVERAGEIF(BN3:BN194,\">1\",BN3:BN194)","v":4.0465116279069768},4.1065573770491799,3.7419354838709675,3.652173913043478,3.3392857142857144,3.795275590551181,3.6666666666666665,3.1538461538461537,3.5950413223140494,4.25,4.1261261261261257,4.4324324324324325,4.46218487394958,3.959016393442623,4.7952755905511815,4.2704918032786887,3.6296296296296298,3.5918367346938775,3.4205607476635516,4.32,4.1809523809523812,4.4587155963302756,4.4237288135593218,4.0661157024793386,4.666666666666667,4.1475409836065573,3.6037735849056602,3.5217391304347827,3.3831775700934581,null,null,null,null,null,null,{"$f":"AVERAGE(CW3:CW194)","v":3.180327868852459},3.0661157024793386,3.237704918032787,3.2083333333333335,2.9918032786885247,2.9173553719008263,3.1147540983606556,3,2.9508196721311477,2.8099173553719008,3.081967213114754,2.9249999999999998,3.3442622950819674,3.2231404958677685,3.0737704918032787,3.25,null,null,{"$f":"AVERAGE(DO3:DO194)","v":3.4615384615384617},4.1603053435114505,3.1692307692307691,3.2421875,3.2248062015503876,3.71875,3.5891472868217056,3.6384615384615384,3.3538461538461539,3.193798449612403,3.7364341085271318,3.59375,3.5538461538461537,3.9847328244274811,3.5307692307692307,3.6046511627906979,3.5153846153846153,4.0465116279069768,4.0378787878787881,3.9923076923076923,3.8030303030303032,3.8091603053435112,3.7954545454545454,3.7099236641221376,3.7803030303030303,3.4692307692307693,3.0852713178294575,2.8809523809523809,2.734375,3.6076923076923078,3.7076923076923078,3.8778625954198471,{"$f":"AVERAGE(EU3:EU194)","v":3.4728682170542635},3.6201550387596901,3.9692307692307693,3.946564885496183,4.0076335877862599,3.9090909090909092,3.6818181818181817,3.9090909090909092,3.9083969465648853,3.8257575757575757,3.6335877862595418,3.5891472868217056,3.48,3.4146341463414633,3.4079999999999999,3.8,3.7906976744186047,3.8307692307692309,3.7795275590551181,3.7307692307692308,3.796875,3.796875,3.78125,3.7461538461538462,3.6946564885496183,3.8396946564885495,3.9692307692307693,3.7251908396946565]
["Standard Deviation",{"$f":"STDEV(B3:B194)","v":1.4401751703986443},{"$f":"STDEV(C3:C194)","v":1.8458695110891519},{"$f":"STDEV(D3:D194)","v":1.5275892989784567},{"$f":"STDEV(E3:E194)","v":1.9077242997334607},{"$f":"STDEV(F3:F194)","v":1.5116324939153376},1.4926918745200111,1.4910786177280115,1.5996773868300707,1.6316901355382087,1.4329811982380707,1.548093745691522,1.456532664618537,1.2830710369913048,1.5031954153379106,1.4894336837914932,1.5056024407782485,1.5322977869645662,1.4425203263346114,1.7392484274614,1.8493146752395524,1.8130251588422899,1.6220197661082296,1.8896735542765801,1.5883633571941596,1.7793622436246566,1.8233442974234548,1.3974393142627568,1.3438721119811499,1.3715197053338077,1.6748035594844248,1.6229757940103595,1.7088576036367942,{"$f":"STDEV(AH3:AH194)","v":1.6225943732183963},1.5130705116919831,1.5864221295808132,1.516747848973633,1.6069319129719988,1.551845177823284,1.6078964357574916,1.6844725653730117,1.5863110835480645,1.5191477043080457,1.5449890870390535,1.4601041297686415,1.6125070204115592,1.5447675151233473,1.5684865934391821,1.6286968864716309,1.5763437112901586,1.5670466051179868,1.5030281499555276,1.5197579762319009,1.5098365607149522,1.4386479109108934,1.3219174378840728,1.7066899828833644,1.37608122225425,1.4802951187658695,1.215735668167764,1.5079355562518486,1.2559136082713371,1.5967721471264362,1.5123442324812755,1.5638779638176012,{"$f":"STDEV(BN3:BN194)","v":1.4517893468724405},1.5000097866190818,1.46118300835684,1.4978617237881953,1.4892216113634458,1.4562799667926407,1.5314452691503868,1.5102611988953727,1.5604734920465151,1.4985781374718254,1.6073086158216232,1.6320014005596228,1.4844854590448784,1.5573506985396584,1.0571141424072998,1.423210819040198,1.6179815120168544,1.5886502207249789,1.5180997786655843,1.5177614795688634,1.6705743917735636,1.6321570108100836,1.5277630960065041,1.5598455138285834,1.1904415831071673,1.4986378231531099,1.5804383673749718,1.5910675859284313,1.4867388613540931,1.256045697278086,1.2401989214656721,1.2417469484041295,{"$f":"STDEV(CT3:CT194)","v":1.419970936434074},1.3287219304669946,1.3070003953021609,1.0910332765877802,1.1235029831593877,1.2267896604082971,1.0915707080369363,1.0640317962637378,1.061341736196092,1.1441314242219531,0.99578945498306126,0.98628997644016358,1.0353264347278497,1.1683863558780914,1.0221291010237719,1.0967306170319058,1.0367224259317205,1.1439241781705032,1.0551992125429495,null,null,{"$f":"STDEV(DO3:DO194)","v":1.0865909006295555},1.1081293585493157,0.98152279677871135,1.1484059047424147,1.0476186543591324,1.0717378631195664,1.1498125057806652,1.16142018218839,1.2127330813231243,1.2690887440640537,1.0040494559918447,1.082702218750931,1.168458458802166,1.2024637069490514,1.0652252485055296,1.018720127254988,1.0133574205466611,1.0144307602995193,0.97609052757410419,0.9604275036997072,0.9364493109890234,0.92082324217804734,1.1374179702903795,1.077665208596954,1.1141997706182272,1.1824849772942299,1.3464711271037455,1.312141107394432,0.98400095224331363,0.96846521147217435,0.95191487019344767,0.86844601057431436,{"$f":"STDEV(EU3:EU194)","v":1.0538435558991084},1.140132931186181,0.95591558073688043,1.0176366065866433,1.0190205192023816,0.96071335975481342,0.93546071286599397,0.87766645366345797,0.88099927249938836,0.95306826426777191,1.2291717465915448,1.1498125057806652,1.0207524106613552,0.94023740696029545,0.85285100616091047,1.088345590348492,0.97367232203533127,0.98938914314100679,0.91645786216462777,1.192927878405448,1.1526031817100753,1.0674819513862672,1.1834654837303462,1.0514776495321776,1.0068467897427429,1.0214378545283775,0.9395567282274887,0.91191628423551307]
["Number of responses >1 (Q's 1-4)",{"$f":"COUNTIF(B3:B194,\">1\")","v":129},{"$f":"COUNTIF(C3:C194,\">1\")","v":77},{"$f":"COUNTIF(D3:D194,\">1\")","v":128},{"$f":"COUNTIF(E3:E194,\">1\")","v":54},{"$f":"COUNTIF(F3:F194,\">1\")","v":127},74,115,112,96,126,111,117,127,114,113,80,101,114,108,101,113,123,99,124,104,100,133,130,131,118,122,113,{"$f":"COUNTIF(AH3:AH194,\">1\")","v":100},126,113,126,109,124,120,118,126,127,126,110,120,129,113,115,110,119,119,89,124,126,126,105,125,127,132,124,130,119,125,112,{"$f":"COUNTIF(BN3:BN194,\">1\")","v":129},122,124,115,112,127,120,91,121,124,111,111,119,122,127,122,54,98,107,125,105,109,118,121,126,122,53,92,107,null,null,null,null,null,null,null,null,null,null,null,null,null,null,null,null,null,null,null,null,null,null,null,null,null,null,null,null,null,null,null,null,null,null,null,null,null,null,null,null,null,null,null,null,null,null,null,null,null,null,null,null,null,null,null,null,null,null,null,null,null,null,null,null,null,null,null,null,null,null,null,null,null,null,null,null,null,null,null,null,null,null,null,null,"Online Check",{"$f":"COUNTIF(FX3:FX194,1)","v":31}]
["Number of 'not relevant' responses (Q's 1-4)",{"$f":"COUNTIF(B3:B194,\"=1\")","v":2},{"$f":"COUNTIF(C3:C194,\"=1\")","v":51},{"$f":"COUNTIF(D3:D194,\"=1\")","v":3},{"$f":"COUNTIF(E3:E194,\"=1\")","v":68},{"$f":"COUNTIF(F3:F194,\"=1\")","v":3},51,15,13,30,5,20,12,4,14,13,45,25,13,22,30,17,7,29,9,26,27,0,3,2,15,10,19,{"$f":"COUNTIF(AH3:AH194,\"=1\")","v":28},6,18,7,21,8,10,12,5,4,3,19,10,4,16,15,19,11,11,35,6,4,4,24,6,6,1,7,2,8,4,14,{"$f":"COUNTIF(BN3:BN194,\"=1\")","v":2},9,7,15,17,3,9,35,8,6,20,15,11,10,2,6,74,29,22,8,24,17,11,10,3,8,75,36,22,null,null,null,null,null,null,null,null,null,null,null,null,null,null,null,null,null,null,null,null,null,null,null,null,null,null,null,null,null,null,null,null,null,null,null,null,null,null,null,null,null,null,null,null,null,null,null,null,null,null,null,null,null,null,null,null,null,null,null,null,null,null,null,null,null,null,null,null,null,null,null,null,null,null,null,null,null,null,null,null,null,null,null,null,"email/fax check",{"$f":"COUNTIF(FX3:FX194,2)","v":102}]
[]
[]
[]
["Qs 1-4"]
["Total % responses as 1",null,null,null,null,{"$f":"(COUNTIF(F$3:F$194,1))/Responses!$B$4","v":2.2556390977443608E-2},{"$f":"(COUNTIF(G$3:G$194,1))/Responses!$B$4","v":0.38345864661654133}]
["Total % responses as 2 or 3",null,null,null,null,{"$f":"(COUNTIF(F$3:F$194,2)+COUNTIF(F$3:F$194,3))/Responses!$B$4","v":0.45112781954887216},{"$f":"(COUNTIF(G$3:G$194,2)+COUNTIF(G$3:G$194,3))/Responses!$B$4","v":0.35338345864661652}]
["Total % responses as 4, 5 or 6",null,null,null,null,{"$f":"(COUNTIF(F$3:F$194,4)+COUNTIF(F$3:F$194,5)+COUNTIF(F$3:F$194,6))/Responses!$B$4","v":0.50375939849624063},{"$f":"(COUNTIF(G$3:G$194,4)+COUNTIF(G$3:G$194,5)+COUNTIF(G$3:G$194,6))/Responses!$B$4","v":0.20300751879699247}]
[]
["Total % responses as 2  ",null,null,null,null,{"$f":"(COUNTIF(F$3:F$194,2))/Responses!$B$4","v":0.32330827067669171},{"$f":"(COUNTIF(G$3:G$194,2))/Responses!$B$4","v":0.2857142857142857}]
["Total % responses as 3",null,null,null,null,{"$f":"(COUNTIF(F$3:F$194,3))/Responses!$B$4","v":0.12781954887218044},{"$f":"(COUNTIF(G$3:G$194,3))/Responses!$B$4","v":6.7669172932330823E-2}]
["Total % responses as 4, 5 or 6",null,null,null,null,{"$f":"(COUNTIF(F$3:F$194,4)+COUNTIF(F$3:F$194,5)+COUNTIF(F$3:F$194,6))/Responses!$B$4","v":0.50375939849624063},{"$f":"(COUNTIF(G$3:G$194,4)+COUNTIF(G$3:G$194,5)+COUNTIF(G$3:G$194,6))/Responses!$B$4","v":0.20300751879699247}]

{"sheet":"Sec_1","index":9,"n_rows":4,"n_cols":2,"rows_kept":4,"cut":false,"hidden":false,"merged":[]}
[]
[1.1000000000000001,"Map of HDI groupings"]
[1.2,"Map of UNCSD major regions"]
[1.3,"Map of questionnaire submission status"]

{"sheet":"Sec_2","index":10,"n_rows":0,"n_cols":0,"rows_kept":0,"cut":false,"hidden":false,"merged":[]}

{"sheet":"Sec_3","index":11,"n_rows":0,"n_cols":0,"rows_kept":0,"cut":false,"hidden":false,"merged":[]}

{"sheet":"Sec_4","index":12,"n_rows":0,"n_cols":0,"rows_kept":0,"cut":false,"hidden":false,"merged":[]}

{"sheet":"Sec_5","index":13,"n_rows":0,"n_cols":0,"rows_kept":0,"cut":false,"hidden":false,"merged":[]}

{"sheet":"Sec_6","index":14,"n_rows":0,"n_cols":0,"rows_kept":0,"cut":false,"hidden":false,"merged":[]}

{"sheet":"Sec_7","index":15,"n_rows":88,"n_cols":1,"rows_kept":88,"cut":false,"hidden":false,"merged":[]}
[]
[]
[]
[]
[]
[]
[]
[]
[]
[]
[]
[]
[]
[]
[]
[]
[]
[]
[]
[]
[]
[]
[]
[]
[]
[]
[]
[]
[]
[]
[]
[]
[]
[]
[]
[]
[]
[]
[]
[]
[]
[]
[]
[]
[]
[]
[]
[]
[]
[]
[]
[]
[]
[]
[]
[]
[]
[]
[]
[]
[]
[]
[]
[]
[]
[]
[]
[]
[]
[]
[]
[]
[]
[]
[]
[]
[]
[]
[]
[]
[]
[]
[]
[]
[]
[]
[]
["MAP of Floods & Droughts from StatPlanet"]

{"sheet":"Sec_8","index":16,"n_rows":0,"n_cols":0,"rows_kept":0,"cut":false,"hidden":false,"merged":[]}

{"sheet":"Sec_9","index":17,"n_rows":0,"n_cols":0,"rows_kept":0,"cut":false,"hidden":false,"merged":[]}

{"sheet":"Sec_10","index":18,"n_rows":0,"n_cols":0,"rows_kept":0,"cut":false,"hidden":false,"merged":[]}

{"sheet":"Unused_figs","index":19,"n_rows":0,"n_cols":0,"rows_kept":0,"cut":false,"hidden":true,"merged":[]}

{"sheet":"Level2","index":20,"n_rows":55,"n_cols":33,"rows_kept":55,"cut":false,"hidden":true,"merged":[]}
[]
["Indicator"]
["Human health",{"$f":"AG37","v":0.66666666666666663}]
["Water resources governance",{"$f":"AG28","v":0.54545454545454541}]
["State of the resource",{"$f":"AG31","v":0.52186588921282795}]
["Food, agriculture",{"$f":"AG40","v":0.48148148148148145}]
["Industry ",{"$f":"AG43","v":0.41249999999999998}]
["Risk assessment",{"$f":"AG46","v":0.39506172839506171}]
["Valuing and charging for the resource",{"$f":"AG49","v":0.38686131386861317}]
["Ecosystems",{"$f":"AG34","v":0.24285714285714285}]
[]
[]
[]
[]
[]
[]
[]
[]
[]
[]
[]
[]
[null,null,"INDICATORS USED BY COUNTRIES"]
[null,null,null,null,null,null,null,null,null,null,null,null,null,null,null,null,null,null,null,null,null,null,null,null,null,null,null,null,null,null,null,"TOTALS","%"]
[null,"Indicator",null,"Albania","Antigua","Armenia","Australia","Bangladesh","Benin","Brazil","Cameroon","Cape Verde","China","Costa Rica","Estonia","Ghana","Guatemala","Jamaica","Mexico","Mozambique","Namibia","Pakistan","Rwanda","Samoa","Spain","Sri Lanka","Tanzania","Tunisia","uruguay","Uzbekistan","Uganda"]
[null,"Water resources governance","Not used",1,1,0,0,2,1,0,0,0,0,0,0,0,2,0,0,0,0,1,0,0,0,1,0,2,0,0,0,{"$f":"SUM(E26:AE26)","v":10},{"$f":"AF26/SUM(AF26:AF28)","v":0.18181818181818182}]
[null,null,"used irreg.",1,0,0,0,0,0,0,0,2,0,1,1,0,0,0,0,1,0,1,2,0,0,1,0,0,2,2,2,{"$f":"SUM(E27:AE27)","v":15},{"$f":"AF27/SUM(AF26:AF28)","v":0.27272727272727271}]
[null,null,"used reg.",0,1,2,2,0,1,2,2,0,2,1,1,2,0,0,2,1,2,0,0,2,2,0,3,0,2,0,0,{"$f":"SUM(E28:AE28)","v":30},{"$f":"AF28/SUM(AF26:AF28)","v":0.54545454545454541}]
[null,"State of the resource","Not used",2,2,0,0,9,5,4,5,7,0,3,1,1,3,2,4,1,0,0,10,8,2,2,2,0,0,1,5,{"$f":"SUM(E29:AE29)","v":77},{"$f":"AF29/SUM(AF29:AF31)","v":0.22448979591836735}]
[null,null,"used irreg.",9,2,0,0,2,7,4,7,3,2,5,3,4,10,0,0,8,0,4,1,2,0,2,3,1,8,2,7,{"$f":"SUM(E30:AE30)","v":87},{"$f":"AF30/SUM(AF29:AF31)","v":0.25364431486880468}]
[null,null,"used reg.",3,10,13,9,2,1,5,1,3,11,5,9,8,0,9,9,4,12,8,2,3,11,9,8,12,5,10,0,179,{"$f":"AF31/SUM(AF29:AF31)","v":0.52186588921282795}]
[null,"Ecosystems","Not used",2,2,4,0,4,4,0,2,2,0,2,0,3,5,0,3,3,0,3,2,2,1,1,2,0,0,0,5,50,{"$f":"AF32/SUM(AF32:AF34)","v":0.35714285714285715}]
[null,null,"used irreg.",3,1,1,0,0,0,5,3,3,4,2,4,1,0,4,2,1,2,2,3,2,0,3,2,3,5,3,0,56,{"$f":"AF33/SUM(AF32:AF34)","v":0.4}]
[null,null,"used reg.",0,4,0,5,1,5,0,0,0,1,1,1,1,0,0,0,1,3,0,0,1,4,1,0,2,0,3,0,34,{"$f":"AF34/SUM(AF32:AF34)","v":0.24285714285714285}]
[null,"Human health","Not used",1,0,1,0,1,1,0,0,0,0,0,0,1,1,0,0,1,0,0,1,0,1,0,0,2,0,0,1,11,{"$f":"AF35/SUM(AF35:AF37)","v":0.10476190476190476}]
[null,null,"used irreg.",1,3,2,0,0,0,0,1,3,2,0,0,1,1,1,2,0,0,3,1,0,0,1,0,0,2,0,1,24,{"$f":"AF36/SUM(AF35:AF37)","v":0.22857142857142856}]
[null,null,"used reg.",2,1,0,2,3,3,4,3,1,2,4,4,2,2,3,2,3,4,1,2,4,3,3,4,2,2,4,2,70,{"$f":"AF37/SUM(AF35:AF37)","v":0.66666666666666663}]
[null,"Food, agriculture and rural livelihoods","Not used",1,2,0,0,2,2,1,2,0,0,2,3,3,2,0,0,0,0,0,1,4,1,0,0,0,0,0,2,27,{"$f":"AF38/SUM(AF38:AF40)","v":0.25}]
[null,null,"used irreg.",0,1,0,0,1,2,2,2,2,1,0,0,0,2,2,1,2,0,0,1,1,0,1,2,1,2,1,2,29,{"$f":"AF39/SUM(AF38:AF40)","v":0.26851851851851855}]
[null,null,"used reg.",3,2,3,4,1,0,1,0,2,3,2,1,1,0,2,3,2,4,4,2,0,3,3,2,2,2,3,0,52,{"$f":"AF40/SUM(AF38:AF40)","v":0.48148148148148145}]
[null,"Industry ","Not used",2,2,3,0,6,6,1,1,1,0,2,1,2,3,1,2,1,0,3,2,5,0,1,0,1,1,0,3,48,{"$f":"AF41/SUM(AF41:AF43)","v":0.3}]
[null,null,"used irreg.",3,2,2,1,0,0,2,1,4,1,0,1,3,3,3,3,2,0,2,3,0,0,2,4,0,4,2,1,46,{"$f":"AF42/SUM(AF41:AF43)","v":0.28749999999999998}]
[null,null,"used reg.",1,2,0,5,0,1,3,4,1,5,4,4,1,0,2,1,3,6,1,1,1,6,3,2,4,1,4,1,66,{"$f":"AF43/SUM(AF41:AF43)","v":0.41249999999999998}]
[null,"Risk assessment","Not used",1,1,0,0,1,3,1,0,0,0,0,0,0,0,0,0,0,0,2,3,0,0,0,0,2,0,0,2,15,{"$f":"AF44/SUM(AF44:AF46)","v":0.18518518518518517}]
[null,null,"used irreg.",2,1,2,0,0,0,2,3,2,3,2,3,1,3,3,3,1,0,1,0,0,0,1,2,0,0,0,1,34,{"$f":"AF45/SUM(AF44:AF46)","v":0.41975308641975306}]
[null,null,"used reg.",0,1,1,3,2,0,0,0,1,0,1,0,2,0,0,0,2,3,0,0,2,4,2,1,1,3,3,0,32,{"$f":"AF46/SUM(AF44:AF46)","v":0.39506172839506171}]
[null,"Valuing and charging for the resource","Not used",2,4,5,1,5,4,0,0,0,0,0,0,1,5,0,2,1,0,1,1,2,2,0,0,0,0,0,1,35,{"$f":"AF47/SUM(AF47:AF49)","v":0.25547445255474455}]
[null,null,"used irreg.",2,1,0,0,0,0,1,3,2,3,3,0,2,0,4,3,1,5,3,1,1,0,2,2,0,5,4,3,49,{"$f":"AF48/SUM(AF47:AF49)","v":0.35766423357664234}]
[null,null,"used reg.",1,0,0,3,0,1,4,2,3,2,2,5,2,0,1,0,3,0,1,3,2,5,3,3,5,0,2,1,53,{"$f":"AF49/SUM(AF47:AF49)","v":0.38686131386861317}]
[null,"TOTAL","Not used",{"$f":"SUM(D26,D29,D32,D35,D38,D41,D44,D47)","v":12},{"$f":"SUM(E26,E29,E32,E35,E38,E41,E44,E47)","v":14},{"$f":"SUM(F26,F29,F32,F35,F38,F41,F44,F47)","v":13},1,30,{"$f":"SUM(I26,I29,I32,I35,I38,I41,I44,I47)","v":26},7,10,10,0,9,5,11,21,3,{"$f":"SUM(S26,S29,S32,S35,S38,S41,S44,S47)","v":11},7,0,10,20,21,7,5,4,7,{"$f":"SUM(AC26,AC29,AC32,AC35,AC38,AC41,AC44,AC47)","v":1},1,19,273,{"$f":"AF50/SUM(AF50:AF52)","v":0.24180690876882197}]
[null,null,"used irreg.",{"$f":"SUM(D27,D30,D33,D36,D39,D42,D45,D48)","v":21},11,{"$f":"SUM(F27,F30,F33,F36,F39,F42,F45,F48)","v":7},1,3,{"$f":"SUM(I27,I30,I33,I36,I39,I42,I45,I48)","v":9},16,20,21,16,13,12,12,19,17,{"$f":"SUM(S27,S30,S33,S36,S39,S42,S45,S48)","v":14},16,7,16,12,6,0,13,15,5,{"$f":"SUM(AC27,AC30,AC33,AC36,AC39,AC42,AC45,AC48)","v":28},14,17,340,{"$f":"AF51/SUM(AF50:AF52)","v":0.30115146147032773}]
[null,null,"used reg.",{"$f":"SUM(D28,D31,D34,D37,D40,D43,D46,D49)","v":10},21,{"$f":"SUM(F28,F31,F34,F37,F40,F43,F46,F49)","v":19},33,9,{"$f":"SUM(I28,I31,I34,I37,I40,I43,I46,I49)","v":12},19,12,11,26,20,25,19,2,17,{"$f":"SUM(S28,S31,S34,S37,S40,S43,S46,S49)","v":17},19,34,15,10,15,38,24,23,28,{"$f":"SUM(AC28,AC31,AC34,AC37,AC40,AC43,AC46,AC49)","v":15},29,4,516,{"$f":"AF52/SUM(AF50:AF52)","v":0.45704162976085033}]
[]
[null,"HDI",null,3,3,3,4,1,1,3,1,2,2,3,4,1,2,3,3,1,2,2,1,2,4,2,1,3,3,2,1]
[null,"Region",null,4,1,4,5,2,3,1,3,3,2,1,4,3,1,1,1,3,3,2,3,2,5,2,3,3,1,4,3]

{"sheet":"Overall_progress","index":21,"n_rows":22,"n_cols":11,"rows_kept":22,"cut":false,"hidden":true,"merged":[]}
[]
["Contact: Paul Glennie <pgl@dhigroup.com >"]
["Source: UN-Water (2012) (in press), Status report on integrated approaches to the development, management and use of water resources. http://www.unwater.org/rio2012/"]
[]
[null,null,null,null,null,null,null,null,null,null,"Progress towards developing and implementing integrated water resources management plans"]
[]
[]
[]
[]
[]
["Year ","Organisation","No. of countries surveyed","Initial stages only","Some progress made","Significant progress"]
["(survey)"]
[2003,"GWP",109,0.4,0.47,0.13,"13% of all countries surveyed had made good progress towards a more integrated approach and were on track to meet the target, a further 47% had taken some steps in this direction and the remaining countries had hardly made any progress."]
[2005,"GWP",95,0.26,0.53,0.21]
[2008,"UN-Water",102,0.38,0.12,0.34]
[2012,"UN-Water",{"$f":"Responses!B4","v":133},{"$f":"'2011 Survey responses'!F286","v":0.33076923076923076},{"$f":"'2011 Survey responses'!F287","v":0.13076923076923078},{"$f":"'2011 Survey responses'!F334","v":0.50375939849624063}]
[]
["Year ","Organisation","No. of countries surveyed","Initial stages only (%)","Some progress made (%)","Good progress (%)"]
[2003,"GWP",null,"had hardly made any progress.","had taken some steps in this direction","made good progress towards a more integrated approach and were on track to meet the target"]
[2005,"GWP",null,"Countries that have taken only initial steps in the process towards preparing national strategies or\nplans and have not yet fully embraced the requirements of an IWRM approach.","Countries that are in the process of preparing national strategies or plans but require further work to live up to the requirements of an IWRM approach.","Countries that have plans/strategies in place, or a process well underway, and that incorporate the main elements of an IWRM approach."]
[2007,"UN-Water",null,"2= Under consideration;  ","3=In place but not yet implemented","4=In place but partially implemented; 5=Fully implemented"]
[2011,"UN-Water",null,"2=Under development; ","3=Developed but not implemented","4=Implementation started; 5=Implementation advanced; 6=Fully implemented"]

{"sheet":"Graphics_data","index":22,"n_rows":75,"n_cols":24,"rows_kept":75,"cut":false,"hidden":true,"merged":[]}
[]
[null,null,null,null,null,null,"Water for agriculture","Water for domestic use","Water for industry","Water for energy","Water for ecosystems / environment","Water for growing cities",null,"Context: Current status","Context: Change in priority","Policies, plans, laws ","Management Actions","Outcome:Improved policy ","Outcome: Improved governance ","Outcome: Improved management instruments ","Outcome: Improved infrastructure "]
[null,null,null,null,null,null,"Floods","Droughts","Water scarcity (surface water)","Water scarcity (groundwater)","Water quality (surface water)","Water quality (groundwater)",null,"Context: Current Status","Context: Change in priority","Policies, plans, laws","Management Actions","Outcome (economic & social objectives)"]
[null,null,null,null,null,null,"Water for agriculture","Water for domestic use","Water for industry","Water for energy","Water for environment","Water for growing cities",null,"Low HDI","Medium HDI","High HDI","Very high HDI","Global"]
[null,null,null,null,null,null,"Floods","Droughts","Scarcity (surface)","Scarcity (gw)","Quality (surface)","Quality (gw)","Global",{"$f":"Q4","v":"Very high HDI"},{"$f":"P4","v":"High HDI"},{"$f":"O4","v":"Medium HDI"},{"$f":"N4","v":"Low HDI"}]
[null,null,null,null,null,null,null,null,null,null,null,null,"Global","V. High HDI","High HDI","Med. HDI","Low HDI"]
[null,"Water for agriculture","Water for domestic use","Water for industry","Water for energy",null,{"$f":"L5","v":"Quality (gw)"},{"$f":"K5","v":"Quality (surface)"},{"$f":"J5","v":"Scarcity (gw)"},{"$f":"I5","v":"Scarcity (surface)"},{"$f":"H5","v":"Droughts"},{"$f":"G5","v":"Floods"},null,"2007 average","2011 average"]
[null,"low",null,null,null,null,null,null,null,null,null,null,null,"2007 and 2011 averages by HDI group"]
["Low HD: % of responses as 1-3",{"$f":"SUM(B10:B12)","v":0.29032258064516125},9.6874193548387097E-2,0.56666666666666665,null,null,null,null,null,null,null,null,null,"LAC","ASP","AFR","EES","WEO"]
["Low HD: % of responses as 1",{"$f":"Question_grouping!CS221","v":0},1E-4,{"$f":"Question_grouping!CU221","v":3.3333333333333333E-2},null,null,null,null,"Domestic Med. HDI","Domestic High HDI","Domestic Very High HDI",null,"Global",{"$f":"R9","v":"WEO"},"LAC","EES",{"$f":"O9","v":"ASP"},"AFR"]
["Low HD: % of responses as 2",{"$f":"Question_grouping!CS222","v":9.6774193548387094E-2},{"$f":"Question_grouping!CT222","v":3.2258064516129031E-2},{"$f":"Question_grouping!CU222","v":0.13333333333333333},null,null,null,null,null,null,null,null,null,"Not a problem","Low priority","Medium priority","High priority","Highest Priority"]
["Low HD: % of responses as 3",{"$f":"Question_grouping!CS223","v":0.19354838709677419},{"$f":"Question_grouping!CT223","v":6.4516129032258063E-2},{"$f":"Question_grouping!CU223","v":0.4},null,null,null,null,null,null,null,null,null,"Not a problem","Low","Medium","High","Highest priority"]
["Low HD: % of responses as 4",{"$f":"Question_grouping!CS224","v":0.58064516129032262},{"$f":"Question_grouping!CT224","v":0.32258064516129031},{"$f":"Question_grouping!CU224","v":0.4},null,null,null,null,0,0.125,7.1428571428571425E-2,null,null,"Significantly decreased","Slightly decreased ","Unchanged","Slightly increased","Significantly increased"]
["Low HD: % of responses as 5",{"$f":"Question_grouping!CS225","v":0.12903225806451613},{"$f":"Question_grouping!CT225","v":0.58064516129032262},{"$f":"Question_grouping!CU225","v":3.3333333333333333E-2},null,null,null,null,0,0,0.14285714285714285,null,null,"Sign. Decrease","Slight Decr.","Unchanged","Slight Incr.","Sign. Increase"]
["Low HD: % of responses as 6",null,null,null,null,null,null,null,3.8461538461538464E-2,0.15625,0.17857142857142858,null,null,"Data not available","No funding allocations","Declining trend last 20 years ","Increasing trend last 20 years","Highly variable"]
["Medium HD: % of responses as 1",{"$f":"Question_grouping!CS227","v":3.4482758620689655E-2},1E-4,{"$f":"Question_grouping!CU227","v":0},null,null,null,null,0.30769230769230771,0.21875,0.32142857142857145,null,null,"Govt. allocation (% GDP)","Grants/loans (aid agencies)","IFI investments","Private investments","Revenues","PES"]
["Medium HD: % of responses as 2",{"$f":"Question_grouping!CS228","v":6.8965517241379309E-2},1E-4,{"$f":"Question_grouping!CU228","v":0.1},null,null,null,null,0.57692307692307687,0.5,0.2857142857142857,null,null,"Impacts on economic development objectives","Impacts on social development objectives","Impacts on environmental development objectives","Impacts on overall development objectives"]
["Medium HD: % of responses as 3",{"$f":"Question_grouping!CS229","v":0.2413793103448276},{"$f":"Question_grouping!CT229","v":6.6666666666666666E-2},{"$f":"Question_grouping!CU229","v":0.26666666666666666},null,null,null,null,0,0,0]
["Medium HD: % of responses as 4",{"$f":"Question_grouping!CS230","v":0.48275862068965519},{"$f":"Question_grouping!CT230","v":0.26666666666666666},{"$f":"Question_grouping!CU230","v":0.6},null,null,null,null,null,null,null,null,null,"Not relevant","Under consideration","In place but not yet implemented ","In place but partially implemented","Fully implemented"]
["Medium HD: % of responses as 5",{"$f":"Question_grouping!CS231","v":0.17241379310344829},{"$f":"Question_grouping!CT231","v":0.66666666666666663},{"$f":"Question_grouping!CU231","v":3.3333333333333333E-2},null,null,null,null,null,null,null,null,null,1,2,3,4,5]
["Medium HD: % of responses as 6",null,null,null,null,null,null,null,"Low HDI: 2007",null,null,null,null,"Not relevant","Under development","Developed, not implemented","Implementation started","Implementation advanced","Fully implemented"]
["High HD: % of responses as 1",{"$f":"Question_grouping!CS233","v":2.7777777777777776E-2},{"$f":"Question_grouping!CT233","v":2.7777777777777776E-2},{"$f":"Question_grouping!CU233","v":8.3333333333333329E-2},null,null,null,null,"Low HDI: 2011",null,null,null,null,1,2,3,4,5,6]
["High HD: % of responses as 2",{"$f":"Question_grouping!CS234","v":8.3333333333333329E-2},1E-4,{"$f":"Question_grouping!CU234","v":0.1111111111111111},null,null,null,null,"Medium HDI: 2007",null,null,null,null,"Not a problem","Low priority","Medium priority","High priority","Highest priority"]
["High HD: % of responses as 3",{"$f":"Question_grouping!CS235","v":0.22222222222222221},{"$f":"Question_grouping!CT235","v":0.19444444444444445},{"$f":"Question_grouping!CU235","v":0.44444444444444442},null,null,null,null,"Medium HDI: 2011"]
["High HD: % of responses as 4",{"$f":"Question_grouping!CS236","v":0.5},{"$f":"Question_grouping!CT236","v":0.19444444444444445},{"$f":"Question_grouping!CU236","v":0.33333333333333331},null,null,null,null,"High HDI: 2007",null,null,null,null,"Not relevant","Under development","Devpd., not implemented","Implemen. started ","Implemen. advanced","Fully implemented"]
["High HD: % of responses as 5",{"$f":"Question_grouping!CS237","v":0.16666666666666666},{"$f":"Question_grouping!CT237","v":0.58333333333333337},{"$f":"Question_grouping!CU237","v":2.7777777777777776E-2},null,null,null,null,"High HDI: 2011"]
["High HD: % of responses as 6",null,null,null,null,null,null,null,"Very High HDI: 2007"]
["Very High HD: % of responses as 1",{"$f":"Question_grouping!CS239","v":0.20588235294117646},{"$f":"Question_grouping!CT239","v":0.14705882352941177},{"$f":"Question_grouping!CU239","v":0.20588235294117646},null,null,null,null,"Very High HDI: 2011"]
["Very High HD: % of responses as 2",{"$f":"Question_grouping!CS240","v":0.23529411764705882},{"$f":"Question_grouping!CT240","v":0.14705882352941177},{"$f":"Question_grouping!CU240","v":0.11764705882352941}]
["Very High HD: % of responses as 3",{"$f":"Question_grouping!CS241","v":0.20588235294117646},{"$f":"Question_grouping!CT241","v":0.17647058823529413},{"$f":"Question_grouping!CU241","v":0.41176470588235292}]
["Very High HD: % of responses as 4",{"$f":"Question_grouping!CS242","v":0.29411764705882354},{"$f":"Question_grouping!CT242","v":0.26470588235294118},{"$f":"Question_grouping!CU242","v":0.20588235294117646},null,null,null,null,null,null,null,null,null,"Agriculture","Domestic use","Industry","Energy","Environment","Growing cities"]
["Very High HD: % of responses as 5",{"$f":"Question_grouping!CS243","v":5.8823529411764705E-2},{"$f":"Question_grouping!CT243","v":0.26470588235294118},{"$f":"Question_grouping!CU243","v":5.8823529411764705E-2}]
["Very High HD: % of responses as 6",null,null,null,null,null,null,null,null,null,null,null,null,"TB capac. - intl.","TB cap. - ntl/sub-ntl.","Legislation","Disaster man.","CC adapt. man.","Use efficiency"]
[null,null,null,null,null,null,null,null,null,null,null,null,null,{"$f":"S33","v":"Use efficiency"},{"$f":"R33","v":"CC adapt. man."},{"$f":"Q33","v":"Disaster man."},{"$f":"P33","v":"Legislation"},{"$f":"O33","v":"TB cap. - ntl/sub-ntl."},{"$f":"N33","v":"TB capac. - intl."}]
[null,"Water for agriculture",null,null,null,null,null,null,null,null,"Manag. through private enterprise","Transbound. capac. (natl&sub-natl)","Stakeholder particpation","Knowledge sharing","Legislation","Cross-sector coord. (natl & sub-natl)","Coordination between levels","Institut. capacity (natl & sub-natl)","Climate change adaptation man.","Water use efficiency management","Disaster management","Monitoring the resource","Financing WRM","Infrastruc. development & financing"]
[null,"low","med","high",null,null,null,null,null,null,"Manag. through private enterprise","Transbound. capac. (natl&sub-natl)","Water use efficiency management","Knowledge sharing","Institut. capacity (natl & sub-natl)","Legislation","Financing WRM","Coordination between levels","Monitoring the ressource","Disaster management","Stakeholder particpation","Infrastruc. development & financing","Cross-sector coord. (natl & sub-natl)","Climate change adaptation man."]
[1,{"$f":"B10","v":0},{"$f":"B16","v":3.4482758620689655E-2},{"$f":"B22","v":2.7777777777777776E-2},null,null,null,null,null,null,null,null,null,"Institut. cap. at nat. Level","Institut. cap. at sub-nat. level","Management through private enterprise","Stakeholder participation","Coordination between levels & types of man.","Coordination between sectors (Nat)","Coordination between sectors (sub-nat)"]
[2,{"$f":"B11","v":9.6774193548387094E-2},{"$f":"B17","v":6.8965517241379309E-2},{"$f":"B23","v":8.3333333333333329E-2},null,null,null,null,null,null,null,null,null,"Land & Water","PRS","Sust. Devp.","Devp. plan","Env. plan","CC adap. plan","Agric. plan","Energy plan","Desertification plan","Wetland plan","Biodiversity plan"]
[3,{"$f":"B12","v":0.19354838709677419},{"$f":"B18","v":0.2413793103448276},{"$f":"B24","v":0.22222222222222221},null,null,null,null,null,null,null,null,null,"Regional/sub-regional WRM agreements","TB basin WRM agreements"]
[4,{"$f":"B13","v":0.58064516129032262},{"$f":"B19","v":0.48275862068965519},{"$f":"B25","v":0.5},null,null,null,null,null,null,null,null,null,"Monitoring","Knowledge sharing"]
[5,{"$f":"B14","v":0.12903225806451613},{"$f":"B20","v":0.17241379310344829},{"$f":"B26","v":0.16666666666666666},null,null,null,null,null,null,null,null,null,"Infrastructure development"]
[null,null,null,null,null,null,null,null,null,null,null,null,null,"WRM financing","Infrastructure financing"]
[null,"Water for agriculture","Water for domestic use","Water for industry"]
[null,"low",null,null,null,null,null,null,null,null,null,null,"2.1.3","a) Cap. Needs (Nat.)","b) Cap. Needs (Sub-nat)","c) Cap. Dev. (Nat. Inst)","d) Cap. Dev (Sub-nat. Inst.)","e) In-service training","f) Higher education","g) Research"]
["Low HD: % of responses as 1-3",{"$f":"SUM(B46:B48)","v":0.29032258064516125},9.6774193548387094E-2,0.56666666666666665,null,null,null,null,null,null,null,"Infrastructure",null,"Irrigation","Energy/Hydro","Groundwater","Flood Man.","Water supply","WW treatment","Desalination","Rainwater harv.","Natural systems"]
["Low HD: % of responses as 1",{"$f":"Question_grouping!CS221","v":0},{"$f":"Question_grouping!CT221","v":0},{"$f":"Question_grouping!CU221","v":3.3333333333333333E-2},null,null,null,null,null,null,null,"Infrastruc. Reversed",null,{"$f":"V45","v":"Natural systems"},{"$f":"U45","v":"Rainwater harv."},{"$f":"T45","v":"Desalination"},{"$f":"S45","v":"WW treatment"},{"$f":"R45","v":"Water supply"},{"$f":"Q45","v":"Flood Man."},{"$f":"P45","v":"Groundwater"},{"$f":"O45","v":"Energy/Hydro"},{"$f":"N45","v":"Irrigation"}]
["Low HD: % of responses as 2",{"$f":"Question_grouping!CS222","v":9.6774193548387094E-2},{"$f":"Question_grouping!CT222","v":3.2258064516129031E-2},{"$f":"Question_grouping!CU222","v":0.13333333333333333},null,null,null,null,null,null,null,null,"Environment","Env. Act. Plan with WRM","Wetland Plan with WRM","Biodiversity Plan with WRM","Evaluation Programs","Allocation Programs","Env. Impact Assessments","Reverse Degradation Prog.","Monitoring Programs","Invest. in natural systems","Financing for natural syst."]
["Low HD: % of responses as 3",{"$f":"Question_grouping!CS223","v":0.19354838709677419},{"$f":"Question_grouping!CT223","v":6.4516129032258063E-2},{"$f":"Question_grouping!CU223","v":0.4},null,null,null,null,null,null,null,null,null,{"$f":"W47","v":"Financing for natural syst."},{"$f":"V47","v":"Invest. in natural systems"},{"$f":"U47","v":"Monitoring Programs"},{"$f":"T47","v":"Reverse Degradation Prog."},{"$f":"S47","v":"Env. Impact Assessments"},{"$f":"R47","v":"Allocation Programs"},{"$f":"Q47","v":"Evaluation Programs"},{"$f":"P47","v":"Biodiversity Plan with WRM"},{"$f":"O47","v":"Wetland Plan with WRM"},{"$f":"N47","v":"Env. Act. Plan with WRM"}]
["Low HD: % of responses as 4",{"$f":"Question_grouping!CS224","v":0.58064516129032262},{"$f":"Question_grouping!CT224","v":0.32258064516129031},{"$f":"Question_grouping!CU224","v":0.4}]
["Low HD: % of responses as 5",{"$f":"Question_grouping!CS225","v":0.12903225806451613},{"$f":"Question_grouping!CT225","v":0.58064516129032262},{"$f":"Question_grouping!CU225","v":3.3333333333333333E-2}]
["Low HD: % of responses as 6"]
["Medium HD: % of responses as 1",{"$f":"Question_grouping!CS227","v":3.4482758620689655E-2},{"$f":"Question_grouping!CT227","v":0},{"$f":"Question_grouping!CU227","v":0}]
["Medium HD: % of responses as 2",{"$f":"Question_grouping!CS228","v":6.8965517241379309E-2},{"$f":"Question_grouping!CT228","v":0},{"$f":"Question_grouping!CU228","v":0.1}]
["Medium HD: % of responses as 3",{"$f":"Question_grouping!CS229","v":0.2413793103448276},{"$f":"Question_grouping!CT229","v":6.6666666666666666E-2},{"$f":"Question_grouping!CU229","v":0.26666666666666666}]
["Medium HD: % of responses as 4",{"$f":"Question_grouping!CS230","v":0.48275862068965519},{"$f":"Question_grouping!CT230","v":0.26666666666666666},{"$f":"Question_grouping!CU230","v":0.6}]
["Medium HD: % of responses as 5",{"$f":"Question_grouping!CS231","v":0.17241379310344829},{"$f":"Question_grouping!CT231","v":0.66666666666666663},{"$f":"Question_grouping!CU231","v":3.3333333333333333E-2},null,null,null,null,null,null,null,"Subsidies","Technology","Recycling","Demand man.","Plans"]
["Medium HD: % of responses as 6"]
["High HD: % of responses as 1",{"$f":"Question_grouping!CS233","v":2.7777777777777776E-2},{"$f":"Question_grouping!CT233","v":2.7777777777777776E-2},{"$f":"Question_grouping!CU233","v":8.3333333333333329E-2},null,null,null,null,null,null,null,"low 08 1",null,"1 (low impact)",2,"3 (med. impact)",4,"5 (high impact)"]
["High HD: % of responses as 2",{"$f":"Question_grouping!CS234","v":8.3333333333333329E-2},{"$f":"Question_grouping!CT234","v":0},{"$f":"Question_grouping!CU234","v":0.1111111111111111},null,null,null,null,null,null,null,"low 11 1"]
["High HD: % of responses as 3",{"$f":"Question_grouping!CS235","v":0.22222222222222221},{"$f":"Question_grouping!CT235","v":0.19444444444444445},{"$f":"Question_grouping!CU235","v":0.44444444444444442},null,null,null,null,null,null,null,"space",null,"1.2e NEA","1.2j Wetland","1.2k BD","3.1d Evaluation","3.2f Allocation","3.2i EIA","3.2m Degradation","3.3e Monitoring","4.1j Investment","4.2j Financing"]
["High HD: % of responses as 4",{"$f":"Question_grouping!CS236","v":0.5},{"$f":"Question_grouping!CT236","v":0.19444444444444445},{"$f":"Question_grouping!CU236","v":0.33333333333333331},null,null,null,null,null,null,null,"low 08 2"]
["High HD: % of responses as 5",{"$f":"Question_grouping!CS237","v":0.16666666666666666},{"$f":"Question_grouping!CT237","v":0.58333333333333337},{"$f":"Question_grouping!CU237","v":2.7777777777777776E-2},null,null,null,null,null,null,null,"low 11 2",null,"med","high","v.high"]
["High HD: % of responses as 6",null,null,null,null,null,null,null,null,null,null,"space"]
["Very High HD: % of responses as 1",{"$f":"Question_grouping!CS239","v":0.20588235294117646},{"$f":"Question_grouping!CT239","v":0.14705882352941177},{"$f":"Question_grouping!CU239","v":0.20588235294117646},null,null,null,null,null,null,null,null,"low"]
["Very High HD: % of responses as 2",{"$f":"Question_grouping!CS240","v":0.23529411764705882},{"$f":"Question_grouping!CT240","v":0.14705882352941177},{"$f":"Question_grouping!CU240","v":0.11764705882352941}]
["Very High HD: % of responses as 3",{"$f":"Question_grouping!CS241","v":0.20588235294117646},{"$f":"Question_grouping!CT241","v":0.17647058823529413},{"$f":"Question_grouping!CU241","v":0.41176470588235292},null,null,null,null,null,null,null,"Subsidies","Technology"]
["Very High HD: % of responses as 4",{"$f":"Question_grouping!CS242","v":0.29411764705882354},{"$f":"Question_grouping!CT242","v":0.26470588235294118},{"$f":"Question_grouping!CU242","v":0.20588235294117646}]
["Very High HD: % of responses as 5",{"$f":"Question_grouping!CS243","v":5.8823529411764705E-2},{"$f":"Question_grouping!CT243","v":0.26470588235294118},{"$f":"Question_grouping!CU243","v":5.8823529411764705E-2}]
["Very High HD: % of responses as 6"]
[]
[null,null,null,"'08"]
[null,null,null,"'12"]
[]
[null,null,null,"'08"]
[null,null,null,"'12"]

{"sheet":"Question_grouping","index":23,"n_rows":344,"n_cols":220,"rows_kept":344,"cut":false,"hidden":true,"merged":[[0,76,0,91],[0,96,0,101],[0,102,0,107],[0,108,0,113],[329,0,332,0],[0,4,0,5],[0,6,0,8],[0,9,0,17],[0,61,0,66]]}
["NB","Colour coding: ",null,null,"Purple= Overall agregates",null,"Blue = sub-question aggregates",null,null,"Green = Specifc question aggregates",null,null,null,null,null,null,null,null,null,null,null,null,null,null,null,null,null,null,null,null,null,null,null,null,null,null,null,null,null,null,null,null,null,null,null,null,null,null,null,null,null,null,null,null,null,null,null,null,null,null,null,"5,1 Sources of financing for the development of water resources",null,null,null,null,null,null,null,null,null,null,null,null,null,null,"6,1 Improved Water Resources Management",null,null,null,null,null,null,null,null,null,null,null,null,null,null,null,null,null,null,null,"7,1,1 Water Uses",null,null,null,null,null,"7,1,2 Threats to the resource",null,null,null,null,null,"7,2,1 Water Uses",null,null,null,null,null,"7,2,2 Threats to the resource",null,null,null,null,null,"7,3,1 Levels of management",null,null,null,null,null,"7,3,4 Managing resource information","7,3,5 Specific types of management",null,null,null,null,null,"7,3,3 Other governance issues",null,null,null,null,"7,3,2 Management between sectors",null,null,null,null,null,null,null,"7,4,5 Specific types of management","7,4,4 Managing resource information",null,null,"7,4,3 Other governance issues",null,null,null,null,null,"7,4,1 Levels of management",null,null,null,"7,4,2 Management between sectors"]
["Countries","Overall simple average score Q's 1-4 (removing '1's)","Simple average score Q's 1-2 (removing '1's)","Simple average score Q's 1-3 (removing '1's)","Simple average score Q's 2-3 (removing '1's)","1,Policy, Planning, & Legal Framework (removing '1's) ","1,1,1 Main instruments for WRM","1,1,2 Sectoral instruments incorporating WRM ","1,1,3 International agreements","Policy, Plans (1,1,1 a, b, e)","Legislation (1,1,1 c, d)","Policy, strategic planning and legal frameworks - for Impacts (1,1,1a,c,e, 1,1,2c)","Water Efficiency Planning (1,1,1 f,g)","IWRM OR water efficiency plans (max 1,1,1 e,f)","Efficiency (separate plans or in IWRM plan) (max 1,1,1f,g)","Integration into development planning (1,1,2 a to d","Sectoral Integration (1,1,2 e to k)","Transboundary agreements (1,1,3 a, b)","2, Governance & Institutional Frameworks (removing '1's)","2,1,1 Institutional Frameworks ","2,1,2 Stakeholder Participation","2,1,3 Capacity Building","Governance and institutional frameworks - for Impacts (2,1,1,d, 2,1,3,a, 2,1,3,c, 2,1,3,e)","Groundwater institutions (2,1,1 b)","Cross-sector management (2,1,1 d)","Transboundary institutions (2,1,1 e)","Decentralisation (2,1,1 a,c,f)","2,1,1 a,d,f","Stakeholder Participation (2,1,2 a to g)","Capacity Building (2,1,3 a to g)","Gender (2,1,2 g)","3, Management Instruments (removing '1's)","3,1,1 WRM development instruments","3,1,2 WRM programs","3,1,3 Monitoring & information management","3,1,4 Knowledge sharing","3,1,5 Financing of WRM","Management instruments - for impacts (3,1,1b,c, 3,1,3a) ","Instruments for WR development (3,1,1 a to d)","WR management programs (3,1,2 b,e,h,j,k)","GW Management program (3,1,2 a)","Sectoral integration programs (3,1,2 c,d)","Water allocation programs (3,1,2d,f)","???","Demand management measures to improve water use efficiency in all sectors (3,1,2g)","Program for  re-use or recycling of water (3,1,2h)","c) Programs for transferring improved and cost effective water saving technologies","b) Subsidies for promoting water efficiency","Transboundary programs (3,1,2 l)","Programs for water and environment (3,1,2 f,i,m)","Monitoring and knowledge sharing (3,1,3 a to i & 3,1,4 a to d)","Cost recovery mechanisms (3,1,5 a to c)","4, Infrastructure Development & Financing (removing '1's)","4,1,1 Investment Plans and programs","4,1,2 Mobilizing financing for WRM infrastructure","4,1,1 Investment Plans and programs (b-j)","4,1,2 Mobilizing financing for WRM infrastructure (b-j)","Investment & financing (4,1 & 4,2)","Water resources in financing & investment plans (for impacts) (4,1,1a + 4,1,2a)","Financing for irrigation (4,1,1b&4,1,2b)","Infrastructure development and mobilizing financing for energy / hydropower (4,1,1c&4,1,2c)","5,1 a) Government budget allocation (as % of GDP) for water resources development","5,1 b) Grants and loans from aid agencies for water resources development","5,1 c) Investments from International Financing Institutions (e,g, World Bank) for water resources development","5,1 d) Investments from private sources (e,g, banks and private operators, non-profit) for water resources devpt,","5,1 e) Revenues (e,g, from water use charges/tariffs) used for water resources development","5,1 f) Payments for ecosystem services and related benefit/cost transfer schemes ","6,1 Simple average outcome (a-d)","6,1 a simple average (policy, planning, legal)","6,1 b simple average (governance, institutional frameworks)","6,1 c simple average (management instruments)","6,1 d simple average (infrastructure)","6,1 Impacts on Economic development (simple average)","6,1 Impacts on Social development (simple average)","6,1 Impacts on Environment development (simple average)","6,1 Impacts on Overall development (simple average)","6,1 a) Improved policy, strategic planning and legal frameworks - Economic devpt objectives  impact in past 20 years","6,1 a) Improved policy, strategic planning and legal frameworks - Social devpt objectives impact in past 20 years","6,1 a) Improved policy, strategic planning and legal frameworks - Environmental objectives  impact in past 20 years","6,1 a) Improved policy, strategic planning and legal frameworks - Overall national devpt impact in past 20 years","6,1 b) Improved governance and institutional frameworks - Economic devpt objectives  impact in past 20 years","6,1 b) Improved governance and institutional frameworks - Social devpt objectives impact in past 20 years","6,1 b) Improved governance and institutional frameworks - Environmental objectives  impact in past 20 years","6,1 b) Improved governance and institutional frameworks - Overall national devpt impact in past 20 years","6,1 c) Improved management instruments - Economic development objectives  impact in past 20 years","6,1 c) Improved management instruments - Social development objectives impact in past 20 years","6,1 c) Improved management instruments - Environmental objectives  impact in past 20 years","6,1 c) Improved management instruments - Overall national development impact in past 20 years","6,1 d) Improved infrastructure development - Economic development objectives  impact in past 20 years","6,1 d) Improved infrastructure development - Social development objectives impact in past 20 years","6,1 d) Improved infrastructure development - Environmental objectives  impact in past 20 years","6,1 d) Improved infrastructure development - Overall national development impact in past 20 years","Floods High/Highest priority","Droughts High/Highest priority","Floods and Droughts high/highest priority","Summary: Floods & Droughts priorities","7,1,1 a) Water for agriculture","7,1,1  b) Water for domestic use","7,1,1 c) Water for industry","7,1,1 d) Water for energy","7,1,1 e) Water for ecosystems / environment","7,1,1 f) Water for growing cities","7,1,,2 a) Floods","7,1,2 b) Droughts","7,1,2 c) Water scarcity (surface water)","7,1,2 d) Water scarcity (groundwater)","7,1,2 e) Water quality (surface water)","7,1,2 f) Water quality (groundwater)","7,2,1 a) Water for agriculture","7,2,1 b) Water for domestic use","7,2,1 c) Water for industry","7,2,1 d) Water for energy","7,2,1 e) Water for ecosystems / environment","7,2,1 f) Water for growing cities","7,2,2 a) Floods","7,2,2 b) Droughts","7,2,2 c) Water scarcity (surface water)","7,2,2 d) Water scarcity (groundwater)","7,2,2 e) Water quality (surface water)","7,2,2 f) Water quality (groundwater)","7,3,1 a) Institutional capacity at national level","7,3,1 b) Institutional capacity at sub-national level","7,3,1 c) Transboundary capacity at international level","7,3,1 d) Transboundary capacity at national/sub-national level","Infrastructure development and financing (Average 7,3,3 b,d)","7,3,3 c) Financing of water resources management","7,3,4 a) Monitoring the resource","7,3,5 a) Disaster management","7,3,5 c) Water use efficiency management","7,3,5 b) Climate change adaptation management","Institutional capacity at different levels (7,3,1a,b)","7,3,1 g) Coordination between levels and types of management","Coordination between sectors at different levels (7,3,2a,b)","7,3,3 a) Legislation","7,3,4 b) Knowledge sharing","7,3,1 f) Stakeholder participation","Transboundary capacity at different levels (7,3,1c,d)","7,3,1 e) Management through private enterprise","7,3,2 a) Coordination between sectors at national level","7,3,2 b) Coordination between sectors at sub-national level","7,3,3 b) Infrastructure development","7,3,3 d) Financing of infrastructure","7,4,5 b) Climate change adaptation management","Coordination between sectors at different levels - CHANGE (7,4,2a,b)","Infrastructure development and financing - CHANGE (Average 7,4,3 b,d)","7,4,1 f) Stakeholder participation","7,4,5 a) Disaster management","7,4,4 a) Monitoring the resource","7,4,1 g) Coordination between levels and types of management","7,4,3 c) Financing of water resources management","7,4,3 a) Legislation","Institutional capacity at different levels - CHANGE (7,4,1a,b)","7,4,4 b) Knowledge sharing","7,4,5 c) Water use efficiency management","Transboundary capacity at different levels - CHANGE (7,4,1c,d)","7,4,1 e) Management through private enterprise","7,4,1 a) Institutional capacity at national level","7,4,1 b) Institutional capacity at sub-national level","7,4,1 c) Transboundary capacity at international level","7,4,1 d) Transboundary capacity at national/sub-national level","7,4,2 a) Coordination between sectors at national level","7,4,2 b) Coordination between sectors at sub-national level","7,4,3 b) Infrastructure development","7,4,3 d) Financing of infrastructure"]
["Afghanistan",{"$f":"IF(SUM(F3)<1,\"\",AVERAGEIF('2011 Survey responses'!B3:CP3,\">1\"))","v":""},{"$f":"IF(SUM(F3)<1,\"\",AVERAGEIF('2011 Survey responses'!B3:AO3,\">1\"))","v":""},{"$f":"IF(SUM(F3)<1,\"\",AVERAGEIF('2011 Survey responses'!B3:BV3,\">1\"))","v":""},{"$f":"IF(SUM(F3)<1,\"\",AVERAGEIF('2011 Survey responses'!V3:BV3,\">1\"))","v":""},{"$f":"IF(SUM('2011 Survey responses'!B3:U3)<1,\"\",(AVERAGEIFS('2011 Survey responses'!B3:U3,'2011 Survey responses'!B3:U3,\">1\")))","v":""},{"$f":"IF(SUM('2011 Survey responses'!B3:H3)<1,\"\",(AVERAGEIFS('2011 Survey responses'!B3:H3,'2011 Survey responses'!B3:H3,\">1\")))","v":""},{"$f":"IF(SUM('2011 Survey responses'!I3:S3)<1,\"\",(AVERAGEIFS('2011 Survey responses'!I3:S3,'2011 Survey responses'!I3:S3,\">1\")))","v":""},{"$f":"IF(SUM('2011 Survey responses'!T3:U3)<2.1,\"\",(AVERAGEIFS('2011 Survey responses'!T3:U3,'2011 Survey responses'!T3:U3,\">1\")))","v":""},{"$f":"IF(SUM('2011 Survey responses'!B3:C3)<2.1,\"\",((SUMIF('2011 Survey responses'!B3:C3,\">1\")+SUMIF('2011 Survey responses'!F3,\">1\"))/(COUNTIF('2011 Survey responses'!B3:C3,\">1\")+COUNTIF('2011 Survey responses'!F3,\">1\"))))","v":""},{"$f":"IF(SUM('2011 Survey responses'!D3:D3)<2.1,\"\",(AVERAGEIFS('2011 Survey responses'!D3:D3,'2011 Survey responses'!D3:D3,\">1\")))","v":""},{"$f":"IF(('2011 Survey responses'!B3+'2011 Survey responses'!D3)<2.1,\"\",((SUMIF('2011 Survey responses'!B3,\">1\")+SUMIF('2011 Survey responses'!D3,\">1\")+SUMIF('2011 Survey responses'!F3,\">1\")+SUMIF('2011 Survey responses'!K3,\">1\"))/(COUNTIF('2011 Survey responses'!B3,\">1\")+COUNTIF('2011 Survey responses'!D3,\">1\")+COUNTIF('2011 Survey responses'!F3,\">1\")+COUNTIF('2011 Survey responses'!K3,\">1\"))))","v":""},{"$f":"IF(SUM('2011 Survey responses'!G3:H3)<2.1,\"\",(AVERAGEIFS('2011 Survey responses'!G3:H3,'2011 Survey responses'!G3:H3,\">1\")))","v":""},{"$f":"IF(SUM('2011 Survey responses'!F3:G3)<1.5,\"\",MAX('2011 Survey responses'!F3,'2011 Survey responses'!G3))","v":""},{"$f":"IF(SUM('2011 Survey responses'!G3:H3)<1,\"\",MAX('2011 Survey responses'!G3,'2011 Survey responses'!H3))","v":""},{"$f":"IF(SUM('2011 Survey responses'!I3:L3)<4.1,\"\",(AVERAGEIFS('2011 Survey responses'!I3:L3,'2011 Survey responses'!I3:L3,\">1\")))","v":""},{"$f":"IF(SUM('2011 Survey responses'!M3:S3)<4.1,\"\",(AVERAGEIFS('2011 Survey responses'!M3:S3,'2011 Survey responses'!M3:S3,\">1\")))","v":""},{"$f":"IF(SUM('2011 Survey responses'!T3:U3)<2.1,\"\",(AVERAGEIFS('2011 Survey responses'!T3:U3,'2011 Survey responses'!T3:U3,\">1\")))","v":""},{"$f":"IF(SUM('2011 Survey responses'!V3:AO3)<1,\"\",(AVERAGEIFS('2011 Survey responses'!V3:AO3,'2011 Survey responses'!V3:AO3,\">1\")))","v":""},{"$f":"IF(SUM('2011 Survey responses'!V3:AA3)<1,\"\",(AVERAGEIFS('2011 Survey responses'!V3:AA3,'2011 Survey responses'!V3:AA3,\">1\")))","v":""},{"$f":"IF(SUM('2011 Survey responses'!AB3:AH3)<1,\"\",(AVERAGEIFS('2011 Survey responses'!AB3:AH3,'2011 Survey responses'!AB3:AH3,\">1\")))","v":""},{"$f":"IF(SUM('2011 Survey responses'!AI3:AO3)<1,\"\",(AVERAGEIFS('2011 Survey responses'!AI3:AO3,'2011 Survey responses'!AI3:AO3,\">1\")))","v":""},{"$f":"IF(('2011 Survey responses'!Y3+'2011 Survey responses'!AI3+'2011 Survey responses'!AK3)<3.1,\"\",((SUMIF('2011 Survey responses'!Y3,\">1\")+SUMIF('2011 Survey responses'!AI3,\">1\")+SUMIF('2011 Survey responses'!AK3,\">1\")+SUMIF('2011 Survey responses'!AM3,\">1\"))/(COUNTIF('2011 Survey responses'!Y3,\">1\")+COUNTIF('2011 Survey responses'!AI3,\">1\")+COUNTIF('2011 Survey responses'!AK3,\">1\")+COUNTIF('2011 Survey responses'!AM3,\">1\"))))","v":""},{"$f":"IF(('2011 Survey responses'!W3)<1.1,\"\",('2011 Survey responses'!W3))","v":""},{"$f":"IF(('2011 Survey responses'!Y3)<1.1,\"\",('2011 Survey responses'!Y3))","v":""},{"$f":"IF(('2011 Survey responses'!Z3)<1.1,\"\",('2011 Survey responses'!Z3))","v":""},{"$f":"IF(('2011 Survey responses'!V3+'2011 Survey responses'!X3+'2011 Survey responses'!AA3)<3.1,\"\",((SUMIF('2011 Survey responses'!V3,\">1\")+SUMIF('2011 Survey responses'!X3,\">1\")+SUMIF('2011 Survey responses'!AA3,\">1\"))/(COUNTIF('2011 Survey responses'!V3,\">1\")+COUNTIF('2011 Survey responses'!X3,\">1\")+COUNTIF('2011 Survey responses'!AA3,\">1\"))))","v":""},{"$f":"IF(('2011 Survey responses'!V3+'2011 Survey responses'!Y3+'2011 Survey responses'!AA3)<3.1,\"\",((SUMIF('2011 Survey responses'!V3,\">1\")+SUMIF('2011 Survey responses'!Y3,\">1\")+SUMIF('2011 Survey responses'!AA3,\">1\"))/(COUNTIF('2011 Survey responses'!V3,\">1\")+COUNTIF('2011 Survey responses'!Y3,\">1\")+COUNTIF('2011 Survey responses'!AA3,\">1\"))))","v":""},{"$f":"IF(SUM('2011 Survey responses'!AB3:AH3)<1,\"\",(AVERAGEIFS('2011 Survey responses'!AB3:AH3,'2011 Survey responses'!AB3:AH3,\">1\")))","v":""},{"$f":"IF(SUM('2011 Survey responses'!AI3:AO3)<7.1,\"\",(AVERAGEIFS('2011 Survey responses'!AI3:AO3,'2011 Survey responses'!AI3:AO3,\">1\")))","v":""},{"$f":"IF(('2011 Survey responses'!AH3)<1.1,\"\",('2011 Survey responses'!AH3))","v":""},{"$f":"IF(SUM('2011 Survey responses'!AP3:BV3)<1,\"\",(AVERAGEIFS('2011 Survey responses'!AP3:BV3,'2011 Survey responses'!AP3:BV3,\">1\")))","v":""},{"$f":"IF(SUM('2011 Survey responses'!AP3:AS3)<4.1,\"\",(AVERAGEIFS('2011 Survey responses'!AP3:AS3,'2011 Survey responses'!AP3:AS3,\">1\")))","v":""},{"$f":"IF(SUM('2011 Survey responses'!AT3:BF3)<1,\"\",(AVERAGEIFS('2011 Survey responses'!AT3:BF3,'2011 Survey responses'!AT3:BF3,\">1\")))","v":""},{"$f":"IF(SUM('2011 Survey responses'!BG3:BO3)<1,\"\",(AVERAGEIFS('2011 Survey responses'!BG3:BO3,'2011 Survey responses'!BG3:BO3,\">1\")))","v":""},{"$f":"IF(SUM('2011 Survey responses'!BP3:BS3)<1,\"\",(AVERAGEIFS('2011 Survey responses'!BP3:BS3,'2011 Survey responses'!BP3:BS3,\">1\")))","v":""},{"$f":"IF(SUM('2011 Survey responses'!BT3:BV3)<3.1,\"\",(AVERAGEIFS('2011 Survey responses'!BT3:BV3,'2011 Survey responses'!BT3:BV3,\">1\")))","v":""},{"$f":"IF(('2011 Survey responses'!AQ3+'2011 Survey responses'!AR3+'2011 Survey responses'!BG3)<3.1,\"\",((SUMIF('2011 Survey responses'!AQ3,\">1\")+SUMIF('2011 Survey responses'!AR3,\">1\")+SUMIF('2011 Survey responses'!BG3,\">1\"))/(COUNTIF('2011 Survey responses'!AQ3,\">1\")+COUNTIF('2011 Survey responses'!AR3,\">1\")+COUNTIF('2011 Survey responses'!BG3,\">1\"))))","v":""},{"$f":"IF(SUM('2011 Survey responses'!AP3:AS3)<4.1,\"\",(AVERAGEIFS('2011 Survey responses'!AP3:AS3,'2011 Survey responses'!AP3:AS3,\">1\")))","v":""},{"$f":"IF(('2011 Survey responses'!AU3+'2011 Survey responses'!AX3+'2011 Survey responses'!BA3+'2011 Survey responses'!BC3+'2011 Survey responses'!BD3)<5.1,\"\",(SUMIF('2011 Survey responses'!AU3,\">1\")+SUMIF('2011 Survey responses'!AX3,\">1\")+SUMIF('2011 Survey responses'!BA3,\">1\")+SUMIF('2011 Survey responses'!BC3,\">1\")+SUMIF('2011 Survey responses'!BD3,\">1\"))/(COUNTIF('2011 Survey responses'!AU3,\">1\")+COUNTIF('2011 Survey responses'!AX3,\">1\")+COUNTIF('2011 Survey responses'!BA3,\">1\")+COUNTIF('2011 Survey responses'!BC3,\">1\")+COUNTIF('2011 Survey responses'!BD3,\">1\")))","v":""},{"$f":"IF(('2011 Survey responses'!AT3)<1.1,\"\",('2011 Survey responses'!AT3))","v":""},{"$f":"IF(SUM('2011 Survey responses'!AV3:AW3)<2.1,\"\",(AVERAGEIFS('2011 Survey responses'!AV3:AW3,'2011 Survey responses'!AV3:AW3,\">1\")))","v":""},{"$f":"IF(('2011 Survey responses'!AW3+'2011 Survey responses'!AY3)<2.1,\"\",(SUMIF('2011 Survey responses'!AW3,\">1\")+SUMIF('2011 Survey responses'!AY3,\">1\"))/(COUNTIF('2011 Survey responses'!AW3,\">1\")+COUNTIF('2011 Survey responses'!AY3,\">1\")))","v":""},{"$f":"IF(('2011 Survey responses'!AZ3)<1.1,\"\",('2011 Survey responses'!AZ3))","v":""},null,null,null,null,{"$f":"IF(('2011 Survey responses'!BE3)<1.1,\"\",('2011 Survey responses'!BE3))","v":""},{"$f":"IF(('2011 Survey responses'!AY3+'2011 Survey responses'!BB3+'2011 Survey responses'!BF3)<3.1,\"\",(SUMIF('2011 Survey responses'!AY3,\">1\")+SUMIF('2011 Survey responses'!BB3,\">1\")+SUMIF('2011 Survey responses'!BF3,\">1\"))/(COUNTIF('2011 Survey responses'!AY3,\">1\")+COUNTIF('2011 Survey responses'!BB3,\">1\")+COUNTIF('2011 Survey responses'!BF3,\">1\")))","v":""},{"$f":"IF(SUM(AI3,AJ3)<1,\"\",AVERAGE(AI3,AJ3))","v":""},{"$f":"IF(SUM('2011 Survey responses'!BT3:BV3)<3.1,\"\",(AVERAGEIFS('2011 Survey responses'!BT3:BV3,'2011 Survey responses'!BT3:BV3,\">1\")))","v":""},{"$f":"IF(SUM('2011 Survey responses'!BW3:CP3)<1,\"\",(AVERAGEIFS('2011 Survey responses'!BW3:CP3,'2011 Survey responses'!BW3:CP3,\">1\")))","v":""},{"$f":"IF(SUM('2011 Survey responses'!BW3:CF3)<1,\"\",(AVERAGEIFS('2011 Survey responses'!BW3:CF3,'2011 Survey responses'!BW3:CF3,\">1\")))","v":""},{"$f":"IF(SUM('2011 Survey responses'!CG3:CP3)<1,\"\",(AVERAGEIFS('2011 Survey responses'!CG3:CP3,'2011 Survey responses'!CG3:CP3,\">1\")))","v":""},{"$f":"IF(SUM('2011 Survey responses'!BX3:CF3)<1,\"\",(AVERAGEIFS('2011 Survey responses'!BX3:CF3,'2011 Survey responses'!BX3:CF3,\">1\")))","v":""},{"$f":"IF(SUM('2011 Survey responses'!CH3:CP3)<1,\"\",(AVERAGEIFS('2011 Survey responses'!CH3:CP3,'2011 Survey responses'!CH3:CP3,\">1\")))","v":""},{"$f":"IF(SUM('2011 Survey responses'!BW3:CP3)<1,\"\",(AVERAGEIFS('2011 Survey responses'!BW3:CP3,'2011 Survey responses'!BW3:CP3,\">1\")))","v":""},{"$f":"IF(('2011 Survey responses'!BW3+'2011 Survey responses'!CG3)<2.1,\"\",(SUMIF('2011 Survey responses'!BW3,\">1\")+SUMIF('2011 Survey responses'!CG3,\">1\"))/(COUNTIF('2011 Survey responses'!BW3,\">1\")+COUNTIF('2011 Survey responses'!CG3,\">1\")))","v":""},{"$f":"IF(('2011 Survey responses'!BX3+'2011 Survey responses'!CH3)<2.1,\"\",(SUMIF('2011 Survey responses'!BX3,\">1\")+SUMIF('2011 Survey responses'!CH3,\">1\"))/(COUNTIF('2011 Survey responses'!BX3,\">1\")+COUNTIF('2011 Survey responses'!CH3,\">1\")))","v":""},{"$f":"IF(('2011 Survey responses'!BY3+'2011 Survey responses'!CI3)<2.1,\"\",(SUMIF('2011 Survey responses'!BY3,\">1\")+SUMIF('2011 Survey responses'!CI3,\">1\"))/(COUNTIF('2011 Survey responses'!BY3,\">1\")+COUNTIF('2011 Survey responses'!CI3,\">1\")))","v":""},{"$f":"IF('2011 Survey responses'!CQ3<0.5,\"\",'2011 Survey responses'!CQ3)","v":""},{"$f":"IF('2011 Survey responses'!CR3<0.5,\"\",'2011 Survey responses'!CR3)","v":""},{"$f":"IF('2011 Survey responses'!CS3<0.5,\"\",'2011 Survey responses'!CS3)","v":""},{"$f":"IF('2011 Survey responses'!CT3<0.5,\"\",'2011 Survey responses'!CT3)","v":""},{"$f":"IF('2011 Survey responses'!CU3<0.5,\"\",'2011 Survey responses'!CU3)","v":""},{"$f":"IF('2011 Survey responses'!CV3<0.5,\"\",'2011 Survey responses'!CV3)","v":""},{"$f":"IF(SUM('2011 Survey responses'!CW3:DL3)<1,\"\",(AVERAGE('2011 Survey responses'!CW3:DL3)))","v":""},{"$f":"IF(SUM('2011 Survey responses'!CW3:CZ3)<1,\"\",(AVERAGE('2011 Survey responses'!CW3:CZ3)))","v":""},{"$f":"IF(SUM('2011 Survey responses'!DA3:DD3)<1,\"\",(AVERAGE('2011 Survey responses'!DA3:DD3)))","v":""},{"$f":"IF(SUM('2011 Survey responses'!DE3:DH3)<1,\"\",(AVERAGE('2011 Survey responses'!DE3:DH3)))","v":""},{"$f":"IF(SUM('2011 Survey responses'!DI3:DL3)<1,\"\",(AVERAGE('2011 Survey responses'!DI3:DL3)))","v":""},{"$f":"IF(('2011 Survey responses'!CW3+'2011 Survey responses'!DA3+'2011 Survey responses'!DE3+'2011 Survey responses'!DI3)<1,\"\",AVERAGE('2011 Survey responses'!CW3,'2011 Survey responses'!DA3,'2011 Survey responses'!DE3,'2011 Survey responses'!DI3))","v":""},{"$f":"IF(('2011 Survey responses'!CX3+'2011 Survey responses'!DB3+'2011 Survey responses'!DF3+'2011 Survey responses'!DJ3)<1,\"\",AVERAGE('2011 Survey responses'!CX3,'2011 Survey responses'!DB3,'2011 Survey responses'!DF3,'2011 Survey responses'!DJ3))","v":""},{"$f":"IF(('2011 Survey responses'!CY3+'2011 Survey responses'!DC3+'2011 Survey responses'!DG3+'2011 Survey responses'!DK3)<1,\"\",AVERAGE('2011 Survey responses'!CY3,'2011 Survey responses'!DC3,'2011 Survey responses'!DG3,'2011 Survey responses'!DK3))","v":""},{"$f":"IF(('2011 Survey responses'!CZ3+'2011 Survey responses'!DD3+'2011 Survey responses'!DH3+'2011 Survey responses'!DL3)<1,\"\",AVERAGE('2011 Survey responses'!CZ3,'2011 Survey responses'!DD3,'2011 Survey responses'!DH3,'2011 Survey responses'!DL3))","v":""},{"$f":"IF('2011 Survey responses'!CW3<0.5,\"\",'2011 Survey responses'!CW3)","v":""},{"$f":"IF('2011 Survey responses'!CX3<0.5,\"\",'2011 Survey responses'!CX3)","v":""},{"$f":"IF('2011 Survey responses'!CY3<0.5,\"\",'2011 Survey responses'!CY3)","v":""},{"$f":"IF('2011 Survey responses'!CZ3<0.5,\"\",'2011 Survey responses'!CZ3)","v":""},{"$f":"IF('2011 Survey responses'!DA3<0.5,\"\",'2011 Survey responses'!DA3)","v":""},{"$f":"IF('2011 Survey responses'!DB3<0.5,\"\",'2011 Survey responses'!DB3)","v":""},{"$f":"IF('2011 Survey responses'!DC3<0.5,\"\",'2011 Survey responses'!DC3)","v":""},{"$f":"IF('2011 Survey responses'!DD3<0.5,\"\",'2011 Survey responses'!DD3)","v":""},{"$f":"IF('2011 Survey responses'!DE3<0.5,\"\",'2011 Survey responses'!DE3)","v":""},{"$f":"IF('2011 Survey responses'!DF3<0.5,\"\",'2011 Survey responses'!DF3)","v":""},{"$f":"IF('2011 Survey responses'!DG3<0.5,\"\",'2011 Survey responses'!DG3)","v":""},{"$f":"IF('2011 Survey responses'!DH3<0.5,\"\",'2011 Survey responses'!DH3)","v":""},{"$f":"IF('2011 Survey responses'!DI3<0.5,\"\",'2011 Survey responses'!DI3)","v":""},{"$f":"IF('2011 Survey responses'!DJ3<0.5,\"\",'2011 Survey responses'!DJ3)","v":""},{"$f":"IF('2011 Survey responses'!DK3<0.5,\"\",'2011 Survey responses'!DK3)","v":""},{"$f":"IF('2011 Survey responses'!DL3<0.5,\"\",'2011 Survey responses'!DL3)","v":""},{"$f":"IF('2011 Survey responses'!DU3=4,4,IF('2011 Survey responses'!DU3=5,4,\"\"))","v":""},{"$f":"IF('2011 Survey responses'!DV3=4,3,IF('2011 Survey responses'!DV3=5,3,\"\"))","v":""},{"$f":"IF(AND(CO3=4,CP3=3),2,\"\")","v":""},{"$f":"IF(CQ3=2,CQ3,IF(CO3=4,CO3,IF(CP3=3,CP3,IF('2011 Survey responses'!GT3=1,1,\"\"))))","v":""},{"$f":"IF('2011 Survey responses'!DO3<0.5,\"\",'2011 Survey responses'!DO3)","v":""},{"$f":"IF('2011 Survey responses'!DP3<0.5,\"\",'2011 Survey responses'!DP3)","v":""},{"$f":"IF('2011 Survey responses'!DQ3<0.5,\"\",'2011 Survey responses'!DQ3)","v":""},{"$f":"IF('2011 Survey responses'!DR3<0.5,\"\",'2011 Survey responses'!DR3)","v":""},{"$f":"IF('2011 Survey responses'!DS3<0.5,\"\",'2011 Survey responses'!DS3)","v":""},{"$f":"IF('2011 Survey responses'!DT3<0.5,\"\",'2011 Survey responses'!DT3)","v":""},{"$f":"IF('2011 Survey responses'!DU3<0.5,\"\",'2011 Survey responses'!DU3)","v":""},{"$f":"IF('2011 Survey responses'!DV3<0.5,\"\",'2011 Survey responses'!DV3)","v":""},{"$f":"IF('2011 Survey responses'!DW3<0.5,\"\",'2011 Survey responses'!DW3)","v":""},{"$f":"IF('2011 Survey responses'!DX3<0.5,\"\",'2011 Survey responses'!DX3)","v":""},{"$f":"IF('2011 Survey responses'!DY3<0.5,\"\",'2011 Survey responses'!DY3)","v":""},{"$f":"IF('2011 Survey responses'!DZ3<0.5,\"\",'2011 Survey responses'!DZ3)","v":""},{"$f":"IF('2011 Survey responses'!EA3<0.5,\"\",'2011 Survey responses'!EA3)","v":""},{"$f":"IF('2011 Survey responses'!EB3<0.5,\"\",'2011 Survey responses'!EB3)","v":""},{"$f":"IF('2011 Survey responses'!EC3<0.5,\"\",'2011 Survey responses'!EC3)","v":""},{"$f":"IF('2011 Survey responses'!ED3<0.5,\"\",'2011 Survey responses'!ED3)","v":""},{"$f":"IF('2011 Survey responses'!EE3<0.5,\"\",'2011 Survey responses'!EE3)","v":""},{"$f":"IF('2011 Survey responses'!EF3<0.5,\"\",'2011 Survey responses'!EF3)","v":""},{"$f":"IF('2011 Survey responses'!EG3<0.5,\"\",'2011 Survey responses'!EG3)","v":""},{"$f":"IF('2011 Survey responses'!EH3<0.5,\"\",'2011 Survey responses'!EH3)","v":""},{"$f":"IF('2011 Survey responses'!EI3<0.5,\"\",'2011 Survey responses'!EI3)","v":""},{"$f":"IF('2011 Survey responses'!EJ3<0.5,\"\",'2011 Survey responses'!EJ3)","v":""},{"$f":"IF('2011 Survey responses'!EK3<0.5,\"\",'2011 Survey responses'!EK3)","v":""},{"$f":"IF('2011 Survey responses'!EL3<0.5,\"\",'2011 Survey responses'!EL3)","v":""},{"$f":"IF('2011 Survey responses'!EM3<0.5,\"\",'2011 Survey responses'!EM3)","v":""},{"$f":"IF('2011 Survey responses'!EN3<0.5,\"\",'2011 Survey responses'!EN3)","v":""},{"$f":"IF('2011 Survey responses'!EO3<0.5,\"\",'2011 Survey responses'!EO3)","v":""},{"$f":"IF('2011 Survey responses'!EP3<0.5,\"\",'2011 Survey responses'!EP3)","v":""},{"$f":"IF(('2011 Survey responses'!EW3+'2011 Survey responses'!EX3)>=2,AVERAGE('2011 Survey responses'!EW3,'2011 Survey responses'!EY3),\"\")","v":""},{"$f":"IF('2011 Survey responses'!EX3<0.5,\"\",'2011 Survey responses'!EX3)","v":""},{"$f":"IF('2011 Survey responses'!EZ3<0.5,\"\",'2011 Survey responses'!EZ3)","v":""},{"$f":"IF('2011 Survey responses'!FB3<0.5,\"\",'2011 Survey responses'!FB3)","v":""},{"$f":"IF('2011 Survey responses'!FD3<0.5,\"\",'2011 Survey responses'!FD3)","v":""},{"$f":"IF('2011 Survey responses'!FC3<0.5,\"\",'2011 Survey responses'!FC3)","v":""},{"$f":"IF(('2011 Survey responses'!EM3+'2011 Survey responses'!EN3)>=2,AVERAGE('2011 Survey responses'!EM3,'2011 Survey responses'!EN3),\"\")","v":""},{"$f":"IF('2011 Survey responses'!ES3<0.5,\"\",'2011 Survey responses'!ES3)","v":""},{"$f":"IF(('2011 Survey responses'!ET3+'2011 Survey responses'!EU3)>=2,AVERAGE('2011 Survey responses'!ET3,'2011 Survey responses'!EU3),\"\")","v":""},{"$f":"IF('2011 Survey responses'!EV3<0.5,\"\",'2011 Survey responses'!EV3)","v":""},{"$f":"IF('2011 Survey responses'!FA3<0.5,\"\",'2011 Survey responses'!FA3)","v":""},{"$f":"IF('2011 Survey responses'!ER3<0.5,\"\",'2011 Survey responses'!ER3)","v":""},{"$f":"IF(('2011 Survey responses'!EO3+'2011 Survey responses'!EP3)>=2,AVERAGE('2011 Survey responses'!EO3,'2011 Survey responses'!EP3),\"\")","v":""},{"$f":"IF('2011 Survey responses'!EQ3<0.5,\"\",'2011 Survey responses'!EQ3)","v":""},{"$f":"IF('2011 Survey responses'!ET3<0.5,\"\",'2011 Survey responses'!ET3)","v":""},{"$f":"IF('2011 Survey responses'!EU3<0.5,\"\",'2011 Survey responses'!EU3)","v":""},{"$f":"IF('2011 Survey responses'!EW3<0.5,\"\",'2011 Survey responses'!EW3)","v":""},{"$f":"IF('2011 Survey responses'!EY3<0.5,\"\",'2011 Survey responses'!EY3)","v":""},{"$f":"IF('2011 Survey responses'!FU3<0.5,\"\",'2011 Survey responses'!FU3)","v":""},{"$f":"IF(('2011 Survey responses'!FL3+'2011 Survey responses'!FM3)>=2,AVERAGE('2011 Survey responses'!FL3,'2011 Survey responses'!FM3),\"\")","v":""},{"$f":"IF(('2011 Survey responses'!FO3+'2011 Survey responses'!FQ3)>=2,AVERAGE('2011 Survey responses'!FO3,'2011 Survey responses'!FQ3),\"\")","v":""},{"$f":"IF('2011 Survey responses'!FJ3<0.5,\"\",'2011 Survey responses'!FJ3)","v":""},{"$f":"IF('2011 Survey responses'!FT3<0.5,\"\",'2011 Survey responses'!FT3)","v":""},{"$f":"IF('2011 Survey responses'!FR3<0.5,\"\",'2011 Survey responses'!FR3)","v":""},{"$f":"IF('2011 Survey responses'!FK3<0.5,\"\",'2011 Survey responses'!FK3)","v":""},{"$f":"IF('2011 Survey responses'!FP3<0.5,\"\",'2011 Survey responses'!FP3)","v":""},{"$f":"IF('2011 Survey responses'!FN3<0.5,\"\",'2011 Survey responses'!FN3)","v":""},{"$f":"IF(('2011 Survey responses'!FE3+'2011 Survey responses'!FF3)>=2,AVERAGE('2011 Survey responses'!FE3,'2011 Survey responses'!FF3),\"\")","v":""},{"$f":"IF('2011 Survey responses'!FS3<0.5,\"\",'2011 Survey responses'!FS3)","v":""},{"$f":"IF('2011 Survey responses'!FV3<0.5,\"\",'2011 Survey responses'!FV3)","v":""},{"$f":"IF(('2011 Survey responses'!FG3+'2011 Survey responses'!FH3)>=2,AVERAGE('2011 Survey responses'!FG3,'2011 Survey responses'!FH3),\"\")","v":""},{"$f":"IF('2011 Survey responses'!FI3<0.5,\"\",'2011 Survey responses'!FI3)","v":""},{"$f":"IF('2011 Survey responses'!FE3<0.5,\"\",'2011 Survey responses'!FE3)","v":""},{"$f":"IF('2011 Survey responses'!FF3<0.5,\"\",'2011 Survey responses'!FF3)","v":""},{"$f":"IF('2011 Survey responses'!FG3<0.5,\"\",'2011 Survey responses'!FG3)","v":""},{"$f":"IF('2011 Survey responses'!FH3<0.5,\"\",'2011 Survey responses'!FH3)","v":""},{"$f":"IF('2011 Survey responses'!FL3<0.5,\"\",'2011 Survey responses'!FL3)","v":""},{"$f":"IF('2011 Survey responses'!FM3<0.5,\"\",'2011 Survey responses'!FM3)","v":""},{"$f":"IF('2011 Survey responses'!FO3<0.5,\"\",'2011 Survey responses'!FO3)","v":""},{"$f":"IF('2011 Survey responses'!FQ3<0.5,\"\",'2011 Survey responses'!FQ3)","v":""}]
["Albania",{"$f":"IF(SUM(F4)<1,\"\",AVERAGEIF('2011 Survey responses'!B4:CP4,\">1\"))","v":2.7916666666666665},{"$f":"IF(SUM(F4)<1,\"\",AVERAGEIF('2011 Survey responses'!B4:AO4,\">1\"))","v":3.2941176470588234},{"$f":"IF(SUM(F4)<1,\"\",AVERAGEIF('2011 Survey responses'!B4:BV4,\">1\"))","v":2.7931034482758621},{"$f":"IF(SUM(F4)<1,\"\",AVERAGEIF('2011 Survey responses'!V4:BV4,\">1\"))","v":2.7317073170731709},{"$f":"IF(SUM('2011 Survey responses'!B4:U4)<1,\"\",(AVERAGEIFS('2011 Survey responses'!B4:U4,'2011 Survey responses'!B4:U4,\">1\")))","v":2.9411764705882355},{"$f":"IF(SUM('2011 Survey responses'!B4:H4)<1,\"\",(AVERAGEIFS('2011 Survey responses'!B4:H4,'2011 Survey responses'!B4:H4,\">1\")))","v":2},{"$f":"IF(SUM('2011 Survey responses'!I4:S4)<1,\"\",(AVERAGEIFS('2011 Survey responses'!I4:S4,'2011 Survey responses'!I4:S4,\">1\")))","v":3.5},{"$f":"IF(SUM('2011 Survey responses'!T4:U4)<2.1,\"\",(AVERAGEIFS('2011 Survey responses'!T4:U4,'2011 Survey responses'!T4:U4,\">1\")))","v":4},{"$f":"IF(SUM('2011 Survey responses'!B4:C4)<2.1,\"\",((SUMIF('2011 Survey responses'!B4:C4,\">1\")+SUMIF('2011 Survey responses'!F4,\">1\"))/(COUNTIF('2011 Survey responses'!B4:C4,\">1\")+COUNTIF('2011 Survey responses'!F4,\">1\"))))","v":2},{"$f":"IF(SUM('2011 Survey responses'!D4:E4)<2.1,\"\",(AVERAGEIFS('2011 Survey responses'!D4:E4,'2011 Survey responses'!D4:E4,\">1\")))","v":2},{"$f":"IF(('2011 Survey responses'!B4+'2011 Survey responses'!D4)<2.1,\"\",((SUMIF('2011 Survey responses'!B4,\">1\")+SUMIF('2011 Survey responses'!D4,\">1\")+SUMIF('2011 Survey responses'!F4,\">1\")+SUMIF('2011 Survey responses'!K4,\">1\"))/(COUNTIF('2011 Survey responses'!B4,\">1\")+COUNTIF('2011 Survey responses'!D4,\">1\")+COUNTIF('2011 Survey responses'!F4,\">1\")+COUNTIF('2011 Survey responses'!K4,\">1\"))))","v":2},{"$f":"IF(SUM('2011 Survey responses'!G4:H4)<2.1,\"\",(AVERAGEIFS('2011 Survey responses'!G4:H4,'2011 Survey responses'!G4:H4,\">1\")))","v":2},{"$f":"IF(SUM('2011 Survey responses'!F4:G4)<1.5,\"\",MAX('2011 Survey responses'!F4,'2011 Survey responses'!G4))","v":2},{"$f":"IF(SUM('2011 Survey responses'!G4:H4)<1,\"\",MAX('2011 Survey responses'!G4,'2011 Survey responses'!H4))","v":2},{"$f":"IF(SUM('2011 Survey responses'!I4:L4)<4.1,\"\",(AVERAGEIFS('2011 Survey responses'!I4:L4,'2011 Survey responses'!I4:L4,\">1\")))","v":3},{"$f":"IF(SUM('2011 Survey responses'!M4:S4)<4.1,\"\",(AVERAGEIFS('2011 Survey responses'!M4:S4,'2011 Survey responses'!M4:S4,\">1\")))","v":4},{"$f":"IF(SUM('2011 Survey responses'!T4:U4)<2.1,\"\",(AVERAGEIFS('2011 Survey responses'!T4:U4,'2011 Survey responses'!T4:U4,\">1\")))","v":4},{"$f":"IF(SUM('2011 Survey responses'!V4:AO4)<1,\"\",(AVERAGEIFS('2011 Survey responses'!V4:AO4,'2011 Survey responses'!V4:AO4,\">1\")))","v":3.6470588235294117},{"$f":"IF(SUM('2011 Survey responses'!V4:AA4)<1,\"\",(AVERAGEIFS('2011 Survey responses'!V4:AA4,'2011 Survey responses'!V4:AA4,\">1\")))","v":5},{"$f":"IF(SUM('2011 Survey responses'!AB4:AH4)<1,\"\",(AVERAGEIFS('2011 Survey responses'!AB4:AH4,'2011 Survey responses'!AB4:AH4,\">1\")))","v":3.8571428571428572},{"$f":"IF(SUM('2011 Survey responses'!AI4:AO4)<1,\"\",(AVERAGEIFS('2011 Survey responses'!AI4:AO4,'2011 Survey responses'!AI4:AO4,\">1\")))","v":2},{"$f":"IF(('2011 Survey responses'!Y4+'2011 Survey responses'!AI4+'2011 Survey responses'!AK4)<3.1,\"\",((SUMIF('2011 Survey responses'!Y4,\">1\")+SUMIF('2011 Survey responses'!AI4,\">1\")+SUMIF('2011 Survey responses'!AK4,\">1\")+SUMIF('2011 Survey responses'!AM4,\">1\"))/(COUNTIF('2011 Survey responses'!Y4,\">1\")+COUNTIF('2011 Survey responses'!AI4,\">1\")+COUNTIF('2011 Survey responses'!AK4,\">1\")+COUNTIF('2011 Survey responses'!AM4,\">1\"))))","v":2.75},{"$f":"IF(('2011 Survey responses'!W4)<1.1,\"\",('2011 Survey responses'!W4))","v":5},{"$f":"IF(('2011 Survey responses'!Y4)<1.1,\"\",('2011 Survey responses'!Y4))","v":5},{"$f":"IF(('2011 Survey responses'!Z4)<1.1,\"\",('2011 Survey responses'!Z4))","v":5},{"$f":"IF(('2011 Survey responses'!V4+'2011 Survey responses'!X4+'2011 Survey responses'!AA4)<3.1,\"\",((SUMIF('2011 Survey responses'!V4,\">1\")+SUMIF('2011 Survey responses'!X4,\">1\")+SUMIF('2011 Survey responses'!AA4,\">1\"))/(COUNTIF('2011 Survey responses'!V4,\">1\")+COUNTIF('2011 Survey responses'!X4,\">1\")+COUNTIF('2011 Survey responses'!AA4,\">1\"))))","v":5},{"$f":"IF(('2011 Survey responses'!V4+'2011 Survey responses'!Y4+'2011 Survey responses'!AA4)<3.1,\"\",((SUMIF('2011 Survey responses'!V4,\">1\")+SUMIF('2011 Survey responses'!Y4,\">1\")+SUMIF('2011 Survey responses'!AA4,\">1\"))/(COUNTIF('2011 Survey responses'!V4,\">1\")+COUNTIF('2011 Survey responses'!Y4,\">1\")+COUNTIF('2011 Survey responses'!AA4,\">1\"))))","v":5},{"$f":"IF(SUM('2011 Survey responses'!AB4:AH4)<1,\"\",(AVERAGEIFS('2011 Survey responses'!AB4:AH4,'2011 Survey responses'!AB4:AH4,\">1\")))","v":3.8571428571428572},{"$f":"IF(SUM('2011 Survey responses'!AI4:AO4)<7.1,\"\",(AVERAGEIFS('2011 Survey responses'!AI4:AO4,'2011 Survey responses'!AI4:AO4,\">1\")))","v":2},{"$f":"IF(('2011 Survey responses'!AH4)<1.1,\"\",('2011 Survey responses'!AH4))","v":4},{"$f":"IF(SUM('2011 Survey responses'!AP4:BV4)<1,\"\",(AVERAGEIFS('2011 Survey responses'!AP4:BV4,'2011 Survey responses'!AP4:BV4,\">1\")))","v":2.0833333333333335},{"$f":"IF(SUM('2011 Survey responses'!AP4:AS4)<4.1,\"\",(AVERAGEIFS('2011 Survey responses'!AP4:AS4,'2011 Survey responses'!AP4:AS4,\">1\")))","v":2},{"$f":"IF(SUM('2011 Survey responses'!AT4:BF4)<1,\"\",(AVERAGEIFS('2011 Survey responses'!AT4:BF4,'2011 Survey responses'!AT4:BF4,\">1\")))","v":2.2222222222222223},{"$f":"IF(SUM('2011 Survey responses'!BG4:BO4)<1,\"\",(AVERAGEIFS('2011 Survey responses'!BG4:BO4,'2011 Survey responses'!BG4:BO4,\">1\")))","v":2},{"$f":"IF(SUM('2011 Survey responses'!BP4:BS4)<1,\"\",(AVERAGEIFS('2011 Survey responses'!BP4:BS4,'2011 Survey responses'!BP4:BS4,\">1\")))","v":2},{"$f":"IF(SUM('2011 Survey responses'!BT4:BV4)<3.1,\"\",(AVERAGEIFS('2011 Survey responses'!BT4:BV4,'2011 Survey responses'!BT4:BV4,\">1\")))","v":2},{"$f":"IF(('2011 Survey responses'!AQ4+'2011 Survey responses'!AR4+'2011 Survey responses'!BG4)<3.1,\"\",((SUMIF('2011 Survey responses'!AQ4,\">1\")+SUMIF('2011 Survey responses'!AR4,\">1\")+SUMIF('2011 Survey responses'!BG4,\">1\"))/(COUNTIF('2011 Survey responses'!AQ4,\">1\")+COUNTIF('2011 Survey responses'!AR4,\">1\")+COUNTIF('2011 Survey responses'!BG4,\">1\"))))","v":2},{"$f":"IF(SUM('2011 Survey responses'!AP4:AS4)<4.1,\"\",(AVERAGEIFS('2011 Survey responses'!AP4:AS4,'2011 Survey responses'!AP4:AS4,\">1\")))","v":2},{"$f":"IF(('2011 Survey responses'!AU4+'2011 Survey responses'!AX4+'2011 Survey responses'!BA4+'2011 Survey responses'!BC4+'2011 Survey responses'!BD4)<5.1,\"\",(SUMIF('2011 Survey responses'!AU4,\">1\")+SUMIF('2011 Survey responses'!AX4,\">1\")+SUMIF('2011 Survey responses'!BA4,\">1\")+SUMIF('2011 Survey responses'!BC4,\">1\")+SUMIF('2011 Survey responses'!BD4,\">1\"))/(COUNTIF('2011 Survey responses'!AU4,\">1\")+COUNTIF('2011 Survey responses'!AX4,\">1\")+COUNTIF('2011 Survey responses'!BA4,\">1\")+COUNTIF('2011 Survey responses'!BC4,\">1\")+COUNTIF('2011 Survey responses'!BD4,\">1\")))","v":2},{"$f":"IF(('2011 Survey responses'!AT4)<1.1,\"\",('2011 Survey responses'!AT4))","v":2},{"$f":"IF(SUM('2011 Survey responses'!AV4:AW4)<2.1,\"\",(AVERAGEIFS('2011 Survey responses'!AV4:AW4,'2011 Survey responses'!AV4:AW4,\">1\")))","v":2},{"$f":"IF(('2011 Survey responses'!AW4+'2011 Survey responses'!AY4)<2.1,\"\",(SUMIF('2011 Survey responses'!AW4,\">1\")+SUMIF('2011 Survey responses'!AY4,\">1\"))/(COUNTIF('2011 Survey responses'!AW4,\">1\")+COUNTIF('2011 Survey responses'!AY4,\">1\")))","v":2},{"$f":"IF(('2011 Survey responses'!AZ4)<1.1,\"\",('2011 Survey responses'!AZ4))","v":2},2,1,1,2,{"$f":"IF(('2011 Survey responses'!BE4)<1.1,\"\",('2011 Survey responses'!BE4))","v":2},{"$f":"IF(('2011 Survey responses'!AY4+'2011 Survey responses'!BB4+'2011 Survey responses'!BF4)<3.1,\"\",(SUMIF('2011 Survey responses'!AY4,\">1\")+SUMIF('2011 Survey responses'!BB4,\">1\")+SUMIF('2011 Survey responses'!BF4,\">1\"))/(COUNTIF('2011 Survey responses'!AY4,\">1\")+COUNTIF('2011 Survey responses'!BB4,\">1\")+COUNTIF('2011 Survey responses'!BF4,\">1\")))","v":3},2,{"$f":"IF(SUM('2011 Survey responses'!BT4:BV4)<3.1,\"\",(AVERAGEIFS('2011 Survey responses'!BT4:BV4,'2011 Survey responses'!BT4:BV4,\">1\")))","v":2},{"$f":"IF(SUM('2011 Survey responses'!BW4:CP4)<1,\"\",(AVERAGEIFS('2011 Survey responses'!BW4:CP4,'2011 Survey responses'!BW4:CP4,\">1\")))","v":2.7857142857142856},{"$f":"IF(SUM('2011 Survey responses'!BW4:CF4)<1,\"\",(AVERAGEIFS('2011 Survey responses'!BW4:CF4,'2011 Survey responses'!BW4:CF4,\">1\")))","v":2.6666666666666665},{"$f":"IF(SUM('2011 Survey responses'!CG4:CP4)<1,\"\",(AVERAGEIFS('2011 Survey responses'!CG4:CP4,'2011 Survey responses'!CG4:CP4,\">1\")))","v":2.875},{"$f":"IF(SUM('2011 Survey responses'!BX4:CF4)<1,\"\",(AVERAGEIFS('2011 Survey responses'!BX4:CF4,'2011 Survey responses'!BX4:CF4,\">1\")))","v":2.8},{"$f":"IF(SUM('2011 Survey responses'!CH4:CP4)<1,\"\",(AVERAGEIFS('2011 Survey responses'!CH4:CP4,'2011 Survey responses'!CH4:CP4,\">1\")))","v":3},{"$f":"IF(SUM('2011 Survey responses'!BW4:CP4)<1,\"\",(AVERAGEIFS('2011 Survey responses'!BW4:CP4,'2011 Survey responses'!BW4:CP4,\">1\")))","v":2.7857142857142856},{"$f":"IF(('2011 Survey responses'!BW4+'2011 Survey responses'!CG4)<2.1,\"\",(SUMIF('2011 Survey responses'!BW4,\">1\")+SUMIF('2011 Survey responses'!CG4,\">1\"))/(COUNTIF('2011 Survey responses'!BW4,\">1\")+COUNTIF('2011 Survey responses'!CG4,\">1\")))","v":2},{"$f":"IF(('2011 Survey responses'!BX4+'2011 Survey responses'!CH4)<2.1,\"\",(SUMIF('2011 Survey responses'!BX4,\">1\")+SUMIF('2011 Survey responses'!CH4,\">1\"))/(COUNTIF('2011 Survey responses'!BX4,\">1\")+COUNTIF('2011 Survey responses'!CH4,\">1\")))","v":2},{"$f":"IF(('2011 Survey responses'!BY4+'2011 Survey responses'!CI4)<2.1,\"\",(SUMIF('2011 Survey responses'!BY4,\">1\")+SUMIF('2011 Survey responses'!CI4,\">1\"))/(COUNTIF('2011 Survey responses'!BY4,\">1\")+COUNTIF('2011 Survey responses'!CI4,\">1\")))","v":3},{"$f":"IF('2011 Survey responses'!CQ4<0.5,\"\",'2011 Survey responses'!CQ4)","v":3},{"$f":"IF('2011 Survey responses'!CR4<0.5,\"\",'2011 Survey responses'!CR4)","v":3},{"$f":"IF('2011 Survey responses'!CS4<0.5,\"\",'2011 Survey responses'!CS4)","v":3},{"$f":"IF('2011 Survey responses'!CT4<0.5,\"\",'2011 Survey responses'!CT4)","v":1},{"$f":"IF('2011 Survey responses'!CU4<0.5,\"\",'2011 Survey responses'!CU4)","v":1},{"$f":"IF('2011 Survey responses'!CV4<0.5,\"\",'2011 Survey responses'!CV4)","v":1},{"$f":"IF(SUM('2011 Survey responses'!CW4:DL4)<1,\"\",(AVERAGE('2011 Survey responses'!CW4:DL4)))","v":2.9375},{"$f":"IF(SUM('2011 Survey responses'!CW4:CZ4)<1,\"\",(AVERAGE('2011 Survey responses'!CW4:CZ4)))","v":2.75},{"$f":"IF(SUM('2011 Survey responses'!DA4:DD4)<1,\"\",(AVERAGE('2011 Survey responses'!DA4:DD4)))","v":3},{"$f":"IF(SUM('2011 Survey responses'!DE4:DH4)<1,\"\",(AVERAGE('2011 Survey responses'!DE4:DH4)))","v":3},{"$f":"IF(SUM('2011 Survey responses'!DI4:DL4)<1,\"\",(AVERAGE('2011 Survey responses'!DI4:DL4)))","v":3},{"$f":"IF(('2011 Survey responses'!CW4+'2011 Survey responses'!DA4+'2011 Survey responses'!DE4+'2011 Survey responses'!DI4)<1,\"\",AVERAGE('2011 Survey responses'!CW4,'2011 Survey responses'!DA4,'2011 Survey responses'!DE4,'2011 Survey responses'!DI4))","v":3},{"$f":"IF(('2011 Survey responses'!CX4+'2011 Survey responses'!DB4+'2011 Survey responses'!DF4+'2011 Survey responses'!DJ4)<1,\"\",AVERAGE('2011 Survey responses'!CX4,'2011 Survey responses'!DB4,'2011 Survey responses'!DF4,'2011 Survey responses'!DJ4))","v":2.75},{"$f":"IF(('2011 Survey responses'!CY4+'2011 Survey responses'!DC4+'2011 Survey responses'!DG4+'2011 Survey responses'!DK4)<1,\"\",AVERAGE('2011 Survey responses'!CY4,'2011 Survey responses'!DC4,'2011 Survey responses'!DG4,'2011 Survey responses'!DK4))","v":3},{"$f":"IF(('2011 Survey responses'!CZ4+'2011 Survey responses'!DD4+'2011 Survey responses'!DH4+'2011 Survey responses'!DL4)<1,\"\",AVERAGE('2011 Survey responses'!CZ4,'2011 Survey responses'!DD4,'2011 Survey responses'!DH4,'2011 Survey responses'!DL4))","v":3},{"$f":"IF('2011 Survey responses'!CW4<0.5,\"\",'2011 Survey responses'!CW4)","v":3},{"$f":"IF('2011 Survey responses'!CX4<0.5,\"\",'2011 Survey responses'!CX4)","v":2},{"$f":"IF('2011 Survey responses'!CY4<0.5,\"\",'2011 Survey responses'!CY4)","v":3},{"$f":"IF('2011 Survey responses'!CZ4<0.5,\"\",'2011 Survey responses'!CZ4)","v":3},{"$f":"IF('2011 Survey responses'!DA4<0.5,\"\",'2011 Survey responses'!DA4)","v":3},{"$f":"IF('2011 Survey responses'!DB4<0.5,\"\",'2011 Survey responses'!DB4)","v":3},{"$f":"IF('2011 Survey responses'!DC4<0.5,\"\",'2011 Survey responses'!DC4)","v":3},{"$f":"IF('2011 Survey responses'!DD4<0.5,\"\",'2011 Survey responses'!DD4)","v":3},{"$f":"IF('2011 Survey responses'!DE4<0.5,\"\",'2011 Survey responses'!DE4)","v":3},{"$f":"IF('2011 Survey responses'!DF4<0.5,\"\",'2011 Survey responses'!DF4)","v":3},{"$f":"IF('2011 Survey responses'!DG4<0.5,\"\",'2011 Survey responses'!DG4)","v":3},{"$f":"IF('2011 Survey responses'!DH4<0.5,\"\",'2011 Survey responses'!DH4)","v":3},{"$f":"IF('2011 Survey responses'!DI4<0.5,\"\",'2011 Survey responses'!DI4)","v":3},{"$f":"IF('2011 Survey responses'!DJ4<0.5,\"\",'2011 Survey responses'!DJ4)","v":3},{"$f":"IF('2011 Survey responses'!DK4<0.5,\"\",'2011 Survey responses'!DK4)","v":3},{"$f":"IF('2011 Survey responses'!DL4<0.5,\"\",'2011 Survey responses'!DL4)","v":3},{"$f":"IF('2011 Survey responses'!DU4=4,4,IF('2011 Survey responses'!DU4=5,4,\"\"))","v":4},{"$f":"IF('2011 Survey responses'!DV4=4,3,IF('2011 Survey responses'!DV4=5,3,\"\"))","v":""},{"$f":"IF(AND(CO4=4,CP4=3),2,\"\")","v":""},{"$f":"IF(CQ4=2,CQ4,IF(CO4=4,CO4,IF(CP4=3,CP4,IF('2011 Survey responses'!GT4=1,1,\"\"))))","v":4},{"$f":"IF('2011 Survey responses'!DO4<0.5,\"\",'2011 Survey responses'!DO4)","v":4},{"$f":"IF('2011 Survey responses'!DP4<0.5,\"\",'2011 Survey responses'!DP4)","v":5},{"$f":"IF('2011 Survey responses'!DQ4<0.5,\"\",'2011 Survey responses'!DQ4)","v":3},{"$f":"IF('2011 Survey responses'!DR4<0.5,\"\",'2011 Survey responses'!DR4)","v":5},{"$f":"IF('2011 Survey responses'!DS4<0.5,\"\",'2011 Survey responses'!DS4)","v":4},{"$f":"IF('2011 Survey responses'!DT4<0.5,\"\",'2011 Survey responses'!DT4)","v":4},{"$f":"IF('2011 Survey responses'!DU4<0.5,\"\",'2011 Survey responses'!DU4)","v":4},{"$f":"IF('2011 Survey responses'!DV4<0.5,\"\",'2011 Survey responses'!DV4)","v":3},{"$f":"IF('2011 Survey responses'!DW4<0.5,\"\",'2011 Survey responses'!DW4)","v":4},{"$f":"IF('2011 Survey responses'!DX4<0.5,\"\",'2011 Survey responses'!DX4)","v":3},{"$f":"IF('2011 Survey responses'!DY4<0.5,\"\",'2011 Survey responses'!DY4)","v":4},{"$f":"IF('2011 Survey responses'!DZ4<0.5,\"\",'2011 Survey responses'!DZ4)","v":4},{"$f":"IF('2011 Survey responses'!EA4<0.5,\"\",'2011 Survey responses'!EA4)","v":4},{"$f":"IF('2011 Survey responses'!EB4<0.5,\"\",'2011 Survey responses'!EB4)","v":5},{"$f":"IF('2011 Survey responses'!EC4<0.5,\"\",'2011 Survey responses'!EC4)","v":4},{"$f":"IF('2011 Survey responses'!ED4<0.5,\"\",'2011 Survey responses'!ED4)","v":5},{"$f":"IF('2011 Survey responses'!EE4<0.5,\"\",'2011 Survey responses'!EE4)","v":4},{"$f":"IF('2011 Survey responses'!EF4<0.5,\"\",'2011 Survey responses'!EF4)","v":4},{"$f":"IF('2011 Survey responses'!EG4<0.5,\"\",'2011 Survey responses'!EG4)","v":4},{"$f":"IF('2011 Survey responses'!EH4<0.5,\"\",'2011 Survey responses'!EH4)","v":3},{"$f":"IF('2011 Survey responses'!EI4<0.5,\"\",'2011 Survey responses'!EI4)","v":4},{"$f":"IF('2011 Survey responses'!EJ4<0.5,\"\",'2011 Survey responses'!EJ4)","v":4},{"$f":"IF('2011 Survey responses'!EK4<0.5,\"\",'2011 Survey responses'!EK4)","v":4},{"$f":"IF('2011 Survey responses'!EL4<0.5,\"\",'2011 Survey responses'!EL4)","v":3},{"$f":"IF('2011 Survey responses'!EM4<0.5,\"\",'2011 Survey responses'!EM4)","v":4},{"$f":"IF('2011 Survey responses'!EN4<0.5,\"\",'2011 Survey responses'!EN4)","v":3},{"$f":"IF('2011 Survey responses'!EO4<0.5,\"\",'2011 Survey responses'!EO4)","v":3},{"$f":"IF('2011 Survey responses'!EP4<0.5,\"\",'2011 Survey responses'!EP4)","v":3},{"$f":"IF(('2011 Survey responses'!EW4+'2011 Survey responses'!EX4)>=2,AVERAGE('2011 Survey responses'!EW4,'2011 Survey responses'!EY4),\"\")","v":4.5},{"$f":"IF('2011 Survey responses'!EX4<0.5,\"\",'2011 Survey responses'!EX4)","v":4},{"$f":"IF('2011 Survey responses'!EZ4<0.5,\"\",'2011 Survey responses'!EZ4)","v":3},{"$f":"IF('2011 Survey responses'!FB4<0.5,\"\",'2011 Survey responses'!FB4)","v":4},{"$f":"IF('2011 Survey responses'!FD4<0.5,\"\",'2011 Survey responses'!FD4)","v":4},{"$f":"IF('2011 Survey responses'!FC4<0.5,\"\",'2011 Survey responses'!FC4)","v":3},{"$f":"IF(('2011 Survey responses'!EM4+'2011 Survey responses'!EN4)>=2,AVERAGE('2011 Survey responses'!EM4,'2011 Survey responses'!EN4),\"\")","v":3.5},{"$f":"IF('2011 Survey responses'!ES4<0.5,\"\",'2011 Survey responses'!ES4)","v":4},{"$f":"IF(('2011 Survey responses'!ET4+'2011 Survey responses'!EU4)>=2,AVERAGE('2011 Survey responses'!ET4,'2011 Survey responses'!EU4),\"\")","v":3.5},{"$f":"IF('2011 Survey responses'!EV4<0.5,\"\",'2011 Survey responses'!EV4)","v":5},{"$f":"IF('2011 Survey responses'!FA4<0.5,\"\",'2011 Survey responses'!FA4)","v":3},{"$f":"IF('2011 Survey responses'!ER4<0.5,\"\",'2011 Survey responses'!ER4)","v":4},{"$f":"IF(('2011 Survey responses'!EO4+'2011 Survey responses'!EP4)>=2,AVERAGE('2011 Survey responses'!EO4,'2011 Survey responses'!EP4),\"\")","v":3},{"$f":"IF('2011 Survey responses'!EQ4<0.5,\"\",'2011 Survey responses'!EQ4)","v":4},{"$f":"IF('2011 Survey responses'!ET4<0.5,\"\",'2011 Survey responses'!ET4)","v":4},{"$f":"IF('2011 Survey responses'!EU4<0.5,\"\",'2011 Survey responses'!EU4)","v":3},{"$f":"IF('2011 Survey responses'!EW4<0.5,\"\",'2011 Survey responses'!EW4)","v":5},{"$f":"IF('2011 Survey responses'!EY4<0.5,\"\",'2011 Survey responses'!EY4)","v":4},{"$f":"IF('2011 Survey responses'!FU4<0.5,\"\",'2011 Survey responses'!FU4)","v":3},{"$f":"IF(('2011 Survey responses'!FL4+'2011 Survey responses'!FM4)>=2,AVERAGE('2011 Survey responses'!FL4,'2011 Survey responses'!FM4),\"\")","v":4},{"$f":"IF(('2011 Survey responses'!FO4+'2011 Survey responses'!FQ4)>=2,AVERAGE('2011 Survey responses'!FO4,'2011 Survey responses'!FQ4),\"\")","v":5},{"$f":"IF('2011 Survey responses'!FJ4<0.5,\"\",'2011 Survey responses'!FJ4)","v":4},{"$f":"IF('2011 Survey responses'!FT4<0.5,\"\",'2011 Survey responses'!FT4)","v":4},{"$f":"IF('2011 Survey responses'!FR4<0.5,\"\",'2011 Survey responses'!FR4)","v":4},{"$f":"IF('2011 Survey responses'!FK4<0.5,\"\",'2011 Survey responses'!FK4)","v":4},{"$f":"IF('2011 Survey responses'!FP4<0.5,\"\",'2011 Survey responses'!FP4)","v":4},{"$f":"IF('2011 Survey responses'!FN4<0.5,\"\",'2011 Survey responses'!FN4)","v":5},{"$f":"IF(('2011 Survey responses'!FE4+'2011 Survey responses'!FF4)>=2,AVERAGE('2011 Survey responses'!FE4,'2011 Survey responses'!FF4),\"\")","v":4},{"$f":"IF('2011 Survey responses'!FS4<0.5,\"\",'2011 Survey responses'!FS4)","v":4},{"$f":"IF('2011 Survey responses'!FV4<0.5,\"\",'2011 Survey responses'!FV4)","v":4},{"$f":"IF(('2011 Survey responses'!FG4+'2011 Survey responses'!FH4)>=2,AVERAGE('2011 Survey responses'!FG4,'2011 Survey responses'!FH4),\"\")","v":4},{"$f":"IF('2011 Survey responses'!FI4<0.5,\"\",'2011 Survey responses'!FI4)","v":4},{"$f":"IF('2011 Survey responses'!FE4<0.5,\"\",'2011 Survey responses'!FE4)","v":4},{"$f":"IF('2011 Survey responses'!FF4<0.5,\"\",'2011 Survey responses'!FF4)","v":4},{"$f":"IF('2011 Survey responses'!FG4<0.5,\"\",'2011 Survey responses'!FG4)","v":4},{"$f":"IF('2011 Survey responses'!FH4<0.5,\"\",'2011 Survey responses'!FH4)","v":4},{"$f":"IF('2011 Survey responses'!FL4<0.5,\"\",'2011 Survey responses'!FL4)","v":4},{"$f":"IF('2011 Survey responses'!FM4<0.5,\"\",'2011 Survey responses'!FM4)","v":4},{"$f":"IF('2011 Survey responses'!FO4<0.5,\"\",'2011 Survey responses'!FO4)","v":5},{"$f":"IF('2011 Survey responses'!FQ4<0.5,\"\",'2011 Survey responses'!FQ4)","v":5}]
["Algeria",{"$f":"IF(SUM(F5)<1,\"\",AVERAGEIF('2011 Survey responses'!B5:CP5,\">1\"))","v":4.1624999999999996},{"$f":"IF(SUM(F5)<1,\"\",AVERAGEIF('2011 Survey responses'!B5:AO5,\">1\"))","v":4.2},{"$f":"IF(SUM(F5)<1,\"\",AVERAGEIF('2011 Survey responses'!B5:BV5,\">1\"))","v":4.129032258064516},{"$f":"IF(SUM(F5)<1,\"\",AVERAGEIF('2011 Survey responses'!V5:BV5,\">1\"))","v":4.0851063829787231},{"$f":"IF(SUM('2011 Survey responses'!B5:U5)<1,\"\",(AVERAGEIFS('2011 Survey responses'!B5:U5,'2011 Survey responses'!B5:U5,\">1\")))","v":4.2666666666666666},{"$f":"IF(SUM('2011 Survey responses'!B5:H5)<1,\"\",(AVERAGEIFS('2011 Survey responses'!B5:H5,'2011 Survey responses'!B5:H5,\">1\")))","v":5.25},{"$f":"IF(SUM('2011 Survey responses'!I5:S5)<1,\"\",(AVERAGEIFS('2011 Survey responses'!I5:S5,'2011 Survey responses'!I5:S5,\">1\")))","v":3.8},{"$f":"IF(SUM('2011 Survey responses'!T5:U5)<2.1,\"\",(AVERAGEIFS('2011 Survey responses'!T5:U5,'2011 Survey responses'!T5:U5,\">1\")))","v":5},{"$f":"IF(SUM('2011 Survey responses'!B5:C5)<2.1,\"\",((SUMIF('2011 Survey responses'!B5:C5,\">1\")+SUMIF('2011 Survey responses'!F5,\">1\"))/(COUNTIF('2011 Survey responses'!B5:C5,\">1\")+COUNTIF('2011 Survey responses'!F5,\">1\"))))","v":5},{"$f":"IF(SUM('2011 Survey responses'!D5:E5)<2.1,\"\",(AVERAGEIFS('2011 Survey responses'!D5:E5,'2011 Survey responses'!D5:E5,\">1\")))","v":6},{"$f":"IF(('2011 Survey responses'!B5+'2011 Survey responses'!D5)<2.1,\"\",((SUMIF('2011 Survey responses'!B5,\">1\")+SUMIF('2011 Survey responses'!D5,\">1\")+SUMIF('2011 Survey responses'!F5,\">1\")+SUMIF('2011 Survey responses'!K5,\">1\"))/(COUNTIF('2011 Survey responses'!B5,\">1\")+COUNTIF('2011 Survey responses'!D5,\">1\")+COUNTIF('2011 Survey responses'!F5,\">1\")+COUNTIF('2011 Survey responses'!K5,\">1\"))))","v":5.25},{"$f":"IF(SUM('2011 Survey responses'!G5:H5)<2.1,\"\",(AVERAGEIFS('2011 Survey responses'!G5:H5,'2011 Survey responses'!G5:H5,\">1\")))","v":""},{"$f":"IF(SUM('2011 Survey responses'!F5:G5)<1.5,\"\",MAX('2011 Survey responses'!F5,'2011 Survey responses'!G5))","v":5},{"$f":"IF(SUM('2011 Survey responses'!G5:H5)<1,\"\",MAX('2011 Survey responses'!G5,'2011 Survey responses'!H5))","v":1},{"$f":"IF(SUM('2011 Survey responses'!I5:L5)<4.1,\"\",(AVERAGEIFS('2011 Survey responses'!I5:L5,'2011 Survey responses'!I5:L5,\">1\")))","v":5},{"$f":"IF(SUM('2011 Survey responses'!M5:S5)<4.1,\"\",(AVERAGEIFS('2011 Survey responses'!M5:S5,'2011 Survey responses'!M5:S5,\">1\")))","v":3},{"$f":"IF(SUM('2011 Survey responses'!T5:U5)<2.1,\"\",(AVERAGEIFS('2011 Survey responses'!T5:U5,'2011 Survey responses'!T5:U5,\">1\")))","v":5},{"$f":"IF(SUM('2011 Survey responses'!V5:AO5)<1,\"\",(AVERAGEIFS('2011 Survey responses'!V5:AO5,'2011 Survey responses'!V5:AO5,\">1\")))","v":4.1333333333333337},{"$f":"IF(SUM('2011 Survey responses'!V5:AA5)<1,\"\",(AVERAGEIFS('2011 Survey responses'!V5:AA5,'2011 Survey responses'!V5:AA5,\">1\")))","v":4.5},{"$f":"IF(SUM('2011 Survey responses'!AB5:AH5)<1,\"\",(AVERAGEIFS('2011 Survey responses'!AB5:AH5,'2011 Survey responses'!AB5:AH5,\">1\")))","v":4.5},{"$f":"IF(SUM('2011 Survey responses'!AI5:AO5)<1,\"\",(AVERAGEIFS('2011 Survey responses'!AI5:AO5,'2011 Survey responses'!AI5:AO5,\">1\")))","v":3.7142857142857144},{"$f":"IF(('2011 Survey responses'!Y5+'2011 Survey responses'!AI5+'2011 Survey responses'!AK5)<3.1,\"\",((SUMIF('2011 Survey responses'!Y5,\">1\")+SUMIF('2011 Survey responses'!AI5,\">1\")+SUMIF('2011 Survey responses'!AK5,\">1\")+SUMIF('2011 Survey responses'!AM5,\">1\"))/(COUNTIF('2011 Survey responses'!Y5,\">1\")+COUNTIF('2011 Survey responses'!AI5,\">1\")+COUNTIF('2011 Survey responses'!AK5,\">1\")+COUNTIF('2011 Survey responses'!AM5,\">1\"))))","v":4.25},{"$f":"IF(('2011 Survey responses'!W5)<1.1,\"\",('2011 Survey responses'!W5))","v":""},{"$f":"IF(('2011 Survey responses'!Y5)<1.1,\"\",('2011 Survey responses'!Y5))","v":6},{"$f":"IF(('2011 Survey responses'!Z5)<1.1,\"\",('2011 Survey responses'!Z5))","v":2},{"$f":"IF(('2011 Survey responses'!V5+'2011 Survey responses'!X5+'2011 Survey responses'!AA5)<3.1,\"\",((SUMIF('2011 Survey responses'!V5,\">1\")+SUMIF('2011 Survey responses'!X5,\">1\")+SUMIF('2011 Survey responses'!AA5,\">1\"))/(COUNTIF('2011 Survey responses'!V5,\">1\")+COUNTIF('2011 Survey responses'!X5,\">1\")+COUNTIF('2011 Survey responses'!AA5,\">1\"))))","v":5},{"$f":"IF(('2011 Survey responses'!V5+'2011 Survey responses'!Y5+'2011 Survey responses'!AA5)<3.1,\"\",((SUMIF('2011 Survey responses'!V5,\">1\")+SUMIF('2011 Survey responses'!Y5,\">1\")+SUMIF('2011 Survey responses'!AA5,\">1\"))/(COUNTIF('2011 Survey responses'!V5,\">1\")+COUNTIF('2011 Survey responses'!Y5,\">1\")+COUNTIF('2011 Survey responses'!AA5,\">1\"))))","v":5.333333333333333},{"$f":"IF(SUM('2011 Survey responses'!AB5:AH5)<1,\"\",(AVERAGEIFS('2011 Survey responses'!AB5:AH5,'2011 Survey responses'!AB5:AH5,\">1\")))","v":4.5},{"$f":"IF(SUM('2011 Survey responses'!AI5:AO5)<7.1,\"\",(AVERAGEIFS('2011 Survey responses'!AI5:AO5,'2011 Survey responses'!AI5:AO5,\">1\")))","v":3.7142857142857144},{"$f":"IF(('2011 Survey responses'!AH5)<1.1,\"\",('2011 Survey responses'!AH5))","v":2},{"$f":"IF(SUM('2011 Survey responses'!AP5:BV5)<1,\"\",(AVERAGEIFS('2011 Survey responses'!AP5:BV5,'2011 Survey responses'!AP5:BV5,\">1\")))","v":4.0625},{"$f":"IF(SUM('2011 Survey responses'!AP5:AS5)<4.1,\"\",(AVERAGEIFS('2011 Survey responses'!AP5:AS5,'2011 Survey responses'!AP5:AS5,\">1\")))","v":4.666666666666667},{"$f":"IF(SUM('2011 Survey responses'!AT5:BF5)<1,\"\",(AVERAGEIFS('2011 Survey responses'!AT5:BF5,'2011 Survey responses'!AT5:BF5,\">1\")))","v":3.9230769230769229},{"$f":"IF(SUM('2011 Survey responses'!BG5:BO5)<1,\"\",(AVERAGEIFS('2011 Survey responses'!BG5:BO5,'2011 Survey responses'!BG5:BO5,\">1\")))","v":3.7777777777777777},{"$f":"IF(SUM('2011 Survey responses'!BP5:BS5)<1,\"\",(AVERAGEIFS('2011 Survey responses'!BP5:BS5,'2011 Survey responses'!BP5:BS5,\">1\")))","v":3.25},{"$f":"IF(SUM('2011 Survey responses'!BT5:BV5)<3.1,\"\",(AVERAGEIFS('2011 Survey responses'!BT5:BV5,'2011 Survey responses'!BT5:BV5,\">1\")))","v":6},{"$f":"IF(('2011 Survey responses'!AQ5+'2011 Survey responses'!AR5+'2011 Survey responses'!BG5)<3.1,\"\",((SUMIF('2011 Survey responses'!AQ5,\">1\")+SUMIF('2011 Survey responses'!AR5,\">1\")+SUMIF('2011 Survey responses'!BG5,\">1\"))/(COUNTIF('2011 Survey responses'!AQ5,\">1\")+COUNTIF('2011 Survey responses'!AR5,\">1\")+COUNTIF('2011 Survey responses'!BG5,\">1\"))))","v":3.6666666666666665},{"$f":"IF(SUM('2011 Survey responses'!AP5:AS5)<4.1,\"\",(AVERAGEIFS('2011 Survey responses'!AP5:AS5,'2011 Survey responses'!AP5:AS5,\">1\")))","v":4.666666666666667},{"$f":"IF(('2011 Survey responses'!AU5+'2011 Survey responses'!AX5+'2011 Survey responses'!BA5+'2011 Survey responses'!BC5+'2011 Survey responses'!BD5)<5.1,\"\",(SUMIF('2011 Survey responses'!AU5,\">1\")+SUMIF('2011 Survey responses'!AX5,\">1\")+SUMIF('2011 Survey responses'!BA5,\">1\")+SUMIF('2011 Survey responses'!BC5,\">1\")+SUMIF('2011 Survey responses'!BD5,\">1\"))/(COUNTIF('2011 Survey responses'!AU5,\">1\")+COUNTIF('2011 Survey responses'!AX5,\">1\")+COUNTIF('2011 Survey responses'!BA5,\">1\")+COUNTIF('2011 Survey responses'!BC5,\">1\")+COUNTIF('2011 Survey responses'!BD5,\">1\")))","v":3.8},{"$f":"IF(('2011 Survey responses'!AT5)<1.1,\"\",('2011 Survey responses'!AT5))","v":4},{"$f":"IF(SUM('2011 Survey responses'!AV5:AW5)<2.1,\"\",(AVERAGEIFS('2011 Survey responses'!AV5:AW5,'2011 Survey responses'!AV5:AW5,\">1\")))","v":4.5},{"$f":"IF(('2011 Survey responses'!AW5+'2011 Survey responses'!AY5)<2.1,\"\",(SUMIF('2011 Survey responses'!AW5,\">1\")+SUMIF('2011 Survey responses'!AY5,\">1\"))/(COUNTIF('2011 Survey responses'!AW5,\">1\")+COUNTIF('2011 Survey responses'!AY5,\">1\")))","v":3.5},{"$f":"IF(('2011 Survey responses'!AZ5)<1.1,\"\",('2011 Survey responses'!AZ5))","v":4},4,3,4,6,{"$f":"IF(('2011 Survey responses'!BE5)<1.1,\"\",('2011 Survey responses'!BE5))","v":5},{"$f":"IF(('2011 Survey responses'!AY5+'2011 Survey responses'!BB5+'2011 Survey responses'!BF5)<3.1,\"\",(SUMIF('2011 Survey responses'!AY5,\">1\")+SUMIF('2011 Survey responses'!BB5,\">1\")+SUMIF('2011 Survey responses'!BF5,\">1\"))/(COUNTIF('2011 Survey responses'!AY5,\">1\")+COUNTIF('2011 Survey responses'!BB5,\">1\")+COUNTIF('2011 Survey responses'!BF5,\">1\")))","v":3.3333333333333335},3.5138888888888888,{"$f":"IF(SUM('2011 Survey responses'!BT5:BV5)<3.1,\"\",(AVERAGEIFS('2011 Survey responses'!BT5:BV5,'2011 Survey responses'!BT5:BV5,\">1\")))","v":6},{"$f":"IF(SUM('2011 Survey responses'!BW5:CP5)<1,\"\",(AVERAGEIFS('2011 Survey responses'!BW5:CP5,'2011 Survey responses'!BW5:CP5,\">1\")))","v":4.2777777777777777},{"$f":"IF(SUM('2011 Survey responses'!BW5:CF5)<1,\"\",(AVERAGEIFS('2011 Survey responses'!BW5:CF5,'2011 Survey responses'!BW5:CF5,\">1\")))","v":4.5555555555555554},{"$f":"IF(SUM('2011 Survey responses'!CG5:CP5)<1,\"\",(AVERAGEIFS('2011 Survey responses'!CG5:CP5,'2011 Survey responses'!CG5:CP5,\">1\")))","v":4},{"$f":"IF(SUM('2011 Survey responses'!BX5:CF5)<1,\"\",(AVERAGEIFS('2011 Survey responses'!BX5:CF5,'2011 Survey responses'!BX5:CF5,\">1\")))","v":4.5},{"$f":"IF(SUM('2011 Survey responses'!CH5:CP5)<1,\"\",(AVERAGEIFS('2011 Survey responses'!CH5:CP5,'2011 Survey responses'!CH5:CP5,\">1\")))","v":4},{"$f":"IF(SUM('2011 Survey responses'!BW5:CP5)<1,\"\",(AVERAGEIFS('2011 Survey responses'!BW5:CP5,'2011 Survey responses'!BW5:CP5,\">1\")))","v":4.2777777777777777},{"$f":"IF(('2011 Survey responses'!BW5+'2011 Survey responses'!CG5)<2.1,\"\",(SUMIF('2011 Survey responses'!BW5,\">1\")+SUMIF('2011 Survey responses'!CG5,\">1\"))/(COUNTIF('2011 Survey responses'!BW5,\">1\")+COUNTIF('2011 Survey responses'!CG5,\">1\")))","v":4.5},{"$f":"IF(('2011 Survey responses'!BX5+'2011 Survey responses'!CH5)<2.1,\"\",(SUMIF('2011 Survey responses'!BX5,\">1\")+SUMIF('2011 Survey responses'!CH5,\">1\"))/(COUNTIF('2011 Survey responses'!BX5,\">1\")+COUNTIF('2011 Survey responses'!CH5,\">1\")))","v":4.5},{"$f":"IF(('2011 Survey responses'!BY5+'2011 Survey responses'!CI5)<2.1,\"\",(SUMIF('2011 Survey responses'!BY5,\">1\")+SUMIF('2011 Survey responses'!CI5,\">1\"))/(COUNTIF('2011 Survey responses'!BY5,\">1\")+COUNTIF('2011 Survey responses'!CI5,\">1\")))","v":""},{"$f":"IF('2011 Survey responses'!CQ5<0.5,\"\",'2011 Survey responses'!CQ5)","v":4},{"$f":"IF('2011 Survey responses'!CR5<0.5,\"\",'2011 Survey responses'!CR5)","v":2},{"$f":"IF('2011 Survey responses'!CS5<0.5,\"\",'2011 Survey responses'!CS5)","v":3},{"$f":"IF('2011 Survey responses'!CT5<0.5,\"\",'2011 Survey responses'!CT5)","v":2},{"$f":"IF('2011 Survey responses'!CU5<0.5,\"\",'2011 Survey responses'!CU5)","v":5},{"$f":"IF('2011 Survey responses'!CV5<0.5,\"\",'2011 Survey responses'!CV5)","v":1},{"$f":"IF(SUM('2011 Survey responses'!CW5:DL5)<1,\"\",(AVERAGE('2011 Survey responses'!CW5:DL5)))","v":3.75},{"$f":"IF(SUM('2011 Survey responses'!CW5:CZ5)<1,\"\",(AVERAGE('2011 Survey responses'!CW5:CZ5)))","v":3.75},{"$f":"IF(SUM('2011 Survey responses'!DA5:DD5)<1,\"\",(AVERAGE('2011 Survey responses'!DA5:DD5)))","v":4.25},{"$f":"IF(SUM('2011 Survey responses'!DE5:DH5)<1,\"\",(AVERAGE('2011 Survey responses'!DE5:DH5)))","v":3.25},{"$f":"IF(SUM('2011 Survey responses'!DI5:DL5)<1,\"\",(AVERAGE('2011 Survey responses'!DI5:DL5)))","v":3.75},{"$f":"IF(('2011 Survey responses'!CW5+'2011 Survey responses'!DA5+'2011 Survey responses'!DE5+'2011 Survey responses'!DI5)<1,\"\",AVERAGE('2011 Survey responses'!CW5,'2011 Survey responses'!DA5,'2011 Survey responses'!DE5,'2011 Survey responses'!DI5))","v":4},{"$f":"IF(('2011 Survey responses'!CX5+'2011 Survey responses'!DB5+'2011 Survey responses'!DF5+'2011 Survey responses'!DJ5)<1,\"\",AVERAGE('2011 Survey responses'!CX5,'2011 Survey responses'!DB5,'2011 Survey responses'!DF5,'2011 Survey responses'!DJ5))","v":3.75},{"$f":"IF(('2011 Survey responses'!CY5+'2011 Survey responses'!DC5+'2011 Survey responses'!DG5+'2011 Survey responses'!DK5)<1,\"\",AVERAGE('2011 Survey responses'!CY5,'2011 Survey responses'!DC5,'2011 Survey responses'!DG5,'2011 Survey responses'!DK5))","v":3.25},{"$f":"IF(('2011 Survey responses'!CZ5+'2011 Survey responses'!DD5+'2011 Survey responses'!DH5+'2011 Survey responses'!DL5)<1,\"\",AVERAGE('2011 Survey responses'!CZ5,'2011 Survey responses'!DD5,'2011 Survey responses'!DH5,'2011 Survey responses'!DL5))","v":4},{"$f":"IF('2011 Survey responses'!CW5<0.5,\"\",'2011 Survey responses'!CW5)","v":4},{"$f":"IF('2011 Survey responses'!CX5<0.5,\"\",'2011 Survey responses'!CX5)","v":4},{"$f":"IF('2011 Survey responses'!CY5<0.5,\"\",'2011 Survey responses'!CY5)","v":3},{"$f":"IF('2011 Survey responses'!CZ5<0.5,\"\",'2011 Survey responses'!CZ5)","v":4},{"$f":"IF('2011 Survey responses'!DA5<0.5,\"\",'2011 Survey responses'!DA5)","v":5},{"$f":"IF('2011 Survey responses'!DB5<0.5,\"\",'2011 Survey responses'!DB5)","v":4},{"$f":"IF('2011 Survey responses'!DC5<0.5,\"\",'2011 Survey responses'!DC5)","v":4},{"$f":"IF('2011 Survey responses'!DD5<0.5,\"\",'2011 Survey responses'!DD5)","v":4},{"$f":"IF('2011 Survey responses'!DE5<0.5,\"\",'2011 Survey responses'!DE5)","v":3},{"$f":"IF('2011 Survey responses'!DF5<0.5,\"\",'2011 Survey responses'!DF5)","v":3},{"$f":"IF('2011 Survey responses'!DG5<0.5,\"\",'2011 Survey responses'!DG5)","v":3},{"$f":"IF('2011 Survey responses'!DH5<0.5,\"\",'2011 Survey responses'!DH5)","v":4},{"$f":"IF('2011 Survey responses'!DI5<0.5,\"\",'2011 Survey responses'!DI5)","v":4},{"$f":"IF('2011 Survey responses'!DJ5<0.5,\"\",'2011 Survey responses'!DJ5)","v":4},{"$f":"IF('2011 Survey responses'!DK5<0.5,\"\",'2011 Survey responses'!DK5)","v":3},{"$f":"IF('2011 Survey responses'!DL5<0.5,\"\",'2011 Survey responses'!DL5)","v":4},{"$f":"IF('2011 Survey responses'!DU5=4,4,IF('2011 Survey responses'!DU5=5,4,\"\"))","v":4},{"$f":"IF('2011 Survey responses'!DV5=4,3,IF('2011 Survey responses'!DV5=5,3,\"\"))","v":3},2,{"$f":"IF(CQ5=2,CQ5,IF(CO5=4,CO5,IF(CP5=3,CP5,IF('2011 Survey responses'!GT5=1,1,\"\"))))","v":2},{"$f":"IF('2011 Survey responses'!DO5<0.5,\"\",'2011 Survey responses'!DO5)","v":""},{"$f":"IF('2011 Survey responses'!DP5<0.5,\"\",'2011 Survey responses'!DP5)","v":4},{"$f":"IF('2011 Survey responses'!DQ5<0.5,\"\",'2011 Survey responses'!DQ5)","v":4},{"$f":"IF('2011 Survey responses'!DR5<0.5,\"\",'2011 Survey responses'!DR5)","v":3},{"$f":"IF('2011 Survey responses'!DS5<0.5,\"\",'2011 Survey responses'!DS5)","v":""},{"$f":"IF('2011 Survey responses'!DT5<0.5,\"\",'2011 Survey responses'!DT5)","v":5},{"$f":"IF('2011 Survey responses'!DU5<0.5,\"\",'2011 Survey responses'!DU5)","v":5},{"$f":"IF('2011 Survey responses'!DV5<0.5,\"\",'2011 Survey responses'!DV5)","v":5},{"$f":"IF('2011 Survey responses'!DW5<0.5,\"\",'2011 Survey responses'!DW5)","v":5},{"$f":"IF('2011 Survey responses'!DX5<0.5,\"\",'2011 Survey responses'!DX5)","v":5},{"$f":"IF('2011 Survey responses'!DY5<0.5,\"\",'2011 Survey responses'!DY5)","v":5},{"$f":"IF('2011 Survey responses'!DZ5<0.5,\"\",'2011 Survey responses'!DZ5)","v":5},{"$f":"IF('2011 Survey responses'!EA5<0.5,\"\",'2011 Survey responses'!EA5)","v":""},{"$f":"IF('2011 Survey responses'!EB5<0.5,\"\",'2011 Survey responses'!EB5)","v":5},{"$f":"IF('2011 Survey responses'!EC5<0.5,\"\",'2011 Survey responses'!EC5)","v":5},{"$f":"IF('2011 Survey responses'!ED5<0.5,\"\",'2011 Survey responses'!ED5)","v":4},{"$f":"IF('2011 Survey responses'!EE5<0.5,\"\",'2011 Survey responses'!EE5)","v":3},{"$f":"IF('2011 Survey responses'!EF5<0.5,\"\",'2011 Survey responses'!EF5)","v":5},{"$f":"IF('2011 Survey responses'!EG5<0.5,\"\",'2011 Survey responses'!EG5)","v":4},{"$f":"IF('2011 Survey responses'!EH5<0.5,\"\",'2011 Survey responses'!EH5)","v":5},{"$f":"IF('2011 Survey responses'!EI5<0.5,\"\",'2011 Survey responses'!EI5)","v":1},{"$f":"IF('2011 Survey responses'!EJ5<0.5,\"\",'2011 Survey responses'!EJ5)","v":1},{"$f":"IF('2011 Survey responses'!EK5<0.5,\"\",'2011 Survey responses'!EK5)","v":2},{"$f":"IF('2011 Survey responses'!EL5<0.5,\"\",'2011 Survey responses'!EL5)","v":1},{"$f":"IF('2011 Survey responses'!EM5<0.5,\"\",'2011 Survey responses'!EM5)","v":4},{"$f":"IF('2011 Survey responses'!EN5<0.5,\"\",'2011 Survey responses'!EN5)","v":4},{"$f":"IF('2011 Survey responses'!EO5<0.5,\"\",'2011 Survey responses'!EO5)","v":1},{"$f":"IF('2011 Survey responses'!EP5<0.5,\"\",'2011 Survey responses'!EP5)","v":1},{"$f":"IF(('2011 Survey responses'!EW5+'2011 Survey responses'!EX5)>=2,AVERAGE('2011 Survey responses'!EW5,'2011 Survey responses'!EY5),\"\")","v":2.5},{"$f":"IF('2011 Survey responses'!EX5<0.5,\"\",'2011 Survey responses'!EX5)","v":1},{"$f":"IF('2011 Survey responses'!EZ5<0.5,\"\",'2011 Survey responses'!EZ5)","v":5},{"$f":"IF('2011 Survey responses'!FB5<0.5,\"\",'2011 Survey responses'!FB5)","v":4},{"$f":"IF('2011 Survey responses'!FD5<0.5,\"\",'2011 Survey responses'!FD5)","v":4},{"$f":"IF('2011 Survey responses'!FC5<0.5,\"\",'2011 Survey responses'!FC5)","v":4},{"$f":"IF(('2011 Survey responses'!EM5+'2011 Survey responses'!EN5)>=2,AVERAGE('2011 Survey responses'!EM5,'2011 Survey responses'!EN5),\"\")","v":4},{"$f":"IF('2011 Survey responses'!ES5<0.5,\"\",'2011 Survey responses'!ES5)","v":1},{"$f":"IF(('2011 Survey responses'!ET5+'2011 Survey responses'!EU5)>=2,AVERAGE('2011 Survey responses'!ET5,'2011 Survey responses'!EU5),\"\")","v":4},{"$f":"IF('2011 Survey responses'!EV5<0.5,\"\",'2011 Survey responses'!EV5)","v":1},{"$f":"IF('2011 Survey responses'!FA5<0.5,\"\",'2011 Survey responses'!FA5)","v":1},{"$f":"IF('2011 Survey responses'!ER5<0.5,\"\",'2011 Survey responses'!ER5)","v":""},{"$f":"IF(('2011 Survey responses'!EO5+'2011 Survey responses'!EP5)>=2,AVERAGE('2011 Survey responses'!EO5,'2011 Survey responses'!EP5),\"\")","v":1},{"$f":"IF('2011 Survey responses'!EQ5<0.5,\"\",'2011 Survey responses'!EQ5)","v":1},{"$f":"IF('2011 Survey responses'!ET5<0.5,\"\",'2011 Survey responses'!ET5)","v":4},{"$f":"IF('2011 Survey responses'!EU5<0.5,\"\",'2011 Survey responses'!EU5)","v":4},{"$f":"IF('2011 Survey responses'!EW5<0.5,\"\",'2011 Survey responses'!EW5)","v":4},{"$f":"IF('2011 Survey responses'!EY5<0.5,\"\",'2011 Survey responses'!EY5)","v":1},{"$f":"IF('2011 Survey responses'!FU5<0.5,\"\",'2011 Survey responses'!FU5)","v":2},{"$f":"IF(('2011 Survey responses'!FL5+'2011 Survey responses'!FM5)>=2,AVERAGE('2011 Survey responses'!FL5,'2011 Survey responses'!FM5),\"\")","v":3},{"$f":"IF(('2011 Survey responses'!FO5+'2011 Survey responses'!FQ5)>=2,AVERAGE('2011 Survey responses'!FO5,'2011 Survey responses'!FQ5),\"\")","v":1},{"$f":"IF('2011 Survey responses'!FJ5<0.5,\"\",'2011 Survey responses'!FJ5)","v":3},{"$f":"IF('2011 Survey responses'!FT5<0.5,\"\",'2011 Survey responses'!FT5)","v":1},{"$f":"IF('2011 Survey responses'!FR5<0.5,\"\",'2011 Survey responses'!FR5)","v":1},{"$f":"IF('2011 Survey responses'!FK5<0.5,\"\",'2011 Survey responses'!FK5)","v":3},{"$f":"IF('2011 Survey responses'!FP5<0.5,\"\",'2011 Survey responses'!FP5)","v":1},{"$f":"IF('2011 Survey responses'!FN5<0.5,\"\",'2011 Survey responses'!FN5)","v":1},{"$f":"IF(('2011 Survey responses'!FE5+'2011 Survey responses'!FF5)>=2,AVERAGE('2011 Survey responses'!FE5,'2011 Survey responses'!FF5),\"\")","v":1},{"$f":"IF('2011 Survey responses'!FS5<0.5,\"\",'2011 Survey responses'!FS5)","v":3},{"$f":"IF('2011 Survey responses'!FV5<0.5,\"\",'2011 Survey responses'!FV5)","v":2},{"$f":"IF(('2011 Survey responses'!FG5+'2011 Survey responses'!FH5)>=2,AVERAGE('2011 Survey responses'!FG5,'2011 Survey responses'!FH5),\"\")","v":3},{"$f":"IF('2011 Survey responses'!FI5<0.5,\"\",'2011 Survey responses'!FI5)","v":3},{"$f":"IF('2011 Survey responses'!FE5<0.5,\"\",'2011 Survey responses'!FE5)","v":1},{"$f":"IF('2011 Survey responses'!FF5<0.5,\"\",'2011 Survey responses'!FF5)","v":1},{"$f":"IF('2011 Survey responses'!FG5<0.5,\"\",'2011 Survey responses'!FG5)","v":3},{"$f":"IF('2011 Survey responses'!FH5<0.5,\"\",'2011 Survey responses'!FH5)","v":3},{"$f":"IF('2011 Survey responses'!FL5<0.5,\"\",'2011 Survey responses'!FL5)","v":3},{"$f":"IF('2011 Survey responses'!FM5<0.5,\"\",'2011 Survey responses'!FM5)","v":3},{"$f":"IF('2011 Survey responses'!FO5<0.5,\"\",'2011 Survey responses'!FO5)","v":1},{"$f":"IF('2011 Survey responses'!FQ5<0.5,\"\",'2011 Survey responses'!FQ5)","v":1}]
["Andorra",{"$f":"IF(SUM(F6)<1,\"\",AVERAGEIF('2011 Survey responses'!B6:CP6,\">1\"))","v":4.5949367088607591},{"$f":"IF(SUM(F6)<1,\"\",AVERAGEIF('2011 Survey responses'!B6:AO6,\">1\"))","v":4.3030303030303028},{"$f":"IF(SUM(F6)<1,\"\",AVERAGEIF('2011 Survey responses'!B6:BV6,\">1\"))","v":4.46875},{"$f":"IF(SUM(F6)<1,\"\",AVERAGEIF('2011 Survey responses'!V6:BV6,\">1\"))","v":4.5510204081632653},{"$f":"IF(SUM('2011 Survey responses'!B6:U6)<1,\"\",(AVERAGEIFS('2011 Survey responses'!B6:U6,'2011 Survey responses'!B6:U6,\">1\")))","v":4.2},{"$f":"IF(SUM('2011 Survey responses'!B6:H6)<1,\"\",(AVERAGEIFS('2011 Survey responses'!B6:H6,'2011 Survey responses'!B6:H6,\">1\")))","v":4.333333333333333},{"$f":"IF(SUM('2011 Survey responses'!I6:S6)<1,\"\",(AVERAGEIFS('2011 Survey responses'!I6:S6,'2011 Survey responses'!I6:S6,\">1\")))","v":3.8571428571428572},{"$f":"IF(SUM('2011 Survey responses'!T6:U6)<2.1,\"\",(AVERAGEIFS('2011 Survey responses'!T6:U6,'2011 Survey responses'!T6:U6,\">1\")))","v":5},{"$f":"IF(SUM('2011 Survey responses'!B6:C6)<2.1,\"\",((SUMIF('2011 Survey responses'!B6:C6,\">1\")+SUMIF('2011 Survey responses'!F6,\">1\"))/(COUNTIF('2011 Survey responses'!B6:C6,\">1\")+COUNTIF('2011 Survey responses'!F6,\">1\"))))","v":5},{"$f":"IF(SUM('2011 Survey responses'!D6:E6)<2.1,\"\",(AVERAGEIFS('2011 Survey responses'!D6:E6,'2011 Survey responses'!D6:E6,\">1\")))","v":5},{"$f":"IF(('2011 Survey responses'!B6+'2011 Survey responses'!D6)<2.1,\"\",((SUMIF('2011 Survey responses'!B6,\">1\")+SUMIF('2011 Survey responses'!D6,\">1\")+SUMIF('2011 Survey responses'!F6,\">1\")+SUMIF('2011 Survey responses'!K6,\">1\"))/(COUNTIF('2011 Survey responses'!B6,\">1\")+COUNTIF('2011 Survey responses'!D6,\">1\")+COUNTIF('2011 Survey responses'!F6,\">1\")+COUNTIF('2011 Survey responses'!K6,\">1\"))))","v":4.5},{"$f":"IF(SUM('2011 Survey responses'!G6:H6)<2.1,\"\",(AVERAGEIFS('2011 Survey responses'!G6:H6,'2011 Survey responses'!G6:H6,\">1\")))","v":3},{"$f":"IF(SUM('2011 Survey responses'!F6:G6)<1.5,\"\",MAX('2011 Survey responses'!F6,'2011 Survey responses'!G6))","v":5},{"$f":"IF(SUM('2011 Survey responses'!G6:H6)<1,\"\",MAX('2011 Survey responses'!G6,'2011 Survey responses'!H6))","v":3},{"$f":"IF(SUM('2011 Survey responses'!I6:L6)<4.1,\"\",(AVERAGEIFS('2011 Survey responses'!I6:L6,'2011 Survey responses'!I6:L6,\">1\")))","v":4},{"$f":"IF(SUM('2011 Survey responses'!M6:S6)<4.1,\"\",(AVERAGEIFS('2011 Survey responses'!M6:S6,'2011 Survey responses'!M6:S6,\">1\")))","v":3.8},{"$f":"IF(SUM('2011 Survey responses'!T6:U6)<2.1,\"\",(AVERAGEIFS('2011 Survey responses'!T6:U6,'2011 Survey responses'!T6:U6,\">1\")))","v":5},{"$f":"IF(SUM('2011 Survey responses'!V6:AO6)<1,\"\",(AVERAGEIFS('2011 Survey responses'!V6:AO6,'2011 Survey responses'!V6:AO6,\">1\")))","v":4.3888888888888893},{"$f":"IF(SUM('2011 Survey responses'!V6:AA6)<1,\"\",(AVERAGEIFS('2011 Survey responses'!V6:AA6,'2011 Survey responses'!V6:AA6,\">1\")))","v":4.5},{"$f":"IF(SUM('2011 Survey responses'!AB6:AH6)<1,\"\",(AVERAGEIFS('2011 Survey responses'!AB6:AH6,'2011 Survey responses'!AB6:AH6,\">1\")))","v":4.1428571428571432},{"$f":"IF(SUM('2011 Survey responses'!AI6:AO6)<1,\"\",(AVERAGEIFS('2011 Survey responses'!AI6:AO6,'2011 Survey responses'!AI6:AO6,\">1\")))","v":4.5999999999999996},{"$f":"IF(('2011 Survey responses'!Y6+'2011 Survey responses'!AI6+'2011 Survey responses'!AK6)<3.1,\"\",((SUMIF('2011 Survey responses'!Y6,\">1\")+SUMIF('2011 Survey responses'!AI6,\">1\")+SUMIF('2011 Survey responses'!AK6,\">1\")+SUMIF('2011 Survey responses'!AM6,\">1\"))/(COUNTIF('2011 Survey responses'!Y6,\">1\")+COUNTIF('2011 Survey responses'!AI6,\">1\")+COUNTIF('2011 Survey responses'!AK6,\">1\")+COUNTIF('2011 Survey responses'!AM6,\">1\"))))","v":5},{"$f":"IF(('2011 Survey responses'!W6)<1.1,\"\",('2011 Survey responses'!W6))","v":4},{"$f":"IF(('2011 Survey responses'!Y6)<1.1,\"\",('2011 Survey responses'!Y6))","v":4},{"$f":"IF(('2011 Survey responses'!Z6)<1.1,\"\",('2011 Survey responses'!Z6))","v":5},{"$f":"IF(('2011 Survey responses'!V6+'2011 Survey responses'!X6+'2011 Survey responses'!AA6)<3.1,\"\",((SUMIF('2011 Survey responses'!V6,\">1\")+SUMIF('2011 Survey responses'!X6,\">1\")+SUMIF('2011 Survey responses'!AA6,\">1\"))/(COUNTIF('2011 Survey responses'!V6,\">1\")+COUNTIF('2011 Survey responses'!X6,\">1\")+COUNTIF('2011 Survey responses'!AA6,\">1\"))))","v":4.666666666666667},{"$f":"IF(('2011 Survey responses'!V6+'2011 Survey responses'!Y6+'2011 Survey responses'!AA6)<3.1,\"\",((SUMIF('2011 Survey responses'!V6,\">1\")+SUMIF('2011 Survey responses'!Y6,\">1\")+SUMIF('2011 Survey responses'!AA6,\">1\"))/(COUNTIF('2011 Survey responses'!V6,\">1\")+COUNTIF('2011 Survey responses'!Y6,\">1\")+COUNTIF('2011 Survey responses'!AA6,\">1\"))))","v":4.666666666666667},{"$f":"IF(SUM('2011 Survey responses'!AB6:AH6)<1,\"\",(AVERAGEIFS('2011 Survey responses'!AB6:AH6,'2011 Survey responses'!AB6:AH6,\">1\")))","v":4.1428571428571432},{"$f":"IF(SUM('2011 Survey responses'!AI6:AO6)<7.1,\"\",(AVERAGEIFS('2011 Survey responses'!AI6:AO6,'2011 Survey responses'!AI6:AO6,\">1\")))","v":4.5999999999999996},{"$f":"IF(('2011 Survey responses'!AH6)<1.1,\"\",('2011 Survey responses'!AH6))","v":5},{"$f":"IF(SUM('2011 Survey responses'!AP6:BV6)<1,\"\",(AVERAGEIFS('2011 Survey responses'!AP6:BV6,'2011 Survey responses'!AP6:BV6,\">1\")))","v":4.645161290322581},{"$f":"IF(SUM('2011 Survey responses'!AP6:AS6)<4.1,\"\",(AVERAGEIFS('2011 Survey responses'!AP6:AS6,'2011 Survey responses'!AP6:AS6,\">1\")))","v":4.75},{"$f":"IF(SUM('2011 Survey responses'!AT6:BF6)<1,\"\",(AVERAGEIFS('2011 Survey responses'!AT6:BF6,'2011 Survey responses'!AT6:BF6,\">1\")))","v":4.333333333333333},{"$f":"IF(SUM('2011 Survey responses'!BG6:BO6)<1,\"\",(AVERAGEIFS('2011 Survey responses'!BG6:BO6,'2011 Survey responses'!BG6:BO6,\">1\")))","v":5},{"$f":"IF(SUM('2011 Survey responses'!BP6:BS6)<1,\"\",(AVERAGEIFS('2011 Survey responses'!BP6:BS6,'2011 Survey responses'!BP6:BS6,\">1\")))","v":4.75},{"$f":"IF(SUM('2011 Survey responses'!BT6:BV6)<3.1,\"\",(AVERAGEIFS('2011 Survey responses'!BT6:BV6,'2011 Survey responses'!BT6:BV6,\">1\")))","v":4.5},{"$f":"IF(('2011 Survey responses'!AQ6+'2011 Survey responses'!AR6+'2011 Survey responses'!BG6)<3.1,\"\",((SUMIF('2011 Survey responses'!AQ6,\">1\")+SUMIF('2011 Survey responses'!AR6,\">1\")+SUMIF('2011 Survey responses'!BG6,\">1\"))/(COUNTIF('2011 Survey responses'!AQ6,\">1\")+COUNTIF('2011 Survey responses'!AR6,\">1\")+COUNTIF('2011 Survey responses'!BG6,\">1\"))))","v":5},{"$f":"IF(SUM('2011 Survey responses'!AP6:AS6)<4.1,\"\",(AVERAGEIFS('2011 Survey responses'!AP6:AS6,'2011 Survey responses'!AP6:AS6,\">1\")))","v":4.75},{"$f":"IF(('2011 Survey responses'!AU6+'2011 Survey responses'!AX6+'2011 Survey responses'!BA6+'2011 Survey responses'!BC6+'2011 Survey responses'!BD6)<5.1,\"\",(SUMIF('2011 Survey responses'!AU6,\">1\")+SUMIF('2011 Survey responses'!AX6,\">1\")+SUMIF('2011 Survey responses'!BA6,\">1\")+SUMIF('2011 Survey responses'!BC6,\">1\")+SUMIF('2011 Survey responses'!BD6,\">1\"))/(COUNTIF('2011 Survey responses'!AU6,\">1\")+COUNTIF('2011 Survey responses'!AX6,\">1\")+COUNTIF('2011 Survey responses'!BA6,\">1\")+COUNTIF('2011 Survey responses'!BC6,\">1\")+COUNTIF('2011 Survey responses'!BD6,\">1\")))","v":4.4000000000000004},{"$f":"IF(('2011 Survey responses'!AT6)<1.1,\"\",('2011 Survey responses'!AT6))","v":5},{"$f":"IF(SUM('2011 Survey responses'!AV6:AW6)<2.1,\"\",(AVERAGEIFS('2011 Survey responses'!AV6:AW6,'2011 Survey responses'!AV6:AW6,\">1\")))","v":5},{"$f":"IF(('2011 Survey responses'!AW6+'2011 Survey responses'!AY6)<2.1,\"\",(SUMIF('2011 Survey responses'!AW6,\">1\")+SUMIF('2011 Survey responses'!AY6,\">1\"))/(COUNTIF('2011 Survey responses'!AW6,\">1\")+COUNTIF('2011 Survey responses'!AY6,\">1\")))","v":4},{"$f":"IF(('2011 Survey responses'!AZ6)<1.1,\"\",('2011 Survey responses'!AZ6))","v":4},4,4,4,1,{"$f":"IF(('2011 Survey responses'!BE6)<1.1,\"\",('2011 Survey responses'!BE6))","v":5},{"$f":"IF(('2011 Survey responses'!AY6+'2011 Survey responses'!BB6+'2011 Survey responses'!BF6)<3.1,\"\",(SUMIF('2011 Survey responses'!AY6,\">1\")+SUMIF('2011 Survey responses'!BB6,\">1\")+SUMIF('2011 Survey responses'!BF6,\">1\"))/(COUNTIF('2011 Survey responses'!AY6,\">1\")+COUNTIF('2011 Survey responses'!BB6,\">1\")+COUNTIF('2011 Survey responses'!BF6,\">1\")))","v":3.6666666666666665},4.875,{"$f":"IF(SUM('2011 Survey responses'!BT6:BV6)<3.1,\"\",(AVERAGEIFS('2011 Survey responses'!BT6:BV6,'2011 Survey responses'!BT6:BV6,\">1\")))","v":4.5},{"$f":"IF(SUM('2011 Survey responses'!BW6:CP6)<1,\"\",(AVERAGEIFS('2011 Survey responses'!BW6:CP6,'2011 Survey responses'!BW6:CP6,\">1\")))","v":5.1333333333333337},{"$f":"IF(SUM('2011 Survey responses'!BW6:CF6)<1,\"\",(AVERAGEIFS('2011 Survey responses'!BW6:CF6,'2011 Survey responses'!BW6:CF6,\">1\")))","v":5},{"$f":"IF(SUM('2011 Survey responses'!CG6:CP6)<1,\"\",(AVERAGEIFS('2011 Survey responses'!CG6:CP6,'2011 Survey responses'!CG6:CP6,\">1\")))","v":5.2857142857142856},{"$f":"IF(SUM('2011 Survey responses'!BX6:CF6)<1,\"\",(AVERAGEIFS('2011 Survey responses'!BX6:CF6,'2011 Survey responses'!BX6:CF6,\">1\")))","v":5},{"$f":"IF(SUM('2011 Survey responses'!CH6:CP6)<1,\"\",(AVERAGEIFS('2011 Survey responses'!CH6:CP6,'2011 Survey responses'!CH6:CP6,\">1\")))","v":5.333333333333333},{"$f":"IF(SUM('2011 Survey responses'!BW6:CP6)<1,\"\",(AVERAGEIFS('2011 Survey responses'!BW6:CP6,'2011 Survey responses'!BW6:CP6,\">1\")))","v":5.1333333333333337},{"$f":"IF(('2011 Survey responses'!BW6+'2011 Survey responses'!CG6)<2.1,\"\",(SUMIF('2011 Survey responses'!BW6,\">1\")+SUMIF('2011 Survey responses'!CG6,\">1\"))/(COUNTIF('2011 Survey responses'!BW6,\">1\")+COUNTIF('2011 Survey responses'!CG6,\">1\")))","v":5},{"$f":"IF(('2011 Survey responses'!BX6+'2011 Survey responses'!CH6)<2.1,\"\",(SUMIF('2011 Survey responses'!BX6,\">1\")+SUMIF('2011 Survey responses'!CH6,\">1\"))/(COUNTIF('2011 Survey responses'!BX6,\">1\")+COUNTIF('2011 Survey responses'!CH6,\">1\")))","v":""},{"$f":"IF(('2011 Survey responses'!BY6+'2011 Survey responses'!CI6)<2.1,\"\",(SUMIF('2011 Survey responses'!BY6,\">1\")+SUMIF('2011 Survey responses'!CI6,\">1\"))/(COUNTIF('2011 Survey responses'!BY6,\">1\")+COUNTIF('2011 Survey responses'!CI6,\">1\")))","v":6},{"$f":"IF('2011 Survey responses'!CQ6<0.5,\"\",'2011 Survey responses'!CQ6)","v":4},{"$f":"IF('2011 Survey responses'!CR6<0.5,\"\",'2011 Survey responses'!CR6)","v":2},{"$f":"IF('2011 Survey responses'!CS6<0.5,\"\",'2011 Survey responses'!CS6)","v":2},{"$f":"IF('2011 Survey responses'!CT6<0.5,\"\",'2011 Survey responses'!CT6)","v":4},{"$f":"IF('2011 Survey responses'!CU6<0.5,\"\",'2011 Survey responses'!CU6)","v":4},{"$f":"IF('2011 Survey responses'!CV6<0.5,\"\",'2011 Survey responses'!CV6)","v":4},{"$f":"IF(SUM('2011 Survey responses'!CW6:DL6)<1,\"\",(AVERAGE('2011 Survey responses'!CW6:DL6)))","v":4.125},{"$f":"IF(SUM('2011 Survey responses'!CW6:CZ6)<1,\"\",(AVERAGE('2011 Survey responses'!CW6:CZ6)))","v":4.25},{"$f":"IF(SUM('2011 Survey responses'!DA6:DD6)<1,\"\",(AVERAGE('2011 Survey responses'!DA6:DD6)))","v":3.5},{"$f":"IF(SUM('2011 Survey responses'!DE6:DH6)<1,\"\",(AVERAGE('2011 Survey responses'!DE6:DH6)))","v":4},{"$f":"IF(SUM('2011 Survey responses'!DI6:DL6)<1,\"\",(AVERAGE('2011 Survey responses'!DI6:DL6)))","v":4.75},{"$f":"IF(('2011 Survey responses'!CW6+'2011 Survey responses'!DA6+'2011 Survey responses'!DE6+'2011 Survey responses'!DI6)<1,\"\",AVERAGE('2011 Survey responses'!CW6,'2011 Survey responses'!DA6,'2011 Survey responses'!DE6,'2011 Survey responses'!DI6))","v":3.25},{"$f":"IF(('2011 Survey responses'!CX6+'2011 Survey responses'!DB6+'2011 Survey responses'!DF6+'2011 Survey responses'!DJ6)<1,\"\",AVERAGE('2011 Survey responses'!CX6,'2011 Survey responses'!DB6,'2011 Survey responses'!DF6,'2011 Survey responses'!DJ6))","v":4.5},{"$f":"IF(('2011 Survey responses'!CY6+'2011 Survey responses'!DC6+'2011 Survey responses'!DG6+'2011 Survey responses'!DK6)<1,\"\",AVERAGE('2011 Survey responses'!CY6,'2011 Survey responses'!DC6,'2011 Survey responses'!DG6,'2011 Survey responses'!DK6))","v":5},{"$f":"IF(('2011 Survey responses'!CZ6+'2011 Survey responses'!DD6+'2011 Survey responses'!DH6+'2011 Survey responses'!DL6)<1,\"\",AVERAGE('2011 Survey responses'!CZ6,'2011 Survey responses'!DD6,'2011 Survey responses'!DH6,'2011 Survey responses'!DL6))","v":3.75},{"$f":"IF('2011 Survey responses'!CW6<0.5,\"\",'2011 Survey responses'!CW6)","v":3},{"$f":"IF('2011 Survey responses'!CX6<0.5,\"\",'2011 Survey responses'!CX6)","v":5},{"$f":"IF('2011 Survey responses'!CY6<0.5,\"\",'2011 Survey responses'!CY6)","v":5},{"$f":"IF('2011 Survey responses'!CZ6<0.5,\"\",'2011 Survey responses'!CZ6)","v":4},{"$f":"IF('2011 Survey responses'!DA6<0.5,\"\",'2011 Survey responses'!DA6)","v":3},{"$f":"IF('2011 Survey responses'!DB6<0.5,\"\",'2011 Survey responses'!DB6)","v":4},{"$f":"IF('2011 Survey responses'!DC6<0.5,\"\",'2011 Survey responses'!DC6)","v":5},{"$f":"IF('2011 Survey responses'!DD6<0.5,\"\",'2011 Survey responses'!DD6)","v":2},{"$f":"IF('2011 Survey responses'!DE6<0.5,\"\",'2011 Survey responses'!DE6)","v":3},{"$f":"IF('2011 Survey responses'!DF6<0.5,\"\",'2011 Survey responses'!DF6)","v":4},{"$f":"IF('2011 Survey responses'!DG6<0.5,\"\",'2011 Survey responses'!DG6)","v":5},{"$f":"IF('2011 Survey responses'!DH6<0.5,\"\",'2011 Survey responses'!DH6)","v":4},{"$f":"IF('2011 Survey responses'!DI6<0.5,\"\",'2011 Survey responses'!DI6)","v":4},{"$f":"IF('2011 Survey responses'!DJ6<0.5,\"\",'2011 Survey responses'!DJ6)","v":5},{"$f":"IF('2011 Survey responses'!DK6<0.5,\"\",'2011 Survey responses'!DK6)","v":5},{"$f":"IF('2011 Survey responses'!DL6<0.5,\"\",'2011 Survey responses'!DL6)","v":5},{"$f":"IF('2011 Survey responses'!DU6=4,4,IF('2011 Survey responses'!DU6=5,4,\"\"))","v":4},{"$f":"IF('2011 Survey responses'!DV6=4,3,IF('2011 Survey responses'!DV6=5,3,\"\"))","v":""},"",{"$f":"IF(CQ6=2,CQ6,IF(CO6=4,CO6,IF(CP6=3,CP6,IF('2011 Survey responses'!GT6=1,1,\"\"))))","v":4},{"$f":"IF('2011 Survey responses'!DO6<0.5,\"\",'2011 Survey responses'!DO6)","v":2},{"$f":"IF('2011 Survey responses'!DP6<0.5,\"\",'2011 Survey responses'!DP6)","v":3},{"$f":"IF('2011 Survey responses'!DQ6<0.5,\"\",'2011 Survey responses'!DQ6)","v":2},{"$f":"IF('2011 Survey responses'!DR6<0.5,\"\",'2011 Survey responses'!DR6)","v":3},{"$f":"IF('2011 Survey responses'!DS6<0.5,\"\",'2011 Survey responses'!DS6)","v":3},{"$f":"IF('2011 Survey responses'!DT6<0.5,\"\",'2011 Survey responses'!DT6)","v":4},{"$f":"IF('2011 Survey responses'!DU6<0.5,\"\",'2011 Survey responses'!DU6)","v":4},{"$f":"IF('2011 Survey responses'!DV6<0.5,\"\",'2011 Survey responses'!DV6)","v":2},{"$f":"IF('2011 Survey responses'!DW6<0.5,\"\",'2011 Survey responses'!DW6)","v":2},{"$f":"IF('2011 Survey responses'!DX6<0.5,\"\",'2011 Survey responses'!DX6)","v":2},{"$f":"IF('2011 Survey responses'!DY6<0.5,\"\",'2011 Survey responses'!DY6)","v":3},{"$f":"IF('2011 Survey responses'!DZ6<0.5,\"\",'2011 Survey responses'!DZ6)","v":4},{"$f":"IF('2011 Survey responses'!EA6<0.5,\"\",'2011 Survey responses'!EA6)","v":4},{"$f":"IF('2011 Survey responses'!EB6<0.5,\"\",'2011 Survey responses'!EB6)","v":5},{"$f":"IF('2011 Survey responses'!EC6<0.5,\"\",'2011 Survey responses'!EC6)","v":4},{"$f":"IF('2011 Survey responses'!ED6<0.5,\"\",'2011 Survey responses'!ED6)","v":4},{"$f":"IF('2011 Survey responses'!EE6<0.5,\"\",'2011 Survey responses'!EE6)","v":5},{"$f":"IF('2011 Survey responses'!EF6<0.5,\"\",'2011 Survey responses'!EF6)","v":5},{"$f":"IF('2011 Survey responses'!EG6<0.5,\"\",'2011 Survey responses'!EG6)","v":5},{"$f":"IF('2011 Survey responses'!EH6<0.5,\"\",'2011 Survey responses'!EH6)","v":4},{"$f":"IF('2011 Survey responses'!EI6<0.5,\"\",'2011 Survey responses'!EI6)","v":4},{"$f":"IF('2011 Survey responses'!EJ6<0.5,\"\",'2011 Survey responses'!EJ6)","v":4},{"$f":"IF('2011 Survey responses'!EK6<0.5,\"\",'2011 Survey responses'!EK6)","v":5},{"$f":"IF('2011 Survey responses'!EL6<0.5,\"\",'2011 Survey responses'!EL6)","v":4},{"$f":"IF('2011 Survey responses'!EM6<0.5,\"\",'2011 Survey responses'!EM6)","v":5},{"$f":"IF('2011 Survey responses'!EN6<0.5,\"\",'2011 Survey responses'!EN6)","v":4},{"$f":"IF('2011 Survey responses'!EO6<0.5,\"\",'2011 Survey responses'!EO6)","v":5},{"$f":"IF('2011 Survey responses'!EP6<0.5,\"\",'2011 Survey responses'!EP6)","v":4},{"$f":"IF(('2011 Survey responses'!EW6+'2011 Survey responses'!EX6)>=2,AVERAGE('2011 Survey responses'!EW6,'2011 Survey responses'!EY6),\"\")","v":3.5},{"$f":"IF('2011 Survey responses'!EX6<0.5,\"\",'2011 Survey responses'!EX6)","v":3},{"$f":"IF('2011 Survey responses'!EZ6<0.5,\"\",'2011 Survey responses'!EZ6)","v":5},{"$f":"IF('2011 Survey responses'!FB6<0.5,\"\",'2011 Survey responses'!FB6)","v":4},{"$f":"IF('2011 Survey responses'!FD6<0.5,\"\",'2011 Survey responses'!FD6)","v":4},{"$f":"IF('2011 Survey responses'!FC6<0.5,\"\",'2011 Survey responses'!FC6)","v":4},{"$f":"IF(('2011 Survey responses'!EM6+'2011 Survey responses'!EN6)>=2,AVERAGE('2011 Survey responses'!EM6,'2011 Survey responses'!EN6),\"\")","v":4.5},{"$f":"IF('2011 Survey responses'!ES6<0.5,\"\",'2011 Survey responses'!ES6)","v":4},{"$f":"IF(('2011 Survey responses'!ET6+'2011 Survey responses'!EU6)>=2,AVERAGE('2011 Survey responses'!ET6,'2011 Survey responses'!EU6),\"\")","v":3.5},{"$f":"IF('2011 Survey responses'!EV6<0.5,\"\",'2011 Survey responses'!EV6)","v":5},{"$f":"IF('2011 Survey responses'!FA6<0.5,\"\",'2011 Survey responses'!FA6)","v":5},{"$f":"IF('2011 Survey responses'!ER6<0.5,\"\",'2011 Survey responses'!ER6)","v":3},{"$f":"IF(('2011 Survey responses'!EO6+'2011 Survey responses'!EP6)>=2,AVERAGE('2011 Survey responses'!EO6,'2011 Survey responses'!EP6),\"\")","v":4.5},{"$f":"IF('2011 Survey responses'!EQ6<0.5,\"\",'2011 Survey responses'!EQ6)","v":3},{"$f":"IF('2011 Survey responses'!ET6<0.5,\"\",'2011 Survey responses'!ET6)","v":4},{"$f":"IF('2011 Survey responses'!EU6<0.5,\"\",'2011 Survey responses'!EU6)","v":3},{"$f":"IF('2011 Survey responses'!EW6<0.5,\"\",'2011 Survey responses'!EW6)","v":4},{"$f":"IF('2011 Survey responses'!EY6<0.5,\"\",'2011 Survey responses'!EY6)","v":3},{"$f":"IF('2011 Survey responses'!FU6<0.5,\"\",'2011 Survey responses'!FU6)","v":5},{"$f":"IF(('2011 Survey responses'!FL6+'2011 Survey responses'!FM6)>=2,AVERAGE('2011 Survey responses'!FL6,'2011 Survey responses'!FM6),\"\")","v":5},{"$f":"IF(('2011 Survey responses'!FO6+'2011 Survey responses'!FQ6)>=2,AVERAGE('2011 Survey responses'!FO6,'2011 Survey responses'!FQ6),\"\")","v":4},{"$f":"IF('2011 Survey responses'!FJ6<0.5,\"\",'2011 Survey responses'!FJ6)","v":5},{"$f":"IF('2011 Survey responses'!FT6<0.5,\"\",'2011 Survey responses'!FT6)","v":5},{"$f":"IF('2011 Survey responses'!FR6<0.5,\"\",'2011 Survey responses'!FR6)","v":5},{"$f":"IF('2011 Survey responses'!FK6<0.5,\"\",'2011 Survey responses'!FK6)","v":5},{"$f":"IF('2011 Survey responses'!FP6<0.5,\"\",'2011 Survey responses'!FP6)","v":4},{"$f":"IF('2011 Survey responses'!FN6<0.5,\"\",'2011 Survey responses'!FN6)","v":3},{"$f":"IF(('2011 Survey responses'!FE6+'2011 Survey responses'!FF6)>=2,AVERAGE('2011 Survey responses'!FE6,'2011 Survey responses'!FF6),\"\")","v":4.5},{"$f":"IF('2011 Survey responses'!FS6<0.5,\"\",'2011 Survey responses'!FS6)","v":5},{"$f":"IF('2011 Survey responses'!FV6<0.5,\"\",'2011 Survey responses'!FV6)","v":5},{"$f":"IF(('2011 Survey responses'!FG6+'2011 Survey responses'!FH6)>=2,AVERAGE('2011 Survey responses'!FG6,'2011 Survey responses'!FH6),\"\")","v":4.5},{"$f":"IF('2011 Survey responses'!FI6<0.5,\"\",'2011 Survey responses'!FI6)","v":3},{"$f":"IF('2011 Survey responses'!FE6<0.5,\"\",'2011 Survey responses'!FE6)","v":4},{"$f":"IF('2011 Survey responses'!FF6<0.5,\"\",'2011 Survey responses'!FF6)","v":5},{"$f":"IF('2011 Survey responses'!FG6<0.5,\"\",'2011 Survey responses'!FG6)","v":5},{"$f":"IF('2011 Survey responses'!FH6<0.5,\"\",'2011 Survey responses'!FH6)","v":4},{"$f":"IF('2011 Survey responses'!FL6<0.5,\"\",'2011 Survey responses'!FL6)","v":5},{"$f":"IF('2011 Survey responses'!FM6<0.5,\"\",'2011 Survey responses'!FM6)","v":5},{"$f":"IF('2011 Survey responses'!FO6<0.5,\"\",'2011 Survey responses'!FO6)","v":5},{"$f":"IF('2011 Survey responses'!FQ6<0.5,\"\",'2011 Survey responses'!FQ6)","v":3}]
["Angola",{"$f":"IF(SUM(F7)<1,\"\",AVERAGEIF('2011 Survey responses'!B7:CP7,\">1\"))","v":3.1206896551724137},{"$f":"IF(SUM(F7)<1,\"\",AVERAGEIF('2011 Survey responses'!B7:AO7,\">1\"))","v":3.096774193548387},{"$f":"IF(SUM(F7)<1,\"\",AVERAGEIF('2011 Survey responses'!B7:BV7,\">1\"))","v":2.9791666666666665},{"$f":"IF(SUM(F7)<1,\"\",AVERAGEIF('2011 Survey responses'!V7:BV7,\">1\"))","v":2.4838709677419355},{"$f":"IF(SUM('2011 Survey responses'!B7:U7)<1,\"\",(AVERAGEIFS('2011 Survey responses'!B7:U7,'2011 Survey responses'!B7:U7,\">1\")))","v":3.8823529411764706},{"$f":"IF(SUM('2011 Survey responses'!B7:H7)<1,\"\",(AVERAGEIFS('2011 Survey responses'!B7:H7,'2011 Survey responses'!B7:H7,\">1\")))","v":4},{"$f":"IF(SUM('2011 Survey responses'!I7:S7)<1,\"\",(AVERAGEIFS('2011 Survey responses'!I7:S7,'2011 Survey responses'!I7:S7,\">1\")))","v":3.6},{"$f":"IF(SUM('2011 Survey responses'!T7:U7)<2.1,\"\",(AVERAGEIFS('2011 Survey responses'!T7:U7,'2011 Survey responses'!T7:U7,\">1\")))","v":5},{"$f":"IF(SUM('2011 Survey responses'!B7:C7)<2.1,\"\",((SUMIF('2011 Survey responses'!B7:C7,\">1\")+SUMIF('2011 Survey responses'!F7,\">1\"))/(COUNTIF('2011 Survey responses'!B7:C7,\">1\")+COUNTIF('2011 Survey responses'!F7,\">1\"))))","v":4},{"$f":"IF(SUM('2011 Survey responses'!D7:E7)<2.1,\"\",(AVERAGEIFS('2011 Survey responses'!D7:E7,'2011 Survey responses'!D7:E7,\">1\")))","v":4},{"$f":"IF(('2011 Survey responses'!B7+'2011 Survey responses'!D7)<2.1,\"\",((SUMIF('2011 Survey responses'!B7,\">1\")+SUMIF('2011 Survey responses'!D7,\">1\")+SUMIF('2011 Survey responses'!F7,\">1\")+SUMIF('2011 Survey responses'!K7,\">1\"))/(COUNTIF('2011 Survey responses'!B7,\">1\")+COUNTIF('2011 Survey responses'!D7,\">1\")+COUNTIF('2011 Survey responses'!F7,\">1\")+COUNTIF('2011 Survey responses'!K7,\">1\"))))","v":3.5},{"$f":"IF(SUM('2011 Survey responses'!G7:H7)<2.1,\"\",(AVERAGEIFS('2011 Survey responses'!G7:H7,'2011 Survey responses'!G7:H7,\">1\")))","v":""},{"$f":"IF(SUM('2011 Survey responses'!F7:G7)<1.5,\"\",MAX('2011 Survey responses'!F7,'2011 Survey responses'!G7))","v":2},{"$f":"IF(SUM('2011 Survey responses'!G7:H7)<1,\"\",MAX('2011 Survey responses'!G7,'2011 Survey responses'!H7))","v":1},{"$f":"IF(SUM('2011 Survey responses'!I7:L7)<4.1,\"\",(AVERAGEIFS('2011 Survey responses'!I7:L7,'2011 Survey responses'!I7:L7,\">1\")))","v":3.3333333333333335},{"$f":"IF(SUM('2011 Survey responses'!M7:S7)<4.1,\"\",(AVERAGEIFS('2011 Survey responses'!M7:S7,'2011 Survey responses'!M7:S7,\">1\")))","v":3.7142857142857144},{"$f":"IF(SUM('2011 Survey responses'!T7:U7)<2.1,\"\",(AVERAGEIFS('2011 Survey responses'!T7:U7,'2011 Survey responses'!T7:U7,\">1\")))","v":5},{"$f":"IF(SUM('2011 Survey responses'!V7:AO7)<1,\"\",(AVERAGEIFS('2011 Survey responses'!V7:AO7,'2011 Survey responses'!V7:AO7,\">1\")))","v":2.1428571428571428},{"$f":"IF(SUM('2011 Survey responses'!V7:AA7)<1,\"\",(AVERAGEIFS('2011 Survey responses'!V7:AA7,'2011 Survey responses'!V7:AA7,\">1\")))","v":2.4},{"$f":"IF(SUM('2011 Survey responses'!AB7:AH7)<1,\"\",(AVERAGEIFS('2011 Survey responses'!AB7:AH7,'2011 Survey responses'!AB7:AH7,\">1\")))","v":2},{"$f":"IF(SUM('2011 Survey responses'!AI7:AO7)<1,\"\",(AVERAGEIFS('2011 Survey responses'!AI7:AO7,'2011 Survey responses'!AI7:AO7,\">1\")))","v":2},{"$f":"IF(('2011 Survey responses'!Y7+'2011 Survey responses'!AI7+'2011 Survey responses'!AK7)<3.1,\"\",((SUMIF('2011 Survey responses'!Y7,\">1\")+SUMIF('2011 Survey responses'!AI7,\">1\")+SUMIF('2011 Survey responses'!AK7,\">1\")+SUMIF('2011 Survey responses'!AM7,\">1\"))/(COUNTIF('2011 Survey responses'!Y7,\">1\")+COUNTIF('2011 Survey responses'!AI7,\">1\")+COUNTIF('2011 Survey responses'!AK7,\">1\")+COUNTIF('2011 Survey responses'!AM7,\">1\"))))","v":2},{"$f":"IF(('2011 Survey responses'!W7)<1.1,\"\",('2011 Survey responses'!W7))","v":2},{"$f":"IF(('2011 Survey responses'!Y7)<1.1,\"\",('2011 Survey responses'!Y7))","v":2},{"$f":"IF(('2011 Survey responses'!Z7)<1.1,\"\",('2011 Survey responses'!Z7))","v":2},{"$f":"IF(('2011 Survey responses'!V7+'2011 Survey responses'!X7+'2011 Survey responses'!AA7)<3.1,\"\",((SUMIF('2011 Survey responses'!V7,\">1\")+SUMIF('2011 Survey responses'!X7,\">1\")+SUMIF('2011 Survey responses'!AA7,\">1\"))/(COUNTIF('2011 Survey responses'!V7,\">1\")+COUNTIF('2011 Survey responses'!X7,\">1\")+COUNTIF('2011 Survey responses'!AA7,\">1\"))))","v":3},{"$f":"IF(('2011 Survey responses'!V7+'2011 Survey responses'!Y7+'2011 Survey responses'!AA7)<3.1,\"\",((SUMIF('2011 Survey responses'!V7,\">1\")+SUMIF('2011 Survey responses'!Y7,\">1\")+SUMIF('2011 Survey responses'!AA7,\">1\"))/(COUNTIF('2011 Survey responses'!V7,\">1\")+COUNTIF('2011 Survey responses'!Y7,\">1\")+COUNTIF('2011 Survey responses'!AA7,\">1\"))))","v":2.6666666666666665},{"$f":"IF(SUM('2011 Survey responses'!AB7:AH7)<1,\"\",(AVERAGEIFS('2011 Survey responses'!AB7:AH7,'2011 Survey responses'!AB7:AH7,\">1\")))","v":2},{"$f":"IF(SUM('2011 Survey responses'!AI7:AO7)<7.1,\"\",(AVERAGEIFS('2011 Survey responses'!AI7:AO7,'2011 Survey responses'!AI7:AO7,\">1\")))","v":2},{"$f":"IF(('2011 Survey responses'!AH7)<1.1,\"\",('2011 Survey responses'!AH7))","v":""},{"$f":"IF(SUM('2011 Survey responses'!AP7:BV7)<1,\"\",(AVERAGEIFS('2011 Survey responses'!AP7:BV7,'2011 Survey responses'!AP7:BV7,\">1\")))","v":2.7647058823529411},{"$f":"IF(SUM('2011 Survey responses'!AP7:AS7)<4.1,\"\",(AVERAGEIFS('2011 Survey responses'!AP7:AS7,'2011 Survey responses'!AP7:AS7,\">1\")))","v":2},{"$f":"IF(SUM('2011 Survey responses'!AT7:BF7)<1,\"\",(AVERAGEIFS('2011 Survey responses'!AT7:BF7,'2011 Survey responses'!AT7:BF7,\">1\")))","v":2.3333333333333335},{"$f":"IF(SUM('2011 Survey responses'!BG7:BO7)<1,\"\",(AVERAGEIFS('2011 Survey responses'!BG7:BO7,'2011 Survey responses'!BG7:BO7,\">1\")))","v":3.5},{"$f":"IF(SUM('2011 Survey responses'!BP7:BS7)<1,\"\",(AVERAGEIFS('2011 Survey responses'!BP7:BS7,'2011 Survey responses'!BP7:BS7,\">1\")))","v":4},{"$f":"IF(SUM('2011 Survey responses'!BT7:BV7)<3.1,\"\",(AVERAGEIFS('2011 Survey responses'!BT7:BV7,'2011 Survey responses'!BT7:BV7,\">1\")))","v":2},{"$f":"IF(('2011 Survey responses'!AQ7+'2011 Survey responses'!AR7+'2011 Survey responses'!BG7)<3.1,\"\",((SUMIF('2011 Survey responses'!AQ7,\">1\")+SUMIF('2011 Survey responses'!AR7,\">1\")+SUMIF('2011 Survey responses'!BG7,\">1\"))/(COUNTIF('2011 Survey responses'!AQ7,\">1\")+COUNTIF('2011 Survey responses'!AR7,\">1\")+COUNTIF('2011 Survey responses'!BG7,\">1\"))))","v":2.6666666666666665},{"$f":"IF(SUM('2011 Survey responses'!AP7:AS7)<4.1,\"\",(AVERAGEIFS('2011 Survey responses'!AP7:AS7,'2011 Survey responses'!AP7:AS7,\">1\")))","v":2},{"$f":"IF(('2011 Survey responses'!AU7+'2011 Survey responses'!AX7+'2011 Survey responses'!BA7+'2011 Survey responses'!BC7+'2011 Survey responses'!BD7)<5.1,\"\",(SUMIF('2011 Survey responses'!AU7,\">1\")+SUMIF('2011 Survey responses'!AX7,\">1\")+SUMIF('2011 Survey responses'!BA7,\">1\")+SUMIF('2011 Survey responses'!BC7,\">1\")+SUMIF('2011 Survey responses'!BD7,\">1\"))/(COUNTIF('2011 Survey responses'!AU7,\">1\")+COUNTIF('2011 Survey responses'!AX7,\">1\")+COUNTIF('2011 Survey responses'!BA7,\">1\")+COUNTIF('2011 Survey responses'!BC7,\">1\")+COUNTIF('2011 Survey responses'!BD7,\">1\")))","v":2},{"$f":"IF(('2011 Survey responses'!AT7)<1.1,\"\",('2011 Survey responses'!AT7))","v":""},{"$f":"IF(SUM('2011 Survey responses'!AV7:AW7)<2.1,\"\",(AVERAGEIFS('2011 Survey responses'!AV7:AW7,'2011 Survey responses'!AV7:AW7,\">1\")))","v":""},{"$f":"IF(('2011 Survey responses'!AW7+'2011 Survey responses'!AY7)<2.1,\"\",(SUMIF('2011 Survey responses'!AW7,\">1\")+SUMIF('2011 Survey responses'!AY7,\">1\"))/(COUNTIF('2011 Survey responses'!AW7,\">1\")+COUNTIF('2011 Survey responses'!AY7,\">1\")))","v":""},{"$f":"IF(('2011 Survey responses'!AZ7)<1.1,\"\",('2011 Survey responses'!AZ7))","v":""},1,1,1,1,{"$f":"IF(('2011 Survey responses'!BE7)<1.1,\"\",('2011 Survey responses'!BE7))","v":2},{"$f":"IF(('2011 Survey responses'!AY7+'2011 Survey responses'!BB7+'2011 Survey responses'!BF7)<3.1,\"\",(SUMIF('2011 Survey responses'!AY7,\">1\")+SUMIF('2011 Survey responses'!BB7,\">1\")+SUMIF('2011 Survey responses'!BF7,\">1\"))/(COUNTIF('2011 Survey responses'!AY7,\">1\")+COUNTIF('2011 Survey responses'!BB7,\">1\")+COUNTIF('2011 Survey responses'!BF7,\">1\")))","v":3},3.75,{"$f":"IF(SUM('2011 Survey responses'!BT7:BV7)<3.1,\"\",(AVERAGEIFS('2011 Survey responses'!BT7:BV7,'2011 Survey responses'!BT7:BV7,\">1\")))","v":2},{"$f":"IF(SUM('2011 Survey responses'!BW7:CP7)<1,\"\",(AVERAGEIFS('2011 Survey responses'!BW7:CP7,'2011 Survey responses'!BW7:CP7,\">1\")))","v":3.8},{"$f":"IF(SUM('2011 Survey responses'!BW7:CF7)<1,\"\",(AVERAGEIFS('2011 Survey responses'!BW7:CF7,'2011 Survey responses'!BW7:CF7,\">1\")))","v":3.75},{"$f":"IF(SUM('2011 Survey responses'!CG7:CP7)<1,\"\",(AVERAGEIFS('2011 Survey responses'!CG7:CP7,'2011 Survey responses'!CG7:CP7,\">1\")))","v":3.8333333333333335},{"$f":"IF(SUM('2011 Survey responses'!BX7:CF7)<1,\"\",(AVERAGEIFS('2011 Survey responses'!BX7:CF7,'2011 Survey responses'!BX7:CF7,\">1\")))","v":3.75},{"$f":"IF(SUM('2011 Survey responses'!CH7:CP7)<1,\"\",(AVERAGEIFS('2011 Survey responses'!CH7:CP7,'2011 Survey responses'!CH7:CP7,\">1\")))","v":4.2},{"$f":"IF(SUM('2011 Survey responses'!BW7:CP7)<1,\"\",(AVERAGEIFS('2011 Survey responses'!BW7:CP7,'2011 Survey responses'!BW7:CP7,\">1\")))","v":3.8},{"$f":"IF(('2011 Survey responses'!BW7+'2011 Survey responses'!CG7)<2.1,\"\",(SUMIF('2011 Survey responses'!BW7,\">1\")+SUMIF('2011 Survey responses'!CG7,\">1\"))/(COUNTIF('2011 Survey responses'!BW7,\">1\")+COUNTIF('2011 Survey responses'!CG7,\">1\")))","v":""},{"$f":"IF(('2011 Survey responses'!BX7+'2011 Survey responses'!CH7)<2.1,\"\",(SUMIF('2011 Survey responses'!BX7,\">1\")+SUMIF('2011 Survey responses'!CH7,\">1\"))/(COUNTIF('2011 Survey responses'!BX7,\">1\")+COUNTIF('2011 Survey responses'!CH7,\">1\")))","v":4},{"$f":"IF(('2011 Survey responses'!BY7+'2011 Survey responses'!CI7)<2.1,\"\",(SUMIF('2011 Survey responses'!BY7,\">1\")+SUMIF('2011 Survey responses'!CI7,\">1\"))/(COUNTIF('2011 Survey responses'!BY7,\">1\")+COUNTIF('2011 Survey responses'!CI7,\">1\")))","v":5},{"$f":"IF('2011 Survey responses'!CQ7<0.5,\"\",'2011 Survey responses'!CQ7)","v":4},{"$f":"IF('2011 Survey responses'!CR7<0.5,\"\",'2011 Survey responses'!CR7)","v":3},{"$f":"IF('2011 Survey responses'!CS7<0.5,\"\",'2011 Survey responses'!CS7)","v":3},{"$f":"IF('2011 Survey responses'!CT7<0.5,\"\",'2011 Survey responses'!CT7)","v":2},{"$f":"IF('2011 Survey responses'!CU7<0.5,\"\",'2011 Survey responses'!CU7)","v":1},{"$f":"IF('2011 Survey responses'!CV7<0.5,\"\",'2011 Survey responses'!CV7)","v":2},{"$f":"IF(SUM('2011 Survey responses'!CW7:DL7)<1,\"\",(AVERAGE('2011 Survey responses'!CW7:DL7)))","v":2.625},{"$f":"IF(SUM('2011 Survey responses'!CW7:CZ7)<1,\"\",(AVERAGE('2011 Survey responses'!CW7:CZ7)))","v":2},{"$f":"IF(SUM('2011 Survey responses'!DA7:DD7)<1,\"\",(AVERAGE('2011 Survey responses'!DA7:DD7)))","v":2.75},{"$f":"IF(SUM('2011 Survey responses'!DE7:DH7)<1,\"\",(AVERAGE('2011 Survey responses'!DE7:DH7)))","v":3},{"$f":"IF(SUM('2011 Survey responses'!DI7:DL7)<1,\"\",(AVERAGE('2011 Survey responses'!DI7:DL7)))","v":2.75},{"$f":"IF(('2011 Survey responses'!CW7+'2011 Survey responses'!DA7+'2011 Survey responses'!DE7+'2011 Survey responses'!DI7)<1,\"\",AVERAGE('2011 Survey responses'!CW7,'2011 Survey responses'!DA7,'2011 Survey responses'!DE7,'2011 Survey responses'!DI7))","v":2.25},{"$f":"IF(('2011 Survey responses'!CX7+'2011 Survey responses'!DB7+'2011 Survey responses'!DF7+'2011 Survey responses'!DJ7)<1,\"\",AVERAGE('2011 Survey responses'!CX7,'2011 Survey responses'!DB7,'2011 Survey responses'!DF7,'2011 Survey responses'!DJ7))","v":2.75},{"$f":"IF(('2011 Survey responses'!CY7+'2011 Survey responses'!DC7+'2011 Survey responses'!DG7+'2011 Survey responses'!DK7)<1,\"\",AVERAGE('2011 Survey responses'!CY7,'2011 Survey responses'!DC7,'2011 Survey responses'!DG7,'2011 Survey responses'!DK7))","v":2.75},{"$f":"IF(('2011 Survey responses'!CZ7+'2011 Survey responses'!DD7+'2011 Survey responses'!DH7+'2011 Survey responses'!DL7)<1,\"\",AVERAGE('2011 Survey responses'!CZ7,'2011 Survey responses'!DD7,'2011 Survey responses'!DH7,'2011 Survey responses'!DL7))","v":2.75},{"$f":"IF('2011 Survey responses'!CW7<0.5,\"\",'2011 Survey responses'!CW7)","v":1},{"$f":"IF('2011 Survey responses'!CX7<0.5,\"\",'2011 Survey responses'!CX7)","v":2},{"$f":"IF('2011 Survey responses'!CY7<0.5,\"\",'2011 Survey responses'!CY7)","v":3},{"$f":"IF('2011 Survey responses'!CZ7<0.5,\"\",'2011 Survey responses'!CZ7)","v":2},{"$f":"IF('2011 Survey responses'!DA7<0.5,\"\",'2011 Survey responses'!DA7)","v":2},{"$f":"IF('2011 Survey responses'!DB7<0.5,\"\",'2011 Survey responses'!DB7)","v":3},{"$f":"IF('2011 Survey responses'!DC7<0.5,\"\",'2011 Survey responses'!DC7)","v":3},{"$f":"IF('2011 Survey responses'!DD7<0.5,\"\",'2011 Survey responses'!DD7)","v":3},{"$f":"IF('2011 Survey responses'!DE7<0.5,\"\",'2011 Survey responses'!DE7)","v":3},{"$f":"IF('2011 Survey responses'!DF7<0.5,\"\",'2011 Survey responses'!DF7)","v":3},{"$f":"IF('2011 Survey responses'!DG7<0.5,\"\",'2011 Survey responses'!DG7)","v":3},{"$f":"IF('2011 Survey responses'!DH7<0.5,\"\",'2011 Survey responses'!DH7)","v":3},{"$f":"IF('2011 Survey responses'!DI7<0.5,\"\",'2011 Survey responses'!DI7)","v":3},{"$f":"IF('2011 Survey responses'!DJ7<0.5,\"\",'2011 Survey responses'!DJ7)","v":3},{"$f":"IF('2011 Survey responses'!DK7<0.5,\"\",'2011 Survey responses'!DK7)","v":2},{"$f":"IF('2011 Survey responses'!DL7<0.5,\"\",'2011 Survey responses'!DL7)","v":3},{"$f":"IF('2011 Survey responses'!DU7=4,4,IF('2011 Survey responses'!DU7=5,4,\"\"))","v":""},{"$f":"IF('2011 Survey responses'!DV7=4,3,IF('2011 Survey responses'!DV7=5,3,\"\"))","v":""},"",{"$f":"IF(CQ7=2,CQ7,IF(CO7=4,CO7,IF(CP7=3,CP7,IF('2011 Survey responses'!GT7=1,1,\"\"))))","v":1},{"$f":"IF('2011 Survey responses'!DO7<0.5,\"\",'2011 Survey responses'!DO7)","v":4},{"$f":"IF('2011 Survey responses'!DP7<0.5,\"\",'2011 Survey responses'!DP7)","v":5},{"$f":"IF('2011 Survey responses'!DQ7<0.5,\"\",'2011 Survey responses'!DQ7)","v":3},{"$f":"IF('2011 Survey responses'!DR7<0.5,\"\",'2011 Survey responses'!DR7)","v":4},{"$f":"IF('2011 Survey responses'!DS7<0.5,\"\",'2011 Survey responses'!DS7)","v":3},{"$f":"IF('2011 Survey responses'!DT7<0.5,\"\",'2011 Survey responses'!DT7)","v":5},{"$f":"IF('2011 Survey responses'!DU7<0.5,\"\",'2011 Survey responses'!DU7)","v":2},{"$f":"IF('2011 Survey responses'!DV7<0.5,\"\",'2011 Survey responses'!DV7)","v":2},{"$f":"IF('2011 Survey responses'!DW7<0.5,\"\",'2011 Survey responses'!DW7)","v":2},{"$f":"IF('2011 Survey responses'!DX7<0.5,\"\",'2011 Survey responses'!DX7)","v":2},{"$f":"IF('2011 Survey responses'!DY7<0.5,\"\",'2011 Survey responses'!DY7)","v":4},{"$f":"IF('2011 Survey responses'!DZ7<0.5,\"\",'2011 Survey responses'!DZ7)","v":4},{"$f":"IF('2011 Survey responses'!EA7<0.5,\"\",'2011 Survey responses'!EA7)","v":3},{"$f":"IF('2011 Survey responses'!EB7<0.5,\"\",'2011 Survey responses'!EB7)","v":5},{"$f":"IF('2011 Survey responses'!EC7<0.5,\"\",'2011 Survey responses'!EC7)","v":3},{"$f":"IF('2011 Survey responses'!ED7<0.5,\"\",'2011 Survey responses'!ED7)","v":4},{"$f":"IF('2011 Survey responses'!EE7<0.5,\"\",'2011 Survey responses'!EE7)","v":4},{"$f":"IF('2011 Survey responses'!EF7<0.5,\"\",'2011 Survey responses'!EF7)","v":5},{"$f":"IF('2011 Survey responses'!EG7<0.5,\"\",'2011 Survey responses'!EG7)","v":3},{"$f":"IF('2011 Survey responses'!EH7<0.5,\"\",'2011 Survey responses'!EH7)","v":3},{"$f":"IF('2011 Survey responses'!EI7<0.5,\"\",'2011 Survey responses'!EI7)","v":3},{"$f":"IF('2011 Survey responses'!EJ7<0.5,\"\",'2011 Survey responses'!EJ7)","v":3},{"$f":"IF('2011 Survey responses'!EK7<0.5,\"\",'2011 Survey responses'!EK7)","v":5},{"$f":"IF('2011 Survey responses'!EL7<0.5,\"\",'2011 Survey responses'!EL7)","v":5},{"$f":"IF('2011 Survey responses'!EM7<0.5,\"\",'2011 Survey responses'!EM7)","v":5},{"$f":"IF('2011 Survey responses'!EN7<0.5,\"\",'2011 Survey responses'!EN7)","v":4},{"$f":"IF('2011 Survey responses'!EO7<0.5,\"\",'2011 Survey responses'!EO7)","v":4},{"$f":"IF('2011 Survey responses'!EP7<0.5,\"\",'2011 Survey responses'!EP7)","v":4},{"$f":"IF(('2011 Survey responses'!EW7+'2011 Survey responses'!EX7)>=2,AVERAGE('2011 Survey responses'!EW7,'2011 Survey responses'!EY7),\"\")","v":4},{"$f":"IF('2011 Survey responses'!EX7<0.5,\"\",'2011 Survey responses'!EX7)","v":4},{"$f":"IF('2011 Survey responses'!EZ7<0.5,\"\",'2011 Survey responses'!EZ7)","v":4},{"$f":"IF('2011 Survey responses'!FB7<0.5,\"\",'2011 Survey responses'!FB7)","v":4},{"$f":"IF('2011 Survey responses'!FD7<0.5,\"\",'2011 Survey responses'!FD7)","v":2},{"$f":"IF('2011 Survey responses'!FC7<0.5,\"\",'2011 Survey responses'!FC7)","v":3},{"$f":"IF(('2011 Survey responses'!EM7+'2011 Survey responses'!EN7)>=2,AVERAGE('2011 Survey responses'!EM7,'2011 Survey responses'!EN7),\"\")","v":4.5},{"$f":"IF('2011 Survey responses'!ES7<0.5,\"\",'2011 Survey responses'!ES7)","v":4},{"$f":"IF(('2011 Survey responses'!ET7+'2011 Survey responses'!EU7)>=2,AVERAGE('2011 Survey responses'!ET7,'2011 Survey responses'!EU7),\"\")","v":3},{"$f":"IF('2011 Survey responses'!EV7<0.5,\"\",'2011 Survey responses'!EV7)","v":5},{"$f":"IF('2011 Survey responses'!FA7<0.5,\"\",'2011 Survey responses'!FA7)","v":4},{"$f":"IF('2011 Survey responses'!ER7<0.5,\"\",'2011 Survey responses'!ER7)","v":4},{"$f":"IF(('2011 Survey responses'!EO7+'2011 Survey responses'!EP7)>=2,AVERAGE('2011 Survey responses'!EO7,'2011 Survey responses'!EP7),\"\")","v":4},{"$f":"IF('2011 Survey responses'!EQ7<0.5,\"\",'2011 Survey responses'!EQ7)","v":1},{"$f":"IF('2011 Survey responses'!ET7<0.5,\"\",'2011 Survey responses'!ET7)","v":3},{"$f":"IF('2011 Survey responses'!EU7<0.5,\"\",'2011 Survey responses'!EU7)","v":3},{"$f":"IF('2011 Survey responses'!EW7<0.5,\"\",'2011 Survey responses'!EW7)","v":4},{"$f":"IF('2011 Survey responses'!EY7<0.5,\"\",'2011 Survey responses'!EY7)","v":4},{"$f":"IF('2011 Survey responses'!FU7<0.5,\"\",'2011 Survey responses'!FU7)","v":4},{"$f":"IF(('2011 Survey responses'!FL7+'2011 Survey responses'!FM7)>=2,AVERAGE('2011 Survey responses'!FL7,'2011 Survey responses'!FM7),\"\")","v":4},{"$f":"IF(('2011 Survey responses'!FO7+'2011 Survey responses'!FQ7)>=2,AVERAGE('2011 Survey responses'!FO7,'2011 Survey responses'!FQ7),\"\")","v":5},{"$f":"IF('2011 Survey responses'!FJ7<0.5,\"\",'2011 Survey responses'!FJ7)","v":4},{"$f":"IF('2011 Survey responses'!FT7<0.5,\"\",'2011 Survey responses'!FT7)","v":4},{"$f":"IF('2011 Survey responses'!FR7<0.5,\"\",'2011 Survey responses'!FR7)","v":3},{"$f":"IF('2011 Survey responses'!FK7<0.5,\"\",'2011 Survey responses'!FK7)","v":3},{"$f":"IF('2011 Survey responses'!FP7<0.5,\"\",'2011 Survey responses'!FP7)","v":4},{"$f":"IF('2011 Survey responses'!FN7<0.5,\"\",'2011 Survey responses'!FN7)","v":4},{"$f":"IF(('2011 Survey responses'!FE7+'2011 Survey responses'!FF7)>=2,AVERAGE('2011 Survey responses'!FE7,'2011 Survey responses'!FF7),\"\")","v":3},{"$f":"IF('2011 Survey responses'!FS7<0.5,\"\",'2011 Survey responses'!FS7)","v":3},{"$f":"IF('2011 Survey responses'!FV7<0.5,\"\",'2011 Survey responses'!FV7)","v":3},{"$f":"IF(('2011 Survey responses'!FG7+'2011 Survey responses'!FH7)>=2,AVERAGE('2011 Survey responses'!FG7,'2011 Survey responses'!FH7),\"\")","v":4},{"$f":"IF('2011 Survey responses'!FI7<0.5,\"\",'2011 Survey responses'!FI7)","v":3},{"$f":"IF('2011 Survey responses'!FE7<0.5,\"\",'2011 Survey responses'!FE7)","v":3},{"$f":"IF('2011 Survey responses'!FF7<0.5,\"\",'2011 Survey responses'!FF7)","v":3},{"$f":"IF('2011 Survey responses'!FG7<0.5,\"\",'2011 Survey responses'!FG7)","v":4},{"$f":"IF('2011 Survey responses'!FH7<0.5,\"\",'2011 Survey responses'!FH7)","v":4},{"$f":"IF('2011 Survey responses'!FL7<0.5,\"\",'2011 Survey responses'!FL7)","v":4},{"$f":"IF('2011 Survey responses'!FM7<0.5,\"\",'2011 Survey responses'!FM7)","v":4},{"$f":"IF('2011 Survey responses'!FO7<0.5,\"\",'2011 Survey responses'!FO7)","v":""},{"$f":"IF('2011 Survey responses'!FQ7<0.5,\"\",'2011 Survey responses'!FQ7)","v":5}]
["Antigua and Barbuda",{"$f":"IF(SUM(F8)<1,\"\",AVERAGEIF('2011 Survey responses'!B8:CP8,\">1\"))","v":3.2567567567567566},{"$f":"IF(SUM(F8)<1,\"\",AVERAGEIF('2011 Survey responses'!B8:AO8,\">1\"))","v":2.9583333333333335},{"$f":"IF(SUM(F8)<1,\"\",AVERAGEIF('2011 Survey responses'!B8:BV8,\">1\"))","v":3.0892857142857144},{"$f":"IF(SUM(F8)<1,\"\",AVERAGEIF('2011 Survey responses'!V8:BV8,\">1\"))","v":3.0652173913043477},{"$f":"IF(SUM('2011 Survey responses'!B8:U8)<1,\"\",(AVERAGEIFS('2011 Survey responses'!B8:U8,'2011 Survey responses'!B8:U8,\">1\")))","v":3.2},{"$f":"IF(SUM('2011 Survey responses'!B8:H8)<1,\"\",(AVERAGEIFS('2011 Survey responses'!B8:H8,'2011 Survey responses'!B8:H8,\">1\")))","v":3.25},{"$f":"IF(SUM('2011 Survey responses'!I8:S8)<1,\"\",(AVERAGEIFS('2011 Survey responses'!I8:S8,'2011 Survey responses'!I8:S8,\">1\")))","v":3.1666666666666665},{"$f":"IF(SUM('2011 Survey responses'!T8:U8)<2.1,\"\",(AVERAGEIFS('2011 Survey responses'!T8:U8,'2011 Survey responses'!T8:U8,\">1\")))","v":""},{"$f":"IF(SUM('2011 Survey responses'!B8:C8)<2.1,\"\",((SUMIF('2011 Survey responses'!B8:C8,\">1\")+SUMIF('2011 Survey responses'!F8,\">1\"))/(COUNTIF('2011 Survey responses'!B8:C8,\">1\")+COUNTIF('2011 Survey responses'!F8,\">1\"))))","v":2.5},{"$f":"IF(SUM('2011 Survey responses'!D8:E8)<2.1,\"\",(AVERAGEIFS('2011 Survey responses'!D8:E8,'2011 Survey responses'!D8:E8,\">1\")))","v":6},{"$f":"IF(('2011 Survey responses'!B8+'2011 Survey responses'!D8)<2.1,\"\",((SUMIF('2011 Survey responses'!B8,\">1\")+SUMIF('2011 Survey responses'!D8,\">1\")+SUMIF('2011 Survey responses'!F8,\">1\")+SUMIF('2011 Survey responses'!K8,\">1\"))/(COUNTIF('2011 Survey responses'!B8,\">1\")+COUNTIF('2011 Survey responses'!D8,\">1\")+COUNTIF('2011 Survey responses'!F8,\">1\")+COUNTIF('2011 Survey responses'!K8,\">1\"))))","v":3.75},{"$f":"IF(SUM('2011 Survey responses'!G8:H8)<2.1,\"\",(AVERAGEIFS('2011 Survey responses'!G8:H8,'2011 Survey responses'!G8:H8,\">1\")))","v":2},{"$f":"IF(SUM('2011 Survey responses'!F8:G8)<1.5,\"\",MAX('2011 Survey responses'!F8,'2011 Survey responses'!G8))","v":2},{"$f":"IF(SUM('2011 Survey responses'!G8:H8)<1,\"\",MAX('2011 Survey responses'!G8,'2011 Survey responses'!H8))","v":2},{"$f":"IF(SUM('2011 Survey responses'!I8:L8)<4.1,\"\",(AVERAGEIFS('2011 Survey responses'!I8:L8,'2011 Survey responses'!I8:L8,\">1\")))","v":3.6666666666666665},{"$f":"IF(SUM('2011 Survey responses'!M8:S8)<4.1,\"\",(AVERAGEIFS('2011 Survey responses'!M8:S8,'2011 Survey responses'!M8:S8,\">1\")))","v":2.6666666666666665},{"$f":"IF(SUM('2011 Survey responses'!T8:U8)<2.1,\"\",(AVERAGEIFS('2011 Survey responses'!T8:U8,'2011 Survey responses'!T8:U8,\">1\")))","v":""},{"$f":"IF(SUM('2011 Survey responses'!V8:AO8)<1,\"\",(AVERAGEIFS('2011 Survey responses'!V8:AO8,'2011 Survey responses'!V8:AO8,\">1\")))","v":2.7857142857142856},{"$f":"IF(SUM('2011 Survey responses'!V8:AA8)<1,\"\",(AVERAGEIFS('2011 Survey responses'!V8:AA8,'2011 Survey responses'!V8:AA8,\">1\")))","v":2.3333333333333335},{"$f":"IF(SUM('2011 Survey responses'!AB8:AH8)<1,\"\",(AVERAGEIFS('2011 Survey responses'!AB8:AH8,'2011 Survey responses'!AB8:AH8,\">1\")))","v":2.5},{"$f":"IF(SUM('2011 Survey responses'!AI8:AO8)<1,\"\",(AVERAGEIFS('2011 Survey responses'!AI8:AO8,'2011 Survey responses'!AI8:AO8,\">1\")))","v":3.4},{"$f":"IF(('2011 Survey responses'!Y8+'2011 Survey responses'!AI8+'2011 Survey responses'!AK8)<3.1,\"\",((SUMIF('2011 Survey responses'!Y8,\">1\")+SUMIF('2011 Survey responses'!AI8,\">1\")+SUMIF('2011 Survey responses'!AK8,\">1\")+SUMIF('2011 Survey responses'!AM8,\">1\"))/(COUNTIF('2011 Survey responses'!Y8,\">1\")+COUNTIF('2011 Survey responses'!AI8,\">1\")+COUNTIF('2011 Survey responses'!AK8,\">1\")+COUNTIF('2011 Survey responses'!AM8,\">1\"))))","v":3.25},{"$f":"IF(('2011 Survey responses'!W8)<1.1,\"\",('2011 Survey responses'!W8))","v":3},{"$f":"IF(('2011 Survey responses'!Y8)<1.1,\"\",('2011 Survey responses'!Y8))","v":2},{"$f":"IF(('2011 Survey responses'!Z8)<1.1,\"\",('2011 Survey responses'!Z8))","v":""},{"$f":"IF(('2011 Survey responses'!V8+'2011 Survey responses'!X8+'2011 Survey responses'!AA8)<3.1,\"\",((SUMIF('2011 Survey responses'!V8,\">1\")+SUMIF('2011 Survey responses'!X8,\">1\")+SUMIF('2011 Survey responses'!AA8,\">1\"))/(COUNTIF('2011 Survey responses'!V8,\">1\")+COUNTIF('2011 Survey responses'!X8,\">1\")+COUNTIF('2011 Survey responses'!AA8,\">1\"))))","v":2},{"$f":"IF(('2011 Survey responses'!V8+'2011 Survey responses'!Y8+'2011 Survey responses'!AA8)<3.1,\"\",((SUMIF('2011 Survey responses'!V8,\">1\")+SUMIF('2011 Survey responses'!Y8,\">1\")+SUMIF('2011 Survey responses'!AA8,\">1\"))/(COUNTIF('2011 Survey responses'!V8,\">1\")+COUNTIF('2011 Survey responses'!Y8,\">1\")+COUNTIF('2011 Survey responses'!AA8,\">1\"))))","v":2},{"$f":"IF(SUM('2011 Survey responses'!AB8:AH8)<1,\"\",(AVERAGEIFS('2011 Survey responses'!AB8:AH8,'2011 Survey responses'!AB8:AH8,\">1\")))","v":2.5},{"$f":"IF(SUM('2011 Survey responses'!AI8:AO8)<7.1,\"\",(AVERAGEIFS('2011 Survey responses'!AI8:AO8,'2011 Survey responses'!AI8:AO8,\">1\")))","v":3.4},{"$f":"IF(('2011 Survey responses'!AH8)<1.1,\"\",('2011 Survey responses'!AH8))","v":""},{"$f":"IF(SUM('2011 Survey responses'!AP8:BV8)<1,\"\",(AVERAGEIFS('2011 Survey responses'!AP8:BV8,'2011 Survey responses'!AP8:BV8,\">1\")))","v":3.1875},{"$f":"IF(SUM('2011 Survey responses'!AP8:AS8)<4.1,\"\",(AVERAGEIFS('2011 Survey responses'!AP8:AS8,'2011 Survey responses'!AP8:AS8,\">1\")))","v":3.5},{"$f":"IF(SUM('2011 Survey responses'!AT8:BF8)<1,\"\",(AVERAGEIFS('2011 Survey responses'!AT8:BF8,'2011 Survey responses'!AT8:BF8,\">1\")))","v":2.8333333333333335},{"$f":"IF(SUM('2011 Survey responses'!BG8:BO8)<1,\"\",(AVERAGEIFS('2011 Survey responses'!BG8:BO8,'2011 Survey responses'!BG8:BO8,\">1\")))","v":4},{"$f":"IF(SUM('2011 Survey responses'!BP8:BS8)<1,\"\",(AVERAGEIFS('2011 Survey responses'!BP8:BS8,'2011 Survey responses'!BP8:BS8,\">1\")))","v":3},{"$f":"IF(SUM('2011 Survey responses'!BT8:BV8)<3.1,\"\",(AVERAGEIFS('2011 Survey responses'!BT8:BV8,'2011 Survey responses'!BT8:BV8,\">1\")))","v":2},{"$f":"IF(('2011 Survey responses'!AQ8+'2011 Survey responses'!AR8+'2011 Survey responses'!BG8)<3.1,\"\",((SUMIF('2011 Survey responses'!AQ8,\">1\")+SUMIF('2011 Survey responses'!AR8,\">1\")+SUMIF('2011 Survey responses'!BG8,\">1\"))/(COUNTIF('2011 Survey responses'!AQ8,\">1\")+COUNTIF('2011 Survey responses'!AR8,\">1\")+COUNTIF('2011 Survey responses'!BG8,\">1\"))))","v":4},{"$f":"IF(SUM('2011 Survey responses'!AP8:AS8)<4.1,\"\",(AVERAGEIFS('2011 Survey responses'!AP8:AS8,'2011 Survey responses'!AP8:AS8,\">1\")))","v":3.5},{"$f":"IF(('2011 Survey responses'!AU8+'2011 Survey responses'!AX8+'2011 Survey responses'!BA8+'2011 Survey responses'!BC8+'2011 Survey responses'!BD8)<5.1,\"\",(SUMIF('2011 Survey responses'!AU8,\">1\")+SUMIF('2011 Survey responses'!AX8,\">1\")+SUMIF('2011 Survey responses'!BA8,\">1\")+SUMIF('2011 Survey responses'!BC8,\">1\")+SUMIF('2011 Survey responses'!BD8,\">1\"))/(COUNTIF('2011 Survey responses'!AU8,\">1\")+COUNTIF('2011 Survey responses'!AX8,\">1\")+COUNTIF('2011 Survey responses'!BA8,\">1\")+COUNTIF('2011 Survey responses'!BC8,\">1\")+COUNTIF('2011 Survey responses'!BD8,\">1\")))","v":3.4},{"$f":"IF(('2011 Survey responses'!AT8)<1.1,\"\",('2011 Survey responses'!AT8))","v":5},{"$f":"IF(SUM('2011 Survey responses'!AV8:AW8)<2.1,\"\",(AVERAGEIFS('2011 Survey responses'!AV8:AW8,'2011 Survey responses'!AV8:AW8,\">1\")))","v":2},{"$f":"IF(('2011 Survey responses'!AW8+'2011 Survey responses'!AY8)<2.1,\"\",(SUMIF('2011 Survey responses'!AW8,\">1\")+SUMIF('2011 Survey responses'!AY8,\">1\"))/(COUNTIF('2011 Survey responses'!AW8,\">1\")+COUNTIF('2011 Survey responses'!AY8,\">1\")))","v":2},{"$f":"IF(('2011 Survey responses'!AZ8)<1.1,\"\",('2011 Survey responses'!AZ8))","v":2},2,2,4,2,{"$f":"IF(('2011 Survey responses'!BE8)<1.1,\"\",('2011 Survey responses'!BE8))","v":""},{"$f":"IF(('2011 Survey responses'!AY8+'2011 Survey responses'!BB8+'2011 Survey responses'!BF8)<3.1,\"\",(SUMIF('2011 Survey responses'!AY8,\">1\")+SUMIF('2011 Survey responses'!BB8,\">1\")+SUMIF('2011 Survey responses'!BF8,\">1\"))/(COUNTIF('2011 Survey responses'!AY8,\">1\")+COUNTIF('2011 Survey responses'!BB8,\">1\")+COUNTIF('2011 Survey responses'!BF8,\">1\")))","v":2},3.5,{"$f":"IF(SUM('2011 Survey responses'!BT8:BV8)<3.1,\"\",(AVERAGEIFS('2011 Survey responses'!BT8:BV8,'2011 Survey responses'!BT8:BV8,\">1\")))","v":2},{"$f":"IF(SUM('2011 Survey responses'!BW8:CP8)<1,\"\",(AVERAGEIFS('2011 Survey responses'!BW8:CP8,'2011 Survey responses'!BW8:CP8,\">1\")))","v":3.7777777777777777},{"$f":"IF(SUM('2011 Survey responses'!BW8:CF8)<1,\"\",(AVERAGEIFS('2011 Survey responses'!BW8:CF8,'2011 Survey responses'!BW8:CF8,\">1\")))","v":3.7777777777777777},{"$f":"IF(SUM('2011 Survey responses'!CG8:CP8)<1,\"\",(AVERAGEIFS('2011 Survey responses'!CG8:CP8,'2011 Survey responses'!CG8:CP8,\">1\")))","v":3.7777777777777777},{"$f":"IF(SUM('2011 Survey responses'!BX8:CF8)<1,\"\",(AVERAGEIFS('2011 Survey responses'!BX8:CF8,'2011 Survey responses'!BX8:CF8,\">1\")))","v":3.75},{"$f":"IF(SUM('2011 Survey responses'!CH8:CP8)<1,\"\",(AVERAGEIFS('2011 Survey responses'!CH8:CP8,'2011 Survey responses'!CH8:CP8,\">1\")))","v":4},{"$f":"IF(SUM('2011 Survey responses'!BW8:CP8)<1,\"\",(AVERAGEIFS('2011 Survey responses'!BW8:CP8,'2011 Survey responses'!BW8:CP8,\">1\")))","v":3.7777777777777777},{"$f":"IF(('2011 Survey responses'!BW8+'2011 Survey responses'!CG8)<2.1,\"\",(SUMIF('2011 Survey responses'!BW8,\">1\")+SUMIF('2011 Survey responses'!CG8,\">1\"))/(COUNTIF('2011 Survey responses'!BW8,\">1\")+COUNTIF('2011 Survey responses'!CG8,\">1\")))","v":3},{"$f":"IF(('2011 Survey responses'!BX8+'2011 Survey responses'!CH8)<2.1,\"\",(SUMIF('2011 Survey responses'!BX8,\">1\")+SUMIF('2011 Survey responses'!CH8,\">1\"))/(COUNTIF('2011 Survey responses'!BX8,\">1\")+COUNTIF('2011 Survey responses'!CH8,\">1\")))","v":2},{"$f":"IF(('2011 Survey responses'!BY8+'2011 Survey responses'!CI8)<2.1,\"\",(SUMIF('2011 Survey responses'!BY8,\">1\")+SUMIF('2011 Survey responses'!CI8,\">1\"))/(COUNTIF('2011 Survey responses'!BY8,\">1\")+COUNTIF('2011 Survey responses'!CI8,\">1\")))","v":""},{"$f":"IF('2011 Survey responses'!CQ8<0.5,\"\",'2011 Survey responses'!CQ8)","v":2},{"$f":"IF('2011 Survey responses'!CR8<0.5,\"\",'2011 Survey responses'!CR8)","v":4},{"$f":"IF('2011 Survey responses'!CS8<0.5,\"\",'2011 Survey responses'!CS8)","v":2},{"$f":"IF('2011 Survey responses'!CT8<0.5,\"\",'2011 Survey responses'!CT8)","v":4},{"$f":"IF('2011 Survey responses'!CU8<0.5,\"\",'2011 Survey responses'!CU8)","v":4},{"$f":"IF('2011 Survey responses'!CV8<0.5,\"\",'2011 Survey responses'!CV8)","v":2},{"$f":"IF(SUM('2011 Survey responses'!CW8:DL8)<1,\"\",(AVERAGE('2011 Survey responses'!CW8:DL8)))","v":2.8125},{"$f":"IF(SUM('2011 Survey responses'!CW8:CZ8)<1,\"\",(AVERAGE('2011 Survey responses'!CW8:CZ8)))","v":2.75},{"$f":"IF(SUM('2011 Survey responses'!DA8:DD8)<1,\"\",(AVERAGE('2011 Survey responses'!DA8:DD8)))","v":3},{"$f":"IF(SUM('2011 Survey responses'!DE8:DH8)<1,\"\",(AVERAGE('2011 Survey responses'!DE8:DH8)))","v":2.75},{"$f":"IF(SUM('2011 Survey responses'!DI8:DL8)<1,\"\",(AVERAGE('2011 Survey responses'!DI8:DL8)))","v":2.75},{"$f":"IF(('2011 Survey responses'!CW8+'2011 Survey responses'!DA8+'2011 Survey responses'!DE8+'2011 Survey responses'!DI8)<1,\"\",AVERAGE('2011 Survey responses'!CW8,'2011 Survey responses'!DA8,'2011 Survey responses'!DE8,'2011 Survey responses'!DI8))","v":2.75},{"$f":"IF(('2011 Survey responses'!CX8+'2011 Survey responses'!DB8+'2011 Survey responses'!DF8+'2011 Survey responses'!DJ8)<1,\"\",AVERAGE('2011 Survey responses'!CX8,'2011 Survey responses'!DB8,'2011 Survey responses'!DF8,'2011 Survey responses'!DJ8))","v":3},{"$f":"IF(('2011 Survey responses'!CY8+'2011 Survey responses'!DC8+'2011 Survey responses'!DG8+'2011 Survey responses'!DK8)<1,\"\",AVERAGE('2011 Survey responses'!CY8,'2011 Survey responses'!DC8,'2011 Survey responses'!DG8,'2011 Survey responses'!DK8))","v":2.5},{"$f":"IF(('2011 Survey responses'!CZ8+'2011 Survey responses'!DD8+'2011 Survey responses'!DH8+'2011 Survey responses'!DL8)<1,\"\",AVERAGE('2011 Survey responses'!CZ8,'2011 Survey responses'!DD8,'2011 Survey responses'!DH8,'2011 Survey responses'!DL8))","v":3},{"$f":"IF('2011 Survey responses'!CW8<0.5,\"\",'2011 Survey responses'!CW8)","v":2},{"$f":"IF('2011 Survey responses'!CX8<0.5,\"\",'2011 Survey responses'!CX8)","v":3},{"$f":"IF('2011 Survey responses'!CY8<0.5,\"\",'2011 Survey responses'!CY8)","v":3},{"$f":"IF('2011 Survey responses'!CZ8<0.5,\"\",'2011 Survey responses'!CZ8)","v":3},{"$f":"IF('2011 Survey responses'!DA8<0.5,\"\",'2011 Survey responses'!DA8)","v":3},{"$f":"IF('2011 Survey responses'!DB8<0.5,\"\",'2011 Survey responses'!DB8)","v":3},{"$f":"IF('2011 Survey responses'!DC8<0.5,\"\",'2011 Survey responses'!DC8)","v":3},{"$f":"IF('2011 Survey responses'!DD8<0.5,\"\",'2011 Survey responses'!DD8)","v":3},{"$f":"IF('2011 Survey responses'!DE8<0.5,\"\",'2011 Survey responses'!DE8)","v":3},{"$f":"IF('2011 Survey responses'!DF8<0.5,\"\",'2011 Survey responses'!DF8)","v":3},{"$f":"IF('2011 Survey responses'!DG8<0.5,\"\",'2011 Survey responses'!DG8)","v":2},{"$f":"IF('2011 Survey responses'!DH8<0.5,\"\",'2011 Survey responses'!DH8)","v":3},{"$f":"IF('2011 Survey responses'!DI8<0.5,\"\",'2011 Survey responses'!DI8)","v":3},{"$f":"IF('2011 Survey responses'!DJ8<0.5,\"\",'2011 Survey responses'!DJ8)","v":3},{"$f":"IF('2011 Survey responses'!DK8<0.5,\"\",'2011 Survey responses'!DK8)","v":2},{"$f":"IF('2011 Survey responses'!DL8<0.5,\"\",'2011 Survey responses'!DL8)","v":3},{"$f":"IF('2011 Survey responses'!DU8=4,4,IF('2011 Survey responses'!DU8=5,4,\"\"))","v":4},{"$f":"IF('2011 Survey responses'!DV8=4,3,IF('2011 Survey responses'!DV8=5,3,\"\"))","v":3},2,{"$f":"IF(CQ8=2,CQ8,IF(CO8=4,CO8,IF(CP8=3,CP8,IF('2011 Survey responses'!GT8=1,1,\"\"))))","v":2},{"$f":"IF('2011 Survey responses'!DO8<0.5,\"\",'2011 Survey responses'!DO8)","v":4},{"$f":"IF('2011 Survey responses'!DP8<0.5,\"\",'2011 Survey responses'!DP8)","v":5},{"$f":"IF('2011 Survey responses'!DQ8<0.5,\"\",'2011 Survey responses'!DQ8)","v":3},{"$f":"IF('2011 Survey responses'!DR8<0.5,\"\",'2011 Survey responses'!DR8)","v":2},{"$f":"IF('2011 Survey responses'!DS8<0.5,\"\",'2011 Survey responses'!DS8)","v":2},{"$f":"IF('2011 Survey responses'!DT8<0.5,\"\",'2011 Survey responses'!DT8)","v":2},{"$f":"IF('2011 Survey responses'!DU8<0.5,\"\",'2011 Survey responses'!DU8)","v":5},{"$f":"IF('2011 Survey responses'!DV8<0.5,\"\",'2011 Survey responses'!DV8)","v":5},{"$f":"IF('2011 Survey responses'!DW8<0.5,\"\",'2011 Survey responses'!DW8)","v":4},{"$f":"IF('2011 Survey responses'!DX8<0.5,\"\",'2011 Survey responses'!DX8)","v":4},{"$f":"IF('2011 Survey responses'!DY8<0.5,\"\",'2011 Survey responses'!DY8)","v":4},{"$f":"IF('2011 Survey responses'!DZ8<0.5,\"\",'2011 Survey responses'!DZ8)","v":3},{"$f":"IF('2011 Survey responses'!EA8<0.5,\"\",'2011 Survey responses'!EA8)","v":2},{"$f":"IF('2011 Survey responses'!EB8<0.5,\"\",'2011 Survey responses'!EB8)","v":4},{"$f":"IF('2011 Survey responses'!EC8<0.5,\"\",'2011 Survey responses'!EC8)","v":4},{"$f":"IF('2011 Survey responses'!ED8<0.5,\"\",'2011 Survey responses'!ED8)","v":3},{"$f":"IF('2011 Survey responses'!EE8<0.5,\"\",'2011 Survey responses'!EE8)","v":3},{"$f":"IF('2011 Survey responses'!EF8<0.5,\"\",'2011 Survey responses'!EF8)","v":3},{"$f":"IF('2011 Survey responses'!EG8<0.5,\"\",'2011 Survey responses'!EG8)","v":5},{"$f":"IF('2011 Survey responses'!EH8<0.5,\"\",'2011 Survey responses'!EH8)","v":4},{"$f":"IF('2011 Survey responses'!EI8<0.5,\"\",'2011 Survey responses'!EI8)","v":4},{"$f":"IF('2011 Survey responses'!EJ8<0.5,\"\",'2011 Survey responses'!EJ8)","v":4},{"$f":"IF('2011 Survey responses'!EK8<0.5,\"\",'2011 Survey responses'!EK8)","v":5},{"$f":"IF('2011 Survey responses'!EL8<0.5,\"\",'2011 Survey responses'!EL8)","v":4},{"$f":"IF('2011 Survey responses'!EM8<0.5,\"\",'2011 Survey responses'!EM8)","v":4},{"$f":"IF('2011 Survey responses'!EN8<0.5,\"\",'2011 Survey responses'!EN8)","v":1},{"$f":"IF('2011 Survey responses'!EO8<0.5,\"\",'2011 Survey responses'!EO8)","v":1},{"$f":"IF('2011 Survey responses'!EP8<0.5,\"\",'2011 Survey responses'!EP8)","v":1},{"$f":"IF(('2011 Survey responses'!EW8+'2011 Survey responses'!EX8)>=2,AVERAGE('2011 Survey responses'!EW8,'2011 Survey responses'!EY8),\"\")","v":4.5},{"$f":"IF('2011 Survey responses'!EX8<0.5,\"\",'2011 Survey responses'!EX8)","v":4},{"$f":"IF('2011 Survey responses'!EZ8<0.5,\"\",'2011 Survey responses'!EZ8)","v":4},{"$f":"IF('2011 Survey responses'!FB8<0.5,\"\",'2011 Survey responses'!FB8)","v":4},{"$f":"IF('2011 Survey responses'!FD8<0.5,\"\",'2011 Survey responses'!FD8)","v":3},{"$f":"IF('2011 Survey responses'!FC8<0.5,\"\",'2011 Survey responses'!FC8)","v":3},{"$f":"IF(('2011 Survey responses'!EM8+'2011 Survey responses'!EN8)>=2,AVERAGE('2011 Survey responses'!EM8,'2011 Survey responses'!EN8),\"\")","v":2.5},{"$f":"IF('2011 Survey responses'!ES8<0.5,\"\",'2011 Survey responses'!ES8)","v":4},{"$f":"IF(('2011 Survey responses'!ET8+'2011 Survey responses'!EU8)>=2,AVERAGE('2011 Survey responses'!ET8,'2011 Survey responses'!EU8),\"\")","v":2},{"$f":"IF('2011 Survey responses'!EV8<0.5,\"\",'2011 Survey responses'!EV8)","v":4},{"$f":"IF('2011 Survey responses'!FA8<0.5,\"\",'2011 Survey responses'!FA8)","v":3},{"$f":"IF('2011 Survey responses'!ER8<0.5,\"\",'2011 Survey responses'!ER8)","v":3},{"$f":"IF(('2011 Survey responses'!EO8+'2011 Survey responses'!EP8)>=2,AVERAGE('2011 Survey responses'!EO8,'2011 Survey responses'!EP8),\"\")","v":1},{"$f":"IF('2011 Survey responses'!EQ8<0.5,\"\",'2011 Survey responses'!EQ8)","v":2},{"$f":"IF('2011 Survey responses'!ET8<0.5,\"\",'2011 Survey responses'!ET8)","v":3},{"$f":"IF('2011 Survey responses'!EU8<0.5,\"\",'2011 Survey responses'!EU8)","v":1},{"$f":"IF('2011 Survey responses'!EW8<0.5,\"\",'2011 Survey responses'!EW8)","v":5},{"$f":"IF('2011 Survey responses'!EY8<0.5,\"\",'2011 Survey responses'!EY8)","v":4},{"$f":"IF('2011 Survey responses'!FU8<0.5,\"\",'2011 Survey responses'!FU8)","v":5},{"$f":"IF(('2011 Survey responses'!FL8+'2011 Survey responses'!FM8)>=2,AVERAGE('2011 Survey responses'!FL8,'2011 Survey responses'!FM8),\"\")","v":3.5},{"$f":"IF(('2011 Survey responses'!FO8+'2011 Survey responses'!FQ8)>=2,AVERAGE('2011 Survey responses'!FO8,'2011 Survey responses'!FQ8),\"\")","v":5},{"$f":"IF('2011 Survey responses'!FJ8<0.5,\"\",'2011 Survey responses'!FJ8)","v":4},{"$f":"IF('2011 Survey responses'!FT8<0.5,\"\",'2011 Survey responses'!FT8)","v":5},{"$f":"IF('2011 Survey responses'!FR8<0.5,\"\",'2011 Survey responses'!FR8)","v":5},{"$f":"IF('2011 Survey responses'!FK8<0.5,\"\",'2011 Survey responses'!FK8)","v":5},{"$f":"IF('2011 Survey responses'!FP8<0.5,\"\",'2011 Survey responses'!FP8)","v":5},{"$f":"IF('2011 Survey responses'!FN8<0.5,\"\",'2011 Survey responses'!FN8)","v":4},{"$f":"IF(('2011 Survey responses'!FE8+'2011 Survey responses'!FF8)>=2,AVERAGE('2011 Survey responses'!FE8,'2011 Survey responses'!FF8),\"\")","v":3.5},{"$f":"IF('2011 Survey responses'!FS8<0.5,\"\",'2011 Survey responses'!FS8)","v":4},{"$f":"IF('2011 Survey responses'!FV8<0.5,\"\",'2011 Survey responses'!FV8)","v":5},{"$f":"IF(('2011 Survey responses'!FG8+'2011 Survey responses'!FH8)>=2,AVERAGE('2011 Survey responses'!FG8,'2011 Survey responses'!FH8),\"\")","v":3},{"$f":"IF('2011 Survey responses'!FI8<0.5,\"\",'2011 Survey responses'!FI8)","v":4},{"$f":"IF('2011 Survey responses'!FE8<0.5,\"\",'2011 Survey responses'!FE8)","v":4},{"$f":"IF('2011 Survey responses'!FF8<0.5,\"\",'2011 Survey responses'!FF8)","v":3},{"$f":"IF('2011 Survey responses'!FG8<0.5,\"\",'2011 Survey responses'!FG8)","v":3},{"$f":"IF('2011 Survey responses'!FH8<0.5,\"\",'2011 Survey responses'!FH8)","v":3},{"$f":"IF('2011 Survey responses'!FL8<0.5,\"\",'2011 Survey responses'!FL8)","v":4},{"$f":"IF('2011 Survey responses'!FM8<0.5,\"\",'2011 Survey responses'!FM8)","v":3},{"$f":"IF('2011 Survey responses'!FO8<0.5,\"\",'2011 Survey responses'!FO8)","v":5},{"$f":"IF('2011 Survey responses'!FQ8<0.5,\"\",'2011 Survey responses'!FQ8)","v":5}]
["Argentina",{"$f":"IF(SUM(F9)<1,\"\",AVERAGEIF('2011 Survey responses'!B9:CP9,\">1\"))","v":""},{"$f":"IF(SUM(F9)<1,\"\",AVERAGEIF('2011 Survey responses'!B9:AO9,\">1\"))","v":""},{"$f":"IF(SUM(F9)<1,\"\",AVERAGEIF('2011 Survey responses'!B9:BV9,\">1\"))","v":""},{"$f":"IF(SUM(F9)<1,\"\",AVERAGEIF('2011 Survey responses'!V9:BV9,\">1\"))","v":""},{"$f":"IF(SUM('2011 Survey responses'!B9:U9)<1,\"\",(AVERAGEIFS('2011 Survey responses'!B9:U9,'2011 Survey responses'!B9:U9,\">1\")))","v":""},{"$f":"IF(SUM('2011 Survey responses'!B9:H9)<1,\"\",(AVERAGEIFS('2011 Survey responses'!B9:H9,'2011 Survey responses'!B9:H9,\">1\")))","v":""},{"$f":"IF(SUM('2011 Survey responses'!I9:S9)<1,\"\",(AVERAGEIFS('2011 Survey responses'!I9:S9,'2011 Survey responses'!I9:S9,\">1\")))","v":""},{"$f":"IF(SUM('2011 Survey responses'!T9:U9)<2.1,\"\",(AVERAGEIFS('2011 Survey responses'!T9:U9,'2011 Survey responses'!T9:U9,\">1\")))","v":""},{"$f":"IF(SUM('2011 Survey responses'!B9:C9)<2.1,\"\",((SUMIF('2011 Survey responses'!B9:C9,\">1\")+SUMIF('2011 Survey responses'!F9,\">1\"))/(COUNTIF('2011 Survey responses'!B9:C9,\">1\")+COUNTIF('2011 Survey responses'!F9,\">1\"))))","v":""},{"$f":"IF(SUM('2011 Survey responses'!D9:E9)<2.1,\"\",(AVERAGEIFS('2011 Survey responses'!D9:E9,'2011 Survey responses'!D9:E9,\">1\")))","v":""},{"$f":"IF(('2011 Survey responses'!B9+'2011 Survey responses'!D9)<2.1,\"\",((SUMIF('2011 Survey responses'!B9,\">1\")+SUMIF('2011 Survey responses'!D9,\">1\")+SUMIF('2011 Survey responses'!F9,\">1\")+SUMIF('2011 Survey responses'!K9,\">1\"))/(COUNTIF('2011 Survey responses'!B9,\">1\")+COUNTIF('2011 Survey responses'!D9,\">1\")+COUNTIF('2011 Survey responses'!F9,\">1\")+COUNTIF('2011 Survey responses'!K9,\">1\"))))","v":""},{"$f":"IF(SUM('2011 Survey responses'!G9:H9)<2.1,\"\",(AVERAGEIFS('2011 Survey responses'!G9:H9,'2011 Survey responses'!G9:H9,\">1\")))","v":""},{"$f":"IF(SUM('2011 Survey responses'!F9:G9)<1.5,\"\",MAX('2011 Survey responses'!F9,'2011 Survey responses'!G9))","v":""},{"$f":"IF(SUM('2011 Survey responses'!G9:H9)<1,\"\",MAX('2011 Survey responses'!G9,'2011 Survey responses'!H9))","v":""},{"$f":"IF(SUM('2011 Survey responses'!I9:L9)<4.1,\"\",(AVERAGEIFS('2011 Survey responses'!I9:L9,'2011 Survey responses'!I9:L9,\">1\")))","v":""},{"$f":"IF(SUM('2011 Survey responses'!M9:S9)<4.1,\"\",(AVERAGEIFS('2011 Survey responses'!M9:S9,'2011 Survey responses'!M9:S9,\">1\")))","v":""},{"$f":"IF(SUM('2011 Survey responses'!T9:U9)<2.1,\"\",(AVERAGEIFS('2011 Survey responses'!T9:U9,'2011 Survey responses'!T9:U9,\">1\")))","v":""},{"$f":"IF(SUM('2011 Survey responses'!V9:AO9)<1,\"\",(AVERAGEIFS('2011 Survey responses'!V9:AO9,'2011 Survey responses'!V9:AO9,\">1\")))","v":""},{"$f":"IF(SUM('2011 Survey responses'!V9:AA9)<1,\"\",(AVERAGEIFS('2011 Survey responses'!V9:AA9,'2011 Survey responses'!V9:AA9,\">1\")))","v":""},{"$f":"IF(SUM('2011 Survey responses'!AB9:AH9)<1,\"\",(AVERAGEIFS('2011 Survey responses'!AB9:AH9,'2011 Survey responses'!AB9:AH9,\">1\")))","v":""},{"$f":"IF(SUM('2011 Survey responses'!AI9:AO9)<1,\"\",(AVERAGEIFS('2011 Survey responses'!AI9:AO9,'2011 Survey responses'!AI9:AO9,\">1\")))","v":""},{"$f":"IF(('2011 Survey responses'!Y9+'2011 Survey responses'!AI9+'2011 Survey responses'!AK9)<3.1,\"\",((SUMIF('2011 Survey responses'!Y9,\">1\")+SUMIF('2011 Survey responses'!AI9,\">1\")+SUMIF('2011 Survey responses'!AK9,\">1\")+SUMIF('2011 Survey responses'!AM9,\">1\"))/(COUNTIF('2011 Survey responses'!Y9,\">1\")+COUNTIF('2011 Survey responses'!AI9,\">1\")+COUNTIF('2011 Survey responses'!AK9,\">1\")+COUNTIF('2011 Survey responses'!AM9,\">1\"))))","v":""},{"$f":"IF(('2011 Survey responses'!W9)<1.1,\"\",('2011 Survey responses'!W9))","v":""},{"$f":"IF(('2011 Survey responses'!Y9)<1.1,\"\",('2011 Survey responses'!Y9))","v":""},{"$f":"IF(('2011 Survey responses'!Z9)<1.1,\"\",('2011 Survey responses'!Z9))","v":""},{"$f":"IF(('2011 Survey responses'!V9+'2011 Survey responses'!X9+'2011 Survey responses'!AA9)<3.1,\"\",((SUMIF('2011 Survey responses'!V9,\">1\")+SUMIF('2011 Survey responses'!X9,\">1\")+SUMIF('2011 Survey responses'!AA9,\">1\"))/(COUNTIF('2011 Survey responses'!V9,\">1\")+COUNTIF('2011 Survey responses'!X9,\">1\")+COUNTIF('2011 Survey responses'!AA9,\">1\"))))","v":""},{"$f":"IF(('2011 Survey responses'!V9+'2011 Survey responses'!Y9+'2011 Survey responses'!AA9)<3.1,\"\",((SUMIF('2011 Survey responses'!V9,\">1\")+SUMIF('2011 Survey responses'!Y9,\">1\")+SUMIF('2011 Survey responses'!AA9,\">1\"))/(COUNTIF('2011 Survey responses'!V9,\">1\")+COUNTIF('2011 Survey responses'!Y9,\">1\")+COUNTIF('2011 Survey responses'!AA9,\">1\"))))","v":""},{"$f":"IF(SUM('2011 Survey responses'!AB9:AH9)<1,\"\",(AVERAGEIFS('2011 Survey responses'!AB9:AH9,'2011 Survey responses'!AB9:AH9,\">1\")))","v":""},{"$f":"IF(SUM('2011 Survey responses'!AI9:AO9)<7.1,\"\",(AVERAGEIFS('2011 Survey responses'!AI9:AO9,'2011 Survey responses'!AI9:AO9,\">1\")))","v":""},{"$f":"IF(('2011 Survey responses'!AH9)<1.1,\"\",('2011 Survey responses'!AH9))","v":""},{"$f":"IF(SUM('2011 Survey responses'!AP9:BV9)<1,\"\",(AVERAGEIFS('2011 Survey responses'!AP9:BV9,'2011 Survey responses'!AP9:BV9,\">1\")))","v":""},{"$f":"IF(SUM('2011 Survey responses'!AP9:AS9)<4.1,\"\",(AVERAGEIFS('2011 Survey responses'!AP9:AS9,'2011 Survey responses'!AP9:AS9,\">1\")))","v":""},{"$f":"IF(SUM('2011 Survey responses'!AT9:BF9)<1,\"\",(AVERAGEIFS('2011 Survey responses'!AT9:BF9,'2011 Survey responses'!AT9:BF9,\">1\")))","v":""},{"$f":"IF(SUM('2011 Survey responses'!BG9:BO9)<1,\"\",(AVERAGEIFS('2011 Survey responses'!BG9:BO9,'2011 Survey responses'!BG9:BO9,\">1\")))","v":""},{"$f":"IF(SUM('2011 Survey responses'!BP9:BS9)<1,\"\",(AVERAGEIFS('2011 Survey responses'!BP9:BS9,'2011 Survey responses'!BP9:BS9,\">1\")))","v":""},{"$f":"IF(SUM('2011 Survey responses'!BT9:BV9)<3.1,\"\",(AVERAGEIFS('2011 Survey responses'!BT9:BV9,'2011 Survey responses'!BT9:BV9,\">1\")))","v":""},{"$f":"IF(('2011 Survey responses'!AQ9+'2011 Survey responses'!AR9+'2011 Survey responses'!BG9)<3.1,\"\",((SUMIF('2011 Survey responses'!AQ9,\">1\")+SUMIF('2011 Survey responses'!AR9,\">1\")+SUMIF('2011 Survey responses'!BG9,\">1\"))/(COUNTIF('2011 Survey responses'!AQ9,\">1\")+COUNTIF('2011 Survey responses'!AR9,\">1\")+COUNTIF('2011 Survey responses'!BG9,\">1\"))))","v":""},{"$f":"IF(SUM('2011 Survey responses'!AP9:AS9)<4.1,\"\",(AVERAGEIFS('2011 Survey responses'!AP9:AS9,'2011 Survey responses'!AP9:AS9,\">1\")))","v":""},{"$f":"IF(('2011 Survey responses'!AU9+'2011 Survey responses'!AX9+'2011 Survey responses'!BA9+'2011 Survey responses'!BC9+'2011 Survey responses'!BD9)<5.1,\"\",(SUMIF('2011 Survey responses'!AU9,\">1\")+SUMIF('2011 Survey responses'!AX9,\">1\")+SUMIF('2011 Survey responses'!BA9,\">1\")+SUMIF('2011 Survey responses'!BC9,\">1\")+SUMIF('2011 Survey responses'!BD9,\">1\"))/(COUNTIF('2011 Survey responses'!AU9,\">1\")+COUNTIF('2011 Survey responses'!AX9,\">1\")+COUNTIF('2011 Survey responses'!BA9,\">1\")+COUNTIF('2011 Survey responses'!BC9,\">1\")+COUNTIF('2011 Survey responses'!BD9,\">1\")))","v":""},{"$f":"IF(('2011 Survey responses'!AT9)<1.1,\"\",('2011 Survey responses'!AT9))","v":""},{"$f":"IF(SUM('2011 Survey responses'!AV9:AW9)<2.1,\"\",(AVERAGEIFS('2011 Survey responses'!AV9:AW9,'2011 Survey responses'!AV9:AW9,\">1\")))","v":""},{"$f":"IF(('2011 Survey responses'!AW9+'2011 Survey responses'!AY9)<2.1,\"\",(SUMIF('2011 Survey responses'!AW9,\">1\")+SUMIF('2011 Survey responses'!AY9,\">1\"))/(COUNTIF('2011 Survey responses'!AW9,\">1\")+COUNTIF('2011 Survey responses'!AY9,\">1\")))","v":""},{"$f":"IF(('2011 Survey responses'!AZ9)<1.1,\"\",('2011 Survey responses'!AZ9))","v":""},null,null,null,null,{"$f":"IF(('2011 Survey responses'!BE9)<1.1,\"\",('2011 Survey responses'!BE9))","v":""},{"$f":"IF(('2011 Survey responses'!AY9+'2011 Survey responses'!BB9+'2011 Survey responses'!BF9)<3.1,\"\",(SUMIF('2011 Survey responses'!AY9,\">1\")+SUMIF('2011 Survey responses'!BB9,\">1\")+SUMIF('2011 Survey responses'!BF9,\">1\"))/(COUNTIF('2011 Survey responses'!AY9,\">1\")+COUNTIF('2011 Survey responses'!BB9,\">1\")+COUNTIF('2011 Survey responses'!BF9,\">1\")))","v":""},"",{"$f":"IF(SUM('2011 Survey responses'!BT9:BV9)<3.1,\"\",(AVERAGEIFS('2011 Survey responses'!BT9:BV9,'2011 Survey responses'!BT9:BV9,\">1\")))","v":""},{"$f":"IF(SUM('2011 Survey responses'!BW9:CP9)<1,\"\",(AVERAGEIFS('2011 Survey responses'!BW9:CP9,'2011 Survey responses'!BW9:CP9,\">1\")))","v":""},{"$f":"IF(SUM('2011 Survey responses'!BW9:CF9)<1,\"\",(AVERAGEIFS('2011 Survey responses'!BW9:CF9,'2011 Survey responses'!BW9:CF9,\">1\")))","v":""},{"$f":"IF(SUM('2011 Survey responses'!CG9:CP9)<1,\"\",(AVERAGEIFS('2011 Survey responses'!CG9:CP9,'2011 Survey responses'!CG9:CP9,\">1\")))","v":""},{"$f":"IF(SUM('2011 Survey responses'!BX9:CF9)<1,\"\",(AVERAGEIFS('2011 Survey responses'!BX9:CF9,'2011 Survey responses'!BX9:CF9,\">1\")))","v":""},{"$f":"IF(SUM('2011 Survey responses'!CH9:CP9)<1,\"\",(AVERAGEIFS('2011 Survey responses'!CH9:CP9,'2011 Survey responses'!CH9:CP9,\">1\")))","v":""},{"$f":"IF(SUM('2011 Survey responses'!BW9:CP9)<1,\"\",(AVERAGEIFS('2011 Survey responses'!BW9:CP9,'2011 Survey responses'!BW9:CP9,\">1\")))","v":""},{"$f":"IF(('2011 Survey responses'!BW9+'2011 Survey responses'!CG9)<2.1,\"\",(SUMIF('2011 Survey responses'!BW9,\">1\")+SUMIF('2011 Survey responses'!CG9,\">1\"))/(COUNTIF('2011 Survey responses'!BW9,\">1\")+COUNTIF('2011 Survey responses'!CG9,\">1\")))","v":""},{"$f":"IF(('2011 Survey responses'!BX9+'2011 Survey responses'!CH9)<2.1,\"\",(SUMIF('2011 Survey responses'!BX9,\">1\")+SUMIF('2011 Survey responses'!CH9,\">1\"))/(COUNTIF('2011 Survey responses'!BX9,\">1\")+COUNTIF('2011 Survey responses'!CH9,\">1\")))","v":""},{"$f":"IF(('2011 Survey responses'!BY9+'2011 Survey responses'!CI9)<2.1,\"\",(SUMIF('2011 Survey responses'!BY9,\">1\")+SUMIF('2011 Survey responses'!CI9,\">1\"))/(COUNTIF('2011 Survey responses'!BY9,\">1\")+COUNTIF('2011 Survey responses'!CI9,\">1\")))","v":""},{"$f":"IF('2011 Survey responses'!CQ9<0.5,\"\",'2011 Survey responses'!CQ9)","v":""},{"$f":"IF('2011 Survey responses'!CR9<0.5,\"\",'2011 Survey responses'!CR9)","v":""},{"$f":"IF('2011 Survey responses'!CS9<0.5,\"\",'2011 Survey responses'!CS9)","v":""},{"$f":"IF('2011 Survey responses'!CT9<0.5,\"\",'2011 Survey responses'!CT9)","v":""},{"$f":"IF('2011 Survey responses'!CU9<0.5,\"\",'2011 Survey responses'!CU9)","v":""},{"$f":"IF('2011 Survey responses'!CV9<0.5,\"\",'2011 Survey responses'!CV9)","v":""},{"$f":"IF(SUM('2011 Survey responses'!CW9:DL9)<1,\"\",(AVERAGE('2011 Survey responses'!CW9:DL9)))","v":""},{"$f":"IF(SUM('2011 Survey responses'!CW9:CZ9)<1,\"\",(AVERAGE('2011 Survey responses'!CW9:CZ9)))","v":""},{"$f":"IF(SUM('2011 Survey responses'!DA9:DD9)<1,\"\",(AVERAGE('2011 Survey responses'!DA9:DD9)))","v":""},{"$f":"IF(SUM('2011 Survey responses'!DE9:DH9)<1,\"\",(AVERAGE('2011 Survey responses'!DE9:DH9)))","v":""},{"$f":"IF(SUM('2011 Survey responses'!DI9:DL9)<1,\"\",(AVERAGE('2011 Survey responses'!DI9:DL9)))","v":""},{"$f":"IF(('2011 Survey responses'!CW9+'2011 Survey responses'!DA9+'2011 Survey responses'!DE9+'2011 Survey responses'!DI9)<1,\"\",AVERAGE('2011 Survey responses'!CW9,'2011 Survey responses'!DA9,'2011 Survey responses'!DE9,'2011 Survey responses'!DI9))","v":""},{"$f":"IF(('2011 Survey responses'!CX9+'2011 Survey responses'!DB9+'2011 Survey responses'!DF9+'2011 Survey responses'!DJ9)<1,\"\",AVERAGE('2011 Survey responses'!CX9,'2011 Survey responses'!DB9,'2011 Survey responses'!DF9,'2011 Survey responses'!DJ9))","v":""},{"$f":"IF(('2011 Survey responses'!CY9+'2011 Survey responses'!DC9+'2011 Survey responses'!DG9+'2011 Survey responses'!DK9)<1,\"\",AVERAGE('2011 Survey responses'!CY9,'2011 Survey responses'!DC9,'2011 Survey responses'!DG9,'2011 Survey responses'!DK9))","v":""},{"$f":"IF(('2011 Survey responses'!CZ9+'2011 Survey responses'!DD9+'2011 Survey responses'!DH9+'2011 Survey responses'!DL9)<1,\"\",AVERAGE('2011 Survey responses'!CZ9,'2011 Survey responses'!DD9,'2011 Survey responses'!DH9,'2011 Survey responses'!DL9))","v":""},{"$f":"IF('2011 Survey responses'!CW9<0.5,\"\",'2011 Survey responses'!CW9)","v":""},{"$f":"IF('2011 Survey responses'!CX9<0.5,\"\",'2011 Survey responses'!CX9)","v":""},{"$f":"IF('2011 Survey responses'!CY9<0.5,\"\",'2011 Survey responses'!CY9)","v":""},{"$f":"IF('2011 Survey responses'!CZ9<0.5,\"\",'2011 Survey responses'!CZ9)","v":""},{"$f":"IF('2011 Survey responses'!DA9<0.5,\"\",'2011 Survey responses'!DA9)","v":""},{"$f":"IF('2011 Survey responses'!DB9<0.5,\"\",'2011 Survey responses'!DB9)","v":""},{"$f":"IF('2011 Survey responses'!DC9<0.5,\"\",'2011 Survey responses'!DC9)","v":""},{"$f":"IF('2011 Survey responses'!DD9<0.5,\"\",'2011 Survey responses'!DD9)","v":""},{"$f":"IF('2011 Survey responses'!DE9<0.5,\"\",'2011 Survey responses'!DE9)","v":""},{"$f":"IF('2011 Survey responses'!DF9<0.5,\"\",'2011 Survey responses'!DF9)","v":""},{"$f":"IF('2011 Survey responses'!DG9<0.5,\"\",'2011 Survey responses'!DG9)","v":""},{"$f":"IF('2011 Survey responses'!DH9<0.5,\"\",'2011 Survey responses'!DH9)","v":""},{"$f":"IF('2011 Survey responses'!DI9<0.5,\"\",'2011 Survey responses'!DI9)","v":""},{"$f":"IF('2011 Survey responses'!DJ9<0.5,\"\",'2011 Survey responses'!DJ9)","v":""},{"$f":"IF('2011 Survey responses'!DK9<0.5,\"\",'2011 Survey responses'!DK9)","v":""},{"$f":"IF('2011 Survey responses'!DL9<0.5,\"\",'2011 Survey responses'!DL9)","v":""},{"$f":"IF('2011 Survey responses'!DU9=4,4,IF('2011 Survey responses'!DU9=5,4,\"\"))","v":""},{"$f":"IF('2011 Survey responses'!DV9=4,3,IF('2011 Survey responses'!DV9=5,3,\"\"))","v":""},"",{"$f":"IF(CQ9=2,CQ9,IF(CO9=4,CO9,IF(CP9=3,CP9,IF('2011 Survey responses'!GT9=1,1,\"\"))))","v":""},{"$f":"IF('2011 Survey responses'!DO9<0.5,\"\",'2011 Survey responses'!DO9)","v":""},{"$f":"IF('2011 Survey responses'!DP9<0.5,\"\",'2011 Survey responses'!DP9)","v":""},{"$f":"IF('2011 Survey responses'!DQ9<0.5,\"\",'2011 Survey responses'!DQ9)","v":""},{"$f":"IF('2011 Survey responses'!DR9<0.5,\"\",'2011 Survey responses'!DR9)","v":""},{"$f":"IF('2011 Survey responses'!DS9<0.5,\"\",'2011 Survey responses'!DS9)","v":""},{"$f":"IF('2011 Survey responses'!DT9<0.5,\"\",'2011 Survey responses'!DT9)","v":""},{"$f":"IF('2011 Survey responses'!DU9<0.5,\"\",'2011 Survey responses'!DU9)","v":""},{"$f":"IF('2011 Survey responses'!DV9<0.5,\"\",'2011 Survey responses'!DV9)","v":""},{"$f":"IF('2011 Survey responses'!DW9<0.5,\"\",'2011 Survey responses'!DW9)","v":""},{"$f":"IF('2011 Survey responses'!DX9<0.5,\"\",'2011 Survey responses'!DX9)","v":""},{"$f":"IF('2011 Survey responses'!DY9<0.5,\"\",'2011 Survey responses'!DY9)","v":""},{"$f":"IF('2011 Survey responses'!DZ9<0.5,\"\",'2011 Survey responses'!DZ9)","v":""},{"$f":"IF('2011 Survey responses'!EA9<0.5,\"\",'2011 Survey responses'!EA9)","v":""},{"$f":"IF('2011 Survey responses'!EB9<0.5,\"\",'2011 Survey responses'!EB9)","v":""},{"$f":"IF('2011 Survey responses'!EC9<0.5,\"\",'2011 Survey responses'!EC9)","v":""},{"$f":"IF('2011 Survey responses'!ED9<0.5,\"\",'2011 Survey responses'!ED9)","v":""},{"$f":"IF('2011 Survey responses'!EE9<0.5,\"\",'2011 Survey responses'!EE9)","v":""},{"$f":"IF('2011 Survey responses'!EF9<0.5,\"\",'2011 Survey responses'!EF9)","v":""},{"$f":"IF('2011 Survey responses'!EG9<0.5,\"\",'2011 Survey responses'!EG9)","v":""},{"$f":"IF('2011 Survey responses'!EH9<0.5,\"\",'2011 Survey responses'!EH9)","v":""},{"$f":"IF('2011 Survey responses'!EI9<0.5,\"\",'2011 Survey responses'!EI9)","v":""},{"$f":"IF('2011 Survey responses'!EJ9<0.5,\"\",'2011 Survey responses'!EJ9)","v":""},{"$f":"IF('2011 Survey responses'!EK9<0.5,\"\",'2011 Survey responses'!EK9)","v":""},{"$f":"IF('2011 Survey responses'!EL9<0.5,\"\",'2011 Survey responses'!EL9)","v":""},{"$f":"IF('2011 Survey responses'!EM9<0.5,\"\",'2011 Survey responses'!EM9)","v":""},{"$f":"IF('2011 Survey responses'!EN9<0.5,\"\",'2011 Survey responses'!EN9)","v":""},{"$f":"IF('2011 Survey responses'!EO9<0.5,\"\",'2011 Survey responses'!EO9)","v":""},{"$f":"IF('2011 Survey responses'!EP9<0.5,\"\",'2011 Survey responses'!EP9)","v":""},{"$f":"IF(('2011 Survey responses'!EW9+'2011 Survey responses'!EX9)>=2,AVERAGE('2011 Survey responses'!EW9,'2011 Survey responses'!EY9),\"\")","v":""},{"$f":"IF('2011 Survey responses'!EX9<0.5,\"\",'2011 Survey responses'!EX9)","v":""},{"$f":"IF('2011 Survey responses'!EZ9<0.5,\"\",'2011 Survey responses'!EZ9)","v":""},{"$f":"IF('2011 Survey responses'!FB9<0.5,\"\",'2011 Survey responses'!FB9)","v":""},{"$f":"IF('2011 Survey responses'!FD9<0.5,\"\",'2011 Survey responses'!FD9)","v":""},{"$f":"IF('2011 Survey responses'!FC9<0.5,\"\",'2011 Survey responses'!FC9)","v":""},{"$f":"IF(('2011 Survey responses'!EM9+'2011 Survey responses'!EN9)>=2,AVERAGE('2011 Survey responses'!EM9,'2011 Survey responses'!EN9),\"\")","v":""},{"$f":"IF('2011 Survey responses'!ES9<0.5,\"\",'2011 Survey responses'!ES9)","v":""},{"$f":"IF(('2011 Survey responses'!ET9+'2011 Survey responses'!EU9)>=2,AVERAGE('2011 Survey responses'!ET9,'2011 Survey responses'!EU9),\"\")","v":""},{"$f":"IF('2011 Survey responses'!EV9<0.5,\"\",'2011 Survey responses'!EV9)","v":""},{"$f":"IF('2011 Survey responses'!FA9<0.5,\"\",'2011 Survey responses'!FA9)","v":""},{"$f":"IF('2011 Survey responses'!ER9<0.5,\"\",'2011 Survey responses'!ER9)","v":""},{"$f":"IF(('2011 Survey responses'!EO9+'2011 Survey responses'!EP9)>=2,AVERAGE('2011 Survey responses'!EO9,'2011 Survey responses'!EP9),\"\")","v":""},{"$f":"IF('2011 Survey responses'!EQ9<0.5,\"\",'2011 Survey responses'!EQ9)","v":""},{"$f":"IF('2011 Survey responses'!ET9<0.5,\"\",'2011 Survey responses'!ET9)","v":""},{"$f":"IF('2011 Survey responses'!EU9<0.5,\"\",'2011 Survey responses'!EU9)","v":""},{"$f":"IF('2011 Survey responses'!EW9<0.5,\"\",'2011 Survey responses'!EW9)","v":""},{"$f":"IF('2011 Survey responses'!EY9<0.5,\"\",'2011 Survey responses'!EY9)","v":""},{"$f":"IF('2011 Survey responses'!FU9<0.5,\"\",'2011 Survey responses'!FU9)","v":""},{"$f":"IF(('2011 Survey responses'!FL9+'2011 Survey responses'!FM9)>=2,AVERAGE('2011 Survey responses'!FL9,'2011 Survey responses'!FM9),\"\")","v":""},{"$f":"IF(('2011 Survey responses'!FO9+'2011 Survey responses'!FQ9)>=2,AVERAGE('2011 Survey responses'!FO9,'2011 Survey responses'!FQ9),\"\")","v":""},{"$f":"IF('2011 Survey responses'!FJ9<0.5,\"\",'2011 Survey responses'!FJ9)","v":""},{"$f":"IF('2011 Survey responses'!FT9<0.5,\"\",'2011 Survey responses'!FT9)","v":""},{"$f":"IF('2011 Survey responses'!FR9<0.5,\"\",'2011 Survey responses'!FR9)","v":""},{"$f":"IF('2011 Survey responses'!FK9<0.5,\"\",'2011 Survey responses'!FK9)","v":""},{"$f":"IF('2011 Survey responses'!FP9<0.5,\"\",'2011 Survey responses'!FP9)","v":""},{"$f":"IF('2011 Survey responses'!FN9<0.5,\"\",'2011 Survey responses'!FN9)","v":""},{"$f":"IF(('2011 Survey responses'!FE9+'2011 Survey responses'!FF9)>=2,AVERAGE('2011 Survey responses'!FE9,'2011 Survey responses'!FF9),\"\")","v":""},{"$f":"IF('2011 Survey responses'!FS9<0.5,\"\",'2011 Survey responses'!FS9)","v":""},{"$f":"IF('2011 Survey responses'!FV9<0.5,\"\",'2011 Survey responses'!FV9)","v":""},{"$f":"IF(('2011 Survey responses'!FG9+'2011 Survey responses'!FH9)>=2,AVERAGE('2011 Survey responses'!FG9,'2011 Survey responses'!FH9),\"\")","v":""},{"$f":"IF('2011 Survey responses'!FI9<0.5,\"\",'2011 Survey responses'!FI9)","v":""},{"$f":"IF('2011 Survey responses'!FE9<0.5,\"\",'2011 Survey responses'!FE9)","v":""},{"$f":"IF('2011 Survey responses'!FF9<0.5,\"\",'2011 Survey responses'!FF9)","v":""},{"$f":"IF('2011 Survey responses'!FG9<0.5,\"\",'2011 Survey responses'!FG9)","v":""},{"$f":"IF('2011 Survey responses'!FH9<0.5,\"\",'2011 Survey responses'!FH9)","v":""},{"$f":"IF('2011 Survey responses'!FL9<0.5,\"\",'2011 Survey responses'!FL9)","v":""},{"$f":"IF('2011 Survey responses'!FM9<0.5,\"\",'2011 Survey responses'!FM9)","v":""},{"$f":"IF('2011 Survey responses'!FO9<0.5,\"\",'2011 Survey responses'!FO9)","v":""},{"$f":"IF('2011 Survey responses'!FQ9<0.5,\"\",'2011 Survey responses'!FQ9)","v":""}]
["Armenia",{"$f":"IF(SUM(F10)<1,\"\",AVERAGEIF('2011 Survey responses'!B10:CP10,\">1\"))","v":2.3255813953488373},{"$f":"IF(SUM(F10)<1,\"\",AVERAGEIF('2011 Survey responses'!B10:AO10,\">1\"))","v":2.5750000000000002},{"$f":"IF(SUM(F10)<1,\"\",AVERAGEIF('2011 Survey responses'!B10:BV10,\">1\"))","v":2.4},{"$f":"IF(SUM(F10)<1,\"\",AVERAGEIF('2011 Survey responses'!V10:BV10,\">1\"))","v":2.2000000000000002},{"$f":"IF(SUM('2011 Survey responses'!B10:U10)<1,\"\",(AVERAGEIFS('2011 Survey responses'!B10:U10,'2011 Survey responses'!B10:U10,\">1\")))","v":2.9},{"$f":"IF(SUM('2011 Survey responses'!B10:H10)<1,\"\",(AVERAGEIFS('2011 Survey responses'!B10:H10,'2011 Survey responses'!B10:H10,\">1\")))","v":3.5714285714285716},{"$f":"IF(SUM('2011 Survey responses'!I10:S10)<1,\"\",(AVERAGEIFS('2011 Survey responses'!I10:S10,'2011 Survey responses'!I10:S10,\">1\")))","v":2.6363636363636362},{"$f":"IF(SUM('2011 Survey responses'!T10:U10)<2.1,\"\",(AVERAGEIFS('2011 Survey responses'!T10:U10,'2011 Survey responses'!T10:U10,\">1\")))","v":2},{"$f":"IF(SUM('2011 Survey responses'!B10:C10)<2.1,\"\",((SUMIF('2011 Survey responses'!B10:C10,\">1\")+SUMIF('2011 Survey responses'!F10,\">1\"))/(COUNTIF('2011 Survey responses'!B10:C10,\">1\")+COUNTIF('2011 Survey responses'!F10,\">1\"))))","v":4},{"$f":"IF(SUM('2011 Survey responses'!D10:E10)<2.1,\"\",(AVERAGEIFS('2011 Survey responses'!D10:E10,'2011 Survey responses'!D10:E10,\">1\")))","v":3.5},{"$f":"IF(('2011 Survey responses'!B10+'2011 Survey responses'!D10)<2.1,\"\",((SUMIF('2011 Survey responses'!B10,\">1\")+SUMIF('2011 Survey responses'!D10,\">1\")+SUMIF('2011 Survey responses'!F10,\">1\")+SUMIF('2011 Survey responses'!K10,\">1\"))/(COUNTIF('2011 Survey responses'!B10,\">1\")+COUNTIF('2011 Survey responses'!D10,\">1\")+COUNTIF('2011 Survey responses'!F10,\">1\")+COUNTIF('2011 Survey responses'!K10,\">1\"))))","v":4.25},{"$f":"IF(SUM('2011 Survey responses'!G10:H10)<2.1,\"\",(AVERAGEIFS('2011 Survey responses'!G10:H10,'2011 Survey responses'!G10:H10,\">1\")))","v":3},{"$f":"IF(SUM('2011 Survey responses'!F10:G10)<1.5,\"\",MAX('2011 Survey responses'!F10,'2011 Survey responses'!G10))","v":5},{"$f":"IF(SUM('2011 Survey responses'!G10:H10)<1,\"\",MAX('2011 Survey responses'!G10,'2011 Survey responses'!H10))","v":4},{"$f":"IF(SUM('2011 Survey responses'!I10:L10)<4.1,\"\",(AVERAGEIFS('2011 Survey responses'!I10:L10,'2011 Survey responses'!I10:L10,\">1\")))","v":2.75},{"$f":"IF(SUM('2011 Survey responses'!M10:S10)<4.1,\"\",(AVERAGEIFS('2011 Survey responses'!M10:S10,'2011 Survey responses'!M10:S10,\">1\")))","v":2.5714285714285716},{"$f":"IF(SUM('2011 Survey responses'!T10:U10)<2.1,\"\",(AVERAGEIFS('2011 Survey responses'!T10:U10,'2011 Survey responses'!T10:U10,\">1\")))","v":2},{"$f":"IF(SUM('2011 Survey responses'!V10:AO10)<1,\"\",(AVERAGEIFS('2011 Survey responses'!V10:AO10,'2011 Survey responses'!V10:AO10,\">1\")))","v":2.25},{"$f":"IF(SUM('2011 Survey responses'!V10:AA10)<1,\"\",(AVERAGEIFS('2011 Survey responses'!V10:AA10,'2011 Survey responses'!V10:AA10,\">1\")))","v":2},{"$f":"IF(SUM('2011 Survey responses'!AB10:AH10)<1,\"\",(AVERAGEIFS('2011 Survey responses'!AB10:AH10,'2011 Survey responses'!AB10:AH10,\">1\")))","v":2.5714285714285716},{"$f":"IF(SUM('2011 Survey responses'!AI10:AO10)<1,\"\",(AVERAGEIFS('2011 Survey responses'!AI10:AO10,'2011 Survey responses'!AI10:AO10,\">1\")))","v":2.1428571428571428},{"$f":"IF(('2011 Survey responses'!Y10+'2011 Survey responses'!AI10+'2011 Survey responses'!AK10)<3.1,\"\",((SUMIF('2011 Survey responses'!Y10,\">1\")+SUMIF('2011 Survey responses'!AI10,\">1\")+SUMIF('2011 Survey responses'!AK10,\">1\")+SUMIF('2011 Survey responses'!AM10,\">1\"))/(COUNTIF('2011 Survey responses'!Y10,\">1\")+COUNTIF('2011 Survey responses'!AI10,\">1\")+COUNTIF('2011 Survey responses'!AK10,\">1\")+COUNTIF('2011 Survey responses'!AM10,\">1\"))))","v":2.25},{"$f":"IF(('2011 Survey responses'!W10)<1.1,\"\",('2011 Survey responses'!W10))","v":2},{"$f":"IF(('2011 Survey responses'!Y10)<1.1,\"\",('2011 Survey responses'!Y10))","v":2},{"$f":"IF(('2011 Survey responses'!Z10)<1.1,\"\",('2011 Survey responses'!Z10))","v":2},{"$f":"IF(('2011 Survey responses'!V10+'2011 Survey responses'!X10+'2011 Survey responses'!AA10)<3.1,\"\",((SUMIF('2011 Survey responses'!V10,\">1\")+SUMIF('2011 Survey responses'!X10,\">1\")+SUMIF('2011 Survey responses'!AA10,\">1\"))/(COUNTIF('2011 Survey responses'!V10,\">1\")+COUNTIF('2011 Survey responses'!X10,\">1\")+COUNTIF('2011 Survey responses'!AA10,\">1\"))))","v":2},{"$f":"IF(('2011 Survey responses'!V10+'2011 Survey responses'!Y10+'2011 Survey responses'!AA10)<3.1,\"\",((SUMIF('2011 Survey responses'!V10,\">1\")+SUMIF('2011 Survey responses'!Y10,\">1\")+SUMIF('2011 Survey responses'!AA10,\">1\"))/(COUNTIF('2011 Survey responses'!V10,\">1\")+COUNTIF('2011 Survey responses'!Y10,\">1\")+COUNTIF('2011 Survey responses'!AA10,\">1\"))))","v":2},{"$f":"IF(SUM('2011 Survey responses'!AB10:AH10)<1,\"\",(AVERAGEIFS('2011 Survey responses'!AB10:AH10,'2011 Survey responses'!AB10:AH10,\">1\")))","v":2.5714285714285716},{"$f":"IF(SUM('2011 Survey responses'!AI10:AO10)<7.1,\"\",(AVERAGEIFS('2011 Survey responses'!AI10:AO10,'2011 Survey responses'!AI10:AO10,\">1\")))","v":2.1428571428571428},{"$f":"IF(('2011 Survey responses'!AH10)<1.1,\"\",('2011 Survey responses'!AH10))","v":2},{"$f":"IF(SUM('2011 Survey responses'!AP10:BV10)<1,\"\",(AVERAGEIFS('2011 Survey responses'!AP10:BV10,'2011 Survey responses'!AP10:BV10,\">1\")))","v":2.1666666666666665},{"$f":"IF(SUM('2011 Survey responses'!AP10:AS10)<4.1,\"\",(AVERAGEIFS('2011 Survey responses'!AP10:AS10,'2011 Survey responses'!AP10:AS10,\">1\")))","v":2},{"$f":"IF(SUM('2011 Survey responses'!AT10:BF10)<1,\"\",(AVERAGEIFS('2011 Survey responses'!AT10:BF10,'2011 Survey responses'!AT10:BF10,\">1\")))","v":2.0769230769230771},{"$f":"IF(SUM('2011 Survey responses'!BG10:BO10)<1,\"\",(AVERAGEIFS('2011 Survey responses'!BG10:BO10,'2011 Survey responses'!BG10:BO10,\">1\")))","v":2.5},{"$f":"IF(SUM('2011 Survey responses'!BP10:BS10)<1,\"\",(AVERAGEIFS('2011 Survey responses'!BP10:BS10,'2011 Survey responses'!BP10:BS10,\">1\")))","v":2},{"$f":"IF(SUM('2011 Survey responses'!BT10:BV10)<3.1,\"\",(AVERAGEIFS('2011 Survey responses'!BT10:BV10,'2011 Survey responses'!BT10:BV10,\">1\")))","v":2},{"$f":"IF(('2011 Survey responses'!AQ10+'2011 Survey responses'!AR10+'2011 Survey responses'!BG10)<3.1,\"\",((SUMIF('2011 Survey responses'!AQ10,\">1\")+SUMIF('2011 Survey responses'!AR10,\">1\")+SUMIF('2011 Survey responses'!BG10,\">1\"))/(COUNTIF('2011 Survey responses'!AQ10,\">1\")+COUNTIF('2011 Survey responses'!AR10,\">1\")+COUNTIF('2011 Survey responses'!BG10,\">1\"))))","v":2.3333333333333335},{"$f":"IF(SUM('2011 Survey responses'!AP10:AS10)<4.1,\"\",(AVERAGEIFS('2011 Survey responses'!AP10:AS10,'2011 Survey responses'!AP10:AS10,\">1\")))","v":2},{"$f":"IF(('2011 Survey responses'!AU10+'2011 Survey responses'!AX10+'2011 Survey responses'!BA10+'2011 Survey responses'!BC10+'2011 Survey responses'!BD10)<5.1,\"\",(SUMIF('2011 Survey responses'!AU10,\">1\")+SUMIF('2011 Survey responses'!AX10,\">1\")+SUMIF('2011 Survey responses'!BA10,\">1\")+SUMIF('2011 Survey responses'!BC10,\">1\")+SUMIF('2011 Survey responses'!BD10,\">1\"))/(COUNTIF('2011 Survey responses'!AU10,\">1\")+COUNTIF('2011 Survey responses'!AX10,\">1\")+COUNTIF('2011 Survey responses'!BA10,\">1\")+COUNTIF('2011 Survey responses'!BC10,\">1\")+COUNTIF('2011 Survey responses'!BD10,\">1\")))","v":2},{"$f":"IF(('2011 Survey responses'!AT10)<1.1,\"\",('2011 Survey responses'!AT10))","v":2},{"$f":"IF(SUM('2011 Survey responses'!AV10:AW10)<2.1,\"\",(AVERAGEIFS('2011 Survey responses'!AV10:AW10,'2011 Survey responses'!AV10:AW10,\">1\")))","v":2},{"$f":"IF(('2011 Survey responses'!AW10+'2011 Survey responses'!AY10)<2.1,\"\",(SUMIF('2011 Survey responses'!AW10,\">1\")+SUMIF('2011 Survey responses'!AY10,\">1\"))/(COUNTIF('2011 Survey responses'!AW10,\">1\")+COUNTIF('2011 Survey responses'!AY10,\">1\")))","v":2},{"$f":"IF(('2011 Survey responses'!AZ10)<1.1,\"\",('2011 Survey responses'!AZ10))","v":3},3,2,1,2,{"$f":"IF(('2011 Survey responses'!BE10)<1.1,\"\",('2011 Survey responses'!BE10))","v":2},{"$f":"IF(('2011 Survey responses'!AY10+'2011 Survey responses'!BB10+'2011 Survey responses'!BF10)<3.1,\"\",(SUMIF('2011 Survey responses'!AY10,\">1\")+SUMIF('2011 Survey responses'!BB10,\">1\")+SUMIF('2011 Survey responses'!BF10,\">1\"))/(COUNTIF('2011 Survey responses'!AY10,\">1\")+COUNTIF('2011 Survey responses'!BB10,\">1\")+COUNTIF('2011 Survey responses'!BF10,\">1\")))","v":2},2.25,{"$f":"IF(SUM('2011 Survey responses'!BT10:BV10)<3.1,\"\",(AVERAGEIFS('2011 Survey responses'!BT10:BV10,'2011 Survey responses'!BT10:BV10,\">1\")))","v":2},{"$f":"IF(SUM('2011 Survey responses'!BW10:CP10)<1,\"\",(AVERAGEIFS('2011 Survey responses'!BW10:CP10,'2011 Survey responses'!BW10:CP10,\">1\")))","v":2},{"$f":"IF(SUM('2011 Survey responses'!BW10:CF10)<1,\"\",(AVERAGEIFS('2011 Survey responses'!BW10:CF10,'2011 Survey responses'!BW10:CF10,\">1\")))","v":2},{"$f":"IF(SUM('2011 Survey responses'!CG10:CP10)<1,\"\",(AVERAGEIFS('2011 Survey responses'!CG10:CP10,'2011 Survey responses'!CG10:CP10,\">1\")))","v":2},{"$f":"IF(SUM('2011 Survey responses'!BX10:CF10)<1,\"\",(AVERAGEIFS('2011 Survey responses'!BX10:CF10,'2011 Survey responses'!BX10:CF10,\">1\")))","v":2},{"$f":"IF(SUM('2011 Survey responses'!CH10:CP10)<1,\"\",(AVERAGEIFS('2011 Survey responses'!CH10:CP10,'2011 Survey responses'!CH10:CP10,\">1\")))","v":2},{"$f":"IF(SUM('2011 Survey responses'!BW10:CP10)<1,\"\",(AVERAGEIFS('2011 Survey responses'!BW10:CP10,'2011 Survey responses'!BW10:CP10,\">1\")))","v":2},{"$f":"IF(('2011 Survey responses'!BW10+'2011 Survey responses'!CG10)<2.1,\"\",(SUMIF('2011 Survey responses'!BW10,\">1\")+SUMIF('2011 Survey responses'!CG10,\">1\"))/(COUNTIF('2011 Survey responses'!BW10,\">1\")+COUNTIF('2011 Survey responses'!CG10,\">1\")))","v":2},{"$f":"IF(('2011 Survey responses'!BX10+'2011 Survey responses'!CH10)<2.1,\"\",(SUMIF('2011 Survey responses'!BX10,\">1\")+SUMIF('2011 Survey responses'!CH10,\">1\"))/(COUNTIF('2011 Survey responses'!BX10,\">1\")+COUNTIF('2011 Survey responses'!CH10,\">1\")))","v":2},{"$f":"IF(('2011 Survey responses'!BY10+'2011 Survey responses'!CI10)<2.1,\"\",(SUMIF('2011 Survey responses'!BY10,\">1\")+SUMIF('2011 Survey responses'!CI10,\">1\"))/(COUNTIF('2011 Survey responses'!BY10,\">1\")+COUNTIF('2011 Survey responses'!CI10,\">1\")))","v":2},{"$f":"IF('2011 Survey responses'!CQ10<0.5,\"\",'2011 Survey responses'!CQ10)","v":3},{"$f":"IF('2011 Survey responses'!CR10<0.5,\"\",'2011 Survey responses'!CR10)","v":4},{"$f":"IF('2011 Survey responses'!CS10<0.5,\"\",'2011 Survey responses'!CS10)","v":4},{"$f":"IF('2011 Survey responses'!CT10<0.5,\"\",'2011 Survey responses'!CT10)","v":2},{"$f":"IF('2011 Survey responses'!CU10<0.5,\"\",'2011 Survey responses'!CU10)","v":2},{"$f":"IF('2011 Survey responses'!CV10<0.5,\"\",'2011 Survey responses'!CV10)","v":1},{"$f":"IF(SUM('2011 Survey responses'!CW10:DL10)<1,\"\",(AVERAGE('2011 Survey responses'!CW10:DL10)))","v":2.5},{"$f":"IF(SUM('2011 Survey responses'!CW10:CZ10)<1,\"\",(AVERAGE('2011 Survey responses'!CW10:CZ10)))","v":3},{"$f":"IF(SUM('2011 Survey responses'!DA10:DD10)<1,\"\",(AVERAGE('2011 Survey responses'!DA10:DD10)))","v":3},{"$f":"IF(SUM('2011 Survey responses'!DE10:DH10)<1,\"\",(AVERAGE('2011 Survey responses'!DE10:DH10)))","v":2},{"$f":"IF(SUM('2011 Survey responses'!DI10:DL10)<1,\"\",(AVERAGE('2011 Survey responses'!DI10:DL10)))","v":2},{"$f":"IF(('2011 Survey responses'!CW10+'2011 Survey responses'!DA10+'2011 Survey responses'!DE10+'2011 Survey responses'!DI10)<1,\"\",AVERAGE('2011 Survey responses'!CW10,'2011 Survey responses'!DA10,'2011 Survey responses'!DE10,'2011 Survey responses'!DI10))","v":2.5},{"$f":"IF(('2011 Survey responses'!CX10+'2011 Survey responses'!DB10+'2011 Survey responses'!DF10+'2011 Survey responses'!DJ10)<1,\"\",AVERAGE('2011 Survey responses'!CX10,'2011 Survey responses'!DB10,'2011 Survey responses'!DF10,'2011 Survey responses'!DJ10))","v":2.5},{"$f":"IF(('2011 Survey responses'!CY10+'2011 Survey responses'!DC10+'2011 Survey responses'!DG10+'2011 Survey responses'!DK10)<1,\"\",AVERAGE('2011 Survey responses'!CY10,'2011 Survey responses'!DC10,'2011 Survey responses'!DG10,'2011 Survey responses'!DK10))","v":2.5},{"$f":"IF(('2011 Survey responses'!CZ10+'2011 Survey responses'!DD10+'2011 Survey responses'!DH10+'2011 Survey responses'!DL10)<1,\"\",AVERAGE('2011 Survey responses'!CZ10,'2011 Survey responses'!DD10,'2011 Survey responses'!DH10,'2011 Survey responses'!DL10))","v":2.5},{"$f":"IF('2011 Survey responses'!CW10<0.5,\"\",'2011 Survey responses'!CW10)","v":3},{"$f":"IF('2011 Survey responses'!CX10<0.5,\"\",'2011 Survey responses'!CX10)","v":3},{"$f":"IF('2011 Survey responses'!CY10<0.5,\"\",'2011 Survey responses'!CY10)","v":3},{"$f":"IF('2011 Survey responses'!CZ10<0.5,\"\",'2011 Survey responses'!CZ10)","v":3},{"$f":"IF('2011 Survey responses'!DA10<0.5,\"\",'2011 Survey responses'!DA10)","v":3},{"$f":"IF('2011 Survey responses'!DB10<0.5,\"\",'2011 Survey responses'!DB10)","v":3},{"$f":"IF('2011 Survey responses'!DC10<0.5,\"\",'2011 Survey responses'!DC10)","v":3},{"$f":"IF('2011 Survey responses'!DD10<0.5,\"\",'2011 Survey responses'!DD10)","v":3},{"$f":"IF('2011 Survey responses'!DE10<0.5,\"\",'2011 Survey responses'!DE10)","v":2},{"$f":"IF('2011 Survey responses'!DF10<0.5,\"\",'2011 Survey responses'!DF10)","v":2},{"$f":"IF('2011 Survey responses'!DG10<0.5,\"\",'2011 Survey responses'!DG10)","v":2},{"$f":"IF('2011 Survey responses'!DH10<0.5,\"\",'2011 Survey responses'!DH10)","v":2},{"$f":"IF('2011 Survey responses'!DI10<0.5,\"\",'2011 Survey responses'!DI10)","v":2},{"$f":"IF('2011 Survey responses'!DJ10<0.5,\"\",'2011 Survey responses'!DJ10)","v":2},{"$f":"IF('2011 Survey responses'!DK10<0.5,\"\",'2011 Survey responses'!DK10)","v":2},{"$f":"IF('2011 Survey responses'!DL10<0.5,\"\",'2011 Survey responses'!DL10)","v":2},{"$f":"IF('2011 Survey responses'!DU10=4,4,IF('2011 Survey responses'!DU10=5,4,\"\"))","v":""},{"$f":"IF('2011 Survey responses'!DV10=4,3,IF('2011 Survey responses'!DV10=5,3,\"\"))","v":""},"",{"$f":"IF(CQ10=2,CQ10,IF(CO10=4,CO10,IF(CP10=3,CP10,IF('2011 Survey responses'!GT10=1,1,\"\"))))","v":1},{"$f":"IF('2011 Survey responses'!DO10<0.5,\"\",'2011 Survey responses'!DO10)","v":4},{"$f":"IF('2011 Survey responses'!DP10<0.5,\"\",'2011 Survey responses'!DP10)","v":3},{"$f":"IF('2011 Survey responses'!DQ10<0.5,\"\",'2011 Survey responses'!DQ10)","v":2},{"$f":"IF('2011 Survey responses'!DR10<0.5,\"\",'2011 Survey responses'!DR10)","v":2},{"$f":"IF('2011 Survey responses'!DS10<0.5,\"\",'2011 Survey responses'!DS10)","v":4},{"$f":"IF('2011 Survey responses'!DT10<0.5,\"\",'2011 Survey responses'!DT10)","v":2},{"$f":"IF('2011 Survey responses'!DU10<0.5,\"\",'2011 Survey responses'!DU10)","v":2},{"$f":"IF('2011 Survey responses'!DV10<0.5,\"\",'2011 Survey responses'!DV10)","v":3},{"$f":"IF('2011 Survey responses'!DW10<0.5,\"\",'2011 Survey responses'!DW10)","v":4},{"$f":"IF('2011 Survey responses'!DX10<0.5,\"\",'2011 Survey responses'!DX10)","v":4},{"$f":"IF('2011 Survey responses'!DY10<0.5,\"\",'2011 Survey responses'!DY10)","v":3},{"$f":"IF('2011 Survey responses'!DZ10<0.5,\"\",'2011 Survey responses'!DZ10)","v":3},{"$f":"IF('2011 Survey responses'!EA10<0.5,\"\",'2011 Survey responses'!EA10)","v":4},{"$f":"IF('2011 Survey responses'!EB10<0.5,\"\",'2011 Survey responses'!EB10)","v":4},{"$f":"IF('2011 Survey responses'!EC10<0.5,\"\",'2011 Survey responses'!EC10)","v":3},{"$f":"IF('2011 Survey responses'!ED10<0.5,\"\",'2011 Survey responses'!ED10)","v":3},{"$f":"IF('2011 Survey responses'!EE10<0.5,\"\",'2011 Survey responses'!EE10)","v":4},{"$f":"IF('2011 Survey responses'!EF10<0.5,\"\",'2011 Survey responses'!EF10)","v":3},{"$f":"IF('2011 Survey responses'!EG10<0.5,\"\",'2011 Survey responses'!EG10)","v":3},{"$f":"IF('2011 Survey responses'!EH10<0.5,\"\",'2011 Survey responses'!EH10)","v":3},{"$f":"IF('2011 Survey responses'!EI10<0.5,\"\",'2011 Survey responses'!EI10)","v":4},{"$f":"IF('2011 Survey responses'!EJ10<0.5,\"\",'2011 Survey responses'!EJ10)","v":4},{"$f":"IF('2011 Survey responses'!EK10<0.5,\"\",'2011 Survey responses'!EK10)","v":3},{"$f":"IF('2011 Survey responses'!EL10<0.5,\"\",'2011 Survey responses'!EL10)","v":3},{"$f":"IF('2011 Survey responses'!EM10<0.5,\"\",'2011 Survey responses'!EM10)","v":4},{"$f":"IF('2011 Survey responses'!EN10<0.5,\"\",'2011 Survey responses'!EN10)","v":3},{"$f":"IF('2011 Survey responses'!EO10<0.5,\"\",'2011 Survey responses'!EO10)","v":3},{"$f":"IF('2011 Survey responses'!EP10<0.5,\"\",'2011 Survey responses'!EP10)","v":2},{"$f":"IF(('2011 Survey responses'!EW10+'2011 Survey responses'!EX10)>=2,AVERAGE('2011 Survey responses'!EW10,'2011 Survey responses'!EY10),\"\")","v":3.5},{"$f":"IF('2011 Survey responses'!EX10<0.5,\"\",'2011 Survey responses'!EX10)","v":4},{"$f":"IF('2011 Survey responses'!EZ10<0.5,\"\",'2011 Survey responses'!EZ10)","v":3},{"$f":"IF('2011 Survey responses'!FB10<0.5,\"\",'2011 Survey responses'!FB10)","v":3},{"$f":"IF('2011 Survey responses'!FD10<0.5,\"\",'2011 Survey responses'!FD10)","v":3},{"$f":"IF('2011 Survey responses'!FC10<0.5,\"\",'2011 Survey responses'!FC10)","v":3},{"$f":"IF(('2011 Survey responses'!EM10+'2011 Survey responses'!EN10)>=2,AVERAGE('2011 Survey responses'!EM10,'2011 Survey responses'!EN10),\"\")","v":3.5},{"$f":"IF('2011 Survey responses'!ES10<0.5,\"\",'2011 Survey responses'!ES10)","v":3},{"$f":"IF(('2011 Survey responses'!ET10+'2011 Survey responses'!EU10)>=2,AVERAGE('2011 Survey responses'!ET10,'2011 Survey responses'!EU10),\"\")","v":3},{"$f":"IF('2011 Survey responses'!EV10<0.5,\"\",'2011 Survey responses'!EV10)","v":3},{"$f":"IF('2011 Survey responses'!FA10<0.5,\"\",'2011 Survey responses'!FA10)","v":3},{"$f":"IF('2011 Survey responses'!ER10<0.5,\"\",'2011 Survey responses'!ER10)","v":3},{"$f":"IF(('2011 Survey responses'!EO10+'2011 Survey responses'!EP10)>=2,AVERAGE('2011 Survey responses'!EO10,'2011 Survey responses'!EP10),\"\")","v":2.5},{"$f":"IF('2011 Survey responses'!EQ10<0.5,\"\",'2011 Survey responses'!EQ10)","v":3},{"$f":"IF('2011 Survey responses'!ET10<0.5,\"\",'2011 Survey responses'!ET10)","v":3},{"$f":"IF('2011 Survey responses'!EU10<0.5,\"\",'2011 Survey responses'!EU10)","v":3},{"$f":"IF('2011 Survey responses'!EW10<0.5,\"\",'2011 Survey responses'!EW10)","v":3},{"$f":"IF('2011 Survey responses'!EY10<0.5,\"\",'2011 Survey responses'!EY10)","v":4},{"$f":"IF('2011 Survey responses'!FU10<0.5,\"\",'2011 Survey responses'!FU10)","v":4},{"$f":"IF(('2011 Survey responses'!FL10+'2011 Survey responses'!FM10)>=2,AVERAGE('2011 Survey responses'!FL10,'2011 Survey responses'!FM10),\"\")","v":4},{"$f":"IF(('2011 Survey responses'!FO10+'2011 Survey responses'!FQ10)>=2,AVERAGE('2011 Survey responses'!FO10,'2011 Survey responses'!FQ10),\"\")","v":4},{"$f":"IF('2011 Survey responses'!FJ10<0.5,\"\",'2011 Survey responses'!FJ10)","v":4},{"$f":"IF('2011 Survey responses'!FT10<0.5,\"\",'2011 Survey responses'!FT10)","v":4},{"$f":"IF('2011 Survey responses'!FR10<0.5,\"\",'2011 Survey responses'!FR10)","v":4},{"$f":"IF('2011 Survey responses'!FK10<0.5,\"\",'2011 Survey responses'!FK10)","v":4},{"$f":"IF('2011 Survey responses'!FP10<0.5,\"\",'2011 Survey responses'!FP10)","v":4},{"$f":"IF('2011 Survey responses'!FN10<0.5,\"\",'2011 Survey responses'!FN10)","v":4},{"$f":"IF(('2011 Survey responses'!FE10+'2011 Survey responses'!FF10)>=2,AVERAGE('2011 Survey responses'!FE10,'2011 Survey responses'!FF10),\"\")","v":4},{"$f":"IF('2011 Survey responses'!FS10<0.5,\"\",'2011 Survey responses'!FS10)","v":4},{"$f":"IF('2011 Survey responses'!FV10<0.5,\"\",'2011 Survey responses'!FV10)","v":4},{"$f":"IF(('2011 Survey responses'!FG10+'2011 Survey responses'!FH10)>=2,AVERAGE('2011 Survey responses'!FG10,'2011 Survey responses'!FH10),\"\")","v":4},{"$f":"IF('2011 Survey responses'!FI10<0.5,\"\",'2011 Survey responses'!FI10)","v":4},{"$f":"IF('2011 Survey responses'!FE10<0.5,\"\",'2011 Survey responses'!FE10)","v":4},{"$f":"IF('2011 Survey responses'!FF10<0.5,\"\",'2011 Survey responses'!FF10)","v":4},{"$f":"IF('2011 Survey responses'!FG10<0.5,\"\",'2011 Survey responses'!FG10)","v":4},{"$f":"IF('2011 Survey responses'!FH10<0.5,\"\",'2011 Survey responses'!FH10)","v":4},{"$f":"IF('2011 Survey responses'!FL10<0.5,\"\",'2011 Survey responses'!FL10)","v":4},{"$f":"IF('2011 Survey responses'!FM10<0.5,\"\",'2011 Survey responses'!FM10)","v":4},{"$f":"IF('2011 Survey responses'!FO10<0.5,\"\",'2011 Survey responses'!FO10)","v":4},{"$f":"IF('2011 Survey responses'!FQ10<0.5,\"\",'2011 Survey responses'!FQ10)","v":4}]
["Australia",{"$f":"IF(SUM(F11)<1,\"\",AVERAGEIF('2011 Survey responses'!B11:CP11,\">1\"))","v":5.475609756097561},{"$f":"IF(SUM(F11)<1,\"\",AVERAGEIF('2011 Survey responses'!B11:AO11,\">1\"))","v":5.0999999999999996},{"$f":"IF(SUM(F11)<1,\"\",AVERAGEIF('2011 Survey responses'!B11:BV11,\">1\"))","v":5.32258064516129},{"$f":"IF(SUM(F11)<1,\"\",AVERAGEIF('2011 Survey responses'!V11:BV11,\">1\"))","v":5.4489795918367347},{"$f":"IF(SUM('2011 Survey responses'!B11:U11)<1,\"\",(AVERAGEIFS('2011 Survey responses'!B11:U11,'2011 Survey responses'!B11:U11,\">1\")))","v":4.8461538461538458},{"$f":"IF(SUM('2011 Survey responses'!B11:H11)<1,\"\",(AVERAGEIFS('2011 Survey responses'!B11:H11,'2011 Survey responses'!B11:H11,\">1\")))","v":5.5},{"$f":"IF(SUM('2011 Survey responses'!I11:S11)<1,\"\",(AVERAGEIFS('2011 Survey responses'!I11:S11,'2011 Survey responses'!I11:S11,\">1\")))","v":4.2857142857142856},{"$f":"IF(SUM('2011 Survey responses'!T11:U11)<2.1,\"\",(AVERAGEIFS('2011 Survey responses'!T11:U11,'2011 Survey responses'!T11:U11,\">1\")))","v":""},{"$f":"IF(SUM('2011 Survey responses'!B11:C11)<2.1,\"\",((SUMIF('2011 Survey responses'!B11:C11,\">1\")+SUMIF('2011 Survey responses'!F11,\">1\"))/(COUNTIF('2011 Survey responses'!B11:C11,\">1\")+COUNTIF('2011 Survey responses'!F11,\">1\"))))","v":5.666666666666667},{"$f":"IF(SUM('2011 Survey responses'!D11:E11)<2.1,\"\",(AVERAGEIFS('2011 Survey responses'!D11:E11,'2011 Survey responses'!D11:E11,\">1\")))","v":5.5},{"$f":"IF(('2011 Survey responses'!B11+'2011 Survey responses'!D11)<2.1,\"\",((SUMIF('2011 Survey responses'!B11,\">1\")+SUMIF('2011 Survey responses'!D11,\">1\")+SUMIF('2011 Survey responses'!F11,\">1\")+SUMIF('2011 Survey responses'!K11,\">1\"))/(COUNTIF('2011 Survey responses'!B11,\">1\")+COUNTIF('2011 Survey responses'!D11,\">1\")+COUNTIF('2011 Survey responses'!F11,\">1\")+COUNTIF('2011 Survey responses'!K11,\">1\"))))","v":5.75},{"$f":"IF(SUM('2011 Survey responses'!G11:H11)<2.1,\"\",(AVERAGEIFS('2011 Survey responses'!G11:H11,'2011 Survey responses'!G11:H11,\">1\")))","v":5},{"$f":"IF(SUM('2011 Survey responses'!F11:G11)<1.5,\"\",MAX('2011 Survey responses'!F11,'2011 Survey responses'!G11))","v":5},{"$f":"IF(SUM('2011 Survey responses'!G11:H11)<1,\"\",MAX('2011 Survey responses'!G11,'2011 Survey responses'!H11))","v":5},{"$f":"IF(SUM('2011 Survey responses'!I11:L11)<4.1,\"\",(AVERAGEIFS('2011 Survey responses'!I11:L11,'2011 Survey responses'!I11:L11,\">1\")))","v":5.5},{"$f":"IF(SUM('2011 Survey responses'!M11:S11)<4.1,\"\",(AVERAGEIFS('2011 Survey responses'!M11:S11,'2011 Survey responses'!M11:S11,\">1\")))","v":3.8},{"$f":"IF(SUM('2011 Survey responses'!T11:U11)<2.1,\"\",(AVERAGEIFS('2011 Survey responses'!T11:U11,'2011 Survey responses'!T11:U11,\">1\")))","v":""},{"$f":"IF(SUM('2011 Survey responses'!V11:AO11)<1,\"\",(AVERAGEIFS('2011 Survey responses'!V11:AO11,'2011 Survey responses'!V11:AO11,\">1\")))","v":5.2941176470588234},{"$f":"IF(SUM('2011 Survey responses'!V11:AA11)<1,\"\",(AVERAGEIFS('2011 Survey responses'!V11:AA11,'2011 Survey responses'!V11:AA11,\">1\")))","v":6},{"$f":"IF(SUM('2011 Survey responses'!AB11:AH11)<1,\"\",(AVERAGEIFS('2011 Survey responses'!AB11:AH11,'2011 Survey responses'!AB11:AH11,\">1\")))","v":3.5},{"$f":"IF(SUM('2011 Survey responses'!AI11:AO11)<1,\"\",(AVERAGEIFS('2011 Survey responses'!AI11:AO11,'2011 Survey responses'!AI11:AO11,\">1\")))","v":5.7142857142857144},{"$f":"IF(('2011 Survey responses'!Y11+'2011 Survey responses'!AI11+'2011 Survey responses'!AK11)<3.1,\"\",((SUMIF('2011 Survey responses'!Y11,\">1\")+SUMIF('2011 Survey responses'!AI11,\">1\")+SUMIF('2011 Survey responses'!AK11,\">1\")+SUMIF('2011 Survey responses'!AM11,\">1\"))/(COUNTIF('2011 Survey responses'!Y11,\">1\")+COUNTIF('2011 Survey responses'!AI11,\">1\")+COUNTIF('2011 Survey responses'!AK11,\">1\")+COUNTIF('2011 Survey responses'!AM11,\">1\"))))","v":6},{"$f":"IF(('2011 Survey responses'!W11)<1.1,\"\",('2011 Survey responses'!W11))","v":6},{"$f":"IF(('2011 Survey responses'!Y11)<1.1,\"\",('2011 Survey responses'!Y11))","v":6},{"$f":"IF(('2011 Survey responses'!Z11)<1.1,\"\",('2011 Survey responses'!Z11))","v":6},{"$f":"IF(('2011 Survey responses'!V11+'2011 Survey responses'!X11+'2011 Survey responses'!AA11)<3.1,\"\",((SUMIF('2011 Survey responses'!V11,\">1\")+SUMIF('2011 Survey responses'!X11,\">1\")+SUMIF('2011 Survey responses'!AA11,\">1\"))/(COUNTIF('2011 Survey responses'!V11,\">1\")+COUNTIF('2011 Survey responses'!X11,\">1\")+COUNTIF('2011 Survey responses'!AA11,\">1\"))))","v":6},{"$f":"IF(('2011 Survey responses'!V11+'2011 Survey responses'!Y11+'2011 Survey responses'!AA11)<3.1,\"\",((SUMIF('2011 Survey responses'!V11,\">1\")+SUMIF('2011 Survey responses'!Y11,\">1\")+SUMIF('2011 Survey responses'!AA11,\">1\"))/(COUNTIF('2011 Survey responses'!V11,\">1\")+COUNTIF('2011 Survey responses'!Y11,\">1\")+COUNTIF('2011 Survey responses'!AA11,\">1\"))))","v":6},{"$f":"IF(SUM('2011 Survey responses'!AB11:AH11)<1,\"\",(AVERAGEIFS('2011 Survey responses'!AB11:AH11,'2011 Survey responses'!AB11:AH11,\">1\")))","v":3.5},{"$f":"IF(SUM('2011 Survey responses'!AI11:AO11)<7.1,\"\",(AVERAGEIFS('2011 Survey responses'!AI11:AO11,'2011 Survey responses'!AI11:AO11,\">1\")))","v":5.7142857142857144},{"$f":"IF(('2011 Survey responses'!AH11)<1.1,\"\",('2011 Survey responses'!AH11))","v":""},{"$f":"IF(SUM('2011 Survey responses'!AP11:BV11)<1,\"\",(AVERAGEIFS('2011 Survey responses'!AP11:BV11,'2011 Survey responses'!AP11:BV11,\">1\")))","v":5.53125},{"$f":"IF(SUM('2011 Survey responses'!AP11:AS11)<4.1,\"\",(AVERAGEIFS('2011 Survey responses'!AP11:AS11,'2011 Survey responses'!AP11:AS11,\">1\")))","v":6},{"$f":"IF(SUM('2011 Survey responses'!AT11:BF11)<1,\"\",(AVERAGEIFS('2011 Survey responses'!AT11:BF11,'2011 Survey responses'!AT11:BF11,\">1\")))","v":6},{"$f":"IF(SUM('2011 Survey responses'!BG11:BO11)<1,\"\",(AVERAGEIFS('2011 Survey responses'!BG11:BO11,'2011 Survey responses'!BG11:BO11,\">1\")))","v":5.1111111111111107},{"$f":"IF(SUM('2011 Survey responses'!BP11:BS11)<1,\"\",(AVERAGEIFS('2011 Survey responses'!BP11:BS11,'2011 Survey responses'!BP11:BS11,\">1\")))","v":4.75},{"$f":"IF(SUM('2011 Survey responses'!BT11:BV11)<3.1,\"\",(AVERAGEIFS('2011 Survey responses'!BT11:BV11,'2011 Survey responses'!BT11:BV11,\">1\")))","v":5},{"$f":"IF(('2011 Survey responses'!AQ11+'2011 Survey responses'!AR11+'2011 Survey responses'!BG11)<3.1,\"\",((SUMIF('2011 Survey responses'!AQ11,\">1\")+SUMIF('2011 Survey responses'!AR11,\">1\")+SUMIF('2011 Survey responses'!BG11,\">1\"))/(COUNTIF('2011 Survey responses'!AQ11,\">1\")+COUNTIF('2011 Survey responses'!AR11,\">1\")+COUNTIF('2011 Survey responses'!BG11,\">1\"))))","v":6},{"$f":"IF(SUM('2011 Survey responses'!AP11:AS11)<4.1,\"\",(AVERAGEIFS('2011 Survey responses'!AP11:AS11,'2011 Survey responses'!AP11:AS11,\">1\")))","v":6},{"$f":"IF(('2011 Survey responses'!AU11+'2011 Survey responses'!AX11+'2011 Survey responses'!BA11+'2011 Survey responses'!BC11+'2011 Survey responses'!BD11)<5.1,\"\",(SUMIF('2011 Survey responses'!AU11,\">1\")+SUMIF('2011 Survey responses'!AX11,\">1\")+SUMIF('2011 Survey responses'!BA11,\">1\")+SUMIF('2011 Survey responses'!BC11,\">1\")+SUMIF('2011 Survey responses'!BD11,\">1\"))/(COUNTIF('2011 Survey responses'!AU11,\">1\")+COUNTIF('2011 Survey responses'!AX11,\">1\")+COUNTIF('2011 Survey responses'!BA11,\">1\")+COUNTIF('2011 Survey responses'!BC11,\">1\")+COUNTIF('2011 Survey responses'!BD11,\">1\")))","v":6},{"$f":"IF(('2011 Survey responses'!AT11)<1.1,\"\",('2011 Survey responses'!AT11))","v":6},{"$f":"IF(SUM('2011 Survey responses'!AV11:AW11)<2.1,\"\",(AVERAGEIFS('2011 Survey responses'!AV11:AW11,'2011 Survey responses'!AV11:AW11,\">1\")))","v":6},{"$f":"IF(('2011 Survey responses'!AW11+'2011 Survey responses'!AY11)<2.1,\"\",(SUMIF('2011 Survey responses'!AW11,\">1\")+SUMIF('2011 Survey responses'!AY11,\">1\"))/(COUNTIF('2011 Survey responses'!AW11,\">1\")+COUNTIF('2011 Survey responses'!AY11,\">1\")))","v":6},{"$f":"IF(('2011 Survey responses'!AZ11)<1.1,\"\",('2011 Survey responses'!AZ11))","v":6},6,6,5,1,{"$f":"IF(('2011 Survey responses'!BE11)<1.1,\"\",('2011 Survey responses'!BE11))","v":6},{"$f":"IF(('2011 Survey responses'!AY11+'2011 Survey responses'!BB11+'2011 Survey responses'!BF11)<3.1,\"\",(SUMIF('2011 Survey responses'!AY11,\">1\")+SUMIF('2011 Survey responses'!BB11,\">1\")+SUMIF('2011 Survey responses'!BF11,\">1\"))/(COUNTIF('2011 Survey responses'!AY11,\">1\")+COUNTIF('2011 Survey responses'!BB11,\">1\")+COUNTIF('2011 Survey responses'!BF11,\">1\")))","v":6},4.9305555555555554,{"$f":"IF(SUM('2011 Survey responses'!BT11:BV11)<3.1,\"\",(AVERAGEIFS('2011 Survey responses'!BT11:BV11,'2011 Survey responses'!BT11:BV11,\">1\")))","v":5},{"$f":"IF(SUM('2011 Survey responses'!BW11:CP11)<1,\"\",(AVERAGEIFS('2011 Survey responses'!BW11:CP11,'2011 Survey responses'!BW11:CP11,\">1\")))","v":5.95},{"$f":"IF(SUM('2011 Survey responses'!BW11:CF11)<1,\"\",(AVERAGEIFS('2011 Survey responses'!BW11:CF11,'2011 Survey responses'!BW11:CF11,\">1\")))","v":5.9},{"$f":"IF(SUM('2011 Survey responses'!CG11:CP11)<1,\"\",(AVERAGEIFS('2011 Survey responses'!CG11:CP11,'2011 Survey responses'!CG11:CP11,\">1\")))","v":6},{"$f":"IF(SUM('2011 Survey responses'!BX11:CF11)<1,\"\",(AVERAGEIFS('2011 Survey responses'!BX11:CF11,'2011 Survey responses'!BX11:CF11,\">1\")))","v":6},{"$f":"IF(SUM('2011 Survey responses'!CH11:CP11)<1,\"\",(AVERAGEIFS('2011 Survey responses'!CH11:CP11,'2011 Survey responses'!CH11:CP11,\">1\")))","v":6},{"$f":"IF(SUM('2011 Survey responses'!BW11:CP11)<1,\"\",(AVERAGEIFS('2011 Survey responses'!BW11:CP11,'2011 Survey responses'!BW11:CP11,\">1\")))","v":5.95},{"$f":"IF(('2011 Survey responses'!BW11+'2011 Survey responses'!CG11)<2.1,\"\",(SUMIF('2011 Survey responses'!BW11,\">1\")+SUMIF('2011 Survey responses'!CG11,\">1\"))/(COUNTIF('2011 Survey responses'!BW11,\">1\")+COUNTIF('2011 Survey responses'!CG11,\">1\")))","v":5.5},{"$f":"IF(('2011 Survey responses'!BX11+'2011 Survey responses'!CH11)<2.1,\"\",(SUMIF('2011 Survey responses'!BX11,\">1\")+SUMIF('2011 Survey responses'!CH11,\">1\"))/(COUNTIF('2011 Survey responses'!BX11,\">1\")+COUNTIF('2011 Survey responses'!CH11,\">1\")))","v":6},{"$f":"IF(('2011 Survey responses'!BY11+'2011 Survey responses'!CI11)<2.1,\"\",(SUMIF('2011 Survey responses'!BY11,\">1\")+SUMIF('2011 Survey responses'!CI11,\">1\"))/(COUNTIF('2011 Survey responses'!BY11,\">1\")+COUNTIF('2011 Survey responses'!CI11,\">1\")))","v":6},{"$f":"IF('2011 Survey responses'!CQ11<0.5,\"\",'2011 Survey responses'!CQ11)","v":4},{"$f":"IF('2011 Survey responses'!CR11<0.5,\"\",'2011 Survey responses'!CR11)","v":2},{"$f":"IF('2011 Survey responses'!CS11<0.5,\"\",'2011 Survey responses'!CS11)","v":2},{"$f":"IF('2011 Survey responses'!CT11<0.5,\"\",'2011 Survey responses'!CT11)","v":4},{"$f":"IF('2011 Survey responses'!CU11<0.5,\"\",'2011 Survey responses'!CU11)","v":4},{"$f":"IF('2011 Survey responses'!CV11<0.5,\"\",'2011 Survey responses'!CV11)","v":4},{"$f":"IF(SUM('2011 Survey responses'!CW11:DL11)<1,\"\",(AVERAGE('2011 Survey responses'!CW11:DL11)))","v":4},{"$f":"IF(SUM('2011 Survey responses'!CW11:CZ11)<1,\"\",(AVERAGE('2011 Survey responses'!CW11:CZ11)))","v":4},{"$f":"IF(SUM('2011 Survey responses'!DA11:DD11)<1,\"\",(AVERAGE('2011 Survey responses'!DA11:DD11)))","v":4},{"$f":"IF(SUM('2011 Survey responses'!DE11:DH11)<1,\"\",(AVERAGE('2011 Survey responses'!DE11:DH11)))","v":4},{"$f":"IF(SUM('2011 Survey responses'!DI11:DL11)<1,\"\",(AVERAGE('2011 Survey responses'!DI11:DL11)))","v":4},{"$f":"IF(('2011 Survey responses'!CW11+'2011 Survey responses'!DA11+'2011 Survey responses'!DE11+'2011 Survey responses'!DI11)<1,\"\",AVERAGE('2011 Survey responses'!CW11,'2011 Survey responses'!DA11,'2011 Survey responses'!DE11,'2011 Survey responses'!DI11))","v":4},{"$f":"IF(('2011 Survey responses'!CX11+'2011 Survey responses'!DB11+'2011 Survey responses'!DF11+'2011 Survey responses'!DJ11)<1,\"\",AVERAGE('2011 Survey responses'!CX11,'2011 Survey responses'!DB11,'2011 Survey responses'!DF11,'2011 Survey responses'!DJ11))","v":4},{"$f":"IF(('2011 Survey responses'!CY11+'2011 Survey responses'!DC11+'2011 Survey responses'!DG11+'2011 Survey responses'!DK11)<1,\"\",AVERAGE('2011 Survey responses'!CY11,'2011 Survey responses'!DC11,'2011 Survey responses'!DG11,'2011 Survey responses'!DK11))","v":4},{"$f":"IF(('2011 Survey responses'!CZ11+'2011 Survey responses'!DD11+'2011 Survey responses'!DH11+'2011 Survey responses'!DL11)<1,\"\",AVERAGE('2011 Survey responses'!CZ11,'2011 Survey responses'!DD11,'2011 Survey responses'!DH11,'2011 Survey responses'!DL11))","v":4},{"$f":"IF('2011 Survey responses'!CW11<0.5,\"\",'2011 Survey responses'!CW11)","v":4},{"$f":"IF('2011 Survey responses'!CX11<0.5,\"\",'2011 Survey responses'!CX11)","v":4},{"$f":"IF('2011 Survey responses'!CY11<0.5,\"\",'2011 Survey responses'!CY11)","v":4},{"$f":"IF('2011 Survey responses'!CZ11<0.5,\"\",'2011 Survey responses'!CZ11)","v":4},{"$f":"IF('2011 Survey responses'!DA11<0.5,\"\",'2011 Survey responses'!DA11)","v":4},{"$f":"IF('2011 Survey responses'!DB11<0.5,\"\",'2011 Survey responses'!DB11)","v":4},{"$f":"IF('2011 Survey responses'!DC11<0.5,\"\",'2011 Survey responses'!DC11)","v":4},{"$f":"IF('2011 Survey responses'!DD11<0.5,\"\",'2011 Survey responses'!DD11)","v":4},{"$f":"IF('2011 Survey responses'!DE11<0.5,\"\",'2011 Survey responses'!DE11)","v":4},{"$f":"IF('2011 Survey responses'!DF11<0.5,\"\",'2011 Survey responses'!DF11)","v":4},{"$f":"IF('2011 Survey responses'!DG11<0.5,\"\",'2011 Survey responses'!DG11)","v":4},{"$f":"IF('2011 Survey responses'!DH11<0.5,\"\",'2011 Survey responses'!DH11)","v":4},{"$f":"IF('2011 Survey responses'!DI11<0.5,\"\",'2011 Survey responses'!DI11)","v":4},{"$f":"IF('2011 Survey responses'!DJ11<0.5,\"\",'2011 Survey responses'!DJ11)","v":4},{"$f":"IF('2011 Survey responses'!DK11<0.5,\"\",'2011 Survey responses'!DK11)","v":4},{"$f":"IF('2011 Survey responses'!DL11<0.5,\"\",'2011 Survey responses'!DL11)","v":4},{"$f":"IF('2011 Survey responses'!DU11=4,4,IF('2011 Survey responses'!DU11=5,4,\"\"))","v":""},{"$f":"IF('2011 Survey responses'!DV11=4,3,IF('2011 Survey responses'!DV11=5,3,\"\"))","v":3},"",{"$f":"IF(CQ11=2,CQ11,IF(CO11=4,CO11,IF(CP11=3,CP11,IF('2011 Survey responses'!GT11=1,1,\"\"))))","v":3},{"$f":"IF('2011 Survey responses'!DO11<0.5,\"\",'2011 Survey responses'!DO11)","v":4},{"$f":"IF('2011 Survey responses'!DP11<0.5,\"\",'2011 Survey responses'!DP11)","v":4},{"$f":"IF('2011 Survey responses'!DQ11<0.5,\"\",'2011 Survey responses'!DQ11)","v":3},{"$f":"IF('2011 Survey responses'!DR11<0.5,\"\",'2011 Survey responses'!DR11)","v":3},{"$f":"IF('2011 Survey responses'!DS11<0.5,\"\",'2011 Survey responses'!DS11)","v":4},{"$f":"IF('2011 Survey responses'!DT11<0.5,\"\",'2011 Survey responses'!DT11)","v":4},{"$f":"IF('2011 Survey responses'!DU11<0.5,\"\",'2011 Survey responses'!DU11)","v":3},{"$f":"IF('2011 Survey responses'!DV11<0.5,\"\",'2011 Survey responses'!DV11)","v":5},{"$f":"IF('2011 Survey responses'!DW11<0.5,\"\",'2011 Survey responses'!DW11)","v":4},{"$f":"IF('2011 Survey responses'!DX11<0.5,\"\",'2011 Survey responses'!DX11)","v":4},{"$f":"IF('2011 Survey responses'!DY11<0.5,\"\",'2011 Survey responses'!DY11)","v":3},{"$f":"IF('2011 Survey responses'!DZ11<0.5,\"\",'2011 Survey responses'!DZ11)","v":3},{"$f":"IF('2011 Survey responses'!EA11<0.5,\"\",'2011 Survey responses'!EA11)","v":5},{"$f":"IF('2011 Survey responses'!EB11<0.5,\"\",'2011 Survey responses'!EB11)","v":5},{"$f":"IF('2011 Survey responses'!EC11<0.5,\"\",'2011 Survey responses'!EC11)","v":5},{"$f":"IF('2011 Survey responses'!ED11<0.5,\"\",'2011 Survey responses'!ED11)","v":5},{"$f":"IF('2011 Survey responses'!EE11<0.5,\"\",'2011 Survey responses'!EE11)","v":5},{"$f":"IF('2011 Survey responses'!EF11<0.5,\"\",'2011 Survey responses'!EF11)","v":5},{"$f":"IF('2011 Survey responses'!EG11<0.5,\"\",'2011 Survey responses'!EG11)","v":4},{"$f":"IF('2011 Survey responses'!EH11<0.5,\"\",'2011 Survey responses'!EH11)","v":5},{"$f":"IF('2011 Survey responses'!EI11<0.5,\"\",'2011 Survey responses'!EI11)","v":5},{"$f":"IF('2011 Survey responses'!EJ11<0.5,\"\",'2011 Survey responses'!EJ11)","v":5},{"$f":"IF('2011 Survey responses'!EK11<0.5,\"\",'2011 Survey responses'!EK11)","v":4},{"$f":"IF('2011 Survey responses'!EL11<0.5,\"\",'2011 Survey responses'!EL11)","v":4},{"$f":"IF('2011 Survey responses'!EM11<0.5,\"\",'2011 Survey responses'!EM11)","v":4},{"$f":"IF('2011 Survey responses'!EN11<0.5,\"\",'2011 Survey responses'!EN11)","v":4},{"$f":"IF('2011 Survey responses'!EO11<0.5,\"\",'2011 Survey responses'!EO11)","v":1},{"$f":"IF('2011 Survey responses'!EP11<0.5,\"\",'2011 Survey responses'!EP11)","v":5},{"$f":"IF(('2011 Survey responses'!EW11+'2011 Survey responses'!EX11)>=2,AVERAGE('2011 Survey responses'!EW11,'2011 Survey responses'!EY11),\"\")","v":3.5},{"$f":"IF('2011 Survey responses'!EX11<0.5,\"\",'2011 Survey responses'!EX11)","v":3},{"$f":"IF('2011 Survey responses'!EZ11<0.5,\"\",'2011 Survey responses'!EZ11)","v":4},{"$f":"IF('2011 Survey responses'!FB11<0.5,\"\",'2011 Survey responses'!FB11)","v":3},{"$f":"IF('2011 Survey responses'!FD11<0.5,\"\",'2011 Survey responses'!FD11)","v":4},{"$f":"IF('2011 Survey responses'!FC11<0.5,\"\",'2011 Survey responses'!FC11)","v":4},{"$f":"IF(('2011 Survey responses'!EM11+'2011 Survey responses'!EN11)>=2,AVERAGE('2011 Survey responses'!EM11,'2011 Survey responses'!EN11),\"\")","v":4},{"$f":"IF('2011 Survey responses'!ES11<0.5,\"\",'2011 Survey responses'!ES11)","v":4},{"$f":"IF(('2011 Survey responses'!ET11+'2011 Survey responses'!EU11)>=2,AVERAGE('2011 Survey responses'!ET11,'2011 Survey responses'!EU11),\"\")","v":3.5},{"$f":"IF('2011 Survey responses'!EV11<0.5,\"\",'2011 Survey responses'!EV11)","v":2},{"$f":"IF('2011 Survey responses'!FA11<0.5,\"\",'2011 Survey responses'!FA11)","v":4},{"$f":"IF('2011 Survey responses'!ER11<0.5,\"\",'2011 Survey responses'!ER11)","v":4},{"$f":"IF(('2011 Survey responses'!EO11+'2011 Survey responses'!EP11)>=2,AVERAGE('2011 Survey responses'!EO11,'2011 Survey responses'!EP11),\"\")","v":3},{"$f":"IF('2011 Survey responses'!EQ11<0.5,\"\",'2011 Survey responses'!EQ11)","v":3},{"$f":"IF('2011 Survey responses'!ET11<0.5,\"\",'2011 Survey responses'!ET11)","v":4},{"$f":"IF('2011 Survey responses'!EU11<0.5,\"\",'2011 Survey responses'!EU11)","v":3},{"$f":"IF('2011 Survey responses'!EW11<0.5,\"\",'2011 Survey responses'!EW11)","v":4},{"$f":"IF('2011 Survey responses'!EY11<0.5,\"\",'2011 Survey responses'!EY11)","v":3},{"$f":"IF('2011 Survey responses'!FU11<0.5,\"\",'2011 Survey responses'!FU11)","v":4},{"$f":"IF(('2011 Survey responses'!FL11+'2011 Survey responses'!FM11)>=2,AVERAGE('2011 Survey responses'!FL11,'2011 Survey responses'!FM11),\"\")","v":3},{"$f":"IF(('2011 Survey responses'!FO11+'2011 Survey responses'!FQ11)>=2,AVERAGE('2011 Survey responses'!FO11,'2011 Survey responses'!FQ11),\"\")","v":3},{"$f":"IF('2011 Survey responses'!FJ11<0.5,\"\",'2011 Survey responses'!FJ11)","v":4},{"$f":"IF('2011 Survey responses'!FT11<0.5,\"\",'2011 Survey responses'!FT11)","v":4},{"$f":"IF('2011 Survey responses'!FR11<0.5,\"\",'2011 Survey responses'!FR11)","v":4},{"$f":"IF('2011 Survey responses'!FK11<0.5,\"\",'2011 Survey responses'!FK11)","v":4},{"$f":"IF('2011 Survey responses'!FP11<0.5,\"\",'2011 Survey responses'!FP11)","v":3},{"$f":"IF('2011 Survey responses'!FN11<0.5,\"\",'2011 Survey responses'!FN11)","v":3},{"$f":"IF(('2011 Survey responses'!FE11+'2011 Survey responses'!FF11)>=2,AVERAGE('2011 Survey responses'!FE11,'2011 Survey responses'!FF11),\"\")","v":5},{"$f":"IF('2011 Survey responses'!FS11<0.5,\"\",'2011 Survey responses'!FS11)","v":4},{"$f":"IF('2011 Survey responses'!FV11<0.5,\"\",'2011 Survey responses'!FV11)","v":4},{"$f":"IF(('2011 Survey responses'!FG11+'2011 Survey responses'!FH11)>=2,AVERAGE('2011 Survey responses'!FG11,'2011 Survey responses'!FH11),\"\")","v":2.5},{"$f":"IF('2011 Survey responses'!FI11<0.5,\"\",'2011 Survey responses'!FI11)","v":3},{"$f":"IF('2011 Survey responses'!FE11<0.5,\"\",'2011 Survey responses'!FE11)","v":5},{"$f":"IF('2011 Survey responses'!FF11<0.5,\"\",'2011 Survey responses'!FF11)","v":5},{"$f":"IF('2011 Survey responses'!FG11<0.5,\"\",'2011 Survey responses'!FG11)","v":3},{"$f":"IF('2011 Survey responses'!FH11<0.5,\"\",'2011 Survey responses'!FH11)","v":2},{"$f":"IF('2011 Survey responses'!FL11<0.5,\"\",'2011 Survey responses'!FL11)","v":3},{"$f":"IF('2011 Survey responses'!FM11<0.5,\"\",'2011 Survey responses'!FM11)","v":3},{"$f":"IF('2011 Survey responses'!FO11<0.5,\"\",'2011 Survey responses'!FO11)","v":3},{"$f":"IF('2011 Survey responses'!FQ11<0.5,\"\",'2011 Survey responses'!FQ11)","v":3}]
["Austria",{"$f":"IF(SUM(F12)<1,\"\",AVERAGEIF('2011 Survey responses'!B12:CP12,\">1\"))","v":""},{"$f":"IF(SUM(F12)<1,\"\",AVERAGEIF('2011 Survey responses'!B12:AO12,\">1\"))","v":""},{"$f":"IF(SUM(F12)<1,\"\",AVERAGEIF('2011 Survey responses'!B12:BV12,\">1\"))","v":""},{"$f":"IF(SUM(F12)<1,\"\",AVERAGEIF('2011 Survey responses'!V12:BV12,\">1\"))","v":""},{"$f":"IF(SUM('2011 Survey responses'!B12:U12)<1,\"\",(AVERAGEIFS('2011 Survey responses'!B12:U12,'2011 Survey responses'!B12:U12,\">1\")))","v":""},{"$f":"IF(SUM('2011 Survey responses'!B12:H12)<1,\"\",(AVERAGEIFS('2011 Survey responses'!B12:H12,'2011 Survey responses'!B12:H12,\">1\")))","v":""},{"$f":"IF(SUM('2011 Survey responses'!I12:S12)<1,\"\",(AVERAGEIFS('2011 Survey responses'!I12:S12,'2011 Survey responses'!I12:S12,\">1\")))","v":""},{"$f":"IF(SUM('2011 Survey responses'!T12:U12)<2.1,\"\",(AVERAGEIFS('2011 Survey responses'!T12:U12,'2011 Survey responses'!T12:U12,\">1\")))","v":""},{"$f":"IF(SUM('2011 Survey responses'!B12:C12)<2.1,\"\",((SUMIF('2011 Survey responses'!B12:C12,\">1\")+SUMIF('2011 Survey responses'!F12,\">1\"))/(COUNTIF('2011 Survey responses'!B12:C12,\">1\")+COUNTIF('2011 Survey responses'!F12,\">1\"))))","v":""},{"$f":"IF(SUM('2011 Survey responses'!D12:E12)<2.1,\"\",(AVERAGEIFS('2011 Survey responses'!D12:E12,'2011 Survey responses'!D12:E12,\">1\")))","v":""},{"$f":"IF(('2011 Survey responses'!B12+'2011 Survey responses'!D12)<2.1,\"\",((SUMIF('2011 Survey responses'!B12,\">1\")+SUMIF('2011 Survey responses'!D12,\">1\")+SUMIF('2011 Survey responses'!F12,\">1\")+SUMIF('2011 Survey responses'!K12,\">1\"))/(COUNTIF('2011 Survey responses'!B12,\">1\")+COUNTIF('2011 Survey responses'!D12,\">1\")+COUNTIF('2011 Survey responses'!F12,\">1\")+COUNTIF('2011 Survey responses'!K12,\">1\"))))","v":""},{"$f":"IF(SUM('2011 Survey responses'!G12:H12)<2.1,\"\",(AVERAGEIFS('2011 Survey responses'!G12:H12,'2011 Survey responses'!G12:H12,\">1\")))","v":""},{"$f":"IF(SUM('2011 Survey responses'!F12:G12)<1.5,\"\",MAX('2011 Survey responses'!F12,'2011 Survey responses'!G12))","v":""},{"$f":"IF(SUM('2011 Survey responses'!G12:H12)<1,\"\",MAX('2011 Survey responses'!G12,'2011 Survey responses'!H12))","v":""},{"$f":"IF(SUM('2011 Survey responses'!I12:L12)<4.1,\"\",(AVERAGEIFS('2011 Survey responses'!I12:L12,'2011 Survey responses'!I12:L12,\">1\")))","v":""},{"$f":"IF(SUM('2011 Survey responses'!M12:S12)<4.1,\"\",(AVERAGEIFS('2011 Survey responses'!M12:S12,'2011 Survey responses'!M12:S12,\">1\")))","v":""},{"$f":"IF(SUM('2011 Survey responses'!T12:U12)<2.1,\"\",(AVERAGEIFS('2011 Survey responses'!T12:U12,'2011 Survey responses'!T12:U12,\">1\")))","v":""},{"$f":"IF(SUM('2011 Survey responses'!V12:AO12)<1,\"\",(AVERAGEIFS('2011 Survey responses'!V12:AO12,'2011 Survey responses'!V12:AO12,\">1\")))","v":""},{"$f":"IF(SUM('2011 Survey responses'!V12:AA12)<1,\"\",(AVERAGEIFS('2011 Survey responses'!V12:AA12,'2011 Survey responses'!V12:AA12,\">1\")))","v":""},{"$f":"IF(SUM('2011 Survey responses'!AB12:AH12)<1,\"\",(AVERAGEIFS('2011 Survey responses'!AB12:AH12,'2011 Survey responses'!AB12:AH12,\">1\")))","v":""},{"$f":"IF(SUM('2011 Survey responses'!AI12:AO12)<1,\"\",(AVERAGEIFS('2011 Survey responses'!AI12:AO12,'2011 Survey responses'!AI12:AO12,\">1\")))","v":""},{"$f":"IF(('2011 Survey responses'!Y12+'2011 Survey responses'!AI12+'2011 Survey responses'!AK12)<3.1,\"\",((SUMIF('2011 Survey responses'!Y12,\">1\")+SUMIF('2011 Survey responses'!AI12,\">1\")+SUMIF('2011 Survey responses'!AK12,\">1\")+SUMIF('2011 Survey responses'!AM12,\">1\"))/(COUNTIF('2011 Survey responses'!Y12,\">1\")+COUNTIF('2011 Survey responses'!AI12,\">1\")+COUNTIF('2011 Survey responses'!AK12,\">1\")+COUNTIF('2011 Survey responses'!AM12,\">1\"))))","v":""},{"$f":"IF(('2011 Survey responses'!W12)<1.1,\"\",('2011 Survey responses'!W12))","v":""},{"$f":"IF(('2011 Survey responses'!Y12)<1.1,\"\",('2011 Survey responses'!Y12))","v":""},{"$f":"IF(('2011 Survey responses'!Z12)<1.1,\"\",('2011 Survey responses'!Z12))","v":""},{"$f":"IF(('2011 Survey responses'!V12+'2011 Survey responses'!X12+'2011 Survey responses'!AA12)<3.1,\"\",((SUMIF('2011 Survey responses'!V12,\">1\")+SUMIF('2011 Survey responses'!X12,\">1\")+SUMIF('2011 Survey responses'!AA12,\">1\"))/(COUNTIF('2011 Survey responses'!V12,\">1\")+COUNTIF('2011 Survey responses'!X12,\">1\")+COUNTIF('2011 Survey responses'!AA12,\">1\"))))","v":""},{"$f":"IF(('2011 Survey responses'!V12+'2011 Survey responses'!Y12+'2011 Survey responses'!AA12)<3.1,\"\",((SUMIF('2011 Survey responses'!V12,\">1\")+SUMIF('2011 Survey responses'!Y12,\">1\")+SUMIF('2011 Survey responses'!AA12,\">1\"))/(COUNTIF('2011 Survey responses'!V12,\">1\")+COUNTIF('2011 Survey responses'!Y12,\">1\")+COUNTIF('2011 Survey responses'!AA12,\">1\"))))","v":""},{"$f":"IF(SUM('2011 Survey responses'!AB12:AH12)<1,\"\",(AVERAGEIFS('2011 Survey responses'!AB12:AH12,'2011 Survey responses'!AB12:AH12,\">1\")))","v":""},{"$f":"IF(SUM('2011 Survey responses'!AI12:AO12)<7.1,\"\",(AVERAGEIFS('2011 Survey responses'!AI12:AO12,'2011 Survey responses'!AI12:AO12,\">1\")))","v":""},{"$f":"IF(('2011 Survey responses'!AH12)<1.1,\"\",('2011 Survey responses'!AH12))","v":""},{"$f":"IF(SUM('2011 Survey responses'!AP12:BV12)<1,\"\",(AVERAGEIFS('2011 Survey responses'!AP12:BV12,'2011 Survey responses'!AP12:BV12,\">1\")))","v":""},{"$f":"IF(SUM('2011 Survey responses'!AP12:AS12)<4.1,\"\",(AVERAGEIFS('2011 Survey responses'!AP12:AS12,'2011 Survey responses'!AP12:AS12,\">1\")))","v":""},{"$f":"IF(SUM('2011 Survey responses'!AT12:BF12)<1,\"\",(AVERAGEIFS('2011 Survey responses'!AT12:BF12,'2011 Survey responses'!AT12:BF12,\">1\")))","v":""},{"$f":"IF(SUM('2011 Survey responses'!BG12:BO12)<1,\"\",(AVERAGEIFS('2011 Survey responses'!BG12:BO12,'2011 Survey responses'!BG12:BO12,\">1\")))","v":""},{"$f":"IF(SUM('2011 Survey responses'!BP12:BS12)<1,\"\",(AVERAGEIFS('2011 Survey responses'!BP12:BS12,'2011 Survey responses'!BP12:BS12,\">1\")))","v":""},{"$f":"IF(SUM('2011 Survey responses'!BT12:BV12)<3.1,\"\",(AVERAGEIFS('2011 Survey responses'!BT12:BV12,'2011 Survey responses'!BT12:BV12,\">1\")))","v":""},{"$f":"IF(('2011 Survey responses'!AQ12+'2011 Survey responses'!AR12+'2011 Survey responses'!BG12)<3.1,\"\",((SUMIF('2011 Survey responses'!AQ12,\">1\")+SUMIF('2011 Survey responses'!AR12,\">1\")+SUMIF('2011 Survey responses'!BG12,\">1\"))/(COUNTIF('2011 Survey responses'!AQ12,\">1\")+COUNTIF('2011 Survey responses'!AR12,\">1\")+COUNTIF('2011 Survey responses'!BG12,\">1\"))))","v":""},{"$f":"IF(SUM('2011 Survey responses'!AP12:AS12)<4.1,\"\",(AVERAGEIFS('2011 Survey responses'!AP12:AS12,'2011 Survey responses'!AP12:AS12,\">1\")))","v":""},{"$f":"IF(('2011 Survey responses'!AU12+'2011 Survey responses'!AX12+'2011 Survey responses'!BA12+'2011 Survey responses'!BC12+'2011 Survey responses'!BD12)<5.1,\"\",(SUMIF('2011 Survey responses'!AU12,\">1\")+SUMIF('2011 Survey responses'!AX12,\">1\")+SUMIF('2011 Survey responses'!BA12,\">1\")+SUMIF('2011 Survey responses'!BC12,\">1\")+SUMIF('2011 Survey responses'!BD12,\">1\"))/(COUNTIF('2011 Survey responses'!AU12,\">1\")+COUNTIF('2011 Survey responses'!AX12,\">1\")+COUNTIF('2011 Survey responses'!BA12,\">1\")+COUNTIF('2011 Survey responses'!BC12,\">1\")+COUNTIF('2011 Survey responses'!BD12,\">1\")))","v":""},{"$f":"IF(('2011 Survey responses'!AT12)<1.1,\"\",('2011 Survey responses'!AT12))","v":""},{"$f":"IF(SUM('2011 Survey responses'!AV12:AW12)<2.1,\"\",(AVERAGEIFS('2011 Survey responses'!AV12:AW12,'2011 Survey responses'!AV12:AW12,\">1\")))","v":""},{"$f":"IF(('2011 Survey responses'!AW12+'2011 Survey responses'!AY12)<2.1,\"\",(SUMIF('2011 Survey responses'!AW12,\">1\")+SUMIF('2011 Survey responses'!AY12,\">1\"))/(COUNTIF('2011 Survey responses'!AW12,\">1\")+COUNTIF('2011 Survey responses'!AY12,\">1\")))","v":""},{"$f":"IF(('2011 Survey responses'!AZ12)<1.1,\"\",('2011 Survey responses'!AZ12))","v":""},null,null,null,null,{"$f":"IF(('2011 Survey responses'!BE12)<1.1,\"\",('2011 Survey responses'!BE12))","v":""},{"$f":"IF(('2011 Survey responses'!AY12+'2011 Survey responses'!BB12+'2011 Survey responses'!BF12)<3.1,\"\",(SUMIF('2011 Survey responses'!AY12,\">1\")+SUMIF('2011 Survey responses'!BB12,\">1\")+SUMIF('2011 Survey responses'!BF12,\">1\"))/(COUNTIF('2011 Survey responses'!AY12,\">1\")+COUNTIF('2011 Survey responses'!BB12,\">1\")+COUNTIF('2011 Survey responses'!BF12,\">1\")))","v":""},"",{"$f":"IF(SUM('2011 Survey responses'!BT12:BV12)<3.1,\"\",(AVERAGEIFS('2011 Survey responses'!BT12:BV12,'2011 Survey responses'!BT12:BV12,\">1\")))","v":""},{"$f":"IF(SUM('2011 Survey responses'!BW12:CP12)<1,\"\",(AVERAGEIFS('2011 Survey responses'!BW12:CP12,'2011 Survey responses'!BW12:CP12,\">1\")))","v":""},{"$f":"IF(SUM('2011 Survey responses'!BW12:CF12)<1,\"\",(AVERAGEIFS('2011 Survey responses'!BW12:CF12,'2011 Survey responses'!BW12:CF12,\">1\")))","v":""},{"$f":"IF(SUM('2011 Survey responses'!CG12:CP12)<1,\"\",(AVERAGEIFS('2011 Survey responses'!CG12:CP12,'2011 Survey responses'!CG12:CP12,\">1\")))","v":""},{"$f":"IF(SUM('2011 Survey responses'!BX12:CF12)<1,\"\",(AVERAGEIFS('2011 Survey responses'!BX12:CF12,'2011 Survey responses'!BX12:CF12,\">1\")))","v":""},{"$f":"IF(SUM('2011 Survey responses'!CH12:CP12)<1,\"\",(AVERAGEIFS('2011 Survey responses'!CH12:CP12,'2011 Survey responses'!CH12:CP12,\">1\")))","v":""},{"$f":"IF(SUM('2011 Survey responses'!BW12:CP12)<1,\"\",(AVERAGEIFS('2011 Survey responses'!BW12:CP12,'2011 Survey responses'!BW12:CP12,\">1\")))","v":""},{"$f":"IF(('2011 Survey responses'!BW12+'2011 Survey responses'!CG12)<2.1,\"\",(SUMIF('2011 Survey responses'!BW12,\">1\")+SUMIF('2011 Survey responses'!CG12,\">1\"))/(COUNTIF('2011 Survey responses'!BW12,\">1\")+COUNTIF('2011 Survey responses'!CG12,\">1\")))","v":""},{"$f":"IF(('2011 Survey responses'!BX12+'2011 Survey responses'!CH12)<2.1,\"\",(SUMIF('2011 Survey responses'!BX12,\">1\")+SUMIF('2011 Survey responses'!CH12,\">1\"))/(COUNTIF('2011 Survey responses'!BX12,\">1\")+COUNTIF('2011 Survey responses'!CH12,\">1\")))","v":""},{"$f":"IF(('2011 Survey responses'!BY12+'2011 Survey responses'!CI12)<2.1,\"\",(SUMIF('2011 Survey responses'!BY12,\">1\")+SUMIF('2011 Survey responses'!CI12,\">1\"))/(COUNTIF('2011 Survey responses'!BY12,\">1\")+COUNTIF('2011 Survey responses'!CI12,\">1\")))","v":""},{"$f":"IF('2011 Survey responses'!CQ12<0.5,\"\",'2011 Survey responses'!CQ12)","v":""},{"$f":"IF('2011 Survey responses'!CR12<0.5,\"\",'2011 Survey responses'!CR12)","v":""},{"$f":"IF('2011 Survey responses'!CS12<0.5,\"\",'2011 Survey responses'!CS12)","v":""},{"$f":"IF('2011 Survey responses'!CT12<0.5,\"\",'2011 Survey responses'!CT12)","v":""},{"$f":"IF('2011 Survey responses'!CU12<0.5,\"\",'2011 Survey responses'!CU12)","v":""},{"$f":"IF('2011 Survey responses'!CV12<0.5,\"\",'2011 Survey responses'!CV12)","v":""},{"$f":"IF(SUM('2011 Survey responses'!CW12:DL12)<1,\"\",(AVERAGE('2011 Survey responses'!CW12:DL12)))","v":""},{"$f":"IF(SUM('2011 Survey responses'!CW12:CZ12)<1,\"\",(AVERAGE('2011 Survey responses'!CW12:CZ12)))","v":""},{"$f":"IF(SUM('2011 Survey responses'!DA12:DD12)<1,\"\",(AVERAGE('2011 Survey responses'!DA12:DD12)))","v":""},{"$f":"IF(SUM('2011 Survey responses'!DE12:DH12)<1,\"\",(AVERAGE('2011 Survey responses'!DE12:DH12)))","v":""},{"$f":"IF(SUM('2011 Survey responses'!DI12:DL12)<1,\"\",(AVERAGE('2011 Survey responses'!DI12:DL12)))","v":""},{"$f":"IF(('2011 Survey responses'!CW12+'2011 Survey responses'!DA12+'2011 Survey responses'!DE12+'2011 Survey responses'!DI12)<1,\"\",AVERAGE('2011 Survey responses'!CW12,'2011 Survey responses'!DA12,'2011 Survey responses'!DE12,'2011 Survey responses'!DI12))","v":""},{"$f":"IF(('2011 Survey responses'!CX12+'2011 Survey responses'!DB12+'2011 Survey responses'!DF12+'2011 Survey responses'!DJ12)<1,\"\",AVERAGE('2011 Survey responses'!CX12,'2011 Survey responses'!DB12,'2011 Survey responses'!DF12,'2011 Survey responses'!DJ12))","v":""},{"$f":"IF(('2011 Survey responses'!CY12+'2011 Survey responses'!DC12+'2011 Survey responses'!DG12+'2011 Survey responses'!DK12)<1,\"\",AVERAGE('2011 Survey responses'!CY12,'2011 Survey responses'!DC12,'2011 Survey responses'!DG12,'2011 Survey responses'!DK12))","v":""},{"$f":"IF(('2011 Survey responses'!CZ12+'2011 Survey responses'!DD12+'2011 Survey responses'!DH12+'2011 Survey responses'!DL12)<1,\"\",AVERAGE('2011 Survey responses'!CZ12,'2011 Survey responses'!DD12,'2011 Survey responses'!DH12,'2011 Survey responses'!DL12))","v":""},{"$f":"IF('2011 Survey responses'!CW12<0.5,\"\",'2011 Survey responses'!CW12)","v":""},{"$f":"IF('2011 Survey responses'!CX12<0.5,\"\",'2011 Survey responses'!CX12)","v":""},{"$f":"IF('2011 Survey responses'!CY12<0.5,\"\",'2011 Survey responses'!CY12)","v":""},{"$f":"IF('2011 Survey responses'!CZ12<0.5,\"\",'2011 Survey responses'!CZ12)","v":""},{"$f":"IF('2011 Survey responses'!DA12<0.5,\"\",'2011 Survey responses'!DA12)","v":""},{"$f":"IF('2011 Survey responses'!DB12<0.5,\"\",'2011 Survey responses'!DB12)","v":""},{"$f":"IF('2011 Survey responses'!DC12<0.5,\"\",'2011 Survey responses'!DC12)","v":""},{"$f":"IF('2011 Survey responses'!DD12<0.5,\"\",'2011 Survey responses'!DD12)","v":""},{"$f":"IF('2011 Survey responses'!DE12<0.5,\"\",'2011 Survey responses'!DE12)","v":""},{"$f":"IF('2011 Survey responses'!DF12<0.5,\"\",'2011 Survey responses'!DF12)","v":""},{"$f":"IF('2011 Survey responses'!DG12<0.5,\"\",'2011 Survey responses'!DG12)","v":""},{"$f":"IF('2011 Survey responses'!DH12<0.5,\"\",'2011 Survey responses'!DH12)","v":""},{"$f":"IF('2011 Survey responses'!DI12<0.5,\"\",'2011 Survey responses'!DI12)","v":""},{"$f":"IF('2011 Survey responses'!DJ12<0.5,\"\",'2011 Survey responses'!DJ12)","v":""},{"$f":"IF('2011 Survey responses'!DK12<0.5,\"\",'2011 Survey responses'!DK12)","v":""},{"$f":"IF('2011 Survey responses'!DL12<0.5,\"\",'2011 Survey responses'!DL12)","v":""},{"$f":"IF('2011 Survey responses'!DU12=4,4,IF('2011 Survey responses'!DU12=5,4,\"\"))","v":""},{"$f":"IF('2011 Survey responses'!DV12=4,3,IF('2011 Survey responses'!DV12=5,3,\"\"))","v":""},"",{"$f":"IF(CQ12=2,CQ12,IF(CO12=4,CO12,IF(CP12=3,CP12,IF('2011 Survey responses'!GT12=1,1,\"\"))))","v":""},{"$f":"IF('2011 Survey responses'!DO12<0.5,\"\",'2011 Survey responses'!DO12)","v":""},{"$f":"IF('2011 Survey responses'!DP12<0.5,\"\",'2011 Survey responses'!DP12)","v":""},{"$f":"IF('2011 Survey responses'!DQ12<0.5,\"\",'2011 Survey responses'!DQ12)","v":""},{"$f":"IF('2011 Survey responses'!DR12<0.5,\"\",'2011 Survey responses'!DR12)","v":""},{"$f":"IF('2011 Survey responses'!DS12<0.5,\"\",'2011 Survey responses'!DS12)","v":""},{"$f":"IF('2011 Survey responses'!DT12<0.5,\"\",'2011 Survey responses'!DT12)","v":""},{"$f":"IF('2011 Survey responses'!DU12<0.5,\"\",'2011 Survey responses'!DU12)","v":""},{"$f":"IF('2011 Survey responses'!DV12<0.5,\"\",'2011 Survey responses'!DV12)","v":""},{"$f":"IF('2011 Survey responses'!DW12<0.5,\"\",'2011 Survey responses'!DW12)","v":""},{"$f":"IF('2011 Survey responses'!DX12<0.5,\"\",'2011 Survey responses'!DX12)","v":""},{"$f":"IF('2011 Survey responses'!DY12<0.5,\"\",'2011 Survey responses'!DY12)","v":""},{"$f":"IF('2011 Survey responses'!DZ12<0.5,\"\",'2011 Survey responses'!DZ12)","v":""},{"$f":"IF('2011 Survey responses'!EA12<0.5,\"\",'2011 Survey responses'!EA12)","v":""},{"$f":"IF('2011 Survey responses'!EB12<0.5,\"\",'2011 Survey responses'!EB12)","v":""},{"$f":"IF('2011 Survey responses'!EC12<0.5,\"\",'2011 Survey responses'!EC12)","v":""},{"$f":"IF('2011 Survey responses'!ED12<0.5,\"\",'2011 Survey responses'!ED12)","v":""},{"$f":"IF('2011 Survey responses'!EE12<0.5,\"\",'2011 Survey responses'!EE12)","v":""},{"$f":"IF('2011 Survey responses'!EF12<0.5,\"\",'2011 Survey responses'!EF12)","v":""},{"$f":"IF('2011 Survey responses'!EG12<0.5,\"\",'2011 Survey responses'!EG12)","v":""},{"$f":"IF('2011 Survey responses'!EH12<0.5,\"\",'2011 Survey responses'!EH12)","v":""},{"$f":"IF('2011 Survey responses'!EI12<0.5,\"\",'2011 Survey responses'!EI12)","v":""},{"$f":"IF('2011 Survey responses'!EJ12<0.5,\"\",'2011 Survey responses'!EJ12)","v":""},{"$f":"IF('2011 Survey responses'!EK12<0.5,\"\",'2011 Survey responses'!EK12)","v":""},{"$f":"IF('2011 Survey responses'!EL12<0.5,\"\",'2011 Survey responses'!EL12)","v":""},{"$f":"IF('2011 Survey responses'!EM12<0.5,\"\",'2011 Survey responses'!EM12)","v":""},{"$f":"IF('2011 Survey responses'!EN12<0.5,\"\",'2011 Survey responses'!EN12)","v":""},{"$f":"IF('2011 Survey responses'!EO12<0.5,\"\",'2011 Survey responses'!EO12)","v":""},{"$f":"IF('2011 Survey responses'!EP12<0.5,\"\",'2011 Survey responses'!EP12)","v":""},{"$f":"IF(('2011 Survey responses'!EW12+'2011 Survey responses'!EX12)>=2,AVERAGE('2011 Survey responses'!EW12,'2011 Survey responses'!EY12),\"\")","v":""},{"$f":"IF('2011 Survey responses'!EX12<0.5,\"\",'2011 Survey responses'!EX12)","v":""},{"$f":"IF('2011 Survey responses'!EZ12<0.5,\"\",'2011 Survey responses'!EZ12)","v":""},{"$f":"IF('2011 Survey responses'!FB12<0.5,\"\",'2011 Survey responses'!FB12)","v":""},{"$f":"IF('2011 Survey responses'!FD12<0.5,\"\",'2011 Survey responses'!FD12)","v":""},{"$f":"IF('2011 Survey responses'!FC12<0.5,\"\",'2011 Survey responses'!FC12)","v":""},{"$f":"IF(('2011 Survey responses'!EM12+'2011 Survey responses'!EN12)>=2,AVERAGE('2011 Survey responses'!EM12,'2011 Survey responses'!EN12),\"\")","v":""},{"$f":"IF('2011 Survey responses'!ES12<0.5,\"\",'2011 Survey responses'!ES12)","v":""},{"$f":"IF(('2011 Survey responses'!ET12+'2011 Survey responses'!EU12)>=2,AVERAGE('2011 Survey responses'!ET12,'2011 Survey responses'!EU12),\"\")","v":""},{"$f":"IF('2011 Survey responses'!EV12<0.5,\"\",'2011 Survey responses'!EV12)","v":""},{"$f":"IF('2011 Survey responses'!FA12<0.5,\"\",'2011 Survey responses'!FA12)","v":""},{"$f":"IF('2011 Survey responses'!ER12<0.5,\"\",'2011 Survey responses'!ER12)","v":""},{"$f":"IF(('2011 Survey responses'!EO12+'2011 Survey responses'!EP12)>=2,AVERAGE('2011 Survey responses'!EO12,'2011 Survey responses'!EP12),\"\")","v":""},{"$f":"IF('2011 Survey responses'!EQ12<0.5,\"\",'2011 Survey responses'!EQ12)","v":""},{"$f":"IF('2011 Survey responses'!ET12<0.5,\"\",'2011 Survey responses'!ET12)","v":""},{"$f":"IF('2011 Survey responses'!EU12<0.5,\"\",'2011 Survey responses'!EU12)","v":""},{"$f":"IF('2011 Survey responses'!EW12<0.5,\"\",'2011 Survey responses'!EW12)","v":""},{"$f":"IF('2011 Survey responses'!EY12<0.5,\"\",'2011 Survey responses'!EY12)","v":""},{"$f":"IF('2011 Survey responses'!FU12<0.5,\"\",'2011 Survey responses'!FU12)","v":""},{"$f":"IF(('2011 Survey responses'!FL12+'2011 Survey responses'!FM12)>=2,AVERAGE('2011 Survey responses'!FL12,'2011 Survey responses'!FM12),\"\")","v":""},{"$f":"IF(('2011 Survey responses'!FO12+'2011 Survey responses'!FQ12)>=2,AVERAGE('2011 Survey responses'!FO12,'2011 Survey responses'!FQ12),\"\")","v":""},{"$f":"IF('2011 Survey responses'!FJ12<0.5,\"\",'2011 Survey responses'!FJ12)","v":""},{"$f":"IF('2011 Survey responses'!FT12<0.5,\"\",'2011 Survey responses'!FT12)","v":""},{"$f":"IF('2011 Survey responses'!FR12<0.5,\"\",'2011 Survey responses'!FR12)","v":""},{"$f":"IF('2011 Survey responses'!FK12<0.5,\"\",'2011 Survey responses'!FK12)","v":""},{"$f":"IF('2011 Survey responses'!FP12<0.5,\"\",'2011 Survey responses'!FP12)","v":""},{"$f":"IF('2011 Survey responses'!FN12<0.5,\"\",'2011 Survey responses'!FN12)","v":""},{"$f":"IF(('2011 Survey responses'!FE12+'2011 Survey responses'!FF12)>=2,AVERAGE('2011 Survey responses'!FE12,'2011 Survey responses'!FF12),\"\")","v":""},{"$f":"IF('2011 Survey responses'!FS12<0.5,\"\",'2011 Survey responses'!FS12)","v":""},{"$f":"IF('2011 Survey responses'!FV12<0.5,\"\",'2011 Survey responses'!FV12)","v":""},{"$f":"IF(('2011 Survey responses'!FG12+'2011 Survey responses'!FH12)>=2,AVERAGE('2011 Survey responses'!FG12,'2011 Survey responses'!FH12),\"\")","v":""},{"$f":"IF('2011 Survey responses'!FI12<0.5,\"\",'2011 Survey responses'!FI12)","v":""},{"$f":"IF('2011 Survey responses'!FE12<0.5,\"\",'2011 Survey responses'!FE12)","v":""},{"$f":"IF('2011 Survey responses'!FF12<0.5,\"\",'2011 Survey responses'!FF12)","v":""},{"$f":"IF('2011 Survey responses'!FG12<0.5,\"\",'2011 Survey responses'!FG12)","v":""},{"$f":"IF('2011 Survey responses'!FH12<0.5,\"\",'2011 Survey responses'!FH12)","v":""},{"$f":"IF('2011 Survey responses'!FL12<0.5,\"\",'2011 Survey responses'!FL12)","v":""},{"$f":"IF('2011 Survey responses'!FM12<0.5,\"\",'2011 Survey responses'!FM12)","v":""},{"$f":"IF('2011 Survey responses'!FO12<0.5,\"\",'2011 Survey responses'!FO12)","v":""},{"$f":"IF('2011 Survey responses'!FQ12<0.5,\"\",'2011 Survey responses'!FQ12)","v":""}]
["Azerbaijan",{"$f":"IF(SUM(F13)<1,\"\",AVERAGEIF('2011 Survey responses'!B13:CP13,\">1\"))","v":3.4888888888888889},{"$f":"IF(SUM(F13)<1,\"\",AVERAGEIF('2011 Survey responses'!B13:AO13,\">1\"))","v":3.3},{"$f":"IF(SUM(F13)<1,\"\",AVERAGEIF('2011 Survey responses'!B13:BV13,\">1\"))","v":3.5277777777777777},{"$f":"IF(SUM(F13)<1,\"\",AVERAGEIF('2011 Survey responses'!V13:BV13,\">1\"))","v":3.5384615384615383},{"$f":"IF(SUM('2011 Survey responses'!B13:U13)<1,\"\",(AVERAGEIFS('2011 Survey responses'!B13:U13,'2011 Survey responses'!B13:U13,\">1\")))","v":3.5},{"$f":"IF(SUM('2011 Survey responses'!B13:H13)<1,\"\",(AVERAGEIFS('2011 Survey responses'!B13:H13,'2011 Survey responses'!B13:H13,\">1\")))","v":3.4285714285714284},{"$f":"IF(SUM('2011 Survey responses'!I13:S13)<1,\"\",(AVERAGEIFS('2011 Survey responses'!I13:S13,'2011 Survey responses'!I13:S13,\">1\")))","v":3.6363636363636362},{"$f":"IF(SUM('2011 Survey responses'!T13:U13)<2.1,\"\",(AVERAGEIFS('2011 Survey responses'!T13:U13,'2011 Survey responses'!T13:U13,\">1\")))","v":3},{"$f":"IF(SUM('2011 Survey responses'!B13:C13)<2.1,\"\",((SUMIF('2011 Survey responses'!B13:C13,\">1\")+SUMIF('2011 Survey responses'!F13,\">1\"))/(COUNTIF('2011 Survey responses'!B13:C13,\">1\")+COUNTIF('2011 Survey responses'!F13,\">1\"))))","v":4},{"$f":"IF(SUM('2011 Survey responses'!D13:E13)<2.1,\"\",(AVERAGEIFS('2011 Survey responses'!D13:E13,'2011 Survey responses'!D13:E13,\">1\")))","v":4},{"$f":"IF(('2011 Survey responses'!B13+'2011 Survey responses'!D13)<2.1,\"\",((SUMIF('2011 Survey responses'!B13,\">1\")+SUMIF('2011 Survey responses'!D13,\">1\")+SUMIF('2011 Survey responses'!F13,\">1\")+SUMIF('2011 Survey responses'!K13,\">1\"))/(COUNTIF('2011 Survey responses'!B13,\">1\")+COUNTIF('2011 Survey responses'!D13,\">1\")+COUNTIF('2011 Survey responses'!F13,\">1\")+COUNTIF('2011 Survey responses'!K13,\">1\"))))","v":4},{"$f":"IF(SUM('2011 Survey responses'!G13:H13)<2.1,\"\",(AVERAGEIFS('2011 Survey responses'!G13:H13,'2011 Survey responses'!G13:H13,\">1\")))","v":2},{"$f":"IF(SUM('2011 Survey responses'!F13:G13)<1.5,\"\",MAX('2011 Survey responses'!F13,'2011 Survey responses'!G13))","v":4},{"$f":"IF(SUM('2011 Survey responses'!G13:H13)<1,\"\",MAX('2011 Survey responses'!G13,'2011 Survey responses'!H13))","v":2},{"$f":"IF(SUM('2011 Survey responses'!I13:L13)<4.1,\"\",(AVERAGEIFS('2011 Survey responses'!I13:L13,'2011 Survey responses'!I13:L13,\">1\")))","v":3.5},{"$f":"IF(SUM('2011 Survey responses'!M13:S13)<4.1,\"\",(AVERAGEIFS('2011 Survey responses'!M13:S13,'2011 Survey responses'!M13:S13,\">1\")))","v":3.7142857142857144},{"$f":"IF(SUM('2011 Survey responses'!T13:U13)<2.1,\"\",(AVERAGEIFS('2011 Survey responses'!T13:U13,'2011 Survey responses'!T13:U13,\">1\")))","v":3},{"$f":"IF(SUM('2011 Survey responses'!V13:AO13)<1,\"\",(AVERAGEIFS('2011 Survey responses'!V13:AO13,'2011 Survey responses'!V13:AO13,\">1\")))","v":3.1},{"$f":"IF(SUM('2011 Survey responses'!V13:AA13)<1,\"\",(AVERAGEIFS('2011 Survey responses'!V13:AA13,'2011 Survey responses'!V13:AA13,\">1\")))","v":2.6666666666666665},{"$f":"IF(SUM('2011 Survey responses'!AB13:AH13)<1,\"\",(AVERAGEIFS('2011 Survey responses'!AB13:AH13,'2011 Survey responses'!AB13:AH13,\">1\")))","v":3.1428571428571428},{"$f":"IF(SUM('2011 Survey responses'!AI13:AO13)<1,\"\",(AVERAGEIFS('2011 Survey responses'!AI13:AO13,'2011 Survey responses'!AI13:AO13,\">1\")))","v":3.4285714285714284},{"$f":"IF(('2011 Survey responses'!Y13+'2011 Survey responses'!AI13+'2011 Survey responses'!AK13)<3.1,\"\",((SUMIF('2011 Survey responses'!Y13,\">1\")+SUMIF('2011 Survey responses'!AI13,\">1\")+SUMIF('2011 Survey responses'!AK13,\">1\")+SUMIF('2011 Survey responses'!AM13,\">1\"))/(COUNTIF('2011 Survey responses'!Y13,\">1\")+COUNTIF('2011 Survey responses'!AI13,\">1\")+COUNTIF('2011 Survey responses'!AK13,\">1\")+COUNTIF('2011 Survey responses'!AM13,\">1\"))))","v":3.5},{"$f":"IF(('2011 Survey responses'!W13)<1.1,\"\",('2011 Survey responses'!W13))","v":2},{"$f":"IF(('2011 Survey responses'!Y13)<1.1,\"\",('2011 Survey responses'!Y13))","v":4},{"$f":"IF(('2011 Survey responses'!Z13)<1.1,\"\",('2011 Survey responses'!Z13))","v":2},{"$f":"IF(('2011 Survey responses'!V13+'2011 Survey responses'!X13+'2011 Survey responses'!AA13)<3.1,\"\",((SUMIF('2011 Survey responses'!V13,\">1\")+SUMIF('2011 Survey responses'!X13,\">1\")+SUMIF('2011 Survey responses'!AA13,\">1\"))/(COUNTIF('2011 Survey responses'!V13,\">1\")+COUNTIF('2011 Survey responses'!X13,\">1\")+COUNTIF('2011 Survey responses'!AA13,\">1\"))))","v":2.6666666666666665},{"$f":"IF(('2011 Survey responses'!V13+'2011 Survey responses'!Y13+'2011 Survey responses'!AA13)<3.1,\"\",((SUMIF('2011 Survey responses'!V13,\">1\")+SUMIF('2011 Survey responses'!Y13,\">1\")+SUMIF('2011 Survey responses'!AA13,\">1\"))/(COUNTIF('2011 Survey responses'!V13,\">1\")+COUNTIF('2011 Survey responses'!Y13,\">1\")+COUNTIF('2011 Survey responses'!AA13,\">1\"))))","v":3.3333333333333335},{"$f":"IF(SUM('2011 Survey responses'!AB13:AH13)<1,\"\",(AVERAGEIFS('2011 Survey responses'!AB13:AH13,'2011 Survey responses'!AB13:AH13,\">1\")))","v":3.1428571428571428},{"$f":"IF(SUM('2011 Survey responses'!AI13:AO13)<7.1,\"\",(AVERAGEIFS('2011 Survey responses'!AI13:AO13,'2011 Survey responses'!AI13:AO13,\">1\")))","v":3.4285714285714284},{"$f":"IF(('2011 Survey responses'!AH13)<1.1,\"\",('2011 Survey responses'!AH13))","v":2},{"$f":"IF(SUM('2011 Survey responses'!AP13:BV13)<1,\"\",(AVERAGEIFS('2011 Survey responses'!AP13:BV13,'2011 Survey responses'!AP13:BV13,\">1\")))","v":3.8125},{"$f":"IF(SUM('2011 Survey responses'!AP13:AS13)<4.1,\"\",(AVERAGEIFS('2011 Survey responses'!AP13:AS13,'2011 Survey responses'!AP13:AS13,\">1\")))","v":3.5},{"$f":"IF(SUM('2011 Survey responses'!AT13:BF13)<1,\"\",(AVERAGEIFS('2011 Survey responses'!AT13:BF13,'2011 Survey responses'!AT13:BF13,\">1\")))","v":3.3076923076923075},{"$f":"IF(SUM('2011 Survey responses'!BG13:BO13)<1,\"\",(AVERAGEIFS('2011 Survey responses'!BG13:BO13,'2011 Survey responses'!BG13:BO13,\">1\")))","v":4.8888888888888893},{"$f":"IF(SUM('2011 Survey responses'!BP13:BS13)<1,\"\",(AVERAGEIFS('2011 Survey responses'!BP13:BS13,'2011 Survey responses'!BP13:BS13,\">1\")))","v":2.6666666666666665},{"$f":"IF(SUM('2011 Survey responses'!BT13:BV13)<3.1,\"\",(AVERAGEIFS('2011 Survey responses'!BT13:BV13,'2011 Survey responses'!BT13:BV13,\">1\")))","v":4.333333333333333},{"$f":"IF(('2011 Survey responses'!AQ13+'2011 Survey responses'!AR13+'2011 Survey responses'!BG13)<3.1,\"\",((SUMIF('2011 Survey responses'!AQ13,\">1\")+SUMIF('2011 Survey responses'!AR13,\">1\")+SUMIF('2011 Survey responses'!BG13,\">1\"))/(COUNTIF('2011 Survey responses'!AQ13,\">1\")+COUNTIF('2011 Survey responses'!AR13,\">1\")+COUNTIF('2011 Survey responses'!BG13,\">1\"))))","v":4.333333333333333},{"$f":"IF(SUM('2011 Survey responses'!AP13:AS13)<4.1,\"\",(AVERAGEIFS('2011 Survey responses'!AP13:AS13,'2011 Survey responses'!AP13:AS13,\">1\")))","v":3.5},{"$f":"IF(('2011 Survey responses'!AU13+'2011 Survey responses'!AX13+'2011 Survey responses'!BA13+'2011 Survey responses'!BC13+'2011 Survey responses'!BD13)<5.1,\"\",(SUMIF('2011 Survey responses'!AU13,\">1\")+SUMIF('2011 Survey responses'!AX13,\">1\")+SUMIF('2011 Survey responses'!BA13,\">1\")+SUMIF('2011 Survey responses'!BC13,\">1\")+SUMIF('2011 Survey responses'!BD13,\">1\"))/(COUNTIF('2011 Survey responses'!AU13,\">1\")+COUNTIF('2011 Survey responses'!AX13,\">1\")+COUNTIF('2011 Survey responses'!BA13,\">1\")+COUNTIF('2011 Survey responses'!BC13,\">1\")+COUNTIF('2011 Survey responses'!BD13,\">1\")))","v":3.2},{"$f":"IF(('2011 Survey responses'!AT13)<1.1,\"\",('2011 Survey responses'!AT13))","v":2},{"$f":"IF(SUM('2011 Survey responses'!AV13:AW13)<2.1,\"\",(AVERAGEIFS('2011 Survey responses'!AV13:AW13,'2011 Survey responses'!AV13:AW13,\">1\")))","v":3},{"$f":"IF(('2011 Survey responses'!AW13+'2011 Survey responses'!AY13)<2.1,\"\",(SUMIF('2011 Survey responses'!AW13,\">1\")+SUMIF('2011 Survey responses'!AY13,\">1\"))/(COUNTIF('2011 Survey responses'!AW13,\">1\")+COUNTIF('2011 Survey responses'!AY13,\">1\")))","v":4},{"$f":"IF(('2011 Survey responses'!AZ13)<1.1,\"\",('2011 Survey responses'!AZ13))","v":4},4,2,2,4,{"$f":"IF(('2011 Survey responses'!BE13)<1.1,\"\",('2011 Survey responses'!BE13))","v":4},{"$f":"IF(('2011 Survey responses'!AY13+'2011 Survey responses'!BB13+'2011 Survey responses'!BF13)<3.1,\"\",(SUMIF('2011 Survey responses'!AY13,\">1\")+SUMIF('2011 Survey responses'!BB13,\">1\")+SUMIF('2011 Survey responses'!BF13,\">1\"))/(COUNTIF('2011 Survey responses'!AY13,\">1\")+COUNTIF('2011 Survey responses'!BB13,\">1\")+COUNTIF('2011 Survey responses'!BF13,\">1\")))","v":3.6666666666666665},3.7777777777777777,{"$f":"IF(SUM('2011 Survey responses'!BT13:BV13)<3.1,\"\",(AVERAGEIFS('2011 Survey responses'!BT13:BV13,'2011 Survey responses'!BT13:BV13,\">1\")))","v":4.333333333333333},{"$f":"IF(SUM('2011 Survey responses'!BW13:CP13)<1,\"\",(AVERAGEIFS('2011 Survey responses'!BW13:CP13,'2011 Survey responses'!BW13:CP13,\">1\")))","v":3.3333333333333335},{"$f":"IF(SUM('2011 Survey responses'!BW13:CF13)<1,\"\",(AVERAGEIFS('2011 Survey responses'!BW13:CF13,'2011 Survey responses'!BW13:CF13,\">1\")))","v":3.3333333333333335},{"$f":"IF(SUM('2011 Survey responses'!CG13:CP13)<1,\"\",(AVERAGEIFS('2011 Survey responses'!CG13:CP13,'2011 Survey responses'!CG13:CP13,\">1\")))","v":3.3333333333333335},{"$f":"IF(SUM('2011 Survey responses'!BX13:CF13)<1,\"\",(AVERAGEIFS('2011 Survey responses'!BX13:CF13,'2011 Survey responses'!BX13:CF13,\">1\")))","v":3.25},{"$f":"IF(SUM('2011 Survey responses'!CH13:CP13)<1,\"\",(AVERAGEIFS('2011 Survey responses'!CH13:CP13,'2011 Survey responses'!CH13:CP13,\">1\")))","v":3.25},{"$f":"IF(SUM('2011 Survey responses'!BW13:CP13)<1,\"\",(AVERAGEIFS('2011 Survey responses'!BW13:CP13,'2011 Survey responses'!BW13:CP13,\">1\")))","v":3.3333333333333335},{"$f":"IF(('2011 Survey responses'!BW13+'2011 Survey responses'!CG13)<2.1,\"\",(SUMIF('2011 Survey responses'!BW13,\">1\")+SUMIF('2011 Survey responses'!CG13,\">1\"))/(COUNTIF('2011 Survey responses'!BW13,\">1\")+COUNTIF('2011 Survey responses'!CG13,\">1\")))","v":4},{"$f":"IF(('2011 Survey responses'!BX13+'2011 Survey responses'!CH13)<2.1,\"\",(SUMIF('2011 Survey responses'!BX13,\">1\")+SUMIF('2011 Survey responses'!CH13,\">1\"))/(COUNTIF('2011 Survey responses'!BX13,\">1\")+COUNTIF('2011 Survey responses'!CH13,\">1\")))","v":4},{"$f":"IF(('2011 Survey responses'!BY13+'2011 Survey responses'!CI13)<2.1,\"\",(SUMIF('2011 Survey responses'!BY13,\">1\")+SUMIF('2011 Survey responses'!CI13,\">1\"))/(COUNTIF('2011 Survey responses'!BY13,\">1\")+COUNTIF('2011 Survey responses'!CI13,\">1\")))","v":4},{"$f":"IF('2011 Survey responses'!CQ13<0.5,\"\",'2011 Survey responses'!CQ13)","v":4},{"$f":"IF('2011 Survey responses'!CR13<0.5,\"\",'2011 Survey responses'!CR13)","v":1},{"$f":"IF('2011 Survey responses'!CS13<0.5,\"\",'2011 Survey responses'!CS13)","v":4},{"$f":"IF('2011 Survey responses'!CT13<0.5,\"\",'2011 Survey responses'!CT13)","v":1},{"$f":"IF('2011 Survey responses'!CU13<0.5,\"\",'2011 Survey responses'!CU13)","v":4},{"$f":"IF('2011 Survey responses'!CV13<0.5,\"\",'2011 Survey responses'!CV13)","v":1},{"$f":"IF(SUM('2011 Survey responses'!CW13:DL13)<1,\"\",(AVERAGE('2011 Survey responses'!CW13:DL13)))","v":4.1875},{"$f":"IF(SUM('2011 Survey responses'!CW13:CZ13)<1,\"\",(AVERAGE('2011 Survey responses'!CW13:CZ13)))","v":4.5},{"$f":"IF(SUM('2011 Survey responses'!DA13:DD13)<1,\"\",(AVERAGE('2011 Survey responses'!DA13:DD13)))","v":4.25},{"$f":"IF(SUM('2011 Survey responses'!DE13:DH13)<1,\"\",(AVERAGE('2011 Survey responses'!DE13:DH13)))","v":4},{"$f":"IF(SUM('2011 Survey responses'!DI13:DL13)<1,\"\",(AVERAGE('2011 Survey responses'!DI13:DL13)))","v":4},{"$f":"IF(('2011 Survey responses'!CW13+'2011 Survey responses'!DA13+'2011 Survey responses'!DE13+'2011 Survey responses'!DI13)<1,\"\",AVERAGE('2011 Survey responses'!CW13,'2011 Survey responses'!DA13,'2011 Survey responses'!DE13,'2011 Survey responses'!DI13))","v":4.25},{"$f":"IF(('2011 Survey responses'!CX13+'2011 Survey responses'!DB13+'2011 Survey responses'!DF13+'2011 Survey responses'!DJ13)<1,\"\",AVERAGE('2011 Survey responses'!CX13,'2011 Survey responses'!DB13,'2011 Survey responses'!DF13,'2011 Survey responses'!DJ13))","v":4},{"$f":"IF(('2011 Survey responses'!CY13+'2011 Survey responses'!DC13+'2011 Survey responses'!DG13+'2011 Survey responses'!DK13)<1,\"\",AVERAGE('2011 Survey responses'!CY13,'2011 Survey responses'!DC13,'2011 Survey responses'!DG13,'2011 Survey responses'!DK13))","v":4.5},{"$f":"IF(('2011 Survey responses'!CZ13+'2011 Survey responses'!DD13+'2011 Survey responses'!DH13+'2011 Survey responses'!DL13)<1,\"\",AVERAGE('2011 Survey responses'!CZ13,'2011 Survey responses'!DD13,'2011 Survey responses'!DH13,'2011 Survey responses'!DL13))","v":4},{"$f":"IF('2011 Survey responses'!CW13<0.5,\"\",'2011 Survey responses'!CW13)","v":5},{"$f":"IF('2011 Survey responses'!CX13<0.5,\"\",'2011 Survey responses'!CX13)","v":4},{"$f":"IF('2011 Survey responses'!CY13<0.5,\"\",'2011 Survey responses'!CY13)","v":5},{"$f":"IF('2011 Survey responses'!CZ13<0.5,\"\",'2011 Survey responses'!CZ13)","v":4},{"$f":"IF('2011 Survey responses'!DA13<0.5,\"\",'2011 Survey responses'!DA13)","v":4},{"$f":"IF('2011 Survey responses'!DB13<0.5,\"\",'2011 Survey responses'!DB13)","v":4},{"$f":"IF('2011 Survey responses'!DC13<0.5,\"\",'2011 Survey responses'!DC13)","v":5},{"$f":"IF('2011 Survey responses'!DD13<0.5,\"\",'2011 Survey responses'!DD13)","v":4},{"$f":"IF('2011 Survey responses'!DE13<0.5,\"\",'2011 Survey responses'!DE13)","v":4},{"$f":"IF('2011 Survey responses'!DF13<0.5,\"\",'2011 Survey responses'!DF13)","v":4},{"$f":"IF('2011 Survey responses'!DG13<0.5,\"\",'2011 Survey responses'!DG13)","v":4},{"$f":"IF('2011 Survey responses'!DH13<0.5,\"\",'2011 Survey responses'!DH13)","v":4},{"$f":"IF('2011 Survey responses'!DI13<0.5,\"\",'2011 Survey responses'!DI13)","v":4},{"$f":"IF('2011 Survey responses'!DJ13<0.5,\"\",'2011 Survey responses'!DJ13)","v":4},{"$f":"IF('2011 Survey responses'!DK13<0.5,\"\",'2011 Survey responses'!DK13)","v":4},{"$f":"IF('2011 Survey responses'!DL13<0.5,\"\",'2011 Survey responses'!DL13)","v":4},{"$f":"IF('2011 Survey responses'!DU13=4,4,IF('2011 Survey responses'!DU13=5,4,\"\"))","v":4},{"$f":"IF('2011 Survey responses'!DV13=4,3,IF('2011 Survey responses'!DV13=5,3,\"\"))","v":""},"",{"$f":"IF(CQ13=2,CQ13,IF(CO13=4,CO13,IF(CP13=3,CP13,IF('2011 Survey responses'!GT13=1,1,\"\"))))","v":4},{"$f":"IF('2011 Survey responses'!DO13<0.5,\"\",'2011 Survey responses'!DO13)","v":3},{"$f":"IF('2011 Survey responses'!DP13<0.5,\"\",'2011 Survey responses'!DP13)","v":3},{"$f":"IF('2011 Survey responses'!DQ13<0.5,\"\",'2011 Survey responses'!DQ13)","v":1},{"$f":"IF('2011 Survey responses'!DR13<0.5,\"\",'2011 Survey responses'!DR13)","v":1},{"$f":"IF('2011 Survey responses'!DS13<0.5,\"\",'2011 Survey responses'!DS13)","v":1},{"$f":"IF('2011 Survey responses'!DT13<0.5,\"\",'2011 Survey responses'!DT13)","v":3},{"$f":"IF('2011 Survey responses'!DU13<0.5,\"\",'2011 Survey responses'!DU13)","v":4},{"$f":"IF('2011 Survey responses'!DV13<0.5,\"\",'2011 Survey responses'!DV13)","v":3},{"$f":"IF('2011 Survey responses'!DW13<0.5,\"\",'2011 Survey responses'!DW13)","v":3},{"$f":"IF('2011 Survey responses'!DX13<0.5,\"\",'2011 Survey responses'!DX13)","v":1},{"$f":"IF('2011 Survey responses'!DY13<0.5,\"\",'2011 Survey responses'!DY13)","v":4},{"$f":"IF('2011 Survey responses'!DZ13<0.5,\"\",'2011 Survey responses'!DZ13)","v":1},{"$f":"IF('2011 Survey responses'!EA13<0.5,\"\",'2011 Survey responses'!EA13)","v":4},{"$f":"IF('2011 Survey responses'!EB13<0.5,\"\",'2011 Survey responses'!EB13)","v":2},{"$f":"IF('2011 Survey responses'!EC13<0.5,\"\",'2011 Survey responses'!EC13)","v":2},{"$f":"IF('2011 Survey responses'!ED13<0.5,\"\",'2011 Survey responses'!ED13)","v":4},{"$f":"IF('2011 Survey responses'!EE13<0.5,\"\",'2011 Survey responses'!EE13)","v":3},{"$f":"IF('2011 Survey responses'!EF13<0.5,\"\",'2011 Survey responses'!EF13)","v":4},{"$f":"IF('2011 Survey responses'!EG13<0.5,\"\",'2011 Survey responses'!EG13)","v":5},{"$f":"IF('2011 Survey responses'!EH13<0.5,\"\",'2011 Survey responses'!EH13)","v":4},{"$f":"IF('2011 Survey responses'!EI13<0.5,\"\",'2011 Survey responses'!EI13)","v":4},{"$f":"IF('2011 Survey responses'!EJ13<0.5,\"\",'2011 Survey responses'!EJ13)","v":3},{"$f":"IF('2011 Survey responses'!EK13<0.5,\"\",'2011 Survey responses'!EK13)","v":5},{"$f":"IF('2011 Survey responses'!EL13<0.5,\"\",'2011 Survey responses'!EL13)","v":4},{"$f":"IF('2011 Survey responses'!EM13<0.5,\"\",'2011 Survey responses'!EM13)","v":3},{"$f":"IF('2011 Survey responses'!EN13<0.5,\"\",'2011 Survey responses'!EN13)","v":4},{"$f":"IF('2011 Survey responses'!EO13<0.5,\"\",'2011 Survey responses'!EO13)","v":3},{"$f":"IF('2011 Survey responses'!EP13<0.5,\"\",'2011 Survey responses'!EP13)","v":3},{"$f":"IF(('2011 Survey responses'!EW13+'2011 Survey responses'!EX13)>=2,AVERAGE('2011 Survey responses'!EW13,'2011 Survey responses'!EY13),\"\")","v":1},{"$f":"IF('2011 Survey responses'!EX13<0.5,\"\",'2011 Survey responses'!EX13)","v":1},{"$f":"IF('2011 Survey responses'!EZ13<0.5,\"\",'2011 Survey responses'!EZ13)","v":1},{"$f":"IF('2011 Survey responses'!FB13<0.5,\"\",'2011 Survey responses'!FB13)","v":1},{"$f":"IF('2011 Survey responses'!FD13<0.5,\"\",'2011 Survey responses'!FD13)","v":1},{"$f":"IF('2011 Survey responses'!FC13<0.5,\"\",'2011 Survey responses'!FC13)","v":3},{"$f":"IF(('2011 Survey responses'!EM13+'2011 Survey responses'!EN13)>=2,AVERAGE('2011 Survey responses'!EM13,'2011 Survey responses'!EN13),\"\")","v":3.5},{"$f":"IF('2011 Survey responses'!ES13<0.5,\"\",'2011 Survey responses'!ES13)","v":1},{"$f":"IF(('2011 Survey responses'!ET13+'2011 Survey responses'!EU13)>=2,AVERAGE('2011 Survey responses'!ET13,'2011 Survey responses'!EU13),\"\")","v":2.5},{"$f":"IF('2011 Survey responses'!EV13<0.5,\"\",'2011 Survey responses'!EV13)","v":2},{"$f":"IF('2011 Survey responses'!FA13<0.5,\"\",'2011 Survey responses'!FA13)","v":2},{"$f":"IF('2011 Survey responses'!ER13<0.5,\"\",'2011 Survey responses'!ER13)","v":1},{"$f":"IF(('2011 Survey responses'!EO13+'2011 Survey responses'!EP13)>=2,AVERAGE('2011 Survey responses'!EO13,'2011 Survey responses'!EP13),\"\")","v":3},{"$f":"IF('2011 Survey responses'!EQ13<0.5,\"\",'2011 Survey responses'!EQ13)","v":2},{"$f":"IF('2011 Survey responses'!ET13<0.5,\"\",'2011 Survey responses'!ET13)","v":2},{"$f":"IF('2011 Survey responses'!EU13<0.5,\"\",'2011 Survey responses'!EU13)","v":3},{"$f":"IF('2011 Survey responses'!EW13<0.5,\"\",'2011 Survey responses'!EW13)","v":1},{"$f":"IF('2011 Survey responses'!EY13<0.5,\"\",'2011 Survey responses'!EY13)","v":1},{"$f":"IF('2011 Survey responses'!FU13<0.5,\"\",'2011 Survey responses'!FU13)","v":2},{"$f":"IF(('2011 Survey responses'!FL13+'2011 Survey responses'!FM13)>=2,AVERAGE('2011 Survey responses'!FL13,'2011 Survey responses'!FM13),\"\")","v":1.5},{"$f":"IF(('2011 Survey responses'!FO13+'2011 Survey responses'!FQ13)>=2,AVERAGE('2011 Survey responses'!FO13,'2011 Survey responses'!FQ13),\"\")","v":1},{"$f":"IF('2011 Survey responses'!FJ13<0.5,\"\",'2011 Survey responses'!FJ13)","v":1},{"$f":"IF('2011 Survey responses'!FT13<0.5,\"\",'2011 Survey responses'!FT13)","v":1},{"$f":"IF('2011 Survey responses'!FR13<0.5,\"\",'2011 Survey responses'!FR13)","v":1},{"$f":"IF('2011 Survey responses'!FK13<0.5,\"\",'2011 Survey responses'!FK13)","v":2},{"$f":"IF('2011 Survey responses'!FP13<0.5,\"\",'2011 Survey responses'!FP13)","v":1},{"$f":"IF('2011 Survey responses'!FN13<0.5,\"\",'2011 Survey responses'!FN13)","v":2},{"$f":"IF(('2011 Survey responses'!FE13+'2011 Survey responses'!FF13)>=2,AVERAGE('2011 Survey responses'!FE13,'2011 Survey responses'!FF13),\"\")","v":1},{"$f":"IF('2011 Survey responses'!FS13<0.5,\"\",'2011 Survey responses'!FS13)","v":1},{"$f":"IF('2011 Survey responses'!FV13<0.5,\"\",'2011 Survey responses'!FV13)","v":2},{"$f":"IF(('2011 Survey responses'!FG13+'2011 Survey responses'!FH13)>=2,AVERAGE('2011 Survey responses'!FG13,'2011 Survey responses'!FH13),\"\")","v":2},{"$f":"IF('2011 Survey responses'!FI13<0.5,\"\",'2011 Survey responses'!FI13)","v":2},{"$f":"IF('2011 Survey responses'!FE13<0.5,\"\",'2011 Survey responses'!FE13)","v":1},{"$f":"IF('2011 Survey responses'!FF13<0.5,\"\",'2011 Survey responses'!FF13)","v":1},{"$f":"IF('2011 Survey responses'!FG13<0.5,\"\",'2011 Survey responses'!FG13)","v":2},{"$f":"IF('2011 Survey responses'!FH13<0.5,\"\",'2011 Survey responses'!FH13)","v":2},{"$f":"IF('2011 Survey responses'!FL13<0.5,\"\",'2011 Survey responses'!FL13)","v":1},{"$f":"IF('2011 Survey responses'!FM13<0.5,\"\",'2011 Survey responses'!FM13)","v":2},{"$f":"IF('2011 Survey responses'!FO13<0.5,\"\",'2011 Survey responses'!FO13)","v":1},{"$f":"IF('2011 Survey responses'!FQ13<0.5,\"\",'2011 Survey responses'!FQ13)","v":1}]
["Bahamas",{"$f":"IF(SUM(F14)<1,\"\",AVERAGEIF('2011 Survey responses'!B14:CP14,\">1\"))","v":3.6551724137931036},{"$f":"IF(SUM(F14)<1,\"\",AVERAGEIF('2011 Survey responses'!B14:AO14,\">1\"))","v":3.4285714285714284},{"$f":"IF(SUM(F14)<1,\"\",AVERAGEIF('2011 Survey responses'!B14:BV14,\">1\"))","v":3.4925373134328357},{"$f":"IF(SUM(F14)<1,\"\",AVERAGEIF('2011 Survey responses'!V14:BV14,\">1\"))","v":3.489795918367347},{"$f":"IF(SUM('2011 Survey responses'!B14:U14)<1,\"\",(AVERAGEIFS('2011 Survey responses'!B14:U14,'2011 Survey responses'!B14:U14,\">1\")))","v":3.5},{"$f":"IF(SUM('2011 Survey responses'!B14:H14)<1,\"\",(AVERAGEIFS('2011 Survey responses'!B14:H14,'2011 Survey responses'!B14:H14,\">1\")))","v":3.7142857142857144},{"$f":"IF(SUM('2011 Survey responses'!I14:S14)<1,\"\",(AVERAGEIFS('2011 Survey responses'!I14:S14,'2011 Survey responses'!I14:S14,\">1\")))","v":3.2},{"$f":"IF(SUM('2011 Survey responses'!T14:U14)<2.1,\"\",(AVERAGEIFS('2011 Survey responses'!T14:U14,'2011 Survey responses'!T14:U14,\">1\")))","v":5},{"$f":"IF(SUM('2011 Survey responses'!B14:C14)<2.1,\"\",((SUMIF('2011 Survey responses'!B14:C14,\">1\")+SUMIF('2011 Survey responses'!F14,\">1\"))/(COUNTIF('2011 Survey responses'!B14:C14,\">1\")+COUNTIF('2011 Survey responses'!F14,\">1\"))))","v":3.6666666666666665},{"$f":"IF(SUM('2011 Survey responses'!D14:E14)<2.1,\"\",(AVERAGEIFS('2011 Survey responses'!D14:E14,'2011 Survey responses'!D14:E14,\">1\")))","v":3.5},{"$f":"IF(('2011 Survey responses'!B14+'2011 Survey responses'!D14)<2.1,\"\",((SUMIF('2011 Survey responses'!B14,\">1\")+SUMIF('2011 Survey responses'!D14,\">1\")+SUMIF('2011 Survey responses'!F14,\">1\")+SUMIF('2011 Survey responses'!K14,\">1\"))/(COUNTIF('2011 Survey responses'!B14,\">1\")+COUNTIF('2011 Survey responses'!D14,\">1\")+COUNTIF('2011 Survey responses'!F14,\">1\")+COUNTIF('2011 Survey responses'!K14,\">1\"))))","v":3.75},{"$f":"IF(SUM('2011 Survey responses'!G14:H14)<2.1,\"\",(AVERAGEIFS('2011 Survey responses'!G14:H14,'2011 Survey responses'!G14:H14,\">1\")))","v":4},{"$f":"IF(SUM('2011 Survey responses'!F14:G14)<1.5,\"\",MAX('2011 Survey responses'!F14,'2011 Survey responses'!G14))","v":4},{"$f":"IF(SUM('2011 Survey responses'!G14:H14)<1,\"\",MAX('2011 Survey responses'!G14,'2011 Survey responses'!H14))","v":4},{"$f":"IF(SUM('2011 Survey responses'!I14:L14)<4.1,\"\",(AVERAGEIFS('2011 Survey responses'!I14:L14,'2011 Survey responses'!I14:L14,\">1\")))","v":3.6666666666666665},{"$f":"IF(SUM('2011 Survey responses'!M14:S14)<4.1,\"\",(AVERAGEIFS('2011 Survey responses'!M14:S14,'2011 Survey responses'!M14:S14,\">1\")))","v":3},{"$f":"IF(SUM('2011 Survey responses'!T14:U14)<2.1,\"\",(AVERAGEIFS('2011 Survey responses'!T14:U14,'2011 Survey responses'!T14:U14,\">1\")))","v":5},{"$f":"IF(SUM('2011 Survey responses'!V14:AO14)<1,\"\",(AVERAGEIFS('2011 Survey responses'!V14:AO14,'2011 Survey responses'!V14:AO14,\">1\")))","v":3.3529411764705883},{"$f":"IF(SUM('2011 Survey responses'!V14:AA14)<1,\"\",(AVERAGEIFS('2011 Survey responses'!V14:AA14,'2011 Survey responses'!V14:AA14,\">1\")))","v":2.3333333333333335},{"$f":"IF(SUM('2011 Survey responses'!AB14:AH14)<1,\"\",(AVERAGEIFS('2011 Survey responses'!AB14:AH14,'2011 Survey responses'!AB14:AH14,\">1\")))","v":3.4285714285714284},{"$f":"IF(SUM('2011 Survey responses'!AI14:AO14)<1,\"\",(AVERAGEIFS('2011 Survey responses'!AI14:AO14,'2011 Survey responses'!AI14:AO14,\">1\")))","v":3.7142857142857144},{"$f":"IF(('2011 Survey responses'!Y14+'2011 Survey responses'!AI14+'2011 Survey responses'!AK14)<3.1,\"\",((SUMIF('2011 Survey responses'!Y14,\">1\")+SUMIF('2011 Survey responses'!AI14,\">1\")+SUMIF('2011 Survey responses'!AK14,\">1\")+SUMIF('2011 Survey responses'!AM14,\">1\"))/(COUNTIF('2011 Survey responses'!Y14,\">1\")+COUNTIF('2011 Survey responses'!AI14,\">1\")+COUNTIF('2011 Survey responses'!AK14,\">1\")+COUNTIF('2011 Survey responses'!AM14,\">1\"))))","v":3.25},{"$f":"IF(('2011 Survey responses'!W14)<1.1,\"\",('2011 Survey responses'!W14))","v":3},{"$f":"IF(('2011 Survey responses'!Y14)<1.1,\"\",('2011 Survey responses'!Y14))","v":2},{"$f":"IF(('2011 Survey responses'!Z14)<1.1,\"\",('2011 Survey responses'!Z14))","v":""},{"$f":"IF(('2011 Survey responses'!V14+'2011 Survey responses'!X14+'2011 Survey responses'!AA14)<3.1,\"\",((SUMIF('2011 Survey responses'!V14,\">1\")+SUMIF('2011 Survey responses'!X14,\">1\")+SUMIF('2011 Survey responses'!AA14,\">1\"))/(COUNTIF('2011 Survey responses'!V14,\">1\")+COUNTIF('2011 Survey responses'!X14,\">1\")+COUNTIF('2011 Survey responses'!AA14,\">1\"))))","v":2},{"$f":"IF(('2011 Survey responses'!V14+'2011 Survey responses'!Y14+'2011 Survey responses'!AA14)<3.1,\"\",((SUMIF('2011 Survey responses'!V14,\">1\")+SUMIF('2011 Survey responses'!Y14,\">1\")+SUMIF('2011 Survey responses'!AA14,\">1\"))/(COUNTIF('2011 Survey responses'!V14,\">1\")+COUNTIF('2011 Survey responses'!Y14,\">1\")+COUNTIF('2011 Survey responses'!AA14,\">1\"))))","v":2},{"$f":"IF(SUM('2011 Survey responses'!AB14:AH14)<1,\"\",(AVERAGEIFS('2011 Survey responses'!AB14:AH14,'2011 Survey responses'!AB14:AH14,\">1\")))","v":3.4285714285714284},{"$f":"IF(SUM('2011 Survey responses'!AI14:AO14)<7.1,\"\",(AVERAGEIFS('2011 Survey responses'!AI14:AO14,'2011 Survey responses'!AI14:AO14,\">1\")))","v":3.7142857142857144},{"$f":"IF(('2011 Survey responses'!AH14)<1.1,\"\",('2011 Survey responses'!AH14))","v":2},{"$f":"IF(SUM('2011 Survey responses'!AP14:BV14)<1,\"\",(AVERAGEIFS('2011 Survey responses'!AP14:BV14,'2011 Survey responses'!AP14:BV14,\">1\")))","v":3.5625},{"$f":"IF(SUM('2011 Survey responses'!AP14:AS14)<4.1,\"\",(AVERAGEIFS('2011 Survey responses'!AP14:AS14,'2011 Survey responses'!AP14:AS14,\">1\")))","v":4.25},{"$f":"IF(SUM('2011 Survey responses'!AT14:BF14)<1,\"\",(AVERAGEIFS('2011 Survey responses'!AT14:BF14,'2011 Survey responses'!AT14:BF14,\">1\")))","v":3.25},{"$f":"IF(SUM('2011 Survey responses'!BG14:BO14)<1,\"\",(AVERAGEIFS('2011 Survey responses'!BG14:BO14,'2011 Survey responses'!BG14:BO14,\">1\")))","v":4},{"$f":"IF(SUM('2011 Survey responses'!BP14:BS14)<1,\"\",(AVERAGEIFS('2011 Survey responses'!BP14:BS14,'2011 Survey responses'!BP14:BS14,\">1\")))","v":3.25},{"$f":"IF(SUM('2011 Survey responses'!BT14:BV14)<3.1,\"\",(AVERAGEIFS('2011 Survey responses'!BT14:BV14,'2011 Survey responses'!BT14:BV14,\">1\")))","v":3},{"$f":"IF(('2011 Survey responses'!AQ14+'2011 Survey responses'!AR14+'2011 Survey responses'!BG14)<3.1,\"\",((SUMIF('2011 Survey responses'!AQ14,\">1\")+SUMIF('2011 Survey responses'!AR14,\">1\")+SUMIF('2011 Survey responses'!BG14,\">1\"))/(COUNTIF('2011 Survey responses'!AQ14,\">1\")+COUNTIF('2011 Survey responses'!AR14,\">1\")+COUNTIF('2011 Survey responses'!BG14,\">1\"))))","v":4},{"$f":"IF(SUM('2011 Survey responses'!AP14:AS14)<4.1,\"\",(AVERAGEIFS('2011 Survey responses'!AP14:AS14,'2011 Survey responses'!AP14:AS14,\">1\")))","v":4.25},{"$f":"IF(('2011 Survey responses'!AU14+'2011 Survey responses'!AX14+'2011 Survey responses'!BA14+'2011 Survey responses'!BC14+'2011 Survey responses'!BD14)<5.1,\"\",(SUMIF('2011 Survey responses'!AU14,\">1\")+SUMIF('2011 Survey responses'!AX14,\">1\")+SUMIF('2011 Survey responses'!BA14,\">1\")+SUMIF('2011 Survey responses'!BC14,\">1\")+SUMIF('2011 Survey responses'!BD14,\">1\"))/(COUNTIF('2011 Survey responses'!AU14,\">1\")+COUNTIF('2011 Survey responses'!AX14,\">1\")+COUNTIF('2011 Survey responses'!BA14,\">1\")+COUNTIF('2011 Survey responses'!BC14,\">1\")+COUNTIF('2011 Survey responses'!BD14,\">1\")))","v":3.4},{"$f":"IF(('2011 Survey responses'!AT14)<1.1,\"\",('2011 Survey responses'!AT14))","v":5},{"$f":"IF(SUM('2011 Survey responses'!AV14:AW14)<2.1,\"\",(AVERAGEIFS('2011 Survey responses'!AV14:AW14,'2011 Survey responses'!AV14:AW14,\">1\")))","v":3},{"$f":"IF(('2011 Survey responses'!AW14+'2011 Survey responses'!AY14)<2.1,\"\",(SUMIF('2011 Survey responses'!AW14,\">1\")+SUMIF('2011 Survey responses'!AY14,\">1\"))/(COUNTIF('2011 Survey responses'!AW14,\">1\")+COUNTIF('2011 Survey responses'!AY14,\">1\")))","v":3.5},{"$f":"IF(('2011 Survey responses'!AZ14)<1.1,\"\",('2011 Survey responses'!AZ14))","v":4},4,2,2,3,{"$f":"IF(('2011 Survey responses'!BE14)<1.1,\"\",('2011 Survey responses'!BE14))","v":""},{"$f":"IF(('2011 Survey responses'!AY14+'2011 Survey responses'!BB14+'2011 Survey responses'!BF14)<3.1,\"\",(SUMIF('2011 Survey responses'!AY14,\">1\")+SUMIF('2011 Survey responses'!BB14,\">1\")+SUMIF('2011 Survey responses'!BF14,\">1\"))/(COUNTIF('2011 Survey responses'!AY14,\">1\")+COUNTIF('2011 Survey responses'!BB14,\">1\")+COUNTIF('2011 Survey responses'!BF14,\">1\")))","v":2.3333333333333335},3.625,{"$f":"IF(SUM('2011 Survey responses'!BT14:BV14)<3.1,\"\",(AVERAGEIFS('2011 Survey responses'!BT14:BV14,'2011 Survey responses'!BT14:BV14,\">1\")))","v":3},{"$f":"IF(SUM('2011 Survey responses'!BW14:CP14)<1,\"\",(AVERAGEIFS('2011 Survey responses'!BW14:CP14,'2011 Survey responses'!BW14:CP14,\">1\")))","v":4.2},{"$f":"IF(SUM('2011 Survey responses'!BW14:CF14)<1,\"\",(AVERAGEIFS('2011 Survey responses'!BW14:CF14,'2011 Survey responses'!BW14:CF14,\">1\")))","v":4.3},{"$f":"IF(SUM('2011 Survey responses'!CG14:CP14)<1,\"\",(AVERAGEIFS('2011 Survey responses'!CG14:CP14,'2011 Survey responses'!CG14:CP14,\">1\")))","v":4.0999999999999996},{"$f":"IF(SUM('2011 Survey responses'!BX14:CF14)<1,\"\",(AVERAGEIFS('2011 Survey responses'!BX14:CF14,'2011 Survey responses'!BX14:CF14,\">1\")))","v":4.333333333333333},{"$f":"IF(SUM('2011 Survey responses'!CH14:CP14)<1,\"\",(AVERAGEIFS('2011 Survey responses'!CH14:CP14,'2011 Survey responses'!CH14:CP14,\">1\")))","v":4},{"$f":"IF(SUM('2011 Survey responses'!BW14:CP14)<1,\"\",(AVERAGEIFS('2011 Survey responses'!BW14:CP14,'2011 Survey responses'!BW14:CP14,\">1\")))","v":4.2},{"$f":"IF(('2011 Survey responses'!BW14+'2011 Survey responses'!CG14)<2.1,\"\",(SUMIF('2011 Survey responses'!BW14,\">1\")+SUMIF('2011 Survey responses'!CG14,\">1\"))/(COUNTIF('2011 Survey responses'!BW14,\">1\")+COUNTIF('2011 Survey responses'!CG14,\">1\")))","v":4.5},{"$f":"IF(('2011 Survey responses'!BX14+'2011 Survey responses'!CH14)<2.1,\"\",(SUMIF('2011 Survey responses'!BX14,\">1\")+SUMIF('2011 Survey responses'!CH14,\">1\"))/(COUNTIF('2011 Survey responses'!BX14,\">1\")+COUNTIF('2011 Survey responses'!CH14,\">1\")))","v":4},{"$f":"IF(('2011 Survey responses'!BY14+'2011 Survey responses'!CI14)<2.1,\"\",(SUMIF('2011 Survey responses'!BY14,\">1\")+SUMIF('2011 Survey responses'!CI14,\">1\"))/(COUNTIF('2011 Survey responses'!BY14,\">1\")+COUNTIF('2011 Survey responses'!CI14,\">1\")))","v":2},{"$f":"IF('2011 Survey responses'!CQ14<0.5,\"\",'2011 Survey responses'!CQ14)","v":5},{"$f":"IF('2011 Survey responses'!CR14<0.5,\"\",'2011 Survey responses'!CR14)","v":4},{"$f":"IF('2011 Survey responses'!CS14<0.5,\"\",'2011 Survey responses'!CS14)","v":3},{"$f":"IF('2011 Survey responses'!CT14<0.5,\"\",'2011 Survey responses'!CT14)","v":3},{"$f":"IF('2011 Survey responses'!CU14<0.5,\"\",'2011 Survey responses'!CU14)","v":3},{"$f":"IF('2011 Survey responses'!CV14<0.5,\"\",'2011 Survey responses'!CV14)","v":2},{"$f":"IF(SUM('2011 Survey responses'!CW14:DL14)<1,\"\",(AVERAGE('2011 Survey responses'!CW14:DL14)))","v":3.3125},{"$f":"IF(SUM('2011 Survey responses'!CW14:CZ14)<1,\"\",(AVERAGE('2011 Survey responses'!CW14:CZ14)))","v":3.5},{"$f":"IF(SUM('2011 Survey responses'!DA14:DD14)<1,\"\",(AVERAGE('2011 Survey responses'!DA14:DD14)))","v":3.25},{"$f":"IF(SUM('2011 Survey responses'!DE14:DH14)<1,\"\",(AVERAGE('2011 Survey responses'!DE14:DH14)))","v":3},{"$f":"IF(SUM('2011 Survey responses'!DI14:DL14)<1,\"\",(AVERAGE('2011 Survey responses'!DI14:DL14)))","v":3.5},{"$f":"IF(('2011 Survey responses'!CW14+'2011 Survey responses'!DA14+'2011 Survey responses'!DE14+'2011 Survey responses'!DI14)<1,\"\",AVERAGE('2011 Survey responses'!CW14,'2011 Survey responses'!DA14,'2011 Survey responses'!DE14,'2011 Survey responses'!DI14))","v":3.5},{"$f":"IF(('2011 Survey responses'!CX14+'2011 Survey responses'!DB14+'2011 Survey responses'!DF14+'2011 Survey responses'!DJ14)<1,\"\",AVERAGE('2011 Survey responses'!CX14,'2011 Survey responses'!DB14,'2011 Survey responses'!DF14,'2011 Survey responses'!DJ14))","v":3},{"$f":"IF(('2011 Survey responses'!CY14+'2011 Survey responses'!DC14+'2011 Survey responses'!DG14+'2011 Survey responses'!DK14)<1,\"\",AVERAGE('2011 Survey responses'!CY14,'2011 Survey responses'!DC14,'2011 Survey responses'!DG14,'2011 Survey responses'!DK14))","v":3},{"$f":"IF(('2011 Survey responses'!CZ14+'2011 Survey responses'!DD14+'2011 Survey responses'!DH14+'2011 Survey responses'!DL14)<1,\"\",AVERAGE('2011 Survey responses'!CZ14,'2011 Survey responses'!DD14,'2011 Survey responses'!DH14,'2011 Survey responses'!DL14))","v":3.75},{"$f":"IF('2011 Survey responses'!CW14<0.5,\"\",'2011 Survey responses'!CW14)","v":4},{"$f":"IF('2011 Survey responses'!CX14<0.5,\"\",'2011 Survey responses'!CX14)","v":3},{"$f":"IF('2011 Survey responses'!CY14<0.5,\"\",'2011 Survey responses'!CY14)","v":3},{"$f":"IF('2011 Survey responses'!CZ14<0.5,\"\",'2011 Survey responses'!CZ14)","v":4},{"$f":"IF('2011 Survey responses'!DA14<0.5,\"\",'2011 Survey responses'!DA14)","v":3},{"$f":"IF('2011 Survey responses'!DB14<0.5,\"\",'2011 Survey responses'!DB14)","v":3},{"$f":"IF('2011 Survey responses'!DC14<0.5,\"\",'2011 Survey responses'!DC14)","v":3},{"$f":"IF('2011 Survey responses'!DD14<0.5,\"\",'2011 Survey responses'!DD14)","v":4},{"$f":"IF('2011 Survey responses'!DE14<0.5,\"\",'2011 Survey responses'!DE14)","v":3},{"$f":"IF('2011 Survey responses'!DF14<0.5,\"\",'2011 Survey responses'!DF14)","v":3},{"$f":"IF('2011 Survey responses'!DG14<0.5,\"\",'2011 Survey responses'!DG14)","v":3},{"$f":"IF('2011 Survey responses'!DH14<0.5,\"\",'2011 Survey responses'!DH14)","v":3},{"$f":"IF('2011 Survey responses'!DI14<0.5,\"\",'2011 Survey responses'!DI14)","v":4},{"$f":"IF('2011 Survey responses'!DJ14<0.5,\"\",'2011 Survey responses'!DJ14)","v":3},{"$f":"IF('2011 Survey responses'!DK14<0.5,\"\",'2011 Survey responses'!DK14)","v":3},{"$f":"IF('2011 Survey responses'!DL14<0.5,\"\",'2011 Survey responses'!DL14)","v":4},{"$f":"IF('2011 Survey responses'!DU14=4,4,IF('2011 Survey responses'!DU14=5,4,\"\"))","v":4},{"$f":"IF('2011 Survey responses'!DV14=4,3,IF('2011 Survey responses'!DV14=5,3,\"\"))","v":3},2,{"$f":"IF(CQ14=2,CQ14,IF(CO14=4,CO14,IF(CP14=3,CP14,IF('2011 Survey responses'!GT14=1,1,\"\"))))","v":2},{"$f":"IF('2011 Survey responses'!DO14<0.5,\"\",'2011 Survey responses'!DO14)","v":2},{"$f":"IF('2011 Survey responses'!DP14<0.5,\"\",'2011 Survey responses'!DP14)","v":5},{"$f":"IF('2011 Survey responses'!DQ14<0.5,\"\",'2011 Survey responses'!DQ14)","v":3},{"$f":"IF('2011 Survey responses'!DR14<0.5,\"\",'2011 Survey responses'!DR14)","v":2},{"$f":"IF('2011 Survey responses'!DS14<0.5,\"\",'2011 Survey responses'!DS14)","v":3},{"$f":"IF('2011 Survey responses'!DT14<0.5,\"\",'2011 Survey responses'!DT14)","v":3},{"$f":"IF('2011 Survey responses'!DU14<0.5,\"\",'2011 Survey responses'!DU14)","v":4},{"$f":"IF('2011 Survey responses'!DV14<0.5,\"\",'2011 Survey responses'!DV14)","v":5},{"$f":"IF('2011 Survey responses'!DW14<0.5,\"\",'2011 Survey responses'!DW14)","v":1},{"$f":"IF('2011 Survey responses'!DX14<0.5,\"\",'2011 Survey responses'!DX14)","v":4},{"$f":"IF('2011 Survey responses'!DY14<0.5,\"\",'2011 Survey responses'!DY14)","v":2},{"$f":"IF('2011 Survey responses'!DZ14<0.5,\"\",'2011 Survey responses'!DZ14)","v":5},{"$f":"IF('2011 Survey responses'!EA14<0.5,\"\",'2011 Survey responses'!EA14)","v":2},{"$f":"IF('2011 Survey responses'!EB14<0.5,\"\",'2011 Survey responses'!EB14)","v":5},{"$f":"IF('2011 Survey responses'!EC14<0.5,\"\",'2011 Survey responses'!EC14)","v":4},{"$f":"IF('2011 Survey responses'!ED14<0.5,\"\",'2011 Survey responses'!ED14)","v":3},{"$f":"IF('2011 Survey responses'!EE14<0.5,\"\",'2011 Survey responses'!EE14)","v":3},{"$f":"IF('2011 Survey responses'!EF14<0.5,\"\",'2011 Survey responses'!EF14)","v":4},{"$f":"IF('2011 Survey responses'!EG14<0.5,\"\",'2011 Survey responses'!EG14)","v":4},{"$f":"IF('2011 Survey responses'!EH14<0.5,\"\",'2011 Survey responses'!EH14)","v":5},{"$f":"IF('2011 Survey responses'!EI14<0.5,\"\",'2011 Survey responses'!EI14)","v":3},{"$f":"IF('2011 Survey responses'!EJ14<0.5,\"\",'2011 Survey responses'!EJ14)","v":5},{"$f":"IF('2011 Survey responses'!EK14<0.5,\"\",'2011 Survey responses'!EK14)","v":3},{"$f":"IF('2011 Survey responses'!EL14<0.5,\"\",'2011 Survey responses'!EL14)","v":5},{"$f":"IF('2011 Survey responses'!EM14<0.5,\"\",'2011 Survey responses'!EM14)","v":5},{"$f":"IF('2011 Survey responses'!EN14<0.5,\"\",'2011 Survey responses'!EN14)","v":3},{"$f":"IF('2011 Survey responses'!EO14<0.5,\"\",'2011 Survey responses'!EO14)","v":1},{"$f":"IF('2011 Survey responses'!EP14<0.5,\"\",'2011 Survey responses'!EP14)","v":1},{"$f":"IF(('2011 Survey responses'!EW14+'2011 Survey responses'!EX14)>=2,AVERAGE('2011 Survey responses'!EW14,'2011 Survey responses'!EY14),\"\")","v":4.5},{"$f":"IF('2011 Survey responses'!EX14<0.5,\"\",'2011 Survey responses'!EX14)","v":4},{"$f":"IF('2011 Survey responses'!EZ14<0.5,\"\",'2011 Survey responses'!EZ14)","v":4},{"$f":"IF('2011 Survey responses'!FB14<0.5,\"\",'2011 Survey responses'!FB14)","v":4},{"$f":"IF('2011 Survey responses'!FD14<0.5,\"\",'2011 Survey responses'!FD14)","v":4},{"$f":"IF('2011 Survey responses'!FC14<0.5,\"\",'2011 Survey responses'!FC14)","v":5},{"$f":"IF(('2011 Survey responses'!EM14+'2011 Survey responses'!EN14)>=2,AVERAGE('2011 Survey responses'!EM14,'2011 Survey responses'!EN14),\"\")","v":4},{"$f":"IF('2011 Survey responses'!ES14<0.5,\"\",'2011 Survey responses'!ES14)","v":3},{"$f":"IF(('2011 Survey responses'!ET14+'2011 Survey responses'!EU14)>=2,AVERAGE('2011 Survey responses'!ET14,'2011 Survey responses'!EU14),\"\")","v":3.5},{"$f":"IF('2011 Survey responses'!EV14<0.5,\"\",'2011 Survey responses'!EV14)","v":5},{"$f":"IF('2011 Survey responses'!FA14<0.5,\"\",'2011 Survey responses'!FA14)","v":3},{"$f":"IF('2011 Survey responses'!ER14<0.5,\"\",'2011 Survey responses'!ER14)","v":2},{"$f":"IF(('2011 Survey responses'!EO14+'2011 Survey responses'!EP14)>=2,AVERAGE('2011 Survey responses'!EO14,'2011 Survey responses'!EP14),\"\")","v":1},{"$f":"IF('2011 Survey responses'!EQ14<0.5,\"\",'2011 Survey responses'!EQ14)","v":2},{"$f":"IF('2011 Survey responses'!ET14<0.5,\"\",'2011 Survey responses'!ET14)","v":4},{"$f":"IF('2011 Survey responses'!EU14<0.5,\"\",'2011 Survey responses'!EU14)","v":3},{"$f":"IF('2011 Survey responses'!EW14<0.5,\"\",'2011 Survey responses'!EW14)","v":5},{"$f":"IF('2011 Survey responses'!EY14<0.5,\"\",'2011 Survey responses'!EY14)","v":4},{"$f":"IF('2011 Survey responses'!FU14<0.5,\"\",'2011 Survey responses'!FU14)","v":5},{"$f":"IF(('2011 Survey responses'!FL14+'2011 Survey responses'!FM14)>=2,AVERAGE('2011 Survey responses'!FL14,'2011 Survey responses'!FM14),\"\")","v":3.5},{"$f":"IF(('2011 Survey responses'!FO14+'2011 Survey responses'!FQ14)>=2,AVERAGE('2011 Survey responses'!FO14,'2011 Survey responses'!FQ14),\"\")","v":3},{"$f":"IF('2011 Survey responses'!FJ14<0.5,\"\",'2011 Survey responses'!FJ14)","v":1},{"$f":"IF('2011 Survey responses'!FT14<0.5,\"\",'2011 Survey responses'!FT14)","v":4},{"$f":"IF('2011 Survey responses'!FR14<0.5,\"\",'2011 Survey responses'!FR14)","v":2},{"$f":"IF('2011 Survey responses'!FK14<0.5,\"\",'2011 Survey responses'!FK14)","v":2},{"$f":"IF('2011 Survey responses'!FP14<0.5,\"\",'2011 Survey responses'!FP14)","v":3},{"$f":"IF('2011 Survey responses'!FN14<0.5,\"\",'2011 Survey responses'!FN14)","v":3},{"$f":"IF(('2011 Survey responses'!FE14+'2011 Survey responses'!FF14)>=2,AVERAGE('2011 Survey responses'!FE14,'2011 Survey responses'!FF14),\"\")","v":3.5},{"$f":"IF('2011 Survey responses'!FS14<0.5,\"\",'2011 Survey responses'!FS14)","v":2},{"$f":"IF('2011 Survey responses'!FV14<0.5,\"\",'2011 Survey responses'!FV14)","v":3},{"$f":"IF(('2011 Survey responses'!FG14+'2011 Survey responses'!FH14)>=2,AVERAGE('2011 Survey responses'!FG14,'2011 Survey responses'!FH14),\"\")","v":1},{"$f":"IF('2011 Survey responses'!FI14<0.5,\"\",'2011 Survey responses'!FI14)","v":2},{"$f":"IF('2011 Survey responses'!FE14<0.5,\"\",'2011 Survey responses'!FE14)","v":4},{"$f":"IF('2011 Survey responses'!FF14<0.5,\"\",'2011 Survey responses'!FF14)","v":3},{"$f":"IF('2011 Survey responses'!FG14<0.5,\"\",'2011 Survey responses'!FG14)","v":1},{"$f":"IF('2011 Survey responses'!FH14<0.5,\"\",'2011 Survey responses'!FH14)","v":1},{"$f":"IF('2011 Survey responses'!FL14<0.5,\"\",'2011 Survey responses'!FL14)","v":4},{"$f":"IF('2011 Survey responses'!FM14<0.5,\"\",'2011 Survey responses'!FM14)","v":3},{"$f":"IF('2011 Survey responses'!FO14<0.5,\"\",'2011 Survey responses'!FO14)","v":3},{"$f":"IF('2011 Survey responses'!FQ14<0.5,\"\",'2011 Survey responses'!FQ14)","v":3}]
["Bahrain",{"$f":"IF(SUM(F15)<1,\"\",AVERAGEIF('2011 Survey responses'!B15:CP15,\">1\"))","v":""},{"$f":"IF(SUM(F15)<1,\"\",AVERAGEIF('2011 Survey responses'!B15:AO15,\">1\"))","v":""},{"$f":"IF(SUM(F15)<1,\"\",AVERAGEIF('2011 Survey responses'!B15:BV15,\">1\"))","v":""},{"$f":"IF(SUM(F15)<1,\"\",AVERAGEIF('2011 Survey responses'!V15:BV15,\">1\"))","v":""},{"$f":"IF(SUM('2011 Survey responses'!B15:U15)<1,\"\",(AVERAGEIFS('2011 Survey responses'!B15:U15,'2011 Survey responses'!B15:U15,\">1\")))","v":""},{"$f":"IF(SUM('2011 Survey responses'!B15:H15)<1,\"\",(AVERAGEIFS('2011 Survey responses'!B15:H15,'2011 Survey responses'!B15:H15,\">1\")))","v":""},{"$f":"IF(SUM('2011 Survey responses'!I15:S15)<1,\"\",(AVERAGEIFS('2011 Survey responses'!I15:S15,'2011 Survey responses'!I15:S15,\">1\")))","v":""},{"$f":"IF(SUM('2011 Survey responses'!T15:U15)<2.1,\"\",(AVERAGEIFS('2011 Survey responses'!T15:U15,'2011 Survey responses'!T15:U15,\">1\")))","v":""},{"$f":"IF(SUM('2011 Survey responses'!B15:C15)<2.1,\"\",((SUMIF('2011 Survey responses'!B15:C15,\">1\")+SUMIF('2011 Survey responses'!F15,\">1\"))/(COUNTIF('2011 Survey responses'!B15:C15,\">1\")+COUNTIF('2011 Survey responses'!F15,\">1\"))))","v":""},{"$f":"IF(SUM('2011 Survey responses'!D15:E15)<2.1,\"\",(AVERAGEIFS('2011 Survey responses'!D15:E15,'2011 Survey responses'!D15:E15,\">1\")))","v":""},{"$f":"IF(('2011 Survey responses'!B15+'2011 Survey responses'!D15)<2.1,\"\",((SUMIF('2011 Survey responses'!B15,\">1\")+SUMIF('2011 Survey responses'!D15,\">1\")+SUMIF('2011 Survey responses'!F15,\">1\")+SUMIF('2011 Survey responses'!K15,\">1\"))/(COUNTIF('2011 Survey responses'!B15,\">1\")+COUNTIF('2011 Survey responses'!D15,\">1\")+COUNTIF('2011 Survey responses'!F15,\">1\")+COUNTIF('2011 Survey responses'!K15,\">1\"))))","v":""},{"$f":"IF(SUM('2011 Survey responses'!G15:H15)<2.1,\"\",(AVERAGEIFS('2011 Survey responses'!G15:H15,'2011 Survey responses'!G15:H15,\">1\")))","v":""},{"$f":"IF(SUM('2011 Survey responses'!F15:G15)<1.5,\"\",MAX('2011 Survey responses'!F15,'2011 Survey responses'!G15))","v":""},{"$f":"IF(SUM('2011 Survey responses'!G15:H15)<1,\"\",MAX('2011 Survey responses'!G15,'2011 Survey responses'!H15))","v":""},{"$f":"IF(SUM('2011 Survey responses'!I15:L15)<4.1,\"\",(AVERAGEIFS('2011 Survey responses'!I15:L15,'2011 Survey responses'!I15:L15,\">1\")))","v":""},{"$f":"IF(SUM('2011 Survey responses'!M15:S15)<4.1,\"\",(AVERAGEIFS('2011 Survey responses'!M15:S15,'2011 Survey responses'!M15:S15,\">1\")))","v":""},{"$f":"IF(SUM('2011 Survey responses'!T15:U15)<2.1,\"\",(AVERAGEIFS('2011 Survey responses'!T15:U15,'2011 Survey responses'!T15:U15,\">1\")))","v":""},{"$f":"IF(SUM('2011 Survey responses'!V15:AO15)<1,\"\",(AVERAGEIFS('2011 Survey responses'!V15:AO15,'2011 Survey responses'!V15:AO15,\">1\")))","v":""},{"$f":"IF(SUM('2011 Survey responses'!V15:AA15)<1,\"\",(AVERAGEIFS('2011 Survey responses'!V15:AA15,'2011 Survey responses'!V15:AA15,\">1\")))","v":""},{"$f":"IF(SUM('2011 Survey responses'!AB15:AH15)<1,\"\",(AVERAGEIFS('2011 Survey responses'!AB15:AH15,'2011 Survey responses'!AB15:AH15,\">1\")))","v":""},{"$f":"IF(SUM('2011 Survey responses'!AI15:AO15)<1,\"\",(AVERAGEIFS('2011 Survey responses'!AI15:AO15,'2011 Survey responses'!AI15:AO15,\">1\")))","v":""},{"$f":"IF(('2011 Survey responses'!Y15+'2011 Survey responses'!AI15+'2011 Survey responses'!AK15)<3.1,\"\",((SUMIF('2011 Survey responses'!Y15,\">1\")+SUMIF('2011 Survey responses'!AI15,\">1\")+SUMIF('2011 Survey responses'!AK15,\">1\")+SUMIF('2011 Survey responses'!AM15,\">1\"))/(COUNTIF('2011 Survey responses'!Y15,\">1\")+COUNTIF('2011 Survey responses'!AI15,\">1\")+COUNTIF('2011 Survey responses'!AK15,\">1\")+COUNTIF('2011 Survey responses'!AM15,\">1\"))))","v":""},{"$f":"IF(('2011 Survey responses'!W15)<1.1,\"\",('2011 Survey responses'!W15))","v":""},{"$f":"IF(('2011 Survey responses'!Y15)<1.1,\"\",('2011 Survey responses'!Y15))","v":""},{"$f":"IF(('2011 Survey responses'!Z15)<1.1,\"\",('2011 Survey responses'!Z15))","v":""},{"$f":"IF(('2011 Survey responses'!V15+'2011 Survey responses'!X15+'2011 Survey responses'!AA15)<3.1,\"\",((SUMIF('2011 Survey responses'!V15,\">1\")+SUMIF('2011 Survey responses'!X15,\">1\")+SUMIF('2011 Survey responses'!AA15,\">1\"))/(COUNTIF('2011 Survey responses'!V15,\">1\")+COUNTIF('2011 Survey responses'!X15,\">1\")+COUNTIF('2011 Survey responses'!AA15,\">1\"))))","v":""},{"$f":"IF(('2011 Survey responses'!V15+'2011 Survey responses'!Y15+'2011 Survey responses'!AA15)<3.1,\"\",((SUMIF('2011 Survey responses'!V15,\">1\")+SUMIF('2011 Survey responses'!Y15,\">1\")+SUMIF('2011 Survey responses'!AA15,\">1\"))/(COUNTIF('2011 Survey responses'!V15,\">1\")+COUNTIF('2011 Survey responses'!Y15,\">1\")+COUNTIF('2011 Survey responses'!AA15,\">1\"))))","v":""},{"$f":"IF(SUM('2011 Survey responses'!AB15:AH15)<1,\"\",(AVERAGEIFS('2011 Survey responses'!AB15:AH15,'2011 Survey responses'!AB15:AH15,\">1\")))","v":""},{"$f":"IF(SUM('2011 Survey responses'!AI15:AO15)<7.1,\"\",(AVERAGEIFS('2011 Survey responses'!AI15:AO15,'2011 Survey responses'!AI15:AO15,\">1\")))","v":""},{"$f":"IF(('2011 Survey responses'!AH15)<1.1,\"\",('2011 Survey responses'!AH15))","v":""},{"$f":"IF(SUM('2011 Survey responses'!AP15:BV15)<1,\"\",(AVERAGEIFS('2011 Survey responses'!AP15:BV15,'2011 Survey responses'!AP15:BV15,\">1\")))","v":""},{"$f":"IF(SUM('2011 Survey responses'!AP15:AS15)<4.1,\"\",(AVERAGEIFS('2011 Survey responses'!AP15:AS15,'2011 Survey responses'!AP15:AS15,\">1\")))","v":""},{"$f":"IF(SUM('2011 Survey responses'!AT15:BF15)<1,\"\",(AVERAGEIFS('2011 Survey responses'!AT15:BF15,'2011 Survey responses'!AT15:BF15,\">1\")))","v":""},{"$f":"IF(SUM('2011 Survey responses'!BG15:BO15)<1,\"\",(AVERAGEIFS('2011 Survey responses'!BG15:BO15,'2011 Survey responses'!BG15:BO15,\">1\")))","v":""},{"$f":"IF(SUM('2011 Survey responses'!BP15:BS15)<1,\"\",(AVERAGEIFS('2011 Survey responses'!BP15:BS15,'2011 Survey responses'!BP15:BS15,\">1\")))","v":""},{"$f":"IF(SUM('2011 Survey responses'!BT15:BV15)<3.1,\"\",(AVERAGEIFS('2011 Survey responses'!BT15:BV15,'2011 Survey responses'!BT15:BV15,\">1\")))","v":""},{"$f":"IF(('2011 Survey responses'!AQ15+'2011 Survey responses'!AR15+'2011 Survey responses'!BG15)<3.1,\"\",((SUMIF('2011 Survey responses'!AQ15,\">1\")+SUMIF('2011 Survey responses'!AR15,\">1\")+SUMIF('2011 Survey responses'!BG15,\">1\"))/(COUNTIF('2011 Survey responses'!AQ15,\">1\")+COUNTIF('2011 Survey responses'!AR15,\">1\")+COUNTIF('2011 Survey responses'!BG15,\">1\"))))","v":""},{"$f":"IF(SUM('2011 Survey responses'!AP15:AS15)<4.1,\"\",(AVERAGEIFS('2011 Survey responses'!AP15:AS15,'2011 Survey responses'!AP15:AS15,\">1\")))","v":""},{"$f":"IF(('2011 Survey responses'!AU15+'2011 Survey responses'!AX15+'2011 Survey responses'!BA15+'2011 Survey responses'!BC15+'2011 Survey responses'!BD15)<5.1,\"\",(SUMIF('2011 Survey responses'!AU15,\">1\")+SUMIF('2011 Survey responses'!AX15,\">1\")+SUMIF('2011 Survey responses'!BA15,\">1\")+SUMIF('2011 Survey responses'!BC15,\">1\")+SUMIF('2011 Survey responses'!BD15,\">1\"))/(COUNTIF('2011 Survey responses'!AU15,\">1\")+COUNTIF('2011 Survey responses'!AX15,\">1\")+COUNTIF('2011 Survey responses'!BA15,\">1\")+COUNTIF('2011 Survey responses'!BC15,\">1\")+COUNTIF('2011 Survey responses'!BD15,\">1\")))","v":""},{"$f":"IF(('2011 Survey responses'!AT15)<1.1,\"\",('2011 Survey responses'!AT15))","v":""},{"$f":"IF(SUM('2011 Survey responses'!AV15:AW15)<2.1,\"\",(AVERAGEIFS('2011 Survey responses'!AV15:AW15,'2011 Survey responses'!AV15:AW15,\">1\")))","v":""},{"$f":"IF(('2011 Survey responses'!AW15+'2011 Survey responses'!AY15)<2.1,\"\",(SUMIF('2011 Survey responses'!AW15,\">1\")+SUMIF('2011 Survey responses'!AY15,\">1\"))/(COUNTIF('2011 Survey responses'!AW15,\">1\")+COUNTIF('2011 Survey responses'!AY15,\">1\")))","v":""},{"$f":"IF(('2011 Survey responses'!AZ15)<1.1,\"\",('2011 Survey responses'!AZ15))","v":""},null,null,null,null,{"$f":"IF(('2011 Survey responses'!BE15)<1.1,\"\",('2011 Survey responses'!BE15))","v":""},{"$f":"IF(('2011 Survey responses'!AY15+'2011 Survey responses'!BB15+'2011 Survey responses'!BF15)<3.1,\"\",(SUMIF('2011 Survey responses'!AY15,\">1\")+SUMIF('2011 Survey responses'!BB15,\">1\")+SUMIF('2011 Survey responses'!BF15,\">1\"))/(COUNTIF('2011 Survey responses'!AY15,\">1\")+COUNTIF('2011 Survey responses'!BB15,\">1\")+COUNTIF('2011 Survey responses'!BF15,\">1\")))","v":""},"",{"$f":"IF(SUM('2011 Survey responses'!BT15:BV15)<3.1,\"\",(AVERAGEIFS('2011 Survey responses'!BT15:BV15,'2011 Survey responses'!BT15:BV15,\">1\")))","v":""},{"$f":"IF(SUM('2011 Survey responses'!BW15:CP15)<1,\"\",(AVERAGEIFS('2011 Survey responses'!BW15:CP15,'2011 Survey responses'!BW15:CP15,\">1\")))","v":""},{"$f":"IF(SUM('2011 Survey responses'!BW15:CF15)<1,\"\",(AVERAGEIFS('2011 Survey responses'!BW15:CF15,'2011 Survey responses'!BW15:CF15,\">1\")))","v":""},{"$f":"IF(SUM('2011 Survey responses'!CG15:CP15)<1,\"\",(AVERAGEIFS('2011 Survey responses'!CG15:CP15,'2011 Survey responses'!CG15:CP15,\">1\")))","v":""},{"$f":"IF(SUM('2011 Survey responses'!BX15:CF15)<1,\"\",(AVERAGEIFS('2011 Survey responses'!BX15:CF15,'2011 Survey responses'!BX15:CF15,\">1\")))","v":""},{"$f":"IF(SUM('2011 Survey responses'!CH15:CP15)<1,\"\",(AVERAGEIFS('2011 Survey responses'!CH15:CP15,'2011 Survey responses'!CH15:CP15,\">1\")))","v":""},{"$f":"IF(SUM('2011 Survey responses'!BW15:CP15)<1,\"\",(AVERAGEIFS('2011 Survey responses'!BW15:CP15,'2011 Survey responses'!BW15:CP15,\">1\")))","v":""},{"$f":"IF(('2011 Survey responses'!BW15+'2011 Survey responses'!CG15)<2.1,\"\",(SUMIF('2011 Survey responses'!BW15,\">1\")+SUMIF('2011 Survey responses'!CG15,\">1\"))/(COUNTIF('2011 Survey responses'!BW15,\">1\")+COUNTIF('2011 Survey responses'!CG15,\">1\")))","v":""},{"$f":"IF(('2011 Survey responses'!BX15+'2011 Survey responses'!CH15)<2.1,\"\",(SUMIF('2011 Survey responses'!BX15,\">1\")+SUMIF('2011 Survey responses'!CH15,\">1\"))/(COUNTIF('2011 Survey responses'!BX15,\">1\")+COUNTIF('2011 Survey responses'!CH15,\">1\")))","v":""},{"$f":"IF(('2011 Survey responses'!BY15+'2011 Survey responses'!CI15)<2.1,\"\",(SUMIF('2011 Survey responses'!BY15,\">1\")+SUMIF('2011 Survey responses'!CI15,\">1\"))/(COUNTIF('2011 Survey responses'!BY15,\">1\")+COUNTIF('2011 Survey responses'!CI15,\">1\")))","v":""},{"$f":"IF('2011 Survey responses'!CQ15<0.5,\"\",'2011 Survey responses'!CQ15)","v":""},{"$f":"IF('2011 Survey responses'!CR15<0.5,\"\",'2011 Survey responses'!CR15)","v":""},{"$f":"IF('2011 Survey responses'!CS15<0.5,\"\",'2011 Survey responses'!CS15)","v":""},{"$f":"IF('2011 Survey responses'!CT15<0.5,\"\",'2011 Survey responses'!CT15)","v":""},{"$f":"IF('2011 Survey responses'!CU15<0.5,\"\",'2011 Survey responses'!CU15)","v":""},{"$f":"IF('2011 Survey responses'!CV15<0.5,\"\",'2011 Survey responses'!CV15)","v":""},{"$f":"IF(SUM('2011 Survey responses'!CW15:DL15)<1,\"\",(AVERAGE('2011 Survey responses'!CW15:DL15)))","v":""},{"$f":"IF(SUM('2011 Survey responses'!CW15:CZ15)<1,\"\",(AVERAGE('2011 Survey responses'!CW15:CZ15)))","v":""},{"$f":"IF(SUM('2011 Survey responses'!DA15:DD15)<1,\"\",(AVERAGE('2011 Survey responses'!DA15:DD15)))","v":""},{"$f":"IF(SUM('2011 Survey responses'!DE15:DH15)<1,\"\",(AVERAGE('2011 Survey responses'!DE15:DH15)))","v":""},{"$f":"IF(SUM('2011 Survey responses'!DI15:DL15)<1,\"\",(AVERAGE('2011 Survey responses'!DI15:DL15)))","v":""},{"$f":"IF(('2011 Survey responses'!CW15+'2011 Survey responses'!DA15+'2011 Survey responses'!DE15+'2011 Survey responses'!DI15)<1,\"\",AVERAGE('2011 Survey responses'!CW15,'2011 Survey responses'!DA15,'2011 Survey responses'!DE15,'2011 Survey responses'!DI15))","v":""},{"$f":"IF(('2011 Survey responses'!CX15+'2011 Survey responses'!DB15+'2011 Survey responses'!DF15+'2011 Survey responses'!DJ15)<1,\"\",AVERAGE('2011 Survey responses'!CX15,'2011 Survey responses'!DB15,'2011 Survey responses'!DF15,'2011 Survey responses'!DJ15))","v":""},{"$f":"IF(('2011 Survey responses'!CY15+'2011 Survey responses'!DC15+'2011 Survey responses'!DG15+'2011 Survey responses'!DK15)<1,\"\",AVERAGE('2011 Survey responses'!CY15,'2011 Survey responses'!DC15,'2011 Survey responses'!DG15,'2011 Survey responses'!DK15))","v":""},{"$f":"IF(('2011 Survey responses'!CZ15+'2011 Survey responses'!DD15+'2011 Survey responses'!DH15+'2011 Survey responses'!DL15)<1,\"\",AVERAGE('2011 Survey responses'!CZ15,'2011 Survey responses'!DD15,'2011 Survey responses'!DH15,'2011 Survey responses'!DL15))","v":""},{"$f":"IF('2011 Survey responses'!CW15<0.5,\"\",'2011 Survey responses'!CW15)","v":""},{"$f":"IF('2011 Survey responses'!CX15<0.5,\"\",'2011 Survey responses'!CX15)","v":""},{"$f":"IF('2011 Survey responses'!CY15<0.5,\"\",'2011 Survey responses'!CY15)","v":""},{"$f":"IF('2011 Survey responses'!CZ15<0.5,\"\",'2011 Survey responses'!CZ15)","v":""},{"$f":"IF('2011 Survey responses'!DA15<0.5,\"\",'2011 Survey responses'!DA15)","v":""},{"$f":"IF('2011 Survey responses'!DB15<0.5,\"\",'2011 Survey responses'!DB15)","v":""},{"$f":"IF('2011 Survey responses'!DC15<0.5,\"\",'2011 Survey responses'!DC15)","v":""},{"$f":"IF('2011 Survey responses'!DD15<0.5,\"\",'2011 Survey responses'!DD15)","v":""},{"$f":"IF('2011 Survey responses'!DE15<0.5,\"\",'2011 Survey responses'!DE15)","v":""},{"$f":"IF('2011 Survey responses'!DF15<0.5,\"\",'2011 Survey responses'!DF15)","v":""},{"$f":"IF('2011 Survey responses'!DG15<0.5,\"\",'2011 Survey responses'!DG15)","v":""},{"$f":"IF('2011 Survey responses'!DH15<0.5,\"\",'2011 Survey responses'!DH15)","v":""},{"$f":"IF('2011 Survey responses'!DI15<0.5,\"\",'2011 Survey responses'!DI15)","v":""},{"$f":"IF('2011 Survey responses'!DJ15<0.5,\"\",'2011 Survey responses'!DJ15)","v":""},{"$f":"IF('2011 Survey responses'!DK15<0.5,\"\",'2011 Survey responses'!DK15)","v":""},{"$f":"IF('2011 Survey responses'!DL15<0.5,\"\",'2011 Survey responses'!DL15)","v":""},{"$f":"IF('2011 Survey responses'!DU15=4,4,IF('2011 Survey responses'!DU15=5,4,\"\"))","v":""},{"$f":"IF('2011 Survey responses'!DV15=4,3,IF('2011 Survey responses'!DV15=5,3,\"\"))","v":""},"",{"$f":"IF(CQ15=2,CQ15,IF(CO15=4,CO15,IF(CP15=3,CP15,IF('2011 Survey responses'!GT15=1,1,\"\"))))","v":""},{"$f":"IF('2011 Survey responses'!DO15<0.5,\"\",'2011 Survey responses'!DO15)","v":""},{"$f":"IF('2011 Survey responses'!DP15<0.5,\"\",'2011 Survey responses'!DP15)","v":""},{"$f":"IF('2011 Survey responses'!DQ15<0.5,\"\",'2011 Survey responses'!DQ15)","v":""},{"$f":"IF('2011 Survey responses'!DR15<0.5,\"\",'2011 Survey responses'!DR15)","v":""},{"$f":"IF('2011 Survey responses'!DS15<0.5,\"\",'2011 Survey responses'!DS15)","v":""},{"$f":"IF('2011 Survey responses'!DT15<0.5,\"\",'2011 Survey responses'!DT15)","v":""},{"$f":"IF('2011 Survey responses'!DU15<0.5,\"\",'2011 Survey responses'!DU15)","v":""},{"$f":"IF('2011 Survey responses'!DV15<0.5,\"\",'2011 Survey responses'!DV15)","v":""},{"$f":"IF('2011 Survey responses'!DW15<0.5,\"\",'2011 Survey responses'!DW15)","v":""},{"$f":"IF('2011 Survey responses'!DX15<0.5,\"\",'2011 Survey responses'!DX15)","v":""},{"$f":"IF('2011 Survey responses'!DY15<0.5,\"\",'2011 Survey responses'!DY15)","v":""},{"$f":"IF('2011 Survey responses'!DZ15<0.5,\"\",'2011 Survey responses'!DZ15)","v":""},{"$f":"IF('2011 Survey responses'!EA15<0.5,\"\",'2011 Survey responses'!EA15)","v":""},{"$f":"IF('2011 Survey responses'!EB15<0.5,\"\",'2011 Survey responses'!EB15)","v":""},{"$f":"IF('2011 Survey responses'!EC15<0.5,\"\",'2011 Survey responses'!EC15)","v":""},{"$f":"IF('2011 Survey responses'!ED15<0.5,\"\",'2011 Survey responses'!ED15)","v":""},{"$f":"IF('2011 Survey responses'!EE15<0.5,\"\",'2011 Survey responses'!EE15)","v":""},{"$f":"IF('2011 Survey responses'!EF15<0.5,\"\",'2011 Survey responses'!EF15)","v":""},{"$f":"IF('2011 Survey responses'!EG15<0.5,\"\",'2011 Survey responses'!EG15)","v":""},{"$f":"IF('2011 Survey responses'!EH15<0.5,\"\",'2011 Survey responses'!EH15)","v":""},{"$f":"IF('2011 Survey responses'!EI15<0.5,\"\",'2011 Survey responses'!EI15)","v":""},{"$f":"IF('2011 Survey responses'!EJ15<0.5,\"\",'2011 Survey responses'!EJ15)","v":""},{"$f":"IF('2011 Survey responses'!EK15<0.5,\"\",'2011 Survey responses'!EK15)","v":""},{"$f":"IF('2011 Survey responses'!EL15<0.5,\"\",'2011 Survey responses'!EL15)","v":""},{"$f":"IF('2011 Survey responses'!EM15<0.5,\"\",'2011 Survey responses'!EM15)","v":""},{"$f":"IF('2011 Survey responses'!EN15<0.5,\"\",'2011 Survey responses'!EN15)","v":""},{"$f":"IF('2011 Survey responses'!EO15<0.5,\"\",'2011 Survey responses'!EO15)","v":""},{"$f":"IF('2011 Survey responses'!EP15<0.5,\"\",'2011 Survey responses'!EP15)","v":""},{"$f":"IF(('2011 Survey responses'!EW15+'2011 Survey responses'!EX15)>=2,AVERAGE('2011 Survey responses'!EW15,'2011 Survey responses'!EY15),\"\")","v":""},{"$f":"IF('2011 Survey responses'!EX15<0.5,\"\",'2011 Survey responses'!EX15)","v":""},{"$f":"IF('2011 Survey responses'!EZ15<0.5,\"\",'2011 Survey responses'!EZ15)","v":""},{"$f":"IF('2011 Survey responses'!FB15<0.5,\"\",'2011 Survey responses'!FB15)","v":""},{"$f":"IF('2011 Survey responses'!FD15<0.5,\"\",'2011 Survey responses'!FD15)","v":""},{"$f":"IF('2011 Survey responses'!FC15<0.5,\"\",'2011 Survey responses'!FC15)","v":""},{"$f":"IF(('2011 Survey responses'!EM15+'2011 Survey responses'!EN15)>=2,AVERAGE('2011 Survey responses'!EM15,'2011 Survey responses'!EN15),\"\")","v":""},{"$f":"IF('2011 Survey responses'!ES15<0.5,\"\",'2011 Survey responses'!ES15)","v":""},{"$f":"IF(('2011 Survey responses'!ET15+'2011 Survey responses'!EU15)>=2,AVERAGE('2011 Survey responses'!ET15,'2011 Survey responses'!EU15),\"\")","v":""},{"$f":"IF('2011 Survey responses'!EV15<0.5,\"\",'2011 Survey responses'!EV15)","v":""},{"$f":"IF('2011 Survey responses'!FA15<0.5,\"\",'2011 Survey responses'!FA15)","v":""},{"$f":"IF('2011 Survey responses'!ER15<0.5,\"\",'2011 Survey responses'!ER15)","v":""},{"$f":"IF(('2011 Survey responses'!EO15+'2011 Survey responses'!EP15)>=2,AVERAGE('2011 Survey responses'!EO15,'2011 Survey responses'!EP15),\"\")","v":""},{"$f":"IF('2011 Survey responses'!EQ15<0.5,\"\",'2011 Survey responses'!EQ15)","v":""},{"$f":"IF('2011 Survey responses'!ET15<0.5,\"\",'2011 Survey responses'!ET15)","v":""},{"$f":"IF('2011 Survey responses'!EU15<0.5,\"\",'2011 Survey responses'!EU15)","v":""},{"$f":"IF('2011 Survey responses'!EW15<0.5,\"\",'2011 Survey responses'!EW15)","v":""},{"$f":"IF('2011 Survey responses'!EY15<0.5,\"\",'2011 Survey responses'!EY15)","v":""},{"$f":"IF('2011 Survey responses'!FU15<0.5,\"\",'2011 Survey responses'!FU15)","v":""},{"$f":"IF(('2011 Survey responses'!FL15+'2011 Survey responses'!FM15)>=2,AVERAGE('2011 Survey responses'!FL15,'2011 Survey responses'!FM15),\"\")","v":""},{"$f":"IF(('2011 Survey responses'!FO15+'2011 Survey responses'!FQ15)>=2,AVERAGE('2011 Survey responses'!FO15,'2011 Survey responses'!FQ15),\"\")","v":""},{"$f":"IF('2011 Survey responses'!FJ15<0.5,\"\",'2011 Survey responses'!FJ15)","v":""},{"$f":"IF('2011 Survey responses'!FT15<0.5,\"\",'2011 Survey responses'!FT15)","v":""},{"$f":"IF('2011 Survey responses'!FR15<0.5,\"\",'2011 Survey responses'!FR15)","v":""},{"$f":"IF('2011 Survey responses'!FK15<0.5,\"\",'2011 Survey responses'!FK15)","v":""},{"$f":"IF('2011 Survey responses'!FP15<0.5,\"\",'2011 Survey responses'!FP15)","v":""},{"$f":"IF('2011 Survey responses'!FN15<0.5,\"\",'2011 Survey responses'!FN15)","v":""},{"$f":"IF(('2011 Survey responses'!FE15+'2011 Survey responses'!FF15)>=2,AVERAGE('2011 Survey responses'!FE15,'2011 Survey responses'!FF15),\"\")","v":""},{"$f":"IF('2011 Survey responses'!FS15<0.5,\"\",'2011 Survey responses'!FS15)","v":""},{"$f":"IF('2011 Survey responses'!FV15<0.5,\"\",'2011 Survey responses'!FV15)","v":""},{"$f":"IF(('2011 Survey responses'!FG15+'2011 Survey responses'!FH15)>=2,AVERAGE('2011 Survey responses'!FG15,'2011 Survey responses'!FH15),\"\")","v":""},{"$f":"IF('2011 Survey responses'!FI15<0.5,\"\",'2011 Survey responses'!FI15)","v":""},{"$f":"IF('2011 Survey responses'!FE15<0.5,\"\",'2011 Survey responses'!FE15)","v":""},{"$f":"IF('2011 Survey responses'!FF15<0.5,\"\",'2011 Survey responses'!FF15)","v":""},{"$f":"IF('2011 Survey responses'!FG15<0.5,\"\",'2011 Survey responses'!FG15)","v":""},{"$f":"IF('2011 Survey responses'!FH15<0.5,\"\",'2011 Survey responses'!FH15)","v":""},{"$f":"IF('2011 Survey responses'!FL15<0.5,\"\",'2011 Survey responses'!FL15)","v":""},{"$f":"IF('2011 Survey responses'!FM15<0.5,\"\",'2011 Survey responses'!FM15)","v":""},{"$f":"IF('2011 Survey responses'!FO15<0.5,\"\",'2011 Survey responses'!FO15)","v":""},{"$f":"IF('2011 Survey responses'!FQ15<0.5,\"\",'2011 Survey responses'!FQ15)","v":""}]
["Bangladesh",{"$f":"IF(SUM(F16)<1,\"\",AVERAGEIF('2011 Survey responses'!B16:CP16,\">1\"))","v":4.5930232558139537},{"$f":"IF(SUM(F16)<1,\"\",AVERAGEIF('2011 Survey responses'!B16:AO16,\">1\"))","v":4.5882352941176467},{"$f":"IF(SUM(F16)<1,\"\",AVERAGEIF('2011 Survey responses'!B16:BV16,\">1\"))","v":4.5303030303030303},{"$f":"IF(SUM(F16)<1,\"\",AVERAGEIF('2011 Survey responses'!V16:BV16,\">1\"))","v":4.54},{"$f":"IF(SUM('2011 Survey responses'!B16:U16)<1,\"\",(AVERAGEIFS('2011 Survey responses'!B16:U16,'2011 Survey responses'!B16:U16,\">1\")))","v":4.5},{"$f":"IF(SUM('2011 Survey responses'!B16:H16)<1,\"\",(AVERAGEIFS('2011 Survey responses'!B16:H16,'2011 Survey responses'!B16:H16,\">1\")))","v":4},{"$f":"IF(SUM('2011 Survey responses'!I16:S16)<1,\"\",(AVERAGEIFS('2011 Survey responses'!I16:S16,'2011 Survey responses'!I16:S16,\">1\")))","v":4.5454545454545459},{"$f":"IF(SUM('2011 Survey responses'!T16:U16)<2.1,\"\",(AVERAGEIFS('2011 Survey responses'!T16:U16,'2011 Survey responses'!T16:U16,\">1\")))","v":6},{"$f":"IF(SUM('2011 Survey responses'!B16:C16)<2.1,\"\",((SUMIF('2011 Survey responses'!B16:C16,\">1\")+SUMIF('2011 Survey responses'!F16,\">1\"))/(COUNTIF('2011 Survey responses'!B16:C16,\">1\")+COUNTIF('2011 Survey responses'!F16,\">1\"))))","v":6},{"$f":"IF(SUM('2011 Survey responses'!D16:E16)<2.1,\"\",(AVERAGEIFS('2011 Survey responses'!D16:E16,'2011 Survey responses'!D16:E16,\">1\")))","v":2},{"$f":"IF(('2011 Survey responses'!B16+'2011 Survey responses'!D16)<2.1,\"\",((SUMIF('2011 Survey responses'!B16,\">1\")+SUMIF('2011 Survey responses'!D16,\">1\")+SUMIF('2011 Survey responses'!F16,\">1\")+SUMIF('2011 Survey responses'!K16,\">1\"))/(COUNTIF('2011 Survey responses'!B16,\">1\")+COUNTIF('2011 Survey responses'!D16,\">1\")+COUNTIF('2011 Survey responses'!F16,\">1\")+COUNTIF('2011 Survey responses'!K16,\">1\"))))","v":4},{"$f":"IF(SUM('2011 Survey responses'!G16:H16)<2.1,\"\",(AVERAGEIFS('2011 Survey responses'!G16:H16,'2011 Survey responses'!G16:H16,\">1\")))","v":2},{"$f":"IF(SUM('2011 Survey responses'!F16:G16)<1.5,\"\",MAX('2011 Survey responses'!F16,'2011 Survey responses'!G16))","v":6},{"$f":"IF(SUM('2011 Survey responses'!G16:H16)<1,\"\",MAX('2011 Survey responses'!G16,'2011 Survey responses'!H16))","v":2},{"$f":"IF(SUM('2011 Survey responses'!I16:L16)<4.1,\"\",(AVERAGEIFS('2011 Survey responses'!I16:L16,'2011 Survey responses'!I16:L16,\">1\")))","v":5},{"$f":"IF(SUM('2011 Survey responses'!M16:S16)<4.1,\"\",(AVERAGEIFS('2011 Survey responses'!M16:S16,'2011 Survey responses'!M16:S16,\">1\")))","v":4.2857142857142856},{"$f":"IF(SUM('2011 Survey responses'!T16:U16)<2.1,\"\",(AVERAGEIFS('2011 Survey responses'!T16:U16,'2011 Survey responses'!T16:U16,\">1\")))","v":6},{"$f":"IF(SUM('2011 Survey responses'!V16:AO16)<1,\"\",(AVERAGEIFS('2011 Survey responses'!V16:AO16,'2011 Survey responses'!V16:AO16,\">1\")))","v":4.666666666666667},{"$f":"IF(SUM('2011 Survey responses'!V16:AA16)<1,\"\",(AVERAGEIFS('2011 Survey responses'!V16:AA16,'2011 Survey responses'!V16:AA16,\">1\")))","v":4.4000000000000004},{"$f":"IF(SUM('2011 Survey responses'!AB16:AH16)<1,\"\",(AVERAGEIFS('2011 Survey responses'!AB16:AH16,'2011 Survey responses'!AB16:AH16,\">1\")))","v":4.8571428571428568},{"$f":"IF(SUM('2011 Survey responses'!AI16:AO16)<1,\"\",(AVERAGEIFS('2011 Survey responses'!AI16:AO16,'2011 Survey responses'!AI16:AO16,\">1\")))","v":4.666666666666667},{"$f":"IF(('2011 Survey responses'!Y16+'2011 Survey responses'!AI16+'2011 Survey responses'!AK16)<3.1,\"\",((SUMIF('2011 Survey responses'!Y16,\">1\")+SUMIF('2011 Survey responses'!AI16,\">1\")+SUMIF('2011 Survey responses'!AK16,\">1\")+SUMIF('2011 Survey responses'!AM16,\">1\"))/(COUNTIF('2011 Survey responses'!Y16,\">1\")+COUNTIF('2011 Survey responses'!AI16,\">1\")+COUNTIF('2011 Survey responses'!AK16,\">1\")+COUNTIF('2011 Survey responses'!AM16,\">1\"))))","v":5},{"$f":"IF(('2011 Survey responses'!W16)<1.1,\"\",('2011 Survey responses'!W16))","v":6},{"$f":"IF(('2011 Survey responses'!Y16)<1.1,\"\",('2011 Survey responses'!Y16))","v":6},{"$f":"IF(('2011 Survey responses'!Z16)<1.1,\"\",('2011 Survey responses'!Z16))","v":2},{"$f":"IF(('2011 Survey responses'!V16+'2011 Survey responses'!X16+'2011 Survey responses'!AA16)<3.1,\"\",((SUMIF('2011 Survey responses'!V16,\">1\")+SUMIF('2011 Survey responses'!X16,\">1\")+SUMIF('2011 Survey responses'!AA16,\">1\"))/(COUNTIF('2011 Survey responses'!V16,\">1\")+COUNTIF('2011 Survey responses'!X16,\">1\")+COUNTIF('2011 Survey responses'!AA16,\">1\"))))","v":4},{"$f":"IF(('2011 Survey responses'!V16+'2011 Survey responses'!Y16+'2011 Survey responses'!AA16)<3.1,\"\",((SUMIF('2011 Survey responses'!V16,\">1\")+SUMIF('2011 Survey responses'!Y16,\">1\")+SUMIF('2011 Survey responses'!AA16,\">1\"))/(COUNTIF('2011 Survey responses'!V16,\">1\")+COUNTIF('2011 Survey responses'!Y16,\">1\")+COUNTIF('2011 Survey responses'!AA16,\">1\"))))","v":6},{"$f":"IF(SUM('2011 Survey responses'!AB16:AH16)<1,\"\",(AVERAGEIFS('2011 Survey responses'!AB16:AH16,'2011 Survey responses'!AB16:AH16,\">1\")))","v":4.8571428571428568},{"$f":"IF(SUM('2011 Survey responses'!AI16:AO16)<7.1,\"\",(AVERAGEIFS('2011 Survey responses'!AI16:AO16,'2011 Survey responses'!AI16:AO16,\">1\")))","v":4.666666666666667},{"$f":"IF(('2011 Survey responses'!AH16)<1.1,\"\",('2011 Survey responses'!AH16))","v":4},{"$f":"IF(SUM('2011 Survey responses'!AP16:BV16)<1,\"\",(AVERAGEIFS('2011 Survey responses'!AP16:BV16,'2011 Survey responses'!AP16:BV16,\">1\")))","v":4.46875},{"$f":"IF(SUM('2011 Survey responses'!AP16:AS16)<4.1,\"\",(AVERAGEIFS('2011 Survey responses'!AP16:AS16,'2011 Survey responses'!AP16:AS16,\">1\")))","v":4.5},{"$f":"IF(SUM('2011 Survey responses'!AT16:BF16)<1,\"\",(AVERAGEIFS('2011 Survey responses'!AT16:BF16,'2011 Survey responses'!AT16:BF16,\">1\")))","v":4.1538461538461542},{"$f":"IF(SUM('2011 Survey responses'!BG16:BO16)<1,\"\",(AVERAGEIFS('2011 Survey responses'!BG16:BO16,'2011 Survey responses'!BG16:BO16,\">1\")))","v":5.333333333333333},{"$f":"IF(SUM('2011 Survey responses'!BP16:BS16)<1,\"\",(AVERAGEIFS('2011 Survey responses'!BP16:BS16,'2011 Survey responses'!BP16:BS16,\">1\")))","v":4},{"$f":"IF(SUM('2011 Survey responses'!BT16:BV16)<3.1,\"\",(AVERAGEIFS('2011 Survey responses'!BT16:BV16,'2011 Survey responses'!BT16:BV16,\">1\")))","v":3.5},{"$f":"IF(('2011 Survey responses'!AQ16+'2011 Survey responses'!AR16+'2011 Survey responses'!BG16)<3.1,\"\",((SUMIF('2011 Survey responses'!AQ16,\">1\")+SUMIF('2011 Survey responses'!AR16,\">1\")+SUMIF('2011 Survey responses'!BG16,\">1\"))/(COUNTIF('2011 Survey responses'!AQ16,\">1\")+COUNTIF('2011 Survey responses'!AR16,\">1\")+COUNTIF('2011 Survey responses'!BG16,\">1\"))))","v":5.666666666666667},{"$f":"IF(SUM('2011 Survey responses'!AP16:AS16)<4.1,\"\",(AVERAGEIFS('2011 Survey responses'!AP16:AS16,'2011 Survey responses'!AP16:AS16,\">1\")))","v":4.5},{"$f":"IF(('2011 Survey responses'!AU16+'2011 Survey responses'!AX16+'2011 Survey responses'!BA16+'2011 Survey responses'!BC16+'2011 Survey responses'!BD16)<5.1,\"\",(SUMIF('2011 Survey responses'!AU16,\">1\")+SUMIF('2011 Survey responses'!AX16,\">1\")+SUMIF('2011 Survey responses'!BA16,\">1\")+SUMIF('2011 Survey responses'!BC16,\">1\")+SUMIF('2011 Survey responses'!BD16,\">1\"))/(COUNTIF('2011 Survey responses'!AU16,\">1\")+COUNTIF('2011 Survey responses'!AX16,\">1\")+COUNTIF('2011 Survey responses'!BA16,\">1\")+COUNTIF('2011 Survey responses'!BC16,\">1\")+COUNTIF('2011 Survey responses'!BD16,\">1\")))","v":4.8},{"$f":"IF(('2011 Survey responses'!AT16)<1.1,\"\",('2011 Survey responses'!AT16))","v":5},{"$f":"IF(SUM('2011 Survey responses'!AV16:AW16)<2.1,\"\",(AVERAGEIFS('2011 Survey responses'!AV16:AW16,'2011 Survey responses'!AV16:AW16,\">1\")))","v":2},{"$f":"IF(('2011 Survey responses'!AW16+'2011 Survey responses'!AY16)<2.1,\"\",(SUMIF('2011 Survey responses'!AW16,\">1\")+SUMIF('2011 Survey responses'!AY16,\">1\"))/(COUNTIF('2011 Survey responses'!AW16,\">1\")+COUNTIF('2011 Survey responses'!AY16,\">1\")))","v":4},{"$f":"IF(('2011 Survey responses'!AZ16)<1.1,\"\",('2011 Survey responses'!AZ16))","v":2},2,2,3,2,{"$f":"IF(('2011 Survey responses'!BE16)<1.1,\"\",('2011 Survey responses'!BE16))","v":5},{"$f":"IF(('2011 Survey responses'!AY16+'2011 Survey responses'!BB16+'2011 Survey responses'!BF16)<3.1,\"\",(SUMIF('2011 Survey responses'!AY16,\">1\")+SUMIF('2011 Survey responses'!BB16,\">1\")+SUMIF('2011 Survey responses'!BF16,\">1\"))/(COUNTIF('2011 Survey responses'!AY16,\">1\")+COUNTIF('2011 Survey responses'!BB16,\">1\")+COUNTIF('2011 Survey responses'!BF16,\">1\")))","v":4.666666666666667},4.6666666666666661,{"$f":"IF(SUM('2011 Survey responses'!BT16:BV16)<3.1,\"\",(AVERAGEIFS('2011 Survey responses'!BT16:BV16,'2011 Survey responses'!BT16:BV16,\">1\")))","v":3.5},{"$f":"IF(SUM('2011 Survey responses'!BW16:CP16)<1,\"\",(AVERAGEIFS('2011 Survey responses'!BW16:CP16,'2011 Survey responses'!BW16:CP16,\">1\")))","v":4.8},{"$f":"IF(SUM('2011 Survey responses'!BW16:CF16)<1,\"\",(AVERAGEIFS('2011 Survey responses'!BW16:CF16,'2011 Survey responses'!BW16:CF16,\">1\")))","v":4.5999999999999996},{"$f":"IF(SUM('2011 Survey responses'!CG16:CP16)<1,\"\",(AVERAGEIFS('2011 Survey responses'!CG16:CP16,'2011 Survey responses'!CG16:CP16,\">1\")))","v":5},{"$f":"IF(SUM('2011 Survey responses'!BX16:CF16)<1,\"\",(AVERAGEIFS('2011 Survey responses'!BX16:CF16,'2011 Survey responses'!BX16:CF16,\">1\")))","v":4.4444444444444446},{"$f":"IF(SUM('2011 Survey responses'!CH16:CP16)<1,\"\",(AVERAGEIFS('2011 Survey responses'!CH16:CP16,'2011 Survey responses'!CH16:CP16,\">1\")))","v":4.8888888888888893},{"$f":"IF(SUM('2011 Survey responses'!BW16:CP16)<1,\"\",(AVERAGEIFS('2011 Survey responses'!BW16:CP16,'2011 Survey responses'!BW16:CP16,\">1\")))","v":4.8},{"$f":"IF(('2011 Survey responses'!BW16+'2011 Survey responses'!CG16)<2.1,\"\",(SUMIF('2011 Survey responses'!BW16,\">1\")+SUMIF('2011 Survey responses'!CG16,\">1\"))/(COUNTIF('2011 Survey responses'!BW16,\">1\")+COUNTIF('2011 Survey responses'!CG16,\">1\")))","v":6},{"$f":"IF(('2011 Survey responses'!BX16+'2011 Survey responses'!CH16)<2.1,\"\",(SUMIF('2011 Survey responses'!BX16,\">1\")+SUMIF('2011 Survey responses'!CH16,\">1\"))/(COUNTIF('2011 Survey responses'!BX16,\">1\")+COUNTIF('2011 Survey responses'!CH16,\">1\")))","v":6},{"$f":"IF(('2011 Survey responses'!BY16+'2011 Survey responses'!CI16)<2.1,\"\",(SUMIF('2011 Survey responses'!BY16,\">1\")+SUMIF('2011 Survey responses'!CI16,\">1\"))/(COUNTIF('2011 Survey responses'!BY16,\">1\")+COUNTIF('2011 Survey responses'!CI16,\">1\")))","v":6},{"$f":"IF('2011 Survey responses'!CQ16<0.5,\"\",'2011 Survey responses'!CQ16)","v":4},{"$f":"IF('2011 Survey responses'!CR16<0.5,\"\",'2011 Survey responses'!CR16)","v":4},{"$f":"IF('2011 Survey responses'!CS16<0.5,\"\",'2011 Survey responses'!CS16)","v":4},{"$f":"IF('2011 Survey responses'!CT16<0.5,\"\",'2011 Survey responses'!CT16)","v":1},{"$f":"IF('2011 Survey responses'!CU16<0.5,\"\",'2011 Survey responses'!CU16)","v":3},{"$f":"IF('2011 Survey responses'!CV16<0.5,\"\",'2011 Survey responses'!CV16)","v":1},{"$f":"IF(SUM('2011 Survey responses'!CW16:DL16)<1,\"\",(AVERAGE('2011 Survey responses'!CW16:DL16)))","v":3.625},{"$f":"IF(SUM('2011 Survey responses'!CW16:CZ16)<1,\"\",(AVERAGE('2011 Survey responses'!CW16:CZ16)))","v":4},{"$f":"IF(SUM('2011 Survey responses'!DA16:DD16)<1,\"\",(AVERAGE('2011 Survey responses'!DA16:DD16)))","v":3},{"$f":"IF(SUM('2011 Survey responses'!DE16:DH16)<1,\"\",(AVERAGE('2011 Survey responses'!DE16:DH16)))","v":3.5},{"$f":"IF(SUM('2011 Survey responses'!DI16:DL16)<1,\"\",(AVERAGE('2011 Survey responses'!DI16:DL16)))","v":4},{"$f":"IF(('2011 Survey responses'!CW16+'2011 Survey responses'!DA16+'2011 Survey responses'!DE16+'2011 Survey responses'!DI16)<1,\"\",AVERAGE('2011 Survey responses'!CW16,'2011 Survey responses'!DA16,'2011 Survey responses'!DE16,'2011 Survey responses'!DI16))","v":4.25},{"$f":"IF(('2011 Survey responses'!CX16+'2011 Survey responses'!DB16+'2011 Survey responses'!DF16+'2011 Survey responses'!DJ16)<1,\"\",AVERAGE('2011 Survey responses'!CX16,'2011 Survey responses'!DB16,'2011 Survey responses'!DF16,'2011 Survey responses'!DJ16))","v":3.75},{"$f":"IF(('2011 Survey responses'!CY16+'2011 Survey responses'!DC16+'2011 Survey responses'!DG16+'2011 Survey responses'!DK16)<1,\"\",AVERAGE('2011 Survey responses'!CY16,'2011 Survey responses'!DC16,'2011 Survey responses'!DG16,'2011 Survey responses'!DK16))","v":3},{"$f":"IF(('2011 Survey responses'!CZ16+'2011 Survey responses'!DD16+'2011 Survey responses'!DH16+'2011 Survey responses'!DL16)<1,\"\",AVERAGE('2011 Survey responses'!CZ16,'2011 Survey responses'!DD16,'2011 Survey responses'!DH16,'2011 Survey responses'!DL16))","v":3.5},{"$f":"IF('2011 Survey responses'!CW16<0.5,\"\",'2011 Survey responses'!CW16)","v":5},{"$f":"IF('2011 Survey responses'!CX16<0.5,\"\",'2011 Survey responses'!CX16)","v":4},{"$f":"IF('2011 Survey responses'!CY16<0.5,\"\",'2011 Survey responses'!CY16)","v":3},{"$f":"IF('2011 Survey responses'!CZ16<0.5,\"\",'2011 Survey responses'!CZ16)","v":4},{"$f":"IF('2011 Survey responses'!DA16<0.5,\"\",'2011 Survey responses'!DA16)","v":3},{"$f":"IF('2011 Survey responses'!DB16<0.5,\"\",'2011 Survey responses'!DB16)","v":3},{"$f":"IF('2011 Survey responses'!DC16<0.5,\"\",'2011 Survey responses'!DC16)","v":3},{"$f":"IF('2011 Survey responses'!DD16<0.5,\"\",'2011 Survey responses'!DD16)","v":3},{"$f":"IF('2011 Survey responses'!DE16<0.5,\"\",'2011 Survey responses'!DE16)","v":4},{"$f":"IF('2011 Survey responses'!DF16<0.5,\"\",'2011 Survey responses'!DF16)","v":4},{"$f":"IF('2011 Survey responses'!DG16<0.5,\"\",'2011 Survey responses'!DG16)","v":3},{"$f":"IF('2011 Survey responses'!DH16<0.5,\"\",'2011 Survey responses'!DH16)","v":3},{"$f":"IF('2011 Survey responses'!DI16<0.5,\"\",'2011 Survey responses'!DI16)","v":5},{"$f":"IF('2011 Survey responses'!DJ16<0.5,\"\",'2011 Survey responses'!DJ16)","v":4},{"$f":"IF('2011 Survey responses'!DK16<0.5,\"\",'2011 Survey responses'!DK16)","v":3},{"$f":"IF('2011 Survey responses'!DL16<0.5,\"\",'2011 Survey responses'!DL16)","v":4},{"$f":"IF('2011 Survey responses'!DU16=4,4,IF('2011 Survey responses'!DU16=5,4,\"\"))","v":4},{"$f":"IF('2011 Survey responses'!DV16=4,3,IF('2011 Survey responses'!DV16=5,3,\"\"))","v":""},"",{"$f":"IF(CQ16=2,CQ16,IF(CO16=4,CO16,IF(CP16=3,CP16,IF('2011 Survey responses'!GT16=1,1,\"\"))))","v":4},{"$f":"IF('2011 Survey responses'!DO16<0.5,\"\",'2011 Survey responses'!DO16)","v":4},{"$f":"IF('2011 Survey responses'!DP16<0.5,\"\",'2011 Survey responses'!DP16)","v":5},{"$f":"IF('2011 Survey responses'!DQ16<0.5,\"\",'2011 Survey responses'!DQ16)","v":4},{"$f":"IF('2011 Survey responses'!DR16<0.5,\"\",'2011 Survey responses'!DR16)","v":4},{"$f":"IF('2011 Survey responses'!DS16<0.5,\"\",'2011 Survey responses'!DS16)","v":5},{"$f":"IF('2011 Survey responses'!DT16<0.5,\"\",'2011 Survey responses'!DT16)","v":5},{"$f":"IF('2011 Survey responses'!DU16<0.5,\"\",'2011 Survey responses'!DU16)","v":5},{"$f":"IF('2011 Survey responses'!DV16<0.5,\"\",'2011 Survey responses'!DV16)","v":3},{"$f":"IF('2011 Survey responses'!DW16<0.5,\"\",'2011 Survey responses'!DW16)","v":5},{"$f":"IF('2011 Survey responses'!DX16<0.5,\"\",'2011 Survey responses'!DX16)","v":5},{"$f":"IF('2011 Survey responses'!DY16<0.5,\"\",'2011 Survey responses'!DY16)","v":4},{"$f":"IF('2011 Survey responses'!DZ16<0.5,\"\",'2011 Survey responses'!DZ16)","v":4},{"$f":"IF('2011 Survey responses'!EA16<0.5,\"\",'2011 Survey responses'!EA16)","v":5},{"$f":"IF('2011 Survey responses'!EB16<0.5,\"\",'2011 Survey responses'!EB16)","v":5},{"$f":"IF('2011 Survey responses'!EC16<0.5,\"\",'2011 Survey responses'!EC16)","v":5},{"$f":"IF('2011 Survey responses'!ED16<0.5,\"\",'2011 Survey responses'!ED16)","v":4},{"$f":"IF('2011 Survey responses'!EE16<0.5,\"\",'2011 Survey responses'!EE16)","v":1},{"$f":"IF('2011 Survey responses'!EF16<0.5,\"\",'2011 Survey responses'!EF16)","v":1},{"$f":"IF('2011 Survey responses'!EG16<0.5,\"\",'2011 Survey responses'!EG16)","v":4},{"$f":"IF('2011 Survey responses'!EH16<0.5,\"\",'2011 Survey responses'!EH16)","v":4},{"$f":"IF('2011 Survey responses'!EI16<0.5,\"\",'2011 Survey responses'!EI16)","v":5},{"$f":"IF('2011 Survey responses'!EJ16<0.5,\"\",'2011 Survey responses'!EJ16)","v":5},{"$f":"IF('2011 Survey responses'!EK16<0.5,\"\",'2011 Survey responses'!EK16)","v":5},{"$f":"IF('2011 Survey responses'!EL16<0.5,\"\",'2011 Survey responses'!EL16)","v":5},{"$f":"IF('2011 Survey responses'!EM16<0.5,\"\",'2011 Survey responses'!EM16)","v":4},{"$f":"IF('2011 Survey responses'!EN16<0.5,\"\",'2011 Survey responses'!EN16)","v":4},{"$f":"IF('2011 Survey responses'!EO16<0.5,\"\",'2011 Survey responses'!EO16)","v":4},{"$f":"IF('2011 Survey responses'!EP16<0.5,\"\",'2011 Survey responses'!EP16)","v":4},{"$f":"IF(('2011 Survey responses'!EW16+'2011 Survey responses'!EX16)>=2,AVERAGE('2011 Survey responses'!EW16,'2011 Survey responses'!EY16),\"\")","v":5},{"$f":"IF('2011 Survey responses'!EX16<0.5,\"\",'2011 Survey responses'!EX16)","v":5},{"$f":"IF('2011 Survey responses'!EZ16<0.5,\"\",'2011 Survey responses'!EZ16)","v":5},{"$f":"IF('2011 Survey responses'!FB16<0.5,\"\",'2011 Survey responses'!FB16)","v":4},{"$f":"IF('2011 Survey responses'!FD16<0.5,\"\",'2011 Survey responses'!FD16)","v":4},{"$f":"IF('2011 Survey responses'!FC16<0.5,\"\",'2011 Survey responses'!FC16)","v":5},{"$f":"IF(('2011 Survey responses'!EM16+'2011 Survey responses'!EN16)>=2,AVERAGE('2011 Survey responses'!EM16,'2011 Survey responses'!EN16),\"\")","v":4},{"$f":"IF('2011 Survey responses'!ES16<0.5,\"\",'2011 Survey responses'!ES16)","v":5},{"$f":"IF(('2011 Survey responses'!ET16+'2011 Survey responses'!EU16)>=2,AVERAGE('2011 Survey responses'!ET16,'2011 Survey responses'!EU16),\"\")","v":5},{"$f":"IF('2011 Survey responses'!EV16<0.5,\"\",'2011 Survey responses'!EV16)","v":4},{"$f":"IF('2011 Survey responses'!FA16<0.5,\"\",'2011 Survey responses'!FA16)","v":5},{"$f":"IF('2011 Survey responses'!ER16<0.5,\"\",'2011 Survey responses'!ER16)","v":4},{"$f":"IF(('2011 Survey responses'!EO16+'2011 Survey responses'!EP16)>=2,AVERAGE('2011 Survey responses'!EO16,'2011 Survey responses'!EP16),\"\")","v":4},{"$f":"IF('2011 Survey responses'!EQ16<0.5,\"\",'2011 Survey responses'!EQ16)","v":3},{"$f":"IF('2011 Survey responses'!ET16<0.5,\"\",'2011 Survey responses'!ET16)","v":5},{"$f":"IF('2011 Survey responses'!EU16<0.5,\"\",'2011 Survey responses'!EU16)","v":5},{"$f":"IF('2011 Survey responses'!EW16<0.5,\"\",'2011 Survey responses'!EW16)","v":5},{"$f":"IF('2011 Survey responses'!EY16<0.5,\"\",'2011 Survey responses'!EY16)","v":5},{"$f":"IF('2011 Survey responses'!FU16<0.5,\"\",'2011 Survey responses'!FU16)","v":4},{"$f":"IF(('2011 Survey responses'!FL16+'2011 Survey responses'!FM16)>=2,AVERAGE('2011 Survey responses'!FL16,'2011 Survey responses'!FM16),\"\")","v":4},{"$f":"IF(('2011 Survey responses'!FO16+'2011 Survey responses'!FQ16)>=2,AVERAGE('2011 Survey responses'!FO16,'2011 Survey responses'!FQ16),\"\")","v":3},{"$f":"IF('2011 Survey responses'!FJ16<0.5,\"\",'2011 Survey responses'!FJ16)","v":4},{"$f":"IF('2011 Survey responses'!FT16<0.5,\"\",'2011 Survey responses'!FT16)","v":4},{"$f":"IF('2011 Survey responses'!FR16<0.5,\"\",'2011 Survey responses'!FR16)","v":4},{"$f":"IF('2011 Survey responses'!FK16<0.5,\"\",'2011 Survey responses'!FK16)","v":4},{"$f":"IF('2011 Survey responses'!FP16<0.5,\"\",'2011 Survey responses'!FP16)","v":3},{"$f":"IF('2011 Survey responses'!FN16<0.5,\"\",'2011 Survey responses'!FN16)","v":4},{"$f":"IF(('2011 Survey responses'!FE16+'2011 Survey responses'!FF16)>=2,AVERAGE('2011 Survey responses'!FE16,'2011 Survey responses'!FF16),\"\")","v":4},{"$f":"IF('2011 Survey responses'!FS16<0.5,\"\",'2011 Survey responses'!FS16)","v":4},{"$f":"IF('2011 Survey responses'!FV16<0.5,\"\",'2011 Survey responses'!FV16)","v":4},{"$f":"IF(('2011 Survey responses'!FG16+'2011 Survey responses'!FH16)>=2,AVERAGE('2011 Survey responses'!FG16,'2011 Survey responses'!FH16),\"\")","v":3},{"$f":"IF('2011 Survey responses'!FI16<0.5,\"\",'2011 Survey responses'!FI16)","v":4},{"$f":"IF('2011 Survey responses'!FE16<0.5,\"\",'2011 Survey responses'!FE16)","v":4},{"$f":"IF('2011 Survey responses'!FF16<0.5,\"\",'2011 Survey responses'!FF16)","v":4},{"$f":"IF('2011 Survey responses'!FG16<0.5,\"\",'2011 Survey responses'!FG16)","v":3},{"$f":"IF('2011 Survey responses'!FH16<0.5,\"\",'2011 Survey responses'!FH16)","v":3},{"$f":"IF('2011 Survey responses'!FL16<0.5,\"\",'2011 Survey responses'!FL16)","v":4},{"$f":"IF('2011 Survey responses'!FM16<0.5,\"\",'2011 Survey responses'!FM16)","v":4},{"$f":"IF('2011 Survey responses'!FO16<0.5,\"\",'2011 Survey responses'!FO16)","v":3},{"$f":"IF('2011 Survey responses'!FQ16<0.5,\"\",'2011 Survey responses'!FQ16)","v":3}]
["Barbados",{"$f":"IF(SUM(F17)<1,\"\",AVERAGEIF('2011 Survey responses'!B17:CP17,\">1\"))","v":3.3205128205128207},{"$f":"IF(SUM(F17)<1,\"\",AVERAGEIF('2011 Survey responses'!B17:AO17,\">1\"))","v":2.8571428571428572},{"$f":"IF(SUM(F17)<1,\"\",AVERAGEIF('2011 Survey responses'!B17:BV17,\">1\"))","v":3.1},{"$f":"IF(SUM(F17)<1,\"\",AVERAGEIF('2011 Survey responses'!V17:BV17,\">1\"))","v":3.1086956521739131},{"$f":"IF(SUM('2011 Survey responses'!B17:U17)<1,\"\",(AVERAGEIFS('2011 Survey responses'!B17:U17,'2011 Survey responses'!B17:U17,\">1\")))","v":3.0714285714285716},{"$f":"IF(SUM('2011 Survey responses'!B17:H17)<1,\"\",(AVERAGEIFS('2011 Survey responses'!B17:H17,'2011 Survey responses'!B17:H17,\">1\")))","v":2.6},{"$f":"IF(SUM('2011 Survey responses'!I17:S17)<1,\"\",(AVERAGEIFS('2011 Survey responses'!I17:S17,'2011 Survey responses'!I17:S17,\">1\")))","v":3.3333333333333335},{"$f":"IF(SUM('2011 Survey responses'!T17:U17)<2.1,\"\",(AVERAGEIFS('2011 Survey responses'!T17:U17,'2011 Survey responses'!T17:U17,\">1\")))","v":""},{"$f":"IF(SUM('2011 Survey responses'!B17:C17)<2.1,\"\",((SUMIF('2011 Survey responses'!B17:C17,\">1\")+SUMIF('2011 Survey responses'!F17,\">1\"))/(COUNTIF('2011 Survey responses'!B17:C17,\">1\")+COUNTIF('2011 Survey responses'!F17,\">1\"))))","v":3.5},{"$f":"IF(SUM('2011 Survey responses'!D17:E17)<2.1,\"\",(AVERAGEIFS('2011 Survey responses'!D17:E17,'2011 Survey responses'!D17:E17,\">1\")))","v":""},{"$f":"IF(('2011 Survey responses'!B17+'2011 Survey responses'!D17)<2.1,\"\",((SUMIF('2011 Survey responses'!B17,\">1\")+SUMIF('2011 Survey responses'!D17,\">1\")+SUMIF('2011 Survey responses'!F17,\">1\")+SUMIF('2011 Survey responses'!K17,\">1\"))/(COUNTIF('2011 Survey responses'!B17,\">1\")+COUNTIF('2011 Survey responses'!D17,\">1\")+COUNTIF('2011 Survey responses'!F17,\">1\")+COUNTIF('2011 Survey responses'!K17,\">1\"))))","v":3.25},{"$f":"IF(SUM('2011 Survey responses'!G17:H17)<2.1,\"\",(AVERAGEIFS('2011 Survey responses'!G17:H17,'2011 Survey responses'!G17:H17,\">1\")))","v":2},{"$f":"IF(SUM('2011 Survey responses'!F17:G17)<1.5,\"\",MAX('2011 Survey responses'!F17,'2011 Survey responses'!G17))","v":2},{"$f":"IF(SUM('2011 Survey responses'!G17:H17)<1,\"\",MAX('2011 Survey responses'!G17,'2011 Survey responses'!H17))","v":2},{"$f":"IF(SUM('2011 Survey responses'!I17:L17)<4.1,\"\",(AVERAGEIFS('2011 Survey responses'!I17:L17,'2011 Survey responses'!I17:L17,\">1\")))","v":4},{"$f":"IF(SUM('2011 Survey responses'!M17:S17)<4.1,\"\",(AVERAGEIFS('2011 Survey responses'!M17:S17,'2011 Survey responses'!M17:S17,\">1\")))","v":3},{"$f":"IF(SUM('2011 Survey responses'!T17:U17)<2.1,\"\",(AVERAGEIFS('2011 Survey responses'!T17:U17,'2011 Survey responses'!T17:U17,\">1\")))","v":""},{"$f":"IF(SUM('2011 Survey responses'!V17:AO17)<1,\"\",(AVERAGEIFS('2011 Survey responses'!V17:AO17,'2011 Survey responses'!V17:AO17,\">1\")))","v":2.6428571428571428},{"$f":"IF(SUM('2011 Survey responses'!V17:AA17)<1,\"\",(AVERAGEIFS('2011 Survey responses'!V17:AA17,'2011 Survey responses'!V17:AA17,\">1\")))","v":3.5},{"$f":"IF(SUM('2011 Survey responses'!AB17:AH17)<1,\"\",(AVERAGEIFS('2011 Survey responses'!AB17:AH17,'2011 Survey responses'!AB17:AH17,\">1\")))","v":2.2857142857142856},{"$f":"IF(SUM('2011 Survey responses'!AI17:AO17)<1,\"\",(AVERAGEIFS('2011 Survey responses'!AI17:AO17,'2011 Survey responses'!AI17:AO17,\">1\")))","v":2.8},{"$f":"IF(('2011 Survey responses'!Y17+'2011 Survey responses'!AI17+'2011 Survey responses'!AK17)<3.1,\"\",((SUMIF('2011 Survey responses'!Y17,\">1\")+SUMIF('2011 Survey responses'!AI17,\">1\")+SUMIF('2011 Survey responses'!AK17,\">1\")+SUMIF('2011 Survey responses'!AM17,\">1\"))/(COUNTIF('2011 Survey responses'!Y17,\">1\")+COUNTIF('2011 Survey responses'!AI17,\">1\")+COUNTIF('2011 Survey responses'!AK17,\">1\")+COUNTIF('2011 Survey responses'!AM17,\">1\"))))","v":2.25},{"$f":"IF(('2011 Survey responses'!W17)<1.1,\"\",('2011 Survey responses'!W17))","v":5},{"$f":"IF(('2011 Survey responses'!Y17)<1.1,\"\",('2011 Survey responses'!Y17))","v":2},{"$f":"IF(('2011 Survey responses'!Z17)<1.1,\"\",('2011 Survey responses'!Z17))","v":""},{"$f":"IF(('2011 Survey responses'!V17+'2011 Survey responses'!X17+'2011 Survey responses'!AA17)<3.1,\"\",((SUMIF('2011 Survey responses'!V17,\">1\")+SUMIF('2011 Survey responses'!X17,\">1\")+SUMIF('2011 Survey responses'!AA17,\">1\"))/(COUNTIF('2011 Survey responses'!V17,\">1\")+COUNTIF('2011 Survey responses'!X17,\">1\")+COUNTIF('2011 Survey responses'!AA17,\">1\"))))","v":""},{"$f":"IF(('2011 Survey responses'!V17+'2011 Survey responses'!Y17+'2011 Survey responses'!AA17)<3.1,\"\",((SUMIF('2011 Survey responses'!V17,\">1\")+SUMIF('2011 Survey responses'!Y17,\">1\")+SUMIF('2011 Survey responses'!AA17,\">1\"))/(COUNTIF('2011 Survey responses'!V17,\">1\")+COUNTIF('2011 Survey responses'!Y17,\">1\")+COUNTIF('2011 Survey responses'!AA17,\">1\"))))","v":2},{"$f":"IF(SUM('2011 Survey responses'!AB17:AH17)<1,\"\",(AVERAGEIFS('2011 Survey responses'!AB17:AH17,'2011 Survey responses'!AB17:AH17,\">1\")))","v":2.2857142857142856},{"$f":"IF(SUM('2011 Survey responses'!AI17:AO17)<7.1,\"\",(AVERAGEIFS('2011 Survey responses'!AI17:AO17,'2011 Survey responses'!AI17:AO17,\">1\")))","v":2.8},{"$f":"IF(('2011 Survey responses'!AH17)<1.1,\"\",('2011 Survey responses'!AH17))","v":2},{"$f":"IF(SUM('2011 Survey responses'!AP17:BV17)<1,\"\",(AVERAGEIFS('2011 Survey responses'!AP17:BV17,'2011 Survey responses'!AP17:BV17,\">1\")))","v":3.3125},{"$f":"IF(SUM('2011 Survey responses'!AP17:AS17)<4.1,\"\",(AVERAGEIFS('2011 Survey responses'!AP17:AS17,'2011 Survey responses'!AP17:AS17,\">1\")))","v":3.5},{"$f":"IF(SUM('2011 Survey responses'!AT17:BF17)<1,\"\",(AVERAGEIFS('2011 Survey responses'!AT17:BF17,'2011 Survey responses'!AT17:BF17,\">1\")))","v":3.0833333333333335},{"$f":"IF(SUM('2011 Survey responses'!BG17:BO17)<1,\"\",(AVERAGEIFS('2011 Survey responses'!BG17:BO17,'2011 Survey responses'!BG17:BO17,\">1\")))","v":3.4444444444444446},{"$f":"IF(SUM('2011 Survey responses'!BP17:BS17)<1,\"\",(AVERAGEIFS('2011 Survey responses'!BP17:BS17,'2011 Survey responses'!BP17:BS17,\">1\")))","v":3.5},{"$f":"IF(SUM('2011 Survey responses'!BT17:BV17)<3.1,\"\",(AVERAGEIFS('2011 Survey responses'!BT17:BV17,'2011 Survey responses'!BT17:BV17,\">1\")))","v":3.3333333333333335},{"$f":"IF(('2011 Survey responses'!AQ17+'2011 Survey responses'!AR17+'2011 Survey responses'!BG17)<3.1,\"\",((SUMIF('2011 Survey responses'!AQ17,\">1\")+SUMIF('2011 Survey responses'!AR17,\">1\")+SUMIF('2011 Survey responses'!BG17,\">1\"))/(COUNTIF('2011 Survey responses'!AQ17,\">1\")+COUNTIF('2011 Survey responses'!AR17,\">1\")+COUNTIF('2011 Survey responses'!BG17,\">1\"))))","v":3.3333333333333335},{"$f":"IF(SUM('2011 Survey responses'!AP17:AS17)<4.1,\"\",(AVERAGEIFS('2011 Survey responses'!AP17:AS17,'2011 Survey responses'!AP17:AS17,\">1\")))","v":3.5},{"$f":"IF(('2011 Survey responses'!AU17+'2011 Survey responses'!AX17+'2011 Survey responses'!BA17+'2011 Survey responses'!BC17+'2011 Survey responses'!BD17)<5.1,\"\",(SUMIF('2011 Survey responses'!AU17,\">1\")+SUMIF('2011 Survey responses'!AX17,\">1\")+SUMIF('2011 Survey responses'!BA17,\">1\")+SUMIF('2011 Survey responses'!BC17,\">1\")+SUMIF('2011 Survey responses'!BD17,\">1\"))/(COUNTIF('2011 Survey responses'!AU17,\">1\")+COUNTIF('2011 Survey responses'!AX17,\">1\")+COUNTIF('2011 Survey responses'!BA17,\">1\")+COUNTIF('2011 Survey responses'!BC17,\">1\")+COUNTIF('2011 Survey responses'!BD17,\">1\")))","v":3.2},{"$f":"IF(('2011 Survey responses'!AT17)<1.1,\"\",('2011 Survey responses'!AT17))","v":5},{"$f":"IF(SUM('2011 Survey responses'!AV17:AW17)<2.1,\"\",(AVERAGEIFS('2011 Survey responses'!AV17:AW17,'2011 Survey responses'!AV17:AW17,\">1\")))","v":2},{"$f":"IF(('2011 Survey responses'!AW17+'2011 Survey responses'!AY17)<2.1,\"\",(SUMIF('2011 Survey responses'!AW17,\">1\")+SUMIF('2011 Survey responses'!AY17,\">1\"))/(COUNTIF('2011 Survey responses'!AW17,\">1\")+COUNTIF('2011 Survey responses'!AY17,\">1\")))","v":2},{"$f":"IF(('2011 Survey responses'!AZ17)<1.1,\"\",('2011 Survey responses'!AZ17))","v":4},4,2,2,4,{"$f":"IF(('2011 Survey responses'!BE17)<1.1,\"\",('2011 Survey responses'!BE17))","v":""},{"$f":"IF(('2011 Survey responses'!AY17+'2011 Survey responses'!BB17+'2011 Survey responses'!BF17)<3.1,\"\",(SUMIF('2011 Survey responses'!AY17,\">1\")+SUMIF('2011 Survey responses'!BB17,\">1\")+SUMIF('2011 Survey responses'!BF17,\">1\"))/(COUNTIF('2011 Survey responses'!AY17,\">1\")+COUNTIF('2011 Survey responses'!BB17,\">1\")+COUNTIF('2011 Survey responses'!BF17,\">1\")))","v":2.6666666666666665},3.4722222222222223,{"$f":"IF(SUM('2011 Survey responses'!BT17:BV17)<3.1,\"\",(AVERAGEIFS('2011 Survey responses'!BT17:BV17,'2011 Survey responses'!BT17:BV17,\">1\")))","v":3.3333333333333335},{"$f":"IF(SUM('2011 Survey responses'!BW17:CP17)<1,\"\",(AVERAGEIFS('2011 Survey responses'!BW17:CP17,'2011 Survey responses'!BW17:CP17,\">1\")))","v":4.0555555555555554},{"$f":"IF(SUM('2011 Survey responses'!BW17:CF17)<1,\"\",(AVERAGEIFS('2011 Survey responses'!BW17:CF17,'2011 Survey responses'!BW17:CF17,\">1\")))","v":4},{"$f":"IF(SUM('2011 Survey responses'!CG17:CP17)<1,\"\",(AVERAGEIFS('2011 Survey responses'!CG17:CP17,'2011 Survey responses'!CG17:CP17,\">1\")))","v":4.1111111111111107},{"$f":"IF(SUM('2011 Survey responses'!BX17:CF17)<1,\"\",(AVERAGEIFS('2011 Survey responses'!BX17:CF17,'2011 Survey responses'!BX17:CF17,\">1\")))","v":4},{"$f":"IF(SUM('2011 Survey responses'!CH17:CP17)<1,\"\",(AVERAGEIFS('2011 Survey responses'!CH17:CP17,'2011 Survey responses'!CH17:CP17,\">1\")))","v":4},{"$f":"IF(SUM('2011 Survey responses'!BW17:CP17)<1,\"\",(AVERAGEIFS('2011 Survey responses'!BW17:CP17,'2011 Survey responses'!BW17:CP17,\">1\")))","v":4.0555555555555554},{"$f":"IF(('2011 Survey responses'!BW17+'2011 Survey responses'!CG17)<2.1,\"\",(SUMIF('2011 Survey responses'!BW17,\">1\")+SUMIF('2011 Survey responses'!CG17,\">1\"))/(COUNTIF('2011 Survey responses'!BW17,\">1\")+COUNTIF('2011 Survey responses'!CG17,\">1\")))","v":4.5},{"$f":"IF(('2011 Survey responses'!BX17+'2011 Survey responses'!CH17)<2.1,\"\",(SUMIF('2011 Survey responses'!BX17,\">1\")+SUMIF('2011 Survey responses'!CH17,\">1\"))/(COUNTIF('2011 Survey responses'!BX17,\">1\")+COUNTIF('2011 Survey responses'!CH17,\">1\")))","v":4},{"$f":"IF(('2011 Survey responses'!BY17+'2011 Survey responses'!CI17)<2.1,\"\",(SUMIF('2011 Survey responses'!BY17,\">1\")+SUMIF('2011 Survey responses'!CI17,\">1\"))/(COUNTIF('2011 Survey responses'!BY17,\">1\")+COUNTIF('2011 Survey responses'!CI17,\">1\")))","v":""},{"$f":"IF('2011 Survey responses'!CQ17<0.5,\"\",'2011 Survey responses'!CQ17)","v":""},{"$f":"IF('2011 Survey responses'!CR17<0.5,\"\",'2011 Survey responses'!CR17)","v":5},{"$f":"IF('2011 Survey responses'!CS17<0.5,\"\",'2011 Survey responses'!CS17)","v":5},{"$f":"IF('2011 Survey responses'!CT17<0.5,\"\",'2011 Survey responses'!CT17)","v":1},{"$f":"IF('2011 Survey responses'!CU17<0.5,\"\",'2011 Survey responses'!CU17)","v":1},{"$f":"IF('2011 Survey responses'!CV17<0.5,\"\",'2011 Survey responses'!CV17)","v":2},{"$f":"IF(SUM('2011 Survey responses'!CW17:DL17)<1,\"\",(AVERAGE('2011 Survey responses'!CW17:DL17)))","v":3.0625},{"$f":"IF(SUM('2011 Survey responses'!CW17:CZ17)<1,\"\",(AVERAGE('2011 Survey responses'!CW17:CZ17)))","v":3.5},{"$f":"IF(SUM('2011 Survey responses'!DA17:DD17)<1,\"\",(AVERAGE('2011 Survey responses'!DA17:DD17)))","v":3.25},{"$f":"IF(SUM('2011 Survey responses'!DE17:DH17)<1,\"\",(AVERAGE('2011 Survey responses'!DE17:DH17)))","v":2.5},{"$f":"IF(SUM('2011 Survey responses'!DI17:DL17)<1,\"\",(AVERAGE('2011 Survey responses'!DI17:DL17)))","v":3},{"$f":"IF(('2011 Survey responses'!CW17+'2011 Survey responses'!DA17+'2011 Survey responses'!DE17+'2011 Survey responses'!DI17)<1,\"\",AVERAGE('2011 Survey responses'!CW17,'2011 Survey responses'!DA17,'2011 Survey responses'!DE17,'2011 Survey responses'!DI17))","v":2.75},{"$f":"IF(('2011 Survey responses'!CX17+'2011 Survey responses'!DB17+'2011 Survey responses'!DF17+'2011 Survey responses'!DJ17)<1,\"\",AVERAGE('2011 Survey responses'!CX17,'2011 Survey responses'!DB17,'2011 Survey responses'!DF17,'2011 Survey responses'!DJ17))","v":3},{"$f":"IF(('2011 Survey responses'!CY17+'2011 Survey responses'!DC17+'2011 Survey responses'!DG17+'2011 Survey responses'!DK17)<1,\"\",AVERAGE('2011 Survey responses'!CY17,'2011 Survey responses'!DC17,'2011 Survey responses'!DG17,'2011 Survey responses'!DK17))","v":3.25},{"$f":"IF(('2011 Survey responses'!CZ17+'2011 Survey responses'!DD17+'2011 Survey responses'!DH17+'2011 Survey responses'!DL17)<1,\"\",AVERAGE('2011 Survey responses'!CZ17,'2011 Survey responses'!DD17,'2011 Survey responses'!DH17,'2011 Survey responses'!DL17))","v":3.25},{"$f":"IF('2011 Survey responses'!CW17<0.5,\"\",'2011 Survey responses'!CW17)","v":3},{"$f":"IF('2011 Survey responses'!CX17<0.5,\"\",'2011 Survey responses'!CX17)","v":4},{"$f":"IF('2011 Survey responses'!CY17<0.5,\"\",'2011 Survey responses'!CY17)","v":3},{"$f":"IF('2011 Survey responses'!CZ17<0.5,\"\",'2011 Survey responses'!CZ17)","v":4},{"$f":"IF('2011 Survey responses'!DA17<0.5,\"\",'2011 Survey responses'!DA17)","v":3},{"$f":"IF('2011 Survey responses'!DB17<0.5,\"\",'2011 Survey responses'!DB17)","v":3},{"$f":"IF('2011 Survey responses'!DC17<0.5,\"\",'2011 Survey responses'!DC17)","v":4},{"$f":"IF('2011 Survey responses'!DD17<0.5,\"\",'2011 Survey responses'!DD17)","v":3},{"$f":"IF('2011 Survey responses'!DE17<0.5,\"\",'2011 Survey responses'!DE17)","v":2},{"$f":"IF('2011 Survey responses'!DF17<0.5,\"\",'2011 Survey responses'!DF17)","v":2},{"$f":"IF('2011 Survey responses'!DG17<0.5,\"\",'2011 Survey responses'!DG17)","v":3},{"$f":"IF('2011 Survey responses'!DH17<0.5,\"\",'2011 Survey responses'!DH17)","v":3},{"$f":"IF('2011 Survey responses'!DI17<0.5,\"\",'2011 Survey responses'!DI17)","v":3},{"$f":"IF('2011 Survey responses'!DJ17<0.5,\"\",'2011 Survey responses'!DJ17)","v":3},{"$f":"IF('2011 Survey responses'!DK17<0.5,\"\",'2011 Survey responses'!DK17)","v":3},{"$f":"IF('2011 Survey responses'!DL17<0.5,\"\",'2011 Survey responses'!DL17)","v":3},{"$f":"IF('2011 Survey responses'!DU17=4,4,IF('2011 Survey responses'!DU17=5,4,\"\"))","v":4},{"$f":"IF('2011 Survey responses'!DV17=4,3,IF('2011 Survey responses'!DV17=5,3,\"\"))","v":3},2,{"$f":"IF(CQ17=2,CQ17,IF(CO17=4,CO17,IF(CP17=3,CP17,IF('2011 Survey responses'!GT17=1,1,\"\"))))","v":2},{"$f":"IF('2011 Survey responses'!DO17<0.5,\"\",'2011 Survey responses'!DO17)","v":4},{"$f":"IF('2011 Survey responses'!DP17<0.5,\"\",'2011 Survey responses'!DP17)","v":4},{"$f":"IF('2011 Survey responses'!DQ17<0.5,\"\",'2011 Survey responses'!DQ17)","v":4},{"$f":"IF('2011 Survey responses'!DR17<0.5,\"\",'2011 Survey responses'!DR17)","v":2},{"$f":"IF('2011 Survey responses'!DS17<0.5,\"\",'2011 Survey responses'!DS17)","v":2},{"$f":"IF('2011 Survey responses'!DT17<0.5,\"\",'2011 Survey responses'!DT17)","v":4},{"$f":"IF('2011 Survey responses'!DU17<0.5,\"\",'2011 Survey responses'!DU17)","v":4},{"$f":"IF('2011 Survey responses'!DV17<0.5,\"\",'2011 Survey responses'!DV17)","v":4},{"$f":"IF('2011 Survey responses'!DW17<0.5,\"\",'2011 Survey responses'!DW17)","v":2},{"$f":"IF('2011 Survey responses'!DX17<0.5,\"\",'2011 Survey responses'!DX17)","v":5},{"$f":"IF('2011 Survey responses'!DY17<0.5,\"\",'2011 Survey responses'!DY17)","v":3},{"$f":"IF('2011 Survey responses'!DZ17<0.5,\"\",'2011 Survey responses'!DZ17)","v":5},{"$f":"IF('2011 Survey responses'!EA17<0.5,\"\",'2011 Survey responses'!EA17)","v":3},{"$f":"IF('2011 Survey responses'!EB17<0.5,\"\",'2011 Survey responses'!EB17)","v":5},{"$f":"IF('2011 Survey responses'!EC17<0.5,\"\",'2011 Survey responses'!EC17)","v":4},{"$f":"IF('2011 Survey responses'!ED17<0.5,\"\",'2011 Survey responses'!ED17)","v":3},{"$f":"IF('2011 Survey responses'!EE17<0.5,\"\",'2011 Survey responses'!EE17)","v":3},{"$f":"IF('2011 Survey responses'!EF17<0.5,\"\",'2011 Survey responses'!EF17)","v":5},{"$f":"IF('2011 Survey responses'!EG17<0.5,\"\",'2011 Survey responses'!EG17)","v":5},{"$f":"IF('2011 Survey responses'!EH17<0.5,\"\",'2011 Survey responses'!EH17)","v":5},{"$f":"IF('2011 Survey responses'!EI17<0.5,\"\",'2011 Survey responses'!EI17)","v":3},{"$f":"IF('2011 Survey responses'!EJ17<0.5,\"\",'2011 Survey responses'!EJ17)","v":5},{"$f":"IF('2011 Survey responses'!EK17<0.5,\"\",'2011 Survey responses'!EK17)","v":4},{"$f":"IF('2011 Survey responses'!EL17<0.5,\"\",'2011 Survey responses'!EL17)","v":5},{"$f":"IF('2011 Survey responses'!EM17<0.5,\"\",'2011 Survey responses'!EM17)","v":4},{"$f":"IF('2011 Survey responses'!EN17<0.5,\"\",'2011 Survey responses'!EN17)","v":""},{"$f":"IF('2011 Survey responses'!EO17<0.5,\"\",'2011 Survey responses'!EO17)","v":2},{"$f":"IF('2011 Survey responses'!EP17<0.5,\"\",'2011 Survey responses'!EP17)","v":1},{"$f":"IF(('2011 Survey responses'!EW17+'2011 Survey responses'!EX17)>=2,AVERAGE('2011 Survey responses'!EW17,'2011 Survey responses'!EY17),\"\")","v":5},{"$f":"IF('2011 Survey responses'!EX17<0.5,\"\",'2011 Survey responses'!EX17)","v":4},{"$f":"IF('2011 Survey responses'!EZ17<0.5,\"\",'2011 Survey responses'!EZ17)","v":4},{"$f":"IF('2011 Survey responses'!FB17<0.5,\"\",'2011 Survey responses'!FB17)","v":4},{"$f":"IF('2011 Survey responses'!FD17<0.5,\"\",'2011 Survey responses'!FD17)","v":4},{"$f":"IF('2011 Survey responses'!FC17<0.5,\"\",'2011 Survey responses'!FC17)","v":4},{"$f":"IF(('2011 Survey responses'!EM17+'2011 Survey responses'!EN17)>=2,AVERAGE('2011 Survey responses'!EM17,'2011 Survey responses'!EN17),\"\")","v":4},{"$f":"IF('2011 Survey responses'!ES17<0.5,\"\",'2011 Survey responses'!ES17)","v":4},{"$f":"IF(('2011 Survey responses'!ET17+'2011 Survey responses'!EU17)>=2,AVERAGE('2011 Survey responses'!ET17,'2011 Survey responses'!EU17),\"\")","v":4},{"$f":"IF('2011 Survey responses'!EV17<0.5,\"\",'2011 Survey responses'!EV17)","v":4},{"$f":"IF('2011 Survey responses'!FA17<0.5,\"\",'2011 Survey responses'!FA17)","v":4},{"$f":"IF('2011 Survey responses'!ER17<0.5,\"\",'2011 Survey responses'!ER17)","v":3},{"$f":"IF(('2011 Survey responses'!EO17+'2011 Survey responses'!EP17)>=2,AVERAGE('2011 Survey responses'!EO17,'2011 Survey responses'!EP17),\"\")","v":1.5},{"$f":"IF('2011 Survey responses'!EQ17<0.5,\"\",'2011 Survey responses'!EQ17)","v":3},{"$f":"IF('2011 Survey responses'!ET17<0.5,\"\",'2011 Survey responses'!ET17)","v":4},{"$f":"IF('2011 Survey responses'!EU17<0.5,\"\",'2011 Survey responses'!EU17)","v":4},{"$f":"IF('2011 Survey responses'!EW17<0.5,\"\",'2011 Survey responses'!EW17)","v":5},{"$f":"IF('2011 Survey responses'!EY17<0.5,\"\",'2011 Survey responses'!EY17)","v":5},{"$f":"IF('2011 Survey responses'!FU17<0.5,\"\",'2011 Survey responses'!FU17)","v":4},{"$f":"IF(('2011 Survey responses'!FL17+'2011 Survey responses'!FM17)>=2,AVERAGE('2011 Survey responses'!FL17,'2011 Survey responses'!FM17),\"\")","v":3.5},{"$f":"IF(('2011 Survey responses'!FO17+'2011 Survey responses'!FQ17)>=2,AVERAGE('2011 Survey responses'!FO17,'2011 Survey responses'!FQ17),\"\")","v":4.5},{"$f":"IF('2011 Survey responses'!FJ17<0.5,\"\",'2011 Survey responses'!FJ17)","v":4},{"$f":"IF('2011 Survey responses'!FT17<0.5,\"\",'2011 Survey responses'!FT17)","v":4},{"$f":"IF('2011 Survey responses'!FR17<0.5,\"\",'2011 Survey responses'!FR17)","v":4},{"$f":"IF('2011 Survey responses'!FK17<0.5,\"\",'2011 Survey responses'!FK17)","v":4},{"$f":"IF('2011 Survey responses'!FP17<0.5,\"\",'2011 Survey responses'!FP17)","v":4},{"$f":"IF('2011 Survey responses'!FN17<0.5,\"\",'2011 Survey responses'!FN17)","v":4},{"$f":"IF(('2011 Survey responses'!FE17+'2011 Survey responses'!FF17)>=2,AVERAGE('2011 Survey responses'!FE17,'2011 Survey responses'!FF17),\"\")","v":4},{"$f":"IF('2011 Survey responses'!FS17<0.5,\"\",'2011 Survey responses'!FS17)","v":4},{"$f":"IF('2011 Survey responses'!FV17<0.5,\"\",'2011 Survey responses'!FV17)","v":4},{"$f":"IF(('2011 Survey responses'!FG17+'2011 Survey responses'!FH17)>=2,AVERAGE('2011 Survey responses'!FG17,'2011 Survey responses'!FH17),\"\")","v":3},{"$f":"IF('2011 Survey responses'!FI17<0.5,\"\",'2011 Survey responses'!FI17)","v":3},{"$f":"IF('2011 Survey responses'!FE17<0.5,\"\",'2011 Survey responses'!FE17)","v":5},{"$f":"IF('2011 Survey responses'!FF17<0.5,\"\",'2011 Survey responses'!FF17)","v":3},{"$f":"IF('2011 Survey responses'!FG17<0.5,\"\",'2011 Survey responses'!FG17)","v":3},{"$f":"IF('2011 Survey responses'!FH17<0.5,\"\",'2011 Survey responses'!FH17)","v":3},{"$f":"IF('2011 Survey responses'!FL17<0.5,\"\",'2011 Survey responses'!FL17)","v":4},{"$f":"IF('2011 Survey responses'!FM17<0.5,\"\",'2011 Survey responses'!FM17)","v":3},{"$f":"IF('2011 Survey responses'!FO17<0.5,\"\",'2011 Survey responses'!FO17)","v":5},{"$f":"IF('2011 Survey responses'!FQ17<0.5,\"\",'2011 Survey responses'!FQ17)","v":4}]
["Belarus",{"$f":"IF(SUM(F18)<1,\"\",AVERAGEIF('2011 Survey responses'!B18:CP18,\">1\"))","v":""},{"$f":"IF(SUM(F18)<1,\"\",AVERAGEIF('2011 Survey responses'!B18:AO18,\">1\"))","v":""},{"$f":"IF(SUM(F18)<1,\"\",AVERAGEIF('2011 Survey responses'!B18:BV18,\">1\"))","v":""},{"$f":"IF(SUM(F18)<1,\"\",AVERAGEIF('2011 Survey responses'!V18:BV18,\">1\"))","v":""},{"$f":"IF(SUM('2011 Survey responses'!B18:U18)<1,\"\",(AVERAGEIFS('2011 Survey responses'!B18:U18,'2011 Survey responses'!B18:U18,\">1\")))","v":""},{"$f":"IF(SUM('2011 Survey responses'!B18:H18)<1,\"\",(AVERAGEIFS('2011 Survey responses'!B18:H18,'2011 Survey responses'!B18:H18,\">1\")))","v":""},{"$f":"IF(SUM('2011 Survey responses'!I18:S18)<1,\"\",(AVERAGEIFS('2011 Survey responses'!I18:S18,'2011 Survey responses'!I18:S18,\">1\")))","v":""},{"$f":"IF(SUM('2011 Survey responses'!T18:U18)<2.1,\"\",(AVERAGEIFS('2011 Survey responses'!T18:U18,'2011 Survey responses'!T18:U18,\">1\")))","v":""},{"$f":"IF(SUM('2011 Survey responses'!B18:C18)<2.1,\"\",((SUMIF('2011 Survey responses'!B18:C18,\">1\")+SUMIF('2011 Survey responses'!F18,\">1\"))/(COUNTIF('2011 Survey responses'!B18:C18,\">1\")+COUNTIF('2011 Survey responses'!F18,\">1\"))))","v":""},{"$f":"IF(SUM('2011 Survey responses'!D18:E18)<2.1,\"\",(AVERAGEIFS('2011 Survey responses'!D18:E18,'2011 Survey responses'!D18:E18,\">1\")))","v":""},{"$f":"IF(('2011 Survey responses'!B18+'2011 Survey responses'!D18)<2.1,\"\",((SUMIF('2011 Survey responses'!B18,\">1\")+SUMIF('2011 Survey responses'!D18,\">1\")+SUMIF('2011 Survey responses'!F18,\">1\")+SUMIF('2011 Survey responses'!K18,\">1\"))/(COUNTIF('2011 Survey responses'!B18,\">1\")+COUNTIF('2011 Survey responses'!D18,\">1\")+COUNTIF('2011 Survey responses'!F18,\">1\")+COUNTIF('2011 Survey responses'!K18,\">1\"))))","v":""},{"$f":"IF(SUM('2011 Survey responses'!G18:H18)<2.1,\"\",(AVERAGEIFS('2011 Survey responses'!G18:H18,'2011 Survey responses'!G18:H18,\">1\")))","v":""},{"$f":"IF(SUM('2011 Survey responses'!F18:G18)<1.5,\"\",MAX('2011 Survey responses'!F18,'2011 Survey responses'!G18))","v":""},{"$f":"IF(SUM('2011 Survey responses'!G18:H18)<1,\"\",MAX('2011 Survey responses'!G18,'2011 Survey responses'!H18))","v":""},{"$f":"IF(SUM('2011 Survey responses'!I18:L18)<4.1,\"\",(AVERAGEIFS('2011 Survey responses'!I18:L18,'2011 Survey responses'!I18:L18,\">1\")))","v":""},{"$f":"IF(SUM('2011 Survey responses'!M18:S18)<4.1,\"\",(AVERAGEIFS('2011 Survey responses'!M18:S18,'2011 Survey responses'!M18:S18,\">1\")))","v":""},{"$f":"IF(SUM('2011 Survey responses'!T18:U18)<2.1,\"\",(AVERAGEIFS('2011 Survey responses'!T18:U18,'2011 Survey responses'!T18:U18,\">1\")))","v":""},{"$f":"IF(SUM('2011 Survey responses'!V18:AO18)<1,\"\",(AVERAGEIFS('2011 Survey responses'!V18:AO18,'2011 Survey responses'!V18:AO18,\">1\")))","v":""},{"$f":"IF(SUM('2011 Survey responses'!V18:AA18)<1,\"\",(AVERAGEIFS('2011 Survey responses'!V18:AA18,'2011 Survey responses'!V18:AA18,\">1\")))","v":""},{"$f":"IF(SUM('2011 Survey responses'!AB18:AH18)<1,\"\",(AVERAGEIFS('2011 Survey responses'!AB18:AH18,'2011 Survey responses'!AB18:AH18,\">1\")))","v":""},{"$f":"IF(SUM('2011 Survey responses'!AI18:AO18)<1,\"\",(AVERAGEIFS('2011 Survey responses'!AI18:AO18,'2011 Survey responses'!AI18:AO18,\">1\")))","v":""},{"$f":"IF(('2011 Survey responses'!Y18+'2011 Survey responses'!AI18+'2011 Survey responses'!AK18)<3.1,\"\",((SUMIF('2011 Survey responses'!Y18,\">1\")+SUMIF('2011 Survey responses'!AI18,\">1\")+SUMIF('2011 Survey responses'!AK18,\">1\")+SUMIF('2011 Survey responses'!AM18,\">1\"))/(COUNTIF('2011 Survey responses'!Y18,\">1\")+COUNTIF('2011 Survey responses'!AI18,\">1\")+COUNTIF('2011 Survey responses'!AK18,\">1\")+COUNTIF('2011 Survey responses'!AM18,\">1\"))))","v":""},{"$f":"IF(('2011 Survey responses'!W18)<1.1,\"\",('2011 Survey responses'!W18))","v":""},{"$f":"IF(('2011 Survey responses'!Y18)<1.1,\"\",('2011 Survey responses'!Y18))","v":""},{"$f":"IF(('2011 Survey responses'!Z18)<1.1,\"\",('2011 Survey responses'!Z18))","v":""},{"$f":"IF(('2011 Survey responses'!V18+'2011 Survey responses'!X18+'2011 Survey responses'!AA18)<3.1,\"\",((SUMIF('2011 Survey responses'!V18,\">1\")+SUMIF('2011 Survey responses'!X18,\">1\")+SUMIF('2011 Survey responses'!AA18,\">1\"))/(COUNTIF('2011 Survey responses'!V18,\">1\")+COUNTIF('2011 Survey responses'!X18,\">1\")+COUNTIF('2011 Survey responses'!AA18,\">1\"))))","v":""},{"$f":"IF(('2011 Survey responses'!V18+'2011 Survey responses'!Y18+'2011 Survey responses'!AA18)<3.1,\"\",((SUMIF('2011 Survey responses'!V18,\">1\")+SUMIF('2011 Survey responses'!Y18,\">1\")+SUMIF('2011 Survey responses'!AA18,\">1\"))/(COUNTIF('2011 Survey responses'!V18,\">1\")+COUNTIF('2011 Survey responses'!Y18,\">1\")+COUNTIF('2011 Survey responses'!AA18,\">1\"))))","v":""},{"$f":"IF(SUM('2011 Survey responses'!AB18:AH18)<1,\"\",(AVERAGEIFS('2011 Survey responses'!AB18:AH18,'2011 Survey responses'!AB18:AH18,\">1\")))","v":""},{"$f":"IF(SUM('2011 Survey responses'!AI18:AO18)<7.1,\"\",(AVERAGEIFS('2011 Survey responses'!AI18:AO18,'2011 Survey responses'!AI18:AO18,\">1\")))","v":""},{"$f":"IF(('2011 Survey responses'!AH18)<1.1,\"\",('2011 Survey responses'!AH18))","v":""},{"$f":"IF(SUM('2011 Survey responses'!AP18:BV18)<1,\"\",(AVERAGEIFS('2011 Survey responses'!AP18:BV18,'2011 Survey responses'!AP18:BV18,\">1\")))","v":""},{"$f":"IF(SUM('2011 Survey responses'!AP18:AS18)<4.1,\"\",(AVERAGEIFS('2011 Survey responses'!AP18:AS18,'2011 Survey responses'!AP18:AS18,\">1\")))","v":""},{"$f":"IF(SUM('2011 Survey responses'!AT18:BF18)<1,\"\",(AVERAGEIFS('2011 Survey responses'!AT18:BF18,'2011 Survey responses'!AT18:BF18,\">1\")))","v":""},{"$f":"IF(SUM('2011 Survey responses'!BG18:BO18)<1,\"\",(AVERAGEIFS('2011 Survey responses'!BG18:BO18,'2011 Survey responses'!BG18:BO18,\">1\")))","v":""},{"$f":"IF(SUM('2011 Survey responses'!BP18:BS18)<1,\"\",(AVERAGEIFS('2011 Survey responses'!BP18:BS18,'2011 Survey responses'!BP18:BS18,\">1\")))","v":""},{"$f":"IF(SUM('2011 Survey responses'!BT18:BV18)<3.1,\"\",(AVERAGEIFS('2011 Survey responses'!BT18:BV18,'2011 Survey responses'!BT18:BV18,\">1\")))","v":""},{"$f":"IF(('2011 Survey responses'!AQ18+'2011 Survey responses'!AR18+'2011 Survey responses'!BG18)<3.1,\"\",((SUMIF('2011 Survey responses'!AQ18,\">1\")+SUMIF('2011 Survey responses'!AR18,\">1\")+SUMIF('2011 Survey responses'!BG18,\">1\"))/(COUNTIF('2011 Survey responses'!AQ18,\">1\")+COUNTIF('2011 Survey responses'!AR18,\">1\")+COUNTIF('2011 Survey responses'!BG18,\">1\"))))","v":""},{"$f":"IF(SUM('2011 Survey responses'!AP18:AS18)<4.1,\"\",(AVERAGEIFS('2011 Survey responses'!AP18:AS18,'2011 Survey responses'!AP18:AS18,\">1\")))","v":""},{"$f":"IF(('2011 Survey responses'!AU18+'2011 Survey responses'!AX18+'2011 Survey responses'!BA18+'2011 Survey responses'!BC18+'2011 Survey responses'!BD18)<5.1,\"\",(SUMIF('2011 Survey responses'!AU18,\">1\")+SUMIF('2011 Survey responses'!AX18,\">1\")+SUMIF('2011 Survey responses'!BA18,\">1\")+SUMIF('2011 Survey responses'!BC18,\">1\")+SUMIF('2011 Survey responses'!BD18,\">1\"))/(COUNTIF('2011 Survey responses'!AU18,\">1\")+COUNTIF('2011 Survey responses'!AX18,\">1\")+COUNTIF('2011 Survey responses'!BA18,\">1\")+COUNTIF('2011 Survey responses'!BC18,\">1\")+COUNTIF('2011 Survey responses'!BD18,\">1\")))","v":""},{"$f":"IF(('2011 Survey responses'!AT18)<1.1,\"\",('2011 Survey responses'!AT18))","v":""},{"$f":"IF(SUM('2011 Survey responses'!AV18:AW18)<2.1,\"\",(AVERAGEIFS('2011 Survey responses'!AV18:AW18,'2011 Survey responses'!AV18:AW18,\">1\")))","v":""},{"$f":"IF(('2011 Survey responses'!AW18+'2011 Survey responses'!AY18)<2.1,\"\",(SUMIF('2011 Survey responses'!AW18,\">1\")+SUMIF('2011 Survey responses'!AY18,\">1\"))/(COUNTIF('2011 Survey responses'!AW18,\">1\")+COUNTIF('2011 Survey responses'!AY18,\">1\")))","v":""},{"$f":"IF(('2011 Survey responses'!AZ18)<1.1,\"\",('2011 Survey responses'!AZ18))","v":""},null,null,null,null,{"$f":"IF(('2011 Survey responses'!BE18)<1.1,\"\",('2011 Survey responses'!BE18))","v":""},{"$f":"IF(('2011 Survey responses'!AY18+'2011 Survey responses'!BB18+'2011 Survey responses'!BF18)<3.1,\"\",(SUMIF('2011 Survey responses'!AY18,\">1\")+SUMIF('2011 Survey responses'!BB18,\">1\")+SUMIF('2011 Survey responses'!BF18,\">1\"))/(COUNTIF('2011 Survey responses'!AY18,\">1\")+COUNTIF('2011 Survey responses'!BB18,\">1\")+COUNTIF('2011 Survey responses'!BF18,\">1\")))","v":""},"",{"$f":"IF(SUM('2011 Survey responses'!BT18:BV18)<3.1,\"\",(AVERAGEIFS('2011 Survey responses'!BT18:BV18,'2011 Survey responses'!BT18:BV18,\">1\")))","v":""},{"$f":"IF(SUM('2011 Survey responses'!BW18:CP18)<1,\"\",(AVERAGEIFS('2011 Survey responses'!BW18:CP18,'2011 Survey responses'!BW18:CP18,\">1\")))","v":""},{"$f":"IF(SUM('2011 Survey responses'!BW18:CF18)<1,\"\",(AVERAGEIFS('2011 Survey responses'!BW18:CF18,'2011 Survey responses'!BW18:CF18,\">1\")))","v":""},{"$f":"IF(SUM('2011 Survey responses'!CG18:CP18)<1,\"\",(AVERAGEIFS('2011 Survey responses'!CG18:CP18,'2011 Survey responses'!CG18:CP18,\">1\")))","v":""},{"$f":"IF(SUM('2011 Survey responses'!BX18:CF18)<1,\"\",(AVERAGEIFS('2011 Survey responses'!BX18:CF18,'2011 Survey responses'!BX18:CF18,\">1\")))","v":""},{"$f":"IF(SUM('2011 Survey responses'!CH18:CP18)<1,\"\",(AVERAGEIFS('2011 Survey responses'!CH18:CP18,'2011 Survey responses'!CH18:CP18,\">1\")))","v":""},{"$f":"IF(SUM('2011 Survey responses'!BW18:CP18)<1,\"\",(AVERAGEIFS('2011 Survey responses'!BW18:CP18,'2011 Survey responses'!BW18:CP18,\">1\")))","v":""},{"$f":"IF(('2011 Survey responses'!BW18+'2011 Survey responses'!CG18)<2.1,\"\",(SUMIF('2011 Survey responses'!BW18,\">1\")+SUMIF('2011 Survey responses'!CG18,\">1\"))/(COUNTIF('2011 Survey responses'!BW18,\">1\")+COUNTIF('2011 Survey responses'!CG18,\">1\")))","v":""},{"$f":"IF(('2011 Survey responses'!BX18+'2011 Survey responses'!CH18)<2.1,\"\",(SUMIF('2011 Survey responses'!BX18,\">1\")+SUMIF('2011 Survey responses'!CH18,\">1\"))/(COUNTIF('2011 Survey responses'!BX18,\">1\")+COUNTIF('2011 Survey responses'!CH18,\">1\")))","v":""},{"$f":"IF(('2011 Survey responses'!BY18+'2011 Survey responses'!CI18)<2.1,\"\",(SUMIF('2011 Survey responses'!BY18,\">1\")+SUMIF('2011 Survey responses'!CI18,\">1\"))/(COUNTIF('2011 Survey responses'!BY18,\">1\")+COUNTIF('2011 Survey responses'!CI18,\">1\")))","v":""},{"$f":"IF('2011 Survey responses'!CQ18<0.5,\"\",'2011 Survey responses'!CQ18)","v":""},{"$f":"IF('2011 Survey responses'!CR18<0.5,\"\",'2011 Survey responses'!CR18)","v":""},{"$f":"IF('2011 Survey responses'!CS18<0.5,\"\",'2011 Survey responses'!CS18)","v":""},{"$f":"IF('2011 Survey responses'!CT18<0.5,\"\",'2011 Survey responses'!CT18)","v":""},{"$f":"IF('2011 Survey responses'!CU18<0.5,\"\",'2011 Survey responses'!CU18)","v":""},{"$f":"IF('2011 Survey responses'!CV18<0.5,\"\",'2011 Survey responses'!CV18)","v":""},{"$f":"IF(SUM('2011 Survey responses'!CW18:DL18)<1,\"\",(AVERAGE('2011 Survey responses'!CW18:DL18)))","v":""},{"$f":"IF(SUM('2011 Survey responses'!CW18:CZ18)<1,\"\",(AVERAGE('2011 Survey responses'!CW18:CZ18)))","v":""},{"$f":"IF(SUM('2011 Survey responses'!DA18:DD18)<1,\"\",(AVERAGE('2011 Survey responses'!DA18:DD18)))","v":""},{"$f":"IF(SUM('2011 Survey responses'!DE18:DH18)<1,\"\",(AVERAGE('2011 Survey responses'!DE18:DH18)))","v":""},{"$f":"IF(SUM('2011 Survey responses'!DI18:DL18)<1,\"\",(AVERAGE('2011 Survey responses'!DI18:DL18)))","v":""},{"$f":"IF(('2011 Survey responses'!CW18+'2011 Survey responses'!DA18+'2011 Survey responses'!DE18+'2011 Survey responses'!DI18)<1,\"\",AVERAGE('2011 Survey responses'!CW18,'2011 Survey responses'!DA18,'2011 Survey responses'!DE18,'2011 Survey responses'!DI18))","v":""},{"$f":"IF(('2011 Survey responses'!CX18+'2011 Survey responses'!DB18+'2011 Survey responses'!DF18+'2011 Survey responses'!DJ18)<1,\"\",AVERAGE('2011 Survey responses'!CX18,'2011 Survey responses'!DB18,'2011 Survey responses'!DF18,'2011 Survey responses'!DJ18))","v":""},{"$f":"IF(('2011 Survey responses'!CY18+'2011 Survey responses'!DC18+'2011 Survey responses'!DG18+'2011 Survey responses'!DK18)<1,\"\",AVERAGE('2011 Survey responses'!CY18,'2011 Survey responses'!DC18,'2011 Survey responses'!DG18,'2011 Survey responses'!DK18))","v":""},{"$f":"IF(('2011 Survey responses'!CZ18+'2011 Survey responses'!DD18+'2011 Survey responses'!DH18+'2011 Survey responses'!DL18)<1,\"\",AVERAGE('2011 Survey responses'!CZ18,'2011 Survey responses'!DD18,'2011 Survey responses'!DH18,'2011 Survey responses'!DL18))","v":""},{"$f":"IF('2011 Survey responses'!CW18<0.5,\"\",'2011 Survey responses'!CW18)","v":""},{"$f":"IF('2011 Survey responses'!CX18<0.5,\"\",'2011 Survey responses'!CX18)","v":""},{"$f":"IF('2011 Survey responses'!CY18<0.5,\"\",'2011 Survey responses'!CY18)","v":""},{"$f":"IF('2011 Survey responses'!CZ18<0.5,\"\",'2011 Survey responses'!CZ18)","v":""},{"$f":"IF('2011 Survey responses'!DA18<0.5,\"\",'2011 Survey responses'!DA18)","v":""},{"$f":"IF('2011 Survey responses'!DB18<0.5,\"\",'2011 Survey responses'!DB18)","v":""},{"$f":"IF('2011 Survey responses'!DC18<0.5,\"\",'2011 Survey responses'!DC18)","v":""},{"$f":"IF('2011 Survey responses'!DD18<0.5,\"\",'2011 Survey responses'!DD18)","v":""},{"$f":"IF('2011 Survey responses'!DE18<0.5,\"\",'2011 Survey responses'!DE18)","v":""},{"$f":"IF('2011 Survey responses'!DF18<0.5,\"\",'2011 Survey responses'!DF18)","v":""},{"$f":"IF('2011 Survey responses'!DG18<0.5,\"\",'2011 Survey responses'!DG18)","v":""},{"$f":"IF('2011 Survey responses'!DH18<0.5,\"\",'2011 Survey responses'!DH18)","v":""},{"$f":"IF('2011 Survey responses'!DI18<0.5,\"\",'2011 Survey responses'!DI18)","v":""},{"$f":"IF('2011 Survey responses'!DJ18<0.5,\"\",'2011 Survey responses'!DJ18)","v":""},{"$f":"IF('2011 Survey responses'!DK18<0.5,\"\",'2011 Survey responses'!DK18)","v":""},{"$f":"IF('2011 Survey responses'!DL18<0.5,\"\",'2011 Survey responses'!DL18)","v":""},{"$f":"IF('2011 Survey responses'!DU18=4,4,IF('2011 Survey responses'!DU18=5,4,\"\"))","v":""},{"$f":"IF('2011 Survey responses'!DV18=4,3,IF('2011 Survey responses'!DV18=5,3,\"\"))","v":""},"",{"$f":"IF(CQ18=2,CQ18,IF(CO18=4,CO18,IF(CP18=3,CP18,IF('2011 Survey responses'!GT18=1,1,\"\"))))","v":""},{"$f":"IF('2011 Survey responses'!DO18<0.5,\"\",'2011 Survey responses'!DO18)","v":""},{"$f":"IF('2011 Survey responses'!DP18<0.5,\"\",'2011 Survey responses'!DP18)","v":""},{"$f":"IF('2011 Survey responses'!DQ18<0.5,\"\",'2011 Survey responses'!DQ18)","v":""},{"$f":"IF('2011 Survey responses'!DR18<0.5,\"\",'2011 Survey responses'!DR18)","v":""},{"$f":"IF('2011 Survey responses'!DS18<0.5,\"\",'2011 Survey responses'!DS18)","v":""},{"$f":"IF('2011 Survey responses'!DT18<0.5,\"\",'2011 Survey responses'!DT18)","v":""},{"$f":"IF('2011 Survey responses'!DU18<0.5,\"\",'2011 Survey responses'!DU18)","v":""},{"$f":"IF('2011 Survey responses'!DV18<0.5,\"\",'2011 Survey responses'!DV18)","v":""},{"$f":"IF('2011 Survey responses'!DW18<0.5,\"\",'2011 Survey responses'!DW18)","v":""},{"$f":"IF('2011 Survey responses'!DX18<0.5,\"\",'2011 Survey responses'!DX18)","v":""},{"$f":"IF('2011 Survey responses'!DY18<0.5,\"\",'2011 Survey responses'!DY18)","v":""},{"$f":"IF('2011 Survey responses'!DZ18<0.5,\"\",'2011 Survey responses'!DZ18)","v":""},{"$f":"IF('2011 Survey responses'!EA18<0.5,\"\",'2011 Survey responses'!EA18)","v":""},{"$f":"IF('2011 Survey responses'!EB18<0.5,\"\",'2011 Survey responses'!EB18)","v":""},{"$f":"IF('2011 Survey responses'!EC18<0.5,\"\",'2011 Survey responses'!EC18)","v":""},{"$f":"IF('2011 Survey responses'!ED18<0.5,\"\",'2011 Survey responses'!ED18)","v":""},{"$f":"IF('2011 Survey responses'!EE18<0.5,\"\",'2011 Survey responses'!EE18)","v":""},{"$f":"IF('2011 Survey responses'!EF18<0.5,\"\",'2011 Survey responses'!EF18)","v":""},{"$f":"IF('2011 Survey responses'!EG18<0.5,\"\",'2011 Survey responses'!EG18)","v":""},{"$f":"IF('2011 Survey responses'!EH18<0.5,\"\",'2011 Survey responses'!EH18)","v":""},{"$f":"IF('2011 Survey responses'!EI18<0.5,\"\",'2011 Survey responses'!EI18)","v":""},{"$f":"IF('2011 Survey responses'!EJ18<0.5,\"\",'2011 Survey responses'!EJ18)","v":""},{"$f":"IF('2011 Survey responses'!EK18<0.5,\"\",'2011 Survey responses'!EK18)","v":""},{"$f":"IF('2011 Survey responses'!EL18<0.5,\"\",'2011 Survey responses'!EL18)","v":""},{"$f":"IF('2011 Survey responses'!EM18<0.5,\"\",'2011 Survey responses'!EM18)","v":""},{"$f":"IF('2011 Survey responses'!EN18<0.5,\"\",'2011 Survey responses'!EN18)","v":""},{"$f":"IF('2011 Survey responses'!EO18<0.5,\"\",'2011 Survey responses'!EO18)","v":""},{"$f":"IF('2011 Survey responses'!EP18<0.5,\"\",'2011 Survey responses'!EP18)","v":""},{"$f":"IF(('2011 Survey responses'!EW18+'2011 Survey responses'!EX18)>=2,AVERAGE('2011 Survey responses'!EW18,'2011 Survey responses'!EY18),\"\")","v":""},{"$f":"IF('2011 Survey responses'!EX18<0.5,\"\",'2011 Survey responses'!EX18)","v":""},{"$f":"IF('2011 Survey responses'!EZ18<0.5,\"\",'2011 Survey responses'!EZ18)","v":""},{"$f":"IF('2011 Survey responses'!FB18<0.5,\"\",'2011 Survey responses'!FB18)","v":""},{"$f":"IF('2011 Survey responses'!FD18<0.5,\"\",'2011 Survey responses'!FD18)","v":""},{"$f":"IF('2011 Survey responses'!FC18<0.5,\"\",'2011 Survey responses'!FC18)","v":""},{"$f":"IF(('2011 Survey responses'!EM18+'2011 Survey responses'!EN18)>=2,AVERAGE('2011 Survey responses'!EM18,'2011 Survey responses'!EN18),\"\")","v":""},{"$f":"IF('2011 Survey responses'!ES18<0.5,\"\",'2011 Survey responses'!ES18)","v":""},{"$f":"IF(('2011 Survey responses'!ET18+'2011 Survey responses'!EU18)>=2,AVERAGE('2011 Survey responses'!ET18,'2011 Survey responses'!EU18),\"\")","v":""},{"$f":"IF('2011 Survey responses'!EV18<0.5,\"\",'2011 Survey responses'!EV18)","v":""},{"$f":"IF('2011 Survey responses'!FA18<0.5,\"\",'2011 Survey responses'!FA18)","v":""},{"$f":"IF('2011 Survey responses'!ER18<0.5,\"\",'2011 Survey responses'!ER18)","v":""},{"$f":"IF(('2011 Survey responses'!EO18+'2011 Survey responses'!EP18)>=2,AVERAGE('2011 Survey responses'!EO18,'2011 Survey responses'!EP18),\"\")","v":""},{"$f":"IF('2011 Survey responses'!EQ18<0.5,\"\",'2011 Survey responses'!EQ18)","v":""},{"$f":"IF('2011 Survey responses'!ET18<0.5,\"\",'2011 Survey responses'!ET18)","v":""},{"$f":"IF('2011 Survey responses'!EU18<0.5,\"\",'2011 Survey responses'!EU18)","v":""},{"$f":"IF('2011 Survey responses'!EW18<0.5,\"\",'2011 Survey responses'!EW18)","v":""},{"$f":"IF('2011 Survey responses'!EY18<0.5,\"\",'2011 Survey responses'!EY18)","v":""},{"$f":"IF('2011 Survey responses'!FU18<0.5,\"\",'2011 Survey responses'!FU18)","v":""},{"$f":"IF(('2011 Survey responses'!FL18+'2011 Survey responses'!FM18)>=2,AVERAGE('2011 Survey responses'!FL18,'2011 Survey responses'!FM18),\"\")","v":""},{"$f":"IF(('2011 Survey responses'!FO18+'2011 Survey responses'!FQ18)>=2,AVERAGE('2011 Survey responses'!FO18,'2011 Survey responses'!FQ18),\"\")","v":""},{"$f":"IF('2011 Survey responses'!FJ18<0.5,\"\",'2011 Survey responses'!FJ18)","v":""},{"$f":"IF('2011 Survey responses'!FT18<0.5,\"\",'2011 Survey responses'!FT18)","v":""},{"$f":"IF('2011 Survey responses'!FR18<0.5,\"\",'2011 Survey responses'!FR18)","v":""},{"$f":"IF('2011 Survey responses'!FK18<0.5,\"\",'2011 Survey responses'!FK18)","v":""},{"$f":"IF('2011 Survey responses'!FP18<0.5,\"\",'2011 Survey responses'!FP18)","v":""},{"$f":"IF('2011 Survey responses'!FN18<0.5,\"\",'2011 Survey responses'!FN18)","v":""},{"$f":"IF(('2011 Survey responses'!FE18+'2011 Survey responses'!FF18)>=2,AVERAGE('2011 Survey responses'!FE18,'2011 Survey responses'!FF18),\"\")","v":""},{"$f":"IF('2011 Survey responses'!FS18<0.5,\"\",'2011 Survey responses'!FS18)","v":""},{"$f":"IF('2011 Survey responses'!FV18<0.5,\"\",'2011 Survey responses'!FV18)","v":""},{"$f":"IF(('2011 Survey responses'!FG18+'2011 Survey responses'!FH18)>=2,AVERAGE('2011 Survey responses'!FG18,'2011 Survey responses'!FH18),\"\")","v":""},{"$f":"IF('2011 Survey responses'!FI18<0.5,\"\",'2011 Survey responses'!FI18)","v":""},{"$f":"IF('2011 Survey responses'!FE18<0.5,\"\",'2011 Survey responses'!FE18)","v":""},{"$f":"IF('2011 Survey responses'!FF18<0.5,\"\",'2011 Survey responses'!FF18)","v":""},{"$f":"IF('2011 Survey responses'!FG18<0.5,\"\",'2011 Survey responses'!FG18)","v":""},{"$f":"IF('2011 Survey responses'!FH18<0.5,\"\",'2011 Survey responses'!FH18)","v":""},{"$f":"IF('2011 Survey responses'!FL18<0.5,\"\",'2011 Survey responses'!FL18)","v":""},{"$f":"IF('2011 Survey responses'!FM18<0.5,\"\",'2011 Survey responses'!FM18)","v":""},{"$f":"IF('2011 Survey responses'!FO18<0.5,\"\",'2011 Survey responses'!FO18)","v":""},{"$f":"IF('2011 Survey responses'!FQ18<0.5,\"\",'2011 Survey responses'!FQ18)","v":""}]
["Belgium",{"$f":"IF(SUM(F19)<1,\"\",AVERAGEIF('2011 Survey responses'!B19:CP19,\">1\"))","v":5.2413793103448274},{"$f":"IF(SUM(F19)<1,\"\",AVERAGEIF('2011 Survey responses'!B19:AO19,\">1\"))","v":5.6052631578947372},{"$f":"IF(SUM(F19)<1,\"\",AVERAGEIF('2011 Survey responses'!B19:BV19,\">1\"))","v":5.23943661971831},{"$f":"IF(SUM(F19)<1,\"\",AVERAGEIF('2011 Survey responses'!V19:BV19,\">1\"))","v":5.1730769230769234},{"$f":"IF(SUM('2011 Survey responses'!B19:U19)<1,\"\",(AVERAGEIFS('2011 Survey responses'!B19:U19,'2011 Survey responses'!B19:U19,\">1\")))","v":5.4210526315789478},{"$f":"IF(SUM('2011 Survey responses'!B19:H19)<1,\"\",(AVERAGEIFS('2011 Survey responses'!B19:H19,'2011 Survey responses'!B19:H19,\">1\")))","v":5.5714285714285712},{"$f":"IF(SUM('2011 Survey responses'!I19:S19)<1,\"\",(AVERAGEIFS('2011 Survey responses'!I19:S19,'2011 Survey responses'!I19:S19,\">1\")))","v":5.2},{"$f":"IF(SUM('2011 Survey responses'!T19:U19)<2.1,\"\",(AVERAGEIFS('2011 Survey responses'!T19:U19,'2011 Survey responses'!T19:U19,\">1\")))","v":6},{"$f":"IF(SUM('2011 Survey responses'!B19:C19)<2.1,\"\",((SUMIF('2011 Survey responses'!B19:C19,\">1\")+SUMIF('2011 Survey responses'!F19,\">1\"))/(COUNTIF('2011 Survey responses'!B19:C19,\">1\")+COUNTIF('2011 Survey responses'!F19,\">1\"))))","v":5.666666666666667},{"$f":"IF(SUM('2011 Survey responses'!D19:E19)<2.1,\"\",(AVERAGEIFS('2011 Survey responses'!D19:E19,'2011 Survey responses'!D19:E19,\">1\")))","v":6},{"$f":"IF(('2011 Survey responses'!B19+'2011 Survey responses'!D19)<2.1,\"\",((SUMIF('2011 Survey responses'!B19,\">1\")+SUMIF('2011 Survey responses'!D19,\">1\")+SUMIF('2011 Survey responses'!F19,\">1\")+SUMIF('2011 Survey responses'!K19,\">1\"))/(COUNTIF('2011 Survey responses'!B19,\">1\")+COUNTIF('2011 Survey responses'!D19,\">1\")+COUNTIF('2011 Survey responses'!F19,\">1\")+COUNTIF('2011 Survey responses'!K19,\">1\"))))","v":5.75},{"$f":"IF(SUM('2011 Survey responses'!G19:H19)<2.1,\"\",(AVERAGEIFS('2011 Survey responses'!G19:H19,'2011 Survey responses'!G19:H19,\">1\")))","v":5},{"$f":"IF(SUM('2011 Survey responses'!F19:G19)<1.5,\"\",MAX('2011 Survey responses'!F19,'2011 Survey responses'!G19))","v":5},{"$f":"IF(SUM('2011 Survey responses'!G19:H19)<1,\"\",MAX('2011 Survey responses'!G19,'2011 Survey responses'!H19))","v":5},{"$f":"IF(SUM('2011 Survey responses'!I19:L19)<4.1,\"\",(AVERAGEIFS('2011 Survey responses'!I19:L19,'2011 Survey responses'!I19:L19,\">1\")))","v":6},{"$f":"IF(SUM('2011 Survey responses'!M19:S19)<4.1,\"\",(AVERAGEIFS('2011 Survey responses'!M19:S19,'2011 Survey responses'!M19:S19,\">1\")))","v":4.666666666666667},{"$f":"IF(SUM('2011 Survey responses'!T19:U19)<2.1,\"\",(AVERAGEIFS('2011 Survey responses'!T19:U19,'2011 Survey responses'!T19:U19,\">1\")))","v":6},{"$f":"IF(SUM('2011 Survey responses'!V19:AO19)<1,\"\",(AVERAGEIFS('2011 Survey responses'!V19:AO19,'2011 Survey responses'!V19:AO19,\">1\")))","v":5.7894736842105265},{"$f":"IF(SUM('2011 Survey responses'!V19:AA19)<1,\"\",(AVERAGEIFS('2011 Survey responses'!V19:AA19,'2011 Survey responses'!V19:AA19,\">1\")))","v":6},{"$f":"IF(SUM('2011 Survey responses'!AB19:AH19)<1,\"\",(AVERAGEIFS('2011 Survey responses'!AB19:AH19,'2011 Survey responses'!AB19:AH19,\">1\")))","v":6},{"$f":"IF(SUM('2011 Survey responses'!AI19:AO19)<1,\"\",(AVERAGEIFS('2011 Survey responses'!AI19:AO19,'2011 Survey responses'!AI19:AO19,\">1\")))","v":5.4285714285714288},{"$f":"IF(('2011 Survey responses'!Y19+'2011 Survey responses'!AI19+'2011 Survey responses'!AK19)<3.1,\"\",((SUMIF('2011 Survey responses'!Y19,\">1\")+SUMIF('2011 Survey responses'!AI19,\">1\")+SUMIF('2011 Survey responses'!AK19,\">1\")+SUMIF('2011 Survey responses'!AM19,\">1\"))/(COUNTIF('2011 Survey responses'!Y19,\">1\")+COUNTIF('2011 Survey responses'!AI19,\">1\")+COUNTIF('2011 Survey responses'!AK19,\">1\")+COUNTIF('2011 Survey responses'!AM19,\">1\"))))","v":5.5},{"$f":"IF(('2011 Survey responses'!W19)<1.1,\"\",('2011 Survey responses'!W19))","v":6},{"$f":"IF(('2011 Survey responses'!Y19)<1.1,\"\",('2011 Survey responses'!Y19))","v":6},{"$f":"IF(('2011 Survey responses'!Z19)<1.1,\"\",('2011 Survey responses'!Z19))","v":6},{"$f":"IF(('2011 Survey responses'!V19+'2011 Survey responses'!X19+'2011 Survey responses'!AA19)<3.1,\"\",((SUMIF('2011 Survey responses'!V19,\">1\")+SUMIF('2011 Survey responses'!X19,\">1\")+SUMIF('2011 Survey responses'!AA19,\">1\"))/(COUNTIF('2011 Survey responses'!V19,\">1\")+COUNTIF('2011 Survey responses'!X19,\">1\")+COUNTIF('2011 Survey responses'!AA19,\">1\"))))","v":6},{"$f":"IF(('2011 Survey responses'!V19+'2011 Survey responses'!Y19+'2011 Survey responses'!AA19)<3.1,\"\",((SUMIF('2011 Survey responses'!V19,\">1\")+SUMIF('2011 Survey responses'!Y19,\">1\")+SUMIF('2011 Survey responses'!AA19,\">1\"))/(COUNTIF('2011 Survey responses'!V19,\">1\")+COUNTIF('2011 Survey responses'!Y19,\">1\")+COUNTIF('2011 Survey responses'!AA19,\">1\"))))","v":6},{"$f":"IF(SUM('2011 Survey responses'!AB19:AH19)<1,\"\",(AVERAGEIFS('2011 Survey responses'!AB19:AH19,'2011 Survey responses'!AB19:AH19,\">1\")))","v":6},{"$f":"IF(SUM('2011 Survey responses'!AI19:AO19)<7.1,\"\",(AVERAGEIFS('2011 Survey responses'!AI19:AO19,'2011 Survey responses'!AI19:AO19,\">1\")))","v":5.4285714285714288},{"$f":"IF(('2011 Survey responses'!AH19)<1.1,\"\",('2011 Survey responses'!AH19))","v":""},{"$f":"IF(SUM('2011 Survey responses'!AP19:BV19)<1,\"\",(AVERAGEIFS('2011 Survey responses'!AP19:BV19,'2011 Survey responses'!AP19:BV19,\">1\")))","v":4.8181818181818183},{"$f":"IF(SUM('2011 Survey responses'!AP19:AS19)<4.1,\"\",(AVERAGEIFS('2011 Survey responses'!AP19:AS19,'2011 Survey responses'!AP19:AS19,\">1\")))","v":4.75},{"$f":"IF(SUM('2011 Survey responses'!AT19:BF19)<1,\"\",(AVERAGEIFS('2011 Survey responses'!AT19:BF19,'2011 Survey responses'!AT19:BF19,\">1\")))","v":3.8461538461538463},{"$f":"IF(SUM('2011 Survey responses'!BG19:BO19)<1,\"\",(AVERAGEIFS('2011 Survey responses'!BG19:BO19,'2011 Survey responses'!BG19:BO19,\">1\")))","v":5.5555555555555554},{"$f":"IF(SUM('2011 Survey responses'!BP19:BS19)<1,\"\",(AVERAGEIFS('2011 Survey responses'!BP19:BS19,'2011 Survey responses'!BP19:BS19,\">1\")))","v":5.75},{"$f":"IF(SUM('2011 Survey responses'!BT19:BV19)<3.1,\"\",(AVERAGEIFS('2011 Survey responses'!BT19:BV19,'2011 Survey responses'!BT19:BV19,\">1\")))","v":5.666666666666667},{"$f":"IF(('2011 Survey responses'!AQ19+'2011 Survey responses'!AR19+'2011 Survey responses'!BG19)<3.1,\"\",((SUMIF('2011 Survey responses'!AQ19,\">1\")+SUMIF('2011 Survey responses'!AR19,\">1\")+SUMIF('2011 Survey responses'!BG19,\">1\"))/(COUNTIF('2011 Survey responses'!AQ19,\">1\")+COUNTIF('2011 Survey responses'!AR19,\">1\")+COUNTIF('2011 Survey responses'!BG19,\">1\"))))","v":6},{"$f":"IF(SUM('2011 Survey responses'!AP19:AS19)<4.1,\"\",(AVERAGEIFS('2011 Survey responses'!AP19:AS19,'2011 Survey responses'!AP19:AS19,\">1\")))","v":4.75},{"$f":"IF(('2011 Survey responses'!AU19+'2011 Survey responses'!AX19+'2011 Survey responses'!BA19+'2011 Survey responses'!BC19+'2011 Survey responses'!BD19)<5.1,\"\",(SUMIF('2011 Survey responses'!AU19,\">1\")+SUMIF('2011 Survey responses'!AX19,\">1\")+SUMIF('2011 Survey responses'!BA19,\">1\")+SUMIF('2011 Survey responses'!BC19,\">1\")+SUMIF('2011 Survey responses'!BD19,\">1\"))/(COUNTIF('2011 Survey responses'!AU19,\">1\")+COUNTIF('2011 Survey responses'!AX19,\">1\")+COUNTIF('2011 Survey responses'!BA19,\">1\")+COUNTIF('2011 Survey responses'!BC19,\">1\")+COUNTIF('2011 Survey responses'!BD19,\">1\")))","v":3.8},{"$f":"IF(('2011 Survey responses'!AT19)<1.1,\"\",('2011 Survey responses'!AT19))","v":5},{"$f":"IF(SUM('2011 Survey responses'!AV19:AW19)<2.1,\"\",(AVERAGEIFS('2011 Survey responses'!AV19:AW19,'2011 Survey responses'!AV19:AW19,\">1\")))","v":3},{"$f":"IF(('2011 Survey responses'!AW19+'2011 Survey responses'!AY19)<2.1,\"\",(SUMIF('2011 Survey responses'!AW19,\">1\")+SUMIF('2011 Survey responses'!AY19,\">1\"))/(COUNTIF('2011 Survey responses'!AW19,\">1\")+COUNTIF('2011 Survey responses'!AY19,\">1\")))","v":2},{"$f":"IF(('2011 Survey responses'!AZ19)<1.1,\"\",('2011 Survey responses'!AZ19))","v":2},2,2,5,5,{"$f":"IF(('2011 Survey responses'!BE19)<1.1,\"\",('2011 Survey responses'!BE19))","v":5},{"$f":"IF(('2011 Survey responses'!AY19+'2011 Survey responses'!BB19+'2011 Survey responses'!BF19)<3.1,\"\",(SUMIF('2011 Survey responses'!AY19,\">1\")+SUMIF('2011 Survey responses'!BB19,\">1\")+SUMIF('2011 Survey responses'!BF19,\">1\"))/(COUNTIF('2011 Survey responses'!AY19,\">1\")+COUNTIF('2011 Survey responses'!BB19,\">1\")+COUNTIF('2011 Survey responses'!BF19,\">1\")))","v":4.333333333333333},5.6527777777777777,{"$f":"IF(SUM('2011 Survey responses'!BT19:BV19)<3.1,\"\",(AVERAGEIFS('2011 Survey responses'!BT19:BV19,'2011 Survey responses'!BT19:BV19,\">1\")))","v":5.666666666666667},{"$f":"IF(SUM('2011 Survey responses'!BW19:CP19)<1,\"\",(AVERAGEIFS('2011 Survey responses'!BW19:CP19,'2011 Survey responses'!BW19:CP19,\">1\")))","v":5.25},{"$f":"IF(SUM('2011 Survey responses'!BW19:CF19)<1,\"\",(AVERAGEIFS('2011 Survey responses'!BW19:CF19,'2011 Survey responses'!BW19:CF19,\">1\")))","v":5.125},{"$f":"IF(SUM('2011 Survey responses'!CG19:CP19)<1,\"\",(AVERAGEIFS('2011 Survey responses'!CG19:CP19,'2011 Survey responses'!CG19:CP19,\">1\")))","v":5.375},{"$f":"IF(SUM('2011 Survey responses'!BX19:CF19)<1,\"\",(AVERAGEIFS('2011 Survey responses'!BX19:CF19,'2011 Survey responses'!BX19:CF19,\">1\")))","v":5},{"$f":"IF(SUM('2011 Survey responses'!CH19:CP19)<1,\"\",(AVERAGEIFS('2011 Survey responses'!CH19:CP19,'2011 Survey responses'!CH19:CP19,\">1\")))","v":5.2857142857142856},{"$f":"IF(SUM('2011 Survey responses'!BW19:CP19)<1,\"\",(AVERAGEIFS('2011 Survey responses'!BW19:CP19,'2011 Survey responses'!BW19:CP19,\">1\")))","v":5.25},{"$f":"IF(('2011 Survey responses'!BW19+'2011 Survey responses'!CG19)<2.1,\"\",(SUMIF('2011 Survey responses'!BW19,\">1\")+SUMIF('2011 Survey responses'!CG19,\">1\"))/(COUNTIF('2011 Survey responses'!BW19,\">1\")+COUNTIF('2011 Survey responses'!CG19,\">1\")))","v":6},{"$f":"IF(('2011 Survey responses'!BX19+'2011 Survey responses'!CH19)<2.1,\"\",(SUMIF('2011 Survey responses'!BX19,\">1\")+SUMIF('2011 Survey responses'!CH19,\">1\"))/(COUNTIF('2011 Survey responses'!BX19,\">1\")+COUNTIF('2011 Survey responses'!CH19,\">1\")))","v":""},{"$f":"IF(('2011 Survey responses'!BY19+'2011 Survey responses'!CI19)<2.1,\"\",(SUMIF('2011 Survey responses'!BY19,\">1\")+SUMIF('2011 Survey responses'!CI19,\">1\"))/(COUNTIF('2011 Survey responses'!BY19,\">1\")+COUNTIF('2011 Survey responses'!CI19,\">1\")))","v":5},{"$f":"IF('2011 Survey responses'!CQ19<0.5,\"\",'2011 Survey responses'!CQ19)","v":4},{"$f":"IF('2011 Survey responses'!CR19<0.5,\"\",'2011 Survey responses'!CR19)","v":""},{"$f":"IF('2011 Survey responses'!CS19<0.5,\"\",'2011 Survey responses'!CS19)","v":""},{"$f":"IF('2011 Survey responses'!CT19<0.5,\"\",'2011 Survey responses'!CT19)","v":4},{"$f":"IF('2011 Survey responses'!CU19<0.5,\"\",'2011 Survey responses'!CU19)","v":4},{"$f":"IF('2011 Survey responses'!CV19<0.5,\"\",'2011 Survey responses'!CV19)","v":2},{"$f":"IF(SUM('2011 Survey responses'!CW19:DL19)<1,\"\",(AVERAGE('2011 Survey responses'!CW19:DL19)))","v":2.6875},{"$f":"IF(SUM('2011 Survey responses'!CW19:CZ19)<1,\"\",(AVERAGE('2011 Survey responses'!CW19:CZ19)))","v":2.75},{"$f":"IF(SUM('2011 Survey responses'!DA19:DD19)<1,\"\",(AVERAGE('2011 Survey responses'!DA19:DD19)))","v":2.75},{"$f":"IF(SUM('2011 Survey responses'!DE19:DH19)<1,\"\",(AVERAGE('2011 Survey responses'!DE19:DH19)))","v":2.75},{"$f":"IF(SUM('2011 Survey responses'!DI19:DL19)<1,\"\",(AVERAGE('2011 Survey responses'!DI19:DL19)))","v":2.5},{"$f":"IF(('2011 Survey responses'!CW19+'2011 Survey responses'!DA19+'2011 Survey responses'!DE19+'2011 Survey responses'!DI19)<1,\"\",AVERAGE('2011 Survey responses'!CW19,'2011 Survey responses'!DA19,'2011 Survey responses'!DE19,'2011 Survey responses'!DI19))","v":2.75},{"$f":"IF(('2011 Survey responses'!CX19+'2011 Survey responses'!DB19+'2011 Survey responses'!DF19+'2011 Survey responses'!DJ19)<1,\"\",AVERAGE('2011 Survey responses'!CX19,'2011 Survey responses'!DB19,'2011 Survey responses'!DF19,'2011 Survey responses'!DJ19))","v":3},{"$f":"IF(('2011 Survey responses'!CY19+'2011 Survey responses'!DC19+'2011 Survey responses'!DG19+'2011 Survey responses'!DK19)<1,\"\",AVERAGE('2011 Survey responses'!CY19,'2011 Survey responses'!DC19,'2011 Survey responses'!DG19,'2011 Survey responses'!DK19))","v":4},{"$f":"IF(('2011 Survey responses'!CZ19+'2011 Survey responses'!DD19+'2011 Survey responses'!DH19+'2011 Survey responses'!DL19)<1,\"\",AVERAGE('2011 Survey responses'!CZ19,'2011 Survey responses'!DD19,'2011 Survey responses'!DH19,'2011 Survey responses'!DL19))","v":1},{"$f":"IF('2011 Survey responses'!CW19<0.5,\"\",'2011 Survey responses'!CW19)","v":3},{"$f":"IF('2011 Survey responses'!CX19<0.5,\"\",'2011 Survey responses'!CX19)","v":3},{"$f":"IF('2011 Survey responses'!CY19<0.5,\"\",'2011 Survey responses'!CY19)","v":4},{"$f":"IF('2011 Survey responses'!CZ19<0.5,\"\",'2011 Survey responses'!CZ19)","v":1},{"$f":"IF('2011 Survey responses'!DA19<0.5,\"\",'2011 Survey responses'!DA19)","v":3},{"$f":"IF('2011 Survey responses'!DB19<0.5,\"\",'2011 Survey responses'!DB19)","v":3},{"$f":"IF('2011 Survey responses'!DC19<0.5,\"\",'2011 Survey responses'!DC19)","v":4},{"$f":"IF('2011 Survey responses'!DD19<0.5,\"\",'2011 Survey responses'!DD19)","v":1},{"$f":"IF('2011 Survey responses'!DE19<0.5,\"\",'2011 Survey responses'!DE19)","v":3},{"$f":"IF('2011 Survey responses'!DF19<0.5,\"\",'2011 Survey responses'!DF19)","v":3},{"$f":"IF('2011 Survey responses'!DG19<0.5,\"\",'2011 Survey responses'!DG19)","v":4},{"$f":"IF('2011 Survey responses'!DH19<0.5,\"\",'2011 Survey responses'!DH19)","v":1},{"$f":"IF('2011 Survey responses'!DI19<0.5,\"\",'2011 Survey responses'!DI19)","v":2},{"$f":"IF('2011 Survey responses'!DJ19<0.5,\"\",'2011 Survey responses'!DJ19)","v":3},{"$f":"IF('2011 Survey responses'!DK19<0.5,\"\",'2011 Survey responses'!DK19)","v":4},{"$f":"IF('2011 Survey responses'!DL19<0.5,\"\",'2011 Survey responses'!DL19)","v":1},{"$f":"IF('2011 Survey responses'!DU19=4,4,IF('2011 Survey responses'!DU19=5,4,\"\"))","v":4},{"$f":"IF('2011 Survey responses'!DV19=4,3,IF('2011 Survey responses'!DV19=5,3,\"\"))","v":3},2,{"$f":"IF(CQ19=2,CQ19,IF(CO19=4,CO19,IF(CP19=3,CP19,IF('2011 Survey responses'!GT19=1,1,\"\"))))","v":2},{"$f":"IF('2011 Survey responses'!DO19<0.5,\"\",'2011 Survey responses'!DO19)","v":2},{"$f":"IF('2011 Survey responses'!DP19<0.5,\"\",'2011 Survey responses'!DP19)","v":3},{"$f":"IF('2011 Survey responses'!DQ19<0.5,\"\",'2011 Survey responses'!DQ19)","v":3},{"$f":"IF('2011 Survey responses'!DR19<0.5,\"\",'2011 Survey responses'!DR19)","v":3},{"$f":"IF('2011 Survey responses'!DS19<0.5,\"\",'2011 Survey responses'!DS19)","v":3},{"$f":"IF('2011 Survey responses'!DT19<0.5,\"\",'2011 Survey responses'!DT19)","v":3},{"$f":"IF('2011 Survey responses'!DU19<0.5,\"\",'2011 Survey responses'!DU19)","v":4},{"$f":"IF('2011 Survey responses'!DV19<0.5,\"\",'2011 Survey responses'!DV19)","v":4},{"$f":"IF('2011 Survey responses'!DW19<0.5,\"\",'2011 Survey responses'!DW19)","v":4},{"$f":"IF('2011 Survey responses'!DX19<0.5,\"\",'2011 Survey responses'!DX19)","v":4},{"$f":"IF('2011 Survey responses'!DY19<0.5,\"\",'2011 Survey responses'!DY19)","v":5},{"$f":"IF('2011 Survey responses'!DZ19<0.5,\"\",'2011 Survey responses'!DZ19)","v":5},{"$f":"IF('2011 Survey responses'!EA19<0.5,\"\",'2011 Survey responses'!EA19)","v":4},{"$f":"IF('2011 Survey responses'!EB19<0.5,\"\",'2011 Survey responses'!EB19)","v":4},{"$f":"IF('2011 Survey responses'!EC19<0.5,\"\",'2011 Survey responses'!EC19)","v":4},{"$f":"IF('2011 Survey responses'!ED19<0.5,\"\",'2011 Survey responses'!ED19)","v":3},{"$f":"IF('2011 Survey responses'!EE19<0.5,\"\",'2011 Survey responses'!EE19)","v":4},{"$f":"IF('2011 Survey responses'!EF19<0.5,\"\",'2011 Survey responses'!EF19)","v":4},{"$f":"IF('2011 Survey responses'!EG19<0.5,\"\",'2011 Survey responses'!EG19)","v":5},{"$f":"IF('2011 Survey responses'!EH19<0.5,\"\",'2011 Survey responses'!EH19)","v":4},{"$f":"IF('2011 Survey responses'!EI19<0.5,\"\",'2011 Survey responses'!EI19)","v":4},{"$f":"IF('2011 Survey responses'!EJ19<0.5,\"\",'2011 Survey responses'!EJ19)","v":4},{"$f":"IF('2011 Survey responses'!EK19<0.5,\"\",'2011 Survey responses'!EK19)","v":4},{"$f":"IF('2011 Survey responses'!EL19<0.5,\"\",'2011 Survey responses'!EL19)","v":4},{"$f":"IF('2011 Survey responses'!EM19<0.5,\"\",'2011 Survey responses'!EM19)","v":3},{"$f":"IF('2011 Survey responses'!EN19<0.5,\"\",'2011 Survey responses'!EN19)","v":3},{"$f":"IF('2011 Survey responses'!EO19<0.5,\"\",'2011 Survey responses'!EO19)","v":3},{"$f":"IF('2011 Survey responses'!EP19<0.5,\"\",'2011 Survey responses'!EP19)","v":3},{"$f":"IF(('2011 Survey responses'!EW19+'2011 Survey responses'!EX19)>=2,AVERAGE('2011 Survey responses'!EW19,'2011 Survey responses'!EY19),\"\")","v":4},{"$f":"IF('2011 Survey responses'!EX19<0.5,\"\",'2011 Survey responses'!EX19)","v":4},{"$f":"IF('2011 Survey responses'!EZ19<0.5,\"\",'2011 Survey responses'!EZ19)","v":4},{"$f":"IF('2011 Survey responses'!FB19<0.5,\"\",'2011 Survey responses'!FB19)","v":4},{"$f":"IF('2011 Survey responses'!FD19<0.5,\"\",'2011 Survey responses'!FD19)","v":4},{"$f":"IF('2011 Survey responses'!FC19<0.5,\"\",'2011 Survey responses'!FC19)","v":3},{"$f":"IF(('2011 Survey responses'!EM19+'2011 Survey responses'!EN19)>=2,AVERAGE('2011 Survey responses'!EM19,'2011 Survey responses'!EN19),\"\")","v":3},{"$f":"IF('2011 Survey responses'!ES19<0.5,\"\",'2011 Survey responses'!ES19)","v":3},{"$f":"IF(('2011 Survey responses'!ET19+'2011 Survey responses'!EU19)>=2,AVERAGE('2011 Survey responses'!ET19,'2011 Survey responses'!EU19),\"\")","v":3},{"$f":"IF('2011 Survey responses'!EV19<0.5,\"\",'2011 Survey responses'!EV19)","v":3},{"$f":"IF('2011 Survey responses'!FA19<0.5,\"\",'2011 Survey responses'!FA19)","v":3},{"$f":"IF('2011 Survey responses'!ER19<0.5,\"\",'2011 Survey responses'!ER19)","v":3},{"$f":"IF(('2011 Survey responses'!EO19+'2011 Survey responses'!EP19)>=2,AVERAGE('2011 Survey responses'!EO19,'2011 Survey responses'!EP19),\"\")","v":3},{"$f":"IF('2011 Survey responses'!EQ19<0.5,\"\",'2011 Survey responses'!EQ19)","v":2},{"$f":"IF('2011 Survey responses'!ET19<0.5,\"\",'2011 Survey responses'!ET19)","v":3},{"$f":"IF('2011 Survey responses'!EU19<0.5,\"\",'2011 Survey responses'!EU19)","v":3},{"$f":"IF('2011 Survey responses'!EW19<0.5,\"\",'2011 Survey responses'!EW19)","v":4},{"$f":"IF('2011 Survey responses'!EY19<0.5,\"\",'2011 Survey responses'!EY19)","v":4},{"$f":"IF('2011 Survey responses'!FU19<0.5,\"\",'2011 Survey responses'!FU19)","v":4},{"$f":"IF(('2011 Survey responses'!FL19+'2011 Survey responses'!FM19)>=2,AVERAGE('2011 Survey responses'!FL19,'2011 Survey responses'!FM19),\"\")","v":4},{"$f":"IF(('2011 Survey responses'!FO19+'2011 Survey responses'!FQ19)>=2,AVERAGE('2011 Survey responses'!FO19,'2011 Survey responses'!FQ19),\"\")","v":5},{"$f":"IF('2011 Survey responses'!FJ19<0.5,\"\",'2011 Survey responses'!FJ19)","v":4},{"$f":"IF('2011 Survey responses'!FT19<0.5,\"\",'2011 Survey responses'!FT19)","v":5},{"$f":"IF('2011 Survey responses'!FR19<0.5,\"\",'2011 Survey responses'!FR19)","v":4},{"$f":"IF('2011 Survey responses'!FK19<0.5,\"\",'2011 Survey responses'!FK19)","v":5},{"$f":"IF('2011 Survey responses'!FP19<0.5,\"\",'2011 Survey responses'!FP19)","v":4},{"$f":"IF('2011 Survey responses'!FN19<0.5,\"\",'2011 Survey responses'!FN19)","v":4},{"$f":"IF(('2011 Survey responses'!FE19+'2011 Survey responses'!FF19)>=2,AVERAGE('2011 Survey responses'!FE19,'2011 Survey responses'!FF19),\"\")","v":3},{"$f":"IF('2011 Survey responses'!FS19<0.5,\"\",'2011 Survey responses'!FS19)","v":3},{"$f":"IF('2011 Survey responses'!FV19<0.5,\"\",'2011 Survey responses'!FV19)","v":4},{"$f":"IF(('2011 Survey responses'!FG19+'2011 Survey responses'!FH19)>=2,AVERAGE('2011 Survey responses'!FG19,'2011 Survey responses'!FH19),\"\")","v":4},{"$f":"IF('2011 Survey responses'!FI19<0.5,\"\",'2011 Survey responses'!FI19)","v":3},{"$f":"IF('2011 Survey responses'!FE19<0.5,\"\",'2011 Survey responses'!FE19)","v":3},{"$f":"IF('2011 Survey responses'!FF19<0.5,\"\",'2011 Survey responses'!FF19)","v":3},{"$f":"IF('2011 Survey responses'!FG19<0.5,\"\",'2011 Survey responses'!FG19)","v":4},{"$f":"IF('2011 Survey responses'!FH19<0.5,\"\",'2011 Survey responses'!FH19)","v":4},{"$f":"IF('2011 Survey responses'!FL19<0.5,\"\",'2011 Survey responses'!FL19)","v":4},{"$f":"IF('2011 Survey responses'!FM19<0.5,\"\",'2011 Survey responses'!FM19)","v":4},{"$f":"IF('2011 Survey responses'!FO19<0.5,\"\",'2011 Survey responses'!FO19)","v":5},{"$f":"IF('2011 Survey responses'!FQ19<0.5,\"\",'2011 Survey responses'!FQ19)","v":5}]
["Belize",{"$f":"IF(SUM(F20)<1,\"\",AVERAGEIF('2011 Survey responses'!B20:CP20,\">1\"))","v":2.9615384615384617},{"$f":"IF(SUM(F20)<1,\"\",AVERAGEIF('2011 Survey responses'!B20:AO20,\">1\"))","v":2.5142857142857142},{"$f":"IF(SUM(F20)<1,\"\",AVERAGEIF('2011 Survey responses'!B20:BV20,\">1\"))","v":2.8095238095238093},{"$f":"IF(SUM(F20)<1,\"\",AVERAGEIF('2011 Survey responses'!V20:BV20,\">1\"))","v":2.9333333333333331},{"$f":"IF(SUM('2011 Survey responses'!B20:U20)<1,\"\",(AVERAGEIFS('2011 Survey responses'!B20:U20,'2011 Survey responses'!B20:U20,\">1\")))","v":2.5},{"$f":"IF(SUM('2011 Survey responses'!B20:H20)<1,\"\",(AVERAGEIFS('2011 Survey responses'!B20:H20,'2011 Survey responses'!B20:H20,\">1\")))","v":3},{"$f":"IF(SUM('2011 Survey responses'!I20:S20)<1,\"\",(AVERAGEIFS('2011 Survey responses'!I20:S20,'2011 Survey responses'!I20:S20,\">1\")))","v":2.3636363636363638},{"$f":"IF(SUM('2011 Survey responses'!T20:U20)<2.1,\"\",(AVERAGEIFS('2011 Survey responses'!T20:U20,'2011 Survey responses'!T20:U20,\">1\")))","v":2},{"$f":"IF(SUM('2011 Survey responses'!B20:C20)<2.1,\"\",((SUMIF('2011 Survey responses'!B20:C20,\">1\")+SUMIF('2011 Survey responses'!F20,\">1\"))/(COUNTIF('2011 Survey responses'!B20:C20,\">1\")+COUNTIF('2011 Survey responses'!F20,\">1\"))))","v":3},{"$f":"IF(SUM('2011 Survey responses'!D20:E20)<2.1,\"\",(AVERAGEIFS('2011 Survey responses'!D20:E20,'2011 Survey responses'!D20:E20,\">1\")))","v":3},{"$f":"IF(('2011 Survey responses'!B20+'2011 Survey responses'!D20)<2.1,\"\",((SUMIF('2011 Survey responses'!B20,\">1\")+SUMIF('2011 Survey responses'!D20,\">1\")+SUMIF('2011 Survey responses'!F20,\">1\")+SUMIF('2011 Survey responses'!K20,\">1\"))/(COUNTIF('2011 Survey responses'!B20,\">1\")+COUNTIF('2011 Survey responses'!D20,\">1\")+COUNTIF('2011 Survey responses'!F20,\">1\")+COUNTIF('2011 Survey responses'!K20,\">1\"))))","v":2.75},{"$f":"IF(SUM('2011 Survey responses'!G20:H20)<2.1,\"\",(AVERAGEIFS('2011 Survey responses'!G20:H20,'2011 Survey responses'!G20:H20,\">1\")))","v":3},{"$f":"IF(SUM('2011 Survey responses'!F20:G20)<1.5,\"\",MAX('2011 Survey responses'!F20,'2011 Survey responses'!G20))","v":3},{"$f":"IF(SUM('2011 Survey responses'!G20:H20)<1,\"\",MAX('2011 Survey responses'!G20,'2011 Survey responses'!H20))","v":3},{"$f":"IF(SUM('2011 Survey responses'!I20:L20)<4.1,\"\",(AVERAGEIFS('2011 Survey responses'!I20:L20,'2011 Survey responses'!I20:L20,\">1\")))","v":2.5},{"$f":"IF(SUM('2011 Survey responses'!M20:S20)<4.1,\"\",(AVERAGEIFS('2011 Survey responses'!M20:S20,'2011 Survey responses'!M20:S20,\">1\")))","v":2.2857142857142856},{"$f":"IF(SUM('2011 Survey responses'!T20:U20)<2.1,\"\",(AVERAGEIFS('2011 Survey responses'!T20:U20,'2011 Survey responses'!T20:U20,\">1\")))","v":2},{"$f":"IF(SUM('2011 Survey responses'!V20:AO20)<1,\"\",(AVERAGEIFS('2011 Survey responses'!V20:AO20,'2011 Survey responses'!V20:AO20,\">1\")))","v":2.5294117647058822},{"$f":"IF(SUM('2011 Survey responses'!V20:AA20)<1,\"\",(AVERAGEIFS('2011 Survey responses'!V20:AA20,'2011 Survey responses'!V20:AA20,\">1\")))","v":2.25},{"$f":"IF(SUM('2011 Survey responses'!AB20:AH20)<1,\"\",(AVERAGEIFS('2011 Survey responses'!AB20:AH20,'2011 Survey responses'!AB20:AH20,\">1\")))","v":3.1428571428571428},{"$f":"IF(SUM('2011 Survey responses'!AI20:AO20)<1,\"\",(AVERAGEIFS('2011 Survey responses'!AI20:AO20,'2011 Survey responses'!AI20:AO20,\">1\")))","v":2},{"$f":"IF(('2011 Survey responses'!Y20+'2011 Survey responses'!AI20+'2011 Survey responses'!AK20)<3.1,\"\",((SUMIF('2011 Survey responses'!Y20,\">1\")+SUMIF('2011 Survey responses'!AI20,\">1\")+SUMIF('2011 Survey responses'!AK20,\">1\")+SUMIF('2011 Survey responses'!AM20,\">1\"))/(COUNTIF('2011 Survey responses'!Y20,\">1\")+COUNTIF('2011 Survey responses'!AI20,\">1\")+COUNTIF('2011 Survey responses'!AK20,\">1\")+COUNTIF('2011 Survey responses'!AM20,\">1\"))))","v":2.25},{"$f":"IF(('2011 Survey responses'!W20)<1.1,\"\",('2011 Survey responses'!W20))","v":""},{"$f":"IF(('2011 Survey responses'!Y20)<1.1,\"\",('2011 Survey responses'!Y20))","v":3},{"$f":"IF(('2011 Survey responses'!Z20)<1.1,\"\",('2011 Survey responses'!Z20))","v":2},{"$f":"IF(('2011 Survey responses'!V20+'2011 Survey responses'!X20+'2011 Survey responses'!AA20)<3.1,\"\",((SUMIF('2011 Survey responses'!V20,\">1\")+SUMIF('2011 Survey responses'!X20,\">1\")+SUMIF('2011 Survey responses'!AA20,\">1\"))/(COUNTIF('2011 Survey responses'!V20,\">1\")+COUNTIF('2011 Survey responses'!X20,\">1\")+COUNTIF('2011 Survey responses'!AA20,\">1\"))))","v":2},{"$f":"IF(('2011 Survey responses'!V20+'2011 Survey responses'!Y20+'2011 Survey responses'!AA20)<3.1,\"\",((SUMIF('2011 Survey responses'!V20,\">1\")+SUMIF('2011 Survey responses'!Y20,\">1\")+SUMIF('2011 Survey responses'!AA20,\">1\"))/(COUNTIF('2011 Survey responses'!V20,\">1\")+COUNTIF('2011 Survey responses'!Y20,\">1\")+COUNTIF('2011 Survey responses'!AA20,\">1\"))))","v":2.3333333333333335},{"$f":"IF(SUM('2011 Survey responses'!AB20:AH20)<1,\"\",(AVERAGEIFS('2011 Survey responses'!AB20:AH20,'2011 Survey responses'!AB20:AH20,\">1\")))","v":3.1428571428571428},{"$f":"IF(SUM('2011 Survey responses'!AI20:AO20)<7.1,\"\",(AVERAGEIFS('2011 Survey responses'!AI20:AO20,'2011 Survey responses'!AI20:AO20,\">1\")))","v":2},{"$f":"IF(('2011 Survey responses'!AH20)<1.1,\"\",('2011 Survey responses'!AH20))","v":4},{"$f":"IF(SUM('2011 Survey responses'!AP20:BV20)<1,\"\",(AVERAGEIFS('2011 Survey responses'!AP20:BV20,'2011 Survey responses'!AP20:BV20,\">1\")))","v":3.1785714285714284},{"$f":"IF(SUM('2011 Survey responses'!AP20:AS20)<4.1,\"\",(AVERAGEIFS('2011 Survey responses'!AP20:AS20,'2011 Survey responses'!AP20:AS20,\">1\")))","v":2},{"$f":"IF(SUM('2011 Survey responses'!AT20:BF20)<1,\"\",(AVERAGEIFS('2011 Survey responses'!AT20:BF20,'2011 Survey responses'!AT20:BF20,\">1\")))","v":3.6},{"$f":"IF(SUM('2011 Survey responses'!BG20:BO20)<1,\"\",(AVERAGEIFS('2011 Survey responses'!BG20:BO20,'2011 Survey responses'!BG20:BO20,\">1\")))","v":3.75},{"$f":"IF(SUM('2011 Survey responses'!BP20:BS20)<1,\"\",(AVERAGEIFS('2011 Survey responses'!BP20:BS20,'2011 Survey responses'!BP20:BS20,\">1\")))","v":2},{"$f":"IF(SUM('2011 Survey responses'!BT20:BV20)<3.1,\"\",(AVERAGEIFS('2011 Survey responses'!BT20:BV20,'2011 Survey responses'!BT20:BV20,\">1\")))","v":3},{"$f":"IF(('2011 Survey responses'!AQ20+'2011 Survey responses'!AR20+'2011 Survey responses'!BG20)<3.1,\"\",((SUMIF('2011 Survey responses'!AQ20,\">1\")+SUMIF('2011 Survey responses'!AR20,\">1\")+SUMIF('2011 Survey responses'!BG20,\">1\"))/(COUNTIF('2011 Survey responses'!AQ20,\">1\")+COUNTIF('2011 Survey responses'!AR20,\">1\")+COUNTIF('2011 Survey responses'!BG20,\">1\"))))","v":2.3333333333333335},{"$f":"IF(SUM('2011 Survey responses'!AP20:AS20)<4.1,\"\",(AVERAGEIFS('2011 Survey responses'!AP20:AS20,'2011 Survey responses'!AP20:AS20,\">1\")))","v":2},{"$f":"IF(('2011 Survey responses'!AU20+'2011 Survey responses'!AX20+'2011 Survey responses'!BA20+'2011 Survey responses'!BC20+'2011 Survey responses'!BD20)<5.1,\"\",(SUMIF('2011 Survey responses'!AU20,\">1\")+SUMIF('2011 Survey responses'!AX20,\">1\")+SUMIF('2011 Survey responses'!BA20,\">1\")+SUMIF('2011 Survey responses'!BC20,\">1\")+SUMIF('2011 Survey responses'!BD20,\">1\"))/(COUNTIF('2011 Survey responses'!AU20,\">1\")+COUNTIF('2011 Survey responses'!AX20,\">1\")+COUNTIF('2011 Survey responses'!BA20,\">1\")+COUNTIF('2011 Survey responses'!BC20,\">1\")+COUNTIF('2011 Survey responses'!BD20,\">1\")))","v":4.5},{"$f":"IF(('2011 Survey responses'!AT20)<1.1,\"\",('2011 Survey responses'!AT20))","v":""},{"$f":"IF(SUM('2011 Survey responses'!AV20:AW20)<2.1,\"\",(AVERAGEIFS('2011 Survey responses'!AV20:AW20,'2011 Survey responses'!AV20:AW20,\">1\")))","v":3},{"$f":"IF(('2011 Survey responses'!AW20+'2011 Survey responses'!AY20)<2.1,\"\",(SUMIF('2011 Survey responses'!AW20,\">1\")+SUMIF('2011 Survey responses'!AY20,\">1\"))/(COUNTIF('2011 Survey responses'!AW20,\">1\")+COUNTIF('2011 Survey responses'!AY20,\">1\")))","v":3},{"$f":"IF(('2011 Survey responses'!AZ20)<1.1,\"\",('2011 Survey responses'!AZ20))","v":3},3,1,2,3,{"$f":"IF(('2011 Survey responses'!BE20)<1.1,\"\",('2011 Survey responses'!BE20))","v":3},{"$f":"IF(('2011 Survey responses'!AY20+'2011 Survey responses'!BB20+'2011 Survey responses'!BF20)<3.1,\"\",(SUMIF('2011 Survey responses'!AY20,\">1\")+SUMIF('2011 Survey responses'!BB20,\">1\")+SUMIF('2011 Survey responses'!BF20,\">1\"))/(COUNTIF('2011 Survey responses'!AY20,\">1\")+COUNTIF('2011 Survey responses'!BB20,\">1\")+COUNTIF('2011 Survey responses'!BF20,\">1\")))","v":3},2.875,{"$f":"IF(SUM('2011 Survey responses'!BT20:BV20)<3.1,\"\",(AVERAGEIFS('2011 Survey responses'!BT20:BV20,'2011 Survey responses'!BT20:BV20,\">1\")))","v":3},{"$f":"IF(SUM('2011 Survey responses'!BW20:CP20)<1,\"\",(AVERAGEIFS('2011 Survey responses'!BW20:CP20,'2011 Survey responses'!BW20:CP20,\">1\")))","v":3.6},{"$f":"IF(SUM('2011 Survey responses'!BW20:CF20)<1,\"\",(AVERAGEIFS('2011 Survey responses'!BW20:CF20,'2011 Survey responses'!BW20:CF20,\">1\")))","v":4},{"$f":"IF(SUM('2011 Survey responses'!CG20:CP20)<1,\"\",(AVERAGEIFS('2011 Survey responses'!CG20:CP20,'2011 Survey responses'!CG20:CP20,\">1\")))","v":3.1428571428571428},{"$f":"IF(SUM('2011 Survey responses'!BX20:CF20)<1,\"\",(AVERAGEIFS('2011 Survey responses'!BX20:CF20,'2011 Survey responses'!BX20:CF20,\">1\")))","v":4.1428571428571432},{"$f":"IF(SUM('2011 Survey responses'!CH20:CP20)<1,\"\",(AVERAGEIFS('2011 Survey responses'!CH20:CP20,'2011 Survey responses'!CH20:CP20,\">1\")))","v":3.1666666666666665},{"$f":"IF(SUM('2011 Survey responses'!BW20:CP20)<1,\"\",(AVERAGEIFS('2011 Survey responses'!BW20:CP20,'2011 Survey responses'!BW20:CP20,\">1\")))","v":3.6},{"$f":"IF(('2011 Survey responses'!BW20+'2011 Survey responses'!CG20)<2.1,\"\",(SUMIF('2011 Survey responses'!BW20,\">1\")+SUMIF('2011 Survey responses'!CG20,\">1\"))/(COUNTIF('2011 Survey responses'!BW20,\">1\")+COUNTIF('2011 Survey responses'!CG20,\">1\")))","v":3},{"$f":"IF(('2011 Survey responses'!BX20+'2011 Survey responses'!CH20)<2.1,\"\",(SUMIF('2011 Survey responses'!BX20,\">1\")+SUMIF('2011 Survey responses'!CH20,\">1\"))/(COUNTIF('2011 Survey responses'!BX20,\">1\")+COUNTIF('2011 Survey responses'!CH20,\">1\")))","v":2.5},{"$f":"IF(('2011 Survey responses'!BY20+'2011 Survey responses'!CI20)<2.1,\"\",(SUMIF('2011 Survey responses'!BY20,\">1\")+SUMIF('2011 Survey responses'!CI20,\">1\"))/(COUNTIF('2011 Survey responses'!BY20,\">1\")+COUNTIF('2011 Survey responses'!CI20,\">1\")))","v":5.5},{"$f":"IF('2011 Survey responses'!CQ20<0.5,\"\",'2011 Survey responses'!CQ20)","v":4},{"$f":"IF('2011 Survey responses'!CR20<0.5,\"\",'2011 Survey responses'!CR20)","v":4},{"$f":"IF('2011 Survey responses'!CS20<0.5,\"\",'2011 Survey responses'!CS20)","v":4},{"$f":"IF('2011 Survey responses'!CT20<0.5,\"\",'2011 Survey responses'!CT20)","v":2},{"$f":"IF('2011 Survey responses'!CU20<0.5,\"\",'2011 Survey responses'!CU20)","v":2},{"$f":"IF('2011 Survey responses'!CV20<0.5,\"\",'2011 Survey responses'!CV20)","v":2},{"$f":"IF(SUM('2011 Survey responses'!CW20:DL20)<1,\"\",(AVERAGE('2011 Survey responses'!CW20:DL20)))","v":3.125},{"$f":"IF(SUM('2011 Survey responses'!CW20:CZ20)<1,\"\",(AVERAGE('2011 Survey responses'!CW20:CZ20)))","v":3.25},{"$f":"IF(SUM('2011 Survey responses'!DA20:DD20)<1,\"\",(AVERAGE('2011 Survey responses'!DA20:DD20)))","v":3.5},{"$f":"IF(SUM('2011 Survey responses'!DE20:DH20)<1,\"\",(AVERAGE('2011 Survey responses'!DE20:DH20)))","v":2.5},{"$f":"IF(SUM('2011 Survey responses'!DI20:DL20)<1,\"\",(AVERAGE('2011 Survey responses'!DI20:DL20)))","v":3.25},{"$f":"IF(('2011 Survey responses'!CW20+'2011 Survey responses'!DA20+'2011 Survey responses'!DE20+'2011 Survey responses'!DI20)<1,\"\",AVERAGE('2011 Survey responses'!CW20,'2011 Survey responses'!DA20,'2011 Survey responses'!DE20,'2011 Survey responses'!DI20))","v":2.5},{"$f":"IF(('2011 Survey responses'!CX20+'2011 Survey responses'!DB20+'2011 Survey responses'!DF20+'2011 Survey responses'!DJ20)<1,\"\",AVERAGE('2011 Survey responses'!CX20,'2011 Survey responses'!DB20,'2011 Survey responses'!DF20,'2011 Survey responses'!DJ20))","v":2.75},{"$f":"IF(('2011 Survey responses'!CY20+'2011 Survey responses'!DC20+'2011 Survey responses'!DG20+'2011 Survey responses'!DK20)<1,\"\",AVERAGE('2011 Survey responses'!CY20,'2011 Survey responses'!DC20,'2011 Survey responses'!DG20,'2011 Survey responses'!DK20))","v":4},{"$f":"IF(('2011 Survey responses'!CZ20+'2011 Survey responses'!DD20+'2011 Survey responses'!DH20+'2011 Survey responses'!DL20)<1,\"\",AVERAGE('2011 Survey responses'!CZ20,'2011 Survey responses'!DD20,'2011 Survey responses'!DH20,'2011 Survey responses'!DL20))","v":3.25},{"$f":"IF('2011 Survey responses'!CW20<0.5,\"\",'2011 Survey responses'!CW20)","v":2},{"$f":"IF('2011 Survey responses'!CX20<0.5,\"\",'2011 Survey responses'!CX20)","v":3},{"$f":"IF('2011 Survey responses'!CY20<0.5,\"\",'2011 Survey responses'!CY20)","v":5},{"$f":"IF('2011 Survey responses'!CZ20<0.5,\"\",'2011 Survey responses'!CZ20)","v":3},{"$f":"IF('2011 Survey responses'!DA20<0.5,\"\",'2011 Survey responses'!DA20)","v":3},{"$f":"IF('2011 Survey responses'!DB20<0.5,\"\",'2011 Survey responses'!DB20)","v":3},{"$f":"IF('2011 Survey responses'!DC20<0.5,\"\",'2011 Survey responses'!DC20)","v":4},{"$f":"IF('2011 Survey responses'!DD20<0.5,\"\",'2011 Survey responses'!DD20)","v":4},{"$f":"IF('2011 Survey responses'!DE20<0.5,\"\",'2011 Survey responses'!DE20)","v":2},{"$f":"IF('2011 Survey responses'!DF20<0.5,\"\",'2011 Survey responses'!DF20)","v":2},{"$f":"IF('2011 Survey responses'!DG20<0.5,\"\",'2011 Survey responses'!DG20)","v":3},{"$f":"IF('2011 Survey responses'!DH20<0.5,\"\",'2011 Survey responses'!DH20)","v":3},{"$f":"IF('2011 Survey responses'!DI20<0.5,\"\",'2011 Survey responses'!DI20)","v":3},{"$f":"IF('2011 Survey responses'!DJ20<0.5,\"\",'2011 Survey responses'!DJ20)","v":3},{"$f":"IF('2011 Survey responses'!DK20<0.5,\"\",'2011 Survey responses'!DK20)","v":4},{"$f":"IF('2011 Survey responses'!DL20<0.5,\"\",'2011 Survey responses'!DL20)","v":3},{"$f":"IF('2011 Survey responses'!DU20=4,4,IF('2011 Survey responses'!DU20=5,4,\"\"))","v":""},{"$f":"IF('2011 Survey responses'!DV20=4,3,IF('2011 Survey responses'!DV20=5,3,\"\"))","v":""},"",{"$f":"IF(CQ20=2,CQ20,IF(CO20=4,CO20,IF(CP20=3,CP20,IF('2011 Survey responses'!GT20=1,1,\"\"))))","v":1},{"$f":"IF('2011 Survey responses'!DO20<0.5,\"\",'2011 Survey responses'!DO20)","v":1},{"$f":"IF('2011 Survey responses'!DP20<0.5,\"\",'2011 Survey responses'!DP20)","v":1},{"$f":"IF('2011 Survey responses'!DQ20<0.5,\"\",'2011 Survey responses'!DQ20)","v":1},{"$f":"IF('2011 Survey responses'!DR20<0.5,\"\",'2011 Survey responses'!DR20)","v":1},{"$f":"IF('2011 Survey responses'!DS20<0.5,\"\",'2011 Survey responses'!DS20)","v":1},{"$f":"IF('2011 Survey responses'!DT20<0.5,\"\",'2011 Survey responses'!DT20)","v":3},{"$f":"IF('2011 Survey responses'!DU20<0.5,\"\",'2011 Survey responses'!DU20)","v":2},{"$f":"IF('2011 Survey responses'!DV20<0.5,\"\",'2011 Survey responses'!DV20)","v":1},{"$f":"IF('2011 Survey responses'!DW20<0.5,\"\",'2011 Survey responses'!DW20)","v":1},{"$f":"IF('2011 Survey responses'!DX20<0.5,\"\",'2011 Survey responses'!DX20)","v":1},{"$f":"IF('2011 Survey responses'!DY20<0.5,\"\",'2011 Survey responses'!DY20)","v":1},{"$f":"IF('2011 Survey responses'!DZ20<0.5,\"\",'2011 Survey responses'!DZ20)","v":1},{"$f":"IF('2011 Survey responses'!EA20<0.5,\"\",'2011 Survey responses'!EA20)","v":4},{"$f":"IF('2011 Survey responses'!EB20<0.5,\"\",'2011 Survey responses'!EB20)","v":5},{"$f":"IF('2011 Survey responses'!EC20<0.5,\"\",'2011 Survey responses'!EC20)","v":3},{"$f":"IF('2011 Survey responses'!ED20<0.5,\"\",'2011 Survey responses'!ED20)","v":5},{"$f":"IF('2011 Survey responses'!EE20<0.5,\"\",'2011 Survey responses'!EE20)","v":4},{"$f":"IF('2011 Survey responses'!EF20<0.5,\"\",'2011 Survey responses'!EF20)","v":5},{"$f":"IF('2011 Survey responses'!EG20<0.5,\"\",'2011 Survey responses'!EG20)","v":3},{"$f":"IF('2011 Survey responses'!EH20<0.5,\"\",'2011 Survey responses'!EH20)","v":3},{"$f":"IF('2011 Survey responses'!EI20<0.5,\"\",'2011 Survey responses'!EI20)","v":3},{"$f":"IF('2011 Survey responses'!EJ20<0.5,\"\",'2011 Survey responses'!EJ20)","v":3},{"$f":"IF('2011 Survey responses'!EK20<0.5,\"\",'2011 Survey responses'!EK20)","v":3},{"$f":"IF('2011 Survey responses'!EL20<0.5,\"\",'2011 Survey responses'!EL20)","v":3},{"$f":"IF('2011 Survey responses'!EM20<0.5,\"\",'2011 Survey responses'!EM20)","v":3},{"$f":"IF('2011 Survey responses'!EN20<0.5,\"\",'2011 Survey responses'!EN20)","v":3},{"$f":"IF('2011 Survey responses'!EO20<0.5,\"\",'2011 Survey responses'!EO20)","v":3},{"$f":"IF('2011 Survey responses'!EP20<0.5,\"\",'2011 Survey responses'!EP20)","v":3},{"$f":"IF(('2011 Survey responses'!EW20+'2011 Survey responses'!EX20)>=2,AVERAGE('2011 Survey responses'!EW20,'2011 Survey responses'!EY20),\"\")","v":3.5},{"$f":"IF('2011 Survey responses'!EX20<0.5,\"\",'2011 Survey responses'!EX20)","v":5},{"$f":"IF('2011 Survey responses'!EZ20<0.5,\"\",'2011 Survey responses'!EZ20)","v":5},{"$f":"IF('2011 Survey responses'!FB20<0.5,\"\",'2011 Survey responses'!FB20)","v":5},{"$f":"IF('2011 Survey responses'!FD20<0.5,\"\",'2011 Survey responses'!FD20)","v":5},{"$f":"IF('2011 Survey responses'!FC20<0.5,\"\",'2011 Survey responses'!FC20)","v":5},{"$f":"IF(('2011 Survey responses'!EM20+'2011 Survey responses'!EN20)>=2,AVERAGE('2011 Survey responses'!EM20,'2011 Survey responses'!EN20),\"\")","v":3},{"$f":"IF('2011 Survey responses'!ES20<0.5,\"\",'2011 Survey responses'!ES20)","v":4},{"$f":"IF(('2011 Survey responses'!ET20+'2011 Survey responses'!EU20)>=2,AVERAGE('2011 Survey responses'!ET20,'2011 Survey responses'!EU20),\"\")","v":2.5},{"$f":"IF('2011 Survey responses'!EV20<0.5,\"\",'2011 Survey responses'!EV20)","v":3},{"$f":"IF('2011 Survey responses'!FA20<0.5,\"\",'2011 Survey responses'!FA20)","v":5},{"$f":"IF('2011 Survey responses'!ER20<0.5,\"\",'2011 Survey responses'!ER20)","v":4},{"$f":"IF(('2011 Survey responses'!EO20+'2011 Survey responses'!EP20)>=2,AVERAGE('2011 Survey responses'!EO20,'2011 Survey responses'!EP20),\"\")","v":3},{"$f":"IF('2011 Survey responses'!EQ20<0.5,\"\",'2011 Survey responses'!EQ20)","v":3},{"$f":"IF('2011 Survey responses'!ET20<0.5,\"\",'2011 Survey responses'!ET20)","v":4},{"$f":"IF('2011 Survey responses'!EU20<0.5,\"\",'2011 Survey responses'!EU20)","v":1},{"$f":"IF('2011 Survey responses'!EW20<0.5,\"\",'2011 Survey responses'!EW20)","v":5},{"$f":"IF('2011 Survey responses'!EY20<0.5,\"\",'2011 Survey responses'!EY20)","v":2},{"$f":"IF('2011 Survey responses'!FU20<0.5,\"\",'2011 Survey responses'!FU20)","v":5},{"$f":"IF(('2011 Survey responses'!FL20+'2011 Survey responses'!FM20)>=2,AVERAGE('2011 Survey responses'!FL20,'2011 Survey responses'!FM20),\"\")","v":3.5},{"$f":"IF(('2011 Survey responses'!FO20+'2011 Survey responses'!FQ20)>=2,AVERAGE('2011 Survey responses'!FO20,'2011 Survey responses'!FQ20),\"\")","v":1},{"$f":"IF('2011 Survey responses'!FJ20<0.5,\"\",'2011 Survey responses'!FJ20)","v":4},{"$f":"IF('2011 Survey responses'!FT20<0.5,\"\",'2011 Survey responses'!FT20)","v":5},{"$f":"IF('2011 Survey responses'!FR20<0.5,\"\",'2011 Survey responses'!FR20)","v":1},{"$f":"IF('2011 Survey responses'!FK20<0.5,\"\",'2011 Survey responses'!FK20)","v":4},{"$f":"IF('2011 Survey responses'!FP20<0.5,\"\",'2011 Survey responses'!FP20)","v":1},{"$f":"IF('2011 Survey responses'!FN20<0.5,\"\",'2011 Survey responses'!FN20)","v":4},{"$f":"IF(('2011 Survey responses'!FE20+'2011 Survey responses'!FF20)>=2,AVERAGE('2011 Survey responses'!FE20,'2011 Survey responses'!FF20),\"\")","v":1},{"$f":"IF('2011 Survey responses'!FS20<0.5,\"\",'2011 Survey responses'!FS20)","v":3},{"$f":"IF('2011 Survey responses'!FV20<0.5,\"\",'2011 Survey responses'!FV20)","v":1},{"$f":"IF(('2011 Survey responses'!FG20+'2011 Survey responses'!FH20)>=2,AVERAGE('2011 Survey responses'!FG20,'2011 Survey responses'!FH20),\"\")","v":1},{"$f":"IF('2011 Survey responses'!FI20<0.5,\"\",'2011 Survey responses'!FI20)","v":4},{"$f":"IF('2011 Survey responses'!FE20<0.5,\"\",'2011 Survey responses'!FE20)","v":1},{"$f":"IF('2011 Survey responses'!FF20<0.5,\"\",'2011 Survey responses'!FF20)","v":1},{"$f":"IF('2011 Survey responses'!FG20<0.5,\"\",'2011 Survey responses'!FG20)","v":1},{"$f":"IF('2011 Survey responses'!FH20<0.5,\"\",'2011 Survey responses'!FH20)","v":1},{"$f":"IF('2011 Survey responses'!FL20<0.5,\"\",'2011 Survey responses'!FL20)","v":3},{"$f":"IF('2011 Survey responses'!FM20<0.5,\"\",'2011 Survey responses'!FM20)","v":4},{"$f":"IF('2011 Survey responses'!FO20<0.5,\"\",'2011 Survey responses'!FO20)","v":1},{"$f":"IF('2011 Survey responses'!FQ20<0.5,\"\",'2011 Survey responses'!FQ20)","v":1}]
["Benin",{"$f":"IF(SUM(F21)<1,\"\",AVERAGEIF('2011 Survey responses'!B21:CP21,\">1\"))","v":4.0235294117647058},{"$f":"IF(SUM(F21)<1,\"\",AVERAGEIF('2011 Survey responses'!B21:AO21,\">1\"))","v":4.8250000000000002},{"$f":"IF(SUM(F21)<1,\"\",AVERAGEIF('2011 Survey responses'!B21:BV21,\">1\"))","v":4.0857142857142854},{"$f":"IF(SUM(F21)<1,\"\",AVERAGEIF('2011 Survey responses'!V21:BV21,\">1\"))","v":3.88},{"$f":"IF(SUM('2011 Survey responses'!B21:U21)<1,\"\",(AVERAGEIFS('2011 Survey responses'!B21:U21,'2011 Survey responses'!B21:U21,\">1\")))","v":4.5999999999999996},{"$f":"IF(SUM('2011 Survey responses'!B21:H21)<1,\"\",(AVERAGEIFS('2011 Survey responses'!B21:H21,'2011 Survey responses'!B21:H21,\">1\")))","v":4.1428571428571432},{"$f":"IF(SUM('2011 Survey responses'!I21:S21)<1,\"\",(AVERAGEIFS('2011 Survey responses'!I21:S21,'2011 Survey responses'!I21:S21,\">1\")))","v":5},{"$f":"IF(SUM('2011 Survey responses'!T21:U21)<2.1,\"\",(AVERAGEIFS('2011 Survey responses'!T21:U21,'2011 Survey responses'!T21:U21,\">1\")))","v":4},{"$f":"IF(SUM('2011 Survey responses'!B21:C21)<2.1,\"\",((SUMIF('2011 Survey responses'!B21:C21,\">1\")+SUMIF('2011 Survey responses'!F21,\">1\"))/(COUNTIF('2011 Survey responses'!B21:C21,\">1\")+COUNTIF('2011 Survey responses'!F21,\">1\"))))","v":4},{"$f":"IF(SUM('2011 Survey responses'!D21:E21)<2.1,\"\",(AVERAGEIFS('2011 Survey responses'!D21:E21,'2011 Survey responses'!D21:E21,\">1\")))","v":4},{"$f":"IF(('2011 Survey responses'!B21+'2011 Survey responses'!D21)<2.1,\"\",((SUMIF('2011 Survey responses'!B21,\">1\")+SUMIF('2011 Survey responses'!D21,\">1\")+SUMIF('2011 Survey responses'!F21,\">1\")+SUMIF('2011 Survey responses'!K21,\">1\"))/(COUNTIF('2011 Survey responses'!B21,\">1\")+COUNTIF('2011 Survey responses'!D21,\">1\")+COUNTIF('2011 Survey responses'!F21,\">1\")+COUNTIF('2011 Survey responses'!K21,\">1\"))))","v":4.25},{"$f":"IF(SUM('2011 Survey responses'!G21:H21)<2.1,\"\",(AVERAGEIFS('2011 Survey responses'!G21:H21,'2011 Survey responses'!G21:H21,\">1\")))","v":4.5},{"$f":"IF(SUM('2011 Survey responses'!F21:G21)<1.5,\"\",MAX('2011 Survey responses'!F21,'2011 Survey responses'!G21))","v":4},{"$f":"IF(SUM('2011 Survey responses'!G21:H21)<1,\"\",MAX('2011 Survey responses'!G21,'2011 Survey responses'!H21))","v":5},{"$f":"IF(SUM('2011 Survey responses'!I21:L21)<4.1,\"\",(AVERAGEIFS('2011 Survey responses'!I21:L21,'2011 Survey responses'!I21:L21,\">1\")))","v":5},{"$f":"IF(SUM('2011 Survey responses'!M21:S21)<4.1,\"\",(AVERAGEIFS('2011 Survey responses'!M21:S21,'2011 Survey responses'!M21:S21,\">1\")))","v":5},{"$f":"IF(SUM('2011 Survey responses'!T21:U21)<2.1,\"\",(AVERAGEIFS('2011 Survey responses'!T21:U21,'2011 Survey responses'!T21:U21,\">1\")))","v":4},{"$f":"IF(SUM('2011 Survey responses'!V21:AO21)<1,\"\",(AVERAGEIFS('2011 Survey responses'!V21:AO21,'2011 Survey responses'!V21:AO21,\">1\")))","v":5.05},{"$f":"IF(SUM('2011 Survey responses'!V21:AA21)<1,\"\",(AVERAGEIFS('2011 Survey responses'!V21:AA21,'2011 Survey responses'!V21:AA21,\">1\")))","v":4},{"$f":"IF(SUM('2011 Survey responses'!AB21:AH21)<1,\"\",(AVERAGEIFS('2011 Survey responses'!AB21:AH21,'2011 Survey responses'!AB21:AH21,\">1\")))","v":6},{"$f":"IF(SUM('2011 Survey responses'!AI21:AO21)<1,\"\",(AVERAGEIFS('2011 Survey responses'!AI21:AO21,'2011 Survey responses'!AI21:AO21,\">1\")))","v":5},{"$f":"IF(('2011 Survey responses'!Y21+'2011 Survey responses'!AI21+'2011 Survey responses'!AK21)<3.1,\"\",((SUMIF('2011 Survey responses'!Y21,\">1\")+SUMIF('2011 Survey responses'!AI21,\">1\")+SUMIF('2011 Survey responses'!AK21,\">1\")+SUMIF('2011 Survey responses'!AM21,\">1\"))/(COUNTIF('2011 Survey responses'!Y21,\">1\")+COUNTIF('2011 Survey responses'!AI21,\">1\")+COUNTIF('2011 Survey responses'!AK21,\">1\")+COUNTIF('2011 Survey responses'!AM21,\">1\"))))","v":4.75},{"$f":"IF(('2011 Survey responses'!W21)<1.1,\"\",('2011 Survey responses'!W21))","v":4},{"$f":"IF(('2011 Survey responses'!Y21)<1.1,\"\",('2011 Survey responses'!Y21))","v":4},{"$f":"IF(('2011 Survey responses'!Z21)<1.1,\"\",('2011 Survey responses'!Z21))","v":4},{"$f":"IF(('2011 Survey responses'!V21+'2011 Survey responses'!X21+'2011 Survey responses'!AA21)<3.1,\"\",((SUMIF('2011 Survey responses'!V21,\">1\")+SUMIF('2011 Survey responses'!X21,\">1\")+SUMIF('2011 Survey responses'!AA21,\">1\"))/(COUNTIF('2011 Survey responses'!V21,\">1\")+COUNTIF('2011 Survey responses'!X21,\">1\")+COUNTIF('2011 Survey responses'!AA21,\">1\"))))","v":4},{"$f":"IF(('2011 Survey responses'!V21+'2011 Survey responses'!Y21+'2011 Survey responses'!AA21)<3.1,\"\",((SUMIF('2011 Survey responses'!V21,\">1\")+SUMIF('2011 Survey responses'!Y21,\">1\")+SUMIF('2011 Survey responses'!AA21,\">1\"))/(COUNTIF('2011 Survey responses'!V21,\">1\")+COUNTIF('2011 Survey responses'!Y21,\">1\")+COUNTIF('2011 Survey responses'!AA21,\">1\"))))","v":4},{"$f":"IF(SUM('2011 Survey responses'!AB21:AH21)<1,\"\",(AVERAGEIFS('2011 Survey responses'!AB21:AH21,'2011 Survey responses'!AB21:AH21,\">1\")))","v":6},{"$f":"IF(SUM('2011 Survey responses'!AI21:AO21)<7.1,\"\",(AVERAGEIFS('2011 Survey responses'!AI21:AO21,'2011 Survey responses'!AI21:AO21,\">1\")))","v":5},{"$f":"IF(('2011 Survey responses'!AH21)<1.1,\"\",('2011 Survey responses'!AH21))","v":6},{"$f":"IF(SUM('2011 Survey responses'!AP21:BV21)<1,\"\",(AVERAGEIFS('2011 Survey responses'!AP21:BV21,'2011 Survey responses'!AP21:BV21,\">1\")))","v":3.1},{"$f":"IF(SUM('2011 Survey responses'!AP21:AS21)<4.1,\"\",(AVERAGEIFS('2011 Survey responses'!AP21:AS21,'2011 Survey responses'!AP21:AS21,\">1\")))","v":3.5},{"$f":"IF(SUM('2011 Survey responses'!AT21:BF21)<1,\"\",(AVERAGEIFS('2011 Survey responses'!AT21:BF21,'2011 Survey responses'!AT21:BF21,\">1\")))","v":3.5833333333333335},{"$f":"IF(SUM('2011 Survey responses'!BG21:BO21)<1,\"\",(AVERAGEIFS('2011 Survey responses'!BG21:BO21,'2011 Survey responses'!BG21:BO21,\">1\")))","v":2.1111111111111112},{"$f":"IF(SUM('2011 Survey responses'!BP21:BS21)<1,\"\",(AVERAGEIFS('2011 Survey responses'!BP21:BS21,'2011 Survey responses'!BP21:BS21,\">1\")))","v":3.5},{"$f":"IF(SUM('2011 Survey responses'!BT21:BV21)<3.1,\"\",(AVERAGEIFS('2011 Survey responses'!BT21:BV21,'2011 Survey responses'!BT21:BV21,\">1\")))","v":""},{"$f":"IF(('2011 Survey responses'!AQ21+'2011 Survey responses'!AR21+'2011 Survey responses'!BG21)<3.1,\"\",((SUMIF('2011 Survey responses'!AQ21,\">1\")+SUMIF('2011 Survey responses'!AR21,\">1\")+SUMIF('2011 Survey responses'!BG21,\">1\"))/(COUNTIF('2011 Survey responses'!AQ21,\">1\")+COUNTIF('2011 Survey responses'!AR21,\">1\")+COUNTIF('2011 Survey responses'!BG21,\">1\"))))","v":3.3333333333333335},{"$f":"IF(SUM('2011 Survey responses'!AP21:AS21)<4.1,\"\",(AVERAGEIFS('2011 Survey responses'!AP21:AS21,'2011 Survey responses'!AP21:AS21,\">1\")))","v":3.5},{"$f":"IF(('2011 Survey responses'!AU21+'2011 Survey responses'!AX21+'2011 Survey responses'!BA21+'2011 Survey responses'!BC21+'2011 Survey responses'!BD21)<5.1,\"\",(SUMIF('2011 Survey responses'!AU21,\">1\")+SUMIF('2011 Survey responses'!AX21,\">1\")+SUMIF('2011 Survey responses'!BA21,\">1\")+SUMIF('2011 Survey responses'!BC21,\">1\")+SUMIF('2011 Survey responses'!BD21,\">1\"))/(COUNTIF('2011 Survey responses'!AU21,\">1\")+COUNTIF('2011 Survey responses'!AX21,\">1\")+COUNTIF('2011 Survey responses'!BA21,\">1\")+COUNTIF('2011 Survey responses'!BC21,\">1\")+COUNTIF('2011 Survey responses'!BD21,\">1\")))","v":3.5},{"$f":"IF(('2011 Survey responses'!AT21)<1.1,\"\",('2011 Survey responses'!AT21))","v":2},{"$f":"IF(SUM('2011 Survey responses'!AV21:AW21)<2.1,\"\",(AVERAGEIFS('2011 Survey responses'!AV21:AW21,'2011 Survey responses'!AV21:AW21,\">1\")))","v":3.5},{"$f":"IF(('2011 Survey responses'!AW21+'2011 Survey responses'!AY21)<2.1,\"\",(SUMIF('2011 Survey responses'!AW21,\">1\")+SUMIF('2011 Survey responses'!AY21,\">1\"))/(COUNTIF('2011 Survey responses'!AW21,\">1\")+COUNTIF('2011 Survey responses'!AY21,\">1\")))","v":5},{"$f":"IF(('2011 Survey responses'!AZ21)<1.1,\"\",('2011 Survey responses'!AZ21))","v":2},2,2,2,null,{"$f":"IF(('2011 Survey responses'!BE21)<1.1,\"\",('2011 Survey responses'!BE21))","v":3},{"$f":"IF(('2011 Survey responses'!AY21+'2011 Survey responses'!BB21+'2011 Survey responses'!BF21)<3.1,\"\",(SUMIF('2011 Survey responses'!AY21,\">1\")+SUMIF('2011 Survey responses'!BB21,\">1\")+SUMIF('2011 Survey responses'!BF21,\">1\"))/(COUNTIF('2011 Survey responses'!AY21,\">1\")+COUNTIF('2011 Survey responses'!BB21,\">1\")+COUNTIF('2011 Survey responses'!BF21,\">1\")))","v":5},2.8055555555555554,{"$f":"IF(SUM('2011 Survey responses'!BT21:BV21)<3.1,\"\",(AVERAGEIFS('2011 Survey responses'!BT21:BV21,'2011 Survey responses'!BT21:BV21,\">1\")))","v":""},{"$f":"IF(SUM('2011 Survey responses'!BW21:CP21)<1,\"\",(AVERAGEIFS('2011 Survey responses'!BW21:CP21,'2011 Survey responses'!BW21:CP21,\">1\")))","v":3.7333333333333334},{"$f":"IF(SUM('2011 Survey responses'!BW21:CF21)<1,\"\",(AVERAGEIFS('2011 Survey responses'!BW21:CF21,'2011 Survey responses'!BW21:CF21,\">1\")))","v":4},{"$f":"IF(SUM('2011 Survey responses'!CG21:CP21)<1,\"\",(AVERAGEIFS('2011 Survey responses'!CG21:CP21,'2011 Survey responses'!CG21:CP21,\">1\")))","v":3.5},{"$f":"IF(SUM('2011 Survey responses'!BX21:CF21)<1,\"\",(AVERAGEIFS('2011 Survey responses'!BX21:CF21,'2011 Survey responses'!BX21:CF21,\">1\")))","v":4},{"$f":"IF(SUM('2011 Survey responses'!CH21:CP21)<1,\"\",(AVERAGEIFS('2011 Survey responses'!CH21:CP21,'2011 Survey responses'!CH21:CP21,\">1\")))","v":3.4285714285714284},{"$f":"IF(SUM('2011 Survey responses'!BW21:CP21)<1,\"\",(AVERAGEIFS('2011 Survey responses'!BW21:CP21,'2011 Survey responses'!BW21:CP21,\">1\")))","v":3.7333333333333334},{"$f":"IF(('2011 Survey responses'!BW21+'2011 Survey responses'!CG21)<2.1,\"\",(SUMIF('2011 Survey responses'!BW21,\">1\")+SUMIF('2011 Survey responses'!CG21,\">1\"))/(COUNTIF('2011 Survey responses'!BW21,\">1\")+COUNTIF('2011 Survey responses'!CG21,\">1\")))","v":4},{"$f":"IF(('2011 Survey responses'!BX21+'2011 Survey responses'!CH21)<2.1,\"\",(SUMIF('2011 Survey responses'!BX21,\">1\")+SUMIF('2011 Survey responses'!CH21,\">1\"))/(COUNTIF('2011 Survey responses'!BX21,\">1\")+COUNTIF('2011 Survey responses'!CH21,\">1\")))","v":4},{"$f":"IF(('2011 Survey responses'!BY21+'2011 Survey responses'!CI21)<2.1,\"\",(SUMIF('2011 Survey responses'!BY21,\">1\")+SUMIF('2011 Survey responses'!CI21,\">1\"))/(COUNTIF('2011 Survey responses'!BY21,\">1\")+COUNTIF('2011 Survey responses'!CI21,\">1\")))","v":4},{"$f":"IF('2011 Survey responses'!CQ21<0.5,\"\",'2011 Survey responses'!CQ21)","v":1},{"$f":"IF('2011 Survey responses'!CR21<0.5,\"\",'2011 Survey responses'!CR21)","v":4},{"$f":"IF('2011 Survey responses'!CS21<0.5,\"\",'2011 Survey responses'!CS21)","v":3},{"$f":"IF('2011 Survey responses'!CT21<0.5,\"\",'2011 Survey responses'!CT21)","v":4},{"$f":"IF('2011 Survey responses'!CU21<0.5,\"\",'2011 Survey responses'!CU21)","v":1},{"$f":"IF('2011 Survey responses'!CV21<0.5,\"\",'2011 Survey responses'!CV21)","v":1},{"$f":"IF(SUM('2011 Survey responses'!CW21:DL21)<1,\"\",(AVERAGE('2011 Survey responses'!CW21:DL21)))","v":3.875},{"$f":"IF(SUM('2011 Survey responses'!CW21:CZ21)<1,\"\",(AVERAGE('2011 Survey responses'!CW21:CZ21)))","v":4},{"$f":"IF(SUM('2011 Survey responses'!DA21:DD21)<1,\"\",(AVERAGE('2011 Survey responses'!DA21:DD21)))","v":4},{"$f":"IF(SUM('2011 Survey responses'!DE21:DH21)<1,\"\",(AVERAGE('2011 Survey responses'!DE21:DH21)))","v":4},{"$f":"IF(SUM('2011 Survey responses'!DI21:DL21)<1,\"\",(AVERAGE('2011 Survey responses'!DI21:DL21)))","v":3.5},{"$f":"IF(('2011 Survey responses'!CW21+'2011 Survey responses'!DA21+'2011 Survey responses'!DE21+'2011 Survey responses'!DI21)<1,\"\",AVERAGE('2011 Survey responses'!CW21,'2011 Survey responses'!DA21,'2011 Survey responses'!DE21,'2011 Survey responses'!DI21))","v":3.75},{"$f":"IF(('2011 Survey responses'!CX21+'2011 Survey responses'!DB21+'2011 Survey responses'!DF21+'2011 Survey responses'!DJ21)<1,\"\",AVERAGE('2011 Survey responses'!CX21,'2011 Survey responses'!DB21,'2011 Survey responses'!DF21,'2011 Survey responses'!DJ21))","v":3.75},{"$f":"IF(('2011 Survey responses'!CY21+'2011 Survey responses'!DC21+'2011 Survey responses'!DG21+'2011 Survey responses'!DK21)<1,\"\",AVERAGE('2011 Survey responses'!CY21,'2011 Survey responses'!DC21,'2011 Survey responses'!DG21,'2011 Survey responses'!DK21))","v":4},{"$f":"IF(('2011 Survey responses'!CZ21+'2011 Survey responses'!DD21+'2011 Survey responses'!DH21+'2011 Survey responses'!DL21)<1,\"\",AVERAGE('2011 Survey responses'!CZ21,'2011 Survey responses'!DD21,'2011 Survey responses'!DH21,'2011 Survey responses'!DL21))","v":4},{"$f":"IF('2011 Survey responses'!CW21<0.5,\"\",'2011 Survey responses'!CW21)","v":4},{"$f":"IF('2011 Survey responses'!CX21<0.5,\"\",'2011 Survey responses'!CX21)","v":4},{"$f":"IF('2011 Survey responses'!CY21<0.5,\"\",'2011 Survey responses'!CY21)","v":4},{"$f":"IF('2011 Survey responses'!CZ21<0.5,\"\",'2011 Survey responses'!CZ21)","v":4},{"$f":"IF('2011 Survey responses'!DA21<0.5,\"\",'2011 Survey responses'!DA21)","v":4},{"$f":"IF('2011 Survey responses'!DB21<0.5,\"\",'2011 Survey responses'!DB21)","v":4},{"$f":"IF('2011 Survey responses'!DC21<0.5,\"\",'2011 Survey responses'!DC21)","v":4},{"$f":"IF('2011 Survey responses'!DD21<0.5,\"\",'2011 Survey responses'!DD21)","v":4},{"$f":"IF('2011 Survey responses'!DE21<0.5,\"\",'2011 Survey responses'!DE21)","v":4},{"$f":"IF('2011 Survey responses'!DF21<0.5,\"\",'2011 Survey responses'!DF21)","v":4},{"$f":"IF('2011 Survey responses'!DG21<0.5,\"\",'2011 Survey responses'!DG21)","v":4},{"$f":"IF('2011 Survey responses'!DH21<0.5,\"\",'2011 Survey responses'!DH21)","v":4},{"$f":"IF('2011 Survey responses'!DI21<0.5,\"\",'2011 Survey responses'!DI21)","v":3},{"$f":"IF('2011 Survey responses'!DJ21<0.5,\"\",'2011 Survey responses'!DJ21)","v":3},{"$f":"IF('2011 Survey responses'!DK21<0.5,\"\",'2011 Survey responses'!DK21)","v":4},{"$f":"IF('2011 Survey responses'!DL21<0.5,\"\",'2011 Survey responses'!DL21)","v":4},{"$f":"IF('2011 Survey responses'!DU21=4,4,IF('2011 Survey responses'!DU21=5,4,\"\"))","v":4},{"$f":"IF('2011 Survey responses'!DV21=4,3,IF('2011 Survey responses'!DV21=5,3,\"\"))","v":3},2,{"$f":"IF(CQ21=2,CQ21,IF(CO21=4,CO21,IF(CP21=3,CP21,IF('2011 Survey responses'!GT21=1,1,\"\"))))","v":2},{"$f":"IF('2011 Survey responses'!DO21<0.5,\"\",'2011 Survey responses'!DO21)","v":5},{"$f":"IF('2011 Survey responses'!DP21<0.5,\"\",'2011 Survey responses'!DP21)","v":4},{"$f":"IF('2011 Survey responses'!DQ21<0.5,\"\",'2011 Survey responses'!DQ21)","v":4},{"$f":"IF('2011 Survey responses'!DR21<0.5,\"\",'2011 Survey responses'!DR21)","v":4},{"$f":"IF('2011 Survey responses'!DS21<0.5,\"\",'2011 Survey responses'!DS21)","v":5},{"$f":"IF('2011 Survey responses'!DT21<0.5,\"\",'2011 Survey responses'!DT21)","v":5},{"$f":"IF('2011 Survey responses'!DU21<0.5,\"\",'2011 Survey responses'!DU21)","v":5},{"$f":"IF('2011 Survey responses'!DV21<0.5,\"\",'2011 Survey responses'!DV21)","v":5},{"$f":"IF('2011 Survey responses'!DW21<0.5,\"\",'2011 Survey responses'!DW21)","v":5},{"$f":"IF('2011 Survey responses'!DX21<0.5,\"\",'2011 Survey responses'!DX21)","v":5},{"$f":"IF('2011 Survey responses'!DY21<0.5,\"\",'2011 Survey responses'!DY21)","v":5},{"$f":"IF('2011 Survey responses'!DZ21<0.5,\"\",'2011 Survey responses'!DZ21)","v":5},{"$f":"IF('2011 Survey responses'!EA21<0.5,\"\",'2011 Survey responses'!EA21)","v":2},{"$f":"IF('2011 Survey responses'!EB21<0.5,\"\",'2011 Survey responses'!EB21)","v":2},{"$f":"IF('2011 Survey responses'!EC21<0.5,\"\",'2011 Survey responses'!EC21)","v":2},{"$f":"IF('2011 Survey responses'!ED21<0.5,\"\",'2011 Survey responses'!ED21)","v":2},{"$f":"IF('2011 Survey responses'!EE21<0.5,\"\",'2011 Survey responses'!EE21)","v":2},{"$f":"IF('2011 Survey responses'!EF21<0.5,\"\",'2011 Survey responses'!EF21)","v":2},{"$f":"IF('2011 Survey responses'!EG21<0.5,\"\",'2011 Survey responses'!EG21)","v":3},{"$f":"IF('2011 Survey responses'!EH21<0.5,\"\",'2011 Survey responses'!EH21)","v":4},{"$f":"IF('2011 Survey responses'!EI21<0.5,\"\",'2011 Survey responses'!EI21)","v":4},{"$f":"IF('2011 Survey responses'!EJ21<0.5,\"\",'2011 Survey responses'!EJ21)","v":4},{"$f":"IF('2011 Survey responses'!EK21<0.5,\"\",'2011 Survey responses'!EK21)","v":4},{"$f":"IF('2011 Survey responses'!EL21<0.5,\"\",'2011 Survey responses'!EL21)","v":4},{"$f":"IF('2011 Survey responses'!EM21<0.5,\"\",'2011 Survey responses'!EM21)","v":4},{"$f":"IF('2011 Survey responses'!EN21<0.5,\"\",'2011 Survey responses'!EN21)","v":4},{"$f":"IF('2011 Survey responses'!EO21<0.5,\"\",'2011 Survey responses'!EO21)","v":4},{"$f":"IF('2011 Survey responses'!EP21<0.5,\"\",'2011 Survey responses'!EP21)","v":4},{"$f":"IF(('2011 Survey responses'!EW21+'2011 Survey responses'!EX21)>=2,AVERAGE('2011 Survey responses'!EW21,'2011 Survey responses'!EY21),\"\")","v":5},{"$f":"IF('2011 Survey responses'!EX21<0.5,\"\",'2011 Survey responses'!EX21)","v":5},{"$f":"IF('2011 Survey responses'!EZ21<0.5,\"\",'2011 Survey responses'!EZ21)","v":5},{"$f":"IF('2011 Survey responses'!FB21<0.5,\"\",'2011 Survey responses'!FB21)","v":5},{"$f":"IF('2011 Survey responses'!FD21<0.5,\"\",'2011 Survey responses'!FD21)","v":5},{"$f":"IF('2011 Survey responses'!FC21<0.5,\"\",'2011 Survey responses'!FC21)","v":5},{"$f":"IF(('2011 Survey responses'!EM21+'2011 Survey responses'!EN21)>=2,AVERAGE('2011 Survey responses'!EM21,'2011 Survey responses'!EN21),\"\")","v":4},{"$f":"IF('2011 Survey responses'!ES21<0.5,\"\",'2011 Survey responses'!ES21)","v":5},{"$f":"IF(('2011 Survey responses'!ET21+'2011 Survey responses'!EU21)>=2,AVERAGE('2011 Survey responses'!ET21,'2011 Survey responses'!EU21),\"\")","v":""},{"$f":"IF('2011 Survey responses'!EV21<0.5,\"\",'2011 Survey responses'!EV21)","v":5},{"$f":"IF('2011 Survey responses'!FA21<0.5,\"\",'2011 Survey responses'!FA21)","v":5},{"$f":"IF('2011 Survey responses'!ER21<0.5,\"\",'2011 Survey responses'!ER21)","v":5},{"$f":"IF(('2011 Survey responses'!EO21+'2011 Survey responses'!EP21)>=2,AVERAGE('2011 Survey responses'!EO21,'2011 Survey responses'!EP21),\"\")","v":4},{"$f":"IF('2011 Survey responses'!EQ21<0.5,\"\",'2011 Survey responses'!EQ21)","v":4},{"$f":"IF('2011 Survey responses'!ET21<0.5,\"\",'2011 Survey responses'!ET21)","v":""},{"$f":"IF('2011 Survey responses'!EU21<0.5,\"\",'2011 Survey responses'!EU21)","v":""},{"$f":"IF('2011 Survey responses'!EW21<0.5,\"\",'2011 Survey responses'!EW21)","v":5},{"$f":"IF('2011 Survey responses'!EY21<0.5,\"\",'2011 Survey responses'!EY21)","v":5},{"$f":"IF('2011 Survey responses'!FU21<0.5,\"\",'2011 Survey responses'!FU21)","v":4},{"$f":"IF(('2011 Survey responses'!FL21+'2011 Survey responses'!FM21)>=2,AVERAGE('2011 Survey responses'!FL21,'2011 Survey responses'!FM21),\"\")","v":4},{"$f":"IF(('2011 Survey responses'!FO21+'2011 Survey responses'!FQ21)>=2,AVERAGE('2011 Survey responses'!FO21,'2011 Survey responses'!FQ21),\"\")","v":4},{"$f":"IF('2011 Survey responses'!FJ21<0.5,\"\",'2011 Survey responses'!FJ21)","v":4},{"$f":"IF('2011 Survey responses'!FT21<0.5,\"\",'2011 Survey responses'!FT21)","v":4},{"$f":"IF('2011 Survey responses'!FR21<0.5,\"\",'2011 Survey responses'!FR21)","v":4},{"$f":"IF('2011 Survey responses'!FK21<0.5,\"\",'2011 Survey responses'!FK21)","v":4},{"$f":"IF('2011 Survey responses'!FP21<0.5,\"\",'2011 Survey responses'!FP21)","v":4},{"$f":"IF('2011 Survey responses'!FN21<0.5,\"\",'2011 Survey responses'!FN21)","v":4},{"$f":"IF(('2011 Survey responses'!FE21+'2011 Survey responses'!FF21)>=2,AVERAGE('2011 Survey responses'!FE21,'2011 Survey responses'!FF21),\"\")","v":4},{"$f":"IF('2011 Survey responses'!FS21<0.5,\"\",'2011 Survey responses'!FS21)","v":4},{"$f":"IF('2011 Survey responses'!FV21<0.5,\"\",'2011 Survey responses'!FV21)","v":4},{"$f":"IF(('2011 Survey responses'!FG21+'2011 Survey responses'!FH21)>=2,AVERAGE('2011 Survey responses'!FG21,'2011 Survey responses'!FH21),\"\")","v":4},{"$f":"IF('2011 Survey responses'!FI21<0.5,\"\",'2011 Survey responses'!FI21)","v":4},{"$f":"IF('2011 Survey responses'!FE21<0.5,\"\",'2011 Survey responses'!FE21)","v":4},{"$f":"IF('2011 Survey responses'!FF21<0.5,\"\",'2011 Survey responses'!FF21)","v":4},{"$f":"IF('2011 Survey responses'!FG21<0.5,\"\",'2011 Survey responses'!FG21)","v":4},{"$f":"IF('2011 Survey responses'!FH21<0.5,\"\",'2011 Survey responses'!FH21)","v":4},{"$f":"IF('2011 Survey responses'!FL21<0.5,\"\",'2011 Survey responses'!FL21)","v":4},{"$f":"IF('2011 Survey responses'!FM21<0.5,\"\",'2011 Survey responses'!FM21)","v":4},{"$f":"IF('2011 Survey responses'!FO21<0.5,\"\",'2011 Survey responses'!FO21)","v":4},{"$f":"IF('2011 Survey responses'!FQ21<0.5,\"\",'2011 Survey responses'!FQ21)","v":4}]
["Bhutan",{"$f":"IF(SUM(F22)<1,\"\",AVERAGEIF('2011 Survey responses'!B22:CP22,\">1\"))","v":2.9555555555555557},{"$f":"IF(SUM(F22)<1,\"\",AVERAGEIF('2011 Survey responses'!B22:AO22,\">1\"))","v":2.8648648648648649},{"$f":"IF(SUM(F22)<1,\"\",AVERAGEIF('2011 Survey responses'!B22:BV22,\">1\"))","v":2.9714285714285715},{"$f":"IF(SUM(F22)<1,\"\",AVERAGEIF('2011 Survey responses'!V22:BV22,\">1\"))","v":3},{"$f":"IF(SUM('2011 Survey responses'!B22:U22)<1,\"\",(AVERAGEIFS('2011 Survey responses'!B22:U22,'2011 Survey responses'!B22:U22,\">1\")))","v":2.8888888888888888},{"$f":"IF(SUM('2011 Survey responses'!B22:H22)<1,\"\",(AVERAGEIFS('2011 Survey responses'!B22:H22,'2011 Survey responses'!B22:H22,\">1\")))","v":2.5714285714285716},{"$f":"IF(SUM('2011 Survey responses'!I22:S22)<1,\"\",(AVERAGEIFS('2011 Survey responses'!I22:S22,'2011 Survey responses'!I22:S22,\">1\")))","v":3.0909090909090908},{"$f":"IF(SUM('2011 Survey responses'!T22:U22)<2.1,\"\",(AVERAGEIFS('2011 Survey responses'!T22:U22,'2011 Survey responses'!T22:U22,\">1\")))","v":""},{"$f":"IF(SUM('2011 Survey responses'!B22:C22)<2.1,\"\",((SUMIF('2011 Survey responses'!B22:C22,\">1\")+SUMIF('2011 Survey responses'!F22,\">1\"))/(COUNTIF('2011 Survey responses'!B22:C22,\">1\")+COUNTIF('2011 Survey responses'!F22,\">1\"))))","v":2.3333333333333335},{"$f":"IF(SUM('2011 Survey responses'!D22:E22)<2.1,\"\",(AVERAGEIFS('2011 Survey responses'!D22:E22,'2011 Survey responses'!D22:E22,\">1\")))","v":2.5},{"$f":"IF(('2011 Survey responses'!B22+'2011 Survey responses'!D22)<2.1,\"\",((SUMIF('2011 Survey responses'!B22,\">1\")+SUMIF('2011 Survey responses'!D22,\">1\")+SUMIF('2011 Survey responses'!F22,\">1\")+SUMIF('2011 Survey responses'!K22,\">1\"))/(COUNTIF('2011 Survey responses'!B22,\">1\")+COUNTIF('2011 Survey responses'!D22,\">1\")+COUNTIF('2011 Survey responses'!F22,\">1\")+COUNTIF('2011 Survey responses'!K22,\">1\"))))","v":3},{"$f":"IF(SUM('2011 Survey responses'!G22:H22)<2.1,\"\",(AVERAGEIFS('2011 Survey responses'!G22:H22,'2011 Survey responses'!G22:H22,\">1\")))","v":3},{"$f":"IF(SUM('2011 Survey responses'!F22:G22)<1.5,\"\",MAX('2011 Survey responses'!F22,'2011 Survey responses'!G22))","v":3},{"$f":"IF(SUM('2011 Survey responses'!G22:H22)<1,\"\",MAX('2011 Survey responses'!G22,'2011 Survey responses'!H22))","v":3},{"$f":"IF(SUM('2011 Survey responses'!I22:L22)<4.1,\"\",(AVERAGEIFS('2011 Survey responses'!I22:L22,'2011 Survey responses'!I22:L22,\">1\")))","v":3.25},{"$f":"IF(SUM('2011 Survey responses'!M22:S22)<4.1,\"\",(AVERAGEIFS('2011 Survey responses'!M22:S22,'2011 Survey responses'!M22:S22,\">1\")))","v":3},{"$f":"IF(SUM('2011 Survey responses'!T22:U22)<2.1,\"\",(AVERAGEIFS('2011 Survey responses'!T22:U22,'2011 Survey responses'!T22:U22,\">1\")))","v":""},{"$f":"IF(SUM('2011 Survey responses'!V22:AO22)<1,\"\",(AVERAGEIFS('2011 Survey responses'!V22:AO22,'2011 Survey responses'!V22:AO22,\">1\")))","v":2.8421052631578947},{"$f":"IF(SUM('2011 Survey responses'!V22:AA22)<1,\"\",(AVERAGEIFS('2011 Survey responses'!V22:AA22,'2011 Survey responses'!V22:AA22,\">1\")))","v":2.4},{"$f":"IF(SUM('2011 Survey responses'!AB22:AH22)<1,\"\",(AVERAGEIFS('2011 Survey responses'!AB22:AH22,'2011 Survey responses'!AB22:AH22,\">1\")))","v":3},{"$f":"IF(SUM('2011 Survey responses'!AI22:AO22)<1,\"\",(AVERAGEIFS('2011 Survey responses'!AI22:AO22,'2011 Survey responses'!AI22:AO22,\">1\")))","v":3},{"$f":"IF(('2011 Survey responses'!Y22+'2011 Survey responses'!AI22+'2011 Survey responses'!AK22)<3.1,\"\",((SUMIF('2011 Survey responses'!Y22,\">1\")+SUMIF('2011 Survey responses'!AI22,\">1\")+SUMIF('2011 Survey responses'!AK22,\">1\")+SUMIF('2011 Survey responses'!AM22,\">1\"))/(COUNTIF('2011 Survey responses'!Y22,\">1\")+COUNTIF('2011 Survey responses'!AI22,\">1\")+COUNTIF('2011 Survey responses'!AK22,\">1\")+COUNTIF('2011 Survey responses'!AM22,\">1\"))))","v":2.75},{"$f":"IF(('2011 Survey responses'!W22)<1.1,\"\",('2011 Survey responses'!W22))","v":2},{"$f":"IF(('2011 Survey responses'!Y22)<1.1,\"\",('2011 Survey responses'!Y22))","v":2},{"$f":"IF(('2011 Survey responses'!Z22)<1.1,\"\",('2011 Survey responses'!Z22))","v":""},{"$f":"IF(('2011 Survey responses'!V22+'2011 Survey responses'!X22+'2011 Survey responses'!AA22)<3.1,\"\",((SUMIF('2011 Survey responses'!V22,\">1\")+SUMIF('2011 Survey responses'!X22,\">1\")+SUMIF('2011 Survey responses'!AA22,\">1\"))/(COUNTIF('2011 Survey responses'!V22,\">1\")+COUNTIF('2011 Survey responses'!X22,\">1\")+COUNTIF('2011 Survey responses'!AA22,\">1\"))))","v":2.6666666666666665},{"$f":"IF(('2011 Survey responses'!V22+'2011 Survey responses'!Y22+'2011 Survey responses'!AA22)<3.1,\"\",((SUMIF('2011 Survey responses'!V22,\">1\")+SUMIF('2011 Survey responses'!Y22,\">1\")+SUMIF('2011 Survey responses'!AA22,\">1\"))/(COUNTIF('2011 Survey responses'!V22,\">1\")+COUNTIF('2011 Survey responses'!Y22,\">1\")+COUNTIF('2011 Survey responses'!AA22,\">1\"))))","v":2},{"$f":"IF(SUM('2011 Survey responses'!AB22:AH22)<1,\"\",(AVERAGEIFS('2011 Survey responses'!AB22:AH22,'2011 Survey responses'!AB22:AH22,\">1\")))","v":3},{"$f":"IF(SUM('2011 Survey responses'!AI22:AO22)<7.1,\"\",(AVERAGEIFS('2011 Survey responses'!AI22:AO22,'2011 Survey responses'!AI22:AO22,\">1\")))","v":3},{"$f":"IF(('2011 Survey responses'!AH22)<1.1,\"\",('2011 Survey responses'!AH22))","v":3},{"$f":"IF(SUM('2011 Survey responses'!AP22:BV22)<1,\"\",(AVERAGEIFS('2011 Survey responses'!AP22:BV22,'2011 Survey responses'!AP22:BV22,\">1\")))","v":3.0909090909090908},{"$f":"IF(SUM('2011 Survey responses'!AP22:AS22)<4.1,\"\",(AVERAGEIFS('2011 Survey responses'!AP22:AS22,'2011 Survey responses'!AP22:AS22,\">1\")))","v":3},{"$f":"IF(SUM('2011 Survey responses'!AT22:BF22)<1,\"\",(AVERAGEIFS('2011 Survey responses'!AT22:BF22,'2011 Survey responses'!AT22:BF22,\">1\")))","v":3},{"$f":"IF(SUM('2011 Survey responses'!BG22:BO22)<1,\"\",(AVERAGEIFS('2011 Survey responses'!BG22:BO22,'2011 Survey responses'!BG22:BO22,\">1\")))","v":3.2222222222222223},{"$f":"IF(SUM('2011 Survey responses'!BP22:BS22)<1,\"\",(AVERAGEIFS('2011 Survey responses'!BP22:BS22,'2011 Survey responses'!BP22:BS22,\">1\")))","v":3.25},{"$f":"IF(SUM('2011 Survey responses'!BT22:BV22)<3.1,\"\",(AVERAGEIFS('2011 Survey responses'!BT22:BV22,'2011 Survey responses'!BT22:BV22,\">1\")))","v":3},{"$f":"IF(('2011 Survey responses'!AQ22+'2011 Survey responses'!AR22+'2011 Survey responses'!BG22)<3.1,\"\",((SUMIF('2011 Survey responses'!AQ22,\">1\")+SUMIF('2011 Survey responses'!AR22,\">1\")+SUMIF('2011 Survey responses'!BG22,\">1\"))/(COUNTIF('2011 Survey responses'!AQ22,\">1\")+COUNTIF('2011 Survey responses'!AR22,\">1\")+COUNTIF('2011 Survey responses'!BG22,\">1\"))))","v":3},{"$f":"IF(SUM('2011 Survey responses'!AP22:AS22)<4.1,\"\",(AVERAGEIFS('2011 Survey responses'!AP22:AS22,'2011 Survey responses'!AP22:AS22,\">1\")))","v":3},{"$f":"IF(('2011 Survey responses'!AU22+'2011 Survey responses'!AX22+'2011 Survey responses'!BA22+'2011 Survey responses'!BC22+'2011 Survey responses'!BD22)<5.1,\"\",(SUMIF('2011 Survey responses'!AU22,\">1\")+SUMIF('2011 Survey responses'!AX22,\">1\")+SUMIF('2011 Survey responses'!BA22,\">1\")+SUMIF('2011 Survey responses'!BC22,\">1\")+SUMIF('2011 Survey responses'!BD22,\">1\"))/(COUNTIF('2011 Survey responses'!AU22,\">1\")+COUNTIF('2011 Survey responses'!AX22,\">1\")+COUNTIF('2011 Survey responses'!BA22,\">1\")+COUNTIF('2011 Survey responses'!BC22,\">1\")+COUNTIF('2011 Survey responses'!BD22,\">1\")))","v":3.2},{"$f":"IF(('2011 Survey responses'!AT22)<1.1,\"\",('2011 Survey responses'!AT22))","v":3},{"$f":"IF(SUM('2011 Survey responses'!AV22:AW22)<2.1,\"\",(AVERAGEIFS('2011 Survey responses'!AV22:AW22,'2011 Survey responses'!AV22:AW22,\">1\")))","v":2.5},{"$f":"IF(('2011 Survey responses'!AW22+'2011 Survey responses'!AY22)<2.1,\"\",(SUMIF('2011 Survey responses'!AW22,\">1\")+SUMIF('2011 Survey responses'!AY22,\">1\"))/(COUNTIF('2011 Survey responses'!AW22,\">1\")+COUNTIF('2011 Survey responses'!AY22,\">1\")))","v":2.5},{"$f":"IF(('2011 Survey responses'!AZ22)<1.1,\"\",('2011 Survey responses'!AZ22))","v":3},3,3,3,3,{"$f":"IF(('2011 Survey responses'!BE22)<1.1,\"\",('2011 Survey responses'!BE22))","v":3},{"$f":"IF(('2011 Survey responses'!AY22+'2011 Survey responses'!BB22+'2011 Survey responses'!BF22)<3.1,\"\",(SUMIF('2011 Survey responses'!AY22,\">1\")+SUMIF('2011 Survey responses'!BB22,\">1\")+SUMIF('2011 Survey responses'!BF22,\">1\"))/(COUNTIF('2011 Survey responses'!AY22,\">1\")+COUNTIF('2011 Survey responses'!BB22,\">1\")+COUNTIF('2011 Survey responses'!BF22,\">1\")))","v":3},3.2361111111111112,{"$f":"IF(SUM('2011 Survey responses'!BT22:BV22)<3.1,\"\",(AVERAGEIFS('2011 Survey responses'!BT22:BV22,'2011 Survey responses'!BT22:BV22,\">1\")))","v":3},{"$f":"IF(SUM('2011 Survey responses'!BW22:CP22)<1,\"\",(AVERAGEIFS('2011 Survey responses'!BW22:CP22,'2011 Survey responses'!BW22:CP22,\">1\")))","v":2.9},{"$f":"IF(SUM('2011 Survey responses'!BW22:CF22)<1,\"\",(AVERAGEIFS('2011 Survey responses'!BW22:CF22,'2011 Survey responses'!BW22:CF22,\">1\")))","v":2.9},{"$f":"IF(SUM('2011 Survey responses'!CG22:CP22)<1,\"\",(AVERAGEIFS('2011 Survey responses'!CG22:CP22,'2011 Survey responses'!CG22:CP22,\">1\")))","v":2.9},{"$f":"IF(SUM('2011 Survey responses'!BX22:CF22)<1,\"\",(AVERAGEIFS('2011 Survey responses'!BX22:CF22,'2011 Survey responses'!BX22:CF22,\">1\")))","v":3},{"$f":"IF(SUM('2011 Survey responses'!CH22:CP22)<1,\"\",(AVERAGEIFS('2011 Survey responses'!CH22:CP22,'2011 Survey responses'!CH22:CP22,\">1\")))","v":3},{"$f":"IF(SUM('2011 Survey responses'!BW22:CP22)<1,\"\",(AVERAGEIFS('2011 Survey responses'!BW22:CP22,'2011 Survey responses'!BW22:CP22,\">1\")))","v":2.9},{"$f":"IF(('2011 Survey responses'!BW22+'2011 Survey responses'!CG22)<2.1,\"\",(SUMIF('2011 Survey responses'!BW22,\">1\")+SUMIF('2011 Survey responses'!CG22,\">1\"))/(COUNTIF('2011 Survey responses'!BW22,\">1\")+COUNTIF('2011 Survey responses'!CG22,\">1\")))","v":2},{"$f":"IF(('2011 Survey responses'!BX22+'2011 Survey responses'!CH22)<2.1,\"\",(SUMIF('2011 Survey responses'!BX22,\">1\")+SUMIF('2011 Survey responses'!CH22,\">1\"))/(COUNTIF('2011 Survey responses'!BX22,\">1\")+COUNTIF('2011 Survey responses'!CH22,\">1\")))","v":2.5},{"$f":"IF(('2011 Survey responses'!BY22+'2011 Survey responses'!CI22)<2.1,\"\",(SUMIF('2011 Survey responses'!BY22,\">1\")+SUMIF('2011 Survey responses'!CI22,\">1\"))/(COUNTIF('2011 Survey responses'!BY22,\">1\")+COUNTIF('2011 Survey responses'!CI22,\">1\")))","v":3},{"$f":"IF('2011 Survey responses'!CQ22<0.5,\"\",'2011 Survey responses'!CQ22)","v":1},{"$f":"IF('2011 Survey responses'!CR22<0.5,\"\",'2011 Survey responses'!CR22)","v":3},{"$f":"IF('2011 Survey responses'!CS22<0.5,\"\",'2011 Survey responses'!CS22)","v":2},{"$f":"IF('2011 Survey responses'!CT22<0.5,\"\",'2011 Survey responses'!CT22)","v":2},{"$f":"IF('2011 Survey responses'!CU22<0.5,\"\",'2011 Survey responses'!CU22)","v":4},{"$f":"IF('2011 Survey responses'!CV22<0.5,\"\",'2011 Survey responses'!CV22)","v":2},{"$f":"IF(SUM('2011 Survey responses'!CW22:DL22)<1,\"\",(AVERAGE('2011 Survey responses'!CW22:DL22)))","v":""},{"$f":"IF(SUM('2011 Survey responses'!CW22:CZ22)<1,\"\",(AVERAGE('2011 Survey responses'!CW22:CZ22)))","v":""},{"$f":"IF(SUM('2011 Survey responses'!DA22:DD22)<1,\"\",(AVERAGE('2011 Survey responses'!DA22:DD22)))","v":""},{"$f":"IF(SUM('2011 Survey responses'!DE22:DH22)<1,\"\",(AVERAGE('2011 Survey responses'!DE22:DH22)))","v":""},{"$f":"IF(SUM('2011 Survey responses'!DI22:DL22)<1,\"\",(AVERAGE('2011 Survey responses'!DI22:DL22)))","v":""},{"$f":"IF(('2011 Survey responses'!CW22+'2011 Survey responses'!DA22+'2011 Survey responses'!DE22+'2011 Survey responses'!DI22)<1,\"\",AVERAGE('2011 Survey responses'!CW22,'2011 Survey responses'!DA22,'2011 Survey responses'!DE22,'2011 Survey responses'!DI22))","v":""},{"$f":"IF(('2011 Survey responses'!CX22+'2011 Survey responses'!DB22+'2011 Survey responses'!DF22+'2011 Survey responses'!DJ22)<1,\"\",AVERAGE('2011 Survey responses'!CX22,'2011 Survey responses'!DB22,'2011 Survey responses'!DF22,'2011 Survey responses'!DJ22))","v":""},{"$f":"IF(('2011 Survey responses'!CY22+'2011 Survey responses'!DC22+'2011 Survey responses'!DG22+'2011 Survey responses'!DK22)<1,\"\",AVERAGE('2011 Survey responses'!CY22,'2011 Survey responses'!DC22,'2011 Survey responses'!DG22,'2011 Survey responses'!DK22))","v":""},{"$f":"IF(('2011 Survey responses'!CZ22+'2011 Survey responses'!DD22+'2011 Survey responses'!DH22+'2011 Survey responses'!DL22)<1,\"\",AVERAGE('2011 Survey responses'!CZ22,'2011 Survey responses'!DD22,'2011 Survey responses'!DH22,'2011 Survey responses'!DL22))","v":""},{"$f":"IF('2011 Survey responses'!CW22<0.5,\"\",'2011 Survey responses'!CW22)","v":""},{"$f":"IF('2011 Survey responses'!CX22<0.5,\"\",'2011 Survey responses'!CX22)","v":""},{"$f":"IF('2011 Survey responses'!CY22<0.5,\"\",'2011 Survey responses'!CY22)","v":""},{"$f":"IF('2011 Survey responses'!CZ22<0.5,\"\",'2011 Survey responses'!CZ22)","v":""},{"$f":"IF('2011 Survey responses'!DA22<0.5,\"\",'2011 Survey responses'!DA22)","v":""},{"$f":"IF('2011 Survey responses'!DB22<0.5,\"\",'2011 Survey responses'!DB22)","v":""},{"$f":"IF('2011 Survey responses'!DC22<0.5,\"\",'2011 Survey responses'!DC22)","v":""},{"$f":"IF('2011 Survey responses'!DD22<0.5,\"\",'2011 Survey responses'!DD22)","v":""},{"$f":"IF('2011 Survey responses'!DE22<0.5,\"\",'2011 Survey responses'!DE22)","v":""},{"$f":"IF('2011 Survey responses'!DF22<0.5,\"\",'2011 Survey responses'!DF22)","v":""},{"$f":"IF('2011 Survey responses'!DG22<0.5,\"\",'2011 Survey responses'!DG22)","v":""},{"$f":"IF('2011 Survey responses'!DH22<0.5,\"\",'2011 Survey responses'!DH22)","v":""},{"$f":"IF('2011 Survey responses'!DI22<0.5,\"\",'2011 Survey responses'!DI22)","v":""},{"$f":"IF('2011 Survey responses'!DJ22<0.5,\"\",'2011 Survey responses'!DJ22)","v":""},{"$f":"IF('2011 Survey responses'!DK22<0.5,\"\",'2011 Survey responses'!DK22)","v":""},{"$f":"IF('2011 Survey responses'!DL22<0.5,\"\",'2011 Survey responses'!DL22)","v":""},{"$f":"IF('2011 Survey responses'!DU22=4,4,IF('2011 Survey responses'!DU22=5,4,\"\"))","v":4},{"$f":"IF('2011 Survey responses'!DV22=4,3,IF('2011 Survey responses'!DV22=5,3,\"\"))","v":3},2,{"$f":"IF(CQ22=2,CQ22,IF(CO22=4,CO22,IF(CP22=3,CP22,IF('2011 Survey responses'!GT22=1,1,\"\"))))","v":2},{"$f":"IF('2011 Survey responses'!DO22<0.5,\"\",'2011 Survey responses'!DO22)","v":4},{"$f":"IF('2011 Survey responses'!DP22<0.5,\"\",'2011 Survey responses'!DP22)","v":4},{"$f":"IF('2011 Survey responses'!DQ22<0.5,\"\",'2011 Survey responses'!DQ22)","v":3},{"$f":"IF('2011 Survey responses'!DR22<0.5,\"\",'2011 Survey responses'!DR22)","v":4},{"$f":"IF('2011 Survey responses'!DS22<0.5,\"\",'2011 Survey responses'!DS22)","v":5},{"$f":"IF('2011 Survey responses'!DT22<0.5,\"\",'2011 Survey responses'!DT22)","v":4},{"$f":"IF('2011 Survey responses'!DU22<0.5,\"\",'2011 Survey responses'!DU22)","v":4},{"$f":"IF('2011 Survey responses'!DV22<0.5,\"\",'2011 Survey responses'!DV22)","v":4},{"$f":"IF('2011 Survey responses'!DW22<0.5,\"\",'2011 Survey responses'!DW22)","v":3},{"$f":"IF('2011 Survey responses'!DX22<0.5,\"\",'2011 Survey responses'!DX22)","v":1},{"$f":"IF('2011 Survey responses'!DY22<0.5,\"\",'2011 Survey responses'!DY22)","v":4},{"$f":"IF('2011 Survey responses'!DZ22<0.5,\"\",'2011 Survey responses'!DZ22)","v":1},{"$f":"IF('2011 Survey responses'!EA22<0.5,\"\",'2011 Survey responses'!EA22)","v":3},{"$f":"IF('2011 Survey responses'!EB22<0.5,\"\",'2011 Survey responses'!EB22)","v":4},{"$f":"IF('2011 Survey responses'!EC22<0.5,\"\",'2011 Survey responses'!EC22)","v":3},{"$f":"IF('2011 Survey responses'!ED22<0.5,\"\",'2011 Survey responses'!ED22)","v":5},{"$f":"IF('2011 Survey responses'!EE22<0.5,\"\",'2011 Survey responses'!EE22)","v":5},{"$f":"IF('2011 Survey responses'!EF22<0.5,\"\",'2011 Survey responses'!EF22)","v":4},{"$f":"IF('2011 Survey responses'!EG22<0.5,\"\",'2011 Survey responses'!EG22)","v":4},{"$f":"IF('2011 Survey responses'!EH22<0.5,\"\",'2011 Survey responses'!EH22)","v":4},{"$f":"IF('2011 Survey responses'!EI22<0.5,\"\",'2011 Survey responses'!EI22)","v":1},{"$f":"IF('2011 Survey responses'!EJ22<0.5,\"\",'2011 Survey responses'!EJ22)","v":4},{"$f":"IF('2011 Survey responses'!EK22<0.5,\"\",'2011 Survey responses'!EK22)","v":4},{"$f":"IF('2011 Survey responses'!EL22<0.5,\"\",'2011 Survey responses'!EL22)","v":1},{"$f":"IF('2011 Survey responses'!EM22<0.5,\"\",'2011 Survey responses'!EM22)","v":4},{"$f":"IF('2011 Survey responses'!EN22<0.5,\"\",'2011 Survey responses'!EN22)","v":4},{"$f":"IF('2011 Survey responses'!EO22<0.5,\"\",'2011 Survey responses'!EO22)","v":4},{"$f":"IF('2011 Survey responses'!EP22<0.5,\"\",'2011 Survey responses'!EP22)","v":4},{"$f":"IF(('2011 Survey responses'!EW22+'2011 Survey responses'!EX22)>=2,AVERAGE('2011 Survey responses'!EW22,'2011 Survey responses'!EY22),\"\")","v":4},{"$f":"IF('2011 Survey responses'!EX22<0.5,\"\",'2011 Survey responses'!EX22)","v":4},{"$f":"IF('2011 Survey responses'!EZ22<0.5,\"\",'2011 Survey responses'!EZ22)","v":3},{"$f":"IF('2011 Survey responses'!FB22<0.5,\"\",'2011 Survey responses'!FB22)","v":4},{"$f":"IF('2011 Survey responses'!FD22<0.5,\"\",'2011 Survey responses'!FD22)","v":4},{"$f":"IF('2011 Survey responses'!FC22<0.5,\"\",'2011 Survey responses'!FC22)","v":4},{"$f":"IF(('2011 Survey responses'!EM22+'2011 Survey responses'!EN22)>=2,AVERAGE('2011 Survey responses'!EM22,'2011 Survey responses'!EN22),\"\")","v":4},{"$f":"IF('2011 Survey responses'!ES22<0.5,\"\",'2011 Survey responses'!ES22)","v":5},{"$f":"IF(('2011 Survey responses'!ET22+'2011 Survey responses'!EU22)>=2,AVERAGE('2011 Survey responses'!ET22,'2011 Survey responses'!EU22),\"\")","v":4.5},{"$f":"IF('2011 Survey responses'!EV22<0.5,\"\",'2011 Survey responses'!EV22)","v":4},{"$f":"IF('2011 Survey responses'!FA22<0.5,\"\",'2011 Survey responses'!FA22)","v":3},{"$f":"IF('2011 Survey responses'!ER22<0.5,\"\",'2011 Survey responses'!ER22)","v":5},{"$f":"IF(('2011 Survey responses'!EO22+'2011 Survey responses'!EP22)>=2,AVERAGE('2011 Survey responses'!EO22,'2011 Survey responses'!EP22),\"\")","v":4},{"$f":"IF('2011 Survey responses'!EQ22<0.5,\"\",'2011 Survey responses'!EQ22)","v":3},{"$f":"IF('2011 Survey responses'!ET22<0.5,\"\",'2011 Survey responses'!ET22)","v":5},{"$f":"IF('2011 Survey responses'!EU22<0.5,\"\",'2011 Survey responses'!EU22)","v":4},{"$f":"IF('2011 Survey responses'!EW22<0.5,\"\",'2011 Survey responses'!EW22)","v":4},{"$f":"IF('2011 Survey responses'!EY22<0.5,\"\",'2011 Survey responses'!EY22)","v":4},{"$f":"IF('2011 Survey responses'!FU22<0.5,\"\",'2011 Survey responses'!FU22)","v":""},{"$f":"IF(('2011 Survey responses'!FL22+'2011 Survey responses'!FM22)>=2,AVERAGE('2011 Survey responses'!FL22,'2011 Survey responses'!FM22),\"\")","v":""},{"$f":"IF(('2011 Survey responses'!FO22+'2011 Survey responses'!FQ22)>=2,AVERAGE('2011 Survey responses'!FO22,'2011 Survey responses'!FQ22),\"\")","v":""},{"$f":"IF('2011 Survey responses'!FJ22<0.5,\"\",'2011 Survey responses'!FJ22)","v":4},{"$f":"IF('2011 Survey responses'!FT22<0.5,\"\",'2011 Survey responses'!FT22)","v":""},{"$f":"IF('2011 Survey responses'!FR22<0.5,\"\",'2011 Survey responses'!FR22)","v":""},{"$f":"IF('2011 Survey responses'!FK22<0.5,\"\",'2011 Survey responses'!FK22)","v":3},{"$f":"IF('2011 Survey responses'!FP22<0.5,\"\",'2011 Survey responses'!FP22)","v":""},{"$f":"IF('2011 Survey responses'!FN22<0.5,\"\",'2011 Survey responses'!FN22)","v":""},{"$f":"IF(('2011 Survey responses'!FE22+'2011 Survey responses'!FF22)>=2,AVERAGE('2011 Survey responses'!FE22,'2011 Survey responses'!FF22),\"\")","v":3.5},{"$f":"IF('2011 Survey responses'!FS22<0.5,\"\",'2011 Survey responses'!FS22)","v":""},{"$f":"IF('2011 Survey responses'!FV22<0.5,\"\",'2011 Survey responses'!FV22)","v":""},{"$f":"IF(('2011 Survey responses'!FG22+'2011 Survey responses'!FH22)>=2,AVERAGE('2011 Survey responses'!FG22,'2011 Survey responses'!FH22),\"\")","v":3},{"$f":"IF('2011 Survey responses'!FI22<0.5,\"\",'2011 Survey responses'!FI22)","v":3},{"$f":"IF('2011 Survey responses'!FE22<0.5,\"\",'2011 Survey responses'!FE22)","v":4},{"$f":"IF('2011 Survey responses'!FF22<0.5,\"\",'2011 Survey responses'!FF22)","v":3},{"$f":"IF('2011 Survey responses'!FG22<0.5,\"\",'2011 Survey responses'!FG22)","v":3},{"$f":"IF('2011 Survey responses'!FH22<0.5,\"\",'2011 Survey responses'!FH22)","v":3},{"$f":"IF('2011 Survey responses'!FL22<0.5,\"\",'2011 Survey responses'!FL22)","v":""},{"$f":"IF('2011 Survey responses'!FM22<0.5,\"\",'2011 Survey responses'!FM22)","v":""},{"$f":"IF('2011 Survey responses'!FO22<0.5,\"\",'2011 Survey responses'!FO22)","v":""},{"$f":"IF('2011 Survey responses'!FQ22<0.5,\"\",'2011 Survey responses'!FQ22)","v":""}]
["Bolivia (Plurinational State of)",{"$f":"IF(SUM(F23)<1,\"\",AVERAGEIF('2011 Survey responses'!B23:CP23,\">1\"))","v":""},{"$f":"IF(SUM(F23)<1,\"\",AVERAGEIF('2011 Survey responses'!B23:AO23,\">1\"))","v":""},{"$f":"IF(SUM(F23)<1,\"\",AVERAGEIF('2011 Survey responses'!B23:BV23,\">1\"))","v":""},{"$f":"IF(SUM(F23)<1,\"\",AVERAGEIF('2011 Survey responses'!V23:BV23,\">1\"))","v":""},{"$f":"IF(SUM('2011 Survey responses'!B23:U23)<1,\"\",(AVERAGEIFS('2011 Survey responses'!B23:U23,'2011 Survey responses'!B23:U23,\">1\")))","v":""},{"$f":"IF(SUM('2011 Survey responses'!B23:H23)<1,\"\",(AVERAGEIFS('2011 Survey responses'!B23:H23,'2011 Survey responses'!B23:H23,\">1\")))","v":""},{"$f":"IF(SUM('2011 Survey responses'!I23:S23)<1,\"\",(AVERAGEIFS('2011 Survey responses'!I23:S23,'2011 Survey responses'!I23:S23,\">1\")))","v":""},{"$f":"IF(SUM('2011 Survey responses'!T23:U23)<2.1,\"\",(AVERAGEIFS('2011 Survey responses'!T23:U23,'2011 Survey responses'!T23:U23,\">1\")))","v":""},{"$f":"IF(SUM('2011 Survey responses'!B23:C23)<2.1,\"\",((SUMIF('2011 Survey responses'!B23:C23,\">1\")+SUMIF('2011 Survey responses'!F23,\">1\"))/(COUNTIF('2011 Survey responses'!B23:C23,\">1\")+COUNTIF('2011 Survey responses'!F23,\">1\"))))","v":""},{"$f":"IF(SUM('2011 Survey responses'!D23:E23)<2.1,\"\",(AVERAGEIFS('2011 Survey responses'!D23:E23,'2011 Survey responses'!D23:E23,\">1\")))","v":""},{"$f":"IF(('2011 Survey responses'!B23+'2011 Survey responses'!D23)<2.1,\"\",((SUMIF('2011 Survey responses'!B23,\">1\")+SUMIF('2011 Survey responses'!D23,\">1\")+SUMIF('2011 Survey responses'!F23,\">1\")+SUMIF('2011 Survey responses'!K23,\">1\"))/(COUNTIF('2011 Survey responses'!B23,\">1\")+COUNTIF('2011 Survey responses'!D23,\">1\")+COUNTIF('2011 Survey responses'!F23,\">1\")+COUNTIF('2011 Survey responses'!K23,\">1\"))))","v":""},{"$f":"IF(SUM('2011 Survey responses'!G23:H23)<2.1,\"\",(AVERAGEIFS('2011 Survey responses'!G23:H23,'2011 Survey responses'!G23:H23,\">1\")))","v":""},{"$f":"IF(SUM('2011 Survey responses'!F23:G23)<1.5,\"\",MAX('2011 Survey responses'!F23,'2011 Survey responses'!G23))","v":""},{"$f":"IF(SUM('2011 Survey responses'!G23:H23)<1,\"\",MAX('2011 Survey responses'!G23,'2011 Survey responses'!H23))","v":""},{"$f":"IF(SUM('2011 Survey responses'!I23:L23)<4.1,\"\",(AVERAGEIFS('2011 Survey responses'!I23:L23,'2011 Survey responses'!I23:L23,\">1\")))","v":""},{"$f":"IF(SUM('2011 Survey responses'!M23:S23)<4.1,\"\",(AVERAGEIFS('2011 Survey responses'!M23:S23,'2011 Survey responses'!M23:S23,\">1\")))","v":""},{"$f":"IF(SUM('2011 Survey responses'!T23:U23)<2.1,\"\",(AVERAGEIFS('2011 Survey responses'!T23:U23,'2011 Survey responses'!T23:U23,\">1\")))","v":""},{"$f":"IF(SUM('2011 Survey responses'!V23:AO23)<1,\"\",(AVERAGEIFS('2011 Survey responses'!V23:AO23,'2011 Survey responses'!V23:AO23,\">1\")))","v":""},{"$f":"IF(SUM('2011 Survey responses'!V23:AA23)<1,\"\",(AVERAGEIFS('2011 Survey responses'!V23:AA23,'2011 Survey responses'!V23:AA23,\">1\")))","v":""},{"$f":"IF(SUM('2011 Survey responses'!AB23:AH23)<1,\"\",(AVERAGEIFS('2011 Survey responses'!AB23:AH23,'2011 Survey responses'!AB23:AH23,\">1\")))","v":""},{"$f":"IF(SUM('2011 Survey responses'!AI23:AO23)<1,\"\",(AVERAGEIFS('2011 Survey responses'!AI23:AO23,'2011 Survey responses'!AI23:AO23,\">1\")))","v":""},{"$f":"IF(('2011 Survey responses'!Y23+'2011 Survey responses'!AI23+'2011 Survey responses'!AK23)<3.1,\"\",((SUMIF('2011 Survey responses'!Y23,\">1\")+SUMIF('2011 Survey responses'!AI23,\">1\")+SUMIF('2011 Survey responses'!AK23,\">1\")+SUMIF('2011 Survey responses'!AM23,\">1\"))/(COUNTIF('2011 Survey responses'!Y23,\">1\")+COUNTIF('2011 Survey responses'!AI23,\">1\")+COUNTIF('2011 Survey responses'!AK23,\">1\")+COUNTIF('2011 Survey responses'!AM23,\">1\"))))","v":""},{"$f":"IF(('2011 Survey responses'!W23)<1.1,\"\",('2011 Survey responses'!W23))","v":""},{"$f":"IF(('2011 Survey responses'!Y23)<1.1,\"\",('2011 Survey responses'!Y23))","v":""},{"$f":"IF(('2011 Survey responses'!Z23)<1.1,\"\",('2011 Survey responses'!Z23))","v":""},{"$f":"IF(('2011 Survey responses'!V23+'2011 Survey responses'!X23+'2011 Survey responses'!AA23)<3.1,\"\",((SUMIF('2011 Survey responses'!V23,\">1\")+SUMIF('2011 Survey responses'!X23,\">1\")+SUMIF('2011 Survey responses'!AA23,\">1\"))/(COUNTIF('2011 Survey responses'!V23,\">1\")+COUNTIF('2011 Survey responses'!X23,\">1\")+COUNTIF('2011 Survey responses'!AA23,\">1\"))))","v":""},{"$f":"IF(('2011 Survey responses'!V23+'2011 Survey responses'!Y23+'2011 Survey responses'!AA23)<3.1,\"\",((SUMIF('2011 Survey responses'!V23,\">1\")+SUMIF('2011 Survey responses'!Y23,\">1\")+SUMIF('2011 Survey responses'!AA23,\">1\"))/(COUNTIF('2011 Survey responses'!V23,\">1\")+COUNTIF('2011 Survey responses'!Y23,\">1\")+COUNTIF('2011 Survey responses'!AA23,\">1\"))))","v":""},{"$f":"IF(SUM('2011 Survey responses'!AB23:AH23)<1,\"\",(AVERAGEIFS('2011 Survey responses'!AB23:AH23,'2011 Survey responses'!AB23:AH23,\">1\")))","v":""},{"$f":"IF(SUM('2011 Survey responses'!AI23:AO23)<7.1,\"\",(AVERAGEIFS('2011 Survey responses'!AI23:AO23,'2011 Survey responses'!AI23:AO23,\">1\")))","v":""},{"$f":"IF(('2011 Survey responses'!AH23)<1.1,\"\",('2011 Survey responses'!AH23))","v":""},{"$f":"IF(SUM('2011 Survey responses'!AP23:BV23)<1,\"\",(AVERAGEIFS('2011 Survey responses'!AP23:BV23,'2011 Survey responses'!AP23:BV23,\">1\")))","v":""},{"$f":"IF(SUM('2011 Survey responses'!AP23:AS23)<4.1,\"\",(AVERAGEIFS('2011 Survey responses'!AP23:AS23,'2011 Survey responses'!AP23:AS23,\">1\")))","v":""},{"$f":"IF(SUM('2011 Survey responses'!AT23:BF23)<1,\"\",(AVERAGEIFS('2011 Survey responses'!AT23:BF23,'2011 Survey responses'!AT23:BF23,\">1\")))","v":""},{"$f":"IF(SUM('2011 Survey responses'!BG23:BO23)<1,\"\",(AVERAGEIFS('2011 Survey responses'!BG23:BO23,'2011 Survey responses'!BG23:BO23,\">1\")))","v":""},{"$f":"IF(SUM('2011 Survey responses'!BP23:BS23)<1,\"\",(AVERAGEIFS('2011 Survey responses'!BP23:BS23,'2011 Survey responses'!BP23:BS23,\">1\")))","v":""},{"$f":"IF(SUM('2011 Survey responses'!BT23:BV23)<3.1,\"\",(AVERAGEIFS('2011 Survey responses'!BT23:BV23,'2011 Survey responses'!BT23:BV23,\">1\")))","v":""},{"$f":"IF(('2011 Survey responses'!AQ23+'2011 Survey responses'!AR23+'2011 Survey responses'!BG23)<3.1,\"\",((SUMIF('2011 Survey responses'!AQ23,\">1\")+SUMIF('2011 Survey responses'!AR23,\">1\")+SUMIF('2011 Survey responses'!BG23,\">1\"))/(COUNTIF('2011 Survey responses'!AQ23,\">1\")+COUNTIF('2011 Survey responses'!AR23,\">1\")+COUNTIF('2011 Survey responses'!BG23,\">1\"))))","v":""},{"$f":"IF(SUM('2011 Survey responses'!AP23:AS23)<4.1,\"\",(AVERAGEIFS('2011 Survey responses'!AP23:AS23,'2011 Survey responses'!AP23:AS23,\">1\")))","v":""},{"$f":"IF(('2011 Survey responses'!AU23+'2011 Survey responses'!AX23+'2011 Survey responses'!BA23+'2011 Survey responses'!BC23+'2011 Survey responses'!BD23)<5.1,\"\",(SUMIF('2011 Survey responses'!AU23,\">1\")+SUMIF('2011 Survey responses'!AX23,\">1\")+SUMIF('2011 Survey responses'!BA23,\">1\")+SUMIF('2011 Survey responses'!BC23,\">1\")+SUMIF('2011 Survey responses'!BD23,\">1\"))/(COUNTIF('2011 Survey responses'!AU23,\">1\")+COUNTIF('2011 Survey responses'!AX23,\">1\")+COUNTIF('2011 Survey responses'!BA23,\">1\")+COUNTIF('2011 Survey responses'!BC23,\">1\")+COUNTIF('2011 Survey responses'!BD23,\">1\")))","v":""},{"$f":"IF(('2011 Survey responses'!AT23)<1.1,\"\",('2011 Survey responses'!AT23))","v":""},{"$f":"IF(SUM('2011 Survey responses'!AV23:AW23)<2.1,\"\",(AVERAGEIFS('2011 Survey responses'!AV23:AW23,'2011 Survey responses'!AV23:AW23,\">1\")))","v":""},{"$f":"IF(('2011 Survey responses'!AW23+'2011 Survey responses'!AY23)<2.1,\"\",(SUMIF('2011 Survey responses'!AW23,\">1\")+SUMIF('2011 Survey responses'!AY23,\">1\"))/(COUNTIF('2011 Survey responses'!AW23,\">1\")+COUNTIF('2011 Survey responses'!AY23,\">1\")))","v":""},{"$f":"IF(('2011 Survey responses'!AZ23)<1.1,\"\",('2011 Survey responses'!AZ23))","v":""},null,null,null,null,{"$f":"IF(('2011 Survey responses'!BE23)<1.1,\"\",('2011 Survey responses'!BE23))","v":""},{"$f":"IF(('2011 Survey responses'!AY23+'2011 Survey responses'!BB23+'2011 Survey responses'!BF23)<3.1,\"\",(SUMIF('2011 Survey responses'!AY23,\">1\")+SUMIF('2011 Survey responses'!BB23,\">1\")+SUMIF('2011 Survey responses'!BF23,\">1\"))/(COUNTIF('2011 Survey responses'!AY23,\">1\")+COUNTIF('2011 Survey responses'!BB23,\">1\")+COUNTIF('2011 Survey responses'!BF23,\">1\")))","v":""},"",{"$f":"IF(SUM('2011 Survey responses'!BT23:BV23)<3.1,\"\",(AVERAGEIFS('2011 Survey responses'!BT23:BV23,'2011 Survey responses'!BT23:BV23,\">1\")))","v":""},{"$f":"IF(SUM('2011 Survey responses'!BW23:CP23)<1,\"\",(AVERAGEIFS('2011 Survey responses'!BW23:CP23,'2011 Survey responses'!BW23:CP23,\">1\")))","v":""},{"$f":"IF(SUM('2011 Survey responses'!BW23:CF23)<1,\"\",(AVERAGEIFS('2011 Survey responses'!BW23:CF23,'2011 Survey responses'!BW23:CF23,\">1\")))","v":""},{"$f":"IF(SUM('2011 Survey responses'!CG23:CP23)<1,\"\",(AVERAGEIFS('2011 Survey responses'!CG23:CP23,'2011 Survey responses'!CG23:CP23,\">1\")))","v":""},{"$f":"IF(SUM('2011 Survey responses'!BX23:CF23)<1,\"\",(AVERAGEIFS('2011 Survey responses'!BX23:CF23,'2011 Survey responses'!BX23:CF23,\">1\")))","v":""},{"$f":"IF(SUM('2011 Survey responses'!CH23:CP23)<1,\"\",(AVERAGEIFS('2011 Survey responses'!CH23:CP23,'2011 Survey responses'!CH23:CP23,\">1\")))","v":""},{"$f":"IF(SUM('2011 Survey responses'!BW23:CP23)<1,\"\",(AVERAGEIFS('2011 Survey responses'!BW23:CP23,'2011 Survey responses'!BW23:CP23,\">1\")))","v":""},{"$f":"IF(('2011 Survey responses'!BW23+'2011 Survey responses'!CG23)<2.1,\"\",(SUMIF('2011 Survey responses'!BW23,\">1\")+SUMIF('2011 Survey responses'!CG23,\">1\"))/(COUNTIF('2011 Survey responses'!BW23,\">1\")+COUNTIF('2011 Survey responses'!CG23,\">1\")))","v":""},{"$f":"IF(('2011 Survey responses'!BX23+'2011 Survey responses'!CH23)<2.1,\"\",(SUMIF('2011 Survey responses'!BX23,\">1\")+SUMIF('2011 Survey responses'!CH23,\">1\"))/(COUNTIF('2011 Survey responses'!BX23,\">1\")+COUNTIF('2011 Survey responses'!CH23,\">1\")))","v":""},{"$f":"IF(('2011 Survey responses'!BY23+'2011 Survey responses'!CI23)<2.1,\"\",(SUMIF('2011 Survey responses'!BY23,\">1\")+SUMIF('2011 Survey responses'!CI23,\">1\"))/(COUNTIF('2011 Survey responses'!BY23,\">1\")+COUNTIF('2011 Survey responses'!CI23,\">1\")))","v":""},{"$f":"IF('2011 Survey responses'!CQ23<0.5,\"\",'2011 Survey responses'!CQ23)","v":""},{"$f":"IF('2011 Survey responses'!CR23<0.5,\"\",'2011 Survey responses'!CR23)","v":""},{"$f":"IF('2011 Survey responses'!CS23<0.5,\"\",'2011 Survey responses'!CS23)","v":""},{"$f":"IF('2011 Survey responses'!CT23<0.5,\"\",'2011 Survey responses'!CT23)","v":""},{"$f":"IF('2011 Survey responses'!CU23<0.5,\"\",'2011 Survey responses'!CU23)","v":""},{"$f":"IF('2011 Survey responses'!CV23<0.5,\"\",'2011 Survey responses'!CV23)","v":""},{"$f":"IF(SUM('2011 Survey responses'!CW23:DL23)<1,\"\",(AVERAGE('2011 Survey responses'!CW23:DL23)))","v":""},{"$f":"IF(SUM('2011 Survey responses'!CW23:CZ23)<1,\"\",(AVERAGE('2011 Survey responses'!CW23:CZ23)))","v":""},{"$f":"IF(SUM('2011 Survey responses'!DA23:DD23)<1,\"\",(AVERAGE('2011 Survey responses'!DA23:DD23)))","v":""},{"$f":"IF(SUM('2011 Survey responses'!DE23:DH23)<1,\"\",(AVERAGE('2011 Survey responses'!DE23:DH23)))","v":""},{"$f":"IF(SUM('2011 Survey responses'!DI23:DL23)<1,\"\",(AVERAGE('2011 Survey responses'!DI23:DL23)))","v":""},{"$f":"IF(('2011 Survey responses'!CW23+'2011 Survey responses'!DA23+'2011 Survey responses'!DE23+'2011 Survey responses'!DI23)<1,\"\",AVERAGE('2011 Survey responses'!CW23,'2011 Survey responses'!DA23,'2011 Survey responses'!DE23,'2011 Survey responses'!DI23))","v":""},{"$f":"IF(('2011 Survey responses'!CX23+'2011 Survey responses'!DB23+'2011 Survey responses'!DF23+'2011 Survey responses'!DJ23)<1,\"\",AVERAGE('2011 Survey responses'!CX23,'2011 Survey responses'!DB23,'2011 Survey responses'!DF23,'2011 Survey responses'!DJ23))","v":""},{"$f":"IF(('2011 Survey responses'!CY23+'2011 Survey responses'!DC23+'2011 Survey responses'!DG23+'2011 Survey responses'!DK23)<1,\"\",AVERAGE('2011 Survey responses'!CY23,'2011 Survey responses'!DC23,'2011 Survey responses'!DG23,'2011 Survey responses'!DK23))","v":""},{"$f":"IF(('2011 Survey responses'!CZ23+'2011 Survey responses'!DD23+'2011 Survey responses'!DH23+'2011 Survey responses'!DL23)<1,\"\",AVERAGE('2011 Survey responses'!CZ23,'2011 Survey responses'!DD23,'2011 Survey responses'!DH23,'2011 Survey responses'!DL23))","v":""},{"$f":"IF('2011 Survey responses'!CW23<0.5,\"\",'2011 Survey responses'!CW23)","v":""},{"$f":"IF('2011 Survey responses'!CX23<0.5,\"\",'2011 Survey responses'!CX23)","v":""},{"$f":"IF('2011 Survey responses'!CY23<0.5,\"\",'2011 Survey responses'!CY23)","v":""},{"$f":"IF('2011 Survey responses'!CZ23<0.5,\"\",'2011 Survey responses'!CZ23)","v":""},{"$f":"IF('2011 Survey responses'!DA23<0.5,\"\",'2011 Survey responses'!DA23)","v":""},{"$f":"IF('2011 Survey responses'!DB23<0.5,\"\",'2011 Survey responses'!DB23)","v":""},{"$f":"IF('2011 Survey responses'!DC23<0.5,\"\",'2011 Survey responses'!DC23)","v":""},{"$f":"IF('2011 Survey responses'!DD23<0.5,\"\",'2011 Survey responses'!DD23)","v":""},{"$f":"IF('2011 Survey responses'!DE23<0.5,\"\",'2011 Survey responses'!DE23)","v":""},{"$f":"IF('2011 Survey responses'!DF23<0.5,\"\",'2011 Survey responses'!DF23)","v":""},{"$f":"IF('2011 Survey responses'!DG23<0.5,\"\",'2011 Survey responses'!DG23)","v":""},{"$f":"IF('2011 Survey responses'!DH23<0.5,\"\",'2011 Survey responses'!DH23)","v":""},{"$f":"IF('2011 Survey responses'!DI23<0.5,\"\",'2011 Survey responses'!DI23)","v":""},{"$f":"IF('2011 Survey responses'!DJ23<0.5,\"\",'2011 Survey responses'!DJ23)","v":""},{"$f":"IF('2011 Survey responses'!DK23<0.5,\"\",'2011 Survey responses'!DK23)","v":""},{"$f":"IF('2011 Survey responses'!DL23<0.5,\"\",'2011 Survey responses'!DL23)","v":""},{"$f":"IF('2011 Survey responses'!DU23=4,4,IF('2011 Survey responses'!DU23=5,4,\"\"))","v":""},{"$f":"IF('2011 Survey responses'!DV23=4,3,IF('2011 Survey responses'!DV23=5,3,\"\"))","v":""},"",{"$f":"IF(CQ23=2,CQ23,IF(CO23=4,CO23,IF(CP23=3,CP23,IF('2011 Survey responses'!GT23=1,1,\"\"))))","v":""},{"$f":"IF('2011 Survey responses'!DO23<0.5,\"\",'2011 Survey responses'!DO23)","v":""},{"$f":"IF('2011 Survey responses'!DP23<0.5,\"\",'2011 Survey responses'!DP23)","v":""},{"$f":"IF('2011 Survey responses'!DQ23<0.5,\"\",'2011 Survey responses'!DQ23)","v":""},{"$f":"IF('2011 Survey responses'!DR23<0.5,\"\",'2011 Survey responses'!DR23)","v":""},{"$f":"IF('2011 Survey responses'!DS23<0.5,\"\",'2011 Survey responses'!DS23)","v":""},{"$f":"IF('2011 Survey responses'!DT23<0.5,\"\",'2011 Survey responses'!DT23)","v":""},{"$f":"IF('2011 Survey responses'!DU23<0.5,\"\",'2011 Survey responses'!DU23)","v":""},{"$f":"IF('2011 Survey responses'!DV23<0.5,\"\",'2011 Survey responses'!DV23)","v":""},{"$f":"IF('2011 Survey responses'!DW23<0.5,\"\",'2011 Survey responses'!DW23)","v":""},{"$f":"IF('2011 Survey responses'!DX23<0.5,\"\",'2011 Survey responses'!DX23)","v":""},{"$f":"IF('2011 Survey responses'!DY23<0.5,\"\",'2011 Survey responses'!DY23)","v":""},{"$f":"IF('2011 Survey responses'!DZ23<0.5,\"\",'2011 Survey responses'!DZ23)","v":""},{"$f":"IF('2011 Survey responses'!EA23<0.5,\"\",'2011 Survey responses'!EA23)","v":""},{"$f":"IF('2011 Survey responses'!EB23<0.5,\"\",'2011 Survey responses'!EB23)","v":""},{"$f":"IF('2011 Survey responses'!EC23<0.5,\"\",'2011 Survey responses'!EC23)","v":""},{"$f":"IF('2011 Survey responses'!ED23<0.5,\"\",'2011 Survey responses'!ED23)","v":""},{"$f":"IF('2011 Survey responses'!EE23<0.5,\"\",'2011 Survey responses'!EE23)","v":""},{"$f":"IF('2011 Survey responses'!EF23<0.5,\"\",'2011 Survey responses'!EF23)","v":""},{"$f":"IF('2011 Survey responses'!EG23<0.5,\"\",'2011 Survey responses'!EG23)","v":""},{"$f":"IF('2011 Survey responses'!EH23<0.5,\"\",'2011 Survey responses'!EH23)","v":""},{"$f":"IF('2011 Survey responses'!EI23<0.5,\"\",'2011 Survey responses'!EI23)","v":""},{"$f":"IF('2011 Survey responses'!EJ23<0.5,\"\",'2011 Survey responses'!EJ23)","v":""},{"$f":"IF('2011 Survey responses'!EK23<0.5,\"\",'2011 Survey responses'!EK23)","v":""},{"$f":"IF('2011 Survey responses'!EL23<0.5,\"\",'2011 Survey responses'!EL23)","v":""},{"$f":"IF('2011 Survey responses'!EM23<0.5,\"\",'2011 Survey responses'!EM23)","v":""},{"$f":"IF('2011 Survey responses'!EN23<0.5,\"\",'2011 Survey responses'!EN23)","v":""},{"$f":"IF('2011 Survey responses'!EO23<0.5,\"\",'2011 Survey responses'!EO23)","v":""},{"$f":"IF('2011 Survey responses'!EP23<0.5,\"\",'2011 Survey responses'!EP23)","v":""},{"$f":"IF(('2011 Survey responses'!EW23+'2011 Survey responses'!EX23)>=2,AVERAGE('2011 Survey responses'!EW23,'2011 Survey responses'!EY23),\"\")","v":""},{"$f":"IF('2011 Survey responses'!EX23<0.5,\"\",'2011 Survey responses'!EX23)","v":""},{"$f":"IF('2011 Survey responses'!EZ23<0.5,\"\",'2011 Survey responses'!EZ23)","v":""},{"$f":"IF('2011 Survey responses'!FB23<0.5,\"\",'2011 Survey responses'!FB23)","v":""},{"$f":"IF('2011 Survey responses'!FD23<0.5,\"\",'2011 Survey responses'!FD23)","v":""},{"$f":"IF('2011 Survey responses'!FC23<0.5,\"\",'2011 Survey responses'!FC23)","v":""},{"$f":"IF(('2011 Survey responses'!EM23+'2011 Survey responses'!EN23)>=2,AVERAGE('2011 Survey responses'!EM23,'2011 Survey responses'!EN23),\"\")","v":""},{"$f":"IF('2011 Survey responses'!ES23<0.5,\"\",'2011 Survey responses'!ES23)","v":""},{"$f":"IF(('2011 Survey responses'!ET23+'2011 Survey responses'!EU23)>=2,AVERAGE('2011 Survey responses'!ET23,'2011 Survey responses'!EU23),\"\")","v":""},{"$f":"IF('2011 Survey responses'!EV23<0.5,\"\",'2011 Survey responses'!EV23)","v":""},{"$f":"IF('2011 Survey responses'!FA23<0.5,\"\",'2011 Survey responses'!FA23)","v":""},{"$f":"IF('2011 Survey responses'!ER23<0.5,\"\",'2011 Survey responses'!ER23)","v":""},{"$f":"IF(('2011 Survey responses'!EO23+'2011 Survey responses'!EP23)>=2,AVERAGE('2011 Survey responses'!EO23,'2011 Survey responses'!EP23),\"\")","v":""},{"$f":"IF('2011 Survey responses'!EQ23<0.5,\"\",'2011 Survey responses'!EQ23)","v":""},{"$f":"IF('2011 Survey responses'!ET23<0.5,\"\",'2011 Survey responses'!ET23)","v":""},{"$f":"IF('2011 Survey responses'!EU23<0.5,\"\",'2011 Survey responses'!EU23)","v":""},{"$f":"IF('2011 Survey responses'!EW23<0.5,\"\",'2011 Survey responses'!EW23)","v":""},{"$f":"IF('2011 Survey responses'!EY23<0.5,\"\",'2011 Survey responses'!EY23)","v":""},{"$f":"IF('2011 Survey responses'!FU23<0.5,\"\",'2011 Survey responses'!FU23)","v":""},{"$f":"IF(('2011 Survey responses'!FL23+'2011 Survey responses'!FM23)>=2,AVERAGE('2011 Survey responses'!FL23,'2011 Survey responses'!FM23),\"\")","v":""},{"$f":"IF(('2011 Survey responses'!FO23+'2011 Survey responses'!FQ23)>=2,AVERAGE('2011 Survey responses'!FO23,'2011 Survey responses'!FQ23),\"\")","v":""},{"$f":"IF('2011 Survey responses'!FJ23<0.5,\"\",'2011 Survey responses'!FJ23)","v":""},{"$f":"IF('2011 Survey responses'!FT23<0.5,\"\",'2011 Survey responses'!FT23)","v":""},{"$f":"IF('2011 Survey responses'!FR23<0.5,\"\",'2011 Survey responses'!FR23)","v":""},{"$f":"IF('2011 Survey responses'!FK23<0.5,\"\",'2011 Survey responses'!FK23)","v":""},{"$f":"IF('2011 Survey responses'!FP23<0.5,\"\",'2011 Survey responses'!FP23)","v":""},{"$f":"IF('2011 Survey responses'!FN23<0.5,\"\",'2011 Survey responses'!FN23)","v":""},{"$f":"IF(('2011 Survey responses'!FE23+'2011 Survey responses'!FF23)>=2,AVERAGE('2011 Survey responses'!FE23,'2011 Survey responses'!FF23),\"\")","v":""},{"$f":"IF('2011 Survey responses'!FS23<0.5,\"\",'2011 Survey responses'!FS23)","v":""},{"$f":"IF('2011 Survey responses'!FV23<0.5,\"\",'2011 Survey responses'!FV23)","v":""},{"$f":"IF(('2011 Survey responses'!FG23+'2011 Survey responses'!FH23)>=2,AVERAGE('2011 Survey responses'!FG23,'2011 Survey responses'!FH23),\"\")","v":""},{"$f":"IF('2011 Survey responses'!FI23<0.5,\"\",'2011 Survey responses'!FI23)","v":""},{"$f":"IF('2011 Survey responses'!FE23<0.5,\"\",'2011 Survey responses'!FE23)","v":""},{"$f":"IF('2011 Survey responses'!FF23<0.5,\"\",'2011 Survey responses'!FF23)","v":""},{"$f":"IF('2011 Survey responses'!FG23<0.5,\"\",'2011 Survey responses'!FG23)","v":""},{"$f":"IF('2011 Survey responses'!FH23<0.5,\"\",'2011 Survey responses'!FH23)","v":""},{"$f":"IF('2011 Survey responses'!FL23<0.5,\"\",'2011 Survey responses'!FL23)","v":""},{"$f":"IF('2011 Survey responses'!FM23<0.5,\"\",'2011 Survey responses'!FM23)","v":""},{"$f":"IF('2011 Survey responses'!FO23<0.5,\"\",'2011 Survey responses'!FO23)","v":""},{"$f":"IF('2011 Survey responses'!FQ23<0.5,\"\",'2011 Survey responses'!FQ23)","v":""}]
["Bosnia and Herzegovina",{"$f":"IF(SUM(F24)<1,\"\",AVERAGEIF('2011 Survey responses'!B24:CP24,\">1\"))","v":3.3012048192771086},{"$f":"IF(SUM(F24)<1,\"\",AVERAGEIF('2011 Survey responses'!B24:AO24,\">1\"))","v":3.0882352941176472},{"$f":"IF(SUM(F24)<1,\"\",AVERAGEIF('2011 Survey responses'!B24:BV24,\">1\"))","v":3.283582089552239},{"$f":"IF(SUM(F24)<1,\"\",AVERAGEIF('2011 Survey responses'!V24:BV24,\">1\"))","v":3.48},{"$f":"IF(SUM('2011 Survey responses'!B24:U24)<1,\"\",(AVERAGEIFS('2011 Survey responses'!B24:U24,'2011 Survey responses'!B24:U24,\">1\")))","v":2.7058823529411766},{"$f":"IF(SUM('2011 Survey responses'!B24:H24)<1,\"\",(AVERAGEIFS('2011 Survey responses'!B24:H24,'2011 Survey responses'!B24:H24,\">1\")))","v":2.7142857142857144},{"$f":"IF(SUM('2011 Survey responses'!I24:S24)<1,\"\",(AVERAGEIFS('2011 Survey responses'!I24:S24,'2011 Survey responses'!I24:S24,\">1\")))","v":2.375},{"$f":"IF(SUM('2011 Survey responses'!T24:U24)<2.1,\"\",(AVERAGEIFS('2011 Survey responses'!T24:U24,'2011 Survey responses'!T24:U24,\">1\")))","v":4},{"$f":"IF(SUM('2011 Survey responses'!B24:C24)<2.1,\"\",((SUMIF('2011 Survey responses'!B24:C24,\">1\")+SUMIF('2011 Survey responses'!F24,\">1\"))/(COUNTIF('2011 Survey responses'!B24:C24,\">1\")+COUNTIF('2011 Survey responses'!F24,\">1\"))))","v":2.6666666666666665},{"$f":"IF(SUM('2011 Survey responses'!D24:E24)<2.1,\"\",(AVERAGEIFS('2011 Survey responses'!D24:E24,'2011 Survey responses'!D24:E24,\">1\")))","v":3.5},{"$f":"IF(('2011 Survey responses'!B24+'2011 Survey responses'!D24)<2.1,\"\",((SUMIF('2011 Survey responses'!B24,\">1\")+SUMIF('2011 Survey responses'!D24,\">1\")+SUMIF('2011 Survey responses'!F24,\">1\")+SUMIF('2011 Survey responses'!K24,\">1\"))/(COUNTIF('2011 Survey responses'!B24,\">1\")+COUNTIF('2011 Survey responses'!D24,\">1\")+COUNTIF('2011 Survey responses'!F24,\">1\")+COUNTIF('2011 Survey responses'!K24,\">1\"))))","v":2.75},{"$f":"IF(SUM('2011 Survey responses'!G24:H24)<2.1,\"\",(AVERAGEIFS('2011 Survey responses'!G24:H24,'2011 Survey responses'!G24:H24,\">1\")))","v":2},{"$f":"IF(SUM('2011 Survey responses'!F24:G24)<1.5,\"\",MAX('2011 Survey responses'!F24,'2011 Survey responses'!G24))","v":2},{"$f":"IF(SUM('2011 Survey responses'!G24:H24)<1,\"\",MAX('2011 Survey responses'!G24,'2011 Survey responses'!H24))","v":2},{"$f":"IF(SUM('2011 Survey responses'!I24:L24)<4.1,\"\",(AVERAGEIFS('2011 Survey responses'!I24:L24,'2011 Survey responses'!I24:L24,\">1\")))","v":2.5},{"$f":"IF(SUM('2011 Survey responses'!M24:S24)<4.1,\"\",(AVERAGEIFS('2011 Survey responses'!M24:S24,'2011 Survey responses'!M24:S24,\">1\")))","v":2.25},{"$f":"IF(SUM('2011 Survey responses'!T24:U24)<2.1,\"\",(AVERAGEIFS('2011 Survey responses'!T24:U24,'2011 Survey responses'!T24:U24,\">1\")))","v":4},{"$f":"IF(SUM('2011 Survey responses'!V24:AO24)<1,\"\",(AVERAGEIFS('2011 Survey responses'!V24:AO24,'2011 Survey responses'!V24:AO24,\">1\")))","v":3.4705882352941178},{"$f":"IF(SUM('2011 Survey responses'!V24:AA24)<1,\"\",(AVERAGEIFS('2011 Survey responses'!V24:AA24,'2011 Survey responses'!V24:AA24,\">1\")))","v":2.5},{"$f":"IF(SUM('2011 Survey responses'!AB24:AH24)<1,\"\",(AVERAGEIFS('2011 Survey responses'!AB24:AH24,'2011 Survey responses'!AB24:AH24,\">1\")))","v":3.75},{"$f":"IF(SUM('2011 Survey responses'!AI24:AO24)<1,\"\",(AVERAGEIFS('2011 Survey responses'!AI24:AO24,'2011 Survey responses'!AI24:AO24,\">1\")))","v":4.1428571428571432},{"$f":"IF(('2011 Survey responses'!Y24+'2011 Survey responses'!AI24+'2011 Survey responses'!AK24)<3.1,\"\",((SUMIF('2011 Survey responses'!Y24,\">1\")+SUMIF('2011 Survey responses'!AI24,\">1\")+SUMIF('2011 Survey responses'!AK24,\">1\")+SUMIF('2011 Survey responses'!AM24,\">1\"))/(COUNTIF('2011 Survey responses'!Y24,\">1\")+COUNTIF('2011 Survey responses'!AI24,\">1\")+COUNTIF('2011 Survey responses'!AK24,\">1\")+COUNTIF('2011 Survey responses'!AM24,\">1\"))))","v":3.5},{"$f":"IF(('2011 Survey responses'!W24)<1.1,\"\",('2011 Survey responses'!W24))","v":2},{"$f":"IF(('2011 Survey responses'!Y24)<1.1,\"\",('2011 Survey responses'!Y24))","v":2},{"$f":"IF(('2011 Survey responses'!Z24)<1.1,\"\",('2011 Survey responses'!Z24))","v":2},{"$f":"IF(('2011 Survey responses'!V24+'2011 Survey responses'!X24+'2011 Survey responses'!AA24)<3.1,\"\",((SUMIF('2011 Survey responses'!V24,\">1\")+SUMIF('2011 Survey responses'!X24,\">1\")+SUMIF('2011 Survey responses'!AA24,\">1\"))/(COUNTIF('2011 Survey responses'!V24,\">1\")+COUNTIF('2011 Survey responses'!X24,\">1\")+COUNTIF('2011 Survey responses'!AA24,\">1\"))))","v":3},{"$f":"IF(('2011 Survey responses'!V24+'2011 Survey responses'!Y24+'2011 Survey responses'!AA24)<3.1,\"\",((SUMIF('2011 Survey responses'!V24,\">1\")+SUMIF('2011 Survey responses'!Y24,\">1\")+SUMIF('2011 Survey responses'!AA24,\">1\"))/(COUNTIF('2011 Survey responses'!V24,\">1\")+COUNTIF('2011 Survey responses'!Y24,\">1\")+COUNTIF('2011 Survey responses'!AA24,\">1\"))))","v":3},{"$f":"IF(SUM('2011 Survey responses'!AB24:AH24)<1,\"\",(AVERAGEIFS('2011 Survey responses'!AB24:AH24,'2011 Survey responses'!AB24:AH24,\">1\")))","v":3.75},{"$f":"IF(SUM('2011 Survey responses'!AI24:AO24)<7.1,\"\",(AVERAGEIFS('2011 Survey responses'!AI24:AO24,'2011 Survey responses'!AI24:AO24,\">1\")))","v":4.1428571428571432},{"$f":"IF(('2011 Survey responses'!AH24)<1.1,\"\",('2011 Survey responses'!AH24))","v":5},{"$f":"IF(SUM('2011 Survey responses'!AP24:BV24)<1,\"\",(AVERAGEIFS('2011 Survey responses'!AP24:BV24,'2011 Survey responses'!AP24:BV24,\">1\")))","v":3.4848484848484849},{"$f":"IF(SUM('2011 Survey responses'!AP24:AS24)<4.1,\"\",(AVERAGEIFS('2011 Survey responses'!AP24:AS24,'2011 Survey responses'!AP24:AS24,\">1\")))","v":3.5},{"$f":"IF(SUM('2011 Survey responses'!AT24:BF24)<1,\"\",(AVERAGEIFS('2011 Survey responses'!AT24:BF24,'2011 Survey responses'!AT24:BF24,\">1\")))","v":3.7692307692307692},{"$f":"IF(SUM('2011 Survey responses'!BG24:BO24)<1,\"\",(AVERAGEIFS('2011 Survey responses'!BG24:BO24,'2011 Survey responses'!BG24:BO24,\">1\")))","v":3.8888888888888888},{"$f":"IF(SUM('2011 Survey responses'!BP24:BS24)<1,\"\",(AVERAGEIFS('2011 Survey responses'!BP24:BS24,'2011 Survey responses'!BP24:BS24,\">1\")))","v":2.25},{"$f":"IF(SUM('2011 Survey responses'!BT24:BV24)<3.1,\"\",(AVERAGEIFS('2011 Survey responses'!BT24:BV24,'2011 Survey responses'!BT24:BV24,\">1\")))","v":2.6666666666666665},{"$f":"IF(('2011 Survey responses'!AQ24+'2011 Survey responses'!AR24+'2011 Survey responses'!BG24)<3.1,\"\",((SUMIF('2011 Survey responses'!AQ24,\">1\")+SUMIF('2011 Survey responses'!AR24,\">1\")+SUMIF('2011 Survey responses'!BG24,\">1\"))/(COUNTIF('2011 Survey responses'!AQ24,\">1\")+COUNTIF('2011 Survey responses'!AR24,\">1\")+COUNTIF('2011 Survey responses'!BG24,\">1\"))))","v":4.333333333333333},{"$f":"IF(SUM('2011 Survey responses'!AP24:AS24)<4.1,\"\",(AVERAGEIFS('2011 Survey responses'!AP24:AS24,'2011 Survey responses'!AP24:AS24,\">1\")))","v":3.5},{"$f":"IF(('2011 Survey responses'!AU24+'2011 Survey responses'!AX24+'2011 Survey responses'!BA24+'2011 Survey responses'!BC24+'2011 Survey responses'!BD24)<5.1,\"\",(SUMIF('2011 Survey responses'!AU24,\">1\")+SUMIF('2011 Survey responses'!AX24,\">1\")+SUMIF('2011 Survey responses'!BA24,\">1\")+SUMIF('2011 Survey responses'!BC24,\">1\")+SUMIF('2011 Survey responses'!BD24,\">1\"))/(COUNTIF('2011 Survey responses'!AU24,\">1\")+COUNTIF('2011 Survey responses'!AX24,\">1\")+COUNTIF('2011 Survey responses'!BA24,\">1\")+COUNTIF('2011 Survey responses'!BC24,\">1\")+COUNTIF('2011 Survey responses'!BD24,\">1\")))","v":3.2},{"$f":"IF(('2011 Survey responses'!AT24)<1.1,\"\",('2011 Survey responses'!AT24))","v":4},{"$f":"IF(SUM('2011 Survey responses'!AV24:AW24)<2.1,\"\",(AVERAGEIFS('2011 Survey responses'!AV24:AW24,'2011 Survey responses'!AV24:AW24,\">1\")))","v":4},{"$f":"IF(('2011 Survey responses'!AW24+'2011 Survey responses'!AY24)<2.1,\"\",(SUMIF('2011 Survey responses'!AW24,\">1\")+SUMIF('2011 Survey responses'!AY24,\">1\"))/(COUNTIF('2011 Survey responses'!AW24,\">1\")+COUNTIF('2011 Survey responses'!AY24,\">1\")))","v":3.5},{"$f":"IF(('2011 Survey responses'!AZ24)<1.1,\"\",('2011 Survey responses'!AZ24))","v":4},4,2,2,2,{"$f":"IF(('2011 Survey responses'!BE24)<1.1,\"\",('2011 Survey responses'!BE24))","v":5},{"$f":"IF(('2011 Survey responses'!AY24+'2011 Survey responses'!BB24+'2011 Survey responses'!BF24)<3.1,\"\",(SUMIF('2011 Survey responses'!AY24,\">1\")+SUMIF('2011 Survey responses'!BB24,\">1\")+SUMIF('2011 Survey responses'!BF24,\">1\"))/(COUNTIF('2011 Survey responses'!AY24,\">1\")+COUNTIF('2011 Survey responses'!BB24,\">1\")+COUNTIF('2011 Survey responses'!BF24,\">1\")))","v":4},3.0694444444444446,{"$f":"IF(SUM('2011 Survey responses'!BT24:BV24)<3.1,\"\",(AVERAGEIFS('2011 Survey responses'!BT24:BV24,'2011 Survey responses'!BT24:BV24,\">1\")))","v":2.6666666666666665},{"$f":"IF(SUM('2011 Survey responses'!BW24:CP24)<1,\"\",(AVERAGEIFS('2011 Survey responses'!BW24:CP24,'2011 Survey responses'!BW24:CP24,\">1\")))","v":3.375},{"$f":"IF(SUM('2011 Survey responses'!BW24:CF24)<1,\"\",(AVERAGEIFS('2011 Survey responses'!BW24:CF24,'2011 Survey responses'!BW24:CF24,\">1\")))","v":2.7777777777777777},{"$f":"IF(SUM('2011 Survey responses'!CG24:CP24)<1,\"\",(AVERAGEIFS('2011 Survey responses'!CG24:CP24,'2011 Survey responses'!CG24:CP24,\">1\")))","v":4.1428571428571432},{"$f":"IF(SUM('2011 Survey responses'!BX24:CF24)<1,\"\",(AVERAGEIFS('2011 Survey responses'!BX24:CF24,'2011 Survey responses'!BX24:CF24,\">1\")))","v":2.75},{"$f":"IF(SUM('2011 Survey responses'!CH24:CP24)<1,\"\",(AVERAGEIFS('2011 Survey responses'!CH24:CP24,'2011 Survey responses'!CH24:CP24,\">1\")))","v":4.166666666666667},{"$f":"IF(SUM('2011 Survey responses'!BW24:CP24)<1,\"\",(AVERAGEIFS('2011 Survey responses'!BW24:CP24,'2011 Survey responses'!BW24:CP24,\">1\")))","v":3.375},{"$f":"IF(('2011 Survey responses'!BW24+'2011 Survey responses'!CG24)<2.1,\"\",(SUMIF('2011 Survey responses'!BW24,\">1\")+SUMIF('2011 Survey responses'!CG24,\">1\"))/(COUNTIF('2011 Survey responses'!BW24,\">1\")+COUNTIF('2011 Survey responses'!CG24,\">1\")))","v":3.5},{"$f":"IF(('2011 Survey responses'!BX24+'2011 Survey responses'!CH24)<2.1,\"\",(SUMIF('2011 Survey responses'!BX24,\">1\")+SUMIF('2011 Survey responses'!CH24,\">1\"))/(COUNTIF('2011 Survey responses'!BX24,\">1\")+COUNTIF('2011 Survey responses'!CH24,\">1\")))","v":3.5},{"$f":"IF(('2011 Survey responses'!BY24+'2011 Survey responses'!CI24)<2.1,\"\",(SUMIF('2011 Survey responses'!BY24,\">1\")+SUMIF('2011 Survey responses'!CI24,\">1\"))/(COUNTIF('2011 Survey responses'!BY24,\">1\")+COUNTIF('2011 Survey responses'!CI24,\">1\")))","v":4},{"$f":"IF('2011 Survey responses'!CQ24<0.5,\"\",'2011 Survey responses'!CQ24)","v":4},{"$f":"IF('2011 Survey responses'!CR24<0.5,\"\",'2011 Survey responses'!CR24)","v":4},{"$f":"IF('2011 Survey responses'!CS24<0.5,\"\",'2011 Survey responses'!CS24)","v":4},{"$f":"IF('2011 Survey responses'!CT24<0.5,\"\",'2011 Survey responses'!CT24)","v":1},{"$f":"IF('2011 Survey responses'!CU24<0.5,\"\",'2011 Survey responses'!CU24)","v":3},{"$f":"IF('2011 Survey responses'!CV24<0.5,\"\",'2011 Survey responses'!CV24)","v":3},{"$f":"IF(SUM('2011 Survey responses'!CW24:DL24)<1,\"\",(AVERAGE('2011 Survey responses'!CW24:DL24)))","v":2.5},{"$f":"IF(SUM('2011 Survey responses'!CW24:CZ24)<1,\"\",(AVERAGE('2011 Survey responses'!CW24:CZ24)))","v":3},{"$f":"IF(SUM('2011 Survey responses'!DA24:DD24)<1,\"\",(AVERAGE('2011 Survey responses'!DA24:DD24)))","v":2},{"$f":"IF(SUM('2011 Survey responses'!DE24:DH24)<1,\"\",(AVERAGE('2011 Survey responses'!DE24:DH24)))","v":3},{"$f":"IF(SUM('2011 Survey responses'!DI24:DL24)<1,\"\",(AVERAGE('2011 Survey responses'!DI24:DL24)))","v":2},{"$f":"IF(('2011 Survey responses'!CW24+'2011 Survey responses'!DA24+'2011 Survey responses'!DE24+'2011 Survey responses'!DI24)<1,\"\",AVERAGE('2011 Survey responses'!CW24,'2011 Survey responses'!DA24,'2011 Survey responses'!DE24,'2011 Survey responses'!DI24))","v":2.5},{"$f":"IF(('2011 Survey responses'!CX24+'2011 Survey responses'!DB24+'2011 Survey responses'!DF24+'2011 Survey responses'!DJ24)<1,\"\",AVERAGE('2011 Survey responses'!CX24,'2011 Survey responses'!DB24,'2011 Survey responses'!DF24,'2011 Survey responses'!DJ24))","v":2.5},{"$f":"IF(('2011 Survey responses'!CY24+'2011 Survey responses'!DC24+'2011 Survey responses'!DG24+'2011 Survey responses'!DK24)<1,\"\",AVERAGE('2011 Survey responses'!CY24,'2011 Survey responses'!DC24,'2011 Survey responses'!DG24,'2011 Survey responses'!DK24))","v":2.5},{"$f":"IF(('2011 Survey responses'!CZ24+'2011 Survey responses'!DD24+'2011 Survey responses'!DH24+'2011 Survey responses'!DL24)<1,\"\",AVERAGE('2011 Survey responses'!CZ24,'2011 Survey responses'!DD24,'2011 Survey responses'!DH24,'2011 Survey responses'!DL24))","v":2.5},{"$f":"IF('2011 Survey responses'!CW24<0.5,\"\",'2011 Survey responses'!CW24)","v":3},{"$f":"IF('2011 Survey responses'!CX24<0.5,\"\",'2011 Survey responses'!CX24)","v":3},{"$f":"IF('2011 Survey responses'!CY24<0.5,\"\",'2011 Survey responses'!CY24)","v":3},{"$f":"IF('2011 Survey responses'!CZ24<0.5,\"\",'2011 Survey responses'!CZ24)","v":3},{"$f":"IF('2011 Survey responses'!DA24<0.5,\"\",'2011 Survey responses'!DA24)","v":2},{"$f":"IF('2011 Survey responses'!DB24<0.5,\"\",'2011 Survey responses'!DB24)","v":2},{"$f":"IF('2011 Survey responses'!DC24<0.5,\"\",'2011 Survey responses'!DC24)","v":2},{"$f":"IF('2011 Survey responses'!DD24<0.5,\"\",'2011 Survey responses'!DD24)","v":2},{"$f":"IF('2011 Survey responses'!DE24<0.5,\"\",'2011 Survey responses'!DE24)","v":3},{"$f":"IF('2011 Survey responses'!DF24<0.5,\"\",'2011 Survey responses'!DF24)","v":3},{"$f":"IF('2011 Survey responses'!DG24<0.5,\"\",'2011 Survey responses'!DG24)","v":3},{"$f":"IF('2011 Survey responses'!DH24<0.5,\"\",'2011 Survey responses'!DH24)","v":3},{"$f":"IF('2011 Survey responses'!DI24<0.5,\"\",'2011 Survey responses'!DI24)","v":2},{"$f":"IF('2011 Survey responses'!DJ24<0.5,\"\",'2011 Survey responses'!DJ24)","v":2},{"$f":"IF('2011 Survey responses'!DK24<0.5,\"\",'2011 Survey responses'!DK24)","v":2},{"$f":"IF('2011 Survey responses'!DL24<0.5,\"\",'2011 Survey responses'!DL24)","v":2},{"$f":"IF('2011 Survey responses'!DU24=4,4,IF('2011 Survey responses'!DU24=5,4,\"\"))","v":4},{"$f":"IF('2011 Survey responses'!DV24=4,3,IF('2011 Survey responses'!DV24=5,3,\"\"))","v":""},"",{"$f":"IF(CQ24=2,CQ24,IF(CO24=4,CO24,IF(CP24=3,CP24,IF('2011 Survey responses'!GT24=1,1,\"\"))))","v":4},{"$f":"IF('2011 Survey responses'!DO24<0.5,\"\",'2011 Survey responses'!DO24)","v":3},{"$f":"IF('2011 Survey responses'!DP24<0.5,\"\",'2011 Survey responses'!DP24)","v":3},{"$f":"IF('2011 Survey responses'!DQ24<0.5,\"\",'2011 Survey responses'!DQ24)","v":3},{"$f":"IF('2011 Survey responses'!DR24<0.5,\"\",'2011 Survey responses'!DR24)","v":3},{"$f":"IF('2011 Survey responses'!DS24<0.5,\"\",'2011 Survey responses'!DS24)","v":3},{"$f":"IF('2011 Survey responses'!DT24<0.5,\"\",'2011 Survey responses'!DT24)","v":3},{"$f":"IF('2011 Survey responses'!DU24<0.5,\"\",'2011 Survey responses'!DU24)","v":4},{"$f":"IF('2011 Survey responses'!DV24<0.5,\"\",'2011 Survey responses'!DV24)","v":3},{"$f":"IF('2011 Survey responses'!DW24<0.5,\"\",'2011 Survey responses'!DW24)","v":2},{"$f":"IF('2011 Survey responses'!DX24<0.5,\"\",'2011 Survey responses'!DX24)","v":2},{"$f":"IF('2011 Survey responses'!DY24<0.5,\"\",'2011 Survey responses'!DY24)","v":4},{"$f":"IF('2011 Survey responses'!DZ24<0.5,\"\",'2011 Survey responses'!DZ24)","v":4},{"$f":"IF('2011 Survey responses'!EA24<0.5,\"\",'2011 Survey responses'!EA24)","v":3},{"$f":"IF('2011 Survey responses'!EB24<0.5,\"\",'2011 Survey responses'!EB24)","v":3},{"$f":"IF('2011 Survey responses'!EC24<0.5,\"\",'2011 Survey responses'!EC24)","v":3},{"$f":"IF('2011 Survey responses'!ED24<0.5,\"\",'2011 Survey responses'!ED24)","v":3},{"$f":"IF('2011 Survey responses'!EE24<0.5,\"\",'2011 Survey responses'!EE24)","v":4},{"$f":"IF('2011 Survey responses'!EF24<0.5,\"\",'2011 Survey responses'!EF24)","v":4},{"$f":"IF('2011 Survey responses'!EG24<0.5,\"\",'2011 Survey responses'!EG24)","v":5},{"$f":"IF('2011 Survey responses'!EH24<0.5,\"\",'2011 Survey responses'!EH24)","v":5},{"$f":"IF('2011 Survey responses'!EI24<0.5,\"\",'2011 Survey responses'!EI24)","v":4},{"$f":"IF('2011 Survey responses'!EJ24<0.5,\"\",'2011 Survey responses'!EJ24)","v":4},{"$f":"IF('2011 Survey responses'!EK24<0.5,\"\",'2011 Survey responses'!EK24)","v":4},{"$f":"IF('2011 Survey responses'!EL24<0.5,\"\",'2011 Survey responses'!EL24)","v":4},{"$f":"IF('2011 Survey responses'!EM24<0.5,\"\",'2011 Survey responses'!EM24)","v":4},{"$f":"IF('2011 Survey responses'!EN24<0.5,\"\",'2011 Survey responses'!EN24)","v":4},{"$f":"IF('2011 Survey responses'!EO24<0.5,\"\",'2011 Survey responses'!EO24)","v":4},{"$f":"IF('2011 Survey responses'!EP24<0.5,\"\",'2011 Survey responses'!EP24)","v":4},{"$f":"IF(('2011 Survey responses'!EW24+'2011 Survey responses'!EX24)>=2,AVERAGE('2011 Survey responses'!EW24,'2011 Survey responses'!EY24),\"\")","v":4},{"$f":"IF('2011 Survey responses'!EX24<0.5,\"\",'2011 Survey responses'!EX24)","v":4},{"$f":"IF('2011 Survey responses'!EZ24<0.5,\"\",'2011 Survey responses'!EZ24)","v":4},{"$f":"IF('2011 Survey responses'!FB24<0.5,\"\",'2011 Survey responses'!FB24)","v":4},{"$f":"IF('2011 Survey responses'!FD24<0.5,\"\",'2011 Survey responses'!FD24)","v":4},{"$f":"IF('2011 Survey responses'!FC24<0.5,\"\",'2011 Survey responses'!FC24)","v":4},{"$f":"IF(('2011 Survey responses'!EM24+'2011 Survey responses'!EN24)>=2,AVERAGE('2011 Survey responses'!EM24,'2011 Survey responses'!EN24),\"\")","v":4},{"$f":"IF('2011 Survey responses'!ES24<0.5,\"\",'2011 Survey responses'!ES24)","v":4},{"$f":"IF(('2011 Survey responses'!ET24+'2011 Survey responses'!EU24)>=2,AVERAGE('2011 Survey responses'!ET24,'2011 Survey responses'!EU24),\"\")","v":5},{"$f":"IF('2011 Survey responses'!EV24<0.5,\"\",'2011 Survey responses'!EV24)","v":4},{"$f":"IF('2011 Survey responses'!FA24<0.5,\"\",'2011 Survey responses'!FA24)","v":4},{"$f":"IF('2011 Survey responses'!ER24<0.5,\"\",'2011 Survey responses'!ER24)","v":4},{"$f":"IF(('2011 Survey responses'!EO24+'2011 Survey responses'!EP24)>=2,AVERAGE('2011 Survey responses'!EO24,'2011 Survey responses'!EP24),\"\")","v":4},{"$f":"IF('2011 Survey responses'!EQ24<0.5,\"\",'2011 Survey responses'!EQ24)","v":4},{"$f":"IF('2011 Survey responses'!ET24<0.5,\"\",'2011 Survey responses'!ET24)","v":5},{"$f":"IF('2011 Survey responses'!EU24<0.5,\"\",'2011 Survey responses'!EU24)","v":5},{"$f":"IF('2011 Survey responses'!EW24<0.5,\"\",'2011 Survey responses'!EW24)","v":4},{"$f":"IF('2011 Survey responses'!EY24<0.5,\"\",'2011 Survey responses'!EY24)","v":4},{"$f":"IF('2011 Survey responses'!FU24<0.5,\"\",'2011 Survey responses'!FU24)","v":3},{"$f":"IF(('2011 Survey responses'!FL24+'2011 Survey responses'!FM24)>=2,AVERAGE('2011 Survey responses'!FL24,'2011 Survey responses'!FM24),\"\")","v":4},{"$f":"IF(('2011 Survey responses'!FO24+'2011 Survey responses'!FQ24)>=2,AVERAGE('2011 Survey responses'!FO24,'2011 Survey responses'!FQ24),\"\")","v":4},{"$f":"IF('2011 Survey responses'!FJ24<0.5,\"\",'2011 Survey responses'!FJ24)","v":3},{"$f":"IF('2011 Survey responses'!FT24<0.5,\"\",'2011 Survey responses'!FT24)","v":3},{"$f":"IF('2011 Survey responses'!FR24<0.5,\"\",'2011 Survey responses'!FR24)","v":3},{"$f":"IF('2011 Survey responses'!FK24<0.5,\"\",'2011 Survey responses'!FK24)","v":3},{"$f":"IF('2011 Survey responses'!FP24<0.5,\"\",'2011 Survey responses'!FP24)","v":4},{"$f":"IF('2011 Survey responses'!FN24<0.5,\"\",'2011 Survey responses'!FN24)","v":3},{"$f":"IF(('2011 Survey responses'!FE24+'2011 Survey responses'!FF24)>=2,AVERAGE('2011 Survey responses'!FE24,'2011 Survey responses'!FF24),\"\")","v":3.5},{"$f":"IF('2011 Survey responses'!FS24<0.5,\"\",'2011 Survey responses'!FS24)","v":3},{"$f":"IF('2011 Survey responses'!FV24<0.5,\"\",'2011 Survey responses'!FV24)","v":3},{"$f":"IF(('2011 Survey responses'!FG24+'2011 Survey responses'!FH24)>=2,AVERAGE('2011 Survey responses'!FG24,'2011 Survey responses'!FH24),\"\")","v":4},{"$f":"IF('2011 Survey responses'!FI24<0.5,\"\",'2011 Survey responses'!FI24)","v":1},{"$f":"IF('2011 Survey responses'!FE24<0.5,\"\",'2011 Survey responses'!FE24)","v":3},{"$f":"IF('2011 Survey responses'!FF24<0.5,\"\",'2011 Survey responses'!FF24)","v":4},{"$f":"IF('2011 Survey responses'!FG24<0.5,\"\",'2011 Survey responses'!FG24)","v":4},{"$f":"IF('2011 Survey responses'!FH24<0.5,\"\",'2011 Survey responses'!FH24)","v":4},{"$f":"IF('2011 Survey responses'!FL24<0.5,\"\",'2011 Survey responses'!FL24)","v":4},{"$f":"IF('2011 Survey responses'!FM24<0.5,\"\",'2011 Survey responses'!FM24)","v":4},{"$f":"IF('2011 Survey responses'!FO24<0.5,\"\",'2011 Survey responses'!FO24)","v":4},{"$f":"IF('2011 Survey responses'!FQ24<0.5,\"\",'2011 Survey responses'!FQ24)","v":4}]
["Botswana",{"$f":"IF(SUM(F25)<1,\"\",AVERAGEIF('2011 Survey responses'!B25:CP25,\">1\"))","v":3.3975903614457832},{"$f":"IF(SUM(F25)<1,\"\",AVERAGEIF('2011 Survey responses'!B25:AO25,\">1\"))","v":3.6578947368421053},{"$f":"IF(SUM(F25)<1,\"\",AVERAGEIF('2011 Survey responses'!B25:BV25,\">1\"))","v":3.5},{"$f":"IF(SUM(F25)<1,\"\",AVERAGEIF('2011 Survey responses'!V25:BV25,\">1\"))","v":3.4680851063829787},{"$f":"IF(SUM('2011 Survey responses'!B25:U25)<1,\"\",(AVERAGEIFS('2011 Survey responses'!B25:U25,'2011 Survey responses'!B25:U25,\">1\")))","v":3.5789473684210527},{"$f":"IF(SUM('2011 Survey responses'!B25:H25)<1,\"\",(AVERAGEIFS('2011 Survey responses'!B25:H25,'2011 Survey responses'!B25:H25,\">1\")))","v":3.1428571428571428},{"$f":"IF(SUM('2011 Survey responses'!I25:S25)<1,\"\",(AVERAGEIFS('2011 Survey responses'!I25:S25,'2011 Survey responses'!I25:S25,\">1\")))","v":3.7},{"$f":"IF(SUM('2011 Survey responses'!T25:U25)<2.1,\"\",(AVERAGEIFS('2011 Survey responses'!T25:U25,'2011 Survey responses'!T25:U25,\">1\")))","v":4.5},{"$f":"IF(SUM('2011 Survey responses'!B25:C25)<2.1,\"\",((SUMIF('2011 Survey responses'!B25:C25,\">1\")+SUMIF('2011 Survey responses'!F25,\">1\"))/(COUNTIF('2011 Survey responses'!B25:C25,\">1\")+COUNTIF('2011 Survey responses'!F25,\">1\"))))","v":2},{"$f":"IF(SUM('2011 Survey responses'!D25:E25)<2.1,\"\",(AVERAGEIFS('2011 Survey responses'!D25:E25,'2011 Survey responses'!D25:E25,\">1\")))","v":6},{"$f":"IF(('2011 Survey responses'!B25+'2011 Survey responses'!D25)<2.1,\"\",((SUMIF('2011 Survey responses'!B25,\">1\")+SUMIF('2011 Survey responses'!D25,\">1\")+SUMIF('2011 Survey responses'!F25,\">1\")+SUMIF('2011 Survey responses'!K25,\">1\"))/(COUNTIF('2011 Survey responses'!B25,\">1\")+COUNTIF('2011 Survey responses'!D25,\">1\")+COUNTIF('2011 Survey responses'!F25,\">1\")+COUNTIF('2011 Survey responses'!K25,\">1\"))))","v":3.5},{"$f":"IF(SUM('2011 Survey responses'!G25:H25)<2.1,\"\",(AVERAGEIFS('2011 Survey responses'!G25:H25,'2011 Survey responses'!G25:H25,\">1\")))","v":2},{"$f":"IF(SUM('2011 Survey responses'!F25:G25)<1.5,\"\",MAX('2011 Survey responses'!F25,'2011 Survey responses'!G25))","v":2},{"$f":"IF(SUM('2011 Survey responses'!G25:H25)<1,\"\",MAX('2011 Survey responses'!G25,'2011 Survey responses'!H25))","v":2},{"$f":"IF(SUM('2011 Survey responses'!I25:L25)<4.1,\"\",(AVERAGEIFS('2011 Survey responses'!I25:L25,'2011 Survey responses'!I25:L25,\">1\")))","v":3.75},{"$f":"IF(SUM('2011 Survey responses'!M25:S25)<4.1,\"\",(AVERAGEIFS('2011 Survey responses'!M25:S25,'2011 Survey responses'!M25:S25,\">1\")))","v":3.6666666666666665},{"$f":"IF(SUM('2011 Survey responses'!T25:U25)<2.1,\"\",(AVERAGEIFS('2011 Survey responses'!T25:U25,'2011 Survey responses'!T25:U25,\">1\")))","v":4.5},{"$f":"IF(SUM('2011 Survey responses'!V25:AO25)<1,\"\",(AVERAGEIFS('2011 Survey responses'!V25:AO25,'2011 Survey responses'!V25:AO25,\">1\")))","v":3.736842105263158},{"$f":"IF(SUM('2011 Survey responses'!V25:AA25)<1,\"\",(AVERAGEIFS('2011 Survey responses'!V25:AA25,'2011 Survey responses'!V25:AA25,\">1\")))","v":3.6},{"$f":"IF(SUM('2011 Survey responses'!AB25:AH25)<1,\"\",(AVERAGEIFS('2011 Survey responses'!AB25:AH25,'2011 Survey responses'!AB25:AH25,\">1\")))","v":3.4285714285714284},{"$f":"IF(SUM('2011 Survey responses'!AI25:AO25)<1,\"\",(AVERAGEIFS('2011 Survey responses'!AI25:AO25,'2011 Survey responses'!AI25:AO25,\">1\")))","v":4.1428571428571432},{"$f":"IF(('2011 Survey responses'!Y25+'2011 Survey responses'!AI25+'2011 Survey responses'!AK25)<3.1,\"\",((SUMIF('2011 Survey responses'!Y25,\">1\")+SUMIF('2011 Survey responses'!AI25,\">1\")+SUMIF('2011 Survey responses'!AK25,\">1\")+SUMIF('2011 Survey responses'!AM25,\">1\"))/(COUNTIF('2011 Survey responses'!Y25,\">1\")+COUNTIF('2011 Survey responses'!AI25,\">1\")+COUNTIF('2011 Survey responses'!AK25,\">1\")+COUNTIF('2011 Survey responses'!AM25,\">1\"))))","v":4.5},{"$f":"IF(('2011 Survey responses'!W25)<1.1,\"\",('2011 Survey responses'!W25))","v":4},{"$f":"IF(('2011 Survey responses'!Y25)<1.1,\"\",('2011 Survey responses'!Y25))","v":4},{"$f":"IF(('2011 Survey responses'!Z25)<1.1,\"\",('2011 Survey responses'!Z25))","v":4},{"$f":"IF(('2011 Survey responses'!V25+'2011 Survey responses'!X25+'2011 Survey responses'!AA25)<3.1,\"\",((SUMIF('2011 Survey responses'!V25,\">1\")+SUMIF('2011 Survey responses'!X25,\">1\")+SUMIF('2011 Survey responses'!AA25,\">1\"))/(COUNTIF('2011 Survey responses'!V25,\">1\")+COUNTIF('2011 Survey responses'!X25,\">1\")+COUNTIF('2011 Survey responses'!AA25,\">1\"))))","v":3},{"$f":"IF(('2011 Survey responses'!V25+'2011 Survey responses'!Y25+'2011 Survey responses'!AA25)<3.1,\"\",((SUMIF('2011 Survey responses'!V25,\">1\")+SUMIF('2011 Survey responses'!Y25,\">1\")+SUMIF('2011 Survey responses'!AA25,\">1\"))/(COUNTIF('2011 Survey responses'!V25,\">1\")+COUNTIF('2011 Survey responses'!Y25,\">1\")+COUNTIF('2011 Survey responses'!AA25,\">1\"))))","v":3.3333333333333335},{"$f":"IF(SUM('2011 Survey responses'!AB25:AH25)<1,\"\",(AVERAGEIFS('2011 Survey responses'!AB25:AH25,'2011 Survey responses'!AB25:AH25,\">1\")))","v":3.4285714285714284},{"$f":"IF(SUM('2011 Survey responses'!AI25:AO25)<7.1,\"\",(AVERAGEIFS('2011 Survey responses'!AI25:AO25,'2011 Survey responses'!AI25:AO25,\">1\")))","v":4.1428571428571432},{"$f":"IF(('2011 Survey responses'!AH25)<1.1,\"\",('2011 Survey responses'!AH25))","v":2},{"$f":"IF(SUM('2011 Survey responses'!AP25:BV25)<1,\"\",(AVERAGEIFS('2011 Survey responses'!AP25:BV25,'2011 Survey responses'!AP25:BV25,\">1\")))","v":3.2857142857142856},{"$f":"IF(SUM('2011 Survey responses'!AP25:AS25)<4.1,\"\",(AVERAGEIFS('2011 Survey responses'!AP25:AS25,'2011 Survey responses'!AP25:AS25,\">1\")))","v":2.75},{"$f":"IF(SUM('2011 Survey responses'!AT25:BF25)<1,\"\",(AVERAGEIFS('2011 Survey responses'!AT25:BF25,'2011 Survey responses'!AT25:BF25,\">1\")))","v":3.4},{"$f":"IF(SUM('2011 Survey responses'!BG25:BO25)<1,\"\",(AVERAGEIFS('2011 Survey responses'!BG25:BO25,'2011 Survey responses'!BG25:BO25,\">1\")))","v":3.5555555555555554},{"$f":"IF(SUM('2011 Survey responses'!BP25:BS25)<1,\"\",(AVERAGEIFS('2011 Survey responses'!BP25:BS25,'2011 Survey responses'!BP25:BS25,\">1\")))","v":3},{"$f":"IF(SUM('2011 Survey responses'!BT25:BV25)<3.1,\"\",(AVERAGEIFS('2011 Survey responses'!BT25:BV25,'2011 Survey responses'!BT25:BV25,\">1\")))","v":3},{"$f":"IF(('2011 Survey responses'!AQ25+'2011 Survey responses'!AR25+'2011 Survey responses'!BG25)<3.1,\"\",((SUMIF('2011 Survey responses'!AQ25,\">1\")+SUMIF('2011 Survey responses'!AR25,\">1\")+SUMIF('2011 Survey responses'!BG25,\">1\"))/(COUNTIF('2011 Survey responses'!AQ25,\">1\")+COUNTIF('2011 Survey responses'!AR25,\">1\")+COUNTIF('2011 Survey responses'!BG25,\">1\"))))","v":3.3333333333333335},{"$f":"IF(SUM('2011 Survey responses'!AP25:AS25)<4.1,\"\",(AVERAGEIFS('2011 Survey responses'!AP25:AS25,'2011 Survey responses'!AP25:AS25,\">1\")))","v":2.75},{"$f":"IF(('2011 Survey responses'!AU25+'2011 Survey responses'!AX25+'2011 Survey responses'!BA25+'2011 Survey responses'!BC25+'2011 Survey responses'!BD25)<5.1,\"\",(SUMIF('2011 Survey responses'!AU25,\">1\")+SUMIF('2011 Survey responses'!AX25,\">1\")+SUMIF('2011 Survey responses'!BA25,\">1\")+SUMIF('2011 Survey responses'!BC25,\">1\")+SUMIF('2011 Survey responses'!BD25,\">1\"))/(COUNTIF('2011 Survey responses'!AU25,\">1\")+COUNTIF('2011 Survey responses'!AX25,\">1\")+COUNTIF('2011 Survey responses'!BA25,\">1\")+COUNTIF('2011 Survey responses'!BC25,\">1\")+COUNTIF('2011 Survey responses'!BD25,\">1\")))","v":3.3333333333333335},{"$f":"IF(('2011 Survey responses'!AT25)<1.1,\"\",('2011 Survey responses'!AT25))","v":6},{"$f":"IF(SUM('2011 Survey responses'!AV25:AW25)<2.1,\"\",(AVERAGEIFS('2011 Survey responses'!AV25:AW25,'2011 Survey responses'!AV25:AW25,\">1\")))","v":2},{"$f":"IF(('2011 Survey responses'!AW25+'2011 Survey responses'!AY25)<2.1,\"\",(SUMIF('2011 Survey responses'!AW25,\">1\")+SUMIF('2011 Survey responses'!AY25,\">1\"))/(COUNTIF('2011 Survey responses'!AW25,\">1\")+COUNTIF('2011 Survey responses'!AY25,\">1\")))","v":2},{"$f":"IF(('2011 Survey responses'!AZ25)<1.1,\"\",('2011 Survey responses'!AZ25))","v":2},2,null,2,1,{"$f":"IF(('2011 Survey responses'!BE25)<1.1,\"\",('2011 Survey responses'!BE25))","v":4},{"$f":"IF(('2011 Survey responses'!AY25+'2011 Survey responses'!BB25+'2011 Survey responses'!BF25)<3.1,\"\",(SUMIF('2011 Survey responses'!AY25,\">1\")+SUMIF('2011 Survey responses'!BB25,\">1\")+SUMIF('2011 Survey responses'!BF25,\">1\"))/(COUNTIF('2011 Survey responses'!AY25,\">1\")+COUNTIF('2011 Survey responses'!BB25,\">1\")+COUNTIF('2011 Survey responses'!BF25,\">1\")))","v":3.3333333333333335},3.2777777777777777,{"$f":"IF(SUM('2011 Survey responses'!BT25:BV25)<3.1,\"\",(AVERAGEIFS('2011 Survey responses'!BT25:BV25,'2011 Survey responses'!BT25:BV25,\">1\")))","v":3},{"$f":"IF(SUM('2011 Survey responses'!BW25:CP25)<1,\"\",(AVERAGEIFS('2011 Survey responses'!BW25:CP25,'2011 Survey responses'!BW25:CP25,\">1\")))","v":3},{"$f":"IF(SUM('2011 Survey responses'!BW25:CF25)<1,\"\",(AVERAGEIFS('2011 Survey responses'!BW25:CF25,'2011 Survey responses'!BW25:CF25,\">1\")))","v":2.5555555555555554},{"$f":"IF(SUM('2011 Survey responses'!CG25:CP25)<1,\"\",(AVERAGEIFS('2011 Survey responses'!CG25:CP25,'2011 Survey responses'!CG25:CP25,\">1\")))","v":3.5},{"$f":"IF(SUM('2011 Survey responses'!BX25:CF25)<1,\"\",(AVERAGEIFS('2011 Survey responses'!BX25:CF25,'2011 Survey responses'!BX25:CF25,\">1\")))","v":2.375},{"$f":"IF(SUM('2011 Survey responses'!CH25:CP25)<1,\"\",(AVERAGEIFS('2011 Survey responses'!CH25:CP25,'2011 Survey responses'!CH25:CP25,\">1\")))","v":3.1428571428571428},{"$f":"IF(SUM('2011 Survey responses'!BW25:CP25)<1,\"\",(AVERAGEIFS('2011 Survey responses'!BW25:CP25,'2011 Survey responses'!BW25:CP25,\">1\")))","v":3},{"$f":"IF(('2011 Survey responses'!BW25+'2011 Survey responses'!CG25)<2.1,\"\",(SUMIF('2011 Survey responses'!BW25,\">1\")+SUMIF('2011 Survey responses'!CG25,\">1\"))/(COUNTIF('2011 Survey responses'!BW25,\">1\")+COUNTIF('2011 Survey responses'!CG25,\">1\")))","v":5},{"$f":"IF(('2011 Survey responses'!BX25+'2011 Survey responses'!CH25)<2.1,\"\",(SUMIF('2011 Survey responses'!BX25,\">1\")+SUMIF('2011 Survey responses'!CH25,\">1\"))/(COUNTIF('2011 Survey responses'!BX25,\">1\")+COUNTIF('2011 Survey responses'!CH25,\">1\")))","v":3.5},{"$f":"IF(('2011 Survey responses'!BY25+'2011 Survey responses'!CI25)<2.1,\"\",(SUMIF('2011 Survey responses'!BY25,\">1\")+SUMIF('2011 Survey responses'!CI25,\">1\"))/(COUNTIF('2011 Survey responses'!BY25,\">1\")+COUNTIF('2011 Survey responses'!CI25,\">1\")))","v":5},{"$f":"IF('2011 Survey responses'!CQ25<0.5,\"\",'2011 Survey responses'!CQ25)","v":4},{"$f":"IF('2011 Survey responses'!CR25<0.5,\"\",'2011 Survey responses'!CR25)","v":3},{"$f":"IF('2011 Survey responses'!CS25<0.5,\"\",'2011 Survey responses'!CS25)","v":2},{"$f":"IF('2011 Survey responses'!CT25<0.5,\"\",'2011 Survey responses'!CT25)","v":2},{"$f":"IF('2011 Survey responses'!CU25<0.5,\"\",'2011 Survey responses'!CU25)","v":1},{"$f":"IF('2011 Survey responses'!CV25<0.5,\"\",'2011 Survey responses'!CV25)","v":1},{"$f":"IF(SUM('2011 Survey responses'!CW25:DL25)<1,\"\",(AVERAGE('2011 Survey responses'!CW25:DL25)))","v":3.3125},{"$f":"IF(SUM('2011 Survey responses'!CW25:CZ25)<1,\"\",(AVERAGE('2011 Survey responses'!CW25:CZ25)))","v":3.25},{"$f":"IF(SUM('2011 Survey responses'!DA25:DD25)<1,\"\",(AVERAGE('2011 Survey responses'!DA25:DD25)))","v":3},{"$f":"IF(SUM('2011 Survey responses'!DE25:DH25)<1,\"\",(AVERAGE('2011 Survey responses'!DE25:DH25)))","v":3},{"$f":"IF(SUM('2011 Survey responses'!DI25:DL25)<1,\"\",(AVERAGE('2011 Survey responses'!DI25:DL25)))","v":4},{"$f":"IF(('2011 Survey responses'!CW25+'2011 Survey responses'!DA25+'2011 Survey responses'!DE25+'2011 Survey responses'!DI25)<1,\"\",AVERAGE('2011 Survey responses'!CW25,'2011 Survey responses'!DA25,'2011 Survey responses'!DE25,'2011 Survey responses'!DI25))","v":3.25},{"$f":"IF(('2011 Survey responses'!CX25+'2011 Survey responses'!DB25+'2011 Survey responses'!DF25+'2011 Survey responses'!DJ25)<1,\"\",AVERAGE('2011 Survey responses'!CX25,'2011 Survey responses'!DB25,'2011 Survey responses'!DF25,'2011 Survey responses'!DJ25))","v":3.25},{"$f":"IF(('2011 Survey responses'!CY25+'2011 Survey responses'!DC25+'2011 Survey responses'!DG25+'2011 Survey responses'!DK25)<1,\"\",AVERAGE('2011 Survey responses'!CY25,'2011 Survey responses'!DC25,'2011 Survey responses'!DG25,'2011 Survey responses'!DK25))","v":3.5},{"$f":"IF(('2011 Survey responses'!CZ25+'2011 Survey responses'!DD25+'2011 Survey responses'!DH25+'2011 Survey responses'!DL25)<1,\"\",AVERAGE('2011 Survey responses'!CZ25,'2011 Survey responses'!DD25,'2011 Survey responses'!DH25,'2011 Survey responses'!DL25))","v":3.25},{"$f":"IF('2011 Survey responses'!CW25<0.5,\"\",'2011 Survey responses'!CW25)","v":3},{"$f":"IF('2011 Survey responses'!CX25<0.5,\"\",'2011 Survey responses'!CX25)","v":3},{"$f":"IF('2011 Survey responses'!CY25<0.5,\"\",'2011 Survey responses'!CY25)","v":4},{"$f":"IF('2011 Survey responses'!CZ25<0.5,\"\",'2011 Survey responses'!CZ25)","v":3},{"$f":"IF('2011 Survey responses'!DA25<0.5,\"\",'2011 Survey responses'!DA25)","v":3},{"$f":"IF('2011 Survey responses'!DB25<0.5,\"\",'2011 Survey responses'!DB25)","v":3},{"$f":"IF('2011 Survey responses'!DC25<0.5,\"\",'2011 Survey responses'!DC25)","v":3},{"$f":"IF('2011 Survey responses'!DD25<0.5,\"\",'2011 Survey responses'!DD25)","v":3},{"$f":"IF('2011 Survey responses'!DE25<0.5,\"\",'2011 Survey responses'!DE25)","v":3},{"$f":"IF('2011 Survey responses'!DF25<0.5,\"\",'2011 Survey responses'!DF25)","v":3},{"$f":"IF('2011 Survey responses'!DG25<0.5,\"\",'2011 Survey responses'!DG25)","v":3},{"$f":"IF('2011 Survey responses'!DH25<0.5,\"\",'2011 Survey responses'!DH25)","v":3},{"$f":"IF('2011 Survey responses'!DI25<0.5,\"\",'2011 Survey responses'!DI25)","v":4},{"$f":"IF('2011 Survey responses'!DJ25<0.5,\"\",'2011 Survey responses'!DJ25)","v":4},{"$f":"IF('2011 Survey responses'!DK25<0.5,\"\",'2011 Survey responses'!DK25)","v":4},{"$f":"IF('2011 Survey responses'!DL25<0.5,\"\",'2011 Survey responses'!DL25)","v":4},{"$f":"IF('2011 Survey responses'!DU25=4,4,IF('2011 Survey responses'!DU25=5,4,\"\"))","v":""},{"$f":"IF('2011 Survey responses'!DV25=4,3,IF('2011 Survey responses'!DV25=5,3,\"\"))","v":3},"",{"$f":"IF(CQ25=2,CQ25,IF(CO25=4,CO25,IF(CP25=3,CP25,IF('2011 Survey responses'!GT25=1,1,\"\"))))","v":3},{"$f":"IF('2011 Survey responses'!DO25<0.5,\"\",'2011 Survey responses'!DO25)","v":""},{"$f":"IF('2011 Survey responses'!DP25<0.5,\"\",'2011 Survey responses'!DP25)","v":""},{"$f":"IF('2011 Survey responses'!DQ25<0.5,\"\",'2011 Survey responses'!DQ25)","v":""},{"$f":"IF('2011 Survey responses'!DR25<0.5,\"\",'2011 Survey responses'!DR25)","v":""},{"$f":"IF('2011 Survey responses'!DS25<0.5,\"\",'2011 Survey responses'!DS25)","v":""},{"$f":"IF('2011 Survey responses'!DT25<0.5,\"\",'2011 Survey responses'!DT25)","v":""},{"$f":"IF('2011 Survey responses'!DU25<0.5,\"\",'2011 Survey responses'!DU25)","v":""},{"$f":"IF('2011 Survey responses'!DV25<0.5,\"\",'2011 Survey responses'!DV25)","v":4},{"$f":"IF('2011 Survey responses'!DW25<0.5,\"\",'2011 Survey responses'!DW25)","v":4},{"$f":"IF('2011 Survey responses'!DX25<0.5,\"\",'2011 Survey responses'!DX25)","v":4},{"$f":"IF('2011 Survey responses'!DY25<0.5,\"\",'2011 Survey responses'!DY25)","v":4},{"$f":"IF('2011 Survey responses'!DZ25<0.5,\"\",'2011 Survey responses'!DZ25)","v":4},{"$f":"IF('2011 Survey responses'!EA25<0.5,\"\",'2011 Survey responses'!EA25)","v":4},{"$f":"IF('2011 Survey responses'!EB25<0.5,\"\",'2011 Survey responses'!EB25)","v":4},{"$f":"IF('2011 Survey responses'!EC25<0.5,\"\",'2011 Survey responses'!EC25)","v":4},{"$f":"IF('2011 Survey responses'!ED25<0.5,\"\",'2011 Survey responses'!ED25)","v":4},{"$f":"IF('2011 Survey responses'!EE25<0.5,\"\",'2011 Survey responses'!EE25)","v":3},{"$f":"IF('2011 Survey responses'!EF25<0.5,\"\",'2011 Survey responses'!EF25)","v":4},{"$f":"IF('2011 Survey responses'!EG25<0.5,\"\",'2011 Survey responses'!EG25)","v":4},{"$f":"IF('2011 Survey responses'!EH25<0.5,\"\",'2011 Survey responses'!EH25)","v":3},{"$f":"IF('2011 Survey responses'!EI25<0.5,\"\",'2011 Survey responses'!EI25)","v":3},{"$f":"IF('2011 Survey responses'!EJ25<0.5,\"\",'2011 Survey responses'!EJ25)","v":3},{"$f":"IF('2011 Survey responses'!EK25<0.5,\"\",'2011 Survey responses'!EK25)","v":3},{"$f":"IF('2011 Survey responses'!EL25<0.5,\"\",'2011 Survey responses'!EL25)","v":3},{"$f":"IF('2011 Survey responses'!EM25<0.5,\"\",'2011 Survey responses'!EM25)","v":5},{"$f":"IF('2011 Survey responses'!EN25<0.5,\"\",'2011 Survey responses'!EN25)","v":5},{"$f":"IF('2011 Survey responses'!EO25<0.5,\"\",'2011 Survey responses'!EO25)","v":4},{"$f":"IF('2011 Survey responses'!EP25<0.5,\"\",'2011 Survey responses'!EP25)","v":4},{"$f":"IF(('2011 Survey responses'!EW25+'2011 Survey responses'!EX25)>=2,AVERAGE('2011 Survey responses'!EW25,'2011 Survey responses'!EY25),\"\")","v":4},{"$f":"IF('2011 Survey responses'!EX25<0.5,\"\",'2011 Survey responses'!EX25)","v":4},{"$f":"IF('2011 Survey responses'!EZ25<0.5,\"\",'2011 Survey responses'!EZ25)","v":5},{"$f":"IF('2011 Survey responses'!FB25<0.5,\"\",'2011 Survey responses'!FB25)","v":5},{"$f":"IF('2011 Survey responses'!FD25<0.5,\"\",'2011 Survey responses'!FD25)","v":5},{"$f":"IF('2011 Survey responses'!FC25<0.5,\"\",'2011 Survey responses'!FC25)","v":5},{"$f":"IF(('2011 Survey responses'!EM25+'2011 Survey responses'!EN25)>=2,AVERAGE('2011 Survey responses'!EM25,'2011 Survey responses'!EN25),\"\")","v":5},{"$f":"IF('2011 Survey responses'!ES25<0.5,\"\",'2011 Survey responses'!ES25)","v":4},{"$f":"IF(('2011 Survey responses'!ET25+'2011 Survey responses'!EU25)>=2,AVERAGE('2011 Survey responses'!ET25,'2011 Survey responses'!EU25),\"\")","v":4},{"$f":"IF('2011 Survey responses'!EV25<0.5,\"\",'2011 Survey responses'!EV25)","v":5},{"$f":"IF('2011 Survey responses'!FA25<0.5,\"\",'2011 Survey responses'!FA25)","v":5},{"$f":"IF('2011 Survey responses'!ER25<0.5,\"\",'2011 Survey responses'!ER25)","v":4},{"$f":"IF(('2011 Survey responses'!EO25+'2011 Survey responses'!EP25)>=2,AVERAGE('2011 Survey responses'!EO25,'2011 Survey responses'!EP25),\"\")","v":4},{"$f":"IF('2011 Survey responses'!EQ25<0.5,\"\",'2011 Survey responses'!EQ25)","v":3},{"$f":"IF('2011 Survey responses'!ET25<0.5,\"\",'2011 Survey responses'!ET25)","v":4},{"$f":"IF('2011 Survey responses'!EU25<0.5,\"\",'2011 Survey responses'!EU25)","v":4},{"$f":"IF('2011 Survey responses'!EW25<0.5,\"\",'2011 Survey responses'!EW25)","v":4},{"$f":"IF('2011 Survey responses'!EY25<0.5,\"\",'2011 Survey responses'!EY25)","v":4},{"$f":"IF('2011 Survey responses'!FU25<0.5,\"\",'2011 Survey responses'!FU25)","v":3},{"$f":"IF(('2011 Survey responses'!FL25+'2011 Survey responses'!FM25)>=2,AVERAGE('2011 Survey responses'!FL25,'2011 Survey responses'!FM25),\"\")","v":4},{"$f":"IF(('2011 Survey responses'!FO25+'2011 Survey responses'!FQ25)>=2,AVERAGE('2011 Survey responses'!FO25,'2011 Survey responses'!FQ25),\"\")","v":4},{"$f":"IF('2011 Survey responses'!FJ25<0.5,\"\",'2011 Survey responses'!FJ25)","v":4},{"$f":"IF('2011 Survey responses'!FT25<0.5,\"\",'2011 Survey responses'!FT25)","v":4},{"$f":"IF('2011 Survey responses'!FR25<0.5,\"\",'2011 Survey responses'!FR25)","v":3},{"$f":"IF('2011 Survey responses'!FK25<0.5,\"\",'2011 Survey responses'!FK25)","v":4},{"$f":"IF('2011 Survey responses'!FP25<0.5,\"\",'2011 Survey responses'!FP25)","v":4},{"$f":"IF('2011 Survey responses'!FN25<0.5,\"\",'2011 Survey responses'!FN25)","v":3},{"$f":"IF(('2011 Survey responses'!FE25+'2011 Survey responses'!FF25)>=2,AVERAGE('2011 Survey responses'!FE25,'2011 Survey responses'!FF25),\"\")","v":1},{"$f":"IF('2011 Survey responses'!FS25<0.5,\"\",'2011 Survey responses'!FS25)","v":3},{"$f":"IF('2011 Survey responses'!FV25<0.5,\"\",'2011 Survey responses'!FV25)","v":3},{"$f":"IF(('2011 Survey responses'!FG25+'2011 Survey responses'!FH25)>=2,AVERAGE('2011 Survey responses'!FG25,'2011 Survey responses'!FH25),\"\")","v":2},{"$f":"IF('2011 Survey responses'!FI25<0.5,\"\",'2011 Survey responses'!FI25)","v":3},{"$f":"IF('2011 Survey responses'!FE25<0.5,\"\",'2011 Survey responses'!FE25)","v":1},{"$f":"IF('2011 Survey responses'!FF25<0.5,\"\",'2011 Survey responses'!FF25)","v":1},{"$f":"IF('2011 Survey responses'!FG25<0.5,\"\",'2011 Survey responses'!FG25)","v":2},{"$f":"IF('2011 Survey responses'!FH25<0.5,\"\",'2011 Survey responses'!FH25)","v":2},{"$f":"IF('2011 Survey responses'!FL25<0.5,\"\",'2011 Survey responses'!FL25)","v":4},{"$f":"IF('2011 Survey responses'!FM25<0.5,\"\",'2011 Survey responses'!FM25)","v":4},{"$f":"IF('2011 Survey responses'!FO25<0.5,\"\",'2011 Survey responses'!FO25)","v":4},{"$f":"IF('2011 Survey responses'!FQ25<0.5,\"\",'2011 Survey responses'!FQ25)","v":4}]
["Brazil",{"$f":"IF(SUM(F26)<1,\"\",AVERAGEIF('2011 Survey responses'!B26:CP26,\">1\"))","v":3.7419354838709675},{"$f":"IF(SUM(F26)<1,\"\",AVERAGEIF('2011 Survey responses'!B26:AO26,\">1\"))","v":3.85},{"$f":"IF(SUM(F26)<1,\"\",AVERAGEIF('2011 Survey responses'!B26:BV26,\">1\"))","v":3.8493150684931505},{"$f":"IF(SUM(F26)<1,\"\",AVERAGEIF('2011 Survey responses'!V26:BV26,\">1\"))","v":4.0377358490566042},{"$f":"IF(SUM('2011 Survey responses'!B26:U26)<1,\"\",(AVERAGEIFS('2011 Survey responses'!B26:U26,'2011 Survey responses'!B26:U26,\">1\")))","v":3.35},{"$f":"IF(SUM('2011 Survey responses'!B26:H26)<1,\"\",(AVERAGEIFS('2011 Survey responses'!B26:H26,'2011 Survey responses'!B26:H26,\">1\")))","v":4},{"$f":"IF(SUM('2011 Survey responses'!I26:S26)<1,\"\",(AVERAGEIFS('2011 Survey responses'!I26:S26,'2011 Survey responses'!I26:S26,\">1\")))","v":2.8181818181818183},{"$f":"IF(SUM('2011 Survey responses'!T26:U26)<2.1,\"\",(AVERAGEIFS('2011 Survey responses'!T26:U26,'2011 Survey responses'!T26:U26,\">1\")))","v":4},{"$f":"IF(SUM('2011 Survey responses'!B26:C26)<2.1,\"\",((SUMIF('2011 Survey responses'!B26:C26,\">1\")+SUMIF('2011 Survey responses'!F26,\">1\"))/(COUNTIF('2011 Survey responses'!B26:C26,\">1\")+COUNTIF('2011 Survey responses'!F26,\">1\"))))","v":4.333333333333333},{"$f":"IF(SUM('2011 Survey responses'!D26:E26)<2.1,\"\",(AVERAGEIFS('2011 Survey responses'!D26:E26,'2011 Survey responses'!D26:E26,\">1\")))","v":5},{"$f":"IF(('2011 Survey responses'!B26+'2011 Survey responses'!D26)<2.1,\"\",((SUMIF('2011 Survey responses'!B26,\">1\")+SUMIF('2011 Survey responses'!D26,\">1\")+SUMIF('2011 Survey responses'!F26,\">1\")+SUMIF('2011 Survey responses'!K26,\">1\"))/(COUNTIF('2011 Survey responses'!B26,\">1\")+COUNTIF('2011 Survey responses'!D26,\">1\")+COUNTIF('2011 Survey responses'!F26,\">1\")+COUNTIF('2011 Survey responses'!K26,\">1\"))))","v":4.25},{"$f":"IF(SUM('2011 Survey responses'!G26:H26)<2.1,\"\",(AVERAGEIFS('2011 Survey responses'!G26:H26,'2011 Survey responses'!G26:H26,\">1\")))","v":2.5},{"$f":"IF(SUM('2011 Survey responses'!F26:G26)<1.5,\"\",MAX('2011 Survey responses'!F26,'2011 Survey responses'!G26))","v":4},{"$f":"IF(SUM('2011 Survey responses'!G26:H26)<1,\"\",MAX('2011 Survey responses'!G26,'2011 Survey responses'!H26))","v":3},{"$f":"IF(SUM('2011 Survey responses'!I26:L26)<4.1,\"\",(AVERAGEIFS('2011 Survey responses'!I26:L26,'2011 Survey responses'!I26:L26,\">1\")))","v":2.75},{"$f":"IF(SUM('2011 Survey responses'!M26:S26)<4.1,\"\",(AVERAGEIFS('2011 Survey responses'!M26:S26,'2011 Survey responses'!M26:S26,\">1\")))","v":2.8571428571428572},{"$f":"IF(SUM('2011 Survey responses'!T26:U26)<2.1,\"\",(AVERAGEIFS('2011 Survey responses'!T26:U26,'2011 Survey responses'!T26:U26,\">1\")))","v":4},{"$f":"IF(SUM('2011 Survey responses'!V26:AO26)<1,\"\",(AVERAGEIFS('2011 Survey responses'!V26:AO26,'2011 Survey responses'!V26:AO26,\">1\")))","v":4.3499999999999996},{"$f":"IF(SUM('2011 Survey responses'!V26:AA26)<1,\"\",(AVERAGEIFS('2011 Survey responses'!V26:AA26,'2011 Survey responses'!V26:AA26,\">1\")))","v":3.5},{"$f":"IF(SUM('2011 Survey responses'!AB26:AH26)<1,\"\",(AVERAGEIFS('2011 Survey responses'!AB26:AH26,'2011 Survey responses'!AB26:AH26,\">1\")))","v":4.8571428571428568},{"$f":"IF(SUM('2011 Survey responses'!AI26:AO26)<1,\"\",(AVERAGEIFS('2011 Survey responses'!AI26:AO26,'2011 Survey responses'!AI26:AO26,\">1\")))","v":4.5714285714285712},{"$f":"IF(('2011 Survey responses'!Y26+'2011 Survey responses'!AI26+'2011 Survey responses'!AK26)<3.1,\"\",((SUMIF('2011 Survey responses'!Y26,\">1\")+SUMIF('2011 Survey responses'!AI26,\">1\")+SUMIF('2011 Survey responses'!AK26,\">1\")+SUMIF('2011 Survey responses'!AM26,\">1\"))/(COUNTIF('2011 Survey responses'!Y26,\">1\")+COUNTIF('2011 Survey responses'!AI26,\">1\")+COUNTIF('2011 Survey responses'!AK26,\">1\")+COUNTIF('2011 Survey responses'!AM26,\">1\"))))","v":4},{"$f":"IF(('2011 Survey responses'!W26)<1.1,\"\",('2011 Survey responses'!W26))","v":4},{"$f":"IF(('2011 Survey responses'!Y26)<1.1,\"\",('2011 Survey responses'!Y26))","v":2},{"$f":"IF(('2011 Survey responses'!Z26)<1.1,\"\",('2011 Survey responses'!Z26))","v":3},{"$f":"IF(('2011 Survey responses'!V26+'2011 Survey responses'!X26+'2011 Survey responses'!AA26)<3.1,\"\",((SUMIF('2011 Survey responses'!V26,\">1\")+SUMIF('2011 Survey responses'!X26,\">1\")+SUMIF('2011 Survey responses'!AA26,\">1\"))/(COUNTIF('2011 Survey responses'!V26,\">1\")+COUNTIF('2011 Survey responses'!X26,\">1\")+COUNTIF('2011 Survey responses'!AA26,\">1\"))))","v":4},{"$f":"IF(('2011 Survey responses'!V26+'2011 Survey responses'!Y26+'2011 Survey responses'!AA26)<3.1,\"\",((SUMIF('2011 Survey responses'!V26,\">1\")+SUMIF('2011 Survey responses'!Y26,\">1\")+SUMIF('2011 Survey responses'!AA26,\">1\"))/(COUNTIF('2011 Survey responses'!V26,\">1\")+COUNTIF('2011 Survey responses'!Y26,\">1\")+COUNTIF('2011 Survey responses'!AA26,\">1\"))))","v":4},{"$f":"IF(SUM('2011 Survey responses'!AB26:AH26)<1,\"\",(AVERAGEIFS('2011 Survey responses'!AB26:AH26,'2011 Survey responses'!AB26:AH26,\">1\")))","v":4.8571428571428568},{"$f":"IF(SUM('2011 Survey responses'!AI26:AO26)<7.1,\"\",(AVERAGEIFS('2011 Survey responses'!AI26:AO26,'2011 Survey responses'!AI26:AO26,\">1\")))","v":4.5714285714285712},{"$f":"IF(('2011 Survey responses'!AH26)<1.1,\"\",('2011 Survey responses'!AH26))","v":4},{"$f":"IF(SUM('2011 Survey responses'!AP26:BV26)<1,\"\",(AVERAGEIFS('2011 Survey responses'!AP26:BV26,'2011 Survey responses'!AP26:BV26,\">1\")))","v":3.8484848484848486},{"$f":"IF(SUM('2011 Survey responses'!AP26:AS26)<4.1,\"\",(AVERAGEIFS('2011 Survey responses'!AP26:AS26,'2011 Survey responses'!AP26:AS26,\">1\")))","v":4.75},{"$f":"IF(SUM('2011 Survey responses'!AT26:BF26)<1,\"\",(AVERAGEIFS('2011 Survey responses'!AT26:BF26,'2011 Survey responses'!AT26:BF26,\">1\")))","v":3.7692307692307692},{"$f":"IF(SUM('2011 Survey responses'!BG26:BO26)<1,\"\",(AVERAGEIFS('2011 Survey responses'!BG26:BO26,'2011 Survey responses'!BG26:BO26,\">1\")))","v":3.8888888888888888},{"$f":"IF(SUM('2011 Survey responses'!BP26:BS26)<1,\"\",(AVERAGEIFS('2011 Survey responses'!BP26:BS26,'2011 Survey responses'!BP26:BS26,\">1\")))","v":3.5},{"$f":"IF(SUM('2011 Survey responses'!BT26:BV26)<3.1,\"\",(AVERAGEIFS('2011 Survey responses'!BT26:BV26,'2011 Survey responses'!BT26:BV26,\">1\")))","v":3.3333333333333335},{"$f":"IF(('2011 Survey responses'!AQ26+'2011 Survey responses'!AR26+'2011 Survey responses'!BG26)<3.1,\"\",((SUMIF('2011 Survey responses'!AQ26,\">1\")+SUMIF('2011 Survey responses'!AR26,\">1\")+SUMIF('2011 Survey responses'!BG26,\">1\"))/(COUNTIF('2011 Survey responses'!AQ26,\">1\")+COUNTIF('2011 Survey responses'!AR26,\">1\")+COUNTIF('2011 Survey responses'!BG26,\">1\"))))","v":5.333333333333333},{"$f":"IF(SUM('2011 Survey responses'!AP26:AS26)<4.1,\"\",(AVERAGEIFS('2011 Survey responses'!AP26:AS26,'2011 Survey responses'!AP26:AS26,\">1\")))","v":4.75},{"$f":"IF(('2011 Survey responses'!AU26+'2011 Survey responses'!AX26+'2011 Survey responses'!BA26+'2011 Survey responses'!BC26+'2011 Survey responses'!BD26)<5.1,\"\",(SUMIF('2011 Survey responses'!AU26,\">1\")+SUMIF('2011 Survey responses'!AX26,\">1\")+SUMIF('2011 Survey responses'!BA26,\">1\")+SUMIF('2011 Survey responses'!BC26,\">1\")+SUMIF('2011 Survey responses'!BD26,\">1\"))/(COUNTIF('2011 Survey responses'!AU26,\">1\")+COUNTIF('2011 Survey responses'!AX26,\">1\")+COUNTIF('2011 Survey responses'!BA26,\">1\")+COUNTIF('2011 Survey responses'!BC26,\">1\")+COUNTIF('2011 Survey responses'!BD26,\">1\")))","v":3.8},{"$f":"IF(('2011 Survey responses'!AT26)<1.1,\"\",('2011 Survey responses'!AT26))","v":4},{"$f":"IF(SUM('2011 Survey responses'!AV26:AW26)<2.1,\"\",(AVERAGEIFS('2011 Survey responses'!AV26:AW26,'2011 Survey responses'!AV26:AW26,\">1\")))","v":3},{"$f":"IF(('2011 Survey responses'!AW26+'2011 Survey responses'!AY26)<2.1,\"\",(SUMIF('2011 Survey responses'!AW26,\">1\")+SUMIF('2011 Survey responses'!AY26,\">1\"))/(COUNTIF('2011 Survey responses'!AW26,\">1\")+COUNTIF('2011 Survey responses'!AY26,\">1\")))","v":4},{"$f":"IF(('2011 Survey responses'!AZ26)<1.1,\"\",('2011 Survey responses'!AZ26))","v":4},4,4,2,2,{"$f":"IF(('2011 Survey responses'!BE26)<1.1,\"\",('2011 Survey responses'!BE26))","v":4},{"$f":"IF(('2011 Survey responses'!AY26+'2011 Survey responses'!BB26+'2011 Survey responses'!BF26)<3.1,\"\",(SUMIF('2011 Survey responses'!AY26,\">1\")+SUMIF('2011 Survey responses'!BB26,\">1\")+SUMIF('2011 Survey responses'!BF26,\">1\"))/(COUNTIF('2011 Survey responses'!AY26,\">1\")+COUNTIF('2011 Survey responses'!BB26,\">1\")+COUNTIF('2011 Survey responses'!BF26,\">1\")))","v":4},3.6944444444444446,{"$f":"IF(SUM('2011 Survey responses'!BT26:BV26)<3.1,\"\",(AVERAGEIFS('2011 Survey responses'!BT26:BV26,'2011 Survey responses'!BT26:BV26,\">1\")))","v":3.3333333333333335},{"$f":"IF(SUM('2011 Survey responses'!BW26:CP26)<1,\"\",(AVERAGEIFS('2011 Survey responses'!BW26:CP26,'2011 Survey responses'!BW26:CP26,\">1\")))","v":3.35},{"$f":"IF(SUM('2011 Survey responses'!BW26:CF26)<1,\"\",(AVERAGEIFS('2011 Survey responses'!BW26:CF26,'2011 Survey responses'!BW26:CF26,\">1\")))","v":3.7},{"$f":"IF(SUM('2011 Survey responses'!CG26:CP26)<1,\"\",(AVERAGEIFS('2011 Survey responses'!CG26:CP26,'2011 Survey responses'!CG26:CP26,\">1\")))","v":3},{"$f":"IF(SUM('2011 Survey responses'!BX26:CF26)<1,\"\",(AVERAGEIFS('2011 Survey responses'!BX26:CF26,'2011 Survey responses'!BX26:CF26,\">1\")))","v":3.5555555555555554},{"$f":"IF(SUM('2011 Survey responses'!CH26:CP26)<1,\"\",(AVERAGEIFS('2011 Survey responses'!CH26:CP26,'2011 Survey responses'!CH26:CP26,\">1\")))","v":2.8888888888888888},{"$f":"IF(SUM('2011 Survey responses'!BW26:CP26)<1,\"\",(AVERAGEIFS('2011 Survey responses'!BW26:CP26,'2011 Survey responses'!BW26:CP26,\">1\")))","v":3.35},{"$f":"IF(('2011 Survey responses'!BW26+'2011 Survey responses'!CG26)<2.1,\"\",(SUMIF('2011 Survey responses'!BW26,\">1\")+SUMIF('2011 Survey responses'!CG26,\">1\"))/(COUNTIF('2011 Survey responses'!BW26,\">1\")+COUNTIF('2011 Survey responses'!CG26,\">1\")))","v":4.5},{"$f":"IF(('2011 Survey responses'!BX26+'2011 Survey responses'!CH26)<2.1,\"\",(SUMIF('2011 Survey responses'!BX26,\">1\")+SUMIF('2011 Survey responses'!CH26,\">1\"))/(COUNTIF('2011 Survey responses'!BX26,\">1\")+COUNTIF('2011 Survey responses'!CH26,\">1\")))","v":3},{"$f":"IF(('2011 Survey responses'!BY26+'2011 Survey responses'!CI26)<2.1,\"\",(SUMIF('2011 Survey responses'!BY26,\">1\")+SUMIF('2011 Survey responses'!CI26,\">1\"))/(COUNTIF('2011 Survey responses'!BY26,\">1\")+COUNTIF('2011 Survey responses'!CI26,\">1\")))","v":5},{"$f":"IF('2011 Survey responses'!CQ26<0.5,\"\",'2011 Survey responses'!CQ26)","v":5},{"$f":"IF('2011 Survey responses'!CR26<0.5,\"\",'2011 Survey responses'!CR26)","v":4},{"$f":"IF('2011 Survey responses'!CS26<0.5,\"\",'2011 Survey responses'!CS26)","v":4},{"$f":"IF('2011 Survey responses'!CT26<0.5,\"\",'2011 Survey responses'!CT26)","v":4},{"$f":"IF('2011 Survey responses'!CU26<0.5,\"\",'2011 Survey responses'!CU26)","v":1},{"$f":"IF('2011 Survey responses'!CV26<0.5,\"\",'2011 Survey responses'!CV26)","v":4},{"$f":"IF(SUM('2011 Survey responses'!CW26:DL26)<1,\"\",(AVERAGE('2011 Survey responses'!CW26:DL26)))","v":2.875},{"$f":"IF(SUM('2011 Survey responses'!CW26:CZ26)<1,\"\",(AVERAGE('2011 Survey responses'!CW26:CZ26)))","v":2.75},{"$f":"IF(SUM('2011 Survey responses'!DA26:DD26)<1,\"\",(AVERAGE('2011 Survey responses'!DA26:DD26)))","v":3},{"$f":"IF(SUM('2011 Survey responses'!DE26:DH26)<1,\"\",(AVERAGE('2011 Survey responses'!DE26:DH26)))","v":3},{"$f":"IF(SUM('2011 Survey responses'!DI26:DL26)<1,\"\",(AVERAGE('2011 Survey responses'!DI26:DL26)))","v":2.75},{"$f":"IF(('2011 Survey responses'!CW26+'2011 Survey responses'!DA26+'2011 Survey responses'!DE26+'2011 Survey responses'!DI26)<1,\"\",AVERAGE('2011 Survey responses'!CW26,'2011 Survey responses'!DA26,'2011 Survey responses'!DE26,'2011 Survey responses'!DI26))","v":1.75},{"$f":"IF(('2011 Survey responses'!CX26+'2011 Survey responses'!DB26+'2011 Survey responses'!DF26+'2011 Survey responses'!DJ26)<1,\"\",AVERAGE('2011 Survey responses'!CX26,'2011 Survey responses'!DB26,'2011 Survey responses'!DF26,'2011 Survey responses'!DJ26))","v":4},{"$f":"IF(('2011 Survey responses'!CY26+'2011 Survey responses'!DC26+'2011 Survey responses'!DG26+'2011 Survey responses'!DK26)<1,\"\",AVERAGE('2011 Survey responses'!CY26,'2011 Survey responses'!DC26,'2011 Survey responses'!DG26,'2011 Survey responses'!DK26))","v":2.75},{"$f":"IF(('2011 Survey responses'!CZ26+'2011 Survey responses'!DD26+'2011 Survey responses'!DH26+'2011 Survey responses'!DL26)<1,\"\",AVERAGE('2011 Survey responses'!CZ26,'2011 Survey responses'!DD26,'2011 Survey responses'!DH26,'2011 Survey responses'!DL26))","v":3},{"$f":"IF('2011 Survey responses'!CW26<0.5,\"\",'2011 Survey responses'!CW26)","v":1},{"$f":"IF('2011 Survey responses'!CX26<0.5,\"\",'2011 Survey responses'!CX26)","v":4},{"$f":"IF('2011 Survey responses'!CY26<0.5,\"\",'2011 Survey responses'!CY26)","v":3},{"$f":"IF('2011 Survey responses'!CZ26<0.5,\"\",'2011 Survey responses'!CZ26)","v":3},{"$f":"IF('2011 Survey responses'!DA26<0.5,\"\",'2011 Survey responses'!DA26)","v":2},{"$f":"IF('2011 Survey responses'!DB26<0.5,\"\",'2011 Survey responses'!DB26)","v":4},{"$f":"IF('2011 Survey responses'!DC26<0.5,\"\",'2011 Survey responses'!DC26)","v":3},{"$f":"IF('2011 Survey responses'!DD26<0.5,\"\",'2011 Survey responses'!DD26)","v":3},{"$f":"IF('2011 Survey responses'!DE26<0.5,\"\",'2011 Survey responses'!DE26)","v":2},{"$f":"IF('2011 Survey responses'!DF26<0.5,\"\",'2011 Survey responses'!DF26)","v":4},{"$f":"IF('2011 Survey responses'!DG26<0.5,\"\",'2011 Survey responses'!DG26)","v":3},{"$f":"IF('2011 Survey responses'!DH26<0.5,\"\",'2011 Survey responses'!DH26)","v":3},{"$f":"IF('2011 Survey responses'!DI26<0.5,\"\",'2011 Survey responses'!DI26)","v":2},{"$f":"IF('2011 Survey responses'!DJ26<0.5,\"\",'2011 Survey responses'!DJ26)","v":4},{"$f":"IF('2011 Survey responses'!DK26<0.5,\"\",'2011 Survey responses'!DK26)","v":2},{"$f":"IF('2011 Survey responses'!DL26<0.5,\"\",'2011 Survey responses'!DL26)","v":3},{"$f":"IF('2011 Survey responses'!DU26=4,4,IF('2011 Survey responses'!DU26=5,4,\"\"))","v":4},{"$f":"IF('2011 Survey responses'!DV26=4,3,IF('2011 Survey responses'!DV26=5,3,\"\"))","v":3},2,{"$f":"IF(CQ26=2,CQ26,IF(CO26=4,CO26,IF(CP26=3,CP26,IF('2011 Survey responses'!GT26=1,1,\"\"))))","v":2},{"$f":"IF('2011 Survey responses'!DO26<0.5,\"\",'2011 Survey responses'!DO26)","v":4},{"$f":"IF('2011 Survey responses'!DP26<0.5,\"\",'2011 Survey responses'!DP26)","v":4},{"$f":"IF('2011 Survey responses'!DQ26<0.5,\"\",'2011 Survey responses'!DQ26)","v":4},{"$f":"IF('2011 Survey responses'!DR26<0.5,\"\",'2011 Survey responses'!DR26)","v":4},{"$f":"IF('2011 Survey responses'!DS26<0.5,\"\",'2011 Survey responses'!DS26)","v":4},{"$f":"IF('2011 Survey responses'!DT26<0.5,\"\",'2011 Survey responses'!DT26)","v":5},{"$f":"IF('2011 Survey responses'!DU26<0.5,\"\",'2011 Survey responses'!DU26)","v":4},{"$f":"IF('2011 Survey responses'!DV26<0.5,\"\",'2011 Survey responses'!DV26)","v":4},{"$f":"IF('2011 Survey responses'!DW26<0.5,\"\",'2011 Survey responses'!DW26)","v":4},{"$f":"IF('2011 Survey responses'!DX26<0.5,\"\",'2011 Survey responses'!DX26)","v":4},{"$f":"IF('2011 Survey responses'!DY26<0.5,\"\",'2011 Survey responses'!DY26)","v":4},{"$f":"IF('2011 Survey responses'!DZ26<0.5,\"\",'2011 Survey responses'!DZ26)","v":4},{"$f":"IF('2011 Survey responses'!EA26<0.5,\"\",'2011 Survey responses'!EA26)","v":5},{"$f":"IF('2011 Survey responses'!EB26<0.5,\"\",'2011 Survey responses'!EB26)","v":5},{"$f":"IF('2011 Survey responses'!EC26<0.5,\"\",'2011 Survey responses'!EC26)","v":5},{"$f":"IF('2011 Survey responses'!ED26<0.5,\"\",'2011 Survey responses'!ED26)","v":5},{"$f":"IF('2011 Survey responses'!EE26<0.5,\"\",'2011 Survey responses'!EE26)","v":5},{"$f":"IF('2011 Survey responses'!EF26<0.5,\"\",'2011 Survey responses'!EF26)","v":5},{"$f":"IF('2011 Survey responses'!EG26<0.5,\"\",'2011 Survey responses'!EG26)","v":5},{"$f":"IF('2011 Survey responses'!EH26<0.5,\"\",'2011 Survey responses'!EH26)","v":4},{"$f":"IF('2011 Survey responses'!EI26<0.5,\"\",'2011 Survey responses'!EI26)","v":4},{"$f":"IF('2011 Survey responses'!EJ26<0.5,\"\",'2011 Survey responses'!EJ26)","v":4},{"$f":"IF('2011 Survey responses'!EK26<0.5,\"\",'2011 Survey responses'!EK26)","v":4},{"$f":"IF('2011 Survey responses'!EL26<0.5,\"\",'2011 Survey responses'!EL26)","v":3},{"$f":"IF('2011 Survey responses'!EM26<0.5,\"\",'2011 Survey responses'!EM26)","v":2},{"$f":"IF('2011 Survey responses'!EN26<0.5,\"\",'2011 Survey responses'!EN26)","v":4},{"$f":"IF('2011 Survey responses'!EO26<0.5,\"\",'2011 Survey responses'!EO26)","v":3},{"$f":"IF('2011 Survey responses'!EP26<0.5,\"\",'2011 Survey responses'!EP26)","v":3},{"$f":"IF(('2011 Survey responses'!EW26+'2011 Survey responses'!EX26)>=2,AVERAGE('2011 Survey responses'!EW26,'2011 Survey responses'!EY26),\"\")","v":4},{"$f":"IF('2011 Survey responses'!EX26<0.5,\"\",'2011 Survey responses'!EX26)","v":3},{"$f":"IF('2011 Survey responses'!EZ26<0.5,\"\",'2011 Survey responses'!EZ26)","v":3},{"$f":"IF('2011 Survey responses'!FB26<0.5,\"\",'2011 Survey responses'!FB26)","v":4},{"$f":"IF('2011 Survey responses'!FD26<0.5,\"\",'2011 Survey responses'!FD26)","v":4},{"$f":"IF('2011 Survey responses'!FC26<0.5,\"\",'2011 Survey responses'!FC26)","v":3},{"$f":"IF(('2011 Survey responses'!EM26+'2011 Survey responses'!EN26)>=2,AVERAGE('2011 Survey responses'!EM26,'2011 Survey responses'!EN26),\"\")","v":3},{"$f":"IF('2011 Survey responses'!ES26<0.5,\"\",'2011 Survey responses'!ES26)","v":4},{"$f":"IF(('2011 Survey responses'!ET26+'2011 Survey responses'!EU26)>=2,AVERAGE('2011 Survey responses'!ET26,'2011 Survey responses'!EU26),\"\")","v":4},{"$f":"IF('2011 Survey responses'!EV26<0.5,\"\",'2011 Survey responses'!EV26)","v":2},{"$f":"IF('2011 Survey responses'!FA26<0.5,\"\",'2011 Survey responses'!FA26)","v":3},{"$f":"IF('2011 Survey responses'!ER26<0.5,\"\",'2011 Survey responses'!ER26)","v":3},{"$f":"IF(('2011 Survey responses'!EO26+'2011 Survey responses'!EP26)>=2,AVERAGE('2011 Survey responses'!EO26,'2011 Survey responses'!EP26),\"\")","v":3},{"$f":"IF('2011 Survey responses'!EQ26<0.5,\"\",'2011 Survey responses'!EQ26)","v":1},{"$f":"IF('2011 Survey responses'!ET26<0.5,\"\",'2011 Survey responses'!ET26)","v":4},{"$f":"IF('2011 Survey responses'!EU26<0.5,\"\",'2011 Survey responses'!EU26)","v":4},{"$f":"IF('2011 Survey responses'!EW26<0.5,\"\",'2011 Survey responses'!EW26)","v":4},{"$f":"IF('2011 Survey responses'!EY26<0.5,\"\",'2011 Survey responses'!EY26)","v":4},{"$f":"IF('2011 Survey responses'!FU26<0.5,\"\",'2011 Survey responses'!FU26)","v":4},{"$f":"IF(('2011 Survey responses'!FL26+'2011 Survey responses'!FM26)>=2,AVERAGE('2011 Survey responses'!FL26,'2011 Survey responses'!FM26),\"\")","v":4},{"$f":"IF(('2011 Survey responses'!FO26+'2011 Survey responses'!FQ26)>=2,AVERAGE('2011 Survey responses'!FO26,'2011 Survey responses'!FQ26),\"\")","v":4},{"$f":"IF('2011 Survey responses'!FJ26<0.5,\"\",'2011 Survey responses'!FJ26)","v":1},{"$f":"IF('2011 Survey responses'!FT26<0.5,\"\",'2011 Survey responses'!FT26)","v":2},{"$f":"IF('2011 Survey responses'!FR26<0.5,\"\",'2011 Survey responses'!FR26)","v":2},{"$f":"IF('2011 Survey responses'!FK26<0.5,\"\",'2011 Survey responses'!FK26)","v":5},{"$f":"IF('2011 Survey responses'!FP26<0.5,\"\",'2011 Survey responses'!FP26)","v":4},{"$f":"IF('2011 Survey responses'!FN26<0.5,\"\",'2011 Survey responses'!FN26)","v":1},{"$f":"IF(('2011 Survey responses'!FE26+'2011 Survey responses'!FF26)>=2,AVERAGE('2011 Survey responses'!FE26,'2011 Survey responses'!FF26),\"\")","v":2},{"$f":"IF('2011 Survey responses'!FS26<0.5,\"\",'2011 Survey responses'!FS26)","v":2},{"$f":"IF('2011 Survey responses'!FV26<0.5,\"\",'2011 Survey responses'!FV26)","v":2},{"$f":"IF(('2011 Survey responses'!FG26+'2011 Survey responses'!FH26)>=2,AVERAGE('2011 Survey responses'!FG26,'2011 Survey responses'!FH26),\"\")","v":2},{"$f":"IF('2011 Survey responses'!FI26<0.5,\"\",'2011 Survey responses'!FI26)","v":3},{"$f":"IF('2011 Survey responses'!FE26<0.5,\"\",'2011 Survey responses'!FE26)","v":2},{"$f":"IF('2011 Survey responses'!FF26<0.5,\"\",'2011 Survey responses'!FF26)","v":2},{"$f":"IF('2011 Survey responses'!FG26<0.5,\"\",'2011 Survey responses'!FG26)","v":2},{"$f":"IF('2011 Survey responses'!FH26<0.5,\"\",'2011 Survey responses'!FH26)","v":2},{"$f":"IF('2011 Survey responses'!FL26<0.5,\"\",'2011 Survey responses'!FL26)","v":3},{"$f":"IF('2011 Survey responses'!FM26<0.5,\"\",'2011 Survey responses'!FM26)","v":5},{"$f":"IF('2011 Survey responses'!FO26<0.5,\"\",'2011 Survey responses'!FO26)","v":4},{"$f":"IF('2011 Survey responses'!FQ26<0.5,\"\",'2011 Survey responses'!FQ26)","v":4}]
["Brunei Darussalam",{"$f":"IF(SUM(F27)<1,\"\",AVERAGEIF('2011 Survey responses'!B27:CP27,\">1\"))","v":""},{"$f":"IF(SUM(F27)<1,\"\",AVERAGEIF('2011 Survey responses'!B27:AO27,\">1\"))","v":""},{"$f":"IF(SUM(F27)<1,\"\",AVERAGEIF('2011 Survey responses'!B27:BV27,\">1\"))","v":""},{"$f":"IF(SUM(F27)<1,\"\",AVERAGEIF('2011 Survey responses'!V27:BV27,\">1\"))","v":""},{"$f":"IF(SUM('2011 Survey responses'!B27:U27)<1,\"\",(AVERAGEIFS('2011 Survey responses'!B27:U27,'2011 Survey responses'!B27:U27,\">1\")))","v":""},{"$f":"IF(SUM('2011 Survey responses'!B27:H27)<1,\"\",(AVERAGEIFS('2011 Survey responses'!B27:H27,'2011 Survey responses'!B27:H27,\">1\")))","v":""},{"$f":"IF(SUM('2011 Survey responses'!I27:S27)<1,\"\",(AVERAGEIFS('2011 Survey responses'!I27:S27,'2011 Survey responses'!I27:S27,\">1\")))","v":""},{"$f":"IF(SUM('2011 Survey responses'!T27:U27)<2.1,\"\",(AVERAGEIFS('2011 Survey responses'!T27:U27,'2011 Survey responses'!T27:U27,\">1\")))","v":""},{"$f":"IF(SUM('2011 Survey responses'!B27:C27)<2.1,\"\",((SUMIF('2011 Survey responses'!B27:C27,\">1\")+SUMIF('2011 Survey responses'!F27,\">1\"))/(COUNTIF('2011 Survey responses'!B27:C27,\">1\")+COUNTIF('2011 Survey responses'!F27,\">1\"))))","v":""},{"$f":"IF(SUM('2011 Survey responses'!D27:E27)<2.1,\"\",(AVERAGEIFS('2011 Survey responses'!D27:E27,'2011 Survey responses'!D27:E27,\">1\")))","v":""},{"$f":"IF(('2011 Survey responses'!B27+'2011 Survey responses'!D27)<2.1,\"\",((SUMIF('2011 Survey responses'!B27,\">1\")+SUMIF('2011 Survey responses'!D27,\">1\")+SUMIF('2011 Survey responses'!F27,\">1\")+SUMIF('2011 Survey responses'!K27,\">1\"))/(COUNTIF('2011 Survey responses'!B27,\">1\")+COUNTIF('2011 Survey responses'!D27,\">1\")+COUNTIF('2011 Survey responses'!F27,\">1\")+COUNTIF('2011 Survey responses'!K27,\">1\"))))","v":""},{"$f":"IF(SUM('2011 Survey responses'!G27:H27)<2.1,\"\",(AVERAGEIFS('2011 Survey responses'!G27:H27,'2011 Survey responses'!G27:H27,\">1\")))","v":""},{"$f":"IF(SUM('2011 Survey responses'!F27:G27)<1.5,\"\",MAX('2011 Survey responses'!F27,'2011 Survey responses'!G27))","v":""},{"$f":"IF(SUM('2011 Survey responses'!G27:H27)<1,\"\",MAX('2011 Survey responses'!G27,'2011 Survey responses'!H27))","v":""},{"$f":"IF(SUM('2011 Survey responses'!I27:L27)<4.1,\"\",(AVERAGEIFS('2011 Survey responses'!I27:L27,'2011 Survey responses'!I27:L27,\">1\")))","v":""},{"$f":"IF(SUM('2011 Survey responses'!M27:S27)<4.1,\"\",(AVERAGEIFS('2011 Survey responses'!M27:S27,'2011 Survey responses'!M27:S27,\">1\")))","v":""},{"$f":"IF(SUM('2011 Survey responses'!T27:U27)<2.1,\"\",(AVERAGEIFS('2011 Survey responses'!T27:U27,'2011 Survey responses'!T27:U27,\">1\")))","v":""},{"$f":"IF(SUM('2011 Survey responses'!V27:AO27)<1,\"\",(AVERAGEIFS('2011 Survey responses'!V27:AO27,'2011 Survey responses'!V27:AO27,\">1\")))","v":""},{"$f":"IF(SUM('2011 Survey responses'!V27:AA27)<1,\"\",(AVERAGEIFS('2011 Survey responses'!V27:AA27,'2011 Survey responses'!V27:AA27,\">1\")))","v":""},{"$f":"IF(SUM('2011 Survey responses'!AB27:AH27)<1,\"\",(AVERAGEIFS('2011 Survey responses'!AB27:AH27,'2011 Survey responses'!AB27:AH27,\">1\")))","v":""},{"$f":"IF(SUM('2011 Survey responses'!AI27:AO27)<1,\"\",(AVERAGEIFS('2011 Survey responses'!AI27:AO27,'2011 Survey responses'!AI27:AO27,\">1\")))","v":""},{"$f":"IF(('2011 Survey responses'!Y27+'2011 Survey responses'!AI27+'2011 Survey responses'!AK27)<3.1,\"\",((SUMIF('2011 Survey responses'!Y27,\">1\")+SUMIF('2011 Survey responses'!AI27,\">1\")+SUMIF('2011 Survey responses'!AK27,\">1\")+SUMIF('2011 Survey responses'!AM27,\">1\"))/(COUNTIF('2011 Survey responses'!Y27,\">1\")+COUNTIF('2011 Survey responses'!AI27,\">1\")+COUNTIF('2011 Survey responses'!AK27,\">1\")+COUNTIF('2011 Survey responses'!AM27,\">1\"))))","v":""},{"$f":"IF(('2011 Survey responses'!W27)<1.1,\"\",('2011 Survey responses'!W27))","v":""},{"$f":"IF(('2011 Survey responses'!Y27)<1.1,\"\",('2011 Survey responses'!Y27))","v":""},{"$f":"IF(('2011 Survey responses'!Z27)<1.1,\"\",('2011 Survey responses'!Z27))","v":""},{"$f":"IF(('2011 Survey responses'!V27+'2011 Survey responses'!X27+'2011 Survey responses'!AA27)<3.1,\"\",((SUMIF('2011 Survey responses'!V27,\">1\")+SUMIF('2011 Survey responses'!X27,\">1\")+SUMIF('2011 Survey responses'!AA27,\">1\"))/(COUNTIF('2011 Survey responses'!V27,\">1\")+COUNTIF('2011 Survey responses'!X27,\">1\")+COUNTIF('2011 Survey responses'!AA27,\">1\"))))","v":""},{"$f":"IF(('2011 Survey responses'!V27+'2011 Survey responses'!Y27+'2011 Survey responses'!AA27)<3.1,\"\",((SUMIF('2011 Survey responses'!V27,\">1\")+SUMIF('2011 Survey responses'!Y27,\">1\")+SUMIF('2011 Survey responses'!AA27,\">1\"))/(COUNTIF('2011 Survey responses'!V27,\">1\")+COUNTIF('2011 Survey responses'!Y27,\">1\")+COUNTIF('2011 Survey responses'!AA27,\">1\"))))","v":""},{"$f":"IF(SUM('2011 Survey responses'!AB27:AH27)<1,\"\",(AVERAGEIFS('2011 Survey responses'!AB27:AH27,'2011 Survey responses'!AB27:AH27,\">1\")))","v":""},{"$f":"IF(SUM('2011 Survey responses'!AI27:AO27)<7.1,\"\",(AVERAGEIFS('2011 Survey responses'!AI27:AO27,'2011 Survey responses'!AI27:AO27,\">1\")))","v":""},{"$f":"IF(('2011 Survey responses'!AH27)<1.1,\"\",('2011 Survey responses'!AH27))","v":""},{"$f":"IF(SUM('2011 Survey responses'!AP27:BV27)<1,\"\",(AVERAGEIFS('2011 Survey responses'!AP27:BV27,'2011 Survey responses'!AP27:BV27,\">1\")))","v":""},{"$f":"IF(SUM('2011 Survey responses'!AP27:AS27)<4.1,\"\",(AVERAGEIFS('2011 Survey responses'!AP27:AS27,'2011 Survey responses'!AP27:AS27,\">1\")))","v":""},{"$f":"IF(SUM('2011 Survey responses'!AT27:BF27)<1,\"\",(AVERAGEIFS('2011 Survey responses'!AT27:BF27,'2011 Survey responses'!AT27:BF27,\">1\")))","v":""},{"$f":"IF(SUM('2011 Survey responses'!BG27:BO27)<1,\"\",(AVERAGEIFS('2011 Survey responses'!BG27:BO27,'2011 Survey responses'!BG27:BO27,\">1\")))","v":""},{"$f":"IF(SUM('2011 Survey responses'!BP27:BS27)<1,\"\",(AVERAGEIFS('2011 Survey responses'!BP27:BS27,'2011 Survey responses'!BP27:BS27,\">1\")))","v":""},{"$f":"IF(SUM('2011 Survey responses'!BT27:BV27)<3.1,\"\",(AVERAGEIFS('2011 Survey responses'!BT27:BV27,'2011 Survey responses'!BT27:BV27,\">1\")))","v":""},{"$f":"IF(('2011 Survey responses'!AQ27+'2011 Survey responses'!AR27+'2011 Survey responses'!BG27)<3.1,\"\",((SUMIF('2011 Survey responses'!AQ27,\">1\")+SUMIF('2011 Survey responses'!AR27,\">1\")+SUMIF('2011 Survey responses'!BG27,\">1\"))/(COUNTIF('2011 Survey responses'!AQ27,\">1\")+COUNTIF('2011 Survey responses'!AR27,\">1\")+COUNTIF('2011 Survey responses'!BG27,\">1\"))))","v":""},{"$f":"IF(SUM('2011 Survey responses'!AP27:AS27)<4.1,\"\",(AVERAGEIFS('2011 Survey responses'!AP27:AS27,'2011 Survey responses'!AP27:AS27,\">1\")))","v":""},{"$f":"IF(('2011 Survey responses'!AU27+'2011 Survey responses'!AX27+'2011 Survey responses'!BA27+'2011 Survey responses'!BC27+'2011 Survey responses'!BD27)<5.1,\"\",(SUMIF('2011 Survey responses'!AU27,\">1\")+SUMIF('2011 Survey responses'!AX27,\">1\")+SUMIF('2011 Survey responses'!BA27,\">1\")+SUMIF('2011 Survey responses'!BC27,\">1\")+SUMIF('2011 Survey responses'!BD27,\">1\"))/(COUNTIF('2011 Survey responses'!AU27,\">1\")+COUNTIF('2011 Survey responses'!AX27,\">1\")+COUNTIF('2011 Survey responses'!BA27,\">1\")+COUNTIF('2011 Survey responses'!BC27,\">1\")+COUNTIF('2011 Survey responses'!BD27,\">1\")))","v":""},{"$f":"IF(('2011 Survey responses'!AT27)<1.1,\"\",('2011 Survey responses'!AT27))","v":""},{"$f":"IF(SUM('2011 Survey responses'!AV27:AW27)<2.1,\"\",(AVERAGEIFS('2011 Survey responses'!AV27:AW27,'2011 Survey responses'!AV27:AW27,\">1\")))","v":""},{"$f":"IF(('2011 Survey responses'!AW27+'2011 Survey responses'!AY27)<2.1,\"\",(SUMIF('2011 Survey responses'!AW27,\">1\")+SUMIF('2011 Survey responses'!AY27,\">1\"))/(COUNTIF('2011 Survey responses'!AW27,\">1\")+COUNTIF('2011 Survey responses'!AY27,\">1\")))","v":""},{"$f":"IF(('2011 Survey responses'!AZ27)<1.1,\"\",('2011 Survey responses'!AZ27))","v":""},null,null,null,null,{"$f":"IF(('2011 Survey responses'!BE27)<1.1,\"\",('2011 Survey responses'!BE27))","v":""},{"$f":"IF(('2011 Survey responses'!AY27+'2011 Survey responses'!BB27+'2011 Survey responses'!BF27)<3.1,\"\",(SUMIF('2011 Survey responses'!AY27,\">1\")+SUMIF('2011 Survey responses'!BB27,\">1\")+SUMIF('2011 Survey responses'!BF27,\">1\"))/(COUNTIF('2011 Survey responses'!AY27,\">1\")+COUNTIF('2011 Survey responses'!BB27,\">1\")+COUNTIF('2011 Survey responses'!BF27,\">1\")))","v":""},"",{"$f":"IF(SUM('2011 Survey responses'!BT27:BV27)<3.1,\"\",(AVERAGEIFS('2011 Survey responses'!BT27:BV27,'2011 Survey responses'!BT27:BV27,\">1\")))","v":""},{"$f":"IF(SUM('2011 Survey responses'!BW27:CP27)<1,\"\",(AVERAGEIFS('2011 Survey responses'!BW27:CP27,'2011 Survey responses'!BW27:CP27,\">1\")))","v":""},{"$f":"IF(SUM('2011 Survey responses'!BW27:CF27)<1,\"\",(AVERAGEIFS('2011 Survey responses'!BW27:CF27,'2011 Survey responses'!BW27:CF27,\">1\")))","v":""},{"$f":"IF(SUM('2011 Survey responses'!CG27:CP27)<1,\"\",(AVERAGEIFS('2011 Survey responses'!CG27:CP27,'2011 Survey responses'!CG27:CP27,\">1\")))","v":""},{"$f":"IF(SUM('2011 Survey responses'!BX27:CF27)<1,\"\",(AVERAGEIFS('2011 Survey responses'!BX27:CF27,'2011 Survey responses'!BX27:CF27,\">1\")))","v":""},{"$f":"IF(SUM('2011 Survey responses'!CH27:CP27)<1,\"\",(AVERAGEIFS('2011 Survey responses'!CH27:CP27,'2011 Survey responses'!CH27:CP27,\">1\")))","v":""},{"$f":"IF(SUM('2011 Survey responses'!BW27:CP27)<1,\"\",(AVERAGEIFS('2011 Survey responses'!BW27:CP27,'2011 Survey responses'!BW27:CP27,\">1\")))","v":""},{"$f":"IF(('2011 Survey responses'!BW27+'2011 Survey responses'!CG27)<2.1,\"\",(SUMIF('2011 Survey responses'!BW27,\">1\")+SUMIF('2011 Survey responses'!CG27,\">1\"))/(COUNTIF('2011 Survey responses'!BW27,\">1\")+COUNTIF('2011 Survey responses'!CG27,\">1\")))","v":""},{"$f":"IF(('2011 Survey responses'!BX27+'2011 Survey responses'!CH27)<2.1,\"\",(SUMIF('2011 Survey responses'!BX27,\">1\")+SUMIF('2011 Survey responses'!CH27,\">1\"))/(COUNTIF('2011 Survey responses'!BX27,\">1\")+COUNTIF('2011 Survey responses'!CH27,\">1\")))","v":""},{"$f":"IF(('2011 Survey responses'!BY27+'2011 Survey responses'!CI27)<2.1,\"\",(SUMIF('2011 Survey responses'!BY27,\">1\")+SUMIF('2011 Survey responses'!CI27,\">1\"))/(COUNTIF('2011 Survey responses'!BY27,\">1\")+COUNTIF('2011 Survey responses'!CI27,\">1\")))","v":""},{"$f":"IF('2011 Survey responses'!CQ27<0.5,\"\",'2011 Survey responses'!CQ27)","v":""},{"$f":"IF('2011 Survey responses'!CR27<0.5,\"\",'2011 Survey responses'!CR27)","v":""},{"$f":"IF('2011 Survey responses'!CS27<0.5,\"\",'2011 Survey responses'!CS27)","v":""},{"$f":"IF('2011 Survey responses'!CT27<0.5,\"\",'2011 Survey responses'!CT27)","v":""},{"$f":"IF('2011 Survey responses'!CU27<0.5,\"\",'2011 Survey responses'!CU27)","v":""},{"$f":"IF('2011 Survey responses'!CV27<0.5,\"\",'2011 Survey responses'!CV27)","v":""},{"$f":"IF(SUM('2011 Survey responses'!CW27:DL27)<1,\"\",(AVERAGE('2011 Survey responses'!CW27:DL27)))","v":""},{"$f":"IF(SUM('2011 Survey responses'!CW27:CZ27)<1,\"\",(AVERAGE('2011 Survey responses'!CW27:CZ27)))","v":""},{"$f":"IF(SUM('2011 Survey responses'!DA27:DD27)<1,\"\",(AVERAGE('2011 Survey responses'!DA27:DD27)))","v":""},{"$f":"IF(SUM('2011 Survey responses'!DE27:DH27)<1,\"\",(AVERAGE('2011 Survey responses'!DE27:DH27)))","v":""},{"$f":"IF(SUM('2011 Survey responses'!DI27:DL27)<1,\"\",(AVERAGE('2011 Survey responses'!DI27:DL27)))","v":""},{"$f":"IF(('2011 Survey responses'!CW27+'2011 Survey responses'!DA27+'2011 Survey responses'!DE27+'2011 Survey responses'!DI27)<1,\"\",AVERAGE('2011 Survey responses'!CW27,'2011 Survey responses'!DA27,'2011 Survey responses'!DE27,'2011 Survey responses'!DI27))","v":""},{"$f":"IF(('2011 Survey responses'!CX27+'2011 Survey responses'!DB27+'2011 Survey responses'!DF27+'2011 Survey responses'!DJ27)<1,\"\",AVERAGE('2011 Survey responses'!CX27,'2011 Survey responses'!DB27,'2011 Survey responses'!DF27,'2011 Survey responses'!DJ27))","v":""},{"$f":"IF(('2011 Survey responses'!CY27+'2011 Survey responses'!DC27+'2011 Survey responses'!DG27+'2011 Survey responses'!DK27)<1,\"\",AVERAGE('2011 Survey responses'!CY27,'2011 Survey responses'!DC27,'2011 Survey responses'!DG27,'2011 Survey responses'!DK27))","v":""},{"$f":"IF(('2011 Survey responses'!CZ27+'2011 Survey responses'!DD27+'2011 Survey responses'!DH27+'2011 Survey responses'!DL27)<1,\"\",AVERAGE('2011 Survey responses'!CZ27,'2011 Survey responses'!DD27,'2011 Survey responses'!DH27,'2011 Survey responses'!DL27))","v":""},{"$f":"IF('2011 Survey responses'!CW27<0.5,\"\",'2011 Survey responses'!CW27)","v":""},{"$f":"IF('2011 Survey responses'!CX27<0.5,\"\",'2011 Survey responses'!CX27)","v":""},{"$f":"IF('2011 Survey responses'!CY27<0.5,\"\",'2011 Survey responses'!CY27)","v":""},{"$f":"IF('2011 Survey responses'!CZ27<0.5,\"\",'2011 Survey responses'!CZ27)","v":""},{"$f":"IF('2011 Survey responses'!DA27<0.5,\"\",'2011 Survey responses'!DA27)","v":""},{"$f":"IF('2011 Survey responses'!DB27<0.5,\"\",'2011 Survey responses'!DB27)","v":""},{"$f":"IF('2011 Survey responses'!DC27<0.5,\"\",'2011 Survey responses'!DC27)","v":""},{"$f":"IF('2011 Survey responses'!DD27<0.5,\"\",'2011 Survey responses'!DD27)","v":""},{"$f":"IF('2011 Survey responses'!DE27<0.5,\"\",'2011 Survey responses'!DE27)","v":""},{"$f":"IF('2011 Survey responses'!DF27<0.5,\"\",'2011 Survey responses'!DF27)","v":""},{"$f":"IF('2011 Survey responses'!DG27<0.5,\"\",'2011 Survey responses'!DG27)","v":""},{"$f":"IF('2011 Survey responses'!DH27<0.5,\"\",'2011 Survey responses'!DH27)","v":""},{"$f":"IF('2011 Survey responses'!DI27<0.5,\"\",'2011 Survey responses'!DI27)","v":""},{"$f":"IF('2011 Survey responses'!DJ27<0.5,\"\",'2011 Survey responses'!DJ27)","v":""},{"$f":"IF('2011 Survey responses'!DK27<0.5,\"\",'2011 Survey responses'!DK27)","v":""},{"$f":"IF('2011 Survey responses'!DL27<0.5,\"\",'2011 Survey responses'!DL27)","v":""},{"$f":"IF('2011 Survey responses'!DU27=4,4,IF('2011 Survey responses'!DU27=5,4,\"\"))","v":""},{"$f":"IF('2011 Survey responses'!DV27=4,3,IF('2011 Survey responses'!DV27=5,3,\"\"))","v":""},"",{"$f":"IF(CQ27=2,CQ27,IF(CO27=4,CO27,IF(CP27=3,CP27,IF('2011 Survey responses'!GT27=1,1,\"\"))))","v":""},{"$f":"IF('2011 Survey responses'!DO27<0.5,\"\",'2011 Survey responses'!DO27)","v":""},{"$f":"IF('2011 Survey responses'!DP27<0.5,\"\",'2011 Survey responses'!DP27)","v":""},{"$f":"IF('2011 Survey responses'!DQ27<0.5,\"\",'2011 Survey responses'!DQ27)","v":""},{"$f":"IF('2011 Survey responses'!DR27<0.5,\"\",'2011 Survey responses'!DR27)","v":""},{"$f":"IF('2011 Survey responses'!DS27<0.5,\"\",'2011 Survey responses'!DS27)","v":""},{"$f":"IF('2011 Survey responses'!DT27<0.5,\"\",'2011 Survey responses'!DT27)","v":""},{"$f":"IF('2011 Survey responses'!DU27<0.5,\"\",'2011 Survey responses'!DU27)","v":""},{"$f":"IF('2011 Survey responses'!DV27<0.5,\"\",'2011 Survey responses'!DV27)","v":""},{"$f":"IF('2011 Survey responses'!DW27<0.5,\"\",'2011 Survey responses'!DW27)","v":""},{"$f":"IF('2011 Survey responses'!DX27<0.5,\"\",'2011 Survey responses'!DX27)","v":""},{"$f":"IF('2011 Survey responses'!DY27<0.5,\"\",'2011 Survey responses'!DY27)","v":""},{"$f":"IF('2011 Survey responses'!DZ27<0.5,\"\",'2011 Survey responses'!DZ27)","v":""},{"$f":"IF('2011 Survey responses'!EA27<0.5,\"\",'2011 Survey responses'!EA27)","v":""},{"$f":"IF('2011 Survey responses'!EB27<0.5,\"\",'2011 Survey responses'!EB27)","v":""},{"$f":"IF('2011 Survey responses'!EC27<0.5,\"\",'2011 Survey responses'!EC27)","v":""},{"$f":"IF('2011 Survey responses'!ED27<0.5,\"\",'2011 Survey responses'!ED27)","v":""},{"$f":"IF('2011 Survey responses'!EE27<0.5,\"\",'2011 Survey responses'!EE27)","v":""},{"$f":"IF('2011 Survey responses'!EF27<0.5,\"\",'2011 Survey responses'!EF27)","v":""},{"$f":"IF('2011 Survey responses'!EG27<0.5,\"\",'2011 Survey responses'!EG27)","v":""},{"$f":"IF('2011 Survey responses'!EH27<0.5,\"\",'2011 Survey responses'!EH27)","v":""},{"$f":"IF('2011 Survey responses'!EI27<0.5,\"\",'2011 Survey responses'!EI27)","v":""},{"$f":"IF('2011 Survey responses'!EJ27<0.5,\"\",'2011 Survey responses'!EJ27)","v":""},{"$f":"IF('2011 Survey responses'!EK27<0.5,\"\",'2011 Survey responses'!EK27)","v":""},{"$f":"IF('2011 Survey responses'!EL27<0.5,\"\",'2011 Survey responses'!EL27)","v":""},{"$f":"IF('2011 Survey responses'!EM27<0.5,\"\",'2011 Survey responses'!EM27)","v":""},{"$f":"IF('2011 Survey responses'!EN27<0.5,\"\",'2011 Survey responses'!EN27)","v":""},{"$f":"IF('2011 Survey responses'!EO27<0.5,\"\",'2011 Survey responses'!EO27)","v":""},{"$f":"IF('2011 Survey responses'!EP27<0.5,\"\",'2011 Survey responses'!EP27)","v":""},{"$f":"IF(('2011 Survey responses'!EW27+'2011 Survey responses'!EX27)>=2,AVERAGE('2011 Survey responses'!EW27,'2011 Survey responses'!EY27),\"\")","v":""},{"$f":"IF('2011 Survey responses'!EX27<0.5,\"\",'2011 Survey responses'!EX27)","v":""},{"$f":"IF('2011 Survey responses'!EZ27<0.5,\"\",'2011 Survey responses'!EZ27)","v":""},{"$f":"IF('2011 Survey responses'!FB27<0.5,\"\",'2011 Survey responses'!FB27)","v":""},{"$f":"IF('2011 Survey responses'!FD27<0.5,\"\",'2011 Survey responses'!FD27)","v":""},{"$f":"IF('2011 Survey responses'!FC27<0.5,\"\",'2011 Survey responses'!FC27)","v":""},{"$f":"IF(('2011 Survey responses'!EM27+'2011 Survey responses'!EN27)>=2,AVERAGE('2011 Survey responses'!EM27,'2011 Survey responses'!EN27),\"\")","v":""},{"$f":"IF('2011 Survey responses'!ES27<0.5,\"\",'2011 Survey responses'!ES27)","v":""},{"$f":"IF(('2011 Survey responses'!ET27+'2011 Survey responses'!EU27)>=2,AVERAGE('2011 Survey responses'!ET27,'2011 Survey responses'!EU27),\"\")","v":""},{"$f":"IF('2011 Survey responses'!EV27<0.5,\"\",'2011 Survey responses'!EV27)","v":""},{"$f":"IF('2011 Survey responses'!FA27<0.5,\"\",'2011 Survey responses'!FA27)","v":""},{"$f":"IF('2011 Survey responses'!ER27<0.5,\"\",'2011 Survey responses'!ER27)","v":""},{"$f":"IF(('2011 Survey responses'!EO27+'2011 Survey responses'!EP27)>=2,AVERAGE('2011 Survey responses'!EO27,'2011 Survey responses'!EP27),\"\")","v":""},{"$f":"IF('2011 Survey responses'!EQ27<0.5,\"\",'2011 Survey responses'!EQ27)","v":""},{"$f":"IF('2011 Survey responses'!ET27<0.5,\"\",'2011 Survey responses'!ET27)","v":""},{"$f":"IF('2011 Survey responses'!EU27<0.5,\"\",'2011 Survey responses'!EU27)","v":""},{"$f":"IF('2011 Survey responses'!EW27<0.5,\"\",'2011 Survey responses'!EW27)","v":""},{"$f":"IF('2011 Survey responses'!EY27<0.5,\"\",'2011 Survey responses'!EY27)","v":""},{"$f":"IF('2011 Survey responses'!FU27<0.5,\"\",'2011 Survey responses'!FU27)","v":""},{"$f":"IF(('2011 Survey responses'!FL27+'2011 Survey responses'!FM27)>=2,AVERAGE('2011 Survey responses'!FL27,'2011 Survey responses'!FM27),\"\")","v":""},{"$f":"IF(('2011 Survey responses'!FO27+'2011 Survey responses'!FQ27)>=2,AVERAGE('2011 Survey responses'!FO27,'2011 Survey responses'!FQ27),\"\")","v":""},{"$f":"IF('2011 Survey responses'!FJ27<0.5,\"\",'2011 Survey responses'!FJ27)","v":""},{"$f":"IF('2011 Survey responses'!FT27<0.5,\"\",'2011 Survey responses'!FT27)","v":""},{"$f":"IF('2011 Survey responses'!FR27<0.5,\"\",'2011 Survey responses'!FR27)","v":""},{"$f":"IF('2011 Survey responses'!FK27<0.5,\"\",'2011 Survey responses'!FK27)","v":""},{"$f":"IF('2011 Survey responses'!FP27<0.5,\"\",'2011 Survey responses'!FP27)","v":""},{"$f":"IF('2011 Survey responses'!FN27<0.5,\"\",'2011 Survey responses'!FN27)","v":""},{"$f":"IF(('2011 Survey responses'!FE27+'2011 Survey responses'!FF27)>=2,AVERAGE('2011 Survey responses'!FE27,'2011 Survey responses'!FF27),\"\")","v":""},{"$f":"IF('2011 Survey responses'!FS27<0.5,\"\",'2011 Survey responses'!FS27)","v":""},{"$f":"IF('2011 Survey responses'!FV27<0.5,\"\",'2011 Survey responses'!FV27)","v":""},{"$f":"IF(('2011 Survey responses'!FG27+'2011 Survey responses'!FH27)>=2,AVERAGE('2011 Survey responses'!FG27,'2011 Survey responses'!FH27),\"\")","v":""},{"$f":"IF('2011 Survey responses'!FI27<0.5,\"\",'2011 Survey responses'!FI27)","v":""},{"$f":"IF('2011 Survey responses'!FE27<0.5,\"\",'2011 Survey responses'!FE27)","v":""},{"$f":"IF('2011 Survey responses'!FF27<0.5,\"\",'2011 Survey responses'!FF27)","v":""},{"$f":"IF('2011 Survey responses'!FG27<0.5,\"\",'2011 Survey responses'!FG27)","v":""},{"$f":"IF('2011 Survey responses'!FH27<0.5,\"\",'2011 Survey responses'!FH27)","v":""},{"$f":"IF('2011 Survey responses'!FL27<0.5,\"\",'2011 Survey responses'!FL27)","v":""},{"$f":"IF('2011 Survey responses'!FM27<0.5,\"\",'2011 Survey responses'!FM27)","v":""},{"$f":"IF('2011 Survey responses'!FO27<0.5,\"\",'2011 Survey responses'!FO27)","v":""},{"$f":"IF('2011 Survey responses'!FQ27<0.5,\"\",'2011 Survey responses'!FQ27)","v":""}]
["Bulgaria",{"$f":"IF(SUM(F28)<1,\"\",AVERAGEIF('2011 Survey responses'!B28:CP28,\">1\"))","v":5.3095238095238093},{"$f":"IF(SUM(F28)<1,\"\",AVERAGEIF('2011 Survey responses'!B28:AO28,\">1\"))","v":5.1470588235294121},{"$f":"IF(SUM(F28)<1,\"\",AVERAGEIF('2011 Survey responses'!B28:BV28,\">1\"))","v":5.2388059701492535},{"$f":"IF(SUM(F28)<1,\"\",AVERAGEIF('2011 Survey responses'!V28:BV28,\">1\"))","v":5.4423076923076925},{"$f":"IF(SUM('2011 Survey responses'!B28:U28)<1,\"\",(AVERAGEIFS('2011 Survey responses'!B28:U28,'2011 Survey responses'!B28:U28,\">1\")))","v":4.5333333333333332},{"$f":"IF(SUM('2011 Survey responses'!B28:H28)<1,\"\",(AVERAGEIFS('2011 Survey responses'!B28:H28,'2011 Survey responses'!B28:H28,\">1\")))","v":4.8},{"$f":"IF(SUM('2011 Survey responses'!I28:S28)<1,\"\",(AVERAGEIFS('2011 Survey responses'!I28:S28,'2011 Survey responses'!I28:S28,\">1\")))","v":4.2222222222222223},{"$f":"IF(SUM('2011 Survey responses'!T28:U28)<2.1,\"\",(AVERAGEIFS('2011 Survey responses'!T28:U28,'2011 Survey responses'!T28:U28,\">1\")))","v":6},{"$f":"IF(SUM('2011 Survey responses'!B28:C28)<2.1,\"\",((SUMIF('2011 Survey responses'!B28:C28,\">1\")+SUMIF('2011 Survey responses'!F28,\">1\"))/(COUNTIF('2011 Survey responses'!B28:C28,\">1\")+COUNTIF('2011 Survey responses'!F28,\">1\"))))","v":4.666666666666667},{"$f":"IF(SUM('2011 Survey responses'!D28:E28)<2.1,\"\",(AVERAGEIFS('2011 Survey responses'!D28:E28,'2011 Survey responses'!D28:E28,\">1\")))","v":6},{"$f":"IF(('2011 Survey responses'!B28+'2011 Survey responses'!D28)<2.1,\"\",((SUMIF('2011 Survey responses'!B28,\">1\")+SUMIF('2011 Survey responses'!D28,\">1\")+SUMIF('2011 Survey responses'!F28,\">1\")+SUMIF('2011 Survey responses'!K28,\">1\"))/(COUNTIF('2011 Survey responses'!B28,\">1\")+COUNTIF('2011 Survey responses'!D28,\">1\")+COUNTIF('2011 Survey responses'!F28,\">1\")+COUNTIF('2011 Survey responses'!K28,\">1\"))))","v":4.5},{"$f":"IF(SUM('2011 Survey responses'!G28:H28)<2.1,\"\",(AVERAGEIFS('2011 Survey responses'!G28:H28,'2011 Survey responses'!G28:H28,\">1\")))","v":4},{"$f":"IF(SUM('2011 Survey responses'!F28:G28)<1.5,\"\",MAX('2011 Survey responses'!F28,'2011 Survey responses'!G28))","v":5},{"$f":"IF(SUM('2011 Survey responses'!G28:H28)<1,\"\",MAX('2011 Survey responses'!G28,'2011 Survey responses'!H28))","v":4},{"$f":"IF(SUM('2011 Survey responses'!I28:L28)<4.1,\"\",(AVERAGEIFS('2011 Survey responses'!I28:L28,'2011 Survey responses'!I28:L28,\">1\")))","v":3.5},{"$f":"IF(SUM('2011 Survey responses'!M28:S28)<4.1,\"\",(AVERAGEIFS('2011 Survey responses'!M28:S28,'2011 Survey responses'!M28:S28,\">1\")))","v":4.4285714285714288},{"$f":"IF(SUM('2011 Survey responses'!T28:U28)<2.1,\"\",(AVERAGEIFS('2011 Survey responses'!T28:U28,'2011 Survey responses'!T28:U28,\">1\")))","v":6},{"$f":"IF(SUM('2011 Survey responses'!V28:AO28)<1,\"\",(AVERAGEIFS('2011 Survey responses'!V28:AO28,'2011 Survey responses'!V28:AO28,\">1\")))","v":5.6315789473684212},{"$f":"IF(SUM('2011 Survey responses'!V28:AA28)<1,\"\",(AVERAGEIFS('2011 Survey responses'!V28:AA28,'2011 Survey responses'!V28:AA28,\">1\")))","v":6},{"$f":"IF(SUM('2011 Survey responses'!AB28:AH28)<1,\"\",(AVERAGEIFS('2011 Survey responses'!AB28:AH28,'2011 Survey responses'!AB28:AH28,\">1\")))","v":6},{"$f":"IF(SUM('2011 Survey responses'!AI28:AO28)<1,\"\",(AVERAGEIFS('2011 Survey responses'!AI28:AO28,'2011 Survey responses'!AI28:AO28,\">1\")))","v":5},{"$f":"IF(('2011 Survey responses'!Y28+'2011 Survey responses'!AI28+'2011 Survey responses'!AK28)<3.1,\"\",((SUMIF('2011 Survey responses'!Y28,\">1\")+SUMIF('2011 Survey responses'!AI28,\">1\")+SUMIF('2011 Survey responses'!AK28,\">1\")+SUMIF('2011 Survey responses'!AM28,\">1\"))/(COUNTIF('2011 Survey responses'!Y28,\">1\")+COUNTIF('2011 Survey responses'!AI28,\">1\")+COUNTIF('2011 Survey responses'!AK28,\">1\")+COUNTIF('2011 Survey responses'!AM28,\">1\"))))","v":5.25},{"$f":"IF(('2011 Survey responses'!W28)<1.1,\"\",('2011 Survey responses'!W28))","v":6},{"$f":"IF(('2011 Survey responses'!Y28)<1.1,\"\",('2011 Survey responses'!Y28))","v":6},{"$f":"IF(('2011 Survey responses'!Z28)<1.1,\"\",('2011 Survey responses'!Z28))","v":6},{"$f":"IF(('2011 Survey responses'!V28+'2011 Survey responses'!X28+'2011 Survey responses'!AA28)<3.1,\"\",((SUMIF('2011 Survey responses'!V28,\">1\")+SUMIF('2011 Survey responses'!X28,\">1\")+SUMIF('2011 Survey responses'!AA28,\">1\"))/(COUNTIF('2011 Survey responses'!V28,\">1\")+COUNTIF('2011 Survey responses'!X28,\">1\")+COUNTIF('2011 Survey responses'!AA28,\">1\"))))","v":6},{"$f":"IF(('2011 Survey responses'!V28+'2011 Survey responses'!Y28+'2011 Survey responses'!AA28)<3.1,\"\",((SUMIF('2011 Survey responses'!V28,\">1\")+SUMIF('2011 Survey responses'!Y28,\">1\")+SUMIF('2011 Survey responses'!AA28,\">1\"))/(COUNTIF('2011 Survey responses'!V28,\">1\")+COUNTIF('2011 Survey responses'!Y28,\">1\")+COUNTIF('2011 Survey responses'!AA28,\">1\"))))","v":6},{"$f":"IF(SUM('2011 Survey responses'!AB28:AH28)<1,\"\",(AVERAGEIFS('2011 Survey responses'!AB28:AH28,'2011 Survey responses'!AB28:AH28,\">1\")))","v":6},{"$f":"IF(SUM('2011 Survey responses'!AI28:AO28)<7.1,\"\",(AVERAGEIFS('2011 Survey responses'!AI28:AO28,'2011 Survey responses'!AI28:AO28,\">1\")))","v":5},{"$f":"IF(('2011 Survey responses'!AH28)<1.1,\"\",('2011 Survey responses'!AH28))","v":""},{"$f":"IF(SUM('2011 Survey responses'!AP28:BV28)<1,\"\",(AVERAGEIFS('2011 Survey responses'!AP28:BV28,'2011 Survey responses'!AP28:BV28,\">1\")))","v":5.333333333333333},{"$f":"IF(SUM('2011 Survey responses'!AP28:AS28)<4.1,\"\",(AVERAGEIFS('2011 Survey responses'!AP28:AS28,'2011 Survey responses'!AP28:AS28,\">1\")))","v":5.75},{"$f":"IF(SUM('2011 Survey responses'!AT28:BF28)<1,\"\",(AVERAGEIFS('2011 Survey responses'!AT28:BF28,'2011 Survey responses'!AT28:BF28,\">1\")))","v":5.1538461538461542},{"$f":"IF(SUM('2011 Survey responses'!BG28:BO28)<1,\"\",(AVERAGEIFS('2011 Survey responses'!BG28:BO28,'2011 Survey responses'!BG28:BO28,\">1\")))","v":6},{"$f":"IF(SUM('2011 Survey responses'!BP28:BS28)<1,\"\",(AVERAGEIFS('2011 Survey responses'!BP28:BS28,'2011 Survey responses'!BP28:BS28,\">1\")))","v":5.5},{"$f":"IF(SUM('2011 Survey responses'!BT28:BV28)<3.1,\"\",(AVERAGEIFS('2011 Survey responses'!BT28:BV28,'2011 Survey responses'!BT28:BV28,\">1\")))","v":3.3333333333333335},{"$f":"IF(('2011 Survey responses'!AQ28+'2011 Survey responses'!AR28+'2011 Survey responses'!BG28)<3.1,\"\",((SUMIF('2011 Survey responses'!AQ28,\">1\")+SUMIF('2011 Survey responses'!AR28,\">1\")+SUMIF('2011 Survey responses'!BG28,\">1\"))/(COUNTIF('2011 Survey responses'!AQ28,\">1\")+COUNTIF('2011 Survey responses'!AR28,\">1\")+COUNTIF('2011 Survey responses'!BG28,\">1\"))))","v":6},{"$f":"IF(SUM('2011 Survey responses'!AP28:AS28)<4.1,\"\",(AVERAGEIFS('2011 Survey responses'!AP28:AS28,'2011 Survey responses'!AP28:AS28,\">1\")))","v":5.75},{"$f":"IF(('2011 Survey responses'!AU28+'2011 Survey responses'!AX28+'2011 Survey responses'!BA28+'2011 Survey responses'!BC28+'2011 Survey responses'!BD28)<5.1,\"\",(SUMIF('2011 Survey responses'!AU28,\">1\")+SUMIF('2011 Survey responses'!AX28,\">1\")+SUMIF('2011 Survey responses'!BA28,\">1\")+SUMIF('2011 Survey responses'!BC28,\">1\")+SUMIF('2011 Survey responses'!BD28,\">1\"))/(COUNTIF('2011 Survey responses'!AU28,\">1\")+COUNTIF('2011 Survey responses'!AX28,\">1\")+COUNTIF('2011 Survey responses'!BA28,\">1\")+COUNTIF('2011 Survey responses'!BC28,\">1\")+COUNTIF('2011 Survey responses'!BD28,\">1\")))","v":4.8},{"$f":"IF(('2011 Survey responses'!AT28)<1.1,\"\",('2011 Survey responses'!AT28))","v":5},{"$f":"IF(SUM('2011 Survey responses'!AV28:AW28)<2.1,\"\",(AVERAGEIFS('2011 Survey responses'!AV28:AW28,'2011 Survey responses'!AV28:AW28,\">1\")))","v":5},{"$f":"IF(('2011 Survey responses'!AW28+'2011 Survey responses'!AY28)<2.1,\"\",(SUMIF('2011 Survey responses'!AW28,\">1\")+SUMIF('2011 Survey responses'!AY28,\">1\"))/(COUNTIF('2011 Survey responses'!AW28,\">1\")+COUNTIF('2011 Survey responses'!AY28,\">1\")))","v":5.5},{"$f":"IF(('2011 Survey responses'!AZ28)<1.1,\"\",('2011 Survey responses'!AZ28))","v":6},6,4,5,2,{"$f":"IF(('2011 Survey responses'!BE28)<1.1,\"\",('2011 Survey responses'!BE28))","v":5},{"$f":"IF(('2011 Survey responses'!AY28+'2011 Survey responses'!BB28+'2011 Survey responses'!BF28)<3.1,\"\",(SUMIF('2011 Survey responses'!AY28,\">1\")+SUMIF('2011 Survey responses'!BB28,\">1\")+SUMIF('2011 Survey responses'!BF28,\">1\"))/(COUNTIF('2011 Survey responses'!AY28,\">1\")+COUNTIF('2011 Survey responses'!BB28,\">1\")+COUNTIF('2011 Survey responses'!BF28,\">1\")))","v":5.666666666666667},5.75,{"$f":"IF(SUM('2011 Survey responses'!BT28:BV28)<3.1,\"\",(AVERAGEIFS('2011 Survey responses'!BT28:BV28,'2011 Survey responses'!BT28:BV28,\">1\")))","v":3.3333333333333335},{"$f":"IF(SUM('2011 Survey responses'!BW28:CP28)<1,\"\",(AVERAGEIFS('2011 Survey responses'!BW28:CP28,'2011 Survey responses'!BW28:CP28,\">1\")))","v":5.5882352941176467},{"$f":"IF(SUM('2011 Survey responses'!BW28:CF28)<1,\"\",(AVERAGEIFS('2011 Survey responses'!BW28:CF28,'2011 Survey responses'!BW28:CF28,\">1\")))","v":5.2222222222222223},{"$f":"IF(SUM('2011 Survey responses'!CG28:CP28)<1,\"\",(AVERAGEIFS('2011 Survey responses'!CG28:CP28,'2011 Survey responses'!CG28:CP28,\">1\")))","v":6},{"$f":"IF(SUM('2011 Survey responses'!BX28:CF28)<1,\"\",(AVERAGEIFS('2011 Survey responses'!BX28:CF28,'2011 Survey responses'!BX28:CF28,\">1\")))","v":5.125},{"$f":"IF(SUM('2011 Survey responses'!CH28:CP28)<1,\"\",(AVERAGEIFS('2011 Survey responses'!CH28:CP28,'2011 Survey responses'!CH28:CP28,\">1\")))","v":6},{"$f":"IF(SUM('2011 Survey responses'!BW28:CP28)<1,\"\",(AVERAGEIFS('2011 Survey responses'!BW28:CP28,'2011 Survey responses'!BW28:CP28,\">1\")))","v":5.5882352941176467},{"$f":"IF(('2011 Survey responses'!BW28+'2011 Survey responses'!CG28)<2.1,\"\",(SUMIF('2011 Survey responses'!BW28,\">1\")+SUMIF('2011 Survey responses'!CG28,\">1\"))/(COUNTIF('2011 Survey responses'!BW28,\">1\")+COUNTIF('2011 Survey responses'!CG28,\">1\")))","v":6},{"$f":"IF(('2011 Survey responses'!BX28+'2011 Survey responses'!CH28)<2.1,\"\",(SUMIF('2011 Survey responses'!BX28,\">1\")+SUMIF('2011 Survey responses'!CH28,\">1\"))/(COUNTIF('2011 Survey responses'!BX28,\">1\")+COUNTIF('2011 Survey responses'!CH28,\">1\")))","v":6},{"$f":"IF(('2011 Survey responses'!BY28+'2011 Survey responses'!CI28)<2.1,\"\",(SUMIF('2011 Survey responses'!BY28,\">1\")+SUMIF('2011 Survey responses'!CI28,\">1\"))/(COUNTIF('2011 Survey responses'!BY28,\">1\")+COUNTIF('2011 Survey responses'!CI28,\">1\")))","v":6},{"$f":"IF('2011 Survey responses'!CQ28<0.5,\"\",'2011 Survey responses'!CQ28)","v":5},{"$f":"IF('2011 Survey responses'!CR28<0.5,\"\",'2011 Survey responses'!CR28)","v":4},{"$f":"IF('2011 Survey responses'!CS28<0.5,\"\",'2011 Survey responses'!CS28)","v":4},{"$f":"IF('2011 Survey responses'!CT28<0.5,\"\",'2011 Survey responses'!CT28)","v":4},{"$f":"IF('2011 Survey responses'!CU28<0.5,\"\",'2011 Survey responses'!CU28)","v":4},{"$f":"IF('2011 Survey responses'!CV28<0.5,\"\",'2011 Survey responses'!CV28)","v":1},{"$f":"IF(SUM('2011 Survey responses'!CW28:DL28)<1,\"\",(AVERAGE('2011 Survey responses'!CW28:DL28)))","v":4.375},{"$f":"IF(SUM('2011 Survey responses'!CW28:CZ28)<1,\"\",(AVERAGE('2011 Survey responses'!CW28:CZ28)))","v":4.75},{"$f":"IF(SUM('2011 Survey responses'!DA28:DD28)<1,\"\",(AVERAGE('2011 Survey responses'!DA28:DD28)))","v":4.25},{"$f":"IF(SUM('2011 Survey responses'!DE28:DH28)<1,\"\",(AVERAGE('2011 Survey responses'!DE28:DH28)))","v":4.25},{"$f":"IF(SUM('2011 Survey responses'!DI28:DL28)<1,\"\",(AVERAGE('2011 Survey responses'!DI28:DL28)))","v":4.25},{"$f":"IF(('2011 Survey responses'!CW28+'2011 Survey responses'!DA28+'2011 Survey responses'!DE28+'2011 Survey responses'!DI28)<1,\"\",AVERAGE('2011 Survey responses'!CW28,'2011 Survey responses'!DA28,'2011 Survey responses'!DE28,'2011 Survey responses'!DI28))","v":4.25},{"$f":"IF(('2011 Survey responses'!CX28+'2011 Survey responses'!DB28+'2011 Survey responses'!DF28+'2011 Survey responses'!DJ28)<1,\"\",AVERAGE('2011 Survey responses'!CX28,'2011 Survey responses'!DB28,'2011 Survey responses'!DF28,'2011 Survey responses'!DJ28))","v":4.25},{"$f":"IF(('2011 Survey responses'!CY28+'2011 Survey responses'!DC28+'2011 Survey responses'!DG28+'2011 Survey responses'!DK28)<1,\"\",AVERAGE('2011 Survey responses'!CY28,'2011 Survey responses'!DC28,'2011 Survey responses'!DG28,'2011 Survey responses'!DK28))","v":4.75},{"$f":"IF(('2011 Survey responses'!CZ28+'2011 Survey responses'!DD28+'2011 Survey responses'!DH28+'2011 Survey responses'!DL28)<1,\"\",AVERAGE('2011 Survey responses'!CZ28,'2011 Survey responses'!DD28,'2011 Survey responses'!DH28,'2011 Survey responses'!DL28))","v":4.25},{"$f":"IF('2011 Survey responses'!CW28<0.5,\"\",'2011 Survey responses'!CW28)","v":4},{"$f":"IF('2011 Survey responses'!CX28<0.5,\"\",'2011 Survey responses'!CX28)","v":5},{"$f":"IF('2011 Survey responses'!CY28<0.5,\"\",'2011 Survey responses'!CY28)","v":5},{"$f":"IF('2011 Survey responses'!CZ28<0.5,\"\",'2011 Survey responses'!CZ28)","v":5},{"$f":"IF('2011 Survey responses'!DA28<0.5,\"\",'2011 Survey responses'!DA28)","v":4},{"$f":"IF('2011 Survey responses'!DB28<0.5,\"\",'2011 Survey responses'!DB28)","v":4},{"$f":"IF('2011 Survey responses'!DC28<0.5,\"\",'2011 Survey responses'!DC28)","v":5},{"$f":"IF('2011 Survey responses'!DD28<0.5,\"\",'2011 Survey responses'!DD28)","v":4},{"$f":"IF('2011 Survey responses'!DE28<0.5,\"\",'2011 Survey responses'!DE28)","v":4},{"$f":"IF('2011 Survey responses'!DF28<0.5,\"\",'2011 Survey responses'!DF28)","v":4},{"$f":"IF('2011 Survey responses'!DG28<0.5,\"\",'2011 Survey responses'!DG28)","v":5},{"$f":"IF('2011 Survey responses'!DH28<0.5,\"\",'2011 Survey responses'!DH28)","v":4},{"$f":"IF('2011 Survey responses'!DI28<0.5,\"\",'2011 Survey responses'!DI28)","v":5},{"$f":"IF('2011 Survey responses'!DJ28<0.5,\"\",'2011 Survey responses'!DJ28)","v":4},{"$f":"IF('2011 Survey responses'!DK28<0.5,\"\",'2011 Survey responses'!DK28)","v":4},{"$f":"IF('2011 Survey responses'!DL28<0.5,\"\",'2011 Survey responses'!DL28)","v":4},{"$f":"IF('2011 Survey responses'!DU28=4,4,IF('2011 Survey responses'!DU28=5,4,\"\"))","v":4},{"$f":"IF('2011 Survey responses'!DV28=4,3,IF('2011 Survey responses'!DV28=5,3,\"\"))","v":3},2,{"$f":"IF(CQ28=2,CQ28,IF(CO28=4,CO28,IF(CP28=3,CP28,IF('2011 Survey responses'!GT28=1,1,\"\"))))","v":2},{"$f":"IF('2011 Survey responses'!DO28<0.5,\"\",'2011 Survey responses'!DO28)","v":4},{"$f":"IF('2011 Survey responses'!DP28<0.5,\"\",'2011 Survey responses'!DP28)","v":5},{"$f":"IF('2011 Survey responses'!DQ28<0.5,\"\",'2011 Survey responses'!DQ28)","v":3},{"$f":"IF('2011 Survey responses'!DR28<0.5,\"\",'2011 Survey responses'!DR28)","v":4},{"$f":"IF('2011 Survey responses'!DS28<0.5,\"\",'2011 Survey responses'!DS28)","v":4},{"$f":"IF('2011 Survey responses'!DT28<0.5,\"\",'2011 Survey responses'!DT28)","v":4},{"$f":"IF('2011 Survey responses'!DU28<0.5,\"\",'2011 Survey responses'!DU28)","v":5},{"$f":"IF('2011 Survey responses'!DV28<0.5,\"\",'2011 Survey responses'!DV28)","v":4},{"$f":"IF('2011 Survey responses'!DW28<0.5,\"\",'2011 Survey responses'!DW28)","v":4},{"$f":"IF('2011 Survey responses'!DX28<0.5,\"\",'2011 Survey responses'!DX28)","v":5},{"$f":"IF('2011 Survey responses'!DY28<0.5,\"\",'2011 Survey responses'!DY28)","v":5},{"$f":"IF('2011 Survey responses'!DZ28<0.5,\"\",'2011 Survey responses'!DZ28)","v":4},{"$f":"IF('2011 Survey responses'!EA28<0.5,\"\",'2011 Survey responses'!EA28)","v":1},{"$f":"IF('2011 Survey responses'!EB28<0.5,\"\",'2011 Survey responses'!EB28)","v":4},{"$f":"IF('2011 Survey responses'!EC28<0.5,\"\",'2011 Survey responses'!EC28)","v":2},{"$f":"IF('2011 Survey responses'!ED28<0.5,\"\",'2011 Survey responses'!ED28)","v":4},{"$f":"IF('2011 Survey responses'!EE28<0.5,\"\",'2011 Survey responses'!EE28)","v":5},{"$f":"IF('2011 Survey responses'!EF28<0.5,\"\",'2011 Survey responses'!EF28)","v":5},{"$f":"IF('2011 Survey responses'!EG28<0.5,\"\",'2011 Survey responses'!EG28)","v":4},{"$f":"IF('2011 Survey responses'!EH28<0.5,\"\",'2011 Survey responses'!EH28)","v":4},{"$f":"IF('2011 Survey responses'!EI28<0.5,\"\",'2011 Survey responses'!EI28)","v":2},{"$f":"IF('2011 Survey responses'!EJ28<0.5,\"\",'2011 Survey responses'!EJ28)","v":3},{"$f":"IF('2011 Survey responses'!EK28<0.5,\"\",'2011 Survey responses'!EK28)","v":2},{"$f":"IF('2011 Survey responses'!EL28<0.5,\"\",'2011 Survey responses'!EL28)","v":3},{"$f":"IF('2011 Survey responses'!EM28<0.5,\"\",'2011 Survey responses'!EM28)","v":4},{"$f":"IF('2011 Survey responses'!EN28<0.5,\"\",'2011 Survey responses'!EN28)","v":3},{"$f":"IF('2011 Survey responses'!EO28<0.5,\"\",'2011 Survey responses'!EO28)","v":4},{"$f":"IF('2011 Survey responses'!EP28<0.5,\"\",'2011 Survey responses'!EP28)","v":4},{"$f":"IF(('2011 Survey responses'!EW28+'2011 Survey responses'!EX28)>=2,AVERAGE('2011 Survey responses'!EW28,'2011 Survey responses'!EY28),\"\")","v":5},{"$f":"IF('2011 Survey responses'!EX28<0.5,\"\",'2011 Survey responses'!EX28)","v":4},{"$f":"IF('2011 Survey responses'!EZ28<0.5,\"\",'2011 Survey responses'!EZ28)","v":4},{"$f":"IF('2011 Survey responses'!FB28<0.5,\"\",'2011 Survey responses'!FB28)","v":5},{"$f":"IF('2011 Survey responses'!FD28<0.5,\"\",'2011 Survey responses'!FD28)","v":4},{"$f":"IF('2011 Survey responses'!FC28<0.5,\"\",'2011 Survey responses'!FC28)","v":4},{"$f":"IF(('2011 Survey responses'!EM28+'2011 Survey responses'!EN28)>=2,AVERAGE('2011 Survey responses'!EM28,'2011 Survey responses'!EN28),\"\")","v":3.5},{"$f":"IF('2011 Survey responses'!ES28<0.5,\"\",'2011 Survey responses'!ES28)","v":4},{"$f":"IF(('2011 Survey responses'!ET28+'2011 Survey responses'!EU28)>=2,AVERAGE('2011 Survey responses'!ET28,'2011 Survey responses'!EU28),\"\")","v":4},{"$f":"IF('2011 Survey responses'!EV28<0.5,\"\",'2011 Survey responses'!EV28)","v":5},{"$f":"IF('2011 Survey responses'!FA28<0.5,\"\",'2011 Survey responses'!FA28)","v":3},{"$f":"IF('2011 Survey responses'!ER28<0.5,\"\",'2011 Survey responses'!ER28)","v":4},{"$f":"IF(('2011 Survey responses'!EO28+'2011 Survey responses'!EP28)>=2,AVERAGE('2011 Survey responses'!EO28,'2011 Survey responses'!EP28),\"\")","v":4},{"$f":"IF('2011 Survey responses'!EQ28<0.5,\"\",'2011 Survey responses'!EQ28)","v":3},{"$f":"IF('2011 Survey responses'!ET28<0.5,\"\",'2011 Survey responses'!ET28)","v":4},{"$f":"IF('2011 Survey responses'!EU28<0.5,\"\",'2011 Survey responses'!EU28)","v":4},{"$f":"IF('2011 Survey responses'!EW28<0.5,\"\",'2011 Survey responses'!EW28)","v":5},{"$f":"IF('2011 Survey responses'!EY28<0.5,\"\",'2011 Survey responses'!EY28)","v":5},{"$f":"IF('2011 Survey responses'!FU28<0.5,\"\",'2011 Survey responses'!FU28)","v":5},{"$f":"IF(('2011 Survey responses'!FL28+'2011 Survey responses'!FM28)>=2,AVERAGE('2011 Survey responses'!FL28,'2011 Survey responses'!FM28),\"\")","v":2},{"$f":"IF(('2011 Survey responses'!FO28+'2011 Survey responses'!FQ28)>=2,AVERAGE('2011 Survey responses'!FO28,'2011 Survey responses'!FQ28),\"\")","v":2},{"$f":"IF('2011 Survey responses'!FJ28<0.5,\"\",'2011 Survey responses'!FJ28)","v":1},{"$f":"IF('2011 Survey responses'!FT28<0.5,\"\",'2011 Survey responses'!FT28)","v":3},{"$f":"IF('2011 Survey responses'!FR28<0.5,\"\",'2011 Survey responses'!FR28)","v":4},{"$f":"IF('2011 Survey responses'!FK28<0.5,\"\",'2011 Survey responses'!FK28)","v":2},{"$f":"IF('2011 Survey responses'!FP28<0.5,\"\",'2011 Survey responses'!FP28)","v":2},{"$f":"IF('2011 Survey responses'!FN28<0.5,\"\",'2011 Survey responses'!FN28)","v":2},{"$f":"IF(('2011 Survey responses'!FE28+'2011 Survey responses'!FF28)>=2,AVERAGE('2011 Survey responses'!FE28,'2011 Survey responses'!FF28),\"\")","v":2},{"$f":"IF('2011 Survey responses'!FS28<0.5,\"\",'2011 Survey responses'!FS28)","v":3},{"$f":"IF('2011 Survey responses'!FV28<0.5,\"\",'2011 Survey responses'!FV28)","v":4},{"$f":"IF(('2011 Survey responses'!FG28+'2011 Survey responses'!FH28)>=2,AVERAGE('2011 Survey responses'!FG28,'2011 Survey responses'!FH28),\"\")","v":2},{"$f":"IF('2011 Survey responses'!FI28<0.5,\"\",'2011 Survey responses'!FI28)","v":2},{"$f":"IF('2011 Survey responses'!FE28<0.5,\"\",'2011 Survey responses'!FE28)","v":2},{"$f":"IF('2011 Survey responses'!FF28<0.5,\"\",'2011 Survey responses'!FF28)","v":2},{"$f":"IF('2011 Survey responses'!FG28<0.5,\"\",'2011 Survey responses'!FG28)","v":2},{"$f":"IF('2011 Survey responses'!FH28<0.5,\"\",'2011 Survey responses'!FH28)","v":2},{"$f":"IF('2011 Survey responses'!FL28<0.5,\"\",'2011 Survey responses'!FL28)","v":2},{"$f":"IF('2011 Survey responses'!FM28<0.5,\"\",'2011 Survey responses'!FM28)","v":2},{"$f":"IF('2011 Survey responses'!FO28<0.5,\"\",'2011 Survey responses'!FO28)","v":2},{"$f":"IF('2011 Survey responses'!FQ28<0.5,\"\",'2011 Survey responses'!FQ28)","v":2}]
["Burkina Faso",{"$f":"IF(SUM(F29)<1,\"\",AVERAGEIF('2011 Survey responses'!B29:CP29,\">1\"))","v":5.2873563218390807},{"$f":"IF(SUM(F29)<1,\"\",AVERAGEIF('2011 Survey responses'!B29:AO29,\">1\"))","v":5.1111111111111107},{"$f":"IF(SUM(F29)<1,\"\",AVERAGEIF('2011 Survey responses'!B29:BV29,\">1\"))","v":5.2028985507246377},{"$f":"IF(SUM(F29)<1,\"\",AVERAGEIF('2011 Survey responses'!V29:BV29,\">1\"))","v":5.25},{"$f":"IF(SUM('2011 Survey responses'!B29:U29)<1,\"\",(AVERAGEIFS('2011 Survey responses'!B29:U29,'2011 Survey responses'!B29:U29,\">1\")))","v":5.0588235294117645},{"$f":"IF(SUM('2011 Survey responses'!B29:H29)<1,\"\",(AVERAGEIFS('2011 Survey responses'!B29:H29,'2011 Survey responses'!B29:H29,\">1\")))","v":5.5},{"$f":"IF(SUM('2011 Survey responses'!I29:S29)<1,\"\",(AVERAGEIFS('2011 Survey responses'!I29:S29,'2011 Survey responses'!I29:S29,\">1\")))","v":4.9090909090909092},{"$f":"IF(SUM('2011 Survey responses'!T29:U29)<2.1,\"\",(AVERAGEIFS('2011 Survey responses'!T29:U29,'2011 Survey responses'!T29:U29,\">1\")))","v":5},{"$f":"IF(SUM('2011 Survey responses'!B29:C29)<2.1,\"\",((SUMIF('2011 Survey responses'!B29:C29,\">1\")+SUMIF('2011 Survey responses'!F29,\">1\"))/(COUNTIF('2011 Survey responses'!B29:C29,\">1\")+COUNTIF('2011 Survey responses'!F29,\">1\"))))","v":6},{"$f":"IF(SUM('2011 Survey responses'!D29:E29)<2.1,\"\",(AVERAGEIFS('2011 Survey responses'!D29:E29,'2011 Survey responses'!D29:E29,\">1\")))","v":5},{"$f":"IF(('2011 Survey responses'!B29+'2011 Survey responses'!D29)<2.1,\"\",((SUMIF('2011 Survey responses'!B29,\">1\")+SUMIF('2011 Survey responses'!D29,\">1\")+SUMIF('2011 Survey responses'!F29,\">1\")+SUMIF('2011 Survey responses'!K29,\">1\"))/(COUNTIF('2011 Survey responses'!B29,\">1\")+COUNTIF('2011 Survey responses'!D29,\">1\")+COUNTIF('2011 Survey responses'!F29,\">1\")+COUNTIF('2011 Survey responses'!K29,\">1\"))))","v":5.5},{"$f":"IF(SUM('2011 Survey responses'!G29:H29)<2.1,\"\",(AVERAGEIFS('2011 Survey responses'!G29:H29,'2011 Survey responses'!G29:H29,\">1\")))","v":5},{"$f":"IF(SUM('2011 Survey responses'!F29:G29)<1.5,\"\",MAX('2011 Survey responses'!F29,'2011 Survey responses'!G29))","v":6},{"$f":"IF(SUM('2011 Survey responses'!G29:H29)<1,\"\",MAX('2011 Survey responses'!G29,'2011 Survey responses'!H29))","v":5},{"$f":"IF(SUM('2011 Survey responses'!I29:L29)<4.1,\"\",(AVERAGEIFS('2011 Survey responses'!I29:L29,'2011 Survey responses'!I29:L29,\">1\")))","v":4.75},{"$f":"IF(SUM('2011 Survey responses'!M29:S29)<4.1,\"\",(AVERAGEIFS('2011 Survey responses'!M29:S29,'2011 Survey responses'!M29:S29,\">1\")))","v":5},{"$f":"IF(SUM('2011 Survey responses'!T29:U29)<2.1,\"\",(AVERAGEIFS('2011 Survey responses'!T29:U29,'2011 Survey responses'!T29:U29,\">1\")))","v":5},{"$f":"IF(SUM('2011 Survey responses'!V29:AO29)<1,\"\",(AVERAGEIFS('2011 Survey responses'!V29:AO29,'2011 Survey responses'!V29:AO29,\">1\")))","v":5.1578947368421053},{"$f":"IF(SUM('2011 Survey responses'!V29:AA29)<1,\"\",(AVERAGEIFS('2011 Survey responses'!V29:AA29,'2011 Survey responses'!V29:AA29,\">1\")))","v":5.2},{"$f":"IF(SUM('2011 Survey responses'!AB29:AH29)<1,\"\",(AVERAGEIFS('2011 Survey responses'!AB29:AH29,'2011 Survey responses'!AB29:AH29,\">1\")))","v":5.2857142857142856},{"$f":"IF(SUM('2011 Survey responses'!AI29:AO29)<1,\"\",(AVERAGEIFS('2011 Survey responses'!AI29:AO29,'2011 Survey responses'!AI29:AO29,\">1\")))","v":5},{"$f":"IF(('2011 Survey responses'!Y29+'2011 Survey responses'!AI29+'2011 Survey responses'!AK29)<3.1,\"\",((SUMIF('2011 Survey responses'!Y29,\">1\")+SUMIF('2011 Survey responses'!AI29,\">1\")+SUMIF('2011 Survey responses'!AK29,\">1\")+SUMIF('2011 Survey responses'!AM29,\">1\"))/(COUNTIF('2011 Survey responses'!Y29,\">1\")+COUNTIF('2011 Survey responses'!AI29,\">1\")+COUNTIF('2011 Survey responses'!AK29,\">1\")+COUNTIF('2011 Survey responses'!AM29,\">1\"))))","v":5},{"$f":"IF(('2011 Survey responses'!W29)<1.1,\"\",('2011 Survey responses'!W29))","v":6},{"$f":"IF(('2011 Survey responses'!Y29)<1.1,\"\",('2011 Survey responses'!Y29))","v":5},{"$f":"IF(('2011 Survey responses'!Z29)<1.1,\"\",('2011 Survey responses'!Z29))","v":5},{"$f":"IF(('2011 Survey responses'!V29+'2011 Survey responses'!X29+'2011 Survey responses'!AA29)<3.1,\"\",((SUMIF('2011 Survey responses'!V29,\">1\")+SUMIF('2011 Survey responses'!X29,\">1\")+SUMIF('2011 Survey responses'!AA29,\">1\"))/(COUNTIF('2011 Survey responses'!V29,\">1\")+COUNTIF('2011 Survey responses'!X29,\">1\")+COUNTIF('2011 Survey responses'!AA29,\">1\"))))","v":5},{"$f":"IF(('2011 Survey responses'!V29+'2011 Survey responses'!Y29+'2011 Survey responses'!AA29)<3.1,\"\",((SUMIF('2011 Survey responses'!V29,\">1\")+SUMIF('2011 Survey responses'!Y29,\">1\")+SUMIF('2011 Survey responses'!AA29,\">1\"))/(COUNTIF('2011 Survey responses'!V29,\">1\")+COUNTIF('2011 Survey responses'!Y29,\">1\")+COUNTIF('2011 Survey responses'!AA29,\">1\"))))","v":5},{"$f":"IF(SUM('2011 Survey responses'!AB29:AH29)<1,\"\",(AVERAGEIFS('2011 Survey responses'!AB29:AH29,'2011 Survey responses'!AB29:AH29,\">1\")))","v":5.2857142857142856},{"$f":"IF(SUM('2011 Survey responses'!AI29:AO29)<7.1,\"\",(AVERAGEIFS('2011 Survey responses'!AI29:AO29,'2011 Survey responses'!AI29:AO29,\">1\")))","v":5},{"$f":"IF(('2011 Survey responses'!AH29)<1.1,\"\",('2011 Survey responses'!AH29))","v":4},{"$f":"IF(SUM('2011 Survey responses'!AP29:BV29)<1,\"\",(AVERAGEIFS('2011 Survey responses'!AP29:BV29,'2011 Survey responses'!AP29:BV29,\">1\")))","v":5.3030303030303028},{"$f":"IF(SUM('2011 Survey responses'!AP29:AS29)<4.1,\"\",(AVERAGEIFS('2011 Survey responses'!AP29:AS29,'2011 Survey responses'!AP29:AS29,\">1\")))","v":4.75},{"$f":"IF(SUM('2011 Survey responses'!AT29:BF29)<1,\"\",(AVERAGEIFS('2011 Survey responses'!AT29:BF29,'2011 Survey responses'!AT29:BF29,\">1\")))","v":5.3076923076923075},{"$f":"IF(SUM('2011 Survey responses'!BG29:BO29)<1,\"\",(AVERAGEIFS('2011 Survey responses'!BG29:BO29,'2011 Survey responses'!BG29:BO29,\">1\")))","v":5.8888888888888893},{"$f":"IF(SUM('2011 Survey responses'!BP29:BS29)<1,\"\",(AVERAGEIFS('2011 Survey responses'!BP29:BS29,'2011 Survey responses'!BP29:BS29,\">1\")))","v":5.25},{"$f":"IF(SUM('2011 Survey responses'!BT29:BV29)<3.1,\"\",(AVERAGEIFS('2011 Survey responses'!BT29:BV29,'2011 Survey responses'!BT29:BV29,\">1\")))","v":4.333333333333333},{"$f":"IF(('2011 Survey responses'!AQ29+'2011 Survey responses'!AR29+'2011 Survey responses'!BG29)<3.1,\"\",((SUMIF('2011 Survey responses'!AQ29,\">1\")+SUMIF('2011 Survey responses'!AR29,\">1\")+SUMIF('2011 Survey responses'!BG29,\">1\"))/(COUNTIF('2011 Survey responses'!AQ29,\">1\")+COUNTIF('2011 Survey responses'!AR29,\">1\")+COUNTIF('2011 Survey responses'!BG29,\">1\"))))","v":6},{"$f":"IF(SUM('2011 Survey responses'!AP29:AS29)<4.1,\"\",(AVERAGEIFS('2011 Survey responses'!AP29:AS29,'2011 Survey responses'!AP29:AS29,\">1\")))","v":4.75},{"$f":"IF(('2011 Survey responses'!AU29+'2011 Survey responses'!AX29+'2011 Survey responses'!BA29+'2011 Survey responses'!BC29+'2011 Survey responses'!BD29)<5.1,\"\",(SUMIF('2011 Survey responses'!AU29,\">1\")+SUMIF('2011 Survey responses'!AX29,\">1\")+SUMIF('2011 Survey responses'!BA29,\">1\")+SUMIF('2011 Survey responses'!BC29,\">1\")+SUMIF('2011 Survey responses'!BD29,\">1\"))/(COUNTIF('2011 Survey responses'!AU29,\">1\")+COUNTIF('2011 Survey responses'!AX29,\">1\")+COUNTIF('2011 Survey responses'!BA29,\">1\")+COUNTIF('2011 Survey responses'!BC29,\">1\")+COUNTIF('2011 Survey responses'!BD29,\">1\")))","v":5},{"$f":"IF(('2011 Survey responses'!AT29)<1.1,\"\",('2011 Survey responses'!AT29))","v":6},{"$f":"IF(SUM('2011 Survey responses'!AV29:AW29)<2.1,\"\",(AVERAGEIFS('2011 Survey responses'!AV29:AW29,'2011 Survey responses'!AV29:AW29,\">1\")))","v":5.5},{"$f":"IF(('2011 Survey responses'!AW29+'2011 Survey responses'!AY29)<2.1,\"\",(SUMIF('2011 Survey responses'!AW29,\">1\")+SUMIF('2011 Survey responses'!AY29,\">1\"))/(COUNTIF('2011 Survey responses'!AW29,\">1\")+COUNTIF('2011 Survey responses'!AY29,\">1\")))","v":5.5},{"$f":"IF(('2011 Survey responses'!AZ29)<1.1,\"\",('2011 Survey responses'!AZ29))","v":5},5,4,5,4,{"$f":"IF(('2011 Survey responses'!BE29)<1.1,\"\",('2011 Survey responses'!BE29))","v":5},{"$f":"IF(('2011 Survey responses'!AY29+'2011 Survey responses'!BB29+'2011 Survey responses'!BF29)<3.1,\"\",(SUMIF('2011 Survey responses'!AY29,\">1\")+SUMIF('2011 Survey responses'!BB29,\">1\")+SUMIF('2011 Survey responses'!BF29,\">1\"))/(COUNTIF('2011 Survey responses'!AY29,\">1\")+COUNTIF('2011 Survey responses'!BB29,\">1\")+COUNTIF('2011 Survey responses'!BF29,\">1\")))","v":5.666666666666667},5.5694444444444446,{"$f":"IF(SUM('2011 Survey responses'!BT29:BV29)<3.1,\"\",(AVERAGEIFS('2011 Survey responses'!BT29:BV29,'2011 Survey responses'!BT29:BV29,\">1\")))","v":4.333333333333333},{"$f":"IF(SUM('2011 Survey responses'!BW29:CP29)<1,\"\",(AVERAGEIFS('2011 Survey responses'!BW29:CP29,'2011 Survey responses'!BW29:CP29,\">1\")))","v":5.6111111111111107},{"$f":"IF(SUM('2011 Survey responses'!BW29:CF29)<1,\"\",(AVERAGEIFS('2011 Survey responses'!BW29:CF29,'2011 Survey responses'!BW29:CF29,\">1\")))","v":5.666666666666667},{"$f":"IF(SUM('2011 Survey responses'!CG29:CP29)<1,\"\",(AVERAGEIFS('2011 Survey responses'!CG29:CP29,'2011 Survey responses'!CG29:CP29,\">1\")))","v":5.5555555555555554},{"$f":"IF(SUM('2011 Survey responses'!BX29:CF29)<1,\"\",(AVERAGEIFS('2011 Survey responses'!BX29:CF29,'2011 Survey responses'!BX29:CF29,\">1\")))","v":5.625},{"$f":"IF(SUM('2011 Survey responses'!CH29:CP29)<1,\"\",(AVERAGEIFS('2011 Survey responses'!CH29:CP29,'2011 Survey responses'!CH29:CP29,\">1\")))","v":5.5},{"$f":"IF(SUM('2011 Survey responses'!BW29:CP29)<1,\"\",(AVERAGEIFS('2011 Survey responses'!BW29:CP29,'2011 Survey responses'!BW29:CP29,\">1\")))","v":5.6111111111111107},{"$f":"IF(('2011 Survey responses'!BW29+'2011 Survey responses'!CG29)<2.1,\"\",(SUMIF('2011 Survey responses'!BW29,\">1\")+SUMIF('2011 Survey responses'!CG29,\">1\"))/(COUNTIF('2011 Survey responses'!BW29,\">1\")+COUNTIF('2011 Survey responses'!CG29,\">1\")))","v":6},{"$f":"IF(('2011 Survey responses'!BX29+'2011 Survey responses'!CH29)<2.1,\"\",(SUMIF('2011 Survey responses'!BX29,\">1\")+SUMIF('2011 Survey responses'!CH29,\">1\"))/(COUNTIF('2011 Survey responses'!BX29,\">1\")+COUNTIF('2011 Survey responses'!CH29,\">1\")))","v":6},{"$f":"IF(('2011 Survey responses'!BY29+'2011 Survey responses'!CI29)<2.1,\"\",(SUMIF('2011 Survey responses'!BY29,\">1\")+SUMIF('2011 Survey responses'!CI29,\">1\"))/(COUNTIF('2011 Survey responses'!BY29,\">1\")+COUNTIF('2011 Survey responses'!CI29,\">1\")))","v":6},{"$f":"IF('2011 Survey responses'!CQ29<0.5,\"\",'2011 Survey responses'!CQ29)","v":4},{"$f":"IF('2011 Survey responses'!CR29<0.5,\"\",'2011 Survey responses'!CR29)","v":4},{"$f":"IF('2011 Survey responses'!CS29<0.5,\"\",'2011 Survey responses'!CS29)","v":4},{"$f":"IF('2011 Survey responses'!CT29<0.5,\"\",'2011 Survey responses'!CT29)","v":4},{"$f":"IF('2011 Survey responses'!CU29<0.5,\"\",'2011 Survey responses'!CU29)","v":4},{"$f":"IF('2011 Survey responses'!CV29<0.5,\"\",'2011 Survey responses'!CV29)","v":2},{"$f":"IF(SUM('2011 Survey responses'!CW29:DL29)<1,\"\",(AVERAGE('2011 Survey responses'!CW29:DL29)))","v":3},{"$f":"IF(SUM('2011 Survey responses'!CW29:CZ29)<1,\"\",(AVERAGE('2011 Survey responses'!CW29:CZ29)))","v":3},{"$f":"IF(SUM('2011 Survey responses'!DA29:DD29)<1,\"\",(AVERAGE('2011 Survey responses'!DA29:DD29)))","v":3},{"$f":"IF(SUM('2011 Survey responses'!DE29:DH29)<1,\"\",(AVERAGE('2011 Survey responses'!DE29:DH29)))","v":3},{"$f":"IF(SUM('2011 Survey responses'!DI29:DL29)<1,\"\",(AVERAGE('2011 Survey responses'!DI29:DL29)))","v":3},{"$f":"IF(('2011 Survey responses'!CW29+'2011 Survey responses'!DA29+'2011 Survey responses'!DE29+'2011 Survey responses'!DI29)<1,\"\",AVERAGE('2011 Survey responses'!CW29,'2011 Survey responses'!DA29,'2011 Survey responses'!DE29,'2011 Survey responses'!DI29))","v":3},{"$f":"IF(('2011 Survey responses'!CX29+'2011 Survey responses'!DB29+'2011 Survey responses'!DF29+'2011 Survey responses'!DJ29)<1,\"\",AVERAGE('2011 Survey responses'!CX29,'2011 Survey responses'!DB29,'2011 Survey responses'!DF29,'2011 Survey responses'!DJ29))","v":3},{"$f":"IF(('2011 Survey responses'!CY29+'2011 Survey responses'!DC29+'2011 Survey responses'!DG29+'2011 Survey responses'!DK29)<1,\"\",AVERAGE('2011 Survey responses'!CY29,'2011 Survey responses'!DC29,'2011 Survey responses'!DG29,'2011 Survey responses'!DK29))","v":3},{"$f":"IF(('2011 Survey responses'!CZ29+'2011 Survey responses'!DD29+'2011 Survey responses'!DH29+'2011 Survey responses'!DL29)<1,\"\",AVERAGE('2011 Survey responses'!CZ29,'2011 Survey responses'!DD29,'2011 Survey responses'!DH29,'2011 Survey responses'!DL29))","v":3},{"$f":"IF('2011 Survey responses'!CW29<0.5,\"\",'2011 Survey responses'!CW29)","v":3},{"$f":"IF('2011 Survey responses'!CX29<0.5,\"\",'2011 Survey responses'!CX29)","v":3},{"$f":"IF('2011 Survey responses'!CY29<0.5,\"\",'2011 Survey responses'!CY29)","v":3},{"$f":"IF('2011 Survey responses'!CZ29<0.5,\"\",'2011 Survey responses'!CZ29)","v":3},{"$f":"IF('2011 Survey responses'!DA29<0.5,\"\",'2011 Survey responses'!DA29)","v":3},{"$f":"IF('2011 Survey responses'!DB29<0.5,\"\",'2011 Survey responses'!DB29)","v":3},{"$f":"IF('2011 Survey responses'!DC29<0.5,\"\",'2011 Survey responses'!DC29)","v":3},{"$f":"IF('2011 Survey responses'!DD29<0.5,\"\",'2011 Survey responses'!DD29)","v":3},{"$f":"IF('2011 Survey responses'!DE29<0.5,\"\",'2011 Survey responses'!DE29)","v":3},{"$f":"IF('2011 Survey responses'!DF29<0.5,\"\",'2011 Survey responses'!DF29)","v":3},{"$f":"IF('2011 Survey responses'!DG29<0.5,\"\",'2011 Survey responses'!DG29)","v":3},{"$f":"IF('2011 Survey responses'!DH29<0.5,\"\",'2011 Survey responses'!DH29)","v":3},{"$f":"IF('2011 Survey responses'!DI29<0.5,\"\",'2011 Survey responses'!DI29)","v":3},{"$f":"IF('2011 Survey responses'!DJ29<0.5,\"\",'2011 Survey responses'!DJ29)","v":3},{"$f":"IF('2011 Survey responses'!DK29<0.5,\"\",'2011 Survey responses'!DK29)","v":3},{"$f":"IF('2011 Survey responses'!DL29<0.5,\"\",'2011 Survey responses'!DL29)","v":3},{"$f":"IF('2011 Survey responses'!DU29=4,4,IF('2011 Survey responses'!DU29=5,4,\"\"))","v":""},{"$f":"IF('2011 Survey responses'!DV29=4,3,IF('2011 Survey responses'!DV29=5,3,\"\"))","v":3},"",{"$f":"IF(CQ29=2,CQ29,IF(CO29=4,CO29,IF(CP29=3,CP29,IF('2011 Survey responses'!GT29=1,1,\"\"))))","v":3},{"$f":"IF('2011 Survey responses'!DO29<0.5,\"\",'2011 Survey responses'!DO29)","v":4},{"$f":"IF('2011 Survey responses'!DP29<0.5,\"\",'2011 Survey responses'!DP29)","v":5},{"$f":"IF('2011 Survey responses'!DQ29<0.5,\"\",'2011 Survey responses'!DQ29)","v":5},{"$f":"IF('2011 Survey responses'!DR29<0.5,\"\",'2011 Survey responses'!DR29)","v":3},{"$f":"IF('2011 Survey responses'!DS29<0.5,\"\",'2011 Survey responses'!DS29)","v":2},{"$f":"IF('2011 Survey responses'!DT29<0.5,\"\",'2011 Survey responses'!DT29)","v":4},{"$f":"IF('2011 Survey responses'!DU29<0.5,\"\",'2011 Survey responses'!DU29)","v":1},{"$f":"IF('2011 Survey responses'!DV29<0.5,\"\",'2011 Survey responses'!DV29)","v":5},{"$f":"IF('2011 Survey responses'!DW29<0.5,\"\",'2011 Survey responses'!DW29)","v":4},{"$f":"IF('2011 Survey responses'!DX29<0.5,\"\",'2011 Survey responses'!DX29)","v":4},{"$f":"IF('2011 Survey responses'!DY29<0.5,\"\",'2011 Survey responses'!DY29)","v":4},{"$f":"IF('2011 Survey responses'!DZ29<0.5,\"\",'2011 Survey responses'!DZ29)","v":4},{"$f":"IF('2011 Survey responses'!EA29<0.5,\"\",'2011 Survey responses'!EA29)","v":4},{"$f":"IF('2011 Survey responses'!EB29<0.5,\"\",'2011 Survey responses'!EB29)","v":4},{"$f":"IF('2011 Survey responses'!EC29<0.5,\"\",'2011 Survey responses'!EC29)","v":4},{"$f":"IF('2011 Survey responses'!ED29<0.5,\"\",'2011 Survey responses'!ED29)","v":4},{"$f":"IF('2011 Survey responses'!EE29<0.5,\"\",'2011 Survey responses'!EE29)","v":4},{"$f":"IF('2011 Survey responses'!EF29<0.5,\"\",'2011 Survey responses'!EF29)","v":4},{"$f":"IF('2011 Survey responses'!EG29<0.5,\"\",'2011 Survey responses'!EG29)","v":3},{"$f":"IF('2011 Survey responses'!EH29<0.5,\"\",'2011 Survey responses'!EH29)","v":2},{"$f":"IF('2011 Survey responses'!EI29<0.5,\"\",'2011 Survey responses'!EI29)","v":4},{"$f":"IF('2011 Survey responses'!EJ29<0.5,\"\",'2011 Survey responses'!EJ29)","v":4},{"$f":"IF('2011 Survey responses'!EK29<0.5,\"\",'2011 Survey responses'!EK29)","v":3},{"$f":"IF('2011 Survey responses'!EL29<0.5,\"\",'2011 Survey responses'!EL29)","v":2},{"$f":"IF('2011 Survey responses'!EM29<0.5,\"\",'2011 Survey responses'!EM29)","v":1},{"$f":"IF('2011 Survey responses'!EN29<0.5,\"\",'2011 Survey responses'!EN29)","v":2},{"$f":"IF('2011 Survey responses'!EO29<0.5,\"\",'2011 Survey responses'!EO29)","v":1},{"$f":"IF('2011 Survey responses'!EP29<0.5,\"\",'2011 Survey responses'!EP29)","v":2},{"$f":"IF(('2011 Survey responses'!EW29+'2011 Survey responses'!EX29)>=2,AVERAGE('2011 Survey responses'!EW29,'2011 Survey responses'!EY29),\"\")","v":3},{"$f":"IF('2011 Survey responses'!EX29<0.5,\"\",'2011 Survey responses'!EX29)","v":5},{"$f":"IF('2011 Survey responses'!EZ29<0.5,\"\",'2011 Survey responses'!EZ29)","v":5},{"$f":"IF('2011 Survey responses'!FB29<0.5,\"\",'2011 Survey responses'!FB29)","v":5},{"$f":"IF('2011 Survey responses'!FD29<0.5,\"\",'2011 Survey responses'!FD29)","v":5},{"$f":"IF('2011 Survey responses'!FC29<0.5,\"\",'2011 Survey responses'!FC29)","v":5},{"$f":"IF(('2011 Survey responses'!EM29+'2011 Survey responses'!EN29)>=2,AVERAGE('2011 Survey responses'!EM29,'2011 Survey responses'!EN29),\"\")","v":1.5},{"$f":"IF('2011 Survey responses'!ES29<0.5,\"\",'2011 Survey responses'!ES29)","v":5},{"$f":"IF(('2011 Survey responses'!ET29+'2011 Survey responses'!EU29)>=2,AVERAGE('2011 Survey responses'!ET29,'2011 Survey responses'!EU29),\"\")","v":5},{"$f":"IF('2011 Survey responses'!EV29<0.5,\"\",'2011 Survey responses'!EV29)","v":1},{"$f":"IF('2011 Survey responses'!FA29<0.5,\"\",'2011 Survey responses'!FA29)","v":5},{"$f":"IF('2011 Survey responses'!ER29<0.5,\"\",'2011 Survey responses'!ER29)","v":5},{"$f":"IF(('2011 Survey responses'!EO29+'2011 Survey responses'!EP29)>=2,AVERAGE('2011 Survey responses'!EO29,'2011 Survey responses'!EP29),\"\")","v":1.5},{"$f":"IF('2011 Survey responses'!EQ29<0.5,\"\",'2011 Survey responses'!EQ29)","v":5},{"$f":"IF('2011 Survey responses'!ET29<0.5,\"\",'2011 Survey responses'!ET29)","v":5},{"$f":"IF('2011 Survey responses'!EU29<0.5,\"\",'2011 Survey responses'!EU29)","v":5},{"$f":"IF('2011 Survey responses'!EW29<0.5,\"\",'2011 Survey responses'!EW29)","v":1},{"$f":"IF('2011 Survey responses'!EY29<0.5,\"\",'2011 Survey responses'!EY29)","v":5},{"$f":"IF('2011 Survey responses'!FU29<0.5,\"\",'2011 Survey responses'!FU29)","v":4},{"$f":"IF(('2011 Survey responses'!FL29+'2011 Survey responses'!FM29)>=2,AVERAGE('2011 Survey responses'!FL29,'2011 Survey responses'!FM29),\"\")","v":4},{"$f":"IF(('2011 Survey responses'!FO29+'2011 Survey responses'!FQ29)>=2,AVERAGE('2011 Survey responses'!FO29,'2011 Survey responses'!FQ29),\"\")","v":4},{"$f":"IF('2011 Survey responses'!FJ29<0.5,\"\",'2011 Survey responses'!FJ29)","v":4},{"$f":"IF('2011 Survey responses'!FT29<0.5,\"\",'2011 Survey responses'!FT29)","v":4},{"$f":"IF('2011 Survey responses'!FR29<0.5,\"\",'2011 Survey responses'!FR29)","v":4},{"$f":"IF('2011 Survey responses'!FK29<0.5,\"\",'2011 Survey responses'!FK29)","v":4},{"$f":"IF('2011 Survey responses'!FP29<0.5,\"\",'2011 Survey responses'!FP29)","v":4},{"$f":"IF('2011 Survey responses'!FN29<0.5,\"\",'2011 Survey responses'!FN29)","v":5},{"$f":"IF(('2011 Survey responses'!FE29+'2011 Survey responses'!FF29)>=2,AVERAGE('2011 Survey responses'!FE29,'2011 Survey responses'!FF29),\"\")","v":4.5},{"$f":"IF('2011 Survey responses'!FS29<0.5,\"\",'2011 Survey responses'!FS29)","v":4},{"$f":"IF('2011 Survey responses'!FV29<0.5,\"\",'2011 Survey responses'!FV29)","v":4},{"$f":"IF(('2011 Survey responses'!FG29+'2011 Survey responses'!FH29)>=2,AVERAGE('2011 Survey responses'!FG29,'2011 Survey responses'!FH29),\"\")","v":4},{"$f":"IF('2011 Survey responses'!FI29<0.5,\"\",'2011 Survey responses'!FI29)","v":4},{"$f":"IF('2011 Survey responses'!FE29<0.5,\"\",'2011 Survey responses'!FE29)","v":5},{"$f":"IF('2011 Survey responses'!FF29<0.5,\"\",'2011 Survey responses'!FF29)","v":4},{"$f":"IF('2011 Survey responses'!FG29<0.5,\"\",'2011 Survey responses'!FG29)","v":4},{"$f":"IF('2011 Survey responses'!FH29<0.5,\"\",'2011 Survey responses'!FH29)","v":4},{"$f":"IF('2011 Survey responses'!FL29<0.5,\"\",'2011 Survey responses'!FL29)","v":4},{"$f":"IF('2011 Survey responses'!FM29<0.5,\"\",'2011 Survey responses'!FM29)","v":4},{"$f":"IF('2011 Survey responses'!FO29<0.5,\"\",'2011 Survey responses'!FO29)","v":4},{"$f":"IF('2011 Survey responses'!FQ29<0.5,\"\",'2011 Survey responses'!FQ29)","v":4}]
["Burundi",{"$f":"IF(SUM(F30)<1,\"\",AVERAGEIF('2011 Survey responses'!B30:CP30,\">1\"))","v":2.7321428571428572},{"$f":"IF(SUM(F30)<1,\"\",AVERAGEIF('2011 Survey responses'!B30:AO30,\">1\"))","v":2.6129032258064515},{"$f":"IF(SUM(F30)<1,\"\",AVERAGEIF('2011 Survey responses'!B30:BV30,\">1\"))","v":2.78},{"$f":"IF(SUM(F30)<1,\"\",AVERAGEIF('2011 Survey responses'!V30:BV30,\">1\"))","v":2.9714285714285715},{"$f":"IF(SUM('2011 Survey responses'!B30:U30)<1,\"\",(AVERAGEIFS('2011 Survey responses'!B30:U30,'2011 Survey responses'!B30:U30,\">1\")))","v":2.3333333333333335},{"$f":"IF(SUM('2011 Survey responses'!B30:H30)<1,\"\",(AVERAGEIFS('2011 Survey responses'!B30:H30,'2011 Survey responses'!B30:H30,\">1\")))","v":3},{"$f":"IF(SUM('2011 Survey responses'!I30:S30)<1,\"\",(AVERAGEIFS('2011 Survey responses'!I30:S30,'2011 Survey responses'!I30:S30,\">1\")))","v":2},{"$f":"IF(SUM('2011 Survey responses'!T30:U30)<2.1,\"\",(AVERAGEIFS('2011 Survey responses'!T30:U30,'2011 Survey responses'!T30:U30,\">1\")))","v":2},{"$f":"IF(SUM('2011 Survey responses'!B30:C30)<2.1,\"\",((SUMIF('2011 Survey responses'!B30:C30,\">1\")+SUMIF('2011 Survey responses'!F30,\">1\"))/(COUNTIF('2011 Survey responses'!B30:C30,\">1\")+COUNTIF('2011 Survey responses'!F30,\">1\"))))","v":3},{"$f":"IF(SUM('2011 Survey responses'!D30:E30)<2.1,\"\",(AVERAGEIFS('2011 Survey responses'!D30:E30,'2011 Survey responses'!D30:E30,\">1\")))","v":3},{"$f":"IF(('2011 Survey responses'!B30+'2011 Survey responses'!D30)<2.1,\"\",((SUMIF('2011 Survey responses'!B30,\">1\")+SUMIF('2011 Survey responses'!D30,\">1\")+SUMIF('2011 Survey responses'!F30,\">1\")+SUMIF('2011 Survey responses'!K30,\">1\"))/(COUNTIF('2011 Survey responses'!B30,\">1\")+COUNTIF('2011 Survey responses'!D30,\">1\")+COUNTIF('2011 Survey responses'!F30,\">1\")+COUNTIF('2011 Survey responses'!K30,\">1\"))))","v":3},{"$f":"IF(SUM('2011 Survey responses'!G30:H30)<2.1,\"\",(AVERAGEIFS('2011 Survey responses'!G30:H30,'2011 Survey responses'!G30:H30,\">1\")))","v":3},{"$f":"IF(SUM('2011 Survey responses'!F30:G30)<1.5,\"\",MAX('2011 Survey responses'!F30,'2011 Survey responses'!G30))","v":3},{"$f":"IF(SUM('2011 Survey responses'!G30:H30)<1,\"\",MAX('2011 Survey responses'!G30,'2011 Survey responses'!H30))","v":3},{"$f":"IF(SUM('2011 Survey responses'!I30:L30)<4.1,\"\",(AVERAGEIFS('2011 Survey responses'!I30:L30,'2011 Survey responses'!I30:L30,\">1\")))","v":2},{"$f":"IF(SUM('2011 Survey responses'!M30:S30)<4.1,\"\",(AVERAGEIFS('2011 Survey responses'!M30:S30,'2011 Survey responses'!M30:S30,\">1\")))","v":2},{"$f":"IF(SUM('2011 Survey responses'!T30:U30)<2.1,\"\",(AVERAGEIFS('2011 Survey responses'!T30:U30,'2011 Survey responses'!T30:U30,\">1\")))","v":2},{"$f":"IF(SUM('2011 Survey responses'!V30:AO30)<1,\"\",(AVERAGEIFS('2011 Survey responses'!V30:AO30,'2011 Survey responses'!V30:AO30,\">1\")))","v":2.875},{"$f":"IF(SUM('2011 Survey responses'!V30:AA30)<1,\"\",(AVERAGEIFS('2011 Survey responses'!V30:AA30,'2011 Survey responses'!V30:AA30,\">1\")))","v":3.3333333333333335},{"$f":"IF(SUM('2011 Survey responses'!AB30:AH30)<1,\"\",(AVERAGEIFS('2011 Survey responses'!AB30:AH30,'2011 Survey responses'!AB30:AH30,\">1\")))","v":3},{"$f":"IF(SUM('2011 Survey responses'!AI30:AO30)<1,\"\",(AVERAGEIFS('2011 Survey responses'!AI30:AO30,'2011 Survey responses'!AI30:AO30,\">1\")))","v":2.5714285714285716},{"$f":"IF(('2011 Survey responses'!Y30+'2011 Survey responses'!AI30+'2011 Survey responses'!AK30)<3.1,\"\",((SUMIF('2011 Survey responses'!Y30,\">1\")+SUMIF('2011 Survey responses'!AI30,\">1\")+SUMIF('2011 Survey responses'!AK30,\">1\")+SUMIF('2011 Survey responses'!AM30,\">1\"))/(COUNTIF('2011 Survey responses'!Y30,\">1\")+COUNTIF('2011 Survey responses'!AI30,\">1\")+COUNTIF('2011 Survey responses'!AK30,\">1\")+COUNTIF('2011 Survey responses'!AM30,\">1\"))))","v":3.25},{"$f":"IF(('2011 Survey responses'!W30)<1.1,\"\",('2011 Survey responses'!W30))","v":""},{"$f":"IF(('2011 Survey responses'!Y30)<1.1,\"\",('2011 Survey responses'!Y30))","v":3},{"$f":"IF(('2011 Survey responses'!Z30)<1.1,\"\",('2011 Survey responses'!Z30))","v":5},{"$f":"IF(('2011 Survey responses'!V30+'2011 Survey responses'!X30+'2011 Survey responses'!AA30)<3.1,\"\",((SUMIF('2011 Survey responses'!V30,\">1\")+SUMIF('2011 Survey responses'!X30,\">1\")+SUMIF('2011 Survey responses'!AA30,\">1\"))/(COUNTIF('2011 Survey responses'!V30,\">1\")+COUNTIF('2011 Survey responses'!X30,\">1\")+COUNTIF('2011 Survey responses'!AA30,\">1\"))))","v":""},{"$f":"IF(('2011 Survey responses'!V30+'2011 Survey responses'!Y30+'2011 Survey responses'!AA30)<3.1,\"\",((SUMIF('2011 Survey responses'!V30,\">1\")+SUMIF('2011 Survey responses'!Y30,\">1\")+SUMIF('2011 Survey responses'!AA30,\">1\"))/(COUNTIF('2011 Survey responses'!V30,\">1\")+COUNTIF('2011 Survey responses'!Y30,\">1\")+COUNTIF('2011 Survey responses'!AA30,\">1\"))))","v":2.5},{"$f":"IF(SUM('2011 Survey responses'!AB30:AH30)<1,\"\",(AVERAGEIFS('2011 Survey responses'!AB30:AH30,'2011 Survey responses'!AB30:AH30,\">1\")))","v":3},{"$f":"IF(SUM('2011 Survey responses'!AI30:AO30)<7.1,\"\",(AVERAGEIFS('2011 Survey responses'!AI30:AO30,'2011 Survey responses'!AI30:AO30,\">1\")))","v":2.5714285714285716},{"$f":"IF(('2011 Survey responses'!AH30)<1.1,\"\",('2011 Survey responses'!AH30))","v":""},{"$f":"IF(SUM('2011 Survey responses'!AP30:BV30)<1,\"\",(AVERAGEIFS('2011 Survey responses'!AP30:BV30,'2011 Survey responses'!AP30:BV30,\">1\")))","v":3.0526315789473686},{"$f":"IF(SUM('2011 Survey responses'!AP30:AS30)<4.1,\"\",(AVERAGEIFS('2011 Survey responses'!AP30:AS30,'2011 Survey responses'!AP30:AS30,\">1\")))","v":3.5},{"$f":"IF(SUM('2011 Survey responses'!AT30:BF30)<1,\"\",(AVERAGEIFS('2011 Survey responses'!AT30:BF30,'2011 Survey responses'!AT30:BF30,\">1\")))","v":2.1666666666666665},{"$f":"IF(SUM('2011 Survey responses'!BG30:BO30)<1,\"\",(AVERAGEIFS('2011 Survey responses'!BG30:BO30,'2011 Survey responses'!BG30:BO30,\">1\")))","v":4.5999999999999996},{"$f":"IF(SUM('2011 Survey responses'!BP30:BS30)<1,\"\",(AVERAGEIFS('2011 Survey responses'!BP30:BS30,'2011 Survey responses'!BP30:BS30,\">1\")))","v":3},{"$f":"IF(SUM('2011 Survey responses'!BT30:BV30)<3.1,\"\",(AVERAGEIFS('2011 Survey responses'!BT30:BV30,'2011 Survey responses'!BT30:BV30,\">1\")))","v":2},{"$f":"IF(('2011 Survey responses'!AQ30+'2011 Survey responses'!AR30+'2011 Survey responses'!BG30)<3.1,\"\",((SUMIF('2011 Survey responses'!AQ30,\">1\")+SUMIF('2011 Survey responses'!AR30,\">1\")+SUMIF('2011 Survey responses'!BG30,\">1\"))/(COUNTIF('2011 Survey responses'!AQ30,\">1\")+COUNTIF('2011 Survey responses'!AR30,\">1\")+COUNTIF('2011 Survey responses'!BG30,\">1\"))))","v":4},{"$f":"IF(SUM('2011 Survey responses'!AP30:AS30)<4.1,\"\",(AVERAGEIFS('2011 Survey responses'!AP30:AS30,'2011 Survey responses'!AP30:AS30,\">1\")))","v":3.5},{"$f":"IF(('2011 Survey responses'!AU30+'2011 Survey responses'!AX30+'2011 Survey responses'!BA30+'2011 Survey responses'!BC30+'2011 Survey responses'!BD30)<5.1,\"\",(SUMIF('2011 Survey responses'!AU30,\">1\")+SUMIF('2011 Survey responses'!AX30,\">1\")+SUMIF('2011 Survey responses'!BA30,\">1\")+SUMIF('2011 Survey responses'!BC30,\">1\")+SUMIF('2011 Survey responses'!BD30,\">1\"))/(COUNTIF('2011 Survey responses'!AU30,\">1\")+COUNTIF('2011 Survey responses'!AX30,\">1\")+COUNTIF('2011 Survey responses'!BA30,\">1\")+COUNTIF('2011 Survey responses'!BC30,\">1\")+COUNTIF('2011 Survey responses'!BD30,\">1\")))","v":""},{"$f":"IF(('2011 Survey responses'!AT30)<1.1,\"\",('2011 Survey responses'!AT30))","v":""},{"$f":"IF(SUM('2011 Survey responses'!AV30:AW30)<2.1,\"\",(AVERAGEIFS('2011 Survey responses'!AV30:AW30,'2011 Survey responses'!AV30:AW30,\">1\")))","v":""},{"$f":"IF(('2011 Survey responses'!AW30+'2011 Survey responses'!AY30)<2.1,\"\",(SUMIF('2011 Survey responses'!AW30,\">1\")+SUMIF('2011 Survey responses'!AY30,\">1\"))/(COUNTIF('2011 Survey responses'!AW30,\">1\")+COUNTIF('2011 Survey responses'!AY30,\">1\")))","v":2},{"$f":"IF(('2011 Survey responses'!AZ30)<1.1,\"\",('2011 Survey responses'!AZ30))","v":2},2,null,null,2,{"$f":"IF(('2011 Survey responses'!BE30)<1.1,\"\",('2011 Survey responses'!BE30))","v":2},{"$f":"IF(('2011 Survey responses'!AY30+'2011 Survey responses'!BB30+'2011 Survey responses'!BF30)<3.1,\"\",(SUMIF('2011 Survey responses'!AY30,\">1\")+SUMIF('2011 Survey responses'!BB30,\">1\")+SUMIF('2011 Survey responses'!BF30,\">1\"))/(COUNTIF('2011 Survey responses'!AY30,\">1\")+COUNTIF('2011 Survey responses'!BB30,\">1\")+COUNTIF('2011 Survey responses'!BF30,\">1\")))","v":""},3.8,{"$f":"IF(SUM('2011 Survey responses'!BT30:BV30)<3.1,\"\",(AVERAGEIFS('2011 Survey responses'!BT30:BV30,'2011 Survey responses'!BT30:BV30,\">1\")))","v":2},{"$f":"IF(SUM('2011 Survey responses'!BW30:CP30)<1,\"\",(AVERAGEIFS('2011 Survey responses'!BW30:CP30,'2011 Survey responses'!BW30:CP30,\">1\")))","v":2.3333333333333335},{"$f":"IF(SUM('2011 Survey responses'!BW30:CF30)<1,\"\",(AVERAGEIFS('2011 Survey responses'!BW30:CF30,'2011 Survey responses'!BW30:CF30,\">1\")))","v":2.4},{"$f":"IF(SUM('2011 Survey responses'!CG30:CP30)<1,\"\",(AVERAGEIFS('2011 Survey responses'!CG30:CP30,'2011 Survey responses'!CG30:CP30,\">1\")))","v":2},{"$f":"IF(SUM('2011 Survey responses'!BX30:CF30)<1,\"\",(AVERAGEIFS('2011 Survey responses'!BX30:CF30,'2011 Survey responses'!BX30:CF30,\">1\")))","v":2.5},{"$f":"IF(SUM('2011 Survey responses'!CH30:CP30)<1,\"\",(AVERAGEIFS('2011 Survey responses'!CH30:CP30,'2011 Survey responses'!CH30:CP30,\">1\")))","v":{"$error":"#DIV/0!"}},{"$f":"IF(SUM('2011 Survey responses'!BW30:CP30)<1,\"\",(AVERAGEIFS('2011 Survey responses'!BW30:CP30,'2011 Survey responses'!BW30:CP30,\">1\")))","v":2.3333333333333335},{"$f":"IF(('2011 Survey responses'!BW30+'2011 Survey responses'!CG30)<2.1,\"\",(SUMIF('2011 Survey responses'!BW30,\">1\")+SUMIF('2011 Survey responses'!CG30,\">1\"))/(COUNTIF('2011 Survey responses'!BW30,\">1\")+COUNTIF('2011 Survey responses'!CG30,\">1\")))","v":2},{"$f":"IF(('2011 Survey responses'!BX30+'2011 Survey responses'!CH30)<2.1,\"\",(SUMIF('2011 Survey responses'!BX30,\">1\")+SUMIF('2011 Survey responses'!CH30,\">1\"))/(COUNTIF('2011 Survey responses'!BX30,\">1\")+COUNTIF('2011 Survey responses'!CH30,\">1\")))","v":""},{"$f":"IF(('2011 Survey responses'!BY30+'2011 Survey responses'!CI30)<2.1,\"\",(SUMIF('2011 Survey responses'!BY30,\">1\")+SUMIF('2011 Survey responses'!CI30,\">1\"))/(COUNTIF('2011 Survey responses'!BY30,\">1\")+COUNTIF('2011 Survey responses'!CI30,\">1\")))","v":""},{"$f":"IF('2011 Survey responses'!CQ30<0.5,\"\",'2011 Survey responses'!CQ30)","v":2},{"$f":"IF('2011 Survey responses'!CR30<0.5,\"\",'2011 Survey responses'!CR30)","v":4},{"$f":"IF('2011 Survey responses'!CS30<0.5,\"\",'2011 Survey responses'!CS30)","v":4},{"$f":"IF('2011 Survey responses'!CT30<0.5,\"\",'2011 Survey responses'!CT30)","v":2},{"$f":"IF('2011 Survey responses'!CU30<0.5,\"\",'2011 Survey responses'!CU30)","v":2},{"$f":"IF('2011 Survey responses'!CV30<0.5,\"\",'2011 Survey responses'!CV30)","v":2},{"$f":"IF(SUM('2011 Survey responses'!CW30:DL30)<1,\"\",(AVERAGE('2011 Survey responses'!CW30:DL30)))","v":1.25},{"$f":"IF(SUM('2011 Survey responses'!CW30:CZ30)<1,\"\",(AVERAGE('2011 Survey responses'!CW30:CZ30)))","v":1},{"$f":"IF(SUM('2011 Survey responses'!DA30:DD30)<1,\"\",(AVERAGE('2011 Survey responses'!DA30:DD30)))","v":1},{"$f":"IF(SUM('2011 Survey responses'!DE30:DH30)<1,\"\",(AVERAGE('2011 Survey responses'!DE30:DH30)))","v":1},{"$f":"IF(SUM('2011 Survey responses'!DI30:DL30)<1,\"\",(AVERAGE('2011 Survey responses'!DI30:DL30)))","v":2},{"$f":"IF(('2011 Survey responses'!CW30+'2011 Survey responses'!DA30+'2011 Survey responses'!DE30+'2011 Survey responses'!DI30)<1,\"\",AVERAGE('2011 Survey responses'!CW30,'2011 Survey responses'!DA30,'2011 Survey responses'!DE30,'2011 Survey responses'!DI30))","v":1.25},{"$f":"IF(('2011 Survey responses'!CX30+'2011 Survey responses'!DB30+'2011 Survey responses'!DF30+'2011 Survey responses'!DJ30)<1,\"\",AVERAGE('2011 Survey responses'!CX30,'2011 Survey responses'!DB30,'2011 Survey responses'!DF30,'2011 Survey responses'!DJ30))","v":1.25},{"$f":"IF(('2011 Survey responses'!CY30+'2011 Survey responses'!DC30+'2011 Survey responses'!DG30+'2011 Survey responses'!DK30)<1,\"\",AVERAGE('2011 Survey responses'!CY30,'2011 Survey responses'!DC30,'2011 Survey responses'!DG30,'2011 Survey responses'!DK30))","v":1.25},{"$f":"IF(('2011 Survey responses'!CZ30+'2011 Survey responses'!DD30+'2011 Survey responses'!DH30+'2011 Survey responses'!DL30)<1,\"\",AVERAGE('2011 Survey responses'!CZ30,'2011 Survey responses'!DD30,'2011 Survey responses'!DH30,'2011 Survey responses'!DL30))","v":1.25},{"$f":"IF('2011 Survey responses'!CW30<0.5,\"\",'2011 Survey responses'!CW30)","v":1},{"$f":"IF('2011 Survey responses'!CX30<0.5,\"\",'2011 Survey responses'!CX30)","v":1},{"$f":"IF('2011 Survey responses'!CY30<0.5,\"\",'2011 Survey responses'!CY30)","v":1},{"$f":"IF('2011 Survey responses'!CZ30<0.5,\"\",'2011 Survey responses'!CZ30)","v":1},{"$f":"IF('2011 Survey responses'!DA30<0.5,\"\",'2011 Survey responses'!DA30)","v":1},{"$f":"IF('2011 Survey responses'!DB30<0.5,\"\",'2011 Survey responses'!DB30)","v":1},{"$f":"IF('2011 Survey responses'!DC30<0.5,\"\",'2011 Survey responses'!DC30)","v":1},{"$f":"IF('2011 Survey responses'!DD30<0.5,\"\",'2011 Survey responses'!DD30)","v":1},{"$f":"IF('2011 Survey responses'!DE30<0.5,\"\",'2011 Survey responses'!DE30)","v":1},{"$f":"IF('2011 Survey responses'!DF30<0.5,\"\",'2011 Survey responses'!DF30)","v":1},{"$f":"IF('2011 Survey responses'!DG30<0.5,\"\",'2011 Survey responses'!DG30)","v":1},{"$f":"IF('2011 Survey responses'!DH30<0.5,\"\",'2011 Survey responses'!DH30)","v":1},{"$f":"IF('2011 Survey responses'!DI30<0.5,\"\",'2011 Survey responses'!DI30)","v":2},{"$f":"IF('2011 Survey responses'!DJ30<0.5,\"\",'2011 Survey responses'!DJ30)","v":2},{"$f":"IF('2011 Survey responses'!DK30<0.5,\"\",'2011 Survey responses'!DK30)","v":2},{"$f":"IF('2011 Survey responses'!DL30<0.5,\"\",'2011 Survey responses'!DL30)","v":2},{"$f":"IF('2011 Survey responses'!DU30=4,4,IF('2011 Survey responses'!DU30=5,4,\"\"))","v":4},{"$f":"IF('2011 Survey responses'!DV30=4,3,IF('2011 Survey responses'!DV30=5,3,\"\"))","v":3},2,{"$f":"IF(CQ30=2,CQ30,IF(CO30=4,CO30,IF(CP30=3,CP30,IF('2011 Survey responses'!GT30=1,1,\"\"))))","v":2},{"$f":"IF('2011 Survey responses'!DO30<0.5,\"\",'2011 Survey responses'!DO30)","v":4},{"$f":"IF('2011 Survey responses'!DP30<0.5,\"\",'2011 Survey responses'!DP30)","v":5},{"$f":"IF('2011 Survey responses'!DQ30<0.5,\"\",'2011 Survey responses'!DQ30)","v":3},{"$f":"IF('2011 Survey responses'!DR30<0.5,\"\",'2011 Survey responses'!DR30)","v":4},{"$f":"IF('2011 Survey responses'!DS30<0.5,\"\",'2011 Survey responses'!DS30)","v":4},{"$f":"IF('2011 Survey responses'!DT30<0.5,\"\",'2011 Survey responses'!DT30)","v":4},{"$f":"IF('2011 Survey responses'!DU30<0.5,\"\",'2011 Survey responses'!DU30)","v":4},{"$f":"IF('2011 Survey responses'!DV30<0.5,\"\",'2011 Survey responses'!DV30)","v":5},{"$f":"IF('2011 Survey responses'!DW30<0.5,\"\",'2011 Survey responses'!DW30)","v":2},{"$f":"IF('2011 Survey responses'!DX30<0.5,\"\",'2011 Survey responses'!DX30)","v":2},{"$f":"IF('2011 Survey responses'!DY30<0.5,\"\",'2011 Survey responses'!DY30)","v":3},{"$f":"IF('2011 Survey responses'!DZ30<0.5,\"\",'2011 Survey responses'!DZ30)","v":3},{"$f":"IF('2011 Survey responses'!EA30<0.5,\"\",'2011 Survey responses'!EA30)","v":3},{"$f":"IF('2011 Survey responses'!EB30<0.5,\"\",'2011 Survey responses'!EB30)","v":2},{"$f":"IF('2011 Survey responses'!EC30<0.5,\"\",'2011 Survey responses'!EC30)","v":3},{"$f":"IF('2011 Survey responses'!ED30<0.5,\"\",'2011 Survey responses'!ED30)","v":2},{"$f":"IF('2011 Survey responses'!EE30<0.5,\"\",'2011 Survey responses'!EE30)","v":3},{"$f":"IF('2011 Survey responses'!EF30<0.5,\"\",'2011 Survey responses'!EF30)","v":4},{"$f":"IF('2011 Survey responses'!EG30<0.5,\"\",'2011 Survey responses'!EG30)","v":3},{"$f":"IF('2011 Survey responses'!EH30<0.5,\"\",'2011 Survey responses'!EH30)","v":4},{"$f":"IF('2011 Survey responses'!EI30<0.5,\"\",'2011 Survey responses'!EI30)","v":4},{"$f":"IF('2011 Survey responses'!EJ30<0.5,\"\",'2011 Survey responses'!EJ30)","v":4},{"$f":"IF('2011 Survey responses'!EK30<0.5,\"\",'2011 Survey responses'!EK30)","v":5},{"$f":"IF('2011 Survey responses'!EL30<0.5,\"\",'2011 Survey responses'!EL30)","v":4},{"$f":"IF('2011 Survey responses'!EM30<0.5,\"\",'2011 Survey responses'!EM30)","v":4},{"$f":"IF('2011 Survey responses'!EN30<0.5,\"\",'2011 Survey responses'!EN30)","v":4},{"$f":"IF('2011 Survey responses'!EO30<0.5,\"\",'2011 Survey responses'!EO30)","v":4},{"$f":"IF('2011 Survey responses'!EP30<0.5,\"\",'2011 Survey responses'!EP30)","v":3},{"$f":"IF(('2011 Survey responses'!EW30+'2011 Survey responses'!EX30)>=2,AVERAGE('2011 Survey responses'!EW30,'2011 Survey responses'!EY30),\"\")","v":4.5},{"$f":"IF('2011 Survey responses'!EX30<0.5,\"\",'2011 Survey responses'!EX30)","v":5},{"$f":"IF('2011 Survey responses'!EZ30<0.5,\"\",'2011 Survey responses'!EZ30)","v":5},{"$f":"IF('2011 Survey responses'!FB30<0.5,\"\",'2011 Survey responses'!FB30)","v":4},{"$f":"IF('2011 Survey responses'!FD30<0.5,\"\",'2011 Survey responses'!FD30)","v":4},{"$f":"IF('2011 Survey responses'!FC30<0.5,\"\",'2011 Survey responses'!FC30)","v":5},{"$f":"IF(('2011 Survey responses'!EM30+'2011 Survey responses'!EN30)>=2,AVERAGE('2011 Survey responses'!EM30,'2011 Survey responses'!EN30),\"\")","v":4},{"$f":"IF('2011 Survey responses'!ES30<0.5,\"\",'2011 Survey responses'!ES30)","v":4},{"$f":"IF(('2011 Survey responses'!ET30+'2011 Survey responses'!EU30)>=2,AVERAGE('2011 Survey responses'!ET30,'2011 Survey responses'!EU30),\"\")","v":4},{"$f":"IF('2011 Survey responses'!EV30<0.5,\"\",'2011 Survey responses'!EV30)","v":5},{"$f":"IF('2011 Survey responses'!FA30<0.5,\"\",'2011 Survey responses'!FA30)","v":4},{"$f":"IF('2011 Survey responses'!ER30<0.5,\"\",'2011 Survey responses'!ER30)","v":4},{"$f":"IF(('2011 Survey responses'!EO30+'2011 Survey responses'!EP30)>=2,AVERAGE('2011 Survey responses'!EO30,'2011 Survey responses'!EP30),\"\")","v":3.5},{"$f":"IF('2011 Survey responses'!EQ30<0.5,\"\",'2011 Survey responses'!EQ30)","v":2},{"$f":"IF('2011 Survey responses'!ET30<0.5,\"\",'2011 Survey responses'!ET30)","v":4},{"$f":"IF('2011 Survey responses'!EU30<0.5,\"\",'2011 Survey responses'!EU30)","v":4},{"$f":"IF('2011 Survey responses'!EW30<0.5,\"\",'2011 Survey responses'!EW30)","v":4},{"$f":"IF('2011 Survey responses'!EY30<0.5,\"\",'2011 Survey responses'!EY30)","v":5},{"$f":"IF('2011 Survey responses'!FU30<0.5,\"\",'2011 Survey responses'!FU30)","v":3},{"$f":"IF(('2011 Survey responses'!FL30+'2011 Survey responses'!FM30)>=2,AVERAGE('2011 Survey responses'!FL30,'2011 Survey responses'!FM30),\"\")","v":2.5},{"$f":"IF(('2011 Survey responses'!FO30+'2011 Survey responses'!FQ30)>=2,AVERAGE('2011 Survey responses'!FO30,'2011 Survey responses'!FQ30),\"\")","v":2.5},{"$f":"IF('2011 Survey responses'!FJ30<0.5,\"\",'2011 Survey responses'!FJ30)","v":2},{"$f":"IF('2011 Survey responses'!FT30<0.5,\"\",'2011 Survey responses'!FT30)","v":2},{"$f":"IF('2011 Survey responses'!FR30<0.5,\"\",'2011 Survey responses'!FR30)","v":2},{"$f":"IF('2011 Survey responses'!FK30<0.5,\"\",'2011 Survey responses'!FK30)","v":2},{"$f":"IF('2011 Survey responses'!FP30<0.5,\"\",'2011 Survey responses'!FP30)","v":3},{"$f":"IF('2011 Survey responses'!FN30<0.5,\"\",'2011 Survey responses'!FN30)","v":2},{"$f":"IF(('2011 Survey responses'!FE30+'2011 Survey responses'!FF30)>=2,AVERAGE('2011 Survey responses'!FE30,'2011 Survey responses'!FF30),\"\")","v":2.5},{"$f":"IF('2011 Survey responses'!FS30<0.5,\"\",'2011 Survey responses'!FS30)","v":2},{"$f":"IF('2011 Survey responses'!FV30<0.5,\"\",'2011 Survey responses'!FV30)","v":3},{"$f":"IF(('2011 Survey responses'!FG30+'2011 Survey responses'!FH30)>=2,AVERAGE('2011 Survey responses'!FG30,'2011 Survey responses'!FH30),\"\")","v":2.5},{"$f":"IF('2011 Survey responses'!FI30<0.5,\"\",'2011 Survey responses'!FI30)","v":3},{"$f":"IF('2011 Survey responses'!FE30<0.5,\"\",'2011 Survey responses'!FE30)","v":2},{"$f":"IF('2011 Survey responses'!FF30<0.5,\"\",'2011 Survey responses'!FF30)","v":3},{"$f":"IF('2011 Survey responses'!FG30<0.5,\"\",'2011 Survey responses'!FG30)","v":2},{"$f":"IF('2011 Survey responses'!FH30<0.5,\"\",'2011 Survey responses'!FH30)","v":3},{"$f":"IF('2011 Survey responses'!FL30<0.5,\"\",'2011 Survey responses'!FL30)","v":2},{"$f":"IF('2011 Survey responses'!FM30<0.5,\"\",'2011 Survey responses'!FM30)","v":3},{"$f":"IF('2011 Survey responses'!FO30<0.5,\"\",'2011 Survey responses'!FO30)","v":3},{"$f":"IF('2011 Survey responses'!FQ30<0.5,\"\",'2011 Survey responses'!FQ30)","v":2}]
["Cambodia",{"$f":"IF(SUM(F31)<1,\"\",AVERAGEIF('2011 Survey responses'!B31:CP31,\">1\"))","v":4.4285714285714288},{"$f":"IF(SUM(F31)<1,\"\",AVERAGEIF('2011 Survey responses'!B31:AO31,\">1\"))","v":4.6500000000000004},{"$f":"IF(SUM(F31)<1,\"\",AVERAGEIF('2011 Survey responses'!B31:BV31,\">1\"))","v":4.493150684931507},{"$f":"IF(SUM(F31)<1,\"\",AVERAGEIF('2011 Survey responses'!V31:BV31,\">1\"))","v":4.4905660377358494},{"$f":"IF(SUM('2011 Survey responses'!B31:U31)<1,\"\",(AVERAGEIFS('2011 Survey responses'!B31:U31,'2011 Survey responses'!B31:U31,\">1\")))","v":4.5},{"$f":"IF(SUM('2011 Survey responses'!B31:H31)<1,\"\",(AVERAGEIFS('2011 Survey responses'!B31:H31,'2011 Survey responses'!B31:H31,\">1\")))","v":5},{"$f":"IF(SUM('2011 Survey responses'!I31:S31)<1,\"\",(AVERAGEIFS('2011 Survey responses'!I31:S31,'2011 Survey responses'!I31:S31,\">1\")))","v":4.0909090909090908},{"$f":"IF(SUM('2011 Survey responses'!T31:U31)<2.1,\"\",(AVERAGEIFS('2011 Survey responses'!T31:U31,'2011 Survey responses'!T31:U31,\">1\")))","v":5},{"$f":"IF(SUM('2011 Survey responses'!B31:C31)<2.1,\"\",((SUMIF('2011 Survey responses'!B31:C31,\">1\")+SUMIF('2011 Survey responses'!F31,\">1\"))/(COUNTIF('2011 Survey responses'!B31:C31,\">1\")+COUNTIF('2011 Survey responses'!F31,\">1\"))))","v":4.666666666666667},{"$f":"IF(SUM('2011 Survey responses'!D31:E31)<2.1,\"\",(AVERAGEIFS('2011 Survey responses'!D31:E31,'2011 Survey responses'!D31:E31,\">1\")))","v":5.5},{"$f":"IF(('2011 Survey responses'!B31+'2011 Survey responses'!D31)<2.1,\"\",((SUMIF('2011 Survey responses'!B31,\">1\")+SUMIF('2011 Survey responses'!D31,\">1\")+SUMIF('2011 Survey responses'!F31,\">1\")+SUMIF('2011 Survey responses'!K31,\">1\"))/(COUNTIF('2011 Survey responses'!B31,\">1\")+COUNTIF('2011 Survey responses'!D31,\">1\")+COUNTIF('2011 Survey responses'!F31,\">1\")+COUNTIF('2011 Survey responses'!K31,\">1\"))))","v":5.25},{"$f":"IF(SUM('2011 Survey responses'!G31:H31)<2.1,\"\",(AVERAGEIFS('2011 Survey responses'!G31:H31,'2011 Survey responses'!G31:H31,\">1\")))","v":5},{"$f":"IF(SUM('2011 Survey responses'!F31:G31)<1.5,\"\",MAX('2011 Survey responses'!F31,'2011 Survey responses'!G31))","v":5},{"$f":"IF(SUM('2011 Survey responses'!G31:H31)<1,\"\",MAX('2011 Survey responses'!G31,'2011 Survey responses'!H31))","v":5},{"$f":"IF(SUM('2011 Survey responses'!I31:L31)<4.1,\"\",(AVERAGEIFS('2011 Survey responses'!I31:L31,'2011 Survey responses'!I31:L31,\">1\")))","v":4.5},{"$f":"IF(SUM('2011 Survey responses'!M31:S31)<4.1,\"\",(AVERAGEIFS('2011 Survey responses'!M31:S31,'2011 Survey responses'!M31:S31,\">1\")))","v":3.8571428571428572},{"$f":"IF(SUM('2011 Survey responses'!T31:U31)<2.1,\"\",(AVERAGEIFS('2011 Survey responses'!T31:U31,'2011 Survey responses'!T31:U31,\">1\")))","v":5},{"$f":"IF(SUM('2011 Survey responses'!V31:AO31)<1,\"\",(AVERAGEIFS('2011 Survey responses'!V31:AO31,'2011 Survey responses'!V31:AO31,\">1\")))","v":4.8},{"$f":"IF(SUM('2011 Survey responses'!V31:AA31)<1,\"\",(AVERAGEIFS('2011 Survey responses'!V31:AA31,'2011 Survey responses'!V31:AA31,\">1\")))","v":4.666666666666667},{"$f":"IF(SUM('2011 Survey responses'!AB31:AH31)<1,\"\",(AVERAGEIFS('2011 Survey responses'!AB31:AH31,'2011 Survey responses'!AB31:AH31,\">1\")))","v":4.7142857142857144},{"$f":"IF(SUM('2011 Survey responses'!AI31:AO31)<1,\"\",(AVERAGEIFS('2011 Survey responses'!AI31:AO31,'2011 Survey responses'!AI31:AO31,\">1\")))","v":5},{"$f":"IF(('2011 Survey responses'!Y31+'2011 Survey responses'!AI31+'2011 Survey responses'!AK31)<3.1,\"\",((SUMIF('2011 Survey responses'!Y31,\">1\")+SUMIF('2011 Survey responses'!AI31,\">1\")+SUMIF('2011 Survey responses'!AK31,\">1\")+SUMIF('2011 Survey responses'!AM31,\">1\"))/(COUNTIF('2011 Survey responses'!Y31,\">1\")+COUNTIF('2011 Survey responses'!AI31,\">1\")+COUNTIF('2011 Survey responses'!AK31,\">1\")+COUNTIF('2011 Survey responses'!AM31,\">1\"))))","v":5},{"$f":"IF(('2011 Survey responses'!W31)<1.1,\"\",('2011 Survey responses'!W31))","v":4},{"$f":"IF(('2011 Survey responses'!Y31)<1.1,\"\",('2011 Survey responses'!Y31))","v":5},{"$f":"IF(('2011 Survey responses'!Z31)<1.1,\"\",('2011 Survey responses'!Z31))","v":5},{"$f":"IF(('2011 Survey responses'!V31+'2011 Survey responses'!X31+'2011 Survey responses'!AA31)<3.1,\"\",((SUMIF('2011 Survey responses'!V31,\">1\")+SUMIF('2011 Survey responses'!X31,\">1\")+SUMIF('2011 Survey responses'!AA31,\">1\"))/(COUNTIF('2011 Survey responses'!V31,\">1\")+COUNTIF('2011 Survey responses'!X31,\">1\")+COUNTIF('2011 Survey responses'!AA31,\">1\"))))","v":4.666666666666667},{"$f":"IF(('2011 Survey responses'!V31+'2011 Survey responses'!Y31+'2011 Survey responses'!AA31)<3.1,\"\",((SUMIF('2011 Survey responses'!V31,\">1\")+SUMIF('2011 Survey responses'!Y31,\">1\")+SUMIF('2011 Survey responses'!AA31,\">1\"))/(COUNTIF('2011 Survey responses'!V31,\">1\")+COUNTIF('2011 Survey responses'!Y31,\">1\")+COUNTIF('2011 Survey responses'!AA31,\">1\"))))","v":5},{"$f":"IF(SUM('2011 Survey responses'!AB31:AH31)<1,\"\",(AVERAGEIFS('2011 Survey responses'!AB31:AH31,'2011 Survey responses'!AB31:AH31,\">1\")))","v":4.7142857142857144},{"$f":"IF(SUM('2011 Survey responses'!AI31:AO31)<7.1,\"\",(AVERAGEIFS('2011 Survey responses'!AI31:AO31,'2011 Survey responses'!AI31:AO31,\">1\")))","v":5},{"$f":"IF(('2011 Survey responses'!AH31)<1.1,\"\",('2011 Survey responses'!AH31))","v":5},{"$f":"IF(SUM('2011 Survey responses'!AP31:BV31)<1,\"\",(AVERAGEIFS('2011 Survey responses'!AP31:BV31,'2011 Survey responses'!AP31:BV31,\">1\")))","v":4.3030303030303028},{"$f":"IF(SUM('2011 Survey responses'!AP31:AS31)<4.1,\"\",(AVERAGEIFS('2011 Survey responses'!AP31:AS31,'2011 Survey responses'!AP31:AS31,\">1\")))","v":3.75},{"$f":"IF(SUM('2011 Survey responses'!AT31:BF31)<1,\"\",(AVERAGEIFS('2011 Survey responses'!AT31:BF31,'2011 Survey responses'!AT31:BF31,\">1\")))","v":4.3076923076923075},{"$f":"IF(SUM('2011 Survey responses'!BG31:BO31)<1,\"\",(AVERAGEIFS('2011 Survey responses'!BG31:BO31,'2011 Survey responses'!BG31:BO31,\">1\")))","v":4.666666666666667},{"$f":"IF(SUM('2011 Survey responses'!BP31:BS31)<1,\"\",(AVERAGEIFS('2011 Survey responses'!BP31:BS31,'2011 Survey responses'!BP31:BS31,\">1\")))","v":4.75},{"$f":"IF(SUM('2011 Survey responses'!BT31:BV31)<3.1,\"\",(AVERAGEIFS('2011 Survey responses'!BT31:BV31,'2011 Survey responses'!BT31:BV31,\">1\")))","v":3.3333333333333335},{"$f":"IF(('2011 Survey responses'!AQ31+'2011 Survey responses'!AR31+'2011 Survey responses'!BG31)<3.1,\"\",((SUMIF('2011 Survey responses'!AQ31,\">1\")+SUMIF('2011 Survey responses'!AR31,\">1\")+SUMIF('2011 Survey responses'!BG31,\">1\"))/(COUNTIF('2011 Survey responses'!AQ31,\">1\")+COUNTIF('2011 Survey responses'!AR31,\">1\")+COUNTIF('2011 Survey responses'!BG31,\">1\"))))","v":4.666666666666667},{"$f":"IF(SUM('2011 Survey responses'!AP31:AS31)<4.1,\"\",(AVERAGEIFS('2011 Survey responses'!AP31:AS31,'2011 Survey responses'!AP31:AS31,\">1\")))","v":3.75},{"$f":"IF(('2011 Survey responses'!AU31+'2011 Survey responses'!AX31+'2011 Survey responses'!BA31+'2011 Survey responses'!BC31+'2011 Survey responses'!BD31)<5.1,\"\",(SUMIF('2011 Survey responses'!AU31,\">1\")+SUMIF('2011 Survey responses'!AX31,\">1\")+SUMIF('2011 Survey responses'!BA31,\">1\")+SUMIF('2011 Survey responses'!BC31,\">1\")+SUMIF('2011 Survey responses'!BD31,\">1\"))/(COUNTIF('2011 Survey responses'!AU31,\">1\")+COUNTIF('2011 Survey responses'!AX31,\">1\")+COUNTIF('2011 Survey responses'!BA31,\">1\")+COUNTIF('2011 Survey responses'!BC31,\">1\")+COUNTIF('2011 Survey responses'!BD31,\">1\")))","v":4.2},{"$f":"IF(('2011 Survey responses'!AT31)<1.1,\"\",('2011 Survey responses'!AT31))","v":3},{"$f":"IF(SUM('2011 Survey responses'!AV31:AW31)<2.1,\"\",(AVERAGEIFS('2011 Survey responses'!AV31:AW31,'2011 Survey responses'!AV31:AW31,\">1\")))","v":4},{"$f":"IF(('2011 Survey responses'!AW31+'2011 Survey responses'!AY31)<2.1,\"\",(SUMIF('2011 Survey responses'!AW31,\">1\")+SUMIF('2011 Survey responses'!AY31,\">1\"))/(COUNTIF('2011 Survey responses'!AW31,\">1\")+COUNTIF('2011 Survey responses'!AY31,\">1\")))","v":5},{"$f":"IF(('2011 Survey responses'!AZ31)<1.1,\"\",('2011 Survey responses'!AZ31))","v":4},4,2,4,2,{"$f":"IF(('2011 Survey responses'!BE31)<1.1,\"\",('2011 Survey responses'!BE31))","v":5},{"$f":"IF(('2011 Survey responses'!AY31+'2011 Survey responses'!BB31+'2011 Survey responses'!BF31)<3.1,\"\",(SUMIF('2011 Survey responses'!AY31,\">1\")+SUMIF('2011 Survey responses'!BB31,\">1\")+SUMIF('2011 Survey responses'!BF31,\">1\"))/(COUNTIF('2011 Survey responses'!AY31,\">1\")+COUNTIF('2011 Survey responses'!BB31,\">1\")+COUNTIF('2011 Survey responses'!BF31,\">1\")))","v":5},4.7083333333333339,{"$f":"IF(SUM('2011 Survey responses'!BT31:BV31)<3.1,\"\",(AVERAGEIFS('2011 Survey responses'!BT31:BV31,'2011 Survey responses'!BT31:BV31,\">1\")))","v":3.3333333333333335},{"$f":"IF(SUM('2011 Survey responses'!BW31:CP31)<1,\"\",(AVERAGEIFS('2011 Survey responses'!BW31:CP31,'2011 Survey responses'!BW31:CP31,\">1\")))","v":4.166666666666667},{"$f":"IF(SUM('2011 Survey responses'!BW31:CF31)<1,\"\",(AVERAGEIFS('2011 Survey responses'!BW31:CF31,'2011 Survey responses'!BW31:CF31,\">1\")))","v":4.5555555555555554},{"$f":"IF(SUM('2011 Survey responses'!CG31:CP31)<1,\"\",(AVERAGEIFS('2011 Survey responses'!CG31:CP31,'2011 Survey responses'!CG31:CP31,\">1\")))","v":3.7777777777777777},{"$f":"IF(SUM('2011 Survey responses'!BX31:CF31)<1,\"\",(AVERAGEIFS('2011 Survey responses'!BX31:CF31,'2011 Survey responses'!BX31:CF31,\">1\")))","v":4.5},{"$f":"IF(SUM('2011 Survey responses'!CH31:CP31)<1,\"\",(AVERAGEIFS('2011 Survey responses'!CH31:CP31,'2011 Survey responses'!CH31:CP31,\">1\")))","v":3.75},{"$f":"IF(SUM('2011 Survey responses'!BW31:CP31)<1,\"\",(AVERAGEIFS('2011 Survey responses'!BW31:CP31,'2011 Survey responses'!BW31:CP31,\">1\")))","v":4.166666666666667},{"$f":"IF(('2011 Survey responses'!BW31+'2011 Survey responses'!CG31)<2.1,\"\",(SUMIF('2011 Survey responses'!BW31,\">1\")+SUMIF('2011 Survey responses'!CG31,\">1\"))/(COUNTIF('2011 Survey responses'!BW31,\">1\")+COUNTIF('2011 Survey responses'!CG31,\">1\")))","v":4.5},{"$f":"IF(('2011 Survey responses'!BX31+'2011 Survey responses'!CH31)<2.1,\"\",(SUMIF('2011 Survey responses'!BX31,\">1\")+SUMIF('2011 Survey responses'!CH31,\">1\"))/(COUNTIF('2011 Survey responses'!BX31,\">1\")+COUNTIF('2011 Survey responses'!CH31,\">1\")))","v":4.5},{"$f":"IF(('2011 Survey responses'!BY31+'2011 Survey responses'!CI31)<2.1,\"\",(SUMIF('2011 Survey responses'!BY31,\">1\")+SUMIF('2011 Survey responses'!CI31,\">1\"))/(COUNTIF('2011 Survey responses'!BY31,\">1\")+COUNTIF('2011 Survey responses'!CI31,\">1\")))","v":3.5},{"$f":"IF('2011 Survey responses'!CQ31<0.5,\"\",'2011 Survey responses'!CQ31)","v":4},{"$f":"IF('2011 Survey responses'!CR31<0.5,\"\",'2011 Survey responses'!CR31)","v":4},{"$f":"IF('2011 Survey responses'!CS31<0.5,\"\",'2011 Survey responses'!CS31)","v":4},{"$f":"IF('2011 Survey responses'!CT31<0.5,\"\",'2011 Survey responses'!CT31)","v":4},{"$f":"IF('2011 Survey responses'!CU31<0.5,\"\",'2011 Survey responses'!CU31)","v":4},{"$f":"IF('2011 Survey responses'!CV31<0.5,\"\",'2011 Survey responses'!CV31)","v":4},{"$f":"IF(SUM('2011 Survey responses'!CW31:DL31)<1,\"\",(AVERAGE('2011 Survey responses'!CW31:DL31)))","v":4},{"$f":"IF(SUM('2011 Survey responses'!CW31:CZ31)<1,\"\",(AVERAGE('2011 Survey responses'!CW31:CZ31)))","v":4},{"$f":"IF(SUM('2011 Survey responses'!DA31:DD31)<1,\"\",(AVERAGE('2011 Survey responses'!DA31:DD31)))","v":4},{"$f":"IF(SUM('2011 Survey responses'!DE31:DH31)<1,\"\",(AVERAGE('2011 Survey responses'!DE31:DH31)))","v":4},{"$f":"IF(SUM('2011 Survey responses'!DI31:DL31)<1,\"\",(AVERAGE('2011 Survey responses'!DI31:DL31)))","v":4},{"$f":"IF(('2011 Survey responses'!CW31+'2011 Survey responses'!DA31+'2011 Survey responses'!DE31+'2011 Survey responses'!DI31)<1,\"\",AVERAGE('2011 Survey responses'!CW31,'2011 Survey responses'!DA31,'2011 Survey responses'!DE31,'2011 Survey responses'!DI31))","v":4.25},{"$f":"IF(('2011 Survey responses'!CX31+'2011 Survey responses'!DB31+'2011 Survey responses'!DF31+'2011 Survey responses'!DJ31)<1,\"\",AVERAGE('2011 Survey responses'!CX31,'2011 Survey responses'!DB31,'2011 Survey responses'!DF31,'2011 Survey responses'!DJ31))","v":4},{"$f":"IF(('2011 Survey responses'!CY31+'2011 Survey responses'!DC31+'2011 Survey responses'!DG31+'2011 Survey responses'!DK31)<1,\"\",AVERAGE('2011 Survey responses'!CY31,'2011 Survey responses'!DC31,'2011 Survey responses'!DG31,'2011 Survey responses'!DK31))","v":3.75},{"$f":"IF(('2011 Survey responses'!CZ31+'2011 Survey responses'!DD31+'2011 Survey responses'!DH31+'2011 Survey responses'!DL31)<1,\"\",AVERAGE('2011 Survey responses'!CZ31,'2011 Survey responses'!DD31,'2011 Survey responses'!DH31,'2011 Survey responses'!DL31))","v":4},{"$f":"IF('2011 Survey responses'!CW31<0.5,\"\",'2011 Survey responses'!CW31)","v":4},{"$f":"IF('2011 Survey responses'!CX31<0.5,\"\",'2011 Survey responses'!CX31)","v":4},{"$f":"IF('2011 Survey responses'!CY31<0.5,\"\",'2011 Survey responses'!CY31)","v":4},{"$f":"IF('2011 Survey responses'!CZ31<0.5,\"\",'2011 Survey responses'!CZ31)","v":4},{"$f":"IF('2011 Survey responses'!DA31<0.5,\"\",'2011 Survey responses'!DA31)","v":4},{"$f":"IF('2011 Survey responses'!DB31<0.5,\"\",'2011 Survey responses'!DB31)","v":4},{"$f":"IF('2011 Survey responses'!DC31<0.5,\"\",'2011 Survey responses'!DC31)","v":4},{"$f":"IF('2011 Survey responses'!DD31<0.5,\"\",'2011 Survey responses'!DD31)","v":4},{"$f":"IF('2011 Survey responses'!DE31<0.5,\"\",'2011 Survey responses'!DE31)","v":4},{"$f":"IF('2011 Survey responses'!DF31<0.5,\"\",'2011 Survey responses'!DF31)","v":4},{"$f":"IF('2011 Survey responses'!DG31<0.5,\"\",'2011 Survey responses'!DG31)","v":4},{"$f":"IF('2011 Survey responses'!DH31<0.5,\"\",'2011 Survey responses'!DH31)","v":4},{"$f":"IF('2011 Survey responses'!DI31<0.5,\"\",'2011 Survey responses'!DI31)","v":5},{"$f":"IF('2011 Survey responses'!DJ31<0.5,\"\",'2011 Survey responses'!DJ31)","v":4},{"$f":"IF('2011 Survey responses'!DK31<0.5,\"\",'2011 Survey responses'!DK31)","v":3},{"$f":"IF('2011 Survey responses'!DL31<0.5,\"\",'2011 Survey responses'!DL31)","v":4},{"$f":"IF('2011 Survey responses'!DU31=4,4,IF('2011 Survey responses'!DU31=5,4,\"\"))","v":4},{"$f":"IF('2011 Survey responses'!DV31=4,3,IF('2011 Survey responses'!DV31=5,3,\"\"))","v":3},2,{"$f":"IF(CQ31=2,CQ31,IF(CO31=4,CO31,IF(CP31=3,CP31,IF('2011 Survey responses'!GT31=1,1,\"\"))))","v":2},{"$f":"IF('2011 Survey responses'!DO31<0.5,\"\",'2011 Survey responses'!DO31)","v":5},{"$f":"IF('2011 Survey responses'!DP31<0.5,\"\",'2011 Survey responses'!DP31)","v":5},{"$f":"IF('2011 Survey responses'!DQ31<0.5,\"\",'2011 Survey responses'!DQ31)","v":4},{"$f":"IF('2011 Survey responses'!DR31<0.5,\"\",'2011 Survey responses'!DR31)","v":4},{"$f":"IF('2011 Survey responses'!DS31<0.5,\"\",'2011 Survey responses'!DS31)","v":4},{"$f":"IF('2011 Survey responses'!DT31<0.5,\"\",'2011 Survey responses'!DT31)","v":4},{"$f":"IF('2011 Survey responses'!DU31<0.5,\"\",'2011 Survey responses'!DU31)","v":4},{"$f":"IF('2011 Survey responses'!DV31<0.5,\"\",'2011 Survey responses'!DV31)","v":4},{"$f":"IF('2011 Survey responses'!DW31<0.5,\"\",'2011 Survey responses'!DW31)","v":3},{"$f":"IF('2011 Survey responses'!DX31<0.5,\"\",'2011 Survey responses'!DX31)","v":3},{"$f":"IF('2011 Survey responses'!DY31<0.5,\"\",'2011 Survey responses'!DY31)","v":3},{"$f":"IF('2011 Survey responses'!DZ31<0.5,\"\",'2011 Survey responses'!DZ31)","v":4},{"$f":"IF('2011 Survey responses'!EA31<0.5,\"\",'2011 Survey responses'!EA31)","v":5},{"$f":"IF('2011 Survey responses'!EB31<0.5,\"\",'2011 Survey responses'!EB31)","v":4},{"$f":"IF('2011 Survey responses'!EC31<0.5,\"\",'2011 Survey responses'!EC31)","v":4},{"$f":"IF('2011 Survey responses'!ED31<0.5,\"\",'2011 Survey responses'!ED31)","v":4},{"$f":"IF('2011 Survey responses'!EE31<0.5,\"\",'2011 Survey responses'!EE31)","v":4},{"$f":"IF('2011 Survey responses'!EF31<0.5,\"\",'2011 Survey responses'!EF31)","v":4},{"$f":"IF('2011 Survey responses'!EG31<0.5,\"\",'2011 Survey responses'!EG31)","v":4},{"$f":"IF('2011 Survey responses'!EH31<0.5,\"\",'2011 Survey responses'!EH31)","v":4},{"$f":"IF('2011 Survey responses'!EI31<0.5,\"\",'2011 Survey responses'!EI31)","v":3},{"$f":"IF('2011 Survey responses'!EJ31<0.5,\"\",'2011 Survey responses'!EJ31)","v":3},{"$f":"IF('2011 Survey responses'!EK31<0.5,\"\",'2011 Survey responses'!EK31)","v":4},{"$f":"IF('2011 Survey responses'!EL31<0.5,\"\",'2011 Survey responses'!EL31)","v":3},{"$f":"IF('2011 Survey responses'!EM31<0.5,\"\",'2011 Survey responses'!EM31)","v":4},{"$f":"IF('2011 Survey responses'!EN31<0.5,\"\",'2011 Survey responses'!EN31)","v":5},{"$f":"IF('2011 Survey responses'!EO31<0.5,\"\",'2011 Survey responses'!EO31)","v":4},{"$f":"IF('2011 Survey responses'!EP31<0.5,\"\",'2011 Survey responses'!EP31)","v":5},{"$f":"IF(('2011 Survey responses'!EW31+'2011 Survey responses'!EX31)>=2,AVERAGE('2011 Survey responses'!EW31,'2011 Survey responses'!EY31),\"\")","v":4},{"$f":"IF('2011 Survey responses'!EX31<0.5,\"\",'2011 Survey responses'!EX31)","v":4},{"$f":"IF('2011 Survey responses'!EZ31<0.5,\"\",'2011 Survey responses'!EZ31)","v":4},{"$f":"IF('2011 Survey responses'!FB31<0.5,\"\",'2011 Survey responses'!FB31)","v":4},{"$f":"IF('2011 Survey responses'!FD31<0.5,\"\",'2011 Survey responses'!FD31)","v":4},{"$f":"IF('2011 Survey responses'!FC31<0.5,\"\",'2011 Survey responses'!FC31)","v":4},{"$f":"IF(('2011 Survey responses'!EM31+'2011 Survey responses'!EN31)>=2,AVERAGE('2011 Survey responses'!EM31,'2011 Survey responses'!EN31),\"\")","v":4.5},{"$f":"IF('2011 Survey responses'!ES31<0.5,\"\",'2011 Survey responses'!ES31)","v":4},{"$f":"IF(('2011 Survey responses'!ET31+'2011 Survey responses'!EU31)>=2,AVERAGE('2011 Survey responses'!ET31,'2011 Survey responses'!EU31),\"\")","v":4},{"$f":"IF('2011 Survey responses'!EV31<0.5,\"\",'2011 Survey responses'!EV31)","v":4},{"$f":"IF('2011 Survey responses'!FA31<0.5,\"\",'2011 Survey responses'!FA31)","v":4},{"$f":"IF('2011 Survey responses'!ER31<0.5,\"\",'2011 Survey responses'!ER31)","v":4},{"$f":"IF(('2011 Survey responses'!EO31+'2011 Survey responses'!EP31)>=2,AVERAGE('2011 Survey responses'!EO31,'2011 Survey responses'!EP31),\"\")","v":4.5},{"$f":"IF('2011 Survey responses'!EQ31<0.5,\"\",'2011 Survey responses'!EQ31)","v":4},{"$f":"IF('2011 Survey responses'!ET31<0.5,\"\",'2011 Survey responses'!ET31)","v":4},{"$f":"IF('2011 Survey responses'!EU31<0.5,\"\",'2011 Survey responses'!EU31)","v":4},{"$f":"IF('2011 Survey responses'!EW31<0.5,\"\",'2011 Survey responses'!EW31)","v":4},{"$f":"IF('2011 Survey responses'!EY31<0.5,\"\",'2011 Survey responses'!EY31)","v":4},{"$f":"IF('2011 Survey responses'!FU31<0.5,\"\",'2011 Survey responses'!FU31)","v":4},{"$f":"IF(('2011 Survey responses'!FL31+'2011 Survey responses'!FM31)>=2,AVERAGE('2011 Survey responses'!FL31,'2011 Survey responses'!FM31),\"\")","v":4},{"$f":"IF(('2011 Survey responses'!FO31+'2011 Survey responses'!FQ31)>=2,AVERAGE('2011 Survey responses'!FO31,'2011 Survey responses'!FQ31),\"\")","v":4},{"$f":"IF('2011 Survey responses'!FJ31<0.5,\"\",'2011 Survey responses'!FJ31)","v":4},{"$f":"IF('2011 Survey responses'!FT31<0.5,\"\",'2011 Survey responses'!FT31)","v":4},{"$f":"IF('2011 Survey responses'!FR31<0.5,\"\",'2011 Survey responses'!FR31)","v":4},{"$f":"IF('2011 Survey responses'!FK31<0.5,\"\",'2011 Survey responses'!FK31)","v":4},{"$f":"IF('2011 Survey responses'!FP31<0.5,\"\",'2011 Survey responses'!FP31)","v":4},{"$f":"IF('2011 Survey responses'!FN31<0.5,\"\",'2011 Survey responses'!FN31)","v":4},{"$f":"IF(('2011 Survey responses'!FE31+'2011 Survey responses'!FF31)>=2,AVERAGE('2011 Survey responses'!FE31,'2011 Survey responses'!FF31),\"\")","v":4.5},{"$f":"IF('2011 Survey responses'!FS31<0.5,\"\",'2011 Survey responses'!FS31)","v":4},{"$f":"IF('2011 Survey responses'!FV31<0.5,\"\",'2011 Survey responses'!FV31)","v":4},{"$f":"IF(('2011 Survey responses'!FG31+'2011 Survey responses'!FH31)>=2,AVERAGE('2011 Survey responses'!FG31,'2011 Survey responses'!FH31),\"\")","v":4},{"$f":"IF('2011 Survey responses'!FI31<0.5,\"\",'2011 Survey responses'!FI31)","v":4},{"$f":"IF('2011 Survey responses'!FE31<0.5,\"\",'2011 Survey responses'!FE31)","v":4},{"$f":"IF('2011 Survey responses'!FF31<0.5,\"\",'2011 Survey responses'!FF31)","v":5},{"$f":"IF('2011 Survey responses'!FG31<0.5,\"\",'2011 Survey responses'!FG31)","v":4},{"$f":"IF('2011 Survey responses'!FH31<0.5,\"\",'2011 Survey responses'!FH31)","v":4},{"$f":"IF('2011 Survey responses'!FL31<0.5,\"\",'2011 Survey responses'!FL31)","v":4},{"$f":"IF('2011 Survey responses'!FM31<0.5,\"\",'2011 Survey responses'!FM31)","v":4},{"$f":"IF('2011 Survey responses'!FO31<0.5,\"\",'2011 Survey responses'!FO31)","v":4},{"$f":"IF('2011 Survey responses'!FQ31<0.5,\"\",'2011 Survey responses'!FQ31)","v":4}]
["Cameroon",{"$f":"IF(SUM(F32)<1,\"\",AVERAGEIF('2011 Survey responses'!B32:CP32,\">1\"))","v":2.9125000000000001},{"$f":"IF(SUM(F32)<1,\"\",AVERAGEIF('2011 Survey responses'!B32:AO32,\">1\"))","v":2.9},{"$f":"IF(SUM(F32)<1,\"\",AVERAGEIF('2011 Survey responses'!B32:BV32,\">1\"))","v":2.71875},{"$f":"IF(SUM(F32)<1,\"\",AVERAGEIF('2011 Survey responses'!V32:BV32,\">1\"))","v":2.5909090909090908},{"$f":"IF(SUM('2011 Survey responses'!B32:U32)<1,\"\",(AVERAGEIFS('2011 Survey responses'!B32:U32,'2011 Survey responses'!B32:U32,\">1\")))","v":3},{"$f":"IF(SUM('2011 Survey responses'!B32:H32)<1,\"\",(AVERAGEIFS('2011 Survey responses'!B32:H32,'2011 Survey responses'!B32:H32,\">1\")))","v":2.5714285714285716},{"$f":"IF(SUM('2011 Survey responses'!I32:S32)<1,\"\",(AVERAGEIFS('2011 Survey responses'!I32:S32,'2011 Survey responses'!I32:S32,\">1\")))","v":3.0909090909090908},{"$f":"IF(SUM('2011 Survey responses'!T32:U32)<2.1,\"\",(AVERAGEIFS('2011 Survey responses'!T32:U32,'2011 Survey responses'!T32:U32,\">1\")))","v":4},{"$f":"IF(SUM('2011 Survey responses'!B32:C32)<2.1,\"\",((SUMIF('2011 Survey responses'!B32:C32,\">1\")+SUMIF('2011 Survey responses'!F32,\">1\"))/(COUNTIF('2011 Survey responses'!B32:C32,\">1\")+COUNTIF('2011 Survey responses'!F32,\">1\"))))","v":2},{"$f":"IF(SUM('2011 Survey responses'!D32:E32)<2.1,\"\",(AVERAGEIFS('2011 Survey responses'!D32:E32,'2011 Survey responses'!D32:E32,\">1\")))","v":4},{"$f":"IF(('2011 Survey responses'!B32+'2011 Survey responses'!D32)<2.1,\"\",((SUMIF('2011 Survey responses'!B32,\">1\")+SUMIF('2011 Survey responses'!D32,\">1\")+SUMIF('2011 Survey responses'!F32,\">1\")+SUMIF('2011 Survey responses'!K32,\">1\"))/(COUNTIF('2011 Survey responses'!B32,\">1\")+COUNTIF('2011 Survey responses'!D32,\">1\")+COUNTIF('2011 Survey responses'!F32,\">1\")+COUNTIF('2011 Survey responses'!K32,\">1\"))))","v":2.75},{"$f":"IF(SUM('2011 Survey responses'!G32:H32)<2.1,\"\",(AVERAGEIFS('2011 Survey responses'!G32:H32,'2011 Survey responses'!G32:H32,\">1\")))","v":2},{"$f":"IF(SUM('2011 Survey responses'!F32:G32)<1.5,\"\",MAX('2011 Survey responses'!F32,'2011 Survey responses'!G32))","v":2},{"$f":"IF(SUM('2011 Survey responses'!G32:H32)<1,\"\",MAX('2011 Survey responses'!G32,'2011 Survey responses'!H32))","v":2},{"$f":"IF(SUM('2011 Survey responses'!I32:L32)<4.1,\"\",(AVERAGEIFS('2011 Survey responses'!I32:L32,'2011 Survey responses'!I32:L32,\">1\")))","v":2.75},{"$f":"IF(SUM('2011 Survey responses'!M32:S32)<4.1,\"\",(AVERAGEIFS('2011 Survey responses'!M32:S32,'2011 Survey responses'!M32:S32,\">1\")))","v":3.2857142857142856},{"$f":"IF(SUM('2011 Survey responses'!T32:U32)<2.1,\"\",(AVERAGEIFS('2011 Survey responses'!T32:U32,'2011 Survey responses'!T32:U32,\">1\")))","v":4},{"$f":"IF(SUM('2011 Survey responses'!V32:AO32)<1,\"\",(AVERAGEIFS('2011 Survey responses'!V32:AO32,'2011 Survey responses'!V32:AO32,\">1\")))","v":2.8},{"$f":"IF(SUM('2011 Survey responses'!V32:AA32)<1,\"\",(AVERAGEIFS('2011 Survey responses'!V32:AA32,'2011 Survey responses'!V32:AA32,\">1\")))","v":2.6666666666666665},{"$f":"IF(SUM('2011 Survey responses'!AB32:AH32)<1,\"\",(AVERAGEIFS('2011 Survey responses'!AB32:AH32,'2011 Survey responses'!AB32:AH32,\">1\")))","v":3},{"$f":"IF(SUM('2011 Survey responses'!AI32:AO32)<1,\"\",(AVERAGEIFS('2011 Survey responses'!AI32:AO32,'2011 Survey responses'!AI32:AO32,\">1\")))","v":2.7142857142857144},{"$f":"IF(('2011 Survey responses'!Y32+'2011 Survey responses'!AI32+'2011 Survey responses'!AK32)<3.1,\"\",((SUMIF('2011 Survey responses'!Y32,\">1\")+SUMIF('2011 Survey responses'!AI32,\">1\")+SUMIF('2011 Survey responses'!AK32,\">1\")+SUMIF('2011 Survey responses'!AM32,\">1\"))/(COUNTIF('2011 Survey responses'!Y32,\">1\")+COUNTIF('2011 Survey responses'!AI32,\">1\")+COUNTIF('2011 Survey responses'!AK32,\">1\")+COUNTIF('2011 Survey responses'!AM32,\">1\"))))","v":2.25},{"$f":"IF(('2011 Survey responses'!W32)<1.1,\"\",('2011 Survey responses'!W32))","v":2},{"$f":"IF(('2011 Survey responses'!Y32)<1.1,\"\",('2011 Survey responses'!Y32))","v":2},{"$f":"IF(('2011 Survey responses'!Z32)<1.1,\"\",('2011 Survey responses'!Z32))","v":4},{"$f":"IF(('2011 Survey responses'!V32+'2011 Survey responses'!X32+'2011 Survey responses'!AA32)<3.1,\"\",((SUMIF('2011 Survey responses'!V32,\">1\")+SUMIF('2011 Survey responses'!X32,\">1\")+SUMIF('2011 Survey responses'!AA32,\">1\"))/(COUNTIF('2011 Survey responses'!V32,\">1\")+COUNTIF('2011 Survey responses'!X32,\">1\")+COUNTIF('2011 Survey responses'!AA32,\">1\"))))","v":2.6666666666666665},{"$f":"IF(('2011 Survey responses'!V32+'2011 Survey responses'!Y32+'2011 Survey responses'!AA32)<3.1,\"\",((SUMIF('2011 Survey responses'!V32,\">1\")+SUMIF('2011 Survey responses'!Y32,\">1\")+SUMIF('2011 Survey responses'!AA32,\">1\"))/(COUNTIF('2011 Survey responses'!V32,\">1\")+COUNTIF('2011 Survey responses'!Y32,\">1\")+COUNTIF('2011 Survey responses'!AA32,\">1\"))))","v":2},{"$f":"IF(SUM('2011 Survey responses'!AB32:AH32)<1,\"\",(AVERAGEIFS('2011 Survey responses'!AB32:AH32,'2011 Survey responses'!AB32:AH32,\">1\")))","v":3},{"$f":"IF(SUM('2011 Survey responses'!AI32:AO32)<7.1,\"\",(AVERAGEIFS('2011 Survey responses'!AI32:AO32,'2011 Survey responses'!AI32:AO32,\">1\")))","v":2.7142857142857144},{"$f":"IF(('2011 Survey responses'!AH32)<1.1,\"\",('2011 Survey responses'!AH32))","v":2},{"$f":"IF(SUM('2011 Survey responses'!AP32:BV32)<1,\"\",(AVERAGEIFS('2011 Survey responses'!AP32:BV32,'2011 Survey responses'!AP32:BV32,\">1\")))","v":2.4166666666666665},{"$f":"IF(SUM('2011 Survey responses'!AP32:AS32)<4.1,\"\",(AVERAGEIFS('2011 Survey responses'!AP32:AS32,'2011 Survey responses'!AP32:AS32,\">1\")))","v":2.3333333333333335},{"$f":"IF(SUM('2011 Survey responses'!AT32:BF32)<1,\"\",(AVERAGEIFS('2011 Survey responses'!AT32:BF32,'2011 Survey responses'!AT32:BF32,\">1\")))","v":2.625},{"$f":"IF(SUM('2011 Survey responses'!BG32:BO32)<1,\"\",(AVERAGEIFS('2011 Survey responses'!BG32:BO32,'2011 Survey responses'!BG32:BO32,\">1\")))","v":2.2857142857142856},{"$f":"IF(SUM('2011 Survey responses'!BP32:BS32)<1,\"\",(AVERAGEIFS('2011 Survey responses'!BP32:BS32,'2011 Survey responses'!BP32:BS32,\">1\")))","v":2},{"$f":"IF(SUM('2011 Survey responses'!BT32:BV32)<3.1,\"\",(AVERAGEIFS('2011 Survey responses'!BT32:BV32,'2011 Survey responses'!BT32:BV32,\">1\")))","v":2.6666666666666665},{"$f":"IF(('2011 Survey responses'!AQ32+'2011 Survey responses'!AR32+'2011 Survey responses'!BG32)<3.1,\"\",((SUMIF('2011 Survey responses'!AQ32,\">1\")+SUMIF('2011 Survey responses'!AR32,\">1\")+SUMIF('2011 Survey responses'!BG32,\">1\"))/(COUNTIF('2011 Survey responses'!AQ32,\">1\")+COUNTIF('2011 Survey responses'!AR32,\">1\")+COUNTIF('2011 Survey responses'!BG32,\">1\"))))","v":2},{"$f":"IF(SUM('2011 Survey responses'!AP32:AS32)<4.1,\"\",(AVERAGEIFS('2011 Survey responses'!AP32:AS32,'2011 Survey responses'!AP32:AS32,\">1\")))","v":2.3333333333333335},{"$f":"IF(('2011 Survey responses'!AU32+'2011 Survey responses'!AX32+'2011 Survey responses'!BA32+'2011 Survey responses'!BC32+'2011 Survey responses'!BD32)<5.1,\"\",(SUMIF('2011 Survey responses'!AU32,\">1\")+SUMIF('2011 Survey responses'!AX32,\">1\")+SUMIF('2011 Survey responses'!BA32,\">1\")+SUMIF('2011 Survey responses'!BC32,\">1\")+SUMIF('2011 Survey responses'!BD32,\">1\"))/(COUNTIF('2011 Survey responses'!AU32,\">1\")+COUNTIF('2011 Survey responses'!AX32,\">1\")+COUNTIF('2011 Survey responses'!BA32,\">1\")+COUNTIF('2011 Survey responses'!BC32,\">1\")+COUNTIF('2011 Survey responses'!BD32,\">1\")))","v":3},{"$f":"IF(('2011 Survey responses'!AT32)<1.1,\"\",('2011 Survey responses'!AT32))","v":""},{"$f":"IF(SUM('2011 Survey responses'!AV32:AW32)<2.1,\"\",(AVERAGEIFS('2011 Survey responses'!AV32:AW32,'2011 Survey responses'!AV32:AW32,\">1\")))","v":2},{"$f":"IF(('2011 Survey responses'!AW32+'2011 Survey responses'!AY32)<2.1,\"\",(SUMIF('2011 Survey responses'!AW32,\">1\")+SUMIF('2011 Survey responses'!AY32,\">1\"))/(COUNTIF('2011 Survey responses'!AW32,\">1\")+COUNTIF('2011 Survey responses'!AY32,\">1\")))","v":""},{"$f":"IF(('2011 Survey responses'!AZ32)<1.1,\"\",('2011 Survey responses'!AZ32))","v":""},1,1,2,2,{"$f":"IF(('2011 Survey responses'!BE32)<1.1,\"\",('2011 Survey responses'!BE32))","v":3},{"$f":"IF(('2011 Survey responses'!AY32+'2011 Survey responses'!BB32+'2011 Survey responses'!BF32)<3.1,\"\",(SUMIF('2011 Survey responses'!AY32,\">1\")+SUMIF('2011 Survey responses'!BB32,\">1\")+SUMIF('2011 Survey responses'!BF32,\">1\"))/(COUNTIF('2011 Survey responses'!AY32,\">1\")+COUNTIF('2011 Survey responses'!BB32,\">1\")+COUNTIF('2011 Survey responses'!BF32,\">1\")))","v":2},2.1428571428571428,{"$f":"IF(SUM('2011 Survey responses'!BT32:BV32)<3.1,\"\",(AVERAGEIFS('2011 Survey responses'!BT32:BV32,'2011 Survey responses'!BT32:BV32,\">1\")))","v":2.6666666666666665},{"$f":"IF(SUM('2011 Survey responses'!BW32:CP32)<1,\"\",(AVERAGEIFS('2011 Survey responses'!BW32:CP32,'2011 Survey responses'!BW32:CP32,\">1\")))","v":3.6875},{"$f":"IF(SUM('2011 Survey responses'!BW32:CF32)<1,\"\",(AVERAGEIFS('2011 Survey responses'!BW32:CF32,'2011 Survey responses'!BW32:CF32,\">1\")))","v":3.5714285714285716},{"$f":"IF(SUM('2011 Survey responses'!CG32:CP32)<1,\"\",(AVERAGEIFS('2011 Survey responses'!CG32:CP32,'2011 Survey responses'!CG32:CP32,\">1\")))","v":3.7777777777777777},{"$f":"IF(SUM('2011 Survey responses'!BX32:CF32)<1,\"\",(AVERAGEIFS('2011 Survey responses'!BX32:CF32,'2011 Survey responses'!BX32:CF32,\">1\")))","v":3.5714285714285716},{"$f":"IF(SUM('2011 Survey responses'!CH32:CP32)<1,\"\",(AVERAGEIFS('2011 Survey responses'!CH32:CP32,'2011 Survey responses'!CH32:CP32,\">1\")))","v":3.625},{"$f":"IF(SUM('2011 Survey responses'!BW32:CP32)<1,\"\",(AVERAGEIFS('2011 Survey responses'!BW32:CP32,'2011 Survey responses'!BW32:CP32,\">1\")))","v":3.6875},{"$f":"IF(('2011 Survey responses'!BW32+'2011 Survey responses'!CG32)<2.1,\"\",(SUMIF('2011 Survey responses'!BW32,\">1\")+SUMIF('2011 Survey responses'!CG32,\">1\"))/(COUNTIF('2011 Survey responses'!BW32,\">1\")+COUNTIF('2011 Survey responses'!CG32,\">1\")))","v":5},{"$f":"IF(('2011 Survey responses'!BX32+'2011 Survey responses'!CH32)<2.1,\"\",(SUMIF('2011 Survey responses'!BX32,\">1\")+SUMIF('2011 Survey responses'!CH32,\">1\"))/(COUNTIF('2011 Survey responses'!BX32,\">1\")+COUNTIF('2011 Survey responses'!CH32,\">1\")))","v":4},{"$f":"IF(('2011 Survey responses'!BY32+'2011 Survey responses'!CI32)<2.1,\"\",(SUMIF('2011 Survey responses'!BY32,\">1\")+SUMIF('2011 Survey responses'!CI32,\">1\"))/(COUNTIF('2011 Survey responses'!BY32,\">1\")+COUNTIF('2011 Survey responses'!CI32,\">1\")))","v":4.5},{"$f":"IF('2011 Survey responses'!CQ32<0.5,\"\",'2011 Survey responses'!CQ32)","v":4},{"$f":"IF('2011 Survey responses'!CR32<0.5,\"\",'2011 Survey responses'!CR32)","v":4},{"$f":"IF('2011 Survey responses'!CS32<0.5,\"\",'2011 Survey responses'!CS32)","v":4},{"$f":"IF('2011 Survey responses'!CT32<0.5,\"\",'2011 Survey responses'!CT32)","v":4},{"$f":"IF('2011 Survey responses'!CU32<0.5,\"\",'2011 Survey responses'!CU32)","v":3},{"$f":"IF('2011 Survey responses'!CV32<0.5,\"\",'2011 Survey responses'!CV32)","v":2},{"$f":"IF(SUM('2011 Survey responses'!CW32:DL32)<1,\"\",(AVERAGE('2011 Survey responses'!CW32:DL32)))","v":2.75},{"$f":"IF(SUM('2011 Survey responses'!CW32:CZ32)<1,\"\",(AVERAGE('2011 Survey responses'!CW32:CZ32)))","v":3},{"$f":"IF(SUM('2011 Survey responses'!DA32:DD32)<1,\"\",(AVERAGE('2011 Survey responses'!DA32:DD32)))","v":3},{"$f":"IF(SUM('2011 Survey responses'!DE32:DH32)<1,\"\",(AVERAGE('2011 Survey responses'!DE32:DH32)))","v":2.25},{"$f":"IF(SUM('2011 Survey responses'!DI32:DL32)<1,\"\",(AVERAGE('2011 Survey responses'!DI32:DL32)))","v":2.75},{"$f":"IF(('2011 Survey responses'!CW32+'2011 Survey responses'!DA32+'2011 Survey responses'!DE32+'2011 Survey responses'!DI32)<1,\"\",AVERAGE('2011 Survey responses'!CW32,'2011 Survey responses'!DA32,'2011 Survey responses'!DE32,'2011 Survey responses'!DI32))","v":2.5},{"$f":"IF(('2011 Survey responses'!CX32+'2011 Survey responses'!DB32+'2011 Survey responses'!DF32+'2011 Survey responses'!DJ32)<1,\"\",AVERAGE('2011 Survey responses'!CX32,'2011 Survey responses'!DB32,'2011 Survey responses'!DF32,'2011 Survey responses'!DJ32))","v":2.75},{"$f":"IF(('2011 Survey responses'!CY32+'2011 Survey responses'!DC32+'2011 Survey responses'!DG32+'2011 Survey responses'!DK32)<1,\"\",AVERAGE('2011 Survey responses'!CY32,'2011 Survey responses'!DC32,'2011 Survey responses'!DG32,'2011 Survey responses'!DK32))","v":3},{"$f":"IF(('2011 Survey responses'!CZ32+'2011 Survey responses'!DD32+'2011 Survey responses'!DH32+'2011 Survey responses'!DL32)<1,\"\",AVERAGE('2011 Survey responses'!CZ32,'2011 Survey responses'!DD32,'2011 Survey responses'!DH32,'2011 Survey responses'!DL32))","v":2.75},{"$f":"IF('2011 Survey responses'!CW32<0.5,\"\",'2011 Survey responses'!CW32)","v":2},{"$f":"IF('2011 Survey responses'!CX32<0.5,\"\",'2011 Survey responses'!CX32)","v":3},{"$f":"IF('2011 Survey responses'!CY32<0.5,\"\",'2011 Survey responses'!CY32)","v":4},{"$f":"IF('2011 Survey responses'!CZ32<0.5,\"\",'2011 Survey responses'!CZ32)","v":3},{"$f":"IF('2011 Survey responses'!DA32<0.5,\"\",'2011 Survey responses'!DA32)","v":3},{"$f":"IF('2011 Survey responses'!DB32<0.5,\"\",'2011 Survey responses'!DB32)","v":3},{"$f":"IF('2011 Survey responses'!DC32<0.5,\"\",'2011 Survey responses'!DC32)","v":3},{"$f":"IF('2011 Survey responses'!DD32<0.5,\"\",'2011 Survey responses'!DD32)","v":3},{"$f":"IF('2011 Survey responses'!DE32<0.5,\"\",'2011 Survey responses'!DE32)","v":2},{"$f":"IF('2011 Survey responses'!DF32<0.5,\"\",'2011 Survey responses'!DF32)","v":2},{"$f":"IF('2011 Survey responses'!DG32<0.5,\"\",'2011 Survey responses'!DG32)","v":3},{"$f":"IF('2011 Survey responses'!DH32<0.5,\"\",'2011 Survey responses'!DH32)","v":2},{"$f":"IF('2011 Survey responses'!DI32<0.5,\"\",'2011 Survey responses'!DI32)","v":3},{"$f":"IF('2011 Survey responses'!DJ32<0.5,\"\",'2011 Survey responses'!DJ32)","v":3},{"$f":"IF('2011 Survey responses'!DK32<0.5,\"\",'2011 Survey responses'!DK32)","v":2},{"$f":"IF('2011 Survey responses'!DL32<0.5,\"\",'2011 Survey responses'!DL32)","v":3},{"$f":"IF('2011 Survey responses'!DU32=4,4,IF('2011 Survey responses'!DU32=5,4,\"\"))","v":""},{"$f":"IF('2011 Survey responses'!DV32=4,3,IF('2011 Survey responses'!DV32=5,3,\"\"))","v":3},"",{"$f":"IF(CQ32=2,CQ32,IF(CO32=4,CO32,IF(CP32=3,CP32,IF('2011 Survey responses'!GT32=1,1,\"\"))))","v":3},{"$f":"IF('2011 Survey responses'!DO32<0.5,\"\",'2011 Survey responses'!DO32)","v":3},{"$f":"IF('2011 Survey responses'!DP32<0.5,\"\",'2011 Survey responses'!DP32)","v":4},{"$f":"IF('2011 Survey responses'!DQ32<0.5,\"\",'2011 Survey responses'!DQ32)","v":3},{"$f":"IF('2011 Survey responses'!DR32<0.5,\"\",'2011 Survey responses'!DR32)","v":4},{"$f":"IF('2011 Survey responses'!DS32<0.5,\"\",'2011 Survey responses'!DS32)","v":2},{"$f":"IF('2011 Survey responses'!DT32<0.5,\"\",'2011 Survey responses'!DT32)","v":4},{"$f":"IF('2011 Survey responses'!DU32<0.5,\"\",'2011 Survey responses'!DU32)","v":3},{"$f":"IF('2011 Survey responses'!DV32<0.5,\"\",'2011 Survey responses'!DV32)","v":4},{"$f":"IF('2011 Survey responses'!DW32<0.5,\"\",'2011 Survey responses'!DW32)","v":2},{"$f":"IF('2011 Survey responses'!DX32<0.5,\"\",'2011 Survey responses'!DX32)","v":2},{"$f":"IF('2011 Survey responses'!DY32<0.5,\"\",'2011 Survey responses'!DY32)","v":4},{"$f":"IF('2011 Survey responses'!DZ32<0.5,\"\",'2011 Survey responses'!DZ32)","v":4},{"$f":"IF('2011 Survey responses'!EA32<0.5,\"\",'2011 Survey responses'!EA32)","v":4},{"$f":"IF('2011 Survey responses'!EB32<0.5,\"\",'2011 Survey responses'!EB32)","v":5},{"$f":"IF('2011 Survey responses'!EC32<0.5,\"\",'2011 Survey responses'!EC32)","v":4},{"$f":"IF('2011 Survey responses'!ED32<0.5,\"\",'2011 Survey responses'!ED32)","v":5},{"$f":"IF('2011 Survey responses'!EE32<0.5,\"\",'2011 Survey responses'!EE32)","v":4},{"$f":"IF('2011 Survey responses'!EF32<0.5,\"\",'2011 Survey responses'!EF32)","v":5},{"$f":"IF('2011 Survey responses'!EG32<0.5,\"\",'2011 Survey responses'!EG32)","v":5},{"$f":"IF('2011 Survey responses'!EH32<0.5,\"\",'2011 Survey responses'!EH32)","v":5},{"$f":"IF('2011 Survey responses'!EI32<0.5,\"\",'2011 Survey responses'!EI32)","v":4},{"$f":"IF('2011 Survey responses'!EJ32<0.5,\"\",'2011 Survey responses'!EJ32)","v":4},{"$f":"IF('2011 Survey responses'!EK32<0.5,\"\",'2011 Survey responses'!EK32)","v":5},{"$f":"IF('2011 Survey responses'!EL32<0.5,\"\",'2011 Survey responses'!EL32)","v":4},{"$f":"IF('2011 Survey responses'!EM32<0.5,\"\",'2011 Survey responses'!EM32)","v":4},{"$f":"IF('2011 Survey responses'!EN32<0.5,\"\",'2011 Survey responses'!EN32)","v":4},{"$f":"IF('2011 Survey responses'!EO32<0.5,\"\",'2011 Survey responses'!EO32)","v":5},{"$f":"IF('2011 Survey responses'!EP32<0.5,\"\",'2011 Survey responses'!EP32)","v":4},{"$f":"IF(('2011 Survey responses'!EW32+'2011 Survey responses'!EX32)>=2,AVERAGE('2011 Survey responses'!EW32,'2011 Survey responses'!EY32),\"\")","v":4},{"$f":"IF('2011 Survey responses'!EX32<0.5,\"\",'2011 Survey responses'!EX32)","v":4},{"$f":"IF('2011 Survey responses'!EZ32<0.5,\"\",'2011 Survey responses'!EZ32)","v":3},{"$f":"IF('2011 Survey responses'!FB32<0.5,\"\",'2011 Survey responses'!FB32)","v":3},{"$f":"IF('2011 Survey responses'!FD32<0.5,\"\",'2011 Survey responses'!FD32)","v":3},{"$f":"IF('2011 Survey responses'!FC32<0.5,\"\",'2011 Survey responses'!FC32)","v":4},{"$f":"IF(('2011 Survey responses'!EM32+'2011 Survey responses'!EN32)>=2,AVERAGE('2011 Survey responses'!EM32,'2011 Survey responses'!EN32),\"\")","v":4},{"$f":"IF('2011 Survey responses'!ES32<0.5,\"\",'2011 Survey responses'!ES32)","v":2},{"$f":"IF(('2011 Survey responses'!ET32+'2011 Survey responses'!EU32)>=2,AVERAGE('2011 Survey responses'!ET32,'2011 Survey responses'!EU32),\"\")","v":2.5},{"$f":"IF('2011 Survey responses'!EV32<0.5,\"\",'2011 Survey responses'!EV32)","v":4},{"$f":"IF('2011 Survey responses'!FA32<0.5,\"\",'2011 Survey responses'!FA32)","v":3},{"$f":"IF('2011 Survey responses'!ER32<0.5,\"\",'2011 Survey responses'!ER32)","v":3},{"$f":"IF(('2011 Survey responses'!EO32+'2011 Survey responses'!EP32)>=2,AVERAGE('2011 Survey responses'!EO32,'2011 Survey responses'!EP32),\"\")","v":4.5},{"$f":"IF('2011 Survey responses'!EQ32<0.5,\"\",'2011 Survey responses'!EQ32)","v":3},{"$f":"IF('2011 Survey responses'!ET32<0.5,\"\",'2011 Survey responses'!ET32)","v":3},{"$f":"IF('2011 Survey responses'!EU32<0.5,\"\",'2011 Survey responses'!EU32)","v":2},{"$f":"IF('2011 Survey responses'!EW32<0.5,\"\",'2011 Survey responses'!EW32)","v":4},{"$f":"IF('2011 Survey responses'!EY32<0.5,\"\",'2011 Survey responses'!EY32)","v":4},{"$f":"IF('2011 Survey responses'!FU32<0.5,\"\",'2011 Survey responses'!FU32)","v":5},{"$f":"IF(('2011 Survey responses'!FL32+'2011 Survey responses'!FM32)>=2,AVERAGE('2011 Survey responses'!FL32,'2011 Survey responses'!FM32),\"\")","v":4},{"$f":"IF(('2011 Survey responses'!FO32+'2011 Survey responses'!FQ32)>=2,AVERAGE('2011 Survey responses'!FO32,'2011 Survey responses'!FQ32),\"\")","v":4.5},{"$f":"IF('2011 Survey responses'!FJ32<0.5,\"\",'2011 Survey responses'!FJ32)","v":5},{"$f":"IF('2011 Survey responses'!FT32<0.5,\"\",'2011 Survey responses'!FT32)","v":5},{"$f":"IF('2011 Survey responses'!FR32<0.5,\"\",'2011 Survey responses'!FR32)","v":4},{"$f":"IF('2011 Survey responses'!FK32<0.5,\"\",'2011 Survey responses'!FK32)","v":4},{"$f":"IF('2011 Survey responses'!FP32<0.5,\"\",'2011 Survey responses'!FP32)","v":4},{"$f":"IF('2011 Survey responses'!FN32<0.5,\"\",'2011 Survey responses'!FN32)","v":5},{"$f":"IF(('2011 Survey responses'!FE32+'2011 Survey responses'!FF32)>=2,AVERAGE('2011 Survey responses'!FE32,'2011 Survey responses'!FF32),\"\")","v":4},{"$f":"IF('2011 Survey responses'!FS32<0.5,\"\",'2011 Survey responses'!FS32)","v":4},{"$f":"IF('2011 Survey responses'!FV32<0.5,\"\",'2011 Survey responses'!FV32)","v":4},{"$f":"IF(('2011 Survey responses'!FG32+'2011 Survey responses'!FH32)>=2,AVERAGE('2011 Survey responses'!FG32,'2011 Survey responses'!FH32),\"\")","v":4.5},{"$f":"IF('2011 Survey responses'!FI32<0.5,\"\",'2011 Survey responses'!FI32)","v":4},{"$f":"IF('2011 Survey responses'!FE32<0.5,\"\",'2011 Survey responses'!FE32)","v":4},{"$f":"IF('2011 Survey responses'!FF32<0.5,\"\",'2011 Survey responses'!FF32)","v":4},{"$f":"IF('2011 Survey responses'!FG32<0.5,\"\",'2011 Survey responses'!FG32)","v":5},{"$f":"IF('2011 Survey responses'!FH32<0.5,\"\",'2011 Survey responses'!FH32)","v":4},{"$f":"IF('2011 Survey responses'!FL32<0.5,\"\",'2011 Survey responses'!FL32)","v":4},{"$f":"IF('2011 Survey responses'!FM32<0.5,\"\",'2011 Survey responses'!FM32)","v":4},{"$f":"IF('2011 Survey responses'!FO32<0.5,\"\",'2011 Survey responses'!FO32)","v":5},{"$f":"IF('2011 Survey responses'!FQ32<0.5,\"\",'2011 Survey responses'!FQ32)","v":4}]
["Canada",{"$f":"IF(SUM(F33)<1,\"\",AVERAGEIF('2011 Survey responses'!B33:CP33,\">1\"))","v":5.096385542168675},{"$f":"IF(SUM(F33)<1,\"\",AVERAGEIF('2011 Survey responses'!B33:AO33,\">1\"))","v":5.2424242424242422},{"$f":"IF(SUM(F33)<1,\"\",AVERAGEIF('2011 Survey responses'!B33:BV33,\">1\"))","v":5.0151515151515156},{"$f":"IF(SUM(F33)<1,\"\",AVERAGEIF('2011 Survey responses'!V33:BV33,\">1\"))","v":5.0576923076923075},{"$f":"IF(SUM('2011 Survey responses'!B33:U33)<1,\"\",(AVERAGEIFS('2011 Survey responses'!B33:U33,'2011 Survey responses'!B33:U33,\">1\")))","v":4.8571428571428568},{"$f":"IF(SUM('2011 Survey responses'!B33:H33)<1,\"\",(AVERAGEIFS('2011 Survey responses'!B33:H33,'2011 Survey responses'!B33:H33,\">1\")))","v":5},{"$f":"IF(SUM('2011 Survey responses'!I33:S33)<1,\"\",(AVERAGEIFS('2011 Survey responses'!I33:S33,'2011 Survey responses'!I33:S33,\">1\")))","v":4.5714285714285712},{"$f":"IF(SUM('2011 Survey responses'!T33:U33)<2.1,\"\",(AVERAGEIFS('2011 Survey responses'!T33:U33,'2011 Survey responses'!T33:U33,\">1\")))","v":6},{"$f":"IF(SUM('2011 Survey responses'!B33:C33)<2.1,\"\",((SUMIF('2011 Survey responses'!B33:C33,\">1\")+SUMIF('2011 Survey responses'!F33,\">1\"))/(COUNTIF('2011 Survey responses'!B33:C33,\">1\")+COUNTIF('2011 Survey responses'!F33,\">1\"))))","v":4.333333333333333},{"$f":"IF(SUM('2011 Survey responses'!D33:E33)<2.1,\"\",(AVERAGEIFS('2011 Survey responses'!D33:E33,'2011 Survey responses'!D33:E33,\">1\")))","v":6},{"$f":"IF(('2011 Survey responses'!B33+'2011 Survey responses'!D33)<2.1,\"\",((SUMIF('2011 Survey responses'!B33,\">1\")+SUMIF('2011 Survey responses'!D33,\">1\")+SUMIF('2011 Survey responses'!F33,\">1\")+SUMIF('2011 Survey responses'!K33,\">1\"))/(COUNTIF('2011 Survey responses'!B33,\">1\")+COUNTIF('2011 Survey responses'!D33,\">1\")+COUNTIF('2011 Survey responses'!F33,\">1\")+COUNTIF('2011 Survey responses'!K33,\">1\"))))","v":5},{"$f":"IF(SUM('2011 Survey responses'!G33:H33)<2.1,\"\",(AVERAGEIFS('2011 Survey responses'!G33:H33,'2011 Survey responses'!G33:H33,\">1\")))","v":5},{"$f":"IF(SUM('2011 Survey responses'!F33:G33)<1.5,\"\",MAX('2011 Survey responses'!F33,'2011 Survey responses'!G33))","v":4},{"$f":"IF(SUM('2011 Survey responses'!G33:H33)<1,\"\",MAX('2011 Survey responses'!G33,'2011 Survey responses'!H33))","v":5},{"$f":"IF(SUM('2011 Survey responses'!I33:L33)<4.1,\"\",(AVERAGEIFS('2011 Survey responses'!I33:L33,'2011 Survey responses'!I33:L33,\">1\")))","v":5},{"$f":"IF(SUM('2011 Survey responses'!M33:S33)<4.1,\"\",(AVERAGEIFS('2011 Survey responses'!M33:S33,'2011 Survey responses'!M33:S33,\">1\")))","v":4.4000000000000004},{"$f":"IF(SUM('2011 Survey responses'!T33:U33)<2.1,\"\",(AVERAGEIFS('2011 Survey responses'!T33:U33,'2011 Survey responses'!T33:U33,\">1\")))","v":6},{"$f":"IF(SUM('2011 Survey responses'!V33:AO33)<1,\"\",(AVERAGEIFS('2011 Survey responses'!V33:AO33,'2011 Survey responses'!V33:AO33,\">1\")))","v":5.5263157894736841},{"$f":"IF(SUM('2011 Survey responses'!V33:AA33)<1,\"\",(AVERAGEIFS('2011 Survey responses'!V33:AA33,'2011 Survey responses'!V33:AA33,\">1\")))","v":5.5},{"$f":"IF(SUM('2011 Survey responses'!AB33:AH33)<1,\"\",(AVERAGEIFS('2011 Survey responses'!AB33:AH33,'2011 Survey responses'!AB33:AH33,\">1\")))","v":5.666666666666667},{"$f":"IF(SUM('2011 Survey responses'!AI33:AO33)<1,\"\",(AVERAGEIFS('2011 Survey responses'!AI33:AO33,'2011 Survey responses'!AI33:AO33,\">1\")))","v":5.4285714285714288},{"$f":"IF(('2011 Survey responses'!Y33+'2011 Survey responses'!AI33+'2011 Survey responses'!AK33)<3.1,\"\",((SUMIF('2011 Survey responses'!Y33,\">1\")+SUMIF('2011 Survey responses'!AI33,\">1\")+SUMIF('2011 Survey responses'!AK33,\">1\")+SUMIF('2011 Survey responses'!AM33,\">1\"))/(COUNTIF('2011 Survey responses'!Y33,\">1\")+COUNTIF('2011 Survey responses'!AI33,\">1\")+COUNTIF('2011 Survey responses'!AK33,\">1\")+COUNTIF('2011 Survey responses'!AM33,\">1\"))))","v":5},{"$f":"IF(('2011 Survey responses'!W33)<1.1,\"\",('2011 Survey responses'!W33))","v":4},{"$f":"IF(('2011 Survey responses'!Y33)<1.1,\"\",('2011 Survey responses'!Y33))","v":6},{"$f":"IF(('2011 Survey responses'!Z33)<1.1,\"\",('2011 Survey responses'!Z33))","v":6},{"$f":"IF(('2011 Survey responses'!V33+'2011 Survey responses'!X33+'2011 Survey responses'!AA33)<3.1,\"\",((SUMIF('2011 Survey responses'!V33,\">1\")+SUMIF('2011 Survey responses'!X33,\">1\")+SUMIF('2011 Survey responses'!AA33,\">1\"))/(COUNTIF('2011 Survey responses'!V33,\">1\")+COUNTIF('2011 Survey responses'!X33,\">1\")+COUNTIF('2011 Survey responses'!AA33,\">1\"))))","v":5.666666666666667},{"$f":"IF(('2011 Survey responses'!V33+'2011 Survey responses'!Y33+'2011 Survey responses'!AA33)<3.1,\"\",((SUMIF('2011 Survey responses'!V33,\">1\")+SUMIF('2011 Survey responses'!Y33,\">1\")+SUMIF('2011 Survey responses'!AA33,\">1\"))/(COUNTIF('2011 Survey responses'!V33,\">1\")+COUNTIF('2011 Survey responses'!Y33,\">1\")+COUNTIF('2011 Survey responses'!AA33,\">1\"))))","v":5.666666666666667},{"$f":"IF(SUM('2011 Survey responses'!AB33:AH33)<1,\"\",(AVERAGEIFS('2011 Survey responses'!AB33:AH33,'2011 Survey responses'!AB33:AH33,\">1\")))","v":5.666666666666667},{"$f":"IF(SUM('2011 Survey responses'!AI33:AO33)<7.1,\"\",(AVERAGEIFS('2011 Survey responses'!AI33:AO33,'2011 Survey responses'!AI33:AO33,\">1\")))","v":5.4285714285714288},{"$f":"IF(('2011 Survey responses'!AH33)<1.1,\"\",('2011 Survey responses'!AH33))","v":""},{"$f":"IF(SUM('2011 Survey responses'!AP33:BV33)<1,\"\",(AVERAGEIFS('2011 Survey responses'!AP33:BV33,'2011 Survey responses'!AP33:BV33,\">1\")))","v":4.7878787878787881},{"$f":"IF(SUM('2011 Survey responses'!AP33:AS33)<4.1,\"\",(AVERAGEIFS('2011 Survey responses'!AP33:AS33,'2011 Survey responses'!AP33:AS33,\">1\")))","v":5.5},{"$f":"IF(SUM('2011 Survey responses'!AT33:BF33)<1,\"\",(AVERAGEIFS('2011 Survey responses'!AT33:BF33,'2011 Survey responses'!AT33:BF33,\">1\")))","v":4.1538461538461542},{"$f":"IF(SUM('2011 Survey responses'!BG33:BO33)<1,\"\",(AVERAGEIFS('2011 Survey responses'!BG33:BO33,'2011 Survey responses'!BG33:BO33,\">1\")))","v":5.4444444444444446},{"$f":"IF(SUM('2011 Survey responses'!BP33:BS33)<1,\"\",(AVERAGEIFS('2011 Survey responses'!BP33:BS33,'2011 Survey responses'!BP33:BS33,\">1\")))","v":5.25},{"$f":"IF(SUM('2011 Survey responses'!BT33:BV33)<3.1,\"\",(AVERAGEIFS('2011 Survey responses'!BT33:BV33,'2011 Survey responses'!BT33:BV33,\">1\")))","v":4},{"$f":"IF(('2011 Survey responses'!AQ33+'2011 Survey responses'!AR33+'2011 Survey responses'!BG33)<3.1,\"\",((SUMIF('2011 Survey responses'!AQ33,\">1\")+SUMIF('2011 Survey responses'!AR33,\">1\")+SUMIF('2011 Survey responses'!BG33,\">1\"))/(COUNTIF('2011 Survey responses'!AQ33,\">1\")+COUNTIF('2011 Survey responses'!AR33,\">1\")+COUNTIF('2011 Survey responses'!BG33,\">1\"))))","v":6},{"$f":"IF(SUM('2011 Survey responses'!AP33:AS33)<4.1,\"\",(AVERAGEIFS('2011 Survey responses'!AP33:AS33,'2011 Survey responses'!AP33:AS33,\">1\")))","v":5.5},{"$f":"IF(('2011 Survey responses'!AU33+'2011 Survey responses'!AX33+'2011 Survey responses'!BA33+'2011 Survey responses'!BC33+'2011 Survey responses'!BD33)<5.1,\"\",(SUMIF('2011 Survey responses'!AU33,\">1\")+SUMIF('2011 Survey responses'!AX33,\">1\")+SUMIF('2011 Survey responses'!BA33,\">1\")+SUMIF('2011 Survey responses'!BC33,\">1\")+SUMIF('2011 Survey responses'!BD33,\">1\"))/(COUNTIF('2011 Survey responses'!AU33,\">1\")+COUNTIF('2011 Survey responses'!AX33,\">1\")+COUNTIF('2011 Survey responses'!BA33,\">1\")+COUNTIF('2011 Survey responses'!BC33,\">1\")+COUNTIF('2011 Survey responses'!BD33,\">1\")))","v":4.2},{"$f":"IF(('2011 Survey responses'!AT33)<1.1,\"\",('2011 Survey responses'!AT33))","v":4},{"$f":"IF(SUM('2011 Survey responses'!AV33:AW33)<2.1,\"\",(AVERAGEIFS('2011 Survey responses'!AV33:AW33,'2011 Survey responses'!AV33:AW33,\">1\")))","v":3.5},{"$f":"IF(('2011 Survey responses'!AW33+'2011 Survey responses'!AY33)<2.1,\"\",(SUMIF('2011 Survey responses'!AW33,\">1\")+SUMIF('2011 Survey responses'!AY33,\">1\"))/(COUNTIF('2011 Survey responses'!AW33,\">1\")+COUNTIF('2011 Survey responses'!AY33,\">1\")))","v":3},{"$f":"IF(('2011 Survey responses'!AZ33)<1.1,\"\",('2011 Survey responses'!AZ33))","v":2},2,4,5,4,{"$f":"IF(('2011 Survey responses'!BE33)<1.1,\"\",('2011 Survey responses'!BE33))","v":6},{"$f":"IF(('2011 Survey responses'!AY33+'2011 Survey responses'!BB33+'2011 Survey responses'!BF33)<3.1,\"\",(SUMIF('2011 Survey responses'!AY33,\">1\")+SUMIF('2011 Survey responses'!BB33,\">1\")+SUMIF('2011 Survey responses'!BF33,\">1\"))/(COUNTIF('2011 Survey responses'!AY33,\">1\")+COUNTIF('2011 Survey responses'!BB33,\">1\")+COUNTIF('2011 Survey responses'!BF33,\">1\")))","v":4.666666666666667},5.3472222222222223,{"$f":"IF(SUM('2011 Survey responses'!BT33:BV33)<3.1,\"\",(AVERAGEIFS('2011 Survey responses'!BT33:BV33,'2011 Survey responses'!BT33:BV33,\">1\")))","v":4},{"$f":"IF(SUM('2011 Survey responses'!BW33:CP33)<1,\"\",(AVERAGEIFS('2011 Survey responses'!BW33:CP33,'2011 Survey responses'!BW33:CP33,\">1\")))","v":5.4117647058823533},{"$f":"IF(SUM('2011 Survey responses'!BW33:CF33)<1,\"\",(AVERAGEIFS('2011 Survey responses'!BW33:CF33,'2011 Survey responses'!BW33:CF33,\">1\")))","v":5.333333333333333},{"$f":"IF(SUM('2011 Survey responses'!CG33:CP33)<1,\"\",(AVERAGEIFS('2011 Survey responses'!CG33:CP33,'2011 Survey responses'!CG33:CP33,\">1\")))","v":5.5},{"$f":"IF(SUM('2011 Survey responses'!BX33:CF33)<1,\"\",(AVERAGEIFS('2011 Survey responses'!BX33:CF33,'2011 Survey responses'!BX33:CF33,\">1\")))","v":5.25},{"$f":"IF(SUM('2011 Survey responses'!CH33:CP33)<1,\"\",(AVERAGEIFS('2011 Survey responses'!CH33:CP33,'2011 Survey responses'!CH33:CP33,\">1\")))","v":5.4285714285714288},{"$f":"IF(SUM('2011 Survey responses'!BW33:CP33)<1,\"\",(AVERAGEIFS('2011 Survey responses'!BW33:CP33,'2011 Survey responses'!BW33:CP33,\">1\")))","v":5.4117647058823533},{"$f":"IF(('2011 Survey responses'!BW33+'2011 Survey responses'!CG33)<2.1,\"\",(SUMIF('2011 Survey responses'!BW33,\">1\")+SUMIF('2011 Survey responses'!CG33,\">1\"))/(COUNTIF('2011 Survey responses'!BW33,\">1\")+COUNTIF('2011 Survey responses'!CG33,\">1\")))","v":6},{"$f":"IF(('2011 Survey responses'!BX33+'2011 Survey responses'!CH33)<2.1,\"\",(SUMIF('2011 Survey responses'!BX33,\">1\")+SUMIF('2011 Survey responses'!CH33,\">1\"))/(COUNTIF('2011 Survey responses'!BX33,\">1\")+COUNTIF('2011 Survey responses'!CH33,\">1\")))","v":6},{"$f":"IF(('2011 Survey responses'!BY33+'2011 Survey responses'!CI33)<2.1,\"\",(SUMIF('2011 Survey responses'!BY33,\">1\")+SUMIF('2011 Survey responses'!CI33,\">1\"))/(COUNTIF('2011 Survey responses'!BY33,\">1\")+COUNTIF('2011 Survey responses'!CI33,\">1\")))","v":6},{"$f":"IF('2011 Survey responses'!CQ33<0.5,\"\",'2011 Survey responses'!CQ33)","v":1},{"$f":"IF('2011 Survey responses'!CR33<0.5,\"\",'2011 Survey responses'!CR33)","v":2},{"$f":"IF('2011 Survey responses'!CS33<0.5,\"\",'2011 Survey responses'!CS33)","v":2},{"$f":"IF('2011 Survey responses'!CT33<0.5,\"\",'2011 Survey responses'!CT33)","v":1},{"$f":"IF('2011 Survey responses'!CU33<0.5,\"\",'2011 Survey responses'!CU33)","v":4},{"$f":"IF('2011 Survey responses'!CV33<0.5,\"\",'2011 Survey responses'!CV33)","v":1},{"$f":"IF(SUM('2011 Survey responses'!CW33:DL33)<1,\"\",(AVERAGE('2011 Survey responses'!CW33:DL33)))","v":2.3125},{"$f":"IF(SUM('2011 Survey responses'!CW33:CZ33)<1,\"\",(AVERAGE('2011 Survey responses'!CW33:CZ33)))","v":2.5},{"$f":"IF(SUM('2011 Survey responses'!DA33:DD33)<1,\"\",(AVERAGE('2011 Survey responses'!DA33:DD33)))","v":2.25},{"$f":"IF(SUM('2011 Survey responses'!DE33:DH33)<1,\"\",(AVERAGE('2011 Survey responses'!DE33:DH33)))","v":2.5},{"$f":"IF(SUM('2011 Survey responses'!DI33:DL33)<1,\"\",(AVERAGE('2011 Survey responses'!DI33:DL33)))","v":2},{"$f":"IF(('2011 Survey responses'!CW33+'2011 Survey responses'!DA33+'2011 Survey responses'!DE33+'2011 Survey responses'!DI33)<1,\"\",AVERAGE('2011 Survey responses'!CW33,'2011 Survey responses'!DA33,'2011 Survey responses'!DE33,'2011 Survey responses'!DI33))","v":2},{"$f":"IF(('2011 Survey responses'!CX33+'2011 Survey responses'!DB33+'2011 Survey responses'!DF33+'2011 Survey responses'!DJ33)<1,\"\",AVERAGE('2011 Survey responses'!CX33,'2011 Survey responses'!DB33,'2011 Survey responses'!DF33,'2011 Survey responses'!DJ33))","v":2},{"$f":"IF(('2011 Survey responses'!CY33+'2011 Survey responses'!DC33+'2011 Survey responses'!DG33+'2011 Survey responses'!DK33)<1,\"\",AVERAGE('2011 Survey responses'!CY33,'2011 Survey responses'!DC33,'2011 Survey responses'!DG33,'2011 Survey responses'!DK33))","v":3.25},{"$f":"IF(('2011 Survey responses'!CZ33+'2011 Survey responses'!DD33+'2011 Survey responses'!DH33+'2011 Survey responses'!DL33)<1,\"\",AVERAGE('2011 Survey responses'!CZ33,'2011 Survey responses'!DD33,'2011 Survey responses'!DH33,'2011 Survey responses'!DL33))","v":2},{"$f":"IF('2011 Survey responses'!CW33<0.5,\"\",'2011 Survey responses'!CW33)","v":2},{"$f":"IF('2011 Survey responses'!CX33<0.5,\"\",'2011 Survey responses'!CX33)","v":2},{"$f":"IF('2011 Survey responses'!CY33<0.5,\"\",'2011 Survey responses'!CY33)","v":4},{"$f":"IF('2011 Survey responses'!CZ33<0.5,\"\",'2011 Survey responses'!CZ33)","v":2},{"$f":"IF('2011 Survey responses'!DA33<0.5,\"\",'2011 Survey responses'!DA33)","v":2},{"$f":"IF('2011 Survey responses'!DB33<0.5,\"\",'2011 Survey responses'!DB33)","v":2},{"$f":"IF('2011 Survey responses'!DC33<0.5,\"\",'2011 Survey responses'!DC33)","v":3},{"$f":"IF('2011 Survey responses'!DD33<0.5,\"\",'2011 Survey responses'!DD33)","v":2},{"$f":"IF('2011 Survey responses'!DE33<0.5,\"\",'2011 Survey responses'!DE33)","v":2},{"$f":"IF('2011 Survey responses'!DF33<0.5,\"\",'2011 Survey responses'!DF33)","v":2},{"$f":"IF('2011 Survey responses'!DG33<0.5,\"\",'2011 Survey responses'!DG33)","v":4},{"$f":"IF('2011 Survey responses'!DH33<0.5,\"\",'2011 Survey responses'!DH33)","v":2},{"$f":"IF('2011 Survey responses'!DI33<0.5,\"\",'2011 Survey responses'!DI33)","v":2},{"$f":"IF('2011 Survey responses'!DJ33<0.5,\"\",'2011 Survey responses'!DJ33)","v":2},{"$f":"IF('2011 Survey responses'!DK33<0.5,\"\",'2011 Survey responses'!DK33)","v":2},{"$f":"IF('2011 Survey responses'!DL33<0.5,\"\",'2011 Survey responses'!DL33)","v":2},{"$f":"IF('2011 Survey responses'!DU33=4,4,IF('2011 Survey responses'!DU33=5,4,\"\"))","v":4},{"$f":"IF('2011 Survey responses'!DV33=4,3,IF('2011 Survey responses'!DV33=5,3,\"\"))","v":3},2,{"$f":"IF(CQ33=2,CQ33,IF(CO33=4,CO33,IF(CP33=3,CP33,IF('2011 Survey responses'!GT33=1,1,\"\"))))","v":2},{"$f":"IF('2011 Survey responses'!DO33<0.5,\"\",'2011 Survey responses'!DO33)","v":3},{"$f":"IF('2011 Survey responses'!DP33<0.5,\"\",'2011 Survey responses'!DP33)","v":4},{"$f":"IF('2011 Survey responses'!DQ33<0.5,\"\",'2011 Survey responses'!DQ33)","v":3},{"$f":"IF('2011 Survey responses'!DR33<0.5,\"\",'2011 Survey responses'!DR33)","v":4},{"$f":"IF('2011 Survey responses'!DS33<0.5,\"\",'2011 Survey responses'!DS33)","v":3},{"$f":"IF('2011 Survey responses'!DT33<0.5,\"\",'2011 Survey responses'!DT33)","v":3},{"$f":"IF('2011 Survey responses'!DU33<0.5,\"\",'2011 Survey responses'!DU33)","v":4},{"$f":"IF('2011 Survey responses'!DV33<0.5,\"\",'2011 Survey responses'!DV33)","v":4},{"$f":"IF('2011 Survey responses'!DW33<0.5,\"\",'2011 Survey responses'!DW33)","v":3},{"$f":"IF('2011 Survey responses'!DX33<0.5,\"\",'2011 Survey responses'!DX33)","v":3},{"$f":"IF('2011 Survey responses'!DY33<0.5,\"\",'2011 Survey responses'!DY33)","v":4},{"$f":"IF('2011 Survey responses'!DZ33<0.5,\"\",'2011 Survey responses'!DZ33)","v":3},{"$f":"IF('2011 Survey responses'!EA33<0.5,\"\",'2011 Survey responses'!EA33)","v":5},{"$f":"IF('2011 Survey responses'!EB33<0.5,\"\",'2011 Survey responses'!EB33)","v":3},{"$f":"IF('2011 Survey responses'!EC33<0.5,\"\",'2011 Survey responses'!EC33)","v":1},{"$f":"IF('2011 Survey responses'!ED33<0.5,\"\",'2011 Survey responses'!ED33)","v":5},{"$f":"IF('2011 Survey responses'!EE33<0.5,\"\",'2011 Survey responses'!EE33)","v":4},{"$f":"IF('2011 Survey responses'!EF33<0.5,\"\",'2011 Survey responses'!EF33)","v":4},{"$f":"IF('2011 Survey responses'!EG33<0.5,\"\",'2011 Survey responses'!EG33)","v":4},{"$f":"IF('2011 Survey responses'!EH33<0.5,\"\",'2011 Survey responses'!EH33)","v":4},{"$f":"IF('2011 Survey responses'!EI33<0.5,\"\",'2011 Survey responses'!EI33)","v":4},{"$f":"IF('2011 Survey responses'!EJ33<0.5,\"\",'2011 Survey responses'!EJ33)","v":4},{"$f":"IF('2011 Survey responses'!EK33<0.5,\"\",'2011 Survey responses'!EK33)","v":4},{"$f":"IF('2011 Survey responses'!EL33<0.5,\"\",'2011 Survey responses'!EL33)","v":5},{"$f":"IF('2011 Survey responses'!EM33<0.5,\"\",'2011 Survey responses'!EM33)","v":2},{"$f":"IF('2011 Survey responses'!EN33<0.5,\"\",'2011 Survey responses'!EN33)","v":2},{"$f":"IF('2011 Survey responses'!EO33<0.5,\"\",'2011 Survey responses'!EO33)","v":2},{"$f":"IF('2011 Survey responses'!EP33<0.5,\"\",'2011 Survey responses'!EP33)","v":2},{"$f":"IF(('2011 Survey responses'!EW33+'2011 Survey responses'!EX33)>=2,AVERAGE('2011 Survey responses'!EW33,'2011 Survey responses'!EY33),\"\")","v":4},{"$f":"IF('2011 Survey responses'!EX33<0.5,\"\",'2011 Survey responses'!EX33)","v":3},{"$f":"IF('2011 Survey responses'!EZ33<0.5,\"\",'2011 Survey responses'!EZ33)","v":3},{"$f":"IF('2011 Survey responses'!FB33<0.5,\"\",'2011 Survey responses'!FB33)","v":4},{"$f":"IF('2011 Survey responses'!FD33<0.5,\"\",'2011 Survey responses'!FD33)","v":3},{"$f":"IF('2011 Survey responses'!FC33<0.5,\"\",'2011 Survey responses'!FC33)","v":3},{"$f":"IF(('2011 Survey responses'!EM33+'2011 Survey responses'!EN33)>=2,AVERAGE('2011 Survey responses'!EM33,'2011 Survey responses'!EN33),\"\")","v":2},{"$f":"IF('2011 Survey responses'!ES33<0.5,\"\",'2011 Survey responses'!ES33)","v":2},{"$f":"IF(('2011 Survey responses'!ET33+'2011 Survey responses'!EU33)>=2,AVERAGE('2011 Survey responses'!ET33,'2011 Survey responses'!EU33),\"\")","v":2},{"$f":"IF('2011 Survey responses'!EV33<0.5,\"\",'2011 Survey responses'!EV33)","v":3},{"$f":"IF('2011 Survey responses'!FA33<0.5,\"\",'2011 Survey responses'!FA33)","v":4},{"$f":"IF('2011 Survey responses'!ER33<0.5,\"\",'2011 Survey responses'!ER33)","v":2},{"$f":"IF(('2011 Survey responses'!EO33+'2011 Survey responses'!EP33)>=2,AVERAGE('2011 Survey responses'!EO33,'2011 Survey responses'!EP33),\"\")","v":2},{"$f":"IF('2011 Survey responses'!EQ33<0.5,\"\",'2011 Survey responses'!EQ33)","v":1},{"$f":"IF('2011 Survey responses'!ET33<0.5,\"\",'2011 Survey responses'!ET33)","v":2},{"$f":"IF('2011 Survey responses'!EU33<0.5,\"\",'2011 Survey responses'!EU33)","v":2},{"$f":"IF('2011 Survey responses'!EW33<0.5,\"\",'2011 Survey responses'!EW33)","v":4},{"$f":"IF('2011 Survey responses'!EY33<0.5,\"\",'2011 Survey responses'!EY33)","v":4},{"$f":"IF('2011 Survey responses'!FU33<0.5,\"\",'2011 Survey responses'!FU33)","v":4},{"$f":"IF(('2011 Survey responses'!FL33+'2011 Survey responses'!FM33)>=2,AVERAGE('2011 Survey responses'!FL33,'2011 Survey responses'!FM33),\"\")","v":4},{"$f":"IF(('2011 Survey responses'!FO33+'2011 Survey responses'!FQ33)>=2,AVERAGE('2011 Survey responses'!FO33,'2011 Survey responses'!FQ33),\"\")","v":4},{"$f":"IF('2011 Survey responses'!FJ33<0.5,\"\",'2011 Survey responses'!FJ33)","v":4},{"$f":"IF('2011 Survey responses'!FT33<0.5,\"\",'2011 Survey responses'!FT33)","v":4},{"$f":"IF('2011 Survey responses'!FR33<0.5,\"\",'2011 Survey responses'!FR33)","v":3},{"$f":"IF('2011 Survey responses'!FK33<0.5,\"\",'2011 Survey responses'!FK33)","v":4},{"$f":"IF('2011 Survey responses'!FP33<0.5,\"\",'2011 Survey responses'!FP33)","v":4},{"$f":"IF('2011 Survey responses'!FN33<0.5,\"\",'2011 Survey responses'!FN33)","v":4},{"$f":"IF(('2011 Survey responses'!FE33+'2011 Survey responses'!FF33)>=2,AVERAGE('2011 Survey responses'!FE33,'2011 Survey responses'!FF33),\"\")","v":3.5},{"$f":"IF('2011 Survey responses'!FS33<0.5,\"\",'2011 Survey responses'!FS33)","v":4},{"$f":"IF('2011 Survey responses'!FV33<0.5,\"\",'2011 Survey responses'!FV33)","v":4},{"$f":"IF(('2011 Survey responses'!FG33+'2011 Survey responses'!FH33)>=2,AVERAGE('2011 Survey responses'!FG33,'2011 Survey responses'!FH33),\"\")","v":3},{"$f":"IF('2011 Survey responses'!FI33<0.5,\"\",'2011 Survey responses'!FI33)","v":3},{"$f":"IF('2011 Survey responses'!FE33<0.5,\"\",'2011 Survey responses'!FE33)","v":3},{"$f":"IF('2011 Survey responses'!FF33<0.5,\"\",'2011 Survey responses'!FF33)","v":4},{"$f":"IF('2011 Survey responses'!FG33<0.5,\"\",'2011 Survey responses'!FG33)","v":3},{"$f":"IF('2011 Survey responses'!FH33<0.5,\"\",'2011 Survey responses'!FH33)","v":3},{"$f":"IF('2011 Survey responses'!FL33<0.5,\"\",'2011 Survey responses'!FL33)","v":4},{"$f":"IF('2011 Survey responses'!FM33<0.5,\"\",'2011 Survey responses'!FM33)","v":4},{"$f":"IF('2011 Survey responses'!FO33<0.5,\"\",'2011 Survey responses'!FO33)","v":4},{"$f":"IF('2011 Survey responses'!FQ33<0.5,\"\",'2011 Survey responses'!FQ33)","v":4}]
["Cape Verde",{"$f":"IF(SUM(F34)<1,\"\",AVERAGEIF('2011 Survey responses'!B34:CP34,\">1\"))","v":3.9550561797752808},{"$f":"IF(SUM(F34)<1,\"\",AVERAGEIF('2011 Survey responses'!B34:AO34,\">1\"))","v":3.736842105263158},{"$f":"IF(SUM(F34)<1,\"\",AVERAGEIF('2011 Survey responses'!B34:BV34,\">1\"))","v":3.9130434782608696},{"$f":"IF(SUM(F34)<1,\"\",AVERAGEIF('2011 Survey responses'!V34:BV34,\">1\"))","v":3.9},{"$f":"IF(SUM('2011 Survey responses'!B34:U34)<1,\"\",(AVERAGEIFS('2011 Survey responses'!B34:U34,'2011 Survey responses'!B34:U34,\">1\")))","v":3.9473684210526314},{"$f":"IF(SUM('2011 Survey responses'!B34:H34)<1,\"\",(AVERAGEIFS('2011 Survey responses'!B34:H34,'2011 Survey responses'!B34:H34,\">1\")))","v":4.5714285714285712},{"$f":"IF(SUM('2011 Survey responses'!I34:S34)<1,\"\",(AVERAGEIFS('2011 Survey responses'!I34:S34,'2011 Survey responses'!I34:S34,\">1\")))","v":3.5454545454545454},{"$f":"IF(SUM('2011 Survey responses'!T34:U34)<2.1,\"\",(AVERAGEIFS('2011 Survey responses'!T34:U34,'2011 Survey responses'!T34:U34,\">1\")))","v":4},{"$f":"IF(SUM('2011 Survey responses'!B34:C34)<2.1,\"\",((SUMIF('2011 Survey responses'!B34:C34,\">1\")+SUMIF('2011 Survey responses'!F34,\">1\"))/(COUNTIF('2011 Survey responses'!B34:C34,\">1\")+COUNTIF('2011 Survey responses'!F34,\">1\"))))","v":4.666666666666667},{"$f":"IF(SUM('2011 Survey responses'!D34:E34)<2.1,\"\",(AVERAGEIFS('2011 Survey responses'!D34:E34,'2011 Survey responses'!D34:E34,\">1\")))","v":5},{"$f":"IF(('2011 Survey responses'!B34+'2011 Survey responses'!D34)<2.1,\"\",((SUMIF('2011 Survey responses'!B34,\">1\")+SUMIF('2011 Survey responses'!D34,\">1\")+SUMIF('2011 Survey responses'!F34,\">1\")+SUMIF('2011 Survey responses'!K34,\">1\"))/(COUNTIF('2011 Survey responses'!B34,\">1\")+COUNTIF('2011 Survey responses'!D34,\">1\")+COUNTIF('2011 Survey responses'!F34,\">1\")+COUNTIF('2011 Survey responses'!K34,\">1\"))))","v":4.5},{"$f":"IF(SUM('2011 Survey responses'!G34:H34)<2.1,\"\",(AVERAGEIFS('2011 Survey responses'!G34:H34,'2011 Survey responses'!G34:H34,\">1\")))","v":4},{"$f":"IF(SUM('2011 Survey responses'!F34:G34)<1.5,\"\",MAX('2011 Survey responses'!F34,'2011 Survey responses'!G34))","v":4},{"$f":"IF(SUM('2011 Survey responses'!G34:H34)<1,\"\",MAX('2011 Survey responses'!G34,'2011 Survey responses'!H34))","v":4},{"$f":"IF(SUM('2011 Survey responses'!I34:L34)<4.1,\"\",(AVERAGEIFS('2011 Survey responses'!I34:L34,'2011 Survey responses'!I34:L34,\">1\")))","v":4},{"$f":"IF(SUM('2011 Survey responses'!M34:S34)<4.1,\"\",(AVERAGEIFS('2011 Survey responses'!M34:S34,'2011 Survey responses'!M34:S34,\">1\")))","v":3.2857142857142856},{"$f":"IF(SUM('2011 Survey responses'!T34:U34)<2.1,\"\",(AVERAGEIFS('2011 Survey responses'!T34:U34,'2011 Survey responses'!T34:U34,\">1\")))","v":4},{"$f":"IF(SUM('2011 Survey responses'!V34:AO34)<1,\"\",(AVERAGEIFS('2011 Survey responses'!V34:AO34,'2011 Survey responses'!V34:AO34,\">1\")))","v":3.5263157894736841},{"$f":"IF(SUM('2011 Survey responses'!V34:AA34)<1,\"\",(AVERAGEIFS('2011 Survey responses'!V34:AA34,'2011 Survey responses'!V34:AA34,\">1\")))","v":4.2},{"$f":"IF(SUM('2011 Survey responses'!AB34:AH34)<1,\"\",(AVERAGEIFS('2011 Survey responses'!AB34:AH34,'2011 Survey responses'!AB34:AH34,\">1\")))","v":4},{"$f":"IF(SUM('2011 Survey responses'!AI34:AO34)<1,\"\",(AVERAGEIFS('2011 Survey responses'!AI34:AO34,'2011 Survey responses'!AI34:AO34,\">1\")))","v":2.5714285714285716},{"$f":"IF(('2011 Survey responses'!Y34+'2011 Survey responses'!AI34+'2011 Survey responses'!AK34)<3.1,\"\",((SUMIF('2011 Survey responses'!Y34,\">1\")+SUMIF('2011 Survey responses'!AI34,\">1\")+SUMIF('2011 Survey responses'!AK34,\">1\")+SUMIF('2011 Survey responses'!AM34,\">1\"))/(COUNTIF('2011 Survey responses'!Y34,\">1\")+COUNTIF('2011 Survey responses'!AI34,\">1\")+COUNTIF('2011 Survey responses'!AK34,\">1\")+COUNTIF('2011 Survey responses'!AM34,\">1\"))))","v":3.25},{"$f":"IF(('2011 Survey responses'!W34)<1.1,\"\",('2011 Survey responses'!W34))","v":5},{"$f":"IF(('2011 Survey responses'!Y34)<1.1,\"\",('2011 Survey responses'!Y34))","v":5},{"$f":"IF(('2011 Survey responses'!Z34)<1.1,\"\",('2011 Survey responses'!Z34))","v":""},{"$f":"IF(('2011 Survey responses'!V34+'2011 Survey responses'!X34+'2011 Survey responses'!AA34)<3.1,\"\",((SUMIF('2011 Survey responses'!V34,\">1\")+SUMIF('2011 Survey responses'!X34,\">1\")+SUMIF('2011 Survey responses'!AA34,\">1\"))/(COUNTIF('2011 Survey responses'!V34,\">1\")+COUNTIF('2011 Survey responses'!X34,\">1\")+COUNTIF('2011 Survey responses'!AA34,\">1\"))))","v":3.6666666666666665},{"$f":"IF(('2011 Survey responses'!V34+'2011 Survey responses'!Y34+'2011 Survey responses'!AA34)<3.1,\"\",((SUMIF('2011 Survey responses'!V34,\">1\")+SUMIF('2011 Survey responses'!Y34,\">1\")+SUMIF('2011 Survey responses'!AA34,\">1\"))/(COUNTIF('2011 Survey responses'!V34,\">1\")+COUNTIF('2011 Survey responses'!Y34,\">1\")+COUNTIF('2011 Survey responses'!AA34,\">1\"))))","v":4.666666666666667},{"$f":"IF(SUM('2011 Survey responses'!AB34:AH34)<1,\"\",(AVERAGEIFS('2011 Survey responses'!AB34:AH34,'2011 Survey responses'!AB34:AH34,\">1\")))","v":4},{"$f":"IF(SUM('2011 Survey responses'!AI34:AO34)<7.1,\"\",(AVERAGEIFS('2011 Survey responses'!AI34:AO34,'2011 Survey responses'!AI34:AO34,\">1\")))","v":2.5714285714285716},{"$f":"IF(('2011 Survey responses'!AH34)<1.1,\"\",('2011 Survey responses'!AH34))","v":4},{"$f":"IF(SUM('2011 Survey responses'!AP34:BV34)<1,\"\",(AVERAGEIFS('2011 Survey responses'!AP34:BV34,'2011 Survey responses'!AP34:BV34,\">1\")))","v":4.129032258064516},{"$f":"IF(SUM('2011 Survey responses'!AP34:AS34)<4.1,\"\",(AVERAGEIFS('2011 Survey responses'!AP34:AS34,'2011 Survey responses'!AP34:AS34,\">1\")))","v":4.5},{"$f":"IF(SUM('2011 Survey responses'!AT34:BF34)<1,\"\",(AVERAGEIFS('2011 Survey responses'!AT34:BF34,'2011 Survey responses'!AT34:BF34,\">1\")))","v":4.416666666666667},{"$f":"IF(SUM('2011 Survey responses'!BG34:BO34)<1,\"\",(AVERAGEIFS('2011 Survey responses'!BG34:BO34,'2011 Survey responses'!BG34:BO34,\">1\")))","v":4.625},{"$f":"IF(SUM('2011 Survey responses'!BP34:BS34)<1,\"\",(AVERAGEIFS('2011 Survey responses'!BP34:BS34,'2011 Survey responses'!BP34:BS34,\">1\")))","v":2.75},{"$f":"IF(SUM('2011 Survey responses'!BT34:BV34)<3.1,\"\",(AVERAGEIFS('2011 Survey responses'!BT34:BV34,'2011 Survey responses'!BT34:BV34,\">1\")))","v":3},{"$f":"IF(('2011 Survey responses'!AQ34+'2011 Survey responses'!AR34+'2011 Survey responses'!BG34)<3.1,\"\",((SUMIF('2011 Survey responses'!AQ34,\">1\")+SUMIF('2011 Survey responses'!AR34,\">1\")+SUMIF('2011 Survey responses'!BG34,\">1\"))/(COUNTIF('2011 Survey responses'!AQ34,\">1\")+COUNTIF('2011 Survey responses'!AR34,\">1\")+COUNTIF('2011 Survey responses'!BG34,\">1\"))))","v":4.666666666666667},{"$f":"IF(SUM('2011 Survey responses'!AP34:AS34)<4.1,\"\",(AVERAGEIFS('2011 Survey responses'!AP34:AS34,'2011 Survey responses'!AP34:AS34,\">1\")))","v":4.5},{"$f":"IF(('2011 Survey responses'!AU34+'2011 Survey responses'!AX34+'2011 Survey responses'!BA34+'2011 Survey responses'!BC34+'2011 Survey responses'!BD34)<5.1,\"\",(SUMIF('2011 Survey responses'!AU34,\">1\")+SUMIF('2011 Survey responses'!AX34,\">1\")+SUMIF('2011 Survey responses'!BA34,\">1\")+SUMIF('2011 Survey responses'!BC34,\">1\")+SUMIF('2011 Survey responses'!BD34,\">1\"))/(COUNTIF('2011 Survey responses'!AU34,\">1\")+COUNTIF('2011 Survey responses'!AX34,\">1\")+COUNTIF('2011 Survey responses'!BA34,\">1\")+COUNTIF('2011 Survey responses'!BC34,\">1\")+COUNTIF('2011 Survey responses'!BD34,\">1\")))","v":4.4000000000000004},{"$f":"IF(('2011 Survey responses'!AT34)<1.1,\"\",('2011 Survey responses'!AT34))","v":5},{"$f":"IF(SUM('2011 Survey responses'!AV34:AW34)<2.1,\"\",(AVERAGEIFS('2011 Survey responses'!AV34:AW34,'2011 Survey responses'!AV34:AW34,\">1\")))","v":4.5},{"$f":"IF(('2011 Survey responses'!AW34+'2011 Survey responses'!AY34)<2.1,\"\",(SUMIF('2011 Survey responses'!AW34,\">1\")+SUMIF('2011 Survey responses'!AY34,\">1\"))/(COUNTIF('2011 Survey responses'!AW34,\">1\")+COUNTIF('2011 Survey responses'!AY34,\">1\")))","v":5},{"$f":"IF(('2011 Survey responses'!AZ34)<1.1,\"\",('2011 Survey responses'!AZ34))","v":5},5,5,3,4,{"$f":"IF(('2011 Survey responses'!BE34)<1.1,\"\",('2011 Survey responses'!BE34))","v":""},{"$f":"IF(('2011 Survey responses'!AY34+'2011 Survey responses'!BB34+'2011 Survey responses'!BF34)<3.1,\"\",(SUMIF('2011 Survey responses'!AY34,\">1\")+SUMIF('2011 Survey responses'!BB34,\">1\")+SUMIF('2011 Survey responses'!BF34,\">1\"))/(COUNTIF('2011 Survey responses'!AY34,\">1\")+COUNTIF('2011 Survey responses'!BB34,\">1\")+COUNTIF('2011 Survey responses'!BF34,\">1\")))","v":4},3.6875,{"$f":"IF(SUM('2011 Survey responses'!BT34:BV34)<3.1,\"\",(AVERAGEIFS('2011 Survey responses'!BT34:BV34,'2011 Survey responses'!BT34:BV34,\">1\")))","v":3},{"$f":"IF(SUM('2011 Survey responses'!BW34:CP34)<1,\"\",(AVERAGEIFS('2011 Survey responses'!BW34:CP34,'2011 Survey responses'!BW34:CP34,\">1\")))","v":4.0999999999999996},{"$f":"IF(SUM('2011 Survey responses'!BW34:CF34)<1,\"\",(AVERAGEIFS('2011 Survey responses'!BW34:CF34,'2011 Survey responses'!BW34:CF34,\">1\")))","v":4.5},{"$f":"IF(SUM('2011 Survey responses'!CG34:CP34)<1,\"\",(AVERAGEIFS('2011 Survey responses'!CG34:CP34,'2011 Survey responses'!CG34:CP34,\">1\")))","v":3.7},{"$f":"IF(SUM('2011 Survey responses'!BX34:CF34)<1,\"\",(AVERAGEIFS('2011 Survey responses'!BX34:CF34,'2011 Survey responses'!BX34:CF34,\">1\")))","v":4.4444444444444446},{"$f":"IF(SUM('2011 Survey responses'!CH34:CP34)<1,\"\",(AVERAGEIFS('2011 Survey responses'!CH34:CP34,'2011 Survey responses'!CH34:CP34,\">1\")))","v":3.5555555555555554},{"$f":"IF(SUM('2011 Survey responses'!BW34:CP34)<1,\"\",(AVERAGEIFS('2011 Survey responses'!BW34:CP34,'2011 Survey responses'!BW34:CP34,\">1\")))","v":4.0999999999999996},{"$f":"IF(('2011 Survey responses'!BW34+'2011 Survey responses'!CG34)<2.1,\"\",(SUMIF('2011 Survey responses'!BW34,\">1\")+SUMIF('2011 Survey responses'!CG34,\">1\"))/(COUNTIF('2011 Survey responses'!BW34,\">1\")+COUNTIF('2011 Survey responses'!CG34,\">1\")))","v":5},{"$f":"IF(('2011 Survey responses'!BX34+'2011 Survey responses'!CH34)<2.1,\"\",(SUMIF('2011 Survey responses'!BX34,\">1\")+SUMIF('2011 Survey responses'!CH34,\">1\"))/(COUNTIF('2011 Survey responses'!BX34,\">1\")+COUNTIF('2011 Survey responses'!CH34,\">1\")))","v":5},{"$f":"IF(('2011 Survey responses'!BY34+'2011 Survey responses'!CI34)<2.1,\"\",(SUMIF('2011 Survey responses'!BY34,\">1\")+SUMIF('2011 Survey responses'!CI34,\">1\"))/(COUNTIF('2011 Survey responses'!BY34,\">1\")+COUNTIF('2011 Survey responses'!CI34,\">1\")))","v":3},{"$f":"IF('2011 Survey responses'!CQ34<0.5,\"\",'2011 Survey responses'!CQ34)","v":4},{"$f":"IF('2011 Survey responses'!CR34<0.5,\"\",'2011 Survey responses'!CR34)","v":4},{"$f":"IF('2011 Survey responses'!CS34<0.5,\"\",'2011 Survey responses'!CS34)","v":4},{"$f":"IF('2011 Survey responses'!CT34<0.5,\"\",'2011 Survey responses'!CT34)","v":4},{"$f":"IF('2011 Survey responses'!CU34<0.5,\"\",'2011 Survey responses'!CU34)","v":4},{"$f":"IF('2011 Survey responses'!CV34<0.5,\"\",'2011 Survey responses'!CV34)","v":5},{"$f":"IF(SUM('2011 Survey responses'!CW34:DL34)<1,\"\",(AVERAGE('2011 Survey responses'!CW34:DL34)))","v":3.3125},{"$f":"IF(SUM('2011 Survey responses'!CW34:CZ34)<1,\"\",(AVERAGE('2011 Survey responses'!CW34:CZ34)))","v":3.25},{"$f":"IF(SUM('2011 Survey responses'!DA34:DD34)<1,\"\",(AVERAGE('2011 Survey responses'!DA34:DD34)))","v":3},{"$f":"IF(SUM('2011 Survey responses'!DE34:DH34)<1,\"\",(AVERAGE('2011 Survey responses'!DE34:DH34)))","v":4},{"$f":"IF(SUM('2011 Survey responses'!DI34:DL34)<1,\"\",(AVERAGE('2011 Survey responses'!DI34:DL34)))","v":3},{"$f":"IF(('2011 Survey responses'!CW34+'2011 Survey responses'!DA34+'2011 Survey responses'!DE34+'2011 Survey responses'!DI34)<1,\"\",AVERAGE('2011 Survey responses'!CW34,'2011 Survey responses'!DA34,'2011 Survey responses'!DE34,'2011 Survey responses'!DI34))","v":3.5},{"$f":"IF(('2011 Survey responses'!CX34+'2011 Survey responses'!DB34+'2011 Survey responses'!DF34+'2011 Survey responses'!DJ34)<1,\"\",AVERAGE('2011 Survey responses'!CX34,'2011 Survey responses'!DB34,'2011 Survey responses'!DF34,'2011 Survey responses'!DJ34))","v":3.25},{"$f":"IF(('2011 Survey responses'!CY34+'2011 Survey responses'!DC34+'2011 Survey responses'!DG34+'2011 Survey responses'!DK34)<1,\"\",AVERAGE('2011 Survey responses'!CY34,'2011 Survey responses'!DC34,'2011 Survey responses'!DG34,'2011 Survey responses'!DK34))","v":3.25},{"$f":"IF(('2011 Survey responses'!CZ34+'2011 Survey responses'!DD34+'2011 Survey responses'!DH34+'2011 Survey responses'!DL34)<1,\"\",AVERAGE('2011 Survey responses'!CZ34,'2011 Survey responses'!DD34,'2011 Survey responses'!DH34,'2011 Survey responses'!DL34))","v":3.25},{"$f":"IF('2011 Survey responses'!CW34<0.5,\"\",'2011 Survey responses'!CW34)","v":4},{"$f":"IF('2011 Survey responses'!CX34<0.5,\"\",'2011 Survey responses'!CX34)","v":3},{"$f":"IF('2011 Survey responses'!CY34<0.5,\"\",'2011 Survey responses'!CY34)","v":3},{"$f":"IF('2011 Survey responses'!CZ34<0.5,\"\",'2011 Survey responses'!CZ34)","v":3},{"$f":"IF('2011 Survey responses'!DA34<0.5,\"\",'2011 Survey responses'!DA34)","v":3},{"$f":"IF('2011 Survey responses'!DB34<0.5,\"\",'2011 Survey responses'!DB34)","v":3},{"$f":"IF('2011 Survey responses'!DC34<0.5,\"\",'2011 Survey responses'!DC34)","v":3},{"$f":"IF('2011 Survey responses'!DD34<0.5,\"\",'2011 Survey responses'!DD34)","v":3},{"$f":"IF('2011 Survey responses'!DE34<0.5,\"\",'2011 Survey responses'!DE34)","v":4},{"$f":"IF('2011 Survey responses'!DF34<0.5,\"\",'2011 Survey responses'!DF34)","v":4},{"$f":"IF('2011 Survey responses'!DG34<0.5,\"\",'2011 Survey responses'!DG34)","v":4},{"$f":"IF('2011 Survey responses'!DH34<0.5,\"\",'2011 Survey responses'!DH34)","v":4},{"$f":"IF('2011 Survey responses'!DI34<0.5,\"\",'2011 Survey responses'!DI34)","v":3},{"$f":"IF('2011 Survey responses'!DJ34<0.5,\"\",'2011 Survey responses'!DJ34)","v":3},{"$f":"IF('2011 Survey responses'!DK34<0.5,\"\",'2011 Survey responses'!DK34)","v":3},{"$f":"IF('2011 Survey responses'!DL34<0.5,\"\",'2011 Survey responses'!DL34)","v":3},{"$f":"IF('2011 Survey responses'!DU34=4,4,IF('2011 Survey responses'!DU34=5,4,\"\"))","v":""},{"$f":"IF('2011 Survey responses'!DV34=4,3,IF('2011 Survey responses'!DV34=5,3,\"\"))","v":3},"",{"$f":"IF(CQ34=2,CQ34,IF(CO34=4,CO34,IF(CP34=3,CP34,IF('2011 Survey responses'!GT34=1,1,\"\"))))","v":3},{"$f":"IF('2011 Survey responses'!DO34<0.5,\"\",'2011 Survey responses'!DO34)","v":4},{"$f":"IF('2011 Survey responses'!DP34<0.5,\"\",'2011 Survey responses'!DP34)","v":5},{"$f":"IF('2011 Survey responses'!DQ34<0.5,\"\",'2011 Survey responses'!DQ34)","v":4},{"$f":"IF('2011 Survey responses'!DR34<0.5,\"\",'2011 Survey responses'!DR34)","v":2},{"$f":"IF('2011 Survey responses'!DS34<0.5,\"\",'2011 Survey responses'!DS34)","v":3},{"$f":"IF('2011 Survey responses'!DT34<0.5,\"\",'2011 Survey responses'!DT34)","v":4},{"$f":"IF('2011 Survey responses'!DU34<0.5,\"\",'2011 Survey responses'!DU34)","v":3},{"$f":"IF('2011 Survey responses'!DV34<0.5,\"\",'2011 Survey responses'!DV34)","v":4},{"$f":"IF('2011 Survey responses'!DW34<0.5,\"\",'2011 Survey responses'!DW34)","v":4},{"$f":"IF('2011 Survey responses'!DX34<0.5,\"\",'2011 Survey responses'!DX34)","v":4},{"$f":"IF('2011 Survey responses'!DY34<0.5,\"\",'2011 Survey responses'!DY34)","v":4},{"$f":"IF('2011 Survey responses'!DZ34<0.5,\"\",'2011 Survey responses'!DZ34)","v":4},{"$f":"IF('2011 Survey responses'!EA34<0.5,\"\",'2011 Survey responses'!EA34)","v":4},{"$f":"IF('2011 Survey responses'!EB34<0.5,\"\",'2011 Survey responses'!EB34)","v":5},{"$f":"IF('2011 Survey responses'!EC34<0.5,\"\",'2011 Survey responses'!EC34)","v":4},{"$f":"IF('2011 Survey responses'!ED34<0.5,\"\",'2011 Survey responses'!ED34)","v":3},{"$f":"IF('2011 Survey responses'!EE34<0.5,\"\",'2011 Survey responses'!EE34)","v":4},{"$f":"IF('2011 Survey responses'!EF34<0.5,\"\",'2011 Survey responses'!EF34)","v":5},{"$f":"IF('2011 Survey responses'!EG34<0.5,\"\",'2011 Survey responses'!EG34)","v":4},{"$f":"IF('2011 Survey responses'!EH34<0.5,\"\",'2011 Survey responses'!EH34)","v":4},{"$f":"IF('2011 Survey responses'!EI34<0.5,\"\",'2011 Survey responses'!EI34)","v":4},{"$f":"IF('2011 Survey responses'!EJ34<0.5,\"\",'2011 Survey responses'!EJ34)","v":4},{"$f":"IF('2011 Survey responses'!EK34<0.5,\"\",'2011 Survey responses'!EK34)","v":4},{"$f":"IF('2011 Survey responses'!EL34<0.5,\"\",'2011 Survey responses'!EL34)","v":4},{"$f":"IF('2011 Survey responses'!EM34<0.5,\"\",'2011 Survey responses'!EM34)","v":4},{"$f":"IF('2011 Survey responses'!EN34<0.5,\"\",'2011 Survey responses'!EN34)","v":4},{"$f":"IF('2011 Survey responses'!EO34<0.5,\"\",'2011 Survey responses'!EO34)","v":1},{"$f":"IF('2011 Survey responses'!EP34<0.5,\"\",'2011 Survey responses'!EP34)","v":1},{"$f":"IF(('2011 Survey responses'!EW34+'2011 Survey responses'!EX34)>=2,AVERAGE('2011 Survey responses'!EW34,'2011 Survey responses'!EY34),\"\")","v":3.5},{"$f":"IF('2011 Survey responses'!EX34<0.5,\"\",'2011 Survey responses'!EX34)","v":4},{"$f":"IF('2011 Survey responses'!EZ34<0.5,\"\",'2011 Survey responses'!EZ34)","v":3},{"$f":"IF('2011 Survey responses'!FB34<0.5,\"\",'2011 Survey responses'!FB34)","v":3},{"$f":"IF('2011 Survey responses'!FD34<0.5,\"\",'2011 Survey responses'!FD34)","v":3},{"$f":"IF('2011 Survey responses'!FC34<0.5,\"\",'2011 Survey responses'!FC34)","v":3},{"$f":"IF(('2011 Survey responses'!EM34+'2011 Survey responses'!EN34)>=2,AVERAGE('2011 Survey responses'!EM34,'2011 Survey responses'!EN34),\"\")","v":4},{"$f":"IF('2011 Survey responses'!ES34<0.5,\"\",'2011 Survey responses'!ES34)","v":3},{"$f":"IF(('2011 Survey responses'!ET34+'2011 Survey responses'!EU34)>=2,AVERAGE('2011 Survey responses'!ET34,'2011 Survey responses'!EU34),\"\")","v":3},{"$f":"IF('2011 Survey responses'!EV34<0.5,\"\",'2011 Survey responses'!EV34)","v":3},{"$f":"IF('2011 Survey responses'!FA34<0.5,\"\",'2011 Survey responses'!FA34)","v":3},{"$f":"IF('2011 Survey responses'!ER34<0.5,\"\",'2011 Survey responses'!ER34)","v":3},{"$f":"IF(('2011 Survey responses'!EO34+'2011 Survey responses'!EP34)>=2,AVERAGE('2011 Survey responses'!EO34,'2011 Survey responses'!EP34),\"\")","v":1},{"$f":"IF('2011 Survey responses'!EQ34<0.5,\"\",'2011 Survey responses'!EQ34)","v":3},{"$f":"IF('2011 Survey responses'!ET34<0.5,\"\",'2011 Survey responses'!ET34)","v":3},{"$f":"IF('2011 Survey responses'!EU34<0.5,\"\",'2011 Survey responses'!EU34)","v":3},{"$f":"IF('2011 Survey responses'!EW34<0.5,\"\",'2011 Survey responses'!EW34)","v":3},{"$f":"IF('2011 Survey responses'!EY34<0.5,\"\",'2011 Survey responses'!EY34)","v":4},{"$f":"IF('2011 Survey responses'!FU34<0.5,\"\",'2011 Survey responses'!FU34)","v":4},{"$f":"IF(('2011 Survey responses'!FL34+'2011 Survey responses'!FM34)>=2,AVERAGE('2011 Survey responses'!FL34,'2011 Survey responses'!FM34),\"\")","v":4},{"$f":"IF(('2011 Survey responses'!FO34+'2011 Survey responses'!FQ34)>=2,AVERAGE('2011 Survey responses'!FO34,'2011 Survey responses'!FQ34),\"\")","v":4},{"$f":"IF('2011 Survey responses'!FJ34<0.5,\"\",'2011 Survey responses'!FJ34)","v":4},{"$f":"IF('2011 Survey responses'!FT34<0.5,\"\",'2011 Survey responses'!FT34)","v":3},{"$f":"IF('2011 Survey responses'!FR34<0.5,\"\",'2011 Survey responses'!FR34)","v":3},{"$f":"IF('2011 Survey responses'!FK34<0.5,\"\",'2011 Survey responses'!FK34)","v":4},{"$f":"IF('2011 Survey responses'!FP34<0.5,\"\",'2011 Survey responses'!FP34)","v":4},{"$f":"IF('2011 Survey responses'!FN34<0.5,\"\",'2011 Survey responses'!FN34)","v":4},{"$f":"IF(('2011 Survey responses'!FE34+'2011 Survey responses'!FF34)>=2,AVERAGE('2011 Survey responses'!FE34,'2011 Survey responses'!FF34),\"\")","v":4},{"$f":"IF('2011 Survey responses'!FS34<0.5,\"\",'2011 Survey responses'!FS34)","v":3},{"$f":"IF('2011 Survey responses'!FV34<0.5,\"\",'2011 Survey responses'!FV34)","v":4},{"$f":"IF(('2011 Survey responses'!FG34+'2011 Survey responses'!FH34)>=2,AVERAGE('2011 Survey responses'!FG34,'2011 Survey responses'!FH34),\"\")","v":3},{"$f":"IF('2011 Survey responses'!FI34<0.5,\"\",'2011 Survey responses'!FI34)","v":4},{"$f":"IF('2011 Survey responses'!FE34<0.5,\"\",'2011 Survey responses'!FE34)","v":4},{"$f":"IF('2011 Survey responses'!FF34<0.5,\"\",'2011 Survey responses'!FF34)","v":4},{"$f":"IF('2011 Survey responses'!FG34<0.5,\"\",'2011 Survey responses'!FG34)","v":3},{"$f":"IF('2011 Survey responses'!FH34<0.5,\"\",'2011 Survey responses'!FH34)","v":3},{"$f":"IF('2011 Survey responses'!FL34<0.5,\"\",'2011 Survey responses'!FL34)","v":4},{"$f":"IF('2011 Survey responses'!FM34<0.5,\"\",'2011 Survey responses'!FM34)","v":4},{"$f":"IF('2011 Survey responses'!FO34<0.5,\"\",'2011 Survey responses'!FO34)","v":4},{"$f":"IF('2011 Survey responses'!FQ34<0.5,\"\",'2011 Survey responses'!FQ34)","v":4}]
["Central African Republic",{"$f":"IF(SUM(F35)<1,\"\",AVERAGEIF('2011 Survey responses'!B35:CP35,\">1\"))","v":""},{"$f":"IF(SUM(F35)<1,\"\",AVERAGEIF('2011 Survey responses'!B35:AO35,\">1\"))","v":""},{"$f":"IF(SUM(F35)<1,\"\",AVERAGEIF('2011 Survey responses'!B35:BV35,\">1\"))","v":""},{"$f":"IF(SUM(F35)<1,\"\",AVERAGEIF('2011 Survey responses'!V35:BV35,\">1\"))","v":""},{"$f":"IF(SUM('2011 Survey responses'!B35:U35)<1,\"\",(AVERAGEIFS('2011 Survey responses'!B35:U35,'2011 Survey responses'!B35:U35,\">1\")))","v":""},{"$f":"IF(SUM('2011 Survey responses'!B35:H35)<1,\"\",(AVERAGEIFS('2011 Survey responses'!B35:H35,'2011 Survey responses'!B35:H35,\">1\")))","v":""},{"$f":"IF(SUM('2011 Survey responses'!I35:S35)<1,\"\",(AVERAGEIFS('2011 Survey responses'!I35:S35,'2011 Survey responses'!I35:S35,\">1\")))","v":""},{"$f":"IF(SUM('2011 Survey responses'!T35:U35)<2.1,\"\",(AVERAGEIFS('2011 Survey responses'!T35:U35,'2011 Survey responses'!T35:U35,\">1\")))","v":""},{"$f":"IF(SUM('2011 Survey responses'!B35:C35)<2.1,\"\",((SUMIF('2011 Survey responses'!B35:C35,\">1\")+SUMIF('2011 Survey responses'!F35,\">1\"))/(COUNTIF('2011 Survey responses'!B35:C35,\">1\")+COUNTIF('2011 Survey responses'!F35,\">1\"))))","v":""},{"$f":"IF(SUM('2011 Survey responses'!D35:E35)<2.1,\"\",(AVERAGEIFS('2011 Survey responses'!D35:E35,'2011 Survey responses'!D35:E35,\">1\")))","v":""},{"$f":"IF(('2011 Survey responses'!B35+'2011 Survey responses'!D35)<2.1,\"\",((SUMIF('2011 Survey responses'!B35,\">1\")+SUMIF('2011 Survey responses'!D35,\">1\")+SUMIF('2011 Survey responses'!F35,\">1\")+SUMIF('2011 Survey responses'!K35,\">1\"))/(COUNTIF('2011 Survey responses'!B35,\">1\")+COUNTIF('2011 Survey responses'!D35,\">1\")+COUNTIF('2011 Survey responses'!F35,\">1\")+COUNTIF('2011 Survey responses'!K35,\">1\"))))","v":""},{"$f":"IF(SUM('2011 Survey responses'!G35:H35)<2.1,\"\",(AVERAGEIFS('2011 Survey responses'!G35:H35,'2011 Survey responses'!G35:H35,\">1\")))","v":""},{"$f":"IF(SUM('2011 Survey responses'!F35:G35)<1.5,\"\",MAX('2011 Survey responses'!F35,'2011 Survey responses'!G35))","v":""},{"$f":"IF(SUM('2011 Survey responses'!G35:H35)<1,\"\",MAX('2011 Survey responses'!G35,'2011 Survey responses'!H35))","v":""},{"$f":"IF(SUM('2011 Survey responses'!I35:L35)<4.1,\"\",(AVERAGEIFS('2011 Survey responses'!I35:L35,'2011 Survey responses'!I35:L35,\">1\")))","v":""},{"$f":"IF(SUM('2011 Survey responses'!M35:S35)<4.1,\"\",(AVERAGEIFS('2011 Survey responses'!M35:S35,'2011 Survey responses'!M35:S35,\">1\")))","v":""},{"$f":"IF(SUM('2011 Survey responses'!T35:U35)<2.1,\"\",(AVERAGEIFS('2011 Survey responses'!T35:U35,'2011 Survey responses'!T35:U35,\">1\")))","v":""},{"$f":"IF(SUM('2011 Survey responses'!V35:AO35)<1,\"\",(AVERAGEIFS('2011 Survey responses'!V35:AO35,'2011 Survey responses'!V35:AO35,\">1\")))","v":""},{"$f":"IF(SUM('2011 Survey responses'!V35:AA35)<1,\"\",(AVERAGEIFS('2011 Survey responses'!V35:AA35,'2011 Survey responses'!V35:AA35,\">1\")))","v":""},{"$f":"IF(SUM('2011 Survey responses'!AB35:AH35)<1,\"\",(AVERAGEIFS('2011 Survey responses'!AB35:AH35,'2011 Survey responses'!AB35:AH35,\">1\")))","v":""},{"$f":"IF(SUM('2011 Survey responses'!AI35:AO35)<1,\"\",(AVERAGEIFS('2011 Survey responses'!AI35:AO35,'2011 Survey responses'!AI35:AO35,\">1\")))","v":""},{"$f":"IF(('2011 Survey responses'!Y35+'2011 Survey responses'!AI35+'2011 Survey responses'!AK35)<3.1,\"\",((SUMIF('2011 Survey responses'!Y35,\">1\")+SUMIF('2011 Survey responses'!AI35,\">1\")+SUMIF('2011 Survey responses'!AK35,\">1\")+SUMIF('2011 Survey responses'!AM35,\">1\"))/(COUNTIF('2011 Survey responses'!Y35,\">1\")+COUNTIF('2011 Survey responses'!AI35,\">1\")+COUNTIF('2011 Survey responses'!AK35,\">1\")+COUNTIF('2011 Survey responses'!AM35,\">1\"))))","v":""},{"$f":"IF(('2011 Survey responses'!W35)<1.1,\"\",('2011 Survey responses'!W35))","v":""},{"$f":"IF(('2011 Survey responses'!Y35)<1.1,\"\",('2011 Survey responses'!Y35))","v":""},{"$f":"IF(('2011 Survey responses'!Z35)<1.1,\"\",('2011 Survey responses'!Z35))","v":""},{"$f":"IF(('2011 Survey responses'!V35+'2011 Survey responses'!X35+'2011 Survey responses'!AA35)<3.1,\"\",((SUMIF('2011 Survey responses'!V35,\">1\")+SUMIF('2011 Survey responses'!X35,\">1\")+SUMIF('2011 Survey responses'!AA35,\">1\"))/(COUNTIF('2011 Survey responses'!V35,\">1\")+COUNTIF('2011 Survey responses'!X35,\">1\")+COUNTIF('2011 Survey responses'!AA35,\">1\"))))","v":""},{"$f":"IF(('2011 Survey responses'!V35+'2011 Survey responses'!Y35+'2011 Survey responses'!AA35)<3.1,\"\",((SUMIF('2011 Survey responses'!V35,\">1\")+SUMIF('2011 Survey responses'!Y35,\">1\")+SUMIF('2011 Survey responses'!AA35,\">1\"))/(COUNTIF('2011 Survey responses'!V35,\">1\")+COUNTIF('2011 Survey responses'!Y35,\">1\")+COUNTIF('2011 Survey responses'!AA35,\">1\"))))","v":""},{"$f":"IF(SUM('2011 Survey responses'!AB35:AH35)<1,\"\",(AVERAGEIFS('2011 Survey responses'!AB35:AH35,'2011 Survey responses'!AB35:AH35,\">1\")))","v":""},{"$f":"IF(SUM('2011 Survey responses'!AI35:AO35)<7.1,\"\",(AVERAGEIFS('2011 Survey responses'!AI35:AO35,'2011 Survey responses'!AI35:AO35,\">1\")))","v":""},{"$f":"IF(('2011 Survey responses'!AH35)<1.1,\"\",('2011 Survey responses'!AH35))","v":""},{"$f":"IF(SUM('2011 Survey responses'!AP35:BV35)<1,\"\",(AVERAGEIFS('2011 Survey responses'!AP35:BV35,'2011 Survey responses'!AP35:BV35,\">1\")))","v":""},{"$f":"IF(SUM('2011 Survey responses'!AP35:AS35)<4.1,\"\",(AVERAGEIFS('2011 Survey responses'!AP35:AS35,'2011 Survey responses'!AP35:AS35,\">1\")))","v":""},{"$f":"IF(SUM('2011 Survey responses'!AT35:BF35)<1,\"\",(AVERAGEIFS('2011 Survey responses'!AT35:BF35,'2011 Survey responses'!AT35:BF35,\">1\")))","v":""},{"$f":"IF(SUM('2011 Survey responses'!BG35:BO35)<1,\"\",(AVERAGEIFS('2011 Survey responses'!BG35:BO35,'2011 Survey responses'!BG35:BO35,\">1\")))","v":""},{"$f":"IF(SUM('2011 Survey responses'!BP35:BS35)<1,\"\",(AVERAGEIFS('2011 Survey responses'!BP35:BS35,'2011 Survey responses'!BP35:BS35,\">1\")))","v":""},{"$f":"IF(SUM('2011 Survey responses'!BT35:BV35)<3.1,\"\",(AVERAGEIFS('2011 Survey responses'!BT35:BV35,'2011 Survey responses'!BT35:BV35,\">1\")))","v":""},{"$f":"IF(('2011 Survey responses'!AQ35+'2011 Survey responses'!AR35+'2011 Survey responses'!BG35)<3.1,\"\",((SUMIF('2011 Survey responses'!AQ35,\">1\")+SUMIF('2011 Survey responses'!AR35,\">1\")+SUMIF('2011 Survey responses'!BG35,\">1\"))/(COUNTIF('2011 Survey responses'!AQ35,\">1\")+COUNTIF('2011 Survey responses'!AR35,\">1\")+COUNTIF('2011 Survey responses'!BG35,\">1\"))))","v":""},{"$f":"IF(SUM('2011 Survey responses'!AP35:AS35)<4.1,\"\",(AVERAGEIFS('2011 Survey responses'!AP35:AS35,'2011 Survey responses'!AP35:AS35,\">1\")))","v":""},{"$f":"IF(('2011 Survey responses'!AU35+'2011 Survey responses'!AX35+'2011 Survey responses'!BA35+'2011 Survey responses'!BC35+'2011 Survey responses'!BD35)<5.1,\"\",(SUMIF('2011 Survey responses'!AU35,\">1\")+SUMIF('2011 Survey responses'!AX35,\">1\")+SUMIF('2011 Survey responses'!BA35,\">1\")+SUMIF('2011 Survey responses'!BC35,\">1\")+SUMIF('2011 Survey responses'!BD35,\">1\"))/(COUNTIF('2011 Survey responses'!AU35,\">1\")+COUNTIF('2011 Survey responses'!AX35,\">1\")+COUNTIF('2011 Survey responses'!BA35,\">1\")+COUNTIF('2011 Survey responses'!BC35,\">1\")+COUNTIF('2011 Survey responses'!BD35,\">1\")))","v":""},{"$f":"IF(('2011 Survey responses'!AT35)<1.1,\"\",('2011 Survey responses'!AT35))","v":""},{"$f":"IF(SUM('2011 Survey responses'!AV35:AW35)<2.1,\"\",(AVERAGEIFS('2011 Survey responses'!AV35:AW35,'2011 Survey responses'!AV35:AW35,\">1\")))","v":""},{"$f":"IF(('2011 Survey responses'!AW35+'2011 Survey responses'!AY35)<2.1,\"\",(SUMIF('2011 Survey responses'!AW35,\">1\")+SUMIF('2011 Survey responses'!AY35,\">1\"))/(COUNTIF('2011 Survey responses'!AW35,\">1\")+COUNTIF('2011 Survey responses'!AY35,\">1\")))","v":""},{"$f":"IF(('2011 Survey responses'!AZ35)<1.1,\"\",('2011 Survey responses'!AZ35))","v":""},null,null,null,null,{"$f":"IF(('2011 Survey responses'!BE35)<1.1,\"\",('2011 Survey responses'!BE35))","v":""},{"$f":"IF(('2011 Survey responses'!AY35+'2011 Survey responses'!BB35+'2011 Survey responses'!BF35)<3.1,\"\",(SUMIF('2011 Survey responses'!AY35,\">1\")+SUMIF('2011 Survey responses'!BB35,\">1\")+SUMIF('2011 Survey responses'!BF35,\">1\"))/(COUNTIF('2011 Survey responses'!AY35,\">1\")+COUNTIF('2011 Survey responses'!BB35,\">1\")+COUNTIF('2011 Survey responses'!BF35,\">1\")))","v":""},{"$f":"IF(SUM(AI35,AJ35)<1,\"\",AVERAGE(AI35,AJ35))","v":""},{"$f":"IF(SUM('2011 Survey responses'!BT35:BV35)<3.1,\"\",(AVERAGEIFS('2011 Survey responses'!BT35:BV35,'2011 Survey responses'!BT35:BV35,\">1\")))","v":""},{"$f":"IF(SUM('2011 Survey responses'!BW35:CP35)<1,\"\",(AVERAGEIFS('2011 Survey responses'!BW35:CP35,'2011 Survey responses'!BW35:CP35,\">1\")))","v":""},{"$f":"IF(SUM('2011 Survey responses'!BW35:CF35)<1,\"\",(AVERAGEIFS('2011 Survey responses'!BW35:CF35,'2011 Survey responses'!BW35:CF35,\">1\")))","v":""},{"$f":"IF(SUM('2011 Survey responses'!CG35:CP35)<1,\"\",(AVERAGEIFS('2011 Survey responses'!CG35:CP35,'2011 Survey responses'!CG35:CP35,\">1\")))","v":""},{"$f":"IF(SUM('2011 Survey responses'!BX35:CF35)<1,\"\",(AVERAGEIFS('2011 Survey responses'!BX35:CF35,'2011 Survey responses'!BX35:CF35,\">1\")))","v":""},{"$f":"IF(SUM('2011 Survey responses'!CH35:CP35)<1,\"\",(AVERAGEIFS('2011 Survey responses'!CH35:CP35,'2011 Survey responses'!CH35:CP35,\">1\")))","v":""},{"$f":"IF(SUM('2011 Survey responses'!BW35:CP35)<1,\"\",(AVERAGEIFS('2011 Survey responses'!BW35:CP35,'2011 Survey responses'!BW35:CP35,\">1\")))","v":""},{"$f":"IF(('2011 Survey responses'!BW35+'2011 Survey responses'!CG35)<2.1,\"\",(SUMIF('2011 Survey responses'!BW35,\">1\")+SUMIF('2011 Survey responses'!CG35,\">1\"))/(COUNTIF('2011 Survey responses'!BW35,\">1\")+COUNTIF('2011 Survey responses'!CG35,\">1\")))","v":""},{"$f":"IF(('2011 Survey responses'!BX35+'2011 Survey responses'!CH35)<2.1,\"\",(SUMIF('2011 Survey responses'!BX35,\">1\")+SUMIF('2011 Survey responses'!CH35,\">1\"))/(COUNTIF('2011 Survey responses'!BX35,\">1\")+COUNTIF('2011 Survey responses'!CH35,\">1\")))","v":""},{"$f":"IF(('2011 Survey responses'!BY35+'2011 Survey responses'!CI35)<2.1,\"\",(SUMIF('2011 Survey responses'!BY35,\">1\")+SUMIF('2011 Survey responses'!CI35,\">1\"))/(COUNTIF('2011 Survey responses'!BY35,\">1\")+COUNTIF('2011 Survey responses'!CI35,\">1\")))","v":""},{"$f":"IF('2011 Survey responses'!CQ35<0.5,\"\",'2011 Survey responses'!CQ35)","v":""},{"$f":"IF('2011 Survey responses'!CR35<0.5,\"\",'2011 Survey responses'!CR35)","v":""},{"$f":"IF('2011 Survey responses'!CS35<0.5,\"\",'2011 Survey responses'!CS35)","v":""},{"$f":"IF('2011 Survey responses'!CT35<0.5,\"\",'2011 Survey responses'!CT35)","v":""},{"$f":"IF('2011 Survey responses'!CU35<0.5,\"\",'2011 Survey responses'!CU35)","v":""},{"$f":"IF('2011 Survey responses'!CV35<0.5,\"\",'2011 Survey responses'!CV35)","v":""},{"$f":"IF(SUM('2011 Survey responses'!CW35:DL35)<1,\"\",(AVERAGE('2011 Survey responses'!CW35:DL35)))","v":""},{"$f":"IF(SUM('2011 Survey responses'!CW35:CZ35)<1,\"\",(AVERAGE('2011 Survey responses'!CW35:CZ35)))","v":""},{"$f":"IF(SUM('2011 Survey responses'!DA35:DD35)<1,\"\",(AVERAGE('2011 Survey responses'!DA35:DD35)))","v":""},{"$f":"IF(SUM('2011 Survey responses'!DE35:DH35)<1,\"\",(AVERAGE('2011 Survey responses'!DE35:DH35)))","v":""},{"$f":"IF(SUM('2011 Survey responses'!DI35:DL35)<1,\"\",(AVERAGE('2011 Survey responses'!DI35:DL35)))","v":""},{"$f":"IF(('2011 Survey responses'!CW35+'2011 Survey responses'!DA35+'2011 Survey responses'!DE35+'2011 Survey responses'!DI35)<1,\"\",AVERAGE('2011 Survey responses'!CW35,'2011 Survey responses'!DA35,'2011 Survey responses'!DE35,'2011 Survey responses'!DI35))","v":""},{"$f":"IF(('2011 Survey responses'!CX35+'2011 Survey responses'!DB35+'2011 Survey responses'!DF35+'2011 Survey responses'!DJ35)<1,\"\",AVERAGE('2011 Survey responses'!CX35,'2011 Survey responses'!DB35,'2011 Survey responses'!DF35,'2011 Survey responses'!DJ35))","v":""},{"$f":"IF(('2011 Survey responses'!CY35+'2011 Survey responses'!DC35+'2011 Survey responses'!DG35+'2011 Survey responses'!DK35)<1,\"\",AVERAGE('2011 Survey responses'!CY35,'2011 Survey responses'!DC35,'2011 Survey responses'!DG35,'2011 Survey responses'!DK35))","v":""},{"$f":"IF(('2011 Survey responses'!CZ35+'2011 Survey responses'!DD35+'2011 Survey responses'!DH35+'2011 Survey responses'!DL35)<1,\"\",AVERAGE('2011 Survey responses'!CZ35,'2011 Survey responses'!DD35,'2011 Survey responses'!DH35,'2011 Survey responses'!DL35))","v":""},{"$f":"IF('2011 Survey responses'!CW35<0.5,\"\",'2011 Survey responses'!CW35)","v":""},{"$f":"IF('2011 Survey responses'!CX35<0.5,\"\",'2011 Survey responses'!CX35)","v":""},{"$f":"IF('2011 Survey responses'!CY35<0.5,\"\",'2011 Survey responses'!CY35)","v":""},{"$f":"IF('2011 Survey responses'!CZ35<0.5,\"\",'2011 Survey responses'!CZ35)","v":""},{"$f":"IF('2011 Survey responses'!DA35<0.5,\"\",'2011 Survey responses'!DA35)","v":""},{"$f":"IF('2011 Survey responses'!DB35<0.5,\"\",'2011 Survey responses'!DB35)","v":""},{"$f":"IF('2011 Survey responses'!DC35<0.5,\"\",'2011 Survey responses'!DC35)","v":""},{"$f":"IF('2011 Survey responses'!DD35<0.5,\"\",'2011 Survey responses'!DD35)","v":""},{"$f":"IF('2011 Survey responses'!DE35<0.5,\"\",'2011 Survey responses'!DE35)","v":""},{"$f":"IF('2011 Survey responses'!DF35<0.5,\"\",'2011 Survey responses'!DF35)","v":""},{"$f":"IF('2011 Survey responses'!DG35<0.5,\"\",'2011 Survey responses'!DG35)","v":""},{"$f":"IF('2011 Survey responses'!DH35<0.5,\"\",'2011 Survey responses'!DH35)","v":""},{"$f":"IF('2011 Survey responses'!DI35<0.5,\"\",'2011 Survey responses'!DI35)","v":""},{"$f":"IF('2011 Survey responses'!DJ35<0.5,\"\",'2011 Survey responses'!DJ35)","v":""},{"$f":"IF('2011 Survey responses'!DK35<0.5,\"\",'2011 Survey responses'!DK35)","v":""},{"$f":"IF('2011 Survey responses'!DL35<0.5,\"\",'2011 Survey responses'!DL35)","v":""},{"$f":"IF('2011 Survey responses'!DU35=4,4,IF('2011 Survey responses'!DU35=5,4,\"\"))","v":""},{"$f":"IF('2011 Survey responses'!DV35=4,3,IF('2011 Survey responses'!DV35=5,3,\"\"))","v":""},"",{"$f":"IF(CQ35=2,CQ35,IF(CO35=4,CO35,IF(CP35=3,CP35,IF('2011 Survey responses'!GT35=1,1,\"\"))))","v":""},{"$f":"IF('2011 Survey responses'!DO35<0.5,\"\",'2011 Survey responses'!DO35)","v":""},{"$f":"IF('2011 Survey responses'!DP35<0.5,\"\",'2011 Survey responses'!DP35)","v":""},{"$f":"IF('2011 Survey responses'!DQ35<0.5,\"\",'2011 Survey responses'!DQ35)","v":""},{"$f":"IF('2011 Survey responses'!DR35<0.5,\"\",'2011 Survey responses'!DR35)","v":""},{"$f":"IF('2011 Survey responses'!DS35<0.5,\"\",'2011 Survey responses'!DS35)","v":""},{"$f":"IF('2011 Survey responses'!DT35<0.5,\"\",'2011 Survey responses'!DT35)","v":""},{"$f":"IF('2011 Survey responses'!DU35<0.5,\"\",'2011 Survey responses'!DU35)","v":""},{"$f":"IF('2011 Survey responses'!DV35<0.5,\"\",'2011 Survey responses'!DV35)","v":""},{"$f":"IF('2011 Survey responses'!DW35<0.5,\"\",'2011 Survey responses'!DW35)","v":""},{"$f":"IF('2011 Survey responses'!DX35<0.5,\"\",'2011 Survey responses'!DX35)","v":""},{"$f":"IF('2011 Survey responses'!DY35<0.5,\"\",'2011 Survey responses'!DY35)","v":""},{"$f":"IF('2011 Survey responses'!DZ35<0.5,\"\",'2011 Survey responses'!DZ35)","v":""},{"$f":"IF('2011 Survey responses'!EA35<0.5,\"\",'2011 Survey responses'!EA35)","v":""},{"$f":"IF('2011 Survey responses'!EB35<0.5,\"\",'2011 Survey responses'!EB35)","v":""},{"$f":"IF('2011 Survey responses'!EC35<0.5,\"\",'2011 Survey responses'!EC35)","v":""},{"$f":"IF('2011 Survey responses'!ED35<0.5,\"\",'2011 Survey responses'!ED35)","v":""},{"$f":"IF('2011 Survey responses'!EE35<0.5,\"\",'2011 Survey responses'!EE35)","v":""},{"$f":"IF('2011 Survey responses'!EF35<0.5,\"\",'2011 Survey responses'!EF35)","v":""},{"$f":"IF('2011 Survey responses'!EG35<0.5,\"\",'2011 Survey responses'!EG35)","v":""},{"$f":"IF('2011 Survey responses'!EH35<0.5,\"\",'2011 Survey responses'!EH35)","v":""},{"$f":"IF('2011 Survey responses'!EI35<0.5,\"\",'2011 Survey responses'!EI35)","v":""},{"$f":"IF('2011 Survey responses'!EJ35<0.5,\"\",'2011 Survey responses'!EJ35)","v":""},{"$f":"IF('2011 Survey responses'!EK35<0.5,\"\",'2011 Survey responses'!EK35)","v":""},{"$f":"IF('2011 Survey responses'!EL35<0.5,\"\",'2011 Survey responses'!EL35)","v":""},{"$f":"IF('2011 Survey responses'!EM35<0.5,\"\",'2011 Survey responses'!EM35)","v":""},{"$f":"IF('2011 Survey responses'!EN35<0.5,\"\",'2011 Survey responses'!EN35)","v":""},{"$f":"IF('2011 Survey responses'!EO35<0.5,\"\",'2011 Survey responses'!EO35)","v":""},{"$f":"IF('2011 Survey responses'!EP35<0.5,\"\",'2011 Survey responses'!EP35)","v":""},{"$f":"IF(('2011 Survey responses'!EW35+'2011 Survey responses'!EX35)>=2,AVERAGE('2011 Survey responses'!EW35,'2011 Survey responses'!EY35),\"\")","v":""},{"$f":"IF('2011 Survey responses'!EX35<0.5,\"\",'2011 Survey responses'!EX35)","v":""},{"$f":"IF('2011 Survey responses'!EZ35<0.5,\"\",'2011 Survey responses'!EZ35)","v":""},{"$f":"IF('2011 Survey responses'!FB35<0.5,\"\",'2011 Survey responses'!FB35)","v":""},{"$f":"IF('2011 Survey responses'!FD35<0.5,\"\",'2011 Survey responses'!FD35)","v":""},{"$f":"IF('2011 Survey responses'!FC35<0.5,\"\",'2011 Survey responses'!FC35)","v":""},{"$f":"IF(('2011 Survey responses'!EM35+'2011 Survey responses'!EN35)>=2,AVERAGE('2011 Survey responses'!EM35,'2011 Survey responses'!EN35),\"\")","v":""},{"$f":"IF('2011 Survey responses'!ES35<0.5,\"\",'2011 Survey responses'!ES35)","v":""},{"$f":"IF(('2011 Survey responses'!ET35+'2011 Survey responses'!EU35)>=2,AVERAGE('2011 Survey responses'!ET35,'2011 Survey responses'!EU35),\"\")","v":""},{"$f":"IF('2011 Survey responses'!EV35<0.5,\"\",'2011 Survey responses'!EV35)","v":""},{"$f":"IF('2011 Survey responses'!FA35<0.5,\"\",'2011 Survey responses'!FA35)","v":""},{"$f":"IF('2011 Survey responses'!ER35<0.5,\"\",'2011 Survey responses'!ER35)","v":""},{"$f":"IF(('2011 Survey responses'!EO35+'2011 Survey responses'!EP35)>=2,AVERAGE('2011 Survey responses'!EO35,'2011 Survey responses'!EP35),\"\")","v":""},{"$f":"IF('2011 Survey responses'!EQ35<0.5,\"\",'2011 Survey responses'!EQ35)","v":""},{"$f":"IF('2011 Survey responses'!ET35<0.5,\"\",'2011 Survey responses'!ET35)","v":""},{"$f":"IF('2011 Survey responses'!EU35<0.5,\"\",'2011 Survey responses'!EU35)","v":""},{"$f":"IF('2011 Survey responses'!EW35<0.5,\"\",'2011 Survey responses'!EW35)","v":""},{"$f":"IF('2011 Survey responses'!EY35<0.5,\"\",'2011 Survey responses'!EY35)","v":""},{"$f":"IF('2011 Survey responses'!FU35<0.5,\"\",'2011 Survey responses'!FU35)","v":""},{"$f":"IF(('2011 Survey responses'!FL35+'2011 Survey responses'!FM35)>=2,AVERAGE('2011 Survey responses'!FL35,'2011 Survey responses'!FM35),\"\")","v":""},{"$f":"IF(('2011 Survey responses'!FO35+'2011 Survey responses'!FQ35)>=2,AVERAGE('2011 Survey responses'!FO35,'2011 Survey responses'!FQ35),\"\")","v":""},{"$f":"IF('2011 Survey responses'!FJ35<0.5,\"\",'2011 Survey responses'!FJ35)","v":""},{"$f":"IF('2011 Survey responses'!FT35<0.5,\"\",'2011 Survey responses'!FT35)","v":""},{"$f":"IF('2011 Survey responses'!FR35<0.5,\"\",'2011 Survey responses'!FR35)","v":""},{"$f":"IF('2011 Survey responses'!FK35<0.5,\"\",'2011 Survey responses'!FK35)","v":""},{"$f":"IF('2011 Survey responses'!FP35<0.5,\"\",'2011 Survey responses'!FP35)","v":""},{"$f":"IF('2011 Survey responses'!FN35<0.5,\"\",'2011 Survey responses'!FN35)","v":""},{"$f":"IF(('2011 Survey responses'!FE35+'2011 Survey responses'!FF35)>=2,AVERAGE('2011 Survey responses'!FE35,'2011 Survey responses'!FF35),\"\")","v":""},{"$f":"IF('2011 Survey responses'!FS35<0.5,\"\",'2011 Survey responses'!FS35)","v":""},{"$f":"IF('2011 Survey responses'!FV35<0.5,\"\",'2011 Survey responses'!FV35)","v":""},{"$f":"IF(('2011 Survey responses'!FG35+'2011 Survey responses'!FH35)>=2,AVERAGE('2011 Survey responses'!FG35,'2011 Survey responses'!FH35),\"\")","v":""},{"$f":"IF('2011 Survey responses'!FI35<0.5,\"\",'2011 Survey responses'!FI35)","v":""},{"$f":"IF('2011 Survey responses'!FE35<0.5,\"\",'2011 Survey responses'!FE35)","v":""},{"$f":"IF('2011 Survey responses'!FF35<0.5,\"\",'2011 Survey responses'!FF35)","v":""},{"$f":"IF('2011 Survey responses'!FG35<0.5,\"\",'2011 Survey responses'!FG35)","v":""},{"$f":"IF('2011 Survey responses'!FH35<0.5,\"\",'2011 Survey responses'!FH35)","v":""},{"$f":"IF('2011 Survey responses'!FL35<0.5,\"\",'2011 Survey responses'!FL35)","v":""},{"$f":"IF('2011 Survey responses'!FM35<0.5,\"\",'2011 Survey responses'!FM35)","v":""},{"$f":"IF('2011 Survey responses'!FO35<0.5,\"\",'2011 Survey responses'!FO35)","v":""},{"$f":"IF('2011 Survey responses'!FQ35<0.5,\"\",'2011 Survey responses'!FQ35)","v":""}]
["Chad",{"$f":"IF(SUM(F36)<1,\"\",AVERAGEIF('2011 Survey responses'!B36:CP36,\">1\"))","v":3.0777777777777779},{"$f":"IF(SUM(F36)<1,\"\",AVERAGEIF('2011 Survey responses'!B36:AO36,\">1\"))","v":3.1282051282051282},{"$f":"IF(SUM(F36)<1,\"\",AVERAGEIF('2011 Survey responses'!B36:BV36,\">1\"))","v":3.0694444444444446},{"$f":"IF(SUM(F36)<1,\"\",AVERAGEIF('2011 Survey responses'!V36:BV36,\">1\"))","v":3.1132075471698113},{"$f":"IF(SUM('2011 Survey responses'!B36:U36)<1,\"\",(AVERAGEIFS('2011 Survey responses'!B36:U36,'2011 Survey responses'!B36:U36,\">1\")))","v":2.9473684210526314},{"$f":"IF(SUM('2011 Survey responses'!B36:H36)<1,\"\",(AVERAGEIFS('2011 Survey responses'!B36:H36,'2011 Survey responses'!B36:H36,\">1\")))","v":2.4285714285714284},{"$f":"IF(SUM('2011 Survey responses'!I36:S36)<1,\"\",(AVERAGEIFS('2011 Survey responses'!I36:S36,'2011 Survey responses'!I36:S36,\">1\")))","v":2.9},{"$f":"IF(SUM('2011 Survey responses'!T36:U36)<2.1,\"\",(AVERAGEIFS('2011 Survey responses'!T36:U36,'2011 Survey responses'!T36:U36,\">1\")))","v":5},{"$f":"IF(SUM('2011 Survey responses'!B36:C36)<2.1,\"\",((SUMIF('2011 Survey responses'!B36:C36,\">1\")+SUMIF('2011 Survey responses'!F36,\">1\"))/(COUNTIF('2011 Survey responses'!B36:C36,\">1\")+COUNTIF('2011 Survey responses'!F36,\">1\"))))","v":2.6666666666666665},{"$f":"IF(SUM('2011 Survey responses'!D36:E36)<2.1,\"\",(AVERAGEIFS('2011 Survey responses'!D36:E36,'2011 Survey responses'!D36:E36,\">1\")))","v":2.5},{"$f":"IF(('2011 Survey responses'!B36+'2011 Survey responses'!D36)<2.1,\"\",((SUMIF('2011 Survey responses'!B36,\">1\")+SUMIF('2011 Survey responses'!D36,\">1\")+SUMIF('2011 Survey responses'!F36,\">1\")+SUMIF('2011 Survey responses'!K36,\">1\"))/(COUNTIF('2011 Survey responses'!B36,\">1\")+COUNTIF('2011 Survey responses'!D36,\">1\")+COUNTIF('2011 Survey responses'!F36,\">1\")+COUNTIF('2011 Survey responses'!K36,\">1\"))))","v":3},{"$f":"IF(SUM('2011 Survey responses'!G36:H36)<2.1,\"\",(AVERAGEIFS('2011 Survey responses'!G36:H36,'2011 Survey responses'!G36:H36,\">1\")))","v":2},{"$f":"IF(SUM('2011 Survey responses'!F36:G36)<1.5,\"\",MAX('2011 Survey responses'!F36,'2011 Survey responses'!G36))","v":2},{"$f":"IF(SUM('2011 Survey responses'!G36:H36)<1,\"\",MAX('2011 Survey responses'!G36,'2011 Survey responses'!H36))","v":2},{"$f":"IF(SUM('2011 Survey responses'!I36:L36)<4.1,\"\",(AVERAGEIFS('2011 Survey responses'!I36:L36,'2011 Survey responses'!I36:L36,\">1\")))","v":2.75},{"$f":"IF(SUM('2011 Survey responses'!M36:S36)<4.1,\"\",(AVERAGEIFS('2011 Survey responses'!M36:S36,'2011 Survey responses'!M36:S36,\">1\")))","v":3},{"$f":"IF(SUM('2011 Survey responses'!T36:U36)<2.1,\"\",(AVERAGEIFS('2011 Survey responses'!T36:U36,'2011 Survey responses'!T36:U36,\">1\")))","v":5},{"$f":"IF(SUM('2011 Survey responses'!V36:AO36)<1,\"\",(AVERAGEIFS('2011 Survey responses'!V36:AO36,'2011 Survey responses'!V36:AO36,\">1\")))","v":3.3},{"$f":"IF(SUM('2011 Survey responses'!V36:AA36)<1,\"\",(AVERAGEIFS('2011 Survey responses'!V36:AA36,'2011 Survey responses'!V36:AA36,\">1\")))","v":5},{"$f":"IF(SUM('2011 Survey responses'!AB36:AH36)<1,\"\",(AVERAGEIFS('2011 Survey responses'!AB36:AH36,'2011 Survey responses'!AB36:AH36,\">1\")))","v":2},{"$f":"IF(SUM('2011 Survey responses'!AI36:AO36)<1,\"\",(AVERAGEIFS('2011 Survey responses'!AI36:AO36,'2011 Survey responses'!AI36:AO36,\">1\")))","v":3.1428571428571428},{"$f":"IF(('2011 Survey responses'!Y36+'2011 Survey responses'!AI36+'2011 Survey responses'!AK36)<3.1,\"\",((SUMIF('2011 Survey responses'!Y36,\">1\")+SUMIF('2011 Survey responses'!AI36,\">1\")+SUMIF('2011 Survey responses'!AK36,\">1\")+SUMIF('2011 Survey responses'!AM36,\">1\"))/(COUNTIF('2011 Survey responses'!Y36,\">1\")+COUNTIF('2011 Survey responses'!AI36,\">1\")+COUNTIF('2011 Survey responses'!AK36,\">1\")+COUNTIF('2011 Survey responses'!AM36,\">1\"))))","v":3.25},{"$f":"IF(('2011 Survey responses'!W36)<1.1,\"\",('2011 Survey responses'!W36))","v":5},{"$f":"IF(('2011 Survey responses'!Y36)<1.1,\"\",('2011 Survey responses'!Y36))","v":5},{"$f":"IF(('2011 Survey responses'!Z36)<1.1,\"\",('2011 Survey responses'!Z36))","v":5},{"$f":"IF(('2011 Survey responses'!V36+'2011 Survey responses'!X36+'2011 Survey responses'!AA36)<3.1,\"\",((SUMIF('2011 Survey responses'!V36,\">1\")+SUMIF('2011 Survey responses'!X36,\">1\")+SUMIF('2011 Survey responses'!AA36,\">1\"))/(COUNTIF('2011 Survey responses'!V36,\">1\")+COUNTIF('2011 Survey responses'!X36,\">1\")+COUNTIF('2011 Survey responses'!AA36,\">1\"))))","v":5},{"$f":"IF(('2011 Survey responses'!V36+'2011 Survey responses'!Y36+'2011 Survey responses'!AA36)<3.1,\"\",((SUMIF('2011 Survey responses'!V36,\">1\")+SUMIF('2011 Survey responses'!Y36,\">1\")+SUMIF('2011 Survey responses'!AA36,\">1\"))/(COUNTIF('2011 Survey responses'!V36,\">1\")+COUNTIF('2011 Survey responses'!Y36,\">1\")+COUNTIF('2011 Survey responses'!AA36,\">1\"))))","v":5},{"$f":"IF(SUM('2011 Survey responses'!AB36:AH36)<1,\"\",(AVERAGEIFS('2011 Survey responses'!AB36:AH36,'2011 Survey responses'!AB36:AH36,\">1\")))","v":2},{"$f":"IF(SUM('2011 Survey responses'!AI36:AO36)<7.1,\"\",(AVERAGEIFS('2011 Survey responses'!AI36:AO36,'2011 Survey responses'!AI36:AO36,\">1\")))","v":3.1428571428571428},{"$f":"IF(('2011 Survey responses'!AH36)<1.1,\"\",('2011 Survey responses'!AH36))","v":2},{"$f":"IF(SUM('2011 Survey responses'!AP36:BV36)<1,\"\",(AVERAGEIFS('2011 Survey responses'!AP36:BV36,'2011 Survey responses'!AP36:BV36,\">1\")))","v":3},{"$f":"IF(SUM('2011 Survey responses'!AP36:AS36)<4.1,\"\",(AVERAGEIFS('2011 Survey responses'!AP36:AS36,'2011 Survey responses'!AP36:AS36,\">1\")))","v":4},{"$f":"IF(SUM('2011 Survey responses'!AT36:BF36)<1,\"\",(AVERAGEIFS('2011 Survey responses'!AT36:BF36,'2011 Survey responses'!AT36:BF36,\">1\")))","v":2.7692307692307692},{"$f":"IF(SUM('2011 Survey responses'!BG36:BO36)<1,\"\",(AVERAGEIFS('2011 Survey responses'!BG36:BO36,'2011 Survey responses'!BG36:BO36,\">1\")))","v":3.6666666666666665},{"$f":"IF(SUM('2011 Survey responses'!BP36:BS36)<1,\"\",(AVERAGEIFS('2011 Survey responses'!BP36:BS36,'2011 Survey responses'!BP36:BS36,\">1\")))","v":2},{"$f":"IF(SUM('2011 Survey responses'!BT36:BV36)<3.1,\"\",(AVERAGEIFS('2011 Survey responses'!BT36:BV36,'2011 Survey responses'!BT36:BV36,\">1\")))","v":2},{"$f":"IF(('2011 Survey responses'!AQ36+'2011 Survey responses'!AR36+'2011 Survey responses'!BG36)<3.1,\"\",((SUMIF('2011 Survey responses'!AQ36,\">1\")+SUMIF('2011 Survey responses'!AR36,\">1\")+SUMIF('2011 Survey responses'!BG36,\">1\"))/(COUNTIF('2011 Survey responses'!AQ36,\">1\")+COUNTIF('2011 Survey responses'!AR36,\">1\")+COUNTIF('2011 Survey responses'!BG36,\">1\"))))","v":3.6666666666666665},{"$f":"IF(SUM('2011 Survey responses'!AP36:AS36)<4.1,\"\",(AVERAGEIFS('2011 Survey responses'!AP36:AS36,'2011 Survey responses'!AP36:AS36,\">1\")))","v":4},{"$f":"IF(('2011 Survey responses'!AU36+'2011 Survey responses'!AX36+'2011 Survey responses'!BA36+'2011 Survey responses'!BC36+'2011 Survey responses'!BD36)<5.1,\"\",(SUMIF('2011 Survey responses'!AU36,\">1\")+SUMIF('2011 Survey responses'!AX36,\">1\")+SUMIF('2011 Survey responses'!BA36,\">1\")+SUMIF('2011 Survey responses'!BC36,\">1\")+SUMIF('2011 Survey responses'!BD36,\">1\"))/(COUNTIF('2011 Survey responses'!AU36,\">1\")+COUNTIF('2011 Survey responses'!AX36,\">1\")+COUNTIF('2011 Survey responses'!BA36,\">1\")+COUNTIF('2011 Survey responses'!BC36,\">1\")+COUNTIF('2011 Survey responses'!BD36,\">1\")))","v":2.6},{"$f":"IF(('2011 Survey responses'!AT36)<1.1,\"\",('2011 Survey responses'!AT36))","v":5},{"$f":"IF(SUM('2011 Survey responses'!AV36:AW36)<2.1,\"\",(AVERAGEIFS('2011 Survey responses'!AV36:AW36,'2011 Survey responses'!AV36:AW36,\">1\")))","v":3},{"$f":"IF(('2011 Survey responses'!AW36+'2011 Survey responses'!AY36)<2.1,\"\",(SUMIF('2011 Survey responses'!AW36,\">1\")+SUMIF('2011 Survey responses'!AY36,\">1\"))/(COUNTIF('2011 Survey responses'!AW36,\">1\")+COUNTIF('2011 Survey responses'!AY36,\">1\")))","v":2},{"$f":"IF(('2011 Survey responses'!AZ36)<1.1,\"\",('2011 Survey responses'!AZ36))","v":2},2,2,2,2,{"$f":"IF(('2011 Survey responses'!BE36)<1.1,\"\",('2011 Survey responses'!BE36))","v":3},{"$f":"IF(('2011 Survey responses'!AY36+'2011 Survey responses'!BB36+'2011 Survey responses'!BF36)<3.1,\"\",(SUMIF('2011 Survey responses'!AY36,\">1\")+SUMIF('2011 Survey responses'!BB36,\">1\")+SUMIF('2011 Survey responses'!BF36,\">1\"))/(COUNTIF('2011 Survey responses'!AY36,\">1\")+COUNTIF('2011 Survey responses'!BB36,\">1\")+COUNTIF('2011 Survey responses'!BF36,\">1\")))","v":2.3333333333333335},2.833333333333333,{"$f":"IF(SUM('2011 Survey responses'!BT36:BV36)<3.1,\"\",(AVERAGEIFS('2011 Survey responses'!BT36:BV36,'2011 Survey responses'!BT36:BV36,\">1\")))","v":2},{"$f":"IF(SUM('2011 Survey responses'!BW36:CP36)<1,\"\",(AVERAGEIFS('2011 Survey responses'!BW36:CP36,'2011 Survey responses'!BW36:CP36,\">1\")))","v":3.1111111111111112},{"$f":"IF(SUM('2011 Survey responses'!BW36:CF36)<1,\"\",(AVERAGEIFS('2011 Survey responses'!BW36:CF36,'2011 Survey responses'!BW36:CF36,\">1\")))","v":3.1111111111111112},{"$f":"IF(SUM('2011 Survey responses'!CG36:CP36)<1,\"\",(AVERAGEIFS('2011 Survey responses'!CG36:CP36,'2011 Survey responses'!CG36:CP36,\">1\")))","v":3.1111111111111112},{"$f":"IF(SUM('2011 Survey responses'!BX36:CF36)<1,\"\",(AVERAGEIFS('2011 Survey responses'!BX36:CF36,'2011 Survey responses'!BX36:CF36,\">1\")))","v":3},{"$f":"IF(SUM('2011 Survey responses'!CH36:CP36)<1,\"\",(AVERAGEIFS('2011 Survey responses'!CH36:CP36,'2011 Survey responses'!CH36:CP36,\">1\")))","v":3},{"$f":"IF(SUM('2011 Survey responses'!BW36:CP36)<1,\"\",(AVERAGEIFS('2011 Survey responses'!BW36:CP36,'2011 Survey responses'!BW36:CP36,\">1\")))","v":3.1111111111111112},{"$f":"IF(('2011 Survey responses'!BW36+'2011 Survey responses'!CG36)<2.1,\"\",(SUMIF('2011 Survey responses'!BW36,\">1\")+SUMIF('2011 Survey responses'!CG36,\">1\"))/(COUNTIF('2011 Survey responses'!BW36,\">1\")+COUNTIF('2011 Survey responses'!CG36,\">1\")))","v":4},{"$f":"IF(('2011 Survey responses'!BX36+'2011 Survey responses'!CH36)<2.1,\"\",(SUMIF('2011 Survey responses'!BX36,\">1\")+SUMIF('2011 Survey responses'!CH36,\">1\"))/(COUNTIF('2011 Survey responses'!BX36,\">1\")+COUNTIF('2011 Survey responses'!CH36,\">1\")))","v":4},{"$f":"IF(('2011 Survey responses'!BY36+'2011 Survey responses'!CI36)<2.1,\"\",(SUMIF('2011 Survey responses'!BY36,\">1\")+SUMIF('2011 Survey responses'!CI36,\">1\"))/(COUNTIF('2011 Survey responses'!BY36,\">1\")+COUNTIF('2011 Survey responses'!CI36,\">1\")))","v":2},{"$f":"IF('2011 Survey responses'!CQ36<0.5,\"\",'2011 Survey responses'!CQ36)","v":4},{"$f":"IF('2011 Survey responses'!CR36<0.5,\"\",'2011 Survey responses'!CR36)","v":4},{"$f":"IF('2011 Survey responses'!CS36<0.5,\"\",'2011 Survey responses'!CS36)","v":5},{"$f":"IF('2011 Survey responses'!CT36<0.5,\"\",'2011 Survey responses'!CT36)","v":1},{"$f":"IF('2011 Survey responses'!CU36<0.5,\"\",'2011 Survey responses'!CU36)","v":1},{"$f":"IF('2011 Survey responses'!CV36<0.5,\"\",'2011 Survey responses'!CV36)","v":1},{"$f":"IF(SUM('2011 Survey responses'!CW36:DL36)<1,\"\",(AVERAGE('2011 Survey responses'!CW36:DL36)))","v":1.875},{"$f":"IF(SUM('2011 Survey responses'!CW36:CZ36)<1,\"\",(AVERAGE('2011 Survey responses'!CW36:CZ36)))","v":2.5},{"$f":"IF(SUM('2011 Survey responses'!DA36:DD36)<1,\"\",(AVERAGE('2011 Survey responses'!DA36:DD36)))","v":2},{"$f":"IF(SUM('2011 Survey responses'!DE36:DH36)<1,\"\",(AVERAGE('2011 Survey responses'!DE36:DH36)))","v":1},{"$f":"IF(SUM('2011 Survey responses'!DI36:DL36)<1,\"\",(AVERAGE('2011 Survey responses'!DI36:DL36)))","v":2},{"$f":"IF(('2011 Survey responses'!CW36+'2011 Survey responses'!DA36+'2011 Survey responses'!DE36+'2011 Survey responses'!DI36)<1,\"\",AVERAGE('2011 Survey responses'!CW36,'2011 Survey responses'!DA36,'2011 Survey responses'!DE36,'2011 Survey responses'!DI36))","v":2.25},{"$f":"IF(('2011 Survey responses'!CX36+'2011 Survey responses'!DB36+'2011 Survey responses'!DF36+'2011 Survey responses'!DJ36)<1,\"\",AVERAGE('2011 Survey responses'!CX36,'2011 Survey responses'!DB36,'2011 Survey responses'!DF36,'2011 Survey responses'!DJ36))","v":2.25},{"$f":"IF(('2011 Survey responses'!CY36+'2011 Survey responses'!DC36+'2011 Survey responses'!DG36+'2011 Survey responses'!DK36)<1,\"\",AVERAGE('2011 Survey responses'!CY36,'2011 Survey responses'!DC36,'2011 Survey responses'!DG36,'2011 Survey responses'!DK36))","v":1.25},{"$f":"IF(('2011 Survey responses'!CZ36+'2011 Survey responses'!DD36+'2011 Survey responses'!DH36+'2011 Survey responses'!DL36)<1,\"\",AVERAGE('2011 Survey responses'!CZ36,'2011 Survey responses'!DD36,'2011 Survey responses'!DH36,'2011 Survey responses'!DL36))","v":1.75},{"$f":"IF('2011 Survey responses'!CW36<0.5,\"\",'2011 Survey responses'!CW36)","v":3},{"$f":"IF('2011 Survey responses'!CX36<0.5,\"\",'2011 Survey responses'!CX36)","v":4},{"$f":"IF('2011 Survey responses'!CY36<0.5,\"\",'2011 Survey responses'!CY36)","v":1},{"$f":"IF('2011 Survey responses'!CZ36<0.5,\"\",'2011 Survey responses'!CZ36)","v":2},{"$f":"IF('2011 Survey responses'!DA36<0.5,\"\",'2011 Survey responses'!DA36)","v":2},{"$f":"IF('2011 Survey responses'!DB36<0.5,\"\",'2011 Survey responses'!DB36)","v":2},{"$f":"IF('2011 Survey responses'!DC36<0.5,\"\",'2011 Survey responses'!DC36)","v":2},{"$f":"IF('2011 Survey responses'!DD36<0.5,\"\",'2011 Survey responses'!DD36)","v":2},{"$f":"IF('2011 Survey responses'!DE36<0.5,\"\",'2011 Survey responses'!DE36)","v":1},{"$f":"IF('2011 Survey responses'!DF36<0.5,\"\",'2011 Survey responses'!DF36)","v":1},{"$f":"IF('2011 Survey responses'!DG36<0.5,\"\",'2011 Survey responses'!DG36)","v":1},{"$f":"IF('2011 Survey responses'!DH36<0.5,\"\",'2011 Survey responses'!DH36)","v":1},{"$f":"IF('2011 Survey responses'!DI36<0.5,\"\",'2011 Survey responses'!DI36)","v":3},{"$f":"IF('2011 Survey responses'!DJ36<0.5,\"\",'2011 Survey responses'!DJ36)","v":2},{"$f":"IF('2011 Survey responses'!DK36<0.5,\"\",'2011 Survey responses'!DK36)","v":1},{"$f":"IF('2011 Survey responses'!DL36<0.5,\"\",'2011 Survey responses'!DL36)","v":2},{"$f":"IF('2011 Survey responses'!DU36=4,4,IF('2011 Survey responses'!DU36=5,4,\"\"))","v":4},{"$f":"IF('2011 Survey responses'!DV36=4,3,IF('2011 Survey responses'!DV36=5,3,\"\"))","v":3},2,{"$f":"IF(CQ36=2,CQ36,IF(CO36=4,CO36,IF(CP36=3,CP36,IF('2011 Survey responses'!GT36=1,1,\"\"))))","v":2},{"$f":"IF('2011 Survey responses'!DO36<0.5,\"\",'2011 Survey responses'!DO36)","v":4},{"$f":"IF('2011 Survey responses'!DP36<0.5,\"\",'2011 Survey responses'!DP36)","v":5},{"$f":"IF('2011 Survey responses'!DQ36<0.5,\"\",'2011 Survey responses'!DQ36)","v":3},{"$f":"IF('2011 Survey responses'!DR36<0.5,\"\",'2011 Survey responses'!DR36)","v":2},{"$f":"IF('2011 Survey responses'!DS36<0.5,\"\",'2011 Survey responses'!DS36)","v":3},{"$f":"IF('2011 Survey responses'!DT36<0.5,\"\",'2011 Survey responses'!DT36)","v":5},{"$f":"IF('2011 Survey responses'!DU36<0.5,\"\",'2011 Survey responses'!DU36)","v":4},{"$f":"IF('2011 Survey responses'!DV36<0.5,\"\",'2011 Survey responses'!DV36)","v":4},{"$f":"IF('2011 Survey responses'!DW36<0.5,\"\",'2011 Survey responses'!DW36)","v":4},{"$f":"IF('2011 Survey responses'!DX36<0.5,\"\",'2011 Survey responses'!DX36)","v":4},{"$f":"IF('2011 Survey responses'!DY36<0.5,\"\",'2011 Survey responses'!DY36)","v":4},{"$f":"IF('2011 Survey responses'!DZ36<0.5,\"\",'2011 Survey responses'!DZ36)","v":4},{"$f":"IF('2011 Survey responses'!EA36<0.5,\"\",'2011 Survey responses'!EA36)","v":4},{"$f":"IF('2011 Survey responses'!EB36<0.5,\"\",'2011 Survey responses'!EB36)","v":5},{"$f":"IF('2011 Survey responses'!EC36<0.5,\"\",'2011 Survey responses'!EC36)","v":4},{"$f":"IF('2011 Survey responses'!ED36<0.5,\"\",'2011 Survey responses'!ED36)","v":3},{"$f":"IF('2011 Survey responses'!EE36<0.5,\"\",'2011 Survey responses'!EE36)","v":2},{"$f":"IF('2011 Survey responses'!EF36<0.5,\"\",'2011 Survey responses'!EF36)","v":4},{"$f":"IF('2011 Survey responses'!EG36<0.5,\"\",'2011 Survey responses'!EG36)","v":4},{"$f":"IF('2011 Survey responses'!EH36<0.5,\"\",'2011 Survey responses'!EH36)","v":4},{"$f":"IF('2011 Survey responses'!EI36<0.5,\"\",'2011 Survey responses'!EI36)","v":4},{"$f":"IF('2011 Survey responses'!EJ36<0.5,\"\",'2011 Survey responses'!EJ36)","v":4},{"$f":"IF('2011 Survey responses'!EK36<0.5,\"\",'2011 Survey responses'!EK36)","v":4},{"$f":"IF('2011 Survey responses'!EL36<0.5,\"\",'2011 Survey responses'!EL36)","v":4},{"$f":"IF('2011 Survey responses'!EM36<0.5,\"\",'2011 Survey responses'!EM36)","v":5},{"$f":"IF('2011 Survey responses'!EN36<0.5,\"\",'2011 Survey responses'!EN36)","v":4},{"$f":"IF('2011 Survey responses'!EO36<0.5,\"\",'2011 Survey responses'!EO36)","v":4},{"$f":"IF('2011 Survey responses'!EP36<0.5,\"\",'2011 Survey responses'!EP36)","v":3},{"$f":"IF(('2011 Survey responses'!EW36+'2011 Survey responses'!EX36)>=2,AVERAGE('2011 Survey responses'!EW36,'2011 Survey responses'!EY36),\"\")","v":4},{"$f":"IF('2011 Survey responses'!EX36<0.5,\"\",'2011 Survey responses'!EX36)","v":4},{"$f":"IF('2011 Survey responses'!EZ36<0.5,\"\",'2011 Survey responses'!EZ36)","v":4},{"$f":"IF('2011 Survey responses'!FB36<0.5,\"\",'2011 Survey responses'!FB36)","v":4},{"$f":"IF('2011 Survey responses'!FD36<0.5,\"\",'2011 Survey responses'!FD36)","v":4},{"$f":"IF('2011 Survey responses'!FC36<0.5,\"\",'2011 Survey responses'!FC36)","v":4},{"$f":"IF(('2011 Survey responses'!EM36+'2011 Survey responses'!EN36)>=2,AVERAGE('2011 Survey responses'!EM36,'2011 Survey responses'!EN36),\"\")","v":4.5},{"$f":"IF('2011 Survey responses'!ES36<0.5,\"\",'2011 Survey responses'!ES36)","v":3},{"$f":"IF(('2011 Survey responses'!ET36+'2011 Survey responses'!EU36)>=2,AVERAGE('2011 Survey responses'!ET36,'2011 Survey responses'!EU36),\"\")","v":3},{"$f":"IF('2011 Survey responses'!EV36<0.5,\"\",'2011 Survey responses'!EV36)","v":4},{"$f":"IF('2011 Survey responses'!FA36<0.5,\"\",'2011 Survey responses'!FA36)","v":4},{"$f":"IF('2011 Survey responses'!ER36<0.5,\"\",'2011 Survey responses'!ER36)","v":3},{"$f":"IF(('2011 Survey responses'!EO36+'2011 Survey responses'!EP36)>=2,AVERAGE('2011 Survey responses'!EO36,'2011 Survey responses'!EP36),\"\")","v":3.5},{"$f":"IF('2011 Survey responses'!EQ36<0.5,\"\",'2011 Survey responses'!EQ36)","v":3},{"$f":"IF('2011 Survey responses'!ET36<0.5,\"\",'2011 Survey responses'!ET36)","v":3},{"$f":"IF('2011 Survey responses'!EU36<0.5,\"\",'2011 Survey responses'!EU36)","v":3},{"$f":"IF('2011 Survey responses'!EW36<0.5,\"\",'2011 Survey responses'!EW36)","v":4},{"$f":"IF('2011 Survey responses'!EY36<0.5,\"\",'2011 Survey responses'!EY36)","v":4},{"$f":"IF('2011 Survey responses'!FU36<0.5,\"\",'2011 Survey responses'!FU36)","v":4},{"$f":"IF(('2011 Survey responses'!FL36+'2011 Survey responses'!FM36)>=2,AVERAGE('2011 Survey responses'!FL36,'2011 Survey responses'!FM36),\"\")","v":3},{"$f":"IF(('2011 Survey responses'!FO36+'2011 Survey responses'!FQ36)>=2,AVERAGE('2011 Survey responses'!FO36,'2011 Survey responses'!FQ36),\"\")","v":4},{"$f":"IF('2011 Survey responses'!FJ36<0.5,\"\",'2011 Survey responses'!FJ36)","v":3},{"$f":"IF('2011 Survey responses'!FT36<0.5,\"\",'2011 Survey responses'!FT36)","v":4},{"$f":"IF('2011 Survey responses'!FR36<0.5,\"\",'2011 Survey responses'!FR36)","v":4},{"$f":"IF('2011 Survey responses'!FK36<0.5,\"\",'2011 Survey responses'!FK36)","v":3},{"$f":"IF('2011 Survey responses'!FP36<0.5,\"\",'2011 Survey responses'!FP36)","v":4},{"$f":"IF('2011 Survey responses'!FN36<0.5,\"\",'2011 Survey responses'!FN36)","v":4},{"$f":"IF(('2011 Survey responses'!FE36+'2011 Survey responses'!FF36)>=2,AVERAGE('2011 Survey responses'!FE36,'2011 Survey responses'!FF36),\"\")","v":4.5},{"$f":"IF('2011 Survey responses'!FS36<0.5,\"\",'2011 Survey responses'!FS36)","v":4},{"$f":"IF('2011 Survey responses'!FV36<0.5,\"\",'2011 Survey responses'!FV36)","v":4},{"$f":"IF(('2011 Survey responses'!FG36+'2011 Survey responses'!FH36)>=2,AVERAGE('2011 Survey responses'!FG36,'2011 Survey responses'!FH36),\"\")","v":3.5},{"$f":"IF('2011 Survey responses'!FI36<0.5,\"\",'2011 Survey responses'!FI36)","v":3},{"$f":"IF('2011 Survey responses'!FE36<0.5,\"\",'2011 Survey responses'!FE36)","v":5},{"$f":"IF('2011 Survey responses'!FF36<0.5,\"\",'2011 Survey responses'!FF36)","v":4},{"$f":"IF('2011 Survey responses'!FG36<0.5,\"\",'2011 Survey responses'!FG36)","v":4},{"$f":"IF('2011 Survey responses'!FH36<0.5,\"\",'2011 Survey responses'!FH36)","v":3},{"$f":"IF('2011 Survey responses'!FL36<0.5,\"\",'2011 Survey responses'!FL36)","v":3},{"$f":"IF('2011 Survey responses'!FM36<0.5,\"\",'2011 Survey responses'!FM36)","v":3},{"$f":"IF('2011 Survey responses'!FO36<0.5,\"\",'2011 Survey responses'!FO36)","v":4},{"$f":"IF('2011 Survey responses'!FQ36<0.5,\"\",'2011 Survey responses'!FQ36)","v":4}]
["Chile",{"$f":"IF(SUM(F37)<1,\"\",AVERAGEIF('2011 Survey responses'!B37:CP37,\">1\"))","v":4.7826086956521738},{"$f":"IF(SUM(F37)<1,\"\",AVERAGEIF('2011 Survey responses'!B37:AO37,\">1\"))","v":4.2820512820512819},{"$f":"IF(SUM(F37)<1,\"\",AVERAGEIF('2011 Survey responses'!B37:BV37,\">1\"))","v":4.7222222222222223},{"$f":"IF(SUM(F37)<1,\"\",AVERAGEIF('2011 Survey responses'!V37:BV37,\">1\"))","v":5.1509433962264151},{"$f":"IF(SUM('2011 Survey responses'!B37:U37)<1,\"\",(AVERAGEIFS('2011 Survey responses'!B37:U37,'2011 Survey responses'!B37:U37,\">1\")))","v":3.5263157894736841},{"$f":"IF(SUM('2011 Survey responses'!B37:H37)<1,\"\",(AVERAGEIFS('2011 Survey responses'!B37:H37,'2011 Survey responses'!B37:H37,\">1\")))","v":3.5},{"$f":"IF(SUM('2011 Survey responses'!I37:S37)<1,\"\",(AVERAGEIFS('2011 Survey responses'!I37:S37,'2011 Survey responses'!I37:S37,\">1\")))","v":3.6363636363636362},{"$f":"IF(SUM('2011 Survey responses'!T37:U37)<2.1,\"\",(AVERAGEIFS('2011 Survey responses'!T37:U37,'2011 Survey responses'!T37:U37,\">1\")))","v":3},{"$f":"IF(SUM('2011 Survey responses'!B37:C37)<2.1,\"\",((SUMIF('2011 Survey responses'!B37:C37,\">1\")+SUMIF('2011 Survey responses'!F37,\">1\"))/(COUNTIF('2011 Survey responses'!B37:C37,\">1\")+COUNTIF('2011 Survey responses'!F37,\">1\"))))","v":3},{"$f":"IF(SUM('2011 Survey responses'!D37:E37)<2.1,\"\",(AVERAGEIFS('2011 Survey responses'!D37:E37,'2011 Survey responses'!D37:E37,\">1\")))","v":6},{"$f":"IF(('2011 Survey responses'!B37+'2011 Survey responses'!D37)<2.1,\"\",((SUMIF('2011 Survey responses'!B37,\">1\")+SUMIF('2011 Survey responses'!D37,\">1\")+SUMIF('2011 Survey responses'!F37,\">1\")+SUMIF('2011 Survey responses'!K37,\">1\"))/(COUNTIF('2011 Survey responses'!B37,\">1\")+COUNTIF('2011 Survey responses'!D37,\">1\")+COUNTIF('2011 Survey responses'!F37,\">1\")+COUNTIF('2011 Survey responses'!K37,\">1\"))))","v":4.25},{"$f":"IF(SUM('2011 Survey responses'!G37:H37)<2.1,\"\",(AVERAGEIFS('2011 Survey responses'!G37:H37,'2011 Survey responses'!G37:H37,\">1\")))","v":3},{"$f":"IF(SUM('2011 Survey responses'!F37:G37)<1.5,\"\",MAX('2011 Survey responses'!F37,'2011 Survey responses'!G37))","v":4},{"$f":"IF(SUM('2011 Survey responses'!G37:H37)<1,\"\",MAX('2011 Survey responses'!G37,'2011 Survey responses'!H37))","v":4},{"$f":"IF(SUM('2011 Survey responses'!I37:L37)<4.1,\"\",(AVERAGEIFS('2011 Survey responses'!I37:L37,'2011 Survey responses'!I37:L37,\">1\")))","v":3},{"$f":"IF(SUM('2011 Survey responses'!M37:S37)<4.1,\"\",(AVERAGEIFS('2011 Survey responses'!M37:S37,'2011 Survey responses'!M37:S37,\">1\")))","v":4},{"$f":"IF(SUM('2011 Survey responses'!T37:U37)<2.1,\"\",(AVERAGEIFS('2011 Survey responses'!T37:U37,'2011 Survey responses'!T37:U37,\">1\")))","v":3},{"$f":"IF(SUM('2011 Survey responses'!V37:AO37)<1,\"\",(AVERAGEIFS('2011 Survey responses'!V37:AO37,'2011 Survey responses'!V37:AO37,\">1\")))","v":5},{"$f":"IF(SUM('2011 Survey responses'!V37:AA37)<1,\"\",(AVERAGEIFS('2011 Survey responses'!V37:AA37,'2011 Survey responses'!V37:AA37,\">1\")))","v":4.166666666666667},{"$f":"IF(SUM('2011 Survey responses'!AB37:AH37)<1,\"\",(AVERAGEIFS('2011 Survey responses'!AB37:AH37,'2011 Survey responses'!AB37:AH37,\">1\")))","v":5.8571428571428568},{"$f":"IF(SUM('2011 Survey responses'!AI37:AO37)<1,\"\",(AVERAGEIFS('2011 Survey responses'!AI37:AO37,'2011 Survey responses'!AI37:AO37,\">1\")))","v":4.8571428571428568},{"$f":"IF(('2011 Survey responses'!Y37+'2011 Survey responses'!AI37+'2011 Survey responses'!AK37)<3.1,\"\",((SUMIF('2011 Survey responses'!Y37,\">1\")+SUMIF('2011 Survey responses'!AI37,\">1\")+SUMIF('2011 Survey responses'!AK37,\">1\")+SUMIF('2011 Survey responses'!AM37,\">1\"))/(COUNTIF('2011 Survey responses'!Y37,\">1\")+COUNTIF('2011 Survey responses'!AI37,\">1\")+COUNTIF('2011 Survey responses'!AK37,\">1\")+COUNTIF('2011 Survey responses'!AM37,\">1\"))))","v":3.5},{"$f":"IF(('2011 Survey responses'!W37)<1.1,\"\",('2011 Survey responses'!W37))","v":6},{"$f":"IF(('2011 Survey responses'!Y37)<1.1,\"\",('2011 Survey responses'!Y37))","v":2},{"$f":"IF(('2011 Survey responses'!Z37)<1.1,\"\",('2011 Survey responses'!Z37))","v":3},{"$f":"IF(('2011 Survey responses'!V37+'2011 Survey responses'!X37+'2011 Survey responses'!AA37)<3.1,\"\",((SUMIF('2011 Survey responses'!V37,\">1\")+SUMIF('2011 Survey responses'!X37,\">1\")+SUMIF('2011 Survey responses'!AA37,\">1\"))/(COUNTIF('2011 Survey responses'!V37,\">1\")+COUNTIF('2011 Survey responses'!X37,\">1\")+COUNTIF('2011 Survey responses'!AA37,\">1\"))))","v":4.666666666666667},{"$f":"IF(('2011 Survey responses'!V37+'2011 Survey responses'!Y37+'2011 Survey responses'!AA37)<3.1,\"\",((SUMIF('2011 Survey responses'!V37,\">1\")+SUMIF('2011 Survey responses'!Y37,\">1\")+SUMIF('2011 Survey responses'!AA37,\">1\"))/(COUNTIF('2011 Survey responses'!V37,\">1\")+COUNTIF('2011 Survey responses'!Y37,\">1\")+COUNTIF('2011 Survey responses'!AA37,\">1\"))))","v":3.3333333333333335},{"$f":"IF(SUM('2011 Survey responses'!AB37:AH37)<1,\"\",(AVERAGEIFS('2011 Survey responses'!AB37:AH37,'2011 Survey responses'!AB37:AH37,\">1\")))","v":5.8571428571428568},{"$f":"IF(SUM('2011 Survey responses'!AI37:AO37)<7.1,\"\",(AVERAGEIFS('2011 Survey responses'!AI37:AO37,'2011 Survey responses'!AI37:AO37,\">1\")))","v":4.8571428571428568},{"$f":"IF(('2011 Survey responses'!AH37)<1.1,\"\",('2011 Survey responses'!AH37))","v":6},{"$f":"IF(SUM('2011 Survey responses'!AP37:BV37)<1,\"\",(AVERAGEIFS('2011 Survey responses'!AP37:BV37,'2011 Survey responses'!AP37:BV37,\">1\")))","v":5.2424242424242422},{"$f":"IF(SUM('2011 Survey responses'!AP37:AS37)<4.1,\"\",(AVERAGEIFS('2011 Survey responses'!AP37:AS37,'2011 Survey responses'!AP37:AS37,\">1\")))","v":5.25},{"$f":"IF(SUM('2011 Survey responses'!AT37:BF37)<1,\"\",(AVERAGEIFS('2011 Survey responses'!AT37:BF37,'2011 Survey responses'!AT37:BF37,\">1\")))","v":5.1538461538461542},{"$f":"IF(SUM('2011 Survey responses'!BG37:BO37)<1,\"\",(AVERAGEIFS('2011 Survey responses'!BG37:BO37,'2011 Survey responses'!BG37:BO37,\">1\")))","v":5.4444444444444446},{"$f":"IF(SUM('2011 Survey responses'!BP37:BS37)<1,\"\",(AVERAGEIFS('2011 Survey responses'!BP37:BS37,'2011 Survey responses'!BP37:BS37,\">1\")))","v":4.5},{"$f":"IF(SUM('2011 Survey responses'!BT37:BV37)<3.1,\"\",(AVERAGEIFS('2011 Survey responses'!BT37:BV37,'2011 Survey responses'!BT37:BV37,\">1\")))","v":6},{"$f":"IF(('2011 Survey responses'!AQ37+'2011 Survey responses'!AR37+'2011 Survey responses'!BG37)<3.1,\"\",((SUMIF('2011 Survey responses'!AQ37,\">1\")+SUMIF('2011 Survey responses'!AR37,\">1\")+SUMIF('2011 Survey responses'!BG37,\">1\"))/(COUNTIF('2011 Survey responses'!AQ37,\">1\")+COUNTIF('2011 Survey responses'!AR37,\">1\")+COUNTIF('2011 Survey responses'!BG37,\">1\"))))","v":5.333333333333333},{"$f":"IF(SUM('2011 Survey responses'!AP37:AS37)<4.1,\"\",(AVERAGEIFS('2011 Survey responses'!AP37:AS37,'2011 Survey responses'!AP37:AS37,\">1\")))","v":5.25},{"$f":"IF(('2011 Survey responses'!AU37+'2011 Survey responses'!AX37+'2011 Survey responses'!BA37+'2011 Survey responses'!BC37+'2011 Survey responses'!BD37)<5.1,\"\",(SUMIF('2011 Survey responses'!AU37,\">1\")+SUMIF('2011 Survey responses'!AX37,\">1\")+SUMIF('2011 Survey responses'!BA37,\">1\")+SUMIF('2011 Survey responses'!BC37,\">1\")+SUMIF('2011 Survey responses'!BD37,\">1\"))/(COUNTIF('2011 Survey responses'!AU37,\">1\")+COUNTIF('2011 Survey responses'!AX37,\">1\")+COUNTIF('2011 Survey responses'!BA37,\">1\")+COUNTIF('2011 Survey responses'!BC37,\">1\")+COUNTIF('2011 Survey responses'!BD37,\">1\")))","v":5.2},{"$f":"IF(('2011 Survey responses'!AT37)<1.1,\"\",('2011 Survey responses'!AT37))","v":6},{"$f":"IF(SUM('2011 Survey responses'!AV37:AW37)<2.1,\"\",(AVERAGEIFS('2011 Survey responses'!AV37:AW37,'2011 Survey responses'!AV37:AW37,\">1\")))","v":5},{"$f":"IF(('2011 Survey responses'!AW37+'2011 Survey responses'!AY37)<2.1,\"\",(SUMIF('2011 Survey responses'!AW37,\">1\")+SUMIF('2011 Survey responses'!AY37,\">1\"))/(COUNTIF('2011 Survey responses'!AW37,\">1\")+COUNTIF('2011 Survey responses'!AY37,\">1\")))","v":6},{"$f":"IF(('2011 Survey responses'!AZ37)<1.1,\"\",('2011 Survey responses'!AZ37))","v":4},4,4,4,6,{"$f":"IF(('2011 Survey responses'!BE37)<1.1,\"\",('2011 Survey responses'!BE37))","v":4},{"$f":"IF(('2011 Survey responses'!AY37+'2011 Survey responses'!BB37+'2011 Survey responses'!BF37)<3.1,\"\",(SUMIF('2011 Survey responses'!AY37,\">1\")+SUMIF('2011 Survey responses'!BB37,\">1\")+SUMIF('2011 Survey responses'!BF37,\">1\"))/(COUNTIF('2011 Survey responses'!AY37,\">1\")+COUNTIF('2011 Survey responses'!BB37,\">1\")+COUNTIF('2011 Survey responses'!BF37,\">1\")))","v":5.666666666666667},4.9722222222222223,{"$f":"IF(SUM('2011 Survey responses'!BT37:BV37)<3.1,\"\",(AVERAGEIFS('2011 Survey responses'!BT37:BV37,'2011 Survey responses'!BT37:BV37,\">1\")))","v":6},{"$f":"IF(SUM('2011 Survey responses'!BW37:CP37)<1,\"\",(AVERAGEIFS('2011 Survey responses'!BW37:CP37,'2011 Survey responses'!BW37:CP37,\">1\")))","v":5},{"$f":"IF(SUM('2011 Survey responses'!BW37:CF37)<1,\"\",(AVERAGEIFS('2011 Survey responses'!BW37:CF37,'2011 Survey responses'!BW37:CF37,\">1\")))","v":5},{"$f":"IF(SUM('2011 Survey responses'!CG37:CP37)<1,\"\",(AVERAGEIFS('2011 Survey responses'!CG37:CP37,'2011 Survey responses'!CG37:CP37,\">1\")))","v":5},{"$f":"IF(SUM('2011 Survey responses'!BX37:CF37)<1,\"\",(AVERAGEIFS('2011 Survey responses'!BX37:CF37,'2011 Survey responses'!BX37:CF37,\">1\")))","v":4.8888888888888893},{"$f":"IF(SUM('2011 Survey responses'!CH37:CP37)<1,\"\",(AVERAGEIFS('2011 Survey responses'!CH37:CP37,'2011 Survey responses'!CH37:CP37,\">1\")))","v":4.8888888888888893},{"$f":"IF(SUM('2011 Survey responses'!BW37:CP37)<1,\"\",(AVERAGEIFS('2011 Survey responses'!BW37:CP37,'2011 Survey responses'!BW37:CP37,\">1\")))","v":5},{"$f":"IF(('2011 Survey responses'!BW37+'2011 Survey responses'!CG37)<2.1,\"\",(SUMIF('2011 Survey responses'!BW37,\">1\")+SUMIF('2011 Survey responses'!CG37,\">1\"))/(COUNTIF('2011 Survey responses'!BW37,\">1\")+COUNTIF('2011 Survey responses'!CG37,\">1\")))","v":6},{"$f":"IF(('2011 Survey responses'!BX37+'2011 Survey responses'!CH37)<2.1,\"\",(SUMIF('2011 Survey responses'!BX37,\">1\")+SUMIF('2011 Survey responses'!CH37,\">1\"))/(COUNTIF('2011 Survey responses'!BX37,\">1\")+COUNTIF('2011 Survey responses'!CH37,\">1\")))","v":6},{"$f":"IF(('2011 Survey responses'!BY37+'2011 Survey responses'!CI37)<2.1,\"\",(SUMIF('2011 Survey responses'!BY37,\">1\")+SUMIF('2011 Survey responses'!CI37,\">1\"))/(COUNTIF('2011 Survey responses'!BY37,\">1\")+COUNTIF('2011 Survey responses'!CI37,\">1\")))","v":6},{"$f":"IF('2011 Survey responses'!CQ37<0.5,\"\",'2011 Survey responses'!CQ37)","v":4},{"$f":"IF('2011 Survey responses'!CR37<0.5,\"\",'2011 Survey responses'!CR37)","v":5},{"$f":"IF('2011 Survey responses'!CS37<0.5,\"\",'2011 Survey responses'!CS37)","v":5},{"$f":"IF('2011 Survey responses'!CT37<0.5,\"\",'2011 Survey responses'!CT37)","v":4},{"$f":"IF('2011 Survey responses'!CU37<0.5,\"\",'2011 Survey responses'!CU37)","v":2},{"$f":"IF('2011 Survey responses'!CV37<0.5,\"\",'2011 Survey responses'!CV37)","v":2},{"$f":"IF(SUM('2011 Survey responses'!CW37:DL37)<1,\"\",(AVERAGE('2011 Survey responses'!CW37:DL37)))","v":4.5625},{"$f":"IF(SUM('2011 Survey responses'!CW37:CZ37)<1,\"\",(AVERAGE('2011 Survey responses'!CW37:CZ37)))","v":4.25},{"$f":"IF(SUM('2011 Survey responses'!DA37:DD37)<1,\"\",(AVERAGE('2011 Survey responses'!DA37:DD37)))","v":5},{"$f":"IF(SUM('2011 Survey responses'!DE37:DH37)<1,\"\",(AVERAGE('2011 Survey responses'!DE37:DH37)))","v":4},{"$f":"IF(SUM('2011 Survey responses'!DI37:DL37)<1,\"\",(AVERAGE('2011 Survey responses'!DI37:DL37)))","v":5},{"$f":"IF(('2011 Survey responses'!CW37+'2011 Survey responses'!DA37+'2011 Survey responses'!DE37+'2011 Survey responses'!DI37)<1,\"\",AVERAGE('2011 Survey responses'!CW37,'2011 Survey responses'!DA37,'2011 Survey responses'!DE37,'2011 Survey responses'!DI37))","v":4.75},{"$f":"IF(('2011 Survey responses'!CX37+'2011 Survey responses'!DB37+'2011 Survey responses'!DF37+'2011 Survey responses'!DJ37)<1,\"\",AVERAGE('2011 Survey responses'!CX37,'2011 Survey responses'!DB37,'2011 Survey responses'!DF37,'2011 Survey responses'!DJ37))","v":4.75},{"$f":"IF(('2011 Survey responses'!CY37+'2011 Survey responses'!DC37+'2011 Survey responses'!DG37+'2011 Survey responses'!DK37)<1,\"\",AVERAGE('2011 Survey responses'!CY37,'2011 Survey responses'!DC37,'2011 Survey responses'!DG37,'2011 Survey responses'!DK37))","v":4.25},{"$f":"IF(('2011 Survey responses'!CZ37+'2011 Survey responses'!DD37+'2011 Survey responses'!DH37+'2011 Survey responses'!DL37)<1,\"\",AVERAGE('2011 Survey responses'!CZ37,'2011 Survey responses'!DD37,'2011 Survey responses'!DH37,'2011 Survey responses'!DL37))","v":4.5},{"$f":"IF('2011 Survey responses'!CW37<0.5,\"\",'2011 Survey responses'!CW37)","v":5},{"$f":"IF('2011 Survey responses'!CX37<0.5,\"\",'2011 Survey responses'!CX37)","v":5},{"$f":"IF('2011 Survey responses'!CY37<0.5,\"\",'2011 Survey responses'!CY37)","v":3},{"$f":"IF('2011 Survey responses'!CZ37<0.5,\"\",'2011 Survey responses'!CZ37)","v":4},{"$f":"IF('2011 Survey responses'!DA37<0.5,\"\",'2011 Survey responses'!DA37)","v":5},{"$f":"IF('2011 Survey responses'!DB37<0.5,\"\",'2011 Survey responses'!DB37)","v":5},{"$f":"IF('2011 Survey responses'!DC37<0.5,\"\",'2011 Survey responses'!DC37)","v":5},{"$f":"IF('2011 Survey responses'!DD37<0.5,\"\",'2011 Survey responses'!DD37)","v":5},{"$f":"IF('2011 Survey responses'!DE37<0.5,\"\",'2011 Survey responses'!DE37)","v":4},{"$f":"IF('2011 Survey responses'!DF37<0.5,\"\",'2011 Survey responses'!DF37)","v":4},{"$f":"IF('2011 Survey responses'!DG37<0.5,\"\",'2011 Survey responses'!DG37)","v":4},{"$f":"IF('2011 Survey responses'!DH37<0.5,\"\",'2011 Survey responses'!DH37)","v":4},{"$f":"IF('2011 Survey responses'!DI37<0.5,\"\",'2011 Survey responses'!DI37)","v":5},{"$f":"IF('2011 Survey responses'!DJ37<0.5,\"\",'2011 Survey responses'!DJ37)","v":5},{"$f":"IF('2011 Survey responses'!DK37<0.5,\"\",'2011 Survey responses'!DK37)","v":5},{"$f":"IF('2011 Survey responses'!DL37<0.5,\"\",'2011 Survey responses'!DL37)","v":5},{"$f":"IF('2011 Survey responses'!DU37=4,4,IF('2011 Survey responses'!DU37=5,4,\"\"))","v":""},{"$f":"IF('2011 Survey responses'!DV37=4,3,IF('2011 Survey responses'!DV37=5,3,\"\"))","v":3},"",{"$f":"IF(CQ37=2,CQ37,IF(CO37=4,CO37,IF(CP37=3,CP37,IF('2011 Survey responses'!GT37=1,1,\"\"))))","v":3},{"$f":"IF('2011 Survey responses'!DO37<0.5,\"\",'2011 Survey responses'!DO37)","v":4},{"$f":"IF('2011 Survey responses'!DP37<0.5,\"\",'2011 Survey responses'!DP37)","v":1},{"$f":"IF('2011 Survey responses'!DQ37<0.5,\"\",'2011 Survey responses'!DQ37)","v":1},{"$f":"IF('2011 Survey responses'!DR37<0.5,\"\",'2011 Survey responses'!DR37)","v":2},{"$f":"IF('2011 Survey responses'!DS37<0.5,\"\",'2011 Survey responses'!DS37)","v":4},{"$f":"IF('2011 Survey responses'!DT37<0.5,\"\",'2011 Survey responses'!DT37)","v":1},{"$f":"IF('2011 Survey responses'!DU37<0.5,\"\",'2011 Survey responses'!DU37)","v":2},{"$f":"IF('2011 Survey responses'!DV37<0.5,\"\",'2011 Survey responses'!DV37)","v":5},{"$f":"IF('2011 Survey responses'!DW37<0.5,\"\",'2011 Survey responses'!DW37)","v":5},{"$f":"IF('2011 Survey responses'!DX37<0.5,\"\",'2011 Survey responses'!DX37)","v":4},{"$f":"IF('2011 Survey responses'!DY37<0.5,\"\",'2011 Survey responses'!DY37)","v":3},{"$f":"IF('2011 Survey responses'!DZ37<0.5,\"\",'2011 Survey responses'!DZ37)","v":3},{"$f":"IF('2011 Survey responses'!EA37<0.5,\"\",'2011 Survey responses'!EA37)","v":4},{"$f":"IF('2011 Survey responses'!EB37<0.5,\"\",'2011 Survey responses'!EB37)","v":1},{"$f":"IF('2011 Survey responses'!EC37<0.5,\"\",'2011 Survey responses'!EC37)","v":1},{"$f":"IF('2011 Survey responses'!ED37<0.5,\"\",'2011 Survey responses'!ED37)","v":4},{"$f":"IF('2011 Survey responses'!EE37<0.5,\"\",'2011 Survey responses'!EE37)","v":5},{"$f":"IF('2011 Survey responses'!EF37<0.5,\"\",'2011 Survey responses'!EF37)","v":3},{"$f":"IF('2011 Survey responses'!EG37<0.5,\"\",'2011 Survey responses'!EG37)","v":4},{"$f":"IF('2011 Survey responses'!EH37<0.5,\"\",'2011 Survey responses'!EH37)","v":5},{"$f":"IF('2011 Survey responses'!EI37<0.5,\"\",'2011 Survey responses'!EI37)","v":5},{"$f":"IF('2011 Survey responses'!EJ37<0.5,\"\",'2011 Survey responses'!EJ37)","v":5},{"$f":"IF('2011 Survey responses'!EK37<0.5,\"\",'2011 Survey responses'!EK37)","v":1},{"$f":"IF('2011 Survey responses'!EL37<0.5,\"\",'2011 Survey responses'!EL37)","v":4},{"$f":"IF('2011 Survey responses'!EM37<0.5,\"\",'2011 Survey responses'!EM37)","v":4},{"$f":"IF('2011 Survey responses'!EN37<0.5,\"\",'2011 Survey responses'!EN37)","v":4},{"$f":"IF('2011 Survey responses'!EO37<0.5,\"\",'2011 Survey responses'!EO37)","v":3},{"$f":"IF('2011 Survey responses'!EP37<0.5,\"\",'2011 Survey responses'!EP37)","v":3},{"$f":"IF(('2011 Survey responses'!EW37+'2011 Survey responses'!EX37)>=2,AVERAGE('2011 Survey responses'!EW37,'2011 Survey responses'!EY37),\"\")","v":4.5},{"$f":"IF('2011 Survey responses'!EX37<0.5,\"\",'2011 Survey responses'!EX37)","v":5},{"$f":"IF('2011 Survey responses'!EZ37<0.5,\"\",'2011 Survey responses'!EZ37)","v":4},{"$f":"IF('2011 Survey responses'!FB37<0.5,\"\",'2011 Survey responses'!FB37)","v":4},{"$f":"IF('2011 Survey responses'!FD37<0.5,\"\",'2011 Survey responses'!FD37)","v":3},{"$f":"IF('2011 Survey responses'!FC37<0.5,\"\",'2011 Survey responses'!FC37)","v":4},{"$f":"IF(('2011 Survey responses'!EM37+'2011 Survey responses'!EN37)>=2,AVERAGE('2011 Survey responses'!EM37,'2011 Survey responses'!EN37),\"\")","v":4},{"$f":"IF('2011 Survey responses'!ES37<0.5,\"\",'2011 Survey responses'!ES37)","v":4},{"$f":"IF(('2011 Survey responses'!ET37+'2011 Survey responses'!EU37)>=2,AVERAGE('2011 Survey responses'!ET37,'2011 Survey responses'!EU37),\"\")","v":3},{"$f":"IF('2011 Survey responses'!EV37<0.5,\"\",'2011 Survey responses'!EV37)","v":1},{"$f":"IF('2011 Survey responses'!FA37<0.5,\"\",'2011 Survey responses'!FA37)","v":4},{"$f":"IF('2011 Survey responses'!ER37<0.5,\"\",'2011 Survey responses'!ER37)","v":4},{"$f":"IF(('2011 Survey responses'!EO37+'2011 Survey responses'!EP37)>=2,AVERAGE('2011 Survey responses'!EO37,'2011 Survey responses'!EP37),\"\")","v":3},{"$f":"IF('2011 Survey responses'!EQ37<0.5,\"\",'2011 Survey responses'!EQ37)","v":3},{"$f":"IF('2011 Survey responses'!ET37<0.5,\"\",'2011 Survey responses'!ET37)","v":3},{"$f":"IF('2011 Survey responses'!EU37<0.5,\"\",'2011 Survey responses'!EU37)","v":3},{"$f":"IF('2011 Survey responses'!EW37<0.5,\"\",'2011 Survey responses'!EW37)","v":4},{"$f":"IF('2011 Survey responses'!EY37<0.5,\"\",'2011 Survey responses'!EY37)","v":5},{"$f":"IF('2011 Survey responses'!FU37<0.5,\"\",'2011 Survey responses'!FU37)","v":5},{"$f":"IF(('2011 Survey responses'!FL37+'2011 Survey responses'!FM37)>=2,AVERAGE('2011 Survey responses'!FL37,'2011 Survey responses'!FM37),\"\")","v":4},{"$f":"IF(('2011 Survey responses'!FO37+'2011 Survey responses'!FQ37)>=2,AVERAGE('2011 Survey responses'!FO37,'2011 Survey responses'!FQ37),\"\")","v":4.5},{"$f":"IF('2011 Survey responses'!FJ37<0.5,\"\",'2011 Survey responses'!FJ37)","v":2},{"$f":"IF('2011 Survey responses'!FT37<0.5,\"\",'2011 Survey responses'!FT37)","v":5},{"$f":"IF('2011 Survey responses'!FR37<0.5,\"\",'2011 Survey responses'!FR37)","v":4},{"$f":"IF('2011 Survey responses'!FK37<0.5,\"\",'2011 Survey responses'!FK37)","v":4},{"$f":"IF('2011 Survey responses'!FP37<0.5,\"\",'2011 Survey responses'!FP37)","v":5},{"$f":"IF('2011 Survey responses'!FN37<0.5,\"\",'2011 Survey responses'!FN37)","v":2},{"$f":"IF(('2011 Survey responses'!FE37+'2011 Survey responses'!FF37)>=2,AVERAGE('2011 Survey responses'!FE37,'2011 Survey responses'!FF37),\"\")","v":4},{"$f":"IF('2011 Survey responses'!FS37<0.5,\"\",'2011 Survey responses'!FS37)","v":4},{"$f":"IF('2011 Survey responses'!FV37<0.5,\"\",'2011 Survey responses'!FV37)","v":5},{"$f":"IF(('2011 Survey responses'!FG37+'2011 Survey responses'!FH37)>=2,AVERAGE('2011 Survey responses'!FG37,'2011 Survey responses'!FH37),\"\")","v":3},{"$f":"IF('2011 Survey responses'!FI37<0.5,\"\",'2011 Survey responses'!FI37)","v":2},{"$f":"IF('2011 Survey responses'!FE37<0.5,\"\",'2011 Survey responses'!FE37)","v":4},{"$f":"IF('2011 Survey responses'!FF37<0.5,\"\",'2011 Survey responses'!FF37)","v":4},{"$f":"IF('2011 Survey responses'!FG37<0.5,\"\",'2011 Survey responses'!FG37)","v":3},{"$f":"IF('2011 Survey responses'!FH37<0.5,\"\",'2011 Survey responses'!FH37)","v":3},{"$f":"IF('2011 Survey responses'!FL37<0.5,\"\",'2011 Survey responses'!FL37)","v":4},{"$f":"IF('2011 Survey responses'!FM37<0.5,\"\",'2011 Survey responses'!FM37)","v":4},{"$f":"IF('2011 Survey responses'!FO37<0.5,\"\",'2011 Survey responses'!FO37)","v":4},{"$f":"IF('2011 Survey responses'!FQ37<0.5,\"\",'2011 Survey responses'!FQ37)","v":5}]
["China",{"$f":"IF(SUM(F38)<1,\"\",AVERAGEIF('2011 Survey responses'!B38:CP38,\">1\"))","v":4.924731182795699},{"$f":"IF(SUM(F38)<1,\"\",AVERAGEIF('2011 Survey responses'!B38:AO38,\">1\"))","v":4.3499999999999996},{"$f":"IF(SUM(F38)<1,\"\",AVERAGEIF('2011 Survey responses'!B38:BV38,\">1\"))","v":4.6986301369863011},{"$f":"IF(SUM(F38)<1,\"\",AVERAGEIF('2011 Survey responses'!V38:BV38,\">1\"))","v":4.7547169811320753},{"$f":"IF(SUM('2011 Survey responses'!B38:U38)<1,\"\",(AVERAGEIFS('2011 Survey responses'!B38:U38,'2011 Survey responses'!B38:U38,\">1\")))","v":4.55},{"$f":"IF(SUM('2011 Survey responses'!B38:H38)<1,\"\",(AVERAGEIFS('2011 Survey responses'!B38:H38,'2011 Survey responses'!B38:H38,\">1\")))","v":5},{"$f":"IF(SUM('2011 Survey responses'!I38:S38)<1,\"\",(AVERAGEIFS('2011 Survey responses'!I38:S38,'2011 Survey responses'!I38:S38,\">1\")))","v":4.7272727272727275},{"$f":"IF(SUM('2011 Survey responses'!T38:U38)<2.1,\"\",(AVERAGEIFS('2011 Survey responses'!T38:U38,'2011 Survey responses'!T38:U38,\">1\")))","v":2},{"$f":"IF(SUM('2011 Survey responses'!B38:C38)<2.1,\"\",((SUMIF('2011 Survey responses'!B38:C38,\">1\")+SUMIF('2011 Survey responses'!F38,\">1\"))/(COUNTIF('2011 Survey responses'!B38:C38,\">1\")+COUNTIF('2011 Survey responses'!F38,\">1\"))))","v":5},{"$f":"IF(SUM('2011 Survey responses'!D38:E38)<2.1,\"\",(AVERAGEIFS('2011 Survey responses'!D38:E38,'2011 Survey responses'!D38:E38,\">1\")))","v":5},{"$f":"IF(('2011 Survey responses'!B38+'2011 Survey responses'!D38)<2.1,\"\",((SUMIF('2011 Survey responses'!B38,\">1\")+SUMIF('2011 Survey responses'!D38,\">1\")+SUMIF('2011 Survey responses'!F38,\">1\")+SUMIF('2011 Survey responses'!K38,\">1\"))/(COUNTIF('2011 Survey responses'!B38,\">1\")+COUNTIF('2011 Survey responses'!D38,\">1\")+COUNTIF('2011 Survey responses'!F38,\">1\")+COUNTIF('2011 Survey responses'!K38,\">1\"))))","v":5},{"$f":"IF(SUM('2011 Survey responses'!G38:H38)<2.1,\"\",(AVERAGEIFS('2011 Survey responses'!G38:H38,'2011 Survey responses'!G38:H38,\">1\")))","v":5},{"$f":"IF(SUM('2011 Survey responses'!F38:G38)<1.5,\"\",MAX('2011 Survey responses'!F38,'2011 Survey responses'!G38))","v":5},{"$f":"IF(SUM('2011 Survey responses'!G38:H38)<1,\"\",MAX('2011 Survey responses'!G38,'2011 Survey responses'!H38))","v":5},{"$f":"IF(SUM('2011 Survey responses'!I38:L38)<4.1,\"\",(AVERAGEIFS('2011 Survey responses'!I38:L38,'2011 Survey responses'!I38:L38,\">1\")))","v":5},{"$f":"IF(SUM('2011 Survey responses'!M38:S38)<4.1,\"\",(AVERAGEIFS('2011 Survey responses'!M38:S38,'2011 Survey responses'!M38:S38,\">1\")))","v":4.5714285714285712},{"$f":"IF(SUM('2011 Survey responses'!T38:U38)<2.1,\"\",(AVERAGEIFS('2011 Survey responses'!T38:U38,'2011 Survey responses'!T38:U38,\">1\")))","v":2},{"$f":"IF(SUM('2011 Survey responses'!V38:AO38)<1,\"\",(AVERAGEIFS('2011 Survey responses'!V38:AO38,'2011 Survey responses'!V38:AO38,\">1\")))","v":4.1500000000000004},{"$f":"IF(SUM('2011 Survey responses'!V38:AA38)<1,\"\",(AVERAGEIFS('2011 Survey responses'!V38:AA38,'2011 Survey responses'!V38:AA38,\">1\")))","v":3.8333333333333335},{"$f":"IF(SUM('2011 Survey responses'!AB38:AH38)<1,\"\",(AVERAGEIFS('2011 Survey responses'!AB38:AH38,'2011 Survey responses'!AB38:AH38,\">1\")))","v":3.5714285714285716},{"$f":"IF(SUM('2011 Survey responses'!AI38:AO38)<1,\"\",(AVERAGEIFS('2011 Survey responses'!AI38:AO38,'2011 Survey responses'!AI38:AO38,\">1\")))","v":5},{"$f":"IF(('2011 Survey responses'!Y38+'2011 Survey responses'!AI38+'2011 Survey responses'!AK38)<3.1,\"\",((SUMIF('2011 Survey responses'!Y38,\">1\")+SUMIF('2011 Survey responses'!AI38,\">1\")+SUMIF('2011 Survey responses'!AK38,\">1\")+SUMIF('2011 Survey responses'!AM38,\">1\"))/(COUNTIF('2011 Survey responses'!Y38,\">1\")+COUNTIF('2011 Survey responses'!AI38,\">1\")+COUNTIF('2011 Survey responses'!AK38,\">1\")+COUNTIF('2011 Survey responses'!AM38,\">1\"))))","v":4.75},{"$f":"IF(('2011 Survey responses'!W38)<1.1,\"\",('2011 Survey responses'!W38))","v":4},{"$f":"IF(('2011 Survey responses'!Y38)<1.1,\"\",('2011 Survey responses'!Y38))","v":4},{"$f":"IF(('2011 Survey responses'!Z38)<1.1,\"\",('2011 Survey responses'!Z38))","v":4},{"$f":"IF(('2011 Survey responses'!V38+'2011 Survey responses'!X38+'2011 Survey responses'!AA38)<3.1,\"\",((SUMIF('2011 Survey responses'!V38,\">1\")+SUMIF('2011 Survey responses'!X38,\">1\")+SUMIF('2011 Survey responses'!AA38,\">1\"))/(COUNTIF('2011 Survey responses'!V38,\">1\")+COUNTIF('2011 Survey responses'!X38,\">1\")+COUNTIF('2011 Survey responses'!AA38,\">1\"))))","v":3.6666666666666665},{"$f":"IF(('2011 Survey responses'!V38+'2011 Survey responses'!Y38+'2011 Survey responses'!AA38)<3.1,\"\",((SUMIF('2011 Survey responses'!V38,\">1\")+SUMIF('2011 Survey responses'!Y38,\">1\")+SUMIF('2011 Survey responses'!AA38,\">1\"))/(COUNTIF('2011 Survey responses'!V38,\">1\")+COUNTIF('2011 Survey responses'!Y38,\">1\")+COUNTIF('2011 Survey responses'!AA38,\">1\"))))","v":3.6666666666666665},{"$f":"IF(SUM('2011 Survey responses'!AB38:AH38)<1,\"\",(AVERAGEIFS('2011 Survey responses'!AB38:AH38,'2011 Survey responses'!AB38:AH38,\">1\")))","v":3.5714285714285716},{"$f":"IF(SUM('2011 Survey responses'!AI38:AO38)<7.1,\"\",(AVERAGEIFS('2011 Survey responses'!AI38:AO38,'2011 Survey responses'!AI38:AO38,\">1\")))","v":5},{"$f":"IF(('2011 Survey responses'!AH38)<1.1,\"\",('2011 Survey responses'!AH38))","v":2},{"$f":"IF(SUM('2011 Survey responses'!AP38:BV38)<1,\"\",(AVERAGEIFS('2011 Survey responses'!AP38:BV38,'2011 Survey responses'!AP38:BV38,\">1\")))","v":5.1212121212121211},{"$f":"IF(SUM('2011 Survey responses'!AP38:AS38)<4.1,\"\",(AVERAGEIFS('2011 Survey responses'!AP38:AS38,'2011 Survey responses'!AP38:AS38,\">1\")))","v":4.5},{"$f":"IF(SUM('2011 Survey responses'!AT38:BF38)<1,\"\",(AVERAGEIFS('2011 Survey responses'!AT38:BF38,'2011 Survey responses'!AT38:BF38,\">1\")))","v":4.9230769230769234},{"$f":"IF(SUM('2011 Survey responses'!BG38:BO38)<1,\"\",(AVERAGEIFS('2011 Survey responses'!BG38:BO38,'2011 Survey responses'!BG38:BO38,\">1\")))","v":5.8888888888888893},{"$f":"IF(SUM('2011 Survey responses'!BP38:BS38)<1,\"\",(AVERAGEIFS('2011 Survey responses'!BP38:BS38,'2011 Survey responses'!BP38:BS38,\">1\")))","v":4.5},{"$f":"IF(SUM('2011 Survey responses'!BT38:BV38)<3.1,\"\",(AVERAGEIFS('2011 Survey responses'!BT38:BV38,'2011 Survey responses'!BT38:BV38,\">1\")))","v":5.333333333333333},{"$f":"IF(('2011 Survey responses'!AQ38+'2011 Survey responses'!AR38+'2011 Survey responses'!BG38)<3.1,\"\",((SUMIF('2011 Survey responses'!AQ38,\">1\")+SUMIF('2011 Survey responses'!AR38,\">1\")+SUMIF('2011 Survey responses'!BG38,\">1\"))/(COUNTIF('2011 Survey responses'!AQ38,\">1\")+COUNTIF('2011 Survey responses'!AR38,\">1\")+COUNTIF('2011 Survey responses'!BG38,\">1\"))))","v":5.333333333333333},{"$f":"IF(SUM('2011 Survey responses'!AP38:AS38)<4.1,\"\",(AVERAGEIFS('2011 Survey responses'!AP38:AS38,'2011 Survey responses'!AP38:AS38,\">1\")))","v":4.5},{"$f":"IF(('2011 Survey responses'!AU38+'2011 Survey responses'!AX38+'2011 Survey responses'!BA38+'2011 Survey responses'!BC38+'2011 Survey responses'!BD38)<5.1,\"\",(SUMIF('2011 Survey responses'!AU38,\">1\")+SUMIF('2011 Survey responses'!AX38,\">1\")+SUMIF('2011 Survey responses'!BA38,\">1\")+SUMIF('2011 Survey responses'!BC38,\">1\")+SUMIF('2011 Survey responses'!BD38,\">1\"))/(COUNTIF('2011 Survey responses'!AU38,\">1\")+COUNTIF('2011 Survey responses'!AX38,\">1\")+COUNTIF('2011 Survey responses'!BA38,\">1\")+COUNTIF('2011 Survey responses'!BC38,\">1\")+COUNTIF('2011 Survey responses'!BD38,\">1\")))","v":5.4},{"$f":"IF(('2011 Survey responses'!AT38)<1.1,\"\",('2011 Survey responses'!AT38))","v":5},{"$f":"IF(SUM('2011 Survey responses'!AV38:AW38)<2.1,\"\",(AVERAGEIFS('2011 Survey responses'!AV38:AW38,'2011 Survey responses'!AV38:AW38,\">1\")))","v":5.5},{"$f":"IF(('2011 Survey responses'!AW38+'2011 Survey responses'!AY38)<2.1,\"\",(SUMIF('2011 Survey responses'!AW38,\">1\")+SUMIF('2011 Survey responses'!AY38,\">1\"))/(COUNTIF('2011 Survey responses'!AW38,\">1\")+COUNTIF('2011 Survey responses'!AY38,\">1\")))","v":5.5},{"$f":"IF(('2011 Survey responses'!AZ38)<1.1,\"\",('2011 Survey responses'!AZ38))","v":5},5,5,4,5,{"$f":"IF(('2011 Survey responses'!BE38)<1.1,\"\",('2011 Survey responses'!BE38))","v":2},{"$f":"IF(('2011 Survey responses'!AY38+'2011 Survey responses'!BB38+'2011 Survey responses'!BF38)<3.1,\"\",(SUMIF('2011 Survey responses'!AY38,\">1\")+SUMIF('2011 Survey responses'!BB38,\">1\")+SUMIF('2011 Survey responses'!BF38,\">1\"))/(COUNTIF('2011 Survey responses'!AY38,\">1\")+COUNTIF('2011 Survey responses'!BB38,\">1\")+COUNTIF('2011 Survey responses'!BF38,\">1\")))","v":4.666666666666667},5.1944444444444446,{"$f":"IF(SUM('2011 Survey responses'!BT38:BV38)<3.1,\"\",(AVERAGEIFS('2011 Survey responses'!BT38:BV38,'2011 Survey responses'!BT38:BV38,\">1\")))","v":5.333333333333333},{"$f":"IF(SUM('2011 Survey responses'!BW38:CP38)<1,\"\",(AVERAGEIFS('2011 Survey responses'!BW38:CP38,'2011 Survey responses'!BW38:CP38,\">1\")))","v":5.75},{"$f":"IF(SUM('2011 Survey responses'!BW38:CF38)<1,\"\",(AVERAGEIFS('2011 Survey responses'!BW38:CF38,'2011 Survey responses'!BW38:CF38,\">1\")))","v":5.8},{"$f":"IF(SUM('2011 Survey responses'!CG38:CP38)<1,\"\",(AVERAGEIFS('2011 Survey responses'!CG38:CP38,'2011 Survey responses'!CG38:CP38,\">1\")))","v":5.7},{"$f":"IF(SUM('2011 Survey responses'!BX38:CF38)<1,\"\",(AVERAGEIFS('2011 Survey responses'!BX38:CF38,'2011 Survey responses'!BX38:CF38,\">1\")))","v":5.7777777777777777},{"$f":"IF(SUM('2011 Survey responses'!CH38:CP38)<1,\"\",(AVERAGEIFS('2011 Survey responses'!CH38:CP38,'2011 Survey responses'!CH38:CP38,\">1\")))","v":5.666666666666667},{"$f":"IF(SUM('2011 Survey responses'!BW38:CP38)<1,\"\",(AVERAGEIFS('2011 Survey responses'!BW38:CP38,'2011 Survey responses'!BW38:CP38,\">1\")))","v":5.75},{"$f":"IF(('2011 Survey responses'!BW38+'2011 Survey responses'!CG38)<2.1,\"\",(SUMIF('2011 Survey responses'!BW38,\">1\")+SUMIF('2011 Survey responses'!CG38,\">1\"))/(COUNTIF('2011 Survey responses'!BW38,\">1\")+COUNTIF('2011 Survey responses'!CG38,\">1\")))","v":6},{"$f":"IF(('2011 Survey responses'!BX38+'2011 Survey responses'!CH38)<2.1,\"\",(SUMIF('2011 Survey responses'!BX38,\">1\")+SUMIF('2011 Survey responses'!CH38,\">1\"))/(COUNTIF('2011 Survey responses'!BX38,\">1\")+COUNTIF('2011 Survey responses'!CH38,\">1\")))","v":6},{"$f":"IF(('2011 Survey responses'!BY38+'2011 Survey responses'!CI38)<2.1,\"\",(SUMIF('2011 Survey responses'!BY38,\">1\")+SUMIF('2011 Survey responses'!CI38,\">1\"))/(COUNTIF('2011 Survey responses'!BY38,\">1\")+COUNTIF('2011 Survey responses'!CI38,\">1\")))","v":6},{"$f":"IF('2011 Survey responses'!CQ38<0.5,\"\",'2011 Survey responses'!CQ38)","v":4},{"$f":"IF('2011 Survey responses'!CR38<0.5,\"\",'2011 Survey responses'!CR38)","v":3},{"$f":"IF('2011 Survey responses'!CS38<0.5,\"\",'2011 Survey responses'!CS38)","v":3},{"$f":"IF('2011 Survey responses'!CT38<0.5,\"\",'2011 Survey responses'!CT38)","v":4},{"$f":"IF('2011 Survey responses'!CU38<0.5,\"\",'2011 Survey responses'!CU38)","v":5},{"$f":"IF('2011 Survey responses'!CV38<0.5,\"\",'2011 Survey responses'!CV38)","v":1},{"$f":"IF(SUM('2011 Survey responses'!CW38:DL38)<1,\"\",(AVERAGE('2011 Survey responses'!CW38:DL38)))","v":4.375},{"$f":"IF(SUM('2011 Survey responses'!CW38:CZ38)<1,\"\",(AVERAGE('2011 Survey responses'!CW38:CZ38)))","v":4.75},{"$f":"IF(SUM('2011 Survey responses'!DA38:DD38)<1,\"\",(AVERAGE('2011 Survey responses'!DA38:DD38)))","v":4},{"$f":"IF(SUM('2011 Survey responses'!DE38:DH38)<1,\"\",(AVERAGE('2011 Survey responses'!DE38:DH38)))","v":4},{"$f":"IF(SUM('2011 Survey responses'!DI38:DL38)<1,\"\",(AVERAGE('2011 Survey responses'!DI38:DL38)))","v":4.75},{"$f":"IF(('2011 Survey responses'!CW38+'2011 Survey responses'!DA38+'2011 Survey responses'!DE38+'2011 Survey responses'!DI38)<1,\"\",AVERAGE('2011 Survey responses'!CW38,'2011 Survey responses'!DA38,'2011 Survey responses'!DE38,'2011 Survey responses'!DI38))","v":4.5},{"$f":"IF(('2011 Survey responses'!CX38+'2011 Survey responses'!DB38+'2011 Survey responses'!DF38+'2011 Survey responses'!DJ38)<1,\"\",AVERAGE('2011 Survey responses'!CX38,'2011 Survey responses'!DB38,'2011 Survey responses'!DF38,'2011 Survey responses'!DJ38))","v":4.5},{"$f":"IF(('2011 Survey responses'!CY38+'2011 Survey responses'!DC38+'2011 Survey responses'!DG38+'2011 Survey responses'!DK38)<1,\"\",AVERAGE('2011 Survey responses'!CY38,'2011 Survey responses'!DC38,'2011 Survey responses'!DG38,'2011 Survey responses'!DK38))","v":4},{"$f":"IF(('2011 Survey responses'!CZ38+'2011 Survey responses'!DD38+'2011 Survey responses'!DH38+'2011 Survey responses'!DL38)<1,\"\",AVERAGE('2011 Survey responses'!CZ38,'2011 Survey responses'!DD38,'2011 Survey responses'!DH38,'2011 Survey responses'!DL38))","v":4.5},{"$f":"IF('2011 Survey responses'!CW38<0.5,\"\",'2011 Survey responses'!CW38)","v":5},{"$f":"IF('2011 Survey responses'!CX38<0.5,\"\",'2011 Survey responses'!CX38)","v":5},{"$f":"IF('2011 Survey responses'!CY38<0.5,\"\",'2011 Survey responses'!CY38)","v":4},{"$f":"IF('2011 Survey responses'!CZ38<0.5,\"\",'2011 Survey responses'!CZ38)","v":5},{"$f":"IF('2011 Survey responses'!DA38<0.5,\"\",'2011 Survey responses'!DA38)","v":4},{"$f":"IF('2011 Survey responses'!DB38<0.5,\"\",'2011 Survey responses'!DB38)","v":4},{"$f":"IF('2011 Survey responses'!DC38<0.5,\"\",'2011 Survey responses'!DC38)","v":4},{"$f":"IF('2011 Survey responses'!DD38<0.5,\"\",'2011 Survey responses'!DD38)","v":4},{"$f":"IF('2011 Survey responses'!DE38<0.5,\"\",'2011 Survey responses'!DE38)","v":4},{"$f":"IF('2011 Survey responses'!DF38<0.5,\"\",'2011 Survey responses'!DF38)","v":4},{"$f":"IF('2011 Survey responses'!DG38<0.5,\"\",'2011 Survey responses'!DG38)","v":4},{"$f":"IF('2011 Survey responses'!DH38<0.5,\"\",'2011 Survey responses'!DH38)","v":4},{"$f":"IF('2011 Survey responses'!DI38<0.5,\"\",'2011 Survey responses'!DI38)","v":5},{"$f":"IF('2011 Survey responses'!DJ38<0.5,\"\",'2011 Survey responses'!DJ38)","v":5},{"$f":"IF('2011 Survey responses'!DK38<0.5,\"\",'2011 Survey responses'!DK38)","v":4},{"$f":"IF('2011 Survey responses'!DL38<0.5,\"\",'2011 Survey responses'!DL38)","v":5},{"$f":"IF('2011 Survey responses'!DU38=4,4,IF('2011 Survey responses'!DU38=5,4,\"\"))","v":4},{"$f":"IF('2011 Survey responses'!DV38=4,3,IF('2011 Survey responses'!DV38=5,3,\"\"))","v":3},2,{"$f":"IF(CQ38=2,CQ38,IF(CO38=4,CO38,IF(CP38=3,CP38,IF('2011 Survey responses'!GT38=1,1,\"\"))))","v":2},{"$f":"IF('2011 Survey responses'!DO38<0.5,\"\",'2011 Survey responses'!DO38)","v":3},{"$f":"IF('2011 Survey responses'!DP38<0.5,\"\",'2011 Survey responses'!DP38)","v":4},{"$f":"IF('2011 Survey responses'!DQ38<0.5,\"\",'2011 Survey responses'!DQ38)","v":4},{"$f":"IF('2011 Survey responses'!DR38<0.5,\"\",'2011 Survey responses'!DR38)","v":3},{"$f":"IF('2011 Survey responses'!DS38<0.5,\"\",'2011 Survey responses'!DS38)","v":4},{"$f":"IF('2011 Survey responses'!DT38<0.5,\"\",'2011 Survey responses'!DT38)","v":5},{"$f":"IF('2011 Survey responses'!DU38<0.5,\"\",'2011 Survey responses'!DU38)","v":5},{"$f":"IF('2011 Survey responses'!DV38<0.5,\"\",'2011 Survey responses'!DV38)","v":5},{"$f":"IF('2011 Survey responses'!DW38<0.5,\"\",'2011 Survey responses'!DW38)","v":5},{"$f":"IF('2011 Survey responses'!DX38<0.5,\"\",'2011 Survey responses'!DX38)","v":4},{"$f":"IF('2011 Survey responses'!DY38<0.5,\"\",'2011 Survey responses'!DY38)","v":4},{"$f":"IF('2011 Survey responses'!DZ38<0.5,\"\",'2011 Survey responses'!DZ38)","v":4},{"$f":"IF('2011 Survey responses'!EA38<0.5,\"\",'2011 Survey responses'!EA38)","v":3},{"$f":"IF('2011 Survey responses'!EB38<0.5,\"\",'2011 Survey responses'!EB38)","v":4},{"$f":"IF('2011 Survey responses'!EC38<0.5,\"\",'2011 Survey responses'!EC38)","v":4},{"$f":"IF('2011 Survey responses'!ED38<0.5,\"\",'2011 Survey responses'!ED38)","v":3},{"$f":"IF('2011 Survey responses'!EE38<0.5,\"\",'2011 Survey responses'!EE38)","v":4},{"$f":"IF('2011 Survey responses'!EF38<0.5,\"\",'2011 Survey responses'!EF38)","v":5},{"$f":"IF('2011 Survey responses'!EG38<0.5,\"\",'2011 Survey responses'!EG38)","v":4},{"$f":"IF('2011 Survey responses'!EH38<0.5,\"\",'2011 Survey responses'!EH38)","v":4},{"$f":"IF('2011 Survey responses'!EI38<0.5,\"\",'2011 Survey responses'!EI38)","v":3},{"$f":"IF('2011 Survey responses'!EJ38<0.5,\"\",'2011 Survey responses'!EJ38)","v":4},{"$f":"IF('2011 Survey responses'!EK38<0.5,\"\",'2011 Survey responses'!EK38)","v":4},{"$f":"IF('2011 Survey responses'!EL38<0.5,\"\",'2011 Survey responses'!EL38)","v":3},{"$f":"IF('2011 Survey responses'!EM38<0.5,\"\",'2011 Survey responses'!EM38)","v":3},{"$f":"IF('2011 Survey responses'!EN38<0.5,\"\",'2011 Survey responses'!EN38)","v":3},{"$f":"IF('2011 Survey responses'!EO38<0.5,\"\",'2011 Survey responses'!EO38)","v":3},{"$f":"IF('2011 Survey responses'!EP38<0.5,\"\",'2011 Survey responses'!EP38)","v":3},{"$f":"IF(('2011 Survey responses'!EW38+'2011 Survey responses'!EX38)>=2,AVERAGE('2011 Survey responses'!EW38,'2011 Survey responses'!EY38),\"\")","v":3},{"$f":"IF('2011 Survey responses'!EX38<0.5,\"\",'2011 Survey responses'!EX38)","v":4},{"$f":"IF('2011 Survey responses'!EZ38<0.5,\"\",'2011 Survey responses'!EZ38)","v":3},{"$f":"IF('2011 Survey responses'!FB38<0.5,\"\",'2011 Survey responses'!FB38)","v":4},{"$f":"IF('2011 Survey responses'!FD38<0.5,\"\",'2011 Survey responses'!FD38)","v":4},{"$f":"IF('2011 Survey responses'!FC38<0.5,\"\",'2011 Survey responses'!FC38)","v":4},{"$f":"IF(('2011 Survey responses'!EM38+'2011 Survey responses'!EN38)>=2,AVERAGE('2011 Survey responses'!EM38,'2011 Survey responses'!EN38),\"\")","v":3},{"$f":"IF('2011 Survey responses'!ES38<0.5,\"\",'2011 Survey responses'!ES38)","v":4},{"$f":"IF(('2011 Survey responses'!ET38+'2011 Survey responses'!EU38)>=2,AVERAGE('2011 Survey responses'!ET38,'2011 Survey responses'!EU38),\"\")","v":4},{"$f":"IF('2011 Survey responses'!EV38<0.5,\"\",'2011 Survey responses'!EV38)","v":3},{"$f":"IF('2011 Survey responses'!FA38<0.5,\"\",'2011 Survey responses'!FA38)","v":4},{"$f":"IF('2011 Survey responses'!ER38<0.5,\"\",'2011 Survey responses'!ER38)","v":3},{"$f":"IF(('2011 Survey responses'!EO38+'2011 Survey responses'!EP38)>=2,AVERAGE('2011 Survey responses'!EO38,'2011 Survey responses'!EP38),\"\")","v":3},{"$f":"IF('2011 Survey responses'!EQ38<0.5,\"\",'2011 Survey responses'!EQ38)","v":2},{"$f":"IF('2011 Survey responses'!ET38<0.5,\"\",'2011 Survey responses'!ET38)","v":4},{"$f":"IF('2011 Survey responses'!EU38<0.5,\"\",'2011 Survey responses'!EU38)","v":4},{"$f":"IF('2011 Survey responses'!EW38<0.5,\"\",'2011 Survey responses'!EW38)","v":3},{"$f":"IF('2011 Survey responses'!EY38<0.5,\"\",'2011 Survey responses'!EY38)","v":3},{"$f":"IF('2011 Survey responses'!FU38<0.5,\"\",'2011 Survey responses'!FU38)","v":3},{"$f":"IF(('2011 Survey responses'!FL38+'2011 Survey responses'!FM38)>=2,AVERAGE('2011 Survey responses'!FL38,'2011 Survey responses'!FM38),\"\")","v":4},{"$f":"IF(('2011 Survey responses'!FO38+'2011 Survey responses'!FQ38)>=2,AVERAGE('2011 Survey responses'!FO38,'2011 Survey responses'!FQ38),\"\")","v":2.5},{"$f":"IF('2011 Survey responses'!FJ38<0.5,\"\",'2011 Survey responses'!FJ38)","v":4},{"$f":"IF('2011 Survey responses'!FT38<0.5,\"\",'2011 Survey responses'!FT38)","v":3},{"$f":"IF('2011 Survey responses'!FR38<0.5,\"\",'2011 Survey responses'!FR38)","v":3},{"$f":"IF('2011 Survey responses'!FK38<0.5,\"\",'2011 Survey responses'!FK38)","v":4},{"$f":"IF('2011 Survey responses'!FP38<0.5,\"\",'2011 Survey responses'!FP38)","v":4},{"$f":"IF('2011 Survey responses'!FN38<0.5,\"\",'2011 Survey responses'!FN38)","v":4},{"$f":"IF(('2011 Survey responses'!FE38+'2011 Survey responses'!FF38)>=2,AVERAGE('2011 Survey responses'!FE38,'2011 Survey responses'!FF38),\"\")","v":2},{"$f":"IF('2011 Survey responses'!FS38<0.5,\"\",'2011 Survey responses'!FS38)","v":3},{"$f":"IF('2011 Survey responses'!FV38<0.5,\"\",'2011 Survey responses'!FV38)","v":3},{"$f":"IF(('2011 Survey responses'!FG38+'2011 Survey responses'!FH38)>=2,AVERAGE('2011 Survey responses'!FG38,'2011 Survey responses'!FH38),\"\")","v":4},{"$f":"IF('2011 Survey responses'!FI38<0.5,\"\",'2011 Survey responses'!FI38)","v":3},{"$f":"IF('2011 Survey responses'!FE38<0.5,\"\",'2011 Survey responses'!FE38)","v":2},{"$f":"IF('2011 Survey responses'!FF38<0.5,\"\",'2011 Survey responses'!FF38)","v":2},{"$f":"IF('2011 Survey responses'!FG38<0.5,\"\",'2011 Survey responses'!FG38)","v":4},{"$f":"IF('2011 Survey responses'!FH38<0.5,\"\",'2011 Survey responses'!FH38)","v":4},{"$f":"IF('2011 Survey responses'!FL38<0.5,\"\",'2011 Survey responses'!FL38)","v":4},{"$f":"IF('2011 Survey responses'!FM38<0.5,\"\",'2011 Survey responses'!FM38)","v":4},{"$f":"IF('2011 Survey responses'!FO38<0.5,\"\",'2011 Survey responses'!FO38)","v":3},{"$f":"IF('2011 Survey responses'!FQ38<0.5,\"\",'2011 Survey responses'!FQ38)","v":2}]
["Colombia",{"$f":"IF(SUM(F39)<1,\"\",AVERAGEIF('2011 Survey responses'!B39:CP39,\">1\"))","v":""},{"$f":"IF(SUM(F39)<1,\"\",AVERAGEIF('2011 Survey responses'!B39:AO39,\">1\"))","v":""},{"$f":"IF(SUM(F39)<1,\"\",AVERAGEIF('2011 Survey responses'!B39:BV39,\">1\"))","v":""},{"$f":"IF(SUM(F39)<1,\"\",AVERAGEIF('2011 Survey responses'!V39:BV39,\">1\"))","v":""},{"$f":"IF(SUM('2011 Survey responses'!B39:U39)<1,\"\",(AVERAGEIFS('2011 Survey responses'!B39:U39,'2011 Survey responses'!B39:U39,\">1\")))","v":""},{"$f":"IF(SUM('2011 Survey responses'!B39:H39)<1,\"\",(AVERAGEIFS('2011 Survey responses'!B39:H39,'2011 Survey responses'!B39:H39,\">1\")))","v":""},{"$f":"IF(SUM('2011 Survey responses'!I39:S39)<1,\"\",(AVERAGEIFS('2011 Survey responses'!I39:S39,'2011 Survey responses'!I39:S39,\">1\")))","v":""},{"$f":"IF(SUM('2011 Survey responses'!T39:U39)<2.1,\"\",(AVERAGEIFS('2011 Survey responses'!T39:U39,'2011 Survey responses'!T39:U39,\">1\")))","v":""},{"$f":"IF(SUM('2011 Survey responses'!B39:C39)<2.1,\"\",((SUMIF('2011 Survey responses'!B39:C39,\">1\")+SUMIF('2011 Survey responses'!F39,\">1\"))/(COUNTIF('2011 Survey responses'!B39:C39,\">1\")+COUNTIF('2011 Survey responses'!F39,\">1\"))))","v":""},{"$f":"IF(SUM('2011 Survey responses'!D39:E39)<2.1,\"\",(AVERAGEIFS('2011 Survey responses'!D39:E39,'2011 Survey responses'!D39:E39,\">1\")))","v":""},{"$f":"IF(('2011 Survey responses'!B39+'2011 Survey responses'!D39)<2.1,\"\",((SUMIF('2011 Survey responses'!B39,\">1\")+SUMIF('2011 Survey responses'!D39,\">1\")+SUMIF('2011 Survey responses'!F39,\">1\")+SUMIF('2011 Survey responses'!K39,\">1\"))/(COUNTIF('2011 Survey responses'!B39,\">1\")+COUNTIF('2011 Survey responses'!D39,\">1\")+COUNTIF('2011 Survey responses'!F39,\">1\")+COUNTIF('2011 Survey responses'!K39,\">1\"))))","v":""},{"$f":"IF(SUM('2011 Survey responses'!G39:H39)<2.1,\"\",(AVERAGEIFS('2011 Survey responses'!G39:H39,'2011 Survey responses'!G39:H39,\">1\")))","v":""},{"$f":"IF(SUM('2011 Survey responses'!F39:G39)<1.5,\"\",MAX('2011 Survey responses'!F39,'2011 Survey responses'!G39))","v":""},{"$f":"IF(SUM('2011 Survey responses'!G39:H39)<1,\"\",MAX('2011 Survey responses'!G39,'2011 Survey responses'!H39))","v":""},{"$f":"IF(SUM('2011 Survey responses'!I39:L39)<4.1,\"\",(AVERAGEIFS('2011 Survey responses'!I39:L39,'2011 Survey responses'!I39:L39,\">1\")))","v":""},{"$f":"IF(SUM('2011 Survey responses'!M39:S39)<4.1,\"\",(AVERAGEIFS('2011 Survey responses'!M39:S39,'2011 Survey responses'!M39:S39,\">1\")))","v":""},{"$f":"IF(SUM('2011 Survey responses'!T39:U39)<2.1,\"\",(AVERAGEIFS('2011 Survey responses'!T39:U39,'2011 Survey responses'!T39:U39,\">1\")))","v":""},{"$f":"IF(SUM('2011 Survey responses'!V39:AO39)<1,\"\",(AVERAGEIFS('2011 Survey responses'!V39:AO39,'2011 Survey responses'!V39:AO39,\">1\")))","v":""},{"$f":"IF(SUM('2011 Survey responses'!V39:AA39)<1,\"\",(AVERAGEIFS('2011 Survey responses'!V39:AA39,'2011 Survey responses'!V39:AA39,\">1\")))","v":""},{"$f":"IF(SUM('2011 Survey responses'!AB39:AH39)<1,\"\",(AVERAGEIFS('2011 Survey responses'!AB39:AH39,'2011 Survey responses'!AB39:AH39,\">1\")))","v":""},{"$f":"IF(SUM('2011 Survey responses'!AI39:AO39)<1,\"\",(AVERAGEIFS('2011 Survey responses'!AI39:AO39,'2011 Survey responses'!AI39:AO39,\">1\")))","v":""},{"$f":"IF(('2011 Survey responses'!Y39+'2011 Survey responses'!AI39+'2011 Survey responses'!AK39)<3.1,\"\",((SUMIF('2011 Survey responses'!Y39,\">1\")+SUMIF('2011 Survey responses'!AI39,\">1\")+SUMIF('2011 Survey responses'!AK39,\">1\")+SUMIF('2011 Survey responses'!AM39,\">1\"))/(COUNTIF('2011 Survey responses'!Y39,\">1\")+COUNTIF('2011 Survey responses'!AI39,\">1\")+COUNTIF('2011 Survey responses'!AK39,\">1\")+COUNTIF('2011 Survey responses'!AM39,\">1\"))))","v":""},{"$f":"IF(('2011 Survey responses'!W39)<1.1,\"\",('2011 Survey responses'!W39))","v":""},{"$f":"IF(('2011 Survey responses'!Y39)<1.1,\"\",('2011 Survey responses'!Y39))","v":""},{"$f":"IF(('2011 Survey responses'!Z39)<1.1,\"\",('2011 Survey responses'!Z39))","v":""},{"$f":"IF(('2011 Survey responses'!V39+'2011 Survey responses'!X39+'2011 Survey responses'!AA39)<3.1,\"\",((SUMIF('2011 Survey responses'!V39,\">1\")+SUMIF('2011 Survey responses'!X39,\">1\")+SUMIF('2011 Survey responses'!AA39,\">1\"))/(COUNTIF('2011 Survey responses'!V39,\">1\")+COUNTIF('2011 Survey responses'!X39,\">1\")+COUNTIF('2011 Survey responses'!AA39,\">1\"))))","v":""},{"$f":"IF(('2011 Survey responses'!V39+'2011 Survey responses'!Y39+'2011 Survey responses'!AA39)<3.1,\"\",((SUMIF('2011 Survey responses'!V39,\">1\")+SUMIF('2011 Survey responses'!Y39,\">1\")+SUMIF('2011 Survey responses'!AA39,\">1\"))/(COUNTIF('2011 Survey responses'!V39,\">1\")+COUNTIF('2011 Survey responses'!Y39,\">1\")+COUNTIF('2011 Survey responses'!AA39,\">1\"))))","v":""},{"$f":"IF(SUM('2011 Survey responses'!AB39:AH39)<1,\"\",(AVERAGEIFS('2011 Survey responses'!AB39:AH39,'2011 Survey responses'!AB39:AH39,\">1\")))","v":""},{"$f":"IF(SUM('2011 Survey responses'!AI39:AO39)<7.1,\"\",(AVERAGEIFS('2011 Survey responses'!AI39:AO39,'2011 Survey responses'!AI39:AO39,\">1\")))","v":""},{"$f":"IF(('2011 Survey responses'!AH39)<1.1,\"\",('2011 Survey responses'!AH39))","v":""},{"$f":"IF(SUM('2011 Survey responses'!AP39:BV39)<1,\"\",(AVERAGEIFS('2011 Survey responses'!AP39:BV39,'2011 Survey responses'!AP39:BV39,\">1\")))","v":""},{"$f":"IF(SUM('2011 Survey responses'!AP39:AS39)<4.1,\"\",(AVERAGEIFS('2011 Survey responses'!AP39:AS39,'2011 Survey responses'!AP39:AS39,\">1\")))","v":""},{"$f":"IF(SUM('2011 Survey responses'!AT39:BF39)<1,\"\",(AVERAGEIFS('2011 Survey responses'!AT39:BF39,'2011 Survey responses'!AT39:BF39,\">1\")))","v":""},{"$f":"IF(SUM('2011 Survey responses'!BG39:BO39)<1,\"\",(AVERAGEIFS('2011 Survey responses'!BG39:BO39,'2011 Survey responses'!BG39:BO39,\">1\")))","v":""},{"$f":"IF(SUM('2011 Survey responses'!BP39:BS39)<1,\"\",(AVERAGEIFS('2011 Survey responses'!BP39:BS39,'2011 Survey responses'!BP39:BS39,\">1\")))","v":""},{"$f":"IF(SUM('2011 Survey responses'!BT39:BV39)<3.1,\"\",(AVERAGEIFS('2011 Survey responses'!BT39:BV39,'2011 Survey responses'!BT39:BV39,\">1\")))","v":""},{"$f":"IF(('2011 Survey responses'!AQ39+'2011 Survey responses'!AR39+'2011 Survey responses'!BG39)<3.1,\"\",((SUMIF('2011 Survey responses'!AQ39,\">1\")+SUMIF('2011 Survey responses'!AR39,\">1\")+SUMIF('2011 Survey responses'!BG39,\">1\"))/(COUNTIF('2011 Survey responses'!AQ39,\">1\")+COUNTIF('2011 Survey responses'!AR39,\">1\")+COUNTIF('2011 Survey responses'!BG39,\">1\"))))","v":""},{"$f":"IF(SUM('2011 Survey responses'!AP39:AS39)<4.1,\"\",(AVERAGEIFS('2011 Survey responses'!AP39:AS39,'2011 Survey responses'!AP39:AS39,\">1\")))","v":""},{"$f":"IF(('2011 Survey responses'!AU39+'2011 Survey responses'!AX39+'2011 Survey responses'!BA39+'2011 Survey responses'!BC39+'2011 Survey responses'!BD39)<5.1,\"\",(SUMIF('2011 Survey responses'!AU39,\">1\")+SUMIF('2011 Survey responses'!AX39,\">1\")+SUMIF('2011 Survey responses'!BA39,\">1\")+SUMIF('2011 Survey responses'!BC39,\">1\")+SUMIF('2011 Survey responses'!BD39,\">1\"))/(COUNTIF('2011 Survey responses'!AU39,\">1\")+COUNTIF('2011 Survey responses'!AX39,\">1\")+COUNTIF('2011 Survey responses'!BA39,\">1\")+COUNTIF('2011 Survey responses'!BC39,\">1\")+COUNTIF('2011 Survey responses'!BD39,\">1\")))","v":""},{"$f":"IF(('2011 Survey responses'!AT39)<1.1,\"\",('2011 Survey responses'!AT39))","v":""},{"$f":"IF(SUM('2011 Survey responses'!AV39:AW39)<2.1,\"\",(AVERAGEIFS('2011 Survey responses'!AV39:AW39,'2011 Survey responses'!AV39:AW39,\">1\")))","v":""},{"$f":"IF(('2011 Survey responses'!AW39+'2011 Survey responses'!AY39)<2.1,\"\",(SUMIF('2011 Survey responses'!AW39,\">1\")+SUMIF('2011 Survey responses'!AY39,\">1\"))/(COUNTIF('2011 Survey responses'!AW39,\">1\")+COUNTIF('2011 Survey responses'!AY39,\">1\")))","v":""},{"$f":"IF(('2011 Survey responses'!AZ39)<1.1,\"\",('2011 Survey responses'!AZ39))","v":""},null,null,null,null,{"$f":"IF(('2011 Survey responses'!BE39)<1.1,\"\",('2011 Survey responses'!BE39))","v":""},{"$f":"IF(('2011 Survey responses'!AY39+'2011 Survey responses'!BB39+'2011 Survey responses'!BF39)<3.1,\"\",(SUMIF('2011 Survey responses'!AY39,\">1\")+SUMIF('2011 Survey responses'!BB39,\">1\")+SUMIF('2011 Survey responses'!BF39,\">1\"))/(COUNTIF('2011 Survey responses'!AY39,\">1\")+COUNTIF('2011 Survey responses'!BB39,\">1\")+COUNTIF('2011 Survey responses'!BF39,\">1\")))","v":""},"",{"$f":"IF(SUM('2011 Survey responses'!BT39:BV39)<3.1,\"\",(AVERAGEIFS('2011 Survey responses'!BT39:BV39,'2011 Survey responses'!BT39:BV39,\">1\")))","v":""},{"$f":"IF(SUM('2011 Survey responses'!BW39:CP39)<1,\"\",(AVERAGEIFS('2011 Survey responses'!BW39:CP39,'2011 Survey responses'!BW39:CP39,\">1\")))","v":""},{"$f":"IF(SUM('2011 Survey responses'!BW39:CF39)<1,\"\",(AVERAGEIFS('2011 Survey responses'!BW39:CF39,'2011 Survey responses'!BW39:CF39,\">1\")))","v":""},{"$f":"IF(SUM('2011 Survey responses'!CG39:CP39)<1,\"\",(AVERAGEIFS('2011 Survey responses'!CG39:CP39,'2011 Survey responses'!CG39:CP39,\">1\")))","v":""},{"$f":"IF(SUM('2011 Survey responses'!BX39:CF39)<1,\"\",(AVERAGEIFS('2011 Survey responses'!BX39:CF39,'2011 Survey responses'!BX39:CF39,\">1\")))","v":""},{"$f":"IF(SUM('2011 Survey responses'!CH39:CP39)<1,\"\",(AVERAGEIFS('2011 Survey responses'!CH39:CP39,'2011 Survey responses'!CH39:CP39,\">1\")))","v":""},{"$f":"IF(SUM('2011 Survey responses'!BW39:CP39)<1,\"\",(AVERAGEIFS('2011 Survey responses'!BW39:CP39,'2011 Survey responses'!BW39:CP39,\">1\")))","v":""},{"$f":"IF(('2011 Survey responses'!BW39+'2011 Survey responses'!CG39)<2.1,\"\",(SUMIF('2011 Survey responses'!BW39,\">1\")+SUMIF('2011 Survey responses'!CG39,\">1\"))/(COUNTIF('2011 Survey responses'!BW39,\">1\")+COUNTIF('2011 Survey responses'!CG39,\">1\")))","v":""},{"$f":"IF(('2011 Survey responses'!BX39+'2011 Survey responses'!CH39)<2.1,\"\",(SUMIF('2011 Survey responses'!BX39,\">1\")+SUMIF('2011 Survey responses'!CH39,\">1\"))/(COUNTIF('2011 Survey responses'!BX39,\">1\")+COUNTIF('2011 Survey responses'!CH39,\">1\")))","v":""},{"$f":"IF(('2011 Survey responses'!BY39+'2011 Survey responses'!CI39)<2.1,\"\",(SUMIF('2011 Survey responses'!BY39,\">1\")+SUMIF('2011 Survey responses'!CI39,\">1\"))/(COUNTIF('2011 Survey responses'!BY39,\">1\")+COUNTIF('2011 Survey responses'!CI39,\">1\")))","v":""},{"$f":"IF('2011 Survey responses'!CQ39<0.5,\"\",'2011 Survey responses'!CQ39)","v":""},{"$f":"IF('2011 Survey responses'!CR39<0.5,\"\",'2011 Survey responses'!CR39)","v":""},{"$f":"IF('2011 Survey responses'!CS39<0.5,\"\",'2011 Survey responses'!CS39)","v":""},{"$f":"IF('2011 Survey responses'!CT39<0.5,\"\",'2011 Survey responses'!CT39)","v":""},{"$f":"IF('2011 Survey responses'!CU39<0.5,\"\",'2011 Survey responses'!CU39)","v":""},{"$f":"IF('2011 Survey responses'!CV39<0.5,\"\",'2011 Survey responses'!CV39)","v":""},{"$f":"IF(SUM('2011 Survey responses'!CW39:DL39)<1,\"\",(AVERAGE('2011 Survey responses'!CW39:DL39)))","v":""},{"$f":"IF(SUM('2011 Survey responses'!CW39:CZ39)<1,\"\",(AVERAGE('2011 Survey responses'!CW39:CZ39)))","v":""},{"$f":"IF(SUM('2011 Survey responses'!DA39:DD39)<1,\"\",(AVERAGE('2011 Survey responses'!DA39:DD39)))","v":""},{"$f":"IF(SUM('2011 Survey responses'!DE39:DH39)<1,\"\",(AVERAGE('2011 Survey responses'!DE39:DH39)))","v":""},{"$f":"IF(SUM('2011 Survey responses'!DI39:DL39)<1,\"\",(AVERAGE('2011 Survey responses'!DI39:DL39)))","v":""},{"$f":"IF(('2011 Survey responses'!CW39+'2011 Survey responses'!DA39+'2011 Survey responses'!DE39+'2011 Survey responses'!DI39)<1,\"\",AVERAGE('2011 Survey responses'!CW39,'2011 Survey responses'!DA39,'2011 Survey responses'!DE39,'2011 Survey responses'!DI39))","v":""},{"$f":"IF(('2011 Survey responses'!CX39+'2011 Survey responses'!DB39+'2011 Survey responses'!DF39+'2011 Survey responses'!DJ39)<1,\"\",AVERAGE('2011 Survey responses'!CX39,'2011 Survey responses'!DB39,'2011 Survey responses'!DF39,'2011 Survey responses'!DJ39))","v":""},{"$f":"IF(('2011 Survey responses'!CY39+'2011 Survey responses'!DC39+'2011 Survey responses'!DG39+'2011 Survey responses'!DK39)<1,\"\",AVERAGE('2011 Survey responses'!CY39,'2011 Survey responses'!DC39,'2011 Survey responses'!DG39,'2011 Survey responses'!DK39))","v":""},{"$f":"IF(('2011 Survey responses'!CZ39+'2011 Survey responses'!DD39+'2011 Survey responses'!DH39+'2011 Survey responses'!DL39)<1,\"\",AVERAGE('2011 Survey responses'!CZ39,'2011 Survey responses'!DD39,'2011 Survey responses'!DH39,'2011 Survey responses'!DL39))","v":""},{"$f":"IF('2011 Survey responses'!CW39<0.5,\"\",'2011 Survey responses'!CW39)","v":""},{"$f":"IF('2011 Survey responses'!CX39<0.5,\"\",'2011 Survey responses'!CX39)","v":""},{"$f":"IF('2011 Survey responses'!CY39<0.5,\"\",'2011 Survey responses'!CY39)","v":""},{"$f":"IF('2011 Survey responses'!CZ39<0.5,\"\",'2011 Survey responses'!CZ39)","v":""},{"$f":"IF('2011 Survey responses'!DA39<0.5,\"\",'2011 Survey responses'!DA39)","v":""},{"$f":"IF('2011 Survey responses'!DB39<0.5,\"\",'2011 Survey responses'!DB39)","v":""},{"$f":"IF('2011 Survey responses'!DC39<0.5,\"\",'2011 Survey responses'!DC39)","v":""},{"$f":"IF('2011 Survey responses'!DD39<0.5,\"\",'2011 Survey responses'!DD39)","v":""},{"$f":"IF('2011 Survey responses'!DE39<0.5,\"\",'2011 Survey responses'!DE39)","v":""},{"$f":"IF('2011 Survey responses'!DF39<0.5,\"\",'2011 Survey responses'!DF39)","v":""},{"$f":"IF('2011 Survey responses'!DG39<0.5,\"\",'2011 Survey responses'!DG39)","v":""},{"$f":"IF('2011 Survey responses'!DH39<0.5,\"\",'2011 Survey responses'!DH39)","v":""},{"$f":"IF('2011 Survey responses'!DI39<0.5,\"\",'2011 Survey responses'!DI39)","v":""},{"$f":"IF('2011 Survey responses'!DJ39<0.5,\"\",'2011 Survey responses'!DJ39)","v":""},{"$f":"IF('2011 Survey responses'!DK39<0.5,\"\",'2011 Survey responses'!DK39)","v":""},{"$f":"IF('2011 Survey responses'!DL39<0.5,\"\",'2011 Survey responses'!DL39)","v":""},{"$f":"IF('2011 Survey responses'!DU39=4,4,IF('2011 Survey responses'!DU39=5,4,\"\"))","v":""},{"$f":"IF('2011 Survey responses'!DV39=4,3,IF('2011 Survey responses'!DV39=5,3,\"\"))","v":""},"",{"$f":"IF(CQ39=2,CQ39,IF(CO39=4,CO39,IF(CP39=3,CP39,IF('2011 Survey responses'!GT39=1,1,\"\"))))","v":""},{"$f":"IF('2011 Survey responses'!DO39<0.5,\"\",'2011 Survey responses'!DO39)","v":""},{"$f":"IF('2011 Survey responses'!DP39<0.5,\"\",'2011 Survey responses'!DP39)","v":""},{"$f":"IF('2011 Survey responses'!DQ39<0.5,\"\",'2011 Survey responses'!DQ39)","v":""},{"$f":"IF('2011 Survey responses'!DR39<0.5,\"\",'2011 Survey responses'!DR39)","v":""},{"$f":"IF('2011 Survey responses'!DS39<0.5,\"\",'2011 Survey responses'!DS39)","v":""},{"$f":"IF('2011 Survey responses'!DT39<0.5,\"\",'2011 Survey responses'!DT39)","v":""},{"$f":"IF('2011 Survey responses'!DU39<0.5,\"\",'2011 Survey responses'!DU39)","v":""},{"$f":"IF('2011 Survey responses'!DV39<0.5,\"\",'2011 Survey responses'!DV39)","v":""},{"$f":"IF('2011 Survey responses'!DW39<0.5,\"\",'2011 Survey responses'!DW39)","v":""},{"$f":"IF('2011 Survey responses'!DX39<0.5,\"\",'2011 Survey responses'!DX39)","v":""},{"$f":"IF('2011 Survey responses'!DY39<0.5,\"\",'2011 Survey responses'!DY39)","v":""},{"$f":"IF('2011 Survey responses'!DZ39<0.5,\"\",'2011 Survey responses'!DZ39)","v":""},{"$f":"IF('2011 Survey responses'!EA39<0.5,\"\",'2011 Survey responses'!EA39)","v":""},{"$f":"IF('2011 Survey responses'!EB39<0.5,\"\",'2011 Survey responses'!EB39)","v":""},{"$f":"IF('2011 Survey responses'!EC39<0.5,\"\",'2011 Survey responses'!EC39)","v":""},{"$f":"IF('2011 Survey responses'!ED39<0.5,\"\",'2011 Survey responses'!ED39)","v":""},{"$f":"IF('2011 Survey responses'!EE39<0.5,\"\",'2011 Survey responses'!EE39)","v":""},{"$f":"IF('2011 Survey responses'!EF39<0.5,\"\",'2011 Survey responses'!EF39)","v":""},{"$f":"IF('2011 Survey responses'!EG39<0.5,\"\",'2011 Survey responses'!EG39)","v":""},{"$f":"IF('2011 Survey responses'!EH39<0.5,\"\",'2011 Survey responses'!EH39)","v":""},{"$f":"IF('2011 Survey responses'!EI39<0.5,\"\",'2011 Survey responses'!EI39)","v":""},{"$f":"IF('2011 Survey responses'!EJ39<0.5,\"\",'2011 Survey responses'!EJ39)","v":""},{"$f":"IF('2011 Survey responses'!EK39<0.5,\"\",'2011 Survey responses'!EK39)","v":""},{"$f":"IF('2011 Survey responses'!EL39<0.5,\"\",'2011 Survey responses'!EL39)","v":""},{"$f":"IF('2011 Survey responses'!EM39<0.5,\"\",'2011 Survey responses'!EM39)","v":""},{"$f":"IF('2011 Survey responses'!EN39<0.5,\"\",'2011 Survey responses'!EN39)","v":""},{"$f":"IF('2011 Survey responses'!EO39<0.5,\"\",'2011 Survey responses'!EO39)","v":""},{"$f":"IF('2011 Survey responses'!EP39<0.5,\"\",'2011 Survey responses'!EP39)","v":""},{"$f":"IF(('2011 Survey responses'!EW39+'2011 Survey responses'!EX39)>=2,AVERAGE('2011 Survey responses'!EW39,'2011 Survey responses'!EY39),\"\")","v":""},{"$f":"IF('2011 Survey responses'!EX39<0.5,\"\",'2011 Survey responses'!EX39)","v":""},{"$f":"IF('2011 Survey responses'!EZ39<0.5,\"\",'2011 Survey responses'!EZ39)","v":""},{"$f":"IF('2011 Survey responses'!FB39<0.5,\"\",'2011 Survey responses'!FB39)","v":""},{"$f":"IF('2011 Survey responses'!FD39<0.5,\"\",'2011 Survey responses'!FD39)","v":""},{"$f":"IF('2011 Survey responses'!FC39<0.5,\"\",'2011 Survey responses'!FC39)","v":""},{"$f":"IF(('2011 Survey responses'!EM39+'2011 Survey responses'!EN39)>=2,AVERAGE('2011 Survey responses'!EM39,'2011 Survey responses'!EN39),\"\")","v":""},{"$f":"IF('2011 Survey responses'!ES39<0.5,\"\",'2011 Survey responses'!ES39)","v":""},{"$f":"IF(('2011 Survey responses'!ET39+'2011 Survey responses'!EU39)>=2,AVERAGE('2011 Survey responses'!ET39,'2011 Survey responses'!EU39),\"\")","v":""},{"$f":"IF('2011 Survey responses'!EV39<0.5,\"\",'2011 Survey responses'!EV39)","v":""},{"$f":"IF('2011 Survey responses'!FA39<0.5,\"\",'2011 Survey responses'!FA39)","v":""},{"$f":"IF('2011 Survey responses'!ER39<0.5,\"\",'2011 Survey responses'!ER39)","v":""},{"$f":"IF(('2011 Survey responses'!EO39+'2011 Survey responses'!EP39)>=2,AVERAGE('2011 Survey responses'!EO39,'2011 Survey responses'!EP39),\"\")","v":""},{"$f":"IF('2011 Survey responses'!EQ39<0.5,\"\",'2011 Survey responses'!EQ39)","v":""},{"$f":"IF('2011 Survey responses'!ET39<0.5,\"\",'2011 Survey responses'!ET39)","v":""},{"$f":"IF('2011 Survey responses'!EU39<0.5,\"\",'2011 Survey responses'!EU39)","v":""},{"$f":"IF('2011 Survey responses'!EW39<0.5,\"\",'2011 Survey responses'!EW39)","v":""},{"$f":"IF('2011 Survey responses'!EY39<0.5,\"\",'2011 Survey responses'!EY39)","v":""},{"$f":"IF('2011 Survey responses'!FU39<0.5,\"\",'2011 Survey responses'!FU39)","v":""},{"$f":"IF(('2011 Survey responses'!FL39+'2011 Survey responses'!FM39)>=2,AVERAGE('2011 Survey responses'!FL39,'2011 Survey responses'!FM39),\"\")","v":""},{"$f":"IF(('2011 Survey responses'!FO39+'2011 Survey responses'!FQ39)>=2,AVERAGE('2011 Survey responses'!FO39,'2011 Survey responses'!FQ39),\"\")","v":""},{"$f":"IF('2011 Survey responses'!FJ39<0.5,\"\",'2011 Survey responses'!FJ39)","v":""},{"$f":"IF('2011 Survey responses'!FT39<0.5,\"\",'2011 Survey responses'!FT39)","v":""},{"$f":"IF('2011 Survey responses'!FR39<0.5,\"\",'2011 Survey responses'!FR39)","v":""},{"$f":"IF('2011 Survey responses'!FK39<0.5,\"\",'2011 Survey responses'!FK39)","v":""},{"$f":"IF('2011 Survey responses'!FP39<0.5,\"\",'2011 Survey responses'!FP39)","v":""},{"$f":"IF('2011 Survey responses'!FN39<0.5,\"\",'2011 Survey responses'!FN39)","v":""},{"$f":"IF(('2011 Survey responses'!FE39+'2011 Survey responses'!FF39)>=2,AVERAGE('2011 Survey responses'!FE39,'2011 Survey responses'!FF39),\"\")","v":""},{"$f":"IF('2011 Survey responses'!FS39<0.5,\"\",'2011 Survey responses'!FS39)","v":""},{"$f":"IF('2011 Survey responses'!FV39<0.5,\"\",'2011 Survey responses'!FV39)","v":""},{"$f":"IF(('2011 Survey responses'!FG39+'2011 Survey responses'!FH39)>=2,AVERAGE('2011 Survey responses'!FG39,'2011 Survey responses'!FH39),\"\")","v":""},{"$f":"IF('2011 Survey responses'!FI39<0.5,\"\",'2011 Survey responses'!FI39)","v":""},{"$f":"IF('2011 Survey responses'!FE39<0.5,\"\",'2011 Survey responses'!FE39)","v":""},{"$f":"IF('2011 Survey responses'!FF39<0.5,\"\",'2011 Survey responses'!FF39)","v":""},{"$f":"IF('2011 Survey responses'!FG39<0.5,\"\",'2011 Survey responses'!FG39)","v":""},{"$f":"IF('2011 Survey responses'!FH39<0.5,\"\",'2011 Survey responses'!FH39)","v":""},{"$f":"IF('2011 Survey responses'!FL39<0.5,\"\",'2011 Survey responses'!FL39)","v":""},{"$f":"IF('2011 Survey responses'!FM39<0.5,\"\",'2011 Survey responses'!FM39)","v":""},{"$f":"IF('2011 Survey responses'!FO39<0.5,\"\",'2011 Survey responses'!FO39)","v":""},{"$f":"IF('2011 Survey responses'!FQ39<0.5,\"\",'2011 Survey responses'!FQ39)","v":""}]
["Comoros",{"$f":"IF(SUM(F40)<1,\"\",AVERAGEIF('2011 Survey responses'!B40:CP40,\">1\"))","v":""},{"$f":"IF(SUM(F40)<1,\"\",AVERAGEIF('2011 Survey responses'!B40:AO40,\">1\"))","v":""},{"$f":"IF(SUM(F40)<1,\"\",AVERAGEIF('2011 Survey responses'!B40:BV40,\">1\"))","v":""},{"$f":"IF(SUM(F40)<1,\"\",AVERAGEIF('2011 Survey responses'!V40:BV40,\">1\"))","v":""},{"$f":"IF(SUM('2011 Survey responses'!B40:U40)<1,\"\",(AVERAGEIFS('2011 Survey responses'!B40:U40,'2011 Survey responses'!B40:U40,\">1\")))","v":""},{"$f":"IF(SUM('2011 Survey responses'!B40:H40)<1,\"\",(AVERAGEIFS('2011 Survey responses'!B40:H40,'2011 Survey responses'!B40:H40,\">1\")))","v":""},{"$f":"IF(SUM('2011 Survey responses'!I40:S40)<1,\"\",(AVERAGEIFS('2011 Survey responses'!I40:S40,'2011 Survey responses'!I40:S40,\">1\")))","v":""},{"$f":"IF(SUM('2011 Survey responses'!T40:U40)<2.1,\"\",(AVERAGEIFS('2011 Survey responses'!T40:U40,'2011 Survey responses'!T40:U40,\">1\")))","v":""},{"$f":"IF(SUM('2011 Survey responses'!B40:C40)<2.1,\"\",((SUMIF('2011 Survey responses'!B40:C40,\">1\")+SUMIF('2011 Survey responses'!F40,\">1\"))/(COUNTIF('2011 Survey responses'!B40:C40,\">1\")+COUNTIF('2011 Survey responses'!F40,\">1\"))))","v":""},{"$f":"IF(SUM('2011 Survey responses'!D40:E40)<2.1,\"\",(AVERAGEIFS('2011 Survey responses'!D40:E40,'2011 Survey responses'!D40:E40,\">1\")))","v":""},{"$f":"IF(('2011 Survey responses'!B40+'2011 Survey responses'!D40)<2.1,\"\",((SUMIF('2011 Survey responses'!B40,\">1\")+SUMIF('2011 Survey responses'!D40,\">1\")+SUMIF('2011 Survey responses'!F40,\">1\")+SUMIF('2011 Survey responses'!K40,\">1\"))/(COUNTIF('2011 Survey responses'!B40,\">1\")+COUNTIF('2011 Survey responses'!D40,\">1\")+COUNTIF('2011 Survey responses'!F40,\">1\")+COUNTIF('2011 Survey responses'!K40,\">1\"))))","v":""},{"$f":"IF(SUM('2011 Survey responses'!G40:H40)<2.1,\"\",(AVERAGEIFS('2011 Survey responses'!G40:H40,'2011 Survey responses'!G40:H40,\">1\")))","v":""},{"$f":"IF(SUM('2011 Survey responses'!F40:G40)<1.5,\"\",MAX('2011 Survey responses'!F40,'2011 Survey responses'!G40))","v":""},{"$f":"IF(SUM('2011 Survey responses'!G40:H40)<1,\"\",MAX('2011 Survey responses'!G40,'2011 Survey responses'!H40))","v":""},{"$f":"IF(SUM('2011 Survey responses'!I40:L40)<4.1,\"\",(AVERAGEIFS('2011 Survey responses'!I40:L40,'2011 Survey responses'!I40:L40,\">1\")))","v":""},{"$f":"IF(SUM('2011 Survey responses'!M40:S40)<4.1,\"\",(AVERAGEIFS('2011 Survey responses'!M40:S40,'2011 Survey responses'!M40:S40,\">1\")))","v":""},{"$f":"IF(SUM('2011 Survey responses'!T40:U40)<2.1,\"\",(AVERAGEIFS('2011 Survey responses'!T40:U40,'2011 Survey responses'!T40:U40,\">1\")))","v":""},{"$f":"IF(SUM('2011 Survey responses'!V40:AO40)<1,\"\",(AVERAGEIFS('2011 Survey responses'!V40:AO40,'2011 Survey responses'!V40:AO40,\">1\")))","v":""},{"$f":"IF(SUM('2011 Survey responses'!V40:AA40)<1,\"\",(AVERAGEIFS('2011 Survey responses'!V40:AA40,'2011 Survey responses'!V40:AA40,\">1\")))","v":""},{"$f":"IF(SUM('2011 Survey responses'!AB40:AH40)<1,\"\",(AVERAGEIFS('2011 Survey responses'!AB40:AH40,'2011 Survey responses'!AB40:AH40,\">1\")))","v":""},{"$f":"IF(SUM('2011 Survey responses'!AI40:AO40)<1,\"\",(AVERAGEIFS('2011 Survey responses'!AI40:AO40,'2011 Survey responses'!AI40:AO40,\">1\")))","v":""},{"$f":"IF(('2011 Survey responses'!Y40+'2011 Survey responses'!AI40+'2011 Survey responses'!AK40)<3.1,\"\",((SUMIF('2011 Survey responses'!Y40,\">1\")+SUMIF('2011 Survey responses'!AI40,\">1\")+SUMIF('2011 Survey responses'!AK40,\">1\")+SUMIF('2011 Survey responses'!AM40,\">1\"))/(COUNTIF('2011 Survey responses'!Y40,\">1\")+COUNTIF('2011 Survey responses'!AI40,\">1\")+COUNTIF('2011 Survey responses'!AK40,\">1\")+COUNTIF('2011 Survey responses'!AM40,\">1\"))))","v":""},{"$f":"IF(('2011 Survey responses'!W40)<1.1,\"\",('2011 Survey responses'!W40))","v":""},{"$f":"IF(('2011 Survey responses'!Y40)<1.1,\"\",('2011 Survey responses'!Y40))","v":""},{"$f":"IF(('2011 Survey responses'!Z40)<1.1,\"\",('2011 Survey responses'!Z40))","v":""},{"$f":"IF(('2011 Survey responses'!V40+'2011 Survey responses'!X40+'2011 Survey responses'!AA40)<3.1,\"\",((SUMIF('2011 Survey responses'!V40,\">1\")+SUMIF('2011 Survey responses'!X40,\">1\")+SUMIF('2011 Survey responses'!AA40,\">1\"))/(COUNTIF('2011 Survey responses'!V40,\">1\")+COUNTIF('2011 Survey responses'!X40,\">1\")+COUNTIF('2011 Survey responses'!AA40,\">1\"))))","v":""},{"$f":"IF(('2011 Survey responses'!V40+'2011 Survey responses'!Y40+'2011 Survey responses'!AA40)<3.1,\"\",((SUMIF('2011 Survey responses'!V40,\">1\")+SUMIF('2011 Survey responses'!Y40,\">1\")+SUMIF('2011 Survey responses'!AA40,\">1\"))/(COUNTIF('2011 Survey responses'!V40,\">1\")+COUNTIF('2011 Survey responses'!Y40,\">1\")+COUNTIF('2011 Survey responses'!AA40,\">1\"))))","v":""},{"$f":"IF(SUM('2011 Survey responses'!AB40:AH40)<1,\"\",(AVERAGEIFS('2011 Survey responses'!AB40:AH40,'2011 Survey responses'!AB40:AH40,\">1\")))","v":""},{"$f":"IF(SUM('2011 Survey responses'!AI40:AO40)<7.1,\"\",(AVERAGEIFS('2011 Survey responses'!AI40:AO40,'2011 Survey responses'!AI40:AO40,\">1\")))","v":""},{"$f":"IF(('2011 Survey responses'!AH40)<1.1,\"\",('2011 Survey responses'!AH40))","v":""},{"$f":"IF(SUM('2011 Survey responses'!AP40:BV40)<1,\"\",(AVERAGEIFS('2011 Survey responses'!AP40:BV40,'2011 Survey responses'!AP40:BV40,\">1\")))","v":""},{"$f":"IF(SUM('2011 Survey responses'!AP40:AS40)<4.1,\"\",(AVERAGEIFS('2011 Survey responses'!AP40:AS40,'2011 Survey responses'!AP40:AS40,\">1\")))","v":""},{"$f":"IF(SUM('2011 Survey responses'!AT40:BF40)<1,\"\",(AVERAGEIFS('2011 Survey responses'!AT40:BF40,'2011 Survey responses'!AT40:BF40,\">1\")))","v":""},{"$f":"IF(SUM('2011 Survey responses'!BG40:BO40)<1,\"\",(AVERAGEIFS('2011 Survey responses'!BG40:BO40,'2011 Survey responses'!BG40:BO40,\">1\")))","v":""},{"$f":"IF(SUM('2011 Survey responses'!BP40:BS40)<1,\"\",(AVERAGEIFS('2011 Survey responses'!BP40:BS40,'2011 Survey responses'!BP40:BS40,\">1\")))","v":""},{"$f":"IF(SUM('2011 Survey responses'!BT40:BV40)<3.1,\"\",(AVERAGEIFS('2011 Survey responses'!BT40:BV40,'2011 Survey responses'!BT40:BV40,\">1\")))","v":""},{"$f":"IF(('2011 Survey responses'!AQ40+'2011 Survey responses'!AR40+'2011 Survey responses'!BG40)<3.1,\"\",((SUMIF('2011 Survey responses'!AQ40,\">1\")+SUMIF('2011 Survey responses'!AR40,\">1\")+SUMIF('2011 Survey responses'!BG40,\">1\"))/(COUNTIF('2011 Survey responses'!AQ40,\">1\")+COUNTIF('2011 Survey responses'!AR40,\">1\")+COUNTIF('2011 Survey responses'!BG40,\">1\"))))","v":""},{"$f":"IF(SUM('2011 Survey responses'!AP40:AS40)<4.1,\"\",(AVERAGEIFS('2011 Survey responses'!AP40:AS40,'2011 Survey responses'!AP40:AS40,\">1\")))","v":""},{"$f":"IF(('2011 Survey responses'!AU40+'2011 Survey responses'!AX40+'2011 Survey responses'!BA40+'2011 Survey responses'!BC40+'2011 Survey responses'!BD40)<5.1,\"\",(SUMIF('2011 Survey responses'!AU40,\">1\")+SUMIF('2011 Survey responses'!AX40,\">1\")+SUMIF('2011 Survey responses'!BA40,\">1\")+SUMIF('2011 Survey responses'!BC40,\">1\")+SUMIF('2011 Survey responses'!BD40,\">1\"))/(COUNTIF('2011 Survey responses'!AU40,\">1\")+COUNTIF('2011 Survey responses'!AX40,\">1\")+COUNTIF('2011 Survey responses'!BA40,\">1\")+COUNTIF('2011 Survey responses'!BC40,\">1\")+COUNTIF('2011 Survey responses'!BD40,\">1\")))","v":""},{"$f":"IF(('2011 Survey responses'!AT40)<1.1,\"\",('2011 Survey responses'!AT40))","v":""},{"$f":"IF(SUM('2011 Survey responses'!AV40:AW40)<2.1,\"\",(AVERAGEIFS('2011 Survey responses'!AV40:AW40,'2011 Survey responses'!AV40:AW40,\">1\")))","v":""},{"$f":"IF(('2011 Survey responses'!AW40+'2011 Survey responses'!AY40)<2.1,\"\",(SUMIF('2011 Survey responses'!AW40,\">1\")+SUMIF('2011 Survey responses'!AY40,\">1\"))/(COUNTIF('2011 Survey responses'!AW40,\">1\")+COUNTIF('2011 Survey responses'!AY40,\">1\")))","v":""},{"$f":"IF(('2011 Survey responses'!AZ40)<1.1,\"\",('2011 Survey responses'!AZ40))","v":""},null,null,null,null,{"$f":"IF(('2011 Survey responses'!BE40)<1.1,\"\",('2011 Survey responses'!BE40))","v":""},{"$f":"IF(('2011 Survey responses'!AY40+'2011 Survey responses'!BB40+'2011 Survey responses'!BF40)<3.1,\"\",(SUMIF('2011 Survey responses'!AY40,\">1\")+SUMIF('2011 Survey responses'!BB40,\">1\")+SUMIF('2011 Survey responses'!BF40,\">1\"))/(COUNTIF('2011 Survey responses'!AY40,\">1\")+COUNTIF('2011 Survey responses'!BB40,\">1\")+COUNTIF('2011 Survey responses'!BF40,\">1\")))","v":""},"",{"$f":"IF(SUM('2011 Survey responses'!BT40:BV40)<3.1,\"\",(AVERAGEIFS('2011 Survey responses'!BT40:BV40,'2011 Survey responses'!BT40:BV40,\">1\")))","v":""},{"$f":"IF(SUM('2011 Survey responses'!BW40:CP40)<1,\"\",(AVERAGEIFS('2011 Survey responses'!BW40:CP40,'2011 Survey responses'!BW40:CP40,\">1\")))","v":""},{"$f":"IF(SUM('2011 Survey responses'!BW40:CF40)<1,\"\",(AVERAGEIFS('2011 Survey responses'!BW40:CF40,'2011 Survey responses'!BW40:CF40,\">1\")))","v":""},{"$f":"IF(SUM('2011 Survey responses'!CG40:CP40)<1,\"\",(AVERAGEIFS('2011 Survey responses'!CG40:CP40,'2011 Survey responses'!CG40:CP40,\">1\")))","v":""},{"$f":"IF(SUM('2011 Survey responses'!BX40:CF40)<1,\"\",(AVERAGEIFS('2011 Survey responses'!BX40:CF40,'2011 Survey responses'!BX40:CF40,\">1\")))","v":""},{"$f":"IF(SUM('2011 Survey responses'!CH40:CP40)<1,\"\",(AVERAGEIFS('2011 Survey responses'!CH40:CP40,'2011 Survey responses'!CH40:CP40,\">1\")))","v":""},{"$f":"IF(SUM('2011 Survey responses'!BW40:CP40)<1,\"\",(AVERAGEIFS('2011 Survey responses'!BW40:CP40,'2011 Survey responses'!BW40:CP40,\">1\")))","v":""},{"$f":"IF(('2011 Survey responses'!BW40+'2011 Survey responses'!CG40)<2.1,\"\",(SUMIF('2011 Survey responses'!BW40,\">1\")+SUMIF('2011 Survey responses'!CG40,\">1\"))/(COUNTIF('2011 Survey responses'!BW40,\">1\")+COUNTIF('2011 Survey responses'!CG40,\">1\")))","v":""},{"$f":"IF(('2011 Survey responses'!BX40+'2011 Survey responses'!CH40)<2.1,\"\",(SUMIF('2011 Survey responses'!BX40,\">1\")+SUMIF('2011 Survey responses'!CH40,\">1\"))/(COUNTIF('2011 Survey responses'!BX40,\">1\")+COUNTIF('2011 Survey responses'!CH40,\">1\")))","v":""},{"$f":"IF(('2011 Survey responses'!BY40+'2011 Survey responses'!CI40)<2.1,\"\",(SUMIF('2011 Survey responses'!BY40,\">1\")+SUMIF('2011 Survey responses'!CI40,\">1\"))/(COUNTIF('2011 Survey responses'!BY40,\">1\")+COUNTIF('2011 Survey responses'!CI40,\">1\")))","v":""},{"$f":"IF('2011 Survey responses'!CQ40<0.5,\"\",'2011 Survey responses'!CQ40)","v":""},{"$f":"IF('2011 Survey responses'!CR40<0.5,\"\",'2011 Survey responses'!CR40)","v":""},{"$f":"IF('2011 Survey responses'!CS40<0.5,\"\",'2011 Survey responses'!CS40)","v":""},{"$f":"IF('2011 Survey responses'!CT40<0.5,\"\",'2011 Survey responses'!CT40)","v":""},{"$f":"IF('2011 Survey responses'!CU40<0.5,\"\",'2011 Survey responses'!CU40)","v":""},{"$f":"IF('2011 Survey responses'!CV40<0.5,\"\",'2011 Survey responses'!CV40)","v":""},{"$f":"IF(SUM('2011 Survey responses'!CW40:DL40)<1,\"\",(AVERAGE('2011 Survey responses'!CW40:DL40)))","v":""},{"$f":"IF(SUM('2011 Survey responses'!CW40:CZ40)<1,\"\",(AVERAGE('2011 Survey responses'!CW40:CZ40)))","v":""},{"$f":"IF(SUM('2011 Survey responses'!DA40:DD40)<1,\"\",(AVERAGE('2011 Survey responses'!DA40:DD40)))","v":""},{"$f":"IF(SUM('2011 Survey responses'!DE40:DH40)<1,\"\",(AVERAGE('2011 Survey responses'!DE40:DH40)))","v":""},{"$f":"IF(SUM('2011 Survey responses'!DI40:DL40)<1,\"\",(AVERAGE('2011 Survey responses'!DI40:DL40)))","v":""},{"$f":"IF(('2011 Survey responses'!CW40+'2011 Survey responses'!DA40+'2011 Survey responses'!DE40+'2011 Survey responses'!DI40)<1,\"\",AVERAGE('2011 Survey responses'!CW40,'2011 Survey responses'!DA40,'2011 Survey responses'!DE40,'2011 Survey responses'!DI40))","v":""},{"$f":"IF(('2011 Survey responses'!CX40+'2011 Survey responses'!DB40+'2011 Survey responses'!DF40+'2011 Survey responses'!DJ40)<1,\"\",AVERAGE('2011 Survey responses'!CX40,'2011 Survey responses'!DB40,'2011 Survey responses'!DF40,'2011 Survey responses'!DJ40))","v":""},{"$f":"IF(('2011 Survey responses'!CY40+'2011 Survey responses'!DC40+'2011 Survey responses'!DG40+'2011 Survey responses'!DK40)<1,\"\",AVERAGE('2011 Survey responses'!CY40,'2011 Survey responses'!DC40,'2011 Survey responses'!DG40,'2011 Survey responses'!DK40))","v":""},{"$f":"IF(('2011 Survey responses'!CZ40+'2011 Survey responses'!DD40+'2011 Survey responses'!DH40+'2011 Survey responses'!DL40)<1,\"\",AVERAGE('2011 Survey responses'!CZ40,'2011 Survey responses'!DD40,'2011 Survey responses'!DH40,'2011 Survey responses'!DL40))","v":""},{"$f":"IF('2011 Survey responses'!CW40<0.5,\"\",'2011 Survey responses'!CW40)","v":""},{"$f":"IF('2011 Survey responses'!CX40<0.5,\"\",'2011 Survey responses'!CX40)","v":""},{"$f":"IF('2011 Survey responses'!CY40<0.5,\"\",'2011 Survey responses'!CY40)","v":""},{"$f":"IF('2011 Survey responses'!CZ40<0.5,\"\",'2011 Survey responses'!CZ40)","v":""},{"$f":"IF('2011 Survey responses'!DA40<0.5,\"\",'2011 Survey responses'!DA40)","v":""},{"$f":"IF('2011 Survey responses'!DB40<0.5,\"\",'2011 Survey responses'!DB40)","v":""},{"$f":"IF('2011 Survey responses'!DC40<0.5,\"\",'2011 Survey responses'!DC40)","v":""},{"$f":"IF('2011 Survey responses'!DD40<0.5,\"\",'2011 Survey responses'!DD40)","v":""},{"$f":"IF('2011 Survey responses'!DE40<0.5,\"\",'2011 Survey responses'!DE40)","v":""},{"$f":"IF('2011 Survey responses'!DF40<0.5,\"\",'2011 Survey responses'!DF40)","v":""},{"$f":"IF('2011 Survey responses'!DG40<0.5,\"\",'2011 Survey responses'!DG40)","v":""},{"$f":"IF('2011 Survey responses'!DH40<0.5,\"\",'2011 Survey responses'!DH40)","v":""},{"$f":"IF('2011 Survey responses'!DI40<0.5,\"\",'2011 Survey responses'!DI40)","v":""},{"$f":"IF('2011 Survey responses'!DJ40<0.5,\"\",'2011 Survey responses'!DJ40)","v":""},{"$f":"IF('2011 Survey responses'!DK40<0.5,\"\",'2011 Survey responses'!DK40)","v":""},{"$f":"IF('2011 Survey responses'!DL40<0.5,\"\",'2011 Survey responses'!DL40)","v":""},{"$f":"IF('2011 Survey responses'!DU40=4,4,IF('2011 Survey responses'!DU40=5,4,\"\"))","v":""},{"$f":"IF('2011 Survey responses'!DV40=4,3,IF('2011 Survey responses'!DV40=5,3,\"\"))","v":""},"",{"$f":"IF(CQ40=2,CQ40,IF(CO40=4,CO40,IF(CP40=3,CP40,IF('2011 Survey responses'!GT40=1,1,\"\"))))","v":""},{"$f":"IF('2011 Survey responses'!DO40<0.5,\"\",'2011 Survey responses'!DO40)","v":""},{"$f":"IF('2011 Survey responses'!DP40<0.5,\"\",'2011 Survey responses'!DP40)","v":""},{"$f":"IF('2011 Survey responses'!DQ40<0.5,\"\",'2011 Survey responses'!DQ40)","v":""},{"$f":"IF('2011 Survey responses'!DR40<0.5,\"\",'2011 Survey responses'!DR40)","v":""},{"$f":"IF('2011 Survey responses'!DS40<0.5,\"\",'2011 Survey responses'!DS40)","v":""},{"$f":"IF('2011 Survey responses'!DT40<0.5,\"\",'2011 Survey responses'!DT40)","v":""},{"$f":"IF('2011 Survey responses'!DU40<0.5,\"\",'2011 Survey responses'!DU40)","v":""},{"$f":"IF('2011 Survey responses'!DV40<0.5,\"\",'2011 Survey responses'!DV40)","v":""},{"$f":"IF('2011 Survey responses'!DW40<0.5,\"\",'2011 Survey responses'!DW40)","v":""},{"$f":"IF('2011 Survey responses'!DX40<0.5,\"\",'2011 Survey responses'!DX40)","v":""},{"$f":"IF('2011 Survey responses'!DY40<0.5,\"\",'2011 Survey responses'!DY40)","v":""},{"$f":"IF('2011 Survey responses'!DZ40<0.5,\"\",'2011 Survey responses'!DZ40)","v":""},{"$f":"IF('2011 Survey responses'!EA40<0.5,\"\",'2011 Survey responses'!EA40)","v":""},{"$f":"IF('2011 Survey responses'!EB40<0.5,\"\",'2011 Survey responses'!EB40)","v":""},{"$f":"IF('2011 Survey responses'!EC40<0.5,\"\",'2011 Survey responses'!EC40)","v":""},{"$f":"IF('2011 Survey responses'!ED40<0.5,\"\",'2011 Survey responses'!ED40)","v":""},{"$f":"IF('2011 Survey responses'!EE40<0.5,\"\",'2011 Survey responses'!EE40)","v":""},{"$f":"IF('2011 Survey responses'!EF40<0.5,\"\",'2011 Survey responses'!EF40)","v":""},{"$f":"IF('2011 Survey responses'!EG40<0.5,\"\",'2011 Survey responses'!EG40)","v":""},{"$f":"IF('2011 Survey responses'!EH40<0.5,\"\",'2011 Survey responses'!EH40)","v":""},{"$f":"IF('2011 Survey responses'!EI40<0.5,\"\",'2011 Survey responses'!EI40)","v":""},{"$f":"IF('2011 Survey responses'!EJ40<0.5,\"\",'2011 Survey responses'!EJ40)","v":""},{"$f":"IF('2011 Survey responses'!EK40<0.5,\"\",'2011 Survey responses'!EK40)","v":""},{"$f":"IF('2011 Survey responses'!EL40<0.5,\"\",'2011 Survey responses'!EL40)","v":""},{"$f":"IF('2011 Survey responses'!EM40<0.5,\"\",'2011 Survey responses'!EM40)","v":""},{"$f":"IF('2011 Survey responses'!EN40<0.5,\"\",'2011 Survey responses'!EN40)","v":""},{"$f":"IF('2011 Survey responses'!EO40<0.5,\"\",'2011 Survey responses'!EO40)","v":""},{"$f":"IF('2011 Survey responses'!EP40<0.5,\"\",'2011 Survey responses'!EP40)","v":""},{"$f":"IF(('2011 Survey responses'!EW40+'2011 Survey responses'!EX40)>=2,AVERAGE('2011 Survey responses'!EW40,'2011 Survey responses'!EY40),\"\")","v":""},{"$f":"IF('2011 Survey responses'!EX40<0.5,\"\",'2011 Survey responses'!EX40)","v":""},{"$f":"IF('2011 Survey responses'!EZ40<0.5,\"\",'2011 Survey responses'!EZ40)","v":""},{"$f":"IF('2011 Survey responses'!FB40<0.5,\"\",'2011 Survey responses'!FB40)","v":""},{"$f":"IF('2011 Survey responses'!FD40<0.5,\"\",'2011 Survey responses'!FD40)","v":""},{"$f":"IF('2011 Survey responses'!FC40<0.5,\"\",'2011 Survey responses'!FC40)","v":""},{"$f":"IF(('2011 Survey responses'!EM40+'2011 Survey responses'!EN40)>=2,AVERAGE('2011 Survey responses'!EM40,'2011 Survey responses'!EN40),\"\")","v":""},{"$f":"IF('2011 Survey responses'!ES40<0.5,\"\",'2011 Survey responses'!ES40)","v":""},{"$f":"IF(('2011 Survey responses'!ET40+'2011 Survey responses'!EU40)>=2,AVERAGE('2011 Survey responses'!ET40,'2011 Survey responses'!EU40),\"\")","v":""},{"$f":"IF('2011 Survey responses'!EV40<0.5,\"\",'2011 Survey responses'!EV40)","v":""},{"$f":"IF('2011 Survey responses'!FA40<0.5,\"\",'2011 Survey responses'!FA40)","v":""},{"$f":"IF('2011 Survey responses'!ER40<0.5,\"\",'2011 Survey responses'!ER40)","v":""},{"$f":"IF(('2011 Survey responses'!EO40+'2011 Survey responses'!EP40)>=2,AVERAGE('2011 Survey responses'!EO40,'2011 Survey responses'!EP40),\"\")","v":""},{"$f":"IF('2011 Survey responses'!EQ40<0.5,\"\",'2011 Survey responses'!EQ40)","v":""},{"$f":"IF('2011 Survey responses'!ET40<0.5,\"\",'2011 Survey responses'!ET40)","v":""},{"$f":"IF('2011 Survey responses'!EU40<0.5,\"\",'2011 Survey responses'!EU40)","v":""},{"$f":"IF('2011 Survey responses'!EW40<0.5,\"\",'2011 Survey responses'!EW40)","v":""},{"$f":"IF('2011 Survey responses'!EY40<0.5,\"\",'2011 Survey responses'!EY40)","v":""},{"$f":"IF('2011 Survey responses'!FU40<0.5,\"\",'2011 Survey responses'!FU40)","v":""},{"$f":"IF(('2011 Survey responses'!FL40+'2011 Survey responses'!FM40)>=2,AVERAGE('2011 Survey responses'!FL40,'2011 Survey responses'!FM40),\"\")","v":""},{"$f":"IF(('2011 Survey responses'!FO40+'2011 Survey responses'!FQ40)>=2,AVERAGE('2011 Survey responses'!FO40,'2011 Survey responses'!FQ40),\"\")","v":""},{"$f":"IF('2011 Survey responses'!FJ40<0.5,\"\",'2011 Survey responses'!FJ40)","v":""},{"$f":"IF('2011 Survey responses'!FT40<0.5,\"\",'2011 Survey responses'!FT40)","v":""},{"$f":"IF('2011 Survey responses'!FR40<0.5,\"\",'2011 Survey responses'!FR40)","v":""},{"$f":"IF('2011 Survey responses'!FK40<0.5,\"\",'2011 Survey responses'!FK40)","v":""},{"$f":"IF('2011 Survey responses'!FP40<0.5,\"\",'2011 Survey responses'!FP40)","v":""},{"$f":"IF('2011 Survey responses'!FN40<0.5,\"\",'2011 Survey responses'!FN40)","v":""},{"$f":"IF(('2011 Survey responses'!FE40+'2011 Survey responses'!FF40)>=2,AVERAGE('2011 Survey responses'!FE40,'2011 Survey responses'!FF40),\"\")","v":""},{"$f":"IF('2011 Survey responses'!FS40<0.5,\"\",'2011 Survey responses'!FS40)","v":""},{"$f":"IF('2011 Survey responses'!FV40<0.5,\"\",'2011 Survey responses'!FV40)","v":""},{"$f":"IF(('2011 Survey responses'!FG40+'2011 Survey responses'!FH40)>=2,AVERAGE('2011 Survey responses'!FG40,'2011 Survey responses'!FH40),\"\")","v":""},{"$f":"IF('2011 Survey responses'!FI40<0.5,\"\",'2011 Survey responses'!FI40)","v":""},{"$f":"IF('2011 Survey responses'!FE40<0.5,\"\",'2011 Survey responses'!FE40)","v":""},{"$f":"IF('2011 Survey responses'!FF40<0.5,\"\",'2011 Survey responses'!FF40)","v":""},{"$f":"IF('2011 Survey responses'!FG40<0.5,\"\",'2011 Survey responses'!FG40)","v":""},{"$f":"IF('2011 Survey responses'!FH40<0.5,\"\",'2011 Survey responses'!FH40)","v":""},{"$f":"IF('2011 Survey responses'!FL40<0.5,\"\",'2011 Survey responses'!FL40)","v":""},{"$f":"IF('2011 Survey responses'!FM40<0.5,\"\",'2011 Survey responses'!FM40)","v":""},{"$f":"IF('2011 Survey responses'!FO40<0.5,\"\",'2011 Survey responses'!FO40)","v":""},{"$f":"IF('2011 Survey responses'!FQ40<0.5,\"\",'2011 Survey responses'!FQ40)","v":""}]
["Congo",{"$f":"IF(SUM(F41)<1,\"\",AVERAGEIF('2011 Survey responses'!B41:CP41,\">1\"))","v":2.6739130434782608},{"$f":"IF(SUM(F41)<1,\"\",AVERAGEIF('2011 Survey responses'!B41:AO41,\">1\"))","v":2.5},{"$f":"IF(SUM(F41)<1,\"\",AVERAGEIF('2011 Survey responses'!B41:BV41,\">1\"))","v":2.375},{"$f":"IF(SUM(F41)<1,\"\",AVERAGEIF('2011 Survey responses'!V41:BV41,\">1\"))","v":2.3684210526315788},{"$f":"IF(SUM('2011 Survey responses'!B41:U41)<1,\"\",(AVERAGEIFS('2011 Survey responses'!B41:U41,'2011 Survey responses'!B41:U41,\">1\")))","v":2.3846153846153846},{"$f":"IF(SUM('2011 Survey responses'!B41:H41)<1,\"\",(AVERAGEIFS('2011 Survey responses'!B41:H41,'2011 Survey responses'!B41:H41,\">1\")))","v":3},{"$f":"IF(SUM('2011 Survey responses'!I41:S41)<1,\"\",(AVERAGEIFS('2011 Survey responses'!I41:S41,'2011 Survey responses'!I41:S41,\">1\")))","v":2},{"$f":"IF(SUM('2011 Survey responses'!T41:U41)<2.1,\"\",(AVERAGEIFS('2011 Survey responses'!T41:U41,'2011 Survey responses'!T41:U41,\">1\")))","v":3.5},{"$f":"IF(SUM('2011 Survey responses'!B41:C41)<2.1,\"\",((SUMIF('2011 Survey responses'!B41:C41,\">1\")+SUMIF('2011 Survey responses'!F41,\">1\"))/(COUNTIF('2011 Survey responses'!B41:C41,\">1\")+COUNTIF('2011 Survey responses'!F41,\">1\"))))","v":2},{"$f":"IF(SUM('2011 Survey responses'!D41:E41)<2.1,\"\",(AVERAGEIFS('2011 Survey responses'!D41:E41,'2011 Survey responses'!D41:E41,\">1\")))","v":4},{"$f":"IF(('2011 Survey responses'!B41+'2011 Survey responses'!D41)<2.1,\"\",((SUMIF('2011 Survey responses'!B41,\">1\")+SUMIF('2011 Survey responses'!D41,\">1\")+SUMIF('2011 Survey responses'!F41,\">1\")+SUMIF('2011 Survey responses'!K41,\">1\"))/(COUNTIF('2011 Survey responses'!B41,\">1\")+COUNTIF('2011 Survey responses'!D41,\">1\")+COUNTIF('2011 Survey responses'!F41,\">1\")+COUNTIF('2011 Survey responses'!K41,\">1\"))))","v":2.6666666666666665},{"$f":"IF(SUM('2011 Survey responses'!G41:H41)<2.1,\"\",(AVERAGEIFS('2011 Survey responses'!G41:H41,'2011 Survey responses'!G41:H41,\">1\")))","v":""},{"$f":"IF(SUM('2011 Survey responses'!F41:G41)<1.5,\"\",MAX('2011 Survey responses'!F41,'2011 Survey responses'!G41))","v":1},{"$f":"IF(SUM('2011 Survey responses'!G41:H41)<1,\"\",MAX('2011 Survey responses'!G41,'2011 Survey responses'!H41))","v":1},{"$f":"IF(SUM('2011 Survey responses'!I41:L41)<4.1,\"\",(AVERAGEIFS('2011 Survey responses'!I41:L41,'2011 Survey responses'!I41:L41,\">1\")))","v":2},{"$f":"IF(SUM('2011 Survey responses'!M41:S41)<4.1,\"\",(AVERAGEIFS('2011 Survey responses'!M41:S41,'2011 Survey responses'!M41:S41,\">1\")))","v":2},{"$f":"IF(SUM('2011 Survey responses'!T41:U41)<2.1,\"\",(AVERAGEIFS('2011 Survey responses'!T41:U41,'2011 Survey responses'!T41:U41,\">1\")))","v":3.5},{"$f":"IF(SUM('2011 Survey responses'!V41:AO41)<1,\"\",(AVERAGEIFS('2011 Survey responses'!V41:AO41,'2011 Survey responses'!V41:AO41,\">1\")))","v":2.7142857142857144},{"$f":"IF(SUM('2011 Survey responses'!V41:AA41)<1,\"\",(AVERAGEIFS('2011 Survey responses'!V41:AA41,'2011 Survey responses'!V41:AA41,\">1\")))","v":3.25},{"$f":"IF(SUM('2011 Survey responses'!AB41:AH41)<1,\"\",(AVERAGEIFS('2011 Survey responses'!AB41:AH41,'2011 Survey responses'!AB41:AH41,\">1\")))","v":2},{"$f":"IF(OR(SUM('2011 Survey responses'!AI41:AO41),(SUM('2011 Survey responses'!AI41:AO41)<1)),\"\",(AVERAGEIFS('2011 Survey responses'!AI41:AO41,'2011 Survey responses'!AI41:AO41,\">1\")))","v":""},{"$f":"IF(('2011 Survey responses'!Y41+'2011 Survey responses'!AI41+'2011 Survey responses'!AK41)<3.1,\"\",((SUMIF('2011 Survey responses'!Y41,\">1\")+SUMIF('2011 Survey responses'!AI41,\">1\")+SUMIF('2011 Survey responses'!AK41,\">1\")+SUMIF('2011 Survey responses'!AM41,\">1\"))/(COUNTIF('2011 Survey responses'!Y41,\">1\")+COUNTIF('2011 Survey responses'!AI41,\">1\")+COUNTIF('2011 Survey responses'!AK41,\">1\")+COUNTIF('2011 Survey responses'!AM41,\">1\"))))","v":2},{"$f":"IF(('2011 Survey responses'!W41)<1.1,\"\",('2011 Survey responses'!W41))","v":""},{"$f":"IF(('2011 Survey responses'!Y41)<1.1,\"\",('2011 Survey responses'!Y41))","v":2},{"$f":"IF(('2011 Survey responses'!Z41)<1.1,\"\",('2011 Survey responses'!Z41))","v":4},{"$f":"IF(('2011 Survey responses'!V41+'2011 Survey responses'!X41+'2011 Survey responses'!AA41)<3.1,\"\",((SUMIF('2011 Survey responses'!V41,\">1\")+SUMIF('2011 Survey responses'!X41,\">1\")+SUMIF('2011 Survey responses'!AA41,\">1\"))/(COUNTIF('2011 Survey responses'!V41,\">1\")+COUNTIF('2011 Survey responses'!X41,\">1\")+COUNTIF('2011 Survey responses'!AA41,\">1\"))))","v":3.5},{"$f":"IF(('2011 Survey responses'!V41+'2011 Survey responses'!Y41+'2011 Survey responses'!AA41)<3.1,\"\",((SUMIF('2011 Survey responses'!V41,\">1\")+SUMIF('2011 Survey responses'!Y41,\">1\")+SUMIF('2011 Survey responses'!AA41,\">1\"))/(COUNTIF('2011 Survey responses'!V41,\">1\")+COUNTIF('2011 Survey responses'!Y41,\">1\")+COUNTIF('2011 Survey responses'!AA41,\">1\"))))","v":3},{"$f":"IF(SUM('2011 Survey responses'!AB41:AH41)<1,\"\",(AVERAGEIFS('2011 Survey responses'!AB41:AH41,'2011 Survey responses'!AB41:AH41,\">1\")))","v":2},{"$f":"IF(SUM('2011 Survey responses'!AI41:AO41)<7.1,\"\",(AVERAGEIFS('2011 Survey responses'!AI41:AO41,'2011 Survey responses'!AI41:AO41,\">1\")))","v":""},{"$f":"IF(('2011 Survey responses'!AH41)<1.1,\"\",('2011 Survey responses'!AH41))","v":""},{"$f":"IF(SUM('2011 Survey responses'!AP41:BV41)<1,\"\",(AVERAGEIFS('2011 Survey responses'!AP41:BV41,'2011 Survey responses'!AP41:BV41,\">1\")))","v":2.1666666666666665},{"$f":"IF(SUM('2011 Survey responses'!AP41:AS41)<4.1,\"\",(AVERAGEIFS('2011 Survey responses'!AP41:AS41,'2011 Survey responses'!AP41:AS41,\">1\")))","v":""},{"$f":"IF(SUM('2011 Survey responses'!AT41:BF41)<1,\"\",(AVERAGEIFS('2011 Survey responses'!AT41:BF41,'2011 Survey responses'!AT41:BF41,\">1\")))","v":2.4},{"$f":"IF(SUM('2011 Survey responses'!BG41:BO41)<1,\"\",(AVERAGEIFS('2011 Survey responses'!BG41:BO41,'2011 Survey responses'!BG41:BO41,\">1\")))","v":2},{"$f":"IF(SUM('2011 Survey responses'!BP41:BS41)<1,\"\",(AVERAGEIFS('2011 Survey responses'!BP41:BS41,'2011 Survey responses'!BP41:BS41,\">1\")))","v":2},{"$f":"IF(SUM('2011 Survey responses'!BT41:BV41)<3.1,\"\",(AVERAGEIFS('2011 Survey responses'!BT41:BV41,'2011 Survey responses'!BT41:BV41,\">1\")))","v":2},{"$f":"IF(('2011 Survey responses'!AQ41+'2011 Survey responses'!AR41+'2011 Survey responses'!BG41)<3.1,\"\",((SUMIF('2011 Survey responses'!AQ41,\">1\")+SUMIF('2011 Survey responses'!AR41,\">1\")+SUMIF('2011 Survey responses'!BG41,\">1\"))/(COUNTIF('2011 Survey responses'!AQ41,\">1\")+COUNTIF('2011 Survey responses'!AR41,\">1\")+COUNTIF('2011 Survey responses'!BG41,\">1\"))))","v":2},{"$f":"IF(SUM('2011 Survey responses'!AP41:AS41)<4.1,\"\",(AVERAGEIFS('2011 Survey responses'!AP41:AS41,'2011 Survey responses'!AP41:AS41,\">1\")))","v":""},{"$f":"IF(('2011 Survey responses'!AU41+'2011 Survey responses'!AX41+'2011 Survey responses'!BA41+'2011 Survey responses'!BC41+'2011 Survey responses'!BD41)<5.1,\"\",(SUMIF('2011 Survey responses'!AU41,\">1\")+SUMIF('2011 Survey responses'!AX41,\">1\")+SUMIF('2011 Survey responses'!BA41,\">1\")+SUMIF('2011 Survey responses'!BC41,\">1\")+SUMIF('2011 Survey responses'!BD41,\">1\"))/(COUNTIF('2011 Survey responses'!AU41,\">1\")+COUNTIF('2011 Survey responses'!AX41,\">1\")+COUNTIF('2011 Survey responses'!BA41,\">1\")+COUNTIF('2011 Survey responses'!BC41,\">1\")+COUNTIF('2011 Survey responses'!BD41,\">1\")))","v":2},{"$f":"IF(('2011 Survey responses'!AT41)<1.1,\"\",('2011 Survey responses'!AT41))","v":""},{"$f":"IF(SUM('2011 Survey responses'!AV41:AW41)<2.1,\"\",(AVERAGEIFS('2011 Survey responses'!AV41:AW41,'2011 Survey responses'!AV41:AW41,\">1\")))","v":2},{"$f":"IF(('2011 Survey responses'!AW41+'2011 Survey responses'!AY41)<2.1,\"\",(SUMIF('2011 Survey responses'!AW41,\">1\")+SUMIF('2011 Survey responses'!AY41,\">1\"))/(COUNTIF('2011 Survey responses'!AW41,\">1\")+COUNTIF('2011 Survey responses'!AY41,\">1\")))","v":2},{"$f":"IF(('2011 Survey responses'!AZ41)<1.1,\"\",('2011 Survey responses'!AZ41))","v":""},1,1,1,1,{"$f":"IF(('2011 Survey responses'!BE41)<1.1,\"\",('2011 Survey responses'!BE41))","v":4},{"$f":"IF(('2011 Survey responses'!AY41+'2011 Survey responses'!BB41+'2011 Survey responses'!BF41)<3.1,\"\",(SUMIF('2011 Survey responses'!AY41,\">1\")+SUMIF('2011 Survey responses'!BB41,\">1\")+SUMIF('2011 Survey responses'!BF41,\">1\"))/(COUNTIF('2011 Survey responses'!AY41,\">1\")+COUNTIF('2011 Survey responses'!BB41,\">1\")+COUNTIF('2011 Survey responses'!BF41,\">1\")))","v":2},2,{"$f":"IF(SUM('2011 Survey responses'!BT41:BV41)<3.1,\"\",(AVERAGEIFS('2011 Survey responses'!BT41:BV41,'2011 Survey responses'!BT41:BV41,\">1\")))","v":2},{"$f":"IF(SUM('2011 Survey responses'!BW41:CP41)<1,\"\",(AVERAGEIFS('2011 Survey responses'!BW41:CP41,'2011 Survey responses'!BW41:CP41,\">1\")))","v":3.3571428571428572},{"$f":"IF(SUM('2011 Survey responses'!BW41:CF41)<1,\"\",(AVERAGEIFS('2011 Survey responses'!BW41:CF41,'2011 Survey responses'!BW41:CF41,\">1\")))","v":3.2857142857142856},{"$f":"IF(SUM('2011 Survey responses'!CG41:CP41)<1,\"\",(AVERAGEIFS('2011 Survey responses'!CG41:CP41,'2011 Survey responses'!CG41:CP41,\">1\")))","v":3.4285714285714284},{"$f":"IF(SUM('2011 Survey responses'!BX41:CF41)<1,\"\",(AVERAGEIFS('2011 Survey responses'!BX41:CF41,'2011 Survey responses'!BX41:CF41,\">1\")))","v":3.5},{"$f":"IF(SUM('2011 Survey responses'!CH41:CP41)<1,\"\",(AVERAGEIFS('2011 Survey responses'!CH41:CP41,'2011 Survey responses'!CH41:CP41,\">1\")))","v":3.6666666666666665},{"$f":"IF(SUM('2011 Survey responses'!BW41:CP41)<1,\"\",(AVERAGEIFS('2011 Survey responses'!BW41:CP41,'2011 Survey responses'!BW41:CP41,\">1\")))","v":3.3571428571428572},{"$f":"IF(('2011 Survey responses'!BW41+'2011 Survey responses'!CG41)<2.1,\"\",(SUMIF('2011 Survey responses'!BW41,\">1\")+SUMIF('2011 Survey responses'!CG41,\">1\"))/(COUNTIF('2011 Survey responses'!BW41,\">1\")+COUNTIF('2011 Survey responses'!CG41,\">1\")))","v":2},{"$f":"IF(('2011 Survey responses'!BX41+'2011 Survey responses'!CH41)<2.1,\"\",(SUMIF('2011 Survey responses'!BX41,\">1\")+SUMIF('2011 Survey responses'!CH41,\">1\"))/(COUNTIF('2011 Survey responses'!BX41,\">1\")+COUNTIF('2011 Survey responses'!CH41,\">1\")))","v":""},{"$f":"IF(('2011 Survey responses'!BY41+'2011 Survey responses'!CI41)<2.1,\"\",(SUMIF('2011 Survey responses'!BY41,\">1\")+SUMIF('2011 Survey responses'!CI41,\">1\"))/(COUNTIF('2011 Survey responses'!BY41,\">1\")+COUNTIF('2011 Survey responses'!CI41,\">1\")))","v":5},{"$f":"IF('2011 Survey responses'!CQ41<0.5,\"\",'2011 Survey responses'!CQ41)","v":2},{"$f":"IF('2011 Survey responses'!CR41<0.5,\"\",'2011 Survey responses'!CR41)","v":2},{"$f":"IF('2011 Survey responses'!CS41<0.5,\"\",'2011 Survey responses'!CS41)","v":1},{"$f":"IF('2011 Survey responses'!CT41<0.5,\"\",'2011 Survey responses'!CT41)","v":1},{"$f":"IF('2011 Survey responses'!CU41<0.5,\"\",'2011 Survey responses'!CU41)","v":2},{"$f":"IF('2011 Survey responses'!CV41<0.5,\"\",'2011 Survey responses'!CV41)","v":1},{"$f":"IF(SUM('2011 Survey responses'!CW41:DL41)<1,\"\",(AVERAGE('2011 Survey responses'!CW41:DL41)))","v":2},{"$f":"IF(SUM('2011 Survey responses'!CW41:CZ41)<1,\"\",(AVERAGE('2011 Survey responses'!CW41:CZ41)))","v":2},{"$f":"IF(SUM('2011 Survey responses'!DA41:DD41)<1,\"\",(AVERAGE('2011 Survey responses'!DA41:DD41)))","v":3},{"$f":"IF(SUM('2011 Survey responses'!DE41:DH41)<1,\"\",(AVERAGE('2011 Survey responses'!DE41:DH41)))","v":2},{"$f":"IF(SUM('2011 Survey responses'!DI41:DL41)<1,\"\",(AVERAGE('2011 Survey responses'!DI41:DL41)))","v":1},{"$f":"IF(('2011 Survey responses'!CW41+'2011 Survey responses'!DA41+'2011 Survey responses'!DE41+'2011 Survey responses'!DI41)<1,\"\",AVERAGE('2011 Survey responses'!CW41,'2011 Survey responses'!DA41,'2011 Survey responses'!DE41,'2011 Survey responses'!DI41))","v":2},{"$f":"IF(('2011 Survey responses'!CX41+'2011 Survey responses'!DB41+'2011 Survey responses'!DF41+'2011 Survey responses'!DJ41)<1,\"\",AVERAGE('2011 Survey responses'!CX41,'2011 Survey responses'!DB41,'2011 Survey responses'!DF41,'2011 Survey responses'!DJ41))","v":2},{"$f":"IF(('2011 Survey responses'!CY41+'2011 Survey responses'!DC41+'2011 Survey responses'!DG41+'2011 Survey responses'!DK41)<1,\"\",AVERAGE('2011 Survey responses'!CY41,'2011 Survey responses'!DC41,'2011 Survey responses'!DG41,'2011 Survey responses'!DK41))","v":2},{"$f":"IF(('2011 Survey responses'!CZ41+'2011 Survey responses'!DD41+'2011 Survey responses'!DH41+'2011 Survey responses'!DL41)<1,\"\",AVERAGE('2011 Survey responses'!CZ41,'2011 Survey responses'!DD41,'2011 Survey responses'!DH41,'2011 Survey responses'!DL41))","v":2},{"$f":"IF('2011 Survey responses'!CW41<0.5,\"\",'2011 Survey responses'!CW41)","v":2},{"$f":"IF('2011 Survey responses'!CX41<0.5,\"\",'2011 Survey responses'!CX41)","v":2},{"$f":"IF('2011 Survey responses'!CY41<0.5,\"\",'2011 Survey responses'!CY41)","v":2},{"$f":"IF('2011 Survey responses'!CZ41<0.5,\"\",'2011 Survey responses'!CZ41)","v":2},{"$f":"IF('2011 Survey responses'!DA41<0.5,\"\",'2011 Survey responses'!DA41)","v":3},{"$f":"IF('2011 Survey responses'!DB41<0.5,\"\",'2011 Survey responses'!DB41)","v":3},{"$f":"IF('2011 Survey responses'!DC41<0.5,\"\",'2011 Survey responses'!DC41)","v":3},{"$f":"IF('2011 Survey responses'!DD41<0.5,\"\",'2011 Survey responses'!DD41)","v":3},{"$f":"IF('2011 Survey responses'!DE41<0.5,\"\",'2011 Survey responses'!DE41)","v":2},{"$f":"IF('2011 Survey responses'!DF41<0.5,\"\",'2011 Survey responses'!DF41)","v":2},{"$f":"IF('2011 Survey responses'!DG41<0.5,\"\",'2011 Survey responses'!DG41)","v":2},{"$f":"IF('2011 Survey responses'!DH41<0.5,\"\",'2011 Survey responses'!DH41)","v":2},{"$f":"IF('2011 Survey responses'!DI41<0.5,\"\",'2011 Survey responses'!DI41)","v":1},{"$f":"IF('2011 Survey responses'!DJ41<0.5,\"\",'2011 Survey responses'!DJ41)","v":1},{"$f":"IF('2011 Survey responses'!DK41<0.5,\"\",'2011 Survey responses'!DK41)","v":1},{"$f":"IF('2011 Survey responses'!DL41<0.5,\"\",'2011 Survey responses'!DL41)","v":1},{"$f":"IF('2011 Survey responses'!DU41=4,4,IF('2011 Survey responses'!DU41=5,4,\"\"))","v":4},{"$f":"IF('2011 Survey responses'!DV41=4,3,IF('2011 Survey responses'!DV41=5,3,\"\"))","v":""},"",{"$f":"IF(CQ41=2,CQ41,IF(CO41=4,CO41,IF(CP41=3,CP41,IF('2011 Survey responses'!GT41=1,1,\"\"))))","v":4},{"$f":"IF('2011 Survey responses'!DO41<0.5,\"\",'2011 Survey responses'!DO41)","v":4},{"$f":"IF('2011 Survey responses'!DP41<0.5,\"\",'2011 Survey responses'!DP41)","v":5},{"$f":"IF('2011 Survey responses'!DQ41<0.5,\"\",'2011 Survey responses'!DQ41)","v":4},{"$f":"IF('2011 Survey responses'!DR41<0.5,\"\",'2011 Survey responses'!DR41)","v":5},{"$f":"IF('2011 Survey responses'!DS41<0.5,\"\",'2011 Survey responses'!DS41)","v":4},{"$f":"IF('2011 Survey responses'!DT41<0.5,\"\",'2011 Survey responses'!DT41)","v":5},{"$f":"IF('2011 Survey responses'!DU41<0.5,\"\",'2011 Survey responses'!DU41)","v":4},{"$f":"IF('2011 Survey responses'!DV41<0.5,\"\",'2011 Survey responses'!DV41)","v":1},{"$f":"IF('2011 Survey responses'!DW41<0.5,\"\",'2011 Survey responses'!DW41)","v":1},{"$f":"IF('2011 Survey responses'!DX41<0.5,\"\",'2011 Survey responses'!DX41)","v":1},{"$f":"IF('2011 Survey responses'!DY41<0.5,\"\",'2011 Survey responses'!DY41)","v":4},{"$f":"IF('2011 Survey responses'!DZ41<0.5,\"\",'2011 Survey responses'!DZ41)","v":2},{"$f":"IF('2011 Survey responses'!EA41<0.5,\"\",'2011 Survey responses'!EA41)","v":4},{"$f":"IF('2011 Survey responses'!EB41<0.5,\"\",'2011 Survey responses'!EB41)","v":5},{"$f":"IF('2011 Survey responses'!EC41<0.5,\"\",'2011 Survey responses'!EC41)","v":4},{"$f":"IF('2011 Survey responses'!ED41<0.5,\"\",'2011 Survey responses'!ED41)","v":5},{"$f":"IF('2011 Survey responses'!EE41<0.5,\"\",'2011 Survey responses'!EE41)","v":3},{"$f":"IF('2011 Survey responses'!EF41<0.5,\"\",'2011 Survey responses'!EF41)","v":5},{"$f":"IF('2011 Survey responses'!EG41<0.5,\"\",'2011 Survey responses'!EG41)","v":3},{"$f":"IF('2011 Survey responses'!EH41<0.5,\"\",'2011 Survey responses'!EH41)","v":3},{"$f":"IF('2011 Survey responses'!EI41<0.5,\"\",'2011 Survey responses'!EI41)","v":3},{"$f":"IF('2011 Survey responses'!EJ41<0.5,\"\",'2011 Survey responses'!EJ41)","v":3},{"$f":"IF('2011 Survey responses'!EK41<0.5,\"\",'2011 Survey responses'!EK41)","v":3},{"$f":"IF('2011 Survey responses'!EL41<0.5,\"\",'2011 Survey responses'!EL41)","v":3},{"$f":"IF('2011 Survey responses'!EM41<0.5,\"\",'2011 Survey responses'!EM41)","v":4},{"$f":"IF('2011 Survey responses'!EN41<0.5,\"\",'2011 Survey responses'!EN41)","v":4},{"$f":"IF('2011 Survey responses'!EO41<0.5,\"\",'2011 Survey responses'!EO41)","v":4},{"$f":"IF('2011 Survey responses'!EP41<0.5,\"\",'2011 Survey responses'!EP41)","v":4},{"$f":"IF(('2011 Survey responses'!EW41+'2011 Survey responses'!EX41)>=2,AVERAGE('2011 Survey responses'!EW41,'2011 Survey responses'!EY41),\"\")","v":4},{"$f":"IF('2011 Survey responses'!EX41<0.5,\"\",'2011 Survey responses'!EX41)","v":4},{"$f":"IF('2011 Survey responses'!EZ41<0.5,\"\",'2011 Survey responses'!EZ41)","v":5},{"$f":"IF('2011 Survey responses'!FB41<0.5,\"\",'2011 Survey responses'!FB41)","v":4},{"$f":"IF('2011 Survey responses'!FD41<0.5,\"\",'2011 Survey responses'!FD41)","v":4},{"$f":"IF('2011 Survey responses'!FC41<0.5,\"\",'2011 Survey responses'!FC41)","v":5},{"$f":"IF(('2011 Survey responses'!EM41+'2011 Survey responses'!EN41)>=2,AVERAGE('2011 Survey responses'!EM41,'2011 Survey responses'!EN41),\"\")","v":4},{"$f":"IF('2011 Survey responses'!ES41<0.5,\"\",'2011 Survey responses'!ES41)","v":4},{"$f":"IF(('2011 Survey responses'!ET41+'2011 Survey responses'!EU41)>=2,AVERAGE('2011 Survey responses'!ET41,'2011 Survey responses'!EU41),\"\")","v":4},{"$f":"IF('2011 Survey responses'!EV41<0.5,\"\",'2011 Survey responses'!EV41)","v":4},{"$f":"IF('2011 Survey responses'!FA41<0.5,\"\",'2011 Survey responses'!FA41)","v":5},{"$f":"IF('2011 Survey responses'!ER41<0.5,\"\",'2011 Survey responses'!ER41)","v":4},{"$f":"IF(('2011 Survey responses'!EO41+'2011 Survey responses'!EP41)>=2,AVERAGE('2011 Survey responses'!EO41,'2011 Survey responses'!EP41),\"\")","v":4},{"$f":"IF('2011 Survey responses'!EQ41<0.5,\"\",'2011 Survey responses'!EQ41)","v":2},{"$f":"IF('2011 Survey responses'!ET41<0.5,\"\",'2011 Survey responses'!ET41)","v":4},{"$f":"IF('2011 Survey responses'!EU41<0.5,\"\",'2011 Survey responses'!EU41)","v":4},{"$f":"IF('2011 Survey responses'!EW41<0.5,\"\",'2011 Survey responses'!EW41)","v":4},{"$f":"IF('2011 Survey responses'!EY41<0.5,\"\",'2011 Survey responses'!EY41)","v":4},{"$f":"IF('2011 Survey responses'!FU41<0.5,\"\",'2011 Survey responses'!FU41)","v":3},{"$f":"IF(('2011 Survey responses'!FL41+'2011 Survey responses'!FM41)>=2,AVERAGE('2011 Survey responses'!FL41,'2011 Survey responses'!FM41),\"\")","v":3},{"$f":"IF(('2011 Survey responses'!FO41+'2011 Survey responses'!FQ41)>=2,AVERAGE('2011 Survey responses'!FO41,'2011 Survey responses'!FQ41),\"\")","v":2},{"$f":"IF('2011 Survey responses'!FJ41<0.5,\"\",'2011 Survey responses'!FJ41)","v":2},{"$f":"IF('2011 Survey responses'!FT41<0.5,\"\",'2011 Survey responses'!FT41)","v":3},{"$f":"IF('2011 Survey responses'!FR41<0.5,\"\",'2011 Survey responses'!FR41)","v":3},{"$f":"IF('2011 Survey responses'!FK41<0.5,\"\",'2011 Survey responses'!FK41)","v":2},{"$f":"IF('2011 Survey responses'!FP41<0.5,\"\",'2011 Survey responses'!FP41)","v":3},{"$f":"IF('2011 Survey responses'!FN41<0.5,\"\",'2011 Survey responses'!FN41)","v":2},{"$f":"IF(('2011 Survey responses'!FE41+'2011 Survey responses'!FF41)>=2,AVERAGE('2011 Survey responses'!FE41,'2011 Survey responses'!FF41),\"\")","v":2.5},{"$f":"IF('2011 Survey responses'!FS41<0.5,\"\",'2011 Survey responses'!FS41)","v":3},{"$f":"IF('2011 Survey responses'!FV41<0.5,\"\",'2011 Survey responses'!FV41)","v":3},{"$f":"IF(('2011 Survey responses'!FG41+'2011 Survey responses'!FH41)>=2,AVERAGE('2011 Survey responses'!FG41,'2011 Survey responses'!FH41),\"\")","v":2.5},{"$f":"IF('2011 Survey responses'!FI41<0.5,\"\",'2011 Survey responses'!FI41)","v":3},{"$f":"IF('2011 Survey responses'!FE41<0.5,\"\",'2011 Survey responses'!FE41)","v":2},{"$f":"IF('2011 Survey responses'!FF41<0.5,\"\",'2011 Survey responses'!FF41)","v":3},{"$f":"IF('2011 Survey responses'!FG41<0.5,\"\",'2011 Survey responses'!FG41)","v":2},{"$f":"IF('2011 Survey responses'!FH41<0.5,\"\",'2011 Survey responses'!FH41)","v":3},{"$f":"IF('2011 Survey responses'!FL41<0.5,\"\",'2011 Survey responses'!FL41)","v":3},{"$f":"IF('2011 Survey responses'!FM41<0.5,\"\",'2011 Survey responses'!FM41)","v":3},{"$f":"IF('2011 Survey responses'!FO41<0.5,\"\",'2011 Survey responses'!FO41)","v":2},{"$f":"IF('2011 Survey responses'!FQ41<0.5,\"\",'2011 Survey responses'!FQ41)","v":2}]
["Costa Rica",{"$f":"IF(SUM(F42)<1,\"\",AVERAGEIF('2011 Survey responses'!B42:CP42,\">1\"))","v":3.6142857142857143},{"$f":"IF(SUM(F42)<1,\"\",AVERAGEIF('2011 Survey responses'!B42:AO42,\">1\"))","v":2.90625},{"$f":"IF(SUM(F42)<1,\"\",AVERAGEIF('2011 Survey responses'!B42:BV42,\">1\"))","v":3.375},{"$f":"IF(SUM(F42)<1,\"\",AVERAGEIF('2011 Survey responses'!V42:BV42,\">1\"))","v":3.5128205128205128},{"$f":"IF(SUM('2011 Survey responses'!B42:U42)<1,\"\",(AVERAGEIFS('2011 Survey responses'!B42:U42,'2011 Survey responses'!B42:U42,\">1\")))","v":3.0588235294117645},{"$f":"IF(SUM('2011 Survey responses'!B42:H42)<1,\"\",(AVERAGEIFS('2011 Survey responses'!B42:H42,'2011 Survey responses'!B42:H42,\">1\")))","v":3.5},{"$f":"IF(SUM('2011 Survey responses'!I42:S42)<1,\"\",(AVERAGEIFS('2011 Survey responses'!I42:S42,'2011 Survey responses'!I42:S42,\">1\")))","v":2.9090909090909092},{"$f":"IF(SUM('2011 Survey responses'!T42:U42)<2.1,\"\",(AVERAGEIFS('2011 Survey responses'!T42:U42,'2011 Survey responses'!T42:U42,\">1\")))","v":3},{"$f":"IF(SUM('2011 Survey responses'!B42:C42)<2.1,\"\",((SUMIF('2011 Survey responses'!B42:C42,\">1\")+SUMIF('2011 Survey responses'!F42,\">1\"))/(COUNTIF('2011 Survey responses'!B42:C42,\">1\")+COUNTIF('2011 Survey responses'!F42,\">1\"))))","v":4.5},{"$f":"IF(SUM('2011 Survey responses'!D42:E42)<2.1,\"\",(AVERAGEIFS('2011 Survey responses'!D42:E42,'2011 Survey responses'!D42:E42,\">1\")))","v":2},{"$f":"IF(('2011 Survey responses'!B42+'2011 Survey responses'!D42)<2.1,\"\",((SUMIF('2011 Survey responses'!B42,\">1\")+SUMIF('2011 Survey responses'!D42,\">1\")+SUMIF('2011 Survey responses'!F42,\">1\")+SUMIF('2011 Survey responses'!K42,\">1\"))/(COUNTIF('2011 Survey responses'!B42,\">1\")+COUNTIF('2011 Survey responses'!D42,\">1\")+COUNTIF('2011 Survey responses'!F42,\">1\")+COUNTIF('2011 Survey responses'!K42,\">1\"))))","v":4},{"$f":"IF(SUM('2011 Survey responses'!G42:H42)<2.1,\"\",(AVERAGEIFS('2011 Survey responses'!G42:H42,'2011 Survey responses'!G42:H42,\">1\")))","v":3},{"$f":"IF(SUM('2011 Survey responses'!F42:G42)<1.5,\"\",MAX('2011 Survey responses'!F42,'2011 Survey responses'!G42))","v":4},{"$f":"IF(SUM('2011 Survey responses'!G42:H42)<1,\"\",MAX('2011 Survey responses'!G42,'2011 Survey responses'!H42))","v":3},{"$f":"IF(SUM('2011 Survey responses'!I42:L42)<4.1,\"\",(AVERAGEIFS('2011 Survey responses'!I42:L42,'2011 Survey responses'!I42:L42,\">1\")))","v":3.25},{"$f":"IF(SUM('2011 Survey responses'!M42:S42)<4.1,\"\",(AVERAGEIFS('2011 Survey responses'!M42:S42,'2011 Survey responses'!M42:S42,\">1\")))","v":2.7142857142857144},{"$f":"IF(SUM('2011 Survey responses'!T42:U42)<2.1,\"\",(AVERAGEIFS('2011 Survey responses'!T42:U42,'2011 Survey responses'!T42:U42,\">1\")))","v":3},{"$f":"IF(SUM('2011 Survey responses'!V42:AO42)<1,\"\",(AVERAGEIFS('2011 Survey responses'!V42:AO42,'2011 Survey responses'!V42:AO42,\">1\")))","v":2.7333333333333334},{"$f":"IF(SUM('2011 Survey responses'!V42:AA42)<1,\"\",(AVERAGEIFS('2011 Survey responses'!V42:AA42,'2011 Survey responses'!V42:AA42,\">1\")))","v":2.6666666666666665},{"$f":"IF(SUM('2011 Survey responses'!AB42:AH42)<1,\"\",(AVERAGEIFS('2011 Survey responses'!AB42:AH42,'2011 Survey responses'!AB42:AH42,\">1\")))","v":2.3333333333333335},{"$f":"IF(SUM('2011 Survey responses'!AI42:AO42)<1,\"\",(AVERAGEIFS('2011 Survey responses'!AI42:AO42,'2011 Survey responses'!AI42:AO42,\">1\")))","v":3.1666666666666665},{"$f":"IF(('2011 Survey responses'!Y42+'2011 Survey responses'!AI42+'2011 Survey responses'!AK42)<3.1,\"\",((SUMIF('2011 Survey responses'!Y42,\">1\")+SUMIF('2011 Survey responses'!AI42,\">1\")+SUMIF('2011 Survey responses'!AK42,\">1\")+SUMIF('2011 Survey responses'!AM42,\">1\"))/(COUNTIF('2011 Survey responses'!Y42,\">1\")+COUNTIF('2011 Survey responses'!AI42,\">1\")+COUNTIF('2011 Survey responses'!AK42,\">1\")+COUNTIF('2011 Survey responses'!AM42,\">1\"))))","v":3.6666666666666665},{"$f":"IF(('2011 Survey responses'!W42)<1.1,\"\",('2011 Survey responses'!W42))","v":4},{"$f":"IF(('2011 Survey responses'!Y42)<1.1,\"\",('2011 Survey responses'!Y42))","v":""},{"$f":"IF(('2011 Survey responses'!Z42)<1.1,\"\",('2011 Survey responses'!Z42))","v":2},{"$f":"IF(('2011 Survey responses'!V42+'2011 Survey responses'!X42+'2011 Survey responses'!AA42)<3.1,\"\",((SUMIF('2011 Survey responses'!V42,\">1\")+SUMIF('2011 Survey responses'!X42,\">1\")+SUMIF('2011 Survey responses'!AA42,\">1\"))/(COUNTIF('2011 Survey responses'!V42,\">1\")+COUNTIF('2011 Survey responses'!X42,\">1\")+COUNTIF('2011 Survey responses'!AA42,\">1\"))))","v":2},{"$f":"IF(('2011 Survey responses'!V42+'2011 Survey responses'!Y42+'2011 Survey responses'!AA42)<3.1,\"\",((SUMIF('2011 Survey responses'!V42,\">1\")+SUMIF('2011 Survey responses'!Y42,\">1\")+SUMIF('2011 Survey responses'!AA42,\">1\"))/(COUNTIF('2011 Survey responses'!V42,\">1\")+COUNTIF('2011 Survey responses'!Y42,\">1\")+COUNTIF('2011 Survey responses'!AA42,\">1\"))))","v":2},{"$f":"IF(SUM('2011 Survey responses'!AB42:AH42)<1,\"\",(AVERAGEIFS('2011 Survey responses'!AB42:AH42,'2011 Survey responses'!AB42:AH42,\">1\")))","v":2.3333333333333335},{"$f":"IF(SUM('2011 Survey responses'!AI42:AO42)<7.1,\"\",(AVERAGEIFS('2011 Survey responses'!AI42:AO42,'2011 Survey responses'!AI42:AO42,\">1\")))","v":3.1666666666666665},{"$f":"IF(('2011 Survey responses'!AH42)<1.1,\"\",('2011 Survey responses'!AH42))","v":2},{"$f":"IF(SUM('2011 Survey responses'!AP42:BV42)<1,\"\",(AVERAGEIFS('2011 Survey responses'!AP42:BV42,'2011 Survey responses'!AP42:BV42,\">1\")))","v":4},{"$f":"IF(SUM('2011 Survey responses'!AP42:AS42)<4.1,\"\",(AVERAGEIFS('2011 Survey responses'!AP42:AS42,'2011 Survey responses'!AP42:AS42,\">1\")))","v":5.25},{"$f":"IF(SUM('2011 Survey responses'!AT42:BF42)<1,\"\",(AVERAGEIFS('2011 Survey responses'!AT42:BF42,'2011 Survey responses'!AT42:BF42,\">1\")))","v":3.8181818181818183},{"$f":"IF(SUM('2011 Survey responses'!BG42:BO42)<1,\"\",(AVERAGEIFS('2011 Survey responses'!BG42:BO42,'2011 Survey responses'!BG42:BO42,\">1\")))","v":3.6666666666666665},{"$f":"IF(SUM('2011 Survey responses'!BP42:BS42)<1,\"\",(AVERAGEIFS('2011 Survey responses'!BP42:BS42,'2011 Survey responses'!BP42:BS42,\">1\")))","v":""},{"$f":"IF(SUM('2011 Survey responses'!BT42:BV42)<3.1,\"\",(AVERAGEIFS('2011 Survey responses'!BT42:BV42,'2011 Survey responses'!BT42:BV42,\">1\")))","v":""},{"$f":"IF(('2011 Survey responses'!AQ42+'2011 Survey responses'!AR42+'2011 Survey responses'!BG42)<3.1,\"\",((SUMIF('2011 Survey responses'!AQ42,\">1\")+SUMIF('2011 Survey responses'!AR42,\">1\")+SUMIF('2011 Survey responses'!BG42,\">1\"))/(COUNTIF('2011 Survey responses'!AQ42,\">1\")+COUNTIF('2011 Survey responses'!AR42,\">1\")+COUNTIF('2011 Survey responses'!BG42,\">1\"))))","v":5.333333333333333},{"$f":"IF(SUM('2011 Survey responses'!AP42:AS42)<4.1,\"\",(AVERAGEIFS('2011 Survey responses'!AP42:AS42,'2011 Survey responses'!AP42:AS42,\">1\")))","v":5.25},{"$f":"IF(('2011 Survey responses'!AU42+'2011 Survey responses'!AX42+'2011 Survey responses'!BA42+'2011 Survey responses'!BC42+'2011 Survey responses'!BD42)<5.1,\"\",(SUMIF('2011 Survey responses'!AU42,\">1\")+SUMIF('2011 Survey responses'!AX42,\">1\")+SUMIF('2011 Survey responses'!BA42,\">1\")+SUMIF('2011 Survey responses'!BC42,\">1\")+SUMIF('2011 Survey responses'!BD42,\">1\"))/(COUNTIF('2011 Survey responses'!AU42,\">1\")+COUNTIF('2011 Survey responses'!AX42,\">1\")+COUNTIF('2011 Survey responses'!BA42,\">1\")+COUNTIF('2011 Survey responses'!BC42,\">1\")+COUNTIF('2011 Survey responses'!BD42,\">1\")))","v":3.5},{"$f":"IF(('2011 Survey responses'!AT42)<1.1,\"\",('2011 Survey responses'!AT42))","v":2},{"$f":"IF(SUM('2011 Survey responses'!AV42:AW42)<2.1,\"\",(AVERAGEIFS('2011 Survey responses'!AV42:AW42,'2011 Survey responses'!AV42:AW42,\">1\")))","v":3},{"$f":"IF(('2011 Survey responses'!AW42+'2011 Survey responses'!AY42)<2.1,\"\",(SUMIF('2011 Survey responses'!AW42,\">1\")+SUMIF('2011 Survey responses'!AY42,\">1\"))/(COUNTIF('2011 Survey responses'!AW42,\">1\")+COUNTIF('2011 Survey responses'!AY42,\">1\")))","v":4.5},{"$f":"IF(('2011 Survey responses'!AZ42)<1.1,\"\",('2011 Survey responses'!AZ42))","v":5},5,5,null,null,{"$f":"IF(('2011 Survey responses'!BE42)<1.1,\"\",('2011 Survey responses'!BE42))","v":""},{"$f":"IF(('2011 Survey responses'!AY42+'2011 Survey responses'!BB42+'2011 Survey responses'!BF42)<3.1,\"\",(SUMIF('2011 Survey responses'!AY42,\">1\")+SUMIF('2011 Survey responses'!BB42,\">1\")+SUMIF('2011 Survey responses'!BF42,\">1\"))/(COUNTIF('2011 Survey responses'!AY42,\">1\")+COUNTIF('2011 Survey responses'!BB42,\">1\")+COUNTIF('2011 Survey responses'!BF42,\">1\")))","v":5},3.6666666666666665,{"$f":"IF(SUM('2011 Survey responses'!BT42:BV42)<3.1,\"\",(AVERAGEIFS('2011 Survey responses'!BT42:BV42,'2011 Survey responses'!BT42:BV42,\">1\")))","v":""},{"$f":"IF(SUM('2011 Survey responses'!BW42:CP42)<1,\"\",(AVERAGEIFS('2011 Survey responses'!BW42:CP42,'2011 Survey responses'!BW42:CP42,\">1\")))","v":4.5714285714285712},{"$f":"IF(SUM('2011 Survey responses'!BW42:CF42)<1,\"\",(AVERAGEIFS('2011 Survey responses'!BW42:CF42,'2011 Survey responses'!BW42:CF42,\">1\")))","v":4.625},{"$f":"IF(SUM('2011 Survey responses'!CG42:CP42)<1,\"\",(AVERAGEIFS('2011 Survey responses'!CG42:CP42,'2011 Survey responses'!CG42:CP42,\">1\")))","v":4.5},{"$f":"IF(SUM('2011 Survey responses'!BX42:CF42)<1,\"\",(AVERAGEIFS('2011 Survey responses'!BX42:CF42,'2011 Survey responses'!BX42:CF42,\">1\")))","v":4.7142857142857144},{"$f":"IF(SUM('2011 Survey responses'!CH42:CP42)<1,\"\",(AVERAGEIFS('2011 Survey responses'!CH42:CP42,'2011 Survey responses'!CH42:CP42,\">1\")))","v":4.5},{"$f":"IF(SUM('2011 Survey responses'!BW42:CP42)<1,\"\",(AVERAGEIFS('2011 Survey responses'!BW42:CP42,'2011 Survey responses'!BW42:CP42,\">1\")))","v":4.5714285714285712},{"$f":"IF(('2011 Survey responses'!BW42+'2011 Survey responses'!CG42)<2.1,\"\",(SUMIF('2011 Survey responses'!BW42,\">1\")+SUMIF('2011 Survey responses'!CG42,\">1\"))/(COUNTIF('2011 Survey responses'!BW42,\">1\")+COUNTIF('2011 Survey responses'!CG42,\">1\")))","v":4},{"$f":"IF(('2011 Survey responses'!BX42+'2011 Survey responses'!CH42)<2.1,\"\",(SUMIF('2011 Survey responses'!BX42,\">1\")+SUMIF('2011 Survey responses'!CH42,\">1\"))/(COUNTIF('2011 Survey responses'!BX42,\">1\")+COUNTIF('2011 Survey responses'!CH42,\">1\")))","v":4},{"$f":"IF(('2011 Survey responses'!BY42+'2011 Survey responses'!CI42)<2.1,\"\",(SUMIF('2011 Survey responses'!BY42,\">1\")+SUMIF('2011 Survey responses'!CI42,\">1\"))/(COUNTIF('2011 Survey responses'!BY42,\">1\")+COUNTIF('2011 Survey responses'!CI42,\">1\")))","v":5},{"$f":"IF('2011 Survey responses'!CQ42<0.5,\"\",'2011 Survey responses'!CQ42)","v":3},{"$f":"IF('2011 Survey responses'!CR42<0.5,\"\",'2011 Survey responses'!CR42)","v":3},{"$f":"IF('2011 Survey responses'!CS42<0.5,\"\",'2011 Survey responses'!CS42)","v":5},{"$f":"IF('2011 Survey responses'!CT42<0.5,\"\",'2011 Survey responses'!CT42)","v":5},{"$f":"IF('2011 Survey responses'!CU42<0.5,\"\",'2011 Survey responses'!CU42)","v":4},{"$f":"IF('2011 Survey responses'!CV42<0.5,\"\",'2011 Survey responses'!CV42)","v":4},{"$f":"IF(SUM('2011 Survey responses'!CW42:DL42)<1,\"\",(AVERAGE('2011 Survey responses'!CW42:DL42)))","v":2.4375},{"$f":"IF(SUM('2011 Survey responses'!CW42:CZ42)<1,\"\",(AVERAGE('2011 Survey responses'!CW42:CZ42)))","v":2.25},{"$f":"IF(SUM('2011 Survey responses'!DA42:DD42)<1,\"\",(AVERAGE('2011 Survey responses'!DA42:DD42)))","v":1.5},{"$f":"IF(SUM('2011 Survey responses'!DE42:DH42)<1,\"\",(AVERAGE('2011 Survey responses'!DE42:DH42)))","v":3},{"$f":"IF(SUM('2011 Survey responses'!DI42:DL42)<1,\"\",(AVERAGE('2011 Survey responses'!DI42:DL42)))","v":3},{"$f":"IF(('2011 Survey responses'!CW42+'2011 Survey responses'!DA42+'2011 Survey responses'!DE42+'2011 Survey responses'!DI42)<1,\"\",AVERAGE('2011 Survey responses'!CW42,'2011 Survey responses'!DA42,'2011 Survey responses'!DE42,'2011 Survey responses'!DI42))","v":2.5},{"$f":"IF(('2011 Survey responses'!CX42+'2011 Survey responses'!DB42+'2011 Survey responses'!DF42+'2011 Survey responses'!DJ42)<1,\"\",AVERAGE('2011 Survey responses'!CX42,'2011 Survey responses'!DB42,'2011 Survey responses'!DF42,'2011 Survey responses'!DJ42))","v":2.25},{"$f":"IF(('2011 Survey responses'!CY42+'2011 Survey responses'!DC42+'2011 Survey responses'!DG42+'2011 Survey responses'!DK42)<1,\"\",AVERAGE('2011 Survey responses'!CY42,'2011 Survey responses'!DC42,'2011 Survey responses'!DG42,'2011 Survey responses'!DK42))","v":2.5},{"$f":"IF(('2011 Survey responses'!CZ42+'2011 Survey responses'!DD42+'2011 Survey responses'!DH42+'2011 Survey responses'!DL42)<1,\"\",AVERAGE('2011 Survey responses'!CZ42,'2011 Survey responses'!DD42,'2011 Survey responses'!DH42,'2011 Survey responses'!DL42))","v":2.5},{"$f":"IF('2011 Survey responses'!CW42<0.5,\"\",'2011 Survey responses'!CW42)","v":3},{"$f":"IF('2011 Survey responses'!CX42<0.5,\"\",'2011 Survey responses'!CX42)","v":2},{"$f":"IF('2011 Survey responses'!CY42<0.5,\"\",'2011 Survey responses'!CY42)","v":2},{"$f":"IF('2011 Survey responses'!CZ42<0.5,\"\",'2011 Survey responses'!CZ42)","v":2},{"$f":"IF('2011 Survey responses'!DA42<0.5,\"\",'2011 Survey responses'!DA42)","v":1},{"$f":"IF('2011 Survey responses'!DB42<0.5,\"\",'2011 Survey responses'!DB42)","v":1},{"$f":"IF('2011 Survey responses'!DC42<0.5,\"\",'2011 Survey responses'!DC42)","v":2},{"$f":"IF('2011 Survey responses'!DD42<0.5,\"\",'2011 Survey responses'!DD42)","v":2},{"$f":"IF('2011 Survey responses'!DE42<0.5,\"\",'2011 Survey responses'!DE42)","v":3},{"$f":"IF('2011 Survey responses'!DF42<0.5,\"\",'2011 Survey responses'!DF42)","v":3},{"$f":"IF('2011 Survey responses'!DG42<0.5,\"\",'2011 Survey responses'!DG42)","v":3},{"$f":"IF('2011 Survey responses'!DH42<0.5,\"\",'2011 Survey responses'!DH42)","v":3},{"$f":"IF('2011 Survey responses'!DI42<0.5,\"\",'2011 Survey responses'!DI42)","v":3},{"$f":"IF('2011 Survey responses'!DJ42<0.5,\"\",'2011 Survey responses'!DJ42)","v":3},{"$f":"IF('2011 Survey responses'!DK42<0.5,\"\",'2011 Survey responses'!DK42)","v":3},{"$f":"IF('2011 Survey responses'!DL42<0.5,\"\",'2011 Survey responses'!DL42)","v":3},{"$f":"IF('2011 Survey responses'!DU42=4,4,IF('2011 Survey responses'!DU42=5,4,\"\"))","v":4},{"$f":"IF('2011 Survey responses'!DV42=4,3,IF('2011 Survey responses'!DV42=5,3,\"\"))","v":3},2,{"$f":"IF(CQ42=2,CQ42,IF(CO42=4,CO42,IF(CP42=3,CP42,IF('2011 Survey responses'!GT42=1,1,\"\"))))","v":2},{"$f":"IF('2011 Survey responses'!DO42<0.5,\"\",'2011 Survey responses'!DO42)","v":5},{"$f":"IF('2011 Survey responses'!DP42<0.5,\"\",'2011 Survey responses'!DP42)","v":5},{"$f":"IF('2011 Survey responses'!DQ42<0.5,\"\",'2011 Survey responses'!DQ42)","v":3},{"$f":"IF('2011 Survey responses'!DR42<0.5,\"\",'2011 Survey responses'!DR42)","v":4},{"$f":"IF('2011 Survey responses'!DS42<0.5,\"\",'2011 Survey responses'!DS42)","v":3},{"$f":"IF('2011 Survey responses'!DT42<0.5,\"\",'2011 Survey responses'!DT42)","v":4},{"$f":"IF('2011 Survey responses'!DU42<0.5,\"\",'2011 Survey responses'!DU42)","v":4},{"$f":"IF('2011 Survey responses'!DV42<0.5,\"\",'2011 Survey responses'!DV42)","v":4},{"$f":"IF('2011 Survey responses'!DW42<0.5,\"\",'2011 Survey responses'!DW42)","v":3},{"$f":"IF('2011 Survey responses'!DX42<0.5,\"\",'2011 Survey responses'!DX42)","v":3},{"$f":"IF('2011 Survey responses'!DY42<0.5,\"\",'2011 Survey responses'!DY42)","v":5},{"$f":"IF('2011 Survey responses'!DZ42<0.5,\"\",'2011 Survey responses'!DZ42)","v":5},{"$f":"IF('2011 Survey responses'!EA42<0.5,\"\",'2011 Survey responses'!EA42)","v":4},{"$f":"IF('2011 Survey responses'!EB42<0.5,\"\",'2011 Survey responses'!EB42)","v":5},{"$f":"IF('2011 Survey responses'!EC42<0.5,\"\",'2011 Survey responses'!EC42)","v":5},{"$f":"IF('2011 Survey responses'!ED42<0.5,\"\",'2011 Survey responses'!ED42)","v":4},{"$f":"IF('2011 Survey responses'!EE42<0.5,\"\",'2011 Survey responses'!EE42)","v":3},{"$f":"IF('2011 Survey responses'!EF42<0.5,\"\",'2011 Survey responses'!EF42)","v":4},{"$f":"IF('2011 Survey responses'!EG42<0.5,\"\",'2011 Survey responses'!EG42)","v":5},{"$f":"IF('2011 Survey responses'!EH42<0.5,\"\",'2011 Survey responses'!EH42)","v":4},{"$f":"IF('2011 Survey responses'!EI42<0.5,\"\",'2011 Survey responses'!EI42)","v":3},{"$f":"IF('2011 Survey responses'!EJ42<0.5,\"\",'2011 Survey responses'!EJ42)","v":4},{"$f":"IF('2011 Survey responses'!EK42<0.5,\"\",'2011 Survey responses'!EK42)","v":2},{"$f":"IF('2011 Survey responses'!EL42<0.5,\"\",'2011 Survey responses'!EL42)","v":3},{"$f":"IF('2011 Survey responses'!EM42<0.5,\"\",'2011 Survey responses'!EM42)","v":5},{"$f":"IF('2011 Survey responses'!EN42<0.5,\"\",'2011 Survey responses'!EN42)","v":3},{"$f":"IF('2011 Survey responses'!EO42<0.5,\"\",'2011 Survey responses'!EO42)","v":4},{"$f":"IF('2011 Survey responses'!EP42<0.5,\"\",'2011 Survey responses'!EP42)","v":3},{"$f":"IF(('2011 Survey responses'!EW42+'2011 Survey responses'!EX42)>=2,AVERAGE('2011 Survey responses'!EW42,'2011 Survey responses'!EY42),\"\")","v":5},{"$f":"IF('2011 Survey responses'!EX42<0.5,\"\",'2011 Survey responses'!EX42)","v":5},{"$f":"IF('2011 Survey responses'!EZ42<0.5,\"\",'2011 Survey responses'!EZ42)","v":5},{"$f":"IF('2011 Survey responses'!FB42<0.5,\"\",'2011 Survey responses'!FB42)","v":5},{"$f":"IF('2011 Survey responses'!FD42<0.5,\"\",'2011 Survey responses'!FD42)","v":5},{"$f":"IF('2011 Survey responses'!FC42<0.5,\"\",'2011 Survey responses'!FC42)","v":5},{"$f":"IF(('2011 Survey responses'!EM42+'2011 Survey responses'!EN42)>=2,AVERAGE('2011 Survey responses'!EM42,'2011 Survey responses'!EN42),\"\")","v":4},{"$f":"IF('2011 Survey responses'!ES42<0.5,\"\",'2011 Survey responses'!ES42)","v":5},{"$f":"IF(('2011 Survey responses'!ET42+'2011 Survey responses'!EU42)>=2,AVERAGE('2011 Survey responses'!ET42,'2011 Survey responses'!EU42),\"\")","v":4.5},{"$f":"IF('2011 Survey responses'!EV42<0.5,\"\",'2011 Survey responses'!EV42)","v":5},{"$f":"IF('2011 Survey responses'!FA42<0.5,\"\",'2011 Survey responses'!FA42)","v":5},{"$f":"IF('2011 Survey responses'!ER42<0.5,\"\",'2011 Survey responses'!ER42)","v":4},{"$f":"IF(('2011 Survey responses'!EO42+'2011 Survey responses'!EP42)>=2,AVERAGE('2011 Survey responses'!EO42,'2011 Survey responses'!EP42),\"\")","v":3.5},{"$f":"IF('2011 Survey responses'!EQ42<0.5,\"\",'2011 Survey responses'!EQ42)","v":2},{"$f":"IF('2011 Survey responses'!ET42<0.5,\"\",'2011 Survey responses'!ET42)","v":5},{"$f":"IF('2011 Survey responses'!EU42<0.5,\"\",'2011 Survey responses'!EU42)","v":4},{"$f":"IF('2011 Survey responses'!EW42<0.5,\"\",'2011 Survey responses'!EW42)","v":5},{"$f":"IF('2011 Survey responses'!EY42<0.5,\"\",'2011 Survey responses'!EY42)","v":5},{"$f":"IF('2011 Survey responses'!FU42<0.5,\"\",'2011 Survey responses'!FU42)","v":5},{"$f":"IF(('2011 Survey responses'!FL42+'2011 Survey responses'!FM42)>=2,AVERAGE('2011 Survey responses'!FL42,'2011 Survey responses'!FM42),\"\")","v":3.5},{"$f":"IF(('2011 Survey responses'!FO42+'2011 Survey responses'!FQ42)>=2,AVERAGE('2011 Survey responses'!FO42,'2011 Survey responses'!FQ42),\"\")","v":5},{"$f":"IF('2011 Survey responses'!FJ42<0.5,\"\",'2011 Survey responses'!FJ42)","v":4},{"$f":"IF('2011 Survey responses'!FT42<0.5,\"\",'2011 Survey responses'!FT42)","v":4},{"$f":"IF('2011 Survey responses'!FR42<0.5,\"\",'2011 Survey responses'!FR42)","v":5},{"$f":"IF('2011 Survey responses'!FK42<0.5,\"\",'2011 Survey responses'!FK42)","v":3},{"$f":"IF('2011 Survey responses'!FP42<0.5,\"\",'2011 Survey responses'!FP42)","v":5},{"$f":"IF('2011 Survey responses'!FN42<0.5,\"\",'2011 Survey responses'!FN42)","v":5},{"$f":"IF(('2011 Survey responses'!FE42+'2011 Survey responses'!FF42)>=2,AVERAGE('2011 Survey responses'!FE42,'2011 Survey responses'!FF42),\"\")","v":3},{"$f":"IF('2011 Survey responses'!FS42<0.5,\"\",'2011 Survey responses'!FS42)","v":5},{"$f":"IF('2011 Survey responses'!FV42<0.5,\"\",'2011 Survey responses'!FV42)","v":4},{"$f":"IF(('2011 Survey responses'!FG42+'2011 Survey responses'!FH42)>=2,AVERAGE('2011 Survey responses'!FG42,'2011 Survey responses'!FH42),\"\")","v":4},{"$f":"IF('2011 Survey responses'!FI42<0.5,\"\",'2011 Survey responses'!FI42)","v":2},{"$f":"IF('2011 Survey responses'!FE42<0.5,\"\",'2011 Survey responses'!FE42)","v":3},{"$f":"IF('2011 Survey responses'!FF42<0.5,\"\",'2011 Survey responses'!FF42)","v":3},{"$f":"IF('2011 Survey responses'!FG42<0.5,\"\",'2011 Survey responses'!FG42)","v":4},{"$f":"IF('2011 Survey responses'!FH42<0.5,\"\",'2011 Survey responses'!FH42)","v":4},{"$f":"IF('2011 Survey responses'!FL42<0.5,\"\",'2011 Survey responses'!FL42)","v":4},{"$f":"IF('2011 Survey responses'!FM42<0.5,\"\",'2011 Survey responses'!FM42)","v":3},{"$f":"IF('2011 Survey responses'!FO42<0.5,\"\",'2011 Survey responses'!FO42)","v":5},{"$f":"IF('2011 Survey responses'!FQ42<0.5,\"\",'2011 Survey responses'!FQ42)","v":5}]
["Côte d'Ivoire",{"$f":"IF(SUM(F43)<1,\"\",AVERAGEIF('2011 Survey responses'!B43:CP43,\">1\"))","v":2.6538461538461537},{"$f":"IF(SUM(F43)<1,\"\",AVERAGEIF('2011 Survey responses'!B43:AO43,\">1\"))","v":2.56},{"$f":"IF(SUM(F43)<1,\"\",AVERAGEIF('2011 Survey responses'!B43:BV43,\">1\"))","v":2.4},{"$f":"IF(SUM(F43)<1,\"\",AVERAGEIF('2011 Survey responses'!V43:BV43,\">1\"))","v":2.1379310344827585},{"$f":"IF(SUM('2011 Survey responses'!B43:U43)<1,\"\",(AVERAGEIFS('2011 Survey responses'!B43:U43,'2011 Survey responses'!B43:U43,\">1\")))","v":3.0909090909090908},{"$f":"IF(SUM('2011 Survey responses'!B43:H43)<1,\"\",(AVERAGEIFS('2011 Survey responses'!B43:H43,'2011 Survey responses'!B43:H43,\">1\")))","v":3},{"$f":"IF(SUM('2011 Survey responses'!I43:S43)<1,\"\",(AVERAGEIFS('2011 Survey responses'!I43:S43,'2011 Survey responses'!I43:S43,\">1\")))","v":2.5},{"$f":"IF(SUM('2011 Survey responses'!T43:U43)<2.1,\"\",(AVERAGEIFS('2011 Survey responses'!T43:U43,'2011 Survey responses'!T43:U43,\">1\")))","v":5},{"$f":"IF(SUM('2011 Survey responses'!B43:C43)<2.1,\"\",((SUMIF('2011 Survey responses'!B43:C43,\">1\")+SUMIF('2011 Survey responses'!F43,\">1\"))/(COUNTIF('2011 Survey responses'!B43:C43,\">1\")+COUNTIF('2011 Survey responses'!F43,\">1\"))))","v":3},{"$f":"IF(SUM('2011 Survey responses'!D43:E43)<2.1,\"\",(AVERAGEIFS('2011 Survey responses'!D43:E43,'2011 Survey responses'!D43:E43,\">1\")))","v":3},{"$f":"IF(('2011 Survey responses'!B43+'2011 Survey responses'!D43)<2.1,\"\",((SUMIF('2011 Survey responses'!B43,\">1\")+SUMIF('2011 Survey responses'!D43,\">1\")+SUMIF('2011 Survey responses'!F43,\">1\")+SUMIF('2011 Survey responses'!K43,\">1\"))/(COUNTIF('2011 Survey responses'!B43,\">1\")+COUNTIF('2011 Survey responses'!D43,\">1\")+COUNTIF('2011 Survey responses'!F43,\">1\")+COUNTIF('2011 Survey responses'!K43,\">1\"))))","v":3},{"$f":"IF(SUM('2011 Survey responses'!G43:H43)<2.1,\"\",(AVERAGEIFS('2011 Survey responses'!G43:H43,'2011 Survey responses'!G43:H43,\">1\")))","v":""},{"$f":"IF(SUM('2011 Survey responses'!F43:G43)<1.5,\"\",MAX('2011 Survey responses'!F43,'2011 Survey responses'!G43))","v":3},{"$f":"IF(SUM('2011 Survey responses'!G43:H43)<1,\"\",MAX('2011 Survey responses'!G43,'2011 Survey responses'!H43))","v":1},{"$f":"IF(SUM('2011 Survey responses'!I43:L43)<4.1,\"\",(AVERAGEIFS('2011 Survey responses'!I43:L43,'2011 Survey responses'!I43:L43,\">1\")))","v":2.6666666666666665},{"$f":"IF(SUM('2011 Survey responses'!M43:S43)<4.1,\"\",(AVERAGEIFS('2011 Survey responses'!M43:S43,'2011 Survey responses'!M43:S43,\">1\")))","v":2.3333333333333335},{"$f":"IF(SUM('2011 Survey responses'!T43:U43)<2.1,\"\",(AVERAGEIFS('2011 Survey responses'!T43:U43,'2011 Survey responses'!T43:U43,\">1\")))","v":5},{"$f":"IF(SUM('2011 Survey responses'!V43:AO43)<1,\"\",(AVERAGEIFS('2011 Survey responses'!V43:AO43,'2011 Survey responses'!V43:AO43,\">1\")))","v":2.1428571428571428},{"$f":"IF(SUM('2011 Survey responses'!V43:AA43)<1,\"\",(AVERAGEIFS('2011 Survey responses'!V43:AA43,'2011 Survey responses'!V43:AA43,\">1\")))","v":2.4},{"$f":"IF(SUM('2011 Survey responses'!AB43:AH43)<1,\"\",(AVERAGEIFS('2011 Survey responses'!AB43:AH43,'2011 Survey responses'!AB43:AH43,\">1\")))","v":2},{"$f":"IF(SUM('2011 Survey responses'!AI43:AO43)<1,\"\",(AVERAGEIFS('2011 Survey responses'!AI43:AO43,'2011 Survey responses'!AI43:AO43,\">1\")))","v":2},{"$f":"IF(('2011 Survey responses'!Y43+'2011 Survey responses'!AI43+'2011 Survey responses'!AK43)<3.1,\"\",((SUMIF('2011 Survey responses'!Y43,\">1\")+SUMIF('2011 Survey responses'!AI43,\">1\")+SUMIF('2011 Survey responses'!AK43,\">1\")+SUMIF('2011 Survey responses'!AM43,\">1\"))/(COUNTIF('2011 Survey responses'!Y43,\">1\")+COUNTIF('2011 Survey responses'!AI43,\">1\")+COUNTIF('2011 Survey responses'!AK43,\">1\")+COUNTIF('2011 Survey responses'!AM43,\">1\"))))","v":2},{"$f":"IF(('2011 Survey responses'!W43)<1.1,\"\",('2011 Survey responses'!W43))","v":2},{"$f":"IF(('2011 Survey responses'!Y43)<1.1,\"\",('2011 Survey responses'!Y43))","v":2},{"$f":"IF(('2011 Survey responses'!Z43)<1.1,\"\",('2011 Survey responses'!Z43))","v":4},{"$f":"IF(('2011 Survey responses'!V43+'2011 Survey responses'!X43+'2011 Survey responses'!AA43)<3.1,\"\",((SUMIF('2011 Survey responses'!V43,\">1\")+SUMIF('2011 Survey responses'!X43,\">1\")+SUMIF('2011 Survey responses'!AA43,\">1\"))/(COUNTIF('2011 Survey responses'!V43,\">1\")+COUNTIF('2011 Survey responses'!X43,\">1\")+COUNTIF('2011 Survey responses'!AA43,\">1\"))))","v":2},{"$f":"IF(('2011 Survey responses'!V43+'2011 Survey responses'!Y43+'2011 Survey responses'!AA43)<3.1,\"\",((SUMIF('2011 Survey responses'!V43,\">1\")+SUMIF('2011 Survey responses'!Y43,\">1\")+SUMIF('2011 Survey responses'!AA43,\">1\"))/(COUNTIF('2011 Survey responses'!V43,\">1\")+COUNTIF('2011 Survey responses'!Y43,\">1\")+COUNTIF('2011 Survey responses'!AA43,\">1\"))))","v":2},{"$f":"IF(SUM('2011 Survey responses'!AB43:AH43)<1,\"\",(AVERAGEIFS('2011 Survey responses'!AB43:AH43,'2011 Survey responses'!AB43:AH43,\">1\")))","v":2},{"$f":"IF(SUM('2011 Survey responses'!AI43:AO43)<7.1,\"\",(AVERAGEIFS('2011 Survey responses'!AI43:AO43,'2011 Survey responses'!AI43:AO43,\">1\")))","v":2},{"$f":"IF(('2011 Survey responses'!AH43)<1.1,\"\",('2011 Survey responses'!AH43))","v":""},{"$f":"IF(SUM('2011 Survey responses'!AP43:BV43)<1,\"\",(AVERAGEIFS('2011 Survey responses'!AP43:BV43,'2011 Survey responses'!AP43:BV43,\">1\")))","v":2.1333333333333333},{"$f":"IF(SUM('2011 Survey responses'!AP43:AS43)<4.1,\"\",(AVERAGEIFS('2011 Survey responses'!AP43:AS43,'2011 Survey responses'!AP43:AS43,\">1\")))","v":2},{"$f":"IF(SUM('2011 Survey responses'!AT43:BF43)<1,\"\",(AVERAGEIFS('2011 Survey responses'!AT43:BF43,'2011 Survey responses'!AT43:BF43,\">1\")))","v":2},{"$f":"IF(SUM('2011 Survey responses'!BG43:BO43)<1,\"\",(AVERAGEIFS('2011 Survey responses'!BG43:BO43,'2011 Survey responses'!BG43:BO43,\">1\")))","v":2.5},{"$f":"IF(SUM('2011 Survey responses'!BP43:BS43)<1,\"\",(AVERAGEIFS('2011 Survey responses'!BP43:BS43,'2011 Survey responses'!BP43:BS43,\">1\")))","v":2},{"$f":"IF(SUM('2011 Survey responses'!BT43:BV43)<3.1,\"\",(AVERAGEIFS('2011 Survey responses'!BT43:BV43,'2011 Survey responses'!BT43:BV43,\">1\")))","v":2},{"$f":"IF(('2011 Survey responses'!AQ43+'2011 Survey responses'!AR43+'2011 Survey responses'!BG43)<3.1,\"\",((SUMIF('2011 Survey responses'!AQ43,\">1\")+SUMIF('2011 Survey responses'!AR43,\">1\")+SUMIF('2011 Survey responses'!BG43,\">1\"))/(COUNTIF('2011 Survey responses'!AQ43,\">1\")+COUNTIF('2011 Survey responses'!AR43,\">1\")+COUNTIF('2011 Survey responses'!BG43,\">1\"))))","v":2},{"$f":"IF(SUM('2011 Survey responses'!AP43:AS43)<4.1,\"\",(AVERAGEIFS('2011 Survey responses'!AP43:AS43,'2011 Survey responses'!AP43:AS43,\">1\")))","v":2},{"$f":"IF(('2011 Survey responses'!AU43+'2011 Survey responses'!AX43+'2011 Survey responses'!BA43+'2011 Survey responses'!BC43+'2011 Survey responses'!BD43)<5.1,\"\",(SUMIF('2011 Survey responses'!AU43,\">1\")+SUMIF('2011 Survey responses'!AX43,\">1\")+SUMIF('2011 Survey responses'!BA43,\">1\")+SUMIF('2011 Survey responses'!BC43,\">1\")+SUMIF('2011 Survey responses'!BD43,\">1\"))/(COUNTIF('2011 Survey responses'!AU43,\">1\")+COUNTIF('2011 Survey responses'!AX43,\">1\")+COUNTIF('2011 Survey responses'!BA43,\">1\")+COUNTIF('2011 Survey responses'!BC43,\">1\")+COUNTIF('2011 Survey responses'!BD43,\">1\")))","v":2},{"$f":"IF(('2011 Survey responses'!AT43)<1.1,\"\",('2011 Survey responses'!AT43))","v":2},{"$f":"IF(SUM('2011 Survey responses'!AV43:AW43)<2.1,\"\",(AVERAGEIFS('2011 Survey responses'!AV43:AW43,'2011 Survey responses'!AV43:AW43,\">1\")))","v":2},{"$f":"IF(('2011 Survey responses'!AW43+'2011 Survey responses'!AY43)<2.1,\"\",(SUMIF('2011 Survey responses'!AW43,\">1\")+SUMIF('2011 Survey responses'!AY43,\">1\"))/(COUNTIF('2011 Survey responses'!AW43,\">1\")+COUNTIF('2011 Survey responses'!AY43,\">1\")))","v":""},{"$f":"IF(('2011 Survey responses'!AZ43)<1.1,\"\",('2011 Survey responses'!AZ43))","v":""},1,1,1,1,{"$f":"IF(('2011 Survey responses'!BE43)<1.1,\"\",('2011 Survey responses'!BE43))","v":2},{"$f":"IF(('2011 Survey responses'!AY43+'2011 Survey responses'!BB43+'2011 Survey responses'!BF43)<3.1,\"\",(SUMIF('2011 Survey responses'!AY43,\">1\")+SUMIF('2011 Survey responses'!BB43,\">1\")+SUMIF('2011 Survey responses'!BF43,\">1\"))/(COUNTIF('2011 Survey responses'!AY43,\">1\")+COUNTIF('2011 Survey responses'!BB43,\">1\")+COUNTIF('2011 Survey responses'!BF43,\">1\")))","v":2},2.25,{"$f":"IF(SUM('2011 Survey responses'!BT43:BV43)<3.1,\"\",(AVERAGEIFS('2011 Survey responses'!BT43:BV43,'2011 Survey responses'!BT43:BV43,\">1\")))","v":2},{"$f":"IF(SUM('2011 Survey responses'!BW43:CP43)<1,\"\",(AVERAGEIFS('2011 Survey responses'!BW43:CP43,'2011 Survey responses'!BW43:CP43,\">1\")))","v":3.5},{"$f":"IF(SUM('2011 Survey responses'!BW43:CF43)<1,\"\",(AVERAGEIFS('2011 Survey responses'!BW43:CF43,'2011 Survey responses'!BW43:CF43,\">1\")))","v":3.2857142857142856},{"$f":"IF(SUM('2011 Survey responses'!CG43:CP43)<1,\"\",(AVERAGEIFS('2011 Survey responses'!CG43:CP43,'2011 Survey responses'!CG43:CP43,\">1\")))","v":3.8},{"$f":"IF(SUM('2011 Survey responses'!BX43:CF43)<1,\"\",(AVERAGEIFS('2011 Survey responses'!BX43:CF43,'2011 Survey responses'!BX43:CF43,\">1\")))","v":3.5},{"$f":"IF(SUM('2011 Survey responses'!CH43:CP43)<1,\"\",(AVERAGEIFS('2011 Survey responses'!CH43:CP43,'2011 Survey responses'!CH43:CP43,\">1\")))","v":4.25},{"$f":"IF(SUM('2011 Survey responses'!BW43:CP43)<1,\"\",(AVERAGEIFS('2011 Survey responses'!BW43:CP43,'2011 Survey responses'!BW43:CP43,\">1\")))","v":3.5},{"$f":"IF(('2011 Survey responses'!BW43+'2011 Survey responses'!CG43)<2.1,\"\",(SUMIF('2011 Survey responses'!BW43,\">1\")+SUMIF('2011 Survey responses'!CG43,\">1\"))/(COUNTIF('2011 Survey responses'!BW43,\">1\")+COUNTIF('2011 Survey responses'!CG43,\">1\")))","v":2},{"$f":"IF(('2011 Survey responses'!BX43+'2011 Survey responses'!CH43)<2.1,\"\",(SUMIF('2011 Survey responses'!BX43,\">1\")+SUMIF('2011 Survey responses'!CH43,\">1\"))/(COUNTIF('2011 Survey responses'!BX43,\">1\")+COUNTIF('2011 Survey responses'!CH43,\">1\")))","v":4.5},{"$f":"IF(('2011 Survey responses'!BY43+'2011 Survey responses'!CI43)<2.1,\"\",(SUMIF('2011 Survey responses'!BY43,\">1\")+SUMIF('2011 Survey responses'!CI43,\">1\"))/(COUNTIF('2011 Survey responses'!BY43,\">1\")+COUNTIF('2011 Survey responses'!CI43,\">1\")))","v":5},{"$f":"IF('2011 Survey responses'!CQ43<0.5,\"\",'2011 Survey responses'!CQ43)","v":1},{"$f":"IF('2011 Survey responses'!CR43<0.5,\"\",'2011 Survey responses'!CR43)","v":1},{"$f":"IF('2011 Survey responses'!CS43<0.5,\"\",'2011 Survey responses'!CS43)","v":2},{"$f":"IF('2011 Survey responses'!CT43<0.5,\"\",'2011 Survey responses'!CT43)","v":1},{"$f":"IF('2011 Survey responses'!CU43<0.5,\"\",'2011 Survey responses'!CU43)","v":1},{"$f":"IF('2011 Survey responses'!CV43<0.5,\"\",'2011 Survey responses'!CV43)","v":1},{"$f":"IF(SUM('2011 Survey responses'!CW43:DL43)<1,\"\",(AVERAGE('2011 Survey responses'!CW43:DL43)))","v":1.625},{"$f":"IF(SUM('2011 Survey responses'!CW43:CZ43)<1,\"\",(AVERAGE('2011 Survey responses'!CW43:CZ43)))","v":1},{"$f":"IF(SUM('2011 Survey responses'!DA43:DD43)<1,\"\",(AVERAGE('2011 Survey responses'!DA43:DD43)))","v":1.75},{"$f":"IF(SUM('2011 Survey responses'!DE43:DH43)<1,\"\",(AVERAGE('2011 Survey responses'!DE43:DH43)))","v":1},{"$f":"IF(SUM('2011 Survey responses'!DI43:DL43)<1,\"\",(AVERAGE('2011 Survey responses'!DI43:DL43)))","v":2.75},{"$f":"IF(('2011 Survey responses'!CW43+'2011 Survey responses'!DA43+'2011 Survey responses'!DE43+'2011 Survey responses'!DI43)<1,\"\",AVERAGE('2011 Survey responses'!CW43,'2011 Survey responses'!DA43,'2011 Survey responses'!DE43,'2011 Survey responses'!DI43))","v":1.75},{"$f":"IF(('2011 Survey responses'!CX43+'2011 Survey responses'!DB43+'2011 Survey responses'!DF43+'2011 Survey responses'!DJ43)<1,\"\",AVERAGE('2011 Survey responses'!CX43,'2011 Survey responses'!DB43,'2011 Survey responses'!DF43,'2011 Survey responses'!DJ43))","v":1.75},{"$f":"IF(('2011 Survey responses'!CY43+'2011 Survey responses'!DC43+'2011 Survey responses'!DG43+'2011 Survey responses'!DK43)<1,\"\",AVERAGE('2011 Survey responses'!CY43,'2011 Survey responses'!DC43,'2011 Survey responses'!DG43,'2011 Survey responses'!DK43))","v":1.25},{"$f":"IF(('2011 Survey responses'!CZ43+'2011 Survey responses'!DD43+'2011 Survey responses'!DH43+'2011 Survey responses'!DL43)<1,\"\",AVERAGE('2011 Survey responses'!CZ43,'2011 Survey responses'!DD43,'2011 Survey responses'!DH43,'2011 Survey responses'!DL43))","v":1.75},{"$f":"IF('2011 Survey responses'!CW43<0.5,\"\",'2011 Survey responses'!CW43)","v":1},{"$f":"IF('2011 Survey responses'!CX43<0.5,\"\",'2011 Survey responses'!CX43)","v":1},{"$f":"IF('2011 Survey responses'!CY43<0.5,\"\",'2011 Survey responses'!CY43)","v":1},{"$f":"IF('2011 Survey responses'!CZ43<0.5,\"\",'2011 Survey responses'!CZ43)","v":1},{"$f":"IF('2011 Survey responses'!DA43<0.5,\"\",'2011 Survey responses'!DA43)","v":2},{"$f":"IF('2011 Survey responses'!DB43<0.5,\"\",'2011 Survey responses'!DB43)","v":2},{"$f":"IF('2011 Survey responses'!DC43<0.5,\"\",'2011 Survey responses'!DC43)","v":1},{"$f":"IF('2011 Survey responses'!DD43<0.5,\"\",'2011 Survey responses'!DD43)","v":2},{"$f":"IF('2011 Survey responses'!DE43<0.5,\"\",'2011 Survey responses'!DE43)","v":1},{"$f":"IF('2011 Survey responses'!DF43<0.5,\"\",'2011 Survey responses'!DF43)","v":1},{"$f":"IF('2011 Survey responses'!DG43<0.5,\"\",'2011 Survey responses'!DG43)","v":1},{"$f":"IF('2011 Survey responses'!DH43<0.5,\"\",'2011 Survey responses'!DH43)","v":1},{"$f":"IF('2011 Survey responses'!DI43<0.5,\"\",'2011 Survey responses'!DI43)","v":3},{"$f":"IF('2011 Survey responses'!DJ43<0.5,\"\",'2011 Survey responses'!DJ43)","v":3},{"$f":"IF('2011 Survey responses'!DK43<0.5,\"\",'2011 Survey responses'!DK43)","v":2},{"$f":"IF('2011 Survey responses'!DL43<0.5,\"\",'2011 Survey responses'!DL43)","v":3},{"$f":"IF('2011 Survey responses'!DU43=4,4,IF('2011 Survey responses'!DU43=5,4,\"\"))","v":""},{"$f":"IF('2011 Survey responses'!DV43=4,3,IF('2011 Survey responses'!DV43=5,3,\"\"))","v":3},"",{"$f":"IF(CQ43=2,CQ43,IF(CO43=4,CO43,IF(CP43=3,CP43,IF('2011 Survey responses'!GT43=1,1,\"\"))))","v":3},{"$f":"IF('2011 Survey responses'!DO43<0.5,\"\",'2011 Survey responses'!DO43)","v":3},{"$f":"IF('2011 Survey responses'!DP43<0.5,\"\",'2011 Survey responses'!DP43)","v":5},{"$f":"IF('2011 Survey responses'!DQ43<0.5,\"\",'2011 Survey responses'!DQ43)","v":4},{"$f":"IF('2011 Survey responses'!DR43<0.5,\"\",'2011 Survey responses'!DR43)","v":4},{"$f":"IF('2011 Survey responses'!DS43<0.5,\"\",'2011 Survey responses'!DS43)","v":2},{"$f":"IF('2011 Survey responses'!DT43<0.5,\"\",'2011 Survey responses'!DT43)","v":5},{"$f":"IF('2011 Survey responses'!DU43<0.5,\"\",'2011 Survey responses'!DU43)","v":2},{"$f":"IF('2011 Survey responses'!DV43<0.5,\"\",'2011 Survey responses'!DV43)","v":4},{"$f":"IF('2011 Survey responses'!DW43<0.5,\"\",'2011 Survey responses'!DW43)","v":3},{"$f":"IF('2011 Survey responses'!DX43<0.5,\"\",'2011 Survey responses'!DX43)","v":5},{"$f":"IF('2011 Survey responses'!DY43<0.5,\"\",'2011 Survey responses'!DY43)","v":5},{"$f":"IF('2011 Survey responses'!DZ43<0.5,\"\",'2011 Survey responses'!DZ43)","v":5},{"$f":"IF('2011 Survey responses'!EA43<0.5,\"\",'2011 Survey responses'!EA43)","v":3},{"$f":"IF('2011 Survey responses'!EB43<0.5,\"\",'2011 Survey responses'!EB43)","v":5},{"$f":"IF('2011 Survey responses'!EC43<0.5,\"\",'2011 Survey responses'!EC43)","v":4},{"$f":"IF('2011 Survey responses'!ED43<0.5,\"\",'2011 Survey responses'!ED43)","v":3},{"$f":"IF('2011 Survey responses'!EE43<0.5,\"\",'2011 Survey responses'!EE43)","v":3},{"$f":"IF('2011 Survey responses'!EF43<0.5,\"\",'2011 Survey responses'!EF43)","v":4},{"$f":"IF('2011 Survey responses'!EG43<0.5,\"\",'2011 Survey responses'!EG43)","v":2},{"$f":"IF('2011 Survey responses'!EH43<0.5,\"\",'2011 Survey responses'!EH43)","v":3},{"$f":"IF('2011 Survey responses'!EI43<0.5,\"\",'2011 Survey responses'!EI43)","v":3},{"$f":"IF('2011 Survey responses'!EJ43<0.5,\"\",'2011 Survey responses'!EJ43)","v":5},{"$f":"IF('2011 Survey responses'!EK43<0.5,\"\",'2011 Survey responses'!EK43)","v":5},{"$f":"IF('2011 Survey responses'!EL43<0.5,\"\",'2011 Survey responses'!EL43)","v":5},{"$f":"IF('2011 Survey responses'!EM43<0.5,\"\",'2011 Survey responses'!EM43)","v":4},{"$f":"IF('2011 Survey responses'!EN43<0.5,\"\",'2011 Survey responses'!EN43)","v":4},{"$f":"IF('2011 Survey responses'!EO43<0.5,\"\",'2011 Survey responses'!EO43)","v":3},{"$f":"IF('2011 Survey responses'!EP43<0.5,\"\",'2011 Survey responses'!EP43)","v":3},{"$f":"IF(('2011 Survey responses'!EW43+'2011 Survey responses'!EX43)>=2,AVERAGE('2011 Survey responses'!EW43,'2011 Survey responses'!EY43),\"\")","v":4.5},{"$f":"IF('2011 Survey responses'!EX43<0.5,\"\",'2011 Survey responses'!EX43)","v":4},{"$f":"IF('2011 Survey responses'!EZ43<0.5,\"\",'2011 Survey responses'!EZ43)","v":4},{"$f":"IF('2011 Survey responses'!FB43<0.5,\"\",'2011 Survey responses'!FB43)","v":4},{"$f":"IF('2011 Survey responses'!FD43<0.5,\"\",'2011 Survey responses'!FD43)","v":4},{"$f":"IF('2011 Survey responses'!FC43<0.5,\"\",'2011 Survey responses'!FC43)","v":4},{"$f":"IF(('2011 Survey responses'!EM43+'2011 Survey responses'!EN43)>=2,AVERAGE('2011 Survey responses'!EM43,'2011 Survey responses'!EN43),\"\")","v":4},{"$f":"IF('2011 Survey responses'!ES43<0.5,\"\",'2011 Survey responses'!ES43)","v":4},{"$f":"IF(('2011 Survey responses'!ET43+'2011 Survey responses'!EU43)>=2,AVERAGE('2011 Survey responses'!ET43,'2011 Survey responses'!EU43),\"\")","v":4},{"$f":"IF('2011 Survey responses'!EV43<0.5,\"\",'2011 Survey responses'!EV43)","v":1},{"$f":"IF('2011 Survey responses'!FA43<0.5,\"\",'2011 Survey responses'!FA43)","v":4},{"$f":"IF('2011 Survey responses'!ER43<0.5,\"\",'2011 Survey responses'!ER43)","v":2},{"$f":"IF(('2011 Survey responses'!EO43+'2011 Survey responses'!EP43)>=2,AVERAGE('2011 Survey responses'!EO43,'2011 Survey responses'!EP43),\"\")","v":3},{"$f":"IF('2011 Survey responses'!EQ43<0.5,\"\",'2011 Survey responses'!EQ43)","v":2},{"$f":"IF('2011 Survey responses'!ET43<0.5,\"\",'2011 Survey responses'!ET43)","v":4},{"$f":"IF('2011 Survey responses'!EU43<0.5,\"\",'2011 Survey responses'!EU43)","v":4},{"$f":"IF('2011 Survey responses'!EW43<0.5,\"\",'2011 Survey responses'!EW43)","v":4},{"$f":"IF('2011 Survey responses'!EY43<0.5,\"\",'2011 Survey responses'!EY43)","v":5},{"$f":"IF('2011 Survey responses'!FU43<0.5,\"\",'2011 Survey responses'!FU43)","v":1},{"$f":"IF(('2011 Survey responses'!FL43+'2011 Survey responses'!FM43)>=2,AVERAGE('2011 Survey responses'!FL43,'2011 Survey responses'!FM43),\"\")","v":3},{"$f":"IF(('2011 Survey responses'!FO43+'2011 Survey responses'!FQ43)>=2,AVERAGE('2011 Survey responses'!FO43,'2011 Survey responses'!FQ43),\"\")","v":2},{"$f":"IF('2011 Survey responses'!FJ43<0.5,\"\",'2011 Survey responses'!FJ43)","v":3},{"$f":"IF('2011 Survey responses'!FT43<0.5,\"\",'2011 Survey responses'!FT43)","v":1},{"$f":"IF('2011 Survey responses'!FR43<0.5,\"\",'2011 Survey responses'!FR43)","v":2},{"$f":"IF('2011 Survey responses'!FK43<0.5,\"\",'2011 Survey responses'!FK43)","v":3},{"$f":"IF('2011 Survey responses'!FP43<0.5,\"\",'2011 Survey responses'!FP43)","v":2},{"$f":"IF('2011 Survey responses'!FN43<0.5,\"\",'2011 Survey responses'!FN43)","v":4},{"$f":"IF(('2011 Survey responses'!FE43+'2011 Survey responses'!FF43)>=2,AVERAGE('2011 Survey responses'!FE43,'2011 Survey responses'!FF43),\"\")","v":3},{"$f":"IF('2011 Survey responses'!FS43<0.5,\"\",'2011 Survey responses'!FS43)","v":4},{"$f":"IF('2011 Survey responses'!FV43<0.5,\"\",'2011 Survey responses'!FV43)","v":1},{"$f":"IF(('2011 Survey responses'!FG43+'2011 Survey responses'!FH43)>=2,AVERAGE('2011 Survey responses'!FG43,'2011 Survey responses'!FH43),\"\")","v":4},{"$f":"IF('2011 Survey responses'!FI43<0.5,\"\",'2011 Survey responses'!FI43)","v":3},{"$f":"IF('2011 Survey responses'!FE43<0.5,\"\",'2011 Survey responses'!FE43)","v":3},{"$f":"IF('2011 Survey responses'!FF43<0.5,\"\",'2011 Survey responses'!FF43)","v":3},{"$f":"IF('2011 Survey responses'!FG43<0.5,\"\",'2011 Survey responses'!FG43)","v":4},{"$f":"IF('2011 Survey responses'!FH43<0.5,\"\",'2011 Survey responses'!FH43)","v":4},{"$f":"IF('2011 Survey responses'!FL43<0.5,\"\",'2011 Survey responses'!FL43)","v":3},{"$f":"IF('2011 Survey responses'!FM43<0.5,\"\",'2011 Survey responses'!FM43)","v":3},{"$f":"IF('2011 Survey responses'!FO43<0.5,\"\",'2011 Survey responses'!FO43)","v":2},{"$f":"IF('2011 Survey responses'!FQ43<0.5,\"\",'2011 Survey responses'!FQ43)","v":2}]
["Croatia",{"$f":"IF(SUM(F44)<1,\"\",AVERAGEIF('2011 Survey responses'!B44:CP44,\">1\"))","v":""},{"$f":"IF(SUM(F44)<1,\"\",AVERAGEIF('2011 Survey responses'!B44:AO44,\">1\"))","v":""},{"$f":"IF(SUM(F44)<1,\"\",AVERAGEIF('2011 Survey responses'!B44:BV44,\">1\"))","v":""},{"$f":"IF(SUM(F44)<1,\"\",AVERAGEIF('2011 Survey responses'!V44:BV44,\">1\"))","v":""},{"$f":"IF(SUM('2011 Survey responses'!B44:U44)<1,\"\",(AVERAGEIFS('2011 Survey responses'!B44:U44,'2011 Survey responses'!B44:U44,\">1\")))","v":""},{"$f":"IF(SUM('2011 Survey responses'!B44:H44)<1,\"\",(AVERAGEIFS('2011 Survey responses'!B44:H44,'2011 Survey responses'!B44:H44,\">1\")))","v":""},{"$f":"IF(SUM('2011 Survey responses'!I44:S44)<1,\"\",(AVERAGEIFS('2011 Survey responses'!I44:S44,'2011 Survey responses'!I44:S44,\">1\")))","v":""},{"$f":"IF(SUM('2011 Survey responses'!T44:U44)<2.1,\"\",(AVERAGEIFS('2011 Survey responses'!T44:U44,'2011 Survey responses'!T44:U44,\">1\")))","v":""},{"$f":"IF(SUM('2011 Survey responses'!B44:C44)<2.1,\"\",((SUMIF('2011 Survey responses'!B44:C44,\">1\")+SUMIF('2011 Survey responses'!F44,\">1\"))/(COUNTIF('2011 Survey responses'!B44:C44,\">1\")+COUNTIF('2011 Survey responses'!F44,\">1\"))))","v":""},{"$f":"IF(SUM('2011 Survey responses'!D44:E44)<2.1,\"\",(AVERAGEIFS('2011 Survey responses'!D44:E44,'2011 Survey responses'!D44:E44,\">1\")))","v":""},{"$f":"IF(('2011 Survey responses'!B44+'2011 Survey responses'!D44)<2.1,\"\",((SUMIF('2011 Survey responses'!B44,\">1\")+SUMIF('2011 Survey responses'!D44,\">1\")+SUMIF('2011 Survey responses'!F44,\">1\")+SUMIF('2011 Survey responses'!K44,\">1\"))/(COUNTIF('2011 Survey responses'!B44,\">1\")+COUNTIF('2011 Survey responses'!D44,\">1\")+COUNTIF('2011 Survey responses'!F44,\">1\")+COUNTIF('2011 Survey responses'!K44,\">1\"))))","v":""},{"$f":"IF(SUM('2011 Survey responses'!G44:H44)<2.1,\"\",(AVERAGEIFS('2011 Survey responses'!G44:H44,'2011 Survey responses'!G44:H44,\">1\")))","v":""},{"$f":"IF(SUM('2011 Survey responses'!F44:G44)<1.5,\"\",MAX('2011 Survey responses'!F44,'2011 Survey responses'!G44))","v":""},{"$f":"IF(SUM('2011 Survey responses'!G44:H44)<1,\"\",MAX('2011 Survey responses'!G44,'2011 Survey responses'!H44))","v":""},{"$f":"IF(SUM('2011 Survey responses'!I44:L44)<4.1,\"\",(AVERAGEIFS('2011 Survey responses'!I44:L44,'2011 Survey responses'!I44:L44,\">1\")))","v":""},{"$f":"IF(SUM('2011 Survey responses'!M44:S44)<4.1,\"\",(AVERAGEIFS('2011 Survey responses'!M44:S44,'2011 Survey responses'!M44:S44,\">1\")))","v":""},{"$f":"IF(SUM('2011 Survey responses'!T44:U44)<2.1,\"\",(AVERAGEIFS('2011 Survey responses'!T44:U44,'2011 Survey responses'!T44:U44,\">1\")))","v":""},{"$f":"IF(SUM('2011 Survey responses'!V44:AO44)<1,\"\",(AVERAGEIFS('2011 Survey responses'!V44:AO44,'2011 Survey responses'!V44:AO44,\">1\")))","v":""},{"$f":"IF(SUM('2011 Survey responses'!V44:AA44)<1,\"\",(AVERAGEIFS('2011 Survey responses'!V44:AA44,'2011 Survey responses'!V44:AA44,\">1\")))","v":""},{"$f":"IF(SUM('2011 Survey responses'!AB44:AH44)<1,\"\",(AVERAGEIFS('2011 Survey responses'!AB44:AH44,'2011 Survey responses'!AB44:AH44,\">1\")))","v":""},{"$f":"IF(SUM('2011 Survey responses'!AI44:AO44)<1,\"\",(AVERAGEIFS('2011 Survey responses'!AI44:AO44,'2011 Survey responses'!AI44:AO44,\">1\")))","v":""},{"$f":"IF(('2011 Survey responses'!Y44+'2011 Survey responses'!AI44+'2011 Survey responses'!AK44)<3.1,\"\",((SUMIF('2011 Survey responses'!Y44,\">1\")+SUMIF('2011 Survey responses'!AI44,\">1\")+SUMIF('2011 Survey responses'!AK44,\">1\")+SUMIF('2011 Survey responses'!AM44,\">1\"))/(COUNTIF('2011 Survey responses'!Y44,\">1\")+COUNTIF('2011 Survey responses'!AI44,\">1\")+COUNTIF('2011 Survey responses'!AK44,\">1\")+COUNTIF('2011 Survey responses'!AM44,\">1\"))))","v":""},{"$f":"IF(('2011 Survey responses'!W44)<1.1,\"\",('2011 Survey responses'!W44))","v":""},{"$f":"IF(('2011 Survey responses'!Y44)<1.1,\"\",('2011 Survey responses'!Y44))","v":""},{"$f":"IF(('2011 Survey responses'!Z44)<1.1,\"\",('2011 Survey responses'!Z44))","v":""},{"$f":"IF(('2011 Survey responses'!V44+'2011 Survey responses'!X44+'2011 Survey responses'!AA44)<3.1,\"\",((SUMIF('2011 Survey responses'!V44,\">1\")+SUMIF('2011 Survey responses'!X44,\">1\")+SUMIF('2011 Survey responses'!AA44,\">1\"))/(COUNTIF('2011 Survey responses'!V44,\">1\")+COUNTIF('2011 Survey responses'!X44,\">1\")+COUNTIF('2011 Survey responses'!AA44,\">1\"))))","v":""},{"$f":"IF(('2011 Survey responses'!V44+'2011 Survey responses'!Y44+'2011 Survey responses'!AA44)<3.1,\"\",((SUMIF('2011 Survey responses'!V44,\">1\")+SUMIF('2011 Survey responses'!Y44,\">1\")+SUMIF('2011 Survey responses'!AA44,\">1\"))/(COUNTIF('2011 Survey responses'!V44,\">1\")+COUNTIF('2011 Survey responses'!Y44,\">1\")+COUNTIF('2011 Survey responses'!AA44,\">1\"))))","v":""},{"$f":"IF(SUM('2011 Survey responses'!AB44:AH44)<1,\"\",(AVERAGEIFS('2011 Survey responses'!AB44:AH44,'2011 Survey responses'!AB44:AH44,\">1\")))","v":""},{"$f":"IF(SUM('2011 Survey responses'!AI44:AO44)<7.1,\"\",(AVERAGEIFS('2011 Survey responses'!AI44:AO44,'2011 Survey responses'!AI44:AO44,\">1\")))","v":""},{"$f":"IF(('2011 Survey responses'!AH44)<1.1,\"\",('2011 Survey responses'!AH44))","v":""},{"$f":"IF(SUM('2011 Survey responses'!AP44:BV44)<1,\"\",(AVERAGEIFS('2011 Survey responses'!AP44:BV44,'2011 Survey responses'!AP44:BV44,\">1\")))","v":""},{"$f":"IF(SUM('2011 Survey responses'!AP44:AS44)<4.1,\"\",(AVERAGEIFS('2011 Survey responses'!AP44:AS44,'2011 Survey responses'!AP44:AS44,\">1\")))","v":""},{"$f":"IF(SUM('2011 Survey responses'!AT44:BF44)<1,\"\",(AVERAGEIFS('2011 Survey responses'!AT44:BF44,'2011 Survey responses'!AT44:BF44,\">1\")))","v":""},{"$f":"IF(SUM('2011 Survey responses'!BG44:BO44)<1,\"\",(AVERAGEIFS('2011 Survey responses'!BG44:BO44,'2011 Survey responses'!BG44:BO44,\">1\")))","v":""},{"$f":"IF(SUM('2011 Survey responses'!BP44:BS44)<1,\"\",(AVERAGEIFS('2011 Survey responses'!BP44:BS44,'2011 Survey responses'!BP44:BS44,\">1\")))","v":""},{"$f":"IF(SUM('2011 Survey responses'!BT44:BV44)<3.1,\"\",(AVERAGEIFS('2011 Survey responses'!BT44:BV44,'2011 Survey responses'!BT44:BV44,\">1\")))","v":""},{"$f":"IF(('2011 Survey responses'!AQ44+'2011 Survey responses'!AR44+'2011 Survey responses'!BG44)<3.1,\"\",((SUMIF('2011 Survey responses'!AQ44,\">1\")+SUMIF('2011 Survey responses'!AR44,\">1\")+SUMIF('2011 Survey responses'!BG44,\">1\"))/(COUNTIF('2011 Survey responses'!AQ44,\">1\")+COUNTIF('2011 Survey responses'!AR44,\">1\")+COUNTIF('2011 Survey responses'!BG44,\">1\"))))","v":""},{"$f":"IF(SUM('2011 Survey responses'!AP44:AS44)<4.1,\"\",(AVERAGEIFS('2011 Survey responses'!AP44:AS44,'2011 Survey responses'!AP44:AS44,\">1\")))","v":""},{"$f":"IF(('2011 Survey responses'!AU44+'2011 Survey responses'!AX44+'2011 Survey responses'!BA44+'2011 Survey responses'!BC44+'2011 Survey responses'!BD44)<5.1,\"\",(SUMIF('2011 Survey responses'!AU44,\">1\")+SUMIF('2011 Survey responses'!AX44,\">1\")+SUMIF('2011 Survey responses'!BA44,\">1\")+SUMIF('2011 Survey responses'!BC44,\">1\")+SUMIF('2011 Survey responses'!BD44,\">1\"))/(COUNTIF('2011 Survey responses'!AU44,\">1\")+COUNTIF('2011 Survey responses'!AX44,\">1\")+COUNTIF('2011 Survey responses'!BA44,\">1\")+COUNTIF('2011 Survey responses'!BC44,\">1\")+COUNTIF('2011 Survey responses'!BD44,\">1\")))","v":""},{"$f":"IF(('2011 Survey responses'!AT44)<1.1,\"\",('2011 Survey responses'!AT44))","v":""},{"$f":"IF(SUM('2011 Survey responses'!AV44:AW44)<2.1,\"\",(AVERAGEIFS('2011 Survey responses'!AV44:AW44,'2011 Survey responses'!AV44:AW44,\">1\")))","v":""},{"$f":"IF(('2011 Survey responses'!AW44+'2011 Survey responses'!AY44)<2.1,\"\",(SUMIF('2011 Survey responses'!AW44,\">1\")+SUMIF('2011 Survey responses'!AY44,\">1\"))/(COUNTIF('2011 Survey responses'!AW44,\">1\")+COUNTIF('2011 Survey responses'!AY44,\">1\")))","v":""},{"$f":"IF(('2011 Survey responses'!AZ44)<1.1,\"\",('2011 Survey responses'!AZ44))","v":""},null,null,null,null,{"$f":"IF(('2011 Survey responses'!BE44)<1.1,\"\",('2011 Survey responses'!BE44))","v":""},{"$f":"IF(('2011 Survey responses'!AY44+'2011 Survey responses'!BB44+'2011 Survey responses'!BF44)<3.1,\"\",(SUMIF('2011 Survey responses'!AY44,\">1\")+SUMIF('2011 Survey responses'!BB44,\">1\")+SUMIF('2011 Survey responses'!BF44,\">1\"))/(COUNTIF('2011 Survey responses'!AY44,\">1\")+COUNTIF('2011 Survey responses'!BB44,\">1\")+COUNTIF('2011 Survey responses'!BF44,\">1\")))","v":""},"",{"$f":"IF(SUM('2011 Survey responses'!BT44:BV44)<3.1,\"\",(AVERAGEIFS('2011 Survey responses'!BT44:BV44,'2011 Survey responses'!BT44:BV44,\">1\")))","v":""},{"$f":"IF(SUM('2011 Survey responses'!BW44:CP44)<1,\"\",(AVERAGEIFS('2011 Survey responses'!BW44:CP44,'2011 Survey responses'!BW44:CP44,\">1\")))","v":""},{"$f":"IF(SUM('2011 Survey responses'!BW44:CF44)<1,\"\",(AVERAGEIFS('2011 Survey responses'!BW44:CF44,'2011 Survey responses'!BW44:CF44,\">1\")))","v":""},{"$f":"IF(SUM('2011 Survey responses'!CG44:CP44)<1,\"\",(AVERAGEIFS('2011 Survey responses'!CG44:CP44,'2011 Survey responses'!CG44:CP44,\">1\")))","v":""},{"$f":"IF(SUM('2011 Survey responses'!BX44:CF44)<1,\"\",(AVERAGEIFS('2011 Survey responses'!BX44:CF44,'2011 Survey responses'!BX44:CF44,\">1\")))","v":""},{"$f":"IF(SUM('2011 Survey responses'!CH44:CP44)<1,\"\",(AVERAGEIFS('2011 Survey responses'!CH44:CP44,'2011 Survey responses'!CH44:CP44,\">1\")))","v":""},{"$f":"IF(SUM('2011 Survey responses'!BW44:CP44)<1,\"\",(AVERAGEIFS('2011 Survey responses'!BW44:CP44,'2011 Survey responses'!BW44:CP44,\">1\")))","v":""},{"$f":"IF(('2011 Survey responses'!BW44+'2011 Survey responses'!CG44)<2.1,\"\",(SUMIF('2011 Survey responses'!BW44,\">1\")+SUMIF('2011 Survey responses'!CG44,\">1\"))/(COUNTIF('2011 Survey responses'!BW44,\">1\")+COUNTIF('2011 Survey responses'!CG44,\">1\")))","v":""},{"$f":"IF(('2011 Survey responses'!BX44+'2011 Survey responses'!CH44)<2.1,\"\",(SUMIF('2011 Survey responses'!BX44,\">1\")+SUMIF('2011 Survey responses'!CH44,\">1\"))/(COUNTIF('2011 Survey responses'!BX44,\">1\")+COUNTIF('2011 Survey responses'!CH44,\">1\")))","v":""},{"$f":"IF(('2011 Survey responses'!BY44+'2011 Survey responses'!CI44)<2.1,\"\",(SUMIF('2011 Survey responses'!BY44,\">1\")+SUMIF('2011 Survey responses'!CI44,\">1\"))/(COUNTIF('2011 Survey responses'!BY44,\">1\")+COUNTIF('2011 Survey responses'!CI44,\">1\")))","v":""},{"$f":"IF('2011 Survey responses'!CQ44<0.5,\"\",'2011 Survey responses'!CQ44)","v":""},{"$f":"IF('2011 Survey responses'!CR44<0.5,\"\",'2011 Survey responses'!CR44)","v":""},{"$f":"IF('2011 Survey responses'!CS44<0.5,\"\",'2011 Survey responses'!CS44)","v":""},{"$f":"IF('2011 Survey responses'!CT44<0.5,\"\",'2011 Survey responses'!CT44)","v":""},{"$f":"IF('2011 Survey responses'!CU44<0.5,\"\",'2011 Survey responses'!CU44)","v":""},{"$f":"IF('2011 Survey responses'!CV44<0.5,\"\",'2011 Survey responses'!CV44)","v":""},{"$f":"IF(SUM('2011 Survey responses'!CW44:DL44)<1,\"\",(AVERAGE('2011 Survey responses'!CW44:DL44)))","v":""},{"$f":"IF(SUM('2011 Survey responses'!CW44:CZ44)<1,\"\",(AVERAGE('2011 Survey responses'!CW44:CZ44)))","v":""},{"$f":"IF(SUM('2011 Survey responses'!DA44:DD44)<1,\"\",(AVERAGE('2011 Survey responses'!DA44:DD44)))","v":""},{"$f":"IF(SUM('2011 Survey responses'!DE44:DH44)<1,\"\",(AVERAGE('2011 Survey responses'!DE44:DH44)))","v":""},{"$f":"IF(SUM('2011 Survey responses'!DI44:DL44)<1,\"\",(AVERAGE('2011 Survey responses'!DI44:DL44)))","v":""},{"$f":"IF(('2011 Survey responses'!CW44+'2011 Survey responses'!DA44+'2011 Survey responses'!DE44+'2011 Survey responses'!DI44)<1,\"\",AVERAGE('2011 Survey responses'!CW44,'2011 Survey responses'!DA44,'2011 Survey responses'!DE44,'2011 Survey responses'!DI44))","v":""},{"$f":"IF(('2011 Survey responses'!CX44+'2011 Survey responses'!DB44+'2011 Survey responses'!DF44+'2011 Survey responses'!DJ44)<1,\"\",AVERAGE('2011 Survey responses'!CX44,'2011 Survey responses'!DB44,'2011 Survey responses'!DF44,'2011 Survey responses'!DJ44))","v":""},{"$f":"IF(('2011 Survey responses'!CY44+'2011 Survey responses'!DC44+'2011 Survey responses'!DG44+'2011 Survey responses'!DK44)<1,\"\",AVERAGE('2011 Survey responses'!CY44,'2011 Survey responses'!DC44,'2011 Survey responses'!DG44,'2011 Survey responses'!DK44))","v":""},{"$f":"IF(('2011 Survey responses'!CZ44+'2011 Survey responses'!DD44+'2011 Survey responses'!DH44+'2011 Survey responses'!DL44)<1,\"\",AVERAGE('2011 Survey responses'!CZ44,'2011 Survey responses'!DD44,'2011 Survey responses'!DH44,'2011 Survey responses'!DL44))","v":""},{"$f":"IF('2011 Survey responses'!CW44<0.5,\"\",'2011 Survey responses'!CW44)","v":""},{"$f":"IF('2011 Survey responses'!CX44<0.5,\"\",'2011 Survey responses'!CX44)","v":""},{"$f":"IF('2011 Survey responses'!CY44<0.5,\"\",'2011 Survey responses'!CY44)","v":""},{"$f":"IF('2011 Survey responses'!CZ44<0.5,\"\",'2011 Survey responses'!CZ44)","v":""},{"$f":"IF('2011 Survey responses'!DA44<0.5,\"\",'2011 Survey responses'!DA44)","v":""},{"$f":"IF('2011 Survey responses'!DB44<0.5,\"\",'2011 Survey responses'!DB44)","v":""},{"$f":"IF('2011 Survey responses'!DC44<0.5,\"\",'2011 Survey responses'!DC44)","v":""},{"$f":"IF('2011 Survey responses'!DD44<0.5,\"\",'2011 Survey responses'!DD44)","v":""},{"$f":"IF('2011 Survey responses'!DE44<0.5,\"\",'2011 Survey responses'!DE44)","v":""},{"$f":"IF('2011 Survey responses'!DF44<0.5,\"\",'2011 Survey responses'!DF44)","v":""},{"$f":"IF('2011 Survey responses'!DG44<0.5,\"\",'2011 Survey responses'!DG44)","v":""},{"$f":"IF('2011 Survey responses'!DH44<0.5,\"\",'2011 Survey responses'!DH44)","v":""},{"$f":"IF('2011 Survey responses'!DI44<0.5,\"\",'2011 Survey responses'!DI44)","v":""},{"$f":"IF('2011 Survey responses'!DJ44<0.5,\"\",'2011 Survey responses'!DJ44)","v":""},{"$f":"IF('2011 Survey responses'!DK44<0.5,\"\",'2011 Survey responses'!DK44)","v":""},{"$f":"IF('2011 Survey responses'!DL44<0.5,\"\",'2011 Survey responses'!DL44)","v":""},{"$f":"IF('2011 Survey responses'!DU44=4,4,IF('2011 Survey responses'!DU44=5,4,\"\"))","v":""},{"$f":"IF('2011 Survey responses'!DV44=4,3,IF('2011 Survey responses'!DV44=5,3,\"\"))","v":""},"",{"$f":"IF(CQ44=2,CQ44,IF(CO44=4,CO44,IF(CP44=3,CP44,IF('2011 Survey responses'!GT44=1,1,\"\"))))","v":""},{"$f":"IF('2011 Survey responses'!DO44<0.5,\"\",'2011 Survey responses'!DO44)","v":""},{"$f":"IF('2011 Survey responses'!DP44<0.5,\"\",'2011 Survey responses'!DP44)","v":""},{"$f":"IF('2011 Survey responses'!DQ44<0.5,\"\",'2011 Survey responses'!DQ44)","v":""},{"$f":"IF('2011 Survey responses'!DR44<0.5,\"\",'2011 Survey responses'!DR44)","v":""},{"$f":"IF('2011 Survey responses'!DS44<0.5,\"\",'2011 Survey responses'!DS44)","v":""},{"$f":"IF('2011 Survey responses'!DT44<0.5,\"\",'2011 Survey responses'!DT44)","v":""},{"$f":"IF('2011 Survey responses'!DU44<0.5,\"\",'2011 Survey responses'!DU44)","v":""},{"$f":"IF('2011 Survey responses'!DV44<0.5,\"\",'2011 Survey responses'!DV44)","v":""},{"$f":"IF('2011 Survey responses'!DW44<0.5,\"\",'2011 Survey responses'!DW44)","v":""},{"$f":"IF('2011 Survey responses'!DX44<0.5,\"\",'2011 Survey responses'!DX44)","v":""},{"$f":"IF('2011 Survey responses'!DY44<0.5,\"\",'2011 Survey responses'!DY44)","v":""},{"$f":"IF('2011 Survey responses'!DZ44<0.5,\"\",'2011 Survey responses'!DZ44)","v":""},{"$f":"IF('2011 Survey responses'!EA44<0.5,\"\",'2011 Survey responses'!EA44)","v":""},{"$f":"IF('2011 Survey responses'!EB44<0.5,\"\",'2011 Survey responses'!EB44)","v":""},{"$f":"IF('2011 Survey responses'!EC44<0.5,\"\",'2011 Survey responses'!EC44)","v":""},{"$f":"IF('2011 Survey responses'!ED44<0.5,\"\",'2011 Survey responses'!ED44)","v":""},{"$f":"IF('2011 Survey responses'!EE44<0.5,\"\",'2011 Survey responses'!EE44)","v":""},{"$f":"IF('2011 Survey responses'!EF44<0.5,\"\",'2011 Survey responses'!EF44)","v":""},{"$f":"IF('2011 Survey responses'!EG44<0.5,\"\",'2011 Survey responses'!EG44)","v":""},{"$f":"IF('2011 Survey responses'!EH44<0.5,\"\",'2011 Survey responses'!EH44)","v":""},{"$f":"IF('2011 Survey responses'!EI44<0.5,\"\",'2011 Survey responses'!EI44)","v":""},{"$f":"IF('2011 Survey responses'!EJ44<0.5,\"\",'2011 Survey responses'!EJ44)","v":""},{"$f":"IF('2011 Survey responses'!EK44<0.5,\"\",'2011 Survey responses'!EK44)","v":""},{"$f":"IF('2011 Survey responses'!EL44<0.5,\"\",'2011 Survey responses'!EL44)","v":""},{"$f":"IF('2011 Survey responses'!EM44<0.5,\"\",'2011 Survey responses'!EM44)","v":""},{"$f":"IF('2011 Survey responses'!EN44<0.5,\"\",'2011 Survey responses'!EN44)","v":""},{"$f":"IF('2011 Survey responses'!EO44<0.5,\"\",'2011 Survey responses'!EO44)","v":""},{"$f":"IF('2011 Survey responses'!EP44<0.5,\"\",'2011 Survey responses'!EP44)","v":""},{"$f":"IF(('2011 Survey responses'!EW44+'2011 Survey responses'!EX44)>=2,AVERAGE('2011 Survey responses'!EW44,'2011 Survey responses'!EY44),\"\")","v":""},{"$f":"IF('2011 Survey responses'!EX44<0.5,\"\",'2011 Survey responses'!EX44)","v":""},{"$f":"IF('2011 Survey responses'!EZ44<0.5,\"\",'2011 Survey responses'!EZ44)","v":""},{"$f":"IF('2011 Survey responses'!FB44<0.5,\"\",'2011 Survey responses'!FB44)","v":""},{"$f":"IF('2011 Survey responses'!FD44<0.5,\"\",'2011 Survey responses'!FD44)","v":""},{"$f":"IF('2011 Survey responses'!FC44<0.5,\"\",'2011 Survey responses'!FC44)","v":""},{"$f":"IF(('2011 Survey responses'!EM44+'2011 Survey responses'!EN44)>=2,AVERAGE('2011 Survey responses'!EM44,'2011 Survey responses'!EN44),\"\")","v":""},{"$f":"IF('2011 Survey responses'!ES44<0.5,\"\",'2011 Survey responses'!ES44)","v":""},{"$f":"IF(('2011 Survey responses'!ET44+'2011 Survey responses'!EU44)>=2,AVERAGE('2011 Survey responses'!ET44,'2011 Survey responses'!EU44),\"\")","v":""},{"$f":"IF('2011 Survey responses'!EV44<0.5,\"\",'2011 Survey responses'!EV44)","v":""},{"$f":"IF('2011 Survey responses'!FA44<0.5,\"\",'2011 Survey responses'!FA44)","v":""},{"$f":"IF('2011 Survey responses'!ER44<0.5,\"\",'2011 Survey responses'!ER44)","v":""},{"$f":"IF(('2011 Survey responses'!EO44+'2011 Survey responses'!EP44)>=2,AVERAGE('2011 Survey responses'!EO44,'2011 Survey responses'!EP44),\"\")","v":""},{"$f":"IF('2011 Survey responses'!EQ44<0.5,\"\",'2011 Survey responses'!EQ44)","v":""},{"$f":"IF('2011 Survey responses'!ET44<0.5,\"\",'2011 Survey responses'!ET44)","v":""},{"$f":"IF('2011 Survey responses'!EU44<0.5,\"\",'2011 Survey responses'!EU44)","v":""},{"$f":"IF('2011 Survey responses'!EW44<0.5,\"\",'2011 Survey responses'!EW44)","v":""},{"$f":"IF('2011 Survey responses'!EY44<0.5,\"\",'2011 Survey responses'!EY44)","v":""},{"$f":"IF('2011 Survey responses'!FU44<0.5,\"\",'2011 Survey responses'!FU44)","v":""},{"$f":"IF(('2011 Survey responses'!FL44+'2011 Survey responses'!FM44)>=2,AVERAGE('2011 Survey responses'!FL44,'2011 Survey responses'!FM44),\"\")","v":""},{"$f":"IF(('2011 Survey responses'!FO44+'2011 Survey responses'!FQ44)>=2,AVERAGE('2011 Survey responses'!FO44,'2011 Survey responses'!FQ44),\"\")","v":""},{"$f":"IF('2011 Survey responses'!FJ44<0.5,\"\",'2011 Survey responses'!FJ44)","v":""},{"$f":"IF('2011 Survey responses'!FT44<0.5,\"\",'2011 Survey responses'!FT44)","v":""},{"$f":"IF('2011 Survey responses'!FR44<0.5,\"\",'2011 Survey responses'!FR44)","v":""},{"$f":"IF('2011 Survey responses'!FK44<0.5,\"\",'2011 Survey responses'!FK44)","v":""},{"$f":"IF('2011 Survey responses'!FP44<0.5,\"\",'2011 Survey responses'!FP44)","v":""},{"$f":"IF('2011 Survey responses'!FN44<0.5,\"\",'2011 Survey responses'!FN44)","v":""},{"$f":"IF(('2011 Survey responses'!FE44+'2011 Survey responses'!FF44)>=2,AVERAGE('2011 Survey responses'!FE44,'2011 Survey responses'!FF44),\"\")","v":""},{"$f":"IF('2011 Survey responses'!FS44<0.5,\"\",'2011 Survey responses'!FS44)","v":""},{"$f":"IF('2011 Survey responses'!FV44<0.5,\"\",'2011 Survey responses'!FV44)","v":""},{"$f":"IF(('2011 Survey responses'!FG44+'2011 Survey responses'!FH44)>=2,AVERAGE('2011 Survey responses'!FG44,'2011 Survey responses'!FH44),\"\")","v":""},{"$f":"IF('2011 Survey responses'!FI44<0.5,\"\",'2011 Survey responses'!FI44)","v":""},{"$f":"IF('2011 Survey responses'!FE44<0.5,\"\",'2011 Survey responses'!FE44)","v":""},{"$f":"IF('2011 Survey responses'!FF44<0.5,\"\",'2011 Survey responses'!FF44)","v":""},{"$f":"IF('2011 Survey responses'!FG44<0.5,\"\",'2011 Survey responses'!FG44)","v":""},{"$f":"IF('2011 Survey responses'!FH44<0.5,\"\",'2011 Survey responses'!FH44)","v":""},{"$f":"IF('2011 Survey responses'!FL44<0.5,\"\",'2011 Survey responses'!FL44)","v":""},{"$f":"IF('2011 Survey responses'!FM44<0.5,\"\",'2011 Survey responses'!FM44)","v":""},{"$f":"IF('2011 Survey responses'!FO44<0.5,\"\",'2011 Survey responses'!FO44)","v":""},{"$f":"IF('2011 Survey responses'!FQ44<0.5,\"\",'2011 Survey responses'!FQ44)","v":""}]
["Cuba",{"$f":"IF(SUM(F45)<1,\"\",AVERAGEIF('2011 Survey responses'!B45:CP45,\">1\"))","v":4.8426966292134832},{"$f":"IF(SUM(F45)<1,\"\",AVERAGEIF('2011 Survey responses'!B45:AO45,\">1\"))","v":4.9189189189189193},{"$f":"IF(SUM(F45)<1,\"\",AVERAGEIF('2011 Survey responses'!B45:BV45,\">1\"))","v":4.8115942028985508},{"$f":"IF(SUM(F45)<1,\"\",AVERAGEIF('2011 Survey responses'!V45:BV45,\">1\"))","v":4.7647058823529411},{"$f":"IF(SUM('2011 Survey responses'!B45:U45)<1,\"\",(AVERAGEIFS('2011 Survey responses'!B45:U45,'2011 Survey responses'!B45:U45,\">1\")))","v":4.9444444444444446},{"$f":"IF(SUM('2011 Survey responses'!B45:H45)<1,\"\",(AVERAGEIFS('2011 Survey responses'!B45:H45,'2011 Survey responses'!B45:H45,\">1\")))","v":5},{"$f":"IF(SUM('2011 Survey responses'!I45:S45)<1,\"\",(AVERAGEIFS('2011 Survey responses'!I45:S45,'2011 Survey responses'!I45:S45,\">1\")))","v":4.9090909090909092},{"$f":"IF(SUM('2011 Survey responses'!T45:U45)<2.1,\"\",(AVERAGEIFS('2011 Survey responses'!T45:U45,'2011 Survey responses'!T45:U45,\">1\")))","v":5},{"$f":"IF(SUM('2011 Survey responses'!B45:C45)<2.1,\"\",((SUMIF('2011 Survey responses'!B45:C45,\">1\")+SUMIF('2011 Survey responses'!F45,\">1\"))/(COUNTIF('2011 Survey responses'!B45:C45,\">1\")+COUNTIF('2011 Survey responses'!F45,\">1\"))))","v":5},{"$f":"IF(SUM('2011 Survey responses'!D45:E45)<2.1,\"\",(AVERAGEIFS('2011 Survey responses'!D45:E45,'2011 Survey responses'!D45:E45,\">1\")))","v":5},{"$f":"IF(('2011 Survey responses'!B45+'2011 Survey responses'!D45)<2.1,\"\",((SUMIF('2011 Survey responses'!B45,\">1\")+SUMIF('2011 Survey responses'!D45,\">1\")+SUMIF('2011 Survey responses'!F45,\">1\")+SUMIF('2011 Survey responses'!K45,\">1\"))/(COUNTIF('2011 Survey responses'!B45,\">1\")+COUNTIF('2011 Survey responses'!D45,\">1\")+COUNTIF('2011 Survey responses'!F45,\">1\")+COUNTIF('2011 Survey responses'!K45,\">1\"))))","v":5},{"$f":"IF(SUM('2011 Survey responses'!G45:H45)<2.1,\"\",(AVERAGEIFS('2011 Survey responses'!G45:H45,'2011 Survey responses'!G45:H45,\">1\")))","v":5},{"$f":"IF(SUM('2011 Survey responses'!F45:G45)<1.5,\"\",MAX('2011 Survey responses'!F45,'2011 Survey responses'!G45))","v":5},{"$f":"IF(SUM('2011 Survey responses'!G45:H45)<1,\"\",MAX('2011 Survey responses'!G45,'2011 Survey responses'!H45))","v":5},{"$f":"IF(SUM('2011 Survey responses'!I45:L45)<4.1,\"\",(AVERAGEIFS('2011 Survey responses'!I45:L45,'2011 Survey responses'!I45:L45,\">1\")))","v":5},{"$f":"IF(SUM('2011 Survey responses'!M45:S45)<4.1,\"\",(AVERAGEIFS('2011 Survey responses'!M45:S45,'2011 Survey responses'!M45:S45,\">1\")))","v":4.8571428571428568},{"$f":"IF(SUM('2011 Survey responses'!T45:U45)<2.1,\"\",(AVERAGEIFS('2011 Survey responses'!T45:U45,'2011 Survey responses'!T45:U45,\">1\")))","v":5},{"$f":"IF(SUM('2011 Survey responses'!V45:AO45)<1,\"\",(AVERAGEIFS('2011 Survey responses'!V45:AO45,'2011 Survey responses'!V45:AO45,\">1\")))","v":4.8947368421052628},{"$f":"IF(SUM('2011 Survey responses'!V45:AA45)<1,\"\",(AVERAGEIFS('2011 Survey responses'!V45:AA45,'2011 Survey responses'!V45:AA45,\">1\")))","v":5.2},{"$f":"IF(SUM('2011 Survey responses'!AB45:AH45)<1,\"\",(AVERAGEIFS('2011 Survey responses'!AB45:AH45,'2011 Survey responses'!AB45:AH45,\">1\")))","v":4.5714285714285712},{"$f":"IF(SUM('2011 Survey responses'!AI45:AO45)<1,\"\",(AVERAGEIFS('2011 Survey responses'!AI45:AO45,'2011 Survey responses'!AI45:AO45,\">1\")))","v":5},{"$f":"IF(('2011 Survey responses'!Y45+'2011 Survey responses'!AI45+'2011 Survey responses'!AK45)<3.1,\"\",((SUMIF('2011 Survey responses'!Y45,\">1\")+SUMIF('2011 Survey responses'!AI45,\">1\")+SUMIF('2011 Survey responses'!AK45,\">1\")+SUMIF('2011 Survey responses'!AM45,\">1\"))/(COUNTIF('2011 Survey responses'!Y45,\">1\")+COUNTIF('2011 Survey responses'!AI45,\">1\")+COUNTIF('2011 Survey responses'!AK45,\">1\")+COUNTIF('2011 Survey responses'!AM45,\">1\"))))","v":5},{"$f":"IF(('2011 Survey responses'!W45)<1.1,\"\",('2011 Survey responses'!W45))","v":5},{"$f":"IF(('2011 Survey responses'!Y45)<1.1,\"\",('2011 Survey responses'!Y45))","v":5},{"$f":"IF(('2011 Survey responses'!Z45)<1.1,\"\",('2011 Survey responses'!Z45))","v":""},{"$f":"IF(('2011 Survey responses'!V45+'2011 Survey responses'!X45+'2011 Survey responses'!AA45)<3.1,\"\",((SUMIF('2011 Survey responses'!V45,\">1\")+SUMIF('2011 Survey responses'!X45,\">1\")+SUMIF('2011 Survey responses'!AA45,\">1\"))/(COUNTIF('2011 Survey responses'!V45,\">1\")+COUNTIF('2011 Survey responses'!X45,\">1\")+COUNTIF('2011 Survey responses'!AA45,\">1\"))))","v":5.333333333333333},{"$f":"IF(('2011 Survey responses'!V45+'2011 Survey responses'!Y45+'2011 Survey responses'!AA45)<3.1,\"\",((SUMIF('2011 Survey responses'!V45,\">1\")+SUMIF('2011 Survey responses'!Y45,\">1\")+SUMIF('2011 Survey responses'!AA45,\">1\"))/(COUNTIF('2011 Survey responses'!V45,\">1\")+COUNTIF('2011 Survey responses'!Y45,\">1\")+COUNTIF('2011 Survey responses'!AA45,\">1\"))))","v":5.333333333333333},{"$f":"IF(SUM('2011 Survey responses'!AB45:AH45)<1,\"\",(AVERAGEIFS('2011 Survey responses'!AB45:AH45,'2011 Survey responses'!AB45:AH45,\">1\")))","v":4.5714285714285712},{"$f":"IF(SUM('2011 Survey responses'!AI45:AO45)<7.1,\"\",(AVERAGEIFS('2011 Survey responses'!AI45:AO45,'2011 Survey responses'!AI45:AO45,\">1\")))","v":5},{"$f":"IF(('2011 Survey responses'!AH45)<1.1,\"\",('2011 Survey responses'!AH45))","v":4},{"$f":"IF(SUM('2011 Survey responses'!AP45:BV45)<1,\"\",(AVERAGEIFS('2011 Survey responses'!AP45:BV45,'2011 Survey responses'!AP45:BV45,\">1\")))","v":4.6875},{"$f":"IF(SUM('2011 Survey responses'!AP45:AS45)<4.1,\"\",(AVERAGEIFS('2011 Survey responses'!AP45:AS45,'2011 Survey responses'!AP45:AS45,\">1\")))","v":4.75},{"$f":"IF(SUM('2011 Survey responses'!AT45:BF45)<1,\"\",(AVERAGEIFS('2011 Survey responses'!AT45:BF45,'2011 Survey responses'!AT45:BF45,\">1\")))","v":4.916666666666667},{"$f":"IF(SUM('2011 Survey responses'!BG45:BO45)<1,\"\",(AVERAGEIFS('2011 Survey responses'!BG45:BO45,'2011 Survey responses'!BG45:BO45,\">1\")))","v":5},{"$f":"IF(SUM('2011 Survey responses'!BP45:BS45)<1,\"\",(AVERAGEIFS('2011 Survey responses'!BP45:BS45,'2011 Survey responses'!BP45:BS45,\">1\")))","v":4.5},{"$f":"IF(SUM('2011 Survey responses'!BT45:BV45)<3.1,\"\",(AVERAGEIFS('2011 Survey responses'!BT45:BV45,'2011 Survey responses'!BT45:BV45,\">1\")))","v":3},{"$f":"IF(('2011 Survey responses'!AQ45+'2011 Survey responses'!AR45+'2011 Survey responses'!BG45)<3.1,\"\",((SUMIF('2011 Survey responses'!AQ45,\">1\")+SUMIF('2011 Survey responses'!AR45,\">1\")+SUMIF('2011 Survey responses'!BG45,\">1\"))/(COUNTIF('2011 Survey responses'!AQ45,\">1\")+COUNTIF('2011 Survey responses'!AR45,\">1\")+COUNTIF('2011 Survey responses'!BG45,\">1\"))))","v":5},{"$f":"IF(SUM('2011 Survey responses'!AP45:AS45)<4.1,\"\",(AVERAGEIFS('2011 Survey responses'!AP45:AS45,'2011 Survey responses'!AP45:AS45,\">1\")))","v":4.75},{"$f":"IF(('2011 Survey responses'!AU45+'2011 Survey responses'!AX45+'2011 Survey responses'!BA45+'2011 Survey responses'!BC45+'2011 Survey responses'!BD45)<5.1,\"\",(SUMIF('2011 Survey responses'!AU45,\">1\")+SUMIF('2011 Survey responses'!AX45,\">1\")+SUMIF('2011 Survey responses'!BA45,\">1\")+SUMIF('2011 Survey responses'!BC45,\">1\")+SUMIF('2011 Survey responses'!BD45,\">1\"))/(COUNTIF('2011 Survey responses'!AU45,\">1\")+COUNTIF('2011 Survey responses'!AX45,\">1\")+COUNTIF('2011 Survey responses'!BA45,\">1\")+COUNTIF('2011 Survey responses'!BC45,\">1\")+COUNTIF('2011 Survey responses'!BD45,\">1\")))","v":4.8},{"$f":"IF(('2011 Survey responses'!AT45)<1.1,\"\",('2011 Survey responses'!AT45))","v":5},{"$f":"IF(SUM('2011 Survey responses'!AV45:AW45)<2.1,\"\",(AVERAGEIFS('2011 Survey responses'!AV45:AW45,'2011 Survey responses'!AV45:AW45,\">1\")))","v":5},{"$f":"IF(('2011 Survey responses'!AW45+'2011 Survey responses'!AY45)<2.1,\"\",(SUMIF('2011 Survey responses'!AW45,\">1\")+SUMIF('2011 Survey responses'!AY45,\">1\"))/(COUNTIF('2011 Survey responses'!AW45,\">1\")+COUNTIF('2011 Survey responses'!AY45,\">1\")))","v":5},{"$f":"IF(('2011 Survey responses'!AZ45)<1.1,\"\",('2011 Survey responses'!AZ45))","v":5},5,4,4,3,{"$f":"IF(('2011 Survey responses'!BE45)<1.1,\"\",('2011 Survey responses'!BE45))","v":""},{"$f":"IF(('2011 Survey responses'!AY45+'2011 Survey responses'!BB45+'2011 Survey responses'!BF45)<3.1,\"\",(SUMIF('2011 Survey responses'!AY45,\">1\")+SUMIF('2011 Survey responses'!BB45,\">1\")+SUMIF('2011 Survey responses'!BF45,\">1\"))/(COUNTIF('2011 Survey responses'!AY45,\">1\")+COUNTIF('2011 Survey responses'!BB45,\">1\")+COUNTIF('2011 Survey responses'!BF45,\">1\")))","v":5},4.75,{"$f":"IF(SUM('2011 Survey responses'!BT45:BV45)<3.1,\"\",(AVERAGEIFS('2011 Survey responses'!BT45:BV45,'2011 Survey responses'!BT45:BV45,\">1\")))","v":3},{"$f":"IF(SUM('2011 Survey responses'!BW45:CP45)<1,\"\",(AVERAGEIFS('2011 Survey responses'!BW45:CP45,'2011 Survey responses'!BW45:CP45,\">1\")))","v":4.95},{"$f":"IF(SUM('2011 Survey responses'!BW45:CF45)<1,\"\",(AVERAGEIFS('2011 Survey responses'!BW45:CF45,'2011 Survey responses'!BW45:CF45,\">1\")))","v":4.8},{"$f":"IF(SUM('2011 Survey responses'!CG45:CP45)<1,\"\",(AVERAGEIFS('2011 Survey responses'!CG45:CP45,'2011 Survey responses'!CG45:CP45,\">1\")))","v":5.0999999999999996},{"$f":"IF(SUM('2011 Survey responses'!BX45:CF45)<1,\"\",(AVERAGEIFS('2011 Survey responses'!BX45:CF45,'2011 Survey responses'!BX45:CF45,\">1\")))","v":4.7777777777777777},{"$f":"IF(SUM('2011 Survey responses'!CH45:CP45)<1,\"\",(AVERAGEIFS('2011 Survey responses'!CH45:CP45,'2011 Survey responses'!CH45:CP45,\">1\")))","v":5},{"$f":"IF(SUM('2011 Survey responses'!BW45:CP45)<1,\"\",(AVERAGEIFS('2011 Survey responses'!BW45:CP45,'2011 Survey responses'!BW45:CP45,\">1\")))","v":4.95},{"$f":"IF(('2011 Survey responses'!BW45+'2011 Survey responses'!CG45)<2.1,\"\",(SUMIF('2011 Survey responses'!BW45,\">1\")+SUMIF('2011 Survey responses'!CG45,\">1\"))/(COUNTIF('2011 Survey responses'!BW45,\">1\")+COUNTIF('2011 Survey responses'!CG45,\">1\")))","v":5.5},{"$f":"IF(('2011 Survey responses'!BX45+'2011 Survey responses'!CH45)<2.1,\"\",(SUMIF('2011 Survey responses'!BX45,\">1\")+SUMIF('2011 Survey responses'!CH45,\">1\"))/(COUNTIF('2011 Survey responses'!BX45,\">1\")+COUNTIF('2011 Survey responses'!CH45,\">1\")))","v":5},{"$f":"IF(('2011 Survey responses'!BY45+'2011 Survey responses'!CI45)<2.1,\"\",(SUMIF('2011 Survey responses'!BY45,\">1\")+SUMIF('2011 Survey responses'!CI45,\">1\"))/(COUNTIF('2011 Survey responses'!BY45,\">1\")+COUNTIF('2011 Survey responses'!CI45,\">1\")))","v":5},{"$f":"IF('2011 Survey responses'!CQ45<0.5,\"\",'2011 Survey responses'!CQ45)","v":4},{"$f":"IF('2011 Survey responses'!CR45<0.5,\"\",'2011 Survey responses'!CR45)","v":4},{"$f":"IF('2011 Survey responses'!CS45<0.5,\"\",'2011 Survey responses'!CS45)","v":2},{"$f":"IF('2011 Survey responses'!CT45<0.5,\"\",'2011 Survey responses'!CT45)","v":2},{"$f":"IF('2011 Survey responses'!CU45<0.5,\"\",'2011 Survey responses'!CU45)","v":2},{"$f":"IF('2011 Survey responses'!CV45<0.5,\"\",'2011 Survey responses'!CV45)","v":2},{"$f":"IF(SUM('2011 Survey responses'!CW45:DL45)<1,\"\",(AVERAGE('2011 Survey responses'!CW45:DL45)))","v":4.25},{"$f":"IF(SUM('2011 Survey responses'!CW45:CZ45)<1,\"\",(AVERAGE('2011 Survey responses'!CW45:CZ45)))","v":4.5},{"$f":"IF(SUM('2011 Survey responses'!DA45:DD45)<1,\"\",(AVERAGE('2011 Survey responses'!DA45:DD45)))","v":4},{"$f":"IF(SUM('2011 Survey responses'!DE45:DH45)<1,\"\",(AVERAGE('2011 Survey responses'!DE45:DH45)))","v":4},{"$f":"IF(SUM('2011 Survey responses'!DI45:DL45)<1,\"\",(AVERAGE('2011 Survey responses'!DI45:DL45)))","v":4.5},{"$f":"IF(('2011 Survey responses'!CW45+'2011 Survey responses'!DA45+'2011 Survey responses'!DE45+'2011 Survey responses'!DI45)<1,\"\",AVERAGE('2011 Survey responses'!CW45,'2011 Survey responses'!DA45,'2011 Survey responses'!DE45,'2011 Survey responses'!DI45))","v":4.25},{"$f":"IF(('2011 Survey responses'!CX45+'2011 Survey responses'!DB45+'2011 Survey responses'!DF45+'2011 Survey responses'!DJ45)<1,\"\",AVERAGE('2011 Survey responses'!CX45,'2011 Survey responses'!DB45,'2011 Survey responses'!DF45,'2011 Survey responses'!DJ45))","v":4.25},{"$f":"IF(('2011 Survey responses'!CY45+'2011 Survey responses'!DC45+'2011 Survey responses'!DG45+'2011 Survey responses'!DK45)<1,\"\",AVERAGE('2011 Survey responses'!CY45,'2011 Survey responses'!DC45,'2011 Survey responses'!DG45,'2011 Survey responses'!DK45))","v":4},{"$f":"IF(('2011 Survey responses'!CZ45+'2011 Survey responses'!DD45+'2011 Survey responses'!DH45+'2011 Survey responses'!DL45)<1,\"\",AVERAGE('2011 Survey responses'!CZ45,'2011 Survey responses'!DD45,'2011 Survey responses'!DH45,'2011 Survey responses'!DL45))","v":4.5},{"$f":"IF('2011 Survey responses'!CW45<0.5,\"\",'2011 Survey responses'!CW45)","v":4},{"$f":"IF('2011 Survey responses'!CX45<0.5,\"\",'2011 Survey responses'!CX45)","v":5},{"$f":"IF('2011 Survey responses'!CY45<0.5,\"\",'2011 Survey responses'!CY45)","v":4},{"$f":"IF('2011 Survey responses'!CZ45<0.5,\"\",'2011 Survey responses'!CZ45)","v":5},{"$f":"IF('2011 Survey responses'!DA45<0.5,\"\",'2011 Survey responses'!DA45)","v":4},{"$f":"IF('2011 Survey responses'!DB45<0.5,\"\",'2011 Survey responses'!DB45)","v":4},{"$f":"IF('2011 Survey responses'!DC45<0.5,\"\",'2011 Survey responses'!DC45)","v":4},{"$f":"IF('2011 Survey responses'!DD45<0.5,\"\",'2011 Survey responses'!DD45)","v":4},{"$f":"IF('2011 Survey responses'!DE45<0.5,\"\",'2011 Survey responses'!DE45)","v":4},{"$f":"IF('2011 Survey responses'!DF45<0.5,\"\",'2011 Survey responses'!DF45)","v":4},{"$f":"IF('2011 Survey responses'!DG45<0.5,\"\",'2011 Survey responses'!DG45)","v":4},{"$f":"IF('2011 Survey responses'!DH45<0.5,\"\",'2011 Survey responses'!DH45)","v":4},{"$f":"IF('2011 Survey responses'!DI45<0.5,\"\",'2011 Survey responses'!DI45)","v":5},{"$f":"IF('2011 Survey responses'!DJ45<0.5,\"\",'2011 Survey responses'!DJ45)","v":4},{"$f":"IF('2011 Survey responses'!DK45<0.5,\"\",'2011 Survey responses'!DK45)","v":4},{"$f":"IF('2011 Survey responses'!DL45<0.5,\"\",'2011 Survey responses'!DL45)","v":5},{"$f":"IF('2011 Survey responses'!DU45=4,4,IF('2011 Survey responses'!DU45=5,4,\"\"))","v":4},{"$f":"IF('2011 Survey responses'!DV45=4,3,IF('2011 Survey responses'!DV45=5,3,\"\"))","v":3},2,{"$f":"IF(CQ45=2,CQ45,IF(CO45=4,CO45,IF(CP45=3,CP45,IF('2011 Survey responses'!GT45=1,1,\"\"))))","v":2},{"$f":"IF('2011 Survey responses'!DO45<0.5,\"\",'2011 Survey responses'!DO45)","v":5},{"$f":"IF('2011 Survey responses'!DP45<0.5,\"\",'2011 Survey responses'!DP45)","v":5},{"$f":"IF('2011 Survey responses'!DQ45<0.5,\"\",'2011 Survey responses'!DQ45)","v":4},{"$f":"IF('2011 Survey responses'!DR45<0.5,\"\",'2011 Survey responses'!DR45)","v":2},{"$f":"IF('2011 Survey responses'!DS45<0.5,\"\",'2011 Survey responses'!DS45)","v":4},{"$f":"IF('2011 Survey responses'!DT45<0.5,\"\",'2011 Survey responses'!DT45)","v":4},{"$f":"IF('2011 Survey responses'!DU45<0.5,\"\",'2011 Survey responses'!DU45)","v":5},{"$f":"IF('2011 Survey responses'!DV45<0.5,\"\",'2011 Survey responses'!DV45)","v":5},{"$f":"IF('2011 Survey responses'!DW45<0.5,\"\",'2011 Survey responses'!DW45)","v":3},{"$f":"IF('2011 Survey responses'!DX45<0.5,\"\",'2011 Survey responses'!DX45)","v":3},{"$f":"IF('2011 Survey responses'!DY45<0.5,\"\",'2011 Survey responses'!DY45)","v":4},{"$f":"IF('2011 Survey responses'!DZ45<0.5,\"\",'2011 Survey responses'!DZ45)","v":3},{"$f":"IF('2011 Survey responses'!EA45<0.5,\"\",'2011 Survey responses'!EA45)","v":4},{"$f":"IF('2011 Survey responses'!EB45<0.5,\"\",'2011 Survey responses'!EB45)","v":4},{"$f":"IF('2011 Survey responses'!EC45<0.5,\"\",'2011 Survey responses'!EC45)","v":4},{"$f":"IF('2011 Survey responses'!ED45<0.5,\"\",'2011 Survey responses'!ED45)","v":4},{"$f":"IF('2011 Survey responses'!EE45<0.5,\"\",'2011 Survey responses'!EE45)","v":4},{"$f":"IF('2011 Survey responses'!EF45<0.5,\"\",'2011 Survey responses'!EF45)","v":4},{"$f":"IF('2011 Survey responses'!EG45<0.5,\"\",'2011 Survey responses'!EG45)","v":5},{"$f":"IF('2011 Survey responses'!EH45<0.5,\"\",'2011 Survey responses'!EH45)","v":5},{"$f":"IF('2011 Survey responses'!EI45<0.5,\"\",'2011 Survey responses'!EI45)","v":3},{"$f":"IF('2011 Survey responses'!EJ45<0.5,\"\",'2011 Survey responses'!EJ45)","v":3},{"$f":"IF('2011 Survey responses'!EK45<0.5,\"\",'2011 Survey responses'!EK45)","v":4},{"$f":"IF('2011 Survey responses'!EL45<0.5,\"\",'2011 Survey responses'!EL45)","v":3},{"$f":"IF('2011 Survey responses'!EM45<0.5,\"\",'2011 Survey responses'!EM45)","v":5},{"$f":"IF('2011 Survey responses'!EN45<0.5,\"\",'2011 Survey responses'!EN45)","v":5},{"$f":"IF('2011 Survey responses'!EO45<0.5,\"\",'2011 Survey responses'!EO45)","v":1},{"$f":"IF('2011 Survey responses'!EP45<0.5,\"\",'2011 Survey responses'!EP45)","v":1},{"$f":"IF(('2011 Survey responses'!EW45+'2011 Survey responses'!EX45)>=2,AVERAGE('2011 Survey responses'!EW45,'2011 Survey responses'!EY45),\"\")","v":5},{"$f":"IF('2011 Survey responses'!EX45<0.5,\"\",'2011 Survey responses'!EX45)","v":4},{"$f":"IF('2011 Survey responses'!EZ45<0.5,\"\",'2011 Survey responses'!EZ45)","v":4},{"$f":"IF('2011 Survey responses'!FB45<0.5,\"\",'2011 Survey responses'!FB45)","v":5},{"$f":"IF('2011 Survey responses'!FD45<0.5,\"\",'2011 Survey responses'!FD45)","v":5},{"$f":"IF('2011 Survey responses'!FC45<0.5,\"\",'2011 Survey responses'!FC45)","v":5},{"$f":"IF(('2011 Survey responses'!EM45+'2011 Survey responses'!EN45)>=2,AVERAGE('2011 Survey responses'!EM45,'2011 Survey responses'!EN45),\"\")","v":5},{"$f":"IF('2011 Survey responses'!ES45<0.5,\"\",'2011 Survey responses'!ES45)","v":4},{"$f":"IF(('2011 Survey responses'!ET45+'2011 Survey responses'!EU45)>=2,AVERAGE('2011 Survey responses'!ET45,'2011 Survey responses'!EU45),\"\")","v":5},{"$f":"IF('2011 Survey responses'!EV45<0.5,\"\",'2011 Survey responses'!EV45)","v":4},{"$f":"IF('2011 Survey responses'!FA45<0.5,\"\",'2011 Survey responses'!FA45)","v":4},{"$f":"IF('2011 Survey responses'!ER45<0.5,\"\",'2011 Survey responses'!ER45)","v":4},{"$f":"IF(('2011 Survey responses'!EO45+'2011 Survey responses'!EP45)>=2,AVERAGE('2011 Survey responses'!EO45,'2011 Survey responses'!EP45),\"\")","v":1},{"$f":"IF('2011 Survey responses'!EQ45<0.5,\"\",'2011 Survey responses'!EQ45)","v":1},{"$f":"IF('2011 Survey responses'!ET45<0.5,\"\",'2011 Survey responses'!ET45)","v":5},{"$f":"IF('2011 Survey responses'!EU45<0.5,\"\",'2011 Survey responses'!EU45)","v":5},{"$f":"IF('2011 Survey responses'!EW45<0.5,\"\",'2011 Survey responses'!EW45)","v":5},{"$f":"IF('2011 Survey responses'!EY45<0.5,\"\",'2011 Survey responses'!EY45)","v":5},{"$f":"IF('2011 Survey responses'!FU45<0.5,\"\",'2011 Survey responses'!FU45)","v":5},{"$f":"IF(('2011 Survey responses'!FL45+'2011 Survey responses'!FM45)>=2,AVERAGE('2011 Survey responses'!FL45,'2011 Survey responses'!FM45),\"\")","v":5},{"$f":"IF(('2011 Survey responses'!FO45+'2011 Survey responses'!FQ45)>=2,AVERAGE('2011 Survey responses'!FO45,'2011 Survey responses'!FQ45),\"\")","v":4.5},{"$f":"IF('2011 Survey responses'!FJ45<0.5,\"\",'2011 Survey responses'!FJ45)","v":4},{"$f":"IF('2011 Survey responses'!FT45<0.5,\"\",'2011 Survey responses'!FT45)","v":5},{"$f":"IF('2011 Survey responses'!FR45<0.5,\"\",'2011 Survey responses'!FR45)","v":5},{"$f":"IF('2011 Survey responses'!FK45<0.5,\"\",'2011 Survey responses'!FK45)","v":5},{"$f":"IF('2011 Survey responses'!FP45<0.5,\"\",'2011 Survey responses'!FP45)","v":5},{"$f":"IF('2011 Survey responses'!FN45<0.5,\"\",'2011 Survey responses'!FN45)","v":4},{"$f":"IF(('2011 Survey responses'!FE45+'2011 Survey responses'!FF45)>=2,AVERAGE('2011 Survey responses'!FE45,'2011 Survey responses'!FF45),\"\")","v":5},{"$f":"IF('2011 Survey responses'!FS45<0.5,\"\",'2011 Survey responses'!FS45)","v":5},{"$f":"IF('2011 Survey responses'!FV45<0.5,\"\",'2011 Survey responses'!FV45)","v":5},{"$f":"IF(('2011 Survey responses'!FG45+'2011 Survey responses'!FH45)>=2,AVERAGE('2011 Survey responses'!FG45,'2011 Survey responses'!FH45),\"\")","v":5},{"$f":"IF('2011 Survey responses'!FI45<0.5,\"\",'2011 Survey responses'!FI45)","v":""},{"$f":"IF('2011 Survey responses'!FE45<0.5,\"\",'2011 Survey responses'!FE45)","v":5},{"$f":"IF('2011 Survey responses'!FF45<0.5,\"\",'2011 Survey responses'!FF45)","v":5},{"$f":"IF('2011 Survey responses'!FG45<0.5,\"\",'2011 Survey responses'!FG45)","v":""},{"$f":"IF('2011 Survey responses'!FH45<0.5,\"\",'2011 Survey responses'!FH45)","v":5},{"$f":"IF('2011 Survey responses'!FL45<0.5,\"\",'2011 Survey responses'!FL45)","v":5},{"$f":"IF('2011 Survey responses'!FM45<0.5,\"\",'2011 Survey responses'!FM45)","v":5},{"$f":"IF('2011 Survey responses'!FO45<0.5,\"\",'2011 Survey responses'!FO45)","v":4},{"$f":"IF('2011 Survey responses'!FQ45<0.5,\"\",'2011 Survey responses'!FQ45)","v":5}]
["Cyprus",{"$f":"IF(SUM(F46)<1,\"\",AVERAGEIF('2011 Survey responses'!B46:CP46,\">1\"))","v":4.615384615384615},{"$f":"IF(SUM(F46)<1,\"\",AVERAGEIF('2011 Survey responses'!B46:AO46,\">1\"))","v":4.7142857142857144},{"$f":"IF(SUM(F46)<1,\"\",AVERAGEIF('2011 Survey responses'!B46:BV46,\">1\"))","v":4.7166666666666668},{"$f":"IF(SUM(F46)<1,\"\",AVERAGEIF('2011 Survey responses'!V46:BV46,\">1\"))","v":4.958333333333333},{"$f":"IF(SUM('2011 Survey responses'!B46:U46)<1,\"\",(AVERAGEIFS('2011 Survey responses'!B46:U46,'2011 Survey responses'!B46:U46,\">1\")))","v":3.75},{"$f":"IF(SUM('2011 Survey responses'!B46:H46)<1,\"\",(AVERAGEIFS('2011 Survey responses'!B46:H46,'2011 Survey responses'!B46:H46,\">1\")))","v":4.75},{"$f":"IF(SUM('2011 Survey responses'!I46:S46)<1,\"\",(AVERAGEIFS('2011 Survey responses'!I46:S46,'2011 Survey responses'!I46:S46,\">1\")))","v":3.6666666666666665},{"$f":"IF(SUM('2011 Survey responses'!T46:U46)<2.1,\"\",(AVERAGEIFS('2011 Survey responses'!T46:U46,'2011 Survey responses'!T46:U46,\">1\")))","v":2},{"$f":"IF(SUM('2011 Survey responses'!B46:C46)<2.1,\"\",((SUMIF('2011 Survey responses'!B46:C46,\">1\")+SUMIF('2011 Survey responses'!F46,\">1\"))/(COUNTIF('2011 Survey responses'!B46:C46,\">1\")+COUNTIF('2011 Survey responses'!F46,\">1\"))))","v":4},{"$f":"IF(SUM('2011 Survey responses'!D46:E46)<2.1,\"\",(AVERAGEIFS('2011 Survey responses'!D46:E46,'2011 Survey responses'!D46:E46,\">1\")))","v":6},{"$f":"IF(('2011 Survey responses'!B46+'2011 Survey responses'!D46)<2.1,\"\",((SUMIF('2011 Survey responses'!B46,\">1\")+SUMIF('2011 Survey responses'!D46,\">1\")+SUMIF('2011 Survey responses'!F46,\">1\")+SUMIF('2011 Survey responses'!K46,\">1\"))/(COUNTIF('2011 Survey responses'!B46,\">1\")+COUNTIF('2011 Survey responses'!D46,\">1\")+COUNTIF('2011 Survey responses'!F46,\">1\")+COUNTIF('2011 Survey responses'!K46,\">1\"))))","v":5},{"$f":"IF(SUM('2011 Survey responses'!G46:H46)<2.1,\"\",(AVERAGEIFS('2011 Survey responses'!G46:H46,'2011 Survey responses'!G46:H46,\">1\")))","v":5},{"$f":"IF(SUM('2011 Survey responses'!F46:G46)<1.5,\"\",MAX('2011 Survey responses'!F46,'2011 Survey responses'!G46))","v":3},{"$f":"IF(SUM('2011 Survey responses'!G46:H46)<1,\"\",MAX('2011 Survey responses'!G46,'2011 Survey responses'!H46))","v":5},{"$f":"IF(SUM('2011 Survey responses'!I46:L46)<4.1,\"\",(AVERAGEIFS('2011 Survey responses'!I46:L46,'2011 Survey responses'!I46:L46,\">1\")))","v":5.5},{"$f":"IF(SUM('2011 Survey responses'!M46:S46)<4.1,\"\",(AVERAGEIFS('2011 Survey responses'!M46:S46,'2011 Survey responses'!M46:S46,\">1\")))","v":2.75},{"$f":"IF(SUM('2011 Survey responses'!T46:U46)<2.1,\"\",(AVERAGEIFS('2011 Survey responses'!T46:U46,'2011 Survey responses'!T46:U46,\">1\")))","v":2},{"$f":"IF(SUM('2011 Survey responses'!V46:AO46)<1,\"\",(AVERAGEIFS('2011 Survey responses'!V46:AO46,'2011 Survey responses'!V46:AO46,\">1\")))","v":5.4375},{"$f":"IF(SUM('2011 Survey responses'!V46:AA46)<1,\"\",(AVERAGEIFS('2011 Survey responses'!V46:AA46,'2011 Survey responses'!V46:AA46,\">1\")))","v":5},{"$f":"IF(SUM('2011 Survey responses'!AB46:AH46)<1,\"\",(AVERAGEIFS('2011 Survey responses'!AB46:AH46,'2011 Survey responses'!AB46:AH46,\">1\")))","v":6},{"$f":"IF(SUM('2011 Survey responses'!AI46:AO46)<1,\"\",(AVERAGEIFS('2011 Survey responses'!AI46:AO46,'2011 Survey responses'!AI46:AO46,\">1\")))","v":5},{"$f":"IF(('2011 Survey responses'!Y46+'2011 Survey responses'!AI46+'2011 Survey responses'!AK46)<3.1,\"\",((SUMIF('2011 Survey responses'!Y46,\">1\")+SUMIF('2011 Survey responses'!AI46,\">1\")+SUMIF('2011 Survey responses'!AK46,\">1\")+SUMIF('2011 Survey responses'!AM46,\">1\"))/(COUNTIF('2011 Survey responses'!Y46,\">1\")+COUNTIF('2011 Survey responses'!AI46,\">1\")+COUNTIF('2011 Survey responses'!AK46,\">1\")+COUNTIF('2011 Survey responses'!AM46,\">1\"))))","v":5},{"$f":"IF(('2011 Survey responses'!W46)<1.1,\"\",('2011 Survey responses'!W46))","v":5},{"$f":"IF(('2011 Survey responses'!Y46)<1.1,\"\",('2011 Survey responses'!Y46))","v":5},{"$f":"IF(('2011 Survey responses'!Z46)<1.1,\"\",('2011 Survey responses'!Z46))","v":""},{"$f":"IF(('2011 Survey responses'!V46+'2011 Survey responses'!X46+'2011 Survey responses'!AA46)<3.1,\"\",((SUMIF('2011 Survey responses'!V46,\">1\")+SUMIF('2011 Survey responses'!X46,\">1\")+SUMIF('2011 Survey responses'!AA46,\">1\"))/(COUNTIF('2011 Survey responses'!V46,\">1\")+COUNTIF('2011 Survey responses'!X46,\">1\")+COUNTIF('2011 Survey responses'!AA46,\">1\"))))","v":5},{"$f":"IF(('2011 Survey responses'!V46+'2011 Survey responses'!Y46+'2011 Survey responses'!AA46)<3.1,\"\",((SUMIF('2011 Survey responses'!V46,\">1\")+SUMIF('2011 Survey responses'!Y46,\">1\")+SUMIF('2011 Survey responses'!AA46,\">1\"))/(COUNTIF('2011 Survey responses'!V46,\">1\")+COUNTIF('2011 Survey responses'!Y46,\">1\")+COUNTIF('2011 Survey responses'!AA46,\">1\"))))","v":5},{"$f":"IF(SUM('2011 Survey responses'!AB46:AH46)<1,\"\",(AVERAGEIFS('2011 Survey responses'!AB46:AH46,'2011 Survey responses'!AB46:AH46,\">1\")))","v":6},{"$f":"IF(SUM('2011 Survey responses'!AI46:AO46)<7.1,\"\",(AVERAGEIFS('2011 Survey responses'!AI46:AO46,'2011 Survey responses'!AI46:AO46,\">1\")))","v":5},{"$f":"IF(('2011 Survey responses'!AH46)<1.1,\"\",('2011 Survey responses'!AH46))","v":6},{"$f":"IF(SUM('2011 Survey responses'!AP46:BV46)<1,\"\",(AVERAGEIFS('2011 Survey responses'!AP46:BV46,'2011 Survey responses'!AP46:BV46,\">1\")))","v":4.71875},{"$f":"IF(SUM('2011 Survey responses'!AP46:AS46)<4.1,\"\",(AVERAGEIFS('2011 Survey responses'!AP46:AS46,'2011 Survey responses'!AP46:AS46,\">1\")))","v":4.25},{"$f":"IF(SUM('2011 Survey responses'!AT46:BF46)<1,\"\",(AVERAGEIFS('2011 Survey responses'!AT46:BF46,'2011 Survey responses'!AT46:BF46,\">1\")))","v":4.833333333333333},{"$f":"IF(SUM('2011 Survey responses'!BG46:BO46)<1,\"\",(AVERAGEIFS('2011 Survey responses'!BG46:BO46,'2011 Survey responses'!BG46:BO46,\">1\")))","v":5.4444444444444446},{"$f":"IF(SUM('2011 Survey responses'!BP46:BS46)<1,\"\",(AVERAGEIFS('2011 Survey responses'!BP46:BS46,'2011 Survey responses'!BP46:BS46,\">1\")))","v":3.5},{"$f":"IF(SUM('2011 Survey responses'!BT46:BV46)<3.1,\"\",(AVERAGEIFS('2011 Survey responses'!BT46:BV46,'2011 Survey responses'!BT46:BV46,\">1\")))","v":4.333333333333333},{"$f":"IF(('2011 Survey responses'!AQ46+'2011 Survey responses'!AR46+'2011 Survey responses'!BG46)<3.1,\"\",((SUMIF('2011 Survey responses'!AQ46,\">1\")+SUMIF('2011 Survey responses'!AR46,\">1\")+SUMIF('2011 Survey responses'!BG46,\">1\"))/(COUNTIF('2011 Survey responses'!AQ46,\">1\")+COUNTIF('2011 Survey responses'!AR46,\">1\")+COUNTIF('2011 Survey responses'!BG46,\">1\"))))","v":5.333333333333333},{"$f":"IF(SUM('2011 Survey responses'!AP46:AS46)<4.1,\"\",(AVERAGEIFS('2011 Survey responses'!AP46:AS46,'2011 Survey responses'!AP46:AS46,\">1\")))","v":4.25},{"$f":"IF(('2011 Survey responses'!AU46+'2011 Survey responses'!AX46+'2011 Survey responses'!BA46+'2011 Survey responses'!BC46+'2011 Survey responses'!BD46)<5.1,\"\",(SUMIF('2011 Survey responses'!AU46,\">1\")+SUMIF('2011 Survey responses'!AX46,\">1\")+SUMIF('2011 Survey responses'!BA46,\">1\")+SUMIF('2011 Survey responses'!BC46,\">1\")+SUMIF('2011 Survey responses'!BD46,\">1\"))/(COUNTIF('2011 Survey responses'!AU46,\">1\")+COUNTIF('2011 Survey responses'!AX46,\">1\")+COUNTIF('2011 Survey responses'!BA46,\">1\")+COUNTIF('2011 Survey responses'!BC46,\">1\")+COUNTIF('2011 Survey responses'!BD46,\">1\")))","v":5},{"$f":"IF(('2011 Survey responses'!AT46)<1.1,\"\",('2011 Survey responses'!AT46))","v":5},{"$f":"IF(SUM('2011 Survey responses'!AV46:AW46)<2.1,\"\",(AVERAGEIFS('2011 Survey responses'!AV46:AW46,'2011 Survey responses'!AV46:AW46,\">1\")))","v":5},{"$f":"IF(('2011 Survey responses'!AW46+'2011 Survey responses'!AY46)<2.1,\"\",(SUMIF('2011 Survey responses'!AW46,\">1\")+SUMIF('2011 Survey responses'!AY46,\">1\"))/(COUNTIF('2011 Survey responses'!AW46,\">1\")+COUNTIF('2011 Survey responses'!AY46,\">1\")))","v":4.5},{"$f":"IF(('2011 Survey responses'!AZ46)<1.1,\"\",('2011 Survey responses'!AZ46))","v":5},5,5,2,5,{"$f":"IF(('2011 Survey responses'!BE46)<1.1,\"\",('2011 Survey responses'!BE46))","v":""},{"$f":"IF(('2011 Survey responses'!AY46+'2011 Survey responses'!BB46+'2011 Survey responses'!BF46)<3.1,\"\",(SUMIF('2011 Survey responses'!AY46,\">1\")+SUMIF('2011 Survey responses'!BB46,\">1\")+SUMIF('2011 Survey responses'!BF46,\">1\"))/(COUNTIF('2011 Survey responses'!AY46,\">1\")+COUNTIF('2011 Survey responses'!BB46,\">1\")+COUNTIF('2011 Survey responses'!BF46,\">1\")))","v":4.333333333333333},4.4722222222222223,{"$f":"IF(SUM('2011 Survey responses'!BT46:BV46)<3.1,\"\",(AVERAGEIFS('2011 Survey responses'!BT46:BV46,'2011 Survey responses'!BT46:BV46,\">1\")))","v":4.333333333333333},{"$f":"IF(SUM('2011 Survey responses'!BW46:CP46)<1,\"\",(AVERAGEIFS('2011 Survey responses'!BW46:CP46,'2011 Survey responses'!BW46:CP46,\">1\")))","v":4.2777777777777777},{"$f":"IF(SUM('2011 Survey responses'!BW46:CF46)<1,\"\",(AVERAGEIFS('2011 Survey responses'!BW46:CF46,'2011 Survey responses'!BW46:CF46,\">1\")))","v":4.333333333333333},{"$f":"IF(SUM('2011 Survey responses'!CG46:CP46)<1,\"\",(AVERAGEIFS('2011 Survey responses'!CG46:CP46,'2011 Survey responses'!CG46:CP46,\">1\")))","v":4.2222222222222223},{"$f":"IF(SUM('2011 Survey responses'!BX46:CF46)<1,\"\",(AVERAGEIFS('2011 Survey responses'!BX46:CF46,'2011 Survey responses'!BX46:CF46,\">1\")))","v":4.25},{"$f":"IF(SUM('2011 Survey responses'!CH46:CP46)<1,\"\",(AVERAGEIFS('2011 Survey responses'!CH46:CP46,'2011 Survey responses'!CH46:CP46,\">1\")))","v":4.125},{"$f":"IF(SUM('2011 Survey responses'!BW46:CP46)<1,\"\",(AVERAGEIFS('2011 Survey responses'!BW46:CP46,'2011 Survey responses'!BW46:CP46,\">1\")))","v":4.2777777777777777},{"$f":"IF(('2011 Survey responses'!BW46+'2011 Survey responses'!CG46)<2.1,\"\",(SUMIF('2011 Survey responses'!BW46,\">1\")+SUMIF('2011 Survey responses'!CG46,\">1\"))/(COUNTIF('2011 Survey responses'!BW46,\">1\")+COUNTIF('2011 Survey responses'!CG46,\">1\")))","v":5},{"$f":"IF(('2011 Survey responses'!BX46+'2011 Survey responses'!CH46)<2.1,\"\",(SUMIF('2011 Survey responses'!BX46,\">1\")+SUMIF('2011 Survey responses'!CH46,\">1\"))/(COUNTIF('2011 Survey responses'!BX46,\">1\")+COUNTIF('2011 Survey responses'!CH46,\">1\")))","v":5},{"$f":"IF(('2011 Survey responses'!BY46+'2011 Survey responses'!CI46)<2.1,\"\",(SUMIF('2011 Survey responses'!BY46,\">1\")+SUMIF('2011 Survey responses'!CI46,\">1\"))/(COUNTIF('2011 Survey responses'!BY46,\">1\")+COUNTIF('2011 Survey responses'!CI46,\">1\")))","v":""},{"$f":"IF('2011 Survey responses'!CQ46<0.5,\"\",'2011 Survey responses'!CQ46)","v":5},{"$f":"IF('2011 Survey responses'!CR46<0.5,\"\",'2011 Survey responses'!CR46)","v":5},{"$f":"IF('2011 Survey responses'!CS46<0.5,\"\",'2011 Survey responses'!CS46)","v":3},{"$f":"IF('2011 Survey responses'!CT46<0.5,\"\",'2011 Survey responses'!CT46)","v":1},{"$f":"IF('2011 Survey responses'!CU46<0.5,\"\",'2011 Survey responses'!CU46)","v":4},{"$f":"IF('2011 Survey responses'!CV46<0.5,\"\",'2011 Survey responses'!CV46)","v":1},{"$f":"IF(SUM('2011 Survey responses'!CW46:DL46)<1,\"\",(AVERAGE('2011 Survey responses'!CW46:DL46)))","v":3},{"$f":"IF(SUM('2011 Survey responses'!CW46:CZ46)<1,\"\",(AVERAGE('2011 Survey responses'!CW46:CZ46)))","v":3},{"$f":"IF(SUM('2011 Survey responses'!DA46:DD46)<1,\"\",(AVERAGE('2011 Survey responses'!DA46:DD46)))","v":3},{"$f":"IF(SUM('2011 Survey responses'!DE46:DH46)<1,\"\",(AVERAGE('2011 Survey responses'!DE46:DH46)))","v":3},{"$f":"IF(SUM('2011 Survey responses'!DI46:DL46)<1,\"\",(AVERAGE('2011 Survey responses'!DI46:DL46)))","v":3},{"$f":"IF(('2011 Survey responses'!CW46+'2011 Survey responses'!DA46+'2011 Survey responses'!DE46+'2011 Survey responses'!DI46)<1,\"\",AVERAGE('2011 Survey responses'!CW46,'2011 Survey responses'!DA46,'2011 Survey responses'!DE46,'2011 Survey responses'!DI46))","v":3},{"$f":"IF(('2011 Survey responses'!CX46+'2011 Survey responses'!DB46+'2011 Survey responses'!DF46+'2011 Survey responses'!DJ46)<1,\"\",AVERAGE('2011 Survey responses'!CX46,'2011 Survey responses'!DB46,'2011 Survey responses'!DF46,'2011 Survey responses'!DJ46))","v":3},{"$f":"IF(('2011 Survey responses'!CY46+'2011 Survey responses'!DC46+'2011 Survey responses'!DG46+'2011 Survey responses'!DK46)<1,\"\",AVERAGE('2011 Survey responses'!CY46,'2011 Survey responses'!DC46,'2011 Survey responses'!DG46,'2011 Survey responses'!DK46))","v":3},{"$f":"IF(('2011 Survey responses'!CZ46+'2011 Survey responses'!DD46+'2011 Survey responses'!DH46+'2011 Survey responses'!DL46)<1,\"\",AVERAGE('2011 Survey responses'!CZ46,'2011 Survey responses'!DD46,'2011 Survey responses'!DH46,'2011 Survey responses'!DL46))","v":3},{"$f":"IF('2011 Survey responses'!CW46<0.5,\"\",'2011 Survey responses'!CW46)","v":3},{"$f":"IF('2011 Survey responses'!CX46<0.5,\"\",'2011 Survey responses'!CX46)","v":3},{"$f":"IF('2011 Survey responses'!CY46<0.5,\"\",'2011 Survey responses'!CY46)","v":3},{"$f":"IF('2011 Survey responses'!CZ46<0.5,\"\",'2011 Survey responses'!CZ46)","v":3},{"$f":"IF('2011 Survey responses'!DA46<0.5,\"\",'2011 Survey responses'!DA46)","v":3},{"$f":"IF('2011 Survey responses'!DB46<0.5,\"\",'2011 Survey responses'!DB46)","v":3},{"$f":"IF('2011 Survey responses'!DC46<0.5,\"\",'2011 Survey responses'!DC46)","v":3},{"$f":"IF('2011 Survey responses'!DD46<0.5,\"\",'2011 Survey responses'!DD46)","v":3},{"$f":"IF('2011 Survey responses'!DE46<0.5,\"\",'2011 Survey responses'!DE46)","v":3},{"$f":"IF('2011 Survey responses'!DF46<0.5,\"\",'2011 Survey responses'!DF46)","v":3},{"$f":"IF('2011 Survey responses'!DG46<0.5,\"\",'2011 Survey responses'!DG46)","v":3},{"$f":"IF('2011 Survey responses'!DH46<0.5,\"\",'2011 Survey responses'!DH46)","v":3},{"$f":"IF('2011 Survey responses'!DI46<0.5,\"\",'2011 Survey responses'!DI46)","v":3},{"$f":"IF('2011 Survey responses'!DJ46<0.5,\"\",'2011 Survey responses'!DJ46)","v":3},{"$f":"IF('2011 Survey responses'!DK46<0.5,\"\",'2011 Survey responses'!DK46)","v":3},{"$f":"IF('2011 Survey responses'!DL46<0.5,\"\",'2011 Survey responses'!DL46)","v":3},{"$f":"IF('2011 Survey responses'!DU46=4,4,IF('2011 Survey responses'!DU46=5,4,\"\"))","v":""},{"$f":"IF('2011 Survey responses'!DV46=4,3,IF('2011 Survey responses'!DV46=5,3,\"\"))","v":3},"",{"$f":"IF(CQ46=2,CQ46,IF(CO46=4,CO46,IF(CP46=3,CP46,IF('2011 Survey responses'!GT46=1,1,\"\"))))","v":3},{"$f":"IF('2011 Survey responses'!DO46<0.5,\"\",'2011 Survey responses'!DO46)","v":4},{"$f":"IF('2011 Survey responses'!DP46<0.5,\"\",'2011 Survey responses'!DP46)","v":5},{"$f":"IF('2011 Survey responses'!DQ46<0.5,\"\",'2011 Survey responses'!DQ46)","v":4},{"$f":"IF('2011 Survey responses'!DR46<0.5,\"\",'2011 Survey responses'!DR46)","v":2},{"$f":"IF('2011 Survey responses'!DS46<0.5,\"\",'2011 Survey responses'!DS46)","v":4},{"$f":"IF('2011 Survey responses'!DT46<0.5,\"\",'2011 Survey responses'!DT46)","v":5},{"$f":"IF('2011 Survey responses'!DU46<0.5,\"\",'2011 Survey responses'!DU46)","v":3},{"$f":"IF('2011 Survey responses'!DV46<0.5,\"\",'2011 Survey responses'!DV46)","v":5},{"$f":"IF('2011 Survey responses'!DW46<0.5,\"\",'2011 Survey responses'!DW46)","v":5},{"$f":"IF('2011 Survey responses'!DX46<0.5,\"\",'2011 Survey responses'!DX46)","v":5},{"$f":"IF('2011 Survey responses'!DY46<0.5,\"\",'2011 Survey responses'!DY46)","v":4},{"$f":"IF('2011 Survey responses'!DZ46<0.5,\"\",'2011 Survey responses'!DZ46)","v":4},{"$f":"IF('2011 Survey responses'!EA46<0.5,\"\",'2011 Survey responses'!EA46)","v":3},{"$f":"IF('2011 Survey responses'!EB46<0.5,\"\",'2011 Survey responses'!EB46)","v":3},{"$f":"IF('2011 Survey responses'!EC46<0.5,\"\",'2011 Survey responses'!EC46)","v":3},{"$f":"IF('2011 Survey responses'!ED46<0.5,\"\",'2011 Survey responses'!ED46)","v":3},{"$f":"IF('2011 Survey responses'!EE46<0.5,\"\",'2011 Survey responses'!EE46)","v":5},{"$f":"IF('2011 Survey responses'!EF46<0.5,\"\",'2011 Survey responses'!EF46)","v":3},{"$f":"IF('2011 Survey responses'!EG46<0.5,\"\",'2011 Survey responses'!EG46)","v":3},{"$f":"IF('2011 Survey responses'!EH46<0.5,\"\",'2011 Survey responses'!EH46)","v":5},{"$f":"IF('2011 Survey responses'!EI46<0.5,\"\",'2011 Survey responses'!EI46)","v":5},{"$f":"IF('2011 Survey responses'!EJ46<0.5,\"\",'2011 Survey responses'!EJ46)","v":5},{"$f":"IF('2011 Survey responses'!EK46<0.5,\"\",'2011 Survey responses'!EK46)","v":4},{"$f":"IF('2011 Survey responses'!EL46<0.5,\"\",'2011 Survey responses'!EL46)","v":4},{"$f":"IF('2011 Survey responses'!EM46<0.5,\"\",'2011 Survey responses'!EM46)","v":2},{"$f":"IF('2011 Survey responses'!EN46<0.5,\"\",'2011 Survey responses'!EN46)","v":4},{"$f":"IF('2011 Survey responses'!EO46<0.5,\"\",'2011 Survey responses'!EO46)","v":1},{"$f":"IF('2011 Survey responses'!EP46<0.5,\"\",'2011 Survey responses'!EP46)","v":1},{"$f":"IF(('2011 Survey responses'!EW46+'2011 Survey responses'!EX46)>=2,AVERAGE('2011 Survey responses'!EW46,'2011 Survey responses'!EY46),\"\")","v":5},{"$f":"IF('2011 Survey responses'!EX46<0.5,\"\",'2011 Survey responses'!EX46)","v":5},{"$f":"IF('2011 Survey responses'!EZ46<0.5,\"\",'2011 Survey responses'!EZ46)","v":5},{"$f":"IF('2011 Survey responses'!FB46<0.5,\"\",'2011 Survey responses'!FB46)","v":5},{"$f":"IF('2011 Survey responses'!FD46<0.5,\"\",'2011 Survey responses'!FD46)","v":5},{"$f":"IF('2011 Survey responses'!FC46<0.5,\"\",'2011 Survey responses'!FC46)","v":5},{"$f":"IF(('2011 Survey responses'!EM46+'2011 Survey responses'!EN46)>=2,AVERAGE('2011 Survey responses'!EM46,'2011 Survey responses'!EN46),\"\")","v":3},{"$f":"IF('2011 Survey responses'!ES46<0.5,\"\",'2011 Survey responses'!ES46)","v":4},{"$f":"IF(('2011 Survey responses'!ET46+'2011 Survey responses'!EU46)>=2,AVERAGE('2011 Survey responses'!ET46,'2011 Survey responses'!EU46),\"\")","v":5},{"$f":"IF('2011 Survey responses'!EV46<0.5,\"\",'2011 Survey responses'!EV46)","v":5},{"$f":"IF('2011 Survey responses'!FA46<0.5,\"\",'2011 Survey responses'!FA46)","v":5},{"$f":"IF('2011 Survey responses'!ER46<0.5,\"\",'2011 Survey responses'!ER46)","v":4},{"$f":"IF(('2011 Survey responses'!EO46+'2011 Survey responses'!EP46)>=2,AVERAGE('2011 Survey responses'!EO46,'2011 Survey responses'!EP46),\"\")","v":1},{"$f":"IF('2011 Survey responses'!EQ46<0.5,\"\",'2011 Survey responses'!EQ46)","v":3},{"$f":"IF('2011 Survey responses'!ET46<0.5,\"\",'2011 Survey responses'!ET46)","v":5},{"$f":"IF('2011 Survey responses'!EU46<0.5,\"\",'2011 Survey responses'!EU46)","v":5},{"$f":"IF('2011 Survey responses'!EW46<0.5,\"\",'2011 Survey responses'!EW46)","v":5},{"$f":"IF('2011 Survey responses'!EY46<0.5,\"\",'2011 Survey responses'!EY46)","v":5},{"$f":"IF('2011 Survey responses'!FU46<0.5,\"\",'2011 Survey responses'!FU46)","v":5},{"$f":"IF(('2011 Survey responses'!FL46+'2011 Survey responses'!FM46)>=2,AVERAGE('2011 Survey responses'!FL46,'2011 Survey responses'!FM46),\"\")","v":5},{"$f":"IF(('2011 Survey responses'!FO46+'2011 Survey responses'!FQ46)>=2,AVERAGE('2011 Survey responses'!FO46,'2011 Survey responses'!FQ46),\"\")","v":5},{"$f":"IF('2011 Survey responses'!FJ46<0.5,\"\",'2011 Survey responses'!FJ46)","v":5},{"$f":"IF('2011 Survey responses'!FT46<0.5,\"\",'2011 Survey responses'!FT46)","v":5},{"$f":"IF('2011 Survey responses'!FR46<0.5,\"\",'2011 Survey responses'!FR46)","v":5},{"$f":"IF('2011 Survey responses'!FK46<0.5,\"\",'2011 Survey responses'!FK46)","v":5},{"$f":"IF('2011 Survey responses'!FP46<0.5,\"\",'2011 Survey responses'!FP46)","v":5},{"$f":"IF('2011 Survey responses'!FN46<0.5,\"\",'2011 Survey responses'!FN46)","v":5},{"$f":"IF(('2011 Survey responses'!FE46+'2011 Survey responses'!FF46)>=2,AVERAGE('2011 Survey responses'!FE46,'2011 Survey responses'!FF46),\"\")","v":5},{"$f":"IF('2011 Survey responses'!FS46<0.5,\"\",'2011 Survey responses'!FS46)","v":5},{"$f":"IF('2011 Survey responses'!FV46<0.5,\"\",'2011 Survey responses'!FV46)","v":5},{"$f":"IF(('2011 Survey responses'!FG46+'2011 Survey responses'!FH46)>=2,AVERAGE('2011 Survey responses'!FG46,'2011 Survey responses'!FH46),\"\")","v":3},{"$f":"IF('2011 Survey responses'!FI46<0.5,\"\",'2011 Survey responses'!FI46)","v":5},{"$f":"IF('2011 Survey responses'!FE46<0.5,\"\",'2011 Survey responses'!FE46)","v":5},{"$f":"IF('2011 Survey responses'!FF46<0.5,\"\",'2011 Survey responses'!FF46)","v":5},{"$f":"IF('2011 Survey responses'!FG46<0.5,\"\",'2011 Survey responses'!FG46)","v":3},{"$f":"IF('2011 Survey responses'!FH46<0.5,\"\",'2011 Survey responses'!FH46)","v":3},{"$f":"IF('2011 Survey responses'!FL46<0.5,\"\",'2011 Survey responses'!FL46)","v":5},{"$f":"IF('2011 Survey responses'!FM46<0.5,\"\",'2011 Survey responses'!FM46)","v":5},{"$f":"IF('2011 Survey responses'!FO46<0.5,\"\",'2011 Survey responses'!FO46)","v":5},{"$f":"IF('2011 Survey responses'!FQ46<0.5,\"\",'2011 Survey responses'!FQ46)","v":5}]
["Czech Republic",{"$f":"IF(SUM(F47)<1,\"\",AVERAGEIF('2011 Survey responses'!B47:CP47,\">1\"))","v":5.0119047619047619},{"$f":"IF(SUM(F47)<1,\"\",AVERAGEIF('2011 Survey responses'!B47:AO47,\">1\"))","v":5},{"$f":"IF(SUM(F47)<1,\"\",AVERAGEIF('2011 Survey responses'!B47:BV47,\">1\"))","v":5.0882352941176467},{"$f":"IF(SUM(F47)<1,\"\",AVERAGEIF('2011 Survey responses'!V47:BV47,\">1\"))","v":5.1538461538461542},{"$f":"IF(SUM('2011 Survey responses'!B47:U47)<1,\"\",(AVERAGEIFS('2011 Survey responses'!B47:U47,'2011 Survey responses'!B47:U47,\">1\")))","v":4.875},{"$f":"IF(SUM('2011 Survey responses'!B47:H47)<1,\"\",(AVERAGEIFS('2011 Survey responses'!B47:H47,'2011 Survey responses'!B47:H47,\">1\")))","v":4.5},{"$f":"IF(SUM('2011 Survey responses'!I47:S47)<1,\"\",(AVERAGEIFS('2011 Survey responses'!I47:S47,'2011 Survey responses'!I47:S47,\">1\")))","v":4.875},{"$f":"IF(SUM('2011 Survey responses'!T47:U47)<2.1,\"\",(AVERAGEIFS('2011 Survey responses'!T47:U47,'2011 Survey responses'!T47:U47,\">1\")))","v":6},{"$f":"IF(SUM('2011 Survey responses'!B47:C47)<2.1,\"\",((SUMIF('2011 Survey responses'!B47:C47,\">1\")+SUMIF('2011 Survey responses'!F47,\">1\"))/(COUNTIF('2011 Survey responses'!B47:C47,\">1\")+COUNTIF('2011 Survey responses'!F47,\">1\"))))","v":4.333333333333333},{"$f":"IF(SUM('2011 Survey responses'!D47:E47)<2.1,\"\",(AVERAGEIFS('2011 Survey responses'!D47:E47,'2011 Survey responses'!D47:E47,\">1\")))","v":6},{"$f":"IF(('2011 Survey responses'!B47+'2011 Survey responses'!D47)<2.1,\"\",((SUMIF('2011 Survey responses'!B47,\">1\")+SUMIF('2011 Survey responses'!D47,\">1\")+SUMIF('2011 Survey responses'!F47,\">1\")+SUMIF('2011 Survey responses'!K47,\">1\"))/(COUNTIF('2011 Survey responses'!B47,\">1\")+COUNTIF('2011 Survey responses'!D47,\">1\")+COUNTIF('2011 Survey responses'!F47,\">1\")+COUNTIF('2011 Survey responses'!K47,\">1\"))))","v":5.25},{"$f":"IF(SUM('2011 Survey responses'!G47:H47)<2.1,\"\",(AVERAGEIFS('2011 Survey responses'!G47:H47,'2011 Survey responses'!G47:H47,\">1\")))","v":4},{"$f":"IF(SUM('2011 Survey responses'!F47:G47)<1.5,\"\",MAX('2011 Survey responses'!F47,'2011 Survey responses'!G47))","v":5},{"$f":"IF(SUM('2011 Survey responses'!G47:H47)<1,\"\",MAX('2011 Survey responses'!G47,'2011 Survey responses'!H47))","v":4},{"$f":"IF(SUM('2011 Survey responses'!I47:L47)<4.1,\"\",(AVERAGEIFS('2011 Survey responses'!I47:L47,'2011 Survey responses'!I47:L47,\">1\")))","v":4.333333333333333},{"$f":"IF(SUM('2011 Survey responses'!M47:S47)<4.1,\"\",(AVERAGEIFS('2011 Survey responses'!M47:S47,'2011 Survey responses'!M47:S47,\">1\")))","v":5.2},{"$f":"IF(SUM('2011 Survey responses'!T47:U47)<2.1,\"\",(AVERAGEIFS('2011 Survey responses'!T47:U47,'2011 Survey responses'!T47:U47,\">1\")))","v":6},{"$f":"IF(SUM('2011 Survey responses'!V47:AO47)<1,\"\",(AVERAGEIFS('2011 Survey responses'!V47:AO47,'2011 Survey responses'!V47:AO47,\">1\")))","v":5.1052631578947372},{"$f":"IF(SUM('2011 Survey responses'!V47:AA47)<1,\"\",(AVERAGEIFS('2011 Survey responses'!V47:AA47,'2011 Survey responses'!V47:AA47,\">1\")))","v":5.8},{"$f":"IF(SUM('2011 Survey responses'!AB47:AH47)<1,\"\",(AVERAGEIFS('2011 Survey responses'!AB47:AH47,'2011 Survey responses'!AB47:AH47,\">1\")))","v":4.7142857142857144},{"$f":"IF(SUM('2011 Survey responses'!AI47:AO47)<1,\"\",(AVERAGEIFS('2011 Survey responses'!AI47:AO47,'2011 Survey responses'!AI47:AO47,\">1\")))","v":5},{"$f":"IF(('2011 Survey responses'!Y47+'2011 Survey responses'!AI47+'2011 Survey responses'!AK47)<3.1,\"\",((SUMIF('2011 Survey responses'!Y47,\">1\")+SUMIF('2011 Survey responses'!AI47,\">1\")+SUMIF('2011 Survey responses'!AK47,\">1\")+SUMIF('2011 Survey responses'!AM47,\">1\"))/(COUNTIF('2011 Survey responses'!Y47,\">1\")+COUNTIF('2011 Survey responses'!AI47,\">1\")+COUNTIF('2011 Survey responses'!AK47,\">1\")+COUNTIF('2011 Survey responses'!AM47,\">1\"))))","v":5.5},{"$f":"IF(('2011 Survey responses'!W47)<1.1,\"\",('2011 Survey responses'!W47))","v":6},{"$f":"IF(('2011 Survey responses'!Y47)<1.1,\"\",('2011 Survey responses'!Y47))","v":5},{"$f":"IF(('2011 Survey responses'!Z47)<1.1,\"\",('2011 Survey responses'!Z47))","v":6},{"$f":"IF(('2011 Survey responses'!V47+'2011 Survey responses'!X47+'2011 Survey responses'!AA47)<3.1,\"\",((SUMIF('2011 Survey responses'!V47,\">1\")+SUMIF('2011 Survey responses'!X47,\">1\")+SUMIF('2011 Survey responses'!AA47,\">1\"))/(COUNTIF('2011 Survey responses'!V47,\">1\")+COUNTIF('2011 Survey responses'!X47,\">1\")+COUNTIF('2011 Survey responses'!AA47,\">1\"))))","v":6},{"$f":"IF(('2011 Survey responses'!V47+'2011 Survey responses'!Y47+'2011 Survey responses'!AA47)<3.1,\"\",((SUMIF('2011 Survey responses'!V47,\">1\")+SUMIF('2011 Survey responses'!Y47,\">1\")+SUMIF('2011 Survey responses'!AA47,\">1\"))/(COUNTIF('2011 Survey responses'!V47,\">1\")+COUNTIF('2011 Survey responses'!Y47,\">1\")+COUNTIF('2011 Survey responses'!AA47,\">1\"))))","v":5.666666666666667},{"$f":"IF(SUM('2011 Survey responses'!AB47:AH47)<1,\"\",(AVERAGEIFS('2011 Survey responses'!AB47:AH47,'2011 Survey responses'!AB47:AH47,\">1\")))","v":4.7142857142857144},{"$f":"IF(SUM('2011 Survey responses'!AI47:AO47)<7.1,\"\",(AVERAGEIFS('2011 Survey responses'!AI47:AO47,'2011 Survey responses'!AI47:AO47,\">1\")))","v":5},{"$f":"IF(('2011 Survey responses'!AH47)<1.1,\"\",('2011 Survey responses'!AH47))","v":3},{"$f":"IF(SUM('2011 Survey responses'!AP47:BV47)<1,\"\",(AVERAGEIFS('2011 Survey responses'!AP47:BV47,'2011 Survey responses'!AP47:BV47,\">1\")))","v":5.1818181818181817},{"$f":"IF(SUM('2011 Survey responses'!AP47:AS47)<4.1,\"\",(AVERAGEIFS('2011 Survey responses'!AP47:AS47,'2011 Survey responses'!AP47:AS47,\">1\")))","v":5.5},{"$f":"IF(SUM('2011 Survey responses'!AT47:BF47)<1,\"\",(AVERAGEIFS('2011 Survey responses'!AT47:BF47,'2011 Survey responses'!AT47:BF47,\">1\")))","v":5},{"$f":"IF(SUM('2011 Survey responses'!BG47:BO47)<1,\"\",(AVERAGEIFS('2011 Survey responses'!BG47:BO47,'2011 Survey responses'!BG47:BO47,\">1\")))","v":5.7777777777777777},{"$f":"IF(SUM('2011 Survey responses'!BP47:BS47)<1,\"\",(AVERAGEIFS('2011 Survey responses'!BP47:BS47,'2011 Survey responses'!BP47:BS47,\">1\")))","v":4},{"$f":"IF(SUM('2011 Survey responses'!BT47:BV47)<3.1,\"\",(AVERAGEIFS('2011 Survey responses'!BT47:BV47,'2011 Survey responses'!BT47:BV47,\">1\")))","v":5.333333333333333},{"$f":"IF(('2011 Survey responses'!AQ47+'2011 Survey responses'!AR47+'2011 Survey responses'!BG47)<3.1,\"\",((SUMIF('2011 Survey responses'!AQ47,\">1\")+SUMIF('2011 Survey responses'!AR47,\">1\")+SUMIF('2011 Survey responses'!BG47,\">1\"))/(COUNTIF('2011 Survey responses'!AQ47,\">1\")+COUNTIF('2011 Survey responses'!AR47,\">1\")+COUNTIF('2011 Survey responses'!BG47,\">1\"))))","v":6},{"$f":"IF(SUM('2011 Survey responses'!AP47:AS47)<4.1,\"\",(AVERAGEIFS('2011 Survey responses'!AP47:AS47,'2011 Survey responses'!AP47:AS47,\">1\")))","v":5.5},{"$f":"IF(('2011 Survey responses'!AU47+'2011 Survey responses'!AX47+'2011 Survey responses'!BA47+'2011 Survey responses'!BC47+'2011 Survey responses'!BD47)<5.1,\"\",(SUMIF('2011 Survey responses'!AU47,\">1\")+SUMIF('2011 Survey responses'!AX47,\">1\")+SUMIF('2011 Survey responses'!BA47,\">1\")+SUMIF('2011 Survey responses'!BC47,\">1\")+SUMIF('2011 Survey responses'!BD47,\">1\"))/(COUNTIF('2011 Survey responses'!AU47,\">1\")+COUNTIF('2011 Survey responses'!AX47,\">1\")+COUNTIF('2011 Survey responses'!BA47,\">1\")+COUNTIF('2011 Survey responses'!BC47,\">1\")+COUNTIF('2011 Survey responses'!BD47,\">1\")))","v":4.2},{"$f":"IF(('2011 Survey responses'!AT47)<1.1,\"\",('2011 Survey responses'!AT47))","v":6},{"$f":"IF(SUM('2011 Survey responses'!AV47:AW47)<2.1,\"\",(AVERAGEIFS('2011 Survey responses'!AV47:AW47,'2011 Survey responses'!AV47:AW47,\">1\")))","v":6},{"$f":"IF(('2011 Survey responses'!AW47+'2011 Survey responses'!AY47)<2.1,\"\",(SUMIF('2011 Survey responses'!AW47,\">1\")+SUMIF('2011 Survey responses'!AY47,\">1\"))/(COUNTIF('2011 Survey responses'!AW47,\">1\")+COUNTIF('2011 Survey responses'!AY47,\">1\")))","v":4.5},{"$f":"IF(('2011 Survey responses'!AZ47)<1.1,\"\",('2011 Survey responses'!AZ47))","v":6},6,4,2,5,{"$f":"IF(('2011 Survey responses'!BE47)<1.1,\"\",('2011 Survey responses'!BE47))","v":6},{"$f":"IF(('2011 Survey responses'!AY47+'2011 Survey responses'!BB47+'2011 Survey responses'!BF47)<3.1,\"\",(SUMIF('2011 Survey responses'!AY47,\">1\")+SUMIF('2011 Survey responses'!BB47,\">1\")+SUMIF('2011 Survey responses'!BF47,\">1\"))/(COUNTIF('2011 Survey responses'!AY47,\">1\")+COUNTIF('2011 Survey responses'!BB47,\">1\")+COUNTIF('2011 Survey responses'!BF47,\">1\")))","v":4.666666666666667},4.8888888888888893,{"$f":"IF(SUM('2011 Survey responses'!BT47:BV47)<3.1,\"\",(AVERAGEIFS('2011 Survey responses'!BT47:BV47,'2011 Survey responses'!BT47:BV47,\">1\")))","v":5.333333333333333},{"$f":"IF(SUM('2011 Survey responses'!BW47:CP47)<1,\"\",(AVERAGEIFS('2011 Survey responses'!BW47:CP47,'2011 Survey responses'!BW47:CP47,\">1\")))","v":4.6875},{"$f":"IF(SUM('2011 Survey responses'!BW47:CF47)<1,\"\",(AVERAGEIFS('2011 Survey responses'!BW47:CF47,'2011 Survey responses'!BW47:CF47,\">1\")))","v":4.875},{"$f":"IF(SUM('2011 Survey responses'!CG47:CP47)<1,\"\",(AVERAGEIFS('2011 Survey responses'!CG47:CP47,'2011 Survey responses'!CG47:CP47,\">1\")))","v":4.5},{"$f":"IF(SUM('2011 Survey responses'!BX47:CF47)<1,\"\",(AVERAGEIFS('2011 Survey responses'!BX47:CF47,'2011 Survey responses'!BX47:CF47,\">1\")))","v":4.7142857142857144},{"$f":"IF(SUM('2011 Survey responses'!CH47:CP47)<1,\"\",(AVERAGEIFS('2011 Survey responses'!CH47:CP47,'2011 Survey responses'!CH47:CP47,\">1\")))","v":4.2857142857142856},{"$f":"IF(SUM('2011 Survey responses'!BW47:CP47)<1,\"\",(AVERAGEIFS('2011 Survey responses'!BW47:CP47,'2011 Survey responses'!BW47:CP47,\">1\")))","v":4.6875},{"$f":"IF(('2011 Survey responses'!BW47+'2011 Survey responses'!CG47)<2.1,\"\",(SUMIF('2011 Survey responses'!BW47,\">1\")+SUMIF('2011 Survey responses'!CG47,\">1\"))/(COUNTIF('2011 Survey responses'!BW47,\">1\")+COUNTIF('2011 Survey responses'!CG47,\">1\")))","v":6},{"$f":"IF(('2011 Survey responses'!BX47+'2011 Survey responses'!CH47)<2.1,\"\",(SUMIF('2011 Survey responses'!BX47,\">1\")+SUMIF('2011 Survey responses'!CH47,\">1\"))/(COUNTIF('2011 Survey responses'!BX47,\">1\")+COUNTIF('2011 Survey responses'!CH47,\">1\")))","v":3},{"$f":"IF(('2011 Survey responses'!BY47+'2011 Survey responses'!CI47)<2.1,\"\",(SUMIF('2011 Survey responses'!BY47,\">1\")+SUMIF('2011 Survey responses'!CI47,\">1\"))/(COUNTIF('2011 Survey responses'!BY47,\">1\")+COUNTIF('2011 Survey responses'!CI47,\">1\")))","v":4},{"$f":"IF('2011 Survey responses'!CQ47<0.5,\"\",'2011 Survey responses'!CQ47)","v":3},{"$f":"IF('2011 Survey responses'!CR47<0.5,\"\",'2011 Survey responses'!CR47)","v":4},{"$f":"IF('2011 Survey responses'!CS47<0.5,\"\",'2011 Survey responses'!CS47)","v":4},{"$f":"IF('2011 Survey responses'!CT47<0.5,\"\",'2011 Survey responses'!CT47)","v":4},{"$f":"IF('2011 Survey responses'!CU47<0.5,\"\",'2011 Survey responses'!CU47)","v":4},{"$f":"IF('2011 Survey responses'!CV47<0.5,\"\",'2011 Survey responses'!CV47)","v":1},{"$f":"IF(SUM('2011 Survey responses'!CW47:DL47)<1,\"\",(AVERAGE('2011 Survey responses'!CW47:DL47)))","v":3.4375},{"$f":"IF(SUM('2011 Survey responses'!CW47:CZ47)<1,\"\",(AVERAGE('2011 Survey responses'!CW47:CZ47)))","v":3.5},{"$f":"IF(SUM('2011 Survey responses'!DA47:DD47)<1,\"\",(AVERAGE('2011 Survey responses'!DA47:DD47)))","v":3},{"$f":"IF(SUM('2011 Survey responses'!DE47:DH47)<1,\"\",(AVERAGE('2011 Survey responses'!DE47:DH47)))","v":3.5},{"$f":"IF(SUM('2011 Survey responses'!DI47:DL47)<1,\"\",(AVERAGE('2011 Survey responses'!DI47:DL47)))","v":3.75},{"$f":"IF(('2011 Survey responses'!CW47+'2011 Survey responses'!DA47+'2011 Survey responses'!DE47+'2011 Survey responses'!DI47)<1,\"\",AVERAGE('2011 Survey responses'!CW47,'2011 Survey responses'!DA47,'2011 Survey responses'!DE47,'2011 Survey responses'!DI47))","v":3.25},{"$f":"IF(('2011 Survey responses'!CX47+'2011 Survey responses'!DB47+'2011 Survey responses'!DF47+'2011 Survey responses'!DJ47)<1,\"\",AVERAGE('2011 Survey responses'!CX47,'2011 Survey responses'!DB47,'2011 Survey responses'!DF47,'2011 Survey responses'!DJ47))","v":3},{"$f":"IF(('2011 Survey responses'!CY47+'2011 Survey responses'!DC47+'2011 Survey responses'!DG47+'2011 Survey responses'!DK47)<1,\"\",AVERAGE('2011 Survey responses'!CY47,'2011 Survey responses'!DC47,'2011 Survey responses'!DG47,'2011 Survey responses'!DK47))","v":3.75},{"$f":"IF(('2011 Survey responses'!CZ47+'2011 Survey responses'!DD47+'2011 Survey responses'!DH47+'2011 Survey responses'!DL47)<1,\"\",AVERAGE('2011 Survey responses'!CZ47,'2011 Survey responses'!DD47,'2011 Survey responses'!DH47,'2011 Survey responses'!DL47))","v":3.75},{"$f":"IF('2011 Survey responses'!CW47<0.5,\"\",'2011 Survey responses'!CW47)","v":3},{"$f":"IF('2011 Survey responses'!CX47<0.5,\"\",'2011 Survey responses'!CX47)","v":3},{"$f":"IF('2011 Survey responses'!CY47<0.5,\"\",'2011 Survey responses'!CY47)","v":4},{"$f":"IF('2011 Survey responses'!CZ47<0.5,\"\",'2011 Survey responses'!CZ47)","v":4},{"$f":"IF('2011 Survey responses'!DA47<0.5,\"\",'2011 Survey responses'!DA47)","v":3},{"$f":"IF('2011 Survey responses'!DB47<0.5,\"\",'2011 Survey responses'!DB47)","v":3},{"$f":"IF('2011 Survey responses'!DC47<0.5,\"\",'2011 Survey responses'!DC47)","v":3},{"$f":"IF('2011 Survey responses'!DD47<0.5,\"\",'2011 Survey responses'!DD47)","v":3},{"$f":"IF('2011 Survey responses'!DE47<0.5,\"\",'2011 Survey responses'!DE47)","v":3},{"$f":"IF('2011 Survey responses'!DF47<0.5,\"\",'2011 Survey responses'!DF47)","v":3},{"$f":"IF('2011 Survey responses'!DG47<0.5,\"\",'2011 Survey responses'!DG47)","v":4},{"$f":"IF('2011 Survey responses'!DH47<0.5,\"\",'2011 Survey responses'!DH47)","v":4},{"$f":"IF('2011 Survey responses'!DI47<0.5,\"\",'2011 Survey responses'!DI47)","v":4},{"$f":"IF('2011 Survey responses'!DJ47<0.5,\"\",'2011 Survey responses'!DJ47)","v":3},{"$f":"IF('2011 Survey responses'!DK47<0.5,\"\",'2011 Survey responses'!DK47)","v":4},{"$f":"IF('2011 Survey responses'!DL47<0.5,\"\",'2011 Survey responses'!DL47)","v":4},{"$f":"IF('2011 Survey responses'!DU47=4,4,IF('2011 Survey responses'!DU47=5,4,\"\"))","v":4},{"$f":"IF('2011 Survey responses'!DV47=4,3,IF('2011 Survey responses'!DV47=5,3,\"\"))","v":""},"",{"$f":"IF(CQ47=2,CQ47,IF(CO47=4,CO47,IF(CP47=3,CP47,IF('2011 Survey responses'!GT47=1,1,\"\"))))","v":4},{"$f":"IF('2011 Survey responses'!DO47<0.5,\"\",'2011 Survey responses'!DO47)","v":2},{"$f":"IF('2011 Survey responses'!DP47<0.5,\"\",'2011 Survey responses'!DP47)","v":2},{"$f":"IF('2011 Survey responses'!DQ47<0.5,\"\",'2011 Survey responses'!DQ47)","v":2},{"$f":"IF('2011 Survey responses'!DR47<0.5,\"\",'2011 Survey responses'!DR47)","v":2},{"$f":"IF('2011 Survey responses'!DS47<0.5,\"\",'2011 Survey responses'!DS47)","v":2},{"$f":"IF('2011 Survey responses'!DT47<0.5,\"\",'2011 Survey responses'!DT47)","v":1},{"$f":"IF('2011 Survey responses'!DU47<0.5,\"\",'2011 Survey responses'!DU47)","v":4},{"$f":"IF('2011 Survey responses'!DV47<0.5,\"\",'2011 Survey responses'!DV47)","v":2},{"$f":"IF('2011 Survey responses'!DW47<0.5,\"\",'2011 Survey responses'!DW47)","v":3},{"$f":"IF('2011 Survey responses'!DX47<0.5,\"\",'2011 Survey responses'!DX47)","v":2},{"$f":"IF('2011 Survey responses'!DY47<0.5,\"\",'2011 Survey responses'!DY47)","v":3},{"$f":"IF('2011 Survey responses'!DZ47<0.5,\"\",'2011 Survey responses'!DZ47)","v":3},{"$f":"IF('2011 Survey responses'!EA47<0.5,\"\",'2011 Survey responses'!EA47)","v":3},{"$f":"IF('2011 Survey responses'!EB47<0.5,\"\",'2011 Survey responses'!EB47)","v":3},{"$f":"IF('2011 Survey responses'!EC47<0.5,\"\",'2011 Survey responses'!EC47)","v":3},{"$f":"IF('2011 Survey responses'!ED47<0.5,\"\",'2011 Survey responses'!ED47)","v":3},{"$f":"IF('2011 Survey responses'!EE47<0.5,\"\",'2011 Survey responses'!EE47)","v":3},{"$f":"IF('2011 Survey responses'!EF47<0.5,\"\",'2011 Survey responses'!EF47)","v":3},{"$f":"IF('2011 Survey responses'!EG47<0.5,\"\",'2011 Survey responses'!EG47)","v":5},{"$f":"IF('2011 Survey responses'!EH47<0.5,\"\",'2011 Survey responses'!EH47)","v":4},{"$f":"IF('2011 Survey responses'!EI47<0.5,\"\",'2011 Survey responses'!EI47)","v":3},{"$f":"IF('2011 Survey responses'!EJ47<0.5,\"\",'2011 Survey responses'!EJ47)","v":3},{"$f":"IF('2011 Survey responses'!EK47<0.5,\"\",'2011 Survey responses'!EK47)","v":2},{"$f":"IF('2011 Survey responses'!EL47<0.5,\"\",'2011 Survey responses'!EL47)","v":2},{"$f":"IF('2011 Survey responses'!EM47<0.5,\"\",'2011 Survey responses'!EM47)","v":2},{"$f":"IF('2011 Survey responses'!EN47<0.5,\"\",'2011 Survey responses'!EN47)","v":2},{"$f":"IF('2011 Survey responses'!EO47<0.5,\"\",'2011 Survey responses'!EO47)","v":2},{"$f":"IF('2011 Survey responses'!EP47<0.5,\"\",'2011 Survey responses'!EP47)","v":2},{"$f":"IF(('2011 Survey responses'!EW47+'2011 Survey responses'!EX47)>=2,AVERAGE('2011 Survey responses'!EW47,'2011 Survey responses'!EY47),\"\")","v":3.5},{"$f":"IF('2011 Survey responses'!EX47<0.5,\"\",'2011 Survey responses'!EX47)","v":3},{"$f":"IF('2011 Survey responses'!EZ47<0.5,\"\",'2011 Survey responses'!EZ47)","v":2},{"$f":"IF('2011 Survey responses'!FB47<0.5,\"\",'2011 Survey responses'!FB47)","v":4},{"$f":"IF('2011 Survey responses'!FD47<0.5,\"\",'2011 Survey responses'!FD47)","v":3},{"$f":"IF('2011 Survey responses'!FC47<0.5,\"\",'2011 Survey responses'!FC47)","v":4},{"$f":"IF(('2011 Survey responses'!EM47+'2011 Survey responses'!EN47)>=2,AVERAGE('2011 Survey responses'!EM47,'2011 Survey responses'!EN47),\"\")","v":2},{"$f":"IF('2011 Survey responses'!ES47<0.5,\"\",'2011 Survey responses'!ES47)","v":3},{"$f":"IF(('2011 Survey responses'!ET47+'2011 Survey responses'!EU47)>=2,AVERAGE('2011 Survey responses'!ET47,'2011 Survey responses'!EU47),\"\")","v":2.5},{"$f":"IF('2011 Survey responses'!EV47<0.5,\"\",'2011 Survey responses'!EV47)","v":3},{"$f":"IF('2011 Survey responses'!FA47<0.5,\"\",'2011 Survey responses'!FA47)","v":2},{"$f":"IF('2011 Survey responses'!ER47<0.5,\"\",'2011 Survey responses'!ER47)","v":3},{"$f":"IF(('2011 Survey responses'!EO47+'2011 Survey responses'!EP47)>=2,AVERAGE('2011 Survey responses'!EO47,'2011 Survey responses'!EP47),\"\")","v":2},{"$f":"IF('2011 Survey responses'!EQ47<0.5,\"\",'2011 Survey responses'!EQ47)","v":3},{"$f":"IF('2011 Survey responses'!ET47<0.5,\"\",'2011 Survey responses'!ET47)","v":3},{"$f":"IF('2011 Survey responses'!EU47<0.5,\"\",'2011 Survey responses'!EU47)","v":2},{"$f":"IF('2011 Survey responses'!EW47<0.5,\"\",'2011 Survey responses'!EW47)","v":4},{"$f":"IF('2011 Survey responses'!EY47<0.5,\"\",'2011 Survey responses'!EY47)","v":3},{"$f":"IF('2011 Survey responses'!FU47<0.5,\"\",'2011 Survey responses'!FU47)","v":4},{"$f":"IF(('2011 Survey responses'!FL47+'2011 Survey responses'!FM47)>=2,AVERAGE('2011 Survey responses'!FL47,'2011 Survey responses'!FM47),\"\")","v":2.5},{"$f":"IF(('2011 Survey responses'!FO47+'2011 Survey responses'!FQ47)>=2,AVERAGE('2011 Survey responses'!FO47,'2011 Survey responses'!FQ47),\"\")","v":2},{"$f":"IF('2011 Survey responses'!FJ47<0.5,\"\",'2011 Survey responses'!FJ47)","v":3},{"$f":"IF('2011 Survey responses'!FT47<0.5,\"\",'2011 Survey responses'!FT47)","v":2},{"$f":"IF('2011 Survey responses'!FR47<0.5,\"\",'2011 Survey responses'!FR47)","v":3},{"$f":"IF('2011 Survey responses'!FK47<0.5,\"\",'2011 Survey responses'!FK47)","v":3},{"$f":"IF('2011 Survey responses'!FP47<0.5,\"\",'2011 Survey responses'!FP47)","v":2},{"$f":"IF('2011 Survey responses'!FN47<0.5,\"\",'2011 Survey responses'!FN47)","v":3},{"$f":"IF(('2011 Survey responses'!FE47+'2011 Survey responses'!FF47)>=2,AVERAGE('2011 Survey responses'!FE47,'2011 Survey responses'!FF47),\"\")","v":2},{"$f":"IF('2011 Survey responses'!FS47<0.5,\"\",'2011 Survey responses'!FS47)","v":2},{"$f":"IF('2011 Survey responses'!FV47<0.5,\"\",'2011 Survey responses'!FV47)","v":3},{"$f":"IF(('2011 Survey responses'!FG47+'2011 Survey responses'!FH47)>=2,AVERAGE('2011 Survey responses'!FG47,'2011 Survey responses'!FH47),\"\")","v":2},{"$f":"IF('2011 Survey responses'!FI47<0.5,\"\",'2011 Survey responses'!FI47)","v":2},{"$f":"IF('2011 Survey responses'!FE47<0.5,\"\",'2011 Survey responses'!FE47)","v":2},{"$f":"IF('2011 Survey responses'!FF47<0.5,\"\",'2011 Survey responses'!FF47)","v":2},{"$f":"IF('2011 Survey responses'!FG47<0.5,\"\",'2011 Survey responses'!FG47)","v":2},{"$f":"IF('2011 Survey responses'!FH47<0.5,\"\",'2011 Survey responses'!FH47)","v":2},{"$f":"IF('2011 Survey responses'!FL47<0.5,\"\",'2011 Survey responses'!FL47)","v":3},{"$f":"IF('2011 Survey responses'!FM47<0.5,\"\",'2011 Survey responses'!FM47)","v":2},{"$f":"IF('2011 Survey responses'!FO47<0.5,\"\",'2011 Survey responses'!FO47)","v":2},{"$f":"IF('2011 Survey responses'!FQ47<0.5,\"\",'2011 Survey responses'!FQ47)","v":2}]
["Democratic People's Republic of Korea",{"$f":"IF(SUM(F48)<1,\"\",AVERAGEIF('2011 Survey responses'!B48:CP48,\">1\"))","v":2.896551724137931},{"$f":"IF(SUM(F48)<1,\"\",AVERAGEIF('2011 Survey responses'!B48:AO48,\">1\"))","v":2.657142857142857},{"$f":"IF(SUM(F48)<1,\"\",AVERAGEIF('2011 Survey responses'!B48:BV48,\">1\"))","v":2.6716417910447761},{"$f":"IF(SUM(F48)<1,\"\",AVERAGEIF('2011 Survey responses'!V48:BV48,\">1\"))","v":2.795918367346939},{"$f":"IF(SUM('2011 Survey responses'!B48:U48)<1,\"\",(AVERAGEIFS('2011 Survey responses'!B48:U48,'2011 Survey responses'!B48:U48,\">1\")))","v":2.3333333333333335},{"$f":"IF(SUM('2011 Survey responses'!B48:H48)<1,\"\",(AVERAGEIFS('2011 Survey responses'!B48:H48,'2011 Survey responses'!B48:H48,\">1\")))","v":3},{"$f":"IF(SUM('2011 Survey responses'!I48:S48)<1,\"\",(AVERAGEIFS('2011 Survey responses'!I48:S48,'2011 Survey responses'!I48:S48,\">1\")))","v":2},{"$f":"IF(SUM('2011 Survey responses'!T48:U48)<2.1,\"\",(AVERAGEIFS('2011 Survey responses'!T48:U48,'2011 Survey responses'!T48:U48,\">1\")))","v":2},{"$f":"IF(SUM('2011 Survey responses'!B48:C48)<2.1,\"\",((SUMIF('2011 Survey responses'!B48:C48,\">1\")+SUMIF('2011 Survey responses'!F48,\">1\"))/(COUNTIF('2011 Survey responses'!B48:C48,\">1\")+COUNTIF('2011 Survey responses'!F48,\">1\"))))","v":3.3333333333333335},{"$f":"IF(SUM('2011 Survey responses'!D48:E48)<2.1,\"\",(AVERAGEIFS('2011 Survey responses'!D48:E48,'2011 Survey responses'!D48:E48,\">1\")))","v":4},{"$f":"IF(('2011 Survey responses'!B48+'2011 Survey responses'!D48)<2.1,\"\",((SUMIF('2011 Survey responses'!B48,\">1\")+SUMIF('2011 Survey responses'!D48,\">1\")+SUMIF('2011 Survey responses'!F48,\">1\")+SUMIF('2011 Survey responses'!K48,\">1\"))/(COUNTIF('2011 Survey responses'!B48,\">1\")+COUNTIF('2011 Survey responses'!D48,\">1\")+COUNTIF('2011 Survey responses'!F48,\">1\")+COUNTIF('2011 Survey responses'!K48,\">1\"))))","v":3},{"$f":"IF(SUM('2011 Survey responses'!G48:H48)<2.1,\"\",(AVERAGEIFS('2011 Survey responses'!G48:H48,'2011 Survey responses'!G48:H48,\">1\")))","v":2},{"$f":"IF(SUM('2011 Survey responses'!F48:G48)<1.5,\"\",MAX('2011 Survey responses'!F48,'2011 Survey responses'!G48))","v":2},{"$f":"IF(SUM('2011 Survey responses'!G48:H48)<1,\"\",MAX('2011 Survey responses'!G48,'2011 Survey responses'!H48))","v":2},{"$f":"IF(SUM('2011 Survey responses'!I48:L48)<4.1,\"\",(AVERAGEIFS('2011 Survey responses'!I48:L48,'2011 Survey responses'!I48:L48,\">1\")))","v":2},{"$f":"IF(SUM('2011 Survey responses'!M48:S48)<4.1,\"\",(AVERAGEIFS('2011 Survey responses'!M48:S48,'2011 Survey responses'!M48:S48,\">1\")))","v":2},{"$f":"IF(SUM('2011 Survey responses'!T48:U48)<2.1,\"\",(AVERAGEIFS('2011 Survey responses'!T48:U48,'2011 Survey responses'!T48:U48,\">1\")))","v":2},{"$f":"IF(SUM('2011 Survey responses'!V48:AO48)<1,\"\",(AVERAGEIFS('2011 Survey responses'!V48:AO48,'2011 Survey responses'!V48:AO48,\">1\")))","v":3},{"$f":"IF(SUM('2011 Survey responses'!V48:AA48)<1,\"\",(AVERAGEIFS('2011 Survey responses'!V48:AA48,'2011 Survey responses'!V48:AA48,\">1\")))","v":3},{"$f":"IF(SUM('2011 Survey responses'!AB48:AH48)<1,\"\",(AVERAGEIFS('2011 Survey responses'!AB48:AH48,'2011 Survey responses'!AB48:AH48,\">1\")))","v":3.6},{"$f":"IF(SUM('2011 Survey responses'!AI48:AO48)<1,\"\",(AVERAGEIFS('2011 Survey responses'!AI48:AO48,'2011 Survey responses'!AI48:AO48,\">1\")))","v":2.5714285714285716},{"$f":"IF(('2011 Survey responses'!Y48+'2011 Survey responses'!AI48+'2011 Survey responses'!AK48)<3.1,\"\",((SUMIF('2011 Survey responses'!Y48,\">1\")+SUMIF('2011 Survey responses'!AI48,\">1\")+SUMIF('2011 Survey responses'!AK48,\">1\")+SUMIF('2011 Survey responses'!AM48,\">1\"))/(COUNTIF('2011 Survey responses'!Y48,\">1\")+COUNTIF('2011 Survey responses'!AI48,\">1\")+COUNTIF('2011 Survey responses'!AK48,\">1\")+COUNTIF('2011 Survey responses'!AM48,\">1\"))))","v":2.5},{"$f":"IF(('2011 Survey responses'!W48)<1.1,\"\",('2011 Survey responses'!W48))","v":3},{"$f":"IF(('2011 Survey responses'!Y48)<1.1,\"\",('2011 Survey responses'!Y48))","v":3},{"$f":"IF(('2011 Survey responses'!Z48)<1.1,\"\",('2011 Survey responses'!Z48))","v":2},{"$f":"IF(('2011 Survey responses'!V48+'2011 Survey responses'!X48+'2011 Survey responses'!AA48)<3.1,\"\",((SUMIF('2011 Survey responses'!V48,\">1\")+SUMIF('2011 Survey responses'!X48,\">1\")+SUMIF('2011 Survey responses'!AA48,\">1\"))/(COUNTIF('2011 Survey responses'!V48,\">1\")+COUNTIF('2011 Survey responses'!X48,\">1\")+COUNTIF('2011 Survey responses'!AA48,\">1\"))))","v":3.5},{"$f":"IF(('2011 Survey responses'!V48+'2011 Survey responses'!Y48+'2011 Survey responses'!AA48)<3.1,\"\",((SUMIF('2011 Survey responses'!V48,\">1\")+SUMIF('2011 Survey responses'!Y48,\">1\")+SUMIF('2011 Survey responses'!AA48,\">1\"))/(COUNTIF('2011 Survey responses'!V48,\">1\")+COUNTIF('2011 Survey responses'!Y48,\">1\")+COUNTIF('2011 Survey responses'!AA48,\">1\"))))","v":3.5},{"$f":"IF(SUM('2011 Survey responses'!AB48:AH48)<1,\"\",(AVERAGEIFS('2011 Survey responses'!AB48:AH48,'2011 Survey responses'!AB48:AH48,\">1\")))","v":3.6},{"$f":"IF(SUM('2011 Survey responses'!AI48:AO48)<7.1,\"\",(AVERAGEIFS('2011 Survey responses'!AI48:AO48,'2011 Survey responses'!AI48:AO48,\">1\")))","v":2.5714285714285716},{"$f":"IF(('2011 Survey responses'!AH48)<1.1,\"\",('2011 Survey responses'!AH48))","v":4},{"$f":"IF(SUM('2011 Survey responses'!AP48:BV48)<1,\"\",(AVERAGEIFS('2011 Survey responses'!AP48:BV48,'2011 Survey responses'!AP48:BV48,\">1\")))","v":2.6875},{"$f":"IF(SUM('2011 Survey responses'!AP48:AS48)<4.1,\"\",(AVERAGEIFS('2011 Survey responses'!AP48:AS48,'2011 Survey responses'!AP48:AS48,\">1\")))","v":2},{"$f":"IF(SUM('2011 Survey responses'!AT48:BF48)<1,\"\",(AVERAGEIFS('2011 Survey responses'!AT48:BF48,'2011 Survey responses'!AT48:BF48,\">1\")))","v":2.4615384615384617},{"$f":"IF(SUM('2011 Survey responses'!BG48:BO48)<1,\"\",(AVERAGEIFS('2011 Survey responses'!BG48:BO48,'2011 Survey responses'!BG48:BO48,\">1\")))","v":3.375},{"$f":"IF(SUM('2011 Survey responses'!BP48:BS48)<1,\"\",(AVERAGEIFS('2011 Survey responses'!BP48:BS48,'2011 Survey responses'!BP48:BS48,\">1\")))","v":2},{"$f":"IF(SUM('2011 Survey responses'!BT48:BV48)<3.1,\"\",(AVERAGEIFS('2011 Survey responses'!BT48:BV48,'2011 Survey responses'!BT48:BV48,\">1\")))","v":3.6666666666666665},{"$f":"IF(('2011 Survey responses'!AQ48+'2011 Survey responses'!AR48+'2011 Survey responses'!BG48)<3.1,\"\",((SUMIF('2011 Survey responses'!AQ48,\">1\")+SUMIF('2011 Survey responses'!AR48,\">1\")+SUMIF('2011 Survey responses'!BG48,\">1\"))/(COUNTIF('2011 Survey responses'!AQ48,\">1\")+COUNTIF('2011 Survey responses'!AR48,\">1\")+COUNTIF('2011 Survey responses'!BG48,\">1\"))))","v":3},{"$f":"IF(SUM('2011 Survey responses'!AP48:AS48)<4.1,\"\",(AVERAGEIFS('2011 Survey responses'!AP48:AS48,'2011 Survey responses'!AP48:AS48,\">1\")))","v":2},{"$f":"IF(('2011 Survey responses'!AU48+'2011 Survey responses'!AX48+'2011 Survey responses'!BA48+'2011 Survey responses'!BC48+'2011 Survey responses'!BD48)<5.1,\"\",(SUMIF('2011 Survey responses'!AU48,\">1\")+SUMIF('2011 Survey responses'!AX48,\">1\")+SUMIF('2011 Survey responses'!BA48,\">1\")+SUMIF('2011 Survey responses'!BC48,\">1\")+SUMIF('2011 Survey responses'!BD48,\">1\"))/(COUNTIF('2011 Survey responses'!AU48,\">1\")+COUNTIF('2011 Survey responses'!AX48,\">1\")+COUNTIF('2011 Survey responses'!BA48,\">1\")+COUNTIF('2011 Survey responses'!BC48,\">1\")+COUNTIF('2011 Survey responses'!BD48,\">1\")))","v":2.8},{"$f":"IF(('2011 Survey responses'!AT48)<1.1,\"\",('2011 Survey responses'!AT48))","v":2},{"$f":"IF(SUM('2011 Survey responses'!AV48:AW48)<2.1,\"\",(AVERAGEIFS('2011 Survey responses'!AV48:AW48,'2011 Survey responses'!AV48:AW48,\">1\")))","v":2.5},{"$f":"IF(('2011 Survey responses'!AW48+'2011 Survey responses'!AY48)<2.1,\"\",(SUMIF('2011 Survey responses'!AW48,\">1\")+SUMIF('2011 Survey responses'!AY48,\">1\"))/(COUNTIF('2011 Survey responses'!AW48,\">1\")+COUNTIF('2011 Survey responses'!AY48,\">1\")))","v":2.5},{"$f":"IF(('2011 Survey responses'!AZ48)<1.1,\"\",('2011 Survey responses'!AZ48))","v":2},2,2,2,2,{"$f":"IF(('2011 Survey responses'!BE48)<1.1,\"\",('2011 Survey responses'!BE48))","v":2},{"$f":"IF(('2011 Survey responses'!AY48+'2011 Survey responses'!BB48+'2011 Survey responses'!BF48)<3.1,\"\",(SUMIF('2011 Survey responses'!AY48,\">1\")+SUMIF('2011 Survey responses'!BB48,\">1\")+SUMIF('2011 Survey responses'!BF48,\">1\"))/(COUNTIF('2011 Survey responses'!AY48,\">1\")+COUNTIF('2011 Survey responses'!BB48,\">1\")+COUNTIF('2011 Survey responses'!BF48,\">1\")))","v":2.3333333333333335},2.6875,{"$f":"IF(SUM('2011 Survey responses'!BT48:BV48)<3.1,\"\",(AVERAGEIFS('2011 Survey responses'!BT48:BV48,'2011 Survey responses'!BT48:BV48,\">1\")))","v":3.6666666666666665},{"$f":"IF(SUM('2011 Survey responses'!BW48:CP48)<1,\"\",(AVERAGEIFS('2011 Survey responses'!BW48:CP48,'2011 Survey responses'!BW48:CP48,\">1\")))","v":3.65},{"$f":"IF(SUM('2011 Survey responses'!BW48:CF48)<1,\"\",(AVERAGEIFS('2011 Survey responses'!BW48:CF48,'2011 Survey responses'!BW48:CF48,\">1\")))","v":3.8},{"$f":"IF(SUM('2011 Survey responses'!CG48:CP48)<1,\"\",(AVERAGEIFS('2011 Survey responses'!CG48:CP48,'2011 Survey responses'!CG48:CP48,\">1\")))","v":3.5},{"$f":"IF(SUM('2011 Survey responses'!BX48:CF48)<1,\"\",(AVERAGEIFS('2011 Survey responses'!BX48:CF48,'2011 Survey responses'!BX48:CF48,\">1\")))","v":3.6666666666666665},{"$f":"IF(SUM('2011 Survey responses'!CH48:CP48)<1,\"\",(AVERAGEIFS('2011 Survey responses'!CH48:CP48,'2011 Survey responses'!CH48:CP48,\">1\")))","v":3.3333333333333335},{"$f":"IF(SUM('2011 Survey responses'!BW48:CP48)<1,\"\",(AVERAGEIFS('2011 Survey responses'!BW48:CP48,'2011 Survey responses'!BW48:CP48,\">1\")))","v":3.65},{"$f":"IF(('2011 Survey responses'!BW48+'2011 Survey responses'!CG48)<2.1,\"\",(SUMIF('2011 Survey responses'!BW48,\">1\")+SUMIF('2011 Survey responses'!CG48,\">1\"))/(COUNTIF('2011 Survey responses'!BW48,\">1\")+COUNTIF('2011 Survey responses'!CG48,\">1\")))","v":5},{"$f":"IF(('2011 Survey responses'!BX48+'2011 Survey responses'!CH48)<2.1,\"\",(SUMIF('2011 Survey responses'!BX48,\">1\")+SUMIF('2011 Survey responses'!CH48,\">1\"))/(COUNTIF('2011 Survey responses'!BX48,\">1\")+COUNTIF('2011 Survey responses'!CH48,\">1\")))","v":5},{"$f":"IF(('2011 Survey responses'!BY48+'2011 Survey responses'!CI48)<2.1,\"\",(SUMIF('2011 Survey responses'!BY48,\">1\")+SUMIF('2011 Survey responses'!CI48,\">1\"))/(COUNTIF('2011 Survey responses'!BY48,\">1\")+COUNTIF('2011 Survey responses'!CI48,\">1\")))","v":5},{"$f":"IF('2011 Survey responses'!CQ48<0.5,\"\",'2011 Survey responses'!CQ48)","v":1},{"$f":"IF('2011 Survey responses'!CR48<0.5,\"\",'2011 Survey responses'!CR48)","v":1},{"$f":"IF('2011 Survey responses'!CS48<0.5,\"\",'2011 Survey responses'!CS48)","v":2},{"$f":"IF('2011 Survey responses'!CT48<0.5,\"\",'2011 Survey responses'!CT48)","v":2},{"$f":"IF('2011 Survey responses'!CU48<0.5,\"\",'2011 Survey responses'!CU48)","v":1},{"$f":"IF('2011 Survey responses'!CV48<0.5,\"\",'2011 Survey responses'!CV48)","v":1},{"$f":"IF(SUM('2011 Survey responses'!CW48:DL48)<1,\"\",(AVERAGE('2011 Survey responses'!CW48:DL48)))","v":4.5},{"$f":"IF(SUM('2011 Survey responses'!CW48:CZ48)<1,\"\",(AVERAGE('2011 Survey responses'!CW48:CZ48)))","v":5},{"$f":"IF(SUM('2011 Survey responses'!DA48:DD48)<1,\"\",(AVERAGE('2011 Survey responses'!DA48:DD48)))","v":5},{"$f":"IF(SUM('2011 Survey responses'!DE48:DH48)<1,\"\",(AVERAGE('2011 Survey responses'!DE48:DH48)))","v":4},{"$f":"IF(SUM('2011 Survey responses'!DI48:DL48)<1,\"\",(AVERAGE('2011 Survey responses'!DI48:DL48)))","v":4},{"$f":"IF(('2011 Survey responses'!CW48+'2011 Survey responses'!DA48+'2011 Survey responses'!DE48+'2011 Survey responses'!DI48)<1,\"\",AVERAGE('2011 Survey responses'!CW48,'2011 Survey responses'!DA48,'2011 Survey responses'!DE48,'2011 Survey responses'!DI48))","v":4.5},{"$f":"IF(('2011 Survey responses'!CX48+'2011 Survey responses'!DB48+'2011 Survey responses'!DF48+'2011 Survey responses'!DJ48)<1,\"\",AVERAGE('2011 Survey responses'!CX48,'2011 Survey responses'!DB48,'2011 Survey responses'!DF48,'2011 Survey responses'!DJ48))","v":4.5},{"$f":"IF(('2011 Survey responses'!CY48+'2011 Survey responses'!DC48+'2011 Survey responses'!DG48+'2011 Survey responses'!DK48)<1,\"\",AVERAGE('2011 Survey responses'!CY48,'2011 Survey responses'!DC48,'2011 Survey responses'!DG48,'2011 Survey responses'!DK48))","v":4.5},{"$f":"IF(('2011 Survey responses'!CZ48+'2011 Survey responses'!DD48+'2011 Survey responses'!DH48+'2011 Survey responses'!DL48)<1,\"\",AVERAGE('2011 Survey responses'!CZ48,'2011 Survey responses'!DD48,'2011 Survey responses'!DH48,'2011 Survey responses'!DL48))","v":4.5},{"$f":"IF('2011 Survey responses'!CW48<0.5,\"\",'2011 Survey responses'!CW48)","v":5},{"$f":"IF('2011 Survey responses'!CX48<0.5,\"\",'2011 Survey responses'!CX48)","v":5},{"$f":"IF('2011 Survey responses'!CY48<0.5,\"\",'2011 Survey responses'!CY48)","v":5},{"$f":"IF('2011 Survey responses'!CZ48<0.5,\"\",'2011 Survey responses'!CZ48)","v":5},{"$f":"IF('2011 Survey responses'!DA48<0.5,\"\",'2011 Survey responses'!DA48)","v":5},{"$f":"IF('2011 Survey responses'!DB48<0.5,\"\",'2011 Survey responses'!DB48)","v":5},{"$f":"IF('2011 Survey responses'!DC48<0.5,\"\",'2011 Survey responses'!DC48)","v":5},{"$f":"IF('2011 Survey responses'!DD48<0.5,\"\",'2011 Survey responses'!DD48)","v":5},{"$f":"IF('2011 Survey responses'!DE48<0.5,\"\",'2011 Survey responses'!DE48)","v":4},{"$f":"IF('2011 Survey responses'!DF48<0.5,\"\",'2011 Survey responses'!DF48)","v":4},{"$f":"IF('2011 Survey responses'!DG48<0.5,\"\",'2011 Survey responses'!DG48)","v":4},{"$f":"IF('2011 Survey responses'!DH48<0.5,\"\",'2011 Survey responses'!DH48)","v":4},{"$f":"IF('2011 Survey responses'!DI48<0.5,\"\",'2011 Survey responses'!DI48)","v":4},{"$f":"IF('2011 Survey responses'!DJ48<0.5,\"\",'2011 Survey responses'!DJ48)","v":4},{"$f":"IF('2011 Survey responses'!DK48<0.5,\"\",'2011 Survey responses'!DK48)","v":4},{"$f":"IF('2011 Survey responses'!DL48<0.5,\"\",'2011 Survey responses'!DL48)","v":4},{"$f":"IF('2011 Survey responses'!DU48=4,4,IF('2011 Survey responses'!DU48=5,4,\"\"))","v":4},{"$f":"IF('2011 Survey responses'!DV48=4,3,IF('2011 Survey responses'!DV48=5,3,\"\"))","v":3},2,{"$f":"IF(CQ48=2,CQ48,IF(CO48=4,CO48,IF(CP48=3,CP48,IF('2011 Survey responses'!GT48=1,1,\"\"))))","v":2},{"$f":"IF('2011 Survey responses'!DO48<0.5,\"\",'2011 Survey responses'!DO48)","v":3},{"$f":"IF('2011 Survey responses'!DP48<0.5,\"\",'2011 Survey responses'!DP48)","v":3},{"$f":"IF('2011 Survey responses'!DQ48<0.5,\"\",'2011 Survey responses'!DQ48)","v":3},{"$f":"IF('2011 Survey responses'!DR48<0.5,\"\",'2011 Survey responses'!DR48)","v":2},{"$f":"IF('2011 Survey responses'!DS48<0.5,\"\",'2011 Survey responses'!DS48)","v":3},{"$f":"IF('2011 Survey responses'!DT48<0.5,\"\",'2011 Survey responses'!DT48)","v":3},{"$f":"IF('2011 Survey responses'!DU48<0.5,\"\",'2011 Survey responses'!DU48)","v":5},{"$f":"IF('2011 Survey responses'!DV48<0.5,\"\",'2011 Survey responses'!DV48)","v":4},{"$f":"IF('2011 Survey responses'!DW48<0.5,\"\",'2011 Survey responses'!DW48)","v":3},{"$f":"IF('2011 Survey responses'!DX48<0.5,\"\",'2011 Survey responses'!DX48)","v":2},{"$f":"IF('2011 Survey responses'!DY48<0.5,\"\",'2011 Survey responses'!DY48)","v":3},{"$f":"IF('2011 Survey responses'!DZ48<0.5,\"\",'2011 Survey responses'!DZ48)","v":4},{"$f":"IF('2011 Survey responses'!EA48<0.5,\"\",'2011 Survey responses'!EA48)","v":2},{"$f":"IF('2011 Survey responses'!EB48<0.5,\"\",'2011 Survey responses'!EB48)","v":2},{"$f":"IF('2011 Survey responses'!EC48<0.5,\"\",'2011 Survey responses'!EC48)","v":3},{"$f":"IF('2011 Survey responses'!ED48<0.5,\"\",'2011 Survey responses'!ED48)","v":3},{"$f":"IF('2011 Survey responses'!EE48<0.5,\"\",'2011 Survey responses'!EE48)","v":3},{"$f":"IF('2011 Survey responses'!EF48<0.5,\"\",'2011 Survey responses'!EF48)","v":4},{"$f":"IF('2011 Survey responses'!EG48<0.5,\"\",'2011 Survey responses'!EG48)","v":5},{"$f":"IF('2011 Survey responses'!EH48<0.5,\"\",'2011 Survey responses'!EH48)","v":5},{"$f":"IF('2011 Survey responses'!EI48<0.5,\"\",'2011 Survey responses'!EI48)","v":4},{"$f":"IF('2011 Survey responses'!EJ48<0.5,\"\",'2011 Survey responses'!EJ48)","v":3},{"$f":"IF('2011 Survey responses'!EK48<0.5,\"\",'2011 Survey responses'!EK48)","v":4},{"$f":"IF('2011 Survey responses'!EL48<0.5,\"\",'2011 Survey responses'!EL48)","v":3},{"$f":"IF('2011 Survey responses'!EM48<0.5,\"\",'2011 Survey responses'!EM48)","v":5},{"$f":"IF('2011 Survey responses'!EN48<0.5,\"\",'2011 Survey responses'!EN48)","v":5},{"$f":"IF('2011 Survey responses'!EO48<0.5,\"\",'2011 Survey responses'!EO48)","v":4},{"$f":"IF('2011 Survey responses'!EP48<0.5,\"\",'2011 Survey responses'!EP48)","v":4},{"$f":"IF(('2011 Survey responses'!EW48+'2011 Survey responses'!EX48)>=2,AVERAGE('2011 Survey responses'!EW48,'2011 Survey responses'!EY48),\"\")","v":5},{"$f":"IF('2011 Survey responses'!EX48<0.5,\"\",'2011 Survey responses'!EX48)","v":5},{"$f":"IF('2011 Survey responses'!EZ48<0.5,\"\",'2011 Survey responses'!EZ48)","v":3},{"$f":"IF('2011 Survey responses'!FB48<0.5,\"\",'2011 Survey responses'!FB48)","v":5},{"$f":"IF('2011 Survey responses'!FD48<0.5,\"\",'2011 Survey responses'!FD48)","v":5},{"$f":"IF('2011 Survey responses'!FC48<0.5,\"\",'2011 Survey responses'!FC48)","v":5},{"$f":"IF(('2011 Survey responses'!EM48+'2011 Survey responses'!EN48)>=2,AVERAGE('2011 Survey responses'!EM48,'2011 Survey responses'!EN48),\"\")","v":5},{"$f":"IF('2011 Survey responses'!ES48<0.5,\"\",'2011 Survey responses'!ES48)","v":3},{"$f":"IF(('2011 Survey responses'!ET48+'2011 Survey responses'!EU48)>=2,AVERAGE('2011 Survey responses'!ET48,'2011 Survey responses'!EU48),\"\")","v":3},{"$f":"IF('2011 Survey responses'!EV48<0.5,\"\",'2011 Survey responses'!EV48)","v":3},{"$f":"IF('2011 Survey responses'!FA48<0.5,\"\",'2011 Survey responses'!FA48)","v":3},{"$f":"IF('2011 Survey responses'!ER48<0.5,\"\",'2011 Survey responses'!ER48)","v":3},{"$f":"IF(('2011 Survey responses'!EO48+'2011 Survey responses'!EP48)>=2,AVERAGE('2011 Survey responses'!EO48,'2011 Survey responses'!EP48),\"\")","v":4},{"$f":"IF('2011 Survey responses'!EQ48<0.5,\"\",'2011 Survey responses'!EQ48)","v":""},{"$f":"IF('2011 Survey responses'!ET48<0.5,\"\",'2011 Survey responses'!ET48)","v":3},{"$f":"IF('2011 Survey responses'!EU48<0.5,\"\",'2011 Survey responses'!EU48)","v":3},{"$f":"IF('2011 Survey responses'!EW48<0.5,\"\",'2011 Survey responses'!EW48)","v":5},{"$f":"IF('2011 Survey responses'!EY48<0.5,\"\",'2011 Survey responses'!EY48)","v":5},{"$f":"IF('2011 Survey responses'!FU48<0.5,\"\",'2011 Survey responses'!FU48)","v":3},{"$f":"IF(('2011 Survey responses'!FL48+'2011 Survey responses'!FM48)>=2,AVERAGE('2011 Survey responses'!FL48,'2011 Survey responses'!FM48),\"\")","v":2},{"$f":"IF(('2011 Survey responses'!FO48+'2011 Survey responses'!FQ48)>=2,AVERAGE('2011 Survey responses'!FO48,'2011 Survey responses'!FQ48),\"\")","v":2.5},{"$f":"IF('2011 Survey responses'!FJ48<0.5,\"\",'2011 Survey responses'!FJ48)","v":2},{"$f":"IF('2011 Survey responses'!FT48<0.5,\"\",'2011 Survey responses'!FT48)","v":4},{"$f":"IF('2011 Survey responses'!FR48<0.5,\"\",'2011 Survey responses'!FR48)","v":""},{"$f":"IF('2011 Survey responses'!FK48<0.5,\"\",'2011 Survey responses'!FK48)","v":2},{"$f":"IF('2011 Survey responses'!FP48<0.5,\"\",'2011 Survey responses'!FP48)","v":4},{"$f":"IF('2011 Survey responses'!FN48<0.5,\"\",'2011 Survey responses'!FN48)","v":1},{"$f":"IF(('2011 Survey responses'!FE48+'2011 Survey responses'!FF48)>=2,AVERAGE('2011 Survey responses'!FE48,'2011 Survey responses'!FF48),\"\")","v":4},{"$f":"IF('2011 Survey responses'!FS48<0.5,\"\",'2011 Survey responses'!FS48)","v":2},{"$f":"IF('2011 Survey responses'!FV48<0.5,\"\",'2011 Survey responses'!FV48)","v":3},{"$f":"IF(('2011 Survey responses'!FG48+'2011 Survey responses'!FH48)>=2,AVERAGE('2011 Survey responses'!FG48,'2011 Survey responses'!FH48),\"\")","v":4},{"$f":"IF('2011 Survey responses'!FI48<0.5,\"\",'2011 Survey responses'!FI48)","v":""},{"$f":"IF('2011 Survey responses'!FE48<0.5,\"\",'2011 Survey responses'!FE48)","v":4},{"$f":"IF('2011 Survey responses'!FF48<0.5,\"\",'2011 Survey responses'!FF48)","v":4},{"$f":"IF('2011 Survey responses'!FG48<0.5,\"\",'2011 Survey responses'!FG48)","v":4},{"$f":"IF('2011 Survey responses'!FH48<0.5,\"\",'2011 Survey responses'!FH48)","v":4},{"$f":"IF('2011 Survey responses'!FL48<0.5,\"\",'2011 Survey responses'!FL48)","v":2},{"$f":"IF('2011 Survey responses'!FM48<0.5,\"\",'2011 Survey responses'!FM48)","v":2},{"$f":"IF('2011 Survey responses'!FO48<0.5,\"\",'2011 Survey responses'!FO48)","v":1},{"$f":"IF('2011 Survey responses'!FQ48<0.5,\"\",'2011 Survey responses'!FQ48)","v":4}]
["Democratic Republic of the Congo",{"$f":"IF(SUM(F49)<1,\"\",AVERAGEIF('2011 Survey responses'!B49:CP49,\">1\"))","v":""},{"$f":"IF(SUM(F49)<1,\"\",AVERAGEIF('2011 Survey responses'!B49:AO49,\">1\"))","v":""},{"$f":"IF(SUM(F49)<1,\"\",AVERAGEIF('2011 Survey responses'!B49:BV49,\">1\"))","v":""},{"$f":"IF(SUM(F49)<1,\"\",AVERAGEIF('2011 Survey responses'!V49:BV49,\">1\"))","v":""},{"$f":"IF(SUM('2011 Survey responses'!B49:U49)<1,\"\",(AVERAGEIFS('2011 Survey responses'!B49:U49,'2011 Survey responses'!B49:U49,\">1\")))","v":""},{"$f":"IF(SUM('2011 Survey responses'!B49:H49)<1,\"\",(AVERAGEIFS('2011 Survey responses'!B49:H49,'2011 Survey responses'!B49:H49,\">1\")))","v":""},{"$f":"IF(SUM('2011 Survey responses'!I49:S49)<1,\"\",(AVERAGEIFS('2011 Survey responses'!I49:S49,'2011 Survey responses'!I49:S49,\">1\")))","v":""},{"$f":"IF(SUM('2011 Survey responses'!T49:U49)<2.1,\"\",(AVERAGEIFS('2011 Survey responses'!T49:U49,'2011 Survey responses'!T49:U49,\">1\")))","v":""},{"$f":"IF(SUM('2011 Survey responses'!B49:C49)<2.1,\"\",((SUMIF('2011 Survey responses'!B49:C49,\">1\")+SUMIF('2011 Survey responses'!F49,\">1\"))/(COUNTIF('2011 Survey responses'!B49:C49,\">1\")+COUNTIF('2011 Survey responses'!F49,\">1\"))))","v":""},{"$f":"IF(SUM('2011 Survey responses'!D49:E49)<2.1,\"\",(AVERAGEIFS('2011 Survey responses'!D49:E49,'2011 Survey responses'!D49:E49,\">1\")))","v":""},{"$f":"IF(('2011 Survey responses'!B49+'2011 Survey responses'!D49)<2.1,\"\",((SUMIF('2011 Survey responses'!B49,\">1\")+SUMIF('2011 Survey responses'!D49,\">1\")+SUMIF('2011 Survey responses'!F49,\">1\")+SUMIF('2011 Survey responses'!K49,\">1\"))/(COUNTIF('2011 Survey responses'!B49,\">1\")+COUNTIF('2011 Survey responses'!D49,\">1\")+COUNTIF('2011 Survey responses'!F49,\">1\")+COUNTIF('2011 Survey responses'!K49,\">1\"))))","v":""},{"$f":"IF(SUM('2011 Survey responses'!G49:H49)<2.1,\"\",(AVERAGEIFS('2011 Survey responses'!G49:H49,'2011 Survey responses'!G49:H49,\">1\")))","v":""},{"$f":"IF(SUM('2011 Survey responses'!F49:G49)<1.5,\"\",MAX('2011 Survey responses'!F49,'2011 Survey responses'!G49))","v":""},{"$f":"IF(SUM('2011 Survey responses'!G49:H49)<1,\"\",MAX('2011 Survey responses'!G49,'2011 Survey responses'!H49))","v":""},{"$f":"IF(SUM('2011 Survey responses'!I49:L49)<4.1,\"\",(AVERAGEIFS('2011 Survey responses'!I49:L49,'2011 Survey responses'!I49:L49,\">1\")))","v":""},{"$f":"IF(SUM('2011 Survey responses'!M49:S49)<4.1,\"\",(AVERAGEIFS('2011 Survey responses'!M49:S49,'2011 Survey responses'!M49:S49,\">1\")))","v":""},{"$f":"IF(SUM('2011 Survey responses'!T49:U49)<2.1,\"\",(AVERAGEIFS('2011 Survey responses'!T49:U49,'2011 Survey responses'!T49:U49,\">1\")))","v":""},{"$f":"IF(SUM('2011 Survey responses'!V49:AO49)<1,\"\",(AVERAGEIFS('2011 Survey responses'!V49:AO49,'2011 Survey responses'!V49:AO49,\">1\")))","v":""},{"$f":"IF(SUM('2011 Survey responses'!V49:AA49)<1,\"\",(AVERAGEIFS('2011 Survey responses'!V49:AA49,'2011 Survey responses'!V49:AA49,\">1\")))","v":""},{"$f":"IF(SUM('2011 Survey responses'!AB49:AH49)<1,\"\",(AVERAGEIFS('2011 Survey responses'!AB49:AH49,'2011 Survey responses'!AB49:AH49,\">1\")))","v":""},{"$f":"IF(SUM('2011 Survey responses'!AI49:AO49)<1,\"\",(AVERAGEIFS('2011 Survey responses'!AI49:AO49,'2011 Survey responses'!AI49:AO49,\">1\")))","v":""},{"$f":"IF(('2011 Survey responses'!Y49+'2011 Survey responses'!AI49+'2011 Survey responses'!AK49)<3.1,\"\",((SUMIF('2011 Survey responses'!Y49,\">1\")+SUMIF('2011 Survey responses'!AI49,\">1\")+SUMIF('2011 Survey responses'!AK49,\">1\")+SUMIF('2011 Survey responses'!AM49,\">1\"))/(COUNTIF('2011 Survey responses'!Y49,\">1\")+COUNTIF('2011 Survey responses'!AI49,\">1\")+COUNTIF('2011 Survey responses'!AK49,\">1\")+COUNTIF('2011 Survey responses'!AM49,\">1\"))))","v":""},{"$f":"IF(('2011 Survey responses'!W49)<1.1,\"\",('2011 Survey responses'!W49))","v":""},{"$f":"IF(('2011 Survey responses'!Y49)<1.1,\"\",('2011 Survey responses'!Y49))","v":""},{"$f":"IF(('2011 Survey responses'!Z49)<1.1,\"\",('2011 Survey responses'!Z49))","v":""},{"$f":"IF(('2011 Survey responses'!V49+'2011 Survey responses'!X49+'2011 Survey responses'!AA49)<3.1,\"\",((SUMIF('2011 Survey responses'!V49,\">1\")+SUMIF('2011 Survey responses'!X49,\">1\")+SUMIF('2011 Survey responses'!AA49,\">1\"))/(COUNTIF('2011 Survey responses'!V49,\">1\")+COUNTIF('2011 Survey responses'!X49,\">1\")+COUNTIF('2011 Survey responses'!AA49,\">1\"))))","v":""},{"$f":"IF(('2011 Survey responses'!V49+'2011 Survey responses'!Y49+'2011 Survey responses'!AA49)<3.1,\"\",((SUMIF('2011 Survey responses'!V49,\">1\")+SUMIF('2011 Survey responses'!Y49,\">1\")+SUMIF('2011 Survey responses'!AA49,\">1\"))/(COUNTIF('2011 Survey responses'!V49,\">1\")+COUNTIF('2011 Survey responses'!Y49,\">1\")+COUNTIF('2011 Survey responses'!AA49,\">1\"))))","v":""},{"$f":"IF(SUM('2011 Survey responses'!AB49:AH49)<1,\"\",(AVERAGEIFS('2011 Survey responses'!AB49:AH49,'2011 Survey responses'!AB49:AH49,\">1\")))","v":""},{"$f":"IF(SUM('2011 Survey responses'!AI49:AO49)<7.1,\"\",(AVERAGEIFS('2011 Survey responses'!AI49:AO49,'2011 Survey responses'!AI49:AO49,\">1\")))","v":""},{"$f":"IF(('2011 Survey responses'!AH49)<1.1,\"\",('2011 Survey responses'!AH49))","v":""},{"$f":"IF(SUM('2011 Survey responses'!AP49:BV49)<1,\"\",(AVERAGEIFS('2011 Survey responses'!AP49:BV49,'2011 Survey responses'!AP49:BV49,\">1\")))","v":""},{"$f":"IF(SUM('2011 Survey responses'!AP49:AS49)<4.1,\"\",(AVERAGEIFS('2011 Survey responses'!AP49:AS49,'2011 Survey responses'!AP49:AS49,\">1\")))","v":""},{"$f":"IF(SUM('2011 Survey responses'!AT49:BF49)<1,\"\",(AVERAGEIFS('2011 Survey responses'!AT49:BF49,'2011 Survey responses'!AT49:BF49,\">1\")))","v":""},{"$f":"IF(SUM('2011 Survey responses'!BG49:BO49)<1,\"\",(AVERAGEIFS('2011 Survey responses'!BG49:BO49,'2011 Survey responses'!BG49:BO49,\">1\")))","v":""},{"$f":"IF(SUM('2011 Survey responses'!BP49:BS49)<1,\"\",(AVERAGEIFS('2011 Survey responses'!BP49:BS49,'2011 Survey responses'!BP49:BS49,\">1\")))","v":""},{"$f":"IF(SUM('2011 Survey responses'!BT49:BV49)<3.1,\"\",(AVERAGEIFS('2011 Survey responses'!BT49:BV49,'2011 Survey responses'!BT49:BV49,\">1\")))","v":""},{"$f":"IF(('2011 Survey responses'!AQ49+'2011 Survey responses'!AR49+'2011 Survey responses'!BG49)<3.1,\"\",((SUMIF('2011 Survey responses'!AQ49,\">1\")+SUMIF('2011 Survey responses'!AR49,\">1\")+SUMIF('2011 Survey responses'!BG49,\">1\"))/(COUNTIF('2011 Survey responses'!AQ49,\">1\")+COUNTIF('2011 Survey responses'!AR49,\">1\")+COUNTIF('2011 Survey responses'!BG49,\">1\"))))","v":""},{"$f":"IF(SUM('2011 Survey responses'!AP49:AS49)<4.1,\"\",(AVERAGEIFS('2011 Survey responses'!AP49:AS49,'2011 Survey responses'!AP49:AS49,\">1\")))","v":""},{"$f":"IF(('2011 Survey responses'!AU49+'2011 Survey responses'!AX49+'2011 Survey responses'!BA49+'2011 Survey responses'!BC49+'2011 Survey responses'!BD49)<5.1,\"\",(SUMIF('2011 Survey responses'!AU49,\">1\")+SUMIF('2011 Survey responses'!AX49,\">1\")+SUMIF('2011 Survey responses'!BA49,\">1\")+SUMIF('2011 Survey responses'!BC49,\">1\")+SUMIF('2011 Survey responses'!BD49,\">1\"))/(COUNTIF('2011 Survey responses'!AU49,\">1\")+COUNTIF('2011 Survey responses'!AX49,\">1\")+COUNTIF('2011 Survey responses'!BA49,\">1\")+COUNTIF('2011 Survey responses'!BC49,\">1\")+COUNTIF('2011 Survey responses'!BD49,\">1\")))","v":""},{"$f":"IF(('2011 Survey responses'!AT49)<1.1,\"\",('2011 Survey responses'!AT49))","v":""},{"$f":"IF(SUM('2011 Survey responses'!AV49:AW49)<2.1,\"\",(AVERAGEIFS('2011 Survey responses'!AV49:AW49,'2011 Survey responses'!AV49:AW49,\">1\")))","v":""},{"$f":"IF(('2011 Survey responses'!AW49+'2011 Survey responses'!AY49)<2.1,\"\",(SUMIF('2011 Survey responses'!AW49,\">1\")+SUMIF('2011 Survey responses'!AY49,\">1\"))/(COUNTIF('2011 Survey responses'!AW49,\">1\")+COUNTIF('2011 Survey responses'!AY49,\">1\")))","v":""},{"$f":"IF(('2011 Survey responses'!AZ49)<1.1,\"\",('2011 Survey responses'!AZ49))","v":""},null,null,null,null,{"$f":"IF(('2011 Survey responses'!BE49)<1.1,\"\",('2011 Survey responses'!BE49))","v":""},{"$f":"IF(('2011 Survey responses'!AY49+'2011 Survey responses'!BB49+'2011 Survey responses'!BF49)<3.1,\"\",(SUMIF('2011 Survey responses'!AY49,\">1\")+SUMIF('2011 Survey responses'!BB49,\">1\")+SUMIF('2011 Survey responses'!BF49,\">1\"))/(COUNTIF('2011 Survey responses'!AY49,\">1\")+COUNTIF('2011 Survey responses'!BB49,\">1\")+COUNTIF('2011 Survey responses'!BF49,\">1\")))","v":""},"",{"$f":"IF(SUM('2011 Survey responses'!BT49:BV49)<3.1,\"\",(AVERAGEIFS('2011 Survey responses'!BT49:BV49,'2011 Survey responses'!BT49:BV49,\">1\")))","v":""},{"$f":"IF(SUM('2011 Survey responses'!BW49:CP49)<1,\"\",(AVERAGEIFS('2011 Survey responses'!BW49:CP49,'2011 Survey responses'!BW49:CP49,\">1\")))","v":""},{"$f":"IF(SUM('2011 Survey responses'!BW49:CF49)<1,\"\",(AVERAGEIFS('2011 Survey responses'!BW49:CF49,'2011 Survey responses'!BW49:CF49,\">1\")))","v":""},{"$f":"IF(SUM('2011 Survey responses'!CG49:CP49)<1,\"\",(AVERAGEIFS('2011 Survey responses'!CG49:CP49,'2011 Survey responses'!CG49:CP49,\">1\")))","v":""},{"$f":"IF(SUM('2011 Survey responses'!BX49:CF49)<1,\"\",(AVERAGEIFS('2011 Survey responses'!BX49:CF49,'2011 Survey responses'!BX49:CF49,\">1\")))","v":""},{"$f":"IF(SUM('2011 Survey responses'!CH49:CP49)<1,\"\",(AVERAGEIFS('2011 Survey responses'!CH49:CP49,'2011 Survey responses'!CH49:CP49,\">1\")))","v":""},{"$f":"IF(SUM('2011 Survey responses'!BW49:CP49)<1,\"\",(AVERAGEIFS('2011 Survey responses'!BW49:CP49,'2011 Survey responses'!BW49:CP49,\">1\")))","v":""},{"$f":"IF(('2011 Survey responses'!BW49+'2011 Survey responses'!CG49)<2.1,\"\",(SUMIF('2011 Survey responses'!BW49,\">1\")+SUMIF('2011 Survey responses'!CG49,\">1\"))/(COUNTIF('2011 Survey responses'!BW49,\">1\")+COUNTIF('2011 Survey responses'!CG49,\">1\")))","v":""},{"$f":"IF(('2011 Survey responses'!BX49+'2011 Survey responses'!CH49)<2.1,\"\",(SUMIF('2011 Survey responses'!BX49,\">1\")+SUMIF('2011 Survey responses'!CH49,\">1\"))/(COUNTIF('2011 Survey responses'!BX49,\">1\")+COUNTIF('2011 Survey responses'!CH49,\">1\")))","v":""},{"$f":"IF(('2011 Survey responses'!BY49+'2011 Survey responses'!CI49)<2.1,\"\",(SUMIF('2011 Survey responses'!BY49,\">1\")+SUMIF('2011 Survey responses'!CI49,\">1\"))/(COUNTIF('2011 Survey responses'!BY49,\">1\")+COUNTIF('2011 Survey responses'!CI49,\">1\")))","v":""},{"$f":"IF('2011 Survey responses'!CQ49<0.5,\"\",'2011 Survey responses'!CQ49)","v":""},{"$f":"IF('2011 Survey responses'!CR49<0.5,\"\",'2011 Survey responses'!CR49)","v":""},{"$f":"IF('2011 Survey responses'!CS49<0.5,\"\",'2011 Survey responses'!CS49)","v":""},{"$f":"IF('2011 Survey responses'!CT49<0.5,\"\",'2011 Survey responses'!CT49)","v":""},{"$f":"IF('2011 Survey responses'!CU49<0.5,\"\",'2011 Survey responses'!CU49)","v":""},{"$f":"IF('2011 Survey responses'!CV49<0.5,\"\",'2011 Survey responses'!CV49)","v":""},{"$f":"IF(SUM('2011 Survey responses'!CW49:DL49)<1,\"\",(AVERAGE('2011 Survey responses'!CW49:DL49)))","v":""},{"$f":"IF(SUM('2011 Survey responses'!CW49:CZ49)<1,\"\",(AVERAGE('2011 Survey responses'!CW49:CZ49)))","v":""},{"$f":"IF(SUM('2011 Survey responses'!DA49:DD49)<1,\"\",(AVERAGE('2011 Survey responses'!DA49:DD49)))","v":""},{"$f":"IF(SUM('2011 Survey responses'!DE49:DH49)<1,\"\",(AVERAGE('2011 Survey responses'!DE49:DH49)))","v":""},{"$f":"IF(SUM('2011 Survey responses'!DI49:DL49)<1,\"\",(AVERAGE('2011 Survey responses'!DI49:DL49)))","v":""},{"$f":"IF(('2011 Survey responses'!CW49+'2011 Survey responses'!DA49+'2011 Survey responses'!DE49+'2011 Survey responses'!DI49)<1,\"\",AVERAGE('2011 Survey responses'!CW49,'2011 Survey responses'!DA49,'2011 Survey responses'!DE49,'2011 Survey responses'!DI49))","v":""},{"$f":"IF(('2011 Survey responses'!CX49+'2011 Survey responses'!DB49+'2011 Survey responses'!DF49+'2011 Survey responses'!DJ49)<1,\"\",AVERAGE('2011 Survey responses'!CX49,'2011 Survey responses'!DB49,'2011 Survey responses'!DF49,'2011 Survey responses'!DJ49))","v":""},{"$f":"IF(('2011 Survey responses'!CY49+'2011 Survey responses'!DC49+'2011 Survey responses'!DG49+'2011 Survey responses'!DK49)<1,\"\",AVERAGE('2011 Survey responses'!CY49,'2011 Survey responses'!DC49,'2011 Survey responses'!DG49,'2011 Survey responses'!DK49))","v":""},{"$f":"IF(('2011 Survey responses'!CZ49+'2011 Survey responses'!DD49+'2011 Survey responses'!DH49+'2011 Survey responses'!DL49)<1,\"\",AVERAGE('2011 Survey responses'!CZ49,'2011 Survey responses'!DD49,'2011 Survey responses'!DH49,'2011 Survey responses'!DL49))","v":""},{"$f":"IF('2011 Survey responses'!CW49<0.5,\"\",'2011 Survey responses'!CW49)","v":""},{"$f":"IF('2011 Survey responses'!CX49<0.5,\"\",'2011 Survey responses'!CX49)","v":""},{"$f":"IF('2011 Survey responses'!CY49<0.5,\"\",'2011 Survey responses'!CY49)","v":""},{"$f":"IF('2011 Survey responses'!CZ49<0.5,\"\",'2011 Survey responses'!CZ49)","v":""},{"$f":"IF('2011 Survey responses'!DA49<0.5,\"\",'2011 Survey responses'!DA49)","v":""},{"$f":"IF('2011 Survey responses'!DB49<0.5,\"\",'2011 Survey responses'!DB49)","v":""},{"$f":"IF('2011 Survey responses'!DC49<0.5,\"\",'2011 Survey responses'!DC49)","v":""},{"$f":"IF('2011 Survey responses'!DD49<0.5,\"\",'2011 Survey responses'!DD49)","v":""},{"$f":"IF('2011 Survey responses'!DE49<0.5,\"\",'2011 Survey responses'!DE49)","v":""},{"$f":"IF('2011 Survey responses'!DF49<0.5,\"\",'2011 Survey responses'!DF49)","v":""},{"$f":"IF('2011 Survey responses'!DG49<0.5,\"\",'2011 Survey responses'!DG49)","v":""},{"$f":"IF('2011 Survey responses'!DH49<0.5,\"\",'2011 Survey responses'!DH49)","v":""},{"$f":"IF('2011 Survey responses'!DI49<0.5,\"\",'2011 Survey responses'!DI49)","v":""},{"$f":"IF('2011 Survey responses'!DJ49<0.5,\"\",'2011 Survey responses'!DJ49)","v":""},{"$f":"IF('2011 Survey responses'!DK49<0.5,\"\",'2011 Survey responses'!DK49)","v":""},{"$f":"IF('2011 Survey responses'!DL49<0.5,\"\",'2011 Survey responses'!DL49)","v":""},{"$f":"IF('2011 Survey responses'!DU49=4,4,IF('2011 Survey responses'!DU49=5,4,\"\"))","v":""},{"$f":"IF('2011 Survey responses'!DV49=4,3,IF('2011 Survey responses'!DV49=5,3,\"\"))","v":""},"",{"$f":"IF(CQ49=2,CQ49,IF(CO49=4,CO49,IF(CP49=3,CP49,IF('2011 Survey responses'!GT49=1,1,\"\"))))","v":""},{"$f":"IF('2011 Survey responses'!DO49<0.5,\"\",'2011 Survey responses'!DO49)","v":""},{"$f":"IF('2011 Survey responses'!DP49<0.5,\"\",'2011 Survey responses'!DP49)","v":""},{"$f":"IF('2011 Survey responses'!DQ49<0.5,\"\",'2011 Survey responses'!DQ49)","v":""},{"$f":"IF('2011 Survey responses'!DR49<0.5,\"\",'2011 Survey responses'!DR49)","v":""},{"$f":"IF('2011 Survey responses'!DS49<0.5,\"\",'2011 Survey responses'!DS49)","v":""},{"$f":"IF('2011 Survey responses'!DT49<0.5,\"\",'2011 Survey responses'!DT49)","v":""},{"$f":"IF('2011 Survey responses'!DU49<0.5,\"\",'2011 Survey responses'!DU49)","v":""},{"$f":"IF('2011 Survey responses'!DV49<0.5,\"\",'2011 Survey responses'!DV49)","v":""},{"$f":"IF('2011 Survey responses'!DW49<0.5,\"\",'2011 Survey responses'!DW49)","v":""},{"$f":"IF('2011 Survey responses'!DX49<0.5,\"\",'2011 Survey responses'!DX49)","v":""},{"$f":"IF('2011 Survey responses'!DY49<0.5,\"\",'2011 Survey responses'!DY49)","v":""},{"$f":"IF('2011 Survey responses'!DZ49<0.5,\"\",'2011 Survey responses'!DZ49)","v":""},{"$f":"IF('2011 Survey responses'!EA49<0.5,\"\",'2011 Survey responses'!EA49)","v":""},{"$f":"IF('2011 Survey responses'!EB49<0.5,\"\",'2011 Survey responses'!EB49)","v":""},{"$f":"IF('2011 Survey responses'!EC49<0.5,\"\",'2011 Survey responses'!EC49)","v":""},{"$f":"IF('2011 Survey responses'!ED49<0.5,\"\",'2011 Survey responses'!ED49)","v":""},{"$f":"IF('2011 Survey responses'!EE49<0.5,\"\",'2011 Survey responses'!EE49)","v":""},{"$f":"IF('2011 Survey responses'!EF49<0.5,\"\",'2011 Survey responses'!EF49)","v":""},{"$f":"IF('2011 Survey responses'!EG49<0.5,\"\",'2011 Survey responses'!EG49)","v":""},{"$f":"IF('2011 Survey responses'!EH49<0.5,\"\",'2011 Survey responses'!EH49)","v":""},{"$f":"IF('2011 Survey responses'!EI49<0.5,\"\",'2011 Survey responses'!EI49)","v":""},{"$f":"IF('2011 Survey responses'!EJ49<0.5,\"\",'2011 Survey responses'!EJ49)","v":""},{"$f":"IF('2011 Survey responses'!EK49<0.5,\"\",'2011 Survey responses'!EK49)","v":""},{"$f":"IF('2011 Survey responses'!EL49<0.5,\"\",'2011 Survey responses'!EL49)","v":""},{"$f":"IF('2011 Survey responses'!EM49<0.5,\"\",'2011 Survey responses'!EM49)","v":""},{"$f":"IF('2011 Survey responses'!EN49<0.5,\"\",'2011 Survey responses'!EN49)","v":""},{"$f":"IF('2011 Survey responses'!EO49<0.5,\"\",'2011 Survey responses'!EO49)","v":""},{"$f":"IF('2011 Survey responses'!EP49<0.5,\"\",'2011 Survey responses'!EP49)","v":""},{"$f":"IF(('2011 Survey responses'!EW49+'2011 Survey responses'!EX49)>=2,AVERAGE('2011 Survey responses'!EW49,'2011 Survey responses'!EY49),\"\")","v":""},{"$f":"IF('2011 Survey responses'!EX49<0.5,\"\",'2011 Survey responses'!EX49)","v":""},{"$f":"IF('2011 Survey responses'!EZ49<0.5,\"\",'2011 Survey responses'!EZ49)","v":""},{"$f":"IF('2011 Survey responses'!FB49<0.5,\"\",'2011 Survey responses'!FB49)","v":""},{"$f":"IF('2011 Survey responses'!FD49<0.5,\"\",'2011 Survey responses'!FD49)","v":""},{"$f":"IF('2011 Survey responses'!FC49<0.5,\"\",'2011 Survey responses'!FC49)","v":""},{"$f":"IF(('2011 Survey responses'!EM49+'2011 Survey responses'!EN49)>=2,AVERAGE('2011 Survey responses'!EM49,'2011 Survey responses'!EN49),\"\")","v":""},{"$f":"IF('2011 Survey responses'!ES49<0.5,\"\",'2011 Survey responses'!ES49)","v":""},{"$f":"IF(('2011 Survey responses'!ET49+'2011 Survey responses'!EU49)>=2,AVERAGE('2011 Survey responses'!ET49,'2011 Survey responses'!EU49),\"\")","v":""},{"$f":"IF('2011 Survey responses'!EV49<0.5,\"\",'2011 Survey responses'!EV49)","v":""},{"$f":"IF('2011 Survey responses'!FA49<0.5,\"\",'2011 Survey responses'!FA49)","v":""},{"$f":"IF('2011 Survey responses'!ER49<0.5,\"\",'2011 Survey responses'!ER49)","v":""},{"$f":"IF(('2011 Survey responses'!EO49+'2011 Survey responses'!EP49)>=2,AVERAGE('2011 Survey responses'!EO49,'2011 Survey responses'!EP49),\"\")","v":""},{"$f":"IF('2011 Survey responses'!EQ49<0.5,\"\",'2011 Survey responses'!EQ49)","v":""},{"$f":"IF('2011 Survey responses'!ET49<0.5,\"\",'2011 Survey responses'!ET49)","v":""},{"$f":"IF('2011 Survey responses'!EU49<0.5,\"\",'2011 Survey responses'!EU49)","v":""},{"$f":"IF('2011 Survey responses'!EW49<0.5,\"\",'2011 Survey responses'!EW49)","v":""},{"$f":"IF('2011 Survey responses'!EY49<0.5,\"\",'2011 Survey responses'!EY49)","v":""},{"$f":"IF('2011 Survey responses'!FU49<0.5,\"\",'2011 Survey responses'!FU49)","v":""},{"$f":"IF(('2011 Survey responses'!FL49+'2011 Survey responses'!FM49)>=2,AVERAGE('2011 Survey responses'!FL49,'2011 Survey responses'!FM49),\"\")","v":""},{"$f":"IF(('2011 Survey responses'!FO49+'2011 Survey responses'!FQ49)>=2,AVERAGE('2011 Survey responses'!FO49,'2011 Survey responses'!FQ49),\"\")","v":""},{"$f":"IF('2011 Survey responses'!FJ49<0.5,\"\",'2011 Survey responses'!FJ49)","v":""},{"$f":"IF('2011 Survey responses'!FT49<0.5,\"\",'2011 Survey responses'!FT49)","v":""},{"$f":"IF('2011 Survey responses'!FR49<0.5,\"\",'2011 Survey responses'!FR49)","v":""},{"$f":"IF('2011 Survey responses'!FK49<0.5,\"\",'2011 Survey responses'!FK49)","v":""},{"$f":"IF('2011 Survey responses'!FP49<0.5,\"\",'2011 Survey responses'!FP49)","v":""},{"$f":"IF('2011 Survey responses'!FN49<0.5,\"\",'2011 Survey responses'!FN49)","v":""},{"$f":"IF(('2011 Survey responses'!FE49+'2011 Survey responses'!FF49)>=2,AVERAGE('2011 Survey responses'!FE49,'2011 Survey responses'!FF49),\"\")","v":""},{"$f":"IF('2011 Survey responses'!FS49<0.5,\"\",'2011 Survey responses'!FS49)","v":""},{"$f":"IF('2011 Survey responses'!FV49<0.5,\"\",'2011 Survey responses'!FV49)","v":""},{"$f":"IF(('2011 Survey responses'!FG49+'2011 Survey responses'!FH49)>=2,AVERAGE('2011 Survey responses'!FG49,'2011 Survey responses'!FH49),\"\")","v":""},{"$f":"IF('2011 Survey responses'!FI49<0.5,\"\",'2011 Survey responses'!FI49)","v":""},{"$f":"IF('2011 Survey responses'!FE49<0.5,\"\",'2011 Survey responses'!FE49)","v":""},{"$f":"IF('2011 Survey responses'!FF49<0.5,\"\",'2011 Survey responses'!FF49)","v":""},{"$f":"IF('2011 Survey responses'!FG49<0.5,\"\",'2011 Survey responses'!FG49)","v":""},{"$f":"IF('2011 Survey responses'!FH49<0.5,\"\",'2011 Survey responses'!FH49)","v":""},{"$f":"IF('2011 Survey responses'!FL49<0.5,\"\",'2011 Survey responses'!FL49)","v":""},{"$f":"IF('2011 Survey responses'!FM49<0.5,\"\",'2011 Survey responses'!FM49)","v":""},{"$f":"IF('2011 Survey responses'!FO49<0.5,\"\",'2011 Survey responses'!FO49)","v":""},{"$f":"IF('2011 Survey responses'!FQ49<0.5,\"\",'2011 Survey responses'!FQ49)","v":""}]
["Denmark",{"$f":"IF(SUM(F50)<1,\"\",AVERAGEIF('2011 Survey responses'!B50:CP50,\">1\"))","v":4.375},{"$f":"IF(SUM(F50)<1,\"\",AVERAGEIF('2011 Survey responses'!B50:AO50,\">1\"))","v":4.25},{"$f":"IF(SUM(F50)<1,\"\",AVERAGEIF('2011 Survey responses'!B50:BV50,\">1\"))","v":4.2444444444444445},{"$f":"IF(SUM(F50)<1,\"\",AVERAGEIF('2011 Survey responses'!V50:BV50,\">1\"))","v":4.4444444444444446},{"$f":"IF(SUM('2011 Survey responses'!B50:U50)<1,\"\",(AVERAGEIFS('2011 Survey responses'!B50:U50,'2011 Survey responses'!B50:U50,\">1\")))","v":3.4444444444444446},{"$f":"IF(SUM('2011 Survey responses'!B50:H50)<1,\"\",(AVERAGEIFS('2011 Survey responses'!B50:H50,'2011 Survey responses'!B50:H50,\">1\")))","v":5.5},{"$f":"IF(SUM('2011 Survey responses'!I50:S50)<1,\"\",(AVERAGEIFS('2011 Survey responses'!I50:S50,'2011 Survey responses'!I50:S50,\">1\")))","v":3.2},{"$f":"IF(SUM('2011 Survey responses'!T50:U50)<2.1,\"\",(AVERAGEIFS('2011 Survey responses'!T50:U50,'2011 Survey responses'!T50:U50,\">1\")))","v":2},{"$f":"IF(SUM('2011 Survey responses'!B50:C50)<2.1,\"\",((SUMIF('2011 Survey responses'!B50:C50,\">1\")+SUMIF('2011 Survey responses'!F50,\">1\"))/(COUNTIF('2011 Survey responses'!B50:C50,\">1\")+COUNTIF('2011 Survey responses'!F50,\">1\"))))","v":""},{"$f":"IF(SUM('2011 Survey responses'!D50:E50)<2.1,\"\",(AVERAGEIFS('2011 Survey responses'!D50:E50,'2011 Survey responses'!D50:E50,\">1\")))","v":6},{"$f":"IF(('2011 Survey responses'!B50+'2011 Survey responses'!D50)<2.1,\"\",((SUMIF('2011 Survey responses'!B50,\">1\")+SUMIF('2011 Survey responses'!D50,\">1\")+SUMIF('2011 Survey responses'!F50,\">1\")+SUMIF('2011 Survey responses'!K50,\">1\"))/(COUNTIF('2011 Survey responses'!B50,\">1\")+COUNTIF('2011 Survey responses'!D50,\">1\")+COUNTIF('2011 Survey responses'!F50,\">1\")+COUNTIF('2011 Survey responses'!K50,\">1\"))))","v":5.5},{"$f":"IF(SUM('2011 Survey responses'!G50:H50)<2.1,\"\",(AVERAGEIFS('2011 Survey responses'!G50:H50,'2011 Survey responses'!G50:H50,\">1\")))","v":5},{"$f":"IF(SUM('2011 Survey responses'!F50:G50)<1.5,\"\",MAX('2011 Survey responses'!F50,'2011 Survey responses'!G50))","v":""},{"$f":"IF(SUM('2011 Survey responses'!G50:H50)<1,\"\",MAX('2011 Survey responses'!G50,'2011 Survey responses'!H50))","v":5},{"$f":"IF(SUM('2011 Survey responses'!I50:L50)<4.1,\"\",(AVERAGEIFS('2011 Survey responses'!I50:L50,'2011 Survey responses'!I50:L50,\">1\")))","v":3.5},{"$f":"IF(SUM('2011 Survey responses'!M50:S50)<4.1,\"\",(AVERAGEIFS('2011 Survey responses'!M50:S50,'2011 Survey responses'!M50:S50,\">1\")))","v":3},{"$f":"IF(SUM('2011 Survey responses'!T50:U50)<2.1,\"\",(AVERAGEIFS('2011 Survey responses'!T50:U50,'2011 Survey responses'!T50:U50,\">1\")))","v":2},{"$f":"IF(SUM('2011 Survey responses'!V50:AO50)<1,\"\",(AVERAGEIFS('2011 Survey responses'!V50:AO50,'2011 Survey responses'!V50:AO50,\">1\")))","v":4.9090909090909092},{"$f":"IF((OR(SUM('2011 Survey responses'!V50:AA50)=6,SUM('2011 Survey responses'!V50:AA50)<1)),\"\",(AVERAGEIFS('2011 Survey responses'!V50:AA50,'2011 Survey responses'!V50:AA50,\">1\")))","v":3.3333333333333335},{"$f":"IF(SUM('2011 Survey responses'!AB50:AH50)<1,\"\",(AVERAGEIFS('2011 Survey responses'!AB50:AH50,'2011 Survey responses'!AB50:AH50,\">1\")))","v":5.333333333333333},{"$f":"IF(SUM('2011 Survey responses'!AI50:AO50)<1,\"\",(AVERAGEIFS('2011 Survey responses'!AI50:AO50,'2011 Survey responses'!AI50:AO50,\">1\")))","v":6},{"$f":"IF(('2011 Survey responses'!Y50+'2011 Survey responses'!AI50+'2011 Survey responses'!AK50)<3.1,\"\",((SUMIF('2011 Survey responses'!Y50,\">1\")+SUMIF('2011 Survey responses'!AI50,\">1\")+SUMIF('2011 Survey responses'!AK50,\">1\")+SUMIF('2011 Survey responses'!AM50,\">1\"))/(COUNTIF('2011 Survey responses'!Y50,\">1\")+COUNTIF('2011 Survey responses'!AI50,\">1\")+COUNTIF('2011 Survey responses'!AK50,\">1\")+COUNTIF('2011 Survey responses'!AM50,\">1\"))))","v":2},{"$f":"IF(('2011 Survey responses'!W50)<1.1,\"\",('2011 Survey responses'!W50))","v":""},{"$f":"IF(('2011 Survey responses'!Y50)<1.1,\"\",('2011 Survey responses'!Y50))","v":2},{"$f":"IF(('2011 Survey responses'!Z50)<1.1,\"\",('2011 Survey responses'!Z50))","v":2},{"$f":"IF(('2011 Survey responses'!V50+'2011 Survey responses'!X50+'2011 Survey responses'!AA50)<3.1,\"\",((SUMIF('2011 Survey responses'!V50,\">1\")+SUMIF('2011 Survey responses'!X50,\">1\")+SUMIF('2011 Survey responses'!AA50,\">1\"))/(COUNTIF('2011 Survey responses'!V50,\">1\")+COUNTIF('2011 Survey responses'!X50,\">1\")+COUNTIF('2011 Survey responses'!AA50,\">1\"))))","v":6},{"$f":"IF(('2011 Survey responses'!V50+'2011 Survey responses'!Y50+'2011 Survey responses'!AA50)<3.1,\"\",((SUMIF('2011 Survey responses'!V50,\">1\")+SUMIF('2011 Survey responses'!Y50,\">1\")+SUMIF('2011 Survey responses'!AA50,\">1\"))/(COUNTIF('2011 Survey responses'!V50,\">1\")+COUNTIF('2011 Survey responses'!Y50,\">1\")+COUNTIF('2011 Survey responses'!AA50,\">1\"))))","v":4},{"$f":"IF(SUM('2011 Survey responses'!AB50:AH50)<1,\"\",(AVERAGEIFS('2011 Survey responses'!AB50:AH50,'2011 Survey responses'!AB50:AH50,\">1\")))","v":5.333333333333333},{"$f":"IF(SUM('2011 Survey responses'!AI50:AO50)<7.1,\"\",(AVERAGEIFS('2011 Survey responses'!AI50:AO50,'2011 Survey responses'!AI50:AO50,\">1\")))","v":6},{"$f":"IF(('2011 Survey responses'!AH50)<1.1,\"\",('2011 Survey responses'!AH50))","v":""},{"$f":"IF(SUM('2011 Survey responses'!AP50:BV50)<1,\"\",(AVERAGEIFS('2011 Survey responses'!AP50:BV50,'2011 Survey responses'!AP50:BV50,\">1\")))","v":4.24},{"$f":"IF(SUM('2011 Survey responses'!AP50:AS50)<4.1,\"\",(AVERAGEIFS('2011 Survey responses'!AP50:AS50,'2011 Survey responses'!AP50:AS50,\">1\")))","v":6},{"$f":"IF(SUM('2011 Survey responses'!AT50:BF50)<1,\"\",(AVERAGEIFS('2011 Survey responses'!AT50:BF50,'2011 Survey responses'!AT50:BF50,\">1\")))","v":2.8},{"$f":"IF(SUM('2011 Survey responses'!BG50:BO50)<1,\"\",(AVERAGEIFS('2011 Survey responses'!BG50:BO50,'2011 Survey responses'!BG50:BO50,\">1\")))","v":5.4285714285714288},{"$f":"IF(SUM('2011 Survey responses'!BP50:BS50)<1,\"\",(AVERAGEIFS('2011 Survey responses'!BP50:BS50,'2011 Survey responses'!BP50:BS50,\">1\")))","v":2},{"$f":"IF(SUM('2011 Survey responses'!BT50:BV50)<3.1,\"\",(AVERAGEIFS('2011 Survey responses'!BT50:BV50,'2011 Survey responses'!BT50:BV50,\">1\")))","v":4.666666666666667},{"$f":"IF(('2011 Survey responses'!AQ50+'2011 Survey responses'!AR50+'2011 Survey responses'!BG50)<3.1,\"\",((SUMIF('2011 Survey responses'!AQ50,\">1\")+SUMIF('2011 Survey responses'!AR50,\">1\")+SUMIF('2011 Survey responses'!BG50,\">1\"))/(COUNTIF('2011 Survey responses'!AQ50,\">1\")+COUNTIF('2011 Survey responses'!AR50,\">1\")+COUNTIF('2011 Survey responses'!BG50,\">1\"))))","v":6},{"$f":"IF(SUM('2011 Survey responses'!AP50:AS50)<4.1,\"\",(AVERAGEIFS('2011 Survey responses'!AP50:AS50,'2011 Survey responses'!AP50:AS50,\">1\")))","v":6},{"$f":"IF(('2011 Survey responses'!AU50+'2011 Survey responses'!AX50+'2011 Survey responses'!BA50+'2011 Survey responses'!BC50+'2011 Survey responses'!BD50)<5.1,\"\",(SUMIF('2011 Survey responses'!AU50,\">1\")+SUMIF('2011 Survey responses'!AX50,\">1\")+SUMIF('2011 Survey responses'!BA50,\">1\")+SUMIF('2011 Survey responses'!BC50,\">1\")+SUMIF('2011 Survey responses'!BD50,\">1\"))/(COUNTIF('2011 Survey responses'!AU50,\">1\")+COUNTIF('2011 Survey responses'!AX50,\">1\")+COUNTIF('2011 Survey responses'!BA50,\">1\")+COUNTIF('2011 Survey responses'!BC50,\">1\")+COUNTIF('2011 Survey responses'!BD50,\">1\")))","v":3.3333333333333335},{"$f":"IF(('2011 Survey responses'!AT50)<1.1,\"\",('2011 Survey responses'!AT50))","v":2},{"$f":"IF(SUM('2011 Survey responses'!AV50:AW50)<2.1,\"\",(AVERAGEIFS('2011 Survey responses'!AV50:AW50,'2011 Survey responses'!AV50:AW50,\">1\")))","v":2},{"$f":"IF(('2011 Survey responses'!AW50+'2011 Survey responses'!AY50)<2.1,\"\",(SUMIF('2011 Survey responses'!AW50,\">1\")+SUMIF('2011 Survey responses'!AY50,\">1\"))/(COUNTIF('2011 Survey responses'!AW50,\">1\")+COUNTIF('2011 Survey responses'!AY50,\">1\")))","v":2},{"$f":"IF(('2011 Survey responses'!AZ50)<1.1,\"\",('2011 Survey responses'!AZ50))","v":2},2,1,1,2,{"$f":"IF(('2011 Survey responses'!BE50)<1.1,\"\",('2011 Survey responses'!BE50))","v":2},{"$f":"IF(('2011 Survey responses'!AY50+'2011 Survey responses'!BB50+'2011 Survey responses'!BF50)<3.1,\"\",(SUMIF('2011 Survey responses'!AY50,\">1\")+SUMIF('2011 Survey responses'!BB50,\">1\")+SUMIF('2011 Survey responses'!BF50,\">1\"))/(COUNTIF('2011 Survey responses'!AY50,\">1\")+COUNTIF('2011 Survey responses'!BB50,\">1\")+COUNTIF('2011 Survey responses'!BF50,\">1\")))","v":3.3333333333333335},3.7142857142857144,{"$f":"IF(SUM('2011 Survey responses'!BT50:BV50)<3.1,\"\",(AVERAGEIFS('2011 Survey responses'!BT50:BV50,'2011 Survey responses'!BT50:BV50,\">1\")))","v":4.666666666666667},{"$f":"IF(SUM('2011 Survey responses'!BW50:CP50)<1,\"\",(AVERAGEIFS('2011 Survey responses'!BW50:CP50,'2011 Survey responses'!BW50:CP50,\">1\")))","v":4.9090909090909092},{"$f":"IF(SUM('2011 Survey responses'!BW50:CF50)<1,\"\",(AVERAGEIFS('2011 Survey responses'!BW50:CF50,'2011 Survey responses'!BW50:CF50,\">1\")))","v":5.2},{"$f":"IF(SUM('2011 Survey responses'!CG50:CP50)<1,\"\",(AVERAGEIFS('2011 Survey responses'!CG50:CP50,'2011 Survey responses'!CG50:CP50,\">1\")))","v":4.666666666666667},{"$f":"IF(SUM('2011 Survey responses'!BX50:CF50)<1,\"\",(AVERAGEIFS('2011 Survey responses'!BX50:CF50,'2011 Survey responses'!BX50:CF50,\">1\")))","v":5.2},{"$f":"IF(SUM('2011 Survey responses'!CH50:CP50)<1,\"\",(AVERAGEIFS('2011 Survey responses'!CH50:CP50,'2011 Survey responses'!CH50:CP50,\">1\")))","v":5.2},{"$f":"IF(SUM('2011 Survey responses'!BW50:CP50)<1,\"\",(AVERAGEIFS('2011 Survey responses'!BW50:CP50,'2011 Survey responses'!BW50:CP50,\">1\")))","v":4.9090909090909092},{"$f":"IF(('2011 Survey responses'!BW50+'2011 Survey responses'!CG50)<2.1,\"\",(SUMIF('2011 Survey responses'!BW50,\">1\")+SUMIF('2011 Survey responses'!CG50,\">1\"))/(COUNTIF('2011 Survey responses'!BW50,\">1\")+COUNTIF('2011 Survey responses'!CG50,\">1\")))","v":2},{"$f":"IF(('2011 Survey responses'!BX50+'2011 Survey responses'!CH50)<2.1,\"\",(SUMIF('2011 Survey responses'!BX50,\">1\")+SUMIF('2011 Survey responses'!CH50,\">1\"))/(COUNTIF('2011 Survey responses'!BX50,\">1\")+COUNTIF('2011 Survey responses'!CH50,\">1\")))","v":""},{"$f":"IF(('2011 Survey responses'!BY50+'2011 Survey responses'!CI50)<2.1,\"\",(SUMIF('2011 Survey responses'!BY50,\">1\")+SUMIF('2011 Survey responses'!CI50,\">1\"))/(COUNTIF('2011 Survey responses'!BY50,\">1\")+COUNTIF('2011 Survey responses'!CI50,\">1\")))","v":""},{"$f":"IF('2011 Survey responses'!CQ50<0.5,\"\",'2011 Survey responses'!CQ50)","v":1},{"$f":"IF('2011 Survey responses'!CR50<0.5,\"\",'2011 Survey responses'!CR50)","v":2},{"$f":"IF('2011 Survey responses'!CS50<0.5,\"\",'2011 Survey responses'!CS50)","v":2},{"$f":"IF('2011 Survey responses'!CT50<0.5,\"\",'2011 Survey responses'!CT50)","v":2},{"$f":"IF('2011 Survey responses'!CU50<0.5,\"\",'2011 Survey responses'!CU50)","v":1},{"$f":"IF('2011 Survey responses'!CV50<0.5,\"\",'2011 Survey responses'!CV50)","v":2},{"$f":"IF(SUM('2011 Survey responses'!CW50:DL50)<1,\"\",(AVERAGE('2011 Survey responses'!CW50:DL50)))","v":1.75},{"$f":"IF(SUM('2011 Survey responses'!CW50:CZ50)<1,\"\",(AVERAGE('2011 Survey responses'!CW50:CZ50)))","v":1.75},{"$f":"IF(SUM('2011 Survey responses'!DA50:DD50)<1,\"\",(AVERAGE('2011 Survey responses'!DA50:DD50)))","v":1.75},{"$f":"IF(SUM('2011 Survey responses'!DE50:DH50)<1,\"\",(AVERAGE('2011 Survey responses'!DE50:DH50)))","v":1.75},{"$f":"IF(SUM('2011 Survey responses'!DI50:DL50)<1,\"\",(AVERAGE('2011 Survey responses'!DI50:DL50)))","v":1.75},{"$f":"IF(('2011 Survey responses'!CW50+'2011 Survey responses'!DA50+'2011 Survey responses'!DE50+'2011 Survey responses'!DI50)<1,\"\",AVERAGE('2011 Survey responses'!CW50,'2011 Survey responses'!DA50,'2011 Survey responses'!DE50,'2011 Survey responses'!DI50))","v":1},{"$f":"IF(('2011 Survey responses'!CX50+'2011 Survey responses'!DB50+'2011 Survey responses'!DF50+'2011 Survey responses'!DJ50)<1,\"\",AVERAGE('2011 Survey responses'!CX50,'2011 Survey responses'!DB50,'2011 Survey responses'!DF50,'2011 Survey responses'!DJ50))","v":1},{"$f":"IF(('2011 Survey responses'!CY50+'2011 Survey responses'!DC50+'2011 Survey responses'!DG50+'2011 Survey responses'!DK50)<1,\"\",AVERAGE('2011 Survey responses'!CY50,'2011 Survey responses'!DC50,'2011 Survey responses'!DG50,'2011 Survey responses'!DK50))","v":4},{"$f":"IF(('2011 Survey responses'!CZ50+'2011 Survey responses'!DD50+'2011 Survey responses'!DH50+'2011 Survey responses'!DL50)<1,\"\",AVERAGE('2011 Survey responses'!CZ50,'2011 Survey responses'!DD50,'2011 Survey responses'!DH50,'2011 Survey responses'!DL50))","v":1},{"$f":"IF('2011 Survey responses'!CW50<0.5,\"\",'2011 Survey responses'!CW50)","v":1},{"$f":"IF('2011 Survey responses'!CX50<0.5,\"\",'2011 Survey responses'!CX50)","v":1},{"$f":"IF('2011 Survey responses'!CY50<0.5,\"\",'2011 Survey responses'!CY50)","v":4},{"$f":"IF('2011 Survey responses'!CZ50<0.5,\"\",'2011 Survey responses'!CZ50)","v":1},{"$f":"IF('2011 Survey responses'!DA50<0.5,\"\",'2011 Survey responses'!DA50)","v":1},{"$f":"IF('2011 Survey responses'!DB50<0.5,\"\",'2011 Survey responses'!DB50)","v":1},{"$f":"IF('2011 Survey responses'!DC50<0.5,\"\",'2011 Survey responses'!DC50)","v":4},{"$f":"IF('2011 Survey responses'!DD50<0.5,\"\",'2011 Survey responses'!DD50)","v":1},{"$f":"IF('2011 Survey responses'!DE50<0.5,\"\",'2011 Survey responses'!DE50)","v":1},{"$f":"IF('2011 Survey responses'!DF50<0.5,\"\",'2011 Survey responses'!DF50)","v":1},{"$f":"IF('2011 Survey responses'!DG50<0.5,\"\",'2011 Survey responses'!DG50)","v":4},{"$f":"IF('2011 Survey responses'!DH50<0.5,\"\",'2011 Survey responses'!DH50)","v":1},{"$f":"IF('2011 Survey responses'!DI50<0.5,\"\",'2011 Survey responses'!DI50)","v":1},{"$f":"IF('2011 Survey responses'!DJ50<0.5,\"\",'2011 Survey responses'!DJ50)","v":1},{"$f":"IF('2011 Survey responses'!DK50<0.5,\"\",'2011 Survey responses'!DK50)","v":4},{"$f":"IF('2011 Survey responses'!DL50<0.5,\"\",'2011 Survey responses'!DL50)","v":1},{"$f":"IF('2011 Survey responses'!DU50=4,4,IF('2011 Survey responses'!DU50=5,4,\"\"))","v":""},{"$f":"IF('2011 Survey responses'!DV50=4,3,IF('2011 Survey responses'!DV50=5,3,\"\"))","v":""},"",{"$f":"IF(CQ50=2,CQ50,IF(CO50=4,CO50,IF(CP50=3,CP50,IF('2011 Survey responses'!GT50=1,1,\"\"))))","v":1},{"$f":"IF('2011 Survey responses'!DO50<0.5,\"\",'2011 Survey responses'!DO50)","v":4},{"$f":"IF('2011 Survey responses'!DP50<0.5,\"\",'2011 Survey responses'!DP50)","v":4},{"$f":"IF('2011 Survey responses'!DQ50<0.5,\"\",'2011 Survey responses'!DQ50)","v":1},{"$f":"IF('2011 Survey responses'!DR50<0.5,\"\",'2011 Survey responses'!DR50)","v":1},{"$f":"IF('2011 Survey responses'!DS50<0.5,\"\",'2011 Survey responses'!DS50)","v":4},{"$f":"IF('2011 Survey responses'!DT50<0.5,\"\",'2011 Survey responses'!DT50)","v":4},{"$f":"IF('2011 Survey responses'!DU50<0.5,\"\",'2011 Survey responses'!DU50)","v":1},{"$f":"IF('2011 Survey responses'!DV50<0.5,\"\",'2011 Survey responses'!DV50)","v":1},{"$f":"IF('2011 Survey responses'!DW50<0.5,\"\",'2011 Survey responses'!DW50)","v":1},{"$f":"IF('2011 Survey responses'!DX50<0.5,\"\",'2011 Survey responses'!DX50)","v":4},{"$f":"IF('2011 Survey responses'!DY50<0.5,\"\",'2011 Survey responses'!DY50)","v":1},{"$f":"IF('2011 Survey responses'!DZ50<0.5,\"\",'2011 Survey responses'!DZ50)","v":5},{"$f":"IF('2011 Survey responses'!EA50<0.5,\"\",'2011 Survey responses'!EA50)","v":4},{"$f":"IF('2011 Survey responses'!EB50<0.5,\"\",'2011 Survey responses'!EB50)","v":4},{"$f":"IF('2011 Survey responses'!EC50<0.5,\"\",'2011 Survey responses'!EC50)","v":3},{"$f":"IF('2011 Survey responses'!ED50<0.5,\"\",'2011 Survey responses'!ED50)","v":3},{"$f":"IF('2011 Survey responses'!EE50<0.5,\"\",'2011 Survey responses'!EE50)","v":5},{"$f":"IF('2011 Survey responses'!EF50<0.5,\"\",'2011 Survey responses'!EF50)","v":5},{"$f":"IF('2011 Survey responses'!EG50<0.5,\"\",'2011 Survey responses'!EG50)","v":4},{"$f":"IF('2011 Survey responses'!EH50<0.5,\"\",'2011 Survey responses'!EH50)","v":3},{"$f":"IF('2011 Survey responses'!EI50<0.5,\"\",'2011 Survey responses'!EI50)","v":3},{"$f":"IF('2011 Survey responses'!EJ50<0.5,\"\",'2011 Survey responses'!EJ50)","v":4},{"$f":"IF('2011 Survey responses'!EK50<0.5,\"\",'2011 Survey responses'!EK50)","v":5},{"$f":"IF('2011 Survey responses'!EL50<0.5,\"\",'2011 Survey responses'!EL50)","v":5},{"$f":"IF('2011 Survey responses'!EM50<0.5,\"\",'2011 Survey responses'!EM50)","v":1},{"$f":"IF('2011 Survey responses'!EN50<0.5,\"\",'2011 Survey responses'!EN50)","v":1},{"$f":"IF('2011 Survey responses'!EO50<0.5,\"\",'2011 Survey responses'!EO50)","v":1},{"$f":"IF('2011 Survey responses'!EP50<0.5,\"\",'2011 Survey responses'!EP50)","v":1},{"$f":"IF(('2011 Survey responses'!EW50+'2011 Survey responses'!EX50)>=2,AVERAGE('2011 Survey responses'!EW50,'2011 Survey responses'!EY50),\"\")","v":4},{"$f":"IF('2011 Survey responses'!EX50<0.5,\"\",'2011 Survey responses'!EX50)","v":4},{"$f":"IF('2011 Survey responses'!EZ50<0.5,\"\",'2011 Survey responses'!EZ50)","v":4},{"$f":"IF('2011 Survey responses'!FB50<0.5,\"\",'2011 Survey responses'!FB50)","v":3},{"$f":"IF('2011 Survey responses'!FD50<0.5,\"\",'2011 Survey responses'!FD50)","v":4},{"$f":"IF('2011 Survey responses'!FC50<0.5,\"\",'2011 Survey responses'!FC50)","v":4},{"$f":"IF(('2011 Survey responses'!EM50+'2011 Survey responses'!EN50)>=2,AVERAGE('2011 Survey responses'!EM50,'2011 Survey responses'!EN50),\"\")","v":1},{"$f":"IF('2011 Survey responses'!ES50<0.5,\"\",'2011 Survey responses'!ES50)","v":4},{"$f":"IF(('2011 Survey responses'!ET50+'2011 Survey responses'!EU50)>=2,AVERAGE('2011 Survey responses'!ET50,'2011 Survey responses'!EU50),\"\")","v":4},{"$f":"IF('2011 Survey responses'!EV50<0.5,\"\",'2011 Survey responses'!EV50)","v":4},{"$f":"IF('2011 Survey responses'!FA50<0.5,\"\",'2011 Survey responses'!FA50)","v":4},{"$f":"IF('2011 Survey responses'!ER50<0.5,\"\",'2011 Survey responses'!ER50)","v":1},{"$f":"IF(('2011 Survey responses'!EO50+'2011 Survey responses'!EP50)>=2,AVERAGE('2011 Survey responses'!EO50,'2011 Survey responses'!EP50),\"\")","v":1},{"$f":"IF('2011 Survey responses'!EQ50<0.5,\"\",'2011 Survey responses'!EQ50)","v":5},{"$f":"IF('2011 Survey responses'!ET50<0.5,\"\",'2011 Survey responses'!ET50)","v":4},{"$f":"IF('2011 Survey responses'!EU50<0.5,\"\",'2011 Survey responses'!EU50)","v":4},{"$f":"IF('2011 Survey responses'!EW50<0.5,\"\",'2011 Survey responses'!EW50)","v":4},{"$f":"IF('2011 Survey responses'!EY50<0.5,\"\",'2011 Survey responses'!EY50)","v":4},{"$f":"IF('2011 Survey responses'!FU50<0.5,\"\",'2011 Survey responses'!FU50)","v":4},{"$f":"IF(('2011 Survey responses'!FL50+'2011 Survey responses'!FM50)>=2,AVERAGE('2011 Survey responses'!FL50,'2011 Survey responses'!FM50),\"\")","v":5},{"$f":"IF(('2011 Survey responses'!FO50+'2011 Survey responses'!FQ50)>=2,AVERAGE('2011 Survey responses'!FO50,'2011 Survey responses'!FQ50),\"\")","v":5},{"$f":"IF('2011 Survey responses'!FJ50<0.5,\"\",'2011 Survey responses'!FJ50)","v":5},{"$f":"IF('2011 Survey responses'!FT50<0.5,\"\",'2011 Survey responses'!FT50)","v":4},{"$f":"IF('2011 Survey responses'!FR50<0.5,\"\",'2011 Survey responses'!FR50)","v":5},{"$f":"IF('2011 Survey responses'!FK50<0.5,\"\",'2011 Survey responses'!FK50)","v":5},{"$f":"IF('2011 Survey responses'!FP50<0.5,\"\",'2011 Survey responses'!FP50)","v":5},{"$f":"IF('2011 Survey responses'!FN50<0.5,\"\",'2011 Survey responses'!FN50)","v":5},{"$f":"IF(('2011 Survey responses'!FE50+'2011 Survey responses'!FF50)>=2,AVERAGE('2011 Survey responses'!FE50,'2011 Survey responses'!FF50),\"\")","v":5},{"$f":"IF('2011 Survey responses'!FS50<0.5,\"\",'2011 Survey responses'!FS50)","v":5},{"$f":"IF('2011 Survey responses'!FV50<0.5,\"\",'2011 Survey responses'!FV50)","v":4},{"$f":"IF(('2011 Survey responses'!FG50+'2011 Survey responses'!FH50)>=2,AVERAGE('2011 Survey responses'!FG50,'2011 Survey responses'!FH50),\"\")","v":5},{"$f":"IF('2011 Survey responses'!FI50<0.5,\"\",'2011 Survey responses'!FI50)","v":5},{"$f":"IF('2011 Survey responses'!FE50<0.5,\"\",'2011 Survey responses'!FE50)","v":5},{"$f":"IF('2011 Survey responses'!FF50<0.5,\"\",'2011 Survey responses'!FF50)","v":5},{"$f":"IF('2011 Survey responses'!FG50<0.5,\"\",'2011 Survey responses'!FG50)","v":5},{"$f":"IF('2011 Survey responses'!FH50<0.5,\"\",'2011 Survey responses'!FH50)","v":5},{"$f":"IF('2011 Survey responses'!FL50<0.5,\"\",'2011 Survey responses'!FL50)","v":5},{"$f":"IF('2011 Survey responses'!FM50<0.5,\"\",'2011 Survey responses'!FM50)","v":5},{"$f":"IF('2011 Survey responses'!FO50<0.5,\"\",'2011 Survey responses'!FO50)","v":5},{"$f":"IF('2011 Survey responses'!FQ50<0.5,\"\",'2011 Survey responses'!FQ50)","v":5}]
["Djibouti",{"$f":"IF(SUM(F51)<1,\"\",AVERAGEIF('2011 Survey responses'!B51:CP51,\">1\"))","v":""},{"$f":"IF(SUM(F51)<1,\"\",AVERAGEIF('2011 Survey responses'!B51:AO51,\">1\"))","v":""},{"$f":"IF(SUM(F51)<1,\"\",AVERAGEIF('2011 Survey responses'!B51:BV51,\">1\"))","v":""},{"$f":"IF(SUM(F51)<1,\"\",AVERAGEIF('2011 Survey responses'!V51:BV51,\">1\"))","v":""},{"$f":"IF(SUM('2011 Survey responses'!B51:U51)<1,\"\",(AVERAGEIFS('2011 Survey responses'!B51:U51,'2011 Survey responses'!B51:U51,\">1\")))","v":""},{"$f":"IF(SUM('2011 Survey responses'!B51:H51)<1,\"\",(AVERAGEIFS('2011 Survey responses'!B51:H51,'2011 Survey responses'!B51:H51,\">1\")))","v":""},{"$f":"IF(SUM('2011 Survey responses'!I51:S51)<1,\"\",(AVERAGEIFS('2011 Survey responses'!I51:S51,'2011 Survey responses'!I51:S51,\">1\")))","v":""},{"$f":"IF(SUM('2011 Survey responses'!T51:U51)<2.1,\"\",(AVERAGEIFS('2011 Survey responses'!T51:U51,'2011 Survey responses'!T51:U51,\">1\")))","v":""},{"$f":"IF(SUM('2011 Survey responses'!B51:C51)<2.1,\"\",((SUMIF('2011 Survey responses'!B51:C51,\">1\")+SUMIF('2011 Survey responses'!F51,\">1\"))/(COUNTIF('2011 Survey responses'!B51:C51,\">1\")+COUNTIF('2011 Survey responses'!F51,\">1\"))))","v":""},{"$f":"IF(SUM('2011 Survey responses'!D51:E51)<2.1,\"\",(AVERAGEIFS('2011 Survey responses'!D51:E51,'2011 Survey responses'!D51:E51,\">1\")))","v":""},{"$f":"IF(('2011 Survey responses'!B51+'2011 Survey responses'!D51)<2.1,\"\",((SUMIF('2011 Survey responses'!B51,\">1\")+SUMIF('2011 Survey responses'!D51,\">1\")+SUMIF('2011 Survey responses'!F51,\">1\")+SUMIF('2011 Survey responses'!K51,\">1\"))/(COUNTIF('2011 Survey responses'!B51,\">1\")+COUNTIF('2011 Survey responses'!D51,\">1\")+COUNTIF('2011 Survey responses'!F51,\">1\")+COUNTIF('2011 Survey responses'!K51,\">1\"))))","v":""},{"$f":"IF(SUM('2011 Survey responses'!G51:H51)<2.1,\"\",(AVERAGEIFS('2011 Survey responses'!G51:H51,'2011 Survey responses'!G51:H51,\">1\")))","v":""},{"$f":"IF(SUM('2011 Survey responses'!F51:G51)<1.5,\"\",MAX('2011 Survey responses'!F51,'2011 Survey responses'!G51))","v":""},{"$f":"IF(SUM('2011 Survey responses'!G51:H51)<1,\"\",MAX('2011 Survey responses'!G51,'2011 Survey responses'!H51))","v":""},{"$f":"IF(SUM('2011 Survey responses'!I51:L51)<4.1,\"\",(AVERAGEIFS('2011 Survey responses'!I51:L51,'2011 Survey responses'!I51:L51,\">1\")))","v":""},{"$f":"IF(SUM('2011 Survey responses'!M51:S51)<4.1,\"\",(AVERAGEIFS('2011 Survey responses'!M51:S51,'2011 Survey responses'!M51:S51,\">1\")))","v":""},{"$f":"IF(SUM('2011 Survey responses'!T51:U51)<2.1,\"\",(AVERAGEIFS('2011 Survey responses'!T51:U51,'2011 Survey responses'!T51:U51,\">1\")))","v":""},{"$f":"IF(SUM('2011 Survey responses'!V51:AO51)<1,\"\",(AVERAGEIFS('2011 Survey responses'!V51:AO51,'2011 Survey responses'!V51:AO51,\">1\")))","v":""},{"$f":"IF((OR(SUM('2011 Survey responses'!V51:AA51)=6,SUM('2011 Survey responses'!V51:AA51)<1)),\"\",(AVERAGEIFS('2011 Survey responses'!V51:AA51,'2011 Survey responses'!V51:AA51,\">1\")))","v":""},{"$f":"IF(SUM('2011 Survey responses'!AB51:AH51)<1,\"\",(AVERAGEIFS('2011 Survey responses'!AB51:AH51,'2011 Survey responses'!AB51:AH51,\">1\")))","v":""},{"$f":"IF(SUM('2011 Survey responses'!AI51:AO51)<1,\"\",(AVERAGEIFS('2011 Survey responses'!AI51:AO51,'2011 Survey responses'!AI51:AO51,\">1\")))","v":""},{"$f":"IF(('2011 Survey responses'!Y51+'2011 Survey responses'!AI51+'2011 Survey responses'!AK51)<3.1,\"\",((SUMIF('2011 Survey responses'!Y51,\">1\")+SUMIF('2011 Survey responses'!AI51,\">1\")+SUMIF('2011 Survey responses'!AK51,\">1\")+SUMIF('2011 Survey responses'!AM51,\">1\"))/(COUNTIF('2011 Survey responses'!Y51,\">1\")+COUNTIF('2011 Survey responses'!AI51,\">1\")+COUNTIF('2011 Survey responses'!AK51,\">1\")+COUNTIF('2011 Survey responses'!AM51,\">1\"))))","v":""},{"$f":"IF(('2011 Survey responses'!W51)<1.1,\"\",('2011 Survey responses'!W51))","v":""},{"$f":"IF(('2011 Survey responses'!Y51)<1.1,\"\",('2011 Survey responses'!Y51))","v":""},{"$f":"IF(('2011 Survey responses'!Z51)<1.1,\"\",('2011 Survey responses'!Z51))","v":""},{"$f":"IF(('2011 Survey responses'!V51+'2011 Survey responses'!X51+'2011 Survey responses'!AA51)<3.1,\"\",((SUMIF('2011 Survey responses'!V51,\">1\")+SUMIF('2011 Survey responses'!X51,\">1\")+SUMIF('2011 Survey responses'!AA51,\">1\"))/(COUNTIF('2011 Survey responses'!V51,\">1\")+COUNTIF('2011 Survey responses'!X51,\">1\")+COUNTIF('2011 Survey responses'!AA51,\">1\"))))","v":""},{"$f":"IF(('2011 Survey responses'!V51+'2011 Survey responses'!Y51+'2011 Survey responses'!AA51)<3.1,\"\",((SUMIF('2011 Survey responses'!V51,\">1\")+SUMIF('2011 Survey responses'!Y51,\">1\")+SUMIF('2011 Survey responses'!AA51,\">1\"))/(COUNTIF('2011 Survey responses'!V51,\">1\")+COUNTIF('2011 Survey responses'!Y51,\">1\")+COUNTIF('2011 Survey responses'!AA51,\">1\"))))","v":""},{"$f":"IF(SUM('2011 Survey responses'!AB51:AH51)<1,\"\",(AVERAGEIFS('2011 Survey responses'!AB51:AH51,'2011 Survey responses'!AB51:AH51,\">1\")))","v":""},{"$f":"IF(SUM('2011 Survey responses'!AI51:AO51)<7.1,\"\",(AVERAGEIFS('2011 Survey responses'!AI51:AO51,'2011 Survey responses'!AI51:AO51,\">1\")))","v":""},{"$f":"IF(('2011 Survey responses'!AH51)<1.1,\"\",('2011 Survey responses'!AH51))","v":""},{"$f":"IF(SUM('2011 Survey responses'!AP51:BV51)<1,\"\",(AVERAGEIFS('2011 Survey responses'!AP51:BV51,'2011 Survey responses'!AP51:BV51,\">1\")))","v":""},{"$f":"IF(SUM('2011 Survey responses'!AP51:AS51)<4.1,\"\",(AVERAGEIFS('2011 Survey responses'!AP51:AS51,'2011 Survey responses'!AP51:AS51,\">1\")))","v":""},{"$f":"IF(SUM('2011 Survey responses'!AT51:BF51)<1,\"\",(AVERAGEIFS('2011 Survey responses'!AT51:BF51,'2011 Survey responses'!AT51:BF51,\">1\")))","v":""},{"$f":"IF(SUM('2011 Survey responses'!BG51:BO51)<1,\"\",(AVERAGEIFS('2011 Survey responses'!BG51:BO51,'2011 Survey responses'!BG51:BO51,\">1\")))","v":""},{"$f":"IF(SUM('2011 Survey responses'!BP51:BS51)<1,\"\",(AVERAGEIFS('2011 Survey responses'!BP51:BS51,'2011 Survey responses'!BP51:BS51,\">1\")))","v":""},{"$f":"IF(SUM('2011 Survey responses'!BT51:BV51)<3.1,\"\",(AVERAGEIFS('2011 Survey responses'!BT51:BV51,'2011 Survey responses'!BT51:BV51,\">1\")))","v":""},{"$f":"IF(('2011 Survey responses'!AQ51+'2011 Survey responses'!AR51+'2011 Survey responses'!BG51)<3.1,\"\",((SUMIF('2011 Survey responses'!AQ51,\">1\")+SUMIF('2011 Survey responses'!AR51,\">1\")+SUMIF('2011 Survey responses'!BG51,\">1\"))/(COUNTIF('2011 Survey responses'!AQ51,\">1\")+COUNTIF('2011 Survey responses'!AR51,\">1\")+COUNTIF('2011 Survey responses'!BG51,\">1\"))))","v":""},{"$f":"IF(SUM('2011 Survey responses'!AP51:AS51)<4.1,\"\",(AVERAGEIFS('2011 Survey responses'!AP51:AS51,'2011 Survey responses'!AP51:AS51,\">1\")))","v":""},{"$f":"IF(('2011 Survey responses'!AU51+'2011 Survey responses'!AX51+'2011 Survey responses'!BA51+'2011 Survey responses'!BC51+'2011 Survey responses'!BD51)<5.1,\"\",(SUMIF('2011 Survey responses'!AU51,\">1\")+SUMIF('2011 Survey responses'!AX51,\">1\")+SUMIF('2011 Survey responses'!BA51,\">1\")+SUMIF('2011 Survey responses'!BC51,\">1\")+SUMIF('2011 Survey responses'!BD51,\">1\"))/(COUNTIF('2011 Survey responses'!AU51,\">1\")+COUNTIF('2011 Survey responses'!AX51,\">1\")+COUNTIF('2011 Survey responses'!BA51,\">1\")+COUNTIF('2011 Survey responses'!BC51,\">1\")+COUNTIF('2011 Survey responses'!BD51,\">1\")))","v":""},{"$f":"IF(('2011 Survey responses'!AT51)<1.1,\"\",('2011 Survey responses'!AT51))","v":""},{"$f":"IF(SUM('2011 Survey responses'!AV51:AW51)<2.1,\"\",(AVERAGEIFS('2011 Survey responses'!AV51:AW51,'2011 Survey responses'!AV51:AW51,\">1\")))","v":""},{"$f":"IF(('2011 Survey responses'!AW51+'2011 Survey responses'!AY51)<2.1,\"\",(SUMIF('2011 Survey responses'!AW51,\">1\")+SUMIF('2011 Survey responses'!AY51,\">1\"))/(COUNTIF('2011 Survey responses'!AW51,\">1\")+COUNTIF('2011 Survey responses'!AY51,\">1\")))","v":""},{"$f":"IF(('2011 Survey responses'!AZ51)<1.1,\"\",('2011 Survey responses'!AZ51))","v":""},null,null,null,null,{"$f":"IF(('2011 Survey responses'!BE51)<1.1,\"\",('2011 Survey responses'!BE51))","v":""},{"$f":"IF(('2011 Survey responses'!AY51+'2011 Survey responses'!BB51+'2011 Survey responses'!BF51)<3.1,\"\",(SUMIF('2011 Survey responses'!AY51,\">1\")+SUMIF('2011 Survey responses'!BB51,\">1\")+SUMIF('2011 Survey responses'!BF51,\">1\"))/(COUNTIF('2011 Survey responses'!AY51,\">1\")+COUNTIF('2011 Survey responses'!BB51,\">1\")+COUNTIF('2011 Survey responses'!BF51,\">1\")))","v":""},"",{"$f":"IF(SUM('2011 Survey responses'!BT51:BV51)<3.1,\"\",(AVERAGEIFS('2011 Survey responses'!BT51:BV51,'2011 Survey responses'!BT51:BV51,\">1\")))","v":""},{"$f":"IF(SUM('2011 Survey responses'!BW51:CP51)<1,\"\",(AVERAGEIFS('2011 Survey responses'!BW51:CP51,'2011 Survey responses'!BW51:CP51,\">1\")))","v":""},{"$f":"IF(SUM('2011 Survey responses'!BW51:CF51)<1,\"\",(AVERAGEIFS('2011 Survey responses'!BW51:CF51,'2011 Survey responses'!BW51:CF51,\">1\")))","v":""},{"$f":"IF(SUM('2011 Survey responses'!CG51:CP51)<1,\"\",(AVERAGEIFS('2011 Survey responses'!CG51:CP51,'2011 Survey responses'!CG51:CP51,\">1\")))","v":""},{"$f":"IF(SUM('2011 Survey responses'!BX51:CF51)<1,\"\",(AVERAGEIFS('2011 Survey responses'!BX51:CF51,'2011 Survey responses'!BX51:CF51,\">1\")))","v":""},{"$f":"IF(SUM('2011 Survey responses'!CH51:CP51)<1,\"\",(AVERAGEIFS('2011 Survey responses'!CH51:CP51,'2011 Survey responses'!CH51:CP51,\">1\")))","v":""},{"$f":"IF(SUM('2011 Survey responses'!BW51:CP51)<1,\"\",(AVERAGEIFS('2011 Survey responses'!BW51:CP51,'2011 Survey responses'!BW51:CP51,\">1\")))","v":""},{"$f":"IF(('2011 Survey responses'!BW51+'2011 Survey responses'!CG51)<2.1,\"\",(SUMIF('2011 Survey responses'!BW51,\">1\")+SUMIF('2011 Survey responses'!CG51,\">1\"))/(COUNTIF('2011 Survey responses'!BW51,\">1\")+COUNTIF('2011 Survey responses'!CG51,\">1\")))","v":""},{"$f":"IF(('2011 Survey responses'!BX51+'2011 Survey responses'!CH51)<2.1,\"\",(SUMIF('2011 Survey responses'!BX51,\">1\")+SUMIF('2011 Survey responses'!CH51,\">1\"))/(COUNTIF('2011 Survey responses'!BX51,\">1\")+COUNTIF('2011 Survey responses'!CH51,\">1\")))","v":""},{"$f":"IF(('2011 Survey responses'!BY51+'2011 Survey responses'!CI51)<2.1,\"\",(SUMIF('2011 Survey responses'!BY51,\">1\")+SUMIF('2011 Survey responses'!CI51,\">1\"))/(COUNTIF('2011 Survey responses'!BY51,\">1\")+COUNTIF('2011 Survey responses'!CI51,\">1\")))","v":""},{"$f":"IF('2011 Survey responses'!CQ51<0.5,\"\",'2011 Survey responses'!CQ51)","v":""},{"$f":"IF('2011 Survey responses'!CR51<0.5,\"\",'2011 Survey responses'!CR51)","v":""},{"$f":"IF('2011 Survey responses'!CS51<0.5,\"\",'2011 Survey responses'!CS51)","v":""},{"$f":"IF('2011 Survey responses'!CT51<0.5,\"\",'2011 Survey responses'!CT51)","v":""},{"$f":"IF('2011 Survey responses'!CU51<0.5,\"\",'2011 Survey responses'!CU51)","v":""},{"$f":"IF('2011 Survey responses'!CV51<0.5,\"\",'2011 Survey responses'!CV51)","v":""},{"$f":"IF(SUM('2011 Survey responses'!CW51:DL51)<1,\"\",(AVERAGE('2011 Survey responses'!CW51:DL51)))","v":""},{"$f":"IF(SUM('2011 Survey responses'!CW51:CZ51)<1,\"\",(AVERAGE('2011 Survey responses'!CW51:CZ51)))","v":""},{"$f":"IF(SUM('2011 Survey responses'!DA51:DD51)<1,\"\",(AVERAGE('2011 Survey responses'!DA51:DD51)))","v":""},{"$f":"IF(SUM('2011 Survey responses'!DE51:DH51)<1,\"\",(AVERAGE('2011 Survey responses'!DE51:DH51)))","v":""},{"$f":"IF(SUM('2011 Survey responses'!DI51:DL51)<1,\"\",(AVERAGE('2011 Survey responses'!DI51:DL51)))","v":""},{"$f":"IF(('2011 Survey responses'!CW51+'2011 Survey responses'!DA51+'2011 Survey responses'!DE51+'2011 Survey responses'!DI51)<1,\"\",AVERAGE('2011 Survey responses'!CW51,'2011 Survey responses'!DA51,'2011 Survey responses'!DE51,'2011 Survey responses'!DI51))","v":""},{"$f":"IF(('2011 Survey responses'!CX51+'2011 Survey responses'!DB51+'2011 Survey responses'!DF51+'2011 Survey responses'!DJ51)<1,\"\",AVERAGE('2011 Survey responses'!CX51,'2011 Survey responses'!DB51,'2011 Survey responses'!DF51,'2011 Survey responses'!DJ51))","v":""},{"$f":"IF(('2011 Survey responses'!CY51+'2011 Survey responses'!DC51+'2011 Survey responses'!DG51+'2011 Survey responses'!DK51)<1,\"\",AVERAGE('2011 Survey responses'!CY51,'2011 Survey responses'!DC51,'2011 Survey responses'!DG51,'2011 Survey responses'!DK51))","v":""},{"$f":"IF(('2011 Survey responses'!CZ51+'2011 Survey responses'!DD51+'2011 Survey responses'!DH51+'2011 Survey responses'!DL51)<1,\"\",AVERAGE('2011 Survey responses'!CZ51,'2011 Survey responses'!DD51,'2011 Survey responses'!DH51,'2011 Survey responses'!DL51))","v":""},{"$f":"IF('2011 Survey responses'!CW51<0.5,\"\",'2011 Survey responses'!CW51)","v":""},{"$f":"IF('2011 Survey responses'!CX51<0.5,\"\",'2011 Survey responses'!CX51)","v":""},{"$f":"IF('2011 Survey responses'!CY51<0.5,\"\",'2011 Survey responses'!CY51)","v":""},{"$f":"IF('2011 Survey responses'!CZ51<0.5,\"\",'2011 Survey responses'!CZ51)","v":""},{"$f":"IF('2011 Survey responses'!DA51<0.5,\"\",'2011 Survey responses'!DA51)","v":""},{"$f":"IF('2011 Survey responses'!DB51<0.5,\"\",'2011 Survey responses'!DB51)","v":""},{"$f":"IF('2011 Survey responses'!DC51<0.5,\"\",'2011 Survey responses'!DC51)","v":""},{"$f":"IF('2011 Survey responses'!DD51<0.5,\"\",'2011 Survey responses'!DD51)","v":""},{"$f":"IF('2011 Survey responses'!DE51<0.5,\"\",'2011 Survey responses'!DE51)","v":""},{"$f":"IF('2011 Survey responses'!DF51<0.5,\"\",'2011 Survey responses'!DF51)","v":""},{"$f":"IF('2011 Survey responses'!DG51<0.5,\"\",'2011 Survey responses'!DG51)","v":""},{"$f":"IF('2011 Survey responses'!DH51<0.5,\"\",'2011 Survey responses'!DH51)","v":""},{"$f":"IF('2011 Survey responses'!DI51<0.5,\"\",'2011 Survey responses'!DI51)","v":""},{"$f":"IF('2011 Survey responses'!DJ51<0.5,\"\",'2011 Survey responses'!DJ51)","v":""},{"$f":"IF('2011 Survey responses'!DK51<0.5,\"\",'2011 Survey responses'!DK51)","v":""},{"$f":"IF('2011 Survey responses'!DL51<0.5,\"\",'2011 Survey responses'!DL51)","v":""},{"$f":"IF('2011 Survey responses'!DU51=4,4,IF('2011 Survey responses'!DU51=5,4,\"\"))","v":""},{"$f":"IF('2011 Survey responses'!DV51=4,3,IF('2011 Survey responses'!DV51=5,3,\"\"))","v":""},"",{"$f":"IF(CQ51=2,CQ51,IF(CO51=4,CO51,IF(CP51=3,CP51,IF('2011 Survey responses'!GT51=1,1,\"\"))))","v":""},{"$f":"IF('2011 Survey responses'!DO51<0.5,\"\",'2011 Survey responses'!DO51)","v":""},{"$f":"IF('2011 Survey responses'!DP51<0.5,\"\",'2011 Survey responses'!DP51)","v":""},{"$f":"IF('2011 Survey responses'!DQ51<0.5,\"\",'2011 Survey responses'!DQ51)","v":""},{"$f":"IF('2011 Survey responses'!DR51<0.5,\"\",'2011 Survey responses'!DR51)","v":""},{"$f":"IF('2011 Survey responses'!DS51<0.5,\"\",'2011 Survey responses'!DS51)","v":""},{"$f":"IF('2011 Survey responses'!DT51<0.5,\"\",'2011 Survey responses'!DT51)","v":""},{"$f":"IF('2011 Survey responses'!DU51<0.5,\"\",'2011 Survey responses'!DU51)","v":""},{"$f":"IF('2011 Survey responses'!DV51<0.5,\"\",'2011 Survey responses'!DV51)","v":""},{"$f":"IF('2011 Survey responses'!DW51<0.5,\"\",'2011 Survey responses'!DW51)","v":""},{"$f":"IF('2011 Survey responses'!DX51<0.5,\"\",'2011 Survey responses'!DX51)","v":""},{"$f":"IF('2011 Survey responses'!DY51<0.5,\"\",'2011 Survey responses'!DY51)","v":""},{"$f":"IF('2011 Survey responses'!DZ51<0.5,\"\",'2011 Survey responses'!DZ51)","v":""},{"$f":"IF('2011 Survey responses'!EA51<0.5,\"\",'2011 Survey responses'!EA51)","v":""},{"$f":"IF('2011 Survey responses'!EB51<0.5,\"\",'2011 Survey responses'!EB51)","v":""},{"$f":"IF('2011 Survey responses'!EC51<0.5,\"\",'2011 Survey responses'!EC51)","v":""},{"$f":"IF('2011 Survey responses'!ED51<0.5,\"\",'2011 Survey responses'!ED51)","v":""},{"$f":"IF('2011 Survey responses'!EE51<0.5,\"\",'2011 Survey responses'!EE51)","v":""},{"$f":"IF('2011 Survey responses'!EF51<0.5,\"\",'2011 Survey responses'!EF51)","v":""},{"$f":"IF('2011 Survey responses'!EG51<0.5,\"\",'2011 Survey responses'!EG51)","v":""},{"$f":"IF('2011 Survey responses'!EH51<0.5,\"\",'2011 Survey responses'!EH51)","v":""},{"$f":"IF('2011 Survey responses'!EI51<0.5,\"\",'2011 Survey responses'!EI51)","v":""},{"$f":"IF('2011 Survey responses'!EJ51<0.5,\"\",'2011 Survey responses'!EJ51)","v":""},{"$f":"IF('2011 Survey responses'!EK51<0.5,\"\",'2011 Survey responses'!EK51)","v":""},{"$f":"IF('2011 Survey responses'!EL51<0.5,\"\",'2011 Survey responses'!EL51)","v":""},{"$f":"IF('2011 Survey responses'!EM51<0.5,\"\",'2011 Survey responses'!EM51)","v":""},{"$f":"IF('2011 Survey responses'!EN51<0.5,\"\",'2011 Survey responses'!EN51)","v":""},{"$f":"IF('2011 Survey responses'!EO51<0.5,\"\",'2011 Survey responses'!EO51)","v":""},{"$f":"IF('2011 Survey responses'!EP51<0.5,\"\",'2011 Survey responses'!EP51)","v":""},{"$f":"IF(('2011 Survey responses'!EW51+'2011 Survey responses'!EX51)>=2,AVERAGE('2011 Survey responses'!EW51,'2011 Survey responses'!EY51),\"\")","v":""},{"$f":"IF('2011 Survey responses'!EX51<0.5,\"\",'2011 Survey responses'!EX51)","v":""},{"$f":"IF('2011 Survey responses'!EZ51<0.5,\"\",'2011 Survey responses'!EZ51)","v":""},{"$f":"IF('2011 Survey responses'!FB51<0.5,\"\",'2011 Survey responses'!FB51)","v":""},{"$f":"IF('2011 Survey responses'!FD51<0.5,\"\",'2011 Survey responses'!FD51)","v":""},{"$f":"IF('2011 Survey responses'!FC51<0.5,\"\",'2011 Survey responses'!FC51)","v":""},{"$f":"IF(('2011 Survey responses'!EM51+'2011 Survey responses'!EN51)>=2,AVERAGE('2011 Survey responses'!EM51,'2011 Survey responses'!EN51),\"\")","v":""},{"$f":"IF('2011 Survey responses'!ES51<0.5,\"\",'2011 Survey responses'!ES51)","v":""},{"$f":"IF(('2011 Survey responses'!ET51+'2011 Survey responses'!EU51)>=2,AVERAGE('2011 Survey responses'!ET51,'2011 Survey responses'!EU51),\"\")","v":""},{"$f":"IF('2011 Survey responses'!EV51<0.5,\"\",'2011 Survey responses'!EV51)","v":""},{"$f":"IF('2011 Survey responses'!FA51<0.5,\"\",'2011 Survey responses'!FA51)","v":""},{"$f":"IF('2011 Survey responses'!ER51<0.5,\"\",'2011 Survey responses'!ER51)","v":""},{"$f":"IF(('2011 Survey responses'!EO51+'2011 Survey responses'!EP51)>=2,AVERAGE('2011 Survey responses'!EO51,'2011 Survey responses'!EP51),\"\")","v":""},{"$f":"IF('2011 Survey responses'!EQ51<0.5,\"\",'2011 Survey responses'!EQ51)","v":""},{"$f":"IF('2011 Survey responses'!ET51<0.5,\"\",'2011 Survey responses'!ET51)","v":""},{"$f":"IF('2011 Survey responses'!EU51<0.5,\"\",'2011 Survey responses'!EU51)","v":""},{"$f":"IF('2011 Survey responses'!EW51<0.5,\"\",'2011 Survey responses'!EW51)","v":""},{"$f":"IF('2011 Survey responses'!EY51<0.5,\"\",'2011 Survey responses'!EY51)","v":""},{"$f":"IF('2011 Survey responses'!FU51<0.5,\"\",'2011 Survey responses'!FU51)","v":""},{"$f":"IF(('2011 Survey responses'!FL51+'2011 Survey responses'!FM51)>=2,AVERAGE('2011 Survey responses'!FL51,'2011 Survey responses'!FM51),\"\")","v":""},{"$f":"IF(('2011 Survey responses'!FO51+'2011 Survey responses'!FQ51)>=2,AVERAGE('2011 Survey responses'!FO51,'2011 Survey responses'!FQ51),\"\")","v":""},{"$f":"IF('2011 Survey responses'!FJ51<0.5,\"\",'2011 Survey responses'!FJ51)","v":""},{"$f":"IF('2011 Survey responses'!FT51<0.5,\"\",'2011 Survey responses'!FT51)","v":""},{"$f":"IF('2011 Survey responses'!FR51<0.5,\"\",'2011 Survey responses'!FR51)","v":""},{"$f":"IF('2011 Survey responses'!FK51<0.5,\"\",'2011 Survey responses'!FK51)","v":""},{"$f":"IF('2011 Survey responses'!FP51<0.5,\"\",'2011 Survey responses'!FP51)","v":""},{"$f":"IF('2011 Survey responses'!FN51<0.5,\"\",'2011 Survey responses'!FN51)","v":""},{"$f":"IF(('2011 Survey responses'!FE51+'2011 Survey responses'!FF51)>=2,AVERAGE('2011 Survey responses'!FE51,'2011 Survey responses'!FF51),\"\")","v":""},{"$f":"IF('2011 Survey responses'!FS51<0.5,\"\",'2011 Survey responses'!FS51)","v":""},{"$f":"IF('2011 Survey responses'!FV51<0.5,\"\",'2011 Survey responses'!FV51)","v":""},{"$f":"IF(('2011 Survey responses'!FG51+'2011 Survey responses'!FH51)>=2,AVERAGE('2011 Survey responses'!FG51,'2011 Survey responses'!FH51),\"\")","v":""},{"$f":"IF('2011 Survey responses'!FI51<0.5,\"\",'2011 Survey responses'!FI51)","v":""},{"$f":"IF('2011 Survey responses'!FE51<0.5,\"\",'2011 Survey responses'!FE51)","v":""},{"$f":"IF('2011 Survey responses'!FF51<0.5,\"\",'2011 Survey responses'!FF51)","v":""},{"$f":"IF('2011 Survey responses'!FG51<0.5,\"\",'2011 Survey responses'!FG51)","v":""},{"$f":"IF('2011 Survey responses'!FH51<0.5,\"\",'2011 Survey responses'!FH51)","v":""},{"$f":"IF('2011 Survey responses'!FL51<0.5,\"\",'2011 Survey responses'!FL51)","v":""},{"$f":"IF('2011 Survey responses'!FM51<0.5,\"\",'2011 Survey responses'!FM51)","v":""},{"$f":"IF('2011 Survey responses'!FO51<0.5,\"\",'2011 Survey responses'!FO51)","v":""},{"$f":"IF('2011 Survey responses'!FQ51<0.5,\"\",'2011 Survey responses'!FQ51)","v":""}]
["Dominica",{"$f":"IF(SUM(F52)<1,\"\",AVERAGEIF('2011 Survey responses'!B52:CP52,\">1\"))","v":2.396551724137931},{"$f":"IF(SUM(F52)<1,\"\",AVERAGEIF('2011 Survey responses'!B52:AO52,\">1\"))","v":2},{"$f":"IF(SUM(F52)<1,\"\",AVERAGEIF('2011 Survey responses'!B52:BV52,\">1\"))","v":2.1914893617021276},{"$f":"IF(SUM(F52)<1,\"\",AVERAGEIF('2011 Survey responses'!V52:BV52,\">1\"))","v":2.2571428571428571},{"$f":"IF(SUM('2011 Survey responses'!B52:U52)<1,\"\",(AVERAGEIFS('2011 Survey responses'!B52:U52,'2011 Survey responses'!B52:U52,\">1\")))","v":2},{"$f":"IF(SUM('2011 Survey responses'!B52:H52)<1,\"\",(AVERAGEIFS('2011 Survey responses'!B52:H52,'2011 Survey responses'!B52:H52,\">1\")))","v":2},{"$f":"IF(SUM('2011 Survey responses'!I52:S52)<1,\"\",(AVERAGEIFS('2011 Survey responses'!I52:S52,'2011 Survey responses'!I52:S52,\">1\")))","v":2},{"$f":"IF(SUM('2011 Survey responses'!T52:U52)<2.1,\"\",(AVERAGEIFS('2011 Survey responses'!T52:U52,'2011 Survey responses'!T52:U52,\">1\")))","v":""},{"$f":"IF(SUM('2011 Survey responses'!B52:C52)<2.1,\"\",((SUMIF('2011 Survey responses'!B52:C52,\">1\")+SUMIF('2011 Survey responses'!F52,\">1\"))/(COUNTIF('2011 Survey responses'!B52:C52,\">1\")+COUNTIF('2011 Survey responses'!F52,\">1\"))))","v":2},{"$f":"IF(SUM('2011 Survey responses'!D52:E52)<2.1,\"\",(AVERAGEIFS('2011 Survey responses'!D52:E52,'2011 Survey responses'!D52:E52,\">1\")))","v":2},{"$f":"IF(('2011 Survey responses'!B52+'2011 Survey responses'!D52)<2.1,\"\",((SUMIF('2011 Survey responses'!B52,\">1\")+SUMIF('2011 Survey responses'!D52,\">1\")+SUMIF('2011 Survey responses'!F52,\">1\")+SUMIF('2011 Survey responses'!K52,\">1\"))/(COUNTIF('2011 Survey responses'!B52,\">1\")+COUNTIF('2011 Survey responses'!D52,\">1\")+COUNTIF('2011 Survey responses'!F52,\">1\")+COUNTIF('2011 Survey responses'!K52,\">1\"))))","v":2},{"$f":"IF(SUM('2011 Survey responses'!G52:H52)<2.1,\"\",(AVERAGEIFS('2011 Survey responses'!G52:H52,'2011 Survey responses'!G52:H52,\">1\")))","v":2},{"$f":"IF(SUM('2011 Survey responses'!F52:G52)<1.5,\"\",MAX('2011 Survey responses'!F52,'2011 Survey responses'!G52))","v":2},{"$f":"IF(SUM('2011 Survey responses'!G52:H52)<1,\"\",MAX('2011 Survey responses'!G52,'2011 Survey responses'!H52))","v":2},{"$f":"IF(SUM('2011 Survey responses'!I52:L52)<4.1,\"\",(AVERAGEIFS('2011 Survey responses'!I52:L52,'2011 Survey responses'!I52:L52,\">1\")))","v":2},{"$f":"IF(SUM('2011 Survey responses'!M52:S52)<4.1,\"\",(AVERAGEIFS('2011 Survey responses'!M52:S52,'2011 Survey responses'!M52:S52,\">1\")))","v":2},{"$f":"IF(SUM('2011 Survey responses'!T52:U52)<2.1,\"\",(AVERAGEIFS('2011 Survey responses'!T52:U52,'2011 Survey responses'!T52:U52,\">1\")))","v":""},{"$f":"IF(SUM('2011 Survey responses'!V52:AO52)<1,\"\",(AVERAGEIFS('2011 Survey responses'!V52:AO52,'2011 Survey responses'!V52:AO52,\">1\")))","v":2},{"$f":"IF((OR(SUM('2011 Survey responses'!V52:AA52)=6,SUM('2011 Survey responses'!V52:AA52)<1)),\"\",(AVERAGEIFS('2011 Survey responses'!V52:AA52,'2011 Survey responses'!V52:AA52,\">1\")))","v":""},{"$f":"IF(SUM('2011 Survey responses'!AB52:AH52)<1,\"\",(AVERAGEIFS('2011 Survey responses'!AB52:AH52,'2011 Survey responses'!AB52:AH52,\">1\")))","v":2},{"$f":"IF(SUM('2011 Survey responses'!AI52:AO52)<1,\"\",(AVERAGEIFS('2011 Survey responses'!AI52:AO52,'2011 Survey responses'!AI52:AO52,\">1\")))","v":2},{"$f":"IF(('2011 Survey responses'!Y52+'2011 Survey responses'!AI52+'2011 Survey responses'!AK52)<3.1,\"\",((SUMIF('2011 Survey responses'!Y52,\">1\")+SUMIF('2011 Survey responses'!AI52,\">1\")+SUMIF('2011 Survey responses'!AK52,\">1\")+SUMIF('2011 Survey responses'!AM52,\">1\"))/(COUNTIF('2011 Survey responses'!Y52,\">1\")+COUNTIF('2011 Survey responses'!AI52,\">1\")+COUNTIF('2011 Survey responses'!AK52,\">1\")+COUNTIF('2011 Survey responses'!AM52,\">1\"))))","v":2},{"$f":"IF(('2011 Survey responses'!W52)<1.1,\"\",('2011 Survey responses'!W52))","v":""},{"$f":"IF(('2011 Survey responses'!Y52)<1.1,\"\",('2011 Survey responses'!Y52))","v":""},{"$f":"IF(('2011 Survey responses'!Z52)<1.1,\"\",('2011 Survey responses'!Z52))","v":""},{"$f":"IF(('2011 Survey responses'!V52+'2011 Survey responses'!X52+'2011 Survey responses'!AA52)<3.1,\"\",((SUMIF('2011 Survey responses'!V52,\">1\")+SUMIF('2011 Survey responses'!X52,\">1\")+SUMIF('2011 Survey responses'!AA52,\">1\"))/(COUNTIF('2011 Survey responses'!V52,\">1\")+COUNTIF('2011 Survey responses'!X52,\">1\")+COUNTIF('2011 Survey responses'!AA52,\">1\"))))","v":""},{"$f":"IF(('2011 Survey responses'!V52+'2011 Survey responses'!Y52+'2011 Survey responses'!AA52)<3.1,\"\",((SUMIF('2011 Survey responses'!V52,\">1\")+SUMIF('2011 Survey responses'!Y52,\">1\")+SUMIF('2011 Survey responses'!AA52,\">1\"))/(COUNTIF('2011 Survey responses'!V52,\">1\")+COUNTIF('2011 Survey responses'!Y52,\">1\")+COUNTIF('2011 Survey responses'!AA52,\">1\"))))","v":""},{"$f":"IF(SUM('2011 Survey responses'!AB52:AH52)<1,\"\",(AVERAGEIFS('2011 Survey responses'!AB52:AH52,'2011 Survey responses'!AB52:AH52,\">1\")))","v":2},{"$f":"IF(SUM('2011 Survey responses'!AI52:AO52)<7.1,\"\",(AVERAGEIFS('2011 Survey responses'!AI52:AO52,'2011 Survey responses'!AI52:AO52,\">1\")))","v":2},{"$f":"IF(('2011 Survey responses'!AH52)<1.1,\"\",('2011 Survey responses'!AH52))","v":""},{"$f":"IF(SUM('2011 Survey responses'!AP52:BV52)<1,\"\",(AVERAGEIFS('2011 Survey responses'!AP52:BV52,'2011 Survey responses'!AP52:BV52,\">1\")))","v":2.4090909090909092},{"$f":"IF(SUM('2011 Survey responses'!AP52:AS52)<4.1,\"\",(AVERAGEIFS('2011 Survey responses'!AP52:AS52,'2011 Survey responses'!AP52:AS52,\">1\")))","v":2.3333333333333335},{"$f":"IF(SUM('2011 Survey responses'!AT52:BF52)<1,\"\",(AVERAGEIFS('2011 Survey responses'!AT52:BF52,'2011 Survey responses'!AT52:BF52,\">1\")))","v":2.1666666666666665},{"$f":"IF(SUM('2011 Survey responses'!BG52:BO52)<1,\"\",(AVERAGEIFS('2011 Survey responses'!BG52:BO52,'2011 Survey responses'!BG52:BO52,\">1\")))","v":2.625},{"$f":"IF(SUM('2011 Survey responses'!BP52:BS52)<1,\"\",(AVERAGEIFS('2011 Survey responses'!BP52:BS52,'2011 Survey responses'!BP52:BS52,\">1\")))","v":2.5},{"$f":"IF(SUM('2011 Survey responses'!BT52:BV52)<3.1,\"\",(AVERAGEIFS('2011 Survey responses'!BT52:BV52,'2011 Survey responses'!BT52:BV52,\">1\")))","v":2},{"$f":"IF(('2011 Survey responses'!AQ52+'2011 Survey responses'!AR52+'2011 Survey responses'!BG52)<3.1,\"\",((SUMIF('2011 Survey responses'!AQ52,\">1\")+SUMIF('2011 Survey responses'!AR52,\">1\")+SUMIF('2011 Survey responses'!BG52,\">1\"))/(COUNTIF('2011 Survey responses'!AQ52,\">1\")+COUNTIF('2011 Survey responses'!AR52,\">1\")+COUNTIF('2011 Survey responses'!BG52,\">1\"))))","v":2.3333333333333335},{"$f":"IF(SUM('2011 Survey responses'!AP52:AS52)<4.1,\"\",(AVERAGEIFS('2011 Survey responses'!AP52:AS52,'2011 Survey responses'!AP52:AS52,\">1\")))","v":2.3333333333333335},{"$f":"IF(('2011 Survey responses'!AU52+'2011 Survey responses'!AX52+'2011 Survey responses'!BA52+'2011 Survey responses'!BC52+'2011 Survey responses'!BD52)<5.1,\"\",(SUMIF('2011 Survey responses'!AU52,\">1\")+SUMIF('2011 Survey responses'!AX52,\">1\")+SUMIF('2011 Survey responses'!BA52,\">1\")+SUMIF('2011 Survey responses'!BC52,\">1\")+SUMIF('2011 Survey responses'!BD52,\">1\"))/(COUNTIF('2011 Survey responses'!AU52,\">1\")+COUNTIF('2011 Survey responses'!AX52,\">1\")+COUNTIF('2011 Survey responses'!BA52,\">1\")+COUNTIF('2011 Survey responses'!BC52,\">1\")+COUNTIF('2011 Survey responses'!BD52,\">1\")))","v":2.25},{"$f":"IF(('2011 Survey responses'!AT52)<1.1,\"\",('2011 Survey responses'!AT52))","v":""},{"$f":"IF(SUM('2011 Survey responses'!AV52:AW52)<2.1,\"\",(AVERAGEIFS('2011 Survey responses'!AV52:AW52,'2011 Survey responses'!AV52:AW52,\">1\")))","v":""},{"$f":"IF(('2011 Survey responses'!AW52+'2011 Survey responses'!AY52)<2.1,\"\",(SUMIF('2011 Survey responses'!AW52,\">1\")+SUMIF('2011 Survey responses'!AY52,\">1\"))/(COUNTIF('2011 Survey responses'!AW52,\">1\")+COUNTIF('2011 Survey responses'!AY52,\">1\")))","v":2},{"$f":"IF(('2011 Survey responses'!AZ52)<1.1,\"\",('2011 Survey responses'!AZ52))","v":2},2,1,2,1,{"$f":"IF(('2011 Survey responses'!BE52)<1.1,\"\",('2011 Survey responses'!BE52))","v":""},{"$f":"IF(('2011 Survey responses'!AY52+'2011 Survey responses'!BB52+'2011 Survey responses'!BF52)<3.1,\"\",(SUMIF('2011 Survey responses'!AY52,\">1\")+SUMIF('2011 Survey responses'!BB52,\">1\")+SUMIF('2011 Survey responses'!BF52,\">1\"))/(COUNTIF('2011 Survey responses'!AY52,\">1\")+COUNTIF('2011 Survey responses'!BB52,\">1\")+COUNTIF('2011 Survey responses'!BF52,\">1\")))","v":2},2.5625,{"$f":"IF(SUM('2011 Survey responses'!BT52:BV52)<3.1,\"\",(AVERAGEIFS('2011 Survey responses'!BT52:BV52,'2011 Survey responses'!BT52:BV52,\">1\")))","v":2},{"$f":"IF(SUM('2011 Survey responses'!BW52:CP52)<1,\"\",(AVERAGEIFS('2011 Survey responses'!BW52:CP52,'2011 Survey responses'!BW52:CP52,\">1\")))","v":3.2727272727272729},{"$f":"IF(SUM('2011 Survey responses'!BW52:CF52)<1,\"\",(AVERAGEIFS('2011 Survey responses'!BW52:CF52,'2011 Survey responses'!BW52:CF52,\">1\")))","v":3.5},{"$f":"IF(SUM('2011 Survey responses'!CG52:CP52)<1,\"\",(AVERAGEIFS('2011 Survey responses'!CG52:CP52,'2011 Survey responses'!CG52:CP52,\">1\")))","v":3},{"$f":"IF(SUM('2011 Survey responses'!BX52:CF52)<1,\"\",(AVERAGEIFS('2011 Survey responses'!BX52:CF52,'2011 Survey responses'!BX52:CF52,\">1\")))","v":3.6},{"$f":"IF(SUM('2011 Survey responses'!CH52:CP52)<1,\"\",(AVERAGEIFS('2011 Survey responses'!CH52:CP52,'2011 Survey responses'!CH52:CP52,\">1\")))","v":3.25},{"$f":"IF(SUM('2011 Survey responses'!BW52:CP52)<1,\"\",(AVERAGEIFS('2011 Survey responses'!BW52:CP52,'2011 Survey responses'!BW52:CP52,\">1\")))","v":3.2727272727272729},{"$f":"IF(('2011 Survey responses'!BW52+'2011 Survey responses'!CG52)<2.1,\"\",(SUMIF('2011 Survey responses'!BW52,\">1\")+SUMIF('2011 Survey responses'!CG52,\">1\"))/(COUNTIF('2011 Survey responses'!BW52,\">1\")+COUNTIF('2011 Survey responses'!CG52,\">1\")))","v":2.5},{"$f":"IF(('2011 Survey responses'!BX52+'2011 Survey responses'!CH52)<2.1,\"\",(SUMIF('2011 Survey responses'!BX52,\">1\")+SUMIF('2011 Survey responses'!CH52,\">1\"))/(COUNTIF('2011 Survey responses'!BX52,\">1\")+COUNTIF('2011 Survey responses'!CH52,\">1\")))","v":3},{"$f":"IF(('2011 Survey responses'!BY52+'2011 Survey responses'!CI52)<2.1,\"\",(SUMIF('2011 Survey responses'!BY52,\">1\")+SUMIF('2011 Survey responses'!CI52,\">1\"))/(COUNTIF('2011 Survey responses'!BY52,\">1\")+COUNTIF('2011 Survey responses'!CI52,\">1\")))","v":3},{"$f":"IF('2011 Survey responses'!CQ52<0.5,\"\",'2011 Survey responses'!CQ52)","v":4},{"$f":"IF('2011 Survey responses'!CR52<0.5,\"\",'2011 Survey responses'!CR52)","v":4},{"$f":"IF('2011 Survey responses'!CS52<0.5,\"\",'2011 Survey responses'!CS52)","v":4},{"$f":"IF('2011 Survey responses'!CT52<0.5,\"\",'2011 Survey responses'!CT52)","v":4},{"$f":"IF('2011 Survey responses'!CU52<0.5,\"\",'2011 Survey responses'!CU52)","v":4},{"$f":"IF('2011 Survey responses'!CV52<0.5,\"\",'2011 Survey responses'!CV52)","v":2},{"$f":"IF(SUM('2011 Survey responses'!CW52:DL52)<1,\"\",(AVERAGE('2011 Survey responses'!CW52:DL52)))","v":2.625},{"$f":"IF(SUM('2011 Survey responses'!CW52:CZ52)<1,\"\",(AVERAGE('2011 Survey responses'!CW52:CZ52)))","v":2.75},{"$f":"IF(SUM('2011 Survey responses'!DA52:DD52)<1,\"\",(AVERAGE('2011 Survey responses'!DA52:DD52)))","v":2.5},{"$f":"IF(SUM('2011 Survey responses'!DE52:DH52)<1,\"\",(AVERAGE('2011 Survey responses'!DE52:DH52)))","v":2},{"$f":"IF(SUM('2011 Survey responses'!DI52:DL52)<1,\"\",(AVERAGE('2011 Survey responses'!DI52:DL52)))","v":3.25},{"$f":"IF(('2011 Survey responses'!CW52+'2011 Survey responses'!DA52+'2011 Survey responses'!DE52+'2011 Survey responses'!DI52)<1,\"\",AVERAGE('2011 Survey responses'!CW52,'2011 Survey responses'!DA52,'2011 Survey responses'!DE52,'2011 Survey responses'!DI52))","v":2.25},{"$f":"IF(('2011 Survey responses'!CX52+'2011 Survey responses'!DB52+'2011 Survey responses'!DF52+'2011 Survey responses'!DJ52)<1,\"\",AVERAGE('2011 Survey responses'!CX52,'2011 Survey responses'!DB52,'2011 Survey responses'!DF52,'2011 Survey responses'!DJ52))","v":3},{"$f":"IF(('2011 Survey responses'!CY52+'2011 Survey responses'!DC52+'2011 Survey responses'!DG52+'2011 Survey responses'!DK52)<1,\"\",AVERAGE('2011 Survey responses'!CY52,'2011 Survey responses'!DC52,'2011 Survey responses'!DG52,'2011 Survey responses'!DK52))","v":2.75},{"$f":"IF(('2011 Survey responses'!CZ52+'2011 Survey responses'!DD52+'2011 Survey responses'!DH52+'2011 Survey responses'!DL52)<1,\"\",AVERAGE('2011 Survey responses'!CZ52,'2011 Survey responses'!DD52,'2011 Survey responses'!DH52,'2011 Survey responses'!DL52))","v":2.5},{"$f":"IF('2011 Survey responses'!CW52<0.5,\"\",'2011 Survey responses'!CW52)","v":2},{"$f":"IF('2011 Survey responses'!CX52<0.5,\"\",'2011 Survey responses'!CX52)","v":3},{"$f":"IF('2011 Survey responses'!CY52<0.5,\"\",'2011 Survey responses'!CY52)","v":3},{"$f":"IF('2011 Survey responses'!CZ52<0.5,\"\",'2011 Survey responses'!CZ52)","v":3},{"$f":"IF('2011 Survey responses'!DA52<0.5,\"\",'2011 Survey responses'!DA52)","v":2},{"$f":"IF('2011 Survey responses'!DB52<0.5,\"\",'2011 Survey responses'!DB52)","v":3},{"$f":"IF('2011 Survey responses'!DC52<0.5,\"\",'2011 Survey responses'!DC52)","v":3},{"$f":"IF('2011 Survey responses'!DD52<0.5,\"\",'2011 Survey responses'!DD52)","v":2},{"$f":"IF('2011 Survey responses'!DE52<0.5,\"\",'2011 Survey responses'!DE52)","v":2},{"$f":"IF('2011 Survey responses'!DF52<0.5,\"\",'2011 Survey responses'!DF52)","v":2},{"$f":"IF('2011 Survey responses'!DG52<0.5,\"\",'2011 Survey responses'!DG52)","v":2},{"$f":"IF('2011 Survey responses'!DH52<0.5,\"\",'2011 Survey responses'!DH52)","v":2},{"$f":"IF('2011 Survey responses'!DI52<0.5,\"\",'2011 Survey responses'!DI52)","v":3},{"$f":"IF('2011 Survey responses'!DJ52<0.5,\"\",'2011 Survey responses'!DJ52)","v":4},{"$f":"IF('2011 Survey responses'!DK52<0.5,\"\",'2011 Survey responses'!DK52)","v":3},{"$f":"IF('2011 Survey responses'!DL52<0.5,\"\",'2011 Survey responses'!DL52)","v":3},{"$f":"IF('2011 Survey responses'!DU52=4,4,IF('2011 Survey responses'!DU52=5,4,\"\"))","v":""},{"$f":"IF('2011 Survey responses'!DV52=4,3,IF('2011 Survey responses'!DV52=5,3,\"\"))","v":""},"",{"$f":"IF(CQ52=2,CQ52,IF(CO52=4,CO52,IF(CP52=3,CP52,IF('2011 Survey responses'!GT52=1,1,\"\"))))","v":1},{"$f":"IF('2011 Survey responses'!DO52<0.5,\"\",'2011 Survey responses'!DO52)","v":2},{"$f":"IF('2011 Survey responses'!DP52<0.5,\"\",'2011 Survey responses'!DP52)","v":3},{"$f":"IF('2011 Survey responses'!DQ52<0.5,\"\",'2011 Survey responses'!DQ52)","v":3},{"$f":"IF('2011 Survey responses'!DR52<0.5,\"\",'2011 Survey responses'!DR52)","v":2},{"$f":"IF('2011 Survey responses'!DS52<0.5,\"\",'2011 Survey responses'!DS52)","v":1},{"$f":"IF('2011 Survey responses'!DT52<0.5,\"\",'2011 Survey responses'!DT52)","v":3},{"$f":"IF('2011 Survey responses'!DU52<0.5,\"\",'2011 Survey responses'!DU52)","v":2},{"$f":"IF('2011 Survey responses'!DV52<0.5,\"\",'2011 Survey responses'!DV52)","v":2},{"$f":"IF('2011 Survey responses'!DW52<0.5,\"\",'2011 Survey responses'!DW52)","v":2},{"$f":"IF('2011 Survey responses'!DX52<0.5,\"\",'2011 Survey responses'!DX52)","v":1},{"$f":"IF('2011 Survey responses'!DY52<0.5,\"\",'2011 Survey responses'!DY52)","v":3},{"$f":"IF('2011 Survey responses'!DZ52<0.5,\"\",'2011 Survey responses'!DZ52)","v":1},{"$f":"IF('2011 Survey responses'!EA52<0.5,\"\",'2011 Survey responses'!EA52)","v":3},{"$f":"IF('2011 Survey responses'!EB52<0.5,\"\",'2011 Survey responses'!EB52)","v":3},{"$f":"IF('2011 Survey responses'!EC52<0.5,\"\",'2011 Survey responses'!EC52)","v":4},{"$f":"IF('2011 Survey responses'!ED52<0.5,\"\",'2011 Survey responses'!ED52)","v":3},{"$f":"IF('2011 Survey responses'!EE52<0.5,\"\",'2011 Survey responses'!EE52)","v":3},{"$f":"IF('2011 Survey responses'!EF52<0.5,\"\",'2011 Survey responses'!EF52)","v":4},{"$f":"IF('2011 Survey responses'!EG52<0.5,\"\",'2011 Survey responses'!EG52)","v":4},{"$f":"IF('2011 Survey responses'!EH52<0.5,\"\",'2011 Survey responses'!EH52)","v":4},{"$f":"IF('2011 Survey responses'!EI52<0.5,\"\",'2011 Survey responses'!EI52)","v":4},{"$f":"IF('2011 Survey responses'!EJ52<0.5,\"\",'2011 Survey responses'!EJ52)","v":3},{"$f":"IF('2011 Survey responses'!EK52<0.5,\"\",'2011 Survey responses'!EK52)","v":4},{"$f":"IF('2011 Survey responses'!EL52<0.5,\"\",'2011 Survey responses'!EL52)","v":3},{"$f":"IF('2011 Survey responses'!EM52<0.5,\"\",'2011 Survey responses'!EM52)","v":3},{"$f":"IF('2011 Survey responses'!EN52<0.5,\"\",'2011 Survey responses'!EN52)","v":3},{"$f":"IF('2011 Survey responses'!EO52<0.5,\"\",'2011 Survey responses'!EO52)","v":1},{"$f":"IF('2011 Survey responses'!EP52<0.5,\"\",'2011 Survey responses'!EP52)","v":1},{"$f":"IF(('2011 Survey responses'!EW52+'2011 Survey responses'!EX52)>=2,AVERAGE('2011 Survey responses'!EW52,'2011 Survey responses'!EY52),\"\")","v":4},{"$f":"IF('2011 Survey responses'!EX52<0.5,\"\",'2011 Survey responses'!EX52)","v":3},{"$f":"IF('2011 Survey responses'!EZ52<0.5,\"\",'2011 Survey responses'!EZ52)","v":4},{"$f":"IF('2011 Survey responses'!FB52<0.5,\"\",'2011 Survey responses'!FB52)","v":4},{"$f":"IF('2011 Survey responses'!FD52<0.5,\"\",'2011 Survey responses'!FD52)","v":3},{"$f":"IF('2011 Survey responses'!FC52<0.5,\"\",'2011 Survey responses'!FC52)","v":3},{"$f":"IF(('2011 Survey responses'!EM52+'2011 Survey responses'!EN52)>=2,AVERAGE('2011 Survey responses'!EM52,'2011 Survey responses'!EN52),\"\")","v":3},{"$f":"IF('2011 Survey responses'!ES52<0.5,\"\",'2011 Survey responses'!ES52)","v":3},{"$f":"IF(('2011 Survey responses'!ET52+'2011 Survey responses'!EU52)>=2,AVERAGE('2011 Survey responses'!ET52,'2011 Survey responses'!EU52),\"\")","v":3},{"$f":"IF('2011 Survey responses'!EV52<0.5,\"\",'2011 Survey responses'!EV52)","v":3},{"$f":"IF('2011 Survey responses'!FA52<0.5,\"\",'2011 Survey responses'!FA52)","v":4},{"$f":"IF('2011 Survey responses'!ER52<0.5,\"\",'2011 Survey responses'!ER52)","v":3},{"$f":"IF(('2011 Survey responses'!EO52+'2011 Survey responses'!EP52)>=2,AVERAGE('2011 Survey responses'!EO52,'2011 Survey responses'!EP52),\"\")","v":1},{"$f":"IF('2011 Survey responses'!EQ52<0.5,\"\",'2011 Survey responses'!EQ52)","v":3},{"$f":"IF('2011 Survey responses'!ET52<0.5,\"\",'2011 Survey responses'!ET52)","v":3},{"$f":"IF('2011 Survey responses'!EU52<0.5,\"\",'2011 Survey responses'!EU52)","v":3},{"$f":"IF('2011 Survey responses'!EW52<0.5,\"\",'2011 Survey responses'!EW52)","v":4},{"$f":"IF('2011 Survey responses'!EY52<0.5,\"\",'2011 Survey responses'!EY52)","v":4},{"$f":"IF('2011 Survey responses'!FU52<0.5,\"\",'2011 Survey responses'!FU52)","v":3},{"$f":"IF(('2011 Survey responses'!FL52+'2011 Survey responses'!FM52)>=2,AVERAGE('2011 Survey responses'!FL52,'2011 Survey responses'!FM52),\"\")","v":3},{"$f":"IF(('2011 Survey responses'!FO52+'2011 Survey responses'!FQ52)>=2,AVERAGE('2011 Survey responses'!FO52,'2011 Survey responses'!FQ52),\"\")","v":3},{"$f":"IF('2011 Survey responses'!FJ52<0.5,\"\",'2011 Survey responses'!FJ52)","v":3},{"$f":"IF('2011 Survey responses'!FT52<0.5,\"\",'2011 Survey responses'!FT52)","v":3},{"$f":"IF('2011 Survey responses'!FR52<0.5,\"\",'2011 Survey responses'!FR52)","v":3},{"$f":"IF('2011 Survey responses'!FK52<0.5,\"\",'2011 Survey responses'!FK52)","v":3},{"$f":"IF('2011 Survey responses'!FP52<0.5,\"\",'2011 Survey responses'!FP52)","v":3},{"$f":"IF('2011 Survey responses'!FN52<0.5,\"\",'2011 Survey responses'!FN52)","v":3},{"$f":"IF(('2011 Survey responses'!FE52+'2011 Survey responses'!FF52)>=2,AVERAGE('2011 Survey responses'!FE52,'2011 Survey responses'!FF52),\"\")","v":2},{"$f":"IF('2011 Survey responses'!FS52<0.5,\"\",'2011 Survey responses'!FS52)","v":3},{"$f":"IF('2011 Survey responses'!FV52<0.5,\"\",'2011 Survey responses'!FV52)","v":3},{"$f":"IF(('2011 Survey responses'!FG52+'2011 Survey responses'!FH52)>=2,AVERAGE('2011 Survey responses'!FG52,'2011 Survey responses'!FH52),\"\")","v":3},{"$f":"IF('2011 Survey responses'!FI52<0.5,\"\",'2011 Survey responses'!FI52)","v":3},{"$f":"IF('2011 Survey responses'!FE52<0.5,\"\",'2011 Survey responses'!FE52)","v":2},{"$f":"IF('2011 Survey responses'!FF52<0.5,\"\",'2011 Survey responses'!FF52)","v":2},{"$f":"IF('2011 Survey responses'!FG52<0.5,\"\",'2011 Survey responses'!FG52)","v":3},{"$f":"IF('2011 Survey responses'!FH52<0.5,\"\",'2011 Survey responses'!FH52)","v":3},{"$f":"IF('2011 Survey responses'!FL52<0.5,\"\",'2011 Survey responses'!FL52)","v":3},{"$f":"IF('2011 Survey responses'!FM52<0.5,\"\",'2011 Survey responses'!FM52)","v":3},{"$f":"IF('2011 Survey responses'!FO52<0.5,\"\",'2011 Survey responses'!FO52)","v":3},{"$f":"IF('2011 Survey responses'!FQ52<0.5,\"\",'2011 Survey responses'!FQ52)","v":3}]
["Dominican Republic",{"$f":"IF(SUM(F53)<1,\"\",AVERAGEIF('2011 Survey responses'!B53:CP53,\">1\"))","v":""},{"$f":"IF(SUM(F53)<1,\"\",AVERAGEIF('2011 Survey responses'!B53:AO53,\">1\"))","v":""},{"$f":"IF(SUM(F53)<1,\"\",AVERAGEIF('2011 Survey responses'!B53:BV53,\">1\"))","v":""},{"$f":"IF(SUM(F53)<1,\"\",AVERAGEIF('2011 Survey responses'!V53:BV53,\">1\"))","v":""},{"$f":"IF(SUM('2011 Survey responses'!B53:U53)<1,\"\",(AVERAGEIFS('2011 Survey responses'!B53:U53,'2011 Survey responses'!B53:U53,\">1\")))","v":""},{"$f":"IF(SUM('2011 Survey responses'!B53:H53)<1,\"\",(AVERAGEIFS('2011 Survey responses'!B53:H53,'2011 Survey responses'!B53:H53,\">1\")))","v":""},{"$f":"IF(SUM('2011 Survey responses'!I53:S53)<1,\"\",(AVERAGEIFS('2011 Survey responses'!I53:S53,'2011 Survey responses'!I53:S53,\">1\")))","v":""},{"$f":"IF(SUM('2011 Survey responses'!T53:U53)<2.1,\"\",(AVERAGEIFS('2011 Survey responses'!T53:U53,'2011 Survey responses'!T53:U53,\">1\")))","v":""},{"$f":"IF(SUM('2011 Survey responses'!B53:C53)<2.1,\"\",((SUMIF('2011 Survey responses'!B53:C53,\">1\")+SUMIF('2011 Survey responses'!F53,\">1\"))/(COUNTIF('2011 Survey responses'!B53:C53,\">1\")+COUNTIF('2011 Survey responses'!F53,\">1\"))))","v":""},{"$f":"IF(SUM('2011 Survey responses'!D53:E53)<2.1,\"\",(AVERAGEIFS('2011 Survey responses'!D53:E53,'2011 Survey responses'!D53:E53,\">1\")))","v":""},{"$f":"IF(('2011 Survey responses'!B53+'2011 Survey responses'!D53)<2.1,\"\",((SUMIF('2011 Survey responses'!B53,\">1\")+SUMIF('2011 Survey responses'!D53,\">1\")+SUMIF('2011 Survey responses'!F53,\">1\")+SUMIF('2011 Survey responses'!K53,\">1\"))/(COUNTIF('2011 Survey responses'!B53,\">1\")+COUNTIF('2011 Survey responses'!D53,\">1\")+COUNTIF('2011 Survey responses'!F53,\">1\")+COUNTIF('2011 Survey responses'!K53,\">1\"))))","v":""},{"$f":"IF(SUM('2011 Survey responses'!G53:H53)<2.1,\"\",(AVERAGEIFS('2011 Survey responses'!G53:H53,'2011 Survey responses'!G53:H53,\">1\")))","v":""},{"$f":"IF(SUM('2011 Survey responses'!F53:G53)<1.5,\"\",MAX('2011 Survey responses'!F53,'2011 Survey responses'!G53))","v":""},{"$f":"IF(SUM('2011 Survey responses'!G53:H53)<1,\"\",MAX('2011 Survey responses'!G53,'2011 Survey responses'!H53))","v":""},{"$f":"IF(SUM('2011 Survey responses'!I53:L53)<4.1,\"\",(AVERAGEIFS('2011 Survey responses'!I53:L53,'2011 Survey responses'!I53:L53,\">1\")))","v":""},{"$f":"IF(SUM('2011 Survey responses'!M53:S53)<4.1,\"\",(AVERAGEIFS('2011 Survey responses'!M53:S53,'2011 Survey responses'!M53:S53,\">1\")))","v":""},{"$f":"IF(SUM('2011 Survey responses'!T53:U53)<2.1,\"\",(AVERAGEIFS('2011 Survey responses'!T53:U53,'2011 Survey responses'!T53:U53,\">1\")))","v":""},{"$f":"IF(SUM('2011 Survey responses'!V53:AO53)<1,\"\",(AVERAGEIFS('2011 Survey responses'!V53:AO53,'2011 Survey responses'!V53:AO53,\">1\")))","v":""},{"$f":"IF(SUM('2011 Survey responses'!V53:AA53)<1,\"\",(AVERAGEIFS('2011 Survey responses'!V53:AA53,'2011 Survey responses'!V53:AA53,\">1\")))","v":""},{"$f":"IF(SUM('2011 Survey responses'!AB53:AH53)<1,\"\",(AVERAGEIFS('2011 Survey responses'!AB53:AH53,'2011 Survey responses'!AB53:AH53,\">1\")))","v":""},{"$f":"IF(SUM('2011 Survey responses'!AI53:AO53)<1,\"\",(AVERAGEIFS('2011 Survey responses'!AI53:AO53,'2011 Survey responses'!AI53:AO53,\">1\")))","v":""},{"$f":"IF(('2011 Survey responses'!Y53+'2011 Survey responses'!AI53+'2011 Survey responses'!AK53)<3.1,\"\",((SUMIF('2011 Survey responses'!Y53,\">1\")+SUMIF('2011 Survey responses'!AI53,\">1\")+SUMIF('2011 Survey responses'!AK53,\">1\")+SUMIF('2011 Survey responses'!AM53,\">1\"))/(COUNTIF('2011 Survey responses'!Y53,\">1\")+COUNTIF('2011 Survey responses'!AI53,\">1\")+COUNTIF('2011 Survey responses'!AK53,\">1\")+COUNTIF('2011 Survey responses'!AM53,\">1\"))))","v":""},{"$f":"IF(('2011 Survey responses'!W53)<1.1,\"\",('2011 Survey responses'!W53))","v":""},{"$f":"IF(('2011 Survey responses'!Y53)<1.1,\"\",('2011 Survey responses'!Y53))","v":""},{"$f":"IF(('2011 Survey responses'!Z53)<1.1,\"\",('2011 Survey responses'!Z53))","v":""},{"$f":"IF(('2011 Survey responses'!V53+'2011 Survey responses'!X53+'2011 Survey responses'!AA53)<3.1,\"\",((SUMIF('2011 Survey responses'!V53,\">1\")+SUMIF('2011 Survey responses'!X53,\">1\")+SUMIF('2011 Survey responses'!AA53,\">1\"))/(COUNTIF('2011 Survey responses'!V53,\">1\")+COUNTIF('2011 Survey responses'!X53,\">1\")+COUNTIF('2011 Survey responses'!AA53,\">1\"))))","v":""},{"$f":"IF(('2011 Survey responses'!V53+'2011 Survey responses'!Y53+'2011 Survey responses'!AA53)<3.1,\"\",((SUMIF('2011 Survey responses'!V53,\">1\")+SUMIF('2011 Survey responses'!Y53,\">1\")+SUMIF('2011 Survey responses'!AA53,\">1\"))/(COUNTIF('2011 Survey responses'!V53,\">1\")+COUNTIF('2011 Survey responses'!Y53,\">1\")+COUNTIF('2011 Survey responses'!AA53,\">1\"))))","v":""},{"$f":"IF(SUM('2011 Survey responses'!AB53:AH53)<1,\"\",(AVERAGEIFS('2011 Survey responses'!AB53:AH53,'2011 Survey responses'!AB53:AH53,\">1\")))","v":""},{"$f":"IF(SUM('2011 Survey responses'!AI53:AO53)<7.1,\"\",(AVERAGEIFS('2011 Survey responses'!AI53:AO53,'2011 Survey responses'!AI53:AO53,\">1\")))","v":""},{"$f":"IF(('2011 Survey responses'!AH53)<1.1,\"\",('2011 Survey responses'!AH53))","v":""},{"$f":"IF(SUM('2011 Survey responses'!AP53:BV53)<1,\"\",(AVERAGEIFS('2011 Survey responses'!AP53:BV53,'2011 Survey responses'!AP53:BV53,\">1\")))","v":""},{"$f":"IF(SUM('2011 Survey responses'!AP53:AS53)<4.1,\"\",(AVERAGEIFS('2011 Survey responses'!AP53:AS53,'2011 Survey responses'!AP53:AS53,\">1\")))","v":""},{"$f":"IF(SUM('2011 Survey responses'!AT53:BF53)<1,\"\",(AVERAGEIFS('2011 Survey responses'!AT53:BF53,'2011 Survey responses'!AT53:BF53,\">1\")))","v":""},{"$f":"IF(SUM('2011 Survey responses'!BG53:BO53)<1,\"\",(AVERAGEIFS('2011 Survey responses'!BG53:BO53,'2011 Survey responses'!BG53:BO53,\">1\")))","v":""},{"$f":"IF(SUM('2011 Survey responses'!BP53:BS53)<1,\"\",(AVERAGEIFS('2011 Survey responses'!BP53:BS53,'2011 Survey responses'!BP53:BS53,\">1\")))","v":""},{"$f":"IF(SUM('2011 Survey responses'!BT53:BV53)<3.1,\"\",(AVERAGEIFS('2011 Survey responses'!BT53:BV53,'2011 Survey responses'!BT53:BV53,\">1\")))","v":""},{"$f":"IF(('2011 Survey responses'!AQ53+'2011 Survey responses'!AR53+'2011 Survey responses'!BG53)<3.1,\"\",((SUMIF('2011 Survey responses'!AQ53,\">1\")+SUMIF('2011 Survey responses'!AR53,\">1\")+SUMIF('2011 Survey responses'!BG53,\">1\"))/(COUNTIF('2011 Survey responses'!AQ53,\">1\")+COUNTIF('2011 Survey responses'!AR53,\">1\")+COUNTIF('2011 Survey responses'!BG53,\">1\"))))","v":""},{"$f":"IF(SUM('2011 Survey responses'!AP53:AS53)<4.1,\"\",(AVERAGEIFS('2011 Survey responses'!AP53:AS53,'2011 Survey responses'!AP53:AS53,\">1\")))","v":""},{"$f":"IF(('2011 Survey responses'!AU53+'2011 Survey responses'!AX53+'2011 Survey responses'!BA53+'2011 Survey responses'!BC53+'2011 Survey responses'!BD53)<5.1,\"\",(SUMIF('2011 Survey responses'!AU53,\">1\")+SUMIF('2011 Survey responses'!AX53,\">1\")+SUMIF('2011 Survey responses'!BA53,\">1\")+SUMIF('2011 Survey responses'!BC53,\">1\")+SUMIF('2011 Survey responses'!BD53,\">1\"))/(COUNTIF('2011 Survey responses'!AU53,\">1\")+COUNTIF('2011 Survey responses'!AX53,\">1\")+COUNTIF('2011 Survey responses'!BA53,\">1\")+COUNTIF('2011 Survey responses'!BC53,\">1\")+COUNTIF('2011 Survey responses'!BD53,\">1\")))","v":""},{"$f":"IF(('2011 Survey responses'!AT53)<1.1,\"\",('2011 Survey responses'!AT53))","v":""},{"$f":"IF(SUM('2011 Survey responses'!AV53:AW53)<2.1,\"\",(AVERAGEIFS('2011 Survey responses'!AV53:AW53,'2011 Survey responses'!AV53:AW53,\">1\")))","v":""},{"$f":"IF(('2011 Survey responses'!AW53+'2011 Survey responses'!AY53)<2.1,\"\",(SUMIF('2011 Survey responses'!AW53,\">1\")+SUMIF('2011 Survey responses'!AY53,\">1\"))/(COUNTIF('2011 Survey responses'!AW53,\">1\")+COUNTIF('2011 Survey responses'!AY53,\">1\")))","v":""},{"$f":"IF(('2011 Survey responses'!AZ53)<1.1,\"\",('2011 Survey responses'!AZ53))","v":""},null,null,null,null,{"$f":"IF(('2011 Survey responses'!BE53)<1.1,\"\",('2011 Survey responses'!BE53))","v":""},{"$f":"IF(('2011 Survey responses'!AY53+'2011 Survey responses'!BB53+'2011 Survey responses'!BF53)<3.1,\"\",(SUMIF('2011 Survey responses'!AY53,\">1\")+SUMIF('2011 Survey responses'!BB53,\">1\")+SUMIF('2011 Survey responses'!BF53,\">1\"))/(COUNTIF('2011 Survey responses'!AY53,\">1\")+COUNTIF('2011 Survey responses'!BB53,\">1\")+COUNTIF('2011 Survey responses'!BF53,\">1\")))","v":""},"",{"$f":"IF(SUM('2011 Survey responses'!BT53:BV53)<3.1,\"\",(AVERAGEIFS('2011 Survey responses'!BT53:BV53,'2011 Survey responses'!BT53:BV53,\">1\")))","v":""},{"$f":"IF(SUM('2011 Survey responses'!BW53:CP53)<1,\"\",(AVERAGEIFS('2011 Survey responses'!BW53:CP53,'2011 Survey responses'!BW53:CP53,\">1\")))","v":""},{"$f":"IF(SUM('2011 Survey responses'!BW53:CF53)<1,\"\",(AVERAGEIFS('2011 Survey responses'!BW53:CF53,'2011 Survey responses'!BW53:CF53,\">1\")))","v":""},{"$f":"IF(SUM('2011 Survey responses'!CG53:CP53)<1,\"\",(AVERAGEIFS('2011 Survey responses'!CG53:CP53,'2011 Survey responses'!CG53:CP53,\">1\")))","v":""},{"$f":"IF(SUM('2011 Survey responses'!BX53:CF53)<1,\"\",(AVERAGEIFS('2011 Survey responses'!BX53:CF53,'2011 Survey responses'!BX53:CF53,\">1\")))","v":""},{"$f":"IF(SUM('2011 Survey responses'!CH53:CP53)<1,\"\",(AVERAGEIFS('2011 Survey responses'!CH53:CP53,'2011 Survey responses'!CH53:CP53,\">1\")))","v":""},{"$f":"IF(SUM('2011 Survey responses'!BW53:CP53)<1,\"\",(AVERAGEIFS('2011 Survey responses'!BW53:CP53,'2011 Survey responses'!BW53:CP53,\">1\")))","v":""},{"$f":"IF(('2011 Survey responses'!BW53+'2011 Survey responses'!CG53)<2.1,\"\",(SUMIF('2011 Survey responses'!BW53,\">1\")+SUMIF('2011 Survey responses'!CG53,\">1\"))/(COUNTIF('2011 Survey responses'!BW53,\">1\")+COUNTIF('2011 Survey responses'!CG53,\">1\")))","v":""},{"$f":"IF(('2011 Survey responses'!BX53+'2011 Survey responses'!CH53)<2.1,\"\",(SUMIF('2011 Survey responses'!BX53,\">1\")+SUMIF('2011 Survey responses'!CH53,\">1\"))/(COUNTIF('2011 Survey responses'!BX53,\">1\")+COUNTIF('2011 Survey responses'!CH53,\">1\")))","v":""},{"$f":"IF(('2011 Survey responses'!BY53+'2011 Survey responses'!CI53)<2.1,\"\",(SUMIF('2011 Survey responses'!BY53,\">1\")+SUMIF('2011 Survey responses'!CI53,\">1\"))/(COUNTIF('2011 Survey responses'!BY53,\">1\")+COUNTIF('2011 Survey responses'!CI53,\">1\")))","v":""},{"$f":"IF('2011 Survey responses'!CQ53<0.5,\"\",'2011 Survey responses'!CQ53)","v":""},{"$f":"IF('2011 Survey responses'!CR53<0.5,\"\",'2011 Survey responses'!CR53)","v":""},{"$f":"IF('2011 Survey responses'!CS53<0.5,\"\",'2011 Survey responses'!CS53)","v":""},{"$f":"IF('2011 Survey responses'!CT53<0.5,\"\",'2011 Survey responses'!CT53)","v":""},{"$f":"IF('2011 Survey responses'!CU53<0.5,\"\",'2011 Survey responses'!CU53)","v":""},{"$f":"IF('2011 Survey responses'!CV53<0.5,\"\",'2011 Survey responses'!CV53)","v":""},{"$f":"IF(SUM('2011 Survey responses'!CW53:DL53)<1,\"\",(AVERAGE('2011 Survey responses'!CW53:DL53)))","v":""},{"$f":"IF(SUM('2011 Survey responses'!CW53:CZ53)<1,\"\",(AVERAGE('2011 Survey responses'!CW53:CZ53)))","v":""},{"$f":"IF(SUM('2011 Survey responses'!DA53:DD53)<1,\"\",(AVERAGE('2011 Survey responses'!DA53:DD53)))","v":""},{"$f":"IF(SUM('2011 Survey responses'!DE53:DH53)<1,\"\",(AVERAGE('2011 Survey responses'!DE53:DH53)))","v":""},{"$f":"IF(SUM('2011 Survey responses'!DI53:DL53)<1,\"\",(AVERAGE('2011 Survey responses'!DI53:DL53)))","v":""},{"$f":"IF(('2011 Survey responses'!CW53+'2011 Survey responses'!DA53+'2011 Survey responses'!DE53+'2011 Survey responses'!DI53)<1,\"\",AVERAGE('2011 Survey responses'!CW53,'2011 Survey responses'!DA53,'2011 Survey responses'!DE53,'2011 Survey responses'!DI53))","v":""},{"$f":"IF(('2011 Survey responses'!CX53+'2011 Survey responses'!DB53+'2011 Survey responses'!DF53+'2011 Survey responses'!DJ53)<1,\"\",AVERAGE('2011 Survey responses'!CX53,'2011 Survey responses'!DB53,'2011 Survey responses'!DF53,'2011 Survey responses'!DJ53))","v":""},{"$f":"IF(('2011 Survey responses'!CY53+'2011 Survey responses'!DC53+'2011 Survey responses'!DG53+'2011 Survey responses'!DK53)<1,\"\",AVERAGE('2011 Survey responses'!CY53,'2011 Survey responses'!DC53,'2011 Survey responses'!DG53,'2011 Survey responses'!DK53))","v":""},{"$f":"IF(('2011 Survey responses'!CZ53+'2011 Survey responses'!DD53+'2011 Survey responses'!DH53+'2011 Survey responses'!DL53)<1,\"\",AVERAGE('2011 Survey responses'!CZ53,'2011 Survey responses'!DD53,'2011 Survey responses'!DH53,'2011 Survey responses'!DL53))","v":""},{"$f":"IF('2011 Survey responses'!CW53<0.5,\"\",'2011 Survey responses'!CW53)","v":""},{"$f":"IF('2011 Survey responses'!CX53<0.5,\"\",'2011 Survey responses'!CX53)","v":""},{"$f":"IF('2011 Survey responses'!CY53<0.5,\"\",'2011 Survey responses'!CY53)","v":""},{"$f":"IF('2011 Survey responses'!CZ53<0.5,\"\",'2011 Survey responses'!CZ53)","v":""},{"$f":"IF('2011 Survey responses'!DA53<0.5,\"\",'2011 Survey responses'!DA53)","v":""},{"$f":"IF('2011 Survey responses'!DB53<0.5,\"\",'2011 Survey responses'!DB53)","v":""},{"$f":"IF('2011 Survey responses'!DC53<0.5,\"\",'2011 Survey responses'!DC53)","v":""},{"$f":"IF('2011 Survey responses'!DD53<0.5,\"\",'2011 Survey responses'!DD53)","v":""},{"$f":"IF('2011 Survey responses'!DE53<0.5,\"\",'2011 Survey responses'!DE53)","v":""},{"$f":"IF('2011 Survey responses'!DF53<0.5,\"\",'2011 Survey responses'!DF53)","v":""},{"$f":"IF('2011 Survey responses'!DG53<0.5,\"\",'2011 Survey responses'!DG53)","v":""},{"$f":"IF('2011 Survey responses'!DH53<0.5,\"\",'2011 Survey responses'!DH53)","v":""},{"$f":"IF('2011 Survey responses'!DI53<0.5,\"\",'2011 Survey responses'!DI53)","v":""},{"$f":"IF('2011 Survey responses'!DJ53<0.5,\"\",'2011 Survey responses'!DJ53)","v":""},{"$f":"IF('2011 Survey responses'!DK53<0.5,\"\",'2011 Survey responses'!DK53)","v":""},{"$f":"IF('2011 Survey responses'!DL53<0.5,\"\",'2011 Survey responses'!DL53)","v":""},{"$f":"IF('2011 Survey responses'!DU53=4,4,IF('2011 Survey responses'!DU53=5,4,\"\"))","v":""},{"$f":"IF('2011 Survey responses'!DV53=4,3,IF('2011 Survey responses'!DV53=5,3,\"\"))","v":""},"",{"$f":"IF(CQ53=2,CQ53,IF(CO53=4,CO53,IF(CP53=3,CP53,IF('2011 Survey responses'!GT53=1,1,\"\"))))","v":""},{"$f":"IF('2011 Survey responses'!DO53<0.5,\"\",'2011 Survey responses'!DO53)","v":""},{"$f":"IF('2011 Survey responses'!DP53<0.5,\"\",'2011 Survey responses'!DP53)","v":""},{"$f":"IF('2011 Survey responses'!DQ53<0.5,\"\",'2011 Survey responses'!DQ53)","v":""},{"$f":"IF('2011 Survey responses'!DR53<0.5,\"\",'2011 Survey responses'!DR53)","v":""},{"$f":"IF('2011 Survey responses'!DS53<0.5,\"\",'2011 Survey responses'!DS53)","v":""},{"$f":"IF('2011 Survey responses'!DT53<0.5,\"\",'2011 Survey responses'!DT53)","v":""},{"$f":"IF('2011 Survey responses'!DU53<0.5,\"\",'2011 Survey responses'!DU53)","v":""},{"$f":"IF('2011 Survey responses'!DV53<0.5,\"\",'2011 Survey responses'!DV53)","v":""},{"$f":"IF('2011 Survey responses'!DW53<0.5,\"\",'2011 Survey responses'!DW53)","v":""},{"$f":"IF('2011 Survey responses'!DX53<0.5,\"\",'2011 Survey responses'!DX53)","v":""},{"$f":"IF('2011 Survey responses'!DY53<0.5,\"\",'2011 Survey responses'!DY53)","v":""},{"$f":"IF('2011 Survey responses'!DZ53<0.5,\"\",'2011 Survey responses'!DZ53)","v":""},{"$f":"IF('2011 Survey responses'!EA53<0.5,\"\",'2011 Survey responses'!EA53)","v":""},{"$f":"IF('2011 Survey responses'!EB53<0.5,\"\",'2011 Survey responses'!EB53)","v":""},{"$f":"IF('2011 Survey responses'!EC53<0.5,\"\",'2011 Survey responses'!EC53)","v":""},{"$f":"IF('2011 Survey responses'!ED53<0.5,\"\",'2011 Survey responses'!ED53)","v":""},{"$f":"IF('2011 Survey responses'!EE53<0.5,\"\",'2011 Survey responses'!EE53)","v":""},{"$f":"IF('2011 Survey responses'!EF53<0.5,\"\",'2011 Survey responses'!EF53)","v":""},{"$f":"IF('2011 Survey responses'!EG53<0.5,\"\",'2011 Survey responses'!EG53)","v":""},{"$f":"IF('2011 Survey responses'!EH53<0.5,\"\",'2011 Survey responses'!EH53)","v":""},{"$f":"IF('2011 Survey responses'!EI53<0.5,\"\",'2011 Survey responses'!EI53)","v":""},{"$f":"IF('2011 Survey responses'!EJ53<0.5,\"\",'2011 Survey responses'!EJ53)","v":""},{"$f":"IF('2011 Survey responses'!EK53<0.5,\"\",'2011 Survey responses'!EK53)","v":""},{"$f":"IF('2011 Survey responses'!EL53<0.5,\"\",'2011 Survey responses'!EL53)","v":""},{"$f":"IF('2011 Survey responses'!EM53<0.5,\"\",'2011 Survey responses'!EM53)","v":""},{"$f":"IF('2011 Survey responses'!EN53<0.5,\"\",'2011 Survey responses'!EN53)","v":""},{"$f":"IF('2011 Survey responses'!EO53<0.5,\"\",'2011 Survey responses'!EO53)","v":""},{"$f":"IF('2011 Survey responses'!EP53<0.5,\"\",'2011 Survey responses'!EP53)","v":""},{"$f":"IF(('2011 Survey responses'!EW53+'2011 Survey responses'!EX53)>=2,AVERAGE('2011 Survey responses'!EW53,'2011 Survey responses'!EY53),\"\")","v":""},{"$f":"IF('2011 Survey responses'!EX53<0.5,\"\",'2011 Survey responses'!EX53)","v":""},{"$f":"IF('2011 Survey responses'!EZ53<0.5,\"\",'2011 Survey responses'!EZ53)","v":""},{"$f":"IF('2011 Survey responses'!FB53<0.5,\"\",'2011 Survey responses'!FB53)","v":""},{"$f":"IF('2011 Survey responses'!FD53<0.5,\"\",'2011 Survey responses'!FD53)","v":""},{"$f":"IF('2011 Survey responses'!FC53<0.5,\"\",'2011 Survey responses'!FC53)","v":""},{"$f":"IF(('2011 Survey responses'!EM53+'2011 Survey responses'!EN53)>=2,AVERAGE('2011 Survey responses'!EM53,'2011 Survey responses'!EN53),\"\")","v":""},{"$f":"IF('2011 Survey responses'!ES53<0.5,\"\",'2011 Survey responses'!ES53)","v":""},{"$f":"IF(('2011 Survey responses'!ET53+'2011 Survey responses'!EU53)>=2,AVERAGE('2011 Survey responses'!ET53,'2011 Survey responses'!EU53),\"\")","v":""},{"$f":"IF('2011 Survey responses'!EV53<0.5,\"\",'2011 Survey responses'!EV53)","v":""},{"$f":"IF('2011 Survey responses'!FA53<0.5,\"\",'2011 Survey responses'!FA53)","v":""},{"$f":"IF('2011 Survey responses'!ER53<0.5,\"\",'2011 Survey responses'!ER53)","v":""},{"$f":"IF(('2011 Survey responses'!EO53+'2011 Survey responses'!EP53)>=2,AVERAGE('2011 Survey responses'!EO53,'2011 Survey responses'!EP53),\"\")","v":""},{"$f":"IF('2011 Survey responses'!EQ53<0.5,\"\",'2011 Survey responses'!EQ53)","v":""},{"$f":"IF('2011 Survey responses'!ET53<0.5,\"\",'2011 Survey responses'!ET53)","v":""},{"$f":"IF('2011 Survey responses'!EU53<0.5,\"\",'2011 Survey responses'!EU53)","v":""},{"$f":"IF('2011 Survey responses'!EW53<0.5,\"\",'2011 Survey responses'!EW53)","v":""},{"$f":"IF('2011 Survey responses'!EY53<0.5,\"\",'2011 Survey responses'!EY53)","v":""},{"$f":"IF('2011 Survey responses'!FU53<0.5,\"\",'2011 Survey responses'!FU53)","v":""},{"$f":"IF(('2011 Survey responses'!FL53+'2011 Survey responses'!FM53)>=2,AVERAGE('2011 Survey responses'!FL53,'2011 Survey responses'!FM53),\"\")","v":""},{"$f":"IF(('2011 Survey responses'!FO53+'2011 Survey responses'!FQ53)>=2,AVERAGE('2011 Survey responses'!FO53,'2011 Survey responses'!FQ53),\"\")","v":""},{"$f":"IF('2011 Survey responses'!FJ53<0.5,\"\",'2011 Survey responses'!FJ53)","v":""},{"$f":"IF('2011 Survey responses'!FT53<0.5,\"\",'2011 Survey responses'!FT53)","v":""},{"$f":"IF('2011 Survey responses'!FR53<0.5,\"\",'2011 Survey responses'!FR53)","v":""},{"$f":"IF('2011 Survey responses'!FK53<0.5,\"\",'2011 Survey responses'!FK53)","v":""},{"$f":"IF('2011 Survey responses'!FP53<0.5,\"\",'2011 Survey responses'!FP53)","v":""},{"$f":"IF('2011 Survey responses'!FN53<0.5,\"\",'2011 Survey responses'!FN53)","v":""},{"$f":"IF(('2011 Survey responses'!FE53+'2011 Survey responses'!FF53)>=2,AVERAGE('2011 Survey responses'!FE53,'2011 Survey responses'!FF53),\"\")","v":""},{"$f":"IF('2011 Survey responses'!FS53<0.5,\"\",'2011 Survey responses'!FS53)","v":""},{"$f":"IF('2011 Survey responses'!FV53<0.5,\"\",'2011 Survey responses'!FV53)","v":""},{"$f":"IF(('2011 Survey responses'!FG53+'2011 Survey responses'!FH53)>=2,AVERAGE('2011 Survey responses'!FG53,'2011 Survey responses'!FH53),\"\")","v":""},{"$f":"IF('2011 Survey responses'!FI53<0.5,\"\",'2011 Survey responses'!FI53)","v":""},{"$f":"IF('2011 Survey responses'!FE53<0.5,\"\",'2011 Survey responses'!FE53)","v":""},{"$f":"IF('2011 Survey responses'!FF53<0.5,\"\",'2011 Survey responses'!FF53)","v":""},{"$f":"IF('2011 Survey responses'!FG53<0.5,\"\",'2011 Survey responses'!FG53)","v":""},{"$f":"IF('2011 Survey responses'!FH53<0.5,\"\",'2011 Survey responses'!FH53)","v":""},{"$f":"IF('2011 Survey responses'!FL53<0.5,\"\",'2011 Survey responses'!FL53)","v":""},{"$f":"IF('2011 Survey responses'!FM53<0.5,\"\",'2011 Survey responses'!FM53)","v":""},{"$f":"IF('2011 Survey responses'!FO53<0.5,\"\",'2011 Survey responses'!FO53)","v":""},{"$f":"IF('2011 Survey responses'!FQ53<0.5,\"\",'2011 Survey responses'!FQ53)","v":""}]
["Ecuador",{"$f":"IF(SUM(F54)<1,\"\",AVERAGEIF('2011 Survey responses'!B54:CP54,\">1\"))","v":3.1847826086956523},{"$f":"IF(SUM(F54)<1,\"\",AVERAGEIF('2011 Survey responses'!B54:AO54,\">1\"))","v":3.2307692307692308},{"$f":"IF(SUM(F54)<1,\"\",AVERAGEIF('2011 Survey responses'!B54:BV54,\">1\"))","v":3.0555555555555554},{"$f":"IF(SUM(F54)<1,\"\",AVERAGEIF('2011 Survey responses'!V54:BV54,\">1\"))","v":3.1346153846153846},{"$f":"IF(SUM('2011 Survey responses'!B54:U54)<1,\"\",(AVERAGEIFS('2011 Survey responses'!B54:U54,'2011 Survey responses'!B54:U54,\">1\")))","v":2.85},{"$f":"IF(SUM('2011 Survey responses'!B54:H54)<1,\"\",(AVERAGEIFS('2011 Survey responses'!B54:H54,'2011 Survey responses'!B54:H54,\">1\")))","v":2.8571428571428572},{"$f":"IF(SUM('2011 Survey responses'!I54:S54)<1,\"\",(AVERAGEIFS('2011 Survey responses'!I54:S54,'2011 Survey responses'!I54:S54,\">1\")))","v":2.8181818181818183},{"$f":"IF(SUM('2011 Survey responses'!T54:U54)<2.1,\"\",(AVERAGEIFS('2011 Survey responses'!T54:U54,'2011 Survey responses'!T54:U54,\">1\")))","v":3},{"$f":"IF(SUM('2011 Survey responses'!B54:C54)<2.1,\"\",((SUMIF('2011 Survey responses'!B54:C54,\">1\")+SUMIF('2011 Survey responses'!F54,\">1\"))/(COUNTIF('2011 Survey responses'!B54:C54,\">1\")+COUNTIF('2011 Survey responses'!F54,\">1\"))))","v":3.3333333333333335},{"$f":"IF(SUM('2011 Survey responses'!D54:E54)<2.1,\"\",(AVERAGEIFS('2011 Survey responses'!D54:E54,'2011 Survey responses'!D54:E54,\">1\")))","v":3},{"$f":"IF(('2011 Survey responses'!B54+'2011 Survey responses'!D54)<2.1,\"\",((SUMIF('2011 Survey responses'!B54,\">1\")+SUMIF('2011 Survey responses'!D54,\">1\")+SUMIF('2011 Survey responses'!F54,\">1\")+SUMIF('2011 Survey responses'!K54,\">1\"))/(COUNTIF('2011 Survey responses'!B54,\">1\")+COUNTIF('2011 Survey responses'!D54,\">1\")+COUNTIF('2011 Survey responses'!F54,\">1\")+COUNTIF('2011 Survey responses'!K54,\">1\"))))","v":3.25},{"$f":"IF(SUM('2011 Survey responses'!G54:H54)<2.1,\"\",(AVERAGEIFS('2011 Survey responses'!G54:H54,'2011 Survey responses'!G54:H54,\">1\")))","v":2},{"$f":"IF(SUM('2011 Survey responses'!F54:G54)<1.5,\"\",MAX('2011 Survey responses'!F54,'2011 Survey responses'!G54))","v":2},{"$f":"IF(SUM('2011 Survey responses'!G54:H54)<1,\"\",MAX('2011 Survey responses'!G54,'2011 Survey responses'!H54))","v":2},{"$f":"IF(SUM('2011 Survey responses'!I54:L54)<4.1,\"\",(AVERAGEIFS('2011 Survey responses'!I54:L54,'2011 Survey responses'!I54:L54,\">1\")))","v":3},{"$f":"IF(SUM('2011 Survey responses'!M54:S54)<4.1,\"\",(AVERAGEIFS('2011 Survey responses'!M54:S54,'2011 Survey responses'!M54:S54,\">1\")))","v":2.7142857142857144},{"$f":"IF(SUM('2011 Survey responses'!T54:U54)<2.1,\"\",(AVERAGEIFS('2011 Survey responses'!T54:U54,'2011 Survey responses'!T54:U54,\">1\")))","v":3},{"$f":"IF(SUM('2011 Survey responses'!V54:AO54)<1,\"\",(AVERAGEIFS('2011 Survey responses'!V54:AO54,'2011 Survey responses'!V54:AO54,\">1\")))","v":3.6315789473684212},{"$f":"IF(SUM('2011 Survey responses'!V54:AA54)<1,\"\",(AVERAGEIFS('2011 Survey responses'!V54:AA54,'2011 Survey responses'!V54:AA54,\">1\")))","v":3},{"$f":"IF(SUM('2011 Survey responses'!AB54:AH54)<1,\"\",(AVERAGEIFS('2011 Survey responses'!AB54:AH54,'2011 Survey responses'!AB54:AH54,\">1\")))","v":3.8333333333333335},{"$f":"IF(SUM('2011 Survey responses'!AI54:AO54)<1,\"\",(AVERAGEIFS('2011 Survey responses'!AI54:AO54,'2011 Survey responses'!AI54:AO54,\">1\")))","v":4},{"$f":"IF(('2011 Survey responses'!Y54+'2011 Survey responses'!AI54+'2011 Survey responses'!AK54)<3.1,\"\",((SUMIF('2011 Survey responses'!Y54,\">1\")+SUMIF('2011 Survey responses'!AI54,\">1\")+SUMIF('2011 Survey responses'!AK54,\">1\")+SUMIF('2011 Survey responses'!AM54,\">1\"))/(COUNTIF('2011 Survey responses'!Y54,\">1\")+COUNTIF('2011 Survey responses'!AI54,\">1\")+COUNTIF('2011 Survey responses'!AK54,\">1\")+COUNTIF('2011 Survey responses'!AM54,\">1\"))))","v":3.75},{"$f":"IF(('2011 Survey responses'!W54)<1.1,\"\",('2011 Survey responses'!W54))","v":2},{"$f":"IF(('2011 Survey responses'!Y54)<1.1,\"\",('2011 Survey responses'!Y54))","v":2},{"$f":"IF(('2011 Survey responses'!Z54)<1.1,\"\",('2011 Survey responses'!Z54))","v":4},{"$f":"IF(('2011 Survey responses'!V54+'2011 Survey responses'!X54+'2011 Survey responses'!AA54)<3.1,\"\",((SUMIF('2011 Survey responses'!V54,\">1\")+SUMIF('2011 Survey responses'!X54,\">1\")+SUMIF('2011 Survey responses'!AA54,\">1\"))/(COUNTIF('2011 Survey responses'!V54,\">1\")+COUNTIF('2011 Survey responses'!X54,\">1\")+COUNTIF('2011 Survey responses'!AA54,\">1\"))))","v":3.3333333333333335},{"$f":"IF(('2011 Survey responses'!V54+'2011 Survey responses'!Y54+'2011 Survey responses'!AA54)<3.1,\"\",((SUMIF('2011 Survey responses'!V54,\">1\")+SUMIF('2011 Survey responses'!Y54,\">1\")+SUMIF('2011 Survey responses'!AA54,\">1\"))/(COUNTIF('2011 Survey responses'!V54,\">1\")+COUNTIF('2011 Survey responses'!Y54,\">1\")+COUNTIF('2011 Survey responses'!AA54,\">1\"))))","v":3.3333333333333335},{"$f":"IF(SUM('2011 Survey responses'!AB54:AH54)<1,\"\",(AVERAGEIFS('2011 Survey responses'!AB54:AH54,'2011 Survey responses'!AB54:AH54,\">1\")))","v":3.8333333333333335},{"$f":"IF(SUM('2011 Survey responses'!AI54:AO54)<7.1,\"\",(AVERAGEIFS('2011 Survey responses'!AI54:AO54,'2011 Survey responses'!AI54:AO54,\">1\")))","v":4},{"$f":"IF(('2011 Survey responses'!AH54)<1.1,\"\",('2011 Survey responses'!AH54))","v":2},{"$f":"IF(SUM('2011 Survey responses'!AP54:BV54)<1,\"\",(AVERAGEIFS('2011 Survey responses'!AP54:BV54,'2011 Survey responses'!AP54:BV54,\">1\")))","v":2.8484848484848486},{"$f":"IF(SUM('2011 Survey responses'!AP54:AS54)<4.1,\"\",(AVERAGEIFS('2011 Survey responses'!AP54:AS54,'2011 Survey responses'!AP54:AS54,\">1\")))","v":2.75},{"$f":"IF(SUM('2011 Survey responses'!AT54:BF54)<1,\"\",(AVERAGEIFS('2011 Survey responses'!AT54:BF54,'2011 Survey responses'!AT54:BF54,\">1\")))","v":2.6923076923076925},{"$f":"IF(SUM('2011 Survey responses'!BG54:BO54)<1,\"\",(AVERAGEIFS('2011 Survey responses'!BG54:BO54,'2011 Survey responses'!BG54:BO54,\">1\")))","v":3.5555555555555554},{"$f":"IF(SUM('2011 Survey responses'!BP54:BS54)<1,\"\",(AVERAGEIFS('2011 Survey responses'!BP54:BS54,'2011 Survey responses'!BP54:BS54,\">1\")))","v":2.5},{"$f":"IF(SUM('2011 Survey responses'!BT54:BV54)<3.1,\"\",(AVERAGEIFS('2011 Survey responses'!BT54:BV54,'2011 Survey responses'!BT54:BV54,\">1\")))","v":2},{"$f":"IF(('2011 Survey responses'!AQ54+'2011 Survey responses'!AR54+'2011 Survey responses'!BG54)<3.1,\"\",((SUMIF('2011 Survey responses'!AQ54,\">1\")+SUMIF('2011 Survey responses'!AR54,\">1\")+SUMIF('2011 Survey responses'!BG54,\">1\"))/(COUNTIF('2011 Survey responses'!AQ54,\">1\")+COUNTIF('2011 Survey responses'!AR54,\">1\")+COUNTIF('2011 Survey responses'!BG54,\">1\"))))","v":3},{"$f":"IF(SUM('2011 Survey responses'!AP54:AS54)<4.1,\"\",(AVERAGEIFS('2011 Survey responses'!AP54:AS54,'2011 Survey responses'!AP54:AS54,\">1\")))","v":2.75},{"$f":"IF(('2011 Survey responses'!AU54+'2011 Survey responses'!AX54+'2011 Survey responses'!BA54+'2011 Survey responses'!BC54+'2011 Survey responses'!BD54)<5.1,\"\",(SUMIF('2011 Survey responses'!AU54,\">1\")+SUMIF('2011 Survey responses'!AX54,\">1\")+SUMIF('2011 Survey responses'!BA54,\">1\")+SUMIF('2011 Survey responses'!BC54,\">1\")+SUMIF('2011 Survey responses'!BD54,\">1\"))/(COUNTIF('2011 Survey responses'!AU54,\">1\")+COUNTIF('2011 Survey responses'!AX54,\">1\")+COUNTIF('2011 Survey responses'!BA54,\">1\")+COUNTIF('2011 Survey responses'!BC54,\">1\")+COUNTIF('2011 Survey responses'!BD54,\">1\")))","v":2.8},{"$f":"IF(('2011 Survey responses'!AT54)<1.1,\"\",('2011 Survey responses'!AT54))","v":2},{"$f":"IF(SUM('2011 Survey responses'!AV54:AW54)<2.1,\"\",(AVERAGEIFS('2011 Survey responses'!AV54:AW54,'2011 Survey responses'!AV54:AW54,\">1\")))","v":2},{"$f":"IF(('2011 Survey responses'!AW54+'2011 Survey responses'!AY54)<2.1,\"\",(SUMIF('2011 Survey responses'!AW54,\">1\")+SUMIF('2011 Survey responses'!AY54,\">1\"))/(COUNTIF('2011 Survey responses'!AW54,\">1\")+COUNTIF('2011 Survey responses'!AY54,\">1\")))","v":2},{"$f":"IF(('2011 Survey responses'!AZ54)<1.1,\"\",('2011 Survey responses'!AZ54))","v":2},2,2,2,2,{"$f":"IF(('2011 Survey responses'!BE54)<1.1,\"\",('2011 Survey responses'!BE54))","v":4},{"$f":"IF(('2011 Survey responses'!AY54+'2011 Survey responses'!BB54+'2011 Survey responses'!BF54)<3.1,\"\",(SUMIF('2011 Survey responses'!AY54,\">1\")+SUMIF('2011 Survey responses'!BB54,\">1\")+SUMIF('2011 Survey responses'!BF54,\">1\"))/(COUNTIF('2011 Survey responses'!AY54,\">1\")+COUNTIF('2011 Survey responses'!BB54,\">1\")+COUNTIF('2011 Survey responses'!BF54,\">1\")))","v":3},3.0277777777777777,{"$f":"IF(SUM('2011 Survey responses'!BT54:BV54)<3.1,\"\",(AVERAGEIFS('2011 Survey responses'!BT54:BV54,'2011 Survey responses'!BT54:BV54,\">1\")))","v":2},{"$f":"IF(SUM('2011 Survey responses'!BW54:CP54)<1,\"\",(AVERAGEIFS('2011 Survey responses'!BW54:CP54,'2011 Survey responses'!BW54:CP54,\">1\")))","v":3.65},{"$f":"IF(SUM('2011 Survey responses'!BW54:CF54)<1,\"\",(AVERAGEIFS('2011 Survey responses'!BW54:CF54,'2011 Survey responses'!BW54:CF54,\">1\")))","v":4.3},{"$f":"IF(SUM('2011 Survey responses'!CG54:CP54)<1,\"\",(AVERAGEIFS('2011 Survey responses'!CG54:CP54,'2011 Survey responses'!CG54:CP54,\">1\")))","v":3},{"$f":"IF(SUM('2011 Survey responses'!BX54:CF54)<1,\"\",(AVERAGEIFS('2011 Survey responses'!BX54:CF54,'2011 Survey responses'!BX54:CF54,\">1\")))","v":4.2222222222222223},{"$f":"IF(SUM('2011 Survey responses'!CH54:CP54)<1,\"\",(AVERAGEIFS('2011 Survey responses'!CH54:CP54,'2011 Survey responses'!CH54:CP54,\">1\")))","v":2.8888888888888888},{"$f":"IF(SUM('2011 Survey responses'!BW54:CP54)<1,\"\",(AVERAGEIFS('2011 Survey responses'!BW54:CP54,'2011 Survey responses'!BW54:CP54,\">1\")))","v":3.65},{"$f":"IF(('2011 Survey responses'!BW54+'2011 Survey responses'!CG54)<2.1,\"\",(SUMIF('2011 Survey responses'!BW54,\">1\")+SUMIF('2011 Survey responses'!CG54,\">1\"))/(COUNTIF('2011 Survey responses'!BW54,\">1\")+COUNTIF('2011 Survey responses'!CG54,\">1\")))","v":4.5},{"$f":"IF(('2011 Survey responses'!BX54+'2011 Survey responses'!CH54)<2.1,\"\",(SUMIF('2011 Survey responses'!BX54,\">1\")+SUMIF('2011 Survey responses'!CH54,\">1\"))/(COUNTIF('2011 Survey responses'!BX54,\">1\")+COUNTIF('2011 Survey responses'!CH54,\">1\")))","v":4.5},{"$f":"IF(('2011 Survey responses'!BY54+'2011 Survey responses'!CI54)<2.1,\"\",(SUMIF('2011 Survey responses'!BY54,\">1\")+SUMIF('2011 Survey responses'!CI54,\">1\"))/(COUNTIF('2011 Survey responses'!BY54,\">1\")+COUNTIF('2011 Survey responses'!CI54,\">1\")))","v":4.5},{"$f":"IF('2011 Survey responses'!CQ54<0.5,\"\",'2011 Survey responses'!CQ54)","v":1},{"$f":"IF('2011 Survey responses'!CR54<0.5,\"\",'2011 Survey responses'!CR54)","v":4},{"$f":"IF('2011 Survey responses'!CS54<0.5,\"\",'2011 Survey responses'!CS54)","v":4},{"$f":"IF('2011 Survey responses'!CT54<0.5,\"\",'2011 Survey responses'!CT54)","v":1},{"$f":"IF('2011 Survey responses'!CU54<0.5,\"\",'2011 Survey responses'!CU54)","v":4},{"$f":"IF('2011 Survey responses'!CV54<0.5,\"\",'2011 Survey responses'!CV54)","v":4},{"$f":"IF(SUM('2011 Survey responses'!CW54:DL54)<1,\"\",(AVERAGE('2011 Survey responses'!CW54:DL54)))","v":1.4375},{"$f":"IF(SUM('2011 Survey responses'!CW54:CZ54)<1,\"\",(AVERAGE('2011 Survey responses'!CW54:CZ54)))","v":1.75},{"$f":"IF(SUM('2011 Survey responses'!DA54:DD54)<1,\"\",(AVERAGE('2011 Survey responses'!DA54:DD54)))","v":1},{"$f":"IF(SUM('2011 Survey responses'!DE54:DH54)<1,\"\",(AVERAGE('2011 Survey responses'!DE54:DH54)))","v":1},{"$f":"IF(SUM('2011 Survey responses'!DI54:DL54)<1,\"\",(AVERAGE('2011 Survey responses'!DI54:DL54)))","v":2},{"$f":"IF(('2011 Survey responses'!CW54+'2011 Survey responses'!DA54+'2011 Survey responses'!DE54+'2011 Survey responses'!DI54)<1,\"\",AVERAGE('2011 Survey responses'!CW54,'2011 Survey responses'!DA54,'2011 Survey responses'!DE54,'2011 Survey responses'!DI54))","v":1.5},{"$f":"IF(('2011 Survey responses'!CX54+'2011 Survey responses'!DB54+'2011 Survey responses'!DF54+'2011 Survey responses'!DJ54)<1,\"\",AVERAGE('2011 Survey responses'!CX54,'2011 Survey responses'!DB54,'2011 Survey responses'!DF54,'2011 Survey responses'!DJ54))","v":1.5},{"$f":"IF(('2011 Survey responses'!CY54+'2011 Survey responses'!DC54+'2011 Survey responses'!DG54+'2011 Survey responses'!DK54)<1,\"\",AVERAGE('2011 Survey responses'!CY54,'2011 Survey responses'!DC54,'2011 Survey responses'!DG54,'2011 Survey responses'!DK54))","v":1.25},{"$f":"IF(('2011 Survey responses'!CZ54+'2011 Survey responses'!DD54+'2011 Survey responses'!DH54+'2011 Survey responses'!DL54)<1,\"\",AVERAGE('2011 Survey responses'!CZ54,'2011 Survey responses'!DD54,'2011 Survey responses'!DH54,'2011 Survey responses'!DL54))","v":1.5},{"$f":"IF('2011 Survey responses'!CW54<0.5,\"\",'2011 Survey responses'!CW54)","v":2},{"$f":"IF('2011 Survey responses'!CX54<0.5,\"\",'2011 Survey responses'!CX54)","v":2},{"$f":"IF('2011 Survey responses'!CY54<0.5,\"\",'2011 Survey responses'!CY54)","v":1},{"$f":"IF('2011 Survey responses'!CZ54<0.5,\"\",'2011 Survey responses'!CZ54)","v":2},{"$f":"IF('2011 Survey responses'!DA54<0.5,\"\",'2011 Survey responses'!DA54)","v":1},{"$f":"IF('2011 Survey responses'!DB54<0.5,\"\",'2011 Survey responses'!DB54)","v":1},{"$f":"IF('2011 Survey responses'!DC54<0.5,\"\",'2011 Survey responses'!DC54)","v":1},{"$f":"IF('2011 Survey responses'!DD54<0.5,\"\",'2011 Survey responses'!DD54)","v":1},{"$f":"IF('2011 Survey responses'!DE54<0.5,\"\",'2011 Survey responses'!DE54)","v":1},{"$f":"IF('2011 Survey responses'!DF54<0.5,\"\",'2011 Survey responses'!DF54)","v":1},{"$f":"IF('2011 Survey responses'!DG54<0.5,\"\",'2011 Survey responses'!DG54)","v":1},{"$f":"IF('2011 Survey responses'!DH54<0.5,\"\",'2011 Survey responses'!DH54)","v":1},{"$f":"IF('2011 Survey responses'!DI54<0.5,\"\",'2011 Survey responses'!DI54)","v":2},{"$f":"IF('2011 Survey responses'!DJ54<0.5,\"\",'2011 Survey responses'!DJ54)","v":2},{"$f":"IF('2011 Survey responses'!DK54<0.5,\"\",'2011 Survey responses'!DK54)","v":2},{"$f":"IF('2011 Survey responses'!DL54<0.5,\"\",'2011 Survey responses'!DL54)","v":2},{"$f":"IF('2011 Survey responses'!DU54=4,4,IF('2011 Survey responses'!DU54=5,4,\"\"))","v":4},{"$f":"IF('2011 Survey responses'!DV54=4,3,IF('2011 Survey responses'!DV54=5,3,\"\"))","v":3},2,{"$f":"IF(CQ54=2,CQ54,IF(CO54=4,CO54,IF(CP54=3,CP54,IF('2011 Survey responses'!GT54=1,1,\"\"))))","v":2},{"$f":"IF('2011 Survey responses'!DO54<0.5,\"\",'2011 Survey responses'!DO54)","v":5},{"$f":"IF('2011 Survey responses'!DP54<0.5,\"\",'2011 Survey responses'!DP54)","v":3},{"$f":"IF('2011 Survey responses'!DQ54<0.5,\"\",'2011 Survey responses'!DQ54)","v":2},{"$f":"IF('2011 Survey responses'!DR54<0.5,\"\",'2011 Survey responses'!DR54)","v":3},{"$f":"IF('2011 Survey responses'!DS54<0.5,\"\",'2011 Survey responses'!DS54)","v":4},{"$f":"IF('2011 Survey responses'!DT54<0.5,\"\",'2011 Survey responses'!DT54)","v":4},{"$f":"IF('2011 Survey responses'!DU54<0.5,\"\",'2011 Survey responses'!DU54)","v":4},{"$f":"IF('2011 Survey responses'!DV54<0.5,\"\",'2011 Survey responses'!DV54)","v":4},{"$f":"IF('2011 Survey responses'!DW54<0.5,\"\",'2011 Survey responses'!DW54)","v":4},{"$f":"IF('2011 Survey responses'!DX54<0.5,\"\",'2011 Survey responses'!DX54)","v":3},{"$f":"IF('2011 Survey responses'!DY54<0.5,\"\",'2011 Survey responses'!DY54)","v":4},{"$f":"IF('2011 Survey responses'!DZ54<0.5,\"\",'2011 Survey responses'!DZ54)","v":4},{"$f":"IF('2011 Survey responses'!EA54<0.5,\"\",'2011 Survey responses'!EA54)","v":4},{"$f":"IF('2011 Survey responses'!EB54<0.5,\"\",'2011 Survey responses'!EB54)","v":4},{"$f":"IF('2011 Survey responses'!EC54<0.5,\"\",'2011 Survey responses'!EC54)","v":3},{"$f":"IF('2011 Survey responses'!ED54<0.5,\"\",'2011 Survey responses'!ED54)","v":4},{"$f":"IF('2011 Survey responses'!EE54<0.5,\"\",'2011 Survey responses'!EE54)","v":2},{"$f":"IF('2011 Survey responses'!EF54<0.5,\"\",'2011 Survey responses'!EF54)","v":4},{"$f":"IF('2011 Survey responses'!EG54<0.5,\"\",'2011 Survey responses'!EG54)","v":3},{"$f":"IF('2011 Survey responses'!EH54<0.5,\"\",'2011 Survey responses'!EH54)","v":2},{"$f":"IF('2011 Survey responses'!EI54<0.5,\"\",'2011 Survey responses'!EI54)","v":2},{"$f":"IF('2011 Survey responses'!EJ54<0.5,\"\",'2011 Survey responses'!EJ54)","v":2},{"$f":"IF('2011 Survey responses'!EK54<0.5,\"\",'2011 Survey responses'!EK54)","v":1},{"$f":"IF('2011 Survey responses'!EL54<0.5,\"\",'2011 Survey responses'!EL54)","v":2},{"$f":"IF('2011 Survey responses'!EM54<0.5,\"\",'2011 Survey responses'!EM54)","v":4},{"$f":"IF('2011 Survey responses'!EN54<0.5,\"\",'2011 Survey responses'!EN54)","v":4},{"$f":"IF('2011 Survey responses'!EO54<0.5,\"\",'2011 Survey responses'!EO54)","v":3},{"$f":"IF('2011 Survey responses'!EP54<0.5,\"\",'2011 Survey responses'!EP54)","v":4},{"$f":"IF(('2011 Survey responses'!EW54+'2011 Survey responses'!EX54)>=2,AVERAGE('2011 Survey responses'!EW54,'2011 Survey responses'!EY54),\"\")","v":3},{"$f":"IF('2011 Survey responses'!EX54<0.5,\"\",'2011 Survey responses'!EX54)","v":4},{"$f":"IF('2011 Survey responses'!EZ54<0.5,\"\",'2011 Survey responses'!EZ54)","v":5},{"$f":"IF('2011 Survey responses'!FB54<0.5,\"\",'2011 Survey responses'!FB54)","v":4},{"$f":"IF('2011 Survey responses'!FD54<0.5,\"\",'2011 Survey responses'!FD54)","v":4},{"$f":"IF('2011 Survey responses'!FC54<0.5,\"\",'2011 Survey responses'!FC54)","v":4},{"$f":"IF(('2011 Survey responses'!EM54+'2011 Survey responses'!EN54)>=2,AVERAGE('2011 Survey responses'!EM54,'2011 Survey responses'!EN54),\"\")","v":4},{"$f":"IF('2011 Survey responses'!ES54<0.5,\"\",'2011 Survey responses'!ES54)","v":4},{"$f":"IF(('2011 Survey responses'!ET54+'2011 Survey responses'!EU54)>=2,AVERAGE('2011 Survey responses'!ET54,'2011 Survey responses'!EU54),\"\")","v":4},{"$f":"IF('2011 Survey responses'!EV54<0.5,\"\",'2011 Survey responses'!EV54)","v":5},{"$f":"IF('2011 Survey responses'!FA54<0.5,\"\",'2011 Survey responses'!FA54)","v":4},{"$f":"IF('2011 Survey responses'!ER54<0.5,\"\",'2011 Survey responses'!ER54)","v":4},{"$f":"IF(('2011 Survey responses'!EO54+'2011 Survey responses'!EP54)>=2,AVERAGE('2011 Survey responses'!EO54,'2011 Survey responses'!EP54),\"\")","v":3.5},{"$f":"IF('2011 Survey responses'!EQ54<0.5,\"\",'2011 Survey responses'!EQ54)","v":2},{"$f":"IF('2011 Survey responses'!ET54<0.5,\"\",'2011 Survey responses'!ET54)","v":4},{"$f":"IF('2011 Survey responses'!EU54<0.5,\"\",'2011 Survey responses'!EU54)","v":4},{"$f":"IF('2011 Survey responses'!EW54<0.5,\"\",'2011 Survey responses'!EW54)","v":3},{"$f":"IF('2011 Survey responses'!EY54<0.5,\"\",'2011 Survey responses'!EY54)","v":3},{"$f":"IF('2011 Survey responses'!FU54<0.5,\"\",'2011 Survey responses'!FU54)","v":4},{"$f":"IF(('2011 Survey responses'!FL54+'2011 Survey responses'!FM54)>=2,AVERAGE('2011 Survey responses'!FL54,'2011 Survey responses'!FM54),\"\")","v":4},{"$f":"IF(('2011 Survey responses'!FO54+'2011 Survey responses'!FQ54)>=2,AVERAGE('2011 Survey responses'!FO54,'2011 Survey responses'!FQ54),\"\")","v":4},{"$f":"IF('2011 Survey responses'!FJ54<0.5,\"\",'2011 Survey responses'!FJ54)","v":4},{"$f":"IF('2011 Survey responses'!FT54<0.5,\"\",'2011 Survey responses'!FT54)","v":4},{"$f":"IF('2011 Survey responses'!FR54<0.5,\"\",'2011 Survey responses'!FR54)","v":4},{"$f":"IF('2011 Survey responses'!FK54<0.5,\"\",'2011 Survey responses'!FK54)","v":4},{"$f":"IF('2011 Survey responses'!FP54<0.5,\"\",'2011 Survey responses'!FP54)","v":4},{"$f":"IF('2011 Survey responses'!FN54<0.5,\"\",'2011 Survey responses'!FN54)","v":4},{"$f":"IF(('2011 Survey responses'!FE54+'2011 Survey responses'!FF54)>=2,AVERAGE('2011 Survey responses'!FE54,'2011 Survey responses'!FF54),\"\")","v":4},{"$f":"IF('2011 Survey responses'!FS54<0.5,\"\",'2011 Survey responses'!FS54)","v":4},{"$f":"IF('2011 Survey responses'!FV54<0.5,\"\",'2011 Survey responses'!FV54)","v":4},{"$f":"IF(('2011 Survey responses'!FG54+'2011 Survey responses'!FH54)>=2,AVERAGE('2011 Survey responses'!FG54,'2011 Survey responses'!FH54),\"\")","v":4},{"$f":"IF('2011 Survey responses'!FI54<0.5,\"\",'2011 Survey responses'!FI54)","v":3},{"$f":"IF('2011 Survey responses'!FE54<0.5,\"\",'2011 Survey responses'!FE54)","v":4},{"$f":"IF('2011 Survey responses'!FF54<0.5,\"\",'2011 Survey responses'!FF54)","v":4},{"$f":"IF('2011 Survey responses'!FG54<0.5,\"\",'2011 Survey responses'!FG54)","v":4},{"$f":"IF('2011 Survey responses'!FH54<0.5,\"\",'2011 Survey responses'!FH54)","v":4},{"$f":"IF('2011 Survey responses'!FL54<0.5,\"\",'2011 Survey responses'!FL54)","v":4},{"$f":"IF('2011 Survey responses'!FM54<0.5,\"\",'2011 Survey responses'!FM54)","v":4},{"$f":"IF('2011 Survey responses'!FO54<0.5,\"\",'2011 Survey responses'!FO54)","v":4},{"$f":"IF('2011 Survey responses'!FQ54<0.5,\"\",'2011 Survey responses'!FQ54)","v":4}]
["Egypt",{"$f":"IF(SUM(F55)<1,\"\",AVERAGEIF('2011 Survey responses'!B55:CP55,\">1\"))","v":4.0434782608695654},{"$f":"IF(SUM(F55)<1,\"\",AVERAGEIF('2011 Survey responses'!B55:AO55,\">1\"))","v":3.8205128205128207},{"$f":"IF(SUM(F55)<1,\"\",AVERAGEIF('2011 Survey responses'!B55:BV55,\">1\"))","v":3.9444444444444446},{"$f":"IF(SUM(F55)<1,\"\",AVERAGEIF('2011 Survey responses'!V55:BV55,\">1\"))","v":4},{"$f":"IF(SUM('2011 Survey responses'!B55:U55)<1,\"\",(AVERAGEIFS('2011 Survey responses'!B55:U55,'2011 Survey responses'!B55:U55,\">1\")))","v":3.7894736842105261},{"$f":"IF(SUM('2011 Survey responses'!B55:H55)<1,\"\",(AVERAGEIFS('2011 Survey responses'!B55:H55,'2011 Survey responses'!B55:H55,\">1\")))","v":4.5},{"$f":"IF(SUM('2011 Survey responses'!I55:S55)<1,\"\",(AVERAGEIFS('2011 Survey responses'!I55:S55,'2011 Survey responses'!I55:S55,\">1\")))","v":3.0909090909090908},{"$f":"IF(SUM('2011 Survey responses'!T55:U55)<2.1,\"\",(AVERAGEIFS('2011 Survey responses'!T55:U55,'2011 Survey responses'!T55:U55,\">1\")))","v":5.5},{"$f":"IF(SUM('2011 Survey responses'!B55:C55)<2.1,\"\",((SUMIF('2011 Survey responses'!B55:C55,\">1\")+SUMIF('2011 Survey responses'!F55,\">1\"))/(COUNTIF('2011 Survey responses'!B55:C55,\">1\")+COUNTIF('2011 Survey responses'!F55,\">1\"))))","v":4},{"$f":"IF(SUM('2011 Survey responses'!D55:E55)<2.1,\"\",(AVERAGEIFS('2011 Survey responses'!D55:E55,'2011 Survey responses'!D55:E55,\">1\")))","v":5},{"$f":"IF(('2011 Survey responses'!B55+'2011 Survey responses'!D55)<2.1,\"\",((SUMIF('2011 Survey responses'!B55,\">1\")+SUMIF('2011 Survey responses'!D55,\">1\")+SUMIF('2011 Survey responses'!F55,\">1\")+SUMIF('2011 Survey responses'!K55,\">1\"))/(COUNTIF('2011 Survey responses'!B55,\">1\")+COUNTIF('2011 Survey responses'!D55,\">1\")+COUNTIF('2011 Survey responses'!F55,\">1\")+COUNTIF('2011 Survey responses'!K55,\">1\"))))","v":4.25},{"$f":"IF(SUM('2011 Survey responses'!G55:H55)<2.1,\"\",(AVERAGEIFS('2011 Survey responses'!G55:H55,'2011 Survey responses'!G55:H55,\">1\")))","v":5},{"$f":"IF(SUM('2011 Survey responses'!F55:G55)<1.5,\"\",MAX('2011 Survey responses'!F55,'2011 Survey responses'!G55))","v":4},{"$f":"IF(SUM('2011 Survey responses'!G55:H55)<1,\"\",MAX('2011 Survey responses'!G55,'2011 Survey responses'!H55))","v":5},{"$f":"IF(SUM('2011 Survey responses'!I55:L55)<4.1,\"\",(AVERAGEIFS('2011 Survey responses'!I55:L55,'2011 Survey responses'!I55:L55,\">1\")))","v":4},{"$f":"IF(SUM('2011 Survey responses'!M55:S55)<4.1,\"\",(AVERAGEIFS('2011 Survey responses'!M55:S55,'2011 Survey responses'!M55:S55,\">1\")))","v":2.5714285714285716},{"$f":"IF(SUM('2011 Survey responses'!T55:U55)<2.1,\"\",(AVERAGEIFS('2011 Survey responses'!T55:U55,'2011 Survey responses'!T55:U55,\">1\")))","v":5.5},{"$f":"IF(SUM('2011 Survey responses'!V55:AO55)<1,\"\",(AVERAGEIFS('2011 Survey responses'!V55:AO55,'2011 Survey responses'!V55:AO55,\">1\")))","v":3.85},{"$f":"IF(SUM('2011 Survey responses'!V55:AA55)<1,\"\",(AVERAGEIFS('2011 Survey responses'!V55:AA55,'2011 Survey responses'!V55:AA55,\">1\")))","v":3.8333333333333335},{"$f":"IF(SUM('2011 Survey responses'!AB55:AH55)<1,\"\",(AVERAGEIFS('2011 Survey responses'!AB55:AH55,'2011 Survey responses'!AB55:AH55,\">1\")))","v":3.4285714285714284},{"$f":"IF(SUM('2011 Survey responses'!AI55:AO55)<1,\"\",(AVERAGEIFS('2011 Survey responses'!AI55:AO55,'2011 Survey responses'!AI55:AO55,\">1\")))","v":4.2857142857142856},{"$f":"IF(('2011 Survey responses'!Y55+'2011 Survey responses'!AI55+'2011 Survey responses'!AK55)<3.1,\"\",((SUMIF('2011 Survey responses'!Y55,\">1\")+SUMIF('2011 Survey responses'!AI55,\">1\")+SUMIF('2011 Survey responses'!AK55,\">1\")+SUMIF('2011 Survey responses'!AM55,\">1\"))/(COUNTIF('2011 Survey responses'!Y55,\">1\")+COUNTIF('2011 Survey responses'!AI55,\">1\")+COUNTIF('2011 Survey responses'!AK55,\">1\")+COUNTIF('2011 Survey responses'!AM55,\">1\"))))","v":3.75},{"$f":"IF(('2011 Survey responses'!W55)<1.1,\"\",('2011 Survey responses'!W55))","v":5},{"$f":"IF(('2011 Survey responses'!Y55)<1.1,\"\",('2011 Survey responses'!Y55))","v":2},{"$f":"IF(('2011 Survey responses'!Z55)<1.1,\"\",('2011 Survey responses'!Z55))","v":2},{"$f":"IF(('2011 Survey responses'!V55+'2011 Survey responses'!X55+'2011 Survey responses'!AA55)<3.1,\"\",((SUMIF('2011 Survey responses'!V55,\">1\")+SUMIF('2011 Survey responses'!X55,\">1\")+SUMIF('2011 Survey responses'!AA55,\">1\"))/(COUNTIF('2011 Survey responses'!V55,\">1\")+COUNTIF('2011 Survey responses'!X55,\">1\")+COUNTIF('2011 Survey responses'!AA55,\">1\"))))","v":4.666666666666667},{"$f":"IF(('2011 Survey responses'!V55+'2011 Survey responses'!Y55+'2011 Survey responses'!AA55)<3.1,\"\",((SUMIF('2011 Survey responses'!V55,\">1\")+SUMIF('2011 Survey responses'!Y55,\">1\")+SUMIF('2011 Survey responses'!AA55,\">1\"))/(COUNTIF('2011 Survey responses'!V55,\">1\")+COUNTIF('2011 Survey responses'!Y55,\">1\")+COUNTIF('2011 Survey responses'!AA55,\">1\"))))","v":3.6666666666666665},{"$f":"IF(SUM('2011 Survey responses'!AB55:AH55)<1,\"\",(AVERAGEIFS('2011 Survey responses'!AB55:AH55,'2011 Survey responses'!AB55:AH55,\">1\")))","v":3.4285714285714284},{"$f":"IF(SUM('2011 Survey responses'!AI55:AO55)<7.1,\"\",(AVERAGEIFS('2011 Survey responses'!AI55:AO55,'2011 Survey responses'!AI55:AO55,\">1\")))","v":4.2857142857142856},{"$f":"IF(('2011 Survey responses'!AH55)<1.1,\"\",('2011 Survey responses'!AH55))","v":4},{"$f":"IF(SUM('2011 Survey responses'!AP55:BV55)<1,\"\",(AVERAGEIFS('2011 Survey responses'!AP55:BV55,'2011 Survey responses'!AP55:BV55,\">1\")))","v":4.0909090909090908},{"$f":"IF(SUM('2011 Survey responses'!AP55:AS55)<4.1,\"\",(AVERAGEIFS('2011 Survey responses'!AP55:AS55,'2011 Survey responses'!AP55:AS55,\">1\")))","v":4.25},{"$f":"IF(SUM('2011 Survey responses'!AT55:BF55)<1,\"\",(AVERAGEIFS('2011 Survey responses'!AT55:BF55,'2011 Survey responses'!AT55:BF55,\">1\")))","v":3.6153846153846154},{"$f":"IF(SUM('2011 Survey responses'!BG55:BO55)<1,\"\",(AVERAGEIFS('2011 Survey responses'!BG55:BO55,'2011 Survey responses'!BG55:BO55,\">1\")))","v":5.1111111111111107},{"$f":"IF(SUM('2011 Survey responses'!BP55:BS55)<1,\"\",(AVERAGEIFS('2011 Survey responses'!BP55:BS55,'2011 Survey responses'!BP55:BS55,\">1\")))","v":3.5},{"$f":"IF(SUM('2011 Survey responses'!BT55:BV55)<3.1,\"\",(AVERAGEIFS('2011 Survey responses'!BT55:BV55,'2011 Survey responses'!BT55:BV55,\">1\")))","v":3.6666666666666665},{"$f":"IF(('2011 Survey responses'!AQ55+'2011 Survey responses'!AR55+'2011 Survey responses'!BG55)<3.1,\"\",((SUMIF('2011 Survey responses'!AQ55,\">1\")+SUMIF('2011 Survey responses'!AR55,\">1\")+SUMIF('2011 Survey responses'!BG55,\">1\"))/(COUNTIF('2011 Survey responses'!AQ55,\">1\")+COUNTIF('2011 Survey responses'!AR55,\">1\")+COUNTIF('2011 Survey responses'!BG55,\">1\"))))","v":5},{"$f":"IF(SUM('2011 Survey responses'!AP55:AS55)<4.1,\"\",(AVERAGEIFS('2011 Survey responses'!AP55:AS55,'2011 Survey responses'!AP55:AS55,\">1\")))","v":4.25},{"$f":"IF(('2011 Survey responses'!AU55+'2011 Survey responses'!AX55+'2011 Survey responses'!BA55+'2011 Survey responses'!BC55+'2011 Survey responses'!BD55)<5.1,\"\",(SUMIF('2011 Survey responses'!AU55,\">1\")+SUMIF('2011 Survey responses'!AX55,\">1\")+SUMIF('2011 Survey responses'!BA55,\">1\")+SUMIF('2011 Survey responses'!BC55,\">1\")+SUMIF('2011 Survey responses'!BD55,\">1\"))/(COUNTIF('2011 Survey responses'!AU55,\">1\")+COUNTIF('2011 Survey responses'!AX55,\">1\")+COUNTIF('2011 Survey responses'!BA55,\">1\")+COUNTIF('2011 Survey responses'!BC55,\">1\")+COUNTIF('2011 Survey responses'!BD55,\">1\")))","v":3.6},{"$f":"IF(('2011 Survey responses'!AT55)<1.1,\"\",('2011 Survey responses'!AT55))","v":4},{"$f":"IF(SUM('2011 Survey responses'!AV55:AW55)<2.1,\"\",(AVERAGEIFS('2011 Survey responses'!AV55:AW55,'2011 Survey responses'!AV55:AW55,\">1\")))","v":4},{"$f":"IF(('2011 Survey responses'!AW55+'2011 Survey responses'!AY55)<2.1,\"\",(SUMIF('2011 Survey responses'!AW55,\">1\")+SUMIF('2011 Survey responses'!AY55,\">1\"))/(COUNTIF('2011 Survey responses'!AW55,\">1\")+COUNTIF('2011 Survey responses'!AY55,\">1\")))","v":4},{"$f":"IF(('2011 Survey responses'!AZ55)<1.1,\"\",('2011 Survey responses'!AZ55))","v":4},4,2,4,5,{"$f":"IF(('2011 Survey responses'!BE55)<1.1,\"\",('2011 Survey responses'!BE55))","v":2},{"$f":"IF(('2011 Survey responses'!AY55+'2011 Survey responses'!BB55+'2011 Survey responses'!BF55)<3.1,\"\",(SUMIF('2011 Survey responses'!AY55,\">1\")+SUMIF('2011 Survey responses'!BB55,\">1\")+SUMIF('2011 Survey responses'!BF55,\">1\"))/(COUNTIF('2011 Survey responses'!AY55,\">1\")+COUNTIF('2011 Survey responses'!BB55,\">1\")+COUNTIF('2011 Survey responses'!BF55,\">1\")))","v":3.6666666666666665},4.3055555555555554,{"$f":"IF(SUM('2011 Survey responses'!BT55:BV55)<3.1,\"\",(AVERAGEIFS('2011 Survey responses'!BT55:BV55,'2011 Survey responses'!BT55:BV55,\">1\")))","v":3.6666666666666665},{"$f":"IF(SUM('2011 Survey responses'!BW55:CP55)<1,\"\",(AVERAGEIFS('2011 Survey responses'!BW55:CP55,'2011 Survey responses'!BW55:CP55,\">1\")))","v":4.4000000000000004},{"$f":"IF(SUM('2011 Survey responses'!BW55:CF55)<1,\"\",(AVERAGEIFS('2011 Survey responses'!BW55:CF55,'2011 Survey responses'!BW55:CF55,\">1\")))","v":4.3},{"$f":"IF(SUM('2011 Survey responses'!CG55:CP55)<1,\"\",(AVERAGEIFS('2011 Survey responses'!CG55:CP55,'2011 Survey responses'!CG55:CP55,\">1\")))","v":4.5},{"$f":"IF(SUM('2011 Survey responses'!BX55:CF55)<1,\"\",(AVERAGEIFS('2011 Survey responses'!BX55:CF55,'2011 Survey responses'!BX55:CF55,\">1\")))","v":4.2222222222222223},{"$f":"IF(SUM('2011 Survey responses'!CH55:CP55)<1,\"\",(AVERAGEIFS('2011 Survey responses'!CH55:CP55,'2011 Survey responses'!CH55:CP55,\">1\")))","v":4.4444444444444446},{"$f":"IF(SUM('2011 Survey responses'!BW55:CP55)<1,\"\",(AVERAGEIFS('2011 Survey responses'!BW55:CP55,'2011 Survey responses'!BW55:CP55,\">1\")))","v":4.4000000000000004},{"$f":"IF(('2011 Survey responses'!BW55+'2011 Survey responses'!CG55)<2.1,\"\",(SUMIF('2011 Survey responses'!BW55,\">1\")+SUMIF('2011 Survey responses'!CG55,\">1\"))/(COUNTIF('2011 Survey responses'!BW55,\">1\")+COUNTIF('2011 Survey responses'!CG55,\">1\")))","v":5},{"$f":"IF(('2011 Survey responses'!BX55+'2011 Survey responses'!CH55)<2.1,\"\",(SUMIF('2011 Survey responses'!BX55,\">1\")+SUMIF('2011 Survey responses'!CH55,\">1\"))/(COUNTIF('2011 Survey responses'!BX55,\">1\")+COUNTIF('2011 Survey responses'!CH55,\">1\")))","v":5},{"$f":"IF(('2011 Survey responses'!BY55+'2011 Survey responses'!CI55)<2.1,\"\",(SUMIF('2011 Survey responses'!BY55,\">1\")+SUMIF('2011 Survey responses'!CI55,\">1\"))/(COUNTIF('2011 Survey responses'!BY55,\">1\")+COUNTIF('2011 Survey responses'!CI55,\">1\")))","v":5},{"$f":"IF('2011 Survey responses'!CQ55<0.5,\"\",'2011 Survey responses'!CQ55)","v":3},{"$f":"IF('2011 Survey responses'!CR55<0.5,\"\",'2011 Survey responses'!CR55)","v":4},{"$f":"IF('2011 Survey responses'!CS55<0.5,\"\",'2011 Survey responses'!CS55)","v":4},{"$f":"IF('2011 Survey responses'!CT55<0.5,\"\",'2011 Survey responses'!CT55)","v":4},{"$f":"IF('2011 Survey responses'!CU55<0.5,\"\",'2011 Survey responses'!CU55)","v":""},{"$f":"IF('2011 Survey responses'!CV55<0.5,\"\",'2011 Survey responses'!CV55)","v":""},{"$f":"IF(SUM('2011 Survey responses'!CW55:DL55)<1,\"\",(AVERAGE('2011 Survey responses'!CW55:DL55)))","v":1.375},{"$f":"IF(SUM('2011 Survey responses'!CW55:CZ55)<1,\"\",(AVERAGE('2011 Survey responses'!CW55:CZ55)))","v":1.75},{"$f":"IF(SUM('2011 Survey responses'!DA55:DD55)<1,\"\",(AVERAGE('2011 Survey responses'!DA55:DD55)))","v":1},{"$f":"IF(SUM('2011 Survey responses'!DE55:DH55)<1,\"\",(AVERAGE('2011 Survey responses'!DE55:DH55)))","v":1},{"$f":"IF(SUM('2011 Survey responses'!DI55:DL55)<1,\"\",(AVERAGE('2011 Survey responses'!DI55:DL55)))","v":1.75},{"$f":"IF(('2011 Survey responses'!CW55+'2011 Survey responses'!DA55+'2011 Survey responses'!DE55+'2011 Survey responses'!DI55)<1,\"\",AVERAGE('2011 Survey responses'!CW55,'2011 Survey responses'!DA55,'2011 Survey responses'!DE55,'2011 Survey responses'!DI55))","v":1},{"$f":"IF(('2011 Survey responses'!CX55+'2011 Survey responses'!DB55+'2011 Survey responses'!DF55+'2011 Survey responses'!DJ55)<1,\"\",AVERAGE('2011 Survey responses'!CX55,'2011 Survey responses'!DB55,'2011 Survey responses'!DF55,'2011 Survey responses'!DJ55))","v":1.5},{"$f":"IF(('2011 Survey responses'!CY55+'2011 Survey responses'!DC55+'2011 Survey responses'!DG55+'2011 Survey responses'!DK55)<1,\"\",AVERAGE('2011 Survey responses'!CY55,'2011 Survey responses'!DC55,'2011 Survey responses'!DG55,'2011 Survey responses'!DK55))","v":1.5},{"$f":"IF(('2011 Survey responses'!CZ55+'2011 Survey responses'!DD55+'2011 Survey responses'!DH55+'2011 Survey responses'!DL55)<1,\"\",AVERAGE('2011 Survey responses'!CZ55,'2011 Survey responses'!DD55,'2011 Survey responses'!DH55,'2011 Survey responses'!DL55))","v":1.5},{"$f":"IF('2011 Survey responses'!CW55<0.5,\"\",'2011 Survey responses'!CW55)","v":1},{"$f":"IF('2011 Survey responses'!CX55<0.5,\"\",'2011 Survey responses'!CX55)","v":2},{"$f":"IF('2011 Survey responses'!CY55<0.5,\"\",'2011 Survey responses'!CY55)","v":2},{"$f":"IF('2011 Survey responses'!CZ55<0.5,\"\",'2011 Survey responses'!CZ55)","v":2},{"$f":"IF('2011 Survey responses'!DA55<0.5,\"\",'2011 Survey responses'!DA55)","v":1},{"$f":"IF('2011 Survey responses'!DB55<0.5,\"\",'2011 Survey responses'!DB55)","v":1},{"$f":"IF('2011 Survey responses'!DC55<0.5,\"\",'2011 Survey responses'!DC55)","v":1},{"$f":"IF('2011 Survey responses'!DD55<0.5,\"\",'2011 Survey responses'!DD55)","v":1},{"$f":"IF('2011 Survey responses'!DE55<0.5,\"\",'2011 Survey responses'!DE55)","v":1},{"$f":"IF('2011 Survey responses'!DF55<0.5,\"\",'2011 Survey responses'!DF55)","v":1},{"$f":"IF('2011 Survey responses'!DG55<0.5,\"\",'2011 Survey responses'!DG55)","v":1},{"$f":"IF('2011 Survey responses'!DH55<0.5,\"\",'2011 Survey responses'!DH55)","v":1},{"$f":"IF('2011 Survey responses'!DI55<0.5,\"\",'2011 Survey responses'!DI55)","v":1},{"$f":"IF('2011 Survey responses'!DJ55<0.5,\"\",'2011 Survey responses'!DJ55)","v":2},{"$f":"IF('2011 Survey responses'!DK55<0.5,\"\",'2011 Survey responses'!DK55)","v":2},{"$f":"IF('2011 Survey responses'!DL55<0.5,\"\",'2011 Survey responses'!DL55)","v":2},{"$f":"IF('2011 Survey responses'!DU55=4,4,IF('2011 Survey responses'!DU55=5,4,\"\"))","v":""},{"$f":"IF('2011 Survey responses'!DV55=4,3,IF('2011 Survey responses'!DV55=5,3,\"\"))","v":3},"",{"$f":"IF(CQ55=2,CQ55,IF(CO55=4,CO55,IF(CP55=3,CP55,IF('2011 Survey responses'!GT55=1,1,\"\"))))","v":3},{"$f":"IF('2011 Survey responses'!DO55<0.5,\"\",'2011 Survey responses'!DO55)","v":4},{"$f":"IF('2011 Survey responses'!DP55<0.5,\"\",'2011 Survey responses'!DP55)","v":5},{"$f":"IF('2011 Survey responses'!DQ55<0.5,\"\",'2011 Survey responses'!DQ55)","v":4},{"$f":"IF('2011 Survey responses'!DR55<0.5,\"\",'2011 Survey responses'!DR55)","v":4},{"$f":"IF('2011 Survey responses'!DS55<0.5,\"\",'2011 Survey responses'!DS55)","v":3},{"$f":"IF('2011 Survey responses'!DT55<0.5,\"\",'2011 Survey responses'!DT55)","v":4},{"$f":"IF('2011 Survey responses'!DU55<0.5,\"\",'2011 Survey responses'!DU55)","v":3},{"$f":"IF('2011 Survey responses'!DV55<0.5,\"\",'2011 Survey responses'!DV55)","v":4},{"$f":"IF('2011 Survey responses'!DW55<0.5,\"\",'2011 Survey responses'!DW55)","v":4},{"$f":"IF('2011 Survey responses'!DX55<0.5,\"\",'2011 Survey responses'!DX55)","v":4},{"$f":"IF('2011 Survey responses'!DY55<0.5,\"\",'2011 Survey responses'!DY55)","v":5},{"$f":"IF('2011 Survey responses'!DZ55<0.5,\"\",'2011 Survey responses'!DZ55)","v":5},{"$f":"IF('2011 Survey responses'!EA55<0.5,\"\",'2011 Survey responses'!EA55)","v":5},{"$f":"IF('2011 Survey responses'!EB55<0.5,\"\",'2011 Survey responses'!EB55)","v":5},{"$f":"IF('2011 Survey responses'!EC55<0.5,\"\",'2011 Survey responses'!EC55)","v":5},{"$f":"IF('2011 Survey responses'!ED55<0.5,\"\",'2011 Survey responses'!ED55)","v":4},{"$f":"IF('2011 Survey responses'!EE55<0.5,\"\",'2011 Survey responses'!EE55)","v":3},{"$f":"IF('2011 Survey responses'!EF55<0.5,\"\",'2011 Survey responses'!EF55)","v":5},{"$f":"IF('2011 Survey responses'!EG55<0.5,\"\",'2011 Survey responses'!EG55)","v":3},{"$f":"IF('2011 Survey responses'!EH55<0.5,\"\",'2011 Survey responses'!EH55)","v":4},{"$f":"IF('2011 Survey responses'!EI55<0.5,\"\",'2011 Survey responses'!EI55)","v":5},{"$f":"IF('2011 Survey responses'!EJ55<0.5,\"\",'2011 Survey responses'!EJ55)","v":4},{"$f":"IF('2011 Survey responses'!EK55<0.5,\"\",'2011 Survey responses'!EK55)","v":5},{"$f":"IF('2011 Survey responses'!EL55<0.5,\"\",'2011 Survey responses'!EL55)","v":4},{"$f":"IF('2011 Survey responses'!EM55<0.5,\"\",'2011 Survey responses'!EM55)","v":4},{"$f":"IF('2011 Survey responses'!EN55<0.5,\"\",'2011 Survey responses'!EN55)","v":4},{"$f":"IF('2011 Survey responses'!EO55<0.5,\"\",'2011 Survey responses'!EO55)","v":4},{"$f":"IF('2011 Survey responses'!EP55<0.5,\"\",'2011 Survey responses'!EP55)","v":4},{"$f":"IF(('2011 Survey responses'!EW55+'2011 Survey responses'!EX55)>=2,AVERAGE('2011 Survey responses'!EW55,'2011 Survey responses'!EY55),\"\")","v":5},{"$f":"IF('2011 Survey responses'!EX55<0.5,\"\",'2011 Survey responses'!EX55)","v":4},{"$f":"IF('2011 Survey responses'!EZ55<0.5,\"\",'2011 Survey responses'!EZ55)","v":4},{"$f":"IF('2011 Survey responses'!FB55<0.5,\"\",'2011 Survey responses'!FB55)","v":3},{"$f":"IF('2011 Survey responses'!FD55<0.5,\"\",'2011 Survey responses'!FD55)","v":4},{"$f":"IF('2011 Survey responses'!FC55<0.5,\"\",'2011 Survey responses'!FC55)","v":4},{"$f":"IF(('2011 Survey responses'!EM55+'2011 Survey responses'!EN55)>=2,AVERAGE('2011 Survey responses'!EM55,'2011 Survey responses'!EN55),\"\")","v":4},{"$f":"IF('2011 Survey responses'!ES55<0.5,\"\",'2011 Survey responses'!ES55)","v":4},{"$f":"IF(('2011 Survey responses'!ET55+'2011 Survey responses'!EU55)>=2,AVERAGE('2011 Survey responses'!ET55,'2011 Survey responses'!EU55),\"\")","v":4},{"$f":"IF('2011 Survey responses'!EV55<0.5,\"\",'2011 Survey responses'!EV55)","v":4},{"$f":"IF('2011 Survey responses'!FA55<0.5,\"\",'2011 Survey responses'!FA55)","v":4},{"$f":"IF('2011 Survey responses'!ER55<0.5,\"\",'2011 Survey responses'!ER55)","v":4},{"$f":"IF(('2011 Survey responses'!EO55+'2011 Survey responses'!EP55)>=2,AVERAGE('2011 Survey responses'!EO55,'2011 Survey responses'!EP55),\"\")","v":4},{"$f":"IF('2011 Survey responses'!EQ55<0.5,\"\",'2011 Survey responses'!EQ55)","v":3},{"$f":"IF('2011 Survey responses'!ET55<0.5,\"\",'2011 Survey responses'!ET55)","v":4},{"$f":"IF('2011 Survey responses'!EU55<0.5,\"\",'2011 Survey responses'!EU55)","v":4},{"$f":"IF('2011 Survey responses'!EW55<0.5,\"\",'2011 Survey responses'!EW55)","v":5},{"$f":"IF('2011 Survey responses'!EY55<0.5,\"\",'2011 Survey responses'!EY55)","v":5},{"$f":"IF('2011 Survey responses'!FU55<0.5,\"\",'2011 Survey responses'!FU55)","v":5},{"$f":"IF(('2011 Survey responses'!FL55+'2011 Survey responses'!FM55)>=2,AVERAGE('2011 Survey responses'!FL55,'2011 Survey responses'!FM55),\"\")","v":4},{"$f":"IF(('2011 Survey responses'!FO55+'2011 Survey responses'!FQ55)>=2,AVERAGE('2011 Survey responses'!FO55,'2011 Survey responses'!FQ55),\"\")","v":4.5},{"$f":"IF('2011 Survey responses'!FJ55<0.5,\"\",'2011 Survey responses'!FJ55)","v":5},{"$f":"IF('2011 Survey responses'!FT55<0.5,\"\",'2011 Survey responses'!FT55)","v":4},{"$f":"IF('2011 Survey responses'!FR55<0.5,\"\",'2011 Survey responses'!FR55)","v":4},{"$f":"IF('2011 Survey responses'!FK55<0.5,\"\",'2011 Survey responses'!FK55)","v":4},{"$f":"IF('2011 Survey responses'!FP55<0.5,\"\",'2011 Survey responses'!FP55)","v":4},{"$f":"IF('2011 Survey responses'!FN55<0.5,\"\",'2011 Survey responses'!FN55)","v":4},{"$f":"IF(('2011 Survey responses'!FE55+'2011 Survey responses'!FF55)>=2,AVERAGE('2011 Survey responses'!FE55,'2011 Survey responses'!FF55),\"\")","v":4},{"$f":"IF('2011 Survey responses'!FS55<0.5,\"\",'2011 Survey responses'!FS55)","v":4},{"$f":"IF('2011 Survey responses'!FV55<0.5,\"\",'2011 Survey responses'!FV55)","v":5},{"$f":"IF(('2011 Survey responses'!FG55+'2011 Survey responses'!FH55)>=2,AVERAGE('2011 Survey responses'!FG55,'2011 Survey responses'!FH55),\"\")","v":3},{"$f":"IF('2011 Survey responses'!FI55<0.5,\"\",'2011 Survey responses'!FI55)","v":4},{"$f":"IF('2011 Survey responses'!FE55<0.5,\"\",'2011 Survey responses'!FE55)","v":4},{"$f":"IF('2011 Survey responses'!FF55<0.5,\"\",'2011 Survey responses'!FF55)","v":4},{"$f":"IF('2011 Survey responses'!FG55<0.5,\"\",'2011 Survey responses'!FG55)","v":3},{"$f":"IF('2011 Survey responses'!FH55<0.5,\"\",'2011 Survey responses'!FH55)","v":3},{"$f":"IF('2011 Survey responses'!FL55<0.5,\"\",'2011 Survey responses'!FL55)","v":4},{"$f":"IF('2011 Survey responses'!FM55<0.5,\"\",'2011 Survey responses'!FM55)","v":4},{"$f":"IF('2011 Survey responses'!FO55<0.5,\"\",'2011 Survey responses'!FO55)","v":5},{"$f":"IF('2011 Survey responses'!FQ55<0.5,\"\",'2011 Survey responses'!FQ55)","v":4}]
["El Salvador",{"$f":"IF(SUM(F56)<1,\"\",AVERAGEIF('2011 Survey responses'!B56:CP56,\">1\"))","v":2.5324675324675323},{"$f":"IF(SUM(F56)<1,\"\",AVERAGEIF('2011 Survey responses'!B56:AO56,\">1\"))","v":2.53125},{"$f":"IF(SUM(F56)<1,\"\",AVERAGEIF('2011 Survey responses'!B56:BV56,\">1\"))","v":2.4333333333333331},{"$f":"IF(SUM(F56)<1,\"\",AVERAGEIF('2011 Survey responses'!V56:BV56,\">1\"))","v":2.4255319148936172},{"$f":"IF(SUM('2011 Survey responses'!B56:U56)<1,\"\",(AVERAGEIFS('2011 Survey responses'!B56:U56,'2011 Survey responses'!B56:U56,\">1\")))","v":2.4615384615384617},{"$f":"IF(SUM('2011 Survey responses'!B56:H56)<1,\"\",(AVERAGEIFS('2011 Survey responses'!B56:H56,'2011 Survey responses'!B56:H56,\">1\")))","v":2},{"$f":"IF(SUM('2011 Survey responses'!I56:S56)<1,\"\",(AVERAGEIFS('2011 Survey responses'!I56:S56,'2011 Survey responses'!I56:S56,\">1\")))","v":2.8333333333333335},{"$f":"IF(SUM('2011 Survey responses'!T56:U56)<2.1,\"\",(AVERAGEIFS('2011 Survey responses'!T56:U56,'2011 Survey responses'!T56:U56,\">1\")))","v":2.5},{"$f":"IF(SUM('2011 Survey responses'!B56:C56)<2.1,\"\",((SUMIF('2011 Survey responses'!B56:C56,\">1\")+SUMIF('2011 Survey responses'!F56,\">1\"))/(COUNTIF('2011 Survey responses'!B56:C56,\">1\")+COUNTIF('2011 Survey responses'!F56,\">1\"))))","v":2},{"$f":"IF(SUM('2011 Survey responses'!D56:E56)<2.1,\"\",(AVERAGEIFS('2011 Survey responses'!D56:E56,'2011 Survey responses'!D56:E56,\">1\")))","v":2},{"$f":"IF(('2011 Survey responses'!B56+'2011 Survey responses'!D56)<2.1,\"\",((SUMIF('2011 Survey responses'!B56,\">1\")+SUMIF('2011 Survey responses'!D56,\">1\")+SUMIF('2011 Survey responses'!F56,\">1\")+SUMIF('2011 Survey responses'!K56,\">1\"))/(COUNTIF('2011 Survey responses'!B56,\">1\")+COUNTIF('2011 Survey responses'!D56,\">1\")+COUNTIF('2011 Survey responses'!F56,\">1\")+COUNTIF('2011 Survey responses'!K56,\">1\"))))","v":2},{"$f":"IF(SUM('2011 Survey responses'!G56:H56)<2.1,\"\",(AVERAGEIFS('2011 Survey responses'!G56:H56,'2011 Survey responses'!G56:H56,\">1\")))","v":2},{"$f":"IF(SUM('2011 Survey responses'!F56:G56)<1.5,\"\",MAX('2011 Survey responses'!F56,'2011 Survey responses'!G56))","v":2},{"$f":"IF(SUM('2011 Survey responses'!G56:H56)<1,\"\",MAX('2011 Survey responses'!G56,'2011 Survey responses'!H56))","v":2},{"$f":"IF(SUM('2011 Survey responses'!I56:L56)<4.1,\"\",(AVERAGEIFS('2011 Survey responses'!I56:L56,'2011 Survey responses'!I56:L56,\">1\")))","v":3.25},{"$f":"IF(SUM('2011 Survey responses'!M56:S56)<4.1,\"\",(AVERAGEIFS('2011 Survey responses'!M56:S56,'2011 Survey responses'!M56:S56,\">1\")))","v":2},{"$f":"IF(SUM('2011 Survey responses'!T56:U56)<2.1,\"\",(AVERAGEIFS('2011 Survey responses'!T56:U56,'2011 Survey responses'!T56:U56,\">1\")))","v":2.5},{"$f":"IF(SUM('2011 Survey responses'!V56:AO56)<1,\"\",(AVERAGEIFS('2011 Survey responses'!V56:AO56,'2011 Survey responses'!V56:AO56,\">1\")))","v":2.5789473684210527},{"$f":"IF(SUM('2011 Survey responses'!V56:AA56)<1,\"\",(AVERAGEIFS('2011 Survey responses'!V56:AA56,'2011 Survey responses'!V56:AA56,\">1\")))","v":2},{"$f":"IF(SUM('2011 Survey responses'!AB56:AH56)<1,\"\",(AVERAGEIFS('2011 Survey responses'!AB56:AH56,'2011 Survey responses'!AB56:AH56,\">1\")))","v":3.5714285714285716},{"$f":"IF(SUM('2011 Survey responses'!AI56:AO56)<1,\"\",(AVERAGEIFS('2011 Survey responses'!AI56:AO56,'2011 Survey responses'!AI56:AO56,\">1\")))","v":2},{"$f":"IF(('2011 Survey responses'!Y56+'2011 Survey responses'!AI56+'2011 Survey responses'!AK56)<3.1,\"\",((SUMIF('2011 Survey responses'!Y56,\">1\")+SUMIF('2011 Survey responses'!AI56,\">1\")+SUMIF('2011 Survey responses'!AK56,\">1\")+SUMIF('2011 Survey responses'!AM56,\">1\"))/(COUNTIF('2011 Survey responses'!Y56,\">1\")+COUNTIF('2011 Survey responses'!AI56,\">1\")+COUNTIF('2011 Survey responses'!AK56,\">1\")+COUNTIF('2011 Survey responses'!AM56,\">1\"))))","v":2},{"$f":"IF(('2011 Survey responses'!W56)<1.1,\"\",('2011 Survey responses'!W56))","v":2},{"$f":"IF(('2011 Survey responses'!Y56)<1.1,\"\",('2011 Survey responses'!Y56))","v":2},{"$f":"IF(('2011 Survey responses'!Z56)<1.1,\"\",('2011 Survey responses'!Z56))","v":2},{"$f":"IF(('2011 Survey responses'!V56+'2011 Survey responses'!X56+'2011 Survey responses'!AA56)<3.1,\"\",((SUMIF('2011 Survey responses'!V56,\">1\")+SUMIF('2011 Survey responses'!X56,\">1\")+SUMIF('2011 Survey responses'!AA56,\">1\"))/(COUNTIF('2011 Survey responses'!V56,\">1\")+COUNTIF('2011 Survey responses'!X56,\">1\")+COUNTIF('2011 Survey responses'!AA56,\">1\"))))","v":2},{"$f":"IF(('2011 Survey responses'!V56+'2011 Survey responses'!Y56+'2011 Survey responses'!AA56)<3.1,\"\",((SUMIF('2011 Survey responses'!V56,\">1\")+SUMIF('2011 Survey responses'!Y56,\">1\")+SUMIF('2011 Survey responses'!AA56,\">1\"))/(COUNTIF('2011 Survey responses'!V56,\">1\")+COUNTIF('2011 Survey responses'!Y56,\">1\")+COUNTIF('2011 Survey responses'!AA56,\">1\"))))","v":2},{"$f":"IF(SUM('2011 Survey responses'!AB56:AH56)<1,\"\",(AVERAGEIFS('2011 Survey responses'!AB56:AH56,'2011 Survey responses'!AB56:AH56,\">1\")))","v":3.5714285714285716},{"$f":"IF(SUM('2011 Survey responses'!AI56:AO56)<7.1,\"\",(AVERAGEIFS('2011 Survey responses'!AI56:AO56,'2011 Survey responses'!AI56:AO56,\">1\")))","v":2},{"$f":"IF(('2011 Survey responses'!AH56)<1.1,\"\",('2011 Survey responses'!AH56))","v":4},{"$f":"IF(SUM('2011 Survey responses'!AP56:BV56)<1,\"\",(AVERAGEIFS('2011 Survey responses'!AP56:BV56,'2011 Survey responses'!AP56:BV56,\">1\")))","v":2.3214285714285716},{"$f":"IF(SUM('2011 Survey responses'!AP56:AS56)<4.1,\"\",(AVERAGEIFS('2011 Survey responses'!AP56:AS56,'2011 Survey responses'!AP56:AS56,\">1\")))","v":2},{"$f":"IF(SUM('2011 Survey responses'!AT56:BF56)<1,\"\",(AVERAGEIFS('2011 Survey responses'!AT56:BF56,'2011 Survey responses'!AT56:BF56,\">1\")))","v":2},{"$f":"IF(SUM('2011 Survey responses'!BG56:BO56)<1,\"\",(AVERAGEIFS('2011 Survey responses'!BG56:BO56,'2011 Survey responses'!BG56:BO56,\">1\")))","v":3.125},{"$f":"IF(SUM('2011 Survey responses'!BP56:BS56)<1,\"\",(AVERAGEIFS('2011 Survey responses'!BP56:BS56,'2011 Survey responses'!BP56:BS56,\">1\")))","v":2},{"$f":"IF(SUM('2011 Survey responses'!BT56:BV56)<3.1,\"\",(AVERAGEIFS('2011 Survey responses'!BT56:BV56,'2011 Survey responses'!BT56:BV56,\">1\")))","v":2},{"$f":"IF(('2011 Survey responses'!AQ56+'2011 Survey responses'!AR56+'2011 Survey responses'!BG56)<3.1,\"\",((SUMIF('2011 Survey responses'!AQ56,\">1\")+SUMIF('2011 Survey responses'!AR56,\">1\")+SUMIF('2011 Survey responses'!BG56,\">1\"))/(COUNTIF('2011 Survey responses'!AQ56,\">1\")+COUNTIF('2011 Survey responses'!AR56,\">1\")+COUNTIF('2011 Survey responses'!BG56,\">1\"))))","v":3},{"$f":"IF(SUM('2011 Survey responses'!AP56:AS56)<4.1,\"\",(AVERAGEIFS('2011 Survey responses'!AP56:AS56,'2011 Survey responses'!AP56:AS56,\">1\")))","v":2},{"$f":"IF(('2011 Survey responses'!AU56+'2011 Survey responses'!AX56+'2011 Survey responses'!BA56+'2011 Survey responses'!BC56+'2011 Survey responses'!BD56)<5.1,\"\",(SUMIF('2011 Survey responses'!AU56,\">1\")+SUMIF('2011 Survey responses'!AX56,\">1\")+SUMIF('2011 Survey responses'!BA56,\">1\")+SUMIF('2011 Survey responses'!BC56,\">1\")+SUMIF('2011 Survey responses'!BD56,\">1\"))/(COUNTIF('2011 Survey responses'!AU56,\">1\")+COUNTIF('2011 Survey responses'!AX56,\">1\")+COUNTIF('2011 Survey responses'!BA56,\">1\")+COUNTIF('2011 Survey responses'!BC56,\">1\")+COUNTIF('2011 Survey responses'!BD56,\">1\")))","v":2},{"$f":"IF(('2011 Survey responses'!AT56)<1.1,\"\",('2011 Survey responses'!AT56))","v":2},{"$f":"IF(SUM('2011 Survey responses'!AV56:AW56)<2.1,\"\",(AVERAGEIFS('2011 Survey responses'!AV56:AW56,'2011 Survey responses'!AV56:AW56,\">1\")))","v":2},{"$f":"IF(('2011 Survey responses'!AW56+'2011 Survey responses'!AY56)<2.1,\"\",(SUMIF('2011 Survey responses'!AW56,\">1\")+SUMIF('2011 Survey responses'!AY56,\">1\"))/(COUNTIF('2011 Survey responses'!AW56,\">1\")+COUNTIF('2011 Survey responses'!AY56,\">1\")))","v":2},{"$f":"IF(('2011 Survey responses'!AZ56)<1.1,\"\",('2011 Survey responses'!AZ56))","v":""},1,1,2,2,{"$f":"IF(('2011 Survey responses'!BE56)<1.1,\"\",('2011 Survey responses'!BE56))","v":2},{"$f":"IF(('2011 Survey responses'!AY56+'2011 Survey responses'!BB56+'2011 Survey responses'!BF56)<3.1,\"\",(SUMIF('2011 Survey responses'!AY56,\">1\")+SUMIF('2011 Survey responses'!BB56,\">1\")+SUMIF('2011 Survey responses'!BF56,\">1\"))/(COUNTIF('2011 Survey responses'!AY56,\">1\")+COUNTIF('2011 Survey responses'!BB56,\">1\")+COUNTIF('2011 Survey responses'!BF56,\">1\")))","v":2},2.5625,{"$f":"IF(SUM('2011 Survey responses'!BT56:BV56)<3.1,\"\",(AVERAGEIFS('2011 Survey responses'!BT56:BV56,'2011 Survey responses'!BT56:BV56,\">1\")))","v":2},{"$f":"IF(SUM('2011 Survey responses'!BW56:CP56)<1,\"\",(AVERAGEIFS('2011 Survey responses'!BW56:CP56,'2011 Survey responses'!BW56:CP56,\">1\")))","v":2.8823529411764706},{"$f":"IF(SUM('2011 Survey responses'!BW56:CF56)<1,\"\",(AVERAGEIFS('2011 Survey responses'!BW56:CF56,'2011 Survey responses'!BW56:CF56,\">1\")))","v":3.625},{"$f":"IF(SUM('2011 Survey responses'!CG56:CP56)<1,\"\",(AVERAGEIFS('2011 Survey responses'!CG56:CP56,'2011 Survey responses'!CG56:CP56,\">1\")))","v":2.2222222222222223},{"$f":"IF(SUM('2011 Survey responses'!BX56:CF56)<1,\"\",(AVERAGEIFS('2011 Survey responses'!BX56:CF56,'2011 Survey responses'!BX56:CF56,\">1\")))","v":3.8571428571428572},{"$f":"IF(SUM('2011 Survey responses'!CH56:CP56)<1,\"\",(AVERAGEIFS('2011 Survey responses'!CH56:CP56,'2011 Survey responses'!CH56:CP56,\">1\")))","v":2.25},{"$f":"IF(SUM('2011 Survey responses'!BW56:CP56)<1,\"\",(AVERAGEIFS('2011 Survey responses'!BW56:CP56,'2011 Survey responses'!BW56:CP56,\">1\")))","v":2.8823529411764706},{"$f":"IF(('2011 Survey responses'!BW56+'2011 Survey responses'!CG56)<2.1,\"\",(SUMIF('2011 Survey responses'!BW56,\">1\")+SUMIF('2011 Survey responses'!CG56,\">1\"))/(COUNTIF('2011 Survey responses'!BW56,\">1\")+COUNTIF('2011 Survey responses'!CG56,\">1\")))","v":2},{"$f":"IF(('2011 Survey responses'!BX56+'2011 Survey responses'!CH56)<2.1,\"\",(SUMIF('2011 Survey responses'!BX56,\">1\")+SUMIF('2011 Survey responses'!CH56,\">1\"))/(COUNTIF('2011 Survey responses'!BX56,\">1\")+COUNTIF('2011 Survey responses'!CH56,\">1\")))","v":3},{"$f":"IF(('2011 Survey responses'!BY56+'2011 Survey responses'!CI56)<2.1,\"\",(SUMIF('2011 Survey responses'!BY56,\">1\")+SUMIF('2011 Survey responses'!CI56,\">1\"))/(COUNTIF('2011 Survey responses'!BY56,\">1\")+COUNTIF('2011 Survey responses'!CI56,\">1\")))","v":4.5},{"$f":"IF('2011 Survey responses'!CQ56<0.5,\"\",'2011 Survey responses'!CQ56)","v":1},{"$f":"IF('2011 Survey responses'!CR56<0.5,\"\",'2011 Survey responses'!CR56)","v":5},{"$f":"IF('2011 Survey responses'!CS56<0.5,\"\",'2011 Survey responses'!CS56)","v":5},{"$f":"IF('2011 Survey responses'!CT56<0.5,\"\",'2011 Survey responses'!CT56)","v":2},{"$f":"IF('2011 Survey responses'!CU56<0.5,\"\",'2011 Survey responses'!CU56)","v":2},{"$f":"IF('2011 Survey responses'!CV56<0.5,\"\",'2011 Survey responses'!CV56)","v":2},{"$f":"IF(SUM('2011 Survey responses'!CW56:DL56)<1,\"\",(AVERAGE('2011 Survey responses'!CW56:DL56)))","v":2.1875},{"$f":"IF(SUM('2011 Survey responses'!CW56:CZ56)<1,\"\",(AVERAGE('2011 Survey responses'!CW56:CZ56)))","v":2},{"$f":"IF(SUM('2011 Survey responses'!DA56:DD56)<1,\"\",(AVERAGE('2011 Survey responses'!DA56:DD56)))","v":1.75},{"$f":"IF(SUM('2011 Survey responses'!DE56:DH56)<1,\"\",(AVERAGE('2011 Survey responses'!DE56:DH56)))","v":2.25},{"$f":"IF(SUM('2011 Survey responses'!DI56:DL56)<1,\"\",(AVERAGE('2011 Survey responses'!DI56:DL56)))","v":2.75},{"$f":"IF(('2011 Survey responses'!CW56+'2011 Survey responses'!DA56+'2011 Survey responses'!DE56+'2011 Survey responses'!DI56)<1,\"\",AVERAGE('2011 Survey responses'!CW56,'2011 Survey responses'!DA56,'2011 Survey responses'!DE56,'2011 Survey responses'!DI56))","v":2},{"$f":"IF(('2011 Survey responses'!CX56+'2011 Survey responses'!DB56+'2011 Survey responses'!DF56+'2011 Survey responses'!DJ56)<1,\"\",AVERAGE('2011 Survey responses'!CX56,'2011 Survey responses'!DB56,'2011 Survey responses'!DF56,'2011 Survey responses'!DJ56))","v":2},{"$f":"IF(('2011 Survey responses'!CY56+'2011 Survey responses'!DC56+'2011 Survey responses'!DG56+'2011 Survey responses'!DK56)<1,\"\",AVERAGE('2011 Survey responses'!CY56,'2011 Survey responses'!DC56,'2011 Survey responses'!DG56,'2011 Survey responses'!DK56))","v":2.5},{"$f":"IF(('2011 Survey responses'!CZ56+'2011 Survey responses'!DD56+'2011 Survey responses'!DH56+'2011 Survey responses'!DL56)<1,\"\",AVERAGE('2011 Survey responses'!CZ56,'2011 Survey responses'!DD56,'2011 Survey responses'!DH56,'2011 Survey responses'!DL56))","v":2.25},{"$f":"IF('2011 Survey responses'!CW56<0.5,\"\",'2011 Survey responses'!CW56)","v":2},{"$f":"IF('2011 Survey responses'!CX56<0.5,\"\",'2011 Survey responses'!CX56)","v":2},{"$f":"IF('2011 Survey responses'!CY56<0.5,\"\",'2011 Survey responses'!CY56)","v":2},{"$f":"IF('2011 Survey responses'!CZ56<0.5,\"\",'2011 Survey responses'!CZ56)","v":2},{"$f":"IF('2011 Survey responses'!DA56<0.5,\"\",'2011 Survey responses'!DA56)","v":1},{"$f":"IF('2011 Survey responses'!DB56<0.5,\"\",'2011 Survey responses'!DB56)","v":1},{"$f":"IF('2011 Survey responses'!DC56<0.5,\"\",'2011 Survey responses'!DC56)","v":3},{"$f":"IF('2011 Survey responses'!DD56<0.5,\"\",'2011 Survey responses'!DD56)","v":2},{"$f":"IF('2011 Survey responses'!DE56<0.5,\"\",'2011 Survey responses'!DE56)","v":2},{"$f":"IF('2011 Survey responses'!DF56<0.5,\"\",'2011 Survey responses'!DF56)","v":2},{"$f":"IF('2011 Survey responses'!DG56<0.5,\"\",'2011 Survey responses'!DG56)","v":3},{"$f":"IF('2011 Survey responses'!DH56<0.5,\"\",'2011 Survey responses'!DH56)","v":2},{"$f":"IF('2011 Survey responses'!DI56<0.5,\"\",'2011 Survey responses'!DI56)","v":3},{"$f":"IF('2011 Survey responses'!DJ56<0.5,\"\",'2011 Survey responses'!DJ56)","v":3},{"$f":"IF('2011 Survey responses'!DK56<0.5,\"\",'2011 Survey responses'!DK56)","v":2},{"$f":"IF('2011 Survey responses'!DL56<0.5,\"\",'2011 Survey responses'!DL56)","v":3},{"$f":"IF('2011 Survey responses'!DU56=4,4,IF('2011 Survey responses'!DU56=5,4,\"\"))","v":4},{"$f":"IF('2011 Survey responses'!DV56=4,3,IF('2011 Survey responses'!DV56=5,3,\"\"))","v":""},"",{"$f":"IF(CQ56=2,CQ56,IF(CO56=4,CO56,IF(CP56=3,CP56,IF('2011 Survey responses'!GT56=1,1,\"\"))))","v":4},{"$f":"IF('2011 Survey responses'!DO56<0.5,\"\",'2011 Survey responses'!DO56)","v":3},{"$f":"IF('2011 Survey responses'!DP56<0.5,\"\",'2011 Survey responses'!DP56)","v":4},{"$f":"IF('2011 Survey responses'!DQ56<0.5,\"\",'2011 Survey responses'!DQ56)","v":2},{"$f":"IF('2011 Survey responses'!DR56<0.5,\"\",'2011 Survey responses'!DR56)","v":3},{"$f":"IF('2011 Survey responses'!DS56<0.5,\"\",'2011 Survey responses'!DS56)","v":4},{"$f":"IF('2011 Survey responses'!DT56<0.5,\"\",'2011 Survey responses'!DT56)","v":5},{"$f":"IF('2011 Survey responses'!DU56<0.5,\"\",'2011 Survey responses'!DU56)","v":5},{"$f":"IF('2011 Survey responses'!DV56<0.5,\"\",'2011 Survey responses'!DV56)","v":3},{"$f":"IF('2011 Survey responses'!DW56<0.5,\"\",'2011 Survey responses'!DW56)","v":5},{"$f":"IF('2011 Survey responses'!DX56<0.5,\"\",'2011 Survey responses'!DX56)","v":4},{"$f":"IF('2011 Survey responses'!DY56<0.5,\"\",'2011 Survey responses'!DY56)","v":5},{"$f":"IF('2011 Survey responses'!DZ56<0.5,\"\",'2011 Survey responses'!DZ56)","v":4},{"$f":"IF('2011 Survey responses'!EA56<0.5,\"\",'2011 Survey responses'!EA56)","v":2},{"$f":"IF('2011 Survey responses'!EB56<0.5,\"\",'2011 Survey responses'!EB56)","v":5},{"$f":"IF('2011 Survey responses'!EC56<0.5,\"\",'2011 Survey responses'!EC56)","v":4},{"$f":"IF('2011 Survey responses'!ED56<0.5,\"\",'2011 Survey responses'!ED56)","v":4},{"$f":"IF('2011 Survey responses'!EE56<0.5,\"\",'2011 Survey responses'!EE56)","v":1},{"$f":"IF('2011 Survey responses'!EF56<0.5,\"\",'2011 Survey responses'!EF56)","v":5},{"$f":"IF('2011 Survey responses'!EG56<0.5,\"\",'2011 Survey responses'!EG56)","v":5},{"$f":"IF('2011 Survey responses'!EH56<0.5,\"\",'2011 Survey responses'!EH56)","v":4},{"$f":"IF('2011 Survey responses'!EI56<0.5,\"\",'2011 Survey responses'!EI56)","v":5},{"$f":"IF('2011 Survey responses'!EJ56<0.5,\"\",'2011 Survey responses'!EJ56)","v":4},{"$f":"IF('2011 Survey responses'!EK56<0.5,\"\",'2011 Survey responses'!EK56)","v":5},{"$f":"IF('2011 Survey responses'!EL56<0.5,\"\",'2011 Survey responses'!EL56)","v":4},{"$f":"IF('2011 Survey responses'!EM56<0.5,\"\",'2011 Survey responses'!EM56)","v":5},{"$f":"IF('2011 Survey responses'!EN56<0.5,\"\",'2011 Survey responses'!EN56)","v":4},{"$f":"IF('2011 Survey responses'!EO56<0.5,\"\",'2011 Survey responses'!EO56)","v":4},{"$f":"IF('2011 Survey responses'!EP56<0.5,\"\",'2011 Survey responses'!EP56)","v":4},{"$f":"IF(('2011 Survey responses'!EW56+'2011 Survey responses'!EX56)>=2,AVERAGE('2011 Survey responses'!EW56,'2011 Survey responses'!EY56),\"\")","v":3},{"$f":"IF('2011 Survey responses'!EX56<0.5,\"\",'2011 Survey responses'!EX56)","v":5},{"$f":"IF('2011 Survey responses'!EZ56<0.5,\"\",'2011 Survey responses'!EZ56)","v":5},{"$f":"IF('2011 Survey responses'!FB56<0.5,\"\",'2011 Survey responses'!FB56)","v":5},{"$f":"IF('2011 Survey responses'!FD56<0.5,\"\",'2011 Survey responses'!FD56)","v":3},{"$f":"IF('2011 Survey responses'!FC56<0.5,\"\",'2011 Survey responses'!FC56)","v":5},{"$f":"IF(('2011 Survey responses'!EM56+'2011 Survey responses'!EN56)>=2,AVERAGE('2011 Survey responses'!EM56,'2011 Survey responses'!EN56),\"\")","v":4.5},{"$f":"IF('2011 Survey responses'!ES56<0.5,\"\",'2011 Survey responses'!ES56)","v":4},{"$f":"IF(('2011 Survey responses'!ET56+'2011 Survey responses'!EU56)>=2,AVERAGE('2011 Survey responses'!ET56,'2011 Survey responses'!EU56),\"\")","v":4.5},{"$f":"IF('2011 Survey responses'!EV56<0.5,\"\",'2011 Survey responses'!EV56)","v":5},{"$f":"IF('2011 Survey responses'!FA56<0.5,\"\",'2011 Survey responses'!FA56)","v":4},{"$f":"IF('2011 Survey responses'!ER56<0.5,\"\",'2011 Survey responses'!ER56)","v":4},{"$f":"IF(('2011 Survey responses'!EO56+'2011 Survey responses'!EP56)>=2,AVERAGE('2011 Survey responses'!EO56,'2011 Survey responses'!EP56),\"\")","v":4},{"$f":"IF('2011 Survey responses'!EQ56<0.5,\"\",'2011 Survey responses'!EQ56)","v":3},{"$f":"IF('2011 Survey responses'!ET56<0.5,\"\",'2011 Survey responses'!ET56)","v":5},{"$f":"IF('2011 Survey responses'!EU56<0.5,\"\",'2011 Survey responses'!EU56)","v":4},{"$f":"IF('2011 Survey responses'!EW56<0.5,\"\",'2011 Survey responses'!EW56)","v":3},{"$f":"IF('2011 Survey responses'!EY56<0.5,\"\",'2011 Survey responses'!EY56)","v":3},{"$f":"IF('2011 Survey responses'!FU56<0.5,\"\",'2011 Survey responses'!FU56)","v":4},{"$f":"IF(('2011 Survey responses'!FL56+'2011 Survey responses'!FM56)>=2,AVERAGE('2011 Survey responses'!FL56,'2011 Survey responses'!FM56),\"\")","v":3},{"$f":"IF(('2011 Survey responses'!FO56+'2011 Survey responses'!FQ56)>=2,AVERAGE('2011 Survey responses'!FO56,'2011 Survey responses'!FQ56),\"\")","v":3.5},{"$f":"IF('2011 Survey responses'!FJ56<0.5,\"\",'2011 Survey responses'!FJ56)","v":4},{"$f":"IF('2011 Survey responses'!FT56<0.5,\"\",'2011 Survey responses'!FT56)","v":5},{"$f":"IF('2011 Survey responses'!FR56<0.5,\"\",'2011 Survey responses'!FR56)","v":4},{"$f":"IF('2011 Survey responses'!FK56<0.5,\"\",'2011 Survey responses'!FK56)","v":3},{"$f":"IF('2011 Survey responses'!FP56<0.5,\"\",'2011 Survey responses'!FP56)","v":3},{"$f":"IF('2011 Survey responses'!FN56<0.5,\"\",'2011 Survey responses'!FN56)","v":3},{"$f":"IF(('2011 Survey responses'!FE56+'2011 Survey responses'!FF56)>=2,AVERAGE('2011 Survey responses'!FE56,'2011 Survey responses'!FF56),\"\")","v":3},{"$f":"IF('2011 Survey responses'!FS56<0.5,\"\",'2011 Survey responses'!FS56)","v":4},{"$f":"IF('2011 Survey responses'!FV56<0.5,\"\",'2011 Survey responses'!FV56)","v":3},{"$f":"IF(('2011 Survey responses'!FG56+'2011 Survey responses'!FH56)>=2,AVERAGE('2011 Survey responses'!FG56,'2011 Survey responses'!FH56),\"\")","v":3},{"$f":"IF('2011 Survey responses'!FI56<0.5,\"\",'2011 Survey responses'!FI56)","v":3},{"$f":"IF('2011 Survey responses'!FE56<0.5,\"\",'2011 Survey responses'!FE56)","v":3},{"$f":"IF('2011 Survey responses'!FF56<0.5,\"\",'2011 Survey responses'!FF56)","v":3},{"$f":"IF('2011 Survey responses'!FG56<0.5,\"\",'2011 Survey responses'!FG56)","v":3},{"$f":"IF('2011 Survey responses'!FH56<0.5,\"\",'2011 Survey responses'!FH56)","v":3},{"$f":"IF('2011 Survey responses'!FL56<0.5,\"\",'2011 Survey responses'!FL56)","v":3},{"$f":"IF('2011 Survey responses'!FM56<0.5,\"\",'2011 Survey responses'!FM56)","v":3},{"$f":"IF('2011 Survey responses'!FO56<0.5,\"\",'2011 Survey responses'!FO56)","v":4},{"$f":"IF('2011 Survey responses'!FQ56<0.5,\"\",'2011 Survey responses'!FQ56)","v":3}]
["Equatorial Guinea",{"$f":"IF(SUM(F57)<1,\"\",AVERAGEIF('2011 Survey responses'!B57:CP57,\">1\"))","v":""},{"$f":"IF(SUM(F57)<1,\"\",AVERAGEIF('2011 Survey responses'!B57:AO57,\">1\"))","v":""},{"$f":"IF(SUM(F57)<1,\"\",AVERAGEIF('2011 Survey responses'!B57:BV57,\">1\"))","v":""},{"$f":"IF(SUM(F57)<1,\"\",AVERAGEIF('2011 Survey responses'!V57:BV57,\">1\"))","v":""},{"$f":"IF(SUM('2011 Survey responses'!B57:U57)<1,\"\",(AVERAGEIFS('2011 Survey responses'!B57:U57,'2011 Survey responses'!B57:U57,\">1\")))","v":""},{"$f":"IF(SUM('2011 Survey responses'!B57:H57)<1,\"\",(AVERAGEIFS('2011 Survey responses'!B57:H57,'2011 Survey responses'!B57:H57,\">1\")))","v":""},{"$f":"IF(SUM('2011 Survey responses'!I57:S57)<1,\"\",(AVERAGEIFS('2011 Survey responses'!I57:S57,'2011 Survey responses'!I57:S57,\">1\")))","v":""},{"$f":"IF(SUM('2011 Survey responses'!T57:U57)<2.1,\"\",(AVERAGEIFS('2011 Survey responses'!T57:U57,'2011 Survey responses'!T57:U57,\">1\")))","v":""},{"$f":"IF(SUM('2011 Survey responses'!B57:C57)<2.1,\"\",((SUMIF('2011 Survey responses'!B57:C57,\">1\")+SUMIF('2011 Survey responses'!F57,\">1\"))/(COUNTIF('2011 Survey responses'!B57:C57,\">1\")+COUNTIF('2011 Survey responses'!F57,\">1\"))))","v":""},{"$f":"IF(SUM('2011 Survey responses'!D57:E57)<2.1,\"\",(AVERAGEIFS('2011 Survey responses'!D57:E57,'2011 Survey responses'!D57:E57,\">1\")))","v":""},{"$f":"IF(('2011 Survey responses'!B57+'2011 Survey responses'!D57)<2.1,\"\",((SUMIF('2011 Survey responses'!B57,\">1\")+SUMIF('2011 Survey responses'!D57,\">1\")+SUMIF('2011 Survey responses'!F57,\">1\")+SUMIF('2011 Survey responses'!K57,\">1\"))/(COUNTIF('2011 Survey responses'!B57,\">1\")+COUNTIF('2011 Survey responses'!D57,\">1\")+COUNTIF('2011 Survey responses'!F57,\">1\")+COUNTIF('2011 Survey responses'!K57,\">1\"))))","v":""},{"$f":"IF(SUM('2011 Survey responses'!G57:H57)<2.1,\"\",(AVERAGEIFS('2011 Survey responses'!G57:H57,'2011 Survey responses'!G57:H57,\">1\")))","v":""},{"$f":"IF(SUM('2011 Survey responses'!F57:G57)<1.5,\"\",MAX('2011 Survey responses'!F57,'2011 Survey responses'!G57))","v":""},{"$f":"IF(SUM('2011 Survey responses'!G57:H57)<1,\"\",MAX('2011 Survey responses'!G57,'2011 Survey responses'!H57))","v":""},{"$f":"IF(SUM('2011 Survey responses'!I57:L57)<4.1,\"\",(AVERAGEIFS('2011 Survey responses'!I57:L57,'2011 Survey responses'!I57:L57,\">1\")))","v":""},{"$f":"IF(SUM('2011 Survey responses'!M57:S57)<4.1,\"\",(AVERAGEIFS('2011 Survey responses'!M57:S57,'2011 Survey responses'!M57:S57,\">1\")))","v":""},{"$f":"IF(SUM('2011 Survey responses'!T57:U57)<2.1,\"\",(AVERAGEIFS('2011 Survey responses'!T57:U57,'2011 Survey responses'!T57:U57,\">1\")))","v":""},{"$f":"IF(SUM('2011 Survey responses'!V57:AO57)<1,\"\",(AVERAGEIFS('2011 Survey responses'!V57:AO57,'2011 Survey responses'!V57:AO57,\">1\")))","v":""},{"$f":"IF(SUM('2011 Survey responses'!V57:AA57)<1,\"\",(AVERAGEIFS('2011 Survey responses'!V57:AA57,'2011 Survey responses'!V57:AA57,\">1\")))","v":""},{"$f":"IF(SUM('2011 Survey responses'!AB57:AH57)<1,\"\",(AVERAGEIFS('2011 Survey responses'!AB57:AH57,'2011 Survey responses'!AB57:AH57,\">1\")))","v":""},{"$f":"IF(SUM('2011 Survey responses'!AI57:AO57)<1,\"\",(AVERAGEIFS('2011 Survey responses'!AI57:AO57,'2011 Survey responses'!AI57:AO57,\">1\")))","v":""},{"$f":"IF(('2011 Survey responses'!Y57+'2011 Survey responses'!AI57+'2011 Survey responses'!AK57)<3.1,\"\",((SUMIF('2011 Survey responses'!Y57,\">1\")+SUMIF('2011 Survey responses'!AI57,\">1\")+SUMIF('2011 Survey responses'!AK57,\">1\")+SUMIF('2011 Survey responses'!AM57,\">1\"))/(COUNTIF('2011 Survey responses'!Y57,\">1\")+COUNTIF('2011 Survey responses'!AI57,\">1\")+COUNTIF('2011 Survey responses'!AK57,\">1\")+COUNTIF('2011 Survey responses'!AM57,\">1\"))))","v":""},{"$f":"IF(('2011 Survey responses'!W57)<1.1,\"\",('2011 Survey responses'!W57))","v":""},{"$f":"IF(('2011 Survey responses'!Y57)<1.1,\"\",('2011 Survey responses'!Y57))","v":""},{"$f":"IF(('2011 Survey responses'!Z57)<1.1,\"\",('2011 Survey responses'!Z57))","v":""},{"$f":"IF(('2011 Survey responses'!V57+'2011 Survey responses'!X57+'2011 Survey responses'!AA57)<3.1,\"\",((SUMIF('2011 Survey responses'!V57,\">1\")+SUMIF('2011 Survey responses'!X57,\">1\")+SUMIF('2011 Survey responses'!AA57,\">1\"))/(COUNTIF('2011 Survey responses'!V57,\">1\")+COUNTIF('2011 Survey responses'!X57,\">1\")+COUNTIF('2011 Survey responses'!AA57,\">1\"))))","v":""},{"$f":"IF(('2011 Survey responses'!V57+'2011 Survey responses'!Y57+'2011 Survey responses'!AA57)<3.1,\"\",((SUMIF('2011 Survey responses'!V57,\">1\")+SUMIF('2011 Survey responses'!Y57,\">1\")+SUMIF('2011 Survey responses'!AA57,\">1\"))/(COUNTIF('2011 Survey responses'!V57,\">1\")+COUNTIF('2011 Survey responses'!Y57,\">1\")+COUNTIF('2011 Survey responses'!AA57,\">1\"))))","v":""},{"$f":"IF(SUM('2011 Survey responses'!AB57:AH57)<1,\"\",(AVERAGEIFS('2011 Survey responses'!AB57:AH57,'2011 Survey responses'!AB57:AH57,\">1\")))","v":""},{"$f":"IF(SUM('2011 Survey responses'!AI57:AO57)<7.1,\"\",(AVERAGEIFS('2011 Survey responses'!AI57:AO57,'2011 Survey responses'!AI57:AO57,\">1\")))","v":""},{"$f":"IF(('2011 Survey responses'!AH57)<1.1,\"\",('2011 Survey responses'!AH57))","v":""},{"$f":"IF(SUM('2011 Survey responses'!AP57:BV57)<1,\"\",(AVERAGEIFS('2011 Survey responses'!AP57:BV57,'2011 Survey responses'!AP57:BV57,\">1\")))","v":""},{"$f":"IF(SUM('2011 Survey responses'!AP57:AS57)<4.1,\"\",(AVERAGEIFS('2011 Survey responses'!AP57:AS57,'2011 Survey responses'!AP57:AS57,\">1\")))","v":""},{"$f":"IF(SUM('2011 Survey responses'!AT57:BF57)<1,\"\",(AVERAGEIFS('2011 Survey responses'!AT57:BF57,'2011 Survey responses'!AT57:BF57,\">1\")))","v":""},{"$f":"IF(SUM('2011 Survey responses'!BG57:BO57)<1,\"\",(AVERAGEIFS('2011 Survey responses'!BG57:BO57,'2011 Survey responses'!BG57:BO57,\">1\")))","v":""},{"$f":"IF(SUM('2011 Survey responses'!BP57:BS57)<1,\"\",(AVERAGEIFS('2011 Survey responses'!BP57:BS57,'2011 Survey responses'!BP57:BS57,\">1\")))","v":""},{"$f":"IF(SUM('2011 Survey responses'!BT57:BV57)<3.1,\"\",(AVERAGEIFS('2011 Survey responses'!BT57:BV57,'2011 Survey responses'!BT57:BV57,\">1\")))","v":""},{"$f":"IF(('2011 Survey responses'!AQ57+'2011 Survey responses'!AR57+'2011 Survey responses'!BG57)<3.1,\"\",((SUMIF('2011 Survey responses'!AQ57,\">1\")+SUMIF('2011 Survey responses'!AR57,\">1\")+SUMIF('2011 Survey responses'!BG57,\">1\"))/(COUNTIF('2011 Survey responses'!AQ57,\">1\")+COUNTIF('2011 Survey responses'!AR57,\">1\")+COUNTIF('2011 Survey responses'!BG57,\">1\"))))","v":""},{"$f":"IF(SUM('2011 Survey responses'!AP57:AS57)<4.1,\"\",(AVERAGEIFS('2011 Survey responses'!AP57:AS57,'2011 Survey responses'!AP57:AS57,\">1\")))","v":""},{"$f":"IF(('2011 Survey responses'!AU57+'2011 Survey responses'!AX57+'2011 Survey responses'!BA57+'2011 Survey responses'!BC57+'2011 Survey responses'!BD57)<5.1,\"\",(SUMIF('2011 Survey responses'!AU57,\">1\")+SUMIF('2011 Survey responses'!AX57,\">1\")+SUMIF('2011 Survey responses'!BA57,\">1\")+SUMIF('2011 Survey responses'!BC57,\">1\")+SUMIF('2011 Survey responses'!BD57,\">1\"))/(COUNTIF('2011 Survey responses'!AU57,\">1\")+COUNTIF('2011 Survey responses'!AX57,\">1\")+COUNTIF('2011 Survey responses'!BA57,\">1\")+COUNTIF('2011 Survey responses'!BC57,\">1\")+COUNTIF('2011 Survey responses'!BD57,\">1\")))","v":""},{"$f":"IF(('2011 Survey responses'!AT57)<1.1,\"\",('2011 Survey responses'!AT57))","v":""},{"$f":"IF(SUM('2011 Survey responses'!AV57:AW57)<2.1,\"\",(AVERAGEIFS('2011 Survey responses'!AV57:AW57,'2011 Survey responses'!AV57:AW57,\">1\")))","v":""},{"$f":"IF(('2011 Survey responses'!AW57+'2011 Survey responses'!AY57)<2.1,\"\",(SUMIF('2011 Survey responses'!AW57,\">1\")+SUMIF('2011 Survey responses'!AY57,\">1\"))/(COUNTIF('2011 Survey responses'!AW57,\">1\")+COUNTIF('2011 Survey responses'!AY57,\">1\")))","v":""},{"$f":"IF(('2011 Survey responses'!AZ57)<1.1,\"\",('2011 Survey responses'!AZ57))","v":""},null,null,null,null,{"$f":"IF(('2011 Survey responses'!BE57)<1.1,\"\",('2011 Survey responses'!BE57))","v":""},{"$f":"IF(('2011 Survey responses'!AY57+'2011 Survey responses'!BB57+'2011 Survey responses'!BF57)<3.1,\"\",(SUMIF('2011 Survey responses'!AY57,\">1\")+SUMIF('2011 Survey responses'!BB57,\">1\")+SUMIF('2011 Survey responses'!BF57,\">1\"))/(COUNTIF('2011 Survey responses'!AY57,\">1\")+COUNTIF('2011 Survey responses'!BB57,\">1\")+COUNTIF('2011 Survey responses'!BF57,\">1\")))","v":""},"",{"$f":"IF(SUM('2011 Survey responses'!BT57:BV57)<3.1,\"\",(AVERAGEIFS('2011 Survey responses'!BT57:BV57,'2011 Survey responses'!BT57:BV57,\">1\")))","v":""},{"$f":"IF(SUM('2011 Survey responses'!BW57:CP57)<1,\"\",(AVERAGEIFS('2011 Survey responses'!BW57:CP57,'2011 Survey responses'!BW57:CP57,\">1\")))","v":""},{"$f":"IF(SUM('2011 Survey responses'!BW57:CF57)<1,\"\",(AVERAGEIFS('2011 Survey responses'!BW57:CF57,'2011 Survey responses'!BW57:CF57,\">1\")))","v":""},{"$f":"IF(SUM('2011 Survey responses'!CG57:CP57)<1,\"\",(AVERAGEIFS('2011 Survey responses'!CG57:CP57,'2011 Survey responses'!CG57:CP57,\">1\")))","v":""},{"$f":"IF(SUM('2011 Survey responses'!BX57:CF57)<1,\"\",(AVERAGEIFS('2011 Survey responses'!BX57:CF57,'2011 Survey responses'!BX57:CF57,\">1\")))","v":""},{"$f":"IF(SUM('2011 Survey responses'!CH57:CP57)<1,\"\",(AVERAGEIFS('2011 Survey responses'!CH57:CP57,'2011 Survey responses'!CH57:CP57,\">1\")))","v":""},{"$f":"IF(SUM('2011 Survey responses'!BW57:CP57)<1,\"\",(AVERAGEIFS('2011 Survey responses'!BW57:CP57,'2011 Survey responses'!BW57:CP57,\">1\")))","v":""},{"$f":"IF(('2011 Survey responses'!BW57+'2011 Survey responses'!CG57)<2.1,\"\",(SUMIF('2011 Survey responses'!BW57,\">1\")+SUMIF('2011 Survey responses'!CG57,\">1\"))/(COUNTIF('2011 Survey responses'!BW57,\">1\")+COUNTIF('2011 Survey responses'!CG57,\">1\")))","v":""},{"$f":"IF(('2011 Survey responses'!BX57+'2011 Survey responses'!CH57)<2.1,\"\",(SUMIF('2011 Survey responses'!BX57,\">1\")+SUMIF('2011 Survey responses'!CH57,\">1\"))/(COUNTIF('2011 Survey responses'!BX57,\">1\")+COUNTIF('2011 Survey responses'!CH57,\">1\")))","v":""},{"$f":"IF(('2011 Survey responses'!BY57+'2011 Survey responses'!CI57)<2.1,\"\",(SUMIF('2011 Survey responses'!BY57,\">1\")+SUMIF('2011 Survey responses'!CI57,\">1\"))/(COUNTIF('2011 Survey responses'!BY57,\">1\")+COUNTIF('2011 Survey responses'!CI57,\">1\")))","v":""},{"$f":"IF('2011 Survey responses'!CQ57<0.5,\"\",'2011 Survey responses'!CQ57)","v":""},{"$f":"IF('2011 Survey responses'!CR57<0.5,\"\",'2011 Survey responses'!CR57)","v":""},{"$f":"IF('2011 Survey responses'!CS57<0.5,\"\",'2011 Survey responses'!CS57)","v":""},{"$f":"IF('2011 Survey responses'!CT57<0.5,\"\",'2011 Survey responses'!CT57)","v":""},{"$f":"IF('2011 Survey responses'!CU57<0.5,\"\",'2011 Survey responses'!CU57)","v":""},{"$f":"IF('2011 Survey responses'!CV57<0.5,\"\",'2011 Survey responses'!CV57)","v":""},{"$f":"IF(SUM('2011 Survey responses'!CW57:DL57)<1,\"\",(AVERAGE('2011 Survey responses'!CW57:DL57)))","v":""},{"$f":"IF(SUM('2011 Survey responses'!CW57:CZ57)<1,\"\",(AVERAGE('2011 Survey responses'!CW57:CZ57)))","v":""},{"$f":"IF(SUM('2011 Survey responses'!DA57:DD57)<1,\"\",(AVERAGE('2011 Survey responses'!DA57:DD57)))","v":""},{"$f":"IF(SUM('2011 Survey responses'!DE57:DH57)<1,\"\",(AVERAGE('2011 Survey responses'!DE57:DH57)))","v":""},{"$f":"IF(SUM('2011 Survey responses'!DI57:DL57)<1,\"\",(AVERAGE('2011 Survey responses'!DI57:DL57)))","v":""},{"$f":"IF(('2011 Survey responses'!CW57+'2011 Survey responses'!DA57+'2011 Survey responses'!DE57+'2011 Survey responses'!DI57)<1,\"\",AVERAGE('2011 Survey responses'!CW57,'2011 Survey responses'!DA57,'2011 Survey responses'!DE57,'2011 Survey responses'!DI57))","v":""},{"$f":"IF(('2011 Survey responses'!CX57+'2011 Survey responses'!DB57+'2011 Survey responses'!DF57+'2011 Survey responses'!DJ57)<1,\"\",AVERAGE('2011 Survey responses'!CX57,'2011 Survey responses'!DB57,'2011 Survey responses'!DF57,'2011 Survey responses'!DJ57))","v":""},{"$f":"IF(('2011 Survey responses'!CY57+'2011 Survey responses'!DC57+'2011 Survey responses'!DG57+'2011 Survey responses'!DK57)<1,\"\",AVERAGE('2011 Survey responses'!CY57,'2011 Survey responses'!DC57,'2011 Survey responses'!DG57,'2011 Survey responses'!DK57))","v":""},{"$f":"IF(('2011 Survey responses'!CZ57+'2011 Survey responses'!DD57+'2011 Survey responses'!DH57+'2011 Survey responses'!DL57)<1,\"\",AVERAGE('2011 Survey responses'!CZ57,'2011 Survey responses'!DD57,'2011 Survey responses'!DH57,'2011 Survey responses'!DL57))","v":""},{"$f":"IF('2011 Survey responses'!CW57<0.5,\"\",'2011 Survey responses'!CW57)","v":""},{"$f":"IF('2011 Survey responses'!CX57<0.5,\"\",'2011 Survey responses'!CX57)","v":""},{"$f":"IF('2011 Survey responses'!CY57<0.5,\"\",'2011 Survey responses'!CY57)","v":""},{"$f":"IF('2011 Survey responses'!CZ57<0.5,\"\",'2011 Survey responses'!CZ57)","v":""},{"$f":"IF('2011 Survey responses'!DA57<0.5,\"\",'2011 Survey responses'!DA57)","v":""},{"$f":"IF('2011 Survey responses'!DB57<0.5,\"\",'2011 Survey responses'!DB57)","v":""},{"$f":"IF('2011 Survey responses'!DC57<0.5,\"\",'2011 Survey responses'!DC57)","v":""},{"$f":"IF('2011 Survey responses'!DD57<0.5,\"\",'2011 Survey responses'!DD57)","v":""},{"$f":"IF('2011 Survey responses'!DE57<0.5,\"\",'2011 Survey responses'!DE57)","v":""},{"$f":"IF('2011 Survey responses'!DF57<0.5,\"\",'2011 Survey responses'!DF57)","v":""},{"$f":"IF('2011 Survey responses'!DG57<0.5,\"\",'2011 Survey responses'!DG57)","v":""},{"$f":"IF('2011 Survey responses'!DH57<0.5,\"\",'2011 Survey responses'!DH57)","v":""},{"$f":"IF('2011 Survey responses'!DI57<0.5,\"\",'2011 Survey responses'!DI57)","v":""},{"$f":"IF('2011 Survey responses'!DJ57<0.5,\"\",'2011 Survey responses'!DJ57)","v":""},{"$f":"IF('2011 Survey responses'!DK57<0.5,\"\",'2011 Survey responses'!DK57)","v":""},{"$f":"IF('2011 Survey responses'!DL57<0.5,\"\",'2011 Survey responses'!DL57)","v":""},{"$f":"IF('2011 Survey responses'!DU57=4,4,IF('2011 Survey responses'!DU57=5,4,\"\"))","v":""},{"$f":"IF('2011 Survey responses'!DV57=4,3,IF('2011 Survey responses'!DV57=5,3,\"\"))","v":""},"",{"$f":"IF(CQ57=2,CQ57,IF(CO57=4,CO57,IF(CP57=3,CP57,IF('2011 Survey responses'!GT57=1,1,\"\"))))","v":""},{"$f":"IF('2011 Survey responses'!DO57<0.5,\"\",'2011 Survey responses'!DO57)","v":""},{"$f":"IF('2011 Survey responses'!DP57<0.5,\"\",'2011 Survey responses'!DP57)","v":""},{"$f":"IF('2011 Survey responses'!DQ57<0.5,\"\",'2011 Survey responses'!DQ57)","v":""},{"$f":"IF('2011 Survey responses'!DR57<0.5,\"\",'2011 Survey responses'!DR57)","v":""},{"$f":"IF('2011 Survey responses'!DS57<0.5,\"\",'2011 Survey responses'!DS57)","v":""},{"$f":"IF('2011 Survey responses'!DT57<0.5,\"\",'2011 Survey responses'!DT57)","v":""},{"$f":"IF('2011 Survey responses'!DU57<0.5,\"\",'2011 Survey responses'!DU57)","v":""},{"$f":"IF('2011 Survey responses'!DV57<0.5,\"\",'2011 Survey responses'!DV57)","v":""},{"$f":"IF('2011 Survey responses'!DW57<0.5,\"\",'2011 Survey responses'!DW57)","v":""},{"$f":"IF('2011 Survey responses'!DX57<0.5,\"\",'2011 Survey responses'!DX57)","v":""},{"$f":"IF('2011 Survey responses'!DY57<0.5,\"\",'2011 Survey responses'!DY57)","v":""},{"$f":"IF('2011 Survey responses'!DZ57<0.5,\"\",'2011 Survey responses'!DZ57)","v":""},{"$f":"IF('2011 Survey responses'!EA57<0.5,\"\",'2011 Survey responses'!EA57)","v":""},{"$f":"IF('2011 Survey responses'!EB57<0.5,\"\",'2011 Survey responses'!EB57)","v":""},{"$f":"IF('2011 Survey responses'!EC57<0.5,\"\",'2011 Survey responses'!EC57)","v":""},{"$f":"IF('2011 Survey responses'!ED57<0.5,\"\",'2011 Survey responses'!ED57)","v":""},{"$f":"IF('2011 Survey responses'!EE57<0.5,\"\",'2011 Survey responses'!EE57)","v":""},{"$f":"IF('2011 Survey responses'!EF57<0.5,\"\",'2011 Survey responses'!EF57)","v":""},{"$f":"IF('2011 Survey responses'!EG57<0.5,\"\",'2011 Survey responses'!EG57)","v":""},{"$f":"IF('2011 Survey responses'!EH57<0.5,\"\",'2011 Survey responses'!EH57)","v":""},{"$f":"IF('2011 Survey responses'!EI57<0.5,\"\",'2011 Survey responses'!EI57)","v":""},{"$f":"IF('2011 Survey responses'!EJ57<0.5,\"\",'2011 Survey responses'!EJ57)","v":""},{"$f":"IF('2011 Survey responses'!EK57<0.5,\"\",'2011 Survey responses'!EK57)","v":""},{"$f":"IF('2011 Survey responses'!EL57<0.5,\"\",'2011 Survey responses'!EL57)","v":""},{"$f":"IF('2011 Survey responses'!EM57<0.5,\"\",'2011 Survey responses'!EM57)","v":""},{"$f":"IF('2011 Survey responses'!EN57<0.5,\"\",'2011 Survey responses'!EN57)","v":""},{"$f":"IF('2011 Survey responses'!EO57<0.5,\"\",'2011 Survey responses'!EO57)","v":""},{"$f":"IF('2011 Survey responses'!EP57<0.5,\"\",'2011 Survey responses'!EP57)","v":""},{"$f":"IF(('2011 Survey responses'!EW57+'2011 Survey responses'!EX57)>=2,AVERAGE('2011 Survey responses'!EW57,'2011 Survey responses'!EY57),\"\")","v":""},{"$f":"IF('2011 Survey responses'!EX57<0.5,\"\",'2011 Survey responses'!EX57)","v":""},{"$f":"IF('2011 Survey responses'!EZ57<0.5,\"\",'2011 Survey responses'!EZ57)","v":""},{"$f":"IF('2011 Survey responses'!FB57<0.5,\"\",'2011 Survey responses'!FB57)","v":""},{"$f":"IF('2011 Survey responses'!FD57<0.5,\"\",'2011 Survey responses'!FD57)","v":""},{"$f":"IF('2011 Survey responses'!FC57<0.5,\"\",'2011 Survey responses'!FC57)","v":""},{"$f":"IF(('2011 Survey responses'!EM57+'2011 Survey responses'!EN57)>=2,AVERAGE('2011 Survey responses'!EM57,'2011 Survey responses'!EN57),\"\")","v":""},{"$f":"IF('2011 Survey responses'!ES57<0.5,\"\",'2011 Survey responses'!ES57)","v":""},{"$f":"IF(('2011 Survey responses'!ET57+'2011 Survey responses'!EU57)>=2,AVERAGE('2011 Survey responses'!ET57,'2011 Survey responses'!EU57),\"\")","v":""},{"$f":"IF('2011 Survey responses'!EV57<0.5,\"\",'2011 Survey responses'!EV57)","v":""},{"$f":"IF('2011 Survey responses'!FA57<0.5,\"\",'2011 Survey responses'!FA57)","v":""},{"$f":"IF('2011 Survey responses'!ER57<0.5,\"\",'2011 Survey responses'!ER57)","v":""},{"$f":"IF(('2011 Survey responses'!EO57+'2011 Survey responses'!EP57)>=2,AVERAGE('2011 Survey responses'!EO57,'2011 Survey responses'!EP57),\"\")","v":""},{"$f":"IF('2011 Survey responses'!EQ57<0.5,\"\",'2011 Survey responses'!EQ57)","v":""},{"$f":"IF('2011 Survey responses'!ET57<0.5,\"\",'2011 Survey responses'!ET57)","v":""},{"$f":"IF('2011 Survey responses'!EU57<0.5,\"\",'2011 Survey responses'!EU57)","v":""},{"$f":"IF('2011 Survey responses'!EW57<0.5,\"\",'2011 Survey responses'!EW57)","v":""},{"$f":"IF('2011 Survey responses'!EY57<0.5,\"\",'2011 Survey responses'!EY57)","v":""},{"$f":"IF('2011 Survey responses'!FU57<0.5,\"\",'2011 Survey responses'!FU57)","v":""},{"$f":"IF(('2011 Survey responses'!FL57+'2011 Survey responses'!FM57)>=2,AVERAGE('2011 Survey responses'!FL57,'2011 Survey responses'!FM57),\"\")","v":""},{"$f":"IF(('2011 Survey responses'!FO57+'2011 Survey responses'!FQ57)>=2,AVERAGE('2011 Survey responses'!FO57,'2011 Survey responses'!FQ57),\"\")","v":""},{"$f":"IF('2011 Survey responses'!FJ57<0.5,\"\",'2011 Survey responses'!FJ57)","v":""},{"$f":"IF('2011 Survey responses'!FT57<0.5,\"\",'2011 Survey responses'!FT57)","v":""},{"$f":"IF('2011 Survey responses'!FR57<0.5,\"\",'2011 Survey responses'!FR57)","v":""},{"$f":"IF('2011 Survey responses'!FK57<0.5,\"\",'2011 Survey responses'!FK57)","v":""},{"$f":"IF('2011 Survey responses'!FP57<0.5,\"\",'2011 Survey responses'!FP57)","v":""},{"$f":"IF('2011 Survey responses'!FN57<0.5,\"\",'2011 Survey responses'!FN57)","v":""},{"$f":"IF(('2011 Survey responses'!FE57+'2011 Survey responses'!FF57)>=2,AVERAGE('2011 Survey responses'!FE57,'2011 Survey responses'!FF57),\"\")","v":""},{"$f":"IF('2011 Survey responses'!FS57<0.5,\"\",'2011 Survey responses'!FS57)","v":""},{"$f":"IF('2011 Survey responses'!FV57<0.5,\"\",'2011 Survey responses'!FV57)","v":""},{"$f":"IF(('2011 Survey responses'!FG57+'2011 Survey responses'!FH57)>=2,AVERAGE('2011 Survey responses'!FG57,'2011 Survey responses'!FH57),\"\")","v":""},{"$f":"IF('2011 Survey responses'!FI57<0.5,\"\",'2011 Survey responses'!FI57)","v":""},{"$f":"IF('2011 Survey responses'!FE57<0.5,\"\",'2011 Survey responses'!FE57)","v":""},{"$f":"IF('2011 Survey responses'!FF57<0.5,\"\",'2011 Survey responses'!FF57)","v":""},{"$f":"IF('2011 Survey responses'!FG57<0.5,\"\",'2011 Survey responses'!FG57)","v":""},{"$f":"IF('2011 Survey responses'!FH57<0.5,\"\",'2011 Survey responses'!FH57)","v":""},{"$f":"IF('2011 Survey responses'!FL57<0.5,\"\",'2011 Survey responses'!FL57)","v":""},{"$f":"IF('2011 Survey responses'!FM57<0.5,\"\",'2011 Survey responses'!FM57)","v":""},{"$f":"IF('2011 Survey responses'!FO57<0.5,\"\",'2011 Survey responses'!FO57)","v":""},{"$f":"IF('2011 Survey responses'!FQ57<0.5,\"\",'2011 Survey responses'!FQ57)","v":""}]
["Eritrea",{"$f":"IF(SUM(F58)<1,\"\",AVERAGEIF('2011 Survey responses'!B58:CP58,\">1\"))","v":""},{"$f":"IF(SUM(F58)<1,\"\",AVERAGEIF('2011 Survey responses'!B58:AO58,\">1\"))","v":""},{"$f":"IF(SUM(F58)<1,\"\",AVERAGEIF('2011 Survey responses'!B58:BV58,\">1\"))","v":""},{"$f":"IF(SUM(F58)<1,\"\",AVERAGEIF('2011 Survey responses'!V58:BV58,\">1\"))","v":""},{"$f":"IF(SUM('2011 Survey responses'!B58:U58)<1,\"\",(AVERAGEIFS('2011 Survey responses'!B58:U58,'2011 Survey responses'!B58:U58,\">1\")))","v":""},{"$f":"IF(SUM('2011 Survey responses'!B58:H58)<1,\"\",(AVERAGEIFS('2011 Survey responses'!B58:H58,'2011 Survey responses'!B58:H58,\">1\")))","v":""},{"$f":"IF(SUM('2011 Survey responses'!I58:S58)<1,\"\",(AVERAGEIFS('2011 Survey responses'!I58:S58,'2011 Survey responses'!I58:S58,\">1\")))","v":""},{"$f":"IF(SUM('2011 Survey responses'!T58:U58)<2.1,\"\",(AVERAGEIFS('2011 Survey responses'!T58:U58,'2011 Survey responses'!T58:U58,\">1\")))","v":""},{"$f":"IF(SUM('2011 Survey responses'!B58:C58)<2.1,\"\",((SUMIF('2011 Survey responses'!B58:C58,\">1\")+SUMIF('2011 Survey responses'!F58,\">1\"))/(COUNTIF('2011 Survey responses'!B58:C58,\">1\")+COUNTIF('2011 Survey responses'!F58,\">1\"))))","v":""},{"$f":"IF(SUM('2011 Survey responses'!D58:E58)<2.1,\"\",(AVERAGEIFS('2011 Survey responses'!D58:E58,'2011 Survey responses'!D58:E58,\">1\")))","v":""},{"$f":"IF(('2011 Survey responses'!B58+'2011 Survey responses'!D58)<2.1,\"\",((SUMIF('2011 Survey responses'!B58,\">1\")+SUMIF('2011 Survey responses'!D58,\">1\")+SUMIF('2011 Survey responses'!F58,\">1\")+SUMIF('2011 Survey responses'!K58,\">1\"))/(COUNTIF('2011 Survey responses'!B58,\">1\")+COUNTIF('2011 Survey responses'!D58,\">1\")+COUNTIF('2011 Survey responses'!F58,\">1\")+COUNTIF('2011 Survey responses'!K58,\">1\"))))","v":""},{"$f":"IF(SUM('2011 Survey responses'!G58:H58)<2.1,\"\",(AVERAGEIFS('2011 Survey responses'!G58:H58,'2011 Survey responses'!G58:H58,\">1\")))","v":""},{"$f":"IF(SUM('2011 Survey responses'!F58:G58)<1.5,\"\",MAX('2011 Survey responses'!F58,'2011 Survey responses'!G58))","v":""},{"$f":"IF(SUM('2011 Survey responses'!G58:H58)<1,\"\",MAX('2011 Survey responses'!G58,'2011 Survey responses'!H58))","v":""},{"$f":"IF(SUM('2011 Survey responses'!I58:L58)<4.1,\"\",(AVERAGEIFS('2011 Survey responses'!I58:L58,'2011 Survey responses'!I58:L58,\">1\")))","v":""},{"$f":"IF(SUM('2011 Survey responses'!M58:S58)<4.1,\"\",(AVERAGEIFS('2011 Survey responses'!M58:S58,'2011 Survey responses'!M58:S58,\">1\")))","v":""},{"$f":"IF(SUM('2011 Survey responses'!T58:U58)<2.1,\"\",(AVERAGEIFS('2011 Survey responses'!T58:U58,'2011 Survey responses'!T58:U58,\">1\")))","v":""},{"$f":"IF(SUM('2011 Survey responses'!V58:AO58)<1,\"\",(AVERAGEIFS('2011 Survey responses'!V58:AO58,'2011 Survey responses'!V58:AO58,\">1\")))","v":""},{"$f":"IF(SUM('2011 Survey responses'!V58:AA58)<1,\"\",(AVERAGEIFS('2011 Survey responses'!V58:AA58,'2011 Survey responses'!V58:AA58,\">1\")))","v":""},{"$f":"IF(SUM('2011 Survey responses'!AB58:AH58)<1,\"\",(AVERAGEIFS('2011 Survey responses'!AB58:AH58,'2011 Survey responses'!AB58:AH58,\">1\")))","v":""},{"$f":"IF(SUM('2011 Survey responses'!AI58:AO58)<1,\"\",(AVERAGEIFS('2011 Survey responses'!AI58:AO58,'2011 Survey responses'!AI58:AO58,\">1\")))","v":""},{"$f":"IF(('2011 Survey responses'!Y58+'2011 Survey responses'!AI58+'2011 Survey responses'!AK58)<3.1,\"\",((SUMIF('2011 Survey responses'!Y58,\">1\")+SUMIF('2011 Survey responses'!AI58,\">1\")+SUMIF('2011 Survey responses'!AK58,\">1\")+SUMIF('2011 Survey responses'!AM58,\">1\"))/(COUNTIF('2011 Survey responses'!Y58,\">1\")+COUNTIF('2011 Survey responses'!AI58,\">1\")+COUNTIF('2011 Survey responses'!AK58,\">1\")+COUNTIF('2011 Survey responses'!AM58,\">1\"))))","v":""},{"$f":"IF(('2011 Survey responses'!W58)<1.1,\"\",('2011 Survey responses'!W58))","v":""},{"$f":"IF(('2011 Survey responses'!Y58)<1.1,\"\",('2011 Survey responses'!Y58))","v":""},{"$f":"IF(('2011 Survey responses'!Z58)<1.1,\"\",('2011 Survey responses'!Z58))","v":""},{"$f":"IF(('2011 Survey responses'!V58+'2011 Survey responses'!X58+'2011 Survey responses'!AA58)<3.1,\"\",((SUMIF('2011 Survey responses'!V58,\">1\")+SUMIF('2011 Survey responses'!X58,\">1\")+SUMIF('2011 Survey responses'!AA58,\">1\"))/(COUNTIF('2011 Survey responses'!V58,\">1\")+COUNTIF('2011 Survey responses'!X58,\">1\")+COUNTIF('2011 Survey responses'!AA58,\">1\"))))","v":""},{"$f":"IF(('2011 Survey responses'!V58+'2011 Survey responses'!Y58+'2011 Survey responses'!AA58)<3.1,\"\",((SUMIF('2011 Survey responses'!V58,\">1\")+SUMIF('2011 Survey responses'!Y58,\">1\")+SUMIF('2011 Survey responses'!AA58,\">1\"))/(COUNTIF('2011 Survey responses'!V58,\">1\")+COUNTIF('2011 Survey responses'!Y58,\">1\")+COUNTIF('2011 Survey responses'!AA58,\">1\"))))","v":""},{"$f":"IF(SUM('2011 Survey responses'!AB58:AH58)<1,\"\",(AVERAGEIFS('2011 Survey responses'!AB58:AH58,'2011 Survey responses'!AB58:AH58,\">1\")))","v":""},{"$f":"IF(SUM('2011 Survey responses'!AI58:AO58)<7.1,\"\",(AVERAGEIFS('2011 Survey responses'!AI58:AO58,'2011 Survey responses'!AI58:AO58,\">1\")))","v":""},{"$f":"IF(('2011 Survey responses'!AH58)<1.1,\"\",('2011 Survey responses'!AH58))","v":""},{"$f":"IF(SUM('2011 Survey responses'!AP58:BV58)<1,\"\",(AVERAGEIFS('2011 Survey responses'!AP58:BV58,'2011 Survey responses'!AP58:BV58,\">1\")))","v":""},{"$f":"IF(SUM('2011 Survey responses'!AP58:AS58)<4.1,\"\",(AVERAGEIFS('2011 Survey responses'!AP58:AS58,'2011 Survey responses'!AP58:AS58,\">1\")))","v":""},{"$f":"IF(SUM('2011 Survey responses'!AT58:BF58)<1,\"\",(AVERAGEIFS('2011 Survey responses'!AT58:BF58,'2011 Survey responses'!AT58:BF58,\">1\")))","v":""},{"$f":"IF(SUM('2011 Survey responses'!BG58:BO58)<1,\"\",(AVERAGEIFS('2011 Survey responses'!BG58:BO58,'2011 Survey responses'!BG58:BO58,\">1\")))","v":""},{"$f":"IF(SUM('2011 Survey responses'!BP58:BS58)<1,\"\",(AVERAGEIFS('2011 Survey responses'!BP58:BS58,'2011 Survey responses'!BP58:BS58,\">1\")))","v":""},{"$f":"IF(SUM('2011 Survey responses'!BT58:BV58)<3.1,\"\",(AVERAGEIFS('2011 Survey responses'!BT58:BV58,'2011 Survey responses'!BT58:BV58,\">1\")))","v":""},{"$f":"IF(('2011 Survey responses'!AQ58+'2011 Survey responses'!AR58+'2011 Survey responses'!BG58)<3.1,\"\",((SUMIF('2011 Survey responses'!AQ58,\">1\")+SUMIF('2011 Survey responses'!AR58,\">1\")+SUMIF('2011 Survey responses'!BG58,\">1\"))/(COUNTIF('2011 Survey responses'!AQ58,\">1\")+COUNTIF('2011 Survey responses'!AR58,\">1\")+COUNTIF('2011 Survey responses'!BG58,\">1\"))))","v":""},{"$f":"IF(SUM('2011 Survey responses'!AP58:AS58)<4.1,\"\",(AVERAGEIFS('2011 Survey responses'!AP58:AS58,'2011 Survey responses'!AP58:AS58,\">1\")))","v":""},{"$f":"IF(('2011 Survey responses'!AU58+'2011 Survey responses'!AX58+'2011 Survey responses'!BA58+'2011 Survey responses'!BC58+'2011 Survey responses'!BD58)<5.1,\"\",(SUMIF('2011 Survey responses'!AU58,\">1\")+SUMIF('2011 Survey responses'!AX58,\">1\")+SUMIF('2011 Survey responses'!BA58,\">1\")+SUMIF('2011 Survey responses'!BC58,\">1\")+SUMIF('2011 Survey responses'!BD58,\">1\"))/(COUNTIF('2011 Survey responses'!AU58,\">1\")+COUNTIF('2011 Survey responses'!AX58,\">1\")+COUNTIF('2011 Survey responses'!BA58,\">1\")+COUNTIF('2011 Survey responses'!BC58,\">1\")+COUNTIF('2011 Survey responses'!BD58,\">1\")))","v":""},{"$f":"IF(('2011 Survey responses'!AT58)<1.1,\"\",('2011 Survey responses'!AT58))","v":""},{"$f":"IF(SUM('2011 Survey responses'!AV58:AW58)<2.1,\"\",(AVERAGEIFS('2011 Survey responses'!AV58:AW58,'2011 Survey responses'!AV58:AW58,\">1\")))","v":""},{"$f":"IF(('2011 Survey responses'!AW58+'2011 Survey responses'!AY58)<2.1,\"\",(SUMIF('2011 Survey responses'!AW58,\">1\")+SUMIF('2011 Survey responses'!AY58,\">1\"))/(COUNTIF('2011 Survey responses'!AW58,\">1\")+COUNTIF('2011 Survey responses'!AY58,\">1\")))","v":""},{"$f":"IF(('2011 Survey responses'!AZ58)<1.1,\"\",('2011 Survey responses'!AZ58))","v":""},null,null,null,null,{"$f":"IF(('2011 Survey responses'!BE58)<1.1,\"\",('2011 Survey responses'!BE58))","v":""},{"$f":"IF(('2011 Survey responses'!AY58+'2011 Survey responses'!BB58+'2011 Survey responses'!BF58)<3.1,\"\",(SUMIF('2011 Survey responses'!AY58,\">1\")+SUMIF('2011 Survey responses'!BB58,\">1\")+SUMIF('2011 Survey responses'!BF58,\">1\"))/(COUNTIF('2011 Survey responses'!AY58,\">1\")+COUNTIF('2011 Survey responses'!BB58,\">1\")+COUNTIF('2011 Survey responses'!BF58,\">1\")))","v":""},"",{"$f":"IF(SUM('2011 Survey responses'!BT58:BV58)<3.1,\"\",(AVERAGEIFS('2011 Survey responses'!BT58:BV58,'2011 Survey responses'!BT58:BV58,\">1\")))","v":""},{"$f":"IF(SUM('2011 Survey responses'!BW58:CP58)<1,\"\",(AVERAGEIFS('2011 Survey responses'!BW58:CP58,'2011 Survey responses'!BW58:CP58,\">1\")))","v":""},{"$f":"IF(SUM('2011 Survey responses'!BW58:CF58)<1,\"\",(AVERAGEIFS('2011 Survey responses'!BW58:CF58,'2011 Survey responses'!BW58:CF58,\">1\")))","v":""},{"$f":"IF(SUM('2011 Survey responses'!CG58:CP58)<1,\"\",(AVERAGEIFS('2011 Survey responses'!CG58:CP58,'2011 Survey responses'!CG58:CP58,\">1\")))","v":""},{"$f":"IF(SUM('2011 Survey responses'!BX58:CF58)<1,\"\",(AVERAGEIFS('2011 Survey responses'!BX58:CF58,'2011 Survey responses'!BX58:CF58,\">1\")))","v":""},{"$f":"IF(SUM('2011 Survey responses'!CH58:CP58)<1,\"\",(AVERAGEIFS('2011 Survey responses'!CH58:CP58,'2011 Survey responses'!CH58:CP58,\">1\")))","v":""},{"$f":"IF(SUM('2011 Survey responses'!BW58:CP58)<1,\"\",(AVERAGEIFS('2011 Survey responses'!BW58:CP58,'2011 Survey responses'!BW58:CP58,\">1\")))","v":""},{"$f":"IF(('2011 Survey responses'!BW58+'2011 Survey responses'!CG58)<2.1,\"\",(SUMIF('2011 Survey responses'!BW58,\">1\")+SUMIF('2011 Survey responses'!CG58,\">1\"))/(COUNTIF('2011 Survey responses'!BW58,\">1\")+COUNTIF('2011 Survey responses'!CG58,\">1\")))","v":""},{"$f":"IF(('2011 Survey responses'!BX58+'2011 Survey responses'!CH58)<2.1,\"\",(SUMIF('2011 Survey responses'!BX58,\">1\")+SUMIF('2011 Survey responses'!CH58,\">1\"))/(COUNTIF('2011 Survey responses'!BX58,\">1\")+COUNTIF('2011 Survey responses'!CH58,\">1\")))","v":""},{"$f":"IF(('2011 Survey responses'!BY58+'2011 Survey responses'!CI58)<2.1,\"\",(SUMIF('2011 Survey responses'!BY58,\">1\")+SUMIF('2011 Survey responses'!CI58,\">1\"))/(COUNTIF('2011 Survey responses'!BY58,\">1\")+COUNTIF('2011 Survey responses'!CI58,\">1\")))","v":""},{"$f":"IF('2011 Survey responses'!CQ58<0.5,\"\",'2011 Survey responses'!CQ58)","v":""},{"$f":"IF('2011 Survey responses'!CR58<0.5,\"\",'2011 Survey responses'!CR58)","v":""},{"$f":"IF('2011 Survey responses'!CS58<0.5,\"\",'2011 Survey responses'!CS58)","v":""},{"$f":"IF('2011 Survey responses'!CT58<0.5,\"\",'2011 Survey responses'!CT58)","v":""},{"$f":"IF('2011 Survey responses'!CU58<0.5,\"\",'2011 Survey responses'!CU58)","v":""},{"$f":"IF('2011 Survey responses'!CV58<0.5,\"\",'2011 Survey responses'!CV58)","v":""},{"$f":"IF(SUM('2011 Survey responses'!CW58:DL58)<1,\"\",(AVERAGE('2011 Survey responses'!CW58:DL58)))","v":""},{"$f":"IF(SUM('2011 Survey responses'!CW58:CZ58)<1,\"\",(AVERAGE('2011 Survey responses'!CW58:CZ58)))","v":""},{"$f":"IF(SUM('2011 Survey responses'!DA58:DD58)<1,\"\",(AVERAGE('2011 Survey responses'!DA58:DD58)))","v":""},{"$f":"IF(SUM('2011 Survey responses'!DE58:DH58)<1,\"\",(AVERAGE('2011 Survey responses'!DE58:DH58)))","v":""},{"$f":"IF(SUM('2011 Survey responses'!DI58:DL58)<1,\"\",(AVERAGE('2011 Survey responses'!DI58:DL58)))","v":""},{"$f":"IF(('2011 Survey responses'!CW58+'2011 Survey responses'!DA58+'2011 Survey responses'!DE58+'2011 Survey responses'!DI58)<1,\"\",AVERAGE('2011 Survey responses'!CW58,'2011 Survey responses'!DA58,'2011 Survey responses'!DE58,'2011 Survey responses'!DI58))","v":""},{"$f":"IF(('2011 Survey responses'!CX58+'2011 Survey responses'!DB58+'2011 Survey responses'!DF58+'2011 Survey responses'!DJ58)<1,\"\",AVERAGE('2011 Survey responses'!CX58,'2011 Survey responses'!DB58,'2011 Survey responses'!DF58,'2011 Survey responses'!DJ58))","v":""},{"$f":"IF(('2011 Survey responses'!CY58+'2011 Survey responses'!DC58+'2011 Survey responses'!DG58+'2011 Survey responses'!DK58)<1,\"\",AVERAGE('2011 Survey responses'!CY58,'2011 Survey responses'!DC58,'2011 Survey responses'!DG58,'2011 Survey responses'!DK58))","v":""},{"$f":"IF(('2011 Survey responses'!CZ58+'2011 Survey responses'!DD58+'2011 Survey responses'!DH58+'2011 Survey responses'!DL58)<1,\"\",AVERAGE('2011 Survey responses'!CZ58,'2011 Survey responses'!DD58,'2011 Survey responses'!DH58,'2011 Survey responses'!DL58))","v":""},{"$f":"IF('2011 Survey responses'!CW58<0.5,\"\",'2011 Survey responses'!CW58)","v":""},{"$f":"IF('2011 Survey responses'!CX58<0.5,\"\",'2011 Survey responses'!CX58)","v":""},{"$f":"IF('2011 Survey responses'!CY58<0.5,\"\",'2011 Survey responses'!CY58)","v":""},{"$f":"IF('2011 Survey responses'!CZ58<0.5,\"\",'2011 Survey responses'!CZ58)","v":""},{"$f":"IF('2011 Survey responses'!DA58<0.5,\"\",'2011 Survey responses'!DA58)","v":""},{"$f":"IF('2011 Survey responses'!DB58<0.5,\"\",'2011 Survey responses'!DB58)","v":""},{"$f":"IF('2011 Survey responses'!DC58<0.5,\"\",'2011 Survey responses'!DC58)","v":""},{"$f":"IF('2011 Survey responses'!DD58<0.5,\"\",'2011 Survey responses'!DD58)","v":""},{"$f":"IF('2011 Survey responses'!DE58<0.5,\"\",'2011 Survey responses'!DE58)","v":""},{"$f":"IF('2011 Survey responses'!DF58<0.5,\"\",'2011 Survey responses'!DF58)","v":""},{"$f":"IF('2011 Survey responses'!DG58<0.5,\"\",'2011 Survey responses'!DG58)","v":""},{"$f":"IF('2011 Survey responses'!DH58<0.5,\"\",'2011 Survey responses'!DH58)","v":""},{"$f":"IF('2011 Survey responses'!DI58<0.5,\"\",'2011 Survey responses'!DI58)","v":""},{"$f":"IF('2011 Survey responses'!DJ58<0.5,\"\",'2011 Survey responses'!DJ58)","v":""},{"$f":"IF('2011 Survey responses'!DK58<0.5,\"\",'2011 Survey responses'!DK58)","v":""},{"$f":"IF('2011 Survey responses'!DL58<0.5,\"\",'2011 Survey responses'!DL58)","v":""},{"$f":"IF('2011 Survey responses'!DU58=4,4,IF('2011 Survey responses'!DU58=5,4,\"\"))","v":""},{"$f":"IF('2011 Survey responses'!DV58=4,3,IF('2011 Survey responses'!DV58=5,3,\"\"))","v":""},"",{"$f":"IF(CQ58=2,CQ58,IF(CO58=4,CO58,IF(CP58=3,CP58,IF('2011 Survey responses'!GT58=1,1,\"\"))))","v":""},{"$f":"IF('2011 Survey responses'!DO58<0.5,\"\",'2011 Survey responses'!DO58)","v":""},{"$f":"IF('2011 Survey responses'!DP58<0.5,\"\",'2011 Survey responses'!DP58)","v":""},{"$f":"IF('2011 Survey responses'!DQ58<0.5,\"\",'2011 Survey responses'!DQ58)","v":""},{"$f":"IF('2011 Survey responses'!DR58<0.5,\"\",'2011 Survey responses'!DR58)","v":""},{"$f":"IF('2011 Survey responses'!DS58<0.5,\"\",'2011 Survey responses'!DS58)","v":""},{"$f":"IF('2011 Survey responses'!DT58<0.5,\"\",'2011 Survey responses'!DT58)","v":""},{"$f":"IF('2011 Survey responses'!DU58<0.5,\"\",'2011 Survey responses'!DU58)","v":""},{"$f":"IF('2011 Survey responses'!DV58<0.5,\"\",'2011 Survey responses'!DV58)","v":""},{"$f":"IF('2011 Survey responses'!DW58<0.5,\"\",'2011 Survey responses'!DW58)","v":""},{"$f":"IF('2011 Survey responses'!DX58<0.5,\"\",'2011 Survey responses'!DX58)","v":""},{"$f":"IF('2011 Survey responses'!DY58<0.5,\"\",'2011 Survey responses'!DY58)","v":""},{"$f":"IF('2011 Survey responses'!DZ58<0.5,\"\",'2011 Survey responses'!DZ58)","v":""},{"$f":"IF('2011 Survey responses'!EA58<0.5,\"\",'2011 Survey responses'!EA58)","v":""},{"$f":"IF('2011 Survey responses'!EB58<0.5,\"\",'2011 Survey responses'!EB58)","v":""},{"$f":"IF('2011 Survey responses'!EC58<0.5,\"\",'2011 Survey responses'!EC58)","v":""},{"$f":"IF('2011 Survey responses'!ED58<0.5,\"\",'2011 Survey responses'!ED58)","v":""},{"$f":"IF('2011 Survey responses'!EE58<0.5,\"\",'2011 Survey responses'!EE58)","v":""},{"$f":"IF('2011 Survey responses'!EF58<0.5,\"\",'2011 Survey responses'!EF58)","v":""},{"$f":"IF('2011 Survey responses'!EG58<0.5,\"\",'2011 Survey responses'!EG58)","v":""},{"$f":"IF('2011 Survey responses'!EH58<0.5,\"\",'2011 Survey responses'!EH58)","v":""},{"$f":"IF('2011 Survey responses'!EI58<0.5,\"\",'2011 Survey responses'!EI58)","v":""},{"$f":"IF('2011 Survey responses'!EJ58<0.5,\"\",'2011 Survey responses'!EJ58)","v":""},{"$f":"IF('2011 Survey responses'!EK58<0.5,\"\",'2011 Survey responses'!EK58)","v":""},{"$f":"IF('2011 Survey responses'!EL58<0.5,\"\",'2011 Survey responses'!EL58)","v":""},{"$f":"IF('2011 Survey responses'!EM58<0.5,\"\",'2011 Survey responses'!EM58)","v":""},{"$f":"IF('2011 Survey responses'!EN58<0.5,\"\",'2011 Survey responses'!EN58)","v":""},{"$f":"IF('2011 Survey responses'!EO58<0.5,\"\",'2011 Survey responses'!EO58)","v":""},{"$f":"IF('2011 Survey responses'!EP58<0.5,\"\",'2011 Survey responses'!EP58)","v":""},{"$f":"IF(('2011 Survey responses'!EW58+'2011 Survey responses'!EX58)>=2,AVERAGE('2011 Survey responses'!EW58,'2011 Survey responses'!EY58),\"\")","v":""},{"$f":"IF('2011 Survey responses'!EX58<0.5,\"\",'2011 Survey responses'!EX58)","v":""},{"$f":"IF('2011 Survey responses'!EZ58<0.5,\"\",'2011 Survey responses'!EZ58)","v":""},{"$f":"IF('2011 Survey responses'!FB58<0.5,\"\",'2011 Survey responses'!FB58)","v":""},{"$f":"IF('2011 Survey responses'!FD58<0.5,\"\",'2011 Survey responses'!FD58)","v":""},{"$f":"IF('2011 Survey responses'!FC58<0.5,\"\",'2011 Survey responses'!FC58)","v":""},{"$f":"IF(('2011 Survey responses'!EM58+'2011 Survey responses'!EN58)>=2,AVERAGE('2011 Survey responses'!EM58,'2011 Survey responses'!EN58),\"\")","v":""},{"$f":"IF('2011 Survey responses'!ES58<0.5,\"\",'2011 Survey responses'!ES58)","v":""},{"$f":"IF(('2011 Survey responses'!ET58+'2011 Survey responses'!EU58)>=2,AVERAGE('2011 Survey responses'!ET58,'2011 Survey responses'!EU58),\"\")","v":""},{"$f":"IF('2011 Survey responses'!EV58<0.5,\"\",'2011 Survey responses'!EV58)","v":""},{"$f":"IF('2011 Survey responses'!FA58<0.5,\"\",'2011 Survey responses'!FA58)","v":""},{"$f":"IF('2011 Survey responses'!ER58<0.5,\"\",'2011 Survey responses'!ER58)","v":""},{"$f":"IF(('2011 Survey responses'!EO58+'2011 Survey responses'!EP58)>=2,AVERAGE('2011 Survey responses'!EO58,'2011 Survey responses'!EP58),\"\")","v":""},{"$f":"IF('2011 Survey responses'!EQ58<0.5,\"\",'2011 Survey responses'!EQ58)","v":""},{"$f":"IF('2011 Survey responses'!ET58<0.5,\"\",'2011 Survey responses'!ET58)","v":""},{"$f":"IF('2011 Survey responses'!EU58<0.5,\"\",'2011 Survey responses'!EU58)","v":""},{"$f":"IF('2011 Survey responses'!EW58<0.5,\"\",'2011 Survey responses'!EW58)","v":""},{"$f":"IF('2011 Survey responses'!EY58<0.5,\"\",'2011 Survey responses'!EY58)","v":""},{"$f":"IF('2011 Survey responses'!FU58<0.5,\"\",'2011 Survey responses'!FU58)","v":""},{"$f":"IF(('2011 Survey responses'!FL58+'2011 Survey responses'!FM58)>=2,AVERAGE('2011 Survey responses'!FL58,'2011 Survey responses'!FM58),\"\")","v":""},{"$f":"IF(('2011 Survey responses'!FO58+'2011 Survey responses'!FQ58)>=2,AVERAGE('2011 Survey responses'!FO58,'2011 Survey responses'!FQ58),\"\")","v":""},{"$f":"IF('2011 Survey responses'!FJ58<0.5,\"\",'2011 Survey responses'!FJ58)","v":""},{"$f":"IF('2011 Survey responses'!FT58<0.5,\"\",'2011 Survey responses'!FT58)","v":""},{"$f":"IF('2011 Survey responses'!FR58<0.5,\"\",'2011 Survey responses'!FR58)","v":""},{"$f":"IF('2011 Survey responses'!FK58<0.5,\"\",'2011 Survey responses'!FK58)","v":""},{"$f":"IF('2011 Survey responses'!FP58<0.5,\"\",'2011 Survey responses'!FP58)","v":""},{"$f":"IF('2011 Survey responses'!FN58<0.5,\"\",'2011 Survey responses'!FN58)","v":""},{"$f":"IF(('2011 Survey responses'!FE58+'2011 Survey responses'!FF58)>=2,AVERAGE('2011 Survey responses'!FE58,'2011 Survey responses'!FF58),\"\")","v":""},{"$f":"IF('2011 Survey responses'!FS58<0.5,\"\",'2011 Survey responses'!FS58)","v":""},{"$f":"IF('2011 Survey responses'!FV58<0.5,\"\",'2011 Survey responses'!FV58)","v":""},{"$f":"IF(('2011 Survey responses'!FG58+'2011 Survey responses'!FH58)>=2,AVERAGE('2011 Survey responses'!FG58,'2011 Survey responses'!FH58),\"\")","v":""},{"$f":"IF('2011 Survey responses'!FI58<0.5,\"\",'2011 Survey responses'!FI58)","v":""},{"$f":"IF('2011 Survey responses'!FE58<0.5,\"\",'2011 Survey responses'!FE58)","v":""},{"$f":"IF('2011 Survey responses'!FF58<0.5,\"\",'2011 Survey responses'!FF58)","v":""},{"$f":"IF('2011 Survey responses'!FG58<0.5,\"\",'2011 Survey responses'!FG58)","v":""},{"$f":"IF('2011 Survey responses'!FH58<0.5,\"\",'2011 Survey responses'!FH58)","v":""},{"$f":"IF('2011 Survey responses'!FL58<0.5,\"\",'2011 Survey responses'!FL58)","v":""},{"$f":"IF('2011 Survey responses'!FM58<0.5,\"\",'2011 Survey responses'!FM58)","v":""},{"$f":"IF('2011 Survey responses'!FO58<0.5,\"\",'2011 Survey responses'!FO58)","v":""},{"$f":"IF('2011 Survey responses'!FQ58<0.5,\"\",'2011 Survey responses'!FQ58)","v":""}]
["Estonia",{"$f":"IF(SUM(F59)<1,\"\",AVERAGEIF('2011 Survey responses'!B59:CP59,\">1\"))","v":4.5952380952380949},{"$f":"IF(SUM(F59)<1,\"\",AVERAGEIF('2011 Survey responses'!B59:AO59,\">1\"))","v":4.7435897435897436},{"$f":"IF(SUM(F59)<1,\"\",AVERAGEIF('2011 Survey responses'!B59:BV59,\">1\"))","v":4.75},{"$f":"IF(SUM(F59)<1,\"\",AVERAGEIF('2011 Survey responses'!V59:BV59,\">1\"))","v":4.9795918367346941},{"$f":"IF(SUM('2011 Survey responses'!B59:U59)<1,\"\",(AVERAGEIFS('2011 Survey responses'!B59:U59,'2011 Survey responses'!B59:U59,\">1\")))","v":4.1578947368421053},{"$f":"IF(SUM('2011 Survey responses'!B59:H59)<1,\"\",(AVERAGEIFS('2011 Survey responses'!B59:H59,'2011 Survey responses'!B59:H59,\">1\")))","v":4},{"$f":"IF(SUM('2011 Survey responses'!I59:S59)<1,\"\",(AVERAGEIFS('2011 Survey responses'!I59:S59,'2011 Survey responses'!I59:S59,\">1\")))","v":4.0999999999999996},{"$f":"IF(SUM('2011 Survey responses'!T59:U59)<2.1,\"\",(AVERAGEIFS('2011 Survey responses'!T59:U59,'2011 Survey responses'!T59:U59,\">1\")))","v":5},{"$f":"IF(SUM('2011 Survey responses'!B59:C59)<2.1,\"\",((SUMIF('2011 Survey responses'!B59:C59,\">1\")+SUMIF('2011 Survey responses'!F59,\">1\"))/(COUNTIF('2011 Survey responses'!B59:C59,\">1\")+COUNTIF('2011 Survey responses'!F59,\">1\"))))","v":4},{"$f":"IF(SUM('2011 Survey responses'!D59:E59)<2.1,\"\",(AVERAGEIFS('2011 Survey responses'!D59:E59,'2011 Survey responses'!D59:E59,\">1\")))","v":4},{"$f":"IF(('2011 Survey responses'!B59+'2011 Survey responses'!D59)<2.1,\"\",((SUMIF('2011 Survey responses'!B59,\">1\")+SUMIF('2011 Survey responses'!D59,\">1\")+SUMIF('2011 Survey responses'!F59,\">1\")+SUMIF('2011 Survey responses'!K59,\">1\"))/(COUNTIF('2011 Survey responses'!B59,\">1\")+COUNTIF('2011 Survey responses'!D59,\">1\")+COUNTIF('2011 Survey responses'!F59,\">1\")+COUNTIF('2011 Survey responses'!K59,\">1\"))))","v":4.25},{"$f":"IF(SUM('2011 Survey responses'!G59:H59)<2.1,\"\",(AVERAGEIFS('2011 Survey responses'!G59:H59,'2011 Survey responses'!G59:H59,\">1\")))","v":4},{"$f":"IF(SUM('2011 Survey responses'!F59:G59)<1.5,\"\",MAX('2011 Survey responses'!F59,'2011 Survey responses'!G59))","v":4},{"$f":"IF(SUM('2011 Survey responses'!G59:H59)<1,\"\",MAX('2011 Survey responses'!G59,'2011 Survey responses'!H59))","v":4},{"$f":"IF(SUM('2011 Survey responses'!I59:L59)<4.1,\"\",(AVERAGEIFS('2011 Survey responses'!I59:L59,'2011 Survey responses'!I59:L59,\">1\")))","v":4.25},{"$f":"IF(SUM('2011 Survey responses'!M59:S59)<4.1,\"\",(AVERAGEIFS('2011 Survey responses'!M59:S59,'2011 Survey responses'!M59:S59,\">1\")))","v":4},{"$f":"IF(SUM('2011 Survey responses'!T59:U59)<2.1,\"\",(AVERAGEIFS('2011 Survey responses'!T59:U59,'2011 Survey responses'!T59:U59,\">1\")))","v":5},{"$f":"IF(SUM('2011 Survey responses'!V59:AO59)<1,\"\",(AVERAGEIFS('2011 Survey responses'!V59:AO59,'2011 Survey responses'!V59:AO59,\">1\")))","v":5.3},{"$f":"IF(SUM('2011 Survey responses'!V59:AA59)<1,\"\",(AVERAGEIFS('2011 Survey responses'!V59:AA59,'2011 Survey responses'!V59:AA59,\">1\")))","v":6},{"$f":"IF(SUM('2011 Survey responses'!AB59:AH59)<1,\"\",(AVERAGEIFS('2011 Survey responses'!AB59:AH59,'2011 Survey responses'!AB59:AH59,\">1\")))","v":5},{"$f":"IF(SUM('2011 Survey responses'!AI59:AO59)<1,\"\",(AVERAGEIFS('2011 Survey responses'!AI59:AO59,'2011 Survey responses'!AI59:AO59,\">1\")))","v":5},{"$f":"IF(('2011 Survey responses'!Y59+'2011 Survey responses'!AI59+'2011 Survey responses'!AK59)<3.1,\"\",((SUMIF('2011 Survey responses'!Y59,\">1\")+SUMIF('2011 Survey responses'!AI59,\">1\")+SUMIF('2011 Survey responses'!AK59,\">1\")+SUMIF('2011 Survey responses'!AM59,\">1\"))/(COUNTIF('2011 Survey responses'!Y59,\">1\")+COUNTIF('2011 Survey responses'!AI59,\">1\")+COUNTIF('2011 Survey responses'!AK59,\">1\")+COUNTIF('2011 Survey responses'!AM59,\">1\"))))","v":5.25},{"$f":"IF(('2011 Survey responses'!W59)<1.1,\"\",('2011 Survey responses'!W59))","v":6},{"$f":"IF(('2011 Survey responses'!Y59)<1.1,\"\",('2011 Survey responses'!Y59))","v":6},{"$f":"IF(('2011 Survey responses'!Z59)<1.1,\"\",('2011 Survey responses'!Z59))","v":6},{"$f":"IF(('2011 Survey responses'!V59+'2011 Survey responses'!X59+'2011 Survey responses'!AA59)<3.1,\"\",((SUMIF('2011 Survey responses'!V59,\">1\")+SUMIF('2011 Survey responses'!X59,\">1\")+SUMIF('2011 Survey responses'!AA59,\">1\"))/(COUNTIF('2011 Survey responses'!V59,\">1\")+COUNTIF('2011 Survey responses'!X59,\">1\")+COUNTIF('2011 Survey responses'!AA59,\">1\"))))","v":6},{"$f":"IF(('2011 Survey responses'!V59+'2011 Survey responses'!Y59+'2011 Survey responses'!AA59)<3.1,\"\",((SUMIF('2011 Survey responses'!V59,\">1\")+SUMIF('2011 Survey responses'!Y59,\">1\")+SUMIF('2011 Survey responses'!AA59,\">1\"))/(COUNTIF('2011 Survey responses'!V59,\">1\")+COUNTIF('2011 Survey responses'!Y59,\">1\")+COUNTIF('2011 Survey responses'!AA59,\">1\"))))","v":6},{"$f":"IF(SUM('2011 Survey responses'!AB59:AH59)<1,\"\",(AVERAGEIFS('2011 Survey responses'!AB59:AH59,'2011 Survey responses'!AB59:AH59,\">1\")))","v":5},{"$f":"IF(SUM('2011 Survey responses'!AI59:AO59)<7.1,\"\",(AVERAGEIFS('2011 Survey responses'!AI59:AO59,'2011 Survey responses'!AI59:AO59,\">1\")))","v":5},{"$f":"IF(('2011 Survey responses'!AH59)<1.1,\"\",('2011 Survey responses'!AH59))","v":5},{"$f":"IF(SUM('2011 Survey responses'!AP59:BV59)<1,\"\",(AVERAGEIFS('2011 Survey responses'!AP59:BV59,'2011 Survey responses'!AP59:BV59,\">1\")))","v":4.7586206896551726},{"$f":"IF(SUM('2011 Survey responses'!AP59:AS59)<4.1,\"\",(AVERAGEIFS('2011 Survey responses'!AP59:AS59,'2011 Survey responses'!AP59:AS59,\">1\")))","v":5.25},{"$f":"IF(SUM('2011 Survey responses'!AT59:BF59)<1,\"\",(AVERAGEIFS('2011 Survey responses'!AT59:BF59,'2011 Survey responses'!AT59:BF59,\">1\")))","v":4.666666666666667},{"$f":"IF(SUM('2011 Survey responses'!BG59:BO59)<1,\"\",(AVERAGEIFS('2011 Survey responses'!BG59:BO59,'2011 Survey responses'!BG59:BO59,\">1\")))","v":5},{"$f":"IF(SUM('2011 Survey responses'!BP59:BS59)<1,\"\",(AVERAGEIFS('2011 Survey responses'!BP59:BS59,'2011 Survey responses'!BP59:BS59,\">1\")))","v":4.5},{"$f":"IF(SUM('2011 Survey responses'!BT59:BV59)<3.1,\"\",(AVERAGEIFS('2011 Survey responses'!BT59:BV59,'2011 Survey responses'!BT59:BV59,\">1\")))","v":4},{"$f":"IF(('2011 Survey responses'!AQ59+'2011 Survey responses'!AR59+'2011 Survey responses'!BG59)<3.1,\"\",((SUMIF('2011 Survey responses'!AQ59,\">1\")+SUMIF('2011 Survey responses'!AR59,\">1\")+SUMIF('2011 Survey responses'!BG59,\">1\"))/(COUNTIF('2011 Survey responses'!AQ59,\">1\")+COUNTIF('2011 Survey responses'!AR59,\">1\")+COUNTIF('2011 Survey responses'!BG59,\">1\"))))","v":5.666666666666667},{"$f":"IF(SUM('2011 Survey responses'!AP59:AS59)<4.1,\"\",(AVERAGEIFS('2011 Survey responses'!AP59:AS59,'2011 Survey responses'!AP59:AS59,\">1\")))","v":5.25},{"$f":"IF(('2011 Survey responses'!AU59+'2011 Survey responses'!AX59+'2011 Survey responses'!BA59+'2011 Survey responses'!BC59+'2011 Survey responses'!BD59)<5.1,\"\",(SUMIF('2011 Survey responses'!AU59,\">1\")+SUMIF('2011 Survey responses'!AX59,\">1\")+SUMIF('2011 Survey responses'!BA59,\">1\")+SUMIF('2011 Survey responses'!BC59,\">1\")+SUMIF('2011 Survey responses'!BD59,\">1\"))/(COUNTIF('2011 Survey responses'!AU59,\">1\")+COUNTIF('2011 Survey responses'!AX59,\">1\")+COUNTIF('2011 Survey responses'!BA59,\">1\")+COUNTIF('2011 Survey responses'!BC59,\">1\")+COUNTIF('2011 Survey responses'!BD59,\">1\")))","v":4},{"$f":"IF(('2011 Survey responses'!AT59)<1.1,\"\",('2011 Survey responses'!AT59))","v":""},{"$f":"IF(SUM('2011 Survey responses'!AV59:AW59)<2.1,\"\",(AVERAGEIFS('2011 Survey responses'!AV59:AW59,'2011 Survey responses'!AV59:AW59,\">1\")))","v":5},{"$f":"IF(('2011 Survey responses'!AW59+'2011 Survey responses'!AY59)<2.1,\"\",(SUMIF('2011 Survey responses'!AW59,\">1\")+SUMIF('2011 Survey responses'!AY59,\">1\"))/(COUNTIF('2011 Survey responses'!AW59,\">1\")+COUNTIF('2011 Survey responses'!AY59,\">1\")))","v":5},{"$f":"IF(('2011 Survey responses'!AZ59)<1.1,\"\",('2011 Survey responses'!AZ59))","v":5},5,1,4,2,{"$f":"IF(('2011 Survey responses'!BE59)<1.1,\"\",('2011 Survey responses'!BE59))","v":5},{"$f":"IF(('2011 Survey responses'!AY59+'2011 Survey responses'!BB59+'2011 Survey responses'!BF59)<3.1,\"\",(SUMIF('2011 Survey responses'!AY59,\">1\")+SUMIF('2011 Survey responses'!BB59,\">1\")+SUMIF('2011 Survey responses'!BF59,\">1\"))/(COUNTIF('2011 Survey responses'!AY59,\">1\")+COUNTIF('2011 Survey responses'!BB59,\">1\")+COUNTIF('2011 Survey responses'!BF59,\">1\")))","v":5},4.75,{"$f":"IF(SUM('2011 Survey responses'!BT59:BV59)<3.1,\"\",(AVERAGEIFS('2011 Survey responses'!BT59:BV59,'2011 Survey responses'!BT59:BV59,\">1\")))","v":4},{"$f":"IF(SUM('2011 Survey responses'!BW59:CP59)<1,\"\",(AVERAGEIFS('2011 Survey responses'!BW59:CP59,'2011 Survey responses'!BW59:CP59,\">1\")))","v":3.9375},{"$f":"IF(SUM('2011 Survey responses'!BW59:CF59)<1,\"\",(AVERAGEIFS('2011 Survey responses'!BW59:CF59,'2011 Survey responses'!BW59:CF59,\">1\")))","v":4},{"$f":"IF(SUM('2011 Survey responses'!CG59:CP59)<1,\"\",(AVERAGEIFS('2011 Survey responses'!CG59:CP59,'2011 Survey responses'!CG59:CP59,\">1\")))","v":3.875},{"$f":"IF(SUM('2011 Survey responses'!BX59:CF59)<1,\"\",(AVERAGEIFS('2011 Survey responses'!BX59:CF59,'2011 Survey responses'!BX59:CF59,\">1\")))","v":3.8571428571428572},{"$f":"IF(SUM('2011 Survey responses'!CH59:CP59)<1,\"\",(AVERAGEIFS('2011 Survey responses'!CH59:CP59,'2011 Survey responses'!CH59:CP59,\">1\")))","v":3.7142857142857144},{"$f":"IF(SUM('2011 Survey responses'!BW59:CP59)<1,\"\",(AVERAGEIFS('2011 Survey responses'!BW59:CP59,'2011 Survey responses'!BW59:CP59,\">1\")))","v":3.9375},{"$f":"IF(('2011 Survey responses'!BW59+'2011 Survey responses'!CG59)<2.1,\"\",(SUMIF('2011 Survey responses'!BW59,\">1\")+SUMIF('2011 Survey responses'!CG59,\">1\"))/(COUNTIF('2011 Survey responses'!BW59,\">1\")+COUNTIF('2011 Survey responses'!CG59,\">1\")))","v":5},{"$f":"IF(('2011 Survey responses'!BX59+'2011 Survey responses'!CH59)<2.1,\"\",(SUMIF('2011 Survey responses'!BX59,\">1\")+SUMIF('2011 Survey responses'!CH59,\">1\"))/(COUNTIF('2011 Survey responses'!BX59,\">1\")+COUNTIF('2011 Survey responses'!CH59,\">1\")))","v":""},{"$f":"IF(('2011 Survey responses'!BY59+'2011 Survey responses'!CI59)<2.1,\"\",(SUMIF('2011 Survey responses'!BY59,\">1\")+SUMIF('2011 Survey responses'!CI59,\">1\"))/(COUNTIF('2011 Survey responses'!BY59,\">1\")+COUNTIF('2011 Survey responses'!CI59,\">1\")))","v":5},{"$f":"IF('2011 Survey responses'!CQ59<0.5,\"\",'2011 Survey responses'!CQ59)","v":4},{"$f":"IF('2011 Survey responses'!CR59<0.5,\"\",'2011 Survey responses'!CR59)","v":4},{"$f":"IF('2011 Survey responses'!CS59<0.5,\"\",'2011 Survey responses'!CS59)","v":4},{"$f":"IF('2011 Survey responses'!CT59<0.5,\"\",'2011 Survey responses'!CT59)","v":4},{"$f":"IF('2011 Survey responses'!CU59<0.5,\"\",'2011 Survey responses'!CU59)","v":4},{"$f":"IF('2011 Survey responses'!CV59<0.5,\"\",'2011 Survey responses'!CV59)","v":4},{"$f":"IF(SUM('2011 Survey responses'!CW59:DL59)<1,\"\",(AVERAGE('2011 Survey responses'!CW59:DL59)))","v":3.9375},{"$f":"IF(SUM('2011 Survey responses'!CW59:CZ59)<1,\"\",(AVERAGE('2011 Survey responses'!CW59:CZ59)))","v":3.75},{"$f":"IF(SUM('2011 Survey responses'!DA59:DD59)<1,\"\",(AVERAGE('2011 Survey responses'!DA59:DD59)))","v":3.5},{"$f":"IF(SUM('2011 Survey responses'!DE59:DH59)<1,\"\",(AVERAGE('2011 Survey responses'!DE59:DH59)))","v":3.5},{"$f":"IF(SUM('2011 Survey responses'!DI59:DL59)<1,\"\",(AVERAGE('2011 Survey responses'!DI59:DL59)))","v":5},{"$f":"IF(('2011 Survey responses'!CW59+'2011 Survey responses'!DA59+'2011 Survey responses'!DE59+'2011 Survey responses'!DI59)<1,\"\",AVERAGE('2011 Survey responses'!CW59,'2011 Survey responses'!DA59,'2011 Survey responses'!DE59,'2011 Survey responses'!DI59))","v":3.5},{"$f":"IF(('2011 Survey responses'!CX59+'2011 Survey responses'!DB59+'2011 Survey responses'!DF59+'2011 Survey responses'!DJ59)<1,\"\",AVERAGE('2011 Survey responses'!CX59,'2011 Survey responses'!DB59,'2011 Survey responses'!DF59,'2011 Survey responses'!DJ59))","v":3.75},{"$f":"IF(('2011 Survey responses'!CY59+'2011 Survey responses'!DC59+'2011 Survey responses'!DG59+'2011 Survey responses'!DK59)<1,\"\",AVERAGE('2011 Survey responses'!CY59,'2011 Survey responses'!DC59,'2011 Survey responses'!DG59,'2011 Survey responses'!DK59))","v":4.5},{"$f":"IF(('2011 Survey responses'!CZ59+'2011 Survey responses'!DD59+'2011 Survey responses'!DH59+'2011 Survey responses'!DL59)<1,\"\",AVERAGE('2011 Survey responses'!CZ59,'2011 Survey responses'!DD59,'2011 Survey responses'!DH59,'2011 Survey responses'!DL59))","v":4},{"$f":"IF('2011 Survey responses'!CW59<0.5,\"\",'2011 Survey responses'!CW59)","v":3},{"$f":"IF('2011 Survey responses'!CX59<0.5,\"\",'2011 Survey responses'!CX59)","v":4},{"$f":"IF('2011 Survey responses'!CY59<0.5,\"\",'2011 Survey responses'!CY59)","v":5},{"$f":"IF('2011 Survey responses'!CZ59<0.5,\"\",'2011 Survey responses'!CZ59)","v":3},{"$f":"IF('2011 Survey responses'!DA59<0.5,\"\",'2011 Survey responses'!DA59)","v":3},{"$f":"IF('2011 Survey responses'!DB59<0.5,\"\",'2011 Survey responses'!DB59)","v":3},{"$f":"IF('2011 Survey responses'!DC59<0.5,\"\",'2011 Survey responses'!DC59)","v":4},{"$f":"IF('2011 Survey responses'!DD59<0.5,\"\",'2011 Survey responses'!DD59)","v":4},{"$f":"IF('2011 Survey responses'!DE59<0.5,\"\",'2011 Survey responses'!DE59)","v":3},{"$f":"IF('2011 Survey responses'!DF59<0.5,\"\",'2011 Survey responses'!DF59)","v":3},{"$f":"IF('2011 Survey responses'!DG59<0.5,\"\",'2011 Survey responses'!DG59)","v":4},{"$f":"IF('2011 Survey responses'!DH59<0.5,\"\",'2011 Survey responses'!DH59)","v":4},{"$f":"IF('2011 Survey responses'!DI59<0.5,\"\",'2011 Survey responses'!DI59)","v":5},{"$f":"IF('2011 Survey responses'!DJ59<0.5,\"\",'2011 Survey responses'!DJ59)","v":5},{"$f":"IF('2011 Survey responses'!DK59<0.5,\"\",'2011 Survey responses'!DK59)","v":5},{"$f":"IF('2011 Survey responses'!DL59<0.5,\"\",'2011 Survey responses'!DL59)","v":5},{"$f":"IF('2011 Survey responses'!DU59=4,4,IF('2011 Survey responses'!DU59=5,4,\"\"))","v":""},{"$f":"IF('2011 Survey responses'!DV59=4,3,IF('2011 Survey responses'!DV59=5,3,\"\"))","v":""},"",{"$f":"IF(CQ59=2,CQ59,IF(CO59=4,CO59,IF(CP59=3,CP59,IF('2011 Survey responses'!GT59=1,1,\"\"))))","v":1},{"$f":"IF('2011 Survey responses'!DO59<0.5,\"\",'2011 Survey responses'!DO59)","v":5},{"$f":"IF('2011 Survey responses'!DP59<0.5,\"\",'2011 Survey responses'!DP59)","v":4},{"$f":"IF('2011 Survey responses'!DQ59<0.5,\"\",'2011 Survey responses'!DQ59)","v":3},{"$f":"IF('2011 Survey responses'!DR59<0.5,\"\",'2011 Survey responses'!DR59)","v":3},{"$f":"IF('2011 Survey responses'!DS59<0.5,\"\",'2011 Survey responses'!DS59)","v":3},{"$f":"IF('2011 Survey responses'!DT59<0.5,\"\",'2011 Survey responses'!DT59)","v":3},{"$f":"IF('2011 Survey responses'!DU59<0.5,\"\",'2011 Survey responses'!DU59)","v":2},{"$f":"IF('2011 Survey responses'!DV59<0.5,\"\",'2011 Survey responses'!DV59)","v":2},{"$f":"IF('2011 Survey responses'!DW59<0.5,\"\",'2011 Survey responses'!DW59)","v":2},{"$f":"IF('2011 Survey responses'!DX59<0.5,\"\",'2011 Survey responses'!DX59)","v":3},{"$f":"IF('2011 Survey responses'!DY59<0.5,\"\",'2011 Survey responses'!DY59)","v":4},{"$f":"IF('2011 Survey responses'!DZ59<0.5,\"\",'2011 Survey responses'!DZ59)","v":4},{"$f":"IF('2011 Survey responses'!EA59<0.5,\"\",'2011 Survey responses'!EA59)","v":5},{"$f":"IF('2011 Survey responses'!EB59<0.5,\"\",'2011 Survey responses'!EB59)","v":4},{"$f":"IF('2011 Survey responses'!EC59<0.5,\"\",'2011 Survey responses'!EC59)","v":3},{"$f":"IF('2011 Survey responses'!ED59<0.5,\"\",'2011 Survey responses'!ED59)","v":4},{"$f":"IF('2011 Survey responses'!EE59<0.5,\"\",'2011 Survey responses'!EE59)","v":3},{"$f":"IF('2011 Survey responses'!EF59<0.5,\"\",'2011 Survey responses'!EF59)","v":2},{"$f":"IF('2011 Survey responses'!EG59<0.5,\"\",'2011 Survey responses'!EG59)","v":4},{"$f":"IF('2011 Survey responses'!EH59<0.5,\"\",'2011 Survey responses'!EH59)","v":3},{"$f":"IF('2011 Survey responses'!EI59<0.5,\"\",'2011 Survey responses'!EI59)","v":3},{"$f":"IF('2011 Survey responses'!EJ59<0.5,\"\",'2011 Survey responses'!EJ59)","v":3},{"$f":"IF('2011 Survey responses'!EK59<0.5,\"\",'2011 Survey responses'!EK59)","v":4},{"$f":"IF('2011 Survey responses'!EL59<0.5,\"\",'2011 Survey responses'!EL59)","v":4},{"$f":"IF('2011 Survey responses'!EM59<0.5,\"\",'2011 Survey responses'!EM59)","v":4},{"$f":"IF('2011 Survey responses'!EN59<0.5,\"\",'2011 Survey responses'!EN59)","v":4},{"$f":"IF('2011 Survey responses'!EO59<0.5,\"\",'2011 Survey responses'!EO59)","v":3},{"$f":"IF('2011 Survey responses'!EP59<0.5,\"\",'2011 Survey responses'!EP59)","v":2},{"$f":"IF(('2011 Survey responses'!EW59+'2011 Survey responses'!EX59)>=2,AVERAGE('2011 Survey responses'!EW59,'2011 Survey responses'!EY59),\"\")","v":4.5},{"$f":"IF('2011 Survey responses'!EX59<0.5,\"\",'2011 Survey responses'!EX59)","v":5},{"$f":"IF('2011 Survey responses'!EZ59<0.5,\"\",'2011 Survey responses'!EZ59)","v":4},{"$f":"IF('2011 Survey responses'!FB59<0.5,\"\",'2011 Survey responses'!FB59)","v":2},{"$f":"IF('2011 Survey responses'!FD59<0.5,\"\",'2011 Survey responses'!FD59)","v":2},{"$f":"IF('2011 Survey responses'!FC59<0.5,\"\",'2011 Survey responses'!FC59)","v":2},{"$f":"IF(('2011 Survey responses'!EM59+'2011 Survey responses'!EN59)>=2,AVERAGE('2011 Survey responses'!EM59,'2011 Survey responses'!EN59),\"\")","v":4},{"$f":"IF('2011 Survey responses'!ES59<0.5,\"\",'2011 Survey responses'!ES59)","v":3},{"$f":"IF(('2011 Survey responses'!ET59+'2011 Survey responses'!EU59)>=2,AVERAGE('2011 Survey responses'!ET59,'2011 Survey responses'!EU59),\"\")","v":2.5},{"$f":"IF('2011 Survey responses'!EV59<0.5,\"\",'2011 Survey responses'!EV59)","v":4},{"$f":"IF('2011 Survey responses'!FA59<0.5,\"\",'2011 Survey responses'!FA59)","v":3},{"$f":"IF('2011 Survey responses'!ER59<0.5,\"\",'2011 Survey responses'!ER59)","v":4},{"$f":"IF(('2011 Survey responses'!EO59+'2011 Survey responses'!EP59)>=2,AVERAGE('2011 Survey responses'!EO59,'2011 Survey responses'!EP59),\"\")","v":2.5},{"$f":"IF('2011 Survey responses'!EQ59<0.5,\"\",'2011 Survey responses'!EQ59)","v":3},{"$f":"IF('2011 Survey responses'!ET59<0.5,\"\",'2011 Survey responses'!ET59)","v":3},{"$f":"IF('2011 Survey responses'!EU59<0.5,\"\",'2011 Survey responses'!EU59)","v":2},{"$f":"IF('2011 Survey responses'!EW59<0.5,\"\",'2011 Survey responses'!EW59)","v":4},{"$f":"IF('2011 Survey responses'!EY59<0.5,\"\",'2011 Survey responses'!EY59)","v":5},{"$f":"IF('2011 Survey responses'!FU59<0.5,\"\",'2011 Survey responses'!FU59)","v":3},{"$f":"IF(('2011 Survey responses'!FL59+'2011 Survey responses'!FM59)>=2,AVERAGE('2011 Survey responses'!FL59,'2011 Survey responses'!FM59),\"\")","v":3.5},{"$f":"IF(('2011 Survey responses'!FO59+'2011 Survey responses'!FQ59)>=2,AVERAGE('2011 Survey responses'!FO59,'2011 Survey responses'!FQ59),\"\")","v":5},{"$f":"IF('2011 Survey responses'!FJ59<0.5,\"\",'2011 Survey responses'!FJ59)","v":5},{"$f":"IF('2011 Survey responses'!FT59<0.5,\"\",'2011 Survey responses'!FT59)","v":3},{"$f":"IF('2011 Survey responses'!FR59<0.5,\"\",'2011 Survey responses'!FR59)","v":4},{"$f":"IF('2011 Survey responses'!FK59<0.5,\"\",'2011 Survey responses'!FK59)","v":4},{"$f":"IF('2011 Survey responses'!FP59<0.5,\"\",'2011 Survey responses'!FP59)","v":5},{"$f":"IF('2011 Survey responses'!FN59<0.5,\"\",'2011 Survey responses'!FN59)","v":4},{"$f":"IF(('2011 Survey responses'!FE59+'2011 Survey responses'!FF59)>=2,AVERAGE('2011 Survey responses'!FE59,'2011 Survey responses'!FF59),\"\")","v":4.5},{"$f":"IF('2011 Survey responses'!FS59<0.5,\"\",'2011 Survey responses'!FS59)","v":3},{"$f":"IF('2011 Survey responses'!FV59<0.5,\"\",'2011 Survey responses'!FV59)","v":3},{"$f":"IF(('2011 Survey responses'!FG59+'2011 Survey responses'!FH59)>=2,AVERAGE('2011 Survey responses'!FG59,'2011 Survey responses'!FH59),\"\")","v":3},{"$f":"IF('2011 Survey responses'!FI59<0.5,\"\",'2011 Survey responses'!FI59)","v":4},{"$f":"IF('2011 Survey responses'!FE59<0.5,\"\",'2011 Survey responses'!FE59)","v":4},{"$f":"IF('2011 Survey responses'!FF59<0.5,\"\",'2011 Survey responses'!FF59)","v":5},{"$f":"IF('2011 Survey responses'!FG59<0.5,\"\",'2011 Survey responses'!FG59)","v":3},{"$f":"IF('2011 Survey responses'!FH59<0.5,\"\",'2011 Survey responses'!FH59)","v":3},{"$f":"IF('2011 Survey responses'!FL59<0.5,\"\",'2011 Survey responses'!FL59)","v":4},{"$f":"IF('2011 Survey responses'!FM59<0.5,\"\",'2011 Survey responses'!FM59)","v":3},{"$f":"IF('2011 Survey responses'!FO59<0.5,\"\",'2011 Survey responses'!FO59)","v":5},{"$f":"IF('2011 Survey responses'!FQ59<0.5,\"\",'2011 Survey responses'!FQ59)","v":5}]
["Ethiopia",{"$f":"IF(SUM(F60)<1,\"\",AVERAGEIF('2011 Survey responses'!B60:CP60,\">1\"))","v":4.1097560975609753},{"$f":"IF(SUM(F60)<1,\"\",AVERAGEIF('2011 Survey responses'!B60:AO60,\">1\"))","v":4.4375},{"$f":"IF(SUM(F60)<1,\"\",AVERAGEIF('2011 Survey responses'!B60:BV60,\">1\"))","v":4.015625},{"$f":"IF(SUM(F60)<1,\"\",AVERAGEIF('2011 Survey responses'!V60:BV60,\">1\"))","v":3.8846153846153846},{"$f":"IF(SUM('2011 Survey responses'!B60:U60)<1,\"\",(AVERAGEIFS('2011 Survey responses'!B60:U60,'2011 Survey responses'!B60:U60,\">1\")))","v":4.583333333333333},{"$f":"IF(SUM('2011 Survey responses'!B60:H60)<1,\"\",(AVERAGEIFS('2011 Survey responses'!B60:H60,'2011 Survey responses'!B60:H60,\">1\")))","v":4.5},{"$f":"IF(SUM('2011 Survey responses'!I60:S60)<1,\"\",(AVERAGEIFS('2011 Survey responses'!I60:S60,'2011 Survey responses'!I60:S60,\">1\")))","v":4.8571428571428568},{"$f":"IF(SUM('2011 Survey responses'!T60:U60)<2.1,\"\",(AVERAGEIFS('2011 Survey responses'!T60:U60,'2011 Survey responses'!T60:U60,\">1\")))","v":3},{"$f":"IF(SUM('2011 Survey responses'!B60:C60)<2.1,\"\",((SUMIF('2011 Survey responses'!B60:C60,\">1\")+SUMIF('2011 Survey responses'!F60,\">1\"))/(COUNTIF('2011 Survey responses'!B60:C60,\">1\")+COUNTIF('2011 Survey responses'!F60,\">1\"))))","v":5},{"$f":"IF(SUM('2011 Survey responses'!D60:E60)<2.1,\"\",(AVERAGEIFS('2011 Survey responses'!D60:E60,'2011 Survey responses'!D60:E60,\">1\")))","v":5},{"$f":"IF(('2011 Survey responses'!B60+'2011 Survey responses'!D60)<2.1,\"\",((SUMIF('2011 Survey responses'!B60,\">1\")+SUMIF('2011 Survey responses'!D60,\">1\")+SUMIF('2011 Survey responses'!F60,\">1\")+SUMIF('2011 Survey responses'!K60,\">1\"))/(COUNTIF('2011 Survey responses'!B60,\">1\")+COUNTIF('2011 Survey responses'!D60,\">1\")+COUNTIF('2011 Survey responses'!F60,\">1\")+COUNTIF('2011 Survey responses'!K60,\">1\"))))","v":5.25},{"$f":"IF(SUM('2011 Survey responses'!G60:H60)<2.1,\"\",(AVERAGEIFS('2011 Survey responses'!G60:H60,'2011 Survey responses'!G60:H60,\">1\")))","v":3},{"$f":"IF(SUM('2011 Survey responses'!F60:G60)<1.5,\"\",MAX('2011 Survey responses'!F60,'2011 Survey responses'!G60))","v":5},{"$f":"IF(SUM('2011 Survey responses'!G60:H60)<1,\"\",MAX('2011 Survey responses'!G60,'2011 Survey responses'!H60))","v":3},{"$f":"IF(SUM('2011 Survey responses'!I60:L60)<4.1,\"\",(AVERAGEIFS('2011 Survey responses'!I60:L60,'2011 Survey responses'!I60:L60,\">1\")))","v":5.75},{"$f":"IF(SUM('2011 Survey responses'!M60:S60)<4.1,\"\",(AVERAGEIFS('2011 Survey responses'!M60:S60,'2011 Survey responses'!M60:S60,\">1\")))","v":3.6666666666666665},{"$f":"IF(SUM('2011 Survey responses'!T60:U60)<2.1,\"\",(AVERAGEIFS('2011 Survey responses'!T60:U60,'2011 Survey responses'!T60:U60,\">1\")))","v":3},{"$f":"IF(SUM('2011 Survey responses'!V60:AO60)<1,\"\",(AVERAGEIFS('2011 Survey responses'!V60:AO60,'2011 Survey responses'!V60:AO60,\">1\")))","v":4.3499999999999996},{"$f":"IF(SUM('2011 Survey responses'!V60:AA60)<1,\"\",(AVERAGEIFS('2011 Survey responses'!V60:AA60,'2011 Survey responses'!V60:AA60,\">1\")))","v":4.166666666666667},{"$f":"IF(SUM('2011 Survey responses'!AB60:AH60)<1,\"\",(AVERAGEIFS('2011 Survey responses'!AB60:AH60,'2011 Survey responses'!AB60:AH60,\">1\")))","v":4.7142857142857144},{"$f":"IF(SUM('2011 Survey responses'!AI60:AO60)<1,\"\",(AVERAGEIFS('2011 Survey responses'!AI60:AO60,'2011 Survey responses'!AI60:AO60,\">1\")))","v":4.1428571428571432},{"$f":"IF(('2011 Survey responses'!Y60+'2011 Survey responses'!AI60+'2011 Survey responses'!AK60)<3.1,\"\",((SUMIF('2011 Survey responses'!Y60,\">1\")+SUMIF('2011 Survey responses'!AI60,\">1\")+SUMIF('2011 Survey responses'!AK60,\">1\")+SUMIF('2011 Survey responses'!AM60,\">1\"))/(COUNTIF('2011 Survey responses'!Y60,\">1\")+COUNTIF('2011 Survey responses'!AI60,\">1\")+COUNTIF('2011 Survey responses'!AK60,\">1\")+COUNTIF('2011 Survey responses'!AM60,\">1\"))))","v":3.75},{"$f":"IF(('2011 Survey responses'!W60)<1.1,\"\",('2011 Survey responses'!W60))","v":4},{"$f":"IF(('2011 Survey responses'!Y60)<1.1,\"\",('2011 Survey responses'!Y60))","v":4},{"$f":"IF(('2011 Survey responses'!Z60)<1.1,\"\",('2011 Survey responses'!Z60))","v":4},{"$f":"IF(('2011 Survey responses'!V60+'2011 Survey responses'!X60+'2011 Survey responses'!AA60)<3.1,\"\",((SUMIF('2011 Survey responses'!V60,\">1\")+SUMIF('2011 Survey responses'!X60,\">1\")+SUMIF('2011 Survey responses'!AA60,\">1\"))/(COUNTIF('2011 Survey responses'!V60,\">1\")+COUNTIF('2011 Survey responses'!X60,\">1\")+COUNTIF('2011 Survey responses'!AA60,\">1\"))))","v":4.333333333333333},{"$f":"IF(('2011 Survey responses'!V60+'2011 Survey responses'!Y60+'2011 Survey responses'!AA60)<3.1,\"\",((SUMIF('2011 Survey responses'!V60,\">1\")+SUMIF('2011 Survey responses'!Y60,\">1\")+SUMIF('2011 Survey responses'!AA60,\">1\"))/(COUNTIF('2011 Survey responses'!V60,\">1\")+COUNTIF('2011 Survey responses'!Y60,\">1\")+COUNTIF('2011 Survey responses'!AA60,\">1\"))))","v":4.333333333333333},{"$f":"IF(SUM('2011 Survey responses'!AB60:AH60)<1,\"\",(AVERAGEIFS('2011 Survey responses'!AB60:AH60,'2011 Survey responses'!AB60:AH60,\">1\")))","v":4.7142857142857144},{"$f":"IF(SUM('2011 Survey responses'!AI60:AO60)<7.1,\"\",(AVERAGEIFS('2011 Survey responses'!AI60:AO60,'2011 Survey responses'!AI60:AO60,\">1\")))","v":4.1428571428571432},{"$f":"IF(('2011 Survey responses'!AH60)<1.1,\"\",('2011 Survey responses'!AH60))","v":5},{"$f":"IF(SUM('2011 Survey responses'!AP60:BV60)<1,\"\",(AVERAGEIFS('2011 Survey responses'!AP60:BV60,'2011 Survey responses'!AP60:BV60,\">1\")))","v":3.59375},{"$f":"IF(SUM('2011 Survey responses'!AP60:AS60)<4.1,\"\",(AVERAGEIFS('2011 Survey responses'!AP60:AS60,'2011 Survey responses'!AP60:AS60,\">1\")))","v":3.75},{"$f":"IF(SUM('2011 Survey responses'!AT60:BF60)<1,\"\",(AVERAGEIFS('2011 Survey responses'!AT60:BF60,'2011 Survey responses'!AT60:BF60,\">1\")))","v":3.6666666666666665},{"$f":"IF(SUM('2011 Survey responses'!BG60:BO60)<1,\"\",(AVERAGEIFS('2011 Survey responses'!BG60:BO60,'2011 Survey responses'!BG60:BO60,\">1\")))","v":4.1111111111111107},{"$f":"IF(SUM('2011 Survey responses'!BP60:BS60)<1,\"\",(AVERAGEIFS('2011 Survey responses'!BP60:BS60,'2011 Survey responses'!BP60:BS60,\">1\")))","v":2.5},{"$f":"IF(SUM('2011 Survey responses'!BT60:BV60)<3.1,\"\",(AVERAGEIFS('2011 Survey responses'!BT60:BV60,'2011 Survey responses'!BT60:BV60,\">1\")))","v":3},{"$f":"IF(('2011 Survey responses'!AQ60+'2011 Survey responses'!AR60+'2011 Survey responses'!BG60)<3.1,\"\",((SUMIF('2011 Survey responses'!AQ60,\">1\")+SUMIF('2011 Survey responses'!AR60,\">1\")+SUMIF('2011 Survey responses'!BG60,\">1\"))/(COUNTIF('2011 Survey responses'!AQ60,\">1\")+COUNTIF('2011 Survey responses'!AR60,\">1\")+COUNTIF('2011 Survey responses'!BG60,\">1\"))))","v":4.666666666666667},{"$f":"IF(SUM('2011 Survey responses'!AP60:AS60)<4.1,\"\",(AVERAGEIFS('2011 Survey responses'!AP60:AS60,'2011 Survey responses'!AP60:AS60,\">1\")))","v":3.75},{"$f":"IF(('2011 Survey responses'!AU60+'2011 Survey responses'!AX60+'2011 Survey responses'!BA60+'2011 Survey responses'!BC60+'2011 Survey responses'!BD60)<5.1,\"\",(SUMIF('2011 Survey responses'!AU60,\">1\")+SUMIF('2011 Survey responses'!AX60,\">1\")+SUMIF('2011 Survey responses'!BA60,\">1\")+SUMIF('2011 Survey responses'!BC60,\">1\")+SUMIF('2011 Survey responses'!BD60,\">1\"))/(COUNTIF('2011 Survey responses'!AU60,\">1\")+COUNTIF('2011 Survey responses'!AX60,\">1\")+COUNTIF('2011 Survey responses'!BA60,\">1\")+COUNTIF('2011 Survey responses'!BC60,\">1\")+COUNTIF('2011 Survey responses'!BD60,\">1\")))","v":4.5},{"$f":"IF(('2011 Survey responses'!AT60)<1.1,\"\",('2011 Survey responses'!AT60))","v":5},{"$f":"IF(SUM('2011 Survey responses'!AV60:AW60)<2.1,\"\",(AVERAGEIFS('2011 Survey responses'!AV60:AW60,'2011 Survey responses'!AV60:AW60,\">1\")))","v":2},{"$f":"IF(('2011 Survey responses'!AW60+'2011 Survey responses'!AY60)<2.1,\"\",(SUMIF('2011 Survey responses'!AW60,\">1\")+SUMIF('2011 Survey responses'!AY60,\">1\"))/(COUNTIF('2011 Survey responses'!AW60,\">1\")+COUNTIF('2011 Survey responses'!AY60,\">1\")))","v":2.5},{"$f":"IF(('2011 Survey responses'!AZ60)<1.1,\"\",('2011 Survey responses'!AZ60))","v":2},2,null,2,3,{"$f":"IF(('2011 Survey responses'!BE60)<1.1,\"\",('2011 Survey responses'!BE60))","v":3},{"$f":"IF(('2011 Survey responses'!AY60+'2011 Survey responses'!BB60+'2011 Survey responses'!BF60)<3.1,\"\",(SUMIF('2011 Survey responses'!AY60,\">1\")+SUMIF('2011 Survey responses'!BB60,\">1\")+SUMIF('2011 Survey responses'!BF60,\">1\"))/(COUNTIF('2011 Survey responses'!AY60,\">1\")+COUNTIF('2011 Survey responses'!BB60,\">1\")+COUNTIF('2011 Survey responses'!BF60,\">1\")))","v":4},3.3055555555555554,{"$f":"IF(SUM('2011 Survey responses'!BT60:BV60)<3.1,\"\",(AVERAGEIFS('2011 Survey responses'!BT60:BV60,'2011 Survey responses'!BT60:BV60,\">1\")))","v":3},{"$f":"IF(SUM('2011 Survey responses'!BW60:CP60)<1,\"\",(AVERAGEIFS('2011 Survey responses'!BW60:CP60,'2011 Survey responses'!BW60:CP60,\">1\")))","v":4.4444444444444446},{"$f":"IF(SUM('2011 Survey responses'!BW60:CF60)<1,\"\",(AVERAGEIFS('2011 Survey responses'!BW60:CF60,'2011 Survey responses'!BW60:CF60,\">1\")))","v":4.4444444444444446},{"$f":"IF(SUM('2011 Survey responses'!CG60:CP60)<1,\"\",(AVERAGEIFS('2011 Survey responses'!CG60:CP60,'2011 Survey responses'!CG60:CP60,\">1\")))","v":4.4444444444444446},{"$f":"IF(SUM('2011 Survey responses'!BX60:CF60)<1,\"\",(AVERAGEIFS('2011 Survey responses'!BX60:CF60,'2011 Survey responses'!BX60:CF60,\">1\")))","v":4.375},{"$f":"IF(SUM('2011 Survey responses'!CH60:CP60)<1,\"\",(AVERAGEIFS('2011 Survey responses'!CH60:CP60,'2011 Survey responses'!CH60:CP60,\">1\")))","v":4.375},{"$f":"IF(SUM('2011 Survey responses'!BW60:CP60)<1,\"\",(AVERAGEIFS('2011 Survey responses'!BW60:CP60,'2011 Survey responses'!BW60:CP60,\">1\")))","v":4.4444444444444446},{"$f":"IF(('2011 Survey responses'!BW60+'2011 Survey responses'!CG60)<2.1,\"\",(SUMIF('2011 Survey responses'!BW60,\">1\")+SUMIF('2011 Survey responses'!CG60,\">1\"))/(COUNTIF('2011 Survey responses'!BW60,\">1\")+COUNTIF('2011 Survey responses'!CG60,\">1\")))","v":5},{"$f":"IF(('2011 Survey responses'!BX60+'2011 Survey responses'!CH60)<2.1,\"\",(SUMIF('2011 Survey responses'!BX60,\">1\")+SUMIF('2011 Survey responses'!CH60,\">1\"))/(COUNTIF('2011 Survey responses'!BX60,\">1\")+COUNTIF('2011 Survey responses'!CH60,\">1\")))","v":5},{"$f":"IF(('2011 Survey responses'!BY60+'2011 Survey responses'!CI60)<2.1,\"\",(SUMIF('2011 Survey responses'!BY60,\">1\")+SUMIF('2011 Survey responses'!CI60,\">1\"))/(COUNTIF('2011 Survey responses'!BY60,\">1\")+COUNTIF('2011 Survey responses'!CI60,\">1\")))","v":5},{"$f":"IF('2011 Survey responses'!CQ60<0.5,\"\",'2011 Survey responses'!CQ60)","v":4},{"$f":"IF('2011 Survey responses'!CR60<0.5,\"\",'2011 Survey responses'!CR60)","v":""},{"$f":"IF('2011 Survey responses'!CS60<0.5,\"\",'2011 Survey responses'!CS60)","v":""},{"$f":"IF('2011 Survey responses'!CT60<0.5,\"\",'2011 Survey responses'!CT60)","v":""},{"$f":"IF('2011 Survey responses'!CU60<0.5,\"\",'2011 Survey responses'!CU60)","v":""},{"$f":"IF('2011 Survey responses'!CV60<0.5,\"\",'2011 Survey responses'!CV60)","v":""},{"$f":"IF(SUM('2011 Survey responses'!CW60:DL60)<1,\"\",(AVERAGE('2011 Survey responses'!CW60:DL60)))","v":""},{"$f":"IF(SUM('2011 Survey responses'!CW60:CZ60)<1,\"\",(AVERAGE('2011 Survey responses'!CW60:CZ60)))","v":""},{"$f":"IF(SUM('2011 Survey responses'!DA60:DD60)<1,\"\",(AVERAGE('2011 Survey responses'!DA60:DD60)))","v":""},{"$f":"IF(SUM('2011 Survey responses'!DE60:DH60)<1,\"\",(AVERAGE('2011 Survey responses'!DE60:DH60)))","v":""},{"$f":"IF(SUM('2011 Survey responses'!DI60:DL60)<1,\"\",(AVERAGE('2011 Survey responses'!DI60:DL60)))","v":""},{"$f":"IF(('2011 Survey responses'!CW60+'2011 Survey responses'!DA60+'2011 Survey responses'!DE60+'2011 Survey responses'!DI60)<1,\"\",AVERAGE('2011 Survey responses'!CW60,'2011 Survey responses'!DA60,'2011 Survey responses'!DE60,'2011 Survey responses'!DI60))","v":""},{"$f":"IF(('2011 Survey responses'!CX60+'2011 Survey responses'!DB60+'2011 Survey responses'!DF60+'2011 Survey responses'!DJ60)<1,\"\",AVERAGE('2011 Survey responses'!CX60,'2011 Survey responses'!DB60,'2011 Survey responses'!DF60,'2011 Survey responses'!DJ60))","v":""},{"$f":"IF(('2011 Survey responses'!CY60+'2011 Survey responses'!DC60+'2011 Survey responses'!DG60+'2011 Survey responses'!DK60)<1,\"\",AVERAGE('2011 Survey responses'!CY60,'2011 Survey responses'!DC60,'2011 Survey responses'!DG60,'2011 Survey responses'!DK60))","v":""},{"$f":"IF(('2011 Survey responses'!CZ60+'2011 Survey responses'!DD60+'2011 Survey responses'!DH60+'2011 Survey responses'!DL60)<1,\"\",AVERAGE('2011 Survey responses'!CZ60,'2011 Survey responses'!DD60,'2011 Survey responses'!DH60,'2011 Survey responses'!DL60))","v":""},{"$f":"IF('2011 Survey responses'!CW60<0.5,\"\",'2011 Survey responses'!CW60)","v":""},{"$f":"IF('2011 Survey responses'!CX60<0.5,\"\",'2011 Survey responses'!CX60)","v":""},{"$f":"IF('2011 Survey responses'!CY60<0.5,\"\",'2011 Survey responses'!CY60)","v":""},{"$f":"IF('2011 Survey responses'!CZ60<0.5,\"\",'2011 Survey responses'!CZ60)","v":""},{"$f":"IF('2011 Survey responses'!DA60<0.5,\"\",'2011 Survey responses'!DA60)","v":""},{"$f":"IF('2011 Survey responses'!DB60<0.5,\"\",'2011 Survey responses'!DB60)","v":""},{"$f":"IF('2011 Survey responses'!DC60<0.5,\"\",'2011 Survey responses'!DC60)","v":""},{"$f":"IF('2011 Survey responses'!DD60<0.5,\"\",'2011 Survey responses'!DD60)","v":""},{"$f":"IF('2011 Survey responses'!DE60<0.5,\"\",'2011 Survey responses'!DE60)","v":""},{"$f":"IF('2011 Survey responses'!DF60<0.5,\"\",'2011 Survey responses'!DF60)","v":""},{"$f":"IF('2011 Survey responses'!DG60<0.5,\"\",'2011 Survey responses'!DG60)","v":""},{"$f":"IF('2011 Survey responses'!DH60<0.5,\"\",'2011 Survey responses'!DH60)","v":""},{"$f":"IF('2011 Survey responses'!DI60<0.5,\"\",'2011 Survey responses'!DI60)","v":""},{"$f":"IF('2011 Survey responses'!DJ60<0.5,\"\",'2011 Survey responses'!DJ60)","v":""},{"$f":"IF('2011 Survey responses'!DK60<0.5,\"\",'2011 Survey responses'!DK60)","v":""},{"$f":"IF('2011 Survey responses'!DL60<0.5,\"\",'2011 Survey responses'!DL60)","v":""},{"$f":"IF('2011 Survey responses'!DU60=4,4,IF('2011 Survey responses'!DU60=5,4,\"\"))","v":""},{"$f":"IF('2011 Survey responses'!DV60=4,3,IF('2011 Survey responses'!DV60=5,3,\"\"))","v":3},"",{"$f":"IF(CQ60=2,CQ60,IF(CO60=4,CO60,IF(CP60=3,CP60,IF('2011 Survey responses'!GT60=1,1,\"\"))))","v":3},{"$f":"IF('2011 Survey responses'!DO60<0.5,\"\",'2011 Survey responses'!DO60)","v":4},{"$f":"IF('2011 Survey responses'!DP60<0.5,\"\",'2011 Survey responses'!DP60)","v":3},{"$f":"IF('2011 Survey responses'!DQ60<0.5,\"\",'2011 Survey responses'!DQ60)","v":3},{"$f":"IF('2011 Survey responses'!DR60<0.5,\"\",'2011 Survey responses'!DR60)","v":4},{"$f":"IF('2011 Survey responses'!DS60<0.5,\"\",'2011 Survey responses'!DS60)","v":3},{"$f":"IF('2011 Survey responses'!DT60<0.5,\"\",'2011 Survey responses'!DT60)","v":3},{"$f":"IF('2011 Survey responses'!DU60<0.5,\"\",'2011 Survey responses'!DU60)","v":3},{"$f":"IF('2011 Survey responses'!DV60<0.5,\"\",'2011 Survey responses'!DV60)","v":4},{"$f":"IF('2011 Survey responses'!DW60<0.5,\"\",'2011 Survey responses'!DW60)","v":4},{"$f":"IF('2011 Survey responses'!DX60<0.5,\"\",'2011 Survey responses'!DX60)","v":3},{"$f":"IF('2011 Survey responses'!DY60<0.5,\"\",'2011 Survey responses'!DY60)","v":3},{"$f":"IF('2011 Survey responses'!DZ60<0.5,\"\",'2011 Survey responses'!DZ60)","v":4},{"$f":"IF('2011 Survey responses'!EA60<0.5,\"\",'2011 Survey responses'!EA60)","v":2},{"$f":"IF('2011 Survey responses'!EB60<0.5,\"\",'2011 Survey responses'!EB60)","v":2},{"$f":"IF('2011 Survey responses'!EC60<0.5,\"\",'2011 Survey responses'!EC60)","v":2},{"$f":"IF('2011 Survey responses'!ED60<0.5,\"\",'2011 Survey responses'!ED60)","v":1},{"$f":"IF('2011 Survey responses'!EE60<0.5,\"\",'2011 Survey responses'!EE60)","v":3},{"$f":"IF('2011 Survey responses'!EF60<0.5,\"\",'2011 Survey responses'!EF60)","v":2},{"$f":"IF('2011 Survey responses'!EG60<0.5,\"\",'2011 Survey responses'!EG60)","v":4},{"$f":"IF('2011 Survey responses'!EH60<0.5,\"\",'2011 Survey responses'!EH60)","v":3},{"$f":"IF('2011 Survey responses'!EI60<0.5,\"\",'2011 Survey responses'!EI60)","v":4},{"$f":"IF('2011 Survey responses'!EJ60<0.5,\"\",'2011 Survey responses'!EJ60)","v":4},{"$f":"IF('2011 Survey responses'!EK60<0.5,\"\",'2011 Survey responses'!EK60)","v":2},{"$f":"IF('2011 Survey responses'!EL60<0.5,\"\",'2011 Survey responses'!EL60)","v":2},{"$f":"IF('2011 Survey responses'!EM60<0.5,\"\",'2011 Survey responses'!EM60)","v":4},{"$f":"IF('2011 Survey responses'!EN60<0.5,\"\",'2011 Survey responses'!EN60)","v":4},{"$f":"IF('2011 Survey responses'!EO60<0.5,\"\",'2011 Survey responses'!EO60)","v":4},{"$f":"IF('2011 Survey responses'!EP60<0.5,\"\",'2011 Survey responses'!EP60)","v":4},{"$f":"IF(('2011 Survey responses'!EW60+'2011 Survey responses'!EX60)>=2,AVERAGE('2011 Survey responses'!EW60,'2011 Survey responses'!EY60),\"\")","v":4},{"$f":"IF('2011 Survey responses'!EX60<0.5,\"\",'2011 Survey responses'!EX60)","v":4},{"$f":"IF('2011 Survey responses'!EZ60<0.5,\"\",'2011 Survey responses'!EZ60)","v":3},{"$f":"IF('2011 Survey responses'!FB60<0.5,\"\",'2011 Survey responses'!FB60)","v":3},{"$f":"IF('2011 Survey responses'!FD60<0.5,\"\",'2011 Survey responses'!FD60)","v":4},{"$f":"IF('2011 Survey responses'!FC60<0.5,\"\",'2011 Survey responses'!FC60)","v":4},{"$f":"IF(('2011 Survey responses'!EM60+'2011 Survey responses'!EN60)>=2,AVERAGE('2011 Survey responses'!EM60,'2011 Survey responses'!EN60),\"\")","v":4},{"$f":"IF('2011 Survey responses'!ES60<0.5,\"\",'2011 Survey responses'!ES60)","v":3},{"$f":"IF(('2011 Survey responses'!ET60+'2011 Survey responses'!EU60)>=2,AVERAGE('2011 Survey responses'!ET60,'2011 Survey responses'!EU60),\"\")","v":4},{"$f":"IF('2011 Survey responses'!EV60<0.5,\"\",'2011 Survey responses'!EV60)","v":3},{"$f":"IF('2011 Survey responses'!FA60<0.5,\"\",'2011 Survey responses'!FA60)","v":3},{"$f":"IF('2011 Survey responses'!ER60<0.5,\"\",'2011 Survey responses'!ER60)","v":3},{"$f":"IF(('2011 Survey responses'!EO60+'2011 Survey responses'!EP60)>=2,AVERAGE('2011 Survey responses'!EO60,'2011 Survey responses'!EP60),\"\")","v":4},{"$f":"IF('2011 Survey responses'!EQ60<0.5,\"\",'2011 Survey responses'!EQ60)","v":3},{"$f":"IF('2011 Survey responses'!ET60<0.5,\"\",'2011 Survey responses'!ET60)","v":4},{"$f":"IF('2011 Survey responses'!EU60<0.5,\"\",'2011 Survey responses'!EU60)","v":4},{"$f":"IF('2011 Survey responses'!EW60<0.5,\"\",'2011 Survey responses'!EW60)","v":4},{"$f":"IF('2011 Survey responses'!EY60<0.5,\"\",'2011 Survey responses'!EY60)","v":4},{"$f":"IF('2011 Survey responses'!FU60<0.5,\"\",'2011 Survey responses'!FU60)","v":2},{"$f":"IF(('2011 Survey responses'!FL60+'2011 Survey responses'!FM60)>=2,AVERAGE('2011 Survey responses'!FL60,'2011 Survey responses'!FM60),\"\")","v":2},{"$f":"IF(('2011 Survey responses'!FO60+'2011 Survey responses'!FQ60)>=2,AVERAGE('2011 Survey responses'!FO60,'2011 Survey responses'!FQ60),\"\")","v":1},{"$f":"IF('2011 Survey responses'!FJ60<0.5,\"\",'2011 Survey responses'!FJ60)","v":2},{"$f":"IF('2011 Survey responses'!FT60<0.5,\"\",'2011 Survey responses'!FT60)","v":2},{"$f":"IF('2011 Survey responses'!FR60<0.5,\"\",'2011 Survey responses'!FR60)","v":2},{"$f":"IF('2011 Survey responses'!FK60<0.5,\"\",'2011 Survey responses'!FK60)","v":2},{"$f":"IF('2011 Survey responses'!FP60<0.5,\"\",'2011 Survey responses'!FP60)","v":1},{"$f":"IF('2011 Survey responses'!FN60<0.5,\"\",'2011 Survey responses'!FN60)","v":1},{"$f":"IF(('2011 Survey responses'!FE60+'2011 Survey responses'!FF60)>=2,AVERAGE('2011 Survey responses'!FE60,'2011 Survey responses'!FF60),\"\")","v":1.5},{"$f":"IF('2011 Survey responses'!FS60<0.5,\"\",'2011 Survey responses'!FS60)","v":2},{"$f":"IF('2011 Survey responses'!FV60<0.5,\"\",'2011 Survey responses'!FV60)","v":2},{"$f":"IF(('2011 Survey responses'!FG60+'2011 Survey responses'!FH60)>=2,AVERAGE('2011 Survey responses'!FG60,'2011 Survey responses'!FH60),\"\")","v":2},{"$f":"IF('2011 Survey responses'!FI60<0.5,\"\",'2011 Survey responses'!FI60)","v":2},{"$f":"IF('2011 Survey responses'!FE60<0.5,\"\",'2011 Survey responses'!FE60)","v":2},{"$f":"IF('2011 Survey responses'!FF60<0.5,\"\",'2011 Survey responses'!FF60)","v":1},{"$f":"IF('2011 Survey responses'!FG60<0.5,\"\",'2011 Survey responses'!FG60)","v":2},{"$f":"IF('2011 Survey responses'!FH60<0.5,\"\",'2011 Survey responses'!FH60)","v":2},{"$f":"IF('2011 Survey responses'!FL60<0.5,\"\",'2011 Survey responses'!FL60)","v":2},{"$f":"IF('2011 Survey responses'!FM60<0.5,\"\",'2011 Survey responses'!FM60)","v":2},{"$f":"IF('2011 Survey responses'!FO60<0.5,\"\",'2011 Survey responses'!FO60)","v":1},{"$f":"IF('2011 Survey responses'!FQ60<0.5,\"\",'2011 Survey responses'!FQ60)","v":1}]
["Fiji",{"$f":"IF(SUM(F61)<1,\"\",AVERAGEIF('2011 Survey responses'!B61:CP61,\">1\"))","v":3.161290322580645},{"$f":"IF(SUM(F61)<1,\"\",AVERAGEIF('2011 Survey responses'!B61:AO61,\">1\"))","v":2.7},{"$f":"IF(SUM(F61)<1,\"\",AVERAGEIF('2011 Survey responses'!B61:BV61,\">1\"))","v":2.9589041095890409},{"$f":"IF(SUM(F61)<1,\"\",AVERAGEIF('2011 Survey responses'!V61:BV61,\">1\"))","v":3.2075471698113209},{"$f":"IF(SUM('2011 Survey responses'!B61:U61)<1,\"\",(AVERAGEIFS('2011 Survey responses'!B61:U61,'2011 Survey responses'!B61:U61,\">1\")))","v":2.2999999999999998},{"$f":"IF(SUM('2011 Survey responses'!B61:H61)<1,\"\",(AVERAGEIFS('2011 Survey responses'!B61:H61,'2011 Survey responses'!B61:H61,\">1\")))","v":2.4285714285714284},{"$f":"IF(SUM('2011 Survey responses'!I61:S61)<1,\"\",(AVERAGEIFS('2011 Survey responses'!I61:S61,'2011 Survey responses'!I61:S61,\">1\")))","v":2.2727272727272729},{"$f":"IF(SUM('2011 Survey responses'!T61:U61)<2.1,\"\",(AVERAGEIFS('2011 Survey responses'!T61:U61,'2011 Survey responses'!T61:U61,\">1\")))","v":2},{"$f":"IF(SUM('2011 Survey responses'!B61:C61)<2.1,\"\",((SUMIF('2011 Survey responses'!B61:C61,\">1\")+SUMIF('2011 Survey responses'!F61,\">1\"))/(COUNTIF('2011 Survey responses'!B61:C61,\">1\")+COUNTIF('2011 Survey responses'!F61,\">1\"))))","v":2.6666666666666665},{"$f":"IF(SUM('2011 Survey responses'!D61:E61)<2.1,\"\",(AVERAGEIFS('2011 Survey responses'!D61:E61,'2011 Survey responses'!D61:E61,\">1\")))","v":2.5},{"$f":"IF(('2011 Survey responses'!B61+'2011 Survey responses'!D61)<2.1,\"\",((SUMIF('2011 Survey responses'!B61,\">1\")+SUMIF('2011 Survey responses'!D61,\">1\")+SUMIF('2011 Survey responses'!F61,\">1\")+SUMIF('2011 Survey responses'!K61,\">1\"))/(COUNTIF('2011 Survey responses'!B61,\">1\")+COUNTIF('2011 Survey responses'!D61,\">1\")+COUNTIF('2011 Survey responses'!F61,\">1\")+COUNTIF('2011 Survey responses'!K61,\">1\"))))","v":3},{"$f":"IF(SUM('2011 Survey responses'!G61:H61)<2.1,\"\",(AVERAGEIFS('2011 Survey responses'!G61:H61,'2011 Survey responses'!G61:H61,\">1\")))","v":2},{"$f":"IF(SUM('2011 Survey responses'!F61:G61)<1.5,\"\",MAX('2011 Survey responses'!F61,'2011 Survey responses'!G61))","v":3},{"$f":"IF(SUM('2011 Survey responses'!G61:H61)<1,\"\",MAX('2011 Survey responses'!G61,'2011 Survey responses'!H61))","v":2},{"$f":"IF(SUM('2011 Survey responses'!I61:L61)<4.1,\"\",(AVERAGEIFS('2011 Survey responses'!I61:L61,'2011 Survey responses'!I61:L61,\">1\")))","v":2.5},{"$f":"IF(SUM('2011 Survey responses'!M61:S61)<4.1,\"\",(AVERAGEIFS('2011 Survey responses'!M61:S61,'2011 Survey responses'!M61:S61,\">1\")))","v":2.1428571428571428},{"$f":"IF(SUM('2011 Survey responses'!T61:U61)<2.1,\"\",(AVERAGEIFS('2011 Survey responses'!T61:U61,'2011 Survey responses'!T61:U61,\">1\")))","v":2},{"$f":"IF(SUM('2011 Survey responses'!V61:AO61)<1,\"\",(AVERAGEIFS('2011 Survey responses'!V61:AO61,'2011 Survey responses'!V61:AO61,\">1\")))","v":3.1},{"$f":"IF(SUM('2011 Survey responses'!V61:AA61)<1,\"\",(AVERAGEIFS('2011 Survey responses'!V61:AA61,'2011 Survey responses'!V61:AA61,\">1\")))","v":3},{"$f":"IF(SUM('2011 Survey responses'!AB61:AH61)<1,\"\",(AVERAGEIFS('2011 Survey responses'!AB61:AH61,'2011 Survey responses'!AB61:AH61,\">1\")))","v":3.8571428571428572},{"$f":"IF(SUM('2011 Survey responses'!AI61:AO61)<1,\"\",(AVERAGEIFS('2011 Survey responses'!AI61:AO61,'2011 Survey responses'!AI61:AO61,\">1\")))","v":2.4285714285714284},{"$f":"IF(('2011 Survey responses'!Y61+'2011 Survey responses'!AI61+'2011 Survey responses'!AK61)<3.1,\"\",((SUMIF('2011 Survey responses'!Y61,\">1\")+SUMIF('2011 Survey responses'!AI61,\">1\")+SUMIF('2011 Survey responses'!AK61,\">1\")+SUMIF('2011 Survey responses'!AM61,\">1\"))/(COUNTIF('2011 Survey responses'!Y61,\">1\")+COUNTIF('2011 Survey responses'!AI61,\">1\")+COUNTIF('2011 Survey responses'!AK61,\">1\")+COUNTIF('2011 Survey responses'!AM61,\">1\"))))","v":2.5},{"$f":"IF(('2011 Survey responses'!W61)<1.1,\"\",('2011 Survey responses'!W61))","v":4},{"$f":"IF(('2011 Survey responses'!Y61)<1.1,\"\",('2011 Survey responses'!Y61))","v":2},{"$f":"IF(('2011 Survey responses'!Z61)<1.1,\"\",('2011 Survey responses'!Z61))","v":2},{"$f":"IF(('2011 Survey responses'!V61+'2011 Survey responses'!X61+'2011 Survey responses'!AA61)<3.1,\"\",((SUMIF('2011 Survey responses'!V61,\">1\")+SUMIF('2011 Survey responses'!X61,\">1\")+SUMIF('2011 Survey responses'!AA61,\">1\"))/(COUNTIF('2011 Survey responses'!V61,\">1\")+COUNTIF('2011 Survey responses'!X61,\">1\")+COUNTIF('2011 Survey responses'!AA61,\">1\"))))","v":3.3333333333333335},{"$f":"IF(('2011 Survey responses'!V61+'2011 Survey responses'!Y61+'2011 Survey responses'!AA61)<3.1,\"\",((SUMIF('2011 Survey responses'!V61,\">1\")+SUMIF('2011 Survey responses'!Y61,\">1\")+SUMIF('2011 Survey responses'!AA61,\">1\"))/(COUNTIF('2011 Survey responses'!V61,\">1\")+COUNTIF('2011 Survey responses'!Y61,\">1\")+COUNTIF('2011 Survey responses'!AA61,\">1\"))))","v":2.6666666666666665},{"$f":"IF(SUM('2011 Survey responses'!AB61:AH61)<1,\"\",(AVERAGEIFS('2011 Survey responses'!AB61:AH61,'2011 Survey responses'!AB61:AH61,\">1\")))","v":3.8571428571428572},{"$f":"IF(SUM('2011 Survey responses'!AI61:AO61)<7.1,\"\",(AVERAGEIFS('2011 Survey responses'!AI61:AO61,'2011 Survey responses'!AI61:AO61,\">1\")))","v":2.4285714285714284},{"$f":"IF(('2011 Survey responses'!AH61)<1.1,\"\",('2011 Survey responses'!AH61))","v":3},{"$f":"IF(SUM('2011 Survey responses'!AP61:BV61)<1,\"\",(AVERAGEIFS('2011 Survey responses'!AP61:BV61,'2011 Survey responses'!AP61:BV61,\">1\")))","v":3.2727272727272729},{"$f":"IF(SUM('2011 Survey responses'!AP61:AS61)<4.1,\"\",(AVERAGEIFS('2011 Survey responses'!AP61:AS61,'2011 Survey responses'!AP61:AS61,\">1\")))","v":3.5},{"$f":"IF(SUM('2011 Survey responses'!AT61:BF61)<1,\"\",(AVERAGEIFS('2011 Survey responses'!AT61:BF61,'2011 Survey responses'!AT61:BF61,\">1\")))","v":3.1538461538461537},{"$f":"IF(SUM('2011 Survey responses'!BG61:BO61)<1,\"\",(AVERAGEIFS('2011 Survey responses'!BG61:BO61,'2011 Survey responses'!BG61:BO61,\">1\")))","v":3.7777777777777777},{"$f":"IF(SUM('2011 Survey responses'!BP61:BS61)<1,\"\",(AVERAGEIFS('2011 Survey responses'!BP61:BS61,'2011 Survey responses'!BP61:BS61,\">1\")))","v":3.25},{"$f":"IF(SUM('2011 Survey responses'!BT61:BV61)<3.1,\"\",(AVERAGEIFS('2011 Survey responses'!BT61:BV61,'2011 Survey responses'!BT61:BV61,\">1\")))","v":2},{"$f":"IF(('2011 Survey responses'!AQ61+'2011 Survey responses'!AR61+'2011 Survey responses'!BG61)<3.1,\"\",((SUMIF('2011 Survey responses'!AQ61,\">1\")+SUMIF('2011 Survey responses'!AR61,\">1\")+SUMIF('2011 Survey responses'!BG61,\">1\"))/(COUNTIF('2011 Survey responses'!AQ61,\">1\")+COUNTIF('2011 Survey responses'!AR61,\">1\")+COUNTIF('2011 Survey responses'!BG61,\">1\"))))","v":4},{"$f":"IF(SUM('2011 Survey responses'!AP61:AS61)<4.1,\"\",(AVERAGEIFS('2011 Survey responses'!AP61:AS61,'2011 Survey responses'!AP61:AS61,\">1\")))","v":3.5},{"$f":"IF(('2011 Survey responses'!AU61+'2011 Survey responses'!AX61+'2011 Survey responses'!BA61+'2011 Survey responses'!BC61+'2011 Survey responses'!BD61)<5.1,\"\",(SUMIF('2011 Survey responses'!AU61,\">1\")+SUMIF('2011 Survey responses'!AX61,\">1\")+SUMIF('2011 Survey responses'!BA61,\">1\")+SUMIF('2011 Survey responses'!BC61,\">1\")+SUMIF('2011 Survey responses'!BD61,\">1\"))/(COUNTIF('2011 Survey responses'!AU61,\">1\")+COUNTIF('2011 Survey responses'!AX61,\">1\")+COUNTIF('2011 Survey responses'!BA61,\">1\")+COUNTIF('2011 Survey responses'!BC61,\">1\")+COUNTIF('2011 Survey responses'!BD61,\">1\")))","v":3.2},{"$f":"IF(('2011 Survey responses'!AT61)<1.1,\"\",('2011 Survey responses'!AT61))","v":4},{"$f":"IF(SUM('2011 Survey responses'!AV61:AW61)<2.1,\"\",(AVERAGEIFS('2011 Survey responses'!AV61:AW61,'2011 Survey responses'!AV61:AW61,\">1\")))","v":2},{"$f":"IF(('2011 Survey responses'!AW61+'2011 Survey responses'!AY61)<2.1,\"\",(SUMIF('2011 Survey responses'!AW61,\">1\")+SUMIF('2011 Survey responses'!AY61,\">1\"))/(COUNTIF('2011 Survey responses'!AW61,\">1\")+COUNTIF('2011 Survey responses'!AY61,\">1\")))","v":2},{"$f":"IF(('2011 Survey responses'!AZ61)<1.1,\"\",('2011 Survey responses'!AZ61))","v":4},4,2,2,2,{"$f":"IF(('2011 Survey responses'!BE61)<1.1,\"\",('2011 Survey responses'!BE61))","v":3},{"$f":"IF(('2011 Survey responses'!AY61+'2011 Survey responses'!BB61+'2011 Survey responses'!BF61)<3.1,\"\",(SUMIF('2011 Survey responses'!AY61,\">1\")+SUMIF('2011 Survey responses'!BB61,\">1\")+SUMIF('2011 Survey responses'!BF61,\">1\"))/(COUNTIF('2011 Survey responses'!AY61,\">1\")+COUNTIF('2011 Survey responses'!BB61,\">1\")+COUNTIF('2011 Survey responses'!BF61,\">1\")))","v":3.3333333333333335},3.5138888888888888,{"$f":"IF(SUM('2011 Survey responses'!BT61:BV61)<3.1,\"\",(AVERAGEIFS('2011 Survey responses'!BT61:BV61,'2011 Survey responses'!BT61:BV61,\">1\")))","v":2},{"$f":"IF(SUM('2011 Survey responses'!BW61:CP61)<1,\"\",(AVERAGEIFS('2011 Survey responses'!BW61:CP61,'2011 Survey responses'!BW61:CP61,\">1\")))","v":3.9},{"$f":"IF(SUM('2011 Survey responses'!BW61:CF61)<1,\"\",(AVERAGEIFS('2011 Survey responses'!BW61:CF61,'2011 Survey responses'!BW61:CF61,\">1\")))","v":4},{"$f":"IF(SUM('2011 Survey responses'!CG61:CP61)<1,\"\",(AVERAGEIFS('2011 Survey responses'!CG61:CP61,'2011 Survey responses'!CG61:CP61,\">1\")))","v":3.8},{"$f":"IF(SUM('2011 Survey responses'!BX61:CF61)<1,\"\",(AVERAGEIFS('2011 Survey responses'!BX61:CF61,'2011 Survey responses'!BX61:CF61,\">1\")))","v":4},{"$f":"IF(SUM('2011 Survey responses'!CH61:CP61)<1,\"\",(AVERAGEIFS('2011 Survey responses'!CH61:CP61,'2011 Survey responses'!CH61:CP61,\">1\")))","v":3.7777777777777777},{"$f":"IF(SUM('2011 Survey responses'!BW61:CP61)<1,\"\",(AVERAGEIFS('2011 Survey responses'!BW61:CP61,'2011 Survey responses'!BW61:CP61,\">1\")))","v":3.9},{"$f":"IF(('2011 Survey responses'!BW61+'2011 Survey responses'!CG61)<2.1,\"\",(SUMIF('2011 Survey responses'!BW61,\">1\")+SUMIF('2011 Survey responses'!CG61,\">1\"))/(COUNTIF('2011 Survey responses'!BW61,\">1\")+COUNTIF('2011 Survey responses'!CG61,\">1\")))","v":4},{"$f":"IF(('2011 Survey responses'!BX61+'2011 Survey responses'!CH61)<2.1,\"\",(SUMIF('2011 Survey responses'!BX61,\">1\")+SUMIF('2011 Survey responses'!CH61,\">1\"))/(COUNTIF('2011 Survey responses'!BX61,\">1\")+COUNTIF('2011 Survey responses'!CH61,\">1\")))","v":4},{"$f":"IF(('2011 Survey responses'!BY61+'2011 Survey responses'!CI61)<2.1,\"\",(SUMIF('2011 Survey responses'!BY61,\">1\")+SUMIF('2011 Survey responses'!CI61,\">1\"))/(COUNTIF('2011 Survey responses'!BY61,\">1\")+COUNTIF('2011 Survey responses'!CI61,\">1\")))","v":4.5},{"$f":"IF('2011 Survey responses'!CQ61<0.5,\"\",'2011 Survey responses'!CQ61)","v":4},{"$f":"IF('2011 Survey responses'!CR61<0.5,\"\",'2011 Survey responses'!CR61)","v":4},{"$f":"IF('2011 Survey responses'!CS61<0.5,\"\",'2011 Survey responses'!CS61)","v":4},{"$f":"IF('2011 Survey responses'!CT61<0.5,\"\",'2011 Survey responses'!CT61)","v":2},{"$f":"IF('2011 Survey responses'!CU61<0.5,\"\",'2011 Survey responses'!CU61)","v":4},{"$f":"IF('2011 Survey responses'!CV61<0.5,\"\",'2011 Survey responses'!CV61)","v":1},{"$f":"IF(SUM('2011 Survey responses'!CW61:DL61)<1,\"\",(AVERAGE('2011 Survey responses'!CW61:DL61)))","v":4},{"$f":"IF(SUM('2011 Survey responses'!CW61:CZ61)<1,\"\",(AVERAGE('2011 Survey responses'!CW61:CZ61)))","v":4},{"$f":"IF(SUM('2011 Survey responses'!DA61:DD61)<1,\"\",(AVERAGE('2011 Survey responses'!DA61:DD61)))","v":4},{"$f":"IF(SUM('2011 Survey responses'!DE61:DH61)<1,\"\",(AVERAGE('2011 Survey responses'!DE61:DH61)))","v":4},{"$f":"IF(SUM('2011 Survey responses'!DI61:DL61)<1,\"\",(AVERAGE('2011 Survey responses'!DI61:DL61)))","v":4},{"$f":"IF(('2011 Survey responses'!CW61+'2011 Survey responses'!DA61+'2011 Survey responses'!DE61+'2011 Survey responses'!DI61)<1,\"\",AVERAGE('2011 Survey responses'!CW61,'2011 Survey responses'!DA61,'2011 Survey responses'!DE61,'2011 Survey responses'!DI61))","v":4},{"$f":"IF(('2011 Survey responses'!CX61+'2011 Survey responses'!DB61+'2011 Survey responses'!DF61+'2011 Survey responses'!DJ61)<1,\"\",AVERAGE('2011 Survey responses'!CX61,'2011 Survey responses'!DB61,'2011 Survey responses'!DF61,'2011 Survey responses'!DJ61))","v":4},{"$f":"IF(('2011 Survey responses'!CY61+'2011 Survey responses'!DC61+'2011 Survey responses'!DG61+'2011 Survey responses'!DK61)<1,\"\",AVERAGE('2011 Survey responses'!CY61,'2011 Survey responses'!DC61,'2011 Survey responses'!DG61,'2011 Survey responses'!DK61))","v":4},{"$f":"IF(('2011 Survey responses'!CZ61+'2011 Survey responses'!DD61+'2011 Survey responses'!DH61+'2011 Survey responses'!DL61)<1,\"\",AVERAGE('2011 Survey responses'!CZ61,'2011 Survey responses'!DD61,'2011 Survey responses'!DH61,'2011 Survey responses'!DL61))","v":4},{"$f":"IF('2011 Survey responses'!CW61<0.5,\"\",'2011 Survey responses'!CW61)","v":4},{"$f":"IF('2011 Survey responses'!CX61<0.5,\"\",'2011 Survey responses'!CX61)","v":4},{"$f":"IF('2011 Survey responses'!CY61<0.5,\"\",'2011 Survey responses'!CY61)","v":4},{"$f":"IF('2011 Survey responses'!CZ61<0.5,\"\",'2011 Survey responses'!CZ61)","v":4},{"$f":"IF('2011 Survey responses'!DA61<0.5,\"\",'2011 Survey responses'!DA61)","v":4},{"$f":"IF('2011 Survey responses'!DB61<0.5,\"\",'2011 Survey responses'!DB61)","v":4},{"$f":"IF('2011 Survey responses'!DC61<0.5,\"\",'2011 Survey responses'!DC61)","v":4},{"$f":"IF('2011 Survey responses'!DD61<0.5,\"\",'2011 Survey responses'!DD61)","v":4},{"$f":"IF('2011 Survey responses'!DE61<0.5,\"\",'2011 Survey responses'!DE61)","v":4},{"$f":"IF('2011 Survey responses'!DF61<0.5,\"\",'2011 Survey responses'!DF61)","v":4},{"$f":"IF('2011 Survey responses'!DG61<0.5,\"\",'2011 Survey responses'!DG61)","v":4},{"$f":"IF('2011 Survey responses'!DH61<0.5,\"\",'2011 Survey responses'!DH61)","v":4},{"$f":"IF('2011 Survey responses'!DI61<0.5,\"\",'2011 Survey responses'!DI61)","v":4},{"$f":"IF('2011 Survey responses'!DJ61<0.5,\"\",'2011 Survey responses'!DJ61)","v":4},{"$f":"IF('2011 Survey responses'!DK61<0.5,\"\",'2011 Survey responses'!DK61)","v":4},{"$f":"IF('2011 Survey responses'!DL61<0.5,\"\",'2011 Survey responses'!DL61)","v":4},{"$f":"IF('2011 Survey responses'!DU61=4,4,IF('2011 Survey responses'!DU61=5,4,\"\"))","v":""},{"$f":"IF('2011 Survey responses'!DV61=4,3,IF('2011 Survey responses'!DV61=5,3,\"\"))","v":3},"",{"$f":"IF(CQ61=2,CQ61,IF(CO61=4,CO61,IF(CP61=3,CP61,IF('2011 Survey responses'!GT61=1,1,\"\"))))","v":3},{"$f":"IF('2011 Survey responses'!DO61<0.5,\"\",'2011 Survey responses'!DO61)","v":1},{"$f":"IF('2011 Survey responses'!DP61<0.5,\"\",'2011 Survey responses'!DP61)","v":4},{"$f":"IF('2011 Survey responses'!DQ61<0.5,\"\",'2011 Survey responses'!DQ61)","v":4},{"$f":"IF('2011 Survey responses'!DR61<0.5,\"\",'2011 Survey responses'!DR61)","v":3},{"$f":"IF('2011 Survey responses'!DS61<0.5,\"\",'2011 Survey responses'!DS61)","v":3},{"$f":"IF('2011 Survey responses'!DT61<0.5,\"\",'2011 Survey responses'!DT61)","v":4},{"$f":"IF('2011 Survey responses'!DU61<0.5,\"\",'2011 Survey responses'!DU61)","v":3},{"$f":"IF('2011 Survey responses'!DV61<0.5,\"\",'2011 Survey responses'!DV61)","v":4},{"$f":"IF('2011 Survey responses'!DW61<0.5,\"\",'2011 Survey responses'!DW61)","v":2},{"$f":"IF('2011 Survey responses'!DX61<0.5,\"\",'2011 Survey responses'!DX61)","v":2},{"$f":"IF('2011 Survey responses'!DY61<0.5,\"\",'2011 Survey responses'!DY61)","v":4},{"$f":"IF('2011 Survey responses'!DZ61<0.5,\"\",'2011 Survey responses'!DZ61)","v":4},{"$f":"IF('2011 Survey responses'!EA61<0.5,\"\",'2011 Survey responses'!EA61)","v":3},{"$f":"IF('2011 Survey responses'!EB61<0.5,\"\",'2011 Survey responses'!EB61)","v":5},{"$f":"IF('2011 Survey responses'!EC61<0.5,\"\",'2011 Survey responses'!EC61)","v":5},{"$f":"IF('2011 Survey responses'!ED61<0.5,\"\",'2011 Survey responses'!ED61)","v":4},{"$f":"IF('2011 Survey responses'!EE61<0.5,\"\",'2011 Survey responses'!EE61)","v":4},{"$f":"IF('2011 Survey responses'!EF61<0.5,\"\",'2011 Survey responses'!EF61)","v":5},{"$f":"IF('2011 Survey responses'!EG61<0.5,\"\",'2011 Survey responses'!EG61)","v":3},{"$f":"IF('2011 Survey responses'!EH61<0.5,\"\",'2011 Survey responses'!EH61)","v":3},{"$f":"IF('2011 Survey responses'!EI61<0.5,\"\",'2011 Survey responses'!EI61)","v":4},{"$f":"IF('2011 Survey responses'!EJ61<0.5,\"\",'2011 Survey responses'!EJ61)","v":4},{"$f":"IF('2011 Survey responses'!EK61<0.5,\"\",'2011 Survey responses'!EK61)","v":5},{"$f":"IF('2011 Survey responses'!EL61<0.5,\"\",'2011 Survey responses'!EL61)","v":5},{"$f":"IF('2011 Survey responses'!EM61<0.5,\"\",'2011 Survey responses'!EM61)","v":4},{"$f":"IF('2011 Survey responses'!EN61<0.5,\"\",'2011 Survey responses'!EN61)","v":4},{"$f":"IF('2011 Survey responses'!EO61<0.5,\"\",'2011 Survey responses'!EO61)","v":3},{"$f":"IF('2011 Survey responses'!EP61<0.5,\"\",'2011 Survey responses'!EP61)","v":3},{"$f":"IF(('2011 Survey responses'!EW61+'2011 Survey responses'!EX61)>=2,AVERAGE('2011 Survey responses'!EW61,'2011 Survey responses'!EY61),\"\")","v":4},{"$f":"IF('2011 Survey responses'!EX61<0.5,\"\",'2011 Survey responses'!EX61)","v":4},{"$f":"IF('2011 Survey responses'!EZ61<0.5,\"\",'2011 Survey responses'!EZ61)","v":4},{"$f":"IF('2011 Survey responses'!FB61<0.5,\"\",'2011 Survey responses'!FB61)","v":4},{"$f":"IF('2011 Survey responses'!FD61<0.5,\"\",'2011 Survey responses'!FD61)","v":4},{"$f":"IF('2011 Survey responses'!FC61<0.5,\"\",'2011 Survey responses'!FC61)","v":3},{"$f":"IF(('2011 Survey responses'!EM61+'2011 Survey responses'!EN61)>=2,AVERAGE('2011 Survey responses'!EM61,'2011 Survey responses'!EN61),\"\")","v":4},{"$f":"IF('2011 Survey responses'!ES61<0.5,\"\",'2011 Survey responses'!ES61)","v":4},{"$f":"IF(('2011 Survey responses'!ET61+'2011 Survey responses'!EU61)>=2,AVERAGE('2011 Survey responses'!ET61,'2011 Survey responses'!EU61),\"\")","v":4},{"$f":"IF('2011 Survey responses'!EV61<0.5,\"\",'2011 Survey responses'!EV61)","v":3},{"$f":"IF('2011 Survey responses'!FA61<0.5,\"\",'2011 Survey responses'!FA61)","v":4},{"$f":"IF('2011 Survey responses'!ER61<0.5,\"\",'2011 Survey responses'!ER61)","v":4},{"$f":"IF(('2011 Survey responses'!EO61+'2011 Survey responses'!EP61)>=2,AVERAGE('2011 Survey responses'!EO61,'2011 Survey responses'!EP61),\"\")","v":3},{"$f":"IF('2011 Survey responses'!EQ61<0.5,\"\",'2011 Survey responses'!EQ61)","v":3},{"$f":"IF('2011 Survey responses'!ET61<0.5,\"\",'2011 Survey responses'!ET61)","v":4},{"$f":"IF('2011 Survey responses'!EU61<0.5,\"\",'2011 Survey responses'!EU61)","v":4},{"$f":"IF('2011 Survey responses'!EW61<0.5,\"\",'2011 Survey responses'!EW61)","v":4},{"$f":"IF('2011 Survey responses'!EY61<0.5,\"\",'2011 Survey responses'!EY61)","v":4},{"$f":"IF('2011 Survey responses'!FU61<0.5,\"\",'2011 Survey responses'!FU61)","v":3},{"$f":"IF(('2011 Survey responses'!FL61+'2011 Survey responses'!FM61)>=2,AVERAGE('2011 Survey responses'!FL61,'2011 Survey responses'!FM61),\"\")","v":3},{"$f":"IF(('2011 Survey responses'!FO61+'2011 Survey responses'!FQ61)>=2,AVERAGE('2011 Survey responses'!FO61,'2011 Survey responses'!FQ61),\"\")","v":2.5},{"$f":"IF('2011 Survey responses'!FJ61<0.5,\"\",'2011 Survey responses'!FJ61)","v":3},{"$f":"IF('2011 Survey responses'!FT61<0.5,\"\",'2011 Survey responses'!FT61)","v":3},{"$f":"IF('2011 Survey responses'!FR61<0.5,\"\",'2011 Survey responses'!FR61)","v":3},{"$f":"IF('2011 Survey responses'!FK61<0.5,\"\",'2011 Survey responses'!FK61)","v":3},{"$f":"IF('2011 Survey responses'!FP61<0.5,\"\",'2011 Survey responses'!FP61)","v":3},{"$f":"IF('2011 Survey responses'!FN61<0.5,\"\",'2011 Survey responses'!FN61)","v":2},{"$f":"IF(('2011 Survey responses'!FE61+'2011 Survey responses'!FF61)>=2,AVERAGE('2011 Survey responses'!FE61,'2011 Survey responses'!FF61),\"\")","v":3},{"$f":"IF('2011 Survey responses'!FS61<0.5,\"\",'2011 Survey responses'!FS61)","v":3},{"$f":"IF('2011 Survey responses'!FV61<0.5,\"\",'2011 Survey responses'!FV61)","v":3},{"$f":"IF(('2011 Survey responses'!FG61+'2011 Survey responses'!FH61)>=2,AVERAGE('2011 Survey responses'!FG61,'2011 Survey responses'!FH61),\"\")","v":3},{"$f":"IF('2011 Survey responses'!FI61<0.5,\"\",'2011 Survey responses'!FI61)","v":2},{"$f":"IF('2011 Survey responses'!FE61<0.5,\"\",'2011 Survey responses'!FE61)","v":3},{"$f":"IF('2011 Survey responses'!FF61<0.5,\"\",'2011 Survey responses'!FF61)","v":3},{"$f":"IF('2011 Survey responses'!FG61<0.5,\"\",'2011 Survey responses'!FG61)","v":3},{"$f":"IF('2011 Survey responses'!FH61<0.5,\"\",'2011 Survey responses'!FH61)","v":3},{"$f":"IF('2011 Survey responses'!FL61<0.5,\"\",'2011 Survey responses'!FL61)","v":3},{"$f":"IF('2011 Survey responses'!FM61<0.5,\"\",'2011 Survey responses'!FM61)","v":3},{"$f":"IF('2011 Survey responses'!FO61<0.5,\"\",'2011 Survey responses'!FO61)","v":2},{"$f":"IF('2011 Survey responses'!FQ61<0.5,\"\",'2011 Survey responses'!FQ61)","v":3}]
["Finland",{"$f":"IF(SUM(F62)<1,\"\",AVERAGEIF('2011 Survey responses'!B62:CP62,\">1\"))","v":5.4556962025316453},{"$f":"IF(SUM(F62)<1,\"\",AVERAGEIF('2011 Survey responses'!B62:AO62,\">1\"))","v":5.628571428571429},{"$f":"IF(SUM(F62)<1,\"\",AVERAGEIF('2011 Survey responses'!B62:BV62,\">1\"))","v":5.4776119402985071},{"$f":"IF(SUM(F62)<1,\"\",AVERAGEIF('2011 Survey responses'!V62:BV62,\">1\"))","v":5.5192307692307692},{"$f":"IF(SUM('2011 Survey responses'!B62:U62)<1,\"\",(AVERAGEIFS('2011 Survey responses'!B62:U62,'2011 Survey responses'!B62:U62,\">1\")))","v":5.333333333333333},{"$f":"IF(SUM('2011 Survey responses'!B62:H62)<1,\"\",(AVERAGEIFS('2011 Survey responses'!B62:H62,'2011 Survey responses'!B62:H62,\">1\")))","v":5.666666666666667},{"$f":"IF(SUM('2011 Survey responses'!I62:S62)<1,\"\",(AVERAGEIFS('2011 Survey responses'!I62:S62,'2011 Survey responses'!I62:S62,\">1\")))","v":4.8571428571428568},{"$f":"IF(SUM('2011 Survey responses'!T62:U62)<2.1,\"\",(AVERAGEIFS('2011 Survey responses'!T62:U62,'2011 Survey responses'!T62:U62,\">1\")))","v":6},{"$f":"IF(SUM('2011 Survey responses'!B62:C62)<2.1,\"\",((SUMIF('2011 Survey responses'!B62:C62,\">1\")+SUMIF('2011 Survey responses'!F62,\">1\"))/(COUNTIF('2011 Survey responses'!B62:C62,\">1\")+COUNTIF('2011 Survey responses'!F62,\">1\"))))","v":6},{"$f":"IF(SUM('2011 Survey responses'!D62:E62)<2.1,\"\",(AVERAGEIFS('2011 Survey responses'!D62:E62,'2011 Survey responses'!D62:E62,\">1\")))","v":6},{"$f":"IF(('2011 Survey responses'!B62+'2011 Survey responses'!D62)<2.1,\"\",((SUMIF('2011 Survey responses'!B62,\">1\")+SUMIF('2011 Survey responses'!D62,\">1\")+SUMIF('2011 Survey responses'!F62,\">1\")+SUMIF('2011 Survey responses'!K62,\">1\"))/(COUNTIF('2011 Survey responses'!B62,\">1\")+COUNTIF('2011 Survey responses'!D62,\">1\")+COUNTIF('2011 Survey responses'!F62,\">1\")+COUNTIF('2011 Survey responses'!K62,\">1\"))))","v":6},{"$f":"IF(SUM('2011 Survey responses'!G62:H62)<2.1,\"\",(AVERAGEIFS('2011 Survey responses'!G62:H62,'2011 Survey responses'!G62:H62,\">1\")))","v":5},{"$f":"IF(SUM('2011 Survey responses'!F62:G62)<1.5,\"\",MAX('2011 Survey responses'!F62,'2011 Survey responses'!G62))","v":6},{"$f":"IF(SUM('2011 Survey responses'!G62:H62)<1,\"\",MAX('2011 Survey responses'!G62,'2011 Survey responses'!H62))","v":5},{"$f":"IF(SUM('2011 Survey responses'!I62:L62)<4.1,\"\",(AVERAGEIFS('2011 Survey responses'!I62:L62,'2011 Survey responses'!I62:L62,\">1\")))","v":6},{"$f":"IF(SUM('2011 Survey responses'!M62:S62)<4.1,\"\",(AVERAGEIFS('2011 Survey responses'!M62:S62,'2011 Survey responses'!M62:S62,\">1\")))","v":4.4000000000000004},{"$f":"IF(SUM('2011 Survey responses'!T62:U62)<2.1,\"\",(AVERAGEIFS('2011 Survey responses'!T62:U62,'2011 Survey responses'!T62:U62,\">1\")))","v":6},{"$f":"IF(SUM('2011 Survey responses'!V62:AO62)<1,\"\",(AVERAGEIFS('2011 Survey responses'!V62:AO62,'2011 Survey responses'!V62:AO62,\">1\")))","v":5.85},{"$f":"IF(SUM('2011 Survey responses'!V62:AA62)<1,\"\",(AVERAGEIFS('2011 Survey responses'!V62:AA62,'2011 Survey responses'!V62:AA62,\">1\")))","v":5.833333333333333},{"$f":"IF(SUM('2011 Survey responses'!AB62:AH62)<1,\"\",(AVERAGEIFS('2011 Survey responses'!AB62:AH62,'2011 Survey responses'!AB62:AH62,\">1\")))","v":5.7142857142857144},{"$f":"IF(SUM('2011 Survey responses'!AI62:AO62)<1,\"\",(AVERAGEIFS('2011 Survey responses'!AI62:AO62,'2011 Survey responses'!AI62:AO62,\">1\")))","v":6},{"$f":"IF(('2011 Survey responses'!Y62+'2011 Survey responses'!AI62+'2011 Survey responses'!AK62)<3.1,\"\",((SUMIF('2011 Survey responses'!Y62,\">1\")+SUMIF('2011 Survey responses'!AI62,\">1\")+SUMIF('2011 Survey responses'!AK62,\">1\")+SUMIF('2011 Survey responses'!AM62,\">1\"))/(COUNTIF('2011 Survey responses'!Y62,\">1\")+COUNTIF('2011 Survey responses'!AI62,\">1\")+COUNTIF('2011 Survey responses'!AK62,\">1\")+COUNTIF('2011 Survey responses'!AM62,\">1\"))))","v":5.75},{"$f":"IF(('2011 Survey responses'!W62)<1.1,\"\",('2011 Survey responses'!W62))","v":6},{"$f":"IF(('2011 Survey responses'!Y62)<1.1,\"\",('2011 Survey responses'!Y62))","v":5},{"$f":"IF(('2011 Survey responses'!Z62)<1.1,\"\",('2011 Survey responses'!Z62))","v":6},{"$f":"IF(('2011 Survey responses'!V62+'2011 Survey responses'!X62+'2011 Survey responses'!AA62)<3.1,\"\",((SUMIF('2011 Survey responses'!V62,\">1\")+SUMIF('2011 Survey responses'!X62,\">1\")+SUMIF('2011 Survey responses'!AA62,\">1\"))/(COUNTIF('2011 Survey responses'!V62,\">1\")+COUNTIF('2011 Survey responses'!X62,\">1\")+COUNTIF('2011 Survey responses'!AA62,\">1\"))))","v":6},{"$f":"IF(('2011 Survey responses'!V62+'2011 Survey responses'!Y62+'2011 Survey responses'!AA62)<3.1,\"\",((SUMIF('2011 Survey responses'!V62,\">1\")+SUMIF('2011 Survey responses'!Y62,\">1\")+SUMIF('2011 Survey responses'!AA62,\">1\"))/(COUNTIF('2011 Survey responses'!V62,\">1\")+COUNTIF('2011 Survey responses'!Y62,\">1\")+COUNTIF('2011 Survey responses'!AA62,\">1\"))))","v":5.666666666666667},{"$f":"IF(SUM('2011 Survey responses'!AB62:AH62)<1,\"\",(AVERAGEIFS('2011 Survey responses'!AB62:AH62,'2011 Survey responses'!AB62:AH62,\">1\")))","v":5.7142857142857144},{"$f":"IF(SUM('2011 Survey responses'!AI62:AO62)<7.1,\"\",(AVERAGEIFS('2011 Survey responses'!AI62:AO62,'2011 Survey responses'!AI62:AO62,\">1\")))","v":6},{"$f":"IF(('2011 Survey responses'!AH62)<1.1,\"\",('2011 Survey responses'!AH62))","v":6},{"$f":"IF(SUM('2011 Survey responses'!AP62:BV62)<1,\"\",(AVERAGEIFS('2011 Survey responses'!AP62:BV62,'2011 Survey responses'!AP62:BV62,\">1\")))","v":5.3125},{"$f":"IF(SUM('2011 Survey responses'!AP62:AS62)<4.1,\"\",(AVERAGEIFS('2011 Survey responses'!AP62:AS62,'2011 Survey responses'!AP62:AS62,\">1\")))","v":4.75},{"$f":"IF(SUM('2011 Survey responses'!AT62:BF62)<1,\"\",(AVERAGEIFS('2011 Survey responses'!AT62:BF62,'2011 Survey responses'!AT62:BF62,\">1\")))","v":5.333333333333333},{"$f":"IF(SUM('2011 Survey responses'!BG62:BO62)<1,\"\",(AVERAGEIFS('2011 Survey responses'!BG62:BO62,'2011 Survey responses'!BG62:BO62,\">1\")))","v":5.7777777777777777},{"$f":"IF(SUM('2011 Survey responses'!BP62:BS62)<1,\"\",(AVERAGEIFS('2011 Survey responses'!BP62:BS62,'2011 Survey responses'!BP62:BS62,\">1\")))","v":5.25},{"$f":"IF(SUM('2011 Survey responses'!BT62:BV62)<3.1,\"\",(AVERAGEIFS('2011 Survey responses'!BT62:BV62,'2011 Survey responses'!BT62:BV62,\">1\")))","v":4.666666666666667},{"$f":"IF(('2011 Survey responses'!AQ62+'2011 Survey responses'!AR62+'2011 Survey responses'!BG62)<3.1,\"\",((SUMIF('2011 Survey responses'!AQ62,\">1\")+SUMIF('2011 Survey responses'!AR62,\">1\")+SUMIF('2011 Survey responses'!BG62,\">1\"))/(COUNTIF('2011 Survey responses'!AQ62,\">1\")+COUNTIF('2011 Survey responses'!AR62,\">1\")+COUNTIF('2011 Survey responses'!BG62,\">1\"))))","v":6},{"$f":"IF(SUM('2011 Survey responses'!AP62:AS62)<4.1,\"\",(AVERAGEIFS('2011 Survey responses'!AP62:AS62,'2011 Survey responses'!AP62:AS62,\">1\")))","v":4.75},{"$f":"IF(('2011 Survey responses'!AU62+'2011 Survey responses'!AX62+'2011 Survey responses'!BA62+'2011 Survey responses'!BC62+'2011 Survey responses'!BD62)<5.1,\"\",(SUMIF('2011 Survey responses'!AU62,\">1\")+SUMIF('2011 Survey responses'!AX62,\">1\")+SUMIF('2011 Survey responses'!BA62,\">1\")+SUMIF('2011 Survey responses'!BC62,\">1\")+SUMIF('2011 Survey responses'!BD62,\">1\"))/(COUNTIF('2011 Survey responses'!AU62,\">1\")+COUNTIF('2011 Survey responses'!AX62,\">1\")+COUNTIF('2011 Survey responses'!BA62,\">1\")+COUNTIF('2011 Survey responses'!BC62,\">1\")+COUNTIF('2011 Survey responses'!BD62,\">1\")))","v":5.25},{"$f":"IF(('2011 Survey responses'!AT62)<1.1,\"\",('2011 Survey responses'!AT62))","v":6},{"$f":"IF(SUM('2011 Survey responses'!AV62:AW62)<2.1,\"\",(AVERAGEIFS('2011 Survey responses'!AV62:AW62,'2011 Survey responses'!AV62:AW62,\">1\")))","v":4},{"$f":"IF(('2011 Survey responses'!AW62+'2011 Survey responses'!AY62)<2.1,\"\",(SUMIF('2011 Survey responses'!AW62,\">1\")+SUMIF('2011 Survey responses'!AY62,\">1\"))/(COUNTIF('2011 Survey responses'!AW62,\">1\")+COUNTIF('2011 Survey responses'!AY62,\">1\")))","v":6},{"$f":"IF(('2011 Survey responses'!AZ62)<1.1,\"\",('2011 Survey responses'!AZ62))","v":6},6,1,5,4,{"$f":"IF(('2011 Survey responses'!BE62)<1.1,\"\",('2011 Survey responses'!BE62))","v":6},{"$f":"IF(('2011 Survey responses'!AY62+'2011 Survey responses'!BB62+'2011 Survey responses'!BF62)<3.1,\"\",(SUMIF('2011 Survey responses'!AY62,\">1\")+SUMIF('2011 Survey responses'!BB62,\">1\")+SUMIF('2011 Survey responses'!BF62,\">1\"))/(COUNTIF('2011 Survey responses'!AY62,\">1\")+COUNTIF('2011 Survey responses'!BB62,\">1\")+COUNTIF('2011 Survey responses'!BF62,\">1\")))","v":5.666666666666667},5.5138888888888893,{"$f":"IF(SUM('2011 Survey responses'!BT62:BV62)<3.1,\"\",(AVERAGEIFS('2011 Survey responses'!BT62:BV62,'2011 Survey responses'!BT62:BV62,\">1\")))","v":4.666666666666667},{"$f":"IF(SUM('2011 Survey responses'!BW62:CP62)<1,\"\",(AVERAGEIFS('2011 Survey responses'!BW62:CP62,'2011 Survey responses'!BW62:CP62,\">1\")))","v":5.333333333333333},{"$f":"IF(SUM('2011 Survey responses'!BW62:CF62)<1,\"\",(AVERAGEIFS('2011 Survey responses'!BW62:CF62,'2011 Survey responses'!BW62:CF62,\">1\")))","v":5.4},{"$f":"IF(SUM('2011 Survey responses'!CG62:CP62)<1,\"\",(AVERAGEIFS('2011 Survey responses'!CG62:CP62,'2011 Survey responses'!CG62:CP62,\">1\")))","v":5.2857142857142856},{"$f":"IF(SUM('2011 Survey responses'!BX62:CF62)<1,\"\",(AVERAGEIFS('2011 Survey responses'!BX62:CF62,'2011 Survey responses'!BX62:CF62,\">1\")))","v":5.4},{"$f":"IF(SUM('2011 Survey responses'!CH62:CP62)<1,\"\",(AVERAGEIFS('2011 Survey responses'!CH62:CP62,'2011 Survey responses'!CH62:CP62,\">1\")))","v":5.333333333333333},{"$f":"IF(SUM('2011 Survey responses'!BW62:CP62)<1,\"\",(AVERAGEIFS('2011 Survey responses'!BW62:CP62,'2011 Survey responses'!BW62:CP62,\">1\")))","v":5.333333333333333},{"$f":"IF(('2011 Survey responses'!BW62+'2011 Survey responses'!CG62)<2.1,\"\",(SUMIF('2011 Survey responses'!BW62,\">1\")+SUMIF('2011 Survey responses'!CG62,\">1\"))/(COUNTIF('2011 Survey responses'!BW62,\">1\")+COUNTIF('2011 Survey responses'!CG62,\">1\")))","v":5},{"$f":"IF(('2011 Survey responses'!BX62+'2011 Survey responses'!CH62)<2.1,\"\",(SUMIF('2011 Survey responses'!BX62,\">1\")+SUMIF('2011 Survey responses'!CH62,\">1\"))/(COUNTIF('2011 Survey responses'!BX62,\">1\")+COUNTIF('2011 Survey responses'!CH62,\">1\")))","v":""},{"$f":"IF(('2011 Survey responses'!BY62+'2011 Survey responses'!CI62)<2.1,\"\",(SUMIF('2011 Survey responses'!BY62,\">1\")+SUMIF('2011 Survey responses'!CI62,\">1\"))/(COUNTIF('2011 Survey responses'!BY62,\">1\")+COUNTIF('2011 Survey responses'!CI62,\">1\")))","v":5},{"$f":"IF('2011 Survey responses'!CQ62<0.5,\"\",'2011 Survey responses'!CQ62)","v":3},{"$f":"IF('2011 Survey responses'!CR62<0.5,\"\",'2011 Survey responses'!CR62)","v":2},{"$f":"IF('2011 Survey responses'!CS62<0.5,\"\",'2011 Survey responses'!CS62)","v":2},{"$f":"IF('2011 Survey responses'!CT62<0.5,\"\",'2011 Survey responses'!CT62)","v":3},{"$f":"IF('2011 Survey responses'!CU62<0.5,\"\",'2011 Survey responses'!CU62)","v":5},{"$f":"IF('2011 Survey responses'!CV62<0.5,\"\",'2011 Survey responses'!CV62)","v":1},{"$f":"IF(SUM('2011 Survey responses'!CW62:DL62)<1,\"\",(AVERAGE('2011 Survey responses'!CW62:DL62)))","v":4},{"$f":"IF(SUM('2011 Survey responses'!CW62:CZ62)<1,\"\",(AVERAGE('2011 Survey responses'!CW62:CZ62)))","v":4.5},{"$f":"IF(SUM('2011 Survey responses'!DA62:DD62)<1,\"\",(AVERAGE('2011 Survey responses'!DA62:DD62)))","v":4.5},{"$f":"IF(SUM('2011 Survey responses'!DE62:DH62)<1,\"\",(AVERAGE('2011 Survey responses'!DE62:DH62)))","v":3.5},{"$f":"IF(SUM('2011 Survey responses'!DI62:DL62)<1,\"\",(AVERAGE('2011 Survey responses'!DI62:DL62)))","v":3.5},{"$f":"IF(('2011 Survey responses'!CW62+'2011 Survey responses'!DA62+'2011 Survey responses'!DE62+'2011 Survey responses'!DI62)<1,\"\",AVERAGE('2011 Survey responses'!CW62,'2011 Survey responses'!DA62,'2011 Survey responses'!DE62,'2011 Survey responses'!DI62))","v":3.5},{"$f":"IF(('2011 Survey responses'!CX62+'2011 Survey responses'!DB62+'2011 Survey responses'!DF62+'2011 Survey responses'!DJ62)<1,\"\",AVERAGE('2011 Survey responses'!CX62,'2011 Survey responses'!DB62,'2011 Survey responses'!DF62,'2011 Survey responses'!DJ62))","v":""},{"$f":"IF(('2011 Survey responses'!CY62+'2011 Survey responses'!DC62+'2011 Survey responses'!DG62+'2011 Survey responses'!DK62)<1,\"\",AVERAGE('2011 Survey responses'!CY62,'2011 Survey responses'!DC62,'2011 Survey responses'!DG62,'2011 Survey responses'!DK62))","v":4.5},{"$f":"IF(('2011 Survey responses'!CZ62+'2011 Survey responses'!DD62+'2011 Survey responses'!DH62+'2011 Survey responses'!DL62)<1,\"\",AVERAGE('2011 Survey responses'!CZ62,'2011 Survey responses'!DD62,'2011 Survey responses'!DH62,'2011 Survey responses'!DL62))","v":""},{"$f":"IF('2011 Survey responses'!CW62<0.5,\"\",'2011 Survey responses'!CW62)","v":4},{"$f":"IF('2011 Survey responses'!CX62<0.5,\"\",'2011 Survey responses'!CX62)","v":""},{"$f":"IF('2011 Survey responses'!CY62<0.5,\"\",'2011 Survey responses'!CY62)","v":5},{"$f":"IF('2011 Survey responses'!CZ62<0.5,\"\",'2011 Survey responses'!CZ62)","v":""},{"$f":"IF('2011 Survey responses'!DA62<0.5,\"\",'2011 Survey responses'!DA62)","v":4},{"$f":"IF('2011 Survey responses'!DB62<0.5,\"\",'2011 Survey responses'!DB62)","v":""},{"$f":"IF('2011 Survey responses'!DC62<0.5,\"\",'2011 Survey responses'!DC62)","v":5},{"$f":"IF('2011 Survey responses'!DD62<0.5,\"\",'2011 Survey responses'!DD62)","v":""},{"$f":"IF('2011 Survey responses'!DE62<0.5,\"\",'2011 Survey responses'!DE62)","v":3},{"$f":"IF('2011 Survey responses'!DF62<0.5,\"\",'2011 Survey responses'!DF62)","v":""},{"$f":"IF('2011 Survey responses'!DG62<0.5,\"\",'2011 Survey responses'!DG62)","v":4},{"$f":"IF('2011 Survey responses'!DH62<0.5,\"\",'2011 Survey responses'!DH62)","v":""},{"$f":"IF('2011 Survey responses'!DI62<0.5,\"\",'2011 Survey responses'!DI62)","v":3},{"$f":"IF('2011 Survey responses'!DJ62<0.5,\"\",'2011 Survey responses'!DJ62)","v":""},{"$f":"IF('2011 Survey responses'!DK62<0.5,\"\",'2011 Survey responses'!DK62)","v":4},{"$f":"IF('2011 Survey responses'!DL62<0.5,\"\",'2011 Survey responses'!DL62)","v":""},{"$f":"IF('2011 Survey responses'!DU62=4,4,IF('2011 Survey responses'!DU62=5,4,\"\"))","v":""},{"$f":"IF('2011 Survey responses'!DV62=4,3,IF('2011 Survey responses'!DV62=5,3,\"\"))","v":""},"",{"$f":"IF(CQ62=2,CQ62,IF(CO62=4,CO62,IF(CP62=3,CP62,IF('2011 Survey responses'!GT62=1,1,\"\"))))","v":1},{"$f":"IF('2011 Survey responses'!DO62<0.5,\"\",'2011 Survey responses'!DO62)","v":1},{"$f":"IF('2011 Survey responses'!DP62<0.5,\"\",'2011 Survey responses'!DP62)","v":2},{"$f":"IF('2011 Survey responses'!DQ62<0.5,\"\",'2011 Survey responses'!DQ62)","v":2},{"$f":"IF('2011 Survey responses'!DR62<0.5,\"\",'2011 Survey responses'!DR62)","v":""},{"$f":"IF('2011 Survey responses'!DS62<0.5,\"\",'2011 Survey responses'!DS62)","v":3},{"$f":"IF('2011 Survey responses'!DT62<0.5,\"\",'2011 Survey responses'!DT62)","v":1},{"$f":"IF('2011 Survey responses'!DU62<0.5,\"\",'2011 Survey responses'!DU62)","v":3},{"$f":"IF('2011 Survey responses'!DV62<0.5,\"\",'2011 Survey responses'!DV62)","v":2},{"$f":"IF('2011 Survey responses'!DW62<0.5,\"\",'2011 Survey responses'!DW62)","v":1},{"$f":"IF('2011 Survey responses'!DX62<0.5,\"\",'2011 Survey responses'!DX62)","v":1},{"$f":"IF('2011 Survey responses'!DY62<0.5,\"\",'2011 Survey responses'!DY62)","v":3},{"$f":"IF('2011 Survey responses'!DZ62<0.5,\"\",'2011 Survey responses'!DZ62)","v":2},{"$f":"IF('2011 Survey responses'!EA62<0.5,\"\",'2011 Survey responses'!EA62)","v":3},{"$f":"IF('2011 Survey responses'!EB62<0.5,\"\",'2011 Survey responses'!EB62)","v":2},{"$f":"IF('2011 Survey responses'!EC62<0.5,\"\",'2011 Survey responses'!EC62)","v":3},{"$f":"IF('2011 Survey responses'!ED62<0.5,\"\",'2011 Survey responses'!ED62)","v":3},{"$f":"IF('2011 Survey responses'!EE62<0.5,\"\",'2011 Survey responses'!EE62)","v":3},{"$f":"IF('2011 Survey responses'!EF62<0.5,\"\",'2011 Survey responses'!EF62)","v":3},{"$f":"IF('2011 Survey responses'!EG62<0.5,\"\",'2011 Survey responses'!EG62)","v":4},{"$f":"IF('2011 Survey responses'!EH62<0.5,\"\",'2011 Survey responses'!EH62)","v":4},{"$f":"IF('2011 Survey responses'!EI62<0.5,\"\",'2011 Survey responses'!EI62)","v":3},{"$f":"IF('2011 Survey responses'!EJ62<0.5,\"\",'2011 Survey responses'!EJ62)","v":3},{"$f":"IF('2011 Survey responses'!EK62<0.5,\"\",'2011 Survey responses'!EK62)","v":3},{"$f":"IF('2011 Survey responses'!EL62<0.5,\"\",'2011 Survey responses'!EL62)","v":3},{"$f":"IF('2011 Survey responses'!EM62<0.5,\"\",'2011 Survey responses'!EM62)","v":2},{"$f":"IF('2011 Survey responses'!EN62<0.5,\"\",'2011 Survey responses'!EN62)","v":2},{"$f":"IF('2011 Survey responses'!EO62<0.5,\"\",'2011 Survey responses'!EO62)","v":2},{"$f":"IF('2011 Survey responses'!EP62<0.5,\"\",'2011 Survey responses'!EP62)","v":2},{"$f":"IF(('2011 Survey responses'!EW62+'2011 Survey responses'!EX62)>=2,AVERAGE('2011 Survey responses'!EW62,'2011 Survey responses'!EY62),\"\")","v":3},{"$f":"IF('2011 Survey responses'!EX62<0.5,\"\",'2011 Survey responses'!EX62)","v":3},{"$f":"IF('2011 Survey responses'!EZ62<0.5,\"\",'2011 Survey responses'!EZ62)","v":3},{"$f":"IF('2011 Survey responses'!FB62<0.5,\"\",'2011 Survey responses'!FB62)","v":2},{"$f":"IF('2011 Survey responses'!FD62<0.5,\"\",'2011 Survey responses'!FD62)","v":3},{"$f":"IF('2011 Survey responses'!FC62<0.5,\"\",'2011 Survey responses'!FC62)","v":3},{"$f":"IF(('2011 Survey responses'!EM62+'2011 Survey responses'!EN62)>=2,AVERAGE('2011 Survey responses'!EM62,'2011 Survey responses'!EN62),\"\")","v":2},{"$f":"IF('2011 Survey responses'!ES62<0.5,\"\",'2011 Survey responses'!ES62)","v":3},{"$f":"IF(('2011 Survey responses'!ET62+'2011 Survey responses'!EU62)>=2,AVERAGE('2011 Survey responses'!ET62,'2011 Survey responses'!EU62),\"\")","v":3},{"$f":"IF('2011 Survey responses'!EV62<0.5,\"\",'2011 Survey responses'!EV62)","v":2},{"$f":"IF('2011 Survey responses'!FA62<0.5,\"\",'2011 Survey responses'!FA62)","v":2},{"$f":"IF('2011 Survey responses'!ER62<0.5,\"\",'2011 Survey responses'!ER62)","v":3},{"$f":"IF(('2011 Survey responses'!EO62+'2011 Survey responses'!EP62)>=2,AVERAGE('2011 Survey responses'!EO62,'2011 Survey responses'!EP62),\"\")","v":2},{"$f":"IF('2011 Survey responses'!EQ62<0.5,\"\",'2011 Survey responses'!EQ62)","v":3},{"$f":"IF('2011 Survey responses'!ET62<0.5,\"\",'2011 Survey responses'!ET62)","v":3},{"$f":"IF('2011 Survey responses'!EU62<0.5,\"\",'2011 Survey responses'!EU62)","v":3},{"$f":"IF('2011 Survey responses'!EW62<0.5,\"\",'2011 Survey responses'!EW62)","v":3},{"$f":"IF('2011 Survey responses'!EY62<0.5,\"\",'2011 Survey responses'!EY62)","v":3},{"$f":"IF('2011 Survey responses'!FU62<0.5,\"\",'2011 Survey responses'!FU62)","v":3},{"$f":"IF(('2011 Survey responses'!FL62+'2011 Survey responses'!FM62)>=2,AVERAGE('2011 Survey responses'!FL62,'2011 Survey responses'!FM62),\"\")","v":4},{"$f":"IF(('2011 Survey responses'!FO62+'2011 Survey responses'!FQ62)>=2,AVERAGE('2011 Survey responses'!FO62,'2011 Survey responses'!FQ62),\"\")","v":2.5},{"$f":"IF('2011 Survey responses'!FJ62<0.5,\"\",'2011 Survey responses'!FJ62)","v":4},{"$f":"IF('2011 Survey responses'!FT62<0.5,\"\",'2011 Survey responses'!FT62)","v":4},{"$f":"IF('2011 Survey responses'!FR62<0.5,\"\",'2011 Survey responses'!FR62)","v":2},{"$f":"IF('2011 Survey responses'!FK62<0.5,\"\",'2011 Survey responses'!FK62)","v":4},{"$f":"IF('2011 Survey responses'!FP62<0.5,\"\",'2011 Survey responses'!FP62)","v":2},{"$f":"IF('2011 Survey responses'!FN62<0.5,\"\",'2011 Survey responses'!FN62)","v":4},{"$f":"IF(('2011 Survey responses'!FE62+'2011 Survey responses'!FF62)>=2,AVERAGE('2011 Survey responses'!FE62,'2011 Survey responses'!FF62),\"\")","v":2},{"$f":"IF('2011 Survey responses'!FS62<0.5,\"\",'2011 Survey responses'!FS62)","v":4},{"$f":"IF('2011 Survey responses'!FV62<0.5,\"\",'2011 Survey responses'!FV62)","v":3},{"$f":"IF(('2011 Survey responses'!FG62+'2011 Survey responses'!FH62)>=2,AVERAGE('2011 Survey responses'!FG62,'2011 Survey responses'!FH62),\"\")","v":3},{"$f":"IF('2011 Survey responses'!FI62<0.5,\"\",'2011 Survey responses'!FI62)","v":3},{"$f":"IF('2011 Survey responses'!FE62<0.5,\"\",'2011 Survey responses'!FE62)","v":2},{"$f":"IF('2011 Survey responses'!FF62<0.5,\"\",'2011 Survey responses'!FF62)","v":2},{"$f":"IF('2011 Survey responses'!FG62<0.5,\"\",'2011 Survey responses'!FG62)","v":3},{"$f":"IF('2011 Survey responses'!FH62<0.5,\"\",'2011 Survey responses'!FH62)","v":3},{"$f":"IF('2011 Survey responses'!FL62<0.5,\"\",'2011 Survey responses'!FL62)","v":4},{"$f":"IF('2011 Survey responses'!FM62<0.5,\"\",'2011 Survey responses'!FM62)","v":4},{"$f":"IF('2011 Survey responses'!FO62<0.5,\"\",'2011 Survey responses'!FO62)","v":3},{"$f":"IF('2011 Survey responses'!FQ62<0.5,\"\",'2011 Survey responses'!FQ62)","v":2}]
["France",{"$f":"IF(SUM(F63)<1,\"\",AVERAGEIF('2011 Survey responses'!B63:CP63,\">1\"))","v":5.6860465116279073},{"$f":"IF(SUM(F63)<1,\"\",AVERAGEIF('2011 Survey responses'!B63:AO63,\">1\"))","v":5.7142857142857144},{"$f":"IF(SUM(F63)<1,\"\",AVERAGEIF('2011 Survey responses'!B63:BV63,\">1\"))","v":5.7058823529411766},{"$f":"IF(SUM(F63)<1,\"\",AVERAGEIF('2011 Survey responses'!V63:BV63,\">1\"))","v":5.784313725490196},{"$f":"IF(SUM('2011 Survey responses'!B63:U63)<1,\"\",(AVERAGEIFS('2011 Survey responses'!B63:U63,'2011 Survey responses'!B63:U63,\">1\")))","v":5.4705882352941178},{"$f":"IF(SUM('2011 Survey responses'!B63:H63)<1,\"\",(AVERAGEIFS('2011 Survey responses'!B63:H63,'2011 Survey responses'!B63:H63,\">1\")))","v":5.833333333333333},{"$f":"IF(SUM('2011 Survey responses'!I63:S63)<1,\"\",(AVERAGEIFS('2011 Survey responses'!I63:S63,'2011 Survey responses'!I63:S63,\">1\")))","v":5.1111111111111107},{"$f":"IF(SUM('2011 Survey responses'!T63:U63)<2.1,\"\",(AVERAGEIFS('2011 Survey responses'!T63:U63,'2011 Survey responses'!T63:U63,\">1\")))","v":6},{"$f":"IF(SUM('2011 Survey responses'!B63:C63)<2.1,\"\",((SUMIF('2011 Survey responses'!B63:C63,\">1\")+SUMIF('2011 Survey responses'!F63,\">1\"))/(COUNTIF('2011 Survey responses'!B63:C63,\">1\")+COUNTIF('2011 Survey responses'!F63,\">1\"))))","v":6},{"$f":"IF(SUM('2011 Survey responses'!D63:E63)<2.1,\"\",(AVERAGEIFS('2011 Survey responses'!D63:E63,'2011 Survey responses'!D63:E63,\">1\")))","v":6},{"$f":"IF(('2011 Survey responses'!B63+'2011 Survey responses'!D63)<2.1,\"\",((SUMIF('2011 Survey responses'!B63,\">1\")+SUMIF('2011 Survey responses'!D63,\">1\")+SUMIF('2011 Survey responses'!F63,\">1\")+SUMIF('2011 Survey responses'!K63,\">1\"))/(COUNTIF('2011 Survey responses'!B63,\">1\")+COUNTIF('2011 Survey responses'!D63,\">1\")+COUNTIF('2011 Survey responses'!F63,\">1\")+COUNTIF('2011 Survey responses'!K63,\">1\"))))","v":5.75},{"$f":"IF(SUM('2011 Survey responses'!G63:H63)<2.1,\"\",(AVERAGEIFS('2011 Survey responses'!G63:H63,'2011 Survey responses'!G63:H63,\">1\")))","v":5},{"$f":"IF(SUM('2011 Survey responses'!F63:G63)<1.5,\"\",MAX('2011 Survey responses'!F63,'2011 Survey responses'!G63))","v":6},{"$f":"IF(SUM('2011 Survey responses'!G63:H63)<1,\"\",MAX('2011 Survey responses'!G63,'2011 Survey responses'!H63))","v":5},{"$f":"IF(SUM('2011 Survey responses'!I63:L63)<4.1,\"\",(AVERAGEIFS('2011 Survey responses'!I63:L63,'2011 Survey responses'!I63:L63,\">1\")))","v":5.5},{"$f":"IF(SUM('2011 Survey responses'!M63:S63)<4.1,\"\",(AVERAGEIFS('2011 Survey responses'!M63:S63,'2011 Survey responses'!M63:S63,\">1\")))","v":5},{"$f":"IF(SUM('2011 Survey responses'!T63:U63)<2.1,\"\",(AVERAGEIFS('2011 Survey responses'!T63:U63,'2011 Survey responses'!T63:U63,\">1\")))","v":6},{"$f":"IF(SUM('2011 Survey responses'!V63:AO63)<1,\"\",(AVERAGEIFS('2011 Survey responses'!V63:AO63,'2011 Survey responses'!V63:AO63,\">1\")))","v":5.9444444444444446},{"$f":"IF(SUM('2011 Survey responses'!V63:AA63)<1,\"\",(AVERAGEIFS('2011 Survey responses'!V63:AA63,'2011 Survey responses'!V63:AA63,\">1\")))","v":6},{"$f":"IF(SUM('2011 Survey responses'!AB63:AH63)<1,\"\",(AVERAGEIFS('2011 Survey responses'!AB63:AH63,'2011 Survey responses'!AB63:AH63,\">1\")))","v":6},{"$f":"IF(SUM('2011 Survey responses'!AI63:AO63)<1,\"\",(AVERAGEIFS('2011 Survey responses'!AI63:AO63,'2011 Survey responses'!AI63:AO63,\">1\")))","v":5.833333333333333},{"$f":"IF(('2011 Survey responses'!Y63+'2011 Survey responses'!AI63+'2011 Survey responses'!AK63)<3.1,\"\",((SUMIF('2011 Survey responses'!Y63,\">1\")+SUMIF('2011 Survey responses'!AI63,\">1\")+SUMIF('2011 Survey responses'!AK63,\">1\")+SUMIF('2011 Survey responses'!AM63,\">1\"))/(COUNTIF('2011 Survey responses'!Y63,\">1\")+COUNTIF('2011 Survey responses'!AI63,\">1\")+COUNTIF('2011 Survey responses'!AK63,\">1\")+COUNTIF('2011 Survey responses'!AM63,\">1\"))))","v":6},{"$f":"IF(('2011 Survey responses'!W63)<1.1,\"\",('2011 Survey responses'!W63))","v":6},{"$f":"IF(('2011 Survey responses'!Y63)<1.1,\"\",('2011 Survey responses'!Y63))","v":6},{"$f":"IF(('2011 Survey responses'!Z63)<1.1,\"\",('2011 Survey responses'!Z63))","v":6},{"$f":"IF(('2011 Survey responses'!V63+'2011 Survey responses'!X63+'2011 Survey responses'!AA63)<3.1,\"\",((SUMIF('2011 Survey responses'!V63,\">1\")+SUMIF('2011 Survey responses'!X63,\">1\")+SUMIF('2011 Survey responses'!AA63,\">1\"))/(COUNTIF('2011 Survey responses'!V63,\">1\")+COUNTIF('2011 Survey responses'!X63,\">1\")+COUNTIF('2011 Survey responses'!AA63,\">1\"))))","v":6},{"$f":"IF(('2011 Survey responses'!V63+'2011 Survey responses'!Y63+'2011 Survey responses'!AA63)<3.1,\"\",((SUMIF('2011 Survey responses'!V63,\">1\")+SUMIF('2011 Survey responses'!Y63,\">1\")+SUMIF('2011 Survey responses'!AA63,\">1\"))/(COUNTIF('2011 Survey responses'!V63,\">1\")+COUNTIF('2011 Survey responses'!Y63,\">1\")+COUNTIF('2011 Survey responses'!AA63,\">1\"))))","v":6},{"$f":"IF(SUM('2011 Survey responses'!AB63:AH63)<1,\"\",(AVERAGEIFS('2011 Survey responses'!AB63:AH63,'2011 Survey responses'!AB63:AH63,\">1\")))","v":6},{"$f":"IF(SUM('2011 Survey responses'!AI63:AO63)<7.1,\"\",(AVERAGEIFS('2011 Survey responses'!AI63:AO63,'2011 Survey responses'!AI63:AO63,\">1\")))","v":5.833333333333333},{"$f":"IF(('2011 Survey responses'!AH63)<1.1,\"\",('2011 Survey responses'!AH63))","v":""},{"$f":"IF(SUM('2011 Survey responses'!AP63:BV63)<1,\"\",(AVERAGEIFS('2011 Survey responses'!AP63:BV63,'2011 Survey responses'!AP63:BV63,\">1\")))","v":5.6969696969696972},{"$f":"IF(SUM('2011 Survey responses'!AP63:AS63)<4.1,\"\",(AVERAGEIFS('2011 Survey responses'!AP63:AS63,'2011 Survey responses'!AP63:AS63,\">1\")))","v":5.75},{"$f":"IF(SUM('2011 Survey responses'!AT63:BF63)<1,\"\",(AVERAGEIFS('2011 Survey responses'!AT63:BF63,'2011 Survey responses'!AT63:BF63,\">1\")))","v":5.6923076923076925},{"$f":"IF(SUM('2011 Survey responses'!BG63:BO63)<1,\"\",(AVERAGEIFS('2011 Survey responses'!BG63:BO63,'2011 Survey responses'!BG63:BO63,\">1\")))","v":6},{"$f":"IF(SUM('2011 Survey responses'!BP63:BS63)<1,\"\",(AVERAGEIFS('2011 Survey responses'!BP63:BS63,'2011 Survey responses'!BP63:BS63,\">1\")))","v":5.25},{"$f":"IF(SUM('2011 Survey responses'!BT63:BV63)<3.1,\"\",(AVERAGEIFS('2011 Survey responses'!BT63:BV63,'2011 Survey responses'!BT63:BV63,\">1\")))","v":5.333333333333333},{"$f":"IF(('2011 Survey responses'!AQ63+'2011 Survey responses'!AR63+'2011 Survey responses'!BG63)<3.1,\"\",((SUMIF('2011 Survey responses'!AQ63,\">1\")+SUMIF('2011 Survey responses'!AR63,\">1\")+SUMIF('2011 Survey responses'!BG63,\">1\"))/(COUNTIF('2011 Survey responses'!AQ63,\">1\")+COUNTIF('2011 Survey responses'!AR63,\">1\")+COUNTIF('2011 Survey responses'!BG63,\">1\"))))","v":6},{"$f":"IF(SUM('2011 Survey responses'!AP63:AS63)<4.1,\"\",(AVERAGEIFS('2011 Survey responses'!AP63:AS63,'2011 Survey responses'!AP63:AS63,\">1\")))","v":5.75},{"$f":"IF(('2011 Survey responses'!AU63+'2011 Survey responses'!AX63+'2011 Survey responses'!BA63+'2011 Survey responses'!BC63+'2011 Survey responses'!BD63)<5.1,\"\",(SUMIF('2011 Survey responses'!AU63,\">1\")+SUMIF('2011 Survey responses'!AX63,\">1\")+SUMIF('2011 Survey responses'!BA63,\">1\")+SUMIF('2011 Survey responses'!BC63,\">1\")+SUMIF('2011 Survey responses'!BD63,\">1\"))/(COUNTIF('2011 Survey responses'!AU63,\">1\")+COUNTIF('2011 Survey responses'!AX63,\">1\")+COUNTIF('2011 Survey responses'!BA63,\">1\")+COUNTIF('2011 Survey responses'!BC63,\">1\")+COUNTIF('2011 Survey responses'!BD63,\">1\")))","v":5.6},{"$f":"IF(('2011 Survey responses'!AT63)<1.1,\"\",('2011 Survey responses'!AT63))","v":6},{"$f":"IF(SUM('2011 Survey responses'!AV63:AW63)<2.1,\"\",(AVERAGEIFS('2011 Survey responses'!AV63:AW63,'2011 Survey responses'!AV63:AW63,\">1\")))","v":6},{"$f":"IF(('2011 Survey responses'!AW63+'2011 Survey responses'!AY63)<2.1,\"\",(SUMIF('2011 Survey responses'!AW63,\">1\")+SUMIF('2011 Survey responses'!AY63,\">1\"))/(COUNTIF('2011 Survey responses'!AW63,\">1\")+COUNTIF('2011 Survey responses'!AY63,\">1\")))","v":6},{"$f":"IF(('2011 Survey responses'!AZ63)<1.1,\"\",('2011 Survey responses'!AZ63))","v":5},5,5,5,5,{"$f":"IF(('2011 Survey responses'!BE63)<1.1,\"\",('2011 Survey responses'!BE63))","v":6},{"$f":"IF(('2011 Survey responses'!AY63+'2011 Survey responses'!BB63+'2011 Survey responses'!BF63)<3.1,\"\",(SUMIF('2011 Survey responses'!AY63,\">1\")+SUMIF('2011 Survey responses'!BB63,\">1\")+SUMIF('2011 Survey responses'!BF63,\">1\"))/(COUNTIF('2011 Survey responses'!AY63,\">1\")+COUNTIF('2011 Survey responses'!BB63,\">1\")+COUNTIF('2011 Survey responses'!BF63,\">1\")))","v":5.666666666666667},5.625,{"$f":"IF(SUM('2011 Survey responses'!BT63:BV63)<3.1,\"\",(AVERAGEIFS('2011 Survey responses'!BT63:BV63,'2011 Survey responses'!BT63:BV63,\">1\")))","v":5.333333333333333},{"$f":"IF(SUM('2011 Survey responses'!BW63:CP63)<1,\"\",(AVERAGEIFS('2011 Survey responses'!BW63:CP63,'2011 Survey responses'!BW63:CP63,\">1\")))","v":5.6111111111111107},{"$f":"IF(SUM('2011 Survey responses'!BW63:CF63)<1,\"\",(AVERAGEIFS('2011 Survey responses'!BW63:CF63,'2011 Survey responses'!BW63:CF63,\">1\")))","v":5.5555555555555554},{"$f":"IF(SUM('2011 Survey responses'!CG63:CP63)<1,\"\",(AVERAGEIFS('2011 Survey responses'!CG63:CP63,'2011 Survey responses'!CG63:CP63,\">1\")))","v":5.666666666666667},{"$f":"IF(SUM('2011 Survey responses'!BX63:CF63)<1,\"\",(AVERAGEIFS('2011 Survey responses'!BX63:CF63,'2011 Survey responses'!BX63:CF63,\">1\")))","v":5.5},{"$f":"IF(SUM('2011 Survey responses'!CH63:CP63)<1,\"\",(AVERAGEIFS('2011 Survey responses'!CH63:CP63,'2011 Survey responses'!CH63:CP63,\">1\")))","v":5.625},{"$f":"IF(SUM('2011 Survey responses'!BW63:CP63)<1,\"\",(AVERAGEIFS('2011 Survey responses'!BW63:CP63,'2011 Survey responses'!BW63:CP63,\">1\")))","v":5.6111111111111107},{"$f":"IF(('2011 Survey responses'!BW63+'2011 Survey responses'!CG63)<2.1,\"\",(SUMIF('2011 Survey responses'!BW63,\">1\")+SUMIF('2011 Survey responses'!CG63,\">1\"))/(COUNTIF('2011 Survey responses'!BW63,\">1\")+COUNTIF('2011 Survey responses'!CG63,\">1\")))","v":6},{"$f":"IF(('2011 Survey responses'!BX63+'2011 Survey responses'!CH63)<2.1,\"\",(SUMIF('2011 Survey responses'!BX63,\">1\")+SUMIF('2011 Survey responses'!CH63,\">1\"))/(COUNTIF('2011 Survey responses'!BX63,\">1\")+COUNTIF('2011 Survey responses'!CH63,\">1\")))","v":6},{"$f":"IF(('2011 Survey responses'!BY63+'2011 Survey responses'!CI63)<2.1,\"\",(SUMIF('2011 Survey responses'!BY63,\">1\")+SUMIF('2011 Survey responses'!CI63,\">1\"))/(COUNTIF('2011 Survey responses'!BY63,\">1\")+COUNTIF('2011 Survey responses'!CI63,\">1\")))","v":6},{"$f":"IF('2011 Survey responses'!CQ63<0.5,\"\",'2011 Survey responses'!CQ63)","v":2},{"$f":"IF('2011 Survey responses'!CR63<0.5,\"\",'2011 Survey responses'!CR63)","v":4},{"$f":"IF('2011 Survey responses'!CS63<0.5,\"\",'2011 Survey responses'!CS63)","v":5},{"$f":"IF('2011 Survey responses'!CT63<0.5,\"\",'2011 Survey responses'!CT63)","v":5},{"$f":"IF('2011 Survey responses'!CU63<0.5,\"\",'2011 Survey responses'!CU63)","v":4},{"$f":"IF('2011 Survey responses'!CV63<0.5,\"\",'2011 Survey responses'!CV63)","v":4},{"$f":"IF(SUM('2011 Survey responses'!CW63:DL63)<1,\"\",(AVERAGE('2011 Survey responses'!CW63:DL63)))","v":2.5833333333333335},{"$f":"IF(SUM('2011 Survey responses'!CW63:CZ63)<1,\"\",(AVERAGE('2011 Survey responses'!CW63:CZ63)))","v":2.3333333333333335},{"$f":"IF(SUM('2011 Survey responses'!DA63:DD63)<1,\"\",(AVERAGE('2011 Survey responses'!DA63:DD63)))","v":2.3333333333333335},{"$f":"IF(SUM('2011 Survey responses'!DE63:DH63)<1,\"\",(AVERAGE('2011 Survey responses'!DE63:DH63)))","v":2.6666666666666665},{"$f":"IF(SUM('2011 Survey responses'!DI63:DL63)<1,\"\",(AVERAGE('2011 Survey responses'!DI63:DL63)))","v":3},{"$f":"IF(('2011 Survey responses'!CW63+'2011 Survey responses'!DA63+'2011 Survey responses'!DE63+'2011 Survey responses'!DI63)<1,\"\",AVERAGE('2011 Survey responses'!CW63,'2011 Survey responses'!DA63,'2011 Survey responses'!DE63,'2011 Survey responses'!DI63))","v":2.5},{"$f":"IF(('2011 Survey responses'!CX63+'2011 Survey responses'!DB63+'2011 Survey responses'!DF63+'2011 Survey responses'!DJ63)<1,\"\",AVERAGE('2011 Survey responses'!CX63,'2011 Survey responses'!DB63,'2011 Survey responses'!DF63,'2011 Survey responses'!DJ63))","v":1},{"$f":"IF(('2011 Survey responses'!CY63+'2011 Survey responses'!DC63+'2011 Survey responses'!DG63+'2011 Survey responses'!DK63)<1,\"\",AVERAGE('2011 Survey responses'!CY63,'2011 Survey responses'!DC63,'2011 Survey responses'!DG63,'2011 Survey responses'!DK63))","v":4.25},{"$f":"IF(('2011 Survey responses'!CZ63+'2011 Survey responses'!DD63+'2011 Survey responses'!DH63+'2011 Survey responses'!DL63)<1,\"\",AVERAGE('2011 Survey responses'!CZ63,'2011 Survey responses'!DD63,'2011 Survey responses'!DH63,'2011 Survey responses'!DL63))","v":""},{"$f":"IF('2011 Survey responses'!CW63<0.5,\"\",'2011 Survey responses'!CW63)","v":2},{"$f":"IF('2011 Survey responses'!CX63<0.5,\"\",'2011 Survey responses'!CX63)","v":1},{"$f":"IF('2011 Survey responses'!CY63<0.5,\"\",'2011 Survey responses'!CY63)","v":4},{"$f":"IF('2011 Survey responses'!CZ63<0.5,\"\",'2011 Survey responses'!CZ63)","v":""},{"$f":"IF('2011 Survey responses'!DA63<0.5,\"\",'2011 Survey responses'!DA63)","v":2},{"$f":"IF('2011 Survey responses'!DB63<0.5,\"\",'2011 Survey responses'!DB63)","v":1},{"$f":"IF('2011 Survey responses'!DC63<0.5,\"\",'2011 Survey responses'!DC63)","v":4},{"$f":"IF('2011 Survey responses'!DD63<0.5,\"\",'2011 Survey responses'!DD63)","v":""},{"$f":"IF('2011 Survey responses'!DE63<0.5,\"\",'2011 Survey responses'!DE63)","v":3},{"$f":"IF('2011 Survey responses'!DF63<0.5,\"\",'2011 Survey responses'!DF63)","v":1},{"$f":"IF('2011 Survey responses'!DG63<0.5,\"\",'2011 Survey responses'!DG63)","v":4},{"$f":"IF('2011 Survey responses'!DH63<0.5,\"\",'2011 Survey responses'!DH63)","v":""},{"$f":"IF('2011 Survey responses'!DI63<0.5,\"\",'2011 Survey responses'!DI63)","v":3},{"$f":"IF('2011 Survey responses'!DJ63<0.5,\"\",'2011 Survey responses'!DJ63)","v":1},{"$f":"IF('2011 Survey responses'!DK63<0.5,\"\",'2011 Survey responses'!DK63)","v":5},{"$f":"IF('2011 Survey responses'!DL63<0.5,\"\",'2011 Survey responses'!DL63)","v":""},{"$f":"IF('2011 Survey responses'!DU63=4,4,IF('2011 Survey responses'!DU63=5,4,\"\"))","v":4},{"$f":"IF('2011 Survey responses'!DV63=4,3,IF('2011 Survey responses'!DV63=5,3,\"\"))","v":3},2,{"$f":"IF(CQ63=2,CQ63,IF(CO63=4,CO63,IF(CP63=3,CP63,IF('2011 Survey responses'!GT63=1,1,\"\"))))","v":2},{"$f":"IF('2011 Survey responses'!DO63<0.5,\"\",'2011 Survey responses'!DO63)","v":3},{"$f":"IF('2011 Survey responses'!DP63<0.5,\"\",'2011 Survey responses'!DP63)","v":5},{"$f":"IF('2011 Survey responses'!DQ63<0.5,\"\",'2011 Survey responses'!DQ63)","v":3},{"$f":"IF('2011 Survey responses'!DR63<0.5,\"\",'2011 Survey responses'!DR63)","v":3},{"$f":"IF('2011 Survey responses'!DS63<0.5,\"\",'2011 Survey responses'!DS63)","v":4},{"$f":"IF('2011 Survey responses'!DT63<0.5,\"\",'2011 Survey responses'!DT63)","v":""},{"$f":"IF('2011 Survey responses'!DU63<0.5,\"\",'2011 Survey responses'!DU63)","v":4},{"$f":"IF('2011 Survey responses'!DV63<0.5,\"\",'2011 Survey responses'!DV63)","v":4},{"$f":"IF('2011 Survey responses'!DW63<0.5,\"\",'2011 Survey responses'!DW63)","v":2},{"$f":"IF('2011 Survey responses'!DX63<0.5,\"\",'2011 Survey responses'!DX63)","v":2},{"$f":"IF('2011 Survey responses'!DY63<0.5,\"\",'2011 Survey responses'!DY63)","v":5},{"$f":"IF('2011 Survey responses'!DZ63<0.5,\"\",'2011 Survey responses'!DZ63)","v":5},{"$f":"IF('2011 Survey responses'!EA63<0.5,\"\",'2011 Survey responses'!EA63)","v":5},{"$f":"IF('2011 Survey responses'!EB63<0.5,\"\",'2011 Survey responses'!EB63)","v":4},{"$f":"IF('2011 Survey responses'!EC63<0.5,\"\",'2011 Survey responses'!EC63)","v":3},{"$f":"IF('2011 Survey responses'!ED63<0.5,\"\",'2011 Survey responses'!ED63)","v":3},{"$f":"IF('2011 Survey responses'!EE63<0.5,\"\",'2011 Survey responses'!EE63)","v":5},{"$f":"IF('2011 Survey responses'!EF63<0.5,\"\",'2011 Survey responses'!EF63)","v":""},{"$f":"IF('2011 Survey responses'!EG63<0.5,\"\",'2011 Survey responses'!EG63)","v":5},{"$f":"IF('2011 Survey responses'!EH63<0.5,\"\",'2011 Survey responses'!EH63)","v":5},{"$f":"IF('2011 Survey responses'!EI63<0.5,\"\",'2011 Survey responses'!EI63)","v":5},{"$f":"IF('2011 Survey responses'!EJ63<0.5,\"\",'2011 Survey responses'!EJ63)","v":5},{"$f":"IF('2011 Survey responses'!EK63<0.5,\"\",'2011 Survey responses'!EK63)","v":4},{"$f":"IF('2011 Survey responses'!EL63<0.5,\"\",'2011 Survey responses'!EL63)","v":4},{"$f":"IF('2011 Survey responses'!EM63<0.5,\"\",'2011 Survey responses'!EM63)","v":1},{"$f":"IF('2011 Survey responses'!EN63<0.5,\"\",'2011 Survey responses'!EN63)","v":1},{"$f":"IF('2011 Survey responses'!EO63<0.5,\"\",'2011 Survey responses'!EO63)","v":3},{"$f":"IF('2011 Survey responses'!EP63<0.5,\"\",'2011 Survey responses'!EP63)","v":4},{"$f":"IF(('2011 Survey responses'!EW63+'2011 Survey responses'!EX63)>=2,AVERAGE('2011 Survey responses'!EW63,'2011 Survey responses'!EY63),\"\")","v":2.5},{"$f":"IF('2011 Survey responses'!EX63<0.5,\"\",'2011 Survey responses'!EX63)","v":1},{"$f":"IF('2011 Survey responses'!EZ63<0.5,\"\",'2011 Survey responses'!EZ63)","v":3},{"$f":"IF('2011 Survey responses'!FB63<0.5,\"\",'2011 Survey responses'!FB63)","v":4},{"$f":"IF('2011 Survey responses'!FD63<0.5,\"\",'2011 Survey responses'!FD63)","v":4},{"$f":"IF('2011 Survey responses'!FC63<0.5,\"\",'2011 Survey responses'!FC63)","v":4},{"$f":"IF(('2011 Survey responses'!EM63+'2011 Survey responses'!EN63)>=2,AVERAGE('2011 Survey responses'!EM63,'2011 Survey responses'!EN63),\"\")","v":1},{"$f":"IF('2011 Survey responses'!ES63<0.5,\"\",'2011 Survey responses'!ES63)","v":4},{"$f":"IF(('2011 Survey responses'!ET63+'2011 Survey responses'!EU63)>=2,AVERAGE('2011 Survey responses'!ET63,'2011 Survey responses'!EU63),\"\")","v":4},{"$f":"IF('2011 Survey responses'!EV63<0.5,\"\",'2011 Survey responses'!EV63)","v":3},{"$f":"IF('2011 Survey responses'!FA63<0.5,\"\",'2011 Survey responses'!FA63)","v":3},{"$f":"IF('2011 Survey responses'!ER63<0.5,\"\",'2011 Survey responses'!ER63)","v":5},{"$f":"IF(('2011 Survey responses'!EO63+'2011 Survey responses'!EP63)>=2,AVERAGE('2011 Survey responses'!EO63,'2011 Survey responses'!EP63),\"\")","v":3.5},{"$f":"IF('2011 Survey responses'!EQ63<0.5,\"\",'2011 Survey responses'!EQ63)","v":3},{"$f":"IF('2011 Survey responses'!ET63<0.5,\"\",'2011 Survey responses'!ET63)","v":4},{"$f":"IF('2011 Survey responses'!EU63<0.5,\"\",'2011 Survey responses'!EU63)","v":4},{"$f":"IF('2011 Survey responses'!EW63<0.5,\"\",'2011 Survey responses'!EW63)","v":4},{"$f":"IF('2011 Survey responses'!EY63<0.5,\"\",'2011 Survey responses'!EY63)","v":1},{"$f":"IF('2011 Survey responses'!FU63<0.5,\"\",'2011 Survey responses'!FU63)","v":5},{"$f":"IF(('2011 Survey responses'!FL63+'2011 Survey responses'!FM63)>=2,AVERAGE('2011 Survey responses'!FL63,'2011 Survey responses'!FM63),\"\")","v":5},{"$f":"IF(('2011 Survey responses'!FO63+'2011 Survey responses'!FQ63)>=2,AVERAGE('2011 Survey responses'!FO63,'2011 Survey responses'!FQ63),\"\")","v":3.5},{"$f":"IF('2011 Survey responses'!FJ63<0.5,\"\",'2011 Survey responses'!FJ63)","v":4},{"$f":"IF('2011 Survey responses'!FT63<0.5,\"\",'2011 Survey responses'!FT63)","v":4},{"$f":"IF('2011 Survey responses'!FR63<0.5,\"\",'2011 Survey responses'!FR63)","v":4},{"$f":"IF('2011 Survey responses'!FK63<0.5,\"\",'2011 Survey responses'!FK63)","v":4},{"$f":"IF('2011 Survey responses'!FP63<0.5,\"\",'2011 Survey responses'!FP63)","v":3},{"$f":"IF('2011 Survey responses'!FN63<0.5,\"\",'2011 Survey responses'!FN63)","v":2},{"$f":"IF(('2011 Survey responses'!FE63+'2011 Survey responses'!FF63)>=2,AVERAGE('2011 Survey responses'!FE63,'2011 Survey responses'!FF63),\"\")","v":3},{"$f":"IF('2011 Survey responses'!FS63<0.5,\"\",'2011 Survey responses'!FS63)","v":4},{"$f":"IF('2011 Survey responses'!FV63<0.5,\"\",'2011 Survey responses'!FV63)","v":5},{"$f":"IF(('2011 Survey responses'!FG63+'2011 Survey responses'!FH63)>=2,AVERAGE('2011 Survey responses'!FG63,'2011 Survey responses'!FH63),\"\")","v":4},{"$f":"IF('2011 Survey responses'!FI63<0.5,\"\",'2011 Survey responses'!FI63)","v":3},{"$f":"IF('2011 Survey responses'!FE63<0.5,\"\",'2011 Survey responses'!FE63)","v":3},{"$f":"IF('2011 Survey responses'!FF63<0.5,\"\",'2011 Survey responses'!FF63)","v":3},{"$f":"IF('2011 Survey responses'!FG63<0.5,\"\",'2011 Survey responses'!FG63)","v":4},{"$f":"IF('2011 Survey responses'!FH63<0.5,\"\",'2011 Survey responses'!FH63)","v":4},{"$f":"IF('2011 Survey responses'!FL63<0.5,\"\",'2011 Survey responses'!FL63)","v":5},{"$f":"IF('2011 Survey responses'!FM63<0.5,\"\",'2011 Survey responses'!FM63)","v":5},{"$f":"IF('2011 Survey responses'!FO63<0.5,\"\",'2011 Survey responses'!FO63)","v":4},{"$f":"IF('2011 Survey responses'!FQ63<0.5,\"\",'2011 Survey responses'!FQ63)","v":3}]
["Gabon",{"$f":"IF(SUM(F64)<1,\"\",AVERAGEIF('2011 Survey responses'!B64:CP64,\">1\"))","v":3.0681818181818183},{"$f":"IF(SUM(F64)<1,\"\",AVERAGEIF('2011 Survey responses'!B64:AO64,\">1\"))","v":2.7027027027027026},{"$f":"IF(SUM(F64)<1,\"\",AVERAGEIF('2011 Survey responses'!B64:BV64,\">1\"))","v":2.6857142857142855},{"$f":"IF(SUM(F64)<1,\"\",AVERAGEIF('2011 Survey responses'!V64:BV64,\">1\"))","v":2.7307692307692308},{"$f":"IF(SUM('2011 Survey responses'!B64:U64)<1,\"\",(AVERAGEIFS('2011 Survey responses'!B64:U64,'2011 Survey responses'!B64:U64,\">1\")))","v":2.5555555555555554},{"$f":"IF(SUM('2011 Survey responses'!B64:H64)<1,\"\",(AVERAGEIFS('2011 Survey responses'!B64:H64,'2011 Survey responses'!B64:H64,\">1\")))","v":2},{"$f":"IF(SUM('2011 Survey responses'!I64:S64)<1,\"\",(AVERAGEIFS('2011 Survey responses'!I64:S64,'2011 Survey responses'!I64:S64,\">1\")))","v":3},{"$f":"IF(SUM('2011 Survey responses'!T64:U64)<2.1,\"\",(AVERAGEIFS('2011 Survey responses'!T64:U64,'2011 Survey responses'!T64:U64,\">1\")))","v":2},{"$f":"IF(SUM('2011 Survey responses'!B64:C64)<2.1,\"\",((SUMIF('2011 Survey responses'!B64:C64,\">1\")+SUMIF('2011 Survey responses'!F64,\">1\"))/(COUNTIF('2011 Survey responses'!B64:C64,\">1\")+COUNTIF('2011 Survey responses'!F64,\">1\"))))","v":2},{"$f":"IF(SUM('2011 Survey responses'!D64:E64)<2.1,\"\",(AVERAGEIFS('2011 Survey responses'!D64:E64,'2011 Survey responses'!D64:E64,\">1\")))","v":2},{"$f":"IF(('2011 Survey responses'!B64+'2011 Survey responses'!D64)<2.1,\"\",((SUMIF('2011 Survey responses'!B64,\">1\")+SUMIF('2011 Survey responses'!D64,\">1\")+SUMIF('2011 Survey responses'!F64,\">1\")+SUMIF('2011 Survey responses'!K64,\">1\"))/(COUNTIF('2011 Survey responses'!B64,\">1\")+COUNTIF('2011 Survey responses'!D64,\">1\")+COUNTIF('2011 Survey responses'!F64,\">1\")+COUNTIF('2011 Survey responses'!K64,\">1\"))))","v":2},{"$f":"IF(SUM('2011 Survey responses'!G64:H64)<2.1,\"\",(AVERAGEIFS('2011 Survey responses'!G64:H64,'2011 Survey responses'!G64:H64,\">1\")))","v":2},{"$f":"IF(SUM('2011 Survey responses'!F64:G64)<1.5,\"\",MAX('2011 Survey responses'!F64,'2011 Survey responses'!G64))","v":2},{"$f":"IF(SUM('2011 Survey responses'!G64:H64)<1,\"\",MAX('2011 Survey responses'!G64,'2011 Survey responses'!H64))","v":2},{"$f":"IF(SUM('2011 Survey responses'!I64:L64)<4.1,\"\",(AVERAGEIFS('2011 Survey responses'!I64:L64,'2011 Survey responses'!I64:L64,\">1\")))","v":3},{"$f":"IF(SUM('2011 Survey responses'!M64:S64)<4.1,\"\",(AVERAGEIFS('2011 Survey responses'!M64:S64,'2011 Survey responses'!M64:S64,\">1\")))","v":3},{"$f":"IF(SUM('2011 Survey responses'!T64:U64)<2.1,\"\",(AVERAGEIFS('2011 Survey responses'!T64:U64,'2011 Survey responses'!T64:U64,\">1\")))","v":2},{"$f":"IF(SUM('2011 Survey responses'!V64:AO64)<1,\"\",(AVERAGEIFS('2011 Survey responses'!V64:AO64,'2011 Survey responses'!V64:AO64,\">1\")))","v":2.8421052631578947},{"$f":"IF(SUM('2011 Survey responses'!V64:AA64)<1,\"\",(AVERAGEIFS('2011 Survey responses'!V64:AA64,'2011 Survey responses'!V64:AA64,\">1\")))","v":2.4},{"$f":"IF(SUM('2011 Survey responses'!AB64:AH64)<1,\"\",(AVERAGEIFS('2011 Survey responses'!AB64:AH64,'2011 Survey responses'!AB64:AH64,\">1\")))","v":3.7142857142857144},{"$f":"IF(SUM('2011 Survey responses'!AI64:AO64)<1,\"\",(AVERAGEIFS('2011 Survey responses'!AI64:AO64,'2011 Survey responses'!AI64:AO64,\">1\")))","v":2.2857142857142856},{"$f":"IF(('2011 Survey responses'!Y64+'2011 Survey responses'!AI64+'2011 Survey responses'!AK64)<3.1,\"\",((SUMIF('2011 Survey responses'!Y64,\">1\")+SUMIF('2011 Survey responses'!AI64,\">1\")+SUMIF('2011 Survey responses'!AK64,\">1\")+SUMIF('2011 Survey responses'!AM64,\">1\"))/(COUNTIF('2011 Survey responses'!Y64,\">1\")+COUNTIF('2011 Survey responses'!AI64,\">1\")+COUNTIF('2011 Survey responses'!AK64,\">1\")+COUNTIF('2011 Survey responses'!AM64,\">1\"))))","v":2},{"$f":"IF(('2011 Survey responses'!W64)<1.1,\"\",('2011 Survey responses'!W64))","v":3},{"$f":"IF(('2011 Survey responses'!Y64)<1.1,\"\",('2011 Survey responses'!Y64))","v":""},{"$f":"IF(('2011 Survey responses'!Z64)<1.1,\"\",('2011 Survey responses'!Z64))","v":2},{"$f":"IF(('2011 Survey responses'!V64+'2011 Survey responses'!X64+'2011 Survey responses'!AA64)<3.1,\"\",((SUMIF('2011 Survey responses'!V64,\">1\")+SUMIF('2011 Survey responses'!X64,\">1\")+SUMIF('2011 Survey responses'!AA64,\">1\"))/(COUNTIF('2011 Survey responses'!V64,\">1\")+COUNTIF('2011 Survey responses'!X64,\">1\")+COUNTIF('2011 Survey responses'!AA64,\">1\"))))","v":2.3333333333333335},{"$f":"IF(('2011 Survey responses'!V64+'2011 Survey responses'!Y64+'2011 Survey responses'!AA64)<3.1,\"\",((SUMIF('2011 Survey responses'!V64,\">1\")+SUMIF('2011 Survey responses'!Y64,\">1\")+SUMIF('2011 Survey responses'!AA64,\">1\"))/(COUNTIF('2011 Survey responses'!V64,\">1\")+COUNTIF('2011 Survey responses'!Y64,\">1\")+COUNTIF('2011 Survey responses'!AA64,\">1\"))))","v":2},{"$f":"IF(SUM('2011 Survey responses'!AB64:AH64)<1,\"\",(AVERAGEIFS('2011 Survey responses'!AB64:AH64,'2011 Survey responses'!AB64:AH64,\">1\")))","v":3.7142857142857144},{"$f":"IF(SUM('2011 Survey responses'!AI64:AO64)<7.1,\"\",(AVERAGEIFS('2011 Survey responses'!AI64:AO64,'2011 Survey responses'!AI64:AO64,\">1\")))","v":2.2857142857142856},{"$f":"IF(('2011 Survey responses'!AH64)<1.1,\"\",('2011 Survey responses'!AH64))","v":2},{"$f":"IF(SUM('2011 Survey responses'!AP64:BV64)<1,\"\",(AVERAGEIFS('2011 Survey responses'!AP64:BV64,'2011 Survey responses'!AP64:BV64,\">1\")))","v":2.6666666666666665},{"$f":"IF(SUM('2011 Survey responses'!AP64:AS64)<4.1,\"\",(AVERAGEIFS('2011 Survey responses'!AP64:AS64,'2011 Survey responses'!AP64:AS64,\">1\")))","v":2},{"$f":"IF(SUM('2011 Survey responses'!AT64:BF64)<1,\"\",(AVERAGEIFS('2011 Survey responses'!AT64:BF64,'2011 Survey responses'!AT64:BF64,\">1\")))","v":2.6923076923076925},{"$f":"IF(SUM('2011 Survey responses'!BG64:BO64)<1,\"\",(AVERAGEIFS('2011 Survey responses'!BG64:BO64,'2011 Survey responses'!BG64:BO64,\">1\")))","v":3},{"$f":"IF(SUM('2011 Survey responses'!BP64:BS64)<1,\"\",(AVERAGEIFS('2011 Survey responses'!BP64:BS64,'2011 Survey responses'!BP64:BS64,\">1\")))","v":2},{"$f":"IF(SUM('2011 Survey responses'!BT64:BV64)<3.1,\"\",(AVERAGEIFS('2011 Survey responses'!BT64:BV64,'2011 Survey responses'!BT64:BV64,\">1\")))","v":3.3333333333333335},{"$f":"IF(('2011 Survey responses'!AQ64+'2011 Survey responses'!AR64+'2011 Survey responses'!BG64)<3.1,\"\",((SUMIF('2011 Survey responses'!AQ64,\">1\")+SUMIF('2011 Survey responses'!AR64,\">1\")+SUMIF('2011 Survey responses'!BG64,\">1\"))/(COUNTIF('2011 Survey responses'!AQ64,\">1\")+COUNTIF('2011 Survey responses'!AR64,\">1\")+COUNTIF('2011 Survey responses'!BG64,\">1\"))))","v":3.3333333333333335},{"$f":"IF(SUM('2011 Survey responses'!AP64:AS64)<4.1,\"\",(AVERAGEIFS('2011 Survey responses'!AP64:AS64,'2011 Survey responses'!AP64:AS64,\">1\")))","v":2},{"$f":"IF(('2011 Survey responses'!AU64+'2011 Survey responses'!AX64+'2011 Survey responses'!BA64+'2011 Survey responses'!BC64+'2011 Survey responses'!BD64)<5.1,\"\",(SUMIF('2011 Survey responses'!AU64,\">1\")+SUMIF('2011 Survey responses'!AX64,\">1\")+SUMIF('2011 Survey responses'!BA64,\">1\")+SUMIF('2011 Survey responses'!BC64,\">1\")+SUMIF('2011 Survey responses'!BD64,\">1\"))/(COUNTIF('2011 Survey responses'!AU64,\">1\")+COUNTIF('2011 Survey responses'!AX64,\">1\")+COUNTIF('2011 Survey responses'!BA64,\">1\")+COUNTIF('2011 Survey responses'!BC64,\">1\")+COUNTIF('2011 Survey responses'!BD64,\">1\")))","v":2.6},{"$f":"IF(('2011 Survey responses'!AT64)<1.1,\"\",('2011 Survey responses'!AT64))","v":2},{"$f":"IF(SUM('2011 Survey responses'!AV64:AW64)<2.1,\"\",(AVERAGEIFS('2011 Survey responses'!AV64:AW64,'2011 Survey responses'!AV64:AW64,\">1\")))","v":2},{"$f":"IF(('2011 Survey responses'!AW64+'2011 Survey responses'!AY64)<2.1,\"\",(SUMIF('2011 Survey responses'!AW64,\">1\")+SUMIF('2011 Survey responses'!AY64,\">1\"))/(COUNTIF('2011 Survey responses'!AW64,\">1\")+COUNTIF('2011 Survey responses'!AY64,\">1\")))","v":2},{"$f":"IF(('2011 Survey responses'!AZ64)<1.1,\"\",('2011 Survey responses'!AZ64))","v":4},4,2,2,6,{"$f":"IF(('2011 Survey responses'!BE64)<1.1,\"\",('2011 Survey responses'!BE64))","v":2},{"$f":"IF(('2011 Survey responses'!AY64+'2011 Survey responses'!BB64+'2011 Survey responses'!BF64)<3.1,\"\",(SUMIF('2011 Survey responses'!AY64,\">1\")+SUMIF('2011 Survey responses'!BB64,\">1\")+SUMIF('2011 Survey responses'!BF64,\">1\"))/(COUNTIF('2011 Survey responses'!AY64,\">1\")+COUNTIF('2011 Survey responses'!BB64,\">1\")+COUNTIF('2011 Survey responses'!BF64,\">1\")))","v":3.3333333333333335},2.5,{"$f":"IF(SUM('2011 Survey responses'!BT64:BV64)<3.1,\"\",(AVERAGEIFS('2011 Survey responses'!BT64:BV64,'2011 Survey responses'!BT64:BV64,\">1\")))","v":3.3333333333333335},{"$f":"IF(SUM('2011 Survey responses'!BW64:CP64)<1,\"\",(AVERAGEIFS('2011 Survey responses'!BW64:CP64,'2011 Survey responses'!BW64:CP64,\">1\")))","v":4.5555555555555554},{"$f":"IF(SUM('2011 Survey responses'!BW64:CF64)<1,\"\",(AVERAGEIFS('2011 Survey responses'!BW64:CF64,'2011 Survey responses'!BW64:CF64,\">1\")))","v":4.666666666666667},{"$f":"IF(SUM('2011 Survey responses'!CG64:CP64)<1,\"\",(AVERAGEIFS('2011 Survey responses'!CG64:CP64,'2011 Survey responses'!CG64:CP64,\">1\")))","v":4.4444444444444446},{"$f":"IF(SUM('2011 Survey responses'!BX64:CF64)<1,\"\",(AVERAGEIFS('2011 Survey responses'!BX64:CF64,'2011 Survey responses'!BX64:CF64,\">1\")))","v":4.5},{"$f":"IF(SUM('2011 Survey responses'!CH64:CP64)<1,\"\",(AVERAGEIFS('2011 Survey responses'!CH64:CP64,'2011 Survey responses'!CH64:CP64,\">1\")))","v":4.375},{"$f":"IF(SUM('2011 Survey responses'!BW64:CP64)<1,\"\",(AVERAGEIFS('2011 Survey responses'!BW64:CP64,'2011 Survey responses'!BW64:CP64,\">1\")))","v":4.5555555555555554},{"$f":"IF(('2011 Survey responses'!BW64+'2011 Survey responses'!CG64)<2.1,\"\",(SUMIF('2011 Survey responses'!BW64,\">1\")+SUMIF('2011 Survey responses'!CG64,\">1\"))/(COUNTIF('2011 Survey responses'!BW64,\">1\")+COUNTIF('2011 Survey responses'!CG64,\">1\")))","v":5.5},{"$f":"IF(('2011 Survey responses'!BX64+'2011 Survey responses'!CH64)<2.1,\"\",(SUMIF('2011 Survey responses'!BX64,\">1\")+SUMIF('2011 Survey responses'!CH64,\">1\"))/(COUNTIF('2011 Survey responses'!BX64,\">1\")+COUNTIF('2011 Survey responses'!CH64,\">1\")))","v":4},{"$f":"IF(('2011 Survey responses'!BY64+'2011 Survey responses'!CI64)<2.1,\"\",(SUMIF('2011 Survey responses'!BY64,\">1\")+SUMIF('2011 Survey responses'!CI64,\">1\"))/(COUNTIF('2011 Survey responses'!BY64,\">1\")+COUNTIF('2011 Survey responses'!CI64,\">1\")))","v":5.5},{"$f":"IF('2011 Survey responses'!CQ64<0.5,\"\",'2011 Survey responses'!CQ64)","v":4},{"$f":"IF('2011 Survey responses'!CR64<0.5,\"\",'2011 Survey responses'!CR64)","v":5},{"$f":"IF('2011 Survey responses'!CS64<0.5,\"\",'2011 Survey responses'!CS64)","v":5},{"$f":"IF('2011 Survey responses'!CT64<0.5,\"\",'2011 Survey responses'!CT64)","v":1},{"$f":"IF('2011 Survey responses'!CU64<0.5,\"\",'2011 Survey responses'!CU64)","v":4},{"$f":"IF('2011 Survey responses'!CV64<0.5,\"\",'2011 Survey responses'!CV64)","v":1},{"$f":"IF(SUM('2011 Survey responses'!CW64:DL64)<1,\"\",(AVERAGE('2011 Survey responses'!CW64:DL64)))","v":3.5625},{"$f":"IF(SUM('2011 Survey responses'!CW64:CZ64)<1,\"\",(AVERAGE('2011 Survey responses'!CW64:CZ64)))","v":4.25},{"$f":"IF(SUM('2011 Survey responses'!DA64:DD64)<1,\"\",(AVERAGE('2011 Survey responses'!DA64:DD64)))","v":3},{"$f":"IF(SUM('2011 Survey responses'!DE64:DH64)<1,\"\",(AVERAGE('2011 Survey responses'!DE64:DH64)))","v":3},{"$f":"IF(SUM('2011 Survey responses'!DI64:DL64)<1,\"\",(AVERAGE('2011 Survey responses'!DI64:DL64)))","v":4},{"$f":"IF(('2011 Survey responses'!CW64+'2011 Survey responses'!DA64+'2011 Survey responses'!DE64+'2011 Survey responses'!DI64)<1,\"\",AVERAGE('2011 Survey responses'!CW64,'2011 Survey responses'!DA64,'2011 Survey responses'!DE64,'2011 Survey responses'!DI64))","v":3.5},{"$f":"IF(('2011 Survey responses'!CX64+'2011 Survey responses'!DB64+'2011 Survey responses'!DF64+'2011 Survey responses'!DJ64)<1,\"\",AVERAGE('2011 Survey responses'!CX64,'2011 Survey responses'!DB64,'2011 Survey responses'!DF64,'2011 Survey responses'!DJ64))","v":3.5},{"$f":"IF(('2011 Survey responses'!CY64+'2011 Survey responses'!DC64+'2011 Survey responses'!DG64+'2011 Survey responses'!DK64)<1,\"\",AVERAGE('2011 Survey responses'!CY64,'2011 Survey responses'!DC64,'2011 Survey responses'!DG64,'2011 Survey responses'!DK64))","v":3.75},{"$f":"IF(('2011 Survey responses'!CZ64+'2011 Survey responses'!DD64+'2011 Survey responses'!DH64+'2011 Survey responses'!DL64)<1,\"\",AVERAGE('2011 Survey responses'!CZ64,'2011 Survey responses'!DD64,'2011 Survey responses'!DH64,'2011 Survey responses'!DL64))","v":3.5},{"$f":"IF('2011 Survey responses'!CW64<0.5,\"\",'2011 Survey responses'!CW64)","v":4},{"$f":"IF('2011 Survey responses'!CX64<0.5,\"\",'2011 Survey responses'!CX64)","v":4},{"$f":"IF('2011 Survey responses'!CY64<0.5,\"\",'2011 Survey responses'!CY64)","v":5},{"$f":"IF('2011 Survey responses'!CZ64<0.5,\"\",'2011 Survey responses'!CZ64)","v":4},{"$f":"IF('2011 Survey responses'!DA64<0.5,\"\",'2011 Survey responses'!DA64)","v":3},{"$f":"IF('2011 Survey responses'!DB64<0.5,\"\",'2011 Survey responses'!DB64)","v":3},{"$f":"IF('2011 Survey responses'!DC64<0.5,\"\",'2011 Survey responses'!DC64)","v":3},{"$f":"IF('2011 Survey responses'!DD64<0.5,\"\",'2011 Survey responses'!DD64)","v":3},{"$f":"IF('2011 Survey responses'!DE64<0.5,\"\",'2011 Survey responses'!DE64)","v":3},{"$f":"IF('2011 Survey responses'!DF64<0.5,\"\",'2011 Survey responses'!DF64)","v":3},{"$f":"IF('2011 Survey responses'!DG64<0.5,\"\",'2011 Survey responses'!DG64)","v":3},{"$f":"IF('2011 Survey responses'!DH64<0.5,\"\",'2011 Survey responses'!DH64)","v":3},{"$f":"IF('2011 Survey responses'!DI64<0.5,\"\",'2011 Survey responses'!DI64)","v":4},{"$f":"IF('2011 Survey responses'!DJ64<0.5,\"\",'2011 Survey responses'!DJ64)","v":4},{"$f":"IF('2011 Survey responses'!DK64<0.5,\"\",'2011 Survey responses'!DK64)","v":4},{"$f":"IF('2011 Survey responses'!DL64<0.5,\"\",'2011 Survey responses'!DL64)","v":4},{"$f":"IF('2011 Survey responses'!DU64=4,4,IF('2011 Survey responses'!DU64=5,4,\"\"))","v":""},{"$f":"IF('2011 Survey responses'!DV64=4,3,IF('2011 Survey responses'!DV64=5,3,\"\"))","v":""},"",{"$f":"IF(CQ64=2,CQ64,IF(CO64=4,CO64,IF(CP64=3,CP64,IF('2011 Survey responses'!GT64=1,1,\"\"))))","v":1},{"$f":"IF('2011 Survey responses'!DO64<0.5,\"\",'2011 Survey responses'!DO64)","v":4},{"$f":"IF('2011 Survey responses'!DP64<0.5,\"\",'2011 Survey responses'!DP64)","v":5},{"$f":"IF('2011 Survey responses'!DQ64<0.5,\"\",'2011 Survey responses'!DQ64)","v":5},{"$f":"IF('2011 Survey responses'!DR64<0.5,\"\",'2011 Survey responses'!DR64)","v":5},{"$f":"IF('2011 Survey responses'!DS64<0.5,\"\",'2011 Survey responses'!DS64)","v":4},{"$f":"IF('2011 Survey responses'!DT64<0.5,\"\",'2011 Survey responses'!DT64)","v":5},{"$f":"IF('2011 Survey responses'!DU64<0.5,\"\",'2011 Survey responses'!DU64)","v":3},{"$f":"IF('2011 Survey responses'!DV64<0.5,\"\",'2011 Survey responses'!DV64)","v":1},{"$f":"IF('2011 Survey responses'!DW64<0.5,\"\",'2011 Survey responses'!DW64)","v":3},{"$f":"IF('2011 Survey responses'!DX64<0.5,\"\",'2011 Survey responses'!DX64)","v":1},{"$f":"IF('2011 Survey responses'!DY64<0.5,\"\",'2011 Survey responses'!DY64)","v":3},{"$f":"IF('2011 Survey responses'!DZ64<0.5,\"\",'2011 Survey responses'!DZ64)","v":3},{"$f":"IF('2011 Survey responses'!EA64<0.5,\"\",'2011 Survey responses'!EA64)","v":4},{"$f":"IF('2011 Survey responses'!EB64<0.5,\"\",'2011 Survey responses'!EB64)","v":5},{"$f":"IF('2011 Survey responses'!EC64<0.5,\"\",'2011 Survey responses'!EC64)","v":5},{"$f":"IF('2011 Survey responses'!ED64<0.5,\"\",'2011 Survey responses'!ED64)","v":5},{"$f":"IF('2011 Survey responses'!EE64<0.5,\"\",'2011 Survey responses'!EE64)","v":4},{"$f":"IF('2011 Survey responses'!EF64<0.5,\"\",'2011 Survey responses'!EF64)","v":5},{"$f":"IF('2011 Survey responses'!EG64<0.5,\"\",'2011 Survey responses'!EG64)","v":3},{"$f":"IF('2011 Survey responses'!EH64<0.5,\"\",'2011 Survey responses'!EH64)","v":1},{"$f":"IF('2011 Survey responses'!EI64<0.5,\"\",'2011 Survey responses'!EI64)","v":3},{"$f":"IF('2011 Survey responses'!EJ64<0.5,\"\",'2011 Survey responses'!EJ64)","v":1},{"$f":"IF('2011 Survey responses'!EK64<0.5,\"\",'2011 Survey responses'!EK64)","v":3},{"$f":"IF('2011 Survey responses'!EL64<0.5,\"\",'2011 Survey responses'!EL64)","v":3},{"$f":"IF('2011 Survey responses'!EM64<0.5,\"\",'2011 Survey responses'!EM64)","v":5},{"$f":"IF('2011 Survey responses'!EN64<0.5,\"\",'2011 Survey responses'!EN64)","v":3},{"$f":"IF('2011 Survey responses'!EO64<0.5,\"\",'2011 Survey responses'!EO64)","v":3},{"$f":"IF('2011 Survey responses'!EP64<0.5,\"\",'2011 Survey responses'!EP64)","v":1},{"$f":"IF(('2011 Survey responses'!EW64+'2011 Survey responses'!EX64)>=2,AVERAGE('2011 Survey responses'!EW64,'2011 Survey responses'!EY64),\"\")","v":5},{"$f":"IF('2011 Survey responses'!EX64<0.5,\"\",'2011 Survey responses'!EX64)","v":5},{"$f":"IF('2011 Survey responses'!EZ64<0.5,\"\",'2011 Survey responses'!EZ64)","v":5},{"$f":"IF('2011 Survey responses'!FB64<0.5,\"\",'2011 Survey responses'!FB64)","v":4},{"$f":"IF('2011 Survey responses'!FD64<0.5,\"\",'2011 Survey responses'!FD64)","v":5},{"$f":"IF('2011 Survey responses'!FC64<0.5,\"\",'2011 Survey responses'!FC64)","v":5},{"$f":"IF(('2011 Survey responses'!EM64+'2011 Survey responses'!EN64)>=2,AVERAGE('2011 Survey responses'!EM64,'2011 Survey responses'!EN64),\"\")","v":4},{"$f":"IF('2011 Survey responses'!ES64<0.5,\"\",'2011 Survey responses'!ES64)","v":5},{"$f":"IF(('2011 Survey responses'!ET64+'2011 Survey responses'!EU64)>=2,AVERAGE('2011 Survey responses'!ET64,'2011 Survey responses'!EU64),\"\")","v":3},{"$f":"IF('2011 Survey responses'!EV64<0.5,\"\",'2011 Survey responses'!EV64)","v":5},{"$f":"IF('2011 Survey responses'!FA64<0.5,\"\",'2011 Survey responses'!FA64)","v":4},{"$f":"IF('2011 Survey responses'!ER64<0.5,\"\",'2011 Survey responses'!ER64)","v":3},{"$f":"IF(('2011 Survey responses'!EO64+'2011 Survey responses'!EP64)>=2,AVERAGE('2011 Survey responses'!EO64,'2011 Survey responses'!EP64),\"\")","v":2},{"$f":"IF('2011 Survey responses'!EQ64<0.5,\"\",'2011 Survey responses'!EQ64)","v":3},{"$f":"IF('2011 Survey responses'!ET64<0.5,\"\",'2011 Survey responses'!ET64)","v":5},{"$f":"IF('2011 Survey responses'!EU64<0.5,\"\",'2011 Survey responses'!EU64)","v":1},{"$f":"IF('2011 Survey responses'!EW64<0.5,\"\",'2011 Survey responses'!EW64)","v":5},{"$f":"IF('2011 Survey responses'!EY64<0.5,\"\",'2011 Survey responses'!EY64)","v":5},{"$f":"IF('2011 Survey responses'!FU64<0.5,\"\",'2011 Survey responses'!FU64)","v":4},{"$f":"IF(('2011 Survey responses'!FL64+'2011 Survey responses'!FM64)>=2,AVERAGE('2011 Survey responses'!FL64,'2011 Survey responses'!FM64),\"\")","v":3.5},{"$f":"IF(('2011 Survey responses'!FO64+'2011 Survey responses'!FQ64)>=2,AVERAGE('2011 Survey responses'!FO64,'2011 Survey responses'!FQ64),\"\")","v":5},{"$f":"IF('2011 Survey responses'!FJ64<0.5,\"\",'2011 Survey responses'!FJ64)","v":4},{"$f":"IF('2011 Survey responses'!FT64<0.5,\"\",'2011 Survey responses'!FT64)","v":4},{"$f":"IF('2011 Survey responses'!FR64<0.5,\"\",'2011 Survey responses'!FR64)","v":5},{"$f":"IF('2011 Survey responses'!FK64<0.5,\"\",'2011 Survey responses'!FK64)","v":4},{"$f":"IF('2011 Survey responses'!FP64<0.5,\"\",'2011 Survey responses'!FP64)","v":5},{"$f":"IF('2011 Survey responses'!FN64<0.5,\"\",'2011 Survey responses'!FN64)","v":5},{"$f":"IF(('2011 Survey responses'!FE64+'2011 Survey responses'!FF64)>=2,AVERAGE('2011 Survey responses'!FE64,'2011 Survey responses'!FF64),\"\")","v":4.5},{"$f":"IF('2011 Survey responses'!FS64<0.5,\"\",'2011 Survey responses'!FS64)","v":4},{"$f":"IF('2011 Survey responses'!FV64<0.5,\"\",'2011 Survey responses'!FV64)","v":5},{"$f":"IF(('2011 Survey responses'!FG64+'2011 Survey responses'!FH64)>=2,AVERAGE('2011 Survey responses'!FG64,'2011 Survey responses'!FH64),\"\")","v":3},{"$f":"IF('2011 Survey responses'!FI64<0.5,\"\",'2011 Survey responses'!FI64)","v":4},{"$f":"IF('2011 Survey responses'!FE64<0.5,\"\",'2011 Survey responses'!FE64)","v":5},{"$f":"IF('2011 Survey responses'!FF64<0.5,\"\",'2011 Survey responses'!FF64)","v":4},{"$f":"IF('2011 Survey responses'!FG64<0.5,\"\",'2011 Survey responses'!FG64)","v":3},{"$f":"IF('2011 Survey responses'!FH64<0.5,\"\",'2011 Survey responses'!FH64)","v":3},{"$f":"IF('2011 Survey responses'!FL64<0.5,\"\",'2011 Survey responses'!FL64)","v":4},{"$f":"IF('2011 Survey responses'!FM64<0.5,\"\",'2011 Survey responses'!FM64)","v":3},{"$f":"IF('2011 Survey responses'!FO64<0.5,\"\",'2011 Survey responses'!FO64)","v":5},{"$f":"IF('2011 Survey responses'!FQ64<0.5,\"\",'2011 Survey responses'!FQ64)","v":5}]
["Gambia",{"$f":"IF(SUM(F65)<1,\"\",AVERAGEIF('2011 Survey responses'!B65:CP65,\">1\"))","v":3.4666666666666668},{"$f":"IF(SUM(F65)<1,\"\",AVERAGEIF('2011 Survey responses'!B65:AO65,\">1\"))","v":3.7586206896551726},{"$f":"IF(SUM(F65)<1,\"\",AVERAGEIF('2011 Survey responses'!B65:BV65,\">1\"))","v":3.2033898305084745},{"$f":"IF(SUM(F65)<1,\"\",AVERAGEIF('2011 Survey responses'!V65:BV65,\">1\"))","v":3.0851063829787235},{"$f":"IF(SUM('2011 Survey responses'!B65:U65)<1,\"\",(AVERAGEIFS('2011 Survey responses'!B65:U65,'2011 Survey responses'!B65:U65,\">1\")))","v":3.6666666666666665},{"$f":"IF(SUM('2011 Survey responses'!B65:H65)<1,\"\",(AVERAGEIFS('2011 Survey responses'!B65:H65,'2011 Survey responses'!B65:H65,\">1\")))","v":3.5},{"$f":"IF(SUM('2011 Survey responses'!I65:S65)<1,\"\",(AVERAGEIFS('2011 Survey responses'!I65:S65,'2011 Survey responses'!I65:S65,\">1\")))","v":3.375},{"$f":"IF(SUM('2011 Survey responses'!T65:U65)<2.1,\"\",(AVERAGEIFS('2011 Survey responses'!T65:U65,'2011 Survey responses'!T65:U65,\">1\")))","v":5},{"$f":"IF(SUM('2011 Survey responses'!B65:C65)<2.1,\"\",((SUMIF('2011 Survey responses'!B65:C65,\">1\")+SUMIF('2011 Survey responses'!F65,\">1\"))/(COUNTIF('2011 Survey responses'!B65:C65,\">1\")+COUNTIF('2011 Survey responses'!F65,\">1\"))))","v":3.5},{"$f":"IF(SUM('2011 Survey responses'!D65:E65)<2.1,\"\",(AVERAGEIFS('2011 Survey responses'!D65:E65,'2011 Survey responses'!D65:E65,\">1\")))","v":""},{"$f":"IF(('2011 Survey responses'!B65+'2011 Survey responses'!D65)<2.1,\"\",((SUMIF('2011 Survey responses'!B65,\">1\")+SUMIF('2011 Survey responses'!D65,\">1\")+SUMIF('2011 Survey responses'!F65,\">1\")+SUMIF('2011 Survey responses'!K65,\">1\"))/(COUNTIF('2011 Survey responses'!B65,\">1\")+COUNTIF('2011 Survey responses'!D65,\">1\")+COUNTIF('2011 Survey responses'!F65,\">1\")+COUNTIF('2011 Survey responses'!K65,\">1\"))))","v":3.6666666666666665},{"$f":"IF(SUM('2011 Survey responses'!G65:H65)<2.1,\"\",(AVERAGEIFS('2011 Survey responses'!G65:H65,'2011 Survey responses'!G65:H65,\">1\")))","v":""},{"$f":"IF(SUM('2011 Survey responses'!F65:G65)<1.5,\"\",MAX('2011 Survey responses'!F65,'2011 Survey responses'!G65))","v":3},{"$f":"IF(SUM('2011 Survey responses'!G65:H65)<1,\"\",MAX('2011 Survey responses'!G65,'2011 Survey responses'!H65))","v":""},{"$f":"IF(SUM('2011 Survey responses'!I65:L65)<4.1,\"\",(AVERAGEIFS('2011 Survey responses'!I65:L65,'2011 Survey responses'!I65:L65,\">1\")))","v":4.333333333333333},{"$f":"IF(SUM('2011 Survey responses'!M65:S65)<4.1,\"\",(AVERAGEIFS('2011 Survey responses'!M65:S65,'2011 Survey responses'!M65:S65,\">1\")))","v":2.8},{"$f":"IF(SUM('2011 Survey responses'!T65:U65)<2.1,\"\",(AVERAGEIFS('2011 Survey responses'!T65:U65,'2011 Survey responses'!T65:U65,\">1\")))","v":5},{"$f":"IF(SUM('2011 Survey responses'!V65:AO65)<1,\"\",(AVERAGEIFS('2011 Survey responses'!V65:AO65,'2011 Survey responses'!V65:AO65,\">1\")))","v":3.8235294117647061},{"$f":"IF(SUM('2011 Survey responses'!V65:AA65)<1,\"\",(AVERAGEIFS('2011 Survey responses'!V65:AA65,'2011 Survey responses'!V65:AA65,\">1\")))","v":4},{"$f":"IF(SUM('2011 Survey responses'!AB65:AH65)<1,\"\",(AVERAGEIFS('2011 Survey responses'!AB65:AH65,'2011 Survey responses'!AB65:AH65,\">1\")))","v":5},{"$f":"IF(SUM('2011 Survey responses'!AI65:AO65)<1,\"\",(AVERAGEIFS('2011 Survey responses'!AI65:AO65,'2011 Survey responses'!AI65:AO65,\">1\")))","v":2.3333333333333335},{"$f":"IF(('2011 Survey responses'!Y65+'2011 Survey responses'!AI65+'2011 Survey responses'!AK65)<3.1,\"\",((SUMIF('2011 Survey responses'!Y65,\">1\")+SUMIF('2011 Survey responses'!AI65,\">1\")+SUMIF('2011 Survey responses'!AK65,\">1\")+SUMIF('2011 Survey responses'!AM65,\">1\"))/(COUNTIF('2011 Survey responses'!Y65,\">1\")+COUNTIF('2011 Survey responses'!AI65,\">1\")+COUNTIF('2011 Survey responses'!AK65,\">1\")+COUNTIF('2011 Survey responses'!AM65,\">1\"))))","v":2.5},{"$f":"IF(('2011 Survey responses'!W65)<1.1,\"\",('2011 Survey responses'!W65))","v":2},{"$f":"IF(('2011 Survey responses'!Y65)<1.1,\"\",('2011 Survey responses'!Y65))","v":3},{"$f":"IF(('2011 Survey responses'!Z65)<1.1,\"\",('2011 Survey responses'!Z65))","v":""},{"$f":"IF(('2011 Survey responses'!V65+'2011 Survey responses'!X65+'2011 Survey responses'!AA65)<3.1,\"\",((SUMIF('2011 Survey responses'!V65,\">1\")+SUMIF('2011 Survey responses'!X65,\">1\")+SUMIF('2011 Survey responses'!AA65,\">1\"))/(COUNTIF('2011 Survey responses'!V65,\">1\")+COUNTIF('2011 Survey responses'!X65,\">1\")+COUNTIF('2011 Survey responses'!AA65,\">1\"))))","v":5.5},{"$f":"IF(('2011 Survey responses'!V65+'2011 Survey responses'!Y65+'2011 Survey responses'!AA65)<3.1,\"\",((SUMIF('2011 Survey responses'!V65,\">1\")+SUMIF('2011 Survey responses'!Y65,\">1\")+SUMIF('2011 Survey responses'!AA65,\">1\"))/(COUNTIF('2011 Survey responses'!V65,\">1\")+COUNTIF('2011 Survey responses'!Y65,\">1\")+COUNTIF('2011 Survey responses'!AA65,\">1\"))))","v":4.666666666666667},{"$f":"IF(SUM('2011 Survey responses'!AB65:AH65)<1,\"\",(AVERAGEIFS('2011 Survey responses'!AB65:AH65,'2011 Survey responses'!AB65:AH65,\">1\")))","v":5},{"$f":"IF(SUM('2011 Survey responses'!AI65:AO65)<7.1,\"\",(AVERAGEIFS('2011 Survey responses'!AI65:AO65,'2011 Survey responses'!AI65:AO65,\">1\")))","v":2.3333333333333335},{"$f":"IF(('2011 Survey responses'!AH65)<1.1,\"\",('2011 Survey responses'!AH65))","v":5},{"$f":"IF(SUM('2011 Survey responses'!AP65:BV65)<1,\"\",(AVERAGEIFS('2011 Survey responses'!AP65:BV65,'2011 Survey responses'!AP65:BV65,\">1\")))","v":2.6666666666666665},{"$f":"IF(SUM('2011 Survey responses'!AP65:AS65)<4.1,\"\",(AVERAGEIFS('2011 Survey responses'!AP65:AS65,'2011 Survey responses'!AP65:AS65,\">1\")))","v":2},{"$f":"IF(SUM('2011 Survey responses'!AT65:BF65)<1,\"\",(AVERAGEIFS('2011 Survey responses'!AT65:BF65,'2011 Survey responses'!AT65:BF65,\">1\")))","v":2.4166666666666665},{"$f":"IF(SUM('2011 Survey responses'!BG65:BO65)<1,\"\",(AVERAGEIFS('2011 Survey responses'!BG65:BO65,'2011 Survey responses'!BG65:BO65,\">1\")))","v":3.5},{"$f":"IF(SUM('2011 Survey responses'!BP65:BS65)<1,\"\",(AVERAGEIFS('2011 Survey responses'!BP65:BS65,'2011 Survey responses'!BP65:BS65,\">1\")))","v":2.25},{"$f":"IF(SUM('2011 Survey responses'!BT65:BV65)<3.1,\"\",(AVERAGEIFS('2011 Survey responses'!BT65:BV65,'2011 Survey responses'!BT65:BV65,\">1\")))","v":3},{"$f":"IF(('2011 Survey responses'!AQ65+'2011 Survey responses'!AR65+'2011 Survey responses'!BG65)<3.1,\"\",((SUMIF('2011 Survey responses'!AQ65,\">1\")+SUMIF('2011 Survey responses'!AR65,\">1\")+SUMIF('2011 Survey responses'!BG65,\">1\"))/(COUNTIF('2011 Survey responses'!AQ65,\">1\")+COUNTIF('2011 Survey responses'!AR65,\">1\")+COUNTIF('2011 Survey responses'!BG65,\">1\"))))","v":2},{"$f":"IF(SUM('2011 Survey responses'!AP65:AS65)<4.1,\"\",(AVERAGEIFS('2011 Survey responses'!AP65:AS65,'2011 Survey responses'!AP65:AS65,\">1\")))","v":2},{"$f":"IF(('2011 Survey responses'!AU65+'2011 Survey responses'!AX65+'2011 Survey responses'!BA65+'2011 Survey responses'!BC65+'2011 Survey responses'!BD65)<5.1,\"\",(SUMIF('2011 Survey responses'!AU65,\">1\")+SUMIF('2011 Survey responses'!AX65,\">1\")+SUMIF('2011 Survey responses'!BA65,\">1\")+SUMIF('2011 Survey responses'!BC65,\">1\")+SUMIF('2011 Survey responses'!BD65,\">1\"))/(COUNTIF('2011 Survey responses'!AU65,\">1\")+COUNTIF('2011 Survey responses'!AX65,\">1\")+COUNTIF('2011 Survey responses'!BA65,\">1\")+COUNTIF('2011 Survey responses'!BC65,\">1\")+COUNTIF('2011 Survey responses'!BD65,\">1\")))","v":2.5},{"$f":"IF(('2011 Survey responses'!AT65)<1.1,\"\",('2011 Survey responses'!AT65))","v":2},{"$f":"IF(SUM('2011 Survey responses'!AV65:AW65)<2.1,\"\",(AVERAGEIFS('2011 Survey responses'!AV65:AW65,'2011 Survey responses'!AV65:AW65,\">1\")))","v":2},{"$f":"IF(('2011 Survey responses'!AW65+'2011 Survey responses'!AY65)<2.1,\"\",(SUMIF('2011 Survey responses'!AW65,\">1\")+SUMIF('2011 Survey responses'!AY65,\">1\"))/(COUNTIF('2011 Survey responses'!AW65,\">1\")+COUNTIF('2011 Survey responses'!AY65,\">1\")))","v":2},{"$f":"IF(('2011 Survey responses'!AZ65)<1.1,\"\",('2011 Survey responses'!AZ65))","v":2},null,null,null,null,{"$f":"IF(('2011 Survey responses'!BE65)<1.1,\"\",('2011 Survey responses'!BE65))","v":2},{"$f":"IF(('2011 Survey responses'!AY65+'2011 Survey responses'!BB65+'2011 Survey responses'!BF65)<3.1,\"\",(SUMIF('2011 Survey responses'!AY65,\">1\")+SUMIF('2011 Survey responses'!BB65,\">1\")+SUMIF('2011 Survey responses'!BF65,\">1\"))/(COUNTIF('2011 Survey responses'!AY65,\">1\")+COUNTIF('2011 Survey responses'!BB65,\">1\")+COUNTIF('2011 Survey responses'!BF65,\">1\")))","v":3},2.875,{"$f":"IF(SUM('2011 Survey responses'!BT65:BV65)<3.1,\"\",(AVERAGEIFS('2011 Survey responses'!BT65:BV65,'2011 Survey responses'!BT65:BV65,\">1\")))","v":3},{"$f":"IF(SUM('2011 Survey responses'!BW65:CP65)<1,\"\",(AVERAGEIFS('2011 Survey responses'!BW65:CP65,'2011 Survey responses'!BW65:CP65,\">1\")))","v":4.4375},{"$f":"IF(SUM('2011 Survey responses'!BW65:CF65)<1,\"\",(AVERAGEIFS('2011 Survey responses'!BW65:CF65,'2011 Survey responses'!BW65:CF65,\">1\")))","v":4.5},{"$f":"IF(SUM('2011 Survey responses'!CG65:CP65)<1,\"\",(AVERAGEIFS('2011 Survey responses'!CG65:CP65,'2011 Survey responses'!CG65:CP65,\">1\")))","v":4.375},{"$f":"IF(SUM('2011 Survey responses'!BX65:CF65)<1,\"\",(AVERAGEIFS('2011 Survey responses'!BX65:CF65,'2011 Survey responses'!BX65:CF65,\">1\")))","v":4.2857142857142856},{"$f":"IF(SUM('2011 Survey responses'!CH65:CP65)<1,\"\",(AVERAGEIFS('2011 Survey responses'!CH65:CP65,'2011 Survey responses'!CH65:CP65,\">1\")))","v":4.1428571428571432},{"$f":"IF(SUM('2011 Survey responses'!BW65:CP65)<1,\"\",(AVERAGEIFS('2011 Survey responses'!BW65:CP65,'2011 Survey responses'!BW65:CP65,\">1\")))","v":4.4375},{"$f":"IF(('2011 Survey responses'!BW65+'2011 Survey responses'!CG65)<2.1,\"\",(SUMIF('2011 Survey responses'!BW65,\">1\")+SUMIF('2011 Survey responses'!CG65,\">1\"))/(COUNTIF('2011 Survey responses'!BW65,\">1\")+COUNTIF('2011 Survey responses'!CG65,\">1\")))","v":6},{"$f":"IF(('2011 Survey responses'!BX65+'2011 Survey responses'!CH65)<2.1,\"\",(SUMIF('2011 Survey responses'!BX65,\">1\")+SUMIF('2011 Survey responses'!CH65,\">1\"))/(COUNTIF('2011 Survey responses'!BX65,\">1\")+COUNTIF('2011 Survey responses'!CH65,\">1\")))","v":6},{"$f":"IF(('2011 Survey responses'!BY65+'2011 Survey responses'!CI65)<2.1,\"\",(SUMIF('2011 Survey responses'!BY65,\">1\")+SUMIF('2011 Survey responses'!CI65,\">1\"))/(COUNTIF('2011 Survey responses'!BY65,\">1\")+COUNTIF('2011 Survey responses'!CI65,\">1\")))","v":6},{"$f":"IF('2011 Survey responses'!CQ65<0.5,\"\",'2011 Survey responses'!CQ65)","v":4},{"$f":"IF('2011 Survey responses'!CR65<0.5,\"\",'2011 Survey responses'!CR65)","v":4},{"$f":"IF('2011 Survey responses'!CS65<0.5,\"\",'2011 Survey responses'!CS65)","v":5},{"$f":"IF('2011 Survey responses'!CT65<0.5,\"\",'2011 Survey responses'!CT65)","v":1},{"$f":"IF('2011 Survey responses'!CU65<0.5,\"\",'2011 Survey responses'!CU65)","v":1},{"$f":"IF('2011 Survey responses'!CV65<0.5,\"\",'2011 Survey responses'!CV65)","v":1},{"$f":"IF(SUM('2011 Survey responses'!CW65:DL65)<1,\"\",(AVERAGE('2011 Survey responses'!CW65:DL65)))","v":4.0625},{"$f":"IF(SUM('2011 Survey responses'!CW65:CZ65)<1,\"\",(AVERAGE('2011 Survey responses'!CW65:CZ65)))","v":4},{"$f":"IF(SUM('2011 Survey responses'!DA65:DD65)<1,\"\",(AVERAGE('2011 Survey responses'!DA65:DD65)))","v":4},{"$f":"IF(SUM('2011 Survey responses'!DE65:DH65)<1,\"\",(AVERAGE('2011 Survey responses'!DE65:DH65)))","v":4},{"$f":"IF(SUM('2011 Survey responses'!DI65:DL65)<1,\"\",(AVERAGE('2011 Survey responses'!DI65:DL65)))","v":4.25},{"$f":"IF(('2011 Survey responses'!CW65+'2011 Survey responses'!DA65+'2011 Survey responses'!DE65+'2011 Survey responses'!DI65)<1,\"\",AVERAGE('2011 Survey responses'!CW65,'2011 Survey responses'!DA65,'2011 Survey responses'!DE65,'2011 Survey responses'!DI65))","v":4.25},{"$f":"IF(('2011 Survey responses'!CX65+'2011 Survey responses'!DB65+'2011 Survey responses'!DF65+'2011 Survey responses'!DJ65)<1,\"\",AVERAGE('2011 Survey responses'!CX65,'2011 Survey responses'!DB65,'2011 Survey responses'!DF65,'2011 Survey responses'!DJ65))","v":4},{"$f":"IF(('2011 Survey responses'!CY65+'2011 Survey responses'!DC65+'2011 Survey responses'!DG65+'2011 Survey responses'!DK65)<1,\"\",AVERAGE('2011 Survey responses'!CY65,'2011 Survey responses'!DC65,'2011 Survey responses'!DG65,'2011 Survey responses'!DK65))","v":4},{"$f":"IF(('2011 Survey responses'!CZ65+'2011 Survey responses'!DD65+'2011 Survey responses'!DH65+'2011 Survey responses'!DL65)<1,\"\",AVERAGE('2011 Survey responses'!CZ65,'2011 Survey responses'!DD65,'2011 Survey responses'!DH65,'2011 Survey responses'!DL65))","v":4},{"$f":"IF('2011 Survey responses'!CW65<0.5,\"\",'2011 Survey responses'!CW65)","v":4},{"$f":"IF('2011 Survey responses'!CX65<0.5,\"\",'2011 Survey responses'!CX65)","v":4},{"$f":"IF('2011 Survey responses'!CY65<0.5,\"\",'2011 Survey responses'!CY65)","v":4},{"$f":"IF('2011 Survey responses'!CZ65<0.5,\"\",'2011 Survey responses'!CZ65)","v":4},{"$f":"IF('2011 Survey responses'!DA65<0.5,\"\",'2011 Survey responses'!DA65)","v":4},{"$f":"IF('2011 Survey responses'!DB65<0.5,\"\",'2011 Survey responses'!DB65)","v":4},{"$f":"IF('2011 Survey responses'!DC65<0.5,\"\",'2011 Survey responses'!DC65)","v":4},{"$f":"IF('2011 Survey responses'!DD65<0.5,\"\",'2011 Survey responses'!DD65)","v":4},{"$f":"IF('2011 Survey responses'!DE65<0.5,\"\",'2011 Survey responses'!DE65)","v":4},{"$f":"IF('2011 Survey responses'!DF65<0.5,\"\",'2011 Survey responses'!DF65)","v":4},{"$f":"IF('2011 Survey responses'!DG65<0.5,\"\",'2011 Survey responses'!DG65)","v":4},{"$f":"IF('2011 Survey responses'!DH65<0.5,\"\",'2011 Survey responses'!DH65)","v":4},{"$f":"IF('2011 Survey responses'!DI65<0.5,\"\",'2011 Survey responses'!DI65)","v":5},{"$f":"IF('2011 Survey responses'!DJ65<0.5,\"\",'2011 Survey responses'!DJ65)","v":4},{"$f":"IF('2011 Survey responses'!DK65<0.5,\"\",'2011 Survey responses'!DK65)","v":4},{"$f":"IF('2011 Survey responses'!DL65<0.5,\"\",'2011 Survey responses'!DL65)","v":4},{"$f":"IF('2011 Survey responses'!DU65=4,4,IF('2011 Survey responses'!DU65=5,4,\"\"))","v":4},{"$f":"IF('2011 Survey responses'!DV65=4,3,IF('2011 Survey responses'!DV65=5,3,\"\"))","v":3},2,{"$f":"IF(CQ65=2,CQ65,IF(CO65=4,CO65,IF(CP65=3,CP65,IF('2011 Survey responses'!GT65=1,1,\"\"))))","v":2},{"$f":"IF('2011 Survey responses'!DO65<0.5,\"\",'2011 Survey responses'!DO65)","v":5},{"$f":"IF('2011 Survey responses'!DP65<0.5,\"\",'2011 Survey responses'!DP65)","v":4},{"$f":"IF('2011 Survey responses'!DQ65<0.5,\"\",'2011 Survey responses'!DQ65)","v":4},{"$f":"IF('2011 Survey responses'!DR65<0.5,\"\",'2011 Survey responses'!DR65)","v":4},{"$f":"IF('2011 Survey responses'!DS65<0.5,\"\",'2011 Survey responses'!DS65)","v":4},{"$f":"IF('2011 Survey responses'!DT65<0.5,\"\",'2011 Survey responses'!DT65)","v":5},{"$f":"IF('2011 Survey responses'!DU65<0.5,\"\",'2011 Survey responses'!DU65)","v":4},{"$f":"IF('2011 Survey responses'!DV65<0.5,\"\",'2011 Survey responses'!DV65)","v":4},{"$f":"IF('2011 Survey responses'!DW65<0.5,\"\",'2011 Survey responses'!DW65)","v":3},{"$f":"IF('2011 Survey responses'!DX65<0.5,\"\",'2011 Survey responses'!DX65)","v":3},{"$f":"IF('2011 Survey responses'!DY65<0.5,\"\",'2011 Survey responses'!DY65)","v":3},{"$f":"IF('2011 Survey responses'!DZ65<0.5,\"\",'2011 Survey responses'!DZ65)","v":3},{"$f":"IF('2011 Survey responses'!EA65<0.5,\"\",'2011 Survey responses'!EA65)","v":4},{"$f":"IF('2011 Survey responses'!EB65<0.5,\"\",'2011 Survey responses'!EB65)","v":5},{"$f":"IF('2011 Survey responses'!EC65<0.5,\"\",'2011 Survey responses'!EC65)","v":3},{"$f":"IF('2011 Survey responses'!ED65<0.5,\"\",'2011 Survey responses'!ED65)","v":4},{"$f":"IF('2011 Survey responses'!EE65<0.5,\"\",'2011 Survey responses'!EE65)","v":4},{"$f":"IF('2011 Survey responses'!EF65<0.5,\"\",'2011 Survey responses'!EF65)","v":4},{"$f":"IF('2011 Survey responses'!EG65<0.5,\"\",'2011 Survey responses'!EG65)","v":5},{"$f":"IF('2011 Survey responses'!EH65<0.5,\"\",'2011 Survey responses'!EH65)","v":4},{"$f":"IF('2011 Survey responses'!EI65<0.5,\"\",'2011 Survey responses'!EI65)","v":3},{"$f":"IF('2011 Survey responses'!EJ65<0.5,\"\",'2011 Survey responses'!EJ65)","v":4},{"$f":"IF('2011 Survey responses'!EK65<0.5,\"\",'2011 Survey responses'!EK65)","v":3},{"$f":"IF('2011 Survey responses'!EL65<0.5,\"\",'2011 Survey responses'!EL65)","v":4},{"$f":"IF('2011 Survey responses'!EM65<0.5,\"\",'2011 Survey responses'!EM65)","v":5},{"$f":"IF('2011 Survey responses'!EN65<0.5,\"\",'2011 Survey responses'!EN65)","v":4},{"$f":"IF('2011 Survey responses'!EO65<0.5,\"\",'2011 Survey responses'!EO65)","v":4},{"$f":"IF('2011 Survey responses'!EP65<0.5,\"\",'2011 Survey responses'!EP65)","v":4},{"$f":"IF(('2011 Survey responses'!EW65+'2011 Survey responses'!EX65)>=2,AVERAGE('2011 Survey responses'!EW65,'2011 Survey responses'!EY65),\"\")","v":4.5},{"$f":"IF('2011 Survey responses'!EX65<0.5,\"\",'2011 Survey responses'!EX65)","v":5},{"$f":"IF('2011 Survey responses'!EZ65<0.5,\"\",'2011 Survey responses'!EZ65)","v":5},{"$f":"IF('2011 Survey responses'!FB65<0.5,\"\",'2011 Survey responses'!FB65)","v":5},{"$f":"IF('2011 Survey responses'!FD65<0.5,\"\",'2011 Survey responses'!FD65)","v":5},{"$f":"IF('2011 Survey responses'!FC65<0.5,\"\",'2011 Survey responses'!FC65)","v":5},{"$f":"IF(('2011 Survey responses'!EM65+'2011 Survey responses'!EN65)>=2,AVERAGE('2011 Survey responses'!EM65,'2011 Survey responses'!EN65),\"\")","v":4.5},{"$f":"IF('2011 Survey responses'!ES65<0.5,\"\",'2011 Survey responses'!ES65)","v":4},{"$f":"IF(('2011 Survey responses'!ET65+'2011 Survey responses'!EU65)>=2,AVERAGE('2011 Survey responses'!ET65,'2011 Survey responses'!EU65),\"\")","v":5},{"$f":"IF('2011 Survey responses'!EV65<0.5,\"\",'2011 Survey responses'!EV65)","v":4},{"$f":"IF('2011 Survey responses'!FA65<0.5,\"\",'2011 Survey responses'!FA65)","v":4},{"$f":"IF('2011 Survey responses'!ER65<0.5,\"\",'2011 Survey responses'!ER65)","v":4},{"$f":"IF(('2011 Survey responses'!EO65+'2011 Survey responses'!EP65)>=2,AVERAGE('2011 Survey responses'!EO65,'2011 Survey responses'!EP65),\"\")","v":4},{"$f":"IF('2011 Survey responses'!EQ65<0.5,\"\",'2011 Survey responses'!EQ65)","v":4},{"$f":"IF('2011 Survey responses'!ET65<0.5,\"\",'2011 Survey responses'!ET65)","v":5},{"$f":"IF('2011 Survey responses'!EU65<0.5,\"\",'2011 Survey responses'!EU65)","v":5},{"$f":"IF('2011 Survey responses'!EW65<0.5,\"\",'2011 Survey responses'!EW65)","v":4},{"$f":"IF('2011 Survey responses'!EY65<0.5,\"\",'2011 Survey responses'!EY65)","v":5},{"$f":"IF('2011 Survey responses'!FU65<0.5,\"\",'2011 Survey responses'!FU65)","v":5},{"$f":"IF(('2011 Survey responses'!FL65+'2011 Survey responses'!FM65)>=2,AVERAGE('2011 Survey responses'!FL65,'2011 Survey responses'!FM65),\"\")","v":5},{"$f":"IF(('2011 Survey responses'!FO65+'2011 Survey responses'!FQ65)>=2,AVERAGE('2011 Survey responses'!FO65,'2011 Survey responses'!FQ65),\"\")","v":5},{"$f":"IF('2011 Survey responses'!FJ65<0.5,\"\",'2011 Survey responses'!FJ65)","v":4},{"$f":"IF('2011 Survey responses'!FT65<0.5,\"\",'2011 Survey responses'!FT65)","v":5},{"$f":"IF('2011 Survey responses'!FR65<0.5,\"\",'2011 Survey responses'!FR65)","v":5},{"$f":"IF('2011 Survey responses'!FK65<0.5,\"\",'2011 Survey responses'!FK65)","v":4},{"$f":"IF('2011 Survey responses'!FP65<0.5,\"\",'2011 Survey responses'!FP65)","v":5},{"$f":"IF('2011 Survey responses'!FN65<0.5,\"\",'2011 Survey responses'!FN65)","v":5},{"$f":"IF(('2011 Survey responses'!FE65+'2011 Survey responses'!FF65)>=2,AVERAGE('2011 Survey responses'!FE65,'2011 Survey responses'!FF65),\"\")","v":5},{"$f":"IF('2011 Survey responses'!FS65<0.5,\"\",'2011 Survey responses'!FS65)","v":5},{"$f":"IF('2011 Survey responses'!FV65<0.5,\"\",'2011 Survey responses'!FV65)","v":5},{"$f":"IF(('2011 Survey responses'!FG65+'2011 Survey responses'!FH65)>=2,AVERAGE('2011 Survey responses'!FG65,'2011 Survey responses'!FH65),\"\")","v":5},{"$f":"IF('2011 Survey responses'!FI65<0.5,\"\",'2011 Survey responses'!FI65)","v":4},{"$f":"IF('2011 Survey responses'!FE65<0.5,\"\",'2011 Survey responses'!FE65)","v":5},{"$f":"IF('2011 Survey responses'!FF65<0.5,\"\",'2011 Survey responses'!FF65)","v":5},{"$f":"IF('2011 Survey responses'!FG65<0.5,\"\",'2011 Survey responses'!FG65)","v":5},{"$f":"IF('2011 Survey responses'!FH65<0.5,\"\",'2011 Survey responses'!FH65)","v":""},{"$f":"IF('2011 Survey responses'!FL65<0.5,\"\",'2011 Survey responses'!FL65)","v":5},{"$f":"IF('2011 Survey responses'!FM65<0.5,\"\",'2011 Survey responses'!FM65)","v":5},{"$f":"IF('2011 Survey responses'!FO65<0.5,\"\",'2011 Survey responses'!FO65)","v":5},{"$f":"IF('2011 Survey responses'!FQ65<0.5,\"\",'2011 Survey responses'!FQ65)","v":5}]
["Georgia",{"$f":"IF(SUM(F66)<1,\"\",AVERAGEIF('2011 Survey responses'!B66:CP66,\">1\"))","v":3},{"$f":"IF(SUM(F66)<1,\"\",AVERAGEIF('2011 Survey responses'!B66:AO66,\">1\"))","v":3.074074074074074},{"$f":"IF(SUM(F66)<1,\"\",AVERAGEIF('2011 Survey responses'!B66:BV66,\">1\"))","v":3.1224489795918369},{"$f":"IF(SUM(F66)<1,\"\",AVERAGEIF('2011 Survey responses'!V66:BV66,\">1\"))","v":3.263157894736842},{"$f":"IF(SUM('2011 Survey responses'!B66:U66)<1,\"\",(AVERAGEIFS('2011 Survey responses'!B66:U66,'2011 Survey responses'!B66:U66,\">1\")))","v":2.6363636363636362},{"$f":"IF(SUM('2011 Survey responses'!B66:H66)<1,\"\",(AVERAGEIFS('2011 Survey responses'!B66:H66,'2011 Survey responses'!B66:H66,\">1\")))","v":2.3333333333333335},{"$f":"IF(SUM('2011 Survey responses'!I66:S66)<1,\"\",(AVERAGEIFS('2011 Survey responses'!I66:S66,'2011 Survey responses'!I66:S66,\">1\")))","v":2.6666666666666665},{"$f":"IF(SUM('2011 Survey responses'!T66:U66)<2.1,\"\",(AVERAGEIFS('2011 Survey responses'!T66:U66,'2011 Survey responses'!T66:U66,\">1\")))","v":3},{"$f":"IF(SUM('2011 Survey responses'!B66:C66)<2.1,\"\",((SUMIF('2011 Survey responses'!B66:C66,\">1\")+SUMIF('2011 Survey responses'!F66,\">1\"))/(COUNTIF('2011 Survey responses'!B66:C66,\">1\")+COUNTIF('2011 Survey responses'!F66,\">1\"))))","v":2},{"$f":"IF(SUM('2011 Survey responses'!D66:E66)<2.1,\"\",(AVERAGEIFS('2011 Survey responses'!D66:E66,'2011 Survey responses'!D66:E66,\">1\")))","v":3},{"$f":"IF(('2011 Survey responses'!B66+'2011 Survey responses'!D66)<2.1,\"\",((SUMIF('2011 Survey responses'!B66,\">1\")+SUMIF('2011 Survey responses'!D66,\">1\")+SUMIF('2011 Survey responses'!F66,\">1\")+SUMIF('2011 Survey responses'!K66,\">1\"))/(COUNTIF('2011 Survey responses'!B66,\">1\")+COUNTIF('2011 Survey responses'!D66,\">1\")+COUNTIF('2011 Survey responses'!F66,\">1\")+COUNTIF('2011 Survey responses'!K66,\">1\"))))","v":2.3333333333333335},{"$f":"IF(SUM('2011 Survey responses'!G66:H66)<2.1,\"\",(AVERAGEIFS('2011 Survey responses'!G66:H66,'2011 Survey responses'!G66:H66,\">1\")))","v":""},{"$f":"IF(SUM('2011 Survey responses'!F66:G66)<1.5,\"\",MAX('2011 Survey responses'!F66,'2011 Survey responses'!G66))","v":1},{"$f":"IF(SUM('2011 Survey responses'!G66:H66)<1,\"\",MAX('2011 Survey responses'!G66,'2011 Survey responses'!H66))","v":1},{"$f":"IF(SUM('2011 Survey responses'!I66:L66)<4.1,\"\",(AVERAGEIFS('2011 Survey responses'!I66:L66,'2011 Survey responses'!I66:L66,\">1\")))","v":3},{"$f":"IF(SUM('2011 Survey responses'!M66:S66)<4.1,\"\",(AVERAGEIFS('2011 Survey responses'!M66:S66,'2011 Survey responses'!M66:S66,\">1\")))","v":2.5},{"$f":"IF(SUM('2011 Survey responses'!T66:U66)<2.1,\"\",(AVERAGEIFS('2011 Survey responses'!T66:U66,'2011 Survey responses'!T66:U66,\">1\")))","v":3},{"$f":"IF(SUM('2011 Survey responses'!V66:AO66)<1,\"\",(AVERAGEIFS('2011 Survey responses'!V66:AO66,'2011 Survey responses'!V66:AO66,\">1\")))","v":3.375},{"$f":"IF(SUM('2011 Survey responses'!V66:AA66)<1,\"\",(AVERAGEIFS('2011 Survey responses'!V66:AA66,'2011 Survey responses'!V66:AA66,\">1\")))","v":2},{"$f":"IF(SUM('2011 Survey responses'!AB66:AH66)<1,\"\",(AVERAGEIFS('2011 Survey responses'!AB66:AH66,'2011 Survey responses'!AB66:AH66,\">1\")))","v":4},{"$f":"IF(SUM('2011 Survey responses'!AI66:AO66)<1,\"\",(AVERAGEIFS('2011 Survey responses'!AI66:AO66,'2011 Survey responses'!AI66:AO66,\">1\")))","v":3.1428571428571428},{"$f":"IF(('2011 Survey responses'!Y66+'2011 Survey responses'!AI66+'2011 Survey responses'!AK66)<3.1,\"\",((SUMIF('2011 Survey responses'!Y66,\">1\")+SUMIF('2011 Survey responses'!AI66,\">1\")+SUMIF('2011 Survey responses'!AK66,\">1\")+SUMIF('2011 Survey responses'!AM66,\">1\"))/(COUNTIF('2011 Survey responses'!Y66,\">1\")+COUNTIF('2011 Survey responses'!AI66,\">1\")+COUNTIF('2011 Survey responses'!AK66,\">1\")+COUNTIF('2011 Survey responses'!AM66,\">1\"))))","v":2.75},{"$f":"IF(('2011 Survey responses'!W66)<1.1,\"\",('2011 Survey responses'!W66))","v":""},{"$f":"IF(('2011 Survey responses'!Y66)<1.1,\"\",('2011 Survey responses'!Y66))","v":2},{"$f":"IF(('2011 Survey responses'!Z66)<1.1,\"\",('2011 Survey responses'!Z66))","v":2},{"$f":"IF(('2011 Survey responses'!V66+'2011 Survey responses'!X66+'2011 Survey responses'!AA66)<3.1,\"\",((SUMIF('2011 Survey responses'!V66,\">1\")+SUMIF('2011 Survey responses'!X66,\">1\")+SUMIF('2011 Survey responses'!AA66,\">1\"))/(COUNTIF('2011 Survey responses'!V66,\">1\")+COUNTIF('2011 Survey responses'!X66,\">1\")+COUNTIF('2011 Survey responses'!AA66,\">1\"))))","v":""},{"$f":"IF(('2011 Survey responses'!V66+'2011 Survey responses'!Y66+'2011 Survey responses'!AA66)<3.1,\"\",((SUMIF('2011 Survey responses'!V66,\">1\")+SUMIF('2011 Survey responses'!Y66,\">1\")+SUMIF('2011 Survey responses'!AA66,\">1\"))/(COUNTIF('2011 Survey responses'!V66,\">1\")+COUNTIF('2011 Survey responses'!Y66,\">1\")+COUNTIF('2011 Survey responses'!AA66,\">1\"))))","v":2},{"$f":"IF(SUM('2011 Survey responses'!AB66:AH66)<1,\"\",(AVERAGEIFS('2011 Survey responses'!AB66:AH66,'2011 Survey responses'!AB66:AH66,\">1\")))","v":4},{"$f":"IF(SUM('2011 Survey responses'!AI66:AO66)<7.1,\"\",(AVERAGEIFS('2011 Survey responses'!AI66:AO66,'2011 Survey responses'!AI66:AO66,\">1\")))","v":3.1428571428571428},{"$f":"IF(('2011 Survey responses'!AH66)<1.1,\"\",('2011 Survey responses'!AH66))","v":6},{"$f":"IF(SUM('2011 Survey responses'!AP66:BV66)<1,\"\",(AVERAGEIFS('2011 Survey responses'!AP66:BV66,'2011 Survey responses'!AP66:BV66,\">1\")))","v":3.1818181818181817},{"$f":"IF(SUM('2011 Survey responses'!AP66:AS66)<4.1,\"\",(AVERAGEIFS('2011 Survey responses'!AP66:AS66,'2011 Survey responses'!AP66:AS66,\">1\")))","v":2.6666666666666665},{"$f":"IF(SUM('2011 Survey responses'!AT66:BF66)<1,\"\",(AVERAGEIFS('2011 Survey responses'!AT66:BF66,'2011 Survey responses'!AT66:BF66,\">1\")))","v":2.7777777777777777},{"$f":"IF(SUM('2011 Survey responses'!BG66:BO66)<1,\"\",(AVERAGEIFS('2011 Survey responses'!BG66:BO66,'2011 Survey responses'!BG66:BO66,\">1\")))","v":4},{"$f":"IF(SUM('2011 Survey responses'!BP66:BS66)<1,\"\",(AVERAGEIFS('2011 Survey responses'!BP66:BS66,'2011 Survey responses'!BP66:BS66,\">1\")))","v":2.5},{"$f":"IF(SUM('2011 Survey responses'!BT66:BV66)<3.1,\"\",(AVERAGEIFS('2011 Survey responses'!BT66:BV66,'2011 Survey responses'!BT66:BV66,\">1\")))","v":""},{"$f":"IF(('2011 Survey responses'!AQ66+'2011 Survey responses'!AR66+'2011 Survey responses'!BG66)<3.1,\"\",((SUMIF('2011 Survey responses'!AQ66,\">1\")+SUMIF('2011 Survey responses'!AR66,\">1\")+SUMIF('2011 Survey responses'!BG66,\">1\"))/(COUNTIF('2011 Survey responses'!AQ66,\">1\")+COUNTIF('2011 Survey responses'!AR66,\">1\")+COUNTIF('2011 Survey responses'!BG66,\">1\"))))","v":4},{"$f":"IF(SUM('2011 Survey responses'!AP66:AS66)<4.1,\"\",(AVERAGEIFS('2011 Survey responses'!AP66:AS66,'2011 Survey responses'!AP66:AS66,\">1\")))","v":2.6666666666666665},{"$f":"IF(('2011 Survey responses'!AU66+'2011 Survey responses'!AX66+'2011 Survey responses'!BA66+'2011 Survey responses'!BC66+'2011 Survey responses'!BD66)<5.1,\"\",(SUMIF('2011 Survey responses'!AU66,\">1\")+SUMIF('2011 Survey responses'!AX66,\">1\")+SUMIF('2011 Survey responses'!BA66,\">1\")+SUMIF('2011 Survey responses'!BC66,\">1\")+SUMIF('2011 Survey responses'!BD66,\">1\"))/(COUNTIF('2011 Survey responses'!AU66,\">1\")+COUNTIF('2011 Survey responses'!AX66,\">1\")+COUNTIF('2011 Survey responses'!BA66,\">1\")+COUNTIF('2011 Survey responses'!BC66,\">1\")+COUNTIF('2011 Survey responses'!BD66,\">1\")))","v":2.6666666666666665},{"$f":"IF(('2011 Survey responses'!AT66)<1.1,\"\",('2011 Survey responses'!AT66))","v":""},{"$f":"IF(SUM('2011 Survey responses'!AV66:AW66)<2.1,\"\",(AVERAGEIFS('2011 Survey responses'!AV66:AW66,'2011 Survey responses'!AV66:AW66,\">1\")))","v":2},{"$f":"IF(('2011 Survey responses'!AW66+'2011 Survey responses'!AY66)<2.1,\"\",(SUMIF('2011 Survey responses'!AW66,\">1\")+SUMIF('2011 Survey responses'!AY66,\">1\"))/(COUNTIF('2011 Survey responses'!AW66,\">1\")+COUNTIF('2011 Survey responses'!AY66,\">1\")))","v":3.5},{"$f":"IF(('2011 Survey responses'!AZ66)<1.1,\"\",('2011 Survey responses'!AZ66))","v":2},2,1,1,1,{"$f":"IF(('2011 Survey responses'!BE66)<1.1,\"\",('2011 Survey responses'!BE66))","v":3},{"$f":"IF(('2011 Survey responses'!AY66+'2011 Survey responses'!BB66+'2011 Survey responses'!BF66)<3.1,\"\",(SUMIF('2011 Survey responses'!AY66,\">1\")+SUMIF('2011 Survey responses'!BB66,\">1\")+SUMIF('2011 Survey responses'!BF66,\">1\"))/(COUNTIF('2011 Survey responses'!AY66,\">1\")+COUNTIF('2011 Survey responses'!BB66,\">1\")+COUNTIF('2011 Survey responses'!BF66,\">1\")))","v":3.3333333333333335},3.25,{"$f":"IF(SUM('2011 Survey responses'!BT66:BV66)<3.1,\"\",(AVERAGEIFS('2011 Survey responses'!BT66:BV66,'2011 Survey responses'!BT66:BV66,\">1\")))","v":""},{"$f":"IF(SUM('2011 Survey responses'!BW66:CP66)<1,\"\",(AVERAGEIFS('2011 Survey responses'!BW66:CP66,'2011 Survey responses'!BW66:CP66,\">1\")))","v":2.5714285714285716},{"$f":"IF(SUM('2011 Survey responses'!BW66:CF66)<1,\"\",(AVERAGEIFS('2011 Survey responses'!BW66:CF66,'2011 Survey responses'!BW66:CF66,\">1\")))","v":2.375},{"$f":"IF(SUM('2011 Survey responses'!CG66:CP66)<1,\"\",(AVERAGEIFS('2011 Survey responses'!CG66:CP66,'2011 Survey responses'!CG66:CP66,\">1\")))","v":2.8333333333333335},{"$f":"IF(SUM('2011 Survey responses'!BX66:CF66)<1,\"\",(AVERAGEIFS('2011 Survey responses'!BX66:CF66,'2011 Survey responses'!BX66:CF66,\">1\")))","v":2.4285714285714284},{"$f":"IF(SUM('2011 Survey responses'!CH66:CP66)<1,\"\",(AVERAGEIFS('2011 Survey responses'!CH66:CP66,'2011 Survey responses'!CH66:CP66,\">1\")))","v":2.8},{"$f":"IF(SUM('2011 Survey responses'!BW66:CP66)<1,\"\",(AVERAGEIFS('2011 Survey responses'!BW66:CP66,'2011 Survey responses'!BW66:CP66,\">1\")))","v":2.5714285714285716},{"$f":"IF(('2011 Survey responses'!BW66+'2011 Survey responses'!CG66)<2.1,\"\",(SUMIF('2011 Survey responses'!BW66,\">1\")+SUMIF('2011 Survey responses'!CG66,\">1\"))/(COUNTIF('2011 Survey responses'!BW66,\">1\")+COUNTIF('2011 Survey responses'!CG66,\">1\")))","v":2.5},{"$f":"IF(('2011 Survey responses'!BX66+'2011 Survey responses'!CH66)<2.1,\"\",(SUMIF('2011 Survey responses'!BX66,\">1\")+SUMIF('2011 Survey responses'!CH66,\">1\"))/(COUNTIF('2011 Survey responses'!BX66,\">1\")+COUNTIF('2011 Survey responses'!CH66,\">1\")))","v":2.5},{"$f":"IF(('2011 Survey responses'!BY66+'2011 Survey responses'!CI66)<2.1,\"\",(SUMIF('2011 Survey responses'!BY66,\">1\")+SUMIF('2011 Survey responses'!CI66,\">1\"))/(COUNTIF('2011 Survey responses'!BY66,\">1\")+COUNTIF('2011 Survey responses'!CI66,\">1\")))","v":2.5},{"$f":"IF('2011 Survey responses'!CQ66<0.5,\"\",'2011 Survey responses'!CQ66)","v":1},{"$f":"IF('2011 Survey responses'!CR66<0.5,\"\",'2011 Survey responses'!CR66)","v":4},{"$f":"IF('2011 Survey responses'!CS66<0.5,\"\",'2011 Survey responses'!CS66)","v":4},{"$f":"IF('2011 Survey responses'!CT66<0.5,\"\",'2011 Survey responses'!CT66)","v":4},{"$f":"IF('2011 Survey responses'!CU66<0.5,\"\",'2011 Survey responses'!CU66)","v":4},{"$f":"IF('2011 Survey responses'!CV66<0.5,\"\",'2011 Survey responses'!CV66)","v":2},{"$f":"IF(SUM('2011 Survey responses'!CW66:DL66)<1,\"\",(AVERAGE('2011 Survey responses'!CW66:DL66)))","v":3.375},{"$f":"IF(SUM('2011 Survey responses'!CW66:CZ66)<1,\"\",(AVERAGE('2011 Survey responses'!CW66:CZ66)))","v":3},{"$f":"IF(SUM('2011 Survey responses'!DA66:DD66)<1,\"\",(AVERAGE('2011 Survey responses'!DA66:DD66)))","v":3.75},{"$f":"IF(SUM('2011 Survey responses'!DE66:DH66)<1,\"\",(AVERAGE('2011 Survey responses'!DE66:DH66)))","v":3},{"$f":"IF(SUM('2011 Survey responses'!DI66:DL66)<1,\"\",(AVERAGE('2011 Survey responses'!DI66:DL66)))","v":3.75},{"$f":"IF(('2011 Survey responses'!CW66+'2011 Survey responses'!DA66+'2011 Survey responses'!DE66+'2011 Survey responses'!DI66)<1,\"\",AVERAGE('2011 Survey responses'!CW66,'2011 Survey responses'!DA66,'2011 Survey responses'!DE66,'2011 Survey responses'!DI66))","v":3.5},{"$f":"IF(('2011 Survey responses'!CX66+'2011 Survey responses'!DB66+'2011 Survey responses'!DF66+'2011 Survey responses'!DJ66)<1,\"\",AVERAGE('2011 Survey responses'!CX66,'2011 Survey responses'!DB66,'2011 Survey responses'!DF66,'2011 Survey responses'!DJ66))","v":3.5},{"$f":"IF(('2011 Survey responses'!CY66+'2011 Survey responses'!DC66+'2011 Survey responses'!DG66+'2011 Survey responses'!DK66)<1,\"\",AVERAGE('2011 Survey responses'!CY66,'2011 Survey responses'!DC66,'2011 Survey responses'!DG66,'2011 Survey responses'!DK66))","v":3},{"$f":"IF(('2011 Survey responses'!CZ66+'2011 Survey responses'!DD66+'2011 Survey responses'!DH66+'2011 Survey responses'!DL66)<1,\"\",AVERAGE('2011 Survey responses'!CZ66,'2011 Survey responses'!DD66,'2011 Survey responses'!DH66,'2011 Survey responses'!DL66))","v":3.5},{"$f":"IF('2011 Survey responses'!CW66<0.5,\"\",'2011 Survey responses'!CW66)","v":3},{"$f":"IF('2011 Survey responses'!CX66<0.5,\"\",'2011 Survey responses'!CX66)","v":3},{"$f":"IF('2011 Survey responses'!CY66<0.5,\"\",'2011 Survey responses'!CY66)","v":3},{"$f":"IF('2011 Survey responses'!CZ66<0.5,\"\",'2011 Survey responses'!CZ66)","v":3},{"$f":"IF('2011 Survey responses'!DA66<0.5,\"\",'2011 Survey responses'!DA66)","v":4},{"$f":"IF('2011 Survey responses'!DB66<0.5,\"\",'2011 Survey responses'!DB66)","v":4},{"$f":"IF('2011 Survey responses'!DC66<0.5,\"\",'2011 Survey responses'!DC66)","v":3},{"$f":"IF('2011 Survey responses'!DD66<0.5,\"\",'2011 Survey responses'!DD66)","v":4},{"$f":"IF('2011 Survey responses'!DE66<0.5,\"\",'2011 Survey responses'!DE66)","v":3},{"$f":"IF('2011 Survey responses'!DF66<0.5,\"\",'2011 Survey responses'!DF66)","v":3},{"$f":"IF('2011 Survey responses'!DG66<0.5,\"\",'2011 Survey responses'!DG66)","v":3},{"$f":"IF('2011 Survey responses'!DH66<0.5,\"\",'2011 Survey responses'!DH66)","v":3},{"$f":"IF('2011 Survey responses'!DI66<0.5,\"\",'2011 Survey responses'!DI66)","v":4},{"$f":"IF('2011 Survey responses'!DJ66<0.5,\"\",'2011 Survey responses'!DJ66)","v":4},{"$f":"IF('2011 Survey responses'!DK66<0.5,\"\",'2011 Survey responses'!DK66)","v":3},{"$f":"IF('2011 Survey responses'!DL66<0.5,\"\",'2011 Survey responses'!DL66)","v":4},{"$f":"IF('2011 Survey responses'!DU66=4,4,IF('2011 Survey responses'!DU66=5,4,\"\"))","v":4},{"$f":"IF('2011 Survey responses'!DV66=4,3,IF('2011 Survey responses'!DV66=5,3,\"\"))","v":""},"",{"$f":"IF(CQ66=2,CQ66,IF(CO66=4,CO66,IF(CP66=3,CP66,IF('2011 Survey responses'!GT66=1,1,\"\"))))","v":4},{"$f":"IF('2011 Survey responses'!DO66<0.5,\"\",'2011 Survey responses'!DO66)","v":4},{"$f":"IF('2011 Survey responses'!DP66<0.5,\"\",'2011 Survey responses'!DP66)","v":4},{"$f":"IF('2011 Survey responses'!DQ66<0.5,\"\",'2011 Survey responses'!DQ66)","v":2},{"$f":"IF('2011 Survey responses'!DR66<0.5,\"\",'2011 Survey responses'!DR66)","v":3},{"$f":"IF('2011 Survey responses'!DS66<0.5,\"\",'2011 Survey responses'!DS66)","v":2},{"$f":"IF('2011 Survey responses'!DT66<0.5,\"\",'2011 Survey responses'!DT66)","v":4},{"$f":"IF('2011 Survey responses'!DU66<0.5,\"\",'2011 Survey responses'!DU66)","v":4},{"$f":"IF('2011 Survey responses'!DV66<0.5,\"\",'2011 Survey responses'!DV66)","v":3},{"$f":"IF('2011 Survey responses'!DW66<0.5,\"\",'2011 Survey responses'!DW66)","v":3},{"$f":"IF('2011 Survey responses'!DX66<0.5,\"\",'2011 Survey responses'!DX66)","v":3},{"$f":"IF('2011 Survey responses'!DY66<0.5,\"\",'2011 Survey responses'!DY66)","v":4},{"$f":"IF('2011 Survey responses'!DZ66<0.5,\"\",'2011 Survey responses'!DZ66)","v":3},{"$f":"IF('2011 Survey responses'!EA66<0.5,\"\",'2011 Survey responses'!EA66)","v":4},{"$f":"IF('2011 Survey responses'!EB66<0.5,\"\",'2011 Survey responses'!EB66)","v":4},{"$f":"IF('2011 Survey responses'!EC66<0.5,\"\",'2011 Survey responses'!EC66)","v":3},{"$f":"IF('2011 Survey responses'!ED66<0.5,\"\",'2011 Survey responses'!ED66)","v":4},{"$f":"IF('2011 Survey responses'!EE66<0.5,\"\",'2011 Survey responses'!EE66)","v":3},{"$f":"IF('2011 Survey responses'!EF66<0.5,\"\",'2011 Survey responses'!EF66)","v":4},{"$f":"IF('2011 Survey responses'!EG66<0.5,\"\",'2011 Survey responses'!EG66)","v":3},{"$f":"IF('2011 Survey responses'!EH66<0.5,\"\",'2011 Survey responses'!EH66)","v":2},{"$f":"IF('2011 Survey responses'!EI66<0.5,\"\",'2011 Survey responses'!EI66)","v":2},{"$f":"IF('2011 Survey responses'!EJ66<0.5,\"\",'2011 Survey responses'!EJ66)","v":2},{"$f":"IF('2011 Survey responses'!EK66<0.5,\"\",'2011 Survey responses'!EK66)","v":2},{"$f":"IF('2011 Survey responses'!EL66<0.5,\"\",'2011 Survey responses'!EL66)","v":2},{"$f":"IF('2011 Survey responses'!EM66<0.5,\"\",'2011 Survey responses'!EM66)","v":3},{"$f":"IF('2011 Survey responses'!EN66<0.5,\"\",'2011 Survey responses'!EN66)","v":2},{"$f":"IF('2011 Survey responses'!EO66<0.5,\"\",'2011 Survey responses'!EO66)","v":2},{"$f":"IF('2011 Survey responses'!EP66<0.5,\"\",'2011 Survey responses'!EP66)","v":3},{"$f":"IF(('2011 Survey responses'!EW66+'2011 Survey responses'!EX66)>=2,AVERAGE('2011 Survey responses'!EW66,'2011 Survey responses'!EY66),\"\")","v":4.5},{"$f":"IF('2011 Survey responses'!EX66<0.5,\"\",'2011 Survey responses'!EX66)","v":4},{"$f":"IF('2011 Survey responses'!EZ66<0.5,\"\",'2011 Survey responses'!EZ66)","v":4},{"$f":"IF('2011 Survey responses'!FB66<0.5,\"\",'2011 Survey responses'!FB66)","v":4},{"$f":"IF('2011 Survey responses'!FD66<0.5,\"\",'2011 Survey responses'!FD66)","v":4},{"$f":"IF('2011 Survey responses'!FC66<0.5,\"\",'2011 Survey responses'!FC66)","v":4},{"$f":"IF(('2011 Survey responses'!EM66+'2011 Survey responses'!EN66)>=2,AVERAGE('2011 Survey responses'!EM66,'2011 Survey responses'!EN66),\"\")","v":2.5},{"$f":"IF('2011 Survey responses'!ES66<0.5,\"\",'2011 Survey responses'!ES66)","v":4},{"$f":"IF(('2011 Survey responses'!ET66+'2011 Survey responses'!EU66)>=2,AVERAGE('2011 Survey responses'!ET66,'2011 Survey responses'!EU66),\"\")","v":3},{"$f":"IF('2011 Survey responses'!EV66<0.5,\"\",'2011 Survey responses'!EV66)","v":4},{"$f":"IF('2011 Survey responses'!FA66<0.5,\"\",'2011 Survey responses'!FA66)","v":3},{"$f":"IF('2011 Survey responses'!ER66<0.5,\"\",'2011 Survey responses'!ER66)","v":3},{"$f":"IF(('2011 Survey responses'!EO66+'2011 Survey responses'!EP66)>=2,AVERAGE('2011 Survey responses'!EO66,'2011 Survey responses'!EP66),\"\")","v":2.5},{"$f":"IF('2011 Survey responses'!EQ66<0.5,\"\",'2011 Survey responses'!EQ66)","v":3},{"$f":"IF('2011 Survey responses'!ET66<0.5,\"\",'2011 Survey responses'!ET66)","v":3},{"$f":"IF('2011 Survey responses'!EU66<0.5,\"\",'2011 Survey responses'!EU66)","v":3},{"$f":"IF('2011 Survey responses'!EW66<0.5,\"\",'2011 Survey responses'!EW66)","v":4},{"$f":"IF('2011 Survey responses'!EY66<0.5,\"\",'2011 Survey responses'!EY66)","v":5},{"$f":"IF('2011 Survey responses'!FU66<0.5,\"\",'2011 Survey responses'!FU66)","v":4},{"$f":"IF(('2011 Survey responses'!FL66+'2011 Survey responses'!FM66)>=2,AVERAGE('2011 Survey responses'!FL66,'2011 Survey responses'!FM66),\"\")","v":2},{"$f":"IF(('2011 Survey responses'!FO66+'2011 Survey responses'!FQ66)>=2,AVERAGE('2011 Survey responses'!FO66,'2011 Survey responses'!FQ66),\"\")","v":4.5},{"$f":"IF('2011 Survey responses'!FJ66<0.5,\"\",'2011 Survey responses'!FJ66)","v":4},{"$f":"IF('2011 Survey responses'!FT66<0.5,\"\",'2011 Survey responses'!FT66)","v":4},{"$f":"IF('2011 Survey responses'!FR66<0.5,\"\",'2011 Survey responses'!FR66)","v":4},{"$f":"IF('2011 Survey responses'!FK66<0.5,\"\",'2011 Survey responses'!FK66)","v":2},{"$f":"IF('2011 Survey responses'!FP66<0.5,\"\",'2011 Survey responses'!FP66)","v":4},{"$f":"IF('2011 Survey responses'!FN66<0.5,\"\",'2011 Survey responses'!FN66)","v":4},{"$f":"IF(('2011 Survey responses'!FE66+'2011 Survey responses'!FF66)>=2,AVERAGE('2011 Survey responses'!FE66,'2011 Survey responses'!FF66),\"\")","v":3},{"$f":"IF('2011 Survey responses'!FS66<0.5,\"\",'2011 Survey responses'!FS66)","v":3},{"$f":"IF('2011 Survey responses'!FV66<0.5,\"\",'2011 Survey responses'!FV66)","v":3},{"$f":"IF(('2011 Survey responses'!FG66+'2011 Survey responses'!FH66)>=2,AVERAGE('2011 Survey responses'!FG66,'2011 Survey responses'!FH66),\"\")","v":3},{"$f":"IF('2011 Survey responses'!FI66<0.5,\"\",'2011 Survey responses'!FI66)","v":3},{"$f":"IF('2011 Survey responses'!FE66<0.5,\"\",'2011 Survey responses'!FE66)","v":3},{"$f":"IF('2011 Survey responses'!FF66<0.5,\"\",'2011 Survey responses'!FF66)","v":3},{"$f":"IF('2011 Survey responses'!FG66<0.5,\"\",'2011 Survey responses'!FG66)","v":3},{"$f":"IF('2011 Survey responses'!FH66<0.5,\"\",'2011 Survey responses'!FH66)","v":3},{"$f":"IF('2011 Survey responses'!FL66<0.5,\"\",'2011 Survey responses'!FL66)","v":2},{"$f":"IF('2011 Survey responses'!FM66<0.5,\"\",'2011 Survey responses'!FM66)","v":2},{"$f":"IF('2011 Survey responses'!FO66<0.5,\"\",'2011 Survey responses'!FO66)","v":4},{"$f":"IF('2011 Survey responses'!FQ66<0.5,\"\",'2011 Survey responses'!FQ66)","v":5}]
["Germany",{"$f":"IF(SUM(F67)<1,\"\",AVERAGEIF('2011 Survey responses'!B67:CP67,\">1\"))","v":5.6621621621621623},{"$f":"IF(SUM(F67)<1,\"\",AVERAGEIF('2011 Survey responses'!B67:AO67,\">1\"))","v":5.4230769230769234},{"$f":"IF(SUM(F67)<1,\"\",AVERAGEIF('2011 Survey responses'!B67:BV67,\">1\"))","v":5.6071428571428568},{"$f":"IF(SUM(F67)<1,\"\",AVERAGEIF('2011 Survey responses'!V67:BV67,\">1\"))","v":5.75},{"$f":"IF(SUM('2011 Survey responses'!B67:U67)<1,\"\",(AVERAGEIFS('2011 Survey responses'!B67:U67,'2011 Survey responses'!B67:U67,\">1\")))","v":5.083333333333333},{"$f":"IF(SUM('2011 Survey responses'!B67:H67)<1,\"\",(AVERAGEIFS('2011 Survey responses'!B67:H67,'2011 Survey responses'!B67:H67,\">1\")))","v":5.5},{"$f":"IF(SUM('2011 Survey responses'!I67:S67)<1,\"\",(AVERAGEIFS('2011 Survey responses'!I67:S67,'2011 Survey responses'!I67:S67,\">1\")))","v":4.5},{"$f":"IF(SUM('2011 Survey responses'!T67:U67)<2.1,\"\",(AVERAGEIFS('2011 Survey responses'!T67:U67,'2011 Survey responses'!T67:U67,\">1\")))","v":6},{"$f":"IF(SUM('2011 Survey responses'!B67:C67)<2.1,\"\",((SUMIF('2011 Survey responses'!B67:C67,\">1\")+SUMIF('2011 Survey responses'!F67,\">1\"))/(COUNTIF('2011 Survey responses'!B67:C67,\">1\")+COUNTIF('2011 Survey responses'!F67,\">1\"))))","v":5.5},{"$f":"IF(SUM('2011 Survey responses'!D67:E67)<2.1,\"\",(AVERAGEIFS('2011 Survey responses'!D67:E67,'2011 Survey responses'!D67:E67,\">1\")))","v":6},{"$f":"IF(('2011 Survey responses'!B67+'2011 Survey responses'!D67)<2.1,\"\",((SUMIF('2011 Survey responses'!B67,\">1\")+SUMIF('2011 Survey responses'!D67,\">1\")+SUMIF('2011 Survey responses'!F67,\">1\")+SUMIF('2011 Survey responses'!K67,\">1\"))/(COUNTIF('2011 Survey responses'!B67,\">1\")+COUNTIF('2011 Survey responses'!D67,\">1\")+COUNTIF('2011 Survey responses'!F67,\">1\")+COUNTIF('2011 Survey responses'!K67,\">1\"))))","v":5.5},{"$f":"IF(SUM('2011 Survey responses'!G67:H67)<2.1,\"\",(AVERAGEIFS('2011 Survey responses'!G67:H67,'2011 Survey responses'!G67:H67,\">1\")))","v":5},{"$f":"IF(SUM('2011 Survey responses'!F67:G67)<1.5,\"\",MAX('2011 Survey responses'!F67,'2011 Survey responses'!G67))","v":5},{"$f":"IF(SUM('2011 Survey responses'!G67:H67)<1,\"\",MAX('2011 Survey responses'!G67,'2011 Survey responses'!H67))","v":5},{"$f":"IF(SUM('2011 Survey responses'!I67:L67)<4.1,\"\",(AVERAGEIFS('2011 Survey responses'!I67:L67,'2011 Survey responses'!I67:L67,\">1\")))","v":4.5},{"$f":"IF(SUM('2011 Survey responses'!M67:S67)<4.1,\"\",(AVERAGEIFS('2011 Survey responses'!M67:S67,'2011 Survey responses'!M67:S67,\">1\")))","v":4.5},{"$f":"IF(SUM('2011 Survey responses'!T67:U67)<2.1,\"\",(AVERAGEIFS('2011 Survey responses'!T67:U67,'2011 Survey responses'!T67:U67,\">1\")))","v":6},{"$f":"IF(SUM('2011 Survey responses'!V67:AO67)<1,\"\",(AVERAGEIFS('2011 Survey responses'!V67:AO67,'2011 Survey responses'!V67:AO67,\">1\")))","v":5.7142857142857144},{"$f":"IF(SUM('2011 Survey responses'!V67:AA67)<1,\"\",(AVERAGEIFS('2011 Survey responses'!V67:AA67,'2011 Survey responses'!V67:AA67,\">1\")))","v":5.8},{"$f":"IF(SUM('2011 Survey responses'!AB67:AH67)<1,\"\",(AVERAGEIFS('2011 Survey responses'!AB67:AH67,'2011 Survey responses'!AB67:AH67,\">1\")))","v":5.5},{"$f":"IF(SUM('2011 Survey responses'!AI67:AO67)<1,\"\",(AVERAGEIFS('2011 Survey responses'!AI67:AO67,'2011 Survey responses'!AI67:AO67,\">1\")))","v":6},{"$f":"IF(('2011 Survey responses'!Y67+'2011 Survey responses'!AI67+'2011 Survey responses'!AK67)<3.1,\"\",((SUMIF('2011 Survey responses'!Y67,\">1\")+SUMIF('2011 Survey responses'!AI67,\">1\")+SUMIF('2011 Survey responses'!AK67,\">1\")+SUMIF('2011 Survey responses'!AM67,\">1\"))/(COUNTIF('2011 Survey responses'!Y67,\">1\")+COUNTIF('2011 Survey responses'!AI67,\">1\")+COUNTIF('2011 Survey responses'!AK67,\">1\")+COUNTIF('2011 Survey responses'!AM67,\">1\"))))","v":5.5},{"$f":"IF(('2011 Survey responses'!W67)<1.1,\"\",('2011 Survey responses'!W67))","v":6},{"$f":"IF(('2011 Survey responses'!Y67)<1.1,\"\",('2011 Survey responses'!Y67))","v":5},{"$f":"IF(('2011 Survey responses'!Z67)<1.1,\"\",('2011 Survey responses'!Z67))","v":6},{"$f":"IF(('2011 Survey responses'!V67+'2011 Survey responses'!X67+'2011 Survey responses'!AA67)<3.1,\"\",((SUMIF('2011 Survey responses'!V67,\">1\")+SUMIF('2011 Survey responses'!X67,\">1\")+SUMIF('2011 Survey responses'!AA67,\">1\"))/(COUNTIF('2011 Survey responses'!V67,\">1\")+COUNTIF('2011 Survey responses'!X67,\">1\")+COUNTIF('2011 Survey responses'!AA67,\">1\"))))","v":6},{"$f":"IF(('2011 Survey responses'!V67+'2011 Survey responses'!Y67+'2011 Survey responses'!AA67)<3.1,\"\",((SUMIF('2011 Survey responses'!V67,\">1\")+SUMIF('2011 Survey responses'!Y67,\">1\")+SUMIF('2011 Survey responses'!AA67,\">1\"))/(COUNTIF('2011 Survey responses'!V67,\">1\")+COUNTIF('2011 Survey responses'!Y67,\">1\")+COUNTIF('2011 Survey responses'!AA67,\">1\"))))","v":5.5},{"$f":"IF(SUM('2011 Survey responses'!AB67:AH67)<1,\"\",(AVERAGEIFS('2011 Survey responses'!AB67:AH67,'2011 Survey responses'!AB67:AH67,\">1\")))","v":5.5},{"$f":"IF(SUM('2011 Survey responses'!AI67:AO67)<7.1,\"\",(AVERAGEIFS('2011 Survey responses'!AI67:AO67,'2011 Survey responses'!AI67:AO67,\">1\")))","v":6},{"$f":"IF(('2011 Survey responses'!AH67)<1.1,\"\",('2011 Survey responses'!AH67))","v":""},{"$f":"IF(SUM('2011 Survey responses'!AP67:BV67)<1,\"\",(AVERAGEIFS('2011 Survey responses'!AP67:BV67,'2011 Survey responses'!AP67:BV67,\">1\")))","v":5.7666666666666666},{"$f":"IF(SUM('2011 Survey responses'!AP67:AS67)<4.1,\"\",(AVERAGEIFS('2011 Survey responses'!AP67:AS67,'2011 Survey responses'!AP67:AS67,\">1\")))","v":5},{"$f":"IF(SUM('2011 Survey responses'!AT67:BF67)<1,\"\",(AVERAGEIFS('2011 Survey responses'!AT67:BF67,'2011 Survey responses'!AT67:BF67,\">1\")))","v":5.7272727272727275},{"$f":"IF(SUM('2011 Survey responses'!BG67:BO67)<1,\"\",(AVERAGEIFS('2011 Survey responses'!BG67:BO67,'2011 Survey responses'!BG67:BO67,\">1\")))","v":6},{"$f":"IF(SUM('2011 Survey responses'!BP67:BS67)<1,\"\",(AVERAGEIFS('2011 Survey responses'!BP67:BS67,'2011 Survey responses'!BP67:BS67,\">1\")))","v":6},{"$f":"IF(SUM('2011 Survey responses'!BT67:BV67)<3.1,\"\",(AVERAGEIFS('2011 Survey responses'!BT67:BV67,'2011 Survey responses'!BT67:BV67,\">1\")))","v":6},{"$f":"IF(('2011 Survey responses'!AQ67+'2011 Survey responses'!AR67+'2011 Survey responses'!BG67)<3.1,\"\",((SUMIF('2011 Survey responses'!AQ67,\">1\")+SUMIF('2011 Survey responses'!AR67,\">1\")+SUMIF('2011 Survey responses'!BG67,\">1\"))/(COUNTIF('2011 Survey responses'!AQ67,\">1\")+COUNTIF('2011 Survey responses'!AR67,\">1\")+COUNTIF('2011 Survey responses'!BG67,\">1\"))))","v":6},{"$f":"IF(SUM('2011 Survey responses'!AP67:AS67)<4.1,\"\",(AVERAGEIFS('2011 Survey responses'!AP67:AS67,'2011 Survey responses'!AP67:AS67,\">1\")))","v":5},{"$f":"IF(('2011 Survey responses'!AU67+'2011 Survey responses'!AX67+'2011 Survey responses'!BA67+'2011 Survey responses'!BC67+'2011 Survey responses'!BD67)<5.1,\"\",(SUMIF('2011 Survey responses'!AU67,\">1\")+SUMIF('2011 Survey responses'!AX67,\">1\")+SUMIF('2011 Survey responses'!BA67,\">1\")+SUMIF('2011 Survey responses'!BC67,\">1\")+SUMIF('2011 Survey responses'!BD67,\">1\"))/(COUNTIF('2011 Survey responses'!AU67,\">1\")+COUNTIF('2011 Survey responses'!AX67,\">1\")+COUNTIF('2011 Survey responses'!BA67,\">1\")+COUNTIF('2011 Survey responses'!BC67,\">1\")+COUNTIF('2011 Survey responses'!BD67,\">1\")))","v":5.8},{"$f":"IF(('2011 Survey responses'!AT67)<1.1,\"\",('2011 Survey responses'!AT67))","v":6},{"$f":"IF(SUM('2011 Survey responses'!AV67:AW67)<2.1,\"\",(AVERAGEIFS('2011 Survey responses'!AV67:AW67,'2011 Survey responses'!AV67:AW67,\">1\")))","v":6},{"$f":"IF(('2011 Survey responses'!AW67+'2011 Survey responses'!AY67)<2.1,\"\",(SUMIF('2011 Survey responses'!AW67,\">1\")+SUMIF('2011 Survey responses'!AY67,\">1\"))/(COUNTIF('2011 Survey responses'!AW67,\">1\")+COUNTIF('2011 Survey responses'!AY67,\">1\")))","v":""},{"$f":"IF(('2011 Survey responses'!AZ67)<1.1,\"\",('2011 Survey responses'!AZ67))","v":5},5,5,6,1,{"$f":"IF(('2011 Survey responses'!BE67)<1.1,\"\",('2011 Survey responses'!BE67))","v":6},{"$f":"IF(('2011 Survey responses'!AY67+'2011 Survey responses'!BB67+'2011 Survey responses'!BF67)<3.1,\"\",(SUMIF('2011 Survey responses'!AY67,\">1\")+SUMIF('2011 Survey responses'!BB67,\">1\")+SUMIF('2011 Survey responses'!BF67,\">1\"))/(COUNTIF('2011 Survey responses'!AY67,\">1\")+COUNTIF('2011 Survey responses'!BB67,\">1\")+COUNTIF('2011 Survey responses'!BF67,\">1\")))","v":5.5},{"$f":"IF(SUM(AI67,AJ67)<1,\"\",AVERAGE(AI67,AJ67))","v":6},{"$f":"IF(SUM('2011 Survey responses'!BT67:BV67)<3.1,\"\",(AVERAGEIFS('2011 Survey responses'!BT67:BV67,'2011 Survey responses'!BT67:BV67,\">1\")))","v":6},{"$f":"IF(SUM('2011 Survey responses'!BW67:CP67)<1,\"\",(AVERAGEIFS('2011 Survey responses'!BW67:CP67,'2011 Survey responses'!BW67:CP67,\">1\")))","v":5.833333333333333},{"$f":"IF(SUM('2011 Survey responses'!BW67:CF67)<1,\"\",(AVERAGEIFS('2011 Survey responses'!BW67:CF67,'2011 Survey responses'!BW67:CF67,\">1\")))","v":5.7777777777777777},{"$f":"IF(SUM('2011 Survey responses'!CG67:CP67)<1,\"\",(AVERAGEIFS('2011 Survey responses'!CG67:CP67,'2011 Survey responses'!CG67:CP67,\">1\")))","v":5.8888888888888893},{"$f":"IF(SUM('2011 Survey responses'!BX67:CF67)<1,\"\",(AVERAGEIFS('2011 Survey responses'!BX67:CF67,'2011 Survey responses'!BX67:CF67,\">1\")))","v":5.75},{"$f":"IF(SUM('2011 Survey responses'!CH67:CP67)<1,\"\",(AVERAGEIFS('2011 Survey responses'!CH67:CP67,'2011 Survey responses'!CH67:CP67,\">1\")))","v":5.875},{"$f":"IF(SUM('2011 Survey responses'!BW67:CP67)<1,\"\",(AVERAGEIFS('2011 Survey responses'!BW67:CP67,'2011 Survey responses'!BW67:CP67,\">1\")))","v":5.833333333333333},{"$f":"IF(('2011 Survey responses'!BW67+'2011 Survey responses'!CG67)<2.1,\"\",(SUMIF('2011 Survey responses'!BW67,\">1\")+SUMIF('2011 Survey responses'!CG67,\">1\"))/(COUNTIF('2011 Survey responses'!BW67,\">1\")+COUNTIF('2011 Survey responses'!CG67,\">1\")))","v":6},{"$f":"IF(('2011 Survey responses'!BX67+'2011 Survey responses'!CH67)<2.1,\"\",(SUMIF('2011 Survey responses'!BX67,\">1\")+SUMIF('2011 Survey responses'!CH67,\">1\"))/(COUNTIF('2011 Survey responses'!BX67,\">1\")+COUNTIF('2011 Survey responses'!CH67,\">1\")))","v":6},{"$f":"IF(('2011 Survey responses'!BY67+'2011 Survey responses'!CI67)<2.1,\"\",(SUMIF('2011 Survey responses'!BY67,\">1\")+SUMIF('2011 Survey responses'!CI67,\">1\"))/(COUNTIF('2011 Survey responses'!BY67,\">1\")+COUNTIF('2011 Survey responses'!CI67,\">1\")))","v":6},{"$f":"IF('2011 Survey responses'!CQ67<0.5,\"\",'2011 Survey responses'!CQ67)","v":4},{"$f":"IF('2011 Survey responses'!CR67<0.5,\"\",'2011 Survey responses'!CR67)","v":2},{"$f":"IF('2011 Survey responses'!CS67<0.5,\"\",'2011 Survey responses'!CS67)","v":2},{"$f":"IF('2011 Survey responses'!CT67<0.5,\"\",'2011 Survey responses'!CT67)","v":4},{"$f":"IF('2011 Survey responses'!CU67<0.5,\"\",'2011 Survey responses'!CU67)","v":4},{"$f":"IF('2011 Survey responses'!CV67<0.5,\"\",'2011 Survey responses'!CV67)","v":5},{"$f":"IF(SUM('2011 Survey responses'!CW67:DL67)<1,\"\",(AVERAGE('2011 Survey responses'!CW67:DL67)))","v":1.875},{"$f":"IF(SUM('2011 Survey responses'!CW67:CZ67)<1,\"\",(AVERAGE('2011 Survey responses'!CW67:CZ67)))","v":2},{"$f":"IF(SUM('2011 Survey responses'!DA67:DD67)<1,\"\",(AVERAGE('2011 Survey responses'!DA67:DD67)))","v":1.5},{"$f":"IF(SUM('2011 Survey responses'!DE67:DH67)<1,\"\",(AVERAGE('2011 Survey responses'!DE67:DH67)))","v":2},{"$f":"IF(SUM('2011 Survey responses'!DI67:DL67)<1,\"\",(AVERAGE('2011 Survey responses'!DI67:DL67)))","v":2},{"$f":"IF(('2011 Survey responses'!CW67+'2011 Survey responses'!DA67+'2011 Survey responses'!DE67+'2011 Survey responses'!DI67)<1,\"\",AVERAGE('2011 Survey responses'!CW67,'2011 Survey responses'!DA67,'2011 Survey responses'!DE67,'2011 Survey responses'!DI67))","v":1.75},{"$f":"IF(('2011 Survey responses'!CX67+'2011 Survey responses'!DB67+'2011 Survey responses'!DF67+'2011 Survey responses'!DJ67)<1,\"\",AVERAGE('2011 Survey responses'!CX67,'2011 Survey responses'!DB67,'2011 Survey responses'!DF67,'2011 Survey responses'!DJ67))","v":1.5},{"$f":"IF(('2011 Survey responses'!CY67+'2011 Survey responses'!DC67+'2011 Survey responses'!DG67+'2011 Survey responses'!DK67)<1,\"\",AVERAGE('2011 Survey responses'!CY67,'2011 Survey responses'!DC67,'2011 Survey responses'!DG67,'2011 Survey responses'!DK67))","v":3.25},{"$f":"IF(('2011 Survey responses'!CZ67+'2011 Survey responses'!DD67+'2011 Survey responses'!DH67+'2011 Survey responses'!DL67)<1,\"\",AVERAGE('2011 Survey responses'!CZ67,'2011 Survey responses'!DD67,'2011 Survey responses'!DH67,'2011 Survey responses'!DL67))","v":1},{"$f":"IF('2011 Survey responses'!CW67<0.5,\"\",'2011 Survey responses'!CW67)","v":2},{"$f":"IF('2011 Survey responses'!CX67<0.5,\"\",'2011 Survey responses'!CX67)","v":1},{"$f":"IF('2011 Survey responses'!CY67<0.5,\"\",'2011 Survey responses'!CY67)","v":4},{"$f":"IF('2011 Survey responses'!CZ67<0.5,\"\",'2011 Survey responses'!CZ67)","v":1},{"$f":"IF('2011 Survey responses'!DA67<0.5,\"\",'2011 Survey responses'!DA67)","v":1},{"$f":"IF('2011 Survey responses'!DB67<0.5,\"\",'2011 Survey responses'!DB67)","v":1},{"$f":"IF('2011 Survey responses'!DC67<0.5,\"\",'2011 Survey responses'!DC67)","v":3},{"$f":"IF('2011 Survey responses'!DD67<0.5,\"\",'2011 Survey responses'!DD67)","v":1},{"$f":"IF('2011 Survey responses'!DE67<0.5,\"\",'2011 Survey responses'!DE67)","v":2},{"$f":"IF('2011 Survey responses'!DF67<0.5,\"\",'2011 Survey responses'!DF67)","v":1},{"$f":"IF('2011 Survey responses'!DG67<0.5,\"\",'2011 Survey responses'!DG67)","v":4},{"$f":"IF('2011 Survey responses'!DH67<0.5,\"\",'2011 Survey responses'!DH67)","v":1},{"$f":"IF('2011 Survey responses'!DI67<0.5,\"\",'2011 Survey responses'!DI67)","v":2},{"$f":"IF('2011 Survey responses'!DJ67<0.5,\"\",'2011 Survey responses'!DJ67)","v":3},{"$f":"IF('2011 Survey responses'!DK67<0.5,\"\",'2011 Survey responses'!DK67)","v":2},{"$f":"IF('2011 Survey responses'!DL67<0.5,\"\",'2011 Survey responses'!DL67)","v":1},{"$f":"IF('2011 Survey responses'!DU67=4,4,IF('2011 Survey responses'!DU67=5,4,\"\"))","v":""},{"$f":"IF('2011 Survey responses'!DV67=4,3,IF('2011 Survey responses'!DV67=5,3,\"\"))","v":""},"",{"$f":"IF(CQ67=2,CQ67,IF(CO67=4,CO67,IF(CP67=3,CP67,IF('2011 Survey responses'!GT67=1,1,\"\"))))","v":1},{"$f":"IF('2011 Survey responses'!DO67<0.5,\"\",'2011 Survey responses'!DO67)","v":2},{"$f":"IF('2011 Survey responses'!DP67<0.5,\"\",'2011 Survey responses'!DP67)","v":2},{"$f":"IF('2011 Survey responses'!DQ67<0.5,\"\",'2011 Survey responses'!DQ67)","v":3},{"$f":"IF('2011 Survey responses'!DR67<0.5,\"\",'2011 Survey responses'!DR67)","v":4},{"$f":"IF('2011 Survey responses'!DS67<0.5,\"\",'2011 Survey responses'!DS67)","v":3},{"$f":"IF('2011 Survey responses'!DT67<0.5,\"\",'2011 Survey responses'!DT67)","v":3},{"$f":"IF('2011 Survey responses'!DU67<0.5,\"\",'2011 Survey responses'!DU67)","v":3},{"$f":"IF('2011 Survey responses'!DV67<0.5,\"\",'2011 Survey responses'!DV67)","v":1},{"$f":"IF('2011 Survey responses'!DW67<0.5,\"\",'2011 Survey responses'!DW67)","v":1},{"$f":"IF('2011 Survey responses'!DX67<0.5,\"\",'2011 Survey responses'!DX67)","v":1},{"$f":"IF('2011 Survey responses'!DY67<0.5,\"\",'2011 Survey responses'!DY67)","v":3},{"$f":"IF('2011 Survey responses'!DZ67<0.5,\"\",'2011 Survey responses'!DZ67)","v":3},{"$f":"IF('2011 Survey responses'!EA67<0.5,\"\",'2011 Survey responses'!EA67)","v":3},{"$f":"IF('2011 Survey responses'!EB67<0.5,\"\",'2011 Survey responses'!EB67)","v":2},{"$f":"IF('2011 Survey responses'!EC67<0.5,\"\",'2011 Survey responses'!EC67)","v":5},{"$f":"IF('2011 Survey responses'!ED67<0.5,\"\",'2011 Survey responses'!ED67)","v":4},{"$f":"IF('2011 Survey responses'!EE67<0.5,\"\",'2011 Survey responses'!EE67)","v":5},{"$f":"IF('2011 Survey responses'!EF67<0.5,\"\",'2011 Survey responses'!EF67)","v":4},{"$f":"IF('2011 Survey responses'!EG67<0.5,\"\",'2011 Survey responses'!EG67)","v":4},{"$f":"IF('2011 Survey responses'!EH67<0.5,\"\",'2011 Survey responses'!EH67)","v":""},{"$f":"IF('2011 Survey responses'!EI67<0.5,\"\",'2011 Survey responses'!EI67)","v":3},{"$f":"IF('2011 Survey responses'!EJ67<0.5,\"\",'2011 Survey responses'!EJ67)","v":3},{"$f":"IF('2011 Survey responses'!EK67<0.5,\"\",'2011 Survey responses'!EK67)","v":1},{"$f":"IF('2011 Survey responses'!EL67<0.5,\"\",'2011 Survey responses'!EL67)","v":2},{"$f":"IF('2011 Survey responses'!EM67<0.5,\"\",'2011 Survey responses'!EM67)","v":1},{"$f":"IF('2011 Survey responses'!EN67<0.5,\"\",'2011 Survey responses'!EN67)","v":1},{"$f":"IF('2011 Survey responses'!EO67<0.5,\"\",'2011 Survey responses'!EO67)","v":1},{"$f":"IF('2011 Survey responses'!EP67<0.5,\"\",'2011 Survey responses'!EP67)","v":1},{"$f":"IF(('2011 Survey responses'!EW67+'2011 Survey responses'!EX67)>=2,AVERAGE('2011 Survey responses'!EW67,'2011 Survey responses'!EY67),\"\")","v":2},{"$f":"IF('2011 Survey responses'!EX67<0.5,\"\",'2011 Survey responses'!EX67)","v":3},{"$f":"IF('2011 Survey responses'!EZ67<0.5,\"\",'2011 Survey responses'!EZ67)","v":1},{"$f":"IF('2011 Survey responses'!FB67<0.5,\"\",'2011 Survey responses'!FB67)","v":1},{"$f":"IF('2011 Survey responses'!FD67<0.5,\"\",'2011 Survey responses'!FD67)","v":3},{"$f":"IF('2011 Survey responses'!FC67<0.5,\"\",'2011 Survey responses'!FC67)","v":4},{"$f":"IF(('2011 Survey responses'!EM67+'2011 Survey responses'!EN67)>=2,AVERAGE('2011 Survey responses'!EM67,'2011 Survey responses'!EN67),\"\")","v":1},{"$f":"IF('2011 Survey responses'!ES67<0.5,\"\",'2011 Survey responses'!ES67)","v":1},{"$f":"IF(('2011 Survey responses'!ET67+'2011 Survey responses'!EU67)>=2,AVERAGE('2011 Survey responses'!ET67,'2011 Survey responses'!EU67),\"\")","v":3},{"$f":"IF('2011 Survey responses'!EV67<0.5,\"\",'2011 Survey responses'!EV67)","v":1},{"$f":"IF('2011 Survey responses'!FA67<0.5,\"\",'2011 Survey responses'!FA67)","v":1},{"$f":"IF('2011 Survey responses'!ER67<0.5,\"\",'2011 Survey responses'!ER67)","v":3},{"$f":"IF(('2011 Survey responses'!EO67+'2011 Survey responses'!EP67)>=2,AVERAGE('2011 Survey responses'!EO67,'2011 Survey responses'!EP67),\"\")","v":1},{"$f":"IF('2011 Survey responses'!EQ67<0.5,\"\",'2011 Survey responses'!EQ67)","v":1},{"$f":"IF('2011 Survey responses'!ET67<0.5,\"\",'2011 Survey responses'!ET67)","v":3},{"$f":"IF('2011 Survey responses'!EU67<0.5,\"\",'2011 Survey responses'!EU67)","v":3},{"$f":"IF('2011 Survey responses'!EW67<0.5,\"\",'2011 Survey responses'!EW67)","v":1},{"$f":"IF('2011 Survey responses'!EY67<0.5,\"\",'2011 Survey responses'!EY67)","v":3},{"$f":"IF('2011 Survey responses'!FU67<0.5,\"\",'2011 Survey responses'!FU67)","v":5},{"$f":"IF(('2011 Survey responses'!FL67+'2011 Survey responses'!FM67)>=2,AVERAGE('2011 Survey responses'!FL67,'2011 Survey responses'!FM67),\"\")","v":5},{"$f":"IF(('2011 Survey responses'!FO67+'2011 Survey responses'!FQ67)>=2,AVERAGE('2011 Survey responses'!FO67,'2011 Survey responses'!FQ67),\"\")","v":3},{"$f":"IF('2011 Survey responses'!FJ67<0.5,\"\",'2011 Survey responses'!FJ67)","v":5},{"$f":"IF('2011 Survey responses'!FT67<0.5,\"\",'2011 Survey responses'!FT67)","v":4},{"$f":"IF('2011 Survey responses'!FR67<0.5,\"\",'2011 Survey responses'!FR67)","v":4},{"$f":"IF('2011 Survey responses'!FK67<0.5,\"\",'2011 Survey responses'!FK67)","v":4},{"$f":"IF('2011 Survey responses'!FP67<0.5,\"\",'2011 Survey responses'!FP67)","v":4},{"$f":"IF('2011 Survey responses'!FN67<0.5,\"\",'2011 Survey responses'!FN67)","v":3},{"$f":"IF(('2011 Survey responses'!FE67+'2011 Survey responses'!FF67)>=2,AVERAGE('2011 Survey responses'!FE67,'2011 Survey responses'!FF67),\"\")","v":4},{"$f":"IF('2011 Survey responses'!FS67<0.5,\"\",'2011 Survey responses'!FS67)","v":5},{"$f":"IF('2011 Survey responses'!FV67<0.5,\"\",'2011 Survey responses'!FV67)","v":4},{"$f":"IF(('2011 Survey responses'!FG67+'2011 Survey responses'!FH67)>=2,AVERAGE('2011 Survey responses'!FG67,'2011 Survey responses'!FH67),\"\")","v":4},{"$f":"IF('2011 Survey responses'!FI67<0.5,\"\",'2011 Survey responses'!FI67)","v":4},{"$f":"IF('2011 Survey responses'!FE67<0.5,\"\",'2011 Survey responses'!FE67)","v":4},{"$f":"IF('2011 Survey responses'!FF67<0.5,\"\",'2011 Survey responses'!FF67)","v":4},{"$f":"IF('2011 Survey responses'!FG67<0.5,\"\",'2011 Survey responses'!FG67)","v":4},{"$f":"IF('2011 Survey responses'!FH67<0.5,\"\",'2011 Survey responses'!FH67)","v":4},{"$f":"IF('2011 Survey responses'!FL67<0.5,\"\",'2011 Survey responses'!FL67)","v":5},{"$f":"IF('2011 Survey responses'!FM67<0.5,\"\",'2011 Survey responses'!FM67)","v":5},{"$f":"IF('2011 Survey responses'!FO67<0.5,\"\",'2011 Survey responses'!FO67)","v":3},{"$f":"IF('2011 Survey responses'!FQ67<0.5,\"\",'2011 Survey responses'!FQ67)","v":3}]
["Ghana",{"$f":"IF(SUM(F68)<1,\"\",AVERAGEIF('2011 Survey responses'!B68:CP68,\">1\"))","v":4.9113924050632916},{"$f":"IF(SUM(F68)<1,\"\",AVERAGEIF('2011 Survey responses'!B68:AO68,\">1\"))","v":5.1212121212121211},{"$f":"IF(SUM(F68)<1,\"\",AVERAGEIF('2011 Survey responses'!B68:BV68,\">1\"))","v":5.129032258064516},{"$f":"IF(SUM(F68)<1,\"\",AVERAGEIF('2011 Survey responses'!V68:BV68,\">1\"))","v":5.3469387755102042},{"$f":"IF(SUM('2011 Survey responses'!B68:U68)<1,\"\",(AVERAGEIFS('2011 Survey responses'!B68:U68,'2011 Survey responses'!B68:U68,\">1\")))","v":4.3076923076923075},{"$f":"IF(SUM('2011 Survey responses'!B68:H68)<1,\"\",(AVERAGEIFS('2011 Survey responses'!B68:H68,'2011 Survey responses'!B68:H68,\">1\")))","v":4.333333333333333},{"$f":"IF(SUM('2011 Survey responses'!I68:S68)<1,\"\",(AVERAGEIFS('2011 Survey responses'!I68:S68,'2011 Survey responses'!I68:S68,\">1\")))","v":4},{"$f":"IF(SUM('2011 Survey responses'!T68:U68)<2.1,\"\",(AVERAGEIFS('2011 Survey responses'!T68:U68,'2011 Survey responses'!T68:U68,\">1\")))","v":5.5},{"$f":"IF(SUM('2011 Survey responses'!B68:C68)<2.1,\"\",((SUMIF('2011 Survey responses'!B68:C68,\">1\")+SUMIF('2011 Survey responses'!F68,\">1\"))/(COUNTIF('2011 Survey responses'!B68:C68,\">1\")+COUNTIF('2011 Survey responses'!F68,\">1\"))))","v":3.5},{"$f":"IF(SUM('2011 Survey responses'!D68:E68)<2.1,\"\",(AVERAGEIFS('2011 Survey responses'!D68:E68,'2011 Survey responses'!D68:E68,\">1\")))","v":6},{"$f":"IF(('2011 Survey responses'!B68+'2011 Survey responses'!D68)<2.1,\"\",((SUMIF('2011 Survey responses'!B68,\">1\")+SUMIF('2011 Survey responses'!D68,\">1\")+SUMIF('2011 Survey responses'!F68,\">1\")+SUMIF('2011 Survey responses'!K68,\">1\"))/(COUNTIF('2011 Survey responses'!B68,\">1\")+COUNTIF('2011 Survey responses'!D68,\">1\")+COUNTIF('2011 Survey responses'!F68,\">1\")+COUNTIF('2011 Survey responses'!K68,\">1\"))))","v":4.25},{"$f":"IF(SUM('2011 Survey responses'!G68:H68)<2.1,\"\",(AVERAGEIFS('2011 Survey responses'!G68:H68,'2011 Survey responses'!G68:H68,\">1\")))","v":""},{"$f":"IF(SUM('2011 Survey responses'!F68:G68)<1.5,\"\",MAX('2011 Survey responses'!F68,'2011 Survey responses'!G68))","v":2},{"$f":"IF(SUM('2011 Survey responses'!G68:H68)<1,\"\",MAX('2011 Survey responses'!G68,'2011 Survey responses'!H68))","v":1},{"$f":"IF(SUM('2011 Survey responses'!I68:L68)<4.1,\"\",(AVERAGEIFS('2011 Survey responses'!I68:L68,'2011 Survey responses'!I68:L68,\">1\")))","v":3.5},{"$f":"IF(SUM('2011 Survey responses'!M68:S68)<4.1,\"\",(AVERAGEIFS('2011 Survey responses'!M68:S68,'2011 Survey responses'!M68:S68,\">1\")))","v":4.5},{"$f":"IF(SUM('2011 Survey responses'!T68:U68)<2.1,\"\",(AVERAGEIFS('2011 Survey responses'!T68:U68,'2011 Survey responses'!T68:U68,\">1\")))","v":5.5},{"$f":"IF(SUM('2011 Survey responses'!V68:AO68)<1,\"\",(AVERAGEIFS('2011 Survey responses'!V68:AO68,'2011 Survey responses'!V68:AO68,\">1\")))","v":5.65},{"$f":"IF(SUM('2011 Survey responses'!V68:AA68)<1,\"\",(AVERAGEIFS('2011 Survey responses'!V68:AA68,'2011 Survey responses'!V68:AA68,\">1\")))","v":5.333333333333333},{"$f":"IF(SUM('2011 Survey responses'!AB68:AH68)<1,\"\",(AVERAGEIFS('2011 Survey responses'!AB68:AH68,'2011 Survey responses'!AB68:AH68,\">1\")))","v":5.8571428571428568},{"$f":"IF(SUM('2011 Survey responses'!AI68:AO68)<1,\"\",(AVERAGEIFS('2011 Survey responses'!AI68:AO68,'2011 Survey responses'!AI68:AO68,\">1\")))","v":5.7142857142857144},{"$f":"IF(('2011 Survey responses'!Y68+'2011 Survey responses'!AI68+'2011 Survey responses'!AK68)<3.1,\"\",((SUMIF('2011 Survey responses'!Y68,\">1\")+SUMIF('2011 Survey responses'!AI68,\">1\")+SUMIF('2011 Survey responses'!AK68,\">1\")+SUMIF('2011 Survey responses'!AM68,\">1\"))/(COUNTIF('2011 Survey responses'!Y68,\">1\")+COUNTIF('2011 Survey responses'!AI68,\">1\")+COUNTIF('2011 Survey responses'!AK68,\">1\")+COUNTIF('2011 Survey responses'!AM68,\">1\"))))","v":5.75},{"$f":"IF(('2011 Survey responses'!W68)<1.1,\"\",('2011 Survey responses'!W68))","v":2},{"$f":"IF(('2011 Survey responses'!Y68)<1.1,\"\",('2011 Survey responses'!Y68))","v":6},{"$f":"IF(('2011 Survey responses'!Z68)<1.1,\"\",('2011 Survey responses'!Z68))","v":6},{"$f":"IF(('2011 Survey responses'!V68+'2011 Survey responses'!X68+'2011 Survey responses'!AA68)<3.1,\"\",((SUMIF('2011 Survey responses'!V68,\">1\")+SUMIF('2011 Survey responses'!X68,\">1\")+SUMIF('2011 Survey responses'!AA68,\">1\"))/(COUNTIF('2011 Survey responses'!V68,\">1\")+COUNTIF('2011 Survey responses'!X68,\">1\")+COUNTIF('2011 Survey responses'!AA68,\">1\"))))","v":6},{"$f":"IF(('2011 Survey responses'!V68+'2011 Survey responses'!Y68+'2011 Survey responses'!AA68)<3.1,\"\",((SUMIF('2011 Survey responses'!V68,\">1\")+SUMIF('2011 Survey responses'!Y68,\">1\")+SUMIF('2011 Survey responses'!AA68,\">1\"))/(COUNTIF('2011 Survey responses'!V68,\">1\")+COUNTIF('2011 Survey responses'!Y68,\">1\")+COUNTIF('2011 Survey responses'!AA68,\">1\"))))","v":6},{"$f":"IF(SUM('2011 Survey responses'!AB68:AH68)<1,\"\",(AVERAGEIFS('2011 Survey responses'!AB68:AH68,'2011 Survey responses'!AB68:AH68,\">1\")))","v":5.8571428571428568},{"$f":"IF(SUM('2011 Survey responses'!AI68:AO68)<7.1,\"\",(AVERAGEIFS('2011 Survey responses'!AI68:AO68,'2011 Survey responses'!AI68:AO68,\">1\")))","v":5.7142857142857144},{"$f":"IF(('2011 Survey responses'!AH68)<1.1,\"\",('2011 Survey responses'!AH68))","v":5},{"$f":"IF(SUM('2011 Survey responses'!AP68:BV68)<1,\"\",(AVERAGEIFS('2011 Survey responses'!AP68:BV68,'2011 Survey responses'!AP68:BV68,\">1\")))","v":5.1379310344827589},{"$f":"IF(SUM('2011 Survey responses'!AP68:AS68)<4.1,\"\",(AVERAGEIFS('2011 Survey responses'!AP68:AS68,'2011 Survey responses'!AP68:AS68,\">1\")))","v":4.5},{"$f":"IF(SUM('2011 Survey responses'!AT68:BF68)<1,\"\",(AVERAGEIFS('2011 Survey responses'!AT68:BF68,'2011 Survey responses'!AT68:BF68,\">1\")))","v":5.5},{"$f":"IF(SUM('2011 Survey responses'!BG68:BO68)<1,\"\",(AVERAGEIFS('2011 Survey responses'!BG68:BO68,'2011 Survey responses'!BG68:BO68,\">1\")))","v":5},{"$f":"IF(SUM('2011 Survey responses'!BP68:BS68)<1,\"\",(AVERAGEIFS('2011 Survey responses'!BP68:BS68,'2011 Survey responses'!BP68:BS68,\">1\")))","v":5},{"$f":"IF(SUM('2011 Survey responses'!BT68:BV68)<3.1,\"\",(AVERAGEIFS('2011 Survey responses'!BT68:BV68,'2011 Survey responses'!BT68:BV68,\">1\")))","v":5},{"$f":"IF(('2011 Survey responses'!AQ68+'2011 Survey responses'!AR68+'2011 Survey responses'!BG68)<3.1,\"\",((SUMIF('2011 Survey responses'!AQ68,\">1\")+SUMIF('2011 Survey responses'!AR68,\">1\")+SUMIF('2011 Survey responses'!BG68,\">1\"))/(COUNTIF('2011 Survey responses'!AQ68,\">1\")+COUNTIF('2011 Survey responses'!AR68,\">1\")+COUNTIF('2011 Survey responses'!BG68,\">1\"))))","v":4.333333333333333},{"$f":"IF(SUM('2011 Survey responses'!AP68:AS68)<4.1,\"\",(AVERAGEIFS('2011 Survey responses'!AP68:AS68,'2011 Survey responses'!AP68:AS68,\">1\")))","v":4.5},{"$f":"IF(('2011 Survey responses'!AU68+'2011 Survey responses'!AX68+'2011 Survey responses'!BA68+'2011 Survey responses'!BC68+'2011 Survey responses'!BD68)<5.1,\"\",(SUMIF('2011 Survey responses'!AU68,\">1\")+SUMIF('2011 Survey responses'!AX68,\">1\")+SUMIF('2011 Survey responses'!BA68,\">1\")+SUMIF('2011 Survey responses'!BC68,\">1\")+SUMIF('2011 Survey responses'!BD68,\">1\"))/(COUNTIF('2011 Survey responses'!AU68,\">1\")+COUNTIF('2011 Survey responses'!AX68,\">1\")+COUNTIF('2011 Survey responses'!BA68,\">1\")+COUNTIF('2011 Survey responses'!BC68,\">1\")+COUNTIF('2011 Survey responses'!BD68,\">1\")))","v":5.75},{"$f":"IF(('2011 Survey responses'!AT68)<1.1,\"\",('2011 Survey responses'!AT68))","v":5},{"$f":"IF(SUM('2011 Survey responses'!AV68:AW68)<2.1,\"\",(AVERAGEIFS('2011 Survey responses'!AV68:AW68,'2011 Survey responses'!AV68:AW68,\">1\")))","v":5},{"$f":"IF(('2011 Survey responses'!AW68+'2011 Survey responses'!AY68)<2.1,\"\",(SUMIF('2011 Survey responses'!AW68,\">1\")+SUMIF('2011 Survey responses'!AY68,\">1\"))/(COUNTIF('2011 Survey responses'!AW68,\">1\")+COUNTIF('2011 Survey responses'!AY68,\">1\")))","v":5.5},{"$f":"IF(('2011 Survey responses'!AZ68)<1.1,\"\",('2011 Survey responses'!AZ68))","v":4},4,null,5,1,{"$f":"IF(('2011 Survey responses'!BE68)<1.1,\"\",('2011 Survey responses'!BE68))","v":6},{"$f":"IF(('2011 Survey responses'!AY68+'2011 Survey responses'!BB68+'2011 Survey responses'!BF68)<3.1,\"\",(SUMIF('2011 Survey responses'!AY68,\">1\")+SUMIF('2011 Survey responses'!BB68,\">1\")+SUMIF('2011 Survey responses'!BF68,\">1\"))/(COUNTIF('2011 Survey responses'!AY68,\">1\")+COUNTIF('2011 Survey responses'!BB68,\">1\")+COUNTIF('2011 Survey responses'!BF68,\">1\")))","v":6},5,{"$f":"IF(SUM('2011 Survey responses'!BT68:BV68)<3.1,\"\",(AVERAGEIFS('2011 Survey responses'!BT68:BV68,'2011 Survey responses'!BT68:BV68,\">1\")))","v":5},{"$f":"IF(SUM('2011 Survey responses'!BW68:CP68)<1,\"\",(AVERAGEIFS('2011 Survey responses'!BW68:CP68,'2011 Survey responses'!BW68:CP68,\">1\")))","v":4.117647058823529},{"$f":"IF(SUM('2011 Survey responses'!BW68:CF68)<1,\"\",(AVERAGEIFS('2011 Survey responses'!BW68:CF68,'2011 Survey responses'!BW68:CF68,\">1\")))","v":3.625},{"$f":"IF(SUM('2011 Survey responses'!CG68:CP68)<1,\"\",(AVERAGEIFS('2011 Survey responses'!CG68:CP68,'2011 Survey responses'!CG68:CP68,\">1\")))","v":4.5555555555555554},{"$f":"IF(SUM('2011 Survey responses'!BX68:CF68)<1,\"\",(AVERAGEIFS('2011 Survey responses'!BX68:CF68,'2011 Survey responses'!BX68:CF68,\">1\")))","v":3.8571428571428572},{"$f":"IF(SUM('2011 Survey responses'!CH68:CP68)<1,\"\",(AVERAGEIFS('2011 Survey responses'!CH68:CP68,'2011 Survey responses'!CH68:CP68,\">1\")))","v":4.5},{"$f":"IF(SUM('2011 Survey responses'!BW68:CP68)<1,\"\",(AVERAGEIFS('2011 Survey responses'!BW68:CP68,'2011 Survey responses'!BW68:CP68,\">1\")))","v":4.117647058823529},{"$f":"IF(('2011 Survey responses'!BW68+'2011 Survey responses'!CG68)<2.1,\"\",(SUMIF('2011 Survey responses'!BW68,\">1\")+SUMIF('2011 Survey responses'!CG68,\">1\"))/(COUNTIF('2011 Survey responses'!BW68,\">1\")+COUNTIF('2011 Survey responses'!CG68,\">1\")))","v":3.5},{"$f":"IF(('2011 Survey responses'!BX68+'2011 Survey responses'!CH68)<2.1,\"\",(SUMIF('2011 Survey responses'!BX68,\">1\")+SUMIF('2011 Survey responses'!CH68,\">1\"))/(COUNTIF('2011 Survey responses'!BX68,\">1\")+COUNTIF('2011 Survey responses'!CH68,\">1\")))","v":4.5},{"$f":"IF(('2011 Survey responses'!BY68+'2011 Survey responses'!CI68)<2.1,\"\",(SUMIF('2011 Survey responses'!BY68,\">1\")+SUMIF('2011 Survey responses'!CI68,\">1\"))/(COUNTIF('2011 Survey responses'!BY68,\">1\")+COUNTIF('2011 Survey responses'!CI68,\">1\")))","v":5},{"$f":"IF('2011 Survey responses'!CQ68<0.5,\"\",'2011 Survey responses'!CQ68)","v":5},{"$f":"IF('2011 Survey responses'!CR68<0.5,\"\",'2011 Survey responses'!CR68)","v":4},{"$f":"IF('2011 Survey responses'!CS68<0.5,\"\",'2011 Survey responses'!CS68)","v":5},{"$f":"IF('2011 Survey responses'!CT68<0.5,\"\",'2011 Survey responses'!CT68)","v":2},{"$f":"IF('2011 Survey responses'!CU68<0.5,\"\",'2011 Survey responses'!CU68)","v":4},{"$f":"IF('2011 Survey responses'!CV68<0.5,\"\",'2011 Survey responses'!CV68)","v":1},{"$f":"IF(SUM('2011 Survey responses'!CW68:DL68)<1,\"\",(AVERAGE('2011 Survey responses'!CW68:DL68)))","v":3.75},{"$f":"IF(SUM('2011 Survey responses'!CW68:CZ68)<1,\"\",(AVERAGE('2011 Survey responses'!CW68:CZ68)))","v":4.25},{"$f":"IF(SUM('2011 Survey responses'!DA68:DD68)<1,\"\",(AVERAGE('2011 Survey responses'!DA68:DD68)))","v":3.75},{"$f":"IF(SUM('2011 Survey responses'!DE68:DH68)<1,\"\",(AVERAGE('2011 Survey responses'!DE68:DH68)))","v":4},{"$f":"IF(SUM('2011 Survey responses'!DI68:DL68)<1,\"\",(AVERAGE('2011 Survey responses'!DI68:DL68)))","v":3},{"$f":"IF(('2011 Survey responses'!CW68+'2011 Survey responses'!DA68+'2011 Survey responses'!DE68+'2011 Survey responses'!DI68)<1,\"\",AVERAGE('2011 Survey responses'!CW68,'2011 Survey responses'!DA68,'2011 Survey responses'!DE68,'2011 Survey responses'!DI68))","v":3.75},{"$f":"IF(('2011 Survey responses'!CX68+'2011 Survey responses'!DB68+'2011 Survey responses'!DF68+'2011 Survey responses'!DJ68)<1,\"\",AVERAGE('2011 Survey responses'!CX68,'2011 Survey responses'!DB68,'2011 Survey responses'!DF68,'2011 Survey responses'!DJ68))","v":3.75},{"$f":"IF(('2011 Survey responses'!CY68+'2011 Survey responses'!DC68+'2011 Survey responses'!DG68+'2011 Survey responses'!DK68)<1,\"\",AVERAGE('2011 Survey responses'!CY68,'2011 Survey responses'!DC68,'2011 Survey responses'!DG68,'2011 Survey responses'!DK68))","v":3.75},{"$f":"IF(('2011 Survey responses'!CZ68+'2011 Survey responses'!DD68+'2011 Survey responses'!DH68+'2011 Survey responses'!DL68)<1,\"\",AVERAGE('2011 Survey responses'!CZ68,'2011 Survey responses'!DD68,'2011 Survey responses'!DH68,'2011 Survey responses'!DL68))","v":3.75},{"$f":"IF('2011 Survey responses'!CW68<0.5,\"\",'2011 Survey responses'!CW68)","v":4},{"$f":"IF('2011 Survey responses'!CX68<0.5,\"\",'2011 Survey responses'!CX68)","v":4},{"$f":"IF('2011 Survey responses'!CY68<0.5,\"\",'2011 Survey responses'!CY68)","v":5},{"$f":"IF('2011 Survey responses'!CZ68<0.5,\"\",'2011 Survey responses'!CZ68)","v":4},{"$f":"IF('2011 Survey responses'!DA68<0.5,\"\",'2011 Survey responses'!DA68)","v":4},{"$f":"IF('2011 Survey responses'!DB68<0.5,\"\",'2011 Survey responses'!DB68)","v":4},{"$f":"IF('2011 Survey responses'!DC68<0.5,\"\",'2011 Survey responses'!DC68)","v":3},{"$f":"IF('2011 Survey responses'!DD68<0.5,\"\",'2011 Survey responses'!DD68)","v":4},{"$f":"IF('2011 Survey responses'!DE68<0.5,\"\",'2011 Survey responses'!DE68)","v":4},{"$f":"IF('2011 Survey responses'!DF68<0.5,\"\",'2011 Survey responses'!DF68)","v":4},{"$f":"IF('2011 Survey responses'!DG68<0.5,\"\",'2011 Survey responses'!DG68)","v":4},{"$f":"IF('2011 Survey responses'!DH68<0.5,\"\",'2011 Survey responses'!DH68)","v":4},{"$f":"IF('2011 Survey responses'!DI68<0.5,\"\",'2011 Survey responses'!DI68)","v":3},{"$f":"IF('2011 Survey responses'!DJ68<0.5,\"\",'2011 Survey responses'!DJ68)","v":3},{"$f":"IF('2011 Survey responses'!DK68<0.5,\"\",'2011 Survey responses'!DK68)","v":3},{"$f":"IF('2011 Survey responses'!DL68<0.5,\"\",'2011 Survey responses'!DL68)","v":3},{"$f":"IF('2011 Survey responses'!DU68=4,4,IF('2011 Survey responses'!DU68=5,4,\"\"))","v":4},{"$f":"IF('2011 Survey responses'!DV68=4,3,IF('2011 Survey responses'!DV68=5,3,\"\"))","v":3},{"$f":"IF(AND(CO68=4,CP68=3),2,\"\")","v":2},{"$f":"IF(CQ68=2,CQ68,IF(CO68=4,CO68,IF(CP68=3,CP68,IF('2011 Survey responses'!GT68=1,1,\"\"))))","v":2},{"$f":"IF('2011 Survey responses'!DO68<0.5,\"\",'2011 Survey responses'!DO68)","v":4},{"$f":"IF('2011 Survey responses'!DP68<0.5,\"\",'2011 Survey responses'!DP68)","v":5},{"$f":"IF('2011 Survey responses'!DQ68<0.5,\"\",'2011 Survey responses'!DQ68)","v":4},{"$f":"IF('2011 Survey responses'!DR68<0.5,\"\",'2011 Survey responses'!DR68)","v":5},{"$f":"IF('2011 Survey responses'!DS68<0.5,\"\",'2011 Survey responses'!DS68)","v":2},{"$f":"IF('2011 Survey responses'!DT68<0.5,\"\",'2011 Survey responses'!DT68)","v":4},{"$f":"IF('2011 Survey responses'!DU68<0.5,\"\",'2011 Survey responses'!DU68)","v":5},{"$f":"IF('2011 Survey responses'!DV68<0.5,\"\",'2011 Survey responses'!DV68)","v":5},{"$f":"IF('2011 Survey responses'!DW68<0.5,\"\",'2011 Survey responses'!DW68)","v":4},{"$f":"IF('2011 Survey responses'!DX68<0.5,\"\",'2011 Survey responses'!DX68)","v":2},{"$f":"IF('2011 Survey responses'!DY68<0.5,\"\",'2011 Survey responses'!DY68)","v":4},{"$f":"IF('2011 Survey responses'!DZ68<0.5,\"\",'2011 Survey responses'!DZ68)","v":3},{"$f":"IF('2011 Survey responses'!EA68<0.5,\"\",'2011 Survey responses'!EA68)","v":4},{"$f":"IF('2011 Survey responses'!EB68<0.5,\"\",'2011 Survey responses'!EB68)","v":5},{"$f":"IF('2011 Survey responses'!EC68<0.5,\"\",'2011 Survey responses'!EC68)","v":2},{"$f":"IF('2011 Survey responses'!ED68<0.5,\"\",'2011 Survey responses'!ED68)","v":2},{"$f":"IF('2011 Survey responses'!EE68<0.5,\"\",'2011 Survey responses'!EE68)","v":1},{"$f":"IF('2011 Survey responses'!EF68<0.5,\"\",'2011 Survey responses'!EF68)","v":5},{"$f":"IF('2011 Survey responses'!EG68<0.5,\"\",'2011 Survey responses'!EG68)","v":5},{"$f":"IF('2011 Survey responses'!EH68<0.5,\"\",'2011 Survey responses'!EH68)","v":5},{"$f":"IF('2011 Survey responses'!EI68<0.5,\"\",'2011 Survey responses'!EI68)","v":5},{"$f":"IF('2011 Survey responses'!EJ68<0.5,\"\",'2011 Survey responses'!EJ68)","v":3},{"$f":"IF('2011 Survey responses'!EK68<0.5,\"\",'2011 Survey responses'!EK68)","v":1},{"$f":"IF('2011 Survey responses'!EL68<0.5,\"\",'2011 Survey responses'!EL68)","v":2},{"$f":"IF('2011 Survey responses'!EM68<0.5,\"\",'2011 Survey responses'!EM68)","v":5},{"$f":"IF('2011 Survey responses'!EN68<0.5,\"\",'2011 Survey responses'!EN68)","v":5},{"$f":"IF('2011 Survey responses'!EO68<0.5,\"\",'2011 Survey responses'!EO68)","v":5},{"$f":"IF('2011 Survey responses'!EP68<0.5,\"\",'2011 Survey responses'!EP68)","v":4},{"$f":"IF(('2011 Survey responses'!EW68+'2011 Survey responses'!EX68)>=2,AVERAGE('2011 Survey responses'!EW68,'2011 Survey responses'!EY68),\"\")","v":3.5},{"$f":"IF('2011 Survey responses'!EX68<0.5,\"\",'2011 Survey responses'!EX68)","v":3},{"$f":"IF('2011 Survey responses'!EZ68<0.5,\"\",'2011 Survey responses'!EZ68)","v":5},{"$f":"IF('2011 Survey responses'!FB68<0.5,\"\",'2011 Survey responses'!FB68)","v":5},{"$f":"IF('2011 Survey responses'!FD68<0.5,\"\",'2011 Survey responses'!FD68)","v":3},{"$f":"IF('2011 Survey responses'!FC68<0.5,\"\",'2011 Survey responses'!FC68)","v":4},{"$f":"IF(('2011 Survey responses'!EM68+'2011 Survey responses'!EN68)>=2,AVERAGE('2011 Survey responses'!EM68,'2011 Survey responses'!EN68),\"\")","v":5},{"$f":"IF('2011 Survey responses'!ES68<0.5,\"\",'2011 Survey responses'!ES68)","v":4},{"$f":"IF(('2011 Survey responses'!ET68+'2011 Survey responses'!EU68)>=2,AVERAGE('2011 Survey responses'!ET68,'2011 Survey responses'!EU68),\"\")","v":4.5},{"$f":"IF('2011 Survey responses'!EV68<0.5,\"\",'2011 Survey responses'!EV68)","v":4},{"$f":"IF('2011 Survey responses'!FA68<0.5,\"\",'2011 Survey responses'!FA68)","v":4},{"$f":"IF('2011 Survey responses'!ER68<0.5,\"\",'2011 Survey responses'!ER68)","v":5},{"$f":"IF(('2011 Survey responses'!EO68+'2011 Survey responses'!EP68)>=2,AVERAGE('2011 Survey responses'!EO68,'2011 Survey responses'!EP68),\"\")","v":4.5},{"$f":"IF('2011 Survey responses'!EQ68<0.5,\"\",'2011 Survey responses'!EQ68)","v":3},{"$f":"IF('2011 Survey responses'!ET68<0.5,\"\",'2011 Survey responses'!ET68)","v":5},{"$f":"IF('2011 Survey responses'!EU68<0.5,\"\",'2011 Survey responses'!EU68)","v":4},{"$f":"IF('2011 Survey responses'!EW68<0.5,\"\",'2011 Survey responses'!EW68)","v":3},{"$f":"IF('2011 Survey responses'!EY68<0.5,\"\",'2011 Survey responses'!EY68)","v":4},{"$f":"IF('2011 Survey responses'!FU68<0.5,\"\",'2011 Survey responses'!FU68)","v":4},{"$f":"IF(('2011 Survey responses'!FL68+'2011 Survey responses'!FM68)>=2,AVERAGE('2011 Survey responses'!FL68,'2011 Survey responses'!FM68),\"\")","v":5},{"$f":"IF(('2011 Survey responses'!FO68+'2011 Survey responses'!FQ68)>=2,AVERAGE('2011 Survey responses'!FO68,'2011 Survey responses'!FQ68),\"\")","v":5},{"$f":"IF('2011 Survey responses'!FJ68<0.5,\"\",'2011 Survey responses'!FJ68)","v":5},{"$f":"IF('2011 Survey responses'!FT68<0.5,\"\",'2011 Survey responses'!FT68)","v":5},{"$f":"IF('2011 Survey responses'!FR68<0.5,\"\",'2011 Survey responses'!FR68)","v":5},{"$f":"IF('2011 Survey responses'!FK68<0.5,\"\",'2011 Survey responses'!FK68)","v":5},{"$f":"IF('2011 Survey responses'!FP68<0.5,\"\",'2011 Survey responses'!FP68)","v":5},{"$f":"IF('2011 Survey responses'!FN68<0.5,\"\",'2011 Survey responses'!FN68)","v":5},{"$f":"IF(('2011 Survey responses'!FE68+'2011 Survey responses'!FF68)>=2,AVERAGE('2011 Survey responses'!FE68,'2011 Survey responses'!FF68),\"\")","v":5},{"$f":"IF('2011 Survey responses'!FS68<0.5,\"\",'2011 Survey responses'!FS68)","v":5},{"$f":"IF('2011 Survey responses'!FV68<0.5,\"\",'2011 Survey responses'!FV68)","v":4},{"$f":"IF(('2011 Survey responses'!FG68+'2011 Survey responses'!FH68)>=2,AVERAGE('2011 Survey responses'!FG68,'2011 Survey responses'!FH68),\"\")","v":5},{"$f":"IF('2011 Survey responses'!FI68<0.5,\"\",'2011 Survey responses'!FI68)","v":5},{"$f":"IF('2011 Survey responses'!FE68<0.5,\"\",'2011 Survey responses'!FE68)","v":5},{"$f":"IF('2011 Survey responses'!FF68<0.5,\"\",'2011 Survey responses'!FF68)","v":5},{"$f":"IF('2011 Survey responses'!FG68<0.5,\"\",'2011 Survey responses'!FG68)","v":5},{"$f":"IF('2011 Survey responses'!FH68<0.5,\"\",'2011 Survey responses'!FH68)","v":5},{"$f":"IF('2011 Survey responses'!FL68<0.5,\"\",'2011 Survey responses'!FL68)","v":5},{"$f":"IF('2011 Survey responses'!FM68<0.5,\"\",'2011 Survey responses'!FM68)","v":5},{"$f":"IF('2011 Survey responses'!FO68<0.5,\"\",'2011 Survey responses'!FO68)","v":5},{"$f":"IF('2011 Survey responses'!FQ68<0.5,\"\",'2011 Survey responses'!FQ68)","v":5}]
["Greece",{"$f":"IF(SUM(F69)<1,\"\",AVERAGEIF('2011 Survey responses'!B69:CP69,\">1\"))","v":3.8431372549019609},{"$f":"IF(SUM(F69)<1,\"\",AVERAGEIF('2011 Survey responses'!B69:AO69,\">1\"))","v":3.3157894736842106},{"$f":"IF(SUM(F69)<1,\"\",AVERAGEIF('2011 Survey responses'!B69:BV69,\">1\"))","v":3.6904761904761907},{"$f":"IF(SUM(F69)<1,\"\",AVERAGEIF('2011 Survey responses'!V69:BV69,\">1\"))","v":3.6486486486486487},{"$f":"IF(SUM('2011 Survey responses'!B69:U69)<1,\"\",(AVERAGEIFS('2011 Survey responses'!B69:U69,'2011 Survey responses'!B69:U69,\">1\")))","v":4},{"$f":"IF(SUM('2011 Survey responses'!B69:H69)<1,\"\",(AVERAGEIFS('2011 Survey responses'!B69:H69,'2011 Survey responses'!B69:H69,\">1\")))","v":4.666666666666667},{"$f":"IF(SUM('2011 Survey responses'!I69:S69)<1,\"\",(AVERAGEIFS('2011 Survey responses'!I69:S69,'2011 Survey responses'!I69:S69,\">1\")))","v":""},{"$f":"IF(SUM('2011 Survey responses'!T69:U69)<2.1,\"\",(AVERAGEIFS('2011 Survey responses'!T69:U69,'2011 Survey responses'!T69:U69,\">1\")))","v":3},{"$f":"IF(SUM('2011 Survey responses'!B69:C69)<2.1,\"\",((SUMIF('2011 Survey responses'!B69:C69,\">1\")+SUMIF('2011 Survey responses'!F69,\">1\"))/(COUNTIF('2011 Survey responses'!B69:C69,\">1\")+COUNTIF('2011 Survey responses'!F69,\">1\"))))","v":4.5},{"$f":"IF(SUM('2011 Survey responses'!D69:E69)<2.1,\"\",(AVERAGEIFS('2011 Survey responses'!D69:E69,'2011 Survey responses'!D69:E69,\">1\")))","v":5},{"$f":"IF(('2011 Survey responses'!B69+'2011 Survey responses'!D69)<2.1,\"\",((SUMIF('2011 Survey responses'!B69,\">1\")+SUMIF('2011 Survey responses'!D69,\">1\")+SUMIF('2011 Survey responses'!F69,\">1\")+SUMIF('2011 Survey responses'!K69,\">1\"))/(COUNTIF('2011 Survey responses'!B69,\">1\")+COUNTIF('2011 Survey responses'!D69,\">1\")+COUNTIF('2011 Survey responses'!F69,\">1\")+COUNTIF('2011 Survey responses'!K69,\">1\"))))","v":4.666666666666667},{"$f":"IF(SUM('2011 Survey responses'!G69:H69)<2.1,\"\",(AVERAGEIFS('2011 Survey responses'!G69:H69,'2011 Survey responses'!G69:H69,\">1\")))","v":""},{"$f":"IF(SUM('2011 Survey responses'!F69:G69)<1.5,\"\",MAX('2011 Survey responses'!F69,'2011 Survey responses'!G69))","v":4},{"$f":"IF(SUM('2011 Survey responses'!G69:H69)<1,\"\",MAX('2011 Survey responses'!G69,'2011 Survey responses'!H69))","v":""},{"$f":"IF(SUM('2011 Survey responses'!I69:L69)<4.1,\"\",(AVERAGEIFS('2011 Survey responses'!I69:L69,'2011 Survey responses'!I69:L69,\">1\")))","v":""},{"$f":"IF(SUM('2011 Survey responses'!M69:S69)<4.1,\"\",(AVERAGEIFS('2011 Survey responses'!M69:S69,'2011 Survey responses'!M69:S69,\">1\")))","v":""},{"$f":"IF(SUM('2011 Survey responses'!T69:U69)<2.1,\"\",(AVERAGEIFS('2011 Survey responses'!T69:U69,'2011 Survey responses'!T69:U69,\">1\")))","v":3},{"$f":"IF(SUM('2011 Survey responses'!V69:AO69)<1,\"\",(AVERAGEIFS('2011 Survey responses'!V69:AO69,'2011 Survey responses'!V69:AO69,\">1\")))","v":3.0714285714285716},{"$f":"IF(SUM('2011 Survey responses'!V69:AA69)<1,\"\",(AVERAGEIFS('2011 Survey responses'!V69:AA69,'2011 Survey responses'!V69:AA69,\">1\")))","v":3.6},{"$f":"IF(SUM('2011 Survey responses'!AB69:AH69)<1,\"\",(AVERAGEIFS('2011 Survey responses'!AB69:AH69,'2011 Survey responses'!AB69:AH69,\">1\")))","v":2},{"$f":"IF(SUM('2011 Survey responses'!AI69:AO69)<1,\"\",(AVERAGEIFS('2011 Survey responses'!AI69:AO69,'2011 Survey responses'!AI69:AO69,\">1\")))","v":4.333333333333333},{"$f":"IF(('2011 Survey responses'!Y69+'2011 Survey responses'!AI69+'2011 Survey responses'!AK69)<3.1,\"\",((SUMIF('2011 Survey responses'!Y69,\">1\")+SUMIF('2011 Survey responses'!AI69,\">1\")+SUMIF('2011 Survey responses'!AK69,\">1\")+SUMIF('2011 Survey responses'!AM69,\">1\"))/(COUNTIF('2011 Survey responses'!Y69,\">1\")+COUNTIF('2011 Survey responses'!AI69,\">1\")+COUNTIF('2011 Survey responses'!AK69,\">1\")+COUNTIF('2011 Survey responses'!AM69,\">1\"))))","v":4.333333333333333},{"$f":"IF(('2011 Survey responses'!W69)<1.1,\"\",('2011 Survey responses'!W69))","v":4},{"$f":"IF(('2011 Survey responses'!Y69)<1.1,\"\",('2011 Survey responses'!Y69))","v":4},{"$f":"IF(('2011 Survey responses'!Z69)<1.1,\"\",('2011 Survey responses'!Z69))","v":3},{"$f":"IF(('2011 Survey responses'!V69+'2011 Survey responses'!X69+'2011 Survey responses'!AA69)<3.1,\"\",((SUMIF('2011 Survey responses'!V69,\">1\")+SUMIF('2011 Survey responses'!X69,\">1\")+SUMIF('2011 Survey responses'!AA69,\">1\"))/(COUNTIF('2011 Survey responses'!V69,\">1\")+COUNTIF('2011 Survey responses'!X69,\">1\")+COUNTIF('2011 Survey responses'!AA69,\">1\"))))","v":3.5},{"$f":"IF(('2011 Survey responses'!V69+'2011 Survey responses'!Y69+'2011 Survey responses'!AA69)<3.1,\"\",((SUMIF('2011 Survey responses'!V69,\">1\")+SUMIF('2011 Survey responses'!Y69,\">1\")+SUMIF('2011 Survey responses'!AA69,\">1\"))/(COUNTIF('2011 Survey responses'!V69,\">1\")+COUNTIF('2011 Survey responses'!Y69,\">1\")+COUNTIF('2011 Survey responses'!AA69,\">1\"))))","v":3.5},{"$f":"IF(SUM('2011 Survey responses'!AB69:AH69)<1,\"\",(AVERAGEIFS('2011 Survey responses'!AB69:AH69,'2011 Survey responses'!AB69:AH69,\">1\")))","v":2},{"$f":"IF(SUM('2011 Survey responses'!AI69:AO69)<7.1,\"\",(AVERAGEIFS('2011 Survey responses'!AI69:AO69,'2011 Survey responses'!AI69:AO69,\">1\")))","v":4.333333333333333},{"$f":"IF(('2011 Survey responses'!AH69)<1.1,\"\",('2011 Survey responses'!AH69))","v":""},{"$f":"IF(SUM('2011 Survey responses'!AP69:BV69)<1,\"\",(AVERAGEIFS('2011 Survey responses'!AP69:BV69,'2011 Survey responses'!AP69:BV69,\">1\")))","v":4},{"$f":"IF(SUM('2011 Survey responses'!AP69:AS69)<4.1,\"\",(AVERAGEIFS('2011 Survey responses'!AP69:AS69,'2011 Survey responses'!AP69:AS69,\">1\")))","v":4.5},{"$f":"IF(SUM('2011 Survey responses'!AT69:BF69)<1,\"\",(AVERAGEIFS('2011 Survey responses'!AT69:BF69,'2011 Survey responses'!AT69:BF69,\">1\")))","v":3.6},{"$f":"IF(SUM('2011 Survey responses'!BG69:BO69)<1,\"\",(AVERAGEIFS('2011 Survey responses'!BG69:BO69,'2011 Survey responses'!BG69:BO69,\">1\")))","v":4.625},{"$f":"IF(SUM('2011 Survey responses'!BP69:BS69)<1,\"\",(AVERAGEIFS('2011 Survey responses'!BP69:BS69,'2011 Survey responses'!BP69:BS69,\">1\")))","v":3.3333333333333335},{"$f":"IF(SUM('2011 Survey responses'!BT69:BV69)<3.1,\"\",(AVERAGEIFS('2011 Survey responses'!BT69:BV69,'2011 Survey responses'!BT69:BV69,\">1\")))","v":""},{"$f":"IF(('2011 Survey responses'!AQ69+'2011 Survey responses'!AR69+'2011 Survey responses'!BG69)<3.1,\"\",((SUMIF('2011 Survey responses'!AQ69,\">1\")+SUMIF('2011 Survey responses'!AR69,\">1\")+SUMIF('2011 Survey responses'!BG69,\">1\"))/(COUNTIF('2011 Survey responses'!AQ69,\">1\")+COUNTIF('2011 Survey responses'!AR69,\">1\")+COUNTIF('2011 Survey responses'!BG69,\">1\"))))","v":5},{"$f":"IF(SUM('2011 Survey responses'!AP69:AS69)<4.1,\"\",(AVERAGEIFS('2011 Survey responses'!AP69:AS69,'2011 Survey responses'!AP69:AS69,\">1\")))","v":4.5},{"$f":"IF(('2011 Survey responses'!AU69+'2011 Survey responses'!AX69+'2011 Survey responses'!BA69+'2011 Survey responses'!BC69+'2011 Survey responses'!BD69)<5.1,\"\",(SUMIF('2011 Survey responses'!AU69,\">1\")+SUMIF('2011 Survey responses'!AX69,\">1\")+SUMIF('2011 Survey responses'!BA69,\">1\")+SUMIF('2011 Survey responses'!BC69,\">1\")+SUMIF('2011 Survey responses'!BD69,\">1\"))/(COUNTIF('2011 Survey responses'!AU69,\">1\")+COUNTIF('2011 Survey responses'!AX69,\">1\")+COUNTIF('2011 Survey responses'!BA69,\">1\")+COUNTIF('2011 Survey responses'!BC69,\">1\")+COUNTIF('2011 Survey responses'!BD69,\">1\")))","v":3.5},{"$f":"IF(('2011 Survey responses'!AT69)<1.1,\"\",('2011 Survey responses'!AT69))","v":4},{"$f":"IF(SUM('2011 Survey responses'!AV69:AW69)<2.1,\"\",(AVERAGEIFS('2011 Survey responses'!AV69:AW69,'2011 Survey responses'!AV69:AW69,\">1\")))","v":4},{"$f":"IF(('2011 Survey responses'!AW69+'2011 Survey responses'!AY69)<2.1,\"\",(SUMIF('2011 Survey responses'!AW69,\">1\")+SUMIF('2011 Survey responses'!AY69,\">1\"))/(COUNTIF('2011 Survey responses'!AW69,\">1\")+COUNTIF('2011 Survey responses'!AY69,\">1\")))","v":4},{"$f":"IF(('2011 Survey responses'!AZ69)<1.1,\"\",('2011 Survey responses'!AZ69))","v":4},4,4,3,null,{"$f":"IF(('2011 Survey responses'!BE69)<1.1,\"\",('2011 Survey responses'!BE69))","v":2},{"$f":"IF(('2011 Survey responses'!AY69+'2011 Survey responses'!BB69+'2011 Survey responses'!BF69)<3.1,\"\",(SUMIF('2011 Survey responses'!AY69,\">1\")+SUMIF('2011 Survey responses'!BB69,\">1\")+SUMIF('2011 Survey responses'!BF69,\">1\"))/(COUNTIF('2011 Survey responses'!AY69,\">1\")+COUNTIF('2011 Survey responses'!BB69,\">1\")+COUNTIF('2011 Survey responses'!BF69,\">1\")))","v":4},3.979166666666667,{"$f":"IF(SUM('2011 Survey responses'!BT69:BV69)<3.1,\"\",(AVERAGEIFS('2011 Survey responses'!BT69:BV69,'2011 Survey responses'!BT69:BV69,\">1\")))","v":""},{"$f":"IF(SUM('2011 Survey responses'!BW69:CP69)<1,\"\",(AVERAGEIFS('2011 Survey responses'!BW69:CP69,'2011 Survey responses'!BW69:CP69,\">1\")))","v":4.5555555555555554},{"$f":"IF(SUM('2011 Survey responses'!BW69:CF69)<1,\"\",(AVERAGEIFS('2011 Survey responses'!BW69:CF69,'2011 Survey responses'!BW69:CF69,\">1\")))","v":4},{"$f":"IF(SUM('2011 Survey responses'!CG69:CP69)<1,\"\",(AVERAGEIFS('2011 Survey responses'!CG69:CP69,'2011 Survey responses'!CG69:CP69,\">1\")))","v":5},{"$f":"IF(SUM('2011 Survey responses'!BX69:CF69)<1,\"\",(AVERAGEIFS('2011 Survey responses'!BX69:CF69,'2011 Survey responses'!BX69:CF69,\">1\")))","v":4},{"$f":"IF(SUM('2011 Survey responses'!CH69:CP69)<1,\"\",(AVERAGEIFS('2011 Survey responses'!CH69:CP69,'2011 Survey responses'!CH69:CP69,\">1\")))","v":5},{"$f":"IF(SUM('2011 Survey responses'!BW69:CP69)<1,\"\",(AVERAGEIFS('2011 Survey responses'!BW69:CP69,'2011 Survey responses'!BW69:CP69,\">1\")))","v":4.5555555555555554},{"$f":"IF(('2011 Survey responses'!BW69+'2011 Survey responses'!CG69)<2.1,\"\",(SUMIF('2011 Survey responses'!BW69,\">1\")+SUMIF('2011 Survey responses'!CG69,\">1\"))/(COUNTIF('2011 Survey responses'!BW69,\">1\")+COUNTIF('2011 Survey responses'!CG69,\">1\")))","v":5},{"$f":"IF(('2011 Survey responses'!BX69+'2011 Survey responses'!CH69)<2.1,\"\",(SUMIF('2011 Survey responses'!BX69,\">1\")+SUMIF('2011 Survey responses'!CH69,\">1\"))/(COUNTIF('2011 Survey responses'!BX69,\">1\")+COUNTIF('2011 Survey responses'!CH69,\">1\")))","v":4},{"$f":"IF(('2011 Survey responses'!BY69+'2011 Survey responses'!CI69)<2.1,\"\",(SUMIF('2011 Survey responses'!BY69,\">1\")+SUMIF('2011 Survey responses'!CI69,\">1\"))/(COUNTIF('2011 Survey responses'!BY69,\">1\")+COUNTIF('2011 Survey responses'!CI69,\">1\")))","v":""},{"$f":"IF('2011 Survey responses'!CQ69<0.5,\"\",'2011 Survey responses'!CQ69)","v":""},{"$f":"IF('2011 Survey responses'!CR69<0.5,\"\",'2011 Survey responses'!CR69)","v":""},{"$f":"IF('2011 Survey responses'!CS69<0.5,\"\",'2011 Survey responses'!CS69)","v":""},{"$f":"IF('2011 Survey responses'!CT69<0.5,\"\",'2011 Survey responses'!CT69)","v":""},{"$f":"IF('2011 Survey responses'!CU69<0.5,\"\",'2011 Survey responses'!CU69)","v":4},{"$f":"IF('2011 Survey responses'!CV69<0.5,\"\",'2011 Survey responses'!CV69)","v":""},{"$f":"IF(SUM('2011 Survey responses'!CW69:DL69)<1,\"\",(AVERAGE('2011 Survey responses'!CW69:DL69)))","v":""},{"$f":"IF(SUM('2011 Survey responses'!CW69:CZ69)<1,\"\",(AVERAGE('2011 Survey responses'!CW69:CZ69)))","v":""},{"$f":"IF(SUM('2011 Survey responses'!DA69:DD69)<1,\"\",(AVERAGE('2011 Survey responses'!DA69:DD69)))","v":""},{"$f":"IF(SUM('2011 Survey responses'!DE69:DH69)<1,\"\",(AVERAGE('2011 Survey responses'!DE69:DH69)))","v":""},{"$f":"IF(SUM('2011 Survey responses'!DI69:DL69)<1,\"\",(AVERAGE('2011 Survey responses'!DI69:DL69)))","v":""},{"$f":"IF(('2011 Survey responses'!CW69+'2011 Survey responses'!DA69+'2011 Survey responses'!DE69+'2011 Survey responses'!DI69)<1,\"\",AVERAGE('2011 Survey responses'!CW69,'2011 Survey responses'!DA69,'2011 Survey responses'!DE69,'2011 Survey responses'!DI69))","v":""},{"$f":"IF(('2011 Survey responses'!CX69+'2011 Survey responses'!DB69+'2011 Survey responses'!DF69+'2011 Survey responses'!DJ69)<1,\"\",AVERAGE('2011 Survey responses'!CX69,'2011 Survey responses'!DB69,'2011 Survey responses'!DF69,'2011 Survey responses'!DJ69))","v":""},{"$f":"IF(('2011 Survey responses'!CY69+'2011 Survey responses'!DC69+'2011 Survey responses'!DG69+'2011 Survey responses'!DK69)<1,\"\",AVERAGE('2011 Survey responses'!CY69,'2011 Survey responses'!DC69,'2011 Survey responses'!DG69,'2011 Survey responses'!DK69))","v":""},{"$f":"IF(('2011 Survey responses'!CZ69+'2011 Survey responses'!DD69+'2011 Survey responses'!DH69+'2011 Survey responses'!DL69)<1,\"\",AVERAGE('2011 Survey responses'!CZ69,'2011 Survey responses'!DD69,'2011 Survey responses'!DH69,'2011 Survey responses'!DL69))","v":""},{"$f":"IF('2011 Survey responses'!CW69<0.5,\"\",'2011 Survey responses'!CW69)","v":""},{"$f":"IF('2011 Survey responses'!CX69<0.5,\"\",'2011 Survey responses'!CX69)","v":""},{"$f":"IF('2011 Survey responses'!CY69<0.5,\"\",'2011 Survey responses'!CY69)","v":""},{"$f":"IF('2011 Survey responses'!CZ69<0.5,\"\",'2011 Survey responses'!CZ69)","v":""},{"$f":"IF('2011 Survey responses'!DA69<0.5,\"\",'2011 Survey responses'!DA69)","v":""},{"$f":"IF('2011 Survey responses'!DB69<0.5,\"\",'2011 Survey responses'!DB69)","v":""},{"$f":"IF('2011 Survey responses'!DC69<0.5,\"\",'2011 Survey responses'!DC69)","v":""},{"$f":"IF('2011 Survey responses'!DD69<0.5,\"\",'2011 Survey responses'!DD69)","v":""},{"$f":"IF('2011 Survey responses'!DE69<0.5,\"\",'2011 Survey responses'!DE69)","v":""},{"$f":"IF('2011 Survey responses'!DF69<0.5,\"\",'2011 Survey responses'!DF69)","v":""},{"$f":"IF('2011 Survey responses'!DG69<0.5,\"\",'2011 Survey responses'!DG69)","v":""},{"$f":"IF('2011 Survey responses'!DH69<0.5,\"\",'2011 Survey responses'!DH69)","v":""},{"$f":"IF('2011 Survey responses'!DI69<0.5,\"\",'2011 Survey responses'!DI69)","v":""},{"$f":"IF('2011 Survey responses'!DJ69<0.5,\"\",'2011 Survey responses'!DJ69)","v":""},{"$f":"IF('2011 Survey responses'!DK69<0.5,\"\",'2011 Survey responses'!DK69)","v":""},{"$f":"IF('2011 Survey responses'!DL69<0.5,\"\",'2011 Survey responses'!DL69)","v":""},{"$f":"IF('2011 Survey responses'!DU69=4,4,IF('2011 Survey responses'!DU69=5,4,\"\"))","v":""},{"$f":"IF('2011 Survey responses'!DV69=4,3,IF('2011 Survey responses'!DV69=5,3,\"\"))","v":""},"",{"$f":"IF(CQ69=2,CQ69,IF(CO69=4,CO69,IF(CP69=3,CP69,IF('2011 Survey responses'!GT69=1,1,\"\"))))","v":1},{"$f":"IF('2011 Survey responses'!DO69<0.5,\"\",'2011 Survey responses'!DO69)","v":4},{"$f":"IF('2011 Survey responses'!DP69<0.5,\"\",'2011 Survey responses'!DP69)","v":4},{"$f":"IF('2011 Survey responses'!DQ69<0.5,\"\",'2011 Survey responses'!DQ69)","v":3},{"$f":"IF('2011 Survey responses'!DR69<0.5,\"\",'2011 Survey responses'!DR69)","v":3},{"$f":"IF('2011 Survey responses'!DS69<0.5,\"\",'2011 Survey responses'!DS69)","v":4},{"$f":"IF('2011 Survey responses'!DT69<0.5,\"\",'2011 Survey responses'!DT69)","v":3},{"$f":"IF('2011 Survey responses'!DU69<0.5,\"\",'2011 Survey responses'!DU69)","v":""},{"$f":"IF('2011 Survey responses'!DV69<0.5,\"\",'2011 Survey responses'!DV69)","v":""},{"$f":"IF('2011 Survey responses'!DW69<0.5,\"\",'2011 Survey responses'!DW69)","v":""},{"$f":"IF('2011 Survey responses'!DX69<0.5,\"\",'2011 Survey responses'!DX69)","v":""},{"$f":"IF('2011 Survey responses'!DY69<0.5,\"\",'2011 Survey responses'!DY69)","v":""},{"$f":"IF('2011 Survey responses'!DZ69<0.5,\"\",'2011 Survey responses'!DZ69)","v":""},{"$f":"IF('2011 Survey responses'!EA69<0.5,\"\",'2011 Survey responses'!EA69)","v":2},{"$f":"IF('2011 Survey responses'!EB69<0.5,\"\",'2011 Survey responses'!EB69)","v":2},{"$f":"IF('2011 Survey responses'!EC69<0.5,\"\",'2011 Survey responses'!EC69)","v":""},{"$f":"IF('2011 Survey responses'!ED69<0.5,\"\",'2011 Survey responses'!ED69)","v":""},{"$f":"IF('2011 Survey responses'!EE69<0.5,\"\",'2011 Survey responses'!EE69)","v":""},{"$f":"IF('2011 Survey responses'!EF69<0.5,\"\",'2011 Survey responses'!EF69)","v":""},{"$f":"IF('2011 Survey responses'!EG69<0.5,\"\",'2011 Survey responses'!EG69)","v":4},{"$f":"IF('2011 Survey responses'!EH69<0.5,\"\",'2011 Survey responses'!EH69)","v":4},{"$f":"IF('2011 Survey responses'!EI69<0.5,\"\",'2011 Survey responses'!EI69)","v":4},{"$f":"IF('2011 Survey responses'!EJ69<0.5,\"\",'2011 Survey responses'!EJ69)","v":4},{"$f":"IF('2011 Survey responses'!EK69<0.5,\"\",'2011 Survey responses'!EK69)","v":4},{"$f":"IF('2011 Survey responses'!EL69<0.5,\"\",'2011 Survey responses'!EL69)","v":4},{"$f":"IF('2011 Survey responses'!EM69<0.5,\"\",'2011 Survey responses'!EM69)","v":4},{"$f":"IF('2011 Survey responses'!EN69<0.5,\"\",'2011 Survey responses'!EN69)","v":4},{"$f":"IF('2011 Survey responses'!EO69<0.5,\"\",'2011 Survey responses'!EO69)","v":4},{"$f":"IF('2011 Survey responses'!EP69<0.5,\"\",'2011 Survey responses'!EP69)","v":4},{"$f":"IF(('2011 Survey responses'!EW69+'2011 Survey responses'!EX69)>=2,AVERAGE('2011 Survey responses'!EW69,'2011 Survey responses'!EY69),\"\")","v":4},{"$f":"IF('2011 Survey responses'!EX69<0.5,\"\",'2011 Survey responses'!EX69)","v":4},{"$f":"IF('2011 Survey responses'!EZ69<0.5,\"\",'2011 Survey responses'!EZ69)","v":4},{"$f":"IF('2011 Survey responses'!FB69<0.5,\"\",'2011 Survey responses'!FB69)","v":3},{"$f":"IF('2011 Survey responses'!FD69<0.5,\"\",'2011 Survey responses'!FD69)","v":4},{"$f":"IF('2011 Survey responses'!FC69<0.5,\"\",'2011 Survey responses'!FC69)","v":3},{"$f":"IF(('2011 Survey responses'!EM69+'2011 Survey responses'!EN69)>=2,AVERAGE('2011 Survey responses'!EM69,'2011 Survey responses'!EN69),\"\")","v":4},{"$f":"IF('2011 Survey responses'!ES69<0.5,\"\",'2011 Survey responses'!ES69)","v":5},{"$f":"IF(('2011 Survey responses'!ET69+'2011 Survey responses'!EU69)>=2,AVERAGE('2011 Survey responses'!ET69,'2011 Survey responses'!EU69),\"\")","v":5},{"$f":"IF('2011 Survey responses'!EV69<0.5,\"\",'2011 Survey responses'!EV69)","v":4},{"$f":"IF('2011 Survey responses'!FA69<0.5,\"\",'2011 Survey responses'!FA69)","v":4},{"$f":"IF('2011 Survey responses'!ER69<0.5,\"\",'2011 Survey responses'!ER69)","v":4},{"$f":"IF(('2011 Survey responses'!EO69+'2011 Survey responses'!EP69)>=2,AVERAGE('2011 Survey responses'!EO69,'2011 Survey responses'!EP69),\"\")","v":4},{"$f":"IF('2011 Survey responses'!EQ69<0.5,\"\",'2011 Survey responses'!EQ69)","v":""},{"$f":"IF('2011 Survey responses'!ET69<0.5,\"\",'2011 Survey responses'!ET69)","v":5},{"$f":"IF('2011 Survey responses'!EU69<0.5,\"\",'2011 Survey responses'!EU69)","v":5},{"$f":"IF('2011 Survey responses'!EW69<0.5,\"\",'2011 Survey responses'!EW69)","v":4},{"$f":"IF('2011 Survey responses'!EY69<0.5,\"\",'2011 Survey responses'!EY69)","v":4},{"$f":"IF('2011 Survey responses'!FU69<0.5,\"\",'2011 Survey responses'!FU69)","v":5},{"$f":"IF(('2011 Survey responses'!FL69+'2011 Survey responses'!FM69)>=2,AVERAGE('2011 Survey responses'!FL69,'2011 Survey responses'!FM69),\"\")","v":5},{"$f":"IF(('2011 Survey responses'!FO69+'2011 Survey responses'!FQ69)>=2,AVERAGE('2011 Survey responses'!FO69,'2011 Survey responses'!FQ69),\"\")","v":4},{"$f":"IF('2011 Survey responses'!FJ69<0.5,\"\",'2011 Survey responses'!FJ69)","v":5},{"$f":"IF('2011 Survey responses'!FT69<0.5,\"\",'2011 Survey responses'!FT69)","v":3},{"$f":"IF('2011 Survey responses'!FR69<0.5,\"\",'2011 Survey responses'!FR69)","v":5},{"$f":"IF('2011 Survey responses'!FK69<0.5,\"\",'2011 Survey responses'!FK69)","v":5},{"$f":"IF('2011 Survey responses'!FP69<0.5,\"\",'2011 Survey responses'!FP69)","v":""},{"$f":"IF('2011 Survey responses'!FN69<0.5,\"\",'2011 Survey responses'!FN69)","v":4},{"$f":"IF(('2011 Survey responses'!FE69+'2011 Survey responses'!FF69)>=2,AVERAGE('2011 Survey responses'!FE69,'2011 Survey responses'!FF69),\"\")","v":5},{"$f":"IF('2011 Survey responses'!FS69<0.5,\"\",'2011 Survey responses'!FS69)","v":4},{"$f":"IF('2011 Survey responses'!FV69<0.5,\"\",'2011 Survey responses'!FV69)","v":5},{"$f":"IF(('2011 Survey responses'!FG69+'2011 Survey responses'!FH69)>=2,AVERAGE('2011 Survey responses'!FG69,'2011 Survey responses'!FH69),\"\")","v":4},{"$f":"IF('2011 Survey responses'!FI69<0.5,\"\",'2011 Survey responses'!FI69)","v":""},{"$f":"IF('2011 Survey responses'!FE69<0.5,\"\",'2011 Survey responses'!FE69)","v":5},{"$f":"IF('2011 Survey responses'!FF69<0.5,\"\",'2011 Survey responses'!FF69)","v":5},{"$f":"IF('2011 Survey responses'!FG69<0.5,\"\",'2011 Survey responses'!FG69)","v":4},{"$f":"IF('2011 Survey responses'!FH69<0.5,\"\",'2011 Survey responses'!FH69)","v":4},{"$f":"IF('2011 Survey responses'!FL69<0.5,\"\",'2011 Survey responses'!FL69)","v":5},{"$f":"IF('2011 Survey responses'!FM69<0.5,\"\",'2011 Survey responses'!FM69)","v":5},{"$f":"IF('2011 Survey responses'!FO69<0.5,\"\",'2011 Survey responses'!FO69)","v":4},{"$f":"IF('2011 Survey responses'!FQ69<0.5,\"\",'2011 Survey responses'!FQ69)","v":""}]
["Grenada",{"$f":"IF(SUM(F70)<1,\"\",AVERAGEIF('2011 Survey responses'!B70:CP70,\">1\"))","v":2.4},{"$f":"IF(SUM(F70)<1,\"\",AVERAGEIF('2011 Survey responses'!B70:AO70,\">1\"))","v":2.4545454545454546},{"$f":"IF(SUM(F70)<1,\"\",AVERAGEIF('2011 Survey responses'!B70:BV70,\">1\"))","v":2.4262295081967213},{"$f":"IF(SUM(F70)<1,\"\",AVERAGEIF('2011 Survey responses'!V70:BV70,\">1\"))","v":2.4565217391304346},{"$f":"IF(SUM('2011 Survey responses'!B70:U70)<1,\"\",(AVERAGEIFS('2011 Survey responses'!B70:U70,'2011 Survey responses'!B70:U70,\">1\")))","v":2.3333333333333335},{"$f":"IF(SUM('2011 Survey responses'!B70:H70)<1,\"\",(AVERAGEIFS('2011 Survey responses'!B70:H70,'2011 Survey responses'!B70:H70,\">1\")))","v":3.3333333333333335},{"$f":"IF(SUM('2011 Survey responses'!I70:S70)<1,\"\",(AVERAGEIFS('2011 Survey responses'!I70:S70,'2011 Survey responses'!I70:S70,\">1\")))","v":2},{"$f":"IF(SUM('2011 Survey responses'!T70:U70)<2.1,\"\",(AVERAGEIFS('2011 Survey responses'!T70:U70,'2011 Survey responses'!T70:U70,\">1\")))","v":3},{"$f":"IF(SUM('2011 Survey responses'!B70:C70)<2.1,\"\",((SUMIF('2011 Survey responses'!B70:C70,\">1\")+SUMIF('2011 Survey responses'!F70,\">1\"))/(COUNTIF('2011 Survey responses'!B70:C70,\">1\")+COUNTIF('2011 Survey responses'!F70,\">1\"))))","v":3.5},{"$f":"IF(SUM('2011 Survey responses'!D70:E70)<2.1,\"\",(AVERAGEIFS('2011 Survey responses'!D70:E70,'2011 Survey responses'!D70:E70,\">1\")))","v":3},{"$f":"IF(('2011 Survey responses'!B70+'2011 Survey responses'!D70)<2.1,\"\",((SUMIF('2011 Survey responses'!B70,\">1\")+SUMIF('2011 Survey responses'!D70,\">1\")+SUMIF('2011 Survey responses'!F70,\">1\")+SUMIF('2011 Survey responses'!K70,\">1\"))/(COUNTIF('2011 Survey responses'!B70,\">1\")+COUNTIF('2011 Survey responses'!D70,\">1\")+COUNTIF('2011 Survey responses'!F70,\">1\")+COUNTIF('2011 Survey responses'!K70,\">1\"))))","v":3},{"$f":"IF(SUM('2011 Survey responses'!G70:H70)<2.1,\"\",(AVERAGEIFS('2011 Survey responses'!G70:H70,'2011 Survey responses'!G70:H70,\">1\")))","v":""},{"$f":"IF(SUM('2011 Survey responses'!F70:G70)<1.5,\"\",MAX('2011 Survey responses'!F70,'2011 Survey responses'!G70))","v":3},{"$f":"IF(SUM('2011 Survey responses'!G70:H70)<1,\"\",MAX('2011 Survey responses'!G70,'2011 Survey responses'!H70))","v":1},{"$f":"IF(SUM('2011 Survey responses'!I70:L70)<4.1,\"\",(AVERAGEIFS('2011 Survey responses'!I70:L70,'2011 Survey responses'!I70:L70,\">1\")))","v":2},{"$f":"IF(SUM('2011 Survey responses'!M70:S70)<4.1,\"\",(AVERAGEIFS('2011 Survey responses'!M70:S70,'2011 Survey responses'!M70:S70,\">1\")))","v":2},{"$f":"IF(SUM('2011 Survey responses'!T70:U70)<2.1,\"\",(AVERAGEIFS('2011 Survey responses'!T70:U70,'2011 Survey responses'!T70:U70,\">1\")))","v":3},{"$f":"IF(SUM('2011 Survey responses'!V70:AO70)<1,\"\",(AVERAGEIFS('2011 Survey responses'!V70:AO70,'2011 Survey responses'!V70:AO70,\">1\")))","v":2.5555555555555554},{"$f":"IF(SUM('2011 Survey responses'!V70:AA70)<1,\"\",(AVERAGEIFS('2011 Survey responses'!V70:AA70,'2011 Survey responses'!V70:AA70,\">1\")))","v":2},{"$f":"IF(SUM('2011 Survey responses'!AB70:AH70)<1,\"\",(AVERAGEIFS('2011 Survey responses'!AB70:AH70,'2011 Survey responses'!AB70:AH70,\">1\")))","v":3.4285714285714284},{"$f":"IF(SUM('2011 Survey responses'!AI70:AO70)<1,\"\",(AVERAGEIFS('2011 Survey responses'!AI70:AO70,'2011 Survey responses'!AI70:AO70,\">1\")))","v":2},{"$f":"IF(('2011 Survey responses'!Y70+'2011 Survey responses'!AI70+'2011 Survey responses'!AK70)<3.1,\"\",((SUMIF('2011 Survey responses'!Y70,\">1\")+SUMIF('2011 Survey responses'!AI70,\">1\")+SUMIF('2011 Survey responses'!AK70,\">1\")+SUMIF('2011 Survey responses'!AM70,\">1\"))/(COUNTIF('2011 Survey responses'!Y70,\">1\")+COUNTIF('2011 Survey responses'!AI70,\">1\")+COUNTIF('2011 Survey responses'!AK70,\">1\")+COUNTIF('2011 Survey responses'!AM70,\">1\"))))","v":2},{"$f":"IF(('2011 Survey responses'!W70)<1.1,\"\",('2011 Survey responses'!W70))","v":2},{"$f":"IF(('2011 Survey responses'!Y70)<1.1,\"\",('2011 Survey responses'!Y70))","v":2},{"$f":"IF(('2011 Survey responses'!Z70)<1.1,\"\",('2011 Survey responses'!Z70))","v":""},{"$f":"IF(('2011 Survey responses'!V70+'2011 Survey responses'!X70+'2011 Survey responses'!AA70)<3.1,\"\",((SUMIF('2011 Survey responses'!V70,\">1\")+SUMIF('2011 Survey responses'!X70,\">1\")+SUMIF('2011 Survey responses'!AA70,\">1\"))/(COUNTIF('2011 Survey responses'!V70,\">1\")+COUNTIF('2011 Survey responses'!X70,\">1\")+COUNTIF('2011 Survey responses'!AA70,\">1\"))))","v":2},{"$f":"IF(('2011 Survey responses'!V70+'2011 Survey responses'!Y70+'2011 Survey responses'!AA70)<3.1,\"\",((SUMIF('2011 Survey responses'!V70,\">1\")+SUMIF('2011 Survey responses'!Y70,\">1\")+SUMIF('2011 Survey responses'!AA70,\">1\"))/(COUNTIF('2011 Survey responses'!V70,\">1\")+COUNTIF('2011 Survey responses'!Y70,\">1\")+COUNTIF('2011 Survey responses'!AA70,\">1\"))))","v":2},{"$f":"IF(SUM('2011 Survey responses'!AB70:AH70)<1,\"\",(AVERAGEIFS('2011 Survey responses'!AB70:AH70,'2011 Survey responses'!AB70:AH70,\">1\")))","v":3.4285714285714284},{"$f":"IF(SUM('2011 Survey responses'!AI70:AO70)<7.1,\"\",(AVERAGEIFS('2011 Survey responses'!AI70:AO70,'2011 Survey responses'!AI70:AO70,\">1\")))","v":2},{"$f":"IF(('2011 Survey responses'!AH70)<1.1,\"\",('2011 Survey responses'!AH70))","v":3},{"$f":"IF(SUM('2011 Survey responses'!AP70:BV70)<1,\"\",(AVERAGEIFS('2011 Survey responses'!AP70:BV70,'2011 Survey responses'!AP70:BV70,\">1\")))","v":2.3928571428571428},{"$f":"IF(SUM('2011 Survey responses'!AP70:AS70)<4.1,\"\",(AVERAGEIFS('2011 Survey responses'!AP70:AS70,'2011 Survey responses'!AP70:AS70,\">1\")))","v":2},{"$f":"IF(SUM('2011 Survey responses'!AT70:BF70)<1,\"\",(AVERAGEIFS('2011 Survey responses'!AT70:BF70,'2011 Survey responses'!AT70:BF70,\">1\")))","v":2.1},{"$f":"IF(SUM('2011 Survey responses'!BG70:BO70)<1,\"\",(AVERAGEIFS('2011 Survey responses'!BG70:BO70,'2011 Survey responses'!BG70:BO70,\">1\")))","v":2.8888888888888888},{"$f":"IF(SUM('2011 Survey responses'!BP70:BS70)<1,\"\",(AVERAGEIFS('2011 Survey responses'!BP70:BS70,'2011 Survey responses'!BP70:BS70,\">1\")))","v":2.25},{"$f":"IF(SUM('2011 Survey responses'!BT70:BV70)<3.1,\"\",(AVERAGEIFS('2011 Survey responses'!BT70:BV70,'2011 Survey responses'!BT70:BV70,\">1\")))","v":3},{"$f":"IF(('2011 Survey responses'!AQ70+'2011 Survey responses'!AR70+'2011 Survey responses'!BG70)<3.1,\"\",((SUMIF('2011 Survey responses'!AQ70,\">1\")+SUMIF('2011 Survey responses'!AR70,\">1\")+SUMIF('2011 Survey responses'!BG70,\">1\"))/(COUNTIF('2011 Survey responses'!AQ70,\">1\")+COUNTIF('2011 Survey responses'!AR70,\">1\")+COUNTIF('2011 Survey responses'!BG70,\">1\"))))","v":2.3333333333333335},{"$f":"IF(SUM('2011 Survey responses'!AP70:AS70)<4.1,\"\",(AVERAGEIFS('2011 Survey responses'!AP70:AS70,'2011 Survey responses'!AP70:AS70,\">1\")))","v":2},{"$f":"IF(('2011 Survey responses'!AU70+'2011 Survey responses'!AX70+'2011 Survey responses'!BA70+'2011 Survey responses'!BC70+'2011 Survey responses'!BD70)<5.1,\"\",(SUMIF('2011 Survey responses'!AU70,\">1\")+SUMIF('2011 Survey responses'!AX70,\">1\")+SUMIF('2011 Survey responses'!BA70,\">1\")+SUMIF('2011 Survey responses'!BC70,\">1\")+SUMIF('2011 Survey responses'!BD70,\">1\"))/(COUNTIF('2011 Survey responses'!AU70,\">1\")+COUNTIF('2011 Survey responses'!AX70,\">1\")+COUNTIF('2011 Survey responses'!BA70,\">1\")+COUNTIF('2011 Survey responses'!BC70,\">1\")+COUNTIF('2011 Survey responses'!BD70,\">1\")))","v":2.25},{"$f":"IF(('2011 Survey responses'!AT70)<1.1,\"\",('2011 Survey responses'!AT70))","v":2},{"$f":"IF(SUM('2011 Survey responses'!AV70:AW70)<2.1,\"\",(AVERAGEIFS('2011 Survey responses'!AV70:AW70,'2011 Survey responses'!AV70:AW70,\">1\")))","v":2},{"$f":"IF(('2011 Survey responses'!AW70+'2011 Survey responses'!AY70)<2.1,\"\",(SUMIF('2011 Survey responses'!AW70,\">1\")+SUMIF('2011 Survey responses'!AY70,\">1\"))/(COUNTIF('2011 Survey responses'!AW70,\">1\")+COUNTIF('2011 Survey responses'!AY70,\">1\")))","v":2},{"$f":"IF(('2011 Survey responses'!AZ70)<1.1,\"\",('2011 Survey responses'!AZ70))","v":2},2,1,2,1,{"$f":"IF(('2011 Survey responses'!BE70)<1.1,\"\",('2011 Survey responses'!BE70))","v":""},{"$f":"IF(('2011 Survey responses'!AY70+'2011 Survey responses'!BB70+'2011 Survey responses'!BF70)<3.1,\"\",(SUMIF('2011 Survey responses'!AY70,\">1\")+SUMIF('2011 Survey responses'!BB70,\">1\")+SUMIF('2011 Survey responses'!BF70,\">1\"))/(COUNTIF('2011 Survey responses'!AY70,\">1\")+COUNTIF('2011 Survey responses'!BB70,\">1\")+COUNTIF('2011 Survey responses'!BF70,\">1\")))","v":2},2.5694444444444446,{"$f":"IF(SUM('2011 Survey responses'!BT70:BV70)<3.1,\"\",(AVERAGEIFS('2011 Survey responses'!BT70:BV70,'2011 Survey responses'!BT70:BV70,\">1\")))","v":3},{"$f":"IF(SUM('2011 Survey responses'!BW70:CP70)<1,\"\",(AVERAGEIFS('2011 Survey responses'!BW70:CP70,'2011 Survey responses'!BW70:CP70,\">1\")))","v":2.2857142857142856},{"$f":"IF(SUM('2011 Survey responses'!BW70:CF70)<1,\"\",(AVERAGEIFS('2011 Survey responses'!BW70:CF70,'2011 Survey responses'!BW70:CF70,\">1\")))","v":2.5},{"$f":"IF(SUM('2011 Survey responses'!CG70:CP70)<1,\"\",(AVERAGEIFS('2011 Survey responses'!CG70:CP70,'2011 Survey responses'!CG70:CP70,\">1\")))","v":2},{"$f":"IF(SUM('2011 Survey responses'!BX70:CF70)<1,\"\",(AVERAGEIFS('2011 Survey responses'!BX70:CF70,'2011 Survey responses'!BX70:CF70,\">1\")))","v":2.5},{"$f":"IF(SUM('2011 Survey responses'!CH70:CP70)<1,\"\",(AVERAGEIFS('2011 Survey responses'!CH70:CP70,'2011 Survey responses'!CH70:CP70,\">1\")))","v":2},{"$f":"IF(SUM('2011 Survey responses'!BW70:CP70)<1,\"\",(AVERAGEIFS('2011 Survey responses'!BW70:CP70,'2011 Survey responses'!BW70:CP70,\">1\")))","v":2.2857142857142856},{"$f":"IF(('2011 Survey responses'!BW70+'2011 Survey responses'!CG70)<2.1,\"\",(SUMIF('2011 Survey responses'!BW70,\">1\")+SUMIF('2011 Survey responses'!CG70,\">1\"))/(COUNTIF('2011 Survey responses'!BW70,\">1\")+COUNTIF('2011 Survey responses'!CG70,\">1\")))","v":""},{"$f":"IF(('2011 Survey responses'!BX70+'2011 Survey responses'!CH70)<2.1,\"\",(SUMIF('2011 Survey responses'!BX70,\">1\")+SUMIF('2011 Survey responses'!CH70,\">1\"))/(COUNTIF('2011 Survey responses'!BX70,\">1\")+COUNTIF('2011 Survey responses'!CH70,\">1\")))","v":3},{"$f":"IF(('2011 Survey responses'!BY70+'2011 Survey responses'!CI70)<2.1,\"\",(SUMIF('2011 Survey responses'!BY70,\">1\")+SUMIF('2011 Survey responses'!CI70,\">1\"))/(COUNTIF('2011 Survey responses'!BY70,\">1\")+COUNTIF('2011 Survey responses'!CI70,\">1\")))","v":2},{"$f":"IF('2011 Survey responses'!CQ70<0.5,\"\",'2011 Survey responses'!CQ70)","v":""},{"$f":"IF('2011 Survey responses'!CR70<0.5,\"\",'2011 Survey responses'!CR70)","v":""},{"$f":"IF('2011 Survey responses'!CS70<0.5,\"\",'2011 Survey responses'!CS70)","v":""},{"$f":"IF('2011 Survey responses'!CT70<0.5,\"\",'2011 Survey responses'!CT70)","v":""},{"$f":"IF('2011 Survey responses'!CU70<0.5,\"\",'2011 Survey responses'!CU70)","v":""},{"$f":"IF('2011 Survey responses'!CV70<0.5,\"\",'2011 Survey responses'!CV70)","v":""},{"$f":"IF(SUM('2011 Survey responses'!CW70:DL70)<1,\"\",(AVERAGE('2011 Survey responses'!CW70:DL70)))","v":""},{"$f":"IF(SUM('2011 Survey responses'!CW70:CZ70)<1,\"\",(AVERAGE('2011 Survey responses'!CW70:CZ70)))","v":""},{"$f":"IF(SUM('2011 Survey responses'!DA70:DD70)<1,\"\",(AVERAGE('2011 Survey responses'!DA70:DD70)))","v":""},{"$f":"IF(SUM('2011 Survey responses'!DE70:DH70)<1,\"\",(AVERAGE('2011 Survey responses'!DE70:DH70)))","v":""},{"$f":"IF(SUM('2011 Survey responses'!DI70:DL70)<1,\"\",(AVERAGE('2011 Survey responses'!DI70:DL70)))","v":""},{"$f":"IF(('2011 Survey responses'!CW70+'2011 Survey responses'!DA70+'2011 Survey responses'!DE70+'2011 Survey responses'!DI70)<1,\"\",AVERAGE('2011 Survey responses'!CW70,'2011 Survey responses'!DA70,'2011 Survey responses'!DE70,'2011 Survey responses'!DI70))","v":""},{"$f":"IF(('2011 Survey responses'!CX70+'2011 Survey responses'!DB70+'2011 Survey responses'!DF70+'2011 Survey responses'!DJ70)<1,\"\",AVERAGE('2011 Survey responses'!CX70,'2011 Survey responses'!DB70,'2011 Survey responses'!DF70,'2011 Survey responses'!DJ70))","v":""},{"$f":"IF(('2011 Survey responses'!CY70+'2011 Survey responses'!DC70+'2011 Survey responses'!DG70+'2011 Survey responses'!DK70)<1,\"\",AVERAGE('2011 Survey responses'!CY70,'2011 Survey responses'!DC70,'2011 Survey responses'!DG70,'2011 Survey responses'!DK70))","v":""},{"$f":"IF(('2011 Survey responses'!CZ70+'2011 Survey responses'!DD70+'2011 Survey responses'!DH70+'2011 Survey responses'!DL70)<1,\"\",AVERAGE('2011 Survey responses'!CZ70,'2011 Survey responses'!DD70,'2011 Survey responses'!DH70,'2011 Survey responses'!DL70))","v":""},{"$f":"IF('2011 Survey responses'!CW70<0.5,\"\",'2011 Survey responses'!CW70)","v":""},{"$f":"IF('2011 Survey responses'!CX70<0.5,\"\",'2011 Survey responses'!CX70)","v":""},{"$f":"IF('2011 Survey responses'!CY70<0.5,\"\",'2011 Survey responses'!CY70)","v":""},{"$f":"IF('2011 Survey responses'!CZ70<0.5,\"\",'2011 Survey responses'!CZ70)","v":""},{"$f":"IF('2011 Survey responses'!DA70<0.5,\"\",'2011 Survey responses'!DA70)","v":""},{"$f":"IF('2011 Survey responses'!DB70<0.5,\"\",'2011 Survey responses'!DB70)","v":""},{"$f":"IF('2011 Survey responses'!DC70<0.5,\"\",'2011 Survey responses'!DC70)","v":""},{"$f":"IF('2011 Survey responses'!DD70<0.5,\"\",'2011 Survey responses'!DD70)","v":""},{"$f":"IF('2011 Survey responses'!DE70<0.5,\"\",'2011 Survey responses'!DE70)","v":""},{"$f":"IF('2011 Survey responses'!DF70<0.5,\"\",'2011 Survey responses'!DF70)","v":""},{"$f":"IF('2011 Survey responses'!DG70<0.5,\"\",'2011 Survey responses'!DG70)","v":""},{"$f":"IF('2011 Survey responses'!DH70<0.5,\"\",'2011 Survey responses'!DH70)","v":""},{"$f":"IF('2011 Survey responses'!DI70<0.5,\"\",'2011 Survey responses'!DI70)","v":""},{"$f":"IF('2011 Survey responses'!DJ70<0.5,\"\",'2011 Survey responses'!DJ70)","v":""},{"$f":"IF('2011 Survey responses'!DK70<0.5,\"\",'2011 Survey responses'!DK70)","v":""},{"$f":"IF('2011 Survey responses'!DL70<0.5,\"\",'2011 Survey responses'!DL70)","v":""},{"$f":"IF('2011 Survey responses'!DU70=4,4,IF('2011 Survey responses'!DU70=5,4,\"\"))","v":4},{"$f":"IF('2011 Survey responses'!DV70=4,3,IF('2011 Survey responses'!DV70=5,3,\"\"))","v":3},2,{"$f":"IF(CQ70=2,CQ70,IF(CO70=4,CO70,IF(CP70=3,CP70,IF('2011 Survey responses'!GT70=1,1,\"\"))))","v":2},{"$f":"IF('2011 Survey responses'!DO70<0.5,\"\",'2011 Survey responses'!DO70)","v":5},{"$f":"IF('2011 Survey responses'!DP70<0.5,\"\",'2011 Survey responses'!DP70)","v":5},{"$f":"IF('2011 Survey responses'!DQ70<0.5,\"\",'2011 Survey responses'!DQ70)","v":5},{"$f":"IF('2011 Survey responses'!DR70<0.5,\"\",'2011 Survey responses'!DR70)","v":2},{"$f":"IF('2011 Survey responses'!DS70<0.5,\"\",'2011 Survey responses'!DS70)","v":2},{"$f":"IF('2011 Survey responses'!DT70<0.5,\"\",'2011 Survey responses'!DT70)","v":2},{"$f":"IF('2011 Survey responses'!DU70<0.5,\"\",'2011 Survey responses'!DU70)","v":4},{"$f":"IF('2011 Survey responses'!DV70<0.5,\"\",'2011 Survey responses'!DV70)","v":4},{"$f":"IF('2011 Survey responses'!DW70<0.5,\"\",'2011 Survey responses'!DW70)","v":5},{"$f":"IF('2011 Survey responses'!DX70<0.5,\"\",'2011 Survey responses'!DX70)","v":5},{"$f":"IF('2011 Survey responses'!DY70<0.5,\"\",'2011 Survey responses'!DY70)","v":5},{"$f":"IF('2011 Survey responses'!DZ70<0.5,\"\",'2011 Survey responses'!DZ70)","v":5},{"$f":"IF('2011 Survey responses'!EA70<0.5,\"\",'2011 Survey responses'!EA70)","v":5},{"$f":"IF('2011 Survey responses'!EB70<0.5,\"\",'2011 Survey responses'!EB70)","v":5},{"$f":"IF('2011 Survey responses'!EC70<0.5,\"\",'2011 Survey responses'!EC70)","v":5},{"$f":"IF('2011 Survey responses'!ED70<0.5,\"\",'2011 Survey responses'!ED70)","v":2},{"$f":"IF('2011 Survey responses'!EE70<0.5,\"\",'2011 Survey responses'!EE70)","v":4},{"$f":"IF('2011 Survey responses'!EF70<0.5,\"\",'2011 Survey responses'!EF70)","v":3},{"$f":"IF('2011 Survey responses'!EG70<0.5,\"\",'2011 Survey responses'!EG70)","v":5},{"$f":"IF('2011 Survey responses'!EH70<0.5,\"\",'2011 Survey responses'!EH70)","v":5},{"$f":"IF('2011 Survey responses'!EI70<0.5,\"\",'2011 Survey responses'!EI70)","v":5},{"$f":"IF('2011 Survey responses'!EJ70<0.5,\"\",'2011 Survey responses'!EJ70)","v":5},{"$f":"IF('2011 Survey responses'!EK70<0.5,\"\",'2011 Survey responses'!EK70)","v":5},{"$f":"IF('2011 Survey responses'!EL70<0.5,\"\",'2011 Survey responses'!EL70)","v":5},{"$f":"IF('2011 Survey responses'!EM70<0.5,\"\",'2011 Survey responses'!EM70)","v":5},{"$f":"IF('2011 Survey responses'!EN70<0.5,\"\",'2011 Survey responses'!EN70)","v":5},{"$f":"IF('2011 Survey responses'!EO70<0.5,\"\",'2011 Survey responses'!EO70)","v":3},{"$f":"IF('2011 Survey responses'!EP70<0.5,\"\",'2011 Survey responses'!EP70)","v":3},{"$f":"IF(('2011 Survey responses'!EW70+'2011 Survey responses'!EX70)>=2,AVERAGE('2011 Survey responses'!EW70,'2011 Survey responses'!EY70),\"\")","v":5},{"$f":"IF('2011 Survey responses'!EX70<0.5,\"\",'2011 Survey responses'!EX70)","v":5},{"$f":"IF('2011 Survey responses'!EZ70<0.5,\"\",'2011 Survey responses'!EZ70)","v":5},{"$f":"IF('2011 Survey responses'!FB70<0.5,\"\",'2011 Survey responses'!FB70)","v":5},{"$f":"IF('2011 Survey responses'!FD70<0.5,\"\",'2011 Survey responses'!FD70)","v":5},{"$f":"IF('2011 Survey responses'!FC70<0.5,\"\",'2011 Survey responses'!FC70)","v":5},{"$f":"IF(('2011 Survey responses'!EM70+'2011 Survey responses'!EN70)>=2,AVERAGE('2011 Survey responses'!EM70,'2011 Survey responses'!EN70),\"\")","v":5},{"$f":"IF('2011 Survey responses'!ES70<0.5,\"\",'2011 Survey responses'!ES70)","v":4},{"$f":"IF(('2011 Survey responses'!ET70+'2011 Survey responses'!EU70)>=2,AVERAGE('2011 Survey responses'!ET70,'2011 Survey responses'!EU70),\"\")","v":4},{"$f":"IF('2011 Survey responses'!EV70<0.5,\"\",'2011 Survey responses'!EV70)","v":5},{"$f":"IF('2011 Survey responses'!FA70<0.5,\"\",'2011 Survey responses'!FA70)","v":5},{"$f":"IF('2011 Survey responses'!ER70<0.5,\"\",'2011 Survey responses'!ER70)","v":4},{"$f":"IF(('2011 Survey responses'!EO70+'2011 Survey responses'!EP70)>=2,AVERAGE('2011 Survey responses'!EO70,'2011 Survey responses'!EP70),\"\")","v":3},{"$f":"IF('2011 Survey responses'!EQ70<0.5,\"\",'2011 Survey responses'!EQ70)","v":3},{"$f":"IF('2011 Survey responses'!ET70<0.5,\"\",'2011 Survey responses'!ET70)","v":4},{"$f":"IF('2011 Survey responses'!EU70<0.5,\"\",'2011 Survey responses'!EU70)","v":4},{"$f":"IF('2011 Survey responses'!EW70<0.5,\"\",'2011 Survey responses'!EW70)","v":5},{"$f":"IF('2011 Survey responses'!EY70<0.5,\"\",'2011 Survey responses'!EY70)","v":5},{"$f":"IF('2011 Survey responses'!FU70<0.5,\"\",'2011 Survey responses'!FU70)","v":5},{"$f":"IF(('2011 Survey responses'!FL70+'2011 Survey responses'!FM70)>=2,AVERAGE('2011 Survey responses'!FL70,'2011 Survey responses'!FM70),\"\")","v":5},{"$f":"IF(('2011 Survey responses'!FO70+'2011 Survey responses'!FQ70)>=2,AVERAGE('2011 Survey responses'!FO70,'2011 Survey responses'!FQ70),\"\")","v":5},{"$f":"IF('2011 Survey responses'!FJ70<0.5,\"\",'2011 Survey responses'!FJ70)","v":4},{"$f":"IF('2011 Survey responses'!FT70<0.5,\"\",'2011 Survey responses'!FT70)","v":5},{"$f":"IF('2011 Survey responses'!FR70<0.5,\"\",'2011 Survey responses'!FR70)","v":5},{"$f":"IF('2011 Survey responses'!FK70<0.5,\"\",'2011 Survey responses'!FK70)","v":4},{"$f":"IF('2011 Survey responses'!FP70<0.5,\"\",'2011 Survey responses'!FP70)","v":5},{"$f":"IF('2011 Survey responses'!FN70<0.5,\"\",'2011 Survey responses'!FN70)","v":5},{"$f":"IF(('2011 Survey responses'!FE70+'2011 Survey responses'!FF70)>=2,AVERAGE('2011 Survey responses'!FE70,'2011 Survey responses'!FF70),\"\")","v":5},{"$f":"IF('2011 Survey responses'!FS70<0.5,\"\",'2011 Survey responses'!FS70)","v":5},{"$f":"IF('2011 Survey responses'!FV70<0.5,\"\",'2011 Survey responses'!FV70)","v":5},{"$f":"IF(('2011 Survey responses'!FG70+'2011 Survey responses'!FH70)>=2,AVERAGE('2011 Survey responses'!FG70,'2011 Survey responses'!FH70),\"\")","v":3.5},{"$f":"IF('2011 Survey responses'!FI70<0.5,\"\",'2011 Survey responses'!FI70)","v":4},{"$f":"IF('2011 Survey responses'!FE70<0.5,\"\",'2011 Survey responses'!FE70)","v":5},{"$f":"IF('2011 Survey responses'!FF70<0.5,\"\",'2011 Survey responses'!FF70)","v":5},{"$f":"IF('2011 Survey responses'!FG70<0.5,\"\",'2011 Survey responses'!FG70)","v":3},{"$f":"IF('2011 Survey responses'!FH70<0.5,\"\",'2011 Survey responses'!FH70)","v":4},{"$f":"IF('2011 Survey responses'!FL70<0.5,\"\",'2011 Survey responses'!FL70)","v":5},{"$f":"IF('2011 Survey responses'!FM70<0.5,\"\",'2011 Survey responses'!FM70)","v":5},{"$f":"IF('2011 Survey responses'!FO70<0.5,\"\",'2011 Survey responses'!FO70)","v":5},{"$f":"IF('2011 Survey responses'!FQ70<0.5,\"\",'2011 Survey responses'!FQ70)","v":5}]
["Guatemala",{"$f":"IF(SUM(F71)<1,\"\",AVERAGEIF('2011 Survey responses'!B71:CP71,\">1\"))","v":3.0853658536585367},{"$f":"IF(SUM(F71)<1,\"\",AVERAGEIF('2011 Survey responses'!B71:AO71,\">1\"))","v":2.9117647058823528},{"$f":"IF(SUM(F71)<1,\"\",AVERAGEIF('2011 Survey responses'!B71:BV71,\">1\"))","v":2.875},{"$f":"IF(SUM(F71)<1,\"\",AVERAGEIF('2011 Survey responses'!V71:BV71,\">1\"))","v":2.8222222222222224},{"$f":"IF(SUM('2011 Survey responses'!B71:U71)<1,\"\",(AVERAGEIFS('2011 Survey responses'!B71:U71,'2011 Survey responses'!B71:U71,\">1\")))","v":3},{"$f":"IF(SUM('2011 Survey responses'!B71:H71)<1,\"\",(AVERAGEIFS('2011 Survey responses'!B71:H71,'2011 Survey responses'!B71:H71,\">1\")))","v":2.7142857142857144},{"$f":"IF(SUM('2011 Survey responses'!I71:S71)<1,\"\",(AVERAGEIFS('2011 Survey responses'!I71:S71,'2011 Survey responses'!I71:S71,\">1\")))","v":3.2727272727272729},{"$f":"IF(SUM('2011 Survey responses'!T71:U71)<2.1,\"\",(AVERAGEIFS('2011 Survey responses'!T71:U71,'2011 Survey responses'!T71:U71,\">1\")))","v":2},{"$f":"IF(SUM('2011 Survey responses'!B71:C71)<2.1,\"\",((SUMIF('2011 Survey responses'!B71:C71,\">1\")+SUMIF('2011 Survey responses'!F71,\">1\"))/(COUNTIF('2011 Survey responses'!B71:C71,\">1\")+COUNTIF('2011 Survey responses'!F71,\">1\"))))","v":3.3333333333333335},{"$f":"IF(SUM('2011 Survey responses'!D71:E71)<2.1,\"\",(AVERAGEIFS('2011 Survey responses'!D71:E71,'2011 Survey responses'!D71:E71,\">1\")))","v":2},{"$f":"IF(('2011 Survey responses'!B71+'2011 Survey responses'!D71)<2.1,\"\",((SUMIF('2011 Survey responses'!B71,\">1\")+SUMIF('2011 Survey responses'!D71,\">1\")+SUMIF('2011 Survey responses'!F71,\">1\")+SUMIF('2011 Survey responses'!K71,\">1\"))/(COUNTIF('2011 Survey responses'!B71,\">1\")+COUNTIF('2011 Survey responses'!D71,\">1\")+COUNTIF('2011 Survey responses'!F71,\">1\")+COUNTIF('2011 Survey responses'!K71,\">1\"))))","v":3.25},{"$f":"IF(SUM('2011 Survey responses'!G71:H71)<2.1,\"\",(AVERAGEIFS('2011 Survey responses'!G71:H71,'2011 Survey responses'!G71:H71,\">1\")))","v":2.5},{"$f":"IF(SUM('2011 Survey responses'!F71:G71)<1.5,\"\",MAX('2011 Survey responses'!F71,'2011 Survey responses'!G71))","v":4},{"$f":"IF(SUM('2011 Survey responses'!G71:H71)<1,\"\",MAX('2011 Survey responses'!G71,'2011 Survey responses'!H71))","v":3},{"$f":"IF(SUM('2011 Survey responses'!I71:L71)<4.1,\"\",(AVERAGEIFS('2011 Survey responses'!I71:L71,'2011 Survey responses'!I71:L71,\">1\")))","v":3.75},{"$f":"IF(SUM('2011 Survey responses'!M71:S71)<4.1,\"\",(AVERAGEIFS('2011 Survey responses'!M71:S71,'2011 Survey responses'!M71:S71,\">1\")))","v":3},{"$f":"IF(SUM('2011 Survey responses'!T71:U71)<2.1,\"\",(AVERAGEIFS('2011 Survey responses'!T71:U71,'2011 Survey responses'!T71:U71,\">1\")))","v":2},{"$f":"IF(SUM('2011 Survey responses'!V71:AO71)<1,\"\",(AVERAGEIFS('2011 Survey responses'!V71:AO71,'2011 Survey responses'!V71:AO71,\">1\")))","v":2.8},{"$f":"IF(SUM('2011 Survey responses'!V71:AA71)<1,\"\",(AVERAGEIFS('2011 Survey responses'!V71:AA71,'2011 Survey responses'!V71:AA71,\">1\")))","v":3.25},{"$f":"IF(SUM('2011 Survey responses'!AB71:AH71)<1,\"\",(AVERAGEIFS('2011 Survey responses'!AB71:AH71,'2011 Survey responses'!AB71:AH71,\">1\")))","v":2.4},{"$f":"IF(SUM('2011 Survey responses'!AI71:AO71)<1,\"\",(AVERAGEIFS('2011 Survey responses'!AI71:AO71,'2011 Survey responses'!AI71:AO71,\">1\")))","v":2.8333333333333335},{"$f":"IF(('2011 Survey responses'!Y71+'2011 Survey responses'!AI71+'2011 Survey responses'!AK71)<3.1,\"\",((SUMIF('2011 Survey responses'!Y71,\">1\")+SUMIF('2011 Survey responses'!AI71,\">1\")+SUMIF('2011 Survey responses'!AK71,\">1\")+SUMIF('2011 Survey responses'!AM71,\">1\"))/(COUNTIF('2011 Survey responses'!Y71,\">1\")+COUNTIF('2011 Survey responses'!AI71,\">1\")+COUNTIF('2011 Survey responses'!AK71,\">1\")+COUNTIF('2011 Survey responses'!AM71,\">1\"))))","v":2.5},{"$f":"IF(('2011 Survey responses'!W71)<1.1,\"\",('2011 Survey responses'!W71))","v":2},{"$f":"IF(('2011 Survey responses'!Y71)<1.1,\"\",('2011 Survey responses'!Y71))","v":2},{"$f":"IF(('2011 Survey responses'!Z71)<1.1,\"\",('2011 Survey responses'!Z71))","v":""},{"$f":"IF(('2011 Survey responses'!V71+'2011 Survey responses'!X71+'2011 Survey responses'!AA71)<3.1,\"\",((SUMIF('2011 Survey responses'!V71,\">1\")+SUMIF('2011 Survey responses'!X71,\">1\")+SUMIF('2011 Survey responses'!AA71,\">1\"))/(COUNTIF('2011 Survey responses'!V71,\">1\")+COUNTIF('2011 Survey responses'!X71,\">1\")+COUNTIF('2011 Survey responses'!AA71,\">1\"))))","v":4.5},{"$f":"IF(('2011 Survey responses'!V71+'2011 Survey responses'!Y71+'2011 Survey responses'!AA71)<3.1,\"\",((SUMIF('2011 Survey responses'!V71,\">1\")+SUMIF('2011 Survey responses'!Y71,\">1\")+SUMIF('2011 Survey responses'!AA71,\">1\"))/(COUNTIF('2011 Survey responses'!V71,\">1\")+COUNTIF('2011 Survey responses'!Y71,\">1\")+COUNTIF('2011 Survey responses'!AA71,\">1\"))))","v":3},{"$f":"IF(SUM('2011 Survey responses'!AB71:AH71)<1,\"\",(AVERAGEIFS('2011 Survey responses'!AB71:AH71,'2011 Survey responses'!AB71:AH71,\">1\")))","v":2.4},{"$f":"IF(SUM('2011 Survey responses'!AI71:AO71)<7.1,\"\",(AVERAGEIFS('2011 Survey responses'!AI71:AO71,'2011 Survey responses'!AI71:AO71,\">1\")))","v":2.8333333333333335},{"$f":"IF(('2011 Survey responses'!AH71)<1.1,\"\",('2011 Survey responses'!AH71))","v":2},{"$f":"IF(SUM('2011 Survey responses'!AP71:BV71)<1,\"\",(AVERAGEIFS('2011 Survey responses'!AP71:BV71,'2011 Survey responses'!AP71:BV71,\">1\")))","v":2.8333333333333335},{"$f":"IF(SUM('2011 Survey responses'!AP71:AS71)<4.1,\"\",(AVERAGEIFS('2011 Survey responses'!AP71:AS71,'2011 Survey responses'!AP71:AS71,\">1\")))","v":2.75},{"$f":"IF(SUM('2011 Survey responses'!AT71:BF71)<1,\"\",(AVERAGEIFS('2011 Survey responses'!AT71:BF71,'2011 Survey responses'!AT71:BF71,\">1\")))","v":2.5833333333333335},{"$f":"IF(SUM('2011 Survey responses'!BG71:BO71)<1,\"\",(AVERAGEIFS('2011 Survey responses'!BG71:BO71,'2011 Survey responses'!BG71:BO71,\">1\")))","v":3.625},{"$f":"IF(SUM('2011 Survey responses'!BP71:BS71)<1,\"\",(AVERAGEIFS('2011 Survey responses'!BP71:BS71,'2011 Survey responses'!BP71:BS71,\">1\")))","v":2.25},{"$f":"IF(SUM('2011 Survey responses'!BT71:BV71)<3.1,\"\",(AVERAGEIFS('2011 Survey responses'!BT71:BV71,'2011 Survey responses'!BT71:BV71,\">1\")))","v":2.5},{"$f":"IF(('2011 Survey responses'!AQ71+'2011 Survey responses'!AR71+'2011 Survey responses'!BG71)<3.1,\"\",((SUMIF('2011 Survey responses'!AQ71,\">1\")+SUMIF('2011 Survey responses'!AR71,\">1\")+SUMIF('2011 Survey responses'!BG71,\">1\"))/(COUNTIF('2011 Survey responses'!AQ71,\">1\")+COUNTIF('2011 Survey responses'!AR71,\">1\")+COUNTIF('2011 Survey responses'!BG71,\">1\"))))","v":4},{"$f":"IF(SUM('2011 Survey responses'!AP71:AS71)<4.1,\"\",(AVERAGEIFS('2011 Survey responses'!AP71:AS71,'2011 Survey responses'!AP71:AS71,\">1\")))","v":2.75},{"$f":"IF(('2011 Survey responses'!AU71+'2011 Survey responses'!AX71+'2011 Survey responses'!BA71+'2011 Survey responses'!BC71+'2011 Survey responses'!BD71)<5.1,\"\",(SUMIF('2011 Survey responses'!AU71,\">1\")+SUMIF('2011 Survey responses'!AX71,\">1\")+SUMIF('2011 Survey responses'!BA71,\">1\")+SUMIF('2011 Survey responses'!BC71,\">1\")+SUMIF('2011 Survey responses'!BD71,\">1\"))/(COUNTIF('2011 Survey responses'!AU71,\">1\")+COUNTIF('2011 Survey responses'!AX71,\">1\")+COUNTIF('2011 Survey responses'!BA71,\">1\")+COUNTIF('2011 Survey responses'!BC71,\">1\")+COUNTIF('2011 Survey responses'!BD71,\">1\")))","v":3},{"$f":"IF(('2011 Survey responses'!AT71)<1.1,\"\",('2011 Survey responses'!AT71))","v":2},{"$f":"IF(SUM('2011 Survey responses'!AV71:AW71)<2.1,\"\",(AVERAGEIFS('2011 Survey responses'!AV71:AW71,'2011 Survey responses'!AV71:AW71,\">1\")))","v":2.5},{"$f":"IF(('2011 Survey responses'!AW71+'2011 Survey responses'!AY71)<2.1,\"\",(SUMIF('2011 Survey responses'!AW71,\">1\")+SUMIF('2011 Survey responses'!AY71,\">1\"))/(COUNTIF('2011 Survey responses'!AW71,\">1\")+COUNTIF('2011 Survey responses'!AY71,\">1\")))","v":2},{"$f":"IF(('2011 Survey responses'!AZ71)<1.1,\"\",('2011 Survey responses'!AZ71))","v":""},1,3,2,2,{"$f":"IF(('2011 Survey responses'!BE71)<1.1,\"\",('2011 Survey responses'!BE71))","v":2},{"$f":"IF(('2011 Survey responses'!AY71+'2011 Survey responses'!BB71+'2011 Survey responses'!BF71)<3.1,\"\",(SUMIF('2011 Survey responses'!AY71,\">1\")+SUMIF('2011 Survey responses'!BB71,\">1\")+SUMIF('2011 Survey responses'!BF71,\">1\"))/(COUNTIF('2011 Survey responses'!AY71,\">1\")+COUNTIF('2011 Survey responses'!BB71,\">1\")+COUNTIF('2011 Survey responses'!BF71,\">1\")))","v":2.3333333333333335},2.9375,{"$f":"IF(SUM('2011 Survey responses'!BT71:BV71)<3.1,\"\",(AVERAGEIFS('2011 Survey responses'!BT71:BV71,'2011 Survey responses'!BT71:BV71,\">1\")))","v":2.5},{"$f":"IF(SUM('2011 Survey responses'!BW71:CP71)<1,\"\",(AVERAGEIFS('2011 Survey responses'!BW71:CP71,'2011 Survey responses'!BW71:CP71,\">1\")))","v":3.8333333333333335},{"$f":"IF(SUM('2011 Survey responses'!BW71:CF71)<1,\"\",(AVERAGEIFS('2011 Survey responses'!BW71:CF71,'2011 Survey responses'!BW71:CF71,\">1\")))","v":3.8888888888888888},{"$f":"IF(SUM('2011 Survey responses'!CG71:CP71)<1,\"\",(AVERAGEIFS('2011 Survey responses'!CG71:CP71,'2011 Survey responses'!CG71:CP71,\">1\")))","v":3.7777777777777777},{"$f":"IF(SUM('2011 Survey responses'!BX71:CF71)<1,\"\",(AVERAGEIFS('2011 Survey responses'!BX71:CF71,'2011 Survey responses'!BX71:CF71,\">1\")))","v":3.875},{"$f":"IF(SUM('2011 Survey responses'!CH71:CP71)<1,\"\",(AVERAGEIFS('2011 Survey responses'!CH71:CP71,'2011 Survey responses'!CH71:CP71,\">1\")))","v":3.75},{"$f":"IF(SUM('2011 Survey responses'!BW71:CP71)<1,\"\",(AVERAGEIFS('2011 Survey responses'!BW71:CP71,'2011 Survey responses'!BW71:CP71,\">1\")))","v":3.8333333333333335},{"$f":"IF(('2011 Survey responses'!BW71+'2011 Survey responses'!CG71)<2.1,\"\",(SUMIF('2011 Survey responses'!BW71,\">1\")+SUMIF('2011 Survey responses'!CG71,\">1\"))/(COUNTIF('2011 Survey responses'!BW71,\">1\")+COUNTIF('2011 Survey responses'!CG71,\">1\")))","v":4},{"$f":"IF(('2011 Survey responses'!BX71+'2011 Survey responses'!CH71)<2.1,\"\",(SUMIF('2011 Survey responses'!BX71,\">1\")+SUMIF('2011 Survey responses'!CH71,\">1\"))/(COUNTIF('2011 Survey responses'!BX71,\">1\")+COUNTIF('2011 Survey responses'!CH71,\">1\")))","v":4},{"$f":"IF(('2011 Survey responses'!BY71+'2011 Survey responses'!CI71)<2.1,\"\",(SUMIF('2011 Survey responses'!BY71,\">1\")+SUMIF('2011 Survey responses'!CI71,\">1\"))/(COUNTIF('2011 Survey responses'!BY71,\">1\")+COUNTIF('2011 Survey responses'!CI71,\">1\")))","v":5},{"$f":"IF('2011 Survey responses'!CQ71<0.5,\"\",'2011 Survey responses'!CQ71)","v":1},{"$f":"IF('2011 Survey responses'!CR71<0.5,\"\",'2011 Survey responses'!CR71)","v":5},{"$f":"IF('2011 Survey responses'!CS71<0.5,\"\",'2011 Survey responses'!CS71)","v":5},{"$f":"IF('2011 Survey responses'!CT71<0.5,\"\",'2011 Survey responses'!CT71)","v":4},{"$f":"IF('2011 Survey responses'!CU71<0.5,\"\",'2011 Survey responses'!CU71)","v":2},{"$f":"IF('2011 Survey responses'!CV71<0.5,\"\",'2011 Survey responses'!CV71)","v":1},{"$f":"IF(SUM('2011 Survey responses'!CW71:DL71)<1,\"\",(AVERAGE('2011 Survey responses'!CW71:DL71)))","v":1.9375},{"$f":"IF(SUM('2011 Survey responses'!CW71:CZ71)<1,\"\",(AVERAGE('2011 Survey responses'!CW71:CZ71)))","v":2.25},{"$f":"IF(SUM('2011 Survey responses'!DA71:DD71)<1,\"\",(AVERAGE('2011 Survey responses'!DA71:DD71)))","v":2},{"$f":"IF(SUM('2011 Survey responses'!DE71:DH71)<1,\"\",(AVERAGE('2011 Survey responses'!DE71:DH71)))","v":1.5},{"$f":"IF(SUM('2011 Survey responses'!DI71:DL71)<1,\"\",(AVERAGE('2011 Survey responses'!DI71:DL71)))","v":2},{"$f":"IF(('2011 Survey responses'!CW71+'2011 Survey responses'!DA71+'2011 Survey responses'!DE71+'2011 Survey responses'!DI71)<1,\"\",AVERAGE('2011 Survey responses'!CW71,'2011 Survey responses'!DA71,'2011 Survey responses'!DE71,'2011 Survey responses'!DI71))","v":2.25},{"$f":"IF(('2011 Survey responses'!CX71+'2011 Survey responses'!DB71+'2011 Survey responses'!DF71+'2011 Survey responses'!DJ71)<1,\"\",AVERAGE('2011 Survey responses'!CX71,'2011 Survey responses'!DB71,'2011 Survey responses'!DF71,'2011 Survey responses'!DJ71))","v":1.75},{"$f":"IF(('2011 Survey responses'!CY71+'2011 Survey responses'!DC71+'2011 Survey responses'!DG71+'2011 Survey responses'!DK71)<1,\"\",AVERAGE('2011 Survey responses'!CY71,'2011 Survey responses'!DC71,'2011 Survey responses'!DG71,'2011 Survey responses'!DK71))","v":1.75},{"$f":"IF(('2011 Survey responses'!CZ71+'2011 Survey responses'!DD71+'2011 Survey responses'!DH71+'2011 Survey responses'!DL71)<1,\"\",AVERAGE('2011 Survey responses'!CZ71,'2011 Survey responses'!DD71,'2011 Survey responses'!DH71,'2011 Survey responses'!DL71))","v":2},{"$f":"IF('2011 Survey responses'!CW71<0.5,\"\",'2011 Survey responses'!CW71)","v":3},{"$f":"IF('2011 Survey responses'!CX71<0.5,\"\",'2011 Survey responses'!CX71)","v":2},{"$f":"IF('2011 Survey responses'!CY71<0.5,\"\",'2011 Survey responses'!CY71)","v":2},{"$f":"IF('2011 Survey responses'!CZ71<0.5,\"\",'2011 Survey responses'!CZ71)","v":2},{"$f":"IF('2011 Survey responses'!DA71<0.5,\"\",'2011 Survey responses'!DA71)","v":2},{"$f":"IF('2011 Survey responses'!DB71<0.5,\"\",'2011 Survey responses'!DB71)","v":2},{"$f":"IF('2011 Survey responses'!DC71<0.5,\"\",'2011 Survey responses'!DC71)","v":2},{"$f":"IF('2011 Survey responses'!DD71<0.5,\"\",'2011 Survey responses'!DD71)","v":2},{"$f":"IF('2011 Survey responses'!DE71<0.5,\"\",'2011 Survey responses'!DE71)","v":2},{"$f":"IF('2011 Survey responses'!DF71<0.5,\"\",'2011 Survey responses'!DF71)","v":1},{"$f":"IF('2011 Survey responses'!DG71<0.5,\"\",'2011 Survey responses'!DG71)","v":1},{"$f":"IF('2011 Survey responses'!DH71<0.5,\"\",'2011 Survey responses'!DH71)","v":2},{"$f":"IF('2011 Survey responses'!DI71<0.5,\"\",'2011 Survey responses'!DI71)","v":2},{"$f":"IF('2011 Survey responses'!DJ71<0.5,\"\",'2011 Survey responses'!DJ71)","v":2},{"$f":"IF('2011 Survey responses'!DK71<0.5,\"\",'2011 Survey responses'!DK71)","v":2},{"$f":"IF('2011 Survey responses'!DL71<0.5,\"\",'2011 Survey responses'!DL71)","v":2},{"$f":"IF('2011 Survey responses'!DU71=4,4,IF('2011 Survey responses'!DU71=5,4,\"\"))","v":4},{"$f":"IF('2011 Survey responses'!DV71=4,3,IF('2011 Survey responses'!DV71=5,3,\"\"))","v":3},2,{"$f":"IF(CQ71=2,CQ71,IF(CO71=4,CO71,IF(CP71=3,CP71,IF('2011 Survey responses'!GT71=1,1,\"\"))))","v":2},{"$f":"IF('2011 Survey responses'!DO71<0.5,\"\",'2011 Survey responses'!DO71)","v":3},{"$f":"IF('2011 Survey responses'!DP71<0.5,\"\",'2011 Survey responses'!DP71)","v":5},{"$f":"IF('2011 Survey responses'!DQ71<0.5,\"\",'2011 Survey responses'!DQ71)","v":3},{"$f":"IF('2011 Survey responses'!DR71<0.5,\"\",'2011 Survey responses'!DR71)","v":4},{"$f":"IF('2011 Survey responses'!DS71<0.5,\"\",'2011 Survey responses'!DS71)","v":2},{"$f":"IF('2011 Survey responses'!DT71<0.5,\"\",'2011 Survey responses'!DT71)","v":5},{"$f":"IF('2011 Survey responses'!DU71<0.5,\"\",'2011 Survey responses'!DU71)","v":5},{"$f":"IF('2011 Survey responses'!DV71<0.5,\"\",'2011 Survey responses'!DV71)","v":5},{"$f":"IF('2011 Survey responses'!DW71<0.5,\"\",'2011 Survey responses'!DW71)","v":3},{"$f":"IF('2011 Survey responses'!DX71<0.5,\"\",'2011 Survey responses'!DX71)","v":3},{"$f":"IF('2011 Survey responses'!DY71<0.5,\"\",'2011 Survey responses'!DY71)","v":3},{"$f":"IF('2011 Survey responses'!DZ71<0.5,\"\",'2011 Survey responses'!DZ71)","v":2},{"$f":"IF('2011 Survey responses'!EA71<0.5,\"\",'2011 Survey responses'!EA71)","v":4},{"$f":"IF('2011 Survey responses'!EB71<0.5,\"\",'2011 Survey responses'!EB71)","v":5},{"$f":"IF('2011 Survey responses'!EC71<0.5,\"\",'2011 Survey responses'!EC71)","v":4},{"$f":"IF('2011 Survey responses'!ED71<0.5,\"\",'2011 Survey responses'!ED71)","v":5},{"$f":"IF('2011 Survey responses'!EE71<0.5,\"\",'2011 Survey responses'!EE71)","v":4},{"$f":"IF('2011 Survey responses'!EF71<0.5,\"\",'2011 Survey responses'!EF71)","v":5},{"$f":"IF('2011 Survey responses'!EG71<0.5,\"\",'2011 Survey responses'!EG71)","v":5},{"$f":"IF('2011 Survey responses'!EH71<0.5,\"\",'2011 Survey responses'!EH71)","v":5},{"$f":"IF('2011 Survey responses'!EI71<0.5,\"\",'2011 Survey responses'!EI71)","v":4},{"$f":"IF('2011 Survey responses'!EJ71<0.5,\"\",'2011 Survey responses'!EJ71)","v":4},{"$f":"IF('2011 Survey responses'!EK71<0.5,\"\",'2011 Survey responses'!EK71)","v":3},{"$f":"IF('2011 Survey responses'!EL71<0.5,\"\",'2011 Survey responses'!EL71)","v":3},{"$f":"IF('2011 Survey responses'!EM71<0.5,\"\",'2011 Survey responses'!EM71)","v":5},{"$f":"IF('2011 Survey responses'!EN71<0.5,\"\",'2011 Survey responses'!EN71)","v":4},{"$f":"IF('2011 Survey responses'!EO71<0.5,\"\",'2011 Survey responses'!EO71)","v":5},{"$f":"IF('2011 Survey responses'!EP71<0.5,\"\",'2011 Survey responses'!EP71)","v":2},{"$f":"IF(('2011 Survey responses'!EW71+'2011 Survey responses'!EX71)>=2,AVERAGE('2011 Survey responses'!EW71,'2011 Survey responses'!EY71),\"\")","v":5},{"$f":"IF('2011 Survey responses'!EX71<0.5,\"\",'2011 Survey responses'!EX71)","v":5},{"$f":"IF('2011 Survey responses'!EZ71<0.5,\"\",'2011 Survey responses'!EZ71)","v":5},{"$f":"IF('2011 Survey responses'!FB71<0.5,\"\",'2011 Survey responses'!FB71)","v":5},{"$f":"IF('2011 Survey responses'!FD71<0.5,\"\",'2011 Survey responses'!FD71)","v":4},{"$f":"IF('2011 Survey responses'!FC71<0.5,\"\",'2011 Survey responses'!FC71)","v":5},{"$f":"IF(('2011 Survey responses'!EM71+'2011 Survey responses'!EN71)>=2,AVERAGE('2011 Survey responses'!EM71,'2011 Survey responses'!EN71),\"\")","v":4.5},{"$f":"IF('2011 Survey responses'!ES71<0.5,\"\",'2011 Survey responses'!ES71)","v":3},{"$f":"IF(('2011 Survey responses'!ET71+'2011 Survey responses'!EU71)>=2,AVERAGE('2011 Survey responses'!ET71,'2011 Survey responses'!EU71),\"\")","v":4.5},{"$f":"IF('2011 Survey responses'!EV71<0.5,\"\",'2011 Survey responses'!EV71)","v":4},{"$f":"IF('2011 Survey responses'!FA71<0.5,\"\",'2011 Survey responses'!FA71)","v":4},{"$f":"IF('2011 Survey responses'!ER71<0.5,\"\",'2011 Survey responses'!ER71)","v":3},{"$f":"IF(('2011 Survey responses'!EO71+'2011 Survey responses'!EP71)>=2,AVERAGE('2011 Survey responses'!EO71,'2011 Survey responses'!EP71),\"\")","v":3.5},{"$f":"IF('2011 Survey responses'!EQ71<0.5,\"\",'2011 Survey responses'!EQ71)","v":3},{"$f":"IF('2011 Survey responses'!ET71<0.5,\"\",'2011 Survey responses'!ET71)","v":5},{"$f":"IF('2011 Survey responses'!EU71<0.5,\"\",'2011 Survey responses'!EU71)","v":4},{"$f":"IF('2011 Survey responses'!EW71<0.5,\"\",'2011 Survey responses'!EW71)","v":5},{"$f":"IF('2011 Survey responses'!EY71<0.5,\"\",'2011 Survey responses'!EY71)","v":5},{"$f":"IF('2011 Survey responses'!FU71<0.5,\"\",'2011 Survey responses'!FU71)","v":4},{"$f":"IF(('2011 Survey responses'!FL71+'2011 Survey responses'!FM71)>=2,AVERAGE('2011 Survey responses'!FL71,'2011 Survey responses'!FM71),\"\")","v":4},{"$f":"IF(('2011 Survey responses'!FO71+'2011 Survey responses'!FQ71)>=2,AVERAGE('2011 Survey responses'!FO71,'2011 Survey responses'!FQ71),\"\")","v":4},{"$f":"IF('2011 Survey responses'!FJ71<0.5,\"\",'2011 Survey responses'!FJ71)","v":4},{"$f":"IF('2011 Survey responses'!FT71<0.5,\"\",'2011 Survey responses'!FT71)","v":4},{"$f":"IF('2011 Survey responses'!FR71<0.5,\"\",'2011 Survey responses'!FR71)","v":1},{"$f":"IF('2011 Survey responses'!FK71<0.5,\"\",'2011 Survey responses'!FK71)","v":4},{"$f":"IF('2011 Survey responses'!FP71<0.5,\"\",'2011 Survey responses'!FP71)","v":4},{"$f":"IF('2011 Survey responses'!FN71<0.5,\"\",'2011 Survey responses'!FN71)","v":3},{"$f":"IF(('2011 Survey responses'!FE71+'2011 Survey responses'!FF71)>=2,AVERAGE('2011 Survey responses'!FE71,'2011 Survey responses'!FF71),\"\")","v":1.5},{"$f":"IF('2011 Survey responses'!FS71<0.5,\"\",'2011 Survey responses'!FS71)","v":2},{"$f":"IF('2011 Survey responses'!FV71<0.5,\"\",'2011 Survey responses'!FV71)","v":3},{"$f":"IF(('2011 Survey responses'!FG71+'2011 Survey responses'!FH71)>=2,AVERAGE('2011 Survey responses'!FG71,'2011 Survey responses'!FH71),\"\")","v":3},{"$f":"IF('2011 Survey responses'!FI71<0.5,\"\",'2011 Survey responses'!FI71)","v":4},{"$f":"IF('2011 Survey responses'!FE71<0.5,\"\",'2011 Survey responses'!FE71)","v":1},{"$f":"IF('2011 Survey responses'!FF71<0.5,\"\",'2011 Survey responses'!FF71)","v":2},{"$f":"IF('2011 Survey responses'!FG71<0.5,\"\",'2011 Survey responses'!FG71)","v":3},{"$f":"IF('2011 Survey responses'!FH71<0.5,\"\",'2011 Survey responses'!FH71)","v":3},{"$f":"IF('2011 Survey responses'!FL71<0.5,\"\",'2011 Survey responses'!FL71)","v":4},{"$f":"IF('2011 Survey responses'!FM71<0.5,\"\",'2011 Survey responses'!FM71)","v":4},{"$f":"IF('2011 Survey responses'!FO71<0.5,\"\",'2011 Survey responses'!FO71)","v":4},{"$f":"IF('2011 Survey responses'!FQ71<0.5,\"\",'2011 Survey responses'!FQ71)","v":4}]
["Guinea",{"$f":"IF(SUM(F72)<1,\"\",AVERAGEIF('2011 Survey responses'!B72:CP72,\">1\"))","v":3.0697674418604652},{"$f":"IF(SUM(F72)<1,\"\",AVERAGEIF('2011 Survey responses'!B72:AO72,\">1\"))","v":3.2},{"$f":"IF(SUM(F72)<1,\"\",AVERAGEIF('2011 Survey responses'!B72:BV72,\">1\"))","v":3.0697674418604652},{"$f":"IF(SUM(F72)<1,\"\",AVERAGEIF('2011 Survey responses'!V72:BV72,\">1\"))","v":2.6285714285714286},{"$f":"IF(SUM('2011 Survey responses'!B72:U72)<1,\"\",(AVERAGEIFS('2011 Survey responses'!B72:U72,'2011 Survey responses'!B72:U72,\">1\")))","v":5},{"$f":"IF(SUM('2011 Survey responses'!B72:H72)<1,\"\",(AVERAGEIFS('2011 Survey responses'!B72:H72,'2011 Survey responses'!B72:H72,\">1\")))","v":3.3333333333333335},{"$f":"IF(SUM('2011 Survey responses'!I72:S72)<1,\"\",(AVERAGEIFS('2011 Survey responses'!I72:S72,'2011 Survey responses'!I72:S72,\">1\")))","v":6},{"$f":"IF(SUM('2011 Survey responses'!T72:U72)<2.1,\"\",(AVERAGEIFS('2011 Survey responses'!T72:U72,'2011 Survey responses'!T72:U72,\">1\")))","v":6},{"$f":"IF(SUM('2011 Survey responses'!B72:C72)<2.1,\"\",((SUMIF('2011 Survey responses'!B72:C72,\">1\")+SUMIF('2011 Survey responses'!F72,\">1\"))/(COUNTIF('2011 Survey responses'!B72:C72,\">1\")+COUNTIF('2011 Survey responses'!F72,\">1\"))))","v":2},{"$f":"IF(SUM('2011 Survey responses'!D72:E72)<2.1,\"\",(AVERAGEIFS('2011 Survey responses'!D72:E72,'2011 Survey responses'!D72:E72,\">1\")))","v":6},{"$f":"IF(('2011 Survey responses'!B72+'2011 Survey responses'!D72)<2.1,\"\",((SUMIF('2011 Survey responses'!B72,\">1\")+SUMIF('2011 Survey responses'!D72,\">1\")+SUMIF('2011 Survey responses'!F72,\">1\")+SUMIF('2011 Survey responses'!K72,\">1\"))/(COUNTIF('2011 Survey responses'!B72,\">1\")+COUNTIF('2011 Survey responses'!D72,\">1\")+COUNTIF('2011 Survey responses'!F72,\">1\")+COUNTIF('2011 Survey responses'!K72,\">1\"))))","v":4},{"$f":"IF(SUM('2011 Survey responses'!G72:H72)<2.1,\"\",(AVERAGEIFS('2011 Survey responses'!G72:H72,'2011 Survey responses'!G72:H72,\">1\")))","v":""},{"$f":"IF(SUM('2011 Survey responses'!F72:G72)<1.5,\"\",MAX('2011 Survey responses'!F72,'2011 Survey responses'!G72))","v":2},{"$f":"IF(SUM('2011 Survey responses'!G72:H72)<1,\"\",MAX('2011 Survey responses'!G72,'2011 Survey responses'!H72))","v":1},{"$f":"IF(SUM('2011 Survey responses'!I72:L72)<4.1,\"\",(AVERAGEIFS('2011 Survey responses'!I72:L72,'2011 Survey responses'!I72:L72,\">1\")))","v":6},{"$f":"IF(SUM('2011 Survey responses'!M72:S72)<4.1,\"\",(AVERAGEIFS('2011 Survey responses'!M72:S72,'2011 Survey responses'!M72:S72,\">1\")))","v":6},{"$f":"IF(SUM('2011 Survey responses'!T72:U72)<2.1,\"\",(AVERAGEIFS('2011 Survey responses'!T72:U72,'2011 Survey responses'!T72:U72,\">1\")))","v":6},{"$f":"IF(SUM('2011 Survey responses'!V72:AO72)<1,\"\",(AVERAGEIFS('2011 Survey responses'!V72:AO72,'2011 Survey responses'!V72:AO72,\">1\")))","v":2.3529411764705883},{"$f":"IF(SUM('2011 Survey responses'!V72:AA72)<1,\"\",(AVERAGEIFS('2011 Survey responses'!V72:AA72,'2011 Survey responses'!V72:AA72,\">1\")))","v":2.6666666666666665},{"$f":"IF(SUM('2011 Survey responses'!AB72:AH72)<1,\"\",(AVERAGEIFS('2011 Survey responses'!AB72:AH72,'2011 Survey responses'!AB72:AH72,\">1\")))","v":2.2857142857142856},{"$f":"IF(SUM('2011 Survey responses'!AI72:AO72)<1,\"\",(AVERAGEIFS('2011 Survey responses'!AI72:AO72,'2011 Survey responses'!AI72:AO72,\">1\")))","v":2},{"$f":"IF(('2011 Survey responses'!Y72+'2011 Survey responses'!AI72+'2011 Survey responses'!AK72)<3.1,\"\",((SUMIF('2011 Survey responses'!Y72,\">1\")+SUMIF('2011 Survey responses'!AI72,\">1\")+SUMIF('2011 Survey responses'!AK72,\">1\")+SUMIF('2011 Survey responses'!AM72,\">1\"))/(COUNTIF('2011 Survey responses'!Y72,\">1\")+COUNTIF('2011 Survey responses'!AI72,\">1\")+COUNTIF('2011 Survey responses'!AK72,\">1\")+COUNTIF('2011 Survey responses'!AM72,\">1\"))))","v":2},{"$f":"IF(('2011 Survey responses'!W72)<1.1,\"\",('2011 Survey responses'!W72))","v":2},{"$f":"IF(('2011 Survey responses'!Y72)<1.1,\"\",('2011 Survey responses'!Y72))","v":2},{"$f":"IF(('2011 Survey responses'!Z72)<1.1,\"\",('2011 Survey responses'!Z72))","v":4},{"$f":"IF(('2011 Survey responses'!V72+'2011 Survey responses'!X72+'2011 Survey responses'!AA72)<3.1,\"\",((SUMIF('2011 Survey responses'!V72,\">1\")+SUMIF('2011 Survey responses'!X72,\">1\")+SUMIF('2011 Survey responses'!AA72,\">1\"))/(COUNTIF('2011 Survey responses'!V72,\">1\")+COUNTIF('2011 Survey responses'!X72,\">1\")+COUNTIF('2011 Survey responses'!AA72,\">1\"))))","v":2.6666666666666665},{"$f":"IF(('2011 Survey responses'!V72+'2011 Survey responses'!Y72+'2011 Survey responses'!AA72)<3.1,\"\",((SUMIF('2011 Survey responses'!V72,\">1\")+SUMIF('2011 Survey responses'!Y72,\">1\")+SUMIF('2011 Survey responses'!AA72,\">1\"))/(COUNTIF('2011 Survey responses'!V72,\">1\")+COUNTIF('2011 Survey responses'!Y72,\">1\")+COUNTIF('2011 Survey responses'!AA72,\">1\"))))","v":2.6666666666666665},{"$f":"IF(SUM('2011 Survey responses'!AB72:AH72)<1,\"\",(AVERAGEIFS('2011 Survey responses'!AB72:AH72,'2011 Survey responses'!AB72:AH72,\">1\")))","v":2.2857142857142856},{"$f":"IF(SUM('2011 Survey responses'!AI72:AO72)<7.1,\"\",(AVERAGEIFS('2011 Survey responses'!AI72:AO72,'2011 Survey responses'!AI72:AO72,\">1\")))","v":2},{"$f":"IF(('2011 Survey responses'!AH72)<1.1,\"\",('2011 Survey responses'!AH72))","v":2},{"$f":"IF(SUM('2011 Survey responses'!AP72:BV72)<1,\"\",(AVERAGEIFS('2011 Survey responses'!AP72:BV72,'2011 Survey responses'!AP72:BV72,\">1\")))","v":2.8888888888888888},{"$f":"IF(SUM('2011 Survey responses'!AP72:AS72)<4.1,\"\",(AVERAGEIFS('2011 Survey responses'!AP72:AS72,'2011 Survey responses'!AP72:AS72,\">1\")))","v":3.25},{"$f":"IF(SUM('2011 Survey responses'!AT72:BF72)<1,\"\",(AVERAGEIFS('2011 Survey responses'!AT72:BF72,'2011 Survey responses'!AT72:BF72,\">1\")))","v":2.75},{"$f":"IF(SUM('2011 Survey responses'!BG72:BO72)<1,\"\",(AVERAGEIFS('2011 Survey responses'!BG72:BO72,'2011 Survey responses'!BG72:BO72,\">1\")))","v":3},{"$f":"IF(SUM('2011 Survey responses'!BP72:BS72)<1,\"\",(AVERAGEIFS('2011 Survey responses'!BP72:BS72,'2011 Survey responses'!BP72:BS72,\">1\")))","v":2.6666666666666665},{"$f":"IF(SUM('2011 Survey responses'!BT72:BV72)<3.1,\"\",(AVERAGEIFS('2011 Survey responses'!BT72:BV72,'2011 Survey responses'!BT72:BV72,\">1\")))","v":3},{"$f":"IF(('2011 Survey responses'!AQ72+'2011 Survey responses'!AR72+'2011 Survey responses'!BG72)<3.1,\"\",((SUMIF('2011 Survey responses'!AQ72,\">1\")+SUMIF('2011 Survey responses'!AR72,\">1\")+SUMIF('2011 Survey responses'!BG72,\">1\"))/(COUNTIF('2011 Survey responses'!AQ72,\">1\")+COUNTIF('2011 Survey responses'!AR72,\">1\")+COUNTIF('2011 Survey responses'!BG72,\">1\"))))","v":3.3333333333333335},{"$f":"IF(SUM('2011 Survey responses'!AP72:AS72)<4.1,\"\",(AVERAGEIFS('2011 Survey responses'!AP72:AS72,'2011 Survey responses'!AP72:AS72,\">1\")))","v":3.25},{"$f":"IF(('2011 Survey responses'!AU72+'2011 Survey responses'!AX72+'2011 Survey responses'!BA72+'2011 Survey responses'!BC72+'2011 Survey responses'!BD72)<5.1,\"\",(SUMIF('2011 Survey responses'!AU72,\">1\")+SUMIF('2011 Survey responses'!AX72,\">1\")+SUMIF('2011 Survey responses'!BA72,\">1\")+SUMIF('2011 Survey responses'!BC72,\">1\")+SUMIF('2011 Survey responses'!BD72,\">1\"))/(COUNTIF('2011 Survey responses'!AU72,\">1\")+COUNTIF('2011 Survey responses'!AX72,\">1\")+COUNTIF('2011 Survey responses'!BA72,\">1\")+COUNTIF('2011 Survey responses'!BC72,\">1\")+COUNTIF('2011 Survey responses'!BD72,\">1\")))","v":2.3333333333333335},{"$f":"IF(('2011 Survey responses'!AT72)<1.1,\"\",('2011 Survey responses'!AT72))","v":""},{"$f":"IF(SUM('2011 Survey responses'!AV72:AW72)<2.1,\"\",(AVERAGEIFS('2011 Survey responses'!AV72:AW72,'2011 Survey responses'!AV72:AW72,\">1\")))","v":2},{"$f":"IF(('2011 Survey responses'!AW72+'2011 Survey responses'!AY72)<2.1,\"\",(SUMIF('2011 Survey responses'!AW72,\">1\")+SUMIF('2011 Survey responses'!AY72,\">1\"))/(COUNTIF('2011 Survey responses'!AW72,\">1\")+COUNTIF('2011 Survey responses'!AY72,\">1\")))","v":2},{"$f":"IF(('2011 Survey responses'!AZ72)<1.1,\"\",('2011 Survey responses'!AZ72))","v":2},2,1,1,1,{"$f":"IF(('2011 Survey responses'!BE72)<1.1,\"\",('2011 Survey responses'!BE72))","v":4},{"$f":"IF(('2011 Survey responses'!AY72+'2011 Survey responses'!BB72+'2011 Survey responses'!BF72)<3.1,\"\",(SUMIF('2011 Survey responses'!AY72,\">1\")+SUMIF('2011 Survey responses'!BB72,\">1\")+SUMIF('2011 Survey responses'!BF72,\">1\"))/(COUNTIF('2011 Survey responses'!AY72,\">1\")+COUNTIF('2011 Survey responses'!BB72,\">1\")+COUNTIF('2011 Survey responses'!BF72,\">1\")))","v":3.5},2.833333333333333,{"$f":"IF(SUM('2011 Survey responses'!BT72:BV72)<3.1,\"\",(AVERAGEIFS('2011 Survey responses'!BT72:BV72,'2011 Survey responses'!BT72:BV72,\">1\")))","v":3},{"$f":"IF(SUM('2011 Survey responses'!BW72:CP72)<20.1,\"\",(AVERAGEIFS('2011 Survey responses'!BW72:CP72,'2011 Survey responses'!BW72:CP72,\">1\")))","v":""},{"$f":"IF(SUM('2011 Survey responses'!BW72:CF72)<10.1,\"\",(AVERAGEIFS('2011 Survey responses'!BW72:CF72,'2011 Survey responses'!BW72:CF72,\">1\")))","v":""},{"$f":"IF(SUM('2011 Survey responses'!CG72:CP72)<10.1,\"\",(AVERAGEIFS('2011 Survey responses'!CG72:CP72,'2011 Survey responses'!CG72:CP72,\">1\")))","v":""},{"$f":"IF(SUM('2011 Survey responses'!BX72:CF72)<1,\"\",(AVERAGEIFS('2011 Survey responses'!BX72:CF72,'2011 Survey responses'!BX72:CF72,\">1\")))","v":{"$error":"#DIV/0!"}},{"$f":"IF(SUM('2011 Survey responses'!CH72:CP72)<1,\"\",(AVERAGEIFS('2011 Survey responses'!CH72:CP72,'2011 Survey responses'!CH72:CP72,\">1\")))","v":{"$error":"#DIV/0!"}},{"$f":"IF(SUM('2011 Survey responses'!BW72:CP72)<1,\"\",(AVERAGEIFS('2011 Survey responses'!BW72:CP72,'2011 Survey responses'!BW72:CP72,\">1\")))","v":{"$error":"#DIV/0!"}},{"$f":"IF(('2011 Survey responses'!BW72+'2011 Survey responses'!CG72)<2.1,\"\",(SUMIF('2011 Survey responses'!BW72,\">1\")+SUMIF('2011 Survey responses'!CG72,\">1\"))/(COUNTIF('2011 Survey responses'!BW72,\">1\")+COUNTIF('2011 Survey responses'!CG72,\">1\")))","v":""},{"$f":"IF(('2011 Survey responses'!BX72+'2011 Survey responses'!CH72)<2.1,\"\",(SUMIF('2011 Survey responses'!BX72,\">1\")+SUMIF('2011 Survey responses'!CH72,\">1\"))/(COUNTIF('2011 Survey responses'!BX72,\">1\")+COUNTIF('2011 Survey responses'!CH72,\">1\")))","v":""},{"$f":"IF(('2011 Survey responses'!BY72+'2011 Survey responses'!CI72)<2.1,\"\",(SUMIF('2011 Survey responses'!BY72,\">1\")+SUMIF('2011 Survey responses'!CI72,\">1\"))/(COUNTIF('2011 Survey responses'!BY72,\">1\")+COUNTIF('2011 Survey responses'!CI72,\">1\")))","v":""},{"$f":"IF('2011 Survey responses'!CQ72<0.5,\"\",'2011 Survey responses'!CQ72)","v":1},{"$f":"IF('2011 Survey responses'!CR72<0.5,\"\",'2011 Survey responses'!CR72)","v":5},{"$f":"IF('2011 Survey responses'!CS72<0.5,\"\",'2011 Survey responses'!CS72)","v":4},{"$f":"IF('2011 Survey responses'!CT72<0.5,\"\",'2011 Survey responses'!CT72)","v":1},{"$f":"IF('2011 Survey responses'!CU72<0.5,\"\",'2011 Survey responses'!CU72)","v":1},{"$f":"IF('2011 Survey responses'!CV72<0.5,\"\",'2011 Survey responses'!CV72)","v":1},{"$f":"IF(SUM('2011 Survey responses'!CW72:DL72)<1,\"\",(AVERAGE('2011 Survey responses'!CW72:DL72)))","v":1},{"$f":"IF(SUM('2011 Survey responses'!CW72:CZ72)<1,\"\",(AVERAGE('2011 Survey responses'!CW72:CZ72)))","v":1},{"$f":"IF(SUM('2011 Survey responses'!DA72:DD72)<1,\"\",(AVERAGE('2011 Survey responses'!DA72:DD72)))","v":1},{"$f":"IF(SUM('2011 Survey responses'!DE72:DH72)<1,\"\",(AVERAGE('2011 Survey responses'!DE72:DH72)))","v":1},{"$f":"IF(SUM('2011 Survey responses'!DI72:DL72)<1,\"\",(AVERAGE('2011 Survey responses'!DI72:DL72)))","v":1},{"$f":"IF(('2011 Survey responses'!CW72+'2011 Survey responses'!DA72+'2011 Survey responses'!DE72+'2011 Survey responses'!DI72)<1,\"\",AVERAGE('2011 Survey responses'!CW72,'2011 Survey responses'!DA72,'2011 Survey responses'!DE72,'2011 Survey responses'!DI72))","v":1},{"$f":"IF(('2011 Survey responses'!CX72+'2011 Survey responses'!DB72+'2011 Survey responses'!DF72+'2011 Survey responses'!DJ72)<1,\"\",AVERAGE('2011 Survey responses'!CX72,'2011 Survey responses'!DB72,'2011 Survey responses'!DF72,'2011 Survey responses'!DJ72))","v":1},{"$f":"IF(('2011 Survey responses'!CY72+'2011 Survey responses'!DC72+'2011 Survey responses'!DG72+'2011 Survey responses'!DK72)<1,\"\",AVERAGE('2011 Survey responses'!CY72,'2011 Survey responses'!DC72,'2011 Survey responses'!DG72,'2011 Survey responses'!DK72))","v":1},{"$f":"IF(('2011 Survey responses'!CZ72+'2011 Survey responses'!DD72+'2011 Survey responses'!DH72+'2011 Survey responses'!DL72)<1,\"\",AVERAGE('2011 Survey responses'!CZ72,'2011 Survey responses'!DD72,'2011 Survey responses'!DH72,'2011 Survey responses'!DL72))","v":1},{"$f":"IF('2011 Survey responses'!CW72<0.5,\"\",'2011 Survey responses'!CW72)","v":1},{"$f":"IF('2011 Survey responses'!CX72<0.5,\"\",'2011 Survey responses'!CX72)","v":1},{"$f":"IF('2011 Survey responses'!CY72<0.5,\"\",'2011 Survey responses'!CY72)","v":1},{"$f":"IF('2011 Survey responses'!CZ72<0.5,\"\",'2011 Survey responses'!CZ72)","v":1},{"$f":"IF('2011 Survey responses'!DA72<0.5,\"\",'2011 Survey responses'!DA72)","v":1},{"$f":"IF('2011 Survey responses'!DB72<0.5,\"\",'2011 Survey responses'!DB72)","v":1},{"$f":"IF('2011 Survey responses'!DC72<0.5,\"\",'2011 Survey responses'!DC72)","v":1},{"$f":"IF('2011 Survey responses'!DD72<0.5,\"\",'2011 Survey responses'!DD72)","v":1},{"$f":"IF('2011 Survey responses'!DE72<0.5,\"\",'2011 Survey responses'!DE72)","v":1},{"$f":"IF('2011 Survey responses'!DF72<0.5,\"\",'2011 Survey responses'!DF72)","v":1},{"$f":"IF('2011 Survey responses'!DG72<0.5,\"\",'2011 Survey responses'!DG72)","v":1},{"$f":"IF('2011 Survey responses'!DH72<0.5,\"\",'2011 Survey responses'!DH72)","v":1},{"$f":"IF('2011 Survey responses'!DI72<0.5,\"\",'2011 Survey responses'!DI72)","v":1},{"$f":"IF('2011 Survey responses'!DJ72<0.5,\"\",'2011 Survey responses'!DJ72)","v":1},{"$f":"IF('2011 Survey responses'!DK72<0.5,\"\",'2011 Survey responses'!DK72)","v":1},{"$f":"IF('2011 Survey responses'!DL72<0.5,\"\",'2011 Survey responses'!DL72)","v":1},{"$f":"IF('2011 Survey responses'!DU72=4,4,IF('2011 Survey responses'!DU72=5,4,\"\"))","v":4},{"$f":"IF('2011 Survey responses'!DV72=4,3,IF('2011 Survey responses'!DV72=5,3,\"\"))","v":3},2,{"$f":"IF(CQ72=2,CQ72,IF(CO72=4,CO72,IF(CP72=3,CP72,IF('2011 Survey responses'!GT72=1,1,\"\"))))","v":2},{"$f":"IF('2011 Survey responses'!DO72<0.5,\"\",'2011 Survey responses'!DO72)","v":5},{"$f":"IF('2011 Survey responses'!DP72<0.5,\"\",'2011 Survey responses'!DP72)","v":4},{"$f":"IF('2011 Survey responses'!DQ72<0.5,\"\",'2011 Survey responses'!DQ72)","v":4},{"$f":"IF('2011 Survey responses'!DR72<0.5,\"\",'2011 Survey responses'!DR72)","v":5},{"$f":"IF('2011 Survey responses'!DS72<0.5,\"\",'2011 Survey responses'!DS72)","v":4},{"$f":"IF('2011 Survey responses'!DT72<0.5,\"\",'2011 Survey responses'!DT72)","v":5},{"$f":"IF('2011 Survey responses'!DU72<0.5,\"\",'2011 Survey responses'!DU72)","v":4},{"$f":"IF('2011 Survey responses'!DV72<0.5,\"\",'2011 Survey responses'!DV72)","v":4},{"$f":"IF('2011 Survey responses'!DW72<0.5,\"\",'2011 Survey responses'!DW72)","v":4},{"$f":"IF('2011 Survey responses'!DX72<0.5,\"\",'2011 Survey responses'!DX72)","v":4},{"$f":"IF('2011 Survey responses'!DY72<0.5,\"\",'2011 Survey responses'!DY72)","v":4},{"$f":"IF('2011 Survey responses'!DZ72<0.5,\"\",'2011 Survey responses'!DZ72)","v":4},{"$f":"IF('2011 Survey responses'!EA72<0.5,\"\",'2011 Survey responses'!EA72)","v":3},{"$f":"IF('2011 Survey responses'!EB72<0.5,\"\",'2011 Survey responses'!EB72)","v":5},{"$f":"IF('2011 Survey responses'!EC72<0.5,\"\",'2011 Survey responses'!EC72)","v":3},{"$f":"IF('2011 Survey responses'!ED72<0.5,\"\",'2011 Survey responses'!ED72)","v":5},{"$f":"IF('2011 Survey responses'!EE72<0.5,\"\",'2011 Survey responses'!EE72)","v":3},{"$f":"IF('2011 Survey responses'!EF72<0.5,\"\",'2011 Survey responses'!EF72)","v":5},{"$f":"IF('2011 Survey responses'!EG72<0.5,\"\",'2011 Survey responses'!EG72)","v":4},{"$f":"IF('2011 Survey responses'!EH72<0.5,\"\",'2011 Survey responses'!EH72)","v":5},{"$f":"IF('2011 Survey responses'!EI72<0.5,\"\",'2011 Survey responses'!EI72)","v":4},{"$f":"IF('2011 Survey responses'!EJ72<0.5,\"\",'2011 Survey responses'!EJ72)","v":4},{"$f":"IF('2011 Survey responses'!EK72<0.5,\"\",'2011 Survey responses'!EK72)","v":4},{"$f":"IF('2011 Survey responses'!EL72<0.5,\"\",'2011 Survey responses'!EL72)","v":4},{"$f":"IF('2011 Survey responses'!EM72<0.5,\"\",'2011 Survey responses'!EM72)","v":5},{"$f":"IF('2011 Survey responses'!EN72<0.5,\"\",'2011 Survey responses'!EN72)","v":5},{"$f":"IF('2011 Survey responses'!EO72<0.5,\"\",'2011 Survey responses'!EO72)","v":4},{"$f":"IF('2011 Survey responses'!EP72<0.5,\"\",'2011 Survey responses'!EP72)","v":4},{"$f":"IF(('2011 Survey responses'!EW72+'2011 Survey responses'!EX72)>=2,AVERAGE('2011 Survey responses'!EW72,'2011 Survey responses'!EY72),\"\")","v":5},{"$f":"IF('2011 Survey responses'!EX72<0.5,\"\",'2011 Survey responses'!EX72)","v":5},{"$f":"IF('2011 Survey responses'!EZ72<0.5,\"\",'2011 Survey responses'!EZ72)","v":4},{"$f":"IF('2011 Survey responses'!FB72<0.5,\"\",'2011 Survey responses'!FB72)","v":5},{"$f":"IF('2011 Survey responses'!FD72<0.5,\"\",'2011 Survey responses'!FD72)","v":5},{"$f":"IF('2011 Survey responses'!FC72<0.5,\"\",'2011 Survey responses'!FC72)","v":4},{"$f":"IF(('2011 Survey responses'!EM72+'2011 Survey responses'!EN72)>=2,AVERAGE('2011 Survey responses'!EM72,'2011 Survey responses'!EN72),\"\")","v":5},{"$f":"IF('2011 Survey responses'!ES72<0.5,\"\",'2011 Survey responses'!ES72)","v":4},{"$f":"IF(('2011 Survey responses'!ET72+'2011 Survey responses'!EU72)>=2,AVERAGE('2011 Survey responses'!ET72,'2011 Survey responses'!EU72),\"\")","v":4},{"$f":"IF('2011 Survey responses'!EV72<0.5,\"\",'2011 Survey responses'!EV72)","v":3},{"$f":"IF('2011 Survey responses'!FA72<0.5,\"\",'2011 Survey responses'!FA72)","v":5},{"$f":"IF('2011 Survey responses'!ER72<0.5,\"\",'2011 Survey responses'!ER72)","v":4},{"$f":"IF(('2011 Survey responses'!EO72+'2011 Survey responses'!EP72)>=2,AVERAGE('2011 Survey responses'!EO72,'2011 Survey responses'!EP72),\"\")","v":4},{"$f":"IF('2011 Survey responses'!EQ72<0.5,\"\",'2011 Survey responses'!EQ72)","v":3},{"$f":"IF('2011 Survey responses'!ET72<0.5,\"\",'2011 Survey responses'!ET72)","v":4},{"$f":"IF('2011 Survey responses'!EU72<0.5,\"\",'2011 Survey responses'!EU72)","v":4},{"$f":"IF('2011 Survey responses'!EW72<0.5,\"\",'2011 Survey responses'!EW72)","v":5},{"$f":"IF('2011 Survey responses'!EY72<0.5,\"\",'2011 Survey responses'!EY72)","v":5},{"$f":"IF('2011 Survey responses'!FU72<0.5,\"\",'2011 Survey responses'!FU72)","v":4},{"$f":"IF(('2011 Survey responses'!FL72+'2011 Survey responses'!FM72)>=2,AVERAGE('2011 Survey responses'!FL72,'2011 Survey responses'!FM72),\"\")","v":5},{"$f":"IF(('2011 Survey responses'!FO72+'2011 Survey responses'!FQ72)>=2,AVERAGE('2011 Survey responses'!FO72,'2011 Survey responses'!FQ72),\"\")","v":5},{"$f":"IF('2011 Survey responses'!FJ72<0.5,\"\",'2011 Survey responses'!FJ72)","v":5},{"$f":"IF('2011 Survey responses'!FT72<0.5,\"\",'2011 Survey responses'!FT72)","v":5},{"$f":"IF('2011 Survey responses'!FR72<0.5,\"\",'2011 Survey responses'!FR72)","v":4},{"$f":"IF('2011 Survey responses'!FK72<0.5,\"\",'2011 Survey responses'!FK72)","v":5},{"$f":"IF('2011 Survey responses'!FP72<0.5,\"\",'2011 Survey responses'!FP72)","v":5},{"$f":"IF('2011 Survey responses'!FN72<0.5,\"\",'2011 Survey responses'!FN72)","v":4},{"$f":"IF(('2011 Survey responses'!FE72+'2011 Survey responses'!FF72)>=2,AVERAGE('2011 Survey responses'!FE72,'2011 Survey responses'!FF72),\"\")","v":5},{"$f":"IF('2011 Survey responses'!FS72<0.5,\"\",'2011 Survey responses'!FS72)","v":4},{"$f":"IF('2011 Survey responses'!FV72<0.5,\"\",'2011 Survey responses'!FV72)","v":5},{"$f":"IF(('2011 Survey responses'!FG72+'2011 Survey responses'!FH72)>=2,AVERAGE('2011 Survey responses'!FG72,'2011 Survey responses'!FH72),\"\")","v":4},{"$f":"IF('2011 Survey responses'!FI72<0.5,\"\",'2011 Survey responses'!FI72)","v":4},{"$f":"IF('2011 Survey responses'!FE72<0.5,\"\",'2011 Survey responses'!FE72)","v":5},{"$f":"IF('2011 Survey responses'!FF72<0.5,\"\",'2011 Survey responses'!FF72)","v":5},{"$f":"IF('2011 Survey responses'!FG72<0.5,\"\",'2011 Survey responses'!FG72)","v":4},{"$f":"IF('2011 Survey responses'!FH72<0.5,\"\",'2011 Survey responses'!FH72)","v":4},{"$f":"IF('2011 Survey responses'!FL72<0.5,\"\",'2011 Survey responses'!FL72)","v":5},{"$f":"IF('2011 Survey responses'!FM72<0.5,\"\",'2011 Survey responses'!FM72)","v":5},{"$f":"IF('2011 Survey responses'!FO72<0.5,\"\",'2011 Survey responses'!FO72)","v":5},{"$f":"IF('2011 Survey responses'!FQ72<0.5,\"\",'2011 Survey responses'!FQ72)","v":5}]
["Guinea-Bissau",{"$f":"IF(SUM(F73)<1,\"\",AVERAGEIF('2011 Survey responses'!B73:CP73,\">1\"))","v":""},{"$f":"IF(SUM(F73)<1,\"\",AVERAGEIF('2011 Survey responses'!B73:AO73,\">1\"))","v":""},{"$f":"IF(SUM(F73)<1,\"\",AVERAGEIF('2011 Survey responses'!B73:BV73,\">1\"))","v":""},{"$f":"IF(SUM(F73)<1,\"\",AVERAGEIF('2011 Survey responses'!V73:BV73,\">1\"))","v":""},{"$f":"IF(SUM('2011 Survey responses'!B73:U73)<1,\"\",(AVERAGEIFS('2011 Survey responses'!B73:U73,'2011 Survey responses'!B73:U73,\">1\")))","v":""},{"$f":"IF(SUM('2011 Survey responses'!B73:H73)<1,\"\",(AVERAGEIFS('2011 Survey responses'!B73:H73,'2011 Survey responses'!B73:H73,\">1\")))","v":""},{"$f":"IF(SUM('2011 Survey responses'!I73:S73)<1,\"\",(AVERAGEIFS('2011 Survey responses'!I73:S73,'2011 Survey responses'!I73:S73,\">1\")))","v":""},{"$f":"IF(SUM('2011 Survey responses'!T73:U73)<2.1,\"\",(AVERAGEIFS('2011 Survey responses'!T73:U73,'2011 Survey responses'!T73:U73,\">1\")))","v":""},{"$f":"IF(SUM('2011 Survey responses'!B73:C73)<2.1,\"\",((SUMIF('2011 Survey responses'!B73:C73,\">1\")+SUMIF('2011 Survey responses'!F73,\">1\"))/(COUNTIF('2011 Survey responses'!B73:C73,\">1\")+COUNTIF('2011 Survey responses'!F73,\">1\"))))","v":""},{"$f":"IF(SUM('2011 Survey responses'!D73:E73)<2.1,\"\",(AVERAGEIFS('2011 Survey responses'!D73:E73,'2011 Survey responses'!D73:E73,\">1\")))","v":""},{"$f":"IF(('2011 Survey responses'!B73+'2011 Survey responses'!D73)<2.1,\"\",((SUMIF('2011 Survey responses'!B73,\">1\")+SUMIF('2011 Survey responses'!D73,\">1\")+SUMIF('2011 Survey responses'!F73,\">1\")+SUMIF('2011 Survey responses'!K73,\">1\"))/(COUNTIF('2011 Survey responses'!B73,\">1\")+COUNTIF('2011 Survey responses'!D73,\">1\")+COUNTIF('2011 Survey responses'!F73,\">1\")+COUNTIF('2011 Survey responses'!K73,\">1\"))))","v":""},{"$f":"IF(SUM('2011 Survey responses'!G73:H73)<2.1,\"\",(AVERAGEIFS('2011 Survey responses'!G73:H73,'2011 Survey responses'!G73:H73,\">1\")))","v":""},{"$f":"IF(SUM('2011 Survey responses'!F73:G73)<1.5,\"\",MAX('2011 Survey responses'!F73,'2011 Survey responses'!G73))","v":""},{"$f":"IF(SUM('2011 Survey responses'!G73:H73)<1,\"\",MAX('2011 Survey responses'!G73,'2011 Survey responses'!H73))","v":""},{"$f":"IF(SUM('2011 Survey responses'!I73:L73)<4.1,\"\",(AVERAGEIFS('2011 Survey responses'!I73:L73,'2011 Survey responses'!I73:L73,\">1\")))","v":""},{"$f":"IF(SUM('2011 Survey responses'!M73:S73)<4.1,\"\",(AVERAGEIFS('2011 Survey responses'!M73:S73,'2011 Survey responses'!M73:S73,\">1\")))","v":""},{"$f":"IF(SUM('2011 Survey responses'!T73:U73)<2.1,\"\",(AVERAGEIFS('2011 Survey responses'!T73:U73,'2011 Survey responses'!T73:U73,\">1\")))","v":""},{"$f":"IF(SUM('2011 Survey responses'!V73:AO73)<1,\"\",(AVERAGEIFS('2011 Survey responses'!V73:AO73,'2011 Survey responses'!V73:AO73,\">1\")))","v":""},{"$f":"IF(SUM('2011 Survey responses'!V73:AA73)<1,\"\",(AVERAGEIFS('2011 Survey responses'!V73:AA73,'2011 Survey responses'!V73:AA73,\">1\")))","v":""},{"$f":"IF(SUM('2011 Survey responses'!AB73:AH73)<1,\"\",(AVERAGEIFS('2011 Survey responses'!AB73:AH73,'2011 Survey responses'!AB73:AH73,\">1\")))","v":""},{"$f":"IF(SUM('2011 Survey responses'!AI73:AO73)<1,\"\",(AVERAGEIFS('2011 Survey responses'!AI73:AO73,'2011 Survey responses'!AI73:AO73,\">1\")))","v":""},{"$f":"IF(('2011 Survey responses'!Y73+'2011 Survey responses'!AI73+'2011 Survey responses'!AK73)<3.1,\"\",((SUMIF('2011 Survey responses'!Y73,\">1\")+SUMIF('2011 Survey responses'!AI73,\">1\")+SUMIF('2011 Survey responses'!AK73,\">1\")+SUMIF('2011 Survey responses'!AM73,\">1\"))/(COUNTIF('2011 Survey responses'!Y73,\">1\")+COUNTIF('2011 Survey responses'!AI73,\">1\")+COUNTIF('2011 Survey responses'!AK73,\">1\")+COUNTIF('2011 Survey responses'!AM73,\">1\"))))","v":""},{"$f":"IF(('2011 Survey responses'!W73)<1.1,\"\",('2011 Survey responses'!W73))","v":""},{"$f":"IF(('2011 Survey responses'!Y73)<1.1,\"\",('2011 Survey responses'!Y73))","v":""},{"$f":"IF(('2011 Survey responses'!Z73)<1.1,\"\",('2011 Survey responses'!Z73))","v":""},{"$f":"IF(('2011 Survey responses'!V73+'2011 Survey responses'!X73+'2011 Survey responses'!AA73)<3.1,\"\",((SUMIF('2011 Survey responses'!V73,\">1\")+SUMIF('2011 Survey responses'!X73,\">1\")+SUMIF('2011 Survey responses'!AA73,\">1\"))/(COUNTIF('2011 Survey responses'!V73,\">1\")+COUNTIF('2011 Survey responses'!X73,\">1\")+COUNTIF('2011 Survey responses'!AA73,\">1\"))))","v":""},{"$f":"IF(('2011 Survey responses'!V73+'2011 Survey responses'!Y73+'2011 Survey responses'!AA73)<3.1,\"\",((SUMIF('2011 Survey responses'!V73,\">1\")+SUMIF('2011 Survey responses'!Y73,\">1\")+SUMIF('2011 Survey responses'!AA73,\">1\"))/(COUNTIF('2011 Survey responses'!V73,\">1\")+COUNTIF('2011 Survey responses'!Y73,\">1\")+COUNTIF('2011 Survey responses'!AA73,\">1\"))))","v":""},{"$f":"IF(SUM('2011 Survey responses'!AB73:AH73)<1,\"\",(AVERAGEIFS('2011 Survey responses'!AB73:AH73,'2011 Survey responses'!AB73:AH73,\">1\")))","v":""},{"$f":"IF(SUM('2011 Survey responses'!AI73:AO73)<7.1,\"\",(AVERAGEIFS('2011 Survey responses'!AI73:AO73,'2011 Survey responses'!AI73:AO73,\">1\")))","v":""},{"$f":"IF(('2011 Survey responses'!AH73)<1.1,\"\",('2011 Survey responses'!AH73))","v":""},{"$f":"IF(SUM('2011 Survey responses'!AP73:BV73)<1,\"\",(AVERAGEIFS('2011 Survey responses'!AP73:BV73,'2011 Survey responses'!AP73:BV73,\">1\")))","v":""},{"$f":"IF(SUM('2011 Survey responses'!AP73:AS73)<4.1,\"\",(AVERAGEIFS('2011 Survey responses'!AP73:AS73,'2011 Survey responses'!AP73:AS73,\">1\")))","v":""},{"$f":"IF(SUM('2011 Survey responses'!AT73:BF73)<1,\"\",(AVERAGEIFS('2011 Survey responses'!AT73:BF73,'2011 Survey responses'!AT73:BF73,\">1\")))","v":""},{"$f":"IF(SUM('2011 Survey responses'!BG73:BO73)<1,\"\",(AVERAGEIFS('2011 Survey responses'!BG73:BO73,'2011 Survey responses'!BG73:BO73,\">1\")))","v":""},{"$f":"IF(SUM('2011 Survey responses'!BP73:BS73)<1,\"\",(AVERAGEIFS('2011 Survey responses'!BP73:BS73,'2011 Survey responses'!BP73:BS73,\">1\")))","v":""},{"$f":"IF(SUM('2011 Survey responses'!BT73:BV73)<3.1,\"\",(AVERAGEIFS('2011 Survey responses'!BT73:BV73,'2011 Survey responses'!BT73:BV73,\">1\")))","v":""},{"$f":"IF(('2011 Survey responses'!AQ73+'2011 Survey responses'!AR73+'2011 Survey responses'!BG73)<3.1,\"\",((SUMIF('2011 Survey responses'!AQ73,\">1\")+SUMIF('2011 Survey responses'!AR73,\">1\")+SUMIF('2011 Survey responses'!BG73,\">1\"))/(COUNTIF('2011 Survey responses'!AQ73,\">1\")+COUNTIF('2011 Survey responses'!AR73,\">1\")+COUNTIF('2011 Survey responses'!BG73,\">1\"))))","v":""},{"$f":"IF(SUM('2011 Survey responses'!AP73:AS73)<4.1,\"\",(AVERAGEIFS('2011 Survey responses'!AP73:AS73,'2011 Survey responses'!AP73:AS73,\">1\")))","v":""},{"$f":"IF(('2011 Survey responses'!AU73+'2011 Survey responses'!AX73+'2011 Survey responses'!BA73+'2011 Survey responses'!BC73+'2011 Survey responses'!BD73)<5.1,\"\",(SUMIF('2011 Survey responses'!AU73,\">1\")+SUMIF('2011 Survey responses'!AX73,\">1\")+SUMIF('2011 Survey responses'!BA73,\">1\")+SUMIF('2011 Survey responses'!BC73,\">1\")+SUMIF('2011 Survey responses'!BD73,\">1\"))/(COUNTIF('2011 Survey responses'!AU73,\">1\")+COUNTIF('2011 Survey responses'!AX73,\">1\")+COUNTIF('2011 Survey responses'!BA73,\">1\")+COUNTIF('2011 Survey responses'!BC73,\">1\")+COUNTIF('2011 Survey responses'!BD73,\">1\")))","v":""},{"$f":"IF(('2011 Survey responses'!AT73)<1.1,\"\",('2011 Survey responses'!AT73))","v":""},{"$f":"IF(SUM('2011 Survey responses'!AV73:AW73)<2.1,\"\",(AVERAGEIFS('2011 Survey responses'!AV73:AW73,'2011 Survey responses'!AV73:AW73,\">1\")))","v":""},{"$f":"IF(('2011 Survey responses'!AW73+'2011 Survey responses'!AY73)<2.1,\"\",(SUMIF('2011 Survey responses'!AW73,\">1\")+SUMIF('2011 Survey responses'!AY73,\">1\"))/(COUNTIF('2011 Survey responses'!AW73,\">1\")+COUNTIF('2011 Survey responses'!AY73,\">1\")))","v":""},{"$f":"IF(('2011 Survey responses'!AZ73)<1.1,\"\",('2011 Survey responses'!AZ73))","v":""},null,null,null,null,{"$f":"IF(('2011 Survey responses'!BE73)<1.1,\"\",('2011 Survey responses'!BE73))","v":""},{"$f":"IF(('2011 Survey responses'!AY73+'2011 Survey responses'!BB73+'2011 Survey responses'!BF73)<3.1,\"\",(SUMIF('2011 Survey responses'!AY73,\">1\")+SUMIF('2011 Survey responses'!BB73,\">1\")+SUMIF('2011 Survey responses'!BF73,\">1\"))/(COUNTIF('2011 Survey responses'!AY73,\">1\")+COUNTIF('2011 Survey responses'!BB73,\">1\")+COUNTIF('2011 Survey responses'!BF73,\">1\")))","v":""},"",{"$f":"IF(SUM('2011 Survey responses'!BT73:BV73)<3.1,\"\",(AVERAGEIFS('2011 Survey responses'!BT73:BV73,'2011 Survey responses'!BT73:BV73,\">1\")))","v":""},{"$f":"IF(SUM('2011 Survey responses'!BW73:CP73)<1,\"\",(AVERAGEIFS('2011 Survey responses'!BW73:CP73,'2011 Survey responses'!BW73:CP73,\">1\")))","v":""},{"$f":"IF(SUM('2011 Survey responses'!BW73:CF73)<1,\"\",(AVERAGEIFS('2011 Survey responses'!BW73:CF73,'2011 Survey responses'!BW73:CF73,\">1\")))","v":""},{"$f":"IF(SUM('2011 Survey responses'!CG73:CP73)<1,\"\",(AVERAGEIFS('2011 Survey responses'!CG73:CP73,'2011 Survey responses'!CG73:CP73,\">1\")))","v":""},{"$f":"IF(SUM('2011 Survey responses'!BX73:CF73)<1,\"\",(AVERAGEIFS('2011 Survey responses'!BX73:CF73,'2011 Survey responses'!BX73:CF73,\">1\")))","v":""},{"$f":"IF(SUM('2011 Survey responses'!CH73:CP73)<1,\"\",(AVERAGEIFS('2011 Survey responses'!CH73:CP73,'2011 Survey responses'!CH73:CP73,\">1\")))","v":""},{"$f":"IF(SUM('2011 Survey responses'!BW73:CP73)<1,\"\",(AVERAGEIFS('2011 Survey responses'!BW73:CP73,'2011 Survey responses'!BW73:CP73,\">1\")))","v":""},{"$f":"IF(('2011 Survey responses'!BW73+'2011 Survey responses'!CG73)<2.1,\"\",(SUMIF('2011 Survey responses'!BW73,\">1\")+SUMIF('2011 Survey responses'!CG73,\">1\"))/(COUNTIF('2011 Survey responses'!BW73,\">1\")+COUNTIF('2011 Survey responses'!CG73,\">1\")))","v":""},{"$f":"IF(('2011 Survey responses'!BX73+'2011 Survey responses'!CH73)<2.1,\"\",(SUMIF('2011 Survey responses'!BX73,\">1\")+SUMIF('2011 Survey responses'!CH73,\">1\"))/(COUNTIF('2011 Survey responses'!BX73,\">1\")+COUNTIF('2011 Survey responses'!CH73,\">1\")))","v":""},{"$f":"IF(('2011 Survey responses'!BY73+'2011 Survey responses'!CI73)<2.1,\"\",(SUMIF('2011 Survey responses'!BY73,\">1\")+SUMIF('2011 Survey responses'!CI73,\">1\"))/(COUNTIF('2011 Survey responses'!BY73,\">1\")+COUNTIF('2011 Survey responses'!CI73,\">1\")))","v":""},{"$f":"IF('2011 Survey responses'!CQ73<0.5,\"\",'2011 Survey responses'!CQ73)","v":""},{"$f":"IF('2011 Survey responses'!CR73<0.5,\"\",'2011 Survey responses'!CR73)","v":""},{"$f":"IF('2011 Survey responses'!CS73<0.5,\"\",'2011 Survey responses'!CS73)","v":""},{"$f":"IF('2011 Survey responses'!CT73<0.5,\"\",'2011 Survey responses'!CT73)","v":""},{"$f":"IF('2011 Survey responses'!CU73<0.5,\"\",'2011 Survey responses'!CU73)","v":""},{"$f":"IF('2011 Survey responses'!CV73<0.5,\"\",'2011 Survey responses'!CV73)","v":""},{"$f":"IF(SUM('2011 Survey responses'!CW73:DL73)<1,\"\",(AVERAGE('2011 Survey responses'!CW73:DL73)))","v":""},{"$f":"IF(SUM('2011 Survey responses'!CW73:CZ73)<1,\"\",(AVERAGE('2011 Survey responses'!CW73:CZ73)))","v":""},{"$f":"IF(SUM('2011 Survey responses'!DA73:DD73)<1,\"\",(AVERAGE('2011 Survey responses'!DA73:DD73)))","v":""},{"$f":"IF(SUM('2011 Survey responses'!DE73:DH73)<1,\"\",(AVERAGE('2011 Survey responses'!DE73:DH73)))","v":""},{"$f":"IF(SUM('2011 Survey responses'!DI73:DL73)<1,\"\",(AVERAGE('2011 Survey responses'!DI73:DL73)))","v":""},{"$f":"IF(('2011 Survey responses'!CW73+'2011 Survey responses'!DA73+'2011 Survey responses'!DE73+'2011 Survey responses'!DI73)<1,\"\",AVERAGE('2011 Survey responses'!CW73,'2011 Survey responses'!DA73,'2011 Survey responses'!DE73,'2011 Survey responses'!DI73))","v":""},{"$f":"IF(('2011 Survey responses'!CX73+'2011 Survey responses'!DB73+'2011 Survey responses'!DF73+'2011 Survey responses'!DJ73)<1,\"\",AVERAGE('2011 Survey responses'!CX73,'2011 Survey responses'!DB73,'2011 Survey responses'!DF73,'2011 Survey responses'!DJ73))","v":""},{"$f":"IF(('2011 Survey responses'!CY73+'2011 Survey responses'!DC73+'2011 Survey responses'!DG73+'2011 Survey responses'!DK73)<1,\"\",AVERAGE('2011 Survey responses'!CY73,'2011 Survey responses'!DC73,'2011 Survey responses'!DG73,'2011 Survey responses'!DK73))","v":""},{"$f":"IF(('2011 Survey responses'!CZ73+'2011 Survey responses'!DD73+'2011 Survey responses'!DH73+'2011 Survey responses'!DL73)<1,\"\",AVERAGE('2011 Survey responses'!CZ73,'2011 Survey responses'!DD73,'2011 Survey responses'!DH73,'2011 Survey responses'!DL73))","v":""},{"$f":"IF('2011 Survey responses'!CW73<0.5,\"\",'2011 Survey responses'!CW73)","v":""},{"$f":"IF('2011 Survey responses'!CX73<0.5,\"\",'2011 Survey responses'!CX73)","v":""},{"$f":"IF('2011 Survey responses'!CY73<0.5,\"\",'2011 Survey responses'!CY73)","v":""},{"$f":"IF('2011 Survey responses'!CZ73<0.5,\"\",'2011 Survey responses'!CZ73)","v":""},{"$f":"IF('2011 Survey responses'!DA73<0.5,\"\",'2011 Survey responses'!DA73)","v":""},{"$f":"IF('2011 Survey responses'!DB73<0.5,\"\",'2011 Survey responses'!DB73)","v":""},{"$f":"IF('2011 Survey responses'!DC73<0.5,\"\",'2011 Survey responses'!DC73)","v":""},{"$f":"IF('2011 Survey responses'!DD73<0.5,\"\",'2011 Survey responses'!DD73)","v":""},{"$f":"IF('2011 Survey responses'!DE73<0.5,\"\",'2011 Survey responses'!DE73)","v":""},{"$f":"IF('2011 Survey responses'!DF73<0.5,\"\",'2011 Survey responses'!DF73)","v":""},{"$f":"IF('2011 Survey responses'!DG73<0.5,\"\",'2011 Survey responses'!DG73)","v":""},{"$f":"IF('2011 Survey responses'!DH73<0.5,\"\",'2011 Survey responses'!DH73)","v":""},{"$f":"IF('2011 Survey responses'!DI73<0.5,\"\",'2011 Survey responses'!DI73)","v":""},{"$f":"IF('2011 Survey responses'!DJ73<0.5,\"\",'2011 Survey responses'!DJ73)","v":""},{"$f":"IF('2011 Survey responses'!DK73<0.5,\"\",'2011 Survey responses'!DK73)","v":""},{"$f":"IF('2011 Survey responses'!DL73<0.5,\"\",'2011 Survey responses'!DL73)","v":""},{"$f":"IF('2011 Survey responses'!DU73=4,4,IF('2011 Survey responses'!DU73=5,4,\"\"))","v":""},{"$f":"IF('2011 Survey responses'!DV73=4,3,IF('2011 Survey responses'!DV73=5,3,\"\"))","v":""},"",{"$f":"IF(CQ73=2,CQ73,IF(CO73=4,CO73,IF(CP73=3,CP73,IF('2011 Survey responses'!GT73=1,1,\"\"))))","v":""},{"$f":"IF('2011 Survey responses'!DO73<0.5,\"\",'2011 Survey responses'!DO73)","v":""},{"$f":"IF('2011 Survey responses'!DP73<0.5,\"\",'2011 Survey responses'!DP73)","v":""},{"$f":"IF('2011 Survey responses'!DQ73<0.5,\"\",'2011 Survey responses'!DQ73)","v":""},{"$f":"IF('2011 Survey responses'!DR73<0.5,\"\",'2011 Survey responses'!DR73)","v":""},{"$f":"IF('2011 Survey responses'!DS73<0.5,\"\",'2011 Survey responses'!DS73)","v":""},{"$f":"IF('2011 Survey responses'!DT73<0.5,\"\",'2011 Survey responses'!DT73)","v":""},{"$f":"IF('2011 Survey responses'!DU73<0.5,\"\",'2011 Survey responses'!DU73)","v":""},{"$f":"IF('2011 Survey responses'!DV73<0.5,\"\",'2011 Survey responses'!DV73)","v":""},{"$f":"IF('2011 Survey responses'!DW73<0.5,\"\",'2011 Survey responses'!DW73)","v":""},{"$f":"IF('2011 Survey responses'!DX73<0.5,\"\",'2011 Survey responses'!DX73)","v":""},{"$f":"IF('2011 Survey responses'!DY73<0.5,\"\",'2011 Survey responses'!DY73)","v":""},{"$f":"IF('2011 Survey responses'!DZ73<0.5,\"\",'2011 Survey responses'!DZ73)","v":""},{"$f":"IF('2011 Survey responses'!EA73<0.5,\"\",'2011 Survey responses'!EA73)","v":""},{"$f":"IF('2011 Survey responses'!EB73<0.5,\"\",'2011 Survey responses'!EB73)","v":""},{"$f":"IF('2011 Survey responses'!EC73<0.5,\"\",'2011 Survey responses'!EC73)","v":""},{"$f":"IF('2011 Survey responses'!ED73<0.5,\"\",'2011 Survey responses'!ED73)","v":""},{"$f":"IF('2011 Survey responses'!EE73<0.5,\"\",'2011 Survey responses'!EE73)","v":""},{"$f":"IF('2011 Survey responses'!EF73<0.5,\"\",'2011 Survey responses'!EF73)","v":""},{"$f":"IF('2011 Survey responses'!EG73<0.5,\"\",'2011 Survey responses'!EG73)","v":""},{"$f":"IF('2011 Survey responses'!EH73<0.5,\"\",'2011 Survey responses'!EH73)","v":""},{"$f":"IF('2011 Survey responses'!EI73<0.5,\"\",'2011 Survey responses'!EI73)","v":""},{"$f":"IF('2011 Survey responses'!EJ73<0.5,\"\",'2011 Survey responses'!EJ73)","v":""},{"$f":"IF('2011 Survey responses'!EK73<0.5,\"\",'2011 Survey responses'!EK73)","v":""},{"$f":"IF('2011 Survey responses'!EL73<0.5,\"\",'2011 Survey responses'!EL73)","v":""},{"$f":"IF('2011 Survey responses'!EM73<0.5,\"\",'2011 Survey responses'!EM73)","v":""},{"$f":"IF('2011 Survey responses'!EN73<0.5,\"\",'2011 Survey responses'!EN73)","v":""},{"$f":"IF('2011 Survey responses'!EO73<0.5,\"\",'2011 Survey responses'!EO73)","v":""},{"$f":"IF('2011 Survey responses'!EP73<0.5,\"\",'2011 Survey responses'!EP73)","v":""},{"$f":"IF(('2011 Survey responses'!EW73+'2011 Survey responses'!EX73)>=2,AVERAGE('2011 Survey responses'!EW73,'2011 Survey responses'!EY73),\"\")","v":""},{"$f":"IF('2011 Survey responses'!EX73<0.5,\"\",'2011 Survey responses'!EX73)","v":""},{"$f":"IF('2011 Survey responses'!EZ73<0.5,\"\",'2011 Survey responses'!EZ73)","v":""},{"$f":"IF('2011 Survey responses'!FB73<0.5,\"\",'2011 Survey responses'!FB73)","v":""},{"$f":"IF('2011 Survey responses'!FD73<0.5,\"\",'2011 Survey responses'!FD73)","v":""},{"$f":"IF('2011 Survey responses'!FC73<0.5,\"\",'2011 Survey responses'!FC73)","v":""},{"$f":"IF(('2011 Survey responses'!EM73+'2011 Survey responses'!EN73)>=2,AVERAGE('2011 Survey responses'!EM73,'2011 Survey responses'!EN73),\"\")","v":""},{"$f":"IF('2011 Survey responses'!ES73<0.5,\"\",'2011 Survey responses'!ES73)","v":""},{"$f":"IF(('2011 Survey responses'!ET73+'2011 Survey responses'!EU73)>=2,AVERAGE('2011 Survey responses'!ET73,'2011 Survey responses'!EU73),\"\")","v":""},{"$f":"IF('2011 Survey responses'!EV73<0.5,\"\",'2011 Survey responses'!EV73)","v":""},{"$f":"IF('2011 Survey responses'!FA73<0.5,\"\",'2011 Survey responses'!FA73)","v":""},{"$f":"IF('2011 Survey responses'!ER73<0.5,\"\",'2011 Survey responses'!ER73)","v":""},{"$f":"IF(('2011 Survey responses'!EO73+'2011 Survey responses'!EP73)>=2,AVERAGE('2011 Survey responses'!EO73,'2011 Survey responses'!EP73),\"\")","v":""},{"$f":"IF('2011 Survey responses'!EQ73<0.5,\"\",'2011 Survey responses'!EQ73)","v":""},{"$f":"IF('2011 Survey responses'!ET73<0.5,\"\",'2011 Survey responses'!ET73)","v":""},{"$f":"IF('2011 Survey responses'!EU73<0.5,\"\",'2011 Survey responses'!EU73)","v":""},{"$f":"IF('2011 Survey responses'!EW73<0.5,\"\",'2011 Survey responses'!EW73)","v":""},{"$f":"IF('2011 Survey responses'!EY73<0.5,\"\",'2011 Survey responses'!EY73)","v":""},{"$f":"IF('2011 Survey responses'!FU73<0.5,\"\",'2011 Survey responses'!FU73)","v":""},{"$f":"IF(('2011 Survey responses'!FL73+'2011 Survey responses'!FM73)>=2,AVERAGE('2011 Survey responses'!FL73,'2011 Survey responses'!FM73),\"\")","v":""},{"$f":"IF(('2011 Survey responses'!FO73+'2011 Survey responses'!FQ73)>=2,AVERAGE('2011 Survey responses'!FO73,'2011 Survey responses'!FQ73),\"\")","v":""},{"$f":"IF('2011 Survey responses'!FJ73<0.5,\"\",'2011 Survey responses'!FJ73)","v":""},{"$f":"IF('2011 Survey responses'!FT73<0.5,\"\",'2011 Survey responses'!FT73)","v":""},{"$f":"IF('2011 Survey responses'!FR73<0.5,\"\",'2011 Survey responses'!FR73)","v":""},{"$f":"IF('2011 Survey responses'!FK73<0.5,\"\",'2011 Survey responses'!FK73)","v":""},{"$f":"IF('2011 Survey responses'!FP73<0.5,\"\",'2011 Survey responses'!FP73)","v":""},{"$f":"IF('2011 Survey responses'!FN73<0.5,\"\",'2011 Survey responses'!FN73)","v":""},{"$f":"IF(('2011 Survey responses'!FE73+'2011 Survey responses'!FF73)>=2,AVERAGE('2011 Survey responses'!FE73,'2011 Survey responses'!FF73),\"\")","v":""},{"$f":"IF('2011 Survey responses'!FS73<0.5,\"\",'2011 Survey responses'!FS73)","v":""},{"$f":"IF('2011 Survey responses'!FV73<0.5,\"\",'2011 Survey responses'!FV73)","v":""},{"$f":"IF(('2011 Survey responses'!FG73+'2011 Survey responses'!FH73)>=2,AVERAGE('2011 Survey responses'!FG73,'2011 Survey responses'!FH73),\"\")","v":""},{"$f":"IF('2011 Survey responses'!FI73<0.5,\"\",'2011 Survey responses'!FI73)","v":""},{"$f":"IF('2011 Survey responses'!FE73<0.5,\"\",'2011 Survey responses'!FE73)","v":""},{"$f":"IF('2011 Survey responses'!FF73<0.5,\"\",'2011 Survey responses'!FF73)","v":""},{"$f":"IF('2011 Survey responses'!FG73<0.5,\"\",'2011 Survey responses'!FG73)","v":""},{"$f":"IF('2011 Survey responses'!FH73<0.5,\"\",'2011 Survey responses'!FH73)","v":""},{"$f":"IF('2011 Survey responses'!FL73<0.5,\"\",'2011 Survey responses'!FL73)","v":""},{"$f":"IF('2011 Survey responses'!FM73<0.5,\"\",'2011 Survey responses'!FM73)","v":""},{"$f":"IF('2011 Survey responses'!FO73<0.5,\"\",'2011 Survey responses'!FO73)","v":""},{"$f":"IF('2011 Survey responses'!FQ73<0.5,\"\",'2011 Survey responses'!FQ73)","v":""}]
["Guyana",{"$f":"IF(SUM(F74)<1,\"\",AVERAGEIF('2011 Survey responses'!B74:CP74,\">1\"))","v":""},{"$f":"IF(SUM(F74)<1,\"\",AVERAGEIF('2011 Survey responses'!B74:AO74,\">1\"))","v":""},{"$f":"IF(SUM(F74)<1,\"\",AVERAGEIF('2011 Survey responses'!B74:BV74,\">1\"))","v":""},{"$f":"IF(SUM(F74)<1,\"\",AVERAGEIF('2011 Survey responses'!V74:BV74,\">1\"))","v":""},{"$f":"IF(SUM('2011 Survey responses'!B74:U74)<1,\"\",(AVERAGEIFS('2011 Survey responses'!B74:U74,'2011 Survey responses'!B74:U74,\">1\")))","v":""},{"$f":"IF(SUM('2011 Survey responses'!B74:H74)<1,\"\",(AVERAGEIFS('2011 Survey responses'!B74:H74,'2011 Survey responses'!B74:H74,\">1\")))","v":""},{"$f":"IF(SUM('2011 Survey responses'!I74:S74)<1,\"\",(AVERAGEIFS('2011 Survey responses'!I74:S74,'2011 Survey responses'!I74:S74,\">1\")))","v":""},{"$f":"IF(SUM('2011 Survey responses'!T74:U74)<2.1,\"\",(AVERAGEIFS('2011 Survey responses'!T74:U74,'2011 Survey responses'!T74:U74,\">1\")))","v":""},{"$f":"IF(SUM('2011 Survey responses'!B74:C74)<2.1,\"\",((SUMIF('2011 Survey responses'!B74:C74,\">1\")+SUMIF('2011 Survey responses'!F74,\">1\"))/(COUNTIF('2011 Survey responses'!B74:C74,\">1\")+COUNTIF('2011 Survey responses'!F74,\">1\"))))","v":""},{"$f":"IF(SUM('2011 Survey responses'!D74:E74)<2.1,\"\",(AVERAGEIFS('2011 Survey responses'!D74:E74,'2011 Survey responses'!D74:E74,\">1\")))","v":""},{"$f":"IF(('2011 Survey responses'!B74+'2011 Survey responses'!D74)<2.1,\"\",((SUMIF('2011 Survey responses'!B74,\">1\")+SUMIF('2011 Survey responses'!D74,\">1\")+SUMIF('2011 Survey responses'!F74,\">1\")+SUMIF('2011 Survey responses'!K74,\">1\"))/(COUNTIF('2011 Survey responses'!B74,\">1\")+COUNTIF('2011 Survey responses'!D74,\">1\")+COUNTIF('2011 Survey responses'!F74,\">1\")+COUNTIF('2011 Survey responses'!K74,\">1\"))))","v":""},{"$f":"IF(SUM('2011 Survey responses'!G74:H74)<2.1,\"\",(AVERAGEIFS('2011 Survey responses'!G74:H74,'2011 Survey responses'!G74:H74,\">1\")))","v":""},{"$f":"IF(SUM('2011 Survey responses'!F74:G74)<1.5,\"\",MAX('2011 Survey responses'!F74,'2011 Survey responses'!G74))","v":""},{"$f":"IF(SUM('2011 Survey responses'!G74:H74)<1,\"\",MAX('2011 Survey responses'!G74,'2011 Survey responses'!H74))","v":""},{"$f":"IF(SUM('2011 Survey responses'!I74:L74)<4.1,\"\",(AVERAGEIFS('2011 Survey responses'!I74:L74,'2011 Survey responses'!I74:L74,\">1\")))","v":""},{"$f":"IF(SUM('2011 Survey responses'!M74:S74)<4.1,\"\",(AVERAGEIFS('2011 Survey responses'!M74:S74,'2011 Survey responses'!M74:S74,\">1\")))","v":""},{"$f":"IF(SUM('2011 Survey responses'!T74:U74)<2.1,\"\",(AVERAGEIFS('2011 Survey responses'!T74:U74,'2011 Survey responses'!T74:U74,\">1\")))","v":""},{"$f":"IF(SUM('2011 Survey responses'!V74:AO74)<1,\"\",(AVERAGEIFS('2011 Survey responses'!V74:AO74,'2011 Survey responses'!V74:AO74,\">1\")))","v":""},{"$f":"IF(SUM('2011 Survey responses'!V74:AA74)<1,\"\",(AVERAGEIFS('2011 Survey responses'!V74:AA74,'2011 Survey responses'!V74:AA74,\">1\")))","v":""},{"$f":"IF(SUM('2011 Survey responses'!AB74:AH74)<1,\"\",(AVERAGEIFS('2011 Survey responses'!AB74:AH74,'2011 Survey responses'!AB74:AH74,\">1\")))","v":""},{"$f":"IF(SUM('2011 Survey responses'!AI74:AO74)<1,\"\",(AVERAGEIFS('2011 Survey responses'!AI74:AO74,'2011 Survey responses'!AI74:AO74,\">1\")))","v":""},{"$f":"IF(('2011 Survey responses'!Y74+'2011 Survey responses'!AI74+'2011 Survey responses'!AK74)<3.1,\"\",((SUMIF('2011 Survey responses'!Y74,\">1\")+SUMIF('2011 Survey responses'!AI74,\">1\")+SUMIF('2011 Survey responses'!AK74,\">1\")+SUMIF('2011 Survey responses'!AM74,\">1\"))/(COUNTIF('2011 Survey responses'!Y74,\">1\")+COUNTIF('2011 Survey responses'!AI74,\">1\")+COUNTIF('2011 Survey responses'!AK74,\">1\")+COUNTIF('2011 Survey responses'!AM74,\">1\"))))","v":""},{"$f":"IF(('2011 Survey responses'!W74)<1.1,\"\",('2011 Survey responses'!W74))","v":""},{"$f":"IF(('2011 Survey responses'!Y74)<1.1,\"\",('2011 Survey responses'!Y74))","v":""},{"$f":"IF(('2011 Survey responses'!Z74)<1.1,\"\",('2011 Survey responses'!Z74))","v":""},{"$f":"IF(('2011 Survey responses'!V74+'2011 Survey responses'!X74+'2011 Survey responses'!AA74)<3.1,\"\",((SUMIF('2011 Survey responses'!V74,\">1\")+SUMIF('2011 Survey responses'!X74,\">1\")+SUMIF('2011 Survey responses'!AA74,\">1\"))/(COUNTIF('2011 Survey responses'!V74,\">1\")+COUNTIF('2011 Survey responses'!X74,\">1\")+COUNTIF('2011 Survey responses'!AA74,\">1\"))))","v":""},{"$f":"IF(('2011 Survey responses'!V74+'2011 Survey responses'!Y74+'2011 Survey responses'!AA74)<3.1,\"\",((SUMIF('2011 Survey responses'!V74,\">1\")+SUMIF('2011 Survey responses'!Y74,\">1\")+SUMIF('2011 Survey responses'!AA74,\">1\"))/(COUNTIF('2011 Survey responses'!V74,\">1\")+COUNTIF('2011 Survey responses'!Y74,\">1\")+COUNTIF('2011 Survey responses'!AA74,\">1\"))))","v":""},{"$f":"IF(SUM('2011 Survey responses'!AB74:AH74)<1,\"\",(AVERAGEIFS('2011 Survey responses'!AB74:AH74,'2011 Survey responses'!AB74:AH74,\">1\")))","v":""},{"$f":"IF(SUM('2011 Survey responses'!AI74:AO74)<7.1,\"\",(AVERAGEIFS('2011 Survey responses'!AI74:AO74,'2011 Survey responses'!AI74:AO74,\">1\")))","v":""},{"$f":"IF(('2011 Survey responses'!AH74)<1.1,\"\",('2011 Survey responses'!AH74))","v":""},{"$f":"IF(SUM('2011 Survey responses'!AP74:BV74)<1,\"\",(AVERAGEIFS('2011 Survey responses'!AP74:BV74,'2011 Survey responses'!AP74:BV74,\">1\")))","v":""},{"$f":"IF(SUM('2011 Survey responses'!AP74:AS74)<4.1,\"\",(AVERAGEIFS('2011 Survey responses'!AP74:AS74,'2011 Survey responses'!AP74:AS74,\">1\")))","v":""},{"$f":"IF(SUM('2011 Survey responses'!AT74:BF74)<1,\"\",(AVERAGEIFS('2011 Survey responses'!AT74:BF74,'2011 Survey responses'!AT74:BF74,\">1\")))","v":""},{"$f":"IF(SUM('2011 Survey responses'!BG74:BO74)<1,\"\",(AVERAGEIFS('2011 Survey responses'!BG74:BO74,'2011 Survey responses'!BG74:BO74,\">1\")))","v":""},{"$f":"IF(SUM('2011 Survey responses'!BP74:BS74)<1,\"\",(AVERAGEIFS('2011 Survey responses'!BP74:BS74,'2011 Survey responses'!BP74:BS74,\">1\")))","v":""},{"$f":"IF(SUM('2011 Survey responses'!BT74:BV74)<3.1,\"\",(AVERAGEIFS('2011 Survey responses'!BT74:BV74,'2011 Survey responses'!BT74:BV74,\">1\")))","v":""},{"$f":"IF(('2011 Survey responses'!AQ74+'2011 Survey responses'!AR74+'2011 Survey responses'!BG74)<3.1,\"\",((SUMIF('2011 Survey responses'!AQ74,\">1\")+SUMIF('2011 Survey responses'!AR74,\">1\")+SUMIF('2011 Survey responses'!BG74,\">1\"))/(COUNTIF('2011 Survey responses'!AQ74,\">1\")+COUNTIF('2011 Survey responses'!AR74,\">1\")+COUNTIF('2011 Survey responses'!BG74,\">1\"))))","v":""},{"$f":"IF(SUM('2011 Survey responses'!AP74:AS74)<4.1,\"\",(AVERAGEIFS('2011 Survey responses'!AP74:AS74,'2011 Survey responses'!AP74:AS74,\">1\")))","v":""},{"$f":"IF(('2011 Survey responses'!AU74+'2011 Survey responses'!AX74+'2011 Survey responses'!BA74+'2011 Survey responses'!BC74+'2011 Survey responses'!BD74)<5.1,\"\",(SUMIF('2011 Survey responses'!AU74,\">1\")+SUMIF('2011 Survey responses'!AX74,\">1\")+SUMIF('2011 Survey responses'!BA74,\">1\")+SUMIF('2011 Survey responses'!BC74,\">1\")+SUMIF('2011 Survey responses'!BD74,\">1\"))/(COUNTIF('2011 Survey responses'!AU74,\">1\")+COUNTIF('2011 Survey responses'!AX74,\">1\")+COUNTIF('2011 Survey responses'!BA74,\">1\")+COUNTIF('2011 Survey responses'!BC74,\">1\")+COUNTIF('2011 Survey responses'!BD74,\">1\")))","v":""},{"$f":"IF(('2011 Survey responses'!AT74)<1.1,\"\",('2011 Survey responses'!AT74))","v":""},{"$f":"IF(SUM('2011 Survey responses'!AV74:AW74)<2.1,\"\",(AVERAGEIFS('2011 Survey responses'!AV74:AW74,'2011 Survey responses'!AV74:AW74,\">1\")))","v":""},{"$f":"IF(('2011 Survey responses'!AW74+'2011 Survey responses'!AY74)<2.1,\"\",(SUMIF('2011 Survey responses'!AW74,\">1\")+SUMIF('2011 Survey responses'!AY74,\">1\"))/(COUNTIF('2011 Survey responses'!AW74,\">1\")+COUNTIF('2011 Survey responses'!AY74,\">1\")))","v":""},{"$f":"IF(('2011 Survey responses'!AZ74)<1.1,\"\",('2011 Survey responses'!AZ74))","v":""},null,null,null,null,{"$f":"IF(('2011 Survey responses'!BE74)<1.1,\"\",('2011 Survey responses'!BE74))","v":""},{"$f":"IF(('2011 Survey responses'!AY74+'2011 Survey responses'!BB74+'2011 Survey responses'!BF74)<3.1,\"\",(SUMIF('2011 Survey responses'!AY74,\">1\")+SUMIF('2011 Survey responses'!BB74,\">1\")+SUMIF('2011 Survey responses'!BF74,\">1\"))/(COUNTIF('2011 Survey responses'!AY74,\">1\")+COUNTIF('2011 Survey responses'!BB74,\">1\")+COUNTIF('2011 Survey responses'!BF74,\">1\")))","v":""},"",{"$f":"IF(SUM('2011 Survey responses'!BT74:BV74)<3.1,\"\",(AVERAGEIFS('2011 Survey responses'!BT74:BV74,'2011 Survey responses'!BT74:BV74,\">1\")))","v":""},{"$f":"IF(SUM('2011 Survey responses'!BW74:CP74)<1,\"\",(AVERAGEIFS('2011 Survey responses'!BW74:CP74,'2011 Survey responses'!BW74:CP74,\">1\")))","v":""},{"$f":"IF(SUM('2011 Survey responses'!BW74:CF74)<1,\"\",(AVERAGEIFS('2011 Survey responses'!BW74:CF74,'2011 Survey responses'!BW74:CF74,\">1\")))","v":""},{"$f":"IF(SUM('2011 Survey responses'!CG74:CP74)<1,\"\",(AVERAGEIFS('2011 Survey responses'!CG74:CP74,'2011 Survey responses'!CG74:CP74,\">1\")))","v":""},{"$f":"IF(SUM('2011 Survey responses'!BX74:CF74)<1,\"\",(AVERAGEIFS('2011 Survey responses'!BX74:CF74,'2011 Survey responses'!BX74:CF74,\">1\")))","v":""},{"$f":"IF(SUM('2011 Survey responses'!CH74:CP74)<1,\"\",(AVERAGEIFS('2011 Survey responses'!CH74:CP74,'2011 Survey responses'!CH74:CP74,\">1\")))","v":""},{"$f":"IF(SUM('2011 Survey responses'!BW74:CP74)<1,\"\",(AVERAGEIFS('2011 Survey responses'!BW74:CP74,'2011 Survey responses'!BW74:CP74,\">1\")))","v":""},{"$f":"IF(('2011 Survey responses'!BW74+'2011 Survey responses'!CG74)<2.1,\"\",(SUMIF('2011 Survey responses'!BW74,\">1\")+SUMIF('2011 Survey responses'!CG74,\">1\"))/(COUNTIF('2011 Survey responses'!BW74,\">1\")+COUNTIF('2011 Survey responses'!CG74,\">1\")))","v":""},{"$f":"IF(('2011 Survey responses'!BX74+'2011 Survey responses'!CH74)<2.1,\"\",(SUMIF('2011 Survey responses'!BX74,\">1\")+SUMIF('2011 Survey responses'!CH74,\">1\"))/(COUNTIF('2011 Survey responses'!BX74,\">1\")+COUNTIF('2011 Survey responses'!CH74,\">1\")))","v":""},{"$f":"IF(('2011 Survey responses'!BY74+'2011 Survey responses'!CI74)<2.1,\"\",(SUMIF('2011 Survey responses'!BY74,\">1\")+SUMIF('2011 Survey responses'!CI74,\">1\"))/(COUNTIF('2011 Survey responses'!BY74,\">1\")+COUNTIF('2011 Survey responses'!CI74,\">1\")))","v":""},{"$f":"IF('2011 Survey responses'!CQ74<0.5,\"\",'2011 Survey responses'!CQ74)","v":""},{"$f":"IF('2011 Survey responses'!CR74<0.5,\"\",'2011 Survey responses'!CR74)","v":""},{"$f":"IF('2011 Survey responses'!CS74<0.5,\"\",'2011 Survey responses'!CS74)","v":""},{"$f":"IF('2011 Survey responses'!CT74<0.5,\"\",'2011 Survey responses'!CT74)","v":""},{"$f":"IF('2011 Survey responses'!CU74<0.5,\"\",'2011 Survey responses'!CU74)","v":""},{"$f":"IF('2011 Survey responses'!CV74<0.5,\"\",'2011 Survey responses'!CV74)","v":""},{"$f":"IF(SUM('2011 Survey responses'!CW74:DL74)<1,\"\",(AVERAGE('2011 Survey responses'!CW74:DL74)))","v":""},{"$f":"IF(SUM('2011 Survey responses'!CW74:CZ74)<1,\"\",(AVERAGE('2011 Survey responses'!CW74:CZ74)))","v":""},{"$f":"IF(SUM('2011 Survey responses'!DA74:DD74)<1,\"\",(AVERAGE('2011 Survey responses'!DA74:DD74)))","v":""},{"$f":"IF(SUM('2011 Survey responses'!DE74:DH74)<1,\"\",(AVERAGE('2011 Survey responses'!DE74:DH74)))","v":""},{"$f":"IF(SUM('2011 Survey responses'!DI74:DL74)<1,\"\",(AVERAGE('2011 Survey responses'!DI74:DL74)))","v":""},{"$f":"IF(('2011 Survey responses'!CW74+'2011 Survey responses'!DA74+'2011 Survey responses'!DE74+'2011 Survey responses'!DI74)<1,\"\",AVERAGE('2011 Survey responses'!CW74,'2011 Survey responses'!DA74,'2011 Survey responses'!DE74,'2011 Survey responses'!DI74))","v":""},{"$f":"IF(('2011 Survey responses'!CX74+'2011 Survey responses'!DB74+'2011 Survey responses'!DF74+'2011 Survey responses'!DJ74)<1,\"\",AVERAGE('2011 Survey responses'!CX74,'2011 Survey responses'!DB74,'2011 Survey responses'!DF74,'2011 Survey responses'!DJ74))","v":""},{"$f":"IF(('2011 Survey responses'!CY74+'2011 Survey responses'!DC74+'2011 Survey responses'!DG74+'2011 Survey responses'!DK74)<1,\"\",AVERAGE('2011 Survey responses'!CY74,'2011 Survey responses'!DC74,'2011 Survey responses'!DG74,'2011 Survey responses'!DK74))","v":""},{"$f":"IF(('2011 Survey responses'!CZ74+'2011 Survey responses'!DD74+'2011 Survey responses'!DH74+'2011 Survey responses'!DL74)<1,\"\",AVERAGE('2011 Survey responses'!CZ74,'2011 Survey responses'!DD74,'2011 Survey responses'!DH74,'2011 Survey responses'!DL74))","v":""},{"$f":"IF('2011 Survey responses'!CW74<0.5,\"\",'2011 Survey responses'!CW74)","v":""},{"$f":"IF('2011 Survey responses'!CX74<0.5,\"\",'2011 Survey responses'!CX74)","v":""},{"$f":"IF('2011 Survey responses'!CY74<0.5,\"\",'2011 Survey responses'!CY74)","v":""},{"$f":"IF('2011 Survey responses'!CZ74<0.5,\"\",'2011 Survey responses'!CZ74)","v":""},{"$f":"IF('2011 Survey responses'!DA74<0.5,\"\",'2011 Survey responses'!DA74)","v":""},{"$f":"IF('2011 Survey responses'!DB74<0.5,\"\",'2011 Survey responses'!DB74)","v":""},{"$f":"IF('2011 Survey responses'!DC74<0.5,\"\",'2011 Survey responses'!DC74)","v":""},{"$f":"IF('2011 Survey responses'!DD74<0.5,\"\",'2011 Survey responses'!DD74)","v":""},{"$f":"IF('2011 Survey responses'!DE74<0.5,\"\",'2011 Survey responses'!DE74)","v":""},{"$f":"IF('2011 Survey responses'!DF74<0.5,\"\",'2011 Survey responses'!DF74)","v":""},{"$f":"IF('2011 Survey responses'!DG74<0.5,\"\",'2011 Survey responses'!DG74)","v":""},{"$f":"IF('2011 Survey responses'!DH74<0.5,\"\",'2011 Survey responses'!DH74)","v":""},{"$f":"IF('2011 Survey responses'!DI74<0.5,\"\",'2011 Survey responses'!DI74)","v":""},{"$f":"IF('2011 Survey responses'!DJ74<0.5,\"\",'2011 Survey responses'!DJ74)","v":""},{"$f":"IF('2011 Survey responses'!DK74<0.5,\"\",'2011 Survey responses'!DK74)","v":""},{"$f":"IF('2011 Survey responses'!DL74<0.5,\"\",'2011 Survey responses'!DL74)","v":""},{"$f":"IF('2011 Survey responses'!DU74=4,4,IF('2011 Survey responses'!DU74=5,4,\"\"))","v":""},{"$f":"IF('2011 Survey responses'!DV74=4,3,IF('2011 Survey responses'!DV74=5,3,\"\"))","v":""},"",{"$f":"IF(CQ74=2,CQ74,IF(CO74=4,CO74,IF(CP74=3,CP74,IF('2011 Survey responses'!GT74=1,1,\"\"))))","v":""},{"$f":"IF('2011 Survey responses'!DO74<0.5,\"\",'2011 Survey responses'!DO74)","v":""},{"$f":"IF('2011 Survey responses'!DP74<0.5,\"\",'2011 Survey responses'!DP74)","v":""},{"$f":"IF('2011 Survey responses'!DQ74<0.5,\"\",'2011 Survey responses'!DQ74)","v":""},{"$f":"IF('2011 Survey responses'!DR74<0.5,\"\",'2011 Survey responses'!DR74)","v":""},{"$f":"IF('2011 Survey responses'!DS74<0.5,\"\",'2011 Survey responses'!DS74)","v":""},{"$f":"IF('2011 Survey responses'!DT74<0.5,\"\",'2011 Survey responses'!DT74)","v":""},{"$f":"IF('2011 Survey responses'!DU74<0.5,\"\",'2011 Survey responses'!DU74)","v":""},{"$f":"IF('2011 Survey responses'!DV74<0.5,\"\",'2011 Survey responses'!DV74)","v":""},{"$f":"IF('2011 Survey responses'!DW74<0.5,\"\",'2011 Survey responses'!DW74)","v":""},{"$f":"IF('2011 Survey responses'!DX74<0.5,\"\",'2011 Survey responses'!DX74)","v":""},{"$f":"IF('2011 Survey responses'!DY74<0.5,\"\",'2011 Survey responses'!DY74)","v":""},{"$f":"IF('2011 Survey responses'!DZ74<0.5,\"\",'2011 Survey responses'!DZ74)","v":""},{"$f":"IF('2011 Survey responses'!EA74<0.5,\"\",'2011 Survey responses'!EA74)","v":""},{"$f":"IF('2011 Survey responses'!EB74<0.5,\"\",'2011 Survey responses'!EB74)","v":""},{"$f":"IF('2011 Survey responses'!EC74<0.5,\"\",'2011 Survey responses'!EC74)","v":""},{"$f":"IF('2011 Survey responses'!ED74<0.5,\"\",'2011 Survey responses'!ED74)","v":""},{"$f":"IF('2011 Survey responses'!EE74<0.5,\"\",'2011 Survey responses'!EE74)","v":""},{"$f":"IF('2011 Survey responses'!EF74<0.5,\"\",'2011 Survey responses'!EF74)","v":""},{"$f":"IF('2011 Survey responses'!EG74<0.5,\"\",'2011 Survey responses'!EG74)","v":""},{"$f":"IF('2011 Survey responses'!EH74<0.5,\"\",'2011 Survey responses'!EH74)","v":""},{"$f":"IF('2011 Survey responses'!EI74<0.5,\"\",'2011 Survey responses'!EI74)","v":""},{"$f":"IF('2011 Survey responses'!EJ74<0.5,\"\",'2011 Survey responses'!EJ74)","v":""},{"$f":"IF('2011 Survey responses'!EK74<0.5,\"\",'2011 Survey responses'!EK74)","v":""},{"$f":"IF('2011 Survey responses'!EL74<0.5,\"\",'2011 Survey responses'!EL74)","v":""},{"$f":"IF('2011 Survey responses'!EM74<0.5,\"\",'2011 Survey responses'!EM74)","v":""},{"$f":"IF('2011 Survey responses'!EN74<0.5,\"\",'2011 Survey responses'!EN74)","v":""},{"$f":"IF('2011 Survey responses'!EO74<0.5,\"\",'2011 Survey responses'!EO74)","v":""},{"$f":"IF('2011 Survey responses'!EP74<0.5,\"\",'2011 Survey responses'!EP74)","v":""},{"$f":"IF(('2011 Survey responses'!EW74+'2011 Survey responses'!EX74)>=2,AVERAGE('2011 Survey responses'!EW74,'2011 Survey responses'!EY74),\"\")","v":""},{"$f":"IF('2011 Survey responses'!EX74<0.5,\"\",'2011 Survey responses'!EX74)","v":""},{"$f":"IF('2011 Survey responses'!EZ74<0.5,\"\",'2011 Survey responses'!EZ74)","v":""},{"$f":"IF('2011 Survey responses'!FB74<0.5,\"\",'2011 Survey responses'!FB74)","v":""},{"$f":"IF('2011 Survey responses'!FD74<0.5,\"\",'2011 Survey responses'!FD74)","v":""},{"$f":"IF('2011 Survey responses'!FC74<0.5,\"\",'2011 Survey responses'!FC74)","v":""},{"$f":"IF(('2011 Survey responses'!EM74+'2011 Survey responses'!EN74)>=2,AVERAGE('2011 Survey responses'!EM74,'2011 Survey responses'!EN74),\"\")","v":""},{"$f":"IF('2011 Survey responses'!ES74<0.5,\"\",'2011 Survey responses'!ES74)","v":""},{"$f":"IF(('2011 Survey responses'!ET74+'2011 Survey responses'!EU74)>=2,AVERAGE('2011 Survey responses'!ET74,'2011 Survey responses'!EU74),\"\")","v":""},{"$f":"IF('2011 Survey responses'!EV74<0.5,\"\",'2011 Survey responses'!EV74)","v":""},{"$f":"IF('2011 Survey responses'!FA74<0.5,\"\",'2011 Survey responses'!FA74)","v":""},{"$f":"IF('2011 Survey responses'!ER74<0.5,\"\",'2011 Survey responses'!ER74)","v":""},{"$f":"IF(('2011 Survey responses'!EO74+'2011 Survey responses'!EP74)>=2,AVERAGE('2011 Survey responses'!EO74,'2011 Survey responses'!EP74),\"\")","v":""},{"$f":"IF('2011 Survey responses'!EQ74<0.5,\"\",'2011 Survey responses'!EQ74)","v":""},{"$f":"IF('2011 Survey responses'!ET74<0.5,\"\",'2011 Survey responses'!ET74)","v":""},{"$f":"IF('2011 Survey responses'!EU74<0.5,\"\",'2011 Survey responses'!EU74)","v":""},{"$f":"IF('2011 Survey responses'!EW74<0.5,\"\",'2011 Survey responses'!EW74)","v":""},{"$f":"IF('2011 Survey responses'!EY74<0.5,\"\",'2011 Survey responses'!EY74)","v":""},{"$f":"IF('2011 Survey responses'!FU74<0.5,\"\",'2011 Survey responses'!FU74)","v":""},{"$f":"IF(('2011 Survey responses'!FL74+'2011 Survey responses'!FM74)>=2,AVERAGE('2011 Survey responses'!FL74,'2011 Survey responses'!FM74),\"\")","v":""},{"$f":"IF(('2011 Survey responses'!FO74+'2011 Survey responses'!FQ74)>=2,AVERAGE('2011 Survey responses'!FO74,'2011 Survey responses'!FQ74),\"\")","v":""},{"$f":"IF('2011 Survey responses'!FJ74<0.5,\"\",'2011 Survey responses'!FJ74)","v":""},{"$f":"IF('2011 Survey responses'!FT74<0.5,\"\",'2011 Survey responses'!FT74)","v":""},{"$f":"IF('2011 Survey responses'!FR74<0.5,\"\",'2011 Survey responses'!FR74)","v":""},{"$f":"IF('2011 Survey responses'!FK74<0.5,\"\",'2011 Survey responses'!FK74)","v":""},{"$f":"IF('2011 Survey responses'!FP74<0.5,\"\",'2011 Survey responses'!FP74)","v":""},{"$f":"IF('2011 Survey responses'!FN74<0.5,\"\",'2011 Survey responses'!FN74)","v":""},{"$f":"IF(('2011 Survey responses'!FE74+'2011 Survey responses'!FF74)>=2,AVERAGE('2011 Survey responses'!FE74,'2011 Survey responses'!FF74),\"\")","v":""},{"$f":"IF('2011 Survey responses'!FS74<0.5,\"\",'2011 Survey responses'!FS74)","v":""},{"$f":"IF('2011 Survey responses'!FV74<0.5,\"\",'2011 Survey responses'!FV74)","v":""},{"$f":"IF(('2011 Survey responses'!FG74+'2011 Survey responses'!FH74)>=2,AVERAGE('2011 Survey responses'!FG74,'2011 Survey responses'!FH74),\"\")","v":""},{"$f":"IF('2011 Survey responses'!FI74<0.5,\"\",'2011 Survey responses'!FI74)","v":""},{"$f":"IF('2011 Survey responses'!FE74<0.5,\"\",'2011 Survey responses'!FE74)","v":""},{"$f":"IF('2011 Survey responses'!FF74<0.5,\"\",'2011 Survey responses'!FF74)","v":""},{"$f":"IF('2011 Survey responses'!FG74<0.5,\"\",'2011 Survey responses'!FG74)","v":""},{"$f":"IF('2011 Survey responses'!FH74<0.5,\"\",'2011 Survey responses'!FH74)","v":""},{"$f":"IF('2011 Survey responses'!FL74<0.5,\"\",'2011 Survey responses'!FL74)","v":""},{"$f":"IF('2011 Survey responses'!FM74<0.5,\"\",'2011 Survey responses'!FM74)","v":""},{"$f":"IF('2011 Survey responses'!FO74<0.5,\"\",'2011 Survey responses'!FO74)","v":""},{"$f":"IF('2011 Survey responses'!FQ74<0.5,\"\",'2011 Survey responses'!FQ74)","v":""}]
["Haiti",{"$f":"IF(SUM(F75)<1,\"\",AVERAGEIF('2011 Survey responses'!B75:CP75,\">1\"))","v":2.4444444444444446},{"$f":"IF(SUM(F75)<1,\"\",AVERAGEIF('2011 Survey responses'!B75:AO75,\">1\"))","v":2.1052631578947367},{"$f":"IF(SUM(F75)<1,\"\",AVERAGEIF('2011 Survey responses'!B75:BV75,\">1\"))","v":2.23943661971831},{"$f":"IF(SUM(F75)<1,\"\",AVERAGEIF('2011 Survey responses'!V75:BV75,\">1\"))","v":2.2452830188679247},{"$f":"IF(SUM('2011 Survey responses'!B75:U75)<1,\"\",(AVERAGEIFS('2011 Survey responses'!B75:U75,'2011 Survey responses'!B75:U75,\">1\")))","v":2.2222222222222223},{"$f":"IF(SUM('2011 Survey responses'!B75:H75)<1,\"\",(AVERAGEIFS('2011 Survey responses'!B75:H75,'2011 Survey responses'!B75:H75,\">1\")))","v":2.4},{"$f":"IF(SUM('2011 Survey responses'!I75:S75)<1,\"\",(AVERAGEIFS('2011 Survey responses'!I75:S75,'2011 Survey responses'!I75:S75,\">1\")))","v":2.1818181818181817},{"$f":"IF(SUM('2011 Survey responses'!T75:U75)<2.1,\"\",(AVERAGEIFS('2011 Survey responses'!T75:U75,'2011 Survey responses'!T75:U75,\">1\")))","v":2},{"$f":"IF(SUM('2011 Survey responses'!B75:C75)<2.1,\"\",((SUMIF('2011 Survey responses'!B75:C75,\">1\")+SUMIF('2011 Survey responses'!F75,\">1\"))/(COUNTIF('2011 Survey responses'!B75:C75,\">1\")+COUNTIF('2011 Survey responses'!F75,\">1\"))))","v":2},{"$f":"IF(SUM('2011 Survey responses'!D75:E75)<2.1,\"\",(AVERAGEIFS('2011 Survey responses'!D75:E75,'2011 Survey responses'!D75:E75,\">1\")))","v":4},{"$f":"IF(('2011 Survey responses'!B75+'2011 Survey responses'!D75)<2.1,\"\",((SUMIF('2011 Survey responses'!B75,\">1\")+SUMIF('2011 Survey responses'!D75,\">1\")+SUMIF('2011 Survey responses'!F75,\">1\")+SUMIF('2011 Survey responses'!K75,\">1\"))/(COUNTIF('2011 Survey responses'!B75,\">1\")+COUNTIF('2011 Survey responses'!D75,\">1\")+COUNTIF('2011 Survey responses'!F75,\">1\")+COUNTIF('2011 Survey responses'!K75,\">1\"))))","v":2.5},{"$f":"IF(SUM('2011 Survey responses'!G75:H75)<2.1,\"\",(AVERAGEIFS('2011 Survey responses'!G75:H75,'2011 Survey responses'!G75:H75,\">1\")))","v":2},{"$f":"IF(SUM('2011 Survey responses'!F75:G75)<1.5,\"\",MAX('2011 Survey responses'!F75,'2011 Survey responses'!G75))","v":2},{"$f":"IF(SUM('2011 Survey responses'!G75:H75)<1,\"\",MAX('2011 Survey responses'!G75,'2011 Survey responses'!H75))","v":2},{"$f":"IF(SUM('2011 Survey responses'!I75:L75)<4.1,\"\",(AVERAGEIFS('2011 Survey responses'!I75:L75,'2011 Survey responses'!I75:L75,\">1\")))","v":2.5},{"$f":"IF(SUM('2011 Survey responses'!M75:S75)<4.1,\"\",(AVERAGEIFS('2011 Survey responses'!M75:S75,'2011 Survey responses'!M75:S75,\">1\")))","v":2},{"$f":"IF(SUM('2011 Survey responses'!T75:U75)<2.1,\"\",(AVERAGEIFS('2011 Survey responses'!T75:U75,'2011 Survey responses'!T75:U75,\">1\")))","v":2},{"$f":"IF(SUM('2011 Survey responses'!V75:AO75)<1,\"\",(AVERAGEIFS('2011 Survey responses'!V75:AO75,'2011 Survey responses'!V75:AO75,\">1\")))","v":2},{"$f":"IF(SUM('2011 Survey responses'!V75:AA75)<1,\"\",(AVERAGEIFS('2011 Survey responses'!V75:AA75,'2011 Survey responses'!V75:AA75,\">1\")))","v":2},{"$f":"IF(SUM('2011 Survey responses'!AB75:AH75)<1,\"\",(AVERAGEIFS('2011 Survey responses'!AB75:AH75,'2011 Survey responses'!AB75:AH75,\">1\")))","v":2},{"$f":"IF(SUM('2011 Survey responses'!AI75:AO75)<1,\"\",(AVERAGEIFS('2011 Survey responses'!AI75:AO75,'2011 Survey responses'!AI75:AO75,\">1\")))","v":2},{"$f":"IF(('2011 Survey responses'!Y75+'2011 Survey responses'!AI75+'2011 Survey responses'!AK75)<3.1,\"\",((SUMIF('2011 Survey responses'!Y75,\">1\")+SUMIF('2011 Survey responses'!AI75,\">1\")+SUMIF('2011 Survey responses'!AK75,\">1\")+SUMIF('2011 Survey responses'!AM75,\">1\"))/(COUNTIF('2011 Survey responses'!Y75,\">1\")+COUNTIF('2011 Survey responses'!AI75,\">1\")+COUNTIF('2011 Survey responses'!AK75,\">1\")+COUNTIF('2011 Survey responses'!AM75,\">1\"))))","v":2},{"$f":"IF(('2011 Survey responses'!W75)<1.1,\"\",('2011 Survey responses'!W75))","v":2},{"$f":"IF(('2011 Survey responses'!Y75)<1.1,\"\",('2011 Survey responses'!Y75))","v":2},{"$f":"IF(('2011 Survey responses'!Z75)<1.1,\"\",('2011 Survey responses'!Z75))","v":2},{"$f":"IF(('2011 Survey responses'!V75+'2011 Survey responses'!X75+'2011 Survey responses'!AA75)<3.1,\"\",((SUMIF('2011 Survey responses'!V75,\">1\")+SUMIF('2011 Survey responses'!X75,\">1\")+SUMIF('2011 Survey responses'!AA75,\">1\"))/(COUNTIF('2011 Survey responses'!V75,\">1\")+COUNTIF('2011 Survey responses'!X75,\">1\")+COUNTIF('2011 Survey responses'!AA75,\">1\"))))","v":2},{"$f":"IF(('2011 Survey responses'!V75+'2011 Survey responses'!Y75+'2011 Survey responses'!AA75)<3.1,\"\",((SUMIF('2011 Survey responses'!V75,\">1\")+SUMIF('2011 Survey responses'!Y75,\">1\")+SUMIF('2011 Survey responses'!AA75,\">1\"))/(COUNTIF('2011 Survey responses'!V75,\">1\")+COUNTIF('2011 Survey responses'!Y75,\">1\")+COUNTIF('2011 Survey responses'!AA75,\">1\"))))","v":2},{"$f":"IF(SUM('2011 Survey responses'!AB75:AH75)<1,\"\",(AVERAGEIFS('2011 Survey responses'!AB75:AH75,'2011 Survey responses'!AB75:AH75,\">1\")))","v":2},{"$f":"IF(SUM('2011 Survey responses'!AI75:AO75)<7.1,\"\",(AVERAGEIFS('2011 Survey responses'!AI75:AO75,'2011 Survey responses'!AI75:AO75,\">1\")))","v":2},{"$f":"IF(('2011 Survey responses'!AH75)<1.1,\"\",('2011 Survey responses'!AH75))","v":2},{"$f":"IF(SUM('2011 Survey responses'!AP75:BV75)<1,\"\",(AVERAGEIFS('2011 Survey responses'!AP75:BV75,'2011 Survey responses'!AP75:BV75,\">1\")))","v":2.393939393939394},{"$f":"IF(SUM('2011 Survey responses'!AP75:AS75)<4.1,\"\",(AVERAGEIFS('2011 Survey responses'!AP75:AS75,'2011 Survey responses'!AP75:AS75,\">1\")))","v":2},{"$f":"IF(SUM('2011 Survey responses'!AT75:BF75)<1,\"\",(AVERAGEIFS('2011 Survey responses'!AT75:BF75,'2011 Survey responses'!AT75:BF75,\">1\")))","v":2},{"$f":"IF(SUM('2011 Survey responses'!BG75:BO75)<1,\"\",(AVERAGEIFS('2011 Survey responses'!BG75:BO75,'2011 Survey responses'!BG75:BO75,\">1\")))","v":3},{"$f":"IF(SUM('2011 Survey responses'!BP75:BS75)<1,\"\",(AVERAGEIFS('2011 Survey responses'!BP75:BS75,'2011 Survey responses'!BP75:BS75,\">1\")))","v":3},{"$f":"IF(SUM('2011 Survey responses'!BT75:BV75)<3.1,\"\",(AVERAGEIFS('2011 Survey responses'!BT75:BV75,'2011 Survey responses'!BT75:BV75,\">1\")))","v":2},{"$f":"IF(('2011 Survey responses'!AQ75+'2011 Survey responses'!AR75+'2011 Survey responses'!BG75)<3.1,\"\",((SUMIF('2011 Survey responses'!AQ75,\">1\")+SUMIF('2011 Survey responses'!AR75,\">1\")+SUMIF('2011 Survey responses'!BG75,\">1\"))/(COUNTIF('2011 Survey responses'!AQ75,\">1\")+COUNTIF('2011 Survey responses'!AR75,\">1\")+COUNTIF('2011 Survey responses'!BG75,\">1\"))))","v":2.3333333333333335},{"$f":"IF(SUM('2011 Survey responses'!AP75:AS75)<4.1,\"\",(AVERAGEIFS('2011 Survey responses'!AP75:AS75,'2011 Survey responses'!AP75:AS75,\">1\")))","v":2},{"$f":"IF(('2011 Survey responses'!AU75+'2011 Survey responses'!AX75+'2011 Survey responses'!BA75+'2011 Survey responses'!BC75+'2011 Survey responses'!BD75)<5.1,\"\",(SUMIF('2011 Survey responses'!AU75,\">1\")+SUMIF('2011 Survey responses'!AX75,\">1\")+SUMIF('2011 Survey responses'!BA75,\">1\")+SUMIF('2011 Survey responses'!BC75,\">1\")+SUMIF('2011 Survey responses'!BD75,\">1\"))/(COUNTIF('2011 Survey responses'!AU75,\">1\")+COUNTIF('2011 Survey responses'!AX75,\">1\")+COUNTIF('2011 Survey responses'!BA75,\">1\")+COUNTIF('2011 Survey responses'!BC75,\">1\")+COUNTIF('2011 Survey responses'!BD75,\">1\")))","v":2},{"$f":"IF(('2011 Survey responses'!AT75)<1.1,\"\",('2011 Survey responses'!AT75))","v":2},{"$f":"IF(SUM('2011 Survey responses'!AV75:AW75)<2.1,\"\",(AVERAGEIFS('2011 Survey responses'!AV75:AW75,'2011 Survey responses'!AV75:AW75,\">1\")))","v":2},{"$f":"IF(('2011 Survey responses'!AW75+'2011 Survey responses'!AY75)<2.1,\"\",(SUMIF('2011 Survey responses'!AW75,\">1\")+SUMIF('2011 Survey responses'!AY75,\">1\"))/(COUNTIF('2011 Survey responses'!AW75,\">1\")+COUNTIF('2011 Survey responses'!AY75,\">1\")))","v":2},{"$f":"IF(('2011 Survey responses'!AZ75)<1.1,\"\",('2011 Survey responses'!AZ75))","v":2},2,2,3,2,{"$f":"IF(('2011 Survey responses'!BE75)<1.1,\"\",('2011 Survey responses'!BE75))","v":2},{"$f":"IF(('2011 Survey responses'!AY75+'2011 Survey responses'!BB75+'2011 Survey responses'!BF75)<3.1,\"\",(SUMIF('2011 Survey responses'!AY75,\">1\")+SUMIF('2011 Survey responses'!BB75,\">1\")+SUMIF('2011 Survey responses'!BF75,\">1\"))/(COUNTIF('2011 Survey responses'!AY75,\">1\")+COUNTIF('2011 Survey responses'!BB75,\">1\")+COUNTIF('2011 Survey responses'!BF75,\">1\")))","v":2},3,{"$f":"IF(SUM('2011 Survey responses'!BT75:BV75)<3.1,\"\",(AVERAGEIFS('2011 Survey responses'!BT75:BV75,'2011 Survey responses'!BT75:BV75,\">1\")))","v":2},{"$f":"IF(SUM('2011 Survey responses'!BW75:CP75)<1,\"\",(AVERAGEIFS('2011 Survey responses'!BW75:CP75,'2011 Survey responses'!BW75:CP75,\">1\")))","v":3.2105263157894739},{"$f":"IF(SUM('2011 Survey responses'!BW75:CF75)<1,\"\",(AVERAGEIFS('2011 Survey responses'!BW75:CF75,'2011 Survey responses'!BW75:CF75,\">1\")))","v":3.4444444444444446},{"$f":"IF(SUM('2011 Survey responses'!CG75:CP75)<1,\"\",(AVERAGEIFS('2011 Survey responses'!CG75:CP75,'2011 Survey responses'!CG75:CP75,\">1\")))","v":3},{"$f":"IF(SUM('2011 Survey responses'!BX75:CF75)<1,\"\",(AVERAGEIFS('2011 Survey responses'!BX75:CF75,'2011 Survey responses'!BX75:CF75,\">1\")))","v":3.5},{"$f":"IF(SUM('2011 Survey responses'!CH75:CP75)<1,\"\",(AVERAGEIFS('2011 Survey responses'!CH75:CP75,'2011 Survey responses'!CH75:CP75,\">1\")))","v":3},{"$f":"IF(SUM('2011 Survey responses'!BW75:CP75)<1,\"\",(AVERAGEIFS('2011 Survey responses'!BW75:CP75,'2011 Survey responses'!BW75:CP75,\">1\")))","v":3.2105263157894739},{"$f":"IF(('2011 Survey responses'!BW75+'2011 Survey responses'!CG75)<2.1,\"\",(SUMIF('2011 Survey responses'!BW75,\">1\")+SUMIF('2011 Survey responses'!CG75,\">1\"))/(COUNTIF('2011 Survey responses'!BW75,\">1\")+COUNTIF('2011 Survey responses'!CG75,\">1\")))","v":3},{"$f":"IF(('2011 Survey responses'!BX75+'2011 Survey responses'!CH75)<2.1,\"\",(SUMIF('2011 Survey responses'!BX75,\">1\")+SUMIF('2011 Survey responses'!CH75,\">1\"))/(COUNTIF('2011 Survey responses'!BX75,\">1\")+COUNTIF('2011 Survey responses'!CH75,\">1\")))","v":3},{"$f":"IF(('2011 Survey responses'!BY75+'2011 Survey responses'!CI75)<2.1,\"\",(SUMIF('2011 Survey responses'!BY75,\">1\")+SUMIF('2011 Survey responses'!CI75,\">1\"))/(COUNTIF('2011 Survey responses'!BY75,\">1\")+COUNTIF('2011 Survey responses'!CI75,\">1\")))","v":3},{"$f":"IF('2011 Survey responses'!CQ75<0.5,\"\",'2011 Survey responses'!CQ75)","v":1},{"$f":"IF('2011 Survey responses'!CR75<0.5,\"\",'2011 Survey responses'!CR75)","v":1},{"$f":"IF('2011 Survey responses'!CS75<0.5,\"\",'2011 Survey responses'!CS75)","v":1},{"$f":"IF('2011 Survey responses'!CT75<0.5,\"\",'2011 Survey responses'!CT75)","v":1},{"$f":"IF('2011 Survey responses'!CU75<0.5,\"\",'2011 Survey responses'!CU75)","v":1},{"$f":"IF('2011 Survey responses'!CV75<0.5,\"\",'2011 Survey responses'!CV75)","v":1},{"$f":"IF(SUM('2011 Survey responses'!CW75:DL75)<1,\"\",(AVERAGE('2011 Survey responses'!CW75:DL75)))","v":2.5},{"$f":"IF(SUM('2011 Survey responses'!CW75:CZ75)<1,\"\",(AVERAGE('2011 Survey responses'!CW75:CZ75)))","v":3},{"$f":"IF(SUM('2011 Survey responses'!DA75:DD75)<1,\"\",(AVERAGE('2011 Survey responses'!DA75:DD75)))","v":2},{"$f":"IF(SUM('2011 Survey responses'!DE75:DH75)<1,\"\",(AVERAGE('2011 Survey responses'!DE75:DH75)))","v":2},{"$f":"IF(SUM('2011 Survey responses'!DI75:DL75)<1,\"\",(AVERAGE('2011 Survey responses'!DI75:DL75)))","v":3},{"$f":"IF(('2011 Survey responses'!CW75+'2011 Survey responses'!DA75+'2011 Survey responses'!DE75+'2011 Survey responses'!DI75)<1,\"\",AVERAGE('2011 Survey responses'!CW75,'2011 Survey responses'!DA75,'2011 Survey responses'!DE75,'2011 Survey responses'!DI75))","v":2.5},{"$f":"IF(('2011 Survey responses'!CX75+'2011 Survey responses'!DB75+'2011 Survey responses'!DF75+'2011 Survey responses'!DJ75)<1,\"\",AVERAGE('2011 Survey responses'!CX75,'2011 Survey responses'!DB75,'2011 Survey responses'!DF75,'2011 Survey responses'!DJ75))","v":2.5},{"$f":"IF(('2011 Survey responses'!CY75+'2011 Survey responses'!DC75+'2011 Survey responses'!DG75+'2011 Survey responses'!DK75)<1,\"\",AVERAGE('2011 Survey responses'!CY75,'2011 Survey responses'!DC75,'2011 Survey responses'!DG75,'2011 Survey responses'!DK75))","v":2.5},{"$f":"IF(('2011 Survey responses'!CZ75+'2011 Survey responses'!DD75+'2011 Survey responses'!DH75+'2011 Survey responses'!DL75)<1,\"\",AVERAGE('2011 Survey responses'!CZ75,'2011 Survey responses'!DD75,'2011 Survey responses'!DH75,'2011 Survey responses'!DL75))","v":2.5},{"$f":"IF('2011 Survey responses'!CW75<0.5,\"\",'2011 Survey responses'!CW75)","v":3},{"$f":"IF('2011 Survey responses'!CX75<0.5,\"\",'2011 Survey responses'!CX75)","v":3},{"$f":"IF('2011 Survey responses'!CY75<0.5,\"\",'2011 Survey responses'!CY75)","v":3},{"$f":"IF('2011 Survey responses'!CZ75<0.5,\"\",'2011 Survey responses'!CZ75)","v":3},{"$f":"IF('2011 Survey responses'!DA75<0.5,\"\",'2011 Survey responses'!DA75)","v":2},{"$f":"IF('2011 Survey responses'!DB75<0.5,\"\",'2011 Survey responses'!DB75)","v":2},{"$f":"IF('2011 Survey responses'!DC75<0.5,\"\",'2011 Survey responses'!DC75)","v":2},{"$f":"IF('2011 Survey responses'!DD75<0.5,\"\",'2011 Survey responses'!DD75)","v":2},{"$f":"IF('2011 Survey responses'!DE75<0.5,\"\",'2011 Survey responses'!DE75)","v":2},{"$f":"IF('2011 Survey responses'!DF75<0.5,\"\",'2011 Survey responses'!DF75)","v":2},{"$f":"IF('2011 Survey responses'!DG75<0.5,\"\",'2011 Survey responses'!DG75)","v":2},{"$f":"IF('2011 Survey responses'!DH75<0.5,\"\",'2011 Survey responses'!DH75)","v":2},{"$f":"IF('2011 Survey responses'!DI75<0.5,\"\",'2011 Survey responses'!DI75)","v":3},{"$f":"IF('2011 Survey responses'!DJ75<0.5,\"\",'2011 Survey responses'!DJ75)","v":3},{"$f":"IF('2011 Survey responses'!DK75<0.5,\"\",'2011 Survey responses'!DK75)","v":3},{"$f":"IF('2011 Survey responses'!DL75<0.5,\"\",'2011 Survey responses'!DL75)","v":3},{"$f":"IF('2011 Survey responses'!DU75=4,4,IF('2011 Survey responses'!DU75=5,4,\"\"))","v":4},{"$f":"IF('2011 Survey responses'!DV75=4,3,IF('2011 Survey responses'!DV75=5,3,\"\"))","v":""},"",{"$f":"IF(CQ75=2,CQ75,IF(CO75=4,CO75,IF(CP75=3,CP75,IF('2011 Survey responses'!GT75=1,1,\"\"))))","v":4},{"$f":"IF('2011 Survey responses'!DO75<0.5,\"\",'2011 Survey responses'!DO75)","v":3},{"$f":"IF('2011 Survey responses'!DP75<0.5,\"\",'2011 Survey responses'!DP75)","v":5},{"$f":"IF('2011 Survey responses'!DQ75<0.5,\"\",'2011 Survey responses'!DQ75)","v":""},{"$f":"IF('2011 Survey responses'!DR75<0.5,\"\",'2011 Survey responses'!DR75)","v":3},{"$f":"IF('2011 Survey responses'!DS75<0.5,\"\",'2011 Survey responses'!DS75)","v":4},{"$f":"IF('2011 Survey responses'!DT75<0.5,\"\",'2011 Survey responses'!DT75)","v":4},{"$f":"IF('2011 Survey responses'!DU75<0.5,\"\",'2011 Survey responses'!DU75)","v":4},{"$f":"IF('2011 Survey responses'!DV75<0.5,\"\",'2011 Survey responses'!DV75)","v":2},{"$f":"IF('2011 Survey responses'!DW75<0.5,\"\",'2011 Survey responses'!DW75)","v":3},{"$f":"IF('2011 Survey responses'!DX75<0.5,\"\",'2011 Survey responses'!DX75)","v":3},{"$f":"IF('2011 Survey responses'!DY75<0.5,\"\",'2011 Survey responses'!DY75)","v":4},{"$f":"IF('2011 Survey responses'!DZ75<0.5,\"\",'2011 Survey responses'!DZ75)","v":4},{"$f":"IF('2011 Survey responses'!EA75<0.5,\"\",'2011 Survey responses'!EA75)","v":5},{"$f":"IF('2011 Survey responses'!EB75<0.5,\"\",'2011 Survey responses'!EB75)","v":5},{"$f":"IF('2011 Survey responses'!EC75<0.5,\"\",'2011 Survey responses'!EC75)","v":5},{"$f":"IF('2011 Survey responses'!ED75<0.5,\"\",'2011 Survey responses'!ED75)","v":5},{"$f":"IF('2011 Survey responses'!EE75<0.5,\"\",'2011 Survey responses'!EE75)","v":5},{"$f":"IF('2011 Survey responses'!EF75<0.5,\"\",'2011 Survey responses'!EF75)","v":5},{"$f":"IF('2011 Survey responses'!EG75<0.5,\"\",'2011 Survey responses'!EG75)","v":5},{"$f":"IF('2011 Survey responses'!EH75<0.5,\"\",'2011 Survey responses'!EH75)","v":5},{"$f":"IF('2011 Survey responses'!EI75<0.5,\"\",'2011 Survey responses'!EI75)","v":5},{"$f":"IF('2011 Survey responses'!EJ75<0.5,\"\",'2011 Survey responses'!EJ75)","v":5},{"$f":"IF('2011 Survey responses'!EK75<0.5,\"\",'2011 Survey responses'!EK75)","v":5},{"$f":"IF('2011 Survey responses'!EL75<0.5,\"\",'2011 Survey responses'!EL75)","v":5},{"$f":"IF('2011 Survey responses'!EM75<0.5,\"\",'2011 Survey responses'!EM75)","v":5},{"$f":"IF('2011 Survey responses'!EN75<0.5,\"\",'2011 Survey responses'!EN75)","v":3},{"$f":"IF('2011 Survey responses'!EO75<0.5,\"\",'2011 Survey responses'!EO75)","v":3},{"$f":"IF('2011 Survey responses'!EP75<0.5,\"\",'2011 Survey responses'!EP75)","v":3},{"$f":"IF(('2011 Survey responses'!EW75+'2011 Survey responses'!EX75)>=2,AVERAGE('2011 Survey responses'!EW75,'2011 Survey responses'!EY75),\"\")","v":5},{"$f":"IF('2011 Survey responses'!EX75<0.5,\"\",'2011 Survey responses'!EX75)","v":5},{"$f":"IF('2011 Survey responses'!EZ75<0.5,\"\",'2011 Survey responses'!EZ75)","v":5},{"$f":"IF('2011 Survey responses'!FB75<0.5,\"\",'2011 Survey responses'!FB75)","v":5},{"$f":"IF('2011 Survey responses'!FD75<0.5,\"\",'2011 Survey responses'!FD75)","v":5},{"$f":"IF('2011 Survey responses'!FC75<0.5,\"\",'2011 Survey responses'!FC75)","v":5},{"$f":"IF(('2011 Survey responses'!EM75+'2011 Survey responses'!EN75)>=2,AVERAGE('2011 Survey responses'!EM75,'2011 Survey responses'!EN75),\"\")","v":4},{"$f":"IF('2011 Survey responses'!ES75<0.5,\"\",'2011 Survey responses'!ES75)","v":3},{"$f":"IF(('2011 Survey responses'!ET75+'2011 Survey responses'!EU75)>=2,AVERAGE('2011 Survey responses'!ET75,'2011 Survey responses'!EU75),\"\")","v":4},{"$f":"IF('2011 Survey responses'!EV75<0.5,\"\",'2011 Survey responses'!EV75)","v":5},{"$f":"IF('2011 Survey responses'!FA75<0.5,\"\",'2011 Survey responses'!FA75)","v":5},{"$f":"IF('2011 Survey responses'!ER75<0.5,\"\",'2011 Survey responses'!ER75)","v":4},{"$f":"IF(('2011 Survey responses'!EO75+'2011 Survey responses'!EP75)>=2,AVERAGE('2011 Survey responses'!EO75,'2011 Survey responses'!EP75),\"\")","v":3},{"$f":"IF('2011 Survey responses'!EQ75<0.5,\"\",'2011 Survey responses'!EQ75)","v":4},{"$f":"IF('2011 Survey responses'!ET75<0.5,\"\",'2011 Survey responses'!ET75)","v":5},{"$f":"IF('2011 Survey responses'!EU75<0.5,\"\",'2011 Survey responses'!EU75)","v":3},{"$f":"IF('2011 Survey responses'!EW75<0.5,\"\",'2011 Survey responses'!EW75)","v":5},{"$f":"IF('2011 Survey responses'!EY75<0.5,\"\",'2011 Survey responses'!EY75)","v":5},{"$f":"IF('2011 Survey responses'!FU75<0.5,\"\",'2011 Survey responses'!FU75)","v":5},{"$f":"IF(('2011 Survey responses'!FL75+'2011 Survey responses'!FM75)>=2,AVERAGE('2011 Survey responses'!FL75,'2011 Survey responses'!FM75),\"\")","v":5},{"$f":"IF(('2011 Survey responses'!FO75+'2011 Survey responses'!FQ75)>=2,AVERAGE('2011 Survey responses'!FO75,'2011 Survey responses'!FQ75),\"\")","v":5},{"$f":"IF('2011 Survey responses'!FJ75<0.5,\"\",'2011 Survey responses'!FJ75)","v":5},{"$f":"IF('2011 Survey responses'!FT75<0.5,\"\",'2011 Survey responses'!FT75)","v":5},{"$f":"IF('2011 Survey responses'!FR75<0.5,\"\",'2011 Survey responses'!FR75)","v":5},{"$f":"IF('2011 Survey responses'!FK75<0.5,\"\",'2011 Survey responses'!FK75)","v":5},{"$f":"IF('2011 Survey responses'!FP75<0.5,\"\",'2011 Survey responses'!FP75)","v":5},{"$f":"IF('2011 Survey responses'!FN75<0.5,\"\",'2011 Survey responses'!FN75)","v":5},{"$f":"IF(('2011 Survey responses'!FE75+'2011 Survey responses'!FF75)>=2,AVERAGE('2011 Survey responses'!FE75,'2011 Survey responses'!FF75),\"\")","v":5},{"$f":"IF('2011 Survey responses'!FS75<0.5,\"\",'2011 Survey responses'!FS75)","v":5},{"$f":"IF('2011 Survey responses'!FV75<0.5,\"\",'2011 Survey responses'!FV75)","v":5},{"$f":"IF(('2011 Survey responses'!FG75+'2011 Survey responses'!FH75)>=2,AVERAGE('2011 Survey responses'!FG75,'2011 Survey responses'!FH75),\"\")","v":5},{"$f":"IF('2011 Survey responses'!FI75<0.5,\"\",'2011 Survey responses'!FI75)","v":5},{"$f":"IF('2011 Survey responses'!FE75<0.5,\"\",'2011 Survey responses'!FE75)","v":5},{"$f":"IF('2011 Survey responses'!FF75<0.5,\"\",'2011 Survey responses'!FF75)","v":5},{"$f":"IF('2011 Survey responses'!FG75<0.5,\"\",'2011 Survey responses'!FG75)","v":5},{"$f":"IF('2011 Survey responses'!FH75<0.5,\"\",'2011 Survey responses'!FH75)","v":5},{"$f":"IF('2011 Survey responses'!FL75<0.5,\"\",'2011 Survey responses'!FL75)","v":5},{"$f":"IF('2011 Survey responses'!FM75<0.5,\"\",'2011 Survey responses'!FM75)","v":5},{"$f":"IF('2011 Survey responses'!FO75<0.5,\"\",'2011 Survey responses'!FO75)","v":5},{"$f":"IF('2011 Survey responses'!FQ75<0.5,\"\",'2011 Survey responses'!FQ75)","v":5}]
["Honduras",{"$f":"IF(SUM(F76)<1,\"\",AVERAGEIF('2011 Survey responses'!B76:CP76,\">1\"))","v":""},{"$f":"IF(SUM(F76)<1,\"\",AVERAGEIF('2011 Survey responses'!B76:AO76,\">1\"))","v":""},{"$f":"IF(SUM(F76)<1,\"\",AVERAGEIF('2011 Survey responses'!B76:BV76,\">1\"))","v":""},{"$f":"IF(SUM(F76)<1,\"\",AVERAGEIF('2011 Survey responses'!V76:BV76,\">1\"))","v":""},{"$f":"IF(SUM('2011 Survey responses'!B76:U76)<1,\"\",(AVERAGEIFS('2011 Survey responses'!B76:U76,'2011 Survey responses'!B76:U76,\">1\")))","v":""},{"$f":"IF(SUM('2011 Survey responses'!B76:H76)<1,\"\",(AVERAGEIFS('2011 Survey responses'!B76:H76,'2011 Survey responses'!B76:H76,\">1\")))","v":""},{"$f":"IF(SUM('2011 Survey responses'!I76:S76)<1,\"\",(AVERAGEIFS('2011 Survey responses'!I76:S76,'2011 Survey responses'!I76:S76,\">1\")))","v":""},{"$f":"IF(SUM('2011 Survey responses'!T76:U76)<2.1,\"\",(AVERAGEIFS('2011 Survey responses'!T76:U76,'2011 Survey responses'!T76:U76,\">1\")))","v":""},{"$f":"IF(SUM('2011 Survey responses'!B76:C76)<2.1,\"\",((SUMIF('2011 Survey responses'!B76:C76,\">1\")+SUMIF('2011 Survey responses'!F76,\">1\"))/(COUNTIF('2011 Survey responses'!B76:C76,\">1\")+COUNTIF('2011 Survey responses'!F76,\">1\"))))","v":""},{"$f":"IF(SUM('2011 Survey responses'!D76:E76)<2.1,\"\",(AVERAGEIFS('2011 Survey responses'!D76:E76,'2011 Survey responses'!D76:E76,\">1\")))","v":""},{"$f":"IF(('2011 Survey responses'!B76+'2011 Survey responses'!D76)<2.1,\"\",((SUMIF('2011 Survey responses'!B76,\">1\")+SUMIF('2011 Survey responses'!D76,\">1\")+SUMIF('2011 Survey responses'!F76,\">1\")+SUMIF('2011 Survey responses'!K76,\">1\"))/(COUNTIF('2011 Survey responses'!B76,\">1\")+COUNTIF('2011 Survey responses'!D76,\">1\")+COUNTIF('2011 Survey responses'!F76,\">1\")+COUNTIF('2011 Survey responses'!K76,\">1\"))))","v":""},{"$f":"IF(SUM('2011 Survey responses'!G76:H76)<2.1,\"\",(AVERAGEIFS('2011 Survey responses'!G76:H76,'2011 Survey responses'!G76:H76,\">1\")))","v":""},{"$f":"IF(SUM('2011 Survey responses'!F76:G76)<1.5,\"\",MAX('2011 Survey responses'!F76,'2011 Survey responses'!G76))","v":""},{"$f":"IF(SUM('2011 Survey responses'!G76:H76)<1,\"\",MAX('2011 Survey responses'!G76,'2011 Survey responses'!H76))","v":""},{"$f":"IF(SUM('2011 Survey responses'!I76:L76)<4.1,\"\",(AVERAGEIFS('2011 Survey responses'!I76:L76,'2011 Survey responses'!I76:L76,\">1\")))","v":""},{"$f":"IF(SUM('2011 Survey responses'!M76:S76)<4.1,\"\",(AVERAGEIFS('2011 Survey responses'!M76:S76,'2011 Survey responses'!M76:S76,\">1\")))","v":""},{"$f":"IF(SUM('2011 Survey responses'!T76:U76)<2.1,\"\",(AVERAGEIFS('2011 Survey responses'!T76:U76,'2011 Survey responses'!T76:U76,\">1\")))","v":""},{"$f":"IF(SUM('2011 Survey responses'!V76:AO76)<1,\"\",(AVERAGEIFS('2011 Survey responses'!V76:AO76,'2011 Survey responses'!V76:AO76,\">1\")))","v":""},{"$f":"IF(SUM('2011 Survey responses'!V76:AA76)<1,\"\",(AVERAGEIFS('2011 Survey responses'!V76:AA76,'2011 Survey responses'!V76:AA76,\">1\")))","v":""},{"$f":"IF(SUM('2011 Survey responses'!AB76:AH76)<1,\"\",(AVERAGEIFS('2011 Survey responses'!AB76:AH76,'2011 Survey responses'!AB76:AH76,\">1\")))","v":""},{"$f":"IF(SUM('2011 Survey responses'!AI76:AO76)<1,\"\",(AVERAGEIFS('2011 Survey responses'!AI76:AO76,'2011 Survey responses'!AI76:AO76,\">1\")))","v":""},{"$f":"IF(('2011 Survey responses'!Y76+'2011 Survey responses'!AI76+'2011 Survey responses'!AK76)<3.1,\"\",((SUMIF('2011 Survey responses'!Y76,\">1\")+SUMIF('2011 Survey responses'!AI76,\">1\")+SUMIF('2011 Survey responses'!AK76,\">1\")+SUMIF('2011 Survey responses'!AM76,\">1\"))/(COUNTIF('2011 Survey responses'!Y76,\">1\")+COUNTIF('2011 Survey responses'!AI76,\">1\")+COUNTIF('2011 Survey responses'!AK76,\">1\")+COUNTIF('2011 Survey responses'!AM76,\">1\"))))","v":""},{"$f":"IF(('2011 Survey responses'!W76)<1.1,\"\",('2011 Survey responses'!W76))","v":""},{"$f":"IF(('2011 Survey responses'!Y76)<1.1,\"\",('2011 Survey responses'!Y76))","v":""},{"$f":"IF(('2011 Survey responses'!Z76)<1.1,\"\",('2011 Survey responses'!Z76))","v":""},{"$f":"IF(('2011 Survey responses'!V76+'2011 Survey responses'!X76+'2011 Survey responses'!AA76)<3.1,\"\",((SUMIF('2011 Survey responses'!V76,\">1\")+SUMIF('2011 Survey responses'!X76,\">1\")+SUMIF('2011 Survey responses'!AA76,\">1\"))/(COUNTIF('2011 Survey responses'!V76,\">1\")+COUNTIF('2011 Survey responses'!X76,\">1\")+COUNTIF('2011 Survey responses'!AA76,\">1\"))))","v":""},{"$f":"IF(('2011 Survey responses'!V76+'2011 Survey responses'!Y76+'2011 Survey responses'!AA76)<3.1,\"\",((SUMIF('2011 Survey responses'!V76,\">1\")+SUMIF('2011 Survey responses'!Y76,\">1\")+SUMIF('2011 Survey responses'!AA76,\">1\"))/(COUNTIF('2011 Survey responses'!V76,\">1\")+COUNTIF('2011 Survey responses'!Y76,\">1\")+COUNTIF('2011 Survey responses'!AA76,\">1\"))))","v":""},{"$f":"IF(SUM('2011 Survey responses'!AB76:AH76)<1,\"\",(AVERAGEIFS('2011 Survey responses'!AB76:AH76,'2011 Survey responses'!AB76:AH76,\">1\")))","v":""},{"$f":"IF(SUM('2011 Survey responses'!AI76:AO76)<7.1,\"\",(AVERAGEIFS('2011 Survey responses'!AI76:AO76,'2011 Survey responses'!AI76:AO76,\">1\")))","v":""},{"$f":"IF(('2011 Survey responses'!AH76)<1.1,\"\",('2011 Survey responses'!AH76))","v":""},{"$f":"IF(SUM('2011 Survey responses'!AP76:BV76)<1,\"\",(AVERAGEIFS('2011 Survey responses'!AP76:BV76,'2011 Survey responses'!AP76:BV76,\">1\")))","v":""},{"$f":"IF(SUM('2011 Survey responses'!AP76:AS76)<4.1,\"\",(AVERAGEIFS('2011 Survey responses'!AP76:AS76,'2011 Survey responses'!AP76:AS76,\">1\")))","v":""},{"$f":"IF(SUM('2011 Survey responses'!AT76:BF76)<1,\"\",(AVERAGEIFS('2011 Survey responses'!AT76:BF76,'2011 Survey responses'!AT76:BF76,\">1\")))","v":""},{"$f":"IF(SUM('2011 Survey responses'!BG76:BO76)<1,\"\",(AVERAGEIFS('2011 Survey responses'!BG76:BO76,'2011 Survey responses'!BG76:BO76,\">1\")))","v":""},{"$f":"IF(SUM('2011 Survey responses'!BP76:BS76)<1,\"\",(AVERAGEIFS('2011 Survey responses'!BP76:BS76,'2011 Survey responses'!BP76:BS76,\">1\")))","v":""},{"$f":"IF(SUM('2011 Survey responses'!BT76:BV76)<3.1,\"\",(AVERAGEIFS('2011 Survey responses'!BT76:BV76,'2011 Survey responses'!BT76:BV76,\">1\")))","v":""},{"$f":"IF(('2011 Survey responses'!AQ76+'2011 Survey responses'!AR76+'2011 Survey responses'!BG76)<3.1,\"\",((SUMIF('2011 Survey responses'!AQ76,\">1\")+SUMIF('2011 Survey responses'!AR76,\">1\")+SUMIF('2011 Survey responses'!BG76,\">1\"))/(COUNTIF('2011 Survey responses'!AQ76,\">1\")+COUNTIF('2011 Survey responses'!AR76,\">1\")+COUNTIF('2011 Survey responses'!BG76,\">1\"))))","v":""},{"$f":"IF(SUM('2011 Survey responses'!AP76:AS76)<4.1,\"\",(AVERAGEIFS('2011 Survey responses'!AP76:AS76,'2011 Survey responses'!AP76:AS76,\">1\")))","v":""},{"$f":"IF(('2011 Survey responses'!AU76+'2011 Survey responses'!AX76+'2011 Survey responses'!BA76+'2011 Survey responses'!BC76+'2011 Survey responses'!BD76)<5.1,\"\",(SUMIF('2011 Survey responses'!AU76,\">1\")+SUMIF('2011 Survey responses'!AX76,\">1\")+SUMIF('2011 Survey responses'!BA76,\">1\")+SUMIF('2011 Survey responses'!BC76,\">1\")+SUMIF('2011 Survey responses'!BD76,\">1\"))/(COUNTIF('2011 Survey responses'!AU76,\">1\")+COUNTIF('2011 Survey responses'!AX76,\">1\")+COUNTIF('2011 Survey responses'!BA76,\">1\")+COUNTIF('2011 Survey responses'!BC76,\">1\")+COUNTIF('2011 Survey responses'!BD76,\">1\")))","v":""},{"$f":"IF(('2011 Survey responses'!AT76)<1.1,\"\",('2011 Survey responses'!AT76))","v":""},{"$f":"IF(SUM('2011 Survey responses'!AV76:AW76)<2.1,\"\",(AVERAGEIFS('2011 Survey responses'!AV76:AW76,'2011 Survey responses'!AV76:AW76,\">1\")))","v":""},{"$f":"IF(('2011 Survey responses'!AW76+'2011 Survey responses'!AY76)<2.1,\"\",(SUMIF('2011 Survey responses'!AW76,\">1\")+SUMIF('2011 Survey responses'!AY76,\">1\"))/(COUNTIF('2011 Survey responses'!AW76,\">1\")+COUNTIF('2011 Survey responses'!AY76,\">1\")))","v":""},{"$f":"IF(('2011 Survey responses'!AZ76)<1.1,\"\",('2011 Survey responses'!AZ76))","v":""},null,null,null,null,{"$f":"IF(('2011 Survey responses'!BE76)<1.1,\"\",('2011 Survey responses'!BE76))","v":""},{"$f":"IF(('2011 Survey responses'!AY76+'2011 Survey responses'!BB76+'2011 Survey responses'!BF76)<3.1,\"\",(SUMIF('2011 Survey responses'!AY76,\">1\")+SUMIF('2011 Survey responses'!BB76,\">1\")+SUMIF('2011 Survey responses'!BF76,\">1\"))/(COUNTIF('2011 Survey responses'!AY76,\">1\")+COUNTIF('2011 Survey responses'!BB76,\">1\")+COUNTIF('2011 Survey responses'!BF76,\">1\")))","v":""},"",{"$f":"IF(SUM('2011 Survey responses'!BT76:BV76)<3.1,\"\",(AVERAGEIFS('2011 Survey responses'!BT76:BV76,'2011 Survey responses'!BT76:BV76,\">1\")))","v":""},{"$f":"IF(SUM('2011 Survey responses'!BW76:CP76)<1,\"\",(AVERAGEIFS('2011 Survey responses'!BW76:CP76,'2011 Survey responses'!BW76:CP76,\">1\")))","v":""},{"$f":"IF(SUM('2011 Survey responses'!BW76:CF76)<1,\"\",(AVERAGEIFS('2011 Survey responses'!BW76:CF76,'2011 Survey responses'!BW76:CF76,\">1\")))","v":""},{"$f":"IF(SUM('2011 Survey responses'!CG76:CP76)<1,\"\",(AVERAGEIFS('2011 Survey responses'!CG76:CP76,'2011 Survey responses'!CG76:CP76,\">1\")))","v":""},{"$f":"IF(SUM('2011 Survey responses'!BX76:CF76)<1,\"\",(AVERAGEIFS('2011 Survey responses'!BX76:CF76,'2011 Survey responses'!BX76:CF76,\">1\")))","v":""},{"$f":"IF(SUM('2011 Survey responses'!CH76:CP76)<1,\"\",(AVERAGEIFS('2011 Survey responses'!CH76:CP76,'2011 Survey responses'!CH76:CP76,\">1\")))","v":""},{"$f":"IF(SUM('2011 Survey responses'!BW76:CP76)<1,\"\",(AVERAGEIFS('2011 Survey responses'!BW76:CP76,'2011 Survey responses'!BW76:CP76,\">1\")))","v":""},{"$f":"IF(('2011 Survey responses'!BW76+'2011 Survey responses'!CG76)<2.1,\"\",(SUMIF('2011 Survey responses'!BW76,\">1\")+SUMIF('2011 Survey responses'!CG76,\">1\"))/(COUNTIF('2011 Survey responses'!BW76,\">1\")+COUNTIF('2011 Survey responses'!CG76,\">1\")))","v":""},{"$f":"IF(('2011 Survey responses'!BX76+'2011 Survey responses'!CH76)<2.1,\"\",(SUMIF('2011 Survey responses'!BX76,\">1\")+SUMIF('2011 Survey responses'!CH76,\">1\"))/(COUNTIF('2011 Survey responses'!BX76,\">1\")+COUNTIF('2011 Survey responses'!CH76,\">1\")))","v":""},{"$f":"IF(('2011 Survey responses'!BY76+'2011 Survey responses'!CI76)<2.1,\"\",(SUMIF('2011 Survey responses'!BY76,\">1\")+SUMIF('2011 Survey responses'!CI76,\">1\"))/(COUNTIF('2011 Survey responses'!BY76,\">1\")+COUNTIF('2011 Survey responses'!CI76,\">1\")))","v":""},{"$f":"IF('2011 Survey responses'!CQ76<0.5,\"\",'2011 Survey responses'!CQ76)","v":""},{"$f":"IF('2011 Survey responses'!CR76<0.5,\"\",'2011 Survey responses'!CR76)","v":""},{"$f":"IF('2011 Survey responses'!CS76<0.5,\"\",'2011 Survey responses'!CS76)","v":""},{"$f":"IF('2011 Survey responses'!CT76<0.5,\"\",'2011 Survey responses'!CT76)","v":""},{"$f":"IF('2011 Survey responses'!CU76<0.5,\"\",'2011 Survey responses'!CU76)","v":""},{"$f":"IF('2011 Survey responses'!CV76<0.5,\"\",'2011 Survey responses'!CV76)","v":""},{"$f":"IF(SUM('2011 Survey responses'!CW76:DL76)<1,\"\",(AVERAGE('2011 Survey responses'!CW76:DL76)))","v":""},{"$f":"IF(SUM('2011 Survey responses'!CW76:CZ76)<1,\"\",(AVERAGE('2011 Survey responses'!CW76:CZ76)))","v":""},{"$f":"IF(SUM('2011 Survey responses'!DA76:DD76)<1,\"\",(AVERAGE('2011 Survey responses'!DA76:DD76)))","v":""},{"$f":"IF(SUM('2011 Survey responses'!DE76:DH76)<1,\"\",(AVERAGE('2011 Survey responses'!DE76:DH76)))","v":""},{"$f":"IF(SUM('2011 Survey responses'!DI76:DL76)<1,\"\",(AVERAGE('2011 Survey responses'!DI76:DL76)))","v":""},{"$f":"IF(('2011 Survey responses'!CW76+'2011 Survey responses'!DA76+'2011 Survey responses'!DE76+'2011 Survey responses'!DI76)<1,\"\",AVERAGE('2011 Survey responses'!CW76,'2011 Survey responses'!DA76,'2011 Survey responses'!DE76,'2011 Survey responses'!DI76))","v":""},{"$f":"IF(('2011 Survey responses'!CX76+'2011 Survey responses'!DB76+'2011 Survey responses'!DF76+'2011 Survey responses'!DJ76)<1,\"\",AVERAGE('2011 Survey responses'!CX76,'2011 Survey responses'!DB76,'2011 Survey responses'!DF76,'2011 Survey responses'!DJ76))","v":""},{"$f":"IF(('2011 Survey responses'!CY76+'2011 Survey responses'!DC76+'2011 Survey responses'!DG76+'2011 Survey responses'!DK76)<1,\"\",AVERAGE('2011 Survey responses'!CY76,'2011 Survey responses'!DC76,'2011 Survey responses'!DG76,'2011 Survey responses'!DK76))","v":""},{"$f":"IF(('2011 Survey responses'!CZ76+'2011 Survey responses'!DD76+'2011 Survey responses'!DH76+'2011 Survey responses'!DL76)<1,\"\",AVERAGE('2011 Survey responses'!CZ76,'2011 Survey responses'!DD76,'2011 Survey responses'!DH76,'2011 Survey responses'!DL76))","v":""},{"$f":"IF('2011 Survey responses'!CW76<0.5,\"\",'2011 Survey responses'!CW76)","v":""},{"$f":"IF('2011 Survey responses'!CX76<0.5,\"\",'2011 Survey responses'!CX76)","v":""},{"$f":"IF('2011 Survey responses'!CY76<0.5,\"\",'2011 Survey responses'!CY76)","v":""},{"$f":"IF('2011 Survey responses'!CZ76<0.5,\"\",'2011 Survey responses'!CZ76)","v":""},{"$f":"IF('2011 Survey responses'!DA76<0.5,\"\",'2011 Survey responses'!DA76)","v":""},{"$f":"IF('2011 Survey responses'!DB76<0.5,\"\",'2011 Survey responses'!DB76)","v":""},{"$f":"IF('2011 Survey responses'!DC76<0.5,\"\",'2011 Survey responses'!DC76)","v":""},{"$f":"IF('2011 Survey responses'!DD76<0.5,\"\",'2011 Survey responses'!DD76)","v":""},{"$f":"IF('2011 Survey responses'!DE76<0.5,\"\",'2011 Survey responses'!DE76)","v":""},{"$f":"IF('2011 Survey responses'!DF76<0.5,\"\",'2011 Survey responses'!DF76)","v":""},{"$f":"IF('2011 Survey responses'!DG76<0.5,\"\",'2011 Survey responses'!DG76)","v":""},{"$f":"IF('2011 Survey responses'!DH76<0.5,\"\",'2011 Survey responses'!DH76)","v":""},{"$f":"IF('2011 Survey responses'!DI76<0.5,\"\",'2011 Survey responses'!DI76)","v":""},{"$f":"IF('2011 Survey responses'!DJ76<0.5,\"\",'2011 Survey responses'!DJ76)","v":""},{"$f":"IF('2011 Survey responses'!DK76<0.5,\"\",'2011 Survey responses'!DK76)","v":""},{"$f":"IF('2011 Survey responses'!DL76<0.5,\"\",'2011 Survey responses'!DL76)","v":""},{"$f":"IF('2011 Survey responses'!DU76=4,4,IF('2011 Survey responses'!DU76=5,4,\"\"))","v":""},{"$f":"IF('2011 Survey responses'!DV76=4,3,IF('2011 Survey responses'!DV76=5,3,\"\"))","v":""},"",{"$f":"IF(CQ76=2,CQ76,IF(CO76=4,CO76,IF(CP76=3,CP76,IF('2011 Survey responses'!GT76=1,1,\"\"))))","v":""},{"$f":"IF('2011 Survey responses'!DO76<0.5,\"\",'2011 Survey responses'!DO76)","v":""},{"$f":"IF('2011 Survey responses'!DP76<0.5,\"\",'2011 Survey responses'!DP76)","v":""},{"$f":"IF('2011 Survey responses'!DQ76<0.5,\"\",'2011 Survey responses'!DQ76)","v":""},{"$f":"IF('2011 Survey responses'!DR76<0.5,\"\",'2011 Survey responses'!DR76)","v":""},{"$f":"IF('2011 Survey responses'!DS76<0.5,\"\",'2011 Survey responses'!DS76)","v":""},{"$f":"IF('2011 Survey responses'!DT76<0.5,\"\",'2011 Survey responses'!DT76)","v":""},{"$f":"IF('2011 Survey responses'!DU76<0.5,\"\",'2011 Survey responses'!DU76)","v":""},{"$f":"IF('2011 Survey responses'!DV76<0.5,\"\",'2011 Survey responses'!DV76)","v":""},{"$f":"IF('2011 Survey responses'!DW76<0.5,\"\",'2011 Survey responses'!DW76)","v":""},{"$f":"IF('2011 Survey responses'!DX76<0.5,\"\",'2011 Survey responses'!DX76)","v":""},{"$f":"IF('2011 Survey responses'!DY76<0.5,\"\",'2011 Survey responses'!DY76)","v":""},{"$f":"IF('2011 Survey responses'!DZ76<0.5,\"\",'2011 Survey responses'!DZ76)","v":""},{"$f":"IF('2011 Survey responses'!EA76<0.5,\"\",'2011 Survey responses'!EA76)","v":""},{"$f":"IF('2011 Survey responses'!EB76<0.5,\"\",'2011 Survey responses'!EB76)","v":""},{"$f":"IF('2011 Survey responses'!EC76<0.5,\"\",'2011 Survey responses'!EC76)","v":""},{"$f":"IF('2011 Survey responses'!ED76<0.5,\"\",'2011 Survey responses'!ED76)","v":""},{"$f":"IF('2011 Survey responses'!EE76<0.5,\"\",'2011 Survey responses'!EE76)","v":""},{"$f":"IF('2011 Survey responses'!EF76<0.5,\"\",'2011 Survey responses'!EF76)","v":""},{"$f":"IF('2011 Survey responses'!EG76<0.5,\"\",'2011 Survey responses'!EG76)","v":""},{"$f":"IF('2011 Survey responses'!EH76<0.5,\"\",'2011 Survey responses'!EH76)","v":""},{"$f":"IF('2011 Survey responses'!EI76<0.5,\"\",'2011 Survey responses'!EI76)","v":""},{"$f":"IF('2011 Survey responses'!EJ76<0.5,\"\",'2011 Survey responses'!EJ76)","v":""},{"$f":"IF('2011 Survey responses'!EK76<0.5,\"\",'2011 Survey responses'!EK76)","v":""},{"$f":"IF('2011 Survey responses'!EL76<0.5,\"\",'2011 Survey responses'!EL76)","v":""},{"$f":"IF('2011 Survey responses'!EM76<0.5,\"\",'2011 Survey responses'!EM76)","v":""},{"$f":"IF('2011 Survey responses'!EN76<0.5,\"\",'2011 Survey responses'!EN76)","v":""},{"$f":"IF('2011 Survey responses'!EO76<0.5,\"\",'2011 Survey responses'!EO76)","v":""},{"$f":"IF('2011 Survey responses'!EP76<0.5,\"\",'2011 Survey responses'!EP76)","v":""},{"$f":"IF(('2011 Survey responses'!EW76+'2011 Survey responses'!EX76)>=2,AVERAGE('2011 Survey responses'!EW76,'2011 Survey responses'!EY76),\"\")","v":""},{"$f":"IF('2011 Survey responses'!EX76<0.5,\"\",'2011 Survey responses'!EX76)","v":""},{"$f":"IF('2011 Survey responses'!EZ76<0.5,\"\",'2011 Survey responses'!EZ76)","v":""},{"$f":"IF('2011 Survey responses'!FB76<0.5,\"\",'2011 Survey responses'!FB76)","v":""},{"$f":"IF('2011 Survey responses'!FD76<0.5,\"\",'2011 Survey responses'!FD76)","v":""},{"$f":"IF('2011 Survey responses'!FC76<0.5,\"\",'2011 Survey responses'!FC76)","v":""},{"$f":"IF(('2011 Survey responses'!EM76+'2011 Survey responses'!EN76)>=2,AVERAGE('2011 Survey responses'!EM76,'2011 Survey responses'!EN76),\"\")","v":""},{"$f":"IF('2011 Survey responses'!ES76<0.5,\"\",'2011 Survey responses'!ES76)","v":""},{"$f":"IF(('2011 Survey responses'!ET76+'2011 Survey responses'!EU76)>=2,AVERAGE('2011 Survey responses'!ET76,'2011 Survey responses'!EU76),\"\")","v":""},{"$f":"IF('2011 Survey responses'!EV76<0.5,\"\",'2011 Survey responses'!EV76)","v":""},{"$f":"IF('2011 Survey responses'!FA76<0.5,\"\",'2011 Survey responses'!FA76)","v":""},{"$f":"IF('2011 Survey responses'!ER76<0.5,\"\",'2011 Survey responses'!ER76)","v":""},{"$f":"IF(('2011 Survey responses'!EO76+'2011 Survey responses'!EP76)>=2,AVERAGE('2011 Survey responses'!EO76,'2011 Survey responses'!EP76),\"\")","v":""},{"$f":"IF('2011 Survey responses'!EQ76<0.5,\"\",'2011 Survey responses'!EQ76)","v":""},{"$f":"IF('2011 Survey responses'!ET76<0.5,\"\",'2011 Survey responses'!ET76)","v":""},{"$f":"IF('2011 Survey responses'!EU76<0.5,\"\",'2011 Survey responses'!EU76)","v":""},{"$f":"IF('2011 Survey responses'!EW76<0.5,\"\",'2011 Survey responses'!EW76)","v":""},{"$f":"IF('2011 Survey responses'!EY76<0.5,\"\",'2011 Survey responses'!EY76)","v":""},{"$f":"IF('2011 Survey responses'!FU76<0.5,\"\",'2011 Survey responses'!FU76)","v":""},{"$f":"IF(('2011 Survey responses'!FL76+'2011 Survey responses'!FM76)>=2,AVERAGE('2011 Survey responses'!FL76,'2011 Survey responses'!FM76),\"\")","v":""},{"$f":"IF(('2011 Survey responses'!FO76+'2011 Survey responses'!FQ76)>=2,AVERAGE('2011 Survey responses'!FO76,'2011 Survey responses'!FQ76),\"\")","v":""},{"$f":"IF('2011 Survey responses'!FJ76<0.5,\"\",'2011 Survey responses'!FJ76)","v":""},{"$f":"IF('2011 Survey responses'!FT76<0.5,\"\",'2011 Survey responses'!FT76)","v":""},{"$f":"IF('2011 Survey responses'!FR76<0.5,\"\",'2011 Survey responses'!FR76)","v":""},{"$f":"IF('2011 Survey responses'!FK76<0.5,\"\",'2011 Survey responses'!FK76)","v":""},{"$f":"IF('2011 Survey responses'!FP76<0.5,\"\",'2011 Survey responses'!FP76)","v":""},{"$f":"IF('2011 Survey responses'!FN76<0.5,\"\",'2011 Survey responses'!FN76)","v":""},{"$f":"IF(('2011 Survey responses'!FE76+'2011 Survey responses'!FF76)>=2,AVERAGE('2011 Survey responses'!FE76,'2011 Survey responses'!FF76),\"\")","v":""},{"$f":"IF('2011 Survey responses'!FS76<0.5,\"\",'2011 Survey responses'!FS76)","v":""},{"$f":"IF('2011 Survey responses'!FV76<0.5,\"\",'2011 Survey responses'!FV76)","v":""},{"$f":"IF(('2011 Survey responses'!FG76+'2011 Survey responses'!FH76)>=2,AVERAGE('2011 Survey responses'!FG76,'2011 Survey responses'!FH76),\"\")","v":""},{"$f":"IF('2011 Survey responses'!FI76<0.5,\"\",'2011 Survey responses'!FI76)","v":""},{"$f":"IF('2011 Survey responses'!FE76<0.5,\"\",'2011 Survey responses'!FE76)","v":""},{"$f":"IF('2011 Survey responses'!FF76<0.5,\"\",'2011 Survey responses'!FF76)","v":""},{"$f":"IF('2011 Survey responses'!FG76<0.5,\"\",'2011 Survey responses'!FG76)","v":""},{"$f":"IF('2011 Survey responses'!FH76<0.5,\"\",'2011 Survey responses'!FH76)","v":""},{"$f":"IF('2011 Survey responses'!FL76<0.5,\"\",'2011 Survey responses'!FL76)","v":""},{"$f":"IF('2011 Survey responses'!FM76<0.5,\"\",'2011 Survey responses'!FM76)","v":""},{"$f":"IF('2011 Survey responses'!FO76<0.5,\"\",'2011 Survey responses'!FO76)","v":""},{"$f":"IF('2011 Survey responses'!FQ76<0.5,\"\",'2011 Survey responses'!FQ76)","v":""}]
["Hungary",{"$f":"IF(SUM(F77)<1,\"\",AVERAGEIF('2011 Survey responses'!B77:CP77,\">1\"))","v":""},{"$f":"IF(SUM(F77)<1,\"\",AVERAGEIF('2011 Survey responses'!B77:AO77,\">1\"))","v":""},{"$f":"IF(SUM(F77)<1,\"\",AVERAGEIF('2011 Survey responses'!B77:BV77,\">1\"))","v":""},{"$f":"IF(SUM(F77)<1,\"\",AVERAGEIF('2011 Survey responses'!V77:BV77,\">1\"))","v":""},{"$f":"IF(SUM('2011 Survey responses'!B77:U77)<1,\"\",(AVERAGEIFS('2011 Survey responses'!B77:U77,'2011 Survey responses'!B77:U77,\">1\")))","v":""},{"$f":"IF(SUM('2011 Survey responses'!B77:H77)<1,\"\",(AVERAGEIFS('2011 Survey responses'!B77:H77,'2011 Survey responses'!B77:H77,\">1\")))","v":""},{"$f":"IF(SUM('2011 Survey responses'!I77:S77)<1,\"\",(AVERAGEIFS('2011 Survey responses'!I77:S77,'2011 Survey responses'!I77:S77,\">1\")))","v":""},{"$f":"IF(SUM('2011 Survey responses'!T77:U77)<2.1,\"\",(AVERAGEIFS('2011 Survey responses'!T77:U77,'2011 Survey responses'!T77:U77,\">1\")))","v":""},{"$f":"IF(SUM('2011 Survey responses'!B77:C77)<2.1,\"\",((SUMIF('2011 Survey responses'!B77:C77,\">1\")+SUMIF('2011 Survey responses'!F77,\">1\"))/(COUNTIF('2011 Survey responses'!B77:C77,\">1\")+COUNTIF('2011 Survey responses'!F77,\">1\"))))","v":""},{"$f":"IF(SUM('2011 Survey responses'!D77:E77)<2.1,\"\",(AVERAGEIFS('2011 Survey responses'!D77:E77,'2011 Survey responses'!D77:E77,\">1\")))","v":""},{"$f":"IF(('2011 Survey responses'!B77+'2011 Survey responses'!D77)<2.1,\"\",((SUMIF('2011 Survey responses'!B77,\">1\")+SUMIF('2011 Survey responses'!D77,\">1\")+SUMIF('2011 Survey responses'!F77,\">1\")+SUMIF('2011 Survey responses'!K77,\">1\"))/(COUNTIF('2011 Survey responses'!B77,\">1\")+COUNTIF('2011 Survey responses'!D77,\">1\")+COUNTIF('2011 Survey responses'!F77,\">1\")+COUNTIF('2011 Survey responses'!K77,\">1\"))))","v":""},{"$f":"IF(SUM('2011 Survey responses'!G77:H77)<2.1,\"\",(AVERAGEIFS('2011 Survey responses'!G77:H77,'2011 Survey responses'!G77:H77,\">1\")))","v":""},{"$f":"IF(SUM('2011 Survey responses'!F77:G77)<1.5,\"\",MAX('2011 Survey responses'!F77,'2011 Survey responses'!G77))","v":""},{"$f":"IF(SUM('2011 Survey responses'!G77:H77)<1,\"\",MAX('2011 Survey responses'!G77,'2011 Survey responses'!H77))","v":""},{"$f":"IF(SUM('2011 Survey responses'!I77:L77)<4.1,\"\",(AVERAGEIFS('2011 Survey responses'!I77:L77,'2011 Survey responses'!I77:L77,\">1\")))","v":""},{"$f":"IF(SUM('2011 Survey responses'!M77:S77)<4.1,\"\",(AVERAGEIFS('2011 Survey responses'!M77:S77,'2011 Survey responses'!M77:S77,\">1\")))","v":""},{"$f":"IF(SUM('2011 Survey responses'!T77:U77)<2.1,\"\",(AVERAGEIFS('2011 Survey responses'!T77:U77,'2011 Survey responses'!T77:U77,\">1\")))","v":""},{"$f":"IF(SUM('2011 Survey responses'!V77:AO77)<1,\"\",(AVERAGEIFS('2011 Survey responses'!V77:AO77,'2011 Survey responses'!V77:AO77,\">1\")))","v":""},{"$f":"IF(SUM('2011 Survey responses'!V77:AA77)<1,\"\",(AVERAGEIFS('2011 Survey responses'!V77:AA77,'2011 Survey responses'!V77:AA77,\">1\")))","v":""},{"$f":"IF(SUM('2011 Survey responses'!AB77:AH77)<1,\"\",(AVERAGEIFS('2011 Survey responses'!AB77:AH77,'2011 Survey responses'!AB77:AH77,\">1\")))","v":""},{"$f":"IF(SUM('2011 Survey responses'!AI77:AO77)<1,\"\",(AVERAGEIFS('2011 Survey responses'!AI77:AO77,'2011 Survey responses'!AI77:AO77,\">1\")))","v":""},{"$f":"IF(('2011 Survey responses'!Y77+'2011 Survey responses'!AI77+'2011 Survey responses'!AK77)<3.1,\"\",((SUMIF('2011 Survey responses'!Y77,\">1\")+SUMIF('2011 Survey responses'!AI77,\">1\")+SUMIF('2011 Survey responses'!AK77,\">1\")+SUMIF('2011 Survey responses'!AM77,\">1\"))/(COUNTIF('2011 Survey responses'!Y77,\">1\")+COUNTIF('2011 Survey responses'!AI77,\">1\")+COUNTIF('2011 Survey responses'!AK77,\">1\")+COUNTIF('2011 Survey responses'!AM77,\">1\"))))","v":""},{"$f":"IF(('2011 Survey responses'!W77)<1.1,\"\",('2011 Survey responses'!W77))","v":""},{"$f":"IF(('2011 Survey responses'!Y77)<1.1,\"\",('2011 Survey responses'!Y77))","v":""},{"$f":"IF(('2011 Survey responses'!Z77)<1.1,\"\",('2011 Survey responses'!Z77))","v":""},{"$f":"IF(('2011 Survey responses'!V77+'2011 Survey responses'!X77+'2011 Survey responses'!AA77)<3.1,\"\",((SUMIF('2011 Survey responses'!V77,\">1\")+SUMIF('2011 Survey responses'!X77,\">1\")+SUMIF('2011 Survey responses'!AA77,\">1\"))/(COUNTIF('2011 Survey responses'!V77,\">1\")+COUNTIF('2011 Survey responses'!X77,\">1\")+COUNTIF('2011 Survey responses'!AA77,\">1\"))))","v":""},{"$f":"IF(('2011 Survey responses'!V77+'2011 Survey responses'!Y77+'2011 Survey responses'!AA77)<3.1,\"\",((SUMIF('2011 Survey responses'!V77,\">1\")+SUMIF('2011 Survey responses'!Y77,\">1\")+SUMIF('2011 Survey responses'!AA77,\">1\"))/(COUNTIF('2011 Survey responses'!V77,\">1\")+COUNTIF('2011 Survey responses'!Y77,\">1\")+COUNTIF('2011 Survey responses'!AA77,\">1\"))))","v":""},{"$f":"IF(SUM('2011 Survey responses'!AB77:AH77)<1,\"\",(AVERAGEIFS('2011 Survey responses'!AB77:AH77,'2011 Survey responses'!AB77:AH77,\">1\")))","v":""},{"$f":"IF(SUM('2011 Survey responses'!AI77:AO77)<7.1,\"\",(AVERAGEIFS('2011 Survey responses'!AI77:AO77,'2011 Survey responses'!AI77:AO77,\">1\")))","v":""},{"$f":"IF(('2011 Survey responses'!AH77)<1.1,\"\",('2011 Survey responses'!AH77))","v":""},{"$f":"IF(SUM('2011 Survey responses'!AP77:BV77)<1,\"\",(AVERAGEIFS('2011 Survey responses'!AP77:BV77,'2011 Survey responses'!AP77:BV77,\">1\")))","v":""},{"$f":"IF(SUM('2011 Survey responses'!AP77:AS77)<4.1,\"\",(AVERAGEIFS('2011 Survey responses'!AP77:AS77,'2011 Survey responses'!AP77:AS77,\">1\")))","v":""},{"$f":"IF(SUM('2011 Survey responses'!AT77:BF77)<1,\"\",(AVERAGEIFS('2011 Survey responses'!AT77:BF77,'2011 Survey responses'!AT77:BF77,\">1\")))","v":""},{"$f":"IF(SUM('2011 Survey responses'!BG77:BO77)<1,\"\",(AVERAGEIFS('2011 Survey responses'!BG77:BO77,'2011 Survey responses'!BG77:BO77,\">1\")))","v":""},{"$f":"IF(SUM('2011 Survey responses'!BP77:BS77)<1,\"\",(AVERAGEIFS('2011 Survey responses'!BP77:BS77,'2011 Survey responses'!BP77:BS77,\">1\")))","v":""},{"$f":"IF(SUM('2011 Survey responses'!BT77:BV77)<3.1,\"\",(AVERAGEIFS('2011 Survey responses'!BT77:BV77,'2011 Survey responses'!BT77:BV77,\">1\")))","v":""},{"$f":"IF(('2011 Survey responses'!AQ77+'2011 Survey responses'!AR77+'2011 Survey responses'!BG77)<3.1,\"\",((SUMIF('2011 Survey responses'!AQ77,\">1\")+SUMIF('2011 Survey responses'!AR77,\">1\")+SUMIF('2011 Survey responses'!BG77,\">1\"))/(COUNTIF('2011 Survey responses'!AQ77,\">1\")+COUNTIF('2011 Survey responses'!AR77,\">1\")+COUNTIF('2011 Survey responses'!BG77,\">1\"))))","v":""},{"$f":"IF(SUM('2011 Survey responses'!AP77:AS77)<4.1,\"\",(AVERAGEIFS('2011 Survey responses'!AP77:AS77,'2011 Survey responses'!AP77:AS77,\">1\")))","v":""},{"$f":"IF(('2011 Survey responses'!AU77+'2011 Survey responses'!AX77+'2011 Survey responses'!BA77+'2011 Survey responses'!BC77+'2011 Survey responses'!BD77)<5.1,\"\",(SUMIF('2011 Survey responses'!AU77,\">1\")+SUMIF('2011 Survey responses'!AX77,\">1\")+SUMIF('2011 Survey responses'!BA77,\">1\")+SUMIF('2011 Survey responses'!BC77,\">1\")+SUMIF('2011 Survey responses'!BD77,\">1\"))/(COUNTIF('2011 Survey responses'!AU77,\">1\")+COUNTIF('2011 Survey responses'!AX77,\">1\")+COUNTIF('2011 Survey responses'!BA77,\">1\")+COUNTIF('2011 Survey responses'!BC77,\">1\")+COUNTIF('2011 Survey responses'!BD77,\">1\")))","v":""},{"$f":"IF(('2011 Survey responses'!AT77)<1.1,\"\",('2011 Survey responses'!AT77))","v":""},{"$f":"IF(SUM('2011 Survey responses'!AV77:AW77)<2.1,\"\",(AVERAGEIFS('2011 Survey responses'!AV77:AW77,'2011 Survey responses'!AV77:AW77,\">1\")))","v":""},{"$f":"IF(('2011 Survey responses'!AW77+'2011 Survey responses'!AY77)<2.1,\"\",(SUMIF('2011 Survey responses'!AW77,\">1\")+SUMIF('2011 Survey responses'!AY77,\">1\"))/(COUNTIF('2011 Survey responses'!AW77,\">1\")+COUNTIF('2011 Survey responses'!AY77,\">1\")))","v":""},{"$f":"IF(('2011 Survey responses'!AZ77)<1.1,\"\",('2011 Survey responses'!AZ77))","v":""},null,null,null,null,{"$f":"IF(('2011 Survey responses'!BE77)<1.1,\"\",('2011 Survey responses'!BE77))","v":""},{"$f":"IF(('2011 Survey responses'!AY77+'2011 Survey responses'!BB77+'2011 Survey responses'!BF77)<3.1,\"\",(SUMIF('2011 Survey responses'!AY77,\">1\")+SUMIF('2011 Survey responses'!BB77,\">1\")+SUMIF('2011 Survey responses'!BF77,\">1\"))/(COUNTIF('2011 Survey responses'!AY77,\">1\")+COUNTIF('2011 Survey responses'!BB77,\">1\")+COUNTIF('2011 Survey responses'!BF77,\">1\")))","v":""},"",{"$f":"IF(SUM('2011 Survey responses'!BT77:BV77)<3.1,\"\",(AVERAGEIFS('2011 Survey responses'!BT77:BV77,'2011 Survey responses'!BT77:BV77,\">1\")))","v":""},{"$f":"IF(SUM('2011 Survey responses'!BW77:CP77)<1,\"\",(AVERAGEIFS('2011 Survey responses'!BW77:CP77,'2011 Survey responses'!BW77:CP77,\">1\")))","v":""},{"$f":"IF(SUM('2011 Survey responses'!BW77:CF77)<1,\"\",(AVERAGEIFS('2011 Survey responses'!BW77:CF77,'2011 Survey responses'!BW77:CF77,\">1\")))","v":""},{"$f":"IF(SUM('2011 Survey responses'!CG77:CP77)<1,\"\",(AVERAGEIFS('2011 Survey responses'!CG77:CP77,'2011 Survey responses'!CG77:CP77,\">1\")))","v":""},{"$f":"IF(SUM('2011 Survey responses'!BX77:CF77)<1,\"\",(AVERAGEIFS('2011 Survey responses'!BX77:CF77,'2011 Survey responses'!BX77:CF77,\">1\")))","v":""},{"$f":"IF(SUM('2011 Survey responses'!CH77:CP77)<1,\"\",(AVERAGEIFS('2011 Survey responses'!CH77:CP77,'2011 Survey responses'!CH77:CP77,\">1\")))","v":""},{"$f":"IF(SUM('2011 Survey responses'!BW77:CP77)<1,\"\",(AVERAGEIFS('2011 Survey responses'!BW77:CP77,'2011 Survey responses'!BW77:CP77,\">1\")))","v":""},{"$f":"IF(('2011 Survey responses'!BW77+'2011 Survey responses'!CG77)<2.1,\"\",(SUMIF('2011 Survey responses'!BW77,\">1\")+SUMIF('2011 Survey responses'!CG77,\">1\"))/(COUNTIF('2011 Survey responses'!BW77,\">1\")+COUNTIF('2011 Survey responses'!CG77,\">1\")))","v":""},{"$f":"IF(('2011 Survey responses'!BX77+'2011 Survey responses'!CH77)<2.1,\"\",(SUMIF('2011 Survey responses'!BX77,\">1\")+SUMIF('2011 Survey responses'!CH77,\">1\"))/(COUNTIF('2011 Survey responses'!BX77,\">1\")+COUNTIF('2011 Survey responses'!CH77,\">1\")))","v":""},{"$f":"IF(('2011 Survey responses'!BY77+'2011 Survey responses'!CI77)<2.1,\"\",(SUMIF('2011 Survey responses'!BY77,\">1\")+SUMIF('2011 Survey responses'!CI77,\">1\"))/(COUNTIF('2011 Survey responses'!BY77,\">1\")+COUNTIF('2011 Survey responses'!CI77,\">1\")))","v":""},{"$f":"IF('2011 Survey responses'!CQ77<0.5,\"\",'2011 Survey responses'!CQ77)","v":""},{"$f":"IF('2011 Survey responses'!CR77<0.5,\"\",'2011 Survey responses'!CR77)","v":""},{"$f":"IF('2011 Survey responses'!CS77<0.5,\"\",'2011 Survey responses'!CS77)","v":""},{"$f":"IF('2011 Survey responses'!CT77<0.5,\"\",'2011 Survey responses'!CT77)","v":""},{"$f":"IF('2011 Survey responses'!CU77<0.5,\"\",'2011 Survey responses'!CU77)","v":""},{"$f":"IF('2011 Survey responses'!CV77<0.5,\"\",'2011 Survey responses'!CV77)","v":""},{"$f":"IF(SUM('2011 Survey responses'!CW77:DL77)<1,\"\",(AVERAGE('2011 Survey responses'!CW77:DL77)))","v":""},{"$f":"IF(SUM('2011 Survey responses'!CW77:CZ77)<1,\"\",(AVERAGE('2011 Survey responses'!CW77:CZ77)))","v":""},{"$f":"IF(SUM('2011 Survey responses'!DA77:DD77)<1,\"\",(AVERAGE('2011 Survey responses'!DA77:DD77)))","v":""},{"$f":"IF(SUM('2011 Survey responses'!DE77:DH77)<1,\"\",(AVERAGE('2011 Survey responses'!DE77:DH77)))","v":""},{"$f":"IF(SUM('2011 Survey responses'!DI77:DL77)<1,\"\",(AVERAGE('2011 Survey responses'!DI77:DL77)))","v":""},{"$f":"IF(('2011 Survey responses'!CW77+'2011 Survey responses'!DA77+'2011 Survey responses'!DE77+'2011 Survey responses'!DI77)<1,\"\",AVERAGE('2011 Survey responses'!CW77,'2011 Survey responses'!DA77,'2011 Survey responses'!DE77,'2011 Survey responses'!DI77))","v":""},{"$f":"IF(('2011 Survey responses'!CX77+'2011 Survey responses'!DB77+'2011 Survey responses'!DF77+'2011 Survey responses'!DJ77)<1,\"\",AVERAGE('2011 Survey responses'!CX77,'2011 Survey responses'!DB77,'2011 Survey responses'!DF77,'2011 Survey responses'!DJ77))","v":""},{"$f":"IF(('2011 Survey responses'!CY77+'2011 Survey responses'!DC77+'2011 Survey responses'!DG77+'2011 Survey responses'!DK77)<1,\"\",AVERAGE('2011 Survey responses'!CY77,'2011 Survey responses'!DC77,'2011 Survey responses'!DG77,'2011 Survey responses'!DK77))","v":""},{"$f":"IF(('2011 Survey responses'!CZ77+'2011 Survey responses'!DD77+'2011 Survey responses'!DH77+'2011 Survey responses'!DL77)<1,\"\",AVERAGE('2011 Survey responses'!CZ77,'2011 Survey responses'!DD77,'2011 Survey responses'!DH77,'2011 Survey responses'!DL77))","v":""},{"$f":"IF('2011 Survey responses'!CW77<0.5,\"\",'2011 Survey responses'!CW77)","v":""},{"$f":"IF('2011 Survey responses'!CX77<0.5,\"\",'2011 Survey responses'!CX77)","v":""},{"$f":"IF('2011 Survey responses'!CY77<0.5,\"\",'2011 Survey responses'!CY77)","v":""},{"$f":"IF('2011 Survey responses'!CZ77<0.5,\"\",'2011 Survey responses'!CZ77)","v":""},{"$f":"IF('2011 Survey responses'!DA77<0.5,\"\",'2011 Survey responses'!DA77)","v":""},{"$f":"IF('2011 Survey responses'!DB77<0.5,\"\",'2011 Survey responses'!DB77)","v":""},{"$f":"IF('2011 Survey responses'!DC77<0.5,\"\",'2011 Survey responses'!DC77)","v":""},{"$f":"IF('2011 Survey responses'!DD77<0.5,\"\",'2011 Survey responses'!DD77)","v":""},{"$f":"IF('2011 Survey responses'!DE77<0.5,\"\",'2011 Survey responses'!DE77)","v":""},{"$f":"IF('2011 Survey responses'!DF77<0.5,\"\",'2011 Survey responses'!DF77)","v":""},{"$f":"IF('2011 Survey responses'!DG77<0.5,\"\",'2011 Survey responses'!DG77)","v":""},{"$f":"IF('2011 Survey responses'!DH77<0.5,\"\",'2011 Survey responses'!DH77)","v":""},{"$f":"IF('2011 Survey responses'!DI77<0.5,\"\",'2011 Survey responses'!DI77)","v":""},{"$f":"IF('2011 Survey responses'!DJ77<0.5,\"\",'2011 Survey responses'!DJ77)","v":""},{"$f":"IF('2011 Survey responses'!DK77<0.5,\"\",'2011 Survey responses'!DK77)","v":""},{"$f":"IF('2011 Survey responses'!DL77<0.5,\"\",'2011 Survey responses'!DL77)","v":""},{"$f":"IF('2011 Survey responses'!DU77=4,4,IF('2011 Survey responses'!DU77=5,4,\"\"))","v":""},{"$f":"IF('2011 Survey responses'!DV77=4,3,IF('2011 Survey responses'!DV77=5,3,\"\"))","v":""},"",{"$f":"IF(CQ77=2,CQ77,IF(CO77=4,CO77,IF(CP77=3,CP77,IF('2011 Survey responses'!GT77=1,1,\"\"))))","v":""},{"$f":"IF('2011 Survey responses'!DO77<0.5,\"\",'2011 Survey responses'!DO77)","v":""},{"$f":"IF('2011 Survey responses'!DP77<0.5,\"\",'2011 Survey responses'!DP77)","v":""},{"$f":"IF('2011 Survey responses'!DQ77<0.5,\"\",'2011 Survey responses'!DQ77)","v":""},{"$f":"IF('2011 Survey responses'!DR77<0.5,\"\",'2011 Survey responses'!DR77)","v":""},{"$f":"IF('2011 Survey responses'!DS77<0.5,\"\",'2011 Survey responses'!DS77)","v":""},{"$f":"IF('2011 Survey responses'!DT77<0.5,\"\",'2011 Survey responses'!DT77)","v":""},{"$f":"IF('2011 Survey responses'!DU77<0.5,\"\",'2011 Survey responses'!DU77)","v":""},{"$f":"IF('2011 Survey responses'!DV77<0.5,\"\",'2011 Survey responses'!DV77)","v":""},{"$f":"IF('2011 Survey responses'!DW77<0.5,\"\",'2011 Survey responses'!DW77)","v":""},{"$f":"IF('2011 Survey responses'!DX77<0.5,\"\",'2011 Survey responses'!DX77)","v":""},{"$f":"IF('2011 Survey responses'!DY77<0.5,\"\",'2011 Survey responses'!DY77)","v":""},{"$f":"IF('2011 Survey responses'!DZ77<0.5,\"\",'2011 Survey responses'!DZ77)","v":""},{"$f":"IF('2011 Survey responses'!EA77<0.5,\"\",'2011 Survey responses'!EA77)","v":""},{"$f":"IF('2011 Survey responses'!EB77<0.5,\"\",'2011 Survey responses'!EB77)","v":""},{"$f":"IF('2011 Survey responses'!EC77<0.5,\"\",'2011 Survey responses'!EC77)","v":""},{"$f":"IF('2011 Survey responses'!ED77<0.5,\"\",'2011 Survey responses'!ED77)","v":""},{"$f":"IF('2011 Survey responses'!EE77<0.5,\"\",'2011 Survey responses'!EE77)","v":""},{"$f":"IF('2011 Survey responses'!EF77<0.5,\"\",'2011 Survey responses'!EF77)","v":""},{"$f":"IF('2011 Survey responses'!EG77<0.5,\"\",'2011 Survey responses'!EG77)","v":""},{"$f":"IF('2011 Survey responses'!EH77<0.5,\"\",'2011 Survey responses'!EH77)","v":""},{"$f":"IF('2011 Survey responses'!EI77<0.5,\"\",'2011 Survey responses'!EI77)","v":""},{"$f":"IF('2011 Survey responses'!EJ77<0.5,\"\",'2011 Survey responses'!EJ77)","v":""},{"$f":"IF('2011 Survey responses'!EK77<0.5,\"\",'2011 Survey responses'!EK77)","v":""},{"$f":"IF('2011 Survey responses'!EL77<0.5,\"\",'2011 Survey responses'!EL77)","v":""},{"$f":"IF('2011 Survey responses'!EM77<0.5,\"\",'2011 Survey responses'!EM77)","v":""},{"$f":"IF('2011 Survey responses'!EN77<0.5,\"\",'2011 Survey responses'!EN77)","v":""},{"$f":"IF('2011 Survey responses'!EO77<0.5,\"\",'2011 Survey responses'!EO77)","v":""},{"$f":"IF('2011 Survey responses'!EP77<0.5,\"\",'2011 Survey responses'!EP77)","v":""},{"$f":"IF(('2011 Survey responses'!EW77+'2011 Survey responses'!EX77)>=2,AVERAGE('2011 Survey responses'!EW77,'2011 Survey responses'!EY77),\"\")","v":""},{"$f":"IF('2011 Survey responses'!EX77<0.5,\"\",'2011 Survey responses'!EX77)","v":""},{"$f":"IF('2011 Survey responses'!EZ77<0.5,\"\",'2011 Survey responses'!EZ77)","v":""},{"$f":"IF('2011 Survey responses'!FB77<0.5,\"\",'2011 Survey responses'!FB77)","v":""},{"$f":"IF('2011 Survey responses'!FD77<0.5,\"\",'2011 Survey responses'!FD77)","v":""},{"$f":"IF('2011 Survey responses'!FC77<0.5,\"\",'2011 Survey responses'!FC77)","v":""},{"$f":"IF(('2011 Survey responses'!EM77+'2011 Survey responses'!EN77)>=2,AVERAGE('2011 Survey responses'!EM77,'2011 Survey responses'!EN77),\"\")","v":""},{"$f":"IF('2011 Survey responses'!ES77<0.5,\"\",'2011 Survey responses'!ES77)","v":""},{"$f":"IF(('2011 Survey responses'!ET77+'2011 Survey responses'!EU77)>=2,AVERAGE('2011 Survey responses'!ET77,'2011 Survey responses'!EU77),\"\")","v":""},{"$f":"IF('2011 Survey responses'!EV77<0.5,\"\",'2011 Survey responses'!EV77)","v":""},{"$f":"IF('2011 Survey responses'!FA77<0.5,\"\",'2011 Survey responses'!FA77)","v":""},{"$f":"IF('2011 Survey responses'!ER77<0.5,\"\",'2011 Survey responses'!ER77)","v":""},{"$f":"IF(('2011 Survey responses'!EO77+'2011 Survey responses'!EP77)>=2,AVERAGE('2011 Survey responses'!EO77,'2011 Survey responses'!EP77),\"\")","v":""},{"$f":"IF('2011 Survey responses'!EQ77<0.5,\"\",'2011 Survey responses'!EQ77)","v":""},{"$f":"IF('2011 Survey responses'!ET77<0.5,\"\",'2011 Survey responses'!ET77)","v":""},{"$f":"IF('2011 Survey responses'!EU77<0.5,\"\",'2011 Survey responses'!EU77)","v":""},{"$f":"IF('2011 Survey responses'!EW77<0.5,\"\",'2011 Survey responses'!EW77)","v":""},{"$f":"IF('2011 Survey responses'!EY77<0.5,\"\",'2011 Survey responses'!EY77)","v":""},{"$f":"IF('2011 Survey responses'!FU77<0.5,\"\",'2011 Survey responses'!FU77)","v":""},{"$f":"IF(('2011 Survey responses'!FL77+'2011 Survey responses'!FM77)>=2,AVERAGE('2011 Survey responses'!FL77,'2011 Survey responses'!FM77),\"\")","v":""},{"$f":"IF(('2011 Survey responses'!FO77+'2011 Survey responses'!FQ77)>=2,AVERAGE('2011 Survey responses'!FO77,'2011 Survey responses'!FQ77),\"\")","v":""},{"$f":"IF('2011 Survey responses'!FJ77<0.5,\"\",'2011 Survey responses'!FJ77)","v":""},{"$f":"IF('2011 Survey responses'!FT77<0.5,\"\",'2011 Survey responses'!FT77)","v":""},{"$f":"IF('2011 Survey responses'!FR77<0.5,\"\",'2011 Survey responses'!FR77)","v":""},{"$f":"IF('2011 Survey responses'!FK77<0.5,\"\",'2011 Survey responses'!FK77)","v":""},{"$f":"IF('2011 Survey responses'!FP77<0.5,\"\",'2011 Survey responses'!FP77)","v":""},{"$f":"IF('2011 Survey responses'!FN77<0.5,\"\",'2011 Survey responses'!FN77)","v":""},{"$f":"IF(('2011 Survey responses'!FE77+'2011 Survey responses'!FF77)>=2,AVERAGE('2011 Survey responses'!FE77,'2011 Survey responses'!FF77),\"\")","v":""},{"$f":"IF('2011 Survey responses'!FS77<0.5,\"\",'2011 Survey responses'!FS77)","v":""},{"$f":"IF('2011 Survey responses'!FV77<0.5,\"\",'2011 Survey responses'!FV77)","v":""},{"$f":"IF(('2011 Survey responses'!FG77+'2011 Survey responses'!FH77)>=2,AVERAGE('2011 Survey responses'!FG77,'2011 Survey responses'!FH77),\"\")","v":""},{"$f":"IF('2011 Survey responses'!FI77<0.5,\"\",'2011 Survey responses'!FI77)","v":""},{"$f":"IF('2011 Survey responses'!FE77<0.5,\"\",'2011 Survey responses'!FE77)","v":""},{"$f":"IF('2011 Survey responses'!FF77<0.5,\"\",'2011 Survey responses'!FF77)","v":""},{"$f":"IF('2011 Survey responses'!FG77<0.5,\"\",'2011 Survey responses'!FG77)","v":""},{"$f":"IF('2011 Survey responses'!FH77<0.5,\"\",'2011 Survey responses'!FH77)","v":""},{"$f":"IF('2011 Survey responses'!FL77<0.5,\"\",'2011 Survey responses'!FL77)","v":""},{"$f":"IF('2011 Survey responses'!FM77<0.5,\"\",'2011 Survey responses'!FM77)","v":""},{"$f":"IF('2011 Survey responses'!FO77<0.5,\"\",'2011 Survey responses'!FO77)","v":""},{"$f":"IF('2011 Survey responses'!FQ77<0.5,\"\",'2011 Survey responses'!FQ77)","v":""}]
["Iceland",{"$f":"IF(SUM(F78)<1,\"\",AVERAGEIF('2011 Survey responses'!B78:CP78,\">1\"))","v":5.2352941176470589},{"$f":"IF(SUM(F78)<1,\"\",AVERAGEIF('2011 Survey responses'!B78:AO78,\">1\"))","v":5.1724137931034484},{"$f":"IF(SUM(F78)<1,\"\",AVERAGEIF('2011 Survey responses'!B78:BV78,\">1\"))","v":5.4909090909090912},{"$f":"IF(SUM(F78)<1,\"\",AVERAGEIF('2011 Survey responses'!V78:BV78,\">1\"))","v":5.9024390243902438},{"$f":"IF(SUM('2011 Survey responses'!B78:U78)<1,\"\",(AVERAGEIFS('2011 Survey responses'!B78:U78,'2011 Survey responses'!B78:U78,\">1\")))","v":4.2857142857142856},{"$f":"IF(SUM('2011 Survey responses'!B78:H78)<1,\"\",(AVERAGEIFS('2011 Survey responses'!B78:H78,'2011 Survey responses'!B78:H78,\">1\")))","v":4.4000000000000004},{"$f":"IF(SUM('2011 Survey responses'!I78:S78)<1,\"\",(AVERAGEIFS('2011 Survey responses'!I78:S78,'2011 Survey responses'!I78:S78,\">1\")))","v":4.2222222222222223},{"$f":"IF(SUM('2011 Survey responses'!T78:U78)<2.1,\"\",(AVERAGEIFS('2011 Survey responses'!T78:U78,'2011 Survey responses'!T78:U78,\">1\")))","v":""},{"$f":"IF(SUM('2011 Survey responses'!B78:C78)<2.1,\"\",((SUMIF('2011 Survey responses'!B78:C78,\">1\")+SUMIF('2011 Survey responses'!F78,\">1\"))/(COUNTIF('2011 Survey responses'!B78:C78,\">1\")+COUNTIF('2011 Survey responses'!F78,\">1\"))))","v":6},{"$f":"IF(SUM('2011 Survey responses'!D78:E78)<2.1,\"\",(AVERAGEIFS('2011 Survey responses'!D78:E78,'2011 Survey responses'!D78:E78,\">1\")))","v":6},{"$f":"IF(('2011 Survey responses'!B78+'2011 Survey responses'!D78)<2.1,\"\",((SUMIF('2011 Survey responses'!B78,\">1\")+SUMIF('2011 Survey responses'!D78,\">1\")+SUMIF('2011 Survey responses'!F78,\">1\")+SUMIF('2011 Survey responses'!K78,\">1\"))/(COUNTIF('2011 Survey responses'!B78,\">1\")+COUNTIF('2011 Survey responses'!D78,\">1\")+COUNTIF('2011 Survey responses'!F78,\">1\")+COUNTIF('2011 Survey responses'!K78,\">1\"))))","v":6},{"$f":"IF(SUM('2011 Survey responses'!G78:H78)<2.1,\"\",(AVERAGEIFS('2011 Survey responses'!G78:H78,'2011 Survey responses'!G78:H78,\">1\")))","v":2},{"$f":"IF(SUM('2011 Survey responses'!F78:G78)<1.5,\"\",MAX('2011 Survey responses'!F78,'2011 Survey responses'!G78))","v":6},{"$f":"IF(SUM('2011 Survey responses'!G78:H78)<1,\"\",MAX('2011 Survey responses'!G78,'2011 Survey responses'!H78))","v":2},{"$f":"IF(SUM('2011 Survey responses'!I78:L78)<4.1,\"\",(AVERAGEIFS('2011 Survey responses'!I78:L78,'2011 Survey responses'!I78:L78,\">1\")))","v":4.666666666666667},{"$f":"IF(SUM('2011 Survey responses'!M78:S78)<4.1,\"\",(AVERAGEIFS('2011 Survey responses'!M78:S78,'2011 Survey responses'!M78:S78,\">1\")))","v":4},{"$f":"IF(SUM('2011 Survey responses'!T78:U78)<2.1,\"\",(AVERAGEIFS('2011 Survey responses'!T78:U78,'2011 Survey responses'!T78:U78,\">1\")))","v":""},{"$f":"IF(SUM('2011 Survey responses'!V78:AO78)<1,\"\",(AVERAGEIFS('2011 Survey responses'!V78:AO78,'2011 Survey responses'!V78:AO78,\">1\")))","v":6},{"$f":"IF(SUM('2011 Survey responses'!V78:AA78)<1,\"\",(AVERAGEIFS('2011 Survey responses'!V78:AA78,'2011 Survey responses'!V78:AA78,\">1\")))","v":6},{"$f":"IF(SUM('2011 Survey responses'!AB78:AH78)<1,\"\",(AVERAGEIFS('2011 Survey responses'!AB78:AH78,'2011 Survey responses'!AB78:AH78,\">1\")))","v":6},{"$f":"IF(SUM('2011 Survey responses'!AI78:AO78)<1,\"\",(AVERAGEIFS('2011 Survey responses'!AI78:AO78,'2011 Survey responses'!AI78:AO78,\">1\")))","v":6},{"$f":"IF(('2011 Survey responses'!Y78+'2011 Survey responses'!AI78+'2011 Survey responses'!AK78)<3.1,\"\",((SUMIF('2011 Survey responses'!Y78,\">1\")+SUMIF('2011 Survey responses'!AI78,\">1\")+SUMIF('2011 Survey responses'!AK78,\">1\")+SUMIF('2011 Survey responses'!AM78,\">1\"))/(COUNTIF('2011 Survey responses'!Y78,\">1\")+COUNTIF('2011 Survey responses'!AI78,\">1\")+COUNTIF('2011 Survey responses'!AK78,\">1\")+COUNTIF('2011 Survey responses'!AM78,\">1\"))))","v":6},{"$f":"IF(('2011 Survey responses'!W78)<1.1,\"\",('2011 Survey responses'!W78))","v":6},{"$f":"IF(('2011 Survey responses'!Y78)<1.1,\"\",('2011 Survey responses'!Y78))","v":""},{"$f":"IF(('2011 Survey responses'!Z78)<1.1,\"\",('2011 Survey responses'!Z78))","v":""},{"$f":"IF(('2011 Survey responses'!V78+'2011 Survey responses'!X78+'2011 Survey responses'!AA78)<3.1,\"\",((SUMIF('2011 Survey responses'!V78,\">1\")+SUMIF('2011 Survey responses'!X78,\">1\")+SUMIF('2011 Survey responses'!AA78,\">1\"))/(COUNTIF('2011 Survey responses'!V78,\">1\")+COUNTIF('2011 Survey responses'!X78,\">1\")+COUNTIF('2011 Survey responses'!AA78,\">1\"))))","v":6},{"$f":"IF(('2011 Survey responses'!V78+'2011 Survey responses'!Y78+'2011 Survey responses'!AA78)<3.1,\"\",((SUMIF('2011 Survey responses'!V78,\">1\")+SUMIF('2011 Survey responses'!Y78,\">1\")+SUMIF('2011 Survey responses'!AA78,\">1\"))/(COUNTIF('2011 Survey responses'!V78,\">1\")+COUNTIF('2011 Survey responses'!Y78,\">1\")+COUNTIF('2011 Survey responses'!AA78,\">1\"))))","v":6},{"$f":"IF(SUM('2011 Survey responses'!AB78:AH78)<1,\"\",(AVERAGEIFS('2011 Survey responses'!AB78:AH78,'2011 Survey responses'!AB78:AH78,\">1\")))","v":6},{"$f":"IF(SUM('2011 Survey responses'!AI78:AO78)<7.1,\"\",(AVERAGEIFS('2011 Survey responses'!AI78:AO78,'2011 Survey responses'!AI78:AO78,\">1\")))","v":6},{"$f":"IF(('2011 Survey responses'!AH78)<1.1,\"\",('2011 Survey responses'!AH78))","v":6},{"$f":"IF(SUM('2011 Survey responses'!AP78:BV78)<1,\"\",(AVERAGEIFS('2011 Survey responses'!AP78:BV78,'2011 Survey responses'!AP78:BV78,\">1\")))","v":5.8461538461538458},{"$f":"IF(SUM('2011 Survey responses'!AP78:AS78)<4.1,\"\",(AVERAGEIFS('2011 Survey responses'!AP78:AS78,'2011 Survey responses'!AP78:AS78,\">1\")))","v":6},{"$f":"IF(SUM('2011 Survey responses'!AT78:BF78)<1,\"\",(AVERAGEIFS('2011 Survey responses'!AT78:BF78,'2011 Survey responses'!AT78:BF78,\">1\")))","v":6},{"$f":"IF(SUM('2011 Survey responses'!BG78:BO78)<1,\"\",(AVERAGEIFS('2011 Survey responses'!BG78:BO78,'2011 Survey responses'!BG78:BO78,\">1\")))","v":6},{"$f":"IF(SUM('2011 Survey responses'!BP78:BS78)<1,\"\",(AVERAGEIFS('2011 Survey responses'!BP78:BS78,'2011 Survey responses'!BP78:BS78,\">1\")))","v":6},{"$f":"IF(SUM('2011 Survey responses'!BT78:BV78)<3.1,\"\",(AVERAGEIFS('2011 Survey responses'!BT78:BV78,'2011 Survey responses'!BT78:BV78,\">1\")))","v":2},{"$f":"IF(('2011 Survey responses'!AQ78+'2011 Survey responses'!AR78+'2011 Survey responses'!BG78)<3.1,\"\",((SUMIF('2011 Survey responses'!AQ78,\">1\")+SUMIF('2011 Survey responses'!AR78,\">1\")+SUMIF('2011 Survey responses'!BG78,\">1\"))/(COUNTIF('2011 Survey responses'!AQ78,\">1\")+COUNTIF('2011 Survey responses'!AR78,\">1\")+COUNTIF('2011 Survey responses'!BG78,\">1\"))))","v":6},{"$f":"IF(SUM('2011 Survey responses'!AP78:AS78)<4.1,\"\",(AVERAGEIFS('2011 Survey responses'!AP78:AS78,'2011 Survey responses'!AP78:AS78,\">1\")))","v":6},{"$f":"IF(('2011 Survey responses'!AU78+'2011 Survey responses'!AX78+'2011 Survey responses'!BA78+'2011 Survey responses'!BC78+'2011 Survey responses'!BD78)<5.1,\"\",(SUMIF('2011 Survey responses'!AU78,\">1\")+SUMIF('2011 Survey responses'!AX78,\">1\")+SUMIF('2011 Survey responses'!BA78,\">1\")+SUMIF('2011 Survey responses'!BC78,\">1\")+SUMIF('2011 Survey responses'!BD78,\">1\"))/(COUNTIF('2011 Survey responses'!AU78,\">1\")+COUNTIF('2011 Survey responses'!AX78,\">1\")+COUNTIF('2011 Survey responses'!BA78,\">1\")+COUNTIF('2011 Survey responses'!BC78,\">1\")+COUNTIF('2011 Survey responses'!BD78,\">1\")))","v":6},{"$f":"IF(('2011 Survey responses'!AT78)<1.1,\"\",('2011 Survey responses'!AT78))","v":6},{"$f":"IF(SUM('2011 Survey responses'!AV78:AW78)<2.1,\"\",(AVERAGEIFS('2011 Survey responses'!AV78:AW78,'2011 Survey responses'!AV78:AW78,\">1\")))","v":6},{"$f":"IF(('2011 Survey responses'!AW78+'2011 Survey responses'!AY78)<2.1,\"\",(SUMIF('2011 Survey responses'!AW78,\">1\")+SUMIF('2011 Survey responses'!AY78,\">1\"))/(COUNTIF('2011 Survey responses'!AW78,\">1\")+COUNTIF('2011 Survey responses'!AY78,\">1\")))","v":6},{"$f":"IF(('2011 Survey responses'!AZ78)<1.1,\"\",('2011 Survey responses'!AZ78))","v":6},6,1,6,1,{"$f":"IF(('2011 Survey responses'!BE78)<1.1,\"\",('2011 Survey responses'!BE78))","v":""},{"$f":"IF(('2011 Survey responses'!AY78+'2011 Survey responses'!BB78+'2011 Survey responses'!BF78)<3.1,\"\",(SUMIF('2011 Survey responses'!AY78,\">1\")+SUMIF('2011 Survey responses'!BB78,\">1\")+SUMIF('2011 Survey responses'!BF78,\">1\"))/(COUNTIF('2011 Survey responses'!AY78,\">1\")+COUNTIF('2011 Survey responses'!BB78,\">1\")+COUNTIF('2011 Survey responses'!BF78,\">1\")))","v":6},6,{"$f":"IF(SUM('2011 Survey responses'!BT78:BV78)<3.1,\"\",(AVERAGEIFS('2011 Survey responses'!BT78:BV78,'2011 Survey responses'!BT78:BV78,\">1\")))","v":2},{"$f":"IF(SUM('2011 Survey responses'!BW78:CP78)<1,\"\",(AVERAGEIFS('2011 Survey responses'!BW78:CP78,'2011 Survey responses'!BW78:CP78,\">1\")))","v":4.1538461538461542},{"$f":"IF(SUM('2011 Survey responses'!BW78:CF78)<1,\"\",(AVERAGEIFS('2011 Survey responses'!BW78:CF78,'2011 Survey responses'!BW78:CF78,\">1\")))","v":5.1428571428571432},{"$f":"IF(SUM('2011 Survey responses'!CG78:CP78)<1,\"\",(AVERAGEIFS('2011 Survey responses'!CG78:CP78,'2011 Survey responses'!CG78:CP78,\">1\")))","v":3},{"$f":"IF(SUM('2011 Survey responses'!BX78:CF78)<1,\"\",(AVERAGEIFS('2011 Survey responses'!BX78:CF78,'2011 Survey responses'!BX78:CF78,\">1\")))","v":5},{"$f":"IF(SUM('2011 Survey responses'!CH78:CP78)<1,\"\",(AVERAGEIFS('2011 Survey responses'!CH78:CP78,'2011 Survey responses'!CH78:CP78,\">1\")))","v":3.2},{"$f":"IF(SUM('2011 Survey responses'!BW78:CP78)<1,\"\",(AVERAGEIFS('2011 Survey responses'!BW78:CP78,'2011 Survey responses'!BW78:CP78,\">1\")))","v":4.1538461538461542},{"$f":"IF(('2011 Survey responses'!BW78+'2011 Survey responses'!CG78)<2.1,\"\",(SUMIF('2011 Survey responses'!BW78,\">1\")+SUMIF('2011 Survey responses'!CG78,\">1\"))/(COUNTIF('2011 Survey responses'!BW78,\">1\")+COUNTIF('2011 Survey responses'!CG78,\">1\")))","v":4},{"$f":"IF(('2011 Survey responses'!BX78+'2011 Survey responses'!CH78)<2.1,\"\",(SUMIF('2011 Survey responses'!BX78,\">1\")+SUMIF('2011 Survey responses'!CH78,\">1\"))/(COUNTIF('2011 Survey responses'!BX78,\">1\")+COUNTIF('2011 Survey responses'!CH78,\">1\")))","v":""},{"$f":"IF(('2011 Survey responses'!BY78+'2011 Survey responses'!CI78)<2.1,\"\",(SUMIF('2011 Survey responses'!BY78,\">1\")+SUMIF('2011 Survey responses'!CI78,\">1\"))/(COUNTIF('2011 Survey responses'!BY78,\">1\")+COUNTIF('2011 Survey responses'!CI78,\">1\")))","v":4},{"$f":"IF('2011 Survey responses'!CQ78<0.5,\"\",'2011 Survey responses'!CQ78)","v":1},{"$f":"IF('2011 Survey responses'!CR78<0.5,\"\",'2011 Survey responses'!CR78)","v":2},{"$f":"IF('2011 Survey responses'!CS78<0.5,\"\",'2011 Survey responses'!CS78)","v":2},{"$f":"IF('2011 Survey responses'!CT78<0.5,\"\",'2011 Survey responses'!CT78)","v":1},{"$f":"IF('2011 Survey responses'!CU78<0.5,\"\",'2011 Survey responses'!CU78)","v":2},{"$f":"IF('2011 Survey responses'!CV78<0.5,\"\",'2011 Survey responses'!CV78)","v":""},{"$f":"IF(SUM('2011 Survey responses'!CW78:DL78)<1,\"\",(AVERAGE('2011 Survey responses'!CW78:DL78)))","v":5},{"$f":"IF(SUM('2011 Survey responses'!CW78:CZ78)<1,\"\",(AVERAGE('2011 Survey responses'!CW78:CZ78)))","v":5},{"$f":"IF(SUM('2011 Survey responses'!DA78:DD78)<1,\"\",(AVERAGE('2011 Survey responses'!DA78:DD78)))","v":5},{"$f":"IF(SUM('2011 Survey responses'!DE78:DH78)<1,\"\",(AVERAGE('2011 Survey responses'!DE78:DH78)))","v":5},{"$f":"IF(SUM('2011 Survey responses'!DI78:DL78)<1,\"\",(AVERAGE('2011 Survey responses'!DI78:DL78)))","v":5},{"$f":"IF(('2011 Survey responses'!CW78+'2011 Survey responses'!DA78+'2011 Survey responses'!DE78+'2011 Survey responses'!DI78)<1,\"\",AVERAGE('2011 Survey responses'!CW78,'2011 Survey responses'!DA78,'2011 Survey responses'!DE78,'2011 Survey responses'!DI78))","v":5},{"$f":"IF(('2011 Survey responses'!CX78+'2011 Survey responses'!DB78+'2011 Survey responses'!DF78+'2011 Survey responses'!DJ78)<1,\"\",AVERAGE('2011 Survey responses'!CX78,'2011 Survey responses'!DB78,'2011 Survey responses'!DF78,'2011 Survey responses'!DJ78))","v":5},{"$f":"IF(('2011 Survey responses'!CY78+'2011 Survey responses'!DC78+'2011 Survey responses'!DG78+'2011 Survey responses'!DK78)<1,\"\",AVERAGE('2011 Survey responses'!CY78,'2011 Survey responses'!DC78,'2011 Survey responses'!DG78,'2011 Survey responses'!DK78))","v":5},{"$f":"IF(('2011 Survey responses'!CZ78+'2011 Survey responses'!DD78+'2011 Survey responses'!DH78+'2011 Survey responses'!DL78)<1,\"\",AVERAGE('2011 Survey responses'!CZ78,'2011 Survey responses'!DD78,'2011 Survey responses'!DH78,'2011 Survey responses'!DL78))","v":5},{"$f":"IF('2011 Survey responses'!CW78<0.5,\"\",'2011 Survey responses'!CW78)","v":5},{"$f":"IF('2011 Survey responses'!CX78<0.5,\"\",'2011 Survey responses'!CX78)","v":5},{"$f":"IF('2011 Survey responses'!CY78<0.5,\"\",'2011 Survey responses'!CY78)","v":5},{"$f":"IF('2011 Survey responses'!CZ78<0.5,\"\",'2011 Survey responses'!CZ78)","v":5},{"$f":"IF('2011 Survey responses'!DA78<0.5,\"\",'2011 Survey responses'!DA78)","v":5},{"$f":"IF('2011 Survey responses'!DB78<0.5,\"\",'2011 Survey responses'!DB78)","v":5},{"$f":"IF('2011 Survey responses'!DC78<0.5,\"\",'2011 Survey responses'!DC78)","v":5},{"$f":"IF('2011 Survey responses'!DD78<0.5,\"\",'2011 Survey responses'!DD78)","v":5},{"$f":"IF('2011 Survey responses'!DE78<0.5,\"\",'2011 Survey responses'!DE78)","v":5},{"$f":"IF('2011 Survey responses'!DF78<0.5,\"\",'2011 Survey responses'!DF78)","v":5},{"$f":"IF('2011 Survey responses'!DG78<0.5,\"\",'2011 Survey responses'!DG78)","v":5},{"$f":"IF('2011 Survey responses'!DH78<0.5,\"\",'2011 Survey responses'!DH78)","v":5},{"$f":"IF('2011 Survey responses'!DI78<0.5,\"\",'2011 Survey responses'!DI78)","v":5},{"$f":"IF('2011 Survey responses'!DJ78<0.5,\"\",'2011 Survey responses'!DJ78)","v":5},{"$f":"IF('2011 Survey responses'!DK78<0.5,\"\",'2011 Survey responses'!DK78)","v":5},{"$f":"IF('2011 Survey responses'!DL78<0.5,\"\",'2011 Survey responses'!DL78)","v":5},{"$f":"IF('2011 Survey responses'!DU78=4,4,IF('2011 Survey responses'!DU78=5,4,\"\"))","v":""},{"$f":"IF('2011 Survey responses'!DV78=4,3,IF('2011 Survey responses'!DV78=5,3,\"\"))","v":""},"",{"$f":"IF(CQ78=2,CQ78,IF(CO78=4,CO78,IF(CP78=3,CP78,IF('2011 Survey responses'!GT78=1,1,\"\"))))","v":1},{"$f":"IF('2011 Survey responses'!DO78<0.5,\"\",'2011 Survey responses'!DO78)","v":1},{"$f":"IF('2011 Survey responses'!DP78<0.5,\"\",'2011 Survey responses'!DP78)","v":1},{"$f":"IF('2011 Survey responses'!DQ78<0.5,\"\",'2011 Survey responses'!DQ78)","v":1},{"$f":"IF('2011 Survey responses'!DR78<0.5,\"\",'2011 Survey responses'!DR78)","v":1},{"$f":"IF('2011 Survey responses'!DS78<0.5,\"\",'2011 Survey responses'!DS78)","v":1},{"$f":"IF('2011 Survey responses'!DT78<0.5,\"\",'2011 Survey responses'!DT78)","v":1},{"$f":"IF('2011 Survey responses'!DU78<0.5,\"\",'2011 Survey responses'!DU78)","v":1},{"$f":"IF('2011 Survey responses'!DV78<0.5,\"\",'2011 Survey responses'!DV78)","v":1},{"$f":"IF('2011 Survey responses'!DW78<0.5,\"\",'2011 Survey responses'!DW78)","v":1},{"$f":"IF('2011 Survey responses'!DX78<0.5,\"\",'2011 Survey responses'!DX78)","v":1},{"$f":"IF('2011 Survey responses'!DY78<0.5,\"\",'2011 Survey responses'!DY78)","v":1},{"$f":"IF('2011 Survey responses'!DZ78<0.5,\"\",'2011 Survey responses'!DZ78)","v":1},{"$f":"IF('2011 Survey responses'!EA78<0.5,\"\",'2011 Survey responses'!EA78)","v":3},{"$f":"IF('2011 Survey responses'!EB78<0.5,\"\",'2011 Survey responses'!EB78)","v":3},{"$f":"IF('2011 Survey responses'!EC78<0.5,\"\",'2011 Survey responses'!EC78)","v":3},{"$f":"IF('2011 Survey responses'!ED78<0.5,\"\",'2011 Survey responses'!ED78)","v":3},{"$f":"IF('2011 Survey responses'!EE78<0.5,\"\",'2011 Survey responses'!EE78)","v":3},{"$f":"IF('2011 Survey responses'!EF78<0.5,\"\",'2011 Survey responses'!EF78)","v":3},{"$f":"IF('2011 Survey responses'!EG78<0.5,\"\",'2011 Survey responses'!EG78)","v":3},{"$f":"IF('2011 Survey responses'!EH78<0.5,\"\",'2011 Survey responses'!EH78)","v":3},{"$f":"IF('2011 Survey responses'!EI78<0.5,\"\",'2011 Survey responses'!EI78)","v":3},{"$f":"IF('2011 Survey responses'!EJ78<0.5,\"\",'2011 Survey responses'!EJ78)","v":3},{"$f":"IF('2011 Survey responses'!EK78<0.5,\"\",'2011 Survey responses'!EK78)","v":3},{"$f":"IF('2011 Survey responses'!EL78<0.5,\"\",'2011 Survey responses'!EL78)","v":3},{"$f":"IF('2011 Survey responses'!EM78<0.5,\"\",'2011 Survey responses'!EM78)","v":1},{"$f":"IF('2011 Survey responses'!EN78<0.5,\"\",'2011 Survey responses'!EN78)","v":1},{"$f":"IF('2011 Survey responses'!EO78<0.5,\"\",'2011 Survey responses'!EO78)","v":1},{"$f":"IF('2011 Survey responses'!EP78<0.5,\"\",'2011 Survey responses'!EP78)","v":1},{"$f":"IF(('2011 Survey responses'!EW78+'2011 Survey responses'!EX78)>=2,AVERAGE('2011 Survey responses'!EW78,'2011 Survey responses'!EY78),\"\")","v":4.5},{"$f":"IF('2011 Survey responses'!EX78<0.5,\"\",'2011 Survey responses'!EX78)","v":4},{"$f":"IF('2011 Survey responses'!EZ78<0.5,\"\",'2011 Survey responses'!EZ78)","v":4},{"$f":"IF('2011 Survey responses'!FB78<0.5,\"\",'2011 Survey responses'!FB78)","v":5},{"$f":"IF('2011 Survey responses'!FD78<0.5,\"\",'2011 Survey responses'!FD78)","v":4},{"$f":"IF('2011 Survey responses'!FC78<0.5,\"\",'2011 Survey responses'!FC78)","v":3},{"$f":"IF(('2011 Survey responses'!EM78+'2011 Survey responses'!EN78)>=2,AVERAGE('2011 Survey responses'!EM78,'2011 Survey responses'!EN78),\"\")","v":1},{"$f":"IF('2011 Survey responses'!ES78<0.5,\"\",'2011 Survey responses'!ES78)","v":4},{"$f":"IF(('2011 Survey responses'!ET78+'2011 Survey responses'!EU78)>=2,AVERAGE('2011 Survey responses'!ET78,'2011 Survey responses'!EU78),\"\")","v":3},{"$f":"IF('2011 Survey responses'!EV78<0.5,\"\",'2011 Survey responses'!EV78)","v":5},{"$f":"IF('2011 Survey responses'!FA78<0.5,\"\",'2011 Survey responses'!FA78)","v":4},{"$f":"IF('2011 Survey responses'!ER78<0.5,\"\",'2011 Survey responses'!ER78)","v":4},{"$f":"IF(('2011 Survey responses'!EO78+'2011 Survey responses'!EP78)>=2,AVERAGE('2011 Survey responses'!EO78,'2011 Survey responses'!EP78),\"\")","v":1},{"$f":"IF('2011 Survey responses'!EQ78<0.5,\"\",'2011 Survey responses'!EQ78)","v":1},{"$f":"IF('2011 Survey responses'!ET78<0.5,\"\",'2011 Survey responses'!ET78)","v":4},{"$f":"IF('2011 Survey responses'!EU78<0.5,\"\",'2011 Survey responses'!EU78)","v":2},{"$f":"IF('2011 Survey responses'!EW78<0.5,\"\",'2011 Survey responses'!EW78)","v":5},{"$f":"IF('2011 Survey responses'!EY78<0.5,\"\",'2011 Survey responses'!EY78)","v":4},{"$f":"IF('2011 Survey responses'!FU78<0.5,\"\",'2011 Survey responses'!FU78)","v":4},{"$f":"IF(('2011 Survey responses'!FL78+'2011 Survey responses'!FM78)>=2,AVERAGE('2011 Survey responses'!FL78,'2011 Survey responses'!FM78),\"\")","v":5},{"$f":"IF(('2011 Survey responses'!FO78+'2011 Survey responses'!FQ78)>=2,AVERAGE('2011 Survey responses'!FO78,'2011 Survey responses'!FQ78),\"\")","v":4.5},{"$f":"IF('2011 Survey responses'!FJ78<0.5,\"\",'2011 Survey responses'!FJ78)","v":5},{"$f":"IF('2011 Survey responses'!FT78<0.5,\"\",'2011 Survey responses'!FT78)","v":5},{"$f":"IF('2011 Survey responses'!FR78<0.5,\"\",'2011 Survey responses'!FR78)","v":4},{"$f":"IF('2011 Survey responses'!FK78<0.5,\"\",'2011 Survey responses'!FK78)","v":5},{"$f":"IF('2011 Survey responses'!FP78<0.5,\"\",'2011 Survey responses'!FP78)","v":4},{"$f":"IF('2011 Survey responses'!FN78<0.5,\"\",'2011 Survey responses'!FN78)","v":5},{"$f":"IF(('2011 Survey responses'!FE78+'2011 Survey responses'!FF78)>=2,AVERAGE('2011 Survey responses'!FE78,'2011 Survey responses'!FF78),\"\")","v":4.5},{"$f":"IF('2011 Survey responses'!FS78<0.5,\"\",'2011 Survey responses'!FS78)","v":5},{"$f":"IF('2011 Survey responses'!FV78<0.5,\"\",'2011 Survey responses'!FV78)","v":4},{"$f":"IF(('2011 Survey responses'!FG78+'2011 Survey responses'!FH78)>=2,AVERAGE('2011 Survey responses'!FG78,'2011 Survey responses'!FH78),\"\")","v":""},{"$f":"IF('2011 Survey responses'!FI78<0.5,\"\",'2011 Survey responses'!FI78)","v":4},{"$f":"IF('2011 Survey responses'!FE78<0.5,\"\",'2011 Survey responses'!FE78)","v":5},{"$f":"IF('2011 Survey responses'!FF78<0.5,\"\",'2011 Survey responses'!FF78)","v":4},{"$f":"IF('2011 Survey responses'!FG78<0.5,\"\",'2011 Survey responses'!FG78)","v":""},{"$f":"IF('2011 Survey responses'!FH78<0.5,\"\",'2011 Survey responses'!FH78)","v":""},{"$f":"IF('2011 Survey responses'!FL78<0.5,\"\",'2011 Survey responses'!FL78)","v":5},{"$f":"IF('2011 Survey responses'!FM78<0.5,\"\",'2011 Survey responses'!FM78)","v":5},{"$f":"IF('2011 Survey responses'!FO78<0.5,\"\",'2011 Survey responses'!FO78)","v":5},{"$f":"IF('2011 Survey responses'!FQ78<0.5,\"\",'2011 Survey responses'!FQ78)","v":4}]
["India",{"$f":"IF(SUM(F79)<1,\"\",AVERAGEIF('2011 Survey responses'!B79:CP79,\">1\"))","v":""},{"$f":"IF(SUM(F79)<1,\"\",AVERAGEIF('2011 Survey responses'!B79:AO79,\">1\"))","v":""},{"$f":"IF(SUM(F79)<1,\"\",AVERAGEIF('2011 Survey responses'!B79:BV79,\">1\"))","v":""},{"$f":"IF(SUM(F79)<1,\"\",AVERAGEIF('2011 Survey responses'!V79:BV79,\">1\"))","v":""},{"$f":"IF(SUM('2011 Survey responses'!B79:U79)<1,\"\",(AVERAGEIFS('2011 Survey responses'!B79:U79,'2011 Survey responses'!B79:U79,\">1\")))","v":""},{"$f":"IF(SUM('2011 Survey responses'!B79:H79)<1,\"\",(AVERAGEIFS('2011 Survey responses'!B79:H79,'2011 Survey responses'!B79:H79,\">1\")))","v":""},{"$f":"IF(SUM('2011 Survey responses'!I79:S79)<1,\"\",(AVERAGEIFS('2011 Survey responses'!I79:S79,'2011 Survey responses'!I79:S79,\">1\")))","v":""},{"$f":"IF(SUM('2011 Survey responses'!T79:U79)<2.1,\"\",(AVERAGEIFS('2011 Survey responses'!T79:U79,'2011 Survey responses'!T79:U79,\">1\")))","v":""},{"$f":"IF(SUM('2011 Survey responses'!B79:C79)<2.1,\"\",((SUMIF('2011 Survey responses'!B79:C79,\">1\")+SUMIF('2011 Survey responses'!F79,\">1\"))/(COUNTIF('2011 Survey responses'!B79:C79,\">1\")+COUNTIF('2011 Survey responses'!F79,\">1\"))))","v":""},{"$f":"IF(SUM('2011 Survey responses'!D79:E79)<2.1,\"\",(AVERAGEIFS('2011 Survey responses'!D79:E79,'2011 Survey responses'!D79:E79,\">1\")))","v":""},{"$f":"IF(('2011 Survey responses'!B79+'2011 Survey responses'!D79)<2.1,\"\",((SUMIF('2011 Survey responses'!B79,\">1\")+SUMIF('2011 Survey responses'!D79,\">1\")+SUMIF('2011 Survey responses'!F79,\">1\")+SUMIF('2011 Survey responses'!K79,\">1\"))/(COUNTIF('2011 Survey responses'!B79,\">1\")+COUNTIF('2011 Survey responses'!D79,\">1\")+COUNTIF('2011 Survey responses'!F79,\">1\")+COUNTIF('2011 Survey responses'!K79,\">1\"))))","v":""},{"$f":"IF(SUM('2011 Survey responses'!G79:H79)<2.1,\"\",(AVERAGEIFS('2011 Survey responses'!G79:H79,'2011 Survey responses'!G79:H79,\">1\")))","v":""},{"$f":"IF(SUM('2011 Survey responses'!F79:G79)<1.5,\"\",MAX('2011 Survey responses'!F79,'2011 Survey responses'!G79))","v":""},{"$f":"IF(SUM('2011 Survey responses'!G79:H79)<1,\"\",MAX('2011 Survey responses'!G79,'2011 Survey responses'!H79))","v":""},{"$f":"IF(SUM('2011 Survey responses'!I79:L79)<4.1,\"\",(AVERAGEIFS('2011 Survey responses'!I79:L79,'2011 Survey responses'!I79:L79,\">1\")))","v":""},{"$f":"IF(SUM('2011 Survey responses'!M79:S79)<4.1,\"\",(AVERAGEIFS('2011 Survey responses'!M79:S79,'2011 Survey responses'!M79:S79,\">1\")))","v":""},{"$f":"IF(SUM('2011 Survey responses'!T79:U79)<2.1,\"\",(AVERAGEIFS('2011 Survey responses'!T79:U79,'2011 Survey responses'!T79:U79,\">1\")))","v":""},{"$f":"IF(SUM('2011 Survey responses'!V79:AO79)<1,\"\",(AVERAGEIFS('2011 Survey responses'!V79:AO79,'2011 Survey responses'!V79:AO79,\">1\")))","v":""},{"$f":"IF(SUM('2011 Survey responses'!V79:AA79)<1,\"\",(AVERAGEIFS('2011 Survey responses'!V79:AA79,'2011 Survey responses'!V79:AA79,\">1\")))","v":""},{"$f":"IF(SUM('2011 Survey responses'!AB79:AH79)<1,\"\",(AVERAGEIFS('2011 Survey responses'!AB79:AH79,'2011 Survey responses'!AB79:AH79,\">1\")))","v":""},{"$f":"IF(SUM('2011 Survey responses'!AI79:AO79)<1,\"\",(AVERAGEIFS('2011 Survey responses'!AI79:AO79,'2011 Survey responses'!AI79:AO79,\">1\")))","v":""},{"$f":"IF(('2011 Survey responses'!Y79+'2011 Survey responses'!AI79+'2011 Survey responses'!AK79)<3.1,\"\",((SUMIF('2011 Survey responses'!Y79,\">1\")+SUMIF('2011 Survey responses'!AI79,\">1\")+SUMIF('2011 Survey responses'!AK79,\">1\")+SUMIF('2011 Survey responses'!AM79,\">1\"))/(COUNTIF('2011 Survey responses'!Y79,\">1\")+COUNTIF('2011 Survey responses'!AI79,\">1\")+COUNTIF('2011 Survey responses'!AK79,\">1\")+COUNTIF('2011 Survey responses'!AM79,\">1\"))))","v":""},{"$f":"IF(('2011 Survey responses'!W79)<1.1,\"\",('2011 Survey responses'!W79))","v":""},{"$f":"IF(('2011 Survey responses'!Y79)<1.1,\"\",('2011 Survey responses'!Y79))","v":""},{"$f":"IF(('2011 Survey responses'!Z79)<1.1,\"\",('2011 Survey responses'!Z79))","v":""},{"$f":"IF(('2011 Survey responses'!V79+'2011 Survey responses'!X79+'2011 Survey responses'!AA79)<3.1,\"\",((SUMIF('2011 Survey responses'!V79,\">1\")+SUMIF('2011 Survey responses'!X79,\">1\")+SUMIF('2011 Survey responses'!AA79,\">1\"))/(COUNTIF('2011 Survey responses'!V79,\">1\")+COUNTIF('2011 Survey responses'!X79,\">1\")+COUNTIF('2011 Survey responses'!AA79,\">1\"))))","v":""},{"$f":"IF(('2011 Survey responses'!V79+'2011 Survey responses'!Y79+'2011 Survey responses'!AA79)<3.1,\"\",((SUMIF('2011 Survey responses'!V79,\">1\")+SUMIF('2011 Survey responses'!Y79,\">1\")+SUMIF('2011 Survey responses'!AA79,\">1\"))/(COUNTIF('2011 Survey responses'!V79,\">1\")+COUNTIF('2011 Survey responses'!Y79,\">1\")+COUNTIF('2011 Survey responses'!AA79,\">1\"))))","v":""},{"$f":"IF(SUM('2011 Survey responses'!AB79:AH79)<1,\"\",(AVERAGEIFS('2011 Survey responses'!AB79:AH79,'2011 Survey responses'!AB79:AH79,\">1\")))","v":""},{"$f":"IF(SUM('2011 Survey responses'!AI79:AO79)<7.1,\"\",(AVERAGEIFS('2011 Survey responses'!AI79:AO79,'2011 Survey responses'!AI79:AO79,\">1\")))","v":""},{"$f":"IF(('2011 Survey responses'!AH79)<1.1,\"\",('2011 Survey responses'!AH79))","v":""},{"$f":"IF(SUM('2011 Survey responses'!AP79:BV79)<1,\"\",(AVERAGEIFS('2011 Survey responses'!AP79:BV79,'2011 Survey responses'!AP79:BV79,\">1\")))","v":""},{"$f":"IF(SUM('2011 Survey responses'!AP79:AS79)<4.1,\"\",(AVERAGEIFS('2011 Survey responses'!AP79:AS79,'2011 Survey responses'!AP79:AS79,\">1\")))","v":""},{"$f":"IF(SUM('2011 Survey responses'!AT79:BF79)<1,\"\",(AVERAGEIFS('2011 Survey responses'!AT79:BF79,'2011 Survey responses'!AT79:BF79,\">1\")))","v":""},{"$f":"IF(SUM('2011 Survey responses'!BG79:BO79)<1,\"\",(AVERAGEIFS('2011 Survey responses'!BG79:BO79,'2011 Survey responses'!BG79:BO79,\">1\")))","v":""},{"$f":"IF(SUM('2011 Survey responses'!BP79:BS79)<1,\"\",(AVERAGEIFS('2011 Survey responses'!BP79:BS79,'2011 Survey responses'!BP79:BS79,\">1\")))","v":""},{"$f":"IF(SUM('2011 Survey responses'!BT79:BV79)<3.1,\"\",(AVERAGEIFS('2011 Survey responses'!BT79:BV79,'2011 Survey responses'!BT79:BV79,\">1\")))","v":""},{"$f":"IF(('2011 Survey responses'!AQ79+'2011 Survey responses'!AR79+'2011 Survey responses'!BG79)<3.1,\"\",((SUMIF('2011 Survey responses'!AQ79,\">1\")+SUMIF('2011 Survey responses'!AR79,\">1\")+SUMIF('2011 Survey responses'!BG79,\">1\"))/(COUNTIF('2011 Survey responses'!AQ79,\">1\")+COUNTIF('2011 Survey responses'!AR79,\">1\")+COUNTIF('2011 Survey responses'!BG79,\">1\"))))","v":""},{"$f":"IF(SUM('2011 Survey responses'!AP79:AS79)<4.1,\"\",(AVERAGEIFS('2011 Survey responses'!AP79:AS79,'2011 Survey responses'!AP79:AS79,\">1\")))","v":""},{"$f":"IF(('2011 Survey responses'!AU79+'2011 Survey responses'!AX79+'2011 Survey responses'!BA79+'2011 Survey responses'!BC79+'2011 Survey responses'!BD79)<5.1,\"\",(SUMIF('2011 Survey responses'!AU79,\">1\")+SUMIF('2011 Survey responses'!AX79,\">1\")+SUMIF('2011 Survey responses'!BA79,\">1\")+SUMIF('2011 Survey responses'!BC79,\">1\")+SUMIF('2011 Survey responses'!BD79,\">1\"))/(COUNTIF('2011 Survey responses'!AU79,\">1\")+COUNTIF('2011 Survey responses'!AX79,\">1\")+COUNTIF('2011 Survey responses'!BA79,\">1\")+COUNTIF('2011 Survey responses'!BC79,\">1\")+COUNTIF('2011 Survey responses'!BD79,\">1\")))","v":""},{"$f":"IF(('2011 Survey responses'!AT79)<1.1,\"\",('2011 Survey responses'!AT79))","v":""},{"$f":"IF(SUM('2011 Survey responses'!AV79:AW79)<2.1,\"\",(AVERAGEIFS('2011 Survey responses'!AV79:AW79,'2011 Survey responses'!AV79:AW79,\">1\")))","v":""},{"$f":"IF(('2011 Survey responses'!AW79+'2011 Survey responses'!AY79)<2.1,\"\",(SUMIF('2011 Survey responses'!AW79,\">1\")+SUMIF('2011 Survey responses'!AY79,\">1\"))/(COUNTIF('2011 Survey responses'!AW79,\">1\")+COUNTIF('2011 Survey responses'!AY79,\">1\")))","v":""},{"$f":"IF(('2011 Survey responses'!AZ79)<1.1,\"\",('2011 Survey responses'!AZ79))","v":""},null,null,null,null,{"$f":"IF(('2011 Survey responses'!BE79)<1.1,\"\",('2011 Survey responses'!BE79))","v":""},{"$f":"IF(('2011 Survey responses'!AY79+'2011 Survey responses'!BB79+'2011 Survey responses'!BF79)<3.1,\"\",(SUMIF('2011 Survey responses'!AY79,\">1\")+SUMIF('2011 Survey responses'!BB79,\">1\")+SUMIF('2011 Survey responses'!BF79,\">1\"))/(COUNTIF('2011 Survey responses'!AY79,\">1\")+COUNTIF('2011 Survey responses'!BB79,\">1\")+COUNTIF('2011 Survey responses'!BF79,\">1\")))","v":""},"",{"$f":"IF(SUM('2011 Survey responses'!BT79:BV79)<3.1,\"\",(AVERAGEIFS('2011 Survey responses'!BT79:BV79,'2011 Survey responses'!BT79:BV79,\">1\")))","v":""},{"$f":"IF(SUM('2011 Survey responses'!BW79:CP79)<1,\"\",(AVERAGEIFS('2011 Survey responses'!BW79:CP79,'2011 Survey responses'!BW79:CP79,\">1\")))","v":""},{"$f":"IF(SUM('2011 Survey responses'!BW79:CF79)<1,\"\",(AVERAGEIFS('2011 Survey responses'!BW79:CF79,'2011 Survey responses'!BW79:CF79,\">1\")))","v":""},{"$f":"IF(SUM('2011 Survey responses'!CG79:CP79)<1,\"\",(AVERAGEIFS('2011 Survey responses'!CG79:CP79,'2011 Survey responses'!CG79:CP79,\">1\")))","v":""},{"$f":"IF(SUM('2011 Survey responses'!BX79:CF79)<1,\"\",(AVERAGEIFS('2011 Survey responses'!BX79:CF79,'2011 Survey responses'!BX79:CF79,\">1\")))","v":""},{"$f":"IF(SUM('2011 Survey responses'!CH79:CP79)<1,\"\",(AVERAGEIFS('2011 Survey responses'!CH79:CP79,'2011 Survey responses'!CH79:CP79,\">1\")))","v":""},{"$f":"IF(SUM('2011 Survey responses'!BW79:CP79)<1,\"\",(AVERAGEIFS('2011 Survey responses'!BW79:CP79,'2011 Survey responses'!BW79:CP79,\">1\")))","v":""},{"$f":"IF(('2011 Survey responses'!BW79+'2011 Survey responses'!CG79)<2.1,\"\",(SUMIF('2011 Survey responses'!BW79,\">1\")+SUMIF('2011 Survey responses'!CG79,\">1\"))/(COUNTIF('2011 Survey responses'!BW79,\">1\")+COUNTIF('2011 Survey responses'!CG79,\">1\")))","v":""},{"$f":"IF(('2011 Survey responses'!BX79+'2011 Survey responses'!CH79)<2.1,\"\",(SUMIF('2011 Survey responses'!BX79,\">1\")+SUMIF('2011 Survey responses'!CH79,\">1\"))/(COUNTIF('2011 Survey responses'!BX79,\">1\")+COUNTIF('2011 Survey responses'!CH79,\">1\")))","v":""},{"$f":"IF(('2011 Survey responses'!BY79+'2011 Survey responses'!CI79)<2.1,\"\",(SUMIF('2011 Survey responses'!BY79,\">1\")+SUMIF('2011 Survey responses'!CI79,\">1\"))/(COUNTIF('2011 Survey responses'!BY79,\">1\")+COUNTIF('2011 Survey responses'!CI79,\">1\")))","v":""},{"$f":"IF('2011 Survey responses'!CQ79<0.5,\"\",'2011 Survey responses'!CQ79)","v":""},{"$f":"IF('2011 Survey responses'!CR79<0.5,\"\",'2011 Survey responses'!CR79)","v":""},{"$f":"IF('2011 Survey responses'!CS79<0.5,\"\",'2011 Survey responses'!CS79)","v":""},{"$f":"IF('2011 Survey responses'!CT79<0.5,\"\",'2011 Survey responses'!CT79)","v":""},{"$f":"IF('2011 Survey responses'!CU79<0.5,\"\",'2011 Survey responses'!CU79)","v":""},{"$f":"IF('2011 Survey responses'!CV79<0.5,\"\",'2011 Survey responses'!CV79)","v":""},{"$f":"IF(SUM('2011 Survey responses'!CW79:DL79)<1,\"\",(AVERAGE('2011 Survey responses'!CW79:DL79)))","v":""},{"$f":"IF(SUM('2011 Survey responses'!CW79:CZ79)<1,\"\",(AVERAGE('2011 Survey responses'!CW79:CZ79)))","v":""},{"$f":"IF(SUM('2011 Survey responses'!DA79:DD79)<1,\"\",(AVERAGE('2011 Survey responses'!DA79:DD79)))","v":""},{"$f":"IF(SUM('2011 Survey responses'!DE79:DH79)<1,\"\",(AVERAGE('2011 Survey responses'!DE79:DH79)))","v":""},{"$f":"IF(SUM('2011 Survey responses'!DI79:DL79)<1,\"\",(AVERAGE('2011 Survey responses'!DI79:DL79)))","v":""},{"$f":"IF(('2011 Survey responses'!CW79+'2011 Survey responses'!DA79+'2011 Survey responses'!DE79+'2011 Survey responses'!DI79)<1,\"\",AVERAGE('2011 Survey responses'!CW79,'2011 Survey responses'!DA79,'2011 Survey responses'!DE79,'2011 Survey responses'!DI79))","v":""},{"$f":"IF(('2011 Survey responses'!CX79+'2011 Survey responses'!DB79+'2011 Survey responses'!DF79+'2011 Survey responses'!DJ79)<1,\"\",AVERAGE('2011 Survey responses'!CX79,'2011 Survey responses'!DB79,'2011 Survey responses'!DF79,'2011 Survey responses'!DJ79))","v":""},{"$f":"IF(('2011 Survey responses'!CY79+'2011 Survey responses'!DC79+'2011 Survey responses'!DG79+'2011 Survey responses'!DK79)<1,\"\",AVERAGE('2011 Survey responses'!CY79,'2011 Survey responses'!DC79,'2011 Survey responses'!DG79,'2011 Survey responses'!DK79))","v":""},{"$f":"IF(('2011 Survey responses'!CZ79+'2011 Survey responses'!DD79+'2011 Survey responses'!DH79+'2011 Survey responses'!DL79)<1,\"\",AVERAGE('2011 Survey responses'!CZ79,'2011 Survey responses'!DD79,'2011 Survey responses'!DH79,'2011 Survey responses'!DL79))","v":""},{"$f":"IF('2011 Survey responses'!CW79<0.5,\"\",'2011 Survey responses'!CW79)","v":""},{"$f":"IF('2011 Survey responses'!CX79<0.5,\"\",'2011 Survey responses'!CX79)","v":""},{"$f":"IF('2011 Survey responses'!CY79<0.5,\"\",'2011 Survey responses'!CY79)","v":""},{"$f":"IF('2011 Survey responses'!CZ79<0.5,\"\",'2011 Survey responses'!CZ79)","v":""},{"$f":"IF('2011 Survey responses'!DA79<0.5,\"\",'2011 Survey responses'!DA79)","v":""},{"$f":"IF('2011 Survey responses'!DB79<0.5,\"\",'2011 Survey responses'!DB79)","v":""},{"$f":"IF('2011 Survey responses'!DC79<0.5,\"\",'2011 Survey responses'!DC79)","v":""},{"$f":"IF('2011 Survey responses'!DD79<0.5,\"\",'2011 Survey responses'!DD79)","v":""},{"$f":"IF('2011 Survey responses'!DE79<0.5,\"\",'2011 Survey responses'!DE79)","v":""},{"$f":"IF('2011 Survey responses'!DF79<0.5,\"\",'2011 Survey responses'!DF79)","v":""},{"$f":"IF('2011 Survey responses'!DG79<0.5,\"\",'2011 Survey responses'!DG79)","v":""},{"$f":"IF('2011 Survey responses'!DH79<0.5,\"\",'2011 Survey responses'!DH79)","v":""},{"$f":"IF('2011 Survey responses'!DI79<0.5,\"\",'2011 Survey responses'!DI79)","v":""},{"$f":"IF('2011 Survey responses'!DJ79<0.5,\"\",'2011 Survey responses'!DJ79)","v":""},{"$f":"IF('2011 Survey responses'!DK79<0.5,\"\",'2011 Survey responses'!DK79)","v":""},{"$f":"IF('2011 Survey responses'!DL79<0.5,\"\",'2011 Survey responses'!DL79)","v":""},{"$f":"IF('2011 Survey responses'!DU79=4,4,IF('2011 Survey responses'!DU79=5,4,\"\"))","v":""},{"$f":"IF('2011 Survey responses'!DV79=4,3,IF('2011 Survey responses'!DV79=5,3,\"\"))","v":""},"",{"$f":"IF(CQ79=2,CQ79,IF(CO79=4,CO79,IF(CP79=3,CP79,IF('2011 Survey responses'!GT79=1,1,\"\"))))","v":""},{"$f":"IF('2011 Survey responses'!DO79<0.5,\"\",'2011 Survey responses'!DO79)","v":""},{"$f":"IF('2011 Survey responses'!DP79<0.5,\"\",'2011 Survey responses'!DP79)","v":""},{"$f":"IF('2011 Survey responses'!DQ79<0.5,\"\",'2011 Survey responses'!DQ79)","v":""},{"$f":"IF('2011 Survey responses'!DR79<0.5,\"\",'2011 Survey responses'!DR79)","v":""},{"$f":"IF('2011 Survey responses'!DS79<0.5,\"\",'2011 Survey responses'!DS79)","v":""},{"$f":"IF('2011 Survey responses'!DT79<0.5,\"\",'2011 Survey responses'!DT79)","v":""},{"$f":"IF('2011 Survey responses'!DU79<0.5,\"\",'2011 Survey responses'!DU79)","v":""},{"$f":"IF('2011 Survey responses'!DV79<0.5,\"\",'2011 Survey responses'!DV79)","v":""},{"$f":"IF('2011 Survey responses'!DW79<0.5,\"\",'2011 Survey responses'!DW79)","v":""},{"$f":"IF('2011 Survey responses'!DX79<0.5,\"\",'2011 Survey responses'!DX79)","v":""},{"$f":"IF('2011 Survey responses'!DY79<0.5,\"\",'2011 Survey responses'!DY79)","v":""},{"$f":"IF('2011 Survey responses'!DZ79<0.5,\"\",'2011 Survey responses'!DZ79)","v":""},{"$f":"IF('2011 Survey responses'!EA79<0.5,\"\",'2011 Survey responses'!EA79)","v":""},{"$f":"IF('2011 Survey responses'!EB79<0.5,\"\",'2011 Survey responses'!EB79)","v":""},{"$f":"IF('2011 Survey responses'!EC79<0.5,\"\",'2011 Survey responses'!EC79)","v":""},{"$f":"IF('2011 Survey responses'!ED79<0.5,\"\",'2011 Survey responses'!ED79)","v":""},{"$f":"IF('2011 Survey responses'!EE79<0.5,\"\",'2011 Survey responses'!EE79)","v":""},{"$f":"IF('2011 Survey responses'!EF79<0.5,\"\",'2011 Survey responses'!EF79)","v":""},{"$f":"IF('2011 Survey responses'!EG79<0.5,\"\",'2011 Survey responses'!EG79)","v":""},{"$f":"IF('2011 Survey responses'!EH79<0.5,\"\",'2011 Survey responses'!EH79)","v":""},{"$f":"IF('2011 Survey responses'!EI79<0.5,\"\",'2011 Survey responses'!EI79)","v":""},{"$f":"IF('2011 Survey responses'!EJ79<0.5,\"\",'2011 Survey responses'!EJ79)","v":""},{"$f":"IF('2011 Survey responses'!EK79<0.5,\"\",'2011 Survey responses'!EK79)","v":""},{"$f":"IF('2011 Survey responses'!EL79<0.5,\"\",'2011 Survey responses'!EL79)","v":""},{"$f":"IF('2011 Survey responses'!EM79<0.5,\"\",'2011 Survey responses'!EM79)","v":""},{"$f":"IF('2011 Survey responses'!EN79<0.5,\"\",'2011 Survey responses'!EN79)","v":""},{"$f":"IF('2011 Survey responses'!EO79<0.5,\"\",'2011 Survey responses'!EO79)","v":""},{"$f":"IF('2011 Survey responses'!EP79<0.5,\"\",'2011 Survey responses'!EP79)","v":""},{"$f":"IF(('2011 Survey responses'!EW79+'2011 Survey responses'!EX79)>=2,AVERAGE('2011 Survey responses'!EW79,'2011 Survey responses'!EY79),\"\")","v":""},{"$f":"IF('2011 Survey responses'!EX79<0.5,\"\",'2011 Survey responses'!EX79)","v":""},{"$f":"IF('2011 Survey responses'!EZ79<0.5,\"\",'2011 Survey responses'!EZ79)","v":""},{"$f":"IF('2011 Survey responses'!FB79<0.5,\"\",'2011 Survey responses'!FB79)","v":""},{"$f":"IF('2011 Survey responses'!FD79<0.5,\"\",'2011 Survey responses'!FD79)","v":""},{"$f":"IF('2011 Survey responses'!FC79<0.5,\"\",'2011 Survey responses'!FC79)","v":""},{"$f":"IF(('2011 Survey responses'!EM79+'2011 Survey responses'!EN79)>=2,AVERAGE('2011 Survey responses'!EM79,'2011 Survey responses'!EN79),\"\")","v":""},{"$f":"IF('2011 Survey responses'!ES79<0.5,\"\",'2011 Survey responses'!ES79)","v":""},{"$f":"IF(('2011 Survey responses'!ET79+'2011 Survey responses'!EU79)>=2,AVERAGE('2011 Survey responses'!ET79,'2011 Survey responses'!EU79),\"\")","v":""},{"$f":"IF('2011 Survey responses'!EV79<0.5,\"\",'2011 Survey responses'!EV79)","v":""},{"$f":"IF('2011 Survey responses'!FA79<0.5,\"\",'2011 Survey responses'!FA79)","v":""},{"$f":"IF('2011 Survey responses'!ER79<0.5,\"\",'2011 Survey responses'!ER79)","v":""},{"$f":"IF(('2011 Survey responses'!EO79+'2011 Survey responses'!EP79)>=2,AVERAGE('2011 Survey responses'!EO79,'2011 Survey responses'!EP79),\"\")","v":""},{"$f":"IF('2011 Survey responses'!EQ79<0.5,\"\",'2011 Survey responses'!EQ79)","v":""},{"$f":"IF('2011 Survey responses'!ET79<0.5,\"\",'2011 Survey responses'!ET79)","v":""},{"$f":"IF('2011 Survey responses'!EU79<0.5,\"\",'2011 Survey responses'!EU79)","v":""},{"$f":"IF('2011 Survey responses'!EW79<0.5,\"\",'2011 Survey responses'!EW79)","v":""},{"$f":"IF('2011 Survey responses'!EY79<0.5,\"\",'2011 Survey responses'!EY79)","v":""},{"$f":"IF('2011 Survey responses'!FU79<0.5,\"\",'2011 Survey responses'!FU79)","v":""},{"$f":"IF(('2011 Survey responses'!FL79+'2011 Survey responses'!FM79)>=2,AVERAGE('2011 Survey responses'!FL79,'2011 Survey responses'!FM79),\"\")","v":""},{"$f":"IF(('2011 Survey responses'!FO79+'2011 Survey responses'!FQ79)>=2,AVERAGE('2011 Survey responses'!FO79,'2011 Survey responses'!FQ79),\"\")","v":""},{"$f":"IF('2011 Survey responses'!FJ79<0.5,\"\",'2011 Survey responses'!FJ79)","v":""},{"$f":"IF('2011 Survey responses'!FT79<0.5,\"\",'2011 Survey responses'!FT79)","v":""},{"$f":"IF('2011 Survey responses'!FR79<0.5,\"\",'2011 Survey responses'!FR79)","v":""},{"$f":"IF('2011 Survey responses'!FK79<0.5,\"\",'2011 Survey responses'!FK79)","v":""},{"$f":"IF('2011 Survey responses'!FP79<0.5,\"\",'2011 Survey responses'!FP79)","v":""},{"$f":"IF('2011 Survey responses'!FN79<0.5,\"\",'2011 Survey responses'!FN79)","v":""},{"$f":"IF(('2011 Survey responses'!FE79+'2011 Survey responses'!FF79)>=2,AVERAGE('2011 Survey responses'!FE79,'2011 Survey responses'!FF79),\"\")","v":""},{"$f":"IF('2011 Survey responses'!FS79<0.5,\"\",'2011 Survey responses'!FS79)","v":""},{"$f":"IF('2011 Survey responses'!FV79<0.5,\"\",'2011 Survey responses'!FV79)","v":""},{"$f":"IF(('2011 Survey responses'!FG79+'2011 Survey responses'!FH79)>=2,AVERAGE('2011 Survey responses'!FG79,'2011 Survey responses'!FH79),\"\")","v":""},{"$f":"IF('2011 Survey responses'!FI79<0.5,\"\",'2011 Survey responses'!FI79)","v":""},{"$f":"IF('2011 Survey responses'!FE79<0.5,\"\",'2011 Survey responses'!FE79)","v":""},{"$f":"IF('2011 Survey responses'!FF79<0.5,\"\",'2011 Survey responses'!FF79)","v":""},{"$f":"IF('2011 Survey responses'!FG79<0.5,\"\",'2011 Survey responses'!FG79)","v":""},{"$f":"IF('2011 Survey responses'!FH79<0.5,\"\",'2011 Survey responses'!FH79)","v":""},{"$f":"IF('2011 Survey responses'!FL79<0.5,\"\",'2011 Survey responses'!FL79)","v":""},{"$f":"IF('2011 Survey responses'!FM79<0.5,\"\",'2011 Survey responses'!FM79)","v":""},{"$f":"IF('2011 Survey responses'!FO79<0.5,\"\",'2011 Survey responses'!FO79)","v":""},{"$f":"IF('2011 Survey responses'!FQ79<0.5,\"\",'2011 Survey responses'!FQ79)","v":""}]
["Indonesia",{"$f":"IF(SUM(F80)<1,\"\",AVERAGEIF('2011 Survey responses'!B80:CP80,\">1\"))","v":3.3863636363636362},{"$f":"IF(SUM(F80)<1,\"\",AVERAGEIF('2011 Survey responses'!B80:AO80,\">1\"))","v":3.2162162162162162},{"$f":"IF(SUM(F80)<1,\"\",AVERAGEIF('2011 Survey responses'!B80:BV80,\">1\"))","v":3.2285714285714286},{"$f":"IF(SUM(F80)<1,\"\",AVERAGEIF('2011 Survey responses'!V80:BV80,\">1\"))","v":3.3269230769230771},{"$f":"IF(SUM('2011 Survey responses'!B80:U80)<1,\"\",(AVERAGEIFS('2011 Survey responses'!B80:U80,'2011 Survey responses'!B80:U80,\">1\")))","v":2.9444444444444446},{"$f":"IF(SUM('2011 Survey responses'!B80:H80)<1,\"\",(AVERAGEIFS('2011 Survey responses'!B80:H80,'2011 Survey responses'!B80:H80,\">1\")))","v":3.1666666666666665},{"$f":"IF(SUM('2011 Survey responses'!I80:S80)<1,\"\",(AVERAGEIFS('2011 Survey responses'!I80:S80,'2011 Survey responses'!I80:S80,\">1\")))","v":2.9090909090909092},{"$f":"IF(SUM('2011 Survey responses'!T80:U80)<2.1,\"\",(AVERAGEIFS('2011 Survey responses'!T80:U80,'2011 Survey responses'!T80:U80,\">1\")))","v":2},{"$f":"IF(SUM('2011 Survey responses'!B80:C80)<2.1,\"\",((SUMIF('2011 Survey responses'!B80:C80,\">1\")+SUMIF('2011 Survey responses'!F80,\">1\"))/(COUNTIF('2011 Survey responses'!B80:C80,\">1\")+COUNTIF('2011 Survey responses'!F80,\">1\"))))","v":3.6666666666666665},{"$f":"IF(SUM('2011 Survey responses'!D80:E80)<2.1,\"\",(AVERAGEIFS('2011 Survey responses'!D80:E80,'2011 Survey responses'!D80:E80,\">1\")))","v":4},{"$f":"IF(('2011 Survey responses'!B80+'2011 Survey responses'!D80)<2.1,\"\",((SUMIF('2011 Survey responses'!B80,\">1\")+SUMIF('2011 Survey responses'!D80,\">1\")+SUMIF('2011 Survey responses'!F80,\">1\")+SUMIF('2011 Survey responses'!K80,\">1\"))/(COUNTIF('2011 Survey responses'!B80,\">1\")+COUNTIF('2011 Survey responses'!D80,\">1\")+COUNTIF('2011 Survey responses'!F80,\">1\")+COUNTIF('2011 Survey responses'!K80,\">1\"))))","v":3.75},{"$f":"IF(SUM('2011 Survey responses'!G80:H80)<2.1,\"\",(AVERAGEIFS('2011 Survey responses'!G80:H80,'2011 Survey responses'!G80:H80,\">1\")))","v":2},{"$f":"IF(SUM('2011 Survey responses'!F80:G80)<1.5,\"\",MAX('2011 Survey responses'!F80,'2011 Survey responses'!G80))","v":4},{"$f":"IF(SUM('2011 Survey responses'!G80:H80)<1,\"\",MAX('2011 Survey responses'!G80,'2011 Survey responses'!H80))","v":2},{"$f":"IF(SUM('2011 Survey responses'!I80:L80)<4.1,\"\",(AVERAGEIFS('2011 Survey responses'!I80:L80,'2011 Survey responses'!I80:L80,\">1\")))","v":3},{"$f":"IF(SUM('2011 Survey responses'!M80:S80)<4.1,\"\",(AVERAGEIFS('2011 Survey responses'!M80:S80,'2011 Survey responses'!M80:S80,\">1\")))","v":2.8571428571428572},{"$f":"IF(SUM('2011 Survey responses'!T80:U80)<2.1,\"\",(AVERAGEIFS('2011 Survey responses'!T80:U80,'2011 Survey responses'!T80:U80,\">1\")))","v":2},{"$f":"IF(SUM('2011 Survey responses'!V80:AO80)<1,\"\",(AVERAGEIFS('2011 Survey responses'!V80:AO80,'2011 Survey responses'!V80:AO80,\">1\")))","v":3.4736842105263159},{"$f":"IF(SUM('2011 Survey responses'!V80:AA80)<1,\"\",(AVERAGEIFS('2011 Survey responses'!V80:AA80,'2011 Survey responses'!V80:AA80,\">1\")))","v":3.1666666666666665},{"$f":"IF(SUM('2011 Survey responses'!AB80:AH80)<1,\"\",(AVERAGEIFS('2011 Survey responses'!AB80:AH80,'2011 Survey responses'!AB80:AH80,\">1\")))","v":3.5},{"$f":"IF(SUM('2011 Survey responses'!AI80:AO80)<1,\"\",(AVERAGEIFS('2011 Survey responses'!AI80:AO80,'2011 Survey responses'!AI80:AO80,\">1\")))","v":3.7142857142857144},{"$f":"IF(('2011 Survey responses'!Y80+'2011 Survey responses'!AI80+'2011 Survey responses'!AK80)<3.1,\"\",((SUMIF('2011 Survey responses'!Y80,\">1\")+SUMIF('2011 Survey responses'!AI80,\">1\")+SUMIF('2011 Survey responses'!AK80,\">1\")+SUMIF('2011 Survey responses'!AM80,\">1\"))/(COUNTIF('2011 Survey responses'!Y80,\">1\")+COUNTIF('2011 Survey responses'!AI80,\">1\")+COUNTIF('2011 Survey responses'!AK80,\">1\")+COUNTIF('2011 Survey responses'!AM80,\">1\"))))","v":3.5},{"$f":"IF(('2011 Survey responses'!W80)<1.1,\"\",('2011 Survey responses'!W80))","v":3},{"$f":"IF(('2011 Survey responses'!Y80)<1.1,\"\",('2011 Survey responses'!Y80))","v":3},{"$f":"IF(('2011 Survey responses'!Z80)<1.1,\"\",('2011 Survey responses'!Z80))","v":2},{"$f":"IF(('2011 Survey responses'!V80+'2011 Survey responses'!X80+'2011 Survey responses'!AA80)<3.1,\"\",((SUMIF('2011 Survey responses'!V80,\">1\")+SUMIF('2011 Survey responses'!X80,\">1\")+SUMIF('2011 Survey responses'!AA80,\">1\"))/(COUNTIF('2011 Survey responses'!V80,\">1\")+COUNTIF('2011 Survey responses'!X80,\">1\")+COUNTIF('2011 Survey responses'!AA80,\">1\"))))","v":3.6666666666666665},{"$f":"IF(('2011 Survey responses'!V80+'2011 Survey responses'!Y80+'2011 Survey responses'!AA80)<3.1,\"\",((SUMIF('2011 Survey responses'!V80,\">1\")+SUMIF('2011 Survey responses'!Y80,\">1\")+SUMIF('2011 Survey responses'!AA80,\">1\"))/(COUNTIF('2011 Survey responses'!V80,\">1\")+COUNTIF('2011 Survey responses'!Y80,\">1\")+COUNTIF('2011 Survey responses'!AA80,\">1\"))))","v":3.6666666666666665},{"$f":"IF(SUM('2011 Survey responses'!AB80:AH80)<1,\"\",(AVERAGEIFS('2011 Survey responses'!AB80:AH80,'2011 Survey responses'!AB80:AH80,\">1\")))","v":3.5},{"$f":"IF(SUM('2011 Survey responses'!AI80:AO80)<7.1,\"\",(AVERAGEIFS('2011 Survey responses'!AI80:AO80,'2011 Survey responses'!AI80:AO80,\">1\")))","v":3.7142857142857144},{"$f":"IF(('2011 Survey responses'!AH80)<1.1,\"\",('2011 Survey responses'!AH80))","v":3},{"$f":"IF(SUM('2011 Survey responses'!AP80:BV80)<1,\"\",(AVERAGEIFS('2011 Survey responses'!AP80:BV80,'2011 Survey responses'!AP80:BV80,\">1\")))","v":3.2424242424242422},{"$f":"IF(SUM('2011 Survey responses'!AP80:AS80)<4.1,\"\",(AVERAGEIFS('2011 Survey responses'!AP80:AS80,'2011 Survey responses'!AP80:AS80,\">1\")))","v":3.25},{"$f":"IF(SUM('2011 Survey responses'!AT80:BF80)<1,\"\",(AVERAGEIFS('2011 Survey responses'!AT80:BF80,'2011 Survey responses'!AT80:BF80,\">1\")))","v":3.1538461538461537},{"$f":"IF(SUM('2011 Survey responses'!BG80:BO80)<1,\"\",(AVERAGEIFS('2011 Survey responses'!BG80:BO80,'2011 Survey responses'!BG80:BO80,\">1\")))","v":3.5555555555555554},{"$f":"IF(SUM('2011 Survey responses'!BP80:BS80)<1,\"\",(AVERAGEIFS('2011 Survey responses'!BP80:BS80,'2011 Survey responses'!BP80:BS80,\">1\")))","v":3.5},{"$f":"IF(SUM('2011 Survey responses'!BT80:BV80)<3.1,\"\",(AVERAGEIFS('2011 Survey responses'!BT80:BV80,'2011 Survey responses'!BT80:BV80,\">1\")))","v":2.3333333333333335},{"$f":"IF(('2011 Survey responses'!AQ80+'2011 Survey responses'!AR80+'2011 Survey responses'!BG80)<3.1,\"\",((SUMIF('2011 Survey responses'!AQ80,\">1\")+SUMIF('2011 Survey responses'!AR80,\">1\")+SUMIF('2011 Survey responses'!BG80,\">1\"))/(COUNTIF('2011 Survey responses'!AQ80,\">1\")+COUNTIF('2011 Survey responses'!AR80,\">1\")+COUNTIF('2011 Survey responses'!BG80,\">1\"))))","v":3.6666666666666665},{"$f":"IF(SUM('2011 Survey responses'!AP80:AS80)<4.1,\"\",(AVERAGEIFS('2011 Survey responses'!AP80:AS80,'2011 Survey responses'!AP80:AS80,\">1\")))","v":3.25},{"$f":"IF(('2011 Survey responses'!AU80+'2011 Survey responses'!AX80+'2011 Survey responses'!BA80+'2011 Survey responses'!BC80+'2011 Survey responses'!BD80)<5.1,\"\",(SUMIF('2011 Survey responses'!AU80,\">1\")+SUMIF('2011 Survey responses'!AX80,\">1\")+SUMIF('2011 Survey responses'!BA80,\">1\")+SUMIF('2011 Survey responses'!BC80,\">1\")+SUMIF('2011 Survey responses'!BD80,\">1\"))/(COUNTIF('2011 Survey responses'!AU80,\">1\")+COUNTIF('2011 Survey responses'!AX80,\">1\")+COUNTIF('2011 Survey responses'!BA80,\">1\")+COUNTIF('2011 Survey responses'!BC80,\">1\")+COUNTIF('2011 Survey responses'!BD80,\">1\")))","v":3.4},{"$f":"IF(('2011 Survey responses'!AT80)<1.1,\"\",('2011 Survey responses'!AT80))","v":3},{"$f":"IF(SUM('2011 Survey responses'!AV80:AW80)<2.1,\"\",(AVERAGEIFS('2011 Survey responses'!AV80:AW80,'2011 Survey responses'!AV80:AW80,\">1\")))","v":3.5},{"$f":"IF(('2011 Survey responses'!AW80+'2011 Survey responses'!AY80)<2.1,\"\",(SUMIF('2011 Survey responses'!AW80,\">1\")+SUMIF('2011 Survey responses'!AY80,\">1\"))/(COUNTIF('2011 Survey responses'!AW80,\">1\")+COUNTIF('2011 Survey responses'!AY80,\">1\")))","v":4},{"$f":"IF(('2011 Survey responses'!AZ80)<1.1,\"\",('2011 Survey responses'!AZ80))","v":3},3,3,3,2,{"$f":"IF(('2011 Survey responses'!BE80)<1.1,\"\",('2011 Survey responses'!BE80))","v":2},{"$f":"IF(('2011 Survey responses'!AY80+'2011 Survey responses'!BB80+'2011 Survey responses'!BF80)<3.1,\"\",(SUMIF('2011 Survey responses'!AY80,\">1\")+SUMIF('2011 Survey responses'!BB80,\">1\")+SUMIF('2011 Survey responses'!BF80,\">1\"))/(COUNTIF('2011 Survey responses'!AY80,\">1\")+COUNTIF('2011 Survey responses'!BB80,\">1\")+COUNTIF('2011 Survey responses'!BF80,\">1\")))","v":3},3.5277777777777777,{"$f":"IF(SUM('2011 Survey responses'!BT80:BV80)<3.1,\"\",(AVERAGEIFS('2011 Survey responses'!BT80:BV80,'2011 Survey responses'!BT80:BV80,\">1\")))","v":2.3333333333333335},{"$f":"IF(SUM('2011 Survey responses'!BW80:CP80)<1,\"\",(AVERAGEIFS('2011 Survey responses'!BW80:CP80,'2011 Survey responses'!BW80:CP80,\">1\")))","v":4},{"$f":"IF(SUM('2011 Survey responses'!BW80:CF80)<1,\"\",(AVERAGEIFS('2011 Survey responses'!BW80:CF80,'2011 Survey responses'!BW80:CF80,\">1\")))","v":4.1111111111111107},{"$f":"IF(SUM('2011 Survey responses'!CG80:CP80)<1,\"\",(AVERAGEIFS('2011 Survey responses'!CG80:CP80,'2011 Survey responses'!CG80:CP80,\">1\")))","v":3.8888888888888888},{"$f":"IF(SUM('2011 Survey responses'!BX80:CF80)<1,\"\",(AVERAGEIFS('2011 Survey responses'!BX80:CF80,'2011 Survey responses'!BX80:CF80,\">1\")))","v":4},{"$f":"IF(SUM('2011 Survey responses'!CH80:CP80)<1,\"\",(AVERAGEIFS('2011 Survey responses'!CH80:CP80,'2011 Survey responses'!CH80:CP80,\">1\")))","v":3.75},{"$f":"IF(SUM('2011 Survey responses'!BW80:CP80)<1,\"\",(AVERAGEIFS('2011 Survey responses'!BW80:CP80,'2011 Survey responses'!BW80:CP80,\">1\")))","v":4},{"$f":"IF(('2011 Survey responses'!BW80+'2011 Survey responses'!CG80)<2.1,\"\",(SUMIF('2011 Survey responses'!BW80,\">1\")+SUMIF('2011 Survey responses'!CG80,\">1\"))/(COUNTIF('2011 Survey responses'!BW80,\">1\")+COUNTIF('2011 Survey responses'!CG80,\">1\")))","v":5},{"$f":"IF(('2011 Survey responses'!BX80+'2011 Survey responses'!CH80)<2.1,\"\",(SUMIF('2011 Survey responses'!BX80,\">1\")+SUMIF('2011 Survey responses'!CH80,\">1\"))/(COUNTIF('2011 Survey responses'!BX80,\">1\")+COUNTIF('2011 Survey responses'!CH80,\">1\")))","v":5},{"$f":"IF(('2011 Survey responses'!BY80+'2011 Survey responses'!CI80)<2.1,\"\",(SUMIF('2011 Survey responses'!BY80,\">1\")+SUMIF('2011 Survey responses'!CI80,\">1\"))/(COUNTIF('2011 Survey responses'!BY80,\">1\")+COUNTIF('2011 Survey responses'!CI80,\">1\")))","v":4.5},{"$f":"IF('2011 Survey responses'!CQ80<0.5,\"\",'2011 Survey responses'!CQ80)","v":4},{"$f":"IF('2011 Survey responses'!CR80<0.5,\"\",'2011 Survey responses'!CR80)","v":3},{"$f":"IF('2011 Survey responses'!CS80<0.5,\"\",'2011 Survey responses'!CS80)","v":3},{"$f":"IF('2011 Survey responses'!CT80<0.5,\"\",'2011 Survey responses'!CT80)","v":1},{"$f":"IF('2011 Survey responses'!CU80<0.5,\"\",'2011 Survey responses'!CU80)","v":4},{"$f":"IF('2011 Survey responses'!CV80<0.5,\"\",'2011 Survey responses'!CV80)","v":1},{"$f":"IF(SUM('2011 Survey responses'!CW80:DL80)<1,\"\",(AVERAGE('2011 Survey responses'!CW80:DL80)))","v":2.5},{"$f":"IF(SUM('2011 Survey responses'!CW80:CZ80)<1,\"\",(AVERAGE('2011 Survey responses'!CW80:CZ80)))","v":2},{"$f":"IF(SUM('2011 Survey responses'!DA80:DD80)<1,\"\",(AVERAGE('2011 Survey responses'!DA80:DD80)))","v":3},{"$f":"IF(SUM('2011 Survey responses'!DE80:DH80)<1,\"\",(AVERAGE('2011 Survey responses'!DE80:DH80)))","v":2},{"$f":"IF(SUM('2011 Survey responses'!DI80:DL80)<1,\"\",(AVERAGE('2011 Survey responses'!DI80:DL80)))","v":3},{"$f":"IF(('2011 Survey responses'!CW80+'2011 Survey responses'!DA80+'2011 Survey responses'!DE80+'2011 Survey responses'!DI80)<1,\"\",AVERAGE('2011 Survey responses'!CW80,'2011 Survey responses'!DA80,'2011 Survey responses'!DE80,'2011 Survey responses'!DI80))","v":2.5},{"$f":"IF(('2011 Survey responses'!CX80+'2011 Survey responses'!DB80+'2011 Survey responses'!DF80+'2011 Survey responses'!DJ80)<1,\"\",AVERAGE('2011 Survey responses'!CX80,'2011 Survey responses'!DB80,'2011 Survey responses'!DF80,'2011 Survey responses'!DJ80))","v":2.5},{"$f":"IF(('2011 Survey responses'!CY80+'2011 Survey responses'!DC80+'2011 Survey responses'!DG80+'2011 Survey responses'!DK80)<1,\"\",AVERAGE('2011 Survey responses'!CY80,'2011 Survey responses'!DC80,'2011 Survey responses'!DG80,'2011 Survey responses'!DK80))","v":2.5},{"$f":"IF(('2011 Survey responses'!CZ80+'2011 Survey responses'!DD80+'2011 Survey responses'!DH80+'2011 Survey responses'!DL80)<1,\"\",AVERAGE('2011 Survey responses'!CZ80,'2011 Survey responses'!DD80,'2011 Survey responses'!DH80,'2011 Survey responses'!DL80))","v":2.5},{"$f":"IF('2011 Survey responses'!CW80<0.5,\"\",'2011 Survey responses'!CW80)","v":2},{"$f":"IF('2011 Survey responses'!CX80<0.5,\"\",'2011 Survey responses'!CX80)","v":2},{"$f":"IF('2011 Survey responses'!CY80<0.5,\"\",'2011 Survey responses'!CY80)","v":2},{"$f":"IF('2011 Survey responses'!CZ80<0.5,\"\",'2011 Survey responses'!CZ80)","v":2},{"$f":"IF('2011 Survey responses'!DA80<0.5,\"\",'2011 Survey responses'!DA80)","v":3},{"$f":"IF('2011 Survey responses'!DB80<0.5,\"\",'2011 Survey responses'!DB80)","v":3},{"$f":"IF('2011 Survey responses'!DC80<0.5,\"\",'2011 Survey responses'!DC80)","v":3},{"$f":"IF('2011 Survey responses'!DD80<0.5,\"\",'2011 Survey responses'!DD80)","v":3},{"$f":"IF('2011 Survey responses'!DE80<0.5,\"\",'2011 Survey responses'!DE80)","v":2},{"$f":"IF('2011 Survey responses'!DF80<0.5,\"\",'2011 Survey responses'!DF80)","v":2},{"$f":"IF('2011 Survey responses'!DG80<0.5,\"\",'2011 Survey responses'!DG80)","v":2},{"$f":"IF('2011 Survey responses'!DH80<0.5,\"\",'2011 Survey responses'!DH80)","v":2},{"$f":"IF('2011 Survey responses'!DI80<0.5,\"\",'2011 Survey responses'!DI80)","v":3},{"$f":"IF('2011 Survey responses'!DJ80<0.5,\"\",'2011 Survey responses'!DJ80)","v":3},{"$f":"IF('2011 Survey responses'!DK80<0.5,\"\",'2011 Survey responses'!DK80)","v":3},{"$f":"IF('2011 Survey responses'!DL80<0.5,\"\",'2011 Survey responses'!DL80)","v":3},{"$f":"IF('2011 Survey responses'!DU80=4,4,IF('2011 Survey responses'!DU80=5,4,\"\"))","v":4},{"$f":"IF('2011 Survey responses'!DV80=4,3,IF('2011 Survey responses'!DV80=5,3,\"\"))","v":""},"",{"$f":"IF(CQ80=2,CQ80,IF(CO80=4,CO80,IF(CP80=3,CP80,IF('2011 Survey responses'!GT80=1,1,\"\"))))","v":4},{"$f":"IF('2011 Survey responses'!DO80<0.5,\"\",'2011 Survey responses'!DO80)","v":4},{"$f":"IF('2011 Survey responses'!DP80<0.5,\"\",'2011 Survey responses'!DP80)","v":4},{"$f":"IF('2011 Survey responses'!DQ80<0.5,\"\",'2011 Survey responses'!DQ80)","v":4},{"$f":"IF('2011 Survey responses'!DR80<0.5,\"\",'2011 Survey responses'!DR80)","v":3},{"$f":"IF('2011 Survey responses'!DS80<0.5,\"\",'2011 Survey responses'!DS80)","v":3},{"$f":"IF('2011 Survey responses'!DT80<0.5,\"\",'2011 Survey responses'!DT80)","v":4},{"$f":"IF('2011 Survey responses'!DU80<0.5,\"\",'2011 Survey responses'!DU80)","v":4},{"$f":"IF('2011 Survey responses'!DV80<0.5,\"\",'2011 Survey responses'!DV80)","v":3},{"$f":"IF('2011 Survey responses'!DW80<0.5,\"\",'2011 Survey responses'!DW80)","v":4},{"$f":"IF('2011 Survey responses'!DX80<0.5,\"\",'2011 Survey responses'!DX80)","v":3},{"$f":"IF('2011 Survey responses'!DY80<0.5,\"\",'2011 Survey responses'!DY80)","v":4},{"$f":"IF('2011 Survey responses'!DZ80<0.5,\"\",'2011 Survey responses'!DZ80)","v":3},{"$f":"IF('2011 Survey responses'!EA80<0.5,\"\",'2011 Survey responses'!EA80)","v":4},{"$f":"IF('2011 Survey responses'!EB80<0.5,\"\",'2011 Survey responses'!EB80)","v":5},{"$f":"IF('2011 Survey responses'!EC80<0.5,\"\",'2011 Survey responses'!EC80)","v":5},{"$f":"IF('2011 Survey responses'!ED80<0.5,\"\",'2011 Survey responses'!ED80)","v":3},{"$f":"IF('2011 Survey responses'!EE80<0.5,\"\",'2011 Survey responses'!EE80)","v":3},{"$f":"IF('2011 Survey responses'!EF80<0.5,\"\",'2011 Survey responses'!EF80)","v":4},{"$f":"IF('2011 Survey responses'!EG80<0.5,\"\",'2011 Survey responses'!EG80)","v":4},{"$f":"IF('2011 Survey responses'!EH80<0.5,\"\",'2011 Survey responses'!EH80)","v":3},{"$f":"IF('2011 Survey responses'!EI80<0.5,\"\",'2011 Survey responses'!EI80)","v":4},{"$f":"IF('2011 Survey responses'!EJ80<0.5,\"\",'2011 Survey responses'!EJ80)","v":4},{"$f":"IF('2011 Survey responses'!EK80<0.5,\"\",'2011 Survey responses'!EK80)","v":4},{"$f":"IF('2011 Survey responses'!EL80<0.5,\"\",'2011 Survey responses'!EL80)","v":3},{"$f":"IF('2011 Survey responses'!EM80<0.5,\"\",'2011 Survey responses'!EM80)","v":4},{"$f":"IF('2011 Survey responses'!EN80<0.5,\"\",'2011 Survey responses'!EN80)","v":4},{"$f":"IF('2011 Survey responses'!EO80<0.5,\"\",'2011 Survey responses'!EO80)","v":3},{"$f":"IF('2011 Survey responses'!EP80<0.5,\"\",'2011 Survey responses'!EP80)","v":3},{"$f":"IF(('2011 Survey responses'!EW80+'2011 Survey responses'!EX80)>=2,AVERAGE('2011 Survey responses'!EW80,'2011 Survey responses'!EY80),\"\")","v":4},{"$f":"IF('2011 Survey responses'!EX80<0.5,\"\",'2011 Survey responses'!EX80)","v":3},{"$f":"IF('2011 Survey responses'!EZ80<0.5,\"\",'2011 Survey responses'!EZ80)","v":3},{"$f":"IF('2011 Survey responses'!FB80<0.5,\"\",'2011 Survey responses'!FB80)","v":4},{"$f":"IF('2011 Survey responses'!FD80<0.5,\"\",'2011 Survey responses'!FD80)","v":3},{"$f":"IF('2011 Survey responses'!FC80<0.5,\"\",'2011 Survey responses'!FC80)","v":4},{"$f":"IF(('2011 Survey responses'!EM80+'2011 Survey responses'!EN80)>=2,AVERAGE('2011 Survey responses'!EM80,'2011 Survey responses'!EN80),\"\")","v":4},{"$f":"IF('2011 Survey responses'!ES80<0.5,\"\",'2011 Survey responses'!ES80)","v":4},{"$f":"IF(('2011 Survey responses'!ET80+'2011 Survey responses'!EU80)>=2,AVERAGE('2011 Survey responses'!ET80,'2011 Survey responses'!EU80),\"\")","v":3.5},{"$f":"IF('2011 Survey responses'!EV80<0.5,\"\",'2011 Survey responses'!EV80)","v":4},{"$f":"IF('2011 Survey responses'!FA80<0.5,\"\",'2011 Survey responses'!FA80)","v":3},{"$f":"IF('2011 Survey responses'!ER80<0.5,\"\",'2011 Survey responses'!ER80)","v":4},{"$f":"IF(('2011 Survey responses'!EO80+'2011 Survey responses'!EP80)>=2,AVERAGE('2011 Survey responses'!EO80,'2011 Survey responses'!EP80),\"\")","v":3},{"$f":"IF('2011 Survey responses'!EQ80<0.5,\"\",'2011 Survey responses'!EQ80)","v":2},{"$f":"IF('2011 Survey responses'!ET80<0.5,\"\",'2011 Survey responses'!ET80)","v":4},{"$f":"IF('2011 Survey responses'!EU80<0.5,\"\",'2011 Survey responses'!EU80)","v":3},{"$f":"IF('2011 Survey responses'!EW80<0.5,\"\",'2011 Survey responses'!EW80)","v":4},{"$f":"IF('2011 Survey responses'!EY80<0.5,\"\",'2011 Survey responses'!EY80)","v":4},{"$f":"IF('2011 Survey responses'!FU80<0.5,\"\",'2011 Survey responses'!FU80)","v":4},{"$f":"IF(('2011 Survey responses'!FL80+'2011 Survey responses'!FM80)>=2,AVERAGE('2011 Survey responses'!FL80,'2011 Survey responses'!FM80),\"\")","v":4},{"$f":"IF(('2011 Survey responses'!FO80+'2011 Survey responses'!FQ80)>=2,AVERAGE('2011 Survey responses'!FO80,'2011 Survey responses'!FQ80),\"\")","v":4},{"$f":"IF('2011 Survey responses'!FJ80<0.5,\"\",'2011 Survey responses'!FJ80)","v":4},{"$f":"IF('2011 Survey responses'!FT80<0.5,\"\",'2011 Survey responses'!FT80)","v":4},{"$f":"IF('2011 Survey responses'!FR80<0.5,\"\",'2011 Survey responses'!FR80)","v":3},{"$f":"IF('2011 Survey responses'!FK80<0.5,\"\",'2011 Survey responses'!FK80)","v":4},{"$f":"IF('2011 Survey responses'!FP80<0.5,\"\",'2011 Survey responses'!FP80)","v":3},{"$f":"IF('2011 Survey responses'!FN80<0.5,\"\",'2011 Survey responses'!FN80)","v":4},{"$f":"IF(('2011 Survey responses'!FE80+'2011 Survey responses'!FF80)>=2,AVERAGE('2011 Survey responses'!FE80,'2011 Survey responses'!FF80),\"\")","v":2},{"$f":"IF('2011 Survey responses'!FS80<0.5,\"\",'2011 Survey responses'!FS80)","v":3},{"$f":"IF('2011 Survey responses'!FV80<0.5,\"\",'2011 Survey responses'!FV80)","v":3},{"$f":"IF(('2011 Survey responses'!FG80+'2011 Survey responses'!FH80)>=2,AVERAGE('2011 Survey responses'!FG80,'2011 Survey responses'!FH80),\"\")","v":3},{"$f":"IF('2011 Survey responses'!FI80<0.5,\"\",'2011 Survey responses'!FI80)","v":3},{"$f":"IF('2011 Survey responses'!FE80<0.5,\"\",'2011 Survey responses'!FE80)","v":2},{"$f":"IF('2011 Survey responses'!FF80<0.5,\"\",'2011 Survey responses'!FF80)","v":2},{"$f":"IF('2011 Survey responses'!FG80<0.5,\"\",'2011 Survey responses'!FG80)","v":3},{"$f":"IF('2011 Survey responses'!FH80<0.5,\"\",'2011 Survey responses'!FH80)","v":3},{"$f":"IF('2011 Survey responses'!FL80<0.5,\"\",'2011 Survey responses'!FL80)","v":4},{"$f":"IF('2011 Survey responses'!FM80<0.5,\"\",'2011 Survey responses'!FM80)","v":4},{"$f":"IF('2011 Survey responses'!FO80<0.5,\"\",'2011 Survey responses'!FO80)","v":4},{"$f":"IF('2011 Survey responses'!FQ80<0.5,\"\",'2011 Survey responses'!FQ80)","v":4}]
["Iran (Islamic Republic of)",{"$f":"IF(SUM(F81)<1,\"\",AVERAGEIF('2011 Survey responses'!B81:CP81,\">1\"))","v":4.5053763440860219},{"$f":"IF(SUM(F81)<1,\"\",AVERAGEIF('2011 Survey responses'!B81:AO81,\">1\"))","v":4.2249999999999996},{"$f":"IF(SUM(F81)<1,\"\",AVERAGEIF('2011 Survey responses'!B81:BV81,\">1\"))","v":4.506849315068493},{"$f":"IF(SUM(F81)<1,\"\",AVERAGEIF('2011 Survey responses'!V81:BV81,\">1\"))","v":4.4716981132075473},{"$f":"IF(SUM('2011 Survey responses'!B81:U81)<1,\"\",(AVERAGEIFS('2011 Survey responses'!B81:U81,'2011 Survey responses'!B81:U81,\">1\")))","v":4.5999999999999996},{"$f":"IF(SUM('2011 Survey responses'!B81:H81)<1,\"\",(AVERAGEIFS('2011 Survey responses'!B81:H81,'2011 Survey responses'!B81:H81,\">1\")))","v":4.8571428571428568},{"$f":"IF(SUM('2011 Survey responses'!I81:S81)<1,\"\",(AVERAGEIFS('2011 Survey responses'!I81:S81,'2011 Survey responses'!I81:S81,\">1\")))","v":4.1818181818181817},{"$f":"IF(SUM('2011 Survey responses'!T81:U81)<2.1,\"\",(AVERAGEIFS('2011 Survey responses'!T81:U81,'2011 Survey responses'!T81:U81,\">1\")))","v":6},{"$f":"IF(SUM('2011 Survey responses'!B81:C81)<2.1,\"\",((SUMIF('2011 Survey responses'!B81:C81,\">1\")+SUMIF('2011 Survey responses'!F81,\">1\"))/(COUNTIF('2011 Survey responses'!B81:C81,\">1\")+COUNTIF('2011 Survey responses'!F81,\">1\"))))","v":4.666666666666667},{"$f":"IF(SUM('2011 Survey responses'!D81:E81)<2.1,\"\",(AVERAGEIFS('2011 Survey responses'!D81:E81,'2011 Survey responses'!D81:E81,\">1\")))","v":5.5},{"$f":"IF(('2011 Survey responses'!B81+'2011 Survey responses'!D81)<2.1,\"\",((SUMIF('2011 Survey responses'!B81,\">1\")+SUMIF('2011 Survey responses'!D81,\">1\")+SUMIF('2011 Survey responses'!F81,\">1\")+SUMIF('2011 Survey responses'!K81,\">1\"))/(COUNTIF('2011 Survey responses'!B81,\">1\")+COUNTIF('2011 Survey responses'!D81,\">1\")+COUNTIF('2011 Survey responses'!F81,\">1\")+COUNTIF('2011 Survey responses'!K81,\">1\"))))","v":5.25},{"$f":"IF(SUM('2011 Survey responses'!G81:H81)<2.1,\"\",(AVERAGEIFS('2011 Survey responses'!G81:H81,'2011 Survey responses'!G81:H81,\">1\")))","v":4.5},{"$f":"IF(SUM('2011 Survey responses'!F81:G81)<1.5,\"\",MAX('2011 Survey responses'!F81,'2011 Survey responses'!G81))","v":5},{"$f":"IF(SUM('2011 Survey responses'!G81:H81)<1,\"\",MAX('2011 Survey responses'!G81,'2011 Survey responses'!H81))","v":5},{"$f":"IF(SUM('2011 Survey responses'!I81:L81)<4.1,\"\",(AVERAGEIFS('2011 Survey responses'!I81:L81,'2011 Survey responses'!I81:L81,\">1\")))","v":5},{"$f":"IF(SUM('2011 Survey responses'!M81:S81)<4.1,\"\",(AVERAGEIFS('2011 Survey responses'!M81:S81,'2011 Survey responses'!M81:S81,\">1\")))","v":3.7142857142857144},{"$f":"IF(SUM('2011 Survey responses'!T81:U81)<2.1,\"\",(AVERAGEIFS('2011 Survey responses'!T81:U81,'2011 Survey responses'!T81:U81,\">1\")))","v":6},{"$f":"IF(SUM('2011 Survey responses'!V81:AO81)<1,\"\",(AVERAGEIFS('2011 Survey responses'!V81:AO81,'2011 Survey responses'!V81:AO81,\">1\")))","v":3.85},{"$f":"IF(SUM('2011 Survey responses'!V81:AA81)<1,\"\",(AVERAGEIFS('2011 Survey responses'!V81:AA81,'2011 Survey responses'!V81:AA81,\">1\")))","v":5},{"$f":"IF(SUM('2011 Survey responses'!AB81:AH81)<1,\"\",(AVERAGEIFS('2011 Survey responses'!AB81:AH81,'2011 Survey responses'!AB81:AH81,\">1\")))","v":3},{"$f":"IF(SUM('2011 Survey responses'!AI81:AO81)<1,\"\",(AVERAGEIFS('2011 Survey responses'!AI81:AO81,'2011 Survey responses'!AI81:AO81,\">1\")))","v":3.7142857142857144},{"$f":"IF(('2011 Survey responses'!Y81+'2011 Survey responses'!AI81+'2011 Survey responses'!AK81)<3.1,\"\",((SUMIF('2011 Survey responses'!Y81,\">1\")+SUMIF('2011 Survey responses'!AI81,\">1\")+SUMIF('2011 Survey responses'!AK81,\">1\")+SUMIF('2011 Survey responses'!AM81,\">1\"))/(COUNTIF('2011 Survey responses'!Y81,\">1\")+COUNTIF('2011 Survey responses'!AI81,\">1\")+COUNTIF('2011 Survey responses'!AK81,\">1\")+COUNTIF('2011 Survey responses'!AM81,\">1\"))))","v":3.75},{"$f":"IF(('2011 Survey responses'!W81)<1.1,\"\",('2011 Survey responses'!W81))","v":5},{"$f":"IF(('2011 Survey responses'!Y81)<1.1,\"\",('2011 Survey responses'!Y81))","v":4},{"$f":"IF(('2011 Survey responses'!Z81)<1.1,\"\",('2011 Survey responses'!Z81))","v":6},{"$f":"IF(('2011 Survey responses'!V81+'2011 Survey responses'!X81+'2011 Survey responses'!AA81)<3.1,\"\",((SUMIF('2011 Survey responses'!V81,\">1\")+SUMIF('2011 Survey responses'!X81,\">1\")+SUMIF('2011 Survey responses'!AA81,\">1\"))/(COUNTIF('2011 Survey responses'!V81,\">1\")+COUNTIF('2011 Survey responses'!X81,\">1\")+COUNTIF('2011 Survey responses'!AA81,\">1\"))))","v":5},{"$f":"IF(('2011 Survey responses'!V81+'2011 Survey responses'!Y81+'2011 Survey responses'!AA81)<3.1,\"\",((SUMIF('2011 Survey responses'!V81,\">1\")+SUMIF('2011 Survey responses'!Y81,\">1\")+SUMIF('2011 Survey responses'!AA81,\">1\"))/(COUNTIF('2011 Survey responses'!V81,\">1\")+COUNTIF('2011 Survey responses'!Y81,\">1\")+COUNTIF('2011 Survey responses'!AA81,\">1\"))))","v":4.666666666666667},{"$f":"IF(SUM('2011 Survey responses'!AB81:AH81)<1,\"\",(AVERAGEIFS('2011 Survey responses'!AB81:AH81,'2011 Survey responses'!AB81:AH81,\">1\")))","v":3},{"$f":"IF(SUM('2011 Survey responses'!AI81:AO81)<7.1,\"\",(AVERAGEIFS('2011 Survey responses'!AI81:AO81,'2011 Survey responses'!AI81:AO81,\">1\")))","v":3.7142857142857144},{"$f":"IF(('2011 Survey responses'!AH81)<1.1,\"\",('2011 Survey responses'!AH81))","v":3},{"$f":"IF(SUM('2011 Survey responses'!AP81:BV81)<1,\"\",(AVERAGEIFS('2011 Survey responses'!AP81:BV81,'2011 Survey responses'!AP81:BV81,\">1\")))","v":4.8484848484848486},{"$f":"IF(SUM('2011 Survey responses'!AP81:AS81)<4.1,\"\",(AVERAGEIFS('2011 Survey responses'!AP81:AS81,'2011 Survey responses'!AP81:AS81,\">1\")))","v":5},{"$f":"IF(SUM('2011 Survey responses'!AT81:BF81)<1,\"\",(AVERAGEIFS('2011 Survey responses'!AT81:BF81,'2011 Survey responses'!AT81:BF81,\">1\")))","v":4.9230769230769234},{"$f":"IF(SUM('2011 Survey responses'!BG81:BO81)<1,\"\",(AVERAGEIFS('2011 Survey responses'!BG81:BO81,'2011 Survey responses'!BG81:BO81,\">1\")))","v":4.8888888888888893},{"$f":"IF(SUM('2011 Survey responses'!BP81:BS81)<1,\"\",(AVERAGEIFS('2011 Survey responses'!BP81:BS81,'2011 Survey responses'!BP81:BS81,\">1\")))","v":5},{"$f":"IF(SUM('2011 Survey responses'!BT81:BV81)<3.1,\"\",(AVERAGEIFS('2011 Survey responses'!BT81:BV81,'2011 Survey responses'!BT81:BV81,\">1\")))","v":4},{"$f":"IF(('2011 Survey responses'!AQ81+'2011 Survey responses'!AR81+'2011 Survey responses'!BG81)<3.1,\"\",((SUMIF('2011 Survey responses'!AQ81,\">1\")+SUMIF('2011 Survey responses'!AR81,\">1\")+SUMIF('2011 Survey responses'!BG81,\">1\"))/(COUNTIF('2011 Survey responses'!AQ81,\">1\")+COUNTIF('2011 Survey responses'!AR81,\">1\")+COUNTIF('2011 Survey responses'!BG81,\">1\"))))","v":5},{"$f":"IF(SUM('2011 Survey responses'!AP81:AS81)<4.1,\"\",(AVERAGEIFS('2011 Survey responses'!AP81:AS81,'2011 Survey responses'!AP81:AS81,\">1\")))","v":5},{"$f":"IF(('2011 Survey responses'!AU81+'2011 Survey responses'!AX81+'2011 Survey responses'!BA81+'2011 Survey responses'!BC81+'2011 Survey responses'!BD81)<5.1,\"\",(SUMIF('2011 Survey responses'!AU81,\">1\")+SUMIF('2011 Survey responses'!AX81,\">1\")+SUMIF('2011 Survey responses'!BA81,\">1\")+SUMIF('2011 Survey responses'!BC81,\">1\")+SUMIF('2011 Survey responses'!BD81,\">1\"))/(COUNTIF('2011 Survey responses'!AU81,\">1\")+COUNTIF('2011 Survey responses'!AX81,\">1\")+COUNTIF('2011 Survey responses'!BA81,\">1\")+COUNTIF('2011 Survey responses'!BC81,\">1\")+COUNTIF('2011 Survey responses'!BD81,\">1\")))","v":5},{"$f":"IF(('2011 Survey responses'!AT81)<1.1,\"\",('2011 Survey responses'!AT81))","v":4},{"$f":"IF(SUM('2011 Survey responses'!AV81:AW81)<2.1,\"\",(AVERAGEIFS('2011 Survey responses'!AV81:AW81,'2011 Survey responses'!AV81:AW81,\">1\")))","v":5},{"$f":"IF(('2011 Survey responses'!AW81+'2011 Survey responses'!AY81)<2.1,\"\",(SUMIF('2011 Survey responses'!AW81,\">1\")+SUMIF('2011 Survey responses'!AY81,\">1\"))/(COUNTIF('2011 Survey responses'!AW81,\">1\")+COUNTIF('2011 Survey responses'!AY81,\">1\")))","v":5},{"$f":"IF(('2011 Survey responses'!AZ81)<1.1,\"\",('2011 Survey responses'!AZ81))","v":5},5,5,5,4,{"$f":"IF(('2011 Survey responses'!BE81)<1.1,\"\",('2011 Survey responses'!BE81))","v":5},{"$f":"IF(('2011 Survey responses'!AY81+'2011 Survey responses'!BB81+'2011 Survey responses'!BF81)<3.1,\"\",(SUMIF('2011 Survey responses'!AY81,\">1\")+SUMIF('2011 Survey responses'!BB81,\">1\")+SUMIF('2011 Survey responses'!BF81,\">1\"))/(COUNTIF('2011 Survey responses'!AY81,\">1\")+COUNTIF('2011 Survey responses'!BB81,\">1\")+COUNTIF('2011 Survey responses'!BF81,\">1\")))","v":5},4.9444444444444446,{"$f":"IF(SUM('2011 Survey responses'!BT81:BV81)<3.1,\"\",(AVERAGEIFS('2011 Survey responses'!BT81:BV81,'2011 Survey responses'!BT81:BV81,\">1\")))","v":4},{"$f":"IF(SUM('2011 Survey responses'!BW81:CP81)<1,\"\",(AVERAGEIFS('2011 Survey responses'!BW81:CP81,'2011 Survey responses'!BW81:CP81,\">1\")))","v":4.5},{"$f":"IF(SUM('2011 Survey responses'!BW81:CF81)<1,\"\",(AVERAGEIFS('2011 Survey responses'!BW81:CF81,'2011 Survey responses'!BW81:CF81,\">1\")))","v":4.5999999999999996},{"$f":"IF(SUM('2011 Survey responses'!CG81:CP81)<1,\"\",(AVERAGEIFS('2011 Survey responses'!CG81:CP81,'2011 Survey responses'!CG81:CP81,\">1\")))","v":4.4000000000000004},{"$f":"IF(SUM('2011 Survey responses'!BX81:CF81)<1,\"\",(AVERAGEIFS('2011 Survey responses'!BX81:CF81,'2011 Survey responses'!BX81:CF81,\">1\")))","v":4.5555555555555554},{"$f":"IF(SUM('2011 Survey responses'!CH81:CP81)<1,\"\",(AVERAGEIFS('2011 Survey responses'!CH81:CP81,'2011 Survey responses'!CH81:CP81,\">1\")))","v":4.333333333333333},{"$f":"IF(SUM('2011 Survey responses'!BW81:CP81)<1,\"\",(AVERAGEIFS('2011 Survey responses'!BW81:CP81,'2011 Survey responses'!BW81:CP81,\">1\")))","v":4.5},{"$f":"IF(('2011 Survey responses'!BW81+'2011 Survey responses'!CG81)<2.1,\"\",(SUMIF('2011 Survey responses'!BW81,\">1\")+SUMIF('2011 Survey responses'!CG81,\">1\"))/(COUNTIF('2011 Survey responses'!BW81,\">1\")+COUNTIF('2011 Survey responses'!CG81,\">1\")))","v":5},{"$f":"IF(('2011 Survey responses'!BX81+'2011 Survey responses'!CH81)<2.1,\"\",(SUMIF('2011 Survey responses'!BX81,\">1\")+SUMIF('2011 Survey responses'!CH81,\">1\"))/(COUNTIF('2011 Survey responses'!BX81,\">1\")+COUNTIF('2011 Survey responses'!CH81,\">1\")))","v":3.5},{"$f":"IF(('2011 Survey responses'!BY81+'2011 Survey responses'!CI81)<2.1,\"\",(SUMIF('2011 Survey responses'!BY81,\">1\")+SUMIF('2011 Survey responses'!CI81,\">1\"))/(COUNTIF('2011 Survey responses'!BY81,\">1\")+COUNTIF('2011 Survey responses'!CI81,\">1\")))","v":5},{"$f":"IF('2011 Survey responses'!CQ81<0.5,\"\",'2011 Survey responses'!CQ81)","v":4},{"$f":"IF('2011 Survey responses'!CR81<0.5,\"\",'2011 Survey responses'!CR81)","v":4},{"$f":"IF('2011 Survey responses'!CS81<0.5,\"\",'2011 Survey responses'!CS81)","v":4},{"$f":"IF('2011 Survey responses'!CT81<0.5,\"\",'2011 Survey responses'!CT81)","v":4},{"$f":"IF('2011 Survey responses'!CU81<0.5,\"\",'2011 Survey responses'!CU81)","v":4},{"$f":"IF('2011 Survey responses'!CV81<0.5,\"\",'2011 Survey responses'!CV81)","v":4},{"$f":"IF(SUM('2011 Survey responses'!CW81:DL81)<1,\"\",(AVERAGE('2011 Survey responses'!CW81:DL81)))","v":2.75},{"$f":"IF(SUM('2011 Survey responses'!CW81:CZ81)<1,\"\",(AVERAGE('2011 Survey responses'!CW81:CZ81)))","v":2.75},{"$f":"IF(SUM('2011 Survey responses'!DA81:DD81)<1,\"\",(AVERAGE('2011 Survey responses'!DA81:DD81)))","v":2.5},{"$f":"IF(SUM('2011 Survey responses'!DE81:DH81)<1,\"\",(AVERAGE('2011 Survey responses'!DE81:DH81)))","v":3},{"$f":"IF(SUM('2011 Survey responses'!DI81:DL81)<1,\"\",(AVERAGE('2011 Survey responses'!DI81:DL81)))","v":2.75},{"$f":"IF(('2011 Survey responses'!CW81+'2011 Survey responses'!DA81+'2011 Survey responses'!DE81+'2011 Survey responses'!DI81)<1,\"\",AVERAGE('2011 Survey responses'!CW81,'2011 Survey responses'!DA81,'2011 Survey responses'!DE81,'2011 Survey responses'!DI81))","v":3.25},{"$f":"IF(('2011 Survey responses'!CX81+'2011 Survey responses'!DB81+'2011 Survey responses'!DF81+'2011 Survey responses'!DJ81)<1,\"\",AVERAGE('2011 Survey responses'!CX81,'2011 Survey responses'!DB81,'2011 Survey responses'!DF81,'2011 Survey responses'!DJ81))","v":3},{"$f":"IF(('2011 Survey responses'!CY81+'2011 Survey responses'!DC81+'2011 Survey responses'!DG81+'2011 Survey responses'!DK81)<1,\"\",AVERAGE('2011 Survey responses'!CY81,'2011 Survey responses'!DC81,'2011 Survey responses'!DG81,'2011 Survey responses'!DK81))","v":1.75},{"$f":"IF(('2011 Survey responses'!CZ81+'2011 Survey responses'!DD81+'2011 Survey responses'!DH81+'2011 Survey responses'!DL81)<1,\"\",AVERAGE('2011 Survey responses'!CZ81,'2011 Survey responses'!DD81,'2011 Survey responses'!DH81,'2011 Survey responses'!DL81))","v":3},{"$f":"IF('2011 Survey responses'!CW81<0.5,\"\",'2011 Survey responses'!CW81)","v":3},{"$f":"IF('2011 Survey responses'!CX81<0.5,\"\",'2011 Survey responses'!CX81)","v":3},{"$f":"IF('2011 Survey responses'!CY81<0.5,\"\",'2011 Survey responses'!CY81)","v":2},{"$f":"IF('2011 Survey responses'!CZ81<0.5,\"\",'2011 Survey responses'!CZ81)","v":3},{"$f":"IF('2011 Survey responses'!DA81<0.5,\"\",'2011 Survey responses'!DA81)","v":3},{"$f":"IF('2011 Survey responses'!DB81<0.5,\"\",'2011 Survey responses'!DB81)","v":3},{"$f":"IF('2011 Survey responses'!DC81<0.5,\"\",'2011 Survey responses'!DC81)","v":1},{"$f":"IF('2011 Survey responses'!DD81<0.5,\"\",'2011 Survey responses'!DD81)","v":3},{"$f":"IF('2011 Survey responses'!DE81<0.5,\"\",'2011 Survey responses'!DE81)","v":4},{"$f":"IF('2011 Survey responses'!DF81<0.5,\"\",'2011 Survey responses'!DF81)","v":3},{"$f":"IF('2011 Survey responses'!DG81<0.5,\"\",'2011 Survey responses'!DG81)","v":2},{"$f":"IF('2011 Survey responses'!DH81<0.5,\"\",'2011 Survey responses'!DH81)","v":3},{"$f":"IF('2011 Survey responses'!DI81<0.5,\"\",'2011 Survey responses'!DI81)","v":3},{"$f":"IF('2011 Survey responses'!DJ81<0.5,\"\",'2011 Survey responses'!DJ81)","v":3},{"$f":"IF('2011 Survey responses'!DK81<0.5,\"\",'2011 Survey responses'!DK81)","v":2},{"$f":"IF('2011 Survey responses'!DL81<0.5,\"\",'2011 Survey responses'!DL81)","v":3},{"$f":"IF('2011 Survey responses'!DU81=4,4,IF('2011 Survey responses'!DU81=5,4,\"\"))","v":""},{"$f":"IF('2011 Survey responses'!DV81=4,3,IF('2011 Survey responses'!DV81=5,3,\"\"))","v":3},"",{"$f":"IF(CQ81=2,CQ81,IF(CO81=4,CO81,IF(CP81=3,CP81,IF('2011 Survey responses'!GT81=1,1,\"\"))))","v":3},{"$f":"IF('2011 Survey responses'!DO81<0.5,\"\",'2011 Survey responses'!DO81)","v":3},{"$f":"IF('2011 Survey responses'!DP81<0.5,\"\",'2011 Survey responses'!DP81)","v":4},{"$f":"IF('2011 Survey responses'!DQ81<0.5,\"\",'2011 Survey responses'!DQ81)","v":4},{"$f":"IF('2011 Survey responses'!DR81<0.5,\"\",'2011 Survey responses'!DR81)","v":4},{"$f":"IF('2011 Survey responses'!DS81<0.5,\"\",'2011 Survey responses'!DS81)","v":5},{"$f":"IF('2011 Survey responses'!DT81<0.5,\"\",'2011 Survey responses'!DT81)","v":4},{"$f":"IF('2011 Survey responses'!DU81<0.5,\"\",'2011 Survey responses'!DU81)","v":3},{"$f":"IF('2011 Survey responses'!DV81<0.5,\"\",'2011 Survey responses'!DV81)","v":4},{"$f":"IF('2011 Survey responses'!DW81<0.5,\"\",'2011 Survey responses'!DW81)","v":5},{"$f":"IF('2011 Survey responses'!DX81<0.5,\"\",'2011 Survey responses'!DX81)","v":5},{"$f":"IF('2011 Survey responses'!DY81<0.5,\"\",'2011 Survey responses'!DY81)","v":4},{"$f":"IF('2011 Survey responses'!DZ81<0.5,\"\",'2011 Survey responses'!DZ81)","v":4},{"$f":"IF('2011 Survey responses'!EA81<0.5,\"\",'2011 Survey responses'!EA81)","v":5},{"$f":"IF('2011 Survey responses'!EB81<0.5,\"\",'2011 Survey responses'!EB81)","v":5},{"$f":"IF('2011 Survey responses'!EC81<0.5,\"\",'2011 Survey responses'!EC81)","v":5},{"$f":"IF('2011 Survey responses'!ED81<0.5,\"\",'2011 Survey responses'!ED81)","v":5},{"$f":"IF('2011 Survey responses'!EE81<0.5,\"\",'2011 Survey responses'!EE81)","v":3},{"$f":"IF('2011 Survey responses'!EF81<0.5,\"\",'2011 Survey responses'!EF81)","v":5},{"$f":"IF('2011 Survey responses'!EG81<0.5,\"\",'2011 Survey responses'!EG81)","v":5},{"$f":"IF('2011 Survey responses'!EH81<0.5,\"\",'2011 Survey responses'!EH81)","v":5},{"$f":"IF('2011 Survey responses'!EI81<0.5,\"\",'2011 Survey responses'!EI81)","v":5},{"$f":"IF('2011 Survey responses'!EJ81<0.5,\"\",'2011 Survey responses'!EJ81)","v":5},{"$f":"IF('2011 Survey responses'!EK81<0.5,\"\",'2011 Survey responses'!EK81)","v":5},{"$f":"IF('2011 Survey responses'!EL81<0.5,\"\",'2011 Survey responses'!EL81)","v":5},{"$f":"IF('2011 Survey responses'!EM81<0.5,\"\",'2011 Survey responses'!EM81)","v":4},{"$f":"IF('2011 Survey responses'!EN81<0.5,\"\",'2011 Survey responses'!EN81)","v":4},{"$f":"IF('2011 Survey responses'!EO81<0.5,\"\",'2011 Survey responses'!EO81)","v":5},{"$f":"IF('2011 Survey responses'!EP81<0.5,\"\",'2011 Survey responses'!EP81)","v":5},{"$f":"IF(('2011 Survey responses'!EW81+'2011 Survey responses'!EX81)>=2,AVERAGE('2011 Survey responses'!EW81,'2011 Survey responses'!EY81),\"\")","v":4.5},{"$f":"IF('2011 Survey responses'!EX81<0.5,\"\",'2011 Survey responses'!EX81)","v":5},{"$f":"IF('2011 Survey responses'!EZ81<0.5,\"\",'2011 Survey responses'!EZ81)","v":5},{"$f":"IF('2011 Survey responses'!FB81<0.5,\"\",'2011 Survey responses'!FB81)","v":5},{"$f":"IF('2011 Survey responses'!FD81<0.5,\"\",'2011 Survey responses'!FD81)","v":5},{"$f":"IF('2011 Survey responses'!FC81<0.5,\"\",'2011 Survey responses'!FC81)","v":5},{"$f":"IF(('2011 Survey responses'!EM81+'2011 Survey responses'!EN81)>=2,AVERAGE('2011 Survey responses'!EM81,'2011 Survey responses'!EN81),\"\")","v":4},{"$f":"IF('2011 Survey responses'!ES81<0.5,\"\",'2011 Survey responses'!ES81)","v":3},{"$f":"IF(('2011 Survey responses'!ET81+'2011 Survey responses'!EU81)>=2,AVERAGE('2011 Survey responses'!ET81,'2011 Survey responses'!EU81),\"\")","v":3.5},{"$f":"IF('2011 Survey responses'!EV81<0.5,\"\",'2011 Survey responses'!EV81)","v":3},{"$f":"IF('2011 Survey responses'!FA81<0.5,\"\",'2011 Survey responses'!FA81)","v":3},{"$f":"IF('2011 Survey responses'!ER81<0.5,\"\",'2011 Survey responses'!ER81)","v":3},{"$f":"IF(('2011 Survey responses'!EO81+'2011 Survey responses'!EP81)>=2,AVERAGE('2011 Survey responses'!EO81,'2011 Survey responses'!EP81),\"\")","v":5},{"$f":"IF('2011 Survey responses'!EQ81<0.5,\"\",'2011 Survey responses'!EQ81)","v":4},{"$f":"IF('2011 Survey responses'!ET81<0.5,\"\",'2011 Survey responses'!ET81)","v":4},{"$f":"IF('2011 Survey responses'!EU81<0.5,\"\",'2011 Survey responses'!EU81)","v":3},{"$f":"IF('2011 Survey responses'!EW81<0.5,\"\",'2011 Survey responses'!EW81)","v":4},{"$f":"IF('2011 Survey responses'!EY81<0.5,\"\",'2011 Survey responses'!EY81)","v":5},{"$f":"IF('2011 Survey responses'!FU81<0.5,\"\",'2011 Survey responses'!FU81)","v":5},{"$f":"IF(('2011 Survey responses'!FL81+'2011 Survey responses'!FM81)>=2,AVERAGE('2011 Survey responses'!FL81,'2011 Survey responses'!FM81),\"\")","v":5},{"$f":"IF(('2011 Survey responses'!FO81+'2011 Survey responses'!FQ81)>=2,AVERAGE('2011 Survey responses'!FO81,'2011 Survey responses'!FQ81),\"\")","v":4.5},{"$f":"IF('2011 Survey responses'!FJ81<0.5,\"\",'2011 Survey responses'!FJ81)","v":4},{"$f":"IF('2011 Survey responses'!FT81<0.5,\"\",'2011 Survey responses'!FT81)","v":5},{"$f":"IF('2011 Survey responses'!FR81<0.5,\"\",'2011 Survey responses'!FR81)","v":5},{"$f":"IF('2011 Survey responses'!FK81<0.5,\"\",'2011 Survey responses'!FK81)","v":4},{"$f":"IF('2011 Survey responses'!FP81<0.5,\"\",'2011 Survey responses'!FP81)","v":5},{"$f":"IF('2011 Survey responses'!FN81<0.5,\"\",'2011 Survey responses'!FN81)","v":4},{"$f":"IF(('2011 Survey responses'!FE81+'2011 Survey responses'!FF81)>=2,AVERAGE('2011 Survey responses'!FE81,'2011 Survey responses'!FF81),\"\")","v":4},{"$f":"IF('2011 Survey responses'!FS81<0.5,\"\",'2011 Survey responses'!FS81)","v":4},{"$f":"IF('2011 Survey responses'!FV81<0.5,\"\",'2011 Survey responses'!FV81)","v":5},{"$f":"IF(('2011 Survey responses'!FG81+'2011 Survey responses'!FH81)>=2,AVERAGE('2011 Survey responses'!FG81,'2011 Survey responses'!FH81),\"\")","v":5},{"$f":"IF('2011 Survey responses'!FI81<0.5,\"\",'2011 Survey responses'!FI81)","v":4},{"$f":"IF('2011 Survey responses'!FE81<0.5,\"\",'2011 Survey responses'!FE81)","v":4},{"$f":"IF('2011 Survey responses'!FF81<0.5,\"\",'2011 Survey responses'!FF81)","v":4},{"$f":"IF('2011 Survey responses'!FG81<0.5,\"\",'2011 Survey responses'!FG81)","v":5},{"$f":"IF('2011 Survey responses'!FH81<0.5,\"\",'2011 Survey responses'!FH81)","v":5},{"$f":"IF('2011 Survey responses'!FL81<0.5,\"\",'2011 Survey responses'!FL81)","v":5},{"$f":"IF('2011 Survey responses'!FM81<0.5,\"\",'2011 Survey responses'!FM81)","v":5},{"$f":"IF('2011 Survey responses'!FO81<0.5,\"\",'2011 Survey responses'!FO81)","v":4},{"$f":"IF('2011 Survey responses'!FQ81<0.5,\"\",'2011 Survey responses'!FQ81)","v":5}]
["Iraq",{"$f":"IF(SUM(F82)<1,\"\",AVERAGEIF('2011 Survey responses'!B82:CP82,\">1\"))","v":4.0795454545454541},{"$f":"IF(SUM(F82)<1,\"\",AVERAGEIF('2011 Survey responses'!B82:AO82,\">1\"))","v":3.8333333333333335},{"$f":"IF(SUM(F82)<1,\"\",AVERAGEIF('2011 Survey responses'!B82:BV82,\">1\"))","v":3.9705882352941178},{"$f":"IF(SUM(F82)<1,\"\",AVERAGEIF('2011 Survey responses'!V82:BV82,\">1\"))","v":4.115384615384615},{"$f":"IF(SUM('2011 Survey responses'!B82:U82)<1,\"\",(AVERAGEIFS('2011 Survey responses'!B82:U82,'2011 Survey responses'!B82:U82,\">1\")))","v":3.5},{"$f":"IF(SUM('2011 Survey responses'!B82:H82)<1,\"\",(AVERAGEIFS('2011 Survey responses'!B82:H82,'2011 Survey responses'!B82:H82,\">1\")))","v":2.8},{"$f":"IF(SUM('2011 Survey responses'!I82:S82)<1,\"\",(AVERAGEIFS('2011 Survey responses'!I82:S82,'2011 Survey responses'!I82:S82,\">1\")))","v":3.8181818181818183},{"$f":"IF(SUM('2011 Survey responses'!T82:U82)<2.1,\"\",(AVERAGEIFS('2011 Survey responses'!T82:U82,'2011 Survey responses'!T82:U82,\">1\")))","v":""},{"$f":"IF(SUM('2011 Survey responses'!B82:C82)<2.1,\"\",((SUMIF('2011 Survey responses'!B82:C82,\">1\")+SUMIF('2011 Survey responses'!F82,\">1\"))/(COUNTIF('2011 Survey responses'!B82:C82,\">1\")+COUNTIF('2011 Survey responses'!F82,\">1\"))))","v":2.6666666666666665},{"$f":"IF(SUM('2011 Survey responses'!D82:E82)<2.1,\"\",(AVERAGEIFS('2011 Survey responses'!D82:E82,'2011 Survey responses'!D82:E82,\">1\")))","v":4},{"$f":"IF(('2011 Survey responses'!B82+'2011 Survey responses'!D82)<2.1,\"\",((SUMIF('2011 Survey responses'!B82,\">1\")+SUMIF('2011 Survey responses'!D82,\">1\")+SUMIF('2011 Survey responses'!F82,\">1\")+SUMIF('2011 Survey responses'!K82,\">1\"))/(COUNTIF('2011 Survey responses'!B82,\">1\")+COUNTIF('2011 Survey responses'!D82,\">1\")+COUNTIF('2011 Survey responses'!F82,\">1\")+COUNTIF('2011 Survey responses'!K82,\">1\"))))","v":3},{"$f":"IF(SUM('2011 Survey responses'!G82:H82)<2.1,\"\",(AVERAGEIFS('2011 Survey responses'!G82:H82,'2011 Survey responses'!G82:H82,\">1\")))","v":2},{"$f":"IF(SUM('2011 Survey responses'!F82:G82)<1.5,\"\",MAX('2011 Survey responses'!F82,'2011 Survey responses'!G82))","v":2},{"$f":"IF(SUM('2011 Survey responses'!G82:H82)<1,\"\",MAX('2011 Survey responses'!G82,'2011 Survey responses'!H82))","v":2},{"$f":"IF(SUM('2011 Survey responses'!I82:L82)<4.1,\"\",(AVERAGEIFS('2011 Survey responses'!I82:L82,'2011 Survey responses'!I82:L82,\">1\")))","v":4.5},{"$f":"IF(SUM('2011 Survey responses'!M82:S82)<4.1,\"\",(AVERAGEIFS('2011 Survey responses'!M82:S82,'2011 Survey responses'!M82:S82,\">1\")))","v":3.4285714285714284},{"$f":"IF(SUM('2011 Survey responses'!T82:U82)<2.1,\"\",(AVERAGEIFS('2011 Survey responses'!T82:U82,'2011 Survey responses'!T82:U82,\">1\")))","v":""},{"$f":"IF(SUM('2011 Survey responses'!V82:AO82)<1,\"\",(AVERAGEIFS('2011 Survey responses'!V82:AO82,'2011 Survey responses'!V82:AO82,\">1\")))","v":4.0999999999999996},{"$f":"IF(SUM('2011 Survey responses'!V82:AA82)<1,\"\",(AVERAGEIFS('2011 Survey responses'!V82:AA82,'2011 Survey responses'!V82:AA82,\">1\")))","v":4.166666666666667},{"$f":"IF(SUM('2011 Survey responses'!AB82:AH82)<1,\"\",(AVERAGEIFS('2011 Survey responses'!AB82:AH82,'2011 Survey responses'!AB82:AH82,\">1\")))","v":3.1428571428571428},{"$f":"IF(SUM('2011 Survey responses'!AI82:AO82)<1,\"\",(AVERAGEIFS('2011 Survey responses'!AI82:AO82,'2011 Survey responses'!AI82:AO82,\">1\")))","v":5},{"$f":"IF(('2011 Survey responses'!Y82+'2011 Survey responses'!AI82+'2011 Survey responses'!AK82)<3.1,\"\",((SUMIF('2011 Survey responses'!Y82,\">1\")+SUMIF('2011 Survey responses'!AI82,\">1\")+SUMIF('2011 Survey responses'!AK82,\">1\")+SUMIF('2011 Survey responses'!AM82,\">1\"))/(COUNTIF('2011 Survey responses'!Y82,\">1\")+COUNTIF('2011 Survey responses'!AI82,\">1\")+COUNTIF('2011 Survey responses'!AK82,\">1\")+COUNTIF('2011 Survey responses'!AM82,\">1\"))))","v":4.25},{"$f":"IF(('2011 Survey responses'!W82)<1.1,\"\",('2011 Survey responses'!W82))","v":5},{"$f":"IF(('2011 Survey responses'!Y82)<1.1,\"\",('2011 Survey responses'!Y82))","v":2},{"$f":"IF(('2011 Survey responses'!Z82)<1.1,\"\",('2011 Survey responses'!Z82))","v":5},{"$f":"IF(('2011 Survey responses'!V82+'2011 Survey responses'!X82+'2011 Survey responses'!AA82)<3.1,\"\",((SUMIF('2011 Survey responses'!V82,\">1\")+SUMIF('2011 Survey responses'!X82,\">1\")+SUMIF('2011 Survey responses'!AA82,\">1\"))/(COUNTIF('2011 Survey responses'!V82,\">1\")+COUNTIF('2011 Survey responses'!X82,\">1\")+COUNTIF('2011 Survey responses'!AA82,\">1\"))))","v":4.333333333333333},{"$f":"IF(('2011 Survey responses'!V82+'2011 Survey responses'!Y82+'2011 Survey responses'!AA82)<3.1,\"\",((SUMIF('2011 Survey responses'!V82,\">1\")+SUMIF('2011 Survey responses'!Y82,\">1\")+SUMIF('2011 Survey responses'!AA82,\">1\"))/(COUNTIF('2011 Survey responses'!V82,\">1\")+COUNTIF('2011 Survey responses'!Y82,\">1\")+COUNTIF('2011 Survey responses'!AA82,\">1\"))))","v":3.3333333333333335},{"$f":"IF(SUM('2011 Survey responses'!AB82:AH82)<1,\"\",(AVERAGEIFS('2011 Survey responses'!AB82:AH82,'2011 Survey responses'!AB82:AH82,\">1\")))","v":3.1428571428571428},{"$f":"IF(SUM('2011 Survey responses'!AI82:AO82)<7.1,\"\",(AVERAGEIFS('2011 Survey responses'!AI82:AO82,'2011 Survey responses'!AI82:AO82,\">1\")))","v":5},{"$f":"IF(('2011 Survey responses'!AH82)<1.1,\"\",('2011 Survey responses'!AH82))","v":4},{"$f":"IF(SUM('2011 Survey responses'!AP82:BV82)<1,\"\",(AVERAGEIFS('2011 Survey responses'!AP82:BV82,'2011 Survey responses'!AP82:BV82,\">1\")))","v":4.125},{"$f":"IF(SUM('2011 Survey responses'!AP82:AS82)<4.1,\"\",(AVERAGEIFS('2011 Survey responses'!AP82:AS82,'2011 Survey responses'!AP82:AS82,\">1\")))","v":4.75},{"$f":"IF(SUM('2011 Survey responses'!AT82:BF82)<1,\"\",(AVERAGEIFS('2011 Survey responses'!AT82:BF82,'2011 Survey responses'!AT82:BF82,\">1\")))","v":4.3076923076923075},{"$f":"IF(SUM('2011 Survey responses'!BG82:BO82)<1,\"\",(AVERAGEIFS('2011 Survey responses'!BG82:BO82,'2011 Survey responses'!BG82:BO82,\">1\")))","v":3.7777777777777777},{"$f":"IF(SUM('2011 Survey responses'!BP82:BS82)<1,\"\",(AVERAGEIFS('2011 Survey responses'!BP82:BS82,'2011 Survey responses'!BP82:BS82,\">1\")))","v":4.25},{"$f":"IF(SUM('2011 Survey responses'!BT82:BV82)<3.1,\"\",(AVERAGEIFS('2011 Survey responses'!BT82:BV82,'2011 Survey responses'!BT82:BV82,\">1\")))","v":3},{"$f":"IF(('2011 Survey responses'!AQ82+'2011 Survey responses'!AR82+'2011 Survey responses'!BG82)<3.1,\"\",((SUMIF('2011 Survey responses'!AQ82,\">1\")+SUMIF('2011 Survey responses'!AR82,\">1\")+SUMIF('2011 Survey responses'!BG82,\">1\"))/(COUNTIF('2011 Survey responses'!AQ82,\">1\")+COUNTIF('2011 Survey responses'!AR82,\">1\")+COUNTIF('2011 Survey responses'!BG82,\">1\"))))","v":5},{"$f":"IF(SUM('2011 Survey responses'!AP82:AS82)<4.1,\"\",(AVERAGEIFS('2011 Survey responses'!AP82:AS82,'2011 Survey responses'!AP82:AS82,\">1\")))","v":4.75},{"$f":"IF(('2011 Survey responses'!AU82+'2011 Survey responses'!AX82+'2011 Survey responses'!BA82+'2011 Survey responses'!BC82+'2011 Survey responses'!BD82)<5.1,\"\",(SUMIF('2011 Survey responses'!AU82,\">1\")+SUMIF('2011 Survey responses'!AX82,\">1\")+SUMIF('2011 Survey responses'!BA82,\">1\")+SUMIF('2011 Survey responses'!BC82,\">1\")+SUMIF('2011 Survey responses'!BD82,\">1\"))/(COUNTIF('2011 Survey responses'!AU82,\">1\")+COUNTIF('2011 Survey responses'!AX82,\">1\")+COUNTIF('2011 Survey responses'!BA82,\">1\")+COUNTIF('2011 Survey responses'!BC82,\">1\")+COUNTIF('2011 Survey responses'!BD82,\">1\")))","v":4.2},{"$f":"IF(('2011 Survey responses'!AT82)<1.1,\"\",('2011 Survey responses'!AT82))","v":5},{"$f":"IF(SUM('2011 Survey responses'!AV82:AW82)<2.1,\"\",(AVERAGEIFS('2011 Survey responses'!AV82:AW82,'2011 Survey responses'!AV82:AW82,\">1\")))","v":5},{"$f":"IF(('2011 Survey responses'!AW82+'2011 Survey responses'!AY82)<2.1,\"\",(SUMIF('2011 Survey responses'!AW82,\">1\")+SUMIF('2011 Survey responses'!AY82,\">1\"))/(COUNTIF('2011 Survey responses'!AW82,\">1\")+COUNTIF('2011 Survey responses'!AY82,\">1\")))","v":5},{"$f":"IF(('2011 Survey responses'!AZ82)<1.1,\"\",('2011 Survey responses'!AZ82))","v":4},4,4,4,4,{"$f":"IF(('2011 Survey responses'!BE82)<1.1,\"\",('2011 Survey responses'!BE82))","v":5},{"$f":"IF(('2011 Survey responses'!AY82+'2011 Survey responses'!BB82+'2011 Survey responses'!BF82)<3.1,\"\",(SUMIF('2011 Survey responses'!AY82,\">1\")+SUMIF('2011 Survey responses'!BB82,\">1\")+SUMIF('2011 Survey responses'!BF82,\">1\"))/(COUNTIF('2011 Survey responses'!AY82,\">1\")+COUNTIF('2011 Survey responses'!BB82,\">1\")+COUNTIF('2011 Survey responses'!BF82,\">1\")))","v":3.6666666666666665},4.0138888888888893,{"$f":"IF(SUM('2011 Survey responses'!BT82:BV82)<3.1,\"\",(AVERAGEIFS('2011 Survey responses'!BT82:BV82,'2011 Survey responses'!BT82:BV82,\">1\")))","v":3},{"$f":"IF(SUM('2011 Survey responses'!BW82:CP82)<1,\"\",(AVERAGEIFS('2011 Survey responses'!BW82:CP82,'2011 Survey responses'!BW82:CP82,\">1\")))","v":4.45},{"$f":"IF(SUM('2011 Survey responses'!BW82:CF82)<1,\"\",(AVERAGEIFS('2011 Survey responses'!BW82:CF82,'2011 Survey responses'!BW82:CF82,\">1\")))","v":4.5},{"$f":"IF(SUM('2011 Survey responses'!CG82:CP82)<1,\"\",(AVERAGEIFS('2011 Survey responses'!CG82:CP82,'2011 Survey responses'!CG82:CP82,\">1\")))","v":4.4000000000000004},{"$f":"IF(SUM('2011 Survey responses'!BX82:CF82)<1,\"\",(AVERAGEIFS('2011 Survey responses'!BX82:CF82,'2011 Survey responses'!BX82:CF82,\">1\")))","v":4.4444444444444446},{"$f":"IF(SUM('2011 Survey responses'!CH82:CP82)<1,\"\",(AVERAGEIFS('2011 Survey responses'!CH82:CP82,'2011 Survey responses'!CH82:CP82,\">1\")))","v":4.333333333333333},{"$f":"IF(SUM('2011 Survey responses'!BW82:CP82)<1,\"\",(AVERAGEIFS('2011 Survey responses'!BW82:CP82,'2011 Survey responses'!BW82:CP82,\">1\")))","v":4.45},{"$f":"IF(('2011 Survey responses'!BW82+'2011 Survey responses'!CG82)<2.1,\"\",(SUMIF('2011 Survey responses'!BW82,\">1\")+SUMIF('2011 Survey responses'!CG82,\">1\"))/(COUNTIF('2011 Survey responses'!BW82,\">1\")+COUNTIF('2011 Survey responses'!CG82,\">1\")))","v":5},{"$f":"IF(('2011 Survey responses'!BX82+'2011 Survey responses'!CH82)<2.1,\"\",(SUMIF('2011 Survey responses'!BX82,\">1\")+SUMIF('2011 Survey responses'!CH82,\">1\"))/(COUNTIF('2011 Survey responses'!BX82,\">1\")+COUNTIF('2011 Survey responses'!CH82,\">1\")))","v":5},{"$f":"IF(('2011 Survey responses'!BY82+'2011 Survey responses'!CI82)<2.1,\"\",(SUMIF('2011 Survey responses'!BY82,\">1\")+SUMIF('2011 Survey responses'!CI82,\">1\"))/(COUNTIF('2011 Survey responses'!BY82,\">1\")+COUNTIF('2011 Survey responses'!CI82,\">1\")))","v":5},{"$f":"IF('2011 Survey responses'!CQ82<0.5,\"\",'2011 Survey responses'!CQ82)","v":4},{"$f":"IF('2011 Survey responses'!CR82<0.5,\"\",'2011 Survey responses'!CR82)","v":4},{"$f":"IF('2011 Survey responses'!CS82<0.5,\"\",'2011 Survey responses'!CS82)","v":4},{"$f":"IF('2011 Survey responses'!CT82<0.5,\"\",'2011 Survey responses'!CT82)","v":2},{"$f":"IF('2011 Survey responses'!CU82<0.5,\"\",'2011 Survey responses'!CU82)","v":2},{"$f":"IF('2011 Survey responses'!CV82<0.5,\"\",'2011 Survey responses'!CV82)","v":1},{"$f":"IF(SUM('2011 Survey responses'!CW82:DL82)<1,\"\",(AVERAGE('2011 Survey responses'!CW82:DL82)))","v":2.6875},{"$f":"IF(SUM('2011 Survey responses'!CW82:CZ82)<1,\"\",(AVERAGE('2011 Survey responses'!CW82:CZ82)))","v":3.25},{"$f":"IF(SUM('2011 Survey responses'!DA82:DD82)<1,\"\",(AVERAGE('2011 Survey responses'!DA82:DD82)))","v":2.25},{"$f":"IF(SUM('2011 Survey responses'!DE82:DH82)<1,\"\",(AVERAGE('2011 Survey responses'!DE82:DH82)))","v":2.75},{"$f":"IF(SUM('2011 Survey responses'!DI82:DL82)<1,\"\",(AVERAGE('2011 Survey responses'!DI82:DL82)))","v":2.5},{"$f":"IF(('2011 Survey responses'!CW82+'2011 Survey responses'!DA82+'2011 Survey responses'!DE82+'2011 Survey responses'!DI82)<1,\"\",AVERAGE('2011 Survey responses'!CW82,'2011 Survey responses'!DA82,'2011 Survey responses'!DE82,'2011 Survey responses'!DI82))","v":3.25},{"$f":"IF(('2011 Survey responses'!CX82+'2011 Survey responses'!DB82+'2011 Survey responses'!DF82+'2011 Survey responses'!DJ82)<1,\"\",AVERAGE('2011 Survey responses'!CX82,'2011 Survey responses'!DB82,'2011 Survey responses'!DF82,'2011 Survey responses'!DJ82))","v":2.5},{"$f":"IF(('2011 Survey responses'!CY82+'2011 Survey responses'!DC82+'2011 Survey responses'!DG82+'2011 Survey responses'!DK82)<1,\"\",AVERAGE('2011 Survey responses'!CY82,'2011 Survey responses'!DC82,'2011 Survey responses'!DG82,'2011 Survey responses'!DK82))","v":2},{"$f":"IF(('2011 Survey responses'!CZ82+'2011 Survey responses'!DD82+'2011 Survey responses'!DH82+'2011 Survey responses'!DL82)<1,\"\",AVERAGE('2011 Survey responses'!CZ82,'2011 Survey responses'!DD82,'2011 Survey responses'!DH82,'2011 Survey responses'!DL82))","v":3},{"$f":"IF('2011 Survey responses'!CW82<0.5,\"\",'2011 Survey responses'!CW82)","v":4},{"$f":"IF('2011 Survey responses'!CX82<0.5,\"\",'2011 Survey responses'!CX82)","v":3},{"$f":"IF('2011 Survey responses'!CY82<0.5,\"\",'2011 Survey responses'!CY82)","v":2},{"$f":"IF('2011 Survey responses'!CZ82<0.5,\"\",'2011 Survey responses'!CZ82)","v":4},{"$f":"IF('2011 Survey responses'!DA82<0.5,\"\",'2011 Survey responses'!DA82)","v":3},{"$f":"IF('2011 Survey responses'!DB82<0.5,\"\",'2011 Survey responses'!DB82)","v":2},{"$f":"IF('2011 Survey responses'!DC82<0.5,\"\",'2011 Survey responses'!DC82)","v":2},{"$f":"IF('2011 Survey responses'!DD82<0.5,\"\",'2011 Survey responses'!DD82)","v":2},{"$f":"IF('2011 Survey responses'!DE82<0.5,\"\",'2011 Survey responses'!DE82)","v":3},{"$f":"IF('2011 Survey responses'!DF82<0.5,\"\",'2011 Survey responses'!DF82)","v":3},{"$f":"IF('2011 Survey responses'!DG82<0.5,\"\",'2011 Survey responses'!DG82)","v":2},{"$f":"IF('2011 Survey responses'!DH82<0.5,\"\",'2011 Survey responses'!DH82)","v":3},{"$f":"IF('2011 Survey responses'!DI82<0.5,\"\",'2011 Survey responses'!DI82)","v":3},{"$f":"IF('2011 Survey responses'!DJ82<0.5,\"\",'2011 Survey responses'!DJ82)","v":2},{"$f":"IF('2011 Survey responses'!DK82<0.5,\"\",'2011 Survey responses'!DK82)","v":2},{"$f":"IF('2011 Survey responses'!DL82<0.5,\"\",'2011 Survey responses'!DL82)","v":3},{"$f":"IF('2011 Survey responses'!DU82=4,4,IF('2011 Survey responses'!DU82=5,4,\"\"))","v":4},{"$f":"IF('2011 Survey responses'!DV82=4,3,IF('2011 Survey responses'!DV82=5,3,\"\"))","v":3},2,{"$f":"IF(CQ82=2,CQ82,IF(CO82=4,CO82,IF(CP82=3,CP82,IF('2011 Survey responses'!GT82=1,1,\"\"))))","v":2},{"$f":"IF('2011 Survey responses'!DO82<0.5,\"\",'2011 Survey responses'!DO82)","v":5},{"$f":"IF('2011 Survey responses'!DP82<0.5,\"\",'2011 Survey responses'!DP82)","v":5},{"$f":"IF('2011 Survey responses'!DQ82<0.5,\"\",'2011 Survey responses'!DQ82)","v":4},{"$f":"IF('2011 Survey responses'!DR82<0.5,\"\",'2011 Survey responses'!DR82)","v":4},{"$f":"IF('2011 Survey responses'!DS82<0.5,\"\",'2011 Survey responses'!DS82)","v":3},{"$f":"IF('2011 Survey responses'!DT82<0.5,\"\",'2011 Survey responses'!DT82)","v":4},{"$f":"IF('2011 Survey responses'!DU82<0.5,\"\",'2011 Survey responses'!DU82)","v":4},{"$f":"IF('2011 Survey responses'!DV82<0.5,\"\",'2011 Survey responses'!DV82)","v":5},{"$f":"IF('2011 Survey responses'!DW82<0.5,\"\",'2011 Survey responses'!DW82)","v":5},{"$f":"IF('2011 Survey responses'!DX82<0.5,\"\",'2011 Survey responses'!DX82)","v":4},{"$f":"IF('2011 Survey responses'!DY82<0.5,\"\",'2011 Survey responses'!DY82)","v":4},{"$f":"IF('2011 Survey responses'!DZ82<0.5,\"\",'2011 Survey responses'!DZ82)","v":4},{"$f":"IF('2011 Survey responses'!EA82<0.5,\"\",'2011 Survey responses'!EA82)","v":5},{"$f":"IF('2011 Survey responses'!EB82<0.5,\"\",'2011 Survey responses'!EB82)","v":5},{"$f":"IF('2011 Survey responses'!EC82<0.5,\"\",'2011 Survey responses'!EC82)","v":3},{"$f":"IF('2011 Survey responses'!ED82<0.5,\"\",'2011 Survey responses'!ED82)","v":5},{"$f":"IF('2011 Survey responses'!EE82<0.5,\"\",'2011 Survey responses'!EE82)","v":4},{"$f":"IF('2011 Survey responses'!EF82<0.5,\"\",'2011 Survey responses'!EF82)","v":4},{"$f":"IF('2011 Survey responses'!EG82<0.5,\"\",'2011 Survey responses'!EG82)","v":4},{"$f":"IF('2011 Survey responses'!EH82<0.5,\"\",'2011 Survey responses'!EH82)","v":5},{"$f":"IF('2011 Survey responses'!EI82<0.5,\"\",'2011 Survey responses'!EI82)","v":5},{"$f":"IF('2011 Survey responses'!EJ82<0.5,\"\",'2011 Survey responses'!EJ82)","v":4},{"$f":"IF('2011 Survey responses'!EK82<0.5,\"\",'2011 Survey responses'!EK82)","v":4},{"$f":"IF('2011 Survey responses'!EL82<0.5,\"\",'2011 Survey responses'!EL82)","v":4},{"$f":"IF('2011 Survey responses'!EM82<0.5,\"\",'2011 Survey responses'!EM82)","v":4},{"$f":"IF('2011 Survey responses'!EN82<0.5,\"\",'2011 Survey responses'!EN82)","v":4},{"$f":"IF('2011 Survey responses'!EO82<0.5,\"\",'2011 Survey responses'!EO82)","v":5},{"$f":"IF('2011 Survey responses'!EP82<0.5,\"\",'2011 Survey responses'!EP82)","v":4},{"$f":"IF(('2011 Survey responses'!EW82+'2011 Survey responses'!EX82)>=2,AVERAGE('2011 Survey responses'!EW82,'2011 Survey responses'!EY82),\"\")","v":5},{"$f":"IF('2011 Survey responses'!EX82<0.5,\"\",'2011 Survey responses'!EX82)","v":5},{"$f":"IF('2011 Survey responses'!EZ82<0.5,\"\",'2011 Survey responses'!EZ82)","v":4},{"$f":"IF('2011 Survey responses'!FB82<0.5,\"\",'2011 Survey responses'!FB82)","v":4},{"$f":"IF('2011 Survey responses'!FD82<0.5,\"\",'2011 Survey responses'!FD82)","v":4},{"$f":"IF('2011 Survey responses'!FC82<0.5,\"\",'2011 Survey responses'!FC82)","v":4},{"$f":"IF(('2011 Survey responses'!EM82+'2011 Survey responses'!EN82)>=2,AVERAGE('2011 Survey responses'!EM82,'2011 Survey responses'!EN82),\"\")","v":4},{"$f":"IF('2011 Survey responses'!ES82<0.5,\"\",'2011 Survey responses'!ES82)","v":3},{"$f":"IF(('2011 Survey responses'!ET82+'2011 Survey responses'!EU82)>=2,AVERAGE('2011 Survey responses'!ET82,'2011 Survey responses'!EU82),\"\")","v":4},{"$f":"IF('2011 Survey responses'!EV82<0.5,\"\",'2011 Survey responses'!EV82)","v":4},{"$f":"IF('2011 Survey responses'!FA82<0.5,\"\",'2011 Survey responses'!FA82)","v":4},{"$f":"IF('2011 Survey responses'!ER82<0.5,\"\",'2011 Survey responses'!ER82)","v":3},{"$f":"IF(('2011 Survey responses'!EO82+'2011 Survey responses'!EP82)>=2,AVERAGE('2011 Survey responses'!EO82,'2011 Survey responses'!EP82),\"\")","v":4.5},{"$f":"IF('2011 Survey responses'!EQ82<0.5,\"\",'2011 Survey responses'!EQ82)","v":1},{"$f":"IF('2011 Survey responses'!ET82<0.5,\"\",'2011 Survey responses'!ET82)","v":4},{"$f":"IF('2011 Survey responses'!EU82<0.5,\"\",'2011 Survey responses'!EU82)","v":4},{"$f":"IF('2011 Survey responses'!EW82<0.5,\"\",'2011 Survey responses'!EW82)","v":5},{"$f":"IF('2011 Survey responses'!EY82<0.5,\"\",'2011 Survey responses'!EY82)","v":5},{"$f":"IF('2011 Survey responses'!FU82<0.5,\"\",'2011 Survey responses'!FU82)","v":4},{"$f":"IF(('2011 Survey responses'!FL82+'2011 Survey responses'!FM82)>=2,AVERAGE('2011 Survey responses'!FL82,'2011 Survey responses'!FM82),\"\")","v":4},{"$f":"IF(('2011 Survey responses'!FO82+'2011 Survey responses'!FQ82)>=2,AVERAGE('2011 Survey responses'!FO82,'2011 Survey responses'!FQ82),\"\")","v":4},{"$f":"IF('2011 Survey responses'!FJ82<0.5,\"\",'2011 Survey responses'!FJ82)","v":3},{"$f":"IF('2011 Survey responses'!FT82<0.5,\"\",'2011 Survey responses'!FT82)","v":4},{"$f":"IF('2011 Survey responses'!FR82<0.5,\"\",'2011 Survey responses'!FR82)","v":4},{"$f":"IF('2011 Survey responses'!FK82<0.5,\"\",'2011 Survey responses'!FK82)","v":4},{"$f":"IF('2011 Survey responses'!FP82<0.5,\"\",'2011 Survey responses'!FP82)","v":4},{"$f":"IF('2011 Survey responses'!FN82<0.5,\"\",'2011 Survey responses'!FN82)","v":4},{"$f":"IF(('2011 Survey responses'!FE82+'2011 Survey responses'!FF82)>=2,AVERAGE('2011 Survey responses'!FE82,'2011 Survey responses'!FF82),\"\")","v":4},{"$f":"IF('2011 Survey responses'!FS82<0.5,\"\",'2011 Survey responses'!FS82)","v":4},{"$f":"IF('2011 Survey responses'!FV82<0.5,\"\",'2011 Survey responses'!FV82)","v":4},{"$f":"IF(('2011 Survey responses'!FG82+'2011 Survey responses'!FH82)>=2,AVERAGE('2011 Survey responses'!FG82,'2011 Survey responses'!FH82),\"\")","v":4},{"$f":"IF('2011 Survey responses'!FI82<0.5,\"\",'2011 Survey responses'!FI82)","v":3},{"$f":"IF('2011 Survey responses'!FE82<0.5,\"\",'2011 Survey responses'!FE82)","v":4},{"$f":"IF('2011 Survey responses'!FF82<0.5,\"\",'2011 Survey responses'!FF82)","v":4},{"$f":"IF('2011 Survey responses'!FG82<0.5,\"\",'2011 Survey responses'!FG82)","v":4},{"$f":"IF('2011 Survey responses'!FH82<0.5,\"\",'2011 Survey responses'!FH82)","v":4},{"$f":"IF('2011 Survey responses'!FL82<0.5,\"\",'2011 Survey responses'!FL82)","v":4},{"$f":"IF('2011 Survey responses'!FM82<0.5,\"\",'2011 Survey responses'!FM82)","v":4},{"$f":"IF('2011 Survey responses'!FO82<0.5,\"\",'2011 Survey responses'!FO82)","v":4},{"$f":"IF('2011 Survey responses'!FQ82<0.5,\"\",'2011 Survey responses'!FQ82)","v":4}]
["Ireland",{"$f":"IF(SUM(F83)<1,\"\",AVERAGEIF('2011 Survey responses'!B83:CP83,\">1\"))","v":4.7368421052631575},{"$f":"IF(SUM(F83)<1,\"\",AVERAGEIF('2011 Survey responses'!B83:AO83,\">1\"))","v":4.9090909090909092},{"$f":"IF(SUM(F83)<1,\"\",AVERAGEIF('2011 Survey responses'!B83:BV83,\">1\"))","v":4.806451612903226},{"$f":"IF(SUM(F83)<1,\"\",AVERAGEIF('2011 Survey responses'!V83:BV83,\">1\"))","v":4.9375},{"$f":"IF(SUM('2011 Survey responses'!B83:U83)<1,\"\",(AVERAGEIFS('2011 Survey responses'!B83:U83,'2011 Survey responses'!B83:U83,\">1\")))","v":4.3571428571428568},{"$f":"IF(SUM('2011 Survey responses'!B83:H83)<1,\"\",(AVERAGEIFS('2011 Survey responses'!B83:H83,'2011 Survey responses'!B83:H83,\">1\")))","v":4.5},{"$f":"IF(SUM('2011 Survey responses'!I83:S83)<1,\"\",(AVERAGEIFS('2011 Survey responses'!I83:S83,'2011 Survey responses'!I83:S83,\">1\")))","v":4},{"$f":"IF(SUM('2011 Survey responses'!T83:U83)<2.1,\"\",(AVERAGEIFS('2011 Survey responses'!T83:U83,'2011 Survey responses'!T83:U83,\">1\")))","v":5},{"$f":"IF(SUM('2011 Survey responses'!B83:C83)<2.1,\"\",((SUMIF('2011 Survey responses'!B83:C83,\">1\")+SUMIF('2011 Survey responses'!F83,\">1\"))/(COUNTIF('2011 Survey responses'!B83:C83,\">1\")+COUNTIF('2011 Survey responses'!F83,\">1\"))))","v":5},{"$f":"IF(SUM('2011 Survey responses'!D83:E83)<2.1,\"\",(AVERAGEIFS('2011 Survey responses'!D83:E83,'2011 Survey responses'!D83:E83,\">1\")))","v":5},{"$f":"IF(('2011 Survey responses'!B83+'2011 Survey responses'!D83)<2.1,\"\",((SUMIF('2011 Survey responses'!B83,\">1\")+SUMIF('2011 Survey responses'!D83,\">1\")+SUMIF('2011 Survey responses'!F83,\">1\")+SUMIF('2011 Survey responses'!K83,\">1\"))/(COUNTIF('2011 Survey responses'!B83,\">1\")+COUNTIF('2011 Survey responses'!D83,\">1\")+COUNTIF('2011 Survey responses'!F83,\">1\")+COUNTIF('2011 Survey responses'!K83,\">1\"))))","v":4.75},{"$f":"IF(SUM('2011 Survey responses'!G83:H83)<2.1,\"\",(AVERAGEIFS('2011 Survey responses'!G83:H83,'2011 Survey responses'!G83:H83,\">1\")))","v":3.5},{"$f":"IF(SUM('2011 Survey responses'!F83:G83)<1.5,\"\",MAX('2011 Survey responses'!F83,'2011 Survey responses'!G83))","v":5},{"$f":"IF(SUM('2011 Survey responses'!G83:H83)<1,\"\",MAX('2011 Survey responses'!G83,'2011 Survey responses'!H83))","v":4},{"$f":"IF(SUM('2011 Survey responses'!I83:L83)<4.1,\"\",(AVERAGEIFS('2011 Survey responses'!I83:L83,'2011 Survey responses'!I83:L83,\">1\")))","v":4.5},{"$f":"IF(SUM('2011 Survey responses'!M83:S83)<4.1,\"\",(AVERAGEIFS('2011 Survey responses'!M83:S83,'2011 Survey responses'!M83:S83,\">1\")))","v":3.75},{"$f":"IF(SUM('2011 Survey responses'!T83:U83)<2.1,\"\",(AVERAGEIFS('2011 Survey responses'!T83:U83,'2011 Survey responses'!T83:U83,\">1\")))","v":5},{"$f":"IF(SUM('2011 Survey responses'!V83:AO83)<1,\"\",(AVERAGEIFS('2011 Survey responses'!V83:AO83,'2011 Survey responses'!V83:AO83,\">1\")))","v":5.3157894736842106},{"$f":"IF(SUM('2011 Survey responses'!V83:AA83)<1,\"\",(AVERAGEIFS('2011 Survey responses'!V83:AA83,'2011 Survey responses'!V83:AA83,\">1\")))","v":5.2},{"$f":"IF(SUM('2011 Survey responses'!AB83:AH83)<1,\"\",(AVERAGEIFS('2011 Survey responses'!AB83:AH83,'2011 Survey responses'!AB83:AH83,\">1\")))","v":5.2857142857142856},{"$f":"IF(SUM('2011 Survey responses'!AI83:AO83)<1,\"\",(AVERAGEIFS('2011 Survey responses'!AI83:AO83,'2011 Survey responses'!AI83:AO83,\">1\")))","v":5.4285714285714288},{"$f":"IF(('2011 Survey responses'!Y83+'2011 Survey responses'!AI83+'2011 Survey responses'!AK83)<3.1,\"\",((SUMIF('2011 Survey responses'!Y83,\">1\")+SUMIF('2011 Survey responses'!AI83,\">1\")+SUMIF('2011 Survey responses'!AK83,\">1\")+SUMIF('2011 Survey responses'!AM83,\">1\"))/(COUNTIF('2011 Survey responses'!Y83,\">1\")+COUNTIF('2011 Survey responses'!AI83,\">1\")+COUNTIF('2011 Survey responses'!AK83,\">1\")+COUNTIF('2011 Survey responses'!AM83,\">1\"))))","v":5},{"$f":"IF(('2011 Survey responses'!W83)<1.1,\"\",('2011 Survey responses'!W83))","v":6},{"$f":"IF(('2011 Survey responses'!Y83)<1.1,\"\",('2011 Survey responses'!Y83))","v":4},{"$f":"IF(('2011 Survey responses'!Z83)<1.1,\"\",('2011 Survey responses'!Z83))","v":4},{"$f":"IF(('2011 Survey responses'!V83+'2011 Survey responses'!X83+'2011 Survey responses'!AA83)<3.1,\"\",((SUMIF('2011 Survey responses'!V83,\">1\")+SUMIF('2011 Survey responses'!X83,\">1\")+SUMIF('2011 Survey responses'!AA83,\">1\"))/(COUNTIF('2011 Survey responses'!V83,\">1\")+COUNTIF('2011 Survey responses'!X83,\">1\")+COUNTIF('2011 Survey responses'!AA83,\">1\"))))","v":6},{"$f":"IF(('2011 Survey responses'!V83+'2011 Survey responses'!Y83+'2011 Survey responses'!AA83)<3.1,\"\",((SUMIF('2011 Survey responses'!V83,\">1\")+SUMIF('2011 Survey responses'!Y83,\">1\")+SUMIF('2011 Survey responses'!AA83,\">1\"))/(COUNTIF('2011 Survey responses'!V83,\">1\")+COUNTIF('2011 Survey responses'!Y83,\">1\")+COUNTIF('2011 Survey responses'!AA83,\">1\"))))","v":5},{"$f":"IF(SUM('2011 Survey responses'!AB83:AH83)<1,\"\",(AVERAGEIFS('2011 Survey responses'!AB83:AH83,'2011 Survey responses'!AB83:AH83,\">1\")))","v":5.2857142857142856},{"$f":"IF(SUM('2011 Survey responses'!AI83:AO83)<7.1,\"\",(AVERAGEIFS('2011 Survey responses'!AI83:AO83,'2011 Survey responses'!AI83:AO83,\">1\")))","v":5.4285714285714288},{"$f":"IF(('2011 Survey responses'!AH83)<1.1,\"\",('2011 Survey responses'!AH83))","v":6},{"$f":"IF(SUM('2011 Survey responses'!AP83:BV83)<1,\"\",(AVERAGEIFS('2011 Survey responses'!AP83:BV83,'2011 Survey responses'!AP83:BV83,\">1\")))","v":4.6896551724137927},{"$f":"IF(SUM('2011 Survey responses'!AP83:AS83)<4.1,\"\",(AVERAGEIFS('2011 Survey responses'!AP83:AS83,'2011 Survey responses'!AP83:AS83,\">1\")))","v":3.6666666666666665},{"$f":"IF(SUM('2011 Survey responses'!AT83:BF83)<1,\"\",(AVERAGEIFS('2011 Survey responses'!AT83:BF83,'2011 Survey responses'!AT83:BF83,\">1\")))","v":4.6363636363636367},{"$f":"IF(SUM('2011 Survey responses'!BG83:BO83)<1,\"\",(AVERAGEIFS('2011 Survey responses'!BG83:BO83,'2011 Survey responses'!BG83:BO83,\">1\")))","v":5.2222222222222223},{"$f":"IF(SUM('2011 Survey responses'!BP83:BS83)<1,\"\",(AVERAGEIFS('2011 Survey responses'!BP83:BS83,'2011 Survey responses'!BP83:BS83,\">1\")))","v":4.75},{"$f":"IF(SUM('2011 Survey responses'!BT83:BV83)<3.1,\"\",(AVERAGEIFS('2011 Survey responses'!BT83:BV83,'2011 Survey responses'!BT83:BV83,\">1\")))","v":4},{"$f":"IF(('2011 Survey responses'!AQ83+'2011 Survey responses'!AR83+'2011 Survey responses'!BG83)<3.1,\"\",((SUMIF('2011 Survey responses'!AQ83,\">1\")+SUMIF('2011 Survey responses'!AR83,\">1\")+SUMIF('2011 Survey responses'!BG83,\">1\"))/(COUNTIF('2011 Survey responses'!AQ83,\">1\")+COUNTIF('2011 Survey responses'!AR83,\">1\")+COUNTIF('2011 Survey responses'!BG83,\">1\"))))","v":5.5},{"$f":"IF(SUM('2011 Survey responses'!AP83:AS83)<4.1,\"\",(AVERAGEIFS('2011 Survey responses'!AP83:AS83,'2011 Survey responses'!AP83:AS83,\">1\")))","v":3.6666666666666665},{"$f":"IF(('2011 Survey responses'!AU83+'2011 Survey responses'!AX83+'2011 Survey responses'!BA83+'2011 Survey responses'!BC83+'2011 Survey responses'!BD83)<5.1,\"\",(SUMIF('2011 Survey responses'!AU83,\">1\")+SUMIF('2011 Survey responses'!AX83,\">1\")+SUMIF('2011 Survey responses'!BA83,\">1\")+SUMIF('2011 Survey responses'!BC83,\">1\")+SUMIF('2011 Survey responses'!BD83,\">1\"))/(COUNTIF('2011 Survey responses'!AU83,\">1\")+COUNTIF('2011 Survey responses'!AX83,\">1\")+COUNTIF('2011 Survey responses'!BA83,\">1\")+COUNTIF('2011 Survey responses'!BC83,\">1\")+COUNTIF('2011 Survey responses'!BD83,\">1\")))","v":4.75},{"$f":"IF(('2011 Survey responses'!AT83)<1.1,\"\",('2011 Survey responses'!AT83))","v":6},{"$f":"IF(SUM('2011 Survey responses'!AV83:AW83)<2.1,\"\",(AVERAGEIFS('2011 Survey responses'!AV83:AW83,'2011 Survey responses'!AV83:AW83,\">1\")))","v":4.5},{"$f":"IF(('2011 Survey responses'!AW83+'2011 Survey responses'!AY83)<2.1,\"\",(SUMIF('2011 Survey responses'!AW83,\">1\")+SUMIF('2011 Survey responses'!AY83,\">1\"))/(COUNTIF('2011 Survey responses'!AW83,\">1\")+COUNTIF('2011 Survey responses'!AY83,\">1\")))","v":4},{"$f":"IF(('2011 Survey responses'!AZ83)<1.1,\"\",('2011 Survey responses'!AZ83))","v":""},null,null,4,null,{"$f":"IF(('2011 Survey responses'!BE83)<1.1,\"\",('2011 Survey responses'!BE83))","v":5},{"$f":"IF(('2011 Survey responses'!AY83+'2011 Survey responses'!BB83+'2011 Survey responses'!BF83)<3.1,\"\",(SUMIF('2011 Survey responses'!AY83,\">1\")+SUMIF('2011 Survey responses'!BB83,\">1\")+SUMIF('2011 Survey responses'!BF83,\">1\"))/(COUNTIF('2011 Survey responses'!AY83,\">1\")+COUNTIF('2011 Survey responses'!BB83,\">1\")+COUNTIF('2011 Survey responses'!BF83,\">1\")))","v":4},4.9861111111111107,{"$f":"IF(SUM('2011 Survey responses'!BT83:BV83)<3.1,\"\",(AVERAGEIFS('2011 Survey responses'!BT83:BV83,'2011 Survey responses'!BT83:BV83,\">1\")))","v":4},{"$f":"IF(SUM('2011 Survey responses'!BW83:CP83)<1,\"\",(AVERAGEIFS('2011 Survey responses'!BW83:CP83,'2011 Survey responses'!BW83:CP83,\">1\")))","v":4.4285714285714288},{"$f":"IF(SUM('2011 Survey responses'!BW83:CF83)<1,\"\",(AVERAGEIFS('2011 Survey responses'!BW83:CF83,'2011 Survey responses'!BW83:CF83,\">1\")))","v":4.4285714285714288},{"$f":"IF(SUM('2011 Survey responses'!CG83:CP83)<1,\"\",(AVERAGEIFS('2011 Survey responses'!CG83:CP83,'2011 Survey responses'!CG83:CP83,\">1\")))","v":4.4285714285714288},{"$f":"IF(SUM('2011 Survey responses'!BX83:CF83)<1,\"\",(AVERAGEIFS('2011 Survey responses'!BX83:CF83,'2011 Survey responses'!BX83:CF83,\">1\")))","v":4.166666666666667},{"$f":"IF(SUM('2011 Survey responses'!CH83:CP83)<1,\"\",(AVERAGEIFS('2011 Survey responses'!CH83:CP83,'2011 Survey responses'!CH83:CP83,\">1\")))","v":4.166666666666667},{"$f":"IF(SUM('2011 Survey responses'!BW83:CP83)<1,\"\",(AVERAGEIFS('2011 Survey responses'!BW83:CP83,'2011 Survey responses'!BW83:CP83,\">1\")))","v":4.4285714285714288},{"$f":"IF(('2011 Survey responses'!BW83+'2011 Survey responses'!CG83)<2.1,\"\",(SUMIF('2011 Survey responses'!BW83,\">1\")+SUMIF('2011 Survey responses'!CG83,\">1\"))/(COUNTIF('2011 Survey responses'!BW83,\">1\")+COUNTIF('2011 Survey responses'!CG83,\">1\")))","v":6},{"$f":"IF(('2011 Survey responses'!BX83+'2011 Survey responses'!CH83)<2.1,\"\",(SUMIF('2011 Survey responses'!BX83,\">1\")+SUMIF('2011 Survey responses'!CH83,\">1\"))/(COUNTIF('2011 Survey responses'!BX83,\">1\")+COUNTIF('2011 Survey responses'!CH83,\">1\")))","v":""},{"$f":"IF(('2011 Survey responses'!BY83+'2011 Survey responses'!CI83)<2.1,\"\",(SUMIF('2011 Survey responses'!BY83,\">1\")+SUMIF('2011 Survey responses'!CI83,\">1\"))/(COUNTIF('2011 Survey responses'!BY83,\">1\")+COUNTIF('2011 Survey responses'!CI83,\">1\")))","v":""},{"$f":"IF('2011 Survey responses'!CQ83<0.5,\"\",'2011 Survey responses'!CQ83)","v":4},{"$f":"IF('2011 Survey responses'!CR83<0.5,\"\",'2011 Survey responses'!CR83)","v":2},{"$f":"IF('2011 Survey responses'!CS83<0.5,\"\",'2011 Survey responses'!CS83)","v":2},{"$f":"IF('2011 Survey responses'!CT83<0.5,\"\",'2011 Survey responses'!CT83)","v":2},{"$f":"IF('2011 Survey responses'!CU83<0.5,\"\",'2011 Survey responses'!CU83)","v":4},{"$f":"IF('2011 Survey responses'!CV83<0.5,\"\",'2011 Survey responses'!CV83)","v":5},{"$f":"IF(SUM('2011 Survey responses'!CW83:DL83)<1,\"\",(AVERAGE('2011 Survey responses'!CW83:DL83)))","v":3.875},{"$f":"IF(SUM('2011 Survey responses'!CW83:CZ83)<1,\"\",(AVERAGE('2011 Survey responses'!CW83:CZ83)))","v":4.5},{"$f":"IF(SUM('2011 Survey responses'!DA83:DD83)<1,\"\",(AVERAGE('2011 Survey responses'!DA83:DD83)))","v":3},{"$f":"IF(SUM('2011 Survey responses'!DE83:DH83)<1,\"\",(AVERAGE('2011 Survey responses'!DE83:DH83)))","v":4},{"$f":"IF(SUM('2011 Survey responses'!DI83:DL83)<1,\"\",(AVERAGE('2011 Survey responses'!DI83:DL83)))","v":4},{"$f":"IF(('2011 Survey responses'!CW83+'2011 Survey responses'!DA83+'2011 Survey responses'!DE83+'2011 Survey responses'!DI83)<1,\"\",AVERAGE('2011 Survey responses'!CW83,'2011 Survey responses'!DA83,'2011 Survey responses'!DE83,'2011 Survey responses'!DI83))","v":3.75},{"$f":"IF(('2011 Survey responses'!CX83+'2011 Survey responses'!DB83+'2011 Survey responses'!DF83+'2011 Survey responses'!DJ83)<1,\"\",AVERAGE('2011 Survey responses'!CX83,'2011 Survey responses'!DB83,'2011 Survey responses'!DF83,'2011 Survey responses'!DJ83))","v":3.75},{"$f":"IF(('2011 Survey responses'!CY83+'2011 Survey responses'!DC83+'2011 Survey responses'!DG83+'2011 Survey responses'!DK83)<1,\"\",AVERAGE('2011 Survey responses'!CY83,'2011 Survey responses'!DC83,'2011 Survey responses'!DG83,'2011 Survey responses'!DK83))","v":4},{"$f":"IF(('2011 Survey responses'!CZ83+'2011 Survey responses'!DD83+'2011 Survey responses'!DH83+'2011 Survey responses'!DL83)<1,\"\",AVERAGE('2011 Survey responses'!CZ83,'2011 Survey responses'!DD83,'2011 Survey responses'!DH83,'2011 Survey responses'!DL83))","v":4},{"$f":"IF('2011 Survey responses'!CW83<0.5,\"\",'2011 Survey responses'!CW83)","v":4},{"$f":"IF('2011 Survey responses'!CX83<0.5,\"\",'2011 Survey responses'!CX83)","v":4},{"$f":"IF('2011 Survey responses'!CY83<0.5,\"\",'2011 Survey responses'!CY83)","v":5},{"$f":"IF('2011 Survey responses'!CZ83<0.5,\"\",'2011 Survey responses'!CZ83)","v":5},{"$f":"IF('2011 Survey responses'!DA83<0.5,\"\",'2011 Survey responses'!DA83)","v":3},{"$f":"IF('2011 Survey responses'!DB83<0.5,\"\",'2011 Survey responses'!DB83)","v":3},{"$f":"IF('2011 Survey responses'!DC83<0.5,\"\",'2011 Survey responses'!DC83)","v":3},{"$f":"IF('2011 Survey responses'!DD83<0.5,\"\",'2011 Survey responses'!DD83)","v":3},{"$f":"IF('2011 Survey responses'!DE83<0.5,\"\",'2011 Survey responses'!DE83)","v":4},{"$f":"IF('2011 Survey responses'!DF83<0.5,\"\",'2011 Survey responses'!DF83)","v":4},{"$f":"IF('2011 Survey responses'!DG83<0.5,\"\",'2011 Survey responses'!DG83)","v":4},{"$f":"IF('2011 Survey responses'!DH83<0.5,\"\",'2011 Survey responses'!DH83)","v":4},{"$f":"IF('2011 Survey responses'!DI83<0.5,\"\",'2011 Survey responses'!DI83)","v":4},{"$f":"IF('2011 Survey responses'!DJ83<0.5,\"\",'2011 Survey responses'!DJ83)","v":4},{"$f":"IF('2011 Survey responses'!DK83<0.5,\"\",'2011 Survey responses'!DK83)","v":4},{"$f":"IF('2011 Survey responses'!DL83<0.5,\"\",'2011 Survey responses'!DL83)","v":4},{"$f":"IF('2011 Survey responses'!DU83=4,4,IF('2011 Survey responses'!DU83=5,4,\"\"))","v":4},{"$f":"IF('2011 Survey responses'!DV83=4,3,IF('2011 Survey responses'!DV83=5,3,\"\"))","v":3},2,{"$f":"IF(CQ83=2,CQ83,IF(CO83=4,CO83,IF(CP83=3,CP83,IF('2011 Survey responses'!GT83=1,1,\"\"))))","v":2},{"$f":"IF('2011 Survey responses'!DO83<0.5,\"\",'2011 Survey responses'!DO83)","v":2},{"$f":"IF('2011 Survey responses'!DP83<0.5,\"\",'2011 Survey responses'!DP83)","v":4},{"$f":"IF('2011 Survey responses'!DQ83<0.5,\"\",'2011 Survey responses'!DQ83)","v":3},{"$f":"IF('2011 Survey responses'!DR83<0.5,\"\",'2011 Survey responses'!DR83)","v":2},{"$f":"IF('2011 Survey responses'!DS83<0.5,\"\",'2011 Survey responses'!DS83)","v":4},{"$f":"IF('2011 Survey responses'!DT83<0.5,\"\",'2011 Survey responses'!DT83)","v":5},{"$f":"IF('2011 Survey responses'!DU83<0.5,\"\",'2011 Survey responses'!DU83)","v":4},{"$f":"IF('2011 Survey responses'!DV83<0.5,\"\",'2011 Survey responses'!DV83)","v":4},{"$f":"IF('2011 Survey responses'!DW83<0.5,\"\",'2011 Survey responses'!DW83)","v":3},{"$f":"IF('2011 Survey responses'!DX83<0.5,\"\",'2011 Survey responses'!DX83)","v":3},{"$f":"IF('2011 Survey responses'!DY83<0.5,\"\",'2011 Survey responses'!DY83)","v":5},{"$f":"IF('2011 Survey responses'!DZ83<0.5,\"\",'2011 Survey responses'!DZ83)","v":4},{"$f":"IF('2011 Survey responses'!EA83<0.5,\"\",'2011 Survey responses'!EA83)","v":3},{"$f":"IF('2011 Survey responses'!EB83<0.5,\"\",'2011 Survey responses'!EB83)","v":4},{"$f":"IF('2011 Survey responses'!EC83<0.5,\"\",'2011 Survey responses'!EC83)","v":3},{"$f":"IF('2011 Survey responses'!ED83<0.5,\"\",'2011 Survey responses'!ED83)","v":3},{"$f":"IF('2011 Survey responses'!EE83<0.5,\"\",'2011 Survey responses'!EE83)","v":4},{"$f":"IF('2011 Survey responses'!EF83<0.5,\"\",'2011 Survey responses'!EF83)","v":5},{"$f":"IF('2011 Survey responses'!EG83<0.5,\"\",'2011 Survey responses'!EG83)","v":5},{"$f":"IF('2011 Survey responses'!EH83<0.5,\"\",'2011 Survey responses'!EH83)","v":3},{"$f":"IF('2011 Survey responses'!EI83<0.5,\"\",'2011 Survey responses'!EI83)","v":3},{"$f":"IF('2011 Survey responses'!EJ83<0.5,\"\",'2011 Survey responses'!EJ83)","v":3},{"$f":"IF('2011 Survey responses'!EK83<0.5,\"\",'2011 Survey responses'!EK83)","v":5},{"$f":"IF('2011 Survey responses'!EL83<0.5,\"\",'2011 Survey responses'!EL83)","v":5},{"$f":"IF('2011 Survey responses'!EM83<0.5,\"\",'2011 Survey responses'!EM83)","v":4},{"$f":"IF('2011 Survey responses'!EN83<0.5,\"\",'2011 Survey responses'!EN83)","v":5},{"$f":"IF('2011 Survey responses'!EO83<0.5,\"\",'2011 Survey responses'!EO83)","v":2},{"$f":"IF('2011 Survey responses'!EP83<0.5,\"\",'2011 Survey responses'!EP83)","v":2},{"$f":"IF(('2011 Survey responses'!EW83+'2011 Survey responses'!EX83)>=2,AVERAGE('2011 Survey responses'!EW83,'2011 Survey responses'!EY83),\"\")","v":""},{"$f":"IF('2011 Survey responses'!EX83<0.5,\"\",'2011 Survey responses'!EX83)","v":""},{"$f":"IF('2011 Survey responses'!EZ83<0.5,\"\",'2011 Survey responses'!EZ83)","v":5},{"$f":"IF('2011 Survey responses'!FB83<0.5,\"\",'2011 Survey responses'!FB83)","v":2},{"$f":"IF('2011 Survey responses'!FD83<0.5,\"\",'2011 Survey responses'!FD83)","v":5},{"$f":"IF('2011 Survey responses'!FC83<0.5,\"\",'2011 Survey responses'!FC83)","v":4},{"$f":"IF(('2011 Survey responses'!EM83+'2011 Survey responses'!EN83)>=2,AVERAGE('2011 Survey responses'!EM83,'2011 Survey responses'!EN83),\"\")","v":4.5},{"$f":"IF('2011 Survey responses'!ES83<0.5,\"\",'2011 Survey responses'!ES83)","v":""},{"$f":"IF(('2011 Survey responses'!ET83+'2011 Survey responses'!EU83)>=2,AVERAGE('2011 Survey responses'!ET83,'2011 Survey responses'!EU83),\"\")","v":4},{"$f":"IF('2011 Survey responses'!EV83<0.5,\"\",'2011 Survey responses'!EV83)","v":""},{"$f":"IF('2011 Survey responses'!FA83<0.5,\"\",'2011 Survey responses'!FA83)","v":4},{"$f":"IF('2011 Survey responses'!ER83<0.5,\"\",'2011 Survey responses'!ER83)","v":""},{"$f":"IF(('2011 Survey responses'!EO83+'2011 Survey responses'!EP83)>=2,AVERAGE('2011 Survey responses'!EO83,'2011 Survey responses'!EP83),\"\")","v":2},{"$f":"IF('2011 Survey responses'!EQ83<0.5,\"\",'2011 Survey responses'!EQ83)","v":""},{"$f":"IF('2011 Survey responses'!ET83<0.5,\"\",'2011 Survey responses'!ET83)","v":4},{"$f":"IF('2011 Survey responses'!EU83<0.5,\"\",'2011 Survey responses'!EU83)","v":4},{"$f":"IF('2011 Survey responses'!EW83<0.5,\"\",'2011 Survey responses'!EW83)","v":""},{"$f":"IF('2011 Survey responses'!EY83<0.5,\"\",'2011 Survey responses'!EY83)","v":""},{"$f":"IF('2011 Survey responses'!FU83<0.5,\"\",'2011 Survey responses'!FU83)","v":4},{"$f":"IF(('2011 Survey responses'!FL83+'2011 Survey responses'!FM83)>=2,AVERAGE('2011 Survey responses'!FL83,'2011 Survey responses'!FM83),\"\")","v":5},{"$f":"IF(('2011 Survey responses'!FO83+'2011 Survey responses'!FQ83)>=2,AVERAGE('2011 Survey responses'!FO83,'2011 Survey responses'!FQ83),\"\")","v":5},{"$f":"IF('2011 Survey responses'!FJ83<0.5,\"\",'2011 Survey responses'!FJ83)","v":""},{"$f":"IF('2011 Survey responses'!FT83<0.5,\"\",'2011 Survey responses'!FT83)","v":2},{"$f":"IF('2011 Survey responses'!FR83<0.5,\"\",'2011 Survey responses'!FR83)","v":5},{"$f":"IF('2011 Survey responses'!FK83<0.5,\"\",'2011 Survey responses'!FK83)","v":""},{"$f":"IF('2011 Survey responses'!FP83<0.5,\"\",'2011 Survey responses'!FP83)","v":""},{"$f":"IF('2011 Survey responses'!FN83<0.5,\"\",'2011 Survey responses'!FN83)","v":5},{"$f":"IF(('2011 Survey responses'!FE83+'2011 Survey responses'!FF83)>=2,AVERAGE('2011 Survey responses'!FE83,'2011 Survey responses'!FF83),\"\")","v":5},{"$f":"IF('2011 Survey responses'!FS83<0.5,\"\",'2011 Survey responses'!FS83)","v":4},{"$f":"IF('2011 Survey responses'!FV83<0.5,\"\",'2011 Survey responses'!FV83)","v":5},{"$f":"IF(('2011 Survey responses'!FG83+'2011 Survey responses'!FH83)>=2,AVERAGE('2011 Survey responses'!FG83,'2011 Survey responses'!FH83),\"\")","v":3},{"$f":"IF('2011 Survey responses'!FI83<0.5,\"\",'2011 Survey responses'!FI83)","v":""},{"$f":"IF('2011 Survey responses'!FE83<0.5,\"\",'2011 Survey responses'!FE83)","v":5},{"$f":"IF('2011 Survey responses'!FF83<0.5,\"\",'2011 Survey responses'!FF83)","v":5},{"$f":"IF('2011 Survey responses'!FG83<0.5,\"\",'2011 Survey responses'!FG83)","v":3},{"$f":"IF('2011 Survey responses'!FH83<0.5,\"\",'2011 Survey responses'!FH83)","v":3},{"$f":"IF('2011 Survey responses'!FL83<0.5,\"\",'2011 Survey responses'!FL83)","v":5},{"$f":"IF('2011 Survey responses'!FM83<0.5,\"\",'2011 Survey responses'!FM83)","v":5},{"$f":"IF('2011 Survey responses'!FO83<0.5,\"\",'2011 Survey responses'!FO83)","v":5},{"$f":"IF('2011 Survey responses'!FQ83<0.5,\"\",'2011 Survey responses'!FQ83)","v":""}]
["Israel",{"$f":"IF(SUM(F84)<1,\"\",AVERAGEIF('2011 Survey responses'!B84:CP84,\">1\"))","v":5.2619047619047619},{"$f":"IF(SUM(F84)<1,\"\",AVERAGEIF('2011 Survey responses'!B84:AO84,\">1\"))","v":4.9705882352941178},{"$f":"IF(SUM(F84)<1,\"\",AVERAGEIF('2011 Survey responses'!B84:BV84,\">1\"))","v":5.2121212121212119},{"$f":"IF(SUM(F84)<1,\"\",AVERAGEIF('2011 Survey responses'!V84:BV84,\">1\"))","v":5.354166666666667},{"$f":"IF(SUM('2011 Survey responses'!B84:U84)<1,\"\",(AVERAGEIFS('2011 Survey responses'!B84:U84,'2011 Survey responses'!B84:U84,\">1\")))","v":4.833333333333333},{"$f":"IF(SUM('2011 Survey responses'!B84:H84)<1,\"\",(AVERAGEIFS('2011 Survey responses'!B84:H84,'2011 Survey responses'!B84:H84,\">1\")))","v":5.666666666666667},{"$f":"IF(SUM('2011 Survey responses'!I84:S84)<1,\"\",(AVERAGEIFS('2011 Survey responses'!I84:S84,'2011 Survey responses'!I84:S84,\">1\")))","v":4.0999999999999996},{"$f":"IF(SUM('2011 Survey responses'!T84:U84)<2.1,\"\",(AVERAGEIFS('2011 Survey responses'!T84:U84,'2011 Survey responses'!T84:U84,\">1\")))","v":6},{"$f":"IF(SUM('2011 Survey responses'!B84:C84)<2.1,\"\",((SUMIF('2011 Survey responses'!B84:C84,\">1\")+SUMIF('2011 Survey responses'!F84,\">1\"))/(COUNTIF('2011 Survey responses'!B84:C84,\">1\")+COUNTIF('2011 Survey responses'!F84,\">1\"))))","v":5.333333333333333},{"$f":"IF(SUM('2011 Survey responses'!D84:E84)<2.1,\"\",(AVERAGEIFS('2011 Survey responses'!D84:E84,'2011 Survey responses'!D84:E84,\">1\")))","v":6},{"$f":"IF(('2011 Survey responses'!B84+'2011 Survey responses'!D84)<2.1,\"\",((SUMIF('2011 Survey responses'!B84,\">1\")+SUMIF('2011 Survey responses'!D84,\">1\")+SUMIF('2011 Survey responses'!F84,\">1\")+SUMIF('2011 Survey responses'!K84,\">1\"))/(COUNTIF('2011 Survey responses'!B84,\">1\")+COUNTIF('2011 Survey responses'!D84,\">1\")+COUNTIF('2011 Survey responses'!F84,\">1\")+COUNTIF('2011 Survey responses'!K84,\">1\"))))","v":5.25},{"$f":"IF(SUM('2011 Survey responses'!G84:H84)<2.1,\"\",(AVERAGEIFS('2011 Survey responses'!G84:H84,'2011 Survey responses'!G84:H84,\">1\")))","v":6},{"$f":"IF(SUM('2011 Survey responses'!F84:G84)<1.5,\"\",MAX('2011 Survey responses'!F84,'2011 Survey responses'!G84))","v":6},{"$f":"IF(SUM('2011 Survey responses'!G84:H84)<1,\"\",MAX('2011 Survey responses'!G84,'2011 Survey responses'!H84))","v":6},{"$f":"IF(SUM('2011 Survey responses'!I84:L84)<4.1,\"\",(AVERAGEIFS('2011 Survey responses'!I84:L84,'2011 Survey responses'!I84:L84,\">1\")))","v":4.333333333333333},{"$f":"IF(SUM('2011 Survey responses'!M84:S84)<4.1,\"\",(AVERAGEIFS('2011 Survey responses'!M84:S84,'2011 Survey responses'!M84:S84,\">1\")))","v":4},{"$f":"IF(SUM('2011 Survey responses'!T84:U84)<2.1,\"\",(AVERAGEIFS('2011 Survey responses'!T84:U84,'2011 Survey responses'!T84:U84,\">1\")))","v":6},{"$f":"IF(SUM('2011 Survey responses'!V84:AO84)<1,\"\",(AVERAGEIFS('2011 Survey responses'!V84:AO84,'2011 Survey responses'!V84:AO84,\">1\")))","v":5.125},{"$f":"IF(SUM('2011 Survey responses'!V84:AA84)<1,\"\",(AVERAGEIFS('2011 Survey responses'!V84:AA84,'2011 Survey responses'!V84:AA84,\">1\")))","v":6},{"$f":"IF(SUM('2011 Survey responses'!AB84:AH84)<1,\"\",(AVERAGEIFS('2011 Survey responses'!AB84:AH84,'2011 Survey responses'!AB84:AH84,\">1\")))","v":6},{"$f":"IF(SUM('2011 Survey responses'!AI84:AO84)<1,\"\",(AVERAGEIFS('2011 Survey responses'!AI84:AO84,'2011 Survey responses'!AI84:AO84,\">1\")))","v":4},{"$f":"IF(('2011 Survey responses'!Y84+'2011 Survey responses'!AI84+'2011 Survey responses'!AK84)<3.1,\"\",((SUMIF('2011 Survey responses'!Y84,\">1\")+SUMIF('2011 Survey responses'!AI84,\">1\")+SUMIF('2011 Survey responses'!AK84,\">1\")+SUMIF('2011 Survey responses'!AM84,\">1\"))/(COUNTIF('2011 Survey responses'!Y84,\">1\")+COUNTIF('2011 Survey responses'!AI84,\">1\")+COUNTIF('2011 Survey responses'!AK84,\">1\")+COUNTIF('2011 Survey responses'!AM84,\">1\"))))","v":4.25},{"$f":"IF(('2011 Survey responses'!W84)<1.1,\"\",('2011 Survey responses'!W84))","v":6},{"$f":"IF(('2011 Survey responses'!Y84)<1.1,\"\",('2011 Survey responses'!Y84))","v":6},{"$f":"IF(('2011 Survey responses'!Z84)<1.1,\"\",('2011 Survey responses'!Z84))","v":6},{"$f":"IF(('2011 Survey responses'!V84+'2011 Survey responses'!X84+'2011 Survey responses'!AA84)<3.1,\"\",((SUMIF('2011 Survey responses'!V84,\">1\")+SUMIF('2011 Survey responses'!X84,\">1\")+SUMIF('2011 Survey responses'!AA84,\">1\"))/(COUNTIF('2011 Survey responses'!V84,\">1\")+COUNTIF('2011 Survey responses'!X84,\">1\")+COUNTIF('2011 Survey responses'!AA84,\">1\"))))","v":6},{"$f":"IF(('2011 Survey responses'!V84+'2011 Survey responses'!Y84+'2011 Survey responses'!AA84)<3.1,\"\",((SUMIF('2011 Survey responses'!V84,\">1\")+SUMIF('2011 Survey responses'!Y84,\">1\")+SUMIF('2011 Survey responses'!AA84,\">1\"))/(COUNTIF('2011 Survey responses'!V84,\">1\")+COUNTIF('2011 Survey responses'!Y84,\">1\")+COUNTIF('2011 Survey responses'!AA84,\">1\"))))","v":6},{"$f":"IF(SUM('2011 Survey responses'!AB84:AH84)<1,\"\",(AVERAGEIFS('2011 Survey responses'!AB84:AH84,'2011 Survey responses'!AB84:AH84,\">1\")))","v":6},{"$f":"IF(SUM('2011 Survey responses'!AI84:AO84)<7.1,\"\",(AVERAGEIFS('2011 Survey responses'!AI84:AO84,'2011 Survey responses'!AI84:AO84,\">1\")))","v":4},{"$f":"IF(('2011 Survey responses'!AH84)<1.1,\"\",('2011 Survey responses'!AH84))","v":""},{"$f":"IF(SUM('2011 Survey responses'!AP84:BV84)<1,\"\",(AVERAGEIFS('2011 Survey responses'!AP84:BV84,'2011 Survey responses'!AP84:BV84,\">1\")))","v":5.46875},{"$f":"IF(SUM('2011 Survey responses'!AP84:AS84)<4.1,\"\",(AVERAGEIFS('2011 Survey responses'!AP84:AS84,'2011 Survey responses'!AP84:AS84,\">1\")))","v":6},{"$f":"IF(SUM('2011 Survey responses'!AT84:BF84)<1,\"\",(AVERAGEIFS('2011 Survey responses'!AT84:BF84,'2011 Survey responses'!AT84:BF84,\">1\")))","v":5.166666666666667},{"$f":"IF(SUM('2011 Survey responses'!BG84:BO84)<1,\"\",(AVERAGEIFS('2011 Survey responses'!BG84:BO84,'2011 Survey responses'!BG84:BO84,\">1\")))","v":6},{"$f":"IF(SUM('2011 Survey responses'!BP84:BS84)<1,\"\",(AVERAGEIFS('2011 Survey responses'!BP84:BS84,'2011 Survey responses'!BP84:BS84,\">1\")))","v":5},{"$f":"IF(SUM('2011 Survey responses'!BT84:BV84)<3.1,\"\",(AVERAGEIFS('2011 Survey responses'!BT84:BV84,'2011 Survey responses'!BT84:BV84,\">1\")))","v":5},{"$f":"IF(('2011 Survey responses'!AQ84+'2011 Survey responses'!AR84+'2011 Survey responses'!BG84)<3.1,\"\",((SUMIF('2011 Survey responses'!AQ84,\">1\")+SUMIF('2011 Survey responses'!AR84,\">1\")+SUMIF('2011 Survey responses'!BG84,\">1\"))/(COUNTIF('2011 Survey responses'!AQ84,\">1\")+COUNTIF('2011 Survey responses'!AR84,\">1\")+COUNTIF('2011 Survey responses'!BG84,\">1\"))))","v":6},{"$f":"IF(SUM('2011 Survey responses'!AP84:AS84)<4.1,\"\",(AVERAGEIFS('2011 Survey responses'!AP84:AS84,'2011 Survey responses'!AP84:AS84,\">1\")))","v":6},{"$f":"IF(('2011 Survey responses'!AU84+'2011 Survey responses'!AX84+'2011 Survey responses'!BA84+'2011 Survey responses'!BC84+'2011 Survey responses'!BD84)<5.1,\"\",(SUMIF('2011 Survey responses'!AU84,\">1\")+SUMIF('2011 Survey responses'!AX84,\">1\")+SUMIF('2011 Survey responses'!BA84,\">1\")+SUMIF('2011 Survey responses'!BC84,\">1\")+SUMIF('2011 Survey responses'!BD84,\">1\"))/(COUNTIF('2011 Survey responses'!AU84,\">1\")+COUNTIF('2011 Survey responses'!AX84,\">1\")+COUNTIF('2011 Survey responses'!BA84,\">1\")+COUNTIF('2011 Survey responses'!BC84,\">1\")+COUNTIF('2011 Survey responses'!BD84,\">1\")))","v":5.2},{"$f":"IF(('2011 Survey responses'!AT84)<1.1,\"\",('2011 Survey responses'!AT84))","v":6},{"$f":"IF(SUM('2011 Survey responses'!AV84:AW84)<2.1,\"\",(AVERAGEIFS('2011 Survey responses'!AV84:AW84,'2011 Survey responses'!AV84:AW84,\">1\")))","v":6},{"$f":"IF(('2011 Survey responses'!AW84+'2011 Survey responses'!AY84)<2.1,\"\",(SUMIF('2011 Survey responses'!AW84,\">1\")+SUMIF('2011 Survey responses'!AY84,\">1\"))/(COUNTIF('2011 Survey responses'!AW84,\">1\")+COUNTIF('2011 Survey responses'!AY84,\">1\")))","v":5},{"$f":"IF(('2011 Survey responses'!AZ84)<1.1,\"\",('2011 Survey responses'!AZ84))","v":6},null,null,null,null,{"$f":"IF(('2011 Survey responses'!BE84)<1.1,\"\",('2011 Survey responses'!BE84))","v":""},{"$f":"IF(('2011 Survey responses'!AY84+'2011 Survey responses'!BB84+'2011 Survey responses'!BF84)<3.1,\"\",(SUMIF('2011 Survey responses'!AY84,\">1\")+SUMIF('2011 Survey responses'!BB84,\">1\")+SUMIF('2011 Survey responses'!BF84,\">1\"))/(COUNTIF('2011 Survey responses'!AY84,\">1\")+COUNTIF('2011 Survey responses'!BB84,\">1\")+COUNTIF('2011 Survey responses'!BF84,\">1\")))","v":4},5.5,{"$f":"IF(SUM('2011 Survey responses'!BT84:BV84)<3.1,\"\",(AVERAGEIFS('2011 Survey responses'!BT84:BV84,'2011 Survey responses'!BT84:BV84,\">1\")))","v":5},{"$f":"IF(SUM('2011 Survey responses'!BW84:CP84)<1,\"\",(AVERAGEIFS('2011 Survey responses'!BW84:CP84,'2011 Survey responses'!BW84:CP84,\">1\")))","v":5.4444444444444446},{"$f":"IF(SUM('2011 Survey responses'!BW84:CF84)<1,\"\",(AVERAGEIFS('2011 Survey responses'!BW84:CF84,'2011 Survey responses'!BW84:CF84,\">1\")))","v":5.666666666666667},{"$f":"IF(SUM('2011 Survey responses'!CG84:CP84)<1,\"\",(AVERAGEIFS('2011 Survey responses'!CG84:CP84,'2011 Survey responses'!CG84:CP84,\">1\")))","v":5.2222222222222223},{"$f":"IF(SUM('2011 Survey responses'!BX84:CF84)<1,\"\",(AVERAGEIFS('2011 Survey responses'!BX84:CF84,'2011 Survey responses'!BX84:CF84,\">1\")))","v":5.625},{"$f":"IF(SUM('2011 Survey responses'!CH84:CP84)<1,\"\",(AVERAGEIFS('2011 Survey responses'!CH84:CP84,'2011 Survey responses'!CH84:CP84,\">1\")))","v":5.125},{"$f":"IF(SUM('2011 Survey responses'!BW84:CP84)<1,\"\",(AVERAGEIFS('2011 Survey responses'!BW84:CP84,'2011 Survey responses'!BW84:CP84,\">1\")))","v":5.4444444444444446},{"$f":"IF(('2011 Survey responses'!BW84+'2011 Survey responses'!CG84)<2.1,\"\",(SUMIF('2011 Survey responses'!BW84,\">1\")+SUMIF('2011 Survey responses'!CG84,\">1\"))/(COUNTIF('2011 Survey responses'!BW84,\">1\")+COUNTIF('2011 Survey responses'!CG84,\">1\")))","v":6},{"$f":"IF(('2011 Survey responses'!BX84+'2011 Survey responses'!CH84)<2.1,\"\",(SUMIF('2011 Survey responses'!BX84,\">1\")+SUMIF('2011 Survey responses'!CH84,\">1\"))/(COUNTIF('2011 Survey responses'!BX84,\">1\")+COUNTIF('2011 Survey responses'!CH84,\">1\")))","v":6},{"$f":"IF(('2011 Survey responses'!BY84+'2011 Survey responses'!CI84)<2.1,\"\",(SUMIF('2011 Survey responses'!BY84,\">1\")+SUMIF('2011 Survey responses'!CI84,\">1\"))/(COUNTIF('2011 Survey responses'!BY84,\">1\")+COUNTIF('2011 Survey responses'!CI84,\">1\")))","v":""},{"$f":"IF('2011 Survey responses'!CQ84<0.5,\"\",'2011 Survey responses'!CQ84)","v":3},{"$f":"IF('2011 Survey responses'!CR84<0.5,\"\",'2011 Survey responses'!CR84)","v":2},{"$f":"IF('2011 Survey responses'!CS84<0.5,\"\",'2011 Survey responses'!CS84)","v":2},{"$f":"IF('2011 Survey responses'!CT84<0.5,\"\",'2011 Survey responses'!CT84)","v":4},{"$f":"IF('2011 Survey responses'!CU84<0.5,\"\",'2011 Survey responses'!CU84)","v":4},{"$f":"IF('2011 Survey responses'!CV84<0.5,\"\",'2011 Survey responses'!CV84)","v":4},{"$f":"IF(SUM('2011 Survey responses'!CW84:DL84)<1,\"\",(AVERAGE('2011 Survey responses'!CW84:DL84)))","v":4},{"$f":"IF(SUM('2011 Survey responses'!CW84:CZ84)<1,\"\",(AVERAGE('2011 Survey responses'!CW84:CZ84)))","v":3.75},{"$f":"IF(SUM('2011 Survey responses'!DA84:DD84)<1,\"\",(AVERAGE('2011 Survey responses'!DA84:DD84)))","v":3.75},{"$f":"IF(SUM('2011 Survey responses'!DE84:DH84)<1,\"\",(AVERAGE('2011 Survey responses'!DE84:DH84)))","v":3.75},{"$f":"IF(SUM('2011 Survey responses'!DI84:DL84)<1,\"\",(AVERAGE('2011 Survey responses'!DI84:DL84)))","v":4.75},{"$f":"IF(('2011 Survey responses'!CW84+'2011 Survey responses'!DA84+'2011 Survey responses'!DE84+'2011 Survey responses'!DI84)<1,\"\",AVERAGE('2011 Survey responses'!CW84,'2011 Survey responses'!DA84,'2011 Survey responses'!DE84,'2011 Survey responses'!DI84))","v":4.75},{"$f":"IF(('2011 Survey responses'!CX84+'2011 Survey responses'!DB84+'2011 Survey responses'!DF84+'2011 Survey responses'!DJ84)<1,\"\",AVERAGE('2011 Survey responses'!CX84,'2011 Survey responses'!DB84,'2011 Survey responses'!DF84,'2011 Survey responses'!DJ84))","v":3.5},{"$f":"IF(('2011 Survey responses'!CY84+'2011 Survey responses'!DC84+'2011 Survey responses'!DG84+'2011 Survey responses'!DK84)<1,\"\",AVERAGE('2011 Survey responses'!CY84,'2011 Survey responses'!DC84,'2011 Survey responses'!DG84,'2011 Survey responses'!DK84))","v":3.5},{"$f":"IF(('2011 Survey responses'!CZ84+'2011 Survey responses'!DD84+'2011 Survey responses'!DH84+'2011 Survey responses'!DL84)<1,\"\",AVERAGE('2011 Survey responses'!CZ84,'2011 Survey responses'!DD84,'2011 Survey responses'!DH84,'2011 Survey responses'!DL84))","v":4.25},{"$f":"IF('2011 Survey responses'!CW84<0.5,\"\",'2011 Survey responses'!CW84)","v":4},{"$f":"IF('2011 Survey responses'!CX84<0.5,\"\",'2011 Survey responses'!CX84)","v":3},{"$f":"IF('2011 Survey responses'!CY84<0.5,\"\",'2011 Survey responses'!CY84)","v":4},{"$f":"IF('2011 Survey responses'!CZ84<0.5,\"\",'2011 Survey responses'!CZ84)","v":4},{"$f":"IF('2011 Survey responses'!DA84<0.5,\"\",'2011 Survey responses'!DA84)","v":5},{"$f":"IF('2011 Survey responses'!DB84<0.5,\"\",'2011 Survey responses'!DB84)","v":3},{"$f":"IF('2011 Survey responses'!DC84<0.5,\"\",'2011 Survey responses'!DC84)","v":3},{"$f":"IF('2011 Survey responses'!DD84<0.5,\"\",'2011 Survey responses'!DD84)","v":4},{"$f":"IF('2011 Survey responses'!DE84<0.5,\"\",'2011 Survey responses'!DE84)","v":5},{"$f":"IF('2011 Survey responses'!DF84<0.5,\"\",'2011 Survey responses'!DF84)","v":3},{"$f":"IF('2011 Survey responses'!DG84<0.5,\"\",'2011 Survey responses'!DG84)","v":3},{"$f":"IF('2011 Survey responses'!DH84<0.5,\"\",'2011 Survey responses'!DH84)","v":4},{"$f":"IF('2011 Survey responses'!DI84<0.5,\"\",'2011 Survey responses'!DI84)","v":5},{"$f":"IF('2011 Survey responses'!DJ84<0.5,\"\",'2011 Survey responses'!DJ84)","v":5},{"$f":"IF('2011 Survey responses'!DK84<0.5,\"\",'2011 Survey responses'!DK84)","v":4},{"$f":"IF('2011 Survey responses'!DL84<0.5,\"\",'2011 Survey responses'!DL84)","v":5},{"$f":"IF('2011 Survey responses'!DU84=4,4,IF('2011 Survey responses'!DU84=5,4,\"\"))","v":""},{"$f":"IF('2011 Survey responses'!DV84=4,3,IF('2011 Survey responses'!DV84=5,3,\"\"))","v":3},"",{"$f":"IF(CQ84=2,CQ84,IF(CO84=4,CO84,IF(CP84=3,CP84,IF('2011 Survey responses'!GT84=1,1,\"\"))))","v":3},{"$f":"IF('2011 Survey responses'!DO84<0.5,\"\",'2011 Survey responses'!DO84)","v":2},{"$f":"IF('2011 Survey responses'!DP84<0.5,\"\",'2011 Survey responses'!DP84)","v":3},{"$f":"IF('2011 Survey responses'!DQ84<0.5,\"\",'2011 Survey responses'!DQ84)","v":1},{"$f":"IF('2011 Survey responses'!DR84<0.5,\"\",'2011 Survey responses'!DR84)","v":2},{"$f":"IF('2011 Survey responses'!DS84<0.5,\"\",'2011 Survey responses'!DS84)","v":4},{"$f":"IF('2011 Survey responses'!DT84<0.5,\"\",'2011 Survey responses'!DT84)","v":3},{"$f":"IF('2011 Survey responses'!DU84<0.5,\"\",'2011 Survey responses'!DU84)","v":1},{"$f":"IF('2011 Survey responses'!DV84<0.5,\"\",'2011 Survey responses'!DV84)","v":4},{"$f":"IF('2011 Survey responses'!DW84<0.5,\"\",'2011 Survey responses'!DW84)","v":4},{"$f":"IF('2011 Survey responses'!DX84<0.5,\"\",'2011 Survey responses'!DX84)","v":4},{"$f":"IF('2011 Survey responses'!DY84<0.5,\"\",'2011 Survey responses'!DY84)","v":4},{"$f":"IF('2011 Survey responses'!DZ84<0.5,\"\",'2011 Survey responses'!DZ84)","v":4},{"$f":"IF('2011 Survey responses'!EA84<0.5,\"\",'2011 Survey responses'!EA84)","v":1},{"$f":"IF('2011 Survey responses'!EB84<0.5,\"\",'2011 Survey responses'!EB84)","v":1},{"$f":"IF('2011 Survey responses'!EC84<0.5,\"\",'2011 Survey responses'!EC84)","v":3},{"$f":"IF('2011 Survey responses'!ED84<0.5,\"\",'2011 Survey responses'!ED84)","v":3},{"$f":"IF('2011 Survey responses'!EE84<0.5,\"\",'2011 Survey responses'!EE84)","v":1},{"$f":"IF('2011 Survey responses'!EF84<0.5,\"\",'2011 Survey responses'!EF84)","v":1},{"$f":"IF('2011 Survey responses'!EG84<0.5,\"\",'2011 Survey responses'!EG84)","v":1},{"$f":"IF('2011 Survey responses'!EH84<0.5,\"\",'2011 Survey responses'!EH84)","v":1},{"$f":"IF('2011 Survey responses'!EI84<0.5,\"\",'2011 Survey responses'!EI84)","v":1},{"$f":"IF('2011 Survey responses'!EJ84<0.5,\"\",'2011 Survey responses'!EJ84)","v":1},{"$f":"IF('2011 Survey responses'!EK84<0.5,\"\",'2011 Survey responses'!EK84)","v":1},{"$f":"IF('2011 Survey responses'!EL84<0.5,\"\",'2011 Survey responses'!EL84)","v":1},{"$f":"IF('2011 Survey responses'!EM84<0.5,\"\",'2011 Survey responses'!EM84)","v":4},{"$f":"IF('2011 Survey responses'!EN84<0.5,\"\",'2011 Survey responses'!EN84)","v":3},{"$f":"IF('2011 Survey responses'!EO84<0.5,\"\",'2011 Survey responses'!EO84)","v":3},{"$f":"IF('2011 Survey responses'!EP84<0.5,\"\",'2011 Survey responses'!EP84)","v":1},{"$f":"IF(('2011 Survey responses'!EW84+'2011 Survey responses'!EX84)>=2,AVERAGE('2011 Survey responses'!EW84,'2011 Survey responses'!EY84),\"\")","v":2},{"$f":"IF('2011 Survey responses'!EX84<0.5,\"\",'2011 Survey responses'!EX84)","v":2},{"$f":"IF('2011 Survey responses'!EZ84<0.5,\"\",'2011 Survey responses'!EZ84)","v":3},{"$f":"IF('2011 Survey responses'!FB84<0.5,\"\",'2011 Survey responses'!FB84)","v":4},{"$f":"IF('2011 Survey responses'!FD84<0.5,\"\",'2011 Survey responses'!FD84)","v":4},{"$f":"IF('2011 Survey responses'!FC84<0.5,\"\",'2011 Survey responses'!FC84)","v":4},{"$f":"IF(('2011 Survey responses'!EM84+'2011 Survey responses'!EN84)>=2,AVERAGE('2011 Survey responses'!EM84,'2011 Survey responses'!EN84),\"\")","v":3.5},{"$f":"IF('2011 Survey responses'!ES84<0.5,\"\",'2011 Survey responses'!ES84)","v":4},{"$f":"IF(('2011 Survey responses'!ET84+'2011 Survey responses'!EU84)>=2,AVERAGE('2011 Survey responses'!ET84,'2011 Survey responses'!EU84),\"\")","v":3.5},{"$f":"IF('2011 Survey responses'!EV84<0.5,\"\",'2011 Survey responses'!EV84)","v":4},{"$f":"IF('2011 Survey responses'!FA84<0.5,\"\",'2011 Survey responses'!FA84)","v":3},{"$f":"IF('2011 Survey responses'!ER84<0.5,\"\",'2011 Survey responses'!ER84)","v":3},{"$f":"IF(('2011 Survey responses'!EO84+'2011 Survey responses'!EP84)>=2,AVERAGE('2011 Survey responses'!EO84,'2011 Survey responses'!EP84),\"\")","v":2},{"$f":"IF('2011 Survey responses'!EQ84<0.5,\"\",'2011 Survey responses'!EQ84)","v":3},{"$f":"IF('2011 Survey responses'!ET84<0.5,\"\",'2011 Survey responses'!ET84)","v":4},{"$f":"IF('2011 Survey responses'!EU84<0.5,\"\",'2011 Survey responses'!EU84)","v":3},{"$f":"IF('2011 Survey responses'!EW84<0.5,\"\",'2011 Survey responses'!EW84)","v":2},{"$f":"IF('2011 Survey responses'!EY84<0.5,\"\",'2011 Survey responses'!EY84)","v":2},{"$f":"IF('2011 Survey responses'!FU84<0.5,\"\",'2011 Survey responses'!FU84)","v":5},{"$f":"IF(('2011 Survey responses'!FL84+'2011 Survey responses'!FM84)>=2,AVERAGE('2011 Survey responses'!FL84,'2011 Survey responses'!FM84),\"\")","v":3.5},{"$f":"IF(('2011 Survey responses'!FO84+'2011 Survey responses'!FQ84)>=2,AVERAGE('2011 Survey responses'!FO84,'2011 Survey responses'!FQ84),\"\")","v":5},{"$f":"IF('2011 Survey responses'!FJ84<0.5,\"\",'2011 Survey responses'!FJ84)","v":5},{"$f":"IF('2011 Survey responses'!FT84<0.5,\"\",'2011 Survey responses'!FT84)","v":5},{"$f":"IF('2011 Survey responses'!FR84<0.5,\"\",'2011 Survey responses'!FR84)","v":3},{"$f":"IF('2011 Survey responses'!FK84<0.5,\"\",'2011 Survey responses'!FK84)","v":5},{"$f":"IF('2011 Survey responses'!FP84<0.5,\"\",'2011 Survey responses'!FP84)","v":5},{"$f":"IF('2011 Survey responses'!FN84<0.5,\"\",'2011 Survey responses'!FN84)","v":5},{"$f":"IF(('2011 Survey responses'!FE84+'2011 Survey responses'!FF84)>=2,AVERAGE('2011 Survey responses'!FE84,'2011 Survey responses'!FF84),\"\")","v":3},{"$f":"IF('2011 Survey responses'!FS84<0.5,\"\",'2011 Survey responses'!FS84)","v":3},{"$f":"IF('2011 Survey responses'!FV84<0.5,\"\",'2011 Survey responses'!FV84)","v":4},{"$f":"IF(('2011 Survey responses'!FG84+'2011 Survey responses'!FH84)>=2,AVERAGE('2011 Survey responses'!FG84,'2011 Survey responses'!FH84),\"\")","v":3},{"$f":"IF('2011 Survey responses'!FI84<0.5,\"\",'2011 Survey responses'!FI84)","v":5},{"$f":"IF('2011 Survey responses'!FE84<0.5,\"\",'2011 Survey responses'!FE84)","v":4},{"$f":"IF('2011 Survey responses'!FF84<0.5,\"\",'2011 Survey responses'!FF84)","v":2},{"$f":"IF('2011 Survey responses'!FG84<0.5,\"\",'2011 Survey responses'!FG84)","v":3},{"$f":"IF('2011 Survey responses'!FH84<0.5,\"\",'2011 Survey responses'!FH84)","v":3},{"$f":"IF('2011 Survey responses'!FL84<0.5,\"\",'2011 Survey responses'!FL84)","v":4},{"$f":"IF('2011 Survey responses'!FM84<0.5,\"\",'2011 Survey responses'!FM84)","v":3},{"$f":"IF('2011 Survey responses'!FO84<0.5,\"\",'2011 Survey responses'!FO84)","v":5},{"$f":"IF('2011 Survey responses'!FQ84<0.5,\"\",'2011 Survey responses'!FQ84)","v":5}]
["Italy",{"$f":"IF(SUM(F85)<1,\"\",AVERAGEIF('2011 Survey responses'!B85:CP85,\">1\"))","v":""},{"$f":"IF(SUM(F85)<1,\"\",AVERAGEIF('2011 Survey responses'!B85:AO85,\">1\"))","v":""},{"$f":"IF(SUM(F85)<1,\"\",AVERAGEIF('2011 Survey responses'!B85:BV85,\">1\"))","v":""},{"$f":"IF(SUM(F85)<1,\"\",AVERAGEIF('2011 Survey responses'!V85:BV85,\">1\"))","v":""},{"$f":"IF(SUM('2011 Survey responses'!B85:U85)<1,\"\",(AVERAGEIFS('2011 Survey responses'!B85:U85,'2011 Survey responses'!B85:U85,\">1\")))","v":""},{"$f":"IF(SUM('2011 Survey responses'!B85:H85)<1,\"\",(AVERAGEIFS('2011 Survey responses'!B85:H85,'2011 Survey responses'!B85:H85,\">1\")))","v":""},{"$f":"IF(SUM('2011 Survey responses'!I85:S85)<1,\"\",(AVERAGEIFS('2011 Survey responses'!I85:S85,'2011 Survey responses'!I85:S85,\">1\")))","v":""},{"$f":"IF(SUM('2011 Survey responses'!T85:U85)<2.1,\"\",(AVERAGEIFS('2011 Survey responses'!T85:U85,'2011 Survey responses'!T85:U85,\">1\")))","v":""},{"$f":"IF(SUM('2011 Survey responses'!B85:C85)<2.1,\"\",((SUMIF('2011 Survey responses'!B85:C85,\">1\")+SUMIF('2011 Survey responses'!F85,\">1\"))/(COUNTIF('2011 Survey responses'!B85:C85,\">1\")+COUNTIF('2011 Survey responses'!F85,\">1\"))))","v":""},{"$f":"IF(SUM('2011 Survey responses'!D85:E85)<2.1,\"\",(AVERAGEIFS('2011 Survey responses'!D85:E85,'2011 Survey responses'!D85:E85,\">1\")))","v":""},{"$f":"IF(('2011 Survey responses'!B85+'2011 Survey responses'!D85)<2.1,\"\",((SUMIF('2011 Survey responses'!B85,\">1\")+SUMIF('2011 Survey responses'!D85,\">1\")+SUMIF('2011 Survey responses'!F85,\">1\")+SUMIF('2011 Survey responses'!K85,\">1\"))/(COUNTIF('2011 Survey responses'!B85,\">1\")+COUNTIF('2011 Survey responses'!D85,\">1\")+COUNTIF('2011 Survey responses'!F85,\">1\")+COUNTIF('2011 Survey responses'!K85,\">1\"))))","v":""},{"$f":"IF(SUM('2011 Survey responses'!G85:H85)<2.1,\"\",(AVERAGEIFS('2011 Survey responses'!G85:H85,'2011 Survey responses'!G85:H85,\">1\")))","v":""},{"$f":"IF(SUM('2011 Survey responses'!F85:G85)<1.5,\"\",MAX('2011 Survey responses'!F85,'2011 Survey responses'!G85))","v":""},{"$f":"IF(SUM('2011 Survey responses'!G85:H85)<1,\"\",MAX('2011 Survey responses'!G85,'2011 Survey responses'!H85))","v":""},{"$f":"IF(SUM('2011 Survey responses'!I85:L85)<4.1,\"\",(AVERAGEIFS('2011 Survey responses'!I85:L85,'2011 Survey responses'!I85:L85,\">1\")))","v":""},{"$f":"IF(SUM('2011 Survey responses'!M85:S85)<4.1,\"\",(AVERAGEIFS('2011 Survey responses'!M85:S85,'2011 Survey responses'!M85:S85,\">1\")))","v":""},{"$f":"IF(SUM('2011 Survey responses'!T85:U85)<2.1,\"\",(AVERAGEIFS('2011 Survey responses'!T85:U85,'2011 Survey responses'!T85:U85,\">1\")))","v":""},{"$f":"IF(SUM('2011 Survey responses'!V85:AO85)<1,\"\",(AVERAGEIFS('2011 Survey responses'!V85:AO85,'2011 Survey responses'!V85:AO85,\">1\")))","v":""},{"$f":"IF(SUM('2011 Survey responses'!V85:AA85)<1,\"\",(AVERAGEIFS('2011 Survey responses'!V85:AA85,'2011 Survey responses'!V85:AA85,\">1\")))","v":""},{"$f":"IF(SUM('2011 Survey responses'!AB85:AH85)<1,\"\",(AVERAGEIFS('2011 Survey responses'!AB85:AH85,'2011 Survey responses'!AB85:AH85,\">1\")))","v":""},{"$f":"IF(SUM('2011 Survey responses'!AI85:AO85)<1,\"\",(AVERAGEIFS('2011 Survey responses'!AI85:AO85,'2011 Survey responses'!AI85:AO85,\">1\")))","v":""},{"$f":"IF(('2011 Survey responses'!Y85+'2011 Survey responses'!AI85+'2011 Survey responses'!AK85)<3.1,\"\",((SUMIF('2011 Survey responses'!Y85,\">1\")+SUMIF('2011 Survey responses'!AI85,\">1\")+SUMIF('2011 Survey responses'!AK85,\">1\")+SUMIF('2011 Survey responses'!AM85,\">1\"))/(COUNTIF('2011 Survey responses'!Y85,\">1\")+COUNTIF('2011 Survey responses'!AI85,\">1\")+COUNTIF('2011 Survey responses'!AK85,\">1\")+COUNTIF('2011 Survey responses'!AM85,\">1\"))))","v":""},{"$f":"IF(('2011 Survey responses'!W85)<1.1,\"\",('2011 Survey responses'!W85))","v":""},{"$f":"IF(('2011 Survey responses'!Y85)<1.1,\"\",('2011 Survey responses'!Y85))","v":""},{"$f":"IF(('2011 Survey responses'!Z85)<1.1,\"\",('2011 Survey responses'!Z85))","v":""},{"$f":"IF(('2011 Survey responses'!V85+'2011 Survey responses'!X85+'2011 Survey responses'!AA85)<3.1,\"\",((SUMIF('2011 Survey responses'!V85,\">1\")+SUMIF('2011 Survey responses'!X85,\">1\")+SUMIF('2011 Survey responses'!AA85,\">1\"))/(COUNTIF('2011 Survey responses'!V85,\">1\")+COUNTIF('2011 Survey responses'!X85,\">1\")+COUNTIF('2011 Survey responses'!AA85,\">1\"))))","v":""},{"$f":"IF(('2011 Survey responses'!V85+'2011 Survey responses'!Y85+'2011 Survey responses'!AA85)<3.1,\"\",((SUMIF('2011 Survey responses'!V85,\">1\")+SUMIF('2011 Survey responses'!Y85,\">1\")+SUMIF('2011 Survey responses'!AA85,\">1\"))/(COUNTIF('2011 Survey responses'!V85,\">1\")+COUNTIF('2011 Survey responses'!Y85,\">1\")+COUNTIF('2011 Survey responses'!AA85,\">1\"))))","v":""},{"$f":"IF(SUM('2011 Survey responses'!AB85:AH85)<1,\"\",(AVERAGEIFS('2011 Survey responses'!AB85:AH85,'2011 Survey responses'!AB85:AH85,\">1\")))","v":""},{"$f":"IF(SUM('2011 Survey responses'!AI85:AO85)<7.1,\"\",(AVERAGEIFS('2011 Survey responses'!AI85:AO85,'2011 Survey responses'!AI85:AO85,\">1\")))","v":""},{"$f":"IF(('2011 Survey responses'!AH85)<1.1,\"\",('2011 Survey responses'!AH85))","v":""},{"$f":"IF(SUM('2011 Survey responses'!AP85:BV85)<1,\"\",(AVERAGEIFS('2011 Survey responses'!AP85:BV85,'2011 Survey responses'!AP85:BV85,\">1\")))","v":""},{"$f":"IF(SUM('2011 Survey responses'!AP85:AS85)<4.1,\"\",(AVERAGEIFS('2011 Survey responses'!AP85:AS85,'2011 Survey responses'!AP85:AS85,\">1\")))","v":""},{"$f":"IF(SUM('2011 Survey responses'!AT85:BF85)<1,\"\",(AVERAGEIFS('2011 Survey responses'!AT85:BF85,'2011 Survey responses'!AT85:BF85,\">1\")))","v":""},{"$f":"IF(SUM('2011 Survey responses'!BG85:BO85)<1,\"\",(AVERAGEIFS('2011 Survey responses'!BG85:BO85,'2011 Survey responses'!BG85:BO85,\">1\")))","v":""},{"$f":"IF(SUM('2011 Survey responses'!BP85:BS85)<1,\"\",(AVERAGEIFS('2011 Survey responses'!BP85:BS85,'2011 Survey responses'!BP85:BS85,\">1\")))","v":""},{"$f":"IF(SUM('2011 Survey responses'!BT85:BV85)<3.1,\"\",(AVERAGEIFS('2011 Survey responses'!BT85:BV85,'2011 Survey responses'!BT85:BV85,\">1\")))","v":""},{"$f":"IF(('2011 Survey responses'!AQ85+'2011 Survey responses'!AR85+'2011 Survey responses'!BG85)<3.1,\"\",((SUMIF('2011 Survey responses'!AQ85,\">1\")+SUMIF('2011 Survey responses'!AR85,\">1\")+SUMIF('2011 Survey responses'!BG85,\">1\"))/(COUNTIF('2011 Survey responses'!AQ85,\">1\")+COUNTIF('2011 Survey responses'!AR85,\">1\")+COUNTIF('2011 Survey responses'!BG85,\">1\"))))","v":""},{"$f":"IF(SUM('2011 Survey responses'!AP85:AS85)<4.1,\"\",(AVERAGEIFS('2011 Survey responses'!AP85:AS85,'2011 Survey responses'!AP85:AS85,\">1\")))","v":""},{"$f":"IF(('2011 Survey responses'!AU85+'2011 Survey responses'!AX85+'2011 Survey responses'!BA85+'2011 Survey responses'!BC85+'2011 Survey responses'!BD85)<5.1,\"\",(SUMIF('2011 Survey responses'!AU85,\">1\")+SUMIF('2011 Survey responses'!AX85,\">1\")+SUMIF('2011 Survey responses'!BA85,\">1\")+SUMIF('2011 Survey responses'!BC85,\">1\")+SUMIF('2011 Survey responses'!BD85,\">1\"))/(COUNTIF('2011 Survey responses'!AU85,\">1\")+COUNTIF('2011 Survey responses'!AX85,\">1\")+COUNTIF('2011 Survey responses'!BA85,\">1\")+COUNTIF('2011 Survey responses'!BC85,\">1\")+COUNTIF('2011 Survey responses'!BD85,\">1\")))","v":""},{"$f":"IF(('2011 Survey responses'!AT85)<1.1,\"\",('2011 Survey responses'!AT85))","v":""},{"$f":"IF(SUM('2011 Survey responses'!AV85:AW85)<2.1,\"\",(AVERAGEIFS('2011 Survey responses'!AV85:AW85,'2011 Survey responses'!AV85:AW85,\">1\")))","v":""},{"$f":"IF(('2011 Survey responses'!AW85+'2011 Survey responses'!AY85)<2.1,\"\",(SUMIF('2011 Survey responses'!AW85,\">1\")+SUMIF('2011 Survey responses'!AY85,\">1\"))/(COUNTIF('2011 Survey responses'!AW85,\">1\")+COUNTIF('2011 Survey responses'!AY85,\">1\")))","v":""},{"$f":"IF(('2011 Survey responses'!AZ85)<1.1,\"\",('2011 Survey responses'!AZ85))","v":""},null,null,null,null,{"$f":"IF(('2011 Survey responses'!BE85)<1.1,\"\",('2011 Survey responses'!BE85))","v":""},{"$f":"IF(('2011 Survey responses'!AY85+'2011 Survey responses'!BB85+'2011 Survey responses'!BF85)<3.1,\"\",(SUMIF('2011 Survey responses'!AY85,\">1\")+SUMIF('2011 Survey responses'!BB85,\">1\")+SUMIF('2011 Survey responses'!BF85,\">1\"))/(COUNTIF('2011 Survey responses'!AY85,\">1\")+COUNTIF('2011 Survey responses'!BB85,\">1\")+COUNTIF('2011 Survey responses'!BF85,\">1\")))","v":""},"",{"$f":"IF(SUM('2011 Survey responses'!BT85:BV85)<3.1,\"\",(AVERAGEIFS('2011 Survey responses'!BT85:BV85,'2011 Survey responses'!BT85:BV85,\">1\")))","v":""},{"$f":"IF(SUM('2011 Survey responses'!BW85:CP85)<1,\"\",(AVERAGEIFS('2011 Survey responses'!BW85:CP85,'2011 Survey responses'!BW85:CP85,\">1\")))","v":""},{"$f":"IF(SUM('2011 Survey responses'!BW85:CF85)<1,\"\",(AVERAGEIFS('2011 Survey responses'!BW85:CF85,'2011 Survey responses'!BW85:CF85,\">1\")))","v":""},{"$f":"IF(SUM('2011 Survey responses'!CG85:CP85)<1,\"\",(AVERAGEIFS('2011 Survey responses'!CG85:CP85,'2011 Survey responses'!CG85:CP85,\">1\")))","v":""},{"$f":"IF(SUM('2011 Survey responses'!BX85:CF85)<1,\"\",(AVERAGEIFS('2011 Survey responses'!BX85:CF85,'2011 Survey responses'!BX85:CF85,\">1\")))","v":""},{"$f":"IF(SUM('2011 Survey responses'!CH85:CP85)<1,\"\",(AVERAGEIFS('2011 Survey responses'!CH85:CP85,'2011 Survey responses'!CH85:CP85,\">1\")))","v":""},{"$f":"IF(SUM('2011 Survey responses'!BW85:CP85)<1,\"\",(AVERAGEIFS('2011 Survey responses'!BW85:CP85,'2011 Survey responses'!BW85:CP85,\">1\")))","v":""},{"$f":"IF(('2011 Survey responses'!BW85+'2011 Survey responses'!CG85)<2.1,\"\",(SUMIF('2011 Survey responses'!BW85,\">1\")+SUMIF('2011 Survey responses'!CG85,\">1\"))/(COUNTIF('2011 Survey responses'!BW85,\">1\")+COUNTIF('2011 Survey responses'!CG85,\">1\")))","v":""},{"$f":"IF(('2011 Survey responses'!BX85+'2011 Survey responses'!CH85)<2.1,\"\",(SUMIF('2011 Survey responses'!BX85,\">1\")+SUMIF('2011 Survey responses'!CH85,\">1\"))/(COUNTIF('2011 Survey responses'!BX85,\">1\")+COUNTIF('2011 Survey responses'!CH85,\">1\")))","v":""},{"$f":"IF(('2011 Survey responses'!BY85+'2011 Survey responses'!CI85)<2.1,\"\",(SUMIF('2011 Survey responses'!BY85,\">1\")+SUMIF('2011 Survey responses'!CI85,\">1\"))/(COUNTIF('2011 Survey responses'!BY85,\">1\")+COUNTIF('2011 Survey responses'!CI85,\">1\")))","v":""},{"$f":"IF('2011 Survey responses'!CQ85<0.5,\"\",'2011 Survey responses'!CQ85)","v":""},{"$f":"IF('2011 Survey responses'!CR85<0.5,\"\",'2011 Survey responses'!CR85)","v":""},{"$f":"IF('2011 Survey responses'!CS85<0.5,\"\",'2011 Survey responses'!CS85)","v":""},{"$f":"IF('2011 Survey responses'!CT85<0.5,\"\",'2011 Survey responses'!CT85)","v":""},{"$f":"IF('2011 Survey responses'!CU85<0.5,\"\",'2011 Survey responses'!CU85)","v":""},{"$f":"IF('2011 Survey responses'!CV85<0.5,\"\",'2011 Survey responses'!CV85)","v":""},{"$f":"IF(SUM('2011 Survey responses'!CW85:DL85)<1,\"\",(AVERAGE('2011 Survey responses'!CW85:DL85)))","v":""},{"$f":"IF(SUM('2011 Survey responses'!CW85:CZ85)<1,\"\",(AVERAGE('2011 Survey responses'!CW85:CZ85)))","v":""},{"$f":"IF(SUM('2011 Survey responses'!DA85:DD85)<1,\"\",(AVERAGE('2011 Survey responses'!DA85:DD85)))","v":""},{"$f":"IF(SUM('2011 Survey responses'!DE85:DH85)<1,\"\",(AVERAGE('2011 Survey responses'!DE85:DH85)))","v":""},{"$f":"IF(SUM('2011 Survey responses'!DI85:DL85)<1,\"\",(AVERAGE('2011 Survey responses'!DI85:DL85)))","v":""},{"$f":"IF(('2011 Survey responses'!CW85+'2011 Survey responses'!DA85+'2011 Survey responses'!DE85+'2011 Survey responses'!DI85)<1,\"\",AVERAGE('2011 Survey responses'!CW85,'2011 Survey responses'!DA85,'2011 Survey responses'!DE85,'2011 Survey responses'!DI85))","v":""},{"$f":"IF(('2011 Survey responses'!CX85+'2011 Survey responses'!DB85+'2011 Survey responses'!DF85+'2011 Survey responses'!DJ85)<1,\"\",AVERAGE('2011 Survey responses'!CX85,'2011 Survey responses'!DB85,'2011 Survey responses'!DF85,'2011 Survey responses'!DJ85))","v":""},{"$f":"IF(('2011 Survey responses'!CY85+'2011 Survey responses'!DC85+'2011 Survey responses'!DG85+'2011 Survey responses'!DK85)<1,\"\",AVERAGE('2011 Survey responses'!CY85,'2011 Survey responses'!DC85,'2011 Survey responses'!DG85,'2011 Survey responses'!DK85))","v":""},{"$f":"IF(('2011 Survey responses'!CZ85+'2011 Survey responses'!DD85+'2011 Survey responses'!DH85+'2011 Survey responses'!DL85)<1,\"\",AVERAGE('2011 Survey responses'!CZ85,'2011 Survey responses'!DD85,'2011 Survey responses'!DH85,'2011 Survey responses'!DL85))","v":""},{"$f":"IF('2011 Survey responses'!CW85<0.5,\"\",'2011 Survey responses'!CW85)","v":""},{"$f":"IF('2011 Survey responses'!CX85<0.5,\"\",'2011 Survey responses'!CX85)","v":""},{"$f":"IF('2011 Survey responses'!CY85<0.5,\"\",'2011 Survey responses'!CY85)","v":""},{"$f":"IF('2011 Survey responses'!CZ85<0.5,\"\",'2011 Survey responses'!CZ85)","v":""},{"$f":"IF('2011 Survey responses'!DA85<0.5,\"\",'2011 Survey responses'!DA85)","v":""},{"$f":"IF('2011 Survey responses'!DB85<0.5,\"\",'2011 Survey responses'!DB85)","v":""},{"$f":"IF('2011 Survey responses'!DC85<0.5,\"\",'2011 Survey responses'!DC85)","v":""},{"$f":"IF('2011 Survey responses'!DD85<0.5,\"\",'2011 Survey responses'!DD85)","v":""},{"$f":"IF('2011 Survey responses'!DE85<0.5,\"\",'2011 Survey responses'!DE85)","v":""},{"$f":"IF('2011 Survey responses'!DF85<0.5,\"\",'2011 Survey responses'!DF85)","v":""},{"$f":"IF('2011 Survey responses'!DG85<0.5,\"\",'2011 Survey responses'!DG85)","v":""},{"$f":"IF('2011 Survey responses'!DH85<0.5,\"\",'2011 Survey responses'!DH85)","v":""},{"$f":"IF('2011 Survey responses'!DI85<0.5,\"\",'2011 Survey responses'!DI85)","v":""},{"$f":"IF('2011 Survey responses'!DJ85<0.5,\"\",'2011 Survey responses'!DJ85)","v":""},{"$f":"IF('2011 Survey responses'!DK85<0.5,\"\",'2011 Survey responses'!DK85)","v":""},{"$f":"IF('2011 Survey responses'!DL85<0.5,\"\",'2011 Survey responses'!DL85)","v":""},{"$f":"IF('2011 Survey responses'!DU85=4,4,IF('2011 Survey responses'!DU85=5,4,\"\"))","v":""},{"$f":"IF('2011 Survey responses'!DV85=4,3,IF('2011 Survey responses'!DV85=5,3,\"\"))","v":""},"",{"$f":"IF(CQ85=2,CQ85,IF(CO85=4,CO85,IF(CP85=3,CP85,IF('2011 Survey responses'!GT85=1,1,\"\"))))","v":""},{"$f":"IF('2011 Survey responses'!DO85<0.5,\"\",'2011 Survey responses'!DO85)","v":""},{"$f":"IF('2011 Survey responses'!DP85<0.5,\"\",'2011 Survey responses'!DP85)","v":""},{"$f":"IF('2011 Survey responses'!DQ85<0.5,\"\",'2011 Survey responses'!DQ85)","v":""},{"$f":"IF('2011 Survey responses'!DR85<0.5,\"\",'2011 Survey responses'!DR85)","v":""},{"$f":"IF('2011 Survey responses'!DS85<0.5,\"\",'2011 Survey responses'!DS85)","v":""},{"$f":"IF('2011 Survey responses'!DT85<0.5,\"\",'2011 Survey responses'!DT85)","v":""},{"$f":"IF('2011 Survey responses'!DU85<0.5,\"\",'2011 Survey responses'!DU85)","v":""},{"$f":"IF('2011 Survey responses'!DV85<0.5,\"\",'2011 Survey responses'!DV85)","v":""},{"$f":"IF('2011 Survey responses'!DW85<0.5,\"\",'2011 Survey responses'!DW85)","v":""},{"$f":"IF('2011 Survey responses'!DX85<0.5,\"\",'2011 Survey responses'!DX85)","v":""},{"$f":"IF('2011 Survey responses'!DY85<0.5,\"\",'2011 Survey responses'!DY85)","v":""},{"$f":"IF('2011 Survey responses'!DZ85<0.5,\"\",'2011 Survey responses'!DZ85)","v":""},{"$f":"IF('2011 Survey responses'!EA85<0.5,\"\",'2011 Survey responses'!EA85)","v":""},{"$f":"IF('2011 Survey responses'!EB85<0.5,\"\",'2011 Survey responses'!EB85)","v":""},{"$f":"IF('2011 Survey responses'!EC85<0.5,\"\",'2011 Survey responses'!EC85)","v":""},{"$f":"IF('2011 Survey responses'!ED85<0.5,\"\",'2011 Survey responses'!ED85)","v":""},{"$f":"IF('2011 Survey responses'!EE85<0.5,\"\",'2011 Survey responses'!EE85)","v":""},{"$f":"IF('2011 Survey responses'!EF85<0.5,\"\",'2011 Survey responses'!EF85)","v":""},{"$f":"IF('2011 Survey responses'!EG85<0.5,\"\",'2011 Survey responses'!EG85)","v":""},{"$f":"IF('2011 Survey responses'!EH85<0.5,\"\",'2011 Survey responses'!EH85)","v":""},{"$f":"IF('2011 Survey responses'!EI85<0.5,\"\",'2011 Survey responses'!EI85)","v":""},{"$f":"IF('2011 Survey responses'!EJ85<0.5,\"\",'2011 Survey responses'!EJ85)","v":""},{"$f":"IF('2011 Survey responses'!EK85<0.5,\"\",'2011 Survey responses'!EK85)","v":""},{"$f":"IF('2011 Survey responses'!EL85<0.5,\"\",'2011 Survey responses'!EL85)","v":""},{"$f":"IF('2011 Survey responses'!EM85<0.5,\"\",'2011 Survey responses'!EM85)","v":""},{"$f":"IF('2011 Survey responses'!EN85<0.5,\"\",'2011 Survey responses'!EN85)","v":""},{"$f":"IF('2011 Survey responses'!EO85<0.5,\"\",'2011 Survey responses'!EO85)","v":""},{"$f":"IF('2011 Survey responses'!EP85<0.5,\"\",'2011 Survey responses'!EP85)","v":""},{"$f":"IF(('2011 Survey responses'!EW85+'2011 Survey responses'!EX85)>=2,AVERAGE('2011 Survey responses'!EW85,'2011 Survey responses'!EY85),\"\")","v":""},{"$f":"IF('2011 Survey responses'!EX85<0.5,\"\",'2011 Survey responses'!EX85)","v":""},{"$f":"IF('2011 Survey responses'!EZ85<0.5,\"\",'2011 Survey responses'!EZ85)","v":""},{"$f":"IF('2011 Survey responses'!FB85<0.5,\"\",'2011 Survey responses'!FB85)","v":""},{"$f":"IF('2011 Survey responses'!FD85<0.5,\"\",'2011 Survey responses'!FD85)","v":""},{"$f":"IF('2011 Survey responses'!FC85<0.5,\"\",'2011 Survey responses'!FC85)","v":""},{"$f":"IF(('2011 Survey responses'!EM85+'2011 Survey responses'!EN85)>=2,AVERAGE('2011 Survey responses'!EM85,'2011 Survey responses'!EN85),\"\")","v":""},{"$f":"IF('2011 Survey responses'!ES85<0.5,\"\",'2011 Survey responses'!ES85)","v":""},{"$f":"IF(('2011 Survey responses'!ET85+'2011 Survey responses'!EU85)>=2,AVERAGE('2011 Survey responses'!ET85,'2011 Survey responses'!EU85),\"\")","v":""},{"$f":"IF('2011 Survey responses'!EV85<0.5,\"\",'2011 Survey responses'!EV85)","v":""},{"$f":"IF('2011 Survey responses'!FA85<0.5,\"\",'2011 Survey responses'!FA85)","v":""},{"$f":"IF('2011 Survey responses'!ER85<0.5,\"\",'2011 Survey responses'!ER85)","v":""},{"$f":"IF(('2011 Survey responses'!EO85+'2011 Survey responses'!EP85)>=2,AVERAGE('2011 Survey responses'!EO85,'2011 Survey responses'!EP85),\"\")","v":""},{"$f":"IF('2011 Survey responses'!EQ85<0.5,\"\",'2011 Survey responses'!EQ85)","v":""},{"$f":"IF('2011 Survey responses'!ET85<0.5,\"\",'2011 Survey responses'!ET85)","v":""},{"$f":"IF('2011 Survey responses'!EU85<0.5,\"\",'2011 Survey responses'!EU85)","v":""},{"$f":"IF('2011 Survey responses'!EW85<0.5,\"\",'2011 Survey responses'!EW85)","v":""},{"$f":"IF('2011 Survey responses'!EY85<0.5,\"\",'2011 Survey responses'!EY85)","v":""},{"$f":"IF('2011 Survey responses'!FU85<0.5,\"\",'2011 Survey responses'!FU85)","v":""},{"$f":"IF(('2011 Survey responses'!FL85+'2011 Survey responses'!FM85)>=2,AVERAGE('2011 Survey responses'!FL85,'2011 Survey responses'!FM85),\"\")","v":""},{"$f":"IF(('2011 Survey responses'!FO85+'2011 Survey responses'!FQ85)>=2,AVERAGE('2011 Survey responses'!FO85,'2011 Survey responses'!FQ85),\"\")","v":""},{"$f":"IF('2011 Survey responses'!FJ85<0.5,\"\",'2011 Survey responses'!FJ85)","v":""},{"$f":"IF('2011 Survey responses'!FT85<0.5,\"\",'2011 Survey responses'!FT85)","v":""},{"$f":"IF('2011 Survey responses'!FR85<0.5,\"\",'2011 Survey responses'!FR85)","v":""},{"$f":"IF('2011 Survey responses'!FK85<0.5,\"\",'2011 Survey responses'!FK85)","v":""},{"$f":"IF('2011 Survey responses'!FP85<0.5,\"\",'2011 Survey responses'!FP85)","v":""},{"$f":"IF('2011 Survey responses'!FN85<0.5,\"\",'2011 Survey responses'!FN85)","v":""},{"$f":"IF(('2011 Survey responses'!FE85+'2011 Survey responses'!FF85)>=2,AVERAGE('2011 Survey responses'!FE85,'2011 Survey responses'!FF85),\"\")","v":""},{"$f":"IF('2011 Survey responses'!FS85<0.5,\"\",'2011 Survey responses'!FS85)","v":""},{"$f":"IF('2011 Survey responses'!FV85<0.5,\"\",'2011 Survey responses'!FV85)","v":""},{"$f":"IF(('2011 Survey responses'!FG85+'2011 Survey responses'!FH85)>=2,AVERAGE('2011 Survey responses'!FG85,'2011 Survey responses'!FH85),\"\")","v":""},{"$f":"IF('2011 Survey responses'!FI85<0.5,\"\",'2011 Survey responses'!FI85)","v":""},{"$f":"IF('2011 Survey responses'!FE85<0.5,\"\",'2011 Survey responses'!FE85)","v":""},{"$f":"IF('2011 Survey responses'!FF85<0.5,\"\",'2011 Survey responses'!FF85)","v":""},{"$f":"IF('2011 Survey responses'!FG85<0.5,\"\",'2011 Survey responses'!FG85)","v":""},{"$f":"IF('2011 Survey responses'!FH85<0.5,\"\",'2011 Survey responses'!FH85)","v":""},{"$f":"IF('2011 Survey responses'!FL85<0.5,\"\",'2011 Survey responses'!FL85)","v":""},{"$f":"IF('2011 Survey responses'!FM85<0.5,\"\",'2011 Survey responses'!FM85)","v":""},{"$f":"IF('2011 Survey responses'!FO85<0.5,\"\",'2011 Survey responses'!FO85)","v":""},{"$f":"IF('2011 Survey responses'!FQ85<0.5,\"\",'2011 Survey responses'!FQ85)","v":""}]
["Jamaica",{"$f":"IF(SUM(F86)<1,\"\",AVERAGEIF('2011 Survey responses'!B86:CP86,\">1\"))","v":5.0769230769230766},{"$f":"IF(SUM(F86)<1,\"\",AVERAGEIF('2011 Survey responses'!B86:AO86,\">1\"))","v":5.5862068965517242},{"$f":"IF(SUM(F86)<1,\"\",AVERAGEIF('2011 Survey responses'!B86:BV86,\">1\"))","v":5.166666666666667},{"$f":"IF(SUM(F86)<1,\"\",AVERAGEIF('2011 Survey responses'!V86:BV86,\">1\"))","v":5.1111111111111107},{"$f":"IF(SUM('2011 Survey responses'!B86:U86)<1,\"\",(AVERAGEIFS('2011 Survey responses'!B86:U86,'2011 Survey responses'!B86:U86,\">1\")))","v":5.333333333333333},{"$f":"IF(SUM('2011 Survey responses'!B86:H86)<1,\"\",(AVERAGEIFS('2011 Survey responses'!B86:H86,'2011 Survey responses'!B86:H86,\">1\")))","v":5.5},{"$f":"IF(SUM('2011 Survey responses'!I86:S86)<1,\"\",(AVERAGEIFS('2011 Survey responses'!I86:S86,'2011 Survey responses'!I86:S86,\">1\")))","v":5.2727272727272725},{"$f":"IF(SUM('2011 Survey responses'!T86:U86)<2.1,\"\",(AVERAGEIFS('2011 Survey responses'!T86:U86,'2011 Survey responses'!T86:U86,\">1\")))","v":""},{"$f":"IF(SUM('2011 Survey responses'!B86:C86)<2.1,\"\",((SUMIF('2011 Survey responses'!B86:C86,\">1\")+SUMIF('2011 Survey responses'!F86,\">1\"))/(COUNTIF('2011 Survey responses'!B86:C86,\">1\")+COUNTIF('2011 Survey responses'!F86,\">1\"))))","v":5.5},{"$f":"IF(SUM('2011 Survey responses'!D86:E86)<2.1,\"\",(AVERAGEIFS('2011 Survey responses'!D86:E86,'2011 Survey responses'!D86:E86,\">1\")))","v":6},{"$f":"IF(('2011 Survey responses'!B86+'2011 Survey responses'!D86)<2.1,\"\",((SUMIF('2011 Survey responses'!B86,\">1\")+SUMIF('2011 Survey responses'!D86,\">1\")+SUMIF('2011 Survey responses'!F86,\">1\")+SUMIF('2011 Survey responses'!K86,\">1\"))/(COUNTIF('2011 Survey responses'!B86,\">1\")+COUNTIF('2011 Survey responses'!D86,\">1\")+COUNTIF('2011 Survey responses'!F86,\">1\")+COUNTIF('2011 Survey responses'!K86,\">1\"))))","v":5.5},{"$f":"IF(SUM('2011 Survey responses'!G86:H86)<2.1,\"\",(AVERAGEIFS('2011 Survey responses'!G86:H86,'2011 Survey responses'!G86:H86,\">1\")))","v":5},{"$f":"IF(SUM('2011 Survey responses'!F86:G86)<1.5,\"\",MAX('2011 Survey responses'!F86,'2011 Survey responses'!G86))","v":5},{"$f":"IF(SUM('2011 Survey responses'!G86:H86)<1,\"\",MAX('2011 Survey responses'!G86,'2011 Survey responses'!H86))","v":5},{"$f":"IF(SUM('2011 Survey responses'!I86:L86)<4.1,\"\",(AVERAGEIFS('2011 Survey responses'!I86:L86,'2011 Survey responses'!I86:L86,\">1\")))","v":5},{"$f":"IF(SUM('2011 Survey responses'!M86:S86)<4.1,\"\",(AVERAGEIFS('2011 Survey responses'!M86:S86,'2011 Survey responses'!M86:S86,\">1\")))","v":5.4285714285714288},{"$f":"IF(SUM('2011 Survey responses'!T86:U86)<2.1,\"\",(AVERAGEIFS('2011 Survey responses'!T86:U86,'2011 Survey responses'!T86:U86,\">1\")))","v":""},{"$f":"IF(SUM('2011 Survey responses'!V86:AO86)<1,\"\",(AVERAGEIFS('2011 Survey responses'!V86:AO86,'2011 Survey responses'!V86:AO86,\">1\")))","v":5.8571428571428568},{"$f":"IF(SUM('2011 Survey responses'!V86:AA86)<1,\"\",(AVERAGEIFS('2011 Survey responses'!V86:AA86,'2011 Survey responses'!V86:AA86,\">1\")))","v":6},{"$f":"IF(SUM('2011 Survey responses'!AB86:AH86)<1,\"\",(AVERAGEIFS('2011 Survey responses'!AB86:AH86,'2011 Survey responses'!AB86:AH86,\">1\")))","v":5.833333333333333},{"$f":"IF(SUM('2011 Survey responses'!AI86:AO86)<1,\"\",(AVERAGEIFS('2011 Survey responses'!AI86:AO86,'2011 Survey responses'!AI86:AO86,\">1\")))","v":5.8},{"$f":"IF(('2011 Survey responses'!Y86+'2011 Survey responses'!AI86+'2011 Survey responses'!AK86)<3.1,\"\",((SUMIF('2011 Survey responses'!Y86,\">1\")+SUMIF('2011 Survey responses'!AI86,\">1\")+SUMIF('2011 Survey responses'!AK86,\">1\")+SUMIF('2011 Survey responses'!AM86,\">1\"))/(COUNTIF('2011 Survey responses'!Y86,\">1\")+COUNTIF('2011 Survey responses'!AI86,\">1\")+COUNTIF('2011 Survey responses'!AK86,\">1\")+COUNTIF('2011 Survey responses'!AM86,\">1\"))))","v":5.75},{"$f":"IF(('2011 Survey responses'!W86)<1.1,\"\",('2011 Survey responses'!W86))","v":6},{"$f":"IF(('2011 Survey responses'!Y86)<1.1,\"\",('2011 Survey responses'!Y86))","v":6},{"$f":"IF(('2011 Survey responses'!Z86)<1.1,\"\",('2011 Survey responses'!Z86))","v":""},{"$f":"IF(('2011 Survey responses'!V86+'2011 Survey responses'!X86+'2011 Survey responses'!AA86)<3.1,\"\",((SUMIF('2011 Survey responses'!V86,\">1\")+SUMIF('2011 Survey responses'!X86,\">1\")+SUMIF('2011 Survey responses'!AA86,\">1\"))/(COUNTIF('2011 Survey responses'!V86,\">1\")+COUNTIF('2011 Survey responses'!X86,\">1\")+COUNTIF('2011 Survey responses'!AA86,\">1\"))))","v":6},{"$f":"IF(('2011 Survey responses'!V86+'2011 Survey responses'!Y86+'2011 Survey responses'!AA86)<3.1,\"\",((SUMIF('2011 Survey responses'!V86,\">1\")+SUMIF('2011 Survey responses'!Y86,\">1\")+SUMIF('2011 Survey responses'!AA86,\">1\"))/(COUNTIF('2011 Survey responses'!V86,\">1\")+COUNTIF('2011 Survey responses'!Y86,\">1\")+COUNTIF('2011 Survey responses'!AA86,\">1\"))))","v":6},{"$f":"IF(SUM('2011 Survey responses'!AB86:AH86)<1,\"\",(AVERAGEIFS('2011 Survey responses'!AB86:AH86,'2011 Survey responses'!AB86:AH86,\">1\")))","v":5.833333333333333},{"$f":"IF(SUM('2011 Survey responses'!AI86:AO86)<7.1,\"\",(AVERAGEIFS('2011 Survey responses'!AI86:AO86,'2011 Survey responses'!AI86:AO86,\">1\")))","v":5.8},{"$f":"IF(('2011 Survey responses'!AH86)<1.1,\"\",('2011 Survey responses'!AH86))","v":""},{"$f":"IF(SUM('2011 Survey responses'!AP86:BV86)<1,\"\",(AVERAGEIFS('2011 Survey responses'!AP86:BV86,'2011 Survey responses'!AP86:BV86,\">1\")))","v":4.774193548387097},{"$f":"IF(SUM('2011 Survey responses'!AP86:AS86)<4.1,\"\",(AVERAGEIFS('2011 Survey responses'!AP86:AS86,'2011 Survey responses'!AP86:AS86,\">1\")))","v":5},{"$f":"IF(SUM('2011 Survey responses'!AT86:BF86)<1,\"\",(AVERAGEIFS('2011 Survey responses'!AT86:BF86,'2011 Survey responses'!AT86:BF86,\">1\")))","v":4.5},{"$f":"IF(SUM('2011 Survey responses'!BG86:BO86)<1,\"\",(AVERAGEIFS('2011 Survey responses'!BG86:BO86,'2011 Survey responses'!BG86:BO86,\">1\")))","v":5.75},{"$f":"IF(SUM('2011 Survey responses'!BP86:BS86)<1,\"\",(AVERAGEIFS('2011 Survey responses'!BP86:BS86,'2011 Survey responses'!BP86:BS86,\">1\")))","v":4.75},{"$f":"IF(SUM('2011 Survey responses'!BT86:BV86)<3.1,\"\",(AVERAGEIFS('2011 Survey responses'!BT86:BV86,'2011 Survey responses'!BT86:BV86,\">1\")))","v":3},{"$f":"IF(('2011 Survey responses'!AQ86+'2011 Survey responses'!AR86+'2011 Survey responses'!BG86)<3.1,\"\",((SUMIF('2011 Survey responses'!AQ86,\">1\")+SUMIF('2011 Survey responses'!AR86,\">1\")+SUMIF('2011 Survey responses'!BG86,\">1\"))/(COUNTIF('2011 Survey responses'!AQ86,\">1\")+COUNTIF('2011 Survey responses'!AR86,\">1\")+COUNTIF('2011 Survey responses'!BG86,\">1\"))))","v":6},{"$f":"IF(SUM('2011 Survey responses'!AP86:AS86)<4.1,\"\",(AVERAGEIFS('2011 Survey responses'!AP86:AS86,'2011 Survey responses'!AP86:AS86,\">1\")))","v":5},{"$f":"IF(('2011 Survey responses'!AU86+'2011 Survey responses'!AX86+'2011 Survey responses'!BA86+'2011 Survey responses'!BC86+'2011 Survey responses'!BD86)<5.1,\"\",(SUMIF('2011 Survey responses'!AU86,\">1\")+SUMIF('2011 Survey responses'!AX86,\">1\")+SUMIF('2011 Survey responses'!BA86,\">1\")+SUMIF('2011 Survey responses'!BC86,\">1\")+SUMIF('2011 Survey responses'!BD86,\">1\"))/(COUNTIF('2011 Survey responses'!AU86,\">1\")+COUNTIF('2011 Survey responses'!AX86,\">1\")+COUNTIF('2011 Survey responses'!BA86,\">1\")+COUNTIF('2011 Survey responses'!BC86,\">1\")+COUNTIF('2011 Survey responses'!BD86,\">1\")))","v":4.2},{"$f":"IF(('2011 Survey responses'!AT86)<1.1,\"\",('2011 Survey responses'!AT86))","v":6},{"$f":"IF(SUM('2011 Survey responses'!AV86:AW86)<2.1,\"\",(AVERAGEIFS('2011 Survey responses'!AV86:AW86,'2011 Survey responses'!AV86:AW86,\">1\")))","v":6},{"$f":"IF(('2011 Survey responses'!AW86+'2011 Survey responses'!AY86)<2.1,\"\",(SUMIF('2011 Survey responses'!AW86,\">1\")+SUMIF('2011 Survey responses'!AY86,\">1\"))/(COUNTIF('2011 Survey responses'!AW86,\">1\")+COUNTIF('2011 Survey responses'!AY86,\">1\")))","v":6},{"$f":"IF(('2011 Survey responses'!AZ86)<1.1,\"\",('2011 Survey responses'!AZ86))","v":2},2,2,2,2,{"$f":"IF(('2011 Survey responses'!BE86)<1.1,\"\",('2011 Survey responses'!BE86))","v":""},{"$f":"IF(('2011 Survey responses'!AY86+'2011 Survey responses'!BB86+'2011 Survey responses'!BF86)<3.1,\"\",(SUMIF('2011 Survey responses'!AY86,\">1\")+SUMIF('2011 Survey responses'!BB86,\">1\")+SUMIF('2011 Survey responses'!BF86,\">1\"))/(COUNTIF('2011 Survey responses'!AY86,\">1\")+COUNTIF('2011 Survey responses'!BB86,\">1\")+COUNTIF('2011 Survey responses'!BF86,\">1\")))","v":4.333333333333333},5.25,{"$f":"IF(SUM('2011 Survey responses'!BT86:BV86)<3.1,\"\",(AVERAGEIFS('2011 Survey responses'!BT86:BV86,'2011 Survey responses'!BT86:BV86,\">1\")))","v":3},{"$f":"IF(SUM('2011 Survey responses'!BW86:CP86)<1,\"\",(AVERAGEIFS('2011 Survey responses'!BW86:CP86,'2011 Survey responses'!BW86:CP86,\">1\")))","v":4.7777777777777777},{"$f":"IF(SUM('2011 Survey responses'!BW86:CF86)<1,\"\",(AVERAGEIFS('2011 Survey responses'!BW86:CF86,'2011 Survey responses'!BW86:CF86,\">1\")))","v":5.1111111111111107},{"$f":"IF(SUM('2011 Survey responses'!CG86:CP86)<1,\"\",(AVERAGEIFS('2011 Survey responses'!CG86:CP86,'2011 Survey responses'!CG86:CP86,\">1\")))","v":4.4444444444444446},{"$f":"IF(SUM('2011 Survey responses'!BX86:CF86)<1,\"\",(AVERAGEIFS('2011 Survey responses'!BX86:CF86,'2011 Survey responses'!BX86:CF86,\">1\")))","v":5.125},{"$f":"IF(SUM('2011 Survey responses'!CH86:CP86)<1,\"\",(AVERAGEIFS('2011 Survey responses'!CH86:CP86,'2011 Survey responses'!CH86:CP86,\">1\")))","v":4.375},{"$f":"IF(SUM('2011 Survey responses'!BW86:CP86)<1,\"\",(AVERAGEIFS('2011 Survey responses'!BW86:CP86,'2011 Survey responses'!BW86:CP86,\">1\")))","v":4.7777777777777777},{"$f":"IF(('2011 Survey responses'!BW86+'2011 Survey responses'!CG86)<2.1,\"\",(SUMIF('2011 Survey responses'!BW86,\">1\")+SUMIF('2011 Survey responses'!CG86,\">1\"))/(COUNTIF('2011 Survey responses'!BW86,\">1\")+COUNTIF('2011 Survey responses'!CG86,\">1\")))","v":5},{"$f":"IF(('2011 Survey responses'!BX86+'2011 Survey responses'!CH86)<2.1,\"\",(SUMIF('2011 Survey responses'!BX86,\">1\")+SUMIF('2011 Survey responses'!CH86,\">1\"))/(COUNTIF('2011 Survey responses'!BX86,\">1\")+COUNTIF('2011 Survey responses'!CH86,\">1\")))","v":5},{"$f":"IF(('2011 Survey responses'!BY86+'2011 Survey responses'!CI86)<2.1,\"\",(SUMIF('2011 Survey responses'!BY86,\">1\")+SUMIF('2011 Survey responses'!CI86,\">1\"))/(COUNTIF('2011 Survey responses'!BY86,\">1\")+COUNTIF('2011 Survey responses'!CI86,\">1\")))","v":4},{"$f":"IF('2011 Survey responses'!CQ86<0.5,\"\",'2011 Survey responses'!CQ86)","v":4},{"$f":"IF('2011 Survey responses'!CR86<0.5,\"\",'2011 Survey responses'!CR86)","v":4},{"$f":"IF('2011 Survey responses'!CS86<0.5,\"\",'2011 Survey responses'!CS86)","v":4},{"$f":"IF('2011 Survey responses'!CT86<0.5,\"\",'2011 Survey responses'!CT86)","v":5},{"$f":"IF('2011 Survey responses'!CU86<0.5,\"\",'2011 Survey responses'!CU86)","v":4},{"$f":"IF('2011 Survey responses'!CV86<0.5,\"\",'2011 Survey responses'!CV86)","v":1},{"$f":"IF(SUM('2011 Survey responses'!CW86:DL86)<1,\"\",(AVERAGE('2011 Survey responses'!CW86:DL86)))","v":3.5625},{"$f":"IF(SUM('2011 Survey responses'!CW86:CZ86)<1,\"\",(AVERAGE('2011 Survey responses'!CW86:CZ86)))","v":3.75},{"$f":"IF(SUM('2011 Survey responses'!DA86:DD86)<1,\"\",(AVERAGE('2011 Survey responses'!DA86:DD86)))","v":3.75},{"$f":"IF(SUM('2011 Survey responses'!DE86:DH86)<1,\"\",(AVERAGE('2011 Survey responses'!DE86:DH86)))","v":3},{"$f":"IF(SUM('2011 Survey responses'!DI86:DL86)<1,\"\",(AVERAGE('2011 Survey responses'!DI86:DL86)))","v":3.75},{"$f":"IF(('2011 Survey responses'!CW86+'2011 Survey responses'!DA86+'2011 Survey responses'!DE86+'2011 Survey responses'!DI86)<1,\"\",AVERAGE('2011 Survey responses'!CW86,'2011 Survey responses'!DA86,'2011 Survey responses'!DE86,'2011 Survey responses'!DI86))","v":3.75},{"$f":"IF(('2011 Survey responses'!CX86+'2011 Survey responses'!DB86+'2011 Survey responses'!DF86+'2011 Survey responses'!DJ86)<1,\"\",AVERAGE('2011 Survey responses'!CX86,'2011 Survey responses'!DB86,'2011 Survey responses'!DF86,'2011 Survey responses'!DJ86))","v":3.25},{"$f":"IF(('2011 Survey responses'!CY86+'2011 Survey responses'!DC86+'2011 Survey responses'!DG86+'2011 Survey responses'!DK86)<1,\"\",AVERAGE('2011 Survey responses'!CY86,'2011 Survey responses'!DC86,'2011 Survey responses'!DG86,'2011 Survey responses'!DK86))","v":3.5},{"$f":"IF(('2011 Survey responses'!CZ86+'2011 Survey responses'!DD86+'2011 Survey responses'!DH86+'2011 Survey responses'!DL86)<1,\"\",AVERAGE('2011 Survey responses'!CZ86,'2011 Survey responses'!DD86,'2011 Survey responses'!DH86,'2011 Survey responses'!DL86))","v":3.75},{"$f":"IF('2011 Survey responses'!CW86<0.5,\"\",'2011 Survey responses'!CW86)","v":4},{"$f":"IF('2011 Survey responses'!CX86<0.5,\"\",'2011 Survey responses'!CX86)","v":4},{"$f":"IF('2011 Survey responses'!CY86<0.5,\"\",'2011 Survey responses'!CY86)","v":3},{"$f":"IF('2011 Survey responses'!CZ86<0.5,\"\",'2011 Survey responses'!CZ86)","v":4},{"$f":"IF('2011 Survey responses'!DA86<0.5,\"\",'2011 Survey responses'!DA86)","v":4},{"$f":"IF('2011 Survey responses'!DB86<0.5,\"\",'2011 Survey responses'!DB86)","v":3},{"$f":"IF('2011 Survey responses'!DC86<0.5,\"\",'2011 Survey responses'!DC86)","v":4},{"$f":"IF('2011 Survey responses'!DD86<0.5,\"\",'2011 Survey responses'!DD86)","v":4},{"$f":"IF('2011 Survey responses'!DE86<0.5,\"\",'2011 Survey responses'!DE86)","v":3},{"$f":"IF('2011 Survey responses'!DF86<0.5,\"\",'2011 Survey responses'!DF86)","v":2},{"$f":"IF('2011 Survey responses'!DG86<0.5,\"\",'2011 Survey responses'!DG86)","v":4},{"$f":"IF('2011 Survey responses'!DH86<0.5,\"\",'2011 Survey responses'!DH86)","v":3},{"$f":"IF('2011 Survey responses'!DI86<0.5,\"\",'2011 Survey responses'!DI86)","v":4},{"$f":"IF('2011 Survey responses'!DJ86<0.5,\"\",'2011 Survey responses'!DJ86)","v":4},{"$f":"IF('2011 Survey responses'!DK86<0.5,\"\",'2011 Survey responses'!DK86)","v":3},{"$f":"IF('2011 Survey responses'!DL86<0.5,\"\",'2011 Survey responses'!DL86)","v":4},{"$f":"IF('2011 Survey responses'!DU86=4,4,IF('2011 Survey responses'!DU86=5,4,\"\"))","v":""},{"$f":"IF('2011 Survey responses'!DV86=4,3,IF('2011 Survey responses'!DV86=5,3,\"\"))","v":3},"",{"$f":"IF(CQ86=2,CQ86,IF(CO86=4,CO86,IF(CP86=3,CP86,IF('2011 Survey responses'!GT86=1,1,\"\"))))","v":3},{"$f":"IF('2011 Survey responses'!DO86<0.5,\"\",'2011 Survey responses'!DO86)","v":4},{"$f":"IF('2011 Survey responses'!DP86<0.5,\"\",'2011 Survey responses'!DP86)","v":5},{"$f":"IF('2011 Survey responses'!DQ86<0.5,\"\",'2011 Survey responses'!DQ86)","v":3},{"$f":"IF('2011 Survey responses'!DR86<0.5,\"\",'2011 Survey responses'!DR86)","v":4},{"$f":"IF('2011 Survey responses'!DS86<0.5,\"\",'2011 Survey responses'!DS86)","v":3},{"$f":"IF('2011 Survey responses'!DT86<0.5,\"\",'2011 Survey responses'!DT86)","v":""},{"$f":"IF('2011 Survey responses'!DU86<0.5,\"\",'2011 Survey responses'!DU86)","v":3},{"$f":"IF('2011 Survey responses'!DV86<0.5,\"\",'2011 Survey responses'!DV86)","v":4},{"$f":"IF('2011 Survey responses'!DW86<0.5,\"\",'2011 Survey responses'!DW86)","v":2},{"$f":"IF('2011 Survey responses'!DX86<0.5,\"\",'2011 Survey responses'!DX86)","v":1},{"$f":"IF('2011 Survey responses'!DY86<0.5,\"\",'2011 Survey responses'!DY86)","v":4},{"$f":"IF('2011 Survey responses'!DZ86<0.5,\"\",'2011 Survey responses'!DZ86)","v":5},{"$f":"IF('2011 Survey responses'!EA86<0.5,\"\",'2011 Survey responses'!EA86)","v":1},{"$f":"IF('2011 Survey responses'!EB86<0.5,\"\",'2011 Survey responses'!EB86)","v":1},{"$f":"IF('2011 Survey responses'!EC86<0.5,\"\",'2011 Survey responses'!EC86)","v":2},{"$f":"IF('2011 Survey responses'!ED86<0.5,\"\",'2011 Survey responses'!ED86)","v":3},{"$f":"IF('2011 Survey responses'!EE86<0.5,\"\",'2011 Survey responses'!EE86)","v":3},{"$f":"IF('2011 Survey responses'!EF86<0.5,\"\",'2011 Survey responses'!EF86)","v":3},{"$f":"IF('2011 Survey responses'!EG86<0.5,\"\",'2011 Survey responses'!EG86)","v":3},{"$f":"IF('2011 Survey responses'!EH86<0.5,\"\",'2011 Survey responses'!EH86)","v":2},{"$f":"IF('2011 Survey responses'!EI86<0.5,\"\",'2011 Survey responses'!EI86)","v":3},{"$f":"IF('2011 Survey responses'!EJ86<0.5,\"\",'2011 Survey responses'!EJ86)","v":3},{"$f":"IF('2011 Survey responses'!EK86<0.5,\"\",'2011 Survey responses'!EK86)","v":2},{"$f":"IF('2011 Survey responses'!EL86<0.5,\"\",'2011 Survey responses'!EL86)","v":1},{"$f":"IF('2011 Survey responses'!EM86<0.5,\"\",'2011 Survey responses'!EM86)","v":4},{"$f":"IF('2011 Survey responses'!EN86<0.5,\"\",'2011 Survey responses'!EN86)","v":1},{"$f":"IF('2011 Survey responses'!EO86<0.5,\"\",'2011 Survey responses'!EO86)","v":1},{"$f":"IF('2011 Survey responses'!EP86<0.5,\"\",'2011 Survey responses'!EP86)","v":1},{"$f":"IF(('2011 Survey responses'!EW86+'2011 Survey responses'!EX86)>=2,AVERAGE('2011 Survey responses'!EW86,'2011 Survey responses'!EY86),\"\")","v":4.5},{"$f":"IF('2011 Survey responses'!EX86<0.5,\"\",'2011 Survey responses'!EX86)","v":5},{"$f":"IF('2011 Survey responses'!EZ86<0.5,\"\",'2011 Survey responses'!EZ86)","v":1},{"$f":"IF('2011 Survey responses'!FB86<0.5,\"\",'2011 Survey responses'!FB86)","v":4},{"$f":"IF('2011 Survey responses'!FD86<0.5,\"\",'2011 Survey responses'!FD86)","v":4},{"$f":"IF('2011 Survey responses'!FC86<0.5,\"\",'2011 Survey responses'!FC86)","v":5},{"$f":"IF(('2011 Survey responses'!EM86+'2011 Survey responses'!EN86)>=2,AVERAGE('2011 Survey responses'!EM86,'2011 Survey responses'!EN86),\"\")","v":2.5},{"$f":"IF('2011 Survey responses'!ES86<0.5,\"\",'2011 Survey responses'!ES86)","v":1},{"$f":"IF(('2011 Survey responses'!ET86+'2011 Survey responses'!EU86)>=2,AVERAGE('2011 Survey responses'!ET86,'2011 Survey responses'!EU86),\"\")","v":2},{"$f":"IF('2011 Survey responses'!EV86<0.5,\"\",'2011 Survey responses'!EV86)","v":3},{"$f":"IF('2011 Survey responses'!FA86<0.5,\"\",'2011 Survey responses'!FA86)","v":1},{"$f":"IF('2011 Survey responses'!ER86<0.5,\"\",'2011 Survey responses'!ER86)","v":3},{"$f":"IF(('2011 Survey responses'!EO86+'2011 Survey responses'!EP86)>=2,AVERAGE('2011 Survey responses'!EO86,'2011 Survey responses'!EP86),\"\")","v":1},{"$f":"IF('2011 Survey responses'!EQ86<0.5,\"\",'2011 Survey responses'!EQ86)","v":2},{"$f":"IF('2011 Survey responses'!ET86<0.5,\"\",'2011 Survey responses'!ET86)","v":3},{"$f":"IF('2011 Survey responses'!EU86<0.5,\"\",'2011 Survey responses'!EU86)","v":1},{"$f":"IF('2011 Survey responses'!EW86<0.5,\"\",'2011 Survey responses'!EW86)","v":4},{"$f":"IF('2011 Survey responses'!EY86<0.5,\"\",'2011 Survey responses'!EY86)","v":5},{"$f":"IF('2011 Survey responses'!FU86<0.5,\"\",'2011 Survey responses'!FU86)","v":4},{"$f":"IF(('2011 Survey responses'!FL86+'2011 Survey responses'!FM86)>=2,AVERAGE('2011 Survey responses'!FL86,'2011 Survey responses'!FM86),\"\")","v":""},{"$f":"IF(('2011 Survey responses'!FO86+'2011 Survey responses'!FQ86)>=2,AVERAGE('2011 Survey responses'!FO86,'2011 Survey responses'!FQ86),\"\")","v":1.5},{"$f":"IF('2011 Survey responses'!FJ86<0.5,\"\",'2011 Survey responses'!FJ86)","v":1},{"$f":"IF('2011 Survey responses'!FT86<0.5,\"\",'2011 Survey responses'!FT86)","v":3},{"$f":"IF('2011 Survey responses'!FR86<0.5,\"\",'2011 Survey responses'!FR86)","v":2},{"$f":"IF('2011 Survey responses'!FK86<0.5,\"\",'2011 Survey responses'!FK86)","v":3},{"$f":"IF('2011 Survey responses'!FP86<0.5,\"\",'2011 Survey responses'!FP86)","v":2},{"$f":"IF('2011 Survey responses'!FN86<0.5,\"\",'2011 Survey responses'!FN86)","v":2},{"$f":"IF(('2011 Survey responses'!FE86+'2011 Survey responses'!FF86)>=2,AVERAGE('2011 Survey responses'!FE86,'2011 Survey responses'!FF86),\"\")","v":""},{"$f":"IF('2011 Survey responses'!FS86<0.5,\"\",'2011 Survey responses'!FS86)","v":1},{"$f":"IF('2011 Survey responses'!FV86<0.5,\"\",'2011 Survey responses'!FV86)","v":4},{"$f":"IF(('2011 Survey responses'!FG86+'2011 Survey responses'!FH86)>=2,AVERAGE('2011 Survey responses'!FG86,'2011 Survey responses'!FH86),\"\")","v":""},{"$f":"IF('2011 Survey responses'!FI86<0.5,\"\",'2011 Survey responses'!FI86)","v":""},{"$f":"IF('2011 Survey responses'!FE86<0.5,\"\",'2011 Survey responses'!FE86)","v":1},{"$f":"IF('2011 Survey responses'!FF86<0.5,\"\",'2011 Survey responses'!FF86)","v":""},{"$f":"IF('2011 Survey responses'!FG86<0.5,\"\",'2011 Survey responses'!FG86)","v":""},{"$f":"IF('2011 Survey responses'!FH86<0.5,\"\",'2011 Survey responses'!FH86)","v":""},{"$f":"IF('2011 Survey responses'!FL86<0.5,\"\",'2011 Survey responses'!FL86)","v":1},{"$f":"IF('2011 Survey responses'!FM86<0.5,\"\",'2011 Survey responses'!FM86)","v":""},{"$f":"IF('2011 Survey responses'!FO86<0.5,\"\",'2011 Survey responses'!FO86)","v":1},{"$f":"IF('2011 Survey responses'!FQ86<0.5,\"\",'2011 Survey responses'!FQ86)","v":2}]
["Japan",{"$f":"IF(SUM(F87)<1,\"\",AVERAGEIF('2011 Survey responses'!B87:CP87,\">1\"))","v":5.7631578947368425},{"$f":"IF(SUM(F87)<1,\"\",AVERAGEIF('2011 Survey responses'!B87:AO87,\">1\"))","v":5.774193548387097},{"$f":"IF(SUM(F87)<1,\"\",AVERAGEIF('2011 Survey responses'!B87:BV87,\">1\"))","v":5.8166666666666664},{"$f":"IF(SUM(F87)<1,\"\",AVERAGEIF('2011 Survey responses'!V87:BV87,\">1\"))","v":5.7555555555555555},{"$f":"IF(SUM('2011 Survey responses'!B87:U87)<1,\"\",(AVERAGEIFS('2011 Survey responses'!B87:U87,'2011 Survey responses'!B87:U87,\">1\")))","v":6},{"$f":"IF(SUM('2011 Survey responses'!B87:H87)<1,\"\",(AVERAGEIFS('2011 Survey responses'!B87:H87,'2011 Survey responses'!B87:H87,\">1\")))","v":6},{"$f":"IF(SUM('2011 Survey responses'!I87:S87)<1,\"\",(AVERAGEIFS('2011 Survey responses'!I87:S87,'2011 Survey responses'!I87:S87,\">1\")))","v":6},{"$f":"IF(SUM('2011 Survey responses'!T87:U87)<2.1,\"\",(AVERAGEIFS('2011 Survey responses'!T87:U87,'2011 Survey responses'!T87:U87,\">1\")))","v":""},{"$f":"IF(SUM('2011 Survey responses'!B87:C87)<2.1,\"\",((SUMIF('2011 Survey responses'!B87:C87,\">1\")+SUMIF('2011 Survey responses'!F87,\">1\"))/(COUNTIF('2011 Survey responses'!B87:C87,\">1\")+COUNTIF('2011 Survey responses'!F87,\">1\"))))","v":6},{"$f":"IF(SUM('2011 Survey responses'!D87:E87)<2.1,\"\",(AVERAGEIFS('2011 Survey responses'!D87:E87,'2011 Survey responses'!D87:E87,\">1\")))","v":6},{"$f":"IF(('2011 Survey responses'!B87+'2011 Survey responses'!D87)<2.1,\"\",((SUMIF('2011 Survey responses'!B87,\">1\")+SUMIF('2011 Survey responses'!D87,\">1\")+SUMIF('2011 Survey responses'!F87,\">1\")+SUMIF('2011 Survey responses'!K87,\">1\"))/(COUNTIF('2011 Survey responses'!B87,\">1\")+COUNTIF('2011 Survey responses'!D87,\">1\")+COUNTIF('2011 Survey responses'!F87,\">1\")+COUNTIF('2011 Survey responses'!K87,\">1\"))))","v":6},{"$f":"IF(SUM('2011 Survey responses'!G87:H87)<2.1,\"\",(AVERAGEIFS('2011 Survey responses'!G87:H87,'2011 Survey responses'!G87:H87,\">1\")))","v":6},{"$f":"IF(SUM('2011 Survey responses'!F87:G87)<1.5,\"\",MAX('2011 Survey responses'!F87,'2011 Survey responses'!G87))","v":6},{"$f":"IF(SUM('2011 Survey responses'!G87:H87)<1,\"\",MAX('2011 Survey responses'!G87,'2011 Survey responses'!H87))","v":6},{"$f":"IF(SUM('2011 Survey responses'!I87:L87)<4.1,\"\",(AVERAGEIFS('2011 Survey responses'!I87:L87,'2011 Survey responses'!I87:L87,\">1\")))","v":6},{"$f":"IF(SUM('2011 Survey responses'!M87:S87)<4.1,\"\",(AVERAGEIFS('2011 Survey responses'!M87:S87,'2011 Survey responses'!M87:S87,\">1\")))","v":6},{"$f":"IF(SUM('2011 Survey responses'!T87:U87)<2.1,\"\",(AVERAGEIFS('2011 Survey responses'!T87:U87,'2011 Survey responses'!T87:U87,\">1\")))","v":""},{"$f":"IF(SUM('2011 Survey responses'!V87:AO87)<1,\"\",(AVERAGEIFS('2011 Survey responses'!V87:AO87,'2011 Survey responses'!V87:AO87,\">1\")))","v":5.5625},{"$f":"IF(SUM('2011 Survey responses'!V87:AA87)<1,\"\",(AVERAGEIFS('2011 Survey responses'!V87:AA87,'2011 Survey responses'!V87:AA87,\">1\")))","v":5.2},{"$f":"IF(SUM('2011 Survey responses'!AB87:AH87)<1,\"\",(AVERAGEIFS('2011 Survey responses'!AB87:AH87,'2011 Survey responses'!AB87:AH87,\">1\")))","v":5.25},{"$f":"IF(SUM('2011 Survey responses'!AI87:AO87)<1,\"\",(AVERAGEIFS('2011 Survey responses'!AI87:AO87,'2011 Survey responses'!AI87:AO87,\">1\")))","v":6},{"$f":"IF(('2011 Survey responses'!Y87+'2011 Survey responses'!AI87+'2011 Survey responses'!AK87)<3.1,\"\",((SUMIF('2011 Survey responses'!Y87,\">1\")+SUMIF('2011 Survey responses'!AI87,\">1\")+SUMIF('2011 Survey responses'!AK87,\">1\")+SUMIF('2011 Survey responses'!AM87,\">1\"))/(COUNTIF('2011 Survey responses'!Y87,\">1\")+COUNTIF('2011 Survey responses'!AI87,\">1\")+COUNTIF('2011 Survey responses'!AK87,\">1\")+COUNTIF('2011 Survey responses'!AM87,\">1\"))))","v":6},{"$f":"IF(('2011 Survey responses'!W87)<1.1,\"\",('2011 Survey responses'!W87))","v":2},{"$f":"IF(('2011 Survey responses'!Y87)<1.1,\"\",('2011 Survey responses'!Y87))","v":6},{"$f":"IF(('2011 Survey responses'!Z87)<1.1,\"\",('2011 Survey responses'!Z87))","v":""},{"$f":"IF(('2011 Survey responses'!V87+'2011 Survey responses'!X87+'2011 Survey responses'!AA87)<3.1,\"\",((SUMIF('2011 Survey responses'!V87,\">1\")+SUMIF('2011 Survey responses'!X87,\">1\")+SUMIF('2011 Survey responses'!AA87,\">1\"))/(COUNTIF('2011 Survey responses'!V87,\">1\")+COUNTIF('2011 Survey responses'!X87,\">1\")+COUNTIF('2011 Survey responses'!AA87,\">1\"))))","v":6},{"$f":"IF(('2011 Survey responses'!V87+'2011 Survey responses'!Y87+'2011 Survey responses'!AA87)<3.1,\"\",((SUMIF('2011 Survey responses'!V87,\">1\")+SUMIF('2011 Survey responses'!Y87,\">1\")+SUMIF('2011 Survey responses'!AA87,\">1\"))/(COUNTIF('2011 Survey responses'!V87,\">1\")+COUNTIF('2011 Survey responses'!Y87,\">1\")+COUNTIF('2011 Survey responses'!AA87,\">1\"))))","v":6},{"$f":"IF(SUM('2011 Survey responses'!AB87:AH87)<1,\"\",(AVERAGEIFS('2011 Survey responses'!AB87:AH87,'2011 Survey responses'!AB87:AH87,\">1\")))","v":5.25},{"$f":"IF(SUM('2011 Survey responses'!AI87:AO87)<7.1,\"\",(AVERAGEIFS('2011 Survey responses'!AI87:AO87,'2011 Survey responses'!AI87:AO87,\">1\")))","v":6},{"$f":"IF(('2011 Survey responses'!AH87)<1.1,\"\",('2011 Survey responses'!AH87))","v":""},{"$f":"IF(SUM('2011 Survey responses'!AP87:BV87)<1,\"\",(AVERAGEIFS('2011 Survey responses'!AP87:BV87,'2011 Survey responses'!AP87:BV87,\">1\")))","v":5.8620689655172411},{"$f":"IF(SUM('2011 Survey responses'!AP87:AS87)<4.1,\"\",(AVERAGEIFS('2011 Survey responses'!AP87:AS87,'2011 Survey responses'!AP87:AS87,\">1\")))","v":6},{"$f":"IF(SUM('2011 Survey responses'!AT87:BF87)<1,\"\",(AVERAGEIFS('2011 Survey responses'!AT87:BF87,'2011 Survey responses'!AT87:BF87,\">1\")))","v":5.6363636363636367},{"$f":"IF(SUM('2011 Survey responses'!BG87:BO87)<1,\"\",(AVERAGEIFS('2011 Survey responses'!BG87:BO87,'2011 Survey responses'!BG87:BO87,\">1\")))","v":6},{"$f":"IF(SUM('2011 Survey responses'!BP87:BS87)<1,\"\",(AVERAGEIFS('2011 Survey responses'!BP87:BS87,'2011 Survey responses'!BP87:BS87,\">1\")))","v":6},{"$f":"IF(SUM('2011 Survey responses'!BT87:BV87)<3.1,\"\",(AVERAGEIFS('2011 Survey responses'!BT87:BV87,'2011 Survey responses'!BT87:BV87,\">1\")))","v":6},{"$f":"IF(('2011 Survey responses'!AQ87+'2011 Survey responses'!AR87+'2011 Survey responses'!BG87)<3.1,\"\",((SUMIF('2011 Survey responses'!AQ87,\">1\")+SUMIF('2011 Survey responses'!AR87,\">1\")+SUMIF('2011 Survey responses'!BG87,\">1\"))/(COUNTIF('2011 Survey responses'!AQ87,\">1\")+COUNTIF('2011 Survey responses'!AR87,\">1\")+COUNTIF('2011 Survey responses'!BG87,\">1\"))))","v":6},{"$f":"IF(SUM('2011 Survey responses'!AP87:AS87)<4.1,\"\",(AVERAGEIFS('2011 Survey responses'!AP87:AS87,'2011 Survey responses'!AP87:AS87,\">1\")))","v":6},{"$f":"IF(('2011 Survey responses'!AU87+'2011 Survey responses'!AX87+'2011 Survey responses'!BA87+'2011 Survey responses'!BC87+'2011 Survey responses'!BD87)<5.1,\"\",(SUMIF('2011 Survey responses'!AU87,\">1\")+SUMIF('2011 Survey responses'!AX87,\">1\")+SUMIF('2011 Survey responses'!BA87,\">1\")+SUMIF('2011 Survey responses'!BC87,\">1\")+SUMIF('2011 Survey responses'!BD87,\">1\"))/(COUNTIF('2011 Survey responses'!AU87,\">1\")+COUNTIF('2011 Survey responses'!AX87,\">1\")+COUNTIF('2011 Survey responses'!BA87,\">1\")+COUNTIF('2011 Survey responses'!BC87,\">1\")+COUNTIF('2011 Survey responses'!BD87,\">1\")))","v":6},{"$f":"IF(('2011 Survey responses'!AT87)<1.1,\"\",('2011 Survey responses'!AT87))","v":6},{"$f":"IF(SUM('2011 Survey responses'!AV87:AW87)<2.1,\"\",(AVERAGEIFS('2011 Survey responses'!AV87:AW87,'2011 Survey responses'!AV87:AW87,\">1\")))","v":4},{"$f":"IF(('2011 Survey responses'!AW87+'2011 Survey responses'!AY87)<2.1,\"\",(SUMIF('2011 Survey responses'!AW87,\">1\")+SUMIF('2011 Survey responses'!AY87,\">1\"))/(COUNTIF('2011 Survey responses'!AW87,\">1\")+COUNTIF('2011 Survey responses'!AY87,\">1\")))","v":6},{"$f":"IF(('2011 Survey responses'!AZ87)<1.1,\"\",('2011 Survey responses'!AZ87))","v":""},1,6,6,6,{"$f":"IF(('2011 Survey responses'!BE87)<1.1,\"\",('2011 Survey responses'!BE87))","v":6},{"$f":"IF(('2011 Survey responses'!AY87+'2011 Survey responses'!BB87+'2011 Survey responses'!BF87)<3.1,\"\",(SUMIF('2011 Survey responses'!AY87,\">1\")+SUMIF('2011 Survey responses'!BB87,\">1\")+SUMIF('2011 Survey responses'!BF87,\">1\"))/(COUNTIF('2011 Survey responses'!AY87,\">1\")+COUNTIF('2011 Survey responses'!BB87,\">1\")+COUNTIF('2011 Survey responses'!BF87,\">1\")))","v":6},6,{"$f":"IF(SUM('2011 Survey responses'!BT87:BV87)<3.1,\"\",(AVERAGEIFS('2011 Survey responses'!BT87:BV87,'2011 Survey responses'!BT87:BV87,\">1\")))","v":6},{"$f":"IF(SUM('2011 Survey responses'!BW87:CP87)<1,\"\",(AVERAGEIFS('2011 Survey responses'!BW87:CP87,'2011 Survey responses'!BW87:CP87,\">1\")))","v":5.5625},{"$f":"IF(SUM('2011 Survey responses'!BW87:CF87)<1,\"\",(AVERAGEIFS('2011 Survey responses'!BW87:CF87,'2011 Survey responses'!BW87:CF87,\">1\")))","v":5},{"$f":"IF(SUM('2011 Survey responses'!CG87:CP87)<1,\"\",(AVERAGEIFS('2011 Survey responses'!CG87:CP87,'2011 Survey responses'!CG87:CP87,\">1\")))","v":6},{"$f":"IF(SUM('2011 Survey responses'!BX87:CF87)<1,\"\",(AVERAGEIFS('2011 Survey responses'!BX87:CF87,'2011 Survey responses'!BX87:CF87,\">1\")))","v":5},{"$f":"IF(SUM('2011 Survey responses'!CH87:CP87)<1,\"\",(AVERAGEIFS('2011 Survey responses'!CH87:CP87,'2011 Survey responses'!CH87:CP87,\">1\")))","v":6},{"$f":"IF(SUM('2011 Survey responses'!BW87:CP87)<1,\"\",(AVERAGEIFS('2011 Survey responses'!BW87:CP87,'2011 Survey responses'!BW87:CP87,\">1\")))","v":5.5625},{"$f":"IF(('2011 Survey responses'!BW87+'2011 Survey responses'!CG87)<2.1,\"\",(SUMIF('2011 Survey responses'!BW87,\">1\")+SUMIF('2011 Survey responses'!CG87,\">1\"))/(COUNTIF('2011 Survey responses'!BW87,\">1\")+COUNTIF('2011 Survey responses'!CG87,\">1\")))","v":5.5},{"$f":"IF(('2011 Survey responses'!BX87+'2011 Survey responses'!CH87)<2.1,\"\",(SUMIF('2011 Survey responses'!BX87,\">1\")+SUMIF('2011 Survey responses'!CH87,\">1\"))/(COUNTIF('2011 Survey responses'!BX87,\">1\")+COUNTIF('2011 Survey responses'!CH87,\">1\")))","v":5.5},{"$f":"IF(('2011 Survey responses'!BY87+'2011 Survey responses'!CI87)<2.1,\"\",(SUMIF('2011 Survey responses'!BY87,\">1\")+SUMIF('2011 Survey responses'!CI87,\">1\"))/(COUNTIF('2011 Survey responses'!BY87,\">1\")+COUNTIF('2011 Survey responses'!CI87,\">1\")))","v":5.5},{"$f":"IF('2011 Survey responses'!CQ87<0.5,\"\",'2011 Survey responses'!CQ87)","v":3},{"$f":"IF('2011 Survey responses'!CR87<0.5,\"\",'2011 Survey responses'!CR87)","v":2},{"$f":"IF('2011 Survey responses'!CS87<0.5,\"\",'2011 Survey responses'!CS87)","v":2},{"$f":"IF('2011 Survey responses'!CT87<0.5,\"\",'2011 Survey responses'!CT87)","v":2},{"$f":"IF('2011 Survey responses'!CU87<0.5,\"\",'2011 Survey responses'!CU87)","v":1},{"$f":"IF('2011 Survey responses'!CV87<0.5,\"\",'2011 Survey responses'!CV87)","v":1},{"$f":"IF(SUM('2011 Survey responses'!CW87:DL87)<1,\"\",(AVERAGE('2011 Survey responses'!CW87:DL87)))","v":3.4375},{"$f":"IF(SUM('2011 Survey responses'!CW87:CZ87)<1,\"\",(AVERAGE('2011 Survey responses'!CW87:CZ87)))","v":3.5},{"$f":"IF(SUM('2011 Survey responses'!DA87:DD87)<1,\"\",(AVERAGE('2011 Survey responses'!DA87:DD87)))","v":3.25},{"$f":"IF(SUM('2011 Survey responses'!DE87:DH87)<1,\"\",(AVERAGE('2011 Survey responses'!DE87:DH87)))","v":3.5},{"$f":"IF(SUM('2011 Survey responses'!DI87:DL87)<1,\"\",(AVERAGE('2011 Survey responses'!DI87:DL87)))","v":3.5},{"$f":"IF(('2011 Survey responses'!CW87+'2011 Survey responses'!DA87+'2011 Survey responses'!DE87+'2011 Survey responses'!DI87)<1,\"\",AVERAGE('2011 Survey responses'!CW87,'2011 Survey responses'!DA87,'2011 Survey responses'!DE87,'2011 Survey responses'!DI87))","v":3},{"$f":"IF(('2011 Survey responses'!CX87+'2011 Survey responses'!DB87+'2011 Survey responses'!DF87+'2011 Survey responses'!DJ87)<1,\"\",AVERAGE('2011 Survey responses'!CX87,'2011 Survey responses'!DB87,'2011 Survey responses'!DF87,'2011 Survey responses'!DJ87))","v":3},{"$f":"IF(('2011 Survey responses'!CY87+'2011 Survey responses'!DC87+'2011 Survey responses'!DG87+'2011 Survey responses'!DK87)<1,\"\",AVERAGE('2011 Survey responses'!CY87,'2011 Survey responses'!DC87,'2011 Survey responses'!DG87,'2011 Survey responses'!DK87))","v":4.25},{"$f":"IF(('2011 Survey responses'!CZ87+'2011 Survey responses'!DD87+'2011 Survey responses'!DH87+'2011 Survey responses'!DL87)<1,\"\",AVERAGE('2011 Survey responses'!CZ87,'2011 Survey responses'!DD87,'2011 Survey responses'!DH87,'2011 Survey responses'!DL87))","v":3.5},{"$f":"IF('2011 Survey responses'!CW87<0.5,\"\",'2011 Survey responses'!CW87)","v":3},{"$f":"IF('2011 Survey responses'!CX87<0.5,\"\",'2011 Survey responses'!CX87)","v":3},{"$f":"IF('2011 Survey responses'!CY87<0.5,\"\",'2011 Survey responses'!CY87)","v":5},{"$f":"IF('2011 Survey responses'!CZ87<0.5,\"\",'2011 Survey responses'!CZ87)","v":3},{"$f":"IF('2011 Survey responses'!DA87<0.5,\"\",'2011 Survey responses'!DA87)","v":3},{"$f":"IF('2011 Survey responses'!DB87<0.5,\"\",'2011 Survey responses'!DB87)","v":3},{"$f":"IF('2011 Survey responses'!DC87<0.5,\"\",'2011 Survey responses'!DC87)","v":4},{"$f":"IF('2011 Survey responses'!DD87<0.5,\"\",'2011 Survey responses'!DD87)","v":3},{"$f":"IF('2011 Survey responses'!DE87<0.5,\"\",'2011 Survey responses'!DE87)","v":3},{"$f":"IF('2011 Survey responses'!DF87<0.5,\"\",'2011 Survey responses'!DF87)","v":3},{"$f":"IF('2011 Survey responses'!DG87<0.5,\"\",'2011 Survey responses'!DG87)","v":4},{"$f":"IF('2011 Survey responses'!DH87<0.5,\"\",'2011 Survey responses'!DH87)","v":4},{"$f":"IF('2011 Survey responses'!DI87<0.5,\"\",'2011 Survey responses'!DI87)","v":3},{"$f":"IF('2011 Survey responses'!DJ87<0.5,\"\",'2011 Survey responses'!DJ87)","v":3},{"$f":"IF('2011 Survey responses'!DK87<0.5,\"\",'2011 Survey responses'!DK87)","v":4},{"$f":"IF('2011 Survey responses'!DL87<0.5,\"\",'2011 Survey responses'!DL87)","v":4},{"$f":"IF('2011 Survey responses'!DU87=4,4,IF('2011 Survey responses'!DU87=5,4,\"\"))","v":4},{"$f":"IF('2011 Survey responses'!DV87=4,3,IF('2011 Survey responses'!DV87=5,3,\"\"))","v":3},2,{"$f":"IF(CQ87=2,CQ87,IF(CO87=4,CO87,IF(CP87=3,CP87,IF('2011 Survey responses'!GT87=1,1,\"\"))))","v":2},{"$f":"IF('2011 Survey responses'!DO87<0.5,\"\",'2011 Survey responses'!DO87)","v":1},{"$f":"IF('2011 Survey responses'!DP87<0.5,\"\",'2011 Survey responses'!DP87)","v":1},{"$f":"IF('2011 Survey responses'!DQ87<0.5,\"\",'2011 Survey responses'!DQ87)","v":1},{"$f":"IF('2011 Survey responses'!DR87<0.5,\"\",'2011 Survey responses'!DR87)","v":1},{"$f":"IF('2011 Survey responses'!DS87<0.5,\"\",'2011 Survey responses'!DS87)","v":1},{"$f":"IF('2011 Survey responses'!DT87<0.5,\"\",'2011 Survey responses'!DT87)","v":1},{"$f":"IF('2011 Survey responses'!DU87<0.5,\"\",'2011 Survey responses'!DU87)","v":4},{"$f":"IF('2011 Survey responses'!DV87<0.5,\"\",'2011 Survey responses'!DV87)","v":4},{"$f":"IF('2011 Survey responses'!DW87<0.5,\"\",'2011 Survey responses'!DW87)","v":4},{"$f":"IF('2011 Survey responses'!DX87<0.5,\"\",'2011 Survey responses'!DX87)","v":1},{"$f":"IF('2011 Survey responses'!DY87<0.5,\"\",'2011 Survey responses'!DY87)","v":2},{"$f":"IF('2011 Survey responses'!DZ87<0.5,\"\",'2011 Survey responses'!DZ87)","v":2},{"$f":"IF('2011 Survey responses'!EA87<0.5,\"\",'2011 Survey responses'!EA87)","v":2},{"$f":"IF('2011 Survey responses'!EB87<0.5,\"\",'2011 Survey responses'!EB87)","v":2},{"$f":"IF('2011 Survey responses'!EC87<0.5,\"\",'2011 Survey responses'!EC87)","v":2},{"$f":"IF('2011 Survey responses'!ED87<0.5,\"\",'2011 Survey responses'!ED87)","v":2},{"$f":"IF('2011 Survey responses'!EE87<0.5,\"\",'2011 Survey responses'!EE87)","v":4},{"$f":"IF('2011 Survey responses'!EF87<0.5,\"\",'2011 Survey responses'!EF87)","v":2},{"$f":"IF('2011 Survey responses'!EG87<0.5,\"\",'2011 Survey responses'!EG87)","v":3},{"$f":"IF('2011 Survey responses'!EH87<0.5,\"\",'2011 Survey responses'!EH87)","v":3},{"$f":"IF('2011 Survey responses'!EI87<0.5,\"\",'2011 Survey responses'!EI87)","v":3},{"$f":"IF('2011 Survey responses'!EJ87<0.5,\"\",'2011 Survey responses'!EJ87)","v":3},{"$f":"IF('2011 Survey responses'!EK87<0.5,\"\",'2011 Survey responses'!EK87)","v":2},{"$f":"IF('2011 Survey responses'!EL87<0.5,\"\",'2011 Survey responses'!EL87)","v":4},{"$f":"IF('2011 Survey responses'!EM87<0.5,\"\",'2011 Survey responses'!EM87)","v":1},{"$f":"IF('2011 Survey responses'!EN87<0.5,\"\",'2011 Survey responses'!EN87)","v":1},{"$f":"IF('2011 Survey responses'!EO87<0.5,\"\",'2011 Survey responses'!EO87)","v":1},{"$f":"IF('2011 Survey responses'!EP87<0.5,\"\",'2011 Survey responses'!EP87)","v":1},{"$f":"IF(('2011 Survey responses'!EW87+'2011 Survey responses'!EX87)>=2,AVERAGE('2011 Survey responses'!EW87,'2011 Survey responses'!EY87),\"\")","v":1},{"$f":"IF('2011 Survey responses'!EX87<0.5,\"\",'2011 Survey responses'!EX87)","v":1},{"$f":"IF('2011 Survey responses'!EZ87<0.5,\"\",'2011 Survey responses'!EZ87)","v":1},{"$f":"IF('2011 Survey responses'!FB87<0.5,\"\",'2011 Survey responses'!FB87)","v":5},{"$f":"IF('2011 Survey responses'!FD87<0.5,\"\",'2011 Survey responses'!FD87)","v":3},{"$f":"IF('2011 Survey responses'!FC87<0.5,\"\",'2011 Survey responses'!FC87)","v":4},{"$f":"IF(('2011 Survey responses'!EM87+'2011 Survey responses'!EN87)>=2,AVERAGE('2011 Survey responses'!EM87,'2011 Survey responses'!EN87),\"\")","v":1},{"$f":"IF('2011 Survey responses'!ES87<0.5,\"\",'2011 Survey responses'!ES87)","v":3},{"$f":"IF(('2011 Survey responses'!ET87+'2011 Survey responses'!EU87)>=2,AVERAGE('2011 Survey responses'!ET87,'2011 Survey responses'!EU87),\"\")","v":3},{"$f":"IF('2011 Survey responses'!EV87<0.5,\"\",'2011 Survey responses'!EV87)","v":1},{"$f":"IF('2011 Survey responses'!FA87<0.5,\"\",'2011 Survey responses'!FA87)","v":1},{"$f":"IF('2011 Survey responses'!ER87<0.5,\"\",'2011 Survey responses'!ER87)","v":3},{"$f":"IF(('2011 Survey responses'!EO87+'2011 Survey responses'!EP87)>=2,AVERAGE('2011 Survey responses'!EO87,'2011 Survey responses'!EP87),\"\")","v":1},{"$f":"IF('2011 Survey responses'!EQ87<0.5,\"\",'2011 Survey responses'!EQ87)","v":2},{"$f":"IF('2011 Survey responses'!ET87<0.5,\"\",'2011 Survey responses'!ET87)","v":3},{"$f":"IF('2011 Survey responses'!EU87<0.5,\"\",'2011 Survey responses'!EU87)","v":3},{"$f":"IF('2011 Survey responses'!EW87<0.5,\"\",'2011 Survey responses'!EW87)","v":1},{"$f":"IF('2011 Survey responses'!EY87<0.5,\"\",'2011 Survey responses'!EY87)","v":1},{"$f":"IF('2011 Survey responses'!FU87<0.5,\"\",'2011 Survey responses'!FU87)","v":3},{"$f":"IF(('2011 Survey responses'!FL87+'2011 Survey responses'!FM87)>=2,AVERAGE('2011 Survey responses'!FL87,'2011 Survey responses'!FM87),\"\")","v":4},{"$f":"IF(('2011 Survey responses'!FO87+'2011 Survey responses'!FQ87)>=2,AVERAGE('2011 Survey responses'!FO87,'2011 Survey responses'!FQ87),\"\")","v":3},{"$f":"IF('2011 Survey responses'!FJ87<0.5,\"\",'2011 Survey responses'!FJ87)","v":3},{"$f":"IF('2011 Survey responses'!FT87<0.5,\"\",'2011 Survey responses'!FT87)","v":3},{"$f":"IF('2011 Survey responses'!FR87<0.5,\"\",'2011 Survey responses'!FR87)","v":3},{"$f":"IF('2011 Survey responses'!FK87<0.5,\"\",'2011 Survey responses'!FK87)","v":4},{"$f":"IF('2011 Survey responses'!FP87<0.5,\"\",'2011 Survey responses'!FP87)","v":3},{"$f":"IF('2011 Survey responses'!FN87<0.5,\"\",'2011 Survey responses'!FN87)","v":3},{"$f":"IF(('2011 Survey responses'!FE87+'2011 Survey responses'!FF87)>=2,AVERAGE('2011 Survey responses'!FE87,'2011 Survey responses'!FF87),\"\")","v":3},{"$f":"IF('2011 Survey responses'!FS87<0.5,\"\",'2011 Survey responses'!FS87)","v":3},{"$f":"IF('2011 Survey responses'!FV87<0.5,\"\",'2011 Survey responses'!FV87)","v":3},{"$f":"IF(('2011 Survey responses'!FG87+'2011 Survey responses'!FH87)>=2,AVERAGE('2011 Survey responses'!FG87,'2011 Survey responses'!FH87),\"\")","v":3},{"$f":"IF('2011 Survey responses'!FI87<0.5,\"\",'2011 Survey responses'!FI87)","v":3},{"$f":"IF('2011 Survey responses'!FE87<0.5,\"\",'2011 Survey responses'!FE87)","v":3},{"$f":"IF('2011 Survey responses'!FF87<0.5,\"\",'2011 Survey responses'!FF87)","v":3},{"$f":"IF('2011 Survey responses'!FG87<0.5,\"\",'2011 Survey responses'!FG87)","v":3},{"$f":"IF('2011 Survey responses'!FH87<0.5,\"\",'2011 Survey responses'!FH87)","v":3},{"$f":"IF('2011 Survey responses'!FL87<0.5,\"\",'2011 Survey responses'!FL87)","v":4},{"$f":"IF('2011 Survey responses'!FM87<0.5,\"\",'2011 Survey responses'!FM87)","v":4},{"$f":"IF('2011 Survey responses'!FO87<0.5,\"\",'2011 Survey responses'!FO87)","v":3},{"$f":"IF('2011 Survey responses'!FQ87<0.5,\"\",'2011 Survey responses'!FQ87)","v":3}]
["Jordan",{"$f":"IF(SUM(F88)<1,\"\",AVERAGEIF('2011 Survey responses'!B88:CP88,\">1\"))","v":4.7444444444444445},{"$f":"IF(SUM(F88)<1,\"\",AVERAGEIF('2011 Survey responses'!B88:AO88,\">1\"))","v":5.1891891891891895},{"$f":"IF(SUM(F88)<1,\"\",AVERAGEIF('2011 Survey responses'!B88:BV88,\">1\"))","v":4.8428571428571425},{"$f":"IF(SUM(F88)<1,\"\",AVERAGEIF('2011 Survey responses'!V88:BV88,\">1\"))","v":4.9615384615384617},{"$f":"IF(SUM('2011 Survey responses'!B88:U88)<1,\"\",(AVERAGEIFS('2011 Survey responses'!B88:U88,'2011 Survey responses'!B88:U88,\">1\")))","v":4.5},{"$f":"IF(SUM('2011 Survey responses'!B88:H88)<1,\"\",(AVERAGEIFS('2011 Survey responses'!B88:H88,'2011 Survey responses'!B88:H88,\">1\")))","v":5.333333333333333},{"$f":"IF(SUM('2011 Survey responses'!I88:S88)<1,\"\",(AVERAGEIFS('2011 Survey responses'!I88:S88,'2011 Survey responses'!I88:S88,\">1\")))","v":3.7},{"$f":"IF(SUM('2011 Survey responses'!T88:U88)<2.1,\"\",(AVERAGEIFS('2011 Survey responses'!T88:U88,'2011 Survey responses'!T88:U88,\">1\")))","v":6},{"$f":"IF(SUM('2011 Survey responses'!B88:C88)<2.1,\"\",((SUMIF('2011 Survey responses'!B88:C88,\">1\")+SUMIF('2011 Survey responses'!F88,\">1\"))/(COUNTIF('2011 Survey responses'!B88:C88,\">1\")+COUNTIF('2011 Survey responses'!F88,\">1\"))))","v":6},{"$f":"IF(SUM('2011 Survey responses'!D88:E88)<2.1,\"\",(AVERAGEIFS('2011 Survey responses'!D88:E88,'2011 Survey responses'!D88:E88,\">1\")))","v":2},{"$f":"IF(('2011 Survey responses'!B88+'2011 Survey responses'!D88)<2.1,\"\",((SUMIF('2011 Survey responses'!B88,\">1\")+SUMIF('2011 Survey responses'!D88,\">1\")+SUMIF('2011 Survey responses'!F88,\">1\")+SUMIF('2011 Survey responses'!K88,\">1\"))/(COUNTIF('2011 Survey responses'!B88,\">1\")+COUNTIF('2011 Survey responses'!D88,\">1\")+COUNTIF('2011 Survey responses'!F88,\">1\")+COUNTIF('2011 Survey responses'!K88,\">1\"))))","v":4.75},{"$f":"IF(SUM('2011 Survey responses'!G88:H88)<2.1,\"\",(AVERAGEIFS('2011 Survey responses'!G88:H88,'2011 Survey responses'!G88:H88,\">1\")))","v":6},{"$f":"IF(SUM('2011 Survey responses'!F88:G88)<1.5,\"\",MAX('2011 Survey responses'!F88,'2011 Survey responses'!G88))","v":6},{"$f":"IF(SUM('2011 Survey responses'!G88:H88)<1,\"\",MAX('2011 Survey responses'!G88,'2011 Survey responses'!H88))","v":6},{"$f":"IF(SUM('2011 Survey responses'!I88:L88)<4.1,\"\",(AVERAGEIFS('2011 Survey responses'!I88:L88,'2011 Survey responses'!I88:L88,\">1\")))","v":4.75},{"$f":"IF(SUM('2011 Survey responses'!M88:S88)<4.1,\"\",(AVERAGEIFS('2011 Survey responses'!M88:S88,'2011 Survey responses'!M88:S88,\">1\")))","v":3},{"$f":"IF(SUM('2011 Survey responses'!T88:U88)<2.1,\"\",(AVERAGEIFS('2011 Survey responses'!T88:U88,'2011 Survey responses'!T88:U88,\">1\")))","v":6},{"$f":"IF(SUM('2011 Survey responses'!V88:AO88)<1,\"\",(AVERAGEIFS('2011 Survey responses'!V88:AO88,'2011 Survey responses'!V88:AO88,\">1\")))","v":5.8421052631578947},{"$f":"IF(SUM('2011 Survey responses'!V88:AA88)<1,\"\",(AVERAGEIFS('2011 Survey responses'!V88:AA88,'2011 Survey responses'!V88:AA88,\">1\")))","v":5.4},{"$f":"IF(SUM('2011 Survey responses'!AB88:AH88)<1,\"\",(AVERAGEIFS('2011 Survey responses'!AB88:AH88,'2011 Survey responses'!AB88:AH88,\">1\")))","v":6},{"$f":"IF(SUM('2011 Survey responses'!AI88:AO88)<1,\"\",(AVERAGEIFS('2011 Survey responses'!AI88:AO88,'2011 Survey responses'!AI88:AO88,\">1\")))","v":6},{"$f":"IF(('2011 Survey responses'!Y88+'2011 Survey responses'!AI88+'2011 Survey responses'!AK88)<3.1,\"\",((SUMIF('2011 Survey responses'!Y88,\">1\")+SUMIF('2011 Survey responses'!AI88,\">1\")+SUMIF('2011 Survey responses'!AK88,\">1\")+SUMIF('2011 Survey responses'!AM88,\">1\"))/(COUNTIF('2011 Survey responses'!Y88,\">1\")+COUNTIF('2011 Survey responses'!AI88,\">1\")+COUNTIF('2011 Survey responses'!AK88,\">1\")+COUNTIF('2011 Survey responses'!AM88,\">1\"))))","v":5.75},{"$f":"IF(('2011 Survey responses'!W88)<1.1,\"\",('2011 Survey responses'!W88))","v":6},{"$f":"IF(('2011 Survey responses'!Y88)<1.1,\"\",('2011 Survey responses'!Y88))","v":5},{"$f":"IF(('2011 Survey responses'!Z88)<1.1,\"\",('2011 Survey responses'!Z88))","v":5},{"$f":"IF(('2011 Survey responses'!V88+'2011 Survey responses'!X88+'2011 Survey responses'!AA88)<3.1,\"\",((SUMIF('2011 Survey responses'!V88,\">1\")+SUMIF('2011 Survey responses'!X88,\">1\")+SUMIF('2011 Survey responses'!AA88,\">1\"))/(COUNTIF('2011 Survey responses'!V88,\">1\")+COUNTIF('2011 Survey responses'!X88,\">1\")+COUNTIF('2011 Survey responses'!AA88,\">1\"))))","v":5.5},{"$f":"IF(('2011 Survey responses'!V88+'2011 Survey responses'!Y88+'2011 Survey responses'!AA88)<3.1,\"\",((SUMIF('2011 Survey responses'!V88,\">1\")+SUMIF('2011 Survey responses'!Y88,\">1\")+SUMIF('2011 Survey responses'!AA88,\">1\"))/(COUNTIF('2011 Survey responses'!V88,\">1\")+COUNTIF('2011 Survey responses'!Y88,\">1\")+COUNTIF('2011 Survey responses'!AA88,\">1\"))))","v":5.333333333333333},{"$f":"IF(SUM('2011 Survey responses'!AB88:AH88)<1,\"\",(AVERAGEIFS('2011 Survey responses'!AB88:AH88,'2011 Survey responses'!AB88:AH88,\">1\")))","v":6},{"$f":"IF(SUM('2011 Survey responses'!AI88:AO88)<7.1,\"\",(AVERAGEIFS('2011 Survey responses'!AI88:AO88,'2011 Survey responses'!AI88:AO88,\">1\")))","v":6},{"$f":"IF(('2011 Survey responses'!AH88)<1.1,\"\",('2011 Survey responses'!AH88))","v":6},{"$f":"IF(SUM('2011 Survey responses'!AP88:BV88)<1,\"\",(AVERAGEIFS('2011 Survey responses'!AP88:BV88,'2011 Survey responses'!AP88:BV88,\">1\")))","v":4.4545454545454541},{"$f":"IF(SUM('2011 Survey responses'!AP88:AS88)<4.1,\"\",(AVERAGEIFS('2011 Survey responses'!AP88:AS88,'2011 Survey responses'!AP88:AS88,\">1\")))","v":4.5},{"$f":"IF(SUM('2011 Survey responses'!AT88:BF88)<1,\"\",(AVERAGEIFS('2011 Survey responses'!AT88:BF88,'2011 Survey responses'!AT88:BF88,\">1\")))","v":4.6923076923076925},{"$f":"IF(SUM('2011 Survey responses'!BG88:BO88)<1,\"\",(AVERAGEIFS('2011 Survey responses'!BG88:BO88,'2011 Survey responses'!BG88:BO88,\">1\")))","v":4.666666666666667},{"$f":"IF(SUM('2011 Survey responses'!BP88:BS88)<1,\"\",(AVERAGEIFS('2011 Survey responses'!BP88:BS88,'2011 Survey responses'!BP88:BS88,\">1\")))","v":4},{"$f":"IF(SUM('2011 Survey responses'!BT88:BV88)<3.1,\"\",(AVERAGEIFS('2011 Survey responses'!BT88:BV88,'2011 Survey responses'!BT88:BV88,\">1\")))","v":3.3333333333333335},{"$f":"IF(('2011 Survey responses'!AQ88+'2011 Survey responses'!AR88+'2011 Survey responses'!BG88)<3.1,\"\",((SUMIF('2011 Survey responses'!AQ88,\">1\")+SUMIF('2011 Survey responses'!AR88,\">1\")+SUMIF('2011 Survey responses'!BG88,\">1\"))/(COUNTIF('2011 Survey responses'!AQ88,\">1\")+COUNTIF('2011 Survey responses'!AR88,\">1\")+COUNTIF('2011 Survey responses'!BG88,\">1\"))))","v":5},{"$f":"IF(SUM('2011 Survey responses'!AP88:AS88)<4.1,\"\",(AVERAGEIFS('2011 Survey responses'!AP88:AS88,'2011 Survey responses'!AP88:AS88,\">1\")))","v":4.5},{"$f":"IF(('2011 Survey responses'!AU88+'2011 Survey responses'!AX88+'2011 Survey responses'!BA88+'2011 Survey responses'!BC88+'2011 Survey responses'!BD88)<5.1,\"\",(SUMIF('2011 Survey responses'!AU88,\">1\")+SUMIF('2011 Survey responses'!AX88,\">1\")+SUMIF('2011 Survey responses'!BA88,\">1\")+SUMIF('2011 Survey responses'!BC88,\">1\")+SUMIF('2011 Survey responses'!BD88,\">1\"))/(COUNTIF('2011 Survey responses'!AU88,\">1\")+COUNTIF('2011 Survey responses'!AX88,\">1\")+COUNTIF('2011 Survey responses'!BA88,\">1\")+COUNTIF('2011 Survey responses'!BC88,\">1\")+COUNTIF('2011 Survey responses'!BD88,\">1\")))","v":4.4000000000000004},{"$f":"IF(('2011 Survey responses'!AT88)<1.1,\"\",('2011 Survey responses'!AT88))","v":5},{"$f":"IF(SUM('2011 Survey responses'!AV88:AW88)<2.1,\"\",(AVERAGEIFS('2011 Survey responses'!AV88:AW88,'2011 Survey responses'!AV88:AW88,\">1\")))","v":5.5},{"$f":"IF(('2011 Survey responses'!AW88+'2011 Survey responses'!AY88)<2.1,\"\",(SUMIF('2011 Survey responses'!AW88,\">1\")+SUMIF('2011 Survey responses'!AY88,\">1\"))/(COUNTIF('2011 Survey responses'!AW88,\">1\")+COUNTIF('2011 Survey responses'!AY88,\">1\")))","v":5.5},{"$f":"IF(('2011 Survey responses'!AZ88)<1.1,\"\",('2011 Survey responses'!AZ88))","v":6},6,6,5,4,{"$f":"IF(('2011 Survey responses'!BE88)<1.1,\"\",('2011 Survey responses'!BE88))","v":4},{"$f":"IF(('2011 Survey responses'!AY88+'2011 Survey responses'!BB88+'2011 Survey responses'!BF88)<3.1,\"\",(SUMIF('2011 Survey responses'!AY88,\">1\")+SUMIF('2011 Survey responses'!BB88,\">1\")+SUMIF('2011 Survey responses'!BF88,\">1\"))/(COUNTIF('2011 Survey responses'!AY88,\">1\")+COUNTIF('2011 Survey responses'!BB88,\">1\")+COUNTIF('2011 Survey responses'!BF88,\">1\")))","v":4.333333333333333},4.3333333333333339,{"$f":"IF(SUM('2011 Survey responses'!BT88:BV88)<3.1,\"\",(AVERAGEIFS('2011 Survey responses'!BT88:BV88,'2011 Survey responses'!BT88:BV88,\">1\")))","v":3.3333333333333335},{"$f":"IF(SUM('2011 Survey responses'!BW88:CP88)<1,\"\",(AVERAGEIFS('2011 Survey responses'!BW88:CP88,'2011 Survey responses'!BW88:CP88,\">1\")))","v":4.4000000000000004},{"$f":"IF(SUM('2011 Survey responses'!BW88:CF88)<1,\"\",(AVERAGEIFS('2011 Survey responses'!BW88:CF88,'2011 Survey responses'!BW88:CF88,\">1\")))","v":4.5},{"$f":"IF(SUM('2011 Survey responses'!CG88:CP88)<1,\"\",(AVERAGEIFS('2011 Survey responses'!CG88:CP88,'2011 Survey responses'!CG88:CP88,\">1\")))","v":4.3},{"$f":"IF(SUM('2011 Survey responses'!BX88:CF88)<1,\"\",(AVERAGEIFS('2011 Survey responses'!BX88:CF88,'2011 Survey responses'!BX88:CF88,\">1\")))","v":4.4444444444444446},{"$f":"IF(SUM('2011 Survey responses'!CH88:CP88)<1,\"\",(AVERAGEIFS('2011 Survey responses'!CH88:CP88,'2011 Survey responses'!CH88:CP88,\">1\")))","v":4.2222222222222223},{"$f":"IF(SUM('2011 Survey responses'!BW88:CP88)<1,\"\",(AVERAGEIFS('2011 Survey responses'!BW88:CP88,'2011 Survey responses'!BW88:CP88,\">1\")))","v":4.4000000000000004},{"$f":"IF(('2011 Survey responses'!BW88+'2011 Survey responses'!CG88)<2.1,\"\",(SUMIF('2011 Survey responses'!BW88,\">1\")+SUMIF('2011 Survey responses'!CG88,\">1\"))/(COUNTIF('2011 Survey responses'!BW88,\">1\")+COUNTIF('2011 Survey responses'!CG88,\">1\")))","v":5},{"$f":"IF(('2011 Survey responses'!BX88+'2011 Survey responses'!CH88)<2.1,\"\",(SUMIF('2011 Survey responses'!BX88,\">1\")+SUMIF('2011 Survey responses'!CH88,\">1\"))/(COUNTIF('2011 Survey responses'!BX88,\">1\")+COUNTIF('2011 Survey responses'!CH88,\">1\")))","v":5},{"$f":"IF(('2011 Survey responses'!BY88+'2011 Survey responses'!CI88)<2.1,\"\",(SUMIF('2011 Survey responses'!BY88,\">1\")+SUMIF('2011 Survey responses'!CI88,\">1\"))/(COUNTIF('2011 Survey responses'!BY88,\">1\")+COUNTIF('2011 Survey responses'!CI88,\">1\")))","v":5},{"$f":"IF('2011 Survey responses'!CQ88<0.5,\"\",'2011 Survey responses'!CQ88)","v":4},{"$f":"IF('2011 Survey responses'!CR88<0.5,\"\",'2011 Survey responses'!CR88)","v":4},{"$f":"IF('2011 Survey responses'!CS88<0.5,\"\",'2011 Survey responses'!CS88)","v":4},{"$f":"IF('2011 Survey responses'!CT88<0.5,\"\",'2011 Survey responses'!CT88)","v":5},{"$f":"IF('2011 Survey responses'!CU88<0.5,\"\",'2011 Survey responses'!CU88)","v":5},{"$f":"IF('2011 Survey responses'!CV88<0.5,\"\",'2011 Survey responses'!CV88)","v":2},{"$f":"IF(SUM('2011 Survey responses'!CW88:DL88)<1,\"\",(AVERAGE('2011 Survey responses'!CW88:DL88)))","v":3.875},{"$f":"IF(SUM('2011 Survey responses'!CW88:CZ88)<1,\"\",(AVERAGE('2011 Survey responses'!CW88:CZ88)))","v":4},{"$f":"IF(SUM('2011 Survey responses'!DA88:DD88)<1,\"\",(AVERAGE('2011 Survey responses'!DA88:DD88)))","v":3.75},{"$f":"IF(SUM('2011 Survey responses'!DE88:DH88)<1,\"\",(AVERAGE('2011 Survey responses'!DE88:DH88)))","v":3.5},{"$f":"IF(SUM('2011 Survey responses'!DI88:DL88)<1,\"\",(AVERAGE('2011 Survey responses'!DI88:DL88)))","v":4.25},{"$f":"IF(('2011 Survey responses'!CW88+'2011 Survey responses'!DA88+'2011 Survey responses'!DE88+'2011 Survey responses'!DI88)<1,\"\",AVERAGE('2011 Survey responses'!CW88,'2011 Survey responses'!DA88,'2011 Survey responses'!DE88,'2011 Survey responses'!DI88))","v":4},{"$f":"IF(('2011 Survey responses'!CX88+'2011 Survey responses'!DB88+'2011 Survey responses'!DF88+'2011 Survey responses'!DJ88)<1,\"\",AVERAGE('2011 Survey responses'!CX88,'2011 Survey responses'!DB88,'2011 Survey responses'!DF88,'2011 Survey responses'!DJ88))","v":3.5},{"$f":"IF(('2011 Survey responses'!CY88+'2011 Survey responses'!DC88+'2011 Survey responses'!DG88+'2011 Survey responses'!DK88)<1,\"\",AVERAGE('2011 Survey responses'!CY88,'2011 Survey responses'!DC88,'2011 Survey responses'!DG88,'2011 Survey responses'!DK88))","v":3.75},{"$f":"IF(('2011 Survey responses'!CZ88+'2011 Survey responses'!DD88+'2011 Survey responses'!DH88+'2011 Survey responses'!DL88)<1,\"\",AVERAGE('2011 Survey responses'!CZ88,'2011 Survey responses'!DD88,'2011 Survey responses'!DH88,'2011 Survey responses'!DL88))","v":4.25},{"$f":"IF('2011 Survey responses'!CW88<0.5,\"\",'2011 Survey responses'!CW88)","v":4},{"$f":"IF('2011 Survey responses'!CX88<0.5,\"\",'2011 Survey responses'!CX88)","v":3},{"$f":"IF('2011 Survey responses'!CY88<0.5,\"\",'2011 Survey responses'!CY88)","v":4},{"$f":"IF('2011 Survey responses'!CZ88<0.5,\"\",'2011 Survey responses'!CZ88)","v":5},{"$f":"IF('2011 Survey responses'!DA88<0.5,\"\",'2011 Survey responses'!DA88)","v":3},{"$f":"IF('2011 Survey responses'!DB88<0.5,\"\",'2011 Survey responses'!DB88)","v":4},{"$f":"IF('2011 Survey responses'!DC88<0.5,\"\",'2011 Survey responses'!DC88)","v":4},{"$f":"IF('2011 Survey responses'!DD88<0.5,\"\",'2011 Survey responses'!DD88)","v":4},{"$f":"IF('2011 Survey responses'!DE88<0.5,\"\",'2011 Survey responses'!DE88)","v":4},{"$f":"IF('2011 Survey responses'!DF88<0.5,\"\",'2011 Survey responses'!DF88)","v":3},{"$f":"IF('2011 Survey responses'!DG88<0.5,\"\",'2011 Survey responses'!DG88)","v":3},{"$f":"IF('2011 Survey responses'!DH88<0.5,\"\",'2011 Survey responses'!DH88)","v":4},{"$f":"IF('2011 Survey responses'!DI88<0.5,\"\",'2011 Survey responses'!DI88)","v":5},{"$f":"IF('2011 Survey responses'!DJ88<0.5,\"\",'2011 Survey responses'!DJ88)","v":4},{"$f":"IF('2011 Survey responses'!DK88<0.5,\"\",'2011 Survey responses'!DK88)","v":4},{"$f":"IF('2011 Survey responses'!DL88<0.5,\"\",'2011 Survey responses'!DL88)","v":4},{"$f":"IF('2011 Survey responses'!DU88=4,4,IF('2011 Survey responses'!DU88=5,4,\"\"))","v":""},{"$f":"IF('2011 Survey responses'!DV88=4,3,IF('2011 Survey responses'!DV88=5,3,\"\"))","v":3},"",{"$f":"IF(CQ88=2,CQ88,IF(CO88=4,CO88,IF(CP88=3,CP88,IF('2011 Survey responses'!GT88=1,1,\"\"))))","v":3},{"$f":"IF('2011 Survey responses'!DO88<0.5,\"\",'2011 Survey responses'!DO88)","v":3},{"$f":"IF('2011 Survey responses'!DP88<0.5,\"\",'2011 Survey responses'!DP88)","v":5},{"$f":"IF('2011 Survey responses'!DQ88<0.5,\"\",'2011 Survey responses'!DQ88)","v":3},{"$f":"IF('2011 Survey responses'!DR88<0.5,\"\",'2011 Survey responses'!DR88)","v":3},{"$f":"IF('2011 Survey responses'!DS88<0.5,\"\",'2011 Survey responses'!DS88)","v":2},{"$f":"IF('2011 Survey responses'!DT88<0.5,\"\",'2011 Survey responses'!DT88)","v":3},{"$f":"IF('2011 Survey responses'!DU88<0.5,\"\",'2011 Survey responses'!DU88)","v":1},{"$f":"IF('2011 Survey responses'!DV88<0.5,\"\",'2011 Survey responses'!DV88)","v":5},{"$f":"IF('2011 Survey responses'!DW88<0.5,\"\",'2011 Survey responses'!DW88)","v":5},{"$f":"IF('2011 Survey responses'!DX88<0.5,\"\",'2011 Survey responses'!DX88)","v":5},{"$f":"IF('2011 Survey responses'!DY88<0.5,\"\",'2011 Survey responses'!DY88)","v":5},{"$f":"IF('2011 Survey responses'!DZ88<0.5,\"\",'2011 Survey responses'!DZ88)","v":4},{"$f":"IF('2011 Survey responses'!EA88<0.5,\"\",'2011 Survey responses'!EA88)","v":2},{"$f":"IF('2011 Survey responses'!EB88<0.5,\"\",'2011 Survey responses'!EB88)","v":4},{"$f":"IF('2011 Survey responses'!EC88<0.5,\"\",'2011 Survey responses'!EC88)","v":3},{"$f":"IF('2011 Survey responses'!ED88<0.5,\"\",'2011 Survey responses'!ED88)","v":3},{"$f":"IF('2011 Survey responses'!EE88<0.5,\"\",'2011 Survey responses'!EE88)","v":3},{"$f":"IF('2011 Survey responses'!EF88<0.5,\"\",'2011 Survey responses'!EF88)","v":3},{"$f":"IF('2011 Survey responses'!EG88<0.5,\"\",'2011 Survey responses'!EG88)","v":3},{"$f":"IF('2011 Survey responses'!EH88<0.5,\"\",'2011 Survey responses'!EH88)","v":5},{"$f":"IF('2011 Survey responses'!EI88<0.5,\"\",'2011 Survey responses'!EI88)","v":5},{"$f":"IF('2011 Survey responses'!EJ88<0.5,\"\",'2011 Survey responses'!EJ88)","v":5},{"$f":"IF('2011 Survey responses'!EK88<0.5,\"\",'2011 Survey responses'!EK88)","v":5},{"$f":"IF('2011 Survey responses'!EL88<0.5,\"\",'2011 Survey responses'!EL88)","v":5},{"$f":"IF('2011 Survey responses'!EM88<0.5,\"\",'2011 Survey responses'!EM88)","v":4},{"$f":"IF('2011 Survey responses'!EN88<0.5,\"\",'2011 Survey responses'!EN88)","v":4},{"$f":"IF('2011 Survey responses'!EO88<0.5,\"\",'2011 Survey responses'!EO88)","v":4},{"$f":"IF('2011 Survey responses'!EP88<0.5,\"\",'2011 Survey responses'!EP88)","v":4},{"$f":"IF(('2011 Survey responses'!EW88+'2011 Survey responses'!EX88)>=2,AVERAGE('2011 Survey responses'!EW88,'2011 Survey responses'!EY88),\"\")","v":4},{"$f":"IF('2011 Survey responses'!EX88<0.5,\"\",'2011 Survey responses'!EX88)","v":4},{"$f":"IF('2011 Survey responses'!EZ88<0.5,\"\",'2011 Survey responses'!EZ88)","v":4},{"$f":"IF('2011 Survey responses'!FB88<0.5,\"\",'2011 Survey responses'!FB88)","v":3},{"$f":"IF('2011 Survey responses'!FD88<0.5,\"\",'2011 Survey responses'!FD88)","v":4},{"$f":"IF('2011 Survey responses'!FC88<0.5,\"\",'2011 Survey responses'!FC88)","v":4},{"$f":"IF(('2011 Survey responses'!EM88+'2011 Survey responses'!EN88)>=2,AVERAGE('2011 Survey responses'!EM88,'2011 Survey responses'!EN88),\"\")","v":4},{"$f":"IF('2011 Survey responses'!ES88<0.5,\"\",'2011 Survey responses'!ES88)","v":4},{"$f":"IF(('2011 Survey responses'!ET88+'2011 Survey responses'!EU88)>=2,AVERAGE('2011 Survey responses'!ET88,'2011 Survey responses'!EU88),\"\")","v":4},{"$f":"IF('2011 Survey responses'!EV88<0.5,\"\",'2011 Survey responses'!EV88)","v":4},{"$f":"IF('2011 Survey responses'!FA88<0.5,\"\",'2011 Survey responses'!FA88)","v":4},{"$f":"IF('2011 Survey responses'!ER88<0.5,\"\",'2011 Survey responses'!ER88)","v":4},{"$f":"IF(('2011 Survey responses'!EO88+'2011 Survey responses'!EP88)>=2,AVERAGE('2011 Survey responses'!EO88,'2011 Survey responses'!EP88),\"\")","v":4},{"$f":"IF('2011 Survey responses'!EQ88<0.5,\"\",'2011 Survey responses'!EQ88)","v":4},{"$f":"IF('2011 Survey responses'!ET88<0.5,\"\",'2011 Survey responses'!ET88)","v":4},{"$f":"IF('2011 Survey responses'!EU88<0.5,\"\",'2011 Survey responses'!EU88)","v":4},{"$f":"IF('2011 Survey responses'!EW88<0.5,\"\",'2011 Survey responses'!EW88)","v":4},{"$f":"IF('2011 Survey responses'!EY88<0.5,\"\",'2011 Survey responses'!EY88)","v":4},{"$f":"IF('2011 Survey responses'!FU88<0.5,\"\",'2011 Survey responses'!FU88)","v":4},{"$f":"IF(('2011 Survey responses'!FL88+'2011 Survey responses'!FM88)>=2,AVERAGE('2011 Survey responses'!FL88,'2011 Survey responses'!FM88),\"\")","v":4},{"$f":"IF(('2011 Survey responses'!FO88+'2011 Survey responses'!FQ88)>=2,AVERAGE('2011 Survey responses'!FO88,'2011 Survey responses'!FQ88),\"\")","v":4},{"$f":"IF('2011 Survey responses'!FJ88<0.5,\"\",'2011 Survey responses'!FJ88)","v":4},{"$f":"IF('2011 Survey responses'!FT88<0.5,\"\",'2011 Survey responses'!FT88)","v":3},{"$f":"IF('2011 Survey responses'!FR88<0.5,\"\",'2011 Survey responses'!FR88)","v":4},{"$f":"IF('2011 Survey responses'!FK88<0.5,\"\",'2011 Survey responses'!FK88)","v":4},{"$f":"IF('2011 Survey responses'!FP88<0.5,\"\",'2011 Survey responses'!FP88)","v":4},{"$f":"IF('2011 Survey responses'!FN88<0.5,\"\",'2011 Survey responses'!FN88)","v":4},{"$f":"IF(('2011 Survey responses'!FE88+'2011 Survey responses'!FF88)>=2,AVERAGE('2011 Survey responses'!FE88,'2011 Survey responses'!FF88),\"\")","v":5},{"$f":"IF('2011 Survey responses'!FS88<0.5,\"\",'2011 Survey responses'!FS88)","v":3},{"$f":"IF('2011 Survey responses'!FV88<0.5,\"\",'2011 Survey responses'!FV88)","v":4},{"$f":"IF(('2011 Survey responses'!FG88+'2011 Survey responses'!FH88)>=2,AVERAGE('2011 Survey responses'!FG88,'2011 Survey responses'!FH88),\"\")","v":5},{"$f":"IF('2011 Survey responses'!FI88<0.5,\"\",'2011 Survey responses'!FI88)","v":5},{"$f":"IF('2011 Survey responses'!FE88<0.5,\"\",'2011 Survey responses'!FE88)","v":5},{"$f":"IF('2011 Survey responses'!FF88<0.5,\"\",'2011 Survey responses'!FF88)","v":5},{"$f":"IF('2011 Survey responses'!FG88<0.5,\"\",'2011 Survey responses'!FG88)","v":5},{"$f":"IF('2011 Survey responses'!FH88<0.5,\"\",'2011 Survey responses'!FH88)","v":5},{"$f":"IF('2011 Survey responses'!FL88<0.5,\"\",'2011 Survey responses'!FL88)","v":4},{"$f":"IF('2011 Survey responses'!FM88<0.5,\"\",'2011 Survey responses'!FM88)","v":4},{"$f":"IF('2011 Survey responses'!FO88<0.5,\"\",'2011 Survey responses'!FO88)","v":4},{"$f":"IF('2011 Survey responses'!FQ88<0.5,\"\",'2011 Survey responses'!FQ88)","v":4}]
["Kazakhstan",{"$f":"IF(SUM(F89)<1,\"\",AVERAGEIF('2011 Survey responses'!B89:CP89,\">1\"))","v":""},{"$f":"IF(SUM(F89)<1,\"\",AVERAGEIF('2011 Survey responses'!B89:AO89,\">1\"))","v":""},{"$f":"IF(SUM(F89)<1,\"\",AVERAGEIF('2011 Survey responses'!B89:BV89,\">1\"))","v":""},{"$f":"IF(SUM(F89)<1,\"\",AVERAGEIF('2011 Survey responses'!V89:BV89,\">1\"))","v":""},{"$f":"IF(SUM('2011 Survey responses'!B89:U89)<1,\"\",(AVERAGEIFS('2011 Survey responses'!B89:U89,'2011 Survey responses'!B89:U89,\">1\")))","v":""},{"$f":"IF(SUM('2011 Survey responses'!B89:H89)<1,\"\",(AVERAGEIFS('2011 Survey responses'!B89:H89,'2011 Survey responses'!B89:H89,\">1\")))","v":""},{"$f":"IF(SUM('2011 Survey responses'!I89:S89)<1,\"\",(AVERAGEIFS('2011 Survey responses'!I89:S89,'2011 Survey responses'!I89:S89,\">1\")))","v":""},{"$f":"IF(SUM('2011 Survey responses'!T89:U89)<2.1,\"\",(AVERAGEIFS('2011 Survey responses'!T89:U89,'2011 Survey responses'!T89:U89,\">1\")))","v":""},{"$f":"IF(SUM('2011 Survey responses'!B89:C89)<2.1,\"\",((SUMIF('2011 Survey responses'!B89:C89,\">1\")+SUMIF('2011 Survey responses'!F89,\">1\"))/(COUNTIF('2011 Survey responses'!B89:C89,\">1\")+COUNTIF('2011 Survey responses'!F89,\">1\"))))","v":""},{"$f":"IF(SUM('2011 Survey responses'!D89:E89)<2.1,\"\",(AVERAGEIFS('2011 Survey responses'!D89:E89,'2011 Survey responses'!D89:E89,\">1\")))","v":""},{"$f":"IF(('2011 Survey responses'!B89+'2011 Survey responses'!D89)<2.1,\"\",((SUMIF('2011 Survey responses'!B89,\">1\")+SUMIF('2011 Survey responses'!D89,\">1\")+SUMIF('2011 Survey responses'!F89,\">1\")+SUMIF('2011 Survey responses'!K89,\">1\"))/(COUNTIF('2011 Survey responses'!B89,\">1\")+COUNTIF('2011 Survey responses'!D89,\">1\")+COUNTIF('2011 Survey responses'!F89,\">1\")+COUNTIF('2011 Survey responses'!K89,\">1\"))))","v":""},{"$f":"IF(SUM('2011 Survey responses'!G89:H89)<2.1,\"\",(AVERAGEIFS('2011 Survey responses'!G89:H89,'2011 Survey responses'!G89:H89,\">1\")))","v":""},{"$f":"IF(SUM('2011 Survey responses'!F89:G89)<1.5,\"\",MAX('2011 Survey responses'!F89,'2011 Survey responses'!G89))","v":""},{"$f":"IF(SUM('2011 Survey responses'!G89:H89)<1,\"\",MAX('2011 Survey responses'!G89,'2011 Survey responses'!H89))","v":""},{"$f":"IF(SUM('2011 Survey responses'!I89:L89)<4.1,\"\",(AVERAGEIFS('2011 Survey responses'!I89:L89,'2011 Survey responses'!I89:L89,\">1\")))","v":""},{"$f":"IF(SUM('2011 Survey responses'!M89:S89)<4.1,\"\",(AVERAGEIFS('2011 Survey responses'!M89:S89,'2011 Survey responses'!M89:S89,\">1\")))","v":""},{"$f":"IF(SUM('2011 Survey responses'!T89:U89)<2.1,\"\",(AVERAGEIFS('2011 Survey responses'!T89:U89,'2011 Survey responses'!T89:U89,\">1\")))","v":""},{"$f":"IF(SUM('2011 Survey responses'!V89:AO89)<1,\"\",(AVERAGEIFS('2011 Survey responses'!V89:AO89,'2011 Survey responses'!V89:AO89,\">1\")))","v":""},{"$f":"IF(SUM('2011 Survey responses'!V89:AA89)<1,\"\",(AVERAGEIFS('2011 Survey responses'!V89:AA89,'2011 Survey responses'!V89:AA89,\">1\")))","v":""},{"$f":"IF(SUM('2011 Survey responses'!AB89:AH89)<1,\"\",(AVERAGEIFS('2011 Survey responses'!AB89:AH89,'2011 Survey responses'!AB89:AH89,\">1\")))","v":""},{"$f":"IF(SUM('2011 Survey responses'!AI89:AO89)<1,\"\",(AVERAGEIFS('2011 Survey responses'!AI89:AO89,'2011 Survey responses'!AI89:AO89,\">1\")))","v":""},{"$f":"IF(('2011 Survey responses'!Y89+'2011 Survey responses'!AI89+'2011 Survey responses'!AK89)<3.1,\"\",((SUMIF('2011 Survey responses'!Y89,\">1\")+SUMIF('2011 Survey responses'!AI89,\">1\")+SUMIF('2011 Survey responses'!AK89,\">1\")+SUMIF('2011 Survey responses'!AM89,\">1\"))/(COUNTIF('2011 Survey responses'!Y89,\">1\")+COUNTIF('2011 Survey responses'!AI89,\">1\")+COUNTIF('2011 Survey responses'!AK89,\">1\")+COUNTIF('2011 Survey responses'!AM89,\">1\"))))","v":""},{"$f":"IF(('2011 Survey responses'!W89)<1.1,\"\",('2011 Survey responses'!W89))","v":""},{"$f":"IF(('2011 Survey responses'!Y89)<1.1,\"\",('2011 Survey responses'!Y89))","v":""},{"$f":"IF(('2011 Survey responses'!Z89)<1.1,\"\",('2011 Survey responses'!Z89))","v":""},{"$f":"IF(('2011 Survey responses'!V89+'2011 Survey responses'!X89+'2011 Survey responses'!AA89)<3.1,\"\",((SUMIF('2011 Survey responses'!V89,\">1\")+SUMIF('2011 Survey responses'!X89,\">1\")+SUMIF('2011 Survey responses'!AA89,\">1\"))/(COUNTIF('2011 Survey responses'!V89,\">1\")+COUNTIF('2011 Survey responses'!X89,\">1\")+COUNTIF('2011 Survey responses'!AA89,\">1\"))))","v":""},{"$f":"IF(('2011 Survey responses'!V89+'2011 Survey responses'!Y89+'2011 Survey responses'!AA89)<3.1,\"\",((SUMIF('2011 Survey responses'!V89,\">1\")+SUMIF('2011 Survey responses'!Y89,\">1\")+SUMIF('2011 Survey responses'!AA89,\">1\"))/(COUNTIF('2011 Survey responses'!V89,\">1\")+COUNTIF('2011 Survey responses'!Y89,\">1\")+COUNTIF('2011 Survey responses'!AA89,\">1\"))))","v":""},{"$f":"IF(SUM('2011 Survey responses'!AB89:AH89)<1,\"\",(AVERAGEIFS('2011 Survey responses'!AB89:AH89,'2011 Survey responses'!AB89:AH89,\">1\")))","v":""},{"$f":"IF(SUM('2011 Survey responses'!AI89:AO89)<7.1,\"\",(AVERAGEIFS('2011 Survey responses'!AI89:AO89,'2011 Survey responses'!AI89:AO89,\">1\")))","v":""},{"$f":"IF(('2011 Survey responses'!AH89)<1.1,\"\",('2011 Survey responses'!AH89))","v":""},{"$f":"IF(SUM('2011 Survey responses'!AP89:BV89)<1,\"\",(AVERAGEIFS('2011 Survey responses'!AP89:BV89,'2011 Survey responses'!AP89:BV89,\">1\")))","v":""},{"$f":"IF(SUM('2011 Survey responses'!AP89:AS89)<4.1,\"\",(AVERAGEIFS('2011 Survey responses'!AP89:AS89,'2011 Survey responses'!AP89:AS89,\">1\")))","v":""},{"$f":"IF(SUM('2011 Survey responses'!AT89:BF89)<1,\"\",(AVERAGEIFS('2011 Survey responses'!AT89:BF89,'2011 Survey responses'!AT89:BF89,\">1\")))","v":""},{"$f":"IF(SUM('2011 Survey responses'!BG89:BO89)<1,\"\",(AVERAGEIFS('2011 Survey responses'!BG89:BO89,'2011 Survey responses'!BG89:BO89,\">1\")))","v":""},{"$f":"IF(SUM('2011 Survey responses'!BP89:BS89)<1,\"\",(AVERAGEIFS('2011 Survey responses'!BP89:BS89,'2011 Survey responses'!BP89:BS89,\">1\")))","v":""},{"$f":"IF(SUM('2011 Survey responses'!BT89:BV89)<3.1,\"\",(AVERAGEIFS('2011 Survey responses'!BT89:BV89,'2011 Survey responses'!BT89:BV89,\">1\")))","v":""},{"$f":"IF(('2011 Survey responses'!AQ89+'2011 Survey responses'!AR89+'2011 Survey responses'!BG89)<3.1,\"\",((SUMIF('2011 Survey responses'!AQ89,\">1\")+SUMIF('2011 Survey responses'!AR89,\">1\")+SUMIF('2011 Survey responses'!BG89,\">1\"))/(COUNTIF('2011 Survey responses'!AQ89,\">1\")+COUNTIF('2011 Survey responses'!AR89,\">1\")+COUNTIF('2011 Survey responses'!BG89,\">1\"))))","v":""},{"$f":"IF(SUM('2011 Survey responses'!AP89:AS89)<4.1,\"\",(AVERAGEIFS('2011 Survey responses'!AP89:AS89,'2011 Survey responses'!AP89:AS89,\">1\")))","v":""},{"$f":"IF(('2011 Survey responses'!AU89+'2011 Survey responses'!AX89+'2011 Survey responses'!BA89+'2011 Survey responses'!BC89+'2011 Survey responses'!BD89)<5.1,\"\",(SUMIF('2011 Survey responses'!AU89,\">1\")+SUMIF('2011 Survey responses'!AX89,\">1\")+SUMIF('2011 Survey responses'!BA89,\">1\")+SUMIF('2011 Survey responses'!BC89,\">1\")+SUMIF('2011 Survey responses'!BD89,\">1\"))/(COUNTIF('2011 Survey responses'!AU89,\">1\")+COUNTIF('2011 Survey responses'!AX89,\">1\")+COUNTIF('2011 Survey responses'!BA89,\">1\")+COUNTIF('2011 Survey responses'!BC89,\">1\")+COUNTIF('2011 Survey responses'!BD89,\">1\")))","v":""},{"$f":"IF(('2011 Survey responses'!AT89)<1.1,\"\",('2011 Survey responses'!AT89))","v":""},{"$f":"IF(SUM('2011 Survey responses'!AV89:AW89)<2.1,\"\",(AVERAGEIFS('2011 Survey responses'!AV89:AW89,'2011 Survey responses'!AV89:AW89,\">1\")))","v":""},{"$f":"IF(('2011 Survey responses'!AW89+'2011 Survey responses'!AY89)<2.1,\"\",(SUMIF('2011 Survey responses'!AW89,\">1\")+SUMIF('2011 Survey responses'!AY89,\">1\"))/(COUNTIF('2011 Survey responses'!AW89,\">1\")+COUNTIF('2011 Survey responses'!AY89,\">1\")))","v":""},{"$f":"IF(('2011 Survey responses'!AZ89)<1.1,\"\",('2011 Survey responses'!AZ89))","v":""},null,null,null,null,{"$f":"IF(('2011 Survey responses'!BE89)<1.1,\"\",('2011 Survey responses'!BE89))","v":""},{"$f":"IF(('2011 Survey responses'!AY89+'2011 Survey responses'!BB89+'2011 Survey responses'!BF89)<3.1,\"\",(SUMIF('2011 Survey responses'!AY89,\">1\")+SUMIF('2011 Survey responses'!BB89,\">1\")+SUMIF('2011 Survey responses'!BF89,\">1\"))/(COUNTIF('2011 Survey responses'!AY89,\">1\")+COUNTIF('2011 Survey responses'!BB89,\">1\")+COUNTIF('2011 Survey responses'!BF89,\">1\")))","v":""},"",{"$f":"IF(SUM('2011 Survey responses'!BT89:BV89)<3.1,\"\",(AVERAGEIFS('2011 Survey responses'!BT89:BV89,'2011 Survey responses'!BT89:BV89,\">1\")))","v":""},{"$f":"IF(SUM('2011 Survey responses'!BW89:CP89)<1,\"\",(AVERAGEIFS('2011 Survey responses'!BW89:CP89,'2011 Survey responses'!BW89:CP89,\">1\")))","v":""},{"$f":"IF(SUM('2011 Survey responses'!BW89:CF89)<1,\"\",(AVERAGEIFS('2011 Survey responses'!BW89:CF89,'2011 Survey responses'!BW89:CF89,\">1\")))","v":""},{"$f":"IF(SUM('2011 Survey responses'!CG89:CP89)<1,\"\",(AVERAGEIFS('2011 Survey responses'!CG89:CP89,'2011 Survey responses'!CG89:CP89,\">1\")))","v":""},{"$f":"IF(SUM('2011 Survey responses'!BX89:CF89)<1,\"\",(AVERAGEIFS('2011 Survey responses'!BX89:CF89,'2011 Survey responses'!BX89:CF89,\">1\")))","v":""},{"$f":"IF(SUM('2011 Survey responses'!CH89:CP89)<1,\"\",(AVERAGEIFS('2011 Survey responses'!CH89:CP89,'2011 Survey responses'!CH89:CP89,\">1\")))","v":""},{"$f":"IF(SUM('2011 Survey responses'!BW89:CP89)<1,\"\",(AVERAGEIFS('2011 Survey responses'!BW89:CP89,'2011 Survey responses'!BW89:CP89,\">1\")))","v":""},{"$f":"IF(('2011 Survey responses'!BW89+'2011 Survey responses'!CG89)<2.1,\"\",(SUMIF('2011 Survey responses'!BW89,\">1\")+SUMIF('2011 Survey responses'!CG89,\">1\"))/(COUNTIF('2011 Survey responses'!BW89,\">1\")+COUNTIF('2011 Survey responses'!CG89,\">1\")))","v":""},{"$f":"IF(('2011 Survey responses'!BX89+'2011 Survey responses'!CH89)<2.1,\"\",(SUMIF('2011 Survey responses'!BX89,\">1\")+SUMIF('2011 Survey responses'!CH89,\">1\"))/(COUNTIF('2011 Survey responses'!BX89,\">1\")+COUNTIF('2011 Survey responses'!CH89,\">1\")))","v":""},{"$f":"IF(('2011 Survey responses'!BY89+'2011 Survey responses'!CI89)<2.1,\"\",(SUMIF('2011 Survey responses'!BY89,\">1\")+SUMIF('2011 Survey responses'!CI89,\">1\"))/(COUNTIF('2011 Survey responses'!BY89,\">1\")+COUNTIF('2011 Survey responses'!CI89,\">1\")))","v":""},{"$f":"IF('2011 Survey responses'!CQ89<0.5,\"\",'2011 Survey responses'!CQ89)","v":""},{"$f":"IF('2011 Survey responses'!CR89<0.5,\"\",'2011 Survey responses'!CR89)","v":""},{"$f":"IF('2011 Survey responses'!CS89<0.5,\"\",'2011 Survey responses'!CS89)","v":""},{"$f":"IF('2011 Survey responses'!CT89<0.5,\"\",'2011 Survey responses'!CT89)","v":""},{"$f":"IF('2011 Survey responses'!CU89<0.5,\"\",'2011 Survey responses'!CU89)","v":""},{"$f":"IF('2011 Survey responses'!CV89<0.5,\"\",'2011 Survey responses'!CV89)","v":""},{"$f":"IF(SUM('2011 Survey responses'!CW89:DL89)<1,\"\",(AVERAGE('2011 Survey responses'!CW89:DL89)))","v":""},{"$f":"IF(SUM('2011 Survey responses'!CW89:CZ89)<1,\"\",(AVERAGE('2011 Survey responses'!CW89:CZ89)))","v":""},{"$f":"IF(SUM('2011 Survey responses'!DA89:DD89)<1,\"\",(AVERAGE('2011 Survey responses'!DA89:DD89)))","v":""},{"$f":"IF(SUM('2011 Survey responses'!DE89:DH89)<1,\"\",(AVERAGE('2011 Survey responses'!DE89:DH89)))","v":""},{"$f":"IF(SUM('2011 Survey responses'!DI89:DL89)<1,\"\",(AVERAGE('2011 Survey responses'!DI89:DL89)))","v":""},{"$f":"IF(('2011 Survey responses'!CW89+'2011 Survey responses'!DA89+'2011 Survey responses'!DE89+'2011 Survey responses'!DI89)<1,\"\",AVERAGE('2011 Survey responses'!CW89,'2011 Survey responses'!DA89,'2011 Survey responses'!DE89,'2011 Survey responses'!DI89))","v":""},{"$f":"IF(('2011 Survey responses'!CX89+'2011 Survey responses'!DB89+'2011 Survey responses'!DF89+'2011 Survey responses'!DJ89)<1,\"\",AVERAGE('2011 Survey responses'!CX89,'2011 Survey responses'!DB89,'2011 Survey responses'!DF89,'2011 Survey responses'!DJ89))","v":""},{"$f":"IF(('2011 Survey responses'!CY89+'2011 Survey responses'!DC89+'2011 Survey responses'!DG89+'2011 Survey responses'!DK89)<1,\"\",AVERAGE('2011 Survey responses'!CY89,'2011 Survey responses'!DC89,'2011 Survey responses'!DG89,'2011 Survey responses'!DK89))","v":""},{"$f":"IF(('2011 Survey responses'!CZ89+'2011 Survey responses'!DD89+'2011 Survey responses'!DH89+'2011 Survey responses'!DL89)<1,\"\",AVERAGE('2011 Survey responses'!CZ89,'2011 Survey responses'!DD89,'2011 Survey responses'!DH89,'2011 Survey responses'!DL89))","v":""},{"$f":"IF('2011 Survey responses'!CW89<0.5,\"\",'2011 Survey responses'!CW89)","v":""},{"$f":"IF('2011 Survey responses'!CX89<0.5,\"\",'2011 Survey responses'!CX89)","v":""},{"$f":"IF('2011 Survey responses'!CY89<0.5,\"\",'2011 Survey responses'!CY89)","v":""},{"$f":"IF('2011 Survey responses'!CZ89<0.5,\"\",'2011 Survey responses'!CZ89)","v":""},{"$f":"IF('2011 Survey responses'!DA89<0.5,\"\",'2011 Survey responses'!DA89)","v":""},{"$f":"IF('2011 Survey responses'!DB89<0.5,\"\",'2011 Survey responses'!DB89)","v":""},{"$f":"IF('2011 Survey responses'!DC89<0.5,\"\",'2011 Survey responses'!DC89)","v":""},{"$f":"IF('2011 Survey responses'!DD89<0.5,\"\",'2011 Survey responses'!DD89)","v":""},{"$f":"IF('2011 Survey responses'!DE89<0.5,\"\",'2011 Survey responses'!DE89)","v":""},{"$f":"IF('2011 Survey responses'!DF89<0.5,\"\",'2011 Survey responses'!DF89)","v":""},{"$f":"IF('2011 Survey responses'!DG89<0.5,\"\",'2011 Survey responses'!DG89)","v":""},{"$f":"IF('2011 Survey responses'!DH89<0.5,\"\",'2011 Survey responses'!DH89)","v":""},{"$f":"IF('2011 Survey responses'!DI89<0.5,\"\",'2011 Survey responses'!DI89)","v":""},{"$f":"IF('2011 Survey responses'!DJ89<0.5,\"\",'2011 Survey responses'!DJ89)","v":""},{"$f":"IF('2011 Survey responses'!DK89<0.5,\"\",'2011 Survey responses'!DK89)","v":""},{"$f":"IF('2011 Survey responses'!DL89<0.5,\"\",'2011 Survey responses'!DL89)","v":""},{"$f":"IF('2011 Survey responses'!DU89=4,4,IF('2011 Survey responses'!DU89=5,4,\"\"))","v":""},{"$f":"IF('2011 Survey responses'!DV89=4,3,IF('2011 Survey responses'!DV89=5,3,\"\"))","v":""},"",{"$f":"IF(CQ89=2,CQ89,IF(CO89=4,CO89,IF(CP89=3,CP89,IF('2011 Survey responses'!GT89=1,1,\"\"))))","v":""},{"$f":"IF('2011 Survey responses'!DO89<0.5,\"\",'2011 Survey responses'!DO89)","v":""},{"$f":"IF('2011 Survey responses'!DP89<0.5,\"\",'2011 Survey responses'!DP89)","v":""},{"$f":"IF('2011 Survey responses'!DQ89<0.5,\"\",'2011 Survey responses'!DQ89)","v":""},{"$f":"IF('2011 Survey responses'!DR89<0.5,\"\",'2011 Survey responses'!DR89)","v":""},{"$f":"IF('2011 Survey responses'!DS89<0.5,\"\",'2011 Survey responses'!DS89)","v":""},{"$f":"IF('2011 Survey responses'!DT89<0.5,\"\",'2011 Survey responses'!DT89)","v":""},{"$f":"IF('2011 Survey responses'!DU89<0.5,\"\",'2011 Survey responses'!DU89)","v":""},{"$f":"IF('2011 Survey responses'!DV89<0.5,\"\",'2011 Survey responses'!DV89)","v":""},{"$f":"IF('2011 Survey responses'!DW89<0.5,\"\",'2011 Survey responses'!DW89)","v":""},{"$f":"IF('2011 Survey responses'!DX89<0.5,\"\",'2011 Survey responses'!DX89)","v":""},{"$f":"IF('2011 Survey responses'!DY89<0.5,\"\",'2011 Survey responses'!DY89)","v":""},{"$f":"IF('2011 Survey responses'!DZ89<0.5,\"\",'2011 Survey responses'!DZ89)","v":""},{"$f":"IF('2011 Survey responses'!EA89<0.5,\"\",'2011 Survey responses'!EA89)","v":""},{"$f":"IF('2011 Survey responses'!EB89<0.5,\"\",'2011 Survey responses'!EB89)","v":""},{"$f":"IF('2011 Survey responses'!EC89<0.5,\"\",'2011 Survey responses'!EC89)","v":""},{"$f":"IF('2011 Survey responses'!ED89<0.5,\"\",'2011 Survey responses'!ED89)","v":""},{"$f":"IF('2011 Survey responses'!EE89<0.5,\"\",'2011 Survey responses'!EE89)","v":""},{"$f":"IF('2011 Survey responses'!EF89<0.5,\"\",'2011 Survey responses'!EF89)","v":""},{"$f":"IF('2011 Survey responses'!EG89<0.5,\"\",'2011 Survey responses'!EG89)","v":""},{"$f":"IF('2011 Survey responses'!EH89<0.5,\"\",'2011 Survey responses'!EH89)","v":""},{"$f":"IF('2011 Survey responses'!EI89<0.5,\"\",'2011 Survey responses'!EI89)","v":""},{"$f":"IF('2011 Survey responses'!EJ89<0.5,\"\",'2011 Survey responses'!EJ89)","v":""},{"$f":"IF('2011 Survey responses'!EK89<0.5,\"\",'2011 Survey responses'!EK89)","v":""},{"$f":"IF('2011 Survey responses'!EL89<0.5,\"\",'2011 Survey responses'!EL89)","v":""},{"$f":"IF('2011 Survey responses'!EM89<0.5,\"\",'2011 Survey responses'!EM89)","v":""},{"$f":"IF('2011 Survey responses'!EN89<0.5,\"\",'2011 Survey responses'!EN89)","v":""},{"$f":"IF('2011 Survey responses'!EO89<0.5,\"\",'2011 Survey responses'!EO89)","v":""},{"$f":"IF('2011 Survey responses'!EP89<0.5,\"\",'2011 Survey responses'!EP89)","v":""},{"$f":"IF(('2011 Survey responses'!EW89+'2011 Survey responses'!EX89)>=2,AVERAGE('2011 Survey responses'!EW89,'2011 Survey responses'!EY89),\"\")","v":""},{"$f":"IF('2011 Survey responses'!EX89<0.5,\"\",'2011 Survey responses'!EX89)","v":""},{"$f":"IF('2011 Survey responses'!EZ89<0.5,\"\",'2011 Survey responses'!EZ89)","v":""},{"$f":"IF('2011 Survey responses'!FB89<0.5,\"\",'2011 Survey responses'!FB89)","v":""},{"$f":"IF('2011 Survey responses'!FD89<0.5,\"\",'2011 Survey responses'!FD89)","v":""},{"$f":"IF('2011 Survey responses'!FC89<0.5,\"\",'2011 Survey responses'!FC89)","v":""},{"$f":"IF(('2011 Survey responses'!EM89+'2011 Survey responses'!EN89)>=2,AVERAGE('2011 Survey responses'!EM89,'2011 Survey responses'!EN89),\"\")","v":""},{"$f":"IF('2011 Survey responses'!ES89<0.5,\"\",'2011 Survey responses'!ES89)","v":""},{"$f":"IF(('2011 Survey responses'!ET89+'2011 Survey responses'!EU89)>=2,AVERAGE('2011 Survey responses'!ET89,'2011 Survey responses'!EU89),\"\")","v":""},{"$f":"IF('2011 Survey responses'!EV89<0.5,\"\",'2011 Survey responses'!EV89)","v":""},{"$f":"IF('2011 Survey responses'!FA89<0.5,\"\",'2011 Survey responses'!FA89)","v":""},{"$f":"IF('2011 Survey responses'!ER89<0.5,\"\",'2011 Survey responses'!ER89)","v":""},{"$f":"IF(('2011 Survey responses'!EO89+'2011 Survey responses'!EP89)>=2,AVERAGE('2011 Survey responses'!EO89,'2011 Survey responses'!EP89),\"\")","v":""},{"$f":"IF('2011 Survey responses'!EQ89<0.5,\"\",'2011 Survey responses'!EQ89)","v":""},{"$f":"IF('2011 Survey responses'!ET89<0.5,\"\",'2011 Survey responses'!ET89)","v":""},{"$f":"IF('2011 Survey responses'!EU89<0.5,\"\",'2011 Survey responses'!EU89)","v":""},{"$f":"IF('2011 Survey responses'!EW89<0.5,\"\",'2011 Survey responses'!EW89)","v":""},{"$f":"IF('2011 Survey responses'!EY89<0.5,\"\",'2011 Survey responses'!EY89)","v":""},{"$f":"IF('2011 Survey responses'!FU89<0.5,\"\",'2011 Survey responses'!FU89)","v":""},{"$f":"IF(('2011 Survey responses'!FL89+'2011 Survey responses'!FM89)>=2,AVERAGE('2011 Survey responses'!FL89,'2011 Survey responses'!FM89),\"\")","v":""},{"$f":"IF(('2011 Survey responses'!FO89+'2011 Survey responses'!FQ89)>=2,AVERAGE('2011 Survey responses'!FO89,'2011 Survey responses'!FQ89),\"\")","v":""},{"$f":"IF('2011 Survey responses'!FJ89<0.5,\"\",'2011 Survey responses'!FJ89)","v":""},{"$f":"IF('2011 Survey responses'!FT89<0.5,\"\",'2011 Survey responses'!FT89)","v":""},{"$f":"IF('2011 Survey responses'!FR89<0.5,\"\",'2011 Survey responses'!FR89)","v":""},{"$f":"IF('2011 Survey responses'!FK89<0.5,\"\",'2011 Survey responses'!FK89)","v":""},{"$f":"IF('2011 Survey responses'!FP89<0.5,\"\",'2011 Survey responses'!FP89)","v":""},{"$f":"IF('2011 Survey responses'!FN89<0.5,\"\",'2011 Survey responses'!FN89)","v":""},{"$f":"IF(('2011 Survey responses'!FE89+'2011 Survey responses'!FF89)>=2,AVERAGE('2011 Survey responses'!FE89,'2011 Survey responses'!FF89),\"\")","v":""},{"$f":"IF('2011 Survey responses'!FS89<0.5,\"\",'2011 Survey responses'!FS89)","v":""},{"$f":"IF('2011 Survey responses'!FV89<0.5,\"\",'2011 Survey responses'!FV89)","v":""},{"$f":"IF(('2011 Survey responses'!FG89+'2011 Survey responses'!FH89)>=2,AVERAGE('2011 Survey responses'!FG89,'2011 Survey responses'!FH89),\"\")","v":""},{"$f":"IF('2011 Survey responses'!FI89<0.5,\"\",'2011 Survey responses'!FI89)","v":""},{"$f":"IF('2011 Survey responses'!FE89<0.5,\"\",'2011 Survey responses'!FE89)","v":""},{"$f":"IF('2011 Survey responses'!FF89<0.5,\"\",'2011 Survey responses'!FF89)","v":""},{"$f":"IF('2011 Survey responses'!FG89<0.5,\"\",'2011 Survey responses'!FG89)","v":""},{"$f":"IF('2011 Survey responses'!FH89<0.5,\"\",'2011 Survey responses'!FH89)","v":""},{"$f":"IF('2011 Survey responses'!FL89<0.5,\"\",'2011 Survey responses'!FL89)","v":""},{"$f":"IF('2011 Survey responses'!FM89<0.5,\"\",'2011 Survey responses'!FM89)","v":""},{"$f":"IF('2011 Survey responses'!FO89<0.5,\"\",'2011 Survey responses'!FO89)","v":""},{"$f":"IF('2011 Survey responses'!FQ89<0.5,\"\",'2011 Survey responses'!FQ89)","v":""}]
["Kenya",{"$f":"IF(SUM(F90)<1,\"\",AVERAGEIF('2011 Survey responses'!B90:CP90,\">1\"))","v":3.4743589743589745},{"$f":"IF(SUM(F90)<1,\"\",AVERAGEIF('2011 Survey responses'!B90:AO90,\">1\"))","v":3.3529411764705883},{"$f":"IF(SUM(F90)<1,\"\",AVERAGEIF('2011 Survey responses'!B90:BV90,\">1\"))","v":3.3103448275862069},{"$f":"IF(SUM(F90)<1,\"\",AVERAGEIF('2011 Survey responses'!V90:BV90,\">1\"))","v":3.13953488372093},{"$f":"IF(SUM('2011 Survey responses'!B90:U90)<1,\"\",(AVERAGEIFS('2011 Survey responses'!B90:U90,'2011 Survey responses'!B90:U90,\">1\")))","v":3.8},{"$f":"IF(SUM('2011 Survey responses'!B90:H90)<1,\"\",(AVERAGEIFS('2011 Survey responses'!B90:H90,'2011 Survey responses'!B90:H90,\">1\")))","v":5.25},{"$f":"IF(SUM('2011 Survey responses'!I90:S90)<1,\"\",(AVERAGEIFS('2011 Survey responses'!I90:S90,'2011 Survey responses'!I90:S90,\">1\")))","v":3.5555555555555554},{"$f":"IF(SUM('2011 Survey responses'!T90:U90)<2.1,\"\",(AVERAGEIFS('2011 Survey responses'!T90:U90,'2011 Survey responses'!T90:U90,\">1\")))","v":2},{"$f":"IF(SUM('2011 Survey responses'!B90:C90)<2.1,\"\",((SUMIF('2011 Survey responses'!B90:C90,\">1\")+SUMIF('2011 Survey responses'!F90,\">1\"))/(COUNTIF('2011 Survey responses'!B90:C90,\">1\")+COUNTIF('2011 Survey responses'!F90,\">1\"))))","v":5.5},{"$f":"IF(SUM('2011 Survey responses'!D90:E90)<2.1,\"\",(AVERAGEIFS('2011 Survey responses'!D90:E90,'2011 Survey responses'!D90:E90,\">1\")))","v":6},{"$f":"IF(('2011 Survey responses'!B90+'2011 Survey responses'!D90)<2.1,\"\",((SUMIF('2011 Survey responses'!B90,\">1\")+SUMIF('2011 Survey responses'!D90,\">1\")+SUMIF('2011 Survey responses'!F90,\">1\")+SUMIF('2011 Survey responses'!K90,\">1\"))/(COUNTIF('2011 Survey responses'!B90,\">1\")+COUNTIF('2011 Survey responses'!D90,\">1\")+COUNTIF('2011 Survey responses'!F90,\">1\")+COUNTIF('2011 Survey responses'!K90,\">1\"))))","v":5.75},{"$f":"IF(SUM('2011 Survey responses'!G90:H90)<2.1,\"\",(AVERAGEIFS('2011 Survey responses'!G90:H90,'2011 Survey responses'!G90:H90,\">1\")))","v":4},{"$f":"IF(SUM('2011 Survey responses'!F90:G90)<1.5,\"\",MAX('2011 Survey responses'!F90,'2011 Survey responses'!G90))","v":5},{"$f":"IF(SUM('2011 Survey responses'!G90:H90)<1,\"\",MAX('2011 Survey responses'!G90,'2011 Survey responses'!H90))","v":4},{"$f":"IF(SUM('2011 Survey responses'!I90:L90)<4.1,\"\",(AVERAGEIFS('2011 Survey responses'!I90:L90,'2011 Survey responses'!I90:L90,\">1\")))","v":4.666666666666667},{"$f":"IF(SUM('2011 Survey responses'!M90:S90)<4.1,\"\",(AVERAGEIFS('2011 Survey responses'!M90:S90,'2011 Survey responses'!M90:S90,\">1\")))","v":3},{"$f":"IF(SUM('2011 Survey responses'!T90:U90)<2.1,\"\",(AVERAGEIFS('2011 Survey responses'!T90:U90,'2011 Survey responses'!T90:U90,\">1\")))","v":2},{"$f":"IF(SUM('2011 Survey responses'!V90:AO90)<1,\"\",(AVERAGEIFS('2011 Survey responses'!V90:AO90,'2011 Survey responses'!V90:AO90,\">1\")))","v":3},{"$f":"IF(SUM('2011 Survey responses'!V90:AA90)<1,\"\",(AVERAGEIFS('2011 Survey responses'!V90:AA90,'2011 Survey responses'!V90:AA90,\">1\")))","v":3.3333333333333335},{"$f":"IF(SUM('2011 Survey responses'!AB90:AH90)<1,\"\",(AVERAGEIFS('2011 Survey responses'!AB90:AH90,'2011 Survey responses'!AB90:AH90,\">1\")))","v":3.2857142857142856},{"$f":"IF(SUM('2011 Survey responses'!AI90:AO90)<1,\"\",(AVERAGEIFS('2011 Survey responses'!AI90:AO90,'2011 Survey responses'!AI90:AO90,\">1\")))","v":2.3333333333333335},{"$f":"IF(('2011 Survey responses'!Y90+'2011 Survey responses'!AI90+'2011 Survey responses'!AK90)<3.1,\"\",((SUMIF('2011 Survey responses'!Y90,\">1\")+SUMIF('2011 Survey responses'!AI90,\">1\")+SUMIF('2011 Survey responses'!AK90,\">1\")+SUMIF('2011 Survey responses'!AM90,\">1\"))/(COUNTIF('2011 Survey responses'!Y90,\">1\")+COUNTIF('2011 Survey responses'!AI90,\">1\")+COUNTIF('2011 Survey responses'!AK90,\">1\")+COUNTIF('2011 Survey responses'!AM90,\">1\"))))","v":2.6666666666666665},{"$f":"IF(('2011 Survey responses'!W90)<1.1,\"\",('2011 Survey responses'!W90))","v":3},{"$f":"IF(('2011 Survey responses'!Y90)<1.1,\"\",('2011 Survey responses'!Y90))","v":2},{"$f":"IF(('2011 Survey responses'!Z90)<1.1,\"\",('2011 Survey responses'!Z90))","v":2},{"$f":"IF(('2011 Survey responses'!V90+'2011 Survey responses'!X90+'2011 Survey responses'!AA90)<3.1,\"\",((SUMIF('2011 Survey responses'!V90,\">1\")+SUMIF('2011 Survey responses'!X90,\">1\")+SUMIF('2011 Survey responses'!AA90,\">1\"))/(COUNTIF('2011 Survey responses'!V90,\">1\")+COUNTIF('2011 Survey responses'!X90,\">1\")+COUNTIF('2011 Survey responses'!AA90,\">1\"))))","v":4.333333333333333},{"$f":"IF(('2011 Survey responses'!V90+'2011 Survey responses'!Y90+'2011 Survey responses'!AA90)<3.1,\"\",((SUMIF('2011 Survey responses'!V90,\">1\")+SUMIF('2011 Survey responses'!Y90,\">1\")+SUMIF('2011 Survey responses'!AA90,\">1\"))/(COUNTIF('2011 Survey responses'!V90,\">1\")+COUNTIF('2011 Survey responses'!Y90,\">1\")+COUNTIF('2011 Survey responses'!AA90,\">1\"))))","v":4.333333333333333},{"$f":"IF(SUM('2011 Survey responses'!AB90:AH90)<1,\"\",(AVERAGEIFS('2011 Survey responses'!AB90:AH90,'2011 Survey responses'!AB90:AH90,\">1\")))","v":3.2857142857142856},{"$f":"IF(SUM('2011 Survey responses'!AI90:AO90)<7.1,\"\",(AVERAGEIFS('2011 Survey responses'!AI90:AO90,'2011 Survey responses'!AI90:AO90,\">1\")))","v":2.3333333333333335},{"$f":"IF(('2011 Survey responses'!AH90)<1.1,\"\",('2011 Survey responses'!AH90))","v":4},{"$f":"IF(SUM('2011 Survey responses'!AP90:BV90)<1,\"\",(AVERAGEIFS('2011 Survey responses'!AP90:BV90,'2011 Survey responses'!AP90:BV90,\">1\")))","v":3.25},{"$f":"IF(SUM('2011 Survey responses'!AP90:AS90)<4.1,\"\",(AVERAGEIFS('2011 Survey responses'!AP90:AS90,'2011 Survey responses'!AP90:AS90,\">1\")))","v":2.25},{"$f":"IF(SUM('2011 Survey responses'!AT90:BF90)<1,\"\",(AVERAGEIFS('2011 Survey responses'!AT90:BF90,'2011 Survey responses'!AT90:BF90,\">1\")))","v":3.4444444444444446},{"$f":"IF(SUM('2011 Survey responses'!BG90:BO90)<1,\"\",(AVERAGEIFS('2011 Survey responses'!BG90:BO90,'2011 Survey responses'!BG90:BO90,\">1\")))","v":4},{"$f":"IF(SUM('2011 Survey responses'!BP90:BS90)<1,\"\",(AVERAGEIFS('2011 Survey responses'!BP90:BS90,'2011 Survey responses'!BP90:BS90,\">1\")))","v":2},{"$f":"IF(SUM('2011 Survey responses'!BT90:BV90)<3.1,\"\",(AVERAGEIFS('2011 Survey responses'!BT90:BV90,'2011 Survey responses'!BT90:BV90,\">1\")))","v":4},{"$f":"IF(('2011 Survey responses'!AQ90+'2011 Survey responses'!AR90+'2011 Survey responses'!BG90)<3.1,\"\",((SUMIF('2011 Survey responses'!AQ90,\">1\")+SUMIF('2011 Survey responses'!AR90,\">1\")+SUMIF('2011 Survey responses'!BG90,\">1\"))/(COUNTIF('2011 Survey responses'!AQ90,\">1\")+COUNTIF('2011 Survey responses'!AR90,\">1\")+COUNTIF('2011 Survey responses'!BG90,\">1\"))))","v":3.3333333333333335},{"$f":"IF(SUM('2011 Survey responses'!AP90:AS90)<4.1,\"\",(AVERAGEIFS('2011 Survey responses'!AP90:AS90,'2011 Survey responses'!AP90:AS90,\">1\")))","v":2.25},{"$f":"IF(('2011 Survey responses'!AU90+'2011 Survey responses'!AX90+'2011 Survey responses'!BA90+'2011 Survey responses'!BC90+'2011 Survey responses'!BD90)<5.1,\"\",(SUMIF('2011 Survey responses'!AU90,\">1\")+SUMIF('2011 Survey responses'!AX90,\">1\")+SUMIF('2011 Survey responses'!BA90,\">1\")+SUMIF('2011 Survey responses'!BC90,\">1\")+SUMIF('2011 Survey responses'!BD90,\">1\"))/(COUNTIF('2011 Survey responses'!AU90,\">1\")+COUNTIF('2011 Survey responses'!AX90,\">1\")+COUNTIF('2011 Survey responses'!BA90,\">1\")+COUNTIF('2011 Survey responses'!BC90,\">1\")+COUNTIF('2011 Survey responses'!BD90,\">1\")))","v":3},{"$f":"IF(('2011 Survey responses'!AT90)<1.1,\"\",('2011 Survey responses'!AT90))","v":2},{"$f":"IF(SUM('2011 Survey responses'!AV90:AW90)<2.1,\"\",(AVERAGEIFS('2011 Survey responses'!AV90:AW90,'2011 Survey responses'!AV90:AW90,\">1\")))","v":4},{"$f":"IF(('2011 Survey responses'!AW90+'2011 Survey responses'!AY90)<2.1,\"\",(SUMIF('2011 Survey responses'!AW90,\">1\")+SUMIF('2011 Survey responses'!AY90,\">1\"))/(COUNTIF('2011 Survey responses'!AW90,\">1\")+COUNTIF('2011 Survey responses'!AY90,\">1\")))","v":3.5},{"$f":"IF(('2011 Survey responses'!AZ90)<1.1,\"\",('2011 Survey responses'!AZ90))","v":""},1,1,2,1,{"$f":"IF(('2011 Survey responses'!BE90)<1.1,\"\",('2011 Survey responses'!BE90))","v":5},{"$f":"IF(('2011 Survey responses'!AY90+'2011 Survey responses'!BB90+'2011 Survey responses'!BF90)<3.1,\"\",(SUMIF('2011 Survey responses'!AY90,\">1\")+SUMIF('2011 Survey responses'!BB90,\">1\")+SUMIF('2011 Survey responses'!BF90,\">1\"))/(COUNTIF('2011 Survey responses'!AY90,\">1\")+COUNTIF('2011 Survey responses'!BB90,\">1\")+COUNTIF('2011 Survey responses'!BF90,\">1\")))","v":3.6666666666666665},3,{"$f":"IF(SUM('2011 Survey responses'!BT90:BV90)<3.1,\"\",(AVERAGEIFS('2011 Survey responses'!BT90:BV90,'2011 Survey responses'!BT90:BV90,\">1\")))","v":4},{"$f":"IF(SUM('2011 Survey responses'!BW90:CP90)<1,\"\",(AVERAGEIFS('2011 Survey responses'!BW90:CP90,'2011 Survey responses'!BW90:CP90,\">1\")))","v":3.95},{"$f":"IF(SUM('2011 Survey responses'!BW90:CF90)<1,\"\",(AVERAGEIFS('2011 Survey responses'!BW90:CF90,'2011 Survey responses'!BW90:CF90,\">1\")))","v":4},{"$f":"IF(SUM('2011 Survey responses'!CG90:CP90)<1,\"\",(AVERAGEIFS('2011 Survey responses'!CG90:CP90,'2011 Survey responses'!CG90:CP90,\">1\")))","v":3.9},{"$f":"IF(SUM('2011 Survey responses'!BX90:CF90)<1,\"\",(AVERAGEIFS('2011 Survey responses'!BX90:CF90,'2011 Survey responses'!BX90:CF90,\">1\")))","v":4},{"$f":"IF(SUM('2011 Survey responses'!CH90:CP90)<1,\"\",(AVERAGEIFS('2011 Survey responses'!CH90:CP90,'2011 Survey responses'!CH90:CP90,\">1\")))","v":3.8888888888888888},{"$f":"IF(SUM('2011 Survey responses'!BW90:CP90)<1,\"\",(AVERAGEIFS('2011 Survey responses'!BW90:CP90,'2011 Survey responses'!BW90:CP90,\">1\")))","v":3.95},{"$f":"IF(('2011 Survey responses'!BW90+'2011 Survey responses'!CG90)<2.1,\"\",(SUMIF('2011 Survey responses'!BW90,\">1\")+SUMIF('2011 Survey responses'!CG90,\">1\"))/(COUNTIF('2011 Survey responses'!BW90,\">1\")+COUNTIF('2011 Survey responses'!CG90,\">1\")))","v":4},{"$f":"IF(('2011 Survey responses'!BX90+'2011 Survey responses'!CH90)<2.1,\"\",(SUMIF('2011 Survey responses'!BX90,\">1\")+SUMIF('2011 Survey responses'!CH90,\">1\"))/(COUNTIF('2011 Survey responses'!BX90,\">1\")+COUNTIF('2011 Survey responses'!CH90,\">1\")))","v":4},{"$f":"IF(('2011 Survey responses'!BY90+'2011 Survey responses'!CI90)<2.1,\"\",(SUMIF('2011 Survey responses'!BY90,\">1\")+SUMIF('2011 Survey responses'!CI90,\">1\"))/(COUNTIF('2011 Survey responses'!BY90,\">1\")+COUNTIF('2011 Survey responses'!CI90,\">1\")))","v":4.5},{"$f":"IF('2011 Survey responses'!CQ90<0.5,\"\",'2011 Survey responses'!CQ90)","v":5},{"$f":"IF('2011 Survey responses'!CR90<0.5,\"\",'2011 Survey responses'!CR90)","v":3},{"$f":"IF('2011 Survey responses'!CS90<0.5,\"\",'2011 Survey responses'!CS90)","v":""},{"$f":"IF('2011 Survey responses'!CT90<0.5,\"\",'2011 Survey responses'!CT90)","v":2},{"$f":"IF('2011 Survey responses'!CU90<0.5,\"\",'2011 Survey responses'!CU90)","v":2},{"$f":"IF('2011 Survey responses'!CV90<0.5,\"\",'2011 Survey responses'!CV90)","v":2},{"$f":"IF(SUM('2011 Survey responses'!CW90:DL90)<1,\"\",(AVERAGE('2011 Survey responses'!CW90:DL90)))","v":""},{"$f":"IF(SUM('2011 Survey responses'!CW90:CZ90)<1,\"\",(AVERAGE('2011 Survey responses'!CW90:CZ90)))","v":""},{"$f":"IF(SUM('2011 Survey responses'!DA90:DD90)<1,\"\",(AVERAGE('2011 Survey responses'!DA90:DD90)))","v":""},{"$f":"IF(SUM('2011 Survey responses'!DE90:DH90)<1,\"\",(AVERAGE('2011 Survey responses'!DE90:DH90)))","v":""},{"$f":"IF(SUM('2011 Survey responses'!DI90:DL90)<1,\"\",(AVERAGE('2011 Survey responses'!DI90:DL90)))","v":""},{"$f":"IF(('2011 Survey responses'!CW90+'2011 Survey responses'!DA90+'2011 Survey responses'!DE90+'2011 Survey responses'!DI90)<1,\"\",AVERAGE('2011 Survey responses'!CW90,'2011 Survey responses'!DA90,'2011 Survey responses'!DE90,'2011 Survey responses'!DI90))","v":""},{"$f":"IF(('2011 Survey responses'!CX90+'2011 Survey responses'!DB90+'2011 Survey responses'!DF90+'2011 Survey responses'!DJ90)<1,\"\",AVERAGE('2011 Survey responses'!CX90,'2011 Survey responses'!DB90,'2011 Survey responses'!DF90,'2011 Survey responses'!DJ90))","v":""},{"$f":"IF(('2011 Survey responses'!CY90+'2011 Survey responses'!DC90+'2011 Survey responses'!DG90+'2011 Survey responses'!DK90)<1,\"\",AVERAGE('2011 Survey responses'!CY90,'2011 Survey responses'!DC90,'2011 Survey responses'!DG90,'2011 Survey responses'!DK90))","v":""},{"$f":"IF(('2011 Survey responses'!CZ90+'2011 Survey responses'!DD90+'2011 Survey responses'!DH90+'2011 Survey responses'!DL90)<1,\"\",AVERAGE('2011 Survey responses'!CZ90,'2011 Survey responses'!DD90,'2011 Survey responses'!DH90,'2011 Survey responses'!DL90))","v":""},{"$f":"IF('2011 Survey responses'!CW90<0.5,\"\",'2011 Survey responses'!CW90)","v":""},{"$f":"IF('2011 Survey responses'!CX90<0.5,\"\",'2011 Survey responses'!CX90)","v":""},{"$f":"IF('2011 Survey responses'!CY90<0.5,\"\",'2011 Survey responses'!CY90)","v":""},{"$f":"IF('2011 Survey responses'!CZ90<0.5,\"\",'2011 Survey responses'!CZ90)","v":""},{"$f":"IF('2011 Survey responses'!DA90<0.5,\"\",'2011 Survey responses'!DA90)","v":""},{"$f":"IF('2011 Survey responses'!DB90<0.5,\"\",'2011 Survey responses'!DB90)","v":""},{"$f":"IF('2011 Survey responses'!DC90<0.5,\"\",'2011 Survey responses'!DC90)","v":""},{"$f":"IF('2011 Survey responses'!DD90<0.5,\"\",'2011 Survey responses'!DD90)","v":""},{"$f":"IF('2011 Survey responses'!DE90<0.5,\"\",'2011 Survey responses'!DE90)","v":""},{"$f":"IF('2011 Survey responses'!DF90<0.5,\"\",'2011 Survey responses'!DF90)","v":""},{"$f":"IF('2011 Survey responses'!DG90<0.5,\"\",'2011 Survey responses'!DG90)","v":""},{"$f":"IF('2011 Survey responses'!DH90<0.5,\"\",'2011 Survey responses'!DH90)","v":""},{"$f":"IF('2011 Survey responses'!DI90<0.5,\"\",'2011 Survey responses'!DI90)","v":""},{"$f":"IF('2011 Survey responses'!DJ90<0.5,\"\",'2011 Survey responses'!DJ90)","v":""},{"$f":"IF('2011 Survey responses'!DK90<0.5,\"\",'2011 Survey responses'!DK90)","v":""},{"$f":"IF('2011 Survey responses'!DL90<0.5,\"\",'2011 Survey responses'!DL90)","v":""},{"$f":"IF('2011 Survey responses'!DU90=4,4,IF('2011 Survey responses'!DU90=5,4,\"\"))","v":4},{"$f":"IF('2011 Survey responses'!DV90=4,3,IF('2011 Survey responses'!DV90=5,3,\"\"))","v":3},2,{"$f":"IF(CQ90=2,CQ90,IF(CO90=4,CO90,IF(CP90=3,CP90,IF('2011 Survey responses'!GT90=1,1,\"\"))))","v":2},{"$f":"IF('2011 Survey responses'!DO90<0.5,\"\",'2011 Survey responses'!DO90)","v":3},{"$f":"IF('2011 Survey responses'!DP90<0.5,\"\",'2011 Survey responses'!DP90)","v":5},{"$f":"IF('2011 Survey responses'!DQ90<0.5,\"\",'2011 Survey responses'!DQ90)","v":2},{"$f":"IF('2011 Survey responses'!DR90<0.5,\"\",'2011 Survey responses'!DR90)","v":""},{"$f":"IF('2011 Survey responses'!DS90<0.5,\"\",'2011 Survey responses'!DS90)","v":4},{"$f":"IF('2011 Survey responses'!DT90<0.5,\"\",'2011 Survey responses'!DT90)","v":2},{"$f":"IF('2011 Survey responses'!DU90<0.5,\"\",'2011 Survey responses'!DU90)","v":4},{"$f":"IF('2011 Survey responses'!DV90<0.5,\"\",'2011 Survey responses'!DV90)","v":4},{"$f":"IF('2011 Survey responses'!DW90<0.5,\"\",'2011 Survey responses'!DW90)","v":3},{"$f":"IF('2011 Survey responses'!DX90<0.5,\"\",'2011 Survey responses'!DX90)","v":2},{"$f":"IF('2011 Survey responses'!DY90<0.5,\"\",'2011 Survey responses'!DY90)","v":3},{"$f":"IF('2011 Survey responses'!DZ90<0.5,\"\",'2011 Survey responses'!DZ90)","v":2},{"$f":"IF('2011 Survey responses'!EA90<0.5,\"\",'2011 Survey responses'!EA90)","v":5},{"$f":"IF('2011 Survey responses'!EB90<0.5,\"\",'2011 Survey responses'!EB90)","v":5},{"$f":"IF('2011 Survey responses'!EC90<0.5,\"\",'2011 Survey responses'!EC90)","v":5},{"$f":"IF('2011 Survey responses'!ED90<0.5,\"\",'2011 Survey responses'!ED90)","v":5},{"$f":"IF('2011 Survey responses'!EE90<0.5,\"\",'2011 Survey responses'!EE90)","v":4},{"$f":"IF('2011 Survey responses'!EF90<0.5,\"\",'2011 Survey responses'!EF90)","v":5},{"$f":"IF('2011 Survey responses'!EG90<0.5,\"\",'2011 Survey responses'!EG90)","v":5},{"$f":"IF('2011 Survey responses'!EH90<0.5,\"\",'2011 Survey responses'!EH90)","v":5},{"$f":"IF('2011 Survey responses'!EI90<0.5,\"\",'2011 Survey responses'!EI90)","v":5},{"$f":"IF('2011 Survey responses'!EJ90<0.5,\"\",'2011 Survey responses'!EJ90)","v":5},{"$f":"IF('2011 Survey responses'!EK90<0.5,\"\",'2011 Survey responses'!EK90)","v":5},{"$f":"IF('2011 Survey responses'!EL90<0.5,\"\",'2011 Survey responses'!EL90)","v":5},{"$f":"IF('2011 Survey responses'!EM90<0.5,\"\",'2011 Survey responses'!EM90)","v":2},{"$f":"IF('2011 Survey responses'!EN90<0.5,\"\",'2011 Survey responses'!EN90)","v":3},{"$f":"IF('2011 Survey responses'!EO90<0.5,\"\",'2011 Survey responses'!EO90)","v":""},{"$f":"IF('2011 Survey responses'!EP90<0.5,\"\",'2011 Survey responses'!EP90)","v":""},{"$f":"IF(('2011 Survey responses'!EW90+'2011 Survey responses'!EX90)>=2,AVERAGE('2011 Survey responses'!EW90,'2011 Survey responses'!EY90),\"\")","v":3},{"$f":"IF('2011 Survey responses'!EX90<0.5,\"\",'2011 Survey responses'!EX90)","v":2},{"$f":"IF('2011 Survey responses'!EZ90<0.5,\"\",'2011 Survey responses'!EZ90)","v":2},{"$f":"IF('2011 Survey responses'!FB90<0.5,\"\",'2011 Survey responses'!FB90)","v":3},{"$f":"IF('2011 Survey responses'!FD90<0.5,\"\",'2011 Survey responses'!FD90)","v":2},{"$f":"IF('2011 Survey responses'!FC90<0.5,\"\",'2011 Survey responses'!FC90)","v":2},{"$f":"IF(('2011 Survey responses'!EM90+'2011 Survey responses'!EN90)>=2,AVERAGE('2011 Survey responses'!EM90,'2011 Survey responses'!EN90),\"\")","v":2.5},{"$f":"IF('2011 Survey responses'!ES90<0.5,\"\",'2011 Survey responses'!ES90)","v":2},{"$f":"IF(('2011 Survey responses'!ET90+'2011 Survey responses'!EU90)>=2,AVERAGE('2011 Survey responses'!ET90,'2011 Survey responses'!EU90),\"\")","v":2},{"$f":"IF('2011 Survey responses'!EV90<0.5,\"\",'2011 Survey responses'!EV90)","v":4},{"$f":"IF('2011 Survey responses'!FA90<0.5,\"\",'2011 Survey responses'!FA90)","v":2},{"$f":"IF('2011 Survey responses'!ER90<0.5,\"\",'2011 Survey responses'!ER90)","v":3},{"$f":"IF(('2011 Survey responses'!EO90+'2011 Survey responses'!EP90)>=2,AVERAGE('2011 Survey responses'!EO90,'2011 Survey responses'!EP90),\"\")","v":""},{"$f":"IF('2011 Survey responses'!EQ90<0.5,\"\",'2011 Survey responses'!EQ90)","v":2},{"$f":"IF('2011 Survey responses'!ET90<0.5,\"\",'2011 Survey responses'!ET90)","v":2},{"$f":"IF('2011 Survey responses'!EU90<0.5,\"\",'2011 Survey responses'!EU90)","v":2},{"$f":"IF('2011 Survey responses'!EW90<0.5,\"\",'2011 Survey responses'!EW90)","v":3},{"$f":"IF('2011 Survey responses'!EY90<0.5,\"\",'2011 Survey responses'!EY90)","v":3},{"$f":"IF('2011 Survey responses'!FU90<0.5,\"\",'2011 Survey responses'!FU90)","v":3},{"$f":"IF(('2011 Survey responses'!FL90+'2011 Survey responses'!FM90)>=2,AVERAGE('2011 Survey responses'!FL90,'2011 Survey responses'!FM90),\"\")","v":5},{"$f":"IF(('2011 Survey responses'!FO90+'2011 Survey responses'!FQ90)>=2,AVERAGE('2011 Survey responses'!FO90,'2011 Survey responses'!FQ90),\"\")","v":4.5},{"$f":"IF('2011 Survey responses'!FJ90<0.5,\"\",'2011 Survey responses'!FJ90)","v":4},{"$f":"IF('2011 Survey responses'!FT90<0.5,\"\",'2011 Survey responses'!FT90)","v":4},{"$f":"IF('2011 Survey responses'!FR90<0.5,\"\",'2011 Survey responses'!FR90)","v":4},{"$f":"IF('2011 Survey responses'!FK90<0.5,\"\",'2011 Survey responses'!FK90)","v":4},{"$f":"IF('2011 Survey responses'!FP90<0.5,\"\",'2011 Survey responses'!FP90)","v":4},{"$f":"IF('2011 Survey responses'!FN90<0.5,\"\",'2011 Survey responses'!FN90)","v":5},{"$f":"IF(('2011 Survey responses'!FE90+'2011 Survey responses'!FF90)>=2,AVERAGE('2011 Survey responses'!FE90,'2011 Survey responses'!FF90),\"\")","v":5},{"$f":"IF('2011 Survey responses'!FS90<0.5,\"\",'2011 Survey responses'!FS90)","v":4},{"$f":"IF('2011 Survey responses'!FV90<0.5,\"\",'2011 Survey responses'!FV90)","v":4},{"$f":"IF(('2011 Survey responses'!FG90+'2011 Survey responses'!FH90)>=2,AVERAGE('2011 Survey responses'!FG90,'2011 Survey responses'!FH90),\"\")","v":3.5},{"$f":"IF('2011 Survey responses'!FI90<0.5,\"\",'2011 Survey responses'!FI90)","v":4},{"$f":"IF('2011 Survey responses'!FE90<0.5,\"\",'2011 Survey responses'!FE90)","v":5},{"$f":"IF('2011 Survey responses'!FF90<0.5,\"\",'2011 Survey responses'!FF90)","v":5},{"$f":"IF('2011 Survey responses'!FG90<0.5,\"\",'2011 Survey responses'!FG90)","v":3},{"$f":"IF('2011 Survey responses'!FH90<0.5,\"\",'2011 Survey responses'!FH90)","v":4},{"$f":"IF('2011 Survey responses'!FL90<0.5,\"\",'2011 Survey responses'!FL90)","v":5},{"$f":"IF('2011 Survey responses'!FM90<0.5,\"\",'2011 Survey responses'!FM90)","v":5},{"$f":"IF('2011 Survey responses'!FO90<0.5,\"\",'2011 Survey responses'!FO90)","v":4},{"$f":"IF('2011 Survey responses'!FQ90<0.5,\"\",'2011 Survey responses'!FQ90)","v":5}]
["Kiribati",{"$f":"IF(SUM(F91)<1,\"\",AVERAGEIF('2011 Survey responses'!B91:CP91,\">1\"))","v":""},{"$f":"IF(SUM(F91)<1,\"\",AVERAGEIF('2011 Survey responses'!B91:AO91,\">1\"))","v":""},{"$f":"IF(SUM(F91)<1,\"\",AVERAGEIF('2011 Survey responses'!B91:BV91,\">1\"))","v":""},{"$f":"IF(SUM(F91)<1,\"\",AVERAGEIF('2011 Survey responses'!V91:BV91,\">1\"))","v":""},{"$f":"IF(SUM('2011 Survey responses'!B91:U91)<1,\"\",(AVERAGEIFS('2011 Survey responses'!B91:U91,'2011 Survey responses'!B91:U91,\">1\")))","v":""},{"$f":"IF(SUM('2011 Survey responses'!B91:H91)<1,\"\",(AVERAGEIFS('2011 Survey responses'!B91:H91,'2011 Survey responses'!B91:H91,\">1\")))","v":""},{"$f":"IF(SUM('2011 Survey responses'!I91:S91)<1,\"\",(AVERAGEIFS('2011 Survey responses'!I91:S91,'2011 Survey responses'!I91:S91,\">1\")))","v":""},{"$f":"IF(SUM('2011 Survey responses'!T91:U91)<2.1,\"\",(AVERAGEIFS('2011 Survey responses'!T91:U91,'2011 Survey responses'!T91:U91,\">1\")))","v":""},{"$f":"IF(SUM('2011 Survey responses'!B91:C91)<2.1,\"\",((SUMIF('2011 Survey responses'!B91:C91,\">1\")+SUMIF('2011 Survey responses'!F91,\">1\"))/(COUNTIF('2011 Survey responses'!B91:C91,\">1\")+COUNTIF('2011 Survey responses'!F91,\">1\"))))","v":""},{"$f":"IF(SUM('2011 Survey responses'!D91:E91)<2.1,\"\",(AVERAGEIFS('2011 Survey responses'!D91:E91,'2011 Survey responses'!D91:E91,\">1\")))","v":""},{"$f":"IF(('2011 Survey responses'!B91+'2011 Survey responses'!D91)<2.1,\"\",((SUMIF('2011 Survey responses'!B91,\">1\")+SUMIF('2011 Survey responses'!D91,\">1\")+SUMIF('2011 Survey responses'!F91,\">1\")+SUMIF('2011 Survey responses'!K91,\">1\"))/(COUNTIF('2011 Survey responses'!B91,\">1\")+COUNTIF('2011 Survey responses'!D91,\">1\")+COUNTIF('2011 Survey responses'!F91,\">1\")+COUNTIF('2011 Survey responses'!K91,\">1\"))))","v":""},{"$f":"IF(SUM('2011 Survey responses'!G91:H91)<2.1,\"\",(AVERAGEIFS('2011 Survey responses'!G91:H91,'2011 Survey responses'!G91:H91,\">1\")))","v":""},{"$f":"IF(SUM('2011 Survey responses'!F91:G91)<1.5,\"\",MAX('2011 Survey responses'!F91,'2011 Survey responses'!G91))","v":""},{"$f":"IF(SUM('2011 Survey responses'!G91:H91)<1,\"\",MAX('2011 Survey responses'!G91,'2011 Survey responses'!H91))","v":""},{"$f":"IF(SUM('2011 Survey responses'!I91:L91)<4.1,\"\",(AVERAGEIFS('2011 Survey responses'!I91:L91,'2011 Survey responses'!I91:L91,\">1\")))","v":""},{"$f":"IF(SUM('2011 Survey responses'!M91:S91)<4.1,\"\",(AVERAGEIFS('2011 Survey responses'!M91:S91,'2011 Survey responses'!M91:S91,\">1\")))","v":""},{"$f":"IF(SUM('2011 Survey responses'!T91:U91)<2.1,\"\",(AVERAGEIFS('2011 Survey responses'!T91:U91,'2011 Survey responses'!T91:U91,\">1\")))","v":""},{"$f":"IF(SUM('2011 Survey responses'!V91:AO91)<1,\"\",(AVERAGEIFS('2011 Survey responses'!V91:AO91,'2011 Survey responses'!V91:AO91,\">1\")))","v":""},{"$f":"IF(SUM('2011 Survey responses'!V91:AA91)<1,\"\",(AVERAGEIFS('2011 Survey responses'!V91:AA91,'2011 Survey responses'!V91:AA91,\">1\")))","v":""},{"$f":"IF(SUM('2011 Survey responses'!AB91:AH91)<1,\"\",(AVERAGEIFS('2011 Survey responses'!AB91:AH91,'2011 Survey responses'!AB91:AH91,\">1\")))","v":""},{"$f":"IF(SUM('2011 Survey responses'!AI91:AO91)<1,\"\",(AVERAGEIFS('2011 Survey responses'!AI91:AO91,'2011 Survey responses'!AI91:AO91,\">1\")))","v":""},{"$f":"IF(('2011 Survey responses'!Y91+'2011 Survey responses'!AI91+'2011 Survey responses'!AK91)<3.1,\"\",((SUMIF('2011 Survey responses'!Y91,\">1\")+SUMIF('2011 Survey responses'!AI91,\">1\")+SUMIF('2011 Survey responses'!AK91,\">1\")+SUMIF('2011 Survey responses'!AM91,\">1\"))/(COUNTIF('2011 Survey responses'!Y91,\">1\")+COUNTIF('2011 Survey responses'!AI91,\">1\")+COUNTIF('2011 Survey responses'!AK91,\">1\")+COUNTIF('2011 Survey responses'!AM91,\">1\"))))","v":""},{"$f":"IF(('2011 Survey responses'!W91)<1.1,\"\",('2011 Survey responses'!W91))","v":""},{"$f":"IF(('2011 Survey responses'!Y91)<1.1,\"\",('2011 Survey responses'!Y91))","v":""},{"$f":"IF(('2011 Survey responses'!Z91)<1.1,\"\",('2011 Survey responses'!Z91))","v":""},{"$f":"IF(('2011 Survey responses'!V91+'2011 Survey responses'!X91+'2011 Survey responses'!AA91)<3.1,\"\",((SUMIF('2011 Survey responses'!V91,\">1\")+SUMIF('2011 Survey responses'!X91,\">1\")+SUMIF('2011 Survey responses'!AA91,\">1\"))/(COUNTIF('2011 Survey responses'!V91,\">1\")+COUNTIF('2011 Survey responses'!X91,\">1\")+COUNTIF('2011 Survey responses'!AA91,\">1\"))))","v":""},{"$f":"IF(('2011 Survey responses'!V91+'2011 Survey responses'!Y91+'2011 Survey responses'!AA91)<3.1,\"\",((SUMIF('2011 Survey responses'!V91,\">1\")+SUMIF('2011 Survey responses'!Y91,\">1\")+SUMIF('2011 Survey responses'!AA91,\">1\"))/(COUNTIF('2011 Survey responses'!V91,\">1\")+COUNTIF('2011 Survey responses'!Y91,\">1\")+COUNTIF('2011 Survey responses'!AA91,\">1\"))))","v":""},{"$f":"IF(SUM('2011 Survey responses'!AB91:AH91)<1,\"\",(AVERAGEIFS('2011 Survey responses'!AB91:AH91,'2011 Survey responses'!AB91:AH91,\">1\")))","v":""},{"$f":"IF(SUM('2011 Survey responses'!AI91:AO91)<7.1,\"\",(AVERAGEIFS('2011 Survey responses'!AI91:AO91,'2011 Survey responses'!AI91:AO91,\">1\")))","v":""},{"$f":"IF(('2011 Survey responses'!AH91)<1.1,\"\",('2011 Survey responses'!AH91))","v":""},{"$f":"IF(SUM('2011 Survey responses'!AP91:BV91)<1,\"\",(AVERAGEIFS('2011 Survey responses'!AP91:BV91,'2011 Survey responses'!AP91:BV91,\">1\")))","v":""},{"$f":"IF(SUM('2011 Survey responses'!AP91:AS91)<4.1,\"\",(AVERAGEIFS('2011 Survey responses'!AP91:AS91,'2011 Survey responses'!AP91:AS91,\">1\")))","v":""},{"$f":"IF(SUM('2011 Survey responses'!AT91:BF91)<1,\"\",(AVERAGEIFS('2011 Survey responses'!AT91:BF91,'2011 Survey responses'!AT91:BF91,\">1\")))","v":""},{"$f":"IF(SUM('2011 Survey responses'!BG91:BO91)<1,\"\",(AVERAGEIFS('2011 Survey responses'!BG91:BO91,'2011 Survey responses'!BG91:BO91,\">1\")))","v":""},{"$f":"IF(SUM('2011 Survey responses'!BP91:BS91)<1,\"\",(AVERAGEIFS('2011 Survey responses'!BP91:BS91,'2011 Survey responses'!BP91:BS91,\">1\")))","v":""},{"$f":"IF(SUM('2011 Survey responses'!BT91:BV91)<3.1,\"\",(AVERAGEIFS('2011 Survey responses'!BT91:BV91,'2011 Survey responses'!BT91:BV91,\">1\")))","v":""},{"$f":"IF(('2011 Survey responses'!AQ91+'2011 Survey responses'!AR91+'2011 Survey responses'!BG91)<3.1,\"\",((SUMIF('2011 Survey responses'!AQ91,\">1\")+SUMIF('2011 Survey responses'!AR91,\">1\")+SUMIF('2011 Survey responses'!BG91,\">1\"))/(COUNTIF('2011 Survey responses'!AQ91,\">1\")+COUNTIF('2011 Survey responses'!AR91,\">1\")+COUNTIF('2011 Survey responses'!BG91,\">1\"))))","v":""},{"$f":"IF(SUM('2011 Survey responses'!AP91:AS91)<4.1,\"\",(AVERAGEIFS('2011 Survey responses'!AP91:AS91,'2011 Survey responses'!AP91:AS91,\">1\")))","v":""},{"$f":"IF(('2011 Survey responses'!AU91+'2011 Survey responses'!AX91+'2011 Survey responses'!BA91+'2011 Survey responses'!BC91+'2011 Survey responses'!BD91)<5.1,\"\",(SUMIF('2011 Survey responses'!AU91,\">1\")+SUMIF('2011 Survey responses'!AX91,\">1\")+SUMIF('2011 Survey responses'!BA91,\">1\")+SUMIF('2011 Survey responses'!BC91,\">1\")+SUMIF('2011 Survey responses'!BD91,\">1\"))/(COUNTIF('2011 Survey responses'!AU91,\">1\")+COUNTIF('2011 Survey responses'!AX91,\">1\")+COUNTIF('2011 Survey responses'!BA91,\">1\")+COUNTIF('2011 Survey responses'!BC91,\">1\")+COUNTIF('2011 Survey responses'!BD91,\">1\")))","v":""},{"$f":"IF(('2011 Survey responses'!AT91)<1.1,\"\",('2011 Survey responses'!AT91))","v":""},{"$f":"IF(SUM('2011 Survey responses'!AV91:AW91)<2.1,\"\",(AVERAGEIFS('2011 Survey responses'!AV91:AW91,'2011 Survey responses'!AV91:AW91,\">1\")))","v":""},{"$f":"IF(('2011 Survey responses'!AW91+'2011 Survey responses'!AY91)<2.1,\"\",(SUMIF('2011 Survey responses'!AW91,\">1\")+SUMIF('2011 Survey responses'!AY91,\">1\"))/(COUNTIF('2011 Survey responses'!AW91,\">1\")+COUNTIF('2011 Survey responses'!AY91,\">1\")))","v":""},{"$f":"IF(('2011 Survey responses'!AZ91)<1.1,\"\",('2011 Survey responses'!AZ91))","v":""},null,null,null,null,{"$f":"IF(('2011 Survey responses'!BE91)<1.1,\"\",('2011 Survey responses'!BE91))","v":""},{"$f":"IF(('2011 Survey responses'!AY91+'2011 Survey responses'!BB91+'2011 Survey responses'!BF91)<3.1,\"\",(SUMIF('2011 Survey responses'!AY91,\">1\")+SUMIF('2011 Survey responses'!BB91,\">1\")+SUMIF('2011 Survey responses'!BF91,\">1\"))/(COUNTIF('2011 Survey responses'!AY91,\">1\")+COUNTIF('2011 Survey responses'!BB91,\">1\")+COUNTIF('2011 Survey responses'!BF91,\">1\")))","v":""},"",{"$f":"IF(SUM('2011 Survey responses'!BT91:BV91)<3.1,\"\",(AVERAGEIFS('2011 Survey responses'!BT91:BV91,'2011 Survey responses'!BT91:BV91,\">1\")))","v":""},{"$f":"IF(SUM('2011 Survey responses'!BW91:CP91)<1,\"\",(AVERAGEIFS('2011 Survey responses'!BW91:CP91,'2011 Survey responses'!BW91:CP91,\">1\")))","v":""},{"$f":"IF(SUM('2011 Survey responses'!BW91:CF91)<1,\"\",(AVERAGEIFS('2011 Survey responses'!BW91:CF91,'2011 Survey responses'!BW91:CF91,\">1\")))","v":""},{"$f":"IF(SUM('2011 Survey responses'!CG91:CP91)<1,\"\",(AVERAGEIFS('2011 Survey responses'!CG91:CP91,'2011 Survey responses'!CG91:CP91,\">1\")))","v":""},{"$f":"IF(SUM('2011 Survey responses'!BX91:CF91)<1,\"\",(AVERAGEIFS('2011 Survey responses'!BX91:CF91,'2011 Survey responses'!BX91:CF91,\">1\")))","v":""},{"$f":"IF(SUM('2011 Survey responses'!CH91:CP91)<1,\"\",(AVERAGEIFS('2011 Survey responses'!CH91:CP91,'2011 Survey responses'!CH91:CP91,\">1\")))","v":""},{"$f":"IF(SUM('2011 Survey responses'!BW91:CP91)<1,\"\",(AVERAGEIFS('2011 Survey responses'!BW91:CP91,'2011 Survey responses'!BW91:CP91,\">1\")))","v":""},{"$f":"IF(('2011 Survey responses'!BW91+'2011 Survey responses'!CG91)<2.1,\"\",(SUMIF('2011 Survey responses'!BW91,\">1\")+SUMIF('2011 Survey responses'!CG91,\">1\"))/(COUNTIF('2011 Survey responses'!BW91,\">1\")+COUNTIF('2011 Survey responses'!CG91,\">1\")))","v":""},{"$f":"IF(('2011 Survey responses'!BX91+'2011 Survey responses'!CH91)<2.1,\"\",(SUMIF('2011 Survey responses'!BX91,\">1\")+SUMIF('2011 Survey responses'!CH91,\">1\"))/(COUNTIF('2011 Survey responses'!BX91,\">1\")+COUNTIF('2011 Survey responses'!CH91,\">1\")))","v":""},{"$f":"IF(('2011 Survey responses'!BY91+'2011 Survey responses'!CI91)<2.1,\"\",(SUMIF('2011 Survey responses'!BY91,\">1\")+SUMIF('2011 Survey responses'!CI91,\">1\"))/(COUNTIF('2011 Survey responses'!BY91,\">1\")+COUNTIF('2011 Survey responses'!CI91,\">1\")))","v":""},{"$f":"IF('2011 Survey responses'!CQ91<0.5,\"\",'2011 Survey responses'!CQ91)","v":""},{"$f":"IF('2011 Survey responses'!CR91<0.5,\"\",'2011 Survey responses'!CR91)","v":""},{"$f":"IF('2011 Survey responses'!CS91<0.5,\"\",'2011 Survey responses'!CS91)","v":""},{"$f":"IF('2011 Survey responses'!CT91<0.5,\"\",'2011 Survey responses'!CT91)","v":""},{"$f":"IF('2011 Survey responses'!CU91<0.5,\"\",'2011 Survey responses'!CU91)","v":""},{"$f":"IF('2011 Survey responses'!CV91<0.5,\"\",'2011 Survey responses'!CV91)","v":""},{"$f":"IF(SUM('2011 Survey responses'!CW91:DL91)<1,\"\",(AVERAGE('2011 Survey responses'!CW91:DL91)))","v":""},{"$f":"IF(SUM('2011 Survey responses'!CW91:CZ91)<1,\"\",(AVERAGE('2011 Survey responses'!CW91:CZ91)))","v":""},{"$f":"IF(SUM('2011 Survey responses'!DA91:DD91)<1,\"\",(AVERAGE('2011 Survey responses'!DA91:DD91)))","v":""},{"$f":"IF(SUM('2011 Survey responses'!DE91:DH91)<1,\"\",(AVERAGE('2011 Survey responses'!DE91:DH91)))","v":""},{"$f":"IF(SUM('2011 Survey responses'!DI91:DL91)<1,\"\",(AVERAGE('2011 Survey responses'!DI91:DL91)))","v":""},{"$f":"IF(('2011 Survey responses'!CW91+'2011 Survey responses'!DA91+'2011 Survey responses'!DE91+'2011 Survey responses'!DI91)<1,\"\",AVERAGE('2011 Survey responses'!CW91,'2011 Survey responses'!DA91,'2011 Survey responses'!DE91,'2011 Survey responses'!DI91))","v":""},{"$f":"IF(('2011 Survey responses'!CX91+'2011 Survey responses'!DB91+'2011 Survey responses'!DF91+'2011 Survey responses'!DJ91)<1,\"\",AVERAGE('2011 Survey responses'!CX91,'2011 Survey responses'!DB91,'2011 Survey responses'!DF91,'2011 Survey responses'!DJ91))","v":""},{"$f":"IF(('2011 Survey responses'!CY91+'2011 Survey responses'!DC91+'2011 Survey responses'!DG91+'2011 Survey responses'!DK91)<1,\"\",AVERAGE('2011 Survey responses'!CY91,'2011 Survey responses'!DC91,'2011 Survey responses'!DG91,'2011 Survey responses'!DK91))","v":""},{"$f":"IF(('2011 Survey responses'!CZ91+'2011 Survey responses'!DD91+'2011 Survey responses'!DH91+'2011 Survey responses'!DL91)<1,\"\",AVERAGE('2011 Survey responses'!CZ91,'2011 Survey responses'!DD91,'2011 Survey responses'!DH91,'2011 Survey responses'!DL91))","v":""},{"$f":"IF('2011 Survey responses'!CW91<0.5,\"\",'2011 Survey responses'!CW91)","v":""},{"$f":"IF('2011 Survey responses'!CX91<0.5,\"\",'2011 Survey responses'!CX91)","v":""},{"$f":"IF('2011 Survey responses'!CY91<0.5,\"\",'2011 Survey responses'!CY91)","v":""},{"$f":"IF('2011 Survey responses'!CZ91<0.5,\"\",'2011 Survey responses'!CZ91)","v":""},{"$f":"IF('2011 Survey responses'!DA91<0.5,\"\",'2011 Survey responses'!DA91)","v":""},{"$f":"IF('2011 Survey responses'!DB91<0.5,\"\",'2011 Survey responses'!DB91)","v":""},{"$f":"IF('2011 Survey responses'!DC91<0.5,\"\",'2011 Survey responses'!DC91)","v":""},{"$f":"IF('2011 Survey responses'!DD91<0.5,\"\",'2011 Survey responses'!DD91)","v":""},{"$f":"IF('2011 Survey responses'!DE91<0.5,\"\",'2011 Survey responses'!DE91)","v":""},{"$f":"IF('2011 Survey responses'!DF91<0.5,\"\",'2011 Survey responses'!DF91)","v":""},{"$f":"IF('2011 Survey responses'!DG91<0.5,\"\",'2011 Survey responses'!DG91)","v":""},{"$f":"IF('2011 Survey responses'!DH91<0.5,\"\",'2011 Survey responses'!DH91)","v":""},{"$f":"IF('2011 Survey responses'!DI91<0.5,\"\",'2011 Survey responses'!DI91)","v":""},{"$f":"IF('2011 Survey responses'!DJ91<0.5,\"\",'2011 Survey responses'!DJ91)","v":""},{"$f":"IF('2011 Survey responses'!DK91<0.5,\"\",'2011 Survey responses'!DK91)","v":""},{"$f":"IF('2011 Survey responses'!DL91<0.5,\"\",'2011 Survey responses'!DL91)","v":""},{"$f":"IF('2011 Survey responses'!DU91=4,4,IF('2011 Survey responses'!DU91=5,4,\"\"))","v":""},{"$f":"IF('2011 Survey responses'!DV91=4,3,IF('2011 Survey responses'!DV91=5,3,\"\"))","v":""},"",{"$f":"IF(CQ91=2,CQ91,IF(CO91=4,CO91,IF(CP91=3,CP91,IF('2011 Survey responses'!GT91=1,1,\"\"))))","v":""},{"$f":"IF('2011 Survey responses'!DO91<0.5,\"\",'2011 Survey responses'!DO91)","v":""},{"$f":"IF('2011 Survey responses'!DP91<0.5,\"\",'2011 Survey responses'!DP91)","v":""},{"$f":"IF('2011 Survey responses'!DQ91<0.5,\"\",'2011 Survey responses'!DQ91)","v":""},{"$f":"IF('2011 Survey responses'!DR91<0.5,\"\",'2011 Survey responses'!DR91)","v":""},{"$f":"IF('2011 Survey responses'!DS91<0.5,\"\",'2011 Survey responses'!DS91)","v":""},{"$f":"IF('2011 Survey responses'!DT91<0.5,\"\",'2011 Survey responses'!DT91)","v":""},{"$f":"IF('2011 Survey responses'!DU91<0.5,\"\",'2011 Survey responses'!DU91)","v":""},{"$f":"IF('2011 Survey responses'!DV91<0.5,\"\",'2011 Survey responses'!DV91)","v":""},{"$f":"IF('2011 Survey responses'!DW91<0.5,\"\",'2011 Survey responses'!DW91)","v":""},{"$f":"IF('2011 Survey responses'!DX91<0.5,\"\",'2011 Survey responses'!DX91)","v":""},{"$f":"IF('2011 Survey responses'!DY91<0.5,\"\",'2011 Survey responses'!DY91)","v":""},{"$f":"IF('2011 Survey responses'!DZ91<0.5,\"\",'2011 Survey responses'!DZ91)","v":""},{"$f":"IF('2011 Survey responses'!EA91<0.5,\"\",'2011 Survey responses'!EA91)","v":""},{"$f":"IF('2011 Survey responses'!EB91<0.5,\"\",'2011 Survey responses'!EB91)","v":""},{"$f":"IF('2011 Survey responses'!EC91<0.5,\"\",'2011 Survey responses'!EC91)","v":""},{"$f":"IF('2011 Survey responses'!ED91<0.5,\"\",'2011 Survey responses'!ED91)","v":""},{"$f":"IF('2011 Survey responses'!EE91<0.5,\"\",'2011 Survey responses'!EE91)","v":""},{"$f":"IF('2011 Survey responses'!EF91<0.5,\"\",'2011 Survey responses'!EF91)","v":""},{"$f":"IF('2011 Survey responses'!EG91<0.5,\"\",'2011 Survey responses'!EG91)","v":""},{"$f":"IF('2011 Survey responses'!EH91<0.5,\"\",'2011 Survey responses'!EH91)","v":""},{"$f":"IF('2011 Survey responses'!EI91<0.5,\"\",'2011 Survey responses'!EI91)","v":""},{"$f":"IF('2011 Survey responses'!EJ91<0.5,\"\",'2011 Survey responses'!EJ91)","v":""},{"$f":"IF('2011 Survey responses'!EK91<0.5,\"\",'2011 Survey responses'!EK91)","v":""},{"$f":"IF('2011 Survey responses'!EL91<0.5,\"\",'2011 Survey responses'!EL91)","v":""},{"$f":"IF('2011 Survey responses'!EM91<0.5,\"\",'2011 Survey responses'!EM91)","v":""},{"$f":"IF('2011 Survey responses'!EN91<0.5,\"\",'2011 Survey responses'!EN91)","v":""},{"$f":"IF('2011 Survey responses'!EO91<0.5,\"\",'2011 Survey responses'!EO91)","v":""},{"$f":"IF('2011 Survey responses'!EP91<0.5,\"\",'2011 Survey responses'!EP91)","v":""},{"$f":"IF(('2011 Survey responses'!EW91+'2011 Survey responses'!EX91)>=2,AVERAGE('2011 Survey responses'!EW91,'2011 Survey responses'!EY91),\"\")","v":""},{"$f":"IF('2011 Survey responses'!EX91<0.5,\"\",'2011 Survey responses'!EX91)","v":""},{"$f":"IF('2011 Survey responses'!EZ91<0.5,\"\",'2011 Survey responses'!EZ91)","v":""},{"$f":"IF('2011 Survey responses'!FB91<0.5,\"\",'2011 Survey responses'!FB91)","v":""},{"$f":"IF('2011 Survey responses'!FD91<0.5,\"\",'2011 Survey responses'!FD91)","v":""},{"$f":"IF('2011 Survey responses'!FC91<0.5,\"\",'2011 Survey responses'!FC91)","v":""},{"$f":"IF(('2011 Survey responses'!EM91+'2011 Survey responses'!EN91)>=2,AVERAGE('2011 Survey responses'!EM91,'2011 Survey responses'!EN91),\"\")","v":""},{"$f":"IF('2011 Survey responses'!ES91<0.5,\"\",'2011 Survey responses'!ES91)","v":""},{"$f":"IF(('2011 Survey responses'!ET91+'2011 Survey responses'!EU91)>=2,AVERAGE('2011 Survey responses'!ET91,'2011 Survey responses'!EU91),\"\")","v":""},{"$f":"IF('2011 Survey responses'!EV91<0.5,\"\",'2011 Survey responses'!EV91)","v":""},{"$f":"IF('2011 Survey responses'!FA91<0.5,\"\",'2011 Survey responses'!FA91)","v":""},{"$f":"IF('2011 Survey responses'!ER91<0.5,\"\",'2011 Survey responses'!ER91)","v":""},{"$f":"IF(('2011 Survey responses'!EO91+'2011 Survey responses'!EP91)>=2,AVERAGE('2011 Survey responses'!EO91,'2011 Survey responses'!EP91),\"\")","v":""},{"$f":"IF('2011 Survey responses'!EQ91<0.5,\"\",'2011 Survey responses'!EQ91)","v":""},{"$f":"IF('2011 Survey responses'!ET91<0.5,\"\",'2011 Survey responses'!ET91)","v":""},{"$f":"IF('2011 Survey responses'!EU91<0.5,\"\",'2011 Survey responses'!EU91)","v":""},{"$f":"IF('2011 Survey responses'!EW91<0.5,\"\",'2011 Survey responses'!EW91)","v":""},{"$f":"IF('2011 Survey responses'!EY91<0.5,\"\",'2011 Survey responses'!EY91)","v":""},{"$f":"IF('2011 Survey responses'!FU91<0.5,\"\",'2011 Survey responses'!FU91)","v":""},{"$f":"IF(('2011 Survey responses'!FL91+'2011 Survey responses'!FM91)>=2,AVERAGE('2011 Survey responses'!FL91,'2011 Survey responses'!FM91),\"\")","v":""},{"$f":"IF(('2011 Survey responses'!FO91+'2011 Survey responses'!FQ91)>=2,AVERAGE('2011 Survey responses'!FO91,'2011 Survey responses'!FQ91),\"\")","v":""},{"$f":"IF('2011 Survey responses'!FJ91<0.5,\"\",'2011 Survey responses'!FJ91)","v":""},{"$f":"IF('2011 Survey responses'!FT91<0.5,\"\",'2011 Survey responses'!FT91)","v":""},{"$f":"IF('2011 Survey responses'!FR91<0.5,\"\",'2011 Survey responses'!FR91)","v":""},{"$f":"IF('2011 Survey responses'!FK91<0.5,\"\",'2011 Survey responses'!FK91)","v":""},{"$f":"IF('2011 Survey responses'!FP91<0.5,\"\",'2011 Survey responses'!FP91)","v":""},{"$f":"IF('2011 Survey responses'!FN91<0.5,\"\",'2011 Survey responses'!FN91)","v":""},{"$f":"IF(('2011 Survey responses'!FE91+'2011 Survey responses'!FF91)>=2,AVERAGE('2011 Survey responses'!FE91,'2011 Survey responses'!FF91),\"\")","v":""},{"$f":"IF('2011 Survey responses'!FS91<0.5,\"\",'2011 Survey responses'!FS91)","v":""},{"$f":"IF('2011 Survey responses'!FV91<0.5,\"\",'2011 Survey responses'!FV91)","v":""},{"$f":"IF(('2011 Survey responses'!FG91+'2011 Survey responses'!FH91)>=2,AVERAGE('2011 Survey responses'!FG91,'2011 Survey responses'!FH91),\"\")","v":""},{"$f":"IF('2011 Survey responses'!FI91<0.5,\"\",'2011 Survey responses'!FI91)","v":""},{"$f":"IF('2011 Survey responses'!FE91<0.5,\"\",'2011 Survey responses'!FE91)","v":""},{"$f":"IF('2011 Survey responses'!FF91<0.5,\"\",'2011 Survey responses'!FF91)","v":""},{"$f":"IF('2011 Survey responses'!FG91<0.5,\"\",'2011 Survey responses'!FG91)","v":""},{"$f":"IF('2011 Survey responses'!FH91<0.5,\"\",'2011 Survey responses'!FH91)","v":""},{"$f":"IF('2011 Survey responses'!FL91<0.5,\"\",'2011 Survey responses'!FL91)","v":""},{"$f":"IF('2011 Survey responses'!FM91<0.5,\"\",'2011 Survey responses'!FM91)","v":""},{"$f":"IF('2011 Survey responses'!FO91<0.5,\"\",'2011 Survey responses'!FO91)","v":""},{"$f":"IF('2011 Survey responses'!FQ91<0.5,\"\",'2011 Survey responses'!FQ91)","v":""}]
["Kuwait",{"$f":"IF(SUM(F92)<1,\"\",AVERAGEIF('2011 Survey responses'!B92:CP92,\">1\"))","v":""},{"$f":"IF(SUM(F92)<1,\"\",AVERAGEIF('2011 Survey responses'!B92:AO92,\">1\"))","v":""},{"$f":"IF(SUM(F92)<1,\"\",AVERAGEIF('2011 Survey responses'!B92:BV92,\">1\"))","v":""},{"$f":"IF(SUM(F92)<1,\"\",AVERAGEIF('2011 Survey responses'!V92:BV92,\">1\"))","v":""},{"$f":"IF(SUM('2011 Survey responses'!B92:U92)<1,\"\",(AVERAGEIFS('2011 Survey responses'!B92:U92,'2011 Survey responses'!B92:U92,\">1\")))","v":""},{"$f":"IF(SUM('2011 Survey responses'!B92:H92)<1,\"\",(AVERAGEIFS('2011 Survey responses'!B92:H92,'2011 Survey responses'!B92:H92,\">1\")))","v":""},{"$f":"IF(SUM('2011 Survey responses'!I92:S92)<1,\"\",(AVERAGEIFS('2011 Survey responses'!I92:S92,'2011 Survey responses'!I92:S92,\">1\")))","v":""},{"$f":"IF(SUM('2011 Survey responses'!T92:U92)<2.1,\"\",(AVERAGEIFS('2011 Survey responses'!T92:U92,'2011 Survey responses'!T92:U92,\">1\")))","v":""},{"$f":"IF(SUM('2011 Survey responses'!B92:C92)<2.1,\"\",((SUMIF('2011 Survey responses'!B92:C92,\">1\")+SUMIF('2011 Survey responses'!F92,\">1\"))/(COUNTIF('2011 Survey responses'!B92:C92,\">1\")+COUNTIF('2011 Survey responses'!F92,\">1\"))))","v":""},{"$f":"IF(SUM('2011 Survey responses'!D92:E92)<2.1,\"\",(AVERAGEIFS('2011 Survey responses'!D92:E92,'2011 Survey responses'!D92:E92,\">1\")))","v":""},{"$f":"IF(('2011 Survey responses'!B92+'2011 Survey responses'!D92)<2.1,\"\",((SUMIF('2011 Survey responses'!B92,\">1\")+SUMIF('2011 Survey responses'!D92,\">1\")+SUMIF('2011 Survey responses'!F92,\">1\")+SUMIF('2011 Survey responses'!K92,\">1\"))/(COUNTIF('2011 Survey responses'!B92,\">1\")+COUNTIF('2011 Survey responses'!D92,\">1\")+COUNTIF('2011 Survey responses'!F92,\">1\")+COUNTIF('2011 Survey responses'!K92,\">1\"))))","v":""},{"$f":"IF(SUM('2011 Survey responses'!G92:H92)<2.1,\"\",(AVERAGEIFS('2011 Survey responses'!G92:H92,'2011 Survey responses'!G92:H92,\">1\")))","v":""},{"$f":"IF(SUM('2011 Survey responses'!F92:G92)<1.5,\"\",MAX('2011 Survey responses'!F92,'2011 Survey responses'!G92))","v":""},{"$f":"IF(SUM('2011 Survey responses'!G92:H92)<1,\"\",MAX('2011 Survey responses'!G92,'2011 Survey responses'!H92))","v":""},{"$f":"IF(SUM('2011 Survey responses'!I92:L92)<4.1,\"\",(AVERAGEIFS('2011 Survey responses'!I92:L92,'2011 Survey responses'!I92:L92,\">1\")))","v":""},{"$f":"IF(SUM('2011 Survey responses'!M92:S92)<4.1,\"\",(AVERAGEIFS('2011 Survey responses'!M92:S92,'2011 Survey responses'!M92:S92,\">1\")))","v":""},{"$f":"IF(SUM('2011 Survey responses'!T92:U92)<2.1,\"\",(AVERAGEIFS('2011 Survey responses'!T92:U92,'2011 Survey responses'!T92:U92,\">1\")))","v":""},{"$f":"IF(SUM('2011 Survey responses'!V92:AO92)<1,\"\",(AVERAGEIFS('2011 Survey responses'!V92:AO92,'2011 Survey responses'!V92:AO92,\">1\")))","v":""},{"$f":"IF(SUM('2011 Survey responses'!V92:AA92)<1,\"\",(AVERAGEIFS('2011 Survey responses'!V92:AA92,'2011 Survey responses'!V92:AA92,\">1\")))","v":""},{"$f":"IF(SUM('2011 Survey responses'!AB92:AH92)<1,\"\",(AVERAGEIFS('2011 Survey responses'!AB92:AH92,'2011 Survey responses'!AB92:AH92,\">1\")))","v":""},{"$f":"IF(SUM('2011 Survey responses'!AI92:AO92)<1,\"\",(AVERAGEIFS('2011 Survey responses'!AI92:AO92,'2011 Survey responses'!AI92:AO92,\">1\")))","v":""},{"$f":"IF(('2011 Survey responses'!Y92+'2011 Survey responses'!AI92+'2011 Survey responses'!AK92)<3.1,\"\",((SUMIF('2011 Survey responses'!Y92,\">1\")+SUMIF('2011 Survey responses'!AI92,\">1\")+SUMIF('2011 Survey responses'!AK92,\">1\")+SUMIF('2011 Survey responses'!AM92,\">1\"))/(COUNTIF('2011 Survey responses'!Y92,\">1\")+COUNTIF('2011 Survey responses'!AI92,\">1\")+COUNTIF('2011 Survey responses'!AK92,\">1\")+COUNTIF('2011 Survey responses'!AM92,\">1\"))))","v":""},{"$f":"IF(('2011 Survey responses'!W92)<1.1,\"\",('2011 Survey responses'!W92))","v":""},{"$f":"IF(('2011 Survey responses'!Y92)<1.1,\"\",('2011 Survey responses'!Y92))","v":""},{"$f":"IF(('2011 Survey responses'!Z92)<1.1,\"\",('2011 Survey responses'!Z92))","v":""},{"$f":"IF(('2011 Survey responses'!V92+'2011 Survey responses'!X92+'2011 Survey responses'!AA92)<3.1,\"\",((SUMIF('2011 Survey responses'!V92,\">1\")+SUMIF('2011 Survey responses'!X92,\">1\")+SUMIF('2011 Survey responses'!AA92,\">1\"))/(COUNTIF('2011 Survey responses'!V92,\">1\")+COUNTIF('2011 Survey responses'!X92,\">1\")+COUNTIF('2011 Survey responses'!AA92,\">1\"))))","v":""},{"$f":"IF(('2011 Survey responses'!V92+'2011 Survey responses'!Y92+'2011 Survey responses'!AA92)<3.1,\"\",((SUMIF('2011 Survey responses'!V92,\">1\")+SUMIF('2011 Survey responses'!Y92,\">1\")+SUMIF('2011 Survey responses'!AA92,\">1\"))/(COUNTIF('2011 Survey responses'!V92,\">1\")+COUNTIF('2011 Survey responses'!Y92,\">1\")+COUNTIF('2011 Survey responses'!AA92,\">1\"))))","v":""},{"$f":"IF(SUM('2011 Survey responses'!AB92:AH92)<1,\"\",(AVERAGEIFS('2011 Survey responses'!AB92:AH92,'2011 Survey responses'!AB92:AH92,\">1\")))","v":""},{"$f":"IF(SUM('2011 Survey responses'!AI92:AO92)<7.1,\"\",(AVERAGEIFS('2011 Survey responses'!AI92:AO92,'2011 Survey responses'!AI92:AO92,\">1\")))","v":""},{"$f":"IF(('2011 Survey responses'!AH92)<1.1,\"\",('2011 Survey responses'!AH92))","v":""},{"$f":"IF(SUM('2011 Survey responses'!AP92:BV92)<1,\"\",(AVERAGEIFS('2011 Survey responses'!AP92:BV92,'2011 Survey responses'!AP92:BV92,\">1\")))","v":""},{"$f":"IF(SUM('2011 Survey responses'!AP92:AS92)<4.1,\"\",(AVERAGEIFS('2011 Survey responses'!AP92:AS92,'2011 Survey responses'!AP92:AS92,\">1\")))","v":""},{"$f":"IF(SUM('2011 Survey responses'!AT92:BF92)<1,\"\",(AVERAGEIFS('2011 Survey responses'!AT92:BF92,'2011 Survey responses'!AT92:BF92,\">1\")))","v":""},{"$f":"IF(SUM('2011 Survey responses'!BG92:BO92)<1,\"\",(AVERAGEIFS('2011 Survey responses'!BG92:BO92,'2011 Survey responses'!BG92:BO92,\">1\")))","v":""},{"$f":"IF(SUM('2011 Survey responses'!BP92:BS92)<1,\"\",(AVERAGEIFS('2011 Survey responses'!BP92:BS92,'2011 Survey responses'!BP92:BS92,\">1\")))","v":""},{"$f":"IF(SUM('2011 Survey responses'!BT92:BV92)<3.1,\"\",(AVERAGEIFS('2011 Survey responses'!BT92:BV92,'2011 Survey responses'!BT92:BV92,\">1\")))","v":""},{"$f":"IF(('2011 Survey responses'!AQ92+'2011 Survey responses'!AR92+'2011 Survey responses'!BG92)<3.1,\"\",((SUMIF('2011 Survey responses'!AQ92,\">1\")+SUMIF('2011 Survey responses'!AR92,\">1\")+SUMIF('2011 Survey responses'!BG92,\">1\"))/(COUNTIF('2011 Survey responses'!AQ92,\">1\")+COUNTIF('2011 Survey responses'!AR92,\">1\")+COUNTIF('2011 Survey responses'!BG92,\">1\"))))","v":""},{"$f":"IF(SUM('2011 Survey responses'!AP92:AS92)<4.1,\"\",(AVERAGEIFS('2011 Survey responses'!AP92:AS92,'2011 Survey responses'!AP92:AS92,\">1\")))","v":""},{"$f":"IF(('2011 Survey responses'!AU92+'2011 Survey responses'!AX92+'2011 Survey responses'!BA92+'2011 Survey responses'!BC92+'2011 Survey responses'!BD92)<5.1,\"\",(SUMIF('2011 Survey responses'!AU92,\">1\")+SUMIF('2011 Survey responses'!AX92,\">1\")+SUMIF('2011 Survey responses'!BA92,\">1\")+SUMIF('2011 Survey responses'!BC92,\">1\")+SUMIF('2011 Survey responses'!BD92,\">1\"))/(COUNTIF('2011 Survey responses'!AU92,\">1\")+COUNTIF('2011 Survey responses'!AX92,\">1\")+COUNTIF('2011 Survey responses'!BA92,\">1\")+COUNTIF('2011 Survey responses'!BC92,\">1\")+COUNTIF('2011 Survey responses'!BD92,\">1\")))","v":""},{"$f":"IF(('2011 Survey responses'!AT92)<1.1,\"\",('2011 Survey responses'!AT92))","v":""},{"$f":"IF(SUM('2011 Survey responses'!AV92:AW92)<2.1,\"\",(AVERAGEIFS('2011 Survey responses'!AV92:AW92,'2011 Survey responses'!AV92:AW92,\">1\")))","v":""},{"$f":"IF(('2011 Survey responses'!AW92+'2011 Survey responses'!AY92)<2.1,\"\",(SUMIF('2011 Survey responses'!AW92,\">1\")+SUMIF('2011 Survey responses'!AY92,\">1\"))/(COUNTIF('2011 Survey responses'!AW92,\">1\")+COUNTIF('2011 Survey responses'!AY92,\">1\")))","v":""},{"$f":"IF(('2011 Survey responses'!AZ92)<1.1,\"\",('2011 Survey responses'!AZ92))","v":""},null,null,null,null,{"$f":"IF(('2011 Survey responses'!BE92)<1.1,\"\",('2011 Survey responses'!BE92))","v":""},{"$f":"IF(('2011 Survey responses'!AY92+'2011 Survey responses'!BB92+'2011 Survey responses'!BF92)<3.1,\"\",(SUMIF('2011 Survey responses'!AY92,\">1\")+SUMIF('2011 Survey responses'!BB92,\">1\")+SUMIF('2011 Survey responses'!BF92,\">1\"))/(COUNTIF('2011 Survey responses'!AY92,\">1\")+COUNTIF('2011 Survey responses'!BB92,\">1\")+COUNTIF('2011 Survey responses'!BF92,\">1\")))","v":""},"",{"$f":"IF(SUM('2011 Survey responses'!BT92:BV92)<3.1,\"\",(AVERAGEIFS('2011 Survey responses'!BT92:BV92,'2011 Survey responses'!BT92:BV92,\">1\")))","v":""},{"$f":"IF(SUM('2011 Survey responses'!BW92:CP92)<1,\"\",(AVERAGEIFS('2011 Survey responses'!BW92:CP92,'2011 Survey responses'!BW92:CP92,\">1\")))","v":""},{"$f":"IF(SUM('2011 Survey responses'!BW92:CF92)<1,\"\",(AVERAGEIFS('2011 Survey responses'!BW92:CF92,'2011 Survey responses'!BW92:CF92,\">1\")))","v":""},{"$f":"IF(SUM('2011 Survey responses'!CG92:CP92)<1,\"\",(AVERAGEIFS('2011 Survey responses'!CG92:CP92,'2011 Survey responses'!CG92:CP92,\">1\")))","v":""},{"$f":"IF(SUM('2011 Survey responses'!BX92:CF92)<1,\"\",(AVERAGEIFS('2011 Survey responses'!BX92:CF92,'2011 Survey responses'!BX92:CF92,\">1\")))","v":""},{"$f":"IF(SUM('2011 Survey responses'!CH92:CP92)<1,\"\",(AVERAGEIFS('2011 Survey responses'!CH92:CP92,'2011 Survey responses'!CH92:CP92,\">1\")))","v":""},{"$f":"IF(SUM('2011 Survey responses'!BW92:CP92)<1,\"\",(AVERAGEIFS('2011 Survey responses'!BW92:CP92,'2011 Survey responses'!BW92:CP92,\">1\")))","v":""},{"$f":"IF(('2011 Survey responses'!BW92+'2011 Survey responses'!CG92)<2.1,\"\",(SUMIF('2011 Survey responses'!BW92,\">1\")+SUMIF('2011 Survey responses'!CG92,\">1\"))/(COUNTIF('2011 Survey responses'!BW92,\">1\")+COUNTIF('2011 Survey responses'!CG92,\">1\")))","v":""},{"$f":"IF(('2011 Survey responses'!BX92+'2011 Survey responses'!CH92)<2.1,\"\",(SUMIF('2011 Survey responses'!BX92,\">1\")+SUMIF('2011 Survey responses'!CH92,\">1\"))/(COUNTIF('2011 Survey responses'!BX92,\">1\")+COUNTIF('2011 Survey responses'!CH92,\">1\")))","v":""},{"$f":"IF(('2011 Survey responses'!BY92+'2011 Survey responses'!CI92)<2.1,\"\",(SUMIF('2011 Survey responses'!BY92,\">1\")+SUMIF('2011 Survey responses'!CI92,\">1\"))/(COUNTIF('2011 Survey responses'!BY92,\">1\")+COUNTIF('2011 Survey responses'!CI92,\">1\")))","v":""},{"$f":"IF('2011 Survey responses'!CQ92<0.5,\"\",'2011 Survey responses'!CQ92)","v":""},{"$f":"IF('2011 Survey responses'!CR92<0.5,\"\",'2011 Survey responses'!CR92)","v":""},{"$f":"IF('2011 Survey responses'!CS92<0.5,\"\",'2011 Survey responses'!CS92)","v":""},{"$f":"IF('2011 Survey responses'!CT92<0.5,\"\",'2011 Survey responses'!CT92)","v":""},{"$f":"IF('2011 Survey responses'!CU92<0.5,\"\",'2011 Survey responses'!CU92)","v":""},{"$f":"IF('2011 Survey responses'!CV92<0.5,\"\",'2011 Survey responses'!CV92)","v":""},{"$f":"IF(SUM('2011 Survey responses'!CW92:DL92)<1,\"\",(AVERAGE('2011 Survey responses'!CW92:DL92)))","v":""},{"$f":"IF(SUM('2011 Survey responses'!CW92:CZ92)<1,\"\",(AVERAGE('2011 Survey responses'!CW92:CZ92)))","v":""},{"$f":"IF(SUM('2011 Survey responses'!DA92:DD92)<1,\"\",(AVERAGE('2011 Survey responses'!DA92:DD92)))","v":""},{"$f":"IF(SUM('2011 Survey responses'!DE92:DH92)<1,\"\",(AVERAGE('2011 Survey responses'!DE92:DH92)))","v":""},{"$f":"IF(SUM('2011 Survey responses'!DI92:DL92)<1,\"\",(AVERAGE('2011 Survey responses'!DI92:DL92)))","v":""},{"$f":"IF(('2011 Survey responses'!CW92+'2011 Survey responses'!DA92+'2011 Survey responses'!DE92+'2011 Survey responses'!DI92)<1,\"\",AVERAGE('2011 Survey responses'!CW92,'2011 Survey responses'!DA92,'2011 Survey responses'!DE92,'2011 Survey responses'!DI92))","v":""},{"$f":"IF(('2011 Survey responses'!CX92+'2011 Survey responses'!DB92+'2011 Survey responses'!DF92+'2011 Survey responses'!DJ92)<1,\"\",AVERAGE('2011 Survey responses'!CX92,'2011 Survey responses'!DB92,'2011 Survey responses'!DF92,'2011 Survey responses'!DJ92))","v":""},{"$f":"IF(('2011 Survey responses'!CY92+'2011 Survey responses'!DC92+'2011 Survey responses'!DG92+'2011 Survey responses'!DK92)<1,\"\",AVERAGE('2011 Survey responses'!CY92,'2011 Survey responses'!DC92,'2011 Survey responses'!DG92,'2011 Survey responses'!DK92))","v":""},{"$f":"IF(('2011 Survey responses'!CZ92+'2011 Survey responses'!DD92+'2011 Survey responses'!DH92+'2011 Survey responses'!DL92)<1,\"\",AVERAGE('2011 Survey responses'!CZ92,'2011 Survey responses'!DD92,'2011 Survey responses'!DH92,'2011 Survey responses'!DL92))","v":""},{"$f":"IF('2011 Survey responses'!CW92<0.5,\"\",'2011 Survey responses'!CW92)","v":""},{"$f":"IF('2011 Survey responses'!CX92<0.5,\"\",'2011 Survey responses'!CX92)","v":""},{"$f":"IF('2011 Survey responses'!CY92<0.5,\"\",'2011 Survey responses'!CY92)","v":""},{"$f":"IF('2011 Survey responses'!CZ92<0.5,\"\",'2011 Survey responses'!CZ92)","v":""},{"$f":"IF('2011 Survey responses'!DA92<0.5,\"\",'2011 Survey responses'!DA92)","v":""},{"$f":"IF('2011 Survey responses'!DB92<0.5,\"\",'2011 Survey responses'!DB92)","v":""},{"$f":"IF('2011 Survey responses'!DC92<0.5,\"\",'2011 Survey responses'!DC92)","v":""},{"$f":"IF('2011 Survey responses'!DD92<0.5,\"\",'2011 Survey responses'!DD92)","v":""},{"$f":"IF('2011 Survey responses'!DE92<0.5,\"\",'2011 Survey responses'!DE92)","v":""},{"$f":"IF('2011 Survey responses'!DF92<0.5,\"\",'2011 Survey responses'!DF92)","v":""},{"$f":"IF('2011 Survey responses'!DG92<0.5,\"\",'2011 Survey responses'!DG92)","v":""},{"$f":"IF('2011 Survey responses'!DH92<0.5,\"\",'2011 Survey responses'!DH92)","v":""},{"$f":"IF('2011 Survey responses'!DI92<0.5,\"\",'2011 Survey responses'!DI92)","v":""},{"$f":"IF('2011 Survey responses'!DJ92<0.5,\"\",'2011 Survey responses'!DJ92)","v":""},{"$f":"IF('2011 Survey responses'!DK92<0.5,\"\",'2011 Survey responses'!DK92)","v":""},{"$f":"IF('2011 Survey responses'!DL92<0.5,\"\",'2011 Survey responses'!DL92)","v":""},{"$f":"IF('2011 Survey responses'!DU92=4,4,IF('2011 Survey responses'!DU92=5,4,\"\"))","v":""},{"$f":"IF('2011 Survey responses'!DV92=4,3,IF('2011 Survey responses'!DV92=5,3,\"\"))","v":""},"",{"$f":"IF(CQ92=2,CQ92,IF(CO92=4,CO92,IF(CP92=3,CP92,IF('2011 Survey responses'!GT92=1,1,\"\"))))","v":""},{"$f":"IF('2011 Survey responses'!DO92<0.5,\"\",'2011 Survey responses'!DO92)","v":""},{"$f":"IF('2011 Survey responses'!DP92<0.5,\"\",'2011 Survey responses'!DP92)","v":""},{"$f":"IF('2011 Survey responses'!DQ92<0.5,\"\",'2011 Survey responses'!DQ92)","v":""},{"$f":"IF('2011 Survey responses'!DR92<0.5,\"\",'2011 Survey responses'!DR92)","v":""},{"$f":"IF('2011 Survey responses'!DS92<0.5,\"\",'2011 Survey responses'!DS92)","v":""},{"$f":"IF('2011 Survey responses'!DT92<0.5,\"\",'2011 Survey responses'!DT92)","v":""},{"$f":"IF('2011 Survey responses'!DU92<0.5,\"\",'2011 Survey responses'!DU92)","v":""},{"$f":"IF('2011 Survey responses'!DV92<0.5,\"\",'2011 Survey responses'!DV92)","v":""},{"$f":"IF('2011 Survey responses'!DW92<0.5,\"\",'2011 Survey responses'!DW92)","v":""},{"$f":"IF('2011 Survey responses'!DX92<0.5,\"\",'2011 Survey responses'!DX92)","v":""},{"$f":"IF('2011 Survey responses'!DY92<0.5,\"\",'2011 Survey responses'!DY92)","v":""},{"$f":"IF('2011 Survey responses'!DZ92<0.5,\"\",'2011 Survey responses'!DZ92)","v":""},{"$f":"IF('2011 Survey responses'!EA92<0.5,\"\",'2011 Survey responses'!EA92)","v":""},{"$f":"IF('2011 Survey responses'!EB92<0.5,\"\",'2011 Survey responses'!EB92)","v":""},{"$f":"IF('2011 Survey responses'!EC92<0.5,\"\",'2011 Survey responses'!EC92)","v":""},{"$f":"IF('2011 Survey responses'!ED92<0.5,\"\",'2011 Survey responses'!ED92)","v":""},{"$f":"IF('2011 Survey responses'!EE92<0.5,\"\",'2011 Survey responses'!EE92)","v":""},{"$f":"IF('2011 Survey responses'!EF92<0.5,\"\",'2011 Survey responses'!EF92)","v":""},{"$f":"IF('2011 Survey responses'!EG92<0.5,\"\",'2011 Survey responses'!EG92)","v":""},{"$f":"IF('2011 Survey responses'!EH92<0.5,\"\",'2011 Survey responses'!EH92)","v":""},{"$f":"IF('2011 Survey responses'!EI92<0.5,\"\",'2011 Survey responses'!EI92)","v":""},{"$f":"IF('2011 Survey responses'!EJ92<0.5,\"\",'2011 Survey responses'!EJ92)","v":""},{"$f":"IF('2011 Survey responses'!EK92<0.5,\"\",'2011 Survey responses'!EK92)","v":""},{"$f":"IF('2011 Survey responses'!EL92<0.5,\"\",'2011 Survey responses'!EL92)","v":""},{"$f":"IF('2011 Survey responses'!EM92<0.5,\"\",'2011 Survey responses'!EM92)","v":""},{"$f":"IF('2011 Survey responses'!EN92<0.5,\"\",'2011 Survey responses'!EN92)","v":""},{"$f":"IF('2011 Survey responses'!EO92<0.5,\"\",'2011 Survey responses'!EO92)","v":""},{"$f":"IF('2011 Survey responses'!EP92<0.5,\"\",'2011 Survey responses'!EP92)","v":""},{"$f":"IF(('2011 Survey responses'!EW92+'2011 Survey responses'!EX92)>=2,AVERAGE('2011 Survey responses'!EW92,'2011 Survey responses'!EY92),\"\")","v":""},{"$f":"IF('2011 Survey responses'!EX92<0.5,\"\",'2011 Survey responses'!EX92)","v":""},{"$f":"IF('2011 Survey responses'!EZ92<0.5,\"\",'2011 Survey responses'!EZ92)","v":""},{"$f":"IF('2011 Survey responses'!FB92<0.5,\"\",'2011 Survey responses'!FB92)","v":""},{"$f":"IF('2011 Survey responses'!FD92<0.5,\"\",'2011 Survey responses'!FD92)","v":""},{"$f":"IF('2011 Survey responses'!FC92<0.5,\"\",'2011 Survey responses'!FC92)","v":""},{"$f":"IF(('2011 Survey responses'!EM92+'2011 Survey responses'!EN92)>=2,AVERAGE('2011 Survey responses'!EM92,'2011 Survey responses'!EN92),\"\")","v":""},{"$f":"IF('2011 Survey responses'!ES92<0.5,\"\",'2011 Survey responses'!ES92)","v":""},{"$f":"IF(('2011 Survey responses'!ET92+'2011 Survey responses'!EU92)>=2,AVERAGE('2011 Survey responses'!ET92,'2011 Survey responses'!EU92),\"\")","v":""},{"$f":"IF('2011 Survey responses'!EV92<0.5,\"\",'2011 Survey responses'!EV92)","v":""},{"$f":"IF('2011 Survey responses'!FA92<0.5,\"\",'2011 Survey responses'!FA92)","v":""},{"$f":"IF('2011 Survey responses'!ER92<0.5,\"\",'2011 Survey responses'!ER92)","v":""},{"$f":"IF(('2011 Survey responses'!EO92+'2011 Survey responses'!EP92)>=2,AVERAGE('2011 Survey responses'!EO92,'2011 Survey responses'!EP92),\"\")","v":""},{"$f":"IF('2011 Survey responses'!EQ92<0.5,\"\",'2011 Survey responses'!EQ92)","v":""},{"$f":"IF('2011 Survey responses'!ET92<0.5,\"\",'2011 Survey responses'!ET92)","v":""},{"$f":"IF('2011 Survey responses'!EU92<0.5,\"\",'2011 Survey responses'!EU92)","v":""},{"$f":"IF('2011 Survey responses'!EW92<0.5,\"\",'2011 Survey responses'!EW92)","v":""},{"$f":"IF('2011 Survey responses'!EY92<0.5,\"\",'2011 Survey responses'!EY92)","v":""},{"$f":"IF('2011 Survey responses'!FU92<0.5,\"\",'2011 Survey responses'!FU92)","v":""},{"$f":"IF(('2011 Survey responses'!FL92+'2011 Survey responses'!FM92)>=2,AVERAGE('2011 Survey responses'!FL92,'2011 Survey responses'!FM92),\"\")","v":""},{"$f":"IF(('2011 Survey responses'!FO92+'2011 Survey responses'!FQ92)>=2,AVERAGE('2011 Survey responses'!FO92,'2011 Survey responses'!FQ92),\"\")","v":""},{"$f":"IF('2011 Survey responses'!FJ92<0.5,\"\",'2011 Survey responses'!FJ92)","v":""},{"$f":"IF('2011 Survey responses'!FT92<0.5,\"\",'2011 Survey responses'!FT92)","v":""},{"$f":"IF('2011 Survey responses'!FR92<0.5,\"\",'2011 Survey responses'!FR92)","v":""},{"$f":"IF('2011 Survey responses'!FK92<0.5,\"\",'2011 Survey responses'!FK92)","v":""},{"$f":"IF('2011 Survey responses'!FP92<0.5,\"\",'2011 Survey responses'!FP92)","v":""},{"$f":"IF('2011 Survey responses'!FN92<0.5,\"\",'2011 Survey responses'!FN92)","v":""},{"$f":"IF(('2011 Survey responses'!FE92+'2011 Survey responses'!FF92)>=2,AVERAGE('2011 Survey responses'!FE92,'2011 Survey responses'!FF92),\"\")","v":""},{"$f":"IF('2011 Survey responses'!FS92<0.5,\"\",'2011 Survey responses'!FS92)","v":""},{"$f":"IF('2011 Survey responses'!FV92<0.5,\"\",'2011 Survey responses'!FV92)","v":""},{"$f":"IF(('2011 Survey responses'!FG92+'2011 Survey responses'!FH92)>=2,AVERAGE('2011 Survey responses'!FG92,'2011 Survey responses'!FH92),\"\")","v":""},{"$f":"IF('2011 Survey responses'!FI92<0.5,\"\",'2011 Survey responses'!FI92)","v":""},{"$f":"IF('2011 Survey responses'!FE92<0.5,\"\",'2011 Survey responses'!FE92)","v":""},{"$f":"IF('2011 Survey responses'!FF92<0.5,\"\",'2011 Survey responses'!FF92)","v":""},{"$f":"IF('2011 Survey responses'!FG92<0.5,\"\",'2011 Survey responses'!FG92)","v":""},{"$f":"IF('2011 Survey responses'!FH92<0.5,\"\",'2011 Survey responses'!FH92)","v":""},{"$f":"IF('2011 Survey responses'!FL92<0.5,\"\",'2011 Survey responses'!FL92)","v":""},{"$f":"IF('2011 Survey responses'!FM92<0.5,\"\",'2011 Survey responses'!FM92)","v":""},{"$f":"IF('2011 Survey responses'!FO92<0.5,\"\",'2011 Survey responses'!FO92)","v":""},{"$f":"IF('2011 Survey responses'!FQ92<0.5,\"\",'2011 Survey responses'!FQ92)","v":""}]
["Kyrgyzstan",{"$f":"IF(SUM(F93)<1,\"\",AVERAGEIF('2011 Survey responses'!B93:CP93,\">1\"))","v":""},{"$f":"IF(SUM(F93)<1,\"\",AVERAGEIF('2011 Survey responses'!B93:AO93,\">1\"))","v":""},{"$f":"IF(SUM(F93)<1,\"\",AVERAGEIF('2011 Survey responses'!B93:BV93,\">1\"))","v":""},{"$f":"IF(SUM(F93)<1,\"\",AVERAGEIF('2011 Survey responses'!V93:BV93,\">1\"))","v":""},{"$f":"IF(SUM('2011 Survey responses'!B93:U93)<1,\"\",(AVERAGEIFS('2011 Survey responses'!B93:U93,'2011 Survey responses'!B93:U93,\">1\")))","v":""},{"$f":"IF(SUM('2011 Survey responses'!B93:H93)<1,\"\",(AVERAGEIFS('2011 Survey responses'!B93:H93,'2011 Survey responses'!B93:H93,\">1\")))","v":""},{"$f":"IF(SUM('2011 Survey responses'!I93:S93)<1,\"\",(AVERAGEIFS('2011 Survey responses'!I93:S93,'2011 Survey responses'!I93:S93,\">1\")))","v":""},{"$f":"IF(SUM('2011 Survey responses'!T93:U93)<2.1,\"\",(AVERAGEIFS('2011 Survey responses'!T93:U93,'2011 Survey responses'!T93:U93,\">1\")))","v":""},{"$f":"IF(SUM('2011 Survey responses'!B93:C93)<2.1,\"\",((SUMIF('2011 Survey responses'!B93:C93,\">1\")+SUMIF('2011 Survey responses'!F93,\">1\"))/(COUNTIF('2011 Survey responses'!B93:C93,\">1\")+COUNTIF('2011 Survey responses'!F93,\">1\"))))","v":""},{"$f":"IF(SUM('2011 Survey responses'!D93:E93)<2.1,\"\",(AVERAGEIFS('2011 Survey responses'!D93:E93,'2011 Survey responses'!D93:E93,\">1\")))","v":""},{"$f":"IF(('2011 Survey responses'!B93+'2011 Survey responses'!D93)<2.1,\"\",((SUMIF('2011 Survey responses'!B93,\">1\")+SUMIF('2011 Survey responses'!D93,\">1\")+SUMIF('2011 Survey responses'!F93,\">1\")+SUMIF('2011 Survey responses'!K93,\">1\"))/(COUNTIF('2011 Survey responses'!B93,\">1\")+COUNTIF('2011 Survey responses'!D93,\">1\")+COUNTIF('2011 Survey responses'!F93,\">1\")+COUNTIF('2011 Survey responses'!K93,\">1\"))))","v":""},{"$f":"IF(SUM('2011 Survey responses'!G93:H93)<2.1,\"\",(AVERAGEIFS('2011 Survey responses'!G93:H93,'2011 Survey responses'!G93:H93,\">1\")))","v":""},{"$f":"IF(SUM('2011 Survey responses'!F93:G93)<1.5,\"\",MAX('2011 Survey responses'!F93,'2011 Survey responses'!G93))","v":""},{"$f":"IF(SUM('2011 Survey responses'!G93:H93)<1,\"\",MAX('2011 Survey responses'!G93,'2011 Survey responses'!H93))","v":""},{"$f":"IF(SUM('2011 Survey responses'!I93:L93)<4.1,\"\",(AVERAGEIFS('2011 Survey responses'!I93:L93,'2011 Survey responses'!I93:L93,\">1\")))","v":""},{"$f":"IF(SUM('2011 Survey responses'!M93:S93)<4.1,\"\",(AVERAGEIFS('2011 Survey responses'!M93:S93,'2011 Survey responses'!M93:S93,\">1\")))","v":""},{"$f":"IF(SUM('2011 Survey responses'!T93:U93)<2.1,\"\",(AVERAGEIFS('2011 Survey responses'!T93:U93,'2011 Survey responses'!T93:U93,\">1\")))","v":""},{"$f":"IF(SUM('2011 Survey responses'!V93:AO93)<1,\"\",(AVERAGEIFS('2011 Survey responses'!V93:AO93,'2011 Survey responses'!V93:AO93,\">1\")))","v":""},{"$f":"IF(SUM('2011 Survey responses'!V93:AA93)<1,\"\",(AVERAGEIFS('2011 Survey responses'!V93:AA93,'2011 Survey responses'!V93:AA93,\">1\")))","v":""},{"$f":"IF(SUM('2011 Survey responses'!AB93:AH93)<1,\"\",(AVERAGEIFS('2011 Survey responses'!AB93:AH93,'2011 Survey responses'!AB93:AH93,\">1\")))","v":""},{"$f":"IF(SUM('2011 Survey responses'!AI93:AO93)<1,\"\",(AVERAGEIFS('2011 Survey responses'!AI93:AO93,'2011 Survey responses'!AI93:AO93,\">1\")))","v":""},{"$f":"IF(('2011 Survey responses'!Y93+'2011 Survey responses'!AI93+'2011 Survey responses'!AK93)<3.1,\"\",((SUMIF('2011 Survey responses'!Y93,\">1\")+SUMIF('2011 Survey responses'!AI93,\">1\")+SUMIF('2011 Survey responses'!AK93,\">1\")+SUMIF('2011 Survey responses'!AM93,\">1\"))/(COUNTIF('2011 Survey responses'!Y93,\">1\")+COUNTIF('2011 Survey responses'!AI93,\">1\")+COUNTIF('2011 Survey responses'!AK93,\">1\")+COUNTIF('2011 Survey responses'!AM93,\">1\"))))","v":""},{"$f":"IF(('2011 Survey responses'!W93)<1.1,\"\",('2011 Survey responses'!W93))","v":""},{"$f":"IF(('2011 Survey responses'!Y93)<1.1,\"\",('2011 Survey responses'!Y93))","v":""},{"$f":"IF(('2011 Survey responses'!Z93)<1.1,\"\",('2011 Survey responses'!Z93))","v":""},{"$f":"IF(('2011 Survey responses'!V93+'2011 Survey responses'!X93+'2011 Survey responses'!AA93)<3.1,\"\",((SUMIF('2011 Survey responses'!V93,\">1\")+SUMIF('2011 Survey responses'!X93,\">1\")+SUMIF('2011 Survey responses'!AA93,\">1\"))/(COUNTIF('2011 Survey responses'!V93,\">1\")+COUNTIF('2011 Survey responses'!X93,\">1\")+COUNTIF('2011 Survey responses'!AA93,\">1\"))))","v":""},{"$f":"IF(('2011 Survey responses'!V93+'2011 Survey responses'!Y93+'2011 Survey responses'!AA93)<3.1,\"\",((SUMIF('2011 Survey responses'!V93,\">1\")+SUMIF('2011 Survey responses'!Y93,\">1\")+SUMIF('2011 Survey responses'!AA93,\">1\"))/(COUNTIF('2011 Survey responses'!V93,\">1\")+COUNTIF('2011 Survey responses'!Y93,\">1\")+COUNTIF('2011 Survey responses'!AA93,\">1\"))))","v":""},{"$f":"IF(SUM('2011 Survey responses'!AB93:AH93)<1,\"\",(AVERAGEIFS('2011 Survey responses'!AB93:AH93,'2011 Survey responses'!AB93:AH93,\">1\")))","v":""},{"$f":"IF(SUM('2011 Survey responses'!AI93:AO93)<7.1,\"\",(AVERAGEIFS('2011 Survey responses'!AI93:AO93,'2011 Survey responses'!AI93:AO93,\">1\")))","v":""},{"$f":"IF(('2011 Survey responses'!AH93)<1.1,\"\",('2011 Survey responses'!AH93))","v":""},{"$f":"IF(SUM('2011 Survey responses'!AP93:BV93)<1,\"\",(AVERAGEIFS('2011 Survey responses'!AP93:BV93,'2011 Survey responses'!AP93:BV93,\">1\")))","v":""},{"$f":"IF(SUM('2011 Survey responses'!AP93:AS93)<4.1,\"\",(AVERAGEIFS('2011 Survey responses'!AP93:AS93,'2011 Survey responses'!AP93:AS93,\">1\")))","v":""},{"$f":"IF(SUM('2011 Survey responses'!AT93:BF93)<1,\"\",(AVERAGEIFS('2011 Survey responses'!AT93:BF93,'2011 Survey responses'!AT93:BF93,\">1\")))","v":""},{"$f":"IF(SUM('2011 Survey responses'!BG93:BO93)<1,\"\",(AVERAGEIFS('2011 Survey responses'!BG93:BO93,'2011 Survey responses'!BG93:BO93,\">1\")))","v":""},{"$f":"IF(SUM('2011 Survey responses'!BP93:BS93)<1,\"\",(AVERAGEIFS('2011 Survey responses'!BP93:BS93,'2011 Survey responses'!BP93:BS93,\">1\")))","v":""},{"$f":"IF(SUM('2011 Survey responses'!BT93:BV93)<3.1,\"\",(AVERAGEIFS('2011 Survey responses'!BT93:BV93,'2011 Survey responses'!BT93:BV93,\">1\")))","v":""},{"$f":"IF(('2011 Survey responses'!AQ93+'2011 Survey responses'!AR93+'2011 Survey responses'!BG93)<3.1,\"\",((SUMIF('2011 Survey responses'!AQ93,\">1\")+SUMIF('2011 Survey responses'!AR93,\">1\")+SUMIF('2011 Survey responses'!BG93,\">1\"))/(COUNTIF('2011 Survey responses'!AQ93,\">1\")+COUNTIF('2011 Survey responses'!AR93,\">1\")+COUNTIF('2011 Survey responses'!BG93,\">1\"))))","v":""},{"$f":"IF(SUM('2011 Survey responses'!AP93:AS93)<4.1,\"\",(AVERAGEIFS('2011 Survey responses'!AP93:AS93,'2011 Survey responses'!AP93:AS93,\">1\")))","v":""},{"$f":"IF(('2011 Survey responses'!AU93+'2011 Survey responses'!AX93+'2011 Survey responses'!BA93+'2011 Survey responses'!BC93+'2011 Survey responses'!BD93)<5.1,\"\",(SUMIF('2011 Survey responses'!AU93,\">1\")+SUMIF('2011 Survey responses'!AX93,\">1\")+SUMIF('2011 Survey responses'!BA93,\">1\")+SUMIF('2011 Survey responses'!BC93,\">1\")+SUMIF('2011 Survey responses'!BD93,\">1\"))/(COUNTIF('2011 Survey responses'!AU93,\">1\")+COUNTIF('2011 Survey responses'!AX93,\">1\")+COUNTIF('2011 Survey responses'!BA93,\">1\")+COUNTIF('2011 Survey responses'!BC93,\">1\")+COUNTIF('2011 Survey responses'!BD93,\">1\")))","v":""},{"$f":"IF(('2011 Survey responses'!AT93)<1.1,\"\",('2011 Survey responses'!AT93))","v":""},{"$f":"IF(SUM('2011 Survey responses'!AV93:AW93)<2.1,\"\",(AVERAGEIFS('2011 Survey responses'!AV93:AW93,'2011 Survey responses'!AV93:AW93,\">1\")))","v":""},{"$f":"IF(('2011 Survey responses'!AW93+'2011 Survey responses'!AY93)<2.1,\"\",(SUMIF('2011 Survey responses'!AW93,\">1\")+SUMIF('2011 Survey responses'!AY93,\">1\"))/(COUNTIF('2011 Survey responses'!AW93,\">1\")+COUNTIF('2011 Survey responses'!AY93,\">1\")))","v":""},{"$f":"IF(('2011 Survey responses'!AZ93)<1.1,\"\",('2011 Survey responses'!AZ93))","v":""},null,null,null,null,{"$f":"IF(('2011 Survey responses'!BE93)<1.1,\"\",('2011 Survey responses'!BE93))","v":""},{"$f":"IF(('2011 Survey responses'!AY93+'2011 Survey responses'!BB93+'2011 Survey responses'!BF93)<3.1,\"\",(SUMIF('2011 Survey responses'!AY93,\">1\")+SUMIF('2011 Survey responses'!BB93,\">1\")+SUMIF('2011 Survey responses'!BF93,\">1\"))/(COUNTIF('2011 Survey responses'!AY93,\">1\")+COUNTIF('2011 Survey responses'!BB93,\">1\")+COUNTIF('2011 Survey responses'!BF93,\">1\")))","v":""},"",{"$f":"IF(SUM('2011 Survey responses'!BT93:BV93)<3.1,\"\",(AVERAGEIFS('2011 Survey responses'!BT93:BV93,'2011 Survey responses'!BT93:BV93,\">1\")))","v":""},{"$f":"IF(SUM('2011 Survey responses'!BW93:CP93)<1,\"\",(AVERAGEIFS('2011 Survey responses'!BW93:CP93,'2011 Survey responses'!BW93:CP93,\">1\")))","v":""},{"$f":"IF(SUM('2011 Survey responses'!BW93:CF93)<1,\"\",(AVERAGEIFS('2011 Survey responses'!BW93:CF93,'2011 Survey responses'!BW93:CF93,\">1\")))","v":""},{"$f":"IF(SUM('2011 Survey responses'!CG93:CP93)<1,\"\",(AVERAGEIFS('2011 Survey responses'!CG93:CP93,'2011 Survey responses'!CG93:CP93,\">1\")))","v":""},{"$f":"IF(SUM('2011 Survey responses'!BX93:CF93)<1,\"\",(AVERAGEIFS('2011 Survey responses'!BX93:CF93,'2011 Survey responses'!BX93:CF93,\">1\")))","v":""},{"$f":"IF(SUM('2011 Survey responses'!CH93:CP93)<1,\"\",(AVERAGEIFS('2011 Survey responses'!CH93:CP93,'2011 Survey responses'!CH93:CP93,\">1\")))","v":""},{"$f":"IF(SUM('2011 Survey responses'!BW93:CP93)<1,\"\",(AVERAGEIFS('2011 Survey responses'!BW93:CP93,'2011 Survey responses'!BW93:CP93,\">1\")))","v":""},{"$f":"IF(('2011 Survey responses'!BW93+'2011 Survey responses'!CG93)<2.1,\"\",(SUMIF('2011 Survey responses'!BW93,\">1\")+SUMIF('2011 Survey responses'!CG93,\">1\"))/(COUNTIF('2011 Survey responses'!BW93,\">1\")+COUNTIF('2011 Survey responses'!CG93,\">1\")))","v":""},{"$f":"IF(('2011 Survey responses'!BX93+'2011 Survey responses'!CH93)<2.1,\"\",(SUMIF('2011 Survey responses'!BX93,\">1\")+SUMIF('2011 Survey responses'!CH93,\">1\"))/(COUNTIF('2011 Survey responses'!BX93,\">1\")+COUNTIF('2011 Survey responses'!CH93,\">1\")))","v":""},{"$f":"IF(('2011 Survey responses'!BY93+'2011 Survey responses'!CI93)<2.1,\"\",(SUMIF('2011 Survey responses'!BY93,\">1\")+SUMIF('2011 Survey responses'!CI93,\">1\"))/(COUNTIF('2011 Survey responses'!BY93,\">1\")+COUNTIF('2011 Survey responses'!CI93,\">1\")))","v":""},{"$f":"IF('2011 Survey responses'!CQ93<0.5,\"\",'2011 Survey responses'!CQ93)","v":""},{"$f":"IF('2011 Survey responses'!CR93<0.5,\"\",'2011 Survey responses'!CR93)","v":""},{"$f":"IF('2011 Survey responses'!CS93<0.5,\"\",'2011 Survey responses'!CS93)","v":""},{"$f":"IF('2011 Survey responses'!CT93<0.5,\"\",'2011 Survey responses'!CT93)","v":""},{"$f":"IF('2011 Survey responses'!CU93<0.5,\"\",'2011 Survey responses'!CU93)","v":""},{"$f":"IF('2011 Survey responses'!CV93<0.5,\"\",'2011 Survey responses'!CV93)","v":""},{"$f":"IF(SUM('2011 Survey responses'!CW93:DL93)<1,\"\",(AVERAGE('2011 Survey responses'!CW93:DL93)))","v":""},{"$f":"IF(SUM('2011 Survey responses'!CW93:CZ93)<1,\"\",(AVERAGE('2011 Survey responses'!CW93:CZ93)))","v":""},{"$f":"IF(SUM('2011 Survey responses'!DA93:DD93)<1,\"\",(AVERAGE('2011 Survey responses'!DA93:DD93)))","v":""},{"$f":"IF(SUM('2011 Survey responses'!DE93:DH93)<1,\"\",(AVERAGE('2011 Survey responses'!DE93:DH93)))","v":""},{"$f":"IF(SUM('2011 Survey responses'!DI93:DL93)<1,\"\",(AVERAGE('2011 Survey responses'!DI93:DL93)))","v":""},{"$f":"IF(('2011 Survey responses'!CW93+'2011 Survey responses'!DA93+'2011 Survey responses'!DE93+'2011 Survey responses'!DI93)<1,\"\",AVERAGE('2011 Survey responses'!CW93,'2011 Survey responses'!DA93,'2011 Survey responses'!DE93,'2011 Survey responses'!DI93))","v":""},{"$f":"IF(('2011 Survey responses'!CX93+'2011 Survey responses'!DB93+'2011 Survey responses'!DF93+'2011 Survey responses'!DJ93)<1,\"\",AVERAGE('2011 Survey responses'!CX93,'2011 Survey responses'!DB93,'2011 Survey responses'!DF93,'2011 Survey responses'!DJ93))","v":""},{"$f":"IF(('2011 Survey responses'!CY93+'2011 Survey responses'!DC93+'2011 Survey responses'!DG93+'2011 Survey responses'!DK93)<1,\"\",AVERAGE('2011 Survey responses'!CY93,'2011 Survey responses'!DC93,'2011 Survey responses'!DG93,'2011 Survey responses'!DK93))","v":""},{"$f":"IF(('2011 Survey responses'!CZ93+'2011 Survey responses'!DD93+'2011 Survey responses'!DH93+'2011 Survey responses'!DL93)<1,\"\",AVERAGE('2011 Survey responses'!CZ93,'2011 Survey responses'!DD93,'2011 Survey responses'!DH93,'2011 Survey responses'!DL93))","v":""},{"$f":"IF('2011 Survey responses'!CW93<0.5,\"\",'2011 Survey responses'!CW93)","v":""},{"$f":"IF('2011 Survey responses'!CX93<0.5,\"\",'2011 Survey responses'!CX93)","v":""},{"$f":"IF('2011 Survey responses'!CY93<0.5,\"\",'2011 Survey responses'!CY93)","v":""},{"$f":"IF('2011 Survey responses'!CZ93<0.5,\"\",'2011 Survey responses'!CZ93)","v":""},{"$f":"IF('2011 Survey responses'!DA93<0.5,\"\",'2011 Survey responses'!DA93)","v":""},{"$f":"IF('2011 Survey responses'!DB93<0.5,\"\",'2011 Survey responses'!DB93)","v":""},{"$f":"IF('2011 Survey responses'!DC93<0.5,\"\",'2011 Survey responses'!DC93)","v":""},{"$f":"IF('2011 Survey responses'!DD93<0.5,\"\",'2011 Survey responses'!DD93)","v":""},{"$f":"IF('2011 Survey responses'!DE93<0.5,\"\",'2011 Survey responses'!DE93)","v":""},{"$f":"IF('2011 Survey responses'!DF93<0.5,\"\",'2011 Survey responses'!DF93)","v":""},{"$f":"IF('2011 Survey responses'!DG93<0.5,\"\",'2011 Survey responses'!DG93)","v":""},{"$f":"IF('2011 Survey responses'!DH93<0.5,\"\",'2011 Survey responses'!DH93)","v":""},{"$f":"IF('2011 Survey responses'!DI93<0.5,\"\",'2011 Survey responses'!DI93)","v":""},{"$f":"IF('2011 Survey responses'!DJ93<0.5,\"\",'2011 Survey responses'!DJ93)","v":""},{"$f":"IF('2011 Survey responses'!DK93<0.5,\"\",'2011 Survey responses'!DK93)","v":""},{"$f":"IF('2011 Survey responses'!DL93<0.5,\"\",'2011 Survey responses'!DL93)","v":""},{"$f":"IF('2011 Survey responses'!DU93=4,4,IF('2011 Survey responses'!DU93=5,4,\"\"))","v":""},{"$f":"IF('2011 Survey responses'!DV93=4,3,IF('2011 Survey responses'!DV93=5,3,\"\"))","v":""},"",{"$f":"IF(CQ93=2,CQ93,IF(CO93=4,CO93,IF(CP93=3,CP93,IF('2011 Survey responses'!GT93=1,1,\"\"))))","v":""},{"$f":"IF('2011 Survey responses'!DO93<0.5,\"\",'2011 Survey responses'!DO93)","v":""},{"$f":"IF('2011 Survey responses'!DP93<0.5,\"\",'2011 Survey responses'!DP93)","v":""},{"$f":"IF('2011 Survey responses'!DQ93<0.5,\"\",'2011 Survey responses'!DQ93)","v":""},{"$f":"IF('2011 Survey responses'!DR93<0.5,\"\",'2011 Survey responses'!DR93)","v":""},{"$f":"IF('2011 Survey responses'!DS93<0.5,\"\",'2011 Survey responses'!DS93)","v":""},{"$f":"IF('2011 Survey responses'!DT93<0.5,\"\",'2011 Survey responses'!DT93)","v":""},{"$f":"IF('2011 Survey responses'!DU93<0.5,\"\",'2011 Survey responses'!DU93)","v":""},{"$f":"IF('2011 Survey responses'!DV93<0.5,\"\",'2011 Survey responses'!DV93)","v":""},{"$f":"IF('2011 Survey responses'!DW93<0.5,\"\",'2011 Survey responses'!DW93)","v":""},{"$f":"IF('2011 Survey responses'!DX93<0.5,\"\",'2011 Survey responses'!DX93)","v":""},{"$f":"IF('2011 Survey responses'!DY93<0.5,\"\",'2011 Survey responses'!DY93)","v":""},{"$f":"IF('2011 Survey responses'!DZ93<0.5,\"\",'2011 Survey responses'!DZ93)","v":""},{"$f":"IF('2011 Survey responses'!EA93<0.5,\"\",'2011 Survey responses'!EA93)","v":""},{"$f":"IF('2011 Survey responses'!EB93<0.5,\"\",'2011 Survey responses'!EB93)","v":""},{"$f":"IF('2011 Survey responses'!EC93<0.5,\"\",'2011 Survey responses'!EC93)","v":""},{"$f":"IF('2011 Survey responses'!ED93<0.5,\"\",'2011 Survey responses'!ED93)","v":""},{"$f":"IF('2011 Survey responses'!EE93<0.5,\"\",'2011 Survey responses'!EE93)","v":""},{"$f":"IF('2011 Survey responses'!EF93<0.5,\"\",'2011 Survey responses'!EF93)","v":""},{"$f":"IF('2011 Survey responses'!EG93<0.5,\"\",'2011 Survey responses'!EG93)","v":""},{"$f":"IF('2011 Survey responses'!EH93<0.5,\"\",'2011 Survey responses'!EH93)","v":""},{"$f":"IF('2011 Survey responses'!EI93<0.5,\"\",'2011 Survey responses'!EI93)","v":""},{"$f":"IF('2011 Survey responses'!EJ93<0.5,\"\",'2011 Survey responses'!EJ93)","v":""},{"$f":"IF('2011 Survey responses'!EK93<0.5,\"\",'2011 Survey responses'!EK93)","v":""},{"$f":"IF('2011 Survey responses'!EL93<0.5,\"\",'2011 Survey responses'!EL93)","v":""},{"$f":"IF('2011 Survey responses'!EM93<0.5,\"\",'2011 Survey responses'!EM93)","v":""},{"$f":"IF('2011 Survey responses'!EN93<0.5,\"\",'2011 Survey responses'!EN93)","v":""},{"$f":"IF('2011 Survey responses'!EO93<0.5,\"\",'2011 Survey responses'!EO93)","v":""},{"$f":"IF('2011 Survey responses'!EP93<0.5,\"\",'2011 Survey responses'!EP93)","v":""},{"$f":"IF(('2011 Survey responses'!EW93+'2011 Survey responses'!EX93)>=2,AVERAGE('2011 Survey responses'!EW93,'2011 Survey responses'!EY93),\"\")","v":""},{"$f":"IF('2011 Survey responses'!EX93<0.5,\"\",'2011 Survey responses'!EX93)","v":""},{"$f":"IF('2011 Survey responses'!EZ93<0.5,\"\",'2011 Survey responses'!EZ93)","v":""},{"$f":"IF('2011 Survey responses'!FB93<0.5,\"\",'2011 Survey responses'!FB93)","v":""},{"$f":"IF('2011 Survey responses'!FD93<0.5,\"\",'2011 Survey responses'!FD93)","v":""},{"$f":"IF('2011 Survey responses'!FC93<0.5,\"\",'2011 Survey responses'!FC93)","v":""},{"$f":"IF(('2011 Survey responses'!EM93+'2011 Survey responses'!EN93)>=2,AVERAGE('2011 Survey responses'!EM93,'2011 Survey responses'!EN93),\"\")","v":""},{"$f":"IF('2011 Survey responses'!ES93<0.5,\"\",'2011 Survey responses'!ES93)","v":""},{"$f":"IF(('2011 Survey responses'!ET93+'2011 Survey responses'!EU93)>=2,AVERAGE('2011 Survey responses'!ET93,'2011 Survey responses'!EU93),\"\")","v":""},{"$f":"IF('2011 Survey responses'!EV93<0.5,\"\",'2011 Survey responses'!EV93)","v":""},{"$f":"IF('2011 Survey responses'!FA93<0.5,\"\",'2011 Survey responses'!FA93)","v":""},{"$f":"IF('2011 Survey responses'!ER93<0.5,\"\",'2011 Survey responses'!ER93)","v":""},{"$f":"IF(('2011 Survey responses'!EO93+'2011 Survey responses'!EP93)>=2,AVERAGE('2011 Survey responses'!EO93,'2011 Survey responses'!EP93),\"\")","v":""},{"$f":"IF('2011 Survey responses'!EQ93<0.5,\"\",'2011 Survey responses'!EQ93)","v":""},{"$f":"IF('2011 Survey responses'!ET93<0.5,\"\",'2011 Survey responses'!ET93)","v":""},{"$f":"IF('2011 Survey responses'!EU93<0.5,\"\",'2011 Survey responses'!EU93)","v":""},{"$f":"IF('2011 Survey responses'!EW93<0.5,\"\",'2011 Survey responses'!EW93)","v":""},{"$f":"IF('2011 Survey responses'!EY93<0.5,\"\",'2011 Survey responses'!EY93)","v":""},{"$f":"IF('2011 Survey responses'!FU93<0.5,\"\",'2011 Survey responses'!FU93)","v":""},{"$f":"IF(('2011 Survey responses'!FL93+'2011 Survey responses'!FM93)>=2,AVERAGE('2011 Survey responses'!FL93,'2011 Survey responses'!FM93),\"\")","v":""},{"$f":"IF(('2011 Survey responses'!FO93+'2011 Survey responses'!FQ93)>=2,AVERAGE('2011 Survey responses'!FO93,'2011 Survey responses'!FQ93),\"\")","v":""},{"$f":"IF('2011 Survey responses'!FJ93<0.5,\"\",'2011 Survey responses'!FJ93)","v":""},{"$f":"IF('2011 Survey responses'!FT93<0.5,\"\",'2011 Survey responses'!FT93)","v":""},{"$f":"IF('2011 Survey responses'!FR93<0.5,\"\",'2011 Survey responses'!FR93)","v":""},{"$f":"IF('2011 Survey responses'!FK93<0.5,\"\",'2011 Survey responses'!FK93)","v":""},{"$f":"IF('2011 Survey responses'!FP93<0.5,\"\",'2011 Survey responses'!FP93)","v":""},{"$f":"IF('2011 Survey responses'!FN93<0.5,\"\",'2011 Survey responses'!FN93)","v":""},{"$f":"IF(('2011 Survey responses'!FE93+'2011 Survey responses'!FF93)>=2,AVERAGE('2011 Survey responses'!FE93,'2011 Survey responses'!FF93),\"\")","v":""},{"$f":"IF('2011 Survey responses'!FS93<0.5,\"\",'2011 Survey responses'!FS93)","v":""},{"$f":"IF('2011 Survey responses'!FV93<0.5,\"\",'2011 Survey responses'!FV93)","v":""},{"$f":"IF(('2011 Survey responses'!FG93+'2011 Survey responses'!FH93)>=2,AVERAGE('2011 Survey responses'!FG93,'2011 Survey responses'!FH93),\"\")","v":""},{"$f":"IF('2011 Survey responses'!FI93<0.5,\"\",'2011 Survey responses'!FI93)","v":""},{"$f":"IF('2011 Survey responses'!FE93<0.5,\"\",'2011 Survey responses'!FE93)","v":""},{"$f":"IF('2011 Survey responses'!FF93<0.5,\"\",'2011 Survey responses'!FF93)","v":""},{"$f":"IF('2011 Survey responses'!FG93<0.5,\"\",'2011 Survey responses'!FG93)","v":""},{"$f":"IF('2011 Survey responses'!FH93<0.5,\"\",'2011 Survey responses'!FH93)","v":""},{"$f":"IF('2011 Survey responses'!FL93<0.5,\"\",'2011 Survey responses'!FL93)","v":""},{"$f":"IF('2011 Survey responses'!FM93<0.5,\"\",'2011 Survey responses'!FM93)","v":""},{"$f":"IF('2011 Survey responses'!FO93<0.5,\"\",'2011 Survey responses'!FO93)","v":""},{"$f":"IF('2011 Survey responses'!FQ93<0.5,\"\",'2011 Survey responses'!FQ93)","v":""}]
["Lao People's Democratic Republic",{"$f":"IF(SUM(F94)<1,\"\",AVERAGEIF('2011 Survey responses'!B94:CP94,\">1\"))","v":""},{"$f":"IF(SUM(F94)<1,\"\",AVERAGEIF('2011 Survey responses'!B94:AO94,\">1\"))","v":""},{"$f":"IF(SUM(F94)<1,\"\",AVERAGEIF('2011 Survey responses'!B94:BV94,\">1\"))","v":""},{"$f":"IF(SUM(F94)<1,\"\",AVERAGEIF('2011 Survey responses'!V94:BV94,\">1\"))","v":""},{"$f":"IF(SUM('2011 Survey responses'!B94:U94)<1,\"\",(AVERAGEIFS('2011 Survey responses'!B94:U94,'2011 Survey responses'!B94:U94,\">1\")))","v":""},{"$f":"IF(SUM('2011 Survey responses'!B94:H94)<1,\"\",(AVERAGEIFS('2011 Survey responses'!B94:H94,'2011 Survey responses'!B94:H94,\">1\")))","v":""},{"$f":"IF(SUM('2011 Survey responses'!I94:S94)<1,\"\",(AVERAGEIFS('2011 Survey responses'!I94:S94,'2011 Survey responses'!I94:S94,\">1\")))","v":""},{"$f":"IF(SUM('2011 Survey responses'!T94:U94)<2.1,\"\",(AVERAGEIFS('2011 Survey responses'!T94:U94,'2011 Survey responses'!T94:U94,\">1\")))","v":""},{"$f":"IF(SUM('2011 Survey responses'!B94:C94)<2.1,\"\",((SUMIF('2011 Survey responses'!B94:C94,\">1\")+SUMIF('2011 Survey responses'!F94,\">1\"))/(COUNTIF('2011 Survey responses'!B94:C94,\">1\")+COUNTIF('2011 Survey responses'!F94,\">1\"))))","v":""},{"$f":"IF(SUM('2011 Survey responses'!D94:E94)<2.1,\"\",(AVERAGEIFS('2011 Survey responses'!D94:E94,'2011 Survey responses'!D94:E94,\">1\")))","v":""},{"$f":"IF(('2011 Survey responses'!B94+'2011 Survey responses'!D94)<2.1,\"\",((SUMIF('2011 Survey responses'!B94,\">1\")+SUMIF('2011 Survey responses'!D94,\">1\")+SUMIF('2011 Survey responses'!F94,\">1\")+SUMIF('2011 Survey responses'!K94,\">1\"))/(COUNTIF('2011 Survey responses'!B94,\">1\")+COUNTIF('2011 Survey responses'!D94,\">1\")+COUNTIF('2011 Survey responses'!F94,\">1\")+COUNTIF('2011 Survey responses'!K94,\">1\"))))","v":""},{"$f":"IF(SUM('2011 Survey responses'!G94:H94)<2.1,\"\",(AVERAGEIFS('2011 Survey responses'!G94:H94,'2011 Survey responses'!G94:H94,\">1\")))","v":""},{"$f":"IF(SUM('2011 Survey responses'!F94:G94)<1.5,\"\",MAX('2011 Survey responses'!F94,'2011 Survey responses'!G94))","v":""},{"$f":"IF(SUM('2011 Survey responses'!G94:H94)<1,\"\",MAX('2011 Survey responses'!G94,'2011 Survey responses'!H94))","v":""},{"$f":"IF(SUM('2011 Survey responses'!I94:L94)<4.1,\"\",(AVERAGEIFS('2011 Survey responses'!I94:L94,'2011 Survey responses'!I94:L94,\">1\")))","v":""},{"$f":"IF(SUM('2011 Survey responses'!M94:S94)<4.1,\"\",(AVERAGEIFS('2011 Survey responses'!M94:S94,'2011 Survey responses'!M94:S94,\">1\")))","v":""},{"$f":"IF(SUM('2011 Survey responses'!T94:U94)<2.1,\"\",(AVERAGEIFS('2011 Survey responses'!T94:U94,'2011 Survey responses'!T94:U94,\">1\")))","v":""},{"$f":"IF(SUM('2011 Survey responses'!V94:AO94)<1,\"\",(AVERAGEIFS('2011 Survey responses'!V94:AO94,'2011 Survey responses'!V94:AO94,\">1\")))","v":""},{"$f":"IF(SUM('2011 Survey responses'!V94:AA94)<1,\"\",(AVERAGEIFS('2011 Survey responses'!V94:AA94,'2011 Survey responses'!V94:AA94,\">1\")))","v":""},{"$f":"IF(SUM('2011 Survey responses'!AB94:AH94)<1,\"\",(AVERAGEIFS('2011 Survey responses'!AB94:AH94,'2011 Survey responses'!AB94:AH94,\">1\")))","v":""},{"$f":"IF(SUM('2011 Survey responses'!AI94:AO94)<1,\"\",(AVERAGEIFS('2011 Survey responses'!AI94:AO94,'2011 Survey responses'!AI94:AO94,\">1\")))","v":""},{"$f":"IF(('2011 Survey responses'!Y94+'2011 Survey responses'!AI94+'2011 Survey responses'!AK94)<3.1,\"\",((SUMIF('2011 Survey responses'!Y94,\">1\")+SUMIF('2011 Survey responses'!AI94,\">1\")+SUMIF('2011 Survey responses'!AK94,\">1\")+SUMIF('2011 Survey responses'!AM94,\">1\"))/(COUNTIF('2011 Survey responses'!Y94,\">1\")+COUNTIF('2011 Survey responses'!AI94,\">1\")+COUNTIF('2011 Survey responses'!AK94,\">1\")+COUNTIF('2011 Survey responses'!AM94,\">1\"))))","v":""},{"$f":"IF(('2011 Survey responses'!W94)<1.1,\"\",('2011 Survey responses'!W94))","v":""},{"$f":"IF(('2011 Survey responses'!Y94)<1.1,\"\",('2011 Survey responses'!Y94))","v":""},{"$f":"IF(('2011 Survey responses'!Z94)<1.1,\"\",('2011 Survey responses'!Z94))","v":""},{"$f":"IF(('2011 Survey responses'!V94+'2011 Survey responses'!X94+'2011 Survey responses'!AA94)<3.1,\"\",((SUMIF('2011 Survey responses'!V94,\">1\")+SUMIF('2011 Survey responses'!X94,\">1\")+SUMIF('2011 Survey responses'!AA94,\">1\"))/(COUNTIF('2011 Survey responses'!V94,\">1\")+COUNTIF('2011 Survey responses'!X94,\">1\")+COUNTIF('2011 Survey responses'!AA94,\">1\"))))","v":""},{"$f":"IF(('2011 Survey responses'!V94+'2011 Survey responses'!Y94+'2011 Survey responses'!AA94)<3.1,\"\",((SUMIF('2011 Survey responses'!V94,\">1\")+SUMIF('2011 Survey responses'!Y94,\">1\")+SUMIF('2011 Survey responses'!AA94,\">1\"))/(COUNTIF('2011 Survey responses'!V94,\">1\")+COUNTIF('2011 Survey responses'!Y94,\">1\")+COUNTIF('2011 Survey responses'!AA94,\">1\"))))","v":""},{"$f":"IF(SUM('2011 Survey responses'!AB94:AH94)<1,\"\",(AVERAGEIFS('2011 Survey responses'!AB94:AH94,'2011 Survey responses'!AB94:AH94,\">1\")))","v":""},{"$f":"IF(SUM('2011 Survey responses'!AI94:AO94)<7.1,\"\",(AVERAGEIFS('2011 Survey responses'!AI94:AO94,'2011 Survey responses'!AI94:AO94,\">1\")))","v":""},{"$f":"IF(('2011 Survey responses'!AH94)<1.1,\"\",('2011 Survey responses'!AH94))","v":""},{"$f":"IF(SUM('2011 Survey responses'!AP94:BV94)<1,\"\",(AVERAGEIFS('2011 Survey responses'!AP94:BV94,'2011 Survey responses'!AP94:BV94,\">1\")))","v":""},{"$f":"IF(SUM('2011 Survey responses'!AP94:AS94)<4.1,\"\",(AVERAGEIFS('2011 Survey responses'!AP94:AS94,'2011 Survey responses'!AP94:AS94,\">1\")))","v":""},{"$f":"IF(SUM('2011 Survey responses'!AT94:BF94)<1,\"\",(AVERAGEIFS('2011 Survey responses'!AT94:BF94,'2011 Survey responses'!AT94:BF94,\">1\")))","v":""},{"$f":"IF(SUM('2011 Survey responses'!BG94:BO94)<1,\"\",(AVERAGEIFS('2011 Survey responses'!BG94:BO94,'2011 Survey responses'!BG94:BO94,\">1\")))","v":""},{"$f":"IF(SUM('2011 Survey responses'!BP94:BS94)<1,\"\",(AVERAGEIFS('2011 Survey responses'!BP94:BS94,'2011 Survey responses'!BP94:BS94,\">1\")))","v":""},{"$f":"IF(SUM('2011 Survey responses'!BT94:BV94)<3.1,\"\",(AVERAGEIFS('2011 Survey responses'!BT94:BV94,'2011 Survey responses'!BT94:BV94,\">1\")))","v":""},{"$f":"IF(('2011 Survey responses'!AQ94+'2011 Survey responses'!AR94+'2011 Survey responses'!BG94)<3.1,\"\",((SUMIF('2011 Survey responses'!AQ94,\">1\")+SUMIF('2011 Survey responses'!AR94,\">1\")+SUMIF('2011 Survey responses'!BG94,\">1\"))/(COUNTIF('2011 Survey responses'!AQ94,\">1\")+COUNTIF('2011 Survey responses'!AR94,\">1\")+COUNTIF('2011 Survey responses'!BG94,\">1\"))))","v":""},{"$f":"IF(SUM('2011 Survey responses'!AP94:AS94)<4.1,\"\",(AVERAGEIFS('2011 Survey responses'!AP94:AS94,'2011 Survey responses'!AP94:AS94,\">1\")))","v":""},{"$f":"IF(('2011 Survey responses'!AU94+'2011 Survey responses'!AX94+'2011 Survey responses'!BA94+'2011 Survey responses'!BC94+'2011 Survey responses'!BD94)<5.1,\"\",(SUMIF('2011 Survey responses'!AU94,\">1\")+SUMIF('2011 Survey responses'!AX94,\">1\")+SUMIF('2011 Survey responses'!BA94,\">1\")+SUMIF('2011 Survey responses'!BC94,\">1\")+SUMIF('2011 Survey responses'!BD94,\">1\"))/(COUNTIF('2011 Survey responses'!AU94,\">1\")+COUNTIF('2011 Survey responses'!AX94,\">1\")+COUNTIF('2011 Survey responses'!BA94,\">1\")+COUNTIF('2011 Survey responses'!BC94,\">1\")+COUNTIF('2011 Survey responses'!BD94,\">1\")))","v":""},{"$f":"IF(('2011 Survey responses'!AT94)<1.1,\"\",('2011 Survey responses'!AT94))","v":""},{"$f":"IF(SUM('2011 Survey responses'!AV94:AW94)<2.1,\"\",(AVERAGEIFS('2011 Survey responses'!AV94:AW94,'2011 Survey responses'!AV94:AW94,\">1\")))","v":""},{"$f":"IF(('2011 Survey responses'!AW94+'2011 Survey responses'!AY94)<2.1,\"\",(SUMIF('2011 Survey responses'!AW94,\">1\")+SUMIF('2011 Survey responses'!AY94,\">1\"))/(COUNTIF('2011 Survey responses'!AW94,\">1\")+COUNTIF('2011 Survey responses'!AY94,\">1\")))","v":""},{"$f":"IF(('2011 Survey responses'!AZ94)<1.1,\"\",('2011 Survey responses'!AZ94))","v":""},null,null,null,null,{"$f":"IF(('2011 Survey responses'!BE94)<1.1,\"\",('2011 Survey responses'!BE94))","v":""},{"$f":"IF(('2011 Survey responses'!AY94+'2011 Survey responses'!BB94+'2011 Survey responses'!BF94)<3.1,\"\",(SUMIF('2011 Survey responses'!AY94,\">1\")+SUMIF('2011 Survey responses'!BB94,\">1\")+SUMIF('2011 Survey responses'!BF94,\">1\"))/(COUNTIF('2011 Survey responses'!AY94,\">1\")+COUNTIF('2011 Survey responses'!BB94,\">1\")+COUNTIF('2011 Survey responses'!BF94,\">1\")))","v":""},"",{"$f":"IF(SUM('2011 Survey responses'!BT94:BV94)<3.1,\"\",(AVERAGEIFS('2011 Survey responses'!BT94:BV94,'2011 Survey responses'!BT94:BV94,\">1\")))","v":""},{"$f":"IF(SUM('2011 Survey responses'!BW94:CP94)<1,\"\",(AVERAGEIFS('2011 Survey responses'!BW94:CP94,'2011 Survey responses'!BW94:CP94,\">1\")))","v":""},{"$f":"IF(SUM('2011 Survey responses'!BW94:CF94)<1,\"\",(AVERAGEIFS('2011 Survey responses'!BW94:CF94,'2011 Survey responses'!BW94:CF94,\">1\")))","v":""},{"$f":"IF(SUM('2011 Survey responses'!CG94:CP94)<1,\"\",(AVERAGEIFS('2011 Survey responses'!CG94:CP94,'2011 Survey responses'!CG94:CP94,\">1\")))","v":""},{"$f":"IF(SUM('2011 Survey responses'!BX94:CF94)<1,\"\",(AVERAGEIFS('2011 Survey responses'!BX94:CF94,'2011 Survey responses'!BX94:CF94,\">1\")))","v":""},{"$f":"IF(SUM('2011 Survey responses'!CH94:CP94)<1,\"\",(AVERAGEIFS('2011 Survey responses'!CH94:CP94,'2011 Survey responses'!CH94:CP94,\">1\")))","v":""},{"$f":"IF(SUM('2011 Survey responses'!BW94:CP94)<1,\"\",(AVERAGEIFS('2011 Survey responses'!BW94:CP94,'2011 Survey responses'!BW94:CP94,\">1\")))","v":""},{"$f":"IF(('2011 Survey responses'!BW94+'2011 Survey responses'!CG94)<2.1,\"\",(SUMIF('2011 Survey responses'!BW94,\">1\")+SUMIF('2011 Survey responses'!CG94,\">1\"))/(COUNTIF('2011 Survey responses'!BW94,\">1\")+COUNTIF('2011 Survey responses'!CG94,\">1\")))","v":""},{"$f":"IF(('2011 Survey responses'!BX94+'2011 Survey responses'!CH94)<2.1,\"\",(SUMIF('2011 Survey responses'!BX94,\">1\")+SUMIF('2011 Survey responses'!CH94,\">1\"))/(COUNTIF('2011 Survey responses'!BX94,\">1\")+COUNTIF('2011 Survey responses'!CH94,\">1\")))","v":""},{"$f":"IF(('2011 Survey responses'!BY94+'2011 Survey responses'!CI94)<2.1,\"\",(SUMIF('2011 Survey responses'!BY94,\">1\")+SUMIF('2011 Survey responses'!CI94,\">1\"))/(COUNTIF('2011 Survey responses'!BY94,\">1\")+COUNTIF('2011 Survey responses'!CI94,\">1\")))","v":""},{"$f":"IF('2011 Survey responses'!CQ94<0.5,\"\",'2011 Survey responses'!CQ94)","v":""},{"$f":"IF('2011 Survey responses'!CR94<0.5,\"\",'2011 Survey responses'!CR94)","v":""},{"$f":"IF('2011 Survey responses'!CS94<0.5,\"\",'2011 Survey responses'!CS94)","v":""},{"$f":"IF('2011 Survey responses'!CT94<0.5,\"\",'2011 Survey responses'!CT94)","v":""},{"$f":"IF('2011 Survey responses'!CU94<0.5,\"\",'2011 Survey responses'!CU94)","v":""},{"$f":"IF('2011 Survey responses'!CV94<0.5,\"\",'2011 Survey responses'!CV94)","v":""},{"$f":"IF(SUM('2011 Survey responses'!CW94:DL94)<1,\"\",(AVERAGE('2011 Survey responses'!CW94:DL94)))","v":""},{"$f":"IF(SUM('2011 Survey responses'!CW94:CZ94)<1,\"\",(AVERAGE('2011 Survey responses'!CW94:CZ94)))","v":""},{"$f":"IF(SUM('2011 Survey responses'!DA94:DD94)<1,\"\",(AVERAGE('2011 Survey responses'!DA94:DD94)))","v":""},{"$f":"IF(SUM('2011 Survey responses'!DE94:DH94)<1,\"\",(AVERAGE('2011 Survey responses'!DE94:DH94)))","v":""},{"$f":"IF(SUM('2011 Survey responses'!DI94:DL94)<1,\"\",(AVERAGE('2011 Survey responses'!DI94:DL94)))","v":""},{"$f":"IF(('2011 Survey responses'!CW94+'2011 Survey responses'!DA94+'2011 Survey responses'!DE94+'2011 Survey responses'!DI94)<1,\"\",AVERAGE('2011 Survey responses'!CW94,'2011 Survey responses'!DA94,'2011 Survey responses'!DE94,'2011 Survey responses'!DI94))","v":""},{"$f":"IF(('2011 Survey responses'!CX94+'2011 Survey responses'!DB94+'2011 Survey responses'!DF94+'2011 Survey responses'!DJ94)<1,\"\",AVERAGE('2011 Survey responses'!CX94,'2011 Survey responses'!DB94,'2011 Survey responses'!DF94,'2011 Survey responses'!DJ94))","v":""},{"$f":"IF(('2011 Survey responses'!CY94+'2011 Survey responses'!DC94+'2011 Survey responses'!DG94+'2011 Survey responses'!DK94)<1,\"\",AVERAGE('2011 Survey responses'!CY94,'2011 Survey responses'!DC94,'2011 Survey responses'!DG94,'2011 Survey responses'!DK94))","v":""},{"$f":"IF(('2011 Survey responses'!CZ94+'2011 Survey responses'!DD94+'2011 Survey responses'!DH94+'2011 Survey responses'!DL94)<1,\"\",AVERAGE('2011 Survey responses'!CZ94,'2011 Survey responses'!DD94,'2011 Survey responses'!DH94,'2011 Survey responses'!DL94))","v":""},{"$f":"IF('2011 Survey responses'!CW94<0.5,\"\",'2011 Survey responses'!CW94)","v":""},{"$f":"IF('2011 Survey responses'!CX94<0.5,\"\",'2011 Survey responses'!CX94)","v":""},{"$f":"IF('2011 Survey responses'!CY94<0.5,\"\",'2011 Survey responses'!CY94)","v":""},{"$f":"IF('2011 Survey responses'!CZ94<0.5,\"\",'2011 Survey responses'!CZ94)","v":""},{"$f":"IF('2011 Survey responses'!DA94<0.5,\"\",'2011 Survey responses'!DA94)","v":""},{"$f":"IF('2011 Survey responses'!DB94<0.5,\"\",'2011 Survey responses'!DB94)","v":""},{"$f":"IF('2011 Survey responses'!DC94<0.5,\"\",'2011 Survey responses'!DC94)","v":""},{"$f":"IF('2011 Survey responses'!DD94<0.5,\"\",'2011 Survey responses'!DD94)","v":""},{"$f":"IF('2011 Survey responses'!DE94<0.5,\"\",'2011 Survey responses'!DE94)","v":""},{"$f":"IF('2011 Survey responses'!DF94<0.5,\"\",'2011 Survey responses'!DF94)","v":""},{"$f":"IF('2011 Survey responses'!DG94<0.5,\"\",'2011 Survey responses'!DG94)","v":""},{"$f":"IF('2011 Survey responses'!DH94<0.5,\"\",'2011 Survey responses'!DH94)","v":""},{"$f":"IF('2011 Survey responses'!DI94<0.5,\"\",'2011 Survey responses'!DI94)","v":""},{"$f":"IF('2011 Survey responses'!DJ94<0.5,\"\",'2011 Survey responses'!DJ94)","v":""},{"$f":"IF('2011 Survey responses'!DK94<0.5,\"\",'2011 Survey responses'!DK94)","v":""},{"$f":"IF('2011 Survey responses'!DL94<0.5,\"\",'2011 Survey responses'!DL94)","v":""},{"$f":"IF('2011 Survey responses'!DU94=4,4,IF('2011 Survey responses'!DU94=5,4,\"\"))","v":""},{"$f":"IF('2011 Survey responses'!DV94=4,3,IF('2011 Survey responses'!DV94=5,3,\"\"))","v":""},"",{"$f":"IF(CQ94=2,CQ94,IF(CO94=4,CO94,IF(CP94=3,CP94,IF('2011 Survey responses'!GT94=1,1,\"\"))))","v":""},{"$f":"IF('2011 Survey responses'!DO94<0.5,\"\",'2011 Survey responses'!DO94)","v":""},{"$f":"IF('2011 Survey responses'!DP94<0.5,\"\",'2011 Survey responses'!DP94)","v":""},{"$f":"IF('2011 Survey responses'!DQ94<0.5,\"\",'2011 Survey responses'!DQ94)","v":""},{"$f":"IF('2011 Survey responses'!DR94<0.5,\"\",'2011 Survey responses'!DR94)","v":""},{"$f":"IF('2011 Survey responses'!DS94<0.5,\"\",'2011 Survey responses'!DS94)","v":""},{"$f":"IF('2011 Survey responses'!DT94<0.5,\"\",'2011 Survey responses'!DT94)","v":""},{"$f":"IF('2011 Survey responses'!DU94<0.5,\"\",'2011 Survey responses'!DU94)","v":""},{"$f":"IF('2011 Survey responses'!DV94<0.5,\"\",'2011 Survey responses'!DV94)","v":""},{"$f":"IF('2011 Survey responses'!DW94<0.5,\"\",'2011 Survey responses'!DW94)","v":""},{"$f":"IF('2011 Survey responses'!DX94<0.5,\"\",'2011 Survey responses'!DX94)","v":""},{"$f":"IF('2011 Survey responses'!DY94<0.5,\"\",'2011 Survey responses'!DY94)","v":""},{"$f":"IF('2011 Survey responses'!DZ94<0.5,\"\",'2011 Survey responses'!DZ94)","v":""},{"$f":"IF('2011 Survey responses'!EA94<0.5,\"\",'2011 Survey responses'!EA94)","v":""},{"$f":"IF('2011 Survey responses'!EB94<0.5,\"\",'2011 Survey responses'!EB94)","v":""},{"$f":"IF('2011 Survey responses'!EC94<0.5,\"\",'2011 Survey responses'!EC94)","v":""},{"$f":"IF('2011 Survey responses'!ED94<0.5,\"\",'2011 Survey responses'!ED94)","v":""},{"$f":"IF('2011 Survey responses'!EE94<0.5,\"\",'2011 Survey responses'!EE94)","v":""},{"$f":"IF('2011 Survey responses'!EF94<0.5,\"\",'2011 Survey responses'!EF94)","v":""},{"$f":"IF('2011 Survey responses'!EG94<0.5,\"\",'2011 Survey responses'!EG94)","v":""},{"$f":"IF('2011 Survey responses'!EH94<0.5,\"\",'2011 Survey responses'!EH94)","v":""},{"$f":"IF('2011 Survey responses'!EI94<0.5,\"\",'2011 Survey responses'!EI94)","v":""},{"$f":"IF('2011 Survey responses'!EJ94<0.5,\"\",'2011 Survey responses'!EJ94)","v":""},{"$f":"IF('2011 Survey responses'!EK94<0.5,\"\",'2011 Survey responses'!EK94)","v":""},{"$f":"IF('2011 Survey responses'!EL94<0.5,\"\",'2011 Survey responses'!EL94)","v":""},{"$f":"IF('2011 Survey responses'!EM94<0.5,\"\",'2011 Survey responses'!EM94)","v":""},{"$f":"IF('2011 Survey responses'!EN94<0.5,\"\",'2011 Survey responses'!EN94)","v":""},{"$f":"IF('2011 Survey responses'!EO94<0.5,\"\",'2011 Survey responses'!EO94)","v":""},{"$f":"IF('2011 Survey responses'!EP94<0.5,\"\",'2011 Survey responses'!EP94)","v":""},{"$f":"IF(('2011 Survey responses'!EW94+'2011 Survey responses'!EX94)>=2,AVERAGE('2011 Survey responses'!EW94,'2011 Survey responses'!EY94),\"\")","v":""},{"$f":"IF('2011 Survey responses'!EX94<0.5,\"\",'2011 Survey responses'!EX94)","v":""},{"$f":"IF('2011 Survey responses'!EZ94<0.5,\"\",'2011 Survey responses'!EZ94)","v":""},{"$f":"IF('2011 Survey responses'!FB94<0.5,\"\",'2011 Survey responses'!FB94)","v":""},{"$f":"IF('2011 Survey responses'!FD94<0.5,\"\",'2011 Survey responses'!FD94)","v":""},{"$f":"IF('2011 Survey responses'!FC94<0.5,\"\",'2011 Survey responses'!FC94)","v":""},{"$f":"IF(('2011 Survey responses'!EM94+'2011 Survey responses'!EN94)>=2,AVERAGE('2011 Survey responses'!EM94,'2011 Survey responses'!EN94),\"\")","v":""},{"$f":"IF('2011 Survey responses'!ES94<0.5,\"\",'2011 Survey responses'!ES94)","v":""},{"$f":"IF(('2011 Survey responses'!ET94+'2011 Survey responses'!EU94)>=2,AVERAGE('2011 Survey responses'!ET94,'2011 Survey responses'!EU94),\"\")","v":""},{"$f":"IF('2011 Survey responses'!EV94<0.5,\"\",'2011 Survey responses'!EV94)","v":""},{"$f":"IF('2011 Survey responses'!FA94<0.5,\"\",'2011 Survey responses'!FA94)","v":""},{"$f":"IF('2011 Survey responses'!ER94<0.5,\"\",'2011 Survey responses'!ER94)","v":""},{"$f":"IF(('2011 Survey responses'!EO94+'2011 Survey responses'!EP94)>=2,AVERAGE('2011 Survey responses'!EO94,'2011 Survey responses'!EP94),\"\")","v":""},{"$f":"IF('2011 Survey responses'!EQ94<0.5,\"\",'2011 Survey responses'!EQ94)","v":""},{"$f":"IF('2011 Survey responses'!ET94<0.5,\"\",'2011 Survey responses'!ET94)","v":""},{"$f":"IF('2011 Survey responses'!EU94<0.5,\"\",'2011 Survey responses'!EU94)","v":""},{"$f":"IF('2011 Survey responses'!EW94<0.5,\"\",'2011 Survey responses'!EW94)","v":""},{"$f":"IF('2011 Survey responses'!EY94<0.5,\"\",'2011 Survey responses'!EY94)","v":""},{"$f":"IF('2011 Survey responses'!FU94<0.5,\"\",'2011 Survey responses'!FU94)","v":""},{"$f":"IF(('2011 Survey responses'!FL94+'2011 Survey responses'!FM94)>=2,AVERAGE('2011 Survey responses'!FL94,'2011 Survey responses'!FM94),\"\")","v":""},{"$f":"IF(('2011 Survey responses'!FO94+'2011 Survey responses'!FQ94)>=2,AVERAGE('2011 Survey responses'!FO94,'2011 Survey responses'!FQ94),\"\")","v":""},{"$f":"IF('2011 Survey responses'!FJ94<0.5,\"\",'2011 Survey responses'!FJ94)","v":""},{"$f":"IF('2011 Survey responses'!FT94<0.5,\"\",'2011 Survey responses'!FT94)","v":""},{"$f":"IF('2011 Survey responses'!FR94<0.5,\"\",'2011 Survey responses'!FR94)","v":""},{"$f":"IF('2011 Survey responses'!FK94<0.5,\"\",'2011 Survey responses'!FK94)","v":""},{"$f":"IF('2011 Survey responses'!FP94<0.5,\"\",'2011 Survey responses'!FP94)","v":""},{"$f":"IF('2011 Survey responses'!FN94<0.5,\"\",'2011 Survey responses'!FN94)","v":""},{"$f":"IF(('2011 Survey responses'!FE94+'2011 Survey responses'!FF94)>=2,AVERAGE('2011 Survey responses'!FE94,'2011 Survey responses'!FF94),\"\")","v":""},{"$f":"IF('2011 Survey responses'!FS94<0.5,\"\",'2011 Survey responses'!FS94)","v":""},{"$f":"IF('2011 Survey responses'!FV94<0.5,\"\",'2011 Survey responses'!FV94)","v":""},{"$f":"IF(('2011 Survey responses'!FG94+'2011 Survey responses'!FH94)>=2,AVERAGE('2011 Survey responses'!FG94,'2011 Survey responses'!FH94),\"\")","v":""},{"$f":"IF('2011 Survey responses'!FI94<0.5,\"\",'2011 Survey responses'!FI94)","v":""},{"$f":"IF('2011 Survey responses'!FE94<0.5,\"\",'2011 Survey responses'!FE94)","v":""},{"$f":"IF('2011 Survey responses'!FF94<0.5,\"\",'2011 Survey responses'!FF94)","v":""},{"$f":"IF('2011 Survey responses'!FG94<0.5,\"\",'2011 Survey responses'!FG94)","v":""},{"$f":"IF('2011 Survey responses'!FH94<0.5,\"\",'2011 Survey responses'!FH94)","v":""},{"$f":"IF('2011 Survey responses'!FL94<0.5,\"\",'2011 Survey responses'!FL94)","v":""},{"$f":"IF('2011 Survey responses'!FM94<0.5,\"\",'2011 Survey responses'!FM94)","v":""},{"$f":"IF('2011 Survey responses'!FO94<0.5,\"\",'2011 Survey responses'!FO94)","v":""},{"$f":"IF('2011 Survey responses'!FQ94<0.5,\"\",'2011 Survey responses'!FQ94)","v":""}]
["Latvia",{"$f":"IF(SUM(F95)<1,\"\",AVERAGEIF('2011 Survey responses'!B95:CP95,\">1\"))","v":4.7301587301587302},{"$f":"IF(SUM(F95)<1,\"\",AVERAGEIF('2011 Survey responses'!B95:AO95,\">1\"))","v":4.8620689655172411},{"$f":"IF(SUM(F95)<1,\"\",AVERAGEIF('2011 Survey responses'!B95:BV95,\">1\"))","v":4.7254901960784315},{"$f":"IF(SUM(F95)<1,\"\",AVERAGEIF('2011 Survey responses'!V95:BV95,\">1\"))","v":4.7750000000000004},{"$f":"IF(SUM('2011 Survey responses'!B95:U95)<1,\"\",(AVERAGEIFS('2011 Survey responses'!B95:U95,'2011 Survey responses'!B95:U95,\">1\")))","v":4.5454545454545459},{"$f":"IF(SUM('2011 Survey responses'!B95:H95)<1,\"\",(AVERAGEIFS('2011 Survey responses'!B95:H95,'2011 Survey responses'!B95:H95,\">1\")))","v":4.5},{"$f":"IF(SUM('2011 Survey responses'!I95:S95)<1,\"\",(AVERAGEIFS('2011 Survey responses'!I95:S95,'2011 Survey responses'!I95:S95,\">1\")))","v":4.833333333333333},{"$f":"IF(SUM('2011 Survey responses'!T95:U95)<2.1,\"\",(AVERAGEIFS('2011 Survey responses'!T95:U95,'2011 Survey responses'!T95:U95,\">1\")))","v":3},{"$f":"IF(SUM('2011 Survey responses'!B95:C95)<2.1,\"\",((SUMIF('2011 Survey responses'!B95:C95,\">1\")+SUMIF('2011 Survey responses'!F95,\">1\"))/(COUNTIF('2011 Survey responses'!B95:C95,\">1\")+COUNTIF('2011 Survey responses'!F95,\">1\"))))","v":5},{"$f":"IF(SUM('2011 Survey responses'!D95:E95)<2.1,\"\",(AVERAGEIFS('2011 Survey responses'!D95:E95,'2011 Survey responses'!D95:E95,\">1\")))","v":5},{"$f":"IF(('2011 Survey responses'!B95+'2011 Survey responses'!D95)<2.1,\"\",((SUMIF('2011 Survey responses'!B95,\">1\")+SUMIF('2011 Survey responses'!D95,\">1\")+SUMIF('2011 Survey responses'!F95,\">1\")+SUMIF('2011 Survey responses'!K95,\">1\"))/(COUNTIF('2011 Survey responses'!B95,\">1\")+COUNTIF('2011 Survey responses'!D95,\">1\")+COUNTIF('2011 Survey responses'!F95,\">1\")+COUNTIF('2011 Survey responses'!K95,\">1\"))))","v":4.75},{"$f":"IF(SUM('2011 Survey responses'!G95:H95)<2.1,\"\",(AVERAGEIFS('2011 Survey responses'!G95:H95,'2011 Survey responses'!G95:H95,\">1\")))","v":3},{"$f":"IF(SUM('2011 Survey responses'!F95:G95)<1.5,\"\",MAX('2011 Survey responses'!F95,'2011 Survey responses'!G95))","v":5},{"$f":"IF(SUM('2011 Survey responses'!G95:H95)<1,\"\",MAX('2011 Survey responses'!G95,'2011 Survey responses'!H95))","v":3},{"$f":"IF(SUM('2011 Survey responses'!I95:L95)<4.1,\"\",(AVERAGEIFS('2011 Survey responses'!I95:L95,'2011 Survey responses'!I95:L95,\">1\")))","v":4.333333333333333},{"$f":"IF(SUM('2011 Survey responses'!M95:S95)<4.1,\"\",(AVERAGEIFS('2011 Survey responses'!M95:S95,'2011 Survey responses'!M95:S95,\">1\")))","v":5.333333333333333},{"$f":"IF(SUM('2011 Survey responses'!T95:U95)<2.1,\"\",(AVERAGEIFS('2011 Survey responses'!T95:U95,'2011 Survey responses'!T95:U95,\">1\")))","v":3},{"$f":"IF(SUM('2011 Survey responses'!V95:AO95)<1,\"\",(AVERAGEIFS('2011 Survey responses'!V95:AO95,'2011 Survey responses'!V95:AO95,\">1\")))","v":5.0555555555555554},{"$f":"IF(SUM('2011 Survey responses'!V95:AA95)<1,\"\",(AVERAGEIFS('2011 Survey responses'!V95:AA95,'2011 Survey responses'!V95:AA95,\">1\")))","v":4.5999999999999996},{"$f":"IF(SUM('2011 Survey responses'!AB95:AH95)<1,\"\",(AVERAGEIFS('2011 Survey responses'!AB95:AH95,'2011 Survey responses'!AB95:AH95,\">1\")))","v":4.333333333333333},{"$f":"IF(SUM('2011 Survey responses'!AI95:AO95)<1,\"\",(AVERAGEIFS('2011 Survey responses'!AI95:AO95,'2011 Survey responses'!AI95:AO95,\">1\")))","v":6},{"$f":"IF(('2011 Survey responses'!Y95+'2011 Survey responses'!AI95+'2011 Survey responses'!AK95)<3.1,\"\",((SUMIF('2011 Survey responses'!Y95,\">1\")+SUMIF('2011 Survey responses'!AI95,\">1\")+SUMIF('2011 Survey responses'!AK95,\">1\")+SUMIF('2011 Survey responses'!AM95,\">1\"))/(COUNTIF('2011 Survey responses'!Y95,\">1\")+COUNTIF('2011 Survey responses'!AI95,\">1\")+COUNTIF('2011 Survey responses'!AK95,\">1\")+COUNTIF('2011 Survey responses'!AM95,\">1\"))))","v":5.75},{"$f":"IF(('2011 Survey responses'!W95)<1.1,\"\",('2011 Survey responses'!W95))","v":5},{"$f":"IF(('2011 Survey responses'!Y95)<1.1,\"\",('2011 Survey responses'!Y95))","v":5},{"$f":"IF(('2011 Survey responses'!Z95)<1.1,\"\",('2011 Survey responses'!Z95))","v":3},{"$f":"IF(('2011 Survey responses'!V95+'2011 Survey responses'!X95+'2011 Survey responses'!AA95)<3.1,\"\",((SUMIF('2011 Survey responses'!V95,\">1\")+SUMIF('2011 Survey responses'!X95,\">1\")+SUMIF('2011 Survey responses'!AA95,\">1\"))/(COUNTIF('2011 Survey responses'!V95,\">1\")+COUNTIF('2011 Survey responses'!X95,\">1\")+COUNTIF('2011 Survey responses'!AA95,\">1\"))))","v":5},{"$f":"IF(('2011 Survey responses'!V95+'2011 Survey responses'!Y95+'2011 Survey responses'!AA95)<3.1,\"\",((SUMIF('2011 Survey responses'!V95,\">1\")+SUMIF('2011 Survey responses'!Y95,\">1\")+SUMIF('2011 Survey responses'!AA95,\">1\"))/(COUNTIF('2011 Survey responses'!V95,\">1\")+COUNTIF('2011 Survey responses'!Y95,\">1\")+COUNTIF('2011 Survey responses'!AA95,\">1\"))))","v":5},{"$f":"IF(SUM('2011 Survey responses'!AB95:AH95)<1,\"\",(AVERAGEIFS('2011 Survey responses'!AB95:AH95,'2011 Survey responses'!AB95:AH95,\">1\")))","v":4.333333333333333},{"$f":"IF(SUM('2011 Survey responses'!AI95:AO95)<7.1,\"\",(AVERAGEIFS('2011 Survey responses'!AI95:AO95,'2011 Survey responses'!AI95:AO95,\">1\")))","v":6},{"$f":"IF(('2011 Survey responses'!AH95)<1.1,\"\",('2011 Survey responses'!AH95))","v":""},{"$f":"IF(SUM('2011 Survey responses'!AP95:BV95)<1,\"\",(AVERAGEIFS('2011 Survey responses'!AP95:BV95,'2011 Survey responses'!AP95:BV95,\">1\")))","v":4.5454545454545459},{"$f":"IF(SUM('2011 Survey responses'!AP95:AS95)<4.1,\"\",(AVERAGEIFS('2011 Survey responses'!AP95:AS95,'2011 Survey responses'!AP95:AS95,\">1\")))","v":3.6666666666666665},{"$f":"IF(SUM('2011 Survey responses'!AT95:BF95)<1,\"\",(AVERAGEIFS('2011 Survey responses'!AT95:BF95,'2011 Survey responses'!AT95:BF95,\">1\")))","v":4.2},{"$f":"IF(SUM('2011 Survey responses'!BG95:BO95)<1,\"\",(AVERAGEIFS('2011 Survey responses'!BG95:BO95,'2011 Survey responses'!BG95:BO95,\">1\")))","v":5},{"$f":"IF(SUM('2011 Survey responses'!BP95:BS95)<1,\"\",(AVERAGEIFS('2011 Survey responses'!BP95:BS95,'2011 Survey responses'!BP95:BS95,\">1\")))","v":4.333333333333333},{"$f":"IF(SUM('2011 Survey responses'!BT95:BV95)<3.1,\"\",(AVERAGEIFS('2011 Survey responses'!BT95:BV95,'2011 Survey responses'!BT95:BV95,\">1\")))","v":5},{"$f":"IF(('2011 Survey responses'!AQ95+'2011 Survey responses'!AR95+'2011 Survey responses'!BG95)<3.1,\"\",((SUMIF('2011 Survey responses'!AQ95,\">1\")+SUMIF('2011 Survey responses'!AR95,\">1\")+SUMIF('2011 Survey responses'!BG95,\">1\"))/(COUNTIF('2011 Survey responses'!AQ95,\">1\")+COUNTIF('2011 Survey responses'!AR95,\">1\")+COUNTIF('2011 Survey responses'!BG95,\">1\"))))","v":4.333333333333333},{"$f":"IF(SUM('2011 Survey responses'!AP95:AS95)<4.1,\"\",(AVERAGEIFS('2011 Survey responses'!AP95:AS95,'2011 Survey responses'!AP95:AS95,\">1\")))","v":3.6666666666666665},{"$f":"IF(('2011 Survey responses'!AU95+'2011 Survey responses'!AX95+'2011 Survey responses'!BA95+'2011 Survey responses'!BC95+'2011 Survey responses'!BD95)<5.1,\"\",(SUMIF('2011 Survey responses'!AU95,\">1\")+SUMIF('2011 Survey responses'!AX95,\">1\")+SUMIF('2011 Survey responses'!BA95,\">1\")+SUMIF('2011 Survey responses'!BC95,\">1\")+SUMIF('2011 Survey responses'!BD95,\">1\"))/(COUNTIF('2011 Survey responses'!AU95,\">1\")+COUNTIF('2011 Survey responses'!AX95,\">1\")+COUNTIF('2011 Survey responses'!BA95,\">1\")+COUNTIF('2011 Survey responses'!BC95,\">1\")+COUNTIF('2011 Survey responses'!BD95,\">1\")))","v":4},{"$f":"IF(('2011 Survey responses'!AT95)<1.1,\"\",('2011 Survey responses'!AT95))","v":4},{"$f":"IF(SUM('2011 Survey responses'!AV95:AW95)<2.1,\"\",(AVERAGEIFS('2011 Survey responses'!AV95:AW95,'2011 Survey responses'!AV95:AW95,\">1\")))","v":""},{"$f":"IF(('2011 Survey responses'!AW95+'2011 Survey responses'!AY95)<2.1,\"\",(SUMIF('2011 Survey responses'!AW95,\">1\")+SUMIF('2011 Survey responses'!AY95,\">1\"))/(COUNTIF('2011 Survey responses'!AW95,\">1\")+COUNTIF('2011 Survey responses'!AY95,\">1\")))","v":""},{"$f":"IF(('2011 Survey responses'!AZ95)<1.1,\"\",('2011 Survey responses'!AZ95))","v":""},1,1,1,null,{"$f":"IF(('2011 Survey responses'!BE95)<1.1,\"\",('2011 Survey responses'!BE95))","v":""},{"$f":"IF(('2011 Survey responses'!AY95+'2011 Survey responses'!BB95+'2011 Survey responses'!BF95)<3.1,\"\",(SUMIF('2011 Survey responses'!AY95,\">1\")+SUMIF('2011 Survey responses'!BB95,\">1\")+SUMIF('2011 Survey responses'!BF95,\">1\"))/(COUNTIF('2011 Survey responses'!AY95,\">1\")+COUNTIF('2011 Survey responses'!BB95,\">1\")+COUNTIF('2011 Survey responses'!BF95,\">1\")))","v":4.5},4.6666666666666661,{"$f":"IF(SUM('2011 Survey responses'!BT95:BV95)<3.1,\"\",(AVERAGEIFS('2011 Survey responses'!BT95:BV95,'2011 Survey responses'!BT95:BV95,\">1\")))","v":5},{"$f":"IF(SUM('2011 Survey responses'!BW95:CP95)<1,\"\",(AVERAGEIFS('2011 Survey responses'!BW95:CP95,'2011 Survey responses'!BW95:CP95,\">1\")))","v":4.75},{"$f":"IF(SUM('2011 Survey responses'!BW95:CF95)<1,\"\",(AVERAGEIFS('2011 Survey responses'!BW95:CF95,'2011 Survey responses'!BW95:CF95,\">1\")))","v":4.8571428571428568},{"$f":"IF(SUM('2011 Survey responses'!CG95:CP95)<1,\"\",(AVERAGEIFS('2011 Survey responses'!CG95:CP95,'2011 Survey responses'!CG95:CP95,\">1\")))","v":4.5999999999999996},{"$f":"IF(SUM('2011 Survey responses'!BX95:CF95)<1,\"\",(AVERAGEIFS('2011 Survey responses'!BX95:CF95,'2011 Survey responses'!BX95:CF95,\">1\")))","v":4.666666666666667},{"$f":"IF(SUM('2011 Survey responses'!CH95:CP95)<1,\"\",(AVERAGEIFS('2011 Survey responses'!CH95:CP95,'2011 Survey responses'!CH95:CP95,\">1\")))","v":4.5999999999999996},{"$f":"IF(SUM('2011 Survey responses'!BW95:CP95)<1,\"\",(AVERAGEIFS('2011 Survey responses'!BW95:CP95,'2011 Survey responses'!BW95:CP95,\">1\")))","v":4.75},{"$f":"IF(('2011 Survey responses'!BW95+'2011 Survey responses'!CG95)<2.1,\"\",(SUMIF('2011 Survey responses'!BW95,\">1\")+SUMIF('2011 Survey responses'!CG95,\">1\"))/(COUNTIF('2011 Survey responses'!BW95,\">1\")+COUNTIF('2011 Survey responses'!CG95,\">1\")))","v":6},{"$f":"IF(('2011 Survey responses'!BX95+'2011 Survey responses'!CH95)<2.1,\"\",(SUMIF('2011 Survey responses'!BX95,\">1\")+SUMIF('2011 Survey responses'!CH95,\">1\"))/(COUNTIF('2011 Survey responses'!BX95,\">1\")+COUNTIF('2011 Survey responses'!CH95,\">1\")))","v":""},{"$f":"IF(('2011 Survey responses'!BY95+'2011 Survey responses'!CI95)<2.1,\"\",(SUMIF('2011 Survey responses'!BY95,\">1\")+SUMIF('2011 Survey responses'!CI95,\">1\"))/(COUNTIF('2011 Survey responses'!BY95,\">1\")+COUNTIF('2011 Survey responses'!CI95,\">1\")))","v":5},{"$f":"IF('2011 Survey responses'!CQ95<0.5,\"\",'2011 Survey responses'!CQ95)","v":4},{"$f":"IF('2011 Survey responses'!CR95<0.5,\"\",'2011 Survey responses'!CR95)","v":4},{"$f":"IF('2011 Survey responses'!CS95<0.5,\"\",'2011 Survey responses'!CS95)","v":3},{"$f":"IF('2011 Survey responses'!CT95<0.5,\"\",'2011 Survey responses'!CT95)","v":4},{"$f":"IF('2011 Survey responses'!CU95<0.5,\"\",'2011 Survey responses'!CU95)","v":4},{"$f":"IF('2011 Survey responses'!CV95<0.5,\"\",'2011 Survey responses'!CV95)","v":2},{"$f":"IF(SUM('2011 Survey responses'!CW95:DL95)<1,\"\",(AVERAGE('2011 Survey responses'!CW95:DL95)))","v":2.625},{"$f":"IF(SUM('2011 Survey responses'!CW95:CZ95)<1,\"\",(AVERAGE('2011 Survey responses'!CW95:CZ95)))","v":3},{"$f":"IF(SUM('2011 Survey responses'!DA95:DD95)<1,\"\",(AVERAGE('2011 Survey responses'!DA95:DD95)))","v":2.25},{"$f":"IF(SUM('2011 Survey responses'!DE95:DH95)<1,\"\",(AVERAGE('2011 Survey responses'!DE95:DH95)))","v":1.75},{"$f":"IF(SUM('2011 Survey responses'!DI95:DL95)<1,\"\",(AVERAGE('2011 Survey responses'!DI95:DL95)))","v":3.5},{"$f":"IF(('2011 Survey responses'!CW95+'2011 Survey responses'!DA95+'2011 Survey responses'!DE95+'2011 Survey responses'!DI95)<1,\"\",AVERAGE('2011 Survey responses'!CW95,'2011 Survey responses'!DA95,'2011 Survey responses'!DE95,'2011 Survey responses'!DI95))","v":2},{"$f":"IF(('2011 Survey responses'!CX95+'2011 Survey responses'!DB95+'2011 Survey responses'!DF95+'2011 Survey responses'!DJ95)<1,\"\",AVERAGE('2011 Survey responses'!CX95,'2011 Survey responses'!DB95,'2011 Survey responses'!DF95,'2011 Survey responses'!DJ95))","v":1.5},{"$f":"IF(('2011 Survey responses'!CY95+'2011 Survey responses'!DC95+'2011 Survey responses'!DG95+'2011 Survey responses'!DK95)<1,\"\",AVERAGE('2011 Survey responses'!CY95,'2011 Survey responses'!DC95,'2011 Survey responses'!DG95,'2011 Survey responses'!DK95))","v":4.5},{"$f":"IF(('2011 Survey responses'!CZ95+'2011 Survey responses'!DD95+'2011 Survey responses'!DH95+'2011 Survey responses'!DL95)<1,\"\",AVERAGE('2011 Survey responses'!CZ95,'2011 Survey responses'!DD95,'2011 Survey responses'!DH95,'2011 Survey responses'!DL95))","v":2.5},{"$f":"IF('2011 Survey responses'!CW95<0.5,\"\",'2011 Survey responses'!CW95)","v":3},{"$f":"IF('2011 Survey responses'!CX95<0.5,\"\",'2011 Survey responses'!CX95)","v":1},{"$f":"IF('2011 Survey responses'!CY95<0.5,\"\",'2011 Survey responses'!CY95)","v":5},{"$f":"IF('2011 Survey responses'!CZ95<0.5,\"\",'2011 Survey responses'!CZ95)","v":3},{"$f":"IF('2011 Survey responses'!DA95<0.5,\"\",'2011 Survey responses'!DA95)","v":1},{"$f":"IF('2011 Survey responses'!DB95<0.5,\"\",'2011 Survey responses'!DB95)","v":1},{"$f":"IF('2011 Survey responses'!DC95<0.5,\"\",'2011 Survey responses'!DC95)","v":4},{"$f":"IF('2011 Survey responses'!DD95<0.5,\"\",'2011 Survey responses'!DD95)","v":3},{"$f":"IF('2011 Survey responses'!DE95<0.5,\"\",'2011 Survey responses'!DE95)","v":1},{"$f":"IF('2011 Survey responses'!DF95<0.5,\"\",'2011 Survey responses'!DF95)","v":1},{"$f":"IF('2011 Survey responses'!DG95<0.5,\"\",'2011 Survey responses'!DG95)","v":4},{"$f":"IF('2011 Survey responses'!DH95<0.5,\"\",'2011 Survey responses'!DH95)","v":1},{"$f":"IF('2011 Survey responses'!DI95<0.5,\"\",'2011 Survey responses'!DI95)","v":3},{"$f":"IF('2011 Survey responses'!DJ95<0.5,\"\",'2011 Survey responses'!DJ95)","v":3},{"$f":"IF('2011 Survey responses'!DK95<0.5,\"\",'2011 Survey responses'!DK95)","v":5},{"$f":"IF('2011 Survey responses'!DL95<0.5,\"\",'2011 Survey responses'!DL95)","v":3},{"$f":"IF('2011 Survey responses'!DU95=4,4,IF('2011 Survey responses'!DU95=5,4,\"\"))","v":""},{"$f":"IF('2011 Survey responses'!DV95=4,3,IF('2011 Survey responses'!DV95=5,3,\"\"))","v":""},"",{"$f":"IF(CQ95=2,CQ95,IF(CO95=4,CO95,IF(CP95=3,CP95,IF('2011 Survey responses'!GT95=1,1,\"\"))))","v":1},{"$f":"IF('2011 Survey responses'!DO95<0.5,\"\",'2011 Survey responses'!DO95)","v":1},{"$f":"IF('2011 Survey responses'!DP95<0.5,\"\",'2011 Survey responses'!DP95)","v":1},{"$f":"IF('2011 Survey responses'!DQ95<0.5,\"\",'2011 Survey responses'!DQ95)","v":1},{"$f":"IF('2011 Survey responses'!DR95<0.5,\"\",'2011 Survey responses'!DR95)","v":2},{"$f":"IF('2011 Survey responses'!DS95<0.5,\"\",'2011 Survey responses'!DS95)","v":2},{"$f":"IF('2011 Survey responses'!DT95<0.5,\"\",'2011 Survey responses'!DT95)","v":2},{"$f":"IF('2011 Survey responses'!DU95<0.5,\"\",'2011 Survey responses'!DU95)","v":2},{"$f":"IF('2011 Survey responses'!DV95<0.5,\"\",'2011 Survey responses'!DV95)","v":1},{"$f":"IF('2011 Survey responses'!DW95<0.5,\"\",'2011 Survey responses'!DW95)","v":1},{"$f":"IF('2011 Survey responses'!DX95<0.5,\"\",'2011 Survey responses'!DX95)","v":1},{"$f":"IF('2011 Survey responses'!DY95<0.5,\"\",'2011 Survey responses'!DY95)","v":3},{"$f":"IF('2011 Survey responses'!DZ95<0.5,\"\",'2011 Survey responses'!DZ95)","v":3},{"$f":"IF('2011 Survey responses'!EA95<0.5,\"\",'2011 Survey responses'!EA95)","v":1},{"$f":"IF('2011 Survey responses'!EB95<0.5,\"\",'2011 Survey responses'!EB95)","v":2},{"$f":"IF('2011 Survey responses'!EC95<0.5,\"\",'2011 Survey responses'!EC95)","v":1},{"$f":"IF('2011 Survey responses'!ED95<0.5,\"\",'2011 Survey responses'!ED95)","v":4},{"$f":"IF('2011 Survey responses'!EE95<0.5,\"\",'2011 Survey responses'!EE95)","v":4},{"$f":"IF('2011 Survey responses'!EF95<0.5,\"\",'2011 Survey responses'!EF95)","v":2},{"$f":"IF('2011 Survey responses'!EG95<0.5,\"\",'2011 Survey responses'!EG95)","v":3},{"$f":"IF('2011 Survey responses'!EH95<0.5,\"\",'2011 Survey responses'!EH95)","v":3},{"$f":"IF('2011 Survey responses'!EI95<0.5,\"\",'2011 Survey responses'!EI95)","v":3},{"$f":"IF('2011 Survey responses'!EJ95<0.5,\"\",'2011 Survey responses'!EJ95)","v":3},{"$f":"IF('2011 Survey responses'!EK95<0.5,\"\",'2011 Survey responses'!EK95)","v":4},{"$f":"IF('2011 Survey responses'!EL95<0.5,\"\",'2011 Survey responses'!EL95)","v":4},{"$f":"IF('2011 Survey responses'!EM95<0.5,\"\",'2011 Survey responses'!EM95)","v":3},{"$f":"IF('2011 Survey responses'!EN95<0.5,\"\",'2011 Survey responses'!EN95)","v":4},{"$f":"IF('2011 Survey responses'!EO95<0.5,\"\",'2011 Survey responses'!EO95)","v":4},{"$f":"IF('2011 Survey responses'!EP95<0.5,\"\",'2011 Survey responses'!EP95)","v":3},{"$f":"IF(('2011 Survey responses'!EW95+'2011 Survey responses'!EX95)>=2,AVERAGE('2011 Survey responses'!EW95,'2011 Survey responses'!EY95),\"\")","v":4.5},{"$f":"IF('2011 Survey responses'!EX95<0.5,\"\",'2011 Survey responses'!EX95)","v":5},{"$f":"IF('2011 Survey responses'!EZ95<0.5,\"\",'2011 Survey responses'!EZ95)","v":4},{"$f":"IF('2011 Survey responses'!FB95<0.5,\"\",'2011 Survey responses'!FB95)","v":2},{"$f":"IF('2011 Survey responses'!FD95<0.5,\"\",'2011 Survey responses'!FD95)","v":2},{"$f":"IF('2011 Survey responses'!FC95<0.5,\"\",'2011 Survey responses'!FC95)","v":2},{"$f":"IF(('2011 Survey responses'!EM95+'2011 Survey responses'!EN95)>=2,AVERAGE('2011 Survey responses'!EM95,'2011 Survey responses'!EN95),\"\")","v":3.5},{"$f":"IF('2011 Survey responses'!ES95<0.5,\"\",'2011 Survey responses'!ES95)","v":4},{"$f":"IF(('2011 Survey responses'!ET95+'2011 Survey responses'!EU95)>=2,AVERAGE('2011 Survey responses'!ET95,'2011 Survey responses'!EU95),\"\")","v":3.5},{"$f":"IF('2011 Survey responses'!EV95<0.5,\"\",'2011 Survey responses'!EV95)","v":1},{"$f":"IF('2011 Survey responses'!FA95<0.5,\"\",'2011 Survey responses'!FA95)","v":3},{"$f":"IF('2011 Survey responses'!ER95<0.5,\"\",'2011 Survey responses'!ER95)","v":3},{"$f":"IF(('2011 Survey responses'!EO95+'2011 Survey responses'!EP95)>=2,AVERAGE('2011 Survey responses'!EO95,'2011 Survey responses'!EP95),\"\")","v":3.5},{"$f":"IF('2011 Survey responses'!EQ95<0.5,\"\",'2011 Survey responses'!EQ95)","v":3},{"$f":"IF('2011 Survey responses'!ET95<0.5,\"\",'2011 Survey responses'!ET95)","v":4},{"$f":"IF('2011 Survey responses'!EU95<0.5,\"\",'2011 Survey responses'!EU95)","v":3},{"$f":"IF('2011 Survey responses'!EW95<0.5,\"\",'2011 Survey responses'!EW95)","v":4},{"$f":"IF('2011 Survey responses'!EY95<0.5,\"\",'2011 Survey responses'!EY95)","v":5},{"$f":"IF('2011 Survey responses'!FU95<0.5,\"\",'2011 Survey responses'!FU95)","v":4},{"$f":"IF(('2011 Survey responses'!FL95+'2011 Survey responses'!FM95)>=2,AVERAGE('2011 Survey responses'!FL95,'2011 Survey responses'!FM95),\"\")","v":3},{"$f":"IF(('2011 Survey responses'!FO95+'2011 Survey responses'!FQ95)>=2,AVERAGE('2011 Survey responses'!FO95,'2011 Survey responses'!FQ95),\"\")","v":5},{"$f":"IF('2011 Survey responses'!FJ95<0.5,\"\",'2011 Survey responses'!FJ95)","v":2},{"$f":"IF('2011 Survey responses'!FT95<0.5,\"\",'2011 Survey responses'!FT95)","v":3},{"$f":"IF('2011 Survey responses'!FR95<0.5,\"\",'2011 Survey responses'!FR95)","v":5},{"$f":"IF('2011 Survey responses'!FK95<0.5,\"\",'2011 Survey responses'!FK95)","v":4},{"$f":"IF('2011 Survey responses'!FP95<0.5,\"\",'2011 Survey responses'!FP95)","v":5},{"$f":"IF('2011 Survey responses'!FN95<0.5,\"\",'2011 Survey responses'!FN95)","v":5},{"$f":"IF(('2011 Survey responses'!FE95+'2011 Survey responses'!FF95)>=2,AVERAGE('2011 Survey responses'!FE95,'2011 Survey responses'!FF95),\"\")","v":5},{"$f":"IF('2011 Survey responses'!FS95<0.5,\"\",'2011 Survey responses'!FS95)","v":3},{"$f":"IF('2011 Survey responses'!FV95<0.5,\"\",'2011 Survey responses'!FV95)","v":4},{"$f":"IF(('2011 Survey responses'!FG95+'2011 Survey responses'!FH95)>=2,AVERAGE('2011 Survey responses'!FG95,'2011 Survey responses'!FH95),\"\")","v":4},{"$f":"IF('2011 Survey responses'!FI95<0.5,\"\",'2011 Survey responses'!FI95)","v":3},{"$f":"IF('2011 Survey responses'!FE95<0.5,\"\",'2011 Survey responses'!FE95)","v":5},{"$f":"IF('2011 Survey responses'!FF95<0.5,\"\",'2011 Survey responses'!FF95)","v":5},{"$f":"IF('2011 Survey responses'!FG95<0.5,\"\",'2011 Survey responses'!FG95)","v":4},{"$f":"IF('2011 Survey responses'!FH95<0.5,\"\",'2011 Survey responses'!FH95)","v":4},{"$f":"IF('2011 Survey responses'!FL95<0.5,\"\",'2011 Survey responses'!FL95)","v":3},{"$f":"IF('2011 Survey responses'!FM95<0.5,\"\",'2011 Survey responses'!FM95)","v":3},{"$f":"IF('2011 Survey responses'!FO95<0.5,\"\",'2011 Survey responses'!FO95)","v":5},{"$f":"IF('2011 Survey responses'!FQ95<0.5,\"\",'2011 Survey responses'!FQ95)","v":5}]
["Lebanon",{"$f":"IF(SUM(F96)<1,\"\",AVERAGEIF('2011 Survey responses'!B96:CP96,\">1\"))","v":3.3544303797468356},{"$f":"IF(SUM(F96)<1,\"\",AVERAGEIF('2011 Survey responses'!B96:AO96,\">1\"))","v":3.5},{"$f":"IF(SUM(F96)<1,\"\",AVERAGEIF('2011 Survey responses'!B96:BV96,\">1\"))","v":3.225806451612903},{"$f":"IF(SUM(F96)<1,\"\",AVERAGEIF('2011 Survey responses'!V96:BV96,\">1\"))","v":3.215686274509804},{"$f":"IF(SUM('2011 Survey responses'!B96:U96)<1,\"\",(AVERAGEIFS('2011 Survey responses'!B96:U96,'2011 Survey responses'!B96:U96,\">1\")))","v":3.2727272727272729},{"$f":"IF(SUM('2011 Survey responses'!B96:H96)<1,\"\",(AVERAGEIFS('2011 Survey responses'!B96:H96,'2011 Survey responses'!B96:H96,\">1\")))","v":3},{"$f":"IF(SUM('2011 Survey responses'!I96:S96)<1,\"\",(AVERAGEIFS('2011 Survey responses'!I96:S96,'2011 Survey responses'!I96:S96,\">1\")))","v":2.8},{"$f":"IF(SUM('2011 Survey responses'!T96:U96)<2.1,\"\",(AVERAGEIFS('2011 Survey responses'!T96:U96,'2011 Survey responses'!T96:U96,\">1\")))","v":5},{"$f":"IF(SUM('2011 Survey responses'!B96:C96)<2.1,\"\",((SUMIF('2011 Survey responses'!B96:C96,\">1\")+SUMIF('2011 Survey responses'!F96,\">1\"))/(COUNTIF('2011 Survey responses'!B96:C96,\">1\")+COUNTIF('2011 Survey responses'!F96,\">1\"))))","v":3},{"$f":"IF(SUM('2011 Survey responses'!D96:E96)<2.1,\"\",(AVERAGEIFS('2011 Survey responses'!D96:E96,'2011 Survey responses'!D96:E96,\">1\")))","v":4},{"$f":"IF(('2011 Survey responses'!B96+'2011 Survey responses'!D96)<2.1,\"\",((SUMIF('2011 Survey responses'!B96,\">1\")+SUMIF('2011 Survey responses'!D96,\">1\")+SUMIF('2011 Survey responses'!F96,\">1\")+SUMIF('2011 Survey responses'!K96,\">1\"))/(COUNTIF('2011 Survey responses'!B96,\">1\")+COUNTIF('2011 Survey responses'!D96,\">1\")+COUNTIF('2011 Survey responses'!F96,\">1\")+COUNTIF('2011 Survey responses'!K96,\">1\"))))","v":3.3333333333333335},{"$f":"IF(SUM('2011 Survey responses'!G96:H96)<2.1,\"\",(AVERAGEIFS('2011 Survey responses'!G96:H96,'2011 Survey responses'!G96:H96,\">1\")))","v":2},{"$f":"IF(SUM('2011 Survey responses'!F96:G96)<1.5,\"\",MAX('2011 Survey responses'!F96,'2011 Survey responses'!G96))","v":2},{"$f":"IF(SUM('2011 Survey responses'!G96:H96)<1,\"\",MAX('2011 Survey responses'!G96,'2011 Survey responses'!H96))","v":2},{"$f":"IF(SUM('2011 Survey responses'!I96:L96)<4.1,\"\",(AVERAGEIFS('2011 Survey responses'!I96:L96,'2011 Survey responses'!I96:L96,\">1\")))","v":2},{"$f":"IF(SUM('2011 Survey responses'!M96:S96)<4.1,\"\",(AVERAGEIFS('2011 Survey responses'!M96:S96,'2011 Survey responses'!M96:S96,\">1\")))","v":3},{"$f":"IF(SUM('2011 Survey responses'!T96:U96)<2.1,\"\",(AVERAGEIFS('2011 Survey responses'!T96:U96,'2011 Survey responses'!T96:U96,\">1\")))","v":5},{"$f":"IF(SUM('2011 Survey responses'!V96:AO96)<1,\"\",(AVERAGEIFS('2011 Survey responses'!V96:AO96,'2011 Survey responses'!V96:AO96,\">1\")))","v":3.6315789473684212},{"$f":"IF(SUM('2011 Survey responses'!V96:AA96)<1,\"\",(AVERAGEIFS('2011 Survey responses'!V96:AA96,'2011 Survey responses'!V96:AA96,\">1\")))","v":3.8},{"$f":"IF(SUM('2011 Survey responses'!AB96:AH96)<1,\"\",(AVERAGEIFS('2011 Survey responses'!AB96:AH96,'2011 Survey responses'!AB96:AH96,\">1\")))","v":3.1428571428571428},{"$f":"IF(SUM('2011 Survey responses'!AI96:AO96)<1,\"\",(AVERAGEIFS('2011 Survey responses'!AI96:AO96,'2011 Survey responses'!AI96:AO96,\">1\")))","v":4},{"$f":"IF(('2011 Survey responses'!Y96+'2011 Survey responses'!AI96+'2011 Survey responses'!AK96)<3.1,\"\",((SUMIF('2011 Survey responses'!Y96,\">1\")+SUMIF('2011 Survey responses'!AI96,\">1\")+SUMIF('2011 Survey responses'!AK96,\">1\")+SUMIF('2011 Survey responses'!AM96,\">1\"))/(COUNTIF('2011 Survey responses'!Y96,\">1\")+COUNTIF('2011 Survey responses'!AI96,\">1\")+COUNTIF('2011 Survey responses'!AK96,\">1\")+COUNTIF('2011 Survey responses'!AM96,\">1\"))))","v":3.75},{"$f":"IF(('2011 Survey responses'!W96)<1.1,\"\",('2011 Survey responses'!W96))","v":4},{"$f":"IF(('2011 Survey responses'!Y96)<1.1,\"\",('2011 Survey responses'!Y96))","v":3},{"$f":"IF(('2011 Survey responses'!Z96)<1.1,\"\",('2011 Survey responses'!Z96))","v":5},{"$f":"IF(('2011 Survey responses'!V96+'2011 Survey responses'!X96+'2011 Survey responses'!AA96)<3.1,\"\",((SUMIF('2011 Survey responses'!V96,\">1\")+SUMIF('2011 Survey responses'!X96,\">1\")+SUMIF('2011 Survey responses'!AA96,\">1\"))/(COUNTIF('2011 Survey responses'!V96,\">1\")+COUNTIF('2011 Survey responses'!X96,\">1\")+COUNTIF('2011 Survey responses'!AA96,\">1\"))))","v":3.5},{"$f":"IF(('2011 Survey responses'!V96+'2011 Survey responses'!Y96+'2011 Survey responses'!AA96)<3.1,\"\",((SUMIF('2011 Survey responses'!V96,\">1\")+SUMIF('2011 Survey responses'!Y96,\">1\")+SUMIF('2011 Survey responses'!AA96,\">1\"))/(COUNTIF('2011 Survey responses'!V96,\">1\")+COUNTIF('2011 Survey responses'!Y96,\">1\")+COUNTIF('2011 Survey responses'!AA96,\">1\"))))","v":3.3333333333333335},{"$f":"IF(SUM('2011 Survey responses'!AB96:AH96)<1,\"\",(AVERAGEIFS('2011 Survey responses'!AB96:AH96,'2011 Survey responses'!AB96:AH96,\">1\")))","v":3.1428571428571428},{"$f":"IF(SUM('2011 Survey responses'!AI96:AO96)<7.1,\"\",(AVERAGEIFS('2011 Survey responses'!AI96:AO96,'2011 Survey responses'!AI96:AO96,\">1\")))","v":4},{"$f":"IF(('2011 Survey responses'!AH96)<1.1,\"\",('2011 Survey responses'!AH96))","v":4},{"$f":"IF(SUM('2011 Survey responses'!AP96:BV96)<1,\"\",(AVERAGEIFS('2011 Survey responses'!AP96:BV96,'2011 Survey responses'!AP96:BV96,\">1\")))","v":2.96875},{"$f":"IF(SUM('2011 Survey responses'!AP96:AS96)<4.1,\"\",(AVERAGEIFS('2011 Survey responses'!AP96:AS96,'2011 Survey responses'!AP96:AS96,\">1\")))","v":2.6666666666666665},{"$f":"IF(SUM('2011 Survey responses'!AT96:BF96)<1,\"\",(AVERAGEIFS('2011 Survey responses'!AT96:BF96,'2011 Survey responses'!AT96:BF96,\">1\")))","v":2.8461538461538463},{"$f":"IF(SUM('2011 Survey responses'!BG96:BO96)<1,\"\",(AVERAGEIFS('2011 Survey responses'!BG96:BO96,'2011 Survey responses'!BG96:BO96,\">1\")))","v":3.8888888888888888},{"$f":"IF(SUM('2011 Survey responses'!BP96:BS96)<1,\"\",(AVERAGEIFS('2011 Survey responses'!BP96:BS96,'2011 Survey responses'!BP96:BS96,\">1\")))","v":2.25},{"$f":"IF(SUM('2011 Survey responses'!BT96:BV96)<3.1,\"\",(AVERAGEIFS('2011 Survey responses'!BT96:BV96,'2011 Survey responses'!BT96:BV96,\">1\")))","v":2},{"$f":"IF(('2011 Survey responses'!AQ96+'2011 Survey responses'!AR96+'2011 Survey responses'!BG96)<3.1,\"\",((SUMIF('2011 Survey responses'!AQ96,\">1\")+SUMIF('2011 Survey responses'!AR96,\">1\")+SUMIF('2011 Survey responses'!BG96,\">1\"))/(COUNTIF('2011 Survey responses'!AQ96,\">1\")+COUNTIF('2011 Survey responses'!AR96,\">1\")+COUNTIF('2011 Survey responses'!BG96,\">1\"))))","v":2.6666666666666665},{"$f":"IF(SUM('2011 Survey responses'!AP96:AS96)<4.1,\"\",(AVERAGEIFS('2011 Survey responses'!AP96:AS96,'2011 Survey responses'!AP96:AS96,\">1\")))","v":2.6666666666666665},{"$f":"IF(('2011 Survey responses'!AU96+'2011 Survey responses'!AX96+'2011 Survey responses'!BA96+'2011 Survey responses'!BC96+'2011 Survey responses'!BD96)<5.1,\"\",(SUMIF('2011 Survey responses'!AU96,\">1\")+SUMIF('2011 Survey responses'!AX96,\">1\")+SUMIF('2011 Survey responses'!BA96,\">1\")+SUMIF('2011 Survey responses'!BC96,\">1\")+SUMIF('2011 Survey responses'!BD96,\">1\"))/(COUNTIF('2011 Survey responses'!AU96,\">1\")+COUNTIF('2011 Survey responses'!AX96,\">1\")+COUNTIF('2011 Survey responses'!BA96,\">1\")+COUNTIF('2011 Survey responses'!BC96,\">1\")+COUNTIF('2011 Survey responses'!BD96,\">1\")))","v":2.8},{"$f":"IF(('2011 Survey responses'!AT96)<1.1,\"\",('2011 Survey responses'!AT96))","v":3},{"$f":"IF(SUM('2011 Survey responses'!AV96:AW96)<2.1,\"\",(AVERAGEIFS('2011 Survey responses'!AV96:AW96,'2011 Survey responses'!AV96:AW96,\">1\")))","v":2.5},{"$f":"IF(('2011 Survey responses'!AW96+'2011 Survey responses'!AY96)<2.1,\"\",(SUMIF('2011 Survey responses'!AW96,\">1\")+SUMIF('2011 Survey responses'!AY96,\">1\"))/(COUNTIF('2011 Survey responses'!AW96,\">1\")+COUNTIF('2011 Survey responses'!AY96,\">1\")))","v":2},{"$f":"IF(('2011 Survey responses'!AZ96)<1.1,\"\",('2011 Survey responses'!AZ96))","v":2},2,3,3,2,{"$f":"IF(('2011 Survey responses'!BE96)<1.1,\"\",('2011 Survey responses'!BE96))","v":5},{"$f":"IF(('2011 Survey responses'!AY96+'2011 Survey responses'!BB96+'2011 Survey responses'!BF96)<3.1,\"\",(SUMIF('2011 Survey responses'!AY96,\">1\")+SUMIF('2011 Survey responses'!BB96,\">1\")+SUMIF('2011 Survey responses'!BF96,\">1\"))/(COUNTIF('2011 Survey responses'!AY96,\">1\")+COUNTIF('2011 Survey responses'!BB96,\">1\")+COUNTIF('2011 Survey responses'!BF96,\">1\")))","v":2.6666666666666665},3.0694444444444446,{"$f":"IF(SUM('2011 Survey responses'!BT96:BV96)<3.1,\"\",(AVERAGEIFS('2011 Survey responses'!BT96:BV96,'2011 Survey responses'!BT96:BV96,\">1\")))","v":2},{"$f":"IF(SUM('2011 Survey responses'!BW96:CP96)<1,\"\",(AVERAGEIFS('2011 Survey responses'!BW96:CP96,'2011 Survey responses'!BW96:CP96,\">1\")))","v":3.8235294117647061},{"$f":"IF(SUM('2011 Survey responses'!BW96:CF96)<1,\"\",(AVERAGEIFS('2011 Survey responses'!BW96:CF96,'2011 Survey responses'!BW96:CF96,\">1\")))","v":3.625},{"$f":"IF(SUM('2011 Survey responses'!CG96:CP96)<1,\"\",(AVERAGEIFS('2011 Survey responses'!CG96:CP96,'2011 Survey responses'!CG96:CP96,\">1\")))","v":4},{"$f":"IF(SUM('2011 Survey responses'!BX96:CF96)<1,\"\",(AVERAGEIFS('2011 Survey responses'!BX96:CF96,'2011 Survey responses'!BX96:CF96,\">1\")))","v":3.7142857142857144},{"$f":"IF(SUM('2011 Survey responses'!CH96:CP96)<1,\"\",(AVERAGEIFS('2011 Survey responses'!CH96:CP96,'2011 Survey responses'!CH96:CP96,\">1\")))","v":4},{"$f":"IF(SUM('2011 Survey responses'!BW96:CP96)<1,\"\",(AVERAGEIFS('2011 Survey responses'!BW96:CP96,'2011 Survey responses'!BW96:CP96,\">1\")))","v":3.8235294117647061},{"$f":"IF(('2011 Survey responses'!BW96+'2011 Survey responses'!CG96)<2.1,\"\",(SUMIF('2011 Survey responses'!BW96,\">1\")+SUMIF('2011 Survey responses'!CG96,\">1\"))/(COUNTIF('2011 Survey responses'!BW96,\">1\")+COUNTIF('2011 Survey responses'!CG96,\">1\")))","v":3.5},{"$f":"IF(('2011 Survey responses'!BX96+'2011 Survey responses'!CH96)<2.1,\"\",(SUMIF('2011 Survey responses'!BX96,\">1\")+SUMIF('2011 Survey responses'!CH96,\">1\"))/(COUNTIF('2011 Survey responses'!BX96,\">1\")+COUNTIF('2011 Survey responses'!CH96,\">1\")))","v":3.5},{"$f":"IF(('2011 Survey responses'!BY96+'2011 Survey responses'!CI96)<2.1,\"\",(SUMIF('2011 Survey responses'!BY96,\">1\")+SUMIF('2011 Survey responses'!CI96,\">1\"))/(COUNTIF('2011 Survey responses'!BY96,\">1\")+COUNTIF('2011 Survey responses'!CI96,\">1\")))","v":3},{"$f":"IF('2011 Survey responses'!CQ96<0.5,\"\",'2011 Survey responses'!CQ96)","v":4},{"$f":"IF('2011 Survey responses'!CR96<0.5,\"\",'2011 Survey responses'!CR96)","v":5},{"$f":"IF('2011 Survey responses'!CS96<0.5,\"\",'2011 Survey responses'!CS96)","v":3},{"$f":"IF('2011 Survey responses'!CT96<0.5,\"\",'2011 Survey responses'!CT96)","v":3},{"$f":"IF('2011 Survey responses'!CU96<0.5,\"\",'2011 Survey responses'!CU96)","v":1},{"$f":"IF('2011 Survey responses'!CV96<0.5,\"\",'2011 Survey responses'!CV96)","v":1},{"$f":"IF(SUM('2011 Survey responses'!CW96:DL96)<1,\"\",(AVERAGE('2011 Survey responses'!CW96:DL96)))","v":2.5},{"$f":"IF(SUM('2011 Survey responses'!CW96:CZ96)<1,\"\",(AVERAGE('2011 Survey responses'!CW96:CZ96)))","v":2.5},{"$f":"IF(SUM('2011 Survey responses'!DA96:DD96)<1,\"\",(AVERAGE('2011 Survey responses'!DA96:DD96)))","v":2.5},{"$f":"IF(SUM('2011 Survey responses'!DE96:DH96)<1,\"\",(AVERAGE('2011 Survey responses'!DE96:DH96)))","v":2.5},{"$f":"IF(SUM('2011 Survey responses'!DI96:DL96)<1,\"\",(AVERAGE('2011 Survey responses'!DI96:DL96)))","v":2.5},{"$f":"IF(('2011 Survey responses'!CW96+'2011 Survey responses'!DA96+'2011 Survey responses'!DE96+'2011 Survey responses'!DI96)<1,\"\",AVERAGE('2011 Survey responses'!CW96,'2011 Survey responses'!DA96,'2011 Survey responses'!DE96,'2011 Survey responses'!DI96))","v":3},{"$f":"IF(('2011 Survey responses'!CX96+'2011 Survey responses'!DB96+'2011 Survey responses'!DF96+'2011 Survey responses'!DJ96)<1,\"\",AVERAGE('2011 Survey responses'!CX96,'2011 Survey responses'!DB96,'2011 Survey responses'!DF96,'2011 Survey responses'!DJ96))","v":3},{"$f":"IF(('2011 Survey responses'!CY96+'2011 Survey responses'!DC96+'2011 Survey responses'!DG96+'2011 Survey responses'!DK96)<1,\"\",AVERAGE('2011 Survey responses'!CY96,'2011 Survey responses'!DC96,'2011 Survey responses'!DG96,'2011 Survey responses'!DK96))","v":1},{"$f":"IF(('2011 Survey responses'!CZ96+'2011 Survey responses'!DD96+'2011 Survey responses'!DH96+'2011 Survey responses'!DL96)<1,\"\",AVERAGE('2011 Survey responses'!CZ96,'2011 Survey responses'!DD96,'2011 Survey responses'!DH96,'2011 Survey responses'!DL96))","v":3},{"$f":"IF('2011 Survey responses'!CW96<0.5,\"\",'2011 Survey responses'!CW96)","v":3},{"$f":"IF('2011 Survey responses'!CX96<0.5,\"\",'2011 Survey responses'!CX96)","v":3},{"$f":"IF('2011 Survey responses'!CY96<0.5,\"\",'2011 Survey responses'!CY96)","v":1},{"$f":"IF('2011 Survey responses'!CZ96<0.5,\"\",'2011 Survey responses'!CZ96)","v":3},{"$f":"IF('2011 Survey responses'!DA96<0.5,\"\",'2011 Survey responses'!DA96)","v":3},{"$f":"IF('2011 Survey responses'!DB96<0.5,\"\",'2011 Survey responses'!DB96)","v":3},{"$f":"IF('2011 Survey responses'!DC96<0.5,\"\",'2011 Survey responses'!DC96)","v":1},{"$f":"IF('2011 Survey responses'!DD96<0.5,\"\",'2011 Survey responses'!DD96)","v":3},{"$f":"IF('2011 Survey responses'!DE96<0.5,\"\",'2011 Survey responses'!DE96)","v":3},{"$f":"IF('2011 Survey responses'!DF96<0.5,\"\",'2011 Survey responses'!DF96)","v":3},{"$f":"IF('2011 Survey responses'!DG96<0.5,\"\",'2011 Survey responses'!DG96)","v":1},{"$f":"IF('2011 Survey responses'!DH96<0.5,\"\",'2011 Survey responses'!DH96)","v":3},{"$f":"IF('2011 Survey responses'!DI96<0.5,\"\",'2011 Survey responses'!DI96)","v":3},{"$f":"IF('2011 Survey responses'!DJ96<0.5,\"\",'2011 Survey responses'!DJ96)","v":3},{"$f":"IF('2011 Survey responses'!DK96<0.5,\"\",'2011 Survey responses'!DK96)","v":1},{"$f":"IF('2011 Survey responses'!DL96<0.5,\"\",'2011 Survey responses'!DL96)","v":3},{"$f":"IF('2011 Survey responses'!DU96=4,4,IF('2011 Survey responses'!DU96=5,4,\"\"))","v":""},{"$f":"IF('2011 Survey responses'!DV96=4,3,IF('2011 Survey responses'!DV96=5,3,\"\"))","v":3},"",{"$f":"IF(CQ96=2,CQ96,IF(CO96=4,CO96,IF(CP96=3,CP96,IF('2011 Survey responses'!GT96=1,1,\"\"))))","v":3},{"$f":"IF('2011 Survey responses'!DO96<0.5,\"\",'2011 Survey responses'!DO96)","v":4},{"$f":"IF('2011 Survey responses'!DP96<0.5,\"\",'2011 Survey responses'!DP96)","v":5},{"$f":"IF('2011 Survey responses'!DQ96<0.5,\"\",'2011 Survey responses'!DQ96)","v":3},{"$f":"IF('2011 Survey responses'!DR96<0.5,\"\",'2011 Survey responses'!DR96)","v":5},{"$f":"IF('2011 Survey responses'!DS96<0.5,\"\",'2011 Survey responses'!DS96)","v":3},{"$f":"IF('2011 Survey responses'!DT96<0.5,\"\",'2011 Survey responses'!DT96)","v":5},{"$f":"IF('2011 Survey responses'!DU96<0.5,\"\",'2011 Survey responses'!DU96)","v":3},{"$f":"IF('2011 Survey responses'!DV96<0.5,\"\",'2011 Survey responses'!DV96)","v":4},{"$f":"IF('2011 Survey responses'!DW96<0.5,\"\",'2011 Survey responses'!DW96)","v":4},{"$f":"IF('2011 Survey responses'!DX96<0.5,\"\",'2011 Survey responses'!DX96)","v":4},{"$f":"IF('2011 Survey responses'!DY96<0.5,\"\",'2011 Survey responses'!DY96)","v":4},{"$f":"IF('2011 Survey responses'!DZ96<0.5,\"\",'2011 Survey responses'!DZ96)","v":4},{"$f":"IF('2011 Survey responses'!EA96<0.5,\"\",'2011 Survey responses'!EA96)","v":4},{"$f":"IF('2011 Survey responses'!EB96<0.5,\"\",'2011 Survey responses'!EB96)","v":5},{"$f":"IF('2011 Survey responses'!EC96<0.5,\"\",'2011 Survey responses'!EC96)","v":3},{"$f":"IF('2011 Survey responses'!ED96<0.5,\"\",'2011 Survey responses'!ED96)","v":5},{"$f":"IF('2011 Survey responses'!EE96<0.5,\"\",'2011 Survey responses'!EE96)","v":4},{"$f":"IF('2011 Survey responses'!EF96<0.5,\"\",'2011 Survey responses'!EF96)","v":5},{"$f":"IF('2011 Survey responses'!EG96<0.5,\"\",'2011 Survey responses'!EG96)","v":4},{"$f":"IF('2011 Survey responses'!EH96<0.5,\"\",'2011 Survey responses'!EH96)","v":5},{"$f":"IF('2011 Survey responses'!EI96<0.5,\"\",'2011 Survey responses'!EI96)","v":5},{"$f":"IF('2011 Survey responses'!EJ96<0.5,\"\",'2011 Survey responses'!EJ96)","v":5},{"$f":"IF('2011 Survey responses'!EK96<0.5,\"\",'2011 Survey responses'!EK96)","v":5},{"$f":"IF('2011 Survey responses'!EL96<0.5,\"\",'2011 Survey responses'!EL96)","v":5},{"$f":"IF('2011 Survey responses'!EM96<0.5,\"\",'2011 Survey responses'!EM96)","v":4},{"$f":"IF('2011 Survey responses'!EN96<0.5,\"\",'2011 Survey responses'!EN96)","v":4},{"$f":"IF('2011 Survey responses'!EO96<0.5,\"\",'2011 Survey responses'!EO96)","v":4},{"$f":"IF('2011 Survey responses'!EP96<0.5,\"\",'2011 Survey responses'!EP96)","v":4},{"$f":"IF(('2011 Survey responses'!EW96+'2011 Survey responses'!EX96)>=2,AVERAGE('2011 Survey responses'!EW96,'2011 Survey responses'!EY96),\"\")","v":4},{"$f":"IF('2011 Survey responses'!EX96<0.5,\"\",'2011 Survey responses'!EX96)","v":4},{"$f":"IF('2011 Survey responses'!EZ96<0.5,\"\",'2011 Survey responses'!EZ96)","v":5},{"$f":"IF('2011 Survey responses'!FB96<0.5,\"\",'2011 Survey responses'!FB96)","v":4},{"$f":"IF('2011 Survey responses'!FD96<0.5,\"\",'2011 Survey responses'!FD96)","v":4},{"$f":"IF('2011 Survey responses'!FC96<0.5,\"\",'2011 Survey responses'!FC96)","v":4},{"$f":"IF(('2011 Survey responses'!EM96+'2011 Survey responses'!EN96)>=2,AVERAGE('2011 Survey responses'!EM96,'2011 Survey responses'!EN96),\"\")","v":4},{"$f":"IF('2011 Survey responses'!ES96<0.5,\"\",'2011 Survey responses'!ES96)","v":4},{"$f":"IF(('2011 Survey responses'!ET96+'2011 Survey responses'!EU96)>=2,AVERAGE('2011 Survey responses'!ET96,'2011 Survey responses'!EU96),\"\")","v":4},{"$f":"IF('2011 Survey responses'!EV96<0.5,\"\",'2011 Survey responses'!EV96)","v":4},{"$f":"IF('2011 Survey responses'!FA96<0.5,\"\",'2011 Survey responses'!FA96)","v":4},{"$f":"IF('2011 Survey responses'!ER96<0.5,\"\",'2011 Survey responses'!ER96)","v":3},{"$f":"IF(('2011 Survey responses'!EO96+'2011 Survey responses'!EP96)>=2,AVERAGE('2011 Survey responses'!EO96,'2011 Survey responses'!EP96),\"\")","v":4},{"$f":"IF('2011 Survey responses'!EQ96<0.5,\"\",'2011 Survey responses'!EQ96)","v":4},{"$f":"IF('2011 Survey responses'!ET96<0.5,\"\",'2011 Survey responses'!ET96)","v":4},{"$f":"IF('2011 Survey responses'!EU96<0.5,\"\",'2011 Survey responses'!EU96)","v":4},{"$f":"IF('2011 Survey responses'!EW96<0.5,\"\",'2011 Survey responses'!EW96)","v":4},{"$f":"IF('2011 Survey responses'!EY96<0.5,\"\",'2011 Survey responses'!EY96)","v":4},{"$f":"IF('2011 Survey responses'!FU96<0.5,\"\",'2011 Survey responses'!FU96)","v":4},{"$f":"IF(('2011 Survey responses'!FL96+'2011 Survey responses'!FM96)>=2,AVERAGE('2011 Survey responses'!FL96,'2011 Survey responses'!FM96),\"\")","v":4},{"$f":"IF(('2011 Survey responses'!FO96+'2011 Survey responses'!FQ96)>=2,AVERAGE('2011 Survey responses'!FO96,'2011 Survey responses'!FQ96),\"\")","v":3.5},{"$f":"IF('2011 Survey responses'!FJ96<0.5,\"\",'2011 Survey responses'!FJ96)","v":4},{"$f":"IF('2011 Survey responses'!FT96<0.5,\"\",'2011 Survey responses'!FT96)","v":3},{"$f":"IF('2011 Survey responses'!FR96<0.5,\"\",'2011 Survey responses'!FR96)","v":4},{"$f":"IF('2011 Survey responses'!FK96<0.5,\"\",'2011 Survey responses'!FK96)","v":4},{"$f":"IF('2011 Survey responses'!FP96<0.5,\"\",'2011 Survey responses'!FP96)","v":3},{"$f":"IF('2011 Survey responses'!FN96<0.5,\"\",'2011 Survey responses'!FN96)","v":4},{"$f":"IF(('2011 Survey responses'!FE96+'2011 Survey responses'!FF96)>=2,AVERAGE('2011 Survey responses'!FE96,'2011 Survey responses'!FF96),\"\")","v":3},{"$f":"IF('2011 Survey responses'!FS96<0.5,\"\",'2011 Survey responses'!FS96)","v":3},{"$f":"IF('2011 Survey responses'!FV96<0.5,\"\",'2011 Survey responses'!FV96)","v":3},{"$f":"IF(('2011 Survey responses'!FG96+'2011 Survey responses'!FH96)>=2,AVERAGE('2011 Survey responses'!FG96,'2011 Survey responses'!FH96),\"\")","v":4},{"$f":"IF('2011 Survey responses'!FI96<0.5,\"\",'2011 Survey responses'!FI96)","v":4},{"$f":"IF('2011 Survey responses'!FE96<0.5,\"\",'2011 Survey responses'!FE96)","v":3},{"$f":"IF('2011 Survey responses'!FF96<0.5,\"\",'2011 Survey responses'!FF96)","v":3},{"$f":"IF('2011 Survey responses'!FG96<0.5,\"\",'2011 Survey responses'!FG96)","v":5},{"$f":"IF('2011 Survey responses'!FH96<0.5,\"\",'2011 Survey responses'!FH96)","v":3},{"$f":"IF('2011 Survey responses'!FL96<0.5,\"\",'2011 Survey responses'!FL96)","v":4},{"$f":"IF('2011 Survey responses'!FM96<0.5,\"\",'2011 Survey responses'!FM96)","v":4},{"$f":"IF('2011 Survey responses'!FO96<0.5,\"\",'2011 Survey responses'!FO96)","v":4},{"$f":"IF('2011 Survey responses'!FQ96<0.5,\"\",'2011 Survey responses'!FQ96)","v":3}]
["Lesotho",{"$f":"IF(SUM(F97)<1,\"\",AVERAGEIF('2011 Survey responses'!B97:CP97,\">1\"))","v":3.6164383561643834},{"$f":"IF(SUM(F97)<1,\"\",AVERAGEIF('2011 Survey responses'!B97:AO97,\">1\"))","v":3.4666666666666668},{"$f":"IF(SUM(F97)<1,\"\",AVERAGEIF('2011 Survey responses'!B97:BV97,\">1\"))","v":3.5636363636363635},{"$f":"IF(SUM(F97)<1,\"\",AVERAGEIF('2011 Survey responses'!V97:BV97,\">1\"))","v":3.7560975609756095},{"$f":"IF(SUM('2011 Survey responses'!B97:U97)<1,\"\",(AVERAGEIFS('2011 Survey responses'!B97:U97,'2011 Survey responses'!B97:U97,\">1\")))","v":3},{"$f":"IF(SUM('2011 Survey responses'!B97:H97)<1,\"\",(AVERAGEIFS('2011 Survey responses'!B97:H97,'2011 Survey responses'!B97:H97,\">1\")))","v":3.3333333333333335},{"$f":"IF(SUM('2011 Survey responses'!I97:S97)<1,\"\",(AVERAGEIFS('2011 Survey responses'!I97:S97,'2011 Survey responses'!I97:S97,\">1\")))","v":2.4444444444444446},{"$f":"IF(SUM('2011 Survey responses'!T97:U97)<2.1,\"\",(AVERAGEIFS('2011 Survey responses'!T97:U97,'2011 Survey responses'!T97:U97,\">1\")))","v":5},{"$f":"IF(SUM('2011 Survey responses'!B97:C97)<2.1,\"\",((SUMIF('2011 Survey responses'!B97:C97,\">1\")+SUMIF('2011 Survey responses'!F97,\">1\"))/(COUNTIF('2011 Survey responses'!B97:C97,\">1\")+COUNTIF('2011 Survey responses'!F97,\">1\"))))","v":3},{"$f":"IF(SUM('2011 Survey responses'!D97:E97)<2.1,\"\",(AVERAGEIFS('2011 Survey responses'!D97:E97,'2011 Survey responses'!D97:E97,\">1\")))","v":4},{"$f":"IF(('2011 Survey responses'!B97+'2011 Survey responses'!D97)<2.1,\"\",((SUMIF('2011 Survey responses'!B97,\">1\")+SUMIF('2011 Survey responses'!D97,\">1\")+SUMIF('2011 Survey responses'!F97,\">1\")+SUMIF('2011 Survey responses'!K97,\">1\"))/(COUNTIF('2011 Survey responses'!B97,\">1\")+COUNTIF('2011 Survey responses'!D97,\">1\")+COUNTIF('2011 Survey responses'!F97,\">1\")+COUNTIF('2011 Survey responses'!K97,\">1\"))))","v":3},{"$f":"IF(SUM('2011 Survey responses'!G97:H97)<2.1,\"\",(AVERAGEIFS('2011 Survey responses'!G97:H97,'2011 Survey responses'!G97:H97,\">1\")))","v":""},{"$f":"IF(SUM('2011 Survey responses'!F97:G97)<1.5,\"\",MAX('2011 Survey responses'!F97,'2011 Survey responses'!G97))","v":2},{"$f":"IF(SUM('2011 Survey responses'!G97:H97)<1,\"\",MAX('2011 Survey responses'!G97,'2011 Survey responses'!H97))","v":1},{"$f":"IF(SUM('2011 Survey responses'!I97:L97)<4.1,\"\",(AVERAGEIFS('2011 Survey responses'!I97:L97,'2011 Survey responses'!I97:L97,\">1\")))","v":2.6666666666666665},{"$f":"IF(SUM('2011 Survey responses'!M97:S97)<4.1,\"\",(AVERAGEIFS('2011 Survey responses'!M97:S97,'2011 Survey responses'!M97:S97,\">1\")))","v":2.3333333333333335},{"$f":"IF(SUM('2011 Survey responses'!T97:U97)<2.1,\"\",(AVERAGEIFS('2011 Survey responses'!T97:U97,'2011 Survey responses'!T97:U97,\">1\")))","v":5},{"$f":"IF(SUM('2011 Survey responses'!V97:AO97)<1,\"\",(AVERAGEIFS('2011 Survey responses'!V97:AO97,'2011 Survey responses'!V97:AO97,\">1\")))","v":3.875},{"$f":"IF(SUM('2011 Survey responses'!V97:AA97)<1,\"\",(AVERAGEIFS('2011 Survey responses'!V97:AA97,'2011 Survey responses'!V97:AA97,\">1\")))","v":4.5999999999999996},{"$f":"IF(SUM('2011 Survey responses'!AB97:AH97)<1,\"\",(AVERAGEIFS('2011 Survey responses'!AB97:AH97,'2011 Survey responses'!AB97:AH97,\">1\")))","v":3.2857142857142856},{"$f":"IF(SUM('2011 Survey responses'!AI97:AO97)<1,\"\",(AVERAGEIFS('2011 Survey responses'!AI97:AO97,'2011 Survey responses'!AI97:AO97,\">1\")))","v":4},{"$f":"IF(('2011 Survey responses'!Y97+'2011 Survey responses'!AI97+'2011 Survey responses'!AK97)<3.1,\"\",((SUMIF('2011 Survey responses'!Y97,\">1\")+SUMIF('2011 Survey responses'!AI97,\">1\")+SUMIF('2011 Survey responses'!AK97,\">1\")+SUMIF('2011 Survey responses'!AM97,\">1\"))/(COUNTIF('2011 Survey responses'!Y97,\">1\")+COUNTIF('2011 Survey responses'!AI97,\">1\")+COUNTIF('2011 Survey responses'!AK97,\">1\")+COUNTIF('2011 Survey responses'!AM97,\">1\"))))","v":4},{"$f":"IF(('2011 Survey responses'!W97)<1.1,\"\",('2011 Survey responses'!W97))","v":6},{"$f":"IF(('2011 Survey responses'!Y97)<1.1,\"\",('2011 Survey responses'!Y97))","v":""},{"$f":"IF(('2011 Survey responses'!Z97)<1.1,\"\",('2011 Survey responses'!Z97))","v":6},{"$f":"IF(('2011 Survey responses'!V97+'2011 Survey responses'!X97+'2011 Survey responses'!AA97)<3.1,\"\",((SUMIF('2011 Survey responses'!V97,\">1\")+SUMIF('2011 Survey responses'!X97,\">1\")+SUMIF('2011 Survey responses'!AA97,\">1\"))/(COUNTIF('2011 Survey responses'!V97,\">1\")+COUNTIF('2011 Survey responses'!X97,\">1\")+COUNTIF('2011 Survey responses'!AA97,\">1\"))))","v":3.6666666666666665},{"$f":"IF(('2011 Survey responses'!V97+'2011 Survey responses'!Y97+'2011 Survey responses'!AA97)<3.1,\"\",((SUMIF('2011 Survey responses'!V97,\">1\")+SUMIF('2011 Survey responses'!Y97,\">1\")+SUMIF('2011 Survey responses'!AA97,\">1\"))/(COUNTIF('2011 Survey responses'!V97,\">1\")+COUNTIF('2011 Survey responses'!Y97,\">1\")+COUNTIF('2011 Survey responses'!AA97,\">1\"))))","v":3},{"$f":"IF(SUM('2011 Survey responses'!AB97:AH97)<1,\"\",(AVERAGEIFS('2011 Survey responses'!AB97:AH97,'2011 Survey responses'!AB97:AH97,\">1\")))","v":3.2857142857142856},{"$f":"IF(SUM('2011 Survey responses'!AI97:AO97)<7.1,\"\",(AVERAGEIFS('2011 Survey responses'!AI97:AO97,'2011 Survey responses'!AI97:AO97,\">1\")))","v":4},{"$f":"IF(('2011 Survey responses'!AH97)<1.1,\"\",('2011 Survey responses'!AH97))","v":3},{"$f":"IF(SUM('2011 Survey responses'!AP97:BV97)<1,\"\",(AVERAGEIFS('2011 Survey responses'!AP97:BV97,'2011 Survey responses'!AP97:BV97,\">1\")))","v":3.68},{"$f":"IF(SUM('2011 Survey responses'!AP97:AS97)<4.1,\"\",(AVERAGEIFS('2011 Survey responses'!AP97:AS97,'2011 Survey responses'!AP97:AS97,\">1\")))","v":3},{"$f":"IF(SUM('2011 Survey responses'!AT97:BF97)<1,\"\",(AVERAGEIFS('2011 Survey responses'!AT97:BF97,'2011 Survey responses'!AT97:BF97,\">1\")))","v":3.5},{"$f":"IF(SUM('2011 Survey responses'!BG97:BO97)<1,\"\",(AVERAGEIFS('2011 Survey responses'!BG97:BO97,'2011 Survey responses'!BG97:BO97,\">1\")))","v":4},{"$f":"IF(SUM('2011 Survey responses'!BP97:BS97)<1,\"\",(AVERAGEIFS('2011 Survey responses'!BP97:BS97,'2011 Survey responses'!BP97:BS97,\">1\")))","v":3.6666666666666665},{"$f":"IF(SUM('2011 Survey responses'!BT97:BV97)<3.1,\"\",(AVERAGEIFS('2011 Survey responses'!BT97:BV97,'2011 Survey responses'!BT97:BV97,\">1\")))","v":4},{"$f":"IF(('2011 Survey responses'!AQ97+'2011 Survey responses'!AR97+'2011 Survey responses'!BG97)<3.1,\"\",((SUMIF('2011 Survey responses'!AQ97,\">1\")+SUMIF('2011 Survey responses'!AR97,\">1\")+SUMIF('2011 Survey responses'!BG97,\">1\"))/(COUNTIF('2011 Survey responses'!AQ97,\">1\")+COUNTIF('2011 Survey responses'!AR97,\">1\")+COUNTIF('2011 Survey responses'!BG97,\">1\"))))","v":3},{"$f":"IF(SUM('2011 Survey responses'!AP97:AS97)<4.1,\"\",(AVERAGEIFS('2011 Survey responses'!AP97:AS97,'2011 Survey responses'!AP97:AS97,\">1\")))","v":3},{"$f":"IF(('2011 Survey responses'!AU97+'2011 Survey responses'!AX97+'2011 Survey responses'!BA97+'2011 Survey responses'!BC97+'2011 Survey responses'!BD97)<5.1,\"\",(SUMIF('2011 Survey responses'!AU97,\">1\")+SUMIF('2011 Survey responses'!AX97,\">1\")+SUMIF('2011 Survey responses'!BA97,\">1\")+SUMIF('2011 Survey responses'!BC97,\">1\")+SUMIF('2011 Survey responses'!BD97,\">1\"))/(COUNTIF('2011 Survey responses'!AU97,\">1\")+COUNTIF('2011 Survey responses'!AX97,\">1\")+COUNTIF('2011 Survey responses'!BA97,\">1\")+COUNTIF('2011 Survey responses'!BC97,\">1\")+COUNTIF('2011 Survey responses'!BD97,\">1\")))","v":2.6666666666666665},{"$f":"IF(('2011 Survey responses'!AT97)<1.1,\"\",('2011 Survey responses'!AT97))","v":4},{"$f":"IF(SUM('2011 Survey responses'!AV97:AW97)<2.1,\"\",(AVERAGEIFS('2011 Survey responses'!AV97:AW97,'2011 Survey responses'!AV97:AW97,\">1\")))","v":2},{"$f":"IF(('2011 Survey responses'!AW97+'2011 Survey responses'!AY97)<2.1,\"\",(SUMIF('2011 Survey responses'!AW97,\">1\")+SUMIF('2011 Survey responses'!AY97,\">1\"))/(COUNTIF('2011 Survey responses'!AW97,\">1\")+COUNTIF('2011 Survey responses'!AY97,\">1\")))","v":6},{"$f":"IF(('2011 Survey responses'!AZ97)<1.1,\"\",('2011 Survey responses'!AZ97))","v":2},2,1,2,1,{"$f":"IF(('2011 Survey responses'!BE97)<1.1,\"\",('2011 Survey responses'!BE97))","v":5},{"$f":"IF(('2011 Survey responses'!AY97+'2011 Survey responses'!BB97+'2011 Survey responses'!BF97)<3.1,\"\",(SUMIF('2011 Survey responses'!AY97,\">1\")+SUMIF('2011 Survey responses'!BB97,\">1\")+SUMIF('2011 Survey responses'!BF97,\">1\"))/(COUNTIF('2011 Survey responses'!AY97,\">1\")+COUNTIF('2011 Survey responses'!BB97,\">1\")+COUNTIF('2011 Survey responses'!BF97,\">1\")))","v":4.666666666666667},3.833333333333333,{"$f":"IF(SUM('2011 Survey responses'!BT97:BV97)<3.1,\"\",(AVERAGEIFS('2011 Survey responses'!BT97:BV97,'2011 Survey responses'!BT97:BV97,\">1\")))","v":4},{"$f":"IF(SUM('2011 Survey responses'!BW97:CP97)<1,\"\",(AVERAGEIFS('2011 Survey responses'!BW97:CP97,'2011 Survey responses'!BW97:CP97,\">1\")))","v":3.7777777777777777},{"$f":"IF(SUM('2011 Survey responses'!BW97:CF97)<1,\"\",(AVERAGEIFS('2011 Survey responses'!BW97:CF97,'2011 Survey responses'!BW97:CF97,\">1\")))","v":3.7777777777777777},{"$f":"IF(SUM('2011 Survey responses'!CG97:CP97)<1,\"\",(AVERAGEIFS('2011 Survey responses'!CG97:CP97,'2011 Survey responses'!CG97:CP97,\">1\")))","v":3.7777777777777777},{"$f":"IF(SUM('2011 Survey responses'!BX97:CF97)<1,\"\",(AVERAGEIFS('2011 Survey responses'!BX97:CF97,'2011 Survey responses'!BX97:CF97,\">1\")))","v":4},{"$f":"IF(SUM('2011 Survey responses'!CH97:CP97)<1,\"\",(AVERAGEIFS('2011 Survey responses'!CH97:CP97,'2011 Survey responses'!CH97:CP97,\">1\")))","v":4},{"$f":"IF(SUM('2011 Survey responses'!BW97:CP97)<1,\"\",(AVERAGEIFS('2011 Survey responses'!BW97:CP97,'2011 Survey responses'!BW97:CP97,\">1\")))","v":3.7777777777777777},{"$f":"IF(('2011 Survey responses'!BW97+'2011 Survey responses'!CG97)<2.1,\"\",(SUMIF('2011 Survey responses'!BW97,\">1\")+SUMIF('2011 Survey responses'!CG97,\">1\"))/(COUNTIF('2011 Survey responses'!BW97,\">1\")+COUNTIF('2011 Survey responses'!CG97,\">1\")))","v":2},{"$f":"IF(('2011 Survey responses'!BX97+'2011 Survey responses'!CH97)<2.1,\"\",(SUMIF('2011 Survey responses'!BX97,\">1\")+SUMIF('2011 Survey responses'!CH97,\">1\"))/(COUNTIF('2011 Survey responses'!BX97,\">1\")+COUNTIF('2011 Survey responses'!CH97,\">1\")))","v":2},{"$f":"IF(('2011 Survey responses'!BY97+'2011 Survey responses'!CI97)<2.1,\"\",(SUMIF('2011 Survey responses'!BY97,\">1\")+SUMIF('2011 Survey responses'!CI97,\">1\"))/(COUNTIF('2011 Survey responses'!BY97,\">1\")+COUNTIF('2011 Survey responses'!CI97,\">1\")))","v":5},{"$f":"IF('2011 Survey responses'!CQ97<0.5,\"\",'2011 Survey responses'!CQ97)","v":4},{"$f":"IF('2011 Survey responses'!CR97<0.5,\"\",'2011 Survey responses'!CR97)","v":5},{"$f":"IF('2011 Survey responses'!CS97<0.5,\"\",'2011 Survey responses'!CS97)","v":4},{"$f":"IF('2011 Survey responses'!CT97<0.5,\"\",'2011 Survey responses'!CT97)","v":3},{"$f":"IF('2011 Survey responses'!CU97<0.5,\"\",'2011 Survey responses'!CU97)","v":1},{"$f":"IF('2011 Survey responses'!CV97<0.5,\"\",'2011 Survey responses'!CV97)","v":5},{"$f":"IF(SUM('2011 Survey responses'!CW97:DL97)<1,\"\",(AVERAGE('2011 Survey responses'!CW97:DL97)))","v":3.0625},{"$f":"IF(SUM('2011 Survey responses'!CW97:CZ97)<1,\"\",(AVERAGE('2011 Survey responses'!CW97:CZ97)))","v":3.5},{"$f":"IF(SUM('2011 Survey responses'!DA97:DD97)<1,\"\",(AVERAGE('2011 Survey responses'!DA97:DD97)))","v":3},{"$f":"IF(SUM('2011 Survey responses'!DE97:DH97)<1,\"\",(AVERAGE('2011 Survey responses'!DE97:DH97)))","v":2},{"$f":"IF(SUM('2011 Survey responses'!DI97:DL97)<1,\"\",(AVERAGE('2011 Survey responses'!DI97:DL97)))","v":3.75},{"$f":"IF(('2011 Survey responses'!CW97+'2011 Survey responses'!DA97+'2011 Survey responses'!DE97+'2011 Survey responses'!DI97)<1,\"\",AVERAGE('2011 Survey responses'!CW97,'2011 Survey responses'!DA97,'2011 Survey responses'!DE97,'2011 Survey responses'!DI97))","v":3.25},{"$f":"IF(('2011 Survey responses'!CX97+'2011 Survey responses'!DB97+'2011 Survey responses'!DF97+'2011 Survey responses'!DJ97)<1,\"\",AVERAGE('2011 Survey responses'!CX97,'2011 Survey responses'!DB97,'2011 Survey responses'!DF97,'2011 Survey responses'!DJ97))","v":3},{"$f":"IF(('2011 Survey responses'!CY97+'2011 Survey responses'!DC97+'2011 Survey responses'!DG97+'2011 Survey responses'!DK97)<1,\"\",AVERAGE('2011 Survey responses'!CY97,'2011 Survey responses'!DC97,'2011 Survey responses'!DG97,'2011 Survey responses'!DK97))","v":2.75},{"$f":"IF(('2011 Survey responses'!CZ97+'2011 Survey responses'!DD97+'2011 Survey responses'!DH97+'2011 Survey responses'!DL97)<1,\"\",AVERAGE('2011 Survey responses'!CZ97,'2011 Survey responses'!DD97,'2011 Survey responses'!DH97,'2011 Survey responses'!DL97))","v":3.25},{"$f":"IF('2011 Survey responses'!CW97<0.5,\"\",'2011 Survey responses'!CW97)","v":4},{"$f":"IF('2011 Survey responses'!CX97<0.5,\"\",'2011 Survey responses'!CX97)","v":3},{"$f":"IF('2011 Survey responses'!CY97<0.5,\"\",'2011 Survey responses'!CY97)","v":3},{"$f":"IF('2011 Survey responses'!CZ97<0.5,\"\",'2011 Survey responses'!CZ97)","v":4},{"$f":"IF('2011 Survey responses'!DA97<0.5,\"\",'2011 Survey responses'!DA97)","v":3},{"$f":"IF('2011 Survey responses'!DB97<0.5,\"\",'2011 Survey responses'!DB97)","v":3},{"$f":"IF('2011 Survey responses'!DC97<0.5,\"\",'2011 Survey responses'!DC97)","v":3},{"$f":"IF('2011 Survey responses'!DD97<0.5,\"\",'2011 Survey responses'!DD97)","v":3},{"$f":"IF('2011 Survey responses'!DE97<0.5,\"\",'2011 Survey responses'!DE97)","v":2},{"$f":"IF('2011 Survey responses'!DF97<0.5,\"\",'2011 Survey responses'!DF97)","v":2},{"$f":"IF('2011 Survey responses'!DG97<0.5,\"\",'2011 Survey responses'!DG97)","v":2},{"$f":"IF('2011 Survey responses'!DH97<0.5,\"\",'2011 Survey responses'!DH97)","v":2},{"$f":"IF('2011 Survey responses'!DI97<0.5,\"\",'2011 Survey responses'!DI97)","v":4},{"$f":"IF('2011 Survey responses'!DJ97<0.5,\"\",'2011 Survey responses'!DJ97)","v":4},{"$f":"IF('2011 Survey responses'!DK97<0.5,\"\",'2011 Survey responses'!DK97)","v":3},{"$f":"IF('2011 Survey responses'!DL97<0.5,\"\",'2011 Survey responses'!DL97)","v":4},{"$f":"IF('2011 Survey responses'!DU97=4,4,IF('2011 Survey responses'!DU97=5,4,\"\"))","v":""},{"$f":"IF('2011 Survey responses'!DV97=4,3,IF('2011 Survey responses'!DV97=5,3,\"\"))","v":""},"",{"$f":"IF(CQ97=2,CQ97,IF(CO97=4,CO97,IF(CP97=3,CP97,IF('2011 Survey responses'!GT97=1,1,\"\"))))","v":1},{"$f":"IF('2011 Survey responses'!DO97<0.5,\"\",'2011 Survey responses'!DO97)","v":""},{"$f":"IF('2011 Survey responses'!DP97<0.5,\"\",'2011 Survey responses'!DP97)","v":""},{"$f":"IF('2011 Survey responses'!DQ97<0.5,\"\",'2011 Survey responses'!DQ97)","v":""},{"$f":"IF('2011 Survey responses'!DR97<0.5,\"\",'2011 Survey responses'!DR97)","v":""},{"$f":"IF('2011 Survey responses'!DS97<0.5,\"\",'2011 Survey responses'!DS97)","v":""},{"$f":"IF('2011 Survey responses'!DT97<0.5,\"\",'2011 Survey responses'!DT97)","v":""},{"$f":"IF('2011 Survey responses'!DU97<0.5,\"\",'2011 Survey responses'!DU97)","v":""},{"$f":"IF('2011 Survey responses'!DV97<0.5,\"\",'2011 Survey responses'!DV97)","v":""},{"$f":"IF('2011 Survey responses'!DW97<0.5,\"\",'2011 Survey responses'!DW97)","v":""},{"$f":"IF('2011 Survey responses'!DX97<0.5,\"\",'2011 Survey responses'!DX97)","v":""},{"$f":"IF('2011 Survey responses'!DY97<0.5,\"\",'2011 Survey responses'!DY97)","v":""},{"$f":"IF('2011 Survey responses'!DZ97<0.5,\"\",'2011 Survey responses'!DZ97)","v":""},{"$f":"IF('2011 Survey responses'!EA97<0.5,\"\",'2011 Survey responses'!EA97)","v":""},{"$f":"IF('2011 Survey responses'!EB97<0.5,\"\",'2011 Survey responses'!EB97)","v":""},{"$f":"IF('2011 Survey responses'!EC97<0.5,\"\",'2011 Survey responses'!EC97)","v":""},{"$f":"IF('2011 Survey responses'!ED97<0.5,\"\",'2011 Survey responses'!ED97)","v":""},{"$f":"IF('2011 Survey responses'!EE97<0.5,\"\",'2011 Survey responses'!EE97)","v":""},{"$f":"IF('2011 Survey responses'!EF97<0.5,\"\",'2011 Survey responses'!EF97)","v":""},{"$f":"IF('2011 Survey responses'!EG97<0.5,\"\",'2011 Survey responses'!EG97)","v":""},{"$f":"IF('2011 Survey responses'!EH97<0.5,\"\",'2011 Survey responses'!EH97)","v":""},{"$f":"IF('2011 Survey responses'!EI97<0.5,\"\",'2011 Survey responses'!EI97)","v":""},{"$f":"IF('2011 Survey responses'!EJ97<0.5,\"\",'2011 Survey responses'!EJ97)","v":""},{"$f":"IF('2011 Survey responses'!EK97<0.5,\"\",'2011 Survey responses'!EK97)","v":""},{"$f":"IF('2011 Survey responses'!EL97<0.5,\"\",'2011 Survey responses'!EL97)","v":""},{"$f":"IF('2011 Survey responses'!EM97<0.5,\"\",'2011 Survey responses'!EM97)","v":""},{"$f":"IF('2011 Survey responses'!EN97<0.5,\"\",'2011 Survey responses'!EN97)","v":""},{"$f":"IF('2011 Survey responses'!EO97<0.5,\"\",'2011 Survey responses'!EO97)","v":""},{"$f":"IF('2011 Survey responses'!EP97<0.5,\"\",'2011 Survey responses'!EP97)","v":""},{"$f":"IF(('2011 Survey responses'!EW97+'2011 Survey responses'!EX97)>=2,AVERAGE('2011 Survey responses'!EW97,'2011 Survey responses'!EY97),\"\")","v":""},{"$f":"IF('2011 Survey responses'!EX97<0.5,\"\",'2011 Survey responses'!EX97)","v":""},{"$f":"IF('2011 Survey responses'!EZ97<0.5,\"\",'2011 Survey responses'!EZ97)","v":""},{"$f":"IF('2011 Survey responses'!FB97<0.5,\"\",'2011 Survey responses'!FB97)","v":""},{"$f":"IF('2011 Survey responses'!FD97<0.5,\"\",'2011 Survey responses'!FD97)","v":""},{"$f":"IF('2011 Survey responses'!FC97<0.5,\"\",'2011 Survey responses'!FC97)","v":""},{"$f":"IF(('2011 Survey responses'!EM97+'2011 Survey responses'!EN97)>=2,AVERAGE('2011 Survey responses'!EM97,'2011 Survey responses'!EN97),\"\")","v":""},{"$f":"IF('2011 Survey responses'!ES97<0.5,\"\",'2011 Survey responses'!ES97)","v":""},{"$f":"IF(('2011 Survey responses'!ET97+'2011 Survey responses'!EU97)>=2,AVERAGE('2011 Survey responses'!ET97,'2011 Survey responses'!EU97),\"\")","v":""},{"$f":"IF('2011 Survey responses'!EV97<0.5,\"\",'2011 Survey responses'!EV97)","v":""},{"$f":"IF('2011 Survey responses'!FA97<0.5,\"\",'2011 Survey responses'!FA97)","v":""},{"$f":"IF('2011 Survey responses'!ER97<0.5,\"\",'2011 Survey responses'!ER97)","v":""},{"$f":"IF(('2011 Survey responses'!EO97+'2011 Survey responses'!EP97)>=2,AVERAGE('2011 Survey responses'!EO97,'2011 Survey responses'!EP97),\"\")","v":""},{"$f":"IF('2011 Survey responses'!EQ97<0.5,\"\",'2011 Survey responses'!EQ97)","v":""},{"$f":"IF('2011 Survey responses'!ET97<0.5,\"\",'2011 Survey responses'!ET97)","v":""},{"$f":"IF('2011 Survey responses'!EU97<0.5,\"\",'2011 Survey responses'!EU97)","v":""},{"$f":"IF('2011 Survey responses'!EW97<0.5,\"\",'2011 Survey responses'!EW97)","v":""},{"$f":"IF('2011 Survey responses'!EY97<0.5,\"\",'2011 Survey responses'!EY97)","v":""},{"$f":"IF('2011 Survey responses'!FU97<0.5,\"\",'2011 Survey responses'!FU97)","v":""},{"$f":"IF(('2011 Survey responses'!FL97+'2011 Survey responses'!FM97)>=2,AVERAGE('2011 Survey responses'!FL97,'2011 Survey responses'!FM97),\"\")","v":""},{"$f":"IF(('2011 Survey responses'!FO97+'2011 Survey responses'!FQ97)>=2,AVERAGE('2011 Survey responses'!FO97,'2011 Survey responses'!FQ97),\"\")","v":""},{"$f":"IF('2011 Survey responses'!FJ97<0.5,\"\",'2011 Survey responses'!FJ97)","v":""},{"$f":"IF('2011 Survey responses'!FT97<0.5,\"\",'2011 Survey responses'!FT97)","v":""},{"$f":"IF('2011 Survey responses'!FR97<0.5,\"\",'2011 Survey responses'!FR97)","v":""},{"$f":"IF('2011 Survey responses'!FK97<0.5,\"\",'2011 Survey responses'!FK97)","v":""},{"$f":"IF('2011 Survey responses'!FP97<0.5,\"\",'2011 Survey responses'!FP97)","v":""},{"$f":"IF('2011 Survey responses'!FN97<0.5,\"\",'2011 Survey responses'!FN97)","v":""},{"$f":"IF(('2011 Survey responses'!FE97+'2011 Survey responses'!FF97)>=2,AVERAGE('2011 Survey responses'!FE97,'2011 Survey responses'!FF97),\"\")","v":""},{"$f":"IF('2011 Survey responses'!FS97<0.5,\"\",'2011 Survey responses'!FS97)","v":""},{"$f":"IF('2011 Survey responses'!FV97<0.5,\"\",'2011 Survey responses'!FV97)","v":""},{"$f":"IF(('2011 Survey responses'!FG97+'2011 Survey responses'!FH97)>=2,AVERAGE('2011 Survey responses'!FG97,'2011 Survey responses'!FH97),\"\")","v":""},{"$f":"IF('2011 Survey responses'!FI97<0.5,\"\",'2011 Survey responses'!FI97)","v":""},{"$f":"IF('2011 Survey responses'!FE97<0.5,\"\",'2011 Survey responses'!FE97)","v":""},{"$f":"IF('2011 Survey responses'!FF97<0.5,\"\",'2011 Survey responses'!FF97)","v":""},{"$f":"IF('2011 Survey responses'!FG97<0.5,\"\",'2011 Survey responses'!FG97)","v":""},{"$f":"IF('2011 Survey responses'!FH97<0.5,\"\",'2011 Survey responses'!FH97)","v":""},{"$f":"IF('2011 Survey responses'!FL97<0.5,\"\",'2011 Survey responses'!FL97)","v":""},{"$f":"IF('2011 Survey responses'!FM97<0.5,\"\",'2011 Survey responses'!FM97)","v":""},{"$f":"IF('2011 Survey responses'!FO97<0.5,\"\",'2011 Survey responses'!FO97)","v":""},{"$f":"IF('2011 Survey responses'!FQ97<0.5,\"\",'2011 Survey responses'!FQ97)","v":""}]
["Liberia",{"$f":"IF(SUM(F98)<1,\"\",AVERAGEIF('2011 Survey responses'!B98:CP98,\">1\"))","v":3.1864406779661016},{"$f":"IF(SUM(F98)<1,\"\",AVERAGEIF('2011 Survey responses'!B98:AO98,\">1\"))","v":3.28},{"$f":"IF(SUM(F98)<1,\"\",AVERAGEIF('2011 Survey responses'!B98:BV98,\">1\"))","v":3.1428571428571428},{"$f":"IF(SUM(F98)<1,\"\",AVERAGEIF('2011 Survey responses'!V98:BV98,\">1\"))","v":3.1379310344827585},{"$f":"IF(SUM('2011 Survey responses'!B98:U98)<1,\"\",(AVERAGEIFS('2011 Survey responses'!B98:U98,'2011 Survey responses'!B98:U98,\">1\")))","v":3.1538461538461537},{"$f":"IF(SUM('2011 Survey responses'!B98:H98)<1,\"\",(AVERAGEIFS('2011 Survey responses'!B98:H98,'2011 Survey responses'!B98:H98,\">1\")))","v":2},{"$f":"IF(SUM('2011 Survey responses'!I98:S98)<1,\"\",(AVERAGEIFS('2011 Survey responses'!I98:S98,'2011 Survey responses'!I98:S98,\">1\")))","v":3.2},{"$f":"IF(SUM('2011 Survey responses'!T98:U98)<2.1,\"\",(AVERAGEIFS('2011 Survey responses'!T98:U98,'2011 Survey responses'!T98:U98,\">1\")))","v":5},{"$f":"IF(SUM('2011 Survey responses'!B98:C98)<2.1,\"\",((SUMIF('2011 Survey responses'!B98:C98,\">1\")+SUMIF('2011 Survey responses'!F98,\">1\"))/(COUNTIF('2011 Survey responses'!B98:C98,\">1\")+COUNTIF('2011 Survey responses'!F98,\">1\"))))","v":""},{"$f":"IF(SUM('2011 Survey responses'!D98:E98)<2.1,\"\",(AVERAGEIFS('2011 Survey responses'!D98:E98,'2011 Survey responses'!D98:E98,\">1\")))","v":""},{"$f":"IF(('2011 Survey responses'!B98+'2011 Survey responses'!D98)<2.1,\"\",((SUMIF('2011 Survey responses'!B98,\">1\")+SUMIF('2011 Survey responses'!D98,\">1\")+SUMIF('2011 Survey responses'!F98,\">1\")+SUMIF('2011 Survey responses'!K98,\">1\"))/(COUNTIF('2011 Survey responses'!B98,\">1\")+COUNTIF('2011 Survey responses'!D98,\">1\")+COUNTIF('2011 Survey responses'!F98,\">1\")+COUNTIF('2011 Survey responses'!K98,\">1\"))))","v":""},{"$f":"IF(SUM('2011 Survey responses'!G98:H98)<2.1,\"\",(AVERAGEIFS('2011 Survey responses'!G98:H98,'2011 Survey responses'!G98:H98,\">1\")))","v":2},{"$f":"IF(SUM('2011 Survey responses'!F98:G98)<1.5,\"\",MAX('2011 Survey responses'!F98,'2011 Survey responses'!G98))","v":2},{"$f":"IF(SUM('2011 Survey responses'!G98:H98)<1,\"\",MAX('2011 Survey responses'!G98,'2011 Survey responses'!H98))","v":2},{"$f":"IF(SUM('2011 Survey responses'!I98:L98)<4.1,\"\",(AVERAGEIFS('2011 Survey responses'!I98:L98,'2011 Survey responses'!I98:L98,\">1\")))","v":3},{"$f":"IF(SUM('2011 Survey responses'!M98:S98)<4.1,\"\",(AVERAGEIFS('2011 Survey responses'!M98:S98,'2011 Survey responses'!M98:S98,\">1\")))","v":3.2857142857142856},{"$f":"IF(SUM('2011 Survey responses'!T98:U98)<2.1,\"\",(AVERAGEIFS('2011 Survey responses'!T98:U98,'2011 Survey responses'!T98:U98,\">1\")))","v":5},{"$f":"IF(SUM('2011 Survey responses'!V98:AO98)<1,\"\",(AVERAGEIFS('2011 Survey responses'!V98:AO98,'2011 Survey responses'!V98:AO98,\">1\")))","v":3.4166666666666665},{"$f":"IF(SUM('2011 Survey responses'!V98:AA98)<1,\"\",(AVERAGEIFS('2011 Survey responses'!V98:AA98,'2011 Survey responses'!V98:AA98,\">1\")))","v":3},{"$f":"IF(SUM('2011 Survey responses'!AB98:AH98)<1,\"\",(AVERAGEIFS('2011 Survey responses'!AB98:AH98,'2011 Survey responses'!AB98:AH98,\">1\")))","v":4},{"$f":"IF(SUM('2011 Survey responses'!AI98:AO98)<1,\"\",(AVERAGEIFS('2011 Survey responses'!AI98:AO98,'2011 Survey responses'!AI98:AO98,\">1\")))","v":3},{"$f":"IF(('2011 Survey responses'!Y98+'2011 Survey responses'!AI98+'2011 Survey responses'!AK98)<3.1,\"\",((SUMIF('2011 Survey responses'!Y98,\">1\")+SUMIF('2011 Survey responses'!AI98,\">1\")+SUMIF('2011 Survey responses'!AK98,\">1\")+SUMIF('2011 Survey responses'!AM98,\">1\"))/(COUNTIF('2011 Survey responses'!Y98,\">1\")+COUNTIF('2011 Survey responses'!AI98,\">1\")+COUNTIF('2011 Survey responses'!AK98,\">1\")+COUNTIF('2011 Survey responses'!AM98,\">1\"))))","v":3.25},{"$f":"IF(('2011 Survey responses'!W98)<1.1,\"\",('2011 Survey responses'!W98))","v":""},{"$f":"IF(('2011 Survey responses'!Y98)<1.1,\"\",('2011 Survey responses'!Y98))","v":3},{"$f":"IF(('2011 Survey responses'!Z98)<1.1,\"\",('2011 Survey responses'!Z98))","v":""},{"$f":"IF(('2011 Survey responses'!V98+'2011 Survey responses'!X98+'2011 Survey responses'!AA98)<3.1,\"\",((SUMIF('2011 Survey responses'!V98,\">1\")+SUMIF('2011 Survey responses'!X98,\">1\")+SUMIF('2011 Survey responses'!AA98,\">1\"))/(COUNTIF('2011 Survey responses'!V98,\">1\")+COUNTIF('2011 Survey responses'!X98,\">1\")+COUNTIF('2011 Survey responses'!AA98,\">1\"))))","v":""},{"$f":"IF(('2011 Survey responses'!V98+'2011 Survey responses'!Y98+'2011 Survey responses'!AA98)<3.1,\"\",((SUMIF('2011 Survey responses'!V98,\">1\")+SUMIF('2011 Survey responses'!Y98,\">1\")+SUMIF('2011 Survey responses'!AA98,\">1\"))/(COUNTIF('2011 Survey responses'!V98,\">1\")+COUNTIF('2011 Survey responses'!Y98,\">1\")+COUNTIF('2011 Survey responses'!AA98,\">1\"))))","v":""},{"$f":"IF(SUM('2011 Survey responses'!AB98:AH98)<1,\"\",(AVERAGEIFS('2011 Survey responses'!AB98:AH98,'2011 Survey responses'!AB98:AH98,\">1\")))","v":4},{"$f":"IF(SUM('2011 Survey responses'!AI98:AO98)<7.1,\"\",(AVERAGEIFS('2011 Survey responses'!AI98:AO98,'2011 Survey responses'!AI98:AO98,\">1\")))","v":3},{"$f":"IF(('2011 Survey responses'!AH98)<1.1,\"\",('2011 Survey responses'!AH98))","v":4},{"$f":"IF(SUM('2011 Survey responses'!AP98:BV98)<1,\"\",(AVERAGEIFS('2011 Survey responses'!AP98:BV98,'2011 Survey responses'!AP98:BV98,\">1\")))","v":2.9411764705882355},{"$f":"IF(SUM('2011 Survey responses'!AP98:AS98)<4.1,\"\",(AVERAGEIFS('2011 Survey responses'!AP98:AS98,'2011 Survey responses'!AP98:AS98,\">1\")))","v":""},{"$f":"IF(SUM('2011 Survey responses'!AT98:BF98)<1,\"\",(AVERAGEIFS('2011 Survey responses'!AT98:BF98,'2011 Survey responses'!AT98:BF98,\">1\")))","v":3.2857142857142856},{"$f":"IF(SUM('2011 Survey responses'!BG98:BO98)<1,\"\",(AVERAGEIFS('2011 Survey responses'!BG98:BO98,'2011 Survey responses'!BG98:BO98,\">1\")))","v":3},{"$f":"IF(SUM('2011 Survey responses'!BP98:BS98)<1,\"\",(AVERAGEIFS('2011 Survey responses'!BP98:BS98,'2011 Survey responses'!BP98:BS98,\">1\")))","v":2.75},{"$f":"IF(SUM('2011 Survey responses'!BT98:BV98)<3.1,\"\",(AVERAGEIFS('2011 Survey responses'!BT98:BV98,'2011 Survey responses'!BT98:BV98,\">1\")))","v":2},{"$f":"IF(('2011 Survey responses'!AQ98+'2011 Survey responses'!AR98+'2011 Survey responses'!BG98)<3.1,\"\",((SUMIF('2011 Survey responses'!AQ98,\">1\")+SUMIF('2011 Survey responses'!AR98,\">1\")+SUMIF('2011 Survey responses'!BG98,\">1\"))/(COUNTIF('2011 Survey responses'!AQ98,\">1\")+COUNTIF('2011 Survey responses'!AR98,\">1\")+COUNTIF('2011 Survey responses'!BG98,\">1\"))))","v":""},{"$f":"IF(SUM('2011 Survey responses'!AP98:AS98)<4.1,\"\",(AVERAGEIFS('2011 Survey responses'!AP98:AS98,'2011 Survey responses'!AP98:AS98,\">1\")))","v":""},{"$f":"IF(('2011 Survey responses'!AU98+'2011 Survey responses'!AX98+'2011 Survey responses'!BA98+'2011 Survey responses'!BC98+'2011 Survey responses'!BD98)<5.1,\"\",(SUMIF('2011 Survey responses'!AU98,\">1\")+SUMIF('2011 Survey responses'!AX98,\">1\")+SUMIF('2011 Survey responses'!BA98,\">1\")+SUMIF('2011 Survey responses'!BC98,\">1\")+SUMIF('2011 Survey responses'!BD98,\">1\"))/(COUNTIF('2011 Survey responses'!AU98,\">1\")+COUNTIF('2011 Survey responses'!AX98,\">1\")+COUNTIF('2011 Survey responses'!BA98,\">1\")+COUNTIF('2011 Survey responses'!BC98,\">1\")+COUNTIF('2011 Survey responses'!BD98,\">1\")))","v":3.5},{"$f":"IF(('2011 Survey responses'!AT98)<1.1,\"\",('2011 Survey responses'!AT98))","v":""},{"$f":"IF(SUM('2011 Survey responses'!AV98:AW98)<2.1,\"\",(AVERAGEIFS('2011 Survey responses'!AV98:AW98,'2011 Survey responses'!AV98:AW98,\">1\")))","v":3},{"$f":"IF(('2011 Survey responses'!AW98+'2011 Survey responses'!AY98)<2.1,\"\",(SUMIF('2011 Survey responses'!AW98,\">1\")+SUMIF('2011 Survey responses'!AY98,\">1\"))/(COUNTIF('2011 Survey responses'!AW98,\">1\")+COUNTIF('2011 Survey responses'!AY98,\">1\")))","v":3},{"$f":"IF(('2011 Survey responses'!AZ98)<1.1,\"\",('2011 Survey responses'!AZ98))","v":""},null,null,null,null,{"$f":"IF(('2011 Survey responses'!BE98)<1.1,\"\",('2011 Survey responses'!BE98))","v":""},{"$f":"IF(('2011 Survey responses'!AY98+'2011 Survey responses'!BB98+'2011 Survey responses'!BF98)<3.1,\"\",(SUMIF('2011 Survey responses'!AY98,\">1\")+SUMIF('2011 Survey responses'!BB98,\">1\")+SUMIF('2011 Survey responses'!BF98,\">1\"))/(COUNTIF('2011 Survey responses'!AY98,\">1\")+COUNTIF('2011 Survey responses'!BB98,\">1\")+COUNTIF('2011 Survey responses'!BF98,\">1\")))","v":3},2.875,{"$f":"IF(SUM('2011 Survey responses'!BT98:BV98)<3.1,\"\",(AVERAGEIFS('2011 Survey responses'!BT98:BV98,'2011 Survey responses'!BT98:BV98,\">1\")))","v":2},{"$f":"IF(SUM('2011 Survey responses'!BW98:CP98)<1,\"\",(AVERAGEIFS('2011 Survey responses'!BW98:CP98,'2011 Survey responses'!BW98:CP98,\">1\")))","v":3.2941176470588234},{"$f":"IF(SUM('2011 Survey responses'!BW98:CF98)<1,\"\",(AVERAGEIFS('2011 Survey responses'!BW98:CF98,'2011 Survey responses'!BW98:CF98,\">1\")))","v":3.375},{"$f":"IF(SUM('2011 Survey responses'!CG98:CP98)<1,\"\",(AVERAGEIFS('2011 Survey responses'!CG98:CP98,'2011 Survey responses'!CG98:CP98,\">1\")))","v":3.2222222222222223},{"$f":"IF(SUM('2011 Survey responses'!BX98:CF98)<1,\"\",(AVERAGEIFS('2011 Survey responses'!BX98:CF98,'2011 Survey responses'!BX98:CF98,\">1\")))","v":3.5714285714285716},{"$f":"IF(SUM('2011 Survey responses'!CH98:CP98)<1,\"\",(AVERAGEIFS('2011 Survey responses'!CH98:CP98,'2011 Survey responses'!CH98:CP98,\">1\")))","v":3.25},{"$f":"IF(SUM('2011 Survey responses'!BW98:CP98)<1,\"\",(AVERAGEIFS('2011 Survey responses'!BW98:CP98,'2011 Survey responses'!BW98:CP98,\">1\")))","v":3.2941176470588234},{"$f":"IF(('2011 Survey responses'!BW98+'2011 Survey responses'!CG98)<2.1,\"\",(SUMIF('2011 Survey responses'!BW98,\">1\")+SUMIF('2011 Survey responses'!CG98,\">1\"))/(COUNTIF('2011 Survey responses'!BW98,\">1\")+COUNTIF('2011 Survey responses'!CG98,\">1\")))","v":2.5},{"$f":"IF(('2011 Survey responses'!BX98+'2011 Survey responses'!CH98)<2.1,\"\",(SUMIF('2011 Survey responses'!BX98,\">1\")+SUMIF('2011 Survey responses'!CH98,\">1\"))/(COUNTIF('2011 Survey responses'!BX98,\">1\")+COUNTIF('2011 Survey responses'!CH98,\">1\")))","v":3.5},{"$f":"IF(('2011 Survey responses'!BY98+'2011 Survey responses'!CI98)<2.1,\"\",(SUMIF('2011 Survey responses'!BY98,\">1\")+SUMIF('2011 Survey responses'!CI98,\">1\"))/(COUNTIF('2011 Survey responses'!BY98,\">1\")+COUNTIF('2011 Survey responses'!CI98,\">1\")))","v":3.5},{"$f":"IF('2011 Survey responses'!CQ98<0.5,\"\",'2011 Survey responses'!CQ98)","v":3},{"$f":"IF('2011 Survey responses'!CR98<0.5,\"\",'2011 Survey responses'!CR98)","v":4},{"$f":"IF('2011 Survey responses'!CS98<0.5,\"\",'2011 Survey responses'!CS98)","v":4},{"$f":"IF('2011 Survey responses'!CT98<0.5,\"\",'2011 Survey responses'!CT98)","v":2},{"$f":"IF('2011 Survey responses'!CU98<0.5,\"\",'2011 Survey responses'!CU98)","v":1},{"$f":"IF('2011 Survey responses'!CV98<0.5,\"\",'2011 Survey responses'!CV98)","v":1},{"$f":"IF(SUM('2011 Survey responses'!CW98:DL98)<1,\"\",(AVERAGE('2011 Survey responses'!CW98:DL98)))","v":""},{"$f":"IF(SUM('2011 Survey responses'!CW98:CZ98)<1,\"\",(AVERAGE('2011 Survey responses'!CW98:CZ98)))","v":""},{"$f":"IF(SUM('2011 Survey responses'!DA98:DD98)<1,\"\",(AVERAGE('2011 Survey responses'!DA98:DD98)))","v":""},{"$f":"IF(SUM('2011 Survey responses'!DE98:DH98)<1,\"\",(AVERAGE('2011 Survey responses'!DE98:DH98)))","v":""},{"$f":"IF(SUM('2011 Survey responses'!DI98:DL98)<1,\"\",(AVERAGE('2011 Survey responses'!DI98:DL98)))","v":""},{"$f":"IF(('2011 Survey responses'!CW98+'2011 Survey responses'!DA98+'2011 Survey responses'!DE98+'2011 Survey responses'!DI98)<1,\"\",AVERAGE('2011 Survey responses'!CW98,'2011 Survey responses'!DA98,'2011 Survey responses'!DE98,'2011 Survey responses'!DI98))","v":""},{"$f":"IF(('2011 Survey responses'!CX98+'2011 Survey responses'!DB98+'2011 Survey responses'!DF98+'2011 Survey responses'!DJ98)<1,\"\",AVERAGE('2011 Survey responses'!CX98,'2011 Survey responses'!DB98,'2011 Survey responses'!DF98,'2011 Survey responses'!DJ98))","v":""},{"$f":"IF(('2011 Survey responses'!CY98+'2011 Survey responses'!DC98+'2011 Survey responses'!DG98+'2011 Survey responses'!DK98)<1,\"\",AVERAGE('2011 Survey responses'!CY98,'2011 Survey responses'!DC98,'2011 Survey responses'!DG98,'2011 Survey responses'!DK98))","v":""},{"$f":"IF(('2011 Survey responses'!CZ98+'2011 Survey responses'!DD98+'2011 Survey responses'!DH98+'2011 Survey responses'!DL98)<1,\"\",AVERAGE('2011 Survey responses'!CZ98,'2011 Survey responses'!DD98,'2011 Survey responses'!DH98,'2011 Survey responses'!DL98))","v":""},{"$f":"IF('2011 Survey responses'!CW98<0.5,\"\",'2011 Survey responses'!CW98)","v":""},{"$f":"IF('2011 Survey responses'!CX98<0.5,\"\",'2011 Survey responses'!CX98)","v":""},{"$f":"IF('2011 Survey responses'!CY98<0.5,\"\",'2011 Survey responses'!CY98)","v":""},{"$f":"IF('2011 Survey responses'!CZ98<0.5,\"\",'2011 Survey responses'!CZ98)","v":""},{"$f":"IF('2011 Survey responses'!DA98<0.5,\"\",'2011 Survey responses'!DA98)","v":""},{"$f":"IF('2011 Survey responses'!DB98<0.5,\"\",'2011 Survey responses'!DB98)","v":""},{"$f":"IF('2011 Survey responses'!DC98<0.5,\"\",'2011 Survey responses'!DC98)","v":""},{"$f":"IF('2011 Survey responses'!DD98<0.5,\"\",'2011 Survey responses'!DD98)","v":""},{"$f":"IF('2011 Survey responses'!DE98<0.5,\"\",'2011 Survey responses'!DE98)","v":""},{"$f":"IF('2011 Survey responses'!DF98<0.5,\"\",'2011 Survey responses'!DF98)","v":""},{"$f":"IF('2011 Survey responses'!DG98<0.5,\"\",'2011 Survey responses'!DG98)","v":""},{"$f":"IF('2011 Survey responses'!DH98<0.5,\"\",'2011 Survey responses'!DH98)","v":""},{"$f":"IF('2011 Survey responses'!DI98<0.5,\"\",'2011 Survey responses'!DI98)","v":""},{"$f":"IF('2011 Survey responses'!DJ98<0.5,\"\",'2011 Survey responses'!DJ98)","v":""},{"$f":"IF('2011 Survey responses'!DK98<0.5,\"\",'2011 Survey responses'!DK98)","v":""},{"$f":"IF('2011 Survey responses'!DL98<0.5,\"\",'2011 Survey responses'!DL98)","v":""},{"$f":"IF('2011 Survey responses'!DU98=4,4,IF('2011 Survey responses'!DU98=5,4,\"\"))","v":4},{"$f":"IF('2011 Survey responses'!DV98=4,3,IF('2011 Survey responses'!DV98=5,3,\"\"))","v":""},"",{"$f":"IF(CQ98=2,CQ98,IF(CO98=4,CO98,IF(CP98=3,CP98,IF('2011 Survey responses'!GT98=1,1,\"\"))))","v":4},{"$f":"IF('2011 Survey responses'!DO98<0.5,\"\",'2011 Survey responses'!DO98)","v":4},{"$f":"IF('2011 Survey responses'!DP98<0.5,\"\",'2011 Survey responses'!DP98)","v":4},{"$f":"IF('2011 Survey responses'!DQ98<0.5,\"\",'2011 Survey responses'!DQ98)","v":3},{"$f":"IF('2011 Survey responses'!DR98<0.5,\"\",'2011 Survey responses'!DR98)","v":4},{"$f":"IF('2011 Survey responses'!DS98<0.5,\"\",'2011 Survey responses'!DS98)","v":3},{"$f":"IF('2011 Survey responses'!DT98<0.5,\"\",'2011 Survey responses'!DT98)","v":4},{"$f":"IF('2011 Survey responses'!DU98<0.5,\"\",'2011 Survey responses'!DU98)","v":4},{"$f":"IF('2011 Survey responses'!DV98<0.5,\"\",'2011 Survey responses'!DV98)","v":1},{"$f":"IF('2011 Survey responses'!DW98<0.5,\"\",'2011 Survey responses'!DW98)","v":2},{"$f":"IF('2011 Survey responses'!DX98<0.5,\"\",'2011 Survey responses'!DX98)","v":2},{"$f":"IF('2011 Survey responses'!DY98<0.5,\"\",'2011 Survey responses'!DY98)","v":4},{"$f":"IF('2011 Survey responses'!DZ98<0.5,\"\",'2011 Survey responses'!DZ98)","v":4},{"$f":"IF('2011 Survey responses'!EA98<0.5,\"\",'2011 Survey responses'!EA98)","v":5},{"$f":"IF('2011 Survey responses'!EB98<0.5,\"\",'2011 Survey responses'!EB98)","v":5},{"$f":"IF('2011 Survey responses'!EC98<0.5,\"\",'2011 Survey responses'!EC98)","v":4},{"$f":"IF('2011 Survey responses'!ED98<0.5,\"\",'2011 Survey responses'!ED98)","v":4},{"$f":"IF('2011 Survey responses'!EE98<0.5,\"\",'2011 Survey responses'!EE98)","v":3},{"$f":"IF('2011 Survey responses'!EF98<0.5,\"\",'2011 Survey responses'!EF98)","v":4},{"$f":"IF('2011 Survey responses'!EG98<0.5,\"\",'2011 Survey responses'!EG98)","v":5},{"$f":"IF('2011 Survey responses'!EH98<0.5,\"\",'2011 Survey responses'!EH98)","v":""},{"$f":"IF('2011 Survey responses'!EI98<0.5,\"\",'2011 Survey responses'!EI98)","v":4},{"$f":"IF('2011 Survey responses'!EJ98<0.5,\"\",'2011 Survey responses'!EJ98)","v":4},{"$f":"IF('2011 Survey responses'!EK98<0.5,\"\",'2011 Survey responses'!EK98)","v":5},{"$f":"IF('2011 Survey responses'!EL98<0.5,\"\",'2011 Survey responses'!EL98)","v":4},{"$f":"IF('2011 Survey responses'!EM98<0.5,\"\",'2011 Survey responses'!EM98)","v":5},{"$f":"IF('2011 Survey responses'!EN98<0.5,\"\",'2011 Survey responses'!EN98)","v":4},{"$f":"IF('2011 Survey responses'!EO98<0.5,\"\",'2011 Survey responses'!EO98)","v":5},{"$f":"IF('2011 Survey responses'!EP98<0.5,\"\",'2011 Survey responses'!EP98)","v":4},{"$f":"IF(('2011 Survey responses'!EW98+'2011 Survey responses'!EX98)>=2,AVERAGE('2011 Survey responses'!EW98,'2011 Survey responses'!EY98),\"\")","v":5},{"$f":"IF('2011 Survey responses'!EX98<0.5,\"\",'2011 Survey responses'!EX98)","v":5},{"$f":"IF('2011 Survey responses'!EZ98<0.5,\"\",'2011 Survey responses'!EZ98)","v":4},{"$f":"IF('2011 Survey responses'!FB98<0.5,\"\",'2011 Survey responses'!FB98)","v":4},{"$f":"IF('2011 Survey responses'!FD98<0.5,\"\",'2011 Survey responses'!FD98)","v":5},{"$f":"IF('2011 Survey responses'!FC98<0.5,\"\",'2011 Survey responses'!FC98)","v":5},{"$f":"IF(('2011 Survey responses'!EM98+'2011 Survey responses'!EN98)>=2,AVERAGE('2011 Survey responses'!EM98,'2011 Survey responses'!EN98),\"\")","v":4.5},{"$f":"IF('2011 Survey responses'!ES98<0.5,\"\",'2011 Survey responses'!ES98)","v":5},{"$f":"IF(('2011 Survey responses'!ET98+'2011 Survey responses'!EU98)>=2,AVERAGE('2011 Survey responses'!ET98,'2011 Survey responses'!EU98),\"\")","v":4.5},{"$f":"IF('2011 Survey responses'!EV98<0.5,\"\",'2011 Survey responses'!EV98)","v":5},{"$f":"IF('2011 Survey responses'!FA98<0.5,\"\",'2011 Survey responses'!FA98)","v":5},{"$f":"IF('2011 Survey responses'!ER98<0.5,\"\",'2011 Survey responses'!ER98)","v":4},{"$f":"IF(('2011 Survey responses'!EO98+'2011 Survey responses'!EP98)>=2,AVERAGE('2011 Survey responses'!EO98,'2011 Survey responses'!EP98),\"\")","v":4.5},{"$f":"IF('2011 Survey responses'!EQ98<0.5,\"\",'2011 Survey responses'!EQ98)","v":3},{"$f":"IF('2011 Survey responses'!ET98<0.5,\"\",'2011 Survey responses'!ET98)","v":5},{"$f":"IF('2011 Survey responses'!EU98<0.5,\"\",'2011 Survey responses'!EU98)","v":4},{"$f":"IF('2011 Survey responses'!EW98<0.5,\"\",'2011 Survey responses'!EW98)","v":5},{"$f":"IF('2011 Survey responses'!EY98<0.5,\"\",'2011 Survey responses'!EY98)","v":5},{"$f":"IF('2011 Survey responses'!FU98<0.5,\"\",'2011 Survey responses'!FU98)","v":4},{"$f":"IF(('2011 Survey responses'!FL98+'2011 Survey responses'!FM98)>=2,AVERAGE('2011 Survey responses'!FL98,'2011 Survey responses'!FM98),\"\")","v":4},{"$f":"IF(('2011 Survey responses'!FO98+'2011 Survey responses'!FQ98)>=2,AVERAGE('2011 Survey responses'!FO98,'2011 Survey responses'!FQ98),\"\")","v":3.5},{"$f":"IF('2011 Survey responses'!FJ98<0.5,\"\",'2011 Survey responses'!FJ98)","v":5},{"$f":"IF('2011 Survey responses'!FT98<0.5,\"\",'2011 Survey responses'!FT98)","v":4},{"$f":"IF('2011 Survey responses'!FR98<0.5,\"\",'2011 Survey responses'!FR98)","v":4},{"$f":"IF('2011 Survey responses'!FK98<0.5,\"\",'2011 Survey responses'!FK98)","v":""},{"$f":"IF('2011 Survey responses'!FP98<0.5,\"\",'2011 Survey responses'!FP98)","v":4},{"$f":"IF('2011 Survey responses'!FN98<0.5,\"\",'2011 Survey responses'!FN98)","v":4},{"$f":"IF(('2011 Survey responses'!FE98+'2011 Survey responses'!FF98)>=2,AVERAGE('2011 Survey responses'!FE98,'2011 Survey responses'!FF98),\"\")","v":3.5},{"$f":"IF('2011 Survey responses'!FS98<0.5,\"\",'2011 Survey responses'!FS98)","v":4},{"$f":"IF('2011 Survey responses'!FV98<0.5,\"\",'2011 Survey responses'!FV98)","v":4},{"$f":"IF(('2011 Survey responses'!FG98+'2011 Survey responses'!FH98)>=2,AVERAGE('2011 Survey responses'!FG98,'2011 Survey responses'!FH98),\"\")","v":3},{"$f":"IF('2011 Survey responses'!FI98<0.5,\"\",'2011 Survey responses'!FI98)","v":4},{"$f":"IF('2011 Survey responses'!FE98<0.5,\"\",'2011 Survey responses'!FE98)","v":4},{"$f":"IF('2011 Survey responses'!FF98<0.5,\"\",'2011 Survey responses'!FF98)","v":3},{"$f":"IF('2011 Survey responses'!FG98<0.5,\"\",'2011 Survey responses'!FG98)","v":3},{"$f":"IF('2011 Survey responses'!FH98<0.5,\"\",'2011 Survey responses'!FH98)","v":3},{"$f":"IF('2011 Survey responses'!FL98<0.5,\"\",'2011 Survey responses'!FL98)","v":4},{"$f":"IF('2011 Survey responses'!FM98<0.5,\"\",'2011 Survey responses'!FM98)","v":4},{"$f":"IF('2011 Survey responses'!FO98<0.5,\"\",'2011 Survey responses'!FO98)","v":4},{"$f":"IF('2011 Survey responses'!FQ98<0.5,\"\",'2011 Survey responses'!FQ98)","v":3}]
["Libyan Arab Jamahiriya ",{"$f":"IF(SUM(F99)<1,\"\",AVERAGEIF('2011 Survey responses'!B99:CP99,\">1\"))","v":4.3456790123456788},{"$f":"IF(SUM(F99)<1,\"\",AVERAGEIF('2011 Survey responses'!B99:AO99,\">1\"))","v":4.382352941176471},{"$f":"IF(SUM(F99)<1,\"\",AVERAGEIF('2011 Survey responses'!B99:BV99,\">1\"))","v":4.2388059701492535},{"$f":"IF(SUM(F99)<1,\"\",AVERAGEIF('2011 Survey responses'!V99:BV99,\">1\"))","v":4.215686274509804},{"$f":"IF(SUM('2011 Survey responses'!B99:U99)<1,\"\",(AVERAGEIFS('2011 Survey responses'!B99:U99,'2011 Survey responses'!B99:U99,\">1\")))","v":4.3125},{"$f":"IF(SUM('2011 Survey responses'!B99:H99)<1,\"\",(AVERAGEIFS('2011 Survey responses'!B99:H99,'2011 Survey responses'!B99:H99,\">1\")))","v":5.6},{"$f":"IF(SUM('2011 Survey responses'!I99:S99)<1,\"\",(AVERAGEIFS('2011 Survey responses'!I99:S99,'2011 Survey responses'!I99:S99,\">1\")))","v":3.6},{"$f":"IF(SUM('2011 Survey responses'!T99:U99)<2.1,\"\",(AVERAGEIFS('2011 Survey responses'!T99:U99,'2011 Survey responses'!T99:U99,\">1\")))","v":5},{"$f":"IF(SUM('2011 Survey responses'!B99:C99)<2.1,\"\",((SUMIF('2011 Survey responses'!B99:C99,\">1\")+SUMIF('2011 Survey responses'!F99,\">1\"))/(COUNTIF('2011 Survey responses'!B99:C99,\">1\")+COUNTIF('2011 Survey responses'!F99,\">1\"))))","v":6},{"$f":"IF(SUM('2011 Survey responses'!D99:E99)<2.1,\"\",(AVERAGEIFS('2011 Survey responses'!D99:E99,'2011 Survey responses'!D99:E99,\">1\")))","v":6},{"$f":"IF(('2011 Survey responses'!B99+'2011 Survey responses'!D99)<2.1,\"\",((SUMIF('2011 Survey responses'!B99,\">1\")+SUMIF('2011 Survey responses'!D99,\">1\")+SUMIF('2011 Survey responses'!F99,\">1\")+SUMIF('2011 Survey responses'!K99,\">1\"))/(COUNTIF('2011 Survey responses'!B99,\">1\")+COUNTIF('2011 Survey responses'!D99,\">1\")+COUNTIF('2011 Survey responses'!F99,\">1\")+COUNTIF('2011 Survey responses'!K99,\">1\"))))","v":5.5},{"$f":"IF(SUM('2011 Survey responses'!G99:H99)<2.1,\"\",(AVERAGEIFS('2011 Survey responses'!G99:H99,'2011 Survey responses'!G99:H99,\">1\")))","v":4},{"$f":"IF(SUM('2011 Survey responses'!F99:G99)<1.5,\"\",MAX('2011 Survey responses'!F99,'2011 Survey responses'!G99))","v":6},{"$f":"IF(SUM('2011 Survey responses'!G99:H99)<1,\"\",MAX('2011 Survey responses'!G99,'2011 Survey responses'!H99))","v":4},{"$f":"IF(SUM('2011 Survey responses'!I99:L99)<4.1,\"\",(AVERAGEIFS('2011 Survey responses'!I99:L99,'2011 Survey responses'!I99:L99,\">1\")))","v":4},{"$f":"IF(SUM('2011 Survey responses'!M99:S99)<4.1,\"\",(AVERAGEIFS('2011 Survey responses'!M99:S99,'2011 Survey responses'!M99:S99,\">1\")))","v":3.3333333333333335},{"$f":"IF(SUM('2011 Survey responses'!T99:U99)<2.1,\"\",(AVERAGEIFS('2011 Survey responses'!T99:U99,'2011 Survey responses'!T99:U99,\">1\")))","v":5},{"$f":"IF(SUM('2011 Survey responses'!V99:AO99)<1,\"\",(AVERAGEIFS('2011 Survey responses'!V99:AO99,'2011 Survey responses'!V99:AO99,\">1\")))","v":4.4444444444444446},{"$f":"IF(SUM('2011 Survey responses'!V99:AA99)<1,\"\",(AVERAGEIFS('2011 Survey responses'!V99:AA99,'2011 Survey responses'!V99:AA99,\">1\")))","v":4.75},{"$f":"IF(SUM('2011 Survey responses'!AB99:AH99)<1,\"\",(AVERAGEIFS('2011 Survey responses'!AB99:AH99,'2011 Survey responses'!AB99:AH99,\">1\")))","v":4},{"$f":"IF(SUM('2011 Survey responses'!AI99:AO99)<1,\"\",(AVERAGEIFS('2011 Survey responses'!AI99:AO99,'2011 Survey responses'!AI99:AO99,\">1\")))","v":4.7142857142857144},{"$f":"IF(('2011 Survey responses'!Y99+'2011 Survey responses'!AI99+'2011 Survey responses'!AK99)<3.1,\"\",((SUMIF('2011 Survey responses'!Y99,\">1\")+SUMIF('2011 Survey responses'!AI99,\">1\")+SUMIF('2011 Survey responses'!AK99,\">1\")+SUMIF('2011 Survey responses'!AM99,\">1\"))/(COUNTIF('2011 Survey responses'!Y99,\">1\")+COUNTIF('2011 Survey responses'!AI99,\">1\")+COUNTIF('2011 Survey responses'!AK99,\">1\")+COUNTIF('2011 Survey responses'!AM99,\">1\"))))","v":4.75},{"$f":"IF(('2011 Survey responses'!W99)<1.1,\"\",('2011 Survey responses'!W99))","v":5},{"$f":"IF(('2011 Survey responses'!Y99)<1.1,\"\",('2011 Survey responses'!Y99))","v":4},{"$f":"IF(('2011 Survey responses'!Z99)<1.1,\"\",('2011 Survey responses'!Z99))","v":5},{"$f":"IF(('2011 Survey responses'!V99+'2011 Survey responses'!X99+'2011 Survey responses'!AA99)<3.1,\"\",((SUMIF('2011 Survey responses'!V99,\">1\")+SUMIF('2011 Survey responses'!X99,\">1\")+SUMIF('2011 Survey responses'!AA99,\">1\"))/(COUNTIF('2011 Survey responses'!V99,\">1\")+COUNTIF('2011 Survey responses'!X99,\">1\")+COUNTIF('2011 Survey responses'!AA99,\">1\"))))","v":5},{"$f":"IF(('2011 Survey responses'!V99+'2011 Survey responses'!Y99+'2011 Survey responses'!AA99)<3.1,\"\",((SUMIF('2011 Survey responses'!V99,\">1\")+SUMIF('2011 Survey responses'!Y99,\">1\")+SUMIF('2011 Survey responses'!AA99,\">1\"))/(COUNTIF('2011 Survey responses'!V99,\">1\")+COUNTIF('2011 Survey responses'!Y99,\">1\")+COUNTIF('2011 Survey responses'!AA99,\">1\"))))","v":4.5},{"$f":"IF(SUM('2011 Survey responses'!AB99:AH99)<1,\"\",(AVERAGEIFS('2011 Survey responses'!AB99:AH99,'2011 Survey responses'!AB99:AH99,\">1\")))","v":4},{"$f":"IF(SUM('2011 Survey responses'!AI99:AO99)<7.1,\"\",(AVERAGEIFS('2011 Survey responses'!AI99:AO99,'2011 Survey responses'!AI99:AO99,\">1\")))","v":4.7142857142857144},{"$f":"IF(('2011 Survey responses'!AH99)<1.1,\"\",('2011 Survey responses'!AH99))","v":2},{"$f":"IF(SUM('2011 Survey responses'!AP99:BV99)<1,\"\",(AVERAGEIFS('2011 Survey responses'!AP99:BV99,'2011 Survey responses'!AP99:BV99,\">1\")))","v":4.0909090909090908},{"$f":"IF(SUM('2011 Survey responses'!AP99:AS99)<4.1,\"\",(AVERAGEIFS('2011 Survey responses'!AP99:AS99,'2011 Survey responses'!AP99:AS99,\">1\")))","v":4.25},{"$f":"IF(SUM('2011 Survey responses'!AT99:BF99)<1,\"\",(AVERAGEIFS('2011 Survey responses'!AT99:BF99,'2011 Survey responses'!AT99:BF99,\">1\")))","v":4.1538461538461542},{"$f":"IF(SUM('2011 Survey responses'!BG99:BO99)<1,\"\",(AVERAGEIFS('2011 Survey responses'!BG99:BO99,'2011 Survey responses'!BG99:BO99,\">1\")))","v":4.333333333333333},{"$f":"IF(SUM('2011 Survey responses'!BP99:BS99)<1,\"\",(AVERAGEIFS('2011 Survey responses'!BP99:BS99,'2011 Survey responses'!BP99:BS99,\">1\")))","v":4.75},{"$f":"IF(SUM('2011 Survey responses'!BT99:BV99)<3.1,\"\",(AVERAGEIFS('2011 Survey responses'!BT99:BV99,'2011 Survey responses'!BT99:BV99,\">1\")))","v":2},{"$f":"IF(('2011 Survey responses'!AQ99+'2011 Survey responses'!AR99+'2011 Survey responses'!BG99)<3.1,\"\",((SUMIF('2011 Survey responses'!AQ99,\">1\")+SUMIF('2011 Survey responses'!AR99,\">1\")+SUMIF('2011 Survey responses'!BG99,\">1\"))/(COUNTIF('2011 Survey responses'!AQ99,\">1\")+COUNTIF('2011 Survey responses'!AR99,\">1\")+COUNTIF('2011 Survey responses'!BG99,\">1\"))))","v":5.333333333333333},{"$f":"IF(SUM('2011 Survey responses'!AP99:AS99)<4.1,\"\",(AVERAGEIFS('2011 Survey responses'!AP99:AS99,'2011 Survey responses'!AP99:AS99,\">1\")))","v":4.25},{"$f":"IF(('2011 Survey responses'!AU99+'2011 Survey responses'!AX99+'2011 Survey responses'!BA99+'2011 Survey responses'!BC99+'2011 Survey responses'!BD99)<5.1,\"\",(SUMIF('2011 Survey responses'!AU99,\">1\")+SUMIF('2011 Survey responses'!AX99,\">1\")+SUMIF('2011 Survey responses'!BA99,\">1\")+SUMIF('2011 Survey responses'!BC99,\">1\")+SUMIF('2011 Survey responses'!BD99,\">1\"))/(COUNTIF('2011 Survey responses'!AU99,\">1\")+COUNTIF('2011 Survey responses'!AX99,\">1\")+COUNTIF('2011 Survey responses'!BA99,\">1\")+COUNTIF('2011 Survey responses'!BC99,\">1\")+COUNTIF('2011 Survey responses'!BD99,\">1\")))","v":3.8},{"$f":"IF(('2011 Survey responses'!AT99)<1.1,\"\",('2011 Survey responses'!AT99))","v":5},{"$f":"IF(SUM('2011 Survey responses'!AV99:AW99)<2.1,\"\",(AVERAGEIFS('2011 Survey responses'!AV99:AW99,'2011 Survey responses'!AV99:AW99,\">1\")))","v":5},{"$f":"IF(('2011 Survey responses'!AW99+'2011 Survey responses'!AY99)<2.1,\"\",(SUMIF('2011 Survey responses'!AW99,\">1\")+SUMIF('2011 Survey responses'!AY99,\">1\"))/(COUNTIF('2011 Survey responses'!AW99,\">1\")+COUNTIF('2011 Survey responses'!AY99,\">1\")))","v":4.5},{"$f":"IF(('2011 Survey responses'!AZ99)<1.1,\"\",('2011 Survey responses'!AZ99))","v":5},5,4,4,2,{"$f":"IF(('2011 Survey responses'!BE99)<1.1,\"\",('2011 Survey responses'!BE99))","v":5},{"$f":"IF(('2011 Survey responses'!AY99+'2011 Survey responses'!BB99+'2011 Survey responses'!BF99)<3.1,\"\",(SUMIF('2011 Survey responses'!AY99,\">1\")+SUMIF('2011 Survey responses'!BB99,\">1\")+SUMIF('2011 Survey responses'!BF99,\">1\"))/(COUNTIF('2011 Survey responses'!AY99,\">1\")+COUNTIF('2011 Survey responses'!BB99,\">1\")+COUNTIF('2011 Survey responses'!BF99,\">1\")))","v":3.3333333333333335},{"$f":"IF(SUM(AI99,AJ99)<1,\"\",AVERAGE(AI99,AJ99))","v":4.5416666666666661},{"$f":"IF(SUM('2011 Survey responses'!BT99:BV99)<3.1,\"\",(AVERAGEIFS('2011 Survey responses'!BT99:BV99,'2011 Survey responses'!BT99:BV99,\">1\")))","v":2},{"$f":"IF(SUM('2011 Survey responses'!BW99:CP99)<1,\"\",(AVERAGEIFS('2011 Survey responses'!BW99:CP99,'2011 Survey responses'!BW99:CP99,\">1\")))","v":4.8571428571428568},{"$f":"IF(SUM('2011 Survey responses'!BW99:CF99)<1,\"\",(AVERAGEIFS('2011 Survey responses'!BW99:CF99,'2011 Survey responses'!BW99:CF99,\">1\")))","v":4.8571428571428568},{"$f":"IF(SUM('2011 Survey responses'!CG99:CP99)<1,\"\",(AVERAGEIFS('2011 Survey responses'!CG99:CP99,'2011 Survey responses'!CG99:CP99,\">1\")))","v":4.8571428571428568},{"$f":"IF(SUM('2011 Survey responses'!BX99:CF99)<1,\"\",(AVERAGEIFS('2011 Survey responses'!BX99:CF99,'2011 Survey responses'!BX99:CF99,\">1\")))","v":4.833333333333333},{"$f":"IF(SUM('2011 Survey responses'!CH99:CP99)<1,\"\",(AVERAGEIFS('2011 Survey responses'!CH99:CP99,'2011 Survey responses'!CH99:CP99,\">1\")))","v":4.833333333333333},{"$f":"IF(SUM('2011 Survey responses'!BW99:CP99)<1,\"\",(AVERAGEIFS('2011 Survey responses'!BW99:CP99,'2011 Survey responses'!BW99:CP99,\">1\")))","v":4.8571428571428568},{"$f":"IF(('2011 Survey responses'!BW99+'2011 Survey responses'!CG99)<2.1,\"\",(SUMIF('2011 Survey responses'!BW99,\">1\")+SUMIF('2011 Survey responses'!CG99,\">1\"))/(COUNTIF('2011 Survey responses'!BW99,\">1\")+COUNTIF('2011 Survey responses'!CG99,\">1\")))","v":5},{"$f":"IF(('2011 Survey responses'!BX99+'2011 Survey responses'!CH99)<2.1,\"\",(SUMIF('2011 Survey responses'!BX99,\">1\")+SUMIF('2011 Survey responses'!CH99,\">1\"))/(COUNTIF('2011 Survey responses'!BX99,\">1\")+COUNTIF('2011 Survey responses'!CH99,\">1\")))","v":5},{"$f":"IF(('2011 Survey responses'!BY99+'2011 Survey responses'!CI99)<2.1,\"\",(SUMIF('2011 Survey responses'!BY99,\">1\")+SUMIF('2011 Survey responses'!CI99,\">1\"))/(COUNTIF('2011 Survey responses'!BY99,\">1\")+COUNTIF('2011 Survey responses'!CI99,\">1\")))","v":""},{"$f":"IF('2011 Survey responses'!CQ99<0.5,\"\",'2011 Survey responses'!CQ99)","v":4},{"$f":"IF('2011 Survey responses'!CR99<0.5,\"\",'2011 Survey responses'!CR99)","v":2},{"$f":"IF('2011 Survey responses'!CS99<0.5,\"\",'2011 Survey responses'!CS99)","v":2},{"$f":"IF('2011 Survey responses'!CT99<0.5,\"\",'2011 Survey responses'!CT99)","v":1},{"$f":"IF('2011 Survey responses'!CU99<0.5,\"\",'2011 Survey responses'!CU99)","v":1},{"$f":"IF('2011 Survey responses'!CV99<0.5,\"\",'2011 Survey responses'!CV99)","v":1},{"$f":"IF(SUM('2011 Survey responses'!CW99:DL99)<1,\"\",(AVERAGE('2011 Survey responses'!CW99:DL99)))","v":2.8125},{"$f":"IF(SUM('2011 Survey responses'!CW99:CZ99)<1,\"\",(AVERAGE('2011 Survey responses'!CW99:CZ99)))","v":3.25},{"$f":"IF(SUM('2011 Survey responses'!DA99:DD99)<1,\"\",(AVERAGE('2011 Survey responses'!DA99:DD99)))","v":2.75},{"$f":"IF(SUM('2011 Survey responses'!DE99:DH99)<1,\"\",(AVERAGE('2011 Survey responses'!DE99:DH99)))","v":2.5},{"$f":"IF(SUM('2011 Survey responses'!DI99:DL99)<1,\"\",(AVERAGE('2011 Survey responses'!DI99:DL99)))","v":2.75},{"$f":"IF(('2011 Survey responses'!CW99+'2011 Survey responses'!DA99+'2011 Survey responses'!DE99+'2011 Survey responses'!DI99)<1,\"\",AVERAGE('2011 Survey responses'!CW99,'2011 Survey responses'!DA99,'2011 Survey responses'!DE99,'2011 Survey responses'!DI99))","v":3.75},{"$f":"IF(('2011 Survey responses'!CX99+'2011 Survey responses'!DB99+'2011 Survey responses'!DF99+'2011 Survey responses'!DJ99)<1,\"\",AVERAGE('2011 Survey responses'!CX99,'2011 Survey responses'!DB99,'2011 Survey responses'!DF99,'2011 Survey responses'!DJ99))","v":3},{"$f":"IF(('2011 Survey responses'!CY99+'2011 Survey responses'!DC99+'2011 Survey responses'!DG99+'2011 Survey responses'!DK99)<1,\"\",AVERAGE('2011 Survey responses'!CY99,'2011 Survey responses'!DC99,'2011 Survey responses'!DG99,'2011 Survey responses'!DK99))","v":2},{"$f":"IF(('2011 Survey responses'!CZ99+'2011 Survey responses'!DD99+'2011 Survey responses'!DH99+'2011 Survey responses'!DL99)<1,\"\",AVERAGE('2011 Survey responses'!CZ99,'2011 Survey responses'!DD99,'2011 Survey responses'!DH99,'2011 Survey responses'!DL99))","v":2.5},{"$f":"IF('2011 Survey responses'!CW99<0.5,\"\",'2011 Survey responses'!CW99)","v":4},{"$f":"IF('2011 Survey responses'!CX99<0.5,\"\",'2011 Survey responses'!CX99)","v":4},{"$f":"IF('2011 Survey responses'!CY99<0.5,\"\",'2011 Survey responses'!CY99)","v":2},{"$f":"IF('2011 Survey responses'!CZ99<0.5,\"\",'2011 Survey responses'!CZ99)","v":3},{"$f":"IF('2011 Survey responses'!DA99<0.5,\"\",'2011 Survey responses'!DA99)","v":4},{"$f":"IF('2011 Survey responses'!DB99<0.5,\"\",'2011 Survey responses'!DB99)","v":3},{"$f":"IF('2011 Survey responses'!DC99<0.5,\"\",'2011 Survey responses'!DC99)","v":2},{"$f":"IF('2011 Survey responses'!DD99<0.5,\"\",'2011 Survey responses'!DD99)","v":2},{"$f":"IF('2011 Survey responses'!DE99<0.5,\"\",'2011 Survey responses'!DE99)","v":4},{"$f":"IF('2011 Survey responses'!DF99<0.5,\"\",'2011 Survey responses'!DF99)","v":2},{"$f":"IF('2011 Survey responses'!DG99<0.5,\"\",'2011 Survey responses'!DG99)","v":2},{"$f":"IF('2011 Survey responses'!DH99<0.5,\"\",'2011 Survey responses'!DH99)","v":2},{"$f":"IF('2011 Survey responses'!DI99<0.5,\"\",'2011 Survey responses'!DI99)","v":3},{"$f":"IF('2011 Survey responses'!DJ99<0.5,\"\",'2011 Survey responses'!DJ99)","v":3},{"$f":"IF('2011 Survey responses'!DK99<0.5,\"\",'2011 Survey responses'!DK99)","v":2},{"$f":"IF('2011 Survey responses'!DL99<0.5,\"\",'2011 Survey responses'!DL99)","v":3},{"$f":"IF('2011 Survey responses'!DU99=4,4,IF('2011 Survey responses'!DU99=5,4,\"\"))","v":""},{"$f":"IF('2011 Survey responses'!DV99=4,3,IF('2011 Survey responses'!DV99=5,3,\"\"))","v":3},"",{"$f":"IF(CQ99=2,CQ99,IF(CO99=4,CO99,IF(CP99=3,CP99,IF('2011 Survey responses'!GT99=1,1,\"\"))))","v":3},{"$f":"IF('2011 Survey responses'!DO99<0.5,\"\",'2011 Survey responses'!DO99)","v":4},{"$f":"IF('2011 Survey responses'!DP99<0.5,\"\",'2011 Survey responses'!DP99)","v":5},{"$f":"IF('2011 Survey responses'!DQ99<0.5,\"\",'2011 Survey responses'!DQ99)","v":3},{"$f":"IF('2011 Survey responses'!DR99<0.5,\"\",'2011 Survey responses'!DR99)","v":1},{"$f":"IF('2011 Survey responses'!DS99<0.5,\"\",'2011 Survey responses'!DS99)","v":2},{"$f":"IF('2011 Survey responses'!DT99<0.5,\"\",'2011 Survey responses'!DT99)","v":4},{"$f":"IF('2011 Survey responses'!DU99<0.5,\"\",'2011 Survey responses'!DU99)","v":2},{"$f":"IF('2011 Survey responses'!DV99<0.5,\"\",'2011 Survey responses'!DV99)","v":4},{"$f":"IF('2011 Survey responses'!DW99<0.5,\"\",'2011 Survey responses'!DW99)","v":3},{"$f":"IF('2011 Survey responses'!DX99<0.5,\"\",'2011 Survey responses'!DX99)","v":4},{"$f":"IF('2011 Survey responses'!DY99<0.5,\"\",'2011 Survey responses'!DY99)","v":2},{"$f":"IF('2011 Survey responses'!DZ99<0.5,\"\",'2011 Survey responses'!DZ99)","v":4},{"$f":"IF('2011 Survey responses'!EA99<0.5,\"\",'2011 Survey responses'!EA99)","v":5},{"$f":"IF('2011 Survey responses'!EB99<0.5,\"\",'2011 Survey responses'!EB99)","v":5},{"$f":"IF('2011 Survey responses'!EC99<0.5,\"\",'2011 Survey responses'!EC99)","v":4},{"$f":"IF('2011 Survey responses'!ED99<0.5,\"\",'2011 Survey responses'!ED99)","v":3},{"$f":"IF('2011 Survey responses'!EE99<0.5,\"\",'2011 Survey responses'!EE99)","v":3},{"$f":"IF('2011 Survey responses'!EF99<0.5,\"\",'2011 Survey responses'!EF99)","v":4},{"$f":"IF('2011 Survey responses'!EG99<0.5,\"\",'2011 Survey responses'!EG99)","v":3},{"$f":"IF('2011 Survey responses'!EH99<0.5,\"\",'2011 Survey responses'!EH99)","v":5},{"$f":"IF('2011 Survey responses'!EI99<0.5,\"\",'2011 Survey responses'!EI99)","v":4},{"$f":"IF('2011 Survey responses'!EJ99<0.5,\"\",'2011 Survey responses'!EJ99)","v":5},{"$f":"IF('2011 Survey responses'!EK99<0.5,\"\",'2011 Survey responses'!EK99)","v":3},{"$f":"IF('2011 Survey responses'!EL99<0.5,\"\",'2011 Survey responses'!EL99)","v":5},{"$f":"IF('2011 Survey responses'!EM99<0.5,\"\",'2011 Survey responses'!EM99)","v":4},{"$f":"IF('2011 Survey responses'!EN99<0.5,\"\",'2011 Survey responses'!EN99)","v":4},{"$f":"IF('2011 Survey responses'!EO99<0.5,\"\",'2011 Survey responses'!EO99)","v":3},{"$f":"IF('2011 Survey responses'!EP99<0.5,\"\",'2011 Survey responses'!EP99)","v":3},{"$f":"IF(('2011 Survey responses'!EW99+'2011 Survey responses'!EX99)>=2,AVERAGE('2011 Survey responses'!EW99,'2011 Survey responses'!EY99),\"\")","v":4},{"$f":"IF('2011 Survey responses'!EX99<0.5,\"\",'2011 Survey responses'!EX99)","v":4},{"$f":"IF('2011 Survey responses'!EZ99<0.5,\"\",'2011 Survey responses'!EZ99)","v":4},{"$f":"IF('2011 Survey responses'!FB99<0.5,\"\",'2011 Survey responses'!FB99)","v":2},{"$f":"IF('2011 Survey responses'!FD99<0.5,\"\",'2011 Survey responses'!FD99)","v":4},{"$f":"IF('2011 Survey responses'!FC99<0.5,\"\",'2011 Survey responses'!FC99)","v":3},{"$f":"IF(('2011 Survey responses'!EM99+'2011 Survey responses'!EN99)>=2,AVERAGE('2011 Survey responses'!EM99,'2011 Survey responses'!EN99),\"\")","v":4},{"$f":"IF('2011 Survey responses'!ES99<0.5,\"\",'2011 Survey responses'!ES99)","v":4},{"$f":"IF(('2011 Survey responses'!ET99+'2011 Survey responses'!EU99)>=2,AVERAGE('2011 Survey responses'!ET99,'2011 Survey responses'!EU99),\"\")","v":4},{"$f":"IF('2011 Survey responses'!EV99<0.5,\"\",'2011 Survey responses'!EV99)","v":4},{"$f":"IF('2011 Survey responses'!FA99<0.5,\"\",'2011 Survey responses'!FA99)","v":3},{"$f":"IF('2011 Survey responses'!ER99<0.5,\"\",'2011 Survey responses'!ER99)","v":4},{"$f":"IF(('2011 Survey responses'!EO99+'2011 Survey responses'!EP99)>=2,AVERAGE('2011 Survey responses'!EO99,'2011 Survey responses'!EP99),\"\")","v":3},{"$f":"IF('2011 Survey responses'!EQ99<0.5,\"\",'2011 Survey responses'!EQ99)","v":2},{"$f":"IF('2011 Survey responses'!ET99<0.5,\"\",'2011 Survey responses'!ET99)","v":4},{"$f":"IF('2011 Survey responses'!EU99<0.5,\"\",'2011 Survey responses'!EU99)","v":4},{"$f":"IF('2011 Survey responses'!EW99<0.5,\"\",'2011 Survey responses'!EW99)","v":4},{"$f":"IF('2011 Survey responses'!EY99<0.5,\"\",'2011 Survey responses'!EY99)","v":4},{"$f":"IF('2011 Survey responses'!FU99<0.5,\"\",'2011 Survey responses'!FU99)","v":3},{"$f":"IF(('2011 Survey responses'!FL99+'2011 Survey responses'!FM99)>=2,AVERAGE('2011 Survey responses'!FL99,'2011 Survey responses'!FM99),\"\")","v":4},{"$f":"IF(('2011 Survey responses'!FO99+'2011 Survey responses'!FQ99)>=2,AVERAGE('2011 Survey responses'!FO99,'2011 Survey responses'!FQ99),\"\")","v":4},{"$f":"IF('2011 Survey responses'!FJ99<0.5,\"\",'2011 Survey responses'!FJ99)","v":4},{"$f":"IF('2011 Survey responses'!FT99<0.5,\"\",'2011 Survey responses'!FT99)","v":3},{"$f":"IF('2011 Survey responses'!FR99<0.5,\"\",'2011 Survey responses'!FR99)","v":3},{"$f":"IF('2011 Survey responses'!FK99<0.5,\"\",'2011 Survey responses'!FK99)","v":4},{"$f":"IF('2011 Survey responses'!FP99<0.5,\"\",'2011 Survey responses'!FP99)","v":4},{"$f":"IF('2011 Survey responses'!FN99<0.5,\"\",'2011 Survey responses'!FN99)","v":5},{"$f":"IF(('2011 Survey responses'!FE99+'2011 Survey responses'!FF99)>=2,AVERAGE('2011 Survey responses'!FE99,'2011 Survey responses'!FF99),\"\")","v":4},{"$f":"IF('2011 Survey responses'!FS99<0.5,\"\",'2011 Survey responses'!FS99)","v":4},{"$f":"IF('2011 Survey responses'!FV99<0.5,\"\",'2011 Survey responses'!FV99)","v":4},{"$f":"IF(('2011 Survey responses'!FG99+'2011 Survey responses'!FH99)>=2,AVERAGE('2011 Survey responses'!FG99,'2011 Survey responses'!FH99),\"\")","v":4.5},{"$f":"IF('2011 Survey responses'!FI99<0.5,\"\",'2011 Survey responses'!FI99)","v":4},{"$f":"IF('2011 Survey responses'!FE99<0.5,\"\",'2011 Survey responses'!FE99)","v":4},{"$f":"IF('2011 Survey responses'!FF99<0.5,\"\",'2011 Survey responses'!FF99)","v":4},{"$f":"IF('2011 Survey responses'!FG99<0.5,\"\",'2011 Survey responses'!FG99)","v":5},{"$f":"IF('2011 Survey responses'!FH99<0.5,\"\",'2011 Survey responses'!FH99)","v":4},{"$f":"IF('2011 Survey responses'!FL99<0.5,\"\",'2011 Survey responses'!FL99)","v":4},{"$f":"IF('2011 Survey responses'!FM99<0.5,\"\",'2011 Survey responses'!FM99)","v":4},{"$f":"IF('2011 Survey responses'!FO99<0.5,\"\",'2011 Survey responses'!FO99)","v":4},{"$f":"IF('2011 Survey responses'!FQ99<0.5,\"\",'2011 Survey responses'!FQ99)","v":4}]
["Liechtenstein",{"$f":"IF(SUM(F100)<1,\"\",AVERAGEIF('2011 Survey responses'!B100:CP100,\">1\"))","v":""},{"$f":"IF(SUM(F100)<1,\"\",AVERAGEIF('2011 Survey responses'!B100:AO100,\">1\"))","v":""},{"$f":"IF(SUM(F100)<1,\"\",AVERAGEIF('2011 Survey responses'!B100:BV100,\">1\"))","v":""},{"$f":"IF(SUM(F100)<1,\"\",AVERAGEIF('2011 Survey responses'!V100:BV100,\">1\"))","v":""},{"$f":"IF(SUM('2011 Survey responses'!B100:U100)<1,\"\",(AVERAGEIFS('2011 Survey responses'!B100:U100,'2011 Survey responses'!B100:U100,\">1\")))","v":""},{"$f":"IF(SUM('2011 Survey responses'!B100:H100)<1,\"\",(AVERAGEIFS('2011 Survey responses'!B100:H100,'2011 Survey responses'!B100:H100,\">1\")))","v":""},{"$f":"IF(SUM('2011 Survey responses'!I100:S100)<1,\"\",(AVERAGEIFS('2011 Survey responses'!I100:S100,'2011 Survey responses'!I100:S100,\">1\")))","v":""},{"$f":"IF(SUM('2011 Survey responses'!T100:U100)<2.1,\"\",(AVERAGEIFS('2011 Survey responses'!T100:U100,'2011 Survey responses'!T100:U100,\">1\")))","v":""},{"$f":"IF(SUM('2011 Survey responses'!B100:C100)<2.1,\"\",((SUMIF('2011 Survey responses'!B100:C100,\">1\")+SUMIF('2011 Survey responses'!F100,\">1\"))/(COUNTIF('2011 Survey responses'!B100:C100,\">1\")+COUNTIF('2011 Survey responses'!F100,\">1\"))))","v":""},{"$f":"IF(SUM('2011 Survey responses'!D100:E100)<2.1,\"\",(AVERAGEIFS('2011 Survey responses'!D100:E100,'2011 Survey responses'!D100:E100,\">1\")))","v":""},{"$f":"IF(('2011 Survey responses'!B100+'2011 Survey responses'!D100)<2.1,\"\",((SUMIF('2011 Survey responses'!B100,\">1\")+SUMIF('2011 Survey responses'!D100,\">1\")+SUMIF('2011 Survey responses'!F100,\">1\")+SUMIF('2011 Survey responses'!K100,\">1\"))/(COUNTIF('2011 Survey responses'!B100,\">1\")+COUNTIF('2011 Survey responses'!D100,\">1\")+COUNTIF('2011 Survey responses'!F100,\">1\")+COUNTIF('2011 Survey responses'!K100,\">1\"))))","v":""},{"$f":"IF(SUM('2011 Survey responses'!G100:H100)<2.1,\"\",(AVERAGEIFS('2011 Survey responses'!G100:H100,'2011 Survey responses'!G100:H100,\">1\")))","v":""},{"$f":"IF(SUM('2011 Survey responses'!F100:G100)<1.5,\"\",MAX('2011 Survey responses'!F100,'2011 Survey responses'!G100))","v":""},{"$f":"IF(SUM('2011 Survey responses'!G100:H100)<1,\"\",MAX('2011 Survey responses'!G100,'2011 Survey responses'!H100))","v":""},{"$f":"IF(SUM('2011 Survey responses'!I100:L100)<4.1,\"\",(AVERAGEIFS('2011 Survey responses'!I100:L100,'2011 Survey responses'!I100:L100,\">1\")))","v":""},{"$f":"IF(SUM('2011 Survey responses'!M100:S100)<4.1,\"\",(AVERAGEIFS('2011 Survey responses'!M100:S100,'2011 Survey responses'!M100:S100,\">1\")))","v":""},{"$f":"IF(SUM('2011 Survey responses'!T100:U100)<2.1,\"\",(AVERAGEIFS('2011 Survey responses'!T100:U100,'2011 Survey responses'!T100:U100,\">1\")))","v":""},{"$f":"IF(SUM('2011 Survey responses'!V100:AO100)<1,\"\",(AVERAGEIFS('2011 Survey responses'!V100:AO100,'2011 Survey responses'!V100:AO100,\">1\")))","v":""},{"$f":"IF(SUM('2011 Survey responses'!V100:AA100)<1,\"\",(AVERAGEIFS('2011 Survey responses'!V100:AA100,'2011 Survey responses'!V100:AA100,\">1\")))","v":""},{"$f":"IF(SUM('2011 Survey responses'!AB100:AH100)<1,\"\",(AVERAGEIFS('2011 Survey responses'!AB100:AH100,'2011 Survey responses'!AB100:AH100,\">1\")))","v":""},{"$f":"IF(SUM('2011 Survey responses'!AI100:AO100)<1,\"\",(AVERAGEIFS('2011 Survey responses'!AI100:AO100,'2011 Survey responses'!AI100:AO100,\">1\")))","v":""},{"$f":"IF(('2011 Survey responses'!Y100+'2011 Survey responses'!AI100+'2011 Survey responses'!AK100)<3.1,\"\",((SUMIF('2011 Survey responses'!Y100,\">1\")+SUMIF('2011 Survey responses'!AI100,\">1\")+SUMIF('2011 Survey responses'!AK100,\">1\")+SUMIF('2011 Survey responses'!AM100,\">1\"))/(COUNTIF('2011 Survey responses'!Y100,\">1\")+COUNTIF('2011 Survey responses'!AI100,\">1\")+COUNTIF('2011 Survey responses'!AK100,\">1\")+COUNTIF('2011 Survey responses'!AM100,\">1\"))))","v":""},{"$f":"IF(('2011 Survey responses'!W100)<1.1,\"\",('2011 Survey responses'!W100))","v":""},{"$f":"IF(('2011 Survey responses'!Y100)<1.1,\"\",('2011 Survey responses'!Y100))","v":""},{"$f":"IF(('2011 Survey responses'!Z100)<1.1,\"\",('2011 Survey responses'!Z100))","v":""},{"$f":"IF(('2011 Survey responses'!V100+'2011 Survey responses'!X100+'2011 Survey responses'!AA100)<3.1,\"\",((SUMIF('2011 Survey responses'!V100,\">1\")+SUMIF('2011 Survey responses'!X100,\">1\")+SUMIF('2011 Survey responses'!AA100,\">1\"))/(COUNTIF('2011 Survey responses'!V100,\">1\")+COUNTIF('2011 Survey responses'!X100,\">1\")+COUNTIF('2011 Survey responses'!AA100,\">1\"))))","v":""},{"$f":"IF(('2011 Survey responses'!V100+'2011 Survey responses'!Y100+'2011 Survey responses'!AA100)<3.1,\"\",((SUMIF('2011 Survey responses'!V100,\">1\")+SUMIF('2011 Survey responses'!Y100,\">1\")+SUMIF('2011 Survey responses'!AA100,\">1\"))/(COUNTIF('2011 Survey responses'!V100,\">1\")+COUNTIF('2011 Survey responses'!Y100,\">1\")+COUNTIF('2011 Survey responses'!AA100,\">1\"))))","v":""},{"$f":"IF(SUM('2011 Survey responses'!AB100:AH100)<1,\"\",(AVERAGEIFS('2011 Survey responses'!AB100:AH100,'2011 Survey responses'!AB100:AH100,\">1\")))","v":""},{"$f":"IF(SUM('2011 Survey responses'!AI100:AO100)<7.1,\"\",(AVERAGEIFS('2011 Survey responses'!AI100:AO100,'2011 Survey responses'!AI100:AO100,\">1\")))","v":""},{"$f":"IF(('2011 Survey responses'!AH100)<1.1,\"\",('2011 Survey responses'!AH100))","v":""},{"$f":"IF(SUM('2011 Survey responses'!AP100:BV100)<1,\"\",(AVERAGEIFS('2011 Survey responses'!AP100:BV100,'2011 Survey responses'!AP100:BV100,\">1\")))","v":""},{"$f":"IF(SUM('2011 Survey responses'!AP100:AS100)<4.1,\"\",(AVERAGEIFS('2011 Survey responses'!AP100:AS100,'2011 Survey responses'!AP100:AS100,\">1\")))","v":""},{"$f":"IF(SUM('2011 Survey responses'!AT100:BF100)<1,\"\",(AVERAGEIFS('2011 Survey responses'!AT100:BF100,'2011 Survey responses'!AT100:BF100,\">1\")))","v":""},{"$f":"IF(SUM('2011 Survey responses'!BG100:BO100)<1,\"\",(AVERAGEIFS('2011 Survey responses'!BG100:BO100,'2011 Survey responses'!BG100:BO100,\">1\")))","v":""},{"$f":"IF(SUM('2011 Survey responses'!BP100:BS100)<1,\"\",(AVERAGEIFS('2011 Survey responses'!BP100:BS100,'2011 Survey responses'!BP100:BS100,\">1\")))","v":""},{"$f":"IF(SUM('2011 Survey responses'!BT100:BV100)<3.1,\"\",(AVERAGEIFS('2011 Survey responses'!BT100:BV100,'2011 Survey responses'!BT100:BV100,\">1\")))","v":""},{"$f":"IF(('2011 Survey responses'!AQ100+'2011 Survey responses'!AR100+'2011 Survey responses'!BG100)<3.1,\"\",((SUMIF('2011 Survey responses'!AQ100,\">1\")+SUMIF('2011 Survey responses'!AR100,\">1\")+SUMIF('2011 Survey responses'!BG100,\">1\"))/(COUNTIF('2011 Survey responses'!AQ100,\">1\")+COUNTIF('2011 Survey responses'!AR100,\">1\")+COUNTIF('2011 Survey responses'!BG100,\">1\"))))","v":""},{"$f":"IF(SUM('2011 Survey responses'!AP100:AS100)<4.1,\"\",(AVERAGEIFS('2011 Survey responses'!AP100:AS100,'2011 Survey responses'!AP100:AS100,\">1\")))","v":""},{"$f":"IF(('2011 Survey responses'!AU100+'2011 Survey responses'!AX100+'2011 Survey responses'!BA100+'2011 Survey responses'!BC100+'2011 Survey responses'!BD100)<5.1,\"\",(SUMIF('2011 Survey responses'!AU100,\">1\")+SUMIF('2011 Survey responses'!AX100,\">1\")+SUMIF('2011 Survey responses'!BA100,\">1\")+SUMIF('2011 Survey responses'!BC100,\">1\")+SUMIF('2011 Survey responses'!BD100,\">1\"))/(COUNTIF('2011 Survey responses'!AU100,\">1\")+COUNTIF('2011 Survey responses'!AX100,\">1\")+COUNTIF('2011 Survey responses'!BA100,\">1\")+COUNTIF('2011 Survey responses'!BC100,\">1\")+COUNTIF('2011 Survey responses'!BD100,\">1\")))","v":""},{"$f":"IF(('2011 Survey responses'!AT100)<1.1,\"\",('2011 Survey responses'!AT100))","v":""},{"$f":"IF(SUM('2011 Survey responses'!AV100:AW100)<2.1,\"\",(AVERAGEIFS('2011 Survey responses'!AV100:AW100,'2011 Survey responses'!AV100:AW100,\">1\")))","v":""},{"$f":"IF(('2011 Survey responses'!AW100+'2011 Survey responses'!AY100)<2.1,\"\",(SUMIF('2011 Survey responses'!AW100,\">1\")+SUMIF('2011 Survey responses'!AY100,\">1\"))/(COUNTIF('2011 Survey responses'!AW100,\">1\")+COUNTIF('2011 Survey responses'!AY100,\">1\")))","v":""},{"$f":"IF(('2011 Survey responses'!AZ100)<1.1,\"\",('2011 Survey responses'!AZ100))","v":""},null,null,null,null,{"$f":"IF(('2011 Survey responses'!BE100)<1.1,\"\",('2011 Survey responses'!BE100))","v":""},{"$f":"IF(('2011 Survey responses'!AY100+'2011 Survey responses'!BB100+'2011 Survey responses'!BF100)<3.1,\"\",(SUMIF('2011 Survey responses'!AY100,\">1\")+SUMIF('2011 Survey responses'!BB100,\">1\")+SUMIF('2011 Survey responses'!BF100,\">1\"))/(COUNTIF('2011 Survey responses'!AY100,\">1\")+COUNTIF('2011 Survey responses'!BB100,\">1\")+COUNTIF('2011 Survey responses'!BF100,\">1\")))","v":""},"",{"$f":"IF(SUM('2011 Survey responses'!BT100:BV100)<3.1,\"\",(AVERAGEIFS('2011 Survey responses'!BT100:BV100,'2011 Survey responses'!BT100:BV100,\">1\")))","v":""},{"$f":"IF(SUM('2011 Survey responses'!BW100:CP100)<1,\"\",(AVERAGEIFS('2011 Survey responses'!BW100:CP100,'2011 Survey responses'!BW100:CP100,\">1\")))","v":""},{"$f":"IF(SUM('2011 Survey responses'!BW100:CF100)<1,\"\",(AVERAGEIFS('2011 Survey responses'!BW100:CF100,'2011 Survey responses'!BW100:CF100,\">1\")))","v":""},{"$f":"IF(SUM('2011 Survey responses'!CG100:CP100)<1,\"\",(AVERAGEIFS('2011 Survey responses'!CG100:CP100,'2011 Survey responses'!CG100:CP100,\">1\")))","v":""},{"$f":"IF(SUM('2011 Survey responses'!BX100:CF100)<1,\"\",(AVERAGEIFS('2011 Survey responses'!BX100:CF100,'2011 Survey responses'!BX100:CF100,\">1\")))","v":""},{"$f":"IF(SUM('2011 Survey responses'!CH100:CP100)<1,\"\",(AVERAGEIFS('2011 Survey responses'!CH100:CP100,'2011 Survey responses'!CH100:CP100,\">1\")))","v":""},{"$f":"IF(SUM('2011 Survey responses'!BW100:CP100)<1,\"\",(AVERAGEIFS('2011 Survey responses'!BW100:CP100,'2011 Survey responses'!BW100:CP100,\">1\")))","v":""},{"$f":"IF(('2011 Survey responses'!BW100+'2011 Survey responses'!CG100)<2.1,\"\",(SUMIF('2011 Survey responses'!BW100,\">1\")+SUMIF('2011 Survey responses'!CG100,\">1\"))/(COUNTIF('2011 Survey responses'!BW100,\">1\")+COUNTIF('2011 Survey responses'!CG100,\">1\")))","v":""},{"$f":"IF(('2011 Survey responses'!BX100+'2011 Survey responses'!CH100)<2.1,\"\",(SUMIF('2011 Survey responses'!BX100,\">1\")+SUMIF('2011 Survey responses'!CH100,\">1\"))/(COUNTIF('2011 Survey responses'!BX100,\">1\")+COUNTIF('2011 Survey responses'!CH100,\">1\")))","v":""},{"$f":"IF(('2011 Survey responses'!BY100+'2011 Survey responses'!CI100)<2.1,\"\",(SUMIF('2011 Survey responses'!BY100,\">1\")+SUMIF('2011 Survey responses'!CI100,\">1\"))/(COUNTIF('2011 Survey responses'!BY100,\">1\")+COUNTIF('2011 Survey responses'!CI100,\">1\")))","v":""},{"$f":"IF('2011 Survey responses'!CQ100<0.5,\"\",'2011 Survey responses'!CQ100)","v":""},{"$f":"IF('2011 Survey responses'!CR100<0.5,\"\",'2011 Survey responses'!CR100)","v":""},{"$f":"IF('2011 Survey responses'!CS100<0.5,\"\",'2011 Survey responses'!CS100)","v":""},{"$f":"IF('2011 Survey responses'!CT100<0.5,\"\",'2011 Survey responses'!CT100)","v":""},{"$f":"IF('2011 Survey responses'!CU100<0.5,\"\",'2011 Survey responses'!CU100)","v":""},{"$f":"IF('2011 Survey responses'!CV100<0.5,\"\",'2011 Survey responses'!CV100)","v":""},{"$f":"IF(SUM('2011 Survey responses'!CW100:DL100)<1,\"\",(AVERAGE('2011 Survey responses'!CW100:DL100)))","v":""},{"$f":"IF(SUM('2011 Survey responses'!CW100:CZ100)<1,\"\",(AVERAGE('2011 Survey responses'!CW100:CZ100)))","v":""},{"$f":"IF(SUM('2011 Survey responses'!DA100:DD100)<1,\"\",(AVERAGE('2011 Survey responses'!DA100:DD100)))","v":""},{"$f":"IF(SUM('2011 Survey responses'!DE100:DH100)<1,\"\",(AVERAGE('2011 Survey responses'!DE100:DH100)))","v":""},{"$f":"IF(SUM('2011 Survey responses'!DI100:DL100)<1,\"\",(AVERAGE('2011 Survey responses'!DI100:DL100)))","v":""},{"$f":"IF(('2011 Survey responses'!CW100+'2011 Survey responses'!DA100+'2011 Survey responses'!DE100+'2011 Survey responses'!DI100)<1,\"\",AVERAGE('2011 Survey responses'!CW100,'2011 Survey responses'!DA100,'2011 Survey responses'!DE100,'2011 Survey responses'!DI100))","v":""},{"$f":"IF(('2011 Survey responses'!CX100+'2011 Survey responses'!DB100+'2011 Survey responses'!DF100+'2011 Survey responses'!DJ100)<1,\"\",AVERAGE('2011 Survey responses'!CX100,'2011 Survey responses'!DB100,'2011 Survey responses'!DF100,'2011 Survey responses'!DJ100))","v":""},{"$f":"IF(('2011 Survey responses'!CY100+'2011 Survey responses'!DC100+'2011 Survey responses'!DG100+'2011 Survey responses'!DK100)<1,\"\",AVERAGE('2011 Survey responses'!CY100,'2011 Survey responses'!DC100,'2011 Survey responses'!DG100,'2011 Survey responses'!DK100))","v":""},{"$f":"IF(('2011 Survey responses'!CZ100+'2011 Survey responses'!DD100+'2011 Survey responses'!DH100+'2011 Survey responses'!DL100)<1,\"\",AVERAGE('2011 Survey responses'!CZ100,'2011 Survey responses'!DD100,'2011 Survey responses'!DH100,'2011 Survey responses'!DL100))","v":""},{"$f":"IF('2011 Survey responses'!CW100<0.5,\"\",'2011 Survey responses'!CW100)","v":""},{"$f":"IF('2011 Survey responses'!CX100<0.5,\"\",'2011 Survey responses'!CX100)","v":""},{"$f":"IF('2011 Survey responses'!CY100<0.5,\"\",'2011 Survey responses'!CY100)","v":""},{"$f":"IF('2011 Survey responses'!CZ100<0.5,\"\",'2011 Survey responses'!CZ100)","v":""},{"$f":"IF('2011 Survey responses'!DA100<0.5,\"\",'2011 Survey responses'!DA100)","v":""},{"$f":"IF('2011 Survey responses'!DB100<0.5,\"\",'2011 Survey responses'!DB100)","v":""},{"$f":"IF('2011 Survey responses'!DC100<0.5,\"\",'2011 Survey responses'!DC100)","v":""},{"$f":"IF('2011 Survey responses'!DD100<0.5,\"\",'2011 Survey responses'!DD100)","v":""},{"$f":"IF('2011 Survey responses'!DE100<0.5,\"\",'2011 Survey responses'!DE100)","v":""},{"$f":"IF('2011 Survey responses'!DF100<0.5,\"\",'2011 Survey responses'!DF100)","v":""},{"$f":"IF('2011 Survey responses'!DG100<0.5,\"\",'2011 Survey responses'!DG100)","v":""},{"$f":"IF('2011 Survey responses'!DH100<0.5,\"\",'2011 Survey responses'!DH100)","v":""},{"$f":"IF('2011 Survey responses'!DI100<0.5,\"\",'2011 Survey responses'!DI100)","v":""},{"$f":"IF('2011 Survey responses'!DJ100<0.5,\"\",'2011 Survey responses'!DJ100)","v":""},{"$f":"IF('2011 Survey responses'!DK100<0.5,\"\",'2011 Survey responses'!DK100)","v":""},{"$f":"IF('2011 Survey responses'!DL100<0.5,\"\",'2011 Survey responses'!DL100)","v":""},{"$f":"IF('2011 Survey responses'!DU100=4,4,IF('2011 Survey responses'!DU100=5,4,\"\"))","v":""},{"$f":"IF('2011 Survey responses'!DV100=4,3,IF('2011 Survey responses'!DV100=5,3,\"\"))","v":""},"",{"$f":"IF(CQ100=2,CQ100,IF(CO100=4,CO100,IF(CP100=3,CP100,IF('2011 Survey responses'!GT100=1,1,\"\"))))","v":""},{"$f":"IF('2011 Survey responses'!DO100<0.5,\"\",'2011 Survey responses'!DO100)","v":""},{"$f":"IF('2011 Survey responses'!DP100<0.5,\"\",'2011 Survey responses'!DP100)","v":""},{"$f":"IF('2011 Survey responses'!DQ100<0.5,\"\",'2011 Survey responses'!DQ100)","v":""},{"$f":"IF('2011 Survey responses'!DR100<0.5,\"\",'2011 Survey responses'!DR100)","v":""},{"$f":"IF('2011 Survey responses'!DS100<0.5,\"\",'2011 Survey responses'!DS100)","v":""},{"$f":"IF('2011 Survey responses'!DT100<0.5,\"\",'2011 Survey responses'!DT100)","v":""},{"$f":"IF('2011 Survey responses'!DU100<0.5,\"\",'2011 Survey responses'!DU100)","v":""},{"$f":"IF('2011 Survey responses'!DV100<0.5,\"\",'2011 Survey responses'!DV100)","v":""},{"$f":"IF('2011 Survey responses'!DW100<0.5,\"\",'2011 Survey responses'!DW100)","v":""},{"$f":"IF('2011 Survey responses'!DX100<0.5,\"\",'2011 Survey responses'!DX100)","v":""},{"$f":"IF('2011 Survey responses'!DY100<0.5,\"\",'2011 Survey responses'!DY100)","v":""},{"$f":"IF('2011 Survey responses'!DZ100<0.5,\"\",'2011 Survey responses'!DZ100)","v":""},{"$f":"IF('2011 Survey responses'!EA100<0.5,\"\",'2011 Survey responses'!EA100)","v":""},{"$f":"IF('2011 Survey responses'!EB100<0.5,\"\",'2011 Survey responses'!EB100)","v":""},{"$f":"IF('2011 Survey responses'!EC100<0.5,\"\",'2011 Survey responses'!EC100)","v":""},{"$f":"IF('2011 Survey responses'!ED100<0.5,\"\",'2011 Survey responses'!ED100)","v":""},{"$f":"IF('2011 Survey responses'!EE100<0.5,\"\",'2011 Survey responses'!EE100)","v":""},{"$f":"IF('2011 Survey responses'!EF100<0.5,\"\",'2011 Survey responses'!EF100)","v":""},{"$f":"IF('2011 Survey responses'!EG100<0.5,\"\",'2011 Survey responses'!EG100)","v":""},{"$f":"IF('2011 Survey responses'!EH100<0.5,\"\",'2011 Survey responses'!EH100)","v":""},{"$f":"IF('2011 Survey responses'!EI100<0.5,\"\",'2011 Survey responses'!EI100)","v":""},{"$f":"IF('2011 Survey responses'!EJ100<0.5,\"\",'2011 Survey responses'!EJ100)","v":""},{"$f":"IF('2011 Survey responses'!EK100<0.5,\"\",'2011 Survey responses'!EK100)","v":""},{"$f":"IF('2011 Survey responses'!EL100<0.5,\"\",'2011 Survey responses'!EL100)","v":""},{"$f":"IF('2011 Survey responses'!EM100<0.5,\"\",'2011 Survey responses'!EM100)","v":""},{"$f":"IF('2011 Survey responses'!EN100<0.5,\"\",'2011 Survey responses'!EN100)","v":""},{"$f":"IF('2011 Survey responses'!EO100<0.5,\"\",'2011 Survey responses'!EO100)","v":""},{"$f":"IF('2011 Survey responses'!EP100<0.5,\"\",'2011 Survey responses'!EP100)","v":""},{"$f":"IF(('2011 Survey responses'!EW100+'2011 Survey responses'!EX100)>=2,AVERAGE('2011 Survey responses'!EW100,'2011 Survey responses'!EY100),\"\")","v":""},{"$f":"IF('2011 Survey responses'!EX100<0.5,\"\",'2011 Survey responses'!EX100)","v":""},{"$f":"IF('2011 Survey responses'!EZ100<0.5,\"\",'2011 Survey responses'!EZ100)","v":""},{"$f":"IF('2011 Survey responses'!FB100<0.5,\"\",'2011 Survey responses'!FB100)","v":""},{"$f":"IF('2011 Survey responses'!FD100<0.5,\"\",'2011 Survey responses'!FD100)","v":""},{"$f":"IF('2011 Survey responses'!FC100<0.5,\"\",'2011 Survey responses'!FC100)","v":""},{"$f":"IF(('2011 Survey responses'!EM100+'2011 Survey responses'!EN100)>=2,AVERAGE('2011 Survey responses'!EM100,'2011 Survey responses'!EN100),\"\")","v":""},{"$f":"IF('2011 Survey responses'!ES100<0.5,\"\",'2011 Survey responses'!ES100)","v":""},{"$f":"IF(('2011 Survey responses'!ET100+'2011 Survey responses'!EU100)>=2,AVERAGE('2011 Survey responses'!ET100,'2011 Survey responses'!EU100),\"\")","v":""},{"$f":"IF('2011 Survey responses'!EV100<0.5,\"\",'2011 Survey responses'!EV100)","v":""},{"$f":"IF('2011 Survey responses'!FA100<0.5,\"\",'2011 Survey responses'!FA100)","v":""},{"$f":"IF('2011 Survey responses'!ER100<0.5,\"\",'2011 Survey responses'!ER100)","v":""},{"$f":"IF(('2011 Survey responses'!EO100+'2011 Survey responses'!EP100)>=2,AVERAGE('2011 Survey responses'!EO100,'2011 Survey responses'!EP100),\"\")","v":""},{"$f":"IF('2011 Survey responses'!EQ100<0.5,\"\",'2011 Survey responses'!EQ100)","v":""},{"$f":"IF('2011 Survey responses'!ET100<0.5,\"\",'2011 Survey responses'!ET100)","v":""},{"$f":"IF('2011 Survey responses'!EU100<0.5,\"\",'2011 Survey responses'!EU100)","v":""},{"$f":"IF('2011 Survey responses'!EW100<0.5,\"\",'2011 Survey responses'!EW100)","v":""},{"$f":"IF('2011 Survey responses'!EY100<0.5,\"\",'2011 Survey responses'!EY100)","v":""},{"$f":"IF('2011 Survey responses'!FU100<0.5,\"\",'2011 Survey responses'!FU100)","v":""},{"$f":"IF(('2011 Survey responses'!FL100+'2011 Survey responses'!FM100)>=2,AVERAGE('2011 Survey responses'!FL100,'2011 Survey responses'!FM100),\"\")","v":""},{"$f":"IF(('2011 Survey responses'!FO100+'2011 Survey responses'!FQ100)>=2,AVERAGE('2011 Survey responses'!FO100,'2011 Survey responses'!FQ100),\"\")","v":""},{"$f":"IF('2011 Survey responses'!FJ100<0.5,\"\",'2011 Survey responses'!FJ100)","v":""},{"$f":"IF('2011 Survey responses'!FT100<0.5,\"\",'2011 Survey responses'!FT100)","v":""},{"$f":"IF('2011 Survey responses'!FR100<0.5,\"\",'2011 Survey responses'!FR100)","v":""},{"$f":"IF('2011 Survey responses'!FK100<0.5,\"\",'2011 Survey responses'!FK100)","v":""},{"$f":"IF('2011 Survey responses'!FP100<0.5,\"\",'2011 Survey responses'!FP100)","v":""},{"$f":"IF('2011 Survey responses'!FN100<0.5,\"\",'2011 Survey responses'!FN100)","v":""},{"$f":"IF(('2011 Survey responses'!FE100+'2011 Survey responses'!FF100)>=2,AVERAGE('2011 Survey responses'!FE100,'2011 Survey responses'!FF100),\"\")","v":""},{"$f":"IF('2011 Survey responses'!FS100<0.5,\"\",'2011 Survey responses'!FS100)","v":""},{"$f":"IF('2011 Survey responses'!FV100<0.5,\"\",'2011 Survey responses'!FV100)","v":""},{"$f":"IF(('2011 Survey responses'!FG100+'2011 Survey responses'!FH100)>=2,AVERAGE('2011 Survey responses'!FG100,'2011 Survey responses'!FH100),\"\")","v":""},{"$f":"IF('2011 Survey responses'!FI100<0.5,\"\",'2011 Survey responses'!FI100)","v":""},{"$f":"IF('2011 Survey responses'!FE100<0.5,\"\",'2011 Survey responses'!FE100)","v":""},{"$f":"IF('2011 Survey responses'!FF100<0.5,\"\",'2011 Survey responses'!FF100)","v":""},{"$f":"IF('2011 Survey responses'!FG100<0.5,\"\",'2011 Survey responses'!FG100)","v":""},{"$f":"IF('2011 Survey responses'!FH100<0.5,\"\",'2011 Survey responses'!FH100)","v":""},{"$f":"IF('2011 Survey responses'!FL100<0.5,\"\",'2011 Survey responses'!FL100)","v":""},{"$f":"IF('2011 Survey responses'!FM100<0.5,\"\",'2011 Survey responses'!FM100)","v":""},{"$f":"IF('2011 Survey responses'!FO100<0.5,\"\",'2011 Survey responses'!FO100)","v":""},{"$f":"IF('2011 Survey responses'!FQ100<0.5,\"\",'2011 Survey responses'!FQ100)","v":""}]
["Lithuania",{"$f":"IF(SUM(F101)<1,\"\",AVERAGEIF('2011 Survey responses'!B101:CP101,\">1\"))","v":5.4683544303797467},{"$f":"IF(SUM(F101)<1,\"\",AVERAGEIF('2011 Survey responses'!B101:AO101,\">1\"))","v":5.7027027027027026},{"$f":"IF(SUM(F101)<1,\"\",AVERAGEIF('2011 Survey responses'!B101:BV101,\">1\"))","v":5.6307692307692312},{"$f":"IF(SUM(F101)<1,\"\",AVERAGEIF('2011 Survey responses'!V101:BV101,\">1\"))","v":5.5777777777777775},{"$f":"IF(SUM('2011 Survey responses'!B101:U101)<1,\"\",(AVERAGEIFS('2011 Survey responses'!B101:U101,'2011 Survey responses'!B101:U101,\">1\")))","v":5.75},{"$f":"IF(SUM('2011 Survey responses'!B101:H101)<1,\"\",(AVERAGEIFS('2011 Survey responses'!B101:H101,'2011 Survey responses'!B101:H101,\">1\")))","v":6},{"$f":"IF(SUM('2011 Survey responses'!I101:S101)<1,\"\",(AVERAGEIFS('2011 Survey responses'!I101:S101,'2011 Survey responses'!I101:S101,\">1\")))","v":5.7272727272727275},{"$f":"IF(SUM('2011 Survey responses'!T101:U101)<2.1,\"\",(AVERAGEIFS('2011 Survey responses'!T101:U101,'2011 Survey responses'!T101:U101,\">1\")))","v":5},{"$f":"IF(SUM('2011 Survey responses'!B101:C101)<2.1,\"\",((SUMIF('2011 Survey responses'!B101:C101,\">1\")+SUMIF('2011 Survey responses'!F101,\">1\"))/(COUNTIF('2011 Survey responses'!B101:C101,\">1\")+COUNTIF('2011 Survey responses'!F101,\">1\"))))","v":6},{"$f":"IF(SUM('2011 Survey responses'!D101:E101)<2.1,\"\",(AVERAGEIFS('2011 Survey responses'!D101:E101,'2011 Survey responses'!D101:E101,\">1\")))","v":6},{"$f":"IF(('2011 Survey responses'!B101+'2011 Survey responses'!D101)<2.1,\"\",((SUMIF('2011 Survey responses'!B101,\">1\")+SUMIF('2011 Survey responses'!D101,\">1\")+SUMIF('2011 Survey responses'!F101,\">1\")+SUMIF('2011 Survey responses'!K101,\">1\"))/(COUNTIF('2011 Survey responses'!B101,\">1\")+COUNTIF('2011 Survey responses'!D101,\">1\")+COUNTIF('2011 Survey responses'!F101,\">1\")+COUNTIF('2011 Survey responses'!K101,\">1\"))))","v":6},{"$f":"IF(SUM('2011 Survey responses'!G101:H101)<2.1,\"\",(AVERAGEIFS('2011 Survey responses'!G101:H101,'2011 Survey responses'!G101:H101,\">1\")))","v":6},{"$f":"IF(SUM('2011 Survey responses'!F101:G101)<1.5,\"\",MAX('2011 Survey responses'!F101,'2011 Survey responses'!G101))","v":6},{"$f":"IF(SUM('2011 Survey responses'!G101:H101)<1,\"\",MAX('2011 Survey responses'!G101,'2011 Survey responses'!H101))","v":6},{"$f":"IF(SUM('2011 Survey responses'!I101:L101)<4.1,\"\",(AVERAGEIFS('2011 Survey responses'!I101:L101,'2011 Survey responses'!I101:L101,\">1\")))","v":5.75},{"$f":"IF(SUM('2011 Survey responses'!M101:S101)<4.1,\"\",(AVERAGEIFS('2011 Survey responses'!M101:S101,'2011 Survey responses'!M101:S101,\">1\")))","v":5.7142857142857144},{"$f":"IF(SUM('2011 Survey responses'!T101:U101)<2.1,\"\",(AVERAGEIFS('2011 Survey responses'!T101:U101,'2011 Survey responses'!T101:U101,\">1\")))","v":5},{"$f":"IF(SUM('2011 Survey responses'!V101:AO101)<1,\"\",(AVERAGEIFS('2011 Survey responses'!V101:AO101,'2011 Survey responses'!V101:AO101,\">1\")))","v":5.6470588235294121},{"$f":"IF(SUM('2011 Survey responses'!V101:AA101)<1,\"\",(AVERAGEIFS('2011 Survey responses'!V101:AA101,'2011 Survey responses'!V101:AA101,\">1\")))","v":5.8},{"$f":"IF(SUM('2011 Survey responses'!AB101:AH101)<1,\"\",(AVERAGEIFS('2011 Survey responses'!AB101:AH101,'2011 Survey responses'!AB101:AH101,\">1\")))","v":6},{"$f":"IF(SUM('2011 Survey responses'!AI101:AO101)<1,\"\",(AVERAGEIFS('2011 Survey responses'!AI101:AO101,'2011 Survey responses'!AI101:AO101,\">1\")))","v":5},{"$f":"IF(('2011 Survey responses'!Y101+'2011 Survey responses'!AI101+'2011 Survey responses'!AK101)<3.1,\"\",((SUMIF('2011 Survey responses'!Y101,\">1\")+SUMIF('2011 Survey responses'!AI101,\">1\")+SUMIF('2011 Survey responses'!AK101,\">1\")+SUMIF('2011 Survey responses'!AM101,\">1\"))/(COUNTIF('2011 Survey responses'!Y101,\">1\")+COUNTIF('2011 Survey responses'!AI101,\">1\")+COUNTIF('2011 Survey responses'!AK101,\">1\")+COUNTIF('2011 Survey responses'!AM101,\">1\"))))","v":5.333333333333333},{"$f":"IF(('2011 Survey responses'!W101)<1.1,\"\",('2011 Survey responses'!W101))","v":6},{"$f":"IF(('2011 Survey responses'!Y101)<1.1,\"\",('2011 Survey responses'!Y101))","v":6},{"$f":"IF(('2011 Survey responses'!Z101)<1.1,\"\",('2011 Survey responses'!Z101))","v":5},{"$f":"IF(('2011 Survey responses'!V101+'2011 Survey responses'!X101+'2011 Survey responses'!AA101)<3.1,\"\",((SUMIF('2011 Survey responses'!V101,\">1\")+SUMIF('2011 Survey responses'!X101,\">1\")+SUMIF('2011 Survey responses'!AA101,\">1\"))/(COUNTIF('2011 Survey responses'!V101,\">1\")+COUNTIF('2011 Survey responses'!X101,\">1\")+COUNTIF('2011 Survey responses'!AA101,\">1\"))))","v":6},{"$f":"IF(('2011 Survey responses'!V101+'2011 Survey responses'!Y101+'2011 Survey responses'!AA101)<3.1,\"\",((SUMIF('2011 Survey responses'!V101,\">1\")+SUMIF('2011 Survey responses'!Y101,\">1\")+SUMIF('2011 Survey responses'!AA101,\">1\"))/(COUNTIF('2011 Survey responses'!V101,\">1\")+COUNTIF('2011 Survey responses'!Y101,\">1\")+COUNTIF('2011 Survey responses'!AA101,\">1\"))))","v":6},{"$f":"IF(SUM('2011 Survey responses'!AB101:AH101)<1,\"\",(AVERAGEIFS('2011 Survey responses'!AB101:AH101,'2011 Survey responses'!AB101:AH101,\">1\")))","v":6},{"$f":"IF(SUM('2011 Survey responses'!AI101:AO101)<7.1,\"\",(AVERAGEIFS('2011 Survey responses'!AI101:AO101,'2011 Survey responses'!AI101:AO101,\">1\")))","v":5},{"$f":"IF(('2011 Survey responses'!AH101)<1.1,\"\",('2011 Survey responses'!AH101))","v":6},{"$f":"IF(SUM('2011 Survey responses'!AP101:BV101)<1,\"\",(AVERAGEIFS('2011 Survey responses'!AP101:BV101,'2011 Survey responses'!AP101:BV101,\">1\")))","v":5.5357142857142856},{"$f":"IF(SUM('2011 Survey responses'!AP101:AS101)<4.1,\"\",(AVERAGEIFS('2011 Survey responses'!AP101:AS101,'2011 Survey responses'!AP101:AS101,\">1\")))","v":6},{"$f":"IF(SUM('2011 Survey responses'!AT101:BF101)<1,\"\",(AVERAGEIFS('2011 Survey responses'!AT101:BF101,'2011 Survey responses'!AT101:BF101,\">1\")))","v":5.333333333333333},{"$f":"IF(SUM('2011 Survey responses'!BG101:BO101)<1,\"\",(AVERAGEIFS('2011 Survey responses'!BG101:BO101,'2011 Survey responses'!BG101:BO101,\">1\")))","v":5.8888888888888893},{"$f":"IF(SUM('2011 Survey responses'!BP101:BS101)<1,\"\",(AVERAGEIFS('2011 Survey responses'!BP101:BS101,'2011 Survey responses'!BP101:BS101,\">1\")))","v":4.333333333333333},{"$f":"IF(SUM('2011 Survey responses'!BT101:BV101)<3.1,\"\",(AVERAGEIFS('2011 Survey responses'!BT101:BV101,'2011 Survey responses'!BT101:BV101,\">1\")))","v":5.666666666666667},{"$f":"IF(('2011 Survey responses'!AQ101+'2011 Survey responses'!AR101+'2011 Survey responses'!BG101)<3.1,\"\",((SUMIF('2011 Survey responses'!AQ101,\">1\")+SUMIF('2011 Survey responses'!AR101,\">1\")+SUMIF('2011 Survey responses'!BG101,\">1\"))/(COUNTIF('2011 Survey responses'!AQ101,\">1\")+COUNTIF('2011 Survey responses'!AR101,\">1\")+COUNTIF('2011 Survey responses'!BG101,\">1\"))))","v":6},{"$f":"IF(SUM('2011 Survey responses'!AP101:AS101)<4.1,\"\",(AVERAGEIFS('2011 Survey responses'!AP101:AS101,'2011 Survey responses'!AP101:AS101,\">1\")))","v":6},{"$f":"IF(('2011 Survey responses'!AU101+'2011 Survey responses'!AX101+'2011 Survey responses'!BA101+'2011 Survey responses'!BC101+'2011 Survey responses'!BD101)<5.1,\"\",(SUMIF('2011 Survey responses'!AU101,\">1\")+SUMIF('2011 Survey responses'!AX101,\">1\")+SUMIF('2011 Survey responses'!BA101,\">1\")+SUMIF('2011 Survey responses'!BC101,\">1\")+SUMIF('2011 Survey responses'!BD101,\">1\"))/(COUNTIF('2011 Survey responses'!AU101,\">1\")+COUNTIF('2011 Survey responses'!AX101,\">1\")+COUNTIF('2011 Survey responses'!BA101,\">1\")+COUNTIF('2011 Survey responses'!BC101,\">1\")+COUNTIF('2011 Survey responses'!BD101,\">1\")))","v":5.333333333333333},{"$f":"IF(('2011 Survey responses'!AT101)<1.1,\"\",('2011 Survey responses'!AT101))","v":6},{"$f":"IF(SUM('2011 Survey responses'!AV101:AW101)<2.1,\"\",(AVERAGEIFS('2011 Survey responses'!AV101:AW101,'2011 Survey responses'!AV101:AW101,\">1\")))","v":6},{"$f":"IF(('2011 Survey responses'!AW101+'2011 Survey responses'!AY101)<2.1,\"\",(SUMIF('2011 Survey responses'!AW101,\">1\")+SUMIF('2011 Survey responses'!AY101,\">1\"))/(COUNTIF('2011 Survey responses'!AW101,\">1\")+COUNTIF('2011 Survey responses'!AY101,\">1\")))","v":""},{"$f":"IF(('2011 Survey responses'!AZ101)<1.1,\"\",('2011 Survey responses'!AZ101))","v":5},5,1,1,5,{"$f":"IF(('2011 Survey responses'!BE101)<1.1,\"\",('2011 Survey responses'!BE101))","v":5},{"$f":"IF(('2011 Survey responses'!AY101+'2011 Survey responses'!BB101+'2011 Survey responses'!BF101)<3.1,\"\",(SUMIF('2011 Survey responses'!AY101,\">1\")+SUMIF('2011 Survey responses'!BB101,\">1\")+SUMIF('2011 Survey responses'!BF101,\">1\"))/(COUNTIF('2011 Survey responses'!AY101,\">1\")+COUNTIF('2011 Survey responses'!BB101,\">1\")+COUNTIF('2011 Survey responses'!BF101,\">1\")))","v":5},5.1111111111111107,{"$f":"IF(SUM('2011 Survey responses'!BT101:BV101)<3.1,\"\",(AVERAGEIFS('2011 Survey responses'!BT101:BV101,'2011 Survey responses'!BT101:BV101,\">1\")))","v":5.666666666666667},{"$f":"IF(SUM('2011 Survey responses'!BW101:CP101)<1,\"\",(AVERAGEIFS('2011 Survey responses'!BW101:CP101,'2011 Survey responses'!BW101:CP101,\">1\")))","v":4.7142857142857144},{"$f":"IF(SUM('2011 Survey responses'!BW101:CF101)<1,\"\",(AVERAGEIFS('2011 Survey responses'!BW101:CF101,'2011 Survey responses'!BW101:CF101,\">1\")))","v":4.5714285714285712},{"$f":"IF(SUM('2011 Survey responses'!CG101:CP101)<1,\"\",(AVERAGEIFS('2011 Survey responses'!CG101:CP101,'2011 Survey responses'!CG101:CP101,\">1\")))","v":4.8571428571428568},{"$f":"IF(SUM('2011 Survey responses'!BX101:CF101)<1,\"\",(AVERAGEIFS('2011 Survey responses'!BX101:CF101,'2011 Survey responses'!BX101:CF101,\">1\")))","v":4.5},{"$f":"IF(SUM('2011 Survey responses'!CH101:CP101)<1,\"\",(AVERAGEIFS('2011 Survey responses'!CH101:CP101,'2011 Survey responses'!CH101:CP101,\">1\")))","v":4.833333333333333},{"$f":"IF(SUM('2011 Survey responses'!BW101:CP101)<1,\"\",(AVERAGEIFS('2011 Survey responses'!BW101:CP101,'2011 Survey responses'!BW101:CP101,\">1\")))","v":4.7142857142857144},{"$f":"IF(('2011 Survey responses'!BW101+'2011 Survey responses'!CG101)<2.1,\"\",(SUMIF('2011 Survey responses'!BW101,\">1\")+SUMIF('2011 Survey responses'!CG101,\">1\"))/(COUNTIF('2011 Survey responses'!BW101,\">1\")+COUNTIF('2011 Survey responses'!CG101,\">1\")))","v":5},{"$f":"IF(('2011 Survey responses'!BX101+'2011 Survey responses'!CH101)<2.1,\"\",(SUMIF('2011 Survey responses'!BX101,\">1\")+SUMIF('2011 Survey responses'!CH101,\">1\"))/(COUNTIF('2011 Survey responses'!BX101,\">1\")+COUNTIF('2011 Survey responses'!CH101,\">1\")))","v":""},{"$f":"IF(('2011 Survey responses'!BY101+'2011 Survey responses'!CI101)<2.1,\"\",(SUMIF('2011 Survey responses'!BY101,\">1\")+SUMIF('2011 Survey responses'!CI101,\">1\"))/(COUNTIF('2011 Survey responses'!BY101,\">1\")+COUNTIF('2011 Survey responses'!CI101,\">1\")))","v":5},{"$f":"IF('2011 Survey responses'!CQ101<0.5,\"\",'2011 Survey responses'!CQ101)","v":4},{"$f":"IF('2011 Survey responses'!CR101<0.5,\"\",'2011 Survey responses'!CR101)","v":1},{"$f":"IF('2011 Survey responses'!CS101<0.5,\"\",'2011 Survey responses'!CS101)","v":1},{"$f":"IF('2011 Survey responses'!CT101<0.5,\"\",'2011 Survey responses'!CT101)","v":1},{"$f":"IF('2011 Survey responses'!CU101<0.5,\"\",'2011 Survey responses'!CU101)","v":4},{"$f":"IF('2011 Survey responses'!CV101<0.5,\"\",'2011 Survey responses'!CV101)","v":1},{"$f":"IF(SUM('2011 Survey responses'!CW101:DL101)<1,\"\",(AVERAGE('2011 Survey responses'!CW101:DL101)))","v":4.0625},{"$f":"IF(SUM('2011 Survey responses'!CW101:CZ101)<1,\"\",(AVERAGE('2011 Survey responses'!CW101:CZ101)))","v":4},{"$f":"IF(SUM('2011 Survey responses'!DA101:DD101)<1,\"\",(AVERAGE('2011 Survey responses'!DA101:DD101)))","v":4},{"$f":"IF(SUM('2011 Survey responses'!DE101:DH101)<1,\"\",(AVERAGE('2011 Survey responses'!DE101:DH101)))","v":3.25},{"$f":"IF(SUM('2011 Survey responses'!DI101:DL101)<1,\"\",(AVERAGE('2011 Survey responses'!DI101:DL101)))","v":5},{"$f":"IF(('2011 Survey responses'!CW101+'2011 Survey responses'!DA101+'2011 Survey responses'!DE101+'2011 Survey responses'!DI101)<1,\"\",AVERAGE('2011 Survey responses'!CW101,'2011 Survey responses'!DA101,'2011 Survey responses'!DE101,'2011 Survey responses'!DI101))","v":4.75},{"$f":"IF(('2011 Survey responses'!CX101+'2011 Survey responses'!DB101+'2011 Survey responses'!DF101+'2011 Survey responses'!DJ101)<1,\"\",AVERAGE('2011 Survey responses'!CX101,'2011 Survey responses'!DB101,'2011 Survey responses'!DF101,'2011 Survey responses'!DJ101))","v":4.75},{"$f":"IF(('2011 Survey responses'!CY101+'2011 Survey responses'!DC101+'2011 Survey responses'!DG101+'2011 Survey responses'!DK101)<1,\"\",AVERAGE('2011 Survey responses'!CY101,'2011 Survey responses'!DC101,'2011 Survey responses'!DG101,'2011 Survey responses'!DK101))","v":2.75},{"$f":"IF(('2011 Survey responses'!CZ101+'2011 Survey responses'!DD101+'2011 Survey responses'!DH101+'2011 Survey responses'!DL101)<1,\"\",AVERAGE('2011 Survey responses'!CZ101,'2011 Survey responses'!DD101,'2011 Survey responses'!DH101,'2011 Survey responses'!DL101))","v":4},{"$f":"IF('2011 Survey responses'!CW101<0.5,\"\",'2011 Survey responses'!CW101)","v":5},{"$f":"IF('2011 Survey responses'!CX101<0.5,\"\",'2011 Survey responses'!CX101)","v":5},{"$f":"IF('2011 Survey responses'!CY101<0.5,\"\",'2011 Survey responses'!CY101)","v":2},{"$f":"IF('2011 Survey responses'!CZ101<0.5,\"\",'2011 Survey responses'!CZ101)","v":4},{"$f":"IF('2011 Survey responses'!DA101<0.5,\"\",'2011 Survey responses'!DA101)","v":5},{"$f":"IF('2011 Survey responses'!DB101<0.5,\"\",'2011 Survey responses'!DB101)","v":5},{"$f":"IF('2011 Survey responses'!DC101<0.5,\"\",'2011 Survey responses'!DC101)","v":2},{"$f":"IF('2011 Survey responses'!DD101<0.5,\"\",'2011 Survey responses'!DD101)","v":4},{"$f":"IF('2011 Survey responses'!DE101<0.5,\"\",'2011 Survey responses'!DE101)","v":4},{"$f":"IF('2011 Survey responses'!DF101<0.5,\"\",'2011 Survey responses'!DF101)","v":4},{"$f":"IF('2011 Survey responses'!DG101<0.5,\"\",'2011 Survey responses'!DG101)","v":2},{"$f":"IF('2011 Survey responses'!DH101<0.5,\"\",'2011 Survey responses'!DH101)","v":3},{"$f":"IF('2011 Survey responses'!DI101<0.5,\"\",'2011 Survey responses'!DI101)","v":5},{"$f":"IF('2011 Survey responses'!DJ101<0.5,\"\",'2011 Survey responses'!DJ101)","v":5},{"$f":"IF('2011 Survey responses'!DK101<0.5,\"\",'2011 Survey responses'!DK101)","v":5},{"$f":"IF('2011 Survey responses'!DL101<0.5,\"\",'2011 Survey responses'!DL101)","v":5},{"$f":"IF('2011 Survey responses'!DU101=4,4,IF('2011 Survey responses'!DU101=5,4,\"\"))","v":""},{"$f":"IF('2011 Survey responses'!DV101=4,3,IF('2011 Survey responses'!DV101=5,3,\"\"))","v":""},"",{"$f":"IF(CQ101=2,CQ101,IF(CO101=4,CO101,IF(CP101=3,CP101,IF('2011 Survey responses'!GT101=1,1,\"\"))))","v":1},{"$f":"IF('2011 Survey responses'!DO101<0.5,\"\",'2011 Survey responses'!DO101)","v":1},{"$f":"IF('2011 Survey responses'!DP101<0.5,\"\",'2011 Survey responses'!DP101)","v":1},{"$f":"IF('2011 Survey responses'!DQ101<0.5,\"\",'2011 Survey responses'!DQ101)","v":1},{"$f":"IF('2011 Survey responses'!DR101<0.5,\"\",'2011 Survey responses'!DR101)","v":1},{"$f":"IF('2011 Survey responses'!DS101<0.5,\"\",'2011 Survey responses'!DS101)","v":1},{"$f":"IF('2011 Survey responses'!DT101<0.5,\"\",'2011 Survey responses'!DT101)","v":1},{"$f":"IF('2011 Survey responses'!DU101<0.5,\"\",'2011 Survey responses'!DU101)","v":1},{"$f":"IF('2011 Survey responses'!DV101<0.5,\"\",'2011 Survey responses'!DV101)","v":1},{"$f":"IF('2011 Survey responses'!DW101<0.5,\"\",'2011 Survey responses'!DW101)","v":1},{"$f":"IF('2011 Survey responses'!DX101<0.5,\"\",'2011 Survey responses'!DX101)","v":1},{"$f":"IF('2011 Survey responses'!DY101<0.5,\"\",'2011 Survey responses'!DY101)","v":4},{"$f":"IF('2011 Survey responses'!DZ101<0.5,\"\",'2011 Survey responses'!DZ101)","v":4},{"$f":"IF('2011 Survey responses'!EA101<0.5,\"\",'2011 Survey responses'!EA101)","v":1},{"$f":"IF('2011 Survey responses'!EB101<0.5,\"\",'2011 Survey responses'!EB101)","v":1},{"$f":"IF('2011 Survey responses'!EC101<0.5,\"\",'2011 Survey responses'!EC101)","v":1},{"$f":"IF('2011 Survey responses'!ED101<0.5,\"\",'2011 Survey responses'!ED101)","v":4},{"$f":"IF('2011 Survey responses'!EE101<0.5,\"\",'2011 Survey responses'!EE101)","v":2},{"$f":"IF('2011 Survey responses'!EF101<0.5,\"\",'2011 Survey responses'!EF101)","v":2},{"$f":"IF('2011 Survey responses'!EG101<0.5,\"\",'2011 Survey responses'!EG101)","v":4},{"$f":"IF('2011 Survey responses'!EH101<0.5,\"\",'2011 Survey responses'!EH101)","v":4},{"$f":"IF('2011 Survey responses'!EI101<0.5,\"\",'2011 Survey responses'!EI101)","v":3},{"$f":"IF('2011 Survey responses'!EJ101<0.5,\"\",'2011 Survey responses'!EJ101)","v":3},{"$f":"IF('2011 Survey responses'!EK101<0.5,\"\",'2011 Survey responses'!EK101)","v":2},{"$f":"IF('2011 Survey responses'!EL101<0.5,\"\",'2011 Survey responses'!EL101)","v":4},{"$f":"IF('2011 Survey responses'!EM101<0.5,\"\",'2011 Survey responses'!EM101)","v":3},{"$f":"IF('2011 Survey responses'!EN101<0.5,\"\",'2011 Survey responses'!EN101)","v":3},{"$f":"IF('2011 Survey responses'!EO101<0.5,\"\",'2011 Survey responses'!EO101)","v":3},{"$f":"IF('2011 Survey responses'!EP101<0.5,\"\",'2011 Survey responses'!EP101)","v":3},{"$f":"IF(('2011 Survey responses'!EW101+'2011 Survey responses'!EX101)>=2,AVERAGE('2011 Survey responses'!EW101,'2011 Survey responses'!EY101),\"\")","v":4},{"$f":"IF('2011 Survey responses'!EX101<0.5,\"\",'2011 Survey responses'!EX101)","v":4},{"$f":"IF('2011 Survey responses'!EZ101<0.5,\"\",'2011 Survey responses'!EZ101)","v":4},{"$f":"IF('2011 Survey responses'!FB101<0.5,\"\",'2011 Survey responses'!FB101)","v":3},{"$f":"IF('2011 Survey responses'!FD101<0.5,\"\",'2011 Survey responses'!FD101)","v":4},{"$f":"IF('2011 Survey responses'!FC101<0.5,\"\",'2011 Survey responses'!FC101)","v":1},{"$f":"IF(('2011 Survey responses'!EM101+'2011 Survey responses'!EN101)>=2,AVERAGE('2011 Survey responses'!EM101,'2011 Survey responses'!EN101),\"\")","v":3},{"$f":"IF('2011 Survey responses'!ES101<0.5,\"\",'2011 Survey responses'!ES101)","v":3},{"$f":"IF(('2011 Survey responses'!ET101+'2011 Survey responses'!EU101)>=2,AVERAGE('2011 Survey responses'!ET101,'2011 Survey responses'!EU101),\"\")","v":3},{"$f":"IF('2011 Survey responses'!EV101<0.5,\"\",'2011 Survey responses'!EV101)","v":4},{"$f":"IF('2011 Survey responses'!FA101<0.5,\"\",'2011 Survey responses'!FA101)","v":4},{"$f":"IF('2011 Survey responses'!ER101<0.5,\"\",'2011 Survey responses'!ER101)","v":4},{"$f":"IF(('2011 Survey responses'!EO101+'2011 Survey responses'!EP101)>=2,AVERAGE('2011 Survey responses'!EO101,'2011 Survey responses'!EP101),\"\")","v":3},{"$f":"IF('2011 Survey responses'!EQ101<0.5,\"\",'2011 Survey responses'!EQ101)","v":3},{"$f":"IF('2011 Survey responses'!ET101<0.5,\"\",'2011 Survey responses'!ET101)","v":3},{"$f":"IF('2011 Survey responses'!EU101<0.5,\"\",'2011 Survey responses'!EU101)","v":3},{"$f":"IF('2011 Survey responses'!EW101<0.5,\"\",'2011 Survey responses'!EW101)","v":4},{"$f":"IF('2011 Survey responses'!EY101<0.5,\"\",'2011 Survey responses'!EY101)","v":4},{"$f":"IF('2011 Survey responses'!FU101<0.5,\"\",'2011 Survey responses'!FU101)","v":1},{"$f":"IF(('2011 Survey responses'!FL101+'2011 Survey responses'!FM101)>=2,AVERAGE('2011 Survey responses'!FL101,'2011 Survey responses'!FM101),\"\")","v":3},{"$f":"IF(('2011 Survey responses'!FO101+'2011 Survey responses'!FQ101)>=2,AVERAGE('2011 Survey responses'!FO101,'2011 Survey responses'!FQ101),\"\")","v":5},{"$f":"IF('2011 Survey responses'!FJ101<0.5,\"\",'2011 Survey responses'!FJ101)","v":4},{"$f":"IF('2011 Survey responses'!FT101<0.5,\"\",'2011 Survey responses'!FT101)","v":3},{"$f":"IF('2011 Survey responses'!FR101<0.5,\"\",'2011 Survey responses'!FR101)","v":4},{"$f":"IF('2011 Survey responses'!FK101<0.5,\"\",'2011 Survey responses'!FK101)","v":3},{"$f":"IF('2011 Survey responses'!FP101<0.5,\"\",'2011 Survey responses'!FP101)","v":5},{"$f":"IF('2011 Survey responses'!FN101<0.5,\"\",'2011 Survey responses'!FN101)","v":5},{"$f":"IF(('2011 Survey responses'!FE101+'2011 Survey responses'!FF101)>=2,AVERAGE('2011 Survey responses'!FE101,'2011 Survey responses'!FF101),\"\")","v":4},{"$f":"IF('2011 Survey responses'!FS101<0.5,\"\",'2011 Survey responses'!FS101)","v":4},{"$f":"IF('2011 Survey responses'!FV101<0.5,\"\",'2011 Survey responses'!FV101)","v":5},{"$f":"IF(('2011 Survey responses'!FG101+'2011 Survey responses'!FH101)>=2,AVERAGE('2011 Survey responses'!FG101,'2011 Survey responses'!FH101),\"\")","v":3},{"$f":"IF('2011 Survey responses'!FI101<0.5,\"\",'2011 Survey responses'!FI101)","v":3},{"$f":"IF('2011 Survey responses'!FE101<0.5,\"\",'2011 Survey responses'!FE101)","v":5},{"$f":"IF('2011 Survey responses'!FF101<0.5,\"\",'2011 Survey responses'!FF101)","v":3},{"$f":"IF('2011 Survey responses'!FG101<0.5,\"\",'2011 Survey responses'!FG101)","v":3},{"$f":"IF('2011 Survey responses'!FH101<0.5,\"\",'2011 Survey responses'!FH101)","v":3},{"$f":"IF('2011 Survey responses'!FL101<0.5,\"\",'2011 Survey responses'!FL101)","v":3},{"$f":"IF('2011 Survey responses'!FM101<0.5,\"\",'2011 Survey responses'!FM101)","v":3},{"$f":"IF('2011 Survey responses'!FO101<0.5,\"\",'2011 Survey responses'!FO101)","v":5},{"$f":"IF('2011 Survey responses'!FQ101<0.5,\"\",'2011 Survey responses'!FQ101)","v":5}]
["Luxembourg",{"$f":"IF(SUM(F102)<1,\"\",AVERAGEIF('2011 Survey responses'!B102:CP102,\">1\"))","v":""},{"$f":"IF(SUM(F102)<1,\"\",AVERAGEIF('2011 Survey responses'!B102:AO102,\">1\"))","v":""},{"$f":"IF(SUM(F102)<1,\"\",AVERAGEIF('2011 Survey responses'!B102:BV102,\">1\"))","v":""},{"$f":"IF(SUM(F102)<1,\"\",AVERAGEIF('2011 Survey responses'!V102:BV102,\">1\"))","v":""},{"$f":"IF(SUM('2011 Survey responses'!B102:U102)<1,\"\",(AVERAGEIFS('2011 Survey responses'!B102:U102,'2011 Survey responses'!B102:U102,\">1\")))","v":""},{"$f":"IF(SUM('2011 Survey responses'!B102:H102)<1,\"\",(AVERAGEIFS('2011 Survey responses'!B102:H102,'2011 Survey responses'!B102:H102,\">1\")))","v":""},{"$f":"IF(SUM('2011 Survey responses'!I102:S102)<1,\"\",(AVERAGEIFS('2011 Survey responses'!I102:S102,'2011 Survey responses'!I102:S102,\">1\")))","v":""},{"$f":"IF(SUM('2011 Survey responses'!T102:U102)<2.1,\"\",(AVERAGEIFS('2011 Survey responses'!T102:U102,'2011 Survey responses'!T102:U102,\">1\")))","v":""},{"$f":"IF(SUM('2011 Survey responses'!B102:C102)<2.1,\"\",((SUMIF('2011 Survey responses'!B102:C102,\">1\")+SUMIF('2011 Survey responses'!F102,\">1\"))/(COUNTIF('2011 Survey responses'!B102:C102,\">1\")+COUNTIF('2011 Survey responses'!F102,\">1\"))))","v":""},{"$f":"IF(SUM('2011 Survey responses'!D102:E102)<2.1,\"\",(AVERAGEIFS('2011 Survey responses'!D102:E102,'2011 Survey responses'!D102:E102,\">1\")))","v":""},{"$f":"IF(('2011 Survey responses'!B102+'2011 Survey responses'!D102)<2.1,\"\",((SUMIF('2011 Survey responses'!B102,\">1\")+SUMIF('2011 Survey responses'!D102,\">1\")+SUMIF('2011 Survey responses'!F102,\">1\")+SUMIF('2011 Survey responses'!K102,\">1\"))/(COUNTIF('2011 Survey responses'!B102,\">1\")+COUNTIF('2011 Survey responses'!D102,\">1\")+COUNTIF('2011 Survey responses'!F102,\">1\")+COUNTIF('2011 Survey responses'!K102,\">1\"))))","v":""},{"$f":"IF(SUM('2011 Survey responses'!G102:H102)<2.1,\"\",(AVERAGEIFS('2011 Survey responses'!G102:H102,'2011 Survey responses'!G102:H102,\">1\")))","v":""},{"$f":"IF(SUM('2011 Survey responses'!F102:G102)<1.5,\"\",MAX('2011 Survey responses'!F102,'2011 Survey responses'!G102))","v":""},{"$f":"IF(SUM('2011 Survey responses'!G102:H102)<1,\"\",MAX('2011 Survey responses'!G102,'2011 Survey responses'!H102))","v":""},{"$f":"IF(SUM('2011 Survey responses'!I102:L102)<4.1,\"\",(AVERAGEIFS('2011 Survey responses'!I102:L102,'2011 Survey responses'!I102:L102,\">1\")))","v":""},{"$f":"IF(SUM('2011 Survey responses'!M102:S102)<4.1,\"\",(AVERAGEIFS('2011 Survey responses'!M102:S102,'2011 Survey responses'!M102:S102,\">1\")))","v":""},{"$f":"IF(SUM('2011 Survey responses'!T102:U102)<2.1,\"\",(AVERAGEIFS('2011 Survey responses'!T102:U102,'2011 Survey responses'!T102:U102,\">1\")))","v":""},{"$f":"IF(SUM('2011 Survey responses'!V102:AO102)<1,\"\",(AVERAGEIFS('2011 Survey responses'!V102:AO102,'2011 Survey responses'!V102:AO102,\">1\")))","v":""},{"$f":"IF(SUM('2011 Survey responses'!V102:AA102)<1,\"\",(AVERAGEIFS('2011 Survey responses'!V102:AA102,'2011 Survey responses'!V102:AA102,\">1\")))","v":""},{"$f":"IF(SUM('2011 Survey responses'!AB102:AH102)<1,\"\",(AVERAGEIFS('2011 Survey responses'!AB102:AH102,'2011 Survey responses'!AB102:AH102,\">1\")))","v":""},{"$f":"IF(SUM('2011 Survey responses'!AI102:AO102)<1,\"\",(AVERAGEIFS('2011 Survey responses'!AI102:AO102,'2011 Survey responses'!AI102:AO102,\">1\")))","v":""},{"$f":"IF(('2011 Survey responses'!Y102+'2011 Survey responses'!AI102+'2011 Survey responses'!AK102)<3.1,\"\",((SUMIF('2011 Survey responses'!Y102,\">1\")+SUMIF('2011 Survey responses'!AI102,\">1\")+SUMIF('2011 Survey responses'!AK102,\">1\")+SUMIF('2011 Survey responses'!AM102,\">1\"))/(COUNTIF('2011 Survey responses'!Y102,\">1\")+COUNTIF('2011 Survey responses'!AI102,\">1\")+COUNTIF('2011 Survey responses'!AK102,\">1\")+COUNTIF('2011 Survey responses'!AM102,\">1\"))))","v":""},{"$f":"IF(('2011 Survey responses'!W102)<1.1,\"\",('2011 Survey responses'!W102))","v":""},{"$f":"IF(('2011 Survey responses'!Y102)<1.1,\"\",('2011 Survey responses'!Y102))","v":""},{"$f":"IF(('2011 Survey responses'!Z102)<1.1,\"\",('2011 Survey responses'!Z102))","v":""},{"$f":"IF(('2011 Survey responses'!V102+'2011 Survey responses'!X102+'2011 Survey responses'!AA102)<3.1,\"\",((SUMIF('2011 Survey responses'!V102,\">1\")+SUMIF('2011 Survey responses'!X102,\">1\")+SUMIF('2011 Survey responses'!AA102,\">1\"))/(COUNTIF('2011 Survey responses'!V102,\">1\")+COUNTIF('2011 Survey responses'!X102,\">1\")+COUNTIF('2011 Survey responses'!AA102,\">1\"))))","v":""},{"$f":"IF(('2011 Survey responses'!V102+'2011 Survey responses'!Y102+'2011 Survey responses'!AA102)<3.1,\"\",((SUMIF('2011 Survey responses'!V102,\">1\")+SUMIF('2011 Survey responses'!Y102,\">1\")+SUMIF('2011 Survey responses'!AA102,\">1\"))/(COUNTIF('2011 Survey responses'!V102,\">1\")+COUNTIF('2011 Survey responses'!Y102,\">1\")+COUNTIF('2011 Survey responses'!AA102,\">1\"))))","v":""},{"$f":"IF(SUM('2011 Survey responses'!AB102:AH102)<1,\"\",(AVERAGEIFS('2011 Survey responses'!AB102:AH102,'2011 Survey responses'!AB102:AH102,\">1\")))","v":""},{"$f":"IF(SUM('2011 Survey responses'!AI102:AO102)<7.1,\"\",(AVERAGEIFS('2011 Survey responses'!AI102:AO102,'2011 Survey responses'!AI102:AO102,\">1\")))","v":""},{"$f":"IF(('2011 Survey responses'!AH102)<1.1,\"\",('2011 Survey responses'!AH102))","v":""},{"$f":"IF(SUM('2011 Survey responses'!AP102:BV102)<1,\"\",(AVERAGEIFS('2011 Survey responses'!AP102:BV102,'2011 Survey responses'!AP102:BV102,\">1\")))","v":""},{"$f":"IF(SUM('2011 Survey responses'!AP102:AS102)<4.1,\"\",(AVERAGEIFS('2011 Survey responses'!AP102:AS102,'2011 Survey responses'!AP102:AS102,\">1\")))","v":""},{"$f":"IF(SUM('2011 Survey responses'!AT102:BF102)<1,\"\",(AVERAGEIFS('2011 Survey responses'!AT102:BF102,'2011 Survey responses'!AT102:BF102,\">1\")))","v":""},{"$f":"IF(SUM('2011 Survey responses'!BG102:BO102)<1,\"\",(AVERAGEIFS('2011 Survey responses'!BG102:BO102,'2011 Survey responses'!BG102:BO102,\">1\")))","v":""},{"$f":"IF(SUM('2011 Survey responses'!BP102:BS102)<1,\"\",(AVERAGEIFS('2011 Survey responses'!BP102:BS102,'2011 Survey responses'!BP102:BS102,\">1\")))","v":""},{"$f":"IF(SUM('2011 Survey responses'!BT102:BV102)<3.1,\"\",(AVERAGEIFS('2011 Survey responses'!BT102:BV102,'2011 Survey responses'!BT102:BV102,\">1\")))","v":""},{"$f":"IF(('2011 Survey responses'!AQ102+'2011 Survey responses'!AR102+'2011 Survey responses'!BG102)<3.1,\"\",((SUMIF('2011 Survey responses'!AQ102,\">1\")+SUMIF('2011 Survey responses'!AR102,\">1\")+SUMIF('2011 Survey responses'!BG102,\">1\"))/(COUNTIF('2011 Survey responses'!AQ102,\">1\")+COUNTIF('2011 Survey responses'!AR102,\">1\")+COUNTIF('2011 Survey responses'!BG102,\">1\"))))","v":""},{"$f":"IF(SUM('2011 Survey responses'!AP102:AS102)<4.1,\"\",(AVERAGEIFS('2011 Survey responses'!AP102:AS102,'2011 Survey responses'!AP102:AS102,\">1\")))","v":""},{"$f":"IF(('2011 Survey responses'!AU102+'2011 Survey responses'!AX102+'2011 Survey responses'!BA102+'2011 Survey responses'!BC102+'2011 Survey responses'!BD102)<5.1,\"\",(SUMIF('2011 Survey responses'!AU102,\">1\")+SUMIF('2011 Survey responses'!AX102,\">1\")+SUMIF('2011 Survey responses'!BA102,\">1\")+SUMIF('2011 Survey responses'!BC102,\">1\")+SUMIF('2011 Survey responses'!BD102,\">1\"))/(COUNTIF('2011 Survey responses'!AU102,\">1\")+COUNTIF('2011 Survey responses'!AX102,\">1\")+COUNTIF('2011 Survey responses'!BA102,\">1\")+COUNTIF('2011 Survey responses'!BC102,\">1\")+COUNTIF('2011 Survey responses'!BD102,\">1\")))","v":""},{"$f":"IF(('2011 Survey responses'!AT102)<1.1,\"\",('2011 Survey responses'!AT102))","v":""},{"$f":"IF(SUM('2011 Survey responses'!AV102:AW102)<2.1,\"\",(AVERAGEIFS('2011 Survey responses'!AV102:AW102,'2011 Survey responses'!AV102:AW102,\">1\")))","v":""},{"$f":"IF(('2011 Survey responses'!AW102+'2011 Survey responses'!AY102)<2.1,\"\",(SUMIF('2011 Survey responses'!AW102,\">1\")+SUMIF('2011 Survey responses'!AY102,\">1\"))/(COUNTIF('2011 Survey responses'!AW102,\">1\")+COUNTIF('2011 Survey responses'!AY102,\">1\")))","v":""},{"$f":"IF(('2011 Survey responses'!AZ102)<1.1,\"\",('2011 Survey responses'!AZ102))","v":""},null,null,null,null,{"$f":"IF(('2011 Survey responses'!BE102)<1.1,\"\",('2011 Survey responses'!BE102))","v":""},{"$f":"IF(('2011 Survey responses'!AY102+'2011 Survey responses'!BB102+'2011 Survey responses'!BF102)<3.1,\"\",(SUMIF('2011 Survey responses'!AY102,\">1\")+SUMIF('2011 Survey responses'!BB102,\">1\")+SUMIF('2011 Survey responses'!BF102,\">1\"))/(COUNTIF('2011 Survey responses'!AY102,\">1\")+COUNTIF('2011 Survey responses'!BB102,\">1\")+COUNTIF('2011 Survey responses'!BF102,\">1\")))","v":""},"",{"$f":"IF(SUM('2011 Survey responses'!BT102:BV102)<3.1,\"\",(AVERAGEIFS('2011 Survey responses'!BT102:BV102,'2011 Survey responses'!BT102:BV102,\">1\")))","v":""},{"$f":"IF(SUM('2011 Survey responses'!BW102:CP102)<1,\"\",(AVERAGEIFS('2011 Survey responses'!BW102:CP102,'2011 Survey responses'!BW102:CP102,\">1\")))","v":""},{"$f":"IF(SUM('2011 Survey responses'!BW102:CF102)<1,\"\",(AVERAGEIFS('2011 Survey responses'!BW102:CF102,'2011 Survey responses'!BW102:CF102,\">1\")))","v":""},{"$f":"IF(SUM('2011 Survey responses'!CG102:CP102)<1,\"\",(AVERAGEIFS('2011 Survey responses'!CG102:CP102,'2011 Survey responses'!CG102:CP102,\">1\")))","v":""},{"$f":"IF(SUM('2011 Survey responses'!BX102:CF102)<1,\"\",(AVERAGEIFS('2011 Survey responses'!BX102:CF102,'2011 Survey responses'!BX102:CF102,\">1\")))","v":""},{"$f":"IF(SUM('2011 Survey responses'!CH102:CP102)<1,\"\",(AVERAGEIFS('2011 Survey responses'!CH102:CP102,'2011 Survey responses'!CH102:CP102,\">1\")))","v":""},{"$f":"IF(SUM('2011 Survey responses'!BW102:CP102)<1,\"\",(AVERAGEIFS('2011 Survey responses'!BW102:CP102,'2011 Survey responses'!BW102:CP102,\">1\")))","v":""},{"$f":"IF(('2011 Survey responses'!BW102+'2011 Survey responses'!CG102)<2.1,\"\",(SUMIF('2011 Survey responses'!BW102,\">1\")+SUMIF('2011 Survey responses'!CG102,\">1\"))/(COUNTIF('2011 Survey responses'!BW102,\">1\")+COUNTIF('2011 Survey responses'!CG102,\">1\")))","v":""},{"$f":"IF(('2011 Survey responses'!BX102+'2011 Survey responses'!CH102)<2.1,\"\",(SUMIF('2011 Survey responses'!BX102,\">1\")+SUMIF('2011 Survey responses'!CH102,\">1\"))/(COUNTIF('2011 Survey responses'!BX102,\">1\")+COUNTIF('2011 Survey responses'!CH102,\">1\")))","v":""},{"$f":"IF(('2011 Survey responses'!BY102+'2011 Survey responses'!CI102)<2.1,\"\",(SUMIF('2011 Survey responses'!BY102,\">1\")+SUMIF('2011 Survey responses'!CI102,\">1\"))/(COUNTIF('2011 Survey responses'!BY102,\">1\")+COUNTIF('2011 Survey responses'!CI102,\">1\")))","v":""},{"$f":"IF('2011 Survey responses'!CQ102<0.5,\"\",'2011 Survey responses'!CQ102)","v":""},{"$f":"IF('2011 Survey responses'!CR102<0.5,\"\",'2011 Survey responses'!CR102)","v":""},{"$f":"IF('2011 Survey responses'!CS102<0.5,\"\",'2011 Survey responses'!CS102)","v":""},{"$f":"IF('2011 Survey responses'!CT102<0.5,\"\",'2011 Survey responses'!CT102)","v":""},{"$f":"IF('2011 Survey responses'!CU102<0.5,\"\",'2011 Survey responses'!CU102)","v":""},{"$f":"IF('2011 Survey responses'!CV102<0.5,\"\",'2011 Survey responses'!CV102)","v":""},{"$f":"IF(SUM('2011 Survey responses'!CW102:DL102)<1,\"\",(AVERAGE('2011 Survey responses'!CW102:DL102)))","v":""},{"$f":"IF(SUM('2011 Survey responses'!CW102:CZ102)<1,\"\",(AVERAGE('2011 Survey responses'!CW102:CZ102)))","v":""},{"$f":"IF(SUM('2011 Survey responses'!DA102:DD102)<1,\"\",(AVERAGE('2011 Survey responses'!DA102:DD102)))","v":""},{"$f":"IF(SUM('2011 Survey responses'!DE102:DH102)<1,\"\",(AVERAGE('2011 Survey responses'!DE102:DH102)))","v":""},{"$f":"IF(SUM('2011 Survey responses'!DI102:DL102)<1,\"\",(AVERAGE('2011 Survey responses'!DI102:DL102)))","v":""},{"$f":"IF(('2011 Survey responses'!CW102+'2011 Survey responses'!DA102+'2011 Survey responses'!DE102+'2011 Survey responses'!DI102)<1,\"\",AVERAGE('2011 Survey responses'!CW102,'2011 Survey responses'!DA102,'2011 Survey responses'!DE102,'2011 Survey responses'!DI102))","v":""},{"$f":"IF(('2011 Survey responses'!CX102+'2011 Survey responses'!DB102+'2011 Survey responses'!DF102+'2011 Survey responses'!DJ102)<1,\"\",AVERAGE('2011 Survey responses'!CX102,'2011 Survey responses'!DB102,'2011 Survey responses'!DF102,'2011 Survey responses'!DJ102))","v":""},{"$f":"IF(('2011 Survey responses'!CY102+'2011 Survey responses'!DC102+'2011 Survey responses'!DG102+'2011 Survey responses'!DK102)<1,\"\",AVERAGE('2011 Survey responses'!CY102,'2011 Survey responses'!DC102,'2011 Survey responses'!DG102,'2011 Survey responses'!DK102))","v":""},{"$f":"IF(('2011 Survey responses'!CZ102+'2011 Survey responses'!DD102+'2011 Survey responses'!DH102+'2011 Survey responses'!DL102)<1,\"\",AVERAGE('2011 Survey responses'!CZ102,'2011 Survey responses'!DD102,'2011 Survey responses'!DH102,'2011 Survey responses'!DL102))","v":""},{"$f":"IF('2011 Survey responses'!CW102<0.5,\"\",'2011 Survey responses'!CW102)","v":""},{"$f":"IF('2011 Survey responses'!CX102<0.5,\"\",'2011 Survey responses'!CX102)","v":""},{"$f":"IF('2011 Survey responses'!CY102<0.5,\"\",'2011 Survey responses'!CY102)","v":""},{"$f":"IF('2011 Survey responses'!CZ102<0.5,\"\",'2011 Survey responses'!CZ102)","v":""},{"$f":"IF('2011 Survey responses'!DA102<0.5,\"\",'2011 Survey responses'!DA102)","v":""},{"$f":"IF('2011 Survey responses'!DB102<0.5,\"\",'2011 Survey responses'!DB102)","v":""},{"$f":"IF('2011 Survey responses'!DC102<0.5,\"\",'2011 Survey responses'!DC102)","v":""},{"$f":"IF('2011 Survey responses'!DD102<0.5,\"\",'2011 Survey responses'!DD102)","v":""},{"$f":"IF('2011 Survey responses'!DE102<0.5,\"\",'2011 Survey responses'!DE102)","v":""},{"$f":"IF('2011 Survey responses'!DF102<0.5,\"\",'2011 Survey responses'!DF102)","v":""},{"$f":"IF('2011 Survey responses'!DG102<0.5,\"\",'2011 Survey responses'!DG102)","v":""},{"$f":"IF('2011 Survey responses'!DH102<0.5,\"\",'2011 Survey responses'!DH102)","v":""},{"$f":"IF('2011 Survey responses'!DI102<0.5,\"\",'2011 Survey responses'!DI102)","v":""},{"$f":"IF('2011 Survey responses'!DJ102<0.5,\"\",'2011 Survey responses'!DJ102)","v":""},{"$f":"IF('2011 Survey responses'!DK102<0.5,\"\",'2011 Survey responses'!DK102)","v":""},{"$f":"IF('2011 Survey responses'!DL102<0.5,\"\",'2011 Survey responses'!DL102)","v":""},{"$f":"IF('2011 Survey responses'!DU102=4,4,IF('2011 Survey responses'!DU102=5,4,\"\"))","v":""},{"$f":"IF('2011 Survey responses'!DV102=4,3,IF('2011 Survey responses'!DV102=5,3,\"\"))","v":""},"",{"$f":"IF(CQ102=2,CQ102,IF(CO102=4,CO102,IF(CP102=3,CP102,IF('2011 Survey responses'!GT102=1,1,\"\"))))","v":""},{"$f":"IF('2011 Survey responses'!DO102<0.5,\"\",'2011 Survey responses'!DO102)","v":""},{"$f":"IF('2011 Survey responses'!DP102<0.5,\"\",'2011 Survey responses'!DP102)","v":""},{"$f":"IF('2011 Survey responses'!DQ102<0.5,\"\",'2011 Survey responses'!DQ102)","v":""},{"$f":"IF('2011 Survey responses'!DR102<0.5,\"\",'2011 Survey responses'!DR102)","v":""},{"$f":"IF('2011 Survey responses'!DS102<0.5,\"\",'2011 Survey responses'!DS102)","v":""},{"$f":"IF('2011 Survey responses'!DT102<0.5,\"\",'2011 Survey responses'!DT102)","v":""},{"$f":"IF('2011 Survey responses'!DU102<0.5,\"\",'2011 Survey responses'!DU102)","v":""},{"$f":"IF('2011 Survey responses'!DV102<0.5,\"\",'2011 Survey responses'!DV102)","v":""},{"$f":"IF('2011 Survey responses'!DW102<0.5,\"\",'2011 Survey responses'!DW102)","v":""},{"$f":"IF('2011 Survey responses'!DX102<0.5,\"\",'2011 Survey responses'!DX102)","v":""},{"$f":"IF('2011 Survey responses'!DY102<0.5,\"\",'2011 Survey responses'!DY102)","v":""},{"$f":"IF('2011 Survey responses'!DZ102<0.5,\"\",'2011 Survey responses'!DZ102)","v":""},{"$f":"IF('2011 Survey responses'!EA102<0.5,\"\",'2011 Survey responses'!EA102)","v":""},{"$f":"IF('2011 Survey responses'!EB102<0.5,\"\",'2011 Survey responses'!EB102)","v":""},{"$f":"IF('2011 Survey responses'!EC102<0.5,\"\",'2011 Survey responses'!EC102)","v":""},{"$f":"IF('2011 Survey responses'!ED102<0.5,\"\",'2011 Survey responses'!ED102)","v":""},{"$f":"IF('2011 Survey responses'!EE102<0.5,\"\",'2011 Survey responses'!EE102)","v":""},{"$f":"IF('2011 Survey responses'!EF102<0.5,\"\",'2011 Survey responses'!EF102)","v":""},{"$f":"IF('2011 Survey responses'!EG102<0.5,\"\",'2011 Survey responses'!EG102)","v":""},{"$f":"IF('2011 Survey responses'!EH102<0.5,\"\",'2011 Survey responses'!EH102)","v":""},{"$f":"IF('2011 Survey responses'!EI102<0.5,\"\",'2011 Survey responses'!EI102)","v":""},{"$f":"IF('2011 Survey responses'!EJ102<0.5,\"\",'2011 Survey responses'!EJ102)","v":""},{"$f":"IF('2011 Survey responses'!EK102<0.5,\"\",'2011 Survey responses'!EK102)","v":""},{"$f":"IF('2011 Survey responses'!EL102<0.5,\"\",'2011 Survey responses'!EL102)","v":""},{"$f":"IF('2011 Survey responses'!EM102<0.5,\"\",'2011 Survey responses'!EM102)","v":""},{"$f":"IF('2011 Survey responses'!EN102<0.5,\"\",'2011 Survey responses'!EN102)","v":""},{"$f":"IF('2011 Survey responses'!EO102<0.5,\"\",'2011 Survey responses'!EO102)","v":""},{"$f":"IF('2011 Survey responses'!EP102<0.5,\"\",'2011 Survey responses'!EP102)","v":""},{"$f":"IF(('2011 Survey responses'!EW102+'2011 Survey responses'!EX102)>=2,AVERAGE('2011 Survey responses'!EW102,'2011 Survey responses'!EY102),\"\")","v":""},{"$f":"IF('2011 Survey responses'!EX102<0.5,\"\",'2011 Survey responses'!EX102)","v":""},{"$f":"IF('2011 Survey responses'!EZ102<0.5,\"\",'2011 Survey responses'!EZ102)","v":""},{"$f":"IF('2011 Survey responses'!FB102<0.5,\"\",'2011 Survey responses'!FB102)","v":""},{"$f":"IF('2011 Survey responses'!FD102<0.5,\"\",'2011 Survey responses'!FD102)","v":""},{"$f":"IF('2011 Survey responses'!FC102<0.5,\"\",'2011 Survey responses'!FC102)","v":""},{"$f":"IF(('2011 Survey responses'!EM102+'2011 Survey responses'!EN102)>=2,AVERAGE('2011 Survey responses'!EM102,'2011 Survey responses'!EN102),\"\")","v":""},{"$f":"IF('2011 Survey responses'!ES102<0.5,\"\",'2011 Survey responses'!ES102)","v":""},{"$f":"IF(('2011 Survey responses'!ET102+'2011 Survey responses'!EU102)>=2,AVERAGE('2011 Survey responses'!ET102,'2011 Survey responses'!EU102),\"\")","v":""},{"$f":"IF('2011 Survey responses'!EV102<0.5,\"\",'2011 Survey responses'!EV102)","v":""},{"$f":"IF('2011 Survey responses'!FA102<0.5,\"\",'2011 Survey responses'!FA102)","v":""},{"$f":"IF('2011 Survey responses'!ER102<0.5,\"\",'2011 Survey responses'!ER102)","v":""},{"$f":"IF(('2011 Survey responses'!EO102+'2011 Survey responses'!EP102)>=2,AVERAGE('2011 Survey responses'!EO102,'2011 Survey responses'!EP102),\"\")","v":""},{"$f":"IF('2011 Survey responses'!EQ102<0.5,\"\",'2011 Survey responses'!EQ102)","v":""},{"$f":"IF('2011 Survey responses'!ET102<0.5,\"\",'2011 Survey responses'!ET102)","v":""},{"$f":"IF('2011 Survey responses'!EU102<0.5,\"\",'2011 Survey responses'!EU102)","v":""},{"$f":"IF('2011 Survey responses'!EW102<0.5,\"\",'2011 Survey responses'!EW102)","v":""},{"$f":"IF('2011 Survey responses'!EY102<0.5,\"\",'2011 Survey responses'!EY102)","v":""},{"$f":"IF('2011 Survey responses'!FU102<0.5,\"\",'2011 Survey responses'!FU102)","v":""},{"$f":"IF(('2011 Survey responses'!FL102+'2011 Survey responses'!FM102)>=2,AVERAGE('2011 Survey responses'!FL102,'2011 Survey responses'!FM102),\"\")","v":""},{"$f":"IF(('2011 Survey responses'!FO102+'2011 Survey responses'!FQ102)>=2,AVERAGE('2011 Survey responses'!FO102,'2011 Survey responses'!FQ102),\"\")","v":""},{"$f":"IF('2011 Survey responses'!FJ102<0.5,\"\",'2011 Survey responses'!FJ102)","v":""},{"$f":"IF('2011 Survey responses'!FT102<0.5,\"\",'2011 Survey responses'!FT102)","v":""},{"$f":"IF('2011 Survey responses'!FR102<0.5,\"\",'2011 Survey responses'!FR102)","v":""},{"$f":"IF('2011 Survey responses'!FK102<0.5,\"\",'2011 Survey responses'!FK102)","v":""},{"$f":"IF('2011 Survey responses'!FP102<0.5,\"\",'2011 Survey responses'!FP102)","v":""},{"$f":"IF('2011 Survey responses'!FN102<0.5,\"\",'2011 Survey responses'!FN102)","v":""},{"$f":"IF(('2011 Survey responses'!FE102+'2011 Survey responses'!FF102)>=2,AVERAGE('2011 Survey responses'!FE102,'2011 Survey responses'!FF102),\"\")","v":""},{"$f":"IF('2011 Survey responses'!FS102<0.5,\"\",'2011 Survey responses'!FS102)","v":""},{"$f":"IF('2011 Survey responses'!FV102<0.5,\"\",'2011 Survey responses'!FV102)","v":""},{"$f":"IF(('2011 Survey responses'!FG102+'2011 Survey responses'!FH102)>=2,AVERAGE('2011 Survey responses'!FG102,'2011 Survey responses'!FH102),\"\")","v":""},{"$f":"IF('2011 Survey responses'!FI102<0.5,\"\",'2011 Survey responses'!FI102)","v":""},{"$f":"IF('2011 Survey responses'!FE102<0.5,\"\",'2011 Survey responses'!FE102)","v":""},{"$f":"IF('2011 Survey responses'!FF102<0.5,\"\",'2011 Survey responses'!FF102)","v":""},{"$f":"IF('2011 Survey responses'!FG102<0.5,\"\",'2011 Survey responses'!FG102)","v":""},{"$f":"IF('2011 Survey responses'!FH102<0.5,\"\",'2011 Survey responses'!FH102)","v":""},{"$f":"IF('2011 Survey responses'!FL102<0.5,\"\",'2011 Survey responses'!FL102)","v":""},{"$f":"IF('2011 Survey responses'!FM102<0.5,\"\",'2011 Survey responses'!FM102)","v":""},{"$f":"IF('2011 Survey responses'!FO102<0.5,\"\",'2011 Survey responses'!FO102)","v":""},{"$f":"IF('2011 Survey responses'!FQ102<0.5,\"\",'2011 Survey responses'!FQ102)","v":""}]
["Madagascar",{"$f":"IF(SUM(F103)<1,\"\",AVERAGEIF('2011 Survey responses'!B103:CP103,\">1\"))","v":3.1948051948051948},{"$f":"IF(SUM(F103)<1,\"\",AVERAGEIF('2011 Survey responses'!B103:AO103,\">1\"))","v":3.032258064516129},{"$f":"IF(SUM(F103)<1,\"\",AVERAGEIF('2011 Survey responses'!B103:BV103,\">1\"))","v":3.0163934426229506},{"$f":"IF(SUM(F103)<1,\"\",AVERAGEIF('2011 Survey responses'!V103:BV103,\">1\"))","v":3.0816326530612246},{"$f":"IF(SUM('2011 Survey responses'!B103:U103)<1,\"\",(AVERAGEIFS('2011 Survey responses'!B103:U103,'2011 Survey responses'!B103:U103,\">1\")))","v":2.75},{"$f":"IF(SUM('2011 Survey responses'!B103:H103)<1,\"\",(AVERAGEIFS('2011 Survey responses'!B103:H103,'2011 Survey responses'!B103:H103,\">1\")))","v":2.8},{"$f":"IF(SUM('2011 Survey responses'!I103:S103)<1,\"\",(AVERAGEIFS('2011 Survey responses'!I103:S103,'2011 Survey responses'!I103:S103,\">1\")))","v":2.7142857142857144},{"$f":"IF(SUM('2011 Survey responses'!T103:U103)<2.1,\"\",(AVERAGEIFS('2011 Survey responses'!T103:U103,'2011 Survey responses'!T103:U103,\">1\")))","v":""},{"$f":"IF(SUM('2011 Survey responses'!B103:C103)<2.1,\"\",((SUMIF('2011 Survey responses'!B103:C103,\">1\")+SUMIF('2011 Survey responses'!F103,\">1\"))/(COUNTIF('2011 Survey responses'!B103:C103,\">1\")+COUNTIF('2011 Survey responses'!F103,\">1\"))))","v":2},{"$f":"IF(SUM('2011 Survey responses'!D103:E103)<2.1,\"\",(AVERAGEIFS('2011 Survey responses'!D103:E103,'2011 Survey responses'!D103:E103,\">1\")))","v":5},{"$f":"IF(('2011 Survey responses'!B103+'2011 Survey responses'!D103)<2.1,\"\",((SUMIF('2011 Survey responses'!B103,\">1\")+SUMIF('2011 Survey responses'!D103,\">1\")+SUMIF('2011 Survey responses'!F103,\">1\")+SUMIF('2011 Survey responses'!K103,\">1\"))/(COUNTIF('2011 Survey responses'!B103,\">1\")+COUNTIF('2011 Survey responses'!D103,\">1\")+COUNTIF('2011 Survey responses'!F103,\">1\")+COUNTIF('2011 Survey responses'!K103,\">1\"))))","v":3},{"$f":"IF(SUM('2011 Survey responses'!G103:H103)<2.1,\"\",(AVERAGEIFS('2011 Survey responses'!G103:H103,'2011 Survey responses'!G103:H103,\">1\")))","v":2.5},{"$f":"IF(SUM('2011 Survey responses'!F103:G103)<1.5,\"\",MAX('2011 Survey responses'!F103,'2011 Survey responses'!G103))","v":3},{"$f":"IF(SUM('2011 Survey responses'!G103:H103)<1,\"\",MAX('2011 Survey responses'!G103,'2011 Survey responses'!H103))","v":3},{"$f":"IF(SUM('2011 Survey responses'!I103:L103)<4.1,\"\",(AVERAGEIFS('2011 Survey responses'!I103:L103,'2011 Survey responses'!I103:L103,\">1\")))","v":3},{"$f":"IF(SUM('2011 Survey responses'!M103:S103)<4.1,\"\",(AVERAGEIFS('2011 Survey responses'!M103:S103,'2011 Survey responses'!M103:S103,\">1\")))","v":2.5},{"$f":"IF(SUM('2011 Survey responses'!T103:U103)<2.1,\"\",(AVERAGEIFS('2011 Survey responses'!T103:U103,'2011 Survey responses'!T103:U103,\">1\")))","v":""},{"$f":"IF(SUM('2011 Survey responses'!V103:AO103)<1,\"\",(AVERAGEIFS('2011 Survey responses'!V103:AO103,'2011 Survey responses'!V103:AO103,\">1\")))","v":3.2105263157894739},{"$f":"IF(SUM('2011 Survey responses'!V103:AA103)<1,\"\",(AVERAGEIFS('2011 Survey responses'!V103:AA103,'2011 Survey responses'!V103:AA103,\">1\")))","v":2},{"$f":"IF(SUM('2011 Survey responses'!AB103:AH103)<1,\"\",(AVERAGEIFS('2011 Survey responses'!AB103:AH103,'2011 Survey responses'!AB103:AH103,\">1\")))","v":4.1428571428571432},{"$f":"IF(SUM('2011 Survey responses'!AI103:AO103)<1,\"\",(AVERAGEIFS('2011 Survey responses'!AI103:AO103,'2011 Survey responses'!AI103:AO103,\">1\")))","v":3.1428571428571428},{"$f":"IF(('2011 Survey responses'!Y103+'2011 Survey responses'!AI103+'2011 Survey responses'!AK103)<3.1,\"\",((SUMIF('2011 Survey responses'!Y103,\">1\")+SUMIF('2011 Survey responses'!AI103,\">1\")+SUMIF('2011 Survey responses'!AK103,\">1\")+SUMIF('2011 Survey responses'!AM103,\">1\"))/(COUNTIF('2011 Survey responses'!Y103,\">1\")+COUNTIF('2011 Survey responses'!AI103,\">1\")+COUNTIF('2011 Survey responses'!AK103,\">1\")+COUNTIF('2011 Survey responses'!AM103,\">1\"))))","v":2.75},{"$f":"IF(('2011 Survey responses'!W103)<1.1,\"\",('2011 Survey responses'!W103))","v":2},{"$f":"IF(('2011 Survey responses'!Y103)<1.1,\"\",('2011 Survey responses'!Y103))","v":2},{"$f":"IF(('2011 Survey responses'!Z103)<1.1,\"\",('2011 Survey responses'!Z103))","v":""},{"$f":"IF(('2011 Survey responses'!V103+'2011 Survey responses'!X103+'2011 Survey responses'!AA103)<3.1,\"\",((SUMIF('2011 Survey responses'!V103,\">1\")+SUMIF('2011 Survey responses'!X103,\">1\")+SUMIF('2011 Survey responses'!AA103,\">1\"))/(COUNTIF('2011 Survey responses'!V103,\">1\")+COUNTIF('2011 Survey responses'!X103,\">1\")+COUNTIF('2011 Survey responses'!AA103,\">1\"))))","v":2},{"$f":"IF(('2011 Survey responses'!V103+'2011 Survey responses'!Y103+'2011 Survey responses'!AA103)<3.1,\"\",((SUMIF('2011 Survey responses'!V103,\">1\")+SUMIF('2011 Survey responses'!Y103,\">1\")+SUMIF('2011 Survey responses'!AA103,\">1\"))/(COUNTIF('2011 Survey responses'!V103,\">1\")+COUNTIF('2011 Survey responses'!Y103,\">1\")+COUNTIF('2011 Survey responses'!AA103,\">1\"))))","v":2},{"$f":"IF(SUM('2011 Survey responses'!AB103:AH103)<1,\"\",(AVERAGEIFS('2011 Survey responses'!AB103:AH103,'2011 Survey responses'!AB103:AH103,\">1\")))","v":4.1428571428571432},{"$f":"IF(SUM('2011 Survey responses'!AI103:AO103)<7.1,\"\",(AVERAGEIFS('2011 Survey responses'!AI103:AO103,'2011 Survey responses'!AI103:AO103,\">1\")))","v":3.1428571428571428},{"$f":"IF(('2011 Survey responses'!AH103)<1.1,\"\",('2011 Survey responses'!AH103))","v":4},{"$f":"IF(SUM('2011 Survey responses'!AP103:BV103)<1,\"\",(AVERAGEIFS('2011 Survey responses'!AP103:BV103,'2011 Survey responses'!AP103:BV103,\">1\")))","v":3},{"$f":"IF(SUM('2011 Survey responses'!AP103:AS103)<4.1,\"\",(AVERAGEIFS('2011 Survey responses'!AP103:AS103,'2011 Survey responses'!AP103:AS103,\">1\")))","v":2.5},{"$f":"IF(SUM('2011 Survey responses'!AT103:BF103)<1,\"\",(AVERAGEIFS('2011 Survey responses'!AT103:BF103,'2011 Survey responses'!AT103:BF103,\">1\")))","v":2.5454545454545454},{"$f":"IF(SUM('2011 Survey responses'!BG103:BO103)<1,\"\",(AVERAGEIFS('2011 Survey responses'!BG103:BO103,'2011 Survey responses'!BG103:BO103,\">1\")))","v":3.625},{"$f":"IF(SUM('2011 Survey responses'!BP103:BS103)<1,\"\",(AVERAGEIFS('2011 Survey responses'!BP103:BS103,'2011 Survey responses'!BP103:BS103,\">1\")))","v":2.75},{"$f":"IF(SUM('2011 Survey responses'!BT103:BV103)<3.1,\"\",(AVERAGEIFS('2011 Survey responses'!BT103:BV103,'2011 Survey responses'!BT103:BV103,\">1\")))","v":4},{"$f":"IF(('2011 Survey responses'!AQ103+'2011 Survey responses'!AR103+'2011 Survey responses'!BG103)<3.1,\"\",((SUMIF('2011 Survey responses'!AQ103,\">1\")+SUMIF('2011 Survey responses'!AR103,\">1\")+SUMIF('2011 Survey responses'!BG103,\">1\"))/(COUNTIF('2011 Survey responses'!AQ103,\">1\")+COUNTIF('2011 Survey responses'!AR103,\">1\")+COUNTIF('2011 Survey responses'!BG103,\">1\"))))","v":4},{"$f":"IF(SUM('2011 Survey responses'!AP103:AS103)<4.1,\"\",(AVERAGEIFS('2011 Survey responses'!AP103:AS103,'2011 Survey responses'!AP103:AS103,\">1\")))","v":2.5},{"$f":"IF(('2011 Survey responses'!AU103+'2011 Survey responses'!AX103+'2011 Survey responses'!BA103+'2011 Survey responses'!BC103+'2011 Survey responses'!BD103)<5.1,\"\",(SUMIF('2011 Survey responses'!AU103,\">1\")+SUMIF('2011 Survey responses'!AX103,\">1\")+SUMIF('2011 Survey responses'!BA103,\">1\")+SUMIF('2011 Survey responses'!BC103,\">1\")+SUMIF('2011 Survey responses'!BD103,\">1\"))/(COUNTIF('2011 Survey responses'!AU103,\">1\")+COUNTIF('2011 Survey responses'!AX103,\">1\")+COUNTIF('2011 Survey responses'!BA103,\">1\")+COUNTIF('2011 Survey responses'!BC103,\">1\")+COUNTIF('2011 Survey responses'!BD103,\">1\")))","v":2.25},{"$f":"IF(('2011 Survey responses'!AT103)<1.1,\"\",('2011 Survey responses'!AT103))","v":3},{"$f":"IF(SUM('2011 Survey responses'!AV103:AW103)<2.1,\"\",(AVERAGEIFS('2011 Survey responses'!AV103:AW103,'2011 Survey responses'!AV103:AW103,\">1\")))","v":2.5},{"$f":"IF(('2011 Survey responses'!AW103+'2011 Survey responses'!AY103)<2.1,\"\",(SUMIF('2011 Survey responses'!AW103,\">1\")+SUMIF('2011 Survey responses'!AY103,\">1\"))/(COUNTIF('2011 Survey responses'!AW103,\">1\")+COUNTIF('2011 Survey responses'!AY103,\">1\")))","v":2.5},{"$f":"IF(('2011 Survey responses'!AZ103)<1.1,\"\",('2011 Survey responses'!AZ103))","v":3},null,null,null,null,{"$f":"IF(('2011 Survey responses'!BE103)<1.1,\"\",('2011 Survey responses'!BE103))","v":""},{"$f":"IF(('2011 Survey responses'!AY103+'2011 Survey responses'!BB103+'2011 Survey responses'!BF103)<3.1,\"\",(SUMIF('2011 Survey responses'!AY103,\">1\")+SUMIF('2011 Survey responses'!BB103,\">1\")+SUMIF('2011 Survey responses'!BF103,\">1\"))/(COUNTIF('2011 Survey responses'!AY103,\">1\")+COUNTIF('2011 Survey responses'!BB103,\">1\")+COUNTIF('2011 Survey responses'!BF103,\">1\")))","v":2.6666666666666665},3.1875,{"$f":"IF(SUM('2011 Survey responses'!BT103:BV103)<3.1,\"\",(AVERAGEIFS('2011 Survey responses'!BT103:BV103,'2011 Survey responses'!BT103:BV103,\">1\")))","v":4},{"$f":"IF(SUM('2011 Survey responses'!BW103:CP103)<1,\"\",(AVERAGEIFS('2011 Survey responses'!BW103:CP103,'2011 Survey responses'!BW103:CP103,\">1\")))","v":3.875},{"$f":"IF(SUM('2011 Survey responses'!BW103:CF103)<1,\"\",(AVERAGEIFS('2011 Survey responses'!BW103:CF103,'2011 Survey responses'!BW103:CF103,\">1\")))","v":4.25},{"$f":"IF(SUM('2011 Survey responses'!CG103:CP103)<1,\"\",(AVERAGEIFS('2011 Survey responses'!CG103:CP103,'2011 Survey responses'!CG103:CP103,\">1\")))","v":3.5},{"$f":"IF(SUM('2011 Survey responses'!BX103:CF103)<1,\"\",(AVERAGEIFS('2011 Survey responses'!BX103:CF103,'2011 Survey responses'!BX103:CF103,\">1\")))","v":4.1428571428571432},{"$f":"IF(SUM('2011 Survey responses'!CH103:CP103)<1,\"\",(AVERAGEIFS('2011 Survey responses'!CH103:CP103,'2011 Survey responses'!CH103:CP103,\">1\")))","v":3.5714285714285716},{"$f":"IF(SUM('2011 Survey responses'!BW103:CP103)<1,\"\",(AVERAGEIFS('2011 Survey responses'!BW103:CP103,'2011 Survey responses'!BW103:CP103,\">1\")))","v":3.875},{"$f":"IF(('2011 Survey responses'!BW103+'2011 Survey responses'!CG103)<2.1,\"\",(SUMIF('2011 Survey responses'!BW103,\">1\")+SUMIF('2011 Survey responses'!CG103,\">1\"))/(COUNTIF('2011 Survey responses'!BW103,\">1\")+COUNTIF('2011 Survey responses'!CG103,\">1\")))","v":4},{"$f":"IF(('2011 Survey responses'!BX103+'2011 Survey responses'!CH103)<2.1,\"\",(SUMIF('2011 Survey responses'!BX103,\">1\")+SUMIF('2011 Survey responses'!CH103,\">1\"))/(COUNTIF('2011 Survey responses'!BX103,\">1\")+COUNTIF('2011 Survey responses'!CH103,\">1\")))","v":4},{"$f":"IF(('2011 Survey responses'!BY103+'2011 Survey responses'!CI103)<2.1,\"\",(SUMIF('2011 Survey responses'!BY103,\">1\")+SUMIF('2011 Survey responses'!CI103,\">1\"))/(COUNTIF('2011 Survey responses'!BY103,\">1\")+COUNTIF('2011 Survey responses'!CI103,\">1\")))","v":4},{"$f":"IF('2011 Survey responses'!CQ103<0.5,\"\",'2011 Survey responses'!CQ103)","v":1},{"$f":"IF('2011 Survey responses'!CR103<0.5,\"\",'2011 Survey responses'!CR103)","v":4},{"$f":"IF('2011 Survey responses'!CS103<0.5,\"\",'2011 Survey responses'!CS103)","v":4},{"$f":"IF('2011 Survey responses'!CT103<0.5,\"\",'2011 Survey responses'!CT103)","v":5},{"$f":"IF('2011 Survey responses'!CU103<0.5,\"\",'2011 Survey responses'!CU103)","v":4},{"$f":"IF('2011 Survey responses'!CV103<0.5,\"\",'2011 Survey responses'!CV103)","v":1},{"$f":"IF(SUM('2011 Survey responses'!CW103:DL103)<1,\"\",(AVERAGE('2011 Survey responses'!CW103:DL103)))","v":3.8125},{"$f":"IF(SUM('2011 Survey responses'!CW103:CZ103)<1,\"\",(AVERAGE('2011 Survey responses'!CW103:CZ103)))","v":4.25},{"$f":"IF(SUM('2011 Survey responses'!DA103:DD103)<1,\"\",(AVERAGE('2011 Survey responses'!DA103:DD103)))","v":3.75},{"$f":"IF(SUM('2011 Survey responses'!DE103:DH103)<1,\"\",(AVERAGE('2011 Survey responses'!DE103:DH103)))","v":3.25},{"$f":"IF(SUM('2011 Survey responses'!DI103:DL103)<1,\"\",(AVERAGE('2011 Survey responses'!DI103:DL103)))","v":4},{"$f":"IF(('2011 Survey responses'!CW103+'2011 Survey responses'!DA103+'2011 Survey responses'!DE103+'2011 Survey responses'!DI103)<1,\"\",AVERAGE('2011 Survey responses'!CW103,'2011 Survey responses'!DA103,'2011 Survey responses'!DE103,'2011 Survey responses'!DI103))","v":4},{"$f":"IF(('2011 Survey responses'!CX103+'2011 Survey responses'!DB103+'2011 Survey responses'!DF103+'2011 Survey responses'!DJ103)<1,\"\",AVERAGE('2011 Survey responses'!CX103,'2011 Survey responses'!DB103,'2011 Survey responses'!DF103,'2011 Survey responses'!DJ103))","v":4.75},{"$f":"IF(('2011 Survey responses'!CY103+'2011 Survey responses'!DC103+'2011 Survey responses'!DG103+'2011 Survey responses'!DK103)<1,\"\",AVERAGE('2011 Survey responses'!CY103,'2011 Survey responses'!DC103,'2011 Survey responses'!DG103,'2011 Survey responses'!DK103))","v":2.75},{"$f":"IF(('2011 Survey responses'!CZ103+'2011 Survey responses'!DD103+'2011 Survey responses'!DH103+'2011 Survey responses'!DL103)<1,\"\",AVERAGE('2011 Survey responses'!CZ103,'2011 Survey responses'!DD103,'2011 Survey responses'!DH103,'2011 Survey responses'!DL103))","v":3.75},{"$f":"IF('2011 Survey responses'!CW103<0.5,\"\",'2011 Survey responses'!CW103)","v":4},{"$f":"IF('2011 Survey responses'!CX103<0.5,\"\",'2011 Survey responses'!CX103)","v":5},{"$f":"IF('2011 Survey responses'!CY103<0.5,\"\",'2011 Survey responses'!CY103)","v":3},{"$f":"IF('2011 Survey responses'!CZ103<0.5,\"\",'2011 Survey responses'!CZ103)","v":5},{"$f":"IF('2011 Survey responses'!DA103<0.5,\"\",'2011 Survey responses'!DA103)","v":4},{"$f":"IF('2011 Survey responses'!DB103<0.5,\"\",'2011 Survey responses'!DB103)","v":5},{"$f":"IF('2011 Survey responses'!DC103<0.5,\"\",'2011 Survey responses'!DC103)","v":3},{"$f":"IF('2011 Survey responses'!DD103<0.5,\"\",'2011 Survey responses'!DD103)","v":3},{"$f":"IF('2011 Survey responses'!DE103<0.5,\"\",'2011 Survey responses'!DE103)","v":3},{"$f":"IF('2011 Survey responses'!DF103<0.5,\"\",'2011 Survey responses'!DF103)","v":4},{"$f":"IF('2011 Survey responses'!DG103<0.5,\"\",'2011 Survey responses'!DG103)","v":3},{"$f":"IF('2011 Survey responses'!DH103<0.5,\"\",'2011 Survey responses'!DH103)","v":3},{"$f":"IF('2011 Survey responses'!DI103<0.5,\"\",'2011 Survey responses'!DI103)","v":5},{"$f":"IF('2011 Survey responses'!DJ103<0.5,\"\",'2011 Survey responses'!DJ103)","v":5},{"$f":"IF('2011 Survey responses'!DK103<0.5,\"\",'2011 Survey responses'!DK103)","v":2},{"$f":"IF('2011 Survey responses'!DL103<0.5,\"\",'2011 Survey responses'!DL103)","v":4},{"$f":"IF('2011 Survey responses'!DU103=4,4,IF('2011 Survey responses'!DU103=5,4,\"\"))","v":4},{"$f":"IF('2011 Survey responses'!DV103=4,3,IF('2011 Survey responses'!DV103=5,3,\"\"))","v":3},2,{"$f":"IF(CQ103=2,CQ103,IF(CO103=4,CO103,IF(CP103=3,CP103,IF('2011 Survey responses'!GT103=1,1,\"\"))))","v":2},{"$f":"IF('2011 Survey responses'!DO103<0.5,\"\",'2011 Survey responses'!DO103)","v":4},{"$f":"IF('2011 Survey responses'!DP103<0.5,\"\",'2011 Survey responses'!DP103)","v":5},{"$f":"IF('2011 Survey responses'!DQ103<0.5,\"\",'2011 Survey responses'!DQ103)","v":3},{"$f":"IF('2011 Survey responses'!DR103<0.5,\"\",'2011 Survey responses'!DR103)","v":3},{"$f":"IF('2011 Survey responses'!DS103<0.5,\"\",'2011 Survey responses'!DS103)","v":2},{"$f":"IF('2011 Survey responses'!DT103<0.5,\"\",'2011 Survey responses'!DT103)","v":4},{"$f":"IF('2011 Survey responses'!DU103<0.5,\"\",'2011 Survey responses'!DU103)","v":4},{"$f":"IF('2011 Survey responses'!DV103<0.5,\"\",'2011 Survey responses'!DV103)","v":4},{"$f":"IF('2011 Survey responses'!DW103<0.5,\"\",'2011 Survey responses'!DW103)","v":3},{"$f":"IF('2011 Survey responses'!DX103<0.5,\"\",'2011 Survey responses'!DX103)","v":2},{"$f":"IF('2011 Survey responses'!DY103<0.5,\"\",'2011 Survey responses'!DY103)","v":3},{"$f":"IF('2011 Survey responses'!DZ103<0.5,\"\",'2011 Survey responses'!DZ103)","v":2},{"$f":"IF('2011 Survey responses'!EA103<0.5,\"\",'2011 Survey responses'!EA103)","v":4},{"$f":"IF('2011 Survey responses'!EB103<0.5,\"\",'2011 Survey responses'!EB103)","v":5},{"$f":"IF('2011 Survey responses'!EC103<0.5,\"\",'2011 Survey responses'!EC103)","v":3},{"$f":"IF('2011 Survey responses'!ED103<0.5,\"\",'2011 Survey responses'!ED103)","v":2},{"$f":"IF('2011 Survey responses'!EE103<0.5,\"\",'2011 Survey responses'!EE103)","v":3},{"$f":"IF('2011 Survey responses'!EF103<0.5,\"\",'2011 Survey responses'!EF103)","v":5},{"$f":"IF('2011 Survey responses'!EG103<0.5,\"\",'2011 Survey responses'!EG103)","v":5},{"$f":"IF('2011 Survey responses'!EH103<0.5,\"\",'2011 Survey responses'!EH103)","v":4},{"$f":"IF('2011 Survey responses'!EI103<0.5,\"\",'2011 Survey responses'!EI103)","v":4},{"$f":"IF('2011 Survey responses'!EJ103<0.5,\"\",'2011 Survey responses'!EJ103)","v":4},{"$f":"IF('2011 Survey responses'!EK103<0.5,\"\",'2011 Survey responses'!EK103)","v":3},{"$f":"IF('2011 Survey responses'!EL103<0.5,\"\",'2011 Survey responses'!EL103)","v":3},{"$f":"IF('2011 Survey responses'!EM103<0.5,\"\",'2011 Survey responses'!EM103)","v":5},{"$f":"IF('2011 Survey responses'!EN103<0.5,\"\",'2011 Survey responses'!EN103)","v":5},{"$f":"IF('2011 Survey responses'!EO103<0.5,\"\",'2011 Survey responses'!EO103)","v":1},{"$f":"IF('2011 Survey responses'!EP103<0.5,\"\",'2011 Survey responses'!EP103)","v":1},{"$f":"IF(('2011 Survey responses'!EW103+'2011 Survey responses'!EX103)>=2,AVERAGE('2011 Survey responses'!EW103,'2011 Survey responses'!EY103),\"\")","v":5},{"$f":"IF('2011 Survey responses'!EX103<0.5,\"\",'2011 Survey responses'!EX103)","v":5},{"$f":"IF('2011 Survey responses'!EZ103<0.5,\"\",'2011 Survey responses'!EZ103)","v":5},{"$f":"IF('2011 Survey responses'!FB103<0.5,\"\",'2011 Survey responses'!FB103)","v":4},{"$f":"IF('2011 Survey responses'!FD103<0.5,\"\",'2011 Survey responses'!FD103)","v":3},{"$f":"IF('2011 Survey responses'!FC103<0.5,\"\",'2011 Survey responses'!FC103)","v":2},{"$f":"IF(('2011 Survey responses'!EM103+'2011 Survey responses'!EN103)>=2,AVERAGE('2011 Survey responses'!EM103,'2011 Survey responses'!EN103),\"\")","v":5},{"$f":"IF('2011 Survey responses'!ES103<0.5,\"\",'2011 Survey responses'!ES103)","v":3},{"$f":"IF(('2011 Survey responses'!ET103+'2011 Survey responses'!EU103)>=2,AVERAGE('2011 Survey responses'!ET103,'2011 Survey responses'!EU103),\"\")","v":3},{"$f":"IF('2011 Survey responses'!EV103<0.5,\"\",'2011 Survey responses'!EV103)","v":3},{"$f":"IF('2011 Survey responses'!FA103<0.5,\"\",'2011 Survey responses'!FA103)","v":3},{"$f":"IF('2011 Survey responses'!ER103<0.5,\"\",'2011 Survey responses'!ER103)","v":5},{"$f":"IF(('2011 Survey responses'!EO103+'2011 Survey responses'!EP103)>=2,AVERAGE('2011 Survey responses'!EO103,'2011 Survey responses'!EP103),\"\")","v":1},{"$f":"IF('2011 Survey responses'!EQ103<0.5,\"\",'2011 Survey responses'!EQ103)","v":5},{"$f":"IF('2011 Survey responses'!ET103<0.5,\"\",'2011 Survey responses'!ET103)","v":3},{"$f":"IF('2011 Survey responses'!EU103<0.5,\"\",'2011 Survey responses'!EU103)","v":3},{"$f":"IF('2011 Survey responses'!EW103<0.5,\"\",'2011 Survey responses'!EW103)","v":5},{"$f":"IF('2011 Survey responses'!EY103<0.5,\"\",'2011 Survey responses'!EY103)","v":5},{"$f":"IF('2011 Survey responses'!FU103<0.5,\"\",'2011 Survey responses'!FU103)","v":4},{"$f":"IF(('2011 Survey responses'!FL103+'2011 Survey responses'!FM103)>=2,AVERAGE('2011 Survey responses'!FL103,'2011 Survey responses'!FM103),\"\")","v":4},{"$f":"IF(('2011 Survey responses'!FO103+'2011 Survey responses'!FQ103)>=2,AVERAGE('2011 Survey responses'!FO103,'2011 Survey responses'!FQ103),\"\")","v":4},{"$f":"IF('2011 Survey responses'!FJ103<0.5,\"\",'2011 Survey responses'!FJ103)","v":4},{"$f":"IF('2011 Survey responses'!FT103<0.5,\"\",'2011 Survey responses'!FT103)","v":4},{"$f":"IF('2011 Survey responses'!FR103<0.5,\"\",'2011 Survey responses'!FR103)","v":3},{"$f":"IF('2011 Survey responses'!FK103<0.5,\"\",'2011 Survey responses'!FK103)","v":3},{"$f":"IF('2011 Survey responses'!FP103<0.5,\"\",'2011 Survey responses'!FP103)","v":4},{"$f":"IF('2011 Survey responses'!FN103<0.5,\"\",'2011 Survey responses'!FN103)","v":3},{"$f":"IF(('2011 Survey responses'!FE103+'2011 Survey responses'!FF103)>=2,AVERAGE('2011 Survey responses'!FE103,'2011 Survey responses'!FF103),\"\")","v":3.5},{"$f":"IF('2011 Survey responses'!FS103<0.5,\"\",'2011 Survey responses'!FS103)","v":4},{"$f":"IF('2011 Survey responses'!FV103<0.5,\"\",'2011 Survey responses'!FV103)","v":4},{"$f":"IF(('2011 Survey responses'!FG103+'2011 Survey responses'!FH103)>=2,AVERAGE('2011 Survey responses'!FG103,'2011 Survey responses'!FH103),\"\")","v":3},{"$f":"IF('2011 Survey responses'!FI103<0.5,\"\",'2011 Survey responses'!FI103)","v":4},{"$f":"IF('2011 Survey responses'!FE103<0.5,\"\",'2011 Survey responses'!FE103)","v":3},{"$f":"IF('2011 Survey responses'!FF103<0.5,\"\",'2011 Survey responses'!FF103)","v":4},{"$f":"IF('2011 Survey responses'!FG103<0.5,\"\",'2011 Survey responses'!FG103)","v":3},{"$f":"IF('2011 Survey responses'!FH103<0.5,\"\",'2011 Survey responses'!FH103)","v":3},{"$f":"IF('2011 Survey responses'!FL103<0.5,\"\",'2011 Survey responses'!FL103)","v":4},{"$f":"IF('2011 Survey responses'!FM103<0.5,\"\",'2011 Survey responses'!FM103)","v":4},{"$f":"IF('2011 Survey responses'!FO103<0.5,\"\",'2011 Survey responses'!FO103)","v":4},{"$f":"IF('2011 Survey responses'!FQ103<0.5,\"\",'2011 Survey responses'!FQ103)","v":4}]
["Malawi",{"$f":"IF(SUM(F104)<1,\"\",AVERAGEIF('2011 Survey responses'!B104:CP104,\">1\"))","v":3.6741573033707864},{"$f":"IF(SUM(F104)<1,\"\",AVERAGEIF('2011 Survey responses'!B104:AO104,\">1\"))","v":3.8157894736842106},{"$f":"IF(SUM(F104)<1,\"\",AVERAGEIF('2011 Survey responses'!B104:BV104,\">1\"))","v":3.676056338028169},{"$f":"IF(SUM(F104)<1,\"\",AVERAGEIF('2011 Survey responses'!V104:BV104,\">1\"))","v":3.5094339622641511},{"$f":"IF(SUM('2011 Survey responses'!B104:U104)<1,\"\",(AVERAGEIFS('2011 Survey responses'!B104:U104,'2011 Survey responses'!B104:U104,\">1\")))","v":4.166666666666667},{"$f":"IF(SUM('2011 Survey responses'!B104:H104)<1,\"\",(AVERAGEIFS('2011 Survey responses'!B104:H104,'2011 Survey responses'!B104:H104,\">1\")))","v":4.5},{"$f":"IF(SUM('2011 Survey responses'!I104:S104)<1,\"\",(AVERAGEIFS('2011 Survey responses'!I104:S104,'2011 Survey responses'!I104:S104,\">1\")))","v":4},{"$f":"IF(SUM('2011 Survey responses'!T104:U104)<2.1,\"\",(AVERAGEIFS('2011 Survey responses'!T104:U104,'2011 Survey responses'!T104:U104,\">1\")))","v":4},{"$f":"IF(SUM('2011 Survey responses'!B104:C104)<2.1,\"\",((SUMIF('2011 Survey responses'!B104:C104,\">1\")+SUMIF('2011 Survey responses'!F104,\">1\"))/(COUNTIF('2011 Survey responses'!B104:C104,\">1\")+COUNTIF('2011 Survey responses'!F104,\">1\"))))","v":4.333333333333333},{"$f":"IF(SUM('2011 Survey responses'!D104:E104)<2.1,\"\",(AVERAGEIFS('2011 Survey responses'!D104:E104,'2011 Survey responses'!D104:E104,\">1\")))","v":5},{"$f":"IF(('2011 Survey responses'!B104+'2011 Survey responses'!D104)<2.1,\"\",((SUMIF('2011 Survey responses'!B104,\">1\")+SUMIF('2011 Survey responses'!D104,\">1\")+SUMIF('2011 Survey responses'!F104,\">1\")+SUMIF('2011 Survey responses'!K104,\">1\"))/(COUNTIF('2011 Survey responses'!B104,\">1\")+COUNTIF('2011 Survey responses'!D104,\">1\")+COUNTIF('2011 Survey responses'!F104,\">1\")+COUNTIF('2011 Survey responses'!K104,\">1\"))))","v":4.5},{"$f":"IF(SUM('2011 Survey responses'!G104:H104)<2.1,\"\",(AVERAGEIFS('2011 Survey responses'!G104:H104,'2011 Survey responses'!G104:H104,\">1\")))","v":4},{"$f":"IF(SUM('2011 Survey responses'!F104:G104)<1.5,\"\",MAX('2011 Survey responses'!F104,'2011 Survey responses'!G104))","v":4},{"$f":"IF(SUM('2011 Survey responses'!G104:H104)<1,\"\",MAX('2011 Survey responses'!G104,'2011 Survey responses'!H104))","v":4},{"$f":"IF(SUM('2011 Survey responses'!I104:L104)<4.1,\"\",(AVERAGEIFS('2011 Survey responses'!I104:L104,'2011 Survey responses'!I104:L104,\">1\")))","v":4},{"$f":"IF(SUM('2011 Survey responses'!M104:S104)<4.1,\"\",(AVERAGEIFS('2011 Survey responses'!M104:S104,'2011 Survey responses'!M104:S104,\">1\")))","v":4},{"$f":"IF(SUM('2011 Survey responses'!T104:U104)<2.1,\"\",(AVERAGEIFS('2011 Survey responses'!T104:U104,'2011 Survey responses'!T104:U104,\">1\")))","v":4},{"$f":"IF(SUM('2011 Survey responses'!V104:AO104)<1,\"\",(AVERAGEIFS('2011 Survey responses'!V104:AO104,'2011 Survey responses'!V104:AO104,\">1\")))","v":3.5},{"$f":"IF(SUM('2011 Survey responses'!V104:AA104)<1,\"\",(AVERAGEIFS('2011 Survey responses'!V104:AA104,'2011 Survey responses'!V104:AA104,\">1\")))","v":3},{"$f":"IF(SUM('2011 Survey responses'!AB104:AH104)<1,\"\",(AVERAGEIFS('2011 Survey responses'!AB104:AH104,'2011 Survey responses'!AB104:AH104,\">1\")))","v":3.4285714285714284},{"$f":"IF(SUM('2011 Survey responses'!AI104:AO104)<1,\"\",(AVERAGEIFS('2011 Survey responses'!AI104:AO104,'2011 Survey responses'!AI104:AO104,\">1\")))","v":4},{"$f":"IF(('2011 Survey responses'!Y104+'2011 Survey responses'!AI104+'2011 Survey responses'!AK104)<3.1,\"\",((SUMIF('2011 Survey responses'!Y104,\">1\")+SUMIF('2011 Survey responses'!AI104,\">1\")+SUMIF('2011 Survey responses'!AK104,\">1\")+SUMIF('2011 Survey responses'!AM104,\">1\"))/(COUNTIF('2011 Survey responses'!Y104,\">1\")+COUNTIF('2011 Survey responses'!AI104,\">1\")+COUNTIF('2011 Survey responses'!AK104,\">1\")+COUNTIF('2011 Survey responses'!AM104,\">1\"))))","v":4},{"$f":"IF(('2011 Survey responses'!W104)<1.1,\"\",('2011 Survey responses'!W104))","v":2},{"$f":"IF(('2011 Survey responses'!Y104)<1.1,\"\",('2011 Survey responses'!Y104))","v":4},{"$f":"IF(('2011 Survey responses'!Z104)<1.1,\"\",('2011 Survey responses'!Z104))","v":4},{"$f":"IF(('2011 Survey responses'!V104+'2011 Survey responses'!X104+'2011 Survey responses'!AA104)<3.1,\"\",((SUMIF('2011 Survey responses'!V104,\">1\")+SUMIF('2011 Survey responses'!X104,\">1\")+SUMIF('2011 Survey responses'!AA104,\">1\"))/(COUNTIF('2011 Survey responses'!V104,\">1\")+COUNTIF('2011 Survey responses'!X104,\">1\")+COUNTIF('2011 Survey responses'!AA104,\">1\"))))","v":2.6666666666666665},{"$f":"IF(('2011 Survey responses'!V104+'2011 Survey responses'!Y104+'2011 Survey responses'!AA104)<3.1,\"\",((SUMIF('2011 Survey responses'!V104,\">1\")+SUMIF('2011 Survey responses'!Y104,\">1\")+SUMIF('2011 Survey responses'!AA104,\">1\"))/(COUNTIF('2011 Survey responses'!V104,\">1\")+COUNTIF('2011 Survey responses'!Y104,\">1\")+COUNTIF('2011 Survey responses'!AA104,\">1\"))))","v":3.3333333333333335},{"$f":"IF(SUM('2011 Survey responses'!AB104:AH104)<1,\"\",(AVERAGEIFS('2011 Survey responses'!AB104:AH104,'2011 Survey responses'!AB104:AH104,\">1\")))","v":3.4285714285714284},{"$f":"IF(SUM('2011 Survey responses'!AI104:AO104)<7.1,\"\",(AVERAGEIFS('2011 Survey responses'!AI104:AO104,'2011 Survey responses'!AI104:AO104,\">1\")))","v":4},{"$f":"IF(('2011 Survey responses'!AH104)<1.1,\"\",('2011 Survey responses'!AH104))","v":4},{"$f":"IF(SUM('2011 Survey responses'!AP104:BV104)<1,\"\",(AVERAGEIFS('2011 Survey responses'!AP104:BV104,'2011 Survey responses'!AP104:BV104,\">1\")))","v":3.5151515151515151},{"$f":"IF(SUM('2011 Survey responses'!AP104:AS104)<4.1,\"\",(AVERAGEIFS('2011 Survey responses'!AP104:AS104,'2011 Survey responses'!AP104:AS104,\">1\")))","v":3.5},{"$f":"IF(SUM('2011 Survey responses'!AT104:BF104)<1,\"\",(AVERAGEIFS('2011 Survey responses'!AT104:BF104,'2011 Survey responses'!AT104:BF104,\">1\")))","v":3.2307692307692308},{"$f":"IF(SUM('2011 Survey responses'!BG104:BO104)<1,\"\",(AVERAGEIFS('2011 Survey responses'!BG104:BO104,'2011 Survey responses'!BG104:BO104,\">1\")))","v":3.7777777777777777},{"$f":"IF(SUM('2011 Survey responses'!BP104:BS104)<1,\"\",(AVERAGEIFS('2011 Survey responses'!BP104:BS104,'2011 Survey responses'!BP104:BS104,\">1\")))","v":4},{"$f":"IF(SUM('2011 Survey responses'!BT104:BV104)<3.1,\"\",(AVERAGEIFS('2011 Survey responses'!BT104:BV104,'2011 Survey responses'!BT104:BV104,\">1\")))","v":3.3333333333333335},{"$f":"IF(('2011 Survey responses'!AQ104+'2011 Survey responses'!AR104+'2011 Survey responses'!BG104)<3.1,\"\",((SUMIF('2011 Survey responses'!AQ104,\">1\")+SUMIF('2011 Survey responses'!AR104,\">1\")+SUMIF('2011 Survey responses'!BG104,\">1\"))/(COUNTIF('2011 Survey responses'!AQ104,\">1\")+COUNTIF('2011 Survey responses'!AR104,\">1\")+COUNTIF('2011 Survey responses'!BG104,\">1\"))))","v":4},{"$f":"IF(SUM('2011 Survey responses'!AP104:AS104)<4.1,\"\",(AVERAGEIFS('2011 Survey responses'!AP104:AS104,'2011 Survey responses'!AP104:AS104,\">1\")))","v":3.5},{"$f":"IF(('2011 Survey responses'!AU104+'2011 Survey responses'!AX104+'2011 Survey responses'!BA104+'2011 Survey responses'!BC104+'2011 Survey responses'!BD104)<5.1,\"\",(SUMIF('2011 Survey responses'!AU104,\">1\")+SUMIF('2011 Survey responses'!AX104,\">1\")+SUMIF('2011 Survey responses'!BA104,\">1\")+SUMIF('2011 Survey responses'!BC104,\">1\")+SUMIF('2011 Survey responses'!BD104,\">1\"))/(COUNTIF('2011 Survey responses'!AU104,\">1\")+COUNTIF('2011 Survey responses'!AX104,\">1\")+COUNTIF('2011 Survey responses'!BA104,\">1\")+COUNTIF('2011 Survey responses'!BC104,\">1\")+COUNTIF('2011 Survey responses'!BD104,\">1\")))","v":3.2},{"$f":"IF(('2011 Survey responses'!AT104)<1.1,\"\",('2011 Survey responses'!AT104))","v":4},{"$f":"IF(SUM('2011 Survey responses'!AV104:AW104)<2.1,\"\",(AVERAGEIFS('2011 Survey responses'!AV104:AW104,'2011 Survey responses'!AV104:AW104,\">1\")))","v":2},{"$f":"IF(('2011 Survey responses'!AW104+'2011 Survey responses'!AY104)<2.1,\"\",(SUMIF('2011 Survey responses'!AW104,\">1\")+SUMIF('2011 Survey responses'!AY104,\">1\"))/(COUNTIF('2011 Survey responses'!AW104,\">1\")+COUNTIF('2011 Survey responses'!AY104,\">1\")))","v":2},{"$f":"IF(('2011 Survey responses'!AZ104)<1.1,\"\",('2011 Survey responses'!AZ104))","v":4},4,2,4,2,{"$f":"IF(('2011 Survey responses'!BE104)<1.1,\"\",('2011 Survey responses'!BE104))","v":4},{"$f":"IF(('2011 Survey responses'!AY104+'2011 Survey responses'!BB104+'2011 Survey responses'!BF104)<3.1,\"\",(SUMIF('2011 Survey responses'!AY104,\">1\")+SUMIF('2011 Survey responses'!BB104,\">1\")+SUMIF('2011 Survey responses'!BF104,\">1\"))/(COUNTIF('2011 Survey responses'!AY104,\">1\")+COUNTIF('2011 Survey responses'!BB104,\">1\")+COUNTIF('2011 Survey responses'!BF104,\">1\")))","v":3.3333333333333335},3.8888888888888888,{"$f":"IF(SUM('2011 Survey responses'!BT104:BV104)<3.1,\"\",(AVERAGEIFS('2011 Survey responses'!BT104:BV104,'2011 Survey responses'!BT104:BV104,\">1\")))","v":3.3333333333333335},{"$f":"IF(SUM('2011 Survey responses'!BW104:CP104)<1,\"\",(AVERAGEIFS('2011 Survey responses'!BW104:CP104,'2011 Survey responses'!BW104:CP104,\">1\")))","v":3.6666666666666665},{"$f":"IF(SUM('2011 Survey responses'!BW104:CF104)<1,\"\",(AVERAGEIFS('2011 Survey responses'!BW104:CF104,'2011 Survey responses'!BW104:CF104,\">1\")))","v":3.3333333333333335},{"$f":"IF(SUM('2011 Survey responses'!CG104:CP104)<1,\"\",(AVERAGEIFS('2011 Survey responses'!CG104:CP104,'2011 Survey responses'!CG104:CP104,\">1\")))","v":4},{"$f":"IF(SUM('2011 Survey responses'!BX104:CF104)<1,\"\",(AVERAGEIFS('2011 Survey responses'!BX104:CF104,'2011 Survey responses'!BX104:CF104,\">1\")))","v":3.5},{"$f":"IF(SUM('2011 Survey responses'!CH104:CP104)<1,\"\",(AVERAGEIFS('2011 Survey responses'!CH104:CP104,'2011 Survey responses'!CH104:CP104,\">1\")))","v":4},{"$f":"IF(SUM('2011 Survey responses'!BW104:CP104)<1,\"\",(AVERAGEIFS('2011 Survey responses'!BW104:CP104,'2011 Survey responses'!BW104:CP104,\">1\")))","v":3.6666666666666665},{"$f":"IF(('2011 Survey responses'!BW104+'2011 Survey responses'!CG104)<2.1,\"\",(SUMIF('2011 Survey responses'!BW104,\">1\")+SUMIF('2011 Survey responses'!CG104,\">1\"))/(COUNTIF('2011 Survey responses'!BW104,\">1\")+COUNTIF('2011 Survey responses'!CG104,\">1\")))","v":3},{"$f":"IF(('2011 Survey responses'!BX104+'2011 Survey responses'!CH104)<2.1,\"\",(SUMIF('2011 Survey responses'!BX104,\">1\")+SUMIF('2011 Survey responses'!CH104,\">1\"))/(COUNTIF('2011 Survey responses'!BX104,\">1\")+COUNTIF('2011 Survey responses'!CH104,\">1\")))","v":4},{"$f":"IF(('2011 Survey responses'!BY104+'2011 Survey responses'!CI104)<2.1,\"\",(SUMIF('2011 Survey responses'!BY104,\">1\")+SUMIF('2011 Survey responses'!CI104,\">1\"))/(COUNTIF('2011 Survey responses'!BY104,\">1\")+COUNTIF('2011 Survey responses'!CI104,\">1\")))","v":4},{"$f":"IF('2011 Survey responses'!CQ104<0.5,\"\",'2011 Survey responses'!CQ104)","v":4},{"$f":"IF('2011 Survey responses'!CR104<0.5,\"\",'2011 Survey responses'!CR104)","v":4},{"$f":"IF('2011 Survey responses'!CS104<0.5,\"\",'2011 Survey responses'!CS104)","v":4},{"$f":"IF('2011 Survey responses'!CT104<0.5,\"\",'2011 Survey responses'!CT104)","v":4},{"$f":"IF('2011 Survey responses'!CU104<0.5,\"\",'2011 Survey responses'!CU104)","v":1},{"$f":"IF('2011 Survey responses'!CV104<0.5,\"\",'2011 Survey responses'!CV104)","v":1},{"$f":"IF(SUM('2011 Survey responses'!CW104:DL104)<1,\"\",(AVERAGE('2011 Survey responses'!CW104:DL104)))","v":4},{"$f":"IF(SUM('2011 Survey responses'!CW104:CZ104)<1,\"\",(AVERAGE('2011 Survey responses'!CW104:CZ104)))","v":4},{"$f":"IF(SUM('2011 Survey responses'!DA104:DD104)<1,\"\",(AVERAGE('2011 Survey responses'!DA104:DD104)))","v":4},{"$f":"IF(SUM('2011 Survey responses'!DE104:DH104)<1,\"\",(AVERAGE('2011 Survey responses'!DE104:DH104)))","v":4},{"$f":"IF(SUM('2011 Survey responses'!DI104:DL104)<1,\"\",(AVERAGE('2011 Survey responses'!DI104:DL104)))","v":4},{"$f":"IF(('2011 Survey responses'!CW104+'2011 Survey responses'!DA104+'2011 Survey responses'!DE104+'2011 Survey responses'!DI104)<1,\"\",AVERAGE('2011 Survey responses'!CW104,'2011 Survey responses'!DA104,'2011 Survey responses'!DE104,'2011 Survey responses'!DI104))","v":4},{"$f":"IF(('2011 Survey responses'!CX104+'2011 Survey responses'!DB104+'2011 Survey responses'!DF104+'2011 Survey responses'!DJ104)<1,\"\",AVERAGE('2011 Survey responses'!CX104,'2011 Survey responses'!DB104,'2011 Survey responses'!DF104,'2011 Survey responses'!DJ104))","v":4},{"$f":"IF(('2011 Survey responses'!CY104+'2011 Survey responses'!DC104+'2011 Survey responses'!DG104+'2011 Survey responses'!DK104)<1,\"\",AVERAGE('2011 Survey responses'!CY104,'2011 Survey responses'!DC104,'2011 Survey responses'!DG104,'2011 Survey responses'!DK104))","v":4},{"$f":"IF(('2011 Survey responses'!CZ104+'2011 Survey responses'!DD104+'2011 Survey responses'!DH104+'2011 Survey responses'!DL104)<1,\"\",AVERAGE('2011 Survey responses'!CZ104,'2011 Survey responses'!DD104,'2011 Survey responses'!DH104,'2011 Survey responses'!DL104))","v":4},{"$f":"IF('2011 Survey responses'!CW104<0.5,\"\",'2011 Survey responses'!CW104)","v":4},{"$f":"IF('2011 Survey responses'!CX104<0.5,\"\",'2011 Survey responses'!CX104)","v":4},{"$f":"IF('2011 Survey responses'!CY104<0.5,\"\",'2011 Survey responses'!CY104)","v":4},{"$f":"IF('2011 Survey responses'!CZ104<0.5,\"\",'2011 Survey responses'!CZ104)","v":4},{"$f":"IF('2011 Survey responses'!DA104<0.5,\"\",'2011 Survey responses'!DA104)","v":4},{"$f":"IF('2011 Survey responses'!DB104<0.5,\"\",'2011 Survey responses'!DB104)","v":4},{"$f":"IF('2011 Survey responses'!DC104<0.5,\"\",'2011 Survey responses'!DC104)","v":4},{"$f":"IF('2011 Survey responses'!DD104<0.5,\"\",'2011 Survey responses'!DD104)","v":4},{"$f":"IF('2011 Survey responses'!DE104<0.5,\"\",'2011 Survey responses'!DE104)","v":4},{"$f":"IF('2011 Survey responses'!DF104<0.5,\"\",'2011 Survey responses'!DF104)","v":4},{"$f":"IF('2011 Survey responses'!DG104<0.5,\"\",'2011 Survey responses'!DG104)","v":4},{"$f":"IF('2011 Survey responses'!DH104<0.5,\"\",'2011 Survey responses'!DH104)","v":4},{"$f":"IF('2011 Survey responses'!DI104<0.5,\"\",'2011 Survey responses'!DI104)","v":4},{"$f":"IF('2011 Survey responses'!DJ104<0.5,\"\",'2011 Survey responses'!DJ104)","v":4},{"$f":"IF('2011 Survey responses'!DK104<0.5,\"\",'2011 Survey responses'!DK104)","v":4},{"$f":"IF('2011 Survey responses'!DL104<0.5,\"\",'2011 Survey responses'!DL104)","v":4},{"$f":"IF('2011 Survey responses'!DU104=4,4,IF('2011 Survey responses'!DU104=5,4,\"\"))","v":""},{"$f":"IF('2011 Survey responses'!DV104=4,3,IF('2011 Survey responses'!DV104=5,3,\"\"))","v":3},"",{"$f":"IF(CQ104=2,CQ104,IF(CO104=4,CO104,IF(CP104=3,CP104,IF('2011 Survey responses'!GT104=1,1,\"\"))))","v":3},{"$f":"IF('2011 Survey responses'!DO104<0.5,\"\",'2011 Survey responses'!DO104)","v":4},{"$f":"IF('2011 Survey responses'!DP104<0.5,\"\",'2011 Survey responses'!DP104)","v":4},{"$f":"IF('2011 Survey responses'!DQ104<0.5,\"\",'2011 Survey responses'!DQ104)","v":4},{"$f":"IF('2011 Survey responses'!DR104<0.5,\"\",'2011 Survey responses'!DR104)","v":4},{"$f":"IF('2011 Survey responses'!DS104<0.5,\"\",'2011 Survey responses'!DS104)","v":2},{"$f":"IF('2011 Survey responses'!DT104<0.5,\"\",'2011 Survey responses'!DT104)","v":4},{"$f":"IF('2011 Survey responses'!DU104<0.5,\"\",'2011 Survey responses'!DU104)","v":3},{"$f":"IF('2011 Survey responses'!DV104<0.5,\"\",'2011 Survey responses'!DV104)","v":4},{"$f":"IF('2011 Survey responses'!DW104<0.5,\"\",'2011 Survey responses'!DW104)","v":4},{"$f":"IF('2011 Survey responses'!DX104<0.5,\"\",'2011 Survey responses'!DX104)","v":4},{"$f":"IF('2011 Survey responses'!DY104<0.5,\"\",'2011 Survey responses'!DY104)","v":4},{"$f":"IF('2011 Survey responses'!DZ104<0.5,\"\",'2011 Survey responses'!DZ104)","v":4},{"$f":"IF('2011 Survey responses'!EA104<0.5,\"\",'2011 Survey responses'!EA104)","v":5},{"$f":"IF('2011 Survey responses'!EB104<0.5,\"\",'2011 Survey responses'!EB104)","v":5},{"$f":"IF('2011 Survey responses'!EC104<0.5,\"\",'2011 Survey responses'!EC104)","v":4},{"$f":"IF('2011 Survey responses'!ED104<0.5,\"\",'2011 Survey responses'!ED104)","v":4},{"$f":"IF('2011 Survey responses'!EE104<0.5,\"\",'2011 Survey responses'!EE104)","v":2},{"$f":"IF('2011 Survey responses'!EF104<0.5,\"\",'2011 Survey responses'!EF104)","v":5},{"$f":"IF('2011 Survey responses'!EG104<0.5,\"\",'2011 Survey responses'!EG104)","v":4},{"$f":"IF('2011 Survey responses'!EH104<0.5,\"\",'2011 Survey responses'!EH104)","v":4},{"$f":"IF('2011 Survey responses'!EI104<0.5,\"\",'2011 Survey responses'!EI104)","v":4},{"$f":"IF('2011 Survey responses'!EJ104<0.5,\"\",'2011 Survey responses'!EJ104)","v":4},{"$f":"IF('2011 Survey responses'!EK104<0.5,\"\",'2011 Survey responses'!EK104)","v":2},{"$f":"IF('2011 Survey responses'!EL104<0.5,\"\",'2011 Survey responses'!EL104)","v":2},{"$f":"IF('2011 Survey responses'!EM104<0.5,\"\",'2011 Survey responses'!EM104)","v":4},{"$f":"IF('2011 Survey responses'!EN104<0.5,\"\",'2011 Survey responses'!EN104)","v":4},{"$f":"IF('2011 Survey responses'!EO104<0.5,\"\",'2011 Survey responses'!EO104)","v":4},{"$f":"IF('2011 Survey responses'!EP104<0.5,\"\",'2011 Survey responses'!EP104)","v":4},{"$f":"IF(('2011 Survey responses'!EW104+'2011 Survey responses'!EX104)>=2,AVERAGE('2011 Survey responses'!EW104,'2011 Survey responses'!EY104),\"\")","v":4},{"$f":"IF('2011 Survey responses'!EX104<0.5,\"\",'2011 Survey responses'!EX104)","v":4},{"$f":"IF('2011 Survey responses'!EZ104<0.5,\"\",'2011 Survey responses'!EZ104)","v":3},{"$f":"IF('2011 Survey responses'!FB104<0.5,\"\",'2011 Survey responses'!FB104)","v":3},{"$f":"IF('2011 Survey responses'!FD104<0.5,\"\",'2011 Survey responses'!FD104)","v":3},{"$f":"IF('2011 Survey responses'!FC104<0.5,\"\",'2011 Survey responses'!FC104)","v":3},{"$f":"IF(('2011 Survey responses'!EM104+'2011 Survey responses'!EN104)>=2,AVERAGE('2011 Survey responses'!EM104,'2011 Survey responses'!EN104),\"\")","v":4},{"$f":"IF('2011 Survey responses'!ES104<0.5,\"\",'2011 Survey responses'!ES104)","v":4},{"$f":"IF(('2011 Survey responses'!ET104+'2011 Survey responses'!EU104)>=2,AVERAGE('2011 Survey responses'!ET104,'2011 Survey responses'!EU104),\"\")","v":4},{"$f":"IF('2011 Survey responses'!EV104<0.5,\"\",'2011 Survey responses'!EV104)","v":4},{"$f":"IF('2011 Survey responses'!FA104<0.5,\"\",'2011 Survey responses'!FA104)","v":4},{"$f":"IF('2011 Survey responses'!ER104<0.5,\"\",'2011 Survey responses'!ER104)","v":4},{"$f":"IF(('2011 Survey responses'!EO104+'2011 Survey responses'!EP104)>=2,AVERAGE('2011 Survey responses'!EO104,'2011 Survey responses'!EP104),\"\")","v":4},{"$f":"IF('2011 Survey responses'!EQ104<0.5,\"\",'2011 Survey responses'!EQ104)","v":2},{"$f":"IF('2011 Survey responses'!ET104<0.5,\"\",'2011 Survey responses'!ET104)","v":4},{"$f":"IF('2011 Survey responses'!EU104<0.5,\"\",'2011 Survey responses'!EU104)","v":4},{"$f":"IF('2011 Survey responses'!EW104<0.5,\"\",'2011 Survey responses'!EW104)","v":4},{"$f":"IF('2011 Survey responses'!EY104<0.5,\"\",'2011 Survey responses'!EY104)","v":4},{"$f":"IF('2011 Survey responses'!FU104<0.5,\"\",'2011 Survey responses'!FU104)","v":4},{"$f":"IF(('2011 Survey responses'!FL104+'2011 Survey responses'!FM104)>=2,AVERAGE('2011 Survey responses'!FL104,'2011 Survey responses'!FM104),\"\")","v":4},{"$f":"IF(('2011 Survey responses'!FO104+'2011 Survey responses'!FQ104)>=2,AVERAGE('2011 Survey responses'!FO104,'2011 Survey responses'!FQ104),\"\")","v":4},{"$f":"IF('2011 Survey responses'!FJ104<0.5,\"\",'2011 Survey responses'!FJ104)","v":4},{"$f":"IF('2011 Survey responses'!FT104<0.5,\"\",'2011 Survey responses'!FT104)","v":4},{"$f":"IF('2011 Survey responses'!FR104<0.5,\"\",'2011 Survey responses'!FR104)","v":3},{"$f":"IF('2011 Survey responses'!FK104<0.5,\"\",'2011 Survey responses'!FK104)","v":4},{"$f":"IF('2011 Survey responses'!FP104<0.5,\"\",'2011 Survey responses'!FP104)","v":4},{"$f":"IF('2011 Survey responses'!FN104<0.5,\"\",'2011 Survey responses'!FN104)","v":3},{"$f":"IF(('2011 Survey responses'!FE104+'2011 Survey responses'!FF104)>=2,AVERAGE('2011 Survey responses'!FE104,'2011 Survey responses'!FF104),\"\")","v":4},{"$f":"IF('2011 Survey responses'!FS104<0.5,\"\",'2011 Survey responses'!FS104)","v":4},{"$f":"IF('2011 Survey responses'!FV104<0.5,\"\",'2011 Survey responses'!FV104)","v":4},{"$f":"IF(('2011 Survey responses'!FG104+'2011 Survey responses'!FH104)>=2,AVERAGE('2011 Survey responses'!FG104,'2011 Survey responses'!FH104),\"\")","v":4.5},{"$f":"IF('2011 Survey responses'!FI104<0.5,\"\",'2011 Survey responses'!FI104)","v":3},{"$f":"IF('2011 Survey responses'!FE104<0.5,\"\",'2011 Survey responses'!FE104)","v":4},{"$f":"IF('2011 Survey responses'!FF104<0.5,\"\",'2011 Survey responses'!FF104)","v":4},{"$f":"IF('2011 Survey responses'!FG104<0.5,\"\",'2011 Survey responses'!FG104)","v":5},{"$f":"IF('2011 Survey responses'!FH104<0.5,\"\",'2011 Survey responses'!FH104)","v":4},{"$f":"IF('2011 Survey responses'!FL104<0.5,\"\",'2011 Survey responses'!FL104)","v":4},{"$f":"IF('2011 Survey responses'!FM104<0.5,\"\",'2011 Survey responses'!FM104)","v":4},{"$f":"IF('2011 Survey responses'!FO104<0.5,\"\",'2011 Survey responses'!FO104)","v":4},{"$f":"IF('2011 Survey responses'!FQ104<0.5,\"\",'2011 Survey responses'!FQ104)","v":4}]
["Malaysia",{"$f":"IF(SUM(F105)<1,\"\",AVERAGEIF('2011 Survey responses'!B105:CP105,\">1\"))","v":4.0769230769230766},{"$f":"IF(SUM(F105)<1,\"\",AVERAGEIF('2011 Survey responses'!B105:AO105,\">1\"))","v":3.6666666666666665},{"$f":"IF(SUM(F105)<1,\"\",AVERAGEIF('2011 Survey responses'!B105:BV105,\">1\"))","v":3.971830985915493},{"$f":"IF(SUM(F105)<1,\"\",AVERAGEIF('2011 Survey responses'!V105:BV105,\">1\"))","v":4.25},{"$f":"IF(SUM('2011 Survey responses'!B105:U105)<1,\"\",(AVERAGEIFS('2011 Survey responses'!B105:U105,'2011 Survey responses'!B105:U105,\">1\")))","v":3.2105263157894739},{"$f":"IF(SUM('2011 Survey responses'!B105:H105)<1,\"\",(AVERAGEIFS('2011 Survey responses'!B105:H105,'2011 Survey responses'!B105:H105,\">1\")))","v":2.2857142857142856},{"$f":"IF(SUM('2011 Survey responses'!I105:S105)<1,\"\",(AVERAGEIFS('2011 Survey responses'!I105:S105,'2011 Survey responses'!I105:S105,\">1\")))","v":3.7272727272727271},{"$f":"IF(SUM('2011 Survey responses'!T105:U105)<2.1,\"\",(AVERAGEIFS('2011 Survey responses'!T105:U105,'2011 Survey responses'!T105:U105,\">1\")))","v":4},{"$f":"IF(SUM('2011 Survey responses'!B105:C105)<2.1,\"\",((SUMIF('2011 Survey responses'!B105:C105,\">1\")+SUMIF('2011 Survey responses'!F105,\">1\"))/(COUNTIF('2011 Survey responses'!B105:C105,\">1\")+COUNTIF('2011 Survey responses'!F105,\">1\"))))","v":2},{"$f":"IF(SUM('2011 Survey responses'!D105:E105)<2.1,\"\",(AVERAGEIFS('2011 Survey responses'!D105:E105,'2011 Survey responses'!D105:E105,\">1\")))","v":3},{"$f":"IF(('2011 Survey responses'!B105+'2011 Survey responses'!D105)<2.1,\"\",((SUMIF('2011 Survey responses'!B105,\">1\")+SUMIF('2011 Survey responses'!D105,\">1\")+SUMIF('2011 Survey responses'!F105,\">1\")+SUMIF('2011 Survey responses'!K105,\">1\"))/(COUNTIF('2011 Survey responses'!B105,\">1\")+COUNTIF('2011 Survey responses'!D105,\">1\")+COUNTIF('2011 Survey responses'!F105,\">1\")+COUNTIF('2011 Survey responses'!K105,\">1\"))))","v":2.5},{"$f":"IF(SUM('2011 Survey responses'!G105:H105)<2.1,\"\",(AVERAGEIFS('2011 Survey responses'!G105:H105,'2011 Survey responses'!G105:H105,\">1\")))","v":2},{"$f":"IF(SUM('2011 Survey responses'!F105:G105)<1.5,\"\",MAX('2011 Survey responses'!F105,'2011 Survey responses'!G105))","v":2},{"$f":"IF(SUM('2011 Survey responses'!G105:H105)<1,\"\",MAX('2011 Survey responses'!G105,'2011 Survey responses'!H105))","v":2},{"$f":"IF(SUM('2011 Survey responses'!I105:L105)<4.1,\"\",(AVERAGEIFS('2011 Survey responses'!I105:L105,'2011 Survey responses'!I105:L105,\">1\")))","v":3.25},{"$f":"IF(SUM('2011 Survey responses'!M105:S105)<4.1,\"\",(AVERAGEIFS('2011 Survey responses'!M105:S105,'2011 Survey responses'!M105:S105,\">1\")))","v":4},{"$f":"IF(SUM('2011 Survey responses'!T105:U105)<2.1,\"\",(AVERAGEIFS('2011 Survey responses'!T105:U105,'2011 Survey responses'!T105:U105,\">1\")))","v":4},{"$f":"IF(SUM('2011 Survey responses'!V105:AO105)<1,\"\",(AVERAGEIFS('2011 Survey responses'!V105:AO105,'2011 Survey responses'!V105:AO105,\">1\")))","v":4.0999999999999996},{"$f":"IF(SUM('2011 Survey responses'!V105:AA105)<1,\"\",(AVERAGEIFS('2011 Survey responses'!V105:AA105,'2011 Survey responses'!V105:AA105,\">1\")))","v":4.333333333333333},{"$f":"IF(SUM('2011 Survey responses'!AB105:AH105)<1,\"\",(AVERAGEIFS('2011 Survey responses'!AB105:AH105,'2011 Survey responses'!AB105:AH105,\">1\")))","v":4},{"$f":"IF(SUM('2011 Survey responses'!AI105:AO105)<1,\"\",(AVERAGEIFS('2011 Survey responses'!AI105:AO105,'2011 Survey responses'!AI105:AO105,\">1\")))","v":4},{"$f":"IF(('2011 Survey responses'!Y105+'2011 Survey responses'!AI105+'2011 Survey responses'!AK105)<3.1,\"\",((SUMIF('2011 Survey responses'!Y105,\">1\")+SUMIF('2011 Survey responses'!AI105,\">1\")+SUMIF('2011 Survey responses'!AK105,\">1\")+SUMIF('2011 Survey responses'!AM105,\">1\"))/(COUNTIF('2011 Survey responses'!Y105,\">1\")+COUNTIF('2011 Survey responses'!AI105,\">1\")+COUNTIF('2011 Survey responses'!AK105,\">1\")+COUNTIF('2011 Survey responses'!AM105,\">1\"))))","v":4},{"$f":"IF(('2011 Survey responses'!W105)<1.1,\"\",('2011 Survey responses'!W105))","v":5},{"$f":"IF(('2011 Survey responses'!Y105)<1.1,\"\",('2011 Survey responses'!Y105))","v":4},{"$f":"IF(('2011 Survey responses'!Z105)<1.1,\"\",('2011 Survey responses'!Z105))","v":4},{"$f":"IF(('2011 Survey responses'!V105+'2011 Survey responses'!X105+'2011 Survey responses'!AA105)<3.1,\"\",((SUMIF('2011 Survey responses'!V105,\">1\")+SUMIF('2011 Survey responses'!X105,\">1\")+SUMIF('2011 Survey responses'!AA105,\">1\"))/(COUNTIF('2011 Survey responses'!V105,\">1\")+COUNTIF('2011 Survey responses'!X105,\">1\")+COUNTIF('2011 Survey responses'!AA105,\">1\"))))","v":4.333333333333333},{"$f":"IF(('2011 Survey responses'!V105+'2011 Survey responses'!Y105+'2011 Survey responses'!AA105)<3.1,\"\",((SUMIF('2011 Survey responses'!V105,\">1\")+SUMIF('2011 Survey responses'!Y105,\">1\")+SUMIF('2011 Survey responses'!AA105,\">1\"))/(COUNTIF('2011 Survey responses'!V105,\">1\")+COUNTIF('2011 Survey responses'!Y105,\">1\")+COUNTIF('2011 Survey responses'!AA105,\">1\"))))","v":4.333333333333333},{"$f":"IF(SUM('2011 Survey responses'!AB105:AH105)<1,\"\",(AVERAGEIFS('2011 Survey responses'!AB105:AH105,'2011 Survey responses'!AB105:AH105,\">1\")))","v":4},{"$f":"IF(SUM('2011 Survey responses'!AI105:AO105)<7.1,\"\",(AVERAGEIFS('2011 Survey responses'!AI105:AO105,'2011 Survey responses'!AI105:AO105,\">1\")))","v":4},{"$f":"IF(('2011 Survey responses'!AH105)<1.1,\"\",('2011 Survey responses'!AH105))","v":4},{"$f":"IF(SUM('2011 Survey responses'!AP105:BV105)<1,\"\",(AVERAGEIFS('2011 Survey responses'!AP105:BV105,'2011 Survey responses'!AP105:BV105,\">1\")))","v":4.34375},{"$f":"IF(SUM('2011 Survey responses'!AP105:AS105)<4.1,\"\",(AVERAGEIFS('2011 Survey responses'!AP105:AS105,'2011 Survey responses'!AP105:AS105,\">1\")))","v":4},{"$f":"IF(SUM('2011 Survey responses'!AT105:BF105)<1,\"\",(AVERAGEIFS('2011 Survey responses'!AT105:BF105,'2011 Survey responses'!AT105:BF105,\">1\")))","v":4.1538461538461542},{"$f":"IF(SUM('2011 Survey responses'!BG105:BO105)<1,\"\",(AVERAGEIFS('2011 Survey responses'!BG105:BO105,'2011 Survey responses'!BG105:BO105,\">1\")))","v":5},{"$f":"IF(SUM('2011 Survey responses'!BP105:BS105)<1,\"\",(AVERAGEIFS('2011 Survey responses'!BP105:BS105,'2011 Survey responses'!BP105:BS105,\">1\")))","v":4},{"$f":"IF(SUM('2011 Survey responses'!BT105:BV105)<3.1,\"\",(AVERAGEIFS('2011 Survey responses'!BT105:BV105,'2011 Survey responses'!BT105:BV105,\">1\")))","v":4},{"$f":"IF(('2011 Survey responses'!AQ105+'2011 Survey responses'!AR105+'2011 Survey responses'!BG105)<3.1,\"\",((SUMIF('2011 Survey responses'!AQ105,\">1\")+SUMIF('2011 Survey responses'!AR105,\">1\")+SUMIF('2011 Survey responses'!BG105,\">1\"))/(COUNTIF('2011 Survey responses'!AQ105,\">1\")+COUNTIF('2011 Survey responses'!AR105,\">1\")+COUNTIF('2011 Survey responses'!BG105,\">1\"))))","v":4.333333333333333},{"$f":"IF(SUM('2011 Survey responses'!AP105:AS105)<4.1,\"\",(AVERAGEIFS('2011 Survey responses'!AP105:AS105,'2011 Survey responses'!AP105:AS105,\">1\")))","v":4},{"$f":"IF(('2011 Survey responses'!AU105+'2011 Survey responses'!AX105+'2011 Survey responses'!BA105+'2011 Survey responses'!BC105+'2011 Survey responses'!BD105)<5.1,\"\",(SUMIF('2011 Survey responses'!AU105,\">1\")+SUMIF('2011 Survey responses'!AX105,\">1\")+SUMIF('2011 Survey responses'!BA105,\">1\")+SUMIF('2011 Survey responses'!BC105,\">1\")+SUMIF('2011 Survey responses'!BD105,\">1\"))/(COUNTIF('2011 Survey responses'!AU105,\">1\")+COUNTIF('2011 Survey responses'!AX105,\">1\")+COUNTIF('2011 Survey responses'!BA105,\">1\")+COUNTIF('2011 Survey responses'!BC105,\">1\")+COUNTIF('2011 Survey responses'!BD105,\">1\")))","v":4.4000000000000004},{"$f":"IF(('2011 Survey responses'!AT105)<1.1,\"\",('2011 Survey responses'!AT105))","v":5},{"$f":"IF(SUM('2011 Survey responses'!AV105:AW105)<2.1,\"\",(AVERAGEIFS('2011 Survey responses'!AV105:AW105,'2011 Survey responses'!AV105:AW105,\">1\")))","v":3.5},{"$f":"IF(('2011 Survey responses'!AW105+'2011 Survey responses'!AY105)<2.1,\"\",(SUMIF('2011 Survey responses'!AW105,\">1\")+SUMIF('2011 Survey responses'!AY105,\">1\"))/(COUNTIF('2011 Survey responses'!AW105,\">1\")+COUNTIF('2011 Survey responses'!AY105,\">1\")))","v":3.5},{"$f":"IF(('2011 Survey responses'!AZ105)<1.1,\"\",('2011 Survey responses'!AZ105))","v":4},4,4,4,1,{"$f":"IF(('2011 Survey responses'!BE105)<1.1,\"\",('2011 Survey responses'!BE105))","v":4},{"$f":"IF(('2011 Survey responses'!AY105+'2011 Survey responses'!BB105+'2011 Survey responses'!BF105)<3.1,\"\",(SUMIF('2011 Survey responses'!AY105,\">1\")+SUMIF('2011 Survey responses'!BB105,\">1\")+SUMIF('2011 Survey responses'!BF105,\">1\"))/(COUNTIF('2011 Survey responses'!AY105,\">1\")+COUNTIF('2011 Survey responses'!BB105,\">1\")+COUNTIF('2011 Survey responses'!BF105,\">1\")))","v":4},4.5,{"$f":"IF(SUM('2011 Survey responses'!BT105:BV105)<3.1,\"\",(AVERAGEIFS('2011 Survey responses'!BT105:BV105,'2011 Survey responses'!BT105:BV105,\">1\")))","v":4},{"$f":"IF(SUM('2011 Survey responses'!BW105:CP105)<1,\"\",(AVERAGEIFS('2011 Survey responses'!BW105:CP105,'2011 Survey responses'!BW105:CP105,\">1\")))","v":4.45},{"$f":"IF(SUM('2011 Survey responses'!BW105:CF105)<1,\"\",(AVERAGEIFS('2011 Survey responses'!BW105:CF105,'2011 Survey responses'!BW105:CF105,\">1\")))","v":4.5},{"$f":"IF(SUM('2011 Survey responses'!CG105:CP105)<1,\"\",(AVERAGEIFS('2011 Survey responses'!CG105:CP105,'2011 Survey responses'!CG105:CP105,\">1\")))","v":4.4000000000000004},{"$f":"IF(SUM('2011 Survey responses'!BX105:CF105)<1,\"\",(AVERAGEIFS('2011 Survey responses'!BX105:CF105,'2011 Survey responses'!BX105:CF105,\">1\")))","v":4.5555555555555554},{"$f":"IF(SUM('2011 Survey responses'!CH105:CP105)<1,\"\",(AVERAGEIFS('2011 Survey responses'!CH105:CP105,'2011 Survey responses'!CH105:CP105,\">1\")))","v":4.4444444444444446},{"$f":"IF(SUM('2011 Survey responses'!BW105:CP105)<1,\"\",(AVERAGEIFS('2011 Survey responses'!BW105:CP105,'2011 Survey responses'!BW105:CP105,\">1\")))","v":4.45},{"$f":"IF(('2011 Survey responses'!BW105+'2011 Survey responses'!CG105)<2.1,\"\",(SUMIF('2011 Survey responses'!BW105,\">1\")+SUMIF('2011 Survey responses'!CG105,\">1\"))/(COUNTIF('2011 Survey responses'!BW105,\">1\")+COUNTIF('2011 Survey responses'!CG105,\">1\")))","v":4},{"$f":"IF(('2011 Survey responses'!BX105+'2011 Survey responses'!CH105)<2.1,\"\",(SUMIF('2011 Survey responses'!BX105,\">1\")+SUMIF('2011 Survey responses'!CH105,\">1\"))/(COUNTIF('2011 Survey responses'!BX105,\">1\")+COUNTIF('2011 Survey responses'!CH105,\">1\")))","v":5},{"$f":"IF(('2011 Survey responses'!BY105+'2011 Survey responses'!CI105)<2.1,\"\",(SUMIF('2011 Survey responses'!BY105,\">1\")+SUMIF('2011 Survey responses'!CI105,\">1\"))/(COUNTIF('2011 Survey responses'!BY105,\">1\")+COUNTIF('2011 Survey responses'!CI105,\">1\")))","v":5},{"$f":"IF('2011 Survey responses'!CQ105<0.5,\"\",'2011 Survey responses'!CQ105)","v":4},{"$f":"IF('2011 Survey responses'!CR105<0.5,\"\",'2011 Survey responses'!CR105)","v":1},{"$f":"IF('2011 Survey responses'!CS105<0.5,\"\",'2011 Survey responses'!CS105)","v":1},{"$f":"IF('2011 Survey responses'!CT105<0.5,\"\",'2011 Survey responses'!CT105)","v":1},{"$f":"IF('2011 Survey responses'!CU105<0.5,\"\",'2011 Survey responses'!CU105)","v":4},{"$f":"IF('2011 Survey responses'!CV105<0.5,\"\",'2011 Survey responses'!CV105)","v":4},{"$f":"IF(SUM('2011 Survey responses'!CW105:DL105)<1,\"\",(AVERAGE('2011 Survey responses'!CW105:DL105)))","v":5},{"$f":"IF(SUM('2011 Survey responses'!CW105:CZ105)<1,\"\",(AVERAGE('2011 Survey responses'!CW105:CZ105)))","v":5},{"$f":"IF(SUM('2011 Survey responses'!DA105:DD105)<1,\"\",(AVERAGE('2011 Survey responses'!DA105:DD105)))","v":5},{"$f":"IF(SUM('2011 Survey responses'!DE105:DH105)<1,\"\",(AVERAGE('2011 Survey responses'!DE105:DH105)))","v":5},{"$f":"IF(SUM('2011 Survey responses'!DI105:DL105)<1,\"\",(AVERAGE('2011 Survey responses'!DI105:DL105)))","v":5},{"$f":"IF(('2011 Survey responses'!CW105+'2011 Survey responses'!DA105+'2011 Survey responses'!DE105+'2011 Survey responses'!DI105)<1,\"\",AVERAGE('2011 Survey responses'!CW105,'2011 Survey responses'!DA105,'2011 Survey responses'!DE105,'2011 Survey responses'!DI105))","v":5},{"$f":"IF(('2011 Survey responses'!CX105+'2011 Survey responses'!DB105+'2011 Survey responses'!DF105+'2011 Survey responses'!DJ105)<1,\"\",AVERAGE('2011 Survey responses'!CX105,'2011 Survey responses'!DB105,'2011 Survey responses'!DF105,'2011 Survey responses'!DJ105))","v":5},{"$f":"IF(('2011 Survey responses'!CY105+'2011 Survey responses'!DC105+'2011 Survey responses'!DG105+'2011 Survey responses'!DK105)<1,\"\",AVERAGE('2011 Survey responses'!CY105,'2011 Survey responses'!DC105,'2011 Survey responses'!DG105,'2011 Survey responses'!DK105))","v":5},{"$f":"IF(('2011 Survey responses'!CZ105+'2011 Survey responses'!DD105+'2011 Survey responses'!DH105+'2011 Survey responses'!DL105)<1,\"\",AVERAGE('2011 Survey responses'!CZ105,'2011 Survey responses'!DD105,'2011 Survey responses'!DH105,'2011 Survey responses'!DL105))","v":5},{"$f":"IF('2011 Survey responses'!CW105<0.5,\"\",'2011 Survey responses'!CW105)","v":5},{"$f":"IF('2011 Survey responses'!CX105<0.5,\"\",'2011 Survey responses'!CX105)","v":5},{"$f":"IF('2011 Survey responses'!CY105<0.5,\"\",'2011 Survey responses'!CY105)","v":5},{"$f":"IF('2011 Survey responses'!CZ105<0.5,\"\",'2011 Survey responses'!CZ105)","v":5},{"$f":"IF('2011 Survey responses'!DA105<0.5,\"\",'2011 Survey responses'!DA105)","v":5},{"$f":"IF('2011 Survey responses'!DB105<0.5,\"\",'2011 Survey responses'!DB105)","v":5},{"$f":"IF('2011 Survey responses'!DC105<0.5,\"\",'2011 Survey responses'!DC105)","v":5},{"$f":"IF('2011 Survey responses'!DD105<0.5,\"\",'2011 Survey responses'!DD105)","v":5},{"$f":"IF('2011 Survey responses'!DE105<0.5,\"\",'2011 Survey responses'!DE105)","v":5},{"$f":"IF('2011 Survey responses'!DF105<0.5,\"\",'2011 Survey responses'!DF105)","v":5},{"$f":"IF('2011 Survey responses'!DG105<0.5,\"\",'2011 Survey responses'!DG105)","v":5},{"$f":"IF('2011 Survey responses'!DH105<0.5,\"\",'2011 Survey responses'!DH105)","v":5},{"$f":"IF('2011 Survey responses'!DI105<0.5,\"\",'2011 Survey responses'!DI105)","v":5},{"$f":"IF('2011 Survey responses'!DJ105<0.5,\"\",'2011 Survey responses'!DJ105)","v":5},{"$f":"IF('2011 Survey responses'!DK105<0.5,\"\",'2011 Survey responses'!DK105)","v":5},{"$f":"IF('2011 Survey responses'!DL105<0.5,\"\",'2011 Survey responses'!DL105)","v":5},{"$f":"IF('2011 Survey responses'!DU105=4,4,IF('2011 Survey responses'!DU105=5,4,\"\"))","v":4},{"$f":"IF('2011 Survey responses'!DV105=4,3,IF('2011 Survey responses'!DV105=5,3,\"\"))","v":3},2,{"$f":"IF(CQ105=2,CQ105,IF(CO105=4,CO105,IF(CP105=3,CP105,IF('2011 Survey responses'!GT105=1,1,\"\"))))","v":2},{"$f":"IF('2011 Survey responses'!DO105<0.5,\"\",'2011 Survey responses'!DO105)","v":4},{"$f":"IF('2011 Survey responses'!DP105<0.5,\"\",'2011 Survey responses'!DP105)","v":5},{"$f":"IF('2011 Survey responses'!DQ105<0.5,\"\",'2011 Survey responses'!DQ105)","v":4},{"$f":"IF('2011 Survey responses'!DR105<0.5,\"\",'2011 Survey responses'!DR105)","v":4},{"$f":"IF('2011 Survey responses'!DS105<0.5,\"\",'2011 Survey responses'!DS105)","v":4},{"$f":"IF('2011 Survey responses'!DT105<0.5,\"\",'2011 Survey responses'!DT105)","v":4},{"$f":"IF('2011 Survey responses'!DU105<0.5,\"\",'2011 Survey responses'!DU105)","v":4},{"$f":"IF('2011 Survey responses'!DV105<0.5,\"\",'2011 Survey responses'!DV105)","v":4},{"$f":"IF('2011 Survey responses'!DW105<0.5,\"\",'2011 Survey responses'!DW105)","v":4},{"$f":"IF('2011 Survey responses'!DX105<0.5,\"\",'2011 Survey responses'!DX105)","v":4},{"$f":"IF('2011 Survey responses'!DY105<0.5,\"\",'2011 Survey responses'!DY105)","v":4},{"$f":"IF('2011 Survey responses'!DZ105<0.5,\"\",'2011 Survey responses'!DZ105)","v":4},{"$f":"IF('2011 Survey responses'!EA105<0.5,\"\",'2011 Survey responses'!EA105)","v":4},{"$f":"IF('2011 Survey responses'!EB105<0.5,\"\",'2011 Survey responses'!EB105)","v":4},{"$f":"IF('2011 Survey responses'!EC105<0.5,\"\",'2011 Survey responses'!EC105)","v":4},{"$f":"IF('2011 Survey responses'!ED105<0.5,\"\",'2011 Survey responses'!ED105)","v":4},{"$f":"IF('2011 Survey responses'!EE105<0.5,\"\",'2011 Survey responses'!EE105)","v":4},{"$f":"IF('2011 Survey responses'!EF105<0.5,\"\",'2011 Survey responses'!EF105)","v":5},{"$f":"IF('2011 Survey responses'!EG105<0.5,\"\",'2011 Survey responses'!EG105)","v":4},{"$f":"IF('2011 Survey responses'!EH105<0.5,\"\",'2011 Survey responses'!EH105)","v":4},{"$f":"IF('2011 Survey responses'!EI105<0.5,\"\",'2011 Survey responses'!EI105)","v":4},{"$f":"IF('2011 Survey responses'!EJ105<0.5,\"\",'2011 Survey responses'!EJ105)","v":4},{"$f":"IF('2011 Survey responses'!EK105<0.5,\"\",'2011 Survey responses'!EK105)","v":4},{"$f":"IF('2011 Survey responses'!EL105<0.5,\"\",'2011 Survey responses'!EL105)","v":4},{"$f":"IF('2011 Survey responses'!EM105<0.5,\"\",'2011 Survey responses'!EM105)","v":4},{"$f":"IF('2011 Survey responses'!EN105<0.5,\"\",'2011 Survey responses'!EN105)","v":4},{"$f":"IF('2011 Survey responses'!EO105<0.5,\"\",'2011 Survey responses'!EO105)","v":4},{"$f":"IF('2011 Survey responses'!EP105<0.5,\"\",'2011 Survey responses'!EP105)","v":4},{"$f":"IF(('2011 Survey responses'!EW105+'2011 Survey responses'!EX105)>=2,AVERAGE('2011 Survey responses'!EW105,'2011 Survey responses'!EY105),\"\")","v":4},{"$f":"IF('2011 Survey responses'!EX105<0.5,\"\",'2011 Survey responses'!EX105)","v":4},{"$f":"IF('2011 Survey responses'!EZ105<0.5,\"\",'2011 Survey responses'!EZ105)","v":4},{"$f":"IF('2011 Survey responses'!FB105<0.5,\"\",'2011 Survey responses'!FB105)","v":4},{"$f":"IF('2011 Survey responses'!FD105<0.5,\"\",'2011 Survey responses'!FD105)","v":4},{"$f":"IF('2011 Survey responses'!FC105<0.5,\"\",'2011 Survey responses'!FC105)","v":4},{"$f":"IF(('2011 Survey responses'!EM105+'2011 Survey responses'!EN105)>=2,AVERAGE('2011 Survey responses'!EM105,'2011 Survey responses'!EN105),\"\")","v":4},{"$f":"IF('2011 Survey responses'!ES105<0.5,\"\",'2011 Survey responses'!ES105)","v":4},{"$f":"IF(('2011 Survey responses'!ET105+'2011 Survey responses'!EU105)>=2,AVERAGE('2011 Survey responses'!ET105,'2011 Survey responses'!EU105),\"\")","v":4},{"$f":"IF('2011 Survey responses'!EV105<0.5,\"\",'2011 Survey responses'!EV105)","v":4},{"$f":"IF('2011 Survey responses'!FA105<0.5,\"\",'2011 Survey responses'!FA105)","v":4},{"$f":"IF('2011 Survey responses'!ER105<0.5,\"\",'2011 Survey responses'!ER105)","v":4},{"$f":"IF(('2011 Survey responses'!EO105+'2011 Survey responses'!EP105)>=2,AVERAGE('2011 Survey responses'!EO105,'2011 Survey responses'!EP105),\"\")","v":4},{"$f":"IF('2011 Survey responses'!EQ105<0.5,\"\",'2011 Survey responses'!EQ105)","v":2},{"$f":"IF('2011 Survey responses'!ET105<0.5,\"\",'2011 Survey responses'!ET105)","v":4},{"$f":"IF('2011 Survey responses'!EU105<0.5,\"\",'2011 Survey responses'!EU105)","v":4},{"$f":"IF('2011 Survey responses'!EW105<0.5,\"\",'2011 Survey responses'!EW105)","v":4},{"$f":"IF('2011 Survey responses'!EY105<0.5,\"\",'2011 Survey responses'!EY105)","v":4},{"$f":"IF('2011 Survey responses'!FU105<0.5,\"\",'2011 Survey responses'!FU105)","v":4},{"$f":"IF(('2011 Survey responses'!FL105+'2011 Survey responses'!FM105)>=2,AVERAGE('2011 Survey responses'!FL105,'2011 Survey responses'!FM105),\"\")","v":4},{"$f":"IF(('2011 Survey responses'!FO105+'2011 Survey responses'!FQ105)>=2,AVERAGE('2011 Survey responses'!FO105,'2011 Survey responses'!FQ105),\"\")","v":4},{"$f":"IF('2011 Survey responses'!FJ105<0.5,\"\",'2011 Survey responses'!FJ105)","v":4},{"$f":"IF('2011 Survey responses'!FT105<0.5,\"\",'2011 Survey responses'!FT105)","v":4},{"$f":"IF('2011 Survey responses'!FR105<0.5,\"\",'2011 Survey responses'!FR105)","v":4},{"$f":"IF('2011 Survey responses'!FK105<0.5,\"\",'2011 Survey responses'!FK105)","v":4},{"$f":"IF('2011 Survey responses'!FP105<0.5,\"\",'2011 Survey responses'!FP105)","v":4},{"$f":"IF('2011 Survey responses'!FN105<0.5,\"\",'2011 Survey responses'!FN105)","v":4},{"$f":"IF(('2011 Survey responses'!FE105+'2011 Survey responses'!FF105)>=2,AVERAGE('2011 Survey responses'!FE105,'2011 Survey responses'!FF105),\"\")","v":4},{"$f":"IF('2011 Survey responses'!FS105<0.5,\"\",'2011 Survey responses'!FS105)","v":4},{"$f":"IF('2011 Survey responses'!FV105<0.5,\"\",'2011 Survey responses'!FV105)","v":4},{"$f":"IF(('2011 Survey responses'!FG105+'2011 Survey responses'!FH105)>=2,AVERAGE('2011 Survey responses'!FG105,'2011 Survey responses'!FH105),\"\")","v":4},{"$f":"IF('2011 Survey responses'!FI105<0.5,\"\",'2011 Survey responses'!FI105)","v":4},{"$f":"IF('2011 Survey responses'!FE105<0.5,\"\",'2011 Survey responses'!FE105)","v":4},{"$f":"IF('2011 Survey responses'!FF105<0.5,\"\",'2011 Survey responses'!FF105)","v":4},{"$f":"IF('2011 Survey responses'!FG105<0.5,\"\",'2011 Survey responses'!FG105)","v":4},{"$f":"IF('2011 Survey responses'!FH105<0.5,\"\",'2011 Survey responses'!FH105)","v":4},{"$f":"IF('2011 Survey responses'!FL105<0.5,\"\",'2011 Survey responses'!FL105)","v":4},{"$f":"IF('2011 Survey responses'!FM105<0.5,\"\",'2011 Survey responses'!FM105)","v":4},{"$f":"IF('2011 Survey responses'!FO105<0.5,\"\",'2011 Survey responses'!FO105)","v":4},{"$f":"IF('2011 Survey responses'!FQ105<0.5,\"\",'2011 Survey responses'!FQ105)","v":4}]
["Maldives",{"$f":"IF(SUM(F106)<1,\"\",AVERAGEIF('2011 Survey responses'!B106:CP106,\">1\"))","v":""},{"$f":"IF(SUM(F106)<1,\"\",AVERAGEIF('2011 Survey responses'!B106:AO106,\">1\"))","v":""},{"$f":"IF(SUM(F106)<1,\"\",AVERAGEIF('2011 Survey responses'!B106:BV106,\">1\"))","v":""},{"$f":"IF(SUM(F106)<1,\"\",AVERAGEIF('2011 Survey responses'!V106:BV106,\">1\"))","v":""},{"$f":"IF(SUM('2011 Survey responses'!B106:U106)<1,\"\",(AVERAGEIFS('2011 Survey responses'!B106:U106,'2011 Survey responses'!B106:U106,\">1\")))","v":""},{"$f":"IF(SUM('2011 Survey responses'!B106:H106)<1,\"\",(AVERAGEIFS('2011 Survey responses'!B106:H106,'2011 Survey responses'!B106:H106,\">1\")))","v":""},{"$f":"IF(SUM('2011 Survey responses'!I106:S106)<1,\"\",(AVERAGEIFS('2011 Survey responses'!I106:S106,'2011 Survey responses'!I106:S106,\">1\")))","v":""},{"$f":"IF(SUM('2011 Survey responses'!T106:U106)<2.1,\"\",(AVERAGEIFS('2011 Survey responses'!T106:U106,'2011 Survey responses'!T106:U106,\">1\")))","v":""},{"$f":"IF(SUM('2011 Survey responses'!B106:C106)<2.1,\"\",((SUMIF('2011 Survey responses'!B106:C106,\">1\")+SUMIF('2011 Survey responses'!F106,\">1\"))/(COUNTIF('2011 Survey responses'!B106:C106,\">1\")+COUNTIF('2011 Survey responses'!F106,\">1\"))))","v":""},{"$f":"IF(SUM('2011 Survey responses'!D106:E106)<2.1,\"\",(AVERAGEIFS('2011 Survey responses'!D106:E106,'2011 Survey responses'!D106:E106,\">1\")))","v":""},{"$f":"IF(('2011 Survey responses'!B106+'2011 Survey responses'!D106)<2.1,\"\",((SUMIF('2011 Survey responses'!B106,\">1\")+SUMIF('2011 Survey responses'!D106,\">1\")+SUMIF('2011 Survey responses'!F106,\">1\")+SUMIF('2011 Survey responses'!K106,\">1\"))/(COUNTIF('2011 Survey responses'!B106,\">1\")+COUNTIF('2011 Survey responses'!D106,\">1\")+COUNTIF('2011 Survey responses'!F106,\">1\")+COUNTIF('2011 Survey responses'!K106,\">1\"))))","v":""},{"$f":"IF(SUM('2011 Survey responses'!G106:H106)<2.1,\"\",(AVERAGEIFS('2011 Survey responses'!G106:H106,'2011 Survey responses'!G106:H106,\">1\")))","v":""},{"$f":"IF(SUM('2011 Survey responses'!F106:G106)<1.5,\"\",MAX('2011 Survey responses'!F106,'2011 Survey responses'!G106))","v":""},{"$f":"IF(SUM('2011 Survey responses'!G106:H106)<1,\"\",MAX('2011 Survey responses'!G106,'2011 Survey responses'!H106))","v":""},{"$f":"IF(SUM('2011 Survey responses'!I106:L106)<4.1,\"\",(AVERAGEIFS('2011 Survey responses'!I106:L106,'2011 Survey responses'!I106:L106,\">1\")))","v":""},{"$f":"IF(SUM('2011 Survey responses'!M106:S106)<4.1,\"\",(AVERAGEIFS('2011 Survey responses'!M106:S106,'2011 Survey responses'!M106:S106,\">1\")))","v":""},{"$f":"IF(SUM('2011 Survey responses'!T106:U106)<2.1,\"\",(AVERAGEIFS('2011 Survey responses'!T106:U106,'2011 Survey responses'!T106:U106,\">1\")))","v":""},{"$f":"IF(SUM('2011 Survey responses'!V106:AO106)<1,\"\",(AVERAGEIFS('2011 Survey responses'!V106:AO106,'2011 Survey responses'!V106:AO106,\">1\")))","v":""},{"$f":"IF(SUM('2011 Survey responses'!V106:AA106)<1,\"\",(AVERAGEIFS('2011 Survey responses'!V106:AA106,'2011 Survey responses'!V106:AA106,\">1\")))","v":""},{"$f":"IF(SUM('2011 Survey responses'!AB106:AH106)<1,\"\",(AVERAGEIFS('2011 Survey responses'!AB106:AH106,'2011 Survey responses'!AB106:AH106,\">1\")))","v":""},{"$f":"IF(SUM('2011 Survey responses'!AI106:AO106)<1,\"\",(AVERAGEIFS('2011 Survey responses'!AI106:AO106,'2011 Survey responses'!AI106:AO106,\">1\")))","v":""},{"$f":"IF(('2011 Survey responses'!Y106+'2011 Survey responses'!AI106+'2011 Survey responses'!AK106)<3.1,\"\",((SUMIF('2011 Survey responses'!Y106,\">1\")+SUMIF('2011 Survey responses'!AI106,\">1\")+SUMIF('2011 Survey responses'!AK106,\">1\")+SUMIF('2011 Survey responses'!AM106,\">1\"))/(COUNTIF('2011 Survey responses'!Y106,\">1\")+COUNTIF('2011 Survey responses'!AI106,\">1\")+COUNTIF('2011 Survey responses'!AK106,\">1\")+COUNTIF('2011 Survey responses'!AM106,\">1\"))))","v":""},{"$f":"IF(('2011 Survey responses'!W106)<1.1,\"\",('2011 Survey responses'!W106))","v":""},{"$f":"IF(('2011 Survey responses'!Y106)<1.1,\"\",('2011 Survey responses'!Y106))","v":""},{"$f":"IF(('2011 Survey responses'!Z106)<1.1,\"\",('2011 Survey responses'!Z106))","v":""},{"$f":"IF(('2011 Survey responses'!V106+'2011 Survey responses'!X106+'2011 Survey responses'!AA106)<3.1,\"\",((SUMIF('2011 Survey responses'!V106,\">1\")+SUMIF('2011 Survey responses'!X106,\">1\")+SUMIF('2011 Survey responses'!AA106,\">1\"))/(COUNTIF('2011 Survey responses'!V106,\">1\")+COUNTIF('2011 Survey responses'!X106,\">1\")+COUNTIF('2011 Survey responses'!AA106,\">1\"))))","v":""},{"$f":"IF(('2011 Survey responses'!V106+'2011 Survey responses'!Y106+'2011 Survey responses'!AA106)<3.1,\"\",((SUMIF('2011 Survey responses'!V106,\">1\")+SUMIF('2011 Survey responses'!Y106,\">1\")+SUMIF('2011 Survey responses'!AA106,\">1\"))/(COUNTIF('2011 Survey responses'!V106,\">1\")+COUNTIF('2011 Survey responses'!Y106,\">1\")+COUNTIF('2011 Survey responses'!AA106,\">1\"))))","v":""},{"$f":"IF(SUM('2011 Survey responses'!AB106:AH106)<1,\"\",(AVERAGEIFS('2011 Survey responses'!AB106:AH106,'2011 Survey responses'!AB106:AH106,\">1\")))","v":""},{"$f":"IF(SUM('2011 Survey responses'!AI106:AO106)<7.1,\"\",(AVERAGEIFS('2011 Survey responses'!AI106:AO106,'2011 Survey responses'!AI106:AO106,\">1\")))","v":""},{"$f":"IF(('2011 Survey responses'!AH106)<1.1,\"\",('2011 Survey responses'!AH106))","v":""},{"$f":"IF(SUM('2011 Survey responses'!AP106:BV106)<1,\"\",(AVERAGEIFS('2011 Survey responses'!AP106:BV106,'2011 Survey responses'!AP106:BV106,\">1\")))","v":""},{"$f":"IF(SUM('2011 Survey responses'!AP106:AS106)<4.1,\"\",(AVERAGEIFS('2011 Survey responses'!AP106:AS106,'2011 Survey responses'!AP106:AS106,\">1\")))","v":""},{"$f":"IF(SUM('2011 Survey responses'!AT106:BF106)<1,\"\",(AVERAGEIFS('2011 Survey responses'!AT106:BF106,'2011 Survey responses'!AT106:BF106,\">1\")))","v":""},{"$f":"IF(SUM('2011 Survey responses'!BG106:BO106)<1,\"\",(AVERAGEIFS('2011 Survey responses'!BG106:BO106,'2011 Survey responses'!BG106:BO106,\">1\")))","v":""},{"$f":"IF(SUM('2011 Survey responses'!BP106:BS106)<1,\"\",(AVERAGEIFS('2011 Survey responses'!BP106:BS106,'2011 Survey responses'!BP106:BS106,\">1\")))","v":""},{"$f":"IF(SUM('2011 Survey responses'!BT106:BV106)<3.1,\"\",(AVERAGEIFS('2011 Survey responses'!BT106:BV106,'2011 Survey responses'!BT106:BV106,\">1\")))","v":""},{"$f":"IF(('2011 Survey responses'!AQ106+'2011 Survey responses'!AR106+'2011 Survey responses'!BG106)<3.1,\"\",((SUMIF('2011 Survey responses'!AQ106,\">1\")+SUMIF('2011 Survey responses'!AR106,\">1\")+SUMIF('2011 Survey responses'!BG106,\">1\"))/(COUNTIF('2011 Survey responses'!AQ106,\">1\")+COUNTIF('2011 Survey responses'!AR106,\">1\")+COUNTIF('2011 Survey responses'!BG106,\">1\"))))","v":""},{"$f":"IF(SUM('2011 Survey responses'!AP106:AS106)<4.1,\"\",(AVERAGEIFS('2011 Survey responses'!AP106:AS106,'2011 Survey responses'!AP106:AS106,\">1\")))","v":""},{"$f":"IF(('2011 Survey responses'!AU106+'2011 Survey responses'!AX106+'2011 Survey responses'!BA106+'2011 Survey responses'!BC106+'2011 Survey responses'!BD106)<5.1,\"\",(SUMIF('2011 Survey responses'!AU106,\">1\")+SUMIF('2011 Survey responses'!AX106,\">1\")+SUMIF('2011 Survey responses'!BA106,\">1\")+SUMIF('2011 Survey responses'!BC106,\">1\")+SUMIF('2011 Survey responses'!BD106,\">1\"))/(COUNTIF('2011 Survey responses'!AU106,\">1\")+COUNTIF('2011 Survey responses'!AX106,\">1\")+COUNTIF('2011 Survey responses'!BA106,\">1\")+COUNTIF('2011 Survey responses'!BC106,\">1\")+COUNTIF('2011 Survey responses'!BD106,\">1\")))","v":""},{"$f":"IF(('2011 Survey responses'!AT106)<1.1,\"\",('2011 Survey responses'!AT106))","v":""},{"$f":"IF(SUM('2011 Survey responses'!AV106:AW106)<2.1,\"\",(AVERAGEIFS('2011 Survey responses'!AV106:AW106,'2011 Survey responses'!AV106:AW106,\">1\")))","v":""},{"$f":"IF(('2011 Survey responses'!AW106+'2011 Survey responses'!AY106)<2.1,\"\",(SUMIF('2011 Survey responses'!AW106,\">1\")+SUMIF('2011 Survey responses'!AY106,\">1\"))/(COUNTIF('2011 Survey responses'!AW106,\">1\")+COUNTIF('2011 Survey responses'!AY106,\">1\")))","v":""},{"$f":"IF(('2011 Survey responses'!AZ106)<1.1,\"\",('2011 Survey responses'!AZ106))","v":""},null,null,null,null,{"$f":"IF(('2011 Survey responses'!BE106)<1.1,\"\",('2011 Survey responses'!BE106))","v":""},{"$f":"IF(('2011 Survey responses'!AY106+'2011 Survey responses'!BB106+'2011 Survey responses'!BF106)<3.1,\"\",(SUMIF('2011 Survey responses'!AY106,\">1\")+SUMIF('2011 Survey responses'!BB106,\">1\")+SUMIF('2011 Survey responses'!BF106,\">1\"))/(COUNTIF('2011 Survey responses'!AY106,\">1\")+COUNTIF('2011 Survey responses'!BB106,\">1\")+COUNTIF('2011 Survey responses'!BF106,\">1\")))","v":""},"",{"$f":"IF(SUM('2011 Survey responses'!BT106:BV106)<3.1,\"\",(AVERAGEIFS('2011 Survey responses'!BT106:BV106,'2011 Survey responses'!BT106:BV106,\">1\")))","v":""},{"$f":"IF(SUM('2011 Survey responses'!BW106:CP106)<1,\"\",(AVERAGEIFS('2011 Survey responses'!BW106:CP106,'2011 Survey responses'!BW106:CP106,\">1\")))","v":""},{"$f":"IF(SUM('2011 Survey responses'!BW106:CF106)<1,\"\",(AVERAGEIFS('2011 Survey responses'!BW106:CF106,'2011 Survey responses'!BW106:CF106,\">1\")))","v":""},{"$f":"IF(SUM('2011 Survey responses'!CG106:CP106)<1,\"\",(AVERAGEIFS('2011 Survey responses'!CG106:CP106,'2011 Survey responses'!CG106:CP106,\">1\")))","v":""},{"$f":"IF(SUM('2011 Survey responses'!BX106:CF106)<1,\"\",(AVERAGEIFS('2011 Survey responses'!BX106:CF106,'2011 Survey responses'!BX106:CF106,\">1\")))","v":""},{"$f":"IF(SUM('2011 Survey responses'!CH106:CP106)<1,\"\",(AVERAGEIFS('2011 Survey responses'!CH106:CP106,'2011 Survey responses'!CH106:CP106,\">1\")))","v":""},{"$f":"IF(SUM('2011 Survey responses'!BW106:CP106)<1,\"\",(AVERAGEIFS('2011 Survey responses'!BW106:CP106,'2011 Survey responses'!BW106:CP106,\">1\")))","v":""},{"$f":"IF(('2011 Survey responses'!BW106+'2011 Survey responses'!CG106)<2.1,\"\",(SUMIF('2011 Survey responses'!BW106,\">1\")+SUMIF('2011 Survey responses'!CG106,\">1\"))/(COUNTIF('2011 Survey responses'!BW106,\">1\")+COUNTIF('2011 Survey responses'!CG106,\">1\")))","v":""},{"$f":"IF(('2011 Survey responses'!BX106+'2011 Survey responses'!CH106)<2.1,\"\",(SUMIF('2011 Survey responses'!BX106,\">1\")+SUMIF('2011 Survey responses'!CH106,\">1\"))/(COUNTIF('2011 Survey responses'!BX106,\">1\")+COUNTIF('2011 Survey responses'!CH106,\">1\")))","v":""},{"$f":"IF(('2011 Survey responses'!BY106+'2011 Survey responses'!CI106)<2.1,\"\",(SUMIF('2011 Survey responses'!BY106,\">1\")+SUMIF('2011 Survey responses'!CI106,\">1\"))/(COUNTIF('2011 Survey responses'!BY106,\">1\")+COUNTIF('2011 Survey responses'!CI106,\">1\")))","v":""},{"$f":"IF('2011 Survey responses'!CQ106<0.5,\"\",'2011 Survey responses'!CQ106)","v":""},{"$f":"IF('2011 Survey responses'!CR106<0.5,\"\",'2011 Survey responses'!CR106)","v":""},{"$f":"IF('2011 Survey responses'!CS106<0.5,\"\",'2011 Survey responses'!CS106)","v":""},{"$f":"IF('2011 Survey responses'!CT106<0.5,\"\",'2011 Survey responses'!CT106)","v":""},{"$f":"IF('2011 Survey responses'!CU106<0.5,\"\",'2011 Survey responses'!CU106)","v":""},{"$f":"IF('2011 Survey responses'!CV106<0.5,\"\",'2011 Survey responses'!CV106)","v":""},{"$f":"IF(SUM('2011 Survey responses'!CW106:DL106)<1,\"\",(AVERAGE('2011 Survey responses'!CW106:DL106)))","v":""},{"$f":"IF(SUM('2011 Survey responses'!CW106:CZ106)<1,\"\",(AVERAGE('2011 Survey responses'!CW106:CZ106)))","v":""},{"$f":"IF(SUM('2011 Survey responses'!DA106:DD106)<1,\"\",(AVERAGE('2011 Survey responses'!DA106:DD106)))","v":""},{"$f":"IF(SUM('2011 Survey responses'!DE106:DH106)<1,\"\",(AVERAGE('2011 Survey responses'!DE106:DH106)))","v":""},{"$f":"IF(SUM('2011 Survey responses'!DI106:DL106)<1,\"\",(AVERAGE('2011 Survey responses'!DI106:DL106)))","v":""},{"$f":"IF(('2011 Survey responses'!CW106+'2011 Survey responses'!DA106+'2011 Survey responses'!DE106+'2011 Survey responses'!DI106)<1,\"\",AVERAGE('2011 Survey responses'!CW106,'2011 Survey responses'!DA106,'2011 Survey responses'!DE106,'2011 Survey responses'!DI106))","v":""},{"$f":"IF(('2011 Survey responses'!CX106+'2011 Survey responses'!DB106+'2011 Survey responses'!DF106+'2011 Survey responses'!DJ106)<1,\"\",AVERAGE('2011 Survey responses'!CX106,'2011 Survey responses'!DB106,'2011 Survey responses'!DF106,'2011 Survey responses'!DJ106))","v":""},{"$f":"IF(('2011 Survey responses'!CY106+'2011 Survey responses'!DC106+'2011 Survey responses'!DG106+'2011 Survey responses'!DK106)<1,\"\",AVERAGE('2011 Survey responses'!CY106,'2011 Survey responses'!DC106,'2011 Survey responses'!DG106,'2011 Survey responses'!DK106))","v":""},{"$f":"IF(('2011 Survey responses'!CZ106+'2011 Survey responses'!DD106+'2011 Survey responses'!DH106+'2011 Survey responses'!DL106)<1,\"\",AVERAGE('2011 Survey responses'!CZ106,'2011 Survey responses'!DD106,'2011 Survey responses'!DH106,'2011 Survey responses'!DL106))","v":""},{"$f":"IF('2011 Survey responses'!CW106<0.5,\"\",'2011 Survey responses'!CW106)","v":""},{"$f":"IF('2011 Survey responses'!CX106<0.5,\"\",'2011 Survey responses'!CX106)","v":""},{"$f":"IF('2011 Survey responses'!CY106<0.5,\"\",'2011 Survey responses'!CY106)","v":""},{"$f":"IF('2011 Survey responses'!CZ106<0.5,\"\",'2011 Survey responses'!CZ106)","v":""},{"$f":"IF('2011 Survey responses'!DA106<0.5,\"\",'2011 Survey responses'!DA106)","v":""},{"$f":"IF('2011 Survey responses'!DB106<0.5,\"\",'2011 Survey responses'!DB106)","v":""},{"$f":"IF('2011 Survey responses'!DC106<0.5,\"\",'2011 Survey responses'!DC106)","v":""},{"$f":"IF('2011 Survey responses'!DD106<0.5,\"\",'2011 Survey responses'!DD106)","v":""},{"$f":"IF('2011 Survey responses'!DE106<0.5,\"\",'2011 Survey responses'!DE106)","v":""},{"$f":"IF('2011 Survey responses'!DF106<0.5,\"\",'2011 Survey responses'!DF106)","v":""},{"$f":"IF('2011 Survey responses'!DG106<0.5,\"\",'2011 Survey responses'!DG106)","v":""},{"$f":"IF('2011 Survey responses'!DH106<0.5,\"\",'2011 Survey responses'!DH106)","v":""},{"$f":"IF('2011 Survey responses'!DI106<0.5,\"\",'2011 Survey responses'!DI106)","v":""},{"$f":"IF('2011 Survey responses'!DJ106<0.5,\"\",'2011 Survey responses'!DJ106)","v":""},{"$f":"IF('2011 Survey responses'!DK106<0.5,\"\",'2011 Survey responses'!DK106)","v":""},{"$f":"IF('2011 Survey responses'!DL106<0.5,\"\",'2011 Survey responses'!DL106)","v":""},{"$f":"IF('2011 Survey responses'!DU106=4,4,IF('2011 Survey responses'!DU106=5,4,\"\"))","v":""},{"$f":"IF('2011 Survey responses'!DV106=4,3,IF('2011 Survey responses'!DV106=5,3,\"\"))","v":""},"",{"$f":"IF(CQ106=2,CQ106,IF(CO106=4,CO106,IF(CP106=3,CP106,IF('2011 Survey responses'!GT106=1,1,\"\"))))","v":""},{"$f":"IF('2011 Survey responses'!DO106<0.5,\"\",'2011 Survey responses'!DO106)","v":""},{"$f":"IF('2011 Survey responses'!DP106<0.5,\"\",'2011 Survey responses'!DP106)","v":""},{"$f":"IF('2011 Survey responses'!DQ106<0.5,\"\",'2011 Survey responses'!DQ106)","v":""},{"$f":"IF('2011 Survey responses'!DR106<0.5,\"\",'2011 Survey responses'!DR106)","v":""},{"$f":"IF('2011 Survey responses'!DS106<0.5,\"\",'2011 Survey responses'!DS106)","v":""},{"$f":"IF('2011 Survey responses'!DT106<0.5,\"\",'2011 Survey responses'!DT106)","v":""},{"$f":"IF('2011 Survey responses'!DU106<0.5,\"\",'2011 Survey responses'!DU106)","v":""},{"$f":"IF('2011 Survey responses'!DV106<0.5,\"\",'2011 Survey responses'!DV106)","v":""},{"$f":"IF('2011 Survey responses'!DW106<0.5,\"\",'2011 Survey responses'!DW106)","v":""},{"$f":"IF('2011 Survey responses'!DX106<0.5,\"\",'2011 Survey responses'!DX106)","v":""},{"$f":"IF('2011 Survey responses'!DY106<0.5,\"\",'2011 Survey responses'!DY106)","v":""},{"$f":"IF('2011 Survey responses'!DZ106<0.5,\"\",'2011 Survey responses'!DZ106)","v":""},{"$f":"IF('2011 Survey responses'!EA106<0.5,\"\",'2011 Survey responses'!EA106)","v":""},{"$f":"IF('2011 Survey responses'!EB106<0.5,\"\",'2011 Survey responses'!EB106)","v":""},{"$f":"IF('2011 Survey responses'!EC106<0.5,\"\",'2011 Survey responses'!EC106)","v":""},{"$f":"IF('2011 Survey responses'!ED106<0.5,\"\",'2011 Survey responses'!ED106)","v":""},{"$f":"IF('2011 Survey responses'!EE106<0.5,\"\",'2011 Survey responses'!EE106)","v":""},{"$f":"IF('2011 Survey responses'!EF106<0.5,\"\",'2011 Survey responses'!EF106)","v":""},{"$f":"IF('2011 Survey responses'!EG106<0.5,\"\",'2011 Survey responses'!EG106)","v":""},{"$f":"IF('2011 Survey responses'!EH106<0.5,\"\",'2011 Survey responses'!EH106)","v":""},{"$f":"IF('2011 Survey responses'!EI106<0.5,\"\",'2011 Survey responses'!EI106)","v":""},{"$f":"IF('2011 Survey responses'!EJ106<0.5,\"\",'2011 Survey responses'!EJ106)","v":""},{"$f":"IF('2011 Survey responses'!EK106<0.5,\"\",'2011 Survey responses'!EK106)","v":""},{"$f":"IF('2011 Survey responses'!EL106<0.5,\"\",'2011 Survey responses'!EL106)","v":""},{"$f":"IF('2011 Survey responses'!EM106<0.5,\"\",'2011 Survey responses'!EM106)","v":""},{"$f":"IF('2011 Survey responses'!EN106<0.5,\"\",'2011 Survey responses'!EN106)","v":""},{"$f":"IF('2011 Survey responses'!EO106<0.5,\"\",'2011 Survey responses'!EO106)","v":""},{"$f":"IF('2011 Survey responses'!EP106<0.5,\"\",'2011 Survey responses'!EP106)","v":""},{"$f":"IF(('2011 Survey responses'!EW106+'2011 Survey responses'!EX106)>=2,AVERAGE('2011 Survey responses'!EW106,'2011 Survey responses'!EY106),\"\")","v":""},{"$f":"IF('2011 Survey responses'!EX106<0.5,\"\",'2011 Survey responses'!EX106)","v":""},{"$f":"IF('2011 Survey responses'!EZ106<0.5,\"\",'2011 Survey responses'!EZ106)","v":""},{"$f":"IF('2011 Survey responses'!FB106<0.5,\"\",'2011 Survey responses'!FB106)","v":""},{"$f":"IF('2011 Survey responses'!FD106<0.5,\"\",'2011 Survey responses'!FD106)","v":""},{"$f":"IF('2011 Survey responses'!FC106<0.5,\"\",'2011 Survey responses'!FC106)","v":""},{"$f":"IF(('2011 Survey responses'!EM106+'2011 Survey responses'!EN106)>=2,AVERAGE('2011 Survey responses'!EM106,'2011 Survey responses'!EN106),\"\")","v":""},{"$f":"IF('2011 Survey responses'!ES106<0.5,\"\",'2011 Survey responses'!ES106)","v":""},{"$f":"IF(('2011 Survey responses'!ET106+'2011 Survey responses'!EU106)>=2,AVERAGE('2011 Survey responses'!ET106,'2011 Survey responses'!EU106),\"\")","v":""},{"$f":"IF('2011 Survey responses'!EV106<0.5,\"\",'2011 Survey responses'!EV106)","v":""},{"$f":"IF('2011 Survey responses'!FA106<0.5,\"\",'2011 Survey responses'!FA106)","v":""},{"$f":"IF('2011 Survey responses'!ER106<0.5,\"\",'2011 Survey responses'!ER106)","v":""},{"$f":"IF(('2011 Survey responses'!EO106+'2011 Survey responses'!EP106)>=2,AVERAGE('2011 Survey responses'!EO106,'2011 Survey responses'!EP106),\"\")","v":""},{"$f":"IF('2011 Survey responses'!EQ106<0.5,\"\",'2011 Survey responses'!EQ106)","v":""},{"$f":"IF('2011 Survey responses'!ET106<0.5,\"\",'2011 Survey responses'!ET106)","v":""},{"$f":"IF('2011 Survey responses'!EU106<0.5,\"\",'2011 Survey responses'!EU106)","v":""},{"$f":"IF('2011 Survey responses'!EW106<0.5,\"\",'2011 Survey responses'!EW106)","v":""},{"$f":"IF('2011 Survey responses'!EY106<0.5,\"\",'2011 Survey responses'!EY106)","v":""},{"$f":"IF('2011 Survey responses'!FU106<0.5,\"\",'2011 Survey responses'!FU106)","v":""},{"$f":"IF(('2011 Survey responses'!FL106+'2011 Survey responses'!FM106)>=2,AVERAGE('2011 Survey responses'!FL106,'2011 Survey responses'!FM106),\"\")","v":""},{"$f":"IF(('2011 Survey responses'!FO106+'2011 Survey responses'!FQ106)>=2,AVERAGE('2011 Survey responses'!FO106,'2011 Survey responses'!FQ106),\"\")","v":""},{"$f":"IF('2011 Survey responses'!FJ106<0.5,\"\",'2011 Survey responses'!FJ106)","v":""},{"$f":"IF('2011 Survey responses'!FT106<0.5,\"\",'2011 Survey responses'!FT106)","v":""},{"$f":"IF('2011 Survey responses'!FR106<0.5,\"\",'2011 Survey responses'!FR106)","v":""},{"$f":"IF('2011 Survey responses'!FK106<0.5,\"\",'2011 Survey responses'!FK106)","v":""},{"$f":"IF('2011 Survey responses'!FP106<0.5,\"\",'2011 Survey responses'!FP106)","v":""},{"$f":"IF('2011 Survey responses'!FN106<0.5,\"\",'2011 Survey responses'!FN106)","v":""},{"$f":"IF(('2011 Survey responses'!FE106+'2011 Survey responses'!FF106)>=2,AVERAGE('2011 Survey responses'!FE106,'2011 Survey responses'!FF106),\"\")","v":""},{"$f":"IF('2011 Survey responses'!FS106<0.5,\"\",'2011 Survey responses'!FS106)","v":""},{"$f":"IF('2011 Survey responses'!FV106<0.5,\"\",'2011 Survey responses'!FV106)","v":""},{"$f":"IF(('2011 Survey responses'!FG106+'2011 Survey responses'!FH106)>=2,AVERAGE('2011 Survey responses'!FG106,'2011 Survey responses'!FH106),\"\")","v":""},{"$f":"IF('2011 Survey responses'!FI106<0.5,\"\",'2011 Survey responses'!FI106)","v":""},{"$f":"IF('2011 Survey responses'!FE106<0.5,\"\",'2011 Survey responses'!FE106)","v":""},{"$f":"IF('2011 Survey responses'!FF106<0.5,\"\",'2011 Survey responses'!FF106)","v":""},{"$f":"IF('2011 Survey responses'!FG106<0.5,\"\",'2011 Survey responses'!FG106)","v":""},{"$f":"IF('2011 Survey responses'!FH106<0.5,\"\",'2011 Survey responses'!FH106)","v":""},{"$f":"IF('2011 Survey responses'!FL106<0.5,\"\",'2011 Survey responses'!FL106)","v":""},{"$f":"IF('2011 Survey responses'!FM106<0.5,\"\",'2011 Survey responses'!FM106)","v":""},{"$f":"IF('2011 Survey responses'!FO106<0.5,\"\",'2011 Survey responses'!FO106)","v":""},{"$f":"IF('2011 Survey responses'!FQ106<0.5,\"\",'2011 Survey responses'!FQ106)","v":""}]
["Mali",{"$f":"IF(SUM(F107)<1,\"\",AVERAGEIF('2011 Survey responses'!B107:CP107,\">1\"))","v":""},{"$f":"IF(SUM(F107)<1,\"\",AVERAGEIF('2011 Survey responses'!B107:AO107,\">1\"))","v":""},{"$f":"IF(SUM(F107)<1,\"\",AVERAGEIF('2011 Survey responses'!B107:BV107,\">1\"))","v":""},{"$f":"IF(SUM(F107)<1,\"\",AVERAGEIF('2011 Survey responses'!V107:BV107,\">1\"))","v":""},{"$f":"IF(SUM('2011 Survey responses'!B107:U107)<1,\"\",(AVERAGEIFS('2011 Survey responses'!B107:U107,'2011 Survey responses'!B107:U107,\">1\")))","v":""},{"$f":"IF(SUM('2011 Survey responses'!B107:H107)<1,\"\",(AVERAGEIFS('2011 Survey responses'!B107:H107,'2011 Survey responses'!B107:H107,\">1\")))","v":""},{"$f":"IF(SUM('2011 Survey responses'!I107:S107)<1,\"\",(AVERAGEIFS('2011 Survey responses'!I107:S107,'2011 Survey responses'!I107:S107,\">1\")))","v":""},{"$f":"IF(SUM('2011 Survey responses'!T107:U107)<2.1,\"\",(AVERAGEIFS('2011 Survey responses'!T107:U107,'2011 Survey responses'!T107:U107,\">1\")))","v":""},{"$f":"IF(SUM('2011 Survey responses'!B107:C107)<2.1,\"\",((SUMIF('2011 Survey responses'!B107:C107,\">1\")+SUMIF('2011 Survey responses'!F107,\">1\"))/(COUNTIF('2011 Survey responses'!B107:C107,\">1\")+COUNTIF('2011 Survey responses'!F107,\">1\"))))","v":""},{"$f":"IF(SUM('2011 Survey responses'!D107:E107)<2.1,\"\",(AVERAGEIFS('2011 Survey responses'!D107:E107,'2011 Survey responses'!D107:E107,\">1\")))","v":""},{"$f":"IF(('2011 Survey responses'!B107+'2011 Survey responses'!D107)<2.1,\"\",((SUMIF('2011 Survey responses'!B107,\">1\")+SUMIF('2011 Survey responses'!D107,\">1\")+SUMIF('2011 Survey responses'!F107,\">1\")+SUMIF('2011 Survey responses'!K107,\">1\"))/(COUNTIF('2011 Survey responses'!B107,\">1\")+COUNTIF('2011 Survey responses'!D107,\">1\")+COUNTIF('2011 Survey responses'!F107,\">1\")+COUNTIF('2011 Survey responses'!K107,\">1\"))))","v":""},{"$f":"IF(SUM('2011 Survey responses'!G107:H107)<2.1,\"\",(AVERAGEIFS('2011 Survey responses'!G107:H107,'2011 Survey responses'!G107:H107,\">1\")))","v":""},{"$f":"IF(SUM('2011 Survey responses'!F107:G107)<1.5,\"\",MAX('2011 Survey responses'!F107,'2011 Survey responses'!G107))","v":""},{"$f":"IF(SUM('2011 Survey responses'!G107:H107)<1,\"\",MAX('2011 Survey responses'!G107,'2011 Survey responses'!H107))","v":""},{"$f":"IF(SUM('2011 Survey responses'!I107:L107)<4.1,\"\",(AVERAGEIFS('2011 Survey responses'!I107:L107,'2011 Survey responses'!I107:L107,\">1\")))","v":""},{"$f":"IF(SUM('2011 Survey responses'!M107:S107)<4.1,\"\",(AVERAGEIFS('2011 Survey responses'!M107:S107,'2011 Survey responses'!M107:S107,\">1\")))","v":""},{"$f":"IF(SUM('2011 Survey responses'!T107:U107)<2.1,\"\",(AVERAGEIFS('2011 Survey responses'!T107:U107,'2011 Survey responses'!T107:U107,\">1\")))","v":""},{"$f":"IF(SUM('2011 Survey responses'!V107:AO107)<1,\"\",(AVERAGEIFS('2011 Survey responses'!V107:AO107,'2011 Survey responses'!V107:AO107,\">1\")))","v":""},{"$f":"IF(SUM('2011 Survey responses'!V107:AA107)<1,\"\",(AVERAGEIFS('2011 Survey responses'!V107:AA107,'2011 Survey responses'!V107:AA107,\">1\")))","v":""},{"$f":"IF(SUM('2011 Survey responses'!AB107:AH107)<1,\"\",(AVERAGEIFS('2011 Survey responses'!AB107:AH107,'2011 Survey responses'!AB107:AH107,\">1\")))","v":""},{"$f":"IF(SUM('2011 Survey responses'!AI107:AO107)<1,\"\",(AVERAGEIFS('2011 Survey responses'!AI107:AO107,'2011 Survey responses'!AI107:AO107,\">1\")))","v":""},{"$f":"IF(('2011 Survey responses'!Y107+'2011 Survey responses'!AI107+'2011 Survey responses'!AK107)<3.1,\"\",((SUMIF('2011 Survey responses'!Y107,\">1\")+SUMIF('2011 Survey responses'!AI107,\">1\")+SUMIF('2011 Survey responses'!AK107,\">1\")+SUMIF('2011 Survey responses'!AM107,\">1\"))/(COUNTIF('2011 Survey responses'!Y107,\">1\")+COUNTIF('2011 Survey responses'!AI107,\">1\")+COUNTIF('2011 Survey responses'!AK107,\">1\")+COUNTIF('2011 Survey responses'!AM107,\">1\"))))","v":""},{"$f":"IF(('2011 Survey responses'!W107)<1.1,\"\",('2011 Survey responses'!W107))","v":""},{"$f":"IF(('2011 Survey responses'!Y107)<1.1,\"\",('2011 Survey responses'!Y107))","v":""},{"$f":"IF(('2011 Survey responses'!Z107)<1.1,\"\",('2011 Survey responses'!Z107))","v":""},{"$f":"IF(('2011 Survey responses'!V107+'2011 Survey responses'!X107+'2011 Survey responses'!AA107)<3.1,\"\",((SUMIF('2011 Survey responses'!V107,\">1\")+SUMIF('2011 Survey responses'!X107,\">1\")+SUMIF('2011 Survey responses'!AA107,\">1\"))/(COUNTIF('2011 Survey responses'!V107,\">1\")+COUNTIF('2011 Survey responses'!X107,\">1\")+COUNTIF('2011 Survey responses'!AA107,\">1\"))))","v":""},{"$f":"IF(('2011 Survey responses'!V107+'2011 Survey responses'!Y107+'2011 Survey responses'!AA107)<3.1,\"\",((SUMIF('2011 Survey responses'!V107,\">1\")+SUMIF('2011 Survey responses'!Y107,\">1\")+SUMIF('2011 Survey responses'!AA107,\">1\"))/(COUNTIF('2011 Survey responses'!V107,\">1\")+COUNTIF('2011 Survey responses'!Y107,\">1\")+COUNTIF('2011 Survey responses'!AA107,\">1\"))))","v":""},{"$f":"IF(SUM('2011 Survey responses'!AB107:AH107)<1,\"\",(AVERAGEIFS('2011 Survey responses'!AB107:AH107,'2011 Survey responses'!AB107:AH107,\">1\")))","v":""},{"$f":"IF(SUM('2011 Survey responses'!AI107:AO107)<7.1,\"\",(AVERAGEIFS('2011 Survey responses'!AI107:AO107,'2011 Survey responses'!AI107:AO107,\">1\")))","v":""},{"$f":"IF(('2011 Survey responses'!AH107)<1.1,\"\",('2011 Survey responses'!AH107))","v":""},{"$f":"IF(SUM('2011 Survey responses'!AP107:BV107)<1,\"\",(AVERAGEIFS('2011 Survey responses'!AP107:BV107,'2011 Survey responses'!AP107:BV107,\">1\")))","v":""},{"$f":"IF(SUM('2011 Survey responses'!AP107:AS107)<4.1,\"\",(AVERAGEIFS('2011 Survey responses'!AP107:AS107,'2011 Survey responses'!AP107:AS107,\">1\")))","v":""},{"$f":"IF(SUM('2011 Survey responses'!AT107:BF107)<1,\"\",(AVERAGEIFS('2011 Survey responses'!AT107:BF107,'2011 Survey responses'!AT107:BF107,\">1\")))","v":""},{"$f":"IF(SUM('2011 Survey responses'!BG107:BO107)<1,\"\",(AVERAGEIFS('2011 Survey responses'!BG107:BO107,'2011 Survey responses'!BG107:BO107,\">1\")))","v":""},{"$f":"IF(SUM('2011 Survey responses'!BP107:BS107)<1,\"\",(AVERAGEIFS('2011 Survey responses'!BP107:BS107,'2011 Survey responses'!BP107:BS107,\">1\")))","v":""},{"$f":"IF(SUM('2011 Survey responses'!BT107:BV107)<3.1,\"\",(AVERAGEIFS('2011 Survey responses'!BT107:BV107,'2011 Survey responses'!BT107:BV107,\">1\")))","v":""},{"$f":"IF(('2011 Survey responses'!AQ107+'2011 Survey responses'!AR107+'2011 Survey responses'!BG107)<3.1,\"\",((SUMIF('2011 Survey responses'!AQ107,\">1\")+SUMIF('2011 Survey responses'!AR107,\">1\")+SUMIF('2011 Survey responses'!BG107,\">1\"))/(COUNTIF('2011 Survey responses'!AQ107,\">1\")+COUNTIF('2011 Survey responses'!AR107,\">1\")+COUNTIF('2011 Survey responses'!BG107,\">1\"))))","v":""},{"$f":"IF(SUM('2011 Survey responses'!AP107:AS107)<4.1,\"\",(AVERAGEIFS('2011 Survey responses'!AP107:AS107,'2011 Survey responses'!AP107:AS107,\">1\")))","v":""},{"$f":"IF(('2011 Survey responses'!AU107+'2011 Survey responses'!AX107+'2011 Survey responses'!BA107+'2011 Survey responses'!BC107+'2011 Survey responses'!BD107)<5.1,\"\",(SUMIF('2011 Survey responses'!AU107,\">1\")+SUMIF('2011 Survey responses'!AX107,\">1\")+SUMIF('2011 Survey responses'!BA107,\">1\")+SUMIF('2011 Survey responses'!BC107,\">1\")+SUMIF('2011 Survey responses'!BD107,\">1\"))/(COUNTIF('2011 Survey responses'!AU107,\">1\")+COUNTIF('2011 Survey responses'!AX107,\">1\")+COUNTIF('2011 Survey responses'!BA107,\">1\")+COUNTIF('2011 Survey responses'!BC107,\">1\")+COUNTIF('2011 Survey responses'!BD107,\">1\")))","v":""},{"$f":"IF(('2011 Survey responses'!AT107)<1.1,\"\",('2011 Survey responses'!AT107))","v":""},{"$f":"IF(SUM('2011 Survey responses'!AV107:AW107)<2.1,\"\",(AVERAGEIFS('2011 Survey responses'!AV107:AW107,'2011 Survey responses'!AV107:AW107,\">1\")))","v":""},{"$f":"IF(('2011 Survey responses'!AW107+'2011 Survey responses'!AY107)<2.1,\"\",(SUMIF('2011 Survey responses'!AW107,\">1\")+SUMIF('2011 Survey responses'!AY107,\">1\"))/(COUNTIF('2011 Survey responses'!AW107,\">1\")+COUNTIF('2011 Survey responses'!AY107,\">1\")))","v":""},{"$f":"IF(('2011 Survey responses'!AZ107)<1.1,\"\",('2011 Survey responses'!AZ107))","v":""},null,null,null,null,{"$f":"IF(('2011 Survey responses'!BE107)<1.1,\"\",('2011 Survey responses'!BE107))","v":""},{"$f":"IF(('2011 Survey responses'!AY107+'2011 Survey responses'!BB107+'2011 Survey responses'!BF107)<3.1,\"\",(SUMIF('2011 Survey responses'!AY107,\">1\")+SUMIF('2011 Survey responses'!BB107,\">1\")+SUMIF('2011 Survey responses'!BF107,\">1\"))/(COUNTIF('2011 Survey responses'!AY107,\">1\")+COUNTIF('2011 Survey responses'!BB107,\">1\")+COUNTIF('2011 Survey responses'!BF107,\">1\")))","v":""},"",{"$f":"IF(SUM('2011 Survey responses'!BT107:BV107)<3.1,\"\",(AVERAGEIFS('2011 Survey responses'!BT107:BV107,'2011 Survey responses'!BT107:BV107,\">1\")))","v":""},{"$f":"IF(SUM('2011 Survey responses'!BW107:CP107)<1,\"\",(AVERAGEIFS('2011 Survey responses'!BW107:CP107,'2011 Survey responses'!BW107:CP107,\">1\")))","v":""},{"$f":"IF(SUM('2011 Survey responses'!BW107:CF107)<1,\"\",(AVERAGEIFS('2011 Survey responses'!BW107:CF107,'2011 Survey responses'!BW107:CF107,\">1\")))","v":""},{"$f":"IF(SUM('2011 Survey responses'!CG107:CP107)<1,\"\",(AVERAGEIFS('2011 Survey responses'!CG107:CP107,'2011 Survey responses'!CG107:CP107,\">1\")))","v":""},{"$f":"IF(SUM('2011 Survey responses'!BX107:CF107)<1,\"\",(AVERAGEIFS('2011 Survey responses'!BX107:CF107,'2011 Survey responses'!BX107:CF107,\">1\")))","v":""},{"$f":"IF(SUM('2011 Survey responses'!CH107:CP107)<1,\"\",(AVERAGEIFS('2011 Survey responses'!CH107:CP107,'2011 Survey responses'!CH107:CP107,\">1\")))","v":""},{"$f":"IF(SUM('2011 Survey responses'!BW107:CP107)<1,\"\",(AVERAGEIFS('2011 Survey responses'!BW107:CP107,'2011 Survey responses'!BW107:CP107,\">1\")))","v":""},{"$f":"IF(('2011 Survey responses'!BW107+'2011 Survey responses'!CG107)<2.1,\"\",(SUMIF('2011 Survey responses'!BW107,\">1\")+SUMIF('2011 Survey responses'!CG107,\">1\"))/(COUNTIF('2011 Survey responses'!BW107,\">1\")+COUNTIF('2011 Survey responses'!CG107,\">1\")))","v":""},{"$f":"IF(('2011 Survey responses'!BX107+'2011 Survey responses'!CH107)<2.1,\"\",(SUMIF('2011 Survey responses'!BX107,\">1\")+SUMIF('2011 Survey responses'!CH107,\">1\"))/(COUNTIF('2011 Survey responses'!BX107,\">1\")+COUNTIF('2011 Survey responses'!CH107,\">1\")))","v":""},{"$f":"IF(('2011 Survey responses'!BY107+'2011 Survey responses'!CI107)<2.1,\"\",(SUMIF('2011 Survey responses'!BY107,\">1\")+SUMIF('2011 Survey responses'!CI107,\">1\"))/(COUNTIF('2011 Survey responses'!BY107,\">1\")+COUNTIF('2011 Survey responses'!CI107,\">1\")))","v":""},{"$f":"IF('2011 Survey responses'!CQ107<0.5,\"\",'2011 Survey responses'!CQ107)","v":""},{"$f":"IF('2011 Survey responses'!CR107<0.5,\"\",'2011 Survey responses'!CR107)","v":""},{"$f":"IF('2011 Survey responses'!CS107<0.5,\"\",'2011 Survey responses'!CS107)","v":""},{"$f":"IF('2011 Survey responses'!CT107<0.5,\"\",'2011 Survey responses'!CT107)","v":""},{"$f":"IF('2011 Survey responses'!CU107<0.5,\"\",'2011 Survey responses'!CU107)","v":""},{"$f":"IF('2011 Survey responses'!CV107<0.5,\"\",'2011 Survey responses'!CV107)","v":""},{"$f":"IF(SUM('2011 Survey responses'!CW107:DL107)<1,\"\",(AVERAGE('2011 Survey responses'!CW107:DL107)))","v":""},{"$f":"IF(SUM('2011 Survey responses'!CW107:CZ107)<1,\"\",(AVERAGE('2011 Survey responses'!CW107:CZ107)))","v":""},{"$f":"IF(SUM('2011 Survey responses'!DA107:DD107)<1,\"\",(AVERAGE('2011 Survey responses'!DA107:DD107)))","v":""},{"$f":"IF(SUM('2011 Survey responses'!DE107:DH107)<1,\"\",(AVERAGE('2011 Survey responses'!DE107:DH107)))","v":""},{"$f":"IF(SUM('2011 Survey responses'!DI107:DL107)<1,\"\",(AVERAGE('2011 Survey responses'!DI107:DL107)))","v":""},{"$f":"IF(('2011 Survey responses'!CW107+'2011 Survey responses'!DA107+'2011 Survey responses'!DE107+'2011 Survey responses'!DI107)<1,\"\",AVERAGE('2011 Survey responses'!CW107,'2011 Survey responses'!DA107,'2011 Survey responses'!DE107,'2011 Survey responses'!DI107))","v":""},{"$f":"IF(('2011 Survey responses'!CX107+'2011 Survey responses'!DB107+'2011 Survey responses'!DF107+'2011 Survey responses'!DJ107)<1,\"\",AVERAGE('2011 Survey responses'!CX107,'2011 Survey responses'!DB107,'2011 Survey responses'!DF107,'2011 Survey responses'!DJ107))","v":""},{"$f":"IF(('2011 Survey responses'!CY107+'2011 Survey responses'!DC107+'2011 Survey responses'!DG107+'2011 Survey responses'!DK107)<1,\"\",AVERAGE('2011 Survey responses'!CY107,'2011 Survey responses'!DC107,'2011 Survey responses'!DG107,'2011 Survey responses'!DK107))","v":""},{"$f":"IF(('2011 Survey responses'!CZ107+'2011 Survey responses'!DD107+'2011 Survey responses'!DH107+'2011 Survey responses'!DL107)<1,\"\",AVERAGE('2011 Survey responses'!CZ107,'2011 Survey responses'!DD107,'2011 Survey responses'!DH107,'2011 Survey responses'!DL107))","v":""},{"$f":"IF('2011 Survey responses'!CW107<0.5,\"\",'2011 Survey responses'!CW107)","v":""},{"$f":"IF('2011 Survey responses'!CX107<0.5,\"\",'2011 Survey responses'!CX107)","v":""},{"$f":"IF('2011 Survey responses'!CY107<0.5,\"\",'2011 Survey responses'!CY107)","v":""},{"$f":"IF('2011 Survey responses'!CZ107<0.5,\"\",'2011 Survey responses'!CZ107)","v":""},{"$f":"IF('2011 Survey responses'!DA107<0.5,\"\",'2011 Survey responses'!DA107)","v":""},{"$f":"IF('2011 Survey responses'!DB107<0.5,\"\",'2011 Survey responses'!DB107)","v":""},{"$f":"IF('2011 Survey responses'!DC107<0.5,\"\",'2011 Survey responses'!DC107)","v":""},{"$f":"IF('2011 Survey responses'!DD107<0.5,\"\",'2011 Survey responses'!DD107)","v":""},{"$f":"IF('2011 Survey responses'!DE107<0.5,\"\",'2011 Survey responses'!DE107)","v":""},{"$f":"IF('2011 Survey responses'!DF107<0.5,\"\",'2011 Survey responses'!DF107)","v":""},{"$f":"IF('2011 Survey responses'!DG107<0.5,\"\",'2011 Survey responses'!DG107)","v":""},{"$f":"IF('2011 Survey responses'!DH107<0.5,\"\",'2011 Survey responses'!DH107)","v":""},{"$f":"IF('2011 Survey responses'!DI107<0.5,\"\",'2011 Survey responses'!DI107)","v":""},{"$f":"IF('2011 Survey responses'!DJ107<0.5,\"\",'2011 Survey responses'!DJ107)","v":""},{"$f":"IF('2011 Survey responses'!DK107<0.5,\"\",'2011 Survey responses'!DK107)","v":""},{"$f":"IF('2011 Survey responses'!DL107<0.5,\"\",'2011 Survey responses'!DL107)","v":""},{"$f":"IF('2011 Survey responses'!DU107=4,4,IF('2011 Survey responses'!DU107=5,4,\"\"))","v":""},{"$f":"IF('2011 Survey responses'!DV107=4,3,IF('2011 Survey responses'!DV107=5,3,\"\"))","v":""},"",{"$f":"IF(CQ107=2,CQ107,IF(CO107=4,CO107,IF(CP107=3,CP107,IF('2011 Survey responses'!GT107=1,1,\"\"))))","v":""},{"$f":"IF('2011 Survey responses'!DO107<0.5,\"\",'2011 Survey responses'!DO107)","v":""},{"$f":"IF('2011 Survey responses'!DP107<0.5,\"\",'2011 Survey responses'!DP107)","v":""},{"$f":"IF('2011 Survey responses'!DQ107<0.5,\"\",'2011 Survey responses'!DQ107)","v":""},{"$f":"IF('2011 Survey responses'!DR107<0.5,\"\",'2011 Survey responses'!DR107)","v":""},{"$f":"IF('2011 Survey responses'!DS107<0.5,\"\",'2011 Survey responses'!DS107)","v":""},{"$f":"IF('2011 Survey responses'!DT107<0.5,\"\",'2011 Survey responses'!DT107)","v":""},{"$f":"IF('2011 Survey responses'!DU107<0.5,\"\",'2011 Survey responses'!DU107)","v":""},{"$f":"IF('2011 Survey responses'!DV107<0.5,\"\",'2011 Survey responses'!DV107)","v":""},{"$f":"IF('2011 Survey responses'!DW107<0.5,\"\",'2011 Survey responses'!DW107)","v":""},{"$f":"IF('2011 Survey responses'!DX107<0.5,\"\",'2011 Survey responses'!DX107)","v":""},{"$f":"IF('2011 Survey responses'!DY107<0.5,\"\",'2011 Survey responses'!DY107)","v":""},{"$f":"IF('2011 Survey responses'!DZ107<0.5,\"\",'2011 Survey responses'!DZ107)","v":""},{"$f":"IF('2011 Survey responses'!EA107<0.5,\"\",'2011 Survey responses'!EA107)","v":""},{"$f":"IF('2011 Survey responses'!EB107<0.5,\"\",'2011 Survey responses'!EB107)","v":""},{"$f":"IF('2011 Survey responses'!EC107<0.5,\"\",'2011 Survey responses'!EC107)","v":""},{"$f":"IF('2011 Survey responses'!ED107<0.5,\"\",'2011 Survey responses'!ED107)","v":""},{"$f":"IF('2011 Survey responses'!EE107<0.5,\"\",'2011 Survey responses'!EE107)","v":""},{"$f":"IF('2011 Survey responses'!EF107<0.5,\"\",'2011 Survey responses'!EF107)","v":""},{"$f":"IF('2011 Survey responses'!EG107<0.5,\"\",'2011 Survey responses'!EG107)","v":""},{"$f":"IF('2011 Survey responses'!EH107<0.5,\"\",'2011 Survey responses'!EH107)","v":""},{"$f":"IF('2011 Survey responses'!EI107<0.5,\"\",'2011 Survey responses'!EI107)","v":""},{"$f":"IF('2011 Survey responses'!EJ107<0.5,\"\",'2011 Survey responses'!EJ107)","v":""},{"$f":"IF('2011 Survey responses'!EK107<0.5,\"\",'2011 Survey responses'!EK107)","v":""},{"$f":"IF('2011 Survey responses'!EL107<0.5,\"\",'2011 Survey responses'!EL107)","v":""},{"$f":"IF('2011 Survey responses'!EM107<0.5,\"\",'2011 Survey responses'!EM107)","v":""},{"$f":"IF('2011 Survey responses'!EN107<0.5,\"\",'2011 Survey responses'!EN107)","v":""},{"$f":"IF('2011 Survey responses'!EO107<0.5,\"\",'2011 Survey responses'!EO107)","v":""},{"$f":"IF('2011 Survey responses'!EP107<0.5,\"\",'2011 Survey responses'!EP107)","v":""},{"$f":"IF(('2011 Survey responses'!EW107+'2011 Survey responses'!EX107)>=2,AVERAGE('2011 Survey responses'!EW107,'2011 Survey responses'!EY107),\"\")","v":""},{"$f":"IF('2011 Survey responses'!EX107<0.5,\"\",'2011 Survey responses'!EX107)","v":""},{"$f":"IF('2011 Survey responses'!EZ107<0.5,\"\",'2011 Survey responses'!EZ107)","v":""},{"$f":"IF('2011 Survey responses'!FB107<0.5,\"\",'2011 Survey responses'!FB107)","v":""},{"$f":"IF('2011 Survey responses'!FD107<0.5,\"\",'2011 Survey responses'!FD107)","v":""},{"$f":"IF('2011 Survey responses'!FC107<0.5,\"\",'2011 Survey responses'!FC107)","v":""},{"$f":"IF(('2011 Survey responses'!EM107+'2011 Survey responses'!EN107)>=2,AVERAGE('2011 Survey responses'!EM107,'2011 Survey responses'!EN107),\"\")","v":""},{"$f":"IF('2011 Survey responses'!ES107<0.5,\"\",'2011 Survey responses'!ES107)","v":""},{"$f":"IF(('2011 Survey responses'!ET107+'2011 Survey responses'!EU107)>=2,AVERAGE('2011 Survey responses'!ET107,'2011 Survey responses'!EU107),\"\")","v":""},{"$f":"IF('2011 Survey responses'!EV107<0.5,\"\",'2011 Survey responses'!EV107)","v":""},{"$f":"IF('2011 Survey responses'!FA107<0.5,\"\",'2011 Survey responses'!FA107)","v":""},{"$f":"IF('2011 Survey responses'!ER107<0.5,\"\",'2011 Survey responses'!ER107)","v":""},{"$f":"IF(('2011 Survey responses'!EO107+'2011 Survey responses'!EP107)>=2,AVERAGE('2011 Survey responses'!EO107,'2011 Survey responses'!EP107),\"\")","v":""},{"$f":"IF('2011 Survey responses'!EQ107<0.5,\"\",'2011 Survey responses'!EQ107)","v":""},{"$f":"IF('2011 Survey responses'!ET107<0.5,\"\",'2011 Survey responses'!ET107)","v":""},{"$f":"IF('2011 Survey responses'!EU107<0.5,\"\",'2011 Survey responses'!EU107)","v":""},{"$f":"IF('2011 Survey responses'!EW107<0.5,\"\",'2011 Survey responses'!EW107)","v":""},{"$f":"IF('2011 Survey responses'!EY107<0.5,\"\",'2011 Survey responses'!EY107)","v":""},{"$f":"IF('2011 Survey responses'!FU107<0.5,\"\",'2011 Survey responses'!FU107)","v":""},{"$f":"IF(('2011 Survey responses'!FL107+'2011 Survey responses'!FM107)>=2,AVERAGE('2011 Survey responses'!FL107,'2011 Survey responses'!FM107),\"\")","v":""},{"$f":"IF(('2011 Survey responses'!FO107+'2011 Survey responses'!FQ107)>=2,AVERAGE('2011 Survey responses'!FO107,'2011 Survey responses'!FQ107),\"\")","v":""},{"$f":"IF('2011 Survey responses'!FJ107<0.5,\"\",'2011 Survey responses'!FJ107)","v":""},{"$f":"IF('2011 Survey responses'!FT107<0.5,\"\",'2011 Survey responses'!FT107)","v":""},{"$f":"IF('2011 Survey responses'!FR107<0.5,\"\",'2011 Survey responses'!FR107)","v":""},{"$f":"IF('2011 Survey responses'!FK107<0.5,\"\",'2011 Survey responses'!FK107)","v":""},{"$f":"IF('2011 Survey responses'!FP107<0.5,\"\",'2011 Survey responses'!FP107)","v":""},{"$f":"IF('2011 Survey responses'!FN107<0.5,\"\",'2011 Survey responses'!FN107)","v":""},{"$f":"IF(('2011 Survey responses'!FE107+'2011 Survey responses'!FF107)>=2,AVERAGE('2011 Survey responses'!FE107,'2011 Survey responses'!FF107),\"\")","v":""},{"$f":"IF('2011 Survey responses'!FS107<0.5,\"\",'2011 Survey responses'!FS107)","v":""},{"$f":"IF('2011 Survey responses'!FV107<0.5,\"\",'2011 Survey responses'!FV107)","v":""},{"$f":"IF(('2011 Survey responses'!FG107+'2011 Survey responses'!FH107)>=2,AVERAGE('2011 Survey responses'!FG107,'2011 Survey responses'!FH107),\"\")","v":""},{"$f":"IF('2011 Survey responses'!FI107<0.5,\"\",'2011 Survey responses'!FI107)","v":""},{"$f":"IF('2011 Survey responses'!FE107<0.5,\"\",'2011 Survey responses'!FE107)","v":""},{"$f":"IF('2011 Survey responses'!FF107<0.5,\"\",'2011 Survey responses'!FF107)","v":""},{"$f":"IF('2011 Survey responses'!FG107<0.5,\"\",'2011 Survey responses'!FG107)","v":""},{"$f":"IF('2011 Survey responses'!FH107<0.5,\"\",'2011 Survey responses'!FH107)","v":""},{"$f":"IF('2011 Survey responses'!FL107<0.5,\"\",'2011 Survey responses'!FL107)","v":""},{"$f":"IF('2011 Survey responses'!FM107<0.5,\"\",'2011 Survey responses'!FM107)","v":""},{"$f":"IF('2011 Survey responses'!FO107<0.5,\"\",'2011 Survey responses'!FO107)","v":""},{"$f":"IF('2011 Survey responses'!FQ107<0.5,\"\",'2011 Survey responses'!FQ107)","v":""}]
["Malta",{"$f":"IF(SUM(F108)<1,\"\",AVERAGEIF('2011 Survey responses'!B108:CP108,\">1\"))","v":""},{"$f":"IF(SUM(F108)<1,\"\",AVERAGEIF('2011 Survey responses'!B108:AO108,\">1\"))","v":""},{"$f":"IF(SUM(F108)<1,\"\",AVERAGEIF('2011 Survey responses'!B108:BV108,\">1\"))","v":""},{"$f":"IF(SUM(F108)<1,\"\",AVERAGEIF('2011 Survey responses'!V108:BV108,\">1\"))","v":""},{"$f":"IF(SUM('2011 Survey responses'!B108:U108)<1,\"\",(AVERAGEIFS('2011 Survey responses'!B108:U108,'2011 Survey responses'!B108:U108,\">1\")))","v":""},{"$f":"IF(SUM('2011 Survey responses'!B108:H108)<1,\"\",(AVERAGEIFS('2011 Survey responses'!B108:H108,'2011 Survey responses'!B108:H108,\">1\")))","v":""},{"$f":"IF(SUM('2011 Survey responses'!I108:S108)<1,\"\",(AVERAGEIFS('2011 Survey responses'!I108:S108,'2011 Survey responses'!I108:S108,\">1\")))","v":""},{"$f":"IF(SUM('2011 Survey responses'!T108:U108)<2.1,\"\",(AVERAGEIFS('2011 Survey responses'!T108:U108,'2011 Survey responses'!T108:U108,\">1\")))","v":""},{"$f":"IF(SUM('2011 Survey responses'!B108:C108)<2.1,\"\",((SUMIF('2011 Survey responses'!B108:C108,\">1\")+SUMIF('2011 Survey responses'!F108,\">1\"))/(COUNTIF('2011 Survey responses'!B108:C108,\">1\")+COUNTIF('2011 Survey responses'!F108,\">1\"))))","v":""},{"$f":"IF(SUM('2011 Survey responses'!D108:E108)<2.1,\"\",(AVERAGEIFS('2011 Survey responses'!D108:E108,'2011 Survey responses'!D108:E108,\">1\")))","v":""},{"$f":"IF(('2011 Survey responses'!B108+'2011 Survey responses'!D108)<2.1,\"\",((SUMIF('2011 Survey responses'!B108,\">1\")+SUMIF('2011 Survey responses'!D108,\">1\")+SUMIF('2011 Survey responses'!F108,\">1\")+SUMIF('2011 Survey responses'!K108,\">1\"))/(COUNTIF('2011 Survey responses'!B108,\">1\")+COUNTIF('2011 Survey responses'!D108,\">1\")+COUNTIF('2011 Survey responses'!F108,\">1\")+COUNTIF('2011 Survey responses'!K108,\">1\"))))","v":""},{"$f":"IF(SUM('2011 Survey responses'!G108:H108)<2.1,\"\",(AVERAGEIFS('2011 Survey responses'!G108:H108,'2011 Survey responses'!G108:H108,\">1\")))","v":""},{"$f":"IF(SUM('2011 Survey responses'!F108:G108)<1.5,\"\",MAX('2011 Survey responses'!F108,'2011 Survey responses'!G108))","v":""},{"$f":"IF(SUM('2011 Survey responses'!G108:H108)<1,\"\",MAX('2011 Survey responses'!G108,'2011 Survey responses'!H108))","v":""},{"$f":"IF(SUM('2011 Survey responses'!I108:L108)<4.1,\"\",(AVERAGEIFS('2011 Survey responses'!I108:L108,'2011 Survey responses'!I108:L108,\">1\")))","v":""},{"$f":"IF(SUM('2011 Survey responses'!M108:S108)<4.1,\"\",(AVERAGEIFS('2011 Survey responses'!M108:S108,'2011 Survey responses'!M108:S108,\">1\")))","v":""},{"$f":"IF(SUM('2011 Survey responses'!T108:U108)<2.1,\"\",(AVERAGEIFS('2011 Survey responses'!T108:U108,'2011 Survey responses'!T108:U108,\">1\")))","v":""},{"$f":"IF(SUM('2011 Survey responses'!V108:AO108)<1,\"\",(AVERAGEIFS('2011 Survey responses'!V108:AO108,'2011 Survey responses'!V108:AO108,\">1\")))","v":""},{"$f":"IF(SUM('2011 Survey responses'!V108:AA108)<1,\"\",(AVERAGEIFS('2011 Survey responses'!V108:AA108,'2011 Survey responses'!V108:AA108,\">1\")))","v":""},{"$f":"IF(SUM('2011 Survey responses'!AB108:AH108)<1,\"\",(AVERAGEIFS('2011 Survey responses'!AB108:AH108,'2011 Survey responses'!AB108:AH108,\">1\")))","v":""},{"$f":"IF(SUM('2011 Survey responses'!AI108:AO108)<1,\"\",(AVERAGEIFS('2011 Survey responses'!AI108:AO108,'2011 Survey responses'!AI108:AO108,\">1\")))","v":""},{"$f":"IF(('2011 Survey responses'!Y108+'2011 Survey responses'!AI108+'2011 Survey responses'!AK108)<3.1,\"\",((SUMIF('2011 Survey responses'!Y108,\">1\")+SUMIF('2011 Survey responses'!AI108,\">1\")+SUMIF('2011 Survey responses'!AK108,\">1\")+SUMIF('2011 Survey responses'!AM108,\">1\"))/(COUNTIF('2011 Survey responses'!Y108,\">1\")+COUNTIF('2011 Survey responses'!AI108,\">1\")+COUNTIF('2011 Survey responses'!AK108,\">1\")+COUNTIF('2011 Survey responses'!AM108,\">1\"))))","v":""},{"$f":"IF(('2011 Survey responses'!W108)<1.1,\"\",('2011 Survey responses'!W108))","v":""},{"$f":"IF(('2011 Survey responses'!Y108)<1.1,\"\",('2011 Survey responses'!Y108))","v":""},{"$f":"IF(('2011 Survey responses'!Z108)<1.1,\"\",('2011 Survey responses'!Z108))","v":""},{"$f":"IF(('2011 Survey responses'!V108+'2011 Survey responses'!X108+'2011 Survey responses'!AA108)<3.1,\"\",((SUMIF('2011 Survey responses'!V108,\">1\")+SUMIF('2011 Survey responses'!X108,\">1\")+SUMIF('2011 Survey responses'!AA108,\">1\"))/(COUNTIF('2011 Survey responses'!V108,\">1\")+COUNTIF('2011 Survey responses'!X108,\">1\")+COUNTIF('2011 Survey responses'!AA108,\">1\"))))","v":""},{"$f":"IF(('2011 Survey responses'!V108+'2011 Survey responses'!Y108+'2011 Survey responses'!AA108)<3.1,\"\",((SUMIF('2011 Survey responses'!V108,\">1\")+SUMIF('2011 Survey responses'!Y108,\">1\")+SUMIF('2011 Survey responses'!AA108,\">1\"))/(COUNTIF('2011 Survey responses'!V108,\">1\")+COUNTIF('2011 Survey responses'!Y108,\">1\")+COUNTIF('2011 Survey responses'!AA108,\">1\"))))","v":""},{"$f":"IF(SUM('2011 Survey responses'!AB108:AH108)<1,\"\",(AVERAGEIFS('2011 Survey responses'!AB108:AH108,'2011 Survey responses'!AB108:AH108,\">1\")))","v":""},{"$f":"IF(SUM('2011 Survey responses'!AI108:AO108)<7.1,\"\",(AVERAGEIFS('2011 Survey responses'!AI108:AO108,'2011 Survey responses'!AI108:AO108,\">1\")))","v":""},{"$f":"IF(('2011 Survey responses'!AH108)<1.1,\"\",('2011 Survey responses'!AH108))","v":""},{"$f":"IF(SUM('2011 Survey responses'!AP108:BV108)<1,\"\",(AVERAGEIFS('2011 Survey responses'!AP108:BV108,'2011 Survey responses'!AP108:BV108,\">1\")))","v":""},{"$f":"IF(SUM('2011 Survey responses'!AP108:AS108)<4.1,\"\",(AVERAGEIFS('2011 Survey responses'!AP108:AS108,'2011 Survey responses'!AP108:AS108,\">1\")))","v":""},{"$f":"IF(SUM('2011 Survey responses'!AT108:BF108)<1,\"\",(AVERAGEIFS('2011 Survey responses'!AT108:BF108,'2011 Survey responses'!AT108:BF108,\">1\")))","v":""},{"$f":"IF(SUM('2011 Survey responses'!BG108:BO108)<1,\"\",(AVERAGEIFS('2011 Survey responses'!BG108:BO108,'2011 Survey responses'!BG108:BO108,\">1\")))","v":""},{"$f":"IF(SUM('2011 Survey responses'!BP108:BS108)<1,\"\",(AVERAGEIFS('2011 Survey responses'!BP108:BS108,'2011 Survey responses'!BP108:BS108,\">1\")))","v":""},{"$f":"IF(SUM('2011 Survey responses'!BT108:BV108)<3.1,\"\",(AVERAGEIFS('2011 Survey responses'!BT108:BV108,'2011 Survey responses'!BT108:BV108,\">1\")))","v":""},{"$f":"IF(('2011 Survey responses'!AQ108+'2011 Survey responses'!AR108+'2011 Survey responses'!BG108)<3.1,\"\",((SUMIF('2011 Survey responses'!AQ108,\">1\")+SUMIF('2011 Survey responses'!AR108,\">1\")+SUMIF('2011 Survey responses'!BG108,\">1\"))/(COUNTIF('2011 Survey responses'!AQ108,\">1\")+COUNTIF('2011 Survey responses'!AR108,\">1\")+COUNTIF('2011 Survey responses'!BG108,\">1\"))))","v":""},{"$f":"IF(SUM('2011 Survey responses'!AP108:AS108)<4.1,\"\",(AVERAGEIFS('2011 Survey responses'!AP108:AS108,'2011 Survey responses'!AP108:AS108,\">1\")))","v":""},{"$f":"IF(('2011 Survey responses'!AU108+'2011 Survey responses'!AX108+'2011 Survey responses'!BA108+'2011 Survey responses'!BC108+'2011 Survey responses'!BD108)<5.1,\"\",(SUMIF('2011 Survey responses'!AU108,\">1\")+SUMIF('2011 Survey responses'!AX108,\">1\")+SUMIF('2011 Survey responses'!BA108,\">1\")+SUMIF('2011 Survey responses'!BC108,\">1\")+SUMIF('2011 Survey responses'!BD108,\">1\"))/(COUNTIF('2011 Survey responses'!AU108,\">1\")+COUNTIF('2011 Survey responses'!AX108,\">1\")+COUNTIF('2011 Survey responses'!BA108,\">1\")+COUNTIF('2011 Survey responses'!BC108,\">1\")+COUNTIF('2011 Survey responses'!BD108,\">1\")))","v":""},{"$f":"IF(('2011 Survey responses'!AT108)<1.1,\"\",('2011 Survey responses'!AT108))","v":""},{"$f":"IF(SUM('2011 Survey responses'!AV108:AW108)<2.1,\"\",(AVERAGEIFS('2011 Survey responses'!AV108:AW108,'2011 Survey responses'!AV108:AW108,\">1\")))","v":""},{"$f":"IF(('2011 Survey responses'!AW108+'2011 Survey responses'!AY108)<2.1,\"\",(SUMIF('2011 Survey responses'!AW108,\">1\")+SUMIF('2011 Survey responses'!AY108,\">1\"))/(COUNTIF('2011 Survey responses'!AW108,\">1\")+COUNTIF('2011 Survey responses'!AY108,\">1\")))","v":""},{"$f":"IF(('2011 Survey responses'!AZ108)<1.1,\"\",('2011 Survey responses'!AZ108))","v":""},null,null,null,null,{"$f":"IF(('2011 Survey responses'!BE108)<1.1,\"\",('2011 Survey responses'!BE108))","v":""},{"$f":"IF(('2011 Survey responses'!AY108+'2011 Survey responses'!BB108+'2011 Survey responses'!BF108)<3.1,\"\",(SUMIF('2011 Survey responses'!AY108,\">1\")+SUMIF('2011 Survey responses'!BB108,\">1\")+SUMIF('2011 Survey responses'!BF108,\">1\"))/(COUNTIF('2011 Survey responses'!AY108,\">1\")+COUNTIF('2011 Survey responses'!BB108,\">1\")+COUNTIF('2011 Survey responses'!BF108,\">1\")))","v":""},"",{"$f":"IF(SUM('2011 Survey responses'!BT108:BV108)<3.1,\"\",(AVERAGEIFS('2011 Survey responses'!BT108:BV108,'2011 Survey responses'!BT108:BV108,\">1\")))","v":""},{"$f":"IF(SUM('2011 Survey responses'!BW108:CP108)<1,\"\",(AVERAGEIFS('2011 Survey responses'!BW108:CP108,'2011 Survey responses'!BW108:CP108,\">1\")))","v":""},{"$f":"IF(SUM('2011 Survey responses'!BW108:CF108)<1,\"\",(AVERAGEIFS('2011 Survey responses'!BW108:CF108,'2011 Survey responses'!BW108:CF108,\">1\")))","v":""},{"$f":"IF(SUM('2011 Survey responses'!CG108:CP108)<1,\"\",(AVERAGEIFS('2011 Survey responses'!CG108:CP108,'2011 Survey responses'!CG108:CP108,\">1\")))","v":""},{"$f":"IF(SUM('2011 Survey responses'!BX108:CF108)<1,\"\",(AVERAGEIFS('2011 Survey responses'!BX108:CF108,'2011 Survey responses'!BX108:CF108,\">1\")))","v":""},{"$f":"IF(SUM('2011 Survey responses'!CH108:CP108)<1,\"\",(AVERAGEIFS('2011 Survey responses'!CH108:CP108,'2011 Survey responses'!CH108:CP108,\">1\")))","v":""},{"$f":"IF(SUM('2011 Survey responses'!BW108:CP108)<1,\"\",(AVERAGEIFS('2011 Survey responses'!BW108:CP108,'2011 Survey responses'!BW108:CP108,\">1\")))","v":""},{"$f":"IF(('2011 Survey responses'!BW108+'2011 Survey responses'!CG108)<2.1,\"\",(SUMIF('2011 Survey responses'!BW108,\">1\")+SUMIF('2011 Survey responses'!CG108,\">1\"))/(COUNTIF('2011 Survey responses'!BW108,\">1\")+COUNTIF('2011 Survey responses'!CG108,\">1\")))","v":""},{"$f":"IF(('2011 Survey responses'!BX108+'2011 Survey responses'!CH108)<2.1,\"\",(SUMIF('2011 Survey responses'!BX108,\">1\")+SUMIF('2011 Survey responses'!CH108,\">1\"))/(COUNTIF('2011 Survey responses'!BX108,\">1\")+COUNTIF('2011 Survey responses'!CH108,\">1\")))","v":""},{"$f":"IF(('2011 Survey responses'!BY108+'2011 Survey responses'!CI108)<2.1,\"\",(SUMIF('2011 Survey responses'!BY108,\">1\")+SUMIF('2011 Survey responses'!CI108,\">1\"))/(COUNTIF('2011 Survey responses'!BY108,\">1\")+COUNTIF('2011 Survey responses'!CI108,\">1\")))","v":""},{"$f":"IF('2011 Survey responses'!CQ108<0.5,\"\",'2011 Survey responses'!CQ108)","v":""},{"$f":"IF('2011 Survey responses'!CR108<0.5,\"\",'2011 Survey responses'!CR108)","v":""},{"$f":"IF('2011 Survey responses'!CS108<0.5,\"\",'2011 Survey responses'!CS108)","v":""},{"$f":"IF('2011 Survey responses'!CT108<0.5,\"\",'2011 Survey responses'!CT108)","v":""},{"$f":"IF('2011 Survey responses'!CU108<0.5,\"\",'2011 Survey responses'!CU108)","v":""},{"$f":"IF('2011 Survey responses'!CV108<0.5,\"\",'2011 Survey responses'!CV108)","v":""},{"$f":"IF(SUM('2011 Survey responses'!CW108:DL108)<1,\"\",(AVERAGE('2011 Survey responses'!CW108:DL108)))","v":""},{"$f":"IF(SUM('2011 Survey responses'!CW108:CZ108)<1,\"\",(AVERAGE('2011 Survey responses'!CW108:CZ108)))","v":""},{"$f":"IF(SUM('2011 Survey responses'!DA108:DD108)<1,\"\",(AVERAGE('2011 Survey responses'!DA108:DD108)))","v":""},{"$f":"IF(SUM('2011 Survey responses'!DE108:DH108)<1,\"\",(AVERAGE('2011 Survey responses'!DE108:DH108)))","v":""},{"$f":"IF(SUM('2011 Survey responses'!DI108:DL108)<1,\"\",(AVERAGE('2011 Survey responses'!DI108:DL108)))","v":""},{"$f":"IF(('2011 Survey responses'!CW108+'2011 Survey responses'!DA108+'2011 Survey responses'!DE108+'2011 Survey responses'!DI108)<1,\"\",AVERAGE('2011 Survey responses'!CW108,'2011 Survey responses'!DA108,'2011 Survey responses'!DE108,'2011 Survey responses'!DI108))","v":""},{"$f":"IF(('2011 Survey responses'!CX108+'2011 Survey responses'!DB108+'2011 Survey responses'!DF108+'2011 Survey responses'!DJ108)<1,\"\",AVERAGE('2011 Survey responses'!CX108,'2011 Survey responses'!DB108,'2011 Survey responses'!DF108,'2011 Survey responses'!DJ108))","v":""},{"$f":"IF(('2011 Survey responses'!CY108+'2011 Survey responses'!DC108+'2011 Survey responses'!DG108+'2011 Survey responses'!DK108)<1,\"\",AVERAGE('2011 Survey responses'!CY108,'2011 Survey responses'!DC108,'2011 Survey responses'!DG108,'2011 Survey responses'!DK108))","v":""},{"$f":"IF(('2011 Survey responses'!CZ108+'2011 Survey responses'!DD108+'2011 Survey responses'!DH108+'2011 Survey responses'!DL108)<1,\"\",AVERAGE('2011 Survey responses'!CZ108,'2011 Survey responses'!DD108,'2011 Survey responses'!DH108,'2011 Survey responses'!DL108))","v":""},{"$f":"IF('2011 Survey responses'!CW108<0.5,\"\",'2011 Survey responses'!CW108)","v":""},{"$f":"IF('2011 Survey responses'!CX108<0.5,\"\",'2011 Survey responses'!CX108)","v":""},{"$f":"IF('2011 Survey responses'!CY108<0.5,\"\",'2011 Survey responses'!CY108)","v":""},{"$f":"IF('2011 Survey responses'!CZ108<0.5,\"\",'2011 Survey responses'!CZ108)","v":""},{"$f":"IF('2011 Survey responses'!DA108<0.5,\"\",'2011 Survey responses'!DA108)","v":""},{"$f":"IF('2011 Survey responses'!DB108<0.5,\"\",'2011 Survey responses'!DB108)","v":""},{"$f":"IF('2011 Survey responses'!DC108<0.5,\"\",'2011 Survey responses'!DC108)","v":""},{"$f":"IF('2011 Survey responses'!DD108<0.5,\"\",'2011 Survey responses'!DD108)","v":""},{"$f":"IF('2011 Survey responses'!DE108<0.5,\"\",'2011 Survey responses'!DE108)","v":""},{"$f":"IF('2011 Survey responses'!DF108<0.5,\"\",'2011 Survey responses'!DF108)","v":""},{"$f":"IF('2011 Survey responses'!DG108<0.5,\"\",'2011 Survey responses'!DG108)","v":""},{"$f":"IF('2011 Survey responses'!DH108<0.5,\"\",'2011 Survey responses'!DH108)","v":""},{"$f":"IF('2011 Survey responses'!DI108<0.5,\"\",'2011 Survey responses'!DI108)","v":""},{"$f":"IF('2011 Survey responses'!DJ108<0.5,\"\",'2011 Survey responses'!DJ108)","v":""},{"$f":"IF('2011 Survey responses'!DK108<0.5,\"\",'2011 Survey responses'!DK108)","v":""},{"$f":"IF('2011 Survey responses'!DL108<0.5,\"\",'2011 Survey responses'!DL108)","v":""},{"$f":"IF('2011 Survey responses'!DU108=4,4,IF('2011 Survey responses'!DU108=5,4,\"\"))","v":""},{"$f":"IF('2011 Survey responses'!DV108=4,3,IF('2011 Survey responses'!DV108=5,3,\"\"))","v":""},"",{"$f":"IF(CQ108=2,CQ108,IF(CO108=4,CO108,IF(CP108=3,CP108,IF('2011 Survey responses'!GT108=1,1,\"\"))))","v":""},{"$f":"IF('2011 Survey responses'!DO108<0.5,\"\",'2011 Survey responses'!DO108)","v":""},{"$f":"IF('2011 Survey responses'!DP108<0.5,\"\",'2011 Survey responses'!DP108)","v":""},{"$f":"IF('2011 Survey responses'!DQ108<0.5,\"\",'2011 Survey responses'!DQ108)","v":""},{"$f":"IF('2011 Survey responses'!DR108<0.5,\"\",'2011 Survey responses'!DR108)","v":""},{"$f":"IF('2011 Survey responses'!DS108<0.5,\"\",'2011 Survey responses'!DS108)","v":""},{"$f":"IF('2011 Survey responses'!DT108<0.5,\"\",'2011 Survey responses'!DT108)","v":""},{"$f":"IF('2011 Survey responses'!DU108<0.5,\"\",'2011 Survey responses'!DU108)","v":""},{"$f":"IF('2011 Survey responses'!DV108<0.5,\"\",'2011 Survey responses'!DV108)","v":""},{"$f":"IF('2011 Survey responses'!DW108<0.5,\"\",'2011 Survey responses'!DW108)","v":""},{"$f":"IF('2011 Survey responses'!DX108<0.5,\"\",'2011 Survey responses'!DX108)","v":""},{"$f":"IF('2011 Survey responses'!DY108<0.5,\"\",'2011 Survey responses'!DY108)","v":""},{"$f":"IF('2011 Survey responses'!DZ108<0.5,\"\",'2011 Survey responses'!DZ108)","v":""},{"$f":"IF('2011 Survey responses'!EA108<0.5,\"\",'2011 Survey responses'!EA108)","v":""},{"$f":"IF('2011 Survey responses'!EB108<0.5,\"\",'2011 Survey responses'!EB108)","v":""},{"$f":"IF('2011 Survey responses'!EC108<0.5,\"\",'2011 Survey responses'!EC108)","v":""},{"$f":"IF('2011 Survey responses'!ED108<0.5,\"\",'2011 Survey responses'!ED108)","v":""},{"$f":"IF('2011 Survey responses'!EE108<0.5,\"\",'2011 Survey responses'!EE108)","v":""},{"$f":"IF('2011 Survey responses'!EF108<0.5,\"\",'2011 Survey responses'!EF108)","v":""},{"$f":"IF('2011 Survey responses'!EG108<0.5,\"\",'2011 Survey responses'!EG108)","v":""},{"$f":"IF('2011 Survey responses'!EH108<0.5,\"\",'2011 Survey responses'!EH108)","v":""},{"$f":"IF('2011 Survey responses'!EI108<0.5,\"\",'2011 Survey responses'!EI108)","v":""},{"$f":"IF('2011 Survey responses'!EJ108<0.5,\"\",'2011 Survey responses'!EJ108)","v":""},{"$f":"IF('2011 Survey responses'!EK108<0.5,\"\",'2011 Survey responses'!EK108)","v":""},{"$f":"IF('2011 Survey responses'!EL108<0.5,\"\",'2011 Survey responses'!EL108)","v":""},{"$f":"IF('2011 Survey responses'!EM108<0.5,\"\",'2011 Survey responses'!EM108)","v":""},{"$f":"IF('2011 Survey responses'!EN108<0.5,\"\",'2011 Survey responses'!EN108)","v":""},{"$f":"IF('2011 Survey responses'!EO108<0.5,\"\",'2011 Survey responses'!EO108)","v":""},{"$f":"IF('2011 Survey responses'!EP108<0.5,\"\",'2011 Survey responses'!EP108)","v":""},{"$f":"IF(('2011 Survey responses'!EW108+'2011 Survey responses'!EX108)>=2,AVERAGE('2011 Survey responses'!EW108,'2011 Survey responses'!EY108),\"\")","v":""},{"$f":"IF('2011 Survey responses'!EX108<0.5,\"\",'2011 Survey responses'!EX108)","v":""},{"$f":"IF('2011 Survey responses'!EZ108<0.5,\"\",'2011 Survey responses'!EZ108)","v":""},{"$f":"IF('2011 Survey responses'!FB108<0.5,\"\",'2011 Survey responses'!FB108)","v":""},{"$f":"IF('2011 Survey responses'!FD108<0.5,\"\",'2011 Survey responses'!FD108)","v":""},{"$f":"IF('2011 Survey responses'!FC108<0.5,\"\",'2011 Survey responses'!FC108)","v":""},{"$f":"IF(('2011 Survey responses'!EM108+'2011 Survey responses'!EN108)>=2,AVERAGE('2011 Survey responses'!EM108,'2011 Survey responses'!EN108),\"\")","v":""},{"$f":"IF('2011 Survey responses'!ES108<0.5,\"\",'2011 Survey responses'!ES108)","v":""},{"$f":"IF(('2011 Survey responses'!ET108+'2011 Survey responses'!EU108)>=2,AVERAGE('2011 Survey responses'!ET108,'2011 Survey responses'!EU108),\"\")","v":""},{"$f":"IF('2011 Survey responses'!EV108<0.5,\"\",'2011 Survey responses'!EV108)","v":""},{"$f":"IF('2011 Survey responses'!FA108<0.5,\"\",'2011 Survey responses'!FA108)","v":""},{"$f":"IF('2011 Survey responses'!ER108<0.5,\"\",'2011 Survey responses'!ER108)","v":""},{"$f":"IF(('2011 Survey responses'!EO108+'2011 Survey responses'!EP108)>=2,AVERAGE('2011 Survey responses'!EO108,'2011 Survey responses'!EP108),\"\")","v":""},{"$f":"IF('2011 Survey responses'!EQ108<0.5,\"\",'2011 Survey responses'!EQ108)","v":""},{"$f":"IF('2011 Survey responses'!ET108<0.5,\"\",'2011 Survey responses'!ET108)","v":""},{"$f":"IF('2011 Survey responses'!EU108<0.5,\"\",'2011 Survey responses'!EU108)","v":""},{"$f":"IF('2011 Survey responses'!EW108<0.5,\"\",'2011 Survey responses'!EW108)","v":""},{"$f":"IF('2011 Survey responses'!EY108<0.5,\"\",'2011 Survey responses'!EY108)","v":""},{"$f":"IF('2011 Survey responses'!FU108<0.5,\"\",'2011 Survey responses'!FU108)","v":""},{"$f":"IF(('2011 Survey responses'!FL108+'2011 Survey responses'!FM108)>=2,AVERAGE('2011 Survey responses'!FL108,'2011 Survey responses'!FM108),\"\")","v":""},{"$f":"IF(('2011 Survey responses'!FO108+'2011 Survey responses'!FQ108)>=2,AVERAGE('2011 Survey responses'!FO108,'2011 Survey responses'!FQ108),\"\")","v":""},{"$f":"IF('2011 Survey responses'!FJ108<0.5,\"\",'2011 Survey responses'!FJ108)","v":""},{"$f":"IF('2011 Survey responses'!FT108<0.5,\"\",'2011 Survey responses'!FT108)","v":""},{"$f":"IF('2011 Survey responses'!FR108<0.5,\"\",'2011 Survey responses'!FR108)","v":""},{"$f":"IF('2011 Survey responses'!FK108<0.5,\"\",'2011 Survey responses'!FK108)","v":""},{"$f":"IF('2011 Survey responses'!FP108<0.5,\"\",'2011 Survey responses'!FP108)","v":""},{"$f":"IF('2011 Survey responses'!FN108<0.5,\"\",'2011 Survey responses'!FN108)","v":""},{"$f":"IF(('2011 Survey responses'!FE108+'2011 Survey responses'!FF108)>=2,AVERAGE('2011 Survey responses'!FE108,'2011 Survey responses'!FF108),\"\")","v":""},{"$f":"IF('2011 Survey responses'!FS108<0.5,\"\",'2011 Survey responses'!FS108)","v":""},{"$f":"IF('2011 Survey responses'!FV108<0.5,\"\",'2011 Survey responses'!FV108)","v":""},{"$f":"IF(('2011 Survey responses'!FG108+'2011 Survey responses'!FH108)>=2,AVERAGE('2011 Survey responses'!FG108,'2011 Survey responses'!FH108),\"\")","v":""},{"$f":"IF('2011 Survey responses'!FI108<0.5,\"\",'2011 Survey responses'!FI108)","v":""},{"$f":"IF('2011 Survey responses'!FE108<0.5,\"\",'2011 Survey responses'!FE108)","v":""},{"$f":"IF('2011 Survey responses'!FF108<0.5,\"\",'2011 Survey responses'!FF108)","v":""},{"$f":"IF('2011 Survey responses'!FG108<0.5,\"\",'2011 Survey responses'!FG108)","v":""},{"$f":"IF('2011 Survey responses'!FH108<0.5,\"\",'2011 Survey responses'!FH108)","v":""},{"$f":"IF('2011 Survey responses'!FL108<0.5,\"\",'2011 Survey responses'!FL108)","v":""},{"$f":"IF('2011 Survey responses'!FM108<0.5,\"\",'2011 Survey responses'!FM108)","v":""},{"$f":"IF('2011 Survey responses'!FO108<0.5,\"\",'2011 Survey responses'!FO108)","v":""},{"$f":"IF('2011 Survey responses'!FQ108<0.5,\"\",'2011 Survey responses'!FQ108)","v":""}]
["Marshall Islands",{"$f":"IF(SUM(F109)<1,\"\",AVERAGEIF('2011 Survey responses'!B109:CP109,\">1\"))","v":2.84},{"$f":"IF(SUM(F109)<1,\"\",AVERAGEIF('2011 Survey responses'!B109:AO109,\">1\"))","v":2.4137931034482758},{"$f":"IF(SUM(F109)<1,\"\",AVERAGEIF('2011 Survey responses'!B109:BV109,\">1\"))","v":2.7419354838709675},{"$f":"IF(SUM(F109)<1,\"\",AVERAGEIF('2011 Survey responses'!V109:BV109,\">1\"))","v":2.8936170212765959},{"$f":"IF(SUM('2011 Survey responses'!B109:U109)<1,\"\",(AVERAGEIFS('2011 Survey responses'!B109:U109,'2011 Survey responses'!B109:U109,\">1\")))","v":2.2666666666666666},{"$f":"IF(SUM('2011 Survey responses'!B109:H109)<1,\"\",(AVERAGEIFS('2011 Survey responses'!B109:H109,'2011 Survey responses'!B109:H109,\">1\")))","v":2.1428571428571428},{"$f":"IF(SUM('2011 Survey responses'!I109:S109)<1,\"\",(AVERAGEIFS('2011 Survey responses'!I109:S109,'2011 Survey responses'!I109:S109,\">1\")))","v":2.4285714285714284},{"$f":"IF(SUM('2011 Survey responses'!T109:U109)<2.1,\"\",(AVERAGEIFS('2011 Survey responses'!T109:U109,'2011 Survey responses'!T109:U109,\">1\")))","v":2},{"$f":"IF(SUM('2011 Survey responses'!B109:C109)<2.1,\"\",((SUMIF('2011 Survey responses'!B109:C109,\">1\")+SUMIF('2011 Survey responses'!F109,\">1\"))/(COUNTIF('2011 Survey responses'!B109:C109,\">1\")+COUNTIF('2011 Survey responses'!F109,\">1\"))))","v":2},{"$f":"IF(SUM('2011 Survey responses'!D109:E109)<2.1,\"\",(AVERAGEIFS('2011 Survey responses'!D109:E109,'2011 Survey responses'!D109:E109,\">1\")))","v":2},{"$f":"IF(('2011 Survey responses'!B109+'2011 Survey responses'!D109)<2.1,\"\",((SUMIF('2011 Survey responses'!B109,\">1\")+SUMIF('2011 Survey responses'!D109,\">1\")+SUMIF('2011 Survey responses'!F109,\">1\")+SUMIF('2011 Survey responses'!K109,\">1\"))/(COUNTIF('2011 Survey responses'!B109,\">1\")+COUNTIF('2011 Survey responses'!D109,\">1\")+COUNTIF('2011 Survey responses'!F109,\">1\")+COUNTIF('2011 Survey responses'!K109,\">1\"))))","v":2.25},{"$f":"IF(SUM('2011 Survey responses'!G109:H109)<2.1,\"\",(AVERAGEIFS('2011 Survey responses'!G109:H109,'2011 Survey responses'!G109:H109,\">1\")))","v":2.5},{"$f":"IF(SUM('2011 Survey responses'!F109:G109)<1.5,\"\",MAX('2011 Survey responses'!F109,'2011 Survey responses'!G109))","v":2},{"$f":"IF(SUM('2011 Survey responses'!G109:H109)<1,\"\",MAX('2011 Survey responses'!G109,'2011 Survey responses'!H109))","v":3},{"$f":"IF(SUM('2011 Survey responses'!I109:L109)<4.1,\"\",(AVERAGEIFS('2011 Survey responses'!I109:L109,'2011 Survey responses'!I109:L109,\">1\")))","v":2.25},{"$f":"IF(SUM('2011 Survey responses'!M109:S109)<4.1,\"\",(AVERAGEIFS('2011 Survey responses'!M109:S109,'2011 Survey responses'!M109:S109,\">1\")))","v":2.6666666666666665},{"$f":"IF(SUM('2011 Survey responses'!T109:U109)<2.1,\"\",(AVERAGEIFS('2011 Survey responses'!T109:U109,'2011 Survey responses'!T109:U109,\">1\")))","v":2},{"$f":"IF(SUM('2011 Survey responses'!V109:AO109)<1,\"\",(AVERAGEIFS('2011 Survey responses'!V109:AO109,'2011 Survey responses'!V109:AO109,\">1\")))","v":2.5714285714285716},{"$f":"IF(SUM('2011 Survey responses'!V109:AA109)<1,\"\",(AVERAGEIFS('2011 Survey responses'!V109:AA109,'2011 Survey responses'!V109:AA109,\">1\")))","v":3},{"$f":"IF(SUM('2011 Survey responses'!AB109:AH109)<1,\"\",(AVERAGEIFS('2011 Survey responses'!AB109:AH109,'2011 Survey responses'!AB109:AH109,\">1\")))","v":2.8571428571428572},{"$f":"IF(SUM('2011 Survey responses'!AI109:AO109)<1,\"\",(AVERAGEIFS('2011 Survey responses'!AI109:AO109,'2011 Survey responses'!AI109:AO109,\">1\")))","v":2},{"$f":"IF(('2011 Survey responses'!Y109+'2011 Survey responses'!AI109+'2011 Survey responses'!AK109)<3.1,\"\",((SUMIF('2011 Survey responses'!Y109,\">1\")+SUMIF('2011 Survey responses'!AI109,\">1\")+SUMIF('2011 Survey responses'!AK109,\">1\")+SUMIF('2011 Survey responses'!AM109,\">1\"))/(COUNTIF('2011 Survey responses'!Y109,\">1\")+COUNTIF('2011 Survey responses'!AI109,\">1\")+COUNTIF('2011 Survey responses'!AK109,\">1\")+COUNTIF('2011 Survey responses'!AM109,\">1\"))))","v":2},{"$f":"IF(('2011 Survey responses'!W109)<1.1,\"\",('2011 Survey responses'!W109))","v":4},{"$f":"IF(('2011 Survey responses'!Y109)<1.1,\"\",('2011 Survey responses'!Y109))","v":2},{"$f":"IF(('2011 Survey responses'!Z109)<1.1,\"\",('2011 Survey responses'!Z109))","v":""},{"$f":"IF(('2011 Survey responses'!V109+'2011 Survey responses'!X109+'2011 Survey responses'!AA109)<3.1,\"\",((SUMIF('2011 Survey responses'!V109,\">1\")+SUMIF('2011 Survey responses'!X109,\">1\")+SUMIF('2011 Survey responses'!AA109,\">1\"))/(COUNTIF('2011 Survey responses'!V109,\">1\")+COUNTIF('2011 Survey responses'!X109,\">1\")+COUNTIF('2011 Survey responses'!AA109,\">1\"))))","v":""},{"$f":"IF(('2011 Survey responses'!V109+'2011 Survey responses'!Y109+'2011 Survey responses'!AA109)<3.1,\"\",((SUMIF('2011 Survey responses'!V109,\">1\")+SUMIF('2011 Survey responses'!Y109,\">1\")+SUMIF('2011 Survey responses'!AA109,\">1\"))/(COUNTIF('2011 Survey responses'!V109,\">1\")+COUNTIF('2011 Survey responses'!Y109,\">1\")+COUNTIF('2011 Survey responses'!AA109,\">1\"))))","v":2},{"$f":"IF(SUM('2011 Survey responses'!AB109:AH109)<1,\"\",(AVERAGEIFS('2011 Survey responses'!AB109:AH109,'2011 Survey responses'!AB109:AH109,\">1\")))","v":2.8571428571428572},{"$f":"IF(SUM('2011 Survey responses'!AI109:AO109)<7.1,\"\",(AVERAGEIFS('2011 Survey responses'!AI109:AO109,'2011 Survey responses'!AI109:AO109,\">1\")))","v":2},{"$f":"IF(('2011 Survey responses'!AH109)<1.1,\"\",('2011 Survey responses'!AH109))","v":2},{"$f":"IF(SUM('2011 Survey responses'!AP109:BV109)<1,\"\",(AVERAGEIFS('2011 Survey responses'!AP109:BV109,'2011 Survey responses'!AP109:BV109,\">1\")))","v":3.0303030303030303},{"$f":"IF(SUM('2011 Survey responses'!AP109:AS109)<4.1,\"\",(AVERAGEIFS('2011 Survey responses'!AP109:AS109,'2011 Survey responses'!AP109:AS109,\">1\")))","v":2.75},{"$f":"IF(SUM('2011 Survey responses'!AT109:BF109)<1,\"\",(AVERAGEIFS('2011 Survey responses'!AT109:BF109,'2011 Survey responses'!AT109:BF109,\">1\")))","v":2.9230769230769229},{"$f":"IF(SUM('2011 Survey responses'!BG109:BO109)<1,\"\",(AVERAGEIFS('2011 Survey responses'!BG109:BO109,'2011 Survey responses'!BG109:BO109,\">1\")))","v":3.4444444444444446},{"$f":"IF(SUM('2011 Survey responses'!BP109:BS109)<1,\"\",(AVERAGEIFS('2011 Survey responses'!BP109:BS109,'2011 Survey responses'!BP109:BS109,\">1\")))","v":3.25},{"$f":"IF(SUM('2011 Survey responses'!BT109:BV109)<3.1,\"\",(AVERAGEIFS('2011 Survey responses'!BT109:BV109,'2011 Survey responses'!BT109:BV109,\">1\")))","v":2.3333333333333335},{"$f":"IF(('2011 Survey responses'!AQ109+'2011 Survey responses'!AR109+'2011 Survey responses'!BG109)<3.1,\"\",((SUMIF('2011 Survey responses'!AQ109,\">1\")+SUMIF('2011 Survey responses'!AR109,\">1\")+SUMIF('2011 Survey responses'!BG109,\">1\"))/(COUNTIF('2011 Survey responses'!AQ109,\">1\")+COUNTIF('2011 Survey responses'!AR109,\">1\")+COUNTIF('2011 Survey responses'!BG109,\">1\"))))","v":2},{"$f":"IF(SUM('2011 Survey responses'!AP109:AS109)<4.1,\"\",(AVERAGEIFS('2011 Survey responses'!AP109:AS109,'2011 Survey responses'!AP109:AS109,\">1\")))","v":2.75},{"$f":"IF(('2011 Survey responses'!AU109+'2011 Survey responses'!AX109+'2011 Survey responses'!BA109+'2011 Survey responses'!BC109+'2011 Survey responses'!BD109)<5.1,\"\",(SUMIF('2011 Survey responses'!AU109,\">1\")+SUMIF('2011 Survey responses'!AX109,\">1\")+SUMIF('2011 Survey responses'!BA109,\">1\")+SUMIF('2011 Survey responses'!BC109,\">1\")+SUMIF('2011 Survey responses'!BD109,\">1\"))/(COUNTIF('2011 Survey responses'!AU109,\">1\")+COUNTIF('2011 Survey responses'!AX109,\">1\")+COUNTIF('2011 Survey responses'!BA109,\">1\")+COUNTIF('2011 Survey responses'!BC109,\">1\")+COUNTIF('2011 Survey responses'!BD109,\">1\")))","v":3.4},{"$f":"IF(('2011 Survey responses'!AT109)<1.1,\"\",('2011 Survey responses'!AT109))","v":4},{"$f":"IF(SUM('2011 Survey responses'!AV109:AW109)<2.1,\"\",(AVERAGEIFS('2011 Survey responses'!AV109:AW109,'2011 Survey responses'!AV109:AW109,\">1\")))","v":2},{"$f":"IF(('2011 Survey responses'!AW109+'2011 Survey responses'!AY109)<2.1,\"\",(SUMIF('2011 Survey responses'!AW109,\">1\")+SUMIF('2011 Survey responses'!AY109,\">1\"))/(COUNTIF('2011 Survey responses'!AW109,\">1\")+COUNTIF('2011 Survey responses'!AY109,\">1\")))","v":2.5},{"$f":"IF(('2011 Survey responses'!AZ109)<1.1,\"\",('2011 Survey responses'!AZ109))","v":3},3,3,2,2,{"$f":"IF(('2011 Survey responses'!BE109)<1.1,\"\",('2011 Survey responses'!BE109))","v":2},{"$f":"IF(('2011 Survey responses'!AY109+'2011 Survey responses'!BB109+'2011 Survey responses'!BF109)<3.1,\"\",(SUMIF('2011 Survey responses'!AY109,\">1\")+SUMIF('2011 Survey responses'!BB109,\">1\")+SUMIF('2011 Survey responses'!BF109,\">1\"))/(COUNTIF('2011 Survey responses'!AY109,\">1\")+COUNTIF('2011 Survey responses'!BB109,\">1\")+COUNTIF('2011 Survey responses'!BF109,\">1\")))","v":2.6666666666666665},3.3472222222222223,{"$f":"IF(SUM('2011 Survey responses'!BT109:BV109)<3.1,\"\",(AVERAGEIFS('2011 Survey responses'!BT109:BV109,'2011 Survey responses'!BT109:BV109,\">1\")))","v":2.3333333333333335},{"$f":"IF(SUM('2011 Survey responses'!BW109:CP109)<1,\"\",(AVERAGEIFS('2011 Survey responses'!BW109:CP109,'2011 Survey responses'!BW109:CP109,\">1\")))","v":3.3076923076923075},{"$f":"IF(SUM('2011 Survey responses'!BW109:CF109)<1,\"\",(AVERAGEIFS('2011 Survey responses'!BW109:CF109,'2011 Survey responses'!BW109:CF109,\">1\")))","v":3.4285714285714284},{"$f":"IF(SUM('2011 Survey responses'!CG109:CP109)<1,\"\",(AVERAGEIFS('2011 Survey responses'!CG109:CP109,'2011 Survey responses'!CG109:CP109,\">1\")))","v":3.1666666666666665},{"$f":"IF(SUM('2011 Survey responses'!BX109:CF109)<1,\"\",(AVERAGEIFS('2011 Survey responses'!BX109:CF109,'2011 Survey responses'!BX109:CF109,\">1\")))","v":3.5},{"$f":"IF(SUM('2011 Survey responses'!CH109:CP109)<1,\"\",(AVERAGEIFS('2011 Survey responses'!CH109:CP109,'2011 Survey responses'!CH109:CP109,\">1\")))","v":3.2},{"$f":"IF(SUM('2011 Survey responses'!BW109:CP109)<1,\"\",(AVERAGEIFS('2011 Survey responses'!BW109:CP109,'2011 Survey responses'!BW109:CP109,\">1\")))","v":3.3076923076923075},{"$f":"IF(('2011 Survey responses'!BW109+'2011 Survey responses'!CG109)<2.1,\"\",(SUMIF('2011 Survey responses'!BW109,\">1\")+SUMIF('2011 Survey responses'!CG109,\">1\"))/(COUNTIF('2011 Survey responses'!BW109,\">1\")+COUNTIF('2011 Survey responses'!CG109,\">1\")))","v":3},{"$f":"IF(('2011 Survey responses'!BX109+'2011 Survey responses'!CH109)<2.1,\"\",(SUMIF('2011 Survey responses'!BX109,\">1\")+SUMIF('2011 Survey responses'!CH109,\">1\"))/(COUNTIF('2011 Survey responses'!BX109,\">1\")+COUNTIF('2011 Survey responses'!CH109,\">1\")))","v":""},{"$f":"IF(('2011 Survey responses'!BY109+'2011 Survey responses'!CI109)<2.1,\"\",(SUMIF('2011 Survey responses'!BY109,\">1\")+SUMIF('2011 Survey responses'!CI109,\">1\"))/(COUNTIF('2011 Survey responses'!BY109,\">1\")+COUNTIF('2011 Survey responses'!CI109,\">1\")))","v":3},{"$f":"IF('2011 Survey responses'!CQ109<0.5,\"\",'2011 Survey responses'!CQ109)","v":5},{"$f":"IF('2011 Survey responses'!CR109<0.5,\"\",'2011 Survey responses'!CR109)","v":5},{"$f":"IF('2011 Survey responses'!CS109<0.5,\"\",'2011 Survey responses'!CS109)","v":4},{"$f":"IF('2011 Survey responses'!CT109<0.5,\"\",'2011 Survey responses'!CT109)","v":1},{"$f":"IF('2011 Survey responses'!CU109<0.5,\"\",'2011 Survey responses'!CU109)","v":5},{"$f":"IF('2011 Survey responses'!CV109<0.5,\"\",'2011 Survey responses'!CV109)","v":2},{"$f":"IF(SUM('2011 Survey responses'!CW109:DL109)<1,\"\",(AVERAGE('2011 Survey responses'!CW109:DL109)))","v":1.6875},{"$f":"IF(SUM('2011 Survey responses'!CW109:CZ109)<1,\"\",(AVERAGE('2011 Survey responses'!CW109:CZ109)))","v":2},{"$f":"IF(SUM('2011 Survey responses'!DA109:DD109)<1,\"\",(AVERAGE('2011 Survey responses'!DA109:DD109)))","v":1.5},{"$f":"IF(SUM('2011 Survey responses'!DE109:DH109)<1,\"\",(AVERAGE('2011 Survey responses'!DE109:DH109)))","v":1.75},{"$f":"IF(SUM('2011 Survey responses'!DI109:DL109)<1,\"\",(AVERAGE('2011 Survey responses'!DI109:DL109)))","v":1.5},{"$f":"IF(('2011 Survey responses'!CW109+'2011 Survey responses'!DA109+'2011 Survey responses'!DE109+'2011 Survey responses'!DI109)<1,\"\",AVERAGE('2011 Survey responses'!CW109,'2011 Survey responses'!DA109,'2011 Survey responses'!DE109,'2011 Survey responses'!DI109))","v":1.5},{"$f":"IF(('2011 Survey responses'!CX109+'2011 Survey responses'!DB109+'2011 Survey responses'!DF109+'2011 Survey responses'!DJ109)<1,\"\",AVERAGE('2011 Survey responses'!CX109,'2011 Survey responses'!DB109,'2011 Survey responses'!DF109,'2011 Survey responses'!DJ109))","v":1.25},{"$f":"IF(('2011 Survey responses'!CY109+'2011 Survey responses'!DC109+'2011 Survey responses'!DG109+'2011 Survey responses'!DK109)<1,\"\",AVERAGE('2011 Survey responses'!CY109,'2011 Survey responses'!DC109,'2011 Survey responses'!DG109,'2011 Survey responses'!DK109))","v":2},{"$f":"IF(('2011 Survey responses'!CZ109+'2011 Survey responses'!DD109+'2011 Survey responses'!DH109+'2011 Survey responses'!DL109)<1,\"\",AVERAGE('2011 Survey responses'!CZ109,'2011 Survey responses'!DD109,'2011 Survey responses'!DH109,'2011 Survey responses'!DL109))","v":2},{"$f":"IF('2011 Survey responses'!CW109<0.5,\"\",'2011 Survey responses'!CW109)","v":2},{"$f":"IF('2011 Survey responses'!CX109<0.5,\"\",'2011 Survey responses'!CX109)","v":2},{"$f":"IF('2011 Survey responses'!CY109<0.5,\"\",'2011 Survey responses'!CY109)","v":2},{"$f":"IF('2011 Survey responses'!CZ109<0.5,\"\",'2011 Survey responses'!CZ109)","v":2},{"$f":"IF('2011 Survey responses'!DA109<0.5,\"\",'2011 Survey responses'!DA109)","v":1},{"$f":"IF('2011 Survey responses'!DB109<0.5,\"\",'2011 Survey responses'!DB109)","v":1},{"$f":"IF('2011 Survey responses'!DC109<0.5,\"\",'2011 Survey responses'!DC109)","v":2},{"$f":"IF('2011 Survey responses'!DD109<0.5,\"\",'2011 Survey responses'!DD109)","v":2},{"$f":"IF('2011 Survey responses'!DE109<0.5,\"\",'2011 Survey responses'!DE109)","v":2},{"$f":"IF('2011 Survey responses'!DF109<0.5,\"\",'2011 Survey responses'!DF109)","v":1},{"$f":"IF('2011 Survey responses'!DG109<0.5,\"\",'2011 Survey responses'!DG109)","v":2},{"$f":"IF('2011 Survey responses'!DH109<0.5,\"\",'2011 Survey responses'!DH109)","v":2},{"$f":"IF('2011 Survey responses'!DI109<0.5,\"\",'2011 Survey responses'!DI109)","v":1},{"$f":"IF('2011 Survey responses'!DJ109<0.5,\"\",'2011 Survey responses'!DJ109)","v":1},{"$f":"IF('2011 Survey responses'!DK109<0.5,\"\",'2011 Survey responses'!DK109)","v":2},{"$f":"IF('2011 Survey responses'!DL109<0.5,\"\",'2011 Survey responses'!DL109)","v":2},{"$f":"IF('2011 Survey responses'!DU109=4,4,IF('2011 Survey responses'!DU109=5,4,\"\"))","v":""},{"$f":"IF('2011 Survey responses'!DV109=4,3,IF('2011 Survey responses'!DV109=5,3,\"\"))","v":3},"",{"$f":"IF(CQ109=2,CQ109,IF(CO109=4,CO109,IF(CP109=3,CP109,IF('2011 Survey responses'!GT109=1,1,\"\"))))","v":3},{"$f":"IF('2011 Survey responses'!DO109<0.5,\"\",'2011 Survey responses'!DO109)","v":3},{"$f":"IF('2011 Survey responses'!DP109<0.5,\"\",'2011 Survey responses'!DP109)","v":3},{"$f":"IF('2011 Survey responses'!DQ109<0.5,\"\",'2011 Survey responses'!DQ109)","v":3},{"$f":"IF('2011 Survey responses'!DR109<0.5,\"\",'2011 Survey responses'!DR109)","v":4},{"$f":"IF('2011 Survey responses'!DS109<0.5,\"\",'2011 Survey responses'!DS109)","v":2},{"$f":"IF('2011 Survey responses'!DT109<0.5,\"\",'2011 Survey responses'!DT109)","v":2},{"$f":"IF('2011 Survey responses'!DU109<0.5,\"\",'2011 Survey responses'!DU109)","v":2},{"$f":"IF('2011 Survey responses'!DV109<0.5,\"\",'2011 Survey responses'!DV109)","v":4},{"$f":"IF('2011 Survey responses'!DW109<0.5,\"\",'2011 Survey responses'!DW109)","v":5},{"$f":"IF('2011 Survey responses'!DX109<0.5,\"\",'2011 Survey responses'!DX109)","v":5},{"$f":"IF('2011 Survey responses'!DY109<0.5,\"\",'2011 Survey responses'!DY109)","v":5},{"$f":"IF('2011 Survey responses'!DZ109<0.5,\"\",'2011 Survey responses'!DZ109)","v":5},{"$f":"IF('2011 Survey responses'!EA109<0.5,\"\",'2011 Survey responses'!EA109)","v":3},{"$f":"IF('2011 Survey responses'!EB109<0.5,\"\",'2011 Survey responses'!EB109)","v":5},{"$f":"IF('2011 Survey responses'!EC109<0.5,\"\",'2011 Survey responses'!EC109)","v":4},{"$f":"IF('2011 Survey responses'!ED109<0.5,\"\",'2011 Survey responses'!ED109)","v":4},{"$f":"IF('2011 Survey responses'!EE109<0.5,\"\",'2011 Survey responses'!EE109)","v":3},{"$f":"IF('2011 Survey responses'!EF109<0.5,\"\",'2011 Survey responses'!EF109)","v":4},{"$f":"IF('2011 Survey responses'!EG109<0.5,\"\",'2011 Survey responses'!EG109)","v":3},{"$f":"IF('2011 Survey responses'!EH109<0.5,\"\",'2011 Survey responses'!EH109)","v":5},{"$f":"IF('2011 Survey responses'!EI109<0.5,\"\",'2011 Survey responses'!EI109)","v":5},{"$f":"IF('2011 Survey responses'!EJ109<0.5,\"\",'2011 Survey responses'!EJ109)","v":5},{"$f":"IF('2011 Survey responses'!EK109<0.5,\"\",'2011 Survey responses'!EK109)","v":5},{"$f":"IF('2011 Survey responses'!EL109<0.5,\"\",'2011 Survey responses'!EL109)","v":5},{"$f":"IF('2011 Survey responses'!EM109<0.5,\"\",'2011 Survey responses'!EM109)","v":4},{"$f":"IF('2011 Survey responses'!EN109<0.5,\"\",'2011 Survey responses'!EN109)","v":4},{"$f":"IF('2011 Survey responses'!EO109<0.5,\"\",'2011 Survey responses'!EO109)","v":4},{"$f":"IF('2011 Survey responses'!EP109<0.5,\"\",'2011 Survey responses'!EP109)","v":4},{"$f":"IF(('2011 Survey responses'!EW109+'2011 Survey responses'!EX109)>=2,AVERAGE('2011 Survey responses'!EW109,'2011 Survey responses'!EY109),\"\")","v":4},{"$f":"IF('2011 Survey responses'!EX109<0.5,\"\",'2011 Survey responses'!EX109)","v":4},{"$f":"IF('2011 Survey responses'!EZ109<0.5,\"\",'2011 Survey responses'!EZ109)","v":4},{"$f":"IF('2011 Survey responses'!FB109<0.5,\"\",'2011 Survey responses'!FB109)","v":4},{"$f":"IF('2011 Survey responses'!FD109<0.5,\"\",'2011 Survey responses'!FD109)","v":4},{"$f":"IF('2011 Survey responses'!FC109<0.5,\"\",'2011 Survey responses'!FC109)","v":4},{"$f":"IF(('2011 Survey responses'!EM109+'2011 Survey responses'!EN109)>=2,AVERAGE('2011 Survey responses'!EM109,'2011 Survey responses'!EN109),\"\")","v":4},{"$f":"IF('2011 Survey responses'!ES109<0.5,\"\",'2011 Survey responses'!ES109)","v":4},{"$f":"IF(('2011 Survey responses'!ET109+'2011 Survey responses'!EU109)>=2,AVERAGE('2011 Survey responses'!ET109,'2011 Survey responses'!EU109),\"\")","v":5},{"$f":"IF('2011 Survey responses'!EV109<0.5,\"\",'2011 Survey responses'!EV109)","v":4},{"$f":"IF('2011 Survey responses'!FA109<0.5,\"\",'2011 Survey responses'!FA109)","v":4},{"$f":"IF('2011 Survey responses'!ER109<0.5,\"\",'2011 Survey responses'!ER109)","v":4},{"$f":"IF(('2011 Survey responses'!EO109+'2011 Survey responses'!EP109)>=2,AVERAGE('2011 Survey responses'!EO109,'2011 Survey responses'!EP109),\"\")","v":4},{"$f":"IF('2011 Survey responses'!EQ109<0.5,\"\",'2011 Survey responses'!EQ109)","v":4},{"$f":"IF('2011 Survey responses'!ET109<0.5,\"\",'2011 Survey responses'!ET109)","v":5},{"$f":"IF('2011 Survey responses'!EU109<0.5,\"\",'2011 Survey responses'!EU109)","v":5},{"$f":"IF('2011 Survey responses'!EW109<0.5,\"\",'2011 Survey responses'!EW109)","v":4},{"$f":"IF('2011 Survey responses'!EY109<0.5,\"\",'2011 Survey responses'!EY109)","v":4},{"$f":"IF('2011 Survey responses'!FU109<0.5,\"\",'2011 Survey responses'!FU109)","v":4},{"$f":"IF(('2011 Survey responses'!FL109+'2011 Survey responses'!FM109)>=2,AVERAGE('2011 Survey responses'!FL109,'2011 Survey responses'!FM109),\"\")","v":4},{"$f":"IF(('2011 Survey responses'!FO109+'2011 Survey responses'!FQ109)>=2,AVERAGE('2011 Survey responses'!FO109,'2011 Survey responses'!FQ109),\"\")","v":3},{"$f":"IF('2011 Survey responses'!FJ109<0.5,\"\",'2011 Survey responses'!FJ109)","v":4},{"$f":"IF('2011 Survey responses'!FT109<0.5,\"\",'2011 Survey responses'!FT109)","v":4},{"$f":"IF('2011 Survey responses'!FR109<0.5,\"\",'2011 Survey responses'!FR109)","v":4},{"$f":"IF('2011 Survey responses'!FK109<0.5,\"\",'2011 Survey responses'!FK109)","v":4},{"$f":"IF('2011 Survey responses'!FP109<0.5,\"\",'2011 Survey responses'!FP109)","v":3},{"$f":"IF('2011 Survey responses'!FN109<0.5,\"\",'2011 Survey responses'!FN109)","v":3},{"$f":"IF(('2011 Survey responses'!FE109+'2011 Survey responses'!FF109)>=2,AVERAGE('2011 Survey responses'!FE109,'2011 Survey responses'!FF109),\"\")","v":4},{"$f":"IF('2011 Survey responses'!FS109<0.5,\"\",'2011 Survey responses'!FS109)","v":4},{"$f":"IF('2011 Survey responses'!FV109<0.5,\"\",'2011 Survey responses'!FV109)","v":3},{"$f":"IF(('2011 Survey responses'!FG109+'2011 Survey responses'!FH109)>=2,AVERAGE('2011 Survey responses'!FG109,'2011 Survey responses'!FH109),\"\")","v":4},{"$f":"IF('2011 Survey responses'!FI109<0.5,\"\",'2011 Survey responses'!FI109)","v":4},{"$f":"IF('2011 Survey responses'!FE109<0.5,\"\",'2011 Survey responses'!FE109)","v":4},{"$f":"IF('2011 Survey responses'!FF109<0.5,\"\",'2011 Survey responses'!FF109)","v":4},{"$f":"IF('2011 Survey responses'!FG109<0.5,\"\",'2011 Survey responses'!FG109)","v":4},{"$f":"IF('2011 Survey responses'!FH109<0.5,\"\",'2011 Survey responses'!FH109)","v":4},{"$f":"IF('2011 Survey responses'!FL109<0.5,\"\",'2011 Survey responses'!FL109)","v":4},{"$f":"IF('2011 Survey responses'!FM109<0.5,\"\",'2011 Survey responses'!FM109)","v":4},{"$f":"IF('2011 Survey responses'!FO109<0.5,\"\",'2011 Survey responses'!FO109)","v":3},{"$f":"IF('2011 Survey responses'!FQ109<0.5,\"\",'2011 Survey responses'!FQ109)","v":3}]
["Mauritania",{"$f":"IF(SUM(F110)<1,\"\",AVERAGEIF('2011 Survey responses'!B110:CP110,\">1\"))","v":""},{"$f":"IF(SUM(F110)<1,\"\",AVERAGEIF('2011 Survey responses'!B110:AO110,\">1\"))","v":""},{"$f":"IF(SUM(F110)<1,\"\",AVERAGEIF('2011 Survey responses'!B110:BV110,\">1\"))","v":""},{"$f":"IF(SUM(F110)<1,\"\",AVERAGEIF('2011 Survey responses'!V110:BV110,\">1\"))","v":""},{"$f":"IF(SUM('2011 Survey responses'!B110:U110)<1,\"\",(AVERAGEIFS('2011 Survey responses'!B110:U110,'2011 Survey responses'!B110:U110,\">1\")))","v":""},{"$f":"IF(SUM('2011 Survey responses'!B110:H110)<1,\"\",(AVERAGEIFS('2011 Survey responses'!B110:H110,'2011 Survey responses'!B110:H110,\">1\")))","v":""},{"$f":"IF(SUM('2011 Survey responses'!I110:S110)<1,\"\",(AVERAGEIFS('2011 Survey responses'!I110:S110,'2011 Survey responses'!I110:S110,\">1\")))","v":""},{"$f":"IF(SUM('2011 Survey responses'!T110:U110)<2.1,\"\",(AVERAGEIFS('2011 Survey responses'!T110:U110,'2011 Survey responses'!T110:U110,\">1\")))","v":""},{"$f":"IF(SUM('2011 Survey responses'!B110:C110)<2.1,\"\",((SUMIF('2011 Survey responses'!B110:C110,\">1\")+SUMIF('2011 Survey responses'!F110,\">1\"))/(COUNTIF('2011 Survey responses'!B110:C110,\">1\")+COUNTIF('2011 Survey responses'!F110,\">1\"))))","v":""},{"$f":"IF(SUM('2011 Survey responses'!D110:E110)<2.1,\"\",(AVERAGEIFS('2011 Survey responses'!D110:E110,'2011 Survey responses'!D110:E110,\">1\")))","v":""},{"$f":"IF(('2011 Survey responses'!B110+'2011 Survey responses'!D110)<2.1,\"\",((SUMIF('2011 Survey responses'!B110,\">1\")+SUMIF('2011 Survey responses'!D110,\">1\")+SUMIF('2011 Survey responses'!F110,\">1\")+SUMIF('2011 Survey responses'!K110,\">1\"))/(COUNTIF('2011 Survey responses'!B110,\">1\")+COUNTIF('2011 Survey responses'!D110,\">1\")+COUNTIF('2011 Survey responses'!F110,\">1\")+COUNTIF('2011 Survey responses'!K110,\">1\"))))","v":""},{"$f":"IF(SUM('2011 Survey responses'!G110:H110)<2.1,\"\",(AVERAGEIFS('2011 Survey responses'!G110:H110,'2011 Survey responses'!G110:H110,\">1\")))","v":""},{"$f":"IF(SUM('2011 Survey responses'!F110:G110)<1.5,\"\",MAX('2011 Survey responses'!F110,'2011 Survey responses'!G110))","v":""},{"$f":"IF(SUM('2011 Survey responses'!G110:H110)<1,\"\",MAX('2011 Survey responses'!G110,'2011 Survey responses'!H110))","v":""},{"$f":"IF(SUM('2011 Survey responses'!I110:L110)<4.1,\"\",(AVERAGEIFS('2011 Survey responses'!I110:L110,'2011 Survey responses'!I110:L110,\">1\")))","v":""},{"$f":"IF(SUM('2011 Survey responses'!M110:S110)<4.1,\"\",(AVERAGEIFS('2011 Survey responses'!M110:S110,'2011 Survey responses'!M110:S110,\">1\")))","v":""},{"$f":"IF(SUM('2011 Survey responses'!T110:U110)<2.1,\"\",(AVERAGEIFS('2011 Survey responses'!T110:U110,'2011 Survey responses'!T110:U110,\">1\")))","v":""},{"$f":"IF(SUM('2011 Survey responses'!V110:AO110)<1,\"\",(AVERAGEIFS('2011 Survey responses'!V110:AO110,'2011 Survey responses'!V110:AO110,\">1\")))","v":""},{"$f":"IF(SUM('2011 Survey responses'!V110:AA110)<1,\"\",(AVERAGEIFS('2011 Survey responses'!V110:AA110,'2011 Survey responses'!V110:AA110,\">1\")))","v":""},{"$f":"IF(SUM('2011 Survey responses'!AB110:AH110)<1,\"\",(AVERAGEIFS('2011 Survey responses'!AB110:AH110,'2011 Survey responses'!AB110:AH110,\">1\")))","v":""},{"$f":"IF(SUM('2011 Survey responses'!AI110:AO110)<1,\"\",(AVERAGEIFS('2011 Survey responses'!AI110:AO110,'2011 Survey responses'!AI110:AO110,\">1\")))","v":""},{"$f":"IF(('2011 Survey responses'!Y110+'2011 Survey responses'!AI110+'2011 Survey responses'!AK110)<3.1,\"\",((SUMIF('2011 Survey responses'!Y110,\">1\")+SUMIF('2011 Survey responses'!AI110,\">1\")+SUMIF('2011 Survey responses'!AK110,\">1\")+SUMIF('2011 Survey responses'!AM110,\">1\"))/(COUNTIF('2011 Survey responses'!Y110,\">1\")+COUNTIF('2011 Survey responses'!AI110,\">1\")+COUNTIF('2011 Survey responses'!AK110,\">1\")+COUNTIF('2011 Survey responses'!AM110,\">1\"))))","v":""},{"$f":"IF(('2011 Survey responses'!W110)<1.1,\"\",('2011 Survey responses'!W110))","v":""},{"$f":"IF(('2011 Survey responses'!Y110)<1.1,\"\",('2011 Survey responses'!Y110))","v":""},{"$f":"IF(('2011 Survey responses'!Z110)<1.1,\"\",('2011 Survey responses'!Z110))","v":""},{"$f":"IF(('2011 Survey responses'!V110+'2011 Survey responses'!X110+'2011 Survey responses'!AA110)<3.1,\"\",((SUMIF('2011 Survey responses'!V110,\">1\")+SUMIF('2011 Survey responses'!X110,\">1\")+SUMIF('2011 Survey responses'!AA110,\">1\"))/(COUNTIF('2011 Survey responses'!V110,\">1\")+COUNTIF('2011 Survey responses'!X110,\">1\")+COUNTIF('2011 Survey responses'!AA110,\">1\"))))","v":""},{"$f":"IF(('2011 Survey responses'!V110+'2011 Survey responses'!Y110+'2011 Survey responses'!AA110)<3.1,\"\",((SUMIF('2011 Survey responses'!V110,\">1\")+SUMIF('2011 Survey responses'!Y110,\">1\")+SUMIF('2011 Survey responses'!AA110,\">1\"))/(COUNTIF('2011 Survey responses'!V110,\">1\")+COUNTIF('2011 Survey responses'!Y110,\">1\")+COUNTIF('2011 Survey responses'!AA110,\">1\"))))","v":""},{"$f":"IF(SUM('2011 Survey responses'!AB110:AH110)<1,\"\",(AVERAGEIFS('2011 Survey responses'!AB110:AH110,'2011 Survey responses'!AB110:AH110,\">1\")))","v":""},{"$f":"IF(SUM('2011 Survey responses'!AI110:AO110)<7.1,\"\",(AVERAGEIFS('2011 Survey responses'!AI110:AO110,'2011 Survey responses'!AI110:AO110,\">1\")))","v":""},{"$f":"IF(('2011 Survey responses'!AH110)<1.1,\"\",('2011 Survey responses'!AH110))","v":""},{"$f":"IF(SUM('2011 Survey responses'!AP110:BV110)<1,\"\",(AVERAGEIFS('2011 Survey responses'!AP110:BV110,'2011 Survey responses'!AP110:BV110,\">1\")))","v":""},{"$f":"IF(SUM('2011 Survey responses'!AP110:AS110)<4.1,\"\",(AVERAGEIFS('2011 Survey responses'!AP110:AS110,'2011 Survey responses'!AP110:AS110,\">1\")))","v":""},{"$f":"IF(SUM('2011 Survey responses'!AT110:BF110)<1,\"\",(AVERAGEIFS('2011 Survey responses'!AT110:BF110,'2011 Survey responses'!AT110:BF110,\">1\")))","v":""},{"$f":"IF(SUM('2011 Survey responses'!BG110:BO110)<1,\"\",(AVERAGEIFS('2011 Survey responses'!BG110:BO110,'2011 Survey responses'!BG110:BO110,\">1\")))","v":""},{"$f":"IF(SUM('2011 Survey responses'!BP110:BS110)<1,\"\",(AVERAGEIFS('2011 Survey responses'!BP110:BS110,'2011 Survey responses'!BP110:BS110,\">1\")))","v":""},{"$f":"IF(SUM('2011 Survey responses'!BT110:BV110)<3.1,\"\",(AVERAGEIFS('2011 Survey responses'!BT110:BV110,'2011 Survey responses'!BT110:BV110,\">1\")))","v":""},{"$f":"IF(('2011 Survey responses'!AQ110+'2011 Survey responses'!AR110+'2011 Survey responses'!BG110)<3.1,\"\",((SUMIF('2011 Survey responses'!AQ110,\">1\")+SUMIF('2011 Survey responses'!AR110,\">1\")+SUMIF('2011 Survey responses'!BG110,\">1\"))/(COUNTIF('2011 Survey responses'!AQ110,\">1\")+COUNTIF('2011 Survey responses'!AR110,\">1\")+COUNTIF('2011 Survey responses'!BG110,\">1\"))))","v":""},{"$f":"IF(SUM('2011 Survey responses'!AP110:AS110)<4.1,\"\",(AVERAGEIFS('2011 Survey responses'!AP110:AS110,'2011 Survey responses'!AP110:AS110,\">1\")))","v":""},{"$f":"IF(('2011 Survey responses'!AU110+'2011 Survey responses'!AX110+'2011 Survey responses'!BA110+'2011 Survey responses'!BC110+'2011 Survey responses'!BD110)<5.1,\"\",(SUMIF('2011 Survey responses'!AU110,\">1\")+SUMIF('2011 Survey responses'!AX110,\">1\")+SUMIF('2011 Survey responses'!BA110,\">1\")+SUMIF('2011 Survey responses'!BC110,\">1\")+SUMIF('2011 Survey responses'!BD110,\">1\"))/(COUNTIF('2011 Survey responses'!AU110,\">1\")+COUNTIF('2011 Survey responses'!AX110,\">1\")+COUNTIF('2011 Survey responses'!BA110,\">1\")+COUNTIF('2011 Survey responses'!BC110,\">1\")+COUNTIF('2011 Survey responses'!BD110,\">1\")))","v":""},{"$f":"IF(('2011 Survey responses'!AT110)<1.1,\"\",('2011 Survey responses'!AT110))","v":""},{"$f":"IF(SUM('2011 Survey responses'!AV110:AW110)<2.1,\"\",(AVERAGEIFS('2011 Survey responses'!AV110:AW110,'2011 Survey responses'!AV110:AW110,\">1\")))","v":""},{"$f":"IF(('2011 Survey responses'!AW110+'2011 Survey responses'!AY110)<2.1,\"\",(SUMIF('2011 Survey responses'!AW110,\">1\")+SUMIF('2011 Survey responses'!AY110,\">1\"))/(COUNTIF('2011 Survey responses'!AW110,\">1\")+COUNTIF('2011 Survey responses'!AY110,\">1\")))","v":""},{"$f":"IF(('2011 Survey responses'!AZ110)<1.1,\"\",('2011 Survey responses'!AZ110))","v":""},null,null,null,null,{"$f":"IF(('2011 Survey responses'!BE110)<1.1,\"\",('2011 Survey responses'!BE110))","v":""},{"$f":"IF(('2011 Survey responses'!AY110+'2011 Survey responses'!BB110+'2011 Survey responses'!BF110)<3.1,\"\",(SUMIF('2011 Survey responses'!AY110,\">1\")+SUMIF('2011 Survey responses'!BB110,\">1\")+SUMIF('2011 Survey responses'!BF110,\">1\"))/(COUNTIF('2011 Survey responses'!AY110,\">1\")+COUNTIF('2011 Survey responses'!BB110,\">1\")+COUNTIF('2011 Survey responses'!BF110,\">1\")))","v":""},"",{"$f":"IF(SUM('2011 Survey responses'!BT110:BV110)<3.1,\"\",(AVERAGEIFS('2011 Survey responses'!BT110:BV110,'2011 Survey responses'!BT110:BV110,\">1\")))","v":""},{"$f":"IF(SUM('2011 Survey responses'!BW110:CP110)<1,\"\",(AVERAGEIFS('2011 Survey responses'!BW110:CP110,'2011 Survey responses'!BW110:CP110,\">1\")))","v":""},{"$f":"IF(SUM('2011 Survey responses'!BW110:CF110)<1,\"\",(AVERAGEIFS('2011 Survey responses'!BW110:CF110,'2011 Survey responses'!BW110:CF110,\">1\")))","v":""},{"$f":"IF(SUM('2011 Survey responses'!CG110:CP110)<1,\"\",(AVERAGEIFS('2011 Survey responses'!CG110:CP110,'2011 Survey responses'!CG110:CP110,\">1\")))","v":""},{"$f":"IF(SUM('2011 Survey responses'!BX110:CF110)<1,\"\",(AVERAGEIFS('2011 Survey responses'!BX110:CF110,'2011 Survey responses'!BX110:CF110,\">1\")))","v":""},{"$f":"IF(SUM('2011 Survey responses'!CH110:CP110)<1,\"\",(AVERAGEIFS('2011 Survey responses'!CH110:CP110,'2011 Survey responses'!CH110:CP110,\">1\")))","v":""},{"$f":"IF(SUM('2011 Survey responses'!BW110:CP110)<1,\"\",(AVERAGEIFS('2011 Survey responses'!BW110:CP110,'2011 Survey responses'!BW110:CP110,\">1\")))","v":""},{"$f":"IF(('2011 Survey responses'!BW110+'2011 Survey responses'!CG110)<2.1,\"\",(SUMIF('2011 Survey responses'!BW110,\">1\")+SUMIF('2011 Survey responses'!CG110,\">1\"))/(COUNTIF('2011 Survey responses'!BW110,\">1\")+COUNTIF('2011 Survey responses'!CG110,\">1\")))","v":""},{"$f":"IF(('2011 Survey responses'!BX110+'2011 Survey responses'!CH110)<2.1,\"\",(SUMIF('2011 Survey responses'!BX110,\">1\")+SUMIF('2011 Survey responses'!CH110,\">1\"))/(COUNTIF('2011 Survey responses'!BX110,\">1\")+COUNTIF('2011 Survey responses'!CH110,\">1\")))","v":""},{"$f":"IF(('2011 Survey responses'!BY110+'2011 Survey responses'!CI110)<2.1,\"\",(SUMIF('2011 Survey responses'!BY110,\">1\")+SUMIF('2011 Survey responses'!CI110,\">1\"))/(COUNTIF('2011 Survey responses'!BY110,\">1\")+COUNTIF('2011 Survey responses'!CI110,\">1\")))","v":""},{"$f":"IF('2011 Survey responses'!CQ110<0.5,\"\",'2011 Survey responses'!CQ110)","v":""},{"$f":"IF('2011 Survey responses'!CR110<0.5,\"\",'2011 Survey responses'!CR110)","v":""},{"$f":"IF('2011 Survey responses'!CS110<0.5,\"\",'2011 Survey responses'!CS110)","v":""},{"$f":"IF('2011 Survey responses'!CT110<0.5,\"\",'2011 Survey responses'!CT110)","v":""},{"$f":"IF('2011 Survey responses'!CU110<0.5,\"\",'2011 Survey responses'!CU110)","v":""},{"$f":"IF('2011 Survey responses'!CV110<0.5,\"\",'2011 Survey responses'!CV110)","v":""},{"$f":"IF(SUM('2011 Survey responses'!CW110:DL110)<1,\"\",(AVERAGE('2011 Survey responses'!CW110:DL110)))","v":""},{"$f":"IF(SUM('2011 Survey responses'!CW110:CZ110)<1,\"\",(AVERAGE('2011 Survey responses'!CW110:CZ110)))","v":""},{"$f":"IF(SUM('2011 Survey responses'!DA110:DD110)<1,\"\",(AVERAGE('2011 Survey responses'!DA110:DD110)))","v":""},{"$f":"IF(SUM('2011 Survey responses'!DE110:DH110)<1,\"\",(AVERAGE('2011 Survey responses'!DE110:DH110)))","v":""},{"$f":"IF(SUM('2011 Survey responses'!DI110:DL110)<1,\"\",(AVERAGE('2011 Survey responses'!DI110:DL110)))","v":""},{"$f":"IF(('2011 Survey responses'!CW110+'2011 Survey responses'!DA110+'2011 Survey responses'!DE110+'2011 Survey responses'!DI110)<1,\"\",AVERAGE('2011 Survey responses'!CW110,'2011 Survey responses'!DA110,'2011 Survey responses'!DE110,'2011 Survey responses'!DI110))","v":""},{"$f":"IF(('2011 Survey responses'!CX110+'2011 Survey responses'!DB110+'2011 Survey responses'!DF110+'2011 Survey responses'!DJ110)<1,\"\",AVERAGE('2011 Survey responses'!CX110,'2011 Survey responses'!DB110,'2011 Survey responses'!DF110,'2011 Survey responses'!DJ110))","v":""},{"$f":"IF(('2011 Survey responses'!CY110+'2011 Survey responses'!DC110+'2011 Survey responses'!DG110+'2011 Survey responses'!DK110)<1,\"\",AVERAGE('2011 Survey responses'!CY110,'2011 Survey responses'!DC110,'2011 Survey responses'!DG110,'2011 Survey responses'!DK110))","v":""},{"$f":"IF(('2011 Survey responses'!CZ110+'2011 Survey responses'!DD110+'2011 Survey responses'!DH110+'2011 Survey responses'!DL110)<1,\"\",AVERAGE('2011 Survey responses'!CZ110,'2011 Survey responses'!DD110,'2011 Survey responses'!DH110,'2011 Survey responses'!DL110))","v":""},{"$f":"IF('2011 Survey responses'!CW110<0.5,\"\",'2011 Survey responses'!CW110)","v":""},{"$f":"IF('2011 Survey responses'!CX110<0.5,\"\",'2011 Survey responses'!CX110)","v":""},{"$f":"IF('2011 Survey responses'!CY110<0.5,\"\",'2011 Survey responses'!CY110)","v":""},{"$f":"IF('2011 Survey responses'!CZ110<0.5,\"\",'2011 Survey responses'!CZ110)","v":""},{"$f":"IF('2011 Survey responses'!DA110<0.5,\"\",'2011 Survey responses'!DA110)","v":""},{"$f":"IF('2011 Survey responses'!DB110<0.5,\"\",'2011 Survey responses'!DB110)","v":""},{"$f":"IF('2011 Survey responses'!DC110<0.5,\"\",'2011 Survey responses'!DC110)","v":""},{"$f":"IF('2011 Survey responses'!DD110<0.5,\"\",'2011 Survey responses'!DD110)","v":""},{"$f":"IF('2011 Survey responses'!DE110<0.5,\"\",'2011 Survey responses'!DE110)","v":""},{"$f":"IF('2011 Survey responses'!DF110<0.5,\"\",'2011 Survey responses'!DF110)","v":""},{"$f":"IF('2011 Survey responses'!DG110<0.5,\"\",'2011 Survey responses'!DG110)","v":""},{"$f":"IF('2011 Survey responses'!DH110<0.5,\"\",'2011 Survey responses'!DH110)","v":""},{"$f":"IF('2011 Survey responses'!DI110<0.5,\"\",'2011 Survey responses'!DI110)","v":""},{"$f":"IF('2011 Survey responses'!DJ110<0.5,\"\",'2011 Survey responses'!DJ110)","v":""},{"$f":"IF('2011 Survey responses'!DK110<0.5,\"\",'2011 Survey responses'!DK110)","v":""},{"$f":"IF('2011 Survey responses'!DL110<0.5,\"\",'2011 Survey responses'!DL110)","v":""},{"$f":"IF('2011 Survey responses'!DU110=4,4,IF('2011 Survey responses'!DU110=5,4,\"\"))","v":""},{"$f":"IF('2011 Survey responses'!DV110=4,3,IF('2011 Survey responses'!DV110=5,3,\"\"))","v":""},"",{"$f":"IF(CQ110=2,CQ110,IF(CO110=4,CO110,IF(CP110=3,CP110,IF('2011 Survey responses'!GT110=1,1,\"\"))))","v":""},{"$f":"IF('2011 Survey responses'!DO110<0.5,\"\",'2011 Survey responses'!DO110)","v":""},{"$f":"IF('2011 Survey responses'!DP110<0.5,\"\",'2011 Survey responses'!DP110)","v":""},{"$f":"IF('2011 Survey responses'!DQ110<0.5,\"\",'2011 Survey responses'!DQ110)","v":""},{"$f":"IF('2011 Survey responses'!DR110<0.5,\"\",'2011 Survey responses'!DR110)","v":""},{"$f":"IF('2011 Survey responses'!DS110<0.5,\"\",'2011 Survey responses'!DS110)","v":""},{"$f":"IF('2011 Survey responses'!DT110<0.5,\"\",'2011 Survey responses'!DT110)","v":""},{"$f":"IF('2011 Survey responses'!DU110<0.5,\"\",'2011 Survey responses'!DU110)","v":""},{"$f":"IF('2011 Survey responses'!DV110<0.5,\"\",'2011 Survey responses'!DV110)","v":""},{"$f":"IF('2011 Survey responses'!DW110<0.5,\"\",'2011 Survey responses'!DW110)","v":""},{"$f":"IF('2011 Survey responses'!DX110<0.5,\"\",'2011 Survey responses'!DX110)","v":""},{"$f":"IF('2011 Survey responses'!DY110<0.5,\"\",'2011 Survey responses'!DY110)","v":""},{"$f":"IF('2011 Survey responses'!DZ110<0.5,\"\",'2011 Survey responses'!DZ110)","v":""},{"$f":"IF('2011 Survey responses'!EA110<0.5,\"\",'2011 Survey responses'!EA110)","v":""},{"$f":"IF('2011 Survey responses'!EB110<0.5,\"\",'2011 Survey responses'!EB110)","v":""},{"$f":"IF('2011 Survey responses'!EC110<0.5,\"\",'2011 Survey responses'!EC110)","v":""},{"$f":"IF('2011 Survey responses'!ED110<0.5,\"\",'2011 Survey responses'!ED110)","v":""},{"$f":"IF('2011 Survey responses'!EE110<0.5,\"\",'2011 Survey responses'!EE110)","v":""},{"$f":"IF('2011 Survey responses'!EF110<0.5,\"\",'2011 Survey responses'!EF110)","v":""},{"$f":"IF('2011 Survey responses'!EG110<0.5,\"\",'2011 Survey responses'!EG110)","v":""},{"$f":"IF('2011 Survey responses'!EH110<0.5,\"\",'2011 Survey responses'!EH110)","v":""},{"$f":"IF('2011 Survey responses'!EI110<0.5,\"\",'2011 Survey responses'!EI110)","v":""},{"$f":"IF('2011 Survey responses'!EJ110<0.5,\"\",'2011 Survey responses'!EJ110)","v":""},{"$f":"IF('2011 Survey responses'!EK110<0.5,\"\",'2011 Survey responses'!EK110)","v":""},{"$f":"IF('2011 Survey responses'!EL110<0.5,\"\",'2011 Survey responses'!EL110)","v":""},{"$f":"IF('2011 Survey responses'!EM110<0.5,\"\",'2011 Survey responses'!EM110)","v":""},{"$f":"IF('2011 Survey responses'!EN110<0.5,\"\",'2011 Survey responses'!EN110)","v":""},{"$f":"IF('2011 Survey responses'!EO110<0.5,\"\",'2011 Survey responses'!EO110)","v":""},{"$f":"IF('2011 Survey responses'!EP110<0.5,\"\",'2011 Survey responses'!EP110)","v":""},{"$f":"IF(('2011 Survey responses'!EW110+'2011 Survey responses'!EX110)>=2,AVERAGE('2011 Survey responses'!EW110,'2011 Survey responses'!EY110),\"\")","v":""},{"$f":"IF('2011 Survey responses'!EX110<0.5,\"\",'2011 Survey responses'!EX110)","v":""},{"$f":"IF('2011 Survey responses'!EZ110<0.5,\"\",'2011 Survey responses'!EZ110)","v":""},{"$f":"IF('2011 Survey responses'!FB110<0.5,\"\",'2011 Survey responses'!FB110)","v":""},{"$f":"IF('2011 Survey responses'!FD110<0.5,\"\",'2011 Survey responses'!FD110)","v":""},{"$f":"IF('2011 Survey responses'!FC110<0.5,\"\",'2011 Survey responses'!FC110)","v":""},{"$f":"IF(('2011 Survey responses'!EM110+'2011 Survey responses'!EN110)>=2,AVERAGE('2011 Survey responses'!EM110,'2011 Survey responses'!EN110),\"\")","v":""},{"$f":"IF('2011 Survey responses'!ES110<0.5,\"\",'2011 Survey responses'!ES110)","v":""},{"$f":"IF(('2011 Survey responses'!ET110+'2011 Survey responses'!EU110)>=2,AVERAGE('2011 Survey responses'!ET110,'2011 Survey responses'!EU110),\"\")","v":""},{"$f":"IF('2011 Survey responses'!EV110<0.5,\"\",'2011 Survey responses'!EV110)","v":""},{"$f":"IF('2011 Survey responses'!FA110<0.5,\"\",'2011 Survey responses'!FA110)","v":""},{"$f":"IF('2011 Survey responses'!ER110<0.5,\"\",'2011 Survey responses'!ER110)","v":""},{"$f":"IF(('2011 Survey responses'!EO110+'2011 Survey responses'!EP110)>=2,AVERAGE('2011 Survey responses'!EO110,'2011 Survey responses'!EP110),\"\")","v":""},{"$f":"IF('2011 Survey responses'!EQ110<0.5,\"\",'2011 Survey responses'!EQ110)","v":""},{"$f":"IF('2011 Survey responses'!ET110<0.5,\"\",'2011 Survey responses'!ET110)","v":""},{"$f":"IF('2011 Survey responses'!EU110<0.5,\"\",'2011 Survey responses'!EU110)","v":""},{"$f":"IF('2011 Survey responses'!EW110<0.5,\"\",'2011 Survey responses'!EW110)","v":""},{"$f":"IF('2011 Survey responses'!EY110<0.5,\"\",'2011 Survey responses'!EY110)","v":""},{"$f":"IF('2011 Survey responses'!FU110<0.5,\"\",'2011 Survey responses'!FU110)","v":""},{"$f":"IF(('2011 Survey responses'!FL110+'2011 Survey responses'!FM110)>=2,AVERAGE('2011 Survey responses'!FL110,'2011 Survey responses'!FM110),\"\")","v":""},{"$f":"IF(('2011 Survey responses'!FO110+'2011 Survey responses'!FQ110)>=2,AVERAGE('2011 Survey responses'!FO110,'2011 Survey responses'!FQ110),\"\")","v":""},{"$f":"IF('2011 Survey responses'!FJ110<0.5,\"\",'2011 Survey responses'!FJ110)","v":""},{"$f":"IF('2011 Survey responses'!FT110<0.5,\"\",'2011 Survey responses'!FT110)","v":""},{"$f":"IF('2011 Survey responses'!FR110<0.5,\"\",'2011 Survey responses'!FR110)","v":""},{"$f":"IF('2011 Survey responses'!FK110<0.5,\"\",'2011 Survey responses'!FK110)","v":""},{"$f":"IF('2011 Survey responses'!FP110<0.5,\"\",'2011 Survey responses'!FP110)","v":""},{"$f":"IF('2011 Survey responses'!FN110<0.5,\"\",'2011 Survey responses'!FN110)","v":""},{"$f":"IF(('2011 Survey responses'!FE110+'2011 Survey responses'!FF110)>=2,AVERAGE('2011 Survey responses'!FE110,'2011 Survey responses'!FF110),\"\")","v":""},{"$f":"IF('2011 Survey responses'!FS110<0.5,\"\",'2011 Survey responses'!FS110)","v":""},{"$f":"IF('2011 Survey responses'!FV110<0.5,\"\",'2011 Survey responses'!FV110)","v":""},{"$f":"IF(('2011 Survey responses'!FG110+'2011 Survey responses'!FH110)>=2,AVERAGE('2011 Survey responses'!FG110,'2011 Survey responses'!FH110),\"\")","v":""},{"$f":"IF('2011 Survey responses'!FI110<0.5,\"\",'2011 Survey responses'!FI110)","v":""},{"$f":"IF('2011 Survey responses'!FE110<0.5,\"\",'2011 Survey responses'!FE110)","v":""},{"$f":"IF('2011 Survey responses'!FF110<0.5,\"\",'2011 Survey responses'!FF110)","v":""},{"$f":"IF('2011 Survey responses'!FG110<0.5,\"\",'2011 Survey responses'!FG110)","v":""},{"$f":"IF('2011 Survey responses'!FH110<0.5,\"\",'2011 Survey responses'!FH110)","v":""},{"$f":"IF('2011 Survey responses'!FL110<0.5,\"\",'2011 Survey responses'!FL110)","v":""},{"$f":"IF('2011 Survey responses'!FM110<0.5,\"\",'2011 Survey responses'!FM110)","v":""},{"$f":"IF('2011 Survey responses'!FO110<0.5,\"\",'2011 Survey responses'!FO110)","v":""},{"$f":"IF('2011 Survey responses'!FQ110<0.5,\"\",'2011 Survey responses'!FQ110)","v":""}]
["Mauritius",{"$f":"IF(SUM(F111)<1,\"\",AVERAGEIF('2011 Survey responses'!B111:CP111,\">1\"))","v":3.6103896103896105},{"$f":"IF(SUM(F111)<1,\"\",AVERAGEIF('2011 Survey responses'!B111:AO111,\">1\"))","v":3.16},{"$f":"IF(SUM(F111)<1,\"\",AVERAGEIF('2011 Survey responses'!B111:BV111,\">1\"))","v":3.5964912280701755},{"$f":"IF(SUM(F111)<1,\"\",AVERAGEIF('2011 Survey responses'!V111:BV111,\">1\"))","v":3.8},{"$f":"IF(SUM('2011 Survey responses'!B111:U111)<1,\"\",(AVERAGEIFS('2011 Survey responses'!B111:U111,'2011 Survey responses'!B111:U111,\">1\")))","v":2.8333333333333335},{"$f":"IF(SUM('2011 Survey responses'!B111:H111)<1,\"\",(AVERAGEIFS('2011 Survey responses'!B111:H111,'2011 Survey responses'!B111:H111,\">1\")))","v":2},{"$f":"IF(SUM('2011 Survey responses'!I111:S111)<1,\"\",(AVERAGEIFS('2011 Survey responses'!I111:S111,'2011 Survey responses'!I111:S111,\">1\")))","v":3.25},{"$f":"IF(SUM('2011 Survey responses'!T111:U111)<2.1,\"\",(AVERAGEIFS('2011 Survey responses'!T111:U111,'2011 Survey responses'!T111:U111,\">1\")))","v":""},{"$f":"IF(SUM('2011 Survey responses'!B111:C111)<2.1,\"\",((SUMIF('2011 Survey responses'!B111:C111,\">1\")+SUMIF('2011 Survey responses'!F111,\">1\"))/(COUNTIF('2011 Survey responses'!B111:C111,\">1\")+COUNTIF('2011 Survey responses'!F111,\">1\"))))","v":2},{"$f":"IF(SUM('2011 Survey responses'!D111:E111)<2.1,\"\",(AVERAGEIFS('2011 Survey responses'!D111:E111,'2011 Survey responses'!D111:E111,\">1\")))","v":2},{"$f":"IF(('2011 Survey responses'!B111+'2011 Survey responses'!D111)<2.1,\"\",((SUMIF('2011 Survey responses'!B111,\">1\")+SUMIF('2011 Survey responses'!D111,\">1\")+SUMIF('2011 Survey responses'!F111,\">1\")+SUMIF('2011 Survey responses'!K111,\">1\"))/(COUNTIF('2011 Survey responses'!B111,\">1\")+COUNTIF('2011 Survey responses'!D111,\">1\")+COUNTIF('2011 Survey responses'!F111,\">1\")+COUNTIF('2011 Survey responses'!K111,\">1\"))))","v":2},{"$f":"IF(SUM('2011 Survey responses'!G111:H111)<2.1,\"\",(AVERAGEIFS('2011 Survey responses'!G111:H111,'2011 Survey responses'!G111:H111,\">1\")))","v":2},{"$f":"IF(SUM('2011 Survey responses'!F111:G111)<1.5,\"\",MAX('2011 Survey responses'!F111,'2011 Survey responses'!G111))","v":2},{"$f":"IF(SUM('2011 Survey responses'!G111:H111)<1,\"\",MAX('2011 Survey responses'!G111,'2011 Survey responses'!H111))","v":2},{"$f":"IF(SUM('2011 Survey responses'!I111:L111)<4.1,\"\",(AVERAGEIFS('2011 Survey responses'!I111:L111,'2011 Survey responses'!I111:L111,\">1\")))","v":2.3333333333333335},{"$f":"IF(SUM('2011 Survey responses'!M111:S111)<4.1,\"\",(AVERAGEIFS('2011 Survey responses'!M111:S111,'2011 Survey responses'!M111:S111,\">1\")))","v":3.8},{"$f":"IF(SUM('2011 Survey responses'!T111:U111)<2.1,\"\",(AVERAGEIFS('2011 Survey responses'!T111:U111,'2011 Survey responses'!T111:U111,\">1\")))","v":""},{"$f":"IF(SUM('2011 Survey responses'!V111:AO111)<1,\"\",(AVERAGEIFS('2011 Survey responses'!V111:AO111,'2011 Survey responses'!V111:AO111,\">1\")))","v":3.4615384615384617},{"$f":"IF(SUM('2011 Survey responses'!V111:AA111)<1,\"\",(AVERAGEIFS('2011 Survey responses'!V111:AA111,'2011 Survey responses'!V111:AA111,\">1\")))","v":4.333333333333333},{"$f":"IF(SUM('2011 Survey responses'!AB111:AH111)<1,\"\",(AVERAGEIFS('2011 Survey responses'!AB111:AH111,'2011 Survey responses'!AB111:AH111,\">1\")))","v":3.6},{"$f":"IF(SUM('2011 Survey responses'!AI111:AO111)<1,\"\",(AVERAGEIFS('2011 Survey responses'!AI111:AO111,'2011 Survey responses'!AI111:AO111,\">1\")))","v":2.8},{"$f":"IF(('2011 Survey responses'!Y111+'2011 Survey responses'!AI111+'2011 Survey responses'!AK111)<3.1,\"\",((SUMIF('2011 Survey responses'!Y111,\">1\")+SUMIF('2011 Survey responses'!AI111,\">1\")+SUMIF('2011 Survey responses'!AK111,\">1\")+SUMIF('2011 Survey responses'!AM111,\">1\"))/(COUNTIF('2011 Survey responses'!Y111,\">1\")+COUNTIF('2011 Survey responses'!AI111,\">1\")+COUNTIF('2011 Survey responses'!AK111,\">1\")+COUNTIF('2011 Survey responses'!AM111,\">1\"))))","v":3},{"$f":"IF(('2011 Survey responses'!W111)<1.1,\"\",('2011 Survey responses'!W111))","v":5},{"$f":"IF(('2011 Survey responses'!Y111)<1.1,\"\",('2011 Survey responses'!Y111))","v":4},{"$f":"IF(('2011 Survey responses'!Z111)<1.1,\"\",('2011 Survey responses'!Z111))","v":""},{"$f":"IF(('2011 Survey responses'!V111+'2011 Survey responses'!X111+'2011 Survey responses'!AA111)<3.1,\"\",((SUMIF('2011 Survey responses'!V111,\">1\")+SUMIF('2011 Survey responses'!X111,\">1\")+SUMIF('2011 Survey responses'!AA111,\">1\"))/(COUNTIF('2011 Survey responses'!V111,\">1\")+COUNTIF('2011 Survey responses'!X111,\">1\")+COUNTIF('2011 Survey responses'!AA111,\">1\"))))","v":4},{"$f":"IF(('2011 Survey responses'!V111+'2011 Survey responses'!Y111+'2011 Survey responses'!AA111)<3.1,\"\",((SUMIF('2011 Survey responses'!V111,\">1\")+SUMIF('2011 Survey responses'!Y111,\">1\")+SUMIF('2011 Survey responses'!AA111,\">1\"))/(COUNTIF('2011 Survey responses'!V111,\">1\")+COUNTIF('2011 Survey responses'!Y111,\">1\")+COUNTIF('2011 Survey responses'!AA111,\">1\"))))","v":4},{"$f":"IF(SUM('2011 Survey responses'!AB111:AH111)<1,\"\",(AVERAGEIFS('2011 Survey responses'!AB111:AH111,'2011 Survey responses'!AB111:AH111,\">1\")))","v":3.6},{"$f":"IF(SUM('2011 Survey responses'!AI111:AO111)<7.1,\"\",(AVERAGEIFS('2011 Survey responses'!AI111:AO111,'2011 Survey responses'!AI111:AO111,\">1\")))","v":2.8},{"$f":"IF(('2011 Survey responses'!AH111)<1.1,\"\",('2011 Survey responses'!AH111))","v":4},{"$f":"IF(SUM('2011 Survey responses'!AP111:BV111)<1,\"\",(AVERAGEIFS('2011 Survey responses'!AP111:BV111,'2011 Survey responses'!AP111:BV111,\">1\")))","v":3.9375},{"$f":"IF(SUM('2011 Survey responses'!AP111:AS111)<4.1,\"\",(AVERAGEIFS('2011 Survey responses'!AP111:AS111,'2011 Survey responses'!AP111:AS111,\">1\")))","v":4.5},{"$f":"IF(SUM('2011 Survey responses'!AT111:BF111)<1,\"\",(AVERAGEIFS('2011 Survey responses'!AT111:BF111,'2011 Survey responses'!AT111:BF111,\">1\")))","v":3.9166666666666665},{"$f":"IF(SUM('2011 Survey responses'!BG111:BO111)<1,\"\",(AVERAGEIFS('2011 Survey responses'!BG111:BO111,'2011 Survey responses'!BG111:BO111,\">1\")))","v":4},{"$f":"IF(SUM('2011 Survey responses'!BP111:BS111)<1,\"\",(AVERAGEIFS('2011 Survey responses'!BP111:BS111,'2011 Survey responses'!BP111:BS111,\">1\")))","v":3.75},{"$f":"IF(SUM('2011 Survey responses'!BT111:BV111)<3.1,\"\",(AVERAGEIFS('2011 Survey responses'!BT111:BV111,'2011 Survey responses'!BT111:BV111,\">1\")))","v":3.3333333333333335},{"$f":"IF(('2011 Survey responses'!AQ111+'2011 Survey responses'!AR111+'2011 Survey responses'!BG111)<3.1,\"\",((SUMIF('2011 Survey responses'!AQ111,\">1\")+SUMIF('2011 Survey responses'!AR111,\">1\")+SUMIF('2011 Survey responses'!BG111,\">1\"))/(COUNTIF('2011 Survey responses'!AQ111,\">1\")+COUNTIF('2011 Survey responses'!AR111,\">1\")+COUNTIF('2011 Survey responses'!BG111,\">1\"))))","v":4.666666666666667},{"$f":"IF(SUM('2011 Survey responses'!AP111:AS111)<4.1,\"\",(AVERAGEIFS('2011 Survey responses'!AP111:AS111,'2011 Survey responses'!AP111:AS111,\">1\")))","v":4.5},{"$f":"IF(('2011 Survey responses'!AU111+'2011 Survey responses'!AX111+'2011 Survey responses'!BA111+'2011 Survey responses'!BC111+'2011 Survey responses'!BD111)<5.1,\"\",(SUMIF('2011 Survey responses'!AU111,\">1\")+SUMIF('2011 Survey responses'!AX111,\">1\")+SUMIF('2011 Survey responses'!BA111,\">1\")+SUMIF('2011 Survey responses'!BC111,\">1\")+SUMIF('2011 Survey responses'!BD111,\">1\"))/(COUNTIF('2011 Survey responses'!AU111,\">1\")+COUNTIF('2011 Survey responses'!AX111,\">1\")+COUNTIF('2011 Survey responses'!BA111,\">1\")+COUNTIF('2011 Survey responses'!BC111,\">1\")+COUNTIF('2011 Survey responses'!BD111,\">1\")))","v":4},{"$f":"IF(('2011 Survey responses'!AT111)<1.1,\"\",('2011 Survey responses'!AT111))","v":5},{"$f":"IF(SUM('2011 Survey responses'!AV111:AW111)<2.1,\"\",(AVERAGEIFS('2011 Survey responses'!AV111:AW111,'2011 Survey responses'!AV111:AW111,\">1\")))","v":3},{"$f":"IF(('2011 Survey responses'!AW111+'2011 Survey responses'!AY111)<2.1,\"\",(SUMIF('2011 Survey responses'!AW111,\">1\")+SUMIF('2011 Survey responses'!AY111,\">1\"))/(COUNTIF('2011 Survey responses'!AW111,\">1\")+COUNTIF('2011 Survey responses'!AY111,\">1\")))","v":3.5},{"$f":"IF(('2011 Survey responses'!AZ111)<1.1,\"\",('2011 Survey responses'!AZ111))","v":2},2,4,2,2,{"$f":"IF(('2011 Survey responses'!BE111)<1.1,\"\",('2011 Survey responses'!BE111))","v":""},{"$f":"IF(('2011 Survey responses'!AY111+'2011 Survey responses'!BB111+'2011 Survey responses'!BF111)<3.1,\"\",(SUMIF('2011 Survey responses'!AY111,\">1\")+SUMIF('2011 Survey responses'!BB111,\">1\")+SUMIF('2011 Survey responses'!BF111,\">1\"))/(COUNTIF('2011 Survey responses'!AY111,\">1\")+COUNTIF('2011 Survey responses'!BB111,\">1\")+COUNTIF('2011 Survey responses'!BF111,\">1\")))","v":4.666666666666667},3.875,{"$f":"IF(SUM('2011 Survey responses'!BT111:BV111)<3.1,\"\",(AVERAGEIFS('2011 Survey responses'!BT111:BV111,'2011 Survey responses'!BT111:BV111,\">1\")))","v":3.3333333333333335},{"$f":"IF(SUM('2011 Survey responses'!BW111:CP111)<1,\"\",(AVERAGEIFS('2011 Survey responses'!BW111:CP111,'2011 Survey responses'!BW111:CP111,\">1\")))","v":3.65},{"$f":"IF(SUM('2011 Survey responses'!BW111:CF111)<1,\"\",(AVERAGEIFS('2011 Survey responses'!BW111:CF111,'2011 Survey responses'!BW111:CF111,\">1\")))","v":3.9},{"$f":"IF(SUM('2011 Survey responses'!CG111:CP111)<1,\"\",(AVERAGEIFS('2011 Survey responses'!CG111:CP111,'2011 Survey responses'!CG111:CP111,\">1\")))","v":3.4},{"$f":"IF(SUM('2011 Survey responses'!BX111:CF111)<1,\"\",(AVERAGEIFS('2011 Survey responses'!BX111:CF111,'2011 Survey responses'!BX111:CF111,\">1\")))","v":3.7777777777777777},{"$f":"IF(SUM('2011 Survey responses'!CH111:CP111)<1,\"\",(AVERAGEIFS('2011 Survey responses'!CH111:CP111,'2011 Survey responses'!CH111:CP111,\">1\")))","v":3.3333333333333335},{"$f":"IF(SUM('2011 Survey responses'!BW111:CP111)<1,\"\",(AVERAGEIFS('2011 Survey responses'!BW111:CP111,'2011 Survey responses'!BW111:CP111,\">1\")))","v":3.65},{"$f":"IF(('2011 Survey responses'!BW111+'2011 Survey responses'!CG111)<2.1,\"\",(SUMIF('2011 Survey responses'!BW111,\">1\")+SUMIF('2011 Survey responses'!CG111,\">1\"))/(COUNTIF('2011 Survey responses'!BW111,\">1\")+COUNTIF('2011 Survey responses'!CG111,\">1\")))","v":4.5},{"$f":"IF(('2011 Survey responses'!BX111+'2011 Survey responses'!CH111)<2.1,\"\",(SUMIF('2011 Survey responses'!BX111,\">1\")+SUMIF('2011 Survey responses'!CH111,\">1\"))/(COUNTIF('2011 Survey responses'!BX111,\">1\")+COUNTIF('2011 Survey responses'!CH111,\">1\")))","v":4.5},{"$f":"IF(('2011 Survey responses'!BY111+'2011 Survey responses'!CI111)<2.1,\"\",(SUMIF('2011 Survey responses'!BY111,\">1\")+SUMIF('2011 Survey responses'!CI111,\">1\"))/(COUNTIF('2011 Survey responses'!BY111,\">1\")+COUNTIF('2011 Survey responses'!CI111,\">1\")))","v":4.5},{"$f":"IF('2011 Survey responses'!CQ111<0.5,\"\",'2011 Survey responses'!CQ111)","v":4},{"$f":"IF('2011 Survey responses'!CR111<0.5,\"\",'2011 Survey responses'!CR111)","v":4},{"$f":"IF('2011 Survey responses'!CS111<0.5,\"\",'2011 Survey responses'!CS111)","v":4},{"$f":"IF('2011 Survey responses'!CT111<0.5,\"\",'2011 Survey responses'!CT111)","v":4},{"$f":"IF('2011 Survey responses'!CU111<0.5,\"\",'2011 Survey responses'!CU111)","v":4},{"$f":"IF('2011 Survey responses'!CV111<0.5,\"\",'2011 Survey responses'!CV111)","v":1},{"$f":"IF(SUM('2011 Survey responses'!CW111:DL111)<1,\"\",(AVERAGE('2011 Survey responses'!CW111:DL111)))","v":3.625},{"$f":"IF(SUM('2011 Survey responses'!CW111:CZ111)<1,\"\",(AVERAGE('2011 Survey responses'!CW111:CZ111)))","v":4},{"$f":"IF(SUM('2011 Survey responses'!DA111:DD111)<1,\"\",(AVERAGE('2011 Survey responses'!DA111:DD111)))","v":2.5},{"$f":"IF(SUM('2011 Survey responses'!DE111:DH111)<1,\"\",(AVERAGE('2011 Survey responses'!DE111:DH111)))","v":3.5},{"$f":"IF(SUM('2011 Survey responses'!DI111:DL111)<1,\"\",(AVERAGE('2011 Survey responses'!DI111:DL111)))","v":4.5},{"$f":"IF(('2011 Survey responses'!CW111+'2011 Survey responses'!DA111+'2011 Survey responses'!DE111+'2011 Survey responses'!DI111)<1,\"\",AVERAGE('2011 Survey responses'!CW111,'2011 Survey responses'!DA111,'2011 Survey responses'!DE111,'2011 Survey responses'!DI111))","v":3.75},{"$f":"IF(('2011 Survey responses'!CX111+'2011 Survey responses'!DB111+'2011 Survey responses'!DF111+'2011 Survey responses'!DJ111)<1,\"\",AVERAGE('2011 Survey responses'!CX111,'2011 Survey responses'!DB111,'2011 Survey responses'!DF111,'2011 Survey responses'!DJ111))","v":3.25},{"$f":"IF(('2011 Survey responses'!CY111+'2011 Survey responses'!DC111+'2011 Survey responses'!DG111+'2011 Survey responses'!DK111)<1,\"\",AVERAGE('2011 Survey responses'!CY111,'2011 Survey responses'!DC111,'2011 Survey responses'!DG111,'2011 Survey responses'!DK111))","v":3.5},{"$f":"IF(('2011 Survey responses'!CZ111+'2011 Survey responses'!DD111+'2011 Survey responses'!DH111+'2011 Survey responses'!DL111)<1,\"\",AVERAGE('2011 Survey responses'!CZ111,'2011 Survey responses'!DD111,'2011 Survey responses'!DH111,'2011 Survey responses'!DL111))","v":4},{"$f":"IF('2011 Survey responses'!CW111<0.5,\"\",'2011 Survey responses'!CW111)","v":4},{"$f":"IF('2011 Survey responses'!CX111<0.5,\"\",'2011 Survey responses'!CX111)","v":4},{"$f":"IF('2011 Survey responses'!CY111<0.5,\"\",'2011 Survey responses'!CY111)","v":4},{"$f":"IF('2011 Survey responses'!CZ111<0.5,\"\",'2011 Survey responses'!CZ111)","v":4},{"$f":"IF('2011 Survey responses'!DA111<0.5,\"\",'2011 Survey responses'!DA111)","v":3},{"$f":"IF('2011 Survey responses'!DB111<0.5,\"\",'2011 Survey responses'!DB111)","v":2},{"$f":"IF('2011 Survey responses'!DC111<0.5,\"\",'2011 Survey responses'!DC111)","v":2},{"$f":"IF('2011 Survey responses'!DD111<0.5,\"\",'2011 Survey responses'!DD111)","v":3},{"$f":"IF('2011 Survey responses'!DE111<0.5,\"\",'2011 Survey responses'!DE111)","v":3},{"$f":"IF('2011 Survey responses'!DF111<0.5,\"\",'2011 Survey responses'!DF111)","v":3},{"$f":"IF('2011 Survey responses'!DG111<0.5,\"\",'2011 Survey responses'!DG111)","v":4},{"$f":"IF('2011 Survey responses'!DH111<0.5,\"\",'2011 Survey responses'!DH111)","v":4},{"$f":"IF('2011 Survey responses'!DI111<0.5,\"\",'2011 Survey responses'!DI111)","v":5},{"$f":"IF('2011 Survey responses'!DJ111<0.5,\"\",'2011 Survey responses'!DJ111)","v":4},{"$f":"IF('2011 Survey responses'!DK111<0.5,\"\",'2011 Survey responses'!DK111)","v":4},{"$f":"IF('2011 Survey responses'!DL111<0.5,\"\",'2011 Survey responses'!DL111)","v":5},{"$f":"IF('2011 Survey responses'!DU111=4,4,IF('2011 Survey responses'!DU111=5,4,\"\"))","v":""},{"$f":"IF('2011 Survey responses'!DV111=4,3,IF('2011 Survey responses'!DV111=5,3,\"\"))","v":""},"",{"$f":"IF(CQ111=2,CQ111,IF(CO111=4,CO111,IF(CP111=3,CP111,IF('2011 Survey responses'!GT111=1,1,\"\"))))","v":1},{"$f":"IF('2011 Survey responses'!DO111<0.5,\"\",'2011 Survey responses'!DO111)","v":4},{"$f":"IF('2011 Survey responses'!DP111<0.5,\"\",'2011 Survey responses'!DP111)","v":5},{"$f":"IF('2011 Survey responses'!DQ111<0.5,\"\",'2011 Survey responses'!DQ111)","v":4},{"$f":"IF('2011 Survey responses'!DR111<0.5,\"\",'2011 Survey responses'!DR111)","v":3},{"$f":"IF('2011 Survey responses'!DS111<0.5,\"\",'2011 Survey responses'!DS111)","v":""},{"$f":"IF('2011 Survey responses'!DT111<0.5,\"\",'2011 Survey responses'!DT111)","v":""},{"$f":"IF('2011 Survey responses'!DU111<0.5,\"\",'2011 Survey responses'!DU111)","v":""},{"$f":"IF('2011 Survey responses'!DV111<0.5,\"\",'2011 Survey responses'!DV111)","v":""},{"$f":"IF('2011 Survey responses'!DW111<0.5,\"\",'2011 Survey responses'!DW111)","v":""},{"$f":"IF('2011 Survey responses'!DX111<0.5,\"\",'2011 Survey responses'!DX111)","v":""},{"$f":"IF('2011 Survey responses'!DY111<0.5,\"\",'2011 Survey responses'!DY111)","v":""},{"$f":"IF('2011 Survey responses'!DZ111<0.5,\"\",'2011 Survey responses'!DZ111)","v":""},{"$f":"IF('2011 Survey responses'!EA111<0.5,\"\",'2011 Survey responses'!EA111)","v":4},{"$f":"IF('2011 Survey responses'!EB111<0.5,\"\",'2011 Survey responses'!EB111)","v":5},{"$f":"IF('2011 Survey responses'!EC111<0.5,\"\",'2011 Survey responses'!EC111)","v":5},{"$f":"IF('2011 Survey responses'!ED111<0.5,\"\",'2011 Survey responses'!ED111)","v":5},{"$f":"IF('2011 Survey responses'!EE111<0.5,\"\",'2011 Survey responses'!EE111)","v":4},{"$f":"IF('2011 Survey responses'!EF111<0.5,\"\",'2011 Survey responses'!EF111)","v":4},{"$f":"IF('2011 Survey responses'!EG111<0.5,\"\",'2011 Survey responses'!EG111)","v":3},{"$f":"IF('2011 Survey responses'!EH111<0.5,\"\",'2011 Survey responses'!EH111)","v":5},{"$f":"IF('2011 Survey responses'!EI111<0.5,\"\",'2011 Survey responses'!EI111)","v":4},{"$f":"IF('2011 Survey responses'!EJ111<0.5,\"\",'2011 Survey responses'!EJ111)","v":4},{"$f":"IF('2011 Survey responses'!EK111<0.5,\"\",'2011 Survey responses'!EK111)","v":4},{"$f":"IF('2011 Survey responses'!EL111<0.5,\"\",'2011 Survey responses'!EL111)","v":5},{"$f":"IF('2011 Survey responses'!EM111<0.5,\"\",'2011 Survey responses'!EM111)","v":4},{"$f":"IF('2011 Survey responses'!EN111<0.5,\"\",'2011 Survey responses'!EN111)","v":2},{"$f":"IF('2011 Survey responses'!EO111<0.5,\"\",'2011 Survey responses'!EO111)","v":1},{"$f":"IF('2011 Survey responses'!EP111<0.5,\"\",'2011 Survey responses'!EP111)","v":1},{"$f":"IF(('2011 Survey responses'!EW111+'2011 Survey responses'!EX111)>=2,AVERAGE('2011 Survey responses'!EW111,'2011 Survey responses'!EY111),\"\")","v":4.5},{"$f":"IF('2011 Survey responses'!EX111<0.5,\"\",'2011 Survey responses'!EX111)","v":4},{"$f":"IF('2011 Survey responses'!EZ111<0.5,\"\",'2011 Survey responses'!EZ111)","v":4},{"$f":"IF('2011 Survey responses'!FB111<0.5,\"\",'2011 Survey responses'!FB111)","v":4},{"$f":"IF('2011 Survey responses'!FD111<0.5,\"\",'2011 Survey responses'!FD111)","v":3},{"$f":"IF('2011 Survey responses'!FC111<0.5,\"\",'2011 Survey responses'!FC111)","v":3},{"$f":"IF(('2011 Survey responses'!EM111+'2011 Survey responses'!EN111)>=2,AVERAGE('2011 Survey responses'!EM111,'2011 Survey responses'!EN111),\"\")","v":3},{"$f":"IF('2011 Survey responses'!ES111<0.5,\"\",'2011 Survey responses'!ES111)","v":4},{"$f":"IF(('2011 Survey responses'!ET111+'2011 Survey responses'!EU111)>=2,AVERAGE('2011 Survey responses'!ET111,'2011 Survey responses'!EU111),\"\")","v":3},{"$f":"IF('2011 Survey responses'!EV111<0.5,\"\",'2011 Survey responses'!EV111)","v":4},{"$f":"IF('2011 Survey responses'!FA111<0.5,\"\",'2011 Survey responses'!FA111)","v":3},{"$f":"IF('2011 Survey responses'!ER111<0.5,\"\",'2011 Survey responses'!ER111)","v":4},{"$f":"IF(('2011 Survey responses'!EO111+'2011 Survey responses'!EP111)>=2,AVERAGE('2011 Survey responses'!EO111,'2011 Survey responses'!EP111),\"\")","v":1},{"$f":"IF('2011 Survey responses'!EQ111<0.5,\"\",'2011 Survey responses'!EQ111)","v":3},{"$f":"IF('2011 Survey responses'!ET111<0.5,\"\",'2011 Survey responses'!ET111)","v":4},{"$f":"IF('2011 Survey responses'!EU111<0.5,\"\",'2011 Survey responses'!EU111)","v":2},{"$f":"IF('2011 Survey responses'!EW111<0.5,\"\",'2011 Survey responses'!EW111)","v":5},{"$f":"IF('2011 Survey responses'!EY111<0.5,\"\",'2011 Survey responses'!EY111)","v":4},{"$f":"IF('2011 Survey responses'!FU111<0.5,\"\",'2011 Survey responses'!FU111)","v":4},{"$f":"IF(('2011 Survey responses'!FL111+'2011 Survey responses'!FM111)>=2,AVERAGE('2011 Survey responses'!FL111,'2011 Survey responses'!FM111),\"\")","v":4},{"$f":"IF(('2011 Survey responses'!FO111+'2011 Survey responses'!FQ111)>=2,AVERAGE('2011 Survey responses'!FO111,'2011 Survey responses'!FQ111),\"\")","v":4},{"$f":"IF('2011 Survey responses'!FJ111<0.5,\"\",'2011 Survey responses'!FJ111)","v":4},{"$f":"IF('2011 Survey responses'!FT111<0.5,\"\",'2011 Survey responses'!FT111)","v":4},{"$f":"IF('2011 Survey responses'!FR111<0.5,\"\",'2011 Survey responses'!FR111)","v":4},{"$f":"IF('2011 Survey responses'!FK111<0.5,\"\",'2011 Survey responses'!FK111)","v":4},{"$f":"IF('2011 Survey responses'!FP111<0.5,\"\",'2011 Survey responses'!FP111)","v":4},{"$f":"IF('2011 Survey responses'!FN111<0.5,\"\",'2011 Survey responses'!FN111)","v":3},{"$f":"IF(('2011 Survey responses'!FE111+'2011 Survey responses'!FF111)>=2,AVERAGE('2011 Survey responses'!FE111,'2011 Survey responses'!FF111),\"\")","v":4},{"$f":"IF('2011 Survey responses'!FS111<0.5,\"\",'2011 Survey responses'!FS111)","v":3},{"$f":"IF('2011 Survey responses'!FV111<0.5,\"\",'2011 Survey responses'!FV111)","v":4},{"$f":"IF(('2011 Survey responses'!FG111+'2011 Survey responses'!FH111)>=2,AVERAGE('2011 Survey responses'!FG111,'2011 Survey responses'!FH111),\"\")","v":""},{"$f":"IF('2011 Survey responses'!FI111<0.5,\"\",'2011 Survey responses'!FI111)","v":3},{"$f":"IF('2011 Survey responses'!FE111<0.5,\"\",'2011 Survey responses'!FE111)","v":4},{"$f":"IF('2011 Survey responses'!FF111<0.5,\"\",'2011 Survey responses'!FF111)","v":4},{"$f":"IF('2011 Survey responses'!FG111<0.5,\"\",'2011 Survey responses'!FG111)","v":""},{"$f":"IF('2011 Survey responses'!FH111<0.5,\"\",'2011 Survey responses'!FH111)","v":""},{"$f":"IF('2011 Survey responses'!FL111<0.5,\"\",'2011 Survey responses'!FL111)","v":4},{"$f":"IF('2011 Survey responses'!FM111<0.5,\"\",'2011 Survey responses'!FM111)","v":""},{"$f":"IF('2011 Survey responses'!FO111<0.5,\"\",'2011 Survey responses'!FO111)","v":4},{"$f":"IF('2011 Survey responses'!FQ111<0.5,\"\",'2011 Survey responses'!FQ111)","v":4}]
["Mexico",{"$f":"IF(SUM(F112)<1,\"\",AVERAGEIF('2011 Survey responses'!B112:CP112,\">1\"))","v":4.3296703296703294},{"$f":"IF(SUM(F112)<1,\"\",AVERAGEIF('2011 Survey responses'!B112:AO112,\">1\"))","v":4.3589743589743586},{"$f":"IF(SUM(F112)<1,\"\",AVERAGEIF('2011 Survey responses'!B112:BV112,\">1\"))","v":4.291666666666667},{"$f":"IF(SUM(F112)<1,\"\",AVERAGEIF('2011 Survey responses'!V112:BV112,\">1\"))","v":4.3207547169811322},{"$f":"IF(SUM('2011 Survey responses'!B112:U112)<1,\"\",(AVERAGEIFS('2011 Survey responses'!B112:U112,'2011 Survey responses'!B112:U112,\">1\")))","v":4.2105263157894735},{"$f":"IF(SUM('2011 Survey responses'!B112:H112)<1,\"\",(AVERAGEIFS('2011 Survey responses'!B112:H112,'2011 Survey responses'!B112:H112,\">1\")))","v":5},{"$f":"IF(SUM('2011 Survey responses'!I112:S112)<1,\"\",(AVERAGEIFS('2011 Survey responses'!I112:S112,'2011 Survey responses'!I112:S112,\">1\")))","v":3.8181818181818183},{"$f":"IF(SUM('2011 Survey responses'!T112:U112)<2.1,\"\",(AVERAGEIFS('2011 Survey responses'!T112:U112,'2011 Survey responses'!T112:U112,\">1\")))","v":4},{"$f":"IF(SUM('2011 Survey responses'!B112:C112)<2.1,\"\",((SUMIF('2011 Survey responses'!B112:C112,\">1\")+SUMIF('2011 Survey responses'!F112,\">1\"))/(COUNTIF('2011 Survey responses'!B112:C112,\">1\")+COUNTIF('2011 Survey responses'!F112,\">1\"))))","v":5},{"$f":"IF(SUM('2011 Survey responses'!D112:E112)<2.1,\"\",(AVERAGEIFS('2011 Survey responses'!D112:E112,'2011 Survey responses'!D112:E112,\">1\")))","v":5},{"$f":"IF(('2011 Survey responses'!B112+'2011 Survey responses'!D112)<2.1,\"\",((SUMIF('2011 Survey responses'!B112,\">1\")+SUMIF('2011 Survey responses'!D112,\">1\")+SUMIF('2011 Survey responses'!F112,\">1\")+SUMIF('2011 Survey responses'!K112,\">1\"))/(COUNTIF('2011 Survey responses'!B112,\">1\")+COUNTIF('2011 Survey responses'!D112,\">1\")+COUNTIF('2011 Survey responses'!F112,\">1\")+COUNTIF('2011 Survey responses'!K112,\">1\"))))","v":5},{"$f":"IF(SUM('2011 Survey responses'!G112:H112)<2.1,\"\",(AVERAGEIFS('2011 Survey responses'!G112:H112,'2011 Survey responses'!G112:H112,\">1\")))","v":5},{"$f":"IF(SUM('2011 Survey responses'!F112:G112)<1.5,\"\",MAX('2011 Survey responses'!F112,'2011 Survey responses'!G112))","v":5},{"$f":"IF(SUM('2011 Survey responses'!G112:H112)<1,\"\",MAX('2011 Survey responses'!G112,'2011 Survey responses'!H112))","v":5},{"$f":"IF(SUM('2011 Survey responses'!I112:L112)<4.1,\"\",(AVERAGEIFS('2011 Survey responses'!I112:L112,'2011 Survey responses'!I112:L112,\">1\")))","v":4},{"$f":"IF(SUM('2011 Survey responses'!M112:S112)<4.1,\"\",(AVERAGEIFS('2011 Survey responses'!M112:S112,'2011 Survey responses'!M112:S112,\">1\")))","v":3.7142857142857144},{"$f":"IF(SUM('2011 Survey responses'!T112:U112)<2.1,\"\",(AVERAGEIFS('2011 Survey responses'!T112:U112,'2011 Survey responses'!T112:U112,\">1\")))","v":4},{"$f":"IF(SUM('2011 Survey responses'!V112:AO112)<1,\"\",(AVERAGEIFS('2011 Survey responses'!V112:AO112,'2011 Survey responses'!V112:AO112,\">1\")))","v":4.5},{"$f":"IF(SUM('2011 Survey responses'!V112:AA112)<1,\"\",(AVERAGEIFS('2011 Survey responses'!V112:AA112,'2011 Survey responses'!V112:AA112,\">1\")))","v":4.333333333333333},{"$f":"IF(SUM('2011 Survey responses'!AB112:AH112)<1,\"\",(AVERAGEIFS('2011 Survey responses'!AB112:AH112,'2011 Survey responses'!AB112:AH112,\">1\")))","v":5.4285714285714288},{"$f":"IF(SUM('2011 Survey responses'!AI112:AO112)<1,\"\",(AVERAGEIFS('2011 Survey responses'!AI112:AO112,'2011 Survey responses'!AI112:AO112,\">1\")))","v":3.7142857142857144},{"$f":"IF(('2011 Survey responses'!Y112+'2011 Survey responses'!AI112+'2011 Survey responses'!AK112)<3.1,\"\",((SUMIF('2011 Survey responses'!Y112,\">1\")+SUMIF('2011 Survey responses'!AI112,\">1\")+SUMIF('2011 Survey responses'!AK112,\">1\")+SUMIF('2011 Survey responses'!AM112,\">1\"))/(COUNTIF('2011 Survey responses'!Y112,\">1\")+COUNTIF('2011 Survey responses'!AI112,\">1\")+COUNTIF('2011 Survey responses'!AK112,\">1\")+COUNTIF('2011 Survey responses'!AM112,\">1\"))))","v":3.25},{"$f":"IF(('2011 Survey responses'!W112)<1.1,\"\",('2011 Survey responses'!W112))","v":6},{"$f":"IF(('2011 Survey responses'!Y112)<1.1,\"\",('2011 Survey responses'!Y112))","v":2},{"$f":"IF(('2011 Survey responses'!Z112)<1.1,\"\",('2011 Survey responses'!Z112))","v":4},{"$f":"IF(('2011 Survey responses'!V112+'2011 Survey responses'!X112+'2011 Survey responses'!AA112)<3.1,\"\",((SUMIF('2011 Survey responses'!V112,\">1\")+SUMIF('2011 Survey responses'!X112,\">1\")+SUMIF('2011 Survey responses'!AA112,\">1\"))/(COUNTIF('2011 Survey responses'!V112,\">1\")+COUNTIF('2011 Survey responses'!X112,\">1\")+COUNTIF('2011 Survey responses'!AA112,\">1\"))))","v":4.666666666666667},{"$f":"IF(('2011 Survey responses'!V112+'2011 Survey responses'!Y112+'2011 Survey responses'!AA112)<3.1,\"\",((SUMIF('2011 Survey responses'!V112,\">1\")+SUMIF('2011 Survey responses'!Y112,\">1\")+SUMIF('2011 Survey responses'!AA112,\">1\"))/(COUNTIF('2011 Survey responses'!V112,\">1\")+COUNTIF('2011 Survey responses'!Y112,\">1\")+COUNTIF('2011 Survey responses'!AA112,\">1\"))))","v":3.3333333333333335},{"$f":"IF(SUM('2011 Survey responses'!AB112:AH112)<1,\"\",(AVERAGEIFS('2011 Survey responses'!AB112:AH112,'2011 Survey responses'!AB112:AH112,\">1\")))","v":5.4285714285714288},{"$f":"IF(SUM('2011 Survey responses'!AI112:AO112)<7.1,\"\",(AVERAGEIFS('2011 Survey responses'!AI112:AO112,'2011 Survey responses'!AI112:AO112,\">1\")))","v":3.7142857142857144},{"$f":"IF(('2011 Survey responses'!AH112)<1.1,\"\",('2011 Survey responses'!AH112))","v":2},{"$f":"IF(SUM('2011 Survey responses'!AP112:BV112)<1,\"\",(AVERAGEIFS('2011 Survey responses'!AP112:BV112,'2011 Survey responses'!AP112:BV112,\">1\")))","v":4.2121212121212119},{"$f":"IF(SUM('2011 Survey responses'!AP112:AS112)<4.1,\"\",(AVERAGEIFS('2011 Survey responses'!AP112:AS112,'2011 Survey responses'!AP112:AS112,\">1\")))","v":4.25},{"$f":"IF(SUM('2011 Survey responses'!AT112:BF112)<1,\"\",(AVERAGEIFS('2011 Survey responses'!AT112:BF112,'2011 Survey responses'!AT112:BF112,\">1\")))","v":4},{"$f":"IF(SUM('2011 Survey responses'!BG112:BO112)<1,\"\",(AVERAGEIFS('2011 Survey responses'!BG112:BO112,'2011 Survey responses'!BG112:BO112,\">1\")))","v":4.5555555555555554},{"$f":"IF(SUM('2011 Survey responses'!BP112:BS112)<1,\"\",(AVERAGEIFS('2011 Survey responses'!BP112:BS112,'2011 Survey responses'!BP112:BS112,\">1\")))","v":4.25},{"$f":"IF(SUM('2011 Survey responses'!BT112:BV112)<3.1,\"\",(AVERAGEIFS('2011 Survey responses'!BT112:BV112,'2011 Survey responses'!BT112:BV112,\">1\")))","v":4},{"$f":"IF(('2011 Survey responses'!AQ112+'2011 Survey responses'!AR112+'2011 Survey responses'!BG112)<3.1,\"\",((SUMIF('2011 Survey responses'!AQ112,\">1\")+SUMIF('2011 Survey responses'!AR112,\">1\")+SUMIF('2011 Survey responses'!BG112,\">1\"))/(COUNTIF('2011 Survey responses'!AQ112,\">1\")+COUNTIF('2011 Survey responses'!AR112,\">1\")+COUNTIF('2011 Survey responses'!BG112,\">1\"))))","v":5},{"$f":"IF(SUM('2011 Survey responses'!AP112:AS112)<4.1,\"\",(AVERAGEIFS('2011 Survey responses'!AP112:AS112,'2011 Survey responses'!AP112:AS112,\">1\")))","v":4.25},{"$f":"IF(('2011 Survey responses'!AU112+'2011 Survey responses'!AX112+'2011 Survey responses'!BA112+'2011 Survey responses'!BC112+'2011 Survey responses'!BD112)<5.1,\"\",(SUMIF('2011 Survey responses'!AU112,\">1\")+SUMIF('2011 Survey responses'!AX112,\">1\")+SUMIF('2011 Survey responses'!BA112,\">1\")+SUMIF('2011 Survey responses'!BC112,\">1\")+SUMIF('2011 Survey responses'!BD112,\">1\"))/(COUNTIF('2011 Survey responses'!AU112,\">1\")+COUNTIF('2011 Survey responses'!AX112,\">1\")+COUNTIF('2011 Survey responses'!BA112,\">1\")+COUNTIF('2011 Survey responses'!BC112,\">1\")+COUNTIF('2011 Survey responses'!BD112,\">1\")))","v":4.2},{"$f":"IF(('2011 Survey responses'!AT112)<1.1,\"\",('2011 Survey responses'!AT112))","v":5},{"$f":"IF(SUM('2011 Survey responses'!AV112:AW112)<2.1,\"\",(AVERAGEIFS('2011 Survey responses'!AV112:AW112,'2011 Survey responses'!AV112:AW112,\">1\")))","v":4},{"$f":"IF(('2011 Survey responses'!AW112+'2011 Survey responses'!AY112)<2.1,\"\",(SUMIF('2011 Survey responses'!AW112,\">1\")+SUMIF('2011 Survey responses'!AY112,\">1\"))/(COUNTIF('2011 Survey responses'!AW112,\">1\")+COUNTIF('2011 Survey responses'!AY112,\">1\")))","v":3.5},{"$f":"IF(('2011 Survey responses'!AZ112)<1.1,\"\",('2011 Survey responses'!AZ112))","v":4},4,4,5,4,{"$f":"IF(('2011 Survey responses'!BE112)<1.1,\"\",('2011 Survey responses'!BE112))","v":5},{"$f":"IF(('2011 Survey responses'!AY112+'2011 Survey responses'!BB112+'2011 Survey responses'!BF112)<3.1,\"\",(SUMIF('2011 Survey responses'!AY112,\">1\")+SUMIF('2011 Survey responses'!BB112,\">1\")+SUMIF('2011 Survey responses'!BF112,\">1\"))/(COUNTIF('2011 Survey responses'!AY112,\">1\")+COUNTIF('2011 Survey responses'!BB112,\">1\")+COUNTIF('2011 Survey responses'!BF112,\">1\")))","v":3},4.4027777777777777,{"$f":"IF(SUM('2011 Survey responses'!BT112:BV112)<3.1,\"\",(AVERAGEIFS('2011 Survey responses'!BT112:BV112,'2011 Survey responses'!BT112:BV112,\">1\")))","v":4},{"$f":"IF(SUM('2011 Survey responses'!BW112:CP112)<1,\"\",(AVERAGEIFS('2011 Survey responses'!BW112:CP112,'2011 Survey responses'!BW112:CP112,\">1\")))","v":4.4736842105263159},{"$f":"IF(SUM('2011 Survey responses'!BW112:CF112)<1,\"\",(AVERAGEIFS('2011 Survey responses'!BW112:CF112,'2011 Survey responses'!BW112:CF112,\">1\")))","v":4.4000000000000004},{"$f":"IF(SUM('2011 Survey responses'!CG112:CP112)<1,\"\",(AVERAGEIFS('2011 Survey responses'!CG112:CP112,'2011 Survey responses'!CG112:CP112,\">1\")))","v":4.5555555555555554},{"$f":"IF(SUM('2011 Survey responses'!BX112:CF112)<1,\"\",(AVERAGEIFS('2011 Survey responses'!BX112:CF112,'2011 Survey responses'!BX112:CF112,\">1\")))","v":4.333333333333333},{"$f":"IF(SUM('2011 Survey responses'!CH112:CP112)<1,\"\",(AVERAGEIFS('2011 Survey responses'!CH112:CP112,'2011 Survey responses'!CH112:CP112,\">1\")))","v":4.5},{"$f":"IF(SUM('2011 Survey responses'!BW112:CP112)<1,\"\",(AVERAGEIFS('2011 Survey responses'!BW112:CP112,'2011 Survey responses'!BW112:CP112,\">1\")))","v":4.4736842105263159},{"$f":"IF(('2011 Survey responses'!BW112+'2011 Survey responses'!CG112)<2.1,\"\",(SUMIF('2011 Survey responses'!BW112,\">1\")+SUMIF('2011 Survey responses'!CG112,\">1\"))/(COUNTIF('2011 Survey responses'!BW112,\">1\")+COUNTIF('2011 Survey responses'!CG112,\">1\")))","v":5},{"$f":"IF(('2011 Survey responses'!BX112+'2011 Survey responses'!CH112)<2.1,\"\",(SUMIF('2011 Survey responses'!BX112,\">1\")+SUMIF('2011 Survey responses'!CH112,\">1\"))/(COUNTIF('2011 Survey responses'!BX112,\">1\")+COUNTIF('2011 Survey responses'!CH112,\">1\")))","v":5},{"$f":"IF(('2011 Survey responses'!BY112+'2011 Survey responses'!CI112)<2.1,\"\",(SUMIF('2011 Survey responses'!BY112,\">1\")+SUMIF('2011 Survey responses'!CI112,\">1\"))/(COUNTIF('2011 Survey responses'!BY112,\">1\")+COUNTIF('2011 Survey responses'!CI112,\">1\")))","v":4.5},{"$f":"IF('2011 Survey responses'!CQ112<0.5,\"\",'2011 Survey responses'!CQ112)","v":4},{"$f":"IF('2011 Survey responses'!CR112<0.5,\"\",'2011 Survey responses'!CR112)","v":5},{"$f":"IF('2011 Survey responses'!CS112<0.5,\"\",'2011 Survey responses'!CS112)","v":5},{"$f":"IF('2011 Survey responses'!CT112<0.5,\"\",'2011 Survey responses'!CT112)","v":5},{"$f":"IF('2011 Survey responses'!CU112<0.5,\"\",'2011 Survey responses'!CU112)","v":4},{"$f":"IF('2011 Survey responses'!CV112<0.5,\"\",'2011 Survey responses'!CV112)","v":4},{"$f":"IF(SUM('2011 Survey responses'!CW112:DL112)<1,\"\",(AVERAGE('2011 Survey responses'!CW112:DL112)))","v":3},{"$f":"IF(SUM('2011 Survey responses'!CW112:CZ112)<1,\"\",(AVERAGE('2011 Survey responses'!CW112:CZ112)))","v":3},{"$f":"IF(SUM('2011 Survey responses'!DA112:DD112)<1,\"\",(AVERAGE('2011 Survey responses'!DA112:DD112)))","v":3},{"$f":"IF(SUM('2011 Survey responses'!DE112:DH112)<1,\"\",(AVERAGE('2011 Survey responses'!DE112:DH112)))","v":3},{"$f":"IF(SUM('2011 Survey responses'!DI112:DL112)<1,\"\",(AVERAGE('2011 Survey responses'!DI112:DL112)))","v":3},{"$f":"IF(('2011 Survey responses'!CW112+'2011 Survey responses'!DA112+'2011 Survey responses'!DE112+'2011 Survey responses'!DI112)<1,\"\",AVERAGE('2011 Survey responses'!CW112,'2011 Survey responses'!DA112,'2011 Survey responses'!DE112,'2011 Survey responses'!DI112))","v":3},{"$f":"IF(('2011 Survey responses'!CX112+'2011 Survey responses'!DB112+'2011 Survey responses'!DF112+'2011 Survey responses'!DJ112)<1,\"\",AVERAGE('2011 Survey responses'!CX112,'2011 Survey responses'!DB112,'2011 Survey responses'!DF112,'2011 Survey responses'!DJ112))","v":3},{"$f":"IF(('2011 Survey responses'!CY112+'2011 Survey responses'!DC112+'2011 Survey responses'!DG112+'2011 Survey responses'!DK112)<1,\"\",AVERAGE('2011 Survey responses'!CY112,'2011 Survey responses'!DC112,'2011 Survey responses'!DG112,'2011 Survey responses'!DK112))","v":3},{"$f":"IF(('2011 Survey responses'!CZ112+'2011 Survey responses'!DD112+'2011 Survey responses'!DH112+'2011 Survey responses'!DL112)<1,\"\",AVERAGE('2011 Survey responses'!CZ112,'2011 Survey responses'!DD112,'2011 Survey responses'!DH112,'2011 Survey responses'!DL112))","v":3},{"$f":"IF('2011 Survey responses'!CW112<0.5,\"\",'2011 Survey responses'!CW112)","v":3},{"$f":"IF('2011 Survey responses'!CX112<0.5,\"\",'2011 Survey responses'!CX112)","v":3},{"$f":"IF('2011 Survey responses'!CY112<0.5,\"\",'2011 Survey responses'!CY112)","v":3},{"$f":"IF('2011 Survey responses'!CZ112<0.5,\"\",'2011 Survey responses'!CZ112)","v":3},{"$f":"IF('2011 Survey responses'!DA112<0.5,\"\",'2011 Survey responses'!DA112)","v":3},{"$f":"IF('2011 Survey responses'!DB112<0.5,\"\",'2011 Survey responses'!DB112)","v":3},{"$f":"IF('2011 Survey responses'!DC112<0.5,\"\",'2011 Survey responses'!DC112)","v":3},{"$f":"IF('2011 Survey responses'!DD112<0.5,\"\",'2011 Survey responses'!DD112)","v":3},{"$f":"IF('2011 Survey responses'!DE112<0.5,\"\",'2011 Survey responses'!DE112)","v":3},{"$f":"IF('2011 Survey responses'!DF112<0.5,\"\",'2011 Survey responses'!DF112)","v":3},{"$f":"IF('2011 Survey responses'!DG112<0.5,\"\",'2011 Survey responses'!DG112)","v":3},{"$f":"IF('2011 Survey responses'!DH112<0.5,\"\",'2011 Survey responses'!DH112)","v":3},{"$f":"IF('2011 Survey responses'!DI112<0.5,\"\",'2011 Survey responses'!DI112)","v":3},{"$f":"IF('2011 Survey responses'!DJ112<0.5,\"\",'2011 Survey responses'!DJ112)","v":3},{"$f":"IF('2011 Survey responses'!DK112<0.5,\"\",'2011 Survey responses'!DK112)","v":3},{"$f":"IF('2011 Survey responses'!DL112<0.5,\"\",'2011 Survey responses'!DL112)","v":3},{"$f":"IF('2011 Survey responses'!DU112=4,4,IF('2011 Survey responses'!DU112=5,4,\"\"))","v":4},{"$f":"IF('2011 Survey responses'!DV112=4,3,IF('2011 Survey responses'!DV112=5,3,\"\"))","v":3},2,{"$f":"IF(CQ112=2,CQ112,IF(CO112=4,CO112,IF(CP112=3,CP112,IF('2011 Survey responses'!GT112=1,1,\"\"))))","v":2},{"$f":"IF('2011 Survey responses'!DO112<0.5,\"\",'2011 Survey responses'!DO112)","v":3},{"$f":"IF('2011 Survey responses'!DP112<0.5,\"\",'2011 Survey responses'!DP112)","v":3},{"$f":"IF('2011 Survey responses'!DQ112<0.5,\"\",'2011 Survey responses'!DQ112)","v":3},{"$f":"IF('2011 Survey responses'!DR112<0.5,\"\",'2011 Survey responses'!DR112)","v":3},{"$f":"IF('2011 Survey responses'!DS112<0.5,\"\",'2011 Survey responses'!DS112)","v":3},{"$f":"IF('2011 Survey responses'!DT112<0.5,\"\",'2011 Survey responses'!DT112)","v":5},{"$f":"IF('2011 Survey responses'!DU112<0.5,\"\",'2011 Survey responses'!DU112)","v":5},{"$f":"IF('2011 Survey responses'!DV112<0.5,\"\",'2011 Survey responses'!DV112)","v":4},{"$f":"IF('2011 Survey responses'!DW112<0.5,\"\",'2011 Survey responses'!DW112)","v":4},{"$f":"IF('2011 Survey responses'!DX112<0.5,\"\",'2011 Survey responses'!DX112)","v":5},{"$f":"IF('2011 Survey responses'!DY112<0.5,\"\",'2011 Survey responses'!DY112)","v":4},{"$f":"IF('2011 Survey responses'!DZ112<0.5,\"\",'2011 Survey responses'!DZ112)","v":4},{"$f":"IF('2011 Survey responses'!EA112<0.5,\"\",'2011 Survey responses'!EA112)","v":2},{"$f":"IF('2011 Survey responses'!EB112<0.5,\"\",'2011 Survey responses'!EB112)","v":3},{"$f":"IF('2011 Survey responses'!EC112<0.5,\"\",'2011 Survey responses'!EC112)","v":3},{"$f":"IF('2011 Survey responses'!ED112<0.5,\"\",'2011 Survey responses'!ED112)","v":3},{"$f":"IF('2011 Survey responses'!EE112<0.5,\"\",'2011 Survey responses'!EE112)","v":5},{"$f":"IF('2011 Survey responses'!EF112<0.5,\"\",'2011 Survey responses'!EF112)","v":5},{"$f":"IF('2011 Survey responses'!EG112<0.5,\"\",'2011 Survey responses'!EG112)","v":4},{"$f":"IF('2011 Survey responses'!EH112<0.5,\"\",'2011 Survey responses'!EH112)","v":3},{"$f":"IF('2011 Survey responses'!EI112<0.5,\"\",'2011 Survey responses'!EI112)","v":5},{"$f":"IF('2011 Survey responses'!EJ112<0.5,\"\",'2011 Survey responses'!EJ112)","v":5},{"$f":"IF('2011 Survey responses'!EK112<0.5,\"\",'2011 Survey responses'!EK112)","v":4},{"$f":"IF('2011 Survey responses'!EL112<0.5,\"\",'2011 Survey responses'!EL112)","v":4},{"$f":"IF('2011 Survey responses'!EM112<0.5,\"\",'2011 Survey responses'!EM112)","v":3},{"$f":"IF('2011 Survey responses'!EN112<0.5,\"\",'2011 Survey responses'!EN112)","v":4},{"$f":"IF('2011 Survey responses'!EO112<0.5,\"\",'2011 Survey responses'!EO112)","v":4},{"$f":"IF('2011 Survey responses'!EP112<0.5,\"\",'2011 Survey responses'!EP112)","v":4},{"$f":"IF(('2011 Survey responses'!EW112+'2011 Survey responses'!EX112)>=2,AVERAGE('2011 Survey responses'!EW112,'2011 Survey responses'!EY112),\"\")","v":4},{"$f":"IF('2011 Survey responses'!EX112<0.5,\"\",'2011 Survey responses'!EX112)","v":4},{"$f":"IF('2011 Survey responses'!EZ112<0.5,\"\",'2011 Survey responses'!EZ112)","v":4},{"$f":"IF('2011 Survey responses'!FB112<0.5,\"\",'2011 Survey responses'!FB112)","v":5},{"$f":"IF('2011 Survey responses'!FD112<0.5,\"\",'2011 Survey responses'!FD112)","v":5},{"$f":"IF('2011 Survey responses'!FC112<0.5,\"\",'2011 Survey responses'!FC112)","v":4},{"$f":"IF(('2011 Survey responses'!EM112+'2011 Survey responses'!EN112)>=2,AVERAGE('2011 Survey responses'!EM112,'2011 Survey responses'!EN112),\"\")","v":3.5},{"$f":"IF('2011 Survey responses'!ES112<0.5,\"\",'2011 Survey responses'!ES112)","v":3},{"$f":"IF(('2011 Survey responses'!ET112+'2011 Survey responses'!EU112)>=2,AVERAGE('2011 Survey responses'!ET112,'2011 Survey responses'!EU112),\"\")","v":3},{"$f":"IF('2011 Survey responses'!EV112<0.5,\"\",'2011 Survey responses'!EV112)","v":3},{"$f":"IF('2011 Survey responses'!FA112<0.5,\"\",'2011 Survey responses'!FA112)","v":4},{"$f":"IF('2011 Survey responses'!ER112<0.5,\"\",'2011 Survey responses'!ER112)","v":4},{"$f":"IF(('2011 Survey responses'!EO112+'2011 Survey responses'!EP112)>=2,AVERAGE('2011 Survey responses'!EO112,'2011 Survey responses'!EP112),\"\")","v":4},{"$f":"IF('2011 Survey responses'!EQ112<0.5,\"\",'2011 Survey responses'!EQ112)","v":3},{"$f":"IF('2011 Survey responses'!ET112<0.5,\"\",'2011 Survey responses'!ET112)","v":3},{"$f":"IF('2011 Survey responses'!EU112<0.5,\"\",'2011 Survey responses'!EU112)","v":3},{"$f":"IF('2011 Survey responses'!EW112<0.5,\"\",'2011 Survey responses'!EW112)","v":4},{"$f":"IF('2011 Survey responses'!EY112<0.5,\"\",'2011 Survey responses'!EY112)","v":4},{"$f":"IF('2011 Survey responses'!FU112<0.5,\"\",'2011 Survey responses'!FU112)","v":5},{"$f":"IF(('2011 Survey responses'!FL112+'2011 Survey responses'!FM112)>=2,AVERAGE('2011 Survey responses'!FL112,'2011 Survey responses'!FM112),\"\")","v":3.5},{"$f":"IF(('2011 Survey responses'!FO112+'2011 Survey responses'!FQ112)>=2,AVERAGE('2011 Survey responses'!FO112,'2011 Survey responses'!FQ112),\"\")","v":4.5},{"$f":"IF('2011 Survey responses'!FJ112<0.5,\"\",'2011 Survey responses'!FJ112)","v":4},{"$f":"IF('2011 Survey responses'!FT112<0.5,\"\",'2011 Survey responses'!FT112)","v":4},{"$f":"IF('2011 Survey responses'!FR112<0.5,\"\",'2011 Survey responses'!FR112)","v":4},{"$f":"IF('2011 Survey responses'!FK112<0.5,\"\",'2011 Survey responses'!FK112)","v":3},{"$f":"IF('2011 Survey responses'!FP112<0.5,\"\",'2011 Survey responses'!FP112)","v":5},{"$f":"IF('2011 Survey responses'!FN112<0.5,\"\",'2011 Survey responses'!FN112)","v":4},{"$f":"IF(('2011 Survey responses'!FE112+'2011 Survey responses'!FF112)>=2,AVERAGE('2011 Survey responses'!FE112,'2011 Survey responses'!FF112),\"\")","v":3.5},{"$f":"IF('2011 Survey responses'!FS112<0.5,\"\",'2011 Survey responses'!FS112)","v":5},{"$f":"IF('2011 Survey responses'!FV112<0.5,\"\",'2011 Survey responses'!FV112)","v":5},{"$f":"IF(('2011 Survey responses'!FG112+'2011 Survey responses'!FH112)>=2,AVERAGE('2011 Survey responses'!FG112,'2011 Survey responses'!FH112),\"\")","v":4},{"$f":"IF('2011 Survey responses'!FI112<0.5,\"\",'2011 Survey responses'!FI112)","v":4},{"$f":"IF('2011 Survey responses'!FE112<0.5,\"\",'2011 Survey responses'!FE112)","v":3},{"$f":"IF('2011 Survey responses'!FF112<0.5,\"\",'2011 Survey responses'!FF112)","v":4},{"$f":"IF('2011 Survey responses'!FG112<0.5,\"\",'2011 Survey responses'!FG112)","v":4},{"$f":"IF('2011 Survey responses'!FH112<0.5,\"\",'2011 Survey responses'!FH112)","v":4},{"$f":"IF('2011 Survey responses'!FL112<0.5,\"\",'2011 Survey responses'!FL112)","v":4},{"$f":"IF('2011 Survey responses'!FM112<0.5,\"\",'2011 Survey responses'!FM112)","v":3},{"$f":"IF('2011 Survey responses'!FO112<0.5,\"\",'2011 Survey responses'!FO112)","v":4},{"$f":"IF('2011 Survey responses'!FQ112<0.5,\"\",'2011 Survey responses'!FQ112)","v":5}]
["Micronesia (Federated States of)",{"$f":"IF(SUM(F113)<1,\"\",AVERAGEIF('2011 Survey responses'!B113:CP113,\">1\"))","v":""},{"$f":"IF(SUM(F113)<1,\"\",AVERAGEIF('2011 Survey responses'!B113:AO113,\">1\"))","v":""},{"$f":"IF(SUM(F113)<1,\"\",AVERAGEIF('2011 Survey responses'!B113:BV113,\">1\"))","v":""},{"$f":"IF(SUM(F113)<1,\"\",AVERAGEIF('2011 Survey responses'!V113:BV113,\">1\"))","v":""},{"$f":"IF(SUM('2011 Survey responses'!B113:U113)<1,\"\",(AVERAGEIFS('2011 Survey responses'!B113:U113,'2011 Survey responses'!B113:U113,\">1\")))","v":""},{"$f":"IF(SUM('2011 Survey responses'!B113:H113)<1,\"\",(AVERAGEIFS('2011 Survey responses'!B113:H113,'2011 Survey responses'!B113:H113,\">1\")))","v":""},{"$f":"IF(SUM('2011 Survey responses'!I113:S113)<1,\"\",(AVERAGEIFS('2011 Survey responses'!I113:S113,'2011 Survey responses'!I113:S113,\">1\")))","v":""},{"$f":"IF(SUM('2011 Survey responses'!T113:U113)<2.1,\"\",(AVERAGEIFS('2011 Survey responses'!T113:U113,'2011 Survey responses'!T113:U113,\">1\")))","v":""},{"$f":"IF(SUM('2011 Survey responses'!B113:C113)<2.1,\"\",((SUMIF('2011 Survey responses'!B113:C113,\">1\")+SUMIF('2011 Survey responses'!F113,\">1\"))/(COUNTIF('2011 Survey responses'!B113:C113,\">1\")+COUNTIF('2011 Survey responses'!F113,\">1\"))))","v":""},{"$f":"IF(SUM('2011 Survey responses'!D113:E113)<2.1,\"\",(AVERAGEIFS('2011 Survey responses'!D113:E113,'2011 Survey responses'!D113:E113,\">1\")))","v":""},{"$f":"IF(('2011 Survey responses'!B113+'2011 Survey responses'!D113)<2.1,\"\",((SUMIF('2011 Survey responses'!B113,\">1\")+SUMIF('2011 Survey responses'!D113,\">1\")+SUMIF('2011 Survey responses'!F113,\">1\")+SUMIF('2011 Survey responses'!K113,\">1\"))/(COUNTIF('2011 Survey responses'!B113,\">1\")+COUNTIF('2011 Survey responses'!D113,\">1\")+COUNTIF('2011 Survey responses'!F113,\">1\")+COUNTIF('2011 Survey responses'!K113,\">1\"))))","v":""},{"$f":"IF(SUM('2011 Survey responses'!G113:H113)<2.1,\"\",(AVERAGEIFS('2011 Survey responses'!G113:H113,'2011 Survey responses'!G113:H113,\">1\")))","v":""},{"$f":"IF(SUM('2011 Survey responses'!F113:G113)<1.5,\"\",MAX('2011 Survey responses'!F113,'2011 Survey responses'!G113))","v":""},{"$f":"IF(SUM('2011 Survey responses'!G113:H113)<1,\"\",MAX('2011 Survey responses'!G113,'2011 Survey responses'!H113))","v":""},{"$f":"IF(SUM('2011 Survey responses'!I113:L113)<4.1,\"\",(AVERAGEIFS('2011 Survey responses'!I113:L113,'2011 Survey responses'!I113:L113,\">1\")))","v":""},{"$f":"IF(SUM('2011 Survey responses'!M113:S113)<4.1,\"\",(AVERAGEIFS('2011 Survey responses'!M113:S113,'2011 Survey responses'!M113:S113,\">1\")))","v":""},{"$f":"IF(SUM('2011 Survey responses'!T113:U113)<2.1,\"\",(AVERAGEIFS('2011 Survey responses'!T113:U113,'2011 Survey responses'!T113:U113,\">1\")))","v":""},{"$f":"IF(SUM('2011 Survey responses'!V113:AO113)<1,\"\",(AVERAGEIFS('2011 Survey responses'!V113:AO113,'2011 Survey responses'!V113:AO113,\">1\")))","v":""},{"$f":"IF(SUM('2011 Survey responses'!V113:AA113)<1,\"\",(AVERAGEIFS('2011 Survey responses'!V113:AA113,'2011 Survey responses'!V113:AA113,\">1\")))","v":""},{"$f":"IF(SUM('2011 Survey responses'!AB113:AH113)<1,\"\",(AVERAGEIFS('2011 Survey responses'!AB113:AH113,'2011 Survey responses'!AB113:AH113,\">1\")))","v":""},{"$f":"IF(SUM('2011 Survey responses'!AI113:AO113)<1,\"\",(AVERAGEIFS('2011 Survey responses'!AI113:AO113,'2011 Survey responses'!AI113:AO113,\">1\")))","v":""},{"$f":"IF(('2011 Survey responses'!Y113+'2011 Survey responses'!AI113+'2011 Survey responses'!AK113)<3.1,\"\",((SUMIF('2011 Survey responses'!Y113,\">1\")+SUMIF('2011 Survey responses'!AI113,\">1\")+SUMIF('2011 Survey responses'!AK113,\">1\")+SUMIF('2011 Survey responses'!AM113,\">1\"))/(COUNTIF('2011 Survey responses'!Y113,\">1\")+COUNTIF('2011 Survey responses'!AI113,\">1\")+COUNTIF('2011 Survey responses'!AK113,\">1\")+COUNTIF('2011 Survey responses'!AM113,\">1\"))))","v":""},{"$f":"IF(('2011 Survey responses'!W113)<1.1,\"\",('2011 Survey responses'!W113))","v":""},{"$f":"IF(('2011 Survey responses'!Y113)<1.1,\"\",('2011 Survey responses'!Y113))","v":""},{"$f":"IF(('2011 Survey responses'!Z113)<1.1,\"\",('2011 Survey responses'!Z113))","v":""},{"$f":"IF(('2011 Survey responses'!V113+'2011 Survey responses'!X113+'2011 Survey responses'!AA113)<3.1,\"\",((SUMIF('2011 Survey responses'!V113,\">1\")+SUMIF('2011 Survey responses'!X113,\">1\")+SUMIF('2011 Survey responses'!AA113,\">1\"))/(COUNTIF('2011 Survey responses'!V113,\">1\")+COUNTIF('2011 Survey responses'!X113,\">1\")+COUNTIF('2011 Survey responses'!AA113,\">1\"))))","v":""},{"$f":"IF(('2011 Survey responses'!V113+'2011 Survey responses'!Y113+'2011 Survey responses'!AA113)<3.1,\"\",((SUMIF('2011 Survey responses'!V113,\">1\")+SUMIF('2011 Survey responses'!Y113,\">1\")+SUMIF('2011 Survey responses'!AA113,\">1\"))/(COUNTIF('2011 Survey responses'!V113,\">1\")+COUNTIF('2011 Survey responses'!Y113,\">1\")+COUNTIF('2011 Survey responses'!AA113,\">1\"))))","v":""},{"$f":"IF(SUM('2011 Survey responses'!AB113:AH113)<1,\"\",(AVERAGEIFS('2011 Survey responses'!AB113:AH113,'2011 Survey responses'!AB113:AH113,\">1\")))","v":""},{"$f":"IF(SUM('2011 Survey responses'!AI113:AO113)<7.1,\"\",(AVERAGEIFS('2011 Survey responses'!AI113:AO113,'2011 Survey responses'!AI113:AO113,\">1\")))","v":""},{"$f":"IF(('2011 Survey responses'!AH113)<1.1,\"\",('2011 Survey responses'!AH113))","v":""},{"$f":"IF(SUM('2011 Survey responses'!AP113:BV113)<1,\"\",(AVERAGEIFS('2011 Survey responses'!AP113:BV113,'2011 Survey responses'!AP113:BV113,\">1\")))","v":""},{"$f":"IF(SUM('2011 Survey responses'!AP113:AS113)<4.1,\"\",(AVERAGEIFS('2011 Survey responses'!AP113:AS113,'2011 Survey responses'!AP113:AS113,\">1\")))","v":""},{"$f":"IF(SUM('2011 Survey responses'!AT113:BF113)<1,\"\",(AVERAGEIFS('2011 Survey responses'!AT113:BF113,'2011 Survey responses'!AT113:BF113,\">1\")))","v":""},{"$f":"IF(SUM('2011 Survey responses'!BG113:BO113)<1,\"\",(AVERAGEIFS('2011 Survey responses'!BG113:BO113,'2011 Survey responses'!BG113:BO113,\">1\")))","v":""},{"$f":"IF(SUM('2011 Survey responses'!BP113:BS113)<1,\"\",(AVERAGEIFS('2011 Survey responses'!BP113:BS113,'2011 Survey responses'!BP113:BS113,\">1\")))","v":""},{"$f":"IF(SUM('2011 Survey responses'!BT113:BV113)<3.1,\"\",(AVERAGEIFS('2011 Survey responses'!BT113:BV113,'2011 Survey responses'!BT113:BV113,\">1\")))","v":""},{"$f":"IF(('2011 Survey responses'!AQ113+'2011 Survey responses'!AR113+'2011 Survey responses'!BG113)<3.1,\"\",((SUMIF('2011 Survey responses'!AQ113,\">1\")+SUMIF('2011 Survey responses'!AR113,\">1\")+SUMIF('2011 Survey responses'!BG113,\">1\"))/(COUNTIF('2011 Survey responses'!AQ113,\">1\")+COUNTIF('2011 Survey responses'!AR113,\">1\")+COUNTIF('2011 Survey responses'!BG113,\">1\"))))","v":""},{"$f":"IF(SUM('2011 Survey responses'!AP113:AS113)<4.1,\"\",(AVERAGEIFS('2011 Survey responses'!AP113:AS113,'2011 Survey responses'!AP113:AS113,\">1\")))","v":""},{"$f":"IF(('2011 Survey responses'!AU113+'2011 Survey responses'!AX113+'2011 Survey responses'!BA113+'2011 Survey responses'!BC113+'2011 Survey responses'!BD113)<5.1,\"\",(SUMIF('2011 Survey responses'!AU113,\">1\")+SUMIF('2011 Survey responses'!AX113,\">1\")+SUMIF('2011 Survey responses'!BA113,\">1\")+SUMIF('2011 Survey responses'!BC113,\">1\")+SUMIF('2011 Survey responses'!BD113,\">1\"))/(COUNTIF('2011 Survey responses'!AU113,\">1\")+COUNTIF('2011 Survey responses'!AX113,\">1\")+COUNTIF('2011 Survey responses'!BA113,\">1\")+COUNTIF('2011 Survey responses'!BC113,\">1\")+COUNTIF('2011 Survey responses'!BD113,\">1\")))","v":""},{"$f":"IF(('2011 Survey responses'!AT113)<1.1,\"\",('2011 Survey responses'!AT113))","v":""},{"$f":"IF(SUM('2011 Survey responses'!AV113:AW113)<2.1,\"\",(AVERAGEIFS('2011 Survey responses'!AV113:AW113,'2011 Survey responses'!AV113:AW113,\">1\")))","v":""},{"$f":"IF(('2011 Survey responses'!AW113+'2011 Survey responses'!AY113)<2.1,\"\",(SUMIF('2011 Survey responses'!AW113,\">1\")+SUMIF('2011 Survey responses'!AY113,\">1\"))/(COUNTIF('2011 Survey responses'!AW113,\">1\")+COUNTIF('2011 Survey responses'!AY113,\">1\")))","v":""},{"$f":"IF(('2011 Survey responses'!AZ113)<1.1,\"\",('2011 Survey responses'!AZ113))","v":""},null,null,null,null,{"$f":"IF(('2011 Survey responses'!BE113)<1.1,\"\",('2011 Survey responses'!BE113))","v":""},{"$f":"IF(('2011 Survey responses'!AY113+'2011 Survey responses'!BB113+'2011 Survey responses'!BF113)<3.1,\"\",(SUMIF('2011 Survey responses'!AY113,\">1\")+SUMIF('2011 Survey responses'!BB113,\">1\")+SUMIF('2011 Survey responses'!BF113,\">1\"))/(COUNTIF('2011 Survey responses'!AY113,\">1\")+COUNTIF('2011 Survey responses'!BB113,\">1\")+COUNTIF('2011 Survey responses'!BF113,\">1\")))","v":""},"",{"$f":"IF(SUM('2011 Survey responses'!BT113:BV113)<3.1,\"\",(AVERAGEIFS('2011 Survey responses'!BT113:BV113,'2011 Survey responses'!BT113:BV113,\">1\")))","v":""},{"$f":"IF(SUM('2011 Survey responses'!BW113:CP113)<1,\"\",(AVERAGEIFS('2011 Survey responses'!BW113:CP113,'2011 Survey responses'!BW113:CP113,\">1\")))","v":""},{"$f":"IF(SUM('2011 Survey responses'!BW113:CF113)<1,\"\",(AVERAGEIFS('2011 Survey responses'!BW113:CF113,'2011 Survey responses'!BW113:CF113,\">1\")))","v":""},{"$f":"IF(SUM('2011 Survey responses'!CG113:CP113)<1,\"\",(AVERAGEIFS('2011 Survey responses'!CG113:CP113,'2011 Survey responses'!CG113:CP113,\">1\")))","v":""},{"$f":"IF(SUM('2011 Survey responses'!BX113:CF113)<1,\"\",(AVERAGEIFS('2011 Survey responses'!BX113:CF113,'2011 Survey responses'!BX113:CF113,\">1\")))","v":""},{"$f":"IF(SUM('2011 Survey responses'!CH113:CP113)<1,\"\",(AVERAGEIFS('2011 Survey responses'!CH113:CP113,'2011 Survey responses'!CH113:CP113,\">1\")))","v":""},{"$f":"IF(SUM('2011 Survey responses'!BW113:CP113)<1,\"\",(AVERAGEIFS('2011 Survey responses'!BW113:CP113,'2011 Survey responses'!BW113:CP113,\">1\")))","v":""},{"$f":"IF(('2011 Survey responses'!BW113+'2011 Survey responses'!CG113)<2.1,\"\",(SUMIF('2011 Survey responses'!BW113,\">1\")+SUMIF('2011 Survey responses'!CG113,\">1\"))/(COUNTIF('2011 Survey responses'!BW113,\">1\")+COUNTIF('2011 Survey responses'!CG113,\">1\")))","v":""},{"$f":"IF(('2011 Survey responses'!BX113+'2011 Survey responses'!CH113)<2.1,\"\",(SUMIF('2011 Survey responses'!BX113,\">1\")+SUMIF('2011 Survey responses'!CH113,\">1\"))/(COUNTIF('2011 Survey responses'!BX113,\">1\")+COUNTIF('2011 Survey responses'!CH113,\">1\")))","v":""},{"$f":"IF(('2011 Survey responses'!BY113+'2011 Survey responses'!CI113)<2.1,\"\",(SUMIF('2011 Survey responses'!BY113,\">1\")+SUMIF('2011 Survey responses'!CI113,\">1\"))/(COUNTIF('2011 Survey responses'!BY113,\">1\")+COUNTIF('2011 Survey responses'!CI113,\">1\")))","v":""},{"$f":"IF('2011 Survey responses'!CQ113<0.5,\"\",'2011 Survey responses'!CQ113)","v":""},{"$f":"IF('2011 Survey responses'!CR113<0.5,\"\",'2011 Survey responses'!CR113)","v":""},{"$f":"IF('2011 Survey responses'!CS113<0.5,\"\",'2011 Survey responses'!CS113)","v":""},{"$f":"IF('2011 Survey responses'!CT113<0.5,\"\",'2011 Survey responses'!CT113)","v":""},{"$f":"IF('2011 Survey responses'!CU113<0.5,\"\",'2011 Survey responses'!CU113)","v":""},{"$f":"IF('2011 Survey responses'!CV113<0.5,\"\",'2011 Survey responses'!CV113)","v":""},{"$f":"IF(SUM('2011 Survey responses'!CW113:DL113)<1,\"\",(AVERAGE('2011 Survey responses'!CW113:DL113)))","v":""},{"$f":"IF(SUM('2011 Survey responses'!CW113:CZ113)<1,\"\",(AVERAGE('2011 Survey responses'!CW113:CZ113)))","v":""},{"$f":"IF(SUM('2011 Survey responses'!DA113:DD113)<1,\"\",(AVERAGE('2011 Survey responses'!DA113:DD113)))","v":""},{"$f":"IF(SUM('2011 Survey responses'!DE113:DH113)<1,\"\",(AVERAGE('2011 Survey responses'!DE113:DH113)))","v":""},{"$f":"IF(SUM('2011 Survey responses'!DI113:DL113)<1,\"\",(AVERAGE('2011 Survey responses'!DI113:DL113)))","v":""},{"$f":"IF(('2011 Survey responses'!CW113+'2011 Survey responses'!DA113+'2011 Survey responses'!DE113+'2011 Survey responses'!DI113)<1,\"\",AVERAGE('2011 Survey responses'!CW113,'2011 Survey responses'!DA113,'2011 Survey responses'!DE113,'2011 Survey responses'!DI113))","v":""},{"$f":"IF(('2011 Survey responses'!CX113+'2011 Survey responses'!DB113+'2011 Survey responses'!DF113+'2011 Survey responses'!DJ113)<1,\"\",AVERAGE('2011 Survey responses'!CX113,'2011 Survey responses'!DB113,'2011 Survey responses'!DF113,'2011 Survey responses'!DJ113))","v":""},{"$f":"IF(('2011 Survey responses'!CY113+'2011 Survey responses'!DC113+'2011 Survey responses'!DG113+'2011 Survey responses'!DK113)<1,\"\",AVERAGE('2011 Survey responses'!CY113,'2011 Survey responses'!DC113,'2011 Survey responses'!DG113,'2011 Survey responses'!DK113))","v":""},{"$f":"IF(('2011 Survey responses'!CZ113+'2011 Survey responses'!DD113+'2011 Survey responses'!DH113+'2011 Survey responses'!DL113)<1,\"\",AVERAGE('2011 Survey responses'!CZ113,'2011 Survey responses'!DD113,'2011 Survey responses'!DH113,'2011 Survey responses'!DL113))","v":""},{"$f":"IF('2011 Survey responses'!CW113<0.5,\"\",'2011 Survey responses'!CW113)","v":""},{"$f":"IF('2011 Survey responses'!CX113<0.5,\"\",'2011 Survey responses'!CX113)","v":""},{"$f":"IF('2011 Survey responses'!CY113<0.5,\"\",'2011 Survey responses'!CY113)","v":""},{"$f":"IF('2011 Survey responses'!CZ113<0.5,\"\",'2011 Survey responses'!CZ113)","v":""},{"$f":"IF('2011 Survey responses'!DA113<0.5,\"\",'2011 Survey responses'!DA113)","v":""},{"$f":"IF('2011 Survey responses'!DB113<0.5,\"\",'2011 Survey responses'!DB113)","v":""},{"$f":"IF('2011 Survey responses'!DC113<0.5,\"\",'2011 Survey responses'!DC113)","v":""},{"$f":"IF('2011 Survey responses'!DD113<0.5,\"\",'2011 Survey responses'!DD113)","v":""},{"$f":"IF('2011 Survey responses'!DE113<0.5,\"\",'2011 Survey responses'!DE113)","v":""},{"$f":"IF('2011 Survey responses'!DF113<0.5,\"\",'2011 Survey responses'!DF113)","v":""},{"$f":"IF('2011 Survey responses'!DG113<0.5,\"\",'2011 Survey responses'!DG113)","v":""},{"$f":"IF('2011 Survey responses'!DH113<0.5,\"\",'2011 Survey responses'!DH113)","v":""},{"$f":"IF('2011 Survey responses'!DI113<0.5,\"\",'2011 Survey responses'!DI113)","v":""},{"$f":"IF('2011 Survey responses'!DJ113<0.5,\"\",'2011 Survey responses'!DJ113)","v":""},{"$f":"IF('2011 Survey responses'!DK113<0.5,\"\",'2011 Survey responses'!DK113)","v":""},{"$f":"IF('2011 Survey responses'!DL113<0.5,\"\",'2011 Survey responses'!DL113)","v":""},{"$f":"IF('2011 Survey responses'!DU113=4,4,IF('2011 Survey responses'!DU113=5,4,\"\"))","v":""},{"$f":"IF('2011 Survey responses'!DV113=4,3,IF('2011 Survey responses'!DV113=5,3,\"\"))","v":""},"",{"$f":"IF(CQ113=2,CQ113,IF(CO113=4,CO113,IF(CP113=3,CP113,IF('2011 Survey responses'!GT113=1,1,\"\"))))","v":""},{"$f":"IF('2011 Survey responses'!DO113<0.5,\"\",'2011 Survey responses'!DO113)","v":""},{"$f":"IF('2011 Survey responses'!DP113<0.5,\"\",'2011 Survey responses'!DP113)","v":""},{"$f":"IF('2011 Survey responses'!DQ113<0.5,\"\",'2011 Survey responses'!DQ113)","v":""},{"$f":"IF('2011 Survey responses'!DR113<0.5,\"\",'2011 Survey responses'!DR113)","v":""},{"$f":"IF('2011 Survey responses'!DS113<0.5,\"\",'2011 Survey responses'!DS113)","v":""},{"$f":"IF('2011 Survey responses'!DT113<0.5,\"\",'2011 Survey responses'!DT113)","v":""},{"$f":"IF('2011 Survey responses'!DU113<0.5,\"\",'2011 Survey responses'!DU113)","v":""},{"$f":"IF('2011 Survey responses'!DV113<0.5,\"\",'2011 Survey responses'!DV113)","v":""},{"$f":"IF('2011 Survey responses'!DW113<0.5,\"\",'2011 Survey responses'!DW113)","v":""},{"$f":"IF('2011 Survey responses'!DX113<0.5,\"\",'2011 Survey responses'!DX113)","v":""},{"$f":"IF('2011 Survey responses'!DY113<0.5,\"\",'2011 Survey responses'!DY113)","v":""},{"$f":"IF('2011 Survey responses'!DZ113<0.5,\"\",'2011 Survey responses'!DZ113)","v":""},{"$f":"IF('2011 Survey responses'!EA113<0.5,\"\",'2011 Survey responses'!EA113)","v":""},{"$f":"IF('2011 Survey responses'!EB113<0.5,\"\",'2011 Survey responses'!EB113)","v":""},{"$f":"IF('2011 Survey responses'!EC113<0.5,\"\",'2011 Survey responses'!EC113)","v":""},{"$f":"IF('2011 Survey responses'!ED113<0.5,\"\",'2011 Survey responses'!ED113)","v":""},{"$f":"IF('2011 Survey responses'!EE113<0.5,\"\",'2011 Survey responses'!EE113)","v":""},{"$f":"IF('2011 Survey responses'!EF113<0.5,\"\",'2011 Survey responses'!EF113)","v":""},{"$f":"IF('2011 Survey responses'!EG113<0.5,\"\",'2011 Survey responses'!EG113)","v":""},{"$f":"IF('2011 Survey responses'!EH113<0.5,\"\",'2011 Survey responses'!EH113)","v":""},{"$f":"IF('2011 Survey responses'!EI113<0.5,\"\",'2011 Survey responses'!EI113)","v":""},{"$f":"IF('2011 Survey responses'!EJ113<0.5,\"\",'2011 Survey responses'!EJ113)","v":""},{"$f":"IF('2011 Survey responses'!EK113<0.5,\"\",'2011 Survey responses'!EK113)","v":""},{"$f":"IF('2011 Survey responses'!EL113<0.5,\"\",'2011 Survey responses'!EL113)","v":""},{"$f":"IF('2011 Survey responses'!EM113<0.5,\"\",'2011 Survey responses'!EM113)","v":""},{"$f":"IF('2011 Survey responses'!EN113<0.5,\"\",'2011 Survey responses'!EN113)","v":""},{"$f":"IF('2011 Survey responses'!EO113<0.5,\"\",'2011 Survey responses'!EO113)","v":""},{"$f":"IF('2011 Survey responses'!EP113<0.5,\"\",'2011 Survey responses'!EP113)","v":""},{"$f":"IF(('2011 Survey responses'!EW113+'2011 Survey responses'!EX113)>=2,AVERAGE('2011 Survey responses'!EW113,'2011 Survey responses'!EY113),\"\")","v":""},{"$f":"IF('2011 Survey responses'!EX113<0.5,\"\",'2011 Survey responses'!EX113)","v":""},{"$f":"IF('2011 Survey responses'!EZ113<0.5,\"\",'2011 Survey responses'!EZ113)","v":""},{"$f":"IF('2011 Survey responses'!FB113<0.5,\"\",'2011 Survey responses'!FB113)","v":""},{"$f":"IF('2011 Survey responses'!FD113<0.5,\"\",'2011 Survey responses'!FD113)","v":""},{"$f":"IF('2011 Survey responses'!FC113<0.5,\"\",'2011 Survey responses'!FC113)","v":""},{"$f":"IF(('2011 Survey responses'!EM113+'2011 Survey responses'!EN113)>=2,AVERAGE('2011 Survey responses'!EM113,'2011 Survey responses'!EN113),\"\")","v":""},{"$f":"IF('2011 Survey responses'!ES113<0.5,\"\",'2011 Survey responses'!ES113)","v":""},{"$f":"IF(('2011 Survey responses'!ET113+'2011 Survey responses'!EU113)>=2,AVERAGE('2011 Survey responses'!ET113,'2011 Survey responses'!EU113),\"\")","v":""},{"$f":"IF('2011 Survey responses'!EV113<0.5,\"\",'2011 Survey responses'!EV113)","v":""},{"$f":"IF('2011 Survey responses'!FA113<0.5,\"\",'2011 Survey responses'!FA113)","v":""},{"$f":"IF('2011 Survey responses'!ER113<0.5,\"\",'2011 Survey responses'!ER113)","v":""},{"$f":"IF(('2011 Survey responses'!EO113+'2011 Survey responses'!EP113)>=2,AVERAGE('2011 Survey responses'!EO113,'2011 Survey responses'!EP113),\"\")","v":""},{"$f":"IF('2011 Survey responses'!EQ113<0.5,\"\",'2011 Survey responses'!EQ113)","v":""},{"$f":"IF('2011 Survey responses'!ET113<0.5,\"\",'2011 Survey responses'!ET113)","v":""},{"$f":"IF('2011 Survey responses'!EU113<0.5,\"\",'2011 Survey responses'!EU113)","v":""},{"$f":"IF('2011 Survey responses'!EW113<0.5,\"\",'2011 Survey responses'!EW113)","v":""},{"$f":"IF('2011 Survey responses'!EY113<0.5,\"\",'2011 Survey responses'!EY113)","v":""},{"$f":"IF('2011 Survey responses'!FU113<0.5,\"\",'2011 Survey responses'!FU113)","v":""},{"$f":"IF(('2011 Survey responses'!FL113+'2011 Survey responses'!FM113)>=2,AVERAGE('2011 Survey responses'!FL113,'2011 Survey responses'!FM113),\"\")","v":""},{"$f":"IF(('2011 Survey responses'!FO113+'2011 Survey responses'!FQ113)>=2,AVERAGE('2011 Survey responses'!FO113,'2011 Survey responses'!FQ113),\"\")","v":""},{"$f":"IF('2011 Survey responses'!FJ113<0.5,\"\",'2011 Survey responses'!FJ113)","v":""},{"$f":"IF('2011 Survey responses'!FT113<0.5,\"\",'2011 Survey responses'!FT113)","v":""},{"$f":"IF('2011 Survey responses'!FR113<0.5,\"\",'2011 Survey responses'!FR113)","v":""},{"$f":"IF('2011 Survey responses'!FK113<0.5,\"\",'2011 Survey responses'!FK113)","v":""},{"$f":"IF('2011 Survey responses'!FP113<0.5,\"\",'2011 Survey responses'!FP113)","v":""},{"$f":"IF('2011 Survey responses'!FN113<0.5,\"\",'2011 Survey responses'!FN113)","v":""},{"$f":"IF(('2011 Survey responses'!FE113+'2011 Survey responses'!FF113)>=2,AVERAGE('2011 Survey responses'!FE113,'2011 Survey responses'!FF113),\"\")","v":""},{"$f":"IF('2011 Survey responses'!FS113<0.5,\"\",'2011 Survey responses'!FS113)","v":""},{"$f":"IF('2011 Survey responses'!FV113<0.5,\"\",'2011 Survey responses'!FV113)","v":""},{"$f":"IF(('2011 Survey responses'!FG113+'2011 Survey responses'!FH113)>=2,AVERAGE('2011 Survey responses'!FG113,'2011 Survey responses'!FH113),\"\")","v":""},{"$f":"IF('2011 Survey responses'!FI113<0.5,\"\",'2011 Survey responses'!FI113)","v":""},{"$f":"IF('2011 Survey responses'!FE113<0.5,\"\",'2011 Survey responses'!FE113)","v":""},{"$f":"IF('2011 Survey responses'!FF113<0.5,\"\",'2011 Survey responses'!FF113)","v":""},{"$f":"IF('2011 Survey responses'!FG113<0.5,\"\",'2011 Survey responses'!FG113)","v":""},{"$f":"IF('2011 Survey responses'!FH113<0.5,\"\",'2011 Survey responses'!FH113)","v":""},{"$f":"IF('2011 Survey responses'!FL113<0.5,\"\",'2011 Survey responses'!FL113)","v":""},{"$f":"IF('2011 Survey responses'!FM113<0.5,\"\",'2011 Survey responses'!FM113)","v":""},{"$f":"IF('2011 Survey responses'!FO113<0.5,\"\",'2011 Survey responses'!FO113)","v":""},{"$f":"IF('2011 Survey responses'!FQ113<0.5,\"\",'2011 Survey responses'!FQ113)","v":""}]
["Monaco",{"$f":"IF(SUM(F114)<1,\"\",AVERAGEIF('2011 Survey responses'!B114:CP114,\">1\"))","v":5.1147540983606561},{"$f":"IF(SUM(F114)<1,\"\",AVERAGEIF('2011 Survey responses'!B114:AO114,\">1\"))","v":5.1304347826086953},{"$f":"IF(SUM(F114)<1,\"\",AVERAGEIF('2011 Survey responses'!B114:BV114,\">1\"))","v":4.9387755102040813},{"$f":"IF(SUM(F114)<1,\"\",AVERAGEIF('2011 Survey responses'!V114:BV114,\">1\"))","v":4.9459459459459456},{"$f":"IF(SUM('2011 Survey responses'!B114:U114)<1,\"\",(AVERAGEIFS('2011 Survey responses'!B114:U114,'2011 Survey responses'!B114:U114,\">1\")))","v":4.916666666666667},{"$f":"IF(SUM('2011 Survey responses'!B114:H114)<1,\"\",(AVERAGEIFS('2011 Survey responses'!B114:H114,'2011 Survey responses'!B114:H114,\">1\")))","v":5.25},{"$f":"IF(SUM('2011 Survey responses'!I114:S114)<1,\"\",(AVERAGEIFS('2011 Survey responses'!I114:S114,'2011 Survey responses'!I114:S114,\">1\")))","v":5},{"$f":"IF(SUM('2011 Survey responses'!T114:U114)<2.1,\"\",(AVERAGEIFS('2011 Survey responses'!T114:U114,'2011 Survey responses'!T114:U114,\">1\")))","v":4},{"$f":"IF(SUM('2011 Survey responses'!B114:C114)<2.1,\"\",((SUMIF('2011 Survey responses'!B114:C114,\">1\")+SUMIF('2011 Survey responses'!F114,\">1\"))/(COUNTIF('2011 Survey responses'!B114:C114,\">1\")+COUNTIF('2011 Survey responses'!F114,\">1\"))))","v":5},{"$f":"IF(SUM('2011 Survey responses'!D114:E114)<2.1,\"\",(AVERAGEIFS('2011 Survey responses'!D114:E114,'2011 Survey responses'!D114:E114,\">1\")))","v":5},{"$f":"IF(('2011 Survey responses'!B114+'2011 Survey responses'!D114)<2.1,\"\",((SUMIF('2011 Survey responses'!B114,\">1\")+SUMIF('2011 Survey responses'!D114,\">1\")+SUMIF('2011 Survey responses'!F114,\">1\")+SUMIF('2011 Survey responses'!K114,\">1\"))/(COUNTIF('2011 Survey responses'!B114,\">1\")+COUNTIF('2011 Survey responses'!D114,\">1\")+COUNTIF('2011 Survey responses'!F114,\">1\")+COUNTIF('2011 Survey responses'!K114,\">1\"))))","v":5},{"$f":"IF(SUM('2011 Survey responses'!G114:H114)<2.1,\"\",(AVERAGEIFS('2011 Survey responses'!G114:H114,'2011 Survey responses'!G114:H114,\">1\")))","v":6},{"$f":"IF(SUM('2011 Survey responses'!F114:G114)<1.5,\"\",MAX('2011 Survey responses'!F114,'2011 Survey responses'!G114))","v":5},{"$f":"IF(SUM('2011 Survey responses'!G114:H114)<1,\"\",MAX('2011 Survey responses'!G114,'2011 Survey responses'!H114))","v":6},{"$f":"IF(SUM('2011 Survey responses'!I114:L114)<4.1,\"\",(AVERAGEIFS('2011 Survey responses'!I114:L114,'2011 Survey responses'!I114:L114,\">1\")))","v":5},{"$f":"IF(SUM('2011 Survey responses'!M114:S114)<4.1,\"\",(AVERAGEIFS('2011 Survey responses'!M114:S114,'2011 Survey responses'!M114:S114,\">1\")))","v":5},{"$f":"IF(SUM('2011 Survey responses'!T114:U114)<2.1,\"\",(AVERAGEIFS('2011 Survey responses'!T114:U114,'2011 Survey responses'!T114:U114,\">1\")))","v":4},{"$f":"IF(SUM('2011 Survey responses'!V114:AO114)<1,\"\",(AVERAGEIFS('2011 Survey responses'!V114:AO114,'2011 Survey responses'!V114:AO114,\">1\")))","v":5.3636363636363633},{"$f":"IF(SUM('2011 Survey responses'!V114:AA114)<1,\"\",(AVERAGEIFS('2011 Survey responses'!V114:AA114,'2011 Survey responses'!V114:AA114,\">1\")))","v":4},{"$f":"IF(SUM('2011 Survey responses'!AB114:AH114)<1,\"\",(AVERAGEIFS('2011 Survey responses'!AB114:AH114,'2011 Survey responses'!AB114:AH114,\">1\")))","v":5.6},{"$f":"IF(SUM('2011 Survey responses'!AI114:AO114)<1,\"\",(AVERAGEIFS('2011 Survey responses'!AI114:AO114,'2011 Survey responses'!AI114:AO114,\">1\")))","v":5.75},{"$f":"IF(('2011 Survey responses'!Y114+'2011 Survey responses'!AI114+'2011 Survey responses'!AK114)<3.1,\"\",((SUMIF('2011 Survey responses'!Y114,\">1\")+SUMIF('2011 Survey responses'!AI114,\">1\")+SUMIF('2011 Survey responses'!AK114,\">1\")+SUMIF('2011 Survey responses'!AM114,\">1\"))/(COUNTIF('2011 Survey responses'!Y114,\">1\")+COUNTIF('2011 Survey responses'!AI114,\">1\")+COUNTIF('2011 Survey responses'!AK114,\">1\")+COUNTIF('2011 Survey responses'!AM114,\">1\"))))","v":6},{"$f":"IF(('2011 Survey responses'!W114)<1.1,\"\",('2011 Survey responses'!W114))","v":5},{"$f":"IF(('2011 Survey responses'!Y114)<1.1,\"\",('2011 Survey responses'!Y114))","v":""},{"$f":"IF(('2011 Survey responses'!Z114)<1.1,\"\",('2011 Survey responses'!Z114))","v":3},{"$f":"IF(('2011 Survey responses'!V114+'2011 Survey responses'!X114+'2011 Survey responses'!AA114)<3.1,\"\",((SUMIF('2011 Survey responses'!V114,\">1\")+SUMIF('2011 Survey responses'!X114,\">1\")+SUMIF('2011 Survey responses'!AA114,\">1\"))/(COUNTIF('2011 Survey responses'!V114,\">1\")+COUNTIF('2011 Survey responses'!X114,\">1\")+COUNTIF('2011 Survey responses'!AA114,\">1\"))))","v":""},{"$f":"IF(('2011 Survey responses'!V114+'2011 Survey responses'!Y114+'2011 Survey responses'!AA114)<3.1,\"\",((SUMIF('2011 Survey responses'!V114,\">1\")+SUMIF('2011 Survey responses'!Y114,\">1\")+SUMIF('2011 Survey responses'!AA114,\">1\"))/(COUNTIF('2011 Survey responses'!V114,\">1\")+COUNTIF('2011 Survey responses'!Y114,\">1\")+COUNTIF('2011 Survey responses'!AA114,\">1\"))))","v":""},{"$f":"IF(SUM('2011 Survey responses'!AB114:AH114)<1,\"\",(AVERAGEIFS('2011 Survey responses'!AB114:AH114,'2011 Survey responses'!AB114:AH114,\">1\")))","v":5.6},{"$f":"IF(SUM('2011 Survey responses'!AI114:AO114)<7.1,\"\",(AVERAGEIFS('2011 Survey responses'!AI114:AO114,'2011 Survey responses'!AI114:AO114,\">1\")))","v":5.75},{"$f":"IF(('2011 Survey responses'!AH114)<1.1,\"\",('2011 Survey responses'!AH114))","v":6},{"$f":"IF(SUM('2011 Survey responses'!AP114:BV114)<1,\"\",(AVERAGEIFS('2011 Survey responses'!AP114:BV114,'2011 Survey responses'!AP114:BV114,\">1\")))","v":4.7692307692307692},{"$f":"IF(SUM('2011 Survey responses'!AP114:AS114)<4.1,\"\",(AVERAGEIFS('2011 Survey responses'!AP114:AS114,'2011 Survey responses'!AP114:AS114,\">1\")))","v":5},{"$f":"IF(SUM('2011 Survey responses'!AT114:BF114)<1,\"\",(AVERAGEIFS('2011 Survey responses'!AT114:BF114,'2011 Survey responses'!AT114:BF114,\">1\")))","v":3.75},{"$f":"IF(SUM('2011 Survey responses'!BG114:BO114)<1,\"\",(AVERAGEIFS('2011 Survey responses'!BG114:BO114,'2011 Survey responses'!BG114:BO114,\">1\")))","v":5.4444444444444446},{"$f":"IF(SUM('2011 Survey responses'!BP114:BS114)<1,\"\",(AVERAGEIFS('2011 Survey responses'!BP114:BS114,'2011 Survey responses'!BP114:BS114,\">1\")))","v":5},{"$f":"IF(SUM('2011 Survey responses'!BT114:BV114)<3.1,\"\",(AVERAGEIFS('2011 Survey responses'!BT114:BV114,'2011 Survey responses'!BT114:BV114,\">1\")))","v":5},{"$f":"IF(('2011 Survey responses'!AQ114+'2011 Survey responses'!AR114+'2011 Survey responses'!BG114)<3.1,\"\",((SUMIF('2011 Survey responses'!AQ114,\">1\")+SUMIF('2011 Survey responses'!AR114,\">1\")+SUMIF('2011 Survey responses'!BG114,\">1\"))/(COUNTIF('2011 Survey responses'!AQ114,\">1\")+COUNTIF('2011 Survey responses'!AR114,\">1\")+COUNTIF('2011 Survey responses'!BG114,\">1\"))))","v":5.333333333333333},{"$f":"IF(SUM('2011 Survey responses'!AP114:AS114)<4.1,\"\",(AVERAGEIFS('2011 Survey responses'!AP114:AS114,'2011 Survey responses'!AP114:AS114,\">1\")))","v":5},{"$f":"IF(('2011 Survey responses'!AU114+'2011 Survey responses'!AX114+'2011 Survey responses'!BA114+'2011 Survey responses'!BC114+'2011 Survey responses'!BD114)<5.1,\"\",(SUMIF('2011 Survey responses'!AU114,\">1\")+SUMIF('2011 Survey responses'!AX114,\">1\")+SUMIF('2011 Survey responses'!BA114,\">1\")+SUMIF('2011 Survey responses'!BC114,\">1\")+SUMIF('2011 Survey responses'!BD114,\">1\"))/(COUNTIF('2011 Survey responses'!AU114,\">1\")+COUNTIF('2011 Survey responses'!AX114,\">1\")+COUNTIF('2011 Survey responses'!BA114,\">1\")+COUNTIF('2011 Survey responses'!BC114,\">1\")+COUNTIF('2011 Survey responses'!BD114,\">1\")))","v":3.5},{"$f":"IF(('2011 Survey responses'!AT114)<1.1,\"\",('2011 Survey responses'!AT114))","v":4},{"$f":"IF(SUM('2011 Survey responses'!AV114:AW114)<2.1,\"\",(AVERAGEIFS('2011 Survey responses'!AV114:AW114,'2011 Survey responses'!AV114:AW114,\">1\")))","v":""},{"$f":"IF(('2011 Survey responses'!AW114+'2011 Survey responses'!AY114)<2.1,\"\",(SUMIF('2011 Survey responses'!AW114,\">1\")+SUMIF('2011 Survey responses'!AY114,\">1\"))/(COUNTIF('2011 Survey responses'!AW114,\">1\")+COUNTIF('2011 Survey responses'!AY114,\">1\")))","v":4},{"$f":"IF(('2011 Survey responses'!AZ114)<1.1,\"\",('2011 Survey responses'!AZ114))","v":4},4,3,5,5,{"$f":"IF(('2011 Survey responses'!BE114)<1.1,\"\",('2011 Survey responses'!BE114))","v":3},{"$f":"IF(('2011 Survey responses'!AY114+'2011 Survey responses'!BB114+'2011 Survey responses'!BF114)<3.1,\"\",(SUMIF('2011 Survey responses'!AY114,\">1\")+SUMIF('2011 Survey responses'!BB114,\">1\")+SUMIF('2011 Survey responses'!BF114,\">1\"))/(COUNTIF('2011 Survey responses'!AY114,\">1\")+COUNTIF('2011 Survey responses'!BB114,\">1\")+COUNTIF('2011 Survey responses'!BF114,\">1\")))","v":4},5.2222222222222223,{"$f":"IF(SUM('2011 Survey responses'!BT114:BV114)<3.1,\"\",(AVERAGEIFS('2011 Survey responses'!BT114:BV114,'2011 Survey responses'!BT114:BV114,\">1\")))","v":5},{"$f":"IF(SUM('2011 Survey responses'!BW114:CP114)<1,\"\",(AVERAGEIFS('2011 Survey responses'!BW114:CP114,'2011 Survey responses'!BW114:CP114,\">1\")))","v":5.833333333333333},{"$f":"IF(SUM('2011 Survey responses'!BW114:CF114)<1,\"\",(AVERAGEIFS('2011 Survey responses'!BW114:CF114,'2011 Survey responses'!BW114:CF114,\">1\")))","v":5.666666666666667},{"$f":"IF(SUM('2011 Survey responses'!CG114:CP114)<1,\"\",(AVERAGEIFS('2011 Survey responses'!CG114:CP114,'2011 Survey responses'!CG114:CP114,\">1\")))","v":6},{"$f":"IF(SUM('2011 Survey responses'!BX114:CF114)<1,\"\",(AVERAGEIFS('2011 Survey responses'!BX114:CF114,'2011 Survey responses'!BX114:CF114,\">1\")))","v":5.6},{"$f":"IF(SUM('2011 Survey responses'!CH114:CP114)<1,\"\",(AVERAGEIFS('2011 Survey responses'!CH114:CP114,'2011 Survey responses'!CH114:CP114,\">1\")))","v":6},{"$f":"IF(SUM('2011 Survey responses'!BW114:CP114)<1,\"\",(AVERAGEIFS('2011 Survey responses'!BW114:CP114,'2011 Survey responses'!BW114:CP114,\">1\")))","v":5.833333333333333},{"$f":"IF(('2011 Survey responses'!BW114+'2011 Survey responses'!CG114)<2.1,\"\",(SUMIF('2011 Survey responses'!BW114,\">1\")+SUMIF('2011 Survey responses'!CG114,\">1\"))/(COUNTIF('2011 Survey responses'!BW114,\">1\")+COUNTIF('2011 Survey responses'!CG114,\">1\")))","v":6},{"$f":"IF(('2011 Survey responses'!BX114+'2011 Survey responses'!CH114)<2.1,\"\",(SUMIF('2011 Survey responses'!BX114,\">1\")+SUMIF('2011 Survey responses'!CH114,\">1\"))/(COUNTIF('2011 Survey responses'!BX114,\">1\")+COUNTIF('2011 Survey responses'!CH114,\">1\")))","v":""},{"$f":"IF(('2011 Survey responses'!BY114+'2011 Survey responses'!CI114)<2.1,\"\",(SUMIF('2011 Survey responses'!BY114,\">1\")+SUMIF('2011 Survey responses'!CI114,\">1\"))/(COUNTIF('2011 Survey responses'!BY114,\">1\")+COUNTIF('2011 Survey responses'!CI114,\">1\")))","v":""},{"$f":"IF('2011 Survey responses'!CQ114<0.5,\"\",'2011 Survey responses'!CQ114)","v":5},{"$f":"IF('2011 Survey responses'!CR114<0.5,\"\",'2011 Survey responses'!CR114)","v":2},{"$f":"IF('2011 Survey responses'!CS114<0.5,\"\",'2011 Survey responses'!CS114)","v":2},{"$f":"IF('2011 Survey responses'!CT114<0.5,\"\",'2011 Survey responses'!CT114)","v":2},{"$f":"IF('2011 Survey responses'!CU114<0.5,\"\",'2011 Survey responses'!CU114)","v":4},{"$f":"IF('2011 Survey responses'!CV114<0.5,\"\",'2011 Survey responses'!CV114)","v":2},{"$f":"IF(SUM('2011 Survey responses'!CW114:DL114)<1,\"\",(AVERAGE('2011 Survey responses'!CW114:DL114)))","v":3.3125},{"$f":"IF(SUM('2011 Survey responses'!CW114:CZ114)<1,\"\",(AVERAGE('2011 Survey responses'!CW114:CZ114)))","v":3},{"$f":"IF(SUM('2011 Survey responses'!DA114:DD114)<1,\"\",(AVERAGE('2011 Survey responses'!DA114:DD114)))","v":3.25},{"$f":"IF(SUM('2011 Survey responses'!DE114:DH114)<1,\"\",(AVERAGE('2011 Survey responses'!DE114:DH114)))","v":3},{"$f":"IF(SUM('2011 Survey responses'!DI114:DL114)<1,\"\",(AVERAGE('2011 Survey responses'!DI114:DL114)))","v":4},{"$f":"IF(('2011 Survey responses'!CW114+'2011 Survey responses'!DA114+'2011 Survey responses'!DE114+'2011 Survey responses'!DI114)<1,\"\",AVERAGE('2011 Survey responses'!CW114,'2011 Survey responses'!DA114,'2011 Survey responses'!DE114,'2011 Survey responses'!DI114))","v":2.75},{"$f":"IF(('2011 Survey responses'!CX114+'2011 Survey responses'!DB114+'2011 Survey responses'!DF114+'2011 Survey responses'!DJ114)<1,\"\",AVERAGE('2011 Survey responses'!CX114,'2011 Survey responses'!DB114,'2011 Survey responses'!DF114,'2011 Survey responses'!DJ114))","v":2.5},{"$f":"IF(('2011 Survey responses'!CY114+'2011 Survey responses'!DC114+'2011 Survey responses'!DG114+'2011 Survey responses'!DK114)<1,\"\",AVERAGE('2011 Survey responses'!CY114,'2011 Survey responses'!DC114,'2011 Survey responses'!DG114,'2011 Survey responses'!DK114))","v":5},{"$f":"IF(('2011 Survey responses'!CZ114+'2011 Survey responses'!DD114+'2011 Survey responses'!DH114+'2011 Survey responses'!DL114)<1,\"\",AVERAGE('2011 Survey responses'!CZ114,'2011 Survey responses'!DD114,'2011 Survey responses'!DH114,'2011 Survey responses'!DL114))","v":3},{"$f":"IF('2011 Survey responses'!CW114<0.5,\"\",'2011 Survey responses'!CW114)","v":2},{"$f":"IF('2011 Survey responses'!CX114<0.5,\"\",'2011 Survey responses'!CX114)","v":2},{"$f":"IF('2011 Survey responses'!CY114<0.5,\"\",'2011 Survey responses'!CY114)","v":5},{"$f":"IF('2011 Survey responses'!CZ114<0.5,\"\",'2011 Survey responses'!CZ114)","v":3},{"$f":"IF('2011 Survey responses'!DA114<0.5,\"\",'2011 Survey responses'!DA114)","v":3},{"$f":"IF('2011 Survey responses'!DB114<0.5,\"\",'2011 Survey responses'!DB114)","v":2},{"$f":"IF('2011 Survey responses'!DC114<0.5,\"\",'2011 Survey responses'!DC114)","v":5},{"$f":"IF('2011 Survey responses'!DD114<0.5,\"\",'2011 Survey responses'!DD114)","v":3},{"$f":"IF('2011 Survey responses'!DE114<0.5,\"\",'2011 Survey responses'!DE114)","v":2},{"$f":"IF('2011 Survey responses'!DF114<0.5,\"\",'2011 Survey responses'!DF114)","v":2},{"$f":"IF('2011 Survey responses'!DG114<0.5,\"\",'2011 Survey responses'!DG114)","v":5},{"$f":"IF('2011 Survey responses'!DH114<0.5,\"\",'2011 Survey responses'!DH114)","v":3},{"$f":"IF('2011 Survey responses'!DI114<0.5,\"\",'2011 Survey responses'!DI114)","v":4},{"$f":"IF('2011 Survey responses'!DJ114<0.5,\"\",'2011 Survey responses'!DJ114)","v":4},{"$f":"IF('2011 Survey responses'!DK114<0.5,\"\",'2011 Survey responses'!DK114)","v":5},{"$f":"IF('2011 Survey responses'!DL114<0.5,\"\",'2011 Survey responses'!DL114)","v":3},{"$f":"IF('2011 Survey responses'!DU114=4,4,IF('2011 Survey responses'!DU114=5,4,\"\"))","v":""},{"$f":"IF('2011 Survey responses'!DV114=4,3,IF('2011 Survey responses'!DV114=5,3,\"\"))","v":""},"",{"$f":"IF(CQ114=2,CQ114,IF(CO114=4,CO114,IF(CP114=3,CP114,IF('2011 Survey responses'!GT114=1,1,\"\"))))","v":1},{"$f":"IF('2011 Survey responses'!DO114<0.5,\"\",'2011 Survey responses'!DO114)","v":1},{"$f":"IF('2011 Survey responses'!DP114<0.5,\"\",'2011 Survey responses'!DP114)","v":5},{"$f":"IF('2011 Survey responses'!DQ114<0.5,\"\",'2011 Survey responses'!DQ114)","v":5},{"$f":"IF('2011 Survey responses'!DR114<0.5,\"\",'2011 Survey responses'!DR114)","v":1},{"$f":"IF('2011 Survey responses'!DS114<0.5,\"\",'2011 Survey responses'!DS114)","v":5},{"$f":"IF('2011 Survey responses'!DT114<0.5,\"\",'2011 Survey responses'!DT114)","v":1},{"$f":"IF('2011 Survey responses'!DU114<0.5,\"\",'2011 Survey responses'!DU114)","v":1},{"$f":"IF('2011 Survey responses'!DV114<0.5,\"\",'2011 Survey responses'!DV114)","v":1},{"$f":"IF('2011 Survey responses'!DW114<0.5,\"\",'2011 Survey responses'!DW114)","v":1},{"$f":"IF('2011 Survey responses'!DX114<0.5,\"\",'2011 Survey responses'!DX114)","v":4},{"$f":"IF('2011 Survey responses'!DY114<0.5,\"\",'2011 Survey responses'!DY114)","v":1},{"$f":"IF('2011 Survey responses'!DZ114<0.5,\"\",'2011 Survey responses'!DZ114)","v":4},{"$f":"IF('2011 Survey responses'!EA114<0.5,\"\",'2011 Survey responses'!EA114)","v":3},{"$f":"IF('2011 Survey responses'!EB114<0.5,\"\",'2011 Survey responses'!EB114)","v":5},{"$f":"IF('2011 Survey responses'!EC114<0.5,\"\",'2011 Survey responses'!EC114)","v":5},{"$f":"IF('2011 Survey responses'!ED114<0.5,\"\",'2011 Survey responses'!ED114)","v":3},{"$f":"IF('2011 Survey responses'!EE114<0.5,\"\",'2011 Survey responses'!EE114)","v":5},{"$f":"IF('2011 Survey responses'!EF114<0.5,\"\",'2011 Survey responses'!EF114)","v":3},{"$f":"IF('2011 Survey responses'!EG114<0.5,\"\",'2011 Survey responses'!EG114)","v":3},{"$f":"IF('2011 Survey responses'!EH114<0.5,\"\",'2011 Survey responses'!EH114)","v":3},{"$f":"IF('2011 Survey responses'!EI114<0.5,\"\",'2011 Survey responses'!EI114)","v":3},{"$f":"IF('2011 Survey responses'!EJ114<0.5,\"\",'2011 Survey responses'!EJ114)","v":5},{"$f":"IF('2011 Survey responses'!EK114<0.5,\"\",'2011 Survey responses'!EK114)","v":3},{"$f":"IF('2011 Survey responses'!EL114<0.5,\"\",'2011 Survey responses'!EL114)","v":5},{"$f":"IF('2011 Survey responses'!EM114<0.5,\"\",'2011 Survey responses'!EM114)","v":5},{"$f":"IF('2011 Survey responses'!EN114<0.5,\"\",'2011 Survey responses'!EN114)","v":1},{"$f":"IF('2011 Survey responses'!EO114<0.5,\"\",'2011 Survey responses'!EO114)","v":5},{"$f":"IF('2011 Survey responses'!EP114<0.5,\"\",'2011 Survey responses'!EP114)","v":1},{"$f":"IF(('2011 Survey responses'!EW114+'2011 Survey responses'!EX114)>=2,AVERAGE('2011 Survey responses'!EW114,'2011 Survey responses'!EY114),\"\")","v":5},{"$f":"IF('2011 Survey responses'!EX114<0.5,\"\",'2011 Survey responses'!EX114)","v":5},{"$f":"IF('2011 Survey responses'!EZ114<0.5,\"\",'2011 Survey responses'!EZ114)","v":5},{"$f":"IF('2011 Survey responses'!FB114<0.5,\"\",'2011 Survey responses'!FB114)","v":4},{"$f":"IF('2011 Survey responses'!FD114<0.5,\"\",'2011 Survey responses'!FD114)","v":5},{"$f":"IF('2011 Survey responses'!FC114<0.5,\"\",'2011 Survey responses'!FC114)","v":5},{"$f":"IF(('2011 Survey responses'!EM114+'2011 Survey responses'!EN114)>=2,AVERAGE('2011 Survey responses'!EM114,'2011 Survey responses'!EN114),\"\")","v":3},{"$f":"IF('2011 Survey responses'!ES114<0.5,\"\",'2011 Survey responses'!ES114)","v":5},{"$f":"IF(('2011 Survey responses'!ET114+'2011 Survey responses'!EU114)>=2,AVERAGE('2011 Survey responses'!ET114,'2011 Survey responses'!EU114),\"\")","v":3},{"$f":"IF('2011 Survey responses'!EV114<0.5,\"\",'2011 Survey responses'!EV114)","v":5},{"$f":"IF('2011 Survey responses'!FA114<0.5,\"\",'2011 Survey responses'!FA114)","v":5},{"$f":"IF('2011 Survey responses'!ER114<0.5,\"\",'2011 Survey responses'!ER114)","v":5},{"$f":"IF(('2011 Survey responses'!EO114+'2011 Survey responses'!EP114)>=2,AVERAGE('2011 Survey responses'!EO114,'2011 Survey responses'!EP114),\"\")","v":3},{"$f":"IF('2011 Survey responses'!EQ114<0.5,\"\",'2011 Survey responses'!EQ114)","v":5},{"$f":"IF('2011 Survey responses'!ET114<0.5,\"\",'2011 Survey responses'!ET114)","v":5},{"$f":"IF('2011 Survey responses'!EU114<0.5,\"\",'2011 Survey responses'!EU114)","v":1},{"$f":"IF('2011 Survey responses'!EW114<0.5,\"\",'2011 Survey responses'!EW114)","v":5},{"$f":"IF('2011 Survey responses'!EY114<0.5,\"\",'2011 Survey responses'!EY114)","v":5},{"$f":"IF('2011 Survey responses'!FU114<0.5,\"\",'2011 Survey responses'!FU114)","v":5},{"$f":"IF(('2011 Survey responses'!FL114+'2011 Survey responses'!FM114)>=2,AVERAGE('2011 Survey responses'!FL114,'2011 Survey responses'!FM114),\"\")","v":4},{"$f":"IF(('2011 Survey responses'!FO114+'2011 Survey responses'!FQ114)>=2,AVERAGE('2011 Survey responses'!FO114,'2011 Survey responses'!FQ114),\"\")","v":5},{"$f":"IF('2011 Survey responses'!FJ114<0.5,\"\",'2011 Survey responses'!FJ114)","v":5},{"$f":"IF('2011 Survey responses'!FT114<0.5,\"\",'2011 Survey responses'!FT114)","v":4},{"$f":"IF('2011 Survey responses'!FR114<0.5,\"\",'2011 Survey responses'!FR114)","v":5},{"$f":"IF('2011 Survey responses'!FK114<0.5,\"\",'2011 Survey responses'!FK114)","v":5},{"$f":"IF('2011 Survey responses'!FP114<0.5,\"\",'2011 Survey responses'!FP114)","v":5},{"$f":"IF('2011 Survey responses'!FN114<0.5,\"\",'2011 Survey responses'!FN114)","v":5},{"$f":"IF(('2011 Survey responses'!FE114+'2011 Survey responses'!FF114)>=2,AVERAGE('2011 Survey responses'!FE114,'2011 Survey responses'!FF114),\"\")","v":4},{"$f":"IF('2011 Survey responses'!FS114<0.5,\"\",'2011 Survey responses'!FS114)","v":5},{"$f":"IF('2011 Survey responses'!FV114<0.5,\"\",'2011 Survey responses'!FV114)","v":5},{"$f":"IF(('2011 Survey responses'!FG114+'2011 Survey responses'!FH114)>=2,AVERAGE('2011 Survey responses'!FG114,'2011 Survey responses'!FH114),\"\")","v":4},{"$f":"IF('2011 Survey responses'!FI114<0.5,\"\",'2011 Survey responses'!FI114)","v":5},{"$f":"IF('2011 Survey responses'!FE114<0.5,\"\",'2011 Survey responses'!FE114)","v":5},{"$f":"IF('2011 Survey responses'!FF114<0.5,\"\",'2011 Survey responses'!FF114)","v":3},{"$f":"IF('2011 Survey responses'!FG114<0.5,\"\",'2011 Survey responses'!FG114)","v":5},{"$f":"IF('2011 Survey responses'!FH114<0.5,\"\",'2011 Survey responses'!FH114)","v":3},{"$f":"IF('2011 Survey responses'!FL114<0.5,\"\",'2011 Survey responses'!FL114)","v":5},{"$f":"IF('2011 Survey responses'!FM114<0.5,\"\",'2011 Survey responses'!FM114)","v":3},{"$f":"IF('2011 Survey responses'!FO114<0.5,\"\",'2011 Survey responses'!FO114)","v":5},{"$f":"IF('2011 Survey responses'!FQ114<0.5,\"\",'2011 Survey responses'!FQ114)","v":5}]
["Mongolia",{"$f":"IF(SUM(F115)<1,\"\",AVERAGEIF('2011 Survey responses'!B115:CP115,\">1\"))","v":2.5657894736842106},{"$f":"IF(SUM(F115)<1,\"\",AVERAGEIF('2011 Survey responses'!B115:AO115,\">1\"))","v":2.6857142857142855},{"$f":"IF(SUM(F115)<1,\"\",AVERAGEIF('2011 Survey responses'!B115:BV115,\">1\"))","v":2.6779661016949152},{"$f":"IF(SUM(F115)<1,\"\",AVERAGEIF('2011 Survey responses'!V115:BV115,\">1\"))","v":2.5384615384615383},{"$f":"IF(SUM('2011 Survey responses'!B115:U115)<1,\"\",(AVERAGEIFS('2011 Survey responses'!B115:U115,'2011 Survey responses'!B115:U115,\">1\")))","v":2.95},{"$f":"IF(SUM('2011 Survey responses'!B115:H115)<1,\"\",(AVERAGEIFS('2011 Survey responses'!B115:H115,'2011 Survey responses'!B115:H115,\">1\")))","v":3.5714285714285716},{"$f":"IF(SUM('2011 Survey responses'!I115:S115)<1,\"\",(AVERAGEIFS('2011 Survey responses'!I115:S115,'2011 Survey responses'!I115:S115,\">1\")))","v":2.6363636363636362},{"$f":"IF(SUM('2011 Survey responses'!T115:U115)<2.1,\"\",(AVERAGEIFS('2011 Survey responses'!T115:U115,'2011 Survey responses'!T115:U115,\">1\")))","v":2.5},{"$f":"IF(SUM('2011 Survey responses'!B115:C115)<2.1,\"\",((SUMIF('2011 Survey responses'!B115:C115,\">1\")+SUMIF('2011 Survey responses'!F115,\">1\"))/(COUNTIF('2011 Survey responses'!B115:C115,\">1\")+COUNTIF('2011 Survey responses'!F115,\">1\"))))","v":3.6666666666666665},{"$f":"IF(SUM('2011 Survey responses'!D115:E115)<2.1,\"\",(AVERAGEIFS('2011 Survey responses'!D115:E115,'2011 Survey responses'!D115:E115,\">1\")))","v":3.5},{"$f":"IF(('2011 Survey responses'!B115+'2011 Survey responses'!D115)<2.1,\"\",((SUMIF('2011 Survey responses'!B115,\">1\")+SUMIF('2011 Survey responses'!D115,\">1\")+SUMIF('2011 Survey responses'!F115,\">1\")+SUMIF('2011 Survey responses'!K115,\">1\"))/(COUNTIF('2011 Survey responses'!B115,\">1\")+COUNTIF('2011 Survey responses'!D115,\">1\")+COUNTIF('2011 Survey responses'!F115,\">1\")+COUNTIF('2011 Survey responses'!K115,\">1\"))))","v":4},{"$f":"IF(SUM('2011 Survey responses'!G115:H115)<2.1,\"\",(AVERAGEIFS('2011 Survey responses'!G115:H115,'2011 Survey responses'!G115:H115,\">1\")))","v":3.5},{"$f":"IF(SUM('2011 Survey responses'!F115:G115)<1.5,\"\",MAX('2011 Survey responses'!F115,'2011 Survey responses'!G115))","v":4},{"$f":"IF(SUM('2011 Survey responses'!G115:H115)<1,\"\",MAX('2011 Survey responses'!G115,'2011 Survey responses'!H115))","v":4},{"$f":"IF(SUM('2011 Survey responses'!I115:L115)<4.1,\"\",(AVERAGEIFS('2011 Survey responses'!I115:L115,'2011 Survey responses'!I115:L115,\">1\")))","v":3},{"$f":"IF(SUM('2011 Survey responses'!M115:S115)<4.1,\"\",(AVERAGEIFS('2011 Survey responses'!M115:S115,'2011 Survey responses'!M115:S115,\">1\")))","v":2.4285714285714284},{"$f":"IF(SUM('2011 Survey responses'!T115:U115)<2.1,\"\",(AVERAGEIFS('2011 Survey responses'!T115:U115,'2011 Survey responses'!T115:U115,\">1\")))","v":2.5},{"$f":"IF(SUM('2011 Survey responses'!V115:AO115)<1,\"\",(AVERAGEIFS('2011 Survey responses'!V115:AO115,'2011 Survey responses'!V115:AO115,\">1\")))","v":2.3333333333333335},{"$f":"IF(SUM('2011 Survey responses'!V115:AA115)<1,\"\",(AVERAGEIFS('2011 Survey responses'!V115:AA115,'2011 Survey responses'!V115:AA115,\">1\")))","v":2.5},{"$f":"IF(SUM('2011 Survey responses'!AB115:AH115)<1,\"\",(AVERAGEIFS('2011 Survey responses'!AB115:AH115,'2011 Survey responses'!AB115:AH115,\">1\")))","v":2.3333333333333335},{"$f":"IF(SUM('2011 Survey responses'!AI115:AO115)<1,\"\",(AVERAGEIFS('2011 Survey responses'!AI115:AO115,'2011 Survey responses'!AI115:AO115,\">1\")))","v":2},{"$f":"IF(('2011 Survey responses'!Y115+'2011 Survey responses'!AI115+'2011 Survey responses'!AK115)<3.1,\"\",((SUMIF('2011 Survey responses'!Y115,\">1\")+SUMIF('2011 Survey responses'!AI115,\">1\")+SUMIF('2011 Survey responses'!AK115,\">1\")+SUMIF('2011 Survey responses'!AM115,\">1\"))/(COUNTIF('2011 Survey responses'!Y115,\">1\")+COUNTIF('2011 Survey responses'!AI115,\">1\")+COUNTIF('2011 Survey responses'!AK115,\">1\")+COUNTIF('2011 Survey responses'!AM115,\">1\"))))","v":2},{"$f":"IF(('2011 Survey responses'!W115)<1.1,\"\",('2011 Survey responses'!W115))","v":3},{"$f":"IF(('2011 Survey responses'!Y115)<1.1,\"\",('2011 Survey responses'!Y115))","v":2},{"$f":"IF(('2011 Survey responses'!Z115)<1.1,\"\",('2011 Survey responses'!Z115))","v":2},{"$f":"IF(('2011 Survey responses'!V115+'2011 Survey responses'!X115+'2011 Survey responses'!AA115)<3.1,\"\",((SUMIF('2011 Survey responses'!V115,\">1\")+SUMIF('2011 Survey responses'!X115,\">1\")+SUMIF('2011 Survey responses'!AA115,\">1\"))/(COUNTIF('2011 Survey responses'!V115,\">1\")+COUNTIF('2011 Survey responses'!X115,\">1\")+COUNTIF('2011 Survey responses'!AA115,\">1\"))))","v":2.6666666666666665},{"$f":"IF(('2011 Survey responses'!V115+'2011 Survey responses'!Y115+'2011 Survey responses'!AA115)<3.1,\"\",((SUMIF('2011 Survey responses'!V115,\">1\")+SUMIF('2011 Survey responses'!Y115,\">1\")+SUMIF('2011 Survey responses'!AA115,\">1\"))/(COUNTIF('2011 Survey responses'!V115,\">1\")+COUNTIF('2011 Survey responses'!Y115,\">1\")+COUNTIF('2011 Survey responses'!AA115,\">1\"))))","v":2.6666666666666665},{"$f":"IF(SUM('2011 Survey responses'!AB115:AH115)<1,\"\",(AVERAGEIFS('2011 Survey responses'!AB115:AH115,'2011 Survey responses'!AB115:AH115,\">1\")))","v":2.3333333333333335},{"$f":"IF(SUM('2011 Survey responses'!AI115:AO115)<7.1,\"\",(AVERAGEIFS('2011 Survey responses'!AI115:AO115,'2011 Survey responses'!AI115:AO115,\">1\")))","v":2},{"$f":"IF(('2011 Survey responses'!AH115)<1.1,\"\",('2011 Survey responses'!AH115))","v":""},{"$f":"IF(SUM('2011 Survey responses'!AP115:BV115)<1,\"\",(AVERAGEIFS('2011 Survey responses'!AP115:BV115,'2011 Survey responses'!AP115:BV115,\">1\")))","v":2.6666666666666665},{"$f":"IF(SUM('2011 Survey responses'!AP115:AS115)<4.1,\"\",(AVERAGEIFS('2011 Survey responses'!AP115:AS115,'2011 Survey responses'!AP115:AS115,\">1\")))","v":2.6666666666666665},{"$f":"IF(SUM('2011 Survey responses'!AT115:BF115)<1,\"\",(AVERAGEIFS('2011 Survey responses'!AT115:BF115,'2011 Survey responses'!AT115:BF115,\">1\")))","v":2.6},{"$f":"IF(SUM('2011 Survey responses'!BG115:BO115)<1,\"\",(AVERAGEIFS('2011 Survey responses'!BG115:BO115,'2011 Survey responses'!BG115:BO115,\">1\")))","v":3},{"$f":"IF(SUM('2011 Survey responses'!BP115:BS115)<1,\"\",(AVERAGEIFS('2011 Survey responses'!BP115:BS115,'2011 Survey responses'!BP115:BS115,\">1\")))","v":2},{"$f":"IF(SUM('2011 Survey responses'!BT115:BV115)<3.1,\"\",(AVERAGEIFS('2011 Survey responses'!BT115:BV115,'2011 Survey responses'!BT115:BV115,\">1\")))","v":2},{"$f":"IF(('2011 Survey responses'!AQ115+'2011 Survey responses'!AR115+'2011 Survey responses'!BG115)<3.1,\"\",((SUMIF('2011 Survey responses'!AQ115,\">1\")+SUMIF('2011 Survey responses'!AR115,\">1\")+SUMIF('2011 Survey responses'!BG115,\">1\"))/(COUNTIF('2011 Survey responses'!AQ115,\">1\")+COUNTIF('2011 Survey responses'!AR115,\">1\")+COUNTIF('2011 Survey responses'!BG115,\">1\"))))","v":3.3333333333333335},{"$f":"IF(SUM('2011 Survey responses'!AP115:AS115)<4.1,\"\",(AVERAGEIFS('2011 Survey responses'!AP115:AS115,'2011 Survey responses'!AP115:AS115,\">1\")))","v":2.6666666666666665},{"$f":"IF(('2011 Survey responses'!AU115+'2011 Survey responses'!AX115+'2011 Survey responses'!BA115+'2011 Survey responses'!BC115+'2011 Survey responses'!BD115)<5.1,\"\",(SUMIF('2011 Survey responses'!AU115,\">1\")+SUMIF('2011 Survey responses'!AX115,\">1\")+SUMIF('2011 Survey responses'!BA115,\">1\")+SUMIF('2011 Survey responses'!BC115,\">1\")+SUMIF('2011 Survey responses'!BD115,\">1\"))/(COUNTIF('2011 Survey responses'!AU115,\">1\")+COUNTIF('2011 Survey responses'!AX115,\">1\")+COUNTIF('2011 Survey responses'!BA115,\">1\")+COUNTIF('2011 Survey responses'!BC115,\">1\")+COUNTIF('2011 Survey responses'!BD115,\">1\")))","v":2.6666666666666665},{"$f":"IF(('2011 Survey responses'!AT115)<1.1,\"\",('2011 Survey responses'!AT115))","v":3},{"$f":"IF(SUM('2011 Survey responses'!AV115:AW115)<2.1,\"\",(AVERAGEIFS('2011 Survey responses'!AV115:AW115,'2011 Survey responses'!AV115:AW115,\">1\")))","v":2.5},{"$f":"IF(('2011 Survey responses'!AW115+'2011 Survey responses'!AY115)<2.1,\"\",(SUMIF('2011 Survey responses'!AW115,\">1\")+SUMIF('2011 Survey responses'!AY115,\">1\"))/(COUNTIF('2011 Survey responses'!AW115,\">1\")+COUNTIF('2011 Survey responses'!AY115,\">1\")))","v":2},{"$f":"IF(('2011 Survey responses'!AZ115)<1.1,\"\",('2011 Survey responses'!AZ115))","v":2},2,1,2,1,{"$f":"IF(('2011 Survey responses'!BE115)<1.1,\"\",('2011 Survey responses'!BE115))","v":2},{"$f":"IF(('2011 Survey responses'!AY115+'2011 Survey responses'!BB115+'2011 Survey responses'!BF115)<3.1,\"\",(SUMIF('2011 Survey responses'!AY115,\">1\")+SUMIF('2011 Survey responses'!BB115,\">1\")+SUMIF('2011 Survey responses'!BF115,\">1\"))/(COUNTIF('2011 Survey responses'!AY115,\">1\")+COUNTIF('2011 Survey responses'!BB115,\">1\")+COUNTIF('2011 Survey responses'!BF115,\">1\")))","v":3},2.5,{"$f":"IF(SUM('2011 Survey responses'!BT115:BV115)<3.1,\"\",(AVERAGEIFS('2011 Survey responses'!BT115:BV115,'2011 Survey responses'!BT115:BV115,\">1\")))","v":2},{"$f":"IF(SUM('2011 Survey responses'!BW115:CP115)<1,\"\",(AVERAGEIFS('2011 Survey responses'!BW115:CP115,'2011 Survey responses'!BW115:CP115,\">1\")))","v":2.1764705882352939},{"$f":"IF(SUM('2011 Survey responses'!BW115:CF115)<1,\"\",(AVERAGEIFS('2011 Survey responses'!BW115:CF115,'2011 Survey responses'!BW115:CF115,\">1\")))","v":2.375},{"$f":"IF(SUM('2011 Survey responses'!CG115:CP115)<1,\"\",(AVERAGEIFS('2011 Survey responses'!CG115:CP115,'2011 Survey responses'!CG115:CP115,\">1\")))","v":2},{"$f":"IF(SUM('2011 Survey responses'!BX115:CF115)<1,\"\",(AVERAGEIFS('2011 Survey responses'!BX115:CF115,'2011 Survey responses'!BX115:CF115,\">1\")))","v":2.4285714285714284},{"$f":"IF(SUM('2011 Survey responses'!CH115:CP115)<1,\"\",(AVERAGEIFS('2011 Survey responses'!CH115:CP115,'2011 Survey responses'!CH115:CP115,\">1\")))","v":2},{"$f":"IF(SUM('2011 Survey responses'!BW115:CP115)<1,\"\",(AVERAGEIFS('2011 Survey responses'!BW115:CP115,'2011 Survey responses'!BW115:CP115,\">1\")))","v":2.1764705882352939},{"$f":"IF(('2011 Survey responses'!BW115+'2011 Survey responses'!CG115)<2.1,\"\",(SUMIF('2011 Survey responses'!BW115,\">1\")+SUMIF('2011 Survey responses'!CG115,\">1\"))/(COUNTIF('2011 Survey responses'!BW115,\">1\")+COUNTIF('2011 Survey responses'!CG115,\">1\")))","v":2},{"$f":"IF(('2011 Survey responses'!BX115+'2011 Survey responses'!CH115)<2.1,\"\",(SUMIF('2011 Survey responses'!BX115,\">1\")+SUMIF('2011 Survey responses'!CH115,\">1\"))/(COUNTIF('2011 Survey responses'!BX115,\">1\")+COUNTIF('2011 Survey responses'!CH115,\">1\")))","v":2.5},{"$f":"IF(('2011 Survey responses'!BY115+'2011 Survey responses'!CI115)<2.1,\"\",(SUMIF('2011 Survey responses'!BY115,\">1\")+SUMIF('2011 Survey responses'!CI115,\">1\"))/(COUNTIF('2011 Survey responses'!BY115,\">1\")+COUNTIF('2011 Survey responses'!CI115,\">1\")))","v":2},{"$f":"IF('2011 Survey responses'!CQ115<0.5,\"\",'2011 Survey responses'!CQ115)","v":""},{"$f":"IF('2011 Survey responses'!CR115<0.5,\"\",'2011 Survey responses'!CR115)","v":""},{"$f":"IF('2011 Survey responses'!CS115<0.5,\"\",'2011 Survey responses'!CS115)","v":5},{"$f":"IF('2011 Survey responses'!CT115<0.5,\"\",'2011 Survey responses'!CT115)","v":""},{"$f":"IF('2011 Survey responses'!CU115<0.5,\"\",'2011 Survey responses'!CU115)","v":5},{"$f":"IF('2011 Survey responses'!CV115<0.5,\"\",'2011 Survey responses'!CV115)","v":""},{"$f":"IF(SUM('2011 Survey responses'!CW115:DL115)<1,\"\",(AVERAGE('2011 Survey responses'!CW115:DL115)))","v":1.8125},{"$f":"IF(SUM('2011 Survey responses'!CW115:CZ115)<1,\"\",(AVERAGE('2011 Survey responses'!CW115:CZ115)))","v":1.75},{"$f":"IF(SUM('2011 Survey responses'!DA115:DD115)<1,\"\",(AVERAGE('2011 Survey responses'!DA115:DD115)))","v":1.75},{"$f":"IF(SUM('2011 Survey responses'!DE115:DH115)<1,\"\",(AVERAGE('2011 Survey responses'!DE115:DH115)))","v":1.75},{"$f":"IF(SUM('2011 Survey responses'!DI115:DL115)<1,\"\",(AVERAGE('2011 Survey responses'!DI115:DL115)))","v":2},{"$f":"IF(('2011 Survey responses'!CW115+'2011 Survey responses'!DA115+'2011 Survey responses'!DE115+'2011 Survey responses'!DI115)<1,\"\",AVERAGE('2011 Survey responses'!CW115,'2011 Survey responses'!DA115,'2011 Survey responses'!DE115,'2011 Survey responses'!DI115))","v":2.5},{"$f":"IF(('2011 Survey responses'!CX115+'2011 Survey responses'!DB115+'2011 Survey responses'!DF115+'2011 Survey responses'!DJ115)<1,\"\",AVERAGE('2011 Survey responses'!CX115,'2011 Survey responses'!DB115,'2011 Survey responses'!DF115,'2011 Survey responses'!DJ115))","v":1.5},{"$f":"IF(('2011 Survey responses'!CY115+'2011 Survey responses'!DC115+'2011 Survey responses'!DG115+'2011 Survey responses'!DK115)<1,\"\",AVERAGE('2011 Survey responses'!CY115,'2011 Survey responses'!DC115,'2011 Survey responses'!DG115,'2011 Survey responses'!DK115))","v":1.25},{"$f":"IF(('2011 Survey responses'!CZ115+'2011 Survey responses'!DD115+'2011 Survey responses'!DH115+'2011 Survey responses'!DL115)<1,\"\",AVERAGE('2011 Survey responses'!CZ115,'2011 Survey responses'!DD115,'2011 Survey responses'!DH115,'2011 Survey responses'!DL115))","v":2},{"$f":"IF('2011 Survey responses'!CW115<0.5,\"\",'2011 Survey responses'!CW115)","v":2},{"$f":"IF('2011 Survey responses'!CX115<0.5,\"\",'2011 Survey responses'!CX115)","v":2},{"$f":"IF('2011 Survey responses'!CY115<0.5,\"\",'2011 Survey responses'!CY115)","v":1},{"$f":"IF('2011 Survey responses'!CZ115<0.5,\"\",'2011 Survey responses'!CZ115)","v":2},{"$f":"IF('2011 Survey responses'!DA115<0.5,\"\",'2011 Survey responses'!DA115)","v":3},{"$f":"IF('2011 Survey responses'!DB115<0.5,\"\",'2011 Survey responses'!DB115)","v":1},{"$f":"IF('2011 Survey responses'!DC115<0.5,\"\",'2011 Survey responses'!DC115)","v":1},{"$f":"IF('2011 Survey responses'!DD115<0.5,\"\",'2011 Survey responses'!DD115)","v":2},{"$f":"IF('2011 Survey responses'!DE115<0.5,\"\",'2011 Survey responses'!DE115)","v":3},{"$f":"IF('2011 Survey responses'!DF115<0.5,\"\",'2011 Survey responses'!DF115)","v":1},{"$f":"IF('2011 Survey responses'!DG115<0.5,\"\",'2011 Survey responses'!DG115)","v":1},{"$f":"IF('2011 Survey responses'!DH115<0.5,\"\",'2011 Survey responses'!DH115)","v":2},{"$f":"IF('2011 Survey responses'!DI115<0.5,\"\",'2011 Survey responses'!DI115)","v":2},{"$f":"IF('2011 Survey responses'!DJ115<0.5,\"\",'2011 Survey responses'!DJ115)","v":2},{"$f":"IF('2011 Survey responses'!DK115<0.5,\"\",'2011 Survey responses'!DK115)","v":2},{"$f":"IF('2011 Survey responses'!DL115<0.5,\"\",'2011 Survey responses'!DL115)","v":2},{"$f":"IF('2011 Survey responses'!DU115=4,4,IF('2011 Survey responses'!DU115=5,4,\"\"))","v":4},{"$f":"IF('2011 Survey responses'!DV115=4,3,IF('2011 Survey responses'!DV115=5,3,\"\"))","v":3},2,{"$f":"IF(CQ115=2,CQ115,IF(CO115=4,CO115,IF(CP115=3,CP115,IF('2011 Survey responses'!GT115=1,1,\"\"))))","v":2},{"$f":"IF('2011 Survey responses'!DO115<0.5,\"\",'2011 Survey responses'!DO115)","v":4},{"$f":"IF('2011 Survey responses'!DP115<0.5,\"\",'2011 Survey responses'!DP115)","v":5},{"$f":"IF('2011 Survey responses'!DQ115<0.5,\"\",'2011 Survey responses'!DQ115)","v":4},{"$f":"IF('2011 Survey responses'!DR115<0.5,\"\",'2011 Survey responses'!DR115)","v":3},{"$f":"IF('2011 Survey responses'!DS115<0.5,\"\",'2011 Survey responses'!DS115)","v":5},{"$f":"IF('2011 Survey responses'!DT115<0.5,\"\",'2011 Survey responses'!DT115)","v":5},{"$f":"IF('2011 Survey responses'!DU115<0.5,\"\",'2011 Survey responses'!DU115)","v":4},{"$f":"IF('2011 Survey responses'!DV115<0.5,\"\",'2011 Survey responses'!DV115)","v":5},{"$f":"IF('2011 Survey responses'!DW115<0.5,\"\",'2011 Survey responses'!DW115)","v":4},{"$f":"IF('2011 Survey responses'!DX115<0.5,\"\",'2011 Survey responses'!DX115)","v":4},{"$f":"IF('2011 Survey responses'!DY115<0.5,\"\",'2011 Survey responses'!DY115)","v":4},{"$f":"IF('2011 Survey responses'!DZ115<0.5,\"\",'2011 Survey responses'!DZ115)","v":4},{"$f":"IF('2011 Survey responses'!EA115<0.5,\"\",'2011 Survey responses'!EA115)","v":5},{"$f":"IF('2011 Survey responses'!EB115<0.5,\"\",'2011 Survey responses'!EB115)","v":4},{"$f":"IF('2011 Survey responses'!EC115<0.5,\"\",'2011 Survey responses'!EC115)","v":5},{"$f":"IF('2011 Survey responses'!ED115<0.5,\"\",'2011 Survey responses'!ED115)","v":3},{"$f":"IF('2011 Survey responses'!EE115<0.5,\"\",'2011 Survey responses'!EE115)","v":3},{"$f":"IF('2011 Survey responses'!EF115<0.5,\"\",'2011 Survey responses'!EF115)","v":5},{"$f":"IF('2011 Survey responses'!EG115<0.5,\"\",'2011 Survey responses'!EG115)","v":5},{"$f":"IF('2011 Survey responses'!EH115<0.5,\"\",'2011 Survey responses'!EH115)","v":5},{"$f":"IF('2011 Survey responses'!EI115<0.5,\"\",'2011 Survey responses'!EI115)","v":5},{"$f":"IF('2011 Survey responses'!EJ115<0.5,\"\",'2011 Survey responses'!EJ115)","v":5},{"$f":"IF('2011 Survey responses'!EK115<0.5,\"\",'2011 Survey responses'!EK115)","v":5},{"$f":"IF('2011 Survey responses'!EL115<0.5,\"\",'2011 Survey responses'!EL115)","v":5},{"$f":"IF('2011 Survey responses'!EM115<0.5,\"\",'2011 Survey responses'!EM115)","v":4},{"$f":"IF('2011 Survey responses'!EN115<0.5,\"\",'2011 Survey responses'!EN115)","v":4},{"$f":"IF('2011 Survey responses'!EO115<0.5,\"\",'2011 Survey responses'!EO115)","v":4},{"$f":"IF('2011 Survey responses'!EP115<0.5,\"\",'2011 Survey responses'!EP115)","v":4},{"$f":"IF(('2011 Survey responses'!EW115+'2011 Survey responses'!EX115)>=2,AVERAGE('2011 Survey responses'!EW115,'2011 Survey responses'!EY115),\"\")","v":4.5},{"$f":"IF('2011 Survey responses'!EX115<0.5,\"\",'2011 Survey responses'!EX115)","v":5},{"$f":"IF('2011 Survey responses'!EZ115<0.5,\"\",'2011 Survey responses'!EZ115)","v":4},{"$f":"IF('2011 Survey responses'!FB115<0.5,\"\",'2011 Survey responses'!FB115)","v":4},{"$f":"IF('2011 Survey responses'!FD115<0.5,\"\",'2011 Survey responses'!FD115)","v":4},{"$f":"IF('2011 Survey responses'!FC115<0.5,\"\",'2011 Survey responses'!FC115)","v":4},{"$f":"IF(('2011 Survey responses'!EM115+'2011 Survey responses'!EN115)>=2,AVERAGE('2011 Survey responses'!EM115,'2011 Survey responses'!EN115),\"\")","v":4},{"$f":"IF('2011 Survey responses'!ES115<0.5,\"\",'2011 Survey responses'!ES115)","v":5},{"$f":"IF(('2011 Survey responses'!ET115+'2011 Survey responses'!EU115)>=2,AVERAGE('2011 Survey responses'!ET115,'2011 Survey responses'!EU115),\"\")","v":5},{"$f":"IF('2011 Survey responses'!EV115<0.5,\"\",'2011 Survey responses'!EV115)","v":3},{"$f":"IF('2011 Survey responses'!FA115<0.5,\"\",'2011 Survey responses'!FA115)","v":4},{"$f":"IF('2011 Survey responses'!ER115<0.5,\"\",'2011 Survey responses'!ER115)","v":5},{"$f":"IF(('2011 Survey responses'!EO115+'2011 Survey responses'!EP115)>=2,AVERAGE('2011 Survey responses'!EO115,'2011 Survey responses'!EP115),\"\")","v":4},{"$f":"IF('2011 Survey responses'!EQ115<0.5,\"\",'2011 Survey responses'!EQ115)","v":4},{"$f":"IF('2011 Survey responses'!ET115<0.5,\"\",'2011 Survey responses'!ET115)","v":5},{"$f":"IF('2011 Survey responses'!EU115<0.5,\"\",'2011 Survey responses'!EU115)","v":5},{"$f":"IF('2011 Survey responses'!EW115<0.5,\"\",'2011 Survey responses'!EW115)","v":4},{"$f":"IF('2011 Survey responses'!EY115<0.5,\"\",'2011 Survey responses'!EY115)","v":5},{"$f":"IF('2011 Survey responses'!FU115<0.5,\"\",'2011 Survey responses'!FU115)","v":3},{"$f":"IF(('2011 Survey responses'!FL115+'2011 Survey responses'!FM115)>=2,AVERAGE('2011 Survey responses'!FL115,'2011 Survey responses'!FM115),\"\")","v":3},{"$f":"IF(('2011 Survey responses'!FO115+'2011 Survey responses'!FQ115)>=2,AVERAGE('2011 Survey responses'!FO115,'2011 Survey responses'!FQ115),\"\")","v":3},{"$f":"IF('2011 Survey responses'!FJ115<0.5,\"\",'2011 Survey responses'!FJ115)","v":3},{"$f":"IF('2011 Survey responses'!FT115<0.5,\"\",'2011 Survey responses'!FT115)","v":4},{"$f":"IF('2011 Survey responses'!FR115<0.5,\"\",'2011 Survey responses'!FR115)","v":4},{"$f":"IF('2011 Survey responses'!FK115<0.5,\"\",'2011 Survey responses'!FK115)","v":3},{"$f":"IF('2011 Survey responses'!FP115<0.5,\"\",'2011 Survey responses'!FP115)","v":3},{"$f":"IF('2011 Survey responses'!FN115<0.5,\"\",'2011 Survey responses'!FN115)","v":4},{"$f":"IF(('2011 Survey responses'!FE115+'2011 Survey responses'!FF115)>=2,AVERAGE('2011 Survey responses'!FE115,'2011 Survey responses'!FF115),\"\")","v":1},{"$f":"IF('2011 Survey responses'!FS115<0.5,\"\",'2011 Survey responses'!FS115)","v":3},{"$f":"IF('2011 Survey responses'!FV115<0.5,\"\",'2011 Survey responses'!FV115)","v":3},{"$f":"IF(('2011 Survey responses'!FG115+'2011 Survey responses'!FH115)>=2,AVERAGE('2011 Survey responses'!FG115,'2011 Survey responses'!FH115),\"\")","v":2},{"$f":"IF('2011 Survey responses'!FI115<0.5,\"\",'2011 Survey responses'!FI115)","v":3},{"$f":"IF('2011 Survey responses'!FE115<0.5,\"\",'2011 Survey responses'!FE115)","v":1},{"$f":"IF('2011 Survey responses'!FF115<0.5,\"\",'2011 Survey responses'!FF115)","v":1},{"$f":"IF('2011 Survey responses'!FG115<0.5,\"\",'2011 Survey responses'!FG115)","v":2},{"$f":"IF('2011 Survey responses'!FH115<0.5,\"\",'2011 Survey responses'!FH115)","v":2},{"$f":"IF('2011 Survey responses'!FL115<0.5,\"\",'2011 Survey responses'!FL115)","v":3},{"$f":"IF('2011 Survey responses'!FM115<0.5,\"\",'2011 Survey responses'!FM115)","v":3},{"$f":"IF('2011 Survey responses'!FO115<0.5,\"\",'2011 Survey responses'!FO115)","v":3},{"$f":"IF('2011 Survey responses'!FQ115<0.5,\"\",'2011 Survey responses'!FQ115)","v":3}]
["Montenegro",{"$f":"IF(SUM(F116)<1,\"\",AVERAGEIF('2011 Survey responses'!B116:CP116,\">1\"))","v":3.5357142857142856},{"$f":"IF(SUM(F116)<1,\"\",AVERAGEIF('2011 Survey responses'!B116:AO116,\">1\"))","v":3.5294117647058822},{"$f":"IF(SUM(F116)<1,\"\",AVERAGEIF('2011 Survey responses'!B116:BV116,\">1\"))","v":3.393939393939394},{"$f":"IF(SUM(F116)<1,\"\",AVERAGEIF('2011 Survey responses'!V116:BV116,\">1\"))","v":3.3529411764705883},{"$f":"IF(SUM('2011 Survey responses'!B116:U116)<1,\"\",(AVERAGEIFS('2011 Survey responses'!B116:U116,'2011 Survey responses'!B116:U116,\">1\")))","v":3.5333333333333332},{"$f":"IF(SUM('2011 Survey responses'!B116:H116)<1,\"\",(AVERAGEIFS('2011 Survey responses'!B116:H116,'2011 Survey responses'!B116:H116,\">1\")))","v":3.2},{"$f":"IF(SUM('2011 Survey responses'!I116:S116)<1,\"\",(AVERAGEIFS('2011 Survey responses'!I116:S116,'2011 Survey responses'!I116:S116,\">1\")))","v":3.625},{"$f":"IF(SUM('2011 Survey responses'!T116:U116)<2.1,\"\",(AVERAGEIFS('2011 Survey responses'!T116:U116,'2011 Survey responses'!T116:U116,\">1\")))","v":4},{"$f":"IF(SUM('2011 Survey responses'!B116:C116)<2.1,\"\",((SUMIF('2011 Survey responses'!B116:C116,\">1\")+SUMIF('2011 Survey responses'!F116,\">1\"))/(COUNTIF('2011 Survey responses'!B116:C116,\">1\")+COUNTIF('2011 Survey responses'!F116,\">1\"))))","v":3.5},{"$f":"IF(SUM('2011 Survey responses'!D116:E116)<2.1,\"\",(AVERAGEIFS('2011 Survey responses'!D116:E116,'2011 Survey responses'!D116:E116,\">1\")))","v":5},{"$f":"IF(('2011 Survey responses'!B116+'2011 Survey responses'!D116)<2.1,\"\",((SUMIF('2011 Survey responses'!B116,\">1\")+SUMIF('2011 Survey responses'!D116,\">1\")+SUMIF('2011 Survey responses'!F116,\">1\")+SUMIF('2011 Survey responses'!K116,\">1\"))/(COUNTIF('2011 Survey responses'!B116,\">1\")+COUNTIF('2011 Survey responses'!D116,\">1\")+COUNTIF('2011 Survey responses'!F116,\">1\")+COUNTIF('2011 Survey responses'!K116,\">1\"))))","v":4.25},{"$f":"IF(SUM('2011 Survey responses'!G116:H116)<2.1,\"\",(AVERAGEIFS('2011 Survey responses'!G116:H116,'2011 Survey responses'!G116:H116,\">1\")))","v":2},{"$f":"IF(SUM('2011 Survey responses'!F116:G116)<1.5,\"\",MAX('2011 Survey responses'!F116,'2011 Survey responses'!G116))","v":2},{"$f":"IF(SUM('2011 Survey responses'!G116:H116)<1,\"\",MAX('2011 Survey responses'!G116,'2011 Survey responses'!H116))","v":2},{"$f":"IF(SUM('2011 Survey responses'!I116:L116)<4.1,\"\",(AVERAGEIFS('2011 Survey responses'!I116:L116,'2011 Survey responses'!I116:L116,\">1\")))","v":4.5},{"$f":"IF(SUM('2011 Survey responses'!M116:S116)<4.1,\"\",(AVERAGEIFS('2011 Survey responses'!M116:S116,'2011 Survey responses'!M116:S116,\">1\")))","v":3.3333333333333335},{"$f":"IF(SUM('2011 Survey responses'!T116:U116)<2.1,\"\",(AVERAGEIFS('2011 Survey responses'!T116:U116,'2011 Survey responses'!T116:U116,\">1\")))","v":4},{"$f":"IF(SUM('2011 Survey responses'!V116:AO116)<1,\"\",(AVERAGEIFS('2011 Survey responses'!V116:AO116,'2011 Survey responses'!V116:AO116,\">1\")))","v":3.5263157894736841},{"$f":"IF(SUM('2011 Survey responses'!V116:AA116)<1,\"\",(AVERAGEIFS('2011 Survey responses'!V116:AA116,'2011 Survey responses'!V116:AA116,\">1\")))","v":4},{"$f":"IF(SUM('2011 Survey responses'!AB116:AH116)<1,\"\",(AVERAGEIFS('2011 Survey responses'!AB116:AH116,'2011 Survey responses'!AB116:AH116,\">1\")))","v":4.5},{"$f":"IF(SUM('2011 Survey responses'!AI116:AO116)<1,\"\",(AVERAGEIFS('2011 Survey responses'!AI116:AO116,'2011 Survey responses'!AI116:AO116,\">1\")))","v":2.2857142857142856},{"$f":"IF(('2011 Survey responses'!Y116+'2011 Survey responses'!AI116+'2011 Survey responses'!AK116)<3.1,\"\",((SUMIF('2011 Survey responses'!Y116,\">1\")+SUMIF('2011 Survey responses'!AI116,\">1\")+SUMIF('2011 Survey responses'!AK116,\">1\")+SUMIF('2011 Survey responses'!AM116,\">1\"))/(COUNTIF('2011 Survey responses'!Y116,\">1\")+COUNTIF('2011 Survey responses'!AI116,\">1\")+COUNTIF('2011 Survey responses'!AK116,\">1\")+COUNTIF('2011 Survey responses'!AM116,\">1\"))))","v":2.5},{"$f":"IF(('2011 Survey responses'!W116)<1.1,\"\",('2011 Survey responses'!W116))","v":4},{"$f":"IF(('2011 Survey responses'!Y116)<1.1,\"\",('2011 Survey responses'!Y116))","v":4},{"$f":"IF(('2011 Survey responses'!Z116)<1.1,\"\",('2011 Survey responses'!Z116))","v":4},{"$f":"IF(('2011 Survey responses'!V116+'2011 Survey responses'!X116+'2011 Survey responses'!AA116)<3.1,\"\",((SUMIF('2011 Survey responses'!V116,\">1\")+SUMIF('2011 Survey responses'!X116,\">1\")+SUMIF('2011 Survey responses'!AA116,\">1\"))/(COUNTIF('2011 Survey responses'!V116,\">1\")+COUNTIF('2011 Survey responses'!X116,\">1\")+COUNTIF('2011 Survey responses'!AA116,\">1\"))))","v":4},{"$f":"IF(('2011 Survey responses'!V116+'2011 Survey responses'!Y116+'2011 Survey responses'!AA116)<3.1,\"\",((SUMIF('2011 Survey responses'!V116,\">1\")+SUMIF('2011 Survey responses'!Y116,\">1\")+SUMIF('2011 Survey responses'!AA116,\">1\"))/(COUNTIF('2011 Survey responses'!V116,\">1\")+COUNTIF('2011 Survey responses'!Y116,\">1\")+COUNTIF('2011 Survey responses'!AA116,\">1\"))))","v":4},{"$f":"IF(SUM('2011 Survey responses'!AB116:AH116)<1,\"\",(AVERAGEIFS('2011 Survey responses'!AB116:AH116,'2011 Survey responses'!AB116:AH116,\">1\")))","v":4.5},{"$f":"IF(SUM('2011 Survey responses'!AI116:AO116)<7.1,\"\",(AVERAGEIFS('2011 Survey responses'!AI116:AO116,'2011 Survey responses'!AI116:AO116,\">1\")))","v":2.2857142857142856},{"$f":"IF(('2011 Survey responses'!AH116)<1.1,\"\",('2011 Survey responses'!AH116))","v":""},{"$f":"IF(SUM('2011 Survey responses'!AP116:BV116)<1,\"\",(AVERAGEIFS('2011 Survey responses'!AP116:BV116,'2011 Survey responses'!AP116:BV116,\">1\")))","v":3.25},{"$f":"IF(SUM('2011 Survey responses'!AP116:AS116)<4.1,\"\",(AVERAGEIFS('2011 Survey responses'!AP116:AS116,'2011 Survey responses'!AP116:AS116,\">1\")))","v":4},{"$f":"IF(SUM('2011 Survey responses'!AT116:BF116)<1,\"\",(AVERAGEIFS('2011 Survey responses'!AT116:BF116,'2011 Survey responses'!AT116:BF116,\">1\")))","v":2.8461538461538463},{"$f":"IF(SUM('2011 Survey responses'!BG116:BO116)<1,\"\",(AVERAGEIFS('2011 Survey responses'!BG116:BO116,'2011 Survey responses'!BG116:BO116,\">1\")))","v":3.7777777777777777},{"$f":"IF(SUM('2011 Survey responses'!BP116:BS116)<1,\"\",(AVERAGEIFS('2011 Survey responses'!BP116:BS116,'2011 Survey responses'!BP116:BS116,\">1\")))","v":2.25},{"$f":"IF(SUM('2011 Survey responses'!BT116:BV116)<3.1,\"\",(AVERAGEIFS('2011 Survey responses'!BT116:BV116,'2011 Survey responses'!BT116:BV116,\">1\")))","v":4},{"$f":"IF(('2011 Survey responses'!AQ116+'2011 Survey responses'!AR116+'2011 Survey responses'!BG116)<3.1,\"\",((SUMIF('2011 Survey responses'!AQ116,\">1\")+SUMIF('2011 Survey responses'!AR116,\">1\")+SUMIF('2011 Survey responses'!BG116,\">1\"))/(COUNTIF('2011 Survey responses'!AQ116,\">1\")+COUNTIF('2011 Survey responses'!AR116,\">1\")+COUNTIF('2011 Survey responses'!BG116,\">1\"))))","v":4.666666666666667},{"$f":"IF(SUM('2011 Survey responses'!AP116:AS116)<4.1,\"\",(AVERAGEIFS('2011 Survey responses'!AP116:AS116,'2011 Survey responses'!AP116:AS116,\">1\")))","v":4},{"$f":"IF(('2011 Survey responses'!AU116+'2011 Survey responses'!AX116+'2011 Survey responses'!BA116+'2011 Survey responses'!BC116+'2011 Survey responses'!BD116)<5.1,\"\",(SUMIF('2011 Survey responses'!AU116,\">1\")+SUMIF('2011 Survey responses'!AX116,\">1\")+SUMIF('2011 Survey responses'!BA116,\">1\")+SUMIF('2011 Survey responses'!BC116,\">1\")+SUMIF('2011 Survey responses'!BD116,\">1\"))/(COUNTIF('2011 Survey responses'!AU116,\">1\")+COUNTIF('2011 Survey responses'!AX116,\">1\")+COUNTIF('2011 Survey responses'!BA116,\">1\")+COUNTIF('2011 Survey responses'!BC116,\">1\")+COUNTIF('2011 Survey responses'!BD116,\">1\")))","v":2.4},{"$f":"IF(('2011 Survey responses'!AT116)<1.1,\"\",('2011 Survey responses'!AT116))","v":2},{"$f":"IF(SUM('2011 Survey responses'!AV116:AW116)<2.1,\"\",(AVERAGEIFS('2011 Survey responses'!AV116:AW116,'2011 Survey responses'!AV116:AW116,\">1\")))","v":3.5},{"$f":"IF(('2011 Survey responses'!AW116+'2011 Survey responses'!AY116)<2.1,\"\",(SUMIF('2011 Survey responses'!AW116,\">1\")+SUMIF('2011 Survey responses'!AY116,\">1\"))/(COUNTIF('2011 Survey responses'!AW116,\">1\")+COUNTIF('2011 Survey responses'!AY116,\">1\")))","v":4},{"$f":"IF(('2011 Survey responses'!AZ116)<1.1,\"\",('2011 Survey responses'!AZ116))","v":2},2,2,2,2,{"$f":"IF(('2011 Survey responses'!BE116)<1.1,\"\",('2011 Survey responses'!BE116))","v":2},{"$f":"IF(('2011 Survey responses'!AY116+'2011 Survey responses'!BB116+'2011 Survey responses'!BF116)<3.1,\"\",(SUMIF('2011 Survey responses'!AY116,\">1\")+SUMIF('2011 Survey responses'!BB116,\">1\")+SUMIF('2011 Survey responses'!BF116,\">1\"))/(COUNTIF('2011 Survey responses'!AY116,\">1\")+COUNTIF('2011 Survey responses'!BB116,\">1\")+COUNTIF('2011 Survey responses'!BF116,\">1\")))","v":4},3.0138888888888888,{"$f":"IF(SUM('2011 Survey responses'!BT116:BV116)<3.1,\"\",(AVERAGEIFS('2011 Survey responses'!BT116:BV116,'2011 Survey responses'!BT116:BV116,\">1\")))","v":4},{"$f":"IF(SUM('2011 Survey responses'!BW116:CP116)<1,\"\",(AVERAGEIFS('2011 Survey responses'!BW116:CP116,'2011 Survey responses'!BW116:CP116,\">1\")))","v":4.0555555555555554},{"$f":"IF(SUM('2011 Survey responses'!BW116:CF116)<1,\"\",(AVERAGEIFS('2011 Survey responses'!BW116:CF116,'2011 Survey responses'!BW116:CF116,\">1\")))","v":3.7777777777777777},{"$f":"IF(SUM('2011 Survey responses'!CG116:CP116)<1,\"\",(AVERAGEIFS('2011 Survey responses'!CG116:CP116,'2011 Survey responses'!CG116:CP116,\">1\")))","v":4.333333333333333},{"$f":"IF(SUM('2011 Survey responses'!BX116:CF116)<1,\"\",(AVERAGEIFS('2011 Survey responses'!BX116:CF116,'2011 Survey responses'!BX116:CF116,\">1\")))","v":3.75},{"$f":"IF(SUM('2011 Survey responses'!CH116:CP116)<1,\"\",(AVERAGEIFS('2011 Survey responses'!CH116:CP116,'2011 Survey responses'!CH116:CP116,\">1\")))","v":4.25},{"$f":"IF(SUM('2011 Survey responses'!BW116:CP116)<1,\"\",(AVERAGEIFS('2011 Survey responses'!BW116:CP116,'2011 Survey responses'!BW116:CP116,\">1\")))","v":4.0555555555555554},{"$f":"IF(('2011 Survey responses'!BW116+'2011 Survey responses'!CG116)<2.1,\"\",(SUMIF('2011 Survey responses'!BW116,\">1\")+SUMIF('2011 Survey responses'!CG116,\">1\"))/(COUNTIF('2011 Survey responses'!BW116,\">1\")+COUNTIF('2011 Survey responses'!CG116,\">1\")))","v":4.5},{"$f":"IF(('2011 Survey responses'!BX116+'2011 Survey responses'!CH116)<2.1,\"\",(SUMIF('2011 Survey responses'!BX116,\">1\")+SUMIF('2011 Survey responses'!CH116,\">1\"))/(COUNTIF('2011 Survey responses'!BX116,\">1\")+COUNTIF('2011 Survey responses'!CH116,\">1\")))","v":4},{"$f":"IF(('2011 Survey responses'!BY116+'2011 Survey responses'!CI116)<2.1,\"\",(SUMIF('2011 Survey responses'!BY116,\">1\")+SUMIF('2011 Survey responses'!CI116,\">1\"))/(COUNTIF('2011 Survey responses'!BY116,\">1\")+COUNTIF('2011 Survey responses'!CI116,\">1\")))","v":3},{"$f":"IF('2011 Survey responses'!CQ116<0.5,\"\",'2011 Survey responses'!CQ116)","v":4},{"$f":"IF('2011 Survey responses'!CR116<0.5,\"\",'2011 Survey responses'!CR116)","v":4},{"$f":"IF('2011 Survey responses'!CS116<0.5,\"\",'2011 Survey responses'!CS116)","v":4},{"$f":"IF('2011 Survey responses'!CT116<0.5,\"\",'2011 Survey responses'!CT116)","v":4},{"$f":"IF('2011 Survey responses'!CU116<0.5,\"\",'2011 Survey responses'!CU116)","v":4},{"$f":"IF('2011 Survey responses'!CV116<0.5,\"\",'2011 Survey responses'!CV116)","v":2},{"$f":"IF(SUM('2011 Survey responses'!CW116:DL116)<1,\"\",(AVERAGE('2011 Survey responses'!CW116:DL116)))","v":2.4375},{"$f":"IF(SUM('2011 Survey responses'!CW116:CZ116)<1,\"\",(AVERAGE('2011 Survey responses'!CW116:CZ116)))","v":2.25},{"$f":"IF(SUM('2011 Survey responses'!DA116:DD116)<1,\"\",(AVERAGE('2011 Survey responses'!DA116:DD116)))","v":2.25},{"$f":"IF(SUM('2011 Survey responses'!DE116:DH116)<1,\"\",(AVERAGE('2011 Survey responses'!DE116:DH116)))","v":2.25},{"$f":"IF(SUM('2011 Survey responses'!DI116:DL116)<1,\"\",(AVERAGE('2011 Survey responses'!DI116:DL116)))","v":3},{"$f":"IF(('2011 Survey responses'!CW116+'2011 Survey responses'!DA116+'2011 Survey responses'!DE116+'2011 Survey responses'!DI116)<1,\"\",AVERAGE('2011 Survey responses'!CW116,'2011 Survey responses'!DA116,'2011 Survey responses'!DE116,'2011 Survey responses'!DI116))","v":2.25},{"$f":"IF(('2011 Survey responses'!CX116+'2011 Survey responses'!DB116+'2011 Survey responses'!DF116+'2011 Survey responses'!DJ116)<1,\"\",AVERAGE('2011 Survey responses'!CX116,'2011 Survey responses'!DB116,'2011 Survey responses'!DF116,'2011 Survey responses'!DJ116))","v":2.25},{"$f":"IF(('2011 Survey responses'!CY116+'2011 Survey responses'!DC116+'2011 Survey responses'!DG116+'2011 Survey responses'!DK116)<1,\"\",AVERAGE('2011 Survey responses'!CY116,'2011 Survey responses'!DC116,'2011 Survey responses'!DG116,'2011 Survey responses'!DK116))","v":3},{"$f":"IF(('2011 Survey responses'!CZ116+'2011 Survey responses'!DD116+'2011 Survey responses'!DH116+'2011 Survey responses'!DL116)<1,\"\",AVERAGE('2011 Survey responses'!CZ116,'2011 Survey responses'!DD116,'2011 Survey responses'!DH116,'2011 Survey responses'!DL116))","v":2.25},{"$f":"IF('2011 Survey responses'!CW116<0.5,\"\",'2011 Survey responses'!CW116)","v":2},{"$f":"IF('2011 Survey responses'!CX116<0.5,\"\",'2011 Survey responses'!CX116)","v":2},{"$f":"IF('2011 Survey responses'!CY116<0.5,\"\",'2011 Survey responses'!CY116)","v":3},{"$f":"IF('2011 Survey responses'!CZ116<0.5,\"\",'2011 Survey responses'!CZ116)","v":2},{"$f":"IF('2011 Survey responses'!DA116<0.5,\"\",'2011 Survey responses'!DA116)","v":2},{"$f":"IF('2011 Survey responses'!DB116<0.5,\"\",'2011 Survey responses'!DB116)","v":2},{"$f":"IF('2011 Survey responses'!DC116<0.5,\"\",'2011 Survey responses'!DC116)","v":3},{"$f":"IF('2011 Survey responses'!DD116<0.5,\"\",'2011 Survey responses'!DD116)","v":2},{"$f":"IF('2011 Survey responses'!DE116<0.5,\"\",'2011 Survey responses'!DE116)","v":2},{"$f":"IF('2011 Survey responses'!DF116<0.5,\"\",'2011 Survey responses'!DF116)","v":2},{"$f":"IF('2011 Survey responses'!DG116<0.5,\"\",'2011 Survey responses'!DG116)","v":3},{"$f":"IF('2011 Survey responses'!DH116<0.5,\"\",'2011 Survey responses'!DH116)","v":2},{"$f":"IF('2011 Survey responses'!DI116<0.5,\"\",'2011 Survey responses'!DI116)","v":3},{"$f":"IF('2011 Survey responses'!DJ116<0.5,\"\",'2011 Survey responses'!DJ116)","v":3},{"$f":"IF('2011 Survey responses'!DK116<0.5,\"\",'2011 Survey responses'!DK116)","v":3},{"$f":"IF('2011 Survey responses'!DL116<0.5,\"\",'2011 Survey responses'!DL116)","v":3},{"$f":"IF('2011 Survey responses'!DU116=4,4,IF('2011 Survey responses'!DU116=5,4,\"\"))","v":4},{"$f":"IF('2011 Survey responses'!DV116=4,3,IF('2011 Survey responses'!DV116=5,3,\"\"))","v":""},"",{"$f":"IF(CQ116=2,CQ116,IF(CO116=4,CO116,IF(CP116=3,CP116,IF('2011 Survey responses'!GT116=1,1,\"\"))))","v":4},{"$f":"IF('2011 Survey responses'!DO116<0.5,\"\",'2011 Survey responses'!DO116)","v":4},{"$f":"IF('2011 Survey responses'!DP116<0.5,\"\",'2011 Survey responses'!DP116)","v":5},{"$f":"IF('2011 Survey responses'!DQ116<0.5,\"\",'2011 Survey responses'!DQ116)","v":3},{"$f":"IF('2011 Survey responses'!DR116<0.5,\"\",'2011 Survey responses'!DR116)","v":4},{"$f":"IF('2011 Survey responses'!DS116<0.5,\"\",'2011 Survey responses'!DS116)","v":4},{"$f":"IF('2011 Survey responses'!DT116<0.5,\"\",'2011 Survey responses'!DT116)","v":5},{"$f":"IF('2011 Survey responses'!DU116<0.5,\"\",'2011 Survey responses'!DU116)","v":5},{"$f":"IF('2011 Survey responses'!DV116<0.5,\"\",'2011 Survey responses'!DV116)","v":3},{"$f":"IF('2011 Survey responses'!DW116<0.5,\"\",'2011 Survey responses'!DW116)","v":3},{"$f":"IF('2011 Survey responses'!DX116<0.5,\"\",'2011 Survey responses'!DX116)","v":3},{"$f":"IF('2011 Survey responses'!DY116<0.5,\"\",'2011 Survey responses'!DY116)","v":5},{"$f":"IF('2011 Survey responses'!DZ116<0.5,\"\",'2011 Survey responses'!DZ116)","v":5},{"$f":"IF('2011 Survey responses'!EA116<0.5,\"\",'2011 Survey responses'!EA116)","v":3},{"$f":"IF('2011 Survey responses'!EB116<0.5,\"\",'2011 Survey responses'!EB116)","v":3},{"$f":"IF('2011 Survey responses'!EC116<0.5,\"\",'2011 Survey responses'!EC116)","v":2},{"$f":"IF('2011 Survey responses'!ED116<0.5,\"\",'2011 Survey responses'!ED116)","v":4},{"$f":"IF('2011 Survey responses'!EE116<0.5,\"\",'2011 Survey responses'!EE116)","v":4},{"$f":"IF('2011 Survey responses'!EF116<0.5,\"\",'2011 Survey responses'!EF116)","v":5},{"$f":"IF('2011 Survey responses'!EG116<0.5,\"\",'2011 Survey responses'!EG116)","v":5},{"$f":"IF('2011 Survey responses'!EH116<0.5,\"\",'2011 Survey responses'!EH116)","v":3},{"$f":"IF('2011 Survey responses'!EI116<0.5,\"\",'2011 Survey responses'!EI116)","v":3},{"$f":"IF('2011 Survey responses'!EJ116<0.5,\"\",'2011 Survey responses'!EJ116)","v":3},{"$f":"IF('2011 Survey responses'!EK116<0.5,\"\",'2011 Survey responses'!EK116)","v":3},{"$f":"IF('2011 Survey responses'!EL116<0.5,\"\",'2011 Survey responses'!EL116)","v":3},{"$f":"IF('2011 Survey responses'!EM116<0.5,\"\",'2011 Survey responses'!EM116)","v":5},{"$f":"IF('2011 Survey responses'!EN116<0.5,\"\",'2011 Survey responses'!EN116)","v":5},{"$f":"IF('2011 Survey responses'!EO116<0.5,\"\",'2011 Survey responses'!EO116)","v":4},{"$f":"IF('2011 Survey responses'!EP116<0.5,\"\",'2011 Survey responses'!EP116)","v":4},{"$f":"IF(('2011 Survey responses'!EW116+'2011 Survey responses'!EX116)>=2,AVERAGE('2011 Survey responses'!EW116,'2011 Survey responses'!EY116),\"\")","v":4},{"$f":"IF('2011 Survey responses'!EX116<0.5,\"\",'2011 Survey responses'!EX116)","v":4},{"$f":"IF('2011 Survey responses'!EZ116<0.5,\"\",'2011 Survey responses'!EZ116)","v":4},{"$f":"IF('2011 Survey responses'!FB116<0.5,\"\",'2011 Survey responses'!FB116)","v":4},{"$f":"IF('2011 Survey responses'!FD116<0.5,\"\",'2011 Survey responses'!FD116)","v":4},{"$f":"IF('2011 Survey responses'!FC116<0.5,\"\",'2011 Survey responses'!FC116)","v":4},{"$f":"IF(('2011 Survey responses'!EM116+'2011 Survey responses'!EN116)>=2,AVERAGE('2011 Survey responses'!EM116,'2011 Survey responses'!EN116),\"\")","v":5},{"$f":"IF('2011 Survey responses'!ES116<0.5,\"\",'2011 Survey responses'!ES116)","v":4},{"$f":"IF(('2011 Survey responses'!ET116+'2011 Survey responses'!EU116)>=2,AVERAGE('2011 Survey responses'!ET116,'2011 Survey responses'!EU116),\"\")","v":5},{"$f":"IF('2011 Survey responses'!EV116<0.5,\"\",'2011 Survey responses'!EV116)","v":5},{"$f":"IF('2011 Survey responses'!FA116<0.5,\"\",'2011 Survey responses'!FA116)","v":4},{"$f":"IF('2011 Survey responses'!ER116<0.5,\"\",'2011 Survey responses'!ER116)","v":3},{"$f":"IF(('2011 Survey responses'!EO116+'2011 Survey responses'!EP116)>=2,AVERAGE('2011 Survey responses'!EO116,'2011 Survey responses'!EP116),\"\")","v":4},{"$f":"IF('2011 Survey responses'!EQ116<0.5,\"\",'2011 Survey responses'!EQ116)","v":3},{"$f":"IF('2011 Survey responses'!ET116<0.5,\"\",'2011 Survey responses'!ET116)","v":5},{"$f":"IF('2011 Survey responses'!EU116<0.5,\"\",'2011 Survey responses'!EU116)","v":5},{"$f":"IF('2011 Survey responses'!EW116<0.5,\"\",'2011 Survey responses'!EW116)","v":4},{"$f":"IF('2011 Survey responses'!EY116<0.5,\"\",'2011 Survey responses'!EY116)","v":4},{"$f":"IF('2011 Survey responses'!FU116<0.5,\"\",'2011 Survey responses'!FU116)","v":4},{"$f":"IF(('2011 Survey responses'!FL116+'2011 Survey responses'!FM116)>=2,AVERAGE('2011 Survey responses'!FL116,'2011 Survey responses'!FM116),\"\")","v":4},{"$f":"IF(('2011 Survey responses'!FO116+'2011 Survey responses'!FQ116)>=2,AVERAGE('2011 Survey responses'!FO116,'2011 Survey responses'!FQ116),\"\")","v":5},{"$f":"IF('2011 Survey responses'!FJ116<0.5,\"\",'2011 Survey responses'!FJ116)","v":4},{"$f":"IF('2011 Survey responses'!FT116<0.5,\"\",'2011 Survey responses'!FT116)","v":4},{"$f":"IF('2011 Survey responses'!FR116<0.5,\"\",'2011 Survey responses'!FR116)","v":4},{"$f":"IF('2011 Survey responses'!FK116<0.5,\"\",'2011 Survey responses'!FK116)","v":4},{"$f":"IF('2011 Survey responses'!FP116<0.5,\"\",'2011 Survey responses'!FP116)","v":4},{"$f":"IF('2011 Survey responses'!FN116<0.5,\"\",'2011 Survey responses'!FN116)","v":5},{"$f":"IF(('2011 Survey responses'!FE116+'2011 Survey responses'!FF116)>=2,AVERAGE('2011 Survey responses'!FE116,'2011 Survey responses'!FF116),\"\")","v":4},{"$f":"IF('2011 Survey responses'!FS116<0.5,\"\",'2011 Survey responses'!FS116)","v":4},{"$f":"IF('2011 Survey responses'!FV116<0.5,\"\",'2011 Survey responses'!FV116)","v":3},{"$f":"IF(('2011 Survey responses'!FG116+'2011 Survey responses'!FH116)>=2,AVERAGE('2011 Survey responses'!FG116,'2011 Survey responses'!FH116),\"\")","v":4},{"$f":"IF('2011 Survey responses'!FI116<0.5,\"\",'2011 Survey responses'!FI116)","v":3},{"$f":"IF('2011 Survey responses'!FE116<0.5,\"\",'2011 Survey responses'!FE116)","v":4},{"$f":"IF('2011 Survey responses'!FF116<0.5,\"\",'2011 Survey responses'!FF116)","v":4},{"$f":"IF('2011 Survey responses'!FG116<0.5,\"\",'2011 Survey responses'!FG116)","v":4},{"$f":"IF('2011 Survey responses'!FH116<0.5,\"\",'2011 Survey responses'!FH116)","v":4},{"$f":"IF('2011 Survey responses'!FL116<0.5,\"\",'2011 Survey responses'!FL116)","v":4},{"$f":"IF('2011 Survey responses'!FM116<0.5,\"\",'2011 Survey responses'!FM116)","v":4},{"$f":"IF('2011 Survey responses'!FO116<0.5,\"\",'2011 Survey responses'!FO116)","v":5},{"$f":"IF('2011 Survey responses'!FQ116<0.5,\"\",'2011 Survey responses'!FQ116)","v":5}]
["Morocco",{"$f":"IF(SUM(F117)<1,\"\",AVERAGEIF('2011 Survey responses'!B117:CP117,\">1\"))","v":4.9333333333333336},{"$f":"IF(SUM(F117)<1,\"\",AVERAGEIF('2011 Survey responses'!B117:AO117,\">1\"))","v":4.9487179487179489},{"$f":"IF(SUM(F117)<1,\"\",AVERAGEIF('2011 Survey responses'!B117:BV117,\">1\"))","v":4.9285714285714288},{"$f":"IF(SUM(F117)<1,\"\",AVERAGEIF('2011 Survey responses'!V117:BV117,\">1\"))","v":4.9000000000000004},{"$f":"IF(SUM('2011 Survey responses'!B117:U117)<1,\"\",(AVERAGEIFS('2011 Survey responses'!B117:U117,'2011 Survey responses'!B117:U117,\">1\")))","v":5},{"$f":"IF(SUM('2011 Survey responses'!B117:H117)<1,\"\",(AVERAGEIFS('2011 Survey responses'!B117:H117,'2011 Survey responses'!B117:H117,\">1\")))","v":5},{"$f":"IF(SUM('2011 Survey responses'!I117:S117)<1,\"\",(AVERAGEIFS('2011 Survey responses'!I117:S117,'2011 Survey responses'!I117:S117,\">1\")))","v":5},{"$f":"IF(SUM('2011 Survey responses'!T117:U117)<2.1,\"\",(AVERAGEIFS('2011 Survey responses'!T117:U117,'2011 Survey responses'!T117:U117,\">1\")))","v":5},{"$f":"IF(SUM('2011 Survey responses'!B117:C117)<2.1,\"\",((SUMIF('2011 Survey responses'!B117:C117,\">1\")+SUMIF('2011 Survey responses'!F117,\">1\"))/(COUNTIF('2011 Survey responses'!B117:C117,\">1\")+COUNTIF('2011 Survey responses'!F117,\">1\"))))","v":5},{"$f":"IF(SUM('2011 Survey responses'!D117:E117)<2.1,\"\",(AVERAGEIFS('2011 Survey responses'!D117:E117,'2011 Survey responses'!D117:E117,\">1\")))","v":5},{"$f":"IF(('2011 Survey responses'!B117+'2011 Survey responses'!D117)<2.1,\"\",((SUMIF('2011 Survey responses'!B117,\">1\")+SUMIF('2011 Survey responses'!D117,\">1\")+SUMIF('2011 Survey responses'!F117,\">1\")+SUMIF('2011 Survey responses'!K117,\">1\"))/(COUNTIF('2011 Survey responses'!B117,\">1\")+COUNTIF('2011 Survey responses'!D117,\">1\")+COUNTIF('2011 Survey responses'!F117,\">1\")+COUNTIF('2011 Survey responses'!K117,\">1\"))))","v":5},{"$f":"IF(SUM('2011 Survey responses'!G117:H117)<2.1,\"\",(AVERAGEIFS('2011 Survey responses'!G117:H117,'2011 Survey responses'!G117:H117,\">1\")))","v":5},{"$f":"IF(SUM('2011 Survey responses'!F117:G117)<1.5,\"\",MAX('2011 Survey responses'!F117,'2011 Survey responses'!G117))","v":5},{"$f":"IF(SUM('2011 Survey responses'!G117:H117)<1,\"\",MAX('2011 Survey responses'!G117,'2011 Survey responses'!H117))","v":5},{"$f":"IF(SUM('2011 Survey responses'!I117:L117)<4.1,\"\",(AVERAGEIFS('2011 Survey responses'!I117:L117,'2011 Survey responses'!I117:L117,\">1\")))","v":5},{"$f":"IF(SUM('2011 Survey responses'!M117:S117)<4.1,\"\",(AVERAGEIFS('2011 Survey responses'!M117:S117,'2011 Survey responses'!M117:S117,\">1\")))","v":5},{"$f":"IF(SUM('2011 Survey responses'!T117:U117)<2.1,\"\",(AVERAGEIFS('2011 Survey responses'!T117:U117,'2011 Survey responses'!T117:U117,\">1\")))","v":5},{"$f":"IF(SUM('2011 Survey responses'!V117:AO117)<1,\"\",(AVERAGEIFS('2011 Survey responses'!V117:AO117,'2011 Survey responses'!V117:AO117,\">1\")))","v":4.8947368421052628},{"$f":"IF(SUM('2011 Survey responses'!V117:AA117)<1,\"\",(AVERAGEIFS('2011 Survey responses'!V117:AA117,'2011 Survey responses'!V117:AA117,\">1\")))","v":5},{"$f":"IF(SUM('2011 Survey responses'!AB117:AH117)<1,\"\",(AVERAGEIFS('2011 Survey responses'!AB117:AH117,'2011 Survey responses'!AB117:AH117,\">1\")))","v":4.7142857142857144},{"$f":"IF(SUM('2011 Survey responses'!AI117:AO117)<1,\"\",(AVERAGEIFS('2011 Survey responses'!AI117:AO117,'2011 Survey responses'!AI117:AO117,\">1\")))","v":5},{"$f":"IF(('2011 Survey responses'!Y117+'2011 Survey responses'!AI117+'2011 Survey responses'!AK117)<3.1,\"\",((SUMIF('2011 Survey responses'!Y117,\">1\")+SUMIF('2011 Survey responses'!AI117,\">1\")+SUMIF('2011 Survey responses'!AK117,\">1\")+SUMIF('2011 Survey responses'!AM117,\">1\"))/(COUNTIF('2011 Survey responses'!Y117,\">1\")+COUNTIF('2011 Survey responses'!AI117,\">1\")+COUNTIF('2011 Survey responses'!AK117,\">1\")+COUNTIF('2011 Survey responses'!AM117,\">1\"))))","v":5},{"$f":"IF(('2011 Survey responses'!W117)<1.1,\"\",('2011 Survey responses'!W117))","v":5},{"$f":"IF(('2011 Survey responses'!Y117)<1.1,\"\",('2011 Survey responses'!Y117))","v":5},{"$f":"IF(('2011 Survey responses'!Z117)<1.1,\"\",('2011 Survey responses'!Z117))","v":""},{"$f":"IF(('2011 Survey responses'!V117+'2011 Survey responses'!X117+'2011 Survey responses'!AA117)<3.1,\"\",((SUMIF('2011 Survey responses'!V117,\">1\")+SUMIF('2011 Survey responses'!X117,\">1\")+SUMIF('2011 Survey responses'!AA117,\">1\"))/(COUNTIF('2011 Survey responses'!V117,\">1\")+COUNTIF('2011 Survey responses'!X117,\">1\")+COUNTIF('2011 Survey responses'!AA117,\">1\"))))","v":5},{"$f":"IF(('2011 Survey responses'!V117+'2011 Survey responses'!Y117+'2011 Survey responses'!AA117)<3.1,\"\",((SUMIF('2011 Survey responses'!V117,\">1\")+SUMIF('2011 Survey responses'!Y117,\">1\")+SUMIF('2011 Survey responses'!AA117,\">1\"))/(COUNTIF('2011 Survey responses'!V117,\">1\")+COUNTIF('2011 Survey responses'!Y117,\">1\")+COUNTIF('2011 Survey responses'!AA117,\">1\"))))","v":5.333333333333333},{"$f":"IF(SUM('2011 Survey responses'!AB117:AH117)<1,\"\",(AVERAGEIFS('2011 Survey responses'!AB117:AH117,'2011 Survey responses'!AB117:AH117,\">1\")))","v":4.7142857142857144},{"$f":"IF(SUM('2011 Survey responses'!AI117:AO117)<7.1,\"\",(AVERAGEIFS('2011 Survey responses'!AI117:AO117,'2011 Survey responses'!AI117:AO117,\">1\")))","v":5},{"$f":"IF(('2011 Survey responses'!AH117)<1.1,\"\",('2011 Survey responses'!AH117))","v":4},{"$f":"IF(SUM('2011 Survey responses'!AP117:BV117)<1,\"\",(AVERAGEIFS('2011 Survey responses'!AP117:BV117,'2011 Survey responses'!AP117:BV117,\">1\")))","v":4.903225806451613},{"$f":"IF(SUM('2011 Survey responses'!AP117:AS117)<4.1,\"\",(AVERAGEIFS('2011 Survey responses'!AP117:AS117,'2011 Survey responses'!AP117:AS117,\">1\")))","v":5.5},{"$f":"IF(SUM('2011 Survey responses'!AT117:BF117)<1,\"\",(AVERAGEIFS('2011 Survey responses'!AT117:BF117,'2011 Survey responses'!AT117:BF117,\">1\")))","v":4.916666666666667},{"$f":"IF(SUM('2011 Survey responses'!BG117:BO117)<1,\"\",(AVERAGEIFS('2011 Survey responses'!BG117:BO117,'2011 Survey responses'!BG117:BO117,\">1\")))","v":4.875},{"$f":"IF(SUM('2011 Survey responses'!BP117:BS117)<1,\"\",(AVERAGEIFS('2011 Survey responses'!BP117:BS117,'2011 Survey responses'!BP117:BS117,\">1\")))","v":4.5},{"$f":"IF(SUM('2011 Survey responses'!BT117:BV117)<3.1,\"\",(AVERAGEIFS('2011 Survey responses'!BT117:BV117,'2011 Survey responses'!BT117:BV117,\">1\")))","v":4.666666666666667},{"$f":"IF(('2011 Survey responses'!AQ117+'2011 Survey responses'!AR117+'2011 Survey responses'!BG117)<3.1,\"\",((SUMIF('2011 Survey responses'!AQ117,\">1\")+SUMIF('2011 Survey responses'!AR117,\">1\")+SUMIF('2011 Survey responses'!BG117,\">1\"))/(COUNTIF('2011 Survey responses'!AQ117,\">1\")+COUNTIF('2011 Survey responses'!AR117,\">1\")+COUNTIF('2011 Survey responses'!BG117,\">1\"))))","v":5.333333333333333},{"$f":"IF(SUM('2011 Survey responses'!AP117:AS117)<4.1,\"\",(AVERAGEIFS('2011 Survey responses'!AP117:AS117,'2011 Survey responses'!AP117:AS117,\">1\")))","v":5.5},{"$f":"IF(('2011 Survey responses'!AU117+'2011 Survey responses'!AX117+'2011 Survey responses'!BA117+'2011 Survey responses'!BC117+'2011 Survey responses'!BD117)<5.1,\"\",(SUMIF('2011 Survey responses'!AU117,\">1\")+SUMIF('2011 Survey responses'!AX117,\">1\")+SUMIF('2011 Survey responses'!BA117,\">1\")+SUMIF('2011 Survey responses'!BC117,\">1\")+SUMIF('2011 Survey responses'!BD117,\">1\"))/(COUNTIF('2011 Survey responses'!AU117,\">1\")+COUNTIF('2011 Survey responses'!AX117,\">1\")+COUNTIF('2011 Survey responses'!BA117,\">1\")+COUNTIF('2011 Survey responses'!BC117,\">1\")+COUNTIF('2011 Survey responses'!BD117,\">1\")))","v":5},{"$f":"IF(('2011 Survey responses'!AT117)<1.1,\"\",('2011 Survey responses'!AT117))","v":5},{"$f":"IF(SUM('2011 Survey responses'!AV117:AW117)<2.1,\"\",(AVERAGEIFS('2011 Survey responses'!AV117:AW117,'2011 Survey responses'!AV117:AW117,\">1\")))","v":5},{"$f":"IF(('2011 Survey responses'!AW117+'2011 Survey responses'!AY117)<2.1,\"\",(SUMIF('2011 Survey responses'!AW117,\">1\")+SUMIF('2011 Survey responses'!AY117,\">1\"))/(COUNTIF('2011 Survey responses'!AW117,\">1\")+COUNTIF('2011 Survey responses'!AY117,\">1\")))","v":4.5},{"$f":"IF(('2011 Survey responses'!AZ117)<1.1,\"\",('2011 Survey responses'!AZ117))","v":5},5,4,4,5,{"$f":"IF(('2011 Survey responses'!BE117)<1.1,\"\",('2011 Survey responses'!BE117))","v":""},{"$f":"IF(('2011 Survey responses'!AY117+'2011 Survey responses'!BB117+'2011 Survey responses'!BF117)<3.1,\"\",(SUMIF('2011 Survey responses'!AY117,\">1\")+SUMIF('2011 Survey responses'!BB117,\">1\")+SUMIF('2011 Survey responses'!BF117,\">1\"))/(COUNTIF('2011 Survey responses'!AY117,\">1\")+COUNTIF('2011 Survey responses'!BB117,\">1\")+COUNTIF('2011 Survey responses'!BF117,\">1\")))","v":4.666666666666667},4.6875,{"$f":"IF(SUM('2011 Survey responses'!BT117:BV117)<3.1,\"\",(AVERAGEIFS('2011 Survey responses'!BT117:BV117,'2011 Survey responses'!BT117:BV117,\">1\")))","v":4.666666666666667},{"$f":"IF(SUM('2011 Survey responses'!BW117:CP117)<1,\"\",(AVERAGEIFS('2011 Survey responses'!BW117:CP117,'2011 Survey responses'!BW117:CP117,\">1\")))","v":4.95},{"$f":"IF(SUM('2011 Survey responses'!BW117:CF117)<1,\"\",(AVERAGEIFS('2011 Survey responses'!BW117:CF117,'2011 Survey responses'!BW117:CF117,\">1\")))","v":5},{"$f":"IF(SUM('2011 Survey responses'!CG117:CP117)<1,\"\",(AVERAGEIFS('2011 Survey responses'!CG117:CP117,'2011 Survey responses'!CG117:CP117,\">1\")))","v":4.9000000000000004},{"$f":"IF(SUM('2011 Survey responses'!BX117:CF117)<1,\"\",(AVERAGEIFS('2011 Survey responses'!BX117:CF117,'2011 Survey responses'!BX117:CF117,\">1\")))","v":5},{"$f":"IF(SUM('2011 Survey responses'!CH117:CP117)<1,\"\",(AVERAGEIFS('2011 Survey responses'!CH117:CP117,'2011 Survey responses'!CH117:CP117,\">1\")))","v":4.8888888888888893},{"$f":"IF(SUM('2011 Survey responses'!BW117:CP117)<1,\"\",(AVERAGEIFS('2011 Survey responses'!BW117:CP117,'2011 Survey responses'!BW117:CP117,\">1\")))","v":4.95},{"$f":"IF(('2011 Survey responses'!BW117+'2011 Survey responses'!CG117)<2.1,\"\",(SUMIF('2011 Survey responses'!BW117,\">1\")+SUMIF('2011 Survey responses'!CG117,\">1\"))/(COUNTIF('2011 Survey responses'!BW117,\">1\")+COUNTIF('2011 Survey responses'!CG117,\">1\")))","v":5},{"$f":"IF(('2011 Survey responses'!BX117+'2011 Survey responses'!CH117)<2.1,\"\",(SUMIF('2011 Survey responses'!BX117,\">1\")+SUMIF('2011 Survey responses'!CH117,\">1\"))/(COUNTIF('2011 Survey responses'!BX117,\">1\")+COUNTIF('2011 Survey responses'!CH117,\">1\")))","v":5},{"$f":"IF(('2011 Survey responses'!BY117+'2011 Survey responses'!CI117)<2.1,\"\",(SUMIF('2011 Survey responses'!BY117,\">1\")+SUMIF('2011 Survey responses'!CI117,\">1\"))/(COUNTIF('2011 Survey responses'!BY117,\">1\")+COUNTIF('2011 Survey responses'!CI117,\">1\")))","v":5},{"$f":"IF('2011 Survey responses'!CQ117<0.5,\"\",'2011 Survey responses'!CQ117)","v":4},{"$f":"IF('2011 Survey responses'!CR117<0.5,\"\",'2011 Survey responses'!CR117)","v":5},{"$f":"IF('2011 Survey responses'!CS117<0.5,\"\",'2011 Survey responses'!CS117)","v":5},{"$f":"IF('2011 Survey responses'!CT117<0.5,\"\",'2011 Survey responses'!CT117)","v":5},{"$f":"IF('2011 Survey responses'!CU117<0.5,\"\",'2011 Survey responses'!CU117)","v":4},{"$f":"IF('2011 Survey responses'!CV117<0.5,\"\",'2011 Survey responses'!CV117)","v":""},{"$f":"IF(SUM('2011 Survey responses'!CW117:DL117)<1,\"\",(AVERAGE('2011 Survey responses'!CW117:DL117)))","v":4.1875},{"$f":"IF(SUM('2011 Survey responses'!CW117:CZ117)<1,\"\",(AVERAGE('2011 Survey responses'!CW117:CZ117)))","v":4.75},{"$f":"IF(SUM('2011 Survey responses'!DA117:DD117)<1,\"\",(AVERAGE('2011 Survey responses'!DA117:DD117)))","v":4},{"$f":"IF(SUM('2011 Survey responses'!DE117:DH117)<1,\"\",(AVERAGE('2011 Survey responses'!DE117:DH117)))","v":4},{"$f":"IF(SUM('2011 Survey responses'!DI117:DL117)<1,\"\",(AVERAGE('2011 Survey responses'!DI117:DL117)))","v":4},{"$f":"IF(('2011 Survey responses'!CW117+'2011 Survey responses'!DA117+'2011 Survey responses'!DE117+'2011 Survey responses'!DI117)<1,\"\",AVERAGE('2011 Survey responses'!CW117,'2011 Survey responses'!DA117,'2011 Survey responses'!DE117,'2011 Survey responses'!DI117))","v":4.25},{"$f":"IF(('2011 Survey responses'!CX117+'2011 Survey responses'!DB117+'2011 Survey responses'!DF117+'2011 Survey responses'!DJ117)<1,\"\",AVERAGE('2011 Survey responses'!CX117,'2011 Survey responses'!DB117,'2011 Survey responses'!DF117,'2011 Survey responses'!DJ117))","v":4.25},{"$f":"IF(('2011 Survey responses'!CY117+'2011 Survey responses'!DC117+'2011 Survey responses'!DG117+'2011 Survey responses'!DK117)<1,\"\",AVERAGE('2011 Survey responses'!CY117,'2011 Survey responses'!DC117,'2011 Survey responses'!DG117,'2011 Survey responses'!DK117))","v":4},{"$f":"IF(('2011 Survey responses'!CZ117+'2011 Survey responses'!DD117+'2011 Survey responses'!DH117+'2011 Survey responses'!DL117)<1,\"\",AVERAGE('2011 Survey responses'!CZ117,'2011 Survey responses'!DD117,'2011 Survey responses'!DH117,'2011 Survey responses'!DL117))","v":4.25},{"$f":"IF('2011 Survey responses'!CW117<0.5,\"\",'2011 Survey responses'!CW117)","v":5},{"$f":"IF('2011 Survey responses'!CX117<0.5,\"\",'2011 Survey responses'!CX117)","v":5},{"$f":"IF('2011 Survey responses'!CY117<0.5,\"\",'2011 Survey responses'!CY117)","v":4},{"$f":"IF('2011 Survey responses'!CZ117<0.5,\"\",'2011 Survey responses'!CZ117)","v":5},{"$f":"IF('2011 Survey responses'!DA117<0.5,\"\",'2011 Survey responses'!DA117)","v":4},{"$f":"IF('2011 Survey responses'!DB117<0.5,\"\",'2011 Survey responses'!DB117)","v":4},{"$f":"IF('2011 Survey responses'!DC117<0.5,\"\",'2011 Survey responses'!DC117)","v":4},{"$f":"IF('2011 Survey responses'!DD117<0.5,\"\",'2011 Survey responses'!DD117)","v":4},{"$f":"IF('2011 Survey responses'!DE117<0.5,\"\",'2011 Survey responses'!DE117)","v":4},{"$f":"IF('2011 Survey responses'!DF117<0.5,\"\",'2011 Survey responses'!DF117)","v":4},{"$f":"IF('2011 Survey responses'!DG117<0.5,\"\",'2011 Survey responses'!DG117)","v":4},{"$f":"IF('2011 Survey responses'!DH117<0.5,\"\",'2011 Survey responses'!DH117)","v":4},{"$f":"IF('2011 Survey responses'!DI117<0.5,\"\",'2011 Survey responses'!DI117)","v":4},{"$f":"IF('2011 Survey responses'!DJ117<0.5,\"\",'2011 Survey responses'!DJ117)","v":4},{"$f":"IF('2011 Survey responses'!DK117<0.5,\"\",'2011 Survey responses'!DK117)","v":4},{"$f":"IF('2011 Survey responses'!DL117<0.5,\"\",'2011 Survey responses'!DL117)","v":4},{"$f":"IF('2011 Survey responses'!DU117=4,4,IF('2011 Survey responses'!DU117=5,4,\"\"))","v":4},{"$f":"IF('2011 Survey responses'!DV117=4,3,IF('2011 Survey responses'!DV117=5,3,\"\"))","v":3},2,{"$f":"IF(CQ117=2,CQ117,IF(CO117=4,CO117,IF(CP117=3,CP117,IF('2011 Survey responses'!GT117=1,1,\"\"))))","v":2},{"$f":"IF('2011 Survey responses'!DO117<0.5,\"\",'2011 Survey responses'!DO117)","v":4},{"$f":"IF('2011 Survey responses'!DP117<0.5,\"\",'2011 Survey responses'!DP117)","v":5},{"$f":"IF('2011 Survey responses'!DQ117<0.5,\"\",'2011 Survey responses'!DQ117)","v":4},{"$f":"IF('2011 Survey responses'!DR117<0.5,\"\",'2011 Survey responses'!DR117)","v":4},{"$f":"IF('2011 Survey responses'!DS117<0.5,\"\",'2011 Survey responses'!DS117)","v":4},{"$f":"IF('2011 Survey responses'!DT117<0.5,\"\",'2011 Survey responses'!DT117)","v":4},{"$f":"IF('2011 Survey responses'!DU117<0.5,\"\",'2011 Survey responses'!DU117)","v":4},{"$f":"IF('2011 Survey responses'!DV117<0.5,\"\",'2011 Survey responses'!DV117)","v":4},{"$f":"IF('2011 Survey responses'!DW117<0.5,\"\",'2011 Survey responses'!DW117)","v":4},{"$f":"IF('2011 Survey responses'!DX117<0.5,\"\",'2011 Survey responses'!DX117)","v":4},{"$f":"IF('2011 Survey responses'!DY117<0.5,\"\",'2011 Survey responses'!DY117)","v":4},{"$f":"IF('2011 Survey responses'!DZ117<0.5,\"\",'2011 Survey responses'!DZ117)","v":4},{"$f":"IF('2011 Survey responses'!EA117<0.5,\"\",'2011 Survey responses'!EA117)","v":4},{"$f":"IF('2011 Survey responses'!EB117<0.5,\"\",'2011 Survey responses'!EB117)","v":4},{"$f":"IF('2011 Survey responses'!EC117<0.5,\"\",'2011 Survey responses'!EC117)","v":4},{"$f":"IF('2011 Survey responses'!ED117<0.5,\"\",'2011 Survey responses'!ED117)","v":4},{"$f":"IF('2011 Survey responses'!EE117<0.5,\"\",'2011 Survey responses'!EE117)","v":4},{"$f":"IF('2011 Survey responses'!EF117<0.5,\"\",'2011 Survey responses'!EF117)","v":4},{"$f":"IF('2011 Survey responses'!EG117<0.5,\"\",'2011 Survey responses'!EG117)","v":4},{"$f":"IF('2011 Survey responses'!EH117<0.5,\"\",'2011 Survey responses'!EH117)","v":4},{"$f":"IF('2011 Survey responses'!EI117<0.5,\"\",'2011 Survey responses'!EI117)","v":3},{"$f":"IF('2011 Survey responses'!EJ117<0.5,\"\",'2011 Survey responses'!EJ117)","v":1},{"$f":"IF('2011 Survey responses'!EK117<0.5,\"\",'2011 Survey responses'!EK117)","v":2},{"$f":"IF('2011 Survey responses'!EL117<0.5,\"\",'2011 Survey responses'!EL117)","v":2},{"$f":"IF('2011 Survey responses'!EM117<0.5,\"\",'2011 Survey responses'!EM117)","v":4},{"$f":"IF('2011 Survey responses'!EN117<0.5,\"\",'2011 Survey responses'!EN117)","v":4},{"$f":"IF('2011 Survey responses'!EO117<0.5,\"\",'2011 Survey responses'!EO117)","v":""},{"$f":"IF('2011 Survey responses'!EP117<0.5,\"\",'2011 Survey responses'!EP117)","v":""},{"$f":"IF(('2011 Survey responses'!EW117+'2011 Survey responses'!EX117)>=2,AVERAGE('2011 Survey responses'!EW117,'2011 Survey responses'!EY117),\"\")","v":4},{"$f":"IF('2011 Survey responses'!EX117<0.5,\"\",'2011 Survey responses'!EX117)","v":4},{"$f":"IF('2011 Survey responses'!EZ117<0.5,\"\",'2011 Survey responses'!EZ117)","v":4},{"$f":"IF('2011 Survey responses'!FB117<0.5,\"\",'2011 Survey responses'!FB117)","v":4},{"$f":"IF('2011 Survey responses'!FD117<0.5,\"\",'2011 Survey responses'!FD117)","v":4},{"$f":"IF('2011 Survey responses'!FC117<0.5,\"\",'2011 Survey responses'!FC117)","v":4},{"$f":"IF(('2011 Survey responses'!EM117+'2011 Survey responses'!EN117)>=2,AVERAGE('2011 Survey responses'!EM117,'2011 Survey responses'!EN117),\"\")","v":4},{"$f":"IF('2011 Survey responses'!ES117<0.5,\"\",'2011 Survey responses'!ES117)","v":4},{"$f":"IF(('2011 Survey responses'!ET117+'2011 Survey responses'!EU117)>=2,AVERAGE('2011 Survey responses'!ET117,'2011 Survey responses'!EU117),\"\")","v":4},{"$f":"IF('2011 Survey responses'!EV117<0.5,\"\",'2011 Survey responses'!EV117)","v":4},{"$f":"IF('2011 Survey responses'!FA117<0.5,\"\",'2011 Survey responses'!FA117)","v":4},{"$f":"IF('2011 Survey responses'!ER117<0.5,\"\",'2011 Survey responses'!ER117)","v":4},{"$f":"IF(('2011 Survey responses'!EO117+'2011 Survey responses'!EP117)>=2,AVERAGE('2011 Survey responses'!EO117,'2011 Survey responses'!EP117),\"\")","v":""},{"$f":"IF('2011 Survey responses'!EQ117<0.5,\"\",'2011 Survey responses'!EQ117)","v":4},{"$f":"IF('2011 Survey responses'!ET117<0.5,\"\",'2011 Survey responses'!ET117)","v":4},{"$f":"IF('2011 Survey responses'!EU117<0.5,\"\",'2011 Survey responses'!EU117)","v":4},{"$f":"IF('2011 Survey responses'!EW117<0.5,\"\",'2011 Survey responses'!EW117)","v":4},{"$f":"IF('2011 Survey responses'!EY117<0.5,\"\",'2011 Survey responses'!EY117)","v":4},{"$f":"IF('2011 Survey responses'!FU117<0.5,\"\",'2011 Survey responses'!FU117)","v":5},{"$f":"IF(('2011 Survey responses'!FL117+'2011 Survey responses'!FM117)>=2,AVERAGE('2011 Survey responses'!FL117,'2011 Survey responses'!FM117),\"\")","v":5},{"$f":"IF(('2011 Survey responses'!FO117+'2011 Survey responses'!FQ117)>=2,AVERAGE('2011 Survey responses'!FO117,'2011 Survey responses'!FQ117),\"\")","v":5},{"$f":"IF('2011 Survey responses'!FJ117<0.5,\"\",'2011 Survey responses'!FJ117)","v":5},{"$f":"IF('2011 Survey responses'!FT117<0.5,\"\",'2011 Survey responses'!FT117)","v":4},{"$f":"IF('2011 Survey responses'!FR117<0.5,\"\",'2011 Survey responses'!FR117)","v":5},{"$f":"IF('2011 Survey responses'!FK117<0.5,\"\",'2011 Survey responses'!FK117)","v":5},{"$f":"IF('2011 Survey responses'!FP117<0.5,\"\",'2011 Survey responses'!FP117)","v":5},{"$f":"IF('2011 Survey responses'!FN117<0.5,\"\",'2011 Survey responses'!FN117)","v":5},{"$f":"IF(('2011 Survey responses'!FE117+'2011 Survey responses'!FF117)>=2,AVERAGE('2011 Survey responses'!FE117,'2011 Survey responses'!FF117),\"\")","v":5},{"$f":"IF('2011 Survey responses'!FS117<0.5,\"\",'2011 Survey responses'!FS117)","v":5},{"$f":"IF('2011 Survey responses'!FV117<0.5,\"\",'2011 Survey responses'!FV117)","v":4},{"$f":"IF(('2011 Survey responses'!FG117+'2011 Survey responses'!FH117)>=2,AVERAGE('2011 Survey responses'!FG117,'2011 Survey responses'!FH117),\"\")","v":""},{"$f":"IF('2011 Survey responses'!FI117<0.5,\"\",'2011 Survey responses'!FI117)","v":5},{"$f":"IF('2011 Survey responses'!FE117<0.5,\"\",'2011 Survey responses'!FE117)","v":5},{"$f":"IF('2011 Survey responses'!FF117<0.5,\"\",'2011 Survey responses'!FF117)","v":5},{"$f":"IF('2011 Survey responses'!FG117<0.5,\"\",'2011 Survey responses'!FG117)","v":""},{"$f":"IF('2011 Survey responses'!FH117<0.5,\"\",'2011 Survey responses'!FH117)","v":""},{"$f":"IF('2011 Survey responses'!FL117<0.5,\"\",'2011 Survey responses'!FL117)","v":5},{"$f":"IF('2011 Survey responses'!FM117<0.5,\"\",'2011 Survey responses'!FM117)","v":5},{"$f":"IF('2011 Survey responses'!FO117<0.5,\"\",'2011 Survey responses'!FO117)","v":5},{"$f":"IF('2011 Survey responses'!FQ117<0.5,\"\",'2011 Survey responses'!FQ117)","v":5}]
["Mozambique",{"$f":"IF(SUM(F118)<1,\"\",AVERAGEIF('2011 Survey responses'!B118:CP118,\">1\"))","v":3.7088607594936707},{"$f":"IF(SUM(F118)<1,\"\",AVERAGEIF('2011 Survey responses'!B118:AO118,\">1\"))","v":4.0555555555555554},{"$f":"IF(SUM(F118)<1,\"\",AVERAGEIF('2011 Survey responses'!B118:BV118,\">1\"))","v":3.6461538461538461},{"$f":"IF(SUM(F118)<1,\"\",AVERAGEIF('2011 Survey responses'!V118:BV118,\">1\"))","v":3.5},{"$f":"IF(SUM('2011 Survey responses'!B118:U118)<1,\"\",(AVERAGEIFS('2011 Survey responses'!B118:U118,'2011 Survey responses'!B118:U118,\">1\")))","v":4.0588235294117645},{"$f":"IF(SUM('2011 Survey responses'!B118:H118)<1,\"\",(AVERAGEIFS('2011 Survey responses'!B118:H118,'2011 Survey responses'!B118:H118,\">1\")))","v":4},{"$f":"IF(SUM('2011 Survey responses'!I118:S118)<1,\"\",(AVERAGEIFS('2011 Survey responses'!I118:S118,'2011 Survey responses'!I118:S118,\">1\")))","v":3.9090909090909092},{"$f":"IF(SUM('2011 Survey responses'!T118:U118)<2.1,\"\",(AVERAGEIFS('2011 Survey responses'!T118:U118,'2011 Survey responses'!T118:U118,\">1\")))","v":5},{"$f":"IF(SUM('2011 Survey responses'!B118:C118)<2.1,\"\",((SUMIF('2011 Survey responses'!B118:C118,\">1\")+SUMIF('2011 Survey responses'!F118,\">1\"))/(COUNTIF('2011 Survey responses'!B118:C118,\">1\")+COUNTIF('2011 Survey responses'!F118,\">1\"))))","v":4},{"$f":"IF(SUM('2011 Survey responses'!D118:E118)<2.1,\"\",(AVERAGEIFS('2011 Survey responses'!D118:E118,'2011 Survey responses'!D118:E118,\">1\")))","v":5},{"$f":"IF(('2011 Survey responses'!B118+'2011 Survey responses'!D118)<2.1,\"\",((SUMIF('2011 Survey responses'!B118,\">1\")+SUMIF('2011 Survey responses'!D118,\">1\")+SUMIF('2011 Survey responses'!F118,\">1\")+SUMIF('2011 Survey responses'!K118,\">1\"))/(COUNTIF('2011 Survey responses'!B118,\">1\")+COUNTIF('2011 Survey responses'!D118,\">1\")+COUNTIF('2011 Survey responses'!F118,\">1\")+COUNTIF('2011 Survey responses'!K118,\">1\"))))","v":4},{"$f":"IF(SUM('2011 Survey responses'!G118:H118)<2.1,\"\",(AVERAGEIFS('2011 Survey responses'!G118:H118,'2011 Survey responses'!G118:H118,\">1\")))","v":3},{"$f":"IF(SUM('2011 Survey responses'!F118:G118)<1.5,\"\",MAX('2011 Survey responses'!F118,'2011 Survey responses'!G118))","v":4},{"$f":"IF(SUM('2011 Survey responses'!G118:H118)<1,\"\",MAX('2011 Survey responses'!G118,'2011 Survey responses'!H118))","v":3},{"$f":"IF(SUM('2011 Survey responses'!I118:L118)<4.1,\"\",(AVERAGEIFS('2011 Survey responses'!I118:L118,'2011 Survey responses'!I118:L118,\">1\")))","v":4},{"$f":"IF(SUM('2011 Survey responses'!M118:S118)<4.1,\"\",(AVERAGEIFS('2011 Survey responses'!M118:S118,'2011 Survey responses'!M118:S118,\">1\")))","v":3.8571428571428572},{"$f":"IF(SUM('2011 Survey responses'!T118:U118)<2.1,\"\",(AVERAGEIFS('2011 Survey responses'!T118:U118,'2011 Survey responses'!T118:U118,\">1\")))","v":5},{"$f":"IF(SUM('2011 Survey responses'!V118:AO118)<1,\"\",(AVERAGEIFS('2011 Survey responses'!V118:AO118,'2011 Survey responses'!V118:AO118,\">1\")))","v":4.0526315789473681},{"$f":"IF(SUM('2011 Survey responses'!V118:AA118)<1,\"\",(AVERAGEIFS('2011 Survey responses'!V118:AA118,'2011 Survey responses'!V118:AA118,\">1\")))","v":4.166666666666667},{"$f":"IF(SUM('2011 Survey responses'!AB118:AH118)<1,\"\",(AVERAGEIFS('2011 Survey responses'!AB118:AH118,'2011 Survey responses'!AB118:AH118,\">1\")))","v":4.2857142857142856},{"$f":"IF(SUM('2011 Survey responses'!AI118:AO118)<1,\"\",(AVERAGEIFS('2011 Survey responses'!AI118:AO118,'2011 Survey responses'!AI118:AO118,\">1\")))","v":3.6666666666666665},{"$f":"IF(('2011 Survey responses'!Y118+'2011 Survey responses'!AI118+'2011 Survey responses'!AK118)<3.1,\"\",((SUMIF('2011 Survey responses'!Y118,\">1\")+SUMIF('2011 Survey responses'!AI118,\">1\")+SUMIF('2011 Survey responses'!AK118,\">1\")+SUMIF('2011 Survey responses'!AM118,\">1\"))/(COUNTIF('2011 Survey responses'!Y118,\">1\")+COUNTIF('2011 Survey responses'!AI118,\">1\")+COUNTIF('2011 Survey responses'!AK118,\">1\")+COUNTIF('2011 Survey responses'!AM118,\">1\"))))","v":3.5},{"$f":"IF(('2011 Survey responses'!W118)<1.1,\"\",('2011 Survey responses'!W118))","v":2},{"$f":"IF(('2011 Survey responses'!Y118)<1.1,\"\",('2011 Survey responses'!Y118))","v":4},{"$f":"IF(('2011 Survey responses'!Z118)<1.1,\"\",('2011 Survey responses'!Z118))","v":6},{"$f":"IF(('2011 Survey responses'!V118+'2011 Survey responses'!X118+'2011 Survey responses'!AA118)<3.1,\"\",((SUMIF('2011 Survey responses'!V118,\">1\")+SUMIF('2011 Survey responses'!X118,\">1\")+SUMIF('2011 Survey responses'!AA118,\">1\"))/(COUNTIF('2011 Survey responses'!V118,\">1\")+COUNTIF('2011 Survey responses'!X118,\">1\")+COUNTIF('2011 Survey responses'!AA118,\">1\"))))","v":4.333333333333333},{"$f":"IF(('2011 Survey responses'!V118+'2011 Survey responses'!Y118+'2011 Survey responses'!AA118)<3.1,\"\",((SUMIF('2011 Survey responses'!V118,\">1\")+SUMIF('2011 Survey responses'!Y118,\">1\")+SUMIF('2011 Survey responses'!AA118,\">1\"))/(COUNTIF('2011 Survey responses'!V118,\">1\")+COUNTIF('2011 Survey responses'!Y118,\">1\")+COUNTIF('2011 Survey responses'!AA118,\">1\"))))","v":5},{"$f":"IF(SUM('2011 Survey responses'!AB118:AH118)<1,\"\",(AVERAGEIFS('2011 Survey responses'!AB118:AH118,'2011 Survey responses'!AB118:AH118,\">1\")))","v":4.2857142857142856},{"$f":"IF(SUM('2011 Survey responses'!AI118:AO118)<7.1,\"\",(AVERAGEIFS('2011 Survey responses'!AI118:AO118,'2011 Survey responses'!AI118:AO118,\">1\")))","v":3.6666666666666665},{"$f":"IF(('2011 Survey responses'!AH118)<1.1,\"\",('2011 Survey responses'!AH118))","v":4},{"$f":"IF(SUM('2011 Survey responses'!AP118:BV118)<1,\"\",(AVERAGEIFS('2011 Survey responses'!AP118:BV118,'2011 Survey responses'!AP118:BV118,\">1\")))","v":3.1379310344827585},{"$f":"IF(SUM('2011 Survey responses'!AP118:AS118)<4.1,\"\",(AVERAGEIFS('2011 Survey responses'!AP118:AS118,'2011 Survey responses'!AP118:AS118,\">1\")))","v":2.5},{"$f":"IF(SUM('2011 Survey responses'!AT118:BF118)<1,\"\",(AVERAGEIFS('2011 Survey responses'!AT118:BF118,'2011 Survey responses'!AT118:BF118,\">1\")))","v":3.25},{"$f":"IF(SUM('2011 Survey responses'!BG118:BO118)<1,\"\",(AVERAGEIFS('2011 Survey responses'!BG118:BO118,'2011 Survey responses'!BG118:BO118,\">1\")))","v":3.125},{"$f":"IF(SUM('2011 Survey responses'!BP118:BS118)<1,\"\",(AVERAGEIFS('2011 Survey responses'!BP118:BS118,'2011 Survey responses'!BP118:BS118,\">1\")))","v":3.3333333333333335},{"$f":"IF(SUM('2011 Survey responses'!BT118:BV118)<3.1,\"\",(AVERAGEIFS('2011 Survey responses'!BT118:BV118,'2011 Survey responses'!BT118:BV118,\">1\")))","v":3.5},{"$f":"IF(('2011 Survey responses'!AQ118+'2011 Survey responses'!AR118+'2011 Survey responses'!BG118)<3.1,\"\",((SUMIF('2011 Survey responses'!AQ118,\">1\")+SUMIF('2011 Survey responses'!AR118,\">1\")+SUMIF('2011 Survey responses'!BG118,\">1\"))/(COUNTIF('2011 Survey responses'!AQ118,\">1\")+COUNTIF('2011 Survey responses'!AR118,\">1\")+COUNTIF('2011 Survey responses'!BG118,\">1\"))))","v":2.6666666666666665},{"$f":"IF(SUM('2011 Survey responses'!AP118:AS118)<4.1,\"\",(AVERAGEIFS('2011 Survey responses'!AP118:AS118,'2011 Survey responses'!AP118:AS118,\">1\")))","v":2.5},{"$f":"IF(('2011 Survey responses'!AU118+'2011 Survey responses'!AX118+'2011 Survey responses'!BA118+'2011 Survey responses'!BC118+'2011 Survey responses'!BD118)<5.1,\"\",(SUMIF('2011 Survey responses'!AU118,\">1\")+SUMIF('2011 Survey responses'!AX118,\">1\")+SUMIF('2011 Survey responses'!BA118,\">1\")+SUMIF('2011 Survey responses'!BC118,\">1\")+SUMIF('2011 Survey responses'!BD118,\">1\"))/(COUNTIF('2011 Survey responses'!AU118,\">1\")+COUNTIF('2011 Survey responses'!AX118,\">1\")+COUNTIF('2011 Survey responses'!BA118,\">1\")+COUNTIF('2011 Survey responses'!BC118,\">1\")+COUNTIF('2011 Survey responses'!BD118,\">1\")))","v":4.25},{"$f":"IF(('2011 Survey responses'!AT118)<1.1,\"\",('2011 Survey responses'!AT118))","v":2},{"$f":"IF(SUM('2011 Survey responses'!AV118:AW118)<2.1,\"\",(AVERAGEIFS('2011 Survey responses'!AV118:AW118,'2011 Survey responses'!AV118:AW118,\">1\")))","v":3},{"$f":"IF(('2011 Survey responses'!AW118+'2011 Survey responses'!AY118)<2.1,\"\",(SUMIF('2011 Survey responses'!AW118,\">1\")+SUMIF('2011 Survey responses'!AY118,\">1\"))/(COUNTIF('2011 Survey responses'!AW118,\">1\")+COUNTIF('2011 Survey responses'!AY118,\">1\")))","v":3},{"$f":"IF(('2011 Survey responses'!AZ118)<1.1,\"\",('2011 Survey responses'!AZ118))","v":3},3,1,1,1,{"$f":"IF(('2011 Survey responses'!BE118)<1.1,\"\",('2011 Survey responses'!BE118))","v":5},{"$f":"IF(('2011 Survey responses'!AY118+'2011 Survey responses'!BB118+'2011 Survey responses'!BF118)<3.1,\"\",(SUMIF('2011 Survey responses'!AY118,\">1\")+SUMIF('2011 Survey responses'!BB118,\">1\")+SUMIF('2011 Survey responses'!BF118,\">1\"))/(COUNTIF('2011 Survey responses'!AY118,\">1\")+COUNTIF('2011 Survey responses'!BB118,\">1\")+COUNTIF('2011 Survey responses'!BF118,\">1\")))","v":2},3.229166666666667,{"$f":"IF(SUM('2011 Survey responses'!BT118:BV118)<3.1,\"\",(AVERAGEIFS('2011 Survey responses'!BT118:BV118,'2011 Survey responses'!BT118:BV118,\">1\")))","v":3.5},{"$f":"IF(SUM('2011 Survey responses'!BW118:CP118)<1,\"\",(AVERAGEIFS('2011 Survey responses'!BW118:CP118,'2011 Survey responses'!BW118:CP118,\">1\")))","v":4},{"$f":"IF(SUM('2011 Survey responses'!BW118:CF118)<1,\"\",(AVERAGEIFS('2011 Survey responses'!BW118:CF118,'2011 Survey responses'!BW118:CF118,\">1\")))","v":4.1428571428571432},{"$f":"IF(SUM('2011 Survey responses'!CG118:CP118)<1,\"\",(AVERAGEIFS('2011 Survey responses'!CG118:CP118,'2011 Survey responses'!CG118:CP118,\">1\")))","v":3.8571428571428572},{"$f":"IF(SUM('2011 Survey responses'!BX118:CF118)<1,\"\",(AVERAGEIFS('2011 Survey responses'!BX118:CF118,'2011 Survey responses'!BX118:CF118,\">1\")))","v":4.166666666666667},{"$f":"IF(SUM('2011 Survey responses'!CH118:CP118)<1,\"\",(AVERAGEIFS('2011 Survey responses'!CH118:CP118,'2011 Survey responses'!CH118:CP118,\">1\")))","v":3.8333333333333335},{"$f":"IF(SUM('2011 Survey responses'!BW118:CP118)<1,\"\",(AVERAGEIFS('2011 Survey responses'!BW118:CP118,'2011 Survey responses'!BW118:CP118,\">1\")))","v":4},{"$f":"IF(('2011 Survey responses'!BW118+'2011 Survey responses'!CG118)<2.1,\"\",(SUMIF('2011 Survey responses'!BW118,\">1\")+SUMIF('2011 Survey responses'!CG118,\">1\"))/(COUNTIF('2011 Survey responses'!BW118,\">1\")+COUNTIF('2011 Survey responses'!CG118,\">1\")))","v":4},{"$f":"IF(('2011 Survey responses'!BX118+'2011 Survey responses'!CH118)<2.1,\"\",(SUMIF('2011 Survey responses'!BX118,\">1\")+SUMIF('2011 Survey responses'!CH118,\">1\"))/(COUNTIF('2011 Survey responses'!BX118,\">1\")+COUNTIF('2011 Survey responses'!CH118,\">1\")))","v":4},{"$f":"IF(('2011 Survey responses'!BY118+'2011 Survey responses'!CI118)<2.1,\"\",(SUMIF('2011 Survey responses'!BY118,\">1\")+SUMIF('2011 Survey responses'!CI118,\">1\"))/(COUNTIF('2011 Survey responses'!BY118,\">1\")+COUNTIF('2011 Survey responses'!CI118,\">1\")))","v":4},{"$f":"IF('2011 Survey responses'!CQ118<0.5,\"\",'2011 Survey responses'!CQ118)","v":4},{"$f":"IF('2011 Survey responses'!CR118<0.5,\"\",'2011 Survey responses'!CR118)","v":4},{"$f":"IF('2011 Survey responses'!CS118<0.5,\"\",'2011 Survey responses'!CS118)","v":4},{"$f":"IF('2011 Survey responses'!CT118<0.5,\"\",'2011 Survey responses'!CT118)","v":4},{"$f":"IF('2011 Survey responses'!CU118<0.5,\"\",'2011 Survey responses'!CU118)","v":4},{"$f":"IF('2011 Survey responses'!CV118<0.5,\"\",'2011 Survey responses'!CV118)","v":1},{"$f":"IF(SUM('2011 Survey responses'!CW118:DL118)<1,\"\",(AVERAGE('2011 Survey responses'!CW118:DL118)))","v":3},{"$f":"IF(SUM('2011 Survey responses'!CW118:CZ118)<1,\"\",(AVERAGE('2011 Survey responses'!CW118:CZ118)))","v":3},{"$f":"IF(SUM('2011 Survey responses'!DA118:DD118)<1,\"\",(AVERAGE('2011 Survey responses'!DA118:DD118)))","v":4},{"$f":"IF(SUM('2011 Survey responses'!DE118:DH118)<1,\"\",(AVERAGE('2011 Survey responses'!DE118:DH118)))","v":2.75},{"$f":"IF(SUM('2011 Survey responses'!DI118:DL118)<1,\"\",(AVERAGE('2011 Survey responses'!DI118:DL118)))","v":2.25},{"$f":"IF(('2011 Survey responses'!CW118+'2011 Survey responses'!DA118+'2011 Survey responses'!DE118+'2011 Survey responses'!DI118)<1,\"\",AVERAGE('2011 Survey responses'!CW118,'2011 Survey responses'!DA118,'2011 Survey responses'!DE118,'2011 Survey responses'!DI118))","v":3.25},{"$f":"IF(('2011 Survey responses'!CX118+'2011 Survey responses'!DB118+'2011 Survey responses'!DF118+'2011 Survey responses'!DJ118)<1,\"\",AVERAGE('2011 Survey responses'!CX118,'2011 Survey responses'!DB118,'2011 Survey responses'!DF118,'2011 Survey responses'!DJ118))","v":3.25},{"$f":"IF(('2011 Survey responses'!CY118+'2011 Survey responses'!DC118+'2011 Survey responses'!DG118+'2011 Survey responses'!DK118)<1,\"\",AVERAGE('2011 Survey responses'!CY118,'2011 Survey responses'!DC118,'2011 Survey responses'!DG118,'2011 Survey responses'!DK118))","v":2.5},{"$f":"IF(('2011 Survey responses'!CZ118+'2011 Survey responses'!DD118+'2011 Survey responses'!DH118+'2011 Survey responses'!DL118)<1,\"\",AVERAGE('2011 Survey responses'!CZ118,'2011 Survey responses'!DD118,'2011 Survey responses'!DH118,'2011 Survey responses'!DL118))","v":3},{"$f":"IF('2011 Survey responses'!CW118<0.5,\"\",'2011 Survey responses'!CW118)","v":3},{"$f":"IF('2011 Survey responses'!CX118<0.5,\"\",'2011 Survey responses'!CX118)","v":4},{"$f":"IF('2011 Survey responses'!CY118<0.5,\"\",'2011 Survey responses'!CY118)","v":2},{"$f":"IF('2011 Survey responses'!CZ118<0.5,\"\",'2011 Survey responses'!CZ118)","v":3},{"$f":"IF('2011 Survey responses'!DA118<0.5,\"\",'2011 Survey responses'!DA118)","v":4},{"$f":"IF('2011 Survey responses'!DB118<0.5,\"\",'2011 Survey responses'!DB118)","v":4},{"$f":"IF('2011 Survey responses'!DC118<0.5,\"\",'2011 Survey responses'!DC118)","v":4},{"$f":"IF('2011 Survey responses'!DD118<0.5,\"\",'2011 Survey responses'!DD118)","v":4},{"$f":"IF('2011 Survey responses'!DE118<0.5,\"\",'2011 Survey responses'!DE118)","v":3},{"$f":"IF('2011 Survey responses'!DF118<0.5,\"\",'2011 Survey responses'!DF118)","v":3},{"$f":"IF('2011 Survey responses'!DG118<0.5,\"\",'2011 Survey responses'!DG118)","v":2},{"$f":"IF('2011 Survey responses'!DH118<0.5,\"\",'2011 Survey responses'!DH118)","v":3},{"$f":"IF('2011 Survey responses'!DI118<0.5,\"\",'2011 Survey responses'!DI118)","v":3},{"$f":"IF('2011 Survey responses'!DJ118<0.5,\"\",'2011 Survey responses'!DJ118)","v":2},{"$f":"IF('2011 Survey responses'!DK118<0.5,\"\",'2011 Survey responses'!DK118)","v":2},{"$f":"IF('2011 Survey responses'!DL118<0.5,\"\",'2011 Survey responses'!DL118)","v":2},{"$f":"IF('2011 Survey responses'!DU118=4,4,IF('2011 Survey responses'!DU118=5,4,\"\"))","v":4},{"$f":"IF('2011 Survey responses'!DV118=4,3,IF('2011 Survey responses'!DV118=5,3,\"\"))","v":3},2,{"$f":"IF(CQ118=2,CQ118,IF(CO118=4,CO118,IF(CP118=3,CP118,IF('2011 Survey responses'!GT118=1,1,\"\"))))","v":2},{"$f":"IF('2011 Survey responses'!DO118<0.5,\"\",'2011 Survey responses'!DO118)","v":4},{"$f":"IF('2011 Survey responses'!DP118<0.5,\"\",'2011 Survey responses'!DP118)","v":5},{"$f":"IF('2011 Survey responses'!DQ118<0.5,\"\",'2011 Survey responses'!DQ118)","v":4},{"$f":"IF('2011 Survey responses'!DR118<0.5,\"\",'2011 Survey responses'!DR118)","v":4},{"$f":"IF('2011 Survey responses'!DS118<0.5,\"\",'2011 Survey responses'!DS118)","v":3},{"$f":"IF('2011 Survey responses'!DT118<0.5,\"\",'2011 Survey responses'!DT118)","v":5},{"$f":"IF('2011 Survey responses'!DU118<0.5,\"\",'2011 Survey responses'!DU118)","v":5},{"$f":"IF('2011 Survey responses'!DV118<0.5,\"\",'2011 Survey responses'!DV118)","v":5},{"$f":"IF('2011 Survey responses'!DW118<0.5,\"\",'2011 Survey responses'!DW118)","v":4},{"$f":"IF('2011 Survey responses'!DX118<0.5,\"\",'2011 Survey responses'!DX118)","v":3},{"$f":"IF('2011 Survey responses'!DY118<0.5,\"\",'2011 Survey responses'!DY118)","v":3},{"$f":"IF('2011 Survey responses'!DZ118<0.5,\"\",'2011 Survey responses'!DZ118)","v":5},{"$f":"IF('2011 Survey responses'!EA118<0.5,\"\",'2011 Survey responses'!EA118)","v":4},{"$f":"IF('2011 Survey responses'!EB118<0.5,\"\",'2011 Survey responses'!EB118)","v":5},{"$f":"IF('2011 Survey responses'!EC118<0.5,\"\",'2011 Survey responses'!EC118)","v":4},{"$f":"IF('2011 Survey responses'!ED118<0.5,\"\",'2011 Survey responses'!ED118)","v":3},{"$f":"IF('2011 Survey responses'!EE118<0.5,\"\",'2011 Survey responses'!EE118)","v":3},{"$f":"IF('2011 Survey responses'!EF118<0.5,\"\",'2011 Survey responses'!EF118)","v":5},{"$f":"IF('2011 Survey responses'!EG118<0.5,\"\",'2011 Survey responses'!EG118)","v":5},{"$f":"IF('2011 Survey responses'!EH118<0.5,\"\",'2011 Survey responses'!EH118)","v":5},{"$f":"IF('2011 Survey responses'!EI118<0.5,\"\",'2011 Survey responses'!EI118)","v":4},{"$f":"IF('2011 Survey responses'!EJ118<0.5,\"\",'2011 Survey responses'!EJ118)","v":3},{"$f":"IF('2011 Survey responses'!EK118<0.5,\"\",'2011 Survey responses'!EK118)","v":4},{"$f":"IF('2011 Survey responses'!EL118<0.5,\"\",'2011 Survey responses'!EL118)","v":3},{"$f":"IF('2011 Survey responses'!EM118<0.5,\"\",'2011 Survey responses'!EM118)","v":4},{"$f":"IF('2011 Survey responses'!EN118<0.5,\"\",'2011 Survey responses'!EN118)","v":5},{"$f":"IF('2011 Survey responses'!EO118<0.5,\"\",'2011 Survey responses'!EO118)","v":5},{"$f":"IF('2011 Survey responses'!EP118<0.5,\"\",'2011 Survey responses'!EP118)","v":4},{"$f":"IF(('2011 Survey responses'!EW118+'2011 Survey responses'!EX118)>=2,AVERAGE('2011 Survey responses'!EW118,'2011 Survey responses'!EY118),\"\")","v":5},{"$f":"IF('2011 Survey responses'!EX118<0.5,\"\",'2011 Survey responses'!EX118)","v":4},{"$f":"IF('2011 Survey responses'!EZ118<0.5,\"\",'2011 Survey responses'!EZ118)","v":4},{"$f":"IF('2011 Survey responses'!FB118<0.5,\"\",'2011 Survey responses'!FB118)","v":4},{"$f":"IF('2011 Survey responses'!FD118<0.5,\"\",'2011 Survey responses'!FD118)","v":2},{"$f":"IF('2011 Survey responses'!FC118<0.5,\"\",'2011 Survey responses'!FC118)","v":3},{"$f":"IF(('2011 Survey responses'!EM118+'2011 Survey responses'!EN118)>=2,AVERAGE('2011 Survey responses'!EM118,'2011 Survey responses'!EN118),\"\")","v":4.5},{"$f":"IF('2011 Survey responses'!ES118<0.5,\"\",'2011 Survey responses'!ES118)","v":5},{"$f":"IF(('2011 Survey responses'!ET118+'2011 Survey responses'!EU118)>=2,AVERAGE('2011 Survey responses'!ET118,'2011 Survey responses'!EU118),\"\")","v":4.5},{"$f":"IF('2011 Survey responses'!EV118<0.5,\"\",'2011 Survey responses'!EV118)","v":3},{"$f":"IF('2011 Survey responses'!FA118<0.5,\"\",'2011 Survey responses'!FA118)","v":5},{"$f":"IF('2011 Survey responses'!ER118<0.5,\"\",'2011 Survey responses'!ER118)","v":3},{"$f":"IF(('2011 Survey responses'!EO118+'2011 Survey responses'!EP118)>=2,AVERAGE('2011 Survey responses'!EO118,'2011 Survey responses'!EP118),\"\")","v":4.5},{"$f":"IF('2011 Survey responses'!EQ118<0.5,\"\",'2011 Survey responses'!EQ118)","v":3},{"$f":"IF('2011 Survey responses'!ET118<0.5,\"\",'2011 Survey responses'!ET118)","v":4},{"$f":"IF('2011 Survey responses'!EU118<0.5,\"\",'2011 Survey responses'!EU118)","v":5},{"$f":"IF('2011 Survey responses'!EW118<0.5,\"\",'2011 Survey responses'!EW118)","v":5},{"$f":"IF('2011 Survey responses'!EY118<0.5,\"\",'2011 Survey responses'!EY118)","v":5},{"$f":"IF('2011 Survey responses'!FU118<0.5,\"\",'2011 Survey responses'!FU118)","v":4},{"$f":"IF(('2011 Survey responses'!FL118+'2011 Survey responses'!FM118)>=2,AVERAGE('2011 Survey responses'!FL118,'2011 Survey responses'!FM118),\"\")","v":3},{"$f":"IF(('2011 Survey responses'!FO118+'2011 Survey responses'!FQ118)>=2,AVERAGE('2011 Survey responses'!FO118,'2011 Survey responses'!FQ118),\"\")","v":2.5},{"$f":"IF('2011 Survey responses'!FJ118<0.5,\"\",'2011 Survey responses'!FJ118)","v":1},{"$f":"IF('2011 Survey responses'!FT118<0.5,\"\",'2011 Survey responses'!FT118)","v":1},{"$f":"IF('2011 Survey responses'!FR118<0.5,\"\",'2011 Survey responses'!FR118)","v":2},{"$f":"IF('2011 Survey responses'!FK118<0.5,\"\",'2011 Survey responses'!FK118)","v":2},{"$f":"IF('2011 Survey responses'!FP118<0.5,\"\",'2011 Survey responses'!FP118)","v":2},{"$f":"IF('2011 Survey responses'!FN118<0.5,\"\",'2011 Survey responses'!FN118)","v":1},{"$f":"IF(('2011 Survey responses'!FE118+'2011 Survey responses'!FF118)>=2,AVERAGE('2011 Survey responses'!FE118,'2011 Survey responses'!FF118),\"\")","v":1.5},{"$f":"IF('2011 Survey responses'!FS118<0.5,\"\",'2011 Survey responses'!FS118)","v":1},{"$f":"IF('2011 Survey responses'!FV118<0.5,\"\",'2011 Survey responses'!FV118)","v":3},{"$f":"IF(('2011 Survey responses'!FG118+'2011 Survey responses'!FH118)>=2,AVERAGE('2011 Survey responses'!FG118,'2011 Survey responses'!FH118),\"\")","v":1.5},{"$f":"IF('2011 Survey responses'!FI118<0.5,\"\",'2011 Survey responses'!FI118)","v":1},{"$f":"IF('2011 Survey responses'!FE118<0.5,\"\",'2011 Survey responses'!FE118)","v":2},{"$f":"IF('2011 Survey responses'!FF118<0.5,\"\",'2011 Survey responses'!FF118)","v":1},{"$f":"IF('2011 Survey responses'!FG118<0.5,\"\",'2011 Survey responses'!FG118)","v":2},{"$f":"IF('2011 Survey responses'!FH118<0.5,\"\",'2011 Survey responses'!FH118)","v":1},{"$f":"IF('2011 Survey responses'!FL118<0.5,\"\",'2011 Survey responses'!FL118)","v":2},{"$f":"IF('2011 Survey responses'!FM118<0.5,\"\",'2011 Survey responses'!FM118)","v":4},{"$f":"IF('2011 Survey responses'!FO118<0.5,\"\",'2011 Survey responses'!FO118)","v":3},{"$f":"IF('2011 Survey responses'!FQ118<0.5,\"\",'2011 Survey responses'!FQ118)","v":2}]
["Myanmar",{"$f":"IF(SUM(F119)<1,\"\",AVERAGEIF('2011 Survey responses'!B119:CP119,\">1\"))","v":3.2674418604651163},{"$f":"IF(SUM(F119)<1,\"\",AVERAGEIF('2011 Survey responses'!B119:AO119,\">1\"))","v":3.1176470588235294},{"$f":"IF(SUM(F119)<1,\"\",AVERAGEIF('2011 Survey responses'!B119:BV119,\">1\"))","v":2.9848484848484849},{"$f":"IF(SUM(F119)<1,\"\",AVERAGEIF('2011 Survey responses'!V119:BV119,\">1\"))","v":2.8627450980392157},{"$f":"IF(SUM('2011 Survey responses'!B119:U119)<1,\"\",(AVERAGEIFS('2011 Survey responses'!B119:U119,'2011 Survey responses'!B119:U119,\">1\")))","v":3.4},{"$f":"IF(SUM('2011 Survey responses'!B119:H119)<1,\"\",(AVERAGEIFS('2011 Survey responses'!B119:H119,'2011 Survey responses'!B119:H119,\">1\")))","v":3},{"$f":"IF(SUM('2011 Survey responses'!I119:S119)<1,\"\",(AVERAGEIFS('2011 Survey responses'!I119:S119,'2011 Survey responses'!I119:S119,\">1\")))","v":3.3636363636363638},{"$f":"IF(SUM('2011 Survey responses'!T119:U119)<2.1,\"\",(AVERAGEIFS('2011 Survey responses'!T119:U119,'2011 Survey responses'!T119:U119,\">1\")))","v":4},{"$f":"IF(SUM('2011 Survey responses'!B119:C119)<2.1,\"\",((SUMIF('2011 Survey responses'!B119:C119,\">1\")+SUMIF('2011 Survey responses'!F119,\">1\"))/(COUNTIF('2011 Survey responses'!B119:C119,\">1\")+COUNTIF('2011 Survey responses'!F119,\">1\"))))","v":""},{"$f":"IF(SUM('2011 Survey responses'!D119:E119)<2.1,\"\",(AVERAGEIFS('2011 Survey responses'!D119:E119,'2011 Survey responses'!D119:E119,\">1\")))","v":""},{"$f":"IF(('2011 Survey responses'!B119+'2011 Survey responses'!D119)<2.1,\"\",((SUMIF('2011 Survey responses'!B119,\">1\")+SUMIF('2011 Survey responses'!D119,\">1\")+SUMIF('2011 Survey responses'!F119,\">1\")+SUMIF('2011 Survey responses'!K119,\">1\"))/(COUNTIF('2011 Survey responses'!B119,\">1\")+COUNTIF('2011 Survey responses'!D119,\">1\")+COUNTIF('2011 Survey responses'!F119,\">1\")+COUNTIF('2011 Survey responses'!K119,\">1\"))))","v":""},{"$f":"IF(SUM('2011 Survey responses'!G119:H119)<2.1,\"\",(AVERAGEIFS('2011 Survey responses'!G119:H119,'2011 Survey responses'!G119:H119,\">1\")))","v":4},{"$f":"IF(SUM('2011 Survey responses'!F119:G119)<1.5,\"\",MAX('2011 Survey responses'!F119,'2011 Survey responses'!G119))","v":2},{"$f":"IF(SUM('2011 Survey responses'!G119:H119)<1,\"\",MAX('2011 Survey responses'!G119,'2011 Survey responses'!H119))","v":4},{"$f":"IF(SUM('2011 Survey responses'!I119:L119)<4.1,\"\",(AVERAGEIFS('2011 Survey responses'!I119:L119,'2011 Survey responses'!I119:L119,\">1\")))","v":3},{"$f":"IF(SUM('2011 Survey responses'!M119:S119)<4.1,\"\",(AVERAGEIFS('2011 Survey responses'!M119:S119,'2011 Survey responses'!M119:S119,\">1\")))","v":3.5714285714285716},{"$f":"IF(SUM('2011 Survey responses'!T119:U119)<2.1,\"\",(AVERAGEIFS('2011 Survey responses'!T119:U119,'2011 Survey responses'!T119:U119,\">1\")))","v":4},{"$f":"IF(SUM('2011 Survey responses'!V119:AO119)<1,\"\",(AVERAGEIFS('2011 Survey responses'!V119:AO119,'2011 Survey responses'!V119:AO119,\">1\")))","v":2.8947368421052633},{"$f":"IF(SUM('2011 Survey responses'!V119:AA119)<1,\"\",(AVERAGEIFS('2011 Survey responses'!V119:AA119,'2011 Survey responses'!V119:AA119,\">1\")))","v":2.2000000000000002},{"$f":"IF(SUM('2011 Survey responses'!AB119:AH119)<1,\"\",(AVERAGEIFS('2011 Survey responses'!AB119:AH119,'2011 Survey responses'!AB119:AH119,\">1\")))","v":2.5714285714285716},{"$f":"IF(SUM('2011 Survey responses'!AI119:AO119)<1,\"\",(AVERAGEIFS('2011 Survey responses'!AI119:AO119,'2011 Survey responses'!AI119:AO119,\">1\")))","v":3.7142857142857144},{"$f":"IF(('2011 Survey responses'!Y119+'2011 Survey responses'!AI119+'2011 Survey responses'!AK119)<3.1,\"\",((SUMIF('2011 Survey responses'!Y119,\">1\")+SUMIF('2011 Survey responses'!AI119,\">1\")+SUMIF('2011 Survey responses'!AK119,\">1\")+SUMIF('2011 Survey responses'!AM119,\">1\"))/(COUNTIF('2011 Survey responses'!Y119,\">1\")+COUNTIF('2011 Survey responses'!AI119,\">1\")+COUNTIF('2011 Survey responses'!AK119,\">1\")+COUNTIF('2011 Survey responses'!AM119,\">1\"))))","v":3.25},{"$f":"IF(('2011 Survey responses'!W119)<1.1,\"\",('2011 Survey responses'!W119))","v":2},{"$f":"IF(('2011 Survey responses'!Y119)<1.1,\"\",('2011 Survey responses'!Y119))","v":3},{"$f":"IF(('2011 Survey responses'!Z119)<1.1,\"\",('2011 Survey responses'!Z119))","v":2},{"$f":"IF(('2011 Survey responses'!V119+'2011 Survey responses'!X119+'2011 Survey responses'!AA119)<3.1,\"\",((SUMIF('2011 Survey responses'!V119,\">1\")+SUMIF('2011 Survey responses'!X119,\">1\")+SUMIF('2011 Survey responses'!AA119,\">1\"))/(COUNTIF('2011 Survey responses'!V119,\">1\")+COUNTIF('2011 Survey responses'!X119,\">1\")+COUNTIF('2011 Survey responses'!AA119,\">1\"))))","v":2},{"$f":"IF(('2011 Survey responses'!V119+'2011 Survey responses'!Y119+'2011 Survey responses'!AA119)<3.1,\"\",((SUMIF('2011 Survey responses'!V119,\">1\")+SUMIF('2011 Survey responses'!Y119,\">1\")+SUMIF('2011 Survey responses'!AA119,\">1\"))/(COUNTIF('2011 Survey responses'!V119,\">1\")+COUNTIF('2011 Survey responses'!Y119,\">1\")+COUNTIF('2011 Survey responses'!AA119,\">1\"))))","v":2.5},{"$f":"IF(SUM('2011 Survey responses'!AB119:AH119)<1,\"\",(AVERAGEIFS('2011 Survey responses'!AB119:AH119,'2011 Survey responses'!AB119:AH119,\">1\")))","v":2.5714285714285716},{"$f":"IF(SUM('2011 Survey responses'!AI119:AO119)<7.1,\"\",(AVERAGEIFS('2011 Survey responses'!AI119:AO119,'2011 Survey responses'!AI119:AO119,\">1\")))","v":3.7142857142857144},{"$f":"IF(('2011 Survey responses'!AH119)<1.1,\"\",('2011 Survey responses'!AH119))","v":2},{"$f":"IF(SUM('2011 Survey responses'!AP119:BV119)<1,\"\",(AVERAGEIFS('2011 Survey responses'!AP119:BV119,'2011 Survey responses'!AP119:BV119,\">1\")))","v":2.84375},{"$f":"IF(SUM('2011 Survey responses'!AP119:AS119)<4.1,\"\",(AVERAGEIFS('2011 Survey responses'!AP119:AS119,'2011 Survey responses'!AP119:AS119,\">1\")))","v":2.5},{"$f":"IF(SUM('2011 Survey responses'!AT119:BF119)<1,\"\",(AVERAGEIFS('2011 Survey responses'!AT119:BF119,'2011 Survey responses'!AT119:BF119,\">1\")))","v":3.0769230769230771},{"$f":"IF(SUM('2011 Survey responses'!BG119:BO119)<1,\"\",(AVERAGEIFS('2011 Survey responses'!BG119:BO119,'2011 Survey responses'!BG119:BO119,\">1\")))","v":2.5555555555555554},{"$f":"IF(SUM('2011 Survey responses'!BP119:BS119)<1,\"\",(AVERAGEIFS('2011 Survey responses'!BP119:BS119,'2011 Survey responses'!BP119:BS119,\">1\")))","v":3.5},{"$f":"IF(SUM('2011 Survey responses'!BT119:BV119)<3.1,\"\",(AVERAGEIFS('2011 Survey responses'!BT119:BV119,'2011 Survey responses'!BT119:BV119,\">1\")))","v":2},{"$f":"IF(('2011 Survey responses'!AQ119+'2011 Survey responses'!AR119+'2011 Survey responses'!BG119)<3.1,\"\",((SUMIF('2011 Survey responses'!AQ119,\">1\")+SUMIF('2011 Survey responses'!AR119,\">1\")+SUMIF('2011 Survey responses'!BG119,\">1\"))/(COUNTIF('2011 Survey responses'!AQ119,\">1\")+COUNTIF('2011 Survey responses'!AR119,\">1\")+COUNTIF('2011 Survey responses'!BG119,\">1\"))))","v":2.6666666666666665},{"$f":"IF(SUM('2011 Survey responses'!AP119:AS119)<4.1,\"\",(AVERAGEIFS('2011 Survey responses'!AP119:AS119,'2011 Survey responses'!AP119:AS119,\">1\")))","v":2.5},{"$f":"IF(('2011 Survey responses'!AU119+'2011 Survey responses'!AX119+'2011 Survey responses'!BA119+'2011 Survey responses'!BC119+'2011 Survey responses'!BD119)<5.1,\"\",(SUMIF('2011 Survey responses'!AU119,\">1\")+SUMIF('2011 Survey responses'!AX119,\">1\")+SUMIF('2011 Survey responses'!BA119,\">1\")+SUMIF('2011 Survey responses'!BC119,\">1\")+SUMIF('2011 Survey responses'!BD119,\">1\"))/(COUNTIF('2011 Survey responses'!AU119,\">1\")+COUNTIF('2011 Survey responses'!AX119,\">1\")+COUNTIF('2011 Survey responses'!BA119,\">1\")+COUNTIF('2011 Survey responses'!BC119,\">1\")+COUNTIF('2011 Survey responses'!BD119,\">1\")))","v":2.8},{"$f":"IF(('2011 Survey responses'!AT119)<1.1,\"\",('2011 Survey responses'!AT119))","v":4},{"$f":"IF(SUM('2011 Survey responses'!AV119:AW119)<2.1,\"\",(AVERAGEIFS('2011 Survey responses'!AV119:AW119,'2011 Survey responses'!AV119:AW119,\">1\")))","v":3},{"$f":"IF(('2011 Survey responses'!AW119+'2011 Survey responses'!AY119)<2.1,\"\",(SUMIF('2011 Survey responses'!AW119,\">1\")+SUMIF('2011 Survey responses'!AY119,\">1\"))/(COUNTIF('2011 Survey responses'!AW119,\">1\")+COUNTIF('2011 Survey responses'!AY119,\">1\")))","v":2},{"$f":"IF(('2011 Survey responses'!AZ119)<1.1,\"\",('2011 Survey responses'!AZ119))","v":2},2,2,2,1,{"$f":"IF(('2011 Survey responses'!BE119)<1.1,\"\",('2011 Survey responses'!BE119))","v":4},{"$f":"IF(('2011 Survey responses'!AY119+'2011 Survey responses'!BB119+'2011 Survey responses'!BF119)<3.1,\"\",(SUMIF('2011 Survey responses'!AY119,\">1\")+SUMIF('2011 Survey responses'!BB119,\">1\")+SUMIF('2011 Survey responses'!BF119,\">1\"))/(COUNTIF('2011 Survey responses'!AY119,\">1\")+COUNTIF('2011 Survey responses'!BB119,\">1\")+COUNTIF('2011 Survey responses'!BF119,\">1\")))","v":3.3333333333333335},3.0277777777777777,{"$f":"IF(SUM('2011 Survey responses'!BT119:BV119)<3.1,\"\",(AVERAGEIFS('2011 Survey responses'!BT119:BV119,'2011 Survey responses'!BT119:BV119,\">1\")))","v":2},{"$f":"IF(SUM('2011 Survey responses'!BW119:CP119)<1,\"\",(AVERAGEIFS('2011 Survey responses'!BW119:CP119,'2011 Survey responses'!BW119:CP119,\">1\")))","v":4.2},{"$f":"IF(SUM('2011 Survey responses'!BW119:CF119)<1,\"\",(AVERAGEIFS('2011 Survey responses'!BW119:CF119,'2011 Survey responses'!BW119:CF119,\">1\")))","v":4.3},{"$f":"IF(SUM('2011 Survey responses'!CG119:CP119)<1,\"\",(AVERAGEIFS('2011 Survey responses'!CG119:CP119,'2011 Survey responses'!CG119:CP119,\">1\")))","v":4.0999999999999996},{"$f":"IF(SUM('2011 Survey responses'!BX119:CF119)<1,\"\",(AVERAGEIFS('2011 Survey responses'!BX119:CF119,'2011 Survey responses'!BX119:CF119,\">1\")))","v":4.333333333333333},{"$f":"IF(SUM('2011 Survey responses'!CH119:CP119)<1,\"\",(AVERAGEIFS('2011 Survey responses'!CH119:CP119,'2011 Survey responses'!CH119:CP119,\">1\")))","v":4},{"$f":"IF(SUM('2011 Survey responses'!BW119:CP119)<1,\"\",(AVERAGEIFS('2011 Survey responses'!BW119:CP119,'2011 Survey responses'!BW119:CP119,\">1\")))","v":4.2},{"$f":"IF(('2011 Survey responses'!BW119+'2011 Survey responses'!CG119)<2.1,\"\",(SUMIF('2011 Survey responses'!BW119,\">1\")+SUMIF('2011 Survey responses'!CG119,\">1\"))/(COUNTIF('2011 Survey responses'!BW119,\">1\")+COUNTIF('2011 Survey responses'!CG119,\">1\")))","v":4.5},{"$f":"IF(('2011 Survey responses'!BX119+'2011 Survey responses'!CH119)<2.1,\"\",(SUMIF('2011 Survey responses'!BX119,\">1\")+SUMIF('2011 Survey responses'!CH119,\">1\"))/(COUNTIF('2011 Survey responses'!BX119,\">1\")+COUNTIF('2011 Survey responses'!CH119,\">1\")))","v":5},{"$f":"IF(('2011 Survey responses'!BY119+'2011 Survey responses'!CI119)<2.1,\"\",(SUMIF('2011 Survey responses'!BY119,\">1\")+SUMIF('2011 Survey responses'!CI119,\">1\"))/(COUNTIF('2011 Survey responses'!BY119,\">1\")+COUNTIF('2011 Survey responses'!CI119,\">1\")))","v":5},{"$f":"IF('2011 Survey responses'!CQ119<0.5,\"\",'2011 Survey responses'!CQ119)","v":4},{"$f":"IF('2011 Survey responses'!CR119<0.5,\"\",'2011 Survey responses'!CR119)","v":1},{"$f":"IF('2011 Survey responses'!CS119<0.5,\"\",'2011 Survey responses'!CS119)","v":1},{"$f":"IF('2011 Survey responses'!CT119<0.5,\"\",'2011 Survey responses'!CT119)","v":1},{"$f":"IF('2011 Survey responses'!CU119<0.5,\"\",'2011 Survey responses'!CU119)","v":1},{"$f":"IF('2011 Survey responses'!CV119<0.5,\"\",'2011 Survey responses'!CV119)","v":1},{"$f":"IF(SUM('2011 Survey responses'!CW119:DL119)<1,\"\",(AVERAGE('2011 Survey responses'!CW119:DL119)))","v":3},{"$f":"IF(SUM('2011 Survey responses'!CW119:CZ119)<1,\"\",(AVERAGE('2011 Survey responses'!CW119:CZ119)))","v":3},{"$f":"IF(SUM('2011 Survey responses'!DA119:DD119)<1,\"\",(AVERAGE('2011 Survey responses'!DA119:DD119)))","v":3},{"$f":"IF(SUM('2011 Survey responses'!DE119:DH119)<1,\"\",(AVERAGE('2011 Survey responses'!DE119:DH119)))","v":3},{"$f":"IF(SUM('2011 Survey responses'!DI119:DL119)<1,\"\",(AVERAGE('2011 Survey responses'!DI119:DL119)))","v":3},{"$f":"IF(('2011 Survey responses'!CW119+'2011 Survey responses'!DA119+'2011 Survey responses'!DE119+'2011 Survey responses'!DI119)<1,\"\",AVERAGE('2011 Survey responses'!CW119,'2011 Survey responses'!DA119,'2011 Survey responses'!DE119,'2011 Survey responses'!DI119))","v":3},{"$f":"IF(('2011 Survey responses'!CX119+'2011 Survey responses'!DB119+'2011 Survey responses'!DF119+'2011 Survey responses'!DJ119)<1,\"\",AVERAGE('2011 Survey responses'!CX119,'2011 Survey responses'!DB119,'2011 Survey responses'!DF119,'2011 Survey responses'!DJ119))","v":3},{"$f":"IF(('2011 Survey responses'!CY119+'2011 Survey responses'!DC119+'2011 Survey responses'!DG119+'2011 Survey responses'!DK119)<1,\"\",AVERAGE('2011 Survey responses'!CY119,'2011 Survey responses'!DC119,'2011 Survey responses'!DG119,'2011 Survey responses'!DK119))","v":3},{"$f":"IF(('2011 Survey responses'!CZ119+'2011 Survey responses'!DD119+'2011 Survey responses'!DH119+'2011 Survey responses'!DL119)<1,\"\",AVERAGE('2011 Survey responses'!CZ119,'2011 Survey responses'!DD119,'2011 Survey responses'!DH119,'2011 Survey responses'!DL119))","v":3},{"$f":"IF('2011 Survey responses'!CW119<0.5,\"\",'2011 Survey responses'!CW119)","v":3},{"$f":"IF('2011 Survey responses'!CX119<0.5,\"\",'2011 Survey responses'!CX119)","v":3},{"$f":"IF('2011 Survey responses'!CY119<0.5,\"\",'2011 Survey responses'!CY119)","v":3},{"$f":"IF('2011 Survey responses'!CZ119<0.5,\"\",'2011 Survey responses'!CZ119)","v":3},{"$f":"IF('2011 Survey responses'!DA119<0.5,\"\",'2011 Survey responses'!DA119)","v":3},{"$f":"IF('2011 Survey responses'!DB119<0.5,\"\",'2011 Survey responses'!DB119)","v":3},{"$f":"IF('2011 Survey responses'!DC119<0.5,\"\",'2011 Survey responses'!DC119)","v":3},{"$f":"IF('2011 Survey responses'!DD119<0.5,\"\",'2011 Survey responses'!DD119)","v":3},{"$f":"IF('2011 Survey responses'!DE119<0.5,\"\",'2011 Survey responses'!DE119)","v":3},{"$f":"IF('2011 Survey responses'!DF119<0.5,\"\",'2011 Survey responses'!DF119)","v":3},{"$f":"IF('2011 Survey responses'!DG119<0.5,\"\",'2011 Survey responses'!DG119)","v":3},{"$f":"IF('2011 Survey responses'!DH119<0.5,\"\",'2011 Survey responses'!DH119)","v":3},{"$f":"IF('2011 Survey responses'!DI119<0.5,\"\",'2011 Survey responses'!DI119)","v":3},{"$f":"IF('2011 Survey responses'!DJ119<0.5,\"\",'2011 Survey responses'!DJ119)","v":3},{"$f":"IF('2011 Survey responses'!DK119<0.5,\"\",'2011 Survey responses'!DK119)","v":3},{"$f":"IF('2011 Survey responses'!DL119<0.5,\"\",'2011 Survey responses'!DL119)","v":3},{"$f":"IF('2011 Survey responses'!DU119=4,4,IF('2011 Survey responses'!DU119=5,4,\"\"))","v":""},{"$f":"IF('2011 Survey responses'!DV119=4,3,IF('2011 Survey responses'!DV119=5,3,\"\"))","v":""},"",{"$f":"IF(CQ119=2,CQ119,IF(CO119=4,CO119,IF(CP119=3,CP119,IF('2011 Survey responses'!GT119=1,1,\"\"))))","v":1},{"$f":"IF('2011 Survey responses'!DO119<0.5,\"\",'2011 Survey responses'!DO119)","v":2},{"$f":"IF('2011 Survey responses'!DP119<0.5,\"\",'2011 Survey responses'!DP119)","v":2},{"$f":"IF('2011 Survey responses'!DQ119<0.5,\"\",'2011 Survey responses'!DQ119)","v":2},{"$f":"IF('2011 Survey responses'!DR119<0.5,\"\",'2011 Survey responses'!DR119)","v":1},{"$f":"IF('2011 Survey responses'!DS119<0.5,\"\",'2011 Survey responses'!DS119)","v":2},{"$f":"IF('2011 Survey responses'!DT119<0.5,\"\",'2011 Survey responses'!DT119)","v":2},{"$f":"IF('2011 Survey responses'!DU119<0.5,\"\",'2011 Survey responses'!DU119)","v":3},{"$f":"IF('2011 Survey responses'!DV119<0.5,\"\",'2011 Survey responses'!DV119)","v":3},{"$f":"IF('2011 Survey responses'!DW119<0.5,\"\",'2011 Survey responses'!DW119)","v":2},{"$f":"IF('2011 Survey responses'!DX119<0.5,\"\",'2011 Survey responses'!DX119)","v":2},{"$f":"IF('2011 Survey responses'!DY119<0.5,\"\",'2011 Survey responses'!DY119)","v":2},{"$f":"IF('2011 Survey responses'!DZ119<0.5,\"\",'2011 Survey responses'!DZ119)","v":2},{"$f":"IF('2011 Survey responses'!EA119<0.5,\"\",'2011 Survey responses'!EA119)","v":4},{"$f":"IF('2011 Survey responses'!EB119<0.5,\"\",'2011 Survey responses'!EB119)","v":4},{"$f":"IF('2011 Survey responses'!EC119<0.5,\"\",'2011 Survey responses'!EC119)","v":4},{"$f":"IF('2011 Survey responses'!ED119<0.5,\"\",'2011 Survey responses'!ED119)","v":4},{"$f":"IF('2011 Survey responses'!EE119<0.5,\"\",'2011 Survey responses'!EE119)","v":5},{"$f":"IF('2011 Survey responses'!EF119<0.5,\"\",'2011 Survey responses'!EF119)","v":5},{"$f":"IF('2011 Survey responses'!EG119<0.5,\"\",'2011 Survey responses'!EG119)","v":5},{"$f":"IF('2011 Survey responses'!EH119<0.5,\"\",'2011 Survey responses'!EH119)","v":5},{"$f":"IF('2011 Survey responses'!EI119<0.5,\"\",'2011 Survey responses'!EI119)","v":5},{"$f":"IF('2011 Survey responses'!EJ119<0.5,\"\",'2011 Survey responses'!EJ119)","v":5},{"$f":"IF('2011 Survey responses'!EK119<0.5,\"\",'2011 Survey responses'!EK119)","v":4},{"$f":"IF('2011 Survey responses'!EL119<0.5,\"\",'2011 Survey responses'!EL119)","v":4},{"$f":"IF('2011 Survey responses'!EM119<0.5,\"\",'2011 Survey responses'!EM119)","v":3},{"$f":"IF('2011 Survey responses'!EN119<0.5,\"\",'2011 Survey responses'!EN119)","v":3},{"$f":"IF('2011 Survey responses'!EO119<0.5,\"\",'2011 Survey responses'!EO119)","v":3},{"$f":"IF('2011 Survey responses'!EP119<0.5,\"\",'2011 Survey responses'!EP119)","v":3},{"$f":"IF(('2011 Survey responses'!EW119+'2011 Survey responses'!EX119)>=2,AVERAGE('2011 Survey responses'!EW119,'2011 Survey responses'!EY119),\"\")","v":4},{"$f":"IF('2011 Survey responses'!EX119<0.5,\"\",'2011 Survey responses'!EX119)","v":4},{"$f":"IF('2011 Survey responses'!EZ119<0.5,\"\",'2011 Survey responses'!EZ119)","v":3},{"$f":"IF('2011 Survey responses'!FB119<0.5,\"\",'2011 Survey responses'!FB119)","v":2},{"$f":"IF('2011 Survey responses'!FD119<0.5,\"\",'2011 Survey responses'!FD119)","v":2},{"$f":"IF('2011 Survey responses'!FC119<0.5,\"\",'2011 Survey responses'!FC119)","v":2},{"$f":"IF(('2011 Survey responses'!EM119+'2011 Survey responses'!EN119)>=2,AVERAGE('2011 Survey responses'!EM119,'2011 Survey responses'!EN119),\"\")","v":3},{"$f":"IF('2011 Survey responses'!ES119<0.5,\"\",'2011 Survey responses'!ES119)","v":3},{"$f":"IF(('2011 Survey responses'!ET119+'2011 Survey responses'!EU119)>=2,AVERAGE('2011 Survey responses'!ET119,'2011 Survey responses'!EU119),\"\")","v":2.5},{"$f":"IF('2011 Survey responses'!EV119<0.5,\"\",'2011 Survey responses'!EV119)","v":4},{"$f":"IF('2011 Survey responses'!FA119<0.5,\"\",'2011 Survey responses'!FA119)","v":3},{"$f":"IF('2011 Survey responses'!ER119<0.5,\"\",'2011 Survey responses'!ER119)","v":3},{"$f":"IF(('2011 Survey responses'!EO119+'2011 Survey responses'!EP119)>=2,AVERAGE('2011 Survey responses'!EO119,'2011 Survey responses'!EP119),\"\")","v":3},{"$f":"IF('2011 Survey responses'!EQ119<0.5,\"\",'2011 Survey responses'!EQ119)","v":3},{"$f":"IF('2011 Survey responses'!ET119<0.5,\"\",'2011 Survey responses'!ET119)","v":2},{"$f":"IF('2011 Survey responses'!EU119<0.5,\"\",'2011 Survey responses'!EU119)","v":3},{"$f":"IF('2011 Survey responses'!EW119<0.5,\"\",'2011 Survey responses'!EW119)","v":4},{"$f":"IF('2011 Survey responses'!EY119<0.5,\"\",'2011 Survey responses'!EY119)","v":4},{"$f":"IF('2011 Survey responses'!FU119<0.5,\"\",'2011 Survey responses'!FU119)","v":5},{"$f":"IF(('2011 Survey responses'!FL119+'2011 Survey responses'!FM119)>=2,AVERAGE('2011 Survey responses'!FL119,'2011 Survey responses'!FM119),\"\")","v":4},{"$f":"IF(('2011 Survey responses'!FO119+'2011 Survey responses'!FQ119)>=2,AVERAGE('2011 Survey responses'!FO119,'2011 Survey responses'!FQ119),\"\")","v":4},{"$f":"IF('2011 Survey responses'!FJ119<0.5,\"\",'2011 Survey responses'!FJ119)","v":4},{"$f":"IF('2011 Survey responses'!FT119<0.5,\"\",'2011 Survey responses'!FT119)","v":5},{"$f":"IF('2011 Survey responses'!FR119<0.5,\"\",'2011 Survey responses'!FR119)","v":4},{"$f":"IF('2011 Survey responses'!FK119<0.5,\"\",'2011 Survey responses'!FK119)","v":4},{"$f":"IF('2011 Survey responses'!FP119<0.5,\"\",'2011 Survey responses'!FP119)","v":4},{"$f":"IF('2011 Survey responses'!FN119<0.5,\"\",'2011 Survey responses'!FN119)","v":4},{"$f":"IF(('2011 Survey responses'!FE119+'2011 Survey responses'!FF119)>=2,AVERAGE('2011 Survey responses'!FE119,'2011 Survey responses'!FF119),\"\")","v":4},{"$f":"IF('2011 Survey responses'!FS119<0.5,\"\",'2011 Survey responses'!FS119)","v":4},{"$f":"IF('2011 Survey responses'!FV119<0.5,\"\",'2011 Survey responses'!FV119)","v":4},{"$f":"IF(('2011 Survey responses'!FG119+'2011 Survey responses'!FH119)>=2,AVERAGE('2011 Survey responses'!FG119,'2011 Survey responses'!FH119),\"\")","v":4},{"$f":"IF('2011 Survey responses'!FI119<0.5,\"\",'2011 Survey responses'!FI119)","v":4},{"$f":"IF('2011 Survey responses'!FE119<0.5,\"\",'2011 Survey responses'!FE119)","v":4},{"$f":"IF('2011 Survey responses'!FF119<0.5,\"\",'2011 Survey responses'!FF119)","v":4},{"$f":"IF('2011 Survey responses'!FG119<0.5,\"\",'2011 Survey responses'!FG119)","v":4},{"$f":"IF('2011 Survey responses'!FH119<0.5,\"\",'2011 Survey responses'!FH119)","v":4},{"$f":"IF('2011 Survey responses'!FL119<0.5,\"\",'2011 Survey responses'!FL119)","v":4},{"$f":"IF('2011 Survey responses'!FM119<0.5,\"\",'2011 Survey responses'!FM119)","v":4},{"$f":"IF('2011 Survey responses'!FO119<0.5,\"\",'2011 Survey responses'!FO119)","v":4},{"$f":"IF('2011 Survey responses'!FQ119<0.5,\"\",'2011 Survey responses'!FQ119)","v":4}]
["Namibia",{"$f":"IF(SUM(F120)<1,\"\",AVERAGEIF('2011 Survey responses'!B120:CP120,\">1\"))","v":3.2413793103448274},{"$f":"IF(SUM(F120)<1,\"\",AVERAGEIF('2011 Survey responses'!B120:AO120,\">1\"))","v":2.8285714285714287},{"$f":"IF(SUM(F120)<1,\"\",AVERAGEIF('2011 Survey responses'!B120:BV120,\">1\"))","v":3.0597014925373136},{"$f":"IF(SUM(F120)<1,\"\",AVERAGEIF('2011 Survey responses'!V120:BV120,\">1\"))","v":3.1632653061224492},{"$f":"IF(SUM('2011 Survey responses'!B120:U120)<1,\"\",(AVERAGEIFS('2011 Survey responses'!B120:U120,'2011 Survey responses'!B120:U120,\">1\")))","v":2.7777777777777777},{"$f":"IF(SUM('2011 Survey responses'!B120:H120)<1,\"\",(AVERAGEIFS('2011 Survey responses'!B120:H120,'2011 Survey responses'!B120:H120,\">1\")))","v":3},{"$f":"IF(SUM('2011 Survey responses'!I120:S120)<1,\"\",(AVERAGEIFS('2011 Survey responses'!I120:S120,'2011 Survey responses'!I120:S120,\">1\")))","v":2.2727272727272729},{"$f":"IF(SUM('2011 Survey responses'!T120:U120)<2.1,\"\",(AVERAGEIFS('2011 Survey responses'!T120:U120,'2011 Survey responses'!T120:U120,\">1\")))","v":5},{"$f":"IF(SUM('2011 Survey responses'!B120:C120)<2.1,\"\",((SUMIF('2011 Survey responses'!B120:C120,\">1\")+SUMIF('2011 Survey responses'!F120,\">1\"))/(COUNTIF('2011 Survey responses'!B120:C120,\">1\")+COUNTIF('2011 Survey responses'!F120,\">1\"))))","v":4.5},{"$f":"IF(SUM('2011 Survey responses'!D120:E120)<2.1,\"\",(AVERAGEIFS('2011 Survey responses'!D120:E120,'2011 Survey responses'!D120:E120,\">1\")))","v":""},{"$f":"IF(('2011 Survey responses'!B120+'2011 Survey responses'!D120)<2.1,\"\",((SUMIF('2011 Survey responses'!B120,\">1\")+SUMIF('2011 Survey responses'!D120,\">1\")+SUMIF('2011 Survey responses'!F120,\">1\")+SUMIF('2011 Survey responses'!K120,\">1\"))/(COUNTIF('2011 Survey responses'!B120,\">1\")+COUNTIF('2011 Survey responses'!D120,\">1\")+COUNTIF('2011 Survey responses'!F120,\">1\")+COUNTIF('2011 Survey responses'!K120,\">1\"))))","v":3.25},{"$f":"IF(SUM('2011 Survey responses'!G120:H120)<2.1,\"\",(AVERAGEIFS('2011 Survey responses'!G120:H120,'2011 Survey responses'!G120:H120,\">1\")))","v":2},{"$f":"IF(SUM('2011 Survey responses'!F120:G120)<1.5,\"\",MAX('2011 Survey responses'!F120,'2011 Survey responses'!G120))","v":3},{"$f":"IF(SUM('2011 Survey responses'!G120:H120)<1,\"\",MAX('2011 Survey responses'!G120,'2011 Survey responses'!H120))","v":2},{"$f":"IF(SUM('2011 Survey responses'!I120:L120)<4.1,\"\",(AVERAGEIFS('2011 Survey responses'!I120:L120,'2011 Survey responses'!I120:L120,\">1\")))","v":2.5},{"$f":"IF(SUM('2011 Survey responses'!M120:S120)<4.1,\"\",(AVERAGEIFS('2011 Survey responses'!M120:S120,'2011 Survey responses'!M120:S120,\">1\")))","v":2.1428571428571428},{"$f":"IF(SUM('2011 Survey responses'!T120:U120)<2.1,\"\",(AVERAGEIFS('2011 Survey responses'!T120:U120,'2011 Survey responses'!T120:U120,\">1\")))","v":5},{"$f":"IF(SUM('2011 Survey responses'!V120:AO120)<1,\"\",(AVERAGEIFS('2011 Survey responses'!V120:AO120,'2011 Survey responses'!V120:AO120,\">1\")))","v":2.8823529411764706},{"$f":"IF(SUM('2011 Survey responses'!V120:AA120)<1,\"\",(AVERAGEIFS('2011 Survey responses'!V120:AA120,'2011 Survey responses'!V120:AA120,\">1\")))","v":3.2},{"$f":"IF(SUM('2011 Survey responses'!AB120:AH120)<1,\"\",(AVERAGEIFS('2011 Survey responses'!AB120:AH120,'2011 Survey responses'!AB120:AH120,\">1\")))","v":2.8571428571428572},{"$f":"IF(SUM('2011 Survey responses'!AI120:AO120)<1,\"\",(AVERAGEIFS('2011 Survey responses'!AI120:AO120,'2011 Survey responses'!AI120:AO120,\">1\")))","v":2.6},{"$f":"IF(('2011 Survey responses'!Y120+'2011 Survey responses'!AI120+'2011 Survey responses'!AK120)<3.1,\"\",((SUMIF('2011 Survey responses'!Y120,\">1\")+SUMIF('2011 Survey responses'!AI120,\">1\")+SUMIF('2011 Survey responses'!AK120,\">1\")+SUMIF('2011 Survey responses'!AM120,\">1\"))/(COUNTIF('2011 Survey responses'!Y120,\">1\")+COUNTIF('2011 Survey responses'!AI120,\">1\")+COUNTIF('2011 Survey responses'!AK120,\">1\")+COUNTIF('2011 Survey responses'!AM120,\">1\"))))","v":2.25},{"$f":"IF(('2011 Survey responses'!W120)<1.1,\"\",('2011 Survey responses'!W120))","v":4},{"$f":"IF(('2011 Survey responses'!Y120)<1.1,\"\",('2011 Survey responses'!Y120))","v":2},{"$f":"IF(('2011 Survey responses'!Z120)<1.1,\"\",('2011 Survey responses'!Z120))","v":4},{"$f":"IF(('2011 Survey responses'!V120+'2011 Survey responses'!X120+'2011 Survey responses'!AA120)<3.1,\"\",((SUMIF('2011 Survey responses'!V120,\">1\")+SUMIF('2011 Survey responses'!X120,\">1\")+SUMIF('2011 Survey responses'!AA120,\">1\"))/(COUNTIF('2011 Survey responses'!V120,\">1\")+COUNTIF('2011 Survey responses'!X120,\">1\")+COUNTIF('2011 Survey responses'!AA120,\">1\"))))","v":3},{"$f":"IF(('2011 Survey responses'!V120+'2011 Survey responses'!Y120+'2011 Survey responses'!AA120)<3.1,\"\",((SUMIF('2011 Survey responses'!V120,\">1\")+SUMIF('2011 Survey responses'!Y120,\">1\")+SUMIF('2011 Survey responses'!AA120,\">1\"))/(COUNTIF('2011 Survey responses'!V120,\">1\")+COUNTIF('2011 Survey responses'!Y120,\">1\")+COUNTIF('2011 Survey responses'!AA120,\">1\"))))","v":2.6666666666666665},{"$f":"IF(SUM('2011 Survey responses'!AB120:AH120)<1,\"\",(AVERAGEIFS('2011 Survey responses'!AB120:AH120,'2011 Survey responses'!AB120:AH120,\">1\")))","v":2.8571428571428572},{"$f":"IF(SUM('2011 Survey responses'!AI120:AO120)<7.1,\"\",(AVERAGEIFS('2011 Survey responses'!AI120:AO120,'2011 Survey responses'!AI120:AO120,\">1\")))","v":2.6},{"$f":"IF(('2011 Survey responses'!AH120)<1.1,\"\",('2011 Survey responses'!AH120))","v":2},{"$f":"IF(SUM('2011 Survey responses'!AP120:BV120)<1,\"\",(AVERAGEIFS('2011 Survey responses'!AP120:BV120,'2011 Survey responses'!AP120:BV120,\">1\")))","v":3.3125},{"$f":"IF(SUM('2011 Survey responses'!AP120:AS120)<4.1,\"\",(AVERAGEIFS('2011 Survey responses'!AP120:AS120,'2011 Survey responses'!AP120:AS120,\">1\")))","v":3},{"$f":"IF(SUM('2011 Survey responses'!AT120:BF120)<1,\"\",(AVERAGEIFS('2011 Survey responses'!AT120:BF120,'2011 Survey responses'!AT120:BF120,\">1\")))","v":3.1538461538461537},{"$f":"IF(SUM('2011 Survey responses'!BG120:BO120)<1,\"\",(AVERAGEIFS('2011 Survey responses'!BG120:BO120,'2011 Survey responses'!BG120:BO120,\">1\")))","v":4.2222222222222223},{"$f":"IF(SUM('2011 Survey responses'!BP120:BS120)<1,\"\",(AVERAGEIFS('2011 Survey responses'!BP120:BS120,'2011 Survey responses'!BP120:BS120,\">1\")))","v":2.5},{"$f":"IF(SUM('2011 Survey responses'!BT120:BV120)<3.1,\"\",(AVERAGEIFS('2011 Survey responses'!BT120:BV120,'2011 Survey responses'!BT120:BV120,\">1\")))","v":2.6666666666666665},{"$f":"IF(('2011 Survey responses'!AQ120+'2011 Survey responses'!AR120+'2011 Survey responses'!BG120)<3.1,\"\",((SUMIF('2011 Survey responses'!AQ120,\">1\")+SUMIF('2011 Survey responses'!AR120,\">1\")+SUMIF('2011 Survey responses'!BG120,\">1\"))/(COUNTIF('2011 Survey responses'!AQ120,\">1\")+COUNTIF('2011 Survey responses'!AR120,\">1\")+COUNTIF('2011 Survey responses'!BG120,\">1\"))))","v":4.5},{"$f":"IF(SUM('2011 Survey responses'!AP120:AS120)<4.1,\"\",(AVERAGEIFS('2011 Survey responses'!AP120:AS120,'2011 Survey responses'!AP120:AS120,\">1\")))","v":3},{"$f":"IF(('2011 Survey responses'!AU120+'2011 Survey responses'!AX120+'2011 Survey responses'!BA120+'2011 Survey responses'!BC120+'2011 Survey responses'!BD120)<5.1,\"\",(SUMIF('2011 Survey responses'!AU120,\">1\")+SUMIF('2011 Survey responses'!AX120,\">1\")+SUMIF('2011 Survey responses'!BA120,\">1\")+SUMIF('2011 Survey responses'!BC120,\">1\")+SUMIF('2011 Survey responses'!BD120,\">1\"))/(COUNTIF('2011 Survey responses'!AU120,\">1\")+COUNTIF('2011 Survey responses'!AX120,\">1\")+COUNTIF('2011 Survey responses'!BA120,\">1\")+COUNTIF('2011 Survey responses'!BC120,\">1\")+COUNTIF('2011 Survey responses'!BD120,\">1\")))","v":3.4},{"$f":"IF(('2011 Survey responses'!AT120)<1.1,\"\",('2011 Survey responses'!AT120))","v":4},{"$f":"IF(SUM('2011 Survey responses'!AV120:AW120)<2.1,\"\",(AVERAGEIFS('2011 Survey responses'!AV120:AW120,'2011 Survey responses'!AV120:AW120,\">1\")))","v":3},{"$f":"IF(('2011 Survey responses'!AW120+'2011 Survey responses'!AY120)<2.1,\"\",(SUMIF('2011 Survey responses'!AW120,\">1\")+SUMIF('2011 Survey responses'!AY120,\">1\"))/(COUNTIF('2011 Survey responses'!AW120,\">1\")+COUNTIF('2011 Survey responses'!AY120,\">1\")))","v":2},{"$f":"IF(('2011 Survey responses'!AZ120)<1.1,\"\",('2011 Survey responses'!AZ120))","v":2},2,4,2,2,{"$f":"IF(('2011 Survey responses'!BE120)<1.1,\"\",('2011 Survey responses'!BE120))","v":5},{"$f":"IF(('2011 Survey responses'!AY120+'2011 Survey responses'!BB120+'2011 Survey responses'!BF120)<3.1,\"\",(SUMIF('2011 Survey responses'!AY120,\">1\")+SUMIF('2011 Survey responses'!BB120,\">1\")+SUMIF('2011 Survey responses'!BF120,\">1\"))/(COUNTIF('2011 Survey responses'!AY120,\">1\")+COUNTIF('2011 Survey responses'!BB120,\">1\")+COUNTIF('2011 Survey responses'!BF120,\">1\")))","v":2.3333333333333335},3.3611111111111112,{"$f":"IF(SUM('2011 Survey responses'!BT120:BV120)<3.1,\"\",(AVERAGEIFS('2011 Survey responses'!BT120:BV120,'2011 Survey responses'!BT120:BV120,\">1\")))","v":2.6666666666666665},{"$f":"IF(SUM('2011 Survey responses'!BW120:CP120)<1,\"\",(AVERAGEIFS('2011 Survey responses'!BW120:CP120,'2011 Survey responses'!BW120:CP120,\">1\")))","v":3.85},{"$f":"IF(SUM('2011 Survey responses'!BW120:CF120)<1,\"\",(AVERAGEIFS('2011 Survey responses'!BW120:CF120,'2011 Survey responses'!BW120:CF120,\">1\")))","v":3.7},{"$f":"IF(SUM('2011 Survey responses'!CG120:CP120)<1,\"\",(AVERAGEIFS('2011 Survey responses'!CG120:CP120,'2011 Survey responses'!CG120:CP120,\">1\")))","v":4},{"$f":"IF(SUM('2011 Survey responses'!BX120:CF120)<1,\"\",(AVERAGEIFS('2011 Survey responses'!BX120:CF120,'2011 Survey responses'!BX120:CF120,\">1\")))","v":3.7777777777777777},{"$f":"IF(SUM('2011 Survey responses'!CH120:CP120)<1,\"\",(AVERAGEIFS('2011 Survey responses'!CH120:CP120,'2011 Survey responses'!CH120:CP120,\">1\")))","v":4},{"$f":"IF(SUM('2011 Survey responses'!BW120:CP120)<1,\"\",(AVERAGEIFS('2011 Survey responses'!BW120:CP120,'2011 Survey responses'!BW120:CP120,\">1\")))","v":3.85},{"$f":"IF(('2011 Survey responses'!BW120+'2011 Survey responses'!CG120)<2.1,\"\",(SUMIF('2011 Survey responses'!BW120,\">1\")+SUMIF('2011 Survey responses'!CG120,\">1\"))/(COUNTIF('2011 Survey responses'!BW120,\">1\")+COUNTIF('2011 Survey responses'!CG120,\">1\")))","v":3.5},{"$f":"IF(('2011 Survey responses'!BX120+'2011 Survey responses'!CH120)<2.1,\"\",(SUMIF('2011 Survey responses'!BX120,\">1\")+SUMIF('2011 Survey responses'!CH120,\">1\"))/(COUNTIF('2011 Survey responses'!BX120,\">1\")+COUNTIF('2011 Survey responses'!CH120,\">1\")))","v":4},{"$f":"IF(('2011 Survey responses'!BY120+'2011 Survey responses'!CI120)<2.1,\"\",(SUMIF('2011 Survey responses'!BY120,\">1\")+SUMIF('2011 Survey responses'!CI120,\">1\"))/(COUNTIF('2011 Survey responses'!BY120,\">1\")+COUNTIF('2011 Survey responses'!CI120,\">1\")))","v":4},{"$f":"IF('2011 Survey responses'!CQ120<0.5,\"\",'2011 Survey responses'!CQ120)","v":4},{"$f":"IF('2011 Survey responses'!CR120<0.5,\"\",'2011 Survey responses'!CR120)","v":3},{"$f":"IF('2011 Survey responses'!CS120<0.5,\"\",'2011 Survey responses'!CS120)","v":3},{"$f":"IF('2011 Survey responses'!CT120<0.5,\"\",'2011 Survey responses'!CT120)","v":2},{"$f":"IF('2011 Survey responses'!CU120<0.5,\"\",'2011 Survey responses'!CU120)","v":2},{"$f":"IF('2011 Survey responses'!CV120<0.5,\"\",'2011 Survey responses'!CV120)","v":2},{"$f":"IF(SUM('2011 Survey responses'!CW120:DL120)<1,\"\",(AVERAGE('2011 Survey responses'!CW120:DL120)))","v":2.75},{"$f":"IF(SUM('2011 Survey responses'!CW120:CZ120)<1,\"\",(AVERAGE('2011 Survey responses'!CW120:CZ120)))","v":3},{"$f":"IF(SUM('2011 Survey responses'!DA120:DD120)<1,\"\",(AVERAGE('2011 Survey responses'!DA120:DD120)))","v":2.5},{"$f":"IF(SUM('2011 Survey responses'!DE120:DH120)<1,\"\",(AVERAGE('2011 Survey responses'!DE120:DH120)))","v":2.5},{"$f":"IF(SUM('2011 Survey responses'!DI120:DL120)<1,\"\",(AVERAGE('2011 Survey responses'!DI120:DL120)))","v":3},{"$f":"IF(('2011 Survey responses'!CW120+'2011 Survey responses'!DA120+'2011 Survey responses'!DE120+'2011 Survey responses'!DI120)<1,\"\",AVERAGE('2011 Survey responses'!CW120,'2011 Survey responses'!DA120,'2011 Survey responses'!DE120,'2011 Survey responses'!DI120))","v":2.75},{"$f":"IF(('2011 Survey responses'!CX120+'2011 Survey responses'!DB120+'2011 Survey responses'!DF120+'2011 Survey responses'!DJ120)<1,\"\",AVERAGE('2011 Survey responses'!CX120,'2011 Survey responses'!DB120,'2011 Survey responses'!DF120,'2011 Survey responses'!DJ120))","v":3.25},{"$f":"IF(('2011 Survey responses'!CY120+'2011 Survey responses'!DC120+'2011 Survey responses'!DG120+'2011 Survey responses'!DK120)<1,\"\",AVERAGE('2011 Survey responses'!CY120,'2011 Survey responses'!DC120,'2011 Survey responses'!DG120,'2011 Survey responses'!DK120))","v":2},{"$f":"IF(('2011 Survey responses'!CZ120+'2011 Survey responses'!DD120+'2011 Survey responses'!DH120+'2011 Survey responses'!DL120)<1,\"\",AVERAGE('2011 Survey responses'!CZ120,'2011 Survey responses'!DD120,'2011 Survey responses'!DH120,'2011 Survey responses'!DL120))","v":3},{"$f":"IF('2011 Survey responses'!CW120<0.5,\"\",'2011 Survey responses'!CW120)","v":3},{"$f":"IF('2011 Survey responses'!CX120<0.5,\"\",'2011 Survey responses'!CX120)","v":3},{"$f":"IF('2011 Survey responses'!CY120<0.5,\"\",'2011 Survey responses'!CY120)","v":2},{"$f":"IF('2011 Survey responses'!CZ120<0.5,\"\",'2011 Survey responses'!CZ120)","v":4},{"$f":"IF('2011 Survey responses'!DA120<0.5,\"\",'2011 Survey responses'!DA120)","v":2},{"$f":"IF('2011 Survey responses'!DB120<0.5,\"\",'2011 Survey responses'!DB120)","v":3},{"$f":"IF('2011 Survey responses'!DC120<0.5,\"\",'2011 Survey responses'!DC120)","v":2},{"$f":"IF('2011 Survey responses'!DD120<0.5,\"\",'2011 Survey responses'!DD120)","v":3},{"$f":"IF('2011 Survey responses'!DE120<0.5,\"\",'2011 Survey responses'!DE120)","v":3},{"$f":"IF('2011 Survey responses'!DF120<0.5,\"\",'2011 Survey responses'!DF120)","v":3},{"$f":"IF('2011 Survey responses'!DG120<0.5,\"\",'2011 Survey responses'!DG120)","v":2},{"$f":"IF('2011 Survey responses'!DH120<0.5,\"\",'2011 Survey responses'!DH120)","v":2},{"$f":"IF('2011 Survey responses'!DI120<0.5,\"\",'2011 Survey responses'!DI120)","v":3},{"$f":"IF('2011 Survey responses'!DJ120<0.5,\"\",'2011 Survey responses'!DJ120)","v":4},{"$f":"IF('2011 Survey responses'!DK120<0.5,\"\",'2011 Survey responses'!DK120)","v":2},{"$f":"IF('2011 Survey responses'!DL120<0.5,\"\",'2011 Survey responses'!DL120)","v":3},{"$f":"IF('2011 Survey responses'!DU120=4,4,IF('2011 Survey responses'!DU120=5,4,\"\"))","v":4},{"$f":"IF('2011 Survey responses'!DV120=4,3,IF('2011 Survey responses'!DV120=5,3,\"\"))","v":3},2,{"$f":"IF(CQ120=2,CQ120,IF(CO120=4,CO120,IF(CP120=3,CP120,IF('2011 Survey responses'!GT120=1,1,\"\"))))","v":2},{"$f":"IF('2011 Survey responses'!DO120<0.5,\"\",'2011 Survey responses'!DO120)","v":4},{"$f":"IF('2011 Survey responses'!DP120<0.5,\"\",'2011 Survey responses'!DP120)","v":4},{"$f":"IF('2011 Survey responses'!DQ120<0.5,\"\",'2011 Survey responses'!DQ120)","v":3},{"$f":"IF('2011 Survey responses'!DR120<0.5,\"\",'2011 Survey responses'!DR120)","v":4},{"$f":"IF('2011 Survey responses'!DS120<0.5,\"\",'2011 Survey responses'!DS120)","v":3},{"$f":"IF('2011 Survey responses'!DT120<0.5,\"\",'2011 Survey responses'!DT120)","v":4},{"$f":"IF('2011 Survey responses'!DU120<0.5,\"\",'2011 Survey responses'!DU120)","v":4},{"$f":"IF('2011 Survey responses'!DV120<0.5,\"\",'2011 Survey responses'!DV120)","v":4},{"$f":"IF('2011 Survey responses'!DW120<0.5,\"\",'2011 Survey responses'!DW120)","v":4},{"$f":"IF('2011 Survey responses'!DX120<0.5,\"\",'2011 Survey responses'!DX120)","v":4},{"$f":"IF('2011 Survey responses'!DY120<0.5,\"\",'2011 Survey responses'!DY120)","v":3},{"$f":"IF('2011 Survey responses'!DZ120<0.5,\"\",'2011 Survey responses'!DZ120)","v":3},{"$f":"IF('2011 Survey responses'!EA120<0.5,\"\",'2011 Survey responses'!EA120)","v":4},{"$f":"IF('2011 Survey responses'!EB120<0.5,\"\",'2011 Survey responses'!EB120)","v":4},{"$f":"IF('2011 Survey responses'!EC120<0.5,\"\",'2011 Survey responses'!EC120)","v":3},{"$f":"IF('2011 Survey responses'!ED120<0.5,\"\",'2011 Survey responses'!ED120)","v":3},{"$f":"IF('2011 Survey responses'!EE120<0.5,\"\",'2011 Survey responses'!EE120)","v":3},{"$f":"IF('2011 Survey responses'!EF120<0.5,\"\",'2011 Survey responses'!EF120)","v":4},{"$f":"IF('2011 Survey responses'!EG120<0.5,\"\",'2011 Survey responses'!EG120)","v":4},{"$f":"IF('2011 Survey responses'!EH120<0.5,\"\",'2011 Survey responses'!EH120)","v":4},{"$f":"IF('2011 Survey responses'!EI120<0.5,\"\",'2011 Survey responses'!EI120)","v":3},{"$f":"IF('2011 Survey responses'!EJ120<0.5,\"\",'2011 Survey responses'!EJ120)","v":3},{"$f":"IF('2011 Survey responses'!EK120<0.5,\"\",'2011 Survey responses'!EK120)","v":3},{"$f":"IF('2011 Survey responses'!EL120<0.5,\"\",'2011 Survey responses'!EL120)","v":3},{"$f":"IF('2011 Survey responses'!EM120<0.5,\"\",'2011 Survey responses'!EM120)","v":3},{"$f":"IF('2011 Survey responses'!EN120<0.5,\"\",'2011 Survey responses'!EN120)","v":3},{"$f":"IF('2011 Survey responses'!EO120<0.5,\"\",'2011 Survey responses'!EO120)","v":4},{"$f":"IF('2011 Survey responses'!EP120<0.5,\"\",'2011 Survey responses'!EP120)","v":3},{"$f":"IF(('2011 Survey responses'!EW120+'2011 Survey responses'!EX120)>=2,AVERAGE('2011 Survey responses'!EW120,'2011 Survey responses'!EY120),\"\")","v":3.5},{"$f":"IF('2011 Survey responses'!EX120<0.5,\"\",'2011 Survey responses'!EX120)","v":2},{"$f":"IF('2011 Survey responses'!EZ120<0.5,\"\",'2011 Survey responses'!EZ120)","v":3},{"$f":"IF('2011 Survey responses'!FB120<0.5,\"\",'2011 Survey responses'!FB120)","v":4},{"$f":"IF('2011 Survey responses'!FD120<0.5,\"\",'2011 Survey responses'!FD120)","v":3},{"$f":"IF('2011 Survey responses'!FC120<0.5,\"\",'2011 Survey responses'!FC120)","v":4},{"$f":"IF(('2011 Survey responses'!EM120+'2011 Survey responses'!EN120)>=2,AVERAGE('2011 Survey responses'!EM120,'2011 Survey responses'!EN120),\"\")","v":3},{"$f":"IF('2011 Survey responses'!ES120<0.5,\"\",'2011 Survey responses'!ES120)","v":3},{"$f":"IF(('2011 Survey responses'!ET120+'2011 Survey responses'!EU120)>=2,AVERAGE('2011 Survey responses'!ET120,'2011 Survey responses'!EU120),\"\")","v":3.5},{"$f":"IF('2011 Survey responses'!EV120<0.5,\"\",'2011 Survey responses'!EV120)","v":4},{"$f":"IF('2011 Survey responses'!FA120<0.5,\"\",'2011 Survey responses'!FA120)","v":3},{"$f":"IF('2011 Survey responses'!ER120<0.5,\"\",'2011 Survey responses'!ER120)","v":2},{"$f":"IF(('2011 Survey responses'!EO120+'2011 Survey responses'!EP120)>=2,AVERAGE('2011 Survey responses'!EO120,'2011 Survey responses'!EP120),\"\")","v":3.5},{"$f":"IF('2011 Survey responses'!EQ120<0.5,\"\",'2011 Survey responses'!EQ120)","v":3},{"$f":"IF('2011 Survey responses'!ET120<0.5,\"\",'2011 Survey responses'!ET120)","v":4},{"$f":"IF('2011 Survey responses'!EU120<0.5,\"\",'2011 Survey responses'!EU120)","v":3},{"$f":"IF('2011 Survey responses'!EW120<0.5,\"\",'2011 Survey responses'!EW120)","v":4},{"$f":"IF('2011 Survey responses'!EY120<0.5,\"\",'2011 Survey responses'!EY120)","v":3},{"$f":"IF('2011 Survey responses'!FU120<0.5,\"\",'2011 Survey responses'!FU120)","v":4},{"$f":"IF(('2011 Survey responses'!FL120+'2011 Survey responses'!FM120)>=2,AVERAGE('2011 Survey responses'!FL120,'2011 Survey responses'!FM120),\"\")","v":3.5},{"$f":"IF(('2011 Survey responses'!FO120+'2011 Survey responses'!FQ120)>=2,AVERAGE('2011 Survey responses'!FO120,'2011 Survey responses'!FQ120),\"\")","v":4},{"$f":"IF('2011 Survey responses'!FJ120<0.5,\"\",'2011 Survey responses'!FJ120)","v":5},{"$f":"IF('2011 Survey responses'!FT120<0.5,\"\",'2011 Survey responses'!FT120)","v":4},{"$f":"IF('2011 Survey responses'!FR120<0.5,\"\",'2011 Survey responses'!FR120)","v":3},{"$f":"IF('2011 Survey responses'!FK120<0.5,\"\",'2011 Survey responses'!FK120)","v":4},{"$f":"IF('2011 Survey responses'!FP120<0.5,\"\",'2011 Survey responses'!FP120)","v":4},{"$f":"IF('2011 Survey responses'!FN120<0.5,\"\",'2011 Survey responses'!FN120)","v":4},{"$f":"IF(('2011 Survey responses'!FE120+'2011 Survey responses'!FF120)>=2,AVERAGE('2011 Survey responses'!FE120,'2011 Survey responses'!FF120),\"\")","v":4},{"$f":"IF('2011 Survey responses'!FS120<0.5,\"\",'2011 Survey responses'!FS120)","v":3},{"$f":"IF('2011 Survey responses'!FV120<0.5,\"\",'2011 Survey responses'!FV120)","v":3},{"$f":"IF(('2011 Survey responses'!FG120+'2011 Survey responses'!FH120)>=2,AVERAGE('2011 Survey responses'!FG120,'2011 Survey responses'!FH120),\"\")","v":4},{"$f":"IF('2011 Survey responses'!FI120<0.5,\"\",'2011 Survey responses'!FI120)","v":4},{"$f":"IF('2011 Survey responses'!FE120<0.5,\"\",'2011 Survey responses'!FE120)","v":4},{"$f":"IF('2011 Survey responses'!FF120<0.5,\"\",'2011 Survey responses'!FF120)","v":4},{"$f":"IF('2011 Survey responses'!FG120<0.5,\"\",'2011 Survey responses'!FG120)","v":4},{"$f":"IF('2011 Survey responses'!FH120<0.5,\"\",'2011 Survey responses'!FH120)","v":4},{"$f":"IF('2011 Survey responses'!FL120<0.5,\"\",'2011 Survey responses'!FL120)","v":4},{"$f":"IF('2011 Survey responses'!FM120<0.5,\"\",'2011 Survey responses'!FM120)","v":3},{"$f":"IF('2011 Survey responses'!FO120<0.5,\"\",'2011 Survey responses'!FO120)","v":4},{"$f":"IF('2011 Survey responses'!FQ120<0.5,\"\",'2011 Survey responses'!FQ120)","v":4}]
["Nauru",{"$f":"IF(SUM(F121)<1,\"\",AVERAGEIF('2011 Survey responses'!B121:CP121,\">1\"))","v":""},{"$f":"IF(SUM(F121)<1,\"\",AVERAGEIF('2011 Survey responses'!B121:AO121,\">1\"))","v":""},{"$f":"IF(SUM(F121)<1,\"\",AVERAGEIF('2011 Survey responses'!B121:BV121,\">1\"))","v":""},{"$f":"IF(SUM(F121)<1,\"\",AVERAGEIF('2011 Survey responses'!V121:BV121,\">1\"))","v":""},{"$f":"IF(SUM('2011 Survey responses'!B121:U121)<1,\"\",(AVERAGEIFS('2011 Survey responses'!B121:U121,'2011 Survey responses'!B121:U121,\">1\")))","v":""},{"$f":"IF(SUM('2011 Survey responses'!B121:H121)<1,\"\",(AVERAGEIFS('2011 Survey responses'!B121:H121,'2011 Survey responses'!B121:H121,\">1\")))","v":""},{"$f":"IF(SUM('2011 Survey responses'!I121:S121)<1,\"\",(AVERAGEIFS('2011 Survey responses'!I121:S121,'2011 Survey responses'!I121:S121,\">1\")))","v":""},{"$f":"IF(SUM('2011 Survey responses'!T121:U121)<2.1,\"\",(AVERAGEIFS('2011 Survey responses'!T121:U121,'2011 Survey responses'!T121:U121,\">1\")))","v":""},{"$f":"IF(SUM('2011 Survey responses'!B121:C121)<2.1,\"\",((SUMIF('2011 Survey responses'!B121:C121,\">1\")+SUMIF('2011 Survey responses'!F121,\">1\"))/(COUNTIF('2011 Survey responses'!B121:C121,\">1\")+COUNTIF('2011 Survey responses'!F121,\">1\"))))","v":""},{"$f":"IF(SUM('2011 Survey responses'!D121:E121)<2.1,\"\",(AVERAGEIFS('2011 Survey responses'!D121:E121,'2011 Survey responses'!D121:E121,\">1\")))","v":""},{"$f":"IF(('2011 Survey responses'!B121+'2011 Survey responses'!D121)<2.1,\"\",((SUMIF('2011 Survey responses'!B121,\">1\")+SUMIF('2011 Survey responses'!D121,\">1\")+SUMIF('2011 Survey responses'!F121,\">1\")+SUMIF('2011 Survey responses'!K121,\">1\"))/(COUNTIF('2011 Survey responses'!B121,\">1\")+COUNTIF('2011 Survey responses'!D121,\">1\")+COUNTIF('2011 Survey responses'!F121,\">1\")+COUNTIF('2011 Survey responses'!K121,\">1\"))))","v":""},{"$f":"IF(SUM('2011 Survey responses'!G121:H121)<2.1,\"\",(AVERAGEIFS('2011 Survey responses'!G121:H121,'2011 Survey responses'!G121:H121,\">1\")))","v":""},{"$f":"IF(SUM('2011 Survey responses'!F121:G121)<1.5,\"\",MAX('2011 Survey responses'!F121,'2011 Survey responses'!G121))","v":""},{"$f":"IF(SUM('2011 Survey responses'!G121:H121)<1,\"\",MAX('2011 Survey responses'!G121,'2011 Survey responses'!H121))","v":""},{"$f":"IF(SUM('2011 Survey responses'!I121:L121)<4.1,\"\",(AVERAGEIFS('2011 Survey responses'!I121:L121,'2011 Survey responses'!I121:L121,\">1\")))","v":""},{"$f":"IF(SUM('2011 Survey responses'!M121:S121)<4.1,\"\",(AVERAGEIFS('2011 Survey responses'!M121:S121,'2011 Survey responses'!M121:S121,\">1\")))","v":""},{"$f":"IF(SUM('2011 Survey responses'!T121:U121)<2.1,\"\",(AVERAGEIFS('2011 Survey responses'!T121:U121,'2011 Survey responses'!T121:U121,\">1\")))","v":""},{"$f":"IF(SUM('2011 Survey responses'!V121:AO121)<1,\"\",(AVERAGEIFS('2011 Survey responses'!V121:AO121,'2011 Survey responses'!V121:AO121,\">1\")))","v":""},{"$f":"IF(SUM('2011 Survey responses'!V121:AA121)<1,\"\",(AVERAGEIFS('2011 Survey responses'!V121:AA121,'2011 Survey responses'!V121:AA121,\">1\")))","v":""},{"$f":"IF(SUM('2011 Survey responses'!AB121:AH121)<1,\"\",(AVERAGEIFS('2011 Survey responses'!AB121:AH121,'2011 Survey responses'!AB121:AH121,\">1\")))","v":""},{"$f":"IF(SUM('2011 Survey responses'!AI121:AO121)<1,\"\",(AVERAGEIFS('2011 Survey responses'!AI121:AO121,'2011 Survey responses'!AI121:AO121,\">1\")))","v":""},{"$f":"IF(('2011 Survey responses'!Y121+'2011 Survey responses'!AI121+'2011 Survey responses'!AK121)<3.1,\"\",((SUMIF('2011 Survey responses'!Y121,\">1\")+SUMIF('2011 Survey responses'!AI121,\">1\")+SUMIF('2011 Survey responses'!AK121,\">1\")+SUMIF('2011 Survey responses'!AM121,\">1\"))/(COUNTIF('2011 Survey responses'!Y121,\">1\")+COUNTIF('2011 Survey responses'!AI121,\">1\")+COUNTIF('2011 Survey responses'!AK121,\">1\")+COUNTIF('2011 Survey responses'!AM121,\">1\"))))","v":""},{"$f":"IF(('2011 Survey responses'!W121)<1.1,\"\",('2011 Survey responses'!W121))","v":""},{"$f":"IF(('2011 Survey responses'!Y121)<1.1,\"\",('2011 Survey responses'!Y121))","v":""},{"$f":"IF(('2011 Survey responses'!Z121)<1.1,\"\",('2011 Survey responses'!Z121))","v":""},{"$f":"IF(('2011 Survey responses'!V121+'2011 Survey responses'!X121+'2011 Survey responses'!AA121)<3.1,\"\",((SUMIF('2011 Survey responses'!V121,\">1\")+SUMIF('2011 Survey responses'!X121,\">1\")+SUMIF('2011 Survey responses'!AA121,\">1\"))/(COUNTIF('2011 Survey responses'!V121,\">1\")+COUNTIF('2011 Survey responses'!X121,\">1\")+COUNTIF('2011 Survey responses'!AA121,\">1\"))))","v":""},{"$f":"IF(('2011 Survey responses'!V121+'2011 Survey responses'!Y121+'2011 Survey responses'!AA121)<3.1,\"\",((SUMIF('2011 Survey responses'!V121,\">1\")+SUMIF('2011 Survey responses'!Y121,\">1\")+SUMIF('2011 Survey responses'!AA121,\">1\"))/(COUNTIF('2011 Survey responses'!V121,\">1\")+COUNTIF('2011 Survey responses'!Y121,\">1\")+COUNTIF('2011 Survey responses'!AA121,\">1\"))))","v":""},{"$f":"IF(SUM('2011 Survey responses'!AB121:AH121)<1,\"\",(AVERAGEIFS('2011 Survey responses'!AB121:AH121,'2011 Survey responses'!AB121:AH121,\">1\")))","v":""},{"$f":"IF(SUM('2011 Survey responses'!AI121:AO121)<7.1,\"\",(AVERAGEIFS('2011 Survey responses'!AI121:AO121,'2011 Survey responses'!AI121:AO121,\">1\")))","v":""},{"$f":"IF(('2011 Survey responses'!AH121)<1.1,\"\",('2011 Survey responses'!AH121))","v":""},{"$f":"IF(SUM('2011 Survey responses'!AP121:BV121)<1,\"\",(AVERAGEIFS('2011 Survey responses'!AP121:BV121,'2011 Survey responses'!AP121:BV121,\">1\")))","v":""},{"$f":"IF(SUM('2011 Survey responses'!AP121:AS121)<4.1,\"\",(AVERAGEIFS('2011 Survey responses'!AP121:AS121,'2011 Survey responses'!AP121:AS121,\">1\")))","v":""},{"$f":"IF(SUM('2011 Survey responses'!AT121:BF121)<1,\"\",(AVERAGEIFS('2011 Survey responses'!AT121:BF121,'2011 Survey responses'!AT121:BF121,\">1\")))","v":""},{"$f":"IF(SUM('2011 Survey responses'!BG121:BO121)<1,\"\",(AVERAGEIFS('2011 Survey responses'!BG121:BO121,'2011 Survey responses'!BG121:BO121,\">1\")))","v":""},{"$f":"IF(SUM('2011 Survey responses'!BP121:BS121)<1,\"\",(AVERAGEIFS('2011 Survey responses'!BP121:BS121,'2011 Survey responses'!BP121:BS121,\">1\")))","v":""},{"$f":"IF(SUM('2011 Survey responses'!BT121:BV121)<3.1,\"\",(AVERAGEIFS('2011 Survey responses'!BT121:BV121,'2011 Survey responses'!BT121:BV121,\">1\")))","v":""},{"$f":"IF(('2011 Survey responses'!AQ121+'2011 Survey responses'!AR121+'2011 Survey responses'!BG121)<3.1,\"\",((SUMIF('2011 Survey responses'!AQ121,\">1\")+SUMIF('2011 Survey responses'!AR121,\">1\")+SUMIF('2011 Survey responses'!BG121,\">1\"))/(COUNTIF('2011 Survey responses'!AQ121,\">1\")+COUNTIF('2011 Survey responses'!AR121,\">1\")+COUNTIF('2011 Survey responses'!BG121,\">1\"))))","v":""},{"$f":"IF(SUM('2011 Survey responses'!AP121:AS121)<4.1,\"\",(AVERAGEIFS('2011 Survey responses'!AP121:AS121,'2011 Survey responses'!AP121:AS121,\">1\")))","v":""},{"$f":"IF(('2011 Survey responses'!AU121+'2011 Survey responses'!AX121+'2011 Survey responses'!BA121+'2011 Survey responses'!BC121+'2011 Survey responses'!BD121)<5.1,\"\",(SUMIF('2011 Survey responses'!AU121,\">1\")+SUMIF('2011 Survey responses'!AX121,\">1\")+SUMIF('2011 Survey responses'!BA121,\">1\")+SUMIF('2011 Survey responses'!BC121,\">1\")+SUMIF('2011 Survey responses'!BD121,\">1\"))/(COUNTIF('2011 Survey responses'!AU121,\">1\")+COUNTIF('2011 Survey responses'!AX121,\">1\")+COUNTIF('2011 Survey responses'!BA121,\">1\")+COUNTIF('2011 Survey responses'!BC121,\">1\")+COUNTIF('2011 Survey responses'!BD121,\">1\")))","v":""},{"$f":"IF(('2011 Survey responses'!AT121)<1.1,\"\",('2011 Survey responses'!AT121))","v":""},{"$f":"IF(SUM('2011 Survey responses'!AV121:AW121)<2.1,\"\",(AVERAGEIFS('2011 Survey responses'!AV121:AW121,'2011 Survey responses'!AV121:AW121,\">1\")))","v":""},{"$f":"IF(('2011 Survey responses'!AW121+'2011 Survey responses'!AY121)<2.1,\"\",(SUMIF('2011 Survey responses'!AW121,\">1\")+SUMIF('2011 Survey responses'!AY121,\">1\"))/(COUNTIF('2011 Survey responses'!AW121,\">1\")+COUNTIF('2011 Survey responses'!AY121,\">1\")))","v":""},{"$f":"IF(('2011 Survey responses'!AZ121)<1.1,\"\",('2011 Survey responses'!AZ121))","v":""},null,null,null,null,{"$f":"IF(('2011 Survey responses'!BE121)<1.1,\"\",('2011 Survey responses'!BE121))","v":""},{"$f":"IF(('2011 Survey responses'!AY121+'2011 Survey responses'!BB121+'2011 Survey responses'!BF121)<3.1,\"\",(SUMIF('2011 Survey responses'!AY121,\">1\")+SUMIF('2011 Survey responses'!BB121,\">1\")+SUMIF('2011 Survey responses'!BF121,\">1\"))/(COUNTIF('2011 Survey responses'!AY121,\">1\")+COUNTIF('2011 Survey responses'!BB121,\">1\")+COUNTIF('2011 Survey responses'!BF121,\">1\")))","v":""},"",{"$f":"IF(SUM('2011 Survey responses'!BT121:BV121)<3.1,\"\",(AVERAGEIFS('2011 Survey responses'!BT121:BV121,'2011 Survey responses'!BT121:BV121,\">1\")))","v":""},{"$f":"IF(SUM('2011 Survey responses'!BW121:CP121)<1,\"\",(AVERAGEIFS('2011 Survey responses'!BW121:CP121,'2011 Survey responses'!BW121:CP121,\">1\")))","v":""},{"$f":"IF(SUM('2011 Survey responses'!BW121:CF121)<1,\"\",(AVERAGEIFS('2011 Survey responses'!BW121:CF121,'2011 Survey responses'!BW121:CF121,\">1\")))","v":""},{"$f":"IF(SUM('2011 Survey responses'!CG121:CP121)<1,\"\",(AVERAGEIFS('2011 Survey responses'!CG121:CP121,'2011 Survey responses'!CG121:CP121,\">1\")))","v":""},{"$f":"IF(SUM('2011 Survey responses'!BX121:CF121)<1,\"\",(AVERAGEIFS('2011 Survey responses'!BX121:CF121,'2011 Survey responses'!BX121:CF121,\">1\")))","v":""},{"$f":"IF(SUM('2011 Survey responses'!CH121:CP121)<1,\"\",(AVERAGEIFS('2011 Survey responses'!CH121:CP121,'2011 Survey responses'!CH121:CP121,\">1\")))","v":""},{"$f":"IF(SUM('2011 Survey responses'!BW121:CP121)<1,\"\",(AVERAGEIFS('2011 Survey responses'!BW121:CP121,'2011 Survey responses'!BW121:CP121,\">1\")))","v":""},{"$f":"IF(('2011 Survey responses'!BW121+'2011 Survey responses'!CG121)<2.1,\"\",(SUMIF('2011 Survey responses'!BW121,\">1\")+SUMIF('2011 Survey responses'!CG121,\">1\"))/(COUNTIF('2011 Survey responses'!BW121,\">1\")+COUNTIF('2011 Survey responses'!CG121,\">1\")))","v":""},{"$f":"IF(('2011 Survey responses'!BX121+'2011 Survey responses'!CH121)<2.1,\"\",(SUMIF('2011 Survey responses'!BX121,\">1\")+SUMIF('2011 Survey responses'!CH121,\">1\"))/(COUNTIF('2011 Survey responses'!BX121,\">1\")+COUNTIF('2011 Survey responses'!CH121,\">1\")))","v":""},{"$f":"IF(('2011 Survey responses'!BY121+'2011 Survey responses'!CI121)<2.1,\"\",(SUMIF('2011 Survey responses'!BY121,\">1\")+SUMIF('2011 Survey responses'!CI121,\">1\"))/(COUNTIF('2011 Survey responses'!BY121,\">1\")+COUNTIF('2011 Survey responses'!CI121,\">1\")))","v":""},{"$f":"IF('2011 Survey responses'!CQ121<0.5,\"\",'2011 Survey responses'!CQ121)","v":""},{"$f":"IF('2011 Survey responses'!CR121<0.5,\"\",'2011 Survey responses'!CR121)","v":""},{"$f":"IF('2011 Survey responses'!CS121<0.5,\"\",'2011 Survey responses'!CS121)","v":""},{"$f":"IF('2011 Survey responses'!CT121<0.5,\"\",'2011 Survey responses'!CT121)","v":""},{"$f":"IF('2011 Survey responses'!CU121<0.5,\"\",'2011 Survey responses'!CU121)","v":""},{"$f":"IF('2011 Survey responses'!CV121<0.5,\"\",'2011 Survey responses'!CV121)","v":""},{"$f":"IF(SUM('2011 Survey responses'!CW121:DL121)<1,\"\",(AVERAGE('2011 Survey responses'!CW121:DL121)))","v":""},{"$f":"IF(SUM('2011 Survey responses'!CW121:CZ121)<1,\"\",(AVERAGE('2011 Survey responses'!CW121:CZ121)))","v":""},{"$f":"IF(SUM('2011 Survey responses'!DA121:DD121)<1,\"\",(AVERAGE('2011 Survey responses'!DA121:DD121)))","v":""},{"$f":"IF(SUM('2011 Survey responses'!DE121:DH121)<1,\"\",(AVERAGE('2011 Survey responses'!DE121:DH121)))","v":""},{"$f":"IF(SUM('2011 Survey responses'!DI121:DL121)<1,\"\",(AVERAGE('2011 Survey responses'!DI121:DL121)))","v":""},{"$f":"IF(('2011 Survey responses'!CW121+'2011 Survey responses'!DA121+'2011 Survey responses'!DE121+'2011 Survey responses'!DI121)<1,\"\",AVERAGE('2011 Survey responses'!CW121,'2011 Survey responses'!DA121,'2011 Survey responses'!DE121,'2011 Survey responses'!DI121))","v":""},{"$f":"IF(('2011 Survey responses'!CX121+'2011 Survey responses'!DB121+'2011 Survey responses'!DF121+'2011 Survey responses'!DJ121)<1,\"\",AVERAGE('2011 Survey responses'!CX121,'2011 Survey responses'!DB121,'2011 Survey responses'!DF121,'2011 Survey responses'!DJ121))","v":""},{"$f":"IF(('2011 Survey responses'!CY121+'2011 Survey responses'!DC121+'2011 Survey responses'!DG121+'2011 Survey responses'!DK121)<1,\"\",AVERAGE('2011 Survey responses'!CY121,'2011 Survey responses'!DC121,'2011 Survey responses'!DG121,'2011 Survey responses'!DK121))","v":""},{"$f":"IF(('2011 Survey responses'!CZ121+'2011 Survey responses'!DD121+'2011 Survey responses'!DH121+'2011 Survey responses'!DL121)<1,\"\",AVERAGE('2011 Survey responses'!CZ121,'2011 Survey responses'!DD121,'2011 Survey responses'!DH121,'2011 Survey responses'!DL121))","v":""},{"$f":"IF('2011 Survey responses'!CW121<0.5,\"\",'2011 Survey responses'!CW121)","v":""},{"$f":"IF('2011 Survey responses'!CX121<0.5,\"\",'2011 Survey responses'!CX121)","v":""},{"$f":"IF('2011 Survey responses'!CY121<0.5,\"\",'2011 Survey responses'!CY121)","v":""},{"$f":"IF('2011 Survey responses'!CZ121<0.5,\"\",'2011 Survey responses'!CZ121)","v":""},{"$f":"IF('2011 Survey responses'!DA121<0.5,\"\",'2011 Survey responses'!DA121)","v":""},{"$f":"IF('2011 Survey responses'!DB121<0.5,\"\",'2011 Survey responses'!DB121)","v":""},{"$f":"IF('2011 Survey responses'!DC121<0.5,\"\",'2011 Survey responses'!DC121)","v":""},{"$f":"IF('2011 Survey responses'!DD121<0.5,\"\",'2011 Survey responses'!DD121)","v":""},{"$f":"IF('2011 Survey responses'!DE121<0.5,\"\",'2011 Survey responses'!DE121)","v":""},{"$f":"IF('2011 Survey responses'!DF121<0.5,\"\",'2011 Survey responses'!DF121)","v":""},{"$f":"IF('2011 Survey responses'!DG121<0.5,\"\",'2011 Survey responses'!DG121)","v":""},{"$f":"IF('2011 Survey responses'!DH121<0.5,\"\",'2011 Survey responses'!DH121)","v":""},{"$f":"IF('2011 Survey responses'!DI121<0.5,\"\",'2011 Survey responses'!DI121)","v":""},{"$f":"IF('2011 Survey responses'!DJ121<0.5,\"\",'2011 Survey responses'!DJ121)","v":""},{"$f":"IF('2011 Survey responses'!DK121<0.5,\"\",'2011 Survey responses'!DK121)","v":""},{"$f":"IF('2011 Survey responses'!DL121<0.5,\"\",'2011 Survey responses'!DL121)","v":""},{"$f":"IF('2011 Survey responses'!DU121=4,4,IF('2011 Survey responses'!DU121=5,4,\"\"))","v":""},{"$f":"IF('2011 Survey responses'!DV121=4,3,IF('2011 Survey responses'!DV121=5,3,\"\"))","v":""},"",{"$f":"IF(CQ121=2,CQ121,IF(CO121=4,CO121,IF(CP121=3,CP121,IF('2011 Survey responses'!GT121=1,1,\"\"))))","v":""},{"$f":"IF('2011 Survey responses'!DO121<0.5,\"\",'2011 Survey responses'!DO121)","v":""},{"$f":"IF('2011 Survey responses'!DP121<0.5,\"\",'2011 Survey responses'!DP121)","v":""},{"$f":"IF('2011 Survey responses'!DQ121<0.5,\"\",'2011 Survey responses'!DQ121)","v":""},{"$f":"IF('2011 Survey responses'!DR121<0.5,\"\",'2011 Survey responses'!DR121)","v":""},{"$f":"IF('2011 Survey responses'!DS121<0.5,\"\",'2011 Survey responses'!DS121)","v":""},{"$f":"IF('2011 Survey responses'!DT121<0.5,\"\",'2011 Survey responses'!DT121)","v":""},{"$f":"IF('2011 Survey responses'!DU121<0.5,\"\",'2011 Survey responses'!DU121)","v":""},{"$f":"IF('2011 Survey responses'!DV121<0.5,\"\",'2011 Survey responses'!DV121)","v":""},{"$f":"IF('2011 Survey responses'!DW121<0.5,\"\",'2011 Survey responses'!DW121)","v":""},{"$f":"IF('2011 Survey responses'!DX121<0.5,\"\",'2011 Survey responses'!DX121)","v":""},{"$f":"IF('2011 Survey responses'!DY121<0.5,\"\",'2011 Survey responses'!DY121)","v":""},{"$f":"IF('2011 Survey responses'!DZ121<0.5,\"\",'2011 Survey responses'!DZ121)","v":""},{"$f":"IF('2011 Survey responses'!EA121<0.5,\"\",'2011 Survey responses'!EA121)","v":""},{"$f":"IF('2011 Survey responses'!EB121<0.5,\"\",'2011 Survey responses'!EB121)","v":""},{"$f":"IF('2011 Survey responses'!EC121<0.5,\"\",'2011 Survey responses'!EC121)","v":""},{"$f":"IF('2011 Survey responses'!ED121<0.5,\"\",'2011 Survey responses'!ED121)","v":""},{"$f":"IF('2011 Survey responses'!EE121<0.5,\"\",'2011 Survey responses'!EE121)","v":""},{"$f":"IF('2011 Survey responses'!EF121<0.5,\"\",'2011 Survey responses'!EF121)","v":""},{"$f":"IF('2011 Survey responses'!EG121<0.5,\"\",'2011 Survey responses'!EG121)","v":""},{"$f":"IF('2011 Survey responses'!EH121<0.5,\"\",'2011 Survey responses'!EH121)","v":""},{"$f":"IF('2011 Survey responses'!EI121<0.5,\"\",'2011 Survey responses'!EI121)","v":""},{"$f":"IF('2011 Survey responses'!EJ121<0.5,\"\",'2011 Survey responses'!EJ121)","v":""},{"$f":"IF('2011 Survey responses'!EK121<0.5,\"\",'2011 Survey responses'!EK121)","v":""},{"$f":"IF('2011 Survey responses'!EL121<0.5,\"\",'2011 Survey responses'!EL121)","v":""},{"$f":"IF('2011 Survey responses'!EM121<0.5,\"\",'2011 Survey responses'!EM121)","v":""},{"$f":"IF('2011 Survey responses'!EN121<0.5,\"\",'2011 Survey responses'!EN121)","v":""},{"$f":"IF('2011 Survey responses'!EO121<0.5,\"\",'2011 Survey responses'!EO121)","v":""},{"$f":"IF('2011 Survey responses'!EP121<0.5,\"\",'2011 Survey responses'!EP121)","v":""},{"$f":"IF(('2011 Survey responses'!EW121+'2011 Survey responses'!EX121)>=2,AVERAGE('2011 Survey responses'!EW121,'2011 Survey responses'!EY121),\"\")","v":""},{"$f":"IF('2011 Survey responses'!EX121<0.5,\"\",'2011 Survey responses'!EX121)","v":""},{"$f":"IF('2011 Survey responses'!EZ121<0.5,\"\",'2011 Survey responses'!EZ121)","v":""},{"$f":"IF('2011 Survey responses'!FB121<0.5,\"\",'2011 Survey responses'!FB121)","v":""},{"$f":"IF('2011 Survey responses'!FD121<0.5,\"\",'2011 Survey responses'!FD121)","v":""},{"$f":"IF('2011 Survey responses'!FC121<0.5,\"\",'2011 Survey responses'!FC121)","v":""},{"$f":"IF(('2011 Survey responses'!EM121+'2011 Survey responses'!EN121)>=2,AVERAGE('2011 Survey responses'!EM121,'2011 Survey responses'!EN121),\"\")","v":""},{"$f":"IF('2011 Survey responses'!ES121<0.5,\"\",'2011 Survey responses'!ES121)","v":""},{"$f":"IF(('2011 Survey responses'!ET121+'2011 Survey responses'!EU121)>=2,AVERAGE('2011 Survey responses'!ET121,'2011 Survey responses'!EU121),\"\")","v":""},{"$f":"IF('2011 Survey responses'!EV121<0.5,\"\",'2011 Survey responses'!EV121)","v":""},{"$f":"IF('2011 Survey responses'!FA121<0.5,\"\",'2011 Survey responses'!FA121)","v":""},{"$f":"IF('2011 Survey responses'!ER121<0.5,\"\",'2011 Survey responses'!ER121)","v":""},{"$f":"IF(('2011 Survey responses'!EO121+'2011 Survey responses'!EP121)>=2,AVERAGE('2011 Survey responses'!EO121,'2011 Survey responses'!EP121),\"\")","v":""},{"$f":"IF('2011 Survey responses'!EQ121<0.5,\"\",'2011 Survey responses'!EQ121)","v":""},{"$f":"IF('2011 Survey responses'!ET121<0.5,\"\",'2011 Survey responses'!ET121)","v":""},{"$f":"IF('2011 Survey responses'!EU121<0.5,\"\",'2011 Survey responses'!EU121)","v":""},{"$f":"IF('2011 Survey responses'!EW121<0.5,\"\",'2011 Survey responses'!EW121)","v":""},{"$f":"IF('2011 Survey responses'!EY121<0.5,\"\",'2011 Survey responses'!EY121)","v":""},{"$f":"IF('2011 Survey responses'!FU121<0.5,\"\",'2011 Survey responses'!FU121)","v":""},{"$f":"IF(('2011 Survey responses'!FL121+'2011 Survey responses'!FM121)>=2,AVERAGE('2011 Survey responses'!FL121,'2011 Survey responses'!FM121),\"\")","v":""},{"$f":"IF(('2011 Survey responses'!FO121+'2011 Survey responses'!FQ121)>=2,AVERAGE('2011 Survey responses'!FO121,'2011 Survey responses'!FQ121),\"\")","v":""},{"$f":"IF('2011 Survey responses'!FJ121<0.5,\"\",'2011 Survey responses'!FJ121)","v":""},{"$f":"IF('2011 Survey responses'!FT121<0.5,\"\",'2011 Survey responses'!FT121)","v":""},{"$f":"IF('2011 Survey responses'!FR121<0.5,\"\",'2011 Survey responses'!FR121)","v":""},{"$f":"IF('2011 Survey responses'!FK121<0.5,\"\",'2011 Survey responses'!FK121)","v":""},{"$f":"IF('2011 Survey responses'!FP121<0.5,\"\",'2011 Survey responses'!FP121)","v":""},{"$f":"IF('2011 Survey responses'!FN121<0.5,\"\",'2011 Survey responses'!FN121)","v":""},{"$f":"IF(('2011 Survey responses'!FE121+'2011 Survey responses'!FF121)>=2,AVERAGE('2011 Survey responses'!FE121,'2011 Survey responses'!FF121),\"\")","v":""},{"$f":"IF('2011 Survey responses'!FS121<0.5,\"\",'2011 Survey responses'!FS121)","v":""},{"$f":"IF('2011 Survey responses'!FV121<0.5,\"\",'2011 Survey responses'!FV121)","v":""},{"$f":"IF(('2011 Survey responses'!FG121+'2011 Survey responses'!FH121)>=2,AVERAGE('2011 Survey responses'!FG121,'2011 Survey responses'!FH121),\"\")","v":""},{"$f":"IF('2011 Survey responses'!FI121<0.5,\"\",'2011 Survey responses'!FI121)","v":""},{"$f":"IF('2011 Survey responses'!FE121<0.5,\"\",'2011 Survey responses'!FE121)","v":""},{"$f":"IF('2011 Survey responses'!FF121<0.5,\"\",'2011 Survey responses'!FF121)","v":""},{"$f":"IF('2011 Survey responses'!FG121<0.5,\"\",'2011 Survey responses'!FG121)","v":""},{"$f":"IF('2011 Survey responses'!FH121<0.5,\"\",'2011 Survey responses'!FH121)","v":""},{"$f":"IF('2011 Survey responses'!FL121<0.5,\"\",'2011 Survey responses'!FL121)","v":""},{"$f":"IF('2011 Survey responses'!FM121<0.5,\"\",'2011 Survey responses'!FM121)","v":""},{"$f":"IF('2011 Survey responses'!FO121<0.5,\"\",'2011 Survey responses'!FO121)","v":""},{"$f":"IF('2011 Survey responses'!FQ121<0.5,\"\",'2011 Survey responses'!FQ121)","v":""}]
["Nepal",{"$f":"IF(SUM(F122)<1,\"\",AVERAGEIF('2011 Survey responses'!B122:CP122,\">1\"))","v":""},{"$f":"IF(SUM(F122)<1,\"\",AVERAGEIF('2011 Survey responses'!B122:AO122,\">1\"))","v":""},{"$f":"IF(SUM(F122)<1,\"\",AVERAGEIF('2011 Survey responses'!B122:BV122,\">1\"))","v":""},{"$f":"IF(SUM(F122)<1,\"\",AVERAGEIF('2011 Survey responses'!V122:BV122,\">1\"))","v":""},{"$f":"IF(SUM('2011 Survey responses'!B122:U122)<1,\"\",(AVERAGEIFS('2011 Survey responses'!B122:U122,'2011 Survey responses'!B122:U122,\">1\")))","v":""},{"$f":"IF(SUM('2011 Survey responses'!B122:H122)<1,\"\",(AVERAGEIFS('2011 Survey responses'!B122:H122,'2011 Survey responses'!B122:H122,\">1\")))","v":""},{"$f":"IF(SUM('2011 Survey responses'!I122:S122)<1,\"\",(AVERAGEIFS('2011 Survey responses'!I122:S122,'2011 Survey responses'!I122:S122,\">1\")))","v":""},{"$f":"IF(SUM('2011 Survey responses'!T122:U122)<2.1,\"\",(AVERAGEIFS('2011 Survey responses'!T122:U122,'2011 Survey responses'!T122:U122,\">1\")))","v":""},{"$f":"IF(SUM('2011 Survey responses'!B122:C122)<2.1,\"\",((SUMIF('2011 Survey responses'!B122:C122,\">1\")+SUMIF('2011 Survey responses'!F122,\">1\"))/(COUNTIF('2011 Survey responses'!B122:C122,\">1\")+COUNTIF('2011 Survey responses'!F122,\">1\"))))","v":""},{"$f":"IF(SUM('2011 Survey responses'!D122:E122)<2.1,\"\",(AVERAGEIFS('2011 Survey responses'!D122:E122,'2011 Survey responses'!D122:E122,\">1\")))","v":""},{"$f":"IF(('2011 Survey responses'!B122+'2011 Survey responses'!D122)<2.1,\"\",((SUMIF('2011 Survey responses'!B122,\">1\")+SUMIF('2011 Survey responses'!D122,\">1\")+SUMIF('2011 Survey responses'!F122,\">1\")+SUMIF('2011 Survey responses'!K122,\">1\"))/(COUNTIF('2011 Survey responses'!B122,\">1\")+COUNTIF('2011 Survey responses'!D122,\">1\")+COUNTIF('2011 Survey responses'!F122,\">1\")+COUNTIF('2011 Survey responses'!K122,\">1\"))))","v":""},{"$f":"IF(SUM('2011 Survey responses'!G122:H122)<2.1,\"\",(AVERAGEIFS('2011 Survey responses'!G122:H122,'2011 Survey responses'!G122:H122,\">1\")))","v":""},{"$f":"IF(SUM('2011 Survey responses'!F122:G122)<1.5,\"\",MAX('2011 Survey responses'!F122,'2011 Survey responses'!G122))","v":""},{"$f":"IF(SUM('2011 Survey responses'!G122:H122)<1,\"\",MAX('2011 Survey responses'!G122,'2011 Survey responses'!H122))","v":""},{"$f":"IF(SUM('2011 Survey responses'!I122:L122)<4.1,\"\",(AVERAGEIFS('2011 Survey responses'!I122:L122,'2011 Survey responses'!I122:L122,\">1\")))","v":""},{"$f":"IF(SUM('2011 Survey responses'!M122:S122)<4.1,\"\",(AVERAGEIFS('2011 Survey responses'!M122:S122,'2011 Survey responses'!M122:S122,\">1\")))","v":""},{"$f":"IF(SUM('2011 Survey responses'!T122:U122)<2.1,\"\",(AVERAGEIFS('2011 Survey responses'!T122:U122,'2011 Survey responses'!T122:U122,\">1\")))","v":""},{"$f":"IF(SUM('2011 Survey responses'!V122:AO122)<1,\"\",(AVERAGEIFS('2011 Survey responses'!V122:AO122,'2011 Survey responses'!V122:AO122,\">1\")))","v":""},{"$f":"IF(SUM('2011 Survey responses'!V122:AA122)<1,\"\",(AVERAGEIFS('2011 Survey responses'!V122:AA122,'2011 Survey responses'!V122:AA122,\">1\")))","v":""},{"$f":"IF(SUM('2011 Survey responses'!AB122:AH122)<1,\"\",(AVERAGEIFS('2011 Survey responses'!AB122:AH122,'2011 Survey responses'!AB122:AH122,\">1\")))","v":""},{"$f":"IF(SUM('2011 Survey responses'!AI122:AO122)<1,\"\",(AVERAGEIFS('2011 Survey responses'!AI122:AO122,'2011 Survey responses'!AI122:AO122,\">1\")))","v":""},{"$f":"IF(('2011 Survey responses'!Y122+'2011 Survey responses'!AI122+'2011 Survey responses'!AK122)<3.1,\"\",((SUMIF('2011 Survey responses'!Y122,\">1\")+SUMIF('2011 Survey responses'!AI122,\">1\")+SUMIF('2011 Survey responses'!AK122,\">1\")+SUMIF('2011 Survey responses'!AM122,\">1\"))/(COUNTIF('2011 Survey responses'!Y122,\">1\")+COUNTIF('2011 Survey responses'!AI122,\">1\")+COUNTIF('2011 Survey responses'!AK122,\">1\")+COUNTIF('2011 Survey responses'!AM122,\">1\"))))","v":""},{"$f":"IF(('2011 Survey responses'!W122)<1.1,\"\",('2011 Survey responses'!W122))","v":""},{"$f":"IF(('2011 Survey responses'!Y122)<1.1,\"\",('2011 Survey responses'!Y122))","v":""},{"$f":"IF(('2011 Survey responses'!Z122)<1.1,\"\",('2011 Survey responses'!Z122))","v":""},{"$f":"IF(('2011 Survey responses'!V122+'2011 Survey responses'!X122+'2011 Survey responses'!AA122)<3.1,\"\",((SUMIF('2011 Survey responses'!V122,\">1\")+SUMIF('2011 Survey responses'!X122,\">1\")+SUMIF('2011 Survey responses'!AA122,\">1\"))/(COUNTIF('2011 Survey responses'!V122,\">1\")+COUNTIF('2011 Survey responses'!X122,\">1\")+COUNTIF('2011 Survey responses'!AA122,\">1\"))))","v":""},{"$f":"IF(('2011 Survey responses'!V122+'2011 Survey responses'!Y122+'2011 Survey responses'!AA122)<3.1,\"\",((SUMIF('2011 Survey responses'!V122,\">1\")+SUMIF('2011 Survey responses'!Y122,\">1\")+SUMIF('2011 Survey responses'!AA122,\">1\"))/(COUNTIF('2011 Survey responses'!V122,\">1\")+COUNTIF('2011 Survey responses'!Y122,\">1\")+COUNTIF('2011 Survey responses'!AA122,\">1\"))))","v":""},{"$f":"IF(SUM('2011 Survey responses'!AB122:AH122)<1,\"\",(AVERAGEIFS('2011 Survey responses'!AB122:AH122,'2011 Survey responses'!AB122:AH122,\">1\")))","v":""},{"$f":"IF(SUM('2011 Survey responses'!AI122:AO122)<7.1,\"\",(AVERAGEIFS('2011 Survey responses'!AI122:AO122,'2011 Survey responses'!AI122:AO122,\">1\")))","v":""},{"$f":"IF(('2011 Survey responses'!AH122)<1.1,\"\",('2011 Survey responses'!AH122))","v":""},{"$f":"IF(SUM('2011 Survey responses'!AP122:BV122)<1,\"\",(AVERAGEIFS('2011 Survey responses'!AP122:BV122,'2011 Survey responses'!AP122:BV122,\">1\")))","v":""},{"$f":"IF(SUM('2011 Survey responses'!AP122:AS122)<4.1,\"\",(AVERAGEIFS('2011 Survey responses'!AP122:AS122,'2011 Survey responses'!AP122:AS122,\">1\")))","v":""},{"$f":"IF(SUM('2011 Survey responses'!AT122:BF122)<1,\"\",(AVERAGEIFS('2011 Survey responses'!AT122:BF122,'2011 Survey responses'!AT122:BF122,\">1\")))","v":""},{"$f":"IF(SUM('2011 Survey responses'!BG122:BO122)<1,\"\",(AVERAGEIFS('2011 Survey responses'!BG122:BO122,'2011 Survey responses'!BG122:BO122,\">1\")))","v":""},{"$f":"IF(SUM('2011 Survey responses'!BP122:BS122)<1,\"\",(AVERAGEIFS('2011 Survey responses'!BP122:BS122,'2011 Survey responses'!BP122:BS122,\">1\")))","v":""},{"$f":"IF(SUM('2011 Survey responses'!BT122:BV122)<3.1,\"\",(AVERAGEIFS('2011 Survey responses'!BT122:BV122,'2011 Survey responses'!BT122:BV122,\">1\")))","v":""},{"$f":"IF(('2011 Survey responses'!AQ122+'2011 Survey responses'!AR122+'2011 Survey responses'!BG122)<3.1,\"\",((SUMIF('2011 Survey responses'!AQ122,\">1\")+SUMIF('2011 Survey responses'!AR122,\">1\")+SUMIF('2011 Survey responses'!BG122,\">1\"))/(COUNTIF('2011 Survey responses'!AQ122,\">1\")+COUNTIF('2011 Survey responses'!AR122,\">1\")+COUNTIF('2011 Survey responses'!BG122,\">1\"))))","v":""},{"$f":"IF(SUM('2011 Survey responses'!AP122:AS122)<4.1,\"\",(AVERAGEIFS('2011 Survey responses'!AP122:AS122,'2011 Survey responses'!AP122:AS122,\">1\")))","v":""},{"$f":"IF(('2011 Survey responses'!AU122+'2011 Survey responses'!AX122+'2011 Survey responses'!BA122+'2011 Survey responses'!BC122+'2011 Survey responses'!BD122)<5.1,\"\",(SUMIF('2011 Survey responses'!AU122,\">1\")+SUMIF('2011 Survey responses'!AX122,\">1\")+SUMIF('2011 Survey responses'!BA122,\">1\")+SUMIF('2011 Survey responses'!BC122,\">1\")+SUMIF('2011 Survey responses'!BD122,\">1\"))/(COUNTIF('2011 Survey responses'!AU122,\">1\")+COUNTIF('2011 Survey responses'!AX122,\">1\")+COUNTIF('2011 Survey responses'!BA122,\">1\")+COUNTIF('2011 Survey responses'!BC122,\">1\")+COUNTIF('2011 Survey responses'!BD122,\">1\")))","v":""},{"$f":"IF(('2011 Survey responses'!AT122)<1.1,\"\",('2011 Survey responses'!AT122))","v":""},{"$f":"IF(SUM('2011 Survey responses'!AV122:AW122)<2.1,\"\",(AVERAGEIFS('2011 Survey responses'!AV122:AW122,'2011 Survey responses'!AV122:AW122,\">1\")))","v":""},{"$f":"IF(('2011 Survey responses'!AW122+'2011 Survey responses'!AY122)<2.1,\"\",(SUMIF('2011 Survey responses'!AW122,\">1\")+SUMIF('2011 Survey responses'!AY122,\">1\"))/(COUNTIF('2011 Survey responses'!AW122,\">1\")+COUNTIF('2011 Survey responses'!AY122,\">1\")))","v":""},{"$f":"IF(('2011 Survey responses'!AZ122)<1.1,\"\",('2011 Survey responses'!AZ122))","v":""},null,null,null,null,{"$f":"IF(('2011 Survey responses'!BE122)<1.1,\"\",('2011 Survey responses'!BE122))","v":""},{"$f":"IF(('2011 Survey responses'!AY122+'2011 Survey responses'!BB122+'2011 Survey responses'!BF122)<3.1,\"\",(SUMIF('2011 Survey responses'!AY122,\">1\")+SUMIF('2011 Survey responses'!BB122,\">1\")+SUMIF('2011 Survey responses'!BF122,\">1\"))/(COUNTIF('2011 Survey responses'!AY122,\">1\")+COUNTIF('2011 Survey responses'!BB122,\">1\")+COUNTIF('2011 Survey responses'!BF122,\">1\")))","v":""},"",{"$f":"IF(SUM('2011 Survey responses'!BT122:BV122)<3.1,\"\",(AVERAGEIFS('2011 Survey responses'!BT122:BV122,'2011 Survey responses'!BT122:BV122,\">1\")))","v":""},{"$f":"IF(SUM('2011 Survey responses'!BW122:CP122)<1,\"\",(AVERAGEIFS('2011 Survey responses'!BW122:CP122,'2011 Survey responses'!BW122:CP122,\">1\")))","v":""},{"$f":"IF(SUM('2011 Survey responses'!BW122:CF122)<1,\"\",(AVERAGEIFS('2011 Survey responses'!BW122:CF122,'2011 Survey responses'!BW122:CF122,\">1\")))","v":""},{"$f":"IF(SUM('2011 Survey responses'!CG122:CP122)<1,\"\",(AVERAGEIFS('2011 Survey responses'!CG122:CP122,'2011 Survey responses'!CG122:CP122,\">1\")))","v":""},{"$f":"IF(SUM('2011 Survey responses'!BX122:CF122)<1,\"\",(AVERAGEIFS('2011 Survey responses'!BX122:CF122,'2011 Survey responses'!BX122:CF122,\">1\")))","v":""},{"$f":"IF(SUM('2011 Survey responses'!CH122:CP122)<1,\"\",(AVERAGEIFS('2011 Survey responses'!CH122:CP122,'2011 Survey responses'!CH122:CP122,\">1\")))","v":""},{"$f":"IF(SUM('2011 Survey responses'!BW122:CP122)<1,\"\",(AVERAGEIFS('2011 Survey responses'!BW122:CP122,'2011 Survey responses'!BW122:CP122,\">1\")))","v":""},{"$f":"IF(('2011 Survey responses'!BW122+'2011 Survey responses'!CG122)<2.1,\"\",(SUMIF('2011 Survey responses'!BW122,\">1\")+SUMIF('2011 Survey responses'!CG122,\">1\"))/(COUNTIF('2011 Survey responses'!BW122,\">1\")+COUNTIF('2011 Survey responses'!CG122,\">1\")))","v":""},{"$f":"IF(('2011 Survey responses'!BX122+'2011 Survey responses'!CH122)<2.1,\"\",(SUMIF('2011 Survey responses'!BX122,\">1\")+SUMIF('2011 Survey responses'!CH122,\">1\"))/(COUNTIF('2011 Survey responses'!BX122,\">1\")+COUNTIF('2011 Survey responses'!CH122,\">1\")))","v":""},{"$f":"IF(('2011 Survey responses'!BY122+'2011 Survey responses'!CI122)<2.1,\"\",(SUMIF('2011 Survey responses'!BY122,\">1\")+SUMIF('2011 Survey responses'!CI122,\">1\"))/(COUNTIF('2011 Survey responses'!BY122,\">1\")+COUNTIF('2011 Survey responses'!CI122,\">1\")))","v":""},{"$f":"IF('2011 Survey responses'!CQ122<0.5,\"\",'2011 Survey responses'!CQ122)","v":""},{"$f":"IF('2011 Survey responses'!CR122<0.5,\"\",'2011 Survey responses'!CR122)","v":""},{"$f":"IF('2011 Survey responses'!CS122<0.5,\"\",'2011 Survey responses'!CS122)","v":""},{"$f":"IF('2011 Survey responses'!CT122<0.5,\"\",'2011 Survey responses'!CT122)","v":""},{"$f":"IF('2011 Survey responses'!CU122<0.5,\"\",'2011 Survey responses'!CU122)","v":""},{"$f":"IF('2011 Survey responses'!CV122<0.5,\"\",'2011 Survey responses'!CV122)","v":""},{"$f":"IF(SUM('2011 Survey responses'!CW122:DL122)<1,\"\",(AVERAGE('2011 Survey responses'!CW122:DL122)))","v":""},{"$f":"IF(SUM('2011 Survey responses'!CW122:CZ122)<1,\"\",(AVERAGE('2011 Survey responses'!CW122:CZ122)))","v":""},{"$f":"IF(SUM('2011 Survey responses'!DA122:DD122)<1,\"\",(AVERAGE('2011 Survey responses'!DA122:DD122)))","v":""},{"$f":"IF(SUM('2011 Survey responses'!DE122:DH122)<1,\"\",(AVERAGE('2011 Survey responses'!DE122:DH122)))","v":""},{"$f":"IF(SUM('2011 Survey responses'!DI122:DL122)<1,\"\",(AVERAGE('2011 Survey responses'!DI122:DL122)))","v":""},{"$f":"IF(('2011 Survey responses'!CW122+'2011 Survey responses'!DA122+'2011 Survey responses'!DE122+'2011 Survey responses'!DI122)<1,\"\",AVERAGE('2011 Survey responses'!CW122,'2011 Survey responses'!DA122,'2011 Survey responses'!DE122,'2011 Survey responses'!DI122))","v":""},{"$f":"IF(('2011 Survey responses'!CX122+'2011 Survey responses'!DB122+'2011 Survey responses'!DF122+'2011 Survey responses'!DJ122)<1,\"\",AVERAGE('2011 Survey responses'!CX122,'2011 Survey responses'!DB122,'2011 Survey responses'!DF122,'2011 Survey responses'!DJ122))","v":""},{"$f":"IF(('2011 Survey responses'!CY122+'2011 Survey responses'!DC122+'2011 Survey responses'!DG122+'2011 Survey responses'!DK122)<1,\"\",AVERAGE('2011 Survey responses'!CY122,'2011 Survey responses'!DC122,'2011 Survey responses'!DG122,'2011 Survey responses'!DK122))","v":""},{"$f":"IF(('2011 Survey responses'!CZ122+'2011 Survey responses'!DD122+'2011 Survey responses'!DH122+'2011 Survey responses'!DL122)<1,\"\",AVERAGE('2011 Survey responses'!CZ122,'2011 Survey responses'!DD122,'2011 Survey responses'!DH122,'2011 Survey responses'!DL122))","v":""},{"$f":"IF('2011 Survey responses'!CW122<0.5,\"\",'2011 Survey responses'!CW122)","v":""},{"$f":"IF('2011 Survey responses'!CX122<0.5,\"\",'2011 Survey responses'!CX122)","v":""},{"$f":"IF('2011 Survey responses'!CY122<0.5,\"\",'2011 Survey responses'!CY122)","v":""},{"$f":"IF('2011 Survey responses'!CZ122<0.5,\"\",'2011 Survey responses'!CZ122)","v":""},{"$f":"IF('2011 Survey responses'!DA122<0.5,\"\",'2011 Survey responses'!DA122)","v":""},{"$f":"IF('2011 Survey responses'!DB122<0.5,\"\",'2011 Survey responses'!DB122)","v":""},{"$f":"IF('2011 Survey responses'!DC122<0.5,\"\",'2011 Survey responses'!DC122)","v":""},{"$f":"IF('2011 Survey responses'!DD122<0.5,\"\",'2011 Survey responses'!DD122)","v":""},{"$f":"IF('2011 Survey responses'!DE122<0.5,\"\",'2011 Survey responses'!DE122)","v":""},{"$f":"IF('2011 Survey responses'!DF122<0.5,\"\",'2011 Survey responses'!DF122)","v":""},{"$f":"IF('2011 Survey responses'!DG122<0.5,\"\",'2011 Survey responses'!DG122)","v":""},{"$f":"IF('2011 Survey responses'!DH122<0.5,\"\",'2011 Survey responses'!DH122)","v":""},{"$f":"IF('2011 Survey responses'!DI122<0.5,\"\",'2011 Survey responses'!DI122)","v":""},{"$f":"IF('2011 Survey responses'!DJ122<0.5,\"\",'2011 Survey responses'!DJ122)","v":""},{"$f":"IF('2011 Survey responses'!DK122<0.5,\"\",'2011 Survey responses'!DK122)","v":""},{"$f":"IF('2011 Survey responses'!DL122<0.5,\"\",'2011 Survey responses'!DL122)","v":""},{"$f":"IF('2011 Survey responses'!DU122=4,4,IF('2011 Survey responses'!DU122=5,4,\"\"))","v":""},{"$f":"IF('2011 Survey responses'!DV122=4,3,IF('2011 Survey responses'!DV122=5,3,\"\"))","v":""},"",{"$f":"IF(CQ122=2,CQ122,IF(CO122=4,CO122,IF(CP122=3,CP122,IF('2011 Survey responses'!GT122=1,1,\"\"))))","v":""},{"$f":"IF('2011 Survey responses'!DO122<0.5,\"\",'2011 Survey responses'!DO122)","v":""},{"$f":"IF('2011 Survey responses'!DP122<0.5,\"\",'2011 Survey responses'!DP122)","v":""},{"$f":"IF('2011 Survey responses'!DQ122<0.5,\"\",'2011 Survey responses'!DQ122)","v":""},{"$f":"IF('2011 Survey responses'!DR122<0.5,\"\",'2011 Survey responses'!DR122)","v":""},{"$f":"IF('2011 Survey responses'!DS122<0.5,\"\",'2011 Survey responses'!DS122)","v":""},{"$f":"IF('2011 Survey responses'!DT122<0.5,\"\",'2011 Survey responses'!DT122)","v":""},{"$f":"IF('2011 Survey responses'!DU122<0.5,\"\",'2011 Survey responses'!DU122)","v":""},{"$f":"IF('2011 Survey responses'!DV122<0.5,\"\",'2011 Survey responses'!DV122)","v":""},{"$f":"IF('2011 Survey responses'!DW122<0.5,\"\",'2011 Survey responses'!DW122)","v":""},{"$f":"IF('2011 Survey responses'!DX122<0.5,\"\",'2011 Survey responses'!DX122)","v":""},{"$f":"IF('2011 Survey responses'!DY122<0.5,\"\",'2011 Survey responses'!DY122)","v":""},{"$f":"IF('2011 Survey responses'!DZ122<0.5,\"\",'2011 Survey responses'!DZ122)","v":""},{"$f":"IF('2011 Survey responses'!EA122<0.5,\"\",'2011 Survey responses'!EA122)","v":""},{"$f":"IF('2011 Survey responses'!EB122<0.5,\"\",'2011 Survey responses'!EB122)","v":""},{"$f":"IF('2011 Survey responses'!EC122<0.5,\"\",'2011 Survey responses'!EC122)","v":""},{"$f":"IF('2011 Survey responses'!ED122<0.5,\"\",'2011 Survey responses'!ED122)","v":""},{"$f":"IF('2011 Survey responses'!EE122<0.5,\"\",'2011 Survey responses'!EE122)","v":""},{"$f":"IF('2011 Survey responses'!EF122<0.5,\"\",'2011 Survey responses'!EF122)","v":""},{"$f":"IF('2011 Survey responses'!EG122<0.5,\"\",'2011 Survey responses'!EG122)","v":""},{"$f":"IF('2011 Survey responses'!EH122<0.5,\"\",'2011 Survey responses'!EH122)","v":""},{"$f":"IF('2011 Survey responses'!EI122<0.5,\"\",'2011 Survey responses'!EI122)","v":""},{"$f":"IF('2011 Survey responses'!EJ122<0.5,\"\",'2011 Survey responses'!EJ122)","v":""},{"$f":"IF('2011 Survey responses'!EK122<0.5,\"\",'2011 Survey responses'!EK122)","v":""},{"$f":"IF('2011 Survey responses'!EL122<0.5,\"\",'2011 Survey responses'!EL122)","v":""},{"$f":"IF('2011 Survey responses'!EM122<0.5,\"\",'2011 Survey responses'!EM122)","v":""},{"$f":"IF('2011 Survey responses'!EN122<0.5,\"\",'2011 Survey responses'!EN122)","v":""},{"$f":"IF('2011 Survey responses'!EO122<0.5,\"\",'2011 Survey responses'!EO122)","v":""},{"$f":"IF('2011 Survey responses'!EP122<0.5,\"\",'2011 Survey responses'!EP122)","v":""},{"$f":"IF(('2011 Survey responses'!EW122+'2011 Survey responses'!EX122)>=2,AVERAGE('2011 Survey responses'!EW122,'2011 Survey responses'!EY122),\"\")","v":""},{"$f":"IF('2011 Survey responses'!EX122<0.5,\"\",'2011 Survey responses'!EX122)","v":""},{"$f":"IF('2011 Survey responses'!EZ122<0.5,\"\",'2011 Survey responses'!EZ122)","v":""},{"$f":"IF('2011 Survey responses'!FB122<0.5,\"\",'2011 Survey responses'!FB122)","v":""},{"$f":"IF('2011 Survey responses'!FD122<0.5,\"\",'2011 Survey responses'!FD122)","v":""},{"$f":"IF('2011 Survey responses'!FC122<0.5,\"\",'2011 Survey responses'!FC122)","v":""},{"$f":"IF(('2011 Survey responses'!EM122+'2011 Survey responses'!EN122)>=2,AVERAGE('2011 Survey responses'!EM122,'2011 Survey responses'!EN122),\"\")","v":""},{"$f":"IF('2011 Survey responses'!ES122<0.5,\"\",'2011 Survey responses'!ES122)","v":""},{"$f":"IF(('2011 Survey responses'!ET122+'2011 Survey responses'!EU122)>=2,AVERAGE('2011 Survey responses'!ET122,'2011 Survey responses'!EU122),\"\")","v":""},{"$f":"IF('2011 Survey responses'!EV122<0.5,\"\",'2011 Survey responses'!EV122)","v":""},{"$f":"IF('2011 Survey responses'!FA122<0.5,\"\",'2011 Survey responses'!FA122)","v":""},{"$f":"IF('2011 Survey responses'!ER122<0.5,\"\",'2011 Survey responses'!ER122)","v":""},{"$f":"IF(('2011 Survey responses'!EO122+'2011 Survey responses'!EP122)>=2,AVERAGE('2011 Survey responses'!EO122,'2011 Survey responses'!EP122),\"\")","v":""},{"$f":"IF('2011 Survey responses'!EQ122<0.5,\"\",'2011 Survey responses'!EQ122)","v":""},{"$f":"IF('2011 Survey responses'!ET122<0.5,\"\",'2011 Survey responses'!ET122)","v":""},{"$f":"IF('2011 Survey responses'!EU122<0.5,\"\",'2011 Survey responses'!EU122)","v":""},{"$f":"IF('2011 Survey responses'!EW122<0.5,\"\",'2011 Survey responses'!EW122)","v":""},{"$f":"IF('2011 Survey responses'!EY122<0.5,\"\",'2011 Survey responses'!EY122)","v":""},{"$f":"IF('2011 Survey responses'!FU122<0.5,\"\",'2011 Survey responses'!FU122)","v":""},{"$f":"IF(('2011 Survey responses'!FL122+'2011 Survey responses'!FM122)>=2,AVERAGE('2011 Survey responses'!FL122,'2011 Survey responses'!FM122),\"\")","v":""},{"$f":"IF(('2011 Survey responses'!FO122+'2011 Survey responses'!FQ122)>=2,AVERAGE('2011 Survey responses'!FO122,'2011 Survey responses'!FQ122),\"\")","v":""},{"$f":"IF('2011 Survey responses'!FJ122<0.5,\"\",'2011 Survey responses'!FJ122)","v":""},{"$f":"IF('2011 Survey responses'!FT122<0.5,\"\",'2011 Survey responses'!FT122)","v":""},{"$f":"IF('2011 Survey responses'!FR122<0.5,\"\",'2011 Survey responses'!FR122)","v":""},{"$f":"IF('2011 Survey responses'!FK122<0.5,\"\",'2011 Survey responses'!FK122)","v":""},{"$f":"IF('2011 Survey responses'!FP122<0.5,\"\",'2011 Survey responses'!FP122)","v":""},{"$f":"IF('2011 Survey responses'!FN122<0.5,\"\",'2011 Survey responses'!FN122)","v":""},{"$f":"IF(('2011 Survey responses'!FE122+'2011 Survey responses'!FF122)>=2,AVERAGE('2011 Survey responses'!FE122,'2011 Survey responses'!FF122),\"\")","v":""},{"$f":"IF('2011 Survey responses'!FS122<0.5,\"\",'2011 Survey responses'!FS122)","v":""},{"$f":"IF('2011 Survey responses'!FV122<0.5,\"\",'2011 Survey responses'!FV122)","v":""},{"$f":"IF(('2011 Survey responses'!FG122+'2011 Survey responses'!FH122)>=2,AVERAGE('2011 Survey responses'!FG122,'2011 Survey responses'!FH122),\"\")","v":""},{"$f":"IF('2011 Survey responses'!FI122<0.5,\"\",'2011 Survey responses'!FI122)","v":""},{"$f":"IF('2011 Survey responses'!FE122<0.5,\"\",'2011 Survey responses'!FE122)","v":""},{"$f":"IF('2011 Survey responses'!FF122<0.5,\"\",'2011 Survey responses'!FF122)","v":""},{"$f":"IF('2011 Survey responses'!FG122<0.5,\"\",'2011 Survey responses'!FG122)","v":""},{"$f":"IF('2011 Survey responses'!FH122<0.5,\"\",'2011 Survey responses'!FH122)","v":""},{"$f":"IF('2011 Survey responses'!FL122<0.5,\"\",'2011 Survey responses'!FL122)","v":""},{"$f":"IF('2011 Survey responses'!FM122<0.5,\"\",'2011 Survey responses'!FM122)","v":""},{"$f":"IF('2011 Survey responses'!FO122<0.5,\"\",'2011 Survey responses'!FO122)","v":""},{"$f":"IF('2011 Survey responses'!FQ122<0.5,\"\",'2011 Survey responses'!FQ122)","v":""}]
["Netherlands",{"$f":"IF(SUM(F123)<1,\"\",AVERAGEIF('2011 Survey responses'!B123:CP123,\">1\"))","v":5.8684210526315788},{"$f":"IF(SUM(F123)<1,\"\",AVERAGEIF('2011 Survey responses'!B123:AO123,\">1\"))","v":5.8125},{"$f":"IF(SUM(F123)<1,\"\",AVERAGEIF('2011 Survey responses'!B123:BV123,\">1\"))","v":5.854838709677419},{"$f":"IF(SUM(F123)<1,\"\",AVERAGEIF('2011 Survey responses'!V123:BV123,\">1\"))","v":5.9387755102040813},{"$f":"IF(SUM('2011 Survey responses'!B123:U123)<1,\"\",(AVERAGEIFS('2011 Survey responses'!B123:U123,'2011 Survey responses'!B123:U123,\">1\")))","v":5.5384615384615383},{"$f":"IF(SUM('2011 Survey responses'!B123:H123)<1,\"\",(AVERAGEIFS('2011 Survey responses'!B123:H123,'2011 Survey responses'!B123:H123,\">1\")))","v":6},{"$f":"IF(SUM('2011 Survey responses'!I123:S123)<1,\"\",(AVERAGEIFS('2011 Survey responses'!I123:S123,'2011 Survey responses'!I123:S123,\">1\")))","v":5},{"$f":"IF(SUM('2011 Survey responses'!T123:U123)<2.1,\"\",(AVERAGEIFS('2011 Survey responses'!T123:U123,'2011 Survey responses'!T123:U123,\">1\")))","v":6},{"$f":"IF(SUM('2011 Survey responses'!B123:C123)<2.1,\"\",((SUMIF('2011 Survey responses'!B123:C123,\">1\")+SUMIF('2011 Survey responses'!F123,\">1\"))/(COUNTIF('2011 Survey responses'!B123:C123,\">1\")+COUNTIF('2011 Survey responses'!F123,\">1\"))))","v":6},{"$f":"IF(SUM('2011 Survey responses'!D123:E123)<2.1,\"\",(AVERAGEIFS('2011 Survey responses'!D123:E123,'2011 Survey responses'!D123:E123,\">1\")))","v":6},{"$f":"IF(('2011 Survey responses'!B123+'2011 Survey responses'!D123)<2.1,\"\",((SUMIF('2011 Survey responses'!B123,\">1\")+SUMIF('2011 Survey responses'!D123,\">1\")+SUMIF('2011 Survey responses'!F123,\">1\")+SUMIF('2011 Survey responses'!K123,\">1\"))/(COUNTIF('2011 Survey responses'!B123,\">1\")+COUNTIF('2011 Survey responses'!D123,\">1\")+COUNTIF('2011 Survey responses'!F123,\">1\")+COUNTIF('2011 Survey responses'!K123,\">1\"))))","v":5.5},{"$f":"IF(SUM('2011 Survey responses'!G123:H123)<2.1,\"\",(AVERAGEIFS('2011 Survey responses'!G123:H123,'2011 Survey responses'!G123:H123,\">1\")))","v":""},{"$f":"IF(SUM('2011 Survey responses'!F123:G123)<1.5,\"\",MAX('2011 Survey responses'!F123,'2011 Survey responses'!G123))","v":6},{"$f":"IF(SUM('2011 Survey responses'!G123:H123)<1,\"\",MAX('2011 Survey responses'!G123,'2011 Survey responses'!H123))","v":1},{"$f":"IF(SUM('2011 Survey responses'!I123:L123)<4.1,\"\",(AVERAGEIFS('2011 Survey responses'!I123:L123,'2011 Survey responses'!I123:L123,\">1\")))","v":5},{"$f":"IF(SUM('2011 Survey responses'!M123:S123)<4.1,\"\",(AVERAGEIFS('2011 Survey responses'!M123:S123,'2011 Survey responses'!M123:S123,\">1\")))","v":5},{"$f":"IF(SUM('2011 Survey responses'!T123:U123)<2.1,\"\",(AVERAGEIFS('2011 Survey responses'!T123:U123,'2011 Survey responses'!T123:U123,\">1\")))","v":6},{"$f":"IF(SUM('2011 Survey responses'!V123:AO123)<1,\"\",(AVERAGEIFS('2011 Survey responses'!V123:AO123,'2011 Survey responses'!V123:AO123,\">1\")))","v":6},{"$f":"IF(SUM('2011 Survey responses'!V123:AA123)<1,\"\",(AVERAGEIFS('2011 Survey responses'!V123:AA123,'2011 Survey responses'!V123:AA123,\">1\")))","v":6},{"$f":"IF(SUM('2011 Survey responses'!AB123:AH123)<1,\"\",(AVERAGEIFS('2011 Survey responses'!AB123:AH123,'2011 Survey responses'!AB123:AH123,\">1\")))","v":6},{"$f":"IF(SUM('2011 Survey responses'!AI123:AO123)<1,\"\",(AVERAGEIFS('2011 Survey responses'!AI123:AO123,'2011 Survey responses'!AI123:AO123,\">1\")))","v":6},{"$f":"IF(('2011 Survey responses'!Y123+'2011 Survey responses'!AI123+'2011 Survey responses'!AK123)<3.1,\"\",((SUMIF('2011 Survey responses'!Y123,\">1\")+SUMIF('2011 Survey responses'!AI123,\">1\")+SUMIF('2011 Survey responses'!AK123,\">1\")+SUMIF('2011 Survey responses'!AM123,\">1\"))/(COUNTIF('2011 Survey responses'!Y123,\">1\")+COUNTIF('2011 Survey responses'!AI123,\">1\")+COUNTIF('2011 Survey responses'!AK123,\">1\")+COUNTIF('2011 Survey responses'!AM123,\">1\"))))","v":6},{"$f":"IF(('2011 Survey responses'!W123)<1.1,\"\",('2011 Survey responses'!W123))","v":6},{"$f":"IF(('2011 Survey responses'!Y123)<1.1,\"\",('2011 Survey responses'!Y123))","v":6},{"$f":"IF(('2011 Survey responses'!Z123)<1.1,\"\",('2011 Survey responses'!Z123))","v":6},{"$f":"IF(('2011 Survey responses'!V123+'2011 Survey responses'!X123+'2011 Survey responses'!AA123)<3.1,\"\",((SUMIF('2011 Survey responses'!V123,\">1\")+SUMIF('2011 Survey responses'!X123,\">1\")+SUMIF('2011 Survey responses'!AA123,\">1\"))/(COUNTIF('2011 Survey responses'!V123,\">1\")+COUNTIF('2011 Survey responses'!X123,\">1\")+COUNTIF('2011 Survey responses'!AA123,\">1\"))))","v":6},{"$f":"IF(('2011 Survey responses'!V123+'2011 Survey responses'!Y123+'2011 Survey responses'!AA123)<3.1,\"\",((SUMIF('2011 Survey responses'!V123,\">1\")+SUMIF('2011 Survey responses'!Y123,\">1\")+SUMIF('2011 Survey responses'!AA123,\">1\"))/(COUNTIF('2011 Survey responses'!V123,\">1\")+COUNTIF('2011 Survey responses'!Y123,\">1\")+COUNTIF('2011 Survey responses'!AA123,\">1\"))))","v":6},{"$f":"IF(SUM('2011 Survey responses'!AB123:AH123)<1,\"\",(AVERAGEIFS('2011 Survey responses'!AB123:AH123,'2011 Survey responses'!AB123:AH123,\">1\")))","v":6},{"$f":"IF(SUM('2011 Survey responses'!AI123:AO123)<7.1,\"\",(AVERAGEIFS('2011 Survey responses'!AI123:AO123,'2011 Survey responses'!AI123:AO123,\">1\")))","v":6},{"$f":"IF(('2011 Survey responses'!AH123)<1.1,\"\",('2011 Survey responses'!AH123))","v":""},{"$f":"IF(SUM('2011 Survey responses'!AP123:BV123)<1,\"\",(AVERAGEIFS('2011 Survey responses'!AP123:BV123,'2011 Survey responses'!AP123:BV123,\">1\")))","v":5.9},{"$f":"IF(SUM('2011 Survey responses'!AP123:AS123)<4.1,\"\",(AVERAGEIFS('2011 Survey responses'!AP123:AS123,'2011 Survey responses'!AP123:AS123,\">1\")))","v":5.5},{"$f":"IF(SUM('2011 Survey responses'!AT123:BF123)<1,\"\",(AVERAGEIFS('2011 Survey responses'!AT123:BF123,'2011 Survey responses'!AT123:BF123,\">1\")))","v":5.916666666666667},{"$f":"IF(SUM('2011 Survey responses'!BG123:BO123)<1,\"\",(AVERAGEIFS('2011 Survey responses'!BG123:BO123,'2011 Survey responses'!BG123:BO123,\">1\")))","v":6},{"$f":"IF(SUM('2011 Survey responses'!BP123:BS123)<1,\"\",(AVERAGEIFS('2011 Survey responses'!BP123:BS123,'2011 Survey responses'!BP123:BS123,\">1\")))","v":6},{"$f":"IF(SUM('2011 Survey responses'!BT123:BV123)<3.1,\"\",(AVERAGEIFS('2011 Survey responses'!BT123:BV123,'2011 Survey responses'!BT123:BV123,\">1\")))","v":6},{"$f":"IF(('2011 Survey responses'!AQ123+'2011 Survey responses'!AR123+'2011 Survey responses'!BG123)<3.1,\"\",((SUMIF('2011 Survey responses'!AQ123,\">1\")+SUMIF('2011 Survey responses'!AR123,\">1\")+SUMIF('2011 Survey responses'!BG123,\">1\"))/(COUNTIF('2011 Survey responses'!AQ123,\">1\")+COUNTIF('2011 Survey responses'!AR123,\">1\")+COUNTIF('2011 Survey responses'!BG123,\">1\"))))","v":6},{"$f":"IF(SUM('2011 Survey responses'!AP123:AS123)<4.1,\"\",(AVERAGEIFS('2011 Survey responses'!AP123:AS123,'2011 Survey responses'!AP123:AS123,\">1\")))","v":5.5},{"$f":"IF(('2011 Survey responses'!AU123+'2011 Survey responses'!AX123+'2011 Survey responses'!BA123+'2011 Survey responses'!BC123+'2011 Survey responses'!BD123)<5.1,\"\",(SUMIF('2011 Survey responses'!AU123,\">1\")+SUMIF('2011 Survey responses'!AX123,\">1\")+SUMIF('2011 Survey responses'!BA123,\">1\")+SUMIF('2011 Survey responses'!BC123,\">1\")+SUMIF('2011 Survey responses'!BD123,\">1\"))/(COUNTIF('2011 Survey responses'!AU123,\">1\")+COUNTIF('2011 Survey responses'!AX123,\">1\")+COUNTIF('2011 Survey responses'!BA123,\">1\")+COUNTIF('2011 Survey responses'!BC123,\">1\")+COUNTIF('2011 Survey responses'!BD123,\">1\")))","v":5.75},{"$f":"IF(('2011 Survey responses'!AT123)<1.1,\"\",('2011 Survey responses'!AT123))","v":6},{"$f":"IF(SUM('2011 Survey responses'!AV123:AW123)<2.1,\"\",(AVERAGEIFS('2011 Survey responses'!AV123:AW123,'2011 Survey responses'!AV123:AW123,\">1\")))","v":6},{"$f":"IF(('2011 Survey responses'!AW123+'2011 Survey responses'!AY123)<2.1,\"\",(SUMIF('2011 Survey responses'!AW123,\">1\")+SUMIF('2011 Survey responses'!AY123,\">1\"))/(COUNTIF('2011 Survey responses'!AW123,\">1\")+COUNTIF('2011 Survey responses'!AY123,\">1\")))","v":6},{"$f":"IF(('2011 Survey responses'!AZ123)<1.1,\"\",('2011 Survey responses'!AZ123))","v":6},6,1,6,1,{"$f":"IF(('2011 Survey responses'!BE123)<1.1,\"\",('2011 Survey responses'!BE123))","v":6},{"$f":"IF(('2011 Survey responses'!AY123+'2011 Survey responses'!BB123+'2011 Survey responses'!BF123)<3.1,\"\",(SUMIF('2011 Survey responses'!AY123,\">1\")+SUMIF('2011 Survey responses'!BB123,\">1\")+SUMIF('2011 Survey responses'!BF123,\">1\"))/(COUNTIF('2011 Survey responses'!AY123,\">1\")+COUNTIF('2011 Survey responses'!BB123,\">1\")+COUNTIF('2011 Survey responses'!BF123,\">1\")))","v":6},6,{"$f":"IF(SUM('2011 Survey responses'!BT123:BV123)<3.1,\"\",(AVERAGEIFS('2011 Survey responses'!BT123:BV123,'2011 Survey responses'!BT123:BV123,\">1\")))","v":6},{"$f":"IF(SUM('2011 Survey responses'!BW123:CP123)<1,\"\",(AVERAGEIFS('2011 Survey responses'!BW123:CP123,'2011 Survey responses'!BW123:CP123,\">1\")))","v":5.9285714285714288},{"$f":"IF(SUM('2011 Survey responses'!BW123:CF123)<1,\"\",(AVERAGEIFS('2011 Survey responses'!BW123:CF123,'2011 Survey responses'!BW123:CF123,\">1\")))","v":5.8571428571428568},{"$f":"IF(SUM('2011 Survey responses'!CG123:CP123)<1,\"\",(AVERAGEIFS('2011 Survey responses'!CG123:CP123,'2011 Survey responses'!CG123:CP123,\">1\")))","v":6},{"$f":"IF(SUM('2011 Survey responses'!BX123:CF123)<1,\"\",(AVERAGEIFS('2011 Survey responses'!BX123:CF123,'2011 Survey responses'!BX123:CF123,\">1\")))","v":5.833333333333333},{"$f":"IF(SUM('2011 Survey responses'!CH123:CP123)<1,\"\",(AVERAGEIFS('2011 Survey responses'!CH123:CP123,'2011 Survey responses'!CH123:CP123,\">1\")))","v":6},{"$f":"IF(SUM('2011 Survey responses'!BW123:CP123)<1,\"\",(AVERAGEIFS('2011 Survey responses'!BW123:CP123,'2011 Survey responses'!BW123:CP123,\">1\")))","v":5.9285714285714288},{"$f":"IF(('2011 Survey responses'!BW123+'2011 Survey responses'!CG123)<2.1,\"\",(SUMIF('2011 Survey responses'!BW123,\">1\")+SUMIF('2011 Survey responses'!CG123,\">1\"))/(COUNTIF('2011 Survey responses'!BW123,\">1\")+COUNTIF('2011 Survey responses'!CG123,\">1\")))","v":6},{"$f":"IF(('2011 Survey responses'!BX123+'2011 Survey responses'!CH123)<2.1,\"\",(SUMIF('2011 Survey responses'!BX123,\">1\")+SUMIF('2011 Survey responses'!CH123,\">1\"))/(COUNTIF('2011 Survey responses'!BX123,\">1\")+COUNTIF('2011 Survey responses'!CH123,\">1\")))","v":""},{"$f":"IF(('2011 Survey responses'!BY123+'2011 Survey responses'!CI123)<2.1,\"\",(SUMIF('2011 Survey responses'!BY123,\">1\")+SUMIF('2011 Survey responses'!CI123,\">1\"))/(COUNTIF('2011 Survey responses'!BY123,\">1\")+COUNTIF('2011 Survey responses'!CI123,\">1\")))","v":6},{"$f":"IF('2011 Survey responses'!CQ123<0.5,\"\",'2011 Survey responses'!CQ123)","v":4},{"$f":"IF('2011 Survey responses'!CR123<0.5,\"\",'2011 Survey responses'!CR123)","v":2},{"$f":"IF('2011 Survey responses'!CS123<0.5,\"\",'2011 Survey responses'!CS123)","v":2},{"$f":"IF('2011 Survey responses'!CT123<0.5,\"\",'2011 Survey responses'!CT123)","v":1},{"$f":"IF('2011 Survey responses'!CU123<0.5,\"\",'2011 Survey responses'!CU123)","v":4},{"$f":"IF('2011 Survey responses'!CV123<0.5,\"\",'2011 Survey responses'!CV123)","v":1},{"$f":"IF(SUM('2011 Survey responses'!CW123:DL123)<1,\"\",(AVERAGE('2011 Survey responses'!CW123:DL123)))","v":""},{"$f":"IF(SUM('2011 Survey responses'!CW123:CZ123)<1,\"\",(AVERAGE('2011 Survey responses'!CW123:CZ123)))","v":""},{"$f":"IF(SUM('2011 Survey responses'!DA123:DD123)<1,\"\",(AVERAGE('2011 Survey responses'!DA123:DD123)))","v":""},{"$f":"IF(SUM('2011 Survey responses'!DE123:DH123)<1,\"\",(AVERAGE('2011 Survey responses'!DE123:DH123)))","v":""},{"$f":"IF(SUM('2011 Survey responses'!DI123:DL123)<1,\"\",(AVERAGE('2011 Survey responses'!DI123:DL123)))","v":""},{"$f":"IF(('2011 Survey responses'!CW123+'2011 Survey responses'!DA123+'2011 Survey responses'!DE123+'2011 Survey responses'!DI123)<1,\"\",AVERAGE('2011 Survey responses'!CW123,'2011 Survey responses'!DA123,'2011 Survey responses'!DE123,'2011 Survey responses'!DI123))","v":""},{"$f":"IF(('2011 Survey responses'!CX123+'2011 Survey responses'!DB123+'2011 Survey responses'!DF123+'2011 Survey responses'!DJ123)<1,\"\",AVERAGE('2011 Survey responses'!CX123,'2011 Survey responses'!DB123,'2011 Survey responses'!DF123,'2011 Survey responses'!DJ123))","v":""},{"$f":"IF(('2011 Survey responses'!CY123+'2011 Survey responses'!DC123+'2011 Survey responses'!DG123+'2011 Survey responses'!DK123)<1,\"\",AVERAGE('2011 Survey responses'!CY123,'2011 Survey responses'!DC123,'2011 Survey responses'!DG123,'2011 Survey responses'!DK123))","v":""},{"$f":"IF(('2011 Survey responses'!CZ123+'2011 Survey responses'!DD123+'2011 Survey responses'!DH123+'2011 Survey responses'!DL123)<1,\"\",AVERAGE('2011 Survey responses'!CZ123,'2011 Survey responses'!DD123,'2011 Survey responses'!DH123,'2011 Survey responses'!DL123))","v":""},{"$f":"IF('2011 Survey responses'!CW123<0.5,\"\",'2011 Survey responses'!CW123)","v":""},{"$f":"IF('2011 Survey responses'!CX123<0.5,\"\",'2011 Survey responses'!CX123)","v":""},{"$f":"IF('2011 Survey responses'!CY123<0.5,\"\",'2011 Survey responses'!CY123)","v":""},{"$f":"IF('2011 Survey responses'!CZ123<0.5,\"\",'2011 Survey responses'!CZ123)","v":""},{"$f":"IF('2011 Survey responses'!DA123<0.5,\"\",'2011 Survey responses'!DA123)","v":""},{"$f":"IF('2011 Survey responses'!DB123<0.5,\"\",'2011 Survey responses'!DB123)","v":""},{"$f":"IF('2011 Survey responses'!DC123<0.5,\"\",'2011 Survey responses'!DC123)","v":""},{"$f":"IF('2011 Survey responses'!DD123<0.5,\"\",'2011 Survey responses'!DD123)","v":""},{"$f":"IF('2011 Survey responses'!DE123<0.5,\"\",'2011 Survey responses'!DE123)","v":""},{"$f":"IF('2011 Survey responses'!DF123<0.5,\"\",'2011 Survey responses'!DF123)","v":""},{"$f":"IF('2011 Survey responses'!DG123<0.5,\"\",'2011 Survey responses'!DG123)","v":""},{"$f":"IF('2011 Survey responses'!DH123<0.5,\"\",'2011 Survey responses'!DH123)","v":""},{"$f":"IF('2011 Survey responses'!DI123<0.5,\"\",'2011 Survey responses'!DI123)","v":""},{"$f":"IF('2011 Survey responses'!DJ123<0.5,\"\",'2011 Survey responses'!DJ123)","v":""},{"$f":"IF('2011 Survey responses'!DK123<0.5,\"\",'2011 Survey responses'!DK123)","v":""},{"$f":"IF('2011 Survey responses'!DL123<0.5,\"\",'2011 Survey responses'!DL123)","v":""},{"$f":"IF('2011 Survey responses'!DU123=4,4,IF('2011 Survey responses'!DU123=5,4,\"\"))","v":4},{"$f":"IF('2011 Survey responses'!DV123=4,3,IF('2011 Survey responses'!DV123=5,3,\"\"))","v":""},"",{"$f":"IF(CQ123=2,CQ123,IF(CO123=4,CO123,IF(CP123=3,CP123,IF('2011 Survey responses'!GT123=1,1,\"\"))))","v":4},{"$f":"IF('2011 Survey responses'!DO123<0.5,\"\",'2011 Survey responses'!DO123)","v":2},{"$f":"IF('2011 Survey responses'!DP123<0.5,\"\",'2011 Survey responses'!DP123)","v":2},{"$f":"IF('2011 Survey responses'!DQ123<0.5,\"\",'2011 Survey responses'!DQ123)","v":2},{"$f":"IF('2011 Survey responses'!DR123<0.5,\"\",'2011 Survey responses'!DR123)","v":2},{"$f":"IF('2011 Survey responses'!DS123<0.5,\"\",'2011 Survey responses'!DS123)","v":3},{"$f":"IF('2011 Survey responses'!DT123<0.5,\"\",'2011 Survey responses'!DT123)","v":2},{"$f":"IF('2011 Survey responses'!DU123<0.5,\"\",'2011 Survey responses'!DU123)","v":4},{"$f":"IF('2011 Survey responses'!DV123<0.5,\"\",'2011 Survey responses'!DV123)","v":3},{"$f":"IF('2011 Survey responses'!DW123<0.5,\"\",'2011 Survey responses'!DW123)","v":3},{"$f":"IF('2011 Survey responses'!DX123<0.5,\"\",'2011 Survey responses'!DX123)","v":3},{"$f":"IF('2011 Survey responses'!DY123<0.5,\"\",'2011 Survey responses'!DY123)","v":2},{"$f":"IF('2011 Survey responses'!DZ123<0.5,\"\",'2011 Survey responses'!DZ123)","v":2},{"$f":"IF('2011 Survey responses'!EA123<0.5,\"\",'2011 Survey responses'!EA123)","v":3},{"$f":"IF('2011 Survey responses'!EB123<0.5,\"\",'2011 Survey responses'!EB123)","v":3},{"$f":"IF('2011 Survey responses'!EC123<0.5,\"\",'2011 Survey responses'!EC123)","v":3},{"$f":"IF('2011 Survey responses'!ED123<0.5,\"\",'2011 Survey responses'!ED123)","v":3},{"$f":"IF('2011 Survey responses'!EE123<0.5,\"\",'2011 Survey responses'!EE123)","v":5},{"$f":"IF('2011 Survey responses'!EF123<0.5,\"\",'2011 Survey responses'!EF123)","v":3},{"$f":"IF('2011 Survey responses'!EG123<0.5,\"\",'2011 Survey responses'!EG123)","v":5},{"$f":"IF('2011 Survey responses'!EH123<0.5,\"\",'2011 Survey responses'!EH123)","v":5},{"$f":"IF('2011 Survey responses'!EI123<0.5,\"\",'2011 Survey responses'!EI123)","v":5},{"$f":"IF('2011 Survey responses'!EJ123<0.5,\"\",'2011 Survey responses'!EJ123)","v":5},{"$f":"IF('2011 Survey responses'!EK123<0.5,\"\",'2011 Survey responses'!EK123)","v":2},{"$f":"IF('2011 Survey responses'!EL123<0.5,\"\",'2011 Survey responses'!EL123)","v":2},{"$f":"IF('2011 Survey responses'!EM123<0.5,\"\",'2011 Survey responses'!EM123)","v":1},{"$f":"IF('2011 Survey responses'!EN123<0.5,\"\",'2011 Survey responses'!EN123)","v":1},{"$f":"IF('2011 Survey responses'!EO123<0.5,\"\",'2011 Survey responses'!EO123)","v":1},{"$f":"IF('2011 Survey responses'!EP123<0.5,\"\",'2011 Survey responses'!EP123)","v":1},{"$f":"IF(('2011 Survey responses'!EW123+'2011 Survey responses'!EX123)>=2,AVERAGE('2011 Survey responses'!EW123,'2011 Survey responses'!EY123),\"\")","v":1},{"$f":"IF('2011 Survey responses'!EX123<0.5,\"\",'2011 Survey responses'!EX123)","v":1},{"$f":"IF('2011 Survey responses'!EZ123<0.5,\"\",'2011 Survey responses'!EZ123)","v":1},{"$f":"IF('2011 Survey responses'!FB123<0.5,\"\",'2011 Survey responses'!FB123)","v":4},{"$f":"IF('2011 Survey responses'!FD123<0.5,\"\",'2011 Survey responses'!FD123)","v":1},{"$f":"IF('2011 Survey responses'!FC123<0.5,\"\",'2011 Survey responses'!FC123)","v":4},{"$f":"IF(('2011 Survey responses'!EM123+'2011 Survey responses'!EN123)>=2,AVERAGE('2011 Survey responses'!EM123,'2011 Survey responses'!EN123),\"\")","v":1},{"$f":"IF('2011 Survey responses'!ES123<0.5,\"\",'2011 Survey responses'!ES123)","v":1},{"$f":"IF(('2011 Survey responses'!ET123+'2011 Survey responses'!EU123)>=2,AVERAGE('2011 Survey responses'!ET123,'2011 Survey responses'!EU123),\"\")","v":1},{"$f":"IF('2011 Survey responses'!EV123<0.5,\"\",'2011 Survey responses'!EV123)","v":1},{"$f":"IF('2011 Survey responses'!FA123<0.5,\"\",'2011 Survey responses'!FA123)","v":1},{"$f":"IF('2011 Survey responses'!ER123<0.5,\"\",'2011 Survey responses'!ER123)","v":1},{"$f":"IF(('2011 Survey responses'!EO123+'2011 Survey responses'!EP123)>=2,AVERAGE('2011 Survey responses'!EO123,'2011 Survey responses'!EP123),\"\")","v":1},{"$f":"IF('2011 Survey responses'!EQ123<0.5,\"\",'2011 Survey responses'!EQ123)","v":1},{"$f":"IF('2011 Survey responses'!ET123<0.5,\"\",'2011 Survey responses'!ET123)","v":1},{"$f":"IF('2011 Survey responses'!EU123<0.5,\"\",'2011 Survey responses'!EU123)","v":1},{"$f":"IF('2011 Survey responses'!EW123<0.5,\"\",'2011 Survey responses'!EW123)","v":1},{"$f":"IF('2011 Survey responses'!EY123<0.5,\"\",'2011 Survey responses'!EY123)","v":1},{"$f":"IF('2011 Survey responses'!FU123<0.5,\"\",'2011 Survey responses'!FU123)","v":5},{"$f":"IF(('2011 Survey responses'!FL123+'2011 Survey responses'!FM123)>=2,AVERAGE('2011 Survey responses'!FL123,'2011 Survey responses'!FM123),\"\")","v":1},{"$f":"IF(('2011 Survey responses'!FO123+'2011 Survey responses'!FQ123)>=2,AVERAGE('2011 Survey responses'!FO123,'2011 Survey responses'!FQ123),\"\")","v":1},{"$f":"IF('2011 Survey responses'!FJ123<0.5,\"\",'2011 Survey responses'!FJ123)","v":1},{"$f":"IF('2011 Survey responses'!FT123<0.5,\"\",'2011 Survey responses'!FT123)","v":5},{"$f":"IF('2011 Survey responses'!FR123<0.5,\"\",'2011 Survey responses'!FR123)","v":1},{"$f":"IF('2011 Survey responses'!FK123<0.5,\"\",'2011 Survey responses'!FK123)","v":1},{"$f":"IF('2011 Survey responses'!FP123<0.5,\"\",'2011 Survey responses'!FP123)","v":1},{"$f":"IF('2011 Survey responses'!FN123<0.5,\"\",'2011 Survey responses'!FN123)","v":1},{"$f":"IF(('2011 Survey responses'!FE123+'2011 Survey responses'!FF123)>=2,AVERAGE('2011 Survey responses'!FE123,'2011 Survey responses'!FF123),\"\")","v":1},{"$f":"IF('2011 Survey responses'!FS123<0.5,\"\",'2011 Survey responses'!FS123)","v":1},{"$f":"IF('2011 Survey responses'!FV123<0.5,\"\",'2011 Survey responses'!FV123)","v":3},{"$f":"IF(('2011 Survey responses'!FG123+'2011 Survey responses'!FH123)>=2,AVERAGE('2011 Survey responses'!FG123,'2011 Survey responses'!FH123),\"\")","v":1},{"$f":"IF('2011 Survey responses'!FI123<0.5,\"\",'2011 Survey responses'!FI123)","v":2},{"$f":"IF('2011 Survey responses'!FE123<0.5,\"\",'2011 Survey responses'!FE123)","v":1},{"$f":"IF('2011 Survey responses'!FF123<0.5,\"\",'2011 Survey responses'!FF123)","v":1},{"$f":"IF('2011 Survey responses'!FG123<0.5,\"\",'2011 Survey responses'!FG123)","v":1},{"$f":"IF('2011 Survey responses'!FH123<0.5,\"\",'2011 Survey responses'!FH123)","v":1},{"$f":"IF('2011 Survey responses'!FL123<0.5,\"\",'2011 Survey responses'!FL123)","v":1},{"$f":"IF('2011 Survey responses'!FM123<0.5,\"\",'2011 Survey responses'!FM123)","v":1},{"$f":"IF('2011 Survey responses'!FO123<0.5,\"\",'2011 Survey responses'!FO123)","v":1},{"$f":"IF('2011 Survey responses'!FQ123<0.5,\"\",'2011 Survey responses'!FQ123)","v":1}]
["New Zealand",{"$f":"IF(SUM(F124)<1,\"\",AVERAGEIF('2011 Survey responses'!B124:CP124,\">1\"))","v":4.5925925925925926},{"$f":"IF(SUM(F124)<1,\"\",AVERAGEIF('2011 Survey responses'!B124:AO124,\">1\"))","v":4.3125},{"$f":"IF(SUM(F124)<1,\"\",AVERAGEIF('2011 Survey responses'!B124:BV124,\">1\"))","v":4.412698412698413},{"$f":"IF(SUM(F124)<1,\"\",AVERAGEIF('2011 Survey responses'!V124:BV124,\">1\"))","v":4.5686274509803919},{"$f":"IF(SUM('2011 Survey responses'!B124:U124)<1,\"\",(AVERAGEIFS('2011 Survey responses'!B124:U124,'2011 Survey responses'!B124:U124,\">1\")))","v":3.75},{"$f":"IF(SUM('2011 Survey responses'!B124:H124)<1,\"\",(AVERAGEIFS('2011 Survey responses'!B124:H124,'2011 Survey responses'!B124:H124,\">1\")))","v":4.166666666666667},{"$f":"IF(SUM('2011 Survey responses'!I124:S124)<1,\"\",(AVERAGEIFS('2011 Survey responses'!I124:S124,'2011 Survey responses'!I124:S124,\">1\")))","v":3},{"$f":"IF(SUM('2011 Survey responses'!T124:U124)<2.1,\"\",(AVERAGEIFS('2011 Survey responses'!T124:U124,'2011 Survey responses'!T124:U124,\">1\")))","v":5},{"$f":"IF(SUM('2011 Survey responses'!B124:C124)<2.1,\"\",((SUMIF('2011 Survey responses'!B124:C124,\">1\")+SUMIF('2011 Survey responses'!F124,\">1\"))/(COUNTIF('2011 Survey responses'!B124:C124,\">1\")+COUNTIF('2011 Survey responses'!F124,\">1\"))))","v":3.6666666666666665},{"$f":"IF(SUM('2011 Survey responses'!D124:E124)<2.1,\"\",(AVERAGEIFS('2011 Survey responses'!D124:E124,'2011 Survey responses'!D124:E124,\">1\")))","v":6},{"$f":"IF(('2011 Survey responses'!B124+'2011 Survey responses'!D124)<2.1,\"\",((SUMIF('2011 Survey responses'!B124,\">1\")+SUMIF('2011 Survey responses'!D124,\">1\")+SUMIF('2011 Survey responses'!F124,\">1\")+SUMIF('2011 Survey responses'!K124,\">1\"))/(COUNTIF('2011 Survey responses'!B124,\">1\")+COUNTIF('2011 Survey responses'!D124,\">1\")+COUNTIF('2011 Survey responses'!F124,\">1\")+COUNTIF('2011 Survey responses'!K124,\">1\"))))","v":3.6666666666666665},{"$f":"IF(SUM('2011 Survey responses'!G124:H124)<2.1,\"\",(AVERAGEIFS('2011 Survey responses'!G124:H124,'2011 Survey responses'!G124:H124,\">1\")))","v":2},{"$f":"IF(SUM('2011 Survey responses'!F124:G124)<1.5,\"\",MAX('2011 Survey responses'!F124,'2011 Survey responses'!G124))","v":2},{"$f":"IF(SUM('2011 Survey responses'!G124:H124)<1,\"\",MAX('2011 Survey responses'!G124,'2011 Survey responses'!H124))","v":2},{"$f":"IF(SUM('2011 Survey responses'!I124:L124)<4.1,\"\",(AVERAGEIFS('2011 Survey responses'!I124:L124,'2011 Survey responses'!I124:L124,\">1\")))","v":2},{"$f":"IF(SUM('2011 Survey responses'!M124:S124)<4.1,\"\",(AVERAGEIFS('2011 Survey responses'!M124:S124,'2011 Survey responses'!M124:S124,\">1\")))","v":3.25},{"$f":"IF(SUM('2011 Survey responses'!T124:U124)<2.1,\"\",(AVERAGEIFS('2011 Survey responses'!T124:U124,'2011 Survey responses'!T124:U124,\">1\")))","v":5},{"$f":"IF(SUM('2011 Survey responses'!V124:AO124)<1,\"\",(AVERAGEIFS('2011 Survey responses'!V124:AO124,'2011 Survey responses'!V124:AO124,\">1\")))","v":4.6500000000000004},{"$f":"IF(SUM('2011 Survey responses'!V124:AA124)<1,\"\",(AVERAGEIFS('2011 Survey responses'!V124:AA124,'2011 Survey responses'!V124:AA124,\">1\")))","v":4.833333333333333},{"$f":"IF(SUM('2011 Survey responses'!AB124:AH124)<1,\"\",(AVERAGEIFS('2011 Survey responses'!AB124:AH124,'2011 Survey responses'!AB124:AH124,\">1\")))","v":5.1428571428571432},{"$f":"IF(SUM('2011 Survey responses'!AI124:AO124)<1,\"\",(AVERAGEIFS('2011 Survey responses'!AI124:AO124,'2011 Survey responses'!AI124:AO124,\">1\")))","v":4},{"$f":"IF(('2011 Survey responses'!Y124+'2011 Survey responses'!AI124+'2011 Survey responses'!AK124)<3.1,\"\",((SUMIF('2011 Survey responses'!Y124,\">1\")+SUMIF('2011 Survey responses'!AI124,\">1\")+SUMIF('2011 Survey responses'!AK124,\">1\")+SUMIF('2011 Survey responses'!AM124,\">1\"))/(COUNTIF('2011 Survey responses'!Y124,\">1\")+COUNTIF('2011 Survey responses'!AI124,\">1\")+COUNTIF('2011 Survey responses'!AK124,\">1\")+COUNTIF('2011 Survey responses'!AM124,\">1\"))))","v":3.25},{"$f":"IF(('2011 Survey responses'!W124)<1.1,\"\",('2011 Survey responses'!W124))","v":5},{"$f":"IF(('2011 Survey responses'!Y124)<1.1,\"\",('2011 Survey responses'!Y124))","v":4},{"$f":"IF(('2011 Survey responses'!Z124)<1.1,\"\",('2011 Survey responses'!Z124))","v":4},{"$f":"IF(('2011 Survey responses'!V124+'2011 Survey responses'!X124+'2011 Survey responses'!AA124)<3.1,\"\",((SUMIF('2011 Survey responses'!V124,\">1\")+SUMIF('2011 Survey responses'!X124,\">1\")+SUMIF('2011 Survey responses'!AA124,\">1\"))/(COUNTIF('2011 Survey responses'!V124,\">1\")+COUNTIF('2011 Survey responses'!X124,\">1\")+COUNTIF('2011 Survey responses'!AA124,\">1\"))))","v":5.333333333333333},{"$f":"IF(('2011 Survey responses'!V124+'2011 Survey responses'!Y124+'2011 Survey responses'!AA124)<3.1,\"\",((SUMIF('2011 Survey responses'!V124,\">1\")+SUMIF('2011 Survey responses'!Y124,\">1\")+SUMIF('2011 Survey responses'!AA124,\">1\"))/(COUNTIF('2011 Survey responses'!V124,\">1\")+COUNTIF('2011 Survey responses'!Y124,\">1\")+COUNTIF('2011 Survey responses'!AA124,\">1\"))))","v":5},{"$f":"IF(SUM('2011 Survey responses'!AB124:AH124)<1,\"\",(AVERAGEIFS('2011 Survey responses'!AB124:AH124,'2011 Survey responses'!AB124:AH124,\">1\")))","v":5.1428571428571432},{"$f":"IF(SUM('2011 Survey responses'!AI124:AO124)<7.1,\"\",(AVERAGEIFS('2011 Survey responses'!AI124:AO124,'2011 Survey responses'!AI124:AO124,\">1\")))","v":4},{"$f":"IF(('2011 Survey responses'!AH124)<1.1,\"\",('2011 Survey responses'!AH124))","v":6},{"$f":"IF(SUM('2011 Survey responses'!AP124:BV124)<1,\"\",(AVERAGEIFS('2011 Survey responses'!AP124:BV124,'2011 Survey responses'!AP124:BV124,\">1\")))","v":4.5161290322580649},{"$f":"IF(SUM('2011 Survey responses'!AP124:AS124)<4.1,\"\",(AVERAGEIFS('2011 Survey responses'!AP124:AS124,'2011 Survey responses'!AP124:AS124,\">1\")))","v":4.75},{"$f":"IF(SUM('2011 Survey responses'!AT124:BF124)<1,\"\",(AVERAGEIFS('2011 Survey responses'!AT124:BF124,'2011 Survey responses'!AT124:BF124,\">1\")))","v":3.6666666666666665},{"$f":"IF(SUM('2011 Survey responses'!BG124:BO124)<1,\"\",(AVERAGEIFS('2011 Survey responses'!BG124:BO124,'2011 Survey responses'!BG124:BO124,\">1\")))","v":5.333333333333333},{"$f":"IF(SUM('2011 Survey responses'!BP124:BS124)<1,\"\",(AVERAGEIFS('2011 Survey responses'!BP124:BS124,'2011 Survey responses'!BP124:BS124,\">1\")))","v":5.25},{"$f":"IF(SUM('2011 Survey responses'!BT124:BV124)<3.1,\"\",(AVERAGEIFS('2011 Survey responses'!BT124:BV124,'2011 Survey responses'!BT124:BV124,\">1\")))","v":4},{"$f":"IF(('2011 Survey responses'!AQ124+'2011 Survey responses'!AR124+'2011 Survey responses'!BG124)<3.1,\"\",((SUMIF('2011 Survey responses'!AQ124,\">1\")+SUMIF('2011 Survey responses'!AR124,\">1\")+SUMIF('2011 Survey responses'!BG124,\">1\"))/(COUNTIF('2011 Survey responses'!AQ124,\">1\")+COUNTIF('2011 Survey responses'!AR124,\">1\")+COUNTIF('2011 Survey responses'!BG124,\">1\"))))","v":5.333333333333333},{"$f":"IF(SUM('2011 Survey responses'!AP124:AS124)<4.1,\"\",(AVERAGEIFS('2011 Survey responses'!AP124:AS124,'2011 Survey responses'!AP124:AS124,\">1\")))","v":4.75},{"$f":"IF(('2011 Survey responses'!AU124+'2011 Survey responses'!AX124+'2011 Survey responses'!BA124+'2011 Survey responses'!BC124+'2011 Survey responses'!BD124)<5.1,\"\",(SUMIF('2011 Survey responses'!AU124,\">1\")+SUMIF('2011 Survey responses'!AX124,\">1\")+SUMIF('2011 Survey responses'!BA124,\">1\")+SUMIF('2011 Survey responses'!BC124,\">1\")+SUMIF('2011 Survey responses'!BD124,\">1\"))/(COUNTIF('2011 Survey responses'!AU124,\">1\")+COUNTIF('2011 Survey responses'!AX124,\">1\")+COUNTIF('2011 Survey responses'!BA124,\">1\")+COUNTIF('2011 Survey responses'!BC124,\">1\")+COUNTIF('2011 Survey responses'!BD124,\">1\")))","v":3.8},{"$f":"IF(('2011 Survey responses'!AT124)<1.1,\"\",('2011 Survey responses'!AT124))","v":4},{"$f":"IF(SUM('2011 Survey responses'!AV124:AW124)<2.1,\"\",(AVERAGEIFS('2011 Survey responses'!AV124:AW124,'2011 Survey responses'!AV124:AW124,\">1\")))","v":2},{"$f":"IF(('2011 Survey responses'!AW124+'2011 Survey responses'!AY124)<2.1,\"\",(SUMIF('2011 Survey responses'!AW124,\">1\")+SUMIF('2011 Survey responses'!AY124,\">1\"))/(COUNTIF('2011 Survey responses'!AW124,\">1\")+COUNTIF('2011 Survey responses'!AY124,\">1\")))","v":2},{"$f":"IF(('2011 Survey responses'!AZ124)<1.1,\"\",('2011 Survey responses'!AZ124))","v":4},4,2,5,1,{"$f":"IF(('2011 Survey responses'!BE124)<1.1,\"\",('2011 Survey responses'!BE124))","v":""},{"$f":"IF(('2011 Survey responses'!AY124+'2011 Survey responses'!BB124+'2011 Survey responses'!BF124)<3.1,\"\",(SUMIF('2011 Survey responses'!AY124,\">1\")+SUMIF('2011 Survey responses'!BB124,\">1\")+SUMIF('2011 Survey responses'!BF124,\">1\"))/(COUNTIF('2011 Survey responses'!AY124,\">1\")+COUNTIF('2011 Survey responses'!BB124,\">1\")+COUNTIF('2011 Survey responses'!BF124,\">1\")))","v":4.333333333333333},5.2916666666666661,{"$f":"IF(SUM('2011 Survey responses'!BT124:BV124)<3.1,\"\",(AVERAGEIFS('2011 Survey responses'!BT124:BV124,'2011 Survey responses'!BT124:BV124,\">1\")))","v":4},{"$f":"IF(SUM('2011 Survey responses'!BW124:CP124)<1,\"\",(AVERAGEIFS('2011 Survey responses'!BW124:CP124,'2011 Survey responses'!BW124:CP124,\">1\")))","v":5.2222222222222223},{"$f":"IF(SUM('2011 Survey responses'!BW124:CF124)<1,\"\",(AVERAGEIFS('2011 Survey responses'!BW124:CF124,'2011 Survey responses'!BW124:CF124,\">1\")))","v":5.2222222222222223},{"$f":"IF(SUM('2011 Survey responses'!CG124:CP124)<1,\"\",(AVERAGEIFS('2011 Survey responses'!CG124:CP124,'2011 Survey responses'!CG124:CP124,\">1\")))","v":5.2222222222222223},{"$f":"IF(SUM('2011 Survey responses'!BX124:CF124)<1,\"\",(AVERAGEIFS('2011 Survey responses'!BX124:CF124,'2011 Survey responses'!BX124:CF124,\">1\")))","v":5.125},{"$f":"IF(SUM('2011 Survey responses'!CH124:CP124)<1,\"\",(AVERAGEIFS('2011 Survey responses'!CH124:CP124,'2011 Survey responses'!CH124:CP124,\">1\")))","v":5.125},{"$f":"IF(SUM('2011 Survey responses'!BW124:CP124)<1,\"\",(AVERAGEIFS('2011 Survey responses'!BW124:CP124,'2011 Survey responses'!BW124:CP124,\">1\")))","v":5.2222222222222223},{"$f":"IF(('2011 Survey responses'!BW124+'2011 Survey responses'!CG124)<2.1,\"\",(SUMIF('2011 Survey responses'!BW124,\">1\")+SUMIF('2011 Survey responses'!CG124,\">1\"))/(COUNTIF('2011 Survey responses'!BW124,\">1\")+COUNTIF('2011 Survey responses'!CG124,\">1\")))","v":6},{"$f":"IF(('2011 Survey responses'!BX124+'2011 Survey responses'!CH124)<2.1,\"\",(SUMIF('2011 Survey responses'!BX124,\">1\")+SUMIF('2011 Survey responses'!CH124,\">1\"))/(COUNTIF('2011 Survey responses'!BX124,\">1\")+COUNTIF('2011 Survey responses'!CH124,\">1\")))","v":2.5},{"$f":"IF(('2011 Survey responses'!BY124+'2011 Survey responses'!CI124)<2.1,\"\",(SUMIF('2011 Survey responses'!BY124,\">1\")+SUMIF('2011 Survey responses'!CI124,\">1\"))/(COUNTIF('2011 Survey responses'!BY124,\">1\")+COUNTIF('2011 Survey responses'!CI124,\">1\")))","v":6},{"$f":"IF('2011 Survey responses'!CQ124<0.5,\"\",'2011 Survey responses'!CQ124)","v":3},{"$f":"IF('2011 Survey responses'!CR124<0.5,\"\",'2011 Survey responses'!CR124)","v":2},{"$f":"IF('2011 Survey responses'!CS124<0.5,\"\",'2011 Survey responses'!CS124)","v":2},{"$f":"IF('2011 Survey responses'!CT124<0.5,\"\",'2011 Survey responses'!CT124)","v":4},{"$f":"IF('2011 Survey responses'!CU124<0.5,\"\",'2011 Survey responses'!CU124)","v":4},{"$f":"IF('2011 Survey responses'!CV124<0.5,\"\",'2011 Survey responses'!CV124)","v":2},{"$f":"IF(SUM('2011 Survey responses'!CW124:DL124)<1,\"\",(AVERAGE('2011 Survey responses'!CW124:DL124)))","v":4.1875},{"$f":"IF(SUM('2011 Survey responses'!CW124:CZ124)<1,\"\",(AVERAGE('2011 Survey responses'!CW124:CZ124)))","v":4.25},{"$f":"IF(SUM('2011 Survey responses'!DA124:DD124)<1,\"\",(AVERAGE('2011 Survey responses'!DA124:DD124)))","v":4.25},{"$f":"IF(SUM('2011 Survey responses'!DE124:DH124)<1,\"\",(AVERAGE('2011 Survey responses'!DE124:DH124)))","v":4},{"$f":"IF(SUM('2011 Survey responses'!DI124:DL124)<1,\"\",(AVERAGE('2011 Survey responses'!DI124:DL124)))","v":4.25},{"$f":"IF(('2011 Survey responses'!CW124+'2011 Survey responses'!DA124+'2011 Survey responses'!DE124+'2011 Survey responses'!DI124)<1,\"\",AVERAGE('2011 Survey responses'!CW124,'2011 Survey responses'!DA124,'2011 Survey responses'!DE124,'2011 Survey responses'!DI124))","v":4},{"$f":"IF(('2011 Survey responses'!CX124+'2011 Survey responses'!DB124+'2011 Survey responses'!DF124+'2011 Survey responses'!DJ124)<1,\"\",AVERAGE('2011 Survey responses'!CX124,'2011 Survey responses'!DB124,'2011 Survey responses'!DF124,'2011 Survey responses'!DJ124))","v":4.25},{"$f":"IF(('2011 Survey responses'!CY124+'2011 Survey responses'!DC124+'2011 Survey responses'!DG124+'2011 Survey responses'!DK124)<1,\"\",AVERAGE('2011 Survey responses'!CY124,'2011 Survey responses'!DC124,'2011 Survey responses'!DG124,'2011 Survey responses'!DK124))","v":4.5},{"$f":"IF(('2011 Survey responses'!CZ124+'2011 Survey responses'!DD124+'2011 Survey responses'!DH124+'2011 Survey responses'!DL124)<1,\"\",AVERAGE('2011 Survey responses'!CZ124,'2011 Survey responses'!DD124,'2011 Survey responses'!DH124,'2011 Survey responses'!DL124))","v":4},{"$f":"IF('2011 Survey responses'!CW124<0.5,\"\",'2011 Survey responses'!CW124)","v":4},{"$f":"IF('2011 Survey responses'!CX124<0.5,\"\",'2011 Survey responses'!CX124)","v":4},{"$f":"IF('2011 Survey responses'!CY124<0.5,\"\",'2011 Survey responses'!CY124)","v":5},{"$f":"IF('2011 Survey responses'!CZ124<0.5,\"\",'2011 Survey responses'!CZ124)","v":4},{"$f":"IF('2011 Survey responses'!DA124<0.5,\"\",'2011 Survey responses'!DA124)","v":4},{"$f":"IF('2011 Survey responses'!DB124<0.5,\"\",'2011 Survey responses'!DB124)","v":4},{"$f":"IF('2011 Survey responses'!DC124<0.5,\"\",'2011 Survey responses'!DC124)","v":5},{"$f":"IF('2011 Survey responses'!DD124<0.5,\"\",'2011 Survey responses'!DD124)","v":4},{"$f":"IF('2011 Survey responses'!DE124<0.5,\"\",'2011 Survey responses'!DE124)","v":3},{"$f":"IF('2011 Survey responses'!DF124<0.5,\"\",'2011 Survey responses'!DF124)","v":4},{"$f":"IF('2011 Survey responses'!DG124<0.5,\"\",'2011 Survey responses'!DG124)","v":5},{"$f":"IF('2011 Survey responses'!DH124<0.5,\"\",'2011 Survey responses'!DH124)","v":4},{"$f":"IF('2011 Survey responses'!DI124<0.5,\"\",'2011 Survey responses'!DI124)","v":5},{"$f":"IF('2011 Survey responses'!DJ124<0.5,\"\",'2011 Survey responses'!DJ124)","v":5},{"$f":"IF('2011 Survey responses'!DK124<0.5,\"\",'2011 Survey responses'!DK124)","v":3},{"$f":"IF('2011 Survey responses'!DL124<0.5,\"\",'2011 Survey responses'!DL124)","v":4},{"$f":"IF('2011 Survey responses'!DU124=4,4,IF('2011 Survey responses'!DU124=5,4,\"\"))","v":""},{"$f":"IF('2011 Survey responses'!DV124=4,3,IF('2011 Survey responses'!DV124=5,3,\"\"))","v":3},"",{"$f":"IF(CQ124=2,CQ124,IF(CO124=4,CO124,IF(CP124=3,CP124,IF('2011 Survey responses'!GT124=1,1,\"\"))))","v":3},{"$f":"IF('2011 Survey responses'!DO124<0.5,\"\",'2011 Survey responses'!DO124)","v":4},{"$f":"IF('2011 Survey responses'!DP124<0.5,\"\",'2011 Survey responses'!DP124)","v":5},{"$f":"IF('2011 Survey responses'!DQ124<0.5,\"\",'2011 Survey responses'!DQ124)","v":4},{"$f":"IF('2011 Survey responses'!DR124<0.5,\"\",'2011 Survey responses'!DR124)","v":5},{"$f":"IF('2011 Survey responses'!DS124<0.5,\"\",'2011 Survey responses'!DS124)","v":4},{"$f":"IF('2011 Survey responses'!DT124<0.5,\"\",'2011 Survey responses'!DT124)","v":4},{"$f":"IF('2011 Survey responses'!DU124<0.5,\"\",'2011 Survey responses'!DU124)","v":3},{"$f":"IF('2011 Survey responses'!DV124<0.5,\"\",'2011 Survey responses'!DV124)","v":4},{"$f":"IF('2011 Survey responses'!DW124<0.5,\"\",'2011 Survey responses'!DW124)","v":5},{"$f":"IF('2011 Survey responses'!DX124<0.5,\"\",'2011 Survey responses'!DX124)","v":3},{"$f":"IF('2011 Survey responses'!DY124<0.5,\"\",'2011 Survey responses'!DY124)","v":4},{"$f":"IF('2011 Survey responses'!DZ124<0.5,\"\",'2011 Survey responses'!DZ124)","v":3},{"$f":"IF('2011 Survey responses'!EA124<0.5,\"\",'2011 Survey responses'!EA124)","v":5},{"$f":"IF('2011 Survey responses'!EB124<0.5,\"\",'2011 Survey responses'!EB124)","v":4},{"$f":"IF('2011 Survey responses'!EC124<0.5,\"\",'2011 Survey responses'!EC124)","v":4},{"$f":"IF('2011 Survey responses'!ED124<0.5,\"\",'2011 Survey responses'!ED124)","v":4},{"$f":"IF('2011 Survey responses'!EE124<0.5,\"\",'2011 Survey responses'!EE124)","v":4},{"$f":"IF('2011 Survey responses'!EF124<0.5,\"\",'2011 Survey responses'!EF124)","v":4},{"$f":"IF('2011 Survey responses'!EG124<0.5,\"\",'2011 Survey responses'!EG124)","v":3},{"$f":"IF('2011 Survey responses'!EH124<0.5,\"\",'2011 Survey responses'!EH124)","v":5},{"$f":"IF('2011 Survey responses'!EI124<0.5,\"\",'2011 Survey responses'!EI124)","v":5},{"$f":"IF('2011 Survey responses'!EJ124<0.5,\"\",'2011 Survey responses'!EJ124)","v":4},{"$f":"IF('2011 Survey responses'!EK124<0.5,\"\",'2011 Survey responses'!EK124)","v":5},{"$f":"IF('2011 Survey responses'!EL124<0.5,\"\",'2011 Survey responses'!EL124)","v":4},{"$f":"IF('2011 Survey responses'!EM124<0.5,\"\",'2011 Survey responses'!EM124)","v":2},{"$f":"IF('2011 Survey responses'!EN124<0.5,\"\",'2011 Survey responses'!EN124)","v":3},{"$f":"IF('2011 Survey responses'!EO124<0.5,\"\",'2011 Survey responses'!EO124)","v":""},{"$f":"IF('2011 Survey responses'!EP124<0.5,\"\",'2011 Survey responses'!EP124)","v":""},{"$f":"IF(('2011 Survey responses'!EW124+'2011 Survey responses'!EX124)>=2,AVERAGE('2011 Survey responses'!EW124,'2011 Survey responses'!EY124),\"\")","v":3},{"$f":"IF('2011 Survey responses'!EX124<0.5,\"\",'2011 Survey responses'!EX124)","v":3},{"$f":"IF('2011 Survey responses'!EZ124<0.5,\"\",'2011 Survey responses'!EZ124)","v":4},{"$f":"IF('2011 Survey responses'!FB124<0.5,\"\",'2011 Survey responses'!FB124)","v":3},{"$f":"IF('2011 Survey responses'!FD124<0.5,\"\",'2011 Survey responses'!FD124)","v":4},{"$f":"IF('2011 Survey responses'!FC124<0.5,\"\",'2011 Survey responses'!FC124)","v":4},{"$f":"IF(('2011 Survey responses'!EM124+'2011 Survey responses'!EN124)>=2,AVERAGE('2011 Survey responses'!EM124,'2011 Survey responses'!EN124),\"\")","v":2.5},{"$f":"IF('2011 Survey responses'!ES124<0.5,\"\",'2011 Survey responses'!ES124)","v":4},{"$f":"IF(('2011 Survey responses'!ET124+'2011 Survey responses'!EU124)>=2,AVERAGE('2011 Survey responses'!ET124,'2011 Survey responses'!EU124),\"\")","v":4},{"$f":"IF('2011 Survey responses'!EV124<0.5,\"\",'2011 Survey responses'!EV124)","v":4},{"$f":"IF('2011 Survey responses'!FA124<0.5,\"\",'2011 Survey responses'!FA124)","v":3},{"$f":"IF('2011 Survey responses'!ER124<0.5,\"\",'2011 Survey responses'!ER124)","v":4},{"$f":"IF(('2011 Survey responses'!EO124+'2011 Survey responses'!EP124)>=2,AVERAGE('2011 Survey responses'!EO124,'2011 Survey responses'!EP124),\"\")","v":""},{"$f":"IF('2011 Survey responses'!EQ124<0.5,\"\",'2011 Survey responses'!EQ124)","v":3},{"$f":"IF('2011 Survey responses'!ET124<0.5,\"\",'2011 Survey responses'!ET124)","v":4},{"$f":"IF('2011 Survey responses'!EU124<0.5,\"\",'2011 Survey responses'!EU124)","v":4},{"$f":"IF('2011 Survey responses'!EW124<0.5,\"\",'2011 Survey responses'!EW124)","v":3},{"$f":"IF('2011 Survey responses'!EY124<0.5,\"\",'2011 Survey responses'!EY124)","v":3},{"$f":"IF('2011 Survey responses'!FU124<0.5,\"\",'2011 Survey responses'!FU124)","v":5},{"$f":"IF(('2011 Survey responses'!FL124+'2011 Survey responses'!FM124)>=2,AVERAGE('2011 Survey responses'!FL124,'2011 Survey responses'!FM124),\"\")","v":4.5},{"$f":"IF(('2011 Survey responses'!FO124+'2011 Survey responses'!FQ124)>=2,AVERAGE('2011 Survey responses'!FO124,'2011 Survey responses'!FQ124),\"\")","v":2},{"$f":"IF('2011 Survey responses'!FJ124<0.5,\"\",'2011 Survey responses'!FJ124)","v":5},{"$f":"IF('2011 Survey responses'!FT124<0.5,\"\",'2011 Survey responses'!FT124)","v":5},{"$f":"IF('2011 Survey responses'!FR124<0.5,\"\",'2011 Survey responses'!FR124)","v":5},{"$f":"IF('2011 Survey responses'!FK124<0.5,\"\",'2011 Survey responses'!FK124)","v":5},{"$f":"IF('2011 Survey responses'!FP124<0.5,\"\",'2011 Survey responses'!FP124)","v":4},{"$f":"IF('2011 Survey responses'!FN124<0.5,\"\",'2011 Survey responses'!FN124)","v":4},{"$f":"IF(('2011 Survey responses'!FE124+'2011 Survey responses'!FF124)>=2,AVERAGE('2011 Survey responses'!FE124,'2011 Survey responses'!FF124),\"\")","v":2.5},{"$f":"IF('2011 Survey responses'!FS124<0.5,\"\",'2011 Survey responses'!FS124)","v":5},{"$f":"IF('2011 Survey responses'!FV124<0.5,\"\",'2011 Survey responses'!FV124)","v":4},{"$f":"IF(('2011 Survey responses'!FG124+'2011 Survey responses'!FH124)>=2,AVERAGE('2011 Survey responses'!FG124,'2011 Survey responses'!FH124),\"\")","v":""},{"$f":"IF('2011 Survey responses'!FI124<0.5,\"\",'2011 Survey responses'!FI124)","v":4},{"$f":"IF('2011 Survey responses'!FE124<0.5,\"\",'2011 Survey responses'!FE124)","v":1},{"$f":"IF('2011 Survey responses'!FF124<0.5,\"\",'2011 Survey responses'!FF124)","v":4},{"$f":"IF('2011 Survey responses'!FG124<0.5,\"\",'2011 Survey responses'!FG124)","v":""},{"$f":"IF('2011 Survey responses'!FH124<0.5,\"\",'2011 Survey responses'!FH124)","v":""},{"$f":"IF('2011 Survey responses'!FL124<0.5,\"\",'2011 Survey responses'!FL124)","v":4},{"$f":"IF('2011 Survey responses'!FM124<0.5,\"\",'2011 Survey responses'!FM124)","v":5},{"$f":"IF('2011 Survey responses'!FO124<0.5,\"\",'2011 Survey responses'!FO124)","v":2},{"$f":"IF('2011 Survey responses'!FQ124<0.5,\"\",'2011 Survey responses'!FQ124)","v":2}]
["Nicaragua",{"$f":"IF(SUM(F125)<1,\"\",AVERAGEIF('2011 Survey responses'!B125:CP125,\">1\"))","v":2.8333333333333335},{"$f":"IF(SUM(F125)<1,\"\",AVERAGEIF('2011 Survey responses'!B125:AO125,\">1\"))","v":2.8974358974358974},{"$f":"IF(SUM(F125)<1,\"\",AVERAGEIF('2011 Survey responses'!B125:BV125,\">1\"))","v":2.7222222222222223},{"$f":"IF(SUM(F125)<1,\"\",AVERAGEIF('2011 Survey responses'!V125:BV125,\">1\"))","v":2.6792452830188678},{"$f":"IF(SUM('2011 Survey responses'!B125:U125)<1,\"\",(AVERAGEIFS('2011 Survey responses'!B125:U125,'2011 Survey responses'!B125:U125,\">1\")))","v":2.8421052631578947},{"$f":"IF(SUM('2011 Survey responses'!B125:H125)<1,\"\",(AVERAGEIFS('2011 Survey responses'!B125:H125,'2011 Survey responses'!B125:H125,\">1\")))","v":2.3333333333333335},{"$f":"IF(SUM('2011 Survey responses'!I125:S125)<1,\"\",(AVERAGEIFS('2011 Survey responses'!I125:S125,'2011 Survey responses'!I125:S125,\">1\")))","v":3.1818181818181817},{"$f":"IF(SUM('2011 Survey responses'!T125:U125)<2.1,\"\",(AVERAGEIFS('2011 Survey responses'!T125:U125,'2011 Survey responses'!T125:U125,\">1\")))","v":2.5},{"$f":"IF(SUM('2011 Survey responses'!B125:C125)<2.1,\"\",((SUMIF('2011 Survey responses'!B125:C125,\">1\")+SUMIF('2011 Survey responses'!F125,\">1\"))/(COUNTIF('2011 Survey responses'!B125:C125,\">1\")+COUNTIF('2011 Survey responses'!F125,\">1\"))))","v":2},{"$f":"IF(SUM('2011 Survey responses'!D125:E125)<2.1,\"\",(AVERAGEIFS('2011 Survey responses'!D125:E125,'2011 Survey responses'!D125:E125,\">1\")))","v":4},{"$f":"IF(('2011 Survey responses'!B125+'2011 Survey responses'!D125)<2.1,\"\",((SUMIF('2011 Survey responses'!B125,\">1\")+SUMIF('2011 Survey responses'!D125,\">1\")+SUMIF('2011 Survey responses'!F125,\">1\")+SUMIF('2011 Survey responses'!K125,\">1\"))/(COUNTIF('2011 Survey responses'!B125,\">1\")+COUNTIF('2011 Survey responses'!D125,\">1\")+COUNTIF('2011 Survey responses'!F125,\">1\")+COUNTIF('2011 Survey responses'!K125,\">1\"))))","v":3},{"$f":"IF(SUM('2011 Survey responses'!G125:H125)<2.1,\"\",(AVERAGEIFS('2011 Survey responses'!G125:H125,'2011 Survey responses'!G125:H125,\">1\")))","v":2},{"$f":"IF(SUM('2011 Survey responses'!F125:G125)<1.5,\"\",MAX('2011 Survey responses'!F125,'2011 Survey responses'!G125))","v":2},{"$f":"IF(SUM('2011 Survey responses'!G125:H125)<1,\"\",MAX('2011 Survey responses'!G125,'2011 Survey responses'!H125))","v":2},{"$f":"IF(SUM('2011 Survey responses'!I125:L125)<4.1,\"\",(AVERAGEIFS('2011 Survey responses'!I125:L125,'2011 Survey responses'!I125:L125,\">1\")))","v":3.5},{"$f":"IF(SUM('2011 Survey responses'!M125:S125)<4.1,\"\",(AVERAGEIFS('2011 Survey responses'!M125:S125,'2011 Survey responses'!M125:S125,\">1\")))","v":3},{"$f":"IF(SUM('2011 Survey responses'!T125:U125)<2.1,\"\",(AVERAGEIFS('2011 Survey responses'!T125:U125,'2011 Survey responses'!T125:U125,\">1\")))","v":2.5},{"$f":"IF(SUM('2011 Survey responses'!V125:AO125)<1,\"\",(AVERAGEIFS('2011 Survey responses'!V125:AO125,'2011 Survey responses'!V125:AO125,\">1\")))","v":2.95},{"$f":"IF(SUM('2011 Survey responses'!V125:AA125)<1,\"\",(AVERAGEIFS('2011 Survey responses'!V125:AA125,'2011 Survey responses'!V125:AA125,\">1\")))","v":2.6666666666666665},{"$f":"IF(SUM('2011 Survey responses'!AB125:AH125)<1,\"\",(AVERAGEIFS('2011 Survey responses'!AB125:AH125,'2011 Survey responses'!AB125:AH125,\">1\")))","v":3.4285714285714284},{"$f":"IF(SUM('2011 Survey responses'!AI125:AO125)<1,\"\",(AVERAGEIFS('2011 Survey responses'!AI125:AO125,'2011 Survey responses'!AI125:AO125,\">1\")))","v":2.7142857142857144},{"$f":"IF(('2011 Survey responses'!Y125+'2011 Survey responses'!AI125+'2011 Survey responses'!AK125)<3.1,\"\",((SUMIF('2011 Survey responses'!Y125,\">1\")+SUMIF('2011 Survey responses'!AI125,\">1\")+SUMIF('2011 Survey responses'!AK125,\">1\")+SUMIF('2011 Survey responses'!AM125,\">1\"))/(COUNTIF('2011 Survey responses'!Y125,\">1\")+COUNTIF('2011 Survey responses'!AI125,\">1\")+COUNTIF('2011 Survey responses'!AK125,\">1\")+COUNTIF('2011 Survey responses'!AM125,\">1\"))))","v":2.75},{"$f":"IF(('2011 Survey responses'!W125)<1.1,\"\",('2011 Survey responses'!W125))","v":3},{"$f":"IF(('2011 Survey responses'!Y125)<1.1,\"\",('2011 Survey responses'!Y125))","v":3},{"$f":"IF(('2011 Survey responses'!Z125)<1.1,\"\",('2011 Survey responses'!Z125))","v":2},{"$f":"IF(('2011 Survey responses'!V125+'2011 Survey responses'!X125+'2011 Survey responses'!AA125)<3.1,\"\",((SUMIF('2011 Survey responses'!V125,\">1\")+SUMIF('2011 Survey responses'!X125,\">1\")+SUMIF('2011 Survey responses'!AA125,\">1\"))/(COUNTIF('2011 Survey responses'!V125,\">1\")+COUNTIF('2011 Survey responses'!X125,\">1\")+COUNTIF('2011 Survey responses'!AA125,\">1\"))))","v":2.6666666666666665},{"$f":"IF(('2011 Survey responses'!V125+'2011 Survey responses'!Y125+'2011 Survey responses'!AA125)<3.1,\"\",((SUMIF('2011 Survey responses'!V125,\">1\")+SUMIF('2011 Survey responses'!Y125,\">1\")+SUMIF('2011 Survey responses'!AA125,\">1\"))/(COUNTIF('2011 Survey responses'!V125,\">1\")+COUNTIF('2011 Survey responses'!Y125,\">1\")+COUNTIF('2011 Survey responses'!AA125,\">1\"))))","v":2.6666666666666665},{"$f":"IF(SUM('2011 Survey responses'!AB125:AH125)<1,\"\",(AVERAGEIFS('2011 Survey responses'!AB125:AH125,'2011 Survey responses'!AB125:AH125,\">1\")))","v":3.4285714285714284},{"$f":"IF(SUM('2011 Survey responses'!AI125:AO125)<7.1,\"\",(AVERAGEIFS('2011 Survey responses'!AI125:AO125,'2011 Survey responses'!AI125:AO125,\">1\")))","v":2.7142857142857144},{"$f":"IF(('2011 Survey responses'!AH125)<1.1,\"\",('2011 Survey responses'!AH125))","v":4},{"$f":"IF(SUM('2011 Survey responses'!AP125:BV125)<1,\"\",(AVERAGEIFS('2011 Survey responses'!AP125:BV125,'2011 Survey responses'!AP125:BV125,\">1\")))","v":2.5151515151515151},{"$f":"IF(SUM('2011 Survey responses'!AP125:AS125)<4.1,\"\",(AVERAGEIFS('2011 Survey responses'!AP125:AS125,'2011 Survey responses'!AP125:AS125,\">1\")))","v":2.5},{"$f":"IF(SUM('2011 Survey responses'!AT125:BF125)<1,\"\",(AVERAGEIFS('2011 Survey responses'!AT125:BF125,'2011 Survey responses'!AT125:BF125,\">1\")))","v":2.5384615384615383},{"$f":"IF(SUM('2011 Survey responses'!BG125:BO125)<1,\"\",(AVERAGEIFS('2011 Survey responses'!BG125:BO125,'2011 Survey responses'!BG125:BO125,\">1\")))","v":2.8888888888888888},{"$f":"IF(SUM('2011 Survey responses'!BP125:BS125)<1,\"\",(AVERAGEIFS('2011 Survey responses'!BP125:BS125,'2011 Survey responses'!BP125:BS125,\">1\")))","v":2},{"$f":"IF(SUM('2011 Survey responses'!BT125:BV125)<3.1,\"\",(AVERAGEIFS('2011 Survey responses'!BT125:BV125,'2011 Survey responses'!BT125:BV125,\">1\")))","v":2},{"$f":"IF(('2011 Survey responses'!AQ125+'2011 Survey responses'!AR125+'2011 Survey responses'!BG125)<3.1,\"\",((SUMIF('2011 Survey responses'!AQ125,\">1\")+SUMIF('2011 Survey responses'!AR125,\">1\")+SUMIF('2011 Survey responses'!BG125,\">1\"))/(COUNTIF('2011 Survey responses'!AQ125,\">1\")+COUNTIF('2011 Survey responses'!AR125,\">1\")+COUNTIF('2011 Survey responses'!BG125,\">1\"))))","v":3.6666666666666665},{"$f":"IF(SUM('2011 Survey responses'!AP125:AS125)<4.1,\"\",(AVERAGEIFS('2011 Survey responses'!AP125:AS125,'2011 Survey responses'!AP125:AS125,\">1\")))","v":2.5},{"$f":"IF(('2011 Survey responses'!AU125+'2011 Survey responses'!AX125+'2011 Survey responses'!BA125+'2011 Survey responses'!BC125+'2011 Survey responses'!BD125)<5.1,\"\",(SUMIF('2011 Survey responses'!AU125,\">1\")+SUMIF('2011 Survey responses'!AX125,\">1\")+SUMIF('2011 Survey responses'!BA125,\">1\")+SUMIF('2011 Survey responses'!BC125,\">1\")+SUMIF('2011 Survey responses'!BD125,\">1\"))/(COUNTIF('2011 Survey responses'!AU125,\">1\")+COUNTIF('2011 Survey responses'!AX125,\">1\")+COUNTIF('2011 Survey responses'!BA125,\">1\")+COUNTIF('2011 Survey responses'!BC125,\">1\")+COUNTIF('2011 Survey responses'!BD125,\">1\")))","v":3},{"$f":"IF(('2011 Survey responses'!AT125)<1.1,\"\",('2011 Survey responses'!AT125))","v":2},{"$f":"IF(SUM('2011 Survey responses'!AV125:AW125)<2.1,\"\",(AVERAGEIFS('2011 Survey responses'!AV125:AW125,'2011 Survey responses'!AV125:AW125,\">1\")))","v":2},{"$f":"IF(('2011 Survey responses'!AW125+'2011 Survey responses'!AY125)<2.1,\"\",(SUMIF('2011 Survey responses'!AW125,\">1\")+SUMIF('2011 Survey responses'!AY125,\">1\"))/(COUNTIF('2011 Survey responses'!AW125,\">1\")+COUNTIF('2011 Survey responses'!AY125,\">1\")))","v":2},{"$f":"IF(('2011 Survey responses'!AZ125)<1.1,\"\",('2011 Survey responses'!AZ125))","v":2},2,2,2,2,{"$f":"IF(('2011 Survey responses'!BE125)<1.1,\"\",('2011 Survey responses'!BE125))","v":3},{"$f":"IF(('2011 Survey responses'!AY125+'2011 Survey responses'!BB125+'2011 Survey responses'!BF125)<3.1,\"\",(SUMIF('2011 Survey responses'!AY125,\">1\")+SUMIF('2011 Survey responses'!BB125,\">1\")+SUMIF('2011 Survey responses'!BF125,\">1\"))/(COUNTIF('2011 Survey responses'!AY125,\">1\")+COUNTIF('2011 Survey responses'!BB125,\">1\")+COUNTIF('2011 Survey responses'!BF125,\">1\")))","v":2.3333333333333335},2.4444444444444446,{"$f":"IF(SUM('2011 Survey responses'!BT125:BV125)<3.1,\"\",(AVERAGEIFS('2011 Survey responses'!BT125:BV125,'2011 Survey responses'!BT125:BV125,\">1\")))","v":2},{"$f":"IF(SUM('2011 Survey responses'!BW125:CP125)<1,\"\",(AVERAGEIFS('2011 Survey responses'!BW125:CP125,'2011 Survey responses'!BW125:CP125,\">1\")))","v":3.5},{"$f":"IF(SUM('2011 Survey responses'!BW125:CF125)<1,\"\",(AVERAGEIFS('2011 Survey responses'!BW125:CF125,'2011 Survey responses'!BW125:CF125,\">1\")))","v":3.1428571428571428},{"$f":"IF(SUM('2011 Survey responses'!CG125:CP125)<1,\"\",(AVERAGEIFS('2011 Survey responses'!CG125:CP125,'2011 Survey responses'!CG125:CP125,\">1\")))","v":4},{"$f":"IF(SUM('2011 Survey responses'!BX125:CF125)<1,\"\",(AVERAGEIFS('2011 Survey responses'!BX125:CF125,'2011 Survey responses'!BX125:CF125,\">1\")))","v":3.3333333333333335},{"$f":"IF(SUM('2011 Survey responses'!CH125:CP125)<1,\"\",(AVERAGEIFS('2011 Survey responses'!CH125:CP125,'2011 Survey responses'!CH125:CP125,\">1\")))","v":4.5},{"$f":"IF(SUM('2011 Survey responses'!BW125:CP125)<1,\"\",(AVERAGEIFS('2011 Survey responses'!BW125:CP125,'2011 Survey responses'!BW125:CP125,\">1\")))","v":3.5},{"$f":"IF(('2011 Survey responses'!BW125+'2011 Survey responses'!CG125)<2.1,\"\",(SUMIF('2011 Survey responses'!BW125,\">1\")+SUMIF('2011 Survey responses'!CG125,\">1\"))/(COUNTIF('2011 Survey responses'!BW125,\">1\")+COUNTIF('2011 Survey responses'!CG125,\">1\")))","v":2},{"$f":"IF(('2011 Survey responses'!BX125+'2011 Survey responses'!CH125)<2.1,\"\",(SUMIF('2011 Survey responses'!BX125,\">1\")+SUMIF('2011 Survey responses'!CH125,\">1\"))/(COUNTIF('2011 Survey responses'!BX125,\">1\")+COUNTIF('2011 Survey responses'!CH125,\">1\")))","v":2},{"$f":"IF(('2011 Survey responses'!BY125+'2011 Survey responses'!CI125)<2.1,\"\",(SUMIF('2011 Survey responses'!BY125,\">1\")+SUMIF('2011 Survey responses'!CI125,\">1\"))/(COUNTIF('2011 Survey responses'!BY125,\">1\")+COUNTIF('2011 Survey responses'!CI125,\">1\")))","v":4.5},{"$f":"IF('2011 Survey responses'!CQ125<0.5,\"\",'2011 Survey responses'!CQ125)","v":1},{"$f":"IF('2011 Survey responses'!CR125<0.5,\"\",'2011 Survey responses'!CR125)","v":5},{"$f":"IF('2011 Survey responses'!CS125<0.5,\"\",'2011 Survey responses'!CS125)","v":5},{"$f":"IF('2011 Survey responses'!CT125<0.5,\"\",'2011 Survey responses'!CT125)","v":5},{"$f":"IF('2011 Survey responses'!CU125<0.5,\"\",'2011 Survey responses'!CU125)","v":2},{"$f":"IF('2011 Survey responses'!CV125<0.5,\"\",'2011 Survey responses'!CV125)","v":2},{"$f":"IF(SUM('2011 Survey responses'!CW125:DL125)<1,\"\",(AVERAGE('2011 Survey responses'!CW125:DL125)))","v":1.25},{"$f":"IF(SUM('2011 Survey responses'!CW125:CZ125)<1,\"\",(AVERAGE('2011 Survey responses'!CW125:CZ125)))","v":1},{"$f":"IF(SUM('2011 Survey responses'!DA125:DD125)<1,\"\",(AVERAGE('2011 Survey responses'!DA125:DD125)))","v":1},{"$f":"IF(SUM('2011 Survey responses'!DE125:DH125)<1,\"\",(AVERAGE('2011 Survey responses'!DE125:DH125)))","v":2},{"$f":"IF(SUM('2011 Survey responses'!DI125:DL125)<1,\"\",(AVERAGE('2011 Survey responses'!DI125:DL125)))","v":1},{"$f":"IF(('2011 Survey responses'!CW125+'2011 Survey responses'!DA125+'2011 Survey responses'!DE125+'2011 Survey responses'!DI125)<1,\"\",AVERAGE('2011 Survey responses'!CW125,'2011 Survey responses'!DA125,'2011 Survey responses'!DE125,'2011 Survey responses'!DI125))","v":1.25},{"$f":"IF(('2011 Survey responses'!CX125+'2011 Survey responses'!DB125+'2011 Survey responses'!DF125+'2011 Survey responses'!DJ125)<1,\"\",AVERAGE('2011 Survey responses'!CX125,'2011 Survey responses'!DB125,'2011 Survey responses'!DF125,'2011 Survey responses'!DJ125))","v":1.25},{"$f":"IF(('2011 Survey responses'!CY125+'2011 Survey responses'!DC125+'2011 Survey responses'!DG125+'2011 Survey responses'!DK125)<1,\"\",AVERAGE('2011 Survey responses'!CY125,'2011 Survey responses'!DC125,'2011 Survey responses'!DG125,'2011 Survey responses'!DK125))","v":1.25},{"$f":"IF(('2011 Survey responses'!CZ125+'2011 Survey responses'!DD125+'2011 Survey responses'!DH125+'2011 Survey responses'!DL125)<1,\"\",AVERAGE('2011 Survey responses'!CZ125,'2011 Survey responses'!DD125,'2011 Survey responses'!DH125,'2011 Survey responses'!DL125))","v":1.25},{"$f":"IF('2011 Survey responses'!CW125<0.5,\"\",'2011 Survey responses'!CW125)","v":1},{"$f":"IF('2011 Survey responses'!CX125<0.5,\"\",'2011 Survey responses'!CX125)","v":1},{"$f":"IF('2011 Survey responses'!CY125<0.5,\"\",'2011 Survey responses'!CY125)","v":1},{"$f":"IF('2011 Survey responses'!CZ125<0.5,\"\",'2011 Survey responses'!CZ125)","v":1},{"$f":"IF('2011 Survey responses'!DA125<0.5,\"\",'2011 Survey responses'!DA125)","v":1},{"$f":"IF('2011 Survey responses'!DB125<0.5,\"\",'2011 Survey responses'!DB125)","v":1},{"$f":"IF('2011 Survey responses'!DC125<0.5,\"\",'2011 Survey responses'!DC125)","v":1},{"$f":"IF('2011 Survey responses'!DD125<0.5,\"\",'2011 Survey responses'!DD125)","v":1},{"$f":"IF('2011 Survey responses'!DE125<0.5,\"\",'2011 Survey responses'!DE125)","v":2},{"$f":"IF('2011 Survey responses'!DF125<0.5,\"\",'2011 Survey responses'!DF125)","v":2},{"$f":"IF('2011 Survey responses'!DG125<0.5,\"\",'2011 Survey responses'!DG125)","v":2},{"$f":"IF('2011 Survey responses'!DH125<0.5,\"\",'2011 Survey responses'!DH125)","v":2},{"$f":"IF('2011 Survey responses'!DI125<0.5,\"\",'2011 Survey responses'!DI125)","v":1},{"$f":"IF('2011 Survey responses'!DJ125<0.5,\"\",'2011 Survey responses'!DJ125)","v":1},{"$f":"IF('2011 Survey responses'!DK125<0.5,\"\",'2011 Survey responses'!DK125)","v":1},{"$f":"IF('2011 Survey responses'!DL125<0.5,\"\",'2011 Survey responses'!DL125)","v":1},{"$f":"IF('2011 Survey responses'!DU125=4,4,IF('2011 Survey responses'!DU125=5,4,\"\"))","v":4},{"$f":"IF('2011 Survey responses'!DV125=4,3,IF('2011 Survey responses'!DV125=5,3,\"\"))","v":3},2,{"$f":"IF(CQ125=2,CQ125,IF(CO125=4,CO125,IF(CP125=3,CP125,IF('2011 Survey responses'!GT125=1,1,\"\"))))","v":2},{"$f":"IF('2011 Survey responses'!DO125<0.5,\"\",'2011 Survey responses'!DO125)","v":4},{"$f":"IF('2011 Survey responses'!DP125<0.5,\"\",'2011 Survey responses'!DP125)","v":5},{"$f":"IF('2011 Survey responses'!DQ125<0.5,\"\",'2011 Survey responses'!DQ125)","v":4},{"$f":"IF('2011 Survey responses'!DR125<0.5,\"\",'2011 Survey responses'!DR125)","v":4},{"$f":"IF('2011 Survey responses'!DS125<0.5,\"\",'2011 Survey responses'!DS125)","v":3},{"$f":"IF('2011 Survey responses'!DT125<0.5,\"\",'2011 Survey responses'!DT125)","v":5},{"$f":"IF('2011 Survey responses'!DU125<0.5,\"\",'2011 Survey responses'!DU125)","v":5},{"$f":"IF('2011 Survey responses'!DV125<0.5,\"\",'2011 Survey responses'!DV125)","v":5},{"$f":"IF('2011 Survey responses'!DW125<0.5,\"\",'2011 Survey responses'!DW125)","v":4},{"$f":"IF('2011 Survey responses'!DX125<0.5,\"\",'2011 Survey responses'!DX125)","v":5},{"$f":"IF('2011 Survey responses'!DY125<0.5,\"\",'2011 Survey responses'!DY125)","v":5},{"$f":"IF('2011 Survey responses'!DZ125<0.5,\"\",'2011 Survey responses'!DZ125)","v":5},{"$f":"IF('2011 Survey responses'!EA125<0.5,\"\",'2011 Survey responses'!EA125)","v":5},{"$f":"IF('2011 Survey responses'!EB125<0.5,\"\",'2011 Survey responses'!EB125)","v":5},{"$f":"IF('2011 Survey responses'!EC125<0.5,\"\",'2011 Survey responses'!EC125)","v":5},{"$f":"IF('2011 Survey responses'!ED125<0.5,\"\",'2011 Survey responses'!ED125)","v":4},{"$f":"IF('2011 Survey responses'!EE125<0.5,\"\",'2011 Survey responses'!EE125)","v":2},{"$f":"IF('2011 Survey responses'!EF125<0.5,\"\",'2011 Survey responses'!EF125)","v":5},{"$f":"IF('2011 Survey responses'!EG125<0.5,\"\",'2011 Survey responses'!EG125)","v":5},{"$f":"IF('2011 Survey responses'!EH125<0.5,\"\",'2011 Survey responses'!EH125)","v":5},{"$f":"IF('2011 Survey responses'!EI125<0.5,\"\",'2011 Survey responses'!EI125)","v":5},{"$f":"IF('2011 Survey responses'!EJ125<0.5,\"\",'2011 Survey responses'!EJ125)","v":3},{"$f":"IF('2011 Survey responses'!EK125<0.5,\"\",'2011 Survey responses'!EK125)","v":4},{"$f":"IF('2011 Survey responses'!EL125<0.5,\"\",'2011 Survey responses'!EL125)","v":4},{"$f":"IF('2011 Survey responses'!EM125<0.5,\"\",'2011 Survey responses'!EM125)","v":5},{"$f":"IF('2011 Survey responses'!EN125<0.5,\"\",'2011 Survey responses'!EN125)","v":5},{"$f":"IF('2011 Survey responses'!EO125<0.5,\"\",'2011 Survey responses'!EO125)","v":3},{"$f":"IF('2011 Survey responses'!EP125<0.5,\"\",'2011 Survey responses'!EP125)","v":3},{"$f":"IF(('2011 Survey responses'!EW125+'2011 Survey responses'!EX125)>=2,AVERAGE('2011 Survey responses'!EW125,'2011 Survey responses'!EY125),\"\")","v":5},{"$f":"IF('2011 Survey responses'!EX125<0.5,\"\",'2011 Survey responses'!EX125)","v":5},{"$f":"IF('2011 Survey responses'!EZ125<0.5,\"\",'2011 Survey responses'!EZ125)","v":4},{"$f":"IF('2011 Survey responses'!FB125<0.5,\"\",'2011 Survey responses'!FB125)","v":4},{"$f":"IF('2011 Survey responses'!FD125<0.5,\"\",'2011 Survey responses'!FD125)","v":4},{"$f":"IF('2011 Survey responses'!FC125<0.5,\"\",'2011 Survey responses'!FC125)","v":4},{"$f":"IF(('2011 Survey responses'!EM125+'2011 Survey responses'!EN125)>=2,AVERAGE('2011 Survey responses'!EM125,'2011 Survey responses'!EN125),\"\")","v":5},{"$f":"IF('2011 Survey responses'!ES125<0.5,\"\",'2011 Survey responses'!ES125)","v":5},{"$f":"IF(('2011 Survey responses'!ET125+'2011 Survey responses'!EU125)>=2,AVERAGE('2011 Survey responses'!ET125,'2011 Survey responses'!EU125),\"\")","v":5},{"$f":"IF('2011 Survey responses'!EV125<0.5,\"\",'2011 Survey responses'!EV125)","v":1},{"$f":"IF('2011 Survey responses'!FA125<0.5,\"\",'2011 Survey responses'!FA125)","v":4},{"$f":"IF('2011 Survey responses'!ER125<0.5,\"\",'2011 Survey responses'!ER125)","v":1},{"$f":"IF(('2011 Survey responses'!EO125+'2011 Survey responses'!EP125)>=2,AVERAGE('2011 Survey responses'!EO125,'2011 Survey responses'!EP125),\"\")","v":3},{"$f":"IF('2011 Survey responses'!EQ125<0.5,\"\",'2011 Survey responses'!EQ125)","v":2},{"$f":"IF('2011 Survey responses'!ET125<0.5,\"\",'2011 Survey responses'!ET125)","v":5},{"$f":"IF('2011 Survey responses'!EU125<0.5,\"\",'2011 Survey responses'!EU125)","v":5},{"$f":"IF('2011 Survey responses'!EW125<0.5,\"\",'2011 Survey responses'!EW125)","v":5},{"$f":"IF('2011 Survey responses'!EY125<0.5,\"\",'2011 Survey responses'!EY125)","v":5},{"$f":"IF('2011 Survey responses'!FU125<0.5,\"\",'2011 Survey responses'!FU125)","v":4},{"$f":"IF(('2011 Survey responses'!FL125+'2011 Survey responses'!FM125)>=2,AVERAGE('2011 Survey responses'!FL125,'2011 Survey responses'!FM125),\"\")","v":4},{"$f":"IF(('2011 Survey responses'!FO125+'2011 Survey responses'!FQ125)>=2,AVERAGE('2011 Survey responses'!FO125,'2011 Survey responses'!FQ125),\"\")","v":4},{"$f":"IF('2011 Survey responses'!FJ125<0.5,\"\",'2011 Survey responses'!FJ125)","v":5},{"$f":"IF('2011 Survey responses'!FT125<0.5,\"\",'2011 Survey responses'!FT125)","v":5},{"$f":"IF('2011 Survey responses'!FR125<0.5,\"\",'2011 Survey responses'!FR125)","v":3},{"$f":"IF('2011 Survey responses'!FK125<0.5,\"\",'2011 Survey responses'!FK125)","v":3},{"$f":"IF('2011 Survey responses'!FP125<0.5,\"\",'2011 Survey responses'!FP125)","v":3},{"$f":"IF('2011 Survey responses'!FN125<0.5,\"\",'2011 Survey responses'!FN125)","v":5},{"$f":"IF(('2011 Survey responses'!FE125+'2011 Survey responses'!FF125)>=2,AVERAGE('2011 Survey responses'!FE125,'2011 Survey responses'!FF125),\"\")","v":4},{"$f":"IF('2011 Survey responses'!FS125<0.5,\"\",'2011 Survey responses'!FS125)","v":3},{"$f":"IF('2011 Survey responses'!FV125<0.5,\"\",'2011 Survey responses'!FV125)","v":4},{"$f":"IF(('2011 Survey responses'!FG125+'2011 Survey responses'!FH125)>=2,AVERAGE('2011 Survey responses'!FG125,'2011 Survey responses'!FH125),\"\")","v":3},{"$f":"IF('2011 Survey responses'!FI125<0.5,\"\",'2011 Survey responses'!FI125)","v":2},{"$f":"IF('2011 Survey responses'!FE125<0.5,\"\",'2011 Survey responses'!FE125)","v":4},{"$f":"IF('2011 Survey responses'!FF125<0.5,\"\",'2011 Survey responses'!FF125)","v":4},{"$f":"IF('2011 Survey responses'!FG125<0.5,\"\",'2011 Survey responses'!FG125)","v":3},{"$f":"IF('2011 Survey responses'!FH125<0.5,\"\",'2011 Survey responses'!FH125)","v":3},{"$f":"IF('2011 Survey responses'!FL125<0.5,\"\",'2011 Survey responses'!FL125)","v":4},{"$f":"IF('2011 Survey responses'!FM125<0.5,\"\",'2011 Survey responses'!FM125)","v":4},{"$f":"IF('2011 Survey responses'!FO125<0.5,\"\",'2011 Survey responses'!FO125)","v":5},{"$f":"IF('2011 Survey responses'!FQ125<0.5,\"\",'2011 Survey responses'!FQ125)","v":3}]
["Niger",{"$f":"IF(SUM(F126)<1,\"\",AVERAGEIF('2011 Survey responses'!B126:CP126,\">1\"))","v":""},{"$f":"IF(SUM(F126)<1,\"\",AVERAGEIF('2011 Survey responses'!B126:AO126,\">1\"))","v":""},{"$f":"IF(SUM(F126)<1,\"\",AVERAGEIF('2011 Survey responses'!B126:BV126,\">1\"))","v":""},{"$f":"IF(SUM(F126)<1,\"\",AVERAGEIF('2011 Survey responses'!V126:BV126,\">1\"))","v":""},{"$f":"IF(SUM('2011 Survey responses'!B126:U126)<1,\"\",(AVERAGEIFS('2011 Survey responses'!B126:U126,'2011 Survey responses'!B126:U126,\">1\")))","v":""},{"$f":"IF(SUM('2011 Survey responses'!B126:H126)<1,\"\",(AVERAGEIFS('2011 Survey responses'!B126:H126,'2011 Survey responses'!B126:H126,\">1\")))","v":""},{"$f":"IF(SUM('2011 Survey responses'!I126:S126)<1,\"\",(AVERAGEIFS('2011 Survey responses'!I126:S126,'2011 Survey responses'!I126:S126,\">1\")))","v":""},{"$f":"IF(SUM('2011 Survey responses'!T126:U126)<2.1,\"\",(AVERAGEIFS('2011 Survey responses'!T126:U126,'2011 Survey responses'!T126:U126,\">1\")))","v":""},{"$f":"IF(SUM('2011 Survey responses'!B126:C126)<2.1,\"\",((SUMIF('2011 Survey responses'!B126:C126,\">1\")+SUMIF('2011 Survey responses'!F126,\">1\"))/(COUNTIF('2011 Survey responses'!B126:C126,\">1\")+COUNTIF('2011 Survey responses'!F126,\">1\"))))","v":""},{"$f":"IF(SUM('2011 Survey responses'!D126:E126)<2.1,\"\",(AVERAGEIFS('2011 Survey responses'!D126:E126,'2011 Survey responses'!D126:E126,\">1\")))","v":""},{"$f":"IF(('2011 Survey responses'!B126+'2011 Survey responses'!D126)<2.1,\"\",((SUMIF('2011 Survey responses'!B126,\">1\")+SUMIF('2011 Survey responses'!D126,\">1\")+SUMIF('2011 Survey responses'!F126,\">1\")+SUMIF('2011 Survey responses'!K126,\">1\"))/(COUNTIF('2011 Survey responses'!B126,\">1\")+COUNTIF('2011 Survey responses'!D126,\">1\")+COUNTIF('2011 Survey responses'!F126,\">1\")+COUNTIF('2011 Survey responses'!K126,\">1\"))))","v":""},{"$f":"IF(SUM('2011 Survey responses'!G126:H126)<2.1,\"\",(AVERAGEIFS('2011 Survey responses'!G126:H126,'2011 Survey responses'!G126:H126,\">1\")))","v":""},{"$f":"IF(SUM('2011 Survey responses'!F126:G126)<1.5,\"\",MAX('2011 Survey responses'!F126,'2011 Survey responses'!G126))","v":""},{"$f":"IF(SUM('2011 Survey responses'!G126:H126)<1,\"\",MAX('2011 Survey responses'!G126,'2011 Survey responses'!H126))","v":""},{"$f":"IF(SUM('2011 Survey responses'!I126:L126)<4.1,\"\",(AVERAGEIFS('2011 Survey responses'!I126:L126,'2011 Survey responses'!I126:L126,\">1\")))","v":""},{"$f":"IF(SUM('2011 Survey responses'!M126:S126)<4.1,\"\",(AVERAGEIFS('2011 Survey responses'!M126:S126,'2011 Survey responses'!M126:S126,\">1\")))","v":""},{"$f":"IF(SUM('2011 Survey responses'!T126:U126)<2.1,\"\",(AVERAGEIFS('2011 Survey responses'!T126:U126,'2011 Survey responses'!T126:U126,\">1\")))","v":""},{"$f":"IF(SUM('2011 Survey responses'!V126:AO126)<1,\"\",(AVERAGEIFS('2011 Survey responses'!V126:AO126,'2011 Survey responses'!V126:AO126,\">1\")))","v":""},{"$f":"IF(SUM('2011 Survey responses'!V126:AA126)<1,\"\",(AVERAGEIFS('2011 Survey responses'!V126:AA126,'2011 Survey responses'!V126:AA126,\">1\")))","v":""},{"$f":"IF(SUM('2011 Survey responses'!AB126:AH126)<1,\"\",(AVERAGEIFS('2011 Survey responses'!AB126:AH126,'2011 Survey responses'!AB126:AH126,\">1\")))","v":""},{"$f":"IF(SUM('2011 Survey responses'!AI126:AO126)<1,\"\",(AVERAGEIFS('2011 Survey responses'!AI126:AO126,'2011 Survey responses'!AI126:AO126,\">1\")))","v":""},{"$f":"IF(('2011 Survey responses'!Y126+'2011 Survey responses'!AI126+'2011 Survey responses'!AK126)<3.1,\"\",((SUMIF('2011 Survey responses'!Y126,\">1\")+SUMIF('2011 Survey responses'!AI126,\">1\")+SUMIF('2011 Survey responses'!AK126,\">1\")+SUMIF('2011 Survey responses'!AM126,\">1\"))/(COUNTIF('2011 Survey responses'!Y126,\">1\")+COUNTIF('2011 Survey responses'!AI126,\">1\")+COUNTIF('2011 Survey responses'!AK126,\">1\")+COUNTIF('2011 Survey responses'!AM126,\">1\"))))","v":""},{"$f":"IF(('2011 Survey responses'!W126)<1.1,\"\",('2011 Survey responses'!W126))","v":""},{"$f":"IF(('2011 Survey responses'!Y126)<1.1,\"\",('2011 Survey responses'!Y126))","v":""},{"$f":"IF(('2011 Survey responses'!Z126)<1.1,\"\",('2011 Survey responses'!Z126))","v":""},{"$f":"IF(('2011 Survey responses'!V126+'2011 Survey responses'!X126+'2011 Survey responses'!AA126)<3.1,\"\",((SUMIF('2011 Survey responses'!V126,\">1\")+SUMIF('2011 Survey responses'!X126,\">1\")+SUMIF('2011 Survey responses'!AA126,\">1\"))/(COUNTIF('2011 Survey responses'!V126,\">1\")+COUNTIF('2011 Survey responses'!X126,\">1\")+COUNTIF('2011 Survey responses'!AA126,\">1\"))))","v":""},{"$f":"IF(('2011 Survey responses'!V126+'2011 Survey responses'!Y126+'2011 Survey responses'!AA126)<3.1,\"\",((SUMIF('2011 Survey responses'!V126,\">1\")+SUMIF('2011 Survey responses'!Y126,\">1\")+SUMIF('2011 Survey responses'!AA126,\">1\"))/(COUNTIF('2011 Survey responses'!V126,\">1\")+COUNTIF('2011 Survey responses'!Y126,\">1\")+COUNTIF('2011 Survey responses'!AA126,\">1\"))))","v":""},{"$f":"IF(SUM('2011 Survey responses'!AB126:AH126)<1,\"\",(AVERAGEIFS('2011 Survey responses'!AB126:AH126,'2011 Survey responses'!AB126:AH126,\">1\")))","v":""},{"$f":"IF(SUM('2011 Survey responses'!AI126:AO126)<7.1,\"\",(AVERAGEIFS('2011 Survey responses'!AI126:AO126,'2011 Survey responses'!AI126:AO126,\">1\")))","v":""},{"$f":"IF(('2011 Survey responses'!AH126)<1.1,\"\",('2011 Survey responses'!AH126))","v":""},{"$f":"IF(SUM('2011 Survey responses'!AP126:BV126)<1,\"\",(AVERAGEIFS('2011 Survey responses'!AP126:BV126,'2011 Survey responses'!AP126:BV126,\">1\")))","v":""},{"$f":"IF(SUM('2011 Survey responses'!AP126:AS126)<4.1,\"\",(AVERAGEIFS('2011 Survey responses'!AP126:AS126,'2011 Survey responses'!AP126:AS126,\">1\")))","v":""},{"$f":"IF(SUM('2011 Survey responses'!AT126:BF126)<1,\"\",(AVERAGEIFS('2011 Survey responses'!AT126:BF126,'2011 Survey responses'!AT126:BF126,\">1\")))","v":""},{"$f":"IF(SUM('2011 Survey responses'!BG126:BO126)<1,\"\",(AVERAGEIFS('2011 Survey responses'!BG126:BO126,'2011 Survey responses'!BG126:BO126,\">1\")))","v":""},{"$f":"IF(SUM('2011 Survey responses'!BP126:BS126)<1,\"\",(AVERAGEIFS('2011 Survey responses'!BP126:BS126,'2011 Survey responses'!BP126:BS126,\">1\")))","v":""},{"$f":"IF(SUM('2011 Survey responses'!BT126:BV126)<3.1,\"\",(AVERAGEIFS('2011 Survey responses'!BT126:BV126,'2011 Survey responses'!BT126:BV126,\">1\")))","v":""},{"$f":"IF(('2011 Survey responses'!AQ126+'2011 Survey responses'!AR126+'2011 Survey responses'!BG126)<3.1,\"\",((SUMIF('2011 Survey responses'!AQ126,\">1\")+SUMIF('2011 Survey responses'!AR126,\">1\")+SUMIF('2011 Survey responses'!BG126,\">1\"))/(COUNTIF('2011 Survey responses'!AQ126,\">1\")+COUNTIF('2011 Survey responses'!AR126,\">1\")+COUNTIF('2011 Survey responses'!BG126,\">1\"))))","v":""},{"$f":"IF(SUM('2011 Survey responses'!AP126:AS126)<4.1,\"\",(AVERAGEIFS('2011 Survey responses'!AP126:AS126,'2011 Survey responses'!AP126:AS126,\">1\")))","v":""},{"$f":"IF(('2011 Survey responses'!AU126+'2011 Survey responses'!AX126+'2011 Survey responses'!BA126+'2011 Survey responses'!BC126+'2011 Survey responses'!BD126)<5.1,\"\",(SUMIF('2011 Survey responses'!AU126,\">1\")+SUMIF('2011 Survey responses'!AX126,\">1\")+SUMIF('2011 Survey responses'!BA126,\">1\")+SUMIF('2011 Survey responses'!BC126,\">1\")+SUMIF('2011 Survey responses'!BD126,\">1\"))/(COUNTIF('2011 Survey responses'!AU126,\">1\")+COUNTIF('2011 Survey responses'!AX126,\">1\")+COUNTIF('2011 Survey responses'!BA126,\">1\")+COUNTIF('2011 Survey responses'!BC126,\">1\")+COUNTIF('2011 Survey responses'!BD126,\">1\")))","v":""},{"$f":"IF(('2011 Survey responses'!AT126)<1.1,\"\",('2011 Survey responses'!AT126))","v":""},{"$f":"IF(SUM('2011 Survey responses'!AV126:AW126)<2.1,\"\",(AVERAGEIFS('2011 Survey responses'!AV126:AW126,'2011 Survey responses'!AV126:AW126,\">1\")))","v":""},{"$f":"IF(('2011 Survey responses'!AW126+'2011 Survey responses'!AY126)<2.1,\"\",(SUMIF('2011 Survey responses'!AW126,\">1\")+SUMIF('2011 Survey responses'!AY126,\">1\"))/(COUNTIF('2011 Survey responses'!AW126,\">1\")+COUNTIF('2011 Survey responses'!AY126,\">1\")))","v":""},{"$f":"IF(('2011 Survey responses'!AZ126)<1.1,\"\",('2011 Survey responses'!AZ126))","v":""},null,null,null,null,{"$f":"IF(('2011 Survey responses'!BE126)<1.1,\"\",('2011 Survey responses'!BE126))","v":""},{"$f":"IF(('2011 Survey responses'!AY126+'2011 Survey responses'!BB126+'2011 Survey responses'!BF126)<3.1,\"\",(SUMIF('2011 Survey responses'!AY126,\">1\")+SUMIF('2011 Survey responses'!BB126,\">1\")+SUMIF('2011 Survey responses'!BF126,\">1\"))/(COUNTIF('2011 Survey responses'!AY126,\">1\")+COUNTIF('2011 Survey responses'!BB126,\">1\")+COUNTIF('2011 Survey responses'!BF126,\">1\")))","v":""},"",{"$f":"IF(SUM('2011 Survey responses'!BT126:BV126)<3.1,\"\",(AVERAGEIFS('2011 Survey responses'!BT126:BV126,'2011 Survey responses'!BT126:BV126,\">1\")))","v":""},{"$f":"IF(SUM('2011 Survey responses'!BW126:CP126)<1,\"\",(AVERAGEIFS('2011 Survey responses'!BW126:CP126,'2011 Survey responses'!BW126:CP126,\">1\")))","v":""},{"$f":"IF(SUM('2011 Survey responses'!BW126:CF126)<1,\"\",(AVERAGEIFS('2011 Survey responses'!BW126:CF126,'2011 Survey responses'!BW126:CF126,\">1\")))","v":""},{"$f":"IF(SUM('2011 Survey responses'!CG126:CP126)<1,\"\",(AVERAGEIFS('2011 Survey responses'!CG126:CP126,'2011 Survey responses'!CG126:CP126,\">1\")))","v":""},{"$f":"IF(SUM('2011 Survey responses'!BX126:CF126)<1,\"\",(AVERAGEIFS('2011 Survey responses'!BX126:CF126,'2011 Survey responses'!BX126:CF126,\">1\")))","v":""},{"$f":"IF(SUM('2011 Survey responses'!CH126:CP126)<1,\"\",(AVERAGEIFS('2011 Survey responses'!CH126:CP126,'2011 Survey responses'!CH126:CP126,\">1\")))","v":""},{"$f":"IF(SUM('2011 Survey responses'!BW126:CP126)<1,\"\",(AVERAGEIFS('2011 Survey responses'!BW126:CP126,'2011 Survey responses'!BW126:CP126,\">1\")))","v":""},{"$f":"IF(('2011 Survey responses'!BW126+'2011 Survey responses'!CG126)<2.1,\"\",(SUMIF('2011 Survey responses'!BW126,\">1\")+SUMIF('2011 Survey responses'!CG126,\">1\"))/(COUNTIF('2011 Survey responses'!BW126,\">1\")+COUNTIF('2011 Survey responses'!CG126,\">1\")))","v":""},{"$f":"IF(('2011 Survey responses'!BX126+'2011 Survey responses'!CH126)<2.1,\"\",(SUMIF('2011 Survey responses'!BX126,\">1\")+SUMIF('2011 Survey responses'!CH126,\">1\"))/(COUNTIF('2011 Survey responses'!BX126,\">1\")+COUNTIF('2011 Survey responses'!CH126,\">1\")))","v":""},{"$f":"IF(('2011 Survey responses'!BY126+'2011 Survey responses'!CI126)<2.1,\"\",(SUMIF('2011 Survey responses'!BY126,\">1\")+SUMIF('2011 Survey responses'!CI126,\">1\"))/(COUNTIF('2011 Survey responses'!BY126,\">1\")+COUNTIF('2011 Survey responses'!CI126,\">1\")))","v":""},{"$f":"IF('2011 Survey responses'!CQ126<0.5,\"\",'2011 Survey responses'!CQ126)","v":""},{"$f":"IF('2011 Survey responses'!CR126<0.5,\"\",'2011 Survey responses'!CR126)","v":""},{"$f":"IF('2011 Survey responses'!CS126<0.5,\"\",'2011 Survey responses'!CS126)","v":""},{"$f":"IF('2011 Survey responses'!CT126<0.5,\"\",'2011 Survey responses'!CT126)","v":""},{"$f":"IF('2011 Survey responses'!CU126<0.5,\"\",'2011 Survey responses'!CU126)","v":""},{"$f":"IF('2011 Survey responses'!CV126<0.5,\"\",'2011 Survey responses'!CV126)","v":""},{"$f":"IF(SUM('2011 Survey responses'!CW126:DL126)<1,\"\",(AVERAGE('2011 Survey responses'!CW126:DL126)))","v":""},{"$f":"IF(SUM('2011 Survey responses'!CW126:CZ126)<1,\"\",(AVERAGE('2011 Survey responses'!CW126:CZ126)))","v":""},{"$f":"IF(SUM('2011 Survey responses'!DA126:DD126)<1,\"\",(AVERAGE('2011 Survey responses'!DA126:DD126)))","v":""},{"$f":"IF(SUM('2011 Survey responses'!DE126:DH126)<1,\"\",(AVERAGE('2011 Survey responses'!DE126:DH126)))","v":""},{"$f":"IF(SUM('2011 Survey responses'!DI126:DL126)<1,\"\",(AVERAGE('2011 Survey responses'!DI126:DL126)))","v":""},{"$f":"IF(('2011 Survey responses'!CW126+'2011 Survey responses'!DA126+'2011 Survey responses'!DE126+'2011 Survey responses'!DI126)<1,\"\",AVERAGE('2011 Survey responses'!CW126,'2011 Survey responses'!DA126,'2011 Survey responses'!DE126,'2011 Survey responses'!DI126))","v":""},{"$f":"IF(('2011 Survey responses'!CX126+'2011 Survey responses'!DB126+'2011 Survey responses'!DF126+'2011 Survey responses'!DJ126)<1,\"\",AVERAGE('2011 Survey responses'!CX126,'2011 Survey responses'!DB126,'2011 Survey responses'!DF126,'2011 Survey responses'!DJ126))","v":""},{"$f":"IF(('2011 Survey responses'!CY126+'2011 Survey responses'!DC126+'2011 Survey responses'!DG126+'2011 Survey responses'!DK126)<1,\"\",AVERAGE('2011 Survey responses'!CY126,'2011 Survey responses'!DC126,'2011 Survey responses'!DG126,'2011 Survey responses'!DK126))","v":""},{"$f":"IF(('2011 Survey responses'!CZ126+'2011 Survey responses'!DD126+'2011 Survey responses'!DH126+'2011 Survey responses'!DL126)<1,\"\",AVERAGE('2011 Survey responses'!CZ126,'2011 Survey responses'!DD126,'2011 Survey responses'!DH126,'2011 Survey responses'!DL126))","v":""},{"$f":"IF('2011 Survey responses'!CW126<0.5,\"\",'2011 Survey responses'!CW126)","v":""},{"$f":"IF('2011 Survey responses'!CX126<0.5,\"\",'2011 Survey responses'!CX126)","v":""},{"$f":"IF('2011 Survey responses'!CY126<0.5,\"\",'2011 Survey responses'!CY126)","v":""},{"$f":"IF('2011 Survey responses'!CZ126<0.5,\"\",'2011 Survey responses'!CZ126)","v":""},{"$f":"IF('2011 Survey responses'!DA126<0.5,\"\",'2011 Survey responses'!DA126)","v":""},{"$f":"IF('2011 Survey responses'!DB126<0.5,\"\",'2011 Survey responses'!DB126)","v":""},{"$f":"IF('2011 Survey responses'!DC126<0.5,\"\",'2011 Survey responses'!DC126)","v":""},{"$f":"IF('2011 Survey responses'!DD126<0.5,\"\",'2011 Survey responses'!DD126)","v":""},{"$f":"IF('2011 Survey responses'!DE126<0.5,\"\",'2011 Survey responses'!DE126)","v":""},{"$f":"IF('2011 Survey responses'!DF126<0.5,\"\",'2011 Survey responses'!DF126)","v":""},{"$f":"IF('2011 Survey responses'!DG126<0.5,\"\",'2011 Survey responses'!DG126)","v":""},{"$f":"IF('2011 Survey responses'!DH126<0.5,\"\",'2011 Survey responses'!DH126)","v":""},{"$f":"IF('2011 Survey responses'!DI126<0.5,\"\",'2011 Survey responses'!DI126)","v":""},{"$f":"IF('2011 Survey responses'!DJ126<0.5,\"\",'2011 Survey responses'!DJ126)","v":""},{"$f":"IF('2011 Survey responses'!DK126<0.5,\"\",'2011 Survey responses'!DK126)","v":""},{"$f":"IF('2011 Survey responses'!DL126<0.5,\"\",'2011 Survey responses'!DL126)","v":""},{"$f":"IF('2011 Survey responses'!DU126=4,4,IF('2011 Survey responses'!DU126=5,4,\"\"))","v":""},{"$f":"IF('2011 Survey responses'!DV126=4,3,IF('2011 Survey responses'!DV126=5,3,\"\"))","v":""},"",{"$f":"IF(CQ126=2,CQ126,IF(CO126=4,CO126,IF(CP126=3,CP126,IF('2011 Survey responses'!GT126=1,1,\"\"))))","v":""},{"$f":"IF('2011 Survey responses'!DO126<0.5,\"\",'2011 Survey responses'!DO126)","v":""},{"$f":"IF('2011 Survey responses'!DP126<0.5,\"\",'2011 Survey responses'!DP126)","v":""},{"$f":"IF('2011 Survey responses'!DQ126<0.5,\"\",'2011 Survey responses'!DQ126)","v":""},{"$f":"IF('2011 Survey responses'!DR126<0.5,\"\",'2011 Survey responses'!DR126)","v":""},{"$f":"IF('2011 Survey responses'!DS126<0.5,\"\",'2011 Survey responses'!DS126)","v":""},{"$f":"IF('2011 Survey responses'!DT126<0.5,\"\",'2011 Survey responses'!DT126)","v":""},{"$f":"IF('2011 Survey responses'!DU126<0.5,\"\",'2011 Survey responses'!DU126)","v":""},{"$f":"IF('2011 Survey responses'!DV126<0.5,\"\",'2011 Survey responses'!DV126)","v":""},{"$f":"IF('2011 Survey responses'!DW126<0.5,\"\",'2011 Survey responses'!DW126)","v":""},{"$f":"IF('2011 Survey responses'!DX126<0.5,\"\",'2011 Survey responses'!DX126)","v":""},{"$f":"IF('2011 Survey responses'!DY126<0.5,\"\",'2011 Survey responses'!DY126)","v":""},{"$f":"IF('2011 Survey responses'!DZ126<0.5,\"\",'2011 Survey responses'!DZ126)","v":""},{"$f":"IF('2011 Survey responses'!EA126<0.5,\"\",'2011 Survey responses'!EA126)","v":""},{"$f":"IF('2011 Survey responses'!EB126<0.5,\"\",'2011 Survey responses'!EB126)","v":""},{"$f":"IF('2011 Survey responses'!EC126<0.5,\"\",'2011 Survey responses'!EC126)","v":""},{"$f":"IF('2011 Survey responses'!ED126<0.5,\"\",'2011 Survey responses'!ED126)","v":""},{"$f":"IF('2011 Survey responses'!EE126<0.5,\"\",'2011 Survey responses'!EE126)","v":""},{"$f":"IF('2011 Survey responses'!EF126<0.5,\"\",'2011 Survey responses'!EF126)","v":""},{"$f":"IF('2011 Survey responses'!EG126<0.5,\"\",'2011 Survey responses'!EG126)","v":""},{"$f":"IF('2011 Survey responses'!EH126<0.5,\"\",'2011 Survey responses'!EH126)","v":""},{"$f":"IF('2011 Survey responses'!EI126<0.5,\"\",'2011 Survey responses'!EI126)","v":""},{"$f":"IF('2011 Survey responses'!EJ126<0.5,\"\",'2011 Survey responses'!EJ126)","v":""},{"$f":"IF('2011 Survey responses'!EK126<0.5,\"\",'2011 Survey responses'!EK126)","v":""},{"$f":"IF('2011 Survey responses'!EL126<0.5,\"\",'2011 Survey responses'!EL126)","v":""},{"$f":"IF('2011 Survey responses'!EM126<0.5,\"\",'2011 Survey responses'!EM126)","v":""},{"$f":"IF('2011 Survey responses'!EN126<0.5,\"\",'2011 Survey responses'!EN126)","v":""},{"$f":"IF('2011 Survey responses'!EO126<0.5,\"\",'2011 Survey responses'!EO126)","v":""},{"$f":"IF('2011 Survey responses'!EP126<0.5,\"\",'2011 Survey responses'!EP126)","v":""},{"$f":"IF(('2011 Survey responses'!EW126+'2011 Survey responses'!EX126)>=2,AVERAGE('2011 Survey responses'!EW126,'2011 Survey responses'!EY126),\"\")","v":""},{"$f":"IF('2011 Survey responses'!EX126<0.5,\"\",'2011 Survey responses'!EX126)","v":""},{"$f":"IF('2011 Survey responses'!EZ126<0.5,\"\",'2011 Survey responses'!EZ126)","v":""},{"$f":"IF('2011 Survey responses'!FB126<0.5,\"\",'2011 Survey responses'!FB126)","v":""},{"$f":"IF('2011 Survey responses'!FD126<0.5,\"\",'2011 Survey responses'!FD126)","v":""},{"$f":"IF('2011 Survey responses'!FC126<0.5,\"\",'2011 Survey responses'!FC126)","v":""},{"$f":"IF(('2011 Survey responses'!EM126+'2011 Survey responses'!EN126)>=2,AVERAGE('2011 Survey responses'!EM126,'2011 Survey responses'!EN126),\"\")","v":""},{"$f":"IF('2011 Survey responses'!ES126<0.5,\"\",'2011 Survey responses'!ES126)","v":""},{"$f":"IF(('2011 Survey responses'!ET126+'2011 Survey responses'!EU126)>=2,AVERAGE('2011 Survey responses'!ET126,'2011 Survey responses'!EU126),\"\")","v":""},{"$f":"IF('2011 Survey responses'!EV126<0.5,\"\",'2011 Survey responses'!EV126)","v":""},{"$f":"IF('2011 Survey responses'!FA126<0.5,\"\",'2011 Survey responses'!FA126)","v":""},{"$f":"IF('2011 Survey responses'!ER126<0.5,\"\",'2011 Survey responses'!ER126)","v":""},{"$f":"IF(('2011 Survey responses'!EO126+'2011 Survey responses'!EP126)>=2,AVERAGE('2011 Survey responses'!EO126,'2011 Survey responses'!EP126),\"\")","v":""},{"$f":"IF('2011 Survey responses'!EQ126<0.5,\"\",'2011 Survey responses'!EQ126)","v":""},{"$f":"IF('2011 Survey responses'!ET126<0.5,\"\",'2011 Survey responses'!ET126)","v":""},{"$f":"IF('2011 Survey responses'!EU126<0.5,\"\",'2011 Survey responses'!EU126)","v":""},{"$f":"IF('2011 Survey responses'!EW126<0.5,\"\",'2011 Survey responses'!EW126)","v":""},{"$f":"IF('2011 Survey responses'!EY126<0.5,\"\",'2011 Survey responses'!EY126)","v":""},{"$f":"IF('2011 Survey responses'!FU126<0.5,\"\",'2011 Survey responses'!FU126)","v":""},{"$f":"IF(('2011 Survey responses'!FL126+'2011 Survey responses'!FM126)>=2,AVERAGE('2011 Survey responses'!FL126,'2011 Survey responses'!FM126),\"\")","v":""},{"$f":"IF(('2011 Survey responses'!FO126+'2011 Survey responses'!FQ126)>=2,AVERAGE('2011 Survey responses'!FO126,'2011 Survey responses'!FQ126),\"\")","v":""},{"$f":"IF('2011 Survey responses'!FJ126<0.5,\"\",'2011 Survey responses'!FJ126)","v":""},{"$f":"IF('2011 Survey responses'!FT126<0.5,\"\",'2011 Survey responses'!FT126)","v":""},{"$f":"IF('2011 Survey responses'!FR126<0.5,\"\",'2011 Survey responses'!FR126)","v":""},{"$f":"IF('2011 Survey responses'!FK126<0.5,\"\",'2011 Survey responses'!FK126)","v":""},{"$f":"IF('2011 Survey responses'!FP126<0.5,\"\",'2011 Survey responses'!FP126)","v":""},{"$f":"IF('2011 Survey responses'!FN126<0.5,\"\",'2011 Survey responses'!FN126)","v":""},{"$f":"IF(('2011 Survey responses'!FE126+'2011 Survey responses'!FF126)>=2,AVERAGE('2011 Survey responses'!FE126,'2011 Survey responses'!FF126),\"\")","v":""},{"$f":"IF('2011 Survey responses'!FS126<0.5,\"\",'2011 Survey responses'!FS126)","v":""},{"$f":"IF('2011 Survey responses'!FV126<0.5,\"\",'2011 Survey responses'!FV126)","v":""},{"$f":"IF(('2011 Survey responses'!FG126+'2011 Survey responses'!FH126)>=2,AVERAGE('2011 Survey responses'!FG126,'2011 Survey responses'!FH126),\"\")","v":""},{"$f":"IF('2011 Survey responses'!FI126<0.5,\"\",'2011 Survey responses'!FI126)","v":""},{"$f":"IF('2011 Survey responses'!FE126<0.5,\"\",'2011 Survey responses'!FE126)","v":""},{"$f":"IF('2011 Survey responses'!FF126<0.5,\"\",'2011 Survey responses'!FF126)","v":""},{"$f":"IF('2011 Survey responses'!FG126<0.5,\"\",'2011 Survey responses'!FG126)","v":""},{"$f":"IF('2011 Survey responses'!FH126<0.5,\"\",'2011 Survey responses'!FH126)","v":""},{"$f":"IF('2011 Survey responses'!FL126<0.5,\"\",'2011 Survey responses'!FL126)","v":""},{"$f":"IF('2011 Survey responses'!FM126<0.5,\"\",'2011 Survey responses'!FM126)","v":""},{"$f":"IF('2011 Survey responses'!FO126<0.5,\"\",'2011 Survey responses'!FO126)","v":""},{"$f":"IF('2011 Survey responses'!FQ126<0.5,\"\",'2011 Survey responses'!FQ126)","v":""}]
["Nigeria",{"$f":"IF(SUM(F127)<1,\"\",AVERAGEIF('2011 Survey responses'!B127:CP127,\">1\"))","v":3},{"$f":"IF(SUM(F127)<1,\"\",AVERAGEIF('2011 Survey responses'!B127:AO127,\">1\"))","v":3},{"$f":"IF(SUM(F127)<1,\"\",AVERAGEIF('2011 Survey responses'!B127:BV127,\">1\"))","v":2.9178082191780823},{"$f":"IF(SUM(F127)<1,\"\",AVERAGEIF('2011 Survey responses'!V127:BV127,\">1\"))","v":2.9622641509433962},{"$f":"IF(SUM('2011 Survey responses'!B127:U127)<1,\"\",(AVERAGEIFS('2011 Survey responses'!B127:U127,'2011 Survey responses'!B127:U127,\">1\")))","v":2.8},{"$f":"IF(SUM('2011 Survey responses'!B127:H127)<1,\"\",(AVERAGEIFS('2011 Survey responses'!B127:H127,'2011 Survey responses'!B127:H127,\">1\")))","v":3.2857142857142856},{"$f":"IF(SUM('2011 Survey responses'!I127:S127)<1,\"\",(AVERAGEIFS('2011 Survey responses'!I127:S127,'2011 Survey responses'!I127:S127,\">1\")))","v":2.2727272727272729},{"$f":"IF(SUM('2011 Survey responses'!T127:U127)<2.1,\"\",(AVERAGEIFS('2011 Survey responses'!T127:U127,'2011 Survey responses'!T127:U127,\">1\")))","v":4},{"$f":"IF(SUM('2011 Survey responses'!B127:C127)<2.1,\"\",((SUMIF('2011 Survey responses'!B127:C127,\">1\")+SUMIF('2011 Survey responses'!F127,\">1\"))/(COUNTIF('2011 Survey responses'!B127:C127,\">1\")+COUNTIF('2011 Survey responses'!F127,\">1\"))))","v":3.6666666666666665},{"$f":"IF(SUM('2011 Survey responses'!D127:E127)<2.1,\"\",(AVERAGEIFS('2011 Survey responses'!D127:E127,'2011 Survey responses'!D127:E127,\">1\")))","v":4},{"$f":"IF(('2011 Survey responses'!B127+'2011 Survey responses'!D127)<2.1,\"\",((SUMIF('2011 Survey responses'!B127,\">1\")+SUMIF('2011 Survey responses'!D127,\">1\")+SUMIF('2011 Survey responses'!F127,\">1\")+SUMIF('2011 Survey responses'!K127,\">1\"))/(COUNTIF('2011 Survey responses'!B127,\">1\")+COUNTIF('2011 Survey responses'!D127,\">1\")+COUNTIF('2011 Survey responses'!F127,\">1\")+COUNTIF('2011 Survey responses'!K127,\">1\"))))","v":3.75},{"$f":"IF(SUM('2011 Survey responses'!G127:H127)<2.1,\"\",(AVERAGEIFS('2011 Survey responses'!G127:H127,'2011 Survey responses'!G127:H127,\">1\")))","v":2},{"$f":"IF(SUM('2011 Survey responses'!F127:G127)<1.5,\"\",MAX('2011 Survey responses'!F127,'2011 Survey responses'!G127))","v":3},{"$f":"IF(SUM('2011 Survey responses'!G127:H127)<1,\"\",MAX('2011 Survey responses'!G127,'2011 Survey responses'!H127))","v":2},{"$f":"IF(SUM('2011 Survey responses'!I127:L127)<4.1,\"\",(AVERAGEIFS('2011 Survey responses'!I127:L127,'2011 Survey responses'!I127:L127,\">1\")))","v":2.75},{"$f":"IF(SUM('2011 Survey responses'!M127:S127)<4.1,\"\",(AVERAGEIFS('2011 Survey responses'!M127:S127,'2011 Survey responses'!M127:S127,\">1\")))","v":2},{"$f":"IF(SUM('2011 Survey responses'!T127:U127)<2.1,\"\",(AVERAGEIFS('2011 Survey responses'!T127:U127,'2011 Survey responses'!T127:U127,\">1\")))","v":4},{"$f":"IF(SUM('2011 Survey responses'!V127:AO127)<1,\"\",(AVERAGEIFS('2011 Survey responses'!V127:AO127,'2011 Survey responses'!V127:AO127,\">1\")))","v":3.2},{"$f":"IF(SUM('2011 Survey responses'!V127:AA127)<1,\"\",(AVERAGEIFS('2011 Survey responses'!V127:AA127,'2011 Survey responses'!V127:AA127,\">1\")))","v":3.3333333333333335},{"$f":"IF(SUM('2011 Survey responses'!AB127:AH127)<1,\"\",(AVERAGEIFS('2011 Survey responses'!AB127:AH127,'2011 Survey responses'!AB127:AH127,\">1\")))","v":3},{"$f":"IF(SUM('2011 Survey responses'!AI127:AO127)<1,\"\",(AVERAGEIFS('2011 Survey responses'!AI127:AO127,'2011 Survey responses'!AI127:AO127,\">1\")))","v":3.2857142857142856},{"$f":"IF(('2011 Survey responses'!Y127+'2011 Survey responses'!AI127+'2011 Survey responses'!AK127)<3.1,\"\",((SUMIF('2011 Survey responses'!Y127,\">1\")+SUMIF('2011 Survey responses'!AI127,\">1\")+SUMIF('2011 Survey responses'!AK127,\">1\")+SUMIF('2011 Survey responses'!AM127,\">1\"))/(COUNTIF('2011 Survey responses'!Y127,\">1\")+COUNTIF('2011 Survey responses'!AI127,\">1\")+COUNTIF('2011 Survey responses'!AK127,\">1\")+COUNTIF('2011 Survey responses'!AM127,\">1\"))))","v":3.5},{"$f":"IF(('2011 Survey responses'!W127)<1.1,\"\",('2011 Survey responses'!W127))","v":4},{"$f":"IF(('2011 Survey responses'!Y127)<1.1,\"\",('2011 Survey responses'!Y127))","v":3},{"$f":"IF(('2011 Survey responses'!Z127)<1.1,\"\",('2011 Survey responses'!Z127))","v":4},{"$f":"IF(('2011 Survey responses'!V127+'2011 Survey responses'!X127+'2011 Survey responses'!AA127)<3.1,\"\",((SUMIF('2011 Survey responses'!V127,\">1\")+SUMIF('2011 Survey responses'!X127,\">1\")+SUMIF('2011 Survey responses'!AA127,\">1\"))/(COUNTIF('2011 Survey responses'!V127,\">1\")+COUNTIF('2011 Survey responses'!X127,\">1\")+COUNTIF('2011 Survey responses'!AA127,\">1\"))))","v":3},{"$f":"IF(('2011 Survey responses'!V127+'2011 Survey responses'!Y127+'2011 Survey responses'!AA127)<3.1,\"\",((SUMIF('2011 Survey responses'!V127,\">1\")+SUMIF('2011 Survey responses'!Y127,\">1\")+SUMIF('2011 Survey responses'!AA127,\">1\"))/(COUNTIF('2011 Survey responses'!V127,\">1\")+COUNTIF('2011 Survey responses'!Y127,\">1\")+COUNTIF('2011 Survey responses'!AA127,\">1\"))))","v":3.3333333333333335},{"$f":"IF(SUM('2011 Survey responses'!AB127:AH127)<1,\"\",(AVERAGEIFS('2011 Survey responses'!AB127:AH127,'2011 Survey responses'!AB127:AH127,\">1\")))","v":3},{"$f":"IF(SUM('2011 Survey responses'!AI127:AO127)<7.1,\"\",(AVERAGEIFS('2011 Survey responses'!AI127:AO127,'2011 Survey responses'!AI127:AO127,\">1\")))","v":3.2857142857142856},{"$f":"IF(('2011 Survey responses'!AH127)<1.1,\"\",('2011 Survey responses'!AH127))","v":3},{"$f":"IF(SUM('2011 Survey responses'!AP127:BV127)<1,\"\",(AVERAGEIFS('2011 Survey responses'!AP127:BV127,'2011 Survey responses'!AP127:BV127,\">1\")))","v":2.8181818181818183},{"$f":"IF(SUM('2011 Survey responses'!AP127:AS127)<4.1,\"\",(AVERAGEIFS('2011 Survey responses'!AP127:AS127,'2011 Survey responses'!AP127:AS127,\">1\")))","v":3.25},{"$f":"IF(SUM('2011 Survey responses'!AT127:BF127)<1,\"\",(AVERAGEIFS('2011 Survey responses'!AT127:BF127,'2011 Survey responses'!AT127:BF127,\">1\")))","v":2.6153846153846154},{"$f":"IF(SUM('2011 Survey responses'!BG127:BO127)<1,\"\",(AVERAGEIFS('2011 Survey responses'!BG127:BO127,'2011 Survey responses'!BG127:BO127,\">1\")))","v":3.3333333333333335},{"$f":"IF(SUM('2011 Survey responses'!BP127:BS127)<1,\"\",(AVERAGEIFS('2011 Survey responses'!BP127:BS127,'2011 Survey responses'!BP127:BS127,\">1\")))","v":2.5},{"$f":"IF(SUM('2011 Survey responses'!BT127:BV127)<3.1,\"\",(AVERAGEIFS('2011 Survey responses'!BT127:BV127,'2011 Survey responses'!BT127:BV127,\">1\")))","v":2},{"$f":"IF(('2011 Survey responses'!AQ127+'2011 Survey responses'!AR127+'2011 Survey responses'!BG127)<3.1,\"\",((SUMIF('2011 Survey responses'!AQ127,\">1\")+SUMIF('2011 Survey responses'!AR127,\">1\")+SUMIF('2011 Survey responses'!BG127,\">1\"))/(COUNTIF('2011 Survey responses'!AQ127,\">1\")+COUNTIF('2011 Survey responses'!AR127,\">1\")+COUNTIF('2011 Survey responses'!BG127,\">1\"))))","v":3.6666666666666665},{"$f":"IF(SUM('2011 Survey responses'!AP127:AS127)<4.1,\"\",(AVERAGEIFS('2011 Survey responses'!AP127:AS127,'2011 Survey responses'!AP127:AS127,\">1\")))","v":3.25},{"$f":"IF(('2011 Survey responses'!AU127+'2011 Survey responses'!AX127+'2011 Survey responses'!BA127+'2011 Survey responses'!BC127+'2011 Survey responses'!BD127)<5.1,\"\",(SUMIF('2011 Survey responses'!AU127,\">1\")+SUMIF('2011 Survey responses'!AX127,\">1\")+SUMIF('2011 Survey responses'!BA127,\">1\")+SUMIF('2011 Survey responses'!BC127,\">1\")+SUMIF('2011 Survey responses'!BD127,\">1\"))/(COUNTIF('2011 Survey responses'!AU127,\">1\")+COUNTIF('2011 Survey responses'!AX127,\">1\")+COUNTIF('2011 Survey responses'!BA127,\">1\")+COUNTIF('2011 Survey responses'!BC127,\">1\")+COUNTIF('2011 Survey responses'!BD127,\">1\")))","v":2.4},{"$f":"IF(('2011 Survey responses'!AT127)<1.1,\"\",('2011 Survey responses'!AT127))","v":2},{"$f":"IF(SUM('2011 Survey responses'!AV127:AW127)<2.1,\"\",(AVERAGEIFS('2011 Survey responses'!AV127:AW127,'2011 Survey responses'!AV127:AW127,\">1\")))","v":2},{"$f":"IF(('2011 Survey responses'!AW127+'2011 Survey responses'!AY127)<2.1,\"\",(SUMIF('2011 Survey responses'!AW127,\">1\")+SUMIF('2011 Survey responses'!AY127,\">1\"))/(COUNTIF('2011 Survey responses'!AW127,\">1\")+COUNTIF('2011 Survey responses'!AY127,\">1\")))","v":2},{"$f":"IF(('2011 Survey responses'!AZ127)<1.1,\"\",('2011 Survey responses'!AZ127))","v":2},2,2,2,2,{"$f":"IF(('2011 Survey responses'!BE127)<1.1,\"\",('2011 Survey responses'!BE127))","v":4},{"$f":"IF(('2011 Survey responses'!AY127+'2011 Survey responses'!BB127+'2011 Survey responses'!BF127)<3.1,\"\",(SUMIF('2011 Survey responses'!AY127,\">1\")+SUMIF('2011 Survey responses'!BB127,\">1\")+SUMIF('2011 Survey responses'!BF127,\">1\"))/(COUNTIF('2011 Survey responses'!AY127,\">1\")+COUNTIF('2011 Survey responses'!BB127,\">1\")+COUNTIF('2011 Survey responses'!BF127,\">1\")))","v":3.3333333333333335},2.916666666666667,{"$f":"IF(SUM('2011 Survey responses'!BT127:BV127)<3.1,\"\",(AVERAGEIFS('2011 Survey responses'!BT127:BV127,'2011 Survey responses'!BT127:BV127,\">1\")))","v":2},{"$f":"IF(SUM('2011 Survey responses'!BW127:CP127)<1,\"\",(AVERAGEIFS('2011 Survey responses'!BW127:CP127,'2011 Survey responses'!BW127:CP127,\">1\")))","v":3.3333333333333335},{"$f":"IF(SUM('2011 Survey responses'!BW127:CF127)<1,\"\",(AVERAGEIFS('2011 Survey responses'!BW127:CF127,'2011 Survey responses'!BW127:CF127,\">1\")))","v":3.2222222222222223},{"$f":"IF(SUM('2011 Survey responses'!CG127:CP127)<1,\"\",(AVERAGEIFS('2011 Survey responses'!CG127:CP127,'2011 Survey responses'!CG127:CP127,\">1\")))","v":3.4444444444444446},{"$f":"IF(SUM('2011 Survey responses'!BX127:CF127)<1,\"\",(AVERAGEIFS('2011 Survey responses'!BX127:CF127,'2011 Survey responses'!BX127:CF127,\">1\")))","v":3.125},{"$f":"IF(SUM('2011 Survey responses'!CH127:CP127)<1,\"\",(AVERAGEIFS('2011 Survey responses'!CH127:CP127,'2011 Survey responses'!CH127:CP127,\">1\")))","v":3.375},{"$f":"IF(SUM('2011 Survey responses'!BW127:CP127)<1,\"\",(AVERAGEIFS('2011 Survey responses'!BW127:CP127,'2011 Survey responses'!BW127:CP127,\">1\")))","v":3.3333333333333335},{"$f":"IF(('2011 Survey responses'!BW127+'2011 Survey responses'!CG127)<2.1,\"\",(SUMIF('2011 Survey responses'!BW127,\">1\")+SUMIF('2011 Survey responses'!CG127,\">1\"))/(COUNTIF('2011 Survey responses'!BW127,\">1\")+COUNTIF('2011 Survey responses'!CG127,\">1\")))","v":4},{"$f":"IF(('2011 Survey responses'!BX127+'2011 Survey responses'!CH127)<2.1,\"\",(SUMIF('2011 Survey responses'!BX127,\">1\")+SUMIF('2011 Survey responses'!CH127,\">1\"))/(COUNTIF('2011 Survey responses'!BX127,\">1\")+COUNTIF('2011 Survey responses'!CH127,\">1\")))","v":4},{"$f":"IF(('2011 Survey responses'!BY127+'2011 Survey responses'!CI127)<2.1,\"\",(SUMIF('2011 Survey responses'!BY127,\">1\")+SUMIF('2011 Survey responses'!CI127,\">1\"))/(COUNTIF('2011 Survey responses'!BY127,\">1\")+COUNTIF('2011 Survey responses'!CI127,\">1\")))","v":4},{"$f":"IF('2011 Survey responses'!CQ127<0.5,\"\",'2011 Survey responses'!CQ127)","v":5},{"$f":"IF('2011 Survey responses'!CR127<0.5,\"\",'2011 Survey responses'!CR127)","v":5},{"$f":"IF('2011 Survey responses'!CS127<0.5,\"\",'2011 Survey responses'!CS127)","v":5},{"$f":"IF('2011 Survey responses'!CT127<0.5,\"\",'2011 Survey responses'!CT127)","v":4},{"$f":"IF('2011 Survey responses'!CU127<0.5,\"\",'2011 Survey responses'!CU127)","v":3},{"$f":"IF('2011 Survey responses'!CV127<0.5,\"\",'2011 Survey responses'!CV127)","v":1},{"$f":"IF(SUM('2011 Survey responses'!CW127:DL127)<1,\"\",(AVERAGE('2011 Survey responses'!CW127:DL127)))","v":2.4375},{"$f":"IF(SUM('2011 Survey responses'!CW127:CZ127)<1,\"\",(AVERAGE('2011 Survey responses'!CW127:CZ127)))","v":2},{"$f":"IF(SUM('2011 Survey responses'!DA127:DD127)<1,\"\",(AVERAGE('2011 Survey responses'!DA127:DD127)))","v":2.75},{"$f":"IF(SUM('2011 Survey responses'!DE127:DH127)<1,\"\",(AVERAGE('2011 Survey responses'!DE127:DH127)))","v":2},{"$f":"IF(SUM('2011 Survey responses'!DI127:DL127)<1,\"\",(AVERAGE('2011 Survey responses'!DI127:DL127)))","v":3},{"$f":"IF(('2011 Survey responses'!CW127+'2011 Survey responses'!DA127+'2011 Survey responses'!DE127+'2011 Survey responses'!DI127)<1,\"\",AVERAGE('2011 Survey responses'!CW127,'2011 Survey responses'!DA127,'2011 Survey responses'!DE127,'2011 Survey responses'!DI127))","v":2.25},{"$f":"IF(('2011 Survey responses'!CX127+'2011 Survey responses'!DB127+'2011 Survey responses'!DF127+'2011 Survey responses'!DJ127)<1,\"\",AVERAGE('2011 Survey responses'!CX127,'2011 Survey responses'!DB127,'2011 Survey responses'!DF127,'2011 Survey responses'!DJ127))","v":2.5},{"$f":"IF(('2011 Survey responses'!CY127+'2011 Survey responses'!DC127+'2011 Survey responses'!DG127+'2011 Survey responses'!DK127)<1,\"\",AVERAGE('2011 Survey responses'!CY127,'2011 Survey responses'!DC127,'2011 Survey responses'!DG127,'2011 Survey responses'!DK127))","v":2.5},{"$f":"IF(('2011 Survey responses'!CZ127+'2011 Survey responses'!DD127+'2011 Survey responses'!DH127+'2011 Survey responses'!DL127)<1,\"\",AVERAGE('2011 Survey responses'!CZ127,'2011 Survey responses'!DD127,'2011 Survey responses'!DH127,'2011 Survey responses'!DL127))","v":2.5},{"$f":"IF('2011 Survey responses'!CW127<0.5,\"\",'2011 Survey responses'!CW127)","v":2},{"$f":"IF('2011 Survey responses'!CX127<0.5,\"\",'2011 Survey responses'!CX127)","v":2},{"$f":"IF('2011 Survey responses'!CY127<0.5,\"\",'2011 Survey responses'!CY127)","v":2},{"$f":"IF('2011 Survey responses'!CZ127<0.5,\"\",'2011 Survey responses'!CZ127)","v":2},{"$f":"IF('2011 Survey responses'!DA127<0.5,\"\",'2011 Survey responses'!DA127)","v":2},{"$f":"IF('2011 Survey responses'!DB127<0.5,\"\",'2011 Survey responses'!DB127)","v":3},{"$f":"IF('2011 Survey responses'!DC127<0.5,\"\",'2011 Survey responses'!DC127)","v":3},{"$f":"IF('2011 Survey responses'!DD127<0.5,\"\",'2011 Survey responses'!DD127)","v":3},{"$f":"IF('2011 Survey responses'!DE127<0.5,\"\",'2011 Survey responses'!DE127)","v":2},{"$f":"IF('2011 Survey responses'!DF127<0.5,\"\",'2011 Survey responses'!DF127)","v":2},{"$f":"IF('2011 Survey responses'!DG127<0.5,\"\",'2011 Survey responses'!DG127)","v":2},{"$f":"IF('2011 Survey responses'!DH127<0.5,\"\",'2011 Survey responses'!DH127)","v":2},{"$f":"IF('2011 Survey responses'!DI127<0.5,\"\",'2011 Survey responses'!DI127)","v":3},{"$f":"IF('2011 Survey responses'!DJ127<0.5,\"\",'2011 Survey responses'!DJ127)","v":3},{"$f":"IF('2011 Survey responses'!DK127<0.5,\"\",'2011 Survey responses'!DK127)","v":3},{"$f":"IF('2011 Survey responses'!DL127<0.5,\"\",'2011 Survey responses'!DL127)","v":3},{"$f":"IF('2011 Survey responses'!DU127=4,4,IF('2011 Survey responses'!DU127=5,4,\"\"))","v":4},{"$f":"IF('2011 Survey responses'!DV127=4,3,IF('2011 Survey responses'!DV127=5,3,\"\"))","v":3},2,{"$f":"IF(CQ127=2,CQ127,IF(CO127=4,CO127,IF(CP127=3,CP127,IF('2011 Survey responses'!GT127=1,1,\"\"))))","v":2},{"$f":"IF('2011 Survey responses'!DO127<0.5,\"\",'2011 Survey responses'!DO127)","v":4},{"$f":"IF('2011 Survey responses'!DP127<0.5,\"\",'2011 Survey responses'!DP127)","v":5},{"$f":"IF('2011 Survey responses'!DQ127<0.5,\"\",'2011 Survey responses'!DQ127)","v":4},{"$f":"IF('2011 Survey responses'!DR127<0.5,\"\",'2011 Survey responses'!DR127)","v":5},{"$f":"IF('2011 Survey responses'!DS127<0.5,\"\",'2011 Survey responses'!DS127)","v":2},{"$f":"IF('2011 Survey responses'!DT127<0.5,\"\",'2011 Survey responses'!DT127)","v":4},{"$f":"IF('2011 Survey responses'!DU127<0.5,\"\",'2011 Survey responses'!DU127)","v":4},{"$f":"IF('2011 Survey responses'!DV127<0.5,\"\",'2011 Survey responses'!DV127)","v":4},{"$f":"IF('2011 Survey responses'!DW127<0.5,\"\",'2011 Survey responses'!DW127)","v":4},{"$f":"IF('2011 Survey responses'!DX127<0.5,\"\",'2011 Survey responses'!DX127)","v":3},{"$f":"IF('2011 Survey responses'!DY127<0.5,\"\",'2011 Survey responses'!DY127)","v":4},{"$f":"IF('2011 Survey responses'!DZ127<0.5,\"\",'2011 Survey responses'!DZ127)","v":4},{"$f":"IF('2011 Survey responses'!EA127<0.5,\"\",'2011 Survey responses'!EA127)","v":2},{"$f":"IF('2011 Survey responses'!EB127<0.5,\"\",'2011 Survey responses'!EB127)","v":2},{"$f":"IF('2011 Survey responses'!EC127<0.5,\"\",'2011 Survey responses'!EC127)","v":2},{"$f":"IF('2011 Survey responses'!ED127<0.5,\"\",'2011 Survey responses'!ED127)","v":2},{"$f":"IF('2011 Survey responses'!EE127<0.5,\"\",'2011 Survey responses'!EE127)","v":2},{"$f":"IF('2011 Survey responses'!EF127<0.5,\"\",'2011 Survey responses'!EF127)","v":2},{"$f":"IF('2011 Survey responses'!EG127<0.5,\"\",'2011 Survey responses'!EG127)","v":4},{"$f":"IF('2011 Survey responses'!EH127<0.5,\"\",'2011 Survey responses'!EH127)","v":4},{"$f":"IF('2011 Survey responses'!EI127<0.5,\"\",'2011 Survey responses'!EI127)","v":4},{"$f":"IF('2011 Survey responses'!EJ127<0.5,\"\",'2011 Survey responses'!EJ127)","v":4},{"$f":"IF('2011 Survey responses'!EK127<0.5,\"\",'2011 Survey responses'!EK127)","v":4},{"$f":"IF('2011 Survey responses'!EL127<0.5,\"\",'2011 Survey responses'!EL127)","v":4},{"$f":"IF('2011 Survey responses'!EM127<0.5,\"\",'2011 Survey responses'!EM127)","v":4},{"$f":"IF('2011 Survey responses'!EN127<0.5,\"\",'2011 Survey responses'!EN127)","v":3},{"$f":"IF('2011 Survey responses'!EO127<0.5,\"\",'2011 Survey responses'!EO127)","v":3},{"$f":"IF('2011 Survey responses'!EP127<0.5,\"\",'2011 Survey responses'!EP127)","v":3},{"$f":"IF(('2011 Survey responses'!EW127+'2011 Survey responses'!EX127)>=2,AVERAGE('2011 Survey responses'!EW127,'2011 Survey responses'!EY127),\"\")","v":4.5},{"$f":"IF('2011 Survey responses'!EX127<0.5,\"\",'2011 Survey responses'!EX127)","v":4},{"$f":"IF('2011 Survey responses'!EZ127<0.5,\"\",'2011 Survey responses'!EZ127)","v":3},{"$f":"IF('2011 Survey responses'!FB127<0.5,\"\",'2011 Survey responses'!FB127)","v":4},{"$f":"IF('2011 Survey responses'!FD127<0.5,\"\",'2011 Survey responses'!FD127)","v":4},{"$f":"IF('2011 Survey responses'!FC127<0.5,\"\",'2011 Survey responses'!FC127)","v":3},{"$f":"IF(('2011 Survey responses'!EM127+'2011 Survey responses'!EN127)>=2,AVERAGE('2011 Survey responses'!EM127,'2011 Survey responses'!EN127),\"\")","v":3.5},{"$f":"IF('2011 Survey responses'!ES127<0.5,\"\",'2011 Survey responses'!ES127)","v":4},{"$f":"IF(('2011 Survey responses'!ET127+'2011 Survey responses'!EU127)>=2,AVERAGE('2011 Survey responses'!ET127,'2011 Survey responses'!EU127),\"\")","v":3.5},{"$f":"IF('2011 Survey responses'!EV127<0.5,\"\",'2011 Survey responses'!EV127)","v":4},{"$f":"IF('2011 Survey responses'!FA127<0.5,\"\",'2011 Survey responses'!FA127)","v":3},{"$f":"IF('2011 Survey responses'!ER127<0.5,\"\",'2011 Survey responses'!ER127)","v":5},{"$f":"IF(('2011 Survey responses'!EO127+'2011 Survey responses'!EP127)>=2,AVERAGE('2011 Survey responses'!EO127,'2011 Survey responses'!EP127),\"\")","v":3},{"$f":"IF('2011 Survey responses'!EQ127<0.5,\"\",'2011 Survey responses'!EQ127)","v":4},{"$f":"IF('2011 Survey responses'!ET127<0.5,\"\",'2011 Survey responses'!ET127)","v":3},{"$f":"IF('2011 Survey responses'!EU127<0.5,\"\",'2011 Survey responses'!EU127)","v":4},{"$f":"IF('2011 Survey responses'!EW127<0.5,\"\",'2011 Survey responses'!EW127)","v":5},{"$f":"IF('2011 Survey responses'!EY127<0.5,\"\",'2011 Survey responses'!EY127)","v":4},{"$f":"IF('2011 Survey responses'!FU127<0.5,\"\",'2011 Survey responses'!FU127)","v":2},{"$f":"IF(('2011 Survey responses'!FL127+'2011 Survey responses'!FM127)>=2,AVERAGE('2011 Survey responses'!FL127,'2011 Survey responses'!FM127),\"\")","v":2},{"$f":"IF(('2011 Survey responses'!FO127+'2011 Survey responses'!FQ127)>=2,AVERAGE('2011 Survey responses'!FO127,'2011 Survey responses'!FQ127),\"\")","v":2},{"$f":"IF('2011 Survey responses'!FJ127<0.5,\"\",'2011 Survey responses'!FJ127)","v":2},{"$f":"IF('2011 Survey responses'!FT127<0.5,\"\",'2011 Survey responses'!FT127)","v":3},{"$f":"IF('2011 Survey responses'!FR127<0.5,\"\",'2011 Survey responses'!FR127)","v":4},{"$f":"IF('2011 Survey responses'!FK127<0.5,\"\",'2011 Survey responses'!FK127)","v":2},{"$f":"IF('2011 Survey responses'!FP127<0.5,\"\",'2011 Survey responses'!FP127)","v":2},{"$f":"IF('2011 Survey responses'!FN127<0.5,\"\",'2011 Survey responses'!FN127)","v":4},{"$f":"IF(('2011 Survey responses'!FE127+'2011 Survey responses'!FF127)>=2,AVERAGE('2011 Survey responses'!FE127,'2011 Survey responses'!FF127),\"\")","v":2},{"$f":"IF('2011 Survey responses'!FS127<0.5,\"\",'2011 Survey responses'!FS127)","v":2},{"$f":"IF('2011 Survey responses'!FV127<0.5,\"\",'2011 Survey responses'!FV127)","v":2},{"$f":"IF(('2011 Survey responses'!FG127+'2011 Survey responses'!FH127)>=2,AVERAGE('2011 Survey responses'!FG127,'2011 Survey responses'!FH127),\"\")","v":2},{"$f":"IF('2011 Survey responses'!FI127<0.5,\"\",'2011 Survey responses'!FI127)","v":3},{"$f":"IF('2011 Survey responses'!FE127<0.5,\"\",'2011 Survey responses'!FE127)","v":2},{"$f":"IF('2011 Survey responses'!FF127<0.5,\"\",'2011 Survey responses'!FF127)","v":2},{"$f":"IF('2011 Survey responses'!FG127<0.5,\"\",'2011 Survey responses'!FG127)","v":2},{"$f":"IF('2011 Survey responses'!FH127<0.5,\"\",'2011 Survey responses'!FH127)","v":2},{"$f":"IF('2011 Survey responses'!FL127<0.5,\"\",'2011 Survey responses'!FL127)","v":2},{"$f":"IF('2011 Survey responses'!FM127<0.5,\"\",'2011 Survey responses'!FM127)","v":2},{"$f":"IF('2011 Survey responses'!FO127<0.5,\"\",'2011 Survey responses'!FO127)","v":2},{"$f":"IF('2011 Survey responses'!FQ127<0.5,\"\",'2011 Survey responses'!FQ127)","v":2}]
["Norway",{"$f":"IF(SUM(F128)<1,\"\",AVERAGEIF('2011 Survey responses'!B128:CP128,\">1\"))","v":5.0999999999999996},{"$f":"IF(SUM(F128)<1,\"\",AVERAGEIF('2011 Survey responses'!B128:AO128,\">1\"))","v":5.225806451612903},{"$f":"IF(SUM(F128)<1,\"\",AVERAGEIF('2011 Survey responses'!B128:BV128,\">1\"))","v":5.0999999999999996},{"$f":"IF(SUM(F128)<1,\"\",AVERAGEIF('2011 Survey responses'!V128:BV128,\">1\"))","v":5.041666666666667},{"$f":"IF(SUM('2011 Survey responses'!B128:U128)<1,\"\",(AVERAGEIFS('2011 Survey responses'!B128:U128,'2011 Survey responses'!B128:U128,\">1\")))","v":5.333333333333333},{"$f":"IF(SUM('2011 Survey responses'!B128:H128)<1,\"\",(AVERAGEIFS('2011 Survey responses'!B128:H128,'2011 Survey responses'!B128:H128,\">1\")))","v":5.333333333333333},{"$f":"IF(SUM('2011 Survey responses'!I128:S128)<1,\"\",(AVERAGEIFS('2011 Survey responses'!I128:S128,'2011 Survey responses'!I128:S128,\">1\")))","v":5.2857142857142856},{"$f":"IF(SUM('2011 Survey responses'!T128:U128)<2.1,\"\",(AVERAGEIFS('2011 Survey responses'!T128:U128,'2011 Survey responses'!T128:U128,\">1\")))","v":5.5},{"$f":"IF(SUM('2011 Survey responses'!B128:C128)<2.1,\"\",((SUMIF('2011 Survey responses'!B128:C128,\">1\")+SUMIF('2011 Survey responses'!F128,\">1\"))/(COUNTIF('2011 Survey responses'!B128:C128,\">1\")+COUNTIF('2011 Survey responses'!F128,\">1\"))))","v":5},{"$f":"IF(SUM('2011 Survey responses'!D128:E128)<2.1,\"\",(AVERAGEIFS('2011 Survey responses'!D128:E128,'2011 Survey responses'!D128:E128,\">1\")))","v":6},{"$f":"IF(('2011 Survey responses'!B128+'2011 Survey responses'!D128)<2.1,\"\",((SUMIF('2011 Survey responses'!B128,\">1\")+SUMIF('2011 Survey responses'!D128,\">1\")+SUMIF('2011 Survey responses'!F128,\">1\")+SUMIF('2011 Survey responses'!K128,\">1\"))/(COUNTIF('2011 Survey responses'!B128,\">1\")+COUNTIF('2011 Survey responses'!D128,\">1\")+COUNTIF('2011 Survey responses'!F128,\">1\")+COUNTIF('2011 Survey responses'!K128,\">1\"))))","v":5.666666666666667},{"$f":"IF(SUM('2011 Survey responses'!G128:H128)<2.1,\"\",(AVERAGEIFS('2011 Survey responses'!G128:H128,'2011 Survey responses'!G128:H128,\">1\")))","v":""},{"$f":"IF(SUM('2011 Survey responses'!F128:G128)<1.5,\"\",MAX('2011 Survey responses'!F128,'2011 Survey responses'!G128))","v":1},{"$f":"IF(SUM('2011 Survey responses'!G128:H128)<1,\"\",MAX('2011 Survey responses'!G128,'2011 Survey responses'!H128))","v":1},{"$f":"IF(SUM('2011 Survey responses'!I128:L128)<4.1,\"\",(AVERAGEIFS('2011 Survey responses'!I128:L128,'2011 Survey responses'!I128:L128,\">1\")))","v":6},{"$f":"IF(SUM('2011 Survey responses'!M128:S128)<4.1,\"\",(AVERAGEIFS('2011 Survey responses'!M128:S128,'2011 Survey responses'!M128:S128,\">1\")))","v":5},{"$f":"IF(SUM('2011 Survey responses'!T128:U128)<2.1,\"\",(AVERAGEIFS('2011 Survey responses'!T128:U128,'2011 Survey responses'!T128:U128,\">1\")))","v":5.5},{"$f":"IF(SUM('2011 Survey responses'!V128:AO128)<1,\"\",(AVERAGEIFS('2011 Survey responses'!V128:AO128,'2011 Survey responses'!V128:AO128,\">1\")))","v":5.1578947368421053},{"$f":"IF(SUM('2011 Survey responses'!V128:AA128)<1,\"\",(AVERAGEIFS('2011 Survey responses'!V128:AA128,'2011 Survey responses'!V128:AA128,\">1\")))","v":5},{"$f":"IF(SUM('2011 Survey responses'!AB128:AH128)<1,\"\",(AVERAGEIFS('2011 Survey responses'!AB128:AH128,'2011 Survey responses'!AB128:AH128,\">1\")))","v":5},{"$f":"IF(SUM('2011 Survey responses'!AI128:AO128)<1,\"\",(AVERAGEIFS('2011 Survey responses'!AI128:AO128,'2011 Survey responses'!AI128:AO128,\">1\")))","v":5.4285714285714288},{"$f":"IF(('2011 Survey responses'!Y128+'2011 Survey responses'!AI128+'2011 Survey responses'!AK128)<3.1,\"\",((SUMIF('2011 Survey responses'!Y128,\">1\")+SUMIF('2011 Survey responses'!AI128,\">1\")+SUMIF('2011 Survey responses'!AK128,\">1\")+SUMIF('2011 Survey responses'!AM128,\">1\"))/(COUNTIF('2011 Survey responses'!Y128,\">1\")+COUNTIF('2011 Survey responses'!AI128,\">1\")+COUNTIF('2011 Survey responses'!AK128,\">1\")+COUNTIF('2011 Survey responses'!AM128,\">1\"))))","v":5.25},{"$f":"IF(('2011 Survey responses'!W128)<1.1,\"\",('2011 Survey responses'!W128))","v":5},{"$f":"IF(('2011 Survey responses'!Y128)<1.1,\"\",('2011 Survey responses'!Y128))","v":5},{"$f":"IF(('2011 Survey responses'!Z128)<1.1,\"\",('2011 Survey responses'!Z128))","v":5},{"$f":"IF(('2011 Survey responses'!V128+'2011 Survey responses'!X128+'2011 Survey responses'!AA128)<3.1,\"\",((SUMIF('2011 Survey responses'!V128,\">1\")+SUMIF('2011 Survey responses'!X128,\">1\")+SUMIF('2011 Survey responses'!AA128,\">1\"))/(COUNTIF('2011 Survey responses'!V128,\">1\")+COUNTIF('2011 Survey responses'!X128,\">1\")+COUNTIF('2011 Survey responses'!AA128,\">1\"))))","v":5},{"$f":"IF(('2011 Survey responses'!V128+'2011 Survey responses'!Y128+'2011 Survey responses'!AA128)<3.1,\"\",((SUMIF('2011 Survey responses'!V128,\">1\")+SUMIF('2011 Survey responses'!Y128,\">1\")+SUMIF('2011 Survey responses'!AA128,\">1\"))/(COUNTIF('2011 Survey responses'!V128,\">1\")+COUNTIF('2011 Survey responses'!Y128,\">1\")+COUNTIF('2011 Survey responses'!AA128,\">1\"))))","v":5},{"$f":"IF(SUM('2011 Survey responses'!AB128:AH128)<1,\"\",(AVERAGEIFS('2011 Survey responses'!AB128:AH128,'2011 Survey responses'!AB128:AH128,\">1\")))","v":5},{"$f":"IF(SUM('2011 Survey responses'!AI128:AO128)<7.1,\"\",(AVERAGEIFS('2011 Survey responses'!AI128:AO128,'2011 Survey responses'!AI128:AO128,\">1\")))","v":5.4285714285714288},{"$f":"IF(('2011 Survey responses'!AH128)<1.1,\"\",('2011 Survey responses'!AH128))","v":""},{"$f":"IF(SUM('2011 Survey responses'!AP128:BV128)<1,\"\",(AVERAGEIFS('2011 Survey responses'!AP128:BV128,'2011 Survey responses'!AP128:BV128,\">1\")))","v":4.9655172413793105},{"$f":"IF(SUM('2011 Survey responses'!AP128:AS128)<4.1,\"\",(AVERAGEIFS('2011 Survey responses'!AP128:AS128,'2011 Survey responses'!AP128:AS128,\">1\")))","v":4.75},{"$f":"IF(SUM('2011 Survey responses'!AT128:BF128)<1,\"\",(AVERAGEIFS('2011 Survey responses'!AT128:BF128,'2011 Survey responses'!AT128:BF128,\">1\")))","v":4.4000000000000004},{"$f":"IF(SUM('2011 Survey responses'!BG128:BO128)<1,\"\",(AVERAGEIFS('2011 Survey responses'!BG128:BO128,'2011 Survey responses'!BG128:BO128,\">1\")))","v":5.666666666666667},{"$f":"IF(SUM('2011 Survey responses'!BP128:BS128)<1,\"\",(AVERAGEIFS('2011 Survey responses'!BP128:BS128,'2011 Survey responses'!BP128:BS128,\">1\")))","v":4.5},{"$f":"IF(SUM('2011 Survey responses'!BT128:BV128)<3.1,\"\",(AVERAGEIFS('2011 Survey responses'!BT128:BV128,'2011 Survey responses'!BT128:BV128,\">1\")))","v":6},{"$f":"IF(('2011 Survey responses'!AQ128+'2011 Survey responses'!AR128+'2011 Survey responses'!BG128)<3.1,\"\",((SUMIF('2011 Survey responses'!AQ128,\">1\")+SUMIF('2011 Survey responses'!AR128,\">1\")+SUMIF('2011 Survey responses'!BG128,\">1\"))/(COUNTIF('2011 Survey responses'!AQ128,\">1\")+COUNTIF('2011 Survey responses'!AR128,\">1\")+COUNTIF('2011 Survey responses'!BG128,\">1\"))))","v":6},{"$f":"IF(SUM('2011 Survey responses'!AP128:AS128)<4.1,\"\",(AVERAGEIFS('2011 Survey responses'!AP128:AS128,'2011 Survey responses'!AP128:AS128,\">1\")))","v":4.75},{"$f":"IF(('2011 Survey responses'!AU128+'2011 Survey responses'!AX128+'2011 Survey responses'!BA128+'2011 Survey responses'!BC128+'2011 Survey responses'!BD128)<5.1,\"\",(SUMIF('2011 Survey responses'!AU128,\">1\")+SUMIF('2011 Survey responses'!AX128,\">1\")+SUMIF('2011 Survey responses'!BA128,\">1\")+SUMIF('2011 Survey responses'!BC128,\">1\")+SUMIF('2011 Survey responses'!BD128,\">1\"))/(COUNTIF('2011 Survey responses'!AU128,\">1\")+COUNTIF('2011 Survey responses'!AX128,\">1\")+COUNTIF('2011 Survey responses'!BA128,\">1\")+COUNTIF('2011 Survey responses'!BC128,\">1\")+COUNTIF('2011 Survey responses'!BD128,\">1\")))","v":4},{"$f":"IF(('2011 Survey responses'!AT128)<1.1,\"\",('2011 Survey responses'!AT128))","v":5},{"$f":"IF(SUM('2011 Survey responses'!AV128:AW128)<2.1,\"\",(AVERAGEIFS('2011 Survey responses'!AV128:AW128,'2011 Survey responses'!AV128:AW128,\">1\")))","v":4},{"$f":"IF(('2011 Survey responses'!AW128+'2011 Survey responses'!AY128)<2.1,\"\",(SUMIF('2011 Survey responses'!AW128,\">1\")+SUMIF('2011 Survey responses'!AY128,\">1\"))/(COUNTIF('2011 Survey responses'!AW128,\">1\")+COUNTIF('2011 Survey responses'!AY128,\">1\")))","v":4.5},{"$f":"IF(('2011 Survey responses'!AZ128)<1.1,\"\",('2011 Survey responses'!AZ128))","v":4},4,1,4,1,{"$f":"IF(('2011 Survey responses'!BE128)<1.1,\"\",('2011 Survey responses'!BE128))","v":5},{"$f":"IF(('2011 Survey responses'!AY128+'2011 Survey responses'!BB128+'2011 Survey responses'!BF128)<3.1,\"\",(SUMIF('2011 Survey responses'!AY128,\">1\")+SUMIF('2011 Survey responses'!BB128,\">1\")+SUMIF('2011 Survey responses'!BF128,\">1\"))/(COUNTIF('2011 Survey responses'!AY128,\">1\")+COUNTIF('2011 Survey responses'!BB128,\">1\")+COUNTIF('2011 Survey responses'!BF128,\">1\")))","v":4.666666666666667},5.0833333333333339,{"$f":"IF(SUM('2011 Survey responses'!BT128:BV128)<3.1,\"\",(AVERAGEIFS('2011 Survey responses'!BT128:BV128,'2011 Survey responses'!BT128:BV128,\">1\")))","v":6},{"$f":"IF(SUM('2011 Survey responses'!BW128:CP128)<20.1,\"\",(AVERAGEIFS('2011 Survey responses'!BW128:CP128,'2011 Survey responses'!BW128:CP128,\">1\")))","v":""},{"$f":"IF(SUM('2011 Survey responses'!BW128:CF128)<10.1,\"\",(AVERAGEIFS('2011 Survey responses'!BW128:CF128,'2011 Survey responses'!BW128:CF128,\">1\")))","v":""},{"$f":"IF(SUM('2011 Survey responses'!CG128:CP128)<10.1,\"\",(AVERAGEIFS('2011 Survey responses'!CG128:CP128,'2011 Survey responses'!CG128:CP128,\">1\")))","v":""},{"$f":"IF(SUM('2011 Survey responses'!BX128:CF128)<1,\"\",(AVERAGEIFS('2011 Survey responses'!BX128:CF128,'2011 Survey responses'!BX128:CF128,\">1\")))","v":{"$error":"#DIV/0!"}},{"$f":"IF(SUM('2011 Survey responses'!CH128:CP128)<1,\"\",(AVERAGEIFS('2011 Survey responses'!CH128:CP128,'2011 Survey responses'!CH128:CP128,\">1\")))","v":{"$error":"#DIV/0!"}},{"$f":"IF(SUM('2011 Survey responses'!BW128:CP128)<1,\"\",(AVERAGEIFS('2011 Survey responses'!BW128:CP128,'2011 Survey responses'!BW128:CP128,\">1\")))","v":{"$error":"#DIV/0!"}},{"$f":"IF(('2011 Survey responses'!BW128+'2011 Survey responses'!CG128)<2.1,\"\",(SUMIF('2011 Survey responses'!BW128,\">1\")+SUMIF('2011 Survey responses'!CG128,\">1\"))/(COUNTIF('2011 Survey responses'!BW128,\">1\")+COUNTIF('2011 Survey responses'!CG128,\">1\")))","v":""},{"$f":"IF(('2011 Survey responses'!BX128+'2011 Survey responses'!CH128)<2.1,\"\",(SUMIF('2011 Survey responses'!BX128,\">1\")+SUMIF('2011 Survey responses'!CH128,\">1\"))/(COUNTIF('2011 Survey responses'!BX128,\">1\")+COUNTIF('2011 Survey responses'!CH128,\">1\")))","v":""},{"$f":"IF(('2011 Survey responses'!BY128+'2011 Survey responses'!CI128)<2.1,\"\",(SUMIF('2011 Survey responses'!BY128,\">1\")+SUMIF('2011 Survey responses'!CI128,\">1\"))/(COUNTIF('2011 Survey responses'!BY128,\">1\")+COUNTIF('2011 Survey responses'!CI128,\">1\")))","v":""},{"$f":"IF('2011 Survey responses'!CQ128<0.5,\"\",'2011 Survey responses'!CQ128)","v":4},{"$f":"IF('2011 Survey responses'!CR128<0.5,\"\",'2011 Survey responses'!CR128)","v":1},{"$f":"IF('2011 Survey responses'!CS128<0.5,\"\",'2011 Survey responses'!CS128)","v":1},{"$f":"IF('2011 Survey responses'!CT128<0.5,\"\",'2011 Survey responses'!CT128)","v":4},{"$f":"IF('2011 Survey responses'!CU128<0.5,\"\",'2011 Survey responses'!CU128)","v":4},{"$f":"IF('2011 Survey responses'!CV128<0.5,\"\",'2011 Survey responses'!CV128)","v":4},{"$f":"IF(SUM('2011 Survey responses'!CW128:DL128)<1,\"\",(AVERAGE('2011 Survey responses'!CW128:DL128)))","v":4.25},{"$f":"IF(SUM('2011 Survey responses'!CW128:CZ128)<1,\"\",(AVERAGE('2011 Survey responses'!CW128:CZ128)))","v":4.25},{"$f":"IF(SUM('2011 Survey responses'!DA128:DD128)<1,\"\",(AVERAGE('2011 Survey responses'!DA128:DD128)))","v":4.25},{"$f":"IF(SUM('2011 Survey responses'!DE128:DH128)<1,\"\",(AVERAGE('2011 Survey responses'!DE128:DH128)))","v":4.25},{"$f":"IF(SUM('2011 Survey responses'!DI128:DL128)<1,\"\",(AVERAGE('2011 Survey responses'!DI128:DL128)))","v":4.25},{"$f":"IF(('2011 Survey responses'!CW128+'2011 Survey responses'!DA128+'2011 Survey responses'!DE128+'2011 Survey responses'!DI128)<1,\"\",AVERAGE('2011 Survey responses'!CW128,'2011 Survey responses'!DA128,'2011 Survey responses'!DE128,'2011 Survey responses'!DI128))","v":4},{"$f":"IF(('2011 Survey responses'!CX128+'2011 Survey responses'!DB128+'2011 Survey responses'!DF128+'2011 Survey responses'!DJ128)<1,\"\",AVERAGE('2011 Survey responses'!CX128,'2011 Survey responses'!DB128,'2011 Survey responses'!DF128,'2011 Survey responses'!DJ128))","v":3},{"$f":"IF(('2011 Survey responses'!CY128+'2011 Survey responses'!DC128+'2011 Survey responses'!DG128+'2011 Survey responses'!DK128)<1,\"\",AVERAGE('2011 Survey responses'!CY128,'2011 Survey responses'!DC128,'2011 Survey responses'!DG128,'2011 Survey responses'!DK128))","v":5},{"$f":"IF(('2011 Survey responses'!CZ128+'2011 Survey responses'!DD128+'2011 Survey responses'!DH128+'2011 Survey responses'!DL128)<1,\"\",AVERAGE('2011 Survey responses'!CZ128,'2011 Survey responses'!DD128,'2011 Survey responses'!DH128,'2011 Survey responses'!DL128))","v":5},{"$f":"IF('2011 Survey responses'!CW128<0.5,\"\",'2011 Survey responses'!CW128)","v":4},{"$f":"IF('2011 Survey responses'!CX128<0.5,\"\",'2011 Survey responses'!CX128)","v":3},{"$f":"IF('2011 Survey responses'!CY128<0.5,\"\",'2011 Survey responses'!CY128)","v":5},{"$f":"IF('2011 Survey responses'!CZ128<0.5,\"\",'2011 Survey responses'!CZ128)","v":5},{"$f":"IF('2011 Survey responses'!DA128<0.5,\"\",'2011 Survey responses'!DA128)","v":4},{"$f":"IF('2011 Survey responses'!DB128<0.5,\"\",'2011 Survey responses'!DB128)","v":3},{"$f":"IF('2011 Survey responses'!DC128<0.5,\"\",'2011 Survey responses'!DC128)","v":5},{"$f":"IF('2011 Survey responses'!DD128<0.5,\"\",'2011 Survey responses'!DD128)","v":5},{"$f":"IF('2011 Survey responses'!DE128<0.5,\"\",'2011 Survey responses'!DE128)","v":4},{"$f":"IF('2011 Survey responses'!DF128<0.5,\"\",'2011 Survey responses'!DF128)","v":3},{"$f":"IF('2011 Survey responses'!DG128<0.5,\"\",'2011 Survey responses'!DG128)","v":5},{"$f":"IF('2011 Survey responses'!DH128<0.5,\"\",'2011 Survey responses'!DH128)","v":5},{"$f":"IF('2011 Survey responses'!DI128<0.5,\"\",'2011 Survey responses'!DI128)","v":4},{"$f":"IF('2011 Survey responses'!DJ128<0.5,\"\",'2011 Survey responses'!DJ128)","v":3},{"$f":"IF('2011 Survey responses'!DK128<0.5,\"\",'2011 Survey responses'!DK128)","v":5},{"$f":"IF('2011 Survey responses'!DL128<0.5,\"\",'2011 Survey responses'!DL128)","v":5},{"$f":"IF('2011 Survey responses'!DU128=4,4,IF('2011 Survey responses'!DU128=5,4,\"\"))","v":""},{"$f":"IF('2011 Survey responses'!DV128=4,3,IF('2011 Survey responses'!DV128=5,3,\"\"))","v":""},"",{"$f":"IF(CQ128=2,CQ128,IF(CO128=4,CO128,IF(CP128=3,CP128,IF('2011 Survey responses'!GT128=1,1,\"\"))))","v":1},{"$f":"IF('2011 Survey responses'!DO128<0.5,\"\",'2011 Survey responses'!DO128)","v":3},{"$f":"IF('2011 Survey responses'!DP128<0.5,\"\",'2011 Survey responses'!DP128)","v":3},{"$f":"IF('2011 Survey responses'!DQ128<0.5,\"\",'2011 Survey responses'!DQ128)","v":3},{"$f":"IF('2011 Survey responses'!DR128<0.5,\"\",'2011 Survey responses'!DR128)","v":4},{"$f":"IF('2011 Survey responses'!DS128<0.5,\"\",'2011 Survey responses'!DS128)","v":4},{"$f":"IF('2011 Survey responses'!DT128<0.5,\"\",'2011 Survey responses'!DT128)","v":3},{"$f":"IF('2011 Survey responses'!DU128<0.5,\"\",'2011 Survey responses'!DU128)","v":3},{"$f":"IF('2011 Survey responses'!DV128<0.5,\"\",'2011 Survey responses'!DV128)","v":2},{"$f":"IF('2011 Survey responses'!DW128<0.5,\"\",'2011 Survey responses'!DW128)","v":1},{"$f":"IF('2011 Survey responses'!DX128<0.5,\"\",'2011 Survey responses'!DX128)","v":1},{"$f":"IF('2011 Survey responses'!DY128<0.5,\"\",'2011 Survey responses'!DY128)","v":3},{"$f":"IF('2011 Survey responses'!DZ128<0.5,\"\",'2011 Survey responses'!DZ128)","v":1},{"$f":"IF('2011 Survey responses'!EA128<0.5,\"\",'2011 Survey responses'!EA128)","v":4},{"$f":"IF('2011 Survey responses'!EB128<0.5,\"\",'2011 Survey responses'!EB128)","v":4},{"$f":"IF('2011 Survey responses'!EC128<0.5,\"\",'2011 Survey responses'!EC128)","v":4},{"$f":"IF('2011 Survey responses'!ED128<0.5,\"\",'2011 Survey responses'!ED128)","v":4},{"$f":"IF('2011 Survey responses'!EE128<0.5,\"\",'2011 Survey responses'!EE128)","v":4},{"$f":"IF('2011 Survey responses'!EF128<0.5,\"\",'2011 Survey responses'!EF128)","v":3},{"$f":"IF('2011 Survey responses'!EG128<0.5,\"\",'2011 Survey responses'!EG128)","v":4},{"$f":"IF('2011 Survey responses'!EH128<0.5,\"\",'2011 Survey responses'!EH128)","v":3},{"$f":"IF('2011 Survey responses'!EI128<0.5,\"\",'2011 Survey responses'!EI128)","v":3},{"$f":"IF('2011 Survey responses'!EJ128<0.5,\"\",'2011 Survey responses'!EJ128)","v":3},{"$f":"IF('2011 Survey responses'!EK128<0.5,\"\",'2011 Survey responses'!EK128)","v":3},{"$f":"IF('2011 Survey responses'!EL128<0.5,\"\",'2011 Survey responses'!EL128)","v":3},{"$f":"IF('2011 Survey responses'!EM128<0.5,\"\",'2011 Survey responses'!EM128)","v":1},{"$f":"IF('2011 Survey responses'!EN128<0.5,\"\",'2011 Survey responses'!EN128)","v":1},{"$f":"IF('2011 Survey responses'!EO128<0.5,\"\",'2011 Survey responses'!EO128)","v":1},{"$f":"IF('2011 Survey responses'!EP128<0.5,\"\",'2011 Survey responses'!EP128)","v":1},{"$f":"IF(('2011 Survey responses'!EW128+'2011 Survey responses'!EX128)>=2,AVERAGE('2011 Survey responses'!EW128,'2011 Survey responses'!EY128),\"\")","v":1},{"$f":"IF('2011 Survey responses'!EX128<0.5,\"\",'2011 Survey responses'!EX128)","v":3},{"$f":"IF('2011 Survey responses'!EZ128<0.5,\"\",'2011 Survey responses'!EZ128)","v":4},{"$f":"IF('2011 Survey responses'!FB128<0.5,\"\",'2011 Survey responses'!FB128)","v":4},{"$f":"IF('2011 Survey responses'!FD128<0.5,\"\",'2011 Survey responses'!FD128)","v":2},{"$f":"IF('2011 Survey responses'!FC128<0.5,\"\",'2011 Survey responses'!FC128)","v":4},{"$f":"IF(('2011 Survey responses'!EM128+'2011 Survey responses'!EN128)>=2,AVERAGE('2011 Survey responses'!EM128,'2011 Survey responses'!EN128),\"\")","v":1},{"$f":"IF('2011 Survey responses'!ES128<0.5,\"\",'2011 Survey responses'!ES128)","v":1},{"$f":"IF(('2011 Survey responses'!ET128+'2011 Survey responses'!EU128)>=2,AVERAGE('2011 Survey responses'!ET128,'2011 Survey responses'!EU128),\"\")","v":1},{"$f":"IF('2011 Survey responses'!EV128<0.5,\"\",'2011 Survey responses'!EV128)","v":1},{"$f":"IF('2011 Survey responses'!FA128<0.5,\"\",'2011 Survey responses'!FA128)","v":4},{"$f":"IF('2011 Survey responses'!ER128<0.5,\"\",'2011 Survey responses'!ER128)","v":1},{"$f":"IF(('2011 Survey responses'!EO128+'2011 Survey responses'!EP128)>=2,AVERAGE('2011 Survey responses'!EO128,'2011 Survey responses'!EP128),\"\")","v":1},{"$f":"IF('2011 Survey responses'!EQ128<0.5,\"\",'2011 Survey responses'!EQ128)","v":1},{"$f":"IF('2011 Survey responses'!ET128<0.5,\"\",'2011 Survey responses'!ET128)","v":1},{"$f":"IF('2011 Survey responses'!EU128<0.5,\"\",'2011 Survey responses'!EU128)","v":1},{"$f":"IF('2011 Survey responses'!EW128<0.5,\"\",'2011 Survey responses'!EW128)","v":1},{"$f":"IF('2011 Survey responses'!EY128<0.5,\"\",'2011 Survey responses'!EY128)","v":1},{"$f":"IF('2011 Survey responses'!FU128<0.5,\"\",'2011 Survey responses'!FU128)","v":4},{"$f":"IF(('2011 Survey responses'!FL128+'2011 Survey responses'!FM128)>=2,AVERAGE('2011 Survey responses'!FL128,'2011 Survey responses'!FM128),\"\")","v":4},{"$f":"IF(('2011 Survey responses'!FO128+'2011 Survey responses'!FQ128)>=2,AVERAGE('2011 Survey responses'!FO128,'2011 Survey responses'!FQ128),\"\")","v":3},{"$f":"IF('2011 Survey responses'!FJ128<0.5,\"\",'2011 Survey responses'!FJ128)","v":4},{"$f":"IF('2011 Survey responses'!FT128<0.5,\"\",'2011 Survey responses'!FT128)","v":4},{"$f":"IF('2011 Survey responses'!FR128<0.5,\"\",'2011 Survey responses'!FR128)","v":4},{"$f":"IF('2011 Survey responses'!FK128<0.5,\"\",'2011 Survey responses'!FK128)","v":4},{"$f":"IF('2011 Survey responses'!FP128<0.5,\"\",'2011 Survey responses'!FP128)","v":4},{"$f":"IF('2011 Survey responses'!FN128<0.5,\"\",'2011 Survey responses'!FN128)","v":5},{"$f":"IF(('2011 Survey responses'!FE128+'2011 Survey responses'!FF128)>=2,AVERAGE('2011 Survey responses'!FE128,'2011 Survey responses'!FF128),\"\")","v":4},{"$f":"IF('2011 Survey responses'!FS128<0.5,\"\",'2011 Survey responses'!FS128)","v":4},{"$f":"IF('2011 Survey responses'!FV128<0.5,\"\",'2011 Survey responses'!FV128)","v":3},{"$f":"IF(('2011 Survey responses'!FG128+'2011 Survey responses'!FH128)>=2,AVERAGE('2011 Survey responses'!FG128,'2011 Survey responses'!FH128),\"\")","v":3},{"$f":"IF('2011 Survey responses'!FI128<0.5,\"\",'2011 Survey responses'!FI128)","v":3},{"$f":"IF('2011 Survey responses'!FE128<0.5,\"\",'2011 Survey responses'!FE128)","v":4},{"$f":"IF('2011 Survey responses'!FF128<0.5,\"\",'2011 Survey responses'!FF128)","v":4},{"$f":"IF('2011 Survey responses'!FG128<0.5,\"\",'2011 Survey responses'!FG128)","v":3},{"$f":"IF('2011 Survey responses'!FH128<0.5,\"\",'2011 Survey responses'!FH128)","v":3},{"$f":"IF('2011 Survey responses'!FL128<0.5,\"\",'2011 Survey responses'!FL128)","v":4},{"$f":"IF('2011 Survey responses'!FM128<0.5,\"\",'2011 Survey responses'!FM128)","v":4},{"$f":"IF('2011 Survey responses'!FO128<0.5,\"\",'2011 Survey responses'!FO128)","v":3},{"$f":"IF('2011 Survey responses'!FQ128<0.5,\"\",'2011 Survey responses'!FQ128)","v":3}]
["Oman",{"$f":"IF(SUM(F129)<1,\"\",AVERAGEIF('2011 Survey responses'!B129:CP129,\">1\"))","v":""},{"$f":"IF(SUM(F129)<1,\"\",AVERAGEIF('2011 Survey responses'!B129:AO129,\">1\"))","v":""},{"$f":"IF(SUM(F129)<1,\"\",AVERAGEIF('2011 Survey responses'!B129:BV129,\">1\"))","v":""},{"$f":"IF(SUM(F129)<1,\"\",AVERAGEIF('2011 Survey responses'!V129:BV129,\">1\"))","v":""},{"$f":"IF(SUM('2011 Survey responses'!B129:U129)<1,\"\",(AVERAGEIFS('2011 Survey responses'!B129:U129,'2011 Survey responses'!B129:U129,\">1\")))","v":""},{"$f":"IF(SUM('2011 Survey responses'!B129:H129)<1,\"\",(AVERAGEIFS('2011 Survey responses'!B129:H129,'2011 Survey responses'!B129:H129,\">1\")))","v":""},{"$f":"IF(SUM('2011 Survey responses'!I129:S129)<1,\"\",(AVERAGEIFS('2011 Survey responses'!I129:S129,'2011 Survey responses'!I129:S129,\">1\")))","v":""},{"$f":"IF(SUM('2011 Survey responses'!T129:U129)<2.1,\"\",(AVERAGEIFS('2011 Survey responses'!T129:U129,'2011 Survey responses'!T129:U129,\">1\")))","v":""},{"$f":"IF(SUM('2011 Survey responses'!B129:C129)<2.1,\"\",((SUMIF('2011 Survey responses'!B129:C129,\">1\")+SUMIF('2011 Survey responses'!F129,\">1\"))/(COUNTIF('2011 Survey responses'!B129:C129,\">1\")+COUNTIF('2011 Survey responses'!F129,\">1\"))))","v":""},{"$f":"IF(SUM('2011 Survey responses'!D129:E129)<2.1,\"\",(AVERAGEIFS('2011 Survey responses'!D129:E129,'2011 Survey responses'!D129:E129,\">1\")))","v":""},{"$f":"IF(('2011 Survey responses'!B129+'2011 Survey responses'!D129)<2.1,\"\",((SUMIF('2011 Survey responses'!B129,\">1\")+SUMIF('2011 Survey responses'!D129,\">1\")+SUMIF('2011 Survey responses'!F129,\">1\")+SUMIF('2011 Survey responses'!K129,\">1\"))/(COUNTIF('2011 Survey responses'!B129,\">1\")+COUNTIF('2011 Survey responses'!D129,\">1\")+COUNTIF('2011 Survey responses'!F129,\">1\")+COUNTIF('2011 Survey responses'!K129,\">1\"))))","v":""},{"$f":"IF(SUM('2011 Survey responses'!G129:H129)<2.1,\"\",(AVERAGEIFS('2011 Survey responses'!G129:H129,'2011 Survey responses'!G129:H129,\">1\")))","v":""},{"$f":"IF(SUM('2011 Survey responses'!F129:G129)<1.5,\"\",MAX('2011 Survey responses'!F129,'2011 Survey responses'!G129))","v":""},{"$f":"IF(SUM('2011 Survey responses'!G129:H129)<1,\"\",MAX('2011 Survey responses'!G129,'2011 Survey responses'!H129))","v":""},{"$f":"IF(SUM('2011 Survey responses'!I129:L129)<4.1,\"\",(AVERAGEIFS('2011 Survey responses'!I129:L129,'2011 Survey responses'!I129:L129,\">1\")))","v":""},{"$f":"IF(SUM('2011 Survey responses'!M129:S129)<4.1,\"\",(AVERAGEIFS('2011 Survey responses'!M129:S129,'2011 Survey responses'!M129:S129,\">1\")))","v":""},{"$f":"IF(SUM('2011 Survey responses'!T129:U129)<2.1,\"\",(AVERAGEIFS('2011 Survey responses'!T129:U129,'2011 Survey responses'!T129:U129,\">1\")))","v":""},{"$f":"IF(SUM('2011 Survey responses'!V129:AO129)<1,\"\",(AVERAGEIFS('2011 Survey responses'!V129:AO129,'2011 Survey responses'!V129:AO129,\">1\")))","v":""},{"$f":"IF(SUM('2011 Survey responses'!V129:AA129)<1,\"\",(AVERAGEIFS('2011 Survey responses'!V129:AA129,'2011 Survey responses'!V129:AA129,\">1\")))","v":""},{"$f":"IF(SUM('2011 Survey responses'!AB129:AH129)<1,\"\",(AVERAGEIFS('2011 Survey responses'!AB129:AH129,'2011 Survey responses'!AB129:AH129,\">1\")))","v":""},{"$f":"IF(SUM('2011 Survey responses'!AI129:AO129)<1,\"\",(AVERAGEIFS('2011 Survey responses'!AI129:AO129,'2011 Survey responses'!AI129:AO129,\">1\")))","v":""},{"$f":"IF(('2011 Survey responses'!Y129+'2011 Survey responses'!AI129+'2011 Survey responses'!AK129)<3.1,\"\",((SUMIF('2011 Survey responses'!Y129,\">1\")+SUMIF('2011 Survey responses'!AI129,\">1\")+SUMIF('2011 Survey responses'!AK129,\">1\")+SUMIF('2011 Survey responses'!AM129,\">1\"))/(COUNTIF('2011 Survey responses'!Y129,\">1\")+COUNTIF('2011 Survey responses'!AI129,\">1\")+COUNTIF('2011 Survey responses'!AK129,\">1\")+COUNTIF('2011 Survey responses'!AM129,\">1\"))))","v":""},{"$f":"IF(('2011 Survey responses'!W129)<1.1,\"\",('2011 Survey responses'!W129))","v":""},{"$f":"IF(('2011 Survey responses'!Y129)<1.1,\"\",('2011 Survey responses'!Y129))","v":""},{"$f":"IF(('2011 Survey responses'!Z129)<1.1,\"\",('2011 Survey responses'!Z129))","v":""},{"$f":"IF(('2011 Survey responses'!V129+'2011 Survey responses'!X129+'2011 Survey responses'!AA129)<3.1,\"\",((SUMIF('2011 Survey responses'!V129,\">1\")+SUMIF('2011 Survey responses'!X129,\">1\")+SUMIF('2011 Survey responses'!AA129,\">1\"))/(COUNTIF('2011 Survey responses'!V129,\">1\")+COUNTIF('2011 Survey responses'!X129,\">1\")+COUNTIF('2011 Survey responses'!AA129,\">1\"))))","v":""},{"$f":"IF(('2011 Survey responses'!V129+'2011 Survey responses'!Y129+'2011 Survey responses'!AA129)<3.1,\"\",((SUMIF('2011 Survey responses'!V129,\">1\")+SUMIF('2011 Survey responses'!Y129,\">1\")+SUMIF('2011 Survey responses'!AA129,\">1\"))/(COUNTIF('2011 Survey responses'!V129,\">1\")+COUNTIF('2011 Survey responses'!Y129,\">1\")+COUNTIF('2011 Survey responses'!AA129,\">1\"))))","v":""},{"$f":"IF(SUM('2011 Survey responses'!AB129:AH129)<1,\"\",(AVERAGEIFS('2011 Survey responses'!AB129:AH129,'2011 Survey responses'!AB129:AH129,\">1\")))","v":""},{"$f":"IF(SUM('2011 Survey responses'!AI129:AO129)<7.1,\"\",(AVERAGEIFS('2011 Survey responses'!AI129:AO129,'2011 Survey responses'!AI129:AO129,\">1\")))","v":""},{"$f":"IF(('2011 Survey responses'!AH129)<1.1,\"\",('2011 Survey responses'!AH129))","v":""},{"$f":"IF(SUM('2011 Survey responses'!AP129:BV129)<1,\"\",(AVERAGEIFS('2011 Survey responses'!AP129:BV129,'2011 Survey responses'!AP129:BV129,\">1\")))","v":""},{"$f":"IF(SUM('2011 Survey responses'!AP129:AS129)<4.1,\"\",(AVERAGEIFS('2011 Survey responses'!AP129:AS129,'2011 Survey responses'!AP129:AS129,\">1\")))","v":""},{"$f":"IF(SUM('2011 Survey responses'!AT129:BF129)<1,\"\",(AVERAGEIFS('2011 Survey responses'!AT129:BF129,'2011 Survey responses'!AT129:BF129,\">1\")))","v":""},{"$f":"IF(SUM('2011 Survey responses'!BG129:BO129)<1,\"\",(AVERAGEIFS('2011 Survey responses'!BG129:BO129,'2011 Survey responses'!BG129:BO129,\">1\")))","v":""},{"$f":"IF(SUM('2011 Survey responses'!BP129:BS129)<1,\"\",(AVERAGEIFS('2011 Survey responses'!BP129:BS129,'2011 Survey responses'!BP129:BS129,\">1\")))","v":""},{"$f":"IF(SUM('2011 Survey responses'!BT129:BV129)<3.1,\"\",(AVERAGEIFS('2011 Survey responses'!BT129:BV129,'2011 Survey responses'!BT129:BV129,\">1\")))","v":""},{"$f":"IF(('2011 Survey responses'!AQ129+'2011 Survey responses'!AR129+'2011 Survey responses'!BG129)<3.1,\"\",((SUMIF('2011 Survey responses'!AQ129,\">1\")+SUMIF('2011 Survey responses'!AR129,\">1\")+SUMIF('2011 Survey responses'!BG129,\">1\"))/(COUNTIF('2011 Survey responses'!AQ129,\">1\")+COUNTIF('2011 Survey responses'!AR129,\">1\")+COUNTIF('2011 Survey responses'!BG129,\">1\"))))","v":""},{"$f":"IF(SUM('2011 Survey responses'!AP129:AS129)<4.1,\"\",(AVERAGEIFS('2011 Survey responses'!AP129:AS129,'2011 Survey responses'!AP129:AS129,\">1\")))","v":""},{"$f":"IF(('2011 Survey responses'!AU129+'2011 Survey responses'!AX129+'2011 Survey responses'!BA129+'2011 Survey responses'!BC129+'2011 Survey responses'!BD129)<5.1,\"\",(SUMIF('2011 Survey responses'!AU129,\">1\")+SUMIF('2011 Survey responses'!AX129,\">1\")+SUMIF('2011 Survey responses'!BA129,\">1\")+SUMIF('2011 Survey responses'!BC129,\">1\")+SUMIF('2011 Survey responses'!BD129,\">1\"))/(COUNTIF('2011 Survey responses'!AU129,\">1\")+COUNTIF('2011 Survey responses'!AX129,\">1\")+COUNTIF('2011 Survey responses'!BA129,\">1\")+COUNTIF('2011 Survey responses'!BC129,\">1\")+COUNTIF('2011 Survey responses'!BD129,\">1\")))","v":""},{"$f":"IF(('2011 Survey responses'!AT129)<1.1,\"\",('2011 Survey responses'!AT129))","v":""},{"$f":"IF(SUM('2011 Survey responses'!AV129:AW129)<2.1,\"\",(AVERAGEIFS('2011 Survey responses'!AV129:AW129,'2011 Survey responses'!AV129:AW129,\">1\")))","v":""},{"$f":"IF(('2011 Survey responses'!AW129+'2011 Survey responses'!AY129)<2.1,\"\",(SUMIF('2011 Survey responses'!AW129,\">1\")+SUMIF('2011 Survey responses'!AY129,\">1\"))/(COUNTIF('2011 Survey responses'!AW129,\">1\")+COUNTIF('2011 Survey responses'!AY129,\">1\")))","v":""},{"$f":"IF(('2011 Survey responses'!AZ129)<1.1,\"\",('2011 Survey responses'!AZ129))","v":""},null,null,null,null,{"$f":"IF(('2011 Survey responses'!BE129)<1.1,\"\",('2011 Survey responses'!BE129))","v":""},{"$f":"IF(('2011 Survey responses'!AY129+'2011 Survey responses'!BB129+'2011 Survey responses'!BF129)<3.1,\"\",(SUMIF('2011 Survey responses'!AY129,\">1\")+SUMIF('2011 Survey responses'!BB129,\">1\")+SUMIF('2011 Survey responses'!BF129,\">1\"))/(COUNTIF('2011 Survey responses'!AY129,\">1\")+COUNTIF('2011 Survey responses'!BB129,\">1\")+COUNTIF('2011 Survey responses'!BF129,\">1\")))","v":""},"",{"$f":"IF(SUM('2011 Survey responses'!BT129:BV129)<3.1,\"\",(AVERAGEIFS('2011 Survey responses'!BT129:BV129,'2011 Survey responses'!BT129:BV129,\">1\")))","v":""},{"$f":"IF(SUM('2011 Survey responses'!BW129:CP129)<1,\"\",(AVERAGEIFS('2011 Survey responses'!BW129:CP129,'2011 Survey responses'!BW129:CP129,\">1\")))","v":""},{"$f":"IF(SUM('2011 Survey responses'!BW129:CF129)<1,\"\",(AVERAGEIFS('2011 Survey responses'!BW129:CF129,'2011 Survey responses'!BW129:CF129,\">1\")))","v":""},{"$f":"IF(SUM('2011 Survey responses'!CG129:CP129)<1,\"\",(AVERAGEIFS('2011 Survey responses'!CG129:CP129,'2011 Survey responses'!CG129:CP129,\">1\")))","v":""},{"$f":"IF(SUM('2011 Survey responses'!BX129:CF129)<1,\"\",(AVERAGEIFS('2011 Survey responses'!BX129:CF129,'2011 Survey responses'!BX129:CF129,\">1\")))","v":""},{"$f":"IF(SUM('2011 Survey responses'!CH129:CP129)<1,\"\",(AVERAGEIFS('2011 Survey responses'!CH129:CP129,'2011 Survey responses'!CH129:CP129,\">1\")))","v":""},{"$f":"IF(SUM('2011 Survey responses'!BW129:CP129)<1,\"\",(AVERAGEIFS('2011 Survey responses'!BW129:CP129,'2011 Survey responses'!BW129:CP129,\">1\")))","v":""},{"$f":"IF(('2011 Survey responses'!BW129+'2011 Survey responses'!CG129)<2.1,\"\",(SUMIF('2011 Survey responses'!BW129,\">1\")+SUMIF('2011 Survey responses'!CG129,\">1\"))/(COUNTIF('2011 Survey responses'!BW129,\">1\")+COUNTIF('2011 Survey responses'!CG129,\">1\")))","v":""},{"$f":"IF(('2011 Survey responses'!BX129+'2011 Survey responses'!CH129)<2.1,\"\",(SUMIF('2011 Survey responses'!BX129,\">1\")+SUMIF('2011 Survey responses'!CH129,\">1\"))/(COUNTIF('2011 Survey responses'!BX129,\">1\")+COUNTIF('2011 Survey responses'!CH129,\">1\")))","v":""},{"$f":"IF(('2011 Survey responses'!BY129+'2011 Survey responses'!CI129)<2.1,\"\",(SUMIF('2011 Survey responses'!BY129,\">1\")+SUMIF('2011 Survey responses'!CI129,\">1\"))/(COUNTIF('2011 Survey responses'!BY129,\">1\")+COUNTIF('2011 Survey responses'!CI129,\">1\")))","v":""},{"$f":"IF('2011 Survey responses'!CQ129<0.5,\"\",'2011 Survey responses'!CQ129)","v":""},{"$f":"IF('2011 Survey responses'!CR129<0.5,\"\",'2011 Survey responses'!CR129)","v":""},{"$f":"IF('2011 Survey responses'!CS129<0.5,\"\",'2011 Survey responses'!CS129)","v":""},{"$f":"IF('2011 Survey responses'!CT129<0.5,\"\",'2011 Survey responses'!CT129)","v":""},{"$f":"IF('2011 Survey responses'!CU129<0.5,\"\",'2011 Survey responses'!CU129)","v":""},{"$f":"IF('2011 Survey responses'!CV129<0.5,\"\",'2011 Survey responses'!CV129)","v":""},{"$f":"IF(SUM('2011 Survey responses'!CW129:DL129)<1,\"\",(AVERAGE('2011 Survey responses'!CW129:DL129)))","v":""},{"$f":"IF(SUM('2011 Survey responses'!CW129:CZ129)<1,\"\",(AVERAGE('2011 Survey responses'!CW129:CZ129)))","v":""},{"$f":"IF(SUM('2011 Survey responses'!DA129:DD129)<1,\"\",(AVERAGE('2011 Survey responses'!DA129:DD129)))","v":""},{"$f":"IF(SUM('2011 Survey responses'!DE129:DH129)<1,\"\",(AVERAGE('2011 Survey responses'!DE129:DH129)))","v":""},{"$f":"IF(SUM('2011 Survey responses'!DI129:DL129)<1,\"\",(AVERAGE('2011 Survey responses'!DI129:DL129)))","v":""},{"$f":"IF(('2011 Survey responses'!CW129+'2011 Survey responses'!DA129+'2011 Survey responses'!DE129+'2011 Survey responses'!DI129)<1,\"\",AVERAGE('2011 Survey responses'!CW129,'2011 Survey responses'!DA129,'2011 Survey responses'!DE129,'2011 Survey responses'!DI129))","v":""},{"$f":"IF(('2011 Survey responses'!CX129+'2011 Survey responses'!DB129+'2011 Survey responses'!DF129+'2011 Survey responses'!DJ129)<1,\"\",AVERAGE('2011 Survey responses'!CX129,'2011 Survey responses'!DB129,'2011 Survey responses'!DF129,'2011 Survey responses'!DJ129))","v":""},{"$f":"IF(('2011 Survey responses'!CY129+'2011 Survey responses'!DC129+'2011 Survey responses'!DG129+'2011 Survey responses'!DK129)<1,\"\",AVERAGE('2011 Survey responses'!CY129,'2011 Survey responses'!DC129,'2011 Survey responses'!DG129,'2011 Survey responses'!DK129))","v":""},{"$f":"IF(('2011 Survey responses'!CZ129+'2011 Survey responses'!DD129+'2011 Survey responses'!DH129+'2011 Survey responses'!DL129)<1,\"\",AVERAGE('2011 Survey responses'!CZ129,'2011 Survey responses'!DD129,'2011 Survey responses'!DH129,'2011 Survey responses'!DL129))","v":""},{"$f":"IF('2011 Survey responses'!CW129<0.5,\"\",'2011 Survey responses'!CW129)","v":""},{"$f":"IF('2011 Survey responses'!CX129<0.5,\"\",'2011 Survey responses'!CX129)","v":""},{"$f":"IF('2011 Survey responses'!CY129<0.5,\"\",'2011 Survey responses'!CY129)","v":""},{"$f":"IF('2011 Survey responses'!CZ129<0.5,\"\",'2011 Survey responses'!CZ129)","v":""},{"$f":"IF('2011 Survey responses'!DA129<0.5,\"\",'2011 Survey responses'!DA129)","v":""},{"$f":"IF('2011 Survey responses'!DB129<0.5,\"\",'2011 Survey responses'!DB129)","v":""},{"$f":"IF('2011 Survey responses'!DC129<0.5,\"\",'2011 Survey responses'!DC129)","v":""},{"$f":"IF('2011 Survey responses'!DD129<0.5,\"\",'2011 Survey responses'!DD129)","v":""},{"$f":"IF('2011 Survey responses'!DE129<0.5,\"\",'2011 Survey responses'!DE129)","v":""},{"$f":"IF('2011 Survey responses'!DF129<0.5,\"\",'2011 Survey responses'!DF129)","v":""},{"$f":"IF('2011 Survey responses'!DG129<0.5,\"\",'2011 Survey responses'!DG129)","v":""},{"$f":"IF('2011 Survey responses'!DH129<0.5,\"\",'2011 Survey responses'!DH129)","v":""},{"$f":"IF('2011 Survey responses'!DI129<0.5,\"\",'2011 Survey responses'!DI129)","v":""},{"$f":"IF('2011 Survey responses'!DJ129<0.5,\"\",'2011 Survey responses'!DJ129)","v":""},{"$f":"IF('2011 Survey responses'!DK129<0.5,\"\",'2011 Survey responses'!DK129)","v":""},{"$f":"IF('2011 Survey responses'!DL129<0.5,\"\",'2011 Survey responses'!DL129)","v":""},{"$f":"IF('2011 Survey responses'!DU129=4,4,IF('2011 Survey responses'!DU129=5,4,\"\"))","v":""},{"$f":"IF('2011 Survey responses'!DV129=4,3,IF('2011 Survey responses'!DV129=5,3,\"\"))","v":""},"",{"$f":"IF(CQ129=2,CQ129,IF(CO129=4,CO129,IF(CP129=3,CP129,IF('2011 Survey responses'!GT129=1,1,\"\"))))","v":""},{"$f":"IF('2011 Survey responses'!DO129<0.5,\"\",'2011 Survey responses'!DO129)","v":""},{"$f":"IF('2011 Survey responses'!DP129<0.5,\"\",'2011 Survey responses'!DP129)","v":""},{"$f":"IF('2011 Survey responses'!DQ129<0.5,\"\",'2011 Survey responses'!DQ129)","v":""},{"$f":"IF('2011 Survey responses'!DR129<0.5,\"\",'2011 Survey responses'!DR129)","v":""},{"$f":"IF('2011 Survey responses'!DS129<0.5,\"\",'2011 Survey responses'!DS129)","v":""},{"$f":"IF('2011 Survey responses'!DT129<0.5,\"\",'2011 Survey responses'!DT129)","v":""},{"$f":"IF('2011 Survey responses'!DU129<0.5,\"\",'2011 Survey responses'!DU129)","v":""},{"$f":"IF('2011 Survey responses'!DV129<0.5,\"\",'2011 Survey responses'!DV129)","v":""},{"$f":"IF('2011 Survey responses'!DW129<0.5,\"\",'2011 Survey responses'!DW129)","v":""},{"$f":"IF('2011 Survey responses'!DX129<0.5,\"\",'2011 Survey responses'!DX129)","v":""},{"$f":"IF('2011 Survey responses'!DY129<0.5,\"\",'2011 Survey responses'!DY129)","v":""},{"$f":"IF('2011 Survey responses'!DZ129<0.5,\"\",'2011 Survey responses'!DZ129)","v":""},{"$f":"IF('2011 Survey responses'!EA129<0.5,\"\",'2011 Survey responses'!EA129)","v":""},{"$f":"IF('2011 Survey responses'!EB129<0.5,\"\",'2011 Survey responses'!EB129)","v":""},{"$f":"IF('2011 Survey responses'!EC129<0.5,\"\",'2011 Survey responses'!EC129)","v":""},{"$f":"IF('2011 Survey responses'!ED129<0.5,\"\",'2011 Survey responses'!ED129)","v":""},{"$f":"IF('2011 Survey responses'!EE129<0.5,\"\",'2011 Survey responses'!EE129)","v":""},{"$f":"IF('2011 Survey responses'!EF129<0.5,\"\",'2011 Survey responses'!EF129)","v":""},{"$f":"IF('2011 Survey responses'!EG129<0.5,\"\",'2011 Survey responses'!EG129)","v":""},{"$f":"IF('2011 Survey responses'!EH129<0.5,\"\",'2011 Survey responses'!EH129)","v":""},{"$f":"IF('2011 Survey responses'!EI129<0.5,\"\",'2011 Survey responses'!EI129)","v":""},{"$f":"IF('2011 Survey responses'!EJ129<0.5,\"\",'2011 Survey responses'!EJ129)","v":""},{"$f":"IF('2011 Survey responses'!EK129<0.5,\"\",'2011 Survey responses'!EK129)","v":""},{"$f":"IF('2011 Survey responses'!EL129<0.5,\"\",'2011 Survey responses'!EL129)","v":""},{"$f":"IF('2011 Survey responses'!EM129<0.5,\"\",'2011 Survey responses'!EM129)","v":""},{"$f":"IF('2011 Survey responses'!EN129<0.5,\"\",'2011 Survey responses'!EN129)","v":""},{"$f":"IF('2011 Survey responses'!EO129<0.5,\"\",'2011 Survey responses'!EO129)","v":""},{"$f":"IF('2011 Survey responses'!EP129<0.5,\"\",'2011 Survey responses'!EP129)","v":""},{"$f":"IF(('2011 Survey responses'!EW129+'2011 Survey responses'!EX129)>=2,AVERAGE('2011 Survey responses'!EW129,'2011 Survey responses'!EY129),\"\")","v":""},{"$f":"IF('2011 Survey responses'!EX129<0.5,\"\",'2011 Survey responses'!EX129)","v":""},{"$f":"IF('2011 Survey responses'!EZ129<0.5,\"\",'2011 Survey responses'!EZ129)","v":""},{"$f":"IF('2011 Survey responses'!FB129<0.5,\"\",'2011 Survey responses'!FB129)","v":""},{"$f":"IF('2011 Survey responses'!FD129<0.5,\"\",'2011 Survey responses'!FD129)","v":""},{"$f":"IF('2011 Survey responses'!FC129<0.5,\"\",'2011 Survey responses'!FC129)","v":""},{"$f":"IF(('2011 Survey responses'!EM129+'2011 Survey responses'!EN129)>=2,AVERAGE('2011 Survey responses'!EM129,'2011 Survey responses'!EN129),\"\")","v":""},{"$f":"IF('2011 Survey responses'!ES129<0.5,\"\",'2011 Survey responses'!ES129)","v":""},{"$f":"IF(('2011 Survey responses'!ET129+'2011 Survey responses'!EU129)>=2,AVERAGE('2011 Survey responses'!ET129,'2011 Survey responses'!EU129),\"\")","v":""},{"$f":"IF('2011 Survey responses'!EV129<0.5,\"\",'2011 Survey responses'!EV129)","v":""},{"$f":"IF('2011 Survey responses'!FA129<0.5,\"\",'2011 Survey responses'!FA129)","v":""},{"$f":"IF('2011 Survey responses'!ER129<0.5,\"\",'2011 Survey responses'!ER129)","v":""},{"$f":"IF(('2011 Survey responses'!EO129+'2011 Survey responses'!EP129)>=2,AVERAGE('2011 Survey responses'!EO129,'2011 Survey responses'!EP129),\"\")","v":""},{"$f":"IF('2011 Survey responses'!EQ129<0.5,\"\",'2011 Survey responses'!EQ129)","v":""},{"$f":"IF('2011 Survey responses'!ET129<0.5,\"\",'2011 Survey responses'!ET129)","v":""},{"$f":"IF('2011 Survey responses'!EU129<0.5,\"\",'2011 Survey responses'!EU129)","v":""},{"$f":"IF('2011 Survey responses'!EW129<0.5,\"\",'2011 Survey responses'!EW129)","v":""},{"$f":"IF('2011 Survey responses'!EY129<0.5,\"\",'2011 Survey responses'!EY129)","v":""},{"$f":"IF('2011 Survey responses'!FU129<0.5,\"\",'2011 Survey responses'!FU129)","v":""},{"$f":"IF(('2011 Survey responses'!FL129+'2011 Survey responses'!FM129)>=2,AVERAGE('2011 Survey responses'!FL129,'2011 Survey responses'!FM129),\"\")","v":""},{"$f":"IF(('2011 Survey responses'!FO129+'2011 Survey responses'!FQ129)>=2,AVERAGE('2011 Survey responses'!FO129,'2011 Survey responses'!FQ129),\"\")","v":""},{"$f":"IF('2011 Survey responses'!FJ129<0.5,\"\",'2011 Survey responses'!FJ129)","v":""},{"$f":"IF('2011 Survey responses'!FT129<0.5,\"\",'2011 Survey responses'!FT129)","v":""},{"$f":"IF('2011 Survey responses'!FR129<0.5,\"\",'2011 Survey responses'!FR129)","v":""},{"$f":"IF('2011 Survey responses'!FK129<0.5,\"\",'2011 Survey responses'!FK129)","v":""},{"$f":"IF('2011 Survey responses'!FP129<0.5,\"\",'2011 Survey responses'!FP129)","v":""},{"$f":"IF('2011 Survey responses'!FN129<0.5,\"\",'2011 Survey responses'!FN129)","v":""},{"$f":"IF(('2011 Survey responses'!FE129+'2011 Survey responses'!FF129)>=2,AVERAGE('2011 Survey responses'!FE129,'2011 Survey responses'!FF129),\"\")","v":""},{"$f":"IF('2011 Survey responses'!FS129<0.5,\"\",'2011 Survey responses'!FS129)","v":""},{"$f":"IF('2011 Survey responses'!FV129<0.5,\"\",'2011 Survey responses'!FV129)","v":""},{"$f":"IF(('2011 Survey responses'!FG129+'2011 Survey responses'!FH129)>=2,AVERAGE('2011 Survey responses'!FG129,'2011 Survey responses'!FH129),\"\")","v":""},{"$f":"IF('2011 Survey responses'!FI129<0.5,\"\",'2011 Survey responses'!FI129)","v":""},{"$f":"IF('2011 Survey responses'!FE129<0.5,\"\",'2011 Survey responses'!FE129)","v":""},{"$f":"IF('2011 Survey responses'!FF129<0.5,\"\",'2011 Survey responses'!FF129)","v":""},{"$f":"IF('2011 Survey responses'!FG129<0.5,\"\",'2011 Survey responses'!FG129)","v":""},{"$f":"IF('2011 Survey responses'!FH129<0.5,\"\",'2011 Survey responses'!FH129)","v":""},{"$f":"IF('2011 Survey responses'!FL129<0.5,\"\",'2011 Survey responses'!FL129)","v":""},{"$f":"IF('2011 Survey responses'!FM129<0.5,\"\",'2011 Survey responses'!FM129)","v":""},{"$f":"IF('2011 Survey responses'!FO129<0.5,\"\",'2011 Survey responses'!FO129)","v":""},{"$f":"IF('2011 Survey responses'!FQ129<0.5,\"\",'2011 Survey responses'!FQ129)","v":""}]
["Pakistan",{"$f":"IF(SUM(F130)<1,\"\",AVERAGEIF('2011 Survey responses'!B130:CP130,\">1\"))","v":3.4673913043478262},{"$f":"IF(SUM(F130)<1,\"\",AVERAGEIF('2011 Survey responses'!B130:AO130,\">1\"))","v":3.45},{"$f":"IF(SUM(F130)<1,\"\",AVERAGEIF('2011 Survey responses'!B130:BV130,\">1\"))","v":3.4444444444444446},{"$f":"IF(SUM(F130)<1,\"\",AVERAGEIF('2011 Survey responses'!V130:BV130,\">1\"))","v":3.5961538461538463},{"$f":"IF(SUM('2011 Survey responses'!B130:U130)<1,\"\",(AVERAGEIFS('2011 Survey responses'!B130:U130,'2011 Survey responses'!B130:U130,\">1\")))","v":3.05},{"$f":"IF(SUM('2011 Survey responses'!B130:H130)<1,\"\",(AVERAGEIFS('2011 Survey responses'!B130:H130,'2011 Survey responses'!B130:H130,\">1\")))","v":2.8571428571428572},{"$f":"IF(SUM('2011 Survey responses'!I130:S130)<1,\"\",(AVERAGEIFS('2011 Survey responses'!I130:S130,'2011 Survey responses'!I130:S130,\">1\")))","v":2.9090909090909092},{"$f":"IF(SUM('2011 Survey responses'!T130:U130)<2.1,\"\",(AVERAGEIFS('2011 Survey responses'!T130:U130,'2011 Survey responses'!T130:U130,\">1\")))","v":4.5},{"$f":"IF(SUM('2011 Survey responses'!B130:C130)<2.1,\"\",((SUMIF('2011 Survey responses'!B130:C130,\">1\")+SUMIF('2011 Survey responses'!F130,\">1\"))/(COUNTIF('2011 Survey responses'!B130:C130,\">1\")+COUNTIF('2011 Survey responses'!F130,\">1\"))))","v":2},{"$f":"IF(SUM('2011 Survey responses'!D130:E130)<2.1,\"\",(AVERAGEIFS('2011 Survey responses'!D130:E130,'2011 Survey responses'!D130:E130,\">1\")))","v":5},{"$f":"IF(('2011 Survey responses'!B130+'2011 Survey responses'!D130)<2.1,\"\",((SUMIF('2011 Survey responses'!B130,\">1\")+SUMIF('2011 Survey responses'!D130,\">1\")+SUMIF('2011 Survey responses'!F130,\">1\")+SUMIF('2011 Survey responses'!K130,\">1\"))/(COUNTIF('2011 Survey responses'!B130,\">1\")+COUNTIF('2011 Survey responses'!D130,\">1\")+COUNTIF('2011 Survey responses'!F130,\">1\")+COUNTIF('2011 Survey responses'!K130,\">1\"))))","v":3.5},{"$f":"IF(SUM('2011 Survey responses'!G130:H130)<2.1,\"\",(AVERAGEIFS('2011 Survey responses'!G130:H130,'2011 Survey responses'!G130:H130,\">1\")))","v":2},{"$f":"IF(SUM('2011 Survey responses'!F130:G130)<1.5,\"\",MAX('2011 Survey responses'!F130,'2011 Survey responses'!G130))","v":2},{"$f":"IF(SUM('2011 Survey responses'!G130:H130)<1,\"\",MAX('2011 Survey responses'!G130,'2011 Survey responses'!H130))","v":2},{"$f":"IF(SUM('2011 Survey responses'!I130:L130)<4.1,\"\",(AVERAGEIFS('2011 Survey responses'!I130:L130,'2011 Survey responses'!I130:L130,\">1\")))","v":3.5},{"$f":"IF(SUM('2011 Survey responses'!M130:S130)<4.1,\"\",(AVERAGEIFS('2011 Survey responses'!M130:S130,'2011 Survey responses'!M130:S130,\">1\")))","v":2.5714285714285716},{"$f":"IF(SUM('2011 Survey responses'!T130:U130)<2.1,\"\",(AVERAGEIFS('2011 Survey responses'!T130:U130,'2011 Survey responses'!T130:U130,\">1\")))","v":4.5},{"$f":"IF(SUM('2011 Survey responses'!V130:AO130)<1,\"\",(AVERAGEIFS('2011 Survey responses'!V130:AO130,'2011 Survey responses'!V130:AO130,\">1\")))","v":3.85},{"$f":"IF(SUM('2011 Survey responses'!V130:AA130)<1,\"\",(AVERAGEIFS('2011 Survey responses'!V130:AA130,'2011 Survey responses'!V130:AA130,\">1\")))","v":3.5},{"$f":"IF(SUM('2011 Survey responses'!AB130:AH130)<1,\"\",(AVERAGEIFS('2011 Survey responses'!AB130:AH130,'2011 Survey responses'!AB130:AH130,\">1\")))","v":3.7142857142857144},{"$f":"IF(SUM('2011 Survey responses'!AI130:AO130)<1,\"\",(AVERAGEIFS('2011 Survey responses'!AI130:AO130,'2011 Survey responses'!AI130:AO130,\">1\")))","v":4.2857142857142856},{"$f":"IF(('2011 Survey responses'!Y130+'2011 Survey responses'!AI130+'2011 Survey responses'!AK130)<3.1,\"\",((SUMIF('2011 Survey responses'!Y130,\">1\")+SUMIF('2011 Survey responses'!AI130,\">1\")+SUMIF('2011 Survey responses'!AK130,\">1\")+SUMIF('2011 Survey responses'!AM130,\">1\"))/(COUNTIF('2011 Survey responses'!Y130,\">1\")+COUNTIF('2011 Survey responses'!AI130,\">1\")+COUNTIF('2011 Survey responses'!AK130,\">1\")+COUNTIF('2011 Survey responses'!AM130,\">1\"))))","v":3.5},{"$f":"IF(('2011 Survey responses'!W130)<1.1,\"\",('2011 Survey responses'!W130))","v":5},{"$f":"IF(('2011 Survey responses'!Y130)<1.1,\"\",('2011 Survey responses'!Y130))","v":2},{"$f":"IF(('2011 Survey responses'!Z130)<1.1,\"\",('2011 Survey responses'!Z130))","v":2},{"$f":"IF(('2011 Survey responses'!V130+'2011 Survey responses'!X130+'2011 Survey responses'!AA130)<3.1,\"\",((SUMIF('2011 Survey responses'!V130,\">1\")+SUMIF('2011 Survey responses'!X130,\">1\")+SUMIF('2011 Survey responses'!AA130,\">1\"))/(COUNTIF('2011 Survey responses'!V130,\">1\")+COUNTIF('2011 Survey responses'!X130,\">1\")+COUNTIF('2011 Survey responses'!AA130,\">1\"))))","v":4},{"$f":"IF(('2011 Survey responses'!V130+'2011 Survey responses'!Y130+'2011 Survey responses'!AA130)<3.1,\"\",((SUMIF('2011 Survey responses'!V130,\">1\")+SUMIF('2011 Survey responses'!Y130,\">1\")+SUMIF('2011 Survey responses'!AA130,\">1\"))/(COUNTIF('2011 Survey responses'!V130,\">1\")+COUNTIF('2011 Survey responses'!Y130,\">1\")+COUNTIF('2011 Survey responses'!AA130,\">1\"))))","v":4},{"$f":"IF(SUM('2011 Survey responses'!AB130:AH130)<1,\"\",(AVERAGEIFS('2011 Survey responses'!AB130:AH130,'2011 Survey responses'!AB130:AH130,\">1\")))","v":3.7142857142857144},{"$f":"IF(SUM('2011 Survey responses'!AI130:AO130)<7.1,\"\",(AVERAGEIFS('2011 Survey responses'!AI130:AO130,'2011 Survey responses'!AI130:AO130,\">1\")))","v":4.2857142857142856},{"$f":"IF(('2011 Survey responses'!AH130)<1.1,\"\",('2011 Survey responses'!AH130))","v":4},{"$f":"IF(SUM('2011 Survey responses'!AP130:BV130)<1,\"\",(AVERAGEIFS('2011 Survey responses'!AP130:BV130,'2011 Survey responses'!AP130:BV130,\">1\")))","v":3.4375},{"$f":"IF(SUM('2011 Survey responses'!AP130:AS130)<4.1,\"\",(AVERAGEIFS('2011 Survey responses'!AP130:AS130,'2011 Survey responses'!AP130:AS130,\">1\")))","v":3.6666666666666665},{"$f":"IF(SUM('2011 Survey responses'!AT130:BF130)<1,\"\",(AVERAGEIFS('2011 Survey responses'!AT130:BF130,'2011 Survey responses'!AT130:BF130,\">1\")))","v":3.0769230769230771},{"$f":"IF(SUM('2011 Survey responses'!BG130:BO130)<1,\"\",(AVERAGEIFS('2011 Survey responses'!BG130:BO130,'2011 Survey responses'!BG130:BO130,\">1\")))","v":3.8888888888888888},{"$f":"IF(SUM('2011 Survey responses'!BP130:BS130)<1,\"\",(AVERAGEIFS('2011 Survey responses'!BP130:BS130,'2011 Survey responses'!BP130:BS130,\">1\")))","v":3.5},{"$f":"IF(SUM('2011 Survey responses'!BT130:BV130)<3.1,\"\",(AVERAGEIFS('2011 Survey responses'!BT130:BV130,'2011 Survey responses'!BT130:BV130,\">1\")))","v":3.3333333333333335},{"$f":"IF(('2011 Survey responses'!AQ130+'2011 Survey responses'!AR130+'2011 Survey responses'!BG130)<3.1,\"\",((SUMIF('2011 Survey responses'!AQ130,\">1\")+SUMIF('2011 Survey responses'!AR130,\">1\")+SUMIF('2011 Survey responses'!BG130,\">1\"))/(COUNTIF('2011 Survey responses'!AQ130,\">1\")+COUNTIF('2011 Survey responses'!AR130,\">1\")+COUNTIF('2011 Survey responses'!BG130,\">1\"))))","v":3.6666666666666665},{"$f":"IF(SUM('2011 Survey responses'!AP130:AS130)<4.1,\"\",(AVERAGEIFS('2011 Survey responses'!AP130:AS130,'2011 Survey responses'!AP130:AS130,\">1\")))","v":3.6666666666666665},{"$f":"IF(('2011 Survey responses'!AU130+'2011 Survey responses'!AX130+'2011 Survey responses'!BA130+'2011 Survey responses'!BC130+'2011 Survey responses'!BD130)<5.1,\"\",(SUMIF('2011 Survey responses'!AU130,\">1\")+SUMIF('2011 Survey responses'!AX130,\">1\")+SUMIF('2011 Survey responses'!BA130,\">1\")+SUMIF('2011 Survey responses'!BC130,\">1\")+SUMIF('2011 Survey responses'!BD130,\">1\"))/(COUNTIF('2011 Survey responses'!AU130,\">1\")+COUNTIF('2011 Survey responses'!AX130,\">1\")+COUNTIF('2011 Survey responses'!BA130,\">1\")+COUNTIF('2011 Survey responses'!BC130,\">1\")+COUNTIF('2011 Survey responses'!BD130,\">1\")))","v":2.4},{"$f":"IF(('2011 Survey responses'!AT130)<1.1,\"\",('2011 Survey responses'!AT130))","v":4},{"$f":"IF(SUM('2011 Survey responses'!AV130:AW130)<2.1,\"\",(AVERAGEIFS('2011 Survey responses'!AV130:AW130,'2011 Survey responses'!AV130:AW130,\">1\")))","v":4},{"$f":"IF(('2011 Survey responses'!AW130+'2011 Survey responses'!AY130)<2.1,\"\",(SUMIF('2011 Survey responses'!AW130,\">1\")+SUMIF('2011 Survey responses'!AY130,\">1\"))/(COUNTIF('2011 Survey responses'!AW130,\">1\")+COUNTIF('2011 Survey responses'!AY130,\">1\")))","v":4},{"$f":"IF(('2011 Survey responses'!AZ130)<1.1,\"\",('2011 Survey responses'!AZ130))","v":4},4,2,4,4,{"$f":"IF(('2011 Survey responses'!BE130)<1.1,\"\",('2011 Survey responses'!BE130))","v":2},{"$f":"IF(('2011 Survey responses'!AY130+'2011 Survey responses'!BB130+'2011 Survey responses'!BF130)<3.1,\"\",(SUMIF('2011 Survey responses'!AY130,\">1\")+SUMIF('2011 Survey responses'!BB130,\">1\")+SUMIF('2011 Survey responses'!BF130,\">1\"))/(COUNTIF('2011 Survey responses'!AY130,\">1\")+COUNTIF('2011 Survey responses'!BB130,\">1\")+COUNTIF('2011 Survey responses'!BF130,\">1\")))","v":3.3333333333333335},3.6944444444444446,{"$f":"IF(SUM('2011 Survey responses'!BT130:BV130)<3.1,\"\",(AVERAGEIFS('2011 Survey responses'!BT130:BV130,'2011 Survey responses'!BT130:BV130,\">1\")))","v":3.3333333333333335},{"$f":"IF(SUM('2011 Survey responses'!BW130:CP130)<1,\"\",(AVERAGEIFS('2011 Survey responses'!BW130:CP130,'2011 Survey responses'!BW130:CP130,\">1\")))","v":3.55},{"$f":"IF(SUM('2011 Survey responses'!BW130:CF130)<1,\"\",(AVERAGEIFS('2011 Survey responses'!BW130:CF130,'2011 Survey responses'!BW130:CF130,\">1\")))","v":3.4},{"$f":"IF(SUM('2011 Survey responses'!CG130:CP130)<1,\"\",(AVERAGEIFS('2011 Survey responses'!CG130:CP130,'2011 Survey responses'!CG130:CP130,\">1\")))","v":3.7},{"$f":"IF(SUM('2011 Survey responses'!BX130:CF130)<1,\"\",(AVERAGEIFS('2011 Survey responses'!BX130:CF130,'2011 Survey responses'!BX130:CF130,\">1\")))","v":3.3333333333333335},{"$f":"IF(SUM('2011 Survey responses'!CH130:CP130)<1,\"\",(AVERAGEIFS('2011 Survey responses'!CH130:CP130,'2011 Survey responses'!CH130:CP130,\">1\")))","v":3.5555555555555554},{"$f":"IF(SUM('2011 Survey responses'!BW130:CP130)<1,\"\",(AVERAGEIFS('2011 Survey responses'!BW130:CP130,'2011 Survey responses'!BW130:CP130,\">1\")))","v":3.55},{"$f":"IF(('2011 Survey responses'!BW130+'2011 Survey responses'!CG130)<2.1,\"\",(SUMIF('2011 Survey responses'!BW130,\">1\")+SUMIF('2011 Survey responses'!CG130,\">1\"))/(COUNTIF('2011 Survey responses'!BW130,\">1\")+COUNTIF('2011 Survey responses'!CG130,\">1\")))","v":4.5},{"$f":"IF(('2011 Survey responses'!BX130+'2011 Survey responses'!CH130)<2.1,\"\",(SUMIF('2011 Survey responses'!BX130,\">1\")+SUMIF('2011 Survey responses'!CH130,\">1\"))/(COUNTIF('2011 Survey responses'!BX130,\">1\")+COUNTIF('2011 Survey responses'!CH130,\">1\")))","v":4.5},{"$f":"IF(('2011 Survey responses'!BY130+'2011 Survey responses'!CI130)<2.1,\"\",(SUMIF('2011 Survey responses'!BY130,\">1\")+SUMIF('2011 Survey responses'!CI130,\">1\"))/(COUNTIF('2011 Survey responses'!BY130,\">1\")+COUNTIF('2011 Survey responses'!CI130,\">1\")))","v":4},{"$f":"IF('2011 Survey responses'!CQ130<0.5,\"\",'2011 Survey responses'!CQ130)","v":4},{"$f":"IF('2011 Survey responses'!CR130<0.5,\"\",'2011 Survey responses'!CR130)","v":3},{"$f":"IF('2011 Survey responses'!CS130<0.5,\"\",'2011 Survey responses'!CS130)","v":3},{"$f":"IF('2011 Survey responses'!CT130<0.5,\"\",'2011 Survey responses'!CT130)","v":2},{"$f":"IF('2011 Survey responses'!CU130<0.5,\"\",'2011 Survey responses'!CU130)","v":2},{"$f":"IF('2011 Survey responses'!CV130<0.5,\"\",'2011 Survey responses'!CV130)","v":2},{"$f":"IF(SUM('2011 Survey responses'!CW130:DL130)<1,\"\",(AVERAGE('2011 Survey responses'!CW130:DL130)))","v":2.8125},{"$f":"IF(SUM('2011 Survey responses'!CW130:CZ130)<1,\"\",(AVERAGE('2011 Survey responses'!CW130:CZ130)))","v":2.75},{"$f":"IF(SUM('2011 Survey responses'!DA130:DD130)<1,\"\",(AVERAGE('2011 Survey responses'!DA130:DD130)))","v":2.75},{"$f":"IF(SUM('2011 Survey responses'!DE130:DH130)<1,\"\",(AVERAGE('2011 Survey responses'!DE130:DH130)))","v":2.75},{"$f":"IF(SUM('2011 Survey responses'!DI130:DL130)<1,\"\",(AVERAGE('2011 Survey responses'!DI130:DL130)))","v":3},{"$f":"IF(('2011 Survey responses'!CW130+'2011 Survey responses'!DA130+'2011 Survey responses'!DE130+'2011 Survey responses'!DI130)<1,\"\",AVERAGE('2011 Survey responses'!CW130,'2011 Survey responses'!DA130,'2011 Survey responses'!DE130,'2011 Survey responses'!DI130))","v":3},{"$f":"IF(('2011 Survey responses'!CX130+'2011 Survey responses'!DB130+'2011 Survey responses'!DF130+'2011 Survey responses'!DJ130)<1,\"\",AVERAGE('2011 Survey responses'!CX130,'2011 Survey responses'!DB130,'2011 Survey responses'!DF130,'2011 Survey responses'!DJ130))","v":3},{"$f":"IF(('2011 Survey responses'!CY130+'2011 Survey responses'!DC130+'2011 Survey responses'!DG130+'2011 Survey responses'!DK130)<1,\"\",AVERAGE('2011 Survey responses'!CY130,'2011 Survey responses'!DC130,'2011 Survey responses'!DG130,'2011 Survey responses'!DK130))","v":2.25},{"$f":"IF(('2011 Survey responses'!CZ130+'2011 Survey responses'!DD130+'2011 Survey responses'!DH130+'2011 Survey responses'!DL130)<1,\"\",AVERAGE('2011 Survey responses'!CZ130,'2011 Survey responses'!DD130,'2011 Survey responses'!DH130,'2011 Survey responses'!DL130))","v":3},{"$f":"IF('2011 Survey responses'!CW130<0.5,\"\",'2011 Survey responses'!CW130)","v":3},{"$f":"IF('2011 Survey responses'!CX130<0.5,\"\",'2011 Survey responses'!CX130)","v":3},{"$f":"IF('2011 Survey responses'!CY130<0.5,\"\",'2011 Survey responses'!CY130)","v":2},{"$f":"IF('2011 Survey responses'!CZ130<0.5,\"\",'2011 Survey responses'!CZ130)","v":3},{"$f":"IF('2011 Survey responses'!DA130<0.5,\"\",'2011 Survey responses'!DA130)","v":3},{"$f":"IF('2011 Survey responses'!DB130<0.5,\"\",'2011 Survey responses'!DB130)","v":3},{"$f":"IF('2011 Survey responses'!DC130<0.5,\"\",'2011 Survey responses'!DC130)","v":2},{"$f":"IF('2011 Survey responses'!DD130<0.5,\"\",'2011 Survey responses'!DD130)","v":3},{"$f":"IF('2011 Survey responses'!DE130<0.5,\"\",'2011 Survey responses'!DE130)","v":3},{"$f":"IF('2011 Survey responses'!DF130<0.5,\"\",'2011 Survey responses'!DF130)","v":3},{"$f":"IF('2011 Survey responses'!DG130<0.5,\"\",'2011 Survey responses'!DG130)","v":2},{"$f":"IF('2011 Survey responses'!DH130<0.5,\"\",'2011 Survey responses'!DH130)","v":3},{"$f":"IF('2011 Survey responses'!DI130<0.5,\"\",'2011 Survey responses'!DI130)","v":3},{"$f":"IF('2011 Survey responses'!DJ130<0.5,\"\",'2011 Survey responses'!DJ130)","v":3},{"$f":"IF('2011 Survey responses'!DK130<0.5,\"\",'2011 Survey responses'!DK130)","v":3},{"$f":"IF('2011 Survey responses'!DL130<0.5,\"\",'2011 Survey responses'!DL130)","v":3},{"$f":"IF('2011 Survey responses'!DU130=4,4,IF('2011 Survey responses'!DU130=5,4,\"\"))","v":4},{"$f":"IF('2011 Survey responses'!DV130=4,3,IF('2011 Survey responses'!DV130=5,3,\"\"))","v":3},2,{"$f":"IF(CQ130=2,CQ130,IF(CO130=4,CO130,IF(CP130=3,CP130,IF('2011 Survey responses'!GT130=1,1,\"\"))))","v":2},{"$f":"IF('2011 Survey responses'!DO130<0.5,\"\",'2011 Survey responses'!DO130)","v":5},{"$f":"IF('2011 Survey responses'!DP130<0.5,\"\",'2011 Survey responses'!DP130)","v":5},{"$f":"IF('2011 Survey responses'!DQ130<0.5,\"\",'2011 Survey responses'!DQ130)","v":3},{"$f":"IF('2011 Survey responses'!DR130<0.5,\"\",'2011 Survey responses'!DR130)","v":4},{"$f":"IF('2011 Survey responses'!DS130<0.5,\"\",'2011 Survey responses'!DS130)","v":3},{"$f":"IF('2011 Survey responses'!DT130<0.5,\"\",'2011 Survey responses'!DT130)","v":4},{"$f":"IF('2011 Survey responses'!DU130<0.5,\"\",'2011 Survey responses'!DU130)","v":5},{"$f":"IF('2011 Survey responses'!DV130<0.5,\"\",'2011 Survey responses'!DV130)","v":4},{"$f":"IF('2011 Survey responses'!DW130<0.5,\"\",'2011 Survey responses'!DW130)","v":5},{"$f":"IF('2011 Survey responses'!DX130<0.5,\"\",'2011 Survey responses'!DX130)","v":5},{"$f":"IF('2011 Survey responses'!DY130<0.5,\"\",'2011 Survey responses'!DY130)","v":4},{"$f":"IF('2011 Survey responses'!DZ130<0.5,\"\",'2011 Survey responses'!DZ130)","v":4},{"$f":"IF('2011 Survey responses'!EA130<0.5,\"\",'2011 Survey responses'!EA130)","v":1},{"$f":"IF('2011 Survey responses'!EB130<0.5,\"\",'2011 Survey responses'!EB130)","v":4},{"$f":"IF('2011 Survey responses'!EC130<0.5,\"\",'2011 Survey responses'!EC130)","v":2},{"$f":"IF('2011 Survey responses'!ED130<0.5,\"\",'2011 Survey responses'!ED130)","v":1},{"$f":"IF('2011 Survey responses'!EE130<0.5,\"\",'2011 Survey responses'!EE130)","v":1},{"$f":"IF('2011 Survey responses'!EF130<0.5,\"\",'2011 Survey responses'!EF130)","v":1},{"$f":"IF('2011 Survey responses'!EG130<0.5,\"\",'2011 Survey responses'!EG130)","v":5},{"$f":"IF('2011 Survey responses'!EH130<0.5,\"\",'2011 Survey responses'!EH130)","v":5},{"$f":"IF('2011 Survey responses'!EI130<0.5,\"\",'2011 Survey responses'!EI130)","v":5},{"$f":"IF('2011 Survey responses'!EJ130<0.5,\"\",'2011 Survey responses'!EJ130)","v":5},{"$f":"IF('2011 Survey responses'!EK130<0.5,\"\",'2011 Survey responses'!EK130)","v":5},{"$f":"IF('2011 Survey responses'!EL130<0.5,\"\",'2011 Survey responses'!EL130)","v":5},{"$f":"IF('2011 Survey responses'!EM130<0.5,\"\",'2011 Survey responses'!EM130)","v":4},{"$f":"IF('2011 Survey responses'!EN130<0.5,\"\",'2011 Survey responses'!EN130)","v":4},{"$f":"IF('2011 Survey responses'!EO130<0.5,\"\",'2011 Survey responses'!EO130)","v":5},{"$f":"IF('2011 Survey responses'!EP130<0.5,\"\",'2011 Survey responses'!EP130)","v":4},{"$f":"IF(('2011 Survey responses'!EW130+'2011 Survey responses'!EX130)>=2,AVERAGE('2011 Survey responses'!EW130,'2011 Survey responses'!EY130),\"\")","v":4.5},{"$f":"IF('2011 Survey responses'!EX130<0.5,\"\",'2011 Survey responses'!EX130)","v":4},{"$f":"IF('2011 Survey responses'!EZ130<0.5,\"\",'2011 Survey responses'!EZ130)","v":4},{"$f":"IF('2011 Survey responses'!FB130<0.5,\"\",'2011 Survey responses'!FB130)","v":5},{"$f":"IF('2011 Survey responses'!FD130<0.5,\"\",'2011 Survey responses'!FD130)","v":4},{"$f":"IF('2011 Survey responses'!FC130<0.5,\"\",'2011 Survey responses'!FC130)","v":4},{"$f":"IF(('2011 Survey responses'!EM130+'2011 Survey responses'!EN130)>=2,AVERAGE('2011 Survey responses'!EM130,'2011 Survey responses'!EN130),\"\")","v":4},{"$f":"IF('2011 Survey responses'!ES130<0.5,\"\",'2011 Survey responses'!ES130)","v":3},{"$f":"IF(('2011 Survey responses'!ET130+'2011 Survey responses'!EU130)>=2,AVERAGE('2011 Survey responses'!ET130,'2011 Survey responses'!EU130),\"\")","v":3.5},{"$f":"IF('2011 Survey responses'!EV130<0.5,\"\",'2011 Survey responses'!EV130)","v":4},{"$f":"IF('2011 Survey responses'!FA130<0.5,\"\",'2011 Survey responses'!FA130)","v":4},{"$f":"IF('2011 Survey responses'!ER130<0.5,\"\",'2011 Survey responses'!ER130)","v":4},{"$f":"IF(('2011 Survey responses'!EO130+'2011 Survey responses'!EP130)>=2,AVERAGE('2011 Survey responses'!EO130,'2011 Survey responses'!EP130),\"\")","v":4.5},{"$f":"IF('2011 Survey responses'!EQ130<0.5,\"\",'2011 Survey responses'!EQ130)","v":2},{"$f":"IF('2011 Survey responses'!ET130<0.5,\"\",'2011 Survey responses'!ET130)","v":4},{"$f":"IF('2011 Survey responses'!EU130<0.5,\"\",'2011 Survey responses'!EU130)","v":3},{"$f":"IF('2011 Survey responses'!EW130<0.5,\"\",'2011 Survey responses'!EW130)","v":5},{"$f":"IF('2011 Survey responses'!EY130<0.5,\"\",'2011 Survey responses'!EY130)","v":4},{"$f":"IF('2011 Survey responses'!FU130<0.5,\"\",'2011 Survey responses'!FU130)","v":4},{"$f":"IF(('2011 Survey responses'!FL130+'2011 Survey responses'!FM130)>=2,AVERAGE('2011 Survey responses'!FL130,'2011 Survey responses'!FM130),\"\")","v":4},{"$f":"IF(('2011 Survey responses'!FO130+'2011 Survey responses'!FQ130)>=2,AVERAGE('2011 Survey responses'!FO130,'2011 Survey responses'!FQ130),\"\")","v":4},{"$f":"IF('2011 Survey responses'!FJ130<0.5,\"\",'2011 Survey responses'!FJ130)","v":4},{"$f":"IF('2011 Survey responses'!FT130<0.5,\"\",'2011 Survey responses'!FT130)","v":4},{"$f":"IF('2011 Survey responses'!FR130<0.5,\"\",'2011 Survey responses'!FR130)","v":4},{"$f":"IF('2011 Survey responses'!FK130<0.5,\"\",'2011 Survey responses'!FK130)","v":4},{"$f":"IF('2011 Survey responses'!FP130<0.5,\"\",'2011 Survey responses'!FP130)","v":4},{"$f":"IF('2011 Survey responses'!FN130<0.5,\"\",'2011 Survey responses'!FN130)","v":4},{"$f":"IF(('2011 Survey responses'!FE130+'2011 Survey responses'!FF130)>=2,AVERAGE('2011 Survey responses'!FE130,'2011 Survey responses'!FF130),\"\")","v":4},{"$f":"IF('2011 Survey responses'!FS130<0.5,\"\",'2011 Survey responses'!FS130)","v":4},{"$f":"IF('2011 Survey responses'!FV130<0.5,\"\",'2011 Survey responses'!FV130)","v":4},{"$f":"IF(('2011 Survey responses'!FG130+'2011 Survey responses'!FH130)>=2,AVERAGE('2011 Survey responses'!FG130,'2011 Survey responses'!FH130),\"\")","v":3},{"$f":"IF('2011 Survey responses'!FI130<0.5,\"\",'2011 Survey responses'!FI130)","v":4},{"$f":"IF('2011 Survey responses'!FE130<0.5,\"\",'2011 Survey responses'!FE130)","v":4},{"$f":"IF('2011 Survey responses'!FF130<0.5,\"\",'2011 Survey responses'!FF130)","v":4},{"$f":"IF('2011 Survey responses'!FG130<0.5,\"\",'2011 Survey responses'!FG130)","v":2},{"$f":"IF('2011 Survey responses'!FH130<0.5,\"\",'2011 Survey responses'!FH130)","v":4},{"$f":"IF('2011 Survey responses'!FL130<0.5,\"\",'2011 Survey responses'!FL130)","v":4},{"$f":"IF('2011 Survey responses'!FM130<0.5,\"\",'2011 Survey responses'!FM130)","v":4},{"$f":"IF('2011 Survey responses'!FO130<0.5,\"\",'2011 Survey responses'!FO130)","v":4},{"$f":"IF('2011 Survey responses'!FQ130<0.5,\"\",'2011 Survey responses'!FQ130)","v":4}]
["Palau",{"$f":"IF(SUM(F131)<1,\"\",AVERAGEIF('2011 Survey responses'!B131:CP131,\">1\"))","v":""},{"$f":"IF(SUM(F131)<1,\"\",AVERAGEIF('2011 Survey responses'!B131:AO131,\">1\"))","v":""},{"$f":"IF(SUM(F131)<1,\"\",AVERAGEIF('2011 Survey responses'!B131:BV131,\">1\"))","v":""},{"$f":"IF(SUM(F131)<1,\"\",AVERAGEIF('2011 Survey responses'!V131:BV131,\">1\"))","v":""},{"$f":"IF(SUM('2011 Survey responses'!B131:U131)<1,\"\",(AVERAGEIFS('2011 Survey responses'!B131:U131,'2011 Survey responses'!B131:U131,\">1\")))","v":""},{"$f":"IF(SUM('2011 Survey responses'!B131:H131)<1,\"\",(AVERAGEIFS('2011 Survey responses'!B131:H131,'2011 Survey responses'!B131:H131,\">1\")))","v":""},{"$f":"IF(SUM('2011 Survey responses'!I131:S131)<1,\"\",(AVERAGEIFS('2011 Survey responses'!I131:S131,'2011 Survey responses'!I131:S131,\">1\")))","v":""},{"$f":"IF(SUM('2011 Survey responses'!T131:U131)<2.1,\"\",(AVERAGEIFS('2011 Survey responses'!T131:U131,'2011 Survey responses'!T131:U131,\">1\")))","v":""},{"$f":"IF(SUM('2011 Survey responses'!B131:C131)<2.1,\"\",((SUMIF('2011 Survey responses'!B131:C131,\">1\")+SUMIF('2011 Survey responses'!F131,\">1\"))/(COUNTIF('2011 Survey responses'!B131:C131,\">1\")+COUNTIF('2011 Survey responses'!F131,\">1\"))))","v":""},{"$f":"IF(SUM('2011 Survey responses'!D131:E131)<2.1,\"\",(AVERAGEIFS('2011 Survey responses'!D131:E131,'2011 Survey responses'!D131:E131,\">1\")))","v":""},{"$f":"IF(('2011 Survey responses'!B131+'2011 Survey responses'!D131)<2.1,\"\",((SUMIF('2011 Survey responses'!B131,\">1\")+SUMIF('2011 Survey responses'!D131,\">1\")+SUMIF('2011 Survey responses'!F131,\">1\")+SUMIF('2011 Survey responses'!K131,\">1\"))/(COUNTIF('2011 Survey responses'!B131,\">1\")+COUNTIF('2011 Survey responses'!D131,\">1\")+COUNTIF('2011 Survey responses'!F131,\">1\")+COUNTIF('2011 Survey responses'!K131,\">1\"))))","v":""},{"$f":"IF(SUM('2011 Survey responses'!G131:H131)<2.1,\"\",(AVERAGEIFS('2011 Survey responses'!G131:H131,'2011 Survey responses'!G131:H131,\">1\")))","v":""},{"$f":"IF(SUM('2011 Survey responses'!F131:G131)<1.5,\"\",MAX('2011 Survey responses'!F131,'2011 Survey responses'!G131))","v":""},{"$f":"IF(SUM('2011 Survey responses'!G131:H131)<1,\"\",MAX('2011 Survey responses'!G131,'2011 Survey responses'!H131))","v":""},{"$f":"IF(SUM('2011 Survey responses'!I131:L131)<4.1,\"\",(AVERAGEIFS('2011 Survey responses'!I131:L131,'2011 Survey responses'!I131:L131,\">1\")))","v":""},{"$f":"IF(SUM('2011 Survey responses'!M131:S131)<4.1,\"\",(AVERAGEIFS('2011 Survey responses'!M131:S131,'2011 Survey responses'!M131:S131,\">1\")))","v":""},{"$f":"IF(SUM('2011 Survey responses'!T131:U131)<2.1,\"\",(AVERAGEIFS('2011 Survey responses'!T131:U131,'2011 Survey responses'!T131:U131,\">1\")))","v":""},{"$f":"IF(SUM('2011 Survey responses'!V131:AO131)<1,\"\",(AVERAGEIFS('2011 Survey responses'!V131:AO131,'2011 Survey responses'!V131:AO131,\">1\")))","v":""},{"$f":"IF(SUM('2011 Survey responses'!V131:AA131)<1,\"\",(AVERAGEIFS('2011 Survey responses'!V131:AA131,'2011 Survey responses'!V131:AA131,\">1\")))","v":""},{"$f":"IF(SUM('2011 Survey responses'!AB131:AH131)<1,\"\",(AVERAGEIFS('2011 Survey responses'!AB131:AH131,'2011 Survey responses'!AB131:AH131,\">1\")))","v":""},{"$f":"IF(SUM('2011 Survey responses'!AI131:AO131)<1,\"\",(AVERAGEIFS('2011 Survey responses'!AI131:AO131,'2011 Survey responses'!AI131:AO131,\">1\")))","v":""},{"$f":"IF(('2011 Survey responses'!Y131+'2011 Survey responses'!AI131+'2011 Survey responses'!AK131)<3.1,\"\",((SUMIF('2011 Survey responses'!Y131,\">1\")+SUMIF('2011 Survey responses'!AI131,\">1\")+SUMIF('2011 Survey responses'!AK131,\">1\")+SUMIF('2011 Survey responses'!AM131,\">1\"))/(COUNTIF('2011 Survey responses'!Y131,\">1\")+COUNTIF('2011 Survey responses'!AI131,\">1\")+COUNTIF('2011 Survey responses'!AK131,\">1\")+COUNTIF('2011 Survey responses'!AM131,\">1\"))))","v":""},{"$f":"IF(('2011 Survey responses'!W131)<1.1,\"\",('2011 Survey responses'!W131))","v":""},{"$f":"IF(('2011 Survey responses'!Y131)<1.1,\"\",('2011 Survey responses'!Y131))","v":""},{"$f":"IF(('2011 Survey responses'!Z131)<1.1,\"\",('2011 Survey responses'!Z131))","v":""},{"$f":"IF(('2011 Survey responses'!V131+'2011 Survey responses'!X131+'2011 Survey responses'!AA131)<3.1,\"\",((SUMIF('2011 Survey responses'!V131,\">1\")+SUMIF('2011 Survey responses'!X131,\">1\")+SUMIF('2011 Survey responses'!AA131,\">1\"))/(COUNTIF('2011 Survey responses'!V131,\">1\")+COUNTIF('2011 Survey responses'!X131,\">1\")+COUNTIF('2011 Survey responses'!AA131,\">1\"))))","v":""},{"$f":"IF(('2011 Survey responses'!V131+'2011 Survey responses'!Y131+'2011 Survey responses'!AA131)<3.1,\"\",((SUMIF('2011 Survey responses'!V131,\">1\")+SUMIF('2011 Survey responses'!Y131,\">1\")+SUMIF('2011 Survey responses'!AA131,\">1\"))/(COUNTIF('2011 Survey responses'!V131,\">1\")+COUNTIF('2011 Survey responses'!Y131,\">1\")+COUNTIF('2011 Survey responses'!AA131,\">1\"))))","v":""},{"$f":"IF(SUM('2011 Survey responses'!AB131:AH131)<1,\"\",(AVERAGEIFS('2011 Survey responses'!AB131:AH131,'2011 Survey responses'!AB131:AH131,\">1\")))","v":""},{"$f":"IF(SUM('2011 Survey responses'!AI131:AO131)<7.1,\"\",(AVERAGEIFS('2011 Survey responses'!AI131:AO131,'2011 Survey responses'!AI131:AO131,\">1\")))","v":""},{"$f":"IF(('2011 Survey responses'!AH131)<1.1,\"\",('2011 Survey responses'!AH131))","v":""},{"$f":"IF(SUM('2011 Survey responses'!AP131:BV131)<1,\"\",(AVERAGEIFS('2011 Survey responses'!AP131:BV131,'2011 Survey responses'!AP131:BV131,\">1\")))","v":""},{"$f":"IF(SUM('2011 Survey responses'!AP131:AS131)<4.1,\"\",(AVERAGEIFS('2011 Survey responses'!AP131:AS131,'2011 Survey responses'!AP131:AS131,\">1\")))","v":""},{"$f":"IF(SUM('2011 Survey responses'!AT131:BF131)<1,\"\",(AVERAGEIFS('2011 Survey responses'!AT131:BF131,'2011 Survey responses'!AT131:BF131,\">1\")))","v":""},{"$f":"IF(SUM('2011 Survey responses'!BG131:BO131)<1,\"\",(AVERAGEIFS('2011 Survey responses'!BG131:BO131,'2011 Survey responses'!BG131:BO131,\">1\")))","v":""},{"$f":"IF(SUM('2011 Survey responses'!BP131:BS131)<1,\"\",(AVERAGEIFS('2011 Survey responses'!BP131:BS131,'2011 Survey responses'!BP131:BS131,\">1\")))","v":""},{"$f":"IF(SUM('2011 Survey responses'!BT131:BV131)<3.1,\"\",(AVERAGEIFS('2011 Survey responses'!BT131:BV131,'2011 Survey responses'!BT131:BV131,\">1\")))","v":""},{"$f":"IF(('2011 Survey responses'!AQ131+'2011 Survey responses'!AR131+'2011 Survey responses'!BG131)<3.1,\"\",((SUMIF('2011 Survey responses'!AQ131,\">1\")+SUMIF('2011 Survey responses'!AR131,\">1\")+SUMIF('2011 Survey responses'!BG131,\">1\"))/(COUNTIF('2011 Survey responses'!AQ131,\">1\")+COUNTIF('2011 Survey responses'!AR131,\">1\")+COUNTIF('2011 Survey responses'!BG131,\">1\"))))","v":""},{"$f":"IF(SUM('2011 Survey responses'!AP131:AS131)<4.1,\"\",(AVERAGEIFS('2011 Survey responses'!AP131:AS131,'2011 Survey responses'!AP131:AS131,\">1\")))","v":""},{"$f":"IF(('2011 Survey responses'!AU131+'2011 Survey responses'!AX131+'2011 Survey responses'!BA131+'2011 Survey responses'!BC131+'2011 Survey responses'!BD131)<5.1,\"\",(SUMIF('2011 Survey responses'!AU131,\">1\")+SUMIF('2011 Survey responses'!AX131,\">1\")+SUMIF('2011 Survey responses'!BA131,\">1\")+SUMIF('2011 Survey responses'!BC131,\">1\")+SUMIF('2011 Survey responses'!BD131,\">1\"))/(COUNTIF('2011 Survey responses'!AU131,\">1\")+COUNTIF('2011 Survey responses'!AX131,\">1\")+COUNTIF('2011 Survey responses'!BA131,\">1\")+COUNTIF('2011 Survey responses'!BC131,\">1\")+COUNTIF('2011 Survey responses'!BD131,\">1\")))","v":""},{"$f":"IF(('2011 Survey responses'!AT131)<1.1,\"\",('2011 Survey responses'!AT131))","v":""},{"$f":"IF(SUM('2011 Survey responses'!AV131:AW131)<2.1,\"\",(AVERAGEIFS('2011 Survey responses'!AV131:AW131,'2011 Survey responses'!AV131:AW131,\">1\")))","v":""},{"$f":"IF(('2011 Survey responses'!AW131+'2011 Survey responses'!AY131)<2.1,\"\",(SUMIF('2011 Survey responses'!AW131,\">1\")+SUMIF('2011 Survey responses'!AY131,\">1\"))/(COUNTIF('2011 Survey responses'!AW131,\">1\")+COUNTIF('2011 Survey responses'!AY131,\">1\")))","v":""},{"$f":"IF(('2011 Survey responses'!AZ131)<1.1,\"\",('2011 Survey responses'!AZ131))","v":""},null,null,null,null,{"$f":"IF(('2011 Survey responses'!BE131)<1.1,\"\",('2011 Survey responses'!BE131))","v":""},{"$f":"IF(('2011 Survey responses'!AY131+'2011 Survey responses'!BB131+'2011 Survey responses'!BF131)<3.1,\"\",(SUMIF('2011 Survey responses'!AY131,\">1\")+SUMIF('2011 Survey responses'!BB131,\">1\")+SUMIF('2011 Survey responses'!BF131,\">1\"))/(COUNTIF('2011 Survey responses'!AY131,\">1\")+COUNTIF('2011 Survey responses'!BB131,\">1\")+COUNTIF('2011 Survey responses'!BF131,\">1\")))","v":""},{"$f":"IF(SUM(AI131,AJ131)<1,\"\",AVERAGE(AI131,AJ131))","v":""},{"$f":"IF(SUM('2011 Survey responses'!BT131:BV131)<3.1,\"\",(AVERAGEIFS('2011 Survey responses'!BT131:BV131,'2011 Survey responses'!BT131:BV131,\">1\")))","v":""},{"$f":"IF(SUM('2011 Survey responses'!BW131:CP131)<1,\"\",(AVERAGEIFS('2011 Survey responses'!BW131:CP131,'2011 Survey responses'!BW131:CP131,\">1\")))","v":""},{"$f":"IF(SUM('2011 Survey responses'!BW131:CF131)<1,\"\",(AVERAGEIFS('2011 Survey responses'!BW131:CF131,'2011 Survey responses'!BW131:CF131,\">1\")))","v":""},{"$f":"IF(SUM('2011 Survey responses'!CG131:CP131)<1,\"\",(AVERAGEIFS('2011 Survey responses'!CG131:CP131,'2011 Survey responses'!CG131:CP131,\">1\")))","v":""},{"$f":"IF(SUM('2011 Survey responses'!BX131:CF131)<1,\"\",(AVERAGEIFS('2011 Survey responses'!BX131:CF131,'2011 Survey responses'!BX131:CF131,\">1\")))","v":""},{"$f":"IF(SUM('2011 Survey responses'!CH131:CP131)<1,\"\",(AVERAGEIFS('2011 Survey responses'!CH131:CP131,'2011 Survey responses'!CH131:CP131,\">1\")))","v":""},{"$f":"IF(SUM('2011 Survey responses'!BW131:CP131)<1,\"\",(AVERAGEIFS('2011 Survey responses'!BW131:CP131,'2011 Survey responses'!BW131:CP131,\">1\")))","v":""},{"$f":"IF(('2011 Survey responses'!BW131+'2011 Survey responses'!CG131)<2.1,\"\",(SUMIF('2011 Survey responses'!BW131,\">1\")+SUMIF('2011 Survey responses'!CG131,\">1\"))/(COUNTIF('2011 Survey responses'!BW131,\">1\")+COUNTIF('2011 Survey responses'!CG131,\">1\")))","v":""},{"$f":"IF(('2011 Survey responses'!BX131+'2011 Survey responses'!CH131)<2.1,\"\",(SUMIF('2011 Survey responses'!BX131,\">1\")+SUMIF('2011 Survey responses'!CH131,\">1\"))/(COUNTIF('2011 Survey responses'!BX131,\">1\")+COUNTIF('2011 Survey responses'!CH131,\">1\")))","v":""},{"$f":"IF(('2011 Survey responses'!BY131+'2011 Survey responses'!CI131)<2.1,\"\",(SUMIF('2011 Survey responses'!BY131,\">1\")+SUMIF('2011 Survey responses'!CI131,\">1\"))/(COUNTIF('2011 Survey responses'!BY131,\">1\")+COUNTIF('2011 Survey responses'!CI131,\">1\")))","v":""},{"$f":"IF('2011 Survey responses'!CQ131<0.5,\"\",'2011 Survey responses'!CQ131)","v":""},{"$f":"IF('2011 Survey responses'!CR131<0.5,\"\",'2011 Survey responses'!CR131)","v":""},{"$f":"IF('2011 Survey responses'!CS131<0.5,\"\",'2011 Survey responses'!CS131)","v":""},{"$f":"IF('2011 Survey responses'!CT131<0.5,\"\",'2011 Survey responses'!CT131)","v":""},{"$f":"IF('2011 Survey responses'!CU131<0.5,\"\",'2011 Survey responses'!CU131)","v":""},{"$f":"IF('2011 Survey responses'!CV131<0.5,\"\",'2011 Survey responses'!CV131)","v":""},{"$f":"IF(SUM('2011 Survey responses'!CW131:DL131)<1,\"\",(AVERAGE('2011 Survey responses'!CW131:DL131)))","v":""},{"$f":"IF(SUM('2011 Survey responses'!CW131:CZ131)<1,\"\",(AVERAGE('2011 Survey responses'!CW131:CZ131)))","v":""},{"$f":"IF(SUM('2011 Survey responses'!DA131:DD131)<1,\"\",(AVERAGE('2011 Survey responses'!DA131:DD131)))","v":""},{"$f":"IF(SUM('2011 Survey responses'!DE131:DH131)<1,\"\",(AVERAGE('2011 Survey responses'!DE131:DH131)))","v":""},{"$f":"IF(SUM('2011 Survey responses'!DI131:DL131)<1,\"\",(AVERAGE('2011 Survey responses'!DI131:DL131)))","v":""},{"$f":"IF(('2011 Survey responses'!CW131+'2011 Survey responses'!DA131+'2011 Survey responses'!DE131+'2011 Survey responses'!DI131)<1,\"\",AVERAGE('2011 Survey responses'!CW131,'2011 Survey responses'!DA131,'2011 Survey responses'!DE131,'2011 Survey responses'!DI131))","v":""},{"$f":"IF(('2011 Survey responses'!CX131+'2011 Survey responses'!DB131+'2011 Survey responses'!DF131+'2011 Survey responses'!DJ131)<1,\"\",AVERAGE('2011 Survey responses'!CX131,'2011 Survey responses'!DB131,'2011 Survey responses'!DF131,'2011 Survey responses'!DJ131))","v":""},{"$f":"IF(('2011 Survey responses'!CY131+'2011 Survey responses'!DC131+'2011 Survey responses'!DG131+'2011 Survey responses'!DK131)<1,\"\",AVERAGE('2011 Survey responses'!CY131,'2011 Survey responses'!DC131,'2011 Survey responses'!DG131,'2011 Survey responses'!DK131))","v":""},{"$f":"IF(('2011 Survey responses'!CZ131+'2011 Survey responses'!DD131+'2011 Survey responses'!DH131+'2011 Survey responses'!DL131)<1,\"\",AVERAGE('2011 Survey responses'!CZ131,'2011 Survey responses'!DD131,'2011 Survey responses'!DH131,'2011 Survey responses'!DL131))","v":""},{"$f":"IF('2011 Survey responses'!CW131<0.5,\"\",'2011 Survey responses'!CW131)","v":""},{"$f":"IF('2011 Survey responses'!CX131<0.5,\"\",'2011 Survey responses'!CX131)","v":""},{"$f":"IF('2011 Survey responses'!CY131<0.5,\"\",'2011 Survey responses'!CY131)","v":""},{"$f":"IF('2011 Survey responses'!CZ131<0.5,\"\",'2011 Survey responses'!CZ131)","v":""},{"$f":"IF('2011 Survey responses'!DA131<0.5,\"\",'2011 Survey responses'!DA131)","v":""},{"$f":"IF('2011 Survey responses'!DB131<0.5,\"\",'2011 Survey responses'!DB131)","v":""},{"$f":"IF('2011 Survey responses'!DC131<0.5,\"\",'2011 Survey responses'!DC131)","v":""},{"$f":"IF('2011 Survey responses'!DD131<0.5,\"\",'2011 Survey responses'!DD131)","v":""},{"$f":"IF('2011 Survey responses'!DE131<0.5,\"\",'2011 Survey responses'!DE131)","v":""},{"$f":"IF('2011 Survey responses'!DF131<0.5,\"\",'2011 Survey responses'!DF131)","v":""},{"$f":"IF('2011 Survey responses'!DG131<0.5,\"\",'2011 Survey responses'!DG131)","v":""},{"$f":"IF('2011 Survey responses'!DH131<0.5,\"\",'2011 Survey responses'!DH131)","v":""},{"$f":"IF('2011 Survey responses'!DI131<0.5,\"\",'2011 Survey responses'!DI131)","v":""},{"$f":"IF('2011 Survey responses'!DJ131<0.5,\"\",'2011 Survey responses'!DJ131)","v":""},{"$f":"IF('2011 Survey responses'!DK131<0.5,\"\",'2011 Survey responses'!DK131)","v":""},{"$f":"IF('2011 Survey responses'!DL131<0.5,\"\",'2011 Survey responses'!DL131)","v":""},{"$f":"IF('2011 Survey responses'!DU131=4,4,IF('2011 Survey responses'!DU131=5,4,\"\"))","v":""},{"$f":"IF('2011 Survey responses'!DV131=4,3,IF('2011 Survey responses'!DV131=5,3,\"\"))","v":""},"",{"$f":"IF(CQ131=2,CQ131,IF(CO131=4,CO131,IF(CP131=3,CP131,IF('2011 Survey responses'!GT131=1,1,\"\"))))","v":""},{"$f":"IF('2011 Survey responses'!DO131<0.5,\"\",'2011 Survey responses'!DO131)","v":""},{"$f":"IF('2011 Survey responses'!DP131<0.5,\"\",'2011 Survey responses'!DP131)","v":""},{"$f":"IF('2011 Survey responses'!DQ131<0.5,\"\",'2011 Survey responses'!DQ131)","v":""},{"$f":"IF('2011 Survey responses'!DR131<0.5,\"\",'2011 Survey responses'!DR131)","v":""},{"$f":"IF('2011 Survey responses'!DS131<0.5,\"\",'2011 Survey responses'!DS131)","v":""},{"$f":"IF('2011 Survey responses'!DT131<0.5,\"\",'2011 Survey responses'!DT131)","v":""},{"$f":"IF('2011 Survey responses'!DU131<0.5,\"\",'2011 Survey responses'!DU131)","v":""},{"$f":"IF('2011 Survey responses'!DV131<0.5,\"\",'2011 Survey responses'!DV131)","v":""},{"$f":"IF('2011 Survey responses'!DW131<0.5,\"\",'2011 Survey responses'!DW131)","v":""},{"$f":"IF('2011 Survey responses'!DX131<0.5,\"\",'2011 Survey responses'!DX131)","v":""},{"$f":"IF('2011 Survey responses'!DY131<0.5,\"\",'2011 Survey responses'!DY131)","v":""},{"$f":"IF('2011 Survey responses'!DZ131<0.5,\"\",'2011 Survey responses'!DZ131)","v":""},{"$f":"IF('2011 Survey responses'!EA131<0.5,\"\",'2011 Survey responses'!EA131)","v":""},{"$f":"IF('2011 Survey responses'!EB131<0.5,\"\",'2011 Survey responses'!EB131)","v":""},{"$f":"IF('2011 Survey responses'!EC131<0.5,\"\",'2011 Survey responses'!EC131)","v":""},{"$f":"IF('2011 Survey responses'!ED131<0.5,\"\",'2011 Survey responses'!ED131)","v":""},{"$f":"IF('2011 Survey responses'!EE131<0.5,\"\",'2011 Survey responses'!EE131)","v":""},{"$f":"IF('2011 Survey responses'!EF131<0.5,\"\",'2011 Survey responses'!EF131)","v":""},{"$f":"IF('2011 Survey responses'!EG131<0.5,\"\",'2011 Survey responses'!EG131)","v":""},{"$f":"IF('2011 Survey responses'!EH131<0.5,\"\",'2011 Survey responses'!EH131)","v":""},{"$f":"IF('2011 Survey responses'!EI131<0.5,\"\",'2011 Survey responses'!EI131)","v":""},{"$f":"IF('2011 Survey responses'!EJ131<0.5,\"\",'2011 Survey responses'!EJ131)","v":""},{"$f":"IF('2011 Survey responses'!EK131<0.5,\"\",'2011 Survey responses'!EK131)","v":""},{"$f":"IF('2011 Survey responses'!EL131<0.5,\"\",'2011 Survey responses'!EL131)","v":""},{"$f":"IF('2011 Survey responses'!EM131<0.5,\"\",'2011 Survey responses'!EM131)","v":""},{"$f":"IF('2011 Survey responses'!EN131<0.5,\"\",'2011 Survey responses'!EN131)","v":""},{"$f":"IF('2011 Survey responses'!EO131<0.5,\"\",'2011 Survey responses'!EO131)","v":""},{"$f":"IF('2011 Survey responses'!EP131<0.5,\"\",'2011 Survey responses'!EP131)","v":""},{"$f":"IF(('2011 Survey responses'!EW131+'2011 Survey responses'!EX131)>=2,AVERAGE('2011 Survey responses'!EW131,'2011 Survey responses'!EY131),\"\")","v":""},{"$f":"IF('2011 Survey responses'!EX131<0.5,\"\",'2011 Survey responses'!EX131)","v":""},{"$f":"IF('2011 Survey responses'!EZ131<0.5,\"\",'2011 Survey responses'!EZ131)","v":""},{"$f":"IF('2011 Survey responses'!FB131<0.5,\"\",'2011 Survey responses'!FB131)","v":""},{"$f":"IF('2011 Survey responses'!FD131<0.5,\"\",'2011 Survey responses'!FD131)","v":""},{"$f":"IF('2011 Survey responses'!FC131<0.5,\"\",'2011 Survey responses'!FC131)","v":""},{"$f":"IF(('2011 Survey responses'!EM131+'2011 Survey responses'!EN131)>=2,AVERAGE('2011 Survey responses'!EM131,'2011 Survey responses'!EN131),\"\")","v":""},{"$f":"IF('2011 Survey responses'!ES131<0.5,\"\",'2011 Survey responses'!ES131)","v":""},{"$f":"IF(('2011 Survey responses'!ET131+'2011 Survey responses'!EU131)>=2,AVERAGE('2011 Survey responses'!ET131,'2011 Survey responses'!EU131),\"\")","v":""},{"$f":"IF('2011 Survey responses'!EV131<0.5,\"\",'2011 Survey responses'!EV131)","v":""},{"$f":"IF('2011 Survey responses'!FA131<0.5,\"\",'2011 Survey responses'!FA131)","v":""},{"$f":"IF('2011 Survey responses'!ER131<0.5,\"\",'2011 Survey responses'!ER131)","v":""},{"$f":"IF(('2011 Survey responses'!EO131+'2011 Survey responses'!EP131)>=2,AVERAGE('2011 Survey responses'!EO131,'2011 Survey responses'!EP131),\"\")","v":""},{"$f":"IF('2011 Survey responses'!EQ131<0.5,\"\",'2011 Survey responses'!EQ131)","v":""},{"$f":"IF('2011 Survey responses'!ET131<0.5,\"\",'2011 Survey responses'!ET131)","v":""},{"$f":"IF('2011 Survey responses'!EU131<0.5,\"\",'2011 Survey responses'!EU131)","v":""},{"$f":"IF('2011 Survey responses'!EW131<0.5,\"\",'2011 Survey responses'!EW131)","v":""},{"$f":"IF('2011 Survey responses'!EY131<0.5,\"\",'2011 Survey responses'!EY131)","v":""},{"$f":"IF('2011 Survey responses'!FU131<0.5,\"\",'2011 Survey responses'!FU131)","v":""},{"$f":"IF(('2011 Survey responses'!FL131+'2011 Survey responses'!FM131)>=2,AVERAGE('2011 Survey responses'!FL131,'2011 Survey responses'!FM131),\"\")","v":""},{"$f":"IF(('2011 Survey responses'!FO131+'2011 Survey responses'!FQ131)>=2,AVERAGE('2011 Survey responses'!FO131,'2011 Survey responses'!FQ131),\"\")","v":""},{"$f":"IF('2011 Survey responses'!FJ131<0.5,\"\",'2011 Survey responses'!FJ131)","v":""},{"$f":"IF('2011 Survey responses'!FT131<0.5,\"\",'2011 Survey responses'!FT131)","v":""},{"$f":"IF('2011 Survey responses'!FR131<0.5,\"\",'2011 Survey responses'!FR131)","v":""},{"$f":"IF('2011 Survey responses'!FK131<0.5,\"\",'2011 Survey responses'!FK131)","v":""},{"$f":"IF('2011 Survey responses'!FP131<0.5,\"\",'2011 Survey responses'!FP131)","v":""},{"$f":"IF('2011 Survey responses'!FN131<0.5,\"\",'2011 Survey responses'!FN131)","v":""},{"$f":"IF(('2011 Survey responses'!FE131+'2011 Survey responses'!FF131)>=2,AVERAGE('2011 Survey responses'!FE131,'2011 Survey responses'!FF131),\"\")","v":""},{"$f":"IF('2011 Survey responses'!FS131<0.5,\"\",'2011 Survey responses'!FS131)","v":""},{"$f":"IF('2011 Survey responses'!FV131<0.5,\"\",'2011 Survey responses'!FV131)","v":""},{"$f":"IF(('2011 Survey responses'!FG131+'2011 Survey responses'!FH131)>=2,AVERAGE('2011 Survey responses'!FG131,'2011 Survey responses'!FH131),\"\")","v":""},{"$f":"IF('2011 Survey responses'!FI131<0.5,\"\",'2011 Survey responses'!FI131)","v":""},{"$f":"IF('2011 Survey responses'!FE131<0.5,\"\",'2011 Survey responses'!FE131)","v":""},{"$f":"IF('2011 Survey responses'!FF131<0.5,\"\",'2011 Survey responses'!FF131)","v":""},{"$f":"IF('2011 Survey responses'!FG131<0.5,\"\",'2011 Survey responses'!FG131)","v":""},{"$f":"IF('2011 Survey responses'!FH131<0.5,\"\",'2011 Survey responses'!FH131)","v":""},{"$f":"IF('2011 Survey responses'!FL131<0.5,\"\",'2011 Survey responses'!FL131)","v":""},{"$f":"IF('2011 Survey responses'!FM131<0.5,\"\",'2011 Survey responses'!FM131)","v":""},{"$f":"IF('2011 Survey responses'!FO131<0.5,\"\",'2011 Survey responses'!FO131)","v":""},{"$f":"IF('2011 Survey responses'!FQ131<0.5,\"\",'2011 Survey responses'!FQ131)","v":""}]
["Panama",{"$f":"IF(SUM(F132)<1,\"\",AVERAGEIF('2011 Survey responses'!B132:CP132,\">1\"))","v":4.2},{"$f":"IF(SUM(F132)<1,\"\",AVERAGEIF('2011 Survey responses'!B132:AO132,\">1\"))","v":4.25},{"$f":"IF(SUM(F132)<1,\"\",AVERAGEIF('2011 Survey responses'!B132:BV132,\">1\"))","v":4.1095890410958908},{"$f":"IF(SUM(F132)<1,\"\",AVERAGEIF('2011 Survey responses'!V132:BV132,\">1\"))","v":4},{"$f":"IF(SUM('2011 Survey responses'!B132:U132)<1,\"\",(AVERAGEIFS('2011 Survey responses'!B132:U132,'2011 Survey responses'!B132:U132,\">1\")))","v":4.4000000000000004},{"$f":"IF(SUM('2011 Survey responses'!B132:H132)<1,\"\",(AVERAGEIFS('2011 Survey responses'!B132:H132,'2011 Survey responses'!B132:H132,\">1\")))","v":3.5714285714285716},{"$f":"IF(SUM('2011 Survey responses'!I132:S132)<1,\"\",(AVERAGEIFS('2011 Survey responses'!I132:S132,'2011 Survey responses'!I132:S132,\">1\")))","v":4.7272727272727275},{"$f":"IF(SUM('2011 Survey responses'!T132:U132)<2.1,\"\",(AVERAGEIFS('2011 Survey responses'!T132:U132,'2011 Survey responses'!T132:U132,\">1\")))","v":5.5},{"$f":"IF(SUM('2011 Survey responses'!B132:C132)<2.1,\"\",((SUMIF('2011 Survey responses'!B132:C132,\">1\")+SUMIF('2011 Survey responses'!F132,\">1\"))/(COUNTIF('2011 Survey responses'!B132:C132,\">1\")+COUNTIF('2011 Survey responses'!F132,\">1\"))))","v":3.6666666666666665},{"$f":"IF(SUM('2011 Survey responses'!D132:E132)<2.1,\"\",(AVERAGEIFS('2011 Survey responses'!D132:E132,'2011 Survey responses'!D132:E132,\">1\")))","v":4.5},{"$f":"IF(('2011 Survey responses'!B132+'2011 Survey responses'!D132)<2.1,\"\",((SUMIF('2011 Survey responses'!B132,\">1\")+SUMIF('2011 Survey responses'!D132,\">1\")+SUMIF('2011 Survey responses'!F132,\">1\")+SUMIF('2011 Survey responses'!K132,\">1\"))/(COUNTIF('2011 Survey responses'!B132,\">1\")+COUNTIF('2011 Survey responses'!D132,\">1\")+COUNTIF('2011 Survey responses'!F132,\">1\")+COUNTIF('2011 Survey responses'!K132,\">1\"))))","v":4.5},{"$f":"IF(SUM('2011 Survey responses'!G132:H132)<2.1,\"\",(AVERAGEIFS('2011 Survey responses'!G132:H132,'2011 Survey responses'!G132:H132,\">1\")))","v":2.5},{"$f":"IF(SUM('2011 Survey responses'!F132:G132)<1.5,\"\",MAX('2011 Survey responses'!F132,'2011 Survey responses'!G132))","v":3},{"$f":"IF(SUM('2011 Survey responses'!G132:H132)<1,\"\",MAX('2011 Survey responses'!G132,'2011 Survey responses'!H132))","v":3},{"$f":"IF(SUM('2011 Survey responses'!I132:L132)<4.1,\"\",(AVERAGEIFS('2011 Survey responses'!I132:L132,'2011 Survey responses'!I132:L132,\">1\")))","v":4.5},{"$f":"IF(SUM('2011 Survey responses'!M132:S132)<4.1,\"\",(AVERAGEIFS('2011 Survey responses'!M132:S132,'2011 Survey responses'!M132:S132,\">1\")))","v":4.8571428571428568},{"$f":"IF(SUM('2011 Survey responses'!T132:U132)<2.1,\"\",(AVERAGEIFS('2011 Survey responses'!T132:U132,'2011 Survey responses'!T132:U132,\">1\")))","v":5.5},{"$f":"IF(SUM('2011 Survey responses'!V132:AO132)<1,\"\",(AVERAGEIFS('2011 Survey responses'!V132:AO132,'2011 Survey responses'!V132:AO132,\">1\")))","v":4.0999999999999996},{"$f":"IF(SUM('2011 Survey responses'!V132:AA132)<1,\"\",(AVERAGEIFS('2011 Survey responses'!V132:AA132,'2011 Survey responses'!V132:AA132,\">1\")))","v":3.3333333333333335},{"$f":"IF(SUM('2011 Survey responses'!AB132:AH132)<1,\"\",(AVERAGEIFS('2011 Survey responses'!AB132:AH132,'2011 Survey responses'!AB132:AH132,\">1\")))","v":5},{"$f":"IF(SUM('2011 Survey responses'!AI132:AO132)<1,\"\",(AVERAGEIFS('2011 Survey responses'!AI132:AO132,'2011 Survey responses'!AI132:AO132,\">1\")))","v":3.8571428571428572},{"$f":"IF(('2011 Survey responses'!Y132+'2011 Survey responses'!AI132+'2011 Survey responses'!AK132)<3.1,\"\",((SUMIF('2011 Survey responses'!Y132,\">1\")+SUMIF('2011 Survey responses'!AI132,\">1\")+SUMIF('2011 Survey responses'!AK132,\">1\")+SUMIF('2011 Survey responses'!AM132,\">1\"))/(COUNTIF('2011 Survey responses'!Y132,\">1\")+COUNTIF('2011 Survey responses'!AI132,\">1\")+COUNTIF('2011 Survey responses'!AK132,\">1\")+COUNTIF('2011 Survey responses'!AM132,\">1\"))))","v":4},{"$f":"IF(('2011 Survey responses'!W132)<1.1,\"\",('2011 Survey responses'!W132))","v":3},{"$f":"IF(('2011 Survey responses'!Y132)<1.1,\"\",('2011 Survey responses'!Y132))","v":4},{"$f":"IF(('2011 Survey responses'!Z132)<1.1,\"\",('2011 Survey responses'!Z132))","v":5},{"$f":"IF(('2011 Survey responses'!V132+'2011 Survey responses'!X132+'2011 Survey responses'!AA132)<3.1,\"\",((SUMIF('2011 Survey responses'!V132,\">1\")+SUMIF('2011 Survey responses'!X132,\">1\")+SUMIF('2011 Survey responses'!AA132,\">1\"))/(COUNTIF('2011 Survey responses'!V132,\">1\")+COUNTIF('2011 Survey responses'!X132,\">1\")+COUNTIF('2011 Survey responses'!AA132,\">1\"))))","v":2.6666666666666665},{"$f":"IF(('2011 Survey responses'!V132+'2011 Survey responses'!Y132+'2011 Survey responses'!AA132)<3.1,\"\",((SUMIF('2011 Survey responses'!V132,\">1\")+SUMIF('2011 Survey responses'!Y132,\">1\")+SUMIF('2011 Survey responses'!AA132,\">1\"))/(COUNTIF('2011 Survey responses'!V132,\">1\")+COUNTIF('2011 Survey responses'!Y132,\">1\")+COUNTIF('2011 Survey responses'!AA132,\">1\"))))","v":3.3333333333333335},{"$f":"IF(SUM('2011 Survey responses'!AB132:AH132)<1,\"\",(AVERAGEIFS('2011 Survey responses'!AB132:AH132,'2011 Survey responses'!AB132:AH132,\">1\")))","v":5},{"$f":"IF(SUM('2011 Survey responses'!AI132:AO132)<7.1,\"\",(AVERAGEIFS('2011 Survey responses'!AI132:AO132,'2011 Survey responses'!AI132:AO132,\">1\")))","v":3.8571428571428572},{"$f":"IF(('2011 Survey responses'!AH132)<1.1,\"\",('2011 Survey responses'!AH132))","v":5},{"$f":"IF(SUM('2011 Survey responses'!AP132:BV132)<1,\"\",(AVERAGEIFS('2011 Survey responses'!AP132:BV132,'2011 Survey responses'!AP132:BV132,\">1\")))","v":3.9393939393939394},{"$f":"IF(SUM('2011 Survey responses'!AP132:AS132)<4.1,\"\",(AVERAGEIFS('2011 Survey responses'!AP132:AS132,'2011 Survey responses'!AP132:AS132,\">1\")))","v":4.75},{"$f":"IF(SUM('2011 Survey responses'!AT132:BF132)<1,\"\",(AVERAGEIFS('2011 Survey responses'!AT132:BF132,'2011 Survey responses'!AT132:BF132,\">1\")))","v":3.6153846153846154},{"$f":"IF(SUM('2011 Survey responses'!BG132:BO132)<1,\"\",(AVERAGEIFS('2011 Survey responses'!BG132:BO132,'2011 Survey responses'!BG132:BO132,\">1\")))","v":4.5555555555555554},{"$f":"IF(SUM('2011 Survey responses'!BP132:BS132)<1,\"\",(AVERAGEIFS('2011 Survey responses'!BP132:BS132,'2011 Survey responses'!BP132:BS132,\">1\")))","v":3},{"$f":"IF(SUM('2011 Survey responses'!BT132:BV132)<3.1,\"\",(AVERAGEIFS('2011 Survey responses'!BT132:BV132,'2011 Survey responses'!BT132:BV132,\">1\")))","v":3.6666666666666665},{"$f":"IF(('2011 Survey responses'!AQ132+'2011 Survey responses'!AR132+'2011 Survey responses'!BG132)<3.1,\"\",((SUMIF('2011 Survey responses'!AQ132,\">1\")+SUMIF('2011 Survey responses'!AR132,\">1\")+SUMIF('2011 Survey responses'!BG132,\">1\"))/(COUNTIF('2011 Survey responses'!AQ132,\">1\")+COUNTIF('2011 Survey responses'!AR132,\">1\")+COUNTIF('2011 Survey responses'!BG132,\">1\"))))","v":5.333333333333333},{"$f":"IF(SUM('2011 Survey responses'!AP132:AS132)<4.1,\"\",(AVERAGEIFS('2011 Survey responses'!AP132:AS132,'2011 Survey responses'!AP132:AS132,\">1\")))","v":4.75},{"$f":"IF(('2011 Survey responses'!AU132+'2011 Survey responses'!AX132+'2011 Survey responses'!BA132+'2011 Survey responses'!BC132+'2011 Survey responses'!BD132)<5.1,\"\",(SUMIF('2011 Survey responses'!AU132,\">1\")+SUMIF('2011 Survey responses'!AX132,\">1\")+SUMIF('2011 Survey responses'!BA132,\">1\")+SUMIF('2011 Survey responses'!BC132,\">1\")+SUMIF('2011 Survey responses'!BD132,\">1\"))/(COUNTIF('2011 Survey responses'!AU132,\">1\")+COUNTIF('2011 Survey responses'!AX132,\">1\")+COUNTIF('2011 Survey responses'!BA132,\">1\")+COUNTIF('2011 Survey responses'!BC132,\">1\")+COUNTIF('2011 Survey responses'!BD132,\">1\")))","v":3.4},{"$f":"IF(('2011 Survey responses'!AT132)<1.1,\"\",('2011 Survey responses'!AT132))","v":3},{"$f":"IF(SUM('2011 Survey responses'!AV132:AW132)<2.1,\"\",(AVERAGEIFS('2011 Survey responses'!AV132:AW132,'2011 Survey responses'!AV132:AW132,\">1\")))","v":2.5},{"$f":"IF(('2011 Survey responses'!AW132+'2011 Survey responses'!AY132)<2.1,\"\",(SUMIF('2011 Survey responses'!AW132,\">1\")+SUMIF('2011 Survey responses'!AY132,\">1\"))/(COUNTIF('2011 Survey responses'!AW132,\">1\")+COUNTIF('2011 Survey responses'!AY132,\">1\")))","v":3},{"$f":"IF(('2011 Survey responses'!AZ132)<1.1,\"\",('2011 Survey responses'!AZ132))","v":4},4,2,2,2,{"$f":"IF(('2011 Survey responses'!BE132)<1.1,\"\",('2011 Survey responses'!BE132))","v":6},{"$f":"IF(('2011 Survey responses'!AY132+'2011 Survey responses'!BB132+'2011 Survey responses'!BF132)<3.1,\"\",(SUMIF('2011 Survey responses'!AY132,\">1\")+SUMIF('2011 Survey responses'!BB132,\">1\")+SUMIF('2011 Survey responses'!BF132,\">1\"))/(COUNTIF('2011 Survey responses'!AY132,\">1\")+COUNTIF('2011 Survey responses'!BB132,\">1\")+COUNTIF('2011 Survey responses'!BF132,\">1\")))","v":4},3.7777777777777777,{"$f":"IF(SUM('2011 Survey responses'!BT132:BV132)<3.1,\"\",(AVERAGEIFS('2011 Survey responses'!BT132:BV132,'2011 Survey responses'!BT132:BV132,\">1\")))","v":3.6666666666666665},{"$f":"IF(SUM('2011 Survey responses'!BW132:CP132)<1,\"\",(AVERAGEIFS('2011 Survey responses'!BW132:CP132,'2011 Survey responses'!BW132:CP132,\">1\")))","v":4.5882352941176467},{"$f":"IF(SUM('2011 Survey responses'!BW132:CF132)<1,\"\",(AVERAGEIFS('2011 Survey responses'!BW132:CF132,'2011 Survey responses'!BW132:CF132,\">1\")))","v":4.333333333333333},{"$f":"IF(SUM('2011 Survey responses'!CG132:CP132)<1,\"\",(AVERAGEIFS('2011 Survey responses'!CG132:CP132,'2011 Survey responses'!CG132:CP132,\">1\")))","v":4.875},{"$f":"IF(SUM('2011 Survey responses'!BX132:CF132)<1,\"\",(AVERAGEIFS('2011 Survey responses'!BX132:CF132,'2011 Survey responses'!BX132:CF132,\">1\")))","v":4.5},{"$f":"IF(SUM('2011 Survey responses'!CH132:CP132)<1,\"\",(AVERAGEIFS('2011 Survey responses'!CH132:CP132,'2011 Survey responses'!CH132:CP132,\">1\")))","v":4.8571428571428568},{"$f":"IF(SUM('2011 Survey responses'!BW132:CP132)<1,\"\",(AVERAGEIFS('2011 Survey responses'!BW132:CP132,'2011 Survey responses'!BW132:CP132,\">1\")))","v":4.5882352941176467},{"$f":"IF(('2011 Survey responses'!BW132+'2011 Survey responses'!CG132)<2.1,\"\",(SUMIF('2011 Survey responses'!BW132,\">1\")+SUMIF('2011 Survey responses'!CG132,\">1\"))/(COUNTIF('2011 Survey responses'!BW132,\">1\")+COUNTIF('2011 Survey responses'!CG132,\">1\")))","v":4},{"$f":"IF(('2011 Survey responses'!BX132+'2011 Survey responses'!CH132)<2.1,\"\",(SUMIF('2011 Survey responses'!BX132,\">1\")+SUMIF('2011 Survey responses'!CH132,\">1\"))/(COUNTIF('2011 Survey responses'!BX132,\">1\")+COUNTIF('2011 Survey responses'!CH132,\">1\")))","v":4.5},{"$f":"IF(('2011 Survey responses'!BY132+'2011 Survey responses'!CI132)<2.1,\"\",(SUMIF('2011 Survey responses'!BY132,\">1\")+SUMIF('2011 Survey responses'!CI132,\">1\"))/(COUNTIF('2011 Survey responses'!BY132,\">1\")+COUNTIF('2011 Survey responses'!CI132,\">1\")))","v":5},{"$f":"IF('2011 Survey responses'!CQ132<0.5,\"\",'2011 Survey responses'!CQ132)","v":4},{"$f":"IF('2011 Survey responses'!CR132<0.5,\"\",'2011 Survey responses'!CR132)","v":4},{"$f":"IF('2011 Survey responses'!CS132<0.5,\"\",'2011 Survey responses'!CS132)","v":4},{"$f":"IF('2011 Survey responses'!CT132<0.5,\"\",'2011 Survey responses'!CT132)","v":4},{"$f":"IF('2011 Survey responses'!CU132<0.5,\"\",'2011 Survey responses'!CU132)","v":4},{"$f":"IF('2011 Survey responses'!CV132<0.5,\"\",'2011 Survey responses'!CV132)","v":4},{"$f":"IF(SUM('2011 Survey responses'!CW132:DL132)<1,\"\",(AVERAGE('2011 Survey responses'!CW132:DL132)))","v":""},{"$f":"IF(SUM('2011 Survey responses'!CW132:CZ132)<1,\"\",(AVERAGE('2011 Survey responses'!CW132:CZ132)))","v":""},{"$f":"IF(SUM('2011 Survey responses'!DA132:DD132)<1,\"\",(AVERAGE('2011 Survey responses'!DA132:DD132)))","v":""},{"$f":"IF(SUM('2011 Survey responses'!DE132:DH132)<1,\"\",(AVERAGE('2011 Survey responses'!DE132:DH132)))","v":""},{"$f":"IF(SUM('2011 Survey responses'!DI132:DL132)<1,\"\",(AVERAGE('2011 Survey responses'!DI132:DL132)))","v":""},{"$f":"IF(('2011 Survey responses'!CW132+'2011 Survey responses'!DA132+'2011 Survey responses'!DE132+'2011 Survey responses'!DI132)<1,\"\",AVERAGE('2011 Survey responses'!CW132,'2011 Survey responses'!DA132,'2011 Survey responses'!DE132,'2011 Survey responses'!DI132))","v":""},{"$f":"IF(('2011 Survey responses'!CX132+'2011 Survey responses'!DB132+'2011 Survey responses'!DF132+'2011 Survey responses'!DJ132)<1,\"\",AVERAGE('2011 Survey responses'!CX132,'2011 Survey responses'!DB132,'2011 Survey responses'!DF132,'2011 Survey responses'!DJ132))","v":""},{"$f":"IF(('2011 Survey responses'!CY132+'2011 Survey responses'!DC132+'2011 Survey responses'!DG132+'2011 Survey responses'!DK132)<1,\"\",AVERAGE('2011 Survey responses'!CY132,'2011 Survey responses'!DC132,'2011 Survey responses'!DG132,'2011 Survey responses'!DK132))","v":""},{"$f":"IF(('2011 Survey responses'!CZ132+'2011 Survey responses'!DD132+'2011 Survey responses'!DH132+'2011 Survey responses'!DL132)<1,\"\",AVERAGE('2011 Survey responses'!CZ132,'2011 Survey responses'!DD132,'2011 Survey responses'!DH132,'2011 Survey responses'!DL132))","v":""},{"$f":"IF('2011 Survey responses'!CW132<0.5,\"\",'2011 Survey responses'!CW132)","v":""},{"$f":"IF('2011 Survey responses'!CX132<0.5,\"\",'2011 Survey responses'!CX132)","v":""},{"$f":"IF('2011 Survey responses'!CY132<0.5,\"\",'2011 Survey responses'!CY132)","v":""},{"$f":"IF('2011 Survey responses'!CZ132<0.5,\"\",'2011 Survey responses'!CZ132)","v":""},{"$f":"IF('2011 Survey responses'!DA132<0.5,\"\",'2011 Survey responses'!DA132)","v":""},{"$f":"IF('2011 Survey responses'!DB132<0.5,\"\",'2011 Survey responses'!DB132)","v":""},{"$f":"IF('2011 Survey responses'!DC132<0.5,\"\",'2011 Survey responses'!DC132)","v":""},{"$f":"IF('2011 Survey responses'!DD132<0.5,\"\",'2011 Survey responses'!DD132)","v":""},{"$f":"IF('2011 Survey responses'!DE132<0.5,\"\",'2011 Survey responses'!DE132)","v":""},{"$f":"IF('2011 Survey responses'!DF132<0.5,\"\",'2011 Survey responses'!DF132)","v":""},{"$f":"IF('2011 Survey responses'!DG132<0.5,\"\",'2011 Survey responses'!DG132)","v":""},{"$f":"IF('2011 Survey responses'!DH132<0.5,\"\",'2011 Survey responses'!DH132)","v":""},{"$f":"IF('2011 Survey responses'!DI132<0.5,\"\",'2011 Survey responses'!DI132)","v":""},{"$f":"IF('2011 Survey responses'!DJ132<0.5,\"\",'2011 Survey responses'!DJ132)","v":""},{"$f":"IF('2011 Survey responses'!DK132<0.5,\"\",'2011 Survey responses'!DK132)","v":""},{"$f":"IF('2011 Survey responses'!DL132<0.5,\"\",'2011 Survey responses'!DL132)","v":""},{"$f":"IF('2011 Survey responses'!DU132=4,4,IF('2011 Survey responses'!DU132=5,4,\"\"))","v":4},{"$f":"IF('2011 Survey responses'!DV132=4,3,IF('2011 Survey responses'!DV132=5,3,\"\"))","v":3},{"$f":"IF(AND(CO132=4,CP132=3),2,\"\")","v":2},{"$f":"IF(CQ132=2,CQ132,IF(CO132=4,CO132,IF(CP132=3,CP132,IF('2011 Survey responses'!GT132=1,1,\"\"))))","v":2},{"$f":"IF('2011 Survey responses'!DO132<0.5,\"\",'2011 Survey responses'!DO132)","v":5},{"$f":"IF('2011 Survey responses'!DP132<0.5,\"\",'2011 Survey responses'!DP132)","v":5},{"$f":"IF('2011 Survey responses'!DQ132<0.5,\"\",'2011 Survey responses'!DQ132)","v":2},{"$f":"IF('2011 Survey responses'!DR132<0.5,\"\",'2011 Survey responses'!DR132)","v":5},{"$f":"IF('2011 Survey responses'!DS132<0.5,\"\",'2011 Survey responses'!DS132)","v":3},{"$f":"IF('2011 Survey responses'!DT132<0.5,\"\",'2011 Survey responses'!DT132)","v":5},{"$f":"IF('2011 Survey responses'!DU132<0.5,\"\",'2011 Survey responses'!DU132)","v":5},{"$f":"IF('2011 Survey responses'!DV132<0.5,\"\",'2011 Survey responses'!DV132)","v":5},{"$f":"IF('2011 Survey responses'!DW132<0.5,\"\",'2011 Survey responses'!DW132)","v":5},{"$f":"IF('2011 Survey responses'!DX132<0.5,\"\",'2011 Survey responses'!DX132)","v":5},{"$f":"IF('2011 Survey responses'!DY132<0.5,\"\",'2011 Survey responses'!DY132)","v":5},{"$f":"IF('2011 Survey responses'!DZ132<0.5,\"\",'2011 Survey responses'!DZ132)","v":5},{"$f":"IF('2011 Survey responses'!EA132<0.5,\"\",'2011 Survey responses'!EA132)","v":5},{"$f":"IF('2011 Survey responses'!EB132<0.5,\"\",'2011 Survey responses'!EB132)","v":5},{"$f":"IF('2011 Survey responses'!EC132<0.5,\"\",'2011 Survey responses'!EC132)","v":3},{"$f":"IF('2011 Survey responses'!ED132<0.5,\"\",'2011 Survey responses'!ED132)","v":4},{"$f":"IF('2011 Survey responses'!EE132<0.5,\"\",'2011 Survey responses'!EE132)","v":4},{"$f":"IF('2011 Survey responses'!EF132<0.5,\"\",'2011 Survey responses'!EF132)","v":5},{"$f":"IF('2011 Survey responses'!EG132<0.5,\"\",'2011 Survey responses'!EG132)","v":5},{"$f":"IF('2011 Survey responses'!EH132<0.5,\"\",'2011 Survey responses'!EH132)","v":5},{"$f":"IF('2011 Survey responses'!EI132<0.5,\"\",'2011 Survey responses'!EI132)","v":5},{"$f":"IF('2011 Survey responses'!EJ132<0.5,\"\",'2011 Survey responses'!EJ132)","v":5},{"$f":"IF('2011 Survey responses'!EK132<0.5,\"\",'2011 Survey responses'!EK132)","v":5},{"$f":"IF('2011 Survey responses'!EL132<0.5,\"\",'2011 Survey responses'!EL132)","v":5},{"$f":"IF('2011 Survey responses'!EM132<0.5,\"\",'2011 Survey responses'!EM132)","v":4},{"$f":"IF('2011 Survey responses'!EN132<0.5,\"\",'2011 Survey responses'!EN132)","v":3},{"$f":"IF('2011 Survey responses'!EO132<0.5,\"\",'2011 Survey responses'!EO132)","v":4},{"$f":"IF('2011 Survey responses'!EP132<0.5,\"\",'2011 Survey responses'!EP132)","v":4},{"$f":"IF(('2011 Survey responses'!EW132+'2011 Survey responses'!EX132)>=2,AVERAGE('2011 Survey responses'!EW132,'2011 Survey responses'!EY132),\"\")","v":4.5},{"$f":"IF('2011 Survey responses'!EX132<0.5,\"\",'2011 Survey responses'!EX132)","v":5},{"$f":"IF('2011 Survey responses'!EZ132<0.5,\"\",'2011 Survey responses'!EZ132)","v":4},{"$f":"IF('2011 Survey responses'!FB132<0.5,\"\",'2011 Survey responses'!FB132)","v":4},{"$f":"IF('2011 Survey responses'!FD132<0.5,\"\",'2011 Survey responses'!FD132)","v":3},{"$f":"IF('2011 Survey responses'!FC132<0.5,\"\",'2011 Survey responses'!FC132)","v":4},{"$f":"IF(('2011 Survey responses'!EM132+'2011 Survey responses'!EN132)>=2,AVERAGE('2011 Survey responses'!EM132,'2011 Survey responses'!EN132),\"\")","v":3.5},{"$f":"IF('2011 Survey responses'!ES132<0.5,\"\",'2011 Survey responses'!ES132)","v":4},{"$f":"IF(('2011 Survey responses'!ET132+'2011 Survey responses'!EU132)>=2,AVERAGE('2011 Survey responses'!ET132,'2011 Survey responses'!EU132),\"\")","v":3.5},{"$f":"IF('2011 Survey responses'!EV132<0.5,\"\",'2011 Survey responses'!EV132)","v":4},{"$f":"IF('2011 Survey responses'!FA132<0.5,\"\",'2011 Survey responses'!FA132)","v":4},{"$f":"IF('2011 Survey responses'!ER132<0.5,\"\",'2011 Survey responses'!ER132)","v":5},{"$f":"IF(('2011 Survey responses'!EO132+'2011 Survey responses'!EP132)>=2,AVERAGE('2011 Survey responses'!EO132,'2011 Survey responses'!EP132),\"\")","v":4},{"$f":"IF('2011 Survey responses'!EQ132<0.5,\"\",'2011 Survey responses'!EQ132)","v":4},{"$f":"IF('2011 Survey responses'!ET132<0.5,\"\",'2011 Survey responses'!ET132)","v":4},{"$f":"IF('2011 Survey responses'!EU132<0.5,\"\",'2011 Survey responses'!EU132)","v":3},{"$f":"IF('2011 Survey responses'!EW132<0.5,\"\",'2011 Survey responses'!EW132)","v":4},{"$f":"IF('2011 Survey responses'!EY132<0.5,\"\",'2011 Survey responses'!EY132)","v":5},{"$f":"IF('2011 Survey responses'!FU132<0.5,\"\",'2011 Survey responses'!FU132)","v":5},{"$f":"IF(('2011 Survey responses'!FL132+'2011 Survey responses'!FM132)>=2,AVERAGE('2011 Survey responses'!FL132,'2011 Survey responses'!FM132),\"\")","v":3.5},{"$f":"IF(('2011 Survey responses'!FO132+'2011 Survey responses'!FQ132)>=2,AVERAGE('2011 Survey responses'!FO132,'2011 Survey responses'!FQ132),\"\")","v":4},{"$f":"IF('2011 Survey responses'!FJ132<0.5,\"\",'2011 Survey responses'!FJ132)","v":4},{"$f":"IF('2011 Survey responses'!FT132<0.5,\"\",'2011 Survey responses'!FT132)","v":5},{"$f":"IF('2011 Survey responses'!FR132<0.5,\"\",'2011 Survey responses'!FR132)","v":4},{"$f":"IF('2011 Survey responses'!FK132<0.5,\"\",'2011 Survey responses'!FK132)","v":5},{"$f":"IF('2011 Survey responses'!FP132<0.5,\"\",'2011 Survey responses'!FP132)","v":5},{"$f":"IF('2011 Survey responses'!FN132<0.5,\"\",'2011 Survey responses'!FN132)","v":4},{"$f":"IF(('2011 Survey responses'!FE132+'2011 Survey responses'!FF132)>=2,AVERAGE('2011 Survey responses'!FE132,'2011 Survey responses'!FF132),\"\")","v":4},{"$f":"IF('2011 Survey responses'!FS132<0.5,\"\",'2011 Survey responses'!FS132)","v":4},{"$f":"IF('2011 Survey responses'!FV132<0.5,\"\",'2011 Survey responses'!FV132)","v":3},{"$f":"IF(('2011 Survey responses'!FG132+'2011 Survey responses'!FH132)>=2,AVERAGE('2011 Survey responses'!FG132,'2011 Survey responses'!FH132),\"\")","v":4.5},{"$f":"IF('2011 Survey responses'!FI132<0.5,\"\",'2011 Survey responses'!FI132)","v":4},{"$f":"IF('2011 Survey responses'!FE132<0.5,\"\",'2011 Survey responses'!FE132)","v":4},{"$f":"IF('2011 Survey responses'!FF132<0.5,\"\",'2011 Survey responses'!FF132)","v":4},{"$f":"IF('2011 Survey responses'!FG132<0.5,\"\",'2011 Survey responses'!FG132)","v":5},{"$f":"IF('2011 Survey responses'!FH132<0.5,\"\",'2011 Survey responses'!FH132)","v":4},{"$f":"IF('2011 Survey responses'!FL132<0.5,\"\",'2011 Survey responses'!FL132)","v":4},{"$f":"IF('2011 Survey responses'!FM132<0.5,\"\",'2011 Survey responses'!FM132)","v":3},{"$f":"IF('2011 Survey responses'!FO132<0.5,\"\",'2011 Survey responses'!FO132)","v":4},{"$f":"IF('2011 Survey responses'!FQ132<0.5,\"\",'2011 Survey responses'!FQ132)","v":4}]
["Papua New Guinea",{"$f":"IF(SUM(F133)<1,\"\",AVERAGEIF('2011 Survey responses'!B133:CP133,\">1\"))","v":""},{"$f":"IF(SUM(F133)<1,\"\",AVERAGEIF('2011 Survey responses'!B133:AO133,\">1\"))","v":""},{"$f":"IF(SUM(F133)<1,\"\",AVERAGEIF('2011 Survey responses'!B133:BV133,\">1\"))","v":""},{"$f":"IF(SUM(F133)<1,\"\",AVERAGEIF('2011 Survey responses'!V133:BV133,\">1\"))","v":""},{"$f":"IF(SUM('2011 Survey responses'!B133:U133)<1,\"\",(AVERAGEIFS('2011 Survey responses'!B133:U133,'2011 Survey responses'!B133:U133,\">1\")))","v":""},{"$f":"IF(SUM('2011 Survey responses'!B133:H133)<1,\"\",(AVERAGEIFS('2011 Survey responses'!B133:H133,'2011 Survey responses'!B133:H133,\">1\")))","v":""},{"$f":"IF(SUM('2011 Survey responses'!I133:S133)<1,\"\",(AVERAGEIFS('2011 Survey responses'!I133:S133,'2011 Survey responses'!I133:S133,\">1\")))","v":""},{"$f":"IF(SUM('2011 Survey responses'!T133:U133)<2.1,\"\",(AVERAGEIFS('2011 Survey responses'!T133:U133,'2011 Survey responses'!T133:U133,\">1\")))","v":""},{"$f":"IF(SUM('2011 Survey responses'!B133:C133)<2.1,\"\",((SUMIF('2011 Survey responses'!B133:C133,\">1\")+SUMIF('2011 Survey responses'!F133,\">1\"))/(COUNTIF('2011 Survey responses'!B133:C133,\">1\")+COUNTIF('2011 Survey responses'!F133,\">1\"))))","v":""},{"$f":"IF(SUM('2011 Survey responses'!D133:E133)<2.1,\"\",(AVERAGEIFS('2011 Survey responses'!D133:E133,'2011 Survey responses'!D133:E133,\">1\")))","v":""},{"$f":"IF(('2011 Survey responses'!B133+'2011 Survey responses'!D133)<2.1,\"\",((SUMIF('2011 Survey responses'!B133,\">1\")+SUMIF('2011 Survey responses'!D133,\">1\")+SUMIF('2011 Survey responses'!F133,\">1\")+SUMIF('2011 Survey responses'!K133,\">1\"))/(COUNTIF('2011 Survey responses'!B133,\">1\")+COUNTIF('2011 Survey responses'!D133,\">1\")+COUNTIF('2011 Survey responses'!F133,\">1\")+COUNTIF('2011 Survey responses'!K133,\">1\"))))","v":""},{"$f":"IF(SUM('2011 Survey responses'!G133:H133)<2.1,\"\",(AVERAGEIFS('2011 Survey responses'!G133:H133,'2011 Survey responses'!G133:H133,\">1\")))","v":""},{"$f":"IF(SUM('2011 Survey responses'!F133:G133)<1.5,\"\",MAX('2011 Survey responses'!F133,'2011 Survey responses'!G133))","v":""},{"$f":"IF(SUM('2011 Survey responses'!G133:H133)<1,\"\",MAX('2011 Survey responses'!G133,'2011 Survey responses'!H133))","v":""},{"$f":"IF(SUM('2011 Survey responses'!I133:L133)<4.1,\"\",(AVERAGEIFS('2011 Survey responses'!I133:L133,'2011 Survey responses'!I133:L133,\">1\")))","v":""},{"$f":"IF(SUM('2011 Survey responses'!M133:S133)<4.1,\"\",(AVERAGEIFS('2011 Survey responses'!M133:S133,'2011 Survey responses'!M133:S133,\">1\")))","v":""},{"$f":"IF(SUM('2011 Survey responses'!T133:U133)<2.1,\"\",(AVERAGEIFS('2011 Survey responses'!T133:U133,'2011 Survey responses'!T133:U133,\">1\")))","v":""},{"$f":"IF(SUM('2011 Survey responses'!V133:AO133)<1,\"\",(AVERAGEIFS('2011 Survey responses'!V133:AO133,'2011 Survey responses'!V133:AO133,\">1\")))","v":""},{"$f":"IF(SUM('2011 Survey responses'!V133:AA133)<1,\"\",(AVERAGEIFS('2011 Survey responses'!V133:AA133,'2011 Survey responses'!V133:AA133,\">1\")))","v":""},{"$f":"IF(SUM('2011 Survey responses'!AB133:AH133)<1,\"\",(AVERAGEIFS('2011 Survey responses'!AB133:AH133,'2011 Survey responses'!AB133:AH133,\">1\")))","v":""},{"$f":"IF(SUM('2011 Survey responses'!AI133:AO133)<1,\"\",(AVERAGEIFS('2011 Survey responses'!AI133:AO133,'2011 Survey responses'!AI133:AO133,\">1\")))","v":""},{"$f":"IF(('2011 Survey responses'!Y133+'2011 Survey responses'!AI133+'2011 Survey responses'!AK133)<3.1,\"\",((SUMIF('2011 Survey responses'!Y133,\">1\")+SUMIF('2011 Survey responses'!AI133,\">1\")+SUMIF('2011 Survey responses'!AK133,\">1\")+SUMIF('2011 Survey responses'!AM133,\">1\"))/(COUNTIF('2011 Survey responses'!Y133,\">1\")+COUNTIF('2011 Survey responses'!AI133,\">1\")+COUNTIF('2011 Survey responses'!AK133,\">1\")+COUNTIF('2011 Survey responses'!AM133,\">1\"))))","v":""},{"$f":"IF(('2011 Survey responses'!W133)<1.1,\"\",('2011 Survey responses'!W133))","v":""},{"$f":"IF(('2011 Survey responses'!Y133)<1.1,\"\",('2011 Survey responses'!Y133))","v":""},{"$f":"IF(('2011 Survey responses'!Z133)<1.1,\"\",('2011 Survey responses'!Z133))","v":""},{"$f":"IF(('2011 Survey responses'!V133+'2011 Survey responses'!X133+'2011 Survey responses'!AA133)<3.1,\"\",((SUMIF('2011 Survey responses'!V133,\">1\")+SUMIF('2011 Survey responses'!X133,\">1\")+SUMIF('2011 Survey responses'!AA133,\">1\"))/(COUNTIF('2011 Survey responses'!V133,\">1\")+COUNTIF('2011 Survey responses'!X133,\">1\")+COUNTIF('2011 Survey responses'!AA133,\">1\"))))","v":""},{"$f":"IF(('2011 Survey responses'!V133+'2011 Survey responses'!Y133+'2011 Survey responses'!AA133)<3.1,\"\",((SUMIF('2011 Survey responses'!V133,\">1\")+SUMIF('2011 Survey responses'!Y133,\">1\")+SUMIF('2011 Survey responses'!AA133,\">1\"))/(COUNTIF('2011 Survey responses'!V133,\">1\")+COUNTIF('2011 Survey responses'!Y133,\">1\")+COUNTIF('2011 Survey responses'!AA133,\">1\"))))","v":""},{"$f":"IF(SUM('2011 Survey responses'!AB133:AH133)<1,\"\",(AVERAGEIFS('2011 Survey responses'!AB133:AH133,'2011 Survey responses'!AB133:AH133,\">1\")))","v":""},{"$f":"IF(SUM('2011 Survey responses'!AI133:AO133)<7.1,\"\",(AVERAGEIFS('2011 Survey responses'!AI133:AO133,'2011 Survey responses'!AI133:AO133,\">1\")))","v":""},{"$f":"IF(('2011 Survey responses'!AH133)<1.1,\"\",('2011 Survey responses'!AH133))","v":""},{"$f":"IF(SUM('2011 Survey responses'!AP133:BV133)<1,\"\",(AVERAGEIFS('2011 Survey responses'!AP133:BV133,'2011 Survey responses'!AP133:BV133,\">1\")))","v":""},{"$f":"IF(SUM('2011 Survey responses'!AP133:AS133)<4.1,\"\",(AVERAGEIFS('2011 Survey responses'!AP133:AS133,'2011 Survey responses'!AP133:AS133,\">1\")))","v":""},{"$f":"IF(SUM('2011 Survey responses'!AT133:BF133)<1,\"\",(AVERAGEIFS('2011 Survey responses'!AT133:BF133,'2011 Survey responses'!AT133:BF133,\">1\")))","v":""},{"$f":"IF(SUM('2011 Survey responses'!BG133:BO133)<1,\"\",(AVERAGEIFS('2011 Survey responses'!BG133:BO133,'2011 Survey responses'!BG133:BO133,\">1\")))","v":""},{"$f":"IF(SUM('2011 Survey responses'!BP133:BS133)<1,\"\",(AVERAGEIFS('2011 Survey responses'!BP133:BS133,'2011 Survey responses'!BP133:BS133,\">1\")))","v":""},{"$f":"IF(SUM('2011 Survey responses'!BT133:BV133)<3.1,\"\",(AVERAGEIFS('2011 Survey responses'!BT133:BV133,'2011 Survey responses'!BT133:BV133,\">1\")))","v":""},{"$f":"IF(('2011 Survey responses'!AQ133+'2011 Survey responses'!AR133+'2011 Survey responses'!BG133)<3.1,\"\",((SUMIF('2011 Survey responses'!AQ133,\">1\")+SUMIF('2011 Survey responses'!AR133,\">1\")+SUMIF('2011 Survey responses'!BG133,\">1\"))/(COUNTIF('2011 Survey responses'!AQ133,\">1\")+COUNTIF('2011 Survey responses'!AR133,\">1\")+COUNTIF('2011 Survey responses'!BG133,\">1\"))))","v":""},{"$f":"IF(SUM('2011 Survey responses'!AP133:AS133)<4.1,\"\",(AVERAGEIFS('2011 Survey responses'!AP133:AS133,'2011 Survey responses'!AP133:AS133,\">1\")))","v":""},{"$f":"IF(('2011 Survey responses'!AU133+'2011 Survey responses'!AX133+'2011 Survey responses'!BA133+'2011 Survey responses'!BC133+'2011 Survey responses'!BD133)<5.1,\"\",(SUMIF('2011 Survey responses'!AU133,\">1\")+SUMIF('2011 Survey responses'!AX133,\">1\")+SUMIF('2011 Survey responses'!BA133,\">1\")+SUMIF('2011 Survey responses'!BC133,\">1\")+SUMIF('2011 Survey responses'!BD133,\">1\"))/(COUNTIF('2011 Survey responses'!AU133,\">1\")+COUNTIF('2011 Survey responses'!AX133,\">1\")+COUNTIF('2011 Survey responses'!BA133,\">1\")+COUNTIF('2011 Survey responses'!BC133,\">1\")+COUNTIF('2011 Survey responses'!BD133,\">1\")))","v":""},{"$f":"IF(('2011 Survey responses'!AT133)<1.1,\"\",('2011 Survey responses'!AT133))","v":""},{"$f":"IF(SUM('2011 Survey responses'!AV133:AW133)<2.1,\"\",(AVERAGEIFS('2011 Survey responses'!AV133:AW133,'2011 Survey responses'!AV133:AW133,\">1\")))","v":""},{"$f":"IF(('2011 Survey responses'!AW133+'2011 Survey responses'!AY133)<2.1,\"\",(SUMIF('2011 Survey responses'!AW133,\">1\")+SUMIF('2011 Survey responses'!AY133,\">1\"))/(COUNTIF('2011 Survey responses'!AW133,\">1\")+COUNTIF('2011 Survey responses'!AY133,\">1\")))","v":""},{"$f":"IF(('2011 Survey responses'!AZ133)<1.1,\"\",('2011 Survey responses'!AZ133))","v":""},null,null,null,null,{"$f":"IF(('2011 Survey responses'!BE133)<1.1,\"\",('2011 Survey responses'!BE133))","v":""},{"$f":"IF(('2011 Survey responses'!AY133+'2011 Survey responses'!BB133+'2011 Survey responses'!BF133)<3.1,\"\",(SUMIF('2011 Survey responses'!AY133,\">1\")+SUMIF('2011 Survey responses'!BB133,\">1\")+SUMIF('2011 Survey responses'!BF133,\">1\"))/(COUNTIF('2011 Survey responses'!AY133,\">1\")+COUNTIF('2011 Survey responses'!BB133,\">1\")+COUNTIF('2011 Survey responses'!BF133,\">1\")))","v":""},"",{"$f":"IF(SUM('2011 Survey responses'!BT133:BV133)<3.1,\"\",(AVERAGEIFS('2011 Survey responses'!BT133:BV133,'2011 Survey responses'!BT133:BV133,\">1\")))","v":""},{"$f":"IF(SUM('2011 Survey responses'!BW133:CP133)<1,\"\",(AVERAGEIFS('2011 Survey responses'!BW133:CP133,'2011 Survey responses'!BW133:CP133,\">1\")))","v":""},{"$f":"IF(SUM('2011 Survey responses'!BW133:CF133)<1,\"\",(AVERAGEIFS('2011 Survey responses'!BW133:CF133,'2011 Survey responses'!BW133:CF133,\">1\")))","v":""},{"$f":"IF(SUM('2011 Survey responses'!CG133:CP133)<1,\"\",(AVERAGEIFS('2011 Survey responses'!CG133:CP133,'2011 Survey responses'!CG133:CP133,\">1\")))","v":""},{"$f":"IF(SUM('2011 Survey responses'!BX133:CF133)<1,\"\",(AVERAGEIFS('2011 Survey responses'!BX133:CF133,'2011 Survey responses'!BX133:CF133,\">1\")))","v":""},{"$f":"IF(SUM('2011 Survey responses'!CH133:CP133)<1,\"\",(AVERAGEIFS('2011 Survey responses'!CH133:CP133,'2011 Survey responses'!CH133:CP133,\">1\")))","v":""},{"$f":"IF(SUM('2011 Survey responses'!BW133:CP133)<1,\"\",(AVERAGEIFS('2011 Survey responses'!BW133:CP133,'2011 Survey responses'!BW133:CP133,\">1\")))","v":""},{"$f":"IF(('2011 Survey responses'!BW133+'2011 Survey responses'!CG133)<2.1,\"\",(SUMIF('2011 Survey responses'!BW133,\">1\")+SUMIF('2011 Survey responses'!CG133,\">1\"))/(COUNTIF('2011 Survey responses'!BW133,\">1\")+COUNTIF('2011 Survey responses'!CG133,\">1\")))","v":""},{"$f":"IF(('2011 Survey responses'!BX133+'2011 Survey responses'!CH133)<2.1,\"\",(SUMIF('2011 Survey responses'!BX133,\">1\")+SUMIF('2011 Survey responses'!CH133,\">1\"))/(COUNTIF('2011 Survey responses'!BX133,\">1\")+COUNTIF('2011 Survey responses'!CH133,\">1\")))","v":""},{"$f":"IF(('2011 Survey responses'!BY133+'2011 Survey responses'!CI133)<2.1,\"\",(SUMIF('2011 Survey responses'!BY133,\">1\")+SUMIF('2011 Survey responses'!CI133,\">1\"))/(COUNTIF('2011 Survey responses'!BY133,\">1\")+COUNTIF('2011 Survey responses'!CI133,\">1\")))","v":""},{"$f":"IF('2011 Survey responses'!CQ133<0.5,\"\",'2011 Survey responses'!CQ133)","v":""},{"$f":"IF('2011 Survey responses'!CR133<0.5,\"\",'2011 Survey responses'!CR133)","v":""},{"$f":"IF('2011 Survey responses'!CS133<0.5,\"\",'2011 Survey responses'!CS133)","v":""},{"$f":"IF('2011 Survey responses'!CT133<0.5,\"\",'2011 Survey responses'!CT133)","v":""},{"$f":"IF('2011 Survey responses'!CU133<0.5,\"\",'2011 Survey responses'!CU133)","v":""},{"$f":"IF('2011 Survey responses'!CV133<0.5,\"\",'2011 Survey responses'!CV133)","v":""},{"$f":"IF(SUM('2011 Survey responses'!CW133:DL133)<1,\"\",(AVERAGE('2011 Survey responses'!CW133:DL133)))","v":""},{"$f":"IF(SUM('2011 Survey responses'!CW133:CZ133)<1,\"\",(AVERAGE('2011 Survey responses'!CW133:CZ133)))","v":""},{"$f":"IF(SUM('2011 Survey responses'!DA133:DD133)<1,\"\",(AVERAGE('2011 Survey responses'!DA133:DD133)))","v":""},{"$f":"IF(SUM('2011 Survey responses'!DE133:DH133)<1,\"\",(AVERAGE('2011 Survey responses'!DE133:DH133)))","v":""},{"$f":"IF(SUM('2011 Survey responses'!DI133:DL133)<1,\"\",(AVERAGE('2011 Survey responses'!DI133:DL133)))","v":""},{"$f":"IF(('2011 Survey responses'!CW133+'2011 Survey responses'!DA133+'2011 Survey responses'!DE133+'2011 Survey responses'!DI133)<1,\"\",AVERAGE('2011 Survey responses'!CW133,'2011 Survey responses'!DA133,'2011 Survey responses'!DE133,'2011 Survey responses'!DI133))","v":""},{"$f":"IF(('2011 Survey responses'!CX133+'2011 Survey responses'!DB133+'2011 Survey responses'!DF133+'2011 Survey responses'!DJ133)<1,\"\",AVERAGE('2011 Survey responses'!CX133,'2011 Survey responses'!DB133,'2011 Survey responses'!DF133,'2011 Survey responses'!DJ133))","v":""},{"$f":"IF(('2011 Survey responses'!CY133+'2011 Survey responses'!DC133+'2011 Survey responses'!DG133+'2011 Survey responses'!DK133)<1,\"\",AVERAGE('2011 Survey responses'!CY133,'2011 Survey responses'!DC133,'2011 Survey responses'!DG133,'2011 Survey responses'!DK133))","v":""},{"$f":"IF(('2011 Survey responses'!CZ133+'2011 Survey responses'!DD133+'2011 Survey responses'!DH133+'2011 Survey responses'!DL133)<1,\"\",AVERAGE('2011 Survey responses'!CZ133,'2011 Survey responses'!DD133,'2011 Survey responses'!DH133,'2011 Survey responses'!DL133))","v":""},{"$f":"IF('2011 Survey responses'!CW133<0.5,\"\",'2011 Survey responses'!CW133)","v":""},{"$f":"IF('2011 Survey responses'!CX133<0.5,\"\",'2011 Survey responses'!CX133)","v":""},{"$f":"IF('2011 Survey responses'!CY133<0.5,\"\",'2011 Survey responses'!CY133)","v":""},{"$f":"IF('2011 Survey responses'!CZ133<0.5,\"\",'2011 Survey responses'!CZ133)","v":""},{"$f":"IF('2011 Survey responses'!DA133<0.5,\"\",'2011 Survey responses'!DA133)","v":""},{"$f":"IF('2011 Survey responses'!DB133<0.5,\"\",'2011 Survey responses'!DB133)","v":""},{"$f":"IF('2011 Survey responses'!DC133<0.5,\"\",'2011 Survey responses'!DC133)","v":""},{"$f":"IF('2011 Survey responses'!DD133<0.5,\"\",'2011 Survey responses'!DD133)","v":""},{"$f":"IF('2011 Survey responses'!DE133<0.5,\"\",'2011 Survey responses'!DE133)","v":""},{"$f":"IF('2011 Survey responses'!DF133<0.5,\"\",'2011 Survey responses'!DF133)","v":""},{"$f":"IF('2011 Survey responses'!DG133<0.5,\"\",'2011 Survey responses'!DG133)","v":""},{"$f":"IF('2011 Survey responses'!DH133<0.5,\"\",'2011 Survey responses'!DH133)","v":""},{"$f":"IF('2011 Survey responses'!DI133<0.5,\"\",'2011 Survey responses'!DI133)","v":""},{"$f":"IF('2011 Survey responses'!DJ133<0.5,\"\",'2011 Survey responses'!DJ133)","v":""},{"$f":"IF('2011 Survey responses'!DK133<0.5,\"\",'2011 Survey responses'!DK133)","v":""},{"$f":"IF('2011 Survey responses'!DL133<0.5,\"\",'2011 Survey responses'!DL133)","v":""},{"$f":"IF('2011 Survey responses'!DU133=4,4,IF('2011 Survey responses'!DU133=5,4,\"\"))","v":""},{"$f":"IF('2011 Survey responses'!DV133=4,3,IF('2011 Survey responses'!DV133=5,3,\"\"))","v":""},"",{"$f":"IF(CQ133=2,CQ133,IF(CO133=4,CO133,IF(CP133=3,CP133,IF('2011 Survey responses'!GT133=1,1,\"\"))))","v":""},{"$f":"IF('2011 Survey responses'!DO133<0.5,\"\",'2011 Survey responses'!DO133)","v":""},{"$f":"IF('2011 Survey responses'!DP133<0.5,\"\",'2011 Survey responses'!DP133)","v":""},{"$f":"IF('2011 Survey responses'!DQ133<0.5,\"\",'2011 Survey responses'!DQ133)","v":""},{"$f":"IF('2011 Survey responses'!DR133<0.5,\"\",'2011 Survey responses'!DR133)","v":""},{"$f":"IF('2011 Survey responses'!DS133<0.5,\"\",'2011 Survey responses'!DS133)","v":""},{"$f":"IF('2011 Survey responses'!DT133<0.5,\"\",'2011 Survey responses'!DT133)","v":""},{"$f":"IF('2011 Survey responses'!DU133<0.5,\"\",'2011 Survey responses'!DU133)","v":""},{"$f":"IF('2011 Survey responses'!DV133<0.5,\"\",'2011 Survey responses'!DV133)","v":""},{"$f":"IF('2011 Survey responses'!DW133<0.5,\"\",'2011 Survey responses'!DW133)","v":""},{"$f":"IF('2011 Survey responses'!DX133<0.5,\"\",'2011 Survey responses'!DX133)","v":""},{"$f":"IF('2011 Survey responses'!DY133<0.5,\"\",'2011 Survey responses'!DY133)","v":""},{"$f":"IF('2011 Survey responses'!DZ133<0.5,\"\",'2011 Survey responses'!DZ133)","v":""},{"$f":"IF('2011 Survey responses'!EA133<0.5,\"\",'2011 Survey responses'!EA133)","v":""},{"$f":"IF('2011 Survey responses'!EB133<0.5,\"\",'2011 Survey responses'!EB133)","v":""},{"$f":"IF('2011 Survey responses'!EC133<0.5,\"\",'2011 Survey responses'!EC133)","v":""},{"$f":"IF('2011 Survey responses'!ED133<0.5,\"\",'2011 Survey responses'!ED133)","v":""},{"$f":"IF('2011 Survey responses'!EE133<0.5,\"\",'2011 Survey responses'!EE133)","v":""},{"$f":"IF('2011 Survey responses'!EF133<0.5,\"\",'2011 Survey responses'!EF133)","v":""},{"$f":"IF('2011 Survey responses'!EG133<0.5,\"\",'2011 Survey responses'!EG133)","v":""},{"$f":"IF('2011 Survey responses'!EH133<0.5,\"\",'2011 Survey responses'!EH133)","v":""},{"$f":"IF('2011 Survey responses'!EI133<0.5,\"\",'2011 Survey responses'!EI133)","v":""},{"$f":"IF('2011 Survey responses'!EJ133<0.5,\"\",'2011 Survey responses'!EJ133)","v":""},{"$f":"IF('2011 Survey responses'!EK133<0.5,\"\",'2011 Survey responses'!EK133)","v":""},{"$f":"IF('2011 Survey responses'!EL133<0.5,\"\",'2011 Survey responses'!EL133)","v":""},{"$f":"IF('2011 Survey responses'!EM133<0.5,\"\",'2011 Survey responses'!EM133)","v":""},{"$f":"IF('2011 Survey responses'!EN133<0.5,\"\",'2011 Survey responses'!EN133)","v":""},{"$f":"IF('2011 Survey responses'!EO133<0.5,\"\",'2011 Survey responses'!EO133)","v":""},{"$f":"IF('2011 Survey responses'!EP133<0.5,\"\",'2011 Survey responses'!EP133)","v":""},{"$f":"IF(('2011 Survey responses'!EW133+'2011 Survey responses'!EX133)>=2,AVERAGE('2011 Survey responses'!EW133,'2011 Survey responses'!EY133),\"\")","v":""},{"$f":"IF('2011 Survey responses'!EX133<0.5,\"\",'2011 Survey responses'!EX133)","v":""},{"$f":"IF('2011 Survey responses'!EZ133<0.5,\"\",'2011 Survey responses'!EZ133)","v":""},{"$f":"IF('2011 Survey responses'!FB133<0.5,\"\",'2011 Survey responses'!FB133)","v":""},{"$f":"IF('2011 Survey responses'!FD133<0.5,\"\",'2011 Survey responses'!FD133)","v":""},{"$f":"IF('2011 Survey responses'!FC133<0.5,\"\",'2011 Survey responses'!FC133)","v":""},{"$f":"IF(('2011 Survey responses'!EM133+'2011 Survey responses'!EN133)>=2,AVERAGE('2011 Survey responses'!EM133,'2011 Survey responses'!EN133),\"\")","v":""},{"$f":"IF('2011 Survey responses'!ES133<0.5,\"\",'2011 Survey responses'!ES133)","v":""},{"$f":"IF(('2011 Survey responses'!ET133+'2011 Survey responses'!EU133)>=2,AVERAGE('2011 Survey responses'!ET133,'2011 Survey responses'!EU133),\"\")","v":""},{"$f":"IF('2011 Survey responses'!EV133<0.5,\"\",'2011 Survey responses'!EV133)","v":""},{"$f":"IF('2011 Survey responses'!FA133<0.5,\"\",'2011 Survey responses'!FA133)","v":""},{"$f":"IF('2011 Survey responses'!ER133<0.5,\"\",'2011 Survey responses'!ER133)","v":""},{"$f":"IF(('2011 Survey responses'!EO133+'2011 Survey responses'!EP133)>=2,AVERAGE('2011 Survey responses'!EO133,'2011 Survey responses'!EP133),\"\")","v":""},{"$f":"IF('2011 Survey responses'!EQ133<0.5,\"\",'2011 Survey responses'!EQ133)","v":""},{"$f":"IF('2011 Survey responses'!ET133<0.5,\"\",'2011 Survey responses'!ET133)","v":""},{"$f":"IF('2011 Survey responses'!EU133<0.5,\"\",'2011 Survey responses'!EU133)","v":""},{"$f":"IF('2011 Survey responses'!EW133<0.5,\"\",'2011 Survey responses'!EW133)","v":""},{"$f":"IF('2011 Survey responses'!EY133<0.5,\"\",'2011 Survey responses'!EY133)","v":""},{"$f":"IF('2011 Survey responses'!FU133<0.5,\"\",'2011 Survey responses'!FU133)","v":""},{"$f":"IF(('2011 Survey responses'!FL133+'2011 Survey responses'!FM133)>=2,AVERAGE('2011 Survey responses'!FL133,'2011 Survey responses'!FM133),\"\")","v":""},{"$f":"IF(('2011 Survey responses'!FO133+'2011 Survey responses'!FQ133)>=2,AVERAGE('2011 Survey responses'!FO133,'2011 Survey responses'!FQ133),\"\")","v":""},{"$f":"IF('2011 Survey responses'!FJ133<0.5,\"\",'2011 Survey responses'!FJ133)","v":""},{"$f":"IF('2011 Survey responses'!FT133<0.5,\"\",'2011 Survey responses'!FT133)","v":""},{"$f":"IF('2011 Survey responses'!FR133<0.5,\"\",'2011 Survey responses'!FR133)","v":""},{"$f":"IF('2011 Survey responses'!FK133<0.5,\"\",'2011 Survey responses'!FK133)","v":""},{"$f":"IF('2011 Survey responses'!FP133<0.5,\"\",'2011 Survey responses'!FP133)","v":""},{"$f":"IF('2011 Survey responses'!FN133<0.5,\"\",'2011 Survey responses'!FN133)","v":""},{"$f":"IF(('2011 Survey responses'!FE133+'2011 Survey responses'!FF133)>=2,AVERAGE('2011 Survey responses'!FE133,'2011 Survey responses'!FF133),\"\")","v":""},{"$f":"IF('2011 Survey responses'!FS133<0.5,\"\",'2011 Survey responses'!FS133)","v":""},{"$f":"IF('2011 Survey responses'!FV133<0.5,\"\",'2011 Survey responses'!FV133)","v":""},{"$f":"IF(('2011 Survey responses'!FG133+'2011 Survey responses'!FH133)>=2,AVERAGE('2011 Survey responses'!FG133,'2011 Survey responses'!FH133),\"\")","v":""},{"$f":"IF('2011 Survey responses'!FI133<0.5,\"\",'2011 Survey responses'!FI133)","v":""},{"$f":"IF('2011 Survey responses'!FE133<0.5,\"\",'2011 Survey responses'!FE133)","v":""},{"$f":"IF('2011 Survey responses'!FF133<0.5,\"\",'2011 Survey responses'!FF133)","v":""},{"$f":"IF('2011 Survey responses'!FG133<0.5,\"\",'2011 Survey responses'!FG133)","v":""},{"$f":"IF('2011 Survey responses'!FH133<0.5,\"\",'2011 Survey responses'!FH133)","v":""},{"$f":"IF('2011 Survey responses'!FL133<0.5,\"\",'2011 Survey responses'!FL133)","v":""},{"$f":"IF('2011 Survey responses'!FM133<0.5,\"\",'2011 Survey responses'!FM133)","v":""},{"$f":"IF('2011 Survey responses'!FO133<0.5,\"\",'2011 Survey responses'!FO133)","v":""},{"$f":"IF('2011 Survey responses'!FQ133<0.5,\"\",'2011 Survey responses'!FQ133)","v":""}]
["Paraguay",{"$f":"IF(SUM(F134)<1,\"\",AVERAGEIF('2011 Survey responses'!B134:CP134,\">1\"))","v":""},{"$f":"IF(SUM(F134)<1,\"\",AVERAGEIF('2011 Survey responses'!B134:AO134,\">1\"))","v":""},{"$f":"IF(SUM(F134)<1,\"\",AVERAGEIF('2011 Survey responses'!B134:BV134,\">1\"))","v":""},{"$f":"IF(SUM(F134)<1,\"\",AVERAGEIF('2011 Survey responses'!V134:BV134,\">1\"))","v":""},{"$f":"IF(SUM('2011 Survey responses'!B134:U134)<1,\"\",(AVERAGEIFS('2011 Survey responses'!B134:U134,'2011 Survey responses'!B134:U134,\">1\")))","v":""},{"$f":"IF(SUM('2011 Survey responses'!B134:H134)<1,\"\",(AVERAGEIFS('2011 Survey responses'!B134:H134,'2011 Survey responses'!B134:H134,\">1\")))","v":""},{"$f":"IF(SUM('2011 Survey responses'!I134:S134)<1,\"\",(AVERAGEIFS('2011 Survey responses'!I134:S134,'2011 Survey responses'!I134:S134,\">1\")))","v":""},{"$f":"IF(SUM('2011 Survey responses'!T134:U134)<2.1,\"\",(AVERAGEIFS('2011 Survey responses'!T134:U134,'2011 Survey responses'!T134:U134,\">1\")))","v":""},{"$f":"IF(SUM('2011 Survey responses'!B134:C134)<2.1,\"\",((SUMIF('2011 Survey responses'!B134:C134,\">1\")+SUMIF('2011 Survey responses'!F134,\">1\"))/(COUNTIF('2011 Survey responses'!B134:C134,\">1\")+COUNTIF('2011 Survey responses'!F134,\">1\"))))","v":""},{"$f":"IF(SUM('2011 Survey responses'!D134:E134)<2.1,\"\",(AVERAGEIFS('2011 Survey responses'!D134:E134,'2011 Survey responses'!D134:E134,\">1\")))","v":""},{"$f":"IF(('2011 Survey responses'!B134+'2011 Survey responses'!D134)<2.1,\"\",((SUMIF('2011 Survey responses'!B134,\">1\")+SUMIF('2011 Survey responses'!D134,\">1\")+SUMIF('2011 Survey responses'!F134,\">1\")+SUMIF('2011 Survey responses'!K134,\">1\"))/(COUNTIF('2011 Survey responses'!B134,\">1\")+COUNTIF('2011 Survey responses'!D134,\">1\")+COUNTIF('2011 Survey responses'!F134,\">1\")+COUNTIF('2011 Survey responses'!K134,\">1\"))))","v":""},{"$f":"IF(SUM('2011 Survey responses'!G134:H134)<2.1,\"\",(AVERAGEIFS('2011 Survey responses'!G134:H134,'2011 Survey responses'!G134:H134,\">1\")))","v":""},{"$f":"IF(SUM('2011 Survey responses'!F134:G134)<1.5,\"\",MAX('2011 Survey responses'!F134,'2011 Survey responses'!G134))","v":""},{"$f":"IF(SUM('2011 Survey responses'!G134:H134)<1,\"\",MAX('2011 Survey responses'!G134,'2011 Survey responses'!H134))","v":""},{"$f":"IF(SUM('2011 Survey responses'!I134:L134)<4.1,\"\",(AVERAGEIFS('2011 Survey responses'!I134:L134,'2011 Survey responses'!I134:L134,\">1\")))","v":""},{"$f":"IF(SUM('2011 Survey responses'!M134:S134)<4.1,\"\",(AVERAGEIFS('2011 Survey responses'!M134:S134,'2011 Survey responses'!M134:S134,\">1\")))","v":""},{"$f":"IF(SUM('2011 Survey responses'!T134:U134)<2.1,\"\",(AVERAGEIFS('2011 Survey responses'!T134:U134,'2011 Survey responses'!T134:U134,\">1\")))","v":""},{"$f":"IF(SUM('2011 Survey responses'!V134:AO134)<1,\"\",(AVERAGEIFS('2011 Survey responses'!V134:AO134,'2011 Survey responses'!V134:AO134,\">1\")))","v":""},{"$f":"IF(SUM('2011 Survey responses'!V134:AA134)<1,\"\",(AVERAGEIFS('2011 Survey responses'!V134:AA134,'2011 Survey responses'!V134:AA134,\">1\")))","v":""},{"$f":"IF(SUM('2011 Survey responses'!AB134:AH134)<1,\"\",(AVERAGEIFS('2011 Survey responses'!AB134:AH134,'2011 Survey responses'!AB134:AH134,\">1\")))","v":""},{"$f":"IF(SUM('2011 Survey responses'!AI134:AO134)<1,\"\",(AVERAGEIFS('2011 Survey responses'!AI134:AO134,'2011 Survey responses'!AI134:AO134,\">1\")))","v":""},{"$f":"IF(('2011 Survey responses'!Y134+'2011 Survey responses'!AI134+'2011 Survey responses'!AK134)<3.1,\"\",((SUMIF('2011 Survey responses'!Y134,\">1\")+SUMIF('2011 Survey responses'!AI134,\">1\")+SUMIF('2011 Survey responses'!AK134,\">1\")+SUMIF('2011 Survey responses'!AM134,\">1\"))/(COUNTIF('2011 Survey responses'!Y134,\">1\")+COUNTIF('2011 Survey responses'!AI134,\">1\")+COUNTIF('2011 Survey responses'!AK134,\">1\")+COUNTIF('2011 Survey responses'!AM134,\">1\"))))","v":""},{"$f":"IF(('2011 Survey responses'!W134)<1.1,\"\",('2011 Survey responses'!W134))","v":""},{"$f":"IF(('2011 Survey responses'!Y134)<1.1,\"\",('2011 Survey responses'!Y134))","v":""},{"$f":"IF(('2011 Survey responses'!Z134)<1.1,\"\",('2011 Survey responses'!Z134))","v":""},{"$f":"IF(('2011 Survey responses'!V134+'2011 Survey responses'!X134+'2011 Survey responses'!AA134)<3.1,\"\",((SUMIF('2011 Survey responses'!V134,\">1\")+SUMIF('2011 Survey responses'!X134,\">1\")+SUMIF('2011 Survey responses'!AA134,\">1\"))/(COUNTIF('2011 Survey responses'!V134,\">1\")+COUNTIF('2011 Survey responses'!X134,\">1\")+COUNTIF('2011 Survey responses'!AA134,\">1\"))))","v":""},{"$f":"IF(('2011 Survey responses'!V134+'2011 Survey responses'!Y134+'2011 Survey responses'!AA134)<3.1,\"\",((SUMIF('2011 Survey responses'!V134,\">1\")+SUMIF('2011 Survey responses'!Y134,\">1\")+SUMIF('2011 Survey responses'!AA134,\">1\"))/(COUNTIF('2011 Survey responses'!V134,\">1\")+COUNTIF('2011 Survey responses'!Y134,\">1\")+COUNTIF('2011 Survey responses'!AA134,\">1\"))))","v":""},{"$f":"IF(SUM('2011 Survey responses'!AB134:AH134)<1,\"\",(AVERAGEIFS('2011 Survey responses'!AB134:AH134,'2011 Survey responses'!AB134:AH134,\">1\")))","v":""},{"$f":"IF(SUM('2011 Survey responses'!AI134:AO134)<7.1,\"\",(AVERAGEIFS('2011 Survey responses'!AI134:AO134,'2011 Survey responses'!AI134:AO134,\">1\")))","v":""},{"$f":"IF(('2011 Survey responses'!AH134)<1.1,\"\",('2011 Survey responses'!AH134))","v":""},{"$f":"IF(SUM('2011 Survey responses'!AP134:BV134)<1,\"\",(AVERAGEIFS('2011 Survey responses'!AP134:BV134,'2011 Survey responses'!AP134:BV134,\">1\")))","v":""},{"$f":"IF(SUM('2011 Survey responses'!AP134:AS134)<4.1,\"\",(AVERAGEIFS('2011 Survey responses'!AP134:AS134,'2011 Survey responses'!AP134:AS134,\">1\")))","v":""},{"$f":"IF(SUM('2011 Survey responses'!AT134:BF134)<1,\"\",(AVERAGEIFS('2011 Survey responses'!AT134:BF134,'2011 Survey responses'!AT134:BF134,\">1\")))","v":""},{"$f":"IF(SUM('2011 Survey responses'!BG134:BO134)<1,\"\",(AVERAGEIFS('2011 Survey responses'!BG134:BO134,'2011 Survey responses'!BG134:BO134,\">1\")))","v":""},{"$f":"IF(SUM('2011 Survey responses'!BP134:BS134)<1,\"\",(AVERAGEIFS('2011 Survey responses'!BP134:BS134,'2011 Survey responses'!BP134:BS134,\">1\")))","v":""},{"$f":"IF(SUM('2011 Survey responses'!BT134:BV134)<3.1,\"\",(AVERAGEIFS('2011 Survey responses'!BT134:BV134,'2011 Survey responses'!BT134:BV134,\">1\")))","v":""},{"$f":"IF(('2011 Survey responses'!AQ134+'2011 Survey responses'!AR134+'2011 Survey responses'!BG134)<3.1,\"\",((SUMIF('2011 Survey responses'!AQ134,\">1\")+SUMIF('2011 Survey responses'!AR134,\">1\")+SUMIF('2011 Survey responses'!BG134,\">1\"))/(COUNTIF('2011 Survey responses'!AQ134,\">1\")+COUNTIF('2011 Survey responses'!AR134,\">1\")+COUNTIF('2011 Survey responses'!BG134,\">1\"))))","v":""},{"$f":"IF(SUM('2011 Survey responses'!AP134:AS134)<4.1,\"\",(AVERAGEIFS('2011 Survey responses'!AP134:AS134,'2011 Survey responses'!AP134:AS134,\">1\")))","v":""},{"$f":"IF(('2011 Survey responses'!AU134+'2011 Survey responses'!AX134+'2011 Survey responses'!BA134+'2011 Survey responses'!BC134+'2011 Survey responses'!BD134)<5.1,\"\",(SUMIF('2011 Survey responses'!AU134,\">1\")+SUMIF('2011 Survey responses'!AX134,\">1\")+SUMIF('2011 Survey responses'!BA134,\">1\")+SUMIF('2011 Survey responses'!BC134,\">1\")+SUMIF('2011 Survey responses'!BD134,\">1\"))/(COUNTIF('2011 Survey responses'!AU134,\">1\")+COUNTIF('2011 Survey responses'!AX134,\">1\")+COUNTIF('2011 Survey responses'!BA134,\">1\")+COUNTIF('2011 Survey responses'!BC134,\">1\")+COUNTIF('2011 Survey responses'!BD134,\">1\")))","v":""},{"$f":"IF(('2011 Survey responses'!AT134)<1.1,\"\",('2011 Survey responses'!AT134))","v":""},{"$f":"IF(SUM('2011 Survey responses'!AV134:AW134)<2.1,\"\",(AVERAGEIFS('2011 Survey responses'!AV134:AW134,'2011 Survey responses'!AV134:AW134,\">1\")))","v":""},{"$f":"IF(('2011 Survey responses'!AW134+'2011 Survey responses'!AY134)<2.1,\"\",(SUMIF('2011 Survey responses'!AW134,\">1\")+SUMIF('2011 Survey responses'!AY134,\">1\"))/(COUNTIF('2011 Survey responses'!AW134,\">1\")+COUNTIF('2011 Survey responses'!AY134,\">1\")))","v":""},{"$f":"IF(('2011 Survey responses'!AZ134)<1.1,\"\",('2011 Survey responses'!AZ134))","v":""},null,null,null,null,{"$f":"IF(('2011 Survey responses'!BE134)<1.1,\"\",('2011 Survey responses'!BE134))","v":""},{"$f":"IF(('2011 Survey responses'!AY134+'2011 Survey responses'!BB134+'2011 Survey responses'!BF134)<3.1,\"\",(SUMIF('2011 Survey responses'!AY134,\">1\")+SUMIF('2011 Survey responses'!BB134,\">1\")+SUMIF('2011 Survey responses'!BF134,\">1\"))/(COUNTIF('2011 Survey responses'!AY134,\">1\")+COUNTIF('2011 Survey responses'!BB134,\">1\")+COUNTIF('2011 Survey responses'!BF134,\">1\")))","v":""},"",{"$f":"IF(SUM('2011 Survey responses'!BT134:BV134)<3.1,\"\",(AVERAGEIFS('2011 Survey responses'!BT134:BV134,'2011 Survey responses'!BT134:BV134,\">1\")))","v":""},{"$f":"IF(SUM('2011 Survey responses'!BW134:CP134)<1,\"\",(AVERAGEIFS('2011 Survey responses'!BW134:CP134,'2011 Survey responses'!BW134:CP134,\">1\")))","v":""},{"$f":"IF(SUM('2011 Survey responses'!BW134:CF134)<1,\"\",(AVERAGEIFS('2011 Survey responses'!BW134:CF134,'2011 Survey responses'!BW134:CF134,\">1\")))","v":""},{"$f":"IF(SUM('2011 Survey responses'!CG134:CP134)<1,\"\",(AVERAGEIFS('2011 Survey responses'!CG134:CP134,'2011 Survey responses'!CG134:CP134,\">1\")))","v":""},{"$f":"IF(SUM('2011 Survey responses'!BX134:CF134)<1,\"\",(AVERAGEIFS('2011 Survey responses'!BX134:CF134,'2011 Survey responses'!BX134:CF134,\">1\")))","v":""},{"$f":"IF(SUM('2011 Survey responses'!CH134:CP134)<1,\"\",(AVERAGEIFS('2011 Survey responses'!CH134:CP134,'2011 Survey responses'!CH134:CP134,\">1\")))","v":""},{"$f":"IF(SUM('2011 Survey responses'!BW134:CP134)<1,\"\",(AVERAGEIFS('2011 Survey responses'!BW134:CP134,'2011 Survey responses'!BW134:CP134,\">1\")))","v":""},{"$f":"IF(('2011 Survey responses'!BW134+'2011 Survey responses'!CG134)<2.1,\"\",(SUMIF('2011 Survey responses'!BW134,\">1\")+SUMIF('2011 Survey responses'!CG134,\">1\"))/(COUNTIF('2011 Survey responses'!BW134,\">1\")+COUNTIF('2011 Survey responses'!CG134,\">1\")))","v":""},{"$f":"IF(('2011 Survey responses'!BX134+'2011 Survey responses'!CH134)<2.1,\"\",(SUMIF('2011 Survey responses'!BX134,\">1\")+SUMIF('2011 Survey responses'!CH134,\">1\"))/(COUNTIF('2011 Survey responses'!BX134,\">1\")+COUNTIF('2011 Survey responses'!CH134,\">1\")))","v":""},{"$f":"IF(('2011 Survey responses'!BY134+'2011 Survey responses'!CI134)<2.1,\"\",(SUMIF('2011 Survey responses'!BY134,\">1\")+SUMIF('2011 Survey responses'!CI134,\">1\"))/(COUNTIF('2011 Survey responses'!BY134,\">1\")+COUNTIF('2011 Survey responses'!CI134,\">1\")))","v":""},{"$f":"IF('2011 Survey responses'!CQ134<0.5,\"\",'2011 Survey responses'!CQ134)","v":""},{"$f":"IF('2011 Survey responses'!CR134<0.5,\"\",'2011 Survey responses'!CR134)","v":""},{"$f":"IF('2011 Survey responses'!CS134<0.5,\"\",'2011 Survey responses'!CS134)","v":""},{"$f":"IF('2011 Survey responses'!CT134<0.5,\"\",'2011 Survey responses'!CT134)","v":""},{"$f":"IF('2011 Survey responses'!CU134<0.5,\"\",'2011 Survey responses'!CU134)","v":""},{"$f":"IF('2011 Survey responses'!CV134<0.5,\"\",'2011 Survey responses'!CV134)","v":""},{"$f":"IF(SUM('2011 Survey responses'!CW134:DL134)<1,\"\",(AVERAGE('2011 Survey responses'!CW134:DL134)))","v":""},{"$f":"IF(SUM('2011 Survey responses'!CW134:CZ134)<1,\"\",(AVERAGE('2011 Survey responses'!CW134:CZ134)))","v":""},{"$f":"IF(SUM('2011 Survey responses'!DA134:DD134)<1,\"\",(AVERAGE('2011 Survey responses'!DA134:DD134)))","v":""},{"$f":"IF(SUM('2011 Survey responses'!DE134:DH134)<1,\"\",(AVERAGE('2011 Survey responses'!DE134:DH134)))","v":""},{"$f":"IF(SUM('2011 Survey responses'!DI134:DL134)<1,\"\",(AVERAGE('2011 Survey responses'!DI134:DL134)))","v":""},{"$f":"IF(('2011 Survey responses'!CW134+'2011 Survey responses'!DA134+'2011 Survey responses'!DE134+'2011 Survey responses'!DI134)<1,\"\",AVERAGE('2011 Survey responses'!CW134,'2011 Survey responses'!DA134,'2011 Survey responses'!DE134,'2011 Survey responses'!DI134))","v":""},{"$f":"IF(('2011 Survey responses'!CX134+'2011 Survey responses'!DB134+'2011 Survey responses'!DF134+'2011 Survey responses'!DJ134)<1,\"\",AVERAGE('2011 Survey responses'!CX134,'2011 Survey responses'!DB134,'2011 Survey responses'!DF134,'2011 Survey responses'!DJ134))","v":""},{"$f":"IF(('2011 Survey responses'!CY134+'2011 Survey responses'!DC134+'2011 Survey responses'!DG134+'2011 Survey responses'!DK134)<1,\"\",AVERAGE('2011 Survey responses'!CY134,'2011 Survey responses'!DC134,'2011 Survey responses'!DG134,'2011 Survey responses'!DK134))","v":""},{"$f":"IF(('2011 Survey responses'!CZ134+'2011 Survey responses'!DD134+'2011 Survey responses'!DH134+'2011 Survey responses'!DL134)<1,\"\",AVERAGE('2011 Survey responses'!CZ134,'2011 Survey responses'!DD134,'2011 Survey responses'!DH134,'2011 Survey responses'!DL134))","v":""},{"$f":"IF('2011 Survey responses'!CW134<0.5,\"\",'2011 Survey responses'!CW134)","v":""},{"$f":"IF('2011 Survey responses'!CX134<0.5,\"\",'2011 Survey responses'!CX134)","v":""},{"$f":"IF('2011 Survey responses'!CY134<0.5,\"\",'2011 Survey responses'!CY134)","v":""},{"$f":"IF('2011 Survey responses'!CZ134<0.5,\"\",'2011 Survey responses'!CZ134)","v":""},{"$f":"IF('2011 Survey responses'!DA134<0.5,\"\",'2011 Survey responses'!DA134)","v":""},{"$f":"IF('2011 Survey responses'!DB134<0.5,\"\",'2011 Survey responses'!DB134)","v":""},{"$f":"IF('2011 Survey responses'!DC134<0.5,\"\",'2011 Survey responses'!DC134)","v":""},{"$f":"IF('2011 Survey responses'!DD134<0.5,\"\",'2011 Survey responses'!DD134)","v":""},{"$f":"IF('2011 Survey responses'!DE134<0.5,\"\",'2011 Survey responses'!DE134)","v":""},{"$f":"IF('2011 Survey responses'!DF134<0.5,\"\",'2011 Survey responses'!DF134)","v":""},{"$f":"IF('2011 Survey responses'!DG134<0.5,\"\",'2011 Survey responses'!DG134)","v":""},{"$f":"IF('2011 Survey responses'!DH134<0.5,\"\",'2011 Survey responses'!DH134)","v":""},{"$f":"IF('2011 Survey responses'!DI134<0.5,\"\",'2011 Survey responses'!DI134)","v":""},{"$f":"IF('2011 Survey responses'!DJ134<0.5,\"\",'2011 Survey responses'!DJ134)","v":""},{"$f":"IF('2011 Survey responses'!DK134<0.5,\"\",'2011 Survey responses'!DK134)","v":""},{"$f":"IF('2011 Survey responses'!DL134<0.5,\"\",'2011 Survey responses'!DL134)","v":""},{"$f":"IF('2011 Survey responses'!DU134=4,4,IF('2011 Survey responses'!DU134=5,4,\"\"))","v":""},{"$f":"IF('2011 Survey responses'!DV134=4,3,IF('2011 Survey responses'!DV134=5,3,\"\"))","v":""},"",{"$f":"IF(CQ134=2,CQ134,IF(CO134=4,CO134,IF(CP134=3,CP134,IF('2011 Survey responses'!GT134=1,1,\"\"))))","v":""},{"$f":"IF('2011 Survey responses'!DO134<0.5,\"\",'2011 Survey responses'!DO134)","v":""},{"$f":"IF('2011 Survey responses'!DP134<0.5,\"\",'2011 Survey responses'!DP134)","v":""},{"$f":"IF('2011 Survey responses'!DQ134<0.5,\"\",'2011 Survey responses'!DQ134)","v":""},{"$f":"IF('2011 Survey responses'!DR134<0.5,\"\",'2011 Survey responses'!DR134)","v":""},{"$f":"IF('2011 Survey responses'!DS134<0.5,\"\",'2011 Survey responses'!DS134)","v":""},{"$f":"IF('2011 Survey responses'!DT134<0.5,\"\",'2011 Survey responses'!DT134)","v":""},{"$f":"IF('2011 Survey responses'!DU134<0.5,\"\",'2011 Survey responses'!DU134)","v":""},{"$f":"IF('2011 Survey responses'!DV134<0.5,\"\",'2011 Survey responses'!DV134)","v":""},{"$f":"IF('2011 Survey responses'!DW134<0.5,\"\",'2011 Survey responses'!DW134)","v":""},{"$f":"IF('2011 Survey responses'!DX134<0.5,\"\",'2011 Survey responses'!DX134)","v":""},{"$f":"IF('2011 Survey responses'!DY134<0.5,\"\",'2011 Survey responses'!DY134)","v":""},{"$f":"IF('2011 Survey responses'!DZ134<0.5,\"\",'2011 Survey responses'!DZ134)","v":""},{"$f":"IF('2011 Survey responses'!EA134<0.5,\"\",'2011 Survey responses'!EA134)","v":""},{"$f":"IF('2011 Survey responses'!EB134<0.5,\"\",'2011 Survey responses'!EB134)","v":""},{"$f":"IF('2011 Survey responses'!EC134<0.5,\"\",'2011 Survey responses'!EC134)","v":""},{"$f":"IF('2011 Survey responses'!ED134<0.5,\"\",'2011 Survey responses'!ED134)","v":""},{"$f":"IF('2011 Survey responses'!EE134<0.5,\"\",'2011 Survey responses'!EE134)","v":""},{"$f":"IF('2011 Survey responses'!EF134<0.5,\"\",'2011 Survey responses'!EF134)","v":""},{"$f":"IF('2011 Survey responses'!EG134<0.5,\"\",'2011 Survey responses'!EG134)","v":""},{"$f":"IF('2011 Survey responses'!EH134<0.5,\"\",'2011 Survey responses'!EH134)","v":""},{"$f":"IF('2011 Survey responses'!EI134<0.5,\"\",'2011 Survey responses'!EI134)","v":""},{"$f":"IF('2011 Survey responses'!EJ134<0.5,\"\",'2011 Survey responses'!EJ134)","v":""},{"$f":"IF('2011 Survey responses'!EK134<0.5,\"\",'2011 Survey responses'!EK134)","v":""},{"$f":"IF('2011 Survey responses'!EL134<0.5,\"\",'2011 Survey responses'!EL134)","v":""},{"$f":"IF('2011 Survey responses'!EM134<0.5,\"\",'2011 Survey responses'!EM134)","v":""},{"$f":"IF('2011 Survey responses'!EN134<0.5,\"\",'2011 Survey responses'!EN134)","v":""},{"$f":"IF('2011 Survey responses'!EO134<0.5,\"\",'2011 Survey responses'!EO134)","v":""},{"$f":"IF('2011 Survey responses'!EP134<0.5,\"\",'2011 Survey responses'!EP134)","v":""},{"$f":"IF(('2011 Survey responses'!EW134+'2011 Survey responses'!EX134)>=2,AVERAGE('2011 Survey responses'!EW134,'2011 Survey responses'!EY134),\"\")","v":""},{"$f":"IF('2011 Survey responses'!EX134<0.5,\"\",'2011 Survey responses'!EX134)","v":""},{"$f":"IF('2011 Survey responses'!EZ134<0.5,\"\",'2011 Survey responses'!EZ134)","v":""},{"$f":"IF('2011 Survey responses'!FB134<0.5,\"\",'2011 Survey responses'!FB134)","v":""},{"$f":"IF('2011 Survey responses'!FD134<0.5,\"\",'2011 Survey responses'!FD134)","v":""},{"$f":"IF('2011 Survey responses'!FC134<0.5,\"\",'2011 Survey responses'!FC134)","v":""},{"$f":"IF(('2011 Survey responses'!EM134+'2011 Survey responses'!EN134)>=2,AVERAGE('2011 Survey responses'!EM134,'2011 Survey responses'!EN134),\"\")","v":""},{"$f":"IF('2011 Survey responses'!ES134<0.5,\"\",'2011 Survey responses'!ES134)","v":""},{"$f":"IF(('2011 Survey responses'!ET134+'2011 Survey responses'!EU134)>=2,AVERAGE('2011 Survey responses'!ET134,'2011 Survey responses'!EU134),\"\")","v":""},{"$f":"IF('2011 Survey responses'!EV134<0.5,\"\",'2011 Survey responses'!EV134)","v":""},{"$f":"IF('2011 Survey responses'!FA134<0.5,\"\",'2011 Survey responses'!FA134)","v":""},{"$f":"IF('2011 Survey responses'!ER134<0.5,\"\",'2011 Survey responses'!ER134)","v":""},{"$f":"IF(('2011 Survey responses'!EO134+'2011 Survey responses'!EP134)>=2,AVERAGE('2011 Survey responses'!EO134,'2011 Survey responses'!EP134),\"\")","v":""},{"$f":"IF('2011 Survey responses'!EQ134<0.5,\"\",'2011 Survey responses'!EQ134)","v":""},{"$f":"IF('2011 Survey responses'!ET134<0.5,\"\",'2011 Survey responses'!ET134)","v":""},{"$f":"IF('2011 Survey responses'!EU134<0.5,\"\",'2011 Survey responses'!EU134)","v":""},{"$f":"IF('2011 Survey responses'!EW134<0.5,\"\",'2011 Survey responses'!EW134)","v":""},{"$f":"IF('2011 Survey responses'!EY134<0.5,\"\",'2011 Survey responses'!EY134)","v":""},{"$f":"IF('2011 Survey responses'!FU134<0.5,\"\",'2011 Survey responses'!FU134)","v":""},{"$f":"IF(('2011 Survey responses'!FL134+'2011 Survey responses'!FM134)>=2,AVERAGE('2011 Survey responses'!FL134,'2011 Survey responses'!FM134),\"\")","v":""},{"$f":"IF(('2011 Survey responses'!FO134+'2011 Survey responses'!FQ134)>=2,AVERAGE('2011 Survey responses'!FO134,'2011 Survey responses'!FQ134),\"\")","v":""},{"$f":"IF('2011 Survey responses'!FJ134<0.5,\"\",'2011 Survey responses'!FJ134)","v":""},{"$f":"IF('2011 Survey responses'!FT134<0.5,\"\",'2011 Survey responses'!FT134)","v":""},{"$f":"IF('2011 Survey responses'!FR134<0.5,\"\",'2011 Survey responses'!FR134)","v":""},{"$f":"IF('2011 Survey responses'!FK134<0.5,\"\",'2011 Survey responses'!FK134)","v":""},{"$f":"IF('2011 Survey responses'!FP134<0.5,\"\",'2011 Survey responses'!FP134)","v":""},{"$f":"IF('2011 Survey responses'!FN134<0.5,\"\",'2011 Survey responses'!FN134)","v":""},{"$f":"IF(('2011 Survey responses'!FE134+'2011 Survey responses'!FF134)>=2,AVERAGE('2011 Survey responses'!FE134,'2011 Survey responses'!FF134),\"\")","v":""},{"$f":"IF('2011 Survey responses'!FS134<0.5,\"\",'2011 Survey responses'!FS134)","v":""},{"$f":"IF('2011 Survey responses'!FV134<0.5,\"\",'2011 Survey responses'!FV134)","v":""},{"$f":"IF(('2011 Survey responses'!FG134+'2011 Survey responses'!FH134)>=2,AVERAGE('2011 Survey responses'!FG134,'2011 Survey responses'!FH134),\"\")","v":""},{"$f":"IF('2011 Survey responses'!FI134<0.5,\"\",'2011 Survey responses'!FI134)","v":""},{"$f":"IF('2011 Survey responses'!FE134<0.5,\"\",'2011 Survey responses'!FE134)","v":""},{"$f":"IF('2011 Survey responses'!FF134<0.5,\"\",'2011 Survey responses'!FF134)","v":""},{"$f":"IF('2011 Survey responses'!FG134<0.5,\"\",'2011 Survey responses'!FG134)","v":""},{"$f":"IF('2011 Survey responses'!FH134<0.5,\"\",'2011 Survey responses'!FH134)","v":""},{"$f":"IF('2011 Survey responses'!FL134<0.5,\"\",'2011 Survey responses'!FL134)","v":""},{"$f":"IF('2011 Survey responses'!FM134<0.5,\"\",'2011 Survey responses'!FM134)","v":""},{"$f":"IF('2011 Survey responses'!FO134<0.5,\"\",'2011 Survey responses'!FO134)","v":""},{"$f":"IF('2011 Survey responses'!FQ134<0.5,\"\",'2011 Survey responses'!FQ134)","v":""}]
["Peru",{"$f":"IF(SUM(F135)<1,\"\",AVERAGEIF('2011 Survey responses'!B135:CP135,\">1\"))","v":3.0952380952380953},{"$f":"IF(SUM(F135)<1,\"\",AVERAGEIF('2011 Survey responses'!B135:AO135,\">1\"))","v":2.7142857142857144},{"$f":"IF(SUM(F135)<1,\"\",AVERAGEIF('2011 Survey responses'!B135:BV135,\">1\"))","v":2.9090909090909092},{"$f":"IF(SUM(F135)<1,\"\",AVERAGEIF('2011 Survey responses'!V135:BV135,\">1\"))","v":3.125},{"$f":"IF(SUM('2011 Survey responses'!B135:U135)<1,\"\",(AVERAGEIFS('2011 Survey responses'!B135:U135,'2011 Survey responses'!B135:U135,\">1\")))","v":2.3333333333333335},{"$f":"IF(SUM('2011 Survey responses'!B135:H135)<1,\"\",(AVERAGEIFS('2011 Survey responses'!B135:H135,'2011 Survey responses'!B135:H135,\">1\")))","v":2.8},{"$f":"IF(SUM('2011 Survey responses'!I135:S135)<1,\"\",(AVERAGEIFS('2011 Survey responses'!I135:S135,'2011 Survey responses'!I135:S135,\">1\")))","v":2},{"$f":"IF(SUM('2011 Survey responses'!T135:U135)<2.1,\"\",(AVERAGEIFS('2011 Survey responses'!T135:U135,'2011 Survey responses'!T135:U135,\">1\")))","v":3},{"$f":"IF(SUM('2011 Survey responses'!B135:C135)<2.1,\"\",((SUMIF('2011 Survey responses'!B135:C135,\">1\")+SUMIF('2011 Survey responses'!F135,\">1\"))/(COUNTIF('2011 Survey responses'!B135:C135,\">1\")+COUNTIF('2011 Survey responses'!F135,\">1\"))))","v":3},{"$f":"IF(SUM('2011 Survey responses'!D135:E135)<2.1,\"\",(AVERAGEIFS('2011 Survey responses'!D135:E135,'2011 Survey responses'!D135:E135,\">1\")))","v":4},{"$f":"IF(('2011 Survey responses'!B135+'2011 Survey responses'!D135)<2.1,\"\",((SUMIF('2011 Survey responses'!B135,\">1\")+SUMIF('2011 Survey responses'!D135,\">1\")+SUMIF('2011 Survey responses'!F135,\">1\")+SUMIF('2011 Survey responses'!K135,\">1\"))/(COUNTIF('2011 Survey responses'!B135,\">1\")+COUNTIF('2011 Survey responses'!D135,\">1\")+COUNTIF('2011 Survey responses'!F135,\">1\")+COUNTIF('2011 Survey responses'!K135,\">1\"))))","v":3},{"$f":"IF(SUM('2011 Survey responses'!G135:H135)<2.1,\"\",(AVERAGEIFS('2011 Survey responses'!G135:H135,'2011 Survey responses'!G135:H135,\">1\")))","v":2},{"$f":"IF(SUM('2011 Survey responses'!F135:G135)<1.5,\"\",MAX('2011 Survey responses'!F135,'2011 Survey responses'!G135))","v":2},{"$f":"IF(SUM('2011 Survey responses'!G135:H135)<1,\"\",MAX('2011 Survey responses'!G135,'2011 Survey responses'!H135))","v":2},{"$f":"IF(SUM('2011 Survey responses'!I135:L135)<4.1,\"\",(AVERAGEIFS('2011 Survey responses'!I135:L135,'2011 Survey responses'!I135:L135,\">1\")))","v":2},{"$f":"IF(SUM('2011 Survey responses'!M135:S135)<4.1,\"\",(AVERAGEIFS('2011 Survey responses'!M135:S135,'2011 Survey responses'!M135:S135,\">1\")))","v":2},{"$f":"IF(SUM('2011 Survey responses'!T135:U135)<2.1,\"\",(AVERAGEIFS('2011 Survey responses'!T135:U135,'2011 Survey responses'!T135:U135,\">1\")))","v":3},{"$f":"IF(SUM('2011 Survey responses'!V135:AO135)<1,\"\",(AVERAGEIFS('2011 Survey responses'!V135:AO135,'2011 Survey responses'!V135:AO135,\">1\")))","v":3.1176470588235294},{"$f":"IF(SUM('2011 Survey responses'!V135:AA135)<1,\"\",(AVERAGEIFS('2011 Survey responses'!V135:AA135,'2011 Survey responses'!V135:AA135,\">1\")))","v":2.6666666666666665},{"$f":"IF(SUM('2011 Survey responses'!AB135:AH135)<1,\"\",(AVERAGEIFS('2011 Survey responses'!AB135:AH135,'2011 Survey responses'!AB135:AH135,\">1\")))","v":3.3333333333333335},{"$f":"IF(SUM('2011 Survey responses'!AI135:AO135)<1,\"\",(AVERAGEIFS('2011 Survey responses'!AI135:AO135,'2011 Survey responses'!AI135:AO135,\">1\")))","v":3.4},{"$f":"IF(('2011 Survey responses'!Y135+'2011 Survey responses'!AI135+'2011 Survey responses'!AK135)<3.1,\"\",((SUMIF('2011 Survey responses'!Y135,\">1\")+SUMIF('2011 Survey responses'!AI135,\">1\")+SUMIF('2011 Survey responses'!AK135,\">1\")+SUMIF('2011 Survey responses'!AM135,\">1\"))/(COUNTIF('2011 Survey responses'!Y135,\">1\")+COUNTIF('2011 Survey responses'!AI135,\">1\")+COUNTIF('2011 Survey responses'!AK135,\">1\")+COUNTIF('2011 Survey responses'!AM135,\">1\"))))","v":3.25},{"$f":"IF(('2011 Survey responses'!W135)<1.1,\"\",('2011 Survey responses'!W135))","v":2},{"$f":"IF(('2011 Survey responses'!Y135)<1.1,\"\",('2011 Survey responses'!Y135))","v":2},{"$f":"IF(('2011 Survey responses'!Z135)<1.1,\"\",('2011 Survey responses'!Z135))","v":4},{"$f":"IF(('2011 Survey responses'!V135+'2011 Survey responses'!X135+'2011 Survey responses'!AA135)<3.1,\"\",((SUMIF('2011 Survey responses'!V135,\">1\")+SUMIF('2011 Survey responses'!X135,\">1\")+SUMIF('2011 Survey responses'!AA135,\">1\"))/(COUNTIF('2011 Survey responses'!V135,\">1\")+COUNTIF('2011 Survey responses'!X135,\">1\")+COUNTIF('2011 Survey responses'!AA135,\">1\"))))","v":2.6666666666666665},{"$f":"IF(('2011 Survey responses'!V135+'2011 Survey responses'!Y135+'2011 Survey responses'!AA135)<3.1,\"\",((SUMIF('2011 Survey responses'!V135,\">1\")+SUMIF('2011 Survey responses'!Y135,\">1\")+SUMIF('2011 Survey responses'!AA135,\">1\"))/(COUNTIF('2011 Survey responses'!V135,\">1\")+COUNTIF('2011 Survey responses'!Y135,\">1\")+COUNTIF('2011 Survey responses'!AA135,\">1\"))))","v":2.6666666666666665},{"$f":"IF(SUM('2011 Survey responses'!AB135:AH135)<1,\"\",(AVERAGEIFS('2011 Survey responses'!AB135:AH135,'2011 Survey responses'!AB135:AH135,\">1\")))","v":3.3333333333333335},{"$f":"IF(SUM('2011 Survey responses'!AI135:AO135)<7.1,\"\",(AVERAGEIFS('2011 Survey responses'!AI135:AO135,'2011 Survey responses'!AI135:AO135,\">1\")))","v":3.4},{"$f":"IF(('2011 Survey responses'!AH135)<1.1,\"\",('2011 Survey responses'!AH135))","v":""},{"$f":"IF(SUM('2011 Survey responses'!AP135:BV135)<1,\"\",(AVERAGEIFS('2011 Survey responses'!AP135:BV135,'2011 Survey responses'!AP135:BV135,\">1\")))","v":3.129032258064516},{"$f":"IF(SUM('2011 Survey responses'!AP135:AS135)<4.1,\"\",(AVERAGEIFS('2011 Survey responses'!AP135:AS135,'2011 Survey responses'!AP135:AS135,\">1\")))","v":3.5},{"$f":"IF(SUM('2011 Survey responses'!AT135:BF135)<1,\"\",(AVERAGEIFS('2011 Survey responses'!AT135:BF135,'2011 Survey responses'!AT135:BF135,\">1\")))","v":2.4615384615384617},{"$f":"IF(SUM('2011 Survey responses'!BG135:BO135)<1,\"\",(AVERAGEIFS('2011 Survey responses'!BG135:BO135,'2011 Survey responses'!BG135:BO135,\">1\")))","v":3.8888888888888888},{"$f":"IF(SUM('2011 Survey responses'!BP135:BS135)<1,\"\",(AVERAGEIFS('2011 Survey responses'!BP135:BS135,'2011 Survey responses'!BP135:BS135,\">1\")))","v":2.6666666666666665},{"$f":"IF(SUM('2011 Survey responses'!BT135:BV135)<3.1,\"\",(AVERAGEIFS('2011 Survey responses'!BT135:BV135,'2011 Survey responses'!BT135:BV135,\">1\")))","v":4},{"$f":"IF(('2011 Survey responses'!AQ135+'2011 Survey responses'!AR135+'2011 Survey responses'!BG135)<3.1,\"\",((SUMIF('2011 Survey responses'!AQ135,\">1\")+SUMIF('2011 Survey responses'!AR135,\">1\")+SUMIF('2011 Survey responses'!BG135,\">1\"))/(COUNTIF('2011 Survey responses'!AQ135,\">1\")+COUNTIF('2011 Survey responses'!AR135,\">1\")+COUNTIF('2011 Survey responses'!BG135,\">1\"))))","v":4.333333333333333},{"$f":"IF(SUM('2011 Survey responses'!AP135:AS135)<4.1,\"\",(AVERAGEIFS('2011 Survey responses'!AP135:AS135,'2011 Survey responses'!AP135:AS135,\">1\")))","v":3.5},{"$f":"IF(('2011 Survey responses'!AU135+'2011 Survey responses'!AX135+'2011 Survey responses'!BA135+'2011 Survey responses'!BC135+'2011 Survey responses'!BD135)<5.1,\"\",(SUMIF('2011 Survey responses'!AU135,\">1\")+SUMIF('2011 Survey responses'!AX135,\">1\")+SUMIF('2011 Survey responses'!BA135,\">1\")+SUMIF('2011 Survey responses'!BC135,\">1\")+SUMIF('2011 Survey responses'!BD135,\">1\"))/(COUNTIF('2011 Survey responses'!AU135,\">1\")+COUNTIF('2011 Survey responses'!AX135,\">1\")+COUNTIF('2011 Survey responses'!BA135,\">1\")+COUNTIF('2011 Survey responses'!BC135,\">1\")+COUNTIF('2011 Survey responses'!BD135,\">1\")))","v":2.4},{"$f":"IF(('2011 Survey responses'!AT135)<1.1,\"\",('2011 Survey responses'!AT135))","v":4},{"$f":"IF(SUM('2011 Survey responses'!AV135:AW135)<2.1,\"\",(AVERAGEIFS('2011 Survey responses'!AV135:AW135,'2011 Survey responses'!AV135:AW135,\">1\")))","v":2},{"$f":"IF(('2011 Survey responses'!AW135+'2011 Survey responses'!AY135)<2.1,\"\",(SUMIF('2011 Survey responses'!AW135,\">1\")+SUMIF('2011 Survey responses'!AY135,\">1\"))/(COUNTIF('2011 Survey responses'!AW135,\">1\")+COUNTIF('2011 Survey responses'!AY135,\">1\")))","v":2},{"$f":"IF(('2011 Survey responses'!AZ135)<1.1,\"\",('2011 Survey responses'!AZ135))","v":2},2,2,1,1,{"$f":"IF(('2011 Survey responses'!BE135)<1.1,\"\",('2011 Survey responses'!BE135))","v":4},{"$f":"IF(('2011 Survey responses'!AY135+'2011 Survey responses'!BB135+'2011 Survey responses'!BF135)<3.1,\"\",(SUMIF('2011 Survey responses'!AY135,\">1\")+SUMIF('2011 Survey responses'!BB135,\">1\")+SUMIF('2011 Survey responses'!BF135,\">1\"))/(COUNTIF('2011 Survey responses'!AY135,\">1\")+COUNTIF('2011 Survey responses'!BB135,\">1\")+COUNTIF('2011 Survey responses'!BF135,\">1\")))","v":2},3.2777777777777777,{"$f":"IF(SUM('2011 Survey responses'!BT135:BV135)<3.1,\"\",(AVERAGEIFS('2011 Survey responses'!BT135:BV135,'2011 Survey responses'!BT135:BV135,\">1\")))","v":4},{"$f":"IF(SUM('2011 Survey responses'!BW135:CP135)<1,\"\",(AVERAGEIFS('2011 Survey responses'!BW135:CP135,'2011 Survey responses'!BW135:CP135,\">1\")))","v":3.7777777777777777},{"$f":"IF(SUM('2011 Survey responses'!BW135:CF135)<1,\"\",(AVERAGEIFS('2011 Survey responses'!BW135:CF135,'2011 Survey responses'!BW135:CF135,\">1\")))","v":3.7777777777777777},{"$f":"IF(SUM('2011 Survey responses'!CG135:CP135)<1,\"\",(AVERAGEIFS('2011 Survey responses'!CG135:CP135,'2011 Survey responses'!CG135:CP135,\">1\")))","v":3.7777777777777777},{"$f":"IF(SUM('2011 Survey responses'!BX135:CF135)<1,\"\",(AVERAGEIFS('2011 Survey responses'!BX135:CF135,'2011 Survey responses'!BX135:CF135,\">1\")))","v":3.625},{"$f":"IF(SUM('2011 Survey responses'!CH135:CP135)<1,\"\",(AVERAGEIFS('2011 Survey responses'!CH135:CP135,'2011 Survey responses'!CH135:CP135,\">1\")))","v":3.75},{"$f":"IF(SUM('2011 Survey responses'!BW135:CP135)<1,\"\",(AVERAGEIFS('2011 Survey responses'!BW135:CP135,'2011 Survey responses'!BW135:CP135,\">1\")))","v":3.7777777777777777},{"$f":"IF(('2011 Survey responses'!BW135+'2011 Survey responses'!CG135)<2.1,\"\",(SUMIF('2011 Survey responses'!BW135,\">1\")+SUMIF('2011 Survey responses'!CG135,\">1\"))/(COUNTIF('2011 Survey responses'!BW135,\">1\")+COUNTIF('2011 Survey responses'!CG135,\">1\")))","v":4.5},{"$f":"IF(('2011 Survey responses'!BX135+'2011 Survey responses'!CH135)<2.1,\"\",(SUMIF('2011 Survey responses'!BX135,\">1\")+SUMIF('2011 Survey responses'!CH135,\">1\"))/(COUNTIF('2011 Survey responses'!BX135,\">1\")+COUNTIF('2011 Survey responses'!CH135,\">1\")))","v":4.5},{"$f":"IF(('2011 Survey responses'!BY135+'2011 Survey responses'!CI135)<2.1,\"\",(SUMIF('2011 Survey responses'!BY135,\">1\")+SUMIF('2011 Survey responses'!CI135,\">1\"))/(COUNTIF('2011 Survey responses'!BY135,\">1\")+COUNTIF('2011 Survey responses'!CI135,\">1\")))","v":4.5},{"$f":"IF('2011 Survey responses'!CQ135<0.5,\"\",'2011 Survey responses'!CQ135)","v":4},{"$f":"IF('2011 Survey responses'!CR135<0.5,\"\",'2011 Survey responses'!CR135)","v":4},{"$f":"IF('2011 Survey responses'!CS135<0.5,\"\",'2011 Survey responses'!CS135)","v":4},{"$f":"IF('2011 Survey responses'!CT135<0.5,\"\",'2011 Survey responses'!CT135)","v":4},{"$f":"IF('2011 Survey responses'!CU135<0.5,\"\",'2011 Survey responses'!CU135)","v":4},{"$f":"IF('2011 Survey responses'!CV135<0.5,\"\",'2011 Survey responses'!CV135)","v":4},{"$f":"IF(SUM('2011 Survey responses'!CW135:DL135)<1,\"\",(AVERAGE('2011 Survey responses'!CW135:DL135)))","v":3.625},{"$f":"IF(SUM('2011 Survey responses'!CW135:CZ135)<1,\"\",(AVERAGE('2011 Survey responses'!CW135:CZ135)))","v":3.5},{"$f":"IF(SUM('2011 Survey responses'!DA135:DD135)<1,\"\",(AVERAGE('2011 Survey responses'!DA135:DD135)))","v":3.5},{"$f":"IF(SUM('2011 Survey responses'!DE135:DH135)<1,\"\",(AVERAGE('2011 Survey responses'!DE135:DH135)))","v":4},{"$f":"IF(SUM('2011 Survey responses'!DI135:DL135)<1,\"\",(AVERAGE('2011 Survey responses'!DI135:DL135)))","v":3.5},{"$f":"IF(('2011 Survey responses'!CW135+'2011 Survey responses'!DA135+'2011 Survey responses'!DE135+'2011 Survey responses'!DI135)<1,\"\",AVERAGE('2011 Survey responses'!CW135,'2011 Survey responses'!DA135,'2011 Survey responses'!DE135,'2011 Survey responses'!DI135))","v":4},{"$f":"IF(('2011 Survey responses'!CX135+'2011 Survey responses'!DB135+'2011 Survey responses'!DF135+'2011 Survey responses'!DJ135)<1,\"\",AVERAGE('2011 Survey responses'!CX135,'2011 Survey responses'!DB135,'2011 Survey responses'!DF135,'2011 Survey responses'!DJ135))","v":4},{"$f":"IF(('2011 Survey responses'!CY135+'2011 Survey responses'!DC135+'2011 Survey responses'!DG135+'2011 Survey responses'!DK135)<1,\"\",AVERAGE('2011 Survey responses'!CY135,'2011 Survey responses'!DC135,'2011 Survey responses'!DG135,'2011 Survey responses'!DK135))","v":3.25},{"$f":"IF(('2011 Survey responses'!CZ135+'2011 Survey responses'!DD135+'2011 Survey responses'!DH135+'2011 Survey responses'!DL135)<1,\"\",AVERAGE('2011 Survey responses'!CZ135,'2011 Survey responses'!DD135,'2011 Survey responses'!DH135,'2011 Survey responses'!DL135))","v":3.25},{"$f":"IF('2011 Survey responses'!CW135<0.5,\"\",'2011 Survey responses'!CW135)","v":4},{"$f":"IF('2011 Survey responses'!CX135<0.5,\"\",'2011 Survey responses'!CX135)","v":4},{"$f":"IF('2011 Survey responses'!CY135<0.5,\"\",'2011 Survey responses'!CY135)","v":3},{"$f":"IF('2011 Survey responses'!CZ135<0.5,\"\",'2011 Survey responses'!CZ135)","v":3},{"$f":"IF('2011 Survey responses'!DA135<0.5,\"\",'2011 Survey responses'!DA135)","v":4},{"$f":"IF('2011 Survey responses'!DB135<0.5,\"\",'2011 Survey responses'!DB135)","v":4},{"$f":"IF('2011 Survey responses'!DC135<0.5,\"\",'2011 Survey responses'!DC135)","v":3},{"$f":"IF('2011 Survey responses'!DD135<0.5,\"\",'2011 Survey responses'!DD135)","v":3},{"$f":"IF('2011 Survey responses'!DE135<0.5,\"\",'2011 Survey responses'!DE135)","v":4},{"$f":"IF('2011 Survey responses'!DF135<0.5,\"\",'2011 Survey responses'!DF135)","v":4},{"$f":"IF('2011 Survey responses'!DG135<0.5,\"\",'2011 Survey responses'!DG135)","v":4},{"$f":"IF('2011 Survey responses'!DH135<0.5,\"\",'2011 Survey responses'!DH135)","v":4},{"$f":"IF('2011 Survey responses'!DI135<0.5,\"\",'2011 Survey responses'!DI135)","v":4},{"$f":"IF('2011 Survey responses'!DJ135<0.5,\"\",'2011 Survey responses'!DJ135)","v":4},{"$f":"IF('2011 Survey responses'!DK135<0.5,\"\",'2011 Survey responses'!DK135)","v":3},{"$f":"IF('2011 Survey responses'!DL135<0.5,\"\",'2011 Survey responses'!DL135)","v":3},{"$f":"IF('2011 Survey responses'!DU135=4,4,IF('2011 Survey responses'!DU135=5,4,\"\"))","v":4},{"$f":"IF('2011 Survey responses'!DV135=4,3,IF('2011 Survey responses'!DV135=5,3,\"\"))","v":3},2,{"$f":"IF(CQ135=2,CQ135,IF(CO135=4,CO135,IF(CP135=3,CP135,IF('2011 Survey responses'!GT135=1,1,\"\"))))","v":2},{"$f":"IF('2011 Survey responses'!DO135<0.5,\"\",'2011 Survey responses'!DO135)","v":4},{"$f":"IF('2011 Survey responses'!DP135<0.5,\"\",'2011 Survey responses'!DP135)","v":5},{"$f":"IF('2011 Survey responses'!DQ135<0.5,\"\",'2011 Survey responses'!DQ135)","v":4},{"$f":"IF('2011 Survey responses'!DR135<0.5,\"\",'2011 Survey responses'!DR135)","v":4},{"$f":"IF('2011 Survey responses'!DS135<0.5,\"\",'2011 Survey responses'!DS135)","v":4},{"$f":"IF('2011 Survey responses'!DT135<0.5,\"\",'2011 Survey responses'!DT135)","v":5},{"$f":"IF('2011 Survey responses'!DU135<0.5,\"\",'2011 Survey responses'!DU135)","v":4},{"$f":"IF('2011 Survey responses'!DV135<0.5,\"\",'2011 Survey responses'!DV135)","v":4},{"$f":"IF('2011 Survey responses'!DW135<0.5,\"\",'2011 Survey responses'!DW135)","v":4},{"$f":"IF('2011 Survey responses'!DX135<0.5,\"\",'2011 Survey responses'!DX135)","v":4},{"$f":"IF('2011 Survey responses'!DY135<0.5,\"\",'2011 Survey responses'!DY135)","v":5},{"$f":"IF('2011 Survey responses'!DZ135<0.5,\"\",'2011 Survey responses'!DZ135)","v":5},{"$f":"IF('2011 Survey responses'!EA135<0.5,\"\",'2011 Survey responses'!EA135)","v":5},{"$f":"IF('2011 Survey responses'!EB135<0.5,\"\",'2011 Survey responses'!EB135)","v":5},{"$f":"IF('2011 Survey responses'!EC135<0.5,\"\",'2011 Survey responses'!EC135)","v":5},{"$f":"IF('2011 Survey responses'!ED135<0.5,\"\",'2011 Survey responses'!ED135)","v":5},{"$f":"IF('2011 Survey responses'!EE135<0.5,\"\",'2011 Survey responses'!EE135)","v":4},{"$f":"IF('2011 Survey responses'!EF135<0.5,\"\",'2011 Survey responses'!EF135)","v":5},{"$f":"IF('2011 Survey responses'!EG135<0.5,\"\",'2011 Survey responses'!EG135)","v":5},{"$f":"IF('2011 Survey responses'!EH135<0.5,\"\",'2011 Survey responses'!EH135)","v":5},{"$f":"IF('2011 Survey responses'!EI135<0.5,\"\",'2011 Survey responses'!EI135)","v":5},{"$f":"IF('2011 Survey responses'!EJ135<0.5,\"\",'2011 Survey responses'!EJ135)","v":5},{"$f":"IF('2011 Survey responses'!EK135<0.5,\"\",'2011 Survey responses'!EK135)","v":5},{"$f":"IF('2011 Survey responses'!EL135<0.5,\"\",'2011 Survey responses'!EL135)","v":5},{"$f":"IF('2011 Survey responses'!EM135<0.5,\"\",'2011 Survey responses'!EM135)","v":5},{"$f":"IF('2011 Survey responses'!EN135<0.5,\"\",'2011 Survey responses'!EN135)","v":5},{"$f":"IF('2011 Survey responses'!EO135<0.5,\"\",'2011 Survey responses'!EO135)","v":4},{"$f":"IF('2011 Survey responses'!EP135<0.5,\"\",'2011 Survey responses'!EP135)","v":4},{"$f":"IF(('2011 Survey responses'!EW135+'2011 Survey responses'!EX135)>=2,AVERAGE('2011 Survey responses'!EW135,'2011 Survey responses'!EY135),\"\")","v":5},{"$f":"IF('2011 Survey responses'!EX135<0.5,\"\",'2011 Survey responses'!EX135)","v":5},{"$f":"IF('2011 Survey responses'!EZ135<0.5,\"\",'2011 Survey responses'!EZ135)","v":5},{"$f":"IF('2011 Survey responses'!FB135<0.5,\"\",'2011 Survey responses'!FB135)","v":5},{"$f":"IF('2011 Survey responses'!FD135<0.5,\"\",'2011 Survey responses'!FD135)","v":5},{"$f":"IF('2011 Survey responses'!FC135<0.5,\"\",'2011 Survey responses'!FC135)","v":5},{"$f":"IF(('2011 Survey responses'!EM135+'2011 Survey responses'!EN135)>=2,AVERAGE('2011 Survey responses'!EM135,'2011 Survey responses'!EN135),\"\")","v":5},{"$f":"IF('2011 Survey responses'!ES135<0.5,\"\",'2011 Survey responses'!ES135)","v":""},{"$f":"IF(('2011 Survey responses'!ET135+'2011 Survey responses'!EU135)>=2,AVERAGE('2011 Survey responses'!ET135,'2011 Survey responses'!EU135),\"\")","v":4},{"$f":"IF('2011 Survey responses'!EV135<0.5,\"\",'2011 Survey responses'!EV135)","v":5},{"$f":"IF('2011 Survey responses'!FA135<0.5,\"\",'2011 Survey responses'!FA135)","v":5},{"$f":"IF('2011 Survey responses'!ER135<0.5,\"\",'2011 Survey responses'!ER135)","v":4},{"$f":"IF(('2011 Survey responses'!EO135+'2011 Survey responses'!EP135)>=2,AVERAGE('2011 Survey responses'!EO135,'2011 Survey responses'!EP135),\"\")","v":4},{"$f":"IF('2011 Survey responses'!EQ135<0.5,\"\",'2011 Survey responses'!EQ135)","v":4},{"$f":"IF('2011 Survey responses'!ET135<0.5,\"\",'2011 Survey responses'!ET135)","v":4},{"$f":"IF('2011 Survey responses'!EU135<0.5,\"\",'2011 Survey responses'!EU135)","v":4},{"$f":"IF('2011 Survey responses'!EW135<0.5,\"\",'2011 Survey responses'!EW135)","v":5},{"$f":"IF('2011 Survey responses'!EY135<0.5,\"\",'2011 Survey responses'!EY135)","v":5},{"$f":"IF('2011 Survey responses'!FU135<0.5,\"\",'2011 Survey responses'!FU135)","v":5},{"$f":"IF(('2011 Survey responses'!FL135+'2011 Survey responses'!FM135)>=2,AVERAGE('2011 Survey responses'!FL135,'2011 Survey responses'!FM135),\"\")","v":5},{"$f":"IF(('2011 Survey responses'!FO135+'2011 Survey responses'!FQ135)>=2,AVERAGE('2011 Survey responses'!FO135,'2011 Survey responses'!FQ135),\"\")","v":5},{"$f":"IF('2011 Survey responses'!FJ135<0.5,\"\",'2011 Survey responses'!FJ135)","v":4},{"$f":"IF('2011 Survey responses'!FT135<0.5,\"\",'2011 Survey responses'!FT135)","v":5},{"$f":"IF('2011 Survey responses'!FR135<0.5,\"\",'2011 Survey responses'!FR135)","v":4},{"$f":"IF('2011 Survey responses'!FK135<0.5,\"\",'2011 Survey responses'!FK135)","v":5},{"$f":"IF('2011 Survey responses'!FP135<0.5,\"\",'2011 Survey responses'!FP135)","v":5},{"$f":"IF('2011 Survey responses'!FN135<0.5,\"\",'2011 Survey responses'!FN135)","v":5},{"$f":"IF(('2011 Survey responses'!FE135+'2011 Survey responses'!FF135)>=2,AVERAGE('2011 Survey responses'!FE135,'2011 Survey responses'!FF135),\"\")","v":4.5},{"$f":"IF('2011 Survey responses'!FS135<0.5,\"\",'2011 Survey responses'!FS135)","v":5},{"$f":"IF('2011 Survey responses'!FV135<0.5,\"\",'2011 Survey responses'!FV135)","v":5},{"$f":"IF(('2011 Survey responses'!FG135+'2011 Survey responses'!FH135)>=2,AVERAGE('2011 Survey responses'!FG135,'2011 Survey responses'!FH135),\"\")","v":4},{"$f":"IF('2011 Survey responses'!FI135<0.5,\"\",'2011 Survey responses'!FI135)","v":4},{"$f":"IF('2011 Survey responses'!FE135<0.5,\"\",'2011 Survey responses'!FE135)","v":5},{"$f":"IF('2011 Survey responses'!FF135<0.5,\"\",'2011 Survey responses'!FF135)","v":4},{"$f":"IF('2011 Survey responses'!FG135<0.5,\"\",'2011 Survey responses'!FG135)","v":4},{"$f":"IF('2011 Survey responses'!FH135<0.5,\"\",'2011 Survey responses'!FH135)","v":4},{"$f":"IF('2011 Survey responses'!FL135<0.5,\"\",'2011 Survey responses'!FL135)","v":5},{"$f":"IF('2011 Survey responses'!FM135<0.5,\"\",'2011 Survey responses'!FM135)","v":5},{"$f":"IF('2011 Survey responses'!FO135<0.5,\"\",'2011 Survey responses'!FO135)","v":5},{"$f":"IF('2011 Survey responses'!FQ135<0.5,\"\",'2011 Survey responses'!FQ135)","v":5}]
["Philippines",{"$f":"IF(SUM(F136)<1,\"\",AVERAGEIF('2011 Survey responses'!B136:CP136,\">1\"))","v":4.7222222222222223},{"$f":"IF(SUM(F136)<1,\"\",AVERAGEIF('2011 Survey responses'!B136:AO136,\">1\"))","v":4.3},{"$f":"IF(SUM(F136)<1,\"\",AVERAGEIF('2011 Survey responses'!B136:BV136,\">1\"))","v":4.5172413793103452},{"$f":"IF(SUM(F136)<1,\"\",AVERAGEIF('2011 Survey responses'!V136:BV136,\">1\"))","v":4.666666666666667},{"$f":"IF(SUM('2011 Survey responses'!B136:U136)<1,\"\",(AVERAGEIFS('2011 Survey responses'!B136:U136,'2011 Survey responses'!B136:U136,\">1\")))","v":4},{"$f":"IF(SUM('2011 Survey responses'!B136:H136)<1,\"\",(AVERAGEIFS('2011 Survey responses'!B136:H136,'2011 Survey responses'!B136:H136,\">1\")))","v":3.4},{"$f":"IF(SUM('2011 Survey responses'!I136:S136)<1,\"\",(AVERAGEIFS('2011 Survey responses'!I136:S136,'2011 Survey responses'!I136:S136,\">1\")))","v":4.2857142857142856},{"$f":"IF(SUM('2011 Survey responses'!T136:U136)<2.1,\"\",(AVERAGEIFS('2011 Survey responses'!T136:U136,'2011 Survey responses'!T136:U136,\">1\")))","v":5},{"$f":"IF(SUM('2011 Survey responses'!B136:C136)<2.1,\"\",((SUMIF('2011 Survey responses'!B136:C136,\">1\")+SUMIF('2011 Survey responses'!F136,\">1\"))/(COUNTIF('2011 Survey responses'!B136:C136,\">1\")+COUNTIF('2011 Survey responses'!F136,\">1\"))))","v":3.5},{"$f":"IF(SUM('2011 Survey responses'!D136:E136)<2.1,\"\",(AVERAGEIFS('2011 Survey responses'!D136:E136,'2011 Survey responses'!D136:E136,\">1\")))","v":6},{"$f":"IF(('2011 Survey responses'!B136+'2011 Survey responses'!D136)<2.1,\"\",((SUMIF('2011 Survey responses'!B136,\">1\")+SUMIF('2011 Survey responses'!D136,\">1\")+SUMIF('2011 Survey responses'!F136,\">1\")+SUMIF('2011 Survey responses'!K136,\">1\"))/(COUNTIF('2011 Survey responses'!B136,\">1\")+COUNTIF('2011 Survey responses'!D136,\">1\")+COUNTIF('2011 Survey responses'!F136,\">1\")+COUNTIF('2011 Survey responses'!K136,\">1\"))))","v":4.75},{"$f":"IF(SUM('2011 Survey responses'!G136:H136)<2.1,\"\",(AVERAGEIFS('2011 Survey responses'!G136:H136,'2011 Survey responses'!G136:H136,\">1\")))","v":2},{"$f":"IF(SUM('2011 Survey responses'!F136:G136)<1.5,\"\",MAX('2011 Survey responses'!F136,'2011 Survey responses'!G136))","v":5},{"$f":"IF(SUM('2011 Survey responses'!G136:H136)<1,\"\",MAX('2011 Survey responses'!G136,'2011 Survey responses'!H136))","v":2},{"$f":"IF(SUM('2011 Survey responses'!I136:L136)<4.1,\"\",(AVERAGEIFS('2011 Survey responses'!I136:L136,'2011 Survey responses'!I136:L136,\">1\")))","v":5.666666666666667},{"$f":"IF(SUM('2011 Survey responses'!M136:S136)<4.1,\"\",(AVERAGEIFS('2011 Survey responses'!M136:S136,'2011 Survey responses'!M136:S136,\">1\")))","v":3.25},{"$f":"IF(SUM('2011 Survey responses'!T136:U136)<2.1,\"\",(AVERAGEIFS('2011 Survey responses'!T136:U136,'2011 Survey responses'!T136:U136,\">1\")))","v":5},{"$f":"IF(SUM('2011 Survey responses'!V136:AO136)<1,\"\",(AVERAGEIFS('2011 Survey responses'!V136:AO136,'2011 Survey responses'!V136:AO136,\">1\")))","v":4.5294117647058822},{"$f":"IF(SUM('2011 Survey responses'!V136:AA136)<1,\"\",(AVERAGEIFS('2011 Survey responses'!V136:AA136,'2011 Survey responses'!V136:AA136,\">1\")))","v":4.8},{"$f":"IF(SUM('2011 Survey responses'!AB136:AH136)<1,\"\",(AVERAGEIFS('2011 Survey responses'!AB136:AH136,'2011 Survey responses'!AB136:AH136,\">1\")))","v":4.4285714285714288},{"$f":"IF(SUM('2011 Survey responses'!AI136:AO136)<1,\"\",(AVERAGEIFS('2011 Survey responses'!AI136:AO136,'2011 Survey responses'!AI136:AO136,\">1\")))","v":4.4000000000000004},{"$f":"IF(('2011 Survey responses'!Y136+'2011 Survey responses'!AI136+'2011 Survey responses'!AK136)<3.1,\"\",((SUMIF('2011 Survey responses'!Y136,\">1\")+SUMIF('2011 Survey responses'!AI136,\">1\")+SUMIF('2011 Survey responses'!AK136,\">1\")+SUMIF('2011 Survey responses'!AM136,\">1\"))/(COUNTIF('2011 Survey responses'!Y136,\">1\")+COUNTIF('2011 Survey responses'!AI136,\">1\")+COUNTIF('2011 Survey responses'!AK136,\">1\")+COUNTIF('2011 Survey responses'!AM136,\">1\"))))","v":4.25},{"$f":"IF(('2011 Survey responses'!W136)<1.1,\"\",('2011 Survey responses'!W136))","v":4},{"$f":"IF(('2011 Survey responses'!Y136)<1.1,\"\",('2011 Survey responses'!Y136))","v":5},{"$f":"IF(('2011 Survey responses'!Z136)<1.1,\"\",('2011 Survey responses'!Z136))","v":""},{"$f":"IF(('2011 Survey responses'!V136+'2011 Survey responses'!X136+'2011 Survey responses'!AA136)<3.1,\"\",((SUMIF('2011 Survey responses'!V136,\">1\")+SUMIF('2011 Survey responses'!X136,\">1\")+SUMIF('2011 Survey responses'!AA136,\">1\"))/(COUNTIF('2011 Survey responses'!V136,\">1\")+COUNTIF('2011 Survey responses'!X136,\">1\")+COUNTIF('2011 Survey responses'!AA136,\">1\"))))","v":5},{"$f":"IF(('2011 Survey responses'!V136+'2011 Survey responses'!Y136+'2011 Survey responses'!AA136)<3.1,\"\",((SUMIF('2011 Survey responses'!V136,\">1\")+SUMIF('2011 Survey responses'!Y136,\">1\")+SUMIF('2011 Survey responses'!AA136,\">1\"))/(COUNTIF('2011 Survey responses'!V136,\">1\")+COUNTIF('2011 Survey responses'!Y136,\">1\")+COUNTIF('2011 Survey responses'!AA136,\">1\"))))","v":5},{"$f":"IF(SUM('2011 Survey responses'!AB136:AH136)<1,\"\",(AVERAGEIFS('2011 Survey responses'!AB136:AH136,'2011 Survey responses'!AB136:AH136,\">1\")))","v":4.4285714285714288},{"$f":"IF(SUM('2011 Survey responses'!AI136:AO136)<7.1,\"\",(AVERAGEIFS('2011 Survey responses'!AI136:AO136,'2011 Survey responses'!AI136:AO136,\">1\")))","v":4.4000000000000004},{"$f":"IF(('2011 Survey responses'!AH136)<1.1,\"\",('2011 Survey responses'!AH136))","v":3},{"$f":"IF(SUM('2011 Survey responses'!AP136:BV136)<1,\"\",(AVERAGEIFS('2011 Survey responses'!AP136:BV136,'2011 Survey responses'!AP136:BV136,\">1\")))","v":4.75},{"$f":"IF(SUM('2011 Survey responses'!AP136:AS136)<4.1,\"\",(AVERAGEIFS('2011 Survey responses'!AP136:AS136,'2011 Survey responses'!AP136:AS136,\">1\")))","v":4},{"$f":"IF(SUM('2011 Survey responses'!AT136:BF136)<1,\"\",(AVERAGEIFS('2011 Survey responses'!AT136:BF136,'2011 Survey responses'!AT136:BF136,\">1\")))","v":5},{"$f":"IF(SUM('2011 Survey responses'!BG136:BO136)<1,\"\",(AVERAGEIFS('2011 Survey responses'!BG136:BO136,'2011 Survey responses'!BG136:BO136,\">1\")))","v":5.125},{"$f":"IF(SUM('2011 Survey responses'!BP136:BS136)<1,\"\",(AVERAGEIFS('2011 Survey responses'!BP136:BS136,'2011 Survey responses'!BP136:BS136,\">1\")))","v":4.25},{"$f":"IF(SUM('2011 Survey responses'!BT136:BV136)<3.1,\"\",(AVERAGEIFS('2011 Survey responses'!BT136:BV136,'2011 Survey responses'!BT136:BV136,\">1\")))","v":4.5},{"$f":"IF(('2011 Survey responses'!AQ136+'2011 Survey responses'!AR136+'2011 Survey responses'!BG136)<3.1,\"\",((SUMIF('2011 Survey responses'!AQ136,\">1\")+SUMIF('2011 Survey responses'!AR136,\">1\")+SUMIF('2011 Survey responses'!BG136,\">1\"))/(COUNTIF('2011 Survey responses'!AQ136,\">1\")+COUNTIF('2011 Survey responses'!AR136,\">1\")+COUNTIF('2011 Survey responses'!BG136,\">1\"))))","v":5},{"$f":"IF(SUM('2011 Survey responses'!AP136:AS136)<4.1,\"\",(AVERAGEIFS('2011 Survey responses'!AP136:AS136,'2011 Survey responses'!AP136:AS136,\">1\")))","v":4},{"$f":"IF(('2011 Survey responses'!AU136+'2011 Survey responses'!AX136+'2011 Survey responses'!BA136+'2011 Survey responses'!BC136+'2011 Survey responses'!BD136)<5.1,\"\",(SUMIF('2011 Survey responses'!AU136,\">1\")+SUMIF('2011 Survey responses'!AX136,\">1\")+SUMIF('2011 Survey responses'!BA136,\">1\")+SUMIF('2011 Survey responses'!BC136,\">1\")+SUMIF('2011 Survey responses'!BD136,\">1\"))/(COUNTIF('2011 Survey responses'!AU136,\">1\")+COUNTIF('2011 Survey responses'!AX136,\">1\")+COUNTIF('2011 Survey responses'!BA136,\">1\")+COUNTIF('2011 Survey responses'!BC136,\">1\")+COUNTIF('2011 Survey responses'!BD136,\">1\")))","v":4.75},{"$f":"IF(('2011 Survey responses'!AT136)<1.1,\"\",('2011 Survey responses'!AT136))","v":5},{"$f":"IF(SUM('2011 Survey responses'!AV136:AW136)<2.1,\"\",(AVERAGEIFS('2011 Survey responses'!AV136:AW136,'2011 Survey responses'!AV136:AW136,\">1\")))","v":6},{"$f":"IF(('2011 Survey responses'!AW136+'2011 Survey responses'!AY136)<2.1,\"\",(SUMIF('2011 Survey responses'!AW136,\">1\")+SUMIF('2011 Survey responses'!AY136,\">1\"))/(COUNTIF('2011 Survey responses'!AW136,\">1\")+COUNTIF('2011 Survey responses'!AY136,\">1\")))","v":5.5},{"$f":"IF(('2011 Survey responses'!AZ136)<1.1,\"\",('2011 Survey responses'!AZ136))","v":5},5,5,4,1,{"$f":"IF(('2011 Survey responses'!BE136)<1.1,\"\",('2011 Survey responses'!BE136))","v":""},{"$f":"IF(('2011 Survey responses'!AY136+'2011 Survey responses'!BB136+'2011 Survey responses'!BF136)<3.1,\"\",(SUMIF('2011 Survey responses'!AY136,\">1\")+SUMIF('2011 Survey responses'!BB136,\">1\")+SUMIF('2011 Survey responses'!BF136,\">1\"))/(COUNTIF('2011 Survey responses'!AY136,\">1\")+COUNTIF('2011 Survey responses'!BB136,\">1\")+COUNTIF('2011 Survey responses'!BF136,\">1\")))","v":5},4.6875,{"$f":"IF(SUM('2011 Survey responses'!BT136:BV136)<3.1,\"\",(AVERAGEIFS('2011 Survey responses'!BT136:BV136,'2011 Survey responses'!BT136:BV136,\">1\")))","v":4.5},{"$f":"IF(SUM('2011 Survey responses'!BW136:CP136)<1,\"\",(AVERAGEIFS('2011 Survey responses'!BW136:CP136,'2011 Survey responses'!BW136:CP136,\">1\")))","v":5.5714285714285712},{"$f":"IF(SUM('2011 Survey responses'!BW136:CF136)<1,\"\",(AVERAGEIFS('2011 Survey responses'!BW136:CF136,'2011 Survey responses'!BW136:CF136,\">1\")))","v":5.5714285714285712},{"$f":"IF(SUM('2011 Survey responses'!CG136:CP136)<1,\"\",(AVERAGEIFS('2011 Survey responses'!CG136:CP136,'2011 Survey responses'!CG136:CP136,\">1\")))","v":5.5714285714285712},{"$f":"IF(SUM('2011 Survey responses'!BX136:CF136)<1,\"\",(AVERAGEIFS('2011 Survey responses'!BX136:CF136,'2011 Survey responses'!BX136:CF136,\">1\")))","v":5.5},{"$f":"IF(SUM('2011 Survey responses'!CH136:CP136)<1,\"\",(AVERAGEIFS('2011 Survey responses'!CH136:CP136,'2011 Survey responses'!CH136:CP136,\">1\")))","v":5.5},{"$f":"IF(SUM('2011 Survey responses'!BW136:CP136)<1,\"\",(AVERAGEIFS('2011 Survey responses'!BW136:CP136,'2011 Survey responses'!BW136:CP136,\">1\")))","v":5.5714285714285712},{"$f":"IF(('2011 Survey responses'!BW136+'2011 Survey responses'!CG136)<2.1,\"\",(SUMIF('2011 Survey responses'!BW136,\">1\")+SUMIF('2011 Survey responses'!CG136,\">1\"))/(COUNTIF('2011 Survey responses'!BW136,\">1\")+COUNTIF('2011 Survey responses'!CG136,\">1\")))","v":6},{"$f":"IF(('2011 Survey responses'!BX136+'2011 Survey responses'!CH136)<2.1,\"\",(SUMIF('2011 Survey responses'!BX136,\">1\")+SUMIF('2011 Survey responses'!CH136,\">1\"))/(COUNTIF('2011 Survey responses'!BX136,\">1\")+COUNTIF('2011 Survey responses'!CH136,\">1\")))","v":6},{"$f":"IF(('2011 Survey responses'!BY136+'2011 Survey responses'!CI136)<2.1,\"\",(SUMIF('2011 Survey responses'!BY136,\">1\")+SUMIF('2011 Survey responses'!CI136,\">1\"))/(COUNTIF('2011 Survey responses'!BY136,\">1\")+COUNTIF('2011 Survey responses'!CI136,\">1\")))","v":6},{"$f":"IF('2011 Survey responses'!CQ136<0.5,\"\",'2011 Survey responses'!CQ136)","v":1},{"$f":"IF('2011 Survey responses'!CR136<0.5,\"\",'2011 Survey responses'!CR136)","v":1},{"$f":"IF('2011 Survey responses'!CS136<0.5,\"\",'2011 Survey responses'!CS136)","v":1},{"$f":"IF('2011 Survey responses'!CT136<0.5,\"\",'2011 Survey responses'!CT136)","v":1},{"$f":"IF('2011 Survey responses'!CU136<0.5,\"\",'2011 Survey responses'!CU136)","v":2},{"$f":"IF('2011 Survey responses'!CV136<0.5,\"\",'2011 Survey responses'!CV136)","v":1},{"$f":"IF(SUM('2011 Survey responses'!CW136:DL136)<1,\"\",(AVERAGE('2011 Survey responses'!CW136:DL136)))","v":2},{"$f":"IF(SUM('2011 Survey responses'!CW136:CZ136)<1,\"\",(AVERAGE('2011 Survey responses'!CW136:CZ136)))","v":2},{"$f":"IF(SUM('2011 Survey responses'!DA136:DD136)<1,\"\",(AVERAGE('2011 Survey responses'!DA136:DD136)))","v":2},{"$f":"IF(SUM('2011 Survey responses'!DE136:DH136)<1,\"\",(AVERAGE('2011 Survey responses'!DE136:DH136)))","v":2},{"$f":"IF(SUM('2011 Survey responses'!DI136:DL136)<1,\"\",(AVERAGE('2011 Survey responses'!DI136:DL136)))","v":2},{"$f":"IF(('2011 Survey responses'!CW136+'2011 Survey responses'!DA136+'2011 Survey responses'!DE136+'2011 Survey responses'!DI136)<1,\"\",AVERAGE('2011 Survey responses'!CW136,'2011 Survey responses'!DA136,'2011 Survey responses'!DE136,'2011 Survey responses'!DI136))","v":2},{"$f":"IF(('2011 Survey responses'!CX136+'2011 Survey responses'!DB136+'2011 Survey responses'!DF136+'2011 Survey responses'!DJ136)<1,\"\",AVERAGE('2011 Survey responses'!CX136,'2011 Survey responses'!DB136,'2011 Survey responses'!DF136,'2011 Survey responses'!DJ136))","v":2},{"$f":"IF(('2011 Survey responses'!CY136+'2011 Survey responses'!DC136+'2011 Survey responses'!DG136+'2011 Survey responses'!DK136)<1,\"\",AVERAGE('2011 Survey responses'!CY136,'2011 Survey responses'!DC136,'2011 Survey responses'!DG136,'2011 Survey responses'!DK136))","v":2},{"$f":"IF(('2011 Survey responses'!CZ136+'2011 Survey responses'!DD136+'2011 Survey responses'!DH136+'2011 Survey responses'!DL136)<1,\"\",AVERAGE('2011 Survey responses'!CZ136,'2011 Survey responses'!DD136,'2011 Survey responses'!DH136,'2011 Survey responses'!DL136))","v":2},{"$f":"IF('2011 Survey responses'!CW136<0.5,\"\",'2011 Survey responses'!CW136)","v":2},{"$f":"IF('2011 Survey responses'!CX136<0.5,\"\",'2011 Survey responses'!CX136)","v":2},{"$f":"IF('2011 Survey responses'!CY136<0.5,\"\",'2011 Survey responses'!CY136)","v":2},{"$f":"IF('2011 Survey responses'!CZ136<0.5,\"\",'2011 Survey responses'!CZ136)","v":2},{"$f":"IF('2011 Survey responses'!DA136<0.5,\"\",'2011 Survey responses'!DA136)","v":2},{"$f":"IF('2011 Survey responses'!DB136<0.5,\"\",'2011 Survey responses'!DB136)","v":2},{"$f":"IF('2011 Survey responses'!DC136<0.5,\"\",'2011 Survey responses'!DC136)","v":2},{"$f":"IF('2011 Survey responses'!DD136<0.5,\"\",'2011 Survey responses'!DD136)","v":2},{"$f":"IF('2011 Survey responses'!DE136<0.5,\"\",'2011 Survey responses'!DE136)","v":2},{"$f":"IF('2011 Survey responses'!DF136<0.5,\"\",'2011 Survey responses'!DF136)","v":2},{"$f":"IF('2011 Survey responses'!DG136<0.5,\"\",'2011 Survey responses'!DG136)","v":2},{"$f":"IF('2011 Survey responses'!DH136<0.5,\"\",'2011 Survey responses'!DH136)","v":2},{"$f":"IF('2011 Survey responses'!DI136<0.5,\"\",'2011 Survey responses'!DI136)","v":2},{"$f":"IF('2011 Survey responses'!DJ136<0.5,\"\",'2011 Survey responses'!DJ136)","v":2},{"$f":"IF('2011 Survey responses'!DK136<0.5,\"\",'2011 Survey responses'!DK136)","v":2},{"$f":"IF('2011 Survey responses'!DL136<0.5,\"\",'2011 Survey responses'!DL136)","v":2},{"$f":"IF('2011 Survey responses'!DU136=4,4,IF('2011 Survey responses'!DU136=5,4,\"\"))","v":4},{"$f":"IF('2011 Survey responses'!DV136=4,3,IF('2011 Survey responses'!DV136=5,3,\"\"))","v":3},2,{"$f":"IF(CQ136=2,CQ136,IF(CO136=4,CO136,IF(CP136=3,CP136,IF('2011 Survey responses'!GT136=1,1,\"\"))))","v":2},{"$f":"IF('2011 Survey responses'!DO136<0.5,\"\",'2011 Survey responses'!DO136)","v":3},{"$f":"IF('2011 Survey responses'!DP136<0.5,\"\",'2011 Survey responses'!DP136)","v":5},{"$f":"IF('2011 Survey responses'!DQ136<0.5,\"\",'2011 Survey responses'!DQ136)","v":3},{"$f":"IF('2011 Survey responses'!DR136<0.5,\"\",'2011 Survey responses'!DR136)","v":2},{"$f":"IF('2011 Survey responses'!DS136<0.5,\"\",'2011 Survey responses'!DS136)","v":4},{"$f":"IF('2011 Survey responses'!DT136<0.5,\"\",'2011 Survey responses'!DT136)","v":4},{"$f":"IF('2011 Survey responses'!DU136<0.5,\"\",'2011 Survey responses'!DU136)","v":5},{"$f":"IF('2011 Survey responses'!DV136<0.5,\"\",'2011 Survey responses'!DV136)","v":5},{"$f":"IF('2011 Survey responses'!DW136<0.5,\"\",'2011 Survey responses'!DW136)","v":3},{"$f":"IF('2011 Survey responses'!DX136<0.5,\"\",'2011 Survey responses'!DX136)","v":4},{"$f":"IF('2011 Survey responses'!DY136<0.5,\"\",'2011 Survey responses'!DY136)","v":4},{"$f":"IF('2011 Survey responses'!DZ136<0.5,\"\",'2011 Survey responses'!DZ136)","v":3},{"$f":"IF('2011 Survey responses'!EA136<0.5,\"\",'2011 Survey responses'!EA136)","v":3},{"$f":"IF('2011 Survey responses'!EB136<0.5,\"\",'2011 Survey responses'!EB136)","v":2},{"$f":"IF('2011 Survey responses'!EC136<0.5,\"\",'2011 Survey responses'!EC136)","v":3},{"$f":"IF('2011 Survey responses'!ED136<0.5,\"\",'2011 Survey responses'!ED136)","v":3},{"$f":"IF('2011 Survey responses'!EE136<0.5,\"\",'2011 Survey responses'!EE136)","v":2},{"$f":"IF('2011 Survey responses'!EF136<0.5,\"\",'2011 Survey responses'!EF136)","v":4},{"$f":"IF('2011 Survey responses'!EG136<0.5,\"\",'2011 Survey responses'!EG136)","v":4},{"$f":"IF('2011 Survey responses'!EH136<0.5,\"\",'2011 Survey responses'!EH136)","v":4},{"$f":"IF('2011 Survey responses'!EI136<0.5,\"\",'2011 Survey responses'!EI136)","v":3},{"$f":"IF('2011 Survey responses'!EJ136<0.5,\"\",'2011 Survey responses'!EJ136)","v":4},{"$f":"IF('2011 Survey responses'!EK136<0.5,\"\",'2011 Survey responses'!EK136)","v":4},{"$f":"IF('2011 Survey responses'!EL136<0.5,\"\",'2011 Survey responses'!EL136)","v":4},{"$f":"IF('2011 Survey responses'!EM136<0.5,\"\",'2011 Survey responses'!EM136)","v":3},{"$f":"IF('2011 Survey responses'!EN136<0.5,\"\",'2011 Survey responses'!EN136)","v":1},{"$f":"IF('2011 Survey responses'!EO136<0.5,\"\",'2011 Survey responses'!EO136)","v":1},{"$f":"IF('2011 Survey responses'!EP136<0.5,\"\",'2011 Survey responses'!EP136)","v":1},{"$f":"IF(('2011 Survey responses'!EW136+'2011 Survey responses'!EX136)>=2,AVERAGE('2011 Survey responses'!EW136,'2011 Survey responses'!EY136),\"\")","v":4},{"$f":"IF('2011 Survey responses'!EX136<0.5,\"\",'2011 Survey responses'!EX136)","v":4},{"$f":"IF('2011 Survey responses'!EZ136<0.5,\"\",'2011 Survey responses'!EZ136)","v":4},{"$f":"IF('2011 Survey responses'!FB136<0.5,\"\",'2011 Survey responses'!FB136)","v":5},{"$f":"IF('2011 Survey responses'!FD136<0.5,\"\",'2011 Survey responses'!FD136)","v":3},{"$f":"IF('2011 Survey responses'!FC136<0.5,\"\",'2011 Survey responses'!FC136)","v":5},{"$f":"IF(('2011 Survey responses'!EM136+'2011 Survey responses'!EN136)>=2,AVERAGE('2011 Survey responses'!EM136,'2011 Survey responses'!EN136),\"\")","v":2},{"$f":"IF('2011 Survey responses'!ES136<0.5,\"\",'2011 Survey responses'!ES136)","v":4},{"$f":"IF(('2011 Survey responses'!ET136+'2011 Survey responses'!EU136)>=2,AVERAGE('2011 Survey responses'!ET136,'2011 Survey responses'!EU136),\"\")","v":2.5},{"$f":"IF('2011 Survey responses'!EV136<0.5,\"\",'2011 Survey responses'!EV136)","v":4},{"$f":"IF('2011 Survey responses'!FA136<0.5,\"\",'2011 Survey responses'!FA136)","v":4},{"$f":"IF('2011 Survey responses'!ER136<0.5,\"\",'2011 Survey responses'!ER136)","v":3},{"$f":"IF(('2011 Survey responses'!EO136+'2011 Survey responses'!EP136)>=2,AVERAGE('2011 Survey responses'!EO136,'2011 Survey responses'!EP136),\"\")","v":1},{"$f":"IF('2011 Survey responses'!EQ136<0.5,\"\",'2011 Survey responses'!EQ136)","v":1},{"$f":"IF('2011 Survey responses'!ET136<0.5,\"\",'2011 Survey responses'!ET136)","v":4},{"$f":"IF('2011 Survey responses'!EU136<0.5,\"\",'2011 Survey responses'!EU136)","v":1},{"$f":"IF('2011 Survey responses'!EW136<0.5,\"\",'2011 Survey responses'!EW136)","v":4},{"$f":"IF('2011 Survey responses'!EY136<0.5,\"\",'2011 Survey responses'!EY136)","v":4},{"$f":"IF('2011 Survey responses'!FU136<0.5,\"\",'2011 Survey responses'!FU136)","v":3},{"$f":"IF(('2011 Survey responses'!FL136+'2011 Survey responses'!FM136)>=2,AVERAGE('2011 Survey responses'!FL136,'2011 Survey responses'!FM136),\"\")","v":2.5},{"$f":"IF(('2011 Survey responses'!FO136+'2011 Survey responses'!FQ136)>=2,AVERAGE('2011 Survey responses'!FO136,'2011 Survey responses'!FQ136),\"\")","v":2.5},{"$f":"IF('2011 Survey responses'!FJ136<0.5,\"\",'2011 Survey responses'!FJ136)","v":2},{"$f":"IF('2011 Survey responses'!FT136<0.5,\"\",'2011 Survey responses'!FT136)","v":2},{"$f":"IF('2011 Survey responses'!FR136<0.5,\"\",'2011 Survey responses'!FR136)","v":4},{"$f":"IF('2011 Survey responses'!FK136<0.5,\"\",'2011 Survey responses'!FK136)","v":2},{"$f":"IF('2011 Survey responses'!FP136<0.5,\"\",'2011 Survey responses'!FP136)","v":3},{"$f":"IF('2011 Survey responses'!FN136<0.5,\"\",'2011 Survey responses'!FN136)","v":2},{"$f":"IF(('2011 Survey responses'!FE136+'2011 Survey responses'!FF136)>=2,AVERAGE('2011 Survey responses'!FE136,'2011 Survey responses'!FF136),\"\")","v":2.5},{"$f":"IF('2011 Survey responses'!FS136<0.5,\"\",'2011 Survey responses'!FS136)","v":2},{"$f":"IF('2011 Survey responses'!FV136<0.5,\"\",'2011 Survey responses'!FV136)","v":3},{"$f":"IF(('2011 Survey responses'!FG136+'2011 Survey responses'!FH136)>=2,AVERAGE('2011 Survey responses'!FG136,'2011 Survey responses'!FH136),\"\")","v":3},{"$f":"IF('2011 Survey responses'!FI136<0.5,\"\",'2011 Survey responses'!FI136)","v":2},{"$f":"IF('2011 Survey responses'!FE136<0.5,\"\",'2011 Survey responses'!FE136)","v":2},{"$f":"IF('2011 Survey responses'!FF136<0.5,\"\",'2011 Survey responses'!FF136)","v":3},{"$f":"IF('2011 Survey responses'!FG136<0.5,\"\",'2011 Survey responses'!FG136)","v":3},{"$f":"IF('2011 Survey responses'!FH136<0.5,\"\",'2011 Survey responses'!FH136)","v":3},{"$f":"IF('2011 Survey responses'!FL136<0.5,\"\",'2011 Survey responses'!FL136)","v":2},{"$f":"IF('2011 Survey responses'!FM136<0.5,\"\",'2011 Survey responses'!FM136)","v":3},{"$f":"IF('2011 Survey responses'!FO136<0.5,\"\",'2011 Survey responses'!FO136)","v":2},{"$f":"IF('2011 Survey responses'!FQ136<0.5,\"\",'2011 Survey responses'!FQ136)","v":3}]
["Poland",{"$f":"IF(SUM(F137)<1,\"\",AVERAGEIF('2011 Survey responses'!B137:CP137,\">1\"))","v":3.9367088607594938},{"$f":"IF(SUM(F137)<1,\"\",AVERAGEIF('2011 Survey responses'!B137:AO137,\">1\"))","v":4.1470588235294121},{"$f":"IF(SUM(F137)<1,\"\",AVERAGEIF('2011 Survey responses'!B137:BV137,\">1\"))","v":4.1230769230769226},{"$f":"IF(SUM(F137)<1,\"\",AVERAGEIF('2011 Survey responses'!V137:BV137,\">1\"))","v":4.291666666666667},{"$f":"IF(SUM('2011 Survey responses'!B137:U137)<1,\"\",(AVERAGEIFS('2011 Survey responses'!B137:U137,'2011 Survey responses'!B137:U137,\">1\")))","v":3.6470588235294117},{"$f":"IF(SUM('2011 Survey responses'!B137:H137)<1,\"\",(AVERAGEIFS('2011 Survey responses'!B137:H137,'2011 Survey responses'!B137:H137,\">1\")))","v":3.2},{"$f":"IF(SUM('2011 Survey responses'!I137:S137)<1,\"\",(AVERAGEIFS('2011 Survey responses'!I137:S137,'2011 Survey responses'!I137:S137,\">1\")))","v":3.7},{"$f":"IF(SUM('2011 Survey responses'!T137:U137)<2.1,\"\",(AVERAGEIFS('2011 Survey responses'!T137:U137,'2011 Survey responses'!T137:U137,\">1\")))","v":4.5},{"$f":"IF(SUM('2011 Survey responses'!B137:C137)<2.1,\"\",((SUMIF('2011 Survey responses'!B137:C137,\">1\")+SUMIF('2011 Survey responses'!F137,\">1\"))/(COUNTIF('2011 Survey responses'!B137:C137,\">1\")+COUNTIF('2011 Survey responses'!F137,\">1\"))))","v":2.6666666666666665},{"$f":"IF(SUM('2011 Survey responses'!D137:E137)<2.1,\"\",(AVERAGEIFS('2011 Survey responses'!D137:E137,'2011 Survey responses'!D137:E137,\">1\")))","v":6},{"$f":"IF(('2011 Survey responses'!B137+'2011 Survey responses'!D137)<2.1,\"\",((SUMIF('2011 Survey responses'!B137,\">1\")+SUMIF('2011 Survey responses'!D137,\">1\")+SUMIF('2011 Survey responses'!F137,\">1\")+SUMIF('2011 Survey responses'!K137,\">1\"))/(COUNTIF('2011 Survey responses'!B137,\">1\")+COUNTIF('2011 Survey responses'!D137,\">1\")+COUNTIF('2011 Survey responses'!F137,\">1\")+COUNTIF('2011 Survey responses'!K137,\">1\"))))","v":4},{"$f":"IF(SUM('2011 Survey responses'!G137:H137)<2.1,\"\",(AVERAGEIFS('2011 Survey responses'!G137:H137,'2011 Survey responses'!G137:H137,\">1\")))","v":2},{"$f":"IF(SUM('2011 Survey responses'!F137:G137)<1.5,\"\",MAX('2011 Survey responses'!F137,'2011 Survey responses'!G137))","v":4},{"$f":"IF(SUM('2011 Survey responses'!G137:H137)<1,\"\",MAX('2011 Survey responses'!G137,'2011 Survey responses'!H137))","v":2},{"$f":"IF(SUM('2011 Survey responses'!I137:L137)<4.1,\"\",(AVERAGEIFS('2011 Survey responses'!I137:L137,'2011 Survey responses'!I137:L137,\">1\")))","v":3.6666666666666665},{"$f":"IF(SUM('2011 Survey responses'!M137:S137)<4.1,\"\",(AVERAGEIFS('2011 Survey responses'!M137:S137,'2011 Survey responses'!M137:S137,\">1\")))","v":3.7142857142857144},{"$f":"IF(SUM('2011 Survey responses'!T137:U137)<2.1,\"\",(AVERAGEIFS('2011 Survey responses'!T137:U137,'2011 Survey responses'!T137:U137,\">1\")))","v":4.5},{"$f":"IF(SUM('2011 Survey responses'!V137:AO137)<1,\"\",(AVERAGEIFS('2011 Survey responses'!V137:AO137,'2011 Survey responses'!V137:AO137,\">1\")))","v":4.6470588235294121},{"$f":"IF(SUM('2011 Survey responses'!V137:AA137)<1,\"\",(AVERAGEIFS('2011 Survey responses'!V137:AA137,'2011 Survey responses'!V137:AA137,\">1\")))","v":5.8},{"$f":"IF(SUM('2011 Survey responses'!AB137:AH137)<1,\"\",(AVERAGEIFS('2011 Survey responses'!AB137:AH137,'2011 Survey responses'!AB137:AH137,\">1\")))","v":5.6},{"$f":"IF(SUM('2011 Survey responses'!AI137:AO137)<1,\"\",(AVERAGEIFS('2011 Survey responses'!AI137:AO137,'2011 Survey responses'!AI137:AO137,\">1\")))","v":3.1428571428571428},{"$f":"IF(('2011 Survey responses'!Y137+'2011 Survey responses'!AI137+'2011 Survey responses'!AK137)<3.1,\"\",((SUMIF('2011 Survey responses'!Y137,\">1\")+SUMIF('2011 Survey responses'!AI137,\">1\")+SUMIF('2011 Survey responses'!AK137,\">1\")+SUMIF('2011 Survey responses'!AM137,\">1\"))/(COUNTIF('2011 Survey responses'!Y137,\">1\")+COUNTIF('2011 Survey responses'!AI137,\">1\")+COUNTIF('2011 Survey responses'!AK137,\">1\")+COUNTIF('2011 Survey responses'!AM137,\">1\"))))","v":3},{"$f":"IF(('2011 Survey responses'!W137)<1.1,\"\",('2011 Survey responses'!W137))","v":6},{"$f":"IF(('2011 Survey responses'!Y137)<1.1,\"\",('2011 Survey responses'!Y137))","v":6},{"$f":"IF(('2011 Survey responses'!Z137)<1.1,\"\",('2011 Survey responses'!Z137))","v":5},{"$f":"IF(('2011 Survey responses'!V137+'2011 Survey responses'!X137+'2011 Survey responses'!AA137)<3.1,\"\",((SUMIF('2011 Survey responses'!V137,\">1\")+SUMIF('2011 Survey responses'!X137,\">1\")+SUMIF('2011 Survey responses'!AA137,\">1\"))/(COUNTIF('2011 Survey responses'!V137,\">1\")+COUNTIF('2011 Survey responses'!X137,\">1\")+COUNTIF('2011 Survey responses'!AA137,\">1\"))))","v":6},{"$f":"IF(('2011 Survey responses'!V137+'2011 Survey responses'!Y137+'2011 Survey responses'!AA137)<3.1,\"\",((SUMIF('2011 Survey responses'!V137,\">1\")+SUMIF('2011 Survey responses'!Y137,\">1\")+SUMIF('2011 Survey responses'!AA137,\">1\"))/(COUNTIF('2011 Survey responses'!V137,\">1\")+COUNTIF('2011 Survey responses'!Y137,\">1\")+COUNTIF('2011 Survey responses'!AA137,\">1\"))))","v":6},{"$f":"IF(SUM('2011 Survey responses'!AB137:AH137)<1,\"\",(AVERAGEIFS('2011 Survey responses'!AB137:AH137,'2011 Survey responses'!AB137:AH137,\">1\")))","v":5.6},{"$f":"IF(SUM('2011 Survey responses'!AI137:AO137)<7.1,\"\",(AVERAGEIFS('2011 Survey responses'!AI137:AO137,'2011 Survey responses'!AI137:AO137,\">1\")))","v":3.1428571428571428},{"$f":"IF(('2011 Survey responses'!AH137)<1.1,\"\",('2011 Survey responses'!AH137))","v":""},{"$f":"IF(SUM('2011 Survey responses'!AP137:BV137)<1,\"\",(AVERAGEIFS('2011 Survey responses'!AP137:BV137,'2011 Survey responses'!AP137:BV137,\">1\")))","v":4.096774193548387},{"$f":"IF(SUM('2011 Survey responses'!AP137:AS137)<4.1,\"\",(AVERAGEIFS('2011 Survey responses'!AP137:AS137,'2011 Survey responses'!AP137:AS137,\">1\")))","v":5},{"$f":"IF(SUM('2011 Survey responses'!AT137:BF137)<1,\"\",(AVERAGEIFS('2011 Survey responses'!AT137:BF137,'2011 Survey responses'!AT137:BF137,\">1\")))","v":3.3846153846153846},{"$f":"IF(SUM('2011 Survey responses'!BG137:BO137)<1,\"\",(AVERAGEIFS('2011 Survey responses'!BG137:BO137,'2011 Survey responses'!BG137:BO137,\">1\")))","v":5},{"$f":"IF(SUM('2011 Survey responses'!BP137:BS137)<1,\"\",(AVERAGEIFS('2011 Survey responses'!BP137:BS137,'2011 Survey responses'!BP137:BS137,\">1\")))","v":3.3333333333333335},{"$f":"IF(SUM('2011 Survey responses'!BT137:BV137)<3.1,\"\",(AVERAGEIFS('2011 Survey responses'!BT137:BV137,'2011 Survey responses'!BT137:BV137,\">1\")))","v":4},{"$f":"IF(('2011 Survey responses'!AQ137+'2011 Survey responses'!AR137+'2011 Survey responses'!BG137)<3.1,\"\",((SUMIF('2011 Survey responses'!AQ137,\">1\")+SUMIF('2011 Survey responses'!AR137,\">1\")+SUMIF('2011 Survey responses'!BG137,\">1\"))/(COUNTIF('2011 Survey responses'!AQ137,\">1\")+COUNTIF('2011 Survey responses'!AR137,\">1\")+COUNTIF('2011 Survey responses'!BG137,\">1\"))))","v":5.666666666666667},{"$f":"IF(SUM('2011 Survey responses'!AP137:AS137)<4.1,\"\",(AVERAGEIFS('2011 Survey responses'!AP137:AS137,'2011 Survey responses'!AP137:AS137,\">1\")))","v":5},{"$f":"IF(('2011 Survey responses'!AU137+'2011 Survey responses'!AX137+'2011 Survey responses'!BA137+'2011 Survey responses'!BC137+'2011 Survey responses'!BD137)<5.1,\"\",(SUMIF('2011 Survey responses'!AU137,\">1\")+SUMIF('2011 Survey responses'!AX137,\">1\")+SUMIF('2011 Survey responses'!BA137,\">1\")+SUMIF('2011 Survey responses'!BC137,\">1\")+SUMIF('2011 Survey responses'!BD137,\">1\"))/(COUNTIF('2011 Survey responses'!AU137,\">1\")+COUNTIF('2011 Survey responses'!AX137,\">1\")+COUNTIF('2011 Survey responses'!BA137,\">1\")+COUNTIF('2011 Survey responses'!BC137,\">1\")+COUNTIF('2011 Survey responses'!BD137,\">1\")))","v":3.2},{"$f":"IF(('2011 Survey responses'!AT137)<1.1,\"\",('2011 Survey responses'!AT137))","v":4},{"$f":"IF(SUM('2011 Survey responses'!AV137:AW137)<2.1,\"\",(AVERAGEIFS('2011 Survey responses'!AV137:AW137,'2011 Survey responses'!AV137:AW137,\">1\")))","v":3},{"$f":"IF(('2011 Survey responses'!AW137+'2011 Survey responses'!AY137)<2.1,\"\",(SUMIF('2011 Survey responses'!AW137,\">1\")+SUMIF('2011 Survey responses'!AY137,\">1\"))/(COUNTIF('2011 Survey responses'!AW137,\">1\")+COUNTIF('2011 Survey responses'!AY137,\">1\")))","v":2},{"$f":"IF(('2011 Survey responses'!AZ137)<1.1,\"\",('2011 Survey responses'!AZ137))","v":2},2,4,2,1,{"$f":"IF(('2011 Survey responses'!BE137)<1.1,\"\",('2011 Survey responses'!BE137))","v":3},{"$f":"IF(('2011 Survey responses'!AY137+'2011 Survey responses'!BB137+'2011 Survey responses'!BF137)<3.1,\"\",(SUMIF('2011 Survey responses'!AY137,\">1\")+SUMIF('2011 Survey responses'!BB137,\">1\")+SUMIF('2011 Survey responses'!BF137,\">1\"))/(COUNTIF('2011 Survey responses'!AY137,\">1\")+COUNTIF('2011 Survey responses'!BB137,\">1\")+COUNTIF('2011 Survey responses'!BF137,\">1\")))","v":4.333333333333333},4.166666666666667,{"$f":"IF(SUM('2011 Survey responses'!BT137:BV137)<3.1,\"\",(AVERAGEIFS('2011 Survey responses'!BT137:BV137,'2011 Survey responses'!BT137:BV137,\">1\")))","v":4},{"$f":"IF(SUM('2011 Survey responses'!BW137:CP137)<1,\"\",(AVERAGEIFS('2011 Survey responses'!BW137:CP137,'2011 Survey responses'!BW137:CP137,\">1\")))","v":3.0714285714285716},{"$f":"IF(SUM('2011 Survey responses'!BW137:CF137)<1,\"\",(AVERAGEIFS('2011 Survey responses'!BW137:CF137,'2011 Survey responses'!BW137:CF137,\">1\")))","v":3.2857142857142856},{"$f":"IF(SUM('2011 Survey responses'!CG137:CP137)<1,\"\",(AVERAGEIFS('2011 Survey responses'!CG137:CP137,'2011 Survey responses'!CG137:CP137,\">1\")))","v":2.8571428571428572},{"$f":"IF(SUM('2011 Survey responses'!BX137:CF137)<1,\"\",(AVERAGEIFS('2011 Survey responses'!BX137:CF137,'2011 Survey responses'!BX137:CF137,\">1\")))","v":3},{"$f":"IF(SUM('2011 Survey responses'!CH137:CP137)<1,\"\",(AVERAGEIFS('2011 Survey responses'!CH137:CP137,'2011 Survey responses'!CH137:CP137,\">1\")))","v":3},{"$f":"IF(SUM('2011 Survey responses'!BW137:CP137)<1,\"\",(AVERAGEIFS('2011 Survey responses'!BW137:CP137,'2011 Survey responses'!BW137:CP137,\">1\")))","v":3.0714285714285716},{"$f":"IF(('2011 Survey responses'!BW137+'2011 Survey responses'!CG137)<2.1,\"\",(SUMIF('2011 Survey responses'!BW137,\">1\")+SUMIF('2011 Survey responses'!CG137,\">1\"))/(COUNTIF('2011 Survey responses'!BW137,\">1\")+COUNTIF('2011 Survey responses'!CG137,\">1\")))","v":3.5},{"$f":"IF(('2011 Survey responses'!BX137+'2011 Survey responses'!CH137)<2.1,\"\",(SUMIF('2011 Survey responses'!BX137,\">1\")+SUMIF('2011 Survey responses'!CH137,\">1\"))/(COUNTIF('2011 Survey responses'!BX137,\">1\")+COUNTIF('2011 Survey responses'!CH137,\">1\")))","v":""},{"$f":"IF(('2011 Survey responses'!BY137+'2011 Survey responses'!CI137)<2.1,\"\",(SUMIF('2011 Survey responses'!BY137,\">1\")+SUMIF('2011 Survey responses'!CI137,\">1\"))/(COUNTIF('2011 Survey responses'!BY137,\">1\")+COUNTIF('2011 Survey responses'!CI137,\">1\")))","v":2},{"$f":"IF('2011 Survey responses'!CQ137<0.5,\"\",'2011 Survey responses'!CQ137)","v":5},{"$f":"IF('2011 Survey responses'!CR137<0.5,\"\",'2011 Survey responses'!CR137)","v":5},{"$f":"IF('2011 Survey responses'!CS137<0.5,\"\",'2011 Survey responses'!CS137)","v":4},{"$f":"IF('2011 Survey responses'!CT137<0.5,\"\",'2011 Survey responses'!CT137)","v":2},{"$f":"IF('2011 Survey responses'!CU137<0.5,\"\",'2011 Survey responses'!CU137)","v":5},{"$f":"IF('2011 Survey responses'!CV137<0.5,\"\",'2011 Survey responses'!CV137)","v":2},{"$f":"IF(SUM('2011 Survey responses'!CW137:DL137)<1,\"\",(AVERAGE('2011 Survey responses'!CW137:DL137)))","v":3.6666666666666665},{"$f":"IF(SUM('2011 Survey responses'!CW137:CZ137)<1,\"\",(AVERAGE('2011 Survey responses'!CW137:CZ137)))","v":3.6666666666666665},{"$f":"IF(SUM('2011 Survey responses'!DA137:DD137)<1,\"\",(AVERAGE('2011 Survey responses'!DA137:DD137)))","v":3},{"$f":"IF(SUM('2011 Survey responses'!DE137:DH137)<1,\"\",(AVERAGE('2011 Survey responses'!DE137:DH137)))","v":3.3333333333333335},{"$f":"IF(SUM('2011 Survey responses'!DI137:DL137)<1,\"\",(AVERAGE('2011 Survey responses'!DI137:DL137)))","v":4.666666666666667},{"$f":"IF(('2011 Survey responses'!CW137+'2011 Survey responses'!DA137+'2011 Survey responses'!DE137+'2011 Survey responses'!DI137)<1,\"\",AVERAGE('2011 Survey responses'!CW137,'2011 Survey responses'!DA137,'2011 Survey responses'!DE137,'2011 Survey responses'!DI137))","v":4},{"$f":"IF(('2011 Survey responses'!CX137+'2011 Survey responses'!DB137+'2011 Survey responses'!DF137+'2011 Survey responses'!DJ137)<1,\"\",AVERAGE('2011 Survey responses'!CX137,'2011 Survey responses'!DB137,'2011 Survey responses'!DF137,'2011 Survey responses'!DJ137))","v":2},{"$f":"IF(('2011 Survey responses'!CY137+'2011 Survey responses'!DC137+'2011 Survey responses'!DG137+'2011 Survey responses'!DK137)<1,\"\",AVERAGE('2011 Survey responses'!CY137,'2011 Survey responses'!DC137,'2011 Survey responses'!DG137,'2011 Survey responses'!DK137))","v":5},{"$f":"IF(('2011 Survey responses'!CZ137+'2011 Survey responses'!DD137+'2011 Survey responses'!DH137+'2011 Survey responses'!DL137)<1,\"\",AVERAGE('2011 Survey responses'!CZ137,'2011 Survey responses'!DD137,'2011 Survey responses'!DH137,'2011 Survey responses'!DL137))","v":""},{"$f":"IF('2011 Survey responses'!CW137<0.5,\"\",'2011 Survey responses'!CW137)","v":5},{"$f":"IF('2011 Survey responses'!CX137<0.5,\"\",'2011 Survey responses'!CX137)","v":1},{"$f":"IF('2011 Survey responses'!CY137<0.5,\"\",'2011 Survey responses'!CY137)","v":5},{"$f":"IF('2011 Survey responses'!CZ137<0.5,\"\",'2011 Survey responses'!CZ137)","v":""},{"$f":"IF('2011 Survey responses'!DA137<0.5,\"\",'2011 Survey responses'!DA137)","v":3},{"$f":"IF('2011 Survey responses'!DB137<0.5,\"\",'2011 Survey responses'!DB137)","v":1},{"$f":"IF('2011 Survey responses'!DC137<0.5,\"\",'2011 Survey responses'!DC137)","v":5},{"$f":"IF('2011 Survey responses'!DD137<0.5,\"\",'2011 Survey responses'!DD137)","v":""},{"$f":"IF('2011 Survey responses'!DE137<0.5,\"\",'2011 Survey responses'!DE137)","v":3},{"$f":"IF('2011 Survey responses'!DF137<0.5,\"\",'2011 Survey responses'!DF137)","v":2},{"$f":"IF('2011 Survey responses'!DG137<0.5,\"\",'2011 Survey responses'!DG137)","v":5},{"$f":"IF('2011 Survey responses'!DH137<0.5,\"\",'2011 Survey responses'!DH137)","v":""},{"$f":"IF('2011 Survey responses'!DI137<0.5,\"\",'2011 Survey responses'!DI137)","v":5},{"$f":"IF('2011 Survey responses'!DJ137<0.5,\"\",'2011 Survey responses'!DJ137)","v":4},{"$f":"IF('2011 Survey responses'!DK137<0.5,\"\",'2011 Survey responses'!DK137)","v":5},{"$f":"IF('2011 Survey responses'!DL137<0.5,\"\",'2011 Survey responses'!DL137)","v":""},{"$f":"IF('2011 Survey responses'!DU137=4,4,IF('2011 Survey responses'!DU137=5,4,\"\"))","v":4},{"$f":"IF('2011 Survey responses'!DV137=4,3,IF('2011 Survey responses'!DV137=5,3,\"\"))","v":""},"",{"$f":"IF(CQ137=2,CQ137,IF(CO137=4,CO137,IF(CP137=3,CP137,IF('2011 Survey responses'!GT137=1,1,\"\"))))","v":4},{"$f":"IF('2011 Survey responses'!DO137<0.5,\"\",'2011 Survey responses'!DO137)","v":4},{"$f":"IF('2011 Survey responses'!DP137<0.5,\"\",'2011 Survey responses'!DP137)","v":5},{"$f":"IF('2011 Survey responses'!DQ137<0.5,\"\",'2011 Survey responses'!DQ137)","v":4},{"$f":"IF('2011 Survey responses'!DR137<0.5,\"\",'2011 Survey responses'!DR137)","v":4},{"$f":"IF('2011 Survey responses'!DS137<0.5,\"\",'2011 Survey responses'!DS137)","v":4},{"$f":"IF('2011 Survey responses'!DT137<0.5,\"\",'2011 Survey responses'!DT137)","v":3},{"$f":"IF('2011 Survey responses'!DU137<0.5,\"\",'2011 Survey responses'!DU137)","v":5},{"$f":"IF('2011 Survey responses'!DV137<0.5,\"\",'2011 Survey responses'!DV137)","v":3},{"$f":"IF('2011 Survey responses'!DW137<0.5,\"\",'2011 Survey responses'!DW137)","v":3},{"$f":"IF('2011 Survey responses'!DX137<0.5,\"\",'2011 Survey responses'!DX137)","v":2},{"$f":"IF('2011 Survey responses'!DY137<0.5,\"\",'2011 Survey responses'!DY137)","v":5},{"$f":"IF('2011 Survey responses'!DZ137<0.5,\"\",'2011 Survey responses'!DZ137)","v":5},{"$f":"IF('2011 Survey responses'!EA137<0.5,\"\",'2011 Survey responses'!EA137)","v":3},{"$f":"IF('2011 Survey responses'!EB137<0.5,\"\",'2011 Survey responses'!EB137)","v":2},{"$f":"IF('2011 Survey responses'!EC137<0.5,\"\",'2011 Survey responses'!EC137)","v":1},{"$f":"IF('2011 Survey responses'!ED137<0.5,\"\",'2011 Survey responses'!ED137)","v":4},{"$f":"IF('2011 Survey responses'!EE137<0.5,\"\",'2011 Survey responses'!EE137)","v":4},{"$f":"IF('2011 Survey responses'!EF137<0.5,\"\",'2011 Survey responses'!EF137)","v":4},{"$f":"IF('2011 Survey responses'!EG137<0.5,\"\",'2011 Survey responses'!EG137)","v":4},{"$f":"IF('2011 Survey responses'!EH137<0.5,\"\",'2011 Survey responses'!EH137)","v":4},{"$f":"IF('2011 Survey responses'!EI137<0.5,\"\",'2011 Survey responses'!EI137)","v":4},{"$f":"IF('2011 Survey responses'!EJ137<0.5,\"\",'2011 Survey responses'!EJ137)","v":3},{"$f":"IF('2011 Survey responses'!EK137<0.5,\"\",'2011 Survey responses'!EK137)","v":2},{"$f":"IF('2011 Survey responses'!EL137<0.5,\"\",'2011 Survey responses'!EL137)","v":2},{"$f":"IF('2011 Survey responses'!EM137<0.5,\"\",'2011 Survey responses'!EM137)","v":4},{"$f":"IF('2011 Survey responses'!EN137<0.5,\"\",'2011 Survey responses'!EN137)","v":4},{"$f":"IF('2011 Survey responses'!EO137<0.5,\"\",'2011 Survey responses'!EO137)","v":4},{"$f":"IF('2011 Survey responses'!EP137<0.5,\"\",'2011 Survey responses'!EP137)","v":4},{"$f":"IF(('2011 Survey responses'!EW137+'2011 Survey responses'!EX137)>=2,AVERAGE('2011 Survey responses'!EW137,'2011 Survey responses'!EY137),\"\")","v":5},{"$f":"IF('2011 Survey responses'!EX137<0.5,\"\",'2011 Survey responses'!EX137)","v":5},{"$f":"IF('2011 Survey responses'!EZ137<0.5,\"\",'2011 Survey responses'!EZ137)","v":4},{"$f":"IF('2011 Survey responses'!FB137<0.5,\"\",'2011 Survey responses'!FB137)","v":3},{"$f":"IF('2011 Survey responses'!FD137<0.5,\"\",'2011 Survey responses'!FD137)","v":4},{"$f":"IF('2011 Survey responses'!FC137<0.5,\"\",'2011 Survey responses'!FC137)","v":3},{"$f":"IF(('2011 Survey responses'!EM137+'2011 Survey responses'!EN137)>=2,AVERAGE('2011 Survey responses'!EM137,'2011 Survey responses'!EN137),\"\")","v":4},{"$f":"IF('2011 Survey responses'!ES137<0.5,\"\",'2011 Survey responses'!ES137)","v":3},{"$f":"IF(('2011 Survey responses'!ET137+'2011 Survey responses'!EU137)>=2,AVERAGE('2011 Survey responses'!ET137,'2011 Survey responses'!EU137),\"\")","v":3},{"$f":"IF('2011 Survey responses'!EV137<0.5,\"\",'2011 Survey responses'!EV137)","v":1},{"$f":"IF('2011 Survey responses'!FA137<0.5,\"\",'2011 Survey responses'!FA137)","v":3},{"$f":"IF('2011 Survey responses'!ER137<0.5,\"\",'2011 Survey responses'!ER137)","v":3},{"$f":"IF(('2011 Survey responses'!EO137+'2011 Survey responses'!EP137)>=2,AVERAGE('2011 Survey responses'!EO137,'2011 Survey responses'!EP137),\"\")","v":4},{"$f":"IF('2011 Survey responses'!EQ137<0.5,\"\",'2011 Survey responses'!EQ137)","v":1},{"$f":"IF('2011 Survey responses'!ET137<0.5,\"\",'2011 Survey responses'!ET137)","v":3},{"$f":"IF('2011 Survey responses'!EU137<0.5,\"\",'2011 Survey responses'!EU137)","v":3},{"$f":"IF('2011 Survey responses'!EW137<0.5,\"\",'2011 Survey responses'!EW137)","v":5},{"$f":"IF('2011 Survey responses'!EY137<0.5,\"\",'2011 Survey responses'!EY137)","v":5},{"$f":"IF('2011 Survey responses'!FU137<0.5,\"\",'2011 Survey responses'!FU137)","v":4},{"$f":"IF(('2011 Survey responses'!FL137+'2011 Survey responses'!FM137)>=2,AVERAGE('2011 Survey responses'!FL137,'2011 Survey responses'!FM137),\"\")","v":4},{"$f":"IF(('2011 Survey responses'!FO137+'2011 Survey responses'!FQ137)>=2,AVERAGE('2011 Survey responses'!FO137,'2011 Survey responses'!FQ137),\"\")","v":5},{"$f":"IF('2011 Survey responses'!FJ137<0.5,\"\",'2011 Survey responses'!FJ137)","v":5},{"$f":"IF('2011 Survey responses'!FT137<0.5,\"\",'2011 Survey responses'!FT137)","v":4},{"$f":"IF('2011 Survey responses'!FR137<0.5,\"\",'2011 Survey responses'!FR137)","v":4},{"$f":"IF('2011 Survey responses'!FK137<0.5,\"\",'2011 Survey responses'!FK137)","v":4},{"$f":"IF('2011 Survey responses'!FP137<0.5,\"\",'2011 Survey responses'!FP137)","v":5},{"$f":"IF('2011 Survey responses'!FN137<0.5,\"\",'2011 Survey responses'!FN137)","v":1},{"$f":"IF(('2011 Survey responses'!FE137+'2011 Survey responses'!FF137)>=2,AVERAGE('2011 Survey responses'!FE137,'2011 Survey responses'!FF137),\"\")","v":4},{"$f":"IF('2011 Survey responses'!FS137<0.5,\"\",'2011 Survey responses'!FS137)","v":4},{"$f":"IF('2011 Survey responses'!FV137<0.5,\"\",'2011 Survey responses'!FV137)","v":4},{"$f":"IF(('2011 Survey responses'!FG137+'2011 Survey responses'!FH137)>=2,AVERAGE('2011 Survey responses'!FG137,'2011 Survey responses'!FH137),\"\")","v":4},{"$f":"IF('2011 Survey responses'!FI137<0.5,\"\",'2011 Survey responses'!FI137)","v":3},{"$f":"IF('2011 Survey responses'!FE137<0.5,\"\",'2011 Survey responses'!FE137)","v":4},{"$f":"IF('2011 Survey responses'!FF137<0.5,\"\",'2011 Survey responses'!FF137)","v":4},{"$f":"IF('2011 Survey responses'!FG137<0.5,\"\",'2011 Survey responses'!FG137)","v":4},{"$f":"IF('2011 Survey responses'!FH137<0.5,\"\",'2011 Survey responses'!FH137)","v":4},{"$f":"IF('2011 Survey responses'!FL137<0.5,\"\",'2011 Survey responses'!FL137)","v":4},{"$f":"IF('2011 Survey responses'!FM137<0.5,\"\",'2011 Survey responses'!FM137)","v":4},{"$f":"IF('2011 Survey responses'!FO137<0.5,\"\",'2011 Survey responses'!FO137)","v":5},{"$f":"IF('2011 Survey responses'!FQ137<0.5,\"\",'2011 Survey responses'!FQ137)","v":5}]
["Portugal",{"$f":"IF(SUM(F138)<1,\"\",AVERAGEIF('2011 Survey responses'!B138:CP138,\">1\"))","v":3.4069767441860463},{"$f":"IF(SUM(F138)<1,\"\",AVERAGEIF('2011 Survey responses'!B138:AO138,\">1\"))","v":3.6052631578947367},{"$f":"IF(SUM(F138)<1,\"\",AVERAGEIF('2011 Survey responses'!B138:BV138,\">1\"))","v":3.4788732394366195},{"$f":"IF(SUM(F138)<1,\"\",AVERAGEIF('2011 Survey responses'!V138:BV138,\">1\"))","v":3.5882352941176472},{"$f":"IF(SUM('2011 Survey responses'!B138:U138)<1,\"\",(AVERAGEIFS('2011 Survey responses'!B138:U138,'2011 Survey responses'!B138:U138,\">1\")))","v":3.2},{"$f":"IF(SUM('2011 Survey responses'!B138:H138)<1,\"\",(AVERAGEIFS('2011 Survey responses'!B138:H138,'2011 Survey responses'!B138:H138,\">1\")))","v":3.8571428571428572},{"$f":"IF(SUM('2011 Survey responses'!I138:S138)<1,\"\",(AVERAGEIFS('2011 Survey responses'!I138:S138,'2011 Survey responses'!I138:S138,\">1\")))","v":2.3636363636363638},{"$f":"IF(SUM('2011 Survey responses'!T138:U138)<2.1,\"\",(AVERAGEIFS('2011 Survey responses'!T138:U138,'2011 Survey responses'!T138:U138,\">1\")))","v":5.5},{"$f":"IF(SUM('2011 Survey responses'!B138:C138)<2.1,\"\",((SUMIF('2011 Survey responses'!B138:C138,\">1\")+SUMIF('2011 Survey responses'!F138,\">1\"))/(COUNTIF('2011 Survey responses'!B138:C138,\">1\")+COUNTIF('2011 Survey responses'!F138,\">1\"))))","v":4},{"$f":"IF(SUM('2011 Survey responses'!D138:E138)<2.1,\"\",(AVERAGEIFS('2011 Survey responses'!D138:E138,'2011 Survey responses'!D138:E138,\">1\")))","v":5},{"$f":"IF(('2011 Survey responses'!B138+'2011 Survey responses'!D138)<2.1,\"\",((SUMIF('2011 Survey responses'!B138,\">1\")+SUMIF('2011 Survey responses'!D138,\">1\")+SUMIF('2011 Survey responses'!F138,\">1\")+SUMIF('2011 Survey responses'!K138,\">1\"))/(COUNTIF('2011 Survey responses'!B138,\">1\")+COUNTIF('2011 Survey responses'!D138,\">1\")+COUNTIF('2011 Survey responses'!F138,\">1\")+COUNTIF('2011 Survey responses'!K138,\">1\"))))","v":4},{"$f":"IF(SUM('2011 Survey responses'!G138:H138)<2.1,\"\",(AVERAGEIFS('2011 Survey responses'!G138:H138,'2011 Survey responses'!G138:H138,\">1\")))","v":2.5},{"$f":"IF(SUM('2011 Survey responses'!F138:G138)<1.5,\"\",MAX('2011 Survey responses'!F138,'2011 Survey responses'!G138))","v":3},{"$f":"IF(SUM('2011 Survey responses'!G138:H138)<1,\"\",MAX('2011 Survey responses'!G138,'2011 Survey responses'!H138))","v":3},{"$f":"IF(SUM('2011 Survey responses'!I138:L138)<4.1,\"\",(AVERAGEIFS('2011 Survey responses'!I138:L138,'2011 Survey responses'!I138:L138,\">1\")))","v":2.5},{"$f":"IF(SUM('2011 Survey responses'!M138:S138)<4.1,\"\",(AVERAGEIFS('2011 Survey responses'!M138:S138,'2011 Survey responses'!M138:S138,\">1\")))","v":2.2857142857142856},{"$f":"IF(SUM('2011 Survey responses'!T138:U138)<2.1,\"\",(AVERAGEIFS('2011 Survey responses'!T138:U138,'2011 Survey responses'!T138:U138,\">1\")))","v":5.5},{"$f":"IF(SUM('2011 Survey responses'!V138:AO138)<1,\"\",(AVERAGEIFS('2011 Survey responses'!V138:AO138,'2011 Survey responses'!V138:AO138,\">1\")))","v":4.0555555555555554},{"$f":"IF(SUM('2011 Survey responses'!V138:AA138)<1,\"\",(AVERAGEIFS('2011 Survey responses'!V138:AA138,'2011 Survey responses'!V138:AA138,\">1\")))","v":5.6},{"$f":"IF(SUM('2011 Survey responses'!AB138:AH138)<1,\"\",(AVERAGEIFS('2011 Survey responses'!AB138:AH138,'2011 Survey responses'!AB138:AH138,\">1\")))","v":3.8333333333333335},{"$f":"IF(SUM('2011 Survey responses'!AI138:AO138)<1,\"\",(AVERAGEIFS('2011 Survey responses'!AI138:AO138,'2011 Survey responses'!AI138:AO138,\">1\")))","v":3.1428571428571428},{"$f":"IF(('2011 Survey responses'!Y138+'2011 Survey responses'!AI138+'2011 Survey responses'!AK138)<3.1,\"\",((SUMIF('2011 Survey responses'!Y138,\">1\")+SUMIF('2011 Survey responses'!AI138,\">1\")+SUMIF('2011 Survey responses'!AK138,\">1\")+SUMIF('2011 Survey responses'!AM138,\">1\"))/(COUNTIF('2011 Survey responses'!Y138,\">1\")+COUNTIF('2011 Survey responses'!AI138,\">1\")+COUNTIF('2011 Survey responses'!AK138,\">1\")+COUNTIF('2011 Survey responses'!AM138,\">1\"))))","v":3.5},{"$f":"IF(('2011 Survey responses'!W138)<1.1,\"\",('2011 Survey responses'!W138))","v":6},{"$f":"IF(('2011 Survey responses'!Y138)<1.1,\"\",('2011 Survey responses'!Y138))","v":5},{"$f":"IF(('2011 Survey responses'!Z138)<1.1,\"\",('2011 Survey responses'!Z138))","v":5},{"$f":"IF(('2011 Survey responses'!V138+'2011 Survey responses'!X138+'2011 Survey responses'!AA138)<3.1,\"\",((SUMIF('2011 Survey responses'!V138,\">1\")+SUMIF('2011 Survey responses'!X138,\">1\")+SUMIF('2011 Survey responses'!AA138,\">1\"))/(COUNTIF('2011 Survey responses'!V138,\">1\")+COUNTIF('2011 Survey responses'!X138,\">1\")+COUNTIF('2011 Survey responses'!AA138,\">1\"))))","v":6},{"$f":"IF(('2011 Survey responses'!V138+'2011 Survey responses'!Y138+'2011 Survey responses'!AA138)<3.1,\"\",((SUMIF('2011 Survey responses'!V138,\">1\")+SUMIF('2011 Survey responses'!Y138,\">1\")+SUMIF('2011 Survey responses'!AA138,\">1\"))/(COUNTIF('2011 Survey responses'!V138,\">1\")+COUNTIF('2011 Survey responses'!Y138,\">1\")+COUNTIF('2011 Survey responses'!AA138,\">1\"))))","v":5.5},{"$f":"IF(SUM('2011 Survey responses'!AB138:AH138)<1,\"\",(AVERAGEIFS('2011 Survey responses'!AB138:AH138,'2011 Survey responses'!AB138:AH138,\">1\")))","v":3.8333333333333335},{"$f":"IF(SUM('2011 Survey responses'!AI138:AO138)<7.1,\"\",(AVERAGEIFS('2011 Survey responses'!AI138:AO138,'2011 Survey responses'!AI138:AO138,\">1\")))","v":3.1428571428571428},{"$f":"IF(('2011 Survey responses'!AH138)<1.1,\"\",('2011 Survey responses'!AH138))","v":""},{"$f":"IF(SUM('2011 Survey responses'!AP138:BV138)<1,\"\",(AVERAGEIFS('2011 Survey responses'!AP138:BV138,'2011 Survey responses'!AP138:BV138,\">1\")))","v":3.3333333333333335},{"$f":"IF(SUM('2011 Survey responses'!AP138:AS138)<4.1,\"\",(AVERAGEIFS('2011 Survey responses'!AP138:AS138,'2011 Survey responses'!AP138:AS138,\">1\")))","v":3.75},{"$f":"IF(SUM('2011 Survey responses'!AT138:BF138)<1,\"\",(AVERAGEIFS('2011 Survey responses'!AT138:BF138,'2011 Survey responses'!AT138:BF138,\">1\")))","v":2.3846153846153846},{"$f":"IF(SUM('2011 Survey responses'!BG138:BO138)<1,\"\",(AVERAGEIFS('2011 Survey responses'!BG138:BO138,'2011 Survey responses'!BG138:BO138,\">1\")))","v":4.7777777777777777},{"$f":"IF(SUM('2011 Survey responses'!BP138:BS138)<1,\"\",(AVERAGEIFS('2011 Survey responses'!BP138:BS138,'2011 Survey responses'!BP138:BS138,\">1\")))","v":3.25},{"$f":"IF(SUM('2011 Survey responses'!BT138:BV138)<3.1,\"\",(AVERAGEIFS('2011 Survey responses'!BT138:BV138,'2011 Survey responses'!BT138:BV138,\">1\")))","v":2.6666666666666665},{"$f":"IF(('2011 Survey responses'!AQ138+'2011 Survey responses'!AR138+'2011 Survey responses'!BG138)<3.1,\"\",((SUMIF('2011 Survey responses'!AQ138,\">1\")+SUMIF('2011 Survey responses'!AR138,\">1\")+SUMIF('2011 Survey responses'!BG138,\">1\"))/(COUNTIF('2011 Survey responses'!AQ138,\">1\")+COUNTIF('2011 Survey responses'!AR138,\">1\")+COUNTIF('2011 Survey responses'!BG138,\">1\"))))","v":4.666666666666667},{"$f":"IF(SUM('2011 Survey responses'!AP138:AS138)<4.1,\"\",(AVERAGEIFS('2011 Survey responses'!AP138:AS138,'2011 Survey responses'!AP138:AS138,\">1\")))","v":3.75},{"$f":"IF(('2011 Survey responses'!AU138+'2011 Survey responses'!AX138+'2011 Survey responses'!BA138+'2011 Survey responses'!BC138+'2011 Survey responses'!BD138)<5.1,\"\",(SUMIF('2011 Survey responses'!AU138,\">1\")+SUMIF('2011 Survey responses'!AX138,\">1\")+SUMIF('2011 Survey responses'!BA138,\">1\")+SUMIF('2011 Survey responses'!BC138,\">1\")+SUMIF('2011 Survey responses'!BD138,\">1\"))/(COUNTIF('2011 Survey responses'!AU138,\">1\")+COUNTIF('2011 Survey responses'!AX138,\">1\")+COUNTIF('2011 Survey responses'!BA138,\">1\")+COUNTIF('2011 Survey responses'!BC138,\">1\")+COUNTIF('2011 Survey responses'!BD138,\">1\")))","v":2},{"$f":"IF(('2011 Survey responses'!AT138)<1.1,\"\",('2011 Survey responses'!AT138))","v":2},{"$f":"IF(SUM('2011 Survey responses'!AV138:AW138)<2.1,\"\",(AVERAGEIFS('2011 Survey responses'!AV138:AW138,'2011 Survey responses'!AV138:AW138,\">1\")))","v":2},{"$f":"IF(('2011 Survey responses'!AW138+'2011 Survey responses'!AY138)<2.1,\"\",(SUMIF('2011 Survey responses'!AW138,\">1\")+SUMIF('2011 Survey responses'!AY138,\">1\"))/(COUNTIF('2011 Survey responses'!AW138,\">1\")+COUNTIF('2011 Survey responses'!AY138,\">1\")))","v":2},{"$f":"IF(('2011 Survey responses'!AZ138)<1.1,\"\",('2011 Survey responses'!AZ138))","v":2},2,2,2,2,{"$f":"IF(('2011 Survey responses'!BE138)<1.1,\"\",('2011 Survey responses'!BE138))","v":4},{"$f":"IF(('2011 Survey responses'!AY138+'2011 Survey responses'!BB138+'2011 Survey responses'!BF138)<3.1,\"\",(SUMIF('2011 Survey responses'!AY138,\">1\")+SUMIF('2011 Survey responses'!BB138,\">1\")+SUMIF('2011 Survey responses'!BF138,\">1\"))/(COUNTIF('2011 Survey responses'!AY138,\">1\")+COUNTIF('2011 Survey responses'!BB138,\">1\")+COUNTIF('2011 Survey responses'!BF138,\">1\")))","v":3},4.0138888888888893,{"$f":"IF(SUM('2011 Survey responses'!BT138:BV138)<3.1,\"\",(AVERAGEIFS('2011 Survey responses'!BT138:BV138,'2011 Survey responses'!BT138:BV138,\">1\")))","v":2.6666666666666665},{"$f":"IF(SUM('2011 Survey responses'!BW138:CP138)<1,\"\",(AVERAGEIFS('2011 Survey responses'!BW138:CP138,'2011 Survey responses'!BW138:CP138,\">1\")))","v":3.0666666666666669},{"$f":"IF(SUM('2011 Survey responses'!BW138:CF138)<1,\"\",(AVERAGEIFS('2011 Survey responses'!BW138:CF138,'2011 Survey responses'!BW138:CF138,\">1\")))","v":2.75},{"$f":"IF(SUM('2011 Survey responses'!CG138:CP138)<1,\"\",(AVERAGEIFS('2011 Survey responses'!CG138:CP138,'2011 Survey responses'!CG138:CP138,\">1\")))","v":3.4285714285714284},{"$f":"IF(SUM('2011 Survey responses'!BX138:CF138)<1,\"\",(AVERAGEIFS('2011 Survey responses'!BX138:CF138,'2011 Survey responses'!BX138:CF138,\">1\")))","v":2.8571428571428572},{"$f":"IF(SUM('2011 Survey responses'!CH138:CP138)<1,\"\",(AVERAGEIFS('2011 Survey responses'!CH138:CP138,'2011 Survey responses'!CH138:CP138,\">1\")))","v":3.3333333333333335},{"$f":"IF(SUM('2011 Survey responses'!BW138:CP138)<1,\"\",(AVERAGEIFS('2011 Survey responses'!BW138:CP138,'2011 Survey responses'!BW138:CP138,\">1\")))","v":3.0666666666666669},{"$f":"IF(('2011 Survey responses'!BW138+'2011 Survey responses'!CG138)<2.1,\"\",(SUMIF('2011 Survey responses'!BW138,\">1\")+SUMIF('2011 Survey responses'!CG138,\">1\"))/(COUNTIF('2011 Survey responses'!BW138,\">1\")+COUNTIF('2011 Survey responses'!CG138,\">1\")))","v":3},{"$f":"IF(('2011 Survey responses'!BX138+'2011 Survey responses'!CH138)<2.1,\"\",(SUMIF('2011 Survey responses'!BX138,\">1\")+SUMIF('2011 Survey responses'!CH138,\">1\"))/(COUNTIF('2011 Survey responses'!BX138,\">1\")+COUNTIF('2011 Survey responses'!CH138,\">1\")))","v":3},{"$f":"IF(('2011 Survey responses'!BY138+'2011 Survey responses'!CI138)<2.1,\"\",(SUMIF('2011 Survey responses'!BY138,\">1\")+SUMIF('2011 Survey responses'!CI138,\">1\"))/(COUNTIF('2011 Survey responses'!BY138,\">1\")+COUNTIF('2011 Survey responses'!CI138,\">1\")))","v":3},{"$f":"IF('2011 Survey responses'!CQ138<0.5,\"\",'2011 Survey responses'!CQ138)","v":1},{"$f":"IF('2011 Survey responses'!CR138<0.5,\"\",'2011 Survey responses'!CR138)","v":1},{"$f":"IF('2011 Survey responses'!CS138<0.5,\"\",'2011 Survey responses'!CS138)","v":1},{"$f":"IF('2011 Survey responses'!CT138<0.5,\"\",'2011 Survey responses'!CT138)","v":1},{"$f":"IF('2011 Survey responses'!CU138<0.5,\"\",'2011 Survey responses'!CU138)","v":1},{"$f":"IF('2011 Survey responses'!CV138<0.5,\"\",'2011 Survey responses'!CV138)","v":1},{"$f":"IF(SUM('2011 Survey responses'!CW138:DL138)<1,\"\",(AVERAGE('2011 Survey responses'!CW138:DL138)))","v":3.5},{"$f":"IF(SUM('2011 Survey responses'!CW138:CZ138)<1,\"\",(AVERAGE('2011 Survey responses'!CW138:CZ138)))","v":4},{"$f":"IF(SUM('2011 Survey responses'!DA138:DD138)<1,\"\",(AVERAGE('2011 Survey responses'!DA138:DD138)))","v":3},{"$f":"IF(SUM('2011 Survey responses'!DE138:DH138)<1,\"\",(AVERAGE('2011 Survey responses'!DE138:DH138)))","v":3.75},{"$f":"IF(SUM('2011 Survey responses'!DI138:DL138)<1,\"\",(AVERAGE('2011 Survey responses'!DI138:DL138)))","v":3.25},{"$f":"IF(('2011 Survey responses'!CW138+'2011 Survey responses'!DA138+'2011 Survey responses'!DE138+'2011 Survey responses'!DI138)<1,\"\",AVERAGE('2011 Survey responses'!CW138,'2011 Survey responses'!DA138,'2011 Survey responses'!DE138,'2011 Survey responses'!DI138))","v":3.5},{"$f":"IF(('2011 Survey responses'!CX138+'2011 Survey responses'!DB138+'2011 Survey responses'!DF138+'2011 Survey responses'!DJ138)<1,\"\",AVERAGE('2011 Survey responses'!CX138,'2011 Survey responses'!DB138,'2011 Survey responses'!DF138,'2011 Survey responses'!DJ138))","v":3.75},{"$f":"IF(('2011 Survey responses'!CY138+'2011 Survey responses'!DC138+'2011 Survey responses'!DG138+'2011 Survey responses'!DK138)<1,\"\",AVERAGE('2011 Survey responses'!CY138,'2011 Survey responses'!DC138,'2011 Survey responses'!DG138,'2011 Survey responses'!DK138))","v":3.25},{"$f":"IF(('2011 Survey responses'!CZ138+'2011 Survey responses'!DD138+'2011 Survey responses'!DH138+'2011 Survey responses'!DL138)<1,\"\",AVERAGE('2011 Survey responses'!CZ138,'2011 Survey responses'!DD138,'2011 Survey responses'!DH138,'2011 Survey responses'!DL138))","v":3.5},{"$f":"IF('2011 Survey responses'!CW138<0.5,\"\",'2011 Survey responses'!CW138)","v":4},{"$f":"IF('2011 Survey responses'!CX138<0.5,\"\",'2011 Survey responses'!CX138)","v":4},{"$f":"IF('2011 Survey responses'!CY138<0.5,\"\",'2011 Survey responses'!CY138)","v":4},{"$f":"IF('2011 Survey responses'!CZ138<0.5,\"\",'2011 Survey responses'!CZ138)","v":4},{"$f":"IF('2011 Survey responses'!DA138<0.5,\"\",'2011 Survey responses'!DA138)","v":3},{"$f":"IF('2011 Survey responses'!DB138<0.5,\"\",'2011 Survey responses'!DB138)","v":3},{"$f":"IF('2011 Survey responses'!DC138<0.5,\"\",'2011 Survey responses'!DC138)","v":3},{"$f":"IF('2011 Survey responses'!DD138<0.5,\"\",'2011 Survey responses'!DD138)","v":3},{"$f":"IF('2011 Survey responses'!DE138<0.5,\"\",'2011 Survey responses'!DE138)","v":3},{"$f":"IF('2011 Survey responses'!DF138<0.5,\"\",'2011 Survey responses'!DF138)","v":4},{"$f":"IF('2011 Survey responses'!DG138<0.5,\"\",'2011 Survey responses'!DG138)","v":4},{"$f":"IF('2011 Survey responses'!DH138<0.5,\"\",'2011 Survey responses'!DH138)","v":4},{"$f":"IF('2011 Survey responses'!DI138<0.5,\"\",'2011 Survey responses'!DI138)","v":4},{"$f":"IF('2011 Survey responses'!DJ138<0.5,\"\",'2011 Survey responses'!DJ138)","v":4},{"$f":"IF('2011 Survey responses'!DK138<0.5,\"\",'2011 Survey responses'!DK138)","v":2},{"$f":"IF('2011 Survey responses'!DL138<0.5,\"\",'2011 Survey responses'!DL138)","v":3},{"$f":"IF('2011 Survey responses'!DU138=4,4,IF('2011 Survey responses'!DU138=5,4,\"\"))","v":""},{"$f":"IF('2011 Survey responses'!DV138=4,3,IF('2011 Survey responses'!DV138=5,3,\"\"))","v":""},"",{"$f":"IF(CQ138=2,CQ138,IF(CO138=4,CO138,IF(CP138=3,CP138,IF('2011 Survey responses'!GT138=1,1,\"\"))))","v":1},{"$f":"IF('2011 Survey responses'!DO138<0.5,\"\",'2011 Survey responses'!DO138)","v":3},{"$f":"IF('2011 Survey responses'!DP138<0.5,\"\",'2011 Survey responses'!DP138)","v":4},{"$f":"IF('2011 Survey responses'!DQ138<0.5,\"\",'2011 Survey responses'!DQ138)","v":3},{"$f":"IF('2011 Survey responses'!DR138<0.5,\"\",'2011 Survey responses'!DR138)","v":5},{"$f":"IF('2011 Survey responses'!DS138<0.5,\"\",'2011 Survey responses'!DS138)","v":3},{"$f":"IF('2011 Survey responses'!DT138<0.5,\"\",'2011 Survey responses'!DT138)","v":4},{"$f":"IF('2011 Survey responses'!DU138<0.5,\"\",'2011 Survey responses'!DU138)","v":3},{"$f":"IF('2011 Survey responses'!DV138<0.5,\"\",'2011 Survey responses'!DV138)","v":3},{"$f":"IF('2011 Survey responses'!DW138<0.5,\"\",'2011 Survey responses'!DW138)","v":3},{"$f":"IF('2011 Survey responses'!DX138<0.5,\"\",'2011 Survey responses'!DX138)","v":3},{"$f":"IF('2011 Survey responses'!DY138<0.5,\"\",'2011 Survey responses'!DY138)","v":3},{"$f":"IF('2011 Survey responses'!DZ138<0.5,\"\",'2011 Survey responses'!DZ138)","v":3},{"$f":"IF('2011 Survey responses'!EA138<0.5,\"\",'2011 Survey responses'!EA138)","v":2},{"$f":"IF('2011 Survey responses'!EB138<0.5,\"\",'2011 Survey responses'!EB138)","v":4},{"$f":"IF('2011 Survey responses'!EC138<0.5,\"\",'2011 Survey responses'!EC138)","v":3},{"$f":"IF('2011 Survey responses'!ED138<0.5,\"\",'2011 Survey responses'!ED138)","v":5},{"$f":"IF('2011 Survey responses'!EE138<0.5,\"\",'2011 Survey responses'!EE138)","v":4},{"$f":"IF('2011 Survey responses'!EF138<0.5,\"\",'2011 Survey responses'!EF138)","v":4},{"$f":"IF('2011 Survey responses'!EG138<0.5,\"\",'2011 Survey responses'!EG138)","v":4},{"$f":"IF('2011 Survey responses'!EH138<0.5,\"\",'2011 Survey responses'!EH138)","v":4},{"$f":"IF('2011 Survey responses'!EI138<0.5,\"\",'2011 Survey responses'!EI138)","v":4},{"$f":"IF('2011 Survey responses'!EJ138<0.5,\"\",'2011 Survey responses'!EJ138)","v":4},{"$f":"IF('2011 Survey responses'!EK138<0.5,\"\",'2011 Survey responses'!EK138)","v":4},{"$f":"IF('2011 Survey responses'!EL138<0.5,\"\",'2011 Survey responses'!EL138)","v":4},{"$f":"IF('2011 Survey responses'!EM138<0.5,\"\",'2011 Survey responses'!EM138)","v":4},{"$f":"IF('2011 Survey responses'!EN138<0.5,\"\",'2011 Survey responses'!EN138)","v":4},{"$f":"IF('2011 Survey responses'!EO138<0.5,\"\",'2011 Survey responses'!EO138)","v":4},{"$f":"IF('2011 Survey responses'!EP138<0.5,\"\",'2011 Survey responses'!EP138)","v":4},{"$f":"IF(('2011 Survey responses'!EW138+'2011 Survey responses'!EX138)>=2,AVERAGE('2011 Survey responses'!EW138,'2011 Survey responses'!EY138),\"\")","v":4},{"$f":"IF('2011 Survey responses'!EX138<0.5,\"\",'2011 Survey responses'!EX138)","v":4},{"$f":"IF('2011 Survey responses'!EZ138<0.5,\"\",'2011 Survey responses'!EZ138)","v":3},{"$f":"IF('2011 Survey responses'!FB138<0.5,\"\",'2011 Survey responses'!FB138)","v":4},{"$f":"IF('2011 Survey responses'!FD138<0.5,\"\",'2011 Survey responses'!FD138)","v":3},{"$f":"IF('2011 Survey responses'!FC138<0.5,\"\",'2011 Survey responses'!FC138)","v":3},{"$f":"IF(('2011 Survey responses'!EM138+'2011 Survey responses'!EN138)>=2,AVERAGE('2011 Survey responses'!EM138,'2011 Survey responses'!EN138),\"\")","v":4},{"$f":"IF('2011 Survey responses'!ES138<0.5,\"\",'2011 Survey responses'!ES138)","v":3},{"$f":"IF(('2011 Survey responses'!ET138+'2011 Survey responses'!EU138)>=2,AVERAGE('2011 Survey responses'!ET138,'2011 Survey responses'!EU138),\"\")","v":3},{"$f":"IF('2011 Survey responses'!EV138<0.5,\"\",'2011 Survey responses'!EV138)","v":4},{"$f":"IF('2011 Survey responses'!FA138<0.5,\"\",'2011 Survey responses'!FA138)","v":3},{"$f":"IF('2011 Survey responses'!ER138<0.5,\"\",'2011 Survey responses'!ER138)","v":2},{"$f":"IF(('2011 Survey responses'!EO138+'2011 Survey responses'!EP138)>=2,AVERAGE('2011 Survey responses'!EO138,'2011 Survey responses'!EP138),\"\")","v":4},{"$f":"IF('2011 Survey responses'!EQ138<0.5,\"\",'2011 Survey responses'!EQ138)","v":3},{"$f":"IF('2011 Survey responses'!ET138<0.5,\"\",'2011 Survey responses'!ET138)","v":3},{"$f":"IF('2011 Survey responses'!EU138<0.5,\"\",'2011 Survey responses'!EU138)","v":3},{"$f":"IF('2011 Survey responses'!EW138<0.5,\"\",'2011 Survey responses'!EW138)","v":4},{"$f":"IF('2011 Survey responses'!EY138<0.5,\"\",'2011 Survey responses'!EY138)","v":4},{"$f":"IF('2011 Survey responses'!FU138<0.5,\"\",'2011 Survey responses'!FU138)","v":4},{"$f":"IF(('2011 Survey responses'!FL138+'2011 Survey responses'!FM138)>=2,AVERAGE('2011 Survey responses'!FL138,'2011 Survey responses'!FM138),\"\")","v":4},{"$f":"IF(('2011 Survey responses'!FO138+'2011 Survey responses'!FQ138)>=2,AVERAGE('2011 Survey responses'!FO138,'2011 Survey responses'!FQ138),\"\")","v":4},{"$f":"IF('2011 Survey responses'!FJ138<0.5,\"\",'2011 Survey responses'!FJ138)","v":4},{"$f":"IF('2011 Survey responses'!FT138<0.5,\"\",'2011 Survey responses'!FT138)","v":4},{"$f":"IF('2011 Survey responses'!FR138<0.5,\"\",'2011 Survey responses'!FR138)","v":4},{"$f":"IF('2011 Survey responses'!FK138<0.5,\"\",'2011 Survey responses'!FK138)","v":4},{"$f":"IF('2011 Survey responses'!FP138<0.5,\"\",'2011 Survey responses'!FP138)","v":4},{"$f":"IF('2011 Survey responses'!FN138<0.5,\"\",'2011 Survey responses'!FN138)","v":5},{"$f":"IF(('2011 Survey responses'!FE138+'2011 Survey responses'!FF138)>=2,AVERAGE('2011 Survey responses'!FE138,'2011 Survey responses'!FF138),\"\")","v":4},{"$f":"IF('2011 Survey responses'!FS138<0.5,\"\",'2011 Survey responses'!FS138)","v":4},{"$f":"IF('2011 Survey responses'!FV138<0.5,\"\",'2011 Survey responses'!FV138)","v":4},{"$f":"IF(('2011 Survey responses'!FG138+'2011 Survey responses'!FH138)>=2,AVERAGE('2011 Survey responses'!FG138,'2011 Survey responses'!FH138),\"\")","v":4},{"$f":"IF('2011 Survey responses'!FI138<0.5,\"\",'2011 Survey responses'!FI138)","v":4},{"$f":"IF('2011 Survey responses'!FE138<0.5,\"\",'2011 Survey responses'!FE138)","v":4},{"$f":"IF('2011 Survey responses'!FF138<0.5,\"\",'2011 Survey responses'!FF138)","v":4},{"$f":"IF('2011 Survey responses'!FG138<0.5,\"\",'2011 Survey responses'!FG138)","v":4},{"$f":"IF('2011 Survey responses'!FH138<0.5,\"\",'2011 Survey responses'!FH138)","v":4},{"$f":"IF('2011 Survey responses'!FL138<0.5,\"\",'2011 Survey responses'!FL138)","v":4},{"$f":"IF('2011 Survey responses'!FM138<0.5,\"\",'2011 Survey responses'!FM138)","v":4},{"$f":"IF('2011 Survey responses'!FO138<0.5,\"\",'2011 Survey responses'!FO138)","v":4},{"$f":"IF('2011 Survey responses'!FQ138<0.5,\"\",'2011 Survey responses'!FQ138)","v":4}]
["Qatar",{"$f":"IF(SUM(F139)<1,\"\",AVERAGEIF('2011 Survey responses'!B139:CP139,\">1\"))","v":""},{"$f":"IF(SUM(F139)<1,\"\",AVERAGEIF('2011 Survey responses'!B139:AO139,\">1\"))","v":""},{"$f":"IF(SUM(F139)<1,\"\",AVERAGEIF('2011 Survey responses'!B139:BV139,\">1\"))","v":""},{"$f":"IF(SUM(F139)<1,\"\",AVERAGEIF('2011 Survey responses'!V139:BV139,\">1\"))","v":""},{"$f":"IF(SUM('2011 Survey responses'!B139:U139)<1,\"\",(AVERAGEIFS('2011 Survey responses'!B139:U139,'2011 Survey responses'!B139:U139,\">1\")))","v":""},{"$f":"IF(SUM('2011 Survey responses'!B139:H139)<1,\"\",(AVERAGEIFS('2011 Survey responses'!B139:H139,'2011 Survey responses'!B139:H139,\">1\")))","v":""},{"$f":"IF(SUM('2011 Survey responses'!I139:S139)<1,\"\",(AVERAGEIFS('2011 Survey responses'!I139:S139,'2011 Survey responses'!I139:S139,\">1\")))","v":""},{"$f":"IF(SUM('2011 Survey responses'!T139:U139)<2.1,\"\",(AVERAGEIFS('2011 Survey responses'!T139:U139,'2011 Survey responses'!T139:U139,\">1\")))","v":""},{"$f":"IF(SUM('2011 Survey responses'!B139:C139)<2.1,\"\",((SUMIF('2011 Survey responses'!B139:C139,\">1\")+SUMIF('2011 Survey responses'!F139,\">1\"))/(COUNTIF('2011 Survey responses'!B139:C139,\">1\")+COUNTIF('2011 Survey responses'!F139,\">1\"))))","v":""},{"$f":"IF(SUM('2011 Survey responses'!D139:E139)<2.1,\"\",(AVERAGEIFS('2011 Survey responses'!D139:E139,'2011 Survey responses'!D139:E139,\">1\")))","v":""},{"$f":"IF(('2011 Survey responses'!B139+'2011 Survey responses'!D139)<2.1,\"\",((SUMIF('2011 Survey responses'!B139,\">1\")+SUMIF('2011 Survey responses'!D139,\">1\")+SUMIF('2011 Survey responses'!F139,\">1\")+SUMIF('2011 Survey responses'!K139,\">1\"))/(COUNTIF('2011 Survey responses'!B139,\">1\")+COUNTIF('2011 Survey responses'!D139,\">1\")+COUNTIF('2011 Survey responses'!F139,\">1\")+COUNTIF('2011 Survey responses'!K139,\">1\"))))","v":""},{"$f":"IF(SUM('2011 Survey responses'!G139:H139)<2.1,\"\",(AVERAGEIFS('2011 Survey responses'!G139:H139,'2011 Survey responses'!G139:H139,\">1\")))","v":""},{"$f":"IF(SUM('2011 Survey responses'!F139:G139)<1.5,\"\",MAX('2011 Survey responses'!F139,'2011 Survey responses'!G139))","v":""},{"$f":"IF(SUM('2011 Survey responses'!G139:H139)<1,\"\",MAX('2011 Survey responses'!G139,'2011 Survey responses'!H139))","v":""},{"$f":"IF(SUM('2011 Survey responses'!I139:L139)<4.1,\"\",(AVERAGEIFS('2011 Survey responses'!I139:L139,'2011 Survey responses'!I139:L139,\">1\")))","v":""},{"$f":"IF(SUM('2011 Survey responses'!M139:S139)<4.1,\"\",(AVERAGEIFS('2011 Survey responses'!M139:S139,'2011 Survey responses'!M139:S139,\">1\")))","v":""},{"$f":"IF(SUM('2011 Survey responses'!T139:U139)<2.1,\"\",(AVERAGEIFS('2011 Survey responses'!T139:U139,'2011 Survey responses'!T139:U139,\">1\")))","v":""},{"$f":"IF(SUM('2011 Survey responses'!V139:AO139)<1,\"\",(AVERAGEIFS('2011 Survey responses'!V139:AO139,'2011 Survey responses'!V139:AO139,\">1\")))","v":""},{"$f":"IF(SUM('2011 Survey responses'!V139:AA139)<1,\"\",(AVERAGEIFS('2011 Survey responses'!V139:AA139,'2011 Survey responses'!V139:AA139,\">1\")))","v":""},{"$f":"IF(SUM('2011 Survey responses'!AB139:AH139)<1,\"\",(AVERAGEIFS('2011 Survey responses'!AB139:AH139,'2011 Survey responses'!AB139:AH139,\">1\")))","v":""},{"$f":"IF(SUM('2011 Survey responses'!AI139:AO139)<1,\"\",(AVERAGEIFS('2011 Survey responses'!AI139:AO139,'2011 Survey responses'!AI139:AO139,\">1\")))","v":""},{"$f":"IF(('2011 Survey responses'!Y139+'2011 Survey responses'!AI139+'2011 Survey responses'!AK139)<3.1,\"\",((SUMIF('2011 Survey responses'!Y139,\">1\")+SUMIF('2011 Survey responses'!AI139,\">1\")+SUMIF('2011 Survey responses'!AK139,\">1\")+SUMIF('2011 Survey responses'!AM139,\">1\"))/(COUNTIF('2011 Survey responses'!Y139,\">1\")+COUNTIF('2011 Survey responses'!AI139,\">1\")+COUNTIF('2011 Survey responses'!AK139,\">1\")+COUNTIF('2011 Survey responses'!AM139,\">1\"))))","v":""},{"$f":"IF(('2011 Survey responses'!W139)<1.1,\"\",('2011 Survey responses'!W139))","v":""},{"$f":"IF(('2011 Survey responses'!Y139)<1.1,\"\",('2011 Survey responses'!Y139))","v":""},{"$f":"IF(('2011 Survey responses'!Z139)<1.1,\"\",('2011 Survey responses'!Z139))","v":""},{"$f":"IF(('2011 Survey responses'!V139+'2011 Survey responses'!X139+'2011 Survey responses'!AA139)<3.1,\"\",((SUMIF('2011 Survey responses'!V139,\">1\")+SUMIF('2011 Survey responses'!X139,\">1\")+SUMIF('2011 Survey responses'!AA139,\">1\"))/(COUNTIF('2011 Survey responses'!V139,\">1\")+COUNTIF('2011 Survey responses'!X139,\">1\")+COUNTIF('2011 Survey responses'!AA139,\">1\"))))","v":""},{"$f":"IF(('2011 Survey responses'!V139+'2011 Survey responses'!Y139+'2011 Survey responses'!AA139)<3.1,\"\",((SUMIF('2011 Survey responses'!V139,\">1\")+SUMIF('2011 Survey responses'!Y139,\">1\")+SUMIF('2011 Survey responses'!AA139,\">1\"))/(COUNTIF('2011 Survey responses'!V139,\">1\")+COUNTIF('2011 Survey responses'!Y139,\">1\")+COUNTIF('2011 Survey responses'!AA139,\">1\"))))","v":""},{"$f":"IF(SUM('2011 Survey responses'!AB139:AH139)<1,\"\",(AVERAGEIFS('2011 Survey responses'!AB139:AH139,'2011 Survey responses'!AB139:AH139,\">1\")))","v":""},{"$f":"IF(SUM('2011 Survey responses'!AI139:AO139)<7.1,\"\",(AVERAGEIFS('2011 Survey responses'!AI139:AO139,'2011 Survey responses'!AI139:AO139,\">1\")))","v":""},{"$f":"IF(('2011 Survey responses'!AH139)<1.1,\"\",('2011 Survey responses'!AH139))","v":""},{"$f":"IF(SUM('2011 Survey responses'!AP139:BV139)<1,\"\",(AVERAGEIFS('2011 Survey responses'!AP139:BV139,'2011 Survey responses'!AP139:BV139,\">1\")))","v":""},{"$f":"IF(SUM('2011 Survey responses'!AP139:AS139)<4.1,\"\",(AVERAGEIFS('2011 Survey responses'!AP139:AS139,'2011 Survey responses'!AP139:AS139,\">1\")))","v":""},{"$f":"IF(SUM('2011 Survey responses'!AT139:BF139)<1,\"\",(AVERAGEIFS('2011 Survey responses'!AT139:BF139,'2011 Survey responses'!AT139:BF139,\">1\")))","v":""},{"$f":"IF(SUM('2011 Survey responses'!BG139:BO139)<1,\"\",(AVERAGEIFS('2011 Survey responses'!BG139:BO139,'2011 Survey responses'!BG139:BO139,\">1\")))","v":""},{"$f":"IF(SUM('2011 Survey responses'!BP139:BS139)<1,\"\",(AVERAGEIFS('2011 Survey responses'!BP139:BS139,'2011 Survey responses'!BP139:BS139,\">1\")))","v":""},{"$f":"IF(SUM('2011 Survey responses'!BT139:BV139)<3.1,\"\",(AVERAGEIFS('2011 Survey responses'!BT139:BV139,'2011 Survey responses'!BT139:BV139,\">1\")))","v":""},{"$f":"IF(('2011 Survey responses'!AQ139+'2011 Survey responses'!AR139+'2011 Survey responses'!BG139)<3.1,\"\",((SUMIF('2011 Survey responses'!AQ139,\">1\")+SUMIF('2011 Survey responses'!AR139,\">1\")+SUMIF('2011 Survey responses'!BG139,\">1\"))/(COUNTIF('2011 Survey responses'!AQ139,\">1\")+COUNTIF('2011 Survey responses'!AR139,\">1\")+COUNTIF('2011 Survey responses'!BG139,\">1\"))))","v":""},{"$f":"IF(SUM('2011 Survey responses'!AP139:AS139)<4.1,\"\",(AVERAGEIFS('2011 Survey responses'!AP139:AS139,'2011 Survey responses'!AP139:AS139,\">1\")))","v":""},{"$f":"IF(('2011 Survey responses'!AU139+'2011 Survey responses'!AX139+'2011 Survey responses'!BA139+'2011 Survey responses'!BC139+'2011 Survey responses'!BD139)<5.1,\"\",(SUMIF('2011 Survey responses'!AU139,\">1\")+SUMIF('2011 Survey responses'!AX139,\">1\")+SUMIF('2011 Survey responses'!BA139,\">1\")+SUMIF('2011 Survey responses'!BC139,\">1\")+SUMIF('2011 Survey responses'!BD139,\">1\"))/(COUNTIF('2011 Survey responses'!AU139,\">1\")+COUNTIF('2011 Survey responses'!AX139,\">1\")+COUNTIF('2011 Survey responses'!BA139,\">1\")+COUNTIF('2011 Survey responses'!BC139,\">1\")+COUNTIF('2011 Survey responses'!BD139,\">1\")))","v":""},{"$f":"IF(('2011 Survey responses'!AT139)<1.1,\"\",('2011 Survey responses'!AT139))","v":""},{"$f":"IF(SUM('2011 Survey responses'!AV139:AW139)<2.1,\"\",(AVERAGEIFS('2011 Survey responses'!AV139:AW139,'2011 Survey responses'!AV139:AW139,\">1\")))","v":""},{"$f":"IF(('2011 Survey responses'!AW139+'2011 Survey responses'!AY139)<2.1,\"\",(SUMIF('2011 Survey responses'!AW139,\">1\")+SUMIF('2011 Survey responses'!AY139,\">1\"))/(COUNTIF('2011 Survey responses'!AW139,\">1\")+COUNTIF('2011 Survey responses'!AY139,\">1\")))","v":""},{"$f":"IF(('2011 Survey responses'!AZ139)<1.1,\"\",('2011 Survey responses'!AZ139))","v":""},null,null,null,null,{"$f":"IF(('2011 Survey responses'!BE139)<1.1,\"\",('2011 Survey responses'!BE139))","v":""},{"$f":"IF(('2011 Survey responses'!AY139+'2011 Survey responses'!BB139+'2011 Survey responses'!BF139)<3.1,\"\",(SUMIF('2011 Survey responses'!AY139,\">1\")+SUMIF('2011 Survey responses'!BB139,\">1\")+SUMIF('2011 Survey responses'!BF139,\">1\"))/(COUNTIF('2011 Survey responses'!AY139,\">1\")+COUNTIF('2011 Survey responses'!BB139,\">1\")+COUNTIF('2011 Survey responses'!BF139,\">1\")))","v":""},"",{"$f":"IF(SUM('2011 Survey responses'!BT139:BV139)<3.1,\"\",(AVERAGEIFS('2011 Survey responses'!BT139:BV139,'2011 Survey responses'!BT139:BV139,\">1\")))","v":""},{"$f":"IF(SUM('2011 Survey responses'!BW139:CP139)<1,\"\",(AVERAGEIFS('2011 Survey responses'!BW139:CP139,'2011 Survey responses'!BW139:CP139,\">1\")))","v":""},{"$f":"IF(SUM('2011 Survey responses'!BW139:CF139)<1,\"\",(AVERAGEIFS('2011 Survey responses'!BW139:CF139,'2011 Survey responses'!BW139:CF139,\">1\")))","v":""},{"$f":"IF(SUM('2011 Survey responses'!CG139:CP139)<1,\"\",(AVERAGEIFS('2011 Survey responses'!CG139:CP139,'2011 Survey responses'!CG139:CP139,\">1\")))","v":""},{"$f":"IF(SUM('2011 Survey responses'!BX139:CF139)<1,\"\",(AVERAGEIFS('2011 Survey responses'!BX139:CF139,'2011 Survey responses'!BX139:CF139,\">1\")))","v":""},{"$f":"IF(SUM('2011 Survey responses'!CH139:CP139)<1,\"\",(AVERAGEIFS('2011 Survey responses'!CH139:CP139,'2011 Survey responses'!CH139:CP139,\">1\")))","v":""},{"$f":"IF(SUM('2011 Survey responses'!BW139:CP139)<1,\"\",(AVERAGEIFS('2011 Survey responses'!BW139:CP139,'2011 Survey responses'!BW139:CP139,\">1\")))","v":""},{"$f":"IF(('2011 Survey responses'!BW139+'2011 Survey responses'!CG139)<2.1,\"\",(SUMIF('2011 Survey responses'!BW139,\">1\")+SUMIF('2011 Survey responses'!CG139,\">1\"))/(COUNTIF('2011 Survey responses'!BW139,\">1\")+COUNTIF('2011 Survey responses'!CG139,\">1\")))","v":""},{"$f":"IF(('2011 Survey responses'!BX139+'2011 Survey responses'!CH139)<2.1,\"\",(SUMIF('2011 Survey responses'!BX139,\">1\")+SUMIF('2011 Survey responses'!CH139,\">1\"))/(COUNTIF('2011 Survey responses'!BX139,\">1\")+COUNTIF('2011 Survey responses'!CH139,\">1\")))","v":""},{"$f":"IF(('2011 Survey responses'!BY139+'2011 Survey responses'!CI139)<2.1,\"\",(SUMIF('2011 Survey responses'!BY139,\">1\")+SUMIF('2011 Survey responses'!CI139,\">1\"))/(COUNTIF('2011 Survey responses'!BY139,\">1\")+COUNTIF('2011 Survey responses'!CI139,\">1\")))","v":""},{"$f":"IF('2011 Survey responses'!CQ139<0.5,\"\",'2011 Survey responses'!CQ139)","v":""},{"$f":"IF('2011 Survey responses'!CR139<0.5,\"\",'2011 Survey responses'!CR139)","v":""},{"$f":"IF('2011 Survey responses'!CS139<0.5,\"\",'2011 Survey responses'!CS139)","v":""},{"$f":"IF('2011 Survey responses'!CT139<0.5,\"\",'2011 Survey responses'!CT139)","v":""},{"$f":"IF('2011 Survey responses'!CU139<0.5,\"\",'2011 Survey responses'!CU139)","v":""},{"$f":"IF('2011 Survey responses'!CV139<0.5,\"\",'2011 Survey responses'!CV139)","v":""},{"$f":"IF(SUM('2011 Survey responses'!CW139:DL139)<1,\"\",(AVERAGE('2011 Survey responses'!CW139:DL139)))","v":""},{"$f":"IF(SUM('2011 Survey responses'!CW139:CZ139)<1,\"\",(AVERAGE('2011 Survey responses'!CW139:CZ139)))","v":""},{"$f":"IF(SUM('2011 Survey responses'!DA139:DD139)<1,\"\",(AVERAGE('2011 Survey responses'!DA139:DD139)))","v":""},{"$f":"IF(SUM('2011 Survey responses'!DE139:DH139)<1,\"\",(AVERAGE('2011 Survey responses'!DE139:DH139)))","v":""},{"$f":"IF(SUM('2011 Survey responses'!DI139:DL139)<1,\"\",(AVERAGE('2011 Survey responses'!DI139:DL139)))","v":""},{"$f":"IF(('2011 Survey responses'!CW139+'2011 Survey responses'!DA139+'2011 Survey responses'!DE139+'2011 Survey responses'!DI139)<1,\"\",AVERAGE('2011 Survey responses'!CW139,'2011 Survey responses'!DA139,'2011 Survey responses'!DE139,'2011 Survey responses'!DI139))","v":""},{"$f":"IF(('2011 Survey responses'!CX139+'2011 Survey responses'!DB139+'2011 Survey responses'!DF139+'2011 Survey responses'!DJ139)<1,\"\",AVERAGE('2011 Survey responses'!CX139,'2011 Survey responses'!DB139,'2011 Survey responses'!DF139,'2011 Survey responses'!DJ139))","v":""},{"$f":"IF(('2011 Survey responses'!CY139+'2011 Survey responses'!DC139+'2011 Survey responses'!DG139+'2011 Survey responses'!DK139)<1,\"\",AVERAGE('2011 Survey responses'!CY139,'2011 Survey responses'!DC139,'2011 Survey responses'!DG139,'2011 Survey responses'!DK139))","v":""},{"$f":"IF(('2011 Survey responses'!CZ139+'2011 Survey responses'!DD139+'2011 Survey responses'!DH139+'2011 Survey responses'!DL139)<1,\"\",AVERAGE('2011 Survey responses'!CZ139,'2011 Survey responses'!DD139,'2011 Survey responses'!DH139,'2011 Survey responses'!DL139))","v":""},{"$f":"IF('2011 Survey responses'!CW139<0.5,\"\",'2011 Survey responses'!CW139)","v":""},{"$f":"IF('2011 Survey responses'!CX139<0.5,\"\",'2011 Survey responses'!CX139)","v":""},{"$f":"IF('2011 Survey responses'!CY139<0.5,\"\",'2011 Survey responses'!CY139)","v":""},{"$f":"IF('2011 Survey responses'!CZ139<0.5,\"\",'2011 Survey responses'!CZ139)","v":""},{"$f":"IF('2011 Survey responses'!DA139<0.5,\"\",'2011 Survey responses'!DA139)","v":""},{"$f":"IF('2011 Survey responses'!DB139<0.5,\"\",'2011 Survey responses'!DB139)","v":""},{"$f":"IF('2011 Survey responses'!DC139<0.5,\"\",'2011 Survey responses'!DC139)","v":""},{"$f":"IF('2011 Survey responses'!DD139<0.5,\"\",'2011 Survey responses'!DD139)","v":""},{"$f":"IF('2011 Survey responses'!DE139<0.5,\"\",'2011 Survey responses'!DE139)","v":""},{"$f":"IF('2011 Survey responses'!DF139<0.5,\"\",'2011 Survey responses'!DF139)","v":""},{"$f":"IF('2011 Survey responses'!DG139<0.5,\"\",'2011 Survey responses'!DG139)","v":""},{"$f":"IF('2011 Survey responses'!DH139<0.5,\"\",'2011 Survey responses'!DH139)","v":""},{"$f":"IF('2011 Survey responses'!DI139<0.5,\"\",'2011 Survey responses'!DI139)","v":""},{"$f":"IF('2011 Survey responses'!DJ139<0.5,\"\",'2011 Survey responses'!DJ139)","v":""},{"$f":"IF('2011 Survey responses'!DK139<0.5,\"\",'2011 Survey responses'!DK139)","v":""},{"$f":"IF('2011 Survey responses'!DL139<0.5,\"\",'2011 Survey responses'!DL139)","v":""},{"$f":"IF('2011 Survey responses'!DU139=4,4,IF('2011 Survey responses'!DU139=5,4,\"\"))","v":""},{"$f":"IF('2011 Survey responses'!DV139=4,3,IF('2011 Survey responses'!DV139=5,3,\"\"))","v":""},"",{"$f":"IF(CQ139=2,CQ139,IF(CO139=4,CO139,IF(CP139=3,CP139,IF('2011 Survey responses'!GT139=1,1,\"\"))))","v":""},{"$f":"IF('2011 Survey responses'!DO139<0.5,\"\",'2011 Survey responses'!DO139)","v":""},{"$f":"IF('2011 Survey responses'!DP139<0.5,\"\",'2011 Survey responses'!DP139)","v":""},{"$f":"IF('2011 Survey responses'!DQ139<0.5,\"\",'2011 Survey responses'!DQ139)","v":""},{"$f":"IF('2011 Survey responses'!DR139<0.5,\"\",'2011 Survey responses'!DR139)","v":""},{"$f":"IF('2011 Survey responses'!DS139<0.5,\"\",'2011 Survey responses'!DS139)","v":""},{"$f":"IF('2011 Survey responses'!DT139<0.5,\"\",'2011 Survey responses'!DT139)","v":""},{"$f":"IF('2011 Survey responses'!DU139<0.5,\"\",'2011 Survey responses'!DU139)","v":""},{"$f":"IF('2011 Survey responses'!DV139<0.5,\"\",'2011 Survey responses'!DV139)","v":""},{"$f":"IF('2011 Survey responses'!DW139<0.5,\"\",'2011 Survey responses'!DW139)","v":""},{"$f":"IF('2011 Survey responses'!DX139<0.5,\"\",'2011 Survey responses'!DX139)","v":""},{"$f":"IF('2011 Survey responses'!DY139<0.5,\"\",'2011 Survey responses'!DY139)","v":""},{"$f":"IF('2011 Survey responses'!DZ139<0.5,\"\",'2011 Survey responses'!DZ139)","v":""},{"$f":"IF('2011 Survey responses'!EA139<0.5,\"\",'2011 Survey responses'!EA139)","v":""},{"$f":"IF('2011 Survey responses'!EB139<0.5,\"\",'2011 Survey responses'!EB139)","v":""},{"$f":"IF('2011 Survey responses'!EC139<0.5,\"\",'2011 Survey responses'!EC139)","v":""},{"$f":"IF('2011 Survey responses'!ED139<0.5,\"\",'2011 Survey responses'!ED139)","v":""},{"$f":"IF('2011 Survey responses'!EE139<0.5,\"\",'2011 Survey responses'!EE139)","v":""},{"$f":"IF('2011 Survey responses'!EF139<0.5,\"\",'2011 Survey responses'!EF139)","v":""},{"$f":"IF('2011 Survey responses'!EG139<0.5,\"\",'2011 Survey responses'!EG139)","v":""},{"$f":"IF('2011 Survey responses'!EH139<0.5,\"\",'2011 Survey responses'!EH139)","v":""},{"$f":"IF('2011 Survey responses'!EI139<0.5,\"\",'2011 Survey responses'!EI139)","v":""},{"$f":"IF('2011 Survey responses'!EJ139<0.5,\"\",'2011 Survey responses'!EJ139)","v":""},{"$f":"IF('2011 Survey responses'!EK139<0.5,\"\",'2011 Survey responses'!EK139)","v":""},{"$f":"IF('2011 Survey responses'!EL139<0.5,\"\",'2011 Survey responses'!EL139)","v":""},{"$f":"IF('2011 Survey responses'!EM139<0.5,\"\",'2011 Survey responses'!EM139)","v":""},{"$f":"IF('2011 Survey responses'!EN139<0.5,\"\",'2011 Survey responses'!EN139)","v":""},{"$f":"IF('2011 Survey responses'!EO139<0.5,\"\",'2011 Survey responses'!EO139)","v":""},{"$f":"IF('2011 Survey responses'!EP139<0.5,\"\",'2011 Survey responses'!EP139)","v":""},{"$f":"IF(('2011 Survey responses'!EW139+'2011 Survey responses'!EX139)>=2,AVERAGE('2011 Survey responses'!EW139,'2011 Survey responses'!EY139),\"\")","v":""},{"$f":"IF('2011 Survey responses'!EX139<0.5,\"\",'2011 Survey responses'!EX139)","v":""},{"$f":"IF('2011 Survey responses'!EZ139<0.5,\"\",'2011 Survey responses'!EZ139)","v":""},{"$f":"IF('2011 Survey responses'!FB139<0.5,\"\",'2011 Survey responses'!FB139)","v":""},{"$f":"IF('2011 Survey responses'!FD139<0.5,\"\",'2011 Survey responses'!FD139)","v":""},{"$f":"IF('2011 Survey responses'!FC139<0.5,\"\",'2011 Survey responses'!FC139)","v":""},{"$f":"IF(('2011 Survey responses'!EM139+'2011 Survey responses'!EN139)>=2,AVERAGE('2011 Survey responses'!EM139,'2011 Survey responses'!EN139),\"\")","v":""},{"$f":"IF('2011 Survey responses'!ES139<0.5,\"\",'2011 Survey responses'!ES139)","v":""},{"$f":"IF(('2011 Survey responses'!ET139+'2011 Survey responses'!EU139)>=2,AVERAGE('2011 Survey responses'!ET139,'2011 Survey responses'!EU139),\"\")","v":""},{"$f":"IF('2011 Survey responses'!EV139<0.5,\"\",'2011 Survey responses'!EV139)","v":""},{"$f":"IF('2011 Survey responses'!FA139<0.5,\"\",'2011 Survey responses'!FA139)","v":""},{"$f":"IF('2011 Survey responses'!ER139<0.5,\"\",'2011 Survey responses'!ER139)","v":""},{"$f":"IF(('2011 Survey responses'!EO139+'2011 Survey responses'!EP139)>=2,AVERAGE('2011 Survey responses'!EO139,'2011 Survey responses'!EP139),\"\")","v":""},{"$f":"IF('2011 Survey responses'!EQ139<0.5,\"\",'2011 Survey responses'!EQ139)","v":""},{"$f":"IF('2011 Survey responses'!ET139<0.5,\"\",'2011 Survey responses'!ET139)","v":""},{"$f":"IF('2011 Survey responses'!EU139<0.5,\"\",'2011 Survey responses'!EU139)","v":""},{"$f":"IF('2011 Survey responses'!EW139<0.5,\"\",'2011 Survey responses'!EW139)","v":""},{"$f":"IF('2011 Survey responses'!EY139<0.5,\"\",'2011 Survey responses'!EY139)","v":""},{"$f":"IF('2011 Survey responses'!FU139<0.5,\"\",'2011 Survey responses'!FU139)","v":""},{"$f":"IF(('2011 Survey responses'!FL139+'2011 Survey responses'!FM139)>=2,AVERAGE('2011 Survey responses'!FL139,'2011 Survey responses'!FM139),\"\")","v":""},{"$f":"IF(('2011 Survey responses'!FO139+'2011 Survey responses'!FQ139)>=2,AVERAGE('2011 Survey responses'!FO139,'2011 Survey responses'!FQ139),\"\")","v":""},{"$f":"IF('2011 Survey responses'!FJ139<0.5,\"\",'2011 Survey responses'!FJ139)","v":""},{"$f":"IF('2011 Survey responses'!FT139<0.5,\"\",'2011 Survey responses'!FT139)","v":""},{"$f":"IF('2011 Survey responses'!FR139<0.5,\"\",'2011 Survey responses'!FR139)","v":""},{"$f":"IF('2011 Survey responses'!FK139<0.5,\"\",'2011 Survey responses'!FK139)","v":""},{"$f":"IF('2011 Survey responses'!FP139<0.5,\"\",'2011 Survey responses'!FP139)","v":""},{"$f":"IF('2011 Survey responses'!FN139<0.5,\"\",'2011 Survey responses'!FN139)","v":""},{"$f":"IF(('2011 Survey responses'!FE139+'2011 Survey responses'!FF139)>=2,AVERAGE('2011 Survey responses'!FE139,'2011 Survey responses'!FF139),\"\")","v":""},{"$f":"IF('2011 Survey responses'!FS139<0.5,\"\",'2011 Survey responses'!FS139)","v":""},{"$f":"IF('2011 Survey responses'!FV139<0.5,\"\",'2011 Survey responses'!FV139)","v":""},{"$f":"IF(('2011 Survey responses'!FG139+'2011 Survey responses'!FH139)>=2,AVERAGE('2011 Survey responses'!FG139,'2011 Survey responses'!FH139),\"\")","v":""},{"$f":"IF('2011 Survey responses'!FI139<0.5,\"\",'2011 Survey responses'!FI139)","v":""},{"$f":"IF('2011 Survey responses'!FE139<0.5,\"\",'2011 Survey responses'!FE139)","v":""},{"$f":"IF('2011 Survey responses'!FF139<0.5,\"\",'2011 Survey responses'!FF139)","v":""},{"$f":"IF('2011 Survey responses'!FG139<0.5,\"\",'2011 Survey responses'!FG139)","v":""},{"$f":"IF('2011 Survey responses'!FH139<0.5,\"\",'2011 Survey responses'!FH139)","v":""},{"$f":"IF('2011 Survey responses'!FL139<0.5,\"\",'2011 Survey responses'!FL139)","v":""},{"$f":"IF('2011 Survey responses'!FM139<0.5,\"\",'2011 Survey responses'!FM139)","v":""},{"$f":"IF('2011 Survey responses'!FO139<0.5,\"\",'2011 Survey responses'!FO139)","v":""},{"$f":"IF('2011 Survey responses'!FQ139<0.5,\"\",'2011 Survey responses'!FQ139)","v":""}]
["Republic of Korea",{"$f":"IF(SUM(F140)<1,\"\",AVERAGEIF('2011 Survey responses'!B140:CP140,\">1\"))","v":5.25},{"$f":"IF(SUM(F140)<1,\"\",AVERAGEIF('2011 Survey responses'!B140:AO140,\">1\"))","v":5.1538461538461542},{"$f":"IF(SUM(F140)<1,\"\",AVERAGEIF('2011 Survey responses'!B140:BV140,\">1\"))","v":5.1805555555555554},{"$f":"IF(SUM(F140)<1,\"\",AVERAGEIF('2011 Survey responses'!V140:BV140,\">1\"))","v":5.1698113207547172},{"$f":"IF(SUM('2011 Survey responses'!B140:U140)<1,\"\",(AVERAGEIFS('2011 Survey responses'!B140:U140,'2011 Survey responses'!B140:U140,\">1\")))","v":5.2105263157894735},{"$f":"IF(SUM('2011 Survey responses'!B140:H140)<1,\"\",(AVERAGEIFS('2011 Survey responses'!B140:H140,'2011 Survey responses'!B140:H140,\">1\")))","v":5.7142857142857144},{"$f":"IF(SUM('2011 Survey responses'!I140:S140)<1,\"\",(AVERAGEIFS('2011 Survey responses'!I140:S140,'2011 Survey responses'!I140:S140,\">1\")))","v":5.3},{"$f":"IF(SUM('2011 Survey responses'!T140:U140)<2.1,\"\",(AVERAGEIFS('2011 Survey responses'!T140:U140,'2011 Survey responses'!T140:U140,\">1\")))","v":3},{"$f":"IF(SUM('2011 Survey responses'!B140:C140)<2.1,\"\",((SUMIF('2011 Survey responses'!B140:C140,\">1\")+SUMIF('2011 Survey responses'!F140,\">1\"))/(COUNTIF('2011 Survey responses'!B140:C140,\">1\")+COUNTIF('2011 Survey responses'!F140,\">1\"))))","v":6},{"$f":"IF(SUM('2011 Survey responses'!D140:E140)<2.1,\"\",(AVERAGEIFS('2011 Survey responses'!D140:E140,'2011 Survey responses'!D140:E140,\">1\")))","v":6},{"$f":"IF(('2011 Survey responses'!B140+'2011 Survey responses'!D140)<2.1,\"\",((SUMIF('2011 Survey responses'!B140,\">1\")+SUMIF('2011 Survey responses'!D140,\">1\")+SUMIF('2011 Survey responses'!F140,\">1\")+SUMIF('2011 Survey responses'!K140,\">1\"))/(COUNTIF('2011 Survey responses'!B140,\">1\")+COUNTIF('2011 Survey responses'!D140,\">1\")+COUNTIF('2011 Survey responses'!F140,\">1\")+COUNTIF('2011 Survey responses'!K140,\">1\"))))","v":6},{"$f":"IF(SUM('2011 Survey responses'!G140:H140)<2.1,\"\",(AVERAGEIFS('2011 Survey responses'!G140:H140,'2011 Survey responses'!G140:H140,\">1\")))","v":5},{"$f":"IF(SUM('2011 Survey responses'!F140:G140)<1.5,\"\",MAX('2011 Survey responses'!F140,'2011 Survey responses'!G140))","v":6},{"$f":"IF(SUM('2011 Survey responses'!G140:H140)<1,\"\",MAX('2011 Survey responses'!G140,'2011 Survey responses'!H140))","v":5},{"$f":"IF(SUM('2011 Survey responses'!I140:L140)<4.1,\"\",(AVERAGEIFS('2011 Survey responses'!I140:L140,'2011 Survey responses'!I140:L140,\">1\")))","v":5.75},{"$f":"IF(SUM('2011 Survey responses'!M140:S140)<4.1,\"\",(AVERAGEIFS('2011 Survey responses'!M140:S140,'2011 Survey responses'!M140:S140,\">1\")))","v":5},{"$f":"IF(SUM('2011 Survey responses'!T140:U140)<2.1,\"\",(AVERAGEIFS('2011 Survey responses'!T140:U140,'2011 Survey responses'!T140:U140,\">1\")))","v":3},{"$f":"IF(SUM('2011 Survey responses'!V140:AO140)<1,\"\",(AVERAGEIFS('2011 Survey responses'!V140:AO140,'2011 Survey responses'!V140:AO140,\">1\")))","v":5.0999999999999996},{"$f":"IF(SUM('2011 Survey responses'!V140:AA140)<1,\"\",(AVERAGEIFS('2011 Survey responses'!V140:AA140,'2011 Survey responses'!V140:AA140,\">1\")))","v":5.5},{"$f":"IF(SUM('2011 Survey responses'!AB140:AH140)<1,\"\",(AVERAGEIFS('2011 Survey responses'!AB140:AH140,'2011 Survey responses'!AB140:AH140,\">1\")))","v":4.8571428571428568},{"$f":"IF(SUM('2011 Survey responses'!AI140:AO140)<1,\"\",(AVERAGEIFS('2011 Survey responses'!AI140:AO140,'2011 Survey responses'!AI140:AO140,\">1\")))","v":5},{"$f":"IF(('2011 Survey responses'!Y140+'2011 Survey responses'!AI140+'2011 Survey responses'!AK140)<3.1,\"\",((SUMIF('2011 Survey responses'!Y140,\">1\")+SUMIF('2011 Survey responses'!AI140,\">1\")+SUMIF('2011 Survey responses'!AK140,\">1\")+SUMIF('2011 Survey responses'!AM140,\">1\"))/(COUNTIF('2011 Survey responses'!Y140,\">1\")+COUNTIF('2011 Survey responses'!AI140,\">1\")+COUNTIF('2011 Survey responses'!AK140,\">1\")+COUNTIF('2011 Survey responses'!AM140,\">1\"))))","v":5},{"$f":"IF(('2011 Survey responses'!W140)<1.1,\"\",('2011 Survey responses'!W140))","v":6},{"$f":"IF(('2011 Survey responses'!Y140)<1.1,\"\",('2011 Survey responses'!Y140))","v":5},{"$f":"IF(('2011 Survey responses'!Z140)<1.1,\"\",('2011 Survey responses'!Z140))","v":5},{"$f":"IF(('2011 Survey responses'!V140+'2011 Survey responses'!X140+'2011 Survey responses'!AA140)<3.1,\"\",((SUMIF('2011 Survey responses'!V140,\">1\")+SUMIF('2011 Survey responses'!X140,\">1\")+SUMIF('2011 Survey responses'!AA140,\">1\"))/(COUNTIF('2011 Survey responses'!V140,\">1\")+COUNTIF('2011 Survey responses'!X140,\">1\")+COUNTIF('2011 Survey responses'!AA140,\">1\"))))","v":5.666666666666667},{"$f":"IF(('2011 Survey responses'!V140+'2011 Survey responses'!Y140+'2011 Survey responses'!AA140)<3.1,\"\",((SUMIF('2011 Survey responses'!V140,\">1\")+SUMIF('2011 Survey responses'!Y140,\">1\")+SUMIF('2011 Survey responses'!AA140,\">1\"))/(COUNTIF('2011 Survey responses'!V140,\">1\")+COUNTIF('2011 Survey responses'!Y140,\">1\")+COUNTIF('2011 Survey responses'!AA140,\">1\"))))","v":5.333333333333333},{"$f":"IF(SUM('2011 Survey responses'!AB140:AH140)<1,\"\",(AVERAGEIFS('2011 Survey responses'!AB140:AH140,'2011 Survey responses'!AB140:AH140,\">1\")))","v":4.8571428571428568},{"$f":"IF(SUM('2011 Survey responses'!AI140:AO140)<7.1,\"\",(AVERAGEIFS('2011 Survey responses'!AI140:AO140,'2011 Survey responses'!AI140:AO140,\">1\")))","v":5},{"$f":"IF(('2011 Survey responses'!AH140)<1.1,\"\",('2011 Survey responses'!AH140))","v":5},{"$f":"IF(SUM('2011 Survey responses'!AP140:BV140)<1,\"\",(AVERAGEIFS('2011 Survey responses'!AP140:BV140,'2011 Survey responses'!AP140:BV140,\">1\")))","v":5.2121212121212119},{"$f":"IF(SUM('2011 Survey responses'!AP140:AS140)<4.1,\"\",(AVERAGEIFS('2011 Survey responses'!AP140:AS140,'2011 Survey responses'!AP140:AS140,\">1\")))","v":5.5},{"$f":"IF(SUM('2011 Survey responses'!AT140:BF140)<1,\"\",(AVERAGEIFS('2011 Survey responses'!AT140:BF140,'2011 Survey responses'!AT140:BF140,\">1\")))","v":5},{"$f":"IF(SUM('2011 Survey responses'!BG140:BO140)<1,\"\",(AVERAGEIFS('2011 Survey responses'!BG140:BO140,'2011 Survey responses'!BG140:BO140,\">1\")))","v":5.7777777777777777},{"$f":"IF(SUM('2011 Survey responses'!BP140:BS140)<1,\"\",(AVERAGEIFS('2011 Survey responses'!BP140:BS140,'2011 Survey responses'!BP140:BS140,\">1\")))","v":4.5},{"$f":"IF(SUM('2011 Survey responses'!BT140:BV140)<3.1,\"\",(AVERAGEIFS('2011 Survey responses'!BT140:BV140,'2011 Survey responses'!BT140:BV140,\">1\")))","v":5},{"$f":"IF(('2011 Survey responses'!AQ140+'2011 Survey responses'!AR140+'2011 Survey responses'!BG140)<3.1,\"\",((SUMIF('2011 Survey responses'!AQ140,\">1\")+SUMIF('2011 Survey responses'!AR140,\">1\")+SUMIF('2011 Survey responses'!BG140,\">1\"))/(COUNTIF('2011 Survey responses'!AQ140,\">1\")+COUNTIF('2011 Survey responses'!AR140,\">1\")+COUNTIF('2011 Survey responses'!BG140,\">1\"))))","v":5.666666666666667},{"$f":"IF(SUM('2011 Survey responses'!AP140:AS140)<4.1,\"\",(AVERAGEIFS('2011 Survey responses'!AP140:AS140,'2011 Survey responses'!AP140:AS140,\">1\")))","v":5.5},{"$f":"IF(('2011 Survey responses'!AU140+'2011 Survey responses'!AX140+'2011 Survey responses'!BA140+'2011 Survey responses'!BC140+'2011 Survey responses'!BD140)<5.1,\"\",(SUMIF('2011 Survey responses'!AU140,\">1\")+SUMIF('2011 Survey responses'!AX140,\">1\")+SUMIF('2011 Survey responses'!BA140,\">1\")+SUMIF('2011 Survey responses'!BC140,\">1\")+SUMIF('2011 Survey responses'!BD140,\">1\"))/(COUNTIF('2011 Survey responses'!AU140,\">1\")+COUNTIF('2011 Survey responses'!AX140,\">1\")+COUNTIF('2011 Survey responses'!BA140,\">1\")+COUNTIF('2011 Survey responses'!BC140,\">1\")+COUNTIF('2011 Survey responses'!BD140,\">1\")))","v":5},{"$f":"IF(('2011 Survey responses'!AT140)<1.1,\"\",('2011 Survey responses'!AT140))","v":6},{"$f":"IF(SUM('2011 Survey responses'!AV140:AW140)<2.1,\"\",(AVERAGEIFS('2011 Survey responses'!AV140:AW140,'2011 Survey responses'!AV140:AW140,\">1\")))","v":4.5},{"$f":"IF(('2011 Survey responses'!AW140+'2011 Survey responses'!AY140)<2.1,\"\",(SUMIF('2011 Survey responses'!AW140,\">1\")+SUMIF('2011 Survey responses'!AY140,\">1\"))/(COUNTIF('2011 Survey responses'!AW140,\">1\")+COUNTIF('2011 Survey responses'!AY140,\">1\")))","v":5},{"$f":"IF(('2011 Survey responses'!AZ140)<1.1,\"\",('2011 Survey responses'!AZ140))","v":5},5,5,4,5,{"$f":"IF(('2011 Survey responses'!BE140)<1.1,\"\",('2011 Survey responses'!BE140))","v":5},{"$f":"IF(('2011 Survey responses'!AY140+'2011 Survey responses'!BB140+'2011 Survey responses'!BF140)<3.1,\"\",(SUMIF('2011 Survey responses'!AY140,\">1\")+SUMIF('2011 Survey responses'!BB140,\">1\")+SUMIF('2011 Survey responses'!BF140,\">1\"))/(COUNTIF('2011 Survey responses'!AY140,\">1\")+COUNTIF('2011 Survey responses'!BB140,\">1\")+COUNTIF('2011 Survey responses'!BF140,\">1\")))","v":5},5.1388888888888893,{"$f":"IF(SUM('2011 Survey responses'!BT140:BV140)<3.1,\"\",(AVERAGEIFS('2011 Survey responses'!BT140:BV140,'2011 Survey responses'!BT140:BV140,\">1\")))","v":5},{"$f":"IF(SUM('2011 Survey responses'!BW140:CP140)<1,\"\",(AVERAGEIFS('2011 Survey responses'!BW140:CP140,'2011 Survey responses'!BW140:CP140,\">1\")))","v":5.5},{"$f":"IF(SUM('2011 Survey responses'!BW140:CF140)<1,\"\",(AVERAGEIFS('2011 Survey responses'!BW140:CF140,'2011 Survey responses'!BW140:CF140,\">1\")))","v":5.5},{"$f":"IF(SUM('2011 Survey responses'!CG140:CP140)<1,\"\",(AVERAGEIFS('2011 Survey responses'!CG140:CP140,'2011 Survey responses'!CG140:CP140,\">1\")))","v":5.5},{"$f":"IF(SUM('2011 Survey responses'!BX140:CF140)<1,\"\",(AVERAGEIFS('2011 Survey responses'!BX140:CF140,'2011 Survey responses'!BX140:CF140,\">1\")))","v":5.4444444444444446},{"$f":"IF(SUM('2011 Survey responses'!CH140:CP140)<1,\"\",(AVERAGEIFS('2011 Survey responses'!CH140:CP140,'2011 Survey responses'!CH140:CP140,\">1\")))","v":5.4444444444444446},{"$f":"IF(SUM('2011 Survey responses'!BW140:CP140)<1,\"\",(AVERAGEIFS('2011 Survey responses'!BW140:CP140,'2011 Survey responses'!BW140:CP140,\">1\")))","v":5.5},{"$f":"IF(('2011 Survey responses'!BW140+'2011 Survey responses'!CG140)<2.1,\"\",(SUMIF('2011 Survey responses'!BW140,\">1\")+SUMIF('2011 Survey responses'!CG140,\">1\"))/(COUNTIF('2011 Survey responses'!BW140,\">1\")+COUNTIF('2011 Survey responses'!CG140,\">1\")))","v":6},{"$f":"IF(('2011 Survey responses'!BX140+'2011 Survey responses'!CH140)<2.1,\"\",(SUMIF('2011 Survey responses'!BX140,\">1\")+SUMIF('2011 Survey responses'!CH140,\">1\"))/(COUNTIF('2011 Survey responses'!BX140,\">1\")+COUNTIF('2011 Survey responses'!CH140,\">1\")))","v":6},{"$f":"IF(('2011 Survey responses'!BY140+'2011 Survey responses'!CI140)<2.1,\"\",(SUMIF('2011 Survey responses'!BY140,\">1\")+SUMIF('2011 Survey responses'!CI140,\">1\"))/(COUNTIF('2011 Survey responses'!BY140,\">1\")+COUNTIF('2011 Survey responses'!CI140,\">1\")))","v":6},{"$f":"IF('2011 Survey responses'!CQ140<0.5,\"\",'2011 Survey responses'!CQ140)","v":4},{"$f":"IF('2011 Survey responses'!CR140<0.5,\"\",'2011 Survey responses'!CR140)","v":2},{"$f":"IF('2011 Survey responses'!CS140<0.5,\"\",'2011 Survey responses'!CS140)","v":2},{"$f":"IF('2011 Survey responses'!CT140<0.5,\"\",'2011 Survey responses'!CT140)","v":2},{"$f":"IF('2011 Survey responses'!CU140<0.5,\"\",'2011 Survey responses'!CU140)","v":4},{"$f":"IF('2011 Survey responses'!CV140<0.5,\"\",'2011 Survey responses'!CV140)","v":1},{"$f":"IF(SUM('2011 Survey responses'!CW140:DL140)<1,\"\",(AVERAGE('2011 Survey responses'!CW140:DL140)))","v":4.1875},{"$f":"IF(SUM('2011 Survey responses'!CW140:CZ140)<1,\"\",(AVERAGE('2011 Survey responses'!CW140:CZ140)))","v":4},{"$f":"IF(SUM('2011 Survey responses'!DA140:DD140)<1,\"\",(AVERAGE('2011 Survey responses'!DA140:DD140)))","v":4.25},{"$f":"IF(SUM('2011 Survey responses'!DE140:DH140)<1,\"\",(AVERAGE('2011 Survey responses'!DE140:DH140)))","v":4.25},{"$f":"IF(SUM('2011 Survey responses'!DI140:DL140)<1,\"\",(AVERAGE('2011 Survey responses'!DI140:DL140)))","v":4.25},{"$f":"IF(('2011 Survey responses'!CW140+'2011 Survey responses'!DA140+'2011 Survey responses'!DE140+'2011 Survey responses'!DI140)<1,\"\",AVERAGE('2011 Survey responses'!CW140,'2011 Survey responses'!DA140,'2011 Survey responses'!DE140,'2011 Survey responses'!DI140))","v":3.5},{"$f":"IF(('2011 Survey responses'!CX140+'2011 Survey responses'!DB140+'2011 Survey responses'!DF140+'2011 Survey responses'!DJ140)<1,\"\",AVERAGE('2011 Survey responses'!CX140,'2011 Survey responses'!DB140,'2011 Survey responses'!DF140,'2011 Survey responses'!DJ140))","v":3.75},{"$f":"IF(('2011 Survey responses'!CY140+'2011 Survey responses'!DC140+'2011 Survey responses'!DG140+'2011 Survey responses'!DK140)<1,\"\",AVERAGE('2011 Survey responses'!CY140,'2011 Survey responses'!DC140,'2011 Survey responses'!DG140,'2011 Survey responses'!DK140))","v":4.5},{"$f":"IF(('2011 Survey responses'!CZ140+'2011 Survey responses'!DD140+'2011 Survey responses'!DH140+'2011 Survey responses'!DL140)<1,\"\",AVERAGE('2011 Survey responses'!CZ140,'2011 Survey responses'!DD140,'2011 Survey responses'!DH140,'2011 Survey responses'!DL140))","v":5},{"$f":"IF('2011 Survey responses'!CW140<0.5,\"\",'2011 Survey responses'!CW140)","v":5},{"$f":"IF('2011 Survey responses'!CX140<0.5,\"\",'2011 Survey responses'!CX140)","v":3},{"$f":"IF('2011 Survey responses'!CY140<0.5,\"\",'2011 Survey responses'!CY140)","v":3},{"$f":"IF('2011 Survey responses'!CZ140<0.5,\"\",'2011 Survey responses'!CZ140)","v":5},{"$f":"IF('2011 Survey responses'!DA140<0.5,\"\",'2011 Survey responses'!DA140)","v":3},{"$f":"IF('2011 Survey responses'!DB140<0.5,\"\",'2011 Survey responses'!DB140)","v":4},{"$f":"IF('2011 Survey responses'!DC140<0.5,\"\",'2011 Survey responses'!DC140)","v":5},{"$f":"IF('2011 Survey responses'!DD140<0.5,\"\",'2011 Survey responses'!DD140)","v":5},{"$f":"IF('2011 Survey responses'!DE140<0.5,\"\",'2011 Survey responses'!DE140)","v":3},{"$f":"IF('2011 Survey responses'!DF140<0.5,\"\",'2011 Survey responses'!DF140)","v":4},{"$f":"IF('2011 Survey responses'!DG140<0.5,\"\",'2011 Survey responses'!DG140)","v":5},{"$f":"IF('2011 Survey responses'!DH140<0.5,\"\",'2011 Survey responses'!DH140)","v":5},{"$f":"IF('2011 Survey responses'!DI140<0.5,\"\",'2011 Survey responses'!DI140)","v":3},{"$f":"IF('2011 Survey responses'!DJ140<0.5,\"\",'2011 Survey responses'!DJ140)","v":4},{"$f":"IF('2011 Survey responses'!DK140<0.5,\"\",'2011 Survey responses'!DK140)","v":5},{"$f":"IF('2011 Survey responses'!DL140<0.5,\"\",'2011 Survey responses'!DL140)","v":5},{"$f":"IF('2011 Survey responses'!DU140=4,4,IF('2011 Survey responses'!DU140=5,4,\"\"))","v":4},{"$f":"IF('2011 Survey responses'!DV140=4,3,IF('2011 Survey responses'!DV140=5,3,\"\"))","v":3},2,{"$f":"IF(CQ140=2,CQ140,IF(CO140=4,CO140,IF(CP140=3,CP140,IF('2011 Survey responses'!GT140=1,1,\"\"))))","v":2},{"$f":"IF('2011 Survey responses'!DO140<0.5,\"\",'2011 Survey responses'!DO140)","v":2},{"$f":"IF('2011 Survey responses'!DP140<0.5,\"\",'2011 Survey responses'!DP140)","v":4},{"$f":"IF('2011 Survey responses'!DQ140<0.5,\"\",'2011 Survey responses'!DQ140)","v":4},{"$f":"IF('2011 Survey responses'!DR140<0.5,\"\",'2011 Survey responses'!DR140)","v":3},{"$f":"IF('2011 Survey responses'!DS140<0.5,\"\",'2011 Survey responses'!DS140)","v":5},{"$f":"IF('2011 Survey responses'!DT140<0.5,\"\",'2011 Survey responses'!DT140)","v":5},{"$f":"IF('2011 Survey responses'!DU140<0.5,\"\",'2011 Survey responses'!DU140)","v":5},{"$f":"IF('2011 Survey responses'!DV140<0.5,\"\",'2011 Survey responses'!DV140)","v":5},{"$f":"IF('2011 Survey responses'!DW140<0.5,\"\",'2011 Survey responses'!DW140)","v":5},{"$f":"IF('2011 Survey responses'!DX140<0.5,\"\",'2011 Survey responses'!DX140)","v":3},{"$f":"IF('2011 Survey responses'!DY140<0.5,\"\",'2011 Survey responses'!DY140)","v":5},{"$f":"IF('2011 Survey responses'!DZ140<0.5,\"\",'2011 Survey responses'!DZ140)","v":3},{"$f":"IF('2011 Survey responses'!EA140<0.5,\"\",'2011 Survey responses'!EA140)","v":2},{"$f":"IF('2011 Survey responses'!EB140<0.5,\"\",'2011 Survey responses'!EB140)","v":4},{"$f":"IF('2011 Survey responses'!EC140<0.5,\"\",'2011 Survey responses'!EC140)","v":4},{"$f":"IF('2011 Survey responses'!ED140<0.5,\"\",'2011 Survey responses'!ED140)","v":1},{"$f":"IF('2011 Survey responses'!EE140<0.5,\"\",'2011 Survey responses'!EE140)","v":5},{"$f":"IF('2011 Survey responses'!EF140<0.5,\"\",'2011 Survey responses'!EF140)","v":5},{"$f":"IF('2011 Survey responses'!EG140<0.5,\"\",'2011 Survey responses'!EG140)","v":4},{"$f":"IF('2011 Survey responses'!EH140<0.5,\"\",'2011 Survey responses'!EH140)","v":3},{"$f":"IF('2011 Survey responses'!EI140<0.5,\"\",'2011 Survey responses'!EI140)","v":3},{"$f":"IF('2011 Survey responses'!EJ140<0.5,\"\",'2011 Survey responses'!EJ140)","v":3},{"$f":"IF('2011 Survey responses'!EK140<0.5,\"\",'2011 Survey responses'!EK140)","v":5},{"$f":"IF('2011 Survey responses'!EL140<0.5,\"\",'2011 Survey responses'!EL140)","v":4},{"$f":"IF('2011 Survey responses'!EM140<0.5,\"\",'2011 Survey responses'!EM140)","v":5},{"$f":"IF('2011 Survey responses'!EN140<0.5,\"\",'2011 Survey responses'!EN140)","v":3},{"$f":"IF('2011 Survey responses'!EO140<0.5,\"\",'2011 Survey responses'!EO140)","v":3},{"$f":"IF('2011 Survey responses'!EP140<0.5,\"\",'2011 Survey responses'!EP140)","v":3},{"$f":"IF(('2011 Survey responses'!EW140+'2011 Survey responses'!EX140)>=2,AVERAGE('2011 Survey responses'!EW140,'2011 Survey responses'!EY140),\"\")","v":3.5},{"$f":"IF('2011 Survey responses'!EX140<0.5,\"\",'2011 Survey responses'!EX140)","v":4},{"$f":"IF('2011 Survey responses'!EZ140<0.5,\"\",'2011 Survey responses'!EZ140)","v":5},{"$f":"IF('2011 Survey responses'!FB140<0.5,\"\",'2011 Survey responses'!FB140)","v":5},{"$f":"IF('2011 Survey responses'!FD140<0.5,\"\",'2011 Survey responses'!FD140)","v":3},{"$f":"IF('2011 Survey responses'!FC140<0.5,\"\",'2011 Survey responses'!FC140)","v":2},{"$f":"IF(('2011 Survey responses'!EM140+'2011 Survey responses'!EN140)>=2,AVERAGE('2011 Survey responses'!EM140,'2011 Survey responses'!EN140),\"\")","v":4},{"$f":"IF('2011 Survey responses'!ES140<0.5,\"\",'2011 Survey responses'!ES140)","v":4},{"$f":"IF(('2011 Survey responses'!ET140+'2011 Survey responses'!EU140)>=2,AVERAGE('2011 Survey responses'!ET140,'2011 Survey responses'!EU140),\"\")","v":4.5},{"$f":"IF('2011 Survey responses'!EV140<0.5,\"\",'2011 Survey responses'!EV140)","v":5},{"$f":"IF('2011 Survey responses'!FA140<0.5,\"\",'2011 Survey responses'!FA140)","v":5},{"$f":"IF('2011 Survey responses'!ER140<0.5,\"\",'2011 Survey responses'!ER140)","v":4},{"$f":"IF(('2011 Survey responses'!EO140+'2011 Survey responses'!EP140)>=2,AVERAGE('2011 Survey responses'!EO140,'2011 Survey responses'!EP140),\"\")","v":3},{"$f":"IF('2011 Survey responses'!EQ140<0.5,\"\",'2011 Survey responses'!EQ140)","v":3},{"$f":"IF('2011 Survey responses'!ET140<0.5,\"\",'2011 Survey responses'!ET140)","v":5},{"$f":"IF('2011 Survey responses'!EU140<0.5,\"\",'2011 Survey responses'!EU140)","v":4},{"$f":"IF('2011 Survey responses'!EW140<0.5,\"\",'2011 Survey responses'!EW140)","v":3},{"$f":"IF('2011 Survey responses'!EY140<0.5,\"\",'2011 Survey responses'!EY140)","v":4},{"$f":"IF('2011 Survey responses'!FU140<0.5,\"\",'2011 Survey responses'!FU140)","v":2},{"$f":"IF(('2011 Survey responses'!FL140+'2011 Survey responses'!FM140)>=2,AVERAGE('2011 Survey responses'!FL140,'2011 Survey responses'!FM140),\"\")","v":4},{"$f":"IF(('2011 Survey responses'!FO140+'2011 Survey responses'!FQ140)>=2,AVERAGE('2011 Survey responses'!FO140,'2011 Survey responses'!FQ140),\"\")","v":3.5},{"$f":"IF('2011 Survey responses'!FJ140<0.5,\"\",'2011 Survey responses'!FJ140)","v":4},{"$f":"IF('2011 Survey responses'!FT140<0.5,\"\",'2011 Survey responses'!FT140)","v":5},{"$f":"IF('2011 Survey responses'!FR140<0.5,\"\",'2011 Survey responses'!FR140)","v":5},{"$f":"IF('2011 Survey responses'!FK140<0.5,\"\",'2011 Survey responses'!FK140)","v":5},{"$f":"IF('2011 Survey responses'!FP140<0.5,\"\",'2011 Survey responses'!FP140)","v":4},{"$f":"IF('2011 Survey responses'!FN140<0.5,\"\",'2011 Survey responses'!FN140)","v":5},{"$f":"IF(('2011 Survey responses'!FE140+'2011 Survey responses'!FF140)>=2,AVERAGE('2011 Survey responses'!FE140,'2011 Survey responses'!FF140),\"\")","v":4},{"$f":"IF('2011 Survey responses'!FS140<0.5,\"\",'2011 Survey responses'!FS140)","v":5},{"$f":"IF('2011 Survey responses'!FV140<0.5,\"\",'2011 Survey responses'!FV140)","v":3},{"$f":"IF(('2011 Survey responses'!FG140+'2011 Survey responses'!FH140)>=2,AVERAGE('2011 Survey responses'!FG140,'2011 Survey responses'!FH140),\"\")","v":3},{"$f":"IF('2011 Survey responses'!FI140<0.5,\"\",'2011 Survey responses'!FI140)","v":4},{"$f":"IF('2011 Survey responses'!FE140<0.5,\"\",'2011 Survey responses'!FE140)","v":4},{"$f":"IF('2011 Survey responses'!FF140<0.5,\"\",'2011 Survey responses'!FF140)","v":4},{"$f":"IF('2011 Survey responses'!FG140<0.5,\"\",'2011 Survey responses'!FG140)","v":3},{"$f":"IF('2011 Survey responses'!FH140<0.5,\"\",'2011 Survey responses'!FH140)","v":3},{"$f":"IF('2011 Survey responses'!FL140<0.5,\"\",'2011 Survey responses'!FL140)","v":4},{"$f":"IF('2011 Survey responses'!FM140<0.5,\"\",'2011 Survey responses'!FM140)","v":4},{"$f":"IF('2011 Survey responses'!FO140<0.5,\"\",'2011 Survey responses'!FO140)","v":3},{"$f":"IF('2011 Survey responses'!FQ140<0.5,\"\",'2011 Survey responses'!FQ140)","v":4}]
["Republic of Moldova",{"$f":"IF(SUM(F141)<1,\"\",AVERAGEIF('2011 Survey responses'!B141:CP141,\">1\"))","v":2.6506024096385543},{"$f":"IF(SUM(F141)<1,\"\",AVERAGEIF('2011 Survey responses'!B141:AO141,\">1\"))","v":2.5384615384615383},{"$f":"IF(SUM(F141)<1,\"\",AVERAGEIF('2011 Survey responses'!B141:BV141,\">1\"))","v":2.7142857142857144},{"$f":"IF(SUM(F141)<1,\"\",AVERAGEIF('2011 Survey responses'!V141:BV141,\">1\"))","v":2.8039215686274508},{"$f":"IF(SUM('2011 Survey responses'!B141:U141)<1,\"\",(AVERAGEIFS('2011 Survey responses'!B141:U141,'2011 Survey responses'!B141:U141,\">1\")))","v":2.4736842105263159},{"$f":"IF(SUM('2011 Survey responses'!B141:H141)<1,\"\",(AVERAGEIFS('2011 Survey responses'!B141:H141,'2011 Survey responses'!B141:H141,\">1\")))","v":2.3333333333333335},{"$f":"IF(SUM('2011 Survey responses'!I141:S141)<1,\"\",(AVERAGEIFS('2011 Survey responses'!I141:S141,'2011 Survey responses'!I141:S141,\">1\")))","v":2.3636363636363638},{"$f":"IF(SUM('2011 Survey responses'!T141:U141)<2.1,\"\",(AVERAGEIFS('2011 Survey responses'!T141:U141,'2011 Survey responses'!T141:U141,\">1\")))","v":3.5},{"$f":"IF(SUM('2011 Survey responses'!B141:C141)<2.1,\"\",((SUMIF('2011 Survey responses'!B141:C141,\">1\")+SUMIF('2011 Survey responses'!F141,\">1\"))/(COUNTIF('2011 Survey responses'!B141:C141,\">1\")+COUNTIF('2011 Survey responses'!F141,\">1\"))))","v":3},{"$f":"IF(SUM('2011 Survey responses'!D141:E141)<2.1,\"\",(AVERAGEIFS('2011 Survey responses'!D141:E141,'2011 Survey responses'!D141:E141,\">1\")))","v":2},{"$f":"IF(('2011 Survey responses'!B141+'2011 Survey responses'!D141)<2.1,\"\",((SUMIF('2011 Survey responses'!B141,\">1\")+SUMIF('2011 Survey responses'!D141,\">1\")+SUMIF('2011 Survey responses'!F141,\">1\")+SUMIF('2011 Survey responses'!K141,\">1\"))/(COUNTIF('2011 Survey responses'!B141,\">1\")+COUNTIF('2011 Survey responses'!D141,\">1\")+COUNTIF('2011 Survey responses'!F141,\">1\")+COUNTIF('2011 Survey responses'!K141,\">1\"))))","v":2.5},{"$f":"IF(SUM('2011 Survey responses'!G141:H141)<2.1,\"\",(AVERAGEIFS('2011 Survey responses'!G141:H141,'2011 Survey responses'!G141:H141,\">1\")))","v":2},{"$f":"IF(SUM('2011 Survey responses'!F141:G141)<1.5,\"\",MAX('2011 Survey responses'!F141,'2011 Survey responses'!G141))","v":2},{"$f":"IF(SUM('2011 Survey responses'!G141:H141)<1,\"\",MAX('2011 Survey responses'!G141,'2011 Survey responses'!H141))","v":2},{"$f":"IF(SUM('2011 Survey responses'!I141:L141)<4.1,\"\",(AVERAGEIFS('2011 Survey responses'!I141:L141,'2011 Survey responses'!I141:L141,\">1\")))","v":2},{"$f":"IF(SUM('2011 Survey responses'!M141:S141)<4.1,\"\",(AVERAGEIFS('2011 Survey responses'!M141:S141,'2011 Survey responses'!M141:S141,\">1\")))","v":2.5714285714285716},{"$f":"IF(SUM('2011 Survey responses'!T141:U141)<2.1,\"\",(AVERAGEIFS('2011 Survey responses'!T141:U141,'2011 Survey responses'!T141:U141,\">1\")))","v":3.5},{"$f":"IF(SUM('2011 Survey responses'!V141:AO141)<1,\"\",(AVERAGEIFS('2011 Survey responses'!V141:AO141,'2011 Survey responses'!V141:AO141,\">1\")))","v":2.6},{"$f":"IF(SUM('2011 Survey responses'!V141:AA141)<1,\"\",(AVERAGEIFS('2011 Survey responses'!V141:AA141,'2011 Survey responses'!V141:AA141,\">1\")))","v":2},{"$f":"IF(SUM('2011 Survey responses'!AB141:AH141)<1,\"\",(AVERAGEIFS('2011 Survey responses'!AB141:AH141,'2011 Survey responses'!AB141:AH141,\">1\")))","v":2.8571428571428572},{"$f":"IF(SUM('2011 Survey responses'!AI141:AO141)<1,\"\",(AVERAGEIFS('2011 Survey responses'!AI141:AO141,'2011 Survey responses'!AI141:AO141,\">1\")))","v":2.8571428571428572},{"$f":"IF(('2011 Survey responses'!Y141+'2011 Survey responses'!AI141+'2011 Survey responses'!AK141)<3.1,\"\",((SUMIF('2011 Survey responses'!Y141,\">1\")+SUMIF('2011 Survey responses'!AI141,\">1\")+SUMIF('2011 Survey responses'!AK141,\">1\")+SUMIF('2011 Survey responses'!AM141,\">1\"))/(COUNTIF('2011 Survey responses'!Y141,\">1\")+COUNTIF('2011 Survey responses'!AI141,\">1\")+COUNTIF('2011 Survey responses'!AK141,\">1\")+COUNTIF('2011 Survey responses'!AM141,\">1\"))))","v":2.5},{"$f":"IF(('2011 Survey responses'!W141)<1.1,\"\",('2011 Survey responses'!W141))","v":2},{"$f":"IF(('2011 Survey responses'!Y141)<1.1,\"\",('2011 Survey responses'!Y141))","v":2},{"$f":"IF(('2011 Survey responses'!Z141)<1.1,\"\",('2011 Survey responses'!Z141))","v":2},{"$f":"IF(('2011 Survey responses'!V141+'2011 Survey responses'!X141+'2011 Survey responses'!AA141)<3.1,\"\",((SUMIF('2011 Survey responses'!V141,\">1\")+SUMIF('2011 Survey responses'!X141,\">1\")+SUMIF('2011 Survey responses'!AA141,\">1\"))/(COUNTIF('2011 Survey responses'!V141,\">1\")+COUNTIF('2011 Survey responses'!X141,\">1\")+COUNTIF('2011 Survey responses'!AA141,\">1\"))))","v":2},{"$f":"IF(('2011 Survey responses'!V141+'2011 Survey responses'!Y141+'2011 Survey responses'!AA141)<3.1,\"\",((SUMIF('2011 Survey responses'!V141,\">1\")+SUMIF('2011 Survey responses'!Y141,\">1\")+SUMIF('2011 Survey responses'!AA141,\">1\"))/(COUNTIF('2011 Survey responses'!V141,\">1\")+COUNTIF('2011 Survey responses'!Y141,\">1\")+COUNTIF('2011 Survey responses'!AA141,\">1\"))))","v":2},{"$f":"IF(SUM('2011 Survey responses'!AB141:AH141)<1,\"\",(AVERAGEIFS('2011 Survey responses'!AB141:AH141,'2011 Survey responses'!AB141:AH141,\">1\")))","v":2.8571428571428572},{"$f":"IF(SUM('2011 Survey responses'!AI141:AO141)<7.1,\"\",(AVERAGEIFS('2011 Survey responses'!AI141:AO141,'2011 Survey responses'!AI141:AO141,\">1\")))","v":2.8571428571428572},{"$f":"IF(('2011 Survey responses'!AH141)<1.1,\"\",('2011 Survey responses'!AH141))","v":3},{"$f":"IF(SUM('2011 Survey responses'!AP141:BV141)<1,\"\",(AVERAGEIFS('2011 Survey responses'!AP141:BV141,'2011 Survey responses'!AP141:BV141,\">1\")))","v":2.935483870967742},{"$f":"IF(SUM('2011 Survey responses'!AP141:AS141)<4.1,\"\",(AVERAGEIFS('2011 Survey responses'!AP141:AS141,'2011 Survey responses'!AP141:AS141,\">1\")))","v":2.5},{"$f":"IF(SUM('2011 Survey responses'!AT141:BF141)<1,\"\",(AVERAGEIFS('2011 Survey responses'!AT141:BF141,'2011 Survey responses'!AT141:BF141,\">1\")))","v":2},{"$f":"IF(SUM('2011 Survey responses'!BG141:BO141)<1,\"\",(AVERAGEIFS('2011 Survey responses'!BG141:BO141,'2011 Survey responses'!BG141:BO141,\">1\")))","v":4.333333333333333},{"$f":"IF(SUM('2011 Survey responses'!BP141:BS141)<1,\"\",(AVERAGEIFS('2011 Survey responses'!BP141:BS141,'2011 Survey responses'!BP141:BS141,\">1\")))","v":3.5},{"$f":"IF(SUM('2011 Survey responses'!BT141:BV141)<3.1,\"\",(AVERAGEIFS('2011 Survey responses'!BT141:BV141,'2011 Survey responses'!BT141:BV141,\">1\")))","v":""},{"$f":"IF(('2011 Survey responses'!AQ141+'2011 Survey responses'!AR141+'2011 Survey responses'!BG141)<3.1,\"\",((SUMIF('2011 Survey responses'!AQ141,\">1\")+SUMIF('2011 Survey responses'!AR141,\">1\")+SUMIF('2011 Survey responses'!BG141,\">1\"))/(COUNTIF('2011 Survey responses'!AQ141,\">1\")+COUNTIF('2011 Survey responses'!AR141,\">1\")+COUNTIF('2011 Survey responses'!BG141,\">1\"))))","v":3.6666666666666665},{"$f":"IF(SUM('2011 Survey responses'!AP141:AS141)<4.1,\"\",(AVERAGEIFS('2011 Survey responses'!AP141:AS141,'2011 Survey responses'!AP141:AS141,\">1\")))","v":2.5},{"$f":"IF(('2011 Survey responses'!AU141+'2011 Survey responses'!AX141+'2011 Survey responses'!BA141+'2011 Survey responses'!BC141+'2011 Survey responses'!BD141)<5.1,\"\",(SUMIF('2011 Survey responses'!AU141,\">1\")+SUMIF('2011 Survey responses'!AX141,\">1\")+SUMIF('2011 Survey responses'!BA141,\">1\")+SUMIF('2011 Survey responses'!BC141,\">1\")+SUMIF('2011 Survey responses'!BD141,\">1\"))/(COUNTIF('2011 Survey responses'!AU141,\">1\")+COUNTIF('2011 Survey responses'!AX141,\">1\")+COUNTIF('2011 Survey responses'!BA141,\">1\")+COUNTIF('2011 Survey responses'!BC141,\">1\")+COUNTIF('2011 Survey responses'!BD141,\">1\")))","v":2},{"$f":"IF(('2011 Survey responses'!AT141)<1.1,\"\",('2011 Survey responses'!AT141))","v":2},{"$f":"IF(SUM('2011 Survey responses'!AV141:AW141)<2.1,\"\",(AVERAGEIFS('2011 Survey responses'!AV141:AW141,'2011 Survey responses'!AV141:AW141,\">1\")))","v":2},{"$f":"IF(('2011 Survey responses'!AW141+'2011 Survey responses'!AY141)<2.1,\"\",(SUMIF('2011 Survey responses'!AW141,\">1\")+SUMIF('2011 Survey responses'!AY141,\">1\"))/(COUNTIF('2011 Survey responses'!AW141,\">1\")+COUNTIF('2011 Survey responses'!AY141,\">1\")))","v":2},{"$f":"IF(('2011 Survey responses'!AZ141)<1.1,\"\",('2011 Survey responses'!AZ141))","v":2},2,2,4,null,{"$f":"IF(('2011 Survey responses'!BE141)<1.1,\"\",('2011 Survey responses'!BE141))","v":2},{"$f":"IF(('2011 Survey responses'!AY141+'2011 Survey responses'!BB141+'2011 Survey responses'!BF141)<3.1,\"\",(SUMIF('2011 Survey responses'!AY141,\">1\")+SUMIF('2011 Survey responses'!BB141,\">1\")+SUMIF('2011 Survey responses'!BF141,\">1\"))/(COUNTIF('2011 Survey responses'!AY141,\">1\")+COUNTIF('2011 Survey responses'!BB141,\">1\")+COUNTIF('2011 Survey responses'!BF141,\">1\")))","v":2},3.9166666666666665,{"$f":"IF(SUM('2011 Survey responses'!BT141:BV141)<3.1,\"\",(AVERAGEIFS('2011 Survey responses'!BT141:BV141,'2011 Survey responses'!BT141:BV141,\">1\")))","v":""},{"$f":"IF(SUM('2011 Survey responses'!BW141:CP141)<1,\"\",(AVERAGEIFS('2011 Survey responses'!BW141:CP141,'2011 Survey responses'!BW141:CP141,\">1\")))","v":2.3076923076923075},{"$f":"IF(SUM('2011 Survey responses'!BW141:CF141)<1,\"\",(AVERAGEIFS('2011 Survey responses'!BW141:CF141,'2011 Survey responses'!BW141:CF141,\">1\")))","v":2.3333333333333335},{"$f":"IF(SUM('2011 Survey responses'!CG141:CP141)<1,\"\",(AVERAGEIFS('2011 Survey responses'!CG141:CP141,'2011 Survey responses'!CG141:CP141,\">1\")))","v":2.2857142857142856},{"$f":"IF(SUM('2011 Survey responses'!BX141:CF141)<1,\"\",(AVERAGEIFS('2011 Survey responses'!BX141:CF141,'2011 Survey responses'!BX141:CF141,\">1\")))","v":2.4},{"$f":"IF(SUM('2011 Survey responses'!CH141:CP141)<1,\"\",(AVERAGEIFS('2011 Survey responses'!CH141:CP141,'2011 Survey responses'!CH141:CP141,\">1\")))","v":2.3333333333333335},{"$f":"IF(SUM('2011 Survey responses'!BW141:CP141)<1,\"\",(AVERAGEIFS('2011 Survey responses'!BW141:CP141,'2011 Survey responses'!BW141:CP141,\">1\")))","v":2.3076923076923075},{"$f":"IF(('2011 Survey responses'!BW141+'2011 Survey responses'!CG141)<2.1,\"\",(SUMIF('2011 Survey responses'!BW141,\">1\")+SUMIF('2011 Survey responses'!CG141,\">1\"))/(COUNTIF('2011 Survey responses'!BW141,\">1\")+COUNTIF('2011 Survey responses'!CG141,\">1\")))","v":2},{"$f":"IF(('2011 Survey responses'!BX141+'2011 Survey responses'!CH141)<2.1,\"\",(SUMIF('2011 Survey responses'!BX141,\">1\")+SUMIF('2011 Survey responses'!CH141,\">1\"))/(COUNTIF('2011 Survey responses'!BX141,\">1\")+COUNTIF('2011 Survey responses'!CH141,\">1\")))","v":2},{"$f":"IF(('2011 Survey responses'!BY141+'2011 Survey responses'!CI141)<2.1,\"\",(SUMIF('2011 Survey responses'!BY141,\">1\")+SUMIF('2011 Survey responses'!CI141,\">1\"))/(COUNTIF('2011 Survey responses'!BY141,\">1\")+COUNTIF('2011 Survey responses'!CI141,\">1\")))","v":2},{"$f":"IF('2011 Survey responses'!CQ141<0.5,\"\",'2011 Survey responses'!CQ141)","v":4},{"$f":"IF('2011 Survey responses'!CR141<0.5,\"\",'2011 Survey responses'!CR141)","v":4},{"$f":"IF('2011 Survey responses'!CS141<0.5,\"\",'2011 Survey responses'!CS141)","v":4},{"$f":"IF('2011 Survey responses'!CT141<0.5,\"\",'2011 Survey responses'!CT141)","v":2},{"$f":"IF('2011 Survey responses'!CU141<0.5,\"\",'2011 Survey responses'!CU141)","v":4},{"$f":"IF('2011 Survey responses'!CV141<0.5,\"\",'2011 Survey responses'!CV141)","v":4},{"$f":"IF(SUM('2011 Survey responses'!CW141:DL141)<1,\"\",(AVERAGE('2011 Survey responses'!CW141:DL141)))","v":2.875},{"$f":"IF(SUM('2011 Survey responses'!CW141:CZ141)<1,\"\",(AVERAGE('2011 Survey responses'!CW141:CZ141)))","v":2.5},{"$f":"IF(SUM('2011 Survey responses'!DA141:DD141)<1,\"\",(AVERAGE('2011 Survey responses'!DA141:DD141)))","v":3},{"$f":"IF(SUM('2011 Survey responses'!DE141:DH141)<1,\"\",(AVERAGE('2011 Survey responses'!DE141:DH141)))","v":3},{"$f":"IF(SUM('2011 Survey responses'!DI141:DL141)<1,\"\",(AVERAGE('2011 Survey responses'!DI141:DL141)))","v":3},{"$f":"IF(('2011 Survey responses'!CW141+'2011 Survey responses'!DA141+'2011 Survey responses'!DE141+'2011 Survey responses'!DI141)<1,\"\",AVERAGE('2011 Survey responses'!CW141,'2011 Survey responses'!DA141,'2011 Survey responses'!DE141,'2011 Survey responses'!DI141))","v":3},{"$f":"IF(('2011 Survey responses'!CX141+'2011 Survey responses'!DB141+'2011 Survey responses'!DF141+'2011 Survey responses'!DJ141)<1,\"\",AVERAGE('2011 Survey responses'!CX141,'2011 Survey responses'!DB141,'2011 Survey responses'!DF141,'2011 Survey responses'!DJ141))","v":2.75},{"$f":"IF(('2011 Survey responses'!CY141+'2011 Survey responses'!DC141+'2011 Survey responses'!DG141+'2011 Survey responses'!DK141)<1,\"\",AVERAGE('2011 Survey responses'!CY141,'2011 Survey responses'!DC141,'2011 Survey responses'!DG141,'2011 Survey responses'!DK141))","v":3},{"$f":"IF(('2011 Survey responses'!CZ141+'2011 Survey responses'!DD141+'2011 Survey responses'!DH141+'2011 Survey responses'!DL141)<1,\"\",AVERAGE('2011 Survey responses'!CZ141,'2011 Survey responses'!DD141,'2011 Survey responses'!DH141,'2011 Survey responses'!DL141))","v":2.75},{"$f":"IF('2011 Survey responses'!CW141<0.5,\"\",'2011 Survey responses'!CW141)","v":3},{"$f":"IF('2011 Survey responses'!CX141<0.5,\"\",'2011 Survey responses'!CX141)","v":2},{"$f":"IF('2011 Survey responses'!CY141<0.5,\"\",'2011 Survey responses'!CY141)","v":3},{"$f":"IF('2011 Survey responses'!CZ141<0.5,\"\",'2011 Survey responses'!CZ141)","v":2},{"$f":"IF('2011 Survey responses'!DA141<0.5,\"\",'2011 Survey responses'!DA141)","v":3},{"$f":"IF('2011 Survey responses'!DB141<0.5,\"\",'2011 Survey responses'!DB141)","v":3},{"$f":"IF('2011 Survey responses'!DC141<0.5,\"\",'2011 Survey responses'!DC141)","v":3},{"$f":"IF('2011 Survey responses'!DD141<0.5,\"\",'2011 Survey responses'!DD141)","v":3},{"$f":"IF('2011 Survey responses'!DE141<0.5,\"\",'2011 Survey responses'!DE141)","v":3},{"$f":"IF('2011 Survey responses'!DF141<0.5,\"\",'2011 Survey responses'!DF141)","v":3},{"$f":"IF('2011 Survey responses'!DG141<0.5,\"\",'2011 Survey responses'!DG141)","v":3},{"$f":"IF('2011 Survey responses'!DH141<0.5,\"\",'2011 Survey responses'!DH141)","v":3},{"$f":"IF('2011 Survey responses'!DI141<0.5,\"\",'2011 Survey responses'!DI141)","v":3},{"$f":"IF('2011 Survey responses'!DJ141<0.5,\"\",'2011 Survey responses'!DJ141)","v":3},{"$f":"IF('2011 Survey responses'!DK141<0.5,\"\",'2011 Survey responses'!DK141)","v":3},{"$f":"IF('2011 Survey responses'!DL141<0.5,\"\",'2011 Survey responses'!DL141)","v":3},{"$f":"IF('2011 Survey responses'!DU141=4,4,IF('2011 Survey responses'!DU141=5,4,\"\"))","v":""},{"$f":"IF('2011 Survey responses'!DV141=4,3,IF('2011 Survey responses'!DV141=5,3,\"\"))","v":""},"",{"$f":"IF(CQ141=2,CQ141,IF(CO141=4,CO141,IF(CP141=3,CP141,IF('2011 Survey responses'!GT141=1,1,\"\"))))","v":1},{"$f":"IF('2011 Survey responses'!DO141<0.5,\"\",'2011 Survey responses'!DO141)","v":4},{"$f":"IF('2011 Survey responses'!DP141<0.5,\"\",'2011 Survey responses'!DP141)","v":3},{"$f":"IF('2011 Survey responses'!DQ141<0.5,\"\",'2011 Survey responses'!DQ141)","v":2},{"$f":"IF('2011 Survey responses'!DR141<0.5,\"\",'2011 Survey responses'!DR141)","v":3},{"$f":"IF('2011 Survey responses'!DS141<0.5,\"\",'2011 Survey responses'!DS141)","v":4},{"$f":"IF('2011 Survey responses'!DT141<0.5,\"\",'2011 Survey responses'!DT141)","v":4},{"$f":"IF('2011 Survey responses'!DU141<0.5,\"\",'2011 Survey responses'!DU141)","v":3},{"$f":"IF('2011 Survey responses'!DV141<0.5,\"\",'2011 Survey responses'!DV141)","v":3},{"$f":"IF('2011 Survey responses'!DW141<0.5,\"\",'2011 Survey responses'!DW141)","v":3},{"$f":"IF('2011 Survey responses'!DX141<0.5,\"\",'2011 Survey responses'!DX141)","v":2},{"$f":"IF('2011 Survey responses'!DY141<0.5,\"\",'2011 Survey responses'!DY141)","v":5},{"$f":"IF('2011 Survey responses'!DZ141<0.5,\"\",'2011 Survey responses'!DZ141)","v":4},{"$f":"IF('2011 Survey responses'!EA141<0.5,\"\",'2011 Survey responses'!EA141)","v":1},{"$f":"IF('2011 Survey responses'!EB141<0.5,\"\",'2011 Survey responses'!EB141)","v":2},{"$f":"IF('2011 Survey responses'!EC141<0.5,\"\",'2011 Survey responses'!EC141)","v":1},{"$f":"IF('2011 Survey responses'!ED141<0.5,\"\",'2011 Survey responses'!ED141)","v":2},{"$f":"IF('2011 Survey responses'!EE141<0.5,\"\",'2011 Survey responses'!EE141)","v":4},{"$f":"IF('2011 Survey responses'!EF141<0.5,\"\",'2011 Survey responses'!EF141)","v":5},{"$f":"IF('2011 Survey responses'!EG141<0.5,\"\",'2011 Survey responses'!EG141)","v":4},{"$f":"IF('2011 Survey responses'!EH141<0.5,\"\",'2011 Survey responses'!EH141)","v":4},{"$f":"IF('2011 Survey responses'!EI141<0.5,\"\",'2011 Survey responses'!EI141)","v":4},{"$f":"IF('2011 Survey responses'!EJ141<0.5,\"\",'2011 Survey responses'!EJ141)","v":4},{"$f":"IF('2011 Survey responses'!EK141<0.5,\"\",'2011 Survey responses'!EK141)","v":4},{"$f":"IF('2011 Survey responses'!EL141<0.5,\"\",'2011 Survey responses'!EL141)","v":4},{"$f":"IF('2011 Survey responses'!EM141<0.5,\"\",'2011 Survey responses'!EM141)","v":3},{"$f":"IF('2011 Survey responses'!EN141<0.5,\"\",'2011 Survey responses'!EN141)","v":2},{"$f":"IF('2011 Survey responses'!EO141<0.5,\"\",'2011 Survey responses'!EO141)","v":4},{"$f":"IF('2011 Survey responses'!EP141<0.5,\"\",'2011 Survey responses'!EP141)","v":4},{"$f":"IF(('2011 Survey responses'!EW141+'2011 Survey responses'!EX141)>=2,AVERAGE('2011 Survey responses'!EW141,'2011 Survey responses'!EY141),\"\")","v":4},{"$f":"IF('2011 Survey responses'!EX141<0.5,\"\",'2011 Survey responses'!EX141)","v":3},{"$f":"IF('2011 Survey responses'!EZ141<0.5,\"\",'2011 Survey responses'!EZ141)","v":4},{"$f":"IF('2011 Survey responses'!FB141<0.5,\"\",'2011 Survey responses'!FB141)","v":4},{"$f":"IF('2011 Survey responses'!FD141<0.5,\"\",'2011 Survey responses'!FD141)","v":4},{"$f":"IF('2011 Survey responses'!FC141<0.5,\"\",'2011 Survey responses'!FC141)","v":4},{"$f":"IF(('2011 Survey responses'!EM141+'2011 Survey responses'!EN141)>=2,AVERAGE('2011 Survey responses'!EM141,'2011 Survey responses'!EN141),\"\")","v":2.5},{"$f":"IF('2011 Survey responses'!ES141<0.5,\"\",'2011 Survey responses'!ES141)","v":4},{"$f":"IF(('2011 Survey responses'!ET141+'2011 Survey responses'!EU141)>=2,AVERAGE('2011 Survey responses'!ET141,'2011 Survey responses'!EU141),\"\")","v":3},{"$f":"IF('2011 Survey responses'!EV141<0.5,\"\",'2011 Survey responses'!EV141)","v":4},{"$f":"IF('2011 Survey responses'!FA141<0.5,\"\",'2011 Survey responses'!FA141)","v":3},{"$f":"IF('2011 Survey responses'!ER141<0.5,\"\",'2011 Survey responses'!ER141)","v":4},{"$f":"IF(('2011 Survey responses'!EO141+'2011 Survey responses'!EP141)>=2,AVERAGE('2011 Survey responses'!EO141,'2011 Survey responses'!EP141),\"\")","v":4},{"$f":"IF('2011 Survey responses'!EQ141<0.5,\"\",'2011 Survey responses'!EQ141)","v":3},{"$f":"IF('2011 Survey responses'!ET141<0.5,\"\",'2011 Survey responses'!ET141)","v":3},{"$f":"IF('2011 Survey responses'!EU141<0.5,\"\",'2011 Survey responses'!EU141)","v":3},{"$f":"IF('2011 Survey responses'!EW141<0.5,\"\",'2011 Survey responses'!EW141)","v":4},{"$f":"IF('2011 Survey responses'!EY141<0.5,\"\",'2011 Survey responses'!EY141)","v":4},{"$f":"IF('2011 Survey responses'!FU141<0.5,\"\",'2011 Survey responses'!FU141)","v":4},{"$f":"IF(('2011 Survey responses'!FL141+'2011 Survey responses'!FM141)>=2,AVERAGE('2011 Survey responses'!FL141,'2011 Survey responses'!FM141),\"\")","v":4},{"$f":"IF(('2011 Survey responses'!FO141+'2011 Survey responses'!FQ141)>=2,AVERAGE('2011 Survey responses'!FO141,'2011 Survey responses'!FQ141),\"\")","v":4},{"$f":"IF('2011 Survey responses'!FJ141<0.5,\"\",'2011 Survey responses'!FJ141)","v":5},{"$f":"IF('2011 Survey responses'!FT141<0.5,\"\",'2011 Survey responses'!FT141)","v":4},{"$f":"IF('2011 Survey responses'!FR141<0.5,\"\",'2011 Survey responses'!FR141)","v":4},{"$f":"IF('2011 Survey responses'!FK141<0.5,\"\",'2011 Survey responses'!FK141)","v":4},{"$f":"IF('2011 Survey responses'!FP141<0.5,\"\",'2011 Survey responses'!FP141)","v":4},{"$f":"IF('2011 Survey responses'!FN141<0.5,\"\",'2011 Survey responses'!FN141)","v":5},{"$f":"IF(('2011 Survey responses'!FE141+'2011 Survey responses'!FF141)>=2,AVERAGE('2011 Survey responses'!FE141,'2011 Survey responses'!FF141),\"\")","v":4},{"$f":"IF('2011 Survey responses'!FS141<0.5,\"\",'2011 Survey responses'!FS141)","v":4},{"$f":"IF('2011 Survey responses'!FV141<0.5,\"\",'2011 Survey responses'!FV141)","v":4},{"$f":"IF(('2011 Survey responses'!FG141+'2011 Survey responses'!FH141)>=2,AVERAGE('2011 Survey responses'!FG141,'2011 Survey responses'!FH141),\"\")","v":4.5},{"$f":"IF('2011 Survey responses'!FI141<0.5,\"\",'2011 Survey responses'!FI141)","v":4},{"$f":"IF('2011 Survey responses'!FE141<0.5,\"\",'2011 Survey responses'!FE141)","v":4},{"$f":"IF('2011 Survey responses'!FF141<0.5,\"\",'2011 Survey responses'!FF141)","v":4},{"$f":"IF('2011 Survey responses'!FG141<0.5,\"\",'2011 Survey responses'!FG141)","v":5},{"$f":"IF('2011 Survey responses'!FH141<0.5,\"\",'2011 Survey responses'!FH141)","v":4},{"$f":"IF('2011 Survey responses'!FL141<0.5,\"\",'2011 Survey responses'!FL141)","v":4},{"$f":"IF('2011 Survey responses'!FM141<0.5,\"\",'2011 Survey responses'!FM141)","v":4},{"$f":"IF('2011 Survey responses'!FO141<0.5,\"\",'2011 Survey responses'!FO141)","v":4},{"$f":"IF('2011 Survey responses'!FQ141<0.5,\"\",'2011 Survey responses'!FQ141)","v":4}]
["Romania",{"$f":"IF(SUM(F142)<1,\"\",AVERAGEIF('2011 Survey responses'!B142:CP142,\">1\"))","v":5.2068965517241379},{"$f":"IF(SUM(F142)<1,\"\",AVERAGEIF('2011 Survey responses'!B142:AO142,\">1\"))","v":5.1891891891891895},{"$f":"IF(SUM(F142)<1,\"\",AVERAGEIF('2011 Survey responses'!B142:BV142,\">1\"))","v":5.2173913043478262},{"$f":"IF(SUM(F142)<1,\"\",AVERAGEIF('2011 Survey responses'!V142:BV142,\">1\"))","v":5.2352941176470589},{"$f":"IF(SUM('2011 Survey responses'!B142:U142)<1,\"\",(AVERAGEIFS('2011 Survey responses'!B142:U142,'2011 Survey responses'!B142:U142,\">1\")))","v":5.166666666666667},{"$f":"IF(SUM('2011 Survey responses'!B142:H142)<1,\"\",(AVERAGEIFS('2011 Survey responses'!B142:H142,'2011 Survey responses'!B142:H142,\">1\")))","v":5.333333333333333},{"$f":"IF(SUM('2011 Survey responses'!I142:S142)<1,\"\",(AVERAGEIFS('2011 Survey responses'!I142:S142,'2011 Survey responses'!I142:S142,\">1\")))","v":5},{"$f":"IF(SUM('2011 Survey responses'!T142:U142)<2.1,\"\",(AVERAGEIFS('2011 Survey responses'!T142:U142,'2011 Survey responses'!T142:U142,\">1\")))","v":5.5},{"$f":"IF(SUM('2011 Survey responses'!B142:C142)<2.1,\"\",((SUMIF('2011 Survey responses'!B142:C142,\">1\")+SUMIF('2011 Survey responses'!F142,\">1\"))/(COUNTIF('2011 Survey responses'!B142:C142,\">1\")+COUNTIF('2011 Survey responses'!F142,\">1\"))))","v":5.333333333333333},{"$f":"IF(SUM('2011 Survey responses'!D142:E142)<2.1,\"\",(AVERAGEIFS('2011 Survey responses'!D142:E142,'2011 Survey responses'!D142:E142,\">1\")))","v":6},{"$f":"IF(('2011 Survey responses'!B142+'2011 Survey responses'!D142)<2.1,\"\",((SUMIF('2011 Survey responses'!B142,\">1\")+SUMIF('2011 Survey responses'!D142,\">1\")+SUMIF('2011 Survey responses'!F142,\">1\")+SUMIF('2011 Survey responses'!K142,\">1\"))/(COUNTIF('2011 Survey responses'!B142,\">1\")+COUNTIF('2011 Survey responses'!D142,\">1\")+COUNTIF('2011 Survey responses'!F142,\">1\")+COUNTIF('2011 Survey responses'!K142,\">1\"))))","v":5.5},{"$f":"IF(SUM('2011 Survey responses'!G142:H142)<2.1,\"\",(AVERAGEIFS('2011 Survey responses'!G142:H142,'2011 Survey responses'!G142:H142,\">1\")))","v":5},{"$f":"IF(SUM('2011 Survey responses'!F142:G142)<1.5,\"\",MAX('2011 Survey responses'!F142,'2011 Survey responses'!G142))","v":6},{"$f":"IF(SUM('2011 Survey responses'!G142:H142)<1,\"\",MAX('2011 Survey responses'!G142,'2011 Survey responses'!H142))","v":5},{"$f":"IF(SUM('2011 Survey responses'!I142:L142)<4.1,\"\",(AVERAGEIFS('2011 Survey responses'!I142:L142,'2011 Survey responses'!I142:L142,\">1\")))","v":5},{"$f":"IF(SUM('2011 Survey responses'!M142:S142)<4.1,\"\",(AVERAGEIFS('2011 Survey responses'!M142:S142,'2011 Survey responses'!M142:S142,\">1\")))","v":5},{"$f":"IF(SUM('2011 Survey responses'!T142:U142)<2.1,\"\",(AVERAGEIFS('2011 Survey responses'!T142:U142,'2011 Survey responses'!T142:U142,\">1\")))","v":5.5},{"$f":"IF(SUM('2011 Survey responses'!V142:AO142)<1,\"\",(AVERAGEIFS('2011 Survey responses'!V142:AO142,'2011 Survey responses'!V142:AO142,\">1\")))","v":5.2105263157894735},{"$f":"IF(SUM('2011 Survey responses'!V142:AA142)<1,\"\",(AVERAGEIFS('2011 Survey responses'!V142:AA142,'2011 Survey responses'!V142:AA142,\">1\")))","v":5.4},{"$f":"IF(SUM('2011 Survey responses'!AB142:AH142)<1,\"\",(AVERAGEIFS('2011 Survey responses'!AB142:AH142,'2011 Survey responses'!AB142:AH142,\">1\")))","v":5},{"$f":"IF(SUM('2011 Survey responses'!AI142:AO142)<1,\"\",(AVERAGEIFS('2011 Survey responses'!AI142:AO142,'2011 Survey responses'!AI142:AO142,\">1\")))","v":5.2857142857142856},{"$f":"IF(('2011 Survey responses'!Y142+'2011 Survey responses'!AI142+'2011 Survey responses'!AK142)<3.1,\"\",((SUMIF('2011 Survey responses'!Y142,\">1\")+SUMIF('2011 Survey responses'!AI142,\">1\")+SUMIF('2011 Survey responses'!AK142,\">1\")+SUMIF('2011 Survey responses'!AM142,\">1\"))/(COUNTIF('2011 Survey responses'!Y142,\">1\")+COUNTIF('2011 Survey responses'!AI142,\">1\")+COUNTIF('2011 Survey responses'!AK142,\">1\")+COUNTIF('2011 Survey responses'!AM142,\">1\"))))","v":5.25},{"$f":"IF(('2011 Survey responses'!W142)<1.1,\"\",('2011 Survey responses'!W142))","v":5},{"$f":"IF(('2011 Survey responses'!Y142)<1.1,\"\",('2011 Survey responses'!Y142))","v":5},{"$f":"IF(('2011 Survey responses'!Z142)<1.1,\"\",('2011 Survey responses'!Z142))","v":5},{"$f":"IF(('2011 Survey responses'!V142+'2011 Survey responses'!X142+'2011 Survey responses'!AA142)<3.1,\"\",((SUMIF('2011 Survey responses'!V142,\">1\")+SUMIF('2011 Survey responses'!X142,\">1\")+SUMIF('2011 Survey responses'!AA142,\">1\"))/(COUNTIF('2011 Survey responses'!V142,\">1\")+COUNTIF('2011 Survey responses'!X142,\">1\")+COUNTIF('2011 Survey responses'!AA142,\">1\"))))","v":6},{"$f":"IF(('2011 Survey responses'!V142+'2011 Survey responses'!Y142+'2011 Survey responses'!AA142)<3.1,\"\",((SUMIF('2011 Survey responses'!V142,\">1\")+SUMIF('2011 Survey responses'!Y142,\">1\")+SUMIF('2011 Survey responses'!AA142,\">1\"))/(COUNTIF('2011 Survey responses'!V142,\">1\")+COUNTIF('2011 Survey responses'!Y142,\">1\")+COUNTIF('2011 Survey responses'!AA142,\">1\"))))","v":5.5},{"$f":"IF(SUM('2011 Survey responses'!AB142:AH142)<1,\"\",(AVERAGEIFS('2011 Survey responses'!AB142:AH142,'2011 Survey responses'!AB142:AH142,\">1\")))","v":5},{"$f":"IF(SUM('2011 Survey responses'!AI142:AO142)<7.1,\"\",(AVERAGEIFS('2011 Survey responses'!AI142:AO142,'2011 Survey responses'!AI142:AO142,\">1\")))","v":5.2857142857142856},{"$f":"IF(('2011 Survey responses'!AH142)<1.1,\"\",('2011 Survey responses'!AH142))","v":5},{"$f":"IF(SUM('2011 Survey responses'!AP142:BV142)<1,\"\",(AVERAGEIFS('2011 Survey responses'!AP142:BV142,'2011 Survey responses'!AP142:BV142,\">1\")))","v":5.25},{"$f":"IF(SUM('2011 Survey responses'!AP142:AS142)<4.1,\"\",(AVERAGEIFS('2011 Survey responses'!AP142:AS142,'2011 Survey responses'!AP142:AS142,\">1\")))","v":5.25},{"$f":"IF(SUM('2011 Survey responses'!AT142:BF142)<1,\"\",(AVERAGEIFS('2011 Survey responses'!AT142:BF142,'2011 Survey responses'!AT142:BF142,\">1\")))","v":5.083333333333333},{"$f":"IF(SUM('2011 Survey responses'!BG142:BO142)<1,\"\",(AVERAGEIFS('2011 Survey responses'!BG142:BO142,'2011 Survey responses'!BG142:BO142,\">1\")))","v":5.5555555555555554},{"$f":"IF(SUM('2011 Survey responses'!BP142:BS142)<1,\"\",(AVERAGEIFS('2011 Survey responses'!BP142:BS142,'2011 Survey responses'!BP142:BS142,\">1\")))","v":5},{"$f":"IF(SUM('2011 Survey responses'!BT142:BV142)<3.1,\"\",(AVERAGEIFS('2011 Survey responses'!BT142:BV142,'2011 Survey responses'!BT142:BV142,\">1\")))","v":5.333333333333333},{"$f":"IF(('2011 Survey responses'!AQ142+'2011 Survey responses'!AR142+'2011 Survey responses'!BG142)<3.1,\"\",((SUMIF('2011 Survey responses'!AQ142,\">1\")+SUMIF('2011 Survey responses'!AR142,\">1\")+SUMIF('2011 Survey responses'!BG142,\">1\"))/(COUNTIF('2011 Survey responses'!AQ142,\">1\")+COUNTIF('2011 Survey responses'!AR142,\">1\")+COUNTIF('2011 Survey responses'!BG142,\">1\"))))","v":5.666666666666667},{"$f":"IF(SUM('2011 Survey responses'!AP142:AS142)<4.1,\"\",(AVERAGEIFS('2011 Survey responses'!AP142:AS142,'2011 Survey responses'!AP142:AS142,\">1\")))","v":5.25},{"$f":"IF(('2011 Survey responses'!AU142+'2011 Survey responses'!AX142+'2011 Survey responses'!BA142+'2011 Survey responses'!BC142+'2011 Survey responses'!BD142)<5.1,\"\",(SUMIF('2011 Survey responses'!AU142,\">1\")+SUMIF('2011 Survey responses'!AX142,\">1\")+SUMIF('2011 Survey responses'!BA142,\">1\")+SUMIF('2011 Survey responses'!BC142,\">1\")+SUMIF('2011 Survey responses'!BD142,\">1\"))/(COUNTIF('2011 Survey responses'!AU142,\">1\")+COUNTIF('2011 Survey responses'!AX142,\">1\")+COUNTIF('2011 Survey responses'!BA142,\">1\")+COUNTIF('2011 Survey responses'!BC142,\">1\")+COUNTIF('2011 Survey responses'!BD142,\">1\")))","v":5.2},{"$f":"IF(('2011 Survey responses'!AT142)<1.1,\"\",('2011 Survey responses'!AT142))","v":6},{"$f":"IF(SUM('2011 Survey responses'!AV142:AW142)<2.1,\"\",(AVERAGEIFS('2011 Survey responses'!AV142:AW142,'2011 Survey responses'!AV142:AW142,\">1\")))","v":6},{"$f":"IF(('2011 Survey responses'!AW142+'2011 Survey responses'!AY142)<2.1,\"\",(SUMIF('2011 Survey responses'!AW142,\">1\")+SUMIF('2011 Survey responses'!AY142,\">1\"))/(COUNTIF('2011 Survey responses'!AW142,\">1\")+COUNTIF('2011 Survey responses'!AY142,\">1\")))","v":5},{"$f":"IF(('2011 Survey responses'!AZ142)<1.1,\"\",('2011 Survey responses'!AZ142))","v":5},5,5,4,4,{"$f":"IF(('2011 Survey responses'!BE142)<1.1,\"\",('2011 Survey responses'!BE142))","v":5},{"$f":"IF(('2011 Survey responses'!AY142+'2011 Survey responses'!BB142+'2011 Survey responses'!BF142)<3.1,\"\",(SUMIF('2011 Survey responses'!AY142,\">1\")+SUMIF('2011 Survey responses'!BB142,\">1\")+SUMIF('2011 Survey responses'!BF142,\">1\"))/(COUNTIF('2011 Survey responses'!AY142,\">1\")+COUNTIF('2011 Survey responses'!BB142,\">1\")+COUNTIF('2011 Survey responses'!BF142,\">1\")))","v":4.333333333333333},5.2777777777777777,{"$f":"IF(SUM('2011 Survey responses'!BT142:BV142)<3.1,\"\",(AVERAGEIFS('2011 Survey responses'!BT142:BV142,'2011 Survey responses'!BT142:BV142,\">1\")))","v":5.333333333333333},{"$f":"IF(SUM('2011 Survey responses'!BW142:CP142)<1,\"\",(AVERAGEIFS('2011 Survey responses'!BW142:CP142,'2011 Survey responses'!BW142:CP142,\">1\")))","v":5.166666666666667},{"$f":"IF(SUM('2011 Survey responses'!BW142:CF142)<1,\"\",(AVERAGEIFS('2011 Survey responses'!BW142:CF142,'2011 Survey responses'!BW142:CF142,\">1\")))","v":5.1111111111111107},{"$f":"IF(SUM('2011 Survey responses'!CG142:CP142)<1,\"\",(AVERAGEIFS('2011 Survey responses'!CG142:CP142,'2011 Survey responses'!CG142:CP142,\">1\")))","v":5.2222222222222223},{"$f":"IF(SUM('2011 Survey responses'!BX142:CF142)<1,\"\",(AVERAGEIFS('2011 Survey responses'!BX142:CF142,'2011 Survey responses'!BX142:CF142,\">1\")))","v":5.125},{"$f":"IF(SUM('2011 Survey responses'!CH142:CP142)<1,\"\",(AVERAGEIFS('2011 Survey responses'!CH142:CP142,'2011 Survey responses'!CH142:CP142,\">1\")))","v":5.125},{"$f":"IF(SUM('2011 Survey responses'!BW142:CP142)<1,\"\",(AVERAGEIFS('2011 Survey responses'!BW142:CP142,'2011 Survey responses'!BW142:CP142,\">1\")))","v":5.166666666666667},{"$f":"IF(('2011 Survey responses'!BW142+'2011 Survey responses'!CG142)<2.1,\"\",(SUMIF('2011 Survey responses'!BW142,\">1\")+SUMIF('2011 Survey responses'!CG142,\">1\"))/(COUNTIF('2011 Survey responses'!BW142,\">1\")+COUNTIF('2011 Survey responses'!CG142,\">1\")))","v":5.5},{"$f":"IF(('2011 Survey responses'!BX142+'2011 Survey responses'!CH142)<2.1,\"\",(SUMIF('2011 Survey responses'!BX142,\">1\")+SUMIF('2011 Survey responses'!CH142,\">1\"))/(COUNTIF('2011 Survey responses'!BX142,\">1\")+COUNTIF('2011 Survey responses'!CH142,\">1\")))","v":5},{"$f":"IF(('2011 Survey responses'!BY142+'2011 Survey responses'!CI142)<2.1,\"\",(SUMIF('2011 Survey responses'!BY142,\">1\")+SUMIF('2011 Survey responses'!CI142,\">1\"))/(COUNTIF('2011 Survey responses'!BY142,\">1\")+COUNTIF('2011 Survey responses'!CI142,\">1\")))","v":6},{"$f":"IF('2011 Survey responses'!CQ142<0.5,\"\",'2011 Survey responses'!CQ142)","v":4},{"$f":"IF('2011 Survey responses'!CR142<0.5,\"\",'2011 Survey responses'!CR142)","v":4},{"$f":"IF('2011 Survey responses'!CS142<0.5,\"\",'2011 Survey responses'!CS142)","v":4},{"$f":"IF('2011 Survey responses'!CT142<0.5,\"\",'2011 Survey responses'!CT142)","v":5},{"$f":"IF('2011 Survey responses'!CU142<0.5,\"\",'2011 Survey responses'!CU142)","v":4},{"$f":"IF('2011 Survey responses'!CV142<0.5,\"\",'2011 Survey responses'!CV142)","v":5},{"$f":"IF(SUM('2011 Survey responses'!CW142:DL142)<1,\"\",(AVERAGE('2011 Survey responses'!CW142:DL142)))","v":3.8125},{"$f":"IF(SUM('2011 Survey responses'!CW142:CZ142)<1,\"\",(AVERAGE('2011 Survey responses'!CW142:CZ142)))","v":3.75},{"$f":"IF(SUM('2011 Survey responses'!DA142:DD142)<1,\"\",(AVERAGE('2011 Survey responses'!DA142:DD142)))","v":3.75},{"$f":"IF(SUM('2011 Survey responses'!DE142:DH142)<1,\"\",(AVERAGE('2011 Survey responses'!DE142:DH142)))","v":4},{"$f":"IF(SUM('2011 Survey responses'!DI142:DL142)<1,\"\",(AVERAGE('2011 Survey responses'!DI142:DL142)))","v":3.75},{"$f":"IF(('2011 Survey responses'!CW142+'2011 Survey responses'!DA142+'2011 Survey responses'!DE142+'2011 Survey responses'!DI142)<1,\"\",AVERAGE('2011 Survey responses'!CW142,'2011 Survey responses'!DA142,'2011 Survey responses'!DE142,'2011 Survey responses'!DI142))","v":3.75},{"$f":"IF(('2011 Survey responses'!CX142+'2011 Survey responses'!DB142+'2011 Survey responses'!DF142+'2011 Survey responses'!DJ142)<1,\"\",AVERAGE('2011 Survey responses'!CX142,'2011 Survey responses'!DB142,'2011 Survey responses'!DF142,'2011 Survey responses'!DJ142))","v":3.25},{"$f":"IF(('2011 Survey responses'!CY142+'2011 Survey responses'!DC142+'2011 Survey responses'!DG142+'2011 Survey responses'!DK142)<1,\"\",AVERAGE('2011 Survey responses'!CY142,'2011 Survey responses'!DC142,'2011 Survey responses'!DG142,'2011 Survey responses'!DK142))","v":4.25},{"$f":"IF(('2011 Survey responses'!CZ142+'2011 Survey responses'!DD142+'2011 Survey responses'!DH142+'2011 Survey responses'!DL142)<1,\"\",AVERAGE('2011 Survey responses'!CZ142,'2011 Survey responses'!DD142,'2011 Survey responses'!DH142,'2011 Survey responses'!DL142))","v":4},{"$f":"IF('2011 Survey responses'!CW142<0.5,\"\",'2011 Survey responses'!CW142)","v":4},{"$f":"IF('2011 Survey responses'!CX142<0.5,\"\",'2011 Survey responses'!CX142)","v":3},{"$f":"IF('2011 Survey responses'!CY142<0.5,\"\",'2011 Survey responses'!CY142)","v":4},{"$f":"IF('2011 Survey responses'!CZ142<0.5,\"\",'2011 Survey responses'!CZ142)","v":4},{"$f":"IF('2011 Survey responses'!DA142<0.5,\"\",'2011 Survey responses'!DA142)","v":4},{"$f":"IF('2011 Survey responses'!DB142<0.5,\"\",'2011 Survey responses'!DB142)","v":3},{"$f":"IF('2011 Survey responses'!DC142<0.5,\"\",'2011 Survey responses'!DC142)","v":4},{"$f":"IF('2011 Survey responses'!DD142<0.5,\"\",'2011 Survey responses'!DD142)","v":4},{"$f":"IF('2011 Survey responses'!DE142<0.5,\"\",'2011 Survey responses'!DE142)","v":3},{"$f":"IF('2011 Survey responses'!DF142<0.5,\"\",'2011 Survey responses'!DF142)","v":4},{"$f":"IF('2011 Survey responses'!DG142<0.5,\"\",'2011 Survey responses'!DG142)","v":5},{"$f":"IF('2011 Survey responses'!DH142<0.5,\"\",'2011 Survey responses'!DH142)","v":4},{"$f":"IF('2011 Survey responses'!DI142<0.5,\"\",'2011 Survey responses'!DI142)","v":4},{"$f":"IF('2011 Survey responses'!DJ142<0.5,\"\",'2011 Survey responses'!DJ142)","v":3},{"$f":"IF('2011 Survey responses'!DK142<0.5,\"\",'2011 Survey responses'!DK142)","v":4},{"$f":"IF('2011 Survey responses'!DL142<0.5,\"\",'2011 Survey responses'!DL142)","v":4},{"$f":"IF('2011 Survey responses'!DU142=4,4,IF('2011 Survey responses'!DU142=5,4,\"\"))","v":4},{"$f":"IF('2011 Survey responses'!DV142=4,3,IF('2011 Survey responses'!DV142=5,3,\"\"))","v":3},2,{"$f":"IF(CQ142=2,CQ142,IF(CO142=4,CO142,IF(CP142=3,CP142,IF('2011 Survey responses'!GT142=1,1,\"\"))))","v":2},{"$f":"IF('2011 Survey responses'!DO142<0.5,\"\",'2011 Survey responses'!DO142)","v":3},{"$f":"IF('2011 Survey responses'!DP142<0.5,\"\",'2011 Survey responses'!DP142)","v":5},{"$f":"IF('2011 Survey responses'!DQ142<0.5,\"\",'2011 Survey responses'!DQ142)","v":4},{"$f":"IF('2011 Survey responses'!DR142<0.5,\"\",'2011 Survey responses'!DR142)","v":5},{"$f":"IF('2011 Survey responses'!DS142<0.5,\"\",'2011 Survey responses'!DS142)","v":5},{"$f":"IF('2011 Survey responses'!DT142<0.5,\"\",'2011 Survey responses'!DT142)","v":4},{"$f":"IF('2011 Survey responses'!DU142<0.5,\"\",'2011 Survey responses'!DU142)","v":5},{"$f":"IF('2011 Survey responses'!DV142<0.5,\"\",'2011 Survey responses'!DV142)","v":4},{"$f":"IF('2011 Survey responses'!DW142<0.5,\"\",'2011 Survey responses'!DW142)","v":3},{"$f":"IF('2011 Survey responses'!DX142<0.5,\"\",'2011 Survey responses'!DX142)","v":3},{"$f":"IF('2011 Survey responses'!DY142<0.5,\"\",'2011 Survey responses'!DY142)","v":4},{"$f":"IF('2011 Survey responses'!DZ142<0.5,\"\",'2011 Survey responses'!DZ142)","v":4},{"$f":"IF('2011 Survey responses'!EA142<0.5,\"\",'2011 Survey responses'!EA142)","v":2},{"$f":"IF('2011 Survey responses'!EB142<0.5,\"\",'2011 Survey responses'!EB142)","v":4},{"$f":"IF('2011 Survey responses'!EC142<0.5,\"\",'2011 Survey responses'!EC142)","v":4},{"$f":"IF('2011 Survey responses'!ED142<0.5,\"\",'2011 Survey responses'!ED142)","v":4},{"$f":"IF('2011 Survey responses'!EE142<0.5,\"\",'2011 Survey responses'!EE142)","v":5},{"$f":"IF('2011 Survey responses'!EF142<0.5,\"\",'2011 Survey responses'!EF142)","v":4},{"$f":"IF('2011 Survey responses'!EG142<0.5,\"\",'2011 Survey responses'!EG142)","v":5},{"$f":"IF('2011 Survey responses'!EH142<0.5,\"\",'2011 Survey responses'!EH142)","v":4},{"$f":"IF('2011 Survey responses'!EI142<0.5,\"\",'2011 Survey responses'!EI142)","v":3},{"$f":"IF('2011 Survey responses'!EJ142<0.5,\"\",'2011 Survey responses'!EJ142)","v":3},{"$f":"IF('2011 Survey responses'!EK142<0.5,\"\",'2011 Survey responses'!EK142)","v":5},{"$f":"IF('2011 Survey responses'!EL142<0.5,\"\",'2011 Survey responses'!EL142)","v":5},{"$f":"IF('2011 Survey responses'!EM142<0.5,\"\",'2011 Survey responses'!EM142)","v":4},{"$f":"IF('2011 Survey responses'!EN142<0.5,\"\",'2011 Survey responses'!EN142)","v":4},{"$f":"IF('2011 Survey responses'!EO142<0.5,\"\",'2011 Survey responses'!EO142)","v":4},{"$f":"IF('2011 Survey responses'!EP142<0.5,\"\",'2011 Survey responses'!EP142)","v":4},{"$f":"IF(('2011 Survey responses'!EW142+'2011 Survey responses'!EX142)>=2,AVERAGE('2011 Survey responses'!EW142,'2011 Survey responses'!EY142),\"\")","v":5},{"$f":"IF('2011 Survey responses'!EX142<0.5,\"\",'2011 Survey responses'!EX142)","v":4},{"$f":"IF('2011 Survey responses'!EZ142<0.5,\"\",'2011 Survey responses'!EZ142)","v":5},{"$f":"IF('2011 Survey responses'!FB142<0.5,\"\",'2011 Survey responses'!FB142)","v":5},{"$f":"IF('2011 Survey responses'!FD142<0.5,\"\",'2011 Survey responses'!FD142)","v":4},{"$f":"IF('2011 Survey responses'!FC142<0.5,\"\",'2011 Survey responses'!FC142)","v":5},{"$f":"IF(('2011 Survey responses'!EM142+'2011 Survey responses'!EN142)>=2,AVERAGE('2011 Survey responses'!EM142,'2011 Survey responses'!EN142),\"\")","v":4},{"$f":"IF('2011 Survey responses'!ES142<0.5,\"\",'2011 Survey responses'!ES142)","v":4},{"$f":"IF(('2011 Survey responses'!ET142+'2011 Survey responses'!EU142)>=2,AVERAGE('2011 Survey responses'!ET142,'2011 Survey responses'!EU142),\"\")","v":4},{"$f":"IF('2011 Survey responses'!EV142<0.5,\"\",'2011 Survey responses'!EV142)","v":4},{"$f":"IF('2011 Survey responses'!FA142<0.5,\"\",'2011 Survey responses'!FA142)","v":5},{"$f":"IF('2011 Survey responses'!ER142<0.5,\"\",'2011 Survey responses'!ER142)","v":5},{"$f":"IF(('2011 Survey responses'!EO142+'2011 Survey responses'!EP142)>=2,AVERAGE('2011 Survey responses'!EO142,'2011 Survey responses'!EP142),\"\")","v":4},{"$f":"IF('2011 Survey responses'!EQ142<0.5,\"\",'2011 Survey responses'!EQ142)","v":3},{"$f":"IF('2011 Survey responses'!ET142<0.5,\"\",'2011 Survey responses'!ET142)","v":4},{"$f":"IF('2011 Survey responses'!EU142<0.5,\"\",'2011 Survey responses'!EU142)","v":4},{"$f":"IF('2011 Survey responses'!EW142<0.5,\"\",'2011 Survey responses'!EW142)","v":5},{"$f":"IF('2011 Survey responses'!EY142<0.5,\"\",'2011 Survey responses'!EY142)","v":5},{"$f":"IF('2011 Survey responses'!FU142<0.5,\"\",'2011 Survey responses'!FU142)","v":5},{"$f":"IF(('2011 Survey responses'!FL142+'2011 Survey responses'!FM142)>=2,AVERAGE('2011 Survey responses'!FL142,'2011 Survey responses'!FM142),\"\")","v":3},{"$f":"IF(('2011 Survey responses'!FO142+'2011 Survey responses'!FQ142)>=2,AVERAGE('2011 Survey responses'!FO142,'2011 Survey responses'!FQ142),\"\")","v":4},{"$f":"IF('2011 Survey responses'!FJ142<0.5,\"\",'2011 Survey responses'!FJ142)","v":5},{"$f":"IF('2011 Survey responses'!FT142<0.5,\"\",'2011 Survey responses'!FT142)","v":5},{"$f":"IF('2011 Survey responses'!FR142<0.5,\"\",'2011 Survey responses'!FR142)","v":4},{"$f":"IF('2011 Survey responses'!FK142<0.5,\"\",'2011 Survey responses'!FK142)","v":5},{"$f":"IF('2011 Survey responses'!FP142<0.5,\"\",'2011 Survey responses'!FP142)","v":4},{"$f":"IF('2011 Survey responses'!FN142<0.5,\"\",'2011 Survey responses'!FN142)","v":4},{"$f":"IF(('2011 Survey responses'!FE142+'2011 Survey responses'!FF142)>=2,AVERAGE('2011 Survey responses'!FE142,'2011 Survey responses'!FF142),\"\")","v":4},{"$f":"IF('2011 Survey responses'!FS142<0.5,\"\",'2011 Survey responses'!FS142)","v":4},{"$f":"IF('2011 Survey responses'!FV142<0.5,\"\",'2011 Survey responses'!FV142)","v":4},{"$f":"IF(('2011 Survey responses'!FG142+'2011 Survey responses'!FH142)>=2,AVERAGE('2011 Survey responses'!FG142,'2011 Survey responses'!FH142),\"\")","v":5},{"$f":"IF('2011 Survey responses'!FI142<0.5,\"\",'2011 Survey responses'!FI142)","v":4},{"$f":"IF('2011 Survey responses'!FE142<0.5,\"\",'2011 Survey responses'!FE142)","v":4},{"$f":"IF('2011 Survey responses'!FF142<0.5,\"\",'2011 Survey responses'!FF142)","v":4},{"$f":"IF('2011 Survey responses'!FG142<0.5,\"\",'2011 Survey responses'!FG142)","v":5},{"$f":"IF('2011 Survey responses'!FH142<0.5,\"\",'2011 Survey responses'!FH142)","v":5},{"$f":"IF('2011 Survey responses'!FL142<0.5,\"\",'2011 Survey responses'!FL142)","v":4},{"$f":"IF('2011 Survey responses'!FM142<0.5,\"\",'2011 Survey responses'!FM142)","v":2},{"$f":"IF('2011 Survey responses'!FO142<0.5,\"\",'2011 Survey responses'!FO142)","v":4},{"$f":"IF('2011 Survey responses'!FQ142<0.5,\"\",'2011 Survey responses'!FQ142)","v":4}]
["Russian Federation",{"$f":"IF(SUM(F143)<1,\"\",AVERAGEIF('2011 Survey responses'!B143:CP143,\">1\"))","v":4.2},{"$f":"IF(SUM(F143)<1,\"\",AVERAGEIF('2011 Survey responses'!B143:AO143,\">1\"))","v":4.4230769230769234},{"$f":"IF(SUM(F143)<1,\"\",AVERAGEIF('2011 Survey responses'!B143:BV143,\">1\"))","v":4.1304347826086953},{"$f":"IF(SUM(F143)<1,\"\",AVERAGEIF('2011 Survey responses'!V143:BV143,\">1\"))","v":4.0263157894736841},{"$f":"IF(SUM('2011 Survey responses'!B143:U143)<1,\"\",(AVERAGEIFS('2011 Survey responses'!B143:U143,'2011 Survey responses'!B143:U143,\">1\")))","v":4.625},{"$f":"IF(SUM('2011 Survey responses'!B143:H143)<1,\"\",(AVERAGEIFS('2011 Survey responses'!B143:H143,'2011 Survey responses'!B143:H143,\">1\")))","v":4.5714285714285712},{"$f":"IF(SUM('2011 Survey responses'!I143:S143)<1,\"\",(AVERAGEIFS('2011 Survey responses'!I143:S143,'2011 Survey responses'!I143:S143,\">1\")))","v":""},{"$f":"IF(SUM('2011 Survey responses'!T143:U143)<2.1,\"\",(AVERAGEIFS('2011 Survey responses'!T143:U143,'2011 Survey responses'!T143:U143,\">1\")))","v":5},{"$f":"IF(SUM('2011 Survey responses'!B143:C143)<2.1,\"\",((SUMIF('2011 Survey responses'!B143:C143,\">1\")+SUMIF('2011 Survey responses'!F143,\">1\"))/(COUNTIF('2011 Survey responses'!B143:C143,\">1\")+COUNTIF('2011 Survey responses'!F143,\">1\"))))","v":5},{"$f":"IF(SUM('2011 Survey responses'!D143:E143)<2.1,\"\",(AVERAGEIFS('2011 Survey responses'!D143:E143,'2011 Survey responses'!D143:E143,\">1\")))","v":5},{"$f":"IF(('2011 Survey responses'!B143+'2011 Survey responses'!D143)<2.1,\"\",((SUMIF('2011 Survey responses'!B143,\">1\")+SUMIF('2011 Survey responses'!D143,\">1\")+SUMIF('2011 Survey responses'!F143,\">1\")+SUMIF('2011 Survey responses'!K143,\">1\"))/(COUNTIF('2011 Survey responses'!B143,\">1\")+COUNTIF('2011 Survey responses'!D143,\">1\")+COUNTIF('2011 Survey responses'!F143,\">1\")+COUNTIF('2011 Survey responses'!K143,\">1\"))))","v":5},{"$f":"IF(SUM('2011 Survey responses'!G143:H143)<2.1,\"\",(AVERAGEIFS('2011 Survey responses'!G143:H143,'2011 Survey responses'!G143:H143,\">1\")))","v":3.5},{"$f":"IF(SUM('2011 Survey responses'!F143:G143)<1.5,\"\",MAX('2011 Survey responses'!F143,'2011 Survey responses'!G143))","v":5},{"$f":"IF(SUM('2011 Survey responses'!G143:H143)<1,\"\",MAX('2011 Survey responses'!G143,'2011 Survey responses'!H143))","v":5},{"$f":"IF(SUM('2011 Survey responses'!I143:L143)<4.1,\"\",(AVERAGEIFS('2011 Survey responses'!I143:L143,'2011 Survey responses'!I143:L143,\">1\")))","v":""},{"$f":"IF(SUM('2011 Survey responses'!M143:S143)<4.1,\"\",(AVERAGEIFS('2011 Survey responses'!M143:S143,'2011 Survey responses'!M143:S143,\">1\")))","v":""},{"$f":"IF(SUM('2011 Survey responses'!T143:U143)<2.1,\"\",(AVERAGEIFS('2011 Survey responses'!T143:U143,'2011 Survey responses'!T143:U143,\">1\")))","v":5},{"$f":"IF(SUM('2011 Survey responses'!V143:AO143)<1,\"\",(AVERAGEIFS('2011 Survey responses'!V143:AO143,'2011 Survey responses'!V143:AO143,\">1\")))","v":4.333333333333333},{"$f":"IF(SUM('2011 Survey responses'!V143:AA143)<1,\"\",(AVERAGEIFS('2011 Survey responses'!V143:AA143,'2011 Survey responses'!V143:AA143,\">1\")))","v":5},{"$f":"IF(SUM('2011 Survey responses'!AB143:AH143)<1,\"\",(AVERAGEIFS('2011 Survey responses'!AB143:AH143,'2011 Survey responses'!AB143:AH143,\">1\")))","v":5},{"$f":"IF(SUM('2011 Survey responses'!AI143:AO143)<1,\"\",(AVERAGEIFS('2011 Survey responses'!AI143:AO143,'2011 Survey responses'!AI143:AO143,\">1\")))","v":3.2857142857142856},{"$f":"IF(('2011 Survey responses'!Y143+'2011 Survey responses'!AI143+'2011 Survey responses'!AK143)<3.1,\"\",((SUMIF('2011 Survey responses'!Y143,\">1\")+SUMIF('2011 Survey responses'!AI143,\">1\")+SUMIF('2011 Survey responses'!AK143,\">1\")+SUMIF('2011 Survey responses'!AM143,\">1\"))/(COUNTIF('2011 Survey responses'!Y143,\">1\")+COUNTIF('2011 Survey responses'!AI143,\">1\")+COUNTIF('2011 Survey responses'!AK143,\">1\")+COUNTIF('2011 Survey responses'!AM143,\">1\"))))","v":3.5},{"$f":"IF(('2011 Survey responses'!W143)<1.1,\"\",('2011 Survey responses'!W143))","v":""},{"$f":"IF(('2011 Survey responses'!Y143)<1.1,\"\",('2011 Survey responses'!Y143))","v":5},{"$f":"IF(('2011 Survey responses'!Z143)<1.1,\"\",('2011 Survey responses'!Z143))","v":5},{"$f":"IF(('2011 Survey responses'!V143+'2011 Survey responses'!X143+'2011 Survey responses'!AA143)<3.1,\"\",((SUMIF('2011 Survey responses'!V143,\">1\")+SUMIF('2011 Survey responses'!X143,\">1\")+SUMIF('2011 Survey responses'!AA143,\">1\"))/(COUNTIF('2011 Survey responses'!V143,\">1\")+COUNTIF('2011 Survey responses'!X143,\">1\")+COUNTIF('2011 Survey responses'!AA143,\">1\"))))","v":5},{"$f":"IF(('2011 Survey responses'!V143+'2011 Survey responses'!Y143+'2011 Survey responses'!AA143)<3.1,\"\",((SUMIF('2011 Survey responses'!V143,\">1\")+SUMIF('2011 Survey responses'!Y143,\">1\")+SUMIF('2011 Survey responses'!AA143,\">1\"))/(COUNTIF('2011 Survey responses'!V143,\">1\")+COUNTIF('2011 Survey responses'!Y143,\">1\")+COUNTIF('2011 Survey responses'!AA143,\">1\"))))","v":5},{"$f":"IF(SUM('2011 Survey responses'!AB143:AH143)<1,\"\",(AVERAGEIFS('2011 Survey responses'!AB143:AH143,'2011 Survey responses'!AB143:AH143,\">1\")))","v":5},{"$f":"IF(SUM('2011 Survey responses'!AI143:AO143)<7.1,\"\",(AVERAGEIFS('2011 Survey responses'!AI143:AO143,'2011 Survey responses'!AI143:AO143,\">1\")))","v":3.2857142857142856},{"$f":"IF(('2011 Survey responses'!AH143)<1.1,\"\",('2011 Survey responses'!AH143))","v":""},{"$f":"IF(SUM('2011 Survey responses'!AP143:BV143)<1,\"\",(AVERAGEIFS('2011 Survey responses'!AP143:BV143,'2011 Survey responses'!AP143:BV143,\">1\")))","v":3.75},{"$f":"IF(SUM('2011 Survey responses'!AP143:AS143)<4.1,\"\",(AVERAGEIFS('2011 Survey responses'!AP143:AS143,'2011 Survey responses'!AP143:AS143,\">1\")))","v":2},{"$f":"IF(SUM('2011 Survey responses'!AT143:BF143)<1,\"\",(AVERAGEIFS('2011 Survey responses'!AT143:BF143,'2011 Survey responses'!AT143:BF143,\">1\")))","v":3.125},{"$f":"IF(SUM('2011 Survey responses'!BG143:BO143)<1,\"\",(AVERAGEIFS('2011 Survey responses'!BG143:BO143,'2011 Survey responses'!BG143:BO143,\">1\")))","v":4.833333333333333},{"$f":"IF(SUM('2011 Survey responses'!BP143:BS143)<1,\"\",(AVERAGEIFS('2011 Survey responses'!BP143:BS143,'2011 Survey responses'!BP143:BS143,\">1\")))","v":5},{"$f":"IF(SUM('2011 Survey responses'!BT143:BV143)<3.1,\"\",(AVERAGEIFS('2011 Survey responses'!BT143:BV143,'2011 Survey responses'!BT143:BV143,\">1\")))","v":5},{"$f":"IF(('2011 Survey responses'!AQ143+'2011 Survey responses'!AR143+'2011 Survey responses'!BG143)<3.1,\"\",((SUMIF('2011 Survey responses'!AQ143,\">1\")+SUMIF('2011 Survey responses'!AR143,\">1\")+SUMIF('2011 Survey responses'!BG143,\">1\"))/(COUNTIF('2011 Survey responses'!AQ143,\">1\")+COUNTIF('2011 Survey responses'!AR143,\">1\")+COUNTIF('2011 Survey responses'!BG143,\">1\"))))","v":3},{"$f":"IF(SUM('2011 Survey responses'!AP143:AS143)<4.1,\"\",(AVERAGEIFS('2011 Survey responses'!AP143:AS143,'2011 Survey responses'!AP143:AS143,\">1\")))","v":2},{"$f":"IF(('2011 Survey responses'!AU143+'2011 Survey responses'!AX143+'2011 Survey responses'!BA143+'2011 Survey responses'!BC143+'2011 Survey responses'!BD143)<5.1,\"\",(SUMIF('2011 Survey responses'!AU143,\">1\")+SUMIF('2011 Survey responses'!AX143,\">1\")+SUMIF('2011 Survey responses'!BA143,\">1\")+SUMIF('2011 Survey responses'!BC143,\">1\")+SUMIF('2011 Survey responses'!BD143,\">1\"))/(COUNTIF('2011 Survey responses'!AU143,\">1\")+COUNTIF('2011 Survey responses'!AX143,\">1\")+COUNTIF('2011 Survey responses'!BA143,\">1\")+COUNTIF('2011 Survey responses'!BC143,\">1\")+COUNTIF('2011 Survey responses'!BD143,\">1\")))","v":3.5},{"$f":"IF(('2011 Survey responses'!AT143)<1.1,\"\",('2011 Survey responses'!AT143))","v":""},{"$f":"IF(SUM('2011 Survey responses'!AV143:AW143)<2.1,\"\",(AVERAGEIFS('2011 Survey responses'!AV143:AW143,'2011 Survey responses'!AV143:AW143,\">1\")))","v":""},{"$f":"IF(('2011 Survey responses'!AW143+'2011 Survey responses'!AY143)<2.1,\"\",(SUMIF('2011 Survey responses'!AW143,\">1\")+SUMIF('2011 Survey responses'!AY143,\">1\"))/(COUNTIF('2011 Survey responses'!AW143,\">1\")+COUNTIF('2011 Survey responses'!AY143,\">1\")))","v":2},{"$f":"IF(('2011 Survey responses'!AZ143)<1.1,\"\",('2011 Survey responses'!AZ143))","v":2},null,null,null,null,{"$f":"IF(('2011 Survey responses'!BE143)<1.1,\"\",('2011 Survey responses'!BE143))","v":5},{"$f":"IF(('2011 Survey responses'!AY143+'2011 Survey responses'!BB143+'2011 Survey responses'!BF143)<3.1,\"\",(SUMIF('2011 Survey responses'!AY143,\">1\")+SUMIF('2011 Survey responses'!BB143,\">1\")+SUMIF('2011 Survey responses'!BF143,\">1\"))/(COUNTIF('2011 Survey responses'!AY143,\">1\")+COUNTIF('2011 Survey responses'!BB143,\">1\")+COUNTIF('2011 Survey responses'!BF143,\">1\")))","v":3},4.9166666666666661,{"$f":"IF(SUM('2011 Survey responses'!BT143:BV143)<3.1,\"\",(AVERAGEIFS('2011 Survey responses'!BT143:BV143,'2011 Survey responses'!BT143:BV143,\">1\")))","v":5},{"$f":"IF(SUM('2011 Survey responses'!BW143:CP143)<1,\"\",(AVERAGEIFS('2011 Survey responses'!BW143:CP143,'2011 Survey responses'!BW143:CP143,\">1\")))","v":5},{"$f":"IF(SUM('2011 Survey responses'!BW143:CF143)<1,\"\",(AVERAGEIFS('2011 Survey responses'!BW143:CF143,'2011 Survey responses'!BW143:CF143,\">1\")))","v":5},{"$f":"IF(SUM('2011 Survey responses'!CG143:CP143)<1,\"\",(AVERAGEIFS('2011 Survey responses'!CG143:CP143,'2011 Survey responses'!CG143:CP143,\">1\")))","v":5},{"$f":"IF(SUM('2011 Survey responses'!BX143:CF143)<1,\"\",(AVERAGEIFS('2011 Survey responses'!BX143:CF143,'2011 Survey responses'!BX143:CF143,\">1\")))","v":5},{"$f":"IF(SUM('2011 Survey responses'!CH143:CP143)<1,\"\",(AVERAGEIFS('2011 Survey responses'!CH143:CP143,'2011 Survey responses'!CH143:CP143,\">1\")))","v":5},{"$f":"IF(SUM('2011 Survey responses'!BW143:CP143)<1,\"\",(AVERAGEIFS('2011 Survey responses'!BW143:CP143,'2011 Survey responses'!BW143:CP143,\">1\")))","v":5},{"$f":"IF(('2011 Survey responses'!BW143+'2011 Survey responses'!CG143)<2.1,\"\",(SUMIF('2011 Survey responses'!BW143,\">1\")+SUMIF('2011 Survey responses'!CG143,\">1\"))/(COUNTIF('2011 Survey responses'!BW143,\">1\")+COUNTIF('2011 Survey responses'!CG143,\">1\")))","v":5},{"$f":"IF(('2011 Survey responses'!BX143+'2011 Survey responses'!CH143)<2.1,\"\",(SUMIF('2011 Survey responses'!BX143,\">1\")+SUMIF('2011 Survey responses'!CH143,\">1\"))/(COUNTIF('2011 Survey responses'!BX143,\">1\")+COUNTIF('2011 Survey responses'!CH143,\">1\")))","v":""},{"$f":"IF(('2011 Survey responses'!BY143+'2011 Survey responses'!CI143)<2.1,\"\",(SUMIF('2011 Survey responses'!BY143,\">1\")+SUMIF('2011 Survey responses'!CI143,\">1\"))/(COUNTIF('2011 Survey responses'!BY143,\">1\")+COUNTIF('2011 Survey responses'!CI143,\">1\")))","v":""},{"$f":"IF('2011 Survey responses'!CQ143<0.5,\"\",'2011 Survey responses'!CQ143)","v":4},{"$f":"IF('2011 Survey responses'!CR143<0.5,\"\",'2011 Survey responses'!CR143)","v":""},{"$f":"IF('2011 Survey responses'!CS143<0.5,\"\",'2011 Survey responses'!CS143)","v":""},{"$f":"IF('2011 Survey responses'!CT143<0.5,\"\",'2011 Survey responses'!CT143)","v":""},{"$f":"IF('2011 Survey responses'!CU143<0.5,\"\",'2011 Survey responses'!CU143)","v":4},{"$f":"IF('2011 Survey responses'!CV143<0.5,\"\",'2011 Survey responses'!CV143)","v":""},{"$f":"IF(SUM('2011 Survey responses'!CW143:DL143)<1,\"\",(AVERAGE('2011 Survey responses'!CW143:DL143)))","v":""},{"$f":"IF(SUM('2011 Survey responses'!CW143:CZ143)<1,\"\",(AVERAGE('2011 Survey responses'!CW143:CZ143)))","v":""},{"$f":"IF(SUM('2011 Survey responses'!DA143:DD143)<1,\"\",(AVERAGE('2011 Survey responses'!DA143:DD143)))","v":""},{"$f":"IF(SUM('2011 Survey responses'!DE143:DH143)<1,\"\",(AVERAGE('2011 Survey responses'!DE143:DH143)))","v":""},{"$f":"IF(SUM('2011 Survey responses'!DI143:DL143)<1,\"\",(AVERAGE('2011 Survey responses'!DI143:DL143)))","v":""},{"$f":"IF(('2011 Survey responses'!CW143+'2011 Survey responses'!DA143+'2011 Survey responses'!DE143+'2011 Survey responses'!DI143)<1,\"\",AVERAGE('2011 Survey responses'!CW143,'2011 Survey responses'!DA143,'2011 Survey responses'!DE143,'2011 Survey responses'!DI143))","v":""},{"$f":"IF(('2011 Survey responses'!CX143+'2011 Survey responses'!DB143+'2011 Survey responses'!DF143+'2011 Survey responses'!DJ143)<1,\"\",AVERAGE('2011 Survey responses'!CX143,'2011 Survey responses'!DB143,'2011 Survey responses'!DF143,'2011 Survey responses'!DJ143))","v":""},{"$f":"IF(('2011 Survey responses'!CY143+'2011 Survey responses'!DC143+'2011 Survey responses'!DG143+'2011 Survey responses'!DK143)<1,\"\",AVERAGE('2011 Survey responses'!CY143,'2011 Survey responses'!DC143,'2011 Survey responses'!DG143,'2011 Survey responses'!DK143))","v":""},{"$f":"IF(('2011 Survey responses'!CZ143+'2011 Survey responses'!DD143+'2011 Survey responses'!DH143+'2011 Survey responses'!DL143)<1,\"\",AVERAGE('2011 Survey responses'!CZ143,'2011 Survey responses'!DD143,'2011 Survey responses'!DH143,'2011 Survey responses'!DL143))","v":""},{"$f":"IF('2011 Survey responses'!CW143<0.5,\"\",'2011 Survey responses'!CW143)","v":""},{"$f":"IF('2011 Survey responses'!CX143<0.5,\"\",'2011 Survey responses'!CX143)","v":""},{"$f":"IF('2011 Survey responses'!CY143<0.5,\"\",'2011 Survey responses'!CY143)","v":""},{"$f":"IF('2011 Survey responses'!CZ143<0.5,\"\",'2011 Survey responses'!CZ143)","v":""},{"$f":"IF('2011 Survey responses'!DA143<0.5,\"\",'2011 Survey responses'!DA143)","v":""},{"$f":"IF('2011 Survey responses'!DB143<0.5,\"\",'2011 Survey responses'!DB143)","v":""},{"$f":"IF('2011 Survey responses'!DC143<0.5,\"\",'2011 Survey responses'!DC143)","v":""},{"$f":"IF('2011 Survey responses'!DD143<0.5,\"\",'2011 Survey responses'!DD143)","v":""},{"$f":"IF('2011 Survey responses'!DE143<0.5,\"\",'2011 Survey responses'!DE143)","v":""},{"$f":"IF('2011 Survey responses'!DF143<0.5,\"\",'2011 Survey responses'!DF143)","v":""},{"$f":"IF('2011 Survey responses'!DG143<0.5,\"\",'2011 Survey responses'!DG143)","v":""},{"$f":"IF('2011 Survey responses'!DH143<0.5,\"\",'2011 Survey responses'!DH143)","v":""},{"$f":"IF('2011 Survey responses'!DI143<0.5,\"\",'2011 Survey responses'!DI143)","v":""},{"$f":"IF('2011 Survey responses'!DJ143<0.5,\"\",'2011 Survey responses'!DJ143)","v":""},{"$f":"IF('2011 Survey responses'!DK143<0.5,\"\",'2011 Survey responses'!DK143)","v":""},{"$f":"IF('2011 Survey responses'!DL143<0.5,\"\",'2011 Survey responses'!DL143)","v":""},{"$f":"IF('2011 Survey responses'!DU143=4,4,IF('2011 Survey responses'!DU143=5,4,\"\"))","v":4},{"$f":"IF('2011 Survey responses'!DV143=4,3,IF('2011 Survey responses'!DV143=5,3,\"\"))","v":""},"",{"$f":"IF(CQ143=2,CQ143,IF(CO143=4,CO143,IF(CP143=3,CP143,IF('2011 Survey responses'!GT143=1,1,\"\"))))","v":4},{"$f":"IF('2011 Survey responses'!DO143<0.5,\"\",'2011 Survey responses'!DO143)","v":3},{"$f":"IF('2011 Survey responses'!DP143<0.5,\"\",'2011 Survey responses'!DP143)","v":4},{"$f":"IF('2011 Survey responses'!DQ143<0.5,\"\",'2011 Survey responses'!DQ143)","v":1},{"$f":"IF('2011 Survey responses'!DR143<0.5,\"\",'2011 Survey responses'!DR143)","v":2},{"$f":"IF('2011 Survey responses'!DS143<0.5,\"\",'2011 Survey responses'!DS143)","v":3},{"$f":"IF('2011 Survey responses'!DT143<0.5,\"\",'2011 Survey responses'!DT143)","v":4},{"$f":"IF('2011 Survey responses'!DU143<0.5,\"\",'2011 Survey responses'!DU143)","v":4},{"$f":"IF('2011 Survey responses'!DV143<0.5,\"\",'2011 Survey responses'!DV143)","v":3},{"$f":"IF('2011 Survey responses'!DW143<0.5,\"\",'2011 Survey responses'!DW143)","v":3},{"$f":"IF('2011 Survey responses'!DX143<0.5,\"\",'2011 Survey responses'!DX143)","v":""},{"$f":"IF('2011 Survey responses'!DY143<0.5,\"\",'2011 Survey responses'!DY143)","v":5},{"$f":"IF('2011 Survey responses'!DZ143<0.5,\"\",'2011 Survey responses'!DZ143)","v":""},{"$f":"IF('2011 Survey responses'!EA143<0.5,\"\",'2011 Survey responses'!EA143)","v":""},{"$f":"IF('2011 Survey responses'!EB143<0.5,\"\",'2011 Survey responses'!EB143)","v":""},{"$f":"IF('2011 Survey responses'!EC143<0.5,\"\",'2011 Survey responses'!EC143)","v":""},{"$f":"IF('2011 Survey responses'!ED143<0.5,\"\",'2011 Survey responses'!ED143)","v":""},{"$f":"IF('2011 Survey responses'!EE143<0.5,\"\",'2011 Survey responses'!EE143)","v":""},{"$f":"IF('2011 Survey responses'!EF143<0.5,\"\",'2011 Survey responses'!EF143)","v":""},{"$f":"IF('2011 Survey responses'!EG143<0.5,\"\",'2011 Survey responses'!EG143)","v":2},{"$f":"IF('2011 Survey responses'!EH143<0.5,\"\",'2011 Survey responses'!EH143)","v":1},{"$f":"IF('2011 Survey responses'!EI143<0.5,\"\",'2011 Survey responses'!EI143)","v":3},{"$f":"IF('2011 Survey responses'!EJ143<0.5,\"\",'2011 Survey responses'!EJ143)","v":""},{"$f":"IF('2011 Survey responses'!EK143<0.5,\"\",'2011 Survey responses'!EK143)","v":5},{"$f":"IF('2011 Survey responses'!EL143<0.5,\"\",'2011 Survey responses'!EL143)","v":""},{"$f":"IF('2011 Survey responses'!EM143<0.5,\"\",'2011 Survey responses'!EM143)","v":4},{"$f":"IF('2011 Survey responses'!EN143<0.5,\"\",'2011 Survey responses'!EN143)","v":4},{"$f":"IF('2011 Survey responses'!EO143<0.5,\"\",'2011 Survey responses'!EO143)","v":4},{"$f":"IF('2011 Survey responses'!EP143<0.5,\"\",'2011 Survey responses'!EP143)","v":""},{"$f":"IF(('2011 Survey responses'!EW143+'2011 Survey responses'!EX143)>=2,AVERAGE('2011 Survey responses'!EW143,'2011 Survey responses'!EY143),\"\")","v":4},{"$f":"IF('2011 Survey responses'!EX143<0.5,\"\",'2011 Survey responses'!EX143)","v":4},{"$f":"IF('2011 Survey responses'!EZ143<0.5,\"\",'2011 Survey responses'!EZ143)","v":4},{"$f":"IF('2011 Survey responses'!FB143<0.5,\"\",'2011 Survey responses'!FB143)","v":4},{"$f":"IF('2011 Survey responses'!FD143<0.5,\"\",'2011 Survey responses'!FD143)","v":4},{"$f":"IF('2011 Survey responses'!FC143<0.5,\"\",'2011 Survey responses'!FC143)","v":""},{"$f":"IF(('2011 Survey responses'!EM143+'2011 Survey responses'!EN143)>=2,AVERAGE('2011 Survey responses'!EM143,'2011 Survey responses'!EN143),\"\")","v":4},{"$f":"IF('2011 Survey responses'!ES143<0.5,\"\",'2011 Survey responses'!ES143)","v":4},{"$f":"IF(('2011 Survey responses'!ET143+'2011 Survey responses'!EU143)>=2,AVERAGE('2011 Survey responses'!ET143,'2011 Survey responses'!EU143),\"\")","v":4},{"$f":"IF('2011 Survey responses'!EV143<0.5,\"\",'2011 Survey responses'!EV143)","v":""},{"$f":"IF('2011 Survey responses'!FA143<0.5,\"\",'2011 Survey responses'!FA143)","v":4},{"$f":"IF('2011 Survey responses'!ER143<0.5,\"\",'2011 Survey responses'!ER143)","v":4},{"$f":"IF(('2011 Survey responses'!EO143+'2011 Survey responses'!EP143)>=2,AVERAGE('2011 Survey responses'!EO143,'2011 Survey responses'!EP143),\"\")","v":4},{"$f":"IF('2011 Survey responses'!EQ143<0.5,\"\",'2011 Survey responses'!EQ143)","v":""},{"$f":"IF('2011 Survey responses'!ET143<0.5,\"\",'2011 Survey responses'!ET143)","v":4},{"$f":"IF('2011 Survey responses'!EU143<0.5,\"\",'2011 Survey responses'!EU143)","v":""},{"$f":"IF('2011 Survey responses'!EW143<0.5,\"\",'2011 Survey responses'!EW143)","v":""},{"$f":"IF('2011 Survey responses'!EY143<0.5,\"\",'2011 Survey responses'!EY143)","v":4},{"$f":"IF('2011 Survey responses'!FU143<0.5,\"\",'2011 Survey responses'!FU143)","v":""},{"$f":"IF(('2011 Survey responses'!FL143+'2011 Survey responses'!FM143)>=2,AVERAGE('2011 Survey responses'!FL143,'2011 Survey responses'!FM143),\"\")","v":""},{"$f":"IF(('2011 Survey responses'!FO143+'2011 Survey responses'!FQ143)>=2,AVERAGE('2011 Survey responses'!FO143,'2011 Survey responses'!FQ143),\"\")","v":""},{"$f":"IF('2011 Survey responses'!FJ143<0.5,\"\",'2011 Survey responses'!FJ143)","v":""},{"$f":"IF('2011 Survey responses'!FT143<0.5,\"\",'2011 Survey responses'!FT143)","v":1},{"$f":"IF('2011 Survey responses'!FR143<0.5,\"\",'2011 Survey responses'!FR143)","v":4},{"$f":"IF('2011 Survey responses'!FK143<0.5,\"\",'2011 Survey responses'!FK143)","v":""},{"$f":"IF('2011 Survey responses'!FP143<0.5,\"\",'2011 Survey responses'!FP143)","v":""},{"$f":"IF('2011 Survey responses'!FN143<0.5,\"\",'2011 Survey responses'!FN143)","v":""},{"$f":"IF(('2011 Survey responses'!FE143+'2011 Survey responses'!FF143)>=2,AVERAGE('2011 Survey responses'!FE143,'2011 Survey responses'!FF143),\"\")","v":""},{"$f":"IF('2011 Survey responses'!FS143<0.5,\"\",'2011 Survey responses'!FS143)","v":2},{"$f":"IF('2011 Survey responses'!FV143<0.5,\"\",'2011 Survey responses'!FV143)","v":2},{"$f":"IF(('2011 Survey responses'!FG143+'2011 Survey responses'!FH143)>=2,AVERAGE('2011 Survey responses'!FG143,'2011 Survey responses'!FH143),\"\")","v":5},{"$f":"IF('2011 Survey responses'!FI143<0.5,\"\",'2011 Survey responses'!FI143)","v":""},{"$f":"IF('2011 Survey responses'!FE143<0.5,\"\",'2011 Survey responses'!FE143)","v":""},{"$f":"IF('2011 Survey responses'!FF143<0.5,\"\",'2011 Survey responses'!FF143)","v":""},{"$f":"IF('2011 Survey responses'!FG143<0.5,\"\",'2011 Survey responses'!FG143)","v":5},{"$f":"IF('2011 Survey responses'!FH143<0.5,\"\",'2011 Survey responses'!FH143)","v":""},{"$f":"IF('2011 Survey responses'!FL143<0.5,\"\",'2011 Survey responses'!FL143)","v":""},{"$f":"IF('2011 Survey responses'!FM143<0.5,\"\",'2011 Survey responses'!FM143)","v":""},{"$f":"IF('2011 Survey responses'!FO143<0.5,\"\",'2011 Survey responses'!FO143)","v":""},{"$f":"IF('2011 Survey responses'!FQ143<0.5,\"\",'2011 Survey responses'!FQ143)","v":""}]
["Rwanda",{"$f":"IF(SUM(F144)<1,\"\",AVERAGEIF('2011 Survey responses'!B144:CP144,\">1\"))","v":3.4545454545454546},{"$f":"IF(SUM(F144)<1,\"\",AVERAGEIF('2011 Survey responses'!B144:AO144,\">1\"))","v":3.4594594594594597},{"$f":"IF(SUM(F144)<1,\"\",AVERAGEIF('2011 Survey responses'!B144:BV144,\">1\"))","v":3.2857142857142856},{"$f":"IF(SUM(F144)<1,\"\",AVERAGEIF('2011 Survey responses'!V144:BV144,\">1\"))","v":3.0754716981132075},{"$f":"IF(SUM('2011 Survey responses'!B144:U144)<1,\"\",(AVERAGEIFS('2011 Survey responses'!B144:U144,'2011 Survey responses'!B144:U144,\">1\")))","v":3.9411764705882355},{"$f":"IF(SUM('2011 Survey responses'!B144:H144)<1,\"\",(AVERAGEIFS('2011 Survey responses'!B144:H144,'2011 Survey responses'!B144:H144,\">1\")))","v":3.25},{"$f":"IF(SUM('2011 Survey responses'!I144:S144)<1,\"\",(AVERAGEIFS('2011 Survey responses'!I144:S144,'2011 Survey responses'!I144:S144,\">1\")))","v":4},{"$f":"IF(SUM('2011 Survey responses'!T144:U144)<2.1,\"\",(AVERAGEIFS('2011 Survey responses'!T144:U144,'2011 Survey responses'!T144:U144,\">1\")))","v":5},{"$f":"IF(SUM('2011 Survey responses'!B144:C144)<2.1,\"\",((SUMIF('2011 Survey responses'!B144:C144,\">1\")+SUMIF('2011 Survey responses'!F144,\">1\"))/(COUNTIF('2011 Survey responses'!B144:C144,\">1\")+COUNTIF('2011 Survey responses'!F144,\">1\"))))","v":3},{"$f":"IF(SUM('2011 Survey responses'!D144:E144)<2.1,\"\",(AVERAGEIFS('2011 Survey responses'!D144:E144,'2011 Survey responses'!D144:E144,\">1\")))","v":4},{"$f":"IF(('2011 Survey responses'!B144+'2011 Survey responses'!D144)<2.1,\"\",((SUMIF('2011 Survey responses'!B144,\">1\")+SUMIF('2011 Survey responses'!D144,\">1\")+SUMIF('2011 Survey responses'!F144,\">1\")+SUMIF('2011 Survey responses'!K144,\">1\"))/(COUNTIF('2011 Survey responses'!B144,\">1\")+COUNTIF('2011 Survey responses'!D144,\">1\")+COUNTIF('2011 Survey responses'!F144,\">1\")+COUNTIF('2011 Survey responses'!K144,\">1\"))))","v":3.75},{"$f":"IF(SUM('2011 Survey responses'!G144:H144)<2.1,\"\",(AVERAGEIFS('2011 Survey responses'!G144:H144,'2011 Survey responses'!G144:H144,\">1\")))","v":3},{"$f":"IF(SUM('2011 Survey responses'!F144:G144)<1.5,\"\",MAX('2011 Survey responses'!F144,'2011 Survey responses'!G144))","v":3},{"$f":"IF(SUM('2011 Survey responses'!G144:H144)<1,\"\",MAX('2011 Survey responses'!G144,'2011 Survey responses'!H144))","v":3},{"$f":"IF(SUM('2011 Survey responses'!I144:L144)<4.1,\"\",(AVERAGEIFS('2011 Survey responses'!I144:L144,'2011 Survey responses'!I144:L144,\">1\")))","v":4.75},{"$f":"IF(SUM('2011 Survey responses'!M144:S144)<4.1,\"\",(AVERAGEIFS('2011 Survey responses'!M144:S144,'2011 Survey responses'!M144:S144,\">1\")))","v":3.5714285714285716},{"$f":"IF(SUM('2011 Survey responses'!T144:U144)<2.1,\"\",(AVERAGEIFS('2011 Survey responses'!T144:U144,'2011 Survey responses'!T144:U144,\">1\")))","v":5},{"$f":"IF(SUM('2011 Survey responses'!V144:AO144)<1,\"\",(AVERAGEIFS('2011 Survey responses'!V144:AO144,'2011 Survey responses'!V144:AO144,\">1\")))","v":3.05},{"$f":"IF(SUM('2011 Survey responses'!V144:AA144)<1,\"\",(AVERAGEIFS('2011 Survey responses'!V144:AA144,'2011 Survey responses'!V144:AA144,\">1\")))","v":2.6666666666666665},{"$f":"IF(SUM('2011 Survey responses'!AB144:AH144)<1,\"\",(AVERAGEIFS('2011 Survey responses'!AB144:AH144,'2011 Survey responses'!AB144:AH144,\">1\")))","v":3.2857142857142856},{"$f":"IF(SUM('2011 Survey responses'!AI144:AO144)<1,\"\",(AVERAGEIFS('2011 Survey responses'!AI144:AO144,'2011 Survey responses'!AI144:AO144,\">1\")))","v":3.1428571428571428},{"$f":"IF(('2011 Survey responses'!Y144+'2011 Survey responses'!AI144+'2011 Survey responses'!AK144)<3.1,\"\",((SUMIF('2011 Survey responses'!Y144,\">1\")+SUMIF('2011 Survey responses'!AI144,\">1\")+SUMIF('2011 Survey responses'!AK144,\">1\")+SUMIF('2011 Survey responses'!AM144,\">1\"))/(COUNTIF('2011 Survey responses'!Y144,\">1\")+COUNTIF('2011 Survey responses'!AI144,\">1\")+COUNTIF('2011 Survey responses'!AK144,\">1\")+COUNTIF('2011 Survey responses'!AM144,\">1\"))))","v":2.5},{"$f":"IF(('2011 Survey responses'!W144)<1.1,\"\",('2011 Survey responses'!W144))","v":2},{"$f":"IF(('2011 Survey responses'!Y144)<1.1,\"\",('2011 Survey responses'!Y144))","v":2},{"$f":"IF(('2011 Survey responses'!Z144)<1.1,\"\",('2011 Survey responses'!Z144))","v":4},{"$f":"IF(('2011 Survey responses'!V144+'2011 Survey responses'!X144+'2011 Survey responses'!AA144)<3.1,\"\",((SUMIF('2011 Survey responses'!V144,\">1\")+SUMIF('2011 Survey responses'!X144,\">1\")+SUMIF('2011 Survey responses'!AA144,\">1\"))/(COUNTIF('2011 Survey responses'!V144,\">1\")+COUNTIF('2011 Survey responses'!X144,\">1\")+COUNTIF('2011 Survey responses'!AA144,\">1\"))))","v":2.6666666666666665},{"$f":"IF(('2011 Survey responses'!V144+'2011 Survey responses'!Y144+'2011 Survey responses'!AA144)<3.1,\"\",((SUMIF('2011 Survey responses'!V144,\">1\")+SUMIF('2011 Survey responses'!Y144,\">1\")+SUMIF('2011 Survey responses'!AA144,\">1\"))/(COUNTIF('2011 Survey responses'!V144,\">1\")+COUNTIF('2011 Survey responses'!Y144,\">1\")+COUNTIF('2011 Survey responses'!AA144,\">1\"))))","v":2},{"$f":"IF(SUM('2011 Survey responses'!AB144:AH144)<1,\"\",(AVERAGEIFS('2011 Survey responses'!AB144:AH144,'2011 Survey responses'!AB144:AH144,\">1\")))","v":3.2857142857142856},{"$f":"IF(SUM('2011 Survey responses'!AI144:AO144)<7.1,\"\",(AVERAGEIFS('2011 Survey responses'!AI144:AO144,'2011 Survey responses'!AI144:AO144,\">1\")))","v":3.1428571428571428},{"$f":"IF(('2011 Survey responses'!AH144)<1.1,\"\",('2011 Survey responses'!AH144))","v":3},{"$f":"IF(SUM('2011 Survey responses'!AP144:BV144)<1,\"\",(AVERAGEIFS('2011 Survey responses'!AP144:BV144,'2011 Survey responses'!AP144:BV144,\">1\")))","v":3.0909090909090908},{"$f":"IF(SUM('2011 Survey responses'!AP144:AS144)<4.1,\"\",(AVERAGEIFS('2011 Survey responses'!AP144:AS144,'2011 Survey responses'!AP144:AS144,\">1\")))","v":3},{"$f":"IF(SUM('2011 Survey responses'!AT144:BF144)<1,\"\",(AVERAGEIFS('2011 Survey responses'!AT144:BF144,'2011 Survey responses'!AT144:BF144,\">1\")))","v":3},{"$f":"IF(SUM('2011 Survey responses'!BG144:BO144)<1,\"\",(AVERAGEIFS('2011 Survey responses'!BG144:BO144,'2011 Survey responses'!BG144:BO144,\">1\")))","v":3.4444444444444446},{"$f":"IF(SUM('2011 Survey responses'!BP144:BS144)<1,\"\",(AVERAGEIFS('2011 Survey responses'!BP144:BS144,'2011 Survey responses'!BP144:BS144,\">1\")))","v":3.5},{"$f":"IF(SUM('2011 Survey responses'!BT144:BV144)<3.1,\"\",(AVERAGEIFS('2011 Survey responses'!BT144:BV144,'2011 Survey responses'!BT144:BV144,\">1\")))","v":2},{"$f":"IF(('2011 Survey responses'!AQ144+'2011 Survey responses'!AR144+'2011 Survey responses'!BG144)<3.1,\"\",((SUMIF('2011 Survey responses'!AQ144,\">1\")+SUMIF('2011 Survey responses'!AR144,\">1\")+SUMIF('2011 Survey responses'!BG144,\">1\"))/(COUNTIF('2011 Survey responses'!AQ144,\">1\")+COUNTIF('2011 Survey responses'!AR144,\">1\")+COUNTIF('2011 Survey responses'!BG144,\">1\"))))","v":3.3333333333333335},{"$f":"IF(SUM('2011 Survey responses'!AP144:AS144)<4.1,\"\",(AVERAGEIFS('2011 Survey responses'!AP144:AS144,'2011 Survey responses'!AP144:AS144,\">1\")))","v":3},{"$f":"IF(('2011 Survey responses'!AU144+'2011 Survey responses'!AX144+'2011 Survey responses'!BA144+'2011 Survey responses'!BC144+'2011 Survey responses'!BD144)<5.1,\"\",(SUMIF('2011 Survey responses'!AU144,\">1\")+SUMIF('2011 Survey responses'!AX144,\">1\")+SUMIF('2011 Survey responses'!BA144,\">1\")+SUMIF('2011 Survey responses'!BC144,\">1\")+SUMIF('2011 Survey responses'!BD144,\">1\"))/(COUNTIF('2011 Survey responses'!AU144,\">1\")+COUNTIF('2011 Survey responses'!AX144,\">1\")+COUNTIF('2011 Survey responses'!BA144,\">1\")+COUNTIF('2011 Survey responses'!BC144,\">1\")+COUNTIF('2011 Survey responses'!BD144,\">1\")))","v":3.2},{"$f":"IF(('2011 Survey responses'!AT144)<1.1,\"\",('2011 Survey responses'!AT144))","v":2},{"$f":"IF(SUM('2011 Survey responses'!AV144:AW144)<2.1,\"\",(AVERAGEIFS('2011 Survey responses'!AV144:AW144,'2011 Survey responses'!AV144:AW144,\">1\")))","v":2},{"$f":"IF(('2011 Survey responses'!AW144+'2011 Survey responses'!AY144)<2.1,\"\",(SUMIF('2011 Survey responses'!AW144,\">1\")+SUMIF('2011 Survey responses'!AY144,\">1\"))/(COUNTIF('2011 Survey responses'!AW144,\">1\")+COUNTIF('2011 Survey responses'!AY144,\">1\")))","v":2},{"$f":"IF(('2011 Survey responses'!AZ144)<1.1,\"\",('2011 Survey responses'!AZ144))","v":2},2,2,4,2,{"$f":"IF(('2011 Survey responses'!BE144)<1.1,\"\",('2011 Survey responses'!BE144))","v":4},{"$f":"IF(('2011 Survey responses'!AY144+'2011 Survey responses'!BB144+'2011 Survey responses'!BF144)<3.1,\"\",(SUMIF('2011 Survey responses'!AY144,\">1\")+SUMIF('2011 Survey responses'!BB144,\">1\")+SUMIF('2011 Survey responses'!BF144,\">1\"))/(COUNTIF('2011 Survey responses'!AY144,\">1\")+COUNTIF('2011 Survey responses'!BB144,\">1\")+COUNTIF('2011 Survey responses'!BF144,\">1\")))","v":3.6666666666666665},3.4722222222222223,{"$f":"IF(SUM('2011 Survey responses'!BT144:BV144)<3.1,\"\",(AVERAGEIFS('2011 Survey responses'!BT144:BV144,'2011 Survey responses'!BT144:BV144,\">1\")))","v":2},{"$f":"IF(SUM('2011 Survey responses'!BW144:CP144)<1,\"\",(AVERAGEIFS('2011 Survey responses'!BW144:CP144,'2011 Survey responses'!BW144:CP144,\">1\")))","v":4.1111111111111107},{"$f":"IF(SUM('2011 Survey responses'!BW144:CF144)<1,\"\",(AVERAGEIFS('2011 Survey responses'!BW144:CF144,'2011 Survey responses'!BW144:CF144,\">1\")))","v":4.1111111111111107},{"$f":"IF(SUM('2011 Survey responses'!CG144:CP144)<1,\"\",(AVERAGEIFS('2011 Survey responses'!CG144:CP144,'2011 Survey responses'!CG144:CP144,\">1\")))","v":4.1111111111111107},{"$f":"IF(SUM('2011 Survey responses'!BX144:CF144)<1,\"\",(AVERAGEIFS('2011 Survey responses'!BX144:CF144,'2011 Survey responses'!BX144:CF144,\">1\")))","v":4.125},{"$f":"IF(SUM('2011 Survey responses'!CH144:CP144)<1,\"\",(AVERAGEIFS('2011 Survey responses'!CH144:CP144,'2011 Survey responses'!CH144:CP144,\">1\")))","v":4.125},{"$f":"IF(SUM('2011 Survey responses'!BW144:CP144)<1,\"\",(AVERAGEIFS('2011 Survey responses'!BW144:CP144,'2011 Survey responses'!BW144:CP144,\">1\")))","v":4.1111111111111107},{"$f":"IF(('2011 Survey responses'!BW144+'2011 Survey responses'!CG144)<2.1,\"\",(SUMIF('2011 Survey responses'!BW144,\">1\")+SUMIF('2011 Survey responses'!CG144,\">1\"))/(COUNTIF('2011 Survey responses'!BW144,\">1\")+COUNTIF('2011 Survey responses'!CG144,\">1\")))","v":4},{"$f":"IF(('2011 Survey responses'!BX144+'2011 Survey responses'!CH144)<2.1,\"\",(SUMIF('2011 Survey responses'!BX144,\">1\")+SUMIF('2011 Survey responses'!CH144,\">1\"))/(COUNTIF('2011 Survey responses'!BX144,\">1\")+COUNTIF('2011 Survey responses'!CH144,\">1\")))","v":4},{"$f":"IF(('2011 Survey responses'!BY144+'2011 Survey responses'!CI144)<2.1,\"\",(SUMIF('2011 Survey responses'!BY144,\">1\")+SUMIF('2011 Survey responses'!CI144,\">1\"))/(COUNTIF('2011 Survey responses'!BY144,\">1\")+COUNTIF('2011 Survey responses'!CI144,\">1\")))","v":4.5},{"$f":"IF('2011 Survey responses'!CQ144<0.5,\"\",'2011 Survey responses'!CQ144)","v":4},{"$f":"IF('2011 Survey responses'!CR144<0.5,\"\",'2011 Survey responses'!CR144)","v":4},{"$f":"IF('2011 Survey responses'!CS144<0.5,\"\",'2011 Survey responses'!CS144)","v":4},{"$f":"IF('2011 Survey responses'!CT144<0.5,\"\",'2011 Survey responses'!CT144)","v":2},{"$f":"IF('2011 Survey responses'!CU144<0.5,\"\",'2011 Survey responses'!CU144)","v":1},{"$f":"IF('2011 Survey responses'!CV144<0.5,\"\",'2011 Survey responses'!CV144)","v":1},{"$f":"IF(SUM('2011 Survey responses'!CW144:DL144)<1,\"\",(AVERAGE('2011 Survey responses'!CW144:DL144)))","v":3.375},{"$f":"IF(SUM('2011 Survey responses'!CW144:CZ144)<1,\"\",(AVERAGE('2011 Survey responses'!CW144:CZ144)))","v":3.25},{"$f":"IF(SUM('2011 Survey responses'!DA144:DD144)<1,\"\",(AVERAGE('2011 Survey responses'!DA144:DD144)))","v":3.25},{"$f":"IF(SUM('2011 Survey responses'!DE144:DH144)<1,\"\",(AVERAGE('2011 Survey responses'!DE144:DH144)))","v":3},{"$f":"IF(SUM('2011 Survey responses'!DI144:DL144)<1,\"\",(AVERAGE('2011 Survey responses'!DI144:DL144)))","v":4},{"$f":"IF(('2011 Survey responses'!CW144+'2011 Survey responses'!DA144+'2011 Survey responses'!DE144+'2011 Survey responses'!DI144)<1,\"\",AVERAGE('2011 Survey responses'!CW144,'2011 Survey responses'!DA144,'2011 Survey responses'!DE144,'2011 Survey responses'!DI144))","v":3.25},{"$f":"IF(('2011 Survey responses'!CX144+'2011 Survey responses'!DB144+'2011 Survey responses'!DF144+'2011 Survey responses'!DJ144)<1,\"\",AVERAGE('2011 Survey responses'!CX144,'2011 Survey responses'!DB144,'2011 Survey responses'!DF144,'2011 Survey responses'!DJ144))","v":3.25},{"$f":"IF(('2011 Survey responses'!CY144+'2011 Survey responses'!DC144+'2011 Survey responses'!DG144+'2011 Survey responses'!DK144)<1,\"\",AVERAGE('2011 Survey responses'!CY144,'2011 Survey responses'!DC144,'2011 Survey responses'!DG144,'2011 Survey responses'!DK144))","v":3.75},{"$f":"IF(('2011 Survey responses'!CZ144+'2011 Survey responses'!DD144+'2011 Survey responses'!DH144+'2011 Survey responses'!DL144)<1,\"\",AVERAGE('2011 Survey responses'!CZ144,'2011 Survey responses'!DD144,'2011 Survey responses'!DH144,'2011 Survey responses'!DL144))","v":3.25},{"$f":"IF('2011 Survey responses'!CW144<0.5,\"\",'2011 Survey responses'!CW144)","v":3},{"$f":"IF('2011 Survey responses'!CX144<0.5,\"\",'2011 Survey responses'!CX144)","v":3},{"$f":"IF('2011 Survey responses'!CY144<0.5,\"\",'2011 Survey responses'!CY144)","v":4},{"$f":"IF('2011 Survey responses'!CZ144<0.5,\"\",'2011 Survey responses'!CZ144)","v":3},{"$f":"IF('2011 Survey responses'!DA144<0.5,\"\",'2011 Survey responses'!DA144)","v":3},{"$f":"IF('2011 Survey responses'!DB144<0.5,\"\",'2011 Survey responses'!DB144)","v":3},{"$f":"IF('2011 Survey responses'!DC144<0.5,\"\",'2011 Survey responses'!DC144)","v":4},{"$f":"IF('2011 Survey responses'!DD144<0.5,\"\",'2011 Survey responses'!DD144)","v":3},{"$f":"IF('2011 Survey responses'!DE144<0.5,\"\",'2011 Survey responses'!DE144)","v":3},{"$f":"IF('2011 Survey responses'!DF144<0.5,\"\",'2011 Survey responses'!DF144)","v":3},{"$f":"IF('2011 Survey responses'!DG144<0.5,\"\",'2011 Survey responses'!DG144)","v":3},{"$f":"IF('2011 Survey responses'!DH144<0.5,\"\",'2011 Survey responses'!DH144)","v":3},{"$f":"IF('2011 Survey responses'!DI144<0.5,\"\",'2011 Survey responses'!DI144)","v":4},{"$f":"IF('2011 Survey responses'!DJ144<0.5,\"\",'2011 Survey responses'!DJ144)","v":4},{"$f":"IF('2011 Survey responses'!DK144<0.5,\"\",'2011 Survey responses'!DK144)","v":4},{"$f":"IF('2011 Survey responses'!DL144<0.5,\"\",'2011 Survey responses'!DL144)","v":4},{"$f":"IF('2011 Survey responses'!DU144=4,4,IF('2011 Survey responses'!DU144=5,4,\"\"))","v":4},{"$f":"IF('2011 Survey responses'!DV144=4,3,IF('2011 Survey responses'!DV144=5,3,\"\"))","v":3},2,{"$f":"IF(CQ144=2,CQ144,IF(CO144=4,CO144,IF(CP144=3,CP144,IF('2011 Survey responses'!GT144=1,1,\"\"))))","v":2},{"$f":"IF('2011 Survey responses'!DO144<0.5,\"\",'2011 Survey responses'!DO144)","v":3},{"$f":"IF('2011 Survey responses'!DP144<0.5,\"\",'2011 Survey responses'!DP144)","v":4},{"$f":"IF('2011 Survey responses'!DQ144<0.5,\"\",'2011 Survey responses'!DQ144)","v":3},{"$f":"IF('2011 Survey responses'!DR144<0.5,\"\",'2011 Survey responses'!DR144)","v":4},{"$f":"IF('2011 Survey responses'!DS144<0.5,\"\",'2011 Survey responses'!DS144)","v":2},{"$f":"IF('2011 Survey responses'!DT144<0.5,\"\",'2011 Survey responses'!DT144)","v":4},{"$f":"IF('2011 Survey responses'!DU144<0.5,\"\",'2011 Survey responses'!DU144)","v":4},{"$f":"IF('2011 Survey responses'!DV144<0.5,\"\",'2011 Survey responses'!DV144)","v":4},{"$f":"IF('2011 Survey responses'!DW144<0.5,\"\",'2011 Survey responses'!DW144)","v":3},{"$f":"IF('2011 Survey responses'!DX144<0.5,\"\",'2011 Survey responses'!DX144)","v":2},{"$f":"IF('2011 Survey responses'!DY144<0.5,\"\",'2011 Survey responses'!DY144)","v":4},{"$f":"IF('2011 Survey responses'!DZ144<0.5,\"\",'2011 Survey responses'!DZ144)","v":4},{"$f":"IF('2011 Survey responses'!EA144<0.5,\"\",'2011 Survey responses'!EA144)","v":4},{"$f":"IF('2011 Survey responses'!EB144<0.5,\"\",'2011 Survey responses'!EB144)","v":5},{"$f":"IF('2011 Survey responses'!EC144<0.5,\"\",'2011 Survey responses'!EC144)","v":4},{"$f":"IF('2011 Survey responses'!ED144<0.5,\"\",'2011 Survey responses'!ED144)","v":5},{"$f":"IF('2011 Survey responses'!EE144<0.5,\"\",'2011 Survey responses'!EE144)","v":2},{"$f":"IF('2011 Survey responses'!EF144<0.5,\"\",'2011 Survey responses'!EF144)","v":5},{"$f":"IF('2011 Survey responses'!EG144<0.5,\"\",'2011 Survey responses'!EG144)","v":5},{"$f":"IF('2011 Survey responses'!EH144<0.5,\"\",'2011 Survey responses'!EH144)","v":5},{"$f":"IF('2011 Survey responses'!EI144<0.5,\"\",'2011 Survey responses'!EI144)","v":4},{"$f":"IF('2011 Survey responses'!EJ144<0.5,\"\",'2011 Survey responses'!EJ144)","v":4},{"$f":"IF('2011 Survey responses'!EK144<0.5,\"\",'2011 Survey responses'!EK144)","v":5},{"$f":"IF('2011 Survey responses'!EL144<0.5,\"\",'2011 Survey responses'!EL144)","v":5},{"$f":"IF('2011 Survey responses'!EM144<0.5,\"\",'2011 Survey responses'!EM144)","v":4},{"$f":"IF('2011 Survey responses'!EN144<0.5,\"\",'2011 Survey responses'!EN144)","v":4},{"$f":"IF('2011 Survey responses'!EO144<0.5,\"\",'2011 Survey responses'!EO144)","v":4},{"$f":"IF('2011 Survey responses'!EP144<0.5,\"\",'2011 Survey responses'!EP144)","v":4},{"$f":"IF(('2011 Survey responses'!EW144+'2011 Survey responses'!EX144)>=2,AVERAGE('2011 Survey responses'!EW144,'2011 Survey responses'!EY144),\"\")","v":4},{"$f":"IF('2011 Survey responses'!EX144<0.5,\"\",'2011 Survey responses'!EX144)","v":5},{"$f":"IF('2011 Survey responses'!EZ144<0.5,\"\",'2011 Survey responses'!EZ144)","v":4},{"$f":"IF('2011 Survey responses'!FB144<0.5,\"\",'2011 Survey responses'!FB144)","v":5},{"$f":"IF('2011 Survey responses'!FD144<0.5,\"\",'2011 Survey responses'!FD144)","v":5},{"$f":"IF('2011 Survey responses'!FC144<0.5,\"\",'2011 Survey responses'!FC144)","v":5},{"$f":"IF(('2011 Survey responses'!EM144+'2011 Survey responses'!EN144)>=2,AVERAGE('2011 Survey responses'!EM144,'2011 Survey responses'!EN144),\"\")","v":4},{"$f":"IF('2011 Survey responses'!ES144<0.5,\"\",'2011 Survey responses'!ES144)","v":4},{"$f":"IF(('2011 Survey responses'!ET144+'2011 Survey responses'!EU144)>=2,AVERAGE('2011 Survey responses'!ET144,'2011 Survey responses'!EU144),\"\")","v":4},{"$f":"IF('2011 Survey responses'!EV144<0.5,\"\",'2011 Survey responses'!EV144)","v":4},{"$f":"IF('2011 Survey responses'!FA144<0.5,\"\",'2011 Survey responses'!FA144)","v":4},{"$f":"IF('2011 Survey responses'!ER144<0.5,\"\",'2011 Survey responses'!ER144)","v":3},{"$f":"IF(('2011 Survey responses'!EO144+'2011 Survey responses'!EP144)>=2,AVERAGE('2011 Survey responses'!EO144,'2011 Survey responses'!EP144),\"\")","v":4},{"$f":"IF('2011 Survey responses'!EQ144<0.5,\"\",'2011 Survey responses'!EQ144)","v":3},{"$f":"IF('2011 Survey responses'!ET144<0.5,\"\",'2011 Survey responses'!ET144)","v":4},{"$f":"IF('2011 Survey responses'!EU144<0.5,\"\",'2011 Survey responses'!EU144)","v":4},{"$f":"IF('2011 Survey responses'!EW144<0.5,\"\",'2011 Survey responses'!EW144)","v":4},{"$f":"IF('2011 Survey responses'!EY144<0.5,\"\",'2011 Survey responses'!EY144)","v":4},{"$f":"IF('2011 Survey responses'!FU144<0.5,\"\",'2011 Survey responses'!FU144)","v":2},{"$f":"IF(('2011 Survey responses'!FL144+'2011 Survey responses'!FM144)>=2,AVERAGE('2011 Survey responses'!FL144,'2011 Survey responses'!FM144),\"\")","v":2},{"$f":"IF(('2011 Survey responses'!FO144+'2011 Survey responses'!FQ144)>=2,AVERAGE('2011 Survey responses'!FO144,'2011 Survey responses'!FQ144),\"\")","v":1},{"$f":"IF('2011 Survey responses'!FJ144<0.5,\"\",'2011 Survey responses'!FJ144)","v":2},{"$f":"IF('2011 Survey responses'!FT144<0.5,\"\",'2011 Survey responses'!FT144)","v":2},{"$f":"IF('2011 Survey responses'!FR144<0.5,\"\",'2011 Survey responses'!FR144)","v":2},{"$f":"IF('2011 Survey responses'!FK144<0.5,\"\",'2011 Survey responses'!FK144)","v":2},{"$f":"IF('2011 Survey responses'!FP144<0.5,\"\",'2011 Survey responses'!FP144)","v":3},{"$f":"IF('2011 Survey responses'!FN144<0.5,\"\",'2011 Survey responses'!FN144)","v":2},{"$f":"IF(('2011 Survey responses'!FE144+'2011 Survey responses'!FF144)>=2,AVERAGE('2011 Survey responses'!FE144,'2011 Survey responses'!FF144),\"\")","v":2},{"$f":"IF('2011 Survey responses'!FS144<0.5,\"\",'2011 Survey responses'!FS144)","v":2},{"$f":"IF('2011 Survey responses'!FV144<0.5,\"\",'2011 Survey responses'!FV144)","v":2},{"$f":"IF(('2011 Survey responses'!FG144+'2011 Survey responses'!FH144)>=2,AVERAGE('2011 Survey responses'!FG144,'2011 Survey responses'!FH144),\"\")","v":2},{"$f":"IF('2011 Survey responses'!FI144<0.5,\"\",'2011 Survey responses'!FI144)","v":2},{"$f":"IF('2011 Survey responses'!FE144<0.5,\"\",'2011 Survey responses'!FE144)","v":2},{"$f":"IF('2011 Survey responses'!FF144<0.5,\"\",'2011 Survey responses'!FF144)","v":2},{"$f":"IF('2011 Survey responses'!FG144<0.5,\"\",'2011 Survey responses'!FG144)","v":2},{"$f":"IF('2011 Survey responses'!FH144<0.5,\"\",'2011 Survey responses'!FH144)","v":2},{"$f":"IF('2011 Survey responses'!FL144<0.5,\"\",'2011 Survey responses'!FL144)","v":2},{"$f":"IF('2011 Survey responses'!FM144<0.5,\"\",'2011 Survey responses'!FM144)","v":2},{"$f":"IF('2011 Survey responses'!FO144<0.5,\"\",'2011 Survey responses'!FO144)","v":1},{"$f":"IF('2011 Survey responses'!FQ144<0.5,\"\",'2011 Survey responses'!FQ144)","v":1}]
["Saint Kitts and Nevis",{"$f":"IF(SUM(F145)<1,\"\",AVERAGEIF('2011 Survey responses'!B145:CP145,\">1\"))","v":3.377049180327869},{"$f":"IF(SUM(F145)<1,\"\",AVERAGEIF('2011 Survey responses'!B145:AO145,\">1\"))","v":2.9},{"$f":"IF(SUM(F145)<1,\"\",AVERAGEIF('2011 Survey responses'!B145:BV145,\">1\"))","v":3.1304347826086958},{"$f":"IF(SUM(F145)<1,\"\",AVERAGEIF('2011 Survey responses'!V145:BV145,\">1\"))","v":3.236842105263158},{"$f":"IF(SUM('2011 Survey responses'!B145:U145)<1,\"\",(AVERAGEIFS('2011 Survey responses'!B145:U145,'2011 Survey responses'!B145:U145,\">1\")))","v":2.625},{"$f":"IF(SUM('2011 Survey responses'!B145:H145)<1,\"\",(AVERAGEIFS('2011 Survey responses'!B145:H145,'2011 Survey responses'!B145:H145,\">1\")))","v":2.5},{"$f":"IF(SUM('2011 Survey responses'!I145:S145)<1,\"\",(AVERAGEIFS('2011 Survey responses'!I145:S145,'2011 Survey responses'!I145:S145,\">1\")))","v":2},{"$f":"IF(SUM('2011 Survey responses'!T145:U145)<2.1,\"\",(AVERAGEIFS('2011 Survey responses'!T145:U145,'2011 Survey responses'!T145:U145,\">1\")))","v":6},{"$f":"IF(SUM('2011 Survey responses'!B145:C145)<2.1,\"\",((SUMIF('2011 Survey responses'!B145:C145,\">1\")+SUMIF('2011 Survey responses'!F145,\">1\"))/(COUNTIF('2011 Survey responses'!B145:C145,\">1\")+COUNTIF('2011 Survey responses'!F145,\">1\"))))","v":""},{"$f":"IF(SUM('2011 Survey responses'!D145:E145)<2.1,\"\",(AVERAGEIFS('2011 Survey responses'!D145:E145,'2011 Survey responses'!D145:E145,\">1\")))","v":""},{"$f":"IF(('2011 Survey responses'!B145+'2011 Survey responses'!D145)<2.1,\"\",((SUMIF('2011 Survey responses'!B145,\">1\")+SUMIF('2011 Survey responses'!D145,\">1\")+SUMIF('2011 Survey responses'!F145,\">1\")+SUMIF('2011 Survey responses'!K145,\">1\"))/(COUNTIF('2011 Survey responses'!B145,\">1\")+COUNTIF('2011 Survey responses'!D145,\">1\")+COUNTIF('2011 Survey responses'!F145,\">1\")+COUNTIF('2011 Survey responses'!K145,\">1\"))))","v":""},{"$f":"IF(SUM('2011 Survey responses'!G145:H145)<2.1,\"\",(AVERAGEIFS('2011 Survey responses'!G145:H145,'2011 Survey responses'!G145:H145,\">1\")))","v":2},{"$f":"IF(SUM('2011 Survey responses'!F145:G145)<1.5,\"\",MAX('2011 Survey responses'!F145,'2011 Survey responses'!G145))","v":3},{"$f":"IF(SUM('2011 Survey responses'!G145:H145)<1,\"\",MAX('2011 Survey responses'!G145,'2011 Survey responses'!H145))","v":2},{"$f":"IF(SUM('2011 Survey responses'!I145:L145)<4.1,\"\",(AVERAGEIFS('2011 Survey responses'!I145:L145,'2011 Survey responses'!I145:L145,\">1\")))","v":2},{"$f":"IF(SUM('2011 Survey responses'!M145:S145)<4.1,\"\",(AVERAGEIFS('2011 Survey responses'!M145:S145,'2011 Survey responses'!M145:S145,\">1\")))","v":2},{"$f":"IF(SUM('2011 Survey responses'!T145:U145)<2.1,\"\",(AVERAGEIFS('2011 Survey responses'!T145:U145,'2011 Survey responses'!T145:U145,\">1\")))","v":6},{"$f":"IF(SUM('2011 Survey responses'!V145:AO145)<1,\"\",(AVERAGEIFS('2011 Survey responses'!V145:AO145,'2011 Survey responses'!V145:AO145,\">1\")))","v":3.0833333333333335},{"$f":"IF(SUM('2011 Survey responses'!V145:AA145)<1,\"\",(AVERAGEIFS('2011 Survey responses'!V145:AA145,'2011 Survey responses'!V145:AA145,\">1\")))","v":3},{"$f":"IF(SUM('2011 Survey responses'!AB145:AH145)<1,\"\",(AVERAGEIFS('2011 Survey responses'!AB145:AH145,'2011 Survey responses'!AB145:AH145,\">1\")))","v":3.6666666666666665},{"$f":"IF(SUM('2011 Survey responses'!AI145:AO145)<1,\"\",(AVERAGEIFS('2011 Survey responses'!AI145:AO145,'2011 Survey responses'!AI145:AO145,\">1\")))","v":2.8571428571428572},{"$f":"IF(('2011 Survey responses'!Y145+'2011 Survey responses'!AI145+'2011 Survey responses'!AK145)<3.1,\"\",((SUMIF('2011 Survey responses'!Y145,\">1\")+SUMIF('2011 Survey responses'!AI145,\">1\")+SUMIF('2011 Survey responses'!AK145,\">1\")+SUMIF('2011 Survey responses'!AM145,\">1\"))/(COUNTIF('2011 Survey responses'!Y145,\">1\")+COUNTIF('2011 Survey responses'!AI145,\">1\")+COUNTIF('2011 Survey responses'!AK145,\">1\")+COUNTIF('2011 Survey responses'!AM145,\">1\"))))","v":2.6666666666666665},{"$f":"IF(('2011 Survey responses'!W145)<1.1,\"\",('2011 Survey responses'!W145))","v":4},{"$f":"IF(('2011 Survey responses'!Y145)<1.1,\"\",('2011 Survey responses'!Y145))","v":""},{"$f":"IF(('2011 Survey responses'!Z145)<1.1,\"\",('2011 Survey responses'!Z145))","v":""},{"$f":"IF(('2011 Survey responses'!V145+'2011 Survey responses'!X145+'2011 Survey responses'!AA145)<3.1,\"\",((SUMIF('2011 Survey responses'!V145,\">1\")+SUMIF('2011 Survey responses'!X145,\">1\")+SUMIF('2011 Survey responses'!AA145,\">1\"))/(COUNTIF('2011 Survey responses'!V145,\">1\")+COUNTIF('2011 Survey responses'!X145,\">1\")+COUNTIF('2011 Survey responses'!AA145,\">1\"))))","v":2},{"$f":"IF(('2011 Survey responses'!V145+'2011 Survey responses'!Y145+'2011 Survey responses'!AA145)<3.1,\"\",((SUMIF('2011 Survey responses'!V145,\">1\")+SUMIF('2011 Survey responses'!Y145,\">1\")+SUMIF('2011 Survey responses'!AA145,\">1\"))/(COUNTIF('2011 Survey responses'!V145,\">1\")+COUNTIF('2011 Survey responses'!Y145,\">1\")+COUNTIF('2011 Survey responses'!AA145,\">1\"))))","v":""},{"$f":"IF(SUM('2011 Survey responses'!AB145:AH145)<1,\"\",(AVERAGEIFS('2011 Survey responses'!AB145:AH145,'2011 Survey responses'!AB145:AH145,\">1\")))","v":3.6666666666666665},{"$f":"IF(SUM('2011 Survey responses'!AI145:AO145)<7.1,\"\",(AVERAGEIFS('2011 Survey responses'!AI145:AO145,'2011 Survey responses'!AI145:AO145,\">1\")))","v":2.8571428571428572},{"$f":"IF(('2011 Survey responses'!AH145)<1.1,\"\",('2011 Survey responses'!AH145))","v":""},{"$f":"IF(SUM('2011 Survey responses'!AP145:BV145)<1,\"\",(AVERAGEIFS('2011 Survey responses'!AP145:BV145,'2011 Survey responses'!AP145:BV145,\">1\")))","v":3.3076923076923075},{"$f":"IF(SUM('2011 Survey responses'!AP145:AS145)<4.1,\"\",(AVERAGEIFS('2011 Survey responses'!AP145:AS145,'2011 Survey responses'!AP145:AS145,\">1\")))","v":2},{"$f":"IF(SUM('2011 Survey responses'!AT145:BF145)<1,\"\",(AVERAGEIFS('2011 Survey responses'!AT145:BF145,'2011 Survey responses'!AT145:BF145,\">1\")))","v":2.6666666666666665},{"$f":"IF(SUM('2011 Survey responses'!BG145:BO145)<1,\"\",(AVERAGEIFS('2011 Survey responses'!BG145:BO145,'2011 Survey responses'!BG145:BO145,\">1\")))","v":4},{"$f":"IF(SUM('2011 Survey responses'!BP145:BS145)<1,\"\",(AVERAGEIFS('2011 Survey responses'!BP145:BS145,'2011 Survey responses'!BP145:BS145,\">1\")))","v":3.5},{"$f":"IF(SUM('2011 Survey responses'!BT145:BV145)<3.1,\"\",(AVERAGEIFS('2011 Survey responses'!BT145:BV145,'2011 Survey responses'!BT145:BV145,\">1\")))","v":4},{"$f":"IF(('2011 Survey responses'!AQ145+'2011 Survey responses'!AR145+'2011 Survey responses'!BG145)<3.1,\"\",((SUMIF('2011 Survey responses'!AQ145,\">1\")+SUMIF('2011 Survey responses'!AR145,\">1\")+SUMIF('2011 Survey responses'!BG145,\">1\"))/(COUNTIF('2011 Survey responses'!AQ145,\">1\")+COUNTIF('2011 Survey responses'!AR145,\">1\")+COUNTIF('2011 Survey responses'!BG145,\">1\"))))","v":2.6666666666666665},{"$f":"IF(SUM('2011 Survey responses'!AP145:AS145)<4.1,\"\",(AVERAGEIFS('2011 Survey responses'!AP145:AS145,'2011 Survey responses'!AP145:AS145,\">1\")))","v":2},{"$f":"IF(('2011 Survey responses'!AU145+'2011 Survey responses'!AX145+'2011 Survey responses'!BA145+'2011 Survey responses'!BC145+'2011 Survey responses'!BD145)<5.1,\"\",(SUMIF('2011 Survey responses'!AU145,\">1\")+SUMIF('2011 Survey responses'!AX145,\">1\")+SUMIF('2011 Survey responses'!BA145,\">1\")+SUMIF('2011 Survey responses'!BC145,\">1\")+SUMIF('2011 Survey responses'!BD145,\">1\"))/(COUNTIF('2011 Survey responses'!AU145,\">1\")+COUNTIF('2011 Survey responses'!AX145,\">1\")+COUNTIF('2011 Survey responses'!BA145,\">1\")+COUNTIF('2011 Survey responses'!BC145,\">1\")+COUNTIF('2011 Survey responses'!BD145,\">1\")))","v":2.6666666666666665},{"$f":"IF(('2011 Survey responses'!AT145)<1.1,\"\",('2011 Survey responses'!AT145))","v":4},{"$f":"IF(SUM('2011 Survey responses'!AV145:AW145)<2.1,\"\",(AVERAGEIFS('2011 Survey responses'!AV145:AW145,'2011 Survey responses'!AV145:AW145,\">1\")))","v":4},{"$f":"IF(('2011 Survey responses'!AW145+'2011 Survey responses'!AY145)<2.1,\"\",(SUMIF('2011 Survey responses'!AW145,\">1\")+SUMIF('2011 Survey responses'!AY145,\">1\"))/(COUNTIF('2011 Survey responses'!AW145,\">1\")+COUNTIF('2011 Survey responses'!AY145,\">1\")))","v":2},{"$f":"IF(('2011 Survey responses'!AZ145)<1.1,\"\",('2011 Survey responses'!AZ145))","v":2},2,1,4,4,{"$f":"IF(('2011 Survey responses'!BE145)<1.1,\"\",('2011 Survey responses'!BE145))","v":""},{"$f":"IF(('2011 Survey responses'!AY145+'2011 Survey responses'!BB145+'2011 Survey responses'!BF145)<3.1,\"\",(SUMIF('2011 Survey responses'!AY145,\">1\")+SUMIF('2011 Survey responses'!BB145,\">1\")+SUMIF('2011 Survey responses'!BF145,\">1\"))/(COUNTIF('2011 Survey responses'!AY145,\">1\")+COUNTIF('2011 Survey responses'!BB145,\">1\")+COUNTIF('2011 Survey responses'!BF145,\">1\")))","v":2},3.75,{"$f":"IF(SUM('2011 Survey responses'!BT145:BV145)<3.1,\"\",(AVERAGEIFS('2011 Survey responses'!BT145:BV145,'2011 Survey responses'!BT145:BV145,\">1\")))","v":4},{"$f":"IF(SUM('2011 Survey responses'!BW145:CP145)<1,\"\",(AVERAGEIFS('2011 Survey responses'!BW145:CP145,'2011 Survey responses'!BW145:CP145,\">1\")))","v":4.1333333333333337},{"$f":"IF(SUM('2011 Survey responses'!BW145:CF145)<1,\"\",(AVERAGEIFS('2011 Survey responses'!BW145:CF145,'2011 Survey responses'!BW145:CF145,\">1\")))","v":4},{"$f":"IF(SUM('2011 Survey responses'!CG145:CP145)<1,\"\",(AVERAGEIFS('2011 Survey responses'!CG145:CP145,'2011 Survey responses'!CG145:CP145,\">1\")))","v":4.25},{"$f":"IF(SUM('2011 Survey responses'!BX145:CF145)<1,\"\",(AVERAGEIFS('2011 Survey responses'!BX145:CF145,'2011 Survey responses'!BX145:CF145,\">1\")))","v":4},{"$f":"IF(SUM('2011 Survey responses'!CH145:CP145)<1,\"\",(AVERAGEIFS('2011 Survey responses'!CH145:CP145,'2011 Survey responses'!CH145:CP145,\">1\")))","v":4.1428571428571432},{"$f":"IF(SUM('2011 Survey responses'!BW145:CP145)<1,\"\",(AVERAGEIFS('2011 Survey responses'!BW145:CP145,'2011 Survey responses'!BW145:CP145,\">1\")))","v":4.1333333333333337},{"$f":"IF(('2011 Survey responses'!BW145+'2011 Survey responses'!CG145)<2.1,\"\",(SUMIF('2011 Survey responses'!BW145,\">1\")+SUMIF('2011 Survey responses'!CG145,\">1\"))/(COUNTIF('2011 Survey responses'!BW145,\">1\")+COUNTIF('2011 Survey responses'!CG145,\">1\")))","v":4.5},{"$f":"IF(('2011 Survey responses'!BX145+'2011 Survey responses'!CH145)<2.1,\"\",(SUMIF('2011 Survey responses'!BX145,\">1\")+SUMIF('2011 Survey responses'!CH145,\">1\"))/(COUNTIF('2011 Survey responses'!BX145,\">1\")+COUNTIF('2011 Survey responses'!CH145,\">1\")))","v":4.5},{"$f":"IF(('2011 Survey responses'!BY145+'2011 Survey responses'!CI145)<2.1,\"\",(SUMIF('2011 Survey responses'!BY145,\">1\")+SUMIF('2011 Survey responses'!CI145,\">1\"))/(COUNTIF('2011 Survey responses'!BY145,\">1\")+COUNTIF('2011 Survey responses'!CI145,\">1\")))","v":""},{"$f":"IF('2011 Survey responses'!CQ145<0.5,\"\",'2011 Survey responses'!CQ145)","v":4},{"$f":"IF('2011 Survey responses'!CR145<0.5,\"\",'2011 Survey responses'!CR145)","v":4},{"$f":"IF('2011 Survey responses'!CS145<0.5,\"\",'2011 Survey responses'!CS145)","v":3},{"$f":"IF('2011 Survey responses'!CT145<0.5,\"\",'2011 Survey responses'!CT145)","v":4},{"$f":"IF('2011 Survey responses'!CU145<0.5,\"\",'2011 Survey responses'!CU145)","v":4},{"$f":"IF('2011 Survey responses'!CV145<0.5,\"\",'2011 Survey responses'!CV145)","v":2},{"$f":"IF(SUM('2011 Survey responses'!CW145:DL145)<1,\"\",(AVERAGE('2011 Survey responses'!CW145:DL145)))","v":3.5},{"$f":"IF(SUM('2011 Survey responses'!CW145:CZ145)<1,\"\",(AVERAGE('2011 Survey responses'!CW145:CZ145)))","v":2.5},{"$f":"IF(SUM('2011 Survey responses'!DA145:DD145)<1,\"\",(AVERAGE('2011 Survey responses'!DA145:DD145)))","v":2.75},{"$f":"IF(SUM('2011 Survey responses'!DE145:DH145)<1,\"\",(AVERAGE('2011 Survey responses'!DE145:DH145)))","v":3.75},{"$f":"IF(SUM('2011 Survey responses'!DI145:DL145)<1,\"\",(AVERAGE('2011 Survey responses'!DI145:DL145)))","v":5},{"$f":"IF(('2011 Survey responses'!CW145+'2011 Survey responses'!DA145+'2011 Survey responses'!DE145+'2011 Survey responses'!DI145)<1,\"\",AVERAGE('2011 Survey responses'!CW145,'2011 Survey responses'!DA145,'2011 Survey responses'!DE145,'2011 Survey responses'!DI145))","v":3.5},{"$f":"IF(('2011 Survey responses'!CX145+'2011 Survey responses'!DB145+'2011 Survey responses'!DF145+'2011 Survey responses'!DJ145)<1,\"\",AVERAGE('2011 Survey responses'!CX145,'2011 Survey responses'!DB145,'2011 Survey responses'!DF145,'2011 Survey responses'!DJ145))","v":3.5},{"$f":"IF(('2011 Survey responses'!CY145+'2011 Survey responses'!DC145+'2011 Survey responses'!DG145+'2011 Survey responses'!DK145)<1,\"\",AVERAGE('2011 Survey responses'!CY145,'2011 Survey responses'!DC145,'2011 Survey responses'!DG145,'2011 Survey responses'!DK145))","v":3.5},{"$f":"IF(('2011 Survey responses'!CZ145+'2011 Survey responses'!DD145+'2011 Survey responses'!DH145+'2011 Survey responses'!DL145)<1,\"\",AVERAGE('2011 Survey responses'!CZ145,'2011 Survey responses'!DD145,'2011 Survey responses'!DH145,'2011 Survey responses'!DL145))","v":3.5},{"$f":"IF('2011 Survey responses'!CW145<0.5,\"\",'2011 Survey responses'!CW145)","v":3},{"$f":"IF('2011 Survey responses'!CX145<0.5,\"\",'2011 Survey responses'!CX145)","v":2},{"$f":"IF('2011 Survey responses'!CY145<0.5,\"\",'2011 Survey responses'!CY145)","v":2},{"$f":"IF('2011 Survey responses'!CZ145<0.5,\"\",'2011 Survey responses'!CZ145)","v":3},{"$f":"IF('2011 Survey responses'!DA145<0.5,\"\",'2011 Survey responses'!DA145)","v":2},{"$f":"IF('2011 Survey responses'!DB145<0.5,\"\",'2011 Survey responses'!DB145)","v":3},{"$f":"IF('2011 Survey responses'!DC145<0.5,\"\",'2011 Survey responses'!DC145)","v":3},{"$f":"IF('2011 Survey responses'!DD145<0.5,\"\",'2011 Survey responses'!DD145)","v":3},{"$f":"IF('2011 Survey responses'!DE145<0.5,\"\",'2011 Survey responses'!DE145)","v":4},{"$f":"IF('2011 Survey responses'!DF145<0.5,\"\",'2011 Survey responses'!DF145)","v":4},{"$f":"IF('2011 Survey responses'!DG145<0.5,\"\",'2011 Survey responses'!DG145)","v":4},{"$f":"IF('2011 Survey responses'!DH145<0.5,\"\",'2011 Survey responses'!DH145)","v":3},{"$f":"IF('2011 Survey responses'!DI145<0.5,\"\",'2011 Survey responses'!DI145)","v":5},{"$f":"IF('2011 Survey responses'!DJ145<0.5,\"\",'2011 Survey responses'!DJ145)","v":5},{"$f":"IF('2011 Survey responses'!DK145<0.5,\"\",'2011 Survey responses'!DK145)","v":5},{"$f":"IF('2011 Survey responses'!DL145<0.5,\"\",'2011 Survey responses'!DL145)","v":5},{"$f":"IF('2011 Survey responses'!DU145=4,4,IF('2011 Survey responses'!DU145=5,4,\"\"))","v":4},{"$f":"IF('2011 Survey responses'!DV145=4,3,IF('2011 Survey responses'!DV145=5,3,\"\"))","v":3},2,{"$f":"IF(CQ145=2,CQ145,IF(CO145=4,CO145,IF(CP145=3,CP145,IF('2011 Survey responses'!GT145=1,1,\"\"))))","v":2},{"$f":"IF('2011 Survey responses'!DO145<0.5,\"\",'2011 Survey responses'!DO145)","v":4},{"$f":"IF('2011 Survey responses'!DP145<0.5,\"\",'2011 Survey responses'!DP145)","v":5},{"$f":"IF('2011 Survey responses'!DQ145<0.5,\"\",'2011 Survey responses'!DQ145)","v":3},{"$f":"IF('2011 Survey responses'!DR145<0.5,\"\",'2011 Survey responses'!DR145)","v":1},{"$f":"IF('2011 Survey responses'!DS145<0.5,\"\",'2011 Survey responses'!DS145)","v":1},{"$f":"IF('2011 Survey responses'!DT145<0.5,\"\",'2011 Survey responses'!DT145)","v":4},{"$f":"IF('2011 Survey responses'!DU145<0.5,\"\",'2011 Survey responses'!DU145)","v":5},{"$f":"IF('2011 Survey responses'!DV145<0.5,\"\",'2011 Survey responses'!DV145)","v":5},{"$f":"IF('2011 Survey responses'!DW145<0.5,\"\",'2011 Survey responses'!DW145)","v":3},{"$f":"IF('2011 Survey responses'!DX145<0.5,\"\",'2011 Survey responses'!DX145)","v":1},{"$f":"IF('2011 Survey responses'!DY145<0.5,\"\",'2011 Survey responses'!DY145)","v":5},{"$f":"IF('2011 Survey responses'!DZ145<0.5,\"\",'2011 Survey responses'!DZ145)","v":5},{"$f":"IF('2011 Survey responses'!EA145<0.5,\"\",'2011 Survey responses'!EA145)","v":5},{"$f":"IF('2011 Survey responses'!EB145<0.5,\"\",'2011 Survey responses'!EB145)","v":5},{"$f":"IF('2011 Survey responses'!EC145<0.5,\"\",'2011 Survey responses'!EC145)","v":3},{"$f":"IF('2011 Survey responses'!ED145<0.5,\"\",'2011 Survey responses'!ED145)","v":3},{"$f":"IF('2011 Survey responses'!EE145<0.5,\"\",'2011 Survey responses'!EE145)","v":3},{"$f":"IF('2011 Survey responses'!EF145<0.5,\"\",'2011 Survey responses'!EF145)","v":5},{"$f":"IF('2011 Survey responses'!EG145<0.5,\"\",'2011 Survey responses'!EG145)","v":5},{"$f":"IF('2011 Survey responses'!EH145<0.5,\"\",'2011 Survey responses'!EH145)","v":5},{"$f":"IF('2011 Survey responses'!EI145<0.5,\"\",'2011 Survey responses'!EI145)","v":2},{"$f":"IF('2011 Survey responses'!EJ145<0.5,\"\",'2011 Survey responses'!EJ145)","v":5},{"$f":"IF('2011 Survey responses'!EK145<0.5,\"\",'2011 Survey responses'!EK145)","v":5},{"$f":"IF('2011 Survey responses'!EL145<0.5,\"\",'2011 Survey responses'!EL145)","v":3},{"$f":"IF('2011 Survey responses'!EM145<0.5,\"\",'2011 Survey responses'!EM145)","v":4},{"$f":"IF('2011 Survey responses'!EN145<0.5,\"\",'2011 Survey responses'!EN145)","v":1},{"$f":"IF('2011 Survey responses'!EO145<0.5,\"\",'2011 Survey responses'!EO145)","v":1},{"$f":"IF('2011 Survey responses'!EP145<0.5,\"\",'2011 Survey responses'!EP145)","v":1},{"$f":"IF(('2011 Survey responses'!EW145+'2011 Survey responses'!EX145)>=2,AVERAGE('2011 Survey responses'!EW145,'2011 Survey responses'!EY145),\"\")","v":4},{"$f":"IF('2011 Survey responses'!EX145<0.5,\"\",'2011 Survey responses'!EX145)","v":4},{"$f":"IF('2011 Survey responses'!EZ145<0.5,\"\",'2011 Survey responses'!EZ145)","v":4},{"$f":"IF('2011 Survey responses'!FB145<0.5,\"\",'2011 Survey responses'!FB145)","v":4},{"$f":"IF('2011 Survey responses'!FD145<0.5,\"\",'2011 Survey responses'!FD145)","v":4},{"$f":"IF('2011 Survey responses'!FC145<0.5,\"\",'2011 Survey responses'!FC145)","v":3},{"$f":"IF(('2011 Survey responses'!EM145+'2011 Survey responses'!EN145)>=2,AVERAGE('2011 Survey responses'!EM145,'2011 Survey responses'!EN145),\"\")","v":2.5},{"$f":"IF('2011 Survey responses'!ES145<0.5,\"\",'2011 Survey responses'!ES145)","v":1},{"$f":"IF(('2011 Survey responses'!ET145+'2011 Survey responses'!EU145)>=2,AVERAGE('2011 Survey responses'!ET145,'2011 Survey responses'!EU145),\"\")","v":2},{"$f":"IF('2011 Survey responses'!EV145<0.5,\"\",'2011 Survey responses'!EV145)","v":3},{"$f":"IF('2011 Survey responses'!FA145<0.5,\"\",'2011 Survey responses'!FA145)","v":4},{"$f":"IF('2011 Survey responses'!ER145<0.5,\"\",'2011 Survey responses'!ER145)","v":2},{"$f":"IF(('2011 Survey responses'!EO145+'2011 Survey responses'!EP145)>=2,AVERAGE('2011 Survey responses'!EO145,'2011 Survey responses'!EP145),\"\")","v":1},{"$f":"IF('2011 Survey responses'!EQ145<0.5,\"\",'2011 Survey responses'!EQ145)","v":1},{"$f":"IF('2011 Survey responses'!ET145<0.5,\"\",'2011 Survey responses'!ET145)","v":2},{"$f":"IF('2011 Survey responses'!EU145<0.5,\"\",'2011 Survey responses'!EU145)","v":2},{"$f":"IF('2011 Survey responses'!EW145<0.5,\"\",'2011 Survey responses'!EW145)","v":4},{"$f":"IF('2011 Survey responses'!EY145<0.5,\"\",'2011 Survey responses'!EY145)","v":4},{"$f":"IF('2011 Survey responses'!FU145<0.5,\"\",'2011 Survey responses'!FU145)","v":3},{"$f":"IF(('2011 Survey responses'!FL145+'2011 Survey responses'!FM145)>=2,AVERAGE('2011 Survey responses'!FL145,'2011 Survey responses'!FM145),\"\")","v":3},{"$f":"IF(('2011 Survey responses'!FO145+'2011 Survey responses'!FQ145)>=2,AVERAGE('2011 Survey responses'!FO145,'2011 Survey responses'!FQ145),\"\")","v":5},{"$f":"IF('2011 Survey responses'!FJ145<0.5,\"\",'2011 Survey responses'!FJ145)","v":4},{"$f":"IF('2011 Survey responses'!FT145<0.5,\"\",'2011 Survey responses'!FT145)","v":4},{"$f":"IF('2011 Survey responses'!FR145<0.5,\"\",'2011 Survey responses'!FR145)","v":5},{"$f":"IF('2011 Survey responses'!FK145<0.5,\"\",'2011 Survey responses'!FK145)","v":4},{"$f":"IF('2011 Survey responses'!FP145<0.5,\"\",'2011 Survey responses'!FP145)","v":5},{"$f":"IF('2011 Survey responses'!FN145<0.5,\"\",'2011 Survey responses'!FN145)","v":3},{"$f":"IF(('2011 Survey responses'!FE145+'2011 Survey responses'!FF145)>=2,AVERAGE('2011 Survey responses'!FE145,'2011 Survey responses'!FF145),\"\")","v":3},{"$f":"IF('2011 Survey responses'!FS145<0.5,\"\",'2011 Survey responses'!FS145)","v":5},{"$f":"IF('2011 Survey responses'!FV145<0.5,\"\",'2011 Survey responses'!FV145)","v":5},{"$f":"IF(('2011 Survey responses'!FG145+'2011 Survey responses'!FH145)>=2,AVERAGE('2011 Survey responses'!FG145,'2011 Survey responses'!FH145),\"\")","v":3},{"$f":"IF('2011 Survey responses'!FI145<0.5,\"\",'2011 Survey responses'!FI145)","v":3},{"$f":"IF('2011 Survey responses'!FE145<0.5,\"\",'2011 Survey responses'!FE145)","v":3},{"$f":"IF('2011 Survey responses'!FF145<0.5,\"\",'2011 Survey responses'!FF145)","v":3},{"$f":"IF('2011 Survey responses'!FG145<0.5,\"\",'2011 Survey responses'!FG145)","v":3},{"$f":"IF('2011 Survey responses'!FH145<0.5,\"\",'2011 Survey responses'!FH145)","v":3},{"$f":"IF('2011 Survey responses'!FL145<0.5,\"\",'2011 Survey responses'!FL145)","v":3},{"$f":"IF('2011 Survey responses'!FM145<0.5,\"\",'2011 Survey responses'!FM145)","v":3},{"$f":"IF('2011 Survey responses'!FO145<0.5,\"\",'2011 Survey responses'!FO145)","v":5},{"$f":"IF('2011 Survey responses'!FQ145<0.5,\"\",'2011 Survey responses'!FQ145)","v":5}]
["Saint Lucia",{"$f":"IF(SUM(F146)<1,\"\",AVERAGEIF('2011 Survey responses'!B146:CP146,\">1\"))","v":3.2823529411764705},{"$f":"IF(SUM(F146)<1,\"\",AVERAGEIF('2011 Survey responses'!B146:AO146,\">1\"))","v":3.1428571428571428},{"$f":"IF(SUM(F146)<1,\"\",AVERAGEIF('2011 Survey responses'!B146:BV146,\">1\"))","v":3.0746268656716418},{"$f":"IF(SUM(F146)<1,\"\",AVERAGEIF('2011 Survey responses'!V146:BV146,\">1\"))","v":3.06},{"$f":"IF(SUM('2011 Survey responses'!B146:U146)<1,\"\",(AVERAGEIFS('2011 Survey responses'!B146:U146,'2011 Survey responses'!B146:U146,\">1\")))","v":3.1176470588235294},{"$f":"IF(SUM('2011 Survey responses'!B146:H146)<1,\"\",(AVERAGEIFS('2011 Survey responses'!B146:H146,'2011 Survey responses'!B146:H146,\">1\")))","v":3.8},{"$f":"IF(SUM('2011 Survey responses'!I146:S146)<1,\"\",(AVERAGEIFS('2011 Survey responses'!I146:S146,'2011 Survey responses'!I146:S146,\">1\")))","v":2.9090909090909092},{"$f":"IF(SUM('2011 Survey responses'!T146:U146)<2.1,\"\",(AVERAGEIFS('2011 Survey responses'!T146:U146,'2011 Survey responses'!T146:U146,\">1\")))","v":2},{"$f":"IF(SUM('2011 Survey responses'!B146:C146)<2.1,\"\",((SUMIF('2011 Survey responses'!B146:C146,\">1\")+SUMIF('2011 Survey responses'!F146,\">1\"))/(COUNTIF('2011 Survey responses'!B146:C146,\">1\")+COUNTIF('2011 Survey responses'!F146,\">1\"))))","v":4},{"$f":"IF(SUM('2011 Survey responses'!D146:E146)<2.1,\"\",(AVERAGEIFS('2011 Survey responses'!D146:E146,'2011 Survey responses'!D146:E146,\">1\")))","v":6},{"$f":"IF(('2011 Survey responses'!B146+'2011 Survey responses'!D146)<2.1,\"\",((SUMIF('2011 Survey responses'!B146,\">1\")+SUMIF('2011 Survey responses'!D146,\">1\")+SUMIF('2011 Survey responses'!F146,\">1\")+SUMIF('2011 Survey responses'!K146,\">1\"))/(COUNTIF('2011 Survey responses'!B146,\">1\")+COUNTIF('2011 Survey responses'!D146,\">1\")+COUNTIF('2011 Survey responses'!F146,\">1\")+COUNTIF('2011 Survey responses'!K146,\">1\"))))","v":4},{"$f":"IF(SUM('2011 Survey responses'!G146:H146)<2.1,\"\",(AVERAGEIFS('2011 Survey responses'!G146:H146,'2011 Survey responses'!G146:H146,\">1\")))","v":2.5},{"$f":"IF(SUM('2011 Survey responses'!F146:G146)<1.5,\"\",MAX('2011 Survey responses'!F146,'2011 Survey responses'!G146))","v":3},{"$f":"IF(SUM('2011 Survey responses'!G146:H146)<1,\"\",MAX('2011 Survey responses'!G146,'2011 Survey responses'!H146))","v":3},{"$f":"IF(SUM('2011 Survey responses'!I146:L146)<4.1,\"\",(AVERAGEIFS('2011 Survey responses'!I146:L146,'2011 Survey responses'!I146:L146,\">1\")))","v":2.5},{"$f":"IF(SUM('2011 Survey responses'!M146:S146)<4.1,\"\",(AVERAGEIFS('2011 Survey responses'!M146:S146,'2011 Survey responses'!M146:S146,\">1\")))","v":3.1428571428571428},{"$f":"IF(SUM('2011 Survey responses'!T146:U146)<2.1,\"\",(AVERAGEIFS('2011 Survey responses'!T146:U146,'2011 Survey responses'!T146:U146,\">1\")))","v":2},{"$f":"IF(SUM('2011 Survey responses'!V146:AO146)<1,\"\",(AVERAGEIFS('2011 Survey responses'!V146:AO146,'2011 Survey responses'!V146:AO146,\">1\")))","v":3.1666666666666665},{"$f":"IF(SUM('2011 Survey responses'!V146:AA146)<1,\"\",(AVERAGEIFS('2011 Survey responses'!V146:AA146,'2011 Survey responses'!V146:AA146,\">1\")))","v":3.5},{"$f":"IF(SUM('2011 Survey responses'!AB146:AH146)<1,\"\",(AVERAGEIFS('2011 Survey responses'!AB146:AH146,'2011 Survey responses'!AB146:AH146,\">1\")))","v":3},{"$f":"IF(SUM('2011 Survey responses'!AI146:AO146)<1,\"\",(AVERAGEIFS('2011 Survey responses'!AI146:AO146,'2011 Survey responses'!AI146:AO146,\">1\")))","v":3.1428571428571428},{"$f":"IF(('2011 Survey responses'!Y146+'2011 Survey responses'!AI146+'2011 Survey responses'!AK146)<3.1,\"\",((SUMIF('2011 Survey responses'!Y146,\">1\")+SUMIF('2011 Survey responses'!AI146,\">1\")+SUMIF('2011 Survey responses'!AK146,\">1\")+SUMIF('2011 Survey responses'!AM146,\">1\"))/(COUNTIF('2011 Survey responses'!Y146,\">1\")+COUNTIF('2011 Survey responses'!AI146,\">1\")+COUNTIF('2011 Survey responses'!AK146,\">1\")+COUNTIF('2011 Survey responses'!AM146,\">1\"))))","v":3.5},{"$f":"IF(('2011 Survey responses'!W146)<1.1,\"\",('2011 Survey responses'!W146))","v":4},{"$f":"IF(('2011 Survey responses'!Y146)<1.1,\"\",('2011 Survey responses'!Y146))","v":4},{"$f":"IF(('2011 Survey responses'!Z146)<1.1,\"\",('2011 Survey responses'!Z146))","v":""},{"$f":"IF(('2011 Survey responses'!V146+'2011 Survey responses'!X146+'2011 Survey responses'!AA146)<3.1,\"\",((SUMIF('2011 Survey responses'!V146,\">1\")+SUMIF('2011 Survey responses'!X146,\">1\")+SUMIF('2011 Survey responses'!AA146,\">1\"))/(COUNTIF('2011 Survey responses'!V146,\">1\")+COUNTIF('2011 Survey responses'!X146,\">1\")+COUNTIF('2011 Survey responses'!AA146,\">1\"))))","v":3},{"$f":"IF(('2011 Survey responses'!V146+'2011 Survey responses'!Y146+'2011 Survey responses'!AA146)<3.1,\"\",((SUMIF('2011 Survey responses'!V146,\">1\")+SUMIF('2011 Survey responses'!Y146,\">1\")+SUMIF('2011 Survey responses'!AA146,\">1\"))/(COUNTIF('2011 Survey responses'!V146,\">1\")+COUNTIF('2011 Survey responses'!Y146,\">1\")+COUNTIF('2011 Survey responses'!AA146,\">1\"))))","v":3.3333333333333335},{"$f":"IF(SUM('2011 Survey responses'!AB146:AH146)<1,\"\",(AVERAGEIFS('2011 Survey responses'!AB146:AH146,'2011 Survey responses'!AB146:AH146,\">1\")))","v":3},{"$f":"IF(SUM('2011 Survey responses'!AI146:AO146)<7.1,\"\",(AVERAGEIFS('2011 Survey responses'!AI146:AO146,'2011 Survey responses'!AI146:AO146,\">1\")))","v":3.1428571428571428},{"$f":"IF(('2011 Survey responses'!AH146)<1.1,\"\",('2011 Survey responses'!AH146))","v":5},{"$f":"IF(SUM('2011 Survey responses'!AP146:BV146)<1,\"\",(AVERAGEIFS('2011 Survey responses'!AP146:BV146,'2011 Survey responses'!AP146:BV146,\">1\")))","v":3},{"$f":"IF(SUM('2011 Survey responses'!AP146:AS146)<4.1,\"\",(AVERAGEIFS('2011 Survey responses'!AP146:AS146,'2011 Survey responses'!AP146:AS146,\">1\")))","v":2.25},{"$f":"IF(SUM('2011 Survey responses'!AT146:BF146)<1,\"\",(AVERAGEIFS('2011 Survey responses'!AT146:BF146,'2011 Survey responses'!AT146:BF146,\">1\")))","v":2.8333333333333335},{"$f":"IF(SUM('2011 Survey responses'!BG146:BO146)<1,\"\",(AVERAGEIFS('2011 Survey responses'!BG146:BO146,'2011 Survey responses'!BG146:BO146,\">1\")))","v":3.6666666666666665},{"$f":"IF(SUM('2011 Survey responses'!BP146:BS146)<1,\"\",(AVERAGEIFS('2011 Survey responses'!BP146:BS146,'2011 Survey responses'!BP146:BS146,\">1\")))","v":3},{"$f":"IF(SUM('2011 Survey responses'!BT146:BV146)<3.1,\"\",(AVERAGEIFS('2011 Survey responses'!BT146:BV146,'2011 Survey responses'!BT146:BV146,\">1\")))","v":2.6666666666666665},{"$f":"IF(('2011 Survey responses'!AQ146+'2011 Survey responses'!AR146+'2011 Survey responses'!BG146)<3.1,\"\",((SUMIF('2011 Survey responses'!AQ146,\">1\")+SUMIF('2011 Survey responses'!AR146,\">1\")+SUMIF('2011 Survey responses'!BG146,\">1\"))/(COUNTIF('2011 Survey responses'!AQ146,\">1\")+COUNTIF('2011 Survey responses'!AR146,\">1\")+COUNTIF('2011 Survey responses'!BG146,\">1\"))))","v":3.3333333333333335},{"$f":"IF(SUM('2011 Survey responses'!AP146:AS146)<4.1,\"\",(AVERAGEIFS('2011 Survey responses'!AP146:AS146,'2011 Survey responses'!AP146:AS146,\">1\")))","v":2.25},{"$f":"IF(('2011 Survey responses'!AU146+'2011 Survey responses'!AX146+'2011 Survey responses'!BA146+'2011 Survey responses'!BC146+'2011 Survey responses'!BD146)<5.1,\"\",(SUMIF('2011 Survey responses'!AU146,\">1\")+SUMIF('2011 Survey responses'!AX146,\">1\")+SUMIF('2011 Survey responses'!BA146,\">1\")+SUMIF('2011 Survey responses'!BC146,\">1\")+SUMIF('2011 Survey responses'!BD146,\">1\"))/(COUNTIF('2011 Survey responses'!AU146,\">1\")+COUNTIF('2011 Survey responses'!AX146,\">1\")+COUNTIF('2011 Survey responses'!BA146,\">1\")+COUNTIF('2011 Survey responses'!BC146,\">1\")+COUNTIF('2011 Survey responses'!BD146,\">1\")))","v":2.8},{"$f":"IF(('2011 Survey responses'!AT146)<1.1,\"\",('2011 Survey responses'!AT146))","v":2},{"$f":"IF(SUM('2011 Survey responses'!AV146:AW146)<2.1,\"\",(AVERAGEIFS('2011 Survey responses'!AV146:AW146,'2011 Survey responses'!AV146:AW146,\">1\")))","v":2},{"$f":"IF(('2011 Survey responses'!AW146+'2011 Survey responses'!AY146)<2.1,\"\",(SUMIF('2011 Survey responses'!AW146,\">1\")+SUMIF('2011 Survey responses'!AY146,\">1\"))/(COUNTIF('2011 Survey responses'!AW146,\">1\")+COUNTIF('2011 Survey responses'!AY146,\">1\")))","v":3},{"$f":"IF(('2011 Survey responses'!AZ146)<1.1,\"\",('2011 Survey responses'!AZ146))","v":2},2,2,4,2,{"$f":"IF(('2011 Survey responses'!BE146)<1.1,\"\",('2011 Survey responses'!BE146))","v":""},{"$f":"IF(('2011 Survey responses'!AY146+'2011 Survey responses'!BB146+'2011 Survey responses'!BF146)<3.1,\"\",(SUMIF('2011 Survey responses'!AY146,\">1\")+SUMIF('2011 Survey responses'!BB146,\">1\")+SUMIF('2011 Survey responses'!BF146,\">1\"))/(COUNTIF('2011 Survey responses'!AY146,\">1\")+COUNTIF('2011 Survey responses'!BB146,\">1\")+COUNTIF('2011 Survey responses'!BF146,\">1\")))","v":4},3.333333333333333,{"$f":"IF(SUM('2011 Survey responses'!BT146:BV146)<3.1,\"\",(AVERAGEIFS('2011 Survey responses'!BT146:BV146,'2011 Survey responses'!BT146:BV146,\">1\")))","v":2.6666666666666665},{"$f":"IF(SUM('2011 Survey responses'!BW146:CP146)<1,\"\",(AVERAGEIFS('2011 Survey responses'!BW146:CP146,'2011 Survey responses'!BW146:CP146,\">1\")))","v":4.0555555555555554},{"$f":"IF(SUM('2011 Survey responses'!BW146:CF146)<1,\"\",(AVERAGEIFS('2011 Survey responses'!BW146:CF146,'2011 Survey responses'!BW146:CF146,\">1\")))","v":4.1111111111111107},{"$f":"IF(SUM('2011 Survey responses'!CG146:CP146)<1,\"\",(AVERAGEIFS('2011 Survey responses'!CG146:CP146,'2011 Survey responses'!CG146:CP146,\">1\")))","v":4},{"$f":"IF(SUM('2011 Survey responses'!BX146:CF146)<1,\"\",(AVERAGEIFS('2011 Survey responses'!BX146:CF146,'2011 Survey responses'!BX146:CF146,\">1\")))","v":4},{"$f":"IF(SUM('2011 Survey responses'!CH146:CP146)<1,\"\",(AVERAGEIFS('2011 Survey responses'!CH146:CP146,'2011 Survey responses'!CH146:CP146,\">1\")))","v":3.875},{"$f":"IF(SUM('2011 Survey responses'!BW146:CP146)<1,\"\",(AVERAGEIFS('2011 Survey responses'!BW146:CP146,'2011 Survey responses'!BW146:CP146,\">1\")))","v":4.0555555555555554},{"$f":"IF(('2011 Survey responses'!BW146+'2011 Survey responses'!CG146)<2.1,\"\",(SUMIF('2011 Survey responses'!BW146,\">1\")+SUMIF('2011 Survey responses'!CG146,\">1\"))/(COUNTIF('2011 Survey responses'!BW146,\">1\")+COUNTIF('2011 Survey responses'!CG146,\">1\")))","v":5},{"$f":"IF(('2011 Survey responses'!BX146+'2011 Survey responses'!CH146)<2.1,\"\",(SUMIF('2011 Survey responses'!BX146,\">1\")+SUMIF('2011 Survey responses'!CH146,\">1\"))/(COUNTIF('2011 Survey responses'!BX146,\">1\")+COUNTIF('2011 Survey responses'!CH146,\">1\")))","v":4},{"$f":"IF(('2011 Survey responses'!BY146+'2011 Survey responses'!CI146)<2.1,\"\",(SUMIF('2011 Survey responses'!BY146,\">1\")+SUMIF('2011 Survey responses'!CI146,\">1\"))/(COUNTIF('2011 Survey responses'!BY146,\">1\")+COUNTIF('2011 Survey responses'!CI146,\">1\")))","v":""},{"$f":"IF('2011 Survey responses'!CQ146<0.5,\"\",'2011 Survey responses'!CQ146)","v":5},{"$f":"IF('2011 Survey responses'!CR146<0.5,\"\",'2011 Survey responses'!CR146)","v":5},{"$f":"IF('2011 Survey responses'!CS146<0.5,\"\",'2011 Survey responses'!CS146)","v":5},{"$f":"IF('2011 Survey responses'!CT146<0.5,\"\",'2011 Survey responses'!CT146)","v":5},{"$f":"IF('2011 Survey responses'!CU146<0.5,\"\",'2011 Survey responses'!CU146)","v":2},{"$f":"IF('2011 Survey responses'!CV146<0.5,\"\",'2011 Survey responses'!CV146)","v":2},{"$f":"IF(SUM('2011 Survey responses'!CW146:DL146)<1,\"\",(AVERAGE('2011 Survey responses'!CW146:DL146)))","v":2.9375},{"$f":"IF(SUM('2011 Survey responses'!CW146:CZ146)<1,\"\",(AVERAGE('2011 Survey responses'!CW146:CZ146)))","v":2.5},{"$f":"IF(SUM('2011 Survey responses'!DA146:DD146)<1,\"\",(AVERAGE('2011 Survey responses'!DA146:DD146)))","v":3.5},{"$f":"IF(SUM('2011 Survey responses'!DE146:DH146)<1,\"\",(AVERAGE('2011 Survey responses'!DE146:DH146)))","v":2.75},{"$f":"IF(SUM('2011 Survey responses'!DI146:DL146)<1,\"\",(AVERAGE('2011 Survey responses'!DI146:DL146)))","v":3},{"$f":"IF(('2011 Survey responses'!CW146+'2011 Survey responses'!DA146+'2011 Survey responses'!DE146+'2011 Survey responses'!DI146)<1,\"\",AVERAGE('2011 Survey responses'!CW146,'2011 Survey responses'!DA146,'2011 Survey responses'!DE146,'2011 Survey responses'!DI146))","v":3},{"$f":"IF(('2011 Survey responses'!CX146+'2011 Survey responses'!DB146+'2011 Survey responses'!DF146+'2011 Survey responses'!DJ146)<1,\"\",AVERAGE('2011 Survey responses'!CX146,'2011 Survey responses'!DB146,'2011 Survey responses'!DF146,'2011 Survey responses'!DJ146))","v":3},{"$f":"IF(('2011 Survey responses'!CY146+'2011 Survey responses'!DC146+'2011 Survey responses'!DG146+'2011 Survey responses'!DK146)<1,\"\",AVERAGE('2011 Survey responses'!CY146,'2011 Survey responses'!DC146,'2011 Survey responses'!DG146,'2011 Survey responses'!DK146))","v":2.5},{"$f":"IF(('2011 Survey responses'!CZ146+'2011 Survey responses'!DD146+'2011 Survey responses'!DH146+'2011 Survey responses'!DL146)<1,\"\",AVERAGE('2011 Survey responses'!CZ146,'2011 Survey responses'!DD146,'2011 Survey responses'!DH146,'2011 Survey responses'!DL146))","v":3.25},{"$f":"IF('2011 Survey responses'!CW146<0.5,\"\",'2011 Survey responses'!CW146)","v":3},{"$f":"IF('2011 Survey responses'!CX146<0.5,\"\",'2011 Survey responses'!CX146)","v":2},{"$f":"IF('2011 Survey responses'!CY146<0.5,\"\",'2011 Survey responses'!CY146)","v":2},{"$f":"IF('2011 Survey responses'!CZ146<0.5,\"\",'2011 Survey responses'!CZ146)","v":3},{"$f":"IF('2011 Survey responses'!DA146<0.5,\"\",'2011 Survey responses'!DA146)","v":3},{"$f":"IF('2011 Survey responses'!DB146<0.5,\"\",'2011 Survey responses'!DB146)","v":4},{"$f":"IF('2011 Survey responses'!DC146<0.5,\"\",'2011 Survey responses'!DC146)","v":3},{"$f":"IF('2011 Survey responses'!DD146<0.5,\"\",'2011 Survey responses'!DD146)","v":4},{"$f":"IF('2011 Survey responses'!DE146<0.5,\"\",'2011 Survey responses'!DE146)","v":3},{"$f":"IF('2011 Survey responses'!DF146<0.5,\"\",'2011 Survey responses'!DF146)","v":3},{"$f":"IF('2011 Survey responses'!DG146<0.5,\"\",'2011 Survey responses'!DG146)","v":2},{"$f":"IF('2011 Survey responses'!DH146<0.5,\"\",'2011 Survey responses'!DH146)","v":3},{"$f":"IF('2011 Survey responses'!DI146<0.5,\"\",'2011 Survey responses'!DI146)","v":3},{"$f":"IF('2011 Survey responses'!DJ146<0.5,\"\",'2011 Survey responses'!DJ146)","v":3},{"$f":"IF('2011 Survey responses'!DK146<0.5,\"\",'2011 Survey responses'!DK146)","v":3},{"$f":"IF('2011 Survey responses'!DL146<0.5,\"\",'2011 Survey responses'!DL146)","v":3},{"$f":"IF('2011 Survey responses'!DU146=4,4,IF('2011 Survey responses'!DU146=5,4,\"\"))","v":4},{"$f":"IF('2011 Survey responses'!DV146=4,3,IF('2011 Survey responses'!DV146=5,3,\"\"))","v":3},2,{"$f":"IF(CQ146=2,CQ146,IF(CO146=4,CO146,IF(CP146=3,CP146,IF('2011 Survey responses'!GT146=1,1,\"\"))))","v":2},{"$f":"IF('2011 Survey responses'!DO146<0.5,\"\",'2011 Survey responses'!DO146)","v":4},{"$f":"IF('2011 Survey responses'!DP146<0.5,\"\",'2011 Survey responses'!DP146)","v":5},{"$f":"IF('2011 Survey responses'!DQ146<0.5,\"\",'2011 Survey responses'!DQ146)","v":4},{"$f":"IF('2011 Survey responses'!DR146<0.5,\"\",'2011 Survey responses'!DR146)","v":2},{"$f":"IF('2011 Survey responses'!DS146<0.5,\"\",'2011 Survey responses'!DS146)","v":5},{"$f":"IF('2011 Survey responses'!DT146<0.5,\"\",'2011 Survey responses'!DT146)","v":4},{"$f":"IF('2011 Survey responses'!DU146<0.5,\"\",'2011 Survey responses'!DU146)","v":4},{"$f":"IF('2011 Survey responses'!DV146<0.5,\"\",'2011 Survey responses'!DV146)","v":4},{"$f":"IF('2011 Survey responses'!DW146<0.5,\"\",'2011 Survey responses'!DW146)","v":4},{"$f":"IF('2011 Survey responses'!DX146<0.5,\"\",'2011 Survey responses'!DX146)","v":3},{"$f":"IF('2011 Survey responses'!DY146<0.5,\"\",'2011 Survey responses'!DY146)","v":4},{"$f":"IF('2011 Survey responses'!DZ146<0.5,\"\",'2011 Survey responses'!DZ146)","v":3},{"$f":"IF('2011 Survey responses'!EA146<0.5,\"\",'2011 Survey responses'!EA146)","v":4},{"$f":"IF('2011 Survey responses'!EB146<0.5,\"\",'2011 Survey responses'!EB146)","v":5},{"$f":"IF('2011 Survey responses'!EC146<0.5,\"\",'2011 Survey responses'!EC146)","v":4},{"$f":"IF('2011 Survey responses'!ED146<0.5,\"\",'2011 Survey responses'!ED146)","v":3},{"$f":"IF('2011 Survey responses'!EE146<0.5,\"\",'2011 Survey responses'!EE146)","v":4},{"$f":"IF('2011 Survey responses'!EF146<0.5,\"\",'2011 Survey responses'!EF146)","v":5},{"$f":"IF('2011 Survey responses'!EG146<0.5,\"\",'2011 Survey responses'!EG146)","v":5},{"$f":"IF('2011 Survey responses'!EH146<0.5,\"\",'2011 Survey responses'!EH146)","v":4},{"$f":"IF('2011 Survey responses'!EI146<0.5,\"\",'2011 Survey responses'!EI146)","v":4},{"$f":"IF('2011 Survey responses'!EJ146<0.5,\"\",'2011 Survey responses'!EJ146)","v":3},{"$f":"IF('2011 Survey responses'!EK146<0.5,\"\",'2011 Survey responses'!EK146)","v":5},{"$f":"IF('2011 Survey responses'!EL146<0.5,\"\",'2011 Survey responses'!EL146)","v":3},{"$f":"IF('2011 Survey responses'!EM146<0.5,\"\",'2011 Survey responses'!EM146)","v":3},{"$f":"IF('2011 Survey responses'!EN146<0.5,\"\",'2011 Survey responses'!EN146)","v":4},{"$f":"IF('2011 Survey responses'!EO146<0.5,\"\",'2011 Survey responses'!EO146)","v":1},{"$f":"IF('2011 Survey responses'!EP146<0.5,\"\",'2011 Survey responses'!EP146)","v":1},{"$f":"IF(('2011 Survey responses'!EW146+'2011 Survey responses'!EX146)>=2,AVERAGE('2011 Survey responses'!EW146,'2011 Survey responses'!EY146),\"\")","v":5},{"$f":"IF('2011 Survey responses'!EX146<0.5,\"\",'2011 Survey responses'!EX146)","v":5},{"$f":"IF('2011 Survey responses'!EZ146<0.5,\"\",'2011 Survey responses'!EZ146)","v":5},{"$f":"IF('2011 Survey responses'!FB146<0.5,\"\",'2011 Survey responses'!FB146)","v":5},{"$f":"IF('2011 Survey responses'!FD146<0.5,\"\",'2011 Survey responses'!FD146)","v":5},{"$f":"IF('2011 Survey responses'!FC146<0.5,\"\",'2011 Survey responses'!FC146)","v":5},{"$f":"IF(('2011 Survey responses'!EM146+'2011 Survey responses'!EN146)>=2,AVERAGE('2011 Survey responses'!EM146,'2011 Survey responses'!EN146),\"\")","v":3.5},{"$f":"IF('2011 Survey responses'!ES146<0.5,\"\",'2011 Survey responses'!ES146)","v":4},{"$f":"IF(('2011 Survey responses'!ET146+'2011 Survey responses'!EU146)>=2,AVERAGE('2011 Survey responses'!ET146,'2011 Survey responses'!EU146),\"\")","v":4},{"$f":"IF('2011 Survey responses'!EV146<0.5,\"\",'2011 Survey responses'!EV146)","v":2},{"$f":"IF('2011 Survey responses'!FA146<0.5,\"\",'2011 Survey responses'!FA146)","v":4},{"$f":"IF('2011 Survey responses'!ER146<0.5,\"\",'2011 Survey responses'!ER146)","v":4},{"$f":"IF(('2011 Survey responses'!EO146+'2011 Survey responses'!EP146)>=2,AVERAGE('2011 Survey responses'!EO146,'2011 Survey responses'!EP146),\"\")","v":1},{"$f":"IF('2011 Survey responses'!EQ146<0.5,\"\",'2011 Survey responses'!EQ146)","v":2},{"$f":"IF('2011 Survey responses'!ET146<0.5,\"\",'2011 Survey responses'!ET146)","v":4},{"$f":"IF('2011 Survey responses'!EU146<0.5,\"\",'2011 Survey responses'!EU146)","v":4},{"$f":"IF('2011 Survey responses'!EW146<0.5,\"\",'2011 Survey responses'!EW146)","v":5},{"$f":"IF('2011 Survey responses'!EY146<0.5,\"\",'2011 Survey responses'!EY146)","v":5},{"$f":"IF('2011 Survey responses'!FU146<0.5,\"\",'2011 Survey responses'!FU146)","v":4},{"$f":"IF(('2011 Survey responses'!FL146+'2011 Survey responses'!FM146)>=2,AVERAGE('2011 Survey responses'!FL146,'2011 Survey responses'!FM146),\"\")","v":4},{"$f":"IF(('2011 Survey responses'!FO146+'2011 Survey responses'!FQ146)>=2,AVERAGE('2011 Survey responses'!FO146,'2011 Survey responses'!FQ146),\"\")","v":4},{"$f":"IF('2011 Survey responses'!FJ146<0.5,\"\",'2011 Survey responses'!FJ146)","v":4},{"$f":"IF('2011 Survey responses'!FT146<0.5,\"\",'2011 Survey responses'!FT146)","v":5},{"$f":"IF('2011 Survey responses'!FR146<0.5,\"\",'2011 Survey responses'!FR146)","v":4},{"$f":"IF('2011 Survey responses'!FK146<0.5,\"\",'2011 Survey responses'!FK146)","v":4},{"$f":"IF('2011 Survey responses'!FP146<0.5,\"\",'2011 Survey responses'!FP146)","v":4},{"$f":"IF('2011 Survey responses'!FN146<0.5,\"\",'2011 Survey responses'!FN146)","v":5},{"$f":"IF(('2011 Survey responses'!FE146+'2011 Survey responses'!FF146)>=2,AVERAGE('2011 Survey responses'!FE146,'2011 Survey responses'!FF146),\"\")","v":4},{"$f":"IF('2011 Survey responses'!FS146<0.5,\"\",'2011 Survey responses'!FS146)","v":4},{"$f":"IF('2011 Survey responses'!FV146<0.5,\"\",'2011 Survey responses'!FV146)","v":4},{"$f":"IF(('2011 Survey responses'!FG146+'2011 Survey responses'!FH146)>=2,AVERAGE('2011 Survey responses'!FG146,'2011 Survey responses'!FH146),\"\")","v":3},{"$f":"IF('2011 Survey responses'!FI146<0.5,\"\",'2011 Survey responses'!FI146)","v":3},{"$f":"IF('2011 Survey responses'!FE146<0.5,\"\",'2011 Survey responses'!FE146)","v":4},{"$f":"IF('2011 Survey responses'!FF146<0.5,\"\",'2011 Survey responses'!FF146)","v":4},{"$f":"IF('2011 Survey responses'!FG146<0.5,\"\",'2011 Survey responses'!FG146)","v":3},{"$f":"IF('2011 Survey responses'!FH146<0.5,\"\",'2011 Survey responses'!FH146)","v":3},{"$f":"IF('2011 Survey responses'!FL146<0.5,\"\",'2011 Survey responses'!FL146)","v":4},{"$f":"IF('2011 Survey responses'!FM146<0.5,\"\",'2011 Survey responses'!FM146)","v":4},{"$f":"IF('2011 Survey responses'!FO146<0.5,\"\",'2011 Survey responses'!FO146)","v":4},{"$f":"IF('2011 Survey responses'!FQ146<0.5,\"\",'2011 Survey responses'!FQ146)","v":4}]
["Saint Vincent and the Grenadines",{"$f":"IF(SUM(F147)<1,\"\",AVERAGEIF('2011 Survey responses'!B147:CP147,\">1\"))","v":""},{"$f":"IF(SUM(F147)<1,\"\",AVERAGEIF('2011 Survey responses'!B147:AO147,\">1\"))","v":""},{"$f":"IF(SUM(F147)<1,\"\",AVERAGEIF('2011 Survey responses'!B147:BV147,\">1\"))","v":""},{"$f":"IF(SUM(F147)<1,\"\",AVERAGEIF('2011 Survey responses'!V147:BV147,\">1\"))","v":""},{"$f":"IF(SUM('2011 Survey responses'!B147:U147)<1,\"\",(AVERAGEIFS('2011 Survey responses'!B147:U147,'2011 Survey responses'!B147:U147,\">1\")))","v":""},{"$f":"IF(SUM('2011 Survey responses'!B147:H147)<1,\"\",(AVERAGEIFS('2011 Survey responses'!B147:H147,'2011 Survey responses'!B147:H147,\">1\")))","v":""},{"$f":"IF(SUM('2011 Survey responses'!I147:S147)<1,\"\",(AVERAGEIFS('2011 Survey responses'!I147:S147,'2011 Survey responses'!I147:S147,\">1\")))","v":""},{"$f":"IF(SUM('2011 Survey responses'!T147:U147)<2.1,\"\",(AVERAGEIFS('2011 Survey responses'!T147:U147,'2011 Survey responses'!T147:U147,\">1\")))","v":""},{"$f":"IF(SUM('2011 Survey responses'!B147:C147)<2.1,\"\",((SUMIF('2011 Survey responses'!B147:C147,\">1\")+SUMIF('2011 Survey responses'!F147,\">1\"))/(COUNTIF('2011 Survey responses'!B147:C147,\">1\")+COUNTIF('2011 Survey responses'!F147,\">1\"))))","v":""},{"$f":"IF(SUM('2011 Survey responses'!D147:E147)<2.1,\"\",(AVERAGEIFS('2011 Survey responses'!D147:E147,'2011 Survey responses'!D147:E147,\">1\")))","v":""},{"$f":"IF(('2011 Survey responses'!B147+'2011 Survey responses'!D147)<2.1,\"\",((SUMIF('2011 Survey responses'!B147,\">1\")+SUMIF('2011 Survey responses'!D147,\">1\")+SUMIF('2011 Survey responses'!F147,\">1\")+SUMIF('2011 Survey responses'!K147,\">1\"))/(COUNTIF('2011 Survey responses'!B147,\">1\")+COUNTIF('2011 Survey responses'!D147,\">1\")+COUNTIF('2011 Survey responses'!F147,\">1\")+COUNTIF('2011 Survey responses'!K147,\">1\"))))","v":""},{"$f":"IF(SUM('2011 Survey responses'!G147:H147)<2.1,\"\",(AVERAGEIFS('2011 Survey responses'!G147:H147,'2011 Survey responses'!G147:H147,\">1\")))","v":""},{"$f":"IF(SUM('2011 Survey responses'!F147:G147)<1.5,\"\",MAX('2011 Survey responses'!F147,'2011 Survey responses'!G147))","v":""},{"$f":"IF(SUM('2011 Survey responses'!G147:H147)<1,\"\",MAX('2011 Survey responses'!G147,'2011 Survey responses'!H147))","v":""},{"$f":"IF(SUM('2011 Survey responses'!I147:L147)<4.1,\"\",(AVERAGEIFS('2011 Survey responses'!I147:L147,'2011 Survey responses'!I147:L147,\">1\")))","v":""},{"$f":"IF(SUM('2011 Survey responses'!M147:S147)<4.1,\"\",(AVERAGEIFS('2011 Survey responses'!M147:S147,'2011 Survey responses'!M147:S147,\">1\")))","v":""},{"$f":"IF(SUM('2011 Survey responses'!T147:U147)<2.1,\"\",(AVERAGEIFS('2011 Survey responses'!T147:U147,'2011 Survey responses'!T147:U147,\">1\")))","v":""},{"$f":"IF(SUM('2011 Survey responses'!V147:AO147)<1,\"\",(AVERAGEIFS('2011 Survey responses'!V147:AO147,'2011 Survey responses'!V147:AO147,\">1\")))","v":""},{"$f":"IF(SUM('2011 Survey responses'!V147:AA147)<1,\"\",(AVERAGEIFS('2011 Survey responses'!V147:AA147,'2011 Survey responses'!V147:AA147,\">1\")))","v":""},{"$f":"IF(SUM('2011 Survey responses'!AB147:AH147)<1,\"\",(AVERAGEIFS('2011 Survey responses'!AB147:AH147,'2011 Survey responses'!AB147:AH147,\">1\")))","v":""},{"$f":"IF(SUM('2011 Survey responses'!AI147:AO147)<1,\"\",(AVERAGEIFS('2011 Survey responses'!AI147:AO147,'2011 Survey responses'!AI147:AO147,\">1\")))","v":""},{"$f":"IF(('2011 Survey responses'!Y147+'2011 Survey responses'!AI147+'2011 Survey responses'!AK147)<3.1,\"\",((SUMIF('2011 Survey responses'!Y147,\">1\")+SUMIF('2011 Survey responses'!AI147,\">1\")+SUMIF('2011 Survey responses'!AK147,\">1\")+SUMIF('2011 Survey responses'!AM147,\">1\"))/(COUNTIF('2011 Survey responses'!Y147,\">1\")+COUNTIF('2011 Survey responses'!AI147,\">1\")+COUNTIF('2011 Survey responses'!AK147,\">1\")+COUNTIF('2011 Survey responses'!AM147,\">1\"))))","v":""},{"$f":"IF(('2011 Survey responses'!W147)<1.1,\"\",('2011 Survey responses'!W147))","v":""},{"$f":"IF(('2011 Survey responses'!Y147)<1.1,\"\",('2011 Survey responses'!Y147))","v":""},{"$f":"IF(('2011 Survey responses'!Z147)<1.1,\"\",('2011 Survey responses'!Z147))","v":""},{"$f":"IF(('2011 Survey responses'!V147+'2011 Survey responses'!X147+'2011 Survey responses'!AA147)<3.1,\"\",((SUMIF('2011 Survey responses'!V147,\">1\")+SUMIF('2011 Survey responses'!X147,\">1\")+SUMIF('2011 Survey responses'!AA147,\">1\"))/(COUNTIF('2011 Survey responses'!V147,\">1\")+COUNTIF('2011 Survey responses'!X147,\">1\")+COUNTIF('2011 Survey responses'!AA147,\">1\"))))","v":""},{"$f":"IF(('2011 Survey responses'!V147+'2011 Survey responses'!Y147+'2011 Survey responses'!AA147)<3.1,\"\",((SUMIF('2011 Survey responses'!V147,\">1\")+SUMIF('2011 Survey responses'!Y147,\">1\")+SUMIF('2011 Survey responses'!AA147,\">1\"))/(COUNTIF('2011 Survey responses'!V147,\">1\")+COUNTIF('2011 Survey responses'!Y147,\">1\")+COUNTIF('2011 Survey responses'!AA147,\">1\"))))","v":""},{"$f":"IF(SUM('2011 Survey responses'!AB147:AH147)<1,\"\",(AVERAGEIFS('2011 Survey responses'!AB147:AH147,'2011 Survey responses'!AB147:AH147,\">1\")))","v":""},{"$f":"IF(SUM('2011 Survey responses'!AI147:AO147)<7.1,\"\",(AVERAGEIFS('2011 Survey responses'!AI147:AO147,'2011 Survey responses'!AI147:AO147,\">1\")))","v":""},{"$f":"IF(('2011 Survey responses'!AH147)<1.1,\"\",('2011 Survey responses'!AH147))","v":""},{"$f":"IF(SUM('2011 Survey responses'!AP147:BV147)<1,\"\",(AVERAGEIFS('2011 Survey responses'!AP147:BV147,'2011 Survey responses'!AP147:BV147,\">1\")))","v":""},{"$f":"IF(SUM('2011 Survey responses'!AP147:AS147)<4.1,\"\",(AVERAGEIFS('2011 Survey responses'!AP147:AS147,'2011 Survey responses'!AP147:AS147,\">1\")))","v":""},{"$f":"IF(SUM('2011 Survey responses'!AT147:BF147)<1,\"\",(AVERAGEIFS('2011 Survey responses'!AT147:BF147,'2011 Survey responses'!AT147:BF147,\">1\")))","v":""},{"$f":"IF(SUM('2011 Survey responses'!BG147:BO147)<1,\"\",(AVERAGEIFS('2011 Survey responses'!BG147:BO147,'2011 Survey responses'!BG147:BO147,\">1\")))","v":""},{"$f":"IF(SUM('2011 Survey responses'!BP147:BS147)<1,\"\",(AVERAGEIFS('2011 Survey responses'!BP147:BS147,'2011 Survey responses'!BP147:BS147,\">1\")))","v":""},{"$f":"IF(SUM('2011 Survey responses'!BT147:BV147)<3.1,\"\",(AVERAGEIFS('2011 Survey responses'!BT147:BV147,'2011 Survey responses'!BT147:BV147,\">1\")))","v":""},{"$f":"IF(('2011 Survey responses'!AQ147+'2011 Survey responses'!AR147+'2011 Survey responses'!BG147)<3.1,\"\",((SUMIF('2011 Survey responses'!AQ147,\">1\")+SUMIF('2011 Survey responses'!AR147,\">1\")+SUMIF('2011 Survey responses'!BG147,\">1\"))/(COUNTIF('2011 Survey responses'!AQ147,\">1\")+COUNTIF('2011 Survey responses'!AR147,\">1\")+COUNTIF('2011 Survey responses'!BG147,\">1\"))))","v":""},{"$f":"IF(SUM('2011 Survey responses'!AP147:AS147)<4.1,\"\",(AVERAGEIFS('2011 Survey responses'!AP147:AS147,'2011 Survey responses'!AP147:AS147,\">1\")))","v":""},{"$f":"IF(('2011 Survey responses'!AU147+'2011 Survey responses'!AX147+'2011 Survey responses'!BA147+'2011 Survey responses'!BC147+'2011 Survey responses'!BD147)<5.1,\"\",(SUMIF('2011 Survey responses'!AU147,\">1\")+SUMIF('2011 Survey responses'!AX147,\">1\")+SUMIF('2011 Survey responses'!BA147,\">1\")+SUMIF('2011 Survey responses'!BC147,\">1\")+SUMIF('2011 Survey responses'!BD147,\">1\"))/(COUNTIF('2011 Survey responses'!AU147,\">1\")+COUNTIF('2011 Survey responses'!AX147,\">1\")+COUNTIF('2011 Survey responses'!BA147,\">1\")+COUNTIF('2011 Survey responses'!BC147,\">1\")+COUNTIF('2011 Survey responses'!BD147,\">1\")))","v":""},{"$f":"IF(('2011 Survey responses'!AT147)<1.1,\"\",('2011 Survey responses'!AT147))","v":""},{"$f":"IF(SUM('2011 Survey responses'!AV147:AW147)<2.1,\"\",(AVERAGEIFS('2011 Survey responses'!AV147:AW147,'2011 Survey responses'!AV147:AW147,\">1\")))","v":""},{"$f":"IF(('2011 Survey responses'!AW147+'2011 Survey responses'!AY147)<2.1,\"\",(SUMIF('2011 Survey responses'!AW147,\">1\")+SUMIF('2011 Survey responses'!AY147,\">1\"))/(COUNTIF('2011 Survey responses'!AW147,\">1\")+COUNTIF('2011 Survey responses'!AY147,\">1\")))","v":""},{"$f":"IF(('2011 Survey responses'!AZ147)<1.1,\"\",('2011 Survey responses'!AZ147))","v":""},null,null,null,null,{"$f":"IF(('2011 Survey responses'!BE147)<1.1,\"\",('2011 Survey responses'!BE147))","v":""},{"$f":"IF(('2011 Survey responses'!AY147+'2011 Survey responses'!BB147+'2011 Survey responses'!BF147)<3.1,\"\",(SUMIF('2011 Survey responses'!AY147,\">1\")+SUMIF('2011 Survey responses'!BB147,\">1\")+SUMIF('2011 Survey responses'!BF147,\">1\"))/(COUNTIF('2011 Survey responses'!AY147,\">1\")+COUNTIF('2011 Survey responses'!BB147,\">1\")+COUNTIF('2011 Survey responses'!BF147,\">1\")))","v":""},"",{"$f":"IF(SUM('2011 Survey responses'!BT147:BV147)<3.1,\"\",(AVERAGEIFS('2011 Survey responses'!BT147:BV147,'2011 Survey responses'!BT147:BV147,\">1\")))","v":""},{"$f":"IF(SUM('2011 Survey responses'!BW147:CP147)<1,\"\",(AVERAGEIFS('2011 Survey responses'!BW147:CP147,'2011 Survey responses'!BW147:CP147,\">1\")))","v":""},{"$f":"IF(SUM('2011 Survey responses'!BW147:CF147)<1,\"\",(AVERAGEIFS('2011 Survey responses'!BW147:CF147,'2011 Survey responses'!BW147:CF147,\">1\")))","v":""},{"$f":"IF(SUM('2011 Survey responses'!CG147:CP147)<1,\"\",(AVERAGEIFS('2011 Survey responses'!CG147:CP147,'2011 Survey responses'!CG147:CP147,\">1\")))","v":""},{"$f":"IF(SUM('2011 Survey responses'!BX147:CF147)<1,\"\",(AVERAGEIFS('2011 Survey responses'!BX147:CF147,'2011 Survey responses'!BX147:CF147,\">1\")))","v":""},{"$f":"IF(SUM('2011 Survey responses'!CH147:CP147)<1,\"\",(AVERAGEIFS('2011 Survey responses'!CH147:CP147,'2011 Survey responses'!CH147:CP147,\">1\")))","v":""},{"$f":"IF(SUM('2011 Survey responses'!BW147:CP147)<1,\"\",(AVERAGEIFS('2011 Survey responses'!BW147:CP147,'2011 Survey responses'!BW147:CP147,\">1\")))","v":""},{"$f":"IF(('2011 Survey responses'!BW147+'2011 Survey responses'!CG147)<2.1,\"\",(SUMIF('2011 Survey responses'!BW147,\">1\")+SUMIF('2011 Survey responses'!CG147,\">1\"))/(COUNTIF('2011 Survey responses'!BW147,\">1\")+COUNTIF('2011 Survey responses'!CG147,\">1\")))","v":""},{"$f":"IF(('2011 Survey responses'!BX147+'2011 Survey responses'!CH147)<2.1,\"\",(SUMIF('2011 Survey responses'!BX147,\">1\")+SUMIF('2011 Survey responses'!CH147,\">1\"))/(COUNTIF('2011 Survey responses'!BX147,\">1\")+COUNTIF('2011 Survey responses'!CH147,\">1\")))","v":""},{"$f":"IF(('2011 Survey responses'!BY147+'2011 Survey responses'!CI147)<2.1,\"\",(SUMIF('2011 Survey responses'!BY147,\">1\")+SUMIF('2011 Survey responses'!CI147,\">1\"))/(COUNTIF('2011 Survey responses'!BY147,\">1\")+COUNTIF('2011 Survey responses'!CI147,\">1\")))","v":""},{"$f":"IF('2011 Survey responses'!CQ147<0.5,\"\",'2011 Survey responses'!CQ147)","v":""},{"$f":"IF('2011 Survey responses'!CR147<0.5,\"\",'2011 Survey responses'!CR147)","v":""},{"$f":"IF('2011 Survey responses'!CS147<0.5,\"\",'2011 Survey responses'!CS147)","v":""},{"$f":"IF('2011 Survey responses'!CT147<0.5,\"\",'2011 Survey responses'!CT147)","v":""},{"$f":"IF('2011 Survey responses'!CU147<0.5,\"\",'2011 Survey responses'!CU147)","v":""},{"$f":"IF('2011 Survey responses'!CV147<0.5,\"\",'2011 Survey responses'!CV147)","v":""},{"$f":"IF(SUM('2011 Survey responses'!CW147:DL147)<1,\"\",(AVERAGE('2011 Survey responses'!CW147:DL147)))","v":""},{"$f":"IF(SUM('2011 Survey responses'!CW147:CZ147)<1,\"\",(AVERAGE('2011 Survey responses'!CW147:CZ147)))","v":""},{"$f":"IF(SUM('2011 Survey responses'!DA147:DD147)<1,\"\",(AVERAGE('2011 Survey responses'!DA147:DD147)))","v":""},{"$f":"IF(SUM('2011 Survey responses'!DE147:DH147)<1,\"\",(AVERAGE('2011 Survey responses'!DE147:DH147)))","v":""},{"$f":"IF(SUM('2011 Survey responses'!DI147:DL147)<1,\"\",(AVERAGE('2011 Survey responses'!DI147:DL147)))","v":""},{"$f":"IF(('2011 Survey responses'!CW147+'2011 Survey responses'!DA147+'2011 Survey responses'!DE147+'2011 Survey responses'!DI147)<1,\"\",AVERAGE('2011 Survey responses'!CW147,'2011 Survey responses'!DA147,'2011 Survey responses'!DE147,'2011 Survey responses'!DI147))","v":""},{"$f":"IF(('2011 Survey responses'!CX147+'2011 Survey responses'!DB147+'2011 Survey responses'!DF147+'2011 Survey responses'!DJ147)<1,\"\",AVERAGE('2011 Survey responses'!CX147,'2011 Survey responses'!DB147,'2011 Survey responses'!DF147,'2011 Survey responses'!DJ147))","v":""},{"$f":"IF(('2011 Survey responses'!CY147+'2011 Survey responses'!DC147+'2011 Survey responses'!DG147+'2011 Survey responses'!DK147)<1,\"\",AVERAGE('2011 Survey responses'!CY147,'2011 Survey responses'!DC147,'2011 Survey responses'!DG147,'2011 Survey responses'!DK147))","v":""},{"$f":"IF(('2011 Survey responses'!CZ147+'2011 Survey responses'!DD147+'2011 Survey responses'!DH147+'2011 Survey responses'!DL147)<1,\"\",AVERAGE('2011 Survey responses'!CZ147,'2011 Survey responses'!DD147,'2011 Survey responses'!DH147,'2011 Survey responses'!DL147))","v":""},{"$f":"IF('2011 Survey responses'!CW147<0.5,\"\",'2011 Survey responses'!CW147)","v":""},{"$f":"IF('2011 Survey responses'!CX147<0.5,\"\",'2011 Survey responses'!CX147)","v":""},{"$f":"IF('2011 Survey responses'!CY147<0.5,\"\",'2011 Survey responses'!CY147)","v":""},{"$f":"IF('2011 Survey responses'!CZ147<0.5,\"\",'2011 Survey responses'!CZ147)","v":""},{"$f":"IF('2011 Survey responses'!DA147<0.5,\"\",'2011 Survey responses'!DA147)","v":""},{"$f":"IF('2011 Survey responses'!DB147<0.5,\"\",'2011 Survey responses'!DB147)","v":""},{"$f":"IF('2011 Survey responses'!DC147<0.5,\"\",'2011 Survey responses'!DC147)","v":""},{"$f":"IF('2011 Survey responses'!DD147<0.5,\"\",'2011 Survey responses'!DD147)","v":""},{"$f":"IF('2011 Survey responses'!DE147<0.5,\"\",'2011 Survey responses'!DE147)","v":""},{"$f":"IF('2011 Survey responses'!DF147<0.5,\"\",'2011 Survey responses'!DF147)","v":""},{"$f":"IF('2011 Survey responses'!DG147<0.5,\"\",'2011 Survey responses'!DG147)","v":""},{"$f":"IF('2011 Survey responses'!DH147<0.5,\"\",'2011 Survey responses'!DH147)","v":""},{"$f":"IF('2011 Survey responses'!DI147<0.5,\"\",'2011 Survey responses'!DI147)","v":""},{"$f":"IF('2011 Survey responses'!DJ147<0.5,\"\",'2011 Survey responses'!DJ147)","v":""},{"$f":"IF('2011 Survey responses'!DK147<0.5,\"\",'2011 Survey responses'!DK147)","v":""},{"$f":"IF('2011 Survey responses'!DL147<0.5,\"\",'2011 Survey responses'!DL147)","v":""},{"$f":"IF('2011 Survey responses'!DU147=4,4,IF('2011 Survey responses'!DU147=5,4,\"\"))","v":""},{"$f":"IF('2011 Survey responses'!DV147=4,3,IF('2011 Survey responses'!DV147=5,3,\"\"))","v":""},"",{"$f":"IF(CQ147=2,CQ147,IF(CO147=4,CO147,IF(CP147=3,CP147,IF('2011 Survey responses'!GT147=1,1,\"\"))))","v":""},{"$f":"IF('2011 Survey responses'!DO147<0.5,\"\",'2011 Survey responses'!DO147)","v":""},{"$f":"IF('2011 Survey responses'!DP147<0.5,\"\",'2011 Survey responses'!DP147)","v":""},{"$f":"IF('2011 Survey responses'!DQ147<0.5,\"\",'2011 Survey responses'!DQ147)","v":""},{"$f":"IF('2011 Survey responses'!DR147<0.5,\"\",'2011 Survey responses'!DR147)","v":""},{"$f":"IF('2011 Survey responses'!DS147<0.5,\"\",'2011 Survey responses'!DS147)","v":""},{"$f":"IF('2011 Survey responses'!DT147<0.5,\"\",'2011 Survey responses'!DT147)","v":""},{"$f":"IF('2011 Survey responses'!DU147<0.5,\"\",'2011 Survey responses'!DU147)","v":""},{"$f":"IF('2011 Survey responses'!DV147<0.5,\"\",'2011 Survey responses'!DV147)","v":""},{"$f":"IF('2011 Survey responses'!DW147<0.5,\"\",'2011 Survey responses'!DW147)","v":""},{"$f":"IF('2011 Survey responses'!DX147<0.5,\"\",'2011 Survey responses'!DX147)","v":""},{"$f":"IF('2011 Survey responses'!DY147<0.5,\"\",'2011 Survey responses'!DY147)","v":""},{"$f":"IF('2011 Survey responses'!DZ147<0.5,\"\",'2011 Survey responses'!DZ147)","v":""},{"$f":"IF('2011 Survey responses'!EA147<0.5,\"\",'2011 Survey responses'!EA147)","v":""},{"$f":"IF('2011 Survey responses'!EB147<0.5,\"\",'2011 Survey responses'!EB147)","v":""},{"$f":"IF('2011 Survey responses'!EC147<0.5,\"\",'2011 Survey responses'!EC147)","v":""},{"$f":"IF('2011 Survey responses'!ED147<0.5,\"\",'2011 Survey responses'!ED147)","v":""},{"$f":"IF('2011 Survey responses'!EE147<0.5,\"\",'2011 Survey responses'!EE147)","v":""},{"$f":"IF('2011 Survey responses'!EF147<0.5,\"\",'2011 Survey responses'!EF147)","v":""},{"$f":"IF('2011 Survey responses'!EG147<0.5,\"\",'2011 Survey responses'!EG147)","v":""},{"$f":"IF('2011 Survey responses'!EH147<0.5,\"\",'2011 Survey responses'!EH147)","v":""},{"$f":"IF('2011 Survey responses'!EI147<0.5,\"\",'2011 Survey responses'!EI147)","v":""},{"$f":"IF('2011 Survey responses'!EJ147<0.5,\"\",'2011 Survey responses'!EJ147)","v":""},{"$f":"IF('2011 Survey responses'!EK147<0.5,\"\",'2011 Survey responses'!EK147)","v":""},{"$f":"IF('2011 Survey responses'!EL147<0.5,\"\",'2011 Survey responses'!EL147)","v":""},{"$f":"IF('2011 Survey responses'!EM147<0.5,\"\",'2011 Survey responses'!EM147)","v":""},{"$f":"IF('2011 Survey responses'!EN147<0.5,\"\",'2011 Survey responses'!EN147)","v":""},{"$f":"IF('2011 Survey responses'!EO147<0.5,\"\",'2011 Survey responses'!EO147)","v":""},{"$f":"IF('2011 Survey responses'!EP147<0.5,\"\",'2011 Survey responses'!EP147)","v":""},{"$f":"IF(('2011 Survey responses'!EW147+'2011 Survey responses'!EX147)>=2,AVERAGE('2011 Survey responses'!EW147,'2011 Survey responses'!EY147),\"\")","v":""},{"$f":"IF('2011 Survey responses'!EX147<0.5,\"\",'2011 Survey responses'!EX147)","v":""},{"$f":"IF('2011 Survey responses'!EZ147<0.5,\"\",'2011 Survey responses'!EZ147)","v":""},{"$f":"IF('2011 Survey responses'!FB147<0.5,\"\",'2011 Survey responses'!FB147)","v":""},{"$f":"IF('2011 Survey responses'!FD147<0.5,\"\",'2011 Survey responses'!FD147)","v":""},{"$f":"IF('2011 Survey responses'!FC147<0.5,\"\",'2011 Survey responses'!FC147)","v":""},{"$f":"IF(('2011 Survey responses'!EM147+'2011 Survey responses'!EN147)>=2,AVERAGE('2011 Survey responses'!EM147,'2011 Survey responses'!EN147),\"\")","v":""},{"$f":"IF('2011 Survey responses'!ES147<0.5,\"\",'2011 Survey responses'!ES147)","v":""},{"$f":"IF(('2011 Survey responses'!ET147+'2011 Survey responses'!EU147)>=2,AVERAGE('2011 Survey responses'!ET147,'2011 Survey responses'!EU147),\"\")","v":""},{"$f":"IF('2011 Survey responses'!EV147<0.5,\"\",'2011 Survey responses'!EV147)","v":""},{"$f":"IF('2011 Survey responses'!FA147<0.5,\"\",'2011 Survey responses'!FA147)","v":""},{"$f":"IF('2011 Survey responses'!ER147<0.5,\"\",'2011 Survey responses'!ER147)","v":""},{"$f":"IF(('2011 Survey responses'!EO147+'2011 Survey responses'!EP147)>=2,AVERAGE('2011 Survey responses'!EO147,'2011 Survey responses'!EP147),\"\")","v":""},{"$f":"IF('2011 Survey responses'!EQ147<0.5,\"\",'2011 Survey responses'!EQ147)","v":""},{"$f":"IF('2011 Survey responses'!ET147<0.5,\"\",'2011 Survey responses'!ET147)","v":""},{"$f":"IF('2011 Survey responses'!EU147<0.5,\"\",'2011 Survey responses'!EU147)","v":""},{"$f":"IF('2011 Survey responses'!EW147<0.5,\"\",'2011 Survey responses'!EW147)","v":""},{"$f":"IF('2011 Survey responses'!EY147<0.5,\"\",'2011 Survey responses'!EY147)","v":""},{"$f":"IF('2011 Survey responses'!FU147<0.5,\"\",'2011 Survey responses'!FU147)","v":""},{"$f":"IF(('2011 Survey responses'!FL147+'2011 Survey responses'!FM147)>=2,AVERAGE('2011 Survey responses'!FL147,'2011 Survey responses'!FM147),\"\")","v":""},{"$f":"IF(('2011 Survey responses'!FO147+'2011 Survey responses'!FQ147)>=2,AVERAGE('2011 Survey responses'!FO147,'2011 Survey responses'!FQ147),\"\")","v":""},{"$f":"IF('2011 Survey responses'!FJ147<0.5,\"\",'2011 Survey responses'!FJ147)","v":""},{"$f":"IF('2011 Survey responses'!FT147<0.5,\"\",'2011 Survey responses'!FT147)","v":""},{"$f":"IF('2011 Survey responses'!FR147<0.5,\"\",'2011 Survey responses'!FR147)","v":""},{"$f":"IF('2011 Survey responses'!FK147<0.5,\"\",'2011 Survey responses'!FK147)","v":""},{"$f":"IF('2011 Survey responses'!FP147<0.5,\"\",'2011 Survey responses'!FP147)","v":""},{"$f":"IF('2011 Survey responses'!FN147<0.5,\"\",'2011 Survey responses'!FN147)","v":""},{"$f":"IF(('2011 Survey responses'!FE147+'2011 Survey responses'!FF147)>=2,AVERAGE('2011 Survey responses'!FE147,'2011 Survey responses'!FF147),\"\")","v":""},{"$f":"IF('2011 Survey responses'!FS147<0.5,\"\",'2011 Survey responses'!FS147)","v":""},{"$f":"IF('2011 Survey responses'!FV147<0.5,\"\",'2011 Survey responses'!FV147)","v":""},{"$f":"IF(('2011 Survey responses'!FG147+'2011 Survey responses'!FH147)>=2,AVERAGE('2011 Survey responses'!FG147,'2011 Survey responses'!FH147),\"\")","v":""},{"$f":"IF('2011 Survey responses'!FI147<0.5,\"\",'2011 Survey responses'!FI147)","v":""},{"$f":"IF('2011 Survey responses'!FE147<0.5,\"\",'2011 Survey responses'!FE147)","v":""},{"$f":"IF('2011 Survey responses'!FF147<0.5,\"\",'2011 Survey responses'!FF147)","v":""},{"$f":"IF('2011 Survey responses'!FG147<0.5,\"\",'2011 Survey responses'!FG147)","v":""},{"$f":"IF('2011 Survey responses'!FH147<0.5,\"\",'2011 Survey responses'!FH147)","v":""},{"$f":"IF('2011 Survey responses'!FL147<0.5,\"\",'2011 Survey responses'!FL147)","v":""},{"$f":"IF('2011 Survey responses'!FM147<0.5,\"\",'2011 Survey responses'!FM147)","v":""},{"$f":"IF('2011 Survey responses'!FO147<0.5,\"\",'2011 Survey responses'!FO147)","v":""},{"$f":"IF('2011 Survey responses'!FQ147<0.5,\"\",'2011 Survey responses'!FQ147)","v":""}]
["Samoa",{"$f":"IF(SUM(F148)<1,\"\",AVERAGEIF('2011 Survey responses'!B148:CP148,\">1\"))","v":3.7439024390243905},{"$f":"IF(SUM(F148)<1,\"\",AVERAGEIF('2011 Survey responses'!B148:AO148,\">1\"))","v":3.8},{"$f":"IF(SUM(F148)<1,\"\",AVERAGEIF('2011 Survey responses'!B148:BV148,\">1\"))","v":3.606060606060606},{"$f":"IF(SUM(F148)<1,\"\",AVERAGEIF('2011 Survey responses'!V148:BV148,\">1\"))","v":3.64},{"$f":"IF(SUM('2011 Survey responses'!B148:U148)<1,\"\",(AVERAGEIFS('2011 Survey responses'!B148:U148,'2011 Survey responses'!B148:U148,\">1\")))","v":3.5},{"$f":"IF(SUM('2011 Survey responses'!B148:H148)<1,\"\",(AVERAGEIFS('2011 Survey responses'!B148:H148,'2011 Survey responses'!B148:H148,\">1\")))","v":3.2},{"$f":"IF(SUM('2011 Survey responses'!I148:S148)<1,\"\",(AVERAGEIFS('2011 Survey responses'!I148:S148,'2011 Survey responses'!I148:S148,\">1\")))","v":3.5},{"$f":"IF(SUM('2011 Survey responses'!T148:U148)<2.1,\"\",(AVERAGEIFS('2011 Survey responses'!T148:U148,'2011 Survey responses'!T148:U148,\">1\")))","v":5},{"$f":"IF(SUM('2011 Survey responses'!B148:C148)<2.1,\"\",((SUMIF('2011 Survey responses'!B148:C148,\">1\")+SUMIF('2011 Survey responses'!F148,\">1\"))/(COUNTIF('2011 Survey responses'!B148:C148,\">1\")+COUNTIF('2011 Survey responses'!F148,\">1\"))))","v":4},{"$f":"IF(SUM('2011 Survey responses'!D148:E148)<2.1,\"\",(AVERAGEIFS('2011 Survey responses'!D148:E148,'2011 Survey responses'!D148:E148,\">1\")))","v":3},{"$f":"IF(('2011 Survey responses'!B148+'2011 Survey responses'!D148)<2.1,\"\",((SUMIF('2011 Survey responses'!B148,\">1\")+SUMIF('2011 Survey responses'!D148,\">1\")+SUMIF('2011 Survey responses'!F148,\">1\")+SUMIF('2011 Survey responses'!K148,\">1\"))/(COUNTIF('2011 Survey responses'!B148,\">1\")+COUNTIF('2011 Survey responses'!D148,\">1\")+COUNTIF('2011 Survey responses'!F148,\">1\")+COUNTIF('2011 Survey responses'!K148,\">1\"))))","v":4.25},{"$f":"IF(SUM('2011 Survey responses'!G148:H148)<2.1,\"\",(AVERAGEIFS('2011 Survey responses'!G148:H148,'2011 Survey responses'!G148:H148,\">1\")))","v":2},{"$f":"IF(SUM('2011 Survey responses'!F148:G148)<1.5,\"\",MAX('2011 Survey responses'!F148,'2011 Survey responses'!G148))","v":4},{"$f":"IF(SUM('2011 Survey responses'!G148:H148)<1,\"\",MAX('2011 Survey responses'!G148,'2011 Survey responses'!H148))","v":2},{"$f":"IF(SUM('2011 Survey responses'!I148:L148)<4.1,\"\",(AVERAGEIFS('2011 Survey responses'!I148:L148,'2011 Survey responses'!I148:L148,\">1\")))","v":4},{"$f":"IF(SUM('2011 Survey responses'!M148:S148)<4.1,\"\",(AVERAGEIFS('2011 Survey responses'!M148:S148,'2011 Survey responses'!M148:S148,\">1\")))","v":3.2857142857142856},{"$f":"IF(SUM('2011 Survey responses'!T148:U148)<2.1,\"\",(AVERAGEIFS('2011 Survey responses'!T148:U148,'2011 Survey responses'!T148:U148,\">1\")))","v":5},{"$f":"IF(SUM('2011 Survey responses'!V148:AO148)<1,\"\",(AVERAGEIFS('2011 Survey responses'!V148:AO148,'2011 Survey responses'!V148:AO148,\">1\")))","v":4.0526315789473681},{"$f":"IF(SUM('2011 Survey responses'!V148:AA148)<1,\"\",(AVERAGEIFS('2011 Survey responses'!V148:AA148,'2011 Survey responses'!V148:AA148,\">1\")))","v":3.6},{"$f":"IF(SUM('2011 Survey responses'!AB148:AH148)<1,\"\",(AVERAGEIFS('2011 Survey responses'!AB148:AH148,'2011 Survey responses'!AB148:AH148,\">1\")))","v":4.2857142857142856},{"$f":"IF(SUM('2011 Survey responses'!AI148:AO148)<1,\"\",(AVERAGEIFS('2011 Survey responses'!AI148:AO148,'2011 Survey responses'!AI148:AO148,\">1\")))","v":4.1428571428571432},{"$f":"IF(('2011 Survey responses'!Y148+'2011 Survey responses'!AI148+'2011 Survey responses'!AK148)<3.1,\"\",((SUMIF('2011 Survey responses'!Y148,\">1\")+SUMIF('2011 Survey responses'!AI148,\">1\")+SUMIF('2011 Survey responses'!AK148,\">1\")+SUMIF('2011 Survey responses'!AM148,\">1\"))/(COUNTIF('2011 Survey responses'!Y148,\">1\")+COUNTIF('2011 Survey responses'!AI148,\">1\")+COUNTIF('2011 Survey responses'!AK148,\">1\")+COUNTIF('2011 Survey responses'!AM148,\">1\"))))","v":4},{"$f":"IF(('2011 Survey responses'!W148)<1.1,\"\",('2011 Survey responses'!W148))","v":3},{"$f":"IF(('2011 Survey responses'!Y148)<1.1,\"\",('2011 Survey responses'!Y148))","v":4},{"$f":"IF(('2011 Survey responses'!Z148)<1.1,\"\",('2011 Survey responses'!Z148))","v":""},{"$f":"IF(('2011 Survey responses'!V148+'2011 Survey responses'!X148+'2011 Survey responses'!AA148)<3.1,\"\",((SUMIF('2011 Survey responses'!V148,\">1\")+SUMIF('2011 Survey responses'!X148,\">1\")+SUMIF('2011 Survey responses'!AA148,\">1\"))/(COUNTIF('2011 Survey responses'!V148,\">1\")+COUNTIF('2011 Survey responses'!X148,\">1\")+COUNTIF('2011 Survey responses'!AA148,\">1\"))))","v":3.6666666666666665},{"$f":"IF(('2011 Survey responses'!V148+'2011 Survey responses'!Y148+'2011 Survey responses'!AA148)<3.1,\"\",((SUMIF('2011 Survey responses'!V148,\">1\")+SUMIF('2011 Survey responses'!Y148,\">1\")+SUMIF('2011 Survey responses'!AA148,\">1\"))/(COUNTIF('2011 Survey responses'!V148,\">1\")+COUNTIF('2011 Survey responses'!Y148,\">1\")+COUNTIF('2011 Survey responses'!AA148,\">1\"))))","v":4},{"$f":"IF(SUM('2011 Survey responses'!AB148:AH148)<1,\"\",(AVERAGEIFS('2011 Survey responses'!AB148:AH148,'2011 Survey responses'!AB148:AH148,\">1\")))","v":4.2857142857142856},{"$f":"IF(SUM('2011 Survey responses'!AI148:AO148)<7.1,\"\",(AVERAGEIFS('2011 Survey responses'!AI148:AO148,'2011 Survey responses'!AI148:AO148,\">1\")))","v":4.1428571428571432},{"$f":"IF(('2011 Survey responses'!AH148)<1.1,\"\",('2011 Survey responses'!AH148))","v":4},{"$f":"IF(SUM('2011 Survey responses'!AP148:BV148)<1,\"\",(AVERAGEIFS('2011 Survey responses'!AP148:BV148,'2011 Survey responses'!AP148:BV148,\">1\")))","v":3.3870967741935485},{"$f":"IF(SUM('2011 Survey responses'!AP148:AS148)<4.1,\"\",(AVERAGEIFS('2011 Survey responses'!AP148:AS148,'2011 Survey responses'!AP148:AS148,\">1\")))","v":3.25},{"$f":"IF(SUM('2011 Survey responses'!AT148:BF148)<1,\"\",(AVERAGEIFS('2011 Survey responses'!AT148:BF148,'2011 Survey responses'!AT148:BF148,\">1\")))","v":3.0909090909090908},{"$f":"IF(SUM('2011 Survey responses'!BG148:BO148)<1,\"\",(AVERAGEIFS('2011 Survey responses'!BG148:BO148,'2011 Survey responses'!BG148:BO148,\">1\")))","v":3.8888888888888888},{"$f":"IF(SUM('2011 Survey responses'!BP148:BS148)<1,\"\",(AVERAGEIFS('2011 Survey responses'!BP148:BS148,'2011 Survey responses'!BP148:BS148,\">1\")))","v":3.5},{"$f":"IF(SUM('2011 Survey responses'!BT148:BV148)<3.1,\"\",(AVERAGEIFS('2011 Survey responses'!BT148:BV148,'2011 Survey responses'!BT148:BV148,\">1\")))","v":3},{"$f":"IF(('2011 Survey responses'!AQ148+'2011 Survey responses'!AR148+'2011 Survey responses'!BG148)<3.1,\"\",((SUMIF('2011 Survey responses'!AQ148,\">1\")+SUMIF('2011 Survey responses'!AR148,\">1\")+SUMIF('2011 Survey responses'!BG148,\">1\"))/(COUNTIF('2011 Survey responses'!AQ148,\">1\")+COUNTIF('2011 Survey responses'!AR148,\">1\")+COUNTIF('2011 Survey responses'!BG148,\">1\"))))","v":4},{"$f":"IF(SUM('2011 Survey responses'!AP148:AS148)<4.1,\"\",(AVERAGEIFS('2011 Survey responses'!AP148:AS148,'2011 Survey responses'!AP148:AS148,\">1\")))","v":3.25},{"$f":"IF(('2011 Survey responses'!AU148+'2011 Survey responses'!AX148+'2011 Survey responses'!BA148+'2011 Survey responses'!BC148+'2011 Survey responses'!BD148)<5.1,\"\",(SUMIF('2011 Survey responses'!AU148,\">1\")+SUMIF('2011 Survey responses'!AX148,\">1\")+SUMIF('2011 Survey responses'!BA148,\">1\")+SUMIF('2011 Survey responses'!BC148,\">1\")+SUMIF('2011 Survey responses'!BD148,\">1\"))/(COUNTIF('2011 Survey responses'!AU148,\">1\")+COUNTIF('2011 Survey responses'!AX148,\">1\")+COUNTIF('2011 Survey responses'!BA148,\">1\")+COUNTIF('2011 Survey responses'!BC148,\">1\")+COUNTIF('2011 Survey responses'!BD148,\">1\")))","v":3.75},{"$f":"IF(('2011 Survey responses'!AT148)<1.1,\"\",('2011 Survey responses'!AT148))","v":4},{"$f":"IF(SUM('2011 Survey responses'!AV148:AW148)<2.1,\"\",(AVERAGEIFS('2011 Survey responses'!AV148:AW148,'2011 Survey responses'!AV148:AW148,\">1\")))","v":2.5},{"$f":"IF(('2011 Survey responses'!AW148+'2011 Survey responses'!AY148)<2.1,\"\",(SUMIF('2011 Survey responses'!AW148,\">1\")+SUMIF('2011 Survey responses'!AY148,\">1\"))/(COUNTIF('2011 Survey responses'!AW148,\">1\")+COUNTIF('2011 Survey responses'!AY148,\">1\")))","v":2},{"$f":"IF(('2011 Survey responses'!AZ148)<1.1,\"\",('2011 Survey responses'!AZ148))","v":2},2,1,2,2,{"$f":"IF(('2011 Survey responses'!BE148)<1.1,\"\",('2011 Survey responses'!BE148))","v":""},{"$f":"IF(('2011 Survey responses'!AY148+'2011 Survey responses'!BB148+'2011 Survey responses'!BF148)<3.1,\"\",(SUMIF('2011 Survey responses'!AY148,\">1\")+SUMIF('2011 Survey responses'!BB148,\">1\")+SUMIF('2011 Survey responses'!BF148,\">1\"))/(COUNTIF('2011 Survey responses'!AY148,\">1\")+COUNTIF('2011 Survey responses'!BB148,\">1\")+COUNTIF('2011 Survey responses'!BF148,\">1\")))","v":2.6666666666666665},3.6944444444444446,{"$f":"IF(SUM('2011 Survey responses'!BT148:BV148)<3.1,\"\",(AVERAGEIFS('2011 Survey responses'!BT148:BV148,'2011 Survey responses'!BT148:BV148,\">1\")))","v":3},{"$f":"IF(SUM('2011 Survey responses'!BW148:CP148)<1,\"\",(AVERAGEIFS('2011 Survey responses'!BW148:CP148,'2011 Survey responses'!BW148:CP148,\">1\")))","v":4.3125},{"$f":"IF(SUM('2011 Survey responses'!BW148:CF148)<1,\"\",(AVERAGEIFS('2011 Survey responses'!BW148:CF148,'2011 Survey responses'!BW148:CF148,\">1\")))","v":4.25},{"$f":"IF(SUM('2011 Survey responses'!CG148:CP148)<1,\"\",(AVERAGEIFS('2011 Survey responses'!CG148:CP148,'2011 Survey responses'!CG148:CP148,\">1\")))","v":4.375},{"$f":"IF(SUM('2011 Survey responses'!BX148:CF148)<1,\"\",(AVERAGEIFS('2011 Survey responses'!BX148:CF148,'2011 Survey responses'!BX148:CF148,\">1\")))","v":4.4285714285714288},{"$f":"IF(SUM('2011 Survey responses'!CH148:CP148)<1,\"\",(AVERAGEIFS('2011 Survey responses'!CH148:CP148,'2011 Survey responses'!CH148:CP148,\">1\")))","v":4.4285714285714288},{"$f":"IF(SUM('2011 Survey responses'!BW148:CP148)<1,\"\",(AVERAGEIFS('2011 Survey responses'!BW148:CP148,'2011 Survey responses'!BW148:CP148,\">1\")))","v":4.3125},{"$f":"IF(('2011 Survey responses'!BW148+'2011 Survey responses'!CG148)<2.1,\"\",(SUMIF('2011 Survey responses'!BW148,\">1\")+SUMIF('2011 Survey responses'!CG148,\">1\"))/(COUNTIF('2011 Survey responses'!BW148,\">1\")+COUNTIF('2011 Survey responses'!CG148,\">1\")))","v":3.5},{"$f":"IF(('2011 Survey responses'!BX148+'2011 Survey responses'!CH148)<2.1,\"\",(SUMIF('2011 Survey responses'!BX148,\">1\")+SUMIF('2011 Survey responses'!CH148,\">1\"))/(COUNTIF('2011 Survey responses'!BX148,\">1\")+COUNTIF('2011 Survey responses'!CH148,\">1\")))","v":""},{"$f":"IF(('2011 Survey responses'!BY148+'2011 Survey responses'!CI148)<2.1,\"\",(SUMIF('2011 Survey responses'!BY148,\">1\")+SUMIF('2011 Survey responses'!CI148,\">1\"))/(COUNTIF('2011 Survey responses'!BY148,\">1\")+COUNTIF('2011 Survey responses'!CI148,\">1\")))","v":5},{"$f":"IF('2011 Survey responses'!CQ148<0.5,\"\",'2011 Survey responses'!CQ148)","v":4},{"$f":"IF('2011 Survey responses'!CR148<0.5,\"\",'2011 Survey responses'!CR148)","v":4},{"$f":"IF('2011 Survey responses'!CS148<0.5,\"\",'2011 Survey responses'!CS148)","v":4},{"$f":"IF('2011 Survey responses'!CT148<0.5,\"\",'2011 Survey responses'!CT148)","v":5},{"$f":"IF('2011 Survey responses'!CU148<0.5,\"\",'2011 Survey responses'!CU148)","v":5},{"$f":"IF('2011 Survey responses'!CV148<0.5,\"\",'2011 Survey responses'!CV148)","v":2},{"$f":"IF(SUM('2011 Survey responses'!CW148:DL148)<1,\"\",(AVERAGE('2011 Survey responses'!CW148:DL148)))","v":3.8125},{"$f":"IF(SUM('2011 Survey responses'!CW148:CZ148)<1,\"\",(AVERAGE('2011 Survey responses'!CW148:CZ148)))","v":4},{"$f":"IF(SUM('2011 Survey responses'!DA148:DD148)<1,\"\",(AVERAGE('2011 Survey responses'!DA148:DD148)))","v":3.75},{"$f":"IF(SUM('2011 Survey responses'!DE148:DH148)<1,\"\",(AVERAGE('2011 Survey responses'!DE148:DH148)))","v":3.5},{"$f":"IF(SUM('2011 Survey responses'!DI148:DL148)<1,\"\",(AVERAGE('2011 Survey responses'!DI148:DL148)))","v":4},{"$f":"IF(('2011 Survey responses'!CW148+'2011 Survey responses'!DA148+'2011 Survey responses'!DE148+'2011 Survey responses'!DI148)<1,\"\",AVERAGE('2011 Survey responses'!CW148,'2011 Survey responses'!DA148,'2011 Survey responses'!DE148,'2011 Survey responses'!DI148))","v":4},{"$f":"IF(('2011 Survey responses'!CX148+'2011 Survey responses'!DB148+'2011 Survey responses'!DF148+'2011 Survey responses'!DJ148)<1,\"\",AVERAGE('2011 Survey responses'!CX148,'2011 Survey responses'!DB148,'2011 Survey responses'!DF148,'2011 Survey responses'!DJ148))","v":3.5},{"$f":"IF(('2011 Survey responses'!CY148+'2011 Survey responses'!DC148+'2011 Survey responses'!DG148+'2011 Survey responses'!DK148)<1,\"\",AVERAGE('2011 Survey responses'!CY148,'2011 Survey responses'!DC148,'2011 Survey responses'!DG148,'2011 Survey responses'!DK148))","v":3.75},{"$f":"IF(('2011 Survey responses'!CZ148+'2011 Survey responses'!DD148+'2011 Survey responses'!DH148+'2011 Survey responses'!DL148)<1,\"\",AVERAGE('2011 Survey responses'!CZ148,'2011 Survey responses'!DD148,'2011 Survey responses'!DH148,'2011 Survey responses'!DL148))","v":4},{"$f":"IF('2011 Survey responses'!CW148<0.5,\"\",'2011 Survey responses'!CW148)","v":4},{"$f":"IF('2011 Survey responses'!CX148<0.5,\"\",'2011 Survey responses'!CX148)","v":4},{"$f":"IF('2011 Survey responses'!CY148<0.5,\"\",'2011 Survey responses'!CY148)","v":4},{"$f":"IF('2011 Survey responses'!CZ148<0.5,\"\",'2011 Survey responses'!CZ148)","v":4},{"$f":"IF('2011 Survey responses'!DA148<0.5,\"\",'2011 Survey responses'!DA148)","v":4},{"$f":"IF('2011 Survey responses'!DB148<0.5,\"\",'2011 Survey responses'!DB148)","v":3},{"$f":"IF('2011 Survey responses'!DC148<0.5,\"\",'2011 Survey responses'!DC148)","v":4},{"$f":"IF('2011 Survey responses'!DD148<0.5,\"\",'2011 Survey responses'!DD148)","v":4},{"$f":"IF('2011 Survey responses'!DE148<0.5,\"\",'2011 Survey responses'!DE148)","v":4},{"$f":"IF('2011 Survey responses'!DF148<0.5,\"\",'2011 Survey responses'!DF148)","v":3},{"$f":"IF('2011 Survey responses'!DG148<0.5,\"\",'2011 Survey responses'!DG148)","v":3},{"$f":"IF('2011 Survey responses'!DH148<0.5,\"\",'2011 Survey responses'!DH148)","v":4},{"$f":"IF('2011 Survey responses'!DI148<0.5,\"\",'2011 Survey responses'!DI148)","v":4},{"$f":"IF('2011 Survey responses'!DJ148<0.5,\"\",'2011 Survey responses'!DJ148)","v":4},{"$f":"IF('2011 Survey responses'!DK148<0.5,\"\",'2011 Survey responses'!DK148)","v":4},{"$f":"IF('2011 Survey responses'!DL148<0.5,\"\",'2011 Survey responses'!DL148)","v":4},{"$f":"IF('2011 Survey responses'!DU148=4,4,IF('2011 Survey responses'!DU148=5,4,\"\"))","v":4},{"$f":"IF('2011 Survey responses'!DV148=4,3,IF('2011 Survey responses'!DV148=5,3,\"\"))","v":""},"",{"$f":"IF(CQ148=2,CQ148,IF(CO148=4,CO148,IF(CP148=3,CP148,IF('2011 Survey responses'!GT148=1,1,\"\"))))","v":4},{"$f":"IF('2011 Survey responses'!DO148<0.5,\"\",'2011 Survey responses'!DO148)","v":2},{"$f":"IF('2011 Survey responses'!DP148<0.5,\"\",'2011 Survey responses'!DP148)","v":5},{"$f":"IF('2011 Survey responses'!DQ148<0.5,\"\",'2011 Survey responses'!DQ148)","v":4},{"$f":"IF('2011 Survey responses'!DR148<0.5,\"\",'2011 Survey responses'!DR148)","v":4},{"$f":"IF('2011 Survey responses'!DS148<0.5,\"\",'2011 Survey responses'!DS148)","v":3},{"$f":"IF('2011 Survey responses'!DT148<0.5,\"\",'2011 Survey responses'!DT148)","v":4},{"$f":"IF('2011 Survey responses'!DU148<0.5,\"\",'2011 Survey responses'!DU148)","v":4},{"$f":"IF('2011 Survey responses'!DV148<0.5,\"\",'2011 Survey responses'!DV148)","v":3},{"$f":"IF('2011 Survey responses'!DW148<0.5,\"\",'2011 Survey responses'!DW148)","v":5},{"$f":"IF('2011 Survey responses'!DX148<0.5,\"\",'2011 Survey responses'!DX148)","v":4},{"$f":"IF('2011 Survey responses'!DY148<0.5,\"\",'2011 Survey responses'!DY148)","v":5},{"$f":"IF('2011 Survey responses'!DZ148<0.5,\"\",'2011 Survey responses'!DZ148)","v":5},{"$f":"IF('2011 Survey responses'!EA148<0.5,\"\",'2011 Survey responses'!EA148)","v":3},{"$f":"IF('2011 Survey responses'!EB148<0.5,\"\",'2011 Survey responses'!EB148)","v":5},{"$f":"IF('2011 Survey responses'!EC148<0.5,\"\",'2011 Survey responses'!EC148)","v":5},{"$f":"IF('2011 Survey responses'!ED148<0.5,\"\",'2011 Survey responses'!ED148)","v":5},{"$f":"IF('2011 Survey responses'!EE148<0.5,\"\",'2011 Survey responses'!EE148)","v":4},{"$f":"IF('2011 Survey responses'!EF148<0.5,\"\",'2011 Survey responses'!EF148)","v":5},{"$f":"IF('2011 Survey responses'!EG148<0.5,\"\",'2011 Survey responses'!EG148)","v":5},{"$f":"IF('2011 Survey responses'!EH148<0.5,\"\",'2011 Survey responses'!EH148)","v":4},{"$f":"IF('2011 Survey responses'!EI148<0.5,\"\",'2011 Survey responses'!EI148)","v":5},{"$f":"IF('2011 Survey responses'!EJ148<0.5,\"\",'2011 Survey responses'!EJ148)","v":4},{"$f":"IF('2011 Survey responses'!EK148<0.5,\"\",'2011 Survey responses'!EK148)","v":5},{"$f":"IF('2011 Survey responses'!EL148<0.5,\"\",'2011 Survey responses'!EL148)","v":4},{"$f":"IF('2011 Survey responses'!EM148<0.5,\"\",'2011 Survey responses'!EM148)","v":4},{"$f":"IF('2011 Survey responses'!EN148<0.5,\"\",'2011 Survey responses'!EN148)","v":4},{"$f":"IF('2011 Survey responses'!EO148<0.5,\"\",'2011 Survey responses'!EO148)","v":1},{"$f":"IF('2011 Survey responses'!EP148<0.5,\"\",'2011 Survey responses'!EP148)","v":3},{"$f":"IF(('2011 Survey responses'!EW148+'2011 Survey responses'!EX148)>=2,AVERAGE('2011 Survey responses'!EW148,'2011 Survey responses'!EY148),\"\")","v":4},{"$f":"IF('2011 Survey responses'!EX148<0.5,\"\",'2011 Survey responses'!EX148)","v":5},{"$f":"IF('2011 Survey responses'!EZ148<0.5,\"\",'2011 Survey responses'!EZ148)","v":5},{"$f":"IF('2011 Survey responses'!FB148<0.5,\"\",'2011 Survey responses'!FB148)","v":5},{"$f":"IF('2011 Survey responses'!FD148<0.5,\"\",'2011 Survey responses'!FD148)","v":5},{"$f":"IF('2011 Survey responses'!FC148<0.5,\"\",'2011 Survey responses'!FC148)","v":5},{"$f":"IF(('2011 Survey responses'!EM148+'2011 Survey responses'!EN148)>=2,AVERAGE('2011 Survey responses'!EM148,'2011 Survey responses'!EN148),\"\")","v":4},{"$f":"IF('2011 Survey responses'!ES148<0.5,\"\",'2011 Survey responses'!ES148)","v":4},{"$f":"IF(('2011 Survey responses'!ET148+'2011 Survey responses'!EU148)>=2,AVERAGE('2011 Survey responses'!ET148,'2011 Survey responses'!EU148),\"\")","v":5},{"$f":"IF('2011 Survey responses'!EV148<0.5,\"\",'2011 Survey responses'!EV148)","v":5},{"$f":"IF('2011 Survey responses'!FA148<0.5,\"\",'2011 Survey responses'!FA148)","v":4},{"$f":"IF('2011 Survey responses'!ER148<0.5,\"\",'2011 Survey responses'!ER148)","v":5},{"$f":"IF(('2011 Survey responses'!EO148+'2011 Survey responses'!EP148)>=2,AVERAGE('2011 Survey responses'!EO148,'2011 Survey responses'!EP148),\"\")","v":2},{"$f":"IF('2011 Survey responses'!EQ148<0.5,\"\",'2011 Survey responses'!EQ148)","v":3},{"$f":"IF('2011 Survey responses'!ET148<0.5,\"\",'2011 Survey responses'!ET148)","v":5},{"$f":"IF('2011 Survey responses'!EU148<0.5,\"\",'2011 Survey responses'!EU148)","v":5},{"$f":"IF('2011 Survey responses'!EW148<0.5,\"\",'2011 Survey responses'!EW148)","v":4},{"$f":"IF('2011 Survey responses'!EY148<0.5,\"\",'2011 Survey responses'!EY148)","v":4},{"$f":"IF('2011 Survey responses'!FU148<0.5,\"\",'2011 Survey responses'!FU148)","v":5},{"$f":"IF(('2011 Survey responses'!FL148+'2011 Survey responses'!FM148)>=2,AVERAGE('2011 Survey responses'!FL148,'2011 Survey responses'!FM148),\"\")","v":4.5},{"$f":"IF(('2011 Survey responses'!FO148+'2011 Survey responses'!FQ148)>=2,AVERAGE('2011 Survey responses'!FO148,'2011 Survey responses'!FQ148),\"\")","v":5},{"$f":"IF('2011 Survey responses'!FJ148<0.5,\"\",'2011 Survey responses'!FJ148)","v":5},{"$f":"IF('2011 Survey responses'!FT148<0.5,\"\",'2011 Survey responses'!FT148)","v":5},{"$f":"IF('2011 Survey responses'!FR148<0.5,\"\",'2011 Survey responses'!FR148)","v":5},{"$f":"IF('2011 Survey responses'!FK148<0.5,\"\",'2011 Survey responses'!FK148)","v":5},{"$f":"IF('2011 Survey responses'!FP148<0.5,\"\",'2011 Survey responses'!FP148)","v":5},{"$f":"IF('2011 Survey responses'!FN148<0.5,\"\",'2011 Survey responses'!FN148)","v":5},{"$f":"IF(('2011 Survey responses'!FE148+'2011 Survey responses'!FF148)>=2,AVERAGE('2011 Survey responses'!FE148,'2011 Survey responses'!FF148),\"\")","v":5},{"$f":"IF('2011 Survey responses'!FS148<0.5,\"\",'2011 Survey responses'!FS148)","v":5},{"$f":"IF('2011 Survey responses'!FV148<0.5,\"\",'2011 Survey responses'!FV148)","v":5},{"$f":"IF(('2011 Survey responses'!FG148+'2011 Survey responses'!FH148)>=2,AVERAGE('2011 Survey responses'!FG148,'2011 Survey responses'!FH148),\"\")","v":3.5},{"$f":"IF('2011 Survey responses'!FI148<0.5,\"\",'2011 Survey responses'!FI148)","v":4},{"$f":"IF('2011 Survey responses'!FE148<0.5,\"\",'2011 Survey responses'!FE148)","v":5},{"$f":"IF('2011 Survey responses'!FF148<0.5,\"\",'2011 Survey responses'!FF148)","v":5},{"$f":"IF('2011 Survey responses'!FG148<0.5,\"\",'2011 Survey responses'!FG148)","v":3},{"$f":"IF('2011 Survey responses'!FH148<0.5,\"\",'2011 Survey responses'!FH148)","v":4},{"$f":"IF('2011 Survey responses'!FL148<0.5,\"\",'2011 Survey responses'!FL148)","v":5},{"$f":"IF('2011 Survey responses'!FM148<0.5,\"\",'2011 Survey responses'!FM148)","v":4},{"$f":"IF('2011 Survey responses'!FO148<0.5,\"\",'2011 Survey responses'!FO148)","v":5},{"$f":"IF('2011 Survey responses'!FQ148<0.5,\"\",'2011 Survey responses'!FQ148)","v":5}]
["San Marino",{"$f":"IF(SUM(F149)<1,\"\",AVERAGEIF('2011 Survey responses'!B149:CP149,\">1\"))","v":""},{"$f":"IF(SUM(F149)<1,\"\",AVERAGEIF('2011 Survey responses'!B149:AO149,\">1\"))","v":""},{"$f":"IF(SUM(F149)<1,\"\",AVERAGEIF('2011 Survey responses'!B149:BV149,\">1\"))","v":""},{"$f":"IF(SUM(F149)<1,\"\",AVERAGEIF('2011 Survey responses'!V149:BV149,\">1\"))","v":""},{"$f":"IF(SUM('2011 Survey responses'!B149:U149)<1,\"\",(AVERAGEIFS('2011 Survey responses'!B149:U149,'2011 Survey responses'!B149:U149,\">1\")))","v":""},{"$f":"IF(SUM('2011 Survey responses'!B149:H149)<1,\"\",(AVERAGEIFS('2011 Survey responses'!B149:H149,'2011 Survey responses'!B149:H149,\">1\")))","v":""},{"$f":"IF(SUM('2011 Survey responses'!I149:S149)<1,\"\",(AVERAGEIFS('2011 Survey responses'!I149:S149,'2011 Survey responses'!I149:S149,\">1\")))","v":""},{"$f":"IF(SUM('2011 Survey responses'!T149:U149)<2.1,\"\",(AVERAGEIFS('2011 Survey responses'!T149:U149,'2011 Survey responses'!T149:U149,\">1\")))","v":""},{"$f":"IF(SUM('2011 Survey responses'!B149:C149)<2.1,\"\",((SUMIF('2011 Survey responses'!B149:C149,\">1\")+SUMIF('2011 Survey responses'!F149,\">1\"))/(COUNTIF('2011 Survey responses'!B149:C149,\">1\")+COUNTIF('2011 Survey responses'!F149,\">1\"))))","v":""},{"$f":"IF(SUM('2011 Survey responses'!D149:E149)<2.1,\"\",(AVERAGEIFS('2011 Survey responses'!D149:E149,'2011 Survey responses'!D149:E149,\">1\")))","v":""},{"$f":"IF(('2011 Survey responses'!B149+'2011 Survey responses'!D149)<2.1,\"\",((SUMIF('2011 Survey responses'!B149,\">1\")+SUMIF('2011 Survey responses'!D149,\">1\")+SUMIF('2011 Survey responses'!F149,\">1\")+SUMIF('2011 Survey responses'!K149,\">1\"))/(COUNTIF('2011 Survey responses'!B149,\">1\")+COUNTIF('2011 Survey responses'!D149,\">1\")+COUNTIF('2011 Survey responses'!F149,\">1\")+COUNTIF('2011 Survey responses'!K149,\">1\"))))","v":""},{"$f":"IF(SUM('2011 Survey responses'!G149:H149)<2.1,\"\",(AVERAGEIFS('2011 Survey responses'!G149:H149,'2011 Survey responses'!G149:H149,\">1\")))","v":""},{"$f":"IF(SUM('2011 Survey responses'!F149:G149)<1.5,\"\",MAX('2011 Survey responses'!F149,'2011 Survey responses'!G149))","v":""},{"$f":"IF(SUM('2011 Survey responses'!G149:H149)<1,\"\",MAX('2011 Survey responses'!G149,'2011 Survey responses'!H149))","v":""},{"$f":"IF(SUM('2011 Survey responses'!I149:L149)<4.1,\"\",(AVERAGEIFS('2011 Survey responses'!I149:L149,'2011 Survey responses'!I149:L149,\">1\")))","v":""},{"$f":"IF(SUM('2011 Survey responses'!M149:S149)<4.1,\"\",(AVERAGEIFS('2011 Survey responses'!M149:S149,'2011 Survey responses'!M149:S149,\">1\")))","v":""},{"$f":"IF(SUM('2011 Survey responses'!T149:U149)<2.1,\"\",(AVERAGEIFS('2011 Survey responses'!T149:U149,'2011 Survey responses'!T149:U149,\">1\")))","v":""},{"$f":"IF(SUM('2011 Survey responses'!V149:AO149)<1,\"\",(AVERAGEIFS('2011 Survey responses'!V149:AO149,'2011 Survey responses'!V149:AO149,\">1\")))","v":""},{"$f":"IF(SUM('2011 Survey responses'!V149:AA149)<1,\"\",(AVERAGEIFS('2011 Survey responses'!V149:AA149,'2011 Survey responses'!V149:AA149,\">1\")))","v":""},{"$f":"IF(SUM('2011 Survey responses'!AB149:AH149)<1,\"\",(AVERAGEIFS('2011 Survey responses'!AB149:AH149,'2011 Survey responses'!AB149:AH149,\">1\")))","v":""},{"$f":"IF(SUM('2011 Survey responses'!AI149:AO149)<1,\"\",(AVERAGEIFS('2011 Survey responses'!AI149:AO149,'2011 Survey responses'!AI149:AO149,\">1\")))","v":""},{"$f":"IF(('2011 Survey responses'!Y149+'2011 Survey responses'!AI149+'2011 Survey responses'!AK149)<3.1,\"\",((SUMIF('2011 Survey responses'!Y149,\">1\")+SUMIF('2011 Survey responses'!AI149,\">1\")+SUMIF('2011 Survey responses'!AK149,\">1\")+SUMIF('2011 Survey responses'!AM149,\">1\"))/(COUNTIF('2011 Survey responses'!Y149,\">1\")+COUNTIF('2011 Survey responses'!AI149,\">1\")+COUNTIF('2011 Survey responses'!AK149,\">1\")+COUNTIF('2011 Survey responses'!AM149,\">1\"))))","v":""},{"$f":"IF(('2011 Survey responses'!W149)<1.1,\"\",('2011 Survey responses'!W149))","v":""},{"$f":"IF(('2011 Survey responses'!Y149)<1.1,\"\",('2011 Survey responses'!Y149))","v":""},{"$f":"IF(('2011 Survey responses'!Z149)<1.1,\"\",('2011 Survey responses'!Z149))","v":""},{"$f":"IF(('2011 Survey responses'!V149+'2011 Survey responses'!X149+'2011 Survey responses'!AA149)<3.1,\"\",((SUMIF('2011 Survey responses'!V149,\">1\")+SUMIF('2011 Survey responses'!X149,\">1\")+SUMIF('2011 Survey responses'!AA149,\">1\"))/(COUNTIF('2011 Survey responses'!V149,\">1\")+COUNTIF('2011 Survey responses'!X149,\">1\")+COUNTIF('2011 Survey responses'!AA149,\">1\"))))","v":""},{"$f":"IF(('2011 Survey responses'!V149+'2011 Survey responses'!Y149+'2011 Survey responses'!AA149)<3.1,\"\",((SUMIF('2011 Survey responses'!V149,\">1\")+SUMIF('2011 Survey responses'!Y149,\">1\")+SUMIF('2011 Survey responses'!AA149,\">1\"))/(COUNTIF('2011 Survey responses'!V149,\">1\")+COUNTIF('2011 Survey responses'!Y149,\">1\")+COUNTIF('2011 Survey responses'!AA149,\">1\"))))","v":""},{"$f":"IF(SUM('2011 Survey responses'!AB149:AH149)<1,\"\",(AVERAGEIFS('2011 Survey responses'!AB149:AH149,'2011 Survey responses'!AB149:AH149,\">1\")))","v":""},{"$f":"IF(SUM('2011 Survey responses'!AI149:AO149)<7.1,\"\",(AVERAGEIFS('2011 Survey responses'!AI149:AO149,'2011 Survey responses'!AI149:AO149,\">1\")))","v":""},{"$f":"IF(('2011 Survey responses'!AH149)<1.1,\"\",('2011 Survey responses'!AH149))","v":""},{"$f":"IF(SUM('2011 Survey responses'!AP149:BV149)<1,\"\",(AVERAGEIFS('2011 Survey responses'!AP149:BV149,'2011 Survey responses'!AP149:BV149,\">1\")))","v":""},{"$f":"IF(SUM('2011 Survey responses'!AP149:AS149)<4.1,\"\",(AVERAGEIFS('2011 Survey responses'!AP149:AS149,'2011 Survey responses'!AP149:AS149,\">1\")))","v":""},{"$f":"IF(SUM('2011 Survey responses'!AT149:BF149)<1,\"\",(AVERAGEIFS('2011 Survey responses'!AT149:BF149,'2011 Survey responses'!AT149:BF149,\">1\")))","v":""},{"$f":"IF(SUM('2011 Survey responses'!BG149:BO149)<1,\"\",(AVERAGEIFS('2011 Survey responses'!BG149:BO149,'2011 Survey responses'!BG149:BO149,\">1\")))","v":""},{"$f":"IF(SUM('2011 Survey responses'!BP149:BS149)<1,\"\",(AVERAGEIFS('2011 Survey responses'!BP149:BS149,'2011 Survey responses'!BP149:BS149,\">1\")))","v":""},{"$f":"IF(SUM('2011 Survey responses'!BT149:BV149)<3.1,\"\",(AVERAGEIFS('2011 Survey responses'!BT149:BV149,'2011 Survey responses'!BT149:BV149,\">1\")))","v":""},{"$f":"IF(('2011 Survey responses'!AQ149+'2011 Survey responses'!AR149+'2011 Survey responses'!BG149)<3.1,\"\",((SUMIF('2011 Survey responses'!AQ149,\">1\")+SUMIF('2011 Survey responses'!AR149,\">1\")+SUMIF('2011 Survey responses'!BG149,\">1\"))/(COUNTIF('2011 Survey responses'!AQ149,\">1\")+COUNTIF('2011 Survey responses'!AR149,\">1\")+COUNTIF('2011 Survey responses'!BG149,\">1\"))))","v":""},{"$f":"IF(SUM('2011 Survey responses'!AP149:AS149)<4.1,\"\",(AVERAGEIFS('2011 Survey responses'!AP149:AS149,'2011 Survey responses'!AP149:AS149,\">1\")))","v":""},{"$f":"IF(('2011 Survey responses'!AU149+'2011 Survey responses'!AX149+'2011 Survey responses'!BA149+'2011 Survey responses'!BC149+'2011 Survey responses'!BD149)<5.1,\"\",(SUMIF('2011 Survey responses'!AU149,\">1\")+SUMIF('2011 Survey responses'!AX149,\">1\")+SUMIF('2011 Survey responses'!BA149,\">1\")+SUMIF('2011 Survey responses'!BC149,\">1\")+SUMIF('2011 Survey responses'!BD149,\">1\"))/(COUNTIF('2011 Survey responses'!AU149,\">1\")+COUNTIF('2011 Survey responses'!AX149,\">1\")+COUNTIF('2011 Survey responses'!BA149,\">1\")+COUNTIF('2011 Survey responses'!BC149,\">1\")+COUNTIF('2011 Survey responses'!BD149,\">1\")))","v":""},{"$f":"IF(('2011 Survey responses'!AT149)<1.1,\"\",('2011 Survey responses'!AT149))","v":""},{"$f":"IF(SUM('2011 Survey responses'!AV149:AW149)<2.1,\"\",(AVERAGEIFS('2011 Survey responses'!AV149:AW149,'2011 Survey responses'!AV149:AW149,\">1\")))","v":""},{"$f":"IF(('2011 Survey responses'!AW149+'2011 Survey responses'!AY149)<2.1,\"\",(SUMIF('2011 Survey responses'!AW149,\">1\")+SUMIF('2011 Survey responses'!AY149,\">1\"))/(COUNTIF('2011 Survey responses'!AW149,\">1\")+COUNTIF('2011 Survey responses'!AY149,\">1\")))","v":""},{"$f":"IF(('2011 Survey responses'!AZ149)<1.1,\"\",('2011 Survey responses'!AZ149))","v":""},null,null,null,null,{"$f":"IF(('2011 Survey responses'!BE149)<1.1,\"\",('2011 Survey responses'!BE149))","v":""},{"$f":"IF(('2011 Survey responses'!AY149+'2011 Survey responses'!BB149+'2011 Survey responses'!BF149)<3.1,\"\",(SUMIF('2011 Survey responses'!AY149,\">1\")+SUMIF('2011 Survey responses'!BB149,\">1\")+SUMIF('2011 Survey responses'!BF149,\">1\"))/(COUNTIF('2011 Survey responses'!AY149,\">1\")+COUNTIF('2011 Survey responses'!BB149,\">1\")+COUNTIF('2011 Survey responses'!BF149,\">1\")))","v":""},"",{"$f":"IF(SUM('2011 Survey responses'!BT149:BV149)<3.1,\"\",(AVERAGEIFS('2011 Survey responses'!BT149:BV149,'2011 Survey responses'!BT149:BV149,\">1\")))","v":""},{"$f":"IF(SUM('2011 Survey responses'!BW149:CP149)<1,\"\",(AVERAGEIFS('2011 Survey responses'!BW149:CP149,'2011 Survey responses'!BW149:CP149,\">1\")))","v":""},{"$f":"IF(SUM('2011 Survey responses'!BW149:CF149)<1,\"\",(AVERAGEIFS('2011 Survey responses'!BW149:CF149,'2011 Survey responses'!BW149:CF149,\">1\")))","v":""},{"$f":"IF(SUM('2011 Survey responses'!CG149:CP149)<1,\"\",(AVERAGEIFS('2011 Survey responses'!CG149:CP149,'2011 Survey responses'!CG149:CP149,\">1\")))","v":""},{"$f":"IF(SUM('2011 Survey responses'!BX149:CF149)<1,\"\",(AVERAGEIFS('2011 Survey responses'!BX149:CF149,'2011 Survey responses'!BX149:CF149,\">1\")))","v":""},{"$f":"IF(SUM('2011 Survey responses'!CH149:CP149)<1,\"\",(AVERAGEIFS('2011 Survey responses'!CH149:CP149,'2011 Survey responses'!CH149:CP149,\">1\")))","v":""},{"$f":"IF(SUM('2011 Survey responses'!BW149:CP149)<1,\"\",(AVERAGEIFS('2011 Survey responses'!BW149:CP149,'2011 Survey responses'!BW149:CP149,\">1\")))","v":""},{"$f":"IF(('2011 Survey responses'!BW149+'2011 Survey responses'!CG149)<2.1,\"\",(SUMIF('2011 Survey responses'!BW149,\">1\")+SUMIF('2011 Survey responses'!CG149,\">1\"))/(COUNTIF('2011 Survey responses'!BW149,\">1\")+COUNTIF('2011 Survey responses'!CG149,\">1\")))","v":""},{"$f":"IF(('2011 Survey responses'!BX149+'2011 Survey responses'!CH149)<2.1,\"\",(SUMIF('2011 Survey responses'!BX149,\">1\")+SUMIF('2011 Survey responses'!CH149,\">1\"))/(COUNTIF('2011 Survey responses'!BX149,\">1\")+COUNTIF('2011 Survey responses'!CH149,\">1\")))","v":""},{"$f":"IF(('2011 Survey responses'!BY149+'2011 Survey responses'!CI149)<2.1,\"\",(SUMIF('2011 Survey responses'!BY149,\">1\")+SUMIF('2011 Survey responses'!CI149,\">1\"))/(COUNTIF('2011 Survey responses'!BY149,\">1\")+COUNTIF('2011 Survey responses'!CI149,\">1\")))","v":""},{"$f":"IF('2011 Survey responses'!CQ149<0.5,\"\",'2011 Survey responses'!CQ149)","v":""},{"$f":"IF('2011 Survey responses'!CR149<0.5,\"\",'2011 Survey responses'!CR149)","v":""},{"$f":"IF('2011 Survey responses'!CS149<0.5,\"\",'2011 Survey responses'!CS149)","v":""},{"$f":"IF('2011 Survey responses'!CT149<0.5,\"\",'2011 Survey responses'!CT149)","v":""},{"$f":"IF('2011 Survey responses'!CU149<0.5,\"\",'2011 Survey responses'!CU149)","v":""},{"$f":"IF('2011 Survey responses'!CV149<0.5,\"\",'2011 Survey responses'!CV149)","v":""},{"$f":"IF(SUM('2011 Survey responses'!CW149:DL149)<1,\"\",(AVERAGE('2011 Survey responses'!CW149:DL149)))","v":""},{"$f":"IF(SUM('2011 Survey responses'!CW149:CZ149)<1,\"\",(AVERAGE('2011 Survey responses'!CW149:CZ149)))","v":""},{"$f":"IF(SUM('2011 Survey responses'!DA149:DD149)<1,\"\",(AVERAGE('2011 Survey responses'!DA149:DD149)))","v":""},{"$f":"IF(SUM('2011 Survey responses'!DE149:DH149)<1,\"\",(AVERAGE('2011 Survey responses'!DE149:DH149)))","v":""},{"$f":"IF(SUM('2011 Survey responses'!DI149:DL149)<1,\"\",(AVERAGE('2011 Survey responses'!DI149:DL149)))","v":""},{"$f":"IF(('2011 Survey responses'!CW149+'2011 Survey responses'!DA149+'2011 Survey responses'!DE149+'2011 Survey responses'!DI149)<1,\"\",AVERAGE('2011 Survey responses'!CW149,'2011 Survey responses'!DA149,'2011 Survey responses'!DE149,'2011 Survey responses'!DI149))","v":""},{"$f":"IF(('2011 Survey responses'!CX149+'2011 Survey responses'!DB149+'2011 Survey responses'!DF149+'2011 Survey responses'!DJ149)<1,\"\",AVERAGE('2011 Survey responses'!CX149,'2011 Survey responses'!DB149,'2011 Survey responses'!DF149,'2011 Survey responses'!DJ149))","v":""},{"$f":"IF(('2011 Survey responses'!CY149+'2011 Survey responses'!DC149+'2011 Survey responses'!DG149+'2011 Survey responses'!DK149)<1,\"\",AVERAGE('2011 Survey responses'!CY149,'2011 Survey responses'!DC149,'2011 Survey responses'!DG149,'2011 Survey responses'!DK149))","v":""},{"$f":"IF(('2011 Survey responses'!CZ149+'2011 Survey responses'!DD149+'2011 Survey responses'!DH149+'2011 Survey responses'!DL149)<1,\"\",AVERAGE('2011 Survey responses'!CZ149,'2011 Survey responses'!DD149,'2011 Survey responses'!DH149,'2011 Survey responses'!DL149))","v":""},{"$f":"IF('2011 Survey responses'!CW149<0.5,\"\",'2011 Survey responses'!CW149)","v":""},{"$f":"IF('2011 Survey responses'!CX149<0.5,\"\",'2011 Survey responses'!CX149)","v":""},{"$f":"IF('2011 Survey responses'!CY149<0.5,\"\",'2011 Survey responses'!CY149)","v":""},{"$f":"IF('2011 Survey responses'!CZ149<0.5,\"\",'2011 Survey responses'!CZ149)","v":""},{"$f":"IF('2011 Survey responses'!DA149<0.5,\"\",'2011 Survey responses'!DA149)","v":""},{"$f":"IF('2011 Survey responses'!DB149<0.5,\"\",'2011 Survey responses'!DB149)","v":""},{"$f":"IF('2011 Survey responses'!DC149<0.5,\"\",'2011 Survey responses'!DC149)","v":""},{"$f":"IF('2011 Survey responses'!DD149<0.5,\"\",'2011 Survey responses'!DD149)","v":""},{"$f":"IF('2011 Survey responses'!DE149<0.5,\"\",'2011 Survey responses'!DE149)","v":""},{"$f":"IF('2011 Survey responses'!DF149<0.5,\"\",'2011 Survey responses'!DF149)","v":""},{"$f":"IF('2011 Survey responses'!DG149<0.5,\"\",'2011 Survey responses'!DG149)","v":""},{"$f":"IF('2011 Survey responses'!DH149<0.5,\"\",'2011 Survey responses'!DH149)","v":""},{"$f":"IF('2011 Survey responses'!DI149<0.5,\"\",'2011 Survey responses'!DI149)","v":""},{"$f":"IF('2011 Survey responses'!DJ149<0.5,\"\",'2011 Survey responses'!DJ149)","v":""},{"$f":"IF('2011 Survey responses'!DK149<0.5,\"\",'2011 Survey responses'!DK149)","v":""},{"$f":"IF('2011 Survey responses'!DL149<0.5,\"\",'2011 Survey responses'!DL149)","v":""},{"$f":"IF('2011 Survey responses'!DU149=4,4,IF('2011 Survey responses'!DU149=5,4,\"\"))","v":""},{"$f":"IF('2011 Survey responses'!DV149=4,3,IF('2011 Survey responses'!DV149=5,3,\"\"))","v":""},"",{"$f":"IF(CQ149=2,CQ149,IF(CO149=4,CO149,IF(CP149=3,CP149,IF('2011 Survey responses'!GT149=1,1,\"\"))))","v":""},{"$f":"IF('2011 Survey responses'!DO149<0.5,\"\",'2011 Survey responses'!DO149)","v":""},{"$f":"IF('2011 Survey responses'!DP149<0.5,\"\",'2011 Survey responses'!DP149)","v":""},{"$f":"IF('2011 Survey responses'!DQ149<0.5,\"\",'2011 Survey responses'!DQ149)","v":""},{"$f":"IF('2011 Survey responses'!DR149<0.5,\"\",'2011 Survey responses'!DR149)","v":""},{"$f":"IF('2011 Survey responses'!DS149<0.5,\"\",'2011 Survey responses'!DS149)","v":""},{"$f":"IF('2011 Survey responses'!DT149<0.5,\"\",'2011 Survey responses'!DT149)","v":""},{"$f":"IF('2011 Survey responses'!DU149<0.5,\"\",'2011 Survey responses'!DU149)","v":""},{"$f":"IF('2011 Survey responses'!DV149<0.5,\"\",'2011 Survey responses'!DV149)","v":""},{"$f":"IF('2011 Survey responses'!DW149<0.5,\"\",'2011 Survey responses'!DW149)","v":""},{"$f":"IF('2011 Survey responses'!DX149<0.5,\"\",'2011 Survey responses'!DX149)","v":""},{"$f":"IF('2011 Survey responses'!DY149<0.5,\"\",'2011 Survey responses'!DY149)","v":""},{"$f":"IF('2011 Survey responses'!DZ149<0.5,\"\",'2011 Survey responses'!DZ149)","v":""},{"$f":"IF('2011 Survey responses'!EA149<0.5,\"\",'2011 Survey responses'!EA149)","v":""},{"$f":"IF('2011 Survey responses'!EB149<0.5,\"\",'2011 Survey responses'!EB149)","v":""},{"$f":"IF('2011 Survey responses'!EC149<0.5,\"\",'2011 Survey responses'!EC149)","v":""},{"$f":"IF('2011 Survey responses'!ED149<0.5,\"\",'2011 Survey responses'!ED149)","v":""},{"$f":"IF('2011 Survey responses'!EE149<0.5,\"\",'2011 Survey responses'!EE149)","v":""},{"$f":"IF('2011 Survey responses'!EF149<0.5,\"\",'2011 Survey responses'!EF149)","v":""},{"$f":"IF('2011 Survey responses'!EG149<0.5,\"\",'2011 Survey responses'!EG149)","v":""},{"$f":"IF('2011 Survey responses'!EH149<0.5,\"\",'2011 Survey responses'!EH149)","v":""},{"$f":"IF('2011 Survey responses'!EI149<0.5,\"\",'2011 Survey responses'!EI149)","v":""},{"$f":"IF('2011 Survey responses'!EJ149<0.5,\"\",'2011 Survey responses'!EJ149)","v":""},{"$f":"IF('2011 Survey responses'!EK149<0.5,\"\",'2011 Survey responses'!EK149)","v":""},{"$f":"IF('2011 Survey responses'!EL149<0.5,\"\",'2011 Survey responses'!EL149)","v":""},{"$f":"IF('2011 Survey responses'!EM149<0.5,\"\",'2011 Survey responses'!EM149)","v":""},{"$f":"IF('2011 Survey responses'!EN149<0.5,\"\",'2011 Survey responses'!EN149)","v":""},{"$f":"IF('2011 Survey responses'!EO149<0.5,\"\",'2011 Survey responses'!EO149)","v":""},{"$f":"IF('2011 Survey responses'!EP149<0.5,\"\",'2011 Survey responses'!EP149)","v":""},{"$f":"IF(('2011 Survey responses'!EW149+'2011 Survey responses'!EX149)>=2,AVERAGE('2011 Survey responses'!EW149,'2011 Survey responses'!EY149),\"\")","v":""},{"$f":"IF('2011 Survey responses'!EX149<0.5,\"\",'2011 Survey responses'!EX149)","v":""},{"$f":"IF('2011 Survey responses'!EZ149<0.5,\"\",'2011 Survey responses'!EZ149)","v":""},{"$f":"IF('2011 Survey responses'!FB149<0.5,\"\",'2011 Survey responses'!FB149)","v":""},{"$f":"IF('2011 Survey responses'!FD149<0.5,\"\",'2011 Survey responses'!FD149)","v":""},{"$f":"IF('2011 Survey responses'!FC149<0.5,\"\",'2011 Survey responses'!FC149)","v":""},{"$f":"IF(('2011 Survey responses'!EM149+'2011 Survey responses'!EN149)>=2,AVERAGE('2011 Survey responses'!EM149,'2011 Survey responses'!EN149),\"\")","v":""},{"$f":"IF('2011 Survey responses'!ES149<0.5,\"\",'2011 Survey responses'!ES149)","v":""},{"$f":"IF(('2011 Survey responses'!ET149+'2011 Survey responses'!EU149)>=2,AVERAGE('2011 Survey responses'!ET149,'2011 Survey responses'!EU149),\"\")","v":""},{"$f":"IF('2011 Survey responses'!EV149<0.5,\"\",'2011 Survey responses'!EV149)","v":""},{"$f":"IF('2011 Survey responses'!FA149<0.5,\"\",'2011 Survey responses'!FA149)","v":""},{"$f":"IF('2011 Survey responses'!ER149<0.5,\"\",'2011 Survey responses'!ER149)","v":""},{"$f":"IF(('2011 Survey responses'!EO149+'2011 Survey responses'!EP149)>=2,AVERAGE('2011 Survey responses'!EO149,'2011 Survey responses'!EP149),\"\")","v":""},{"$f":"IF('2011 Survey responses'!EQ149<0.5,\"\",'2011 Survey responses'!EQ149)","v":""},{"$f":"IF('2011 Survey responses'!ET149<0.5,\"\",'2011 Survey responses'!ET149)","v":""},{"$f":"IF('2011 Survey responses'!EU149<0.5,\"\",'2011 Survey responses'!EU149)","v":""},{"$f":"IF('2011 Survey responses'!EW149<0.5,\"\",'2011 Survey responses'!EW149)","v":""},{"$f":"IF('2011 Survey responses'!EY149<0.5,\"\",'2011 Survey responses'!EY149)","v":""},{"$f":"IF('2011 Survey responses'!FU149<0.5,\"\",'2011 Survey responses'!FU149)","v":""},{"$f":"IF(('2011 Survey responses'!FL149+'2011 Survey responses'!FM149)>=2,AVERAGE('2011 Survey responses'!FL149,'2011 Survey responses'!FM149),\"\")","v":""},{"$f":"IF(('2011 Survey responses'!FO149+'2011 Survey responses'!FQ149)>=2,AVERAGE('2011 Survey responses'!FO149,'2011 Survey responses'!FQ149),\"\")","v":""},{"$f":"IF('2011 Survey responses'!FJ149<0.5,\"\",'2011 Survey responses'!FJ149)","v":""},{"$f":"IF('2011 Survey responses'!FT149<0.5,\"\",'2011 Survey responses'!FT149)","v":""},{"$f":"IF('2011 Survey responses'!FR149<0.5,\"\",'2011 Survey responses'!FR149)","v":""},{"$f":"IF('2011 Survey responses'!FK149<0.5,\"\",'2011 Survey responses'!FK149)","v":""},{"$f":"IF('2011 Survey responses'!FP149<0.5,\"\",'2011 Survey responses'!FP149)","v":""},{"$f":"IF('2011 Survey responses'!FN149<0.5,\"\",'2011 Survey responses'!FN149)","v":""},{"$f":"IF(('2011 Survey responses'!FE149+'2011 Survey responses'!FF149)>=2,AVERAGE('2011 Survey responses'!FE149,'2011 Survey responses'!FF149),\"\")","v":""},{"$f":"IF('2011 Survey responses'!FS149<0.5,\"\",'2011 Survey responses'!FS149)","v":""},{"$f":"IF('2011 Survey responses'!FV149<0.5,\"\",'2011 Survey responses'!FV149)","v":""},{"$f":"IF(('2011 Survey responses'!FG149+'2011 Survey responses'!FH149)>=2,AVERAGE('2011 Survey responses'!FG149,'2011 Survey responses'!FH149),\"\")","v":""},{"$f":"IF('2011 Survey responses'!FI149<0.5,\"\",'2011 Survey responses'!FI149)","v":""},{"$f":"IF('2011 Survey responses'!FE149<0.5,\"\",'2011 Survey responses'!FE149)","v":""},{"$f":"IF('2011 Survey responses'!FF149<0.5,\"\",'2011 Survey responses'!FF149)","v":""},{"$f":"IF('2011 Survey responses'!FG149<0.5,\"\",'2011 Survey responses'!FG149)","v":""},{"$f":"IF('2011 Survey responses'!FH149<0.5,\"\",'2011 Survey responses'!FH149)","v":""},{"$f":"IF('2011 Survey responses'!FL149<0.5,\"\",'2011 Survey responses'!FL149)","v":""},{"$f":"IF('2011 Survey responses'!FM149<0.5,\"\",'2011 Survey responses'!FM149)","v":""},{"$f":"IF('2011 Survey responses'!FO149<0.5,\"\",'2011 Survey responses'!FO149)","v":""},{"$f":"IF('2011 Survey responses'!FQ149<0.5,\"\",'2011 Survey responses'!FQ149)","v":""}]
["Sao Tome and Principe",{"$f":"IF(SUM(F150)<1,\"\",AVERAGEIF('2011 Survey responses'!B150:CP150,\">1\"))","v":2.8518518518518516},{"$f":"IF(SUM(F150)<1,\"\",AVERAGEIF('2011 Survey responses'!B150:AO150,\">1\"))","v":2.9117647058823528},{"$f":"IF(SUM(F150)<1,\"\",AVERAGEIF('2011 Survey responses'!B150:BV150,\">1\"))","v":2.8095238095238093},{"$f":"IF(SUM(F150)<1,\"\",AVERAGEIF('2011 Survey responses'!V150:BV150,\">1\"))","v":2.7659574468085109},{"$f":"IF(SUM('2011 Survey responses'!B150:U150)<1,\"\",(AVERAGEIFS('2011 Survey responses'!B150:U150,'2011 Survey responses'!B150:U150,\">1\")))","v":2.9375},{"$f":"IF(SUM('2011 Survey responses'!B150:H150)<1,\"\",(AVERAGEIFS('2011 Survey responses'!B150:H150,'2011 Survey responses'!B150:H150,\">1\")))","v":2.6},{"$f":"IF(SUM('2011 Survey responses'!I150:S150)<1,\"\",(AVERAGEIFS('2011 Survey responses'!I150:S150,'2011 Survey responses'!I150:S150,\">1\")))","v":3.2},{"$f":"IF(SUM('2011 Survey responses'!T150:U150)<2.1,\"\",(AVERAGEIFS('2011 Survey responses'!T150:U150,'2011 Survey responses'!T150:U150,\">1\")))","v":2},{"$f":"IF(SUM('2011 Survey responses'!B150:C150)<2.1,\"\",((SUMIF('2011 Survey responses'!B150:C150,\">1\")+SUMIF('2011 Survey responses'!F150,\">1\"))/(COUNTIF('2011 Survey responses'!B150:C150,\">1\")+COUNTIF('2011 Survey responses'!F150,\">1\"))))","v":3},{"$f":"IF(SUM('2011 Survey responses'!D150:E150)<2.1,\"\",(AVERAGEIFS('2011 Survey responses'!D150:E150,'2011 Survey responses'!D150:E150,\">1\")))","v":3},{"$f":"IF(('2011 Survey responses'!B150+'2011 Survey responses'!D150)<2.1,\"\",((SUMIF('2011 Survey responses'!B150,\">1\")+SUMIF('2011 Survey responses'!D150,\">1\")+SUMIF('2011 Survey responses'!F150,\">1\")+SUMIF('2011 Survey responses'!K150,\">1\"))/(COUNTIF('2011 Survey responses'!B150,\">1\")+COUNTIF('2011 Survey responses'!D150,\">1\")+COUNTIF('2011 Survey responses'!F150,\">1\")+COUNTIF('2011 Survey responses'!K150,\">1\"))))","v":3},{"$f":"IF(SUM('2011 Survey responses'!G150:H150)<2.1,\"\",(AVERAGEIFS('2011 Survey responses'!G150:H150,'2011 Survey responses'!G150:H150,\">1\")))","v":2},{"$f":"IF(SUM('2011 Survey responses'!F150:G150)<1.5,\"\",MAX('2011 Survey responses'!F150,'2011 Survey responses'!G150))","v":3},{"$f":"IF(SUM('2011 Survey responses'!G150:H150)<1,\"\",MAX('2011 Survey responses'!G150,'2011 Survey responses'!H150))","v":2},{"$f":"IF(SUM('2011 Survey responses'!I150:L150)<4.1,\"\",(AVERAGEIFS('2011 Survey responses'!I150:L150,'2011 Survey responses'!I150:L150,\">1\")))","v":2.3333333333333335},{"$f":"IF(SUM('2011 Survey responses'!M150:S150)<4.1,\"\",(AVERAGEIFS('2011 Survey responses'!M150:S150,'2011 Survey responses'!M150:S150,\">1\")))","v":3.5714285714285716},{"$f":"IF(SUM('2011 Survey responses'!T150:U150)<2.1,\"\",(AVERAGEIFS('2011 Survey responses'!T150:U150,'2011 Survey responses'!T150:U150,\">1\")))","v":2},{"$f":"IF(SUM('2011 Survey responses'!V150:AO150)<1,\"\",(AVERAGEIFS('2011 Survey responses'!V150:AO150,'2011 Survey responses'!V150:AO150,\">1\")))","v":2.8888888888888888},{"$f":"IF(SUM('2011 Survey responses'!V150:AA150)<1,\"\",(AVERAGEIFS('2011 Survey responses'!V150:AA150,'2011 Survey responses'!V150:AA150,\">1\")))","v":2.5},{"$f":"IF(SUM('2011 Survey responses'!AB150:AH150)<1,\"\",(AVERAGEIFS('2011 Survey responses'!AB150:AH150,'2011 Survey responses'!AB150:AH150,\">1\")))","v":2.8571428571428572},{"$f":"IF(SUM('2011 Survey responses'!AI150:AO150)<1,\"\",(AVERAGEIFS('2011 Survey responses'!AI150:AO150,'2011 Survey responses'!AI150:AO150,\">1\")))","v":3.1428571428571428},{"$f":"IF(('2011 Survey responses'!Y150+'2011 Survey responses'!AI150+'2011 Survey responses'!AK150)<3.1,\"\",((SUMIF('2011 Survey responses'!Y150,\">1\")+SUMIF('2011 Survey responses'!AI150,\">1\")+SUMIF('2011 Survey responses'!AK150,\">1\")+SUMIF('2011 Survey responses'!AM150,\">1\"))/(COUNTIF('2011 Survey responses'!Y150,\">1\")+COUNTIF('2011 Survey responses'!AI150,\">1\")+COUNTIF('2011 Survey responses'!AK150,\">1\")+COUNTIF('2011 Survey responses'!AM150,\">1\"))))","v":3.75},{"$f":"IF(('2011 Survey responses'!W150)<1.1,\"\",('2011 Survey responses'!W150))","v":2},{"$f":"IF(('2011 Survey responses'!Y150)<1.1,\"\",('2011 Survey responses'!Y150))","v":3},{"$f":"IF(('2011 Survey responses'!Z150)<1.1,\"\",('2011 Survey responses'!Z150))","v":""},{"$f":"IF(('2011 Survey responses'!V150+'2011 Survey responses'!X150+'2011 Survey responses'!AA150)<3.1,\"\",((SUMIF('2011 Survey responses'!V150,\">1\")+SUMIF('2011 Survey responses'!X150,\">1\")+SUMIF('2011 Survey responses'!AA150,\">1\"))/(COUNTIF('2011 Survey responses'!V150,\">1\")+COUNTIF('2011 Survey responses'!X150,\">1\")+COUNTIF('2011 Survey responses'!AA150,\">1\"))))","v":2.5},{"$f":"IF(('2011 Survey responses'!V150+'2011 Survey responses'!Y150+'2011 Survey responses'!AA150)<3.1,\"\",((SUMIF('2011 Survey responses'!V150,\">1\")+SUMIF('2011 Survey responses'!Y150,\">1\")+SUMIF('2011 Survey responses'!AA150,\">1\"))/(COUNTIF('2011 Survey responses'!V150,\">1\")+COUNTIF('2011 Survey responses'!Y150,\">1\")+COUNTIF('2011 Survey responses'!AA150,\">1\"))))","v":2.6666666666666665},{"$f":"IF(SUM('2011 Survey responses'!AB150:AH150)<1,\"\",(AVERAGEIFS('2011 Survey responses'!AB150:AH150,'2011 Survey responses'!AB150:AH150,\">1\")))","v":2.8571428571428572},{"$f":"IF(SUM('2011 Survey responses'!AI150:AO150)<7.1,\"\",(AVERAGEIFS('2011 Survey responses'!AI150:AO150,'2011 Survey responses'!AI150:AO150,\">1\")))","v":3.1428571428571428},{"$f":"IF(('2011 Survey responses'!AH150)<1.1,\"\",('2011 Survey responses'!AH150))","v":3},{"$f":"IF(SUM('2011 Survey responses'!AP150:BV150)<1,\"\",(AVERAGEIFS('2011 Survey responses'!AP150:BV150,'2011 Survey responses'!AP150:BV150,\">1\")))","v":2.6896551724137931},{"$f":"IF(SUM('2011 Survey responses'!AP150:AS150)<4.1,\"\",(AVERAGEIFS('2011 Survey responses'!AP150:AS150,'2011 Survey responses'!AP150:AS150,\">1\")))","v":2.75},{"$f":"IF(SUM('2011 Survey responses'!AT150:BF150)<1,\"\",(AVERAGEIFS('2011 Survey responses'!AT150:BF150,'2011 Survey responses'!AT150:BF150,\">1\")))","v":2.7},{"$f":"IF(SUM('2011 Survey responses'!BG150:BO150)<1,\"\",(AVERAGEIFS('2011 Survey responses'!BG150:BO150,'2011 Survey responses'!BG150:BO150,\">1\")))","v":3.125},{"$f":"IF(SUM('2011 Survey responses'!BP150:BS150)<1,\"\",(AVERAGEIFS('2011 Survey responses'!BP150:BS150,'2011 Survey responses'!BP150:BS150,\">1\")))","v":2},{"$f":"IF(SUM('2011 Survey responses'!BT150:BV150)<3.1,\"\",(AVERAGEIFS('2011 Survey responses'!BT150:BV150,'2011 Survey responses'!BT150:BV150,\">1\")))","v":2.3333333333333335},{"$f":"IF(('2011 Survey responses'!AQ150+'2011 Survey responses'!AR150+'2011 Survey responses'!BG150)<3.1,\"\",((SUMIF('2011 Survey responses'!AQ150,\">1\")+SUMIF('2011 Survey responses'!AR150,\">1\")+SUMIF('2011 Survey responses'!BG150,\">1\"))/(COUNTIF('2011 Survey responses'!AQ150,\">1\")+COUNTIF('2011 Survey responses'!AR150,\">1\")+COUNTIF('2011 Survey responses'!BG150,\">1\"))))","v":3},{"$f":"IF(SUM('2011 Survey responses'!AP150:AS150)<4.1,\"\",(AVERAGEIFS('2011 Survey responses'!AP150:AS150,'2011 Survey responses'!AP150:AS150,\">1\")))","v":2.75},{"$f":"IF(('2011 Survey responses'!AU150+'2011 Survey responses'!AX150+'2011 Survey responses'!BA150+'2011 Survey responses'!BC150+'2011 Survey responses'!BD150)<5.1,\"\",(SUMIF('2011 Survey responses'!AU150,\">1\")+SUMIF('2011 Survey responses'!AX150,\">1\")+SUMIF('2011 Survey responses'!BA150,\">1\")+SUMIF('2011 Survey responses'!BC150,\">1\")+SUMIF('2011 Survey responses'!BD150,\">1\"))/(COUNTIF('2011 Survey responses'!AU150,\">1\")+COUNTIF('2011 Survey responses'!AX150,\">1\")+COUNTIF('2011 Survey responses'!BA150,\">1\")+COUNTIF('2011 Survey responses'!BC150,\">1\")+COUNTIF('2011 Survey responses'!BD150,\">1\")))","v":2.5},{"$f":"IF(('2011 Survey responses'!AT150)<1.1,\"\",('2011 Survey responses'!AT150))","v":2},{"$f":"IF(SUM('2011 Survey responses'!AV150:AW150)<2.1,\"\",(AVERAGEIFS('2011 Survey responses'!AV150:AW150,'2011 Survey responses'!AV150:AW150,\">1\")))","v":3},{"$f":"IF(('2011 Survey responses'!AW150+'2011 Survey responses'!AY150)<2.1,\"\",(SUMIF('2011 Survey responses'!AW150,\">1\")+SUMIF('2011 Survey responses'!AY150,\">1\"))/(COUNTIF('2011 Survey responses'!AW150,\">1\")+COUNTIF('2011 Survey responses'!AY150,\">1\")))","v":3},{"$f":"IF(('2011 Survey responses'!AZ150)<1.1,\"\",('2011 Survey responses'!AZ150))","v":3},3,2,2,2,{"$f":"IF(('2011 Survey responses'!BE150)<1.1,\"\",('2011 Survey responses'!BE150))","v":""},{"$f":"IF(('2011 Survey responses'!AY150+'2011 Survey responses'!BB150+'2011 Survey responses'!BF150)<3.1,\"\",(SUMIF('2011 Survey responses'!AY150,\">1\")+SUMIF('2011 Survey responses'!BB150,\">1\")+SUMIF('2011 Survey responses'!BF150,\">1\"))/(COUNTIF('2011 Survey responses'!AY150,\">1\")+COUNTIF('2011 Survey responses'!BB150,\">1\")+COUNTIF('2011 Survey responses'!BF150,\">1\")))","v":3},2.5625,{"$f":"IF(SUM('2011 Survey responses'!BT150:BV150)<3.1,\"\",(AVERAGEIFS('2011 Survey responses'!BT150:BV150,'2011 Survey responses'!BT150:BV150,\">1\")))","v":2.3333333333333335},{"$f":"IF(SUM('2011 Survey responses'!BW150:CP150)<1,\"\",(AVERAGEIFS('2011 Survey responses'!BW150:CP150,'2011 Survey responses'!BW150:CP150,\">1\")))","v":3},{"$f":"IF(SUM('2011 Survey responses'!BW150:CF150)<1,\"\",(AVERAGEIFS('2011 Survey responses'!BW150:CF150,'2011 Survey responses'!BW150:CF150,\">1\")))","v":2.6666666666666665},{"$f":"IF(SUM('2011 Survey responses'!CG150:CP150)<1,\"\",(AVERAGEIFS('2011 Survey responses'!CG150:CP150,'2011 Survey responses'!CG150:CP150,\">1\")))","v":3.3333333333333335},{"$f":"IF(SUM('2011 Survey responses'!BX150:CF150)<1,\"\",(AVERAGEIFS('2011 Survey responses'!BX150:CF150,'2011 Survey responses'!BX150:CF150,\">1\")))","v":2.5},{"$f":"IF(SUM('2011 Survey responses'!CH150:CP150)<1,\"\",(AVERAGEIFS('2011 Survey responses'!CH150:CP150,'2011 Survey responses'!CH150:CP150,\">1\")))","v":3.25},{"$f":"IF(SUM('2011 Survey responses'!BW150:CP150)<1,\"\",(AVERAGEIFS('2011 Survey responses'!BW150:CP150,'2011 Survey responses'!BW150:CP150,\">1\")))","v":3},{"$f":"IF(('2011 Survey responses'!BW150+'2011 Survey responses'!CG150)<2.1,\"\",(SUMIF('2011 Survey responses'!BW150,\">1\")+SUMIF('2011 Survey responses'!CG150,\">1\"))/(COUNTIF('2011 Survey responses'!BW150,\">1\")+COUNTIF('2011 Survey responses'!CG150,\">1\")))","v":4},{"$f":"IF(('2011 Survey responses'!BX150+'2011 Survey responses'!CH150)<2.1,\"\",(SUMIF('2011 Survey responses'!BX150,\">1\")+SUMIF('2011 Survey responses'!CH150,\">1\"))/(COUNTIF('2011 Survey responses'!BX150,\">1\")+COUNTIF('2011 Survey responses'!CH150,\">1\")))","v":4},{"$f":"IF(('2011 Survey responses'!BY150+'2011 Survey responses'!CI150)<2.1,\"\",(SUMIF('2011 Survey responses'!BY150,\">1\")+SUMIF('2011 Survey responses'!CI150,\">1\"))/(COUNTIF('2011 Survey responses'!BY150,\">1\")+COUNTIF('2011 Survey responses'!CI150,\">1\")))","v":3.5},{"$f":"IF('2011 Survey responses'!CQ150<0.5,\"\",'2011 Survey responses'!CQ150)","v":1},{"$f":"IF('2011 Survey responses'!CR150<0.5,\"\",'2011 Survey responses'!CR150)","v":4},{"$f":"IF('2011 Survey responses'!CS150<0.5,\"\",'2011 Survey responses'!CS150)","v":4},{"$f":"IF('2011 Survey responses'!CT150<0.5,\"\",'2011 Survey responses'!CT150)","v":2},{"$f":"IF('2011 Survey responses'!CU150<0.5,\"\",'2011 Survey responses'!CU150)","v":5},{"$f":"IF('2011 Survey responses'!CV150<0.5,\"\",'2011 Survey responses'!CV150)","v":5},{"$f":"IF(SUM('2011 Survey responses'!CW150:DL150)<1,\"\",(AVERAGE('2011 Survey responses'!CW150:DL150)))","v":1.9375},{"$f":"IF(SUM('2011 Survey responses'!CW150:CZ150)<1,\"\",(AVERAGE('2011 Survey responses'!CW150:CZ150)))","v":2},{"$f":"IF(SUM('2011 Survey responses'!DA150:DD150)<1,\"\",(AVERAGE('2011 Survey responses'!DA150:DD150)))","v":2},{"$f":"IF(SUM('2011 Survey responses'!DE150:DH150)<1,\"\",(AVERAGE('2011 Survey responses'!DE150:DH150)))","v":1},{"$f":"IF(SUM('2011 Survey responses'!DI150:DL150)<1,\"\",(AVERAGE('2011 Survey responses'!DI150:DL150)))","v":2.75},{"$f":"IF(('2011 Survey responses'!CW150+'2011 Survey responses'!DA150+'2011 Survey responses'!DE150+'2011 Survey responses'!DI150)<1,\"\",AVERAGE('2011 Survey responses'!CW150,'2011 Survey responses'!DA150,'2011 Survey responses'!DE150,'2011 Survey responses'!DI150))","v":2},{"$f":"IF(('2011 Survey responses'!CX150+'2011 Survey responses'!DB150+'2011 Survey responses'!DF150+'2011 Survey responses'!DJ150)<1,\"\",AVERAGE('2011 Survey responses'!CX150,'2011 Survey responses'!DB150,'2011 Survey responses'!DF150,'2011 Survey responses'!DJ150))","v":2},{"$f":"IF(('2011 Survey responses'!CY150+'2011 Survey responses'!DC150+'2011 Survey responses'!DG150+'2011 Survey responses'!DK150)<1,\"\",AVERAGE('2011 Survey responses'!CY150,'2011 Survey responses'!DC150,'2011 Survey responses'!DG150,'2011 Survey responses'!DK150))","v":1.75},{"$f":"IF(('2011 Survey responses'!CZ150+'2011 Survey responses'!DD150+'2011 Survey responses'!DH150+'2011 Survey responses'!DL150)<1,\"\",AVERAGE('2011 Survey responses'!CZ150,'2011 Survey responses'!DD150,'2011 Survey responses'!DH150,'2011 Survey responses'!DL150))","v":2},{"$f":"IF('2011 Survey responses'!CW150<0.5,\"\",'2011 Survey responses'!CW150)","v":2},{"$f":"IF('2011 Survey responses'!CX150<0.5,\"\",'2011 Survey responses'!CX150)","v":2},{"$f":"IF('2011 Survey responses'!CY150<0.5,\"\",'2011 Survey responses'!CY150)","v":2},{"$f":"IF('2011 Survey responses'!CZ150<0.5,\"\",'2011 Survey responses'!CZ150)","v":2},{"$f":"IF('2011 Survey responses'!DA150<0.5,\"\",'2011 Survey responses'!DA150)","v":2},{"$f":"IF('2011 Survey responses'!DB150<0.5,\"\",'2011 Survey responses'!DB150)","v":2},{"$f":"IF('2011 Survey responses'!DC150<0.5,\"\",'2011 Survey responses'!DC150)","v":2},{"$f":"IF('2011 Survey responses'!DD150<0.5,\"\",'2011 Survey responses'!DD150)","v":2},{"$f":"IF('2011 Survey responses'!DE150<0.5,\"\",'2011 Survey responses'!DE150)","v":1},{"$f":"IF('2011 Survey responses'!DF150<0.5,\"\",'2011 Survey responses'!DF150)","v":1},{"$f":"IF('2011 Survey responses'!DG150<0.5,\"\",'2011 Survey responses'!DG150)","v":1},{"$f":"IF('2011 Survey responses'!DH150<0.5,\"\",'2011 Survey responses'!DH150)","v":1},{"$f":"IF('2011 Survey responses'!DI150<0.5,\"\",'2011 Survey responses'!DI150)","v":3},{"$f":"IF('2011 Survey responses'!DJ150<0.5,\"\",'2011 Survey responses'!DJ150)","v":3},{"$f":"IF('2011 Survey responses'!DK150<0.5,\"\",'2011 Survey responses'!DK150)","v":2},{"$f":"IF('2011 Survey responses'!DL150<0.5,\"\",'2011 Survey responses'!DL150)","v":3},{"$f":"IF('2011 Survey responses'!DU150=4,4,IF('2011 Survey responses'!DU150=5,4,\"\"))","v":""},{"$f":"IF('2011 Survey responses'!DV150=4,3,IF('2011 Survey responses'!DV150=5,3,\"\"))","v":""},"",{"$f":"IF(CQ150=2,CQ150,IF(CO150=4,CO150,IF(CP150=3,CP150,IF('2011 Survey responses'!GT150=1,1,\"\"))))","v":1},{"$f":"IF('2011 Survey responses'!DO150<0.5,\"\",'2011 Survey responses'!DO150)","v":4},{"$f":"IF('2011 Survey responses'!DP150<0.5,\"\",'2011 Survey responses'!DP150)","v":4},{"$f":"IF('2011 Survey responses'!DQ150<0.5,\"\",'2011 Survey responses'!DQ150)","v":2},{"$f":"IF('2011 Survey responses'!DR150<0.5,\"\",'2011 Survey responses'!DR150)","v":3},{"$f":"IF('2011 Survey responses'!DS150<0.5,\"\",'2011 Survey responses'!DS150)","v":3},{"$f":"IF('2011 Survey responses'!DT150<0.5,\"\",'2011 Survey responses'!DT150)","v":4},{"$f":"IF('2011 Survey responses'!DU150<0.5,\"\",'2011 Survey responses'!DU150)","v":2},{"$f":"IF('2011 Survey responses'!DV150<0.5,\"\",'2011 Survey responses'!DV150)","v":3},{"$f":"IF('2011 Survey responses'!DW150<0.5,\"\",'2011 Survey responses'!DW150)","v":3},{"$f":"IF('2011 Survey responses'!DX150<0.5,\"\",'2011 Survey responses'!DX150)","v":2},{"$f":"IF('2011 Survey responses'!DY150<0.5,\"\",'2011 Survey responses'!DY150)","v":4},{"$f":"IF('2011 Survey responses'!DZ150<0.5,\"\",'2011 Survey responses'!DZ150)","v":2},{"$f":"IF('2011 Survey responses'!EA150<0.5,\"\",'2011 Survey responses'!EA150)","v":4},{"$f":"IF('2011 Survey responses'!EB150<0.5,\"\",'2011 Survey responses'!EB150)","v":4},{"$f":"IF('2011 Survey responses'!EC150<0.5,\"\",'2011 Survey responses'!EC150)","v":3},{"$f":"IF('2011 Survey responses'!ED150<0.5,\"\",'2011 Survey responses'!ED150)","v":3},{"$f":"IF('2011 Survey responses'!EE150<0.5,\"\",'2011 Survey responses'!EE150)","v":3},{"$f":"IF('2011 Survey responses'!EF150<0.5,\"\",'2011 Survey responses'!EF150)","v":4},{"$f":"IF('2011 Survey responses'!EG150<0.5,\"\",'2011 Survey responses'!EG150)","v":2},{"$f":"IF('2011 Survey responses'!EH150<0.5,\"\",'2011 Survey responses'!EH150)","v":4},{"$f":"IF('2011 Survey responses'!EI150<0.5,\"\",'2011 Survey responses'!EI150)","v":4},{"$f":"IF('2011 Survey responses'!EJ150<0.5,\"\",'2011 Survey responses'!EJ150)","v":3},{"$f":"IF('2011 Survey responses'!EK150<0.5,\"\",'2011 Survey responses'!EK150)","v":3},{"$f":"IF('2011 Survey responses'!EL150<0.5,\"\",'2011 Survey responses'!EL150)","v":3},{"$f":"IF('2011 Survey responses'!EM150<0.5,\"\",'2011 Survey responses'!EM150)","v":4},{"$f":"IF('2011 Survey responses'!EN150<0.5,\"\",'2011 Survey responses'!EN150)","v":3},{"$f":"IF('2011 Survey responses'!EO150<0.5,\"\",'2011 Survey responses'!EO150)","v":1},{"$f":"IF('2011 Survey responses'!EP150<0.5,\"\",'2011 Survey responses'!EP150)","v":1},{"$f":"IF(('2011 Survey responses'!EW150+'2011 Survey responses'!EX150)>=2,AVERAGE('2011 Survey responses'!EW150,'2011 Survey responses'!EY150),\"\")","v":4},{"$f":"IF('2011 Survey responses'!EX150<0.5,\"\",'2011 Survey responses'!EX150)","v":4},{"$f":"IF('2011 Survey responses'!EZ150<0.5,\"\",'2011 Survey responses'!EZ150)","v":4},{"$f":"IF('2011 Survey responses'!FB150<0.5,\"\",'2011 Survey responses'!FB150)","v":3},{"$f":"IF('2011 Survey responses'!FD150<0.5,\"\",'2011 Survey responses'!FD150)","v":4},{"$f":"IF('2011 Survey responses'!FC150<0.5,\"\",'2011 Survey responses'!FC150)","v":4},{"$f":"IF(('2011 Survey responses'!EM150+'2011 Survey responses'!EN150)>=2,AVERAGE('2011 Survey responses'!EM150,'2011 Survey responses'!EN150),\"\")","v":3.5},{"$f":"IF('2011 Survey responses'!ES150<0.5,\"\",'2011 Survey responses'!ES150)","v":4},{"$f":"IF(('2011 Survey responses'!ET150+'2011 Survey responses'!EU150)>=2,AVERAGE('2011 Survey responses'!ET150,'2011 Survey responses'!EU150),\"\")","v":4},{"$f":"IF('2011 Survey responses'!EV150<0.5,\"\",'2011 Survey responses'!EV150)","v":4},{"$f":"IF('2011 Survey responses'!FA150<0.5,\"\",'2011 Survey responses'!FA150)","v":3},{"$f":"IF('2011 Survey responses'!ER150<0.5,\"\",'2011 Survey responses'!ER150)","v":4},{"$f":"IF(('2011 Survey responses'!EO150+'2011 Survey responses'!EP150)>=2,AVERAGE('2011 Survey responses'!EO150,'2011 Survey responses'!EP150),\"\")","v":1},{"$f":"IF('2011 Survey responses'!EQ150<0.5,\"\",'2011 Survey responses'!EQ150)","v":2},{"$f":"IF('2011 Survey responses'!ET150<0.5,\"\",'2011 Survey responses'!ET150)","v":4},{"$f":"IF('2011 Survey responses'!EU150<0.5,\"\",'2011 Survey responses'!EU150)","v":4},{"$f":"IF('2011 Survey responses'!EW150<0.5,\"\",'2011 Survey responses'!EW150)","v":4},{"$f":"IF('2011 Survey responses'!EY150<0.5,\"\",'2011 Survey responses'!EY150)","v":4},{"$f":"IF('2011 Survey responses'!FU150<0.5,\"\",'2011 Survey responses'!FU150)","v":4},{"$f":"IF(('2011 Survey responses'!FL150+'2011 Survey responses'!FM150)>=2,AVERAGE('2011 Survey responses'!FL150,'2011 Survey responses'!FM150),\"\")","v":4},{"$f":"IF(('2011 Survey responses'!FO150+'2011 Survey responses'!FQ150)>=2,AVERAGE('2011 Survey responses'!FO150,'2011 Survey responses'!FQ150),\"\")","v":4},{"$f":"IF('2011 Survey responses'!FJ150<0.5,\"\",'2011 Survey responses'!FJ150)","v":4},{"$f":"IF('2011 Survey responses'!FT150<0.5,\"\",'2011 Survey responses'!FT150)","v":3},{"$f":"IF('2011 Survey responses'!FR150<0.5,\"\",'2011 Survey responses'!FR150)","v":4},{"$f":"IF('2011 Survey responses'!FK150<0.5,\"\",'2011 Survey responses'!FK150)","v":4},{"$f":"IF('2011 Survey responses'!FP150<0.5,\"\",'2011 Survey responses'!FP150)","v":4},{"$f":"IF('2011 Survey responses'!FN150<0.5,\"\",'2011 Survey responses'!FN150)","v":4},{"$f":"IF(('2011 Survey responses'!FE150+'2011 Survey responses'!FF150)>=2,AVERAGE('2011 Survey responses'!FE150,'2011 Survey responses'!FF150),\"\")","v":3.5},{"$f":"IF('2011 Survey responses'!FS150<0.5,\"\",'2011 Survey responses'!FS150)","v":3},{"$f":"IF('2011 Survey responses'!FV150<0.5,\"\",'2011 Survey responses'!FV150)","v":4},{"$f":"IF(('2011 Survey responses'!FG150+'2011 Survey responses'!FH150)>=2,AVERAGE('2011 Survey responses'!FG150,'2011 Survey responses'!FH150),\"\")","v":3},{"$f":"IF('2011 Survey responses'!FI150<0.5,\"\",'2011 Survey responses'!FI150)","v":3},{"$f":"IF('2011 Survey responses'!FE150<0.5,\"\",'2011 Survey responses'!FE150)","v":4},{"$f":"IF('2011 Survey responses'!FF150<0.5,\"\",'2011 Survey responses'!FF150)","v":3},{"$f":"IF('2011 Survey responses'!FG150<0.5,\"\",'2011 Survey responses'!FG150)","v":3},{"$f":"IF('2011 Survey responses'!FH150<0.5,\"\",'2011 Survey responses'!FH150)","v":3},{"$f":"IF('2011 Survey responses'!FL150<0.5,\"\",'2011 Survey responses'!FL150)","v":4},{"$f":"IF('2011 Survey responses'!FM150<0.5,\"\",'2011 Survey responses'!FM150)","v":4},{"$f":"IF('2011 Survey responses'!FO150<0.5,\"\",'2011 Survey responses'!FO150)","v":4},{"$f":"IF('2011 Survey responses'!FQ150<0.5,\"\",'2011 Survey responses'!FQ150)","v":4}]
["Saudi Arabia",{"$f":"IF(SUM(F151)<1,\"\",AVERAGEIF('2011 Survey responses'!B151:CP151,\">1\"))","v":3.3703703703703702},{"$f":"IF(SUM(F151)<1,\"\",AVERAGEIF('2011 Survey responses'!B151:AO151,\">1\"))","v":3.1212121212121211},{"$f":"IF(SUM(F151)<1,\"\",AVERAGEIF('2011 Survey responses'!B151:BV151,\">1\"))","v":3.1111111111111112},{"$f":"IF(SUM(F151)<1,\"\",AVERAGEIF('2011 Survey responses'!V151:BV151,\">1\"))","v":3.2608695652173911},{"$f":"IF(SUM('2011 Survey responses'!B151:U151)<1,\"\",(AVERAGEIFS('2011 Survey responses'!B151:U151,'2011 Survey responses'!B151:U151,\">1\")))","v":2.7058823529411766},{"$f":"IF(SUM('2011 Survey responses'!B151:H151)<1,\"\",(AVERAGEIFS('2011 Survey responses'!B151:H151,'2011 Survey responses'!B151:H151,\">1\")))","v":2.6},{"$f":"IF(SUM('2011 Survey responses'!I151:S151)<1,\"\",(AVERAGEIFS('2011 Survey responses'!I151:S151,'2011 Survey responses'!I151:S151,\">1\")))","v":2.8181818181818183},{"$f":"IF(SUM('2011 Survey responses'!T151:U151)<2.1,\"\",(AVERAGEIFS('2011 Survey responses'!T151:U151,'2011 Survey responses'!T151:U151,\">1\")))","v":2},{"$f":"IF(SUM('2011 Survey responses'!B151:C151)<2.1,\"\",((SUMIF('2011 Survey responses'!B151:C151,\">1\")+SUMIF('2011 Survey responses'!F151,\">1\"))/(COUNTIF('2011 Survey responses'!B151:C151,\">1\")+COUNTIF('2011 Survey responses'!F151,\">1\"))))","v":3},{"$f":"IF(SUM('2011 Survey responses'!D151:E151)<2.1,\"\",(AVERAGEIFS('2011 Survey responses'!D151:E151,'2011 Survey responses'!D151:E151,\">1\")))","v":2},{"$f":"IF(('2011 Survey responses'!B151+'2011 Survey responses'!D151)<2.1,\"\",((SUMIF('2011 Survey responses'!B151,\">1\")+SUMIF('2011 Survey responses'!D151,\">1\")+SUMIF('2011 Survey responses'!F151,\">1\")+SUMIF('2011 Survey responses'!K151,\">1\"))/(COUNTIF('2011 Survey responses'!B151,\">1\")+COUNTIF('2011 Survey responses'!D151,\">1\")+COUNTIF('2011 Survey responses'!F151,\">1\")+COUNTIF('2011 Survey responses'!K151,\">1\"))))","v":2.75},{"$f":"IF(SUM('2011 Survey responses'!G151:H151)<2.1,\"\",(AVERAGEIFS('2011 Survey responses'!G151:H151,'2011 Survey responses'!G151:H151,\">1\")))","v":2.5},{"$f":"IF(SUM('2011 Survey responses'!F151:G151)<1.5,\"\",MAX('2011 Survey responses'!F151,'2011 Survey responses'!G151))","v":2},{"$f":"IF(SUM('2011 Survey responses'!G151:H151)<1,\"\",MAX('2011 Survey responses'!G151,'2011 Survey responses'!H151))","v":3},{"$f":"IF(SUM('2011 Survey responses'!I151:L151)<4.1,\"\",(AVERAGEIFS('2011 Survey responses'!I151:L151,'2011 Survey responses'!I151:L151,\">1\")))","v":3},{"$f":"IF(SUM('2011 Survey responses'!M151:S151)<4.1,\"\",(AVERAGEIFS('2011 Survey responses'!M151:S151,'2011 Survey responses'!M151:S151,\">1\")))","v":2.7142857142857144},{"$f":"IF(SUM('2011 Survey responses'!T151:U151)<2.1,\"\",(AVERAGEIFS('2011 Survey responses'!T151:U151,'2011 Survey responses'!T151:U151,\">1\")))","v":2},{"$f":"IF(SUM('2011 Survey responses'!V151:AO151)<1,\"\",(AVERAGEIFS('2011 Survey responses'!V151:AO151,'2011 Survey responses'!V151:AO151,\">1\")))","v":3.5625},{"$f":"IF(SUM('2011 Survey responses'!V151:AA151)<1,\"\",(AVERAGEIFS('2011 Survey responses'!V151:AA151,'2011 Survey responses'!V151:AA151,\">1\")))","v":2.75},{"$f":"IF(SUM('2011 Survey responses'!AB151:AH151)<1,\"\",(AVERAGEIFS('2011 Survey responses'!AB151:AH151,'2011 Survey responses'!AB151:AH151,\">1\")))","v":4},{"$f":"IF(SUM('2011 Survey responses'!AI151:AO151)<1,\"\",(AVERAGEIFS('2011 Survey responses'!AI151:AO151,'2011 Survey responses'!AI151:AO151,\">1\")))","v":3.7142857142857144},{"$f":"IF(('2011 Survey responses'!Y151+'2011 Survey responses'!AI151+'2011 Survey responses'!AK151)<3.1,\"\",((SUMIF('2011 Survey responses'!Y151,\">1\")+SUMIF('2011 Survey responses'!AI151,\">1\")+SUMIF('2011 Survey responses'!AK151,\">1\")+SUMIF('2011 Survey responses'!AM151,\">1\"))/(COUNTIF('2011 Survey responses'!Y151,\">1\")+COUNTIF('2011 Survey responses'!AI151,\">1\")+COUNTIF('2011 Survey responses'!AK151,\">1\")+COUNTIF('2011 Survey responses'!AM151,\">1\"))))","v":3.5},{"$f":"IF(('2011 Survey responses'!W151)<1.1,\"\",('2011 Survey responses'!W151))","v":4},{"$f":"IF(('2011 Survey responses'!Y151)<1.1,\"\",('2011 Survey responses'!Y151))","v":3},{"$f":"IF(('2011 Survey responses'!Z151)<1.1,\"\",('2011 Survey responses'!Z151))","v":2},{"$f":"IF(('2011 Survey responses'!V151+'2011 Survey responses'!X151+'2011 Survey responses'!AA151)<3.1,\"\",((SUMIF('2011 Survey responses'!V151,\">1\")+SUMIF('2011 Survey responses'!X151,\">1\")+SUMIF('2011 Survey responses'!AA151,\">1\"))/(COUNTIF('2011 Survey responses'!V151,\">1\")+COUNTIF('2011 Survey responses'!X151,\">1\")+COUNTIF('2011 Survey responses'!AA151,\">1\"))))","v":2},{"$f":"IF(('2011 Survey responses'!V151+'2011 Survey responses'!Y151+'2011 Survey responses'!AA151)<3.1,\"\",((SUMIF('2011 Survey responses'!V151,\">1\")+SUMIF('2011 Survey responses'!Y151,\">1\")+SUMIF('2011 Survey responses'!AA151,\">1\"))/(COUNTIF('2011 Survey responses'!V151,\">1\")+COUNTIF('2011 Survey responses'!Y151,\">1\")+COUNTIF('2011 Survey responses'!AA151,\">1\"))))","v":2.5},{"$f":"IF(SUM('2011 Survey responses'!AB151:AH151)<1,\"\",(AVERAGEIFS('2011 Survey responses'!AB151:AH151,'2011 Survey responses'!AB151:AH151,\">1\")))","v":4},{"$f":"IF(SUM('2011 Survey responses'!AI151:AO151)<7.1,\"\",(AVERAGEIFS('2011 Survey responses'!AI151:AO151,'2011 Survey responses'!AI151:AO151,\">1\")))","v":3.7142857142857144},{"$f":"IF(('2011 Survey responses'!AH151)<1.1,\"\",('2011 Survey responses'!AH151))","v":""},{"$f":"IF(SUM('2011 Survey responses'!AP151:BV151)<1,\"\",(AVERAGEIFS('2011 Survey responses'!AP151:BV151,'2011 Survey responses'!AP151:BV151,\">1\")))","v":3.1},{"$f":"IF(SUM('2011 Survey responses'!AP151:AS151)<4.1,\"\",(AVERAGEIFS('2011 Survey responses'!AP151:AS151,'2011 Survey responses'!AP151:AS151,\">1\")))","v":2.3333333333333335},{"$f":"IF(SUM('2011 Survey responses'!AT151:BF151)<1,\"\",(AVERAGEIFS('2011 Survey responses'!AT151:BF151,'2011 Survey responses'!AT151:BF151,\">1\")))","v":3.1666666666666665},{"$f":"IF(SUM('2011 Survey responses'!BG151:BO151)<1,\"\",(AVERAGEIFS('2011 Survey responses'!BG151:BO151,'2011 Survey responses'!BG151:BO151,\">1\")))","v":3.625},{"$f":"IF(SUM('2011 Survey responses'!BP151:BS151)<1,\"\",(AVERAGEIFS('2011 Survey responses'!BP151:BS151,'2011 Survey responses'!BP151:BS151,\">1\")))","v":3},{"$f":"IF(SUM('2011 Survey responses'!BT151:BV151)<3.1,\"\",(AVERAGEIFS('2011 Survey responses'!BT151:BV151,'2011 Survey responses'!BT151:BV151,\">1\")))","v":2.3333333333333335},{"$f":"IF(('2011 Survey responses'!AQ151+'2011 Survey responses'!AR151+'2011 Survey responses'!BG151)<3.1,\"\",((SUMIF('2011 Survey responses'!AQ151,\">1\")+SUMIF('2011 Survey responses'!AR151,\">1\")+SUMIF('2011 Survey responses'!BG151,\">1\"))/(COUNTIF('2011 Survey responses'!AQ151,\">1\")+COUNTIF('2011 Survey responses'!AR151,\">1\")+COUNTIF('2011 Survey responses'!BG151,\">1\"))))","v":2.3333333333333335},{"$f":"IF(SUM('2011 Survey responses'!AP151:AS151)<4.1,\"\",(AVERAGEIFS('2011 Survey responses'!AP151:AS151,'2011 Survey responses'!AP151:AS151,\">1\")))","v":2.3333333333333335},{"$f":"IF(('2011 Survey responses'!AU151+'2011 Survey responses'!AX151+'2011 Survey responses'!BA151+'2011 Survey responses'!BC151+'2011 Survey responses'!BD151)<5.1,\"\",(SUMIF('2011 Survey responses'!AU151,\">1\")+SUMIF('2011 Survey responses'!AX151,\">1\")+SUMIF('2011 Survey responses'!BA151,\">1\")+SUMIF('2011 Survey responses'!BC151,\">1\")+SUMIF('2011 Survey responses'!BD151,\">1\"))/(COUNTIF('2011 Survey responses'!AU151,\">1\")+COUNTIF('2011 Survey responses'!AX151,\">1\")+COUNTIF('2011 Survey responses'!BA151,\">1\")+COUNTIF('2011 Survey responses'!BC151,\">1\")+COUNTIF('2011 Survey responses'!BD151,\">1\")))","v":3.8},{"$f":"IF(('2011 Survey responses'!AT151)<1.1,\"\",('2011 Survey responses'!AT151))","v":2},{"$f":"IF(SUM('2011 Survey responses'!AV151:AW151)<2.1,\"\",(AVERAGEIFS('2011 Survey responses'!AV151:AW151,'2011 Survey responses'!AV151:AW151,\">1\")))","v":2.5},{"$f":"IF(('2011 Survey responses'!AW151+'2011 Survey responses'!AY151)<2.1,\"\",(SUMIF('2011 Survey responses'!AW151,\">1\")+SUMIF('2011 Survey responses'!AY151,\">1\"))/(COUNTIF('2011 Survey responses'!AW151,\">1\")+COUNTIF('2011 Survey responses'!AY151,\">1\")))","v":3},{"$f":"IF(('2011 Survey responses'!AZ151)<1.1,\"\",('2011 Survey responses'!AZ151))","v":5},5,5,5,3,{"$f":"IF(('2011 Survey responses'!BE151)<1.1,\"\",('2011 Survey responses'!BE151))","v":""},{"$f":"IF(('2011 Survey responses'!AY151+'2011 Survey responses'!BB151+'2011 Survey responses'!BF151)<3.1,\"\",(SUMIF('2011 Survey responses'!AY151,\">1\")+SUMIF('2011 Survey responses'!BB151,\">1\")+SUMIF('2011 Survey responses'!BF151,\">1\"))/(COUNTIF('2011 Survey responses'!AY151,\">1\")+COUNTIF('2011 Survey responses'!BB151,\">1\")+COUNTIF('2011 Survey responses'!BF151,\">1\")))","v":2.3333333333333335},3.3125,{"$f":"IF(SUM('2011 Survey responses'!BT151:BV151)<3.1,\"\",(AVERAGEIFS('2011 Survey responses'!BT151:BV151,'2011 Survey responses'!BT151:BV151,\">1\")))","v":2.3333333333333335},{"$f":"IF(SUM('2011 Survey responses'!BW151:CP151)<1,\"\",(AVERAGEIFS('2011 Survey responses'!BW151:CP151,'2011 Survey responses'!BW151:CP151,\">1\")))","v":4.2777777777777777},{"$f":"IF(SUM('2011 Survey responses'!BW151:CF151)<1,\"\",(AVERAGEIFS('2011 Survey responses'!BW151:CF151,'2011 Survey responses'!BW151:CF151,\">1\")))","v":4.2222222222222223},{"$f":"IF(SUM('2011 Survey responses'!CG151:CP151)<1,\"\",(AVERAGEIFS('2011 Survey responses'!CG151:CP151,'2011 Survey responses'!CG151:CP151,\">1\")))","v":4.333333333333333},{"$f":"IF(SUM('2011 Survey responses'!BX151:CF151)<1,\"\",(AVERAGEIFS('2011 Survey responses'!BX151:CF151,'2011 Survey responses'!BX151:CF151,\">1\")))","v":4.125},{"$f":"IF(SUM('2011 Survey responses'!CH151:CP151)<1,\"\",(AVERAGEIFS('2011 Survey responses'!CH151:CP151,'2011 Survey responses'!CH151:CP151,\">1\")))","v":4.25},{"$f":"IF(SUM('2011 Survey responses'!BW151:CP151)<1,\"\",(AVERAGEIFS('2011 Survey responses'!BW151:CP151,'2011 Survey responses'!BW151:CP151,\">1\")))","v":4.2777777777777777},{"$f":"IF(('2011 Survey responses'!BW151+'2011 Survey responses'!CG151)<2.1,\"\",(SUMIF('2011 Survey responses'!BW151,\">1\")+SUMIF('2011 Survey responses'!CG151,\">1\"))/(COUNTIF('2011 Survey responses'!BW151,\">1\")+COUNTIF('2011 Survey responses'!CG151,\">1\")))","v":5},{"$f":"IF(('2011 Survey responses'!BX151+'2011 Survey responses'!CH151)<2.1,\"\",(SUMIF('2011 Survey responses'!BX151,\">1\")+SUMIF('2011 Survey responses'!CH151,\">1\"))/(COUNTIF('2011 Survey responses'!BX151,\">1\")+COUNTIF('2011 Survey responses'!CH151,\">1\")))","v":2.5},{"$f":"IF(('2011 Survey responses'!BY151+'2011 Survey responses'!CI151)<2.1,\"\",(SUMIF('2011 Survey responses'!BY151,\">1\")+SUMIF('2011 Survey responses'!CI151,\">1\"))/(COUNTIF('2011 Survey responses'!BY151,\">1\")+COUNTIF('2011 Survey responses'!CI151,\">1\")))","v":4},{"$f":"IF('2011 Survey responses'!CQ151<0.5,\"\",'2011 Survey responses'!CQ151)","v":4},{"$f":"IF('2011 Survey responses'!CR151<0.5,\"\",'2011 Survey responses'!CR151)","v":2},{"$f":"IF('2011 Survey responses'!CS151<0.5,\"\",'2011 Survey responses'!CS151)","v":2},{"$f":"IF('2011 Survey responses'!CT151<0.5,\"\",'2011 Survey responses'!CT151)","v":4},{"$f":"IF('2011 Survey responses'!CU151<0.5,\"\",'2011 Survey responses'!CU151)","v":2},{"$f":"IF('2011 Survey responses'!CV151<0.5,\"\",'2011 Survey responses'!CV151)","v":1},{"$f":"IF(SUM('2011 Survey responses'!CW151:DL151)<1,\"\",(AVERAGE('2011 Survey responses'!CW151:DL151)))","v":3.5625},{"$f":"IF(SUM('2011 Survey responses'!CW151:CZ151)<1,\"\",(AVERAGE('2011 Survey responses'!CW151:CZ151)))","v":3.5},{"$f":"IF(SUM('2011 Survey responses'!DA151:DD151)<1,\"\",(AVERAGE('2011 Survey responses'!DA151:DD151)))","v":3.5},{"$f":"IF(SUM('2011 Survey responses'!DE151:DH151)<1,\"\",(AVERAGE('2011 Survey responses'!DE151:DH151)))","v":3.5},{"$f":"IF(SUM('2011 Survey responses'!DI151:DL151)<1,\"\",(AVERAGE('2011 Survey responses'!DI151:DL151)))","v":3.75},{"$f":"IF(('2011 Survey responses'!CW151+'2011 Survey responses'!DA151+'2011 Survey responses'!DE151+'2011 Survey responses'!DI151)<1,\"\",AVERAGE('2011 Survey responses'!CW151,'2011 Survey responses'!DA151,'2011 Survey responses'!DE151,'2011 Survey responses'!DI151))","v":3},{"$f":"IF(('2011 Survey responses'!CX151+'2011 Survey responses'!DB151+'2011 Survey responses'!DF151+'2011 Survey responses'!DJ151)<1,\"\",AVERAGE('2011 Survey responses'!CX151,'2011 Survey responses'!DB151,'2011 Survey responses'!DF151,'2011 Survey responses'!DJ151))","v":4},{"$f":"IF(('2011 Survey responses'!CY151+'2011 Survey responses'!DC151+'2011 Survey responses'!DG151+'2011 Survey responses'!DK151)<1,\"\",AVERAGE('2011 Survey responses'!CY151,'2011 Survey responses'!DC151,'2011 Survey responses'!DG151,'2011 Survey responses'!DK151))","v":3.75},{"$f":"IF(('2011 Survey responses'!CZ151+'2011 Survey responses'!DD151+'2011 Survey responses'!DH151+'2011 Survey responses'!DL151)<1,\"\",AVERAGE('2011 Survey responses'!CZ151,'2011 Survey responses'!DD151,'2011 Survey responses'!DH151,'2011 Survey responses'!DL151))","v":3.5},{"$f":"IF('2011 Survey responses'!CW151<0.5,\"\",'2011 Survey responses'!CW151)","v":3},{"$f":"IF('2011 Survey responses'!CX151<0.5,\"\",'2011 Survey responses'!CX151)","v":4},{"$f":"IF('2011 Survey responses'!CY151<0.5,\"\",'2011 Survey responses'!CY151)","v":3},{"$f":"IF('2011 Survey responses'!CZ151<0.5,\"\",'2011 Survey responses'!CZ151)","v":4},{"$f":"IF('2011 Survey responses'!DA151<0.5,\"\",'2011 Survey responses'!DA151)","v":3},{"$f":"IF('2011 Survey responses'!DB151<0.5,\"\",'2011 Survey responses'!DB151)","v":4},{"$f":"IF('2011 Survey responses'!DC151<0.5,\"\",'2011 Survey responses'!DC151)","v":4},{"$f":"IF('2011 Survey responses'!DD151<0.5,\"\",'2011 Survey responses'!DD151)","v":3},{"$f":"IF('2011 Survey responses'!DE151<0.5,\"\",'2011 Survey responses'!DE151)","v":3},{"$f":"IF('2011 Survey responses'!DF151<0.5,\"\",'2011 Survey responses'!DF151)","v":4},{"$f":"IF('2011 Survey responses'!DG151<0.5,\"\",'2011 Survey responses'!DG151)","v":4},{"$f":"IF('2011 Survey responses'!DH151<0.5,\"\",'2011 Survey responses'!DH151)","v":3},{"$f":"IF('2011 Survey responses'!DI151<0.5,\"\",'2011 Survey responses'!DI151)","v":3},{"$f":"IF('2011 Survey responses'!DJ151<0.5,\"\",'2011 Survey responses'!DJ151)","v":4},{"$f":"IF('2011 Survey responses'!DK151<0.5,\"\",'2011 Survey responses'!DK151)","v":4},{"$f":"IF('2011 Survey responses'!DL151<0.5,\"\",'2011 Survey responses'!DL151)","v":4},{"$f":"IF('2011 Survey responses'!DU151=4,4,IF('2011 Survey responses'!DU151=5,4,\"\"))","v":""},{"$f":"IF('2011 Survey responses'!DV151=4,3,IF('2011 Survey responses'!DV151=5,3,\"\"))","v":""},"",{"$f":"IF(CQ151=2,CQ151,IF(CO151=4,CO151,IF(CP151=3,CP151,IF('2011 Survey responses'!GT151=1,1,\"\"))))","v":1},{"$f":"IF('2011 Survey responses'!DO151<0.5,\"\",'2011 Survey responses'!DO151)","v":5},{"$f":"IF('2011 Survey responses'!DP151<0.5,\"\",'2011 Survey responses'!DP151)","v":4},{"$f":"IF('2011 Survey responses'!DQ151<0.5,\"\",'2011 Survey responses'!DQ151)","v":4},{"$f":"IF('2011 Survey responses'!DR151<0.5,\"\",'2011 Survey responses'!DR151)","v":""},{"$f":"IF('2011 Survey responses'!DS151<0.5,\"\",'2011 Survey responses'!DS151)","v":2},{"$f":"IF('2011 Survey responses'!DT151<0.5,\"\",'2011 Survey responses'!DT151)","v":5},{"$f":"IF('2011 Survey responses'!DU151<0.5,\"\",'2011 Survey responses'!DU151)","v":3},{"$f":"IF('2011 Survey responses'!DV151<0.5,\"\",'2011 Survey responses'!DV151)","v":2},{"$f":"IF('2011 Survey responses'!DW151<0.5,\"\",'2011 Survey responses'!DW151)","v":4},{"$f":"IF('2011 Survey responses'!DX151<0.5,\"\",'2011 Survey responses'!DX151)","v":4},{"$f":"IF('2011 Survey responses'!DY151<0.5,\"\",'2011 Survey responses'!DY151)","v":2},{"$f":"IF('2011 Survey responses'!DZ151<0.5,\"\",'2011 Survey responses'!DZ151)","v":2},{"$f":"IF('2011 Survey responses'!EA151<0.5,\"\",'2011 Survey responses'!EA151)","v":1},{"$f":"IF('2011 Survey responses'!EB151<0.5,\"\",'2011 Survey responses'!EB151)","v":2},{"$f":"IF('2011 Survey responses'!EC151<0.5,\"\",'2011 Survey responses'!EC151)","v":2},{"$f":"IF('2011 Survey responses'!ED151<0.5,\"\",'2011 Survey responses'!ED151)","v":""},{"$f":"IF('2011 Survey responses'!EE151<0.5,\"\",'2011 Survey responses'!EE151)","v":2},{"$f":"IF('2011 Survey responses'!EF151<0.5,\"\",'2011 Survey responses'!EF151)","v":2},{"$f":"IF('2011 Survey responses'!EG151<0.5,\"\",'2011 Survey responses'!EG151)","v":1},{"$f":"IF('2011 Survey responses'!EH151<0.5,\"\",'2011 Survey responses'!EH151)","v":3},{"$f":"IF('2011 Survey responses'!EI151<0.5,\"\",'2011 Survey responses'!EI151)","v":2},{"$f":"IF('2011 Survey responses'!EJ151<0.5,\"\",'2011 Survey responses'!EJ151)","v":3},{"$f":"IF('2011 Survey responses'!EK151<0.5,\"\",'2011 Survey responses'!EK151)","v":1},{"$f":"IF('2011 Survey responses'!EL151<0.5,\"\",'2011 Survey responses'!EL151)","v":1},{"$f":"IF('2011 Survey responses'!EM151<0.5,\"\",'2011 Survey responses'!EM151)","v":4},{"$f":"IF('2011 Survey responses'!EN151<0.5,\"\",'2011 Survey responses'!EN151)","v":4},{"$f":"IF('2011 Survey responses'!EO151<0.5,\"\",'2011 Survey responses'!EO151)","v":2},{"$f":"IF('2011 Survey responses'!EP151<0.5,\"\",'2011 Survey responses'!EP151)","v":2},{"$f":"IF(('2011 Survey responses'!EW151+'2011 Survey responses'!EX151)>=2,AVERAGE('2011 Survey responses'!EW151,'2011 Survey responses'!EY151),\"\")","v":1.5},{"$f":"IF('2011 Survey responses'!EX151<0.5,\"\",'2011 Survey responses'!EX151)","v":1},{"$f":"IF('2011 Survey responses'!EZ151<0.5,\"\",'2011 Survey responses'!EZ151)","v":2},{"$f":"IF('2011 Survey responses'!FB151<0.5,\"\",'2011 Survey responses'!FB151)","v":3},{"$f":"IF('2011 Survey responses'!FD151<0.5,\"\",'2011 Survey responses'!FD151)","v":2},{"$f":"IF('2011 Survey responses'!FC151<0.5,\"\",'2011 Survey responses'!FC151)","v":2},{"$f":"IF(('2011 Survey responses'!EM151+'2011 Survey responses'!EN151)>=2,AVERAGE('2011 Survey responses'!EM151,'2011 Survey responses'!EN151),\"\")","v":4},{"$f":"IF('2011 Survey responses'!ES151<0.5,\"\",'2011 Survey responses'!ES151)","v":2},{"$f":"IF(('2011 Survey responses'!ET151+'2011 Survey responses'!EU151)>=2,AVERAGE('2011 Survey responses'!ET151,'2011 Survey responses'!EU151),\"\")","v":3},{"$f":"IF('2011 Survey responses'!EV151<0.5,\"\",'2011 Survey responses'!EV151)","v":2},{"$f":"IF('2011 Survey responses'!FA151<0.5,\"\",'2011 Survey responses'!FA151)","v":2},{"$f":"IF('2011 Survey responses'!ER151<0.5,\"\",'2011 Survey responses'!ER151)","v":3},{"$f":"IF(('2011 Survey responses'!EO151+'2011 Survey responses'!EP151)>=2,AVERAGE('2011 Survey responses'!EO151,'2011 Survey responses'!EP151),\"\")","v":2},{"$f":"IF('2011 Survey responses'!EQ151<0.5,\"\",'2011 Survey responses'!EQ151)","v":3},{"$f":"IF('2011 Survey responses'!ET151<0.5,\"\",'2011 Survey responses'!ET151)","v":3},{"$f":"IF('2011 Survey responses'!EU151<0.5,\"\",'2011 Survey responses'!EU151)","v":3},{"$f":"IF('2011 Survey responses'!EW151<0.5,\"\",'2011 Survey responses'!EW151)","v":2},{"$f":"IF('2011 Survey responses'!EY151<0.5,\"\",'2011 Survey responses'!EY151)","v":1},{"$f":"IF('2011 Survey responses'!FU151<0.5,\"\",'2011 Survey responses'!FU151)","v":1},{"$f":"IF(('2011 Survey responses'!FL151+'2011 Survey responses'!FM151)>=2,AVERAGE('2011 Survey responses'!FL151,'2011 Survey responses'!FM151),\"\")","v":1},{"$f":"IF(('2011 Survey responses'!FO151+'2011 Survey responses'!FQ151)>=2,AVERAGE('2011 Survey responses'!FO151,'2011 Survey responses'!FQ151),\"\")","v":1},{"$f":"IF('2011 Survey responses'!FJ151<0.5,\"\",'2011 Survey responses'!FJ151)","v":2},{"$f":"IF('2011 Survey responses'!FT151<0.5,\"\",'2011 Survey responses'!FT151)","v":2},{"$f":"IF('2011 Survey responses'!FR151<0.5,\"\",'2011 Survey responses'!FR151)","v":1},{"$f":"IF('2011 Survey responses'!FK151<0.5,\"\",'2011 Survey responses'!FK151)","v":1},{"$f":"IF('2011 Survey responses'!FP151<0.5,\"\",'2011 Survey responses'!FP151)","v":1},{"$f":"IF('2011 Survey responses'!FN151<0.5,\"\",'2011 Survey responses'!FN151)","v":1},{"$f":"IF(('2011 Survey responses'!FE151+'2011 Survey responses'!FF151)>=2,AVERAGE('2011 Survey responses'!FE151,'2011 Survey responses'!FF151),\"\")","v":2},{"$f":"IF('2011 Survey responses'!FS151<0.5,\"\",'2011 Survey responses'!FS151)","v":2},{"$f":"IF('2011 Survey responses'!FV151<0.5,\"\",'2011 Survey responses'!FV151)","v":2},{"$f":"IF(('2011 Survey responses'!FG151+'2011 Survey responses'!FH151)>=2,AVERAGE('2011 Survey responses'!FG151,'2011 Survey responses'!FH151),\"\")","v":3},{"$f":"IF('2011 Survey responses'!FI151<0.5,\"\",'2011 Survey responses'!FI151)","v":2},{"$f":"IF('2011 Survey responses'!FE151<0.5,\"\",'2011 Survey responses'!FE151)","v":2},{"$f":"IF('2011 Survey responses'!FF151<0.5,\"\",'2011 Survey responses'!FF151)","v":2},{"$f":"IF('2011 Survey responses'!FG151<0.5,\"\",'2011 Survey responses'!FG151)","v":3},{"$f":"IF('2011 Survey responses'!FH151<0.5,\"\",'2011 Survey responses'!FH151)","v":3},{"$f":"IF('2011 Survey responses'!FL151<0.5,\"\",'2011 Survey responses'!FL151)","v":1},{"$f":"IF('2011 Survey responses'!FM151<0.5,\"\",'2011 Survey responses'!FM151)","v":1},{"$f":"IF('2011 Survey responses'!FO151<0.5,\"\",'2011 Survey responses'!FO151)","v":1},{"$f":"IF('2011 Survey responses'!FQ151<0.5,\"\",'2011 Survey responses'!FQ151)","v":1}]
["Senegal",{"$f":"IF(SUM(F152)<1,\"\",AVERAGEIF('2011 Survey responses'!B152:CP152,\">1\"))","v":""},{"$f":"IF(SUM(F152)<1,\"\",AVERAGEIF('2011 Survey responses'!B152:AO152,\">1\"))","v":""},{"$f":"IF(SUM(F152)<1,\"\",AVERAGEIF('2011 Survey responses'!B152:BV152,\">1\"))","v":""},{"$f":"IF(SUM(F152)<1,\"\",AVERAGEIF('2011 Survey responses'!V152:BV152,\">1\"))","v":""},{"$f":"IF(SUM('2011 Survey responses'!B152:U152)<1,\"\",(AVERAGEIFS('2011 Survey responses'!B152:U152,'2011 Survey responses'!B152:U152,\">1\")))","v":""},{"$f":"IF(SUM('2011 Survey responses'!B152:H152)<1,\"\",(AVERAGEIFS('2011 Survey responses'!B152:H152,'2011 Survey responses'!B152:H152,\">1\")))","v":""},{"$f":"IF(SUM('2011 Survey responses'!I152:S152)<1,\"\",(AVERAGEIFS('2011 Survey responses'!I152:S152,'2011 Survey responses'!I152:S152,\">1\")))","v":""},{"$f":"IF(SUM('2011 Survey responses'!T152:U152)<2.1,\"\",(AVERAGEIFS('2011 Survey responses'!T152:U152,'2011 Survey responses'!T152:U152,\">1\")))","v":""},{"$f":"IF(SUM('2011 Survey responses'!B152:C152)<2.1,\"\",((SUMIF('2011 Survey responses'!B152:C152,\">1\")+SUMIF('2011 Survey responses'!F152,\">1\"))/(COUNTIF('2011 Survey responses'!B152:C152,\">1\")+COUNTIF('2011 Survey responses'!F152,\">1\"))))","v":""},{"$f":"IF(SUM('2011 Survey responses'!D152:E152)<2.1,\"\",(AVERAGEIFS('2011 Survey responses'!D152:E152,'2011 Survey responses'!D152:E152,\">1\")))","v":""},{"$f":"IF(('2011 Survey responses'!B152+'2011 Survey responses'!D152)<2.1,\"\",((SUMIF('2011 Survey responses'!B152,\">1\")+SUMIF('2011 Survey responses'!D152,\">1\")+SUMIF('2011 Survey responses'!F152,\">1\")+SUMIF('2011 Survey responses'!K152,\">1\"))/(COUNTIF('2011 Survey responses'!B152,\">1\")+COUNTIF('2011 Survey responses'!D152,\">1\")+COUNTIF('2011 Survey responses'!F152,\">1\")+COUNTIF('2011 Survey responses'!K152,\">1\"))))","v":""},{"$f":"IF(SUM('2011 Survey responses'!G152:H152)<2.1,\"\",(AVERAGEIFS('2011 Survey responses'!G152:H152,'2011 Survey responses'!G152:H152,\">1\")))","v":""},{"$f":"IF(SUM('2011 Survey responses'!F152:G152)<1.5,\"\",MAX('2011 Survey responses'!F152,'2011 Survey responses'!G152))","v":""},{"$f":"IF(SUM('2011 Survey responses'!G152:H152)<1,\"\",MAX('2011 Survey responses'!G152,'2011 Survey responses'!H152))","v":""},{"$f":"IF(SUM('2011 Survey responses'!I152:L152)<4.1,\"\",(AVERAGEIFS('2011 Survey responses'!I152:L152,'2011 Survey responses'!I152:L152,\">1\")))","v":""},{"$f":"IF(SUM('2011 Survey responses'!M152:S152)<4.1,\"\",(AVERAGEIFS('2011 Survey responses'!M152:S152,'2011 Survey responses'!M152:S152,\">1\")))","v":""},{"$f":"IF(SUM('2011 Survey responses'!T152:U152)<2.1,\"\",(AVERAGEIFS('2011 Survey responses'!T152:U152,'2011 Survey responses'!T152:U152,\">1\")))","v":""},{"$f":"IF(SUM('2011 Survey responses'!V152:AO152)<1,\"\",(AVERAGEIFS('2011 Survey responses'!V152:AO152,'2011 Survey responses'!V152:AO152,\">1\")))","v":""},{"$f":"IF(SUM('2011 Survey responses'!V152:AA152)<1,\"\",(AVERAGEIFS('2011 Survey responses'!V152:AA152,'2011 Survey responses'!V152:AA152,\">1\")))","v":""},{"$f":"IF(SUM('2011 Survey responses'!AB152:AH152)<1,\"\",(AVERAGEIFS('2011 Survey responses'!AB152:AH152,'2011 Survey responses'!AB152:AH152,\">1\")))","v":""},{"$f":"IF(SUM('2011 Survey responses'!AI152:AO152)<1,\"\",(AVERAGEIFS('2011 Survey responses'!AI152:AO152,'2011 Survey responses'!AI152:AO152,\">1\")))","v":""},{"$f":"IF(('2011 Survey responses'!Y152+'2011 Survey responses'!AI152+'2011 Survey responses'!AK152)<3.1,\"\",((SUMIF('2011 Survey responses'!Y152,\">1\")+SUMIF('2011 Survey responses'!AI152,\">1\")+SUMIF('2011 Survey responses'!AK152,\">1\")+SUMIF('2011 Survey responses'!AM152,\">1\"))/(COUNTIF('2011 Survey responses'!Y152,\">1\")+COUNTIF('2011 Survey responses'!AI152,\">1\")+COUNTIF('2011 Survey responses'!AK152,\">1\")+COUNTIF('2011 Survey responses'!AM152,\">1\"))))","v":""},{"$f":"IF(('2011 Survey responses'!W152)<1.1,\"\",('2011 Survey responses'!W152))","v":""},{"$f":"IF(('2011 Survey responses'!Y152)<1.1,\"\",('2011 Survey responses'!Y152))","v":""},{"$f":"IF(('2011 Survey responses'!Z152)<1.1,\"\",('2011 Survey responses'!Z152))","v":""},{"$f":"IF(('2011 Survey responses'!V152+'2011 Survey responses'!X152+'2011 Survey responses'!AA152)<3.1,\"\",((SUMIF('2011 Survey responses'!V152,\">1\")+SUMIF('2011 Survey responses'!X152,\">1\")+SUMIF('2011 Survey responses'!AA152,\">1\"))/(COUNTIF('2011 Survey responses'!V152,\">1\")+COUNTIF('2011 Survey responses'!X152,\">1\")+COUNTIF('2011 Survey responses'!AA152,\">1\"))))","v":""},{"$f":"IF(('2011 Survey responses'!V152+'2011 Survey responses'!Y152+'2011 Survey responses'!AA152)<3.1,\"\",((SUMIF('2011 Survey responses'!V152,\">1\")+SUMIF('2011 Survey responses'!Y152,\">1\")+SUMIF('2011 Survey responses'!AA152,\">1\"))/(COUNTIF('2011 Survey responses'!V152,\">1\")+COUNTIF('2011 Survey responses'!Y152,\">1\")+COUNTIF('2011 Survey responses'!AA152,\">1\"))))","v":""},{"$f":"IF(SUM('2011 Survey responses'!AB152:AH152)<1,\"\",(AVERAGEIFS('2011 Survey responses'!AB152:AH152,'2011 Survey responses'!AB152:AH152,\">1\")))","v":""},{"$f":"IF(SUM('2011 Survey responses'!AI152:AO152)<7.1,\"\",(AVERAGEIFS('2011 Survey responses'!AI152:AO152,'2011 Survey responses'!AI152:AO152,\">1\")))","v":""},{"$f":"IF(('2011 Survey responses'!AH152)<1.1,\"\",('2011 Survey responses'!AH152))","v":""},{"$f":"IF(SUM('2011 Survey responses'!AP152:BV152)<1,\"\",(AVERAGEIFS('2011 Survey responses'!AP152:BV152,'2011 Survey responses'!AP152:BV152,\">1\")))","v":""},{"$f":"IF(SUM('2011 Survey responses'!AP152:AS152)<4.1,\"\",(AVERAGEIFS('2011 Survey responses'!AP152:AS152,'2011 Survey responses'!AP152:AS152,\">1\")))","v":""},{"$f":"IF(SUM('2011 Survey responses'!AT152:BF152)<1,\"\",(AVERAGEIFS('2011 Survey responses'!AT152:BF152,'2011 Survey responses'!AT152:BF152,\">1\")))","v":""},{"$f":"IF(SUM('2011 Survey responses'!BG152:BO152)<1,\"\",(AVERAGEIFS('2011 Survey responses'!BG152:BO152,'2011 Survey responses'!BG152:BO152,\">1\")))","v":""},{"$f":"IF(SUM('2011 Survey responses'!BP152:BS152)<1,\"\",(AVERAGEIFS('2011 Survey responses'!BP152:BS152,'2011 Survey responses'!BP152:BS152,\">1\")))","v":""},{"$f":"IF(SUM('2011 Survey responses'!BT152:BV152)<3.1,\"\",(AVERAGEIFS('2011 Survey responses'!BT152:BV152,'2011 Survey responses'!BT152:BV152,\">1\")))","v":""},{"$f":"IF(('2011 Survey responses'!AQ152+'2011 Survey responses'!AR152+'2011 Survey responses'!BG152)<3.1,\"\",((SUMIF('2011 Survey responses'!AQ152,\">1\")+SUMIF('2011 Survey responses'!AR152,\">1\")+SUMIF('2011 Survey responses'!BG152,\">1\"))/(COUNTIF('2011 Survey responses'!AQ152,\">1\")+COUNTIF('2011 Survey responses'!AR152,\">1\")+COUNTIF('2011 Survey responses'!BG152,\">1\"))))","v":""},{"$f":"IF(SUM('2011 Survey responses'!AP152:AS152)<4.1,\"\",(AVERAGEIFS('2011 Survey responses'!AP152:AS152,'2011 Survey responses'!AP152:AS152,\">1\")))","v":""},{"$f":"IF(('2011 Survey responses'!AU152+'2011 Survey responses'!AX152+'2011 Survey responses'!BA152+'2011 Survey responses'!BC152+'2011 Survey responses'!BD152)<5.1,\"\",(SUMIF('2011 Survey responses'!AU152,\">1\")+SUMIF('2011 Survey responses'!AX152,\">1\")+SUMIF('2011 Survey responses'!BA152,\">1\")+SUMIF('2011 Survey responses'!BC152,\">1\")+SUMIF('2011 Survey responses'!BD152,\">1\"))/(COUNTIF('2011 Survey responses'!AU152,\">1\")+COUNTIF('2011 Survey responses'!AX152,\">1\")+COUNTIF('2011 Survey responses'!BA152,\">1\")+COUNTIF('2011 Survey responses'!BC152,\">1\")+COUNTIF('2011 Survey responses'!BD152,\">1\")))","v":""},{"$f":"IF(('2011 Survey responses'!AT152)<1.1,\"\",('2011 Survey responses'!AT152))","v":""},{"$f":"IF(SUM('2011 Survey responses'!AV152:AW152)<2.1,\"\",(AVERAGEIFS('2011 Survey responses'!AV152:AW152,'2011 Survey responses'!AV152:AW152,\">1\")))","v":""},{"$f":"IF(('2011 Survey responses'!AW152+'2011 Survey responses'!AY152)<2.1,\"\",(SUMIF('2011 Survey responses'!AW152,\">1\")+SUMIF('2011 Survey responses'!AY152,\">1\"))/(COUNTIF('2011 Survey responses'!AW152,\">1\")+COUNTIF('2011 Survey responses'!AY152,\">1\")))","v":""},{"$f":"IF(('2011 Survey responses'!AZ152)<1.1,\"\",('2011 Survey responses'!AZ152))","v":""},null,null,null,null,{"$f":"IF(('2011 Survey responses'!BE152)<1.1,\"\",('2011 Survey responses'!BE152))","v":""},{"$f":"IF(('2011 Survey responses'!AY152+'2011 Survey responses'!BB152+'2011 Survey responses'!BF152)<3.1,\"\",(SUMIF('2011 Survey responses'!AY152,\">1\")+SUMIF('2011 Survey responses'!BB152,\">1\")+SUMIF('2011 Survey responses'!BF152,\">1\"))/(COUNTIF('2011 Survey responses'!AY152,\">1\")+COUNTIF('2011 Survey responses'!BB152,\">1\")+COUNTIF('2011 Survey responses'!BF152,\">1\")))","v":""},"",{"$f":"IF(SUM('2011 Survey responses'!BT152:BV152)<3.1,\"\",(AVERAGEIFS('2011 Survey responses'!BT152:BV152,'2011 Survey responses'!BT152:BV152,\">1\")))","v":""},{"$f":"IF(SUM('2011 Survey responses'!BW152:CP152)<1,\"\",(AVERAGEIFS('2011 Survey responses'!BW152:CP152,'2011 Survey responses'!BW152:CP152,\">1\")))","v":""},{"$f":"IF(SUM('2011 Survey responses'!BW152:CF152)<1,\"\",(AVERAGEIFS('2011 Survey responses'!BW152:CF152,'2011 Survey responses'!BW152:CF152,\">1\")))","v":""},{"$f":"IF(SUM('2011 Survey responses'!CG152:CP152)<1,\"\",(AVERAGEIFS('2011 Survey responses'!CG152:CP152,'2011 Survey responses'!CG152:CP152,\">1\")))","v":""},{"$f":"IF(SUM('2011 Survey responses'!BX152:CF152)<1,\"\",(AVERAGEIFS('2011 Survey responses'!BX152:CF152,'2011 Survey responses'!BX152:CF152,\">1\")))","v":""},{"$f":"IF(SUM('2011 Survey responses'!CH152:CP152)<1,\"\",(AVERAGEIFS('2011 Survey responses'!CH152:CP152,'2011 Survey responses'!CH152:CP152,\">1\")))","v":""},{"$f":"IF(SUM('2011 Survey responses'!BW152:CP152)<1,\"\",(AVERAGEIFS('2011 Survey responses'!BW152:CP152,'2011 Survey responses'!BW152:CP152,\">1\")))","v":""},{"$f":"IF(('2011 Survey responses'!BW152+'2011 Survey responses'!CG152)<2.1,\"\",(SUMIF('2011 Survey responses'!BW152,\">1\")+SUMIF('2011 Survey responses'!CG152,\">1\"))/(COUNTIF('2011 Survey responses'!BW152,\">1\")+COUNTIF('2011 Survey responses'!CG152,\">1\")))","v":""},{"$f":"IF(('2011 Survey responses'!BX152+'2011 Survey responses'!CH152)<2.1,\"\",(SUMIF('2011 Survey responses'!BX152,\">1\")+SUMIF('2011 Survey responses'!CH152,\">1\"))/(COUNTIF('2011 Survey responses'!BX152,\">1\")+COUNTIF('2011 Survey responses'!CH152,\">1\")))","v":""},{"$f":"IF(('2011 Survey responses'!BY152+'2011 Survey responses'!CI152)<2.1,\"\",(SUMIF('2011 Survey responses'!BY152,\">1\")+SUMIF('2011 Survey responses'!CI152,\">1\"))/(COUNTIF('2011 Survey responses'!BY152,\">1\")+COUNTIF('2011 Survey responses'!CI152,\">1\")))","v":""},{"$f":"IF('2011 Survey responses'!CQ152<0.5,\"\",'2011 Survey responses'!CQ152)","v":""},{"$f":"IF('2011 Survey responses'!CR152<0.5,\"\",'2011 Survey responses'!CR152)","v":""},{"$f":"IF('2011 Survey responses'!CS152<0.5,\"\",'2011 Survey responses'!CS152)","v":""},{"$f":"IF('2011 Survey responses'!CT152<0.5,\"\",'2011 Survey responses'!CT152)","v":""},{"$f":"IF('2011 Survey responses'!CU152<0.5,\"\",'2011 Survey responses'!CU152)","v":""},{"$f":"IF('2011 Survey responses'!CV152<0.5,\"\",'2011 Survey responses'!CV152)","v":""},{"$f":"IF(SUM('2011 Survey responses'!CW152:DL152)<1,\"\",(AVERAGE('2011 Survey responses'!CW152:DL152)))","v":""},{"$f":"IF(SUM('2011 Survey responses'!CW152:CZ152)<1,\"\",(AVERAGE('2011 Survey responses'!CW152:CZ152)))","v":""},{"$f":"IF(SUM('2011 Survey responses'!DA152:DD152)<1,\"\",(AVERAGE('2011 Survey responses'!DA152:DD152)))","v":""},{"$f":"IF(SUM('2011 Survey responses'!DE152:DH152)<1,\"\",(AVERAGE('2011 Survey responses'!DE152:DH152)))","v":""},{"$f":"IF(SUM('2011 Survey responses'!DI152:DL152)<1,\"\",(AVERAGE('2011 Survey responses'!DI152:DL152)))","v":""},{"$f":"IF(('2011 Survey responses'!CW152+'2011 Survey responses'!DA152+'2011 Survey responses'!DE152+'2011 Survey responses'!DI152)<1,\"\",AVERAGE('2011 Survey responses'!CW152,'2011 Survey responses'!DA152,'2011 Survey responses'!DE152,'2011 Survey responses'!DI152))","v":""},{"$f":"IF(('2011 Survey responses'!CX152+'2011 Survey responses'!DB152+'2011 Survey responses'!DF152+'2011 Survey responses'!DJ152)<1,\"\",AVERAGE('2011 Survey responses'!CX152,'2011 Survey responses'!DB152,'2011 Survey responses'!DF152,'2011 Survey responses'!DJ152))","v":""},{"$f":"IF(('2011 Survey responses'!CY152+'2011 Survey responses'!DC152+'2011 Survey responses'!DG152+'2011 Survey responses'!DK152)<1,\"\",AVERAGE('2011 Survey responses'!CY152,'2011 Survey responses'!DC152,'2011 Survey responses'!DG152,'2011 Survey responses'!DK152))","v":""},{"$f":"IF(('2011 Survey responses'!CZ152+'2011 Survey responses'!DD152+'2011 Survey responses'!DH152+'2011 Survey responses'!DL152)<1,\"\",AVERAGE('2011 Survey responses'!CZ152,'2011 Survey responses'!DD152,'2011 Survey responses'!DH152,'2011 Survey responses'!DL152))","v":""},{"$f":"IF('2011 Survey responses'!CW152<0.5,\"\",'2011 Survey responses'!CW152)","v":""},{"$f":"IF('2011 Survey responses'!CX152<0.5,\"\",'2011 Survey responses'!CX152)","v":""},{"$f":"IF('2011 Survey responses'!CY152<0.5,\"\",'2011 Survey responses'!CY152)","v":""},{"$f":"IF('2011 Survey responses'!CZ152<0.5,\"\",'2011 Survey responses'!CZ152)","v":""},{"$f":"IF('2011 Survey responses'!DA152<0.5,\"\",'2011 Survey responses'!DA152)","v":""},{"$f":"IF('2011 Survey responses'!DB152<0.5,\"\",'2011 Survey responses'!DB152)","v":""},{"$f":"IF('2011 Survey responses'!DC152<0.5,\"\",'2011 Survey responses'!DC152)","v":""},{"$f":"IF('2011 Survey responses'!DD152<0.5,\"\",'2011 Survey responses'!DD152)","v":""},{"$f":"IF('2011 Survey responses'!DE152<0.5,\"\",'2011 Survey responses'!DE152)","v":""},{"$f":"IF('2011 Survey responses'!DF152<0.5,\"\",'2011 Survey responses'!DF152)","v":""},{"$f":"IF('2011 Survey responses'!DG152<0.5,\"\",'2011 Survey responses'!DG152)","v":""},{"$f":"IF('2011 Survey responses'!DH152<0.5,\"\",'2011 Survey responses'!DH152)","v":""},{"$f":"IF('2011 Survey responses'!DI152<0.5,\"\",'2011 Survey responses'!DI152)","v":""},{"$f":"IF('2011 Survey responses'!DJ152<0.5,\"\",'2011 Survey responses'!DJ152)","v":""},{"$f":"IF('2011 Survey responses'!DK152<0.5,\"\",'2011 Survey responses'!DK152)","v":""},{"$f":"IF('2011 Survey responses'!DL152<0.5,\"\",'2011 Survey responses'!DL152)","v":""},{"$f":"IF('2011 Survey responses'!DU152=4,4,IF('2011 Survey responses'!DU152=5,4,\"\"))","v":""},{"$f":"IF('2011 Survey responses'!DV152=4,3,IF('2011 Survey responses'!DV152=5,3,\"\"))","v":""},"",{"$f":"IF(CQ152=2,CQ152,IF(CO152=4,CO152,IF(CP152=3,CP152,IF('2011 Survey responses'!GT152=1,1,\"\"))))","v":""},{"$f":"IF('2011 Survey responses'!DO152<0.5,\"\",'2011 Survey responses'!DO152)","v":""},{"$f":"IF('2011 Survey responses'!DP152<0.5,\"\",'2011 Survey responses'!DP152)","v":""},{"$f":"IF('2011 Survey responses'!DQ152<0.5,\"\",'2011 Survey responses'!DQ152)","v":""},{"$f":"IF('2011 Survey responses'!DR152<0.5,\"\",'2011 Survey responses'!DR152)","v":""},{"$f":"IF('2011 Survey responses'!DS152<0.5,\"\",'2011 Survey responses'!DS152)","v":""},{"$f":"IF('2011 Survey responses'!DT152<0.5,\"\",'2011 Survey responses'!DT152)","v":""},{"$f":"IF('2011 Survey responses'!DU152<0.5,\"\",'2011 Survey responses'!DU152)","v":""},{"$f":"IF('2011 Survey responses'!DV152<0.5,\"\",'2011 Survey responses'!DV152)","v":""},{"$f":"IF('2011 Survey responses'!DW152<0.5,\"\",'2011 Survey responses'!DW152)","v":""},{"$f":"IF('2011 Survey responses'!DX152<0.5,\"\",'2011 Survey responses'!DX152)","v":""},{"$f":"IF('2011 Survey responses'!DY152<0.5,\"\",'2011 Survey responses'!DY152)","v":""},{"$f":"IF('2011 Survey responses'!DZ152<0.5,\"\",'2011 Survey responses'!DZ152)","v":""},{"$f":"IF('2011 Survey responses'!EA152<0.5,\"\",'2011 Survey responses'!EA152)","v":""},{"$f":"IF('2011 Survey responses'!EB152<0.5,\"\",'2011 Survey responses'!EB152)","v":""},{"$f":"IF('2011 Survey responses'!EC152<0.5,\"\",'2011 Survey responses'!EC152)","v":""},{"$f":"IF('2011 Survey responses'!ED152<0.5,\"\",'2011 Survey responses'!ED152)","v":""},{"$f":"IF('2011 Survey responses'!EE152<0.5,\"\",'2011 Survey responses'!EE152)","v":""},{"$f":"IF('2011 Survey responses'!EF152<0.5,\"\",'2011 Survey responses'!EF152)","v":""},{"$f":"IF('2011 Survey responses'!EG152<0.5,\"\",'2011 Survey responses'!EG152)","v":""},{"$f":"IF('2011 Survey responses'!EH152<0.5,\"\",'2011 Survey responses'!EH152)","v":""},{"$f":"IF('2011 Survey responses'!EI152<0.5,\"\",'2011 Survey responses'!EI152)","v":""},{"$f":"IF('2011 Survey responses'!EJ152<0.5,\"\",'2011 Survey responses'!EJ152)","v":""},{"$f":"IF('2011 Survey responses'!EK152<0.5,\"\",'2011 Survey responses'!EK152)","v":""},{"$f":"IF('2011 Survey responses'!EL152<0.5,\"\",'2011 Survey responses'!EL152)","v":""},{"$f":"IF('2011 Survey responses'!EM152<0.5,\"\",'2011 Survey responses'!EM152)","v":""},{"$f":"IF('2011 Survey responses'!EN152<0.5,\"\",'2011 Survey responses'!EN152)","v":""},{"$f":"IF('2011 Survey responses'!EO152<0.5,\"\",'2011 Survey responses'!EO152)","v":""},{"$f":"IF('2011 Survey responses'!EP152<0.5,\"\",'2011 Survey responses'!EP152)","v":""},{"$f":"IF(('2011 Survey responses'!EW152+'2011 Survey responses'!EX152)>=2,AVERAGE('2011 Survey responses'!EW152,'2011 Survey responses'!EY152),\"\")","v":""},{"$f":"IF('2011 Survey responses'!EX152<0.5,\"\",'2011 Survey responses'!EX152)","v":""},{"$f":"IF('2011 Survey responses'!EZ152<0.5,\"\",'2011 Survey responses'!EZ152)","v":""},{"$f":"IF('2011 Survey responses'!FB152<0.5,\"\",'2011 Survey responses'!FB152)","v":""},{"$f":"IF('2011 Survey responses'!FD152<0.5,\"\",'2011 Survey responses'!FD152)","v":""},{"$f":"IF('2011 Survey responses'!FC152<0.5,\"\",'2011 Survey responses'!FC152)","v":""},{"$f":"IF(('2011 Survey responses'!EM152+'2011 Survey responses'!EN152)>=2,AVERAGE('2011 Survey responses'!EM152,'2011 Survey responses'!EN152),\"\")","v":""},{"$f":"IF('2011 Survey responses'!ES152<0.5,\"\",'2011 Survey responses'!ES152)","v":""},{"$f":"IF(('2011 Survey responses'!ET152+'2011 Survey responses'!EU152)>=2,AVERAGE('2011 Survey responses'!ET152,'2011 Survey responses'!EU152),\"\")","v":""},{"$f":"IF('2011 Survey responses'!EV152<0.5,\"\",'2011 Survey responses'!EV152)","v":""},{"$f":"IF('2011 Survey responses'!FA152<0.5,\"\",'2011 Survey responses'!FA152)","v":""},{"$f":"IF('2011 Survey responses'!ER152<0.5,\"\",'2011 Survey responses'!ER152)","v":""},{"$f":"IF(('2011 Survey responses'!EO152+'2011 Survey responses'!EP152)>=2,AVERAGE('2011 Survey responses'!EO152,'2011 Survey responses'!EP152),\"\")","v":""},{"$f":"IF('2011 Survey responses'!EQ152<0.5,\"\",'2011 Survey responses'!EQ152)","v":""},{"$f":"IF('2011 Survey responses'!ET152<0.5,\"\",'2011 Survey responses'!ET152)","v":""},{"$f":"IF('2011 Survey responses'!EU152<0.5,\"\",'2011 Survey responses'!EU152)","v":""},{"$f":"IF('2011 Survey responses'!EW152<0.5,\"\",'2011 Survey responses'!EW152)","v":""},{"$f":"IF('2011 Survey responses'!EY152<0.5,\"\",'2011 Survey responses'!EY152)","v":""},{"$f":"IF('2011 Survey responses'!FU152<0.5,\"\",'2011 Survey responses'!FU152)","v":""},{"$f":"IF(('2011 Survey responses'!FL152+'2011 Survey responses'!FM152)>=2,AVERAGE('2011 Survey responses'!FL152,'2011 Survey responses'!FM152),\"\")","v":""},{"$f":"IF(('2011 Survey responses'!FO152+'2011 Survey responses'!FQ152)>=2,AVERAGE('2011 Survey responses'!FO152,'2011 Survey responses'!FQ152),\"\")","v":""},{"$f":"IF('2011 Survey responses'!FJ152<0.5,\"\",'2011 Survey responses'!FJ152)","v":""},{"$f":"IF('2011 Survey responses'!FT152<0.5,\"\",'2011 Survey responses'!FT152)","v":""},{"$f":"IF('2011 Survey responses'!FR152<0.5,\"\",'2011 Survey responses'!FR152)","v":""},{"$f":"IF('2011 Survey responses'!FK152<0.5,\"\",'2011 Survey responses'!FK152)","v":""},{"$f":"IF('2011 Survey responses'!FP152<0.5,\"\",'2011 Survey responses'!FP152)","v":""},{"$f":"IF('2011 Survey responses'!FN152<0.5,\"\",'2011 Survey responses'!FN152)","v":""},{"$f":"IF(('2011 Survey responses'!FE152+'2011 Survey responses'!FF152)>=2,AVERAGE('2011 Survey responses'!FE152,'2011 Survey responses'!FF152),\"\")","v":""},{"$f":"IF('2011 Survey responses'!FS152<0.5,\"\",'2011 Survey responses'!FS152)","v":""},{"$f":"IF('2011 Survey responses'!FV152<0.5,\"\",'2011 Survey responses'!FV152)","v":""},{"$f":"IF(('2011 Survey responses'!FG152+'2011 Survey responses'!FH152)>=2,AVERAGE('2011 Survey responses'!FG152,'2011 Survey responses'!FH152),\"\")","v":""},{"$f":"IF('2011 Survey responses'!FI152<0.5,\"\",'2011 Survey responses'!FI152)","v":""},{"$f":"IF('2011 Survey responses'!FE152<0.5,\"\",'2011 Survey responses'!FE152)","v":""},{"$f":"IF('2011 Survey responses'!FF152<0.5,\"\",'2011 Survey responses'!FF152)","v":""},{"$f":"IF('2011 Survey responses'!FG152<0.5,\"\",'2011 Survey responses'!FG152)","v":""},{"$f":"IF('2011 Survey responses'!FH152<0.5,\"\",'2011 Survey responses'!FH152)","v":""},{"$f":"IF('2011 Survey responses'!FL152<0.5,\"\",'2011 Survey responses'!FL152)","v":""},{"$f":"IF('2011 Survey responses'!FM152<0.5,\"\",'2011 Survey responses'!FM152)","v":""},{"$f":"IF('2011 Survey responses'!FO152<0.5,\"\",'2011 Survey responses'!FO152)","v":""},{"$f":"IF('2011 Survey responses'!FQ152<0.5,\"\",'2011 Survey responses'!FQ152)","v":""}]
["Serbia",{"$f":"IF(SUM(F153)<1,\"\",AVERAGEIF('2011 Survey responses'!B153:CP153,\">1\"))","v":2.9655172413793105},{"$f":"IF(SUM(F153)<1,\"\",AVERAGEIF('2011 Survey responses'!B153:AO153,\">1\"))","v":2.9736842105263159},{"$f":"IF(SUM(F153)<1,\"\",AVERAGEIF('2011 Survey responses'!B153:BV153,\">1\"))","v":2.8450704225352115},{"$f":"IF(SUM(F153)<1,\"\",AVERAGEIF('2011 Survey responses'!V153:BV153,\">1\"))","v":2.7547169811320753},{"$f":"IF(SUM('2011 Survey responses'!B153:U153)<1,\"\",(AVERAGEIFS('2011 Survey responses'!B153:U153,'2011 Survey responses'!B153:U153,\">1\")))","v":3.1111111111111112},{"$f":"IF(SUM('2011 Survey responses'!B153:H153)<1,\"\",(AVERAGEIFS('2011 Survey responses'!B153:H153,'2011 Survey responses'!B153:H153,\">1\")))","v":3.2},{"$f":"IF(SUM('2011 Survey responses'!I153:S153)<1,\"\",(AVERAGEIFS('2011 Survey responses'!I153:S153,'2011 Survey responses'!I153:S153,\">1\")))","v":3},{"$f":"IF(SUM('2011 Survey responses'!T153:U153)<2.1,\"\",(AVERAGEIFS('2011 Survey responses'!T153:U153,'2011 Survey responses'!T153:U153,\">1\")))","v":3.5},{"$f":"IF(SUM('2011 Survey responses'!B153:C153)<2.1,\"\",((SUMIF('2011 Survey responses'!B153:C153,\">1\")+SUMIF('2011 Survey responses'!F153,\">1\"))/(COUNTIF('2011 Survey responses'!B153:C153,\">1\")+COUNTIF('2011 Survey responses'!F153,\">1\"))))","v":3.3333333333333335},{"$f":"IF(SUM('2011 Survey responses'!D153:E153)<2.1,\"\",(AVERAGEIFS('2011 Survey responses'!D153:E153,'2011 Survey responses'!D153:E153,\">1\")))","v":4},{"$f":"IF(('2011 Survey responses'!B153+'2011 Survey responses'!D153)<2.1,\"\",((SUMIF('2011 Survey responses'!B153,\">1\")+SUMIF('2011 Survey responses'!D153,\">1\")+SUMIF('2011 Survey responses'!F153,\">1\")+SUMIF('2011 Survey responses'!K153,\">1\"))/(COUNTIF('2011 Survey responses'!B153,\">1\")+COUNTIF('2011 Survey responses'!D153,\">1\")+COUNTIF('2011 Survey responses'!F153,\">1\")+COUNTIF('2011 Survey responses'!K153,\">1\"))))","v":3.75},{"$f":"IF(SUM('2011 Survey responses'!G153:H153)<2.1,\"\",(AVERAGEIFS('2011 Survey responses'!G153:H153,'2011 Survey responses'!G153:H153,\">1\")))","v":2},{"$f":"IF(SUM('2011 Survey responses'!F153:G153)<1.5,\"\",MAX('2011 Survey responses'!F153,'2011 Survey responses'!G153))","v":2},{"$f":"IF(SUM('2011 Survey responses'!G153:H153)<1,\"\",MAX('2011 Survey responses'!G153,'2011 Survey responses'!H153))","v":2},{"$f":"IF(SUM('2011 Survey responses'!I153:L153)<4.1,\"\",(AVERAGEIFS('2011 Survey responses'!I153:L153,'2011 Survey responses'!I153:L153,\">1\")))","v":4},{"$f":"IF(SUM('2011 Survey responses'!M153:S153)<4.1,\"\",(AVERAGEIFS('2011 Survey responses'!M153:S153,'2011 Survey responses'!M153:S153,\">1\")))","v":2.4285714285714284},{"$f":"IF(SUM('2011 Survey responses'!T153:U153)<2.1,\"\",(AVERAGEIFS('2011 Survey responses'!T153:U153,'2011 Survey responses'!T153:U153,\">1\")))","v":3.5},{"$f":"IF(SUM('2011 Survey responses'!V153:AO153)<1,\"\",(AVERAGEIFS('2011 Survey responses'!V153:AO153,'2011 Survey responses'!V153:AO153,\">1\")))","v":2.85},{"$f":"IF(SUM('2011 Survey responses'!V153:AA153)<1,\"\",(AVERAGEIFS('2011 Survey responses'!V153:AA153,'2011 Survey responses'!V153:AA153,\">1\")))","v":3},{"$f":"IF(SUM('2011 Survey responses'!AB153:AH153)<1,\"\",(AVERAGEIFS('2011 Survey responses'!AB153:AH153,'2011 Survey responses'!AB153:AH153,\">1\")))","v":3.1428571428571428},{"$f":"IF(SUM('2011 Survey responses'!AI153:AO153)<1,\"\",(AVERAGEIFS('2011 Survey responses'!AI153:AO153,'2011 Survey responses'!AI153:AO153,\">1\")))","v":2.4285714285714284},{"$f":"IF(('2011 Survey responses'!Y153+'2011 Survey responses'!AI153+'2011 Survey responses'!AK153)<3.1,\"\",((SUMIF('2011 Survey responses'!Y153,\">1\")+SUMIF('2011 Survey responses'!AI153,\">1\")+SUMIF('2011 Survey responses'!AK153,\">1\")+SUMIF('2011 Survey responses'!AM153,\">1\"))/(COUNTIF('2011 Survey responses'!Y153,\">1\")+COUNTIF('2011 Survey responses'!AI153,\">1\")+COUNTIF('2011 Survey responses'!AK153,\">1\")+COUNTIF('2011 Survey responses'!AM153,\">1\"))))","v":2.75},{"$f":"IF(('2011 Survey responses'!W153)<1.1,\"\",('2011 Survey responses'!W153))","v":2},{"$f":"IF(('2011 Survey responses'!Y153)<1.1,\"\",('2011 Survey responses'!Y153))","v":5},{"$f":"IF(('2011 Survey responses'!Z153)<1.1,\"\",('2011 Survey responses'!Z153))","v":2},{"$f":"IF(('2011 Survey responses'!V153+'2011 Survey responses'!X153+'2011 Survey responses'!AA153)<3.1,\"\",((SUMIF('2011 Survey responses'!V153,\">1\")+SUMIF('2011 Survey responses'!X153,\">1\")+SUMIF('2011 Survey responses'!AA153,\">1\"))/(COUNTIF('2011 Survey responses'!V153,\">1\")+COUNTIF('2011 Survey responses'!X153,\">1\")+COUNTIF('2011 Survey responses'!AA153,\">1\"))))","v":3},{"$f":"IF(('2011 Survey responses'!V153+'2011 Survey responses'!Y153+'2011 Survey responses'!AA153)<3.1,\"\",((SUMIF('2011 Survey responses'!V153,\">1\")+SUMIF('2011 Survey responses'!Y153,\">1\")+SUMIF('2011 Survey responses'!AA153,\">1\"))/(COUNTIF('2011 Survey responses'!V153,\">1\")+COUNTIF('2011 Survey responses'!Y153,\">1\")+COUNTIF('2011 Survey responses'!AA153,\">1\"))))","v":4},{"$f":"IF(SUM('2011 Survey responses'!AB153:AH153)<1,\"\",(AVERAGEIFS('2011 Survey responses'!AB153:AH153,'2011 Survey responses'!AB153:AH153,\">1\")))","v":3.1428571428571428},{"$f":"IF(SUM('2011 Survey responses'!AI153:AO153)<7.1,\"\",(AVERAGEIFS('2011 Survey responses'!AI153:AO153,'2011 Survey responses'!AI153:AO153,\">1\")))","v":2.4285714285714284},{"$f":"IF(('2011 Survey responses'!AH153)<1.1,\"\",('2011 Survey responses'!AH153))","v":2},{"$f":"IF(SUM('2011 Survey responses'!AP153:BV153)<1,\"\",(AVERAGEIFS('2011 Survey responses'!AP153:BV153,'2011 Survey responses'!AP153:BV153,\">1\")))","v":2.6969696969696968},{"$f":"IF(SUM('2011 Survey responses'!AP153:AS153)<4.1,\"\",(AVERAGEIFS('2011 Survey responses'!AP153:AS153,'2011 Survey responses'!AP153:AS153,\">1\")))","v":2.5},{"$f":"IF(SUM('2011 Survey responses'!AT153:BF153)<1,\"\",(AVERAGEIFS('2011 Survey responses'!AT153:BF153,'2011 Survey responses'!AT153:BF153,\">1\")))","v":2.1538461538461537},{"$f":"IF(SUM('2011 Survey responses'!BG153:BO153)<1,\"\",(AVERAGEIFS('2011 Survey responses'!BG153:BO153,'2011 Survey responses'!BG153:BO153,\">1\")))","v":3.7777777777777777},{"$f":"IF(SUM('2011 Survey responses'!BP153:BS153)<1,\"\",(AVERAGEIFS('2011 Survey responses'!BP153:BS153,'2011 Survey responses'!BP153:BS153,\">1\")))","v":2.5},{"$f":"IF(SUM('2011 Survey responses'!BT153:BV153)<3.1,\"\",(AVERAGEIFS('2011 Survey responses'!BT153:BV153,'2011 Survey responses'!BT153:BV153,\">1\")))","v":2.3333333333333335},{"$f":"IF(('2011 Survey responses'!AQ153+'2011 Survey responses'!AR153+'2011 Survey responses'!BG153)<3.1,\"\",((SUMIF('2011 Survey responses'!AQ153,\">1\")+SUMIF('2011 Survey responses'!AR153,\">1\")+SUMIF('2011 Survey responses'!BG153,\">1\"))/(COUNTIF('2011 Survey responses'!AQ153,\">1\")+COUNTIF('2011 Survey responses'!AR153,\">1\")+COUNTIF('2011 Survey responses'!BG153,\">1\"))))","v":3.6666666666666665},{"$f":"IF(SUM('2011 Survey responses'!AP153:AS153)<4.1,\"\",(AVERAGEIFS('2011 Survey responses'!AP153:AS153,'2011 Survey responses'!AP153:AS153,\">1\")))","v":2.5},{"$f":"IF(('2011 Survey responses'!AU153+'2011 Survey responses'!AX153+'2011 Survey responses'!BA153+'2011 Survey responses'!BC153+'2011 Survey responses'!BD153)<5.1,\"\",(SUMIF('2011 Survey responses'!AU153,\">1\")+SUMIF('2011 Survey responses'!AX153,\">1\")+SUMIF('2011 Survey responses'!BA153,\">1\")+SUMIF('2011 Survey responses'!BC153,\">1\")+SUMIF('2011 Survey responses'!BD153,\">1\"))/(COUNTIF('2011 Survey responses'!AU153,\">1\")+COUNTIF('2011 Survey responses'!AX153,\">1\")+COUNTIF('2011 Survey responses'!BA153,\">1\")+COUNTIF('2011 Survey responses'!BC153,\">1\")+COUNTIF('2011 Survey responses'!BD153,\">1\")))","v":2},{"$f":"IF(('2011 Survey responses'!AT153)<1.1,\"\",('2011 Survey responses'!AT153))","v":2},{"$f":"IF(SUM('2011 Survey responses'!AV153:AW153)<2.1,\"\",(AVERAGEIFS('2011 Survey responses'!AV153:AW153,'2011 Survey responses'!AV153:AW153,\">1\")))","v":2},{"$f":"IF(('2011 Survey responses'!AW153+'2011 Survey responses'!AY153)<2.1,\"\",(SUMIF('2011 Survey responses'!AW153,\">1\")+SUMIF('2011 Survey responses'!AY153,\">1\"))/(COUNTIF('2011 Survey responses'!AW153,\">1\")+COUNTIF('2011 Survey responses'!AY153,\">1\")))","v":2},{"$f":"IF(('2011 Survey responses'!AZ153)<1.1,\"\",('2011 Survey responses'!AZ153))","v":2},2,2,2,2,{"$f":"IF(('2011 Survey responses'!BE153)<1.1,\"\",('2011 Survey responses'!BE153))","v":2},{"$f":"IF(('2011 Survey responses'!AY153+'2011 Survey responses'!BB153+'2011 Survey responses'!BF153)<3.1,\"\",(SUMIF('2011 Survey responses'!AY153,\">1\")+SUMIF('2011 Survey responses'!BB153,\">1\")+SUMIF('2011 Survey responses'!BF153,\">1\"))/(COUNTIF('2011 Survey responses'!AY153,\">1\")+COUNTIF('2011 Survey responses'!BB153,\">1\")+COUNTIF('2011 Survey responses'!BF153,\">1\")))","v":2.6666666666666665},3.1388888888888888,{"$f":"IF(SUM('2011 Survey responses'!BT153:BV153)<3.1,\"\",(AVERAGEIFS('2011 Survey responses'!BT153:BV153,'2011 Survey responses'!BT153:BV153,\">1\")))","v":2.3333333333333335},{"$f":"IF(SUM('2011 Survey responses'!BW153:CP153)<1,\"\",(AVERAGEIFS('2011 Survey responses'!BW153:CP153,'2011 Survey responses'!BW153:CP153,\">1\")))","v":3.5},{"$f":"IF(SUM('2011 Survey responses'!BW153:CF153)<1,\"\",(AVERAGEIFS('2011 Survey responses'!BW153:CF153,'2011 Survey responses'!BW153:CF153,\">1\")))","v":3.5},{"$f":"IF(SUM('2011 Survey responses'!CG153:CP153)<1,\"\",(AVERAGEIFS('2011 Survey responses'!CG153:CP153,'2011 Survey responses'!CG153:CP153,\">1\")))","v":3.5},{"$f":"IF(SUM('2011 Survey responses'!BX153:CF153)<1,\"\",(AVERAGEIFS('2011 Survey responses'!BX153:CF153,'2011 Survey responses'!BX153:CF153,\">1\")))","v":3.4285714285714284},{"$f":"IF(SUM('2011 Survey responses'!CH153:CP153)<1,\"\",(AVERAGEIFS('2011 Survey responses'!CH153:CP153,'2011 Survey responses'!CH153:CP153,\">1\")))","v":3.4285714285714284},{"$f":"IF(SUM('2011 Survey responses'!BW153:CP153)<1,\"\",(AVERAGEIFS('2011 Survey responses'!BW153:CP153,'2011 Survey responses'!BW153:CP153,\">1\")))","v":3.5},{"$f":"IF(('2011 Survey responses'!BW153+'2011 Survey responses'!CG153)<2.1,\"\",(SUMIF('2011 Survey responses'!BW153,\">1\")+SUMIF('2011 Survey responses'!CG153,\">1\"))/(COUNTIF('2011 Survey responses'!BW153,\">1\")+COUNTIF('2011 Survey responses'!CG153,\">1\")))","v":4},{"$f":"IF(('2011 Survey responses'!BX153+'2011 Survey responses'!CH153)<2.1,\"\",(SUMIF('2011 Survey responses'!BX153,\">1\")+SUMIF('2011 Survey responses'!CH153,\">1\"))/(COUNTIF('2011 Survey responses'!BX153,\">1\")+COUNTIF('2011 Survey responses'!CH153,\">1\")))","v":2},{"$f":"IF(('2011 Survey responses'!BY153+'2011 Survey responses'!CI153)<2.1,\"\",(SUMIF('2011 Survey responses'!BY153,\">1\")+SUMIF('2011 Survey responses'!CI153,\">1\"))/(COUNTIF('2011 Survey responses'!BY153,\">1\")+COUNTIF('2011 Survey responses'!CI153,\">1\")))","v":4},{"$f":"IF('2011 Survey responses'!CQ153<0.5,\"\",'2011 Survey responses'!CQ153)","v":3},{"$f":"IF('2011 Survey responses'!CR153<0.5,\"\",'2011 Survey responses'!CR153)","v":4},{"$f":"IF('2011 Survey responses'!CS153<0.5,\"\",'2011 Survey responses'!CS153)","v":4},{"$f":"IF('2011 Survey responses'!CT153<0.5,\"\",'2011 Survey responses'!CT153)","v":5},{"$f":"IF('2011 Survey responses'!CU153<0.5,\"\",'2011 Survey responses'!CU153)","v":4},{"$f":"IF('2011 Survey responses'!CV153<0.5,\"\",'2011 Survey responses'!CV153)","v":1},{"$f":"IF(SUM('2011 Survey responses'!CW153:DL153)<1,\"\",(AVERAGE('2011 Survey responses'!CW153:DL153)))","v":2.5},{"$f":"IF(SUM('2011 Survey responses'!CW153:CZ153)<1,\"\",(AVERAGE('2011 Survey responses'!CW153:CZ153)))","v":2.5},{"$f":"IF(SUM('2011 Survey responses'!DA153:DD153)<1,\"\",(AVERAGE('2011 Survey responses'!DA153:DD153)))","v":2.5},{"$f":"IF(SUM('2011 Survey responses'!DE153:DH153)<1,\"\",(AVERAGE('2011 Survey responses'!DE153:DH153)))","v":2.5},{"$f":"IF(SUM('2011 Survey responses'!DI153:DL153)<1,\"\",(AVERAGE('2011 Survey responses'!DI153:DL153)))","v":2.5},{"$f":"IF(('2011 Survey responses'!CW153+'2011 Survey responses'!DA153+'2011 Survey responses'!DE153+'2011 Survey responses'!DI153)<1,\"\",AVERAGE('2011 Survey responses'!CW153,'2011 Survey responses'!DA153,'2011 Survey responses'!DE153,'2011 Survey responses'!DI153))","v":3},{"$f":"IF(('2011 Survey responses'!CX153+'2011 Survey responses'!DB153+'2011 Survey responses'!DF153+'2011 Survey responses'!DJ153)<1,\"\",AVERAGE('2011 Survey responses'!CX153,'2011 Survey responses'!DB153,'2011 Survey responses'!DF153,'2011 Survey responses'!DJ153))","v":3},{"$f":"IF(('2011 Survey responses'!CY153+'2011 Survey responses'!DC153+'2011 Survey responses'!DG153+'2011 Survey responses'!DK153)<1,\"\",AVERAGE('2011 Survey responses'!CY153,'2011 Survey responses'!DC153,'2011 Survey responses'!DG153,'2011 Survey responses'!DK153))","v":2},{"$f":"IF(('2011 Survey responses'!CZ153+'2011 Survey responses'!DD153+'2011 Survey responses'!DH153+'2011 Survey responses'!DL153)<1,\"\",AVERAGE('2011 Survey responses'!CZ153,'2011 Survey responses'!DD153,'2011 Survey responses'!DH153,'2011 Survey responses'!DL153))","v":2},{"$f":"IF('2011 Survey responses'!CW153<0.5,\"\",'2011 Survey responses'!CW153)","v":3},{"$f":"IF('2011 Survey responses'!CX153<0.5,\"\",'2011 Survey responses'!CX153)","v":3},{"$f":"IF('2011 Survey responses'!CY153<0.5,\"\",'2011 Survey responses'!CY153)","v":2},{"$f":"IF('2011 Survey responses'!CZ153<0.5,\"\",'2011 Survey responses'!CZ153)","v":2},{"$f":"IF('2011 Survey responses'!DA153<0.5,\"\",'2011 Survey responses'!DA153)","v":3},{"$f":"IF('2011 Survey responses'!DB153<0.5,\"\",'2011 Survey responses'!DB153)","v":3},{"$f":"IF('2011 Survey responses'!DC153<0.5,\"\",'2011 Survey responses'!DC153)","v":2},{"$f":"IF('2011 Survey responses'!DD153<0.5,\"\",'2011 Survey responses'!DD153)","v":2},{"$f":"IF('2011 Survey responses'!DE153<0.5,\"\",'2011 Survey responses'!DE153)","v":3},{"$f":"IF('2011 Survey responses'!DF153<0.5,\"\",'2011 Survey responses'!DF153)","v":3},{"$f":"IF('2011 Survey responses'!DG153<0.5,\"\",'2011 Survey responses'!DG153)","v":2},{"$f":"IF('2011 Survey responses'!DH153<0.5,\"\",'2011 Survey responses'!DH153)","v":2},{"$f":"IF('2011 Survey responses'!DI153<0.5,\"\",'2011 Survey responses'!DI153)","v":3},{"$f":"IF('2011 Survey responses'!DJ153<0.5,\"\",'2011 Survey responses'!DJ153)","v":3},{"$f":"IF('2011 Survey responses'!DK153<0.5,\"\",'2011 Survey responses'!DK153)","v":2},{"$f":"IF('2011 Survey responses'!DL153<0.5,\"\",'2011 Survey responses'!DL153)","v":2},{"$f":"IF('2011 Survey responses'!DU153=4,4,IF('2011 Survey responses'!DU153=5,4,\"\"))","v":4},{"$f":"IF('2011 Survey responses'!DV153=4,3,IF('2011 Survey responses'!DV153=5,3,\"\"))","v":3},2,{"$f":"IF(CQ153=2,CQ153,IF(CO153=4,CO153,IF(CP153=3,CP153,IF('2011 Survey responses'!GT153=1,1,\"\"))))","v":2},{"$f":"IF('2011 Survey responses'!DO153<0.5,\"\",'2011 Survey responses'!DO153)","v":4},{"$f":"IF('2011 Survey responses'!DP153<0.5,\"\",'2011 Survey responses'!DP153)","v":5},{"$f":"IF('2011 Survey responses'!DQ153<0.5,\"\",'2011 Survey responses'!DQ153)","v":4},{"$f":"IF('2011 Survey responses'!DR153<0.5,\"\",'2011 Survey responses'!DR153)","v":3},{"$f":"IF('2011 Survey responses'!DS153<0.5,\"\",'2011 Survey responses'!DS153)","v":4},{"$f":"IF('2011 Survey responses'!DT153<0.5,\"\",'2011 Survey responses'!DT153)","v":3},{"$f":"IF('2011 Survey responses'!DU153<0.5,\"\",'2011 Survey responses'!DU153)","v":5},{"$f":"IF('2011 Survey responses'!DV153<0.5,\"\",'2011 Survey responses'!DV153)","v":4},{"$f":"IF('2011 Survey responses'!DW153<0.5,\"\",'2011 Survey responses'!DW153)","v":4},{"$f":"IF('2011 Survey responses'!DX153<0.5,\"\",'2011 Survey responses'!DX153)","v":4},{"$f":"IF('2011 Survey responses'!DY153<0.5,\"\",'2011 Survey responses'!DY153)","v":4},{"$f":"IF('2011 Survey responses'!DZ153<0.5,\"\",'2011 Survey responses'!DZ153)","v":3},{"$f":"IF('2011 Survey responses'!EA153<0.5,\"\",'2011 Survey responses'!EA153)","v":3},{"$f":"IF('2011 Survey responses'!EB153<0.5,\"\",'2011 Survey responses'!EB153)","v":4},{"$f":"IF('2011 Survey responses'!EC153<0.5,\"\",'2011 Survey responses'!EC153)","v":2},{"$f":"IF('2011 Survey responses'!ED153<0.5,\"\",'2011 Survey responses'!ED153)","v":3},{"$f":"IF('2011 Survey responses'!EE153<0.5,\"\",'2011 Survey responses'!EE153)","v":3},{"$f":"IF('2011 Survey responses'!EF153<0.5,\"\",'2011 Survey responses'!EF153)","v":4},{"$f":"IF('2011 Survey responses'!EG153<0.5,\"\",'2011 Survey responses'!EG153)","v":4},{"$f":"IF('2011 Survey responses'!EH153<0.5,\"\",'2011 Survey responses'!EH153)","v":4},{"$f":"IF('2011 Survey responses'!EI153<0.5,\"\",'2011 Survey responses'!EI153)","v":4},{"$f":"IF('2011 Survey responses'!EJ153<0.5,\"\",'2011 Survey responses'!EJ153)","v":4},{"$f":"IF('2011 Survey responses'!EK153<0.5,\"\",'2011 Survey responses'!EK153)","v":4},{"$f":"IF('2011 Survey responses'!EL153<0.5,\"\",'2011 Survey responses'!EL153)","v":3},{"$f":"IF('2011 Survey responses'!EM153<0.5,\"\",'2011 Survey responses'!EM153)","v":4},{"$f":"IF('2011 Survey responses'!EN153<0.5,\"\",'2011 Survey responses'!EN153)","v":4},{"$f":"IF('2011 Survey responses'!EO153<0.5,\"\",'2011 Survey responses'!EO153)","v":4},{"$f":"IF('2011 Survey responses'!EP153<0.5,\"\",'2011 Survey responses'!EP153)","v":4},{"$f":"IF(('2011 Survey responses'!EW153+'2011 Survey responses'!EX153)>=2,AVERAGE('2011 Survey responses'!EW153,'2011 Survey responses'!EY153),\"\")","v":4.5},{"$f":"IF('2011 Survey responses'!EX153<0.5,\"\",'2011 Survey responses'!EX153)","v":5},{"$f":"IF('2011 Survey responses'!EZ153<0.5,\"\",'2011 Survey responses'!EZ153)","v":4},{"$f":"IF('2011 Survey responses'!FB153<0.5,\"\",'2011 Survey responses'!FB153)","v":3},{"$f":"IF('2011 Survey responses'!FD153<0.5,\"\",'2011 Survey responses'!FD153)","v":4},{"$f":"IF('2011 Survey responses'!FC153<0.5,\"\",'2011 Survey responses'!FC153)","v":3},{"$f":"IF(('2011 Survey responses'!EM153+'2011 Survey responses'!EN153)>=2,AVERAGE('2011 Survey responses'!EM153,'2011 Survey responses'!EN153),\"\")","v":4},{"$f":"IF('2011 Survey responses'!ES153<0.5,\"\",'2011 Survey responses'!ES153)","v":4},{"$f":"IF(('2011 Survey responses'!ET153+'2011 Survey responses'!EU153)>=2,AVERAGE('2011 Survey responses'!ET153,'2011 Survey responses'!EU153),\"\")","v":4},{"$f":"IF('2011 Survey responses'!EV153<0.5,\"\",'2011 Survey responses'!EV153)","v":4},{"$f":"IF('2011 Survey responses'!FA153<0.5,\"\",'2011 Survey responses'!FA153)","v":4},{"$f":"IF('2011 Survey responses'!ER153<0.5,\"\",'2011 Survey responses'!ER153)","v":4},{"$f":"IF(('2011 Survey responses'!EO153+'2011 Survey responses'!EP153)>=2,AVERAGE('2011 Survey responses'!EO153,'2011 Survey responses'!EP153),\"\")","v":4},{"$f":"IF('2011 Survey responses'!EQ153<0.5,\"\",'2011 Survey responses'!EQ153)","v":3},{"$f":"IF('2011 Survey responses'!ET153<0.5,\"\",'2011 Survey responses'!ET153)","v":4},{"$f":"IF('2011 Survey responses'!EU153<0.5,\"\",'2011 Survey responses'!EU153)","v":4},{"$f":"IF('2011 Survey responses'!EW153<0.5,\"\",'2011 Survey responses'!EW153)","v":4},{"$f":"IF('2011 Survey responses'!EY153<0.5,\"\",'2011 Survey responses'!EY153)","v":5},{"$f":"IF('2011 Survey responses'!FU153<0.5,\"\",'2011 Survey responses'!FU153)","v":4},{"$f":"IF(('2011 Survey responses'!FL153+'2011 Survey responses'!FM153)>=2,AVERAGE('2011 Survey responses'!FL153,'2011 Survey responses'!FM153),\"\")","v":4},{"$f":"IF(('2011 Survey responses'!FO153+'2011 Survey responses'!FQ153)>=2,AVERAGE('2011 Survey responses'!FO153,'2011 Survey responses'!FQ153),\"\")","v":4},{"$f":"IF('2011 Survey responses'!FJ153<0.5,\"\",'2011 Survey responses'!FJ153)","v":4},{"$f":"IF('2011 Survey responses'!FT153<0.5,\"\",'2011 Survey responses'!FT153)","v":5},{"$f":"IF('2011 Survey responses'!FR153<0.5,\"\",'2011 Survey responses'!FR153)","v":4},{"$f":"IF('2011 Survey responses'!FK153<0.5,\"\",'2011 Survey responses'!FK153)","v":4},{"$f":"IF('2011 Survey responses'!FP153<0.5,\"\",'2011 Survey responses'!FP153)","v":4},{"$f":"IF('2011 Survey responses'!FN153<0.5,\"\",'2011 Survey responses'!FN153)","v":5},{"$f":"IF(('2011 Survey responses'!FE153+'2011 Survey responses'!FF153)>=2,AVERAGE('2011 Survey responses'!FE153,'2011 Survey responses'!FF153),\"\")","v":2},{"$f":"IF('2011 Survey responses'!FS153<0.5,\"\",'2011 Survey responses'!FS153)","v":4},{"$f":"IF('2011 Survey responses'!FV153<0.5,\"\",'2011 Survey responses'!FV153)","v":4},{"$f":"IF(('2011 Survey responses'!FG153+'2011 Survey responses'!FH153)>=2,AVERAGE('2011 Survey responses'!FG153,'2011 Survey responses'!FH153),\"\")","v":2},{"$f":"IF('2011 Survey responses'!FI153<0.5,\"\",'2011 Survey responses'!FI153)","v":3},{"$f":"IF('2011 Survey responses'!FE153<0.5,\"\",'2011 Survey responses'!FE153)","v":2},{"$f":"IF('2011 Survey responses'!FF153<0.5,\"\",'2011 Survey responses'!FF153)","v":2},{"$f":"IF('2011 Survey responses'!FG153<0.5,\"\",'2011 Survey responses'!FG153)","v":2},{"$f":"IF('2011 Survey responses'!FH153<0.5,\"\",'2011 Survey responses'!FH153)","v":2},{"$f":"IF('2011 Survey responses'!FL153<0.5,\"\",'2011 Survey responses'!FL153)","v":4},{"$f":"IF('2011 Survey responses'!FM153<0.5,\"\",'2011 Survey responses'!FM153)","v":4},{"$f":"IF('2011 Survey responses'!FO153<0.5,\"\",'2011 Survey responses'!FO153)","v":4},{"$f":"IF('2011 Survey responses'!FQ153<0.5,\"\",'2011 Survey responses'!FQ153)","v":4}]
["Seychelles",{"$f":"IF(SUM(F154)<1,\"\",AVERAGEIF('2011 Survey responses'!B154:CP154,\">1\"))","v":""},{"$f":"IF(SUM(F154)<1,\"\",AVERAGEIF('2011 Survey responses'!B154:AO154,\">1\"))","v":""},{"$f":"IF(SUM(F154)<1,\"\",AVERAGEIF('2011 Survey responses'!B154:BV154,\">1\"))","v":""},{"$f":"IF(SUM(F154)<1,\"\",AVERAGEIF('2011 Survey responses'!V154:BV154,\">1\"))","v":""},{"$f":"IF(SUM('2011 Survey responses'!B154:U154)<1,\"\",(AVERAGEIFS('2011 Survey responses'!B154:U154,'2011 Survey responses'!B154:U154,\">1\")))","v":""},{"$f":"IF(SUM('2011 Survey responses'!B154:H154)<1,\"\",(AVERAGEIFS('2011 Survey responses'!B154:H154,'2011 Survey responses'!B154:H154,\">1\")))","v":""},{"$f":"IF(SUM('2011 Survey responses'!I154:S154)<1,\"\",(AVERAGEIFS('2011 Survey responses'!I154:S154,'2011 Survey responses'!I154:S154,\">1\")))","v":""},{"$f":"IF(SUM('2011 Survey responses'!T154:U154)<2.1,\"\",(AVERAGEIFS('2011 Survey responses'!T154:U154,'2011 Survey responses'!T154:U154,\">1\")))","v":""},{"$f":"IF(SUM('2011 Survey responses'!B154:C154)<2.1,\"\",((SUMIF('2011 Survey responses'!B154:C154,\">1\")+SUMIF('2011 Survey responses'!F154,\">1\"))/(COUNTIF('2011 Survey responses'!B154:C154,\">1\")+COUNTIF('2011 Survey responses'!F154,\">1\"))))","v":""},{"$f":"IF(SUM('2011 Survey responses'!D154:E154)<2.1,\"\",(AVERAGEIFS('2011 Survey responses'!D154:E154,'2011 Survey responses'!D154:E154,\">1\")))","v":""},{"$f":"IF(('2011 Survey responses'!B154+'2011 Survey responses'!D154)<2.1,\"\",((SUMIF('2011 Survey responses'!B154,\">1\")+SUMIF('2011 Survey responses'!D154,\">1\")+SUMIF('2011 Survey responses'!F154,\">1\")+SUMIF('2011 Survey responses'!K154,\">1\"))/(COUNTIF('2011 Survey responses'!B154,\">1\")+COUNTIF('2011 Survey responses'!D154,\">1\")+COUNTIF('2011 Survey responses'!F154,\">1\")+COUNTIF('2011 Survey responses'!K154,\">1\"))))","v":""},{"$f":"IF(SUM('2011 Survey responses'!G154:H154)<2.1,\"\",(AVERAGEIFS('2011 Survey responses'!G154:H154,'2011 Survey responses'!G154:H154,\">1\")))","v":""},{"$f":"IF(SUM('2011 Survey responses'!F154:G154)<1.5,\"\",MAX('2011 Survey responses'!F154,'2011 Survey responses'!G154))","v":""},{"$f":"IF(SUM('2011 Survey responses'!G154:H154)<1,\"\",MAX('2011 Survey responses'!G154,'2011 Survey responses'!H154))","v":""},{"$f":"IF(SUM('2011 Survey responses'!I154:L154)<4.1,\"\",(AVERAGEIFS('2011 Survey responses'!I154:L154,'2011 Survey responses'!I154:L154,\">1\")))","v":""},{"$f":"IF(SUM('2011 Survey responses'!M154:S154)<4.1,\"\",(AVERAGEIFS('2011 Survey responses'!M154:S154,'2011 Survey responses'!M154:S154,\">1\")))","v":""},{"$f":"IF(SUM('2011 Survey responses'!T154:U154)<2.1,\"\",(AVERAGEIFS('2011 Survey responses'!T154:U154,'2011 Survey responses'!T154:U154,\">1\")))","v":""},{"$f":"IF(SUM('2011 Survey responses'!V154:AO154)<1,\"\",(AVERAGEIFS('2011 Survey responses'!V154:AO154,'2011 Survey responses'!V154:AO154,\">1\")))","v":""},{"$f":"IF(SUM('2011 Survey responses'!V154:AA154)<1,\"\",(AVERAGEIFS('2011 Survey responses'!V154:AA154,'2011 Survey responses'!V154:AA154,\">1\")))","v":""},{"$f":"IF(SUM('2011 Survey responses'!AB154:AH154)<1,\"\",(AVERAGEIFS('2011 Survey responses'!AB154:AH154,'2011 Survey responses'!AB154:AH154,\">1\")))","v":""},{"$f":"IF(SUM('2011 Survey responses'!AI154:AO154)<1,\"\",(AVERAGEIFS('2011 Survey responses'!AI154:AO154,'2011 Survey responses'!AI154:AO154,\">1\")))","v":""},{"$f":"IF(('2011 Survey responses'!Y154+'2011 Survey responses'!AI154+'2011 Survey responses'!AK154)<3.1,\"\",((SUMIF('2011 Survey responses'!Y154,\">1\")+SUMIF('2011 Survey responses'!AI154,\">1\")+SUMIF('2011 Survey responses'!AK154,\">1\")+SUMIF('2011 Survey responses'!AM154,\">1\"))/(COUNTIF('2011 Survey responses'!Y154,\">1\")+COUNTIF('2011 Survey responses'!AI154,\">1\")+COUNTIF('2011 Survey responses'!AK154,\">1\")+COUNTIF('2011 Survey responses'!AM154,\">1\"))))","v":""},{"$f":"IF(('2011 Survey responses'!W154)<1.1,\"\",('2011 Survey responses'!W154))","v":""},{"$f":"IF(('2011 Survey responses'!Y154)<1.1,\"\",('2011 Survey responses'!Y154))","v":""},{"$f":"IF(('2011 Survey responses'!Z154)<1.1,\"\",('2011 Survey responses'!Z154))","v":""},{"$f":"IF(('2011 Survey responses'!V154+'2011 Survey responses'!X154+'2011 Survey responses'!AA154)<3.1,\"\",((SUMIF('2011 Survey responses'!V154,\">1\")+SUMIF('2011 Survey responses'!X154,\">1\")+SUMIF('2011 Survey responses'!AA154,\">1\"))/(COUNTIF('2011 Survey responses'!V154,\">1\")+COUNTIF('2011 Survey responses'!X154,\">1\")+COUNTIF('2011 Survey responses'!AA154,\">1\"))))","v":""},{"$f":"IF(('2011 Survey responses'!V154+'2011 Survey responses'!Y154+'2011 Survey responses'!AA154)<3.1,\"\",((SUMIF('2011 Survey responses'!V154,\">1\")+SUMIF('2011 Survey responses'!Y154,\">1\")+SUMIF('2011 Survey responses'!AA154,\">1\"))/(COUNTIF('2011 Survey responses'!V154,\">1\")+COUNTIF('2011 Survey responses'!Y154,\">1\")+COUNTIF('2011 Survey responses'!AA154,\">1\"))))","v":""},{"$f":"IF(SUM('2011 Survey responses'!AB154:AH154)<1,\"\",(AVERAGEIFS('2011 Survey responses'!AB154:AH154,'2011 Survey responses'!AB154:AH154,\">1\")))","v":""},{"$f":"IF(SUM('2011 Survey responses'!AI154:AO154)<7.1,\"\",(AVERAGEIFS('2011 Survey responses'!AI154:AO154,'2011 Survey responses'!AI154:AO154,\">1\")))","v":""},{"$f":"IF(('2011 Survey responses'!AH154)<1.1,\"\",('2011 Survey responses'!AH154))","v":""},{"$f":"IF(SUM('2011 Survey responses'!AP154:BV154)<1,\"\",(AVERAGEIFS('2011 Survey responses'!AP154:BV154,'2011 Survey responses'!AP154:BV154,\">1\")))","v":""},{"$f":"IF(SUM('2011 Survey responses'!AP154:AS154)<4.1,\"\",(AVERAGEIFS('2011 Survey responses'!AP154:AS154,'2011 Survey responses'!AP154:AS154,\">1\")))","v":""},{"$f":"IF(SUM('2011 Survey responses'!AT154:BF154)<1,\"\",(AVERAGEIFS('2011 Survey responses'!AT154:BF154,'2011 Survey responses'!AT154:BF154,\">1\")))","v":""},{"$f":"IF(SUM('2011 Survey responses'!BG154:BO154)<1,\"\",(AVERAGEIFS('2011 Survey responses'!BG154:BO154,'2011 Survey responses'!BG154:BO154,\">1\")))","v":""},{"$f":"IF(SUM('2011 Survey responses'!BP154:BS154)<1,\"\",(AVERAGEIFS('2011 Survey responses'!BP154:BS154,'2011 Survey responses'!BP154:BS154,\">1\")))","v":""},{"$f":"IF(SUM('2011 Survey responses'!BT154:BV154)<3.1,\"\",(AVERAGEIFS('2011 Survey responses'!BT154:BV154,'2011 Survey responses'!BT154:BV154,\">1\")))","v":""},{"$f":"IF(('2011 Survey responses'!AQ154+'2011 Survey responses'!AR154+'2011 Survey responses'!BG154)<3.1,\"\",((SUMIF('2011 Survey responses'!AQ154,\">1\")+SUMIF('2011 Survey responses'!AR154,\">1\")+SUMIF('2011 Survey responses'!BG154,\">1\"))/(COUNTIF('2011 Survey responses'!AQ154,\">1\")+COUNTIF('2011 Survey responses'!AR154,\">1\")+COUNTIF('2011 Survey responses'!BG154,\">1\"))))","v":""},{"$f":"IF(SUM('2011 Survey responses'!AP154:AS154)<4.1,\"\",(AVERAGEIFS('2011 Survey responses'!AP154:AS154,'2011 Survey responses'!AP154:AS154,\">1\")))","v":""},{"$f":"IF(('2011 Survey responses'!AU154+'2011 Survey responses'!AX154+'2011 Survey responses'!BA154+'2011 Survey responses'!BC154+'2011 Survey responses'!BD154)<5.1,\"\",(SUMIF('2011 Survey responses'!AU154,\">1\")+SUMIF('2011 Survey responses'!AX154,\">1\")+SUMIF('2011 Survey responses'!BA154,\">1\")+SUMIF('2011 Survey responses'!BC154,\">1\")+SUMIF('2011 Survey responses'!BD154,\">1\"))/(COUNTIF('2011 Survey responses'!AU154,\">1\")+COUNTIF('2011 Survey responses'!AX154,\">1\")+COUNTIF('2011 Survey responses'!BA154,\">1\")+COUNTIF('2011 Survey responses'!BC154,\">1\")+COUNTIF('2011 Survey responses'!BD154,\">1\")))","v":""},{"$f":"IF(('2011 Survey responses'!AT154)<1.1,\"\",('2011 Survey responses'!AT154))","v":""},{"$f":"IF(SUM('2011 Survey responses'!AV154:AW154)<2.1,\"\",(AVERAGEIFS('2011 Survey responses'!AV154:AW154,'2011 Survey responses'!AV154:AW154,\">1\")))","v":""},{"$f":"IF(('2011 Survey responses'!AW154+'2011 Survey responses'!AY154)<2.1,\"\",(SUMIF('2011 Survey responses'!AW154,\">1\")+SUMIF('2011 Survey responses'!AY154,\">1\"))/(COUNTIF('2011 Survey responses'!AW154,\">1\")+COUNTIF('2011 Survey responses'!AY154,\">1\")))","v":""},{"$f":"IF(('2011 Survey responses'!AZ154)<1.1,\"\",('2011 Survey responses'!AZ154))","v":""},null,null,null,null,{"$f":"IF(('2011 Survey responses'!BE154)<1.1,\"\",('2011 Survey responses'!BE154))","v":""},{"$f":"IF(('2011 Survey responses'!AY154+'2011 Survey responses'!BB154+'2011 Survey responses'!BF154)<3.1,\"\",(SUMIF('2011 Survey responses'!AY154,\">1\")+SUMIF('2011 Survey responses'!BB154,\">1\")+SUMIF('2011 Survey responses'!BF154,\">1\"))/(COUNTIF('2011 Survey responses'!AY154,\">1\")+COUNTIF('2011 Survey responses'!BB154,\">1\")+COUNTIF('2011 Survey responses'!BF154,\">1\")))","v":""},"",{"$f":"IF(SUM('2011 Survey responses'!BT154:BV154)<3.1,\"\",(AVERAGEIFS('2011 Survey responses'!BT154:BV154,'2011 Survey responses'!BT154:BV154,\">1\")))","v":""},{"$f":"IF(SUM('2011 Survey responses'!BW154:CP154)<1,\"\",(AVERAGEIFS('2011 Survey responses'!BW154:CP154,'2011 Survey responses'!BW154:CP154,\">1\")))","v":""},{"$f":"IF(SUM('2011 Survey responses'!BW154:CF154)<1,\"\",(AVERAGEIFS('2011 Survey responses'!BW154:CF154,'2011 Survey responses'!BW154:CF154,\">1\")))","v":""},{"$f":"IF(SUM('2011 Survey responses'!CG154:CP154)<1,\"\",(AVERAGEIFS('2011 Survey responses'!CG154:CP154,'2011 Survey responses'!CG154:CP154,\">1\")))","v":""},{"$f":"IF(SUM('2011 Survey responses'!BX154:CF154)<1,\"\",(AVERAGEIFS('2011 Survey responses'!BX154:CF154,'2011 Survey responses'!BX154:CF154,\">1\")))","v":""},{"$f":"IF(SUM('2011 Survey responses'!CH154:CP154)<1,\"\",(AVERAGEIFS('2011 Survey responses'!CH154:CP154,'2011 Survey responses'!CH154:CP154,\">1\")))","v":""},{"$f":"IF(SUM('2011 Survey responses'!BW154:CP154)<1,\"\",(AVERAGEIFS('2011 Survey responses'!BW154:CP154,'2011 Survey responses'!BW154:CP154,\">1\")))","v":""},{"$f":"IF(('2011 Survey responses'!BW154+'2011 Survey responses'!CG154)<2.1,\"\",(SUMIF('2011 Survey responses'!BW154,\">1\")+SUMIF('2011 Survey responses'!CG154,\">1\"))/(COUNTIF('2011 Survey responses'!BW154,\">1\")+COUNTIF('2011 Survey responses'!CG154,\">1\")))","v":""},{"$f":"IF(('2011 Survey responses'!BX154+'2011 Survey responses'!CH154)<2.1,\"\",(SUMIF('2011 Survey responses'!BX154,\">1\")+SUMIF('2011 Survey responses'!CH154,\">1\"))/(COUNTIF('2011 Survey responses'!BX154,\">1\")+COUNTIF('2011 Survey responses'!CH154,\">1\")))","v":""},{"$f":"IF(('2011 Survey responses'!BY154+'2011 Survey responses'!CI154)<2.1,\"\",(SUMIF('2011 Survey responses'!BY154,\">1\")+SUMIF('2011 Survey responses'!CI154,\">1\"))/(COUNTIF('2011 Survey responses'!BY154,\">1\")+COUNTIF('2011 Survey responses'!CI154,\">1\")))","v":""},{"$f":"IF('2011 Survey responses'!CQ154<0.5,\"\",'2011 Survey responses'!CQ154)","v":""},{"$f":"IF('2011 Survey responses'!CR154<0.5,\"\",'2011 Survey responses'!CR154)","v":""},{"$f":"IF('2011 Survey responses'!CS154<0.5,\"\",'2011 Survey responses'!CS154)","v":""},{"$f":"IF('2011 Survey responses'!CT154<0.5,\"\",'2011 Survey responses'!CT154)","v":""},{"$f":"IF('2011 Survey responses'!CU154<0.5,\"\",'2011 Survey responses'!CU154)","v":""},{"$f":"IF('2011 Survey responses'!CV154<0.5,\"\",'2011 Survey responses'!CV154)","v":""},{"$f":"IF(SUM('2011 Survey responses'!CW154:DL154)<1,\"\",(AVERAGE('2011 Survey responses'!CW154:DL154)))","v":""},{"$f":"IF(SUM('2011 Survey responses'!CW154:CZ154)<1,\"\",(AVERAGE('2011 Survey responses'!CW154:CZ154)))","v":""},{"$f":"IF(SUM('2011 Survey responses'!DA154:DD154)<1,\"\",(AVERAGE('2011 Survey responses'!DA154:DD154)))","v":""},{"$f":"IF(SUM('2011 Survey responses'!DE154:DH154)<1,\"\",(AVERAGE('2011 Survey responses'!DE154:DH154)))","v":""},{"$f":"IF(SUM('2011 Survey responses'!DI154:DL154)<1,\"\",(AVERAGE('2011 Survey responses'!DI154:DL154)))","v":""},{"$f":"IF(('2011 Survey responses'!CW154+'2011 Survey responses'!DA154+'2011 Survey responses'!DE154+'2011 Survey responses'!DI154)<1,\"\",AVERAGE('2011 Survey responses'!CW154,'2011 Survey responses'!DA154,'2011 Survey responses'!DE154,'2011 Survey responses'!DI154))","v":""},{"$f":"IF(('2011 Survey responses'!CX154+'2011 Survey responses'!DB154+'2011 Survey responses'!DF154+'2011 Survey responses'!DJ154)<1,\"\",AVERAGE('2011 Survey responses'!CX154,'2011 Survey responses'!DB154,'2011 Survey responses'!DF154,'2011 Survey responses'!DJ154))","v":""},{"$f":"IF(('2011 Survey responses'!CY154+'2011 Survey responses'!DC154+'2011 Survey responses'!DG154+'2011 Survey responses'!DK154)<1,\"\",AVERAGE('2011 Survey responses'!CY154,'2011 Survey responses'!DC154,'2011 Survey responses'!DG154,'2011 Survey responses'!DK154))","v":""},{"$f":"IF(('2011 Survey responses'!CZ154+'2011 Survey responses'!DD154+'2011 Survey responses'!DH154+'2011 Survey responses'!DL154)<1,\"\",AVERAGE('2011 Survey responses'!CZ154,'2011 Survey responses'!DD154,'2011 Survey responses'!DH154,'2011 Survey responses'!DL154))","v":""},{"$f":"IF('2011 Survey responses'!CW154<0.5,\"\",'2011 Survey responses'!CW154)","v":""},{"$f":"IF('2011 Survey responses'!CX154<0.5,\"\",'2011 Survey responses'!CX154)","v":""},{"$f":"IF('2011 Survey responses'!CY154<0.5,\"\",'2011 Survey responses'!CY154)","v":""},{"$f":"IF('2011 Survey responses'!CZ154<0.5,\"\",'2011 Survey responses'!CZ154)","v":""},{"$f":"IF('2011 Survey responses'!DA154<0.5,\"\",'2011 Survey responses'!DA154)","v":""},{"$f":"IF('2011 Survey responses'!DB154<0.5,\"\",'2011 Survey responses'!DB154)","v":""},{"$f":"IF('2011 Survey responses'!DC154<0.5,\"\",'2011 Survey responses'!DC154)","v":""},{"$f":"IF('2011 Survey responses'!DD154<0.5,\"\",'2011 Survey responses'!DD154)","v":""},{"$f":"IF('2011 Survey responses'!DE154<0.5,\"\",'2011 Survey responses'!DE154)","v":""},{"$f":"IF('2011 Survey responses'!DF154<0.5,\"\",'2011 Survey responses'!DF154)","v":""},{"$f":"IF('2011 Survey responses'!DG154<0.5,\"\",'2011 Survey responses'!DG154)","v":""},{"$f":"IF('2011 Survey responses'!DH154<0.5,\"\",'2011 Survey responses'!DH154)","v":""},{"$f":"IF('2011 Survey responses'!DI154<0.5,\"\",'2011 Survey responses'!DI154)","v":""},{"$f":"IF('2011 Survey responses'!DJ154<0.5,\"\",'2011 Survey responses'!DJ154)","v":""},{"$f":"IF('2011 Survey responses'!DK154<0.5,\"\",'2011 Survey responses'!DK154)","v":""},{"$f":"IF('2011 Survey responses'!DL154<0.5,\"\",'2011 Survey responses'!DL154)","v":""},{"$f":"IF('2011 Survey responses'!DU154=4,4,IF('2011 Survey responses'!DU154=5,4,\"\"))","v":""},{"$f":"IF('2011 Survey responses'!DV154=4,3,IF('2011 Survey responses'!DV154=5,3,\"\"))","v":""},"",{"$f":"IF(CQ154=2,CQ154,IF(CO154=4,CO154,IF(CP154=3,CP154,IF('2011 Survey responses'!GT154=1,1,\"\"))))","v":""},{"$f":"IF('2011 Survey responses'!DO154<0.5,\"\",'2011 Survey responses'!DO154)","v":""},{"$f":"IF('2011 Survey responses'!DP154<0.5,\"\",'2011 Survey responses'!DP154)","v":""},{"$f":"IF('2011 Survey responses'!DQ154<0.5,\"\",'2011 Survey responses'!DQ154)","v":""},{"$f":"IF('2011 Survey responses'!DR154<0.5,\"\",'2011 Survey responses'!DR154)","v":""},{"$f":"IF('2011 Survey responses'!DS154<0.5,\"\",'2011 Survey responses'!DS154)","v":""},{"$f":"IF('2011 Survey responses'!DT154<0.5,\"\",'2011 Survey responses'!DT154)","v":""},{"$f":"IF('2011 Survey responses'!DU154<0.5,\"\",'2011 Survey responses'!DU154)","v":""},{"$f":"IF('2011 Survey responses'!DV154<0.5,\"\",'2011 Survey responses'!DV154)","v":""},{"$f":"IF('2011 Survey responses'!DW154<0.5,\"\",'2011 Survey responses'!DW154)","v":""},{"$f":"IF('2011 Survey responses'!DX154<0.5,\"\",'2011 Survey responses'!DX154)","v":""},{"$f":"IF('2011 Survey responses'!DY154<0.5,\"\",'2011 Survey responses'!DY154)","v":""},{"$f":"IF('2011 Survey responses'!DZ154<0.5,\"\",'2011 Survey responses'!DZ154)","v":""},{"$f":"IF('2011 Survey responses'!EA154<0.5,\"\",'2011 Survey responses'!EA154)","v":""},{"$f":"IF('2011 Survey responses'!EB154<0.5,\"\",'2011 Survey responses'!EB154)","v":""},{"$f":"IF('2011 Survey responses'!EC154<0.5,\"\",'2011 Survey responses'!EC154)","v":""},{"$f":"IF('2011 Survey responses'!ED154<0.5,\"\",'2011 Survey responses'!ED154)","v":""},{"$f":"IF('2011 Survey responses'!EE154<0.5,\"\",'2011 Survey responses'!EE154)","v":""},{"$f":"IF('2011 Survey responses'!EF154<0.5,\"\",'2011 Survey responses'!EF154)","v":""},{"$f":"IF('2011 Survey responses'!EG154<0.5,\"\",'2011 Survey responses'!EG154)","v":""},{"$f":"IF('2011 Survey responses'!EH154<0.5,\"\",'2011 Survey responses'!EH154)","v":""},{"$f":"IF('2011 Survey responses'!EI154<0.5,\"\",'2011 Survey responses'!EI154)","v":""},{"$f":"IF('2011 Survey responses'!EJ154<0.5,\"\",'2011 Survey responses'!EJ154)","v":""},{"$f":"IF('2011 Survey responses'!EK154<0.5,\"\",'2011 Survey responses'!EK154)","v":""},{"$f":"IF('2011 Survey responses'!EL154<0.5,\"\",'2011 Survey responses'!EL154)","v":""},{"$f":"IF('2011 Survey responses'!EM154<0.5,\"\",'2011 Survey responses'!EM154)","v":""},{"$f":"IF('2011 Survey responses'!EN154<0.5,\"\",'2011 Survey responses'!EN154)","v":""},{"$f":"IF('2011 Survey responses'!EO154<0.5,\"\",'2011 Survey responses'!EO154)","v":""},{"$f":"IF('2011 Survey responses'!EP154<0.5,\"\",'2011 Survey responses'!EP154)","v":""},{"$f":"IF(('2011 Survey responses'!EW154+'2011 Survey responses'!EX154)>=2,AVERAGE('2011 Survey responses'!EW154,'2011 Survey responses'!EY154),\"\")","v":""},{"$f":"IF('2011 Survey responses'!EX154<0.5,\"\",'2011 Survey responses'!EX154)","v":""},{"$f":"IF('2011 Survey responses'!EZ154<0.5,\"\",'2011 Survey responses'!EZ154)","v":""},{"$f":"IF('2011 Survey responses'!FB154<0.5,\"\",'2011 Survey responses'!FB154)","v":""},{"$f":"IF('2011 Survey responses'!FD154<0.5,\"\",'2011 Survey responses'!FD154)","v":""},{"$f":"IF('2011 Survey responses'!FC154<0.5,\"\",'2011 Survey responses'!FC154)","v":""},{"$f":"IF(('2011 Survey responses'!EM154+'2011 Survey responses'!EN154)>=2,AVERAGE('2011 Survey responses'!EM154,'2011 Survey responses'!EN154),\"\")","v":""},{"$f":"IF('2011 Survey responses'!ES154<0.5,\"\",'2011 Survey responses'!ES154)","v":""},{"$f":"IF(('2011 Survey responses'!ET154+'2011 Survey responses'!EU154)>=2,AVERAGE('2011 Survey responses'!ET154,'2011 Survey responses'!EU154),\"\")","v":""},{"$f":"IF('2011 Survey responses'!EV154<0.5,\"\",'2011 Survey responses'!EV154)","v":""},{"$f":"IF('2011 Survey responses'!FA154<0.5,\"\",'2011 Survey responses'!FA154)","v":""},{"$f":"IF('2011 Survey responses'!ER154<0.5,\"\",'2011 Survey responses'!ER154)","v":""},{"$f":"IF(('2011 Survey responses'!EO154+'2011 Survey responses'!EP154)>=2,AVERAGE('2011 Survey responses'!EO154,'2011 Survey responses'!EP154),\"\")","v":""},{"$f":"IF('2011 Survey responses'!EQ154<0.5,\"\",'2011 Survey responses'!EQ154)","v":""},{"$f":"IF('2011 Survey responses'!ET154<0.5,\"\",'2011 Survey responses'!ET154)","v":""},{"$f":"IF('2011 Survey responses'!EU154<0.5,\"\",'2011 Survey responses'!EU154)","v":""},{"$f":"IF('2011 Survey responses'!EW154<0.5,\"\",'2011 Survey responses'!EW154)","v":""},{"$f":"IF('2011 Survey responses'!EY154<0.5,\"\",'2011 Survey responses'!EY154)","v":""},{"$f":"IF('2011 Survey responses'!FU154<0.5,\"\",'2011 Survey responses'!FU154)","v":""},{"$f":"IF(('2011 Survey responses'!FL154+'2011 Survey responses'!FM154)>=2,AVERAGE('2011 Survey responses'!FL154,'2011 Survey responses'!FM154),\"\")","v":""},{"$f":"IF(('2011 Survey responses'!FO154+'2011 Survey responses'!FQ154)>=2,AVERAGE('2011 Survey responses'!FO154,'2011 Survey responses'!FQ154),\"\")","v":""},{"$f":"IF('2011 Survey responses'!FJ154<0.5,\"\",'2011 Survey responses'!FJ154)","v":""},{"$f":"IF('2011 Survey responses'!FT154<0.5,\"\",'2011 Survey responses'!FT154)","v":""},{"$f":"IF('2011 Survey responses'!FR154<0.5,\"\",'2011 Survey responses'!FR154)","v":""},{"$f":"IF('2011 Survey responses'!FK154<0.5,\"\",'2011 Survey responses'!FK154)","v":""},{"$f":"IF('2011 Survey responses'!FP154<0.5,\"\",'2011 Survey responses'!FP154)","v":""},{"$f":"IF('2011 Survey responses'!FN154<0.5,\"\",'2011 Survey responses'!FN154)","v":""},{"$f":"IF(('2011 Survey responses'!FE154+'2011 Survey responses'!FF154)>=2,AVERAGE('2011 Survey responses'!FE154,'2011 Survey responses'!FF154),\"\")","v":""},{"$f":"IF('2011 Survey responses'!FS154<0.5,\"\",'2011 Survey responses'!FS154)","v":""},{"$f":"IF('2011 Survey responses'!FV154<0.5,\"\",'2011 Survey responses'!FV154)","v":""},{"$f":"IF(('2011 Survey responses'!FG154+'2011 Survey responses'!FH154)>=2,AVERAGE('2011 Survey responses'!FG154,'2011 Survey responses'!FH154),\"\")","v":""},{"$f":"IF('2011 Survey responses'!FI154<0.5,\"\",'2011 Survey responses'!FI154)","v":""},{"$f":"IF('2011 Survey responses'!FE154<0.5,\"\",'2011 Survey responses'!FE154)","v":""},{"$f":"IF('2011 Survey responses'!FF154<0.5,\"\",'2011 Survey responses'!FF154)","v":""},{"$f":"IF('2011 Survey responses'!FG154<0.5,\"\",'2011 Survey responses'!FG154)","v":""},{"$f":"IF('2011 Survey responses'!FH154<0.5,\"\",'2011 Survey responses'!FH154)","v":""},{"$f":"IF('2011 Survey responses'!FL154<0.5,\"\",'2011 Survey responses'!FL154)","v":""},{"$f":"IF('2011 Survey responses'!FM154<0.5,\"\",'2011 Survey responses'!FM154)","v":""},{"$f":"IF('2011 Survey responses'!FO154<0.5,\"\",'2011 Survey responses'!FO154)","v":""},{"$f":"IF('2011 Survey responses'!FQ154<0.5,\"\",'2011 Survey responses'!FQ154)","v":""}]
["Sierra Leone",{"$f":"IF(SUM(F155)<1,\"\",AVERAGEIF('2011 Survey responses'!B155:CP155,\">1\"))","v":2.0114942528735633},{"$f":"IF(SUM(F155)<1,\"\",AVERAGEIF('2011 Survey responses'!B155:AO155,\">1\"))","v":2.0270270270270272},{"$f":"IF(SUM(F155)<1,\"\",AVERAGEIF('2011 Survey responses'!B155:BV155,\">1\"))","v":2.0144927536231885},{"$f":"IF(SUM(F155)<1,\"\",AVERAGEIF('2011 Survey responses'!V155:BV155,\">1\"))","v":2},{"$f":"IF(SUM('2011 Survey responses'!B155:U155)<1,\"\",(AVERAGEIFS('2011 Survey responses'!B155:U155,'2011 Survey responses'!B155:U155,\">1\")))","v":2.0588235294117645},{"$f":"IF(SUM('2011 Survey responses'!B155:H155)<1,\"\",(AVERAGEIFS('2011 Survey responses'!B155:H155,'2011 Survey responses'!B155:H155,\">1\")))","v":2},{"$f":"IF(SUM('2011 Survey responses'!I155:S155)<1,\"\",(AVERAGEIFS('2011 Survey responses'!I155:S155,'2011 Survey responses'!I155:S155,\">1\")))","v":2.1},{"$f":"IF(SUM('2011 Survey responses'!T155:U155)<2.1,\"\",(AVERAGEIFS('2011 Survey responses'!T155:U155,'2011 Survey responses'!T155:U155,\">1\")))","v":2},{"$f":"IF(SUM('2011 Survey responses'!B155:C155)<2.1,\"\",((SUMIF('2011 Survey responses'!B155:C155,\">1\")+SUMIF('2011 Survey responses'!F155,\">1\"))/(COUNTIF('2011 Survey responses'!B155:C155,\">1\")+COUNTIF('2011 Survey responses'!F155,\">1\"))))","v":2},{"$f":"IF(SUM('2011 Survey responses'!D155:E155)<2.1,\"\",(AVERAGEIFS('2011 Survey responses'!D155:E155,'2011 Survey responses'!D155:E155,\">1\")))","v":2},{"$f":"IF(('2011 Survey responses'!B155+'2011 Survey responses'!D155)<2.1,\"\",((SUMIF('2011 Survey responses'!B155,\">1\")+SUMIF('2011 Survey responses'!D155,\">1\")+SUMIF('2011 Survey responses'!F155,\">1\")+SUMIF('2011 Survey responses'!K155,\">1\"))/(COUNTIF('2011 Survey responses'!B155,\">1\")+COUNTIF('2011 Survey responses'!D155,\">1\")+COUNTIF('2011 Survey responses'!F155,\">1\")+COUNTIF('2011 Survey responses'!K155,\">1\"))))","v":2},{"$f":"IF(SUM('2011 Survey responses'!G155:H155)<2.1,\"\",(AVERAGEIFS('2011 Survey responses'!G155:H155,'2011 Survey responses'!G155:H155,\">1\")))","v":2},{"$f":"IF(SUM('2011 Survey responses'!F155:G155)<1.5,\"\",MAX('2011 Survey responses'!F155,'2011 Survey responses'!G155))","v":2},{"$f":"IF(SUM('2011 Survey responses'!G155:H155)<1,\"\",MAX('2011 Survey responses'!G155,'2011 Survey responses'!H155))","v":2},{"$f":"IF(SUM('2011 Survey responses'!I155:L155)<4.1,\"\",(AVERAGEIFS('2011 Survey responses'!I155:L155,'2011 Survey responses'!I155:L155,\">1\")))","v":2.25},{"$f":"IF(SUM('2011 Survey responses'!M155:S155)<4.1,\"\",(AVERAGEIFS('2011 Survey responses'!M155:S155,'2011 Survey responses'!M155:S155,\">1\")))","v":2},{"$f":"IF(SUM('2011 Survey responses'!T155:U155)<2.1,\"\",(AVERAGEIFS('2011 Survey responses'!T155:U155,'2011 Survey responses'!T155:U155,\">1\")))","v":2},{"$f":"IF(SUM('2011 Survey responses'!V155:AO155)<1,\"\",(AVERAGEIFS('2011 Survey responses'!V155:AO155,'2011 Survey responses'!V155:AO155,\">1\")))","v":2},{"$f":"IF(SUM('2011 Survey responses'!V155:AA155)<1,\"\",(AVERAGEIFS('2011 Survey responses'!V155:AA155,'2011 Survey responses'!V155:AA155,\">1\")))","v":2},{"$f":"IF(SUM('2011 Survey responses'!AB155:AH155)<1,\"\",(AVERAGEIFS('2011 Survey responses'!AB155:AH155,'2011 Survey responses'!AB155:AH155,\">1\")))","v":2},{"$f":"IF(SUM('2011 Survey responses'!AI155:AO155)<1,\"\",(AVERAGEIFS('2011 Survey responses'!AI155:AO155,'2011 Survey responses'!AI155:AO155,\">1\")))","v":2},{"$f":"IF(('2011 Survey responses'!Y155+'2011 Survey responses'!AI155+'2011 Survey responses'!AK155)<3.1,\"\",((SUMIF('2011 Survey responses'!Y155,\">1\")+SUMIF('2011 Survey responses'!AI155,\">1\")+SUMIF('2011 Survey responses'!AK155,\">1\")+SUMIF('2011 Survey responses'!AM155,\">1\"))/(COUNTIF('2011 Survey responses'!Y155,\">1\")+COUNTIF('2011 Survey responses'!AI155,\">1\")+COUNTIF('2011 Survey responses'!AK155,\">1\")+COUNTIF('2011 Survey responses'!AM155,\">1\"))))","v":2},{"$f":"IF(('2011 Survey responses'!W155)<1.1,\"\",('2011 Survey responses'!W155))","v":2},{"$f":"IF(('2011 Survey responses'!Y155)<1.1,\"\",('2011 Survey responses'!Y155))","v":2},{"$f":"IF(('2011 Survey responses'!Z155)<1.1,\"\",('2011 Survey responses'!Z155))","v":2},{"$f":"IF(('2011 Survey responses'!V155+'2011 Survey responses'!X155+'2011 Survey responses'!AA155)<3.1,\"\",((SUMIF('2011 Survey responses'!V155,\">1\")+SUMIF('2011 Survey responses'!X155,\">1\")+SUMIF('2011 Survey responses'!AA155,\">1\"))/(COUNTIF('2011 Survey responses'!V155,\">1\")+COUNTIF('2011 Survey responses'!X155,\">1\")+COUNTIF('2011 Survey responses'!AA155,\">1\"))))","v":2},{"$f":"IF(('2011 Survey responses'!V155+'2011 Survey responses'!Y155+'2011 Survey responses'!AA155)<3.1,\"\",((SUMIF('2011 Survey responses'!V155,\">1\")+SUMIF('2011 Survey responses'!Y155,\">1\")+SUMIF('2011 Survey responses'!AA155,\">1\"))/(COUNTIF('2011 Survey responses'!V155,\">1\")+COUNTIF('2011 Survey responses'!Y155,\">1\")+COUNTIF('2011 Survey responses'!AA155,\">1\"))))","v":2},{"$f":"IF(SUM('2011 Survey responses'!AB155:AH155)<1,\"\",(AVERAGEIFS('2011 Survey responses'!AB155:AH155,'2011 Survey responses'!AB155:AH155,\">1\")))","v":2},{"$f":"IF(SUM('2011 Survey responses'!AI155:AO155)<7.1,\"\",(AVERAGEIFS('2011 Survey responses'!AI155:AO155,'2011 Survey responses'!AI155:AO155,\">1\")))","v":2},{"$f":"IF(('2011 Survey responses'!AH155)<1.1,\"\",('2011 Survey responses'!AH155))","v":2},{"$f":"IF(SUM('2011 Survey responses'!AP155:BV155)<1,\"\",(AVERAGEIFS('2011 Survey responses'!AP155:BV155,'2011 Survey responses'!AP155:BV155,\">1\")))","v":2},{"$f":"IF(SUM('2011 Survey responses'!AP155:AS155)<4.1,\"\",(AVERAGEIFS('2011 Survey responses'!AP155:AS155,'2011 Survey responses'!AP155:AS155,\">1\")))","v":2},{"$f":"IF(SUM('2011 Survey responses'!AT155:BF155)<1,\"\",(AVERAGEIFS('2011 Survey responses'!AT155:BF155,'2011 Survey responses'!AT155:BF155,\">1\")))","v":2},{"$f":"IF(SUM('2011 Survey responses'!BG155:BO155)<1,\"\",(AVERAGEIFS('2011 Survey responses'!BG155:BO155,'2011 Survey responses'!BG155:BO155,\">1\")))","v":2},{"$f":"IF(SUM('2011 Survey responses'!BP155:BS155)<1,\"\",(AVERAGEIFS('2011 Survey responses'!BP155:BS155,'2011 Survey responses'!BP155:BS155,\">1\")))","v":2},{"$f":"IF(SUM('2011 Survey responses'!BT155:BV155)<3.1,\"\",(AVERAGEIFS('2011 Survey responses'!BT155:BV155,'2011 Survey responses'!BT155:BV155,\">1\")))","v":2},{"$f":"IF(('2011 Survey responses'!AQ155+'2011 Survey responses'!AR155+'2011 Survey responses'!BG155)<3.1,\"\",((SUMIF('2011 Survey responses'!AQ155,\">1\")+SUMIF('2011 Survey responses'!AR155,\">1\")+SUMIF('2011 Survey responses'!BG155,\">1\"))/(COUNTIF('2011 Survey responses'!AQ155,\">1\")+COUNTIF('2011 Survey responses'!AR155,\">1\")+COUNTIF('2011 Survey responses'!BG155,\">1\"))))","v":2},{"$f":"IF(SUM('2011 Survey responses'!AP155:AS155)<4.1,\"\",(AVERAGEIFS('2011 Survey responses'!AP155:AS155,'2011 Survey responses'!AP155:AS155,\">1\")))","v":2},{"$f":"IF(('2011 Survey responses'!AU155+'2011 Survey responses'!AX155+'2011 Survey responses'!BA155+'2011 Survey responses'!BC155+'2011 Survey responses'!BD155)<5.1,\"\",(SUMIF('2011 Survey responses'!AU155,\">1\")+SUMIF('2011 Survey responses'!AX155,\">1\")+SUMIF('2011 Survey responses'!BA155,\">1\")+SUMIF('2011 Survey responses'!BC155,\">1\")+SUMIF('2011 Survey responses'!BD155,\">1\"))/(COUNTIF('2011 Survey responses'!AU155,\">1\")+COUNTIF('2011 Survey responses'!AX155,\">1\")+COUNTIF('2011 Survey responses'!BA155,\">1\")+COUNTIF('2011 Survey responses'!BC155,\">1\")+COUNTIF('2011 Survey responses'!BD155,\">1\")))","v":2},{"$f":"IF(('2011 Survey responses'!AT155)<1.1,\"\",('2011 Survey responses'!AT155))","v":2},{"$f":"IF(SUM('2011 Survey responses'!AV155:AW155)<2.1,\"\",(AVERAGEIFS('2011 Survey responses'!AV155:AW155,'2011 Survey responses'!AV155:AW155,\">1\")))","v":2},{"$f":"IF(('2011 Survey responses'!AW155+'2011 Survey responses'!AY155)<2.1,\"\",(SUMIF('2011 Survey responses'!AW155,\">1\")+SUMIF('2011 Survey responses'!AY155,\">1\"))/(COUNTIF('2011 Survey responses'!AW155,\">1\")+COUNTIF('2011 Survey responses'!AY155,\">1\")))","v":2},{"$f":"IF(('2011 Survey responses'!AZ155)<1.1,\"\",('2011 Survey responses'!AZ155))","v":2},2,1,2,2,{"$f":"IF(('2011 Survey responses'!BE155)<1.1,\"\",('2011 Survey responses'!BE155))","v":2},{"$f":"IF(('2011 Survey responses'!AY155+'2011 Survey responses'!BB155+'2011 Survey responses'!BF155)<3.1,\"\",(SUMIF('2011 Survey responses'!AY155,\">1\")+SUMIF('2011 Survey responses'!BB155,\">1\")+SUMIF('2011 Survey responses'!BF155,\">1\"))/(COUNTIF('2011 Survey responses'!AY155,\">1\")+COUNTIF('2011 Survey responses'!BB155,\">1\")+COUNTIF('2011 Survey responses'!BF155,\">1\")))","v":2},2,{"$f":"IF(SUM('2011 Survey responses'!BT155:BV155)<3.1,\"\",(AVERAGEIFS('2011 Survey responses'!BT155:BV155,'2011 Survey responses'!BT155:BV155,\">1\")))","v":2},{"$f":"IF(SUM('2011 Survey responses'!BW155:CP155)<1,\"\",(AVERAGEIFS('2011 Survey responses'!BW155:CP155,'2011 Survey responses'!BW155:CP155,\">1\")))","v":2},{"$f":"IF(SUM('2011 Survey responses'!BW155:CF155)<1,\"\",(AVERAGEIFS('2011 Survey responses'!BW155:CF155,'2011 Survey responses'!BW155:CF155,\">1\")))","v":2},{"$f":"IF(SUM('2011 Survey responses'!CG155:CP155)<1,\"\",(AVERAGEIFS('2011 Survey responses'!CG155:CP155,'2011 Survey responses'!CG155:CP155,\">1\")))","v":2},{"$f":"IF(SUM('2011 Survey responses'!BX155:CF155)<1,\"\",(AVERAGEIFS('2011 Survey responses'!BX155:CF155,'2011 Survey responses'!BX155:CF155,\">1\")))","v":2},{"$f":"IF(SUM('2011 Survey responses'!CH155:CP155)<1,\"\",(AVERAGEIFS('2011 Survey responses'!CH155:CP155,'2011 Survey responses'!CH155:CP155,\">1\")))","v":2},{"$f":"IF(SUM('2011 Survey responses'!BW155:CP155)<1,\"\",(AVERAGEIFS('2011 Survey responses'!BW155:CP155,'2011 Survey responses'!BW155:CP155,\">1\")))","v":2},{"$f":"IF(('2011 Survey responses'!BW155+'2011 Survey responses'!CG155)<2.1,\"\",(SUMIF('2011 Survey responses'!BW155,\">1\")+SUMIF('2011 Survey responses'!CG155,\">1\"))/(COUNTIF('2011 Survey responses'!BW155,\">1\")+COUNTIF('2011 Survey responses'!CG155,\">1\")))","v":2},{"$f":"IF(('2011 Survey responses'!BX155+'2011 Survey responses'!CH155)<2.1,\"\",(SUMIF('2011 Survey responses'!BX155,\">1\")+SUMIF('2011 Survey responses'!CH155,\">1\"))/(COUNTIF('2011 Survey responses'!BX155,\">1\")+COUNTIF('2011 Survey responses'!CH155,\">1\")))","v":2},{"$f":"IF(('2011 Survey responses'!BY155+'2011 Survey responses'!CI155)<2.1,\"\",(SUMIF('2011 Survey responses'!BY155,\">1\")+SUMIF('2011 Survey responses'!CI155,\">1\"))/(COUNTIF('2011 Survey responses'!BY155,\">1\")+COUNTIF('2011 Survey responses'!CI155,\">1\")))","v":2},{"$f":"IF('2011 Survey responses'!CQ155<0.5,\"\",'2011 Survey responses'!CQ155)","v":1},{"$f":"IF('2011 Survey responses'!CR155<0.5,\"\",'2011 Survey responses'!CR155)","v":1},{"$f":"IF('2011 Survey responses'!CS155<0.5,\"\",'2011 Survey responses'!CS155)","v":1},{"$f":"IF('2011 Survey responses'!CT155<0.5,\"\",'2011 Survey responses'!CT155)","v":1},{"$f":"IF('2011 Survey responses'!CU155<0.5,\"\",'2011 Survey responses'!CU155)","v":3},{"$f":"IF('2011 Survey responses'!CV155<0.5,\"\",'2011 Survey responses'!CV155)","v":1},{"$f":"IF(SUM('2011 Survey responses'!CW155:DL155)<1,\"\",(AVERAGE('2011 Survey responses'!CW155:DL155)))","v":2},{"$f":"IF(SUM('2011 Survey responses'!CW155:CZ155)<1,\"\",(AVERAGE('2011 Survey responses'!CW155:CZ155)))","v":2},{"$f":"IF(SUM('2011 Survey responses'!DA155:DD155)<1,\"\",(AVERAGE('2011 Survey responses'!DA155:DD155)))","v":2},{"$f":"IF(SUM('2011 Survey responses'!DE155:DH155)<1,\"\",(AVERAGE('2011 Survey responses'!DE155:DH155)))","v":2},{"$f":"IF(SUM('2011 Survey responses'!DI155:DL155)<1,\"\",(AVERAGE('2011 Survey responses'!DI155:DL155)))","v":2},{"$f":"IF(('2011 Survey responses'!CW155+'2011 Survey responses'!DA155+'2011 Survey responses'!DE155+'2011 Survey responses'!DI155)<1,\"\",AVERAGE('2011 Survey responses'!CW155,'2011 Survey responses'!DA155,'2011 Survey responses'!DE155,'2011 Survey responses'!DI155))","v":2},{"$f":"IF(('2011 Survey responses'!CX155+'2011 Survey responses'!DB155+'2011 Survey responses'!DF155+'2011 Survey responses'!DJ155)<1,\"\",AVERAGE('2011 Survey responses'!CX155,'2011 Survey responses'!DB155,'2011 Survey responses'!DF155,'2011 Survey responses'!DJ155))","v":2},{"$f":"IF(('2011 Survey responses'!CY155+'2011 Survey responses'!DC155+'2011 Survey responses'!DG155+'2011 Survey responses'!DK155)<1,\"\",AVERAGE('2011 Survey responses'!CY155,'2011 Survey responses'!DC155,'2011 Survey responses'!DG155,'2011 Survey responses'!DK155))","v":2},{"$f":"IF(('2011 Survey responses'!CZ155+'2011 Survey responses'!DD155+'2011 Survey responses'!DH155+'2011 Survey responses'!DL155)<1,\"\",AVERAGE('2011 Survey responses'!CZ155,'2011 Survey responses'!DD155,'2011 Survey responses'!DH155,'2011 Survey responses'!DL155))","v":2},{"$f":"IF('2011 Survey responses'!CW155<0.5,\"\",'2011 Survey responses'!CW155)","v":2},{"$f":"IF('2011 Survey responses'!CX155<0.5,\"\",'2011 Survey responses'!CX155)","v":2},{"$f":"IF('2011 Survey responses'!CY155<0.5,\"\",'2011 Survey responses'!CY155)","v":2},{"$f":"IF('2011 Survey responses'!CZ155<0.5,\"\",'2011 Survey responses'!CZ155)","v":2},{"$f":"IF('2011 Survey responses'!DA155<0.5,\"\",'2011 Survey responses'!DA155)","v":2},{"$f":"IF('2011 Survey responses'!DB155<0.5,\"\",'2011 Survey responses'!DB155)","v":2},{"$f":"IF('2011 Survey responses'!DC155<0.5,\"\",'2011 Survey responses'!DC155)","v":2},{"$f":"IF('2011 Survey responses'!DD155<0.5,\"\",'2011 Survey responses'!DD155)","v":2},{"$f":"IF('2011 Survey responses'!DE155<0.5,\"\",'2011 Survey responses'!DE155)","v":2},{"$f":"IF('2011 Survey responses'!DF155<0.5,\"\",'2011 Survey responses'!DF155)","v":2},{"$f":"IF('2011 Survey responses'!DG155<0.5,\"\",'2011 Survey responses'!DG155)","v":2},{"$f":"IF('2011 Survey responses'!DH155<0.5,\"\",'2011 Survey responses'!DH155)","v":2},{"$f":"IF('2011 Survey responses'!DI155<0.5,\"\",'2011 Survey responses'!DI155)","v":2},{"$f":"IF('2011 Survey responses'!DJ155<0.5,\"\",'2011 Survey responses'!DJ155)","v":2},{"$f":"IF('2011 Survey responses'!DK155<0.5,\"\",'2011 Survey responses'!DK155)","v":2},{"$f":"IF('2011 Survey responses'!DL155<0.5,\"\",'2011 Survey responses'!DL155)","v":2},{"$f":"IF('2011 Survey responses'!DU155=4,4,IF('2011 Survey responses'!DU155=5,4,\"\"))","v":""},{"$f":"IF('2011 Survey responses'!DV155=4,3,IF('2011 Survey responses'!DV155=5,3,\"\"))","v":""},"",{"$f":"IF(CQ155=2,CQ155,IF(CO155=4,CO155,IF(CP155=3,CP155,IF('2011 Survey responses'!GT155=1,1,\"\"))))","v":1},{"$f":"IF('2011 Survey responses'!DO155<0.5,\"\",'2011 Survey responses'!DO155)","v":3},{"$f":"IF('2011 Survey responses'!DP155<0.5,\"\",'2011 Survey responses'!DP155)","v":5},{"$f":"IF('2011 Survey responses'!DQ155<0.5,\"\",'2011 Survey responses'!DQ155)","v":3},{"$f":"IF('2011 Survey responses'!DR155<0.5,\"\",'2011 Survey responses'!DR155)","v":3},{"$f":"IF('2011 Survey responses'!DS155<0.5,\"\",'2011 Survey responses'!DS155)","v":2},{"$f":"IF('2011 Survey responses'!DT155<0.5,\"\",'2011 Survey responses'!DT155)","v":4},{"$f":"IF('2011 Survey responses'!DU155<0.5,\"\",'2011 Survey responses'!DU155)","v":2},{"$f":"IF('2011 Survey responses'!DV155<0.5,\"\",'2011 Survey responses'!DV155)","v":2},{"$f":"IF('2011 Survey responses'!DW155<0.5,\"\",'2011 Survey responses'!DW155)","v":2},{"$f":"IF('2011 Survey responses'!DX155<0.5,\"\",'2011 Survey responses'!DX155)","v":3},{"$f":"IF('2011 Survey responses'!DY155<0.5,\"\",'2011 Survey responses'!DY155)","v":4},{"$f":"IF('2011 Survey responses'!DZ155<0.5,\"\",'2011 Survey responses'!DZ155)","v":3},{"$f":"IF('2011 Survey responses'!EA155<0.5,\"\",'2011 Survey responses'!EA155)","v":3},{"$f":"IF('2011 Survey responses'!EB155<0.5,\"\",'2011 Survey responses'!EB155)","v":5},{"$f":"IF('2011 Survey responses'!EC155<0.5,\"\",'2011 Survey responses'!EC155)","v":3},{"$f":"IF('2011 Survey responses'!ED155<0.5,\"\",'2011 Survey responses'!ED155)","v":4},{"$f":"IF('2011 Survey responses'!EE155<0.5,\"\",'2011 Survey responses'!EE155)","v":4},{"$f":"IF('2011 Survey responses'!EF155<0.5,\"\",'2011 Survey responses'!EF155)","v":4},{"$f":"IF('2011 Survey responses'!EG155<0.5,\"\",'2011 Survey responses'!EG155)","v":3},{"$f":"IF('2011 Survey responses'!EH155<0.5,\"\",'2011 Survey responses'!EH155)","v":3},{"$f":"IF('2011 Survey responses'!EI155<0.5,\"\",'2011 Survey responses'!EI155)","v":4},{"$f":"IF('2011 Survey responses'!EJ155<0.5,\"\",'2011 Survey responses'!EJ155)","v":4},{"$f":"IF('2011 Survey responses'!EK155<0.5,\"\",'2011 Survey responses'!EK155)","v":4},{"$f":"IF('2011 Survey responses'!EL155<0.5,\"\",'2011 Survey responses'!EL155)","v":3},{"$f":"IF('2011 Survey responses'!EM155<0.5,\"\",'2011 Survey responses'!EM155)","v":5},{"$f":"IF('2011 Survey responses'!EN155<0.5,\"\",'2011 Survey responses'!EN155)","v":4},{"$f":"IF('2011 Survey responses'!EO155<0.5,\"\",'2011 Survey responses'!EO155)","v":3},{"$f":"IF('2011 Survey responses'!EP155<0.5,\"\",'2011 Survey responses'!EP155)","v":3},{"$f":"IF(('2011 Survey responses'!EW155+'2011 Survey responses'!EX155)>=2,AVERAGE('2011 Survey responses'!EW155,'2011 Survey responses'!EY155),\"\")","v":4},{"$f":"IF('2011 Survey responses'!EX155<0.5,\"\",'2011 Survey responses'!EX155)","v":4},{"$f":"IF('2011 Survey responses'!EZ155<0.5,\"\",'2011 Survey responses'!EZ155)","v":5},{"$f":"IF('2011 Survey responses'!FB155<0.5,\"\",'2011 Survey responses'!FB155)","v":3},{"$f":"IF('2011 Survey responses'!FD155<0.5,\"\",'2011 Survey responses'!FD155)","v":3},{"$f":"IF('2011 Survey responses'!FC155<0.5,\"\",'2011 Survey responses'!FC155)","v":3},{"$f":"IF(('2011 Survey responses'!EM155+'2011 Survey responses'!EN155)>=2,AVERAGE('2011 Survey responses'!EM155,'2011 Survey responses'!EN155),\"\")","v":4.5},{"$f":"IF('2011 Survey responses'!ES155<0.5,\"\",'2011 Survey responses'!ES155)","v":4},{"$f":"IF(('2011 Survey responses'!ET155+'2011 Survey responses'!EU155)>=2,AVERAGE('2011 Survey responses'!ET155,'2011 Survey responses'!EU155),\"\")","v":4},{"$f":"IF('2011 Survey responses'!EV155<0.5,\"\",'2011 Survey responses'!EV155)","v":4},{"$f":"IF('2011 Survey responses'!FA155<0.5,\"\",'2011 Survey responses'!FA155)","v":4},{"$f":"IF('2011 Survey responses'!ER155<0.5,\"\",'2011 Survey responses'!ER155)","v":4},{"$f":"IF(('2011 Survey responses'!EO155+'2011 Survey responses'!EP155)>=2,AVERAGE('2011 Survey responses'!EO155,'2011 Survey responses'!EP155),\"\")","v":3},{"$f":"IF('2011 Survey responses'!EQ155<0.5,\"\",'2011 Survey responses'!EQ155)","v":2},{"$f":"IF('2011 Survey responses'!ET155<0.5,\"\",'2011 Survey responses'!ET155)","v":4},{"$f":"IF('2011 Survey responses'!EU155<0.5,\"\",'2011 Survey responses'!EU155)","v":4},{"$f":"IF('2011 Survey responses'!EW155<0.5,\"\",'2011 Survey responses'!EW155)","v":4},{"$f":"IF('2011 Survey responses'!EY155<0.5,\"\",'2011 Survey responses'!EY155)","v":4},{"$f":"IF('2011 Survey responses'!FU155<0.5,\"\",'2011 Survey responses'!FU155)","v":4},{"$f":"IF(('2011 Survey responses'!FL155+'2011 Survey responses'!FM155)>=2,AVERAGE('2011 Survey responses'!FL155,'2011 Survey responses'!FM155),\"\")","v":5},{"$f":"IF(('2011 Survey responses'!FO155+'2011 Survey responses'!FQ155)>=2,AVERAGE('2011 Survey responses'!FO155,'2011 Survey responses'!FQ155),\"\")","v":5},{"$f":"IF('2011 Survey responses'!FJ155<0.5,\"\",'2011 Survey responses'!FJ155)","v":4},{"$f":"IF('2011 Survey responses'!FT155<0.5,\"\",'2011 Survey responses'!FT155)","v":4},{"$f":"IF('2011 Survey responses'!FR155<0.5,\"\",'2011 Survey responses'!FR155)","v":5},{"$f":"IF('2011 Survey responses'!FK155<0.5,\"\",'2011 Survey responses'!FK155)","v":5},{"$f":"IF('2011 Survey responses'!FP155<0.5,\"\",'2011 Survey responses'!FP155)","v":5},{"$f":"IF('2011 Survey responses'!FN155<0.5,\"\",'2011 Survey responses'!FN155)","v":5},{"$f":"IF(('2011 Survey responses'!FE155+'2011 Survey responses'!FF155)>=2,AVERAGE('2011 Survey responses'!FE155,'2011 Survey responses'!FF155),\"\")","v":5},{"$f":"IF('2011 Survey responses'!FS155<0.5,\"\",'2011 Survey responses'!FS155)","v":5},{"$f":"IF('2011 Survey responses'!FV155<0.5,\"\",'2011 Survey responses'!FV155)","v":4},{"$f":"IF(('2011 Survey responses'!FG155+'2011 Survey responses'!FH155)>=2,AVERAGE('2011 Survey responses'!FG155,'2011 Survey responses'!FH155),\"\")","v":4.5},{"$f":"IF('2011 Survey responses'!FI155<0.5,\"\",'2011 Survey responses'!FI155)","v":4},{"$f":"IF('2011 Survey responses'!FE155<0.5,\"\",'2011 Survey responses'!FE155)","v":5},{"$f":"IF('2011 Survey responses'!FF155<0.5,\"\",'2011 Survey responses'!FF155)","v":5},{"$f":"IF('2011 Survey responses'!FG155<0.5,\"\",'2011 Survey responses'!FG155)","v":4},{"$f":"IF('2011 Survey responses'!FH155<0.5,\"\",'2011 Survey responses'!FH155)","v":5},{"$f":"IF('2011 Survey responses'!FL155<0.5,\"\",'2011 Survey responses'!FL155)","v":5},{"$f":"IF('2011 Survey responses'!FM155<0.5,\"\",'2011 Survey responses'!FM155)","v":5},{"$f":"IF('2011 Survey responses'!FO155<0.5,\"\",'2011 Survey responses'!FO155)","v":5},{"$f":"IF('2011 Survey responses'!FQ155<0.5,\"\",'2011 Survey responses'!FQ155)","v":5}]
["Singapore",{"$f":"IF(SUM(F156)<1,\"\",AVERAGEIF('2011 Survey responses'!B156:CP156,\">1\"))","v":5.9152542372881358},{"$f":"IF(SUM(F156)<1,\"\",AVERAGEIF('2011 Survey responses'!B156:AO156,\">1\"))","v":5.9047619047619051},{"$f":"IF(SUM(F156)<1,\"\",AVERAGEIF('2011 Survey responses'!B156:BV156,\">1\"))","v":5.8888888888888893},{"$f":"IF(SUM(F156)<1,\"\",AVERAGEIF('2011 Survey responses'!V156:BV156,\">1\"))","v":5.9142857142857146},{"$f":"IF(SUM('2011 Survey responses'!B156:U156)<1,\"\",(AVERAGEIFS('2011 Survey responses'!B156:U156,'2011 Survey responses'!B156:U156,\">1\")))","v":5.8},{"$f":"IF(SUM('2011 Survey responses'!B156:H156)<1,\"\",(AVERAGEIFS('2011 Survey responses'!B156:H156,'2011 Survey responses'!B156:H156,\">1\")))","v":6},{"$f":"IF(SUM('2011 Survey responses'!I156:S156)<1,\"\",(AVERAGEIFS('2011 Survey responses'!I156:S156,'2011 Survey responses'!I156:S156,\">1\")))","v":5.666666666666667},{"$f":"IF(SUM('2011 Survey responses'!T156:U156)<2.1,\"\",(AVERAGEIFS('2011 Survey responses'!T156:U156,'2011 Survey responses'!T156:U156,\">1\")))","v":""},{"$f":"IF(SUM('2011 Survey responses'!B156:C156)<2.1,\"\",((SUMIF('2011 Survey responses'!B156:C156,\">1\")+SUMIF('2011 Survey responses'!F156,\">1\"))/(COUNTIF('2011 Survey responses'!B156:C156,\">1\")+COUNTIF('2011 Survey responses'!F156,\">1\"))))","v":6},{"$f":"IF(SUM('2011 Survey responses'!D156:E156)<2.1,\"\",(AVERAGEIFS('2011 Survey responses'!D156:E156,'2011 Survey responses'!D156:E156,\">1\")))","v":6},{"$f":"IF(('2011 Survey responses'!B156+'2011 Survey responses'!D156)<2.1,\"\",((SUMIF('2011 Survey responses'!B156,\">1\")+SUMIF('2011 Survey responses'!D156,\">1\")+SUMIF('2011 Survey responses'!F156,\">1\")+SUMIF('2011 Survey responses'!K156,\">1\"))/(COUNTIF('2011 Survey responses'!B156,\">1\")+COUNTIF('2011 Survey responses'!D156,\">1\")+COUNTIF('2011 Survey responses'!F156,\">1\")+COUNTIF('2011 Survey responses'!K156,\">1\"))))","v":6},{"$f":"IF(SUM('2011 Survey responses'!G156:H156)<2.1,\"\",(AVERAGEIFS('2011 Survey responses'!G156:H156,'2011 Survey responses'!G156:H156,\">1\")))","v":6},{"$f":"IF(SUM('2011 Survey responses'!F156:G156)<1.5,\"\",MAX('2011 Survey responses'!F156,'2011 Survey responses'!G156))","v":6},{"$f":"IF(SUM('2011 Survey responses'!G156:H156)<1,\"\",MAX('2011 Survey responses'!G156,'2011 Survey responses'!H156))","v":6},{"$f":"IF(SUM('2011 Survey responses'!I156:L156)<4.1,\"\",(AVERAGEIFS('2011 Survey responses'!I156:L156,'2011 Survey responses'!I156:L156,\">1\")))","v":6},{"$f":"IF(SUM('2011 Survey responses'!M156:S156)<4.1,\"\",(AVERAGEIFS('2011 Survey responses'!M156:S156,'2011 Survey responses'!M156:S156,\">1\")))","v":5},{"$f":"IF(SUM('2011 Survey responses'!T156:U156)<2.1,\"\",(AVERAGEIFS('2011 Survey responses'!T156:U156,'2011 Survey responses'!T156:U156,\">1\")))","v":""},{"$f":"IF(SUM('2011 Survey responses'!V156:AO156)<1,\"\",(AVERAGEIFS('2011 Survey responses'!V156:AO156,'2011 Survey responses'!V156:AO156,\">1\")))","v":6},{"$f":"IF(SUM('2011 Survey responses'!V156:AA156)<1,\"\",(AVERAGEIFS('2011 Survey responses'!V156:AA156,'2011 Survey responses'!V156:AA156,\">1\")))","v":6},{"$f":"IF(SUM('2011 Survey responses'!AB156:AH156)<1,\"\",(AVERAGEIFS('2011 Survey responses'!AB156:AH156,'2011 Survey responses'!AB156:AH156,\">1\")))","v":6},{"$f":"IF(SUM('2011 Survey responses'!AI156:AO156)<1,\"\",(AVERAGEIFS('2011 Survey responses'!AI156:AO156,'2011 Survey responses'!AI156:AO156,\">1\")))","v":6},{"$f":"IF(('2011 Survey responses'!Y156+'2011 Survey responses'!AI156+'2011 Survey responses'!AK156)<3.1,\"\",((SUMIF('2011 Survey responses'!Y156,\">1\")+SUMIF('2011 Survey responses'!AI156,\">1\")+SUMIF('2011 Survey responses'!AK156,\">1\")+SUMIF('2011 Survey responses'!AM156,\">1\"))/(COUNTIF('2011 Survey responses'!Y156,\">1\")+COUNTIF('2011 Survey responses'!AI156,\">1\")+COUNTIF('2011 Survey responses'!AK156,\">1\")+COUNTIF('2011 Survey responses'!AM156,\">1\"))))","v":6},{"$f":"IF(('2011 Survey responses'!W156)<1.1,\"\",('2011 Survey responses'!W156))","v":""},{"$f":"IF(('2011 Survey responses'!Y156)<1.1,\"\",('2011 Survey responses'!Y156))","v":""},{"$f":"IF(('2011 Survey responses'!Z156)<1.1,\"\",('2011 Survey responses'!Z156))","v":""},{"$f":"IF(('2011 Survey responses'!V156+'2011 Survey responses'!X156+'2011 Survey responses'!AA156)<3.1,\"\",((SUMIF('2011 Survey responses'!V156,\">1\")+SUMIF('2011 Survey responses'!X156,\">1\")+SUMIF('2011 Survey responses'!AA156,\">1\"))/(COUNTIF('2011 Survey responses'!V156,\">1\")+COUNTIF('2011 Survey responses'!X156,\">1\")+COUNTIF('2011 Survey responses'!AA156,\">1\"))))","v":6},{"$f":"IF(('2011 Survey responses'!V156+'2011 Survey responses'!Y156+'2011 Survey responses'!AA156)<3.1,\"\",((SUMIF('2011 Survey responses'!V156,\">1\")+SUMIF('2011 Survey responses'!Y156,\">1\")+SUMIF('2011 Survey responses'!AA156,\">1\"))/(COUNTIF('2011 Survey responses'!V156,\">1\")+COUNTIF('2011 Survey responses'!Y156,\">1\")+COUNTIF('2011 Survey responses'!AA156,\">1\"))))","v":6},{"$f":"IF(SUM('2011 Survey responses'!AB156:AH156)<1,\"\",(AVERAGEIFS('2011 Survey responses'!AB156:AH156,'2011 Survey responses'!AB156:AH156,\">1\")))","v":6},{"$f":"IF(SUM('2011 Survey responses'!AI156:AO156)<7.1,\"\",(AVERAGEIFS('2011 Survey responses'!AI156:AO156,'2011 Survey responses'!AI156:AO156,\">1\")))","v":6},{"$f":"IF(('2011 Survey responses'!AH156)<1.1,\"\",('2011 Survey responses'!AH156))","v":""},{"$f":"IF(SUM('2011 Survey responses'!AP156:BV156)<1,\"\",(AVERAGEIFS('2011 Survey responses'!AP156:BV156,'2011 Survey responses'!AP156:BV156,\">1\")))","v":5.875},{"$f":"IF(SUM('2011 Survey responses'!AP156:AS156)<4.1,\"\",(AVERAGEIFS('2011 Survey responses'!AP156:AS156,'2011 Survey responses'!AP156:AS156,\">1\")))","v":6},{"$f":"IF(SUM('2011 Survey responses'!AT156:BF156)<1,\"\",(AVERAGEIFS('2011 Survey responses'!AT156:BF156,'2011 Survey responses'!AT156:BF156,\">1\")))","v":6},{"$f":"IF(SUM('2011 Survey responses'!BG156:BO156)<1,\"\",(AVERAGEIFS('2011 Survey responses'!BG156:BO156,'2011 Survey responses'!BG156:BO156,\">1\")))","v":5.5},{"$f":"IF(SUM('2011 Survey responses'!BP156:BS156)<1,\"\",(AVERAGEIFS('2011 Survey responses'!BP156:BS156,'2011 Survey responses'!BP156:BS156,\">1\")))","v":6},{"$f":"IF(SUM('2011 Survey responses'!BT156:BV156)<3.1,\"\",(AVERAGEIFS('2011 Survey responses'!BT156:BV156,'2011 Survey responses'!BT156:BV156,\">1\")))","v":6},{"$f":"IF(('2011 Survey responses'!AQ156+'2011 Survey responses'!AR156+'2011 Survey responses'!BG156)<3.1,\"\",((SUMIF('2011 Survey responses'!AQ156,\">1\")+SUMIF('2011 Survey responses'!AR156,\">1\")+SUMIF('2011 Survey responses'!BG156,\">1\"))/(COUNTIF('2011 Survey responses'!AQ156,\">1\")+COUNTIF('2011 Survey responses'!AR156,\">1\")+COUNTIF('2011 Survey responses'!BG156,\">1\"))))","v":6},{"$f":"IF(SUM('2011 Survey responses'!AP156:AS156)<4.1,\"\",(AVERAGEIFS('2011 Survey responses'!AP156:AS156,'2011 Survey responses'!AP156:AS156,\">1\")))","v":6},{"$f":"IF(('2011 Survey responses'!AU156+'2011 Survey responses'!AX156+'2011 Survey responses'!BA156+'2011 Survey responses'!BC156+'2011 Survey responses'!BD156)<5.1,\"\",(SUMIF('2011 Survey responses'!AU156,\">1\")+SUMIF('2011 Survey responses'!AX156,\">1\")+SUMIF('2011 Survey responses'!BA156,\">1\")+SUMIF('2011 Survey responses'!BC156,\">1\")+SUMIF('2011 Survey responses'!BD156,\">1\"))/(COUNTIF('2011 Survey responses'!AU156,\">1\")+COUNTIF('2011 Survey responses'!AX156,\">1\")+COUNTIF('2011 Survey responses'!BA156,\">1\")+COUNTIF('2011 Survey responses'!BC156,\">1\")+COUNTIF('2011 Survey responses'!BD156,\">1\")))","v":6},{"$f":"IF(('2011 Survey responses'!AT156)<1.1,\"\",('2011 Survey responses'!AT156))","v":""},{"$f":"IF(SUM('2011 Survey responses'!AV156:AW156)<2.1,\"\",(AVERAGEIFS('2011 Survey responses'!AV156:AW156,'2011 Survey responses'!AV156:AW156,\">1\")))","v":6},{"$f":"IF(('2011 Survey responses'!AW156+'2011 Survey responses'!AY156)<2.1,\"\",(SUMIF('2011 Survey responses'!AW156,\">1\")+SUMIF('2011 Survey responses'!AY156,\">1\"))/(COUNTIF('2011 Survey responses'!AW156,\">1\")+COUNTIF('2011 Survey responses'!AY156,\">1\")))","v":6},{"$f":"IF(('2011 Survey responses'!AZ156)<1.1,\"\",('2011 Survey responses'!AZ156))","v":6},6,6,6,6,{"$f":"IF(('2011 Survey responses'!BE156)<1.1,\"\",('2011 Survey responses'!BE156))","v":6},{"$f":"IF(('2011 Survey responses'!AY156+'2011 Survey responses'!BB156+'2011 Survey responses'!BF156)<3.1,\"\",(SUMIF('2011 Survey responses'!AY156,\">1\")+SUMIF('2011 Survey responses'!BB156,\">1\")+SUMIF('2011 Survey responses'!BF156,\">1\"))/(COUNTIF('2011 Survey responses'!AY156,\">1\")+COUNTIF('2011 Survey responses'!BB156,\">1\")+COUNTIF('2011 Survey responses'!BF156,\">1\")))","v":6},5.75,{"$f":"IF(SUM('2011 Survey responses'!BT156:BV156)<3.1,\"\",(AVERAGEIFS('2011 Survey responses'!BT156:BV156,'2011 Survey responses'!BT156:BV156,\">1\")))","v":6},{"$f":"IF(SUM('2011 Survey responses'!BW156:CP156)<1,\"\",(AVERAGEIFS('2011 Survey responses'!BW156:CP156,'2011 Survey responses'!BW156:CP156,\">1\")))","v":6},{"$f":"IF(SUM('2011 Survey responses'!BW156:CF156)<1,\"\",(AVERAGEIFS('2011 Survey responses'!BW156:CF156,'2011 Survey responses'!BW156:CF156,\">1\")))","v":6},{"$f":"IF(SUM('2011 Survey responses'!CG156:CP156)<1,\"\",(AVERAGEIFS('2011 Survey responses'!CG156:CP156,'2011 Survey responses'!CG156:CP156,\">1\")))","v":6},{"$f":"IF(SUM('2011 Survey responses'!BX156:CF156)<1,\"\",(AVERAGEIFS('2011 Survey responses'!BX156:CF156,'2011 Survey responses'!BX156:CF156,\">1\")))","v":6},{"$f":"IF(SUM('2011 Survey responses'!CH156:CP156)<1,\"\",(AVERAGEIFS('2011 Survey responses'!CH156:CP156,'2011 Survey responses'!CH156:CP156,\">1\")))","v":6},{"$f":"IF(SUM('2011 Survey responses'!BW156:CP156)<1,\"\",(AVERAGEIFS('2011 Survey responses'!BW156:CP156,'2011 Survey responses'!BW156:CP156,\">1\")))","v":6},{"$f":"IF(('2011 Survey responses'!BW156+'2011 Survey responses'!CG156)<2.1,\"\",(SUMIF('2011 Survey responses'!BW156,\">1\")+SUMIF('2011 Survey responses'!CG156,\">1\"))/(COUNTIF('2011 Survey responses'!BW156,\">1\")+COUNTIF('2011 Survey responses'!CG156,\">1\")))","v":6},{"$f":"IF(('2011 Survey responses'!BX156+'2011 Survey responses'!CH156)<2.1,\"\",(SUMIF('2011 Survey responses'!BX156,\">1\")+SUMIF('2011 Survey responses'!CH156,\">1\"))/(COUNTIF('2011 Survey responses'!BX156,\">1\")+COUNTIF('2011 Survey responses'!CH156,\">1\")))","v":""},{"$f":"IF(('2011 Survey responses'!BY156+'2011 Survey responses'!CI156)<2.1,\"\",(SUMIF('2011 Survey responses'!BY156,\">1\")+SUMIF('2011 Survey responses'!CI156,\">1\"))/(COUNTIF('2011 Survey responses'!BY156,\">1\")+COUNTIF('2011 Survey responses'!CI156,\">1\")))","v":""},{"$f":"IF('2011 Survey responses'!CQ156<0.5,\"\",'2011 Survey responses'!CQ156)","v":4},{"$f":"IF('2011 Survey responses'!CR156<0.5,\"\",'2011 Survey responses'!CR156)","v":2},{"$f":"IF('2011 Survey responses'!CS156<0.5,\"\",'2011 Survey responses'!CS156)","v":2},{"$f":"IF('2011 Survey responses'!CT156<0.5,\"\",'2011 Survey responses'!CT156)","v":4},{"$f":"IF('2011 Survey responses'!CU156<0.5,\"\",'2011 Survey responses'!CU156)","v":4},{"$f":"IF('2011 Survey responses'!CV156<0.5,\"\",'2011 Survey responses'!CV156)","v":2},{"$f":"IF(SUM('2011 Survey responses'!CW156:DL156)<1,\"\",(AVERAGE('2011 Survey responses'!CW156:DL156)))","v":4.25},{"$f":"IF(SUM('2011 Survey responses'!CW156:CZ156)<1,\"\",(AVERAGE('2011 Survey responses'!CW156:CZ156)))","v":4.25},{"$f":"IF(SUM('2011 Survey responses'!DA156:DD156)<1,\"\",(AVERAGE('2011 Survey responses'!DA156:DD156)))","v":4.25},{"$f":"IF(SUM('2011 Survey responses'!DE156:DH156)<1,\"\",(AVERAGE('2011 Survey responses'!DE156:DH156)))","v":4.25},{"$f":"IF(SUM('2011 Survey responses'!DI156:DL156)<1,\"\",(AVERAGE('2011 Survey responses'!DI156:DL156)))","v":4.25},{"$f":"IF(('2011 Survey responses'!CW156+'2011 Survey responses'!DA156+'2011 Survey responses'!DE156+'2011 Survey responses'!DI156)<1,\"\",AVERAGE('2011 Survey responses'!CW156,'2011 Survey responses'!DA156,'2011 Survey responses'!DE156,'2011 Survey responses'!DI156))","v":5},{"$f":"IF(('2011 Survey responses'!CX156+'2011 Survey responses'!DB156+'2011 Survey responses'!DF156+'2011 Survey responses'!DJ156)<1,\"\",AVERAGE('2011 Survey responses'!CX156,'2011 Survey responses'!DB156,'2011 Survey responses'!DF156,'2011 Survey responses'!DJ156))","v":3},{"$f":"IF(('2011 Survey responses'!CY156+'2011 Survey responses'!DC156+'2011 Survey responses'!DG156+'2011 Survey responses'!DK156)<1,\"\",AVERAGE('2011 Survey responses'!CY156,'2011 Survey responses'!DC156,'2011 Survey responses'!DG156,'2011 Survey responses'!DK156))","v":5},{"$f":"IF(('2011 Survey responses'!CZ156+'2011 Survey responses'!DD156+'2011 Survey responses'!DH156+'2011 Survey responses'!DL156)<1,\"\",AVERAGE('2011 Survey responses'!CZ156,'2011 Survey responses'!DD156,'2011 Survey responses'!DH156,'2011 Survey responses'!DL156))","v":4},{"$f":"IF('2011 Survey responses'!CW156<0.5,\"\",'2011 Survey responses'!CW156)","v":5},{"$f":"IF('2011 Survey responses'!CX156<0.5,\"\",'2011 Survey responses'!CX156)","v":3},{"$f":"IF('2011 Survey responses'!CY156<0.5,\"\",'2011 Survey responses'!CY156)","v":5},{"$f":"IF('2011 Survey responses'!CZ156<0.5,\"\",'2011 Survey responses'!CZ156)","v":4},{"$f":"IF('2011 Survey responses'!DA156<0.5,\"\",'2011 Survey responses'!DA156)","v":5},{"$f":"IF('2011 Survey responses'!DB156<0.5,\"\",'2011 Survey responses'!DB156)","v":3},{"$f":"IF('2011 Survey responses'!DC156<0.5,\"\",'2011 Survey responses'!DC156)","v":5},{"$f":"IF('2011 Survey responses'!DD156<0.5,\"\",'2011 Survey responses'!DD156)","v":4},{"$f":"IF('2011 Survey responses'!DE156<0.5,\"\",'2011 Survey responses'!DE156)","v":5},{"$f":"IF('2011 Survey responses'!DF156<0.5,\"\",'2011 Survey responses'!DF156)","v":3},{"$f":"IF('2011 Survey responses'!DG156<0.5,\"\",'2011 Survey responses'!DG156)","v":5},{"$f":"IF('2011 Survey responses'!DH156<0.5,\"\",'2011 Survey responses'!DH156)","v":4},{"$f":"IF('2011 Survey responses'!DI156<0.5,\"\",'2011 Survey responses'!DI156)","v":5},{"$f":"IF('2011 Survey responses'!DJ156<0.5,\"\",'2011 Survey responses'!DJ156)","v":3},{"$f":"IF('2011 Survey responses'!DK156<0.5,\"\",'2011 Survey responses'!DK156)","v":5},{"$f":"IF('2011 Survey responses'!DL156<0.5,\"\",'2011 Survey responses'!DL156)","v":4},{"$f":"IF('2011 Survey responses'!DU156=4,4,IF('2011 Survey responses'!DU156=5,4,\"\"))","v":""},{"$f":"IF('2011 Survey responses'!DV156=4,3,IF('2011 Survey responses'!DV156=5,3,\"\"))","v":3},"",{"$f":"IF(CQ156=2,CQ156,IF(CO156=4,CO156,IF(CP156=3,CP156,IF('2011 Survey responses'!GT156=1,1,\"\"))))","v":3},{"$f":"IF('2011 Survey responses'!DO156<0.5,\"\",'2011 Survey responses'!DO156)","v":1},{"$f":"IF('2011 Survey responses'!DP156<0.5,\"\",'2011 Survey responses'!DP156)","v":3},{"$f":"IF('2011 Survey responses'!DQ156<0.5,\"\",'2011 Survey responses'!DQ156)","v":4},{"$f":"IF('2011 Survey responses'!DR156<0.5,\"\",'2011 Survey responses'!DR156)","v":3},{"$f":"IF('2011 Survey responses'!DS156<0.5,\"\",'2011 Survey responses'!DS156)","v":1},{"$f":"IF('2011 Survey responses'!DT156<0.5,\"\",'2011 Survey responses'!DT156)","v":3},{"$f":"IF('2011 Survey responses'!DU156<0.5,\"\",'2011 Survey responses'!DU156)","v":3},{"$f":"IF('2011 Survey responses'!DV156<0.5,\"\",'2011 Survey responses'!DV156)","v":4},{"$f":"IF('2011 Survey responses'!DW156<0.5,\"\",'2011 Survey responses'!DW156)","v":3},{"$f":"IF('2011 Survey responses'!DX156<0.5,\"\",'2011 Survey responses'!DX156)","v":1},{"$f":"IF('2011 Survey responses'!DY156<0.5,\"\",'2011 Survey responses'!DY156)","v":3},{"$f":"IF('2011 Survey responses'!DZ156<0.5,\"\",'2011 Survey responses'!DZ156)","v":1},{"$f":"IF('2011 Survey responses'!EA156<0.5,\"\",'2011 Survey responses'!EA156)","v":3},{"$f":"IF('2011 Survey responses'!EB156<0.5,\"\",'2011 Survey responses'!EB156)","v":2},{"$f":"IF('2011 Survey responses'!EC156<0.5,\"\",'2011 Survey responses'!EC156)","v":5},{"$f":"IF('2011 Survey responses'!ED156<0.5,\"\",'2011 Survey responses'!ED156)","v":3},{"$f":"IF('2011 Survey responses'!EE156<0.5,\"\",'2011 Survey responses'!EE156)","v":3},{"$f":"IF('2011 Survey responses'!EF156<0.5,\"\",'2011 Survey responses'!EF156)","v":4},{"$f":"IF('2011 Survey responses'!EG156<0.5,\"\",'2011 Survey responses'!EG156)","v":4},{"$f":"IF('2011 Survey responses'!EH156<0.5,\"\",'2011 Survey responses'!EH156)","v":4},{"$f":"IF('2011 Survey responses'!EI156<0.5,\"\",'2011 Survey responses'!EI156)","v":4},{"$f":"IF('2011 Survey responses'!EJ156<0.5,\"\",'2011 Survey responses'!EJ156)","v":3},{"$f":"IF('2011 Survey responses'!EK156<0.5,\"\",'2011 Survey responses'!EK156)","v":4},{"$f":"IF('2011 Survey responses'!EL156<0.5,\"\",'2011 Survey responses'!EL156)","v":3},{"$f":"IF('2011 Survey responses'!EM156<0.5,\"\",'2011 Survey responses'!EM156)","v":4},{"$f":"IF('2011 Survey responses'!EN156<0.5,\"\",'2011 Survey responses'!EN156)","v":1},{"$f":"IF('2011 Survey responses'!EO156<0.5,\"\",'2011 Survey responses'!EO156)","v":1},{"$f":"IF('2011 Survey responses'!EP156<0.5,\"\",'2011 Survey responses'!EP156)","v":1},{"$f":"IF(('2011 Survey responses'!EW156+'2011 Survey responses'!EX156)>=2,AVERAGE('2011 Survey responses'!EW156,'2011 Survey responses'!EY156),\"\")","v":3},{"$f":"IF('2011 Survey responses'!EX156<0.5,\"\",'2011 Survey responses'!EX156)","v":3},{"$f":"IF('2011 Survey responses'!EZ156<0.5,\"\",'2011 Survey responses'!EZ156)","v":3},{"$f":"IF('2011 Survey responses'!FB156<0.5,\"\",'2011 Survey responses'!FB156)","v":3},{"$f":"IF('2011 Survey responses'!FD156<0.5,\"\",'2011 Survey responses'!FD156)","v":4},{"$f":"IF('2011 Survey responses'!FC156<0.5,\"\",'2011 Survey responses'!FC156)","v":4},{"$f":"IF(('2011 Survey responses'!EM156+'2011 Survey responses'!EN156)>=2,AVERAGE('2011 Survey responses'!EM156,'2011 Survey responses'!EN156),\"\")","v":2.5},{"$f":"IF('2011 Survey responses'!ES156<0.5,\"\",'2011 Survey responses'!ES156)","v":3},{"$f":"IF(('2011 Survey responses'!ET156+'2011 Survey responses'!EU156)>=2,AVERAGE('2011 Survey responses'!ET156,'2011 Survey responses'!EU156),\"\")","v":2.5},{"$f":"IF('2011 Survey responses'!EV156<0.5,\"\",'2011 Survey responses'!EV156)","v":3},{"$f":"IF('2011 Survey responses'!FA156<0.5,\"\",'2011 Survey responses'!FA156)","v":3},{"$f":"IF('2011 Survey responses'!ER156<0.5,\"\",'2011 Survey responses'!ER156)","v":4},{"$f":"IF(('2011 Survey responses'!EO156+'2011 Survey responses'!EP156)>=2,AVERAGE('2011 Survey responses'!EO156,'2011 Survey responses'!EP156),\"\")","v":1},{"$f":"IF('2011 Survey responses'!EQ156<0.5,\"\",'2011 Survey responses'!EQ156)","v":2},{"$f":"IF('2011 Survey responses'!ET156<0.5,\"\",'2011 Survey responses'!ET156)","v":4},{"$f":"IF('2011 Survey responses'!EU156<0.5,\"\",'2011 Survey responses'!EU156)","v":1},{"$f":"IF('2011 Survey responses'!EW156<0.5,\"\",'2011 Survey responses'!EW156)","v":3},{"$f":"IF('2011 Survey responses'!EY156<0.5,\"\",'2011 Survey responses'!EY156)","v":3},{"$f":"IF('2011 Survey responses'!FU156<0.5,\"\",'2011 Survey responses'!FU156)","v":5},{"$f":"IF(('2011 Survey responses'!FL156+'2011 Survey responses'!FM156)>=2,AVERAGE('2011 Survey responses'!FL156,'2011 Survey responses'!FM156),\"\")","v":4},{"$f":"IF(('2011 Survey responses'!FO156+'2011 Survey responses'!FQ156)>=2,AVERAGE('2011 Survey responses'!FO156,'2011 Survey responses'!FQ156),\"\")","v":4},{"$f":"IF('2011 Survey responses'!FJ156<0.5,\"\",'2011 Survey responses'!FJ156)","v":5},{"$f":"IF('2011 Survey responses'!FT156<0.5,\"\",'2011 Survey responses'!FT156)","v":4},{"$f":"IF('2011 Survey responses'!FR156<0.5,\"\",'2011 Survey responses'!FR156)","v":4},{"$f":"IF('2011 Survey responses'!FK156<0.5,\"\",'2011 Survey responses'!FK156)","v":5},{"$f":"IF('2011 Survey responses'!FP156<0.5,\"\",'2011 Survey responses'!FP156)","v":3},{"$f":"IF('2011 Survey responses'!FN156<0.5,\"\",'2011 Survey responses'!FN156)","v":4},{"$f":"IF(('2011 Survey responses'!FE156+'2011 Survey responses'!FF156)>=2,AVERAGE('2011 Survey responses'!FE156,'2011 Survey responses'!FF156),\"\")","v":3.5},{"$f":"IF('2011 Survey responses'!FS156<0.5,\"\",'2011 Survey responses'!FS156)","v":4},{"$f":"IF('2011 Survey responses'!FV156<0.5,\"\",'2011 Survey responses'!FV156)","v":4},{"$f":"IF(('2011 Survey responses'!FG156+'2011 Survey responses'!FH156)>=2,AVERAGE('2011 Survey responses'!FG156,'2011 Survey responses'!FH156),\"\")","v":3},{"$f":"IF('2011 Survey responses'!FI156<0.5,\"\",'2011 Survey responses'!FI156)","v":4},{"$f":"IF('2011 Survey responses'!FE156<0.5,\"\",'2011 Survey responses'!FE156)","v":4},{"$f":"IF('2011 Survey responses'!FF156<0.5,\"\",'2011 Survey responses'!FF156)","v":3},{"$f":"IF('2011 Survey responses'!FG156<0.5,\"\",'2011 Survey responses'!FG156)","v":3},{"$f":"IF('2011 Survey responses'!FH156<0.5,\"\",'2011 Survey responses'!FH156)","v":3},{"$f":"IF('2011 Survey responses'!FL156<0.5,\"\",'2011 Survey responses'!FL156)","v":5},{"$f":"IF('2011 Survey responses'!FM156<0.5,\"\",'2011 Survey responses'!FM156)","v":3},{"$f":"IF('2011 Survey responses'!FO156<0.5,\"\",'2011 Survey responses'!FO156)","v":5},{"$f":"IF('2011 Survey responses'!FQ156<0.5,\"\",'2011 Survey responses'!FQ156)","v":3}]
["Slovakia",{"$f":"IF(SUM(F157)<1,\"\",AVERAGEIF('2011 Survey responses'!B157:CP157,\">1\"))","v":4.7249999999999996},{"$f":"IF(SUM(F157)<1,\"\",AVERAGEIF('2011 Survey responses'!B157:AO157,\">1\"))","v":5},{"$f":"IF(SUM(F157)<1,\"\",AVERAGEIF('2011 Survey responses'!B157:BV157,\">1\"))","v":4.7878787878787881},{"$f":"IF(SUM(F157)<1,\"\",AVERAGEIF('2011 Survey responses'!V157:BV157,\">1\"))","v":4.72},{"$f":"IF(SUM('2011 Survey responses'!B157:U157)<1,\"\",(AVERAGEIFS('2011 Survey responses'!B157:U157,'2011 Survey responses'!B157:U157,\">1\")))","v":5},{"$f":"IF(SUM('2011 Survey responses'!B157:H157)<1,\"\",(AVERAGEIFS('2011 Survey responses'!B157:H157,'2011 Survey responses'!B157:H157,\">1\")))","v":5},{"$f":"IF(SUM('2011 Survey responses'!I157:S157)<1,\"\",(AVERAGEIFS('2011 Survey responses'!I157:S157,'2011 Survey responses'!I157:S157,\">1\")))","v":5},{"$f":"IF(SUM('2011 Survey responses'!T157:U157)<2.1,\"\",(AVERAGEIFS('2011 Survey responses'!T157:U157,'2011 Survey responses'!T157:U157,\">1\")))","v":5},{"$f":"IF(SUM('2011 Survey responses'!B157:C157)<2.1,\"\",((SUMIF('2011 Survey responses'!B157:C157,\">1\")+SUMIF('2011 Survey responses'!F157,\">1\"))/(COUNTIF('2011 Survey responses'!B157:C157,\">1\")+COUNTIF('2011 Survey responses'!F157,\">1\"))))","v":5},{"$f":"IF(SUM('2011 Survey responses'!D157:E157)<2.1,\"\",(AVERAGEIFS('2011 Survey responses'!D157:E157,'2011 Survey responses'!D157:E157,\">1\")))","v":5},{"$f":"IF(('2011 Survey responses'!B157+'2011 Survey responses'!D157)<2.1,\"\",((SUMIF('2011 Survey responses'!B157,\">1\")+SUMIF('2011 Survey responses'!D157,\">1\")+SUMIF('2011 Survey responses'!F157,\">1\")+SUMIF('2011 Survey responses'!K157,\">1\"))/(COUNTIF('2011 Survey responses'!B157,\">1\")+COUNTIF('2011 Survey responses'!D157,\">1\")+COUNTIF('2011 Survey responses'!F157,\">1\")+COUNTIF('2011 Survey responses'!K157,\">1\"))))","v":5},{"$f":"IF(SUM('2011 Survey responses'!G157:H157)<2.1,\"\",(AVERAGEIFS('2011 Survey responses'!G157:H157,'2011 Survey responses'!G157:H157,\">1\")))","v":5},{"$f":"IF(SUM('2011 Survey responses'!F157:G157)<1.5,\"\",MAX('2011 Survey responses'!F157,'2011 Survey responses'!G157))","v":5},{"$f":"IF(SUM('2011 Survey responses'!G157:H157)<1,\"\",MAX('2011 Survey responses'!G157,'2011 Survey responses'!H157))","v":5},{"$f":"IF(SUM('2011 Survey responses'!I157:L157)<4.1,\"\",(AVERAGEIFS('2011 Survey responses'!I157:L157,'2011 Survey responses'!I157:L157,\">1\")))","v":5},{"$f":"IF(SUM('2011 Survey responses'!M157:S157)<4.1,\"\",(AVERAGEIFS('2011 Survey responses'!M157:S157,'2011 Survey responses'!M157:S157,\">1\")))","v":5},{"$f":"IF(SUM('2011 Survey responses'!T157:U157)<2.1,\"\",(AVERAGEIFS('2011 Survey responses'!T157:U157,'2011 Survey responses'!T157:U157,\">1\")))","v":5},{"$f":"IF(SUM('2011 Survey responses'!V157:AO157)<1,\"\",(AVERAGEIFS('2011 Survey responses'!V157:AO157,'2011 Survey responses'!V157:AO157,\">1\")))","v":5},{"$f":"IF(SUM('2011 Survey responses'!V157:AA157)<1,\"\",(AVERAGEIFS('2011 Survey responses'!V157:AA157,'2011 Survey responses'!V157:AA157,\">1\")))","v":5},{"$f":"IF(SUM('2011 Survey responses'!AB157:AH157)<1,\"\",(AVERAGEIFS('2011 Survey responses'!AB157:AH157,'2011 Survey responses'!AB157:AH157,\">1\")))","v":5},{"$f":"IF(SUM('2011 Survey responses'!AI157:AO157)<1,\"\",(AVERAGEIFS('2011 Survey responses'!AI157:AO157,'2011 Survey responses'!AI157:AO157,\">1\")))","v":5},{"$f":"IF(('2011 Survey responses'!Y157+'2011 Survey responses'!AI157+'2011 Survey responses'!AK157)<3.1,\"\",((SUMIF('2011 Survey responses'!Y157,\">1\")+SUMIF('2011 Survey responses'!AI157,\">1\")+SUMIF('2011 Survey responses'!AK157,\">1\")+SUMIF('2011 Survey responses'!AM157,\">1\"))/(COUNTIF('2011 Survey responses'!Y157,\">1\")+COUNTIF('2011 Survey responses'!AI157,\">1\")+COUNTIF('2011 Survey responses'!AK157,\">1\")+COUNTIF('2011 Survey responses'!AM157,\">1\"))))","v":5},{"$f":"IF(('2011 Survey responses'!W157)<1.1,\"\",('2011 Survey responses'!W157))","v":5},{"$f":"IF(('2011 Survey responses'!Y157)<1.1,\"\",('2011 Survey responses'!Y157))","v":5},{"$f":"IF(('2011 Survey responses'!Z157)<1.1,\"\",('2011 Survey responses'!Z157))","v":5},{"$f":"IF(('2011 Survey responses'!V157+'2011 Survey responses'!X157+'2011 Survey responses'!AA157)<3.1,\"\",((SUMIF('2011 Survey responses'!V157,\">1\")+SUMIF('2011 Survey responses'!X157,\">1\")+SUMIF('2011 Survey responses'!AA157,\">1\"))/(COUNTIF('2011 Survey responses'!V157,\">1\")+COUNTIF('2011 Survey responses'!X157,\">1\")+COUNTIF('2011 Survey responses'!AA157,\">1\"))))","v":5},{"$f":"IF(('2011 Survey responses'!V157+'2011 Survey responses'!Y157+'2011 Survey responses'!AA157)<3.1,\"\",((SUMIF('2011 Survey responses'!V157,\">1\")+SUMIF('2011 Survey responses'!Y157,\">1\")+SUMIF('2011 Survey responses'!AA157,\">1\"))/(COUNTIF('2011 Survey responses'!V157,\">1\")+COUNTIF('2011 Survey responses'!Y157,\">1\")+COUNTIF('2011 Survey responses'!AA157,\">1\"))))","v":5},{"$f":"IF(SUM('2011 Survey responses'!AB157:AH157)<1,\"\",(AVERAGEIFS('2011 Survey responses'!AB157:AH157,'2011 Survey responses'!AB157:AH157,\">1\")))","v":5},{"$f":"IF(SUM('2011 Survey responses'!AI157:AO157)<7.1,\"\",(AVERAGEIFS('2011 Survey responses'!AI157:AO157,'2011 Survey responses'!AI157:AO157,\">1\")))","v":5},{"$f":"IF(('2011 Survey responses'!AH157)<1.1,\"\",('2011 Survey responses'!AH157))","v":5},{"$f":"IF(SUM('2011 Survey responses'!AP157:BV157)<1,\"\",(AVERAGEIFS('2011 Survey responses'!AP157:BV157,'2011 Survey responses'!AP157:BV157,\">1\")))","v":4.5757575757575761},{"$f":"IF(SUM('2011 Survey responses'!AP157:AS157)<4.1,\"\",(AVERAGEIFS('2011 Survey responses'!AP157:AS157,'2011 Survey responses'!AP157:AS157,\">1\")))","v":4.75},{"$f":"IF(SUM('2011 Survey responses'!AT157:BF157)<1,\"\",(AVERAGEIFS('2011 Survey responses'!AT157:BF157,'2011 Survey responses'!AT157:BF157,\">1\")))","v":4.6923076923076925},{"$f":"IF(SUM('2011 Survey responses'!BG157:BO157)<1,\"\",(AVERAGEIFS('2011 Survey responses'!BG157:BO157,'2011 Survey responses'!BG157:BO157,\">1\")))","v":4.8888888888888893},{"$f":"IF(SUM('2011 Survey responses'!BP157:BS157)<1,\"\",(AVERAGEIFS('2011 Survey responses'!BP157:BS157,'2011 Survey responses'!BP157:BS157,\">1\")))","v":4},{"$f":"IF(SUM('2011 Survey responses'!BT157:BV157)<3.1,\"\",(AVERAGEIFS('2011 Survey responses'!BT157:BV157,'2011 Survey responses'!BT157:BV157,\">1\")))","v":3.6666666666666665},{"$f":"IF(('2011 Survey responses'!AQ157+'2011 Survey responses'!AR157+'2011 Survey responses'!BG157)<3.1,\"\",((SUMIF('2011 Survey responses'!AQ157,\">1\")+SUMIF('2011 Survey responses'!AR157,\">1\")+SUMIF('2011 Survey responses'!BG157,\">1\"))/(COUNTIF('2011 Survey responses'!AQ157,\">1\")+COUNTIF('2011 Survey responses'!AR157,\">1\")+COUNTIF('2011 Survey responses'!BG157,\">1\"))))","v":5},{"$f":"IF(SUM('2011 Survey responses'!AP157:AS157)<4.1,\"\",(AVERAGEIFS('2011 Survey responses'!AP157:AS157,'2011 Survey responses'!AP157:AS157,\">1\")))","v":4.75},{"$f":"IF(('2011 Survey responses'!AU157+'2011 Survey responses'!AX157+'2011 Survey responses'!BA157+'2011 Survey responses'!BC157+'2011 Survey responses'!BD157)<5.1,\"\",(SUMIF('2011 Survey responses'!AU157,\">1\")+SUMIF('2011 Survey responses'!AX157,\">1\")+SUMIF('2011 Survey responses'!BA157,\">1\")+SUMIF('2011 Survey responses'!BC157,\">1\")+SUMIF('2011 Survey responses'!BD157,\">1\"))/(COUNTIF('2011 Survey responses'!AU157,\">1\")+COUNTIF('2011 Survey responses'!AX157,\">1\")+COUNTIF('2011 Survey responses'!BA157,\">1\")+COUNTIF('2011 Survey responses'!BC157,\">1\")+COUNTIF('2011 Survey responses'!BD157,\">1\")))","v":4.5999999999999996},{"$f":"IF(('2011 Survey responses'!AT157)<1.1,\"\",('2011 Survey responses'!AT157))","v":5},{"$f":"IF(SUM('2011 Survey responses'!AV157:AW157)<2.1,\"\",(AVERAGEIFS('2011 Survey responses'!AV157:AW157,'2011 Survey responses'!AV157:AW157,\">1\")))","v":4.5},{"$f":"IF(('2011 Survey responses'!AW157+'2011 Survey responses'!AY157)<2.1,\"\",(SUMIF('2011 Survey responses'!AW157,\">1\")+SUMIF('2011 Survey responses'!AY157,\">1\"))/(COUNTIF('2011 Survey responses'!AW157,\">1\")+COUNTIF('2011 Survey responses'!AY157,\">1\")))","v":5},{"$f":"IF(('2011 Survey responses'!AZ157)<1.1,\"\",('2011 Survey responses'!AZ157))","v":5},5,3,2,2,{"$f":"IF(('2011 Survey responses'!BE157)<1.1,\"\",('2011 Survey responses'!BE157))","v":5},{"$f":"IF(('2011 Survey responses'!AY157+'2011 Survey responses'!BB157+'2011 Survey responses'!BF157)<3.1,\"\",(SUMIF('2011 Survey responses'!AY157,\">1\")+SUMIF('2011 Survey responses'!BB157,\">1\")+SUMIF('2011 Survey responses'!BF157,\">1\"))/(COUNTIF('2011 Survey responses'!AY157,\">1\")+COUNTIF('2011 Survey responses'!BB157,\">1\")+COUNTIF('2011 Survey responses'!BF157,\">1\")))","v":4.666666666666667},4.4444444444444446,{"$f":"IF(SUM('2011 Survey responses'!BT157:BV157)<3.1,\"\",(AVERAGEIFS('2011 Survey responses'!BT157:BV157,'2011 Survey responses'!BT157:BV157,\">1\")))","v":3.6666666666666665},{"$f":"IF(SUM('2011 Survey responses'!BW157:CP157)<1,\"\",(AVERAGEIFS('2011 Survey responses'!BW157:CP157,'2011 Survey responses'!BW157:CP157,\">1\")))","v":4.4285714285714288},{"$f":"IF(SUM('2011 Survey responses'!BW157:CF157)<1,\"\",(AVERAGEIFS('2011 Survey responses'!BW157:CF157,'2011 Survey responses'!BW157:CF157,\">1\")))","v":4.5714285714285712},{"$f":"IF(SUM('2011 Survey responses'!CG157:CP157)<1,\"\",(AVERAGEIFS('2011 Survey responses'!CG157:CP157,'2011 Survey responses'!CG157:CP157,\">1\")))","v":4.2857142857142856},{"$f":"IF(SUM('2011 Survey responses'!BX157:CF157)<1,\"\",(AVERAGEIFS('2011 Survey responses'!BX157:CF157,'2011 Survey responses'!BX157:CF157,\">1\")))","v":4.5},{"$f":"IF(SUM('2011 Survey responses'!CH157:CP157)<1,\"\",(AVERAGEIFS('2011 Survey responses'!CH157:CP157,'2011 Survey responses'!CH157:CP157,\">1\")))","v":4.166666666666667},{"$f":"IF(SUM('2011 Survey responses'!BW157:CP157)<1,\"\",(AVERAGEIFS('2011 Survey responses'!BW157:CP157,'2011 Survey responses'!BW157:CP157,\">1\")))","v":4.4285714285714288},{"$f":"IF(('2011 Survey responses'!BW157+'2011 Survey responses'!CG157)<2.1,\"\",(SUMIF('2011 Survey responses'!BW157,\">1\")+SUMIF('2011 Survey responses'!CG157,\">1\"))/(COUNTIF('2011 Survey responses'!BW157,\">1\")+COUNTIF('2011 Survey responses'!CG157,\">1\")))","v":5},{"$f":"IF(('2011 Survey responses'!BX157+'2011 Survey responses'!CH157)<2.1,\"\",(SUMIF('2011 Survey responses'!BX157,\">1\")+SUMIF('2011 Survey responses'!CH157,\">1\"))/(COUNTIF('2011 Survey responses'!BX157,\">1\")+COUNTIF('2011 Survey responses'!CH157,\">1\")))","v":""},{"$f":"IF(('2011 Survey responses'!BY157+'2011 Survey responses'!CI157)<2.1,\"\",(SUMIF('2011 Survey responses'!BY157,\">1\")+SUMIF('2011 Survey responses'!CI157,\">1\"))/(COUNTIF('2011 Survey responses'!BY157,\">1\")+COUNTIF('2011 Survey responses'!CI157,\">1\")))","v":""},{"$f":"IF('2011 Survey responses'!CQ157<0.5,\"\",'2011 Survey responses'!CQ157)","v":""},{"$f":"IF('2011 Survey responses'!CR157<0.5,\"\",'2011 Survey responses'!CR157)","v":""},{"$f":"IF('2011 Survey responses'!CS157<0.5,\"\",'2011 Survey responses'!CS157)","v":4},{"$f":"IF('2011 Survey responses'!CT157<0.5,\"\",'2011 Survey responses'!CT157)","v":4},{"$f":"IF('2011 Survey responses'!CU157<0.5,\"\",'2011 Survey responses'!CU157)","v":5},{"$f":"IF('2011 Survey responses'!CV157<0.5,\"\",'2011 Survey responses'!CV157)","v":""},{"$f":"IF(SUM('2011 Survey responses'!CW157:DL157)<1,\"\",(AVERAGE('2011 Survey responses'!CW157:DL157)))","v":3.5625},{"$f":"IF(SUM('2011 Survey responses'!CW157:CZ157)<1,\"\",(AVERAGE('2011 Survey responses'!CW157:CZ157)))","v":4.25},{"$f":"IF(SUM('2011 Survey responses'!DA157:DD157)<1,\"\",(AVERAGE('2011 Survey responses'!DA157:DD157)))","v":3.25},{"$f":"IF(SUM('2011 Survey responses'!DE157:DH157)<1,\"\",(AVERAGE('2011 Survey responses'!DE157:DH157)))","v":3.25},{"$f":"IF(SUM('2011 Survey responses'!DI157:DL157)<1,\"\",(AVERAGE('2011 Survey responses'!DI157:DL157)))","v":3.5},{"$f":"IF(('2011 Survey responses'!CW157+'2011 Survey responses'!DA157+'2011 Survey responses'!DE157+'2011 Survey responses'!DI157)<1,\"\",AVERAGE('2011 Survey responses'!CW157,'2011 Survey responses'!DA157,'2011 Survey responses'!DE157,'2011 Survey responses'!DI157))","v":3.25},{"$f":"IF(('2011 Survey responses'!CX157+'2011 Survey responses'!DB157+'2011 Survey responses'!DF157+'2011 Survey responses'!DJ157)<1,\"\",AVERAGE('2011 Survey responses'!CX157,'2011 Survey responses'!DB157,'2011 Survey responses'!DF157,'2011 Survey responses'!DJ157))","v":3},{"$f":"IF(('2011 Survey responses'!CY157+'2011 Survey responses'!DC157+'2011 Survey responses'!DG157+'2011 Survey responses'!DK157)<1,\"\",AVERAGE('2011 Survey responses'!CY157,'2011 Survey responses'!DC157,'2011 Survey responses'!DG157,'2011 Survey responses'!DK157))","v":4.25},{"$f":"IF(('2011 Survey responses'!CZ157+'2011 Survey responses'!DD157+'2011 Survey responses'!DH157+'2011 Survey responses'!DL157)<1,\"\",AVERAGE('2011 Survey responses'!CZ157,'2011 Survey responses'!DD157,'2011 Survey responses'!DH157,'2011 Survey responses'!DL157))","v":3.75},{"$f":"IF('2011 Survey responses'!CW157<0.5,\"\",'2011 Survey responses'!CW157)","v":4},{"$f":"IF('2011 Survey responses'!CX157<0.5,\"\",'2011 Survey responses'!CX157)","v":3},{"$f":"IF('2011 Survey responses'!CY157<0.5,\"\",'2011 Survey responses'!CY157)","v":5},{"$f":"IF('2011 Survey responses'!CZ157<0.5,\"\",'2011 Survey responses'!CZ157)","v":5},{"$f":"IF('2011 Survey responses'!DA157<0.5,\"\",'2011 Survey responses'!DA157)","v":3},{"$f":"IF('2011 Survey responses'!DB157<0.5,\"\",'2011 Survey responses'!DB157)","v":3},{"$f":"IF('2011 Survey responses'!DC157<0.5,\"\",'2011 Survey responses'!DC157)","v":4},{"$f":"IF('2011 Survey responses'!DD157<0.5,\"\",'2011 Survey responses'!DD157)","v":3},{"$f":"IF('2011 Survey responses'!DE157<0.5,\"\",'2011 Survey responses'!DE157)","v":3},{"$f":"IF('2011 Survey responses'!DF157<0.5,\"\",'2011 Survey responses'!DF157)","v":3},{"$f":"IF('2011 Survey responses'!DG157<0.5,\"\",'2011 Survey responses'!DG157)","v":4},{"$f":"IF('2011 Survey responses'!DH157<0.5,\"\",'2011 Survey responses'!DH157)","v":3},{"$f":"IF('2011 Survey responses'!DI157<0.5,\"\",'2011 Survey responses'!DI157)","v":3},{"$f":"IF('2011 Survey responses'!DJ157<0.5,\"\",'2011 Survey responses'!DJ157)","v":3},{"$f":"IF('2011 Survey responses'!DK157<0.5,\"\",'2011 Survey responses'!DK157)","v":4},{"$f":"IF('2011 Survey responses'!DL157<0.5,\"\",'2011 Survey responses'!DL157)","v":4},{"$f":"IF('2011 Survey responses'!DU157=4,4,IF('2011 Survey responses'!DU157=5,4,\"\"))","v":4},{"$f":"IF('2011 Survey responses'!DV157=4,3,IF('2011 Survey responses'!DV157=5,3,\"\"))","v":""},"",{"$f":"IF(CQ157=2,CQ157,IF(CO157=4,CO157,IF(CP157=3,CP157,IF('2011 Survey responses'!GT157=1,1,\"\"))))","v":4},{"$f":"IF('2011 Survey responses'!DO157<0.5,\"\",'2011 Survey responses'!DO157)","v":4},{"$f":"IF('2011 Survey responses'!DP157<0.5,\"\",'2011 Survey responses'!DP157)","v":5},{"$f":"IF('2011 Survey responses'!DQ157<0.5,\"\",'2011 Survey responses'!DQ157)","v":3},{"$f":"IF('2011 Survey responses'!DR157<0.5,\"\",'2011 Survey responses'!DR157)","v":4},{"$f":"IF('2011 Survey responses'!DS157<0.5,\"\",'2011 Survey responses'!DS157)","v":4},{"$f":"IF('2011 Survey responses'!DT157<0.5,\"\",'2011 Survey responses'!DT157)","v":3},{"$f":"IF('2011 Survey responses'!DU157<0.5,\"\",'2011 Survey responses'!DU157)","v":5},{"$f":"IF('2011 Survey responses'!DV157<0.5,\"\",'2011 Survey responses'!DV157)","v":3},{"$f":"IF('2011 Survey responses'!DW157<0.5,\"\",'2011 Survey responses'!DW157)","v":2},{"$f":"IF('2011 Survey responses'!DX157<0.5,\"\",'2011 Survey responses'!DX157)","v":3},{"$f":"IF('2011 Survey responses'!DY157<0.5,\"\",'2011 Survey responses'!DY157)","v":""},{"$f":"IF('2011 Survey responses'!DZ157<0.5,\"\",'2011 Survey responses'!DZ157)","v":""},{"$f":"IF('2011 Survey responses'!EA157<0.5,\"\",'2011 Survey responses'!EA157)","v":3},{"$f":"IF('2011 Survey responses'!EB157<0.5,\"\",'2011 Survey responses'!EB157)","v":3},{"$f":"IF('2011 Survey responses'!EC157<0.5,\"\",'2011 Survey responses'!EC157)","v":3},{"$f":"IF('2011 Survey responses'!ED157<0.5,\"\",'2011 Survey responses'!ED157)","v":4},{"$f":"IF('2011 Survey responses'!EE157<0.5,\"\",'2011 Survey responses'!EE157)","v":5},{"$f":"IF('2011 Survey responses'!EF157<0.5,\"\",'2011 Survey responses'!EF157)","v":4},{"$f":"IF('2011 Survey responses'!EG157<0.5,\"\",'2011 Survey responses'!EG157)","v":5},{"$f":"IF('2011 Survey responses'!EH157<0.5,\"\",'2011 Survey responses'!EH157)","v":4},{"$f":"IF('2011 Survey responses'!EI157<0.5,\"\",'2011 Survey responses'!EI157)","v":4},{"$f":"IF('2011 Survey responses'!EJ157<0.5,\"\",'2011 Survey responses'!EJ157)","v":4},{"$f":"IF('2011 Survey responses'!EK157<0.5,\"\",'2011 Survey responses'!EK157)","v":4},{"$f":"IF('2011 Survey responses'!EL157<0.5,\"\",'2011 Survey responses'!EL157)","v":5},{"$f":"IF('2011 Survey responses'!EM157<0.5,\"\",'2011 Survey responses'!EM157)","v":5},{"$f":"IF('2011 Survey responses'!EN157<0.5,\"\",'2011 Survey responses'!EN157)","v":""},{"$f":"IF('2011 Survey responses'!EO157<0.5,\"\",'2011 Survey responses'!EO157)","v":5},{"$f":"IF('2011 Survey responses'!EP157<0.5,\"\",'2011 Survey responses'!EP157)","v":""},{"$f":"IF(('2011 Survey responses'!EW157+'2011 Survey responses'!EX157)>=2,AVERAGE('2011 Survey responses'!EW157,'2011 Survey responses'!EY157),\"\")","v":5},{"$f":"IF('2011 Survey responses'!EX157<0.5,\"\",'2011 Survey responses'!EX157)","v":5},{"$f":"IF('2011 Survey responses'!EZ157<0.5,\"\",'2011 Survey responses'!EZ157)","v":4},{"$f":"IF('2011 Survey responses'!FB157<0.5,\"\",'2011 Survey responses'!FB157)","v":4},{"$f":"IF('2011 Survey responses'!FD157<0.5,\"\",'2011 Survey responses'!FD157)","v":4},{"$f":"IF('2011 Survey responses'!FC157<0.5,\"\",'2011 Survey responses'!FC157)","v":4},{"$f":"IF(('2011 Survey responses'!EM157+'2011 Survey responses'!EN157)>=2,AVERAGE('2011 Survey responses'!EM157,'2011 Survey responses'!EN157),\"\")","v":5},{"$f":"IF('2011 Survey responses'!ES157<0.5,\"\",'2011 Survey responses'!ES157)","v":4},{"$f":"IF(('2011 Survey responses'!ET157+'2011 Survey responses'!EU157)>=2,AVERAGE('2011 Survey responses'!ET157,'2011 Survey responses'!EU157),\"\")","v":5},{"$f":"IF('2011 Survey responses'!EV157<0.5,\"\",'2011 Survey responses'!EV157)","v":5},{"$f":"IF('2011 Survey responses'!FA157<0.5,\"\",'2011 Survey responses'!FA157)","v":4},{"$f":"IF('2011 Survey responses'!ER157<0.5,\"\",'2011 Survey responses'!ER157)","v":3},{"$f":"IF(('2011 Survey responses'!EO157+'2011 Survey responses'!EP157)>=2,AVERAGE('2011 Survey responses'!EO157,'2011 Survey responses'!EP157),\"\")","v":5},{"$f":"IF('2011 Survey responses'!EQ157<0.5,\"\",'2011 Survey responses'!EQ157)","v":3},{"$f":"IF('2011 Survey responses'!ET157<0.5,\"\",'2011 Survey responses'!ET157)","v":5},{"$f":"IF('2011 Survey responses'!EU157<0.5,\"\",'2011 Survey responses'!EU157)","v":""},{"$f":"IF('2011 Survey responses'!EW157<0.5,\"\",'2011 Survey responses'!EW157)","v":5},{"$f":"IF('2011 Survey responses'!EY157<0.5,\"\",'2011 Survey responses'!EY157)","v":5},{"$f":"IF('2011 Survey responses'!FU157<0.5,\"\",'2011 Survey responses'!FU157)","v":4},{"$f":"IF(('2011 Survey responses'!FL157+'2011 Survey responses'!FM157)>=2,AVERAGE('2011 Survey responses'!FL157,'2011 Survey responses'!FM157),\"\")","v":3},{"$f":"IF(('2011 Survey responses'!FO157+'2011 Survey responses'!FQ157)>=2,AVERAGE('2011 Survey responses'!FO157,'2011 Survey responses'!FQ157),\"\")","v":4},{"$f":"IF('2011 Survey responses'!FJ157<0.5,\"\",'2011 Survey responses'!FJ157)","v":5},{"$f":"IF('2011 Survey responses'!FT157<0.5,\"\",'2011 Survey responses'!FT157)","v":4},{"$f":"IF('2011 Survey responses'!FR157<0.5,\"\",'2011 Survey responses'!FR157)","v":4},{"$f":"IF('2011 Survey responses'!FK157<0.5,\"\",'2011 Survey responses'!FK157)","v":4},{"$f":"IF('2011 Survey responses'!FP157<0.5,\"\",'2011 Survey responses'!FP157)","v":4},{"$f":"IF('2011 Survey responses'!FN157<0.5,\"\",'2011 Survey responses'!FN157)","v":3},{"$f":"IF(('2011 Survey responses'!FE157+'2011 Survey responses'!FF157)>=2,AVERAGE('2011 Survey responses'!FE157,'2011 Survey responses'!FF157),\"\")","v":3},{"$f":"IF('2011 Survey responses'!FS157<0.5,\"\",'2011 Survey responses'!FS157)","v":4},{"$f":"IF('2011 Survey responses'!FV157<0.5,\"\",'2011 Survey responses'!FV157)","v":4},{"$f":"IF(('2011 Survey responses'!FG157+'2011 Survey responses'!FH157)>=2,AVERAGE('2011 Survey responses'!FG157,'2011 Survey responses'!FH157),\"\")","v":3},{"$f":"IF('2011 Survey responses'!FI157<0.5,\"\",'2011 Survey responses'!FI157)","v":5},{"$f":"IF('2011 Survey responses'!FE157<0.5,\"\",'2011 Survey responses'!FE157)","v":3},{"$f":"IF('2011 Survey responses'!FF157<0.5,\"\",'2011 Survey responses'!FF157)","v":""},{"$f":"IF('2011 Survey responses'!FG157<0.5,\"\",'2011 Survey responses'!FG157)","v":3},{"$f":"IF('2011 Survey responses'!FH157<0.5,\"\",'2011 Survey responses'!FH157)","v":""},{"$f":"IF('2011 Survey responses'!FL157<0.5,\"\",'2011 Survey responses'!FL157)","v":3},{"$f":"IF('2011 Survey responses'!FM157<0.5,\"\",'2011 Survey responses'!FM157)","v":""},{"$f":"IF('2011 Survey responses'!FO157<0.5,\"\",'2011 Survey responses'!FO157)","v":4},{"$f":"IF('2011 Survey responses'!FQ157<0.5,\"\",'2011 Survey responses'!FQ157)","v":4}]
["Slovenia",{"$f":"IF(SUM(F158)<1,\"\",AVERAGEIF('2011 Survey responses'!B158:CP158,\">1\"))","v":""},{"$f":"IF(SUM(F158)<1,\"\",AVERAGEIF('2011 Survey responses'!B158:AO158,\">1\"))","v":""},{"$f":"IF(SUM(F158)<1,\"\",AVERAGEIF('2011 Survey responses'!B158:BV158,\">1\"))","v":""},{"$f":"IF(SUM(F158)<1,\"\",AVERAGEIF('2011 Survey responses'!V158:BV158,\">1\"))","v":""},{"$f":"IF(SUM('2011 Survey responses'!B158:U158)<1,\"\",(AVERAGEIFS('2011 Survey responses'!B158:U158,'2011 Survey responses'!B158:U158,\">1\")))","v":""},{"$f":"IF(SUM('2011 Survey responses'!B158:H158)<1,\"\",(AVERAGEIFS('2011 Survey responses'!B158:H158,'2011 Survey responses'!B158:H158,\">1\")))","v":""},{"$f":"IF(SUM('2011 Survey responses'!I158:S158)<1,\"\",(AVERAGEIFS('2011 Survey responses'!I158:S158,'2011 Survey responses'!I158:S158,\">1\")))","v":""},{"$f":"IF(SUM('2011 Survey responses'!T158:U158)<2.1,\"\",(AVERAGEIFS('2011 Survey responses'!T158:U158,'2011 Survey responses'!T158:U158,\">1\")))","v":""},{"$f":"IF(SUM('2011 Survey responses'!B158:C158)<2.1,\"\",((SUMIF('2011 Survey responses'!B158:C158,\">1\")+SUMIF('2011 Survey responses'!F158,\">1\"))/(COUNTIF('2011 Survey responses'!B158:C158,\">1\")+COUNTIF('2011 Survey responses'!F158,\">1\"))))","v":""},{"$f":"IF(SUM('2011 Survey responses'!D158:E158)<2.1,\"\",(AVERAGEIFS('2011 Survey responses'!D158:E158,'2011 Survey responses'!D158:E158,\">1\")))","v":""},{"$f":"IF(('2011 Survey responses'!B158+'2011 Survey responses'!D158)<2.1,\"\",((SUMIF('2011 Survey responses'!B158,\">1\")+SUMIF('2011 Survey responses'!D158,\">1\")+SUMIF('2011 Survey responses'!F158,\">1\")+SUMIF('2011 Survey responses'!K158,\">1\"))/(COUNTIF('2011 Survey responses'!B158,\">1\")+COUNTIF('2011 Survey responses'!D158,\">1\")+COUNTIF('2011 Survey responses'!F158,\">1\")+COUNTIF('2011 Survey responses'!K158,\">1\"))))","v":""},{"$f":"IF(SUM('2011 Survey responses'!G158:H158)<2.1,\"\",(AVERAGEIFS('2011 Survey responses'!G158:H158,'2011 Survey responses'!G158:H158,\">1\")))","v":""},{"$f":"IF(SUM('2011 Survey responses'!F158:G158)<1.5,\"\",MAX('2011 Survey responses'!F158,'2011 Survey responses'!G158))","v":""},{"$f":"IF(SUM('2011 Survey responses'!G158:H158)<1,\"\",MAX('2011 Survey responses'!G158,'2011 Survey responses'!H158))","v":""},{"$f":"IF(SUM('2011 Survey responses'!I158:L158)<4.1,\"\",(AVERAGEIFS('2011 Survey responses'!I158:L158,'2011 Survey responses'!I158:L158,\">1\")))","v":""},{"$f":"IF(SUM('2011 Survey responses'!M158:S158)<4.1,\"\",(AVERAGEIFS('2011 Survey responses'!M158:S158,'2011 Survey responses'!M158:S158,\">1\")))","v":""},{"$f":"IF(SUM('2011 Survey responses'!T158:U158)<2.1,\"\",(AVERAGEIFS('2011 Survey responses'!T158:U158,'2011 Survey responses'!T158:U158,\">1\")))","v":""},{"$f":"IF(SUM('2011 Survey responses'!V158:AO158)<1,\"\",(AVERAGEIFS('2011 Survey responses'!V158:AO158,'2011 Survey responses'!V158:AO158,\">1\")))","v":""},{"$f":"IF(SUM('2011 Survey responses'!V158:AA158)<1,\"\",(AVERAGEIFS('2011 Survey responses'!V158:AA158,'2011 Survey responses'!V158:AA158,\">1\")))","v":""},{"$f":"IF(SUM('2011 Survey responses'!AB158:AH158)<1,\"\",(AVERAGEIFS('2011 Survey responses'!AB158:AH158,'2011 Survey responses'!AB158:AH158,\">1\")))","v":""},{"$f":"IF(SUM('2011 Survey responses'!AI158:AO158)<1,\"\",(AVERAGEIFS('2011 Survey responses'!AI158:AO158,'2011 Survey responses'!AI158:AO158,\">1\")))","v":""},{"$f":"IF(('2011 Survey responses'!Y158+'2011 Survey responses'!AI158+'2011 Survey responses'!AK158)<3.1,\"\",((SUMIF('2011 Survey responses'!Y158,\">1\")+SUMIF('2011 Survey responses'!AI158,\">1\")+SUMIF('2011 Survey responses'!AK158,\">1\")+SUMIF('2011 Survey responses'!AM158,\">1\"))/(COUNTIF('2011 Survey responses'!Y158,\">1\")+COUNTIF('2011 Survey responses'!AI158,\">1\")+COUNTIF('2011 Survey responses'!AK158,\">1\")+COUNTIF('2011 Survey responses'!AM158,\">1\"))))","v":""},{"$f":"IF(('2011 Survey responses'!W158)<1.1,\"\",('2011 Survey responses'!W158))","v":""},{"$f":"IF(('2011 Survey responses'!Y158)<1.1,\"\",('2011 Survey responses'!Y158))","v":""},{"$f":"IF(('2011 Survey responses'!Z158)<1.1,\"\",('2011 Survey responses'!Z158))","v":""},{"$f":"IF(('2011 Survey responses'!V158+'2011 Survey responses'!X158+'2011 Survey responses'!AA158)<3.1,\"\",((SUMIF('2011 Survey responses'!V158,\">1\")+SUMIF('2011 Survey responses'!X158,\">1\")+SUMIF('2011 Survey responses'!AA158,\">1\"))/(COUNTIF('2011 Survey responses'!V158,\">1\")+COUNTIF('2011 Survey responses'!X158,\">1\")+COUNTIF('2011 Survey responses'!AA158,\">1\"))))","v":""},{"$f":"IF(('2011 Survey responses'!V158+'2011 Survey responses'!Y158+'2011 Survey responses'!AA158)<3.1,\"\",((SUMIF('2011 Survey responses'!V158,\">1\")+SUMIF('2011 Survey responses'!Y158,\">1\")+SUMIF('2011 Survey responses'!AA158,\">1\"))/(COUNTIF('2011 Survey responses'!V158,\">1\")+COUNTIF('2011 Survey responses'!Y158,\">1\")+COUNTIF('2011 Survey responses'!AA158,\">1\"))))","v":""},{"$f":"IF(SUM('2011 Survey responses'!AB158:AH158)<1,\"\",(AVERAGEIFS('2011 Survey responses'!AB158:AH158,'2011 Survey responses'!AB158:AH158,\">1\")))","v":""},{"$f":"IF(SUM('2011 Survey responses'!AI158:AO158)<7.1,\"\",(AVERAGEIFS('2011 Survey responses'!AI158:AO158,'2011 Survey responses'!AI158:AO158,\">1\")))","v":""},{"$f":"IF(('2011 Survey responses'!AH158)<1.1,\"\",('2011 Survey responses'!AH158))","v":""},{"$f":"IF(SUM('2011 Survey responses'!AP158:BV158)<1,\"\",(AVERAGEIFS('2011 Survey responses'!AP158:BV158,'2011 Survey responses'!AP158:BV158,\">1\")))","v":""},{"$f":"IF(SUM('2011 Survey responses'!AP158:AS158)<4.1,\"\",(AVERAGEIFS('2011 Survey responses'!AP158:AS158,'2011 Survey responses'!AP158:AS158,\">1\")))","v":""},{"$f":"IF(SUM('2011 Survey responses'!AT158:BF158)<1,\"\",(AVERAGEIFS('2011 Survey responses'!AT158:BF158,'2011 Survey responses'!AT158:BF158,\">1\")))","v":""},{"$f":"IF(SUM('2011 Survey responses'!BG158:BO158)<1,\"\",(AVERAGEIFS('2011 Survey responses'!BG158:BO158,'2011 Survey responses'!BG158:BO158,\">1\")))","v":""},{"$f":"IF(SUM('2011 Survey responses'!BP158:BS158)<1,\"\",(AVERAGEIFS('2011 Survey responses'!BP158:BS158,'2011 Survey responses'!BP158:BS158,\">1\")))","v":""},{"$f":"IF(SUM('2011 Survey responses'!BT158:BV158)<3.1,\"\",(AVERAGEIFS('2011 Survey responses'!BT158:BV158,'2011 Survey responses'!BT158:BV158,\">1\")))","v":""},{"$f":"IF(('2011 Survey responses'!AQ158+'2011 Survey responses'!AR158+'2011 Survey responses'!BG158)<3.1,\"\",((SUMIF('2011 Survey responses'!AQ158,\">1\")+SUMIF('2011 Survey responses'!AR158,\">1\")+SUMIF('2011 Survey responses'!BG158,\">1\"))/(COUNTIF('2011 Survey responses'!AQ158,\">1\")+COUNTIF('2011 Survey responses'!AR158,\">1\")+COUNTIF('2011 Survey responses'!BG158,\">1\"))))","v":""},{"$f":"IF(SUM('2011 Survey responses'!AP158:AS158)<4.1,\"\",(AVERAGEIFS('2011 Survey responses'!AP158:AS158,'2011 Survey responses'!AP158:AS158,\">1\")))","v":""},{"$f":"IF(('2011 Survey responses'!AU158+'2011 Survey responses'!AX158+'2011 Survey responses'!BA158+'2011 Survey responses'!BC158+'2011 Survey responses'!BD158)<5.1,\"\",(SUMIF('2011 Survey responses'!AU158,\">1\")+SUMIF('2011 Survey responses'!AX158,\">1\")+SUMIF('2011 Survey responses'!BA158,\">1\")+SUMIF('2011 Survey responses'!BC158,\">1\")+SUMIF('2011 Survey responses'!BD158,\">1\"))/(COUNTIF('2011 Survey responses'!AU158,\">1\")+COUNTIF('2011 Survey responses'!AX158,\">1\")+COUNTIF('2011 Survey responses'!BA158,\">1\")+COUNTIF('2011 Survey responses'!BC158,\">1\")+COUNTIF('2011 Survey responses'!BD158,\">1\")))","v":""},{"$f":"IF(('2011 Survey responses'!AT158)<1.1,\"\",('2011 Survey responses'!AT158))","v":""},{"$f":"IF(SUM('2011 Survey responses'!AV158:AW158)<2.1,\"\",(AVERAGEIFS('2011 Survey responses'!AV158:AW158,'2011 Survey responses'!AV158:AW158,\">1\")))","v":""},{"$f":"IF(('2011 Survey responses'!AW158+'2011 Survey responses'!AY158)<2.1,\"\",(SUMIF('2011 Survey responses'!AW158,\">1\")+SUMIF('2011 Survey responses'!AY158,\">1\"))/(COUNTIF('2011 Survey responses'!AW158,\">1\")+COUNTIF('2011 Survey responses'!AY158,\">1\")))","v":""},{"$f":"IF(('2011 Survey responses'!AZ158)<1.1,\"\",('2011 Survey responses'!AZ158))","v":""},null,null,null,null,{"$f":"IF(('2011 Survey responses'!BE158)<1.1,\"\",('2011 Survey responses'!BE158))","v":""},{"$f":"IF(('2011 Survey responses'!AY158+'2011 Survey responses'!BB158+'2011 Survey responses'!BF158)<3.1,\"\",(SUMIF('2011 Survey responses'!AY158,\">1\")+SUMIF('2011 Survey responses'!BB158,\">1\")+SUMIF('2011 Survey responses'!BF158,\">1\"))/(COUNTIF('2011 Survey responses'!AY158,\">1\")+COUNTIF('2011 Survey responses'!BB158,\">1\")+COUNTIF('2011 Survey responses'!BF158,\">1\")))","v":""},"",{"$f":"IF(SUM('2011 Survey responses'!BT158:BV158)<3.1,\"\",(AVERAGEIFS('2011 Survey responses'!BT158:BV158,'2011 Survey responses'!BT158:BV158,\">1\")))","v":""},{"$f":"IF(SUM('2011 Survey responses'!BW158:CP158)<1,\"\",(AVERAGEIFS('2011 Survey responses'!BW158:CP158,'2011 Survey responses'!BW158:CP158,\">1\")))","v":""},{"$f":"IF(SUM('2011 Survey responses'!BW158:CF158)<1,\"\",(AVERAGEIFS('2011 Survey responses'!BW158:CF158,'2011 Survey responses'!BW158:CF158,\">1\")))","v":""},{"$f":"IF(SUM('2011 Survey responses'!CG158:CP158)<1,\"\",(AVERAGEIFS('2011 Survey responses'!CG158:CP158,'2011 Survey responses'!CG158:CP158,\">1\")))","v":""},{"$f":"IF(SUM('2011 Survey responses'!BX158:CF158)<1,\"\",(AVERAGEIFS('2011 Survey responses'!BX158:CF158,'2011 Survey responses'!BX158:CF158,\">1\")))","v":""},{"$f":"IF(SUM('2011 Survey responses'!CH158:CP158)<1,\"\",(AVERAGEIFS('2011 Survey responses'!CH158:CP158,'2011 Survey responses'!CH158:CP158,\">1\")))","v":""},{"$f":"IF(SUM('2011 Survey responses'!BW158:CP158)<1,\"\",(AVERAGEIFS('2011 Survey responses'!BW158:CP158,'2011 Survey responses'!BW158:CP158,\">1\")))","v":""},{"$f":"IF(('2011 Survey responses'!BW158+'2011 Survey responses'!CG158)<2.1,\"\",(SUMIF('2011 Survey responses'!BW158,\">1\")+SUMIF('2011 Survey responses'!CG158,\">1\"))/(COUNTIF('2011 Survey responses'!BW158,\">1\")+COUNTIF('2011 Survey responses'!CG158,\">1\")))","v":""},{"$f":"IF(('2011 Survey responses'!BX158+'2011 Survey responses'!CH158)<2.1,\"\",(SUMIF('2011 Survey responses'!BX158,\">1\")+SUMIF('2011 Survey responses'!CH158,\">1\"))/(COUNTIF('2011 Survey responses'!BX158,\">1\")+COUNTIF('2011 Survey responses'!CH158,\">1\")))","v":""},{"$f":"IF(('2011 Survey responses'!BY158+'2011 Survey responses'!CI158)<2.1,\"\",(SUMIF('2011 Survey responses'!BY158,\">1\")+SUMIF('2011 Survey responses'!CI158,\">1\"))/(COUNTIF('2011 Survey responses'!BY158,\">1\")+COUNTIF('2011 Survey responses'!CI158,\">1\")))","v":""},{"$f":"IF('2011 Survey responses'!CQ158<0.5,\"\",'2011 Survey responses'!CQ158)","v":""},{"$f":"IF('2011 Survey responses'!CR158<0.5,\"\",'2011 Survey responses'!CR158)","v":""},{"$f":"IF('2011 Survey responses'!CS158<0.5,\"\",'2011 Survey responses'!CS158)","v":""},{"$f":"IF('2011 Survey responses'!CT158<0.5,\"\",'2011 Survey responses'!CT158)","v":""},{"$f":"IF('2011 Survey responses'!CU158<0.5,\"\",'2011 Survey responses'!CU158)","v":""},{"$f":"IF('2011 Survey responses'!CV158<0.5,\"\",'2011 Survey responses'!CV158)","v":""},{"$f":"IF(SUM('2011 Survey responses'!CW158:DL158)<1,\"\",(AVERAGE('2011 Survey responses'!CW158:DL158)))","v":""},{"$f":"IF(SUM('2011 Survey responses'!CW158:CZ158)<1,\"\",(AVERAGE('2011 Survey responses'!CW158:CZ158)))","v":""},{"$f":"IF(SUM('2011 Survey responses'!DA158:DD158)<1,\"\",(AVERAGE('2011 Survey responses'!DA158:DD158)))","v":""},{"$f":"IF(SUM('2011 Survey responses'!DE158:DH158)<1,\"\",(AVERAGE('2011 Survey responses'!DE158:DH158)))","v":""},{"$f":"IF(SUM('2011 Survey responses'!DI158:DL158)<1,\"\",(AVERAGE('2011 Survey responses'!DI158:DL158)))","v":""},{"$f":"IF(('2011 Survey responses'!CW158+'2011 Survey responses'!DA158+'2011 Survey responses'!DE158+'2011 Survey responses'!DI158)<1,\"\",AVERAGE('2011 Survey responses'!CW158,'2011 Survey responses'!DA158,'2011 Survey responses'!DE158,'2011 Survey responses'!DI158))","v":""},{"$f":"IF(('2011 Survey responses'!CX158+'2011 Survey responses'!DB158+'2011 Survey responses'!DF158+'2011 Survey responses'!DJ158)<1,\"\",AVERAGE('2011 Survey responses'!CX158,'2011 Survey responses'!DB158,'2011 Survey responses'!DF158,'2011 Survey responses'!DJ158))","v":""},{"$f":"IF(('2011 Survey responses'!CY158+'2011 Survey responses'!DC158+'2011 Survey responses'!DG158+'2011 Survey responses'!DK158)<1,\"\",AVERAGE('2011 Survey responses'!CY158,'2011 Survey responses'!DC158,'2011 Survey responses'!DG158,'2011 Survey responses'!DK158))","v":""},{"$f":"IF(('2011 Survey responses'!CZ158+'2011 Survey responses'!DD158+'2011 Survey responses'!DH158+'2011 Survey responses'!DL158)<1,\"\",AVERAGE('2011 Survey responses'!CZ158,'2011 Survey responses'!DD158,'2011 Survey responses'!DH158,'2011 Survey responses'!DL158))","v":""},{"$f":"IF('2011 Survey responses'!CW158<0.5,\"\",'2011 Survey responses'!CW158)","v":""},{"$f":"IF('2011 Survey responses'!CX158<0.5,\"\",'2011 Survey responses'!CX158)","v":""},{"$f":"IF('2011 Survey responses'!CY158<0.5,\"\",'2011 Survey responses'!CY158)","v":""},{"$f":"IF('2011 Survey responses'!CZ158<0.5,\"\",'2011 Survey responses'!CZ158)","v":""},{"$f":"IF('2011 Survey responses'!DA158<0.5,\"\",'2011 Survey responses'!DA158)","v":""},{"$f":"IF('2011 Survey responses'!DB158<0.5,\"\",'2011 Survey responses'!DB158)","v":""},{"$f":"IF('2011 Survey responses'!DC158<0.5,\"\",'2011 Survey responses'!DC158)","v":""},{"$f":"IF('2011 Survey responses'!DD158<0.5,\"\",'2011 Survey responses'!DD158)","v":""},{"$f":"IF('2011 Survey responses'!DE158<0.5,\"\",'2011 Survey responses'!DE158)","v":""},{"$f":"IF('2011 Survey responses'!DF158<0.5,\"\",'2011 Survey responses'!DF158)","v":""},{"$f":"IF('2011 Survey responses'!DG158<0.5,\"\",'2011 Survey responses'!DG158)","v":""},{"$f":"IF('2011 Survey responses'!DH158<0.5,\"\",'2011 Survey responses'!DH158)","v":""},{"$f":"IF('2011 Survey responses'!DI158<0.5,\"\",'2011 Survey responses'!DI158)","v":""},{"$f":"IF('2011 Survey responses'!DJ158<0.5,\"\",'2011 Survey responses'!DJ158)","v":""},{"$f":"IF('2011 Survey responses'!DK158<0.5,\"\",'2011 Survey responses'!DK158)","v":""},{"$f":"IF('2011 Survey responses'!DL158<0.5,\"\",'2011 Survey responses'!DL158)","v":""},{"$f":"IF('2011 Survey responses'!DU158=4,4,IF('2011 Survey responses'!DU158=5,4,\"\"))","v":""},{"$f":"IF('2011 Survey responses'!DV158=4,3,IF('2011 Survey responses'!DV158=5,3,\"\"))","v":""},"",{"$f":"IF(CQ158=2,CQ158,IF(CO158=4,CO158,IF(CP158=3,CP158,IF('2011 Survey responses'!GT158=1,1,\"\"))))","v":""},{"$f":"IF('2011 Survey responses'!DO158<0.5,\"\",'2011 Survey responses'!DO158)","v":""},{"$f":"IF('2011 Survey responses'!DP158<0.5,\"\",'2011 Survey responses'!DP158)","v":""},{"$f":"IF('2011 Survey responses'!DQ158<0.5,\"\",'2011 Survey responses'!DQ158)","v":""},{"$f":"IF('2011 Survey responses'!DR158<0.5,\"\",'2011 Survey responses'!DR158)","v":""},{"$f":"IF('2011 Survey responses'!DS158<0.5,\"\",'2011 Survey responses'!DS158)","v":""},{"$f":"IF('2011 Survey responses'!DT158<0.5,\"\",'2011 Survey responses'!DT158)","v":""},{"$f":"IF('2011 Survey responses'!DU158<0.5,\"\",'2011 Survey responses'!DU158)","v":""},{"$f":"IF('2011 Survey responses'!DV158<0.5,\"\",'2011 Survey responses'!DV158)","v":""},{"$f":"IF('2011 Survey responses'!DW158<0.5,\"\",'2011 Survey responses'!DW158)","v":""},{"$f":"IF('2011 Survey responses'!DX158<0.5,\"\",'2011 Survey responses'!DX158)","v":""},{"$f":"IF('2011 Survey responses'!DY158<0.5,\"\",'2011 Survey responses'!DY158)","v":""},{"$f":"IF('2011 Survey responses'!DZ158<0.5,\"\",'2011 Survey responses'!DZ158)","v":""},{"$f":"IF('2011 Survey responses'!EA158<0.5,\"\",'2011 Survey responses'!EA158)","v":""},{"$f":"IF('2011 Survey responses'!EB158<0.5,\"\",'2011 Survey responses'!EB158)","v":""},{"$f":"IF('2011 Survey responses'!EC158<0.5,\"\",'2011 Survey responses'!EC158)","v":""},{"$f":"IF('2011 Survey responses'!ED158<0.5,\"\",'2011 Survey responses'!ED158)","v":""},{"$f":"IF('2011 Survey responses'!EE158<0.5,\"\",'2011 Survey responses'!EE158)","v":""},{"$f":"IF('2011 Survey responses'!EF158<0.5,\"\",'2011 Survey responses'!EF158)","v":""},{"$f":"IF('2011 Survey responses'!EG158<0.5,\"\",'2011 Survey responses'!EG158)","v":""},{"$f":"IF('2011 Survey responses'!EH158<0.5,\"\",'2011 Survey responses'!EH158)","v":""},{"$f":"IF('2011 Survey responses'!EI158<0.5,\"\",'2011 Survey responses'!EI158)","v":""},{"$f":"IF('2011 Survey responses'!EJ158<0.5,\"\",'2011 Survey responses'!EJ158)","v":""},{"$f":"IF('2011 Survey responses'!EK158<0.5,\"\",'2011 Survey responses'!EK158)","v":""},{"$f":"IF('2011 Survey responses'!EL158<0.5,\"\",'2011 Survey responses'!EL158)","v":""},{"$f":"IF('2011 Survey responses'!EM158<0.5,\"\",'2011 Survey responses'!EM158)","v":""},{"$f":"IF('2011 Survey responses'!EN158<0.5,\"\",'2011 Survey responses'!EN158)","v":""},{"$f":"IF('2011 Survey responses'!EO158<0.5,\"\",'2011 Survey responses'!EO158)","v":""},{"$f":"IF('2011 Survey responses'!EP158<0.5,\"\",'2011 Survey responses'!EP158)","v":""},{"$f":"IF(('2011 Survey responses'!EW158+'2011 Survey responses'!EX158)>=2,AVERAGE('2011 Survey responses'!EW158,'2011 Survey responses'!EY158),\"\")","v":""},{"$f":"IF('2011 Survey responses'!EX158<0.5,\"\",'2011 Survey responses'!EX158)","v":""},{"$f":"IF('2011 Survey responses'!EZ158<0.5,\"\",'2011 Survey responses'!EZ158)","v":""},{"$f":"IF('2011 Survey responses'!FB158<0.5,\"\",'2011 Survey responses'!FB158)","v":""},{"$f":"IF('2011 Survey responses'!FD158<0.5,\"\",'2011 Survey responses'!FD158)","v":""},{"$f":"IF('2011 Survey responses'!FC158<0.5,\"\",'2011 Survey responses'!FC158)","v":""},{"$f":"IF(('2011 Survey responses'!EM158+'2011 Survey responses'!EN158)>=2,AVERAGE('2011 Survey responses'!EM158,'2011 Survey responses'!EN158),\"\")","v":""},{"$f":"IF('2011 Survey responses'!ES158<0.5,\"\",'2011 Survey responses'!ES158)","v":""},{"$f":"IF(('2011 Survey responses'!ET158+'2011 Survey responses'!EU158)>=2,AVERAGE('2011 Survey responses'!ET158,'2011 Survey responses'!EU158),\"\")","v":""},{"$f":"IF('2011 Survey responses'!EV158<0.5,\"\",'2011 Survey responses'!EV158)","v":""},{"$f":"IF('2011 Survey responses'!FA158<0.5,\"\",'2011 Survey responses'!FA158)","v":""},{"$f":"IF('2011 Survey responses'!ER158<0.5,\"\",'2011 Survey responses'!ER158)","v":""},{"$f":"IF(('2011 Survey responses'!EO158+'2011 Survey responses'!EP158)>=2,AVERAGE('2011 Survey responses'!EO158,'2011 Survey responses'!EP158),\"\")","v":""},{"$f":"IF('2011 Survey responses'!EQ158<0.5,\"\",'2011 Survey responses'!EQ158)","v":""},{"$f":"IF('2011 Survey responses'!ET158<0.5,\"\",'2011 Survey responses'!ET158)","v":""},{"$f":"IF('2011 Survey responses'!EU158<0.5,\"\",'2011 Survey responses'!EU158)","v":""},{"$f":"IF('2011 Survey responses'!EW158<0.5,\"\",'2011 Survey responses'!EW158)","v":""},{"$f":"IF('2011 Survey responses'!EY158<0.5,\"\",'2011 Survey responses'!EY158)","v":""},{"$f":"IF('2011 Survey responses'!FU158<0.5,\"\",'2011 Survey responses'!FU158)","v":""},{"$f":"IF(('2011 Survey responses'!FL158+'2011 Survey responses'!FM158)>=2,AVERAGE('2011 Survey responses'!FL158,'2011 Survey responses'!FM158),\"\")","v":""},{"$f":"IF(('2011 Survey responses'!FO158+'2011 Survey responses'!FQ158)>=2,AVERAGE('2011 Survey responses'!FO158,'2011 Survey responses'!FQ158),\"\")","v":""},{"$f":"IF('2011 Survey responses'!FJ158<0.5,\"\",'2011 Survey responses'!FJ158)","v":""},{"$f":"IF('2011 Survey responses'!FT158<0.5,\"\",'2011 Survey responses'!FT158)","v":""},{"$f":"IF('2011 Survey responses'!FR158<0.5,\"\",'2011 Survey responses'!FR158)","v":""},{"$f":"IF('2011 Survey responses'!FK158<0.5,\"\",'2011 Survey responses'!FK158)","v":""},{"$f":"IF('2011 Survey responses'!FP158<0.5,\"\",'2011 Survey responses'!FP158)","v":""},{"$f":"IF('2011 Survey responses'!FN158<0.5,\"\",'2011 Survey responses'!FN158)","v":""},{"$f":"IF(('2011 Survey responses'!FE158+'2011 Survey responses'!FF158)>=2,AVERAGE('2011 Survey responses'!FE158,'2011 Survey responses'!FF158),\"\")","v":""},{"$f":"IF('2011 Survey responses'!FS158<0.5,\"\",'2011 Survey responses'!FS158)","v":""},{"$f":"IF('2011 Survey responses'!FV158<0.5,\"\",'2011 Survey responses'!FV158)","v":""},{"$f":"IF(('2011 Survey responses'!FG158+'2011 Survey responses'!FH158)>=2,AVERAGE('2011 Survey responses'!FG158,'2011 Survey responses'!FH158),\"\")","v":""},{"$f":"IF('2011 Survey responses'!FI158<0.5,\"\",'2011 Survey responses'!FI158)","v":""},{"$f":"IF('2011 Survey responses'!FE158<0.5,\"\",'2011 Survey responses'!FE158)","v":""},{"$f":"IF('2011 Survey responses'!FF158<0.5,\"\",'2011 Survey responses'!FF158)","v":""},{"$f":"IF('2011 Survey responses'!FG158<0.5,\"\",'2011 Survey responses'!FG158)","v":""},{"$f":"IF('2011 Survey responses'!FH158<0.5,\"\",'2011 Survey responses'!FH158)","v":""},{"$f":"IF('2011 Survey responses'!FL158<0.5,\"\",'2011 Survey responses'!FL158)","v":""},{"$f":"IF('2011 Survey responses'!FM158<0.5,\"\",'2011 Survey responses'!FM158)","v":""},{"$f":"IF('2011 Survey responses'!FO158<0.5,\"\",'2011 Survey responses'!FO158)","v":""},{"$f":"IF('2011 Survey responses'!FQ158<0.5,\"\",'2011 Survey responses'!FQ158)","v":""}]
["Solomon Islands",{"$f":"IF(SUM(F159)<1,\"\",AVERAGEIF('2011 Survey responses'!B159:CP159,\">1\"))","v":2.360655737704918},{"$f":"IF(SUM(F159)<1,\"\",AVERAGEIF('2011 Survey responses'!B159:AO159,\">1\"))","v":2.0952380952380953},{"$f":"IF(SUM(F159)<1,\"\",AVERAGEIF('2011 Survey responses'!B159:BV159,\">1\"))","v":2.2553191489361701},{"$f":"IF(SUM(F159)<1,\"\",AVERAGEIF('2011 Survey responses'!V159:BV159,\">1\"))","v":2.3076923076923075},{"$f":"IF(SUM('2011 Survey responses'!B159:U159)<1,\"\",(AVERAGEIFS('2011 Survey responses'!B159:U159,'2011 Survey responses'!B159:U159,\">1\")))","v":2},{"$f":"IF(SUM('2011 Survey responses'!B159:H159)<1,\"\",(AVERAGEIFS('2011 Survey responses'!B159:H159,'2011 Survey responses'!B159:H159,\">1\")))","v":2},{"$f":"IF(SUM('2011 Survey responses'!I159:S159)<1,\"\",(AVERAGEIFS('2011 Survey responses'!I159:S159,'2011 Survey responses'!I159:S159,\">1\")))","v":2},{"$f":"IF(SUM('2011 Survey responses'!T159:U159)<2.1,\"\",(AVERAGEIFS('2011 Survey responses'!T159:U159,'2011 Survey responses'!T159:U159,\">1\")))","v":""},{"$f":"IF(SUM('2011 Survey responses'!B159:C159)<2.1,\"\",((SUMIF('2011 Survey responses'!B159:C159,\">1\")+SUMIF('2011 Survey responses'!F159,\">1\"))/(COUNTIF('2011 Survey responses'!B159:C159,\">1\")+COUNTIF('2011 Survey responses'!F159,\">1\"))))","v":2},{"$f":"IF(SUM('2011 Survey responses'!D159:E159)<2.1,\"\",(AVERAGEIFS('2011 Survey responses'!D159:E159,'2011 Survey responses'!D159:E159,\">1\")))","v":2},{"$f":"IF(('2011 Survey responses'!B159+'2011 Survey responses'!D159)<2.1,\"\",((SUMIF('2011 Survey responses'!B159,\">1\")+SUMIF('2011 Survey responses'!D159,\">1\")+SUMIF('2011 Survey responses'!F159,\">1\")+SUMIF('2011 Survey responses'!K159,\">1\"))/(COUNTIF('2011 Survey responses'!B159,\">1\")+COUNTIF('2011 Survey responses'!D159,\">1\")+COUNTIF('2011 Survey responses'!F159,\">1\")+COUNTIF('2011 Survey responses'!K159,\">1\"))))","v":2},{"$f":"IF(SUM('2011 Survey responses'!G159:H159)<2.1,\"\",(AVERAGEIFS('2011 Survey responses'!G159:H159,'2011 Survey responses'!G159:H159,\">1\")))","v":2},{"$f":"IF(SUM('2011 Survey responses'!F159:G159)<1.5,\"\",MAX('2011 Survey responses'!F159,'2011 Survey responses'!G159))","v":2},{"$f":"IF(SUM('2011 Survey responses'!G159:H159)<1,\"\",MAX('2011 Survey responses'!G159,'2011 Survey responses'!H159))","v":2},{"$f":"IF(SUM('2011 Survey responses'!I159:L159)<4.1,\"\",(AVERAGEIFS('2011 Survey responses'!I159:L159,'2011 Survey responses'!I159:L159,\">1\")))","v":2},{"$f":"IF(SUM('2011 Survey responses'!M159:S159)<4.1,\"\",(AVERAGEIFS('2011 Survey responses'!M159:S159,'2011 Survey responses'!M159:S159,\">1\")))","v":2},{"$f":"IF(SUM('2011 Survey responses'!T159:U159)<2.1,\"\",(AVERAGEIFS('2011 Survey responses'!T159:U159,'2011 Survey responses'!T159:U159,\">1\")))","v":""},{"$f":"IF(SUM('2011 Survey responses'!V159:AO159)<1,\"\",(AVERAGEIFS('2011 Survey responses'!V159:AO159,'2011 Survey responses'!V159:AO159,\">1\")))","v":2.1538461538461537},{"$f":"IF(SUM('2011 Survey responses'!V159:AA159)<1,\"\",(AVERAGEIFS('2011 Survey responses'!V159:AA159,'2011 Survey responses'!V159:AA159,\">1\")))","v":2},{"$f":"IF(SUM('2011 Survey responses'!AB159:AH159)<1,\"\",(AVERAGEIFS('2011 Survey responses'!AB159:AH159,'2011 Survey responses'!AB159:AH159,\">1\")))","v":2},{"$f":"IF(SUM('2011 Survey responses'!AI159:AO159)<1,\"\",(AVERAGEIFS('2011 Survey responses'!AI159:AO159,'2011 Survey responses'!AI159:AO159,\">1\")))","v":2.4},{"$f":"IF(('2011 Survey responses'!Y159+'2011 Survey responses'!AI159+'2011 Survey responses'!AK159)<3.1,\"\",((SUMIF('2011 Survey responses'!Y159,\">1\")+SUMIF('2011 Survey responses'!AI159,\">1\")+SUMIF('2011 Survey responses'!AK159,\">1\")+SUMIF('2011 Survey responses'!AM159,\">1\"))/(COUNTIF('2011 Survey responses'!Y159,\">1\")+COUNTIF('2011 Survey responses'!AI159,\">1\")+COUNTIF('2011 Survey responses'!AK159,\">1\")+COUNTIF('2011 Survey responses'!AM159,\">1\"))))","v":2.5},{"$f":"IF(('2011 Survey responses'!W159)<1.1,\"\",('2011 Survey responses'!W159))","v":2},{"$f":"IF(('2011 Survey responses'!Y159)<1.1,\"\",('2011 Survey responses'!Y159))","v":2},{"$f":"IF(('2011 Survey responses'!Z159)<1.1,\"\",('2011 Survey responses'!Z159))","v":""},{"$f":"IF(('2011 Survey responses'!V159+'2011 Survey responses'!X159+'2011 Survey responses'!AA159)<3.1,\"\",((SUMIF('2011 Survey responses'!V159,\">1\")+SUMIF('2011 Survey responses'!X159,\">1\")+SUMIF('2011 Survey responses'!AA159,\">1\"))/(COUNTIF('2011 Survey responses'!V159,\">1\")+COUNTIF('2011 Survey responses'!X159,\">1\")+COUNTIF('2011 Survey responses'!AA159,\">1\"))))","v":2},{"$f":"IF(('2011 Survey responses'!V159+'2011 Survey responses'!Y159+'2011 Survey responses'!AA159)<3.1,\"\",((SUMIF('2011 Survey responses'!V159,\">1\")+SUMIF('2011 Survey responses'!Y159,\">1\")+SUMIF('2011 Survey responses'!AA159,\">1\"))/(COUNTIF('2011 Survey responses'!V159,\">1\")+COUNTIF('2011 Survey responses'!Y159,\">1\")+COUNTIF('2011 Survey responses'!AA159,\">1\"))))","v":2},{"$f":"IF(SUM('2011 Survey responses'!AB159:AH159)<1,\"\",(AVERAGEIFS('2011 Survey responses'!AB159:AH159,'2011 Survey responses'!AB159:AH159,\">1\")))","v":2},{"$f":"IF(SUM('2011 Survey responses'!AI159:AO159)<7.1,\"\",(AVERAGEIFS('2011 Survey responses'!AI159:AO159,'2011 Survey responses'!AI159:AO159,\">1\")))","v":2.4},{"$f":"IF(('2011 Survey responses'!AH159)<1.1,\"\",('2011 Survey responses'!AH159))","v":2},{"$f":"IF(SUM('2011 Survey responses'!AP159:BV159)<1,\"\",(AVERAGEIFS('2011 Survey responses'!AP159:BV159,'2011 Survey responses'!AP159:BV159,\">1\")))","v":2.3846153846153846},{"$f":"IF(SUM('2011 Survey responses'!AP159:AS159)<4.1,\"\",(AVERAGEIFS('2011 Survey responses'!AP159:AS159,'2011 Survey responses'!AP159:AS159,\">1\")))","v":2.5},{"$f":"IF(SUM('2011 Survey responses'!AT159:BF159)<1,\"\",(AVERAGEIFS('2011 Survey responses'!AT159:BF159,'2011 Survey responses'!AT159:BF159,\">1\")))","v":2.25},{"$f":"IF(SUM('2011 Survey responses'!BG159:BO159)<1,\"\",(AVERAGEIFS('2011 Survey responses'!BG159:BO159,'2011 Survey responses'!BG159:BO159,\">1\")))","v":2.4444444444444446},{"$f":"IF(SUM('2011 Survey responses'!BP159:BS159)<1,\"\",(AVERAGEIFS('2011 Survey responses'!BP159:BS159,'2011 Survey responses'!BP159:BS159,\">1\")))","v":3},{"$f":"IF(SUM('2011 Survey responses'!BT159:BV159)<3.1,\"\",(AVERAGEIFS('2011 Survey responses'!BT159:BV159,'2011 Survey responses'!BT159:BV159,\">1\")))","v":2},{"$f":"IF(('2011 Survey responses'!AQ159+'2011 Survey responses'!AR159+'2011 Survey responses'!BG159)<3.1,\"\",((SUMIF('2011 Survey responses'!AQ159,\">1\")+SUMIF('2011 Survey responses'!AR159,\">1\")+SUMIF('2011 Survey responses'!BG159,\">1\"))/(COUNTIF('2011 Survey responses'!AQ159,\">1\")+COUNTIF('2011 Survey responses'!AR159,\">1\")+COUNTIF('2011 Survey responses'!BG159,\">1\"))))","v":3.3333333333333335},{"$f":"IF(SUM('2011 Survey responses'!AP159:AS159)<4.1,\"\",(AVERAGEIFS('2011 Survey responses'!AP159:AS159,'2011 Survey responses'!AP159:AS159,\">1\")))","v":2.5},{"$f":"IF(('2011 Survey responses'!AU159+'2011 Survey responses'!AX159+'2011 Survey responses'!BA159+'2011 Survey responses'!BC159+'2011 Survey responses'!BD159)<5.1,\"\",(SUMIF('2011 Survey responses'!AU159,\">1\")+SUMIF('2011 Survey responses'!AX159,\">1\")+SUMIF('2011 Survey responses'!BA159,\">1\")+SUMIF('2011 Survey responses'!BC159,\">1\")+SUMIF('2011 Survey responses'!BD159,\">1\"))/(COUNTIF('2011 Survey responses'!AU159,\">1\")+COUNTIF('2011 Survey responses'!AX159,\">1\")+COUNTIF('2011 Survey responses'!BA159,\">1\")+COUNTIF('2011 Survey responses'!BC159,\">1\")+COUNTIF('2011 Survey responses'!BD159,\">1\")))","v":2.5},{"$f":"IF(('2011 Survey responses'!AT159)<1.1,\"\",('2011 Survey responses'!AT159))","v":2},{"$f":"IF(SUM('2011 Survey responses'!AV159:AW159)<2.1,\"\",(AVERAGEIFS('2011 Survey responses'!AV159:AW159,'2011 Survey responses'!AV159:AW159,\">1\")))","v":2},{"$f":"IF(('2011 Survey responses'!AW159+'2011 Survey responses'!AY159)<2.1,\"\",(SUMIF('2011 Survey responses'!AW159,\">1\")+SUMIF('2011 Survey responses'!AY159,\">1\"))/(COUNTIF('2011 Survey responses'!AW159,\">1\")+COUNTIF('2011 Survey responses'!AY159,\">1\")))","v":""},{"$f":"IF(('2011 Survey responses'!AZ159)<1.1,\"\",('2011 Survey responses'!AZ159))","v":2},2,1,1,2,{"$f":"IF(('2011 Survey responses'!BE159)<1.1,\"\",('2011 Survey responses'!BE159))","v":""},{"$f":"IF(('2011 Survey responses'!AY159+'2011 Survey responses'!BB159+'2011 Survey responses'!BF159)<3.1,\"\",(SUMIF('2011 Survey responses'!AY159,\">1\")+SUMIF('2011 Survey responses'!BB159,\">1\")+SUMIF('2011 Survey responses'!BF159,\">1\"))/(COUNTIF('2011 Survey responses'!AY159,\">1\")+COUNTIF('2011 Survey responses'!BB159,\">1\")+COUNTIF('2011 Survey responses'!BF159,\">1\")))","v":2},2.7222222222222223,{"$f":"IF(SUM('2011 Survey responses'!BT159:BV159)<3.1,\"\",(AVERAGEIFS('2011 Survey responses'!BT159:BV159,'2011 Survey responses'!BT159:BV159,\">1\")))","v":2},{"$f":"IF(SUM('2011 Survey responses'!BW159:CP159)<1,\"\",(AVERAGEIFS('2011 Survey responses'!BW159:CP159,'2011 Survey responses'!BW159:CP159,\">1\")))","v":2.7142857142857144},{"$f":"IF(SUM('2011 Survey responses'!BW159:CF159)<1,\"\",(AVERAGEIFS('2011 Survey responses'!BW159:CF159,'2011 Survey responses'!BW159:CF159,\">1\")))","v":2},{"$f":"IF(SUM('2011 Survey responses'!CG159:CP159)<1,\"\",(AVERAGEIFS('2011 Survey responses'!CG159:CP159,'2011 Survey responses'!CG159:CP159,\">1\")))","v":3.4285714285714284},{"$f":"IF(SUM('2011 Survey responses'!BX159:CF159)<1,\"\",(AVERAGEIFS('2011 Survey responses'!BX159:CF159,'2011 Survey responses'!BX159:CF159,\">1\")))","v":2},{"$f":"IF(SUM('2011 Survey responses'!CH159:CP159)<1,\"\",(AVERAGEIFS('2011 Survey responses'!CH159:CP159,'2011 Survey responses'!CH159:CP159,\">1\")))","v":3.3333333333333335},{"$f":"IF(SUM('2011 Survey responses'!BW159:CP159)<1,\"\",(AVERAGEIFS('2011 Survey responses'!BW159:CP159,'2011 Survey responses'!BW159:CP159,\">1\")))","v":2.7142857142857144},{"$f":"IF(('2011 Survey responses'!BW159+'2011 Survey responses'!CG159)<2.1,\"\",(SUMIF('2011 Survey responses'!BW159,\">1\")+SUMIF('2011 Survey responses'!CG159,\">1\"))/(COUNTIF('2011 Survey responses'!BW159,\">1\")+COUNTIF('2011 Survey responses'!CG159,\">1\")))","v":3},{"$f":"IF(('2011 Survey responses'!BX159+'2011 Survey responses'!CH159)<2.1,\"\",(SUMIF('2011 Survey responses'!BX159,\">1\")+SUMIF('2011 Survey responses'!CH159,\">1\"))/(COUNTIF('2011 Survey responses'!BX159,\">1\")+COUNTIF('2011 Survey responses'!CH159,\">1\")))","v":""},{"$f":"IF(('2011 Survey responses'!BY159+'2011 Survey responses'!CI159)<2.1,\"\",(SUMIF('2011 Survey responses'!BY159,\">1\")+SUMIF('2011 Survey responses'!CI159,\">1\"))/(COUNTIF('2011 Survey responses'!BY159,\">1\")+COUNTIF('2011 Survey responses'!CI159,\">1\")))","v":3},{"$f":"IF('2011 Survey responses'!CQ159<0.5,\"\",'2011 Survey responses'!CQ159)","v":""},{"$f":"IF('2011 Survey responses'!CR159<0.5,\"\",'2011 Survey responses'!CR159)","v":""},{"$f":"IF('2011 Survey responses'!CS159<0.5,\"\",'2011 Survey responses'!CS159)","v":""},{"$f":"IF('2011 Survey responses'!CT159<0.5,\"\",'2011 Survey responses'!CT159)","v":""},{"$f":"IF('2011 Survey responses'!CU159<0.5,\"\",'2011 Survey responses'!CU159)","v":""},{"$f":"IF('2011 Survey responses'!CV159<0.5,\"\",'2011 Survey responses'!CV159)","v":2},{"$f":"IF(SUM('2011 Survey responses'!CW159:DL159)<1,\"\",(AVERAGE('2011 Survey responses'!CW159:DL159)))","v":2.4375},{"$f":"IF(SUM('2011 Survey responses'!CW159:CZ159)<1,\"\",(AVERAGE('2011 Survey responses'!CW159:CZ159)))","v":2.75},{"$f":"IF(SUM('2011 Survey responses'!DA159:DD159)<1,\"\",(AVERAGE('2011 Survey responses'!DA159:DD159)))","v":2.5},{"$f":"IF(SUM('2011 Survey responses'!DE159:DH159)<1,\"\",(AVERAGE('2011 Survey responses'!DE159:DH159)))","v":2.25},{"$f":"IF(SUM('2011 Survey responses'!DI159:DL159)<1,\"\",(AVERAGE('2011 Survey responses'!DI159:DL159)))","v":2.25},{"$f":"IF(('2011 Survey responses'!CW159+'2011 Survey responses'!DA159+'2011 Survey responses'!DE159+'2011 Survey responses'!DI159)<1,\"\",AVERAGE('2011 Survey responses'!CW159,'2011 Survey responses'!DA159,'2011 Survey responses'!DE159,'2011 Survey responses'!DI159))","v":2.5},{"$f":"IF(('2011 Survey responses'!CX159+'2011 Survey responses'!DB159+'2011 Survey responses'!DF159+'2011 Survey responses'!DJ159)<1,\"\",AVERAGE('2011 Survey responses'!CX159,'2011 Survey responses'!DB159,'2011 Survey responses'!DF159,'2011 Survey responses'!DJ159))","v":3},{"$f":"IF(('2011 Survey responses'!CY159+'2011 Survey responses'!DC159+'2011 Survey responses'!DG159+'2011 Survey responses'!DK159)<1,\"\",AVERAGE('2011 Survey responses'!CY159,'2011 Survey responses'!DC159,'2011 Survey responses'!DG159,'2011 Survey responses'!DK159))","v":1.25},{"$f":"IF(('2011 Survey responses'!CZ159+'2011 Survey responses'!DD159+'2011 Survey responses'!DH159+'2011 Survey responses'!DL159)<1,\"\",AVERAGE('2011 Survey responses'!CZ159,'2011 Survey responses'!DD159,'2011 Survey responses'!DH159,'2011 Survey responses'!DL159))","v":3},{"$f":"IF('2011 Survey responses'!CW159<0.5,\"\",'2011 Survey responses'!CW159)","v":3},{"$f":"IF('2011 Survey responses'!CX159<0.5,\"\",'2011 Survey responses'!CX159)","v":4},{"$f":"IF('2011 Survey responses'!CY159<0.5,\"\",'2011 Survey responses'!CY159)","v":1},{"$f":"IF('2011 Survey responses'!CZ159<0.5,\"\",'2011 Survey responses'!CZ159)","v":3},{"$f":"IF('2011 Survey responses'!DA159<0.5,\"\",'2011 Survey responses'!DA159)","v":3},{"$f":"IF('2011 Survey responses'!DB159<0.5,\"\",'2011 Survey responses'!DB159)","v":3},{"$f":"IF('2011 Survey responses'!DC159<0.5,\"\",'2011 Survey responses'!DC159)","v":1},{"$f":"IF('2011 Survey responses'!DD159<0.5,\"\",'2011 Survey responses'!DD159)","v":3},{"$f":"IF('2011 Survey responses'!DE159<0.5,\"\",'2011 Survey responses'!DE159)","v":2},{"$f":"IF('2011 Survey responses'!DF159<0.5,\"\",'2011 Survey responses'!DF159)","v":2},{"$f":"IF('2011 Survey responses'!DG159<0.5,\"\",'2011 Survey responses'!DG159)","v":2},{"$f":"IF('2011 Survey responses'!DH159<0.5,\"\",'2011 Survey responses'!DH159)","v":3},{"$f":"IF('2011 Survey responses'!DI159<0.5,\"\",'2011 Survey responses'!DI159)","v":2},{"$f":"IF('2011 Survey responses'!DJ159<0.5,\"\",'2011 Survey responses'!DJ159)","v":3},{"$f":"IF('2011 Survey responses'!DK159<0.5,\"\",'2011 Survey responses'!DK159)","v":1},{"$f":"IF('2011 Survey responses'!DL159<0.5,\"\",'2011 Survey responses'!DL159)","v":3},{"$f":"IF('2011 Survey responses'!DU159=4,4,IF('2011 Survey responses'!DU159=5,4,\"\"))","v":""},{"$f":"IF('2011 Survey responses'!DV159=4,3,IF('2011 Survey responses'!DV159=5,3,\"\"))","v":""},"",{"$f":"IF(CQ159=2,CQ159,IF(CO159=4,CO159,IF(CP159=3,CP159,IF('2011 Survey responses'!GT159=1,1,\"\"))))","v":1},{"$f":"IF('2011 Survey responses'!DO159<0.5,\"\",'2011 Survey responses'!DO159)","v":2},{"$f":"IF('2011 Survey responses'!DP159<0.5,\"\",'2011 Survey responses'!DP159)","v":5},{"$f":"IF('2011 Survey responses'!DQ159<0.5,\"\",'2011 Survey responses'!DQ159)","v":2},{"$f":"IF('2011 Survey responses'!DR159<0.5,\"\",'2011 Survey responses'!DR159)","v":3},{"$f":"IF('2011 Survey responses'!DS159<0.5,\"\",'2011 Survey responses'!DS159)","v":3},{"$f":"IF('2011 Survey responses'!DT159<0.5,\"\",'2011 Survey responses'!DT159)","v":4},{"$f":"IF('2011 Survey responses'!DU159<0.5,\"\",'2011 Survey responses'!DU159)","v":3},{"$f":"IF('2011 Survey responses'!DV159<0.5,\"\",'2011 Survey responses'!DV159)","v":3},{"$f":"IF('2011 Survey responses'!DW159<0.5,\"\",'2011 Survey responses'!DW159)","v":3},{"$f":"IF('2011 Survey responses'!DX159<0.5,\"\",'2011 Survey responses'!DX159)","v":3},{"$f":"IF('2011 Survey responses'!DY159<0.5,\"\",'2011 Survey responses'!DY159)","v":3},{"$f":"IF('2011 Survey responses'!DZ159<0.5,\"\",'2011 Survey responses'!DZ159)","v":3},{"$f":"IF('2011 Survey responses'!EA159<0.5,\"\",'2011 Survey responses'!EA159)","v":2},{"$f":"IF('2011 Survey responses'!EB159<0.5,\"\",'2011 Survey responses'!EB159)","v":5},{"$f":"IF('2011 Survey responses'!EC159<0.5,\"\",'2011 Survey responses'!EC159)","v":4},{"$f":"IF('2011 Survey responses'!ED159<0.5,\"\",'2011 Survey responses'!ED159)","v":4},{"$f":"IF('2011 Survey responses'!EE159<0.5,\"\",'2011 Survey responses'!EE159)","v":2},{"$f":"IF('2011 Survey responses'!EF159<0.5,\"\",'2011 Survey responses'!EF159)","v":5},{"$f":"IF('2011 Survey responses'!EG159<0.5,\"\",'2011 Survey responses'!EG159)","v":4},{"$f":"IF('2011 Survey responses'!EH159<0.5,\"\",'2011 Survey responses'!EH159)","v":4},{"$f":"IF('2011 Survey responses'!EI159<0.5,\"\",'2011 Survey responses'!EI159)","v":4},{"$f":"IF('2011 Survey responses'!EJ159<0.5,\"\",'2011 Survey responses'!EJ159)","v":4},{"$f":"IF('2011 Survey responses'!EK159<0.5,\"\",'2011 Survey responses'!EK159)","v":4},{"$f":"IF('2011 Survey responses'!EL159<0.5,\"\",'2011 Survey responses'!EL159)","v":4},{"$f":"IF('2011 Survey responses'!EM159<0.5,\"\",'2011 Survey responses'!EM159)","v":5},{"$f":"IF('2011 Survey responses'!EN159<0.5,\"\",'2011 Survey responses'!EN159)","v":3},{"$f":"IF('2011 Survey responses'!EO159<0.5,\"\",'2011 Survey responses'!EO159)","v":1},{"$f":"IF('2011 Survey responses'!EP159<0.5,\"\",'2011 Survey responses'!EP159)","v":1},{"$f":"IF(('2011 Survey responses'!EW159+'2011 Survey responses'!EX159)>=2,AVERAGE('2011 Survey responses'!EW159,'2011 Survey responses'!EY159),\"\")","v":3.5},{"$f":"IF('2011 Survey responses'!EX159<0.5,\"\",'2011 Survey responses'!EX159)","v":4},{"$f":"IF('2011 Survey responses'!EZ159<0.5,\"\",'2011 Survey responses'!EZ159)","v":3},{"$f":"IF('2011 Survey responses'!FB159<0.5,\"\",'2011 Survey responses'!FB159)","v":4},{"$f":"IF('2011 Survey responses'!FD159<0.5,\"\",'2011 Survey responses'!FD159)","v":4},{"$f":"IF('2011 Survey responses'!FC159<0.5,\"\",'2011 Survey responses'!FC159)","v":4},{"$f":"IF(('2011 Survey responses'!EM159+'2011 Survey responses'!EN159)>=2,AVERAGE('2011 Survey responses'!EM159,'2011 Survey responses'!EN159),\"\")","v":4},{"$f":"IF('2011 Survey responses'!ES159<0.5,\"\",'2011 Survey responses'!ES159)","v":4},{"$f":"IF(('2011 Survey responses'!ET159+'2011 Survey responses'!EU159)>=2,AVERAGE('2011 Survey responses'!ET159,'2011 Survey responses'!EU159),\"\")","v":4},{"$f":"IF('2011 Survey responses'!EV159<0.5,\"\",'2011 Survey responses'!EV159)","v":4},{"$f":"IF('2011 Survey responses'!FA159<0.5,\"\",'2011 Survey responses'!FA159)","v":3},{"$f":"IF('2011 Survey responses'!ER159<0.5,\"\",'2011 Survey responses'!ER159)","v":4},{"$f":"IF(('2011 Survey responses'!EO159+'2011 Survey responses'!EP159)>=2,AVERAGE('2011 Survey responses'!EO159,'2011 Survey responses'!EP159),\"\")","v":1},{"$f":"IF('2011 Survey responses'!EQ159<0.5,\"\",'2011 Survey responses'!EQ159)","v":3},{"$f":"IF('2011 Survey responses'!ET159<0.5,\"\",'2011 Survey responses'!ET159)","v":5},{"$f":"IF('2011 Survey responses'!EU159<0.5,\"\",'2011 Survey responses'!EU159)","v":3},{"$f":"IF('2011 Survey responses'!EW159<0.5,\"\",'2011 Survey responses'!EW159)","v":3},{"$f":"IF('2011 Survey responses'!EY159<0.5,\"\",'2011 Survey responses'!EY159)","v":4},{"$f":"IF('2011 Survey responses'!FU159<0.5,\"\",'2011 Survey responses'!FU159)","v":5},{"$f":"IF(('2011 Survey responses'!FL159+'2011 Survey responses'!FM159)>=2,AVERAGE('2011 Survey responses'!FL159,'2011 Survey responses'!FM159),\"\")","v":4.5},{"$f":"IF(('2011 Survey responses'!FO159+'2011 Survey responses'!FQ159)>=2,AVERAGE('2011 Survey responses'!FO159,'2011 Survey responses'!FQ159),\"\")","v":4},{"$f":"IF('2011 Survey responses'!FJ159<0.5,\"\",'2011 Survey responses'!FJ159)","v":5},{"$f":"IF('2011 Survey responses'!FT159<0.5,\"\",'2011 Survey responses'!FT159)","v":5},{"$f":"IF('2011 Survey responses'!FR159<0.5,\"\",'2011 Survey responses'!FR159)","v":5},{"$f":"IF('2011 Survey responses'!FK159<0.5,\"\",'2011 Survey responses'!FK159)","v":4},{"$f":"IF('2011 Survey responses'!FP159<0.5,\"\",'2011 Survey responses'!FP159)","v":4},{"$f":"IF('2011 Survey responses'!FN159<0.5,\"\",'2011 Survey responses'!FN159)","v":5},{"$f":"IF(('2011 Survey responses'!FE159+'2011 Survey responses'!FF159)>=2,AVERAGE('2011 Survey responses'!FE159,'2011 Survey responses'!FF159),\"\")","v":4.5},{"$f":"IF('2011 Survey responses'!FS159<0.5,\"\",'2011 Survey responses'!FS159)","v":5},{"$f":"IF('2011 Survey responses'!FV159<0.5,\"\",'2011 Survey responses'!FV159)","v":5},{"$f":"IF(('2011 Survey responses'!FG159+'2011 Survey responses'!FH159)>=2,AVERAGE('2011 Survey responses'!FG159,'2011 Survey responses'!FH159),\"\")","v":3},{"$f":"IF('2011 Survey responses'!FI159<0.5,\"\",'2011 Survey responses'!FI159)","v":4},{"$f":"IF('2011 Survey responses'!FE159<0.5,\"\",'2011 Survey responses'!FE159)","v":5},{"$f":"IF('2011 Survey responses'!FF159<0.5,\"\",'2011 Survey responses'!FF159)","v":4},{"$f":"IF('2011 Survey responses'!FG159<0.5,\"\",'2011 Survey responses'!FG159)","v":3},{"$f":"IF('2011 Survey responses'!FH159<0.5,\"\",'2011 Survey responses'!FH159)","v":3},{"$f":"IF('2011 Survey responses'!FL159<0.5,\"\",'2011 Survey responses'!FL159)","v":5},{"$f":"IF('2011 Survey responses'!FM159<0.5,\"\",'2011 Survey responses'!FM159)","v":4},{"$f":"IF('2011 Survey responses'!FO159<0.5,\"\",'2011 Survey responses'!FO159)","v":4},{"$f":"IF('2011 Survey responses'!FQ159<0.5,\"\",'2011 Survey responses'!FQ159)","v":4}]
["Somalia",{"$f":"IF(SUM(F160)<1,\"\",AVERAGEIF('2011 Survey responses'!B160:CP160,\">1\"))","v":""},{"$f":"IF(SUM(F160)<1,\"\",AVERAGEIF('2011 Survey responses'!B160:AO160,\">1\"))","v":""},{"$f":"IF(SUM(F160)<1,\"\",AVERAGEIF('2011 Survey responses'!B160:BV160,\">1\"))","v":""},{"$f":"IF(SUM(F160)<1,\"\",AVERAGEIF('2011 Survey responses'!V160:BV160,\">1\"))","v":""},{"$f":"IF(SUM('2011 Survey responses'!B160:U160)<1,\"\",(AVERAGEIFS('2011 Survey responses'!B160:U160,'2011 Survey responses'!B160:U160,\">1\")))","v":""},{"$f":"IF(SUM('2011 Survey responses'!B160:H160)<1,\"\",(AVERAGEIFS('2011 Survey responses'!B160:H160,'2011 Survey responses'!B160:H160,\">1\")))","v":""},{"$f":"IF(SUM('2011 Survey responses'!I160:S160)<1,\"\",(AVERAGEIFS('2011 Survey responses'!I160:S160,'2011 Survey responses'!I160:S160,\">1\")))","v":""},{"$f":"IF(SUM('2011 Survey responses'!T160:U160)<2.1,\"\",(AVERAGEIFS('2011 Survey responses'!T160:U160,'2011 Survey responses'!T160:U160,\">1\")))","v":""},{"$f":"IF(SUM('2011 Survey responses'!B160:C160)<2.1,\"\",((SUMIF('2011 Survey responses'!B160:C160,\">1\")+SUMIF('2011 Survey responses'!F160,\">1\"))/(COUNTIF('2011 Survey responses'!B160:C160,\">1\")+COUNTIF('2011 Survey responses'!F160,\">1\"))))","v":""},{"$f":"IF(SUM('2011 Survey responses'!D160:E160)<2.1,\"\",(AVERAGEIFS('2011 Survey responses'!D160:E160,'2011 Survey responses'!D160:E160,\">1\")))","v":""},{"$f":"IF(('2011 Survey responses'!B160+'2011 Survey responses'!D160)<2.1,\"\",((SUMIF('2011 Survey responses'!B160,\">1\")+SUMIF('2011 Survey responses'!D160,\">1\")+SUMIF('2011 Survey responses'!F160,\">1\")+SUMIF('2011 Survey responses'!K160,\">1\"))/(COUNTIF('2011 Survey responses'!B160,\">1\")+COUNTIF('2011 Survey responses'!D160,\">1\")+COUNTIF('2011 Survey responses'!F160,\">1\")+COUNTIF('2011 Survey responses'!K160,\">1\"))))","v":""},{"$f":"IF(SUM('2011 Survey responses'!G160:H160)<2.1,\"\",(AVERAGEIFS('2011 Survey responses'!G160:H160,'2011 Survey responses'!G160:H160,\">1\")))","v":""},{"$f":"IF(SUM('2011 Survey responses'!F160:G160)<1.5,\"\",MAX('2011 Survey responses'!F160,'2011 Survey responses'!G160))","v":""},{"$f":"IF(SUM('2011 Survey responses'!G160:H160)<1,\"\",MAX('2011 Survey responses'!G160,'2011 Survey responses'!H160))","v":""},{"$f":"IF(SUM('2011 Survey responses'!I160:L160)<4.1,\"\",(AVERAGEIFS('2011 Survey responses'!I160:L160,'2011 Survey responses'!I160:L160,\">1\")))","v":""},{"$f":"IF(SUM('2011 Survey responses'!M160:S160)<4.1,\"\",(AVERAGEIFS('2011 Survey responses'!M160:S160,'2011 Survey responses'!M160:S160,\">1\")))","v":""},{"$f":"IF(SUM('2011 Survey responses'!T160:U160)<2.1,\"\",(AVERAGEIFS('2011 Survey responses'!T160:U160,'2011 Survey responses'!T160:U160,\">1\")))","v":""},{"$f":"IF(SUM('2011 Survey responses'!V160:AO160)<1,\"\",(AVERAGEIFS('2011 Survey responses'!V160:AO160,'2011 Survey responses'!V160:AO160,\">1\")))","v":""},{"$f":"IF(SUM('2011 Survey responses'!V160:AA160)<1,\"\",(AVERAGEIFS('2011 Survey responses'!V160:AA160,'2011 Survey responses'!V160:AA160,\">1\")))","v":""},{"$f":"IF(SUM('2011 Survey responses'!AB160:AH160)<1,\"\",(AVERAGEIFS('2011 Survey responses'!AB160:AH160,'2011 Survey responses'!AB160:AH160,\">1\")))","v":""},{"$f":"IF(SUM('2011 Survey responses'!AI160:AO160)<1,\"\",(AVERAGEIFS('2011 Survey responses'!AI160:AO160,'2011 Survey responses'!AI160:AO160,\">1\")))","v":""},{"$f":"IF(('2011 Survey responses'!Y160+'2011 Survey responses'!AI160+'2011 Survey responses'!AK160)<3.1,\"\",((SUMIF('2011 Survey responses'!Y160,\">1\")+SUMIF('2011 Survey responses'!AI160,\">1\")+SUMIF('2011 Survey responses'!AK160,\">1\")+SUMIF('2011 Survey responses'!AM160,\">1\"))/(COUNTIF('2011 Survey responses'!Y160,\">1\")+COUNTIF('2011 Survey responses'!AI160,\">1\")+COUNTIF('2011 Survey responses'!AK160,\">1\")+COUNTIF('2011 Survey responses'!AM160,\">1\"))))","v":""},{"$f":"IF(('2011 Survey responses'!W160)<1.1,\"\",('2011 Survey responses'!W160))","v":""},{"$f":"IF(('2011 Survey responses'!Y160)<1.1,\"\",('2011 Survey responses'!Y160))","v":""},{"$f":"IF(('2011 Survey responses'!Z160)<1.1,\"\",('2011 Survey responses'!Z160))","v":""},{"$f":"IF(('2011 Survey responses'!V160+'2011 Survey responses'!X160+'2011 Survey responses'!AA160)<3.1,\"\",((SUMIF('2011 Survey responses'!V160,\">1\")+SUMIF('2011 Survey responses'!X160,\">1\")+SUMIF('2011 Survey responses'!AA160,\">1\"))/(COUNTIF('2011 Survey responses'!V160,\">1\")+COUNTIF('2011 Survey responses'!X160,\">1\")+COUNTIF('2011 Survey responses'!AA160,\">1\"))))","v":""},{"$f":"IF(('2011 Survey responses'!V160+'2011 Survey responses'!Y160+'2011 Survey responses'!AA160)<3.1,\"\",((SUMIF('2011 Survey responses'!V160,\">1\")+SUMIF('2011 Survey responses'!Y160,\">1\")+SUMIF('2011 Survey responses'!AA160,\">1\"))/(COUNTIF('2011 Survey responses'!V160,\">1\")+COUNTIF('2011 Survey responses'!Y160,\">1\")+COUNTIF('2011 Survey responses'!AA160,\">1\"))))","v":""},{"$f":"IF(SUM('2011 Survey responses'!AB160:AH160)<1,\"\",(AVERAGEIFS('2011 Survey responses'!AB160:AH160,'2011 Survey responses'!AB160:AH160,\">1\")))","v":""},{"$f":"IF(SUM('2011 Survey responses'!AI160:AO160)<7.1,\"\",(AVERAGEIFS('2011 Survey responses'!AI160:AO160,'2011 Survey responses'!AI160:AO160,\">1\")))","v":""},{"$f":"IF(('2011 Survey responses'!AH160)<1.1,\"\",('2011 Survey responses'!AH160))","v":""},{"$f":"IF(SUM('2011 Survey responses'!AP160:BV160)<1,\"\",(AVERAGEIFS('2011 Survey responses'!AP160:BV160,'2011 Survey responses'!AP160:BV160,\">1\")))","v":""},{"$f":"IF(SUM('2011 Survey responses'!AP160:AS160)<4.1,\"\",(AVERAGEIFS('2011 Survey responses'!AP160:AS160,'2011 Survey responses'!AP160:AS160,\">1\")))","v":""},{"$f":"IF(SUM('2011 Survey responses'!AT160:BF160)<1,\"\",(AVERAGEIFS('2011 Survey responses'!AT160:BF160,'2011 Survey responses'!AT160:BF160,\">1\")))","v":""},{"$f":"IF(SUM('2011 Survey responses'!BG160:BO160)<1,\"\",(AVERAGEIFS('2011 Survey responses'!BG160:BO160,'2011 Survey responses'!BG160:BO160,\">1\")))","v":""},{"$f":"IF(SUM('2011 Survey responses'!BP160:BS160)<1,\"\",(AVERAGEIFS('2011 Survey responses'!BP160:BS160,'2011 Survey responses'!BP160:BS160,\">1\")))","v":""},{"$f":"IF(SUM('2011 Survey responses'!BT160:BV160)<3.1,\"\",(AVERAGEIFS('2011 Survey responses'!BT160:BV160,'2011 Survey responses'!BT160:BV160,\">1\")))","v":""},{"$f":"IF(('2011 Survey responses'!AQ160+'2011 Survey responses'!AR160+'2011 Survey responses'!BG160)<3.1,\"\",((SUMIF('2011 Survey responses'!AQ160,\">1\")+SUMIF('2011 Survey responses'!AR160,\">1\")+SUMIF('2011 Survey responses'!BG160,\">1\"))/(COUNTIF('2011 Survey responses'!AQ160,\">1\")+COUNTIF('2011 Survey responses'!AR160,\">1\")+COUNTIF('2011 Survey responses'!BG160,\">1\"))))","v":""},{"$f":"IF(SUM('2011 Survey responses'!AP160:AS160)<4.1,\"\",(AVERAGEIFS('2011 Survey responses'!AP160:AS160,'2011 Survey responses'!AP160:AS160,\">1\")))","v":""},{"$f":"IF(('2011 Survey responses'!AU160+'2011 Survey responses'!AX160+'2011 Survey responses'!BA160+'2011 Survey responses'!BC160+'2011 Survey responses'!BD160)<5.1,\"\",(SUMIF('2011 Survey responses'!AU160,\">1\")+SUMIF('2011 Survey responses'!AX160,\">1\")+SUMIF('2011 Survey responses'!BA160,\">1\")+SUMIF('2011 Survey responses'!BC160,\">1\")+SUMIF('2011 Survey responses'!BD160,\">1\"))/(COUNTIF('2011 Survey responses'!AU160,\">1\")+COUNTIF('2011 Survey responses'!AX160,\">1\")+COUNTIF('2011 Survey responses'!BA160,\">1\")+COUNTIF('2011 Survey responses'!BC160,\">1\")+COUNTIF('2011 Survey responses'!BD160,\">1\")))","v":""},{"$f":"IF(('2011 Survey responses'!AT160)<1.1,\"\",('2011 Survey responses'!AT160))","v":""},{"$f":"IF(SUM('2011 Survey responses'!AV160:AW160)<2.1,\"\",(AVERAGEIFS('2011 Survey responses'!AV160:AW160,'2011 Survey responses'!AV160:AW160,\">1\")))","v":""},{"$f":"IF(('2011 Survey responses'!AW160+'2011 Survey responses'!AY160)<2.1,\"\",(SUMIF('2011 Survey responses'!AW160,\">1\")+SUMIF('2011 Survey responses'!AY160,\">1\"))/(COUNTIF('2011 Survey responses'!AW160,\">1\")+COUNTIF('2011 Survey responses'!AY160,\">1\")))","v":""},{"$f":"IF(('2011 Survey responses'!AZ160)<1.1,\"\",('2011 Survey responses'!AZ160))","v":""},null,null,null,null,{"$f":"IF(('2011 Survey responses'!BE160)<1.1,\"\",('2011 Survey responses'!BE160))","v":""},{"$f":"IF(('2011 Survey responses'!AY160+'2011 Survey responses'!BB160+'2011 Survey responses'!BF160)<3.1,\"\",(SUMIF('2011 Survey responses'!AY160,\">1\")+SUMIF('2011 Survey responses'!BB160,\">1\")+SUMIF('2011 Survey responses'!BF160,\">1\"))/(COUNTIF('2011 Survey responses'!AY160,\">1\")+COUNTIF('2011 Survey responses'!BB160,\">1\")+COUNTIF('2011 Survey responses'!BF160,\">1\")))","v":""},"",{"$f":"IF(SUM('2011 Survey responses'!BT160:BV160)<3.1,\"\",(AVERAGEIFS('2011 Survey responses'!BT160:BV160,'2011 Survey responses'!BT160:BV160,\">1\")))","v":""},{"$f":"IF(SUM('2011 Survey responses'!BW160:CP160)<1,\"\",(AVERAGEIFS('2011 Survey responses'!BW160:CP160,'2011 Survey responses'!BW160:CP160,\">1\")))","v":""},{"$f":"IF(SUM('2011 Survey responses'!BW160:CF160)<1,\"\",(AVERAGEIFS('2011 Survey responses'!BW160:CF160,'2011 Survey responses'!BW160:CF160,\">1\")))","v":""},{"$f":"IF(SUM('2011 Survey responses'!CG160:CP160)<1,\"\",(AVERAGEIFS('2011 Survey responses'!CG160:CP160,'2011 Survey responses'!CG160:CP160,\">1\")))","v":""},{"$f":"IF(SUM('2011 Survey responses'!BX160:CF160)<1,\"\",(AVERAGEIFS('2011 Survey responses'!BX160:CF160,'2011 Survey responses'!BX160:CF160,\">1\")))","v":""},{"$f":"IF(SUM('2011 Survey responses'!CH160:CP160)<1,\"\",(AVERAGEIFS('2011 Survey responses'!CH160:CP160,'2011 Survey responses'!CH160:CP160,\">1\")))","v":""},{"$f":"IF(SUM('2011 Survey responses'!BW160:CP160)<1,\"\",(AVERAGEIFS('2011 Survey responses'!BW160:CP160,'2011 Survey responses'!BW160:CP160,\">1\")))","v":""},{"$f":"IF(('2011 Survey responses'!BW160+'2011 Survey responses'!CG160)<2.1,\"\",(SUMIF('2011 Survey responses'!BW160,\">1\")+SUMIF('2011 Survey responses'!CG160,\">1\"))/(COUNTIF('2011 Survey responses'!BW160,\">1\")+COUNTIF('2011 Survey responses'!CG160,\">1\")))","v":""},{"$f":"IF(('2011 Survey responses'!BX160+'2011 Survey responses'!CH160)<2.1,\"\",(SUMIF('2011 Survey responses'!BX160,\">1\")+SUMIF('2011 Survey responses'!CH160,\">1\"))/(COUNTIF('2011 Survey responses'!BX160,\">1\")+COUNTIF('2011 Survey responses'!CH160,\">1\")))","v":""},{"$f":"IF(('2011 Survey responses'!BY160+'2011 Survey responses'!CI160)<2.1,\"\",(SUMIF('2011 Survey responses'!BY160,\">1\")+SUMIF('2011 Survey responses'!CI160,\">1\"))/(COUNTIF('2011 Survey responses'!BY160,\">1\")+COUNTIF('2011 Survey responses'!CI160,\">1\")))","v":""},{"$f":"IF('2011 Survey responses'!CQ160<0.5,\"\",'2011 Survey responses'!CQ160)","v":""},{"$f":"IF('2011 Survey responses'!CR160<0.5,\"\",'2011 Survey responses'!CR160)","v":""},{"$f":"IF('2011 Survey responses'!CS160<0.5,\"\",'2011 Survey responses'!CS160)","v":""},{"$f":"IF('2011 Survey responses'!CT160<0.5,\"\",'2011 Survey responses'!CT160)","v":""},{"$f":"IF('2011 Survey responses'!CU160<0.5,\"\",'2011 Survey responses'!CU160)","v":""},{"$f":"IF('2011 Survey responses'!CV160<0.5,\"\",'2011 Survey responses'!CV160)","v":""},{"$f":"IF(SUM('2011 Survey responses'!CW160:DL160)<1,\"\",(AVERAGE('2011 Survey responses'!CW160:DL160)))","v":""},{"$f":"IF(SUM('2011 Survey responses'!CW160:CZ160)<1,\"\",(AVERAGE('2011 Survey responses'!CW160:CZ160)))","v":""},{"$f":"IF(SUM('2011 Survey responses'!DA160:DD160)<1,\"\",(AVERAGE('2011 Survey responses'!DA160:DD160)))","v":""},{"$f":"IF(SUM('2011 Survey responses'!DE160:DH160)<1,\"\",(AVERAGE('2011 Survey responses'!DE160:DH160)))","v":""},{"$f":"IF(SUM('2011 Survey responses'!DI160:DL160)<1,\"\",(AVERAGE('2011 Survey responses'!DI160:DL160)))","v":""},{"$f":"IF(('2011 Survey responses'!CW160+'2011 Survey responses'!DA160+'2011 Survey responses'!DE160+'2011 Survey responses'!DI160)<1,\"\",AVERAGE('2011 Survey responses'!CW160,'2011 Survey responses'!DA160,'2011 Survey responses'!DE160,'2011 Survey responses'!DI160))","v":""},{"$f":"IF(('2011 Survey responses'!CX160+'2011 Survey responses'!DB160+'2011 Survey responses'!DF160+'2011 Survey responses'!DJ160)<1,\"\",AVERAGE('2011 Survey responses'!CX160,'2011 Survey responses'!DB160,'2011 Survey responses'!DF160,'2011 Survey responses'!DJ160))","v":""},{"$f":"IF(('2011 Survey responses'!CY160+'2011 Survey responses'!DC160+'2011 Survey responses'!DG160+'2011 Survey responses'!DK160)<1,\"\",AVERAGE('2011 Survey responses'!CY160,'2011 Survey responses'!DC160,'2011 Survey responses'!DG160,'2011 Survey responses'!DK160))","v":""},{"$f":"IF(('2011 Survey responses'!CZ160+'2011 Survey responses'!DD160+'2011 Survey responses'!DH160+'2011 Survey responses'!DL160)<1,\"\",AVERAGE('2011 Survey responses'!CZ160,'2011 Survey responses'!DD160,'2011 Survey responses'!DH160,'2011 Survey responses'!DL160))","v":""},{"$f":"IF('2011 Survey responses'!CW160<0.5,\"\",'2011 Survey responses'!CW160)","v":""},{"$f":"IF('2011 Survey responses'!CX160<0.5,\"\",'2011 Survey responses'!CX160)","v":""},{"$f":"IF('2011 Survey responses'!CY160<0.5,\"\",'2011 Survey responses'!CY160)","v":""},{"$f":"IF('2011 Survey responses'!CZ160<0.5,\"\",'2011 Survey responses'!CZ160)","v":""},{"$f":"IF('2011 Survey responses'!DA160<0.5,\"\",'2011 Survey responses'!DA160)","v":""},{"$f":"IF('2011 Survey responses'!DB160<0.5,\"\",'2011 Survey responses'!DB160)","v":""},{"$f":"IF('2011 Survey responses'!DC160<0.5,\"\",'2011 Survey responses'!DC160)","v":""},{"$f":"IF('2011 Survey responses'!DD160<0.5,\"\",'2011 Survey responses'!DD160)","v":""},{"$f":"IF('2011 Survey responses'!DE160<0.5,\"\",'2011 Survey responses'!DE160)","v":""},{"$f":"IF('2011 Survey responses'!DF160<0.5,\"\",'2011 Survey responses'!DF160)","v":""},{"$f":"IF('2011 Survey responses'!DG160<0.5,\"\",'2011 Survey responses'!DG160)","v":""},{"$f":"IF('2011 Survey responses'!DH160<0.5,\"\",'2011 Survey responses'!DH160)","v":""},{"$f":"IF('2011 Survey responses'!DI160<0.5,\"\",'2011 Survey responses'!DI160)","v":""},{"$f":"IF('2011 Survey responses'!DJ160<0.5,\"\",'2011 Survey responses'!DJ160)","v":""},{"$f":"IF('2011 Survey responses'!DK160<0.5,\"\",'2011 Survey responses'!DK160)","v":""},{"$f":"IF('2011 Survey responses'!DL160<0.5,\"\",'2011 Survey responses'!DL160)","v":""},{"$f":"IF('2011 Survey responses'!DU160=4,4,IF('2011 Survey responses'!DU160=5,4,\"\"))","v":""},{"$f":"IF('2011 Survey responses'!DV160=4,3,IF('2011 Survey responses'!DV160=5,3,\"\"))","v":""},"",{"$f":"IF(CQ160=2,CQ160,IF(CO160=4,CO160,IF(CP160=3,CP160,IF('2011 Survey responses'!GT160=1,1,\"\"))))","v":""},{"$f":"IF('2011 Survey responses'!DO160<0.5,\"\",'2011 Survey responses'!DO160)","v":""},{"$f":"IF('2011 Survey responses'!DP160<0.5,\"\",'2011 Survey responses'!DP160)","v":""},{"$f":"IF('2011 Survey responses'!DQ160<0.5,\"\",'2011 Survey responses'!DQ160)","v":""},{"$f":"IF('2011 Survey responses'!DR160<0.5,\"\",'2011 Survey responses'!DR160)","v":""},{"$f":"IF('2011 Survey responses'!DS160<0.5,\"\",'2011 Survey responses'!DS160)","v":""},{"$f":"IF('2011 Survey responses'!DT160<0.5,\"\",'2011 Survey responses'!DT160)","v":""},{"$f":"IF('2011 Survey responses'!DU160<0.5,\"\",'2011 Survey responses'!DU160)","v":""},{"$f":"IF('2011 Survey responses'!DV160<0.5,\"\",'2011 Survey responses'!DV160)","v":""},{"$f":"IF('2011 Survey responses'!DW160<0.5,\"\",'2011 Survey responses'!DW160)","v":""},{"$f":"IF('2011 Survey responses'!DX160<0.5,\"\",'2011 Survey responses'!DX160)","v":""},{"$f":"IF('2011 Survey responses'!DY160<0.5,\"\",'2011 Survey responses'!DY160)","v":""},{"$f":"IF('2011 Survey responses'!DZ160<0.5,\"\",'2011 Survey responses'!DZ160)","v":""},{"$f":"IF('2011 Survey responses'!EA160<0.5,\"\",'2011 Survey responses'!EA160)","v":""},{"$f":"IF('2011 Survey responses'!EB160<0.5,\"\",'2011 Survey responses'!EB160)","v":""},{"$f":"IF('2011 Survey responses'!EC160<0.5,\"\",'2011 Survey responses'!EC160)","v":""},{"$f":"IF('2011 Survey responses'!ED160<0.5,\"\",'2011 Survey responses'!ED160)","v":""},{"$f":"IF('2011 Survey responses'!EE160<0.5,\"\",'2011 Survey responses'!EE160)","v":""},{"$f":"IF('2011 Survey responses'!EF160<0.5,\"\",'2011 Survey responses'!EF160)","v":""},{"$f":"IF('2011 Survey responses'!EG160<0.5,\"\",'2011 Survey responses'!EG160)","v":""},{"$f":"IF('2011 Survey responses'!EH160<0.5,\"\",'2011 Survey responses'!EH160)","v":""},{"$f":"IF('2011 Survey responses'!EI160<0.5,\"\",'2011 Survey responses'!EI160)","v":""},{"$f":"IF('2011 Survey responses'!EJ160<0.5,\"\",'2011 Survey responses'!EJ160)","v":""},{"$f":"IF('2011 Survey responses'!EK160<0.5,\"\",'2011 Survey responses'!EK160)","v":""},{"$f":"IF('2011 Survey responses'!EL160<0.5,\"\",'2011 Survey responses'!EL160)","v":""},{"$f":"IF('2011 Survey responses'!EM160<0.5,\"\",'2011 Survey responses'!EM160)","v":""},{"$f":"IF('2011 Survey responses'!EN160<0.5,\"\",'2011 Survey responses'!EN160)","v":""},{"$f":"IF('2011 Survey responses'!EO160<0.5,\"\",'2011 Survey responses'!EO160)","v":""},{"$f":"IF('2011 Survey responses'!EP160<0.5,\"\",'2011 Survey responses'!EP160)","v":""},{"$f":"IF(('2011 Survey responses'!EW160+'2011 Survey responses'!EX160)>=2,AVERAGE('2011 Survey responses'!EW160,'2011 Survey responses'!EY160),\"\")","v":""},{"$f":"IF('2011 Survey responses'!EX160<0.5,\"\",'2011 Survey responses'!EX160)","v":""},{"$f":"IF('2011 Survey responses'!EZ160<0.5,\"\",'2011 Survey responses'!EZ160)","v":""},{"$f":"IF('2011 Survey responses'!FB160<0.5,\"\",'2011 Survey responses'!FB160)","v":""},{"$f":"IF('2011 Survey responses'!FD160<0.5,\"\",'2011 Survey responses'!FD160)","v":""},{"$f":"IF('2011 Survey responses'!FC160<0.5,\"\",'2011 Survey responses'!FC160)","v":""},{"$f":"IF(('2011 Survey responses'!EM160+'2011 Survey responses'!EN160)>=2,AVERAGE('2011 Survey responses'!EM160,'2011 Survey responses'!EN160),\"\")","v":""},{"$f":"IF('2011 Survey responses'!ES160<0.5,\"\",'2011 Survey responses'!ES160)","v":""},{"$f":"IF(('2011 Survey responses'!ET160+'2011 Survey responses'!EU160)>=2,AVERAGE('2011 Survey responses'!ET160,'2011 Survey responses'!EU160),\"\")","v":""},{"$f":"IF('2011 Survey responses'!EV160<0.5,\"\",'2011 Survey responses'!EV160)","v":""},{"$f":"IF('2011 Survey responses'!FA160<0.5,\"\",'2011 Survey responses'!FA160)","v":""},{"$f":"IF('2011 Survey responses'!ER160<0.5,\"\",'2011 Survey responses'!ER160)","v":""},{"$f":"IF(('2011 Survey responses'!EO160+'2011 Survey responses'!EP160)>=2,AVERAGE('2011 Survey responses'!EO160,'2011 Survey responses'!EP160),\"\")","v":""},{"$f":"IF('2011 Survey responses'!EQ160<0.5,\"\",'2011 Survey responses'!EQ160)","v":""},{"$f":"IF('2011 Survey responses'!ET160<0.5,\"\",'2011 Survey responses'!ET160)","v":""},{"$f":"IF('2011 Survey responses'!EU160<0.5,\"\",'2011 Survey responses'!EU160)","v":""},{"$f":"IF('2011 Survey responses'!EW160<0.5,\"\",'2011 Survey responses'!EW160)","v":""},{"$f":"IF('2011 Survey responses'!EY160<0.5,\"\",'2011 Survey responses'!EY160)","v":""},{"$f":"IF('2011 Survey responses'!FU160<0.5,\"\",'2011 Survey responses'!FU160)","v":""},{"$f":"IF(('2011 Survey responses'!FL160+'2011 Survey responses'!FM160)>=2,AVERAGE('2011 Survey responses'!FL160,'2011 Survey responses'!FM160),\"\")","v":""},{"$f":"IF(('2011 Survey responses'!FO160+'2011 Survey responses'!FQ160)>=2,AVERAGE('2011 Survey responses'!FO160,'2011 Survey responses'!FQ160),\"\")","v":""},{"$f":"IF('2011 Survey responses'!FJ160<0.5,\"\",'2011 Survey responses'!FJ160)","v":""},{"$f":"IF('2011 Survey responses'!FT160<0.5,\"\",'2011 Survey responses'!FT160)","v":""},{"$f":"IF('2011 Survey responses'!FR160<0.5,\"\",'2011 Survey responses'!FR160)","v":""},{"$f":"IF('2011 Survey responses'!FK160<0.5,\"\",'2011 Survey responses'!FK160)","v":""},{"$f":"IF('2011 Survey responses'!FP160<0.5,\"\",'2011 Survey responses'!FP160)","v":""},{"$f":"IF('2011 Survey responses'!FN160<0.5,\"\",'2011 Survey responses'!FN160)","v":""},{"$f":"IF(('2011 Survey responses'!FE160+'2011 Survey responses'!FF160)>=2,AVERAGE('2011 Survey responses'!FE160,'2011 Survey responses'!FF160),\"\")","v":""},{"$f":"IF('2011 Survey responses'!FS160<0.5,\"\",'2011 Survey responses'!FS160)","v":""},{"$f":"IF('2011 Survey responses'!FV160<0.5,\"\",'2011 Survey responses'!FV160)","v":""},{"$f":"IF(('2011 Survey responses'!FG160+'2011 Survey responses'!FH160)>=2,AVERAGE('2011 Survey responses'!FG160,'2011 Survey responses'!FH160),\"\")","v":""},{"$f":"IF('2011 Survey responses'!FI160<0.5,\"\",'2011 Survey responses'!FI160)","v":""},{"$f":"IF('2011 Survey responses'!FE160<0.5,\"\",'2011 Survey responses'!FE160)","v":""},{"$f":"IF('2011 Survey responses'!FF160<0.5,\"\",'2011 Survey responses'!FF160)","v":""},{"$f":"IF('2011 Survey responses'!FG160<0.5,\"\",'2011 Survey responses'!FG160)","v":""},{"$f":"IF('2011 Survey responses'!FH160<0.5,\"\",'2011 Survey responses'!FH160)","v":""},{"$f":"IF('2011 Survey responses'!FL160<0.5,\"\",'2011 Survey responses'!FL160)","v":""},{"$f":"IF('2011 Survey responses'!FM160<0.5,\"\",'2011 Survey responses'!FM160)","v":""},{"$f":"IF('2011 Survey responses'!FO160<0.5,\"\",'2011 Survey responses'!FO160)","v":""},{"$f":"IF('2011 Survey responses'!FQ160<0.5,\"\",'2011 Survey responses'!FQ160)","v":""}]
["South Africa",{"$f":"IF(SUM(F161)<1,\"\",AVERAGEIF('2011 Survey responses'!B161:CP161,\">1\"))","v":4.2413793103448274},{"$f":"IF(SUM(F161)<1,\"\",AVERAGEIF('2011 Survey responses'!B161:AO161,\">1\"))","v":3.9714285714285715},{"$f":"IF(SUM(F161)<1,\"\",AVERAGEIF('2011 Survey responses'!B161:BV161,\">1\"))","v":4.1044776119402986},{"$f":"IF(SUM(F161)<1,\"\",AVERAGEIF('2011 Survey responses'!V161:BV161,\">1\"))","v":4.3076923076923075},{"$f":"IF(SUM('2011 Survey responses'!B161:U161)<1,\"\",(AVERAGEIFS('2011 Survey responses'!B161:U161,'2011 Survey responses'!B161:U161,\">1\")))","v":3.4},{"$f":"IF(SUM('2011 Survey responses'!B161:H161)<1,\"\",(AVERAGEIFS('2011 Survey responses'!B161:H161,'2011 Survey responses'!B161:H161,\">1\")))","v":4.75},{"$f":"IF(SUM('2011 Survey responses'!I161:S161)<1,\"\",(AVERAGEIFS('2011 Survey responses'!I161:S161,'2011 Survey responses'!I161:S161,\">1\")))","v":2.6666666666666665},{"$f":"IF(SUM('2011 Survey responses'!T161:U161)<2.1,\"\",(AVERAGEIFS('2011 Survey responses'!T161:U161,'2011 Survey responses'!T161:U161,\">1\")))","v":4},{"$f":"IF(SUM('2011 Survey responses'!B161:C161)<2.1,\"\",((SUMIF('2011 Survey responses'!B161:C161,\">1\")+SUMIF('2011 Survey responses'!F161,\">1\"))/(COUNTIF('2011 Survey responses'!B161:C161,\">1\")+COUNTIF('2011 Survey responses'!F161,\">1\"))))","v":5},{"$f":"IF(SUM('2011 Survey responses'!D161:E161)<2.1,\"\",(AVERAGEIFS('2011 Survey responses'!D161:E161,'2011 Survey responses'!D161:E161,\">1\")))","v":5},{"$f":"IF(('2011 Survey responses'!B161+'2011 Survey responses'!D161)<2.1,\"\",((SUMIF('2011 Survey responses'!B161,\">1\")+SUMIF('2011 Survey responses'!D161,\">1\")+SUMIF('2011 Survey responses'!F161,\">1\")+SUMIF('2011 Survey responses'!K161,\">1\"))/(COUNTIF('2011 Survey responses'!B161,\">1\")+COUNTIF('2011 Survey responses'!D161,\">1\")+COUNTIF('2011 Survey responses'!F161,\">1\")+COUNTIF('2011 Survey responses'!K161,\">1\"))))","v":4.25},{"$f":"IF(SUM('2011 Survey responses'!G161:H161)<2.1,\"\",(AVERAGEIFS('2011 Survey responses'!G161:H161,'2011 Survey responses'!G161:H161,\">1\")))","v":4},{"$f":"IF(SUM('2011 Survey responses'!F161:G161)<1.5,\"\",MAX('2011 Survey responses'!F161,'2011 Survey responses'!G161))","v":4},{"$f":"IF(SUM('2011 Survey responses'!G161:H161)<1,\"\",MAX('2011 Survey responses'!G161,'2011 Survey responses'!H161))","v":4},{"$f":"IF(SUM('2011 Survey responses'!I161:L161)<4.1,\"\",(AVERAGEIFS('2011 Survey responses'!I161:L161,'2011 Survey responses'!I161:L161,\">1\")))","v":2.6666666666666665},{"$f":"IF(SUM('2011 Survey responses'!M161:S161)<4.1,\"\",(AVERAGEIFS('2011 Survey responses'!M161:S161,'2011 Survey responses'!M161:S161,\">1\")))","v":2.6666666666666665},{"$f":"IF(SUM('2011 Survey responses'!T161:U161)<2.1,\"\",(AVERAGEIFS('2011 Survey responses'!T161:U161,'2011 Survey responses'!T161:U161,\">1\")))","v":4},{"$f":"IF(SUM('2011 Survey responses'!V161:AO161)<1,\"\",(AVERAGEIFS('2011 Survey responses'!V161:AO161,'2011 Survey responses'!V161:AO161,\">1\")))","v":4.4000000000000004},{"$f":"IF(SUM('2011 Survey responses'!V161:AA161)<1,\"\",(AVERAGEIFS('2011 Survey responses'!V161:AA161,'2011 Survey responses'!V161:AA161,\">1\")))","v":4.5},{"$f":"IF(SUM('2011 Survey responses'!AB161:AH161)<1,\"\",(AVERAGEIFS('2011 Survey responses'!AB161:AH161,'2011 Survey responses'!AB161:AH161,\">1\")))","v":5},{"$f":"IF(SUM('2011 Survey responses'!AI161:AO161)<1,\"\",(AVERAGEIFS('2011 Survey responses'!AI161:AO161,'2011 Survey responses'!AI161:AO161,\">1\")))","v":3.7142857142857144},{"$f":"IF(('2011 Survey responses'!Y161+'2011 Survey responses'!AI161+'2011 Survey responses'!AK161)<3.1,\"\",((SUMIF('2011 Survey responses'!Y161,\">1\")+SUMIF('2011 Survey responses'!AI161,\">1\")+SUMIF('2011 Survey responses'!AK161,\">1\")+SUMIF('2011 Survey responses'!AM161,\">1\"))/(COUNTIF('2011 Survey responses'!Y161,\">1\")+COUNTIF('2011 Survey responses'!AI161,\">1\")+COUNTIF('2011 Survey responses'!AK161,\">1\")+COUNTIF('2011 Survey responses'!AM161,\">1\"))))","v":3.75},{"$f":"IF(('2011 Survey responses'!W161)<1.1,\"\",('2011 Survey responses'!W161))","v":4},{"$f":"IF(('2011 Survey responses'!Y161)<1.1,\"\",('2011 Survey responses'!Y161))","v":5},{"$f":"IF(('2011 Survey responses'!Z161)<1.1,\"\",('2011 Survey responses'!Z161))","v":4},{"$f":"IF(('2011 Survey responses'!V161+'2011 Survey responses'!X161+'2011 Survey responses'!AA161)<3.1,\"\",((SUMIF('2011 Survey responses'!V161,\">1\")+SUMIF('2011 Survey responses'!X161,\">1\")+SUMIF('2011 Survey responses'!AA161,\">1\"))/(COUNTIF('2011 Survey responses'!V161,\">1\")+COUNTIF('2011 Survey responses'!X161,\">1\")+COUNTIF('2011 Survey responses'!AA161,\">1\"))))","v":4.666666666666667},{"$f":"IF(('2011 Survey responses'!V161+'2011 Survey responses'!Y161+'2011 Survey responses'!AA161)<3.1,\"\",((SUMIF('2011 Survey responses'!V161,\">1\")+SUMIF('2011 Survey responses'!Y161,\">1\")+SUMIF('2011 Survey responses'!AA161,\">1\"))/(COUNTIF('2011 Survey responses'!V161,\">1\")+COUNTIF('2011 Survey responses'!Y161,\">1\")+COUNTIF('2011 Survey responses'!AA161,\">1\"))))","v":4.666666666666667},{"$f":"IF(SUM('2011 Survey responses'!AB161:AH161)<1,\"\",(AVERAGEIFS('2011 Survey responses'!AB161:AH161,'2011 Survey responses'!AB161:AH161,\">1\")))","v":5},{"$f":"IF(SUM('2011 Survey responses'!AI161:AO161)<7.1,\"\",(AVERAGEIFS('2011 Survey responses'!AI161:AO161,'2011 Survey responses'!AI161:AO161,\">1\")))","v":3.7142857142857144},{"$f":"IF(('2011 Survey responses'!AH161)<1.1,\"\",('2011 Survey responses'!AH161))","v":5},{"$f":"IF(SUM('2011 Survey responses'!AP161:BV161)<1,\"\",(AVERAGEIFS('2011 Survey responses'!AP161:BV161,'2011 Survey responses'!AP161:BV161,\">1\")))","v":4.25},{"$f":"IF(SUM('2011 Survey responses'!AP161:AS161)<4.1,\"\",(AVERAGEIFS('2011 Survey responses'!AP161:AS161,'2011 Survey responses'!AP161:AS161,\">1\")))","v":4.5},{"$f":"IF(SUM('2011 Survey responses'!AT161:BF161)<1,\"\",(AVERAGEIFS('2011 Survey responses'!AT161:BF161,'2011 Survey responses'!AT161:BF161,\">1\")))","v":4.0769230769230766},{"$f":"IF(SUM('2011 Survey responses'!BG161:BO161)<1,\"\",(AVERAGEIFS('2011 Survey responses'!BG161:BO161,'2011 Survey responses'!BG161:BO161,\">1\")))","v":4.5555555555555554},{"$f":"IF(SUM('2011 Survey responses'!BP161:BS161)<1,\"\",(AVERAGEIFS('2011 Survey responses'!BP161:BS161,'2011 Survey responses'!BP161:BS161,\">1\")))","v":4},{"$f":"IF(SUM('2011 Survey responses'!BT161:BV161)<3.1,\"\",(AVERAGEIFS('2011 Survey responses'!BT161:BV161,'2011 Survey responses'!BT161:BV161,\">1\")))","v":4},{"$f":"IF(('2011 Survey responses'!AQ161+'2011 Survey responses'!AR161+'2011 Survey responses'!BG161)<3.1,\"\",((SUMIF('2011 Survey responses'!AQ161,\">1\")+SUMIF('2011 Survey responses'!AR161,\">1\")+SUMIF('2011 Survey responses'!BG161,\">1\"))/(COUNTIF('2011 Survey responses'!AQ161,\">1\")+COUNTIF('2011 Survey responses'!AR161,\">1\")+COUNTIF('2011 Survey responses'!BG161,\">1\"))))","v":4.666666666666667},{"$f":"IF(SUM('2011 Survey responses'!AP161:AS161)<4.1,\"\",(AVERAGEIFS('2011 Survey responses'!AP161:AS161,'2011 Survey responses'!AP161:AS161,\">1\")))","v":4.5},{"$f":"IF(('2011 Survey responses'!AU161+'2011 Survey responses'!AX161+'2011 Survey responses'!BA161+'2011 Survey responses'!BC161+'2011 Survey responses'!BD161)<5.1,\"\",(SUMIF('2011 Survey responses'!AU161,\">1\")+SUMIF('2011 Survey responses'!AX161,\">1\")+SUMIF('2011 Survey responses'!BA161,\">1\")+SUMIF('2011 Survey responses'!BC161,\">1\")+SUMIF('2011 Survey responses'!BD161,\">1\"))/(COUNTIF('2011 Survey responses'!AU161,\">1\")+COUNTIF('2011 Survey responses'!AX161,\">1\")+COUNTIF('2011 Survey responses'!BA161,\">1\")+COUNTIF('2011 Survey responses'!BC161,\">1\")+COUNTIF('2011 Survey responses'!BD161,\">1\")))","v":3.8},{"$f":"IF(('2011 Survey responses'!AT161)<1.1,\"\",('2011 Survey responses'!AT161))","v":4},{"$f":"IF(SUM('2011 Survey responses'!AV161:AW161)<2.1,\"\",(AVERAGEIFS('2011 Survey responses'!AV161:AW161,'2011 Survey responses'!AV161:AW161,\">1\")))","v":4},{"$f":"IF(('2011 Survey responses'!AW161+'2011 Survey responses'!AY161)<2.1,\"\",(SUMIF('2011 Survey responses'!AW161,\">1\")+SUMIF('2011 Survey responses'!AY161,\">1\"))/(COUNTIF('2011 Survey responses'!AW161,\">1\")+COUNTIF('2011 Survey responses'!AY161,\">1\")))","v":4.5},{"$f":"IF(('2011 Survey responses'!AZ161)<1.1,\"\",('2011 Survey responses'!AZ161))","v":4},null,null,null,null,{"$f":"IF(('2011 Survey responses'!BE161)<1.1,\"\",('2011 Survey responses'!BE161))","v":4},{"$f":"IF(('2011 Survey responses'!AY161+'2011 Survey responses'!BB161+'2011 Survey responses'!BF161)<3.1,\"\",(SUMIF('2011 Survey responses'!AY161,\">1\")+SUMIF('2011 Survey responses'!BB161,\">1\")+SUMIF('2011 Survey responses'!BF161,\">1\"))/(COUNTIF('2011 Survey responses'!AY161,\">1\")+COUNTIF('2011 Survey responses'!BB161,\">1\")+COUNTIF('2011 Survey responses'!BF161,\">1\")))","v":4.666666666666667},4.2777777777777777,{"$f":"IF(SUM('2011 Survey responses'!BT161:BV161)<3.1,\"\",(AVERAGEIFS('2011 Survey responses'!BT161:BV161,'2011 Survey responses'!BT161:BV161,\">1\")))","v":4},{"$f":"IF(SUM('2011 Survey responses'!BW161:CP161)<1,\"\",(AVERAGEIFS('2011 Survey responses'!BW161:CP161,'2011 Survey responses'!BW161:CP161,\">1\")))","v":4.7},{"$f":"IF(SUM('2011 Survey responses'!BW161:CF161)<1,\"\",(AVERAGEIFS('2011 Survey responses'!BW161:CF161,'2011 Survey responses'!BW161:CF161,\">1\")))","v":4.7},{"$f":"IF(SUM('2011 Survey responses'!CG161:CP161)<1,\"\",(AVERAGEIFS('2011 Survey responses'!CG161:CP161,'2011 Survey responses'!CG161:CP161,\">1\")))","v":4.7},{"$f":"IF(SUM('2011 Survey responses'!BX161:CF161)<1,\"\",(AVERAGEIFS('2011 Survey responses'!BX161:CF161,'2011 Survey responses'!BX161:CF161,\">1\")))","v":4.666666666666667},{"$f":"IF(SUM('2011 Survey responses'!CH161:CP161)<1,\"\",(AVERAGEIFS('2011 Survey responses'!CH161:CP161,'2011 Survey responses'!CH161:CP161,\">1\")))","v":4.666666666666667},{"$f":"IF(SUM('2011 Survey responses'!BW161:CP161)<1,\"\",(AVERAGEIFS('2011 Survey responses'!BW161:CP161,'2011 Survey responses'!BW161:CP161,\">1\")))","v":4.7},{"$f":"IF(('2011 Survey responses'!BW161+'2011 Survey responses'!CG161)<2.1,\"\",(SUMIF('2011 Survey responses'!BW161,\">1\")+SUMIF('2011 Survey responses'!CG161,\">1\"))/(COUNTIF('2011 Survey responses'!BW161,\">1\")+COUNTIF('2011 Survey responses'!CG161,\">1\")))","v":5},{"$f":"IF(('2011 Survey responses'!BX161+'2011 Survey responses'!CH161)<2.1,\"\",(SUMIF('2011 Survey responses'!BX161,\">1\")+SUMIF('2011 Survey responses'!CH161,\">1\"))/(COUNTIF('2011 Survey responses'!BX161,\">1\")+COUNTIF('2011 Survey responses'!CH161,\">1\")))","v":5},{"$f":"IF(('2011 Survey responses'!BY161+'2011 Survey responses'!CI161)<2.1,\"\",(SUMIF('2011 Survey responses'!BY161,\">1\")+SUMIF('2011 Survey responses'!CI161,\">1\"))/(COUNTIF('2011 Survey responses'!BY161,\">1\")+COUNTIF('2011 Survey responses'!CI161,\">1\")))","v":5},{"$f":"IF('2011 Survey responses'!CQ161<0.5,\"\",'2011 Survey responses'!CQ161)","v":3},{"$f":"IF('2011 Survey responses'!CR161<0.5,\"\",'2011 Survey responses'!CR161)","v":2},{"$f":"IF('2011 Survey responses'!CS161<0.5,\"\",'2011 Survey responses'!CS161)","v":2},{"$f":"IF('2011 Survey responses'!CT161<0.5,\"\",'2011 Survey responses'!CT161)","v":4},{"$f":"IF('2011 Survey responses'!CU161<0.5,\"\",'2011 Survey responses'!CU161)","v":4},{"$f":"IF('2011 Survey responses'!CV161<0.5,\"\",'2011 Survey responses'!CV161)","v":1},{"$f":"IF(SUM('2011 Survey responses'!CW161:DL161)<1,\"\",(AVERAGE('2011 Survey responses'!CW161:DL161)))","v":3.4375},{"$f":"IF(SUM('2011 Survey responses'!CW161:CZ161)<1,\"\",(AVERAGE('2011 Survey responses'!CW161:CZ161)))","v":4},{"$f":"IF(SUM('2011 Survey responses'!DA161:DD161)<1,\"\",(AVERAGE('2011 Survey responses'!DA161:DD161)))","v":3.25},{"$f":"IF(SUM('2011 Survey responses'!DE161:DH161)<1,\"\",(AVERAGE('2011 Survey responses'!DE161:DH161)))","v":3.25},{"$f":"IF(SUM('2011 Survey responses'!DI161:DL161)<1,\"\",(AVERAGE('2011 Survey responses'!DI161:DL161)))","v":3.25},{"$f":"IF(('2011 Survey responses'!CW161+'2011 Survey responses'!DA161+'2011 Survey responses'!DE161+'2011 Survey responses'!DI161)<1,\"\",AVERAGE('2011 Survey responses'!CW161,'2011 Survey responses'!DA161,'2011 Survey responses'!DE161,'2011 Survey responses'!DI161))","v":4},{"$f":"IF(('2011 Survey responses'!CX161+'2011 Survey responses'!DB161+'2011 Survey responses'!DF161+'2011 Survey responses'!DJ161)<1,\"\",AVERAGE('2011 Survey responses'!CX161,'2011 Survey responses'!DB161,'2011 Survey responses'!DF161,'2011 Survey responses'!DJ161))","v":3.25},{"$f":"IF(('2011 Survey responses'!CY161+'2011 Survey responses'!DC161+'2011 Survey responses'!DG161+'2011 Survey responses'!DK161)<1,\"\",AVERAGE('2011 Survey responses'!CY161,'2011 Survey responses'!DC161,'2011 Survey responses'!DG161,'2011 Survey responses'!DK161))","v":3.25},{"$f":"IF(('2011 Survey responses'!CZ161+'2011 Survey responses'!DD161+'2011 Survey responses'!DH161+'2011 Survey responses'!DL161)<1,\"\",AVERAGE('2011 Survey responses'!CZ161,'2011 Survey responses'!DD161,'2011 Survey responses'!DH161,'2011 Survey responses'!DL161))","v":3.25},{"$f":"IF('2011 Survey responses'!CW161<0.5,\"\",'2011 Survey responses'!CW161)","v":4},{"$f":"IF('2011 Survey responses'!CX161<0.5,\"\",'2011 Survey responses'!CX161)","v":4},{"$f":"IF('2011 Survey responses'!CY161<0.5,\"\",'2011 Survey responses'!CY161)","v":4},{"$f":"IF('2011 Survey responses'!CZ161<0.5,\"\",'2011 Survey responses'!CZ161)","v":4},{"$f":"IF('2011 Survey responses'!DA161<0.5,\"\",'2011 Survey responses'!DA161)","v":4},{"$f":"IF('2011 Survey responses'!DB161<0.5,\"\",'2011 Survey responses'!DB161)","v":3},{"$f":"IF('2011 Survey responses'!DC161<0.5,\"\",'2011 Survey responses'!DC161)","v":3},{"$f":"IF('2011 Survey responses'!DD161<0.5,\"\",'2011 Survey responses'!DD161)","v":3},{"$f":"IF('2011 Survey responses'!DE161<0.5,\"\",'2011 Survey responses'!DE161)","v":4},{"$f":"IF('2011 Survey responses'!DF161<0.5,\"\",'2011 Survey responses'!DF161)","v":3},{"$f":"IF('2011 Survey responses'!DG161<0.5,\"\",'2011 Survey responses'!DG161)","v":3},{"$f":"IF('2011 Survey responses'!DH161<0.5,\"\",'2011 Survey responses'!DH161)","v":3},{"$f":"IF('2011 Survey responses'!DI161<0.5,\"\",'2011 Survey responses'!DI161)","v":4},{"$f":"IF('2011 Survey responses'!DJ161<0.5,\"\",'2011 Survey responses'!DJ161)","v":3},{"$f":"IF('2011 Survey responses'!DK161<0.5,\"\",'2011 Survey responses'!DK161)","v":3},{"$f":"IF('2011 Survey responses'!DL161<0.5,\"\",'2011 Survey responses'!DL161)","v":3},{"$f":"IF('2011 Survey responses'!DU161=4,4,IF('2011 Survey responses'!DU161=5,4,\"\"))","v":""},{"$f":"IF('2011 Survey responses'!DV161=4,3,IF('2011 Survey responses'!DV161=5,3,\"\"))","v":3},"",{"$f":"IF(CQ161=2,CQ161,IF(CO161=4,CO161,IF(CP161=3,CP161,IF('2011 Survey responses'!GT161=1,1,\"\"))))","v":3},{"$f":"IF('2011 Survey responses'!DO161<0.5,\"\",'2011 Survey responses'!DO161)","v":2},{"$f":"IF('2011 Survey responses'!DP161<0.5,\"\",'2011 Survey responses'!DP161)","v":5},{"$f":"IF('2011 Survey responses'!DQ161<0.5,\"\",'2011 Survey responses'!DQ161)","v":4},{"$f":"IF('2011 Survey responses'!DR161<0.5,\"\",'2011 Survey responses'!DR161)","v":5},{"$f":"IF('2011 Survey responses'!DS161<0.5,\"\",'2011 Survey responses'!DS161)","v":5},{"$f":"IF('2011 Survey responses'!DT161<0.5,\"\",'2011 Survey responses'!DT161)","v":4},{"$f":"IF('2011 Survey responses'!DU161<0.5,\"\",'2011 Survey responses'!DU161)","v":2},{"$f":"IF('2011 Survey responses'!DV161<0.5,\"\",'2011 Survey responses'!DV161)","v":4},{"$f":"IF('2011 Survey responses'!DW161<0.5,\"\",'2011 Survey responses'!DW161)","v":5},{"$f":"IF('2011 Survey responses'!DX161<0.5,\"\",'2011 Survey responses'!DX161)","v":5},{"$f":"IF('2011 Survey responses'!DY161<0.5,\"\",'2011 Survey responses'!DY161)","v":5},{"$f":"IF('2011 Survey responses'!DZ161<0.5,\"\",'2011 Survey responses'!DZ161)","v":5},{"$f":"IF('2011 Survey responses'!EA161<0.5,\"\",'2011 Survey responses'!EA161)","v":3},{"$f":"IF('2011 Survey responses'!EB161<0.5,\"\",'2011 Survey responses'!EB161)","v":5},{"$f":"IF('2011 Survey responses'!EC161<0.5,\"\",'2011 Survey responses'!EC161)","v":4},{"$f":"IF('2011 Survey responses'!ED161<0.5,\"\",'2011 Survey responses'!ED161)","v":4},{"$f":"IF('2011 Survey responses'!EE161<0.5,\"\",'2011 Survey responses'!EE161)","v":5},{"$f":"IF('2011 Survey responses'!EF161<0.5,\"\",'2011 Survey responses'!EF161)","v":5},{"$f":"IF('2011 Survey responses'!EG161<0.5,\"\",'2011 Survey responses'!EG161)","v":3},{"$f":"IF('2011 Survey responses'!EH161<0.5,\"\",'2011 Survey responses'!EH161)","v":3},{"$f":"IF('2011 Survey responses'!EI161<0.5,\"\",'2011 Survey responses'!EI161)","v":4},{"$f":"IF('2011 Survey responses'!EJ161<0.5,\"\",'2011 Survey responses'!EJ161)","v":4},{"$f":"IF('2011 Survey responses'!EK161<0.5,\"\",'2011 Survey responses'!EK161)","v":5},{"$f":"IF('2011 Survey responses'!EL161<0.5,\"\",'2011 Survey responses'!EL161)","v":4},{"$f":"IF('2011 Survey responses'!EM161<0.5,\"\",'2011 Survey responses'!EM161)","v":5},{"$f":"IF('2011 Survey responses'!EN161<0.5,\"\",'2011 Survey responses'!EN161)","v":5},{"$f":"IF('2011 Survey responses'!EO161<0.5,\"\",'2011 Survey responses'!EO161)","v":5},{"$f":"IF('2011 Survey responses'!EP161<0.5,\"\",'2011 Survey responses'!EP161)","v":5},{"$f":"IF(('2011 Survey responses'!EW161+'2011 Survey responses'!EX161)>=2,AVERAGE('2011 Survey responses'!EW161,'2011 Survey responses'!EY161),\"\")","v":4.5},{"$f":"IF('2011 Survey responses'!EX161<0.5,\"\",'2011 Survey responses'!EX161)","v":4},{"$f":"IF('2011 Survey responses'!EZ161<0.5,\"\",'2011 Survey responses'!EZ161)","v":4},{"$f":"IF('2011 Survey responses'!FB161<0.5,\"\",'2011 Survey responses'!FB161)","v":3},{"$f":"IF('2011 Survey responses'!FD161<0.5,\"\",'2011 Survey responses'!FD161)","v":5},{"$f":"IF('2011 Survey responses'!FC161<0.5,\"\",'2011 Survey responses'!FC161)","v":5},{"$f":"IF(('2011 Survey responses'!EM161+'2011 Survey responses'!EN161)>=2,AVERAGE('2011 Survey responses'!EM161,'2011 Survey responses'!EN161),\"\")","v":5},{"$f":"IF('2011 Survey responses'!ES161<0.5,\"\",'2011 Survey responses'!ES161)","v":5},{"$f":"IF(('2011 Survey responses'!ET161+'2011 Survey responses'!EU161)>=2,AVERAGE('2011 Survey responses'!ET161,'2011 Survey responses'!EU161),\"\")","v":5},{"$f":"IF('2011 Survey responses'!EV161<0.5,\"\",'2011 Survey responses'!EV161)","v":2},{"$f":"IF('2011 Survey responses'!FA161<0.5,\"\",'2011 Survey responses'!FA161)","v":4},{"$f":"IF('2011 Survey responses'!ER161<0.5,\"\",'2011 Survey responses'!ER161)","v":2},{"$f":"IF(('2011 Survey responses'!EO161+'2011 Survey responses'!EP161)>=2,AVERAGE('2011 Survey responses'!EO161,'2011 Survey responses'!EP161),\"\")","v":5},{"$f":"IF('2011 Survey responses'!EQ161<0.5,\"\",'2011 Survey responses'!EQ161)","v":2},{"$f":"IF('2011 Survey responses'!ET161<0.5,\"\",'2011 Survey responses'!ET161)","v":5},{"$f":"IF('2011 Survey responses'!EU161<0.5,\"\",'2011 Survey responses'!EU161)","v":5},{"$f":"IF('2011 Survey responses'!EW161<0.5,\"\",'2011 Survey responses'!EW161)","v":4},{"$f":"IF('2011 Survey responses'!EY161<0.5,\"\",'2011 Survey responses'!EY161)","v":5},{"$f":"IF('2011 Survey responses'!FU161<0.5,\"\",'2011 Survey responses'!FU161)","v":5},{"$f":"IF(('2011 Survey responses'!FL161+'2011 Survey responses'!FM161)>=2,AVERAGE('2011 Survey responses'!FL161,'2011 Survey responses'!FM161),\"\")","v":5},{"$f":"IF(('2011 Survey responses'!FO161+'2011 Survey responses'!FQ161)>=2,AVERAGE('2011 Survey responses'!FO161,'2011 Survey responses'!FQ161),\"\")","v":4.5},{"$f":"IF('2011 Survey responses'!FJ161<0.5,\"\",'2011 Survey responses'!FJ161)","v":4},{"$f":"IF('2011 Survey responses'!FT161<0.5,\"\",'2011 Survey responses'!FT161)","v":3},{"$f":"IF('2011 Survey responses'!FR161<0.5,\"\",'2011 Survey responses'!FR161)","v":4},{"$f":"IF('2011 Survey responses'!FK161<0.5,\"\",'2011 Survey responses'!FK161)","v":5},{"$f":"IF('2011 Survey responses'!FP161<0.5,\"\",'2011 Survey responses'!FP161)","v":5},{"$f":"IF('2011 Survey responses'!FN161<0.5,\"\",'2011 Survey responses'!FN161)","v":1},{"$f":"IF(('2011 Survey responses'!FE161+'2011 Survey responses'!FF161)>=2,AVERAGE('2011 Survey responses'!FE161,'2011 Survey responses'!FF161),\"\")","v":5},{"$f":"IF('2011 Survey responses'!FS161<0.5,\"\",'2011 Survey responses'!FS161)","v":4},{"$f":"IF('2011 Survey responses'!FV161<0.5,\"\",'2011 Survey responses'!FV161)","v":5},{"$f":"IF(('2011 Survey responses'!FG161+'2011 Survey responses'!FH161)>=2,AVERAGE('2011 Survey responses'!FG161,'2011 Survey responses'!FH161),\"\")","v":5},{"$f":"IF('2011 Survey responses'!FI161<0.5,\"\",'2011 Survey responses'!FI161)","v":3},{"$f":"IF('2011 Survey responses'!FE161<0.5,\"\",'2011 Survey responses'!FE161)","v":5},{"$f":"IF('2011 Survey responses'!FF161<0.5,\"\",'2011 Survey responses'!FF161)","v":5},{"$f":"IF('2011 Survey responses'!FG161<0.5,\"\",'2011 Survey responses'!FG161)","v":5},{"$f":"IF('2011 Survey responses'!FH161<0.5,\"\",'2011 Survey responses'!FH161)","v":5},{"$f":"IF('2011 Survey responses'!FL161<0.5,\"\",'2011 Survey responses'!FL161)","v":5},{"$f":"IF('2011 Survey responses'!FM161<0.5,\"\",'2011 Survey responses'!FM161)","v":5},{"$f":"IF('2011 Survey responses'!FO161<0.5,\"\",'2011 Survey responses'!FO161)","v":4},{"$f":"IF('2011 Survey responses'!FQ161<0.5,\"\",'2011 Survey responses'!FQ161)","v":5}]
["Spain",{"$f":"IF(SUM(F162)<1,\"\",AVERAGEIF('2011 Survey responses'!B162:CP162,\">1\"))","v":5.8620689655172411},{"$f":"IF(SUM(F162)<1,\"\",AVERAGEIF('2011 Survey responses'!B162:AO162,\">1\"))","v":5.7647058823529411},{"$f":"IF(SUM(F162)<1,\"\",AVERAGEIF('2011 Survey responses'!B162:BV162,\">1\"))","v":5.8358208955223878},{"$f":"IF(SUM(F162)<1,\"\",AVERAGEIF('2011 Survey responses'!V162:BV162,\">1\"))","v":5.94},{"$f":"IF(SUM('2011 Survey responses'!B162:U162)<1,\"\",(AVERAGEIFS('2011 Survey responses'!B162:U162,'2011 Survey responses'!B162:U162,\">1\")))","v":5.5294117647058822},{"$f":"IF(SUM('2011 Survey responses'!B162:H162)<1,\"\",(AVERAGEIFS('2011 Survey responses'!B162:H162,'2011 Survey responses'!B162:H162,\">1\")))","v":6},{"$f":"IF(SUM('2011 Survey responses'!I162:S162)<1,\"\",(AVERAGEIFS('2011 Survey responses'!I162:S162,'2011 Survey responses'!I162:S162,\">1\")))","v":5},{"$f":"IF(SUM('2011 Survey responses'!T162:U162)<2.1,\"\",(AVERAGEIFS('2011 Survey responses'!T162:U162,'2011 Survey responses'!T162:U162,\">1\")))","v":6},{"$f":"IF(SUM('2011 Survey responses'!B162:C162)<2.1,\"\",((SUMIF('2011 Survey responses'!B162:C162,\">1\")+SUMIF('2011 Survey responses'!F162,\">1\"))/(COUNTIF('2011 Survey responses'!B162:C162,\">1\")+COUNTIF('2011 Survey responses'!F162,\">1\"))))","v":6},{"$f":"IF(SUM('2011 Survey responses'!D162:E162)<2.1,\"\",(AVERAGEIFS('2011 Survey responses'!D162:E162,'2011 Survey responses'!D162:E162,\">1\")))","v":6},{"$f":"IF(('2011 Survey responses'!B162+'2011 Survey responses'!D162)<2.1,\"\",((SUMIF('2011 Survey responses'!B162,\">1\")+SUMIF('2011 Survey responses'!D162,\">1\")+SUMIF('2011 Survey responses'!F162,\">1\")+SUMIF('2011 Survey responses'!K162,\">1\"))/(COUNTIF('2011 Survey responses'!B162,\">1\")+COUNTIF('2011 Survey responses'!D162,\">1\")+COUNTIF('2011 Survey responses'!F162,\">1\")+COUNTIF('2011 Survey responses'!K162,\">1\"))))","v":5},{"$f":"IF(SUM('2011 Survey responses'!G162:H162)<2.1,\"\",(AVERAGEIFS('2011 Survey responses'!G162:H162,'2011 Survey responses'!G162:H162,\">1\")))","v":6},{"$f":"IF(SUM('2011 Survey responses'!F162:G162)<1.5,\"\",MAX('2011 Survey responses'!F162,'2011 Survey responses'!G162))","v":6},{"$f":"IF(SUM('2011 Survey responses'!G162:H162)<1,\"\",MAX('2011 Survey responses'!G162,'2011 Survey responses'!H162))","v":6},{"$f":"IF(SUM('2011 Survey responses'!I162:L162)<4.1,\"\",(AVERAGEIFS('2011 Survey responses'!I162:L162,'2011 Survey responses'!I162:L162,\">1\")))","v":4},{"$f":"IF(SUM('2011 Survey responses'!M162:S162)<4.1,\"\",(AVERAGEIFS('2011 Survey responses'!M162:S162,'2011 Survey responses'!M162:S162,\">1\")))","v":5.333333333333333},{"$f":"IF(SUM('2011 Survey responses'!T162:U162)<2.1,\"\",(AVERAGEIFS('2011 Survey responses'!T162:U162,'2011 Survey responses'!T162:U162,\">1\")))","v":6},{"$f":"IF(SUM('2011 Survey responses'!V162:AO162)<1,\"\",(AVERAGEIFS('2011 Survey responses'!V162:AO162,'2011 Survey responses'!V162:AO162,\">1\")))","v":6},{"$f":"IF(SUM('2011 Survey responses'!V162:AA162)<1,\"\",(AVERAGEIFS('2011 Survey responses'!V162:AA162,'2011 Survey responses'!V162:AA162,\">1\")))","v":6},{"$f":"IF(SUM('2011 Survey responses'!AB162:AH162)<1,\"\",(AVERAGEIFS('2011 Survey responses'!AB162:AH162,'2011 Survey responses'!AB162:AH162,\">1\")))","v":6},{"$f":"IF(SUM('2011 Survey responses'!AI162:AO162)<1,\"\",(AVERAGEIFS('2011 Survey responses'!AI162:AO162,'2011 Survey responses'!AI162:AO162,\">1\")))","v":6},{"$f":"IF(('2011 Survey responses'!Y162+'2011 Survey responses'!AI162+'2011 Survey responses'!AK162)<3.1,\"\",((SUMIF('2011 Survey responses'!Y162,\">1\")+SUMIF('2011 Survey responses'!AI162,\">1\")+SUMIF('2011 Survey responses'!AK162,\">1\")+SUMIF('2011 Survey responses'!AM162,\">1\"))/(COUNTIF('2011 Survey responses'!Y162,\">1\")+COUNTIF('2011 Survey responses'!AI162,\">1\")+COUNTIF('2011 Survey responses'!AK162,\">1\")+COUNTIF('2011 Survey responses'!AM162,\">1\"))))","v":6},{"$f":"IF(('2011 Survey responses'!W162)<1.1,\"\",('2011 Survey responses'!W162))","v":6},{"$f":"IF(('2011 Survey responses'!Y162)<1.1,\"\",('2011 Survey responses'!Y162))","v":6},{"$f":"IF(('2011 Survey responses'!Z162)<1.1,\"\",('2011 Survey responses'!Z162))","v":6},{"$f":"IF(('2011 Survey responses'!V162+'2011 Survey responses'!X162+'2011 Survey responses'!AA162)<3.1,\"\",((SUMIF('2011 Survey responses'!V162,\">1\")+SUMIF('2011 Survey responses'!X162,\">1\")+SUMIF('2011 Survey responses'!AA162,\">1\"))/(COUNTIF('2011 Survey responses'!V162,\">1\")+COUNTIF('2011 Survey responses'!X162,\">1\")+COUNTIF('2011 Survey responses'!AA162,\">1\"))))","v":6},{"$f":"IF(('2011 Survey responses'!V162+'2011 Survey responses'!Y162+'2011 Survey responses'!AA162)<3.1,\"\",((SUMIF('2011 Survey responses'!V162,\">1\")+SUMIF('2011 Survey responses'!Y162,\">1\")+SUMIF('2011 Survey responses'!AA162,\">1\"))/(COUNTIF('2011 Survey responses'!V162,\">1\")+COUNTIF('2011 Survey responses'!Y162,\">1\")+COUNTIF('2011 Survey responses'!AA162,\">1\"))))","v":6},{"$f":"IF(SUM('2011 Survey responses'!AB162:AH162)<1,\"\",(AVERAGEIFS('2011 Survey responses'!AB162:AH162,'2011 Survey responses'!AB162:AH162,\">1\")))","v":6},{"$f":"IF(SUM('2011 Survey responses'!AI162:AO162)<7.1,\"\",(AVERAGEIFS('2011 Survey responses'!AI162:AO162,'2011 Survey responses'!AI162:AO162,\">1\")))","v":6},{"$f":"IF(('2011 Survey responses'!AH162)<1.1,\"\",('2011 Survey responses'!AH162))","v":""},{"$f":"IF(SUM('2011 Survey responses'!AP162:BV162)<1,\"\",(AVERAGEIFS('2011 Survey responses'!AP162:BV162,'2011 Survey responses'!AP162:BV162,\">1\")))","v":5.9090909090909092},{"$f":"IF(SUM('2011 Survey responses'!AP162:AS162)<4.1,\"\",(AVERAGEIFS('2011 Survey responses'!AP162:AS162,'2011 Survey responses'!AP162:AS162,\">1\")))","v":6},{"$f":"IF(SUM('2011 Survey responses'!AT162:BF162)<1,\"\",(AVERAGEIFS('2011 Survey responses'!AT162:BF162,'2011 Survey responses'!AT162:BF162,\">1\")))","v":5.8461538461538458},{"$f":"IF(SUM('2011 Survey responses'!BG162:BO162)<1,\"\",(AVERAGEIFS('2011 Survey responses'!BG162:BO162,'2011 Survey responses'!BG162:BO162,\">1\")))","v":6},{"$f":"IF(SUM('2011 Survey responses'!BP162:BS162)<1,\"\",(AVERAGEIFS('2011 Survey responses'!BP162:BS162,'2011 Survey responses'!BP162:BS162,\">1\")))","v":6},{"$f":"IF(SUM('2011 Survey responses'!BT162:BV162)<3.1,\"\",(AVERAGEIFS('2011 Survey responses'!BT162:BV162,'2011 Survey responses'!BT162:BV162,\">1\")))","v":5.666666666666667},{"$f":"IF(('2011 Survey responses'!AQ162+'2011 Survey responses'!AR162+'2011 Survey responses'!BG162)<3.1,\"\",((SUMIF('2011 Survey responses'!AQ162,\">1\")+SUMIF('2011 Survey responses'!AR162,\">1\")+SUMIF('2011 Survey responses'!BG162,\">1\"))/(COUNTIF('2011 Survey responses'!AQ162,\">1\")+COUNTIF('2011 Survey responses'!AR162,\">1\")+COUNTIF('2011 Survey responses'!BG162,\">1\"))))","v":6},{"$f":"IF(SUM('2011 Survey responses'!AP162:AS162)<4.1,\"\",(AVERAGEIFS('2011 Survey responses'!AP162:AS162,'2011 Survey responses'!AP162:AS162,\">1\")))","v":6},{"$f":"IF(('2011 Survey responses'!AU162+'2011 Survey responses'!AX162+'2011 Survey responses'!BA162+'2011 Survey responses'!BC162+'2011 Survey responses'!BD162)<5.1,\"\",(SUMIF('2011 Survey responses'!AU162,\">1\")+SUMIF('2011 Survey responses'!AX162,\">1\")+SUMIF('2011 Survey responses'!BA162,\">1\")+SUMIF('2011 Survey responses'!BC162,\">1\")+SUMIF('2011 Survey responses'!BD162,\">1\"))/(COUNTIF('2011 Survey responses'!AU162,\">1\")+COUNTIF('2011 Survey responses'!AX162,\">1\")+COUNTIF('2011 Survey responses'!BA162,\">1\")+COUNTIF('2011 Survey responses'!BC162,\">1\")+COUNTIF('2011 Survey responses'!BD162,\">1\")))","v":5.6},{"$f":"IF(('2011 Survey responses'!AT162)<1.1,\"\",('2011 Survey responses'!AT162))","v":6},{"$f":"IF(SUM('2011 Survey responses'!AV162:AW162)<2.1,\"\",(AVERAGEIFS('2011 Survey responses'!AV162:AW162,'2011 Survey responses'!AV162:AW162,\">1\")))","v":6},{"$f":"IF(('2011 Survey responses'!AW162+'2011 Survey responses'!AY162)<2.1,\"\",(SUMIF('2011 Survey responses'!AW162,\">1\")+SUMIF('2011 Survey responses'!AY162,\">1\"))/(COUNTIF('2011 Survey responses'!AW162,\">1\")+COUNTIF('2011 Survey responses'!AY162,\">1\")))","v":6},{"$f":"IF(('2011 Survey responses'!AZ162)<1.1,\"\",('2011 Survey responses'!AZ162))","v":6},6,5,6,5,{"$f":"IF(('2011 Survey responses'!BE162)<1.1,\"\",('2011 Survey responses'!BE162))","v":6},{"$f":"IF(('2011 Survey responses'!AY162+'2011 Survey responses'!BB162+'2011 Survey responses'!BF162)<3.1,\"\",(SUMIF('2011 Survey responses'!AY162,\">1\")+SUMIF('2011 Survey responses'!BB162,\">1\")+SUMIF('2011 Survey responses'!BF162,\">1\"))/(COUNTIF('2011 Survey responses'!AY162,\">1\")+COUNTIF('2011 Survey responses'!BB162,\">1\")+COUNTIF('2011 Survey responses'!BF162,\">1\")))","v":6},6,{"$f":"IF(SUM('2011 Survey responses'!BT162:BV162)<3.1,\"\",(AVERAGEIFS('2011 Survey responses'!BT162:BV162,'2011 Survey responses'!BT162:BV162,\">1\")))","v":5.666666666666667},{"$f":"IF(SUM('2011 Survey responses'!BW162:CP162)<1,\"\",(AVERAGEIFS('2011 Survey responses'!BW162:CP162,'2011 Survey responses'!BW162:CP162,\">1\")))","v":5.95},{"$f":"IF(SUM('2011 Survey responses'!BW162:CF162)<1,\"\",(AVERAGEIFS('2011 Survey responses'!BW162:CF162,'2011 Survey responses'!BW162:CF162,\">1\")))","v":6},{"$f":"IF(SUM('2011 Survey responses'!CG162:CP162)<1,\"\",(AVERAGEIFS('2011 Survey responses'!CG162:CP162,'2011 Survey responses'!CG162:CP162,\">1\")))","v":5.9},{"$f":"IF(SUM('2011 Survey responses'!BX162:CF162)<1,\"\",(AVERAGEIFS('2011 Survey responses'!BX162:CF162,'2011 Survey responses'!BX162:CF162,\">1\")))","v":6},{"$f":"IF(SUM('2011 Survey responses'!CH162:CP162)<1,\"\",(AVERAGEIFS('2011 Survey responses'!CH162:CP162,'2011 Survey responses'!CH162:CP162,\">1\")))","v":5.8888888888888893},{"$f":"IF(SUM('2011 Survey responses'!BW162:CP162)<1,\"\",(AVERAGEIFS('2011 Survey responses'!BW162:CP162,'2011 Survey responses'!BW162:CP162,\">1\")))","v":5.95},{"$f":"IF(('2011 Survey responses'!BW162+'2011 Survey responses'!CG162)<2.1,\"\",(SUMIF('2011 Survey responses'!BW162,\">1\")+SUMIF('2011 Survey responses'!CG162,\">1\"))/(COUNTIF('2011 Survey responses'!BW162,\">1\")+COUNTIF('2011 Survey responses'!CG162,\">1\")))","v":6},{"$f":"IF(('2011 Survey responses'!BX162+'2011 Survey responses'!CH162)<2.1,\"\",(SUMIF('2011 Survey responses'!BX162,\">1\")+SUMIF('2011 Survey responses'!CH162,\">1\"))/(COUNTIF('2011 Survey responses'!BX162,\">1\")+COUNTIF('2011 Survey responses'!CH162,\">1\")))","v":6},{"$f":"IF(('2011 Survey responses'!BY162+'2011 Survey responses'!CI162)<2.1,\"\",(SUMIF('2011 Survey responses'!BY162,\">1\")+SUMIF('2011 Survey responses'!CI162,\">1\"))/(COUNTIF('2011 Survey responses'!BY162,\">1\")+COUNTIF('2011 Survey responses'!CI162,\">1\")))","v":6},{"$f":"IF('2011 Survey responses'!CQ162<0.5,\"\",'2011 Survey responses'!CQ162)","v":4},{"$f":"IF('2011 Survey responses'!CR162<0.5,\"\",'2011 Survey responses'!CR162)","v":2},{"$f":"IF('2011 Survey responses'!CS162<0.5,\"\",'2011 Survey responses'!CS162)","v":2},{"$f":"IF('2011 Survey responses'!CT162<0.5,\"\",'2011 Survey responses'!CT162)","v":5},{"$f":"IF('2011 Survey responses'!CU162<0.5,\"\",'2011 Survey responses'!CU162)","v":4},{"$f":"IF('2011 Survey responses'!CV162<0.5,\"\",'2011 Survey responses'!CV162)","v":4},{"$f":"IF(SUM('2011 Survey responses'!CW162:DL162)<1,\"\",(AVERAGE('2011 Survey responses'!CW162:DL162)))","v":4.4375},{"$f":"IF(SUM('2011 Survey responses'!CW162:CZ162)<1,\"\",(AVERAGE('2011 Survey responses'!CW162:CZ162)))","v":5},{"$f":"IF(SUM('2011 Survey responses'!DA162:DD162)<1,\"\",(AVERAGE('2011 Survey responses'!DA162:DD162)))","v":4.25},{"$f":"IF(SUM('2011 Survey responses'!DE162:DH162)<1,\"\",(AVERAGE('2011 Survey responses'!DE162:DH162)))","v":4.25},{"$f":"IF(SUM('2011 Survey responses'!DI162:DL162)<1,\"\",(AVERAGE('2011 Survey responses'!DI162:DL162)))","v":4.25},{"$f":"IF(('2011 Survey responses'!CW162+'2011 Survey responses'!DA162+'2011 Survey responses'!DE162+'2011 Survey responses'!DI162)<1,\"\",AVERAGE('2011 Survey responses'!CW162,'2011 Survey responses'!DA162,'2011 Survey responses'!DE162,'2011 Survey responses'!DI162))","v":5},{"$f":"IF(('2011 Survey responses'!CX162+'2011 Survey responses'!DB162+'2011 Survey responses'!DF162+'2011 Survey responses'!DJ162)<1,\"\",AVERAGE('2011 Survey responses'!CX162,'2011 Survey responses'!DB162,'2011 Survey responses'!DF162,'2011 Survey responses'!DJ162))","v":4.25},{"$f":"IF(('2011 Survey responses'!CY162+'2011 Survey responses'!DC162+'2011 Survey responses'!DG162+'2011 Survey responses'!DK162)<1,\"\",AVERAGE('2011 Survey responses'!CY162,'2011 Survey responses'!DC162,'2011 Survey responses'!DG162,'2011 Survey responses'!DK162))","v":4.25},{"$f":"IF(('2011 Survey responses'!CZ162+'2011 Survey responses'!DD162+'2011 Survey responses'!DH162+'2011 Survey responses'!DL162)<1,\"\",AVERAGE('2011 Survey responses'!CZ162,'2011 Survey responses'!DD162,'2011 Survey responses'!DH162,'2011 Survey responses'!DL162))","v":4.25},{"$f":"IF('2011 Survey responses'!CW162<0.5,\"\",'2011 Survey responses'!CW162)","v":5},{"$f":"IF('2011 Survey responses'!CX162<0.5,\"\",'2011 Survey responses'!CX162)","v":5},{"$f":"IF('2011 Survey responses'!CY162<0.5,\"\",'2011 Survey responses'!CY162)","v":5},{"$f":"IF('2011 Survey responses'!CZ162<0.5,\"\",'2011 Survey responses'!CZ162)","v":5},{"$f":"IF('2011 Survey responses'!DA162<0.5,\"\",'2011 Survey responses'!DA162)","v":5},{"$f":"IF('2011 Survey responses'!DB162<0.5,\"\",'2011 Survey responses'!DB162)","v":4},{"$f":"IF('2011 Survey responses'!DC162<0.5,\"\",'2011 Survey responses'!DC162)","v":4},{"$f":"IF('2011 Survey responses'!DD162<0.5,\"\",'2011 Survey responses'!DD162)","v":4},{"$f":"IF('2011 Survey responses'!DE162<0.5,\"\",'2011 Survey responses'!DE162)","v":5},{"$f":"IF('2011 Survey responses'!DF162<0.5,\"\",'2011 Survey responses'!DF162)","v":4},{"$f":"IF('2011 Survey responses'!DG162<0.5,\"\",'2011 Survey responses'!DG162)","v":4},{"$f":"IF('2011 Survey responses'!DH162<0.5,\"\",'2011 Survey responses'!DH162)","v":4},{"$f":"IF('2011 Survey responses'!DI162<0.5,\"\",'2011 Survey responses'!DI162)","v":5},{"$f":"IF('2011 Survey responses'!DJ162<0.5,\"\",'2011 Survey responses'!DJ162)","v":4},{"$f":"IF('2011 Survey responses'!DK162<0.5,\"\",'2011 Survey responses'!DK162)","v":4},{"$f":"IF('2011 Survey responses'!DL162<0.5,\"\",'2011 Survey responses'!DL162)","v":4},{"$f":"IF('2011 Survey responses'!DU162=4,4,IF('2011 Survey responses'!DU162=5,4,\"\"))","v":4},{"$f":"IF('2011 Survey responses'!DV162=4,3,IF('2011 Survey responses'!DV162=5,3,\"\"))","v":3},2,{"$f":"IF(CQ162=2,CQ162,IF(CO162=4,CO162,IF(CP162=3,CP162,IF('2011 Survey responses'!GT162=1,1,\"\"))))","v":2},{"$f":"IF('2011 Survey responses'!DO162<0.5,\"\",'2011 Survey responses'!DO162)","v":4},{"$f":"IF('2011 Survey responses'!DP162<0.5,\"\",'2011 Survey responses'!DP162)","v":5},{"$f":"IF('2011 Survey responses'!DQ162<0.5,\"\",'2011 Survey responses'!DQ162)","v":4},{"$f":"IF('2011 Survey responses'!DR162<0.5,\"\",'2011 Survey responses'!DR162)","v":4},{"$f":"IF('2011 Survey responses'!DS162<0.5,\"\",'2011 Survey responses'!DS162)","v":5},{"$f":"IF('2011 Survey responses'!DT162<0.5,\"\",'2011 Survey responses'!DT162)","v":5},{"$f":"IF('2011 Survey responses'!DU162<0.5,\"\",'2011 Survey responses'!DU162)","v":5},{"$f":"IF('2011 Survey responses'!DV162<0.5,\"\",'2011 Survey responses'!DV162)","v":5},{"$f":"IF('2011 Survey responses'!DW162<0.5,\"\",'2011 Survey responses'!DW162)","v":5},{"$f":"IF('2011 Survey responses'!DX162<0.5,\"\",'2011 Survey responses'!DX162)","v":5},{"$f":"IF('2011 Survey responses'!DY162<0.5,\"\",'2011 Survey responses'!DY162)","v":5},{"$f":"IF('2011 Survey responses'!DZ162<0.5,\"\",'2011 Survey responses'!DZ162)","v":5},{"$f":"IF('2011 Survey responses'!EA162<0.5,\"\",'2011 Survey responses'!EA162)","v":5},{"$f":"IF('2011 Survey responses'!EB162<0.5,\"\",'2011 Survey responses'!EB162)","v":4},{"$f":"IF('2011 Survey responses'!EC162<0.5,\"\",'2011 Survey responses'!EC162)","v":4},{"$f":"IF('2011 Survey responses'!ED162<0.5,\"\",'2011 Survey responses'!ED162)","v":4},{"$f":"IF('2011 Survey responses'!EE162<0.5,\"\",'2011 Survey responses'!EE162)","v":5},{"$f":"IF('2011 Survey responses'!EF162<0.5,\"\",'2011 Survey responses'!EF162)","v":4},{"$f":"IF('2011 Survey responses'!EG162<0.5,\"\",'2011 Survey responses'!EG162)","v":5},{"$f":"IF('2011 Survey responses'!EH162<0.5,\"\",'2011 Survey responses'!EH162)","v":5},{"$f":"IF('2011 Survey responses'!EI162<0.5,\"\",'2011 Survey responses'!EI162)","v":5},{"$f":"IF('2011 Survey responses'!EJ162<0.5,\"\",'2011 Survey responses'!EJ162)","v":5},{"$f":"IF('2011 Survey responses'!EK162<0.5,\"\",'2011 Survey responses'!EK162)","v":5},{"$f":"IF('2011 Survey responses'!EL162<0.5,\"\",'2011 Survey responses'!EL162)","v":5},{"$f":"IF('2011 Survey responses'!EM162<0.5,\"\",'2011 Survey responses'!EM162)","v":1},{"$f":"IF('2011 Survey responses'!EN162<0.5,\"\",'2011 Survey responses'!EN162)","v":5},{"$f":"IF('2011 Survey responses'!EO162<0.5,\"\",'2011 Survey responses'!EO162)","v":3},{"$f":"IF('2011 Survey responses'!EP162<0.5,\"\",'2011 Survey responses'!EP162)","v":3},{"$f":"IF(('2011 Survey responses'!EW162+'2011 Survey responses'!EX162)>=2,AVERAGE('2011 Survey responses'!EW162,'2011 Survey responses'!EY162),\"\")","v":3.5},{"$f":"IF('2011 Survey responses'!EX162<0.5,\"\",'2011 Survey responses'!EX162)","v":4},{"$f":"IF('2011 Survey responses'!EZ162<0.5,\"\",'2011 Survey responses'!EZ162)","v":4},{"$f":"IF('2011 Survey responses'!FB162<0.5,\"\",'2011 Survey responses'!FB162)","v":5},{"$f":"IF('2011 Survey responses'!FD162<0.5,\"\",'2011 Survey responses'!FD162)","v":5},{"$f":"IF('2011 Survey responses'!FC162<0.5,\"\",'2011 Survey responses'!FC162)","v":5},{"$f":"IF(('2011 Survey responses'!EM162+'2011 Survey responses'!EN162)>=2,AVERAGE('2011 Survey responses'!EM162,'2011 Survey responses'!EN162),\"\")","v":3},{"$f":"IF('2011 Survey responses'!ES162<0.5,\"\",'2011 Survey responses'!ES162)","v":5},{"$f":"IF(('2011 Survey responses'!ET162+'2011 Survey responses'!EU162)>=2,AVERAGE('2011 Survey responses'!ET162,'2011 Survey responses'!EU162),\"\")","v":5},{"$f":"IF('2011 Survey responses'!EV162<0.5,\"\",'2011 Survey responses'!EV162)","v":3},{"$f":"IF('2011 Survey responses'!FA162<0.5,\"\",'2011 Survey responses'!FA162)","v":4},{"$f":"IF('2011 Survey responses'!ER162<0.5,\"\",'2011 Survey responses'!ER162)","v":4},{"$f":"IF(('2011 Survey responses'!EO162+'2011 Survey responses'!EP162)>=2,AVERAGE('2011 Survey responses'!EO162,'2011 Survey responses'!EP162),\"\")","v":3},{"$f":"IF('2011 Survey responses'!EQ162<0.5,\"\",'2011 Survey responses'!EQ162)","v":2},{"$f":"IF('2011 Survey responses'!ET162<0.5,\"\",'2011 Survey responses'!ET162)","v":5},{"$f":"IF('2011 Survey responses'!EU162<0.5,\"\",'2011 Survey responses'!EU162)","v":5},{"$f":"IF('2011 Survey responses'!EW162<0.5,\"\",'2011 Survey responses'!EW162)","v":3},{"$f":"IF('2011 Survey responses'!EY162<0.5,\"\",'2011 Survey responses'!EY162)","v":4},{"$f":"IF('2011 Survey responses'!FU162<0.5,\"\",'2011 Survey responses'!FU162)","v":5},{"$f":"IF(('2011 Survey responses'!FL162+'2011 Survey responses'!FM162)>=2,AVERAGE('2011 Survey responses'!FL162,'2011 Survey responses'!FM162),\"\")","v":5},{"$f":"IF(('2011 Survey responses'!FO162+'2011 Survey responses'!FQ162)>=2,AVERAGE('2011 Survey responses'!FO162,'2011 Survey responses'!FQ162),\"\")","v":4.5},{"$f":"IF('2011 Survey responses'!FJ162<0.5,\"\",'2011 Survey responses'!FJ162)","v":5},{"$f":"IF('2011 Survey responses'!FT162<0.5,\"\",'2011 Survey responses'!FT162)","v":5},{"$f":"IF('2011 Survey responses'!FR162<0.5,\"\",'2011 Survey responses'!FR162)","v":5},{"$f":"IF('2011 Survey responses'!FK162<0.5,\"\",'2011 Survey responses'!FK162)","v":5},{"$f":"IF('2011 Survey responses'!FP162<0.5,\"\",'2011 Survey responses'!FP162)","v":5},{"$f":"IF('2011 Survey responses'!FN162<0.5,\"\",'2011 Survey responses'!FN162)","v":4},{"$f":"IF(('2011 Survey responses'!FE162+'2011 Survey responses'!FF162)>=2,AVERAGE('2011 Survey responses'!FE162,'2011 Survey responses'!FF162),\"\")","v":4.5},{"$f":"IF('2011 Survey responses'!FS162<0.5,\"\",'2011 Survey responses'!FS162)","v":5},{"$f":"IF('2011 Survey responses'!FV162<0.5,\"\",'2011 Survey responses'!FV162)","v":5},{"$f":"IF(('2011 Survey responses'!FG162+'2011 Survey responses'!FH162)>=2,AVERAGE('2011 Survey responses'!FG162,'2011 Survey responses'!FH162),\"\")","v":3},{"$f":"IF('2011 Survey responses'!FI162<0.5,\"\",'2011 Survey responses'!FI162)","v":5},{"$f":"IF('2011 Survey responses'!FE162<0.5,\"\",'2011 Survey responses'!FE162)","v":4},{"$f":"IF('2011 Survey responses'!FF162<0.5,\"\",'2011 Survey responses'!FF162)","v":5},{"$f":"IF('2011 Survey responses'!FG162<0.5,\"\",'2011 Survey responses'!FG162)","v":3},{"$f":"IF('2011 Survey responses'!FH162<0.5,\"\",'2011 Survey responses'!FH162)","v":3},{"$f":"IF('2011 Survey responses'!FL162<0.5,\"\",'2011 Survey responses'!FL162)","v":5},{"$f":"IF('2011 Survey responses'!FM162<0.5,\"\",'2011 Survey responses'!FM162)","v":5},{"$f":"IF('2011 Survey responses'!FO162<0.5,\"\",'2011 Survey responses'!FO162)","v":4},{"$f":"IF('2011 Survey responses'!FQ162<0.5,\"\",'2011 Survey responses'!FQ162)","v":5}]
["Sri Lanka",{"$f":"IF(SUM(F163)<1,\"\",AVERAGEIF('2011 Survey responses'!B163:CP163,\">1\"))","v":3.8928571428571428},{"$f":"IF(SUM(F163)<1,\"\",AVERAGEIF('2011 Survey responses'!B163:AO163,\">1\"))","v":3.375},{"$f":"IF(SUM(F163)<1,\"\",AVERAGEIF('2011 Survey responses'!B163:BV163,\">1\"))","v":3.703125},{"$f":"IF(SUM(F163)<1,\"\",AVERAGEIF('2011 Survey responses'!V163:BV163,\">1\"))","v":3.66},{"$f":"IF(SUM('2011 Survey responses'!B163:U163)<1,\"\",(AVERAGEIFS('2011 Survey responses'!B163:U163,'2011 Survey responses'!B163:U163,\">1\")))","v":3.8571428571428572},{"$f":"IF(SUM('2011 Survey responses'!B163:H163)<1,\"\",(AVERAGEIFS('2011 Survey responses'!B163:H163,'2011 Survey responses'!B163:H163,\">1\")))","v":3.4},{"$f":"IF(SUM('2011 Survey responses'!I163:S163)<1,\"\",(AVERAGEIFS('2011 Survey responses'!I163:S163,'2011 Survey responses'!I163:S163,\">1\")))","v":4.1111111111111107},{"$f":"IF(SUM('2011 Survey responses'!T163:U163)<2.1,\"\",(AVERAGEIFS('2011 Survey responses'!T163:U163,'2011 Survey responses'!T163:U163,\">1\")))","v":""},{"$f":"IF(SUM('2011 Survey responses'!B163:C163)<2.1,\"\",((SUMIF('2011 Survey responses'!B163:C163,\">1\")+SUMIF('2011 Survey responses'!F163,\">1\"))/(COUNTIF('2011 Survey responses'!B163:C163,\">1\")+COUNTIF('2011 Survey responses'!F163,\">1\"))))","v":3.5},{"$f":"IF(SUM('2011 Survey responses'!D163:E163)<2.1,\"\",(AVERAGEIFS('2011 Survey responses'!D163:E163,'2011 Survey responses'!D163:E163,\">1\")))","v":2},{"$f":"IF(('2011 Survey responses'!B163+'2011 Survey responses'!D163)<2.1,\"\",((SUMIF('2011 Survey responses'!B163,\">1\")+SUMIF('2011 Survey responses'!D163,\">1\")+SUMIF('2011 Survey responses'!F163,\">1\")+SUMIF('2011 Survey responses'!K163,\">1\"))/(COUNTIF('2011 Survey responses'!B163,\">1\")+COUNTIF('2011 Survey responses'!D163,\">1\")+COUNTIF('2011 Survey responses'!F163,\">1\")+COUNTIF('2011 Survey responses'!K163,\">1\"))))","v":3.5},{"$f":"IF(SUM('2011 Survey responses'!G163:H163)<2.1,\"\",(AVERAGEIFS('2011 Survey responses'!G163:H163,'2011 Survey responses'!G163:H163,\">1\")))","v":4},{"$f":"IF(SUM('2011 Survey responses'!F163:G163)<1.5,\"\",MAX('2011 Survey responses'!F163,'2011 Survey responses'!G163))","v":5},{"$f":"IF(SUM('2011 Survey responses'!G163:H163)<1,\"\",MAX('2011 Survey responses'!G163,'2011 Survey responses'!H163))","v":4},{"$f":"IF(SUM('2011 Survey responses'!I163:L163)<4.1,\"\",(AVERAGEIFS('2011 Survey responses'!I163:L163,'2011 Survey responses'!I163:L163,\">1\")))","v":4},{"$f":"IF(SUM('2011 Survey responses'!M163:S163)<4.1,\"\",(AVERAGEIFS('2011 Survey responses'!M163:S163,'2011 Survey responses'!M163:S163,\">1\")))","v":4.2},{"$f":"IF(SUM('2011 Survey responses'!T163:U163)<2.1,\"\",(AVERAGEIFS('2011 Survey responses'!T163:U163,'2011 Survey responses'!T163:U163,\">1\")))","v":""},{"$f":"IF(SUM('2011 Survey responses'!V163:AO163)<1,\"\",(AVERAGEIFS('2011 Survey responses'!V163:AO163,'2011 Survey responses'!V163:AO163,\">1\")))","v":3},{"$f":"IF(SUM('2011 Survey responses'!V163:AA163)<1,\"\",(AVERAGEIFS('2011 Survey responses'!V163:AA163,'2011 Survey responses'!V163:AA163,\">1\")))","v":2.25},{"$f":"IF(SUM('2011 Survey responses'!AB163:AH163)<1,\"\",(AVERAGEIFS('2011 Survey responses'!AB163:AH163,'2011 Survey responses'!AB163:AH163,\">1\")))","v":2.5714285714285716},{"$f":"IF(SUM('2011 Survey responses'!AI163:AO163)<1,\"\",(AVERAGEIFS('2011 Survey responses'!AI163:AO163,'2011 Survey responses'!AI163:AO163,\">1\")))","v":3.8571428571428572},{"$f":"IF(('2011 Survey responses'!Y163+'2011 Survey responses'!AI163+'2011 Survey responses'!AK163)<3.1,\"\",((SUMIF('2011 Survey responses'!Y163,\">1\")+SUMIF('2011 Survey responses'!AI163,\">1\")+SUMIF('2011 Survey responses'!AK163,\">1\")+SUMIF('2011 Survey responses'!AM163,\">1\"))/(COUNTIF('2011 Survey responses'!Y163,\">1\")+COUNTIF('2011 Survey responses'!AI163,\">1\")+COUNTIF('2011 Survey responses'!AK163,\">1\")+COUNTIF('2011 Survey responses'!AM163,\">1\"))))","v":3.5},{"$f":"IF(('2011 Survey responses'!W163)<1.1,\"\",('2011 Survey responses'!W163))","v":2},{"$f":"IF(('2011 Survey responses'!Y163)<1.1,\"\",('2011 Survey responses'!Y163))","v":2},{"$f":"IF(('2011 Survey responses'!Z163)<1.1,\"\",('2011 Survey responses'!Z163))","v":""},{"$f":"IF(('2011 Survey responses'!V163+'2011 Survey responses'!X163+'2011 Survey responses'!AA163)<3.1,\"\",((SUMIF('2011 Survey responses'!V163,\">1\")+SUMIF('2011 Survey responses'!X163,\">1\")+SUMIF('2011 Survey responses'!AA163,\">1\"))/(COUNTIF('2011 Survey responses'!V163,\">1\")+COUNTIF('2011 Survey responses'!X163,\">1\")+COUNTIF('2011 Survey responses'!AA163,\">1\"))))","v":2.5},{"$f":"IF(('2011 Survey responses'!V163+'2011 Survey responses'!Y163+'2011 Survey responses'!AA163)<3.1,\"\",((SUMIF('2011 Survey responses'!V163,\">1\")+SUMIF('2011 Survey responses'!Y163,\">1\")+SUMIF('2011 Survey responses'!AA163,\">1\"))/(COUNTIF('2011 Survey responses'!V163,\">1\")+COUNTIF('2011 Survey responses'!Y163,\">1\")+COUNTIF('2011 Survey responses'!AA163,\">1\"))))","v":2.3333333333333335},{"$f":"IF(SUM('2011 Survey responses'!AB163:AH163)<1,\"\",(AVERAGEIFS('2011 Survey responses'!AB163:AH163,'2011 Survey responses'!AB163:AH163,\">1\")))","v":2.5714285714285716},{"$f":"IF(SUM('2011 Survey responses'!AI163:AO163)<7.1,\"\",(AVERAGEIFS('2011 Survey responses'!AI163:AO163,'2011 Survey responses'!AI163:AO163,\">1\")))","v":3.8571428571428572},{"$f":"IF(('2011 Survey responses'!AH163)<1.1,\"\",('2011 Survey responses'!AH163))","v":2},{"$f":"IF(SUM('2011 Survey responses'!AP163:BV163)<1,\"\",(AVERAGEIFS('2011 Survey responses'!AP163:BV163,'2011 Survey responses'!AP163:BV163,\">1\")))","v":4.03125},{"$f":"IF(SUM('2011 Survey responses'!AP163:AS163)<4.1,\"\",(AVERAGEIFS('2011 Survey responses'!AP163:AS163,'2011 Survey responses'!AP163:AS163,\">1\")))","v":3.75},{"$f":"IF(SUM('2011 Survey responses'!AT163:BF163)<1,\"\",(AVERAGEIFS('2011 Survey responses'!AT163:BF163,'2011 Survey responses'!AT163:BF163,\">1\")))","v":3.75},{"$f":"IF(SUM('2011 Survey responses'!BG163:BO163)<1,\"\",(AVERAGEIFS('2011 Survey responses'!BG163:BO163,'2011 Survey responses'!BG163:BO163,\">1\")))","v":4.333333333333333},{"$f":"IF(SUM('2011 Survey responses'!BP163:BS163)<1,\"\",(AVERAGEIFS('2011 Survey responses'!BP163:BS163,'2011 Survey responses'!BP163:BS163,\">1\")))","v":4.5},{"$f":"IF(SUM('2011 Survey responses'!BT163:BV163)<3.1,\"\",(AVERAGEIFS('2011 Survey responses'!BT163:BV163,'2011 Survey responses'!BT163:BV163,\">1\")))","v":4},{"$f":"IF(('2011 Survey responses'!AQ163+'2011 Survey responses'!AR163+'2011 Survey responses'!BG163)<3.1,\"\",((SUMIF('2011 Survey responses'!AQ163,\">1\")+SUMIF('2011 Survey responses'!AR163,\">1\")+SUMIF('2011 Survey responses'!BG163,\">1\"))/(COUNTIF('2011 Survey responses'!AQ163,\">1\")+COUNTIF('2011 Survey responses'!AR163,\">1\")+COUNTIF('2011 Survey responses'!BG163,\">1\"))))","v":4},{"$f":"IF(SUM('2011 Survey responses'!AP163:AS163)<4.1,\"\",(AVERAGEIFS('2011 Survey responses'!AP163:AS163,'2011 Survey responses'!AP163:AS163,\">1\")))","v":3.75},{"$f":"IF(('2011 Survey responses'!AU163+'2011 Survey responses'!AX163+'2011 Survey responses'!BA163+'2011 Survey responses'!BC163+'2011 Survey responses'!BD163)<5.1,\"\",(SUMIF('2011 Survey responses'!AU163,\">1\")+SUMIF('2011 Survey responses'!AX163,\">1\")+SUMIF('2011 Survey responses'!BA163,\">1\")+SUMIF('2011 Survey responses'!BC163,\">1\")+SUMIF('2011 Survey responses'!BD163,\">1\"))/(COUNTIF('2011 Survey responses'!AU163,\">1\")+COUNTIF('2011 Survey responses'!AX163,\">1\")+COUNTIF('2011 Survey responses'!BA163,\">1\")+COUNTIF('2011 Survey responses'!BC163,\">1\")+COUNTIF('2011 Survey responses'!BD163,\">1\")))","v":4.4000000000000004},{"$f":"IF(('2011 Survey responses'!AT163)<1.1,\"\",('2011 Survey responses'!AT163))","v":2},{"$f":"IF(SUM('2011 Survey responses'!AV163:AW163)<2.1,\"\",(AVERAGEIFS('2011 Survey responses'!AV163:AW163,'2011 Survey responses'!AV163:AW163,\">1\")))","v":3},{"$f":"IF(('2011 Survey responses'!AW163+'2011 Survey responses'!AY163)<2.1,\"\",(SUMIF('2011 Survey responses'!AW163,\">1\")+SUMIF('2011 Survey responses'!AY163,\">1\"))/(COUNTIF('2011 Survey responses'!AW163,\">1\")+COUNTIF('2011 Survey responses'!AY163,\">1\")))","v":4},{"$f":"IF(('2011 Survey responses'!AZ163)<1.1,\"\",('2011 Survey responses'!AZ163))","v":4},4,5,4,4,{"$f":"IF(('2011 Survey responses'!BE163)<1.1,\"\",('2011 Survey responses'!BE163))","v":""},{"$f":"IF(('2011 Survey responses'!AY163+'2011 Survey responses'!BB163+'2011 Survey responses'!BF163)<3.1,\"\",(SUMIF('2011 Survey responses'!AY163,\">1\")+SUMIF('2011 Survey responses'!BB163,\">1\")+SUMIF('2011 Survey responses'!BF163,\">1\"))/(COUNTIF('2011 Survey responses'!AY163,\">1\")+COUNTIF('2011 Survey responses'!BB163,\">1\")+COUNTIF('2011 Survey responses'!BF163,\">1\")))","v":3.6666666666666665},{"$f":"IF(SUM(AI163,AJ163)<1,\"\",AVERAGE(AI163,AJ163))","v":4.4166666666666661},{"$f":"IF(SUM('2011 Survey responses'!BT163:BV163)<3.1,\"\",(AVERAGEIFS('2011 Survey responses'!BT163:BV163,'2011 Survey responses'!BT163:BV163,\">1\")))","v":4},{"$f":"IF(SUM('2011 Survey responses'!BW163:CP163)<1,\"\",(AVERAGEIFS('2011 Survey responses'!BW163:CP163,'2011 Survey responses'!BW163:CP163,\">1\")))","v":4.5},{"$f":"IF(SUM('2011 Survey responses'!BW163:CF163)<1,\"\",(AVERAGEIFS('2011 Survey responses'!BW163:CF163,'2011 Survey responses'!BW163:CF163,\">1\")))","v":4.5999999999999996},{"$f":"IF(SUM('2011 Survey responses'!CG163:CP163)<1,\"\",(AVERAGEIFS('2011 Survey responses'!CG163:CP163,'2011 Survey responses'!CG163:CP163,\">1\")))","v":4.4000000000000004},{"$f":"IF(SUM('2011 Survey responses'!BX163:CF163)<1,\"\",(AVERAGEIFS('2011 Survey responses'!BX163:CF163,'2011 Survey responses'!BX163:CF163,\">1\")))","v":4.5555555555555554},{"$f":"IF(SUM('2011 Survey responses'!CH163:CP163)<1,\"\",(AVERAGEIFS('2011 Survey responses'!CH163:CP163,'2011 Survey responses'!CH163:CP163,\">1\")))","v":4.333333333333333},{"$f":"IF(SUM('2011 Survey responses'!BW163:CP163)<1,\"\",(AVERAGEIFS('2011 Survey responses'!BW163:CP163,'2011 Survey responses'!BW163:CP163,\">1\")))","v":4.5},{"$f":"IF(('2011 Survey responses'!BW163+'2011 Survey responses'!CG163)<2.1,\"\",(SUMIF('2011 Survey responses'!BW163,\">1\")+SUMIF('2011 Survey responses'!CG163,\">1\"))/(COUNTIF('2011 Survey responses'!BW163,\">1\")+COUNTIF('2011 Survey responses'!CG163,\">1\")))","v":5},{"$f":"IF(('2011 Survey responses'!BX163+'2011 Survey responses'!CH163)<2.1,\"\",(SUMIF('2011 Survey responses'!BX163,\">1\")+SUMIF('2011 Survey responses'!CH163,\">1\"))/(COUNTIF('2011 Survey responses'!BX163,\">1\")+COUNTIF('2011 Survey responses'!CH163,\">1\")))","v":5},{"$f":"IF(('2011 Survey responses'!BY163+'2011 Survey responses'!CI163)<2.1,\"\",(SUMIF('2011 Survey responses'!BY163,\">1\")+SUMIF('2011 Survey responses'!CI163,\">1\"))/(COUNTIF('2011 Survey responses'!BY163,\">1\")+COUNTIF('2011 Survey responses'!CI163,\">1\")))","v":5},{"$f":"IF('2011 Survey responses'!CQ163<0.5,\"\",'2011 Survey responses'!CQ163)","v":4},{"$f":"IF('2011 Survey responses'!CR163<0.5,\"\",'2011 Survey responses'!CR163)","v":3},{"$f":"IF('2011 Survey responses'!CS163<0.5,\"\",'2011 Survey responses'!CS163)","v":3},{"$f":"IF('2011 Survey responses'!CT163<0.5,\"\",'2011 Survey responses'!CT163)","v":2},{"$f":"IF('2011 Survey responses'!CU163<0.5,\"\",'2011 Survey responses'!CU163)","v":4},{"$f":"IF('2011 Survey responses'!CV163<0.5,\"\",'2011 Survey responses'!CV163)","v":2},{"$f":"IF(SUM('2011 Survey responses'!CW163:DL163)<1,\"\",(AVERAGE('2011 Survey responses'!CW163:DL163)))","v":2.5625},{"$f":"IF(SUM('2011 Survey responses'!CW163:CZ163)<1,\"\",(AVERAGE('2011 Survey responses'!CW163:CZ163)))","v":2},{"$f":"IF(SUM('2011 Survey responses'!DA163:DD163)<1,\"\",(AVERAGE('2011 Survey responses'!DA163:DD163)))","v":2},{"$f":"IF(SUM('2011 Survey responses'!DE163:DH163)<1,\"\",(AVERAGE('2011 Survey responses'!DE163:DH163)))","v":2.5},{"$f":"IF(SUM('2011 Survey responses'!DI163:DL163)<1,\"\",(AVERAGE('2011 Survey responses'!DI163:DL163)))","v":3.75},{"$f":"IF(('2011 Survey responses'!CW163+'2011 Survey responses'!DA163+'2011 Survey responses'!DE163+'2011 Survey responses'!DI163)<1,\"\",AVERAGE('2011 Survey responses'!CW163,'2011 Survey responses'!DA163,'2011 Survey responses'!DE163,'2011 Survey responses'!DI163))","v":2.5},{"$f":"IF(('2011 Survey responses'!CX163+'2011 Survey responses'!DB163+'2011 Survey responses'!DF163+'2011 Survey responses'!DJ163)<1,\"\",AVERAGE('2011 Survey responses'!CX163,'2011 Survey responses'!DB163,'2011 Survey responses'!DF163,'2011 Survey responses'!DJ163))","v":2.5},{"$f":"IF(('2011 Survey responses'!CY163+'2011 Survey responses'!DC163+'2011 Survey responses'!DG163+'2011 Survey responses'!DK163)<1,\"\",AVERAGE('2011 Survey responses'!CY163,'2011 Survey responses'!DC163,'2011 Survey responses'!DG163,'2011 Survey responses'!DK163))","v":2.5},{"$f":"IF(('2011 Survey responses'!CZ163+'2011 Survey responses'!DD163+'2011 Survey responses'!DH163+'2011 Survey responses'!DL163)<1,\"\",AVERAGE('2011 Survey responses'!CZ163,'2011 Survey responses'!DD163,'2011 Survey responses'!DH163,'2011 Survey responses'!DL163))","v":2.75},{"$f":"IF('2011 Survey responses'!CW163<0.5,\"\",'2011 Survey responses'!CW163)","v":2},{"$f":"IF('2011 Survey responses'!CX163<0.5,\"\",'2011 Survey responses'!CX163)","v":1},{"$f":"IF('2011 Survey responses'!CY163<0.5,\"\",'2011 Survey responses'!CY163)","v":3},{"$f":"IF('2011 Survey responses'!CZ163<0.5,\"\",'2011 Survey responses'!CZ163)","v":2},{"$f":"IF('2011 Survey responses'!DA163<0.5,\"\",'2011 Survey responses'!DA163)","v":2},{"$f":"IF('2011 Survey responses'!DB163<0.5,\"\",'2011 Survey responses'!DB163)","v":2},{"$f":"IF('2011 Survey responses'!DC163<0.5,\"\",'2011 Survey responses'!DC163)","v":2},{"$f":"IF('2011 Survey responses'!DD163<0.5,\"\",'2011 Survey responses'!DD163)","v":2},{"$f":"IF('2011 Survey responses'!DE163<0.5,\"\",'2011 Survey responses'!DE163)","v":2},{"$f":"IF('2011 Survey responses'!DF163<0.5,\"\",'2011 Survey responses'!DF163)","v":3},{"$f":"IF('2011 Survey responses'!DG163<0.5,\"\",'2011 Survey responses'!DG163)","v":2},{"$f":"IF('2011 Survey responses'!DH163<0.5,\"\",'2011 Survey responses'!DH163)","v":3},{"$f":"IF('2011 Survey responses'!DI163<0.5,\"\",'2011 Survey responses'!DI163)","v":4},{"$f":"IF('2011 Survey responses'!DJ163<0.5,\"\",'2011 Survey responses'!DJ163)","v":4},{"$f":"IF('2011 Survey responses'!DK163<0.5,\"\",'2011 Survey responses'!DK163)","v":3},{"$f":"IF('2011 Survey responses'!DL163<0.5,\"\",'2011 Survey responses'!DL163)","v":4},{"$f":"IF('2011 Survey responses'!DU163=4,4,IF('2011 Survey responses'!DU163=5,4,\"\"))","v":4},{"$f":"IF('2011 Survey responses'!DV163=4,3,IF('2011 Survey responses'!DV163=5,3,\"\"))","v":3},2,{"$f":"IF(CQ163=2,CQ163,IF(CO163=4,CO163,IF(CP163=3,CP163,IF('2011 Survey responses'!GT163=1,1,\"\"))))","v":2},{"$f":"IF('2011 Survey responses'!DO163<0.5,\"\",'2011 Survey responses'!DO163)","v":4},{"$f":"IF('2011 Survey responses'!DP163<0.5,\"\",'2011 Survey responses'!DP163)","v":5},{"$f":"IF('2011 Survey responses'!DQ163<0.5,\"\",'2011 Survey responses'!DQ163)","v":3},{"$f":"IF('2011 Survey responses'!DR163<0.5,\"\",'2011 Survey responses'!DR163)","v":3},{"$f":"IF('2011 Survey responses'!DS163<0.5,\"\",'2011 Survey responses'!DS163)","v":4},{"$f":"IF('2011 Survey responses'!DT163<0.5,\"\",'2011 Survey responses'!DT163)","v":4},{"$f":"IF('2011 Survey responses'!DU163<0.5,\"\",'2011 Survey responses'!DU163)","v":4},{"$f":"IF('2011 Survey responses'!DV163<0.5,\"\",'2011 Survey responses'!DV163)","v":4},{"$f":"IF('2011 Survey responses'!DW163<0.5,\"\",'2011 Survey responses'!DW163)","v":4},{"$f":"IF('2011 Survey responses'!DX163<0.5,\"\",'2011 Survey responses'!DX163)","v":4},{"$f":"IF('2011 Survey responses'!DY163<0.5,\"\",'2011 Survey responses'!DY163)","v":4},{"$f":"IF('2011 Survey responses'!DZ163<0.5,\"\",'2011 Survey responses'!DZ163)","v":4},{"$f":"IF('2011 Survey responses'!EA163<0.5,\"\",'2011 Survey responses'!EA163)","v":2},{"$f":"IF('2011 Survey responses'!EB163<0.5,\"\",'2011 Survey responses'!EB163)","v":5},{"$f":"IF('2011 Survey responses'!EC163<0.5,\"\",'2011 Survey responses'!EC163)","v":4},{"$f":"IF('2011 Survey responses'!ED163<0.5,\"\",'2011 Survey responses'!ED163)","v":2},{"$f":"IF('2011 Survey responses'!EE163<0.5,\"\",'2011 Survey responses'!EE163)","v":4},{"$f":"IF('2011 Survey responses'!EF163<0.5,\"\",'2011 Survey responses'!EF163)","v":5},{"$f":"IF('2011 Survey responses'!EG163<0.5,\"\",'2011 Survey responses'!EG163)","v":5},{"$f":"IF('2011 Survey responses'!EH163<0.5,\"\",'2011 Survey responses'!EH163)","v":5},{"$f":"IF('2011 Survey responses'!EI163<0.5,\"\",'2011 Survey responses'!EI163)","v":4},{"$f":"IF('2011 Survey responses'!EJ163<0.5,\"\",'2011 Survey responses'!EJ163)","v":4},{"$f":"IF('2011 Survey responses'!EK163<0.5,\"\",'2011 Survey responses'!EK163)","v":5},{"$f":"IF('2011 Survey responses'!EL163<0.5,\"\",'2011 Survey responses'!EL163)","v":5},{"$f":"IF('2011 Survey responses'!EM163<0.5,\"\",'2011 Survey responses'!EM163)","v":3},{"$f":"IF('2011 Survey responses'!EN163<0.5,\"\",'2011 Survey responses'!EN163)","v":4},{"$f":"IF('2011 Survey responses'!EO163<0.5,\"\",'2011 Survey responses'!EO163)","v":1},{"$f":"IF('2011 Survey responses'!EP163<0.5,\"\",'2011 Survey responses'!EP163)","v":1},{"$f":"IF(('2011 Survey responses'!EW163+'2011 Survey responses'!EX163)>=2,AVERAGE('2011 Survey responses'!EW163,'2011 Survey responses'!EY163),\"\")","v":3},{"$f":"IF('2011 Survey responses'!EX163<0.5,\"\",'2011 Survey responses'!EX163)","v":4},{"$f":"IF('2011 Survey responses'!EZ163<0.5,\"\",'2011 Survey responses'!EZ163)","v":4},{"$f":"IF('2011 Survey responses'!FB163<0.5,\"\",'2011 Survey responses'!FB163)","v":4},{"$f":"IF('2011 Survey responses'!FD163<0.5,\"\",'2011 Survey responses'!FD163)","v":5},{"$f":"IF('2011 Survey responses'!FC163<0.5,\"\",'2011 Survey responses'!FC163)","v":4},{"$f":"IF(('2011 Survey responses'!EM163+'2011 Survey responses'!EN163)>=2,AVERAGE('2011 Survey responses'!EM163,'2011 Survey responses'!EN163),\"\")","v":3.5},{"$f":"IF('2011 Survey responses'!ES163<0.5,\"\",'2011 Survey responses'!ES163)","v":4},{"$f":"IF(('2011 Survey responses'!ET163+'2011 Survey responses'!EU163)>=2,AVERAGE('2011 Survey responses'!ET163,'2011 Survey responses'!EU163),\"\")","v":4},{"$f":"IF('2011 Survey responses'!EV163<0.5,\"\",'2011 Survey responses'!EV163)","v":3},{"$f":"IF('2011 Survey responses'!FA163<0.5,\"\",'2011 Survey responses'!FA163)","v":4},{"$f":"IF('2011 Survey responses'!ER163<0.5,\"\",'2011 Survey responses'!ER163)","v":4},{"$f":"IF(('2011 Survey responses'!EO163+'2011 Survey responses'!EP163)>=2,AVERAGE('2011 Survey responses'!EO163,'2011 Survey responses'!EP163),\"\")","v":1},{"$f":"IF('2011 Survey responses'!EQ163<0.5,\"\",'2011 Survey responses'!EQ163)","v":3},{"$f":"IF('2011 Survey responses'!ET163<0.5,\"\",'2011 Survey responses'!ET163)","v":4},{"$f":"IF('2011 Survey responses'!EU163<0.5,\"\",'2011 Survey responses'!EU163)","v":4},{"$f":"IF('2011 Survey responses'!EW163<0.5,\"\",'2011 Survey responses'!EW163)","v":3},{"$f":"IF('2011 Survey responses'!EY163<0.5,\"\",'2011 Survey responses'!EY163)","v":3},{"$f":"IF('2011 Survey responses'!FU163<0.5,\"\",'2011 Survey responses'!FU163)","v":4},{"$f":"IF(('2011 Survey responses'!FL163+'2011 Survey responses'!FM163)>=2,AVERAGE('2011 Survey responses'!FL163,'2011 Survey responses'!FM163),\"\")","v":2.5},{"$f":"IF(('2011 Survey responses'!FO163+'2011 Survey responses'!FQ163)>=2,AVERAGE('2011 Survey responses'!FO163,'2011 Survey responses'!FQ163),\"\")","v":3.5},{"$f":"IF('2011 Survey responses'!FJ163<0.5,\"\",'2011 Survey responses'!FJ163)","v":2},{"$f":"IF('2011 Survey responses'!FT163<0.5,\"\",'2011 Survey responses'!FT163)","v":4},{"$f":"IF('2011 Survey responses'!FR163<0.5,\"\",'2011 Survey responses'!FR163)","v":5},{"$f":"IF('2011 Survey responses'!FK163<0.5,\"\",'2011 Survey responses'!FK163)","v":2},{"$f":"IF('2011 Survey responses'!FP163<0.5,\"\",'2011 Survey responses'!FP163)","v":5},{"$f":"IF('2011 Survey responses'!FN163<0.5,\"\",'2011 Survey responses'!FN163)","v":4},{"$f":"IF(('2011 Survey responses'!FE163+'2011 Survey responses'!FF163)>=2,AVERAGE('2011 Survey responses'!FE163,'2011 Survey responses'!FF163),\"\")","v":2.5},{"$f":"IF('2011 Survey responses'!FS163<0.5,\"\",'2011 Survey responses'!FS163)","v":4},{"$f":"IF('2011 Survey responses'!FV163<0.5,\"\",'2011 Survey responses'!FV163)","v":4},{"$f":"IF(('2011 Survey responses'!FG163+'2011 Survey responses'!FH163)>=2,AVERAGE('2011 Survey responses'!FG163,'2011 Survey responses'!FH163),\"\")","v":""},{"$f":"IF('2011 Survey responses'!FI163<0.5,\"\",'2011 Survey responses'!FI163)","v":3},{"$f":"IF('2011 Survey responses'!FE163<0.5,\"\",'2011 Survey responses'!FE163)","v":2},{"$f":"IF('2011 Survey responses'!FF163<0.5,\"\",'2011 Survey responses'!FF163)","v":3},{"$f":"IF('2011 Survey responses'!FG163<0.5,\"\",'2011 Survey responses'!FG163)","v":""},{"$f":"IF('2011 Survey responses'!FH163<0.5,\"\",'2011 Survey responses'!FH163)","v":""},{"$f":"IF('2011 Survey responses'!FL163<0.5,\"\",'2011 Survey responses'!FL163)","v":2},{"$f":"IF('2011 Survey responses'!FM163<0.5,\"\",'2011 Survey responses'!FM163)","v":3},{"$f":"IF('2011 Survey responses'!FO163<0.5,\"\",'2011 Survey responses'!FO163)","v":2},{"$f":"IF('2011 Survey responses'!FQ163<0.5,\"\",'2011 Survey responses'!FQ163)","v":5}]
["Sudan",{"$f":"IF(SUM(F164)<1,\"\",AVERAGEIF('2011 Survey responses'!B164:CP164,\">1\"))","v":4.0114942528735629},{"$f":"IF(SUM(F164)<1,\"\",AVERAGEIF('2011 Survey responses'!B164:AO164,\">1\"))","v":4.0769230769230766},{"$f":"IF(SUM(F164)<1,\"\",AVERAGEIF('2011 Survey responses'!B164:BV164,\">1\"))","v":3.955223880597015},{"$f":"IF(SUM(F164)<1,\"\",AVERAGEIF('2011 Survey responses'!V164:BV164,\">1\"))","v":3.8085106382978724},{"$f":"IF(SUM('2011 Survey responses'!B164:U164)<1,\"\",(AVERAGEIFS('2011 Survey responses'!B164:U164,'2011 Survey responses'!B164:U164,\">1\")))","v":4.3},{"$f":"IF(SUM('2011 Survey responses'!B164:H164)<1,\"\",(AVERAGEIFS('2011 Survey responses'!B164:H164,'2011 Survey responses'!B164:H164,\">1\")))","v":4.2857142857142856},{"$f":"IF(SUM('2011 Survey responses'!I164:S164)<1,\"\",(AVERAGEIFS('2011 Survey responses'!I164:S164,'2011 Survey responses'!I164:S164,\">1\")))","v":4.3636363636363633},{"$f":"IF(SUM('2011 Survey responses'!T164:U164)<2.1,\"\",(AVERAGEIFS('2011 Survey responses'!T164:U164,'2011 Survey responses'!T164:U164,\">1\")))","v":4},{"$f":"IF(SUM('2011 Survey responses'!B164:C164)<2.1,\"\",((SUMIF('2011 Survey responses'!B164:C164,\">1\")+SUMIF('2011 Survey responses'!F164,\">1\"))/(COUNTIF('2011 Survey responses'!B164:C164,\">1\")+COUNTIF('2011 Survey responses'!F164,\">1\"))))","v":4.333333333333333},{"$f":"IF(SUM('2011 Survey responses'!D164:E164)<2.1,\"\",(AVERAGEIFS('2011 Survey responses'!D164:E164,'2011 Survey responses'!D164:E164,\">1\")))","v":5.5},{"$f":"IF(('2011 Survey responses'!B164+'2011 Survey responses'!D164)<2.1,\"\",((SUMIF('2011 Survey responses'!B164,\">1\")+SUMIF('2011 Survey responses'!D164,\">1\")+SUMIF('2011 Survey responses'!F164,\">1\")+SUMIF('2011 Survey responses'!K164,\">1\"))/(COUNTIF('2011 Survey responses'!B164,\">1\")+COUNTIF('2011 Survey responses'!D164,\">1\")+COUNTIF('2011 Survey responses'!F164,\">1\")+COUNTIF('2011 Survey responses'!K164,\">1\"))))","v":5},{"$f":"IF(SUM('2011 Survey responses'!G164:H164)<2.1,\"\",(AVERAGEIFS('2011 Survey responses'!G164:H164,'2011 Survey responses'!G164:H164,\">1\")))","v":3},{"$f":"IF(SUM('2011 Survey responses'!F164:G164)<1.5,\"\",MAX('2011 Survey responses'!F164,'2011 Survey responses'!G164))","v":4},{"$f":"IF(SUM('2011 Survey responses'!G164:H164)<1,\"\",MAX('2011 Survey responses'!G164,'2011 Survey responses'!H164))","v":4},{"$f":"IF(SUM('2011 Survey responses'!I164:L164)<4.1,\"\",(AVERAGEIFS('2011 Survey responses'!I164:L164,'2011 Survey responses'!I164:L164,\">1\")))","v":5},{"$f":"IF(SUM('2011 Survey responses'!M164:S164)<4.1,\"\",(AVERAGEIFS('2011 Survey responses'!M164:S164,'2011 Survey responses'!M164:S164,\">1\")))","v":4},{"$f":"IF(SUM('2011 Survey responses'!T164:U164)<2.1,\"\",(AVERAGEIFS('2011 Survey responses'!T164:U164,'2011 Survey responses'!T164:U164,\">1\")))","v":4},{"$f":"IF(SUM('2011 Survey responses'!V164:AO164)<1,\"\",(AVERAGEIFS('2011 Survey responses'!V164:AO164,'2011 Survey responses'!V164:AO164,\">1\")))","v":3.8421052631578947},{"$f":"IF(SUM('2011 Survey responses'!V164:AA164)<1,\"\",(AVERAGEIFS('2011 Survey responses'!V164:AA164,'2011 Survey responses'!V164:AA164,\">1\")))","v":2.6},{"$f":"IF(SUM('2011 Survey responses'!AB164:AH164)<1,\"\",(AVERAGEIFS('2011 Survey responses'!AB164:AH164,'2011 Survey responses'!AB164:AH164,\">1\")))","v":4.5714285714285712},{"$f":"IF(SUM('2011 Survey responses'!AI164:AO164)<1,\"\",(AVERAGEIFS('2011 Survey responses'!AI164:AO164,'2011 Survey responses'!AI164:AO164,\">1\")))","v":4},{"$f":"IF(('2011 Survey responses'!Y164+'2011 Survey responses'!AI164+'2011 Survey responses'!AK164)<3.1,\"\",((SUMIF('2011 Survey responses'!Y164,\">1\")+SUMIF('2011 Survey responses'!AI164,\">1\")+SUMIF('2011 Survey responses'!AK164,\">1\")+SUMIF('2011 Survey responses'!AM164,\">1\"))/(COUNTIF('2011 Survey responses'!Y164,\">1\")+COUNTIF('2011 Survey responses'!AI164,\">1\")+COUNTIF('2011 Survey responses'!AK164,\">1\")+COUNTIF('2011 Survey responses'!AM164,\">1\"))))","v":4.25},{"$f":"IF(('2011 Survey responses'!W164)<1.1,\"\",('2011 Survey responses'!W164))","v":2},{"$f":"IF(('2011 Survey responses'!Y164)<1.1,\"\",('2011 Survey responses'!Y164))","v":2},{"$f":"IF(('2011 Survey responses'!Z164)<1.1,\"\",('2011 Survey responses'!Z164))","v":2},{"$f":"IF(('2011 Survey responses'!V164+'2011 Survey responses'!X164+'2011 Survey responses'!AA164)<3.1,\"\",((SUMIF('2011 Survey responses'!V164,\">1\")+SUMIF('2011 Survey responses'!X164,\">1\")+SUMIF('2011 Survey responses'!AA164,\">1\"))/(COUNTIF('2011 Survey responses'!V164,\">1\")+COUNTIF('2011 Survey responses'!X164,\">1\")+COUNTIF('2011 Survey responses'!AA164,\">1\"))))","v":3.5},{"$f":"IF(('2011 Survey responses'!V164+'2011 Survey responses'!Y164+'2011 Survey responses'!AA164)<3.1,\"\",((SUMIF('2011 Survey responses'!V164,\">1\")+SUMIF('2011 Survey responses'!Y164,\">1\")+SUMIF('2011 Survey responses'!AA164,\">1\"))/(COUNTIF('2011 Survey responses'!V164,\">1\")+COUNTIF('2011 Survey responses'!Y164,\">1\")+COUNTIF('2011 Survey responses'!AA164,\">1\"))))","v":3},{"$f":"IF(SUM('2011 Survey responses'!AB164:AH164)<1,\"\",(AVERAGEIFS('2011 Survey responses'!AB164:AH164,'2011 Survey responses'!AB164:AH164,\">1\")))","v":4.5714285714285712},{"$f":"IF(SUM('2011 Survey responses'!AI164:AO164)<7.1,\"\",(AVERAGEIFS('2011 Survey responses'!AI164:AO164,'2011 Survey responses'!AI164:AO164,\">1\")))","v":4},{"$f":"IF(('2011 Survey responses'!AH164)<1.1,\"\",('2011 Survey responses'!AH164))","v":5},{"$f":"IF(SUM('2011 Survey responses'!AP164:BV164)<1,\"\",(AVERAGEIFS('2011 Survey responses'!AP164:BV164,'2011 Survey responses'!AP164:BV164,\">1\")))","v":3.7857142857142856},{"$f":"IF(SUM('2011 Survey responses'!AP164:AS164)<4.1,\"\",(AVERAGEIFS('2011 Survey responses'!AP164:AS164,'2011 Survey responses'!AP164:AS164,\">1\")))","v":3},{"$f":"IF(SUM('2011 Survey responses'!AT164:BF164)<1,\"\",(AVERAGEIFS('2011 Survey responses'!AT164:BF164,'2011 Survey responses'!AT164:BF164,\">1\")))","v":3.5833333333333335},{"$f":"IF(SUM('2011 Survey responses'!BG164:BO164)<1,\"\",(AVERAGEIFS('2011 Survey responses'!BG164:BO164,'2011 Survey responses'!BG164:BO164,\">1\")))","v":4.875},{"$f":"IF(SUM('2011 Survey responses'!BP164:BS164)<1,\"\",(AVERAGEIFS('2011 Survey responses'!BP164:BS164,'2011 Survey responses'!BP164:BS164,\">1\")))","v":3},{"$f":"IF(SUM('2011 Survey responses'!BT164:BV164)<3.1,\"\",(AVERAGEIFS('2011 Survey responses'!BT164:BV164,'2011 Survey responses'!BT164:BV164,\">1\")))","v":3},{"$f":"IF(('2011 Survey responses'!AQ164+'2011 Survey responses'!AR164+'2011 Survey responses'!BG164)<3.1,\"\",((SUMIF('2011 Survey responses'!AQ164,\">1\")+SUMIF('2011 Survey responses'!AR164,\">1\")+SUMIF('2011 Survey responses'!BG164,\">1\"))/(COUNTIF('2011 Survey responses'!AQ164,\">1\")+COUNTIF('2011 Survey responses'!AR164,\">1\")+COUNTIF('2011 Survey responses'!BG164,\">1\"))))","v":4},{"$f":"IF(SUM('2011 Survey responses'!AP164:AS164)<4.1,\"\",(AVERAGEIFS('2011 Survey responses'!AP164:AS164,'2011 Survey responses'!AP164:AS164,\">1\")))","v":3},{"$f":"IF(('2011 Survey responses'!AU164+'2011 Survey responses'!AX164+'2011 Survey responses'!BA164+'2011 Survey responses'!BC164+'2011 Survey responses'!BD164)<5.1,\"\",(SUMIF('2011 Survey responses'!AU164,\">1\")+SUMIF('2011 Survey responses'!AX164,\">1\")+SUMIF('2011 Survey responses'!BA164,\">1\")+SUMIF('2011 Survey responses'!BC164,\">1\")+SUMIF('2011 Survey responses'!BD164,\">1\"))/(COUNTIF('2011 Survey responses'!AU164,\">1\")+COUNTIF('2011 Survey responses'!AX164,\">1\")+COUNTIF('2011 Survey responses'!BA164,\">1\")+COUNTIF('2011 Survey responses'!BC164,\">1\")+COUNTIF('2011 Survey responses'!BD164,\">1\")))","v":4.2},{"$f":"IF(('2011 Survey responses'!AT164)<1.1,\"\",('2011 Survey responses'!AT164))","v":4},{"$f":"IF(SUM('2011 Survey responses'!AV164:AW164)<2.1,\"\",(AVERAGEIFS('2011 Survey responses'!AV164:AW164,'2011 Survey responses'!AV164:AW164,\">1\")))","v":2},{"$f":"IF(('2011 Survey responses'!AW164+'2011 Survey responses'!AY164)<2.1,\"\",(SUMIF('2011 Survey responses'!AW164,\">1\")+SUMIF('2011 Survey responses'!AY164,\">1\"))/(COUNTIF('2011 Survey responses'!AW164,\">1\")+COUNTIF('2011 Survey responses'!AY164,\">1\")))","v":3},{"$f":"IF(('2011 Survey responses'!AZ164)<1.1,\"\",('2011 Survey responses'!AZ164))","v":4},4,4,1,2,{"$f":"IF(('2011 Survey responses'!BE164)<1.1,\"\",('2011 Survey responses'!BE164))","v":4},{"$f":"IF(('2011 Survey responses'!AY164+'2011 Survey responses'!BB164+'2011 Survey responses'!BF164)<3.1,\"\",(SUMIF('2011 Survey responses'!AY164,\">1\")+SUMIF('2011 Survey responses'!BB164,\">1\")+SUMIF('2011 Survey responses'!BF164,\">1\"))/(COUNTIF('2011 Survey responses'!AY164,\">1\")+COUNTIF('2011 Survey responses'!BB164,\">1\")+COUNTIF('2011 Survey responses'!BF164,\">1\")))","v":3},3.9375,{"$f":"IF(SUM('2011 Survey responses'!BT164:BV164)<3.1,\"\",(AVERAGEIFS('2011 Survey responses'!BT164:BV164,'2011 Survey responses'!BT164:BV164,\">1\")))","v":3},{"$f":"IF(SUM('2011 Survey responses'!BW164:CP164)<1,\"\",(AVERAGEIFS('2011 Survey responses'!BW164:CP164,'2011 Survey responses'!BW164:CP164,\">1\")))","v":4.2},{"$f":"IF(SUM('2011 Survey responses'!BW164:CF164)<1,\"\",(AVERAGEIFS('2011 Survey responses'!BW164:CF164,'2011 Survey responses'!BW164:CF164,\">1\")))","v":4.0999999999999996},{"$f":"IF(SUM('2011 Survey responses'!CG164:CP164)<1,\"\",(AVERAGEIFS('2011 Survey responses'!CG164:CP164,'2011 Survey responses'!CG164:CP164,\">1\")))","v":4.3},{"$f":"IF(SUM('2011 Survey responses'!BX164:CF164)<1,\"\",(AVERAGEIFS('2011 Survey responses'!BX164:CF164,'2011 Survey responses'!BX164:CF164,\">1\")))","v":4.1111111111111107},{"$f":"IF(SUM('2011 Survey responses'!CH164:CP164)<1,\"\",(AVERAGEIFS('2011 Survey responses'!CH164:CP164,'2011 Survey responses'!CH164:CP164,\">1\")))","v":4.2222222222222223},{"$f":"IF(SUM('2011 Survey responses'!BW164:CP164)<1,\"\",(AVERAGEIFS('2011 Survey responses'!BW164:CP164,'2011 Survey responses'!BW164:CP164,\">1\")))","v":4.2},{"$f":"IF(('2011 Survey responses'!BW164+'2011 Survey responses'!CG164)<2.1,\"\",(SUMIF('2011 Survey responses'!BW164,\">1\")+SUMIF('2011 Survey responses'!CG164,\">1\"))/(COUNTIF('2011 Survey responses'!BW164,\">1\")+COUNTIF('2011 Survey responses'!CG164,\">1\")))","v":4.5},{"$f":"IF(('2011 Survey responses'!BX164+'2011 Survey responses'!CH164)<2.1,\"\",(SUMIF('2011 Survey responses'!BX164,\">1\")+SUMIF('2011 Survey responses'!CH164,\">1\"))/(COUNTIF('2011 Survey responses'!BX164,\">1\")+COUNTIF('2011 Survey responses'!CH164,\">1\")))","v":5.5},{"$f":"IF(('2011 Survey responses'!BY164+'2011 Survey responses'!CI164)<2.1,\"\",(SUMIF('2011 Survey responses'!BY164,\">1\")+SUMIF('2011 Survey responses'!CI164,\">1\"))/(COUNTIF('2011 Survey responses'!BY164,\">1\")+COUNTIF('2011 Survey responses'!CI164,\">1\")))","v":5.5},{"$f":"IF('2011 Survey responses'!CQ164<0.5,\"\",'2011 Survey responses'!CQ164)","v":3},{"$f":"IF('2011 Survey responses'!CR164<0.5,\"\",'2011 Survey responses'!CR164)","v":4},{"$f":"IF('2011 Survey responses'!CS164<0.5,\"\",'2011 Survey responses'!CS164)","v":2},{"$f":"IF('2011 Survey responses'!CT164<0.5,\"\",'2011 Survey responses'!CT164)","v":4},{"$f":"IF('2011 Survey responses'!CU164<0.5,\"\",'2011 Survey responses'!CU164)","v":4},{"$f":"IF('2011 Survey responses'!CV164<0.5,\"\",'2011 Survey responses'!CV164)","v":1},{"$f":"IF(SUM('2011 Survey responses'!CW164:DL164)<1,\"\",(AVERAGE('2011 Survey responses'!CW164:DL164)))","v":3.125},{"$f":"IF(SUM('2011 Survey responses'!CW164:CZ164)<1,\"\",(AVERAGE('2011 Survey responses'!CW164:CZ164)))","v":3},{"$f":"IF(SUM('2011 Survey responses'!DA164:DD164)<1,\"\",(AVERAGE('2011 Survey responses'!DA164:DD164)))","v":2.75},{"$f":"IF(SUM('2011 Survey responses'!DE164:DH164)<1,\"\",(AVERAGE('2011 Survey responses'!DE164:DH164)))","v":3},{"$f":"IF(SUM('2011 Survey responses'!DI164:DL164)<1,\"\",(AVERAGE('2011 Survey responses'!DI164:DL164)))","v":3.75},{"$f":"IF(('2011 Survey responses'!CW164+'2011 Survey responses'!DA164+'2011 Survey responses'!DE164+'2011 Survey responses'!DI164)<1,\"\",AVERAGE('2011 Survey responses'!CW164,'2011 Survey responses'!DA164,'2011 Survey responses'!DE164,'2011 Survey responses'!DI164))","v":3.5},{"$f":"IF(('2011 Survey responses'!CX164+'2011 Survey responses'!DB164+'2011 Survey responses'!DF164+'2011 Survey responses'!DJ164)<1,\"\",AVERAGE('2011 Survey responses'!CX164,'2011 Survey responses'!DB164,'2011 Survey responses'!DF164,'2011 Survey responses'!DJ164))","v":3.5},{"$f":"IF(('2011 Survey responses'!CY164+'2011 Survey responses'!DC164+'2011 Survey responses'!DG164+'2011 Survey responses'!DK164)<1,\"\",AVERAGE('2011 Survey responses'!CY164,'2011 Survey responses'!DC164,'2011 Survey responses'!DG164,'2011 Survey responses'!DK164))","v":2.25},{"$f":"IF(('2011 Survey responses'!CZ164+'2011 Survey responses'!DD164+'2011 Survey responses'!DH164+'2011 Survey responses'!DL164)<1,\"\",AVERAGE('2011 Survey responses'!CZ164,'2011 Survey responses'!DD164,'2011 Survey responses'!DH164,'2011 Survey responses'!DL164))","v":3.25},{"$f":"IF('2011 Survey responses'!CW164<0.5,\"\",'2011 Survey responses'!CW164)","v":3},{"$f":"IF('2011 Survey responses'!CX164<0.5,\"\",'2011 Survey responses'!CX164)","v":4},{"$f":"IF('2011 Survey responses'!CY164<0.5,\"\",'2011 Survey responses'!CY164)","v":2},{"$f":"IF('2011 Survey responses'!CZ164<0.5,\"\",'2011 Survey responses'!CZ164)","v":3},{"$f":"IF('2011 Survey responses'!DA164<0.5,\"\",'2011 Survey responses'!DA164)","v":3},{"$f":"IF('2011 Survey responses'!DB164<0.5,\"\",'2011 Survey responses'!DB164)","v":3},{"$f":"IF('2011 Survey responses'!DC164<0.5,\"\",'2011 Survey responses'!DC164)","v":2},{"$f":"IF('2011 Survey responses'!DD164<0.5,\"\",'2011 Survey responses'!DD164)","v":3},{"$f":"IF('2011 Survey responses'!DE164<0.5,\"\",'2011 Survey responses'!DE164)","v":4},{"$f":"IF('2011 Survey responses'!DF164<0.5,\"\",'2011 Survey responses'!DF164)","v":3},{"$f":"IF('2011 Survey responses'!DG164<0.5,\"\",'2011 Survey responses'!DG164)","v":2},{"$f":"IF('2011 Survey responses'!DH164<0.5,\"\",'2011 Survey responses'!DH164)","v":3},{"$f":"IF('2011 Survey responses'!DI164<0.5,\"\",'2011 Survey responses'!DI164)","v":4},{"$f":"IF('2011 Survey responses'!DJ164<0.5,\"\",'2011 Survey responses'!DJ164)","v":4},{"$f":"IF('2011 Survey responses'!DK164<0.5,\"\",'2011 Survey responses'!DK164)","v":3},{"$f":"IF('2011 Survey responses'!DL164<0.5,\"\",'2011 Survey responses'!DL164)","v":4},{"$f":"IF('2011 Survey responses'!DU164=4,4,IF('2011 Survey responses'!DU164=5,4,\"\"))","v":4},{"$f":"IF('2011 Survey responses'!DV164=4,3,IF('2011 Survey responses'!DV164=5,3,\"\"))","v":3},2,{"$f":"IF(CQ164=2,CQ164,IF(CO164=4,CO164,IF(CP164=3,CP164,IF('2011 Survey responses'!GT164=1,1,\"\"))))","v":2},{"$f":"IF('2011 Survey responses'!DO164<0.5,\"\",'2011 Survey responses'!DO164)","v":4},{"$f":"IF('2011 Survey responses'!DP164<0.5,\"\",'2011 Survey responses'!DP164)","v":5},{"$f":"IF('2011 Survey responses'!DQ164<0.5,\"\",'2011 Survey responses'!DQ164)","v":3},{"$f":"IF('2011 Survey responses'!DR164<0.5,\"\",'2011 Survey responses'!DR164)","v":4},{"$f":"IF('2011 Survey responses'!DS164<0.5,\"\",'2011 Survey responses'!DS164)","v":3},{"$f":"IF('2011 Survey responses'!DT164<0.5,\"\",'2011 Survey responses'!DT164)","v":4},{"$f":"IF('2011 Survey responses'!DU164<0.5,\"\",'2011 Survey responses'!DU164)","v":5},{"$f":"IF('2011 Survey responses'!DV164<0.5,\"\",'2011 Survey responses'!DV164)","v":5},{"$f":"IF('2011 Survey responses'!DW164<0.5,\"\",'2011 Survey responses'!DW164)","v":5},{"$f":"IF('2011 Survey responses'!DX164<0.5,\"\",'2011 Survey responses'!DX164)","v":4},{"$f":"IF('2011 Survey responses'!DY164<0.5,\"\",'2011 Survey responses'!DY164)","v":5},{"$f":"IF('2011 Survey responses'!DZ164<0.5,\"\",'2011 Survey responses'!DZ164)","v":4},{"$f":"IF('2011 Survey responses'!EA164<0.5,\"\",'2011 Survey responses'!EA164)","v":2},{"$f":"IF('2011 Survey responses'!EB164<0.5,\"\",'2011 Survey responses'!EB164)","v":1},{"$f":"IF('2011 Survey responses'!EC164<0.5,\"\",'2011 Survey responses'!EC164)","v":2},{"$f":"IF('2011 Survey responses'!ED164<0.5,\"\",'2011 Survey responses'!ED164)","v":1},{"$f":"IF('2011 Survey responses'!EE164<0.5,\"\",'2011 Survey responses'!EE164)","v":3},{"$f":"IF('2011 Survey responses'!EF164<0.5,\"\",'2011 Survey responses'!EF164)","v":2},{"$f":"IF('2011 Survey responses'!EG164<0.5,\"\",'2011 Survey responses'!EG164)","v":2},{"$f":"IF('2011 Survey responses'!EH164<0.5,\"\",'2011 Survey responses'!EH164)","v":3},{"$f":"IF('2011 Survey responses'!EI164<0.5,\"\",'2011 Survey responses'!EI164)","v":3},{"$f":"IF('2011 Survey responses'!EJ164<0.5,\"\",'2011 Survey responses'!EJ164)","v":3},{"$f":"IF('2011 Survey responses'!EK164<0.5,\"\",'2011 Survey responses'!EK164)","v":3},{"$f":"IF('2011 Survey responses'!EL164<0.5,\"\",'2011 Survey responses'!EL164)","v":3},{"$f":"IF('2011 Survey responses'!EM164<0.5,\"\",'2011 Survey responses'!EM164)","v":4},{"$f":"IF('2011 Survey responses'!EN164<0.5,\"\",'2011 Survey responses'!EN164)","v":4},{"$f":"IF('2011 Survey responses'!EO164<0.5,\"\",'2011 Survey responses'!EO164)","v":3},{"$f":"IF('2011 Survey responses'!EP164<0.5,\"\",'2011 Survey responses'!EP164)","v":4},{"$f":"IF(('2011 Survey responses'!EW164+'2011 Survey responses'!EX164)>=2,AVERAGE('2011 Survey responses'!EW164,'2011 Survey responses'!EY164),\"\")","v":4.5},{"$f":"IF('2011 Survey responses'!EX164<0.5,\"\",'2011 Survey responses'!EX164)","v":5},{"$f":"IF('2011 Survey responses'!EZ164<0.5,\"\",'2011 Survey responses'!EZ164)","v":4},{"$f":"IF('2011 Survey responses'!FB164<0.5,\"\",'2011 Survey responses'!FB164)","v":4},{"$f":"IF('2011 Survey responses'!FD164<0.5,\"\",'2011 Survey responses'!FD164)","v":5},{"$f":"IF('2011 Survey responses'!FC164<0.5,\"\",'2011 Survey responses'!FC164)","v":5},{"$f":"IF(('2011 Survey responses'!EM164+'2011 Survey responses'!EN164)>=2,AVERAGE('2011 Survey responses'!EM164,'2011 Survey responses'!EN164),\"\")","v":4},{"$f":"IF('2011 Survey responses'!ES164<0.5,\"\",'2011 Survey responses'!ES164)","v":4},{"$f":"IF(('2011 Survey responses'!ET164+'2011 Survey responses'!EU164)>=2,AVERAGE('2011 Survey responses'!ET164,'2011 Survey responses'!EU164),\"\")","v":4},{"$f":"IF('2011 Survey responses'!EV164<0.5,\"\",'2011 Survey responses'!EV164)","v":4},{"$f":"IF('2011 Survey responses'!FA164<0.5,\"\",'2011 Survey responses'!FA164)","v":4},{"$f":"IF('2011 Survey responses'!ER164<0.5,\"\",'2011 Survey responses'!ER164)","v":4},{"$f":"IF(('2011 Survey responses'!EO164+'2011 Survey responses'!EP164)>=2,AVERAGE('2011 Survey responses'!EO164,'2011 Survey responses'!EP164),\"\")","v":3.5},{"$f":"IF('2011 Survey responses'!EQ164<0.5,\"\",'2011 Survey responses'!EQ164)","v":2},{"$f":"IF('2011 Survey responses'!ET164<0.5,\"\",'2011 Survey responses'!ET164)","v":4},{"$f":"IF('2011 Survey responses'!EU164<0.5,\"\",'2011 Survey responses'!EU164)","v":4},{"$f":"IF('2011 Survey responses'!EW164<0.5,\"\",'2011 Survey responses'!EW164)","v":4},{"$f":"IF('2011 Survey responses'!EY164<0.5,\"\",'2011 Survey responses'!EY164)","v":5},{"$f":"IF('2011 Survey responses'!FU164<0.5,\"\",'2011 Survey responses'!FU164)","v":4},{"$f":"IF(('2011 Survey responses'!FL164+'2011 Survey responses'!FM164)>=2,AVERAGE('2011 Survey responses'!FL164,'2011 Survey responses'!FM164),\"\")","v":4},{"$f":"IF(('2011 Survey responses'!FO164+'2011 Survey responses'!FQ164)>=2,AVERAGE('2011 Survey responses'!FO164,'2011 Survey responses'!FQ164),\"\")","v":5},{"$f":"IF('2011 Survey responses'!FJ164<0.5,\"\",'2011 Survey responses'!FJ164)","v":5},{"$f":"IF('2011 Survey responses'!FT164<0.5,\"\",'2011 Survey responses'!FT164)","v":4},{"$f":"IF('2011 Survey responses'!FR164<0.5,\"\",'2011 Survey responses'!FR164)","v":2},{"$f":"IF('2011 Survey responses'!FK164<0.5,\"\",'2011 Survey responses'!FK164)","v":4},{"$f":"IF('2011 Survey responses'!FP164<0.5,\"\",'2011 Survey responses'!FP164)","v":4},{"$f":"IF('2011 Survey responses'!FN164<0.5,\"\",'2011 Survey responses'!FN164)","v":4},{"$f":"IF(('2011 Survey responses'!FE164+'2011 Survey responses'!FF164)>=2,AVERAGE('2011 Survey responses'!FE164,'2011 Survey responses'!FF164),\"\")","v":4},{"$f":"IF('2011 Survey responses'!FS164<0.5,\"\",'2011 Survey responses'!FS164)","v":4},{"$f":"IF('2011 Survey responses'!FV164<0.5,\"\",'2011 Survey responses'!FV164)","v":4},{"$f":"IF(('2011 Survey responses'!FG164+'2011 Survey responses'!FH164)>=2,AVERAGE('2011 Survey responses'!FG164,'2011 Survey responses'!FH164),\"\")","v":5},{"$f":"IF('2011 Survey responses'!FI164<0.5,\"\",'2011 Survey responses'!FI164)","v":3},{"$f":"IF('2011 Survey responses'!FE164<0.5,\"\",'2011 Survey responses'!FE164)","v":4},{"$f":"IF('2011 Survey responses'!FF164<0.5,\"\",'2011 Survey responses'!FF164)","v":4},{"$f":"IF('2011 Survey responses'!FG164<0.5,\"\",'2011 Survey responses'!FG164)","v":5},{"$f":"IF('2011 Survey responses'!FH164<0.5,\"\",'2011 Survey responses'!FH164)","v":5},{"$f":"IF('2011 Survey responses'!FL164<0.5,\"\",'2011 Survey responses'!FL164)","v":4},{"$f":"IF('2011 Survey responses'!FM164<0.5,\"\",'2011 Survey responses'!FM164)","v":4},{"$f":"IF('2011 Survey responses'!FO164<0.5,\"\",'2011 Survey responses'!FO164)","v":5},{"$f":"IF('2011 Survey responses'!FQ164<0.5,\"\",'2011 Survey responses'!FQ164)","v":5}]
["Suriname",{"$f":"IF(SUM(F165)<1,\"\",AVERAGEIF('2011 Survey responses'!B165:CP165,\">1\"))","v":""},{"$f":"IF(SUM(F165)<1,\"\",AVERAGEIF('2011 Survey responses'!B165:AO165,\">1\"))","v":""},{"$f":"IF(SUM(F165)<1,\"\",AVERAGEIF('2011 Survey responses'!B165:BV165,\">1\"))","v":""},{"$f":"IF(SUM(F165)<1,\"\",AVERAGEIF('2011 Survey responses'!V165:BV165,\">1\"))","v":""},{"$f":"IF(SUM('2011 Survey responses'!B165:U165)<1,\"\",(AVERAGEIFS('2011 Survey responses'!B165:U165,'2011 Survey responses'!B165:U165,\">1\")))","v":""},{"$f":"IF(SUM('2011 Survey responses'!B165:H165)<1,\"\",(AVERAGEIFS('2011 Survey responses'!B165:H165,'2011 Survey responses'!B165:H165,\">1\")))","v":""},{"$f":"IF(SUM('2011 Survey responses'!I165:S165)<1,\"\",(AVERAGEIFS('2011 Survey responses'!I165:S165,'2011 Survey responses'!I165:S165,\">1\")))","v":""},{"$f":"IF(SUM('2011 Survey responses'!T165:U165)<2.1,\"\",(AVERAGEIFS('2011 Survey responses'!T165:U165,'2011 Survey responses'!T165:U165,\">1\")))","v":""},{"$f":"IF(SUM('2011 Survey responses'!B165:C165)<2.1,\"\",((SUMIF('2011 Survey responses'!B165:C165,\">1\")+SUMIF('2011 Survey responses'!F165,\">1\"))/(COUNTIF('2011 Survey responses'!B165:C165,\">1\")+COUNTIF('2011 Survey responses'!F165,\">1\"))))","v":""},{"$f":"IF(SUM('2011 Survey responses'!D165:E165)<2.1,\"\",(AVERAGEIFS('2011 Survey responses'!D165:E165,'2011 Survey responses'!D165:E165,\">1\")))","v":""},{"$f":"IF(('2011 Survey responses'!B165+'2011 Survey responses'!D165)<2.1,\"\",((SUMIF('2011 Survey responses'!B165,\">1\")+SUMIF('2011 Survey responses'!D165,\">1\")+SUMIF('2011 Survey responses'!F165,\">1\")+SUMIF('2011 Survey responses'!K165,\">1\"))/(COUNTIF('2011 Survey responses'!B165,\">1\")+COUNTIF('2011 Survey responses'!D165,\">1\")+COUNTIF('2011 Survey responses'!F165,\">1\")+COUNTIF('2011 Survey responses'!K165,\">1\"))))","v":""},{"$f":"IF(SUM('2011 Survey responses'!G165:H165)<2.1,\"\",(AVERAGEIFS('2011 Survey responses'!G165:H165,'2011 Survey responses'!G165:H165,\">1\")))","v":""},{"$f":"IF(SUM('2011 Survey responses'!F165:G165)<1.5,\"\",MAX('2011 Survey responses'!F165,'2011 Survey responses'!G165))","v":""},{"$f":"IF(SUM('2011 Survey responses'!G165:H165)<1,\"\",MAX('2011 Survey responses'!G165,'2011 Survey responses'!H165))","v":""},{"$f":"IF(SUM('2011 Survey responses'!I165:L165)<4.1,\"\",(AVERAGEIFS('2011 Survey responses'!I165:L165,'2011 Survey responses'!I165:L165,\">1\")))","v":""},{"$f":"IF(SUM('2011 Survey responses'!M165:S165)<4.1,\"\",(AVERAGEIFS('2011 Survey responses'!M165:S165,'2011 Survey responses'!M165:S165,\">1\")))","v":""},{"$f":"IF(SUM('2011 Survey responses'!T165:U165)<2.1,\"\",(AVERAGEIFS('2011 Survey responses'!T165:U165,'2011 Survey responses'!T165:U165,\">1\")))","v":""},{"$f":"IF(SUM('2011 Survey responses'!V165:AO165)<1,\"\",(AVERAGEIFS('2011 Survey responses'!V165:AO165,'2011 Survey responses'!V165:AO165,\">1\")))","v":""},{"$f":"IF(SUM('2011 Survey responses'!V165:AA165)<1,\"\",(AVERAGEIFS('2011 Survey responses'!V165:AA165,'2011 Survey responses'!V165:AA165,\">1\")))","v":""},{"$f":"IF(SUM('2011 Survey responses'!AB165:AH165)<1,\"\",(AVERAGEIFS('2011 Survey responses'!AB165:AH165,'2011 Survey responses'!AB165:AH165,\">1\")))","v":""},{"$f":"IF(SUM('2011 Survey responses'!AI165:AO165)<1,\"\",(AVERAGEIFS('2011 Survey responses'!AI165:AO165,'2011 Survey responses'!AI165:AO165,\">1\")))","v":""},{"$f":"IF(('2011 Survey responses'!Y165+'2011 Survey responses'!AI165+'2011 Survey responses'!AK165)<3.1,\"\",((SUMIF('2011 Survey responses'!Y165,\">1\")+SUMIF('2011 Survey responses'!AI165,\">1\")+SUMIF('2011 Survey responses'!AK165,\">1\")+SUMIF('2011 Survey responses'!AM165,\">1\"))/(COUNTIF('2011 Survey responses'!Y165,\">1\")+COUNTIF('2011 Survey responses'!AI165,\">1\")+COUNTIF('2011 Survey responses'!AK165,\">1\")+COUNTIF('2011 Survey responses'!AM165,\">1\"))))","v":""},{"$f":"IF(('2011 Survey responses'!W165)<1.1,\"\",('2011 Survey responses'!W165))","v":""},{"$f":"IF(('2011 Survey responses'!Y165)<1.1,\"\",('2011 Survey responses'!Y165))","v":""},{"$f":"IF(('2011 Survey responses'!Z165)<1.1,\"\",('2011 Survey responses'!Z165))","v":""},{"$f":"IF(('2011 Survey responses'!V165+'2011 Survey responses'!X165+'2011 Survey responses'!AA165)<3.1,\"\",((SUMIF('2011 Survey responses'!V165,\">1\")+SUMIF('2011 Survey responses'!X165,\">1\")+SUMIF('2011 Survey responses'!AA165,\">1\"))/(COUNTIF('2011 Survey responses'!V165,\">1\")+COUNTIF('2011 Survey responses'!X165,\">1\")+COUNTIF('2011 Survey responses'!AA165,\">1\"))))","v":""},{"$f":"IF(('2011 Survey responses'!V165+'2011 Survey responses'!Y165+'2011 Survey responses'!AA165)<3.1,\"\",((SUMIF('2011 Survey responses'!V165,\">1\")+SUMIF('2011 Survey responses'!Y165,\">1\")+SUMIF('2011 Survey responses'!AA165,\">1\"))/(COUNTIF('2011 Survey responses'!V165,\">1\")+COUNTIF('2011 Survey responses'!Y165,\">1\")+COUNTIF('2011 Survey responses'!AA165,\">1\"))))","v":""},{"$f":"IF(SUM('2011 Survey responses'!AB165:AH165)<1,\"\",(AVERAGEIFS('2011 Survey responses'!AB165:AH165,'2011 Survey responses'!AB165:AH165,\">1\")))","v":""},{"$f":"IF(SUM('2011 Survey responses'!AI165:AO165)<7.1,\"\",(AVERAGEIFS('2011 Survey responses'!AI165:AO165,'2011 Survey responses'!AI165:AO165,\">1\")))","v":""},{"$f":"IF(('2011 Survey responses'!AH165)<1.1,\"\",('2011 Survey responses'!AH165))","v":""},{"$f":"IF(SUM('2011 Survey responses'!AP165:BV165)<1,\"\",(AVERAGEIFS('2011 Survey responses'!AP165:BV165,'2011 Survey responses'!AP165:BV165,\">1\")))","v":""},{"$f":"IF(SUM('2011 Survey responses'!AP165:AS165)<4.1,\"\",(AVERAGEIFS('2011 Survey responses'!AP165:AS165,'2011 Survey responses'!AP165:AS165,\">1\")))","v":""},{"$f":"IF(SUM('2011 Survey responses'!AT165:BF165)<1,\"\",(AVERAGEIFS('2011 Survey responses'!AT165:BF165,'2011 Survey responses'!AT165:BF165,\">1\")))","v":""},{"$f":"IF(SUM('2011 Survey responses'!BG165:BO165)<1,\"\",(AVERAGEIFS('2011 Survey responses'!BG165:BO165,'2011 Survey responses'!BG165:BO165,\">1\")))","v":""},{"$f":"IF(SUM('2011 Survey responses'!BP165:BS165)<1,\"\",(AVERAGEIFS('2011 Survey responses'!BP165:BS165,'2011 Survey responses'!BP165:BS165,\">1\")))","v":""},{"$f":"IF(SUM('2011 Survey responses'!BT165:BV165)<3.1,\"\",(AVERAGEIFS('2011 Survey responses'!BT165:BV165,'2011 Survey responses'!BT165:BV165,\">1\")))","v":""},{"$f":"IF(('2011 Survey responses'!AQ165+'2011 Survey responses'!AR165+'2011 Survey responses'!BG165)<3.1,\"\",((SUMIF('2011 Survey responses'!AQ165,\">1\")+SUMIF('2011 Survey responses'!AR165,\">1\")+SUMIF('2011 Survey responses'!BG165,\">1\"))/(COUNTIF('2011 Survey responses'!AQ165,\">1\")+COUNTIF('2011 Survey responses'!AR165,\">1\")+COUNTIF('2011 Survey responses'!BG165,\">1\"))))","v":""},{"$f":"IF(SUM('2011 Survey responses'!AP165:AS165)<4.1,\"\",(AVERAGEIFS('2011 Survey responses'!AP165:AS165,'2011 Survey responses'!AP165:AS165,\">1\")))","v":""},{"$f":"IF(('2011 Survey responses'!AU165+'2011 Survey responses'!AX165+'2011 Survey responses'!BA165+'2011 Survey responses'!BC165+'2011 Survey responses'!BD165)<5.1,\"\",(SUMIF('2011 Survey responses'!AU165,\">1\")+SUMIF('2011 Survey responses'!AX165,\">1\")+SUMIF('2011 Survey responses'!BA165,\">1\")+SUMIF('2011 Survey responses'!BC165,\">1\")+SUMIF('2011 Survey responses'!BD165,\">1\"))/(COUNTIF('2011 Survey responses'!AU165,\">1\")+COUNTIF('2011 Survey responses'!AX165,\">1\")+COUNTIF('2011 Survey responses'!BA165,\">1\")+COUNTIF('2011 Survey responses'!BC165,\">1\")+COUNTIF('2011 Survey responses'!BD165,\">1\")))","v":""},{"$f":"IF(('2011 Survey responses'!AT165)<1.1,\"\",('2011 Survey responses'!AT165))","v":""},{"$f":"IF(SUM('2011 Survey responses'!AV165:AW165)<2.1,\"\",(AVERAGEIFS('2011 Survey responses'!AV165:AW165,'2011 Survey responses'!AV165:AW165,\">1\")))","v":""},{"$f":"IF(('2011 Survey responses'!AW165+'2011 Survey responses'!AY165)<2.1,\"\",(SUMIF('2011 Survey responses'!AW165,\">1\")+SUMIF('2011 Survey responses'!AY165,\">1\"))/(COUNTIF('2011 Survey responses'!AW165,\">1\")+COUNTIF('2011 Survey responses'!AY165,\">1\")))","v":""},{"$f":"IF(('2011 Survey responses'!AZ165)<1.1,\"\",('2011 Survey responses'!AZ165))","v":""},null,null,null,null,{"$f":"IF(('2011 Survey responses'!BE165)<1.1,\"\",('2011 Survey responses'!BE165))","v":""},{"$f":"IF(('2011 Survey responses'!AY165+'2011 Survey responses'!BB165+'2011 Survey responses'!BF165)<3.1,\"\",(SUMIF('2011 Survey responses'!AY165,\">1\")+SUMIF('2011 Survey responses'!BB165,\">1\")+SUMIF('2011 Survey responses'!BF165,\">1\"))/(COUNTIF('2011 Survey responses'!AY165,\">1\")+COUNTIF('2011 Survey responses'!BB165,\">1\")+COUNTIF('2011 Survey responses'!BF165,\">1\")))","v":""},"",{"$f":"IF(SUM('2011 Survey responses'!BT165:BV165)<3.1,\"\",(AVERAGEIFS('2011 Survey responses'!BT165:BV165,'2011 Survey responses'!BT165:BV165,\">1\")))","v":""},{"$f":"IF(SUM('2011 Survey responses'!BW165:CP165)<1,\"\",(AVERAGEIFS('2011 Survey responses'!BW165:CP165,'2011 Survey responses'!BW165:CP165,\">1\")))","v":""},{"$f":"IF(SUM('2011 Survey responses'!BW165:CF165)<1,\"\",(AVERAGEIFS('2011 Survey responses'!BW165:CF165,'2011 Survey responses'!BW165:CF165,\">1\")))","v":""},{"$f":"IF(SUM('2011 Survey responses'!CG165:CP165)<1,\"\",(AVERAGEIFS('2011 Survey responses'!CG165:CP165,'2011 Survey responses'!CG165:CP165,\">1\")))","v":""},{"$f":"IF(SUM('2011 Survey responses'!BX165:CF165)<1,\"\",(AVERAGEIFS('2011 Survey responses'!BX165:CF165,'2011 Survey responses'!BX165:CF165,\">1\")))","v":""},{"$f":"IF(SUM('2011 Survey responses'!CH165:CP165)<1,\"\",(AVERAGEIFS('2011 Survey responses'!CH165:CP165,'2011 Survey responses'!CH165:CP165,\">1\")))","v":""},{"$f":"IF(SUM('2011 Survey responses'!BW165:CP165)<1,\"\",(AVERAGEIFS('2011 Survey responses'!BW165:CP165,'2011 Survey responses'!BW165:CP165,\">1\")))","v":""},{"$f":"IF(('2011 Survey responses'!BW165+'2011 Survey responses'!CG165)<2.1,\"\",(SUMIF('2011 Survey responses'!BW165,\">1\")+SUMIF('2011 Survey responses'!CG165,\">1\"))/(COUNTIF('2011 Survey responses'!BW165,\">1\")+COUNTIF('2011 Survey responses'!CG165,\">1\")))","v":""},{"$f":"IF(('2011 Survey responses'!BX165+'2011 Survey responses'!CH165)<2.1,\"\",(SUMIF('2011 Survey responses'!BX165,\">1\")+SUMIF('2011 Survey responses'!CH165,\">1\"))/(COUNTIF('2011 Survey responses'!BX165,\">1\")+COUNTIF('2011 Survey responses'!CH165,\">1\")))","v":""},{"$f":"IF(('2011 Survey responses'!BY165+'2011 Survey responses'!CI165)<2.1,\"\",(SUMIF('2011 Survey responses'!BY165,\">1\")+SUMIF('2011 Survey responses'!CI165,\">1\"))/(COUNTIF('2011 Survey responses'!BY165,\">1\")+COUNTIF('2011 Survey responses'!CI165,\">1\")))","v":""},{"$f":"IF('2011 Survey responses'!CQ165<0.5,\"\",'2011 Survey responses'!CQ165)","v":""},{"$f":"IF('2011 Survey responses'!CR165<0.5,\"\",'2011 Survey responses'!CR165)","v":""},{"$f":"IF('2011 Survey responses'!CS165<0.5,\"\",'2011 Survey responses'!CS165)","v":""},{"$f":"IF('2011 Survey responses'!CT165<0.5,\"\",'2011 Survey responses'!CT165)","v":""},{"$f":"IF('2011 Survey responses'!CU165<0.5,\"\",'2011 Survey responses'!CU165)","v":""},{"$f":"IF('2011 Survey responses'!CV165<0.5,\"\",'2011 Survey responses'!CV165)","v":""},{"$f":"IF(SUM('2011 Survey responses'!CW165:DL165)<1,\"\",(AVERAGE('2011 Survey responses'!CW165:DL165)))","v":""},{"$f":"IF(SUM('2011 Survey responses'!CW165:CZ165)<1,\"\",(AVERAGE('2011 Survey responses'!CW165:CZ165)))","v":""},{"$f":"IF(SUM('2011 Survey responses'!DA165:DD165)<1,\"\",(AVERAGE('2011 Survey responses'!DA165:DD165)))","v":""},{"$f":"IF(SUM('2011 Survey responses'!DE165:DH165)<1,\"\",(AVERAGE('2011 Survey responses'!DE165:DH165)))","v":""},{"$f":"IF(SUM('2011 Survey responses'!DI165:DL165)<1,\"\",(AVERAGE('2011 Survey responses'!DI165:DL165)))","v":""},{"$f":"IF(('2011 Survey responses'!CW165+'2011 Survey responses'!DA165+'2011 Survey responses'!DE165+'2011 Survey responses'!DI165)<1,\"\",AVERAGE('2011 Survey responses'!CW165,'2011 Survey responses'!DA165,'2011 Survey responses'!DE165,'2011 Survey responses'!DI165))","v":""},{"$f":"IF(('2011 Survey responses'!CX165+'2011 Survey responses'!DB165+'2011 Survey responses'!DF165+'2011 Survey responses'!DJ165)<1,\"\",AVERAGE('2011 Survey responses'!CX165,'2011 Survey responses'!DB165,'2011 Survey responses'!DF165,'2011 Survey responses'!DJ165))","v":""},{"$f":"IF(('2011 Survey responses'!CY165+'2011 Survey responses'!DC165+'2011 Survey responses'!DG165+'2011 Survey responses'!DK165)<1,\"\",AVERAGE('2011 Survey responses'!CY165,'2011 Survey responses'!DC165,'2011 Survey responses'!DG165,'2011 Survey responses'!DK165))","v":""},{"$f":"IF(('2011 Survey responses'!CZ165+'2011 Survey responses'!DD165+'2011 Survey responses'!DH165+'2011 Survey responses'!DL165)<1,\"\",AVERAGE('2011 Survey responses'!CZ165,'2011 Survey responses'!DD165,'2011 Survey responses'!DH165,'2011 Survey responses'!DL165))","v":""},{"$f":"IF('2011 Survey responses'!CW165<0.5,\"\",'2011 Survey responses'!CW165)","v":""},{"$f":"IF('2011 Survey responses'!CX165<0.5,\"\",'2011 Survey responses'!CX165)","v":""},{"$f":"IF('2011 Survey responses'!CY165<0.5,\"\",'2011 Survey responses'!CY165)","v":""},{"$f":"IF('2011 Survey responses'!CZ165<0.5,\"\",'2011 Survey responses'!CZ165)","v":""},{"$f":"IF('2011 Survey responses'!DA165<0.5,\"\",'2011 Survey responses'!DA165)","v":""},{"$f":"IF('2011 Survey responses'!DB165<0.5,\"\",'2011 Survey responses'!DB165)","v":""},{"$f":"IF('2011 Survey responses'!DC165<0.5,\"\",'2011 Survey responses'!DC165)","v":""},{"$f":"IF('2011 Survey responses'!DD165<0.5,\"\",'2011 Survey responses'!DD165)","v":""},{"$f":"IF('2011 Survey responses'!DE165<0.5,\"\",'2011 Survey responses'!DE165)","v":""},{"$f":"IF('2011 Survey responses'!DF165<0.5,\"\",'2011 Survey responses'!DF165)","v":""},{"$f":"IF('2011 Survey responses'!DG165<0.5,\"\",'2011 Survey responses'!DG165)","v":""},{"$f":"IF('2011 Survey responses'!DH165<0.5,\"\",'2011 Survey responses'!DH165)","v":""},{"$f":"IF('2011 Survey responses'!DI165<0.5,\"\",'2011 Survey responses'!DI165)","v":""},{"$f":"IF('2011 Survey responses'!DJ165<0.5,\"\",'2011 Survey responses'!DJ165)","v":""},{"$f":"IF('2011 Survey responses'!DK165<0.5,\"\",'2011 Survey responses'!DK165)","v":""},{"$f":"IF('2011 Survey responses'!DL165<0.5,\"\",'2011 Survey responses'!DL165)","v":""},{"$f":"IF('2011 Survey responses'!DU165=4,4,IF('2011 Survey responses'!DU165=5,4,\"\"))","v":""},{"$f":"IF('2011 Survey responses'!DV165=4,3,IF('2011 Survey responses'!DV165=5,3,\"\"))","v":""},"",{"$f":"IF(CQ165=2,CQ165,IF(CO165=4,CO165,IF(CP165=3,CP165,IF('2011 Survey responses'!GT165=1,1,\"\"))))","v":""},{"$f":"IF('2011 Survey responses'!DO165<0.5,\"\",'2011 Survey responses'!DO165)","v":""},{"$f":"IF('2011 Survey responses'!DP165<0.5,\"\",'2011 Survey responses'!DP165)","v":""},{"$f":"IF('2011 Survey responses'!DQ165<0.5,\"\",'2011 Survey responses'!DQ165)","v":""},{"$f":"IF('2011 Survey responses'!DR165<0.5,\"\",'2011 Survey responses'!DR165)","v":""},{"$f":"IF('2011 Survey responses'!DS165<0.5,\"\",'2011 Survey responses'!DS165)","v":""},{"$f":"IF('2011 Survey responses'!DT165<0.5,\"\",'2011 Survey responses'!DT165)","v":""},{"$f":"IF('2011 Survey responses'!DU165<0.5,\"\",'2011 Survey responses'!DU165)","v":""},{"$f":"IF('2011 Survey responses'!DV165<0.5,\"\",'2011 Survey responses'!DV165)","v":""},{"$f":"IF('2011 Survey responses'!DW165<0.5,\"\",'2011 Survey responses'!DW165)","v":""},{"$f":"IF('2011 Survey responses'!DX165<0.5,\"\",'2011 Survey responses'!DX165)","v":""},{"$f":"IF('2011 Survey responses'!DY165<0.5,\"\",'2011 Survey responses'!DY165)","v":""},{"$f":"IF('2011 Survey responses'!DZ165<0.5,\"\",'2011 Survey responses'!DZ165)","v":""},{"$f":"IF('2011 Survey responses'!EA165<0.5,\"\",'2011 Survey responses'!EA165)","v":""},{"$f":"IF('2011 Survey responses'!EB165<0.5,\"\",'2011 Survey responses'!EB165)","v":""},{"$f":"IF('2011 Survey responses'!EC165<0.5,\"\",'2011 Survey responses'!EC165)","v":""},{"$f":"IF('2011 Survey responses'!ED165<0.5,\"\",'2011 Survey responses'!ED165)","v":""},{"$f":"IF('2011 Survey responses'!EE165<0.5,\"\",'2011 Survey responses'!EE165)","v":""},{"$f":"IF('2011 Survey responses'!EF165<0.5,\"\",'2011 Survey responses'!EF165)","v":""},{"$f":"IF('2011 Survey responses'!EG165<0.5,\"\",'2011 Survey responses'!EG165)","v":""},{"$f":"IF('2011 Survey responses'!EH165<0.5,\"\",'2011 Survey responses'!EH165)","v":""},{"$f":"IF('2011 Survey responses'!EI165<0.5,\"\",'2011 Survey responses'!EI165)","v":""},{"$f":"IF('2011 Survey responses'!EJ165<0.5,\"\",'2011 Survey responses'!EJ165)","v":""},{"$f":"IF('2011 Survey responses'!EK165<0.5,\"\",'2011 Survey responses'!EK165)","v":""},{"$f":"IF('2011 Survey responses'!EL165<0.5,\"\",'2011 Survey responses'!EL165)","v":""},{"$f":"IF('2011 Survey responses'!EM165<0.5,\"\",'2011 Survey responses'!EM165)","v":""},{"$f":"IF('2011 Survey responses'!EN165<0.5,\"\",'2011 Survey responses'!EN165)","v":""},{"$f":"IF('2011 Survey responses'!EO165<0.5,\"\",'2011 Survey responses'!EO165)","v":""},{"$f":"IF('2011 Survey responses'!EP165<0.5,\"\",'2011 Survey responses'!EP165)","v":""},{"$f":"IF(('2011 Survey responses'!EW165+'2011 Survey responses'!EX165)>=2,AVERAGE('2011 Survey responses'!EW165,'2011 Survey responses'!EY165),\"\")","v":""},{"$f":"IF('2011 Survey responses'!EX165<0.5,\"\",'2011 Survey responses'!EX165)","v":""},{"$f":"IF('2011 Survey responses'!EZ165<0.5,\"\",'2011 Survey responses'!EZ165)","v":""},{"$f":"IF('2011 Survey responses'!FB165<0.5,\"\",'2011 Survey responses'!FB165)","v":""},{"$f":"IF('2011 Survey responses'!FD165<0.5,\"\",'2011 Survey responses'!FD165)","v":""},{"$f":"IF('2011 Survey responses'!FC165<0.5,\"\",'2011 Survey responses'!FC165)","v":""},{"$f":"IF(('2011 Survey responses'!EM165+'2011 Survey responses'!EN165)>=2,AVERAGE('2011 Survey responses'!EM165,'2011 Survey responses'!EN165),\"\")","v":""},{"$f":"IF('2011 Survey responses'!ES165<0.5,\"\",'2011 Survey responses'!ES165)","v":""},{"$f":"IF(('2011 Survey responses'!ET165+'2011 Survey responses'!EU165)>=2,AVERAGE('2011 Survey responses'!ET165,'2011 Survey responses'!EU165),\"\")","v":""},{"$f":"IF('2011 Survey responses'!EV165<0.5,\"\",'2011 Survey responses'!EV165)","v":""},{"$f":"IF('2011 Survey responses'!FA165<0.5,\"\",'2011 Survey responses'!FA165)","v":""},{"$f":"IF('2011 Survey responses'!ER165<0.5,\"\",'2011 Survey responses'!ER165)","v":""},{"$f":"IF(('2011 Survey responses'!EO165+'2011 Survey responses'!EP165)>=2,AVERAGE('2011 Survey responses'!EO165,'2011 Survey responses'!EP165),\"\")","v":""},{"$f":"IF('2011 Survey responses'!EQ165<0.5,\"\",'2011 Survey responses'!EQ165)","v":""},{"$f":"IF('2011 Survey responses'!ET165<0.5,\"\",'2011 Survey responses'!ET165)","v":""},{"$f":"IF('2011 Survey responses'!EU165<0.5,\"\",'2011 Survey responses'!EU165)","v":""},{"$f":"IF('2011 Survey responses'!EW165<0.5,\"\",'2011 Survey responses'!EW165)","v":""},{"$f":"IF('2011 Survey responses'!EY165<0.5,\"\",'2011 Survey responses'!EY165)","v":""},{"$f":"IF('2011 Survey responses'!FU165<0.5,\"\",'2011 Survey responses'!FU165)","v":""},{"$f":"IF(('2011 Survey responses'!FL165+'2011 Survey responses'!FM165)>=2,AVERAGE('2011 Survey responses'!FL165,'2011 Survey responses'!FM165),\"\")","v":""},{"$f":"IF(('2011 Survey responses'!FO165+'2011 Survey responses'!FQ165)>=2,AVERAGE('2011 Survey responses'!FO165,'2011 Survey responses'!FQ165),\"\")","v":""},{"$f":"IF('2011 Survey responses'!FJ165<0.5,\"\",'2011 Survey responses'!FJ165)","v":""},{"$f":"IF('2011 Survey responses'!FT165<0.5,\"\",'2011 Survey responses'!FT165)","v":""},{"$f":"IF('2011 Survey responses'!FR165<0.5,\"\",'2011 Survey responses'!FR165)","v":""},{"$f":"IF('2011 Survey responses'!FK165<0.5,\"\",'2011 Survey responses'!FK165)","v":""},{"$f":"IF('2011 Survey responses'!FP165<0.5,\"\",'2011 Survey responses'!FP165)","v":""},{"$f":"IF('2011 Survey responses'!FN165<0.5,\"\",'2011 Survey responses'!FN165)","v":""},{"$f":"IF(('2011 Survey responses'!FE165+'2011 Survey responses'!FF165)>=2,AVERAGE('2011 Survey responses'!FE165,'2011 Survey responses'!FF165),\"\")","v":""},{"$f":"IF('2011 Survey responses'!FS165<0.5,\"\",'2011 Survey responses'!FS165)","v":""},{"$f":"IF('2011 Survey responses'!FV165<0.5,\"\",'2011 Survey responses'!FV165)","v":""},{"$f":"IF(('2011 Survey responses'!FG165+'2011 Survey responses'!FH165)>=2,AVERAGE('2011 Survey responses'!FG165,'2011 Survey responses'!FH165),\"\")","v":""},{"$f":"IF('2011 Survey responses'!FI165<0.5,\"\",'2011 Survey responses'!FI165)","v":""},{"$f":"IF('2011 Survey responses'!FE165<0.5,\"\",'2011 Survey responses'!FE165)","v":""},{"$f":"IF('2011 Survey responses'!FF165<0.5,\"\",'2011 Survey responses'!FF165)","v":""},{"$f":"IF('2011 Survey responses'!FG165<0.5,\"\",'2011 Survey responses'!FG165)","v":""},{"$f":"IF('2011 Survey responses'!FH165<0.5,\"\",'2011 Survey responses'!FH165)","v":""},{"$f":"IF('2011 Survey responses'!FL165<0.5,\"\",'2011 Survey responses'!FL165)","v":""},{"$f":"IF('2011 Survey responses'!FM165<0.5,\"\",'2011 Survey responses'!FM165)","v":""},{"$f":"IF('2011 Survey responses'!FO165<0.5,\"\",'2011 Survey responses'!FO165)","v":""},{"$f":"IF('2011 Survey responses'!FQ165<0.5,\"\",'2011 Survey responses'!FQ165)","v":""}]
["Swaziland",{"$f":"IF(SUM(F166)<1,\"\",AVERAGEIF('2011 Survey responses'!B166:CP166,\">1\"))","v":2.8095238095238093},{"$f":"IF(SUM(F166)<1,\"\",AVERAGEIF('2011 Survey responses'!B166:AO166,\">1\"))","v":2.6111111111111112},{"$f":"IF(SUM(F166)<1,\"\",AVERAGEIF('2011 Survey responses'!B166:BV166,\">1\"))","v":2.6666666666666665},{"$f":"IF(SUM(F166)<1,\"\",AVERAGEIF('2011 Survey responses'!V166:BV166,\">1\"))","v":2.68},{"$f":"IF(SUM('2011 Survey responses'!B166:U166)<1,\"\",(AVERAGEIFS('2011 Survey responses'!B166:U166,'2011 Survey responses'!B166:U166,\">1\")))","v":2.625},{"$f":"IF(SUM('2011 Survey responses'!B166:H166)<1,\"\",(AVERAGEIFS('2011 Survey responses'!B166:H166,'2011 Survey responses'!B166:H166,\">1\")))","v":2.4},{"$f":"IF(SUM('2011 Survey responses'!I166:S166)<1,\"\",(AVERAGEIFS('2011 Survey responses'!I166:S166,'2011 Survey responses'!I166:S166,\">1\")))","v":2.2222222222222223},{"$f":"IF(SUM('2011 Survey responses'!T166:U166)<2.1,\"\",(AVERAGEIFS('2011 Survey responses'!T166:U166,'2011 Survey responses'!T166:U166,\">1\")))","v":5},{"$f":"IF(SUM('2011 Survey responses'!B166:C166)<2.1,\"\",((SUMIF('2011 Survey responses'!B166:C166,\">1\")+SUMIF('2011 Survey responses'!F166,\">1\"))/(COUNTIF('2011 Survey responses'!B166:C166,\">1\")+COUNTIF('2011 Survey responses'!F166,\">1\"))))","v":2},{"$f":"IF(SUM('2011 Survey responses'!D166:E166)<2.1,\"\",(AVERAGEIFS('2011 Survey responses'!D166:E166,'2011 Survey responses'!D166:E166,\">1\")))","v":4},{"$f":"IF(('2011 Survey responses'!B166+'2011 Survey responses'!D166)<2.1,\"\",((SUMIF('2011 Survey responses'!B166,\">1\")+SUMIF('2011 Survey responses'!D166,\">1\")+SUMIF('2011 Survey responses'!F166,\">1\")+SUMIF('2011 Survey responses'!K166,\">1\"))/(COUNTIF('2011 Survey responses'!B166,\">1\")+COUNTIF('2011 Survey responses'!D166,\">1\")+COUNTIF('2011 Survey responses'!F166,\">1\")+COUNTIF('2011 Survey responses'!K166,\">1\"))))","v":3},{"$f":"IF(SUM('2011 Survey responses'!G166:H166)<2.1,\"\",(AVERAGEIFS('2011 Survey responses'!G166:H166,'2011 Survey responses'!G166:H166,\">1\")))","v":2},{"$f":"IF(SUM('2011 Survey responses'!F166:G166)<1.5,\"\",MAX('2011 Survey responses'!F166,'2011 Survey responses'!G166))","v":2},{"$f":"IF(SUM('2011 Survey responses'!G166:H166)<1,\"\",MAX('2011 Survey responses'!G166,'2011 Survey responses'!H166))","v":2},{"$f":"IF(SUM('2011 Survey responses'!I166:L166)<4.1,\"\",(AVERAGEIFS('2011 Survey responses'!I166:L166,'2011 Survey responses'!I166:L166,\">1\")))","v":2.6666666666666665},{"$f":"IF(SUM('2011 Survey responses'!M166:S166)<4.1,\"\",(AVERAGEIFS('2011 Survey responses'!M166:S166,'2011 Survey responses'!M166:S166,\">1\")))","v":2},{"$f":"IF(SUM('2011 Survey responses'!T166:U166)<2.1,\"\",(AVERAGEIFS('2011 Survey responses'!T166:U166,'2011 Survey responses'!T166:U166,\">1\")))","v":5},{"$f":"IF(SUM('2011 Survey responses'!V166:AO166)<1,\"\",(AVERAGEIFS('2011 Survey responses'!V166:AO166,'2011 Survey responses'!V166:AO166,\">1\")))","v":2.6},{"$f":"IF(SUM('2011 Survey responses'!V166:AA166)<1,\"\",(AVERAGEIFS('2011 Survey responses'!V166:AA166,'2011 Survey responses'!V166:AA166,\">1\")))","v":3.3333333333333335},{"$f":"IF(SUM('2011 Survey responses'!AB166:AH166)<1,\"\",(AVERAGEIFS('2011 Survey responses'!AB166:AH166,'2011 Survey responses'!AB166:AH166,\">1\")))","v":2.1428571428571428},{"$f":"IF(SUM('2011 Survey responses'!AI166:AO166)<1,\"\",(AVERAGEIFS('2011 Survey responses'!AI166:AO166,'2011 Survey responses'!AI166:AO166,\">1\")))","v":2.4285714285714284},{"$f":"IF(('2011 Survey responses'!Y166+'2011 Survey responses'!AI166+'2011 Survey responses'!AK166)<3.1,\"\",((SUMIF('2011 Survey responses'!Y166,\">1\")+SUMIF('2011 Survey responses'!AI166,\">1\")+SUMIF('2011 Survey responses'!AK166,\">1\")+SUMIF('2011 Survey responses'!AM166,\">1\"))/(COUNTIF('2011 Survey responses'!Y166,\">1\")+COUNTIF('2011 Survey responses'!AI166,\">1\")+COUNTIF('2011 Survey responses'!AK166,\">1\")+COUNTIF('2011 Survey responses'!AM166,\">1\"))))","v":2.75},{"$f":"IF(('2011 Survey responses'!W166)<1.1,\"\",('2011 Survey responses'!W166))","v":3},{"$f":"IF(('2011 Survey responses'!Y166)<1.1,\"\",('2011 Survey responses'!Y166))","v":4},{"$f":"IF(('2011 Survey responses'!Z166)<1.1,\"\",('2011 Survey responses'!Z166))","v":5},{"$f":"IF(('2011 Survey responses'!V166+'2011 Survey responses'!X166+'2011 Survey responses'!AA166)<3.1,\"\",((SUMIF('2011 Survey responses'!V166,\">1\")+SUMIF('2011 Survey responses'!X166,\">1\")+SUMIF('2011 Survey responses'!AA166,\">1\"))/(COUNTIF('2011 Survey responses'!V166,\">1\")+COUNTIF('2011 Survey responses'!X166,\">1\")+COUNTIF('2011 Survey responses'!AA166,\">1\"))))","v":2.6666666666666665},{"$f":"IF(('2011 Survey responses'!V166+'2011 Survey responses'!Y166+'2011 Survey responses'!AA166)<3.1,\"\",((SUMIF('2011 Survey responses'!V166,\">1\")+SUMIF('2011 Survey responses'!Y166,\">1\")+SUMIF('2011 Survey responses'!AA166,\">1\"))/(COUNTIF('2011 Survey responses'!V166,\">1\")+COUNTIF('2011 Survey responses'!Y166,\">1\")+COUNTIF('2011 Survey responses'!AA166,\">1\"))))","v":3.3333333333333335},{"$f":"IF(SUM('2011 Survey responses'!AB166:AH166)<1,\"\",(AVERAGEIFS('2011 Survey responses'!AB166:AH166,'2011 Survey responses'!AB166:AH166,\">1\")))","v":2.1428571428571428},{"$f":"IF(SUM('2011 Survey responses'!AI166:AO166)<7.1,\"\",(AVERAGEIFS('2011 Survey responses'!AI166:AO166,'2011 Survey responses'!AI166:AO166,\">1\")))","v":2.4285714285714284},{"$f":"IF(('2011 Survey responses'!AH166)<1.1,\"\",('2011 Survey responses'!AH166))","v":2},{"$f":"IF(SUM('2011 Survey responses'!AP166:BV166)<1,\"\",(AVERAGEIFS('2011 Survey responses'!AP166:BV166,'2011 Survey responses'!AP166:BV166,\">1\")))","v":2.7333333333333334},{"$f":"IF(SUM('2011 Survey responses'!AP166:AS166)<4.1,\"\",(AVERAGEIFS('2011 Survey responses'!AP166:AS166,'2011 Survey responses'!AP166:AS166,\">1\")))","v":3.5},{"$f":"IF(SUM('2011 Survey responses'!AT166:BF166)<1,\"\",(AVERAGEIFS('2011 Survey responses'!AT166:BF166,'2011 Survey responses'!AT166:BF166,\">1\")))","v":2.6363636363636362},{"$f":"IF(SUM('2011 Survey responses'!BG166:BO166)<1,\"\",(AVERAGEIFS('2011 Survey responses'!BG166:BO166,'2011 Survey responses'!BG166:BO166,\">1\")))","v":3},{"$f":"IF(SUM('2011 Survey responses'!BP166:BS166)<1,\"\",(AVERAGEIFS('2011 Survey responses'!BP166:BS166,'2011 Survey responses'!BP166:BS166,\">1\")))","v":2},{"$f":"IF(SUM('2011 Survey responses'!BT166:BV166)<3.1,\"\",(AVERAGEIFS('2011 Survey responses'!BT166:BV166,'2011 Survey responses'!BT166:BV166,\">1\")))","v":2},{"$f":"IF(('2011 Survey responses'!AQ166+'2011 Survey responses'!AR166+'2011 Survey responses'!BG166)<3.1,\"\",((SUMIF('2011 Survey responses'!AQ166,\">1\")+SUMIF('2011 Survey responses'!AR166,\">1\")+SUMIF('2011 Survey responses'!BG166,\">1\"))/(COUNTIF('2011 Survey responses'!AQ166,\">1\")+COUNTIF('2011 Survey responses'!AR166,\">1\")+COUNTIF('2011 Survey responses'!BG166,\">1\"))))","v":3},{"$f":"IF(SUM('2011 Survey responses'!AP166:AS166)<4.1,\"\",(AVERAGEIFS('2011 Survey responses'!AP166:AS166,'2011 Survey responses'!AP166:AS166,\">1\")))","v":3.5},{"$f":"IF(('2011 Survey responses'!AU166+'2011 Survey responses'!AX166+'2011 Survey responses'!BA166+'2011 Survey responses'!BC166+'2011 Survey responses'!BD166)<5.1,\"\",(SUMIF('2011 Survey responses'!AU166,\">1\")+SUMIF('2011 Survey responses'!AX166,\">1\")+SUMIF('2011 Survey responses'!BA166,\">1\")+SUMIF('2011 Survey responses'!BC166,\">1\")+SUMIF('2011 Survey responses'!BD166,\">1\"))/(COUNTIF('2011 Survey responses'!AU166,\">1\")+COUNTIF('2011 Survey responses'!AX166,\">1\")+COUNTIF('2011 Survey responses'!BA166,\">1\")+COUNTIF('2011 Survey responses'!BC166,\">1\")+COUNTIF('2011 Survey responses'!BD166,\">1\")))","v":2.3333333333333335},{"$f":"IF(('2011 Survey responses'!AT166)<1.1,\"\",('2011 Survey responses'!AT166))","v":2},{"$f":"IF(SUM('2011 Survey responses'!AV166:AW166)<2.1,\"\",(AVERAGEIFS('2011 Survey responses'!AV166:AW166,'2011 Survey responses'!AV166:AW166,\">1\")))","v":2},{"$f":"IF(('2011 Survey responses'!AW166+'2011 Survey responses'!AY166)<2.1,\"\",(SUMIF('2011 Survey responses'!AW166,\">1\")+SUMIF('2011 Survey responses'!AY166,\">1\"))/(COUNTIF('2011 Survey responses'!AW166,\">1\")+COUNTIF('2011 Survey responses'!AY166,\">1\")))","v":2},{"$f":"IF(('2011 Survey responses'!AZ166)<1.1,\"\",('2011 Survey responses'!AZ166))","v":4},4,1,2,2,{"$f":"IF(('2011 Survey responses'!BE166)<1.1,\"\",('2011 Survey responses'!BE166))","v":5},{"$f":"IF(('2011 Survey responses'!AY166+'2011 Survey responses'!BB166+'2011 Survey responses'!BF166)<3.1,\"\",(SUMIF('2011 Survey responses'!AY166,\">1\")+SUMIF('2011 Survey responses'!BB166,\">1\")+SUMIF('2011 Survey responses'!BF166,\">1\"))/(COUNTIF('2011 Survey responses'!AY166,\">1\")+COUNTIF('2011 Survey responses'!BB166,\">1\")+COUNTIF('2011 Survey responses'!BF166,\">1\")))","v":2.3333333333333335},2.5,{"$f":"IF(SUM('2011 Survey responses'!BT166:BV166)<3.1,\"\",(AVERAGEIFS('2011 Survey responses'!BT166:BV166,'2011 Survey responses'!BT166:BV166,\">1\")))","v":2},{"$f":"IF(SUM('2011 Survey responses'!BW166:CP166)<1,\"\",(AVERAGEIFS('2011 Survey responses'!BW166:CP166,'2011 Survey responses'!BW166:CP166,\">1\")))","v":3.3333333333333335},{"$f":"IF(SUM('2011 Survey responses'!BW166:CF166)<1,\"\",(AVERAGEIFS('2011 Survey responses'!BW166:CF166,'2011 Survey responses'!BW166:CF166,\">1\")))","v":3.3333333333333335},{"$f":"IF(SUM('2011 Survey responses'!CG166:CP166)<1,\"\",(AVERAGEIFS('2011 Survey responses'!CG166:CP166,'2011 Survey responses'!CG166:CP166,\">1\")))","v":3.3333333333333335},{"$f":"IF(SUM('2011 Survey responses'!BX166:CF166)<1,\"\",(AVERAGEIFS('2011 Survey responses'!BX166:CF166,'2011 Survey responses'!BX166:CF166,\">1\")))","v":3.25},{"$f":"IF(SUM('2011 Survey responses'!CH166:CP166)<1,\"\",(AVERAGEIFS('2011 Survey responses'!CH166:CP166,'2011 Survey responses'!CH166:CP166,\">1\")))","v":3.25},{"$f":"IF(SUM('2011 Survey responses'!BW166:CP166)<1,\"\",(AVERAGEIFS('2011 Survey responses'!BW166:CP166,'2011 Survey responses'!BW166:CP166,\">1\")))","v":3.3333333333333335},{"$f":"IF(('2011 Survey responses'!BW166+'2011 Survey responses'!CG166)<2.1,\"\",(SUMIF('2011 Survey responses'!BW166,\">1\")+SUMIF('2011 Survey responses'!CG166,\">1\"))/(COUNTIF('2011 Survey responses'!BW166,\">1\")+COUNTIF('2011 Survey responses'!CG166,\">1\")))","v":4},{"$f":"IF(('2011 Survey responses'!BX166+'2011 Survey responses'!CH166)<2.1,\"\",(SUMIF('2011 Survey responses'!BX166,\">1\")+SUMIF('2011 Survey responses'!CH166,\">1\"))/(COUNTIF('2011 Survey responses'!BX166,\">1\")+COUNTIF('2011 Survey responses'!CH166,\">1\")))","v":4},{"$f":"IF(('2011 Survey responses'!BY166+'2011 Survey responses'!CI166)<2.1,\"\",(SUMIF('2011 Survey responses'!BY166,\">1\")+SUMIF('2011 Survey responses'!CI166,\">1\"))/(COUNTIF('2011 Survey responses'!BY166,\">1\")+COUNTIF('2011 Survey responses'!CI166,\">1\")))","v":2},{"$f":"IF('2011 Survey responses'!CQ166<0.5,\"\",'2011 Survey responses'!CQ166)","v":5},{"$f":"IF('2011 Survey responses'!CR166<0.5,\"\",'2011 Survey responses'!CR166)","v":5},{"$f":"IF('2011 Survey responses'!CS166<0.5,\"\",'2011 Survey responses'!CS166)","v":5},{"$f":"IF('2011 Survey responses'!CT166<0.5,\"\",'2011 Survey responses'!CT166)","v":5},{"$f":"IF('2011 Survey responses'!CU166<0.5,\"\",'2011 Survey responses'!CU166)","v":2},{"$f":"IF('2011 Survey responses'!CV166<0.5,\"\",'2011 Survey responses'!CV166)","v":2},{"$f":"IF(SUM('2011 Survey responses'!CW166:DL166)<1,\"\",(AVERAGE('2011 Survey responses'!CW166:DL166)))","v":3.6875},{"$f":"IF(SUM('2011 Survey responses'!CW166:CZ166)<1,\"\",(AVERAGE('2011 Survey responses'!CW166:CZ166)))","v":3.75},{"$f":"IF(SUM('2011 Survey responses'!DA166:DD166)<1,\"\",(AVERAGE('2011 Survey responses'!DA166:DD166)))","v":4},{"$f":"IF(SUM('2011 Survey responses'!DE166:DH166)<1,\"\",(AVERAGE('2011 Survey responses'!DE166:DH166)))","v":3.25},{"$f":"IF(SUM('2011 Survey responses'!DI166:DL166)<1,\"\",(AVERAGE('2011 Survey responses'!DI166:DL166)))","v":3.75},{"$f":"IF(('2011 Survey responses'!CW166+'2011 Survey responses'!DA166+'2011 Survey responses'!DE166+'2011 Survey responses'!DI166)<1,\"\",AVERAGE('2011 Survey responses'!CW166,'2011 Survey responses'!DA166,'2011 Survey responses'!DE166,'2011 Survey responses'!DI166))","v":3.5},{"$f":"IF(('2011 Survey responses'!CX166+'2011 Survey responses'!DB166+'2011 Survey responses'!DF166+'2011 Survey responses'!DJ166)<1,\"\",AVERAGE('2011 Survey responses'!CX166,'2011 Survey responses'!DB166,'2011 Survey responses'!DF166,'2011 Survey responses'!DJ166))","v":3.5},{"$f":"IF(('2011 Survey responses'!CY166+'2011 Survey responses'!DC166+'2011 Survey responses'!DG166+'2011 Survey responses'!DK166)<1,\"\",AVERAGE('2011 Survey responses'!CY166,'2011 Survey responses'!DC166,'2011 Survey responses'!DG166,'2011 Survey responses'!DK166))","v":4},{"$f":"IF(('2011 Survey responses'!CZ166+'2011 Survey responses'!DD166+'2011 Survey responses'!DH166+'2011 Survey responses'!DL166)<1,\"\",AVERAGE('2011 Survey responses'!CZ166,'2011 Survey responses'!DD166,'2011 Survey responses'!DH166,'2011 Survey responses'!DL166))","v":3.75},{"$f":"IF('2011 Survey responses'!CW166<0.5,\"\",'2011 Survey responses'!CW166)","v":3},{"$f":"IF('2011 Survey responses'!CX166<0.5,\"\",'2011 Survey responses'!CX166)","v":3},{"$f":"IF('2011 Survey responses'!CY166<0.5,\"\",'2011 Survey responses'!CY166)","v":5},{"$f":"IF('2011 Survey responses'!CZ166<0.5,\"\",'2011 Survey responses'!CZ166)","v":4},{"$f":"IF('2011 Survey responses'!DA166<0.5,\"\",'2011 Survey responses'!DA166)","v":4},{"$f":"IF('2011 Survey responses'!DB166<0.5,\"\",'2011 Survey responses'!DB166)","v":4},{"$f":"IF('2011 Survey responses'!DC166<0.5,\"\",'2011 Survey responses'!DC166)","v":4},{"$f":"IF('2011 Survey responses'!DD166<0.5,\"\",'2011 Survey responses'!DD166)","v":4},{"$f":"IF('2011 Survey responses'!DE166<0.5,\"\",'2011 Survey responses'!DE166)","v":3},{"$f":"IF('2011 Survey responses'!DF166<0.5,\"\",'2011 Survey responses'!DF166)","v":3},{"$f":"IF('2011 Survey responses'!DG166<0.5,\"\",'2011 Survey responses'!DG166)","v":4},{"$f":"IF('2011 Survey responses'!DH166<0.5,\"\",'2011 Survey responses'!DH166)","v":3},{"$f":"IF('2011 Survey responses'!DI166<0.5,\"\",'2011 Survey responses'!DI166)","v":4},{"$f":"IF('2011 Survey responses'!DJ166<0.5,\"\",'2011 Survey responses'!DJ166)","v":4},{"$f":"IF('2011 Survey responses'!DK166<0.5,\"\",'2011 Survey responses'!DK166)","v":3},{"$f":"IF('2011 Survey responses'!DL166<0.5,\"\",'2011 Survey responses'!DL166)","v":4},{"$f":"IF('2011 Survey responses'!DU166=4,4,IF('2011 Survey responses'!DU166=5,4,\"\"))","v":""},{"$f":"IF('2011 Survey responses'!DV166=4,3,IF('2011 Survey responses'!DV166=5,3,\"\"))","v":3},"",{"$f":"IF(CQ166=2,CQ166,IF(CO166=4,CO166,IF(CP166=3,CP166,IF('2011 Survey responses'!GT166=1,1,\"\"))))","v":3},{"$f":"IF('2011 Survey responses'!DO166<0.5,\"\",'2011 Survey responses'!DO166)","v":5},{"$f":"IF('2011 Survey responses'!DP166<0.5,\"\",'2011 Survey responses'!DP166)","v":5},{"$f":"IF('2011 Survey responses'!DQ166<0.5,\"\",'2011 Survey responses'!DQ166)","v":4},{"$f":"IF('2011 Survey responses'!DR166<0.5,\"\",'2011 Survey responses'!DR166)","v":3},{"$f":"IF('2011 Survey responses'!DS166<0.5,\"\",'2011 Survey responses'!DS166)","v":4},{"$f":"IF('2011 Survey responses'!DT166<0.5,\"\",'2011 Survey responses'!DT166)","v":3},{"$f":"IF('2011 Survey responses'!DU166<0.5,\"\",'2011 Survey responses'!DU166)","v":2},{"$f":"IF('2011 Survey responses'!DV166<0.5,\"\",'2011 Survey responses'!DV166)","v":5},{"$f":"IF('2011 Survey responses'!DW166<0.5,\"\",'2011 Survey responses'!DW166)","v":5},{"$f":"IF('2011 Survey responses'!DX166<0.5,\"\",'2011 Survey responses'!DX166)","v":5},{"$f":"IF('2011 Survey responses'!DY166<0.5,\"\",'2011 Survey responses'!DY166)","v":4},{"$f":"IF('2011 Survey responses'!DZ166<0.5,\"\",'2011 Survey responses'!DZ166)","v":4},{"$f":"IF('2011 Survey responses'!EA166<0.5,\"\",'2011 Survey responses'!EA166)","v":5},{"$f":"IF('2011 Survey responses'!EB166<0.5,\"\",'2011 Survey responses'!EB166)","v":5},{"$f":"IF('2011 Survey responses'!EC166<0.5,\"\",'2011 Survey responses'!EC166)","v":5},{"$f":"IF('2011 Survey responses'!ED166<0.5,\"\",'2011 Survey responses'!ED166)","v":5},{"$f":"IF('2011 Survey responses'!EE166<0.5,\"\",'2011 Survey responses'!EE166)","v":4},{"$f":"IF('2011 Survey responses'!EF166<0.5,\"\",'2011 Survey responses'!EF166)","v":5},{"$f":"IF('2011 Survey responses'!EG166<0.5,\"\",'2011 Survey responses'!EG166)","v":3},{"$f":"IF('2011 Survey responses'!EH166<0.5,\"\",'2011 Survey responses'!EH166)","v":5},{"$f":"IF('2011 Survey responses'!EI166<0.5,\"\",'2011 Survey responses'!EI166)","v":5},{"$f":"IF('2011 Survey responses'!EJ166<0.5,\"\",'2011 Survey responses'!EJ166)","v":5},{"$f":"IF('2011 Survey responses'!EK166<0.5,\"\",'2011 Survey responses'!EK166)","v":4},{"$f":"IF('2011 Survey responses'!EL166<0.5,\"\",'2011 Survey responses'!EL166)","v":4},{"$f":"IF('2011 Survey responses'!EM166<0.5,\"\",'2011 Survey responses'!EM166)","v":5},{"$f":"IF('2011 Survey responses'!EN166<0.5,\"\",'2011 Survey responses'!EN166)","v":5},{"$f":"IF('2011 Survey responses'!EO166<0.5,\"\",'2011 Survey responses'!EO166)","v":5},{"$f":"IF('2011 Survey responses'!EP166<0.5,\"\",'2011 Survey responses'!EP166)","v":5},{"$f":"IF(('2011 Survey responses'!EW166+'2011 Survey responses'!EX166)>=2,AVERAGE('2011 Survey responses'!EW166,'2011 Survey responses'!EY166),\"\")","v":5},{"$f":"IF('2011 Survey responses'!EX166<0.5,\"\",'2011 Survey responses'!EX166)","v":5},{"$f":"IF('2011 Survey responses'!EZ166<0.5,\"\",'2011 Survey responses'!EZ166)","v":5},{"$f":"IF('2011 Survey responses'!FB166<0.5,\"\",'2011 Survey responses'!FB166)","v":4},{"$f":"IF('2011 Survey responses'!FD166<0.5,\"\",'2011 Survey responses'!FD166)","v":4},{"$f":"IF('2011 Survey responses'!FC166<0.5,\"\",'2011 Survey responses'!FC166)","v":4},{"$f":"IF(('2011 Survey responses'!EM166+'2011 Survey responses'!EN166)>=2,AVERAGE('2011 Survey responses'!EM166,'2011 Survey responses'!EN166),\"\")","v":5},{"$f":"IF('2011 Survey responses'!ES166<0.5,\"\",'2011 Survey responses'!ES166)","v":4},{"$f":"IF(('2011 Survey responses'!ET166+'2011 Survey responses'!EU166)>=2,AVERAGE('2011 Survey responses'!ET166,'2011 Survey responses'!EU166),\"\")","v":4},{"$f":"IF('2011 Survey responses'!EV166<0.5,\"\",'2011 Survey responses'!EV166)","v":3},{"$f":"IF('2011 Survey responses'!FA166<0.5,\"\",'2011 Survey responses'!FA166)","v":5},{"$f":"IF('2011 Survey responses'!ER166<0.5,\"\",'2011 Survey responses'!ER166)","v":4},{"$f":"IF(('2011 Survey responses'!EO166+'2011 Survey responses'!EP166)>=2,AVERAGE('2011 Survey responses'!EO166,'2011 Survey responses'!EP166),\"\")","v":5},{"$f":"IF('2011 Survey responses'!EQ166<0.5,\"\",'2011 Survey responses'!EQ166)","v":3},{"$f":"IF('2011 Survey responses'!ET166<0.5,\"\",'2011 Survey responses'!ET166)","v":4},{"$f":"IF('2011 Survey responses'!EU166<0.5,\"\",'2011 Survey responses'!EU166)","v":4},{"$f":"IF('2011 Survey responses'!EW166<0.5,\"\",'2011 Survey responses'!EW166)","v":5},{"$f":"IF('2011 Survey responses'!EY166<0.5,\"\",'2011 Survey responses'!EY166)","v":5},{"$f":"IF('2011 Survey responses'!FU166<0.5,\"\",'2011 Survey responses'!FU166)","v":5},{"$f":"IF(('2011 Survey responses'!FL166+'2011 Survey responses'!FM166)>=2,AVERAGE('2011 Survey responses'!FL166,'2011 Survey responses'!FM166),\"\")","v":5},{"$f":"IF(('2011 Survey responses'!FO166+'2011 Survey responses'!FQ166)>=2,AVERAGE('2011 Survey responses'!FO166,'2011 Survey responses'!FQ166),\"\")","v":5},{"$f":"IF('2011 Survey responses'!FJ166<0.5,\"\",'2011 Survey responses'!FJ166)","v":4},{"$f":"IF('2011 Survey responses'!FT166<0.5,\"\",'2011 Survey responses'!FT166)","v":5},{"$f":"IF('2011 Survey responses'!FR166<0.5,\"\",'2011 Survey responses'!FR166)","v":5},{"$f":"IF('2011 Survey responses'!FK166<0.5,\"\",'2011 Survey responses'!FK166)","v":4},{"$f":"IF('2011 Survey responses'!FP166<0.5,\"\",'2011 Survey responses'!FP166)","v":5},{"$f":"IF('2011 Survey responses'!FN166<0.5,\"\",'2011 Survey responses'!FN166)","v":3},{"$f":"IF(('2011 Survey responses'!FE166+'2011 Survey responses'!FF166)>=2,AVERAGE('2011 Survey responses'!FE166,'2011 Survey responses'!FF166),\"\")","v":5},{"$f":"IF('2011 Survey responses'!FS166<0.5,\"\",'2011 Survey responses'!FS166)","v":5},{"$f":"IF('2011 Survey responses'!FV166<0.5,\"\",'2011 Survey responses'!FV166)","v":4},{"$f":"IF(('2011 Survey responses'!FG166+'2011 Survey responses'!FH166)>=2,AVERAGE('2011 Survey responses'!FG166,'2011 Survey responses'!FH166),\"\")","v":5},{"$f":"IF('2011 Survey responses'!FI166<0.5,\"\",'2011 Survey responses'!FI166)","v":3},{"$f":"IF('2011 Survey responses'!FE166<0.5,\"\",'2011 Survey responses'!FE166)","v":5},{"$f":"IF('2011 Survey responses'!FF166<0.5,\"\",'2011 Survey responses'!FF166)","v":5},{"$f":"IF('2011 Survey responses'!FG166<0.5,\"\",'2011 Survey responses'!FG166)","v":5},{"$f":"IF('2011 Survey responses'!FH166<0.5,\"\",'2011 Survey responses'!FH166)","v":5},{"$f":"IF('2011 Survey responses'!FL166<0.5,\"\",'2011 Survey responses'!FL166)","v":5},{"$f":"IF('2011 Survey responses'!FM166<0.5,\"\",'2011 Survey responses'!FM166)","v":5},{"$f":"IF('2011 Survey responses'!FO166<0.5,\"\",'2011 Survey responses'!FO166)","v":5},{"$f":"IF('2011 Survey responses'!FQ166<0.5,\"\",'2011 Survey responses'!FQ166)","v":5}]
["Sweden",{"$f":"IF(SUM(F167)<1,\"\",AVERAGEIF('2011 Survey responses'!B167:CP167,\">1\"))","v":5.7468354430379751},{"$f":"IF(SUM(F167)<1,\"\",AVERAGEIF('2011 Survey responses'!B167:AO167,\">1\"))","v":5.628571428571429},{"$f":"IF(SUM(F167)<1,\"\",AVERAGEIF('2011 Survey responses'!B167:BV167,\">1\"))","v":5.7538461538461538},{"$f":"IF(SUM(F167)<1,\"\",AVERAGEIF('2011 Survey responses'!V167:BV167,\">1\"))","v":5.9387755102040813},{"$f":"IF(SUM('2011 Survey responses'!B167:U167)<1,\"\",(AVERAGEIFS('2011 Survey responses'!B167:U167,'2011 Survey responses'!B167:U167,\">1\")))","v":5.1875},{"$f":"IF(SUM('2011 Survey responses'!B167:H167)<1,\"\",(AVERAGEIFS('2011 Survey responses'!B167:H167,'2011 Survey responses'!B167:H167,\">1\")))","v":5.666666666666667},{"$f":"IF(SUM('2011 Survey responses'!I167:S167)<1,\"\",(AVERAGEIFS('2011 Survey responses'!I167:S167,'2011 Survey responses'!I167:S167,\">1\")))","v":5.125},{"$f":"IF(SUM('2011 Survey responses'!T167:U167)<2.1,\"\",(AVERAGEIFS('2011 Survey responses'!T167:U167,'2011 Survey responses'!T167:U167,\">1\")))","v":4},{"$f":"IF(SUM('2011 Survey responses'!B167:C167)<2.1,\"\",((SUMIF('2011 Survey responses'!B167:C167,\">1\")+SUMIF('2011 Survey responses'!F167,\">1\"))/(COUNTIF('2011 Survey responses'!B167:C167,\">1\")+COUNTIF('2011 Survey responses'!F167,\">1\"))))","v":6},{"$f":"IF(SUM('2011 Survey responses'!D167:E167)<2.1,\"\",(AVERAGEIFS('2011 Survey responses'!D167:E167,'2011 Survey responses'!D167:E167,\">1\")))","v":6},{"$f":"IF(('2011 Survey responses'!B167+'2011 Survey responses'!D167)<2.1,\"\",((SUMIF('2011 Survey responses'!B167,\">1\")+SUMIF('2011 Survey responses'!D167,\">1\")+SUMIF('2011 Survey responses'!F167,\">1\")+SUMIF('2011 Survey responses'!K167,\">1\"))/(COUNTIF('2011 Survey responses'!B167,\">1\")+COUNTIF('2011 Survey responses'!D167,\">1\")+COUNTIF('2011 Survey responses'!F167,\">1\")+COUNTIF('2011 Survey responses'!K167,\">1\"))))","v":6},{"$f":"IF(SUM('2011 Survey responses'!G167:H167)<2.1,\"\",(AVERAGEIFS('2011 Survey responses'!G167:H167,'2011 Survey responses'!G167:H167,\">1\")))","v":5},{"$f":"IF(SUM('2011 Survey responses'!F167:G167)<1.5,\"\",MAX('2011 Survey responses'!F167,'2011 Survey responses'!G167))","v":6},{"$f":"IF(SUM('2011 Survey responses'!G167:H167)<1,\"\",MAX('2011 Survey responses'!G167,'2011 Survey responses'!H167))","v":6},{"$f":"IF(SUM('2011 Survey responses'!I167:L167)<4.1,\"\",(AVERAGEIFS('2011 Survey responses'!I167:L167,'2011 Survey responses'!I167:L167,\">1\")))","v":6},{"$f":"IF(SUM('2011 Survey responses'!M167:S167)<4.1,\"\",(AVERAGEIFS('2011 Survey responses'!M167:S167,'2011 Survey responses'!M167:S167,\">1\")))","v":4.5999999999999996},{"$f":"IF(SUM('2011 Survey responses'!T167:U167)<2.1,\"\",(AVERAGEIFS('2011 Survey responses'!T167:U167,'2011 Survey responses'!T167:U167,\">1\")))","v":4},{"$f":"IF(SUM('2011 Survey responses'!V167:AO167)<1,\"\",(AVERAGEIFS('2011 Survey responses'!V167:AO167,'2011 Survey responses'!V167:AO167,\">1\")))","v":6},{"$f":"IF(SUM('2011 Survey responses'!V167:AA167)<1,\"\",(AVERAGEIFS('2011 Survey responses'!V167:AA167,'2011 Survey responses'!V167:AA167,\">1\")))","v":6},{"$f":"IF(SUM('2011 Survey responses'!AB167:AH167)<1,\"\",(AVERAGEIFS('2011 Survey responses'!AB167:AH167,'2011 Survey responses'!AB167:AH167,\">1\")))","v":6},{"$f":"IF(SUM('2011 Survey responses'!AI167:AO167)<1,\"\",(AVERAGEIFS('2011 Survey responses'!AI167:AO167,'2011 Survey responses'!AI167:AO167,\">1\")))","v":6},{"$f":"IF(('2011 Survey responses'!Y167+'2011 Survey responses'!AI167+'2011 Survey responses'!AK167)<3.1,\"\",((SUMIF('2011 Survey responses'!Y167,\">1\")+SUMIF('2011 Survey responses'!AI167,\">1\")+SUMIF('2011 Survey responses'!AK167,\">1\")+SUMIF('2011 Survey responses'!AM167,\">1\"))/(COUNTIF('2011 Survey responses'!Y167,\">1\")+COUNTIF('2011 Survey responses'!AI167,\">1\")+COUNTIF('2011 Survey responses'!AK167,\">1\")+COUNTIF('2011 Survey responses'!AM167,\">1\"))))","v":6},{"$f":"IF(('2011 Survey responses'!W167)<1.1,\"\",('2011 Survey responses'!W167))","v":6},{"$f":"IF(('2011 Survey responses'!Y167)<1.1,\"\",('2011 Survey responses'!Y167))","v":6},{"$f":"IF(('2011 Survey responses'!Z167)<1.1,\"\",('2011 Survey responses'!Z167))","v":6},{"$f":"IF(('2011 Survey responses'!V167+'2011 Survey responses'!X167+'2011 Survey responses'!AA167)<3.1,\"\",((SUMIF('2011 Survey responses'!V167,\">1\")+SUMIF('2011 Survey responses'!X167,\">1\")+SUMIF('2011 Survey responses'!AA167,\">1\"))/(COUNTIF('2011 Survey responses'!V167,\">1\")+COUNTIF('2011 Survey responses'!X167,\">1\")+COUNTIF('2011 Survey responses'!AA167,\">1\"))))","v":6},{"$f":"IF(('2011 Survey responses'!V167+'2011 Survey responses'!Y167+'2011 Survey responses'!AA167)<3.1,\"\",((SUMIF('2011 Survey responses'!V167,\">1\")+SUMIF('2011 Survey responses'!Y167,\">1\")+SUMIF('2011 Survey responses'!AA167,\">1\"))/(COUNTIF('2011 Survey responses'!V167,\">1\")+COUNTIF('2011 Survey responses'!Y167,\">1\")+COUNTIF('2011 Survey responses'!AA167,\">1\"))))","v":6},{"$f":"IF(SUM('2011 Survey responses'!AB167:AH167)<1,\"\",(AVERAGEIFS('2011 Survey responses'!AB167:AH167,'2011 Survey responses'!AB167:AH167,\">1\")))","v":6},{"$f":"IF(SUM('2011 Survey responses'!AI167:AO167)<7.1,\"\",(AVERAGEIFS('2011 Survey responses'!AI167:AO167,'2011 Survey responses'!AI167:AO167,\">1\")))","v":6},{"$f":"IF(('2011 Survey responses'!AH167)<1.1,\"\",('2011 Survey responses'!AH167))","v":""},{"$f":"IF(SUM('2011 Survey responses'!AP167:BV167)<1,\"\",(AVERAGEIFS('2011 Survey responses'!AP167:BV167,'2011 Survey responses'!AP167:BV167,\">1\")))","v":5.9},{"$f":"IF(SUM('2011 Survey responses'!AP167:AS167)<4.1,\"\",(AVERAGEIFS('2011 Survey responses'!AP167:AS167,'2011 Survey responses'!AP167:AS167,\">1\")))","v":6},{"$f":"IF(SUM('2011 Survey responses'!AT167:BF167)<1,\"\",(AVERAGEIFS('2011 Survey responses'!AT167:BF167,'2011 Survey responses'!AT167:BF167,\">1\")))","v":5.75},{"$f":"IF(SUM('2011 Survey responses'!BG167:BO167)<1,\"\",(AVERAGEIFS('2011 Survey responses'!BG167:BO167,'2011 Survey responses'!BG167:BO167,\">1\")))","v":6},{"$f":"IF(SUM('2011 Survey responses'!BP167:BS167)<1,\"\",(AVERAGEIFS('2011 Survey responses'!BP167:BS167,'2011 Survey responses'!BP167:BS167,\">1\")))","v":6},{"$f":"IF(SUM('2011 Survey responses'!BT167:BV167)<3.1,\"\",(AVERAGEIFS('2011 Survey responses'!BT167:BV167,'2011 Survey responses'!BT167:BV167,\">1\")))","v":6},{"$f":"IF(('2011 Survey responses'!AQ167+'2011 Survey responses'!AR167+'2011 Survey responses'!BG167)<3.1,\"\",((SUMIF('2011 Survey responses'!AQ167,\">1\")+SUMIF('2011 Survey responses'!AR167,\">1\")+SUMIF('2011 Survey responses'!BG167,\">1\"))/(COUNTIF('2011 Survey responses'!AQ167,\">1\")+COUNTIF('2011 Survey responses'!AR167,\">1\")+COUNTIF('2011 Survey responses'!BG167,\">1\"))))","v":6},{"$f":"IF(SUM('2011 Survey responses'!AP167:AS167)<4.1,\"\",(AVERAGEIFS('2011 Survey responses'!AP167:AS167,'2011 Survey responses'!AP167:AS167,\">1\")))","v":6},{"$f":"IF(('2011 Survey responses'!AU167+'2011 Survey responses'!AX167+'2011 Survey responses'!BA167+'2011 Survey responses'!BC167+'2011 Survey responses'!BD167)<5.1,\"\",(SUMIF('2011 Survey responses'!AU167,\">1\")+SUMIF('2011 Survey responses'!AX167,\">1\")+SUMIF('2011 Survey responses'!BA167,\">1\")+SUMIF('2011 Survey responses'!BC167,\">1\")+SUMIF('2011 Survey responses'!BD167,\">1\"))/(COUNTIF('2011 Survey responses'!AU167,\">1\")+COUNTIF('2011 Survey responses'!AX167,\">1\")+COUNTIF('2011 Survey responses'!BA167,\">1\")+COUNTIF('2011 Survey responses'!BC167,\">1\")+COUNTIF('2011 Survey responses'!BD167,\">1\")))","v":6},{"$f":"IF(('2011 Survey responses'!AT167)<1.1,\"\",('2011 Survey responses'!AT167))","v":6},{"$f":"IF(SUM('2011 Survey responses'!AV167:AW167)<2.1,\"\",(AVERAGEIFS('2011 Survey responses'!AV167:AW167,'2011 Survey responses'!AV167:AW167,\">1\")))","v":4.5},{"$f":"IF(('2011 Survey responses'!AW167+'2011 Survey responses'!AY167)<2.1,\"\",(SUMIF('2011 Survey responses'!AW167,\">1\")+SUMIF('2011 Survey responses'!AY167,\">1\"))/(COUNTIF('2011 Survey responses'!AW167,\">1\")+COUNTIF('2011 Survey responses'!AY167,\">1\")))","v":5.5},{"$f":"IF(('2011 Survey responses'!AZ167)<1.1,\"\",('2011 Survey responses'!AZ167))","v":6},6,1,6,1,{"$f":"IF(('2011 Survey responses'!BE167)<1.1,\"\",('2011 Survey responses'!BE167))","v":6},{"$f":"IF(('2011 Survey responses'!AY167+'2011 Survey responses'!BB167+'2011 Survey responses'!BF167)<3.1,\"\",(SUMIF('2011 Survey responses'!AY167,\">1\")+SUMIF('2011 Survey responses'!BB167,\">1\")+SUMIF('2011 Survey responses'!BF167,\">1\"))/(COUNTIF('2011 Survey responses'!AY167,\">1\")+COUNTIF('2011 Survey responses'!BB167,\">1\")+COUNTIF('2011 Survey responses'!BF167,\">1\")))","v":6},6,{"$f":"IF(SUM('2011 Survey responses'!BT167:BV167)<3.1,\"\",(AVERAGEIFS('2011 Survey responses'!BT167:BV167,'2011 Survey responses'!BT167:BV167,\">1\")))","v":6},{"$f":"IF(SUM('2011 Survey responses'!BW167:CP167)<1,\"\",(AVERAGEIFS('2011 Survey responses'!BW167:CP167,'2011 Survey responses'!BW167:CP167,\">1\")))","v":5.7142857142857144},{"$f":"IF(SUM('2011 Survey responses'!BW167:CF167)<1,\"\",(AVERAGEIFS('2011 Survey responses'!BW167:CF167,'2011 Survey responses'!BW167:CF167,\">1\")))","v":5.75},{"$f":"IF(SUM('2011 Survey responses'!CG167:CP167)<1,\"\",(AVERAGEIFS('2011 Survey responses'!CG167:CP167,'2011 Survey responses'!CG167:CP167,\">1\")))","v":5.666666666666667},{"$f":"IF(SUM('2011 Survey responses'!BX167:CF167)<1,\"\",(AVERAGEIFS('2011 Survey responses'!BX167:CF167,'2011 Survey responses'!BX167:CF167,\">1\")))","v":5.7142857142857144},{"$f":"IF(SUM('2011 Survey responses'!CH167:CP167)<1,\"\",(AVERAGEIFS('2011 Survey responses'!CH167:CP167,'2011 Survey responses'!CH167:CP167,\">1\")))","v":5.666666666666667},{"$f":"IF(SUM('2011 Survey responses'!BW167:CP167)<1,\"\",(AVERAGEIFS('2011 Survey responses'!BW167:CP167,'2011 Survey responses'!BW167:CP167,\">1\")))","v":5.7142857142857144},{"$f":"IF(('2011 Survey responses'!BW167+'2011 Survey responses'!CG167)<2.1,\"\",(SUMIF('2011 Survey responses'!BW167,\">1\")+SUMIF('2011 Survey responses'!CG167,\">1\"))/(COUNTIF('2011 Survey responses'!BW167,\">1\")+COUNTIF('2011 Survey responses'!CG167,\">1\")))","v":6},{"$f":"IF(('2011 Survey responses'!BX167+'2011 Survey responses'!CH167)<2.1,\"\",(SUMIF('2011 Survey responses'!BX167,\">1\")+SUMIF('2011 Survey responses'!CH167,\">1\"))/(COUNTIF('2011 Survey responses'!BX167,\">1\")+COUNTIF('2011 Survey responses'!CH167,\">1\")))","v":6},{"$f":"IF(('2011 Survey responses'!BY167+'2011 Survey responses'!CI167)<2.1,\"\",(SUMIF('2011 Survey responses'!BY167,\">1\")+SUMIF('2011 Survey responses'!CI167,\">1\"))/(COUNTIF('2011 Survey responses'!BY167,\">1\")+COUNTIF('2011 Survey responses'!CI167,\">1\")))","v":6},{"$f":"IF('2011 Survey responses'!CQ167<0.5,\"\",'2011 Survey responses'!CQ167)","v":2},{"$f":"IF('2011 Survey responses'!CR167<0.5,\"\",'2011 Survey responses'!CR167)","v":2},{"$f":"IF('2011 Survey responses'!CS167<0.5,\"\",'2011 Survey responses'!CS167)","v":2},{"$f":"IF('2011 Survey responses'!CT167<0.5,\"\",'2011 Survey responses'!CT167)","v":4},{"$f":"IF('2011 Survey responses'!CU167<0.5,\"\",'2011 Survey responses'!CU167)","v":4},{"$f":"IF('2011 Survey responses'!CV167<0.5,\"\",'2011 Survey responses'!CV167)","v":1},{"$f":"IF(SUM('2011 Survey responses'!CW167:DL167)<1,\"\",(AVERAGE('2011 Survey responses'!CW167:DL167)))","v":4},{"$f":"IF(SUM('2011 Survey responses'!CW167:CZ167)<1,\"\",(AVERAGE('2011 Survey responses'!CW167:CZ167)))","v":4},{"$f":"IF(SUM('2011 Survey responses'!DA167:DD167)<1,\"\",(AVERAGE('2011 Survey responses'!DA167:DD167)))","v":4},{"$f":"IF(SUM('2011 Survey responses'!DE167:DH167)<1,\"\",(AVERAGE('2011 Survey responses'!DE167:DH167)))","v":4},{"$f":"IF(SUM('2011 Survey responses'!DI167:DL167)<1,\"\",(AVERAGE('2011 Survey responses'!DI167:DL167)))","v":4},{"$f":"IF(('2011 Survey responses'!CW167+'2011 Survey responses'!DA167+'2011 Survey responses'!DE167+'2011 Survey responses'!DI167)<1,\"\",AVERAGE('2011 Survey responses'!CW167,'2011 Survey responses'!DA167,'2011 Survey responses'!DE167,'2011 Survey responses'!DI167))","v":4},{"$f":"IF(('2011 Survey responses'!CX167+'2011 Survey responses'!DB167+'2011 Survey responses'!DF167+'2011 Survey responses'!DJ167)<1,\"\",AVERAGE('2011 Survey responses'!CX167,'2011 Survey responses'!DB167,'2011 Survey responses'!DF167,'2011 Survey responses'!DJ167))","v":4},{"$f":"IF(('2011 Survey responses'!CY167+'2011 Survey responses'!DC167+'2011 Survey responses'!DG167+'2011 Survey responses'!DK167)<1,\"\",AVERAGE('2011 Survey responses'!CY167,'2011 Survey responses'!DC167,'2011 Survey responses'!DG167,'2011 Survey responses'!DK167))","v":4},{"$f":"IF(('2011 Survey responses'!CZ167+'2011 Survey responses'!DD167+'2011 Survey responses'!DH167+'2011 Survey responses'!DL167)<1,\"\",AVERAGE('2011 Survey responses'!CZ167,'2011 Survey responses'!DD167,'2011 Survey responses'!DH167,'2011 Survey responses'!DL167))","v":4},{"$f":"IF('2011 Survey responses'!CW167<0.5,\"\",'2011 Survey responses'!CW167)","v":4},{"$f":"IF('2011 Survey responses'!CX167<0.5,\"\",'2011 Survey responses'!CX167)","v":4},{"$f":"IF('2011 Survey responses'!CY167<0.5,\"\",'2011 Survey responses'!CY167)","v":4},{"$f":"IF('2011 Survey responses'!CZ167<0.5,\"\",'2011 Survey responses'!CZ167)","v":4},{"$f":"IF('2011 Survey responses'!DA167<0.5,\"\",'2011 Survey responses'!DA167)","v":4},{"$f":"IF('2011 Survey responses'!DB167<0.5,\"\",'2011 Survey responses'!DB167)","v":4},{"$f":"IF('2011 Survey responses'!DC167<0.5,\"\",'2011 Survey responses'!DC167)","v":4},{"$f":"IF('2011 Survey responses'!DD167<0.5,\"\",'2011 Survey responses'!DD167)","v":4},{"$f":"IF('2011 Survey responses'!DE167<0.5,\"\",'2011 Survey responses'!DE167)","v":4},{"$f":"IF('2011 Survey responses'!DF167<0.5,\"\",'2011 Survey responses'!DF167)","v":4},{"$f":"IF('2011 Survey responses'!DG167<0.5,\"\",'2011 Survey responses'!DG167)","v":4},{"$f":"IF('2011 Survey responses'!DH167<0.5,\"\",'2011 Survey responses'!DH167)","v":4},{"$f":"IF('2011 Survey responses'!DI167<0.5,\"\",'2011 Survey responses'!DI167)","v":4},{"$f":"IF('2011 Survey responses'!DJ167<0.5,\"\",'2011 Survey responses'!DJ167)","v":4},{"$f":"IF('2011 Survey responses'!DK167<0.5,\"\",'2011 Survey responses'!DK167)","v":4},{"$f":"IF('2011 Survey responses'!DL167<0.5,\"\",'2011 Survey responses'!DL167)","v":4},{"$f":"IF('2011 Survey responses'!DU167=4,4,IF('2011 Survey responses'!DU167=5,4,\"\"))","v":""},{"$f":"IF('2011 Survey responses'!DV167=4,3,IF('2011 Survey responses'!DV167=5,3,\"\"))","v":""},"",{"$f":"IF(CQ167=2,CQ167,IF(CO167=4,CO167,IF(CP167=3,CP167,IF('2011 Survey responses'!GT167=1,1,\"\"))))","v":1},{"$f":"IF('2011 Survey responses'!DO167<0.5,\"\",'2011 Survey responses'!DO167)","v":5},{"$f":"IF('2011 Survey responses'!DP167<0.5,\"\",'2011 Survey responses'!DP167)","v":2},{"$f":"IF('2011 Survey responses'!DQ167<0.5,\"\",'2011 Survey responses'!DQ167)","v":3},{"$f":"IF('2011 Survey responses'!DR167<0.5,\"\",'2011 Survey responses'!DR167)","v":4},{"$f":"IF('2011 Survey responses'!DS167<0.5,\"\",'2011 Survey responses'!DS167)","v":4},{"$f":"IF('2011 Survey responses'!DT167<0.5,\"\",'2011 Survey responses'!DT167)","v":2},{"$f":"IF('2011 Survey responses'!DU167<0.5,\"\",'2011 Survey responses'!DU167)","v":3},{"$f":"IF('2011 Survey responses'!DV167<0.5,\"\",'2011 Survey responses'!DV167)","v":3},{"$f":"IF('2011 Survey responses'!DW167<0.5,\"\",'2011 Survey responses'!DW167)","v":1},{"$f":"IF('2011 Survey responses'!DX167<0.5,\"\",'2011 Survey responses'!DX167)","v":2},{"$f":"IF('2011 Survey responses'!DY167<0.5,\"\",'2011 Survey responses'!DY167)","v":4},{"$f":"IF('2011 Survey responses'!DZ167<0.5,\"\",'2011 Survey responses'!DZ167)","v":3},{"$f":"IF('2011 Survey responses'!EA167<0.5,\"\",'2011 Survey responses'!EA167)","v":5},{"$f":"IF('2011 Survey responses'!EB167<0.5,\"\",'2011 Survey responses'!EB167)","v":4},{"$f":"IF('2011 Survey responses'!EC167<0.5,\"\",'2011 Survey responses'!EC167)","v":3},{"$f":"IF('2011 Survey responses'!ED167<0.5,\"\",'2011 Survey responses'!ED167)","v":2},{"$f":"IF('2011 Survey responses'!EE167<0.5,\"\",'2011 Survey responses'!EE167)","v":3},{"$f":"IF('2011 Survey responses'!EF167<0.5,\"\",'2011 Survey responses'!EF167)","v":3},{"$f":"IF('2011 Survey responses'!EG167<0.5,\"\",'2011 Survey responses'!EG167)","v":5},{"$f":"IF('2011 Survey responses'!EH167<0.5,\"\",'2011 Survey responses'!EH167)","v":3},{"$f":"IF('2011 Survey responses'!EI167<0.5,\"\",'2011 Survey responses'!EI167)","v":3},{"$f":"IF('2011 Survey responses'!EJ167<0.5,\"\",'2011 Survey responses'!EJ167)","v":4},{"$f":"IF('2011 Survey responses'!EK167<0.5,\"\",'2011 Survey responses'!EK167)","v":5},{"$f":"IF('2011 Survey responses'!EL167<0.5,\"\",'2011 Survey responses'!EL167)","v":5},{"$f":"IF('2011 Survey responses'!EM167<0.5,\"\",'2011 Survey responses'!EM167)","v":4},{"$f":"IF('2011 Survey responses'!EN167<0.5,\"\",'2011 Survey responses'!EN167)","v":4},{"$f":"IF('2011 Survey responses'!EO167<0.5,\"\",'2011 Survey responses'!EO167)","v":1},{"$f":"IF('2011 Survey responses'!EP167<0.5,\"\",'2011 Survey responses'!EP167)","v":1},{"$f":"IF(('2011 Survey responses'!EW167+'2011 Survey responses'!EX167)>=2,AVERAGE('2011 Survey responses'!EW167,'2011 Survey responses'!EY167),\"\")","v":3.5},{"$f":"IF('2011 Survey responses'!EX167<0.5,\"\",'2011 Survey responses'!EX167)","v":4},{"$f":"IF('2011 Survey responses'!EZ167<0.5,\"\",'2011 Survey responses'!EZ167)","v":4},{"$f":"IF('2011 Survey responses'!FB167<0.5,\"\",'2011 Survey responses'!FB167)","v":2},{"$f":"IF('2011 Survey responses'!FD167<0.5,\"\",'2011 Survey responses'!FD167)","v":3},{"$f":"IF('2011 Survey responses'!FC167<0.5,\"\",'2011 Survey responses'!FC167)","v":5},{"$f":"IF(('2011 Survey responses'!EM167+'2011 Survey responses'!EN167)>=2,AVERAGE('2011 Survey responses'!EM167,'2011 Survey responses'!EN167),\"\")","v":4},{"$f":"IF('2011 Survey responses'!ES167<0.5,\"\",'2011 Survey responses'!ES167)","v":5},{"$f":"IF(('2011 Survey responses'!ET167+'2011 Survey responses'!EU167)>=2,AVERAGE('2011 Survey responses'!ET167,'2011 Survey responses'!EU167),\"\")","v":4},{"$f":"IF('2011 Survey responses'!EV167<0.5,\"\",'2011 Survey responses'!EV167)","v":4},{"$f":"IF('2011 Survey responses'!FA167<0.5,\"\",'2011 Survey responses'!FA167)","v":5},{"$f":"IF('2011 Survey responses'!ER167<0.5,\"\",'2011 Survey responses'!ER167)","v":5},{"$f":"IF(('2011 Survey responses'!EO167+'2011 Survey responses'!EP167)>=2,AVERAGE('2011 Survey responses'!EO167,'2011 Survey responses'!EP167),\"\")","v":1},{"$f":"IF('2011 Survey responses'!EQ167<0.5,\"\",'2011 Survey responses'!EQ167)","v":3},{"$f":"IF('2011 Survey responses'!ET167<0.5,\"\",'2011 Survey responses'!ET167)","v":4},{"$f":"IF('2011 Survey responses'!EU167<0.5,\"\",'2011 Survey responses'!EU167)","v":4},{"$f":"IF('2011 Survey responses'!EW167<0.5,\"\",'2011 Survey responses'!EW167)","v":3},{"$f":"IF('2011 Survey responses'!EY167<0.5,\"\",'2011 Survey responses'!EY167)","v":4},{"$f":"IF('2011 Survey responses'!FU167<0.5,\"\",'2011 Survey responses'!FU167)","v":5},{"$f":"IF(('2011 Survey responses'!FL167+'2011 Survey responses'!FM167)>=2,AVERAGE('2011 Survey responses'!FL167,'2011 Survey responses'!FM167),\"\")","v":5},{"$f":"IF(('2011 Survey responses'!FO167+'2011 Survey responses'!FQ167)>=2,AVERAGE('2011 Survey responses'!FO167,'2011 Survey responses'!FQ167),\"\")","v":3.5},{"$f":"IF('2011 Survey responses'!FJ167<0.5,\"\",'2011 Survey responses'!FJ167)","v":5},{"$f":"IF('2011 Survey responses'!FT167<0.5,\"\",'2011 Survey responses'!FT167)","v":3},{"$f":"IF('2011 Survey responses'!FR167<0.5,\"\",'2011 Survey responses'!FR167)","v":4},{"$f":"IF('2011 Survey responses'!FK167<0.5,\"\",'2011 Survey responses'!FK167)","v":5},{"$f":"IF('2011 Survey responses'!FP167<0.5,\"\",'2011 Survey responses'!FP167)","v":4},{"$f":"IF('2011 Survey responses'!FN167<0.5,\"\",'2011 Survey responses'!FN167)","v":5},{"$f":"IF(('2011 Survey responses'!FE167+'2011 Survey responses'!FF167)>=2,AVERAGE('2011 Survey responses'!FE167,'2011 Survey responses'!FF167),\"\")","v":5},{"$f":"IF('2011 Survey responses'!FS167<0.5,\"\",'2011 Survey responses'!FS167)","v":5},{"$f":"IF('2011 Survey responses'!FV167<0.5,\"\",'2011 Survey responses'!FV167)","v":2},{"$f":"IF(('2011 Survey responses'!FG167+'2011 Survey responses'!FH167)>=2,AVERAGE('2011 Survey responses'!FG167,'2011 Survey responses'!FH167),\"\")","v":4},{"$f":"IF('2011 Survey responses'!FI167<0.5,\"\",'2011 Survey responses'!FI167)","v":4},{"$f":"IF('2011 Survey responses'!FE167<0.5,\"\",'2011 Survey responses'!FE167)","v":5},{"$f":"IF('2011 Survey responses'!FF167<0.5,\"\",'2011 Survey responses'!FF167)","v":5},{"$f":"IF('2011 Survey responses'!FG167<0.5,\"\",'2011 Survey responses'!FG167)","v":4},{"$f":"IF('2011 Survey responses'!FH167<0.5,\"\",'2011 Survey responses'!FH167)","v":4},{"$f":"IF('2011 Survey responses'!FL167<0.5,\"\",'2011 Survey responses'!FL167)","v":5},{"$f":"IF('2011 Survey responses'!FM167<0.5,\"\",'2011 Survey responses'!FM167)","v":5},{"$f":"IF('2011 Survey responses'!FO167<0.5,\"\",'2011 Survey responses'!FO167)","v":3},{"$f":"IF('2011 Survey responses'!FQ167<0.5,\"\",'2011 Survey responses'!FQ167)","v":4}]
["Switzerland",{"$f":"IF(SUM(F168)<1,\"\",AVERAGEIF('2011 Survey responses'!B168:CP168,\">1\"))","v":5.1298701298701301},{"$f":"IF(SUM(F168)<1,\"\",AVERAGEIF('2011 Survey responses'!B168:AO168,\">1\"))","v":5.21875},{"$f":"IF(SUM(F168)<1,\"\",AVERAGEIF('2011 Survey responses'!B168:BV168,\">1\"))","v":5.0491803278688527},{"$f":"IF(SUM(F168)<1,\"\",AVERAGEIF('2011 Survey responses'!V168:BV168,\">1\"))","v":5.083333333333333},{"$f":"IF(SUM('2011 Survey responses'!B168:U168)<1,\"\",(AVERAGEIFS('2011 Survey responses'!B168:U168,'2011 Survey responses'!B168:U168,\">1\")))","v":4.9230769230769234},{"$f":"IF(SUM('2011 Survey responses'!B168:H168)<1,\"\",(AVERAGEIFS('2011 Survey responses'!B168:H168,'2011 Survey responses'!B168:H168,\">1\")))","v":6},{"$f":"IF(SUM('2011 Survey responses'!I168:S168)<1,\"\",(AVERAGEIFS('2011 Survey responses'!I168:S168,'2011 Survey responses'!I168:S168,\">1\")))","v":4.1428571428571432},{"$f":"IF(SUM('2011 Survey responses'!T168:U168)<2.1,\"\",(AVERAGEIFS('2011 Survey responses'!T168:U168,'2011 Survey responses'!T168:U168,\">1\")))","v":5.5},{"$f":"IF(SUM('2011 Survey responses'!B168:C168)<2.1,\"\",((SUMIF('2011 Survey responses'!B168:C168,\">1\")+SUMIF('2011 Survey responses'!F168,\">1\"))/(COUNTIF('2011 Survey responses'!B168:C168,\">1\")+COUNTIF('2011 Survey responses'!F168,\">1\"))))","v":6},{"$f":"IF(SUM('2011 Survey responses'!D168:E168)<2.1,\"\",(AVERAGEIFS('2011 Survey responses'!D168:E168,'2011 Survey responses'!D168:E168,\">1\")))","v":6},{"$f":"IF(('2011 Survey responses'!B168+'2011 Survey responses'!D168)<2.1,\"\",((SUMIF('2011 Survey responses'!B168,\">1\")+SUMIF('2011 Survey responses'!D168,\">1\")+SUMIF('2011 Survey responses'!F168,\">1\")+SUMIF('2011 Survey responses'!K168,\">1\"))/(COUNTIF('2011 Survey responses'!B168,\">1\")+COUNTIF('2011 Survey responses'!D168,\">1\")+COUNTIF('2011 Survey responses'!F168,\">1\")+COUNTIF('2011 Survey responses'!K168,\">1\"))))","v":5.666666666666667},{"$f":"IF(SUM('2011 Survey responses'!G168:H168)<2.1,\"\",(AVERAGEIFS('2011 Survey responses'!G168:H168,'2011 Survey responses'!G168:H168,\">1\")))","v":""},{"$f":"IF(SUM('2011 Survey responses'!F168:G168)<1.5,\"\",MAX('2011 Survey responses'!F168,'2011 Survey responses'!G168))","v":""},{"$f":"IF(SUM('2011 Survey responses'!G168:H168)<1,\"\",MAX('2011 Survey responses'!G168,'2011 Survey responses'!H168))","v":1},{"$f":"IF(SUM('2011 Survey responses'!I168:L168)<4.1,\"\",(AVERAGEIFS('2011 Survey responses'!I168:L168,'2011 Survey responses'!I168:L168,\">1\")))","v":4},{"$f":"IF(SUM('2011 Survey responses'!M168:S168)<4.1,\"\",(AVERAGEIFS('2011 Survey responses'!M168:S168,'2011 Survey responses'!M168:S168,\">1\")))","v":4.2},{"$f":"IF(SUM('2011 Survey responses'!T168:U168)<2.1,\"\",(AVERAGEIFS('2011 Survey responses'!T168:U168,'2011 Survey responses'!T168:U168,\">1\")))","v":5.5},{"$f":"IF(SUM('2011 Survey responses'!V168:AO168)<1,\"\",(AVERAGEIFS('2011 Survey responses'!V168:AO168,'2011 Survey responses'!V168:AO168,\">1\")))","v":5.4210526315789478},{"$f":"IF(SUM('2011 Survey responses'!V168:AA168)<1,\"\",(AVERAGEIFS('2011 Survey responses'!V168:AA168,'2011 Survey responses'!V168:AA168,\">1\")))","v":5},{"$f":"IF(SUM('2011 Survey responses'!AB168:AH168)<1,\"\",(AVERAGEIFS('2011 Survey responses'!AB168:AH168,'2011 Survey responses'!AB168:AH168,\">1\")))","v":5.333333333333333},{"$f":"IF(SUM('2011 Survey responses'!AI168:AO168)<1,\"\",(AVERAGEIFS('2011 Survey responses'!AI168:AO168,'2011 Survey responses'!AI168:AO168,\">1\")))","v":5.8571428571428568},{"$f":"IF(('2011 Survey responses'!Y168+'2011 Survey responses'!AI168+'2011 Survey responses'!AK168)<3.1,\"\",((SUMIF('2011 Survey responses'!Y168,\">1\")+SUMIF('2011 Survey responses'!AI168,\">1\")+SUMIF('2011 Survey responses'!AK168,\">1\")+SUMIF('2011 Survey responses'!AM168,\">1\"))/(COUNTIF('2011 Survey responses'!Y168,\">1\")+COUNTIF('2011 Survey responses'!AI168,\">1\")+COUNTIF('2011 Survey responses'!AK168,\">1\")+COUNTIF('2011 Survey responses'!AM168,\">1\"))))","v":5.5},{"$f":"IF(('2011 Survey responses'!W168)<1.1,\"\",('2011 Survey responses'!W168))","v":5},{"$f":"IF(('2011 Survey responses'!Y168)<1.1,\"\",('2011 Survey responses'!Y168))","v":4},{"$f":"IF(('2011 Survey responses'!Z168)<1.1,\"\",('2011 Survey responses'!Z168))","v":6},{"$f":"IF(('2011 Survey responses'!V168+'2011 Survey responses'!X168+'2011 Survey responses'!AA168)<3.1,\"\",((SUMIF('2011 Survey responses'!V168,\">1\")+SUMIF('2011 Survey responses'!X168,\">1\")+SUMIF('2011 Survey responses'!AA168,\">1\"))/(COUNTIF('2011 Survey responses'!V168,\">1\")+COUNTIF('2011 Survey responses'!X168,\">1\")+COUNTIF('2011 Survey responses'!AA168,\">1\"))))","v":5},{"$f":"IF(('2011 Survey responses'!V168+'2011 Survey responses'!Y168+'2011 Survey responses'!AA168)<3.1,\"\",((SUMIF('2011 Survey responses'!V168,\">1\")+SUMIF('2011 Survey responses'!Y168,\">1\")+SUMIF('2011 Survey responses'!AA168,\">1\"))/(COUNTIF('2011 Survey responses'!V168,\">1\")+COUNTIF('2011 Survey responses'!Y168,\">1\")+COUNTIF('2011 Survey responses'!AA168,\">1\"))))","v":4.666666666666667},{"$f":"IF(SUM('2011 Survey responses'!AB168:AH168)<1,\"\",(AVERAGEIFS('2011 Survey responses'!AB168:AH168,'2011 Survey responses'!AB168:AH168,\">1\")))","v":5.333333333333333},{"$f":"IF(SUM('2011 Survey responses'!AI168:AO168)<7.1,\"\",(AVERAGEIFS('2011 Survey responses'!AI168:AO168,'2011 Survey responses'!AI168:AO168,\">1\")))","v":5.8571428571428568},{"$f":"IF(('2011 Survey responses'!AH168)<1.1,\"\",('2011 Survey responses'!AH168))","v":""},{"$f":"IF(SUM('2011 Survey responses'!AP168:BV168)<1,\"\",(AVERAGEIFS('2011 Survey responses'!AP168:BV168,'2011 Survey responses'!AP168:BV168,\">1\")))","v":4.8620689655172411},{"$f":"IF(SUM('2011 Survey responses'!AP168:AS168)<4.1,\"\",(AVERAGEIFS('2011 Survey responses'!AP168:AS168,'2011 Survey responses'!AP168:AS168,\">1\")))","v":4.75},{"$f":"IF(SUM('2011 Survey responses'!AT168:BF168)<1,\"\",(AVERAGEIFS('2011 Survey responses'!AT168:BF168,'2011 Survey responses'!AT168:BF168,\">1\")))","v":4.333333333333333},{"$f":"IF(SUM('2011 Survey responses'!BG168:BO168)<1,\"\",(AVERAGEIFS('2011 Survey responses'!BG168:BO168,'2011 Survey responses'!BG168:BO168,\">1\")))","v":5.75},{"$f":"IF(SUM('2011 Survey responses'!BP168:BS168)<1,\"\",(AVERAGEIFS('2011 Survey responses'!BP168:BS168,'2011 Survey responses'!BP168:BS168,\">1\")))","v":5},{"$f":"IF(SUM('2011 Survey responses'!BT168:BV168)<3.1,\"\",(AVERAGEIFS('2011 Survey responses'!BT168:BV168,'2011 Survey responses'!BT168:BV168,\">1\")))","v":4.5},{"$f":"IF(('2011 Survey responses'!AQ168+'2011 Survey responses'!AR168+'2011 Survey responses'!BG168)<3.1,\"\",((SUMIF('2011 Survey responses'!AQ168,\">1\")+SUMIF('2011 Survey responses'!AR168,\">1\")+SUMIF('2011 Survey responses'!BG168,\">1\"))/(COUNTIF('2011 Survey responses'!AQ168,\">1\")+COUNTIF('2011 Survey responses'!AR168,\">1\")+COUNTIF('2011 Survey responses'!BG168,\">1\"))))","v":5.333333333333333},{"$f":"IF(SUM('2011 Survey responses'!AP168:AS168)<4.1,\"\",(AVERAGEIFS('2011 Survey responses'!AP168:AS168,'2011 Survey responses'!AP168:AS168,\">1\")))","v":4.75},{"$f":"IF(('2011 Survey responses'!AU168+'2011 Survey responses'!AX168+'2011 Survey responses'!BA168+'2011 Survey responses'!BC168+'2011 Survey responses'!BD168)<5.1,\"\",(SUMIF('2011 Survey responses'!AU168,\">1\")+SUMIF('2011 Survey responses'!AX168,\">1\")+SUMIF('2011 Survey responses'!BA168,\">1\")+SUMIF('2011 Survey responses'!BC168,\">1\")+SUMIF('2011 Survey responses'!BD168,\">1\"))/(COUNTIF('2011 Survey responses'!AU168,\">1\")+COUNTIF('2011 Survey responses'!AX168,\">1\")+COUNTIF('2011 Survey responses'!BA168,\">1\")+COUNTIF('2011 Survey responses'!BC168,\">1\")+COUNTIF('2011 Survey responses'!BD168,\">1\")))","v":4.5},{"$f":"IF(('2011 Survey responses'!AT168)<1.1,\"\",('2011 Survey responses'!AT168))","v":5},{"$f":"IF(SUM('2011 Survey responses'!AV168:AW168)<2.1,\"\",(AVERAGEIFS('2011 Survey responses'!AV168:AW168,'2011 Survey responses'!AV168:AW168,\">1\")))","v":3},{"$f":"IF(('2011 Survey responses'!AW168+'2011 Survey responses'!AY168)<2.1,\"\",(SUMIF('2011 Survey responses'!AW168,\">1\")+SUMIF('2011 Survey responses'!AY168,\">1\"))/(COUNTIF('2011 Survey responses'!AW168,\">1\")+COUNTIF('2011 Survey responses'!AY168,\">1\")))","v":3},{"$f":"IF(('2011 Survey responses'!AZ168)<1.1,\"\",('2011 Survey responses'!AZ168))","v":4},4,1,1,1,{"$f":"IF(('2011 Survey responses'!BE168)<1.1,\"\",('2011 Survey responses'!BE168))","v":6},{"$f":"IF(('2011 Survey responses'!AY168+'2011 Survey responses'!BB168+'2011 Survey responses'!BF168)<3.1,\"\",(SUMIF('2011 Survey responses'!AY168,\">1\")+SUMIF('2011 Survey responses'!BB168,\">1\")+SUMIF('2011 Survey responses'!BF168,\">1\"))/(COUNTIF('2011 Survey responses'!AY168,\">1\")+COUNTIF('2011 Survey responses'!BB168,\">1\")+COUNTIF('2011 Survey responses'!BF168,\">1\")))","v":4.333333333333333},5.375,{"$f":"IF(SUM('2011 Survey responses'!BT168:BV168)<3.1,\"\",(AVERAGEIFS('2011 Survey responses'!BT168:BV168,'2011 Survey responses'!BT168:BV168,\">1\")))","v":4.5},{"$f":"IF(SUM('2011 Survey responses'!BW168:CP168)<1,\"\",(AVERAGEIFS('2011 Survey responses'!BW168:CP168,'2011 Survey responses'!BW168:CP168,\">1\")))","v":5.4375},{"$f":"IF(SUM('2011 Survey responses'!BW168:CF168)<1,\"\",(AVERAGEIFS('2011 Survey responses'!BW168:CF168,'2011 Survey responses'!BW168:CF168,\">1\")))","v":5.5},{"$f":"IF(SUM('2011 Survey responses'!CG168:CP168)<1,\"\",(AVERAGEIFS('2011 Survey responses'!CG168:CP168,'2011 Survey responses'!CG168:CP168,\">1\")))","v":5.375},{"$f":"IF(SUM('2011 Survey responses'!BX168:CF168)<1,\"\",(AVERAGEIFS('2011 Survey responses'!BX168:CF168,'2011 Survey responses'!BX168:CF168,\">1\")))","v":5.4285714285714288},{"$f":"IF(SUM('2011 Survey responses'!CH168:CP168)<1,\"\",(AVERAGEIFS('2011 Survey responses'!CH168:CP168,'2011 Survey responses'!CH168:CP168,\">1\")))","v":5.4285714285714288},{"$f":"IF(SUM('2011 Survey responses'!BW168:CP168)<1,\"\",(AVERAGEIFS('2011 Survey responses'!BW168:CP168,'2011 Survey responses'!BW168:CP168,\">1\")))","v":5.4375},{"$f":"IF(('2011 Survey responses'!BW168+'2011 Survey responses'!CG168)<2.1,\"\",(SUMIF('2011 Survey responses'!BW168,\">1\")+SUMIF('2011 Survey responses'!CG168,\">1\"))/(COUNTIF('2011 Survey responses'!BW168,\">1\")+COUNTIF('2011 Survey responses'!CG168,\">1\")))","v":5.5},{"$f":"IF(('2011 Survey responses'!BX168+'2011 Survey responses'!CH168)<2.1,\"\",(SUMIF('2011 Survey responses'!BX168,\">1\")+SUMIF('2011 Survey responses'!CH168,\">1\"))/(COUNTIF('2011 Survey responses'!BX168,\">1\")+COUNTIF('2011 Survey responses'!CH168,\">1\")))","v":4},{"$f":"IF(('2011 Survey responses'!BY168+'2011 Survey responses'!CI168)<2.1,\"\",(SUMIF('2011 Survey responses'!BY168,\">1\")+SUMIF('2011 Survey responses'!CI168,\">1\"))/(COUNTIF('2011 Survey responses'!BY168,\">1\")+COUNTIF('2011 Survey responses'!CI168,\">1\")))","v":5},{"$f":"IF('2011 Survey responses'!CQ168<0.5,\"\",'2011 Survey responses'!CQ168)","v":5},{"$f":"IF('2011 Survey responses'!CR168<0.5,\"\",'2011 Survey responses'!CR168)","v":2},{"$f":"IF('2011 Survey responses'!CS168<0.5,\"\",'2011 Survey responses'!CS168)","v":2},{"$f":"IF('2011 Survey responses'!CT168<0.5,\"\",'2011 Survey responses'!CT168)","v":5},{"$f":"IF('2011 Survey responses'!CU168<0.5,\"\",'2011 Survey responses'!CU168)","v":5},{"$f":"IF('2011 Survey responses'!CV168<0.5,\"\",'2011 Survey responses'!CV168)","v":5},{"$f":"IF(SUM('2011 Survey responses'!CW168:DL168)<1,\"\",(AVERAGE('2011 Survey responses'!CW168:DL168)))","v":""},{"$f":"IF(SUM('2011 Survey responses'!CW168:CZ168)<1,\"\",(AVERAGE('2011 Survey responses'!CW168:CZ168)))","v":""},{"$f":"IF(SUM('2011 Survey responses'!DA168:DD168)<1,\"\",(AVERAGE('2011 Survey responses'!DA168:DD168)))","v":""},{"$f":"IF(SUM('2011 Survey responses'!DE168:DH168)<1,\"\",(AVERAGE('2011 Survey responses'!DE168:DH168)))","v":""},{"$f":"IF(SUM('2011 Survey responses'!DI168:DL168)<1,\"\",(AVERAGE('2011 Survey responses'!DI168:DL168)))","v":""},{"$f":"IF(('2011 Survey responses'!CW168+'2011 Survey responses'!DA168+'2011 Survey responses'!DE168+'2011 Survey responses'!DI168)<1,\"\",AVERAGE('2011 Survey responses'!CW168,'2011 Survey responses'!DA168,'2011 Survey responses'!DE168,'2011 Survey responses'!DI168))","v":""},{"$f":"IF(('2011 Survey responses'!CX168+'2011 Survey responses'!DB168+'2011 Survey responses'!DF168+'2011 Survey responses'!DJ168)<1,\"\",AVERAGE('2011 Survey responses'!CX168,'2011 Survey responses'!DB168,'2011 Survey responses'!DF168,'2011 Survey responses'!DJ168))","v":""},{"$f":"IF(('2011 Survey responses'!CY168+'2011 Survey responses'!DC168+'2011 Survey responses'!DG168+'2011 Survey responses'!DK168)<1,\"\",AVERAGE('2011 Survey responses'!CY168,'2011 Survey responses'!DC168,'2011 Survey responses'!DG168,'2011 Survey responses'!DK168))","v":""},{"$f":"IF(('2011 Survey responses'!CZ168+'2011 Survey responses'!DD168+'2011 Survey responses'!DH168+'2011 Survey responses'!DL168)<1,\"\",AVERAGE('2011 Survey responses'!CZ168,'2011 Survey responses'!DD168,'2011 Survey responses'!DH168,'2011 Survey responses'!DL168))","v":""},{"$f":"IF('2011 Survey responses'!CW168<0.5,\"\",'2011 Survey responses'!CW168)","v":""},{"$f":"IF('2011 Survey responses'!CX168<0.5,\"\",'2011 Survey responses'!CX168)","v":""},{"$f":"IF('2011 Survey responses'!CY168<0.5,\"\",'2011 Survey responses'!CY168)","v":""},{"$f":"IF('2011 Survey responses'!CZ168<0.5,\"\",'2011 Survey responses'!CZ168)","v":""},{"$f":"IF('2011 Survey responses'!DA168<0.5,\"\",'2011 Survey responses'!DA168)","v":""},{"$f":"IF('2011 Survey responses'!DB168<0.5,\"\",'2011 Survey responses'!DB168)","v":""},{"$f":"IF('2011 Survey responses'!DC168<0.5,\"\",'2011 Survey responses'!DC168)","v":""},{"$f":"IF('2011 Survey responses'!DD168<0.5,\"\",'2011 Survey responses'!DD168)","v":""},{"$f":"IF('2011 Survey responses'!DE168<0.5,\"\",'2011 Survey responses'!DE168)","v":""},{"$f":"IF('2011 Survey responses'!DF168<0.5,\"\",'2011 Survey responses'!DF168)","v":""},{"$f":"IF('2011 Survey responses'!DG168<0.5,\"\",'2011 Survey responses'!DG168)","v":""},{"$f":"IF('2011 Survey responses'!DH168<0.5,\"\",'2011 Survey responses'!DH168)","v":""},{"$f":"IF('2011 Survey responses'!DI168<0.5,\"\",'2011 Survey responses'!DI168)","v":""},{"$f":"IF('2011 Survey responses'!DJ168<0.5,\"\",'2011 Survey responses'!DJ168)","v":""},{"$f":"IF('2011 Survey responses'!DK168<0.5,\"\",'2011 Survey responses'!DK168)","v":""},{"$f":"IF('2011 Survey responses'!DL168<0.5,\"\",'2011 Survey responses'!DL168)","v":""},{"$f":"IF('2011 Survey responses'!DU168=4,4,IF('2011 Survey responses'!DU168=5,4,\"\"))","v":4},{"$f":"IF('2011 Survey responses'!DV168=4,3,IF('2011 Survey responses'!DV168=5,3,\"\"))","v":""},"",{"$f":"IF(CQ168=2,CQ168,IF(CO168=4,CO168,IF(CP168=3,CP168,IF('2011 Survey responses'!GT168=1,1,\"\"))))","v":4},{"$f":"IF('2011 Survey responses'!DO168<0.5,\"\",'2011 Survey responses'!DO168)","v":3},{"$f":"IF('2011 Survey responses'!DP168<0.5,\"\",'2011 Survey responses'!DP168)","v":3},{"$f":"IF('2011 Survey responses'!DQ168<0.5,\"\",'2011 Survey responses'!DQ168)","v":3},{"$f":"IF('2011 Survey responses'!DR168<0.5,\"\",'2011 Survey responses'!DR168)","v":3},{"$f":"IF('2011 Survey responses'!DS168<0.5,\"\",'2011 Survey responses'!DS168)","v":3},{"$f":"IF('2011 Survey responses'!DT168<0.5,\"\",'2011 Survey responses'!DT168)","v":3},{"$f":"IF('2011 Survey responses'!DU168<0.5,\"\",'2011 Survey responses'!DU168)","v":4},{"$f":"IF('2011 Survey responses'!DV168<0.5,\"\",'2011 Survey responses'!DV168)","v":2},{"$f":"IF('2011 Survey responses'!DW168<0.5,\"\",'2011 Survey responses'!DW168)","v":2},{"$f":"IF('2011 Survey responses'!DX168<0.5,\"\",'2011 Survey responses'!DX168)","v":2},{"$f":"IF('2011 Survey responses'!DY168<0.5,\"\",'2011 Survey responses'!DY168)","v":3},{"$f":"IF('2011 Survey responses'!DZ168<0.5,\"\",'2011 Survey responses'!DZ168)","v":3},{"$f":"IF('2011 Survey responses'!EA168<0.5,\"\",'2011 Survey responses'!EA168)","v":4},{"$f":"IF('2011 Survey responses'!EB168<0.5,\"\",'2011 Survey responses'!EB168)","v":3},{"$f":"IF('2011 Survey responses'!EC168<0.5,\"\",'2011 Survey responses'!EC168)","v":3},{"$f":"IF('2011 Survey responses'!ED168<0.5,\"\",'2011 Survey responses'!ED168)","v":4},{"$f":"IF('2011 Survey responses'!EE168<0.5,\"\",'2011 Survey responses'!EE168)","v":4},{"$f":"IF('2011 Survey responses'!EF168<0.5,\"\",'2011 Survey responses'!EF168)","v":3},{"$f":"IF('2011 Survey responses'!EG168<0.5,\"\",'2011 Survey responses'!EG168)","v":5},{"$f":"IF('2011 Survey responses'!EH168<0.5,\"\",'2011 Survey responses'!EH168)","v":3},{"$f":"IF('2011 Survey responses'!EI168<0.5,\"\",'2011 Survey responses'!EI168)","v":3},{"$f":"IF('2011 Survey responses'!EJ168<0.5,\"\",'2011 Survey responses'!EJ168)","v":3},{"$f":"IF('2011 Survey responses'!EK168<0.5,\"\",'2011 Survey responses'!EK168)","v":4},{"$f":"IF('2011 Survey responses'!EL168<0.5,\"\",'2011 Survey responses'!EL168)","v":4},{"$f":"IF('2011 Survey responses'!EM168<0.5,\"\",'2011 Survey responses'!EM168)","v":1},{"$f":"IF('2011 Survey responses'!EN168<0.5,\"\",'2011 Survey responses'!EN168)","v":1},{"$f":"IF('2011 Survey responses'!EO168<0.5,\"\",'2011 Survey responses'!EO168)","v":1},{"$f":"IF('2011 Survey responses'!EP168<0.5,\"\",'2011 Survey responses'!EP168)","v":1},{"$f":"IF(('2011 Survey responses'!EW168+'2011 Survey responses'!EX168)>=2,AVERAGE('2011 Survey responses'!EW168,'2011 Survey responses'!EY168),\"\")","v":3},{"$f":"IF('2011 Survey responses'!EX168<0.5,\"\",'2011 Survey responses'!EX168)","v":2},{"$f":"IF('2011 Survey responses'!EZ168<0.5,\"\",'2011 Survey responses'!EZ168)","v":3},{"$f":"IF('2011 Survey responses'!FB168<0.5,\"\",'2011 Survey responses'!FB168)","v":4},{"$f":"IF('2011 Survey responses'!FD168<0.5,\"\",'2011 Survey responses'!FD168)","v":1},{"$f":"IF('2011 Survey responses'!FC168<0.5,\"\",'2011 Survey responses'!FC168)","v":3},{"$f":"IF(('2011 Survey responses'!EM168+'2011 Survey responses'!EN168)>=2,AVERAGE('2011 Survey responses'!EM168,'2011 Survey responses'!EN168),\"\")","v":1},{"$f":"IF('2011 Survey responses'!ES168<0.5,\"\",'2011 Survey responses'!ES168)","v":3},{"$f":"IF(('2011 Survey responses'!ET168+'2011 Survey responses'!EU168)>=2,AVERAGE('2011 Survey responses'!ET168,'2011 Survey responses'!EU168),\"\")","v":2.5},{"$f":"IF('2011 Survey responses'!EV168<0.5,\"\",'2011 Survey responses'!EV168)","v":3},{"$f":"IF('2011 Survey responses'!FA168<0.5,\"\",'2011 Survey responses'!FA168)","v":3},{"$f":"IF('2011 Survey responses'!ER168<0.5,\"\",'2011 Survey responses'!ER168)","v":1},{"$f":"IF(('2011 Survey responses'!EO168+'2011 Survey responses'!EP168)>=2,AVERAGE('2011 Survey responses'!EO168,'2011 Survey responses'!EP168),\"\")","v":1},{"$f":"IF('2011 Survey responses'!EQ168<0.5,\"\",'2011 Survey responses'!EQ168)","v":1},{"$f":"IF('2011 Survey responses'!ET168<0.5,\"\",'2011 Survey responses'!ET168)","v":2},{"$f":"IF('2011 Survey responses'!EU168<0.5,\"\",'2011 Survey responses'!EU168)","v":3},{"$f":"IF('2011 Survey responses'!EW168<0.5,\"\",'2011 Survey responses'!EW168)","v":3},{"$f":"IF('2011 Survey responses'!EY168<0.5,\"\",'2011 Survey responses'!EY168)","v":3},{"$f":"IF('2011 Survey responses'!FU168<0.5,\"\",'2011 Survey responses'!FU168)","v":5},{"$f":"IF(('2011 Survey responses'!FL168+'2011 Survey responses'!FM168)>=2,AVERAGE('2011 Survey responses'!FL168,'2011 Survey responses'!FM168),\"\")","v":4},{"$f":"IF(('2011 Survey responses'!FO168+'2011 Survey responses'!FQ168)>=2,AVERAGE('2011 Survey responses'!FO168,'2011 Survey responses'!FQ168),\"\")","v":4},{"$f":"IF('2011 Survey responses'!FJ168<0.5,\"\",'2011 Survey responses'!FJ168)","v":3},{"$f":"IF('2011 Survey responses'!FT168<0.5,\"\",'2011 Survey responses'!FT168)","v":5},{"$f":"IF('2011 Survey responses'!FR168<0.5,\"\",'2011 Survey responses'!FR168)","v":4},{"$f":"IF('2011 Survey responses'!FK168<0.5,\"\",'2011 Survey responses'!FK168)","v":3},{"$f":"IF('2011 Survey responses'!FP168<0.5,\"\",'2011 Survey responses'!FP168)","v":3},{"$f":"IF('2011 Survey responses'!FN168<0.5,\"\",'2011 Survey responses'!FN168)","v":4},{"$f":"IF(('2011 Survey responses'!FE168+'2011 Survey responses'!FF168)>=2,AVERAGE('2011 Survey responses'!FE168,'2011 Survey responses'!FF168),\"\")","v":3},{"$f":"IF('2011 Survey responses'!FS168<0.5,\"\",'2011 Survey responses'!FS168)","v":3},{"$f":"IF('2011 Survey responses'!FV168<0.5,\"\",'2011 Survey responses'!FV168)","v":3},{"$f":"IF(('2011 Survey responses'!FG168+'2011 Survey responses'!FH168)>=2,AVERAGE('2011 Survey responses'!FG168,'2011 Survey responses'!FH168),\"\")","v":3},{"$f":"IF('2011 Survey responses'!FI168<0.5,\"\",'2011 Survey responses'!FI168)","v":3},{"$f":"IF('2011 Survey responses'!FE168<0.5,\"\",'2011 Survey responses'!FE168)","v":3},{"$f":"IF('2011 Survey responses'!FF168<0.5,\"\",'2011 Survey responses'!FF168)","v":3},{"$f":"IF('2011 Survey responses'!FG168<0.5,\"\",'2011 Survey responses'!FG168)","v":3},{"$f":"IF('2011 Survey responses'!FH168<0.5,\"\",'2011 Survey responses'!FH168)","v":3},{"$f":"IF('2011 Survey responses'!FL168<0.5,\"\",'2011 Survey responses'!FL168)","v":4},{"$f":"IF('2011 Survey responses'!FM168<0.5,\"\",'2011 Survey responses'!FM168)","v":4},{"$f":"IF('2011 Survey responses'!FO168<0.5,\"\",'2011 Survey responses'!FO168)","v":4},{"$f":"IF('2011 Survey responses'!FQ168<0.5,\"\",'2011 Survey responses'!FQ168)","v":4}]
["Syrian Arab Republic",{"$f":"IF(SUM(F169)<1,\"\",AVERAGEIF('2011 Survey responses'!B169:CP169,\">1\"))","v":""},{"$f":"IF(SUM(F169)<1,\"\",AVERAGEIF('2011 Survey responses'!B169:AO169,\">1\"))","v":""},{"$f":"IF(SUM(F169)<1,\"\",AVERAGEIF('2011 Survey responses'!B169:BV169,\">1\"))","v":""},{"$f":"IF(SUM(F169)<1,\"\",AVERAGEIF('2011 Survey responses'!V169:BV169,\">1\"))","v":""},{"$f":"IF(SUM('2011 Survey responses'!B169:U169)<1,\"\",(AVERAGEIFS('2011 Survey responses'!B169:U169,'2011 Survey responses'!B169:U169,\">1\")))","v":""},{"$f":"IF(SUM('2011 Survey responses'!B169:H169)<1,\"\",(AVERAGEIFS('2011 Survey responses'!B169:H169,'2011 Survey responses'!B169:H169,\">1\")))","v":""},{"$f":"IF(SUM('2011 Survey responses'!I169:S169)<1,\"\",(AVERAGEIFS('2011 Survey responses'!I169:S169,'2011 Survey responses'!I169:S169,\">1\")))","v":""},{"$f":"IF(SUM('2011 Survey responses'!T169:U169)<2.1,\"\",(AVERAGEIFS('2011 Survey responses'!T169:U169,'2011 Survey responses'!T169:U169,\">1\")))","v":""},{"$f":"IF(SUM('2011 Survey responses'!B169:C169)<2.1,\"\",((SUMIF('2011 Survey responses'!B169:C169,\">1\")+SUMIF('2011 Survey responses'!F169,\">1\"))/(COUNTIF('2011 Survey responses'!B169:C169,\">1\")+COUNTIF('2011 Survey responses'!F169,\">1\"))))","v":""},{"$f":"IF(SUM('2011 Survey responses'!D169:E169)<2.1,\"\",(AVERAGEIFS('2011 Survey responses'!D169:E169,'2011 Survey responses'!D169:E169,\">1\")))","v":""},{"$f":"IF(('2011 Survey responses'!B169+'2011 Survey responses'!D169)<2.1,\"\",((SUMIF('2011 Survey responses'!B169,\">1\")+SUMIF('2011 Survey responses'!D169,\">1\")+SUMIF('2011 Survey responses'!F169,\">1\")+SUMIF('2011 Survey responses'!K169,\">1\"))/(COUNTIF('2011 Survey responses'!B169,\">1\")+COUNTIF('2011 Survey responses'!D169,\">1\")+COUNTIF('2011 Survey responses'!F169,\">1\")+COUNTIF('2011 Survey responses'!K169,\">1\"))))","v":""},{"$f":"IF(SUM('2011 Survey responses'!G169:H169)<2.1,\"\",(AVERAGEIFS('2011 Survey responses'!G169:H169,'2011 Survey responses'!G169:H169,\">1\")))","v":""},{"$f":"IF(SUM('2011 Survey responses'!F169:G169)<1.5,\"\",MAX('2011 Survey responses'!F169,'2011 Survey responses'!G169))","v":""},{"$f":"IF(SUM('2011 Survey responses'!G169:H169)<1,\"\",MAX('2011 Survey responses'!G169,'2011 Survey responses'!H169))","v":""},{"$f":"IF(SUM('2011 Survey responses'!I169:L169)<4.1,\"\",(AVERAGEIFS('2011 Survey responses'!I169:L169,'2011 Survey responses'!I169:L169,\">1\")))","v":""},{"$f":"IF(SUM('2011 Survey responses'!M169:S169)<4.1,\"\",(AVERAGEIFS('2011 Survey responses'!M169:S169,'2011 Survey responses'!M169:S169,\">1\")))","v":""},{"$f":"IF(SUM('2011 Survey responses'!T169:U169)<2.1,\"\",(AVERAGEIFS('2011 Survey responses'!T169:U169,'2011 Survey responses'!T169:U169,\">1\")))","v":""},{"$f":"IF(SUM('2011 Survey responses'!V169:AO169)<1,\"\",(AVERAGEIFS('2011 Survey responses'!V169:AO169,'2011 Survey responses'!V169:AO169,\">1\")))","v":""},{"$f":"IF(SUM('2011 Survey responses'!V169:AA169)<1,\"\",(AVERAGEIFS('2011 Survey responses'!V169:AA169,'2011 Survey responses'!V169:AA169,\">1\")))","v":""},{"$f":"IF(SUM('2011 Survey responses'!AB169:AH169)<1,\"\",(AVERAGEIFS('2011 Survey responses'!AB169:AH169,'2011 Survey responses'!AB169:AH169,\">1\")))","v":""},{"$f":"IF(SUM('2011 Survey responses'!AI169:AO169)<1,\"\",(AVERAGEIFS('2011 Survey responses'!AI169:AO169,'2011 Survey responses'!AI169:AO169,\">1\")))","v":""},{"$f":"IF(('2011 Survey responses'!Y169+'2011 Survey responses'!AI169+'2011 Survey responses'!AK169)<3.1,\"\",((SUMIF('2011 Survey responses'!Y169,\">1\")+SUMIF('2011 Survey responses'!AI169,\">1\")+SUMIF('2011 Survey responses'!AK169,\">1\")+SUMIF('2011 Survey responses'!AM169,\">1\"))/(COUNTIF('2011 Survey responses'!Y169,\">1\")+COUNTIF('2011 Survey responses'!AI169,\">1\")+COUNTIF('2011 Survey responses'!AK169,\">1\")+COUNTIF('2011 Survey responses'!AM169,\">1\"))))","v":""},{"$f":"IF(('2011 Survey responses'!W169)<1.1,\"\",('2011 Survey responses'!W169))","v":""},{"$f":"IF(('2011 Survey responses'!Y169)<1.1,\"\",('2011 Survey responses'!Y169))","v":""},{"$f":"IF(('2011 Survey responses'!Z169)<1.1,\"\",('2011 Survey responses'!Z169))","v":""},{"$f":"IF(('2011 Survey responses'!V169+'2011 Survey responses'!X169+'2011 Survey responses'!AA169)<3.1,\"\",((SUMIF('2011 Survey responses'!V169,\">1\")+SUMIF('2011 Survey responses'!X169,\">1\")+SUMIF('2011 Survey responses'!AA169,\">1\"))/(COUNTIF('2011 Survey responses'!V169,\">1\")+COUNTIF('2011 Survey responses'!X169,\">1\")+COUNTIF('2011 Survey responses'!AA169,\">1\"))))","v":""},{"$f":"IF(('2011 Survey responses'!V169+'2011 Survey responses'!Y169+'2011 Survey responses'!AA169)<3.1,\"\",((SUMIF('2011 Survey responses'!V169,\">1\")+SUMIF('2011 Survey responses'!Y169,\">1\")+SUMIF('2011 Survey responses'!AA169,\">1\"))/(COUNTIF('2011 Survey responses'!V169,\">1\")+COUNTIF('2011 Survey responses'!Y169,\">1\")+COUNTIF('2011 Survey responses'!AA169,\">1\"))))","v":""},{"$f":"IF(SUM('2011 Survey responses'!AB169:AH169)<1,\"\",(AVERAGEIFS('2011 Survey responses'!AB169:AH169,'2011 Survey responses'!AB169:AH169,\">1\")))","v":""},{"$f":"IF(SUM('2011 Survey responses'!AI169:AO169)<7.1,\"\",(AVERAGEIFS('2011 Survey responses'!AI169:AO169,'2011 Survey responses'!AI169:AO169,\">1\")))","v":""},{"$f":"IF(('2011 Survey responses'!AH169)<1.1,\"\",('2011 Survey responses'!AH169))","v":""},{"$f":"IF(SUM('2011 Survey responses'!AP169:BV169)<1,\"\",(AVERAGEIFS('2011 Survey responses'!AP169:BV169,'2011 Survey responses'!AP169:BV169,\">1\")))","v":""},{"$f":"IF(SUM('2011 Survey responses'!AP169:AS169)<4.1,\"\",(AVERAGEIFS('2011 Survey responses'!AP169:AS169,'2011 Survey responses'!AP169:AS169,\">1\")))","v":""},{"$f":"IF(SUM('2011 Survey responses'!AT169:BF169)<1,\"\",(AVERAGEIFS('2011 Survey responses'!AT169:BF169,'2011 Survey responses'!AT169:BF169,\">1\")))","v":""},{"$f":"IF(SUM('2011 Survey responses'!BG169:BO169)<1,\"\",(AVERAGEIFS('2011 Survey responses'!BG169:BO169,'2011 Survey responses'!BG169:BO169,\">1\")))","v":""},{"$f":"IF(SUM('2011 Survey responses'!BP169:BS169)<1,\"\",(AVERAGEIFS('2011 Survey responses'!BP169:BS169,'2011 Survey responses'!BP169:BS169,\">1\")))","v":""},{"$f":"IF(SUM('2011 Survey responses'!BT169:BV169)<3.1,\"\",(AVERAGEIFS('2011 Survey responses'!BT169:BV169,'2011 Survey responses'!BT169:BV169,\">1\")))","v":""},{"$f":"IF(('2011 Survey responses'!AQ169+'2011 Survey responses'!AR169+'2011 Survey responses'!BG169)<3.1,\"\",((SUMIF('2011 Survey responses'!AQ169,\">1\")+SUMIF('2011 Survey responses'!AR169,\">1\")+SUMIF('2011 Survey responses'!BG169,\">1\"))/(COUNTIF('2011 Survey responses'!AQ169,\">1\")+COUNTIF('2011 Survey responses'!AR169,\">1\")+COUNTIF('2011 Survey responses'!BG169,\">1\"))))","v":""},{"$f":"IF(SUM('2011 Survey responses'!AP169:AS169)<4.1,\"\",(AVERAGEIFS('2011 Survey responses'!AP169:AS169,'2011 Survey responses'!AP169:AS169,\">1\")))","v":""},{"$f":"IF(('2011 Survey responses'!AU169+'2011 Survey responses'!AX169+'2011 Survey responses'!BA169+'2011 Survey responses'!BC169+'2011 Survey responses'!BD169)<5.1,\"\",(SUMIF('2011 Survey responses'!AU169,\">1\")+SUMIF('2011 Survey responses'!AX169,\">1\")+SUMIF('2011 Survey responses'!BA169,\">1\")+SUMIF('2011 Survey responses'!BC169,\">1\")+SUMIF('2011 Survey responses'!BD169,\">1\"))/(COUNTIF('2011 Survey responses'!AU169,\">1\")+COUNTIF('2011 Survey responses'!AX169,\">1\")+COUNTIF('2011 Survey responses'!BA169,\">1\")+COUNTIF('2011 Survey responses'!BC169,\">1\")+COUNTIF('2011 Survey responses'!BD169,\">1\")))","v":""},{"$f":"IF(('2011 Survey responses'!AT169)<1.1,\"\",('2011 Survey responses'!AT169))","v":""},{"$f":"IF(SUM('2011 Survey responses'!AV169:AW169)<2.1,\"\",(AVERAGEIFS('2011 Survey responses'!AV169:AW169,'2011 Survey responses'!AV169:AW169,\">1\")))","v":""},{"$f":"IF(('2011 Survey responses'!AW169+'2011 Survey responses'!AY169)<2.1,\"\",(SUMIF('2011 Survey responses'!AW169,\">1\")+SUMIF('2011 Survey responses'!AY169,\">1\"))/(COUNTIF('2011 Survey responses'!AW169,\">1\")+COUNTIF('2011 Survey responses'!AY169,\">1\")))","v":""},{"$f":"IF(('2011 Survey responses'!AZ169)<1.1,\"\",('2011 Survey responses'!AZ169))","v":""},null,null,null,null,{"$f":"IF(('2011 Survey responses'!BE169)<1.1,\"\",('2011 Survey responses'!BE169))","v":""},{"$f":"IF(('2011 Survey responses'!AY169+'2011 Survey responses'!BB169+'2011 Survey responses'!BF169)<3.1,\"\",(SUMIF('2011 Survey responses'!AY169,\">1\")+SUMIF('2011 Survey responses'!BB169,\">1\")+SUMIF('2011 Survey responses'!BF169,\">1\"))/(COUNTIF('2011 Survey responses'!AY169,\">1\")+COUNTIF('2011 Survey responses'!BB169,\">1\")+COUNTIF('2011 Survey responses'!BF169,\">1\")))","v":""},"",{"$f":"IF(SUM('2011 Survey responses'!BT169:BV169)<3.1,\"\",(AVERAGEIFS('2011 Survey responses'!BT169:BV169,'2011 Survey responses'!BT169:BV169,\">1\")))","v":""},{"$f":"IF(SUM('2011 Survey responses'!BW169:CP169)<1,\"\",(AVERAGEIFS('2011 Survey responses'!BW169:CP169,'2011 Survey responses'!BW169:CP169,\">1\")))","v":""},{"$f":"IF(SUM('2011 Survey responses'!BW169:CF169)<1,\"\",(AVERAGEIFS('2011 Survey responses'!BW169:CF169,'2011 Survey responses'!BW169:CF169,\">1\")))","v":""},{"$f":"IF(SUM('2011 Survey responses'!CG169:CP169)<1,\"\",(AVERAGEIFS('2011 Survey responses'!CG169:CP169,'2011 Survey responses'!CG169:CP169,\">1\")))","v":""},{"$f":"IF(SUM('2011 Survey responses'!BX169:CF169)<1,\"\",(AVERAGEIFS('2011 Survey responses'!BX169:CF169,'2011 Survey responses'!BX169:CF169,\">1\")))","v":""},{"$f":"IF(SUM('2011 Survey responses'!CH169:CP169)<1,\"\",(AVERAGEIFS('2011 Survey responses'!CH169:CP169,'2011 Survey responses'!CH169:CP169,\">1\")))","v":""},{"$f":"IF(SUM('2011 Survey responses'!BW169:CP169)<1,\"\",(AVERAGEIFS('2011 Survey responses'!BW169:CP169,'2011 Survey responses'!BW169:CP169,\">1\")))","v":""},{"$f":"IF(('2011 Survey responses'!BW169+'2011 Survey responses'!CG169)<2.1,\"\",(SUMIF('2011 Survey responses'!BW169,\">1\")+SUMIF('2011 Survey responses'!CG169,\">1\"))/(COUNTIF('2011 Survey responses'!BW169,\">1\")+COUNTIF('2011 Survey responses'!CG169,\">1\")))","v":""},{"$f":"IF(('2011 Survey responses'!BX169+'2011 Survey responses'!CH169)<2.1,\"\",(SUMIF('2011 Survey responses'!BX169,\">1\")+SUMIF('2011 Survey responses'!CH169,\">1\"))/(COUNTIF('2011 Survey responses'!BX169,\">1\")+COUNTIF('2011 Survey responses'!CH169,\">1\")))","v":""},{"$f":"IF(('2011 Survey responses'!BY169+'2011 Survey responses'!CI169)<2.1,\"\",(SUMIF('2011 Survey responses'!BY169,\">1\")+SUMIF('2011 Survey responses'!CI169,\">1\"))/(COUNTIF('2011 Survey responses'!BY169,\">1\")+COUNTIF('2011 Survey responses'!CI169,\">1\")))","v":""},{"$f":"IF('2011 Survey responses'!CQ169<0.5,\"\",'2011 Survey responses'!CQ169)","v":""},{"$f":"IF('2011 Survey responses'!CR169<0.5,\"\",'2011 Survey responses'!CR169)","v":""},{"$f":"IF('2011 Survey responses'!CS169<0.5,\"\",'2011 Survey responses'!CS169)","v":""},{"$f":"IF('2011 Survey responses'!CT169<0.5,\"\",'2011 Survey responses'!CT169)","v":""},{"$f":"IF('2011 Survey responses'!CU169<0.5,\"\",'2011 Survey responses'!CU169)","v":""},{"$f":"IF('2011 Survey responses'!CV169<0.5,\"\",'2011 Survey responses'!CV169)","v":""},{"$f":"IF(SUM('2011 Survey responses'!CW169:DL169)<1,\"\",(AVERAGE('2011 Survey responses'!CW169:DL169)))","v":""},{"$f":"IF(SUM('2011 Survey responses'!CW169:CZ169)<1,\"\",(AVERAGE('2011 Survey responses'!CW169:CZ169)))","v":""},{"$f":"IF(SUM('2011 Survey responses'!DA169:DD169)<1,\"\",(AVERAGE('2011 Survey responses'!DA169:DD169)))","v":""},{"$f":"IF(SUM('2011 Survey responses'!DE169:DH169)<1,\"\",(AVERAGE('2011 Survey responses'!DE169:DH169)))","v":""},{"$f":"IF(SUM('2011 Survey responses'!DI169:DL169)<1,\"\",(AVERAGE('2011 Survey responses'!DI169:DL169)))","v":""},{"$f":"IF(('2011 Survey responses'!CW169+'2011 Survey responses'!DA169+'2011 Survey responses'!DE169+'2011 Survey responses'!DI169)<1,\"\",AVERAGE('2011 Survey responses'!CW169,'2011 Survey responses'!DA169,'2011 Survey responses'!DE169,'2011 Survey responses'!DI169))","v":""},{"$f":"IF(('2011 Survey responses'!CX169+'2011 Survey responses'!DB169+'2011 Survey responses'!DF169+'2011 Survey responses'!DJ169)<1,\"\",AVERAGE('2011 Survey responses'!CX169,'2011 Survey responses'!DB169,'2011 Survey responses'!DF169,'2011 Survey responses'!DJ169))","v":""},{"$f":"IF(('2011 Survey responses'!CY169+'2011 Survey responses'!DC169+'2011 Survey responses'!DG169+'2011 Survey responses'!DK169)<1,\"\",AVERAGE('2011 Survey responses'!CY169,'2011 Survey responses'!DC169,'2011 Survey responses'!DG169,'2011 Survey responses'!DK169))","v":""},{"$f":"IF(('2011 Survey responses'!CZ169+'2011 Survey responses'!DD169+'2011 Survey responses'!DH169+'2011 Survey responses'!DL169)<1,\"\",AVERAGE('2011 Survey responses'!CZ169,'2011 Survey responses'!DD169,'2011 Survey responses'!DH169,'2011 Survey responses'!DL169))","v":""},{"$f":"IF('2011 Survey responses'!CW169<0.5,\"\",'2011 Survey responses'!CW169)","v":""},{"$f":"IF('2011 Survey responses'!CX169<0.5,\"\",'2011 Survey responses'!CX169)","v":""},{"$f":"IF('2011 Survey responses'!CY169<0.5,\"\",'2011 Survey responses'!CY169)","v":""},{"$f":"IF('2011 Survey responses'!CZ169<0.5,\"\",'2011 Survey responses'!CZ169)","v":""},{"$f":"IF('2011 Survey responses'!DA169<0.5,\"\",'2011 Survey responses'!DA169)","v":""},{"$f":"IF('2011 Survey responses'!DB169<0.5,\"\",'2011 Survey responses'!DB169)","v":""},{"$f":"IF('2011 Survey responses'!DC169<0.5,\"\",'2011 Survey responses'!DC169)","v":""},{"$f":"IF('2011 Survey responses'!DD169<0.5,\"\",'2011 Survey responses'!DD169)","v":""},{"$f":"IF('2011 Survey responses'!DE169<0.5,\"\",'2011 Survey responses'!DE169)","v":""},{"$f":"IF('2011 Survey responses'!DF169<0.5,\"\",'2011 Survey responses'!DF169)","v":""},{"$f":"IF('2011 Survey responses'!DG169<0.5,\"\",'2011 Survey responses'!DG169)","v":""},{"$f":"IF('2011 Survey responses'!DH169<0.5,\"\",'2011 Survey responses'!DH169)","v":""},{"$f":"IF('2011 Survey responses'!DI169<0.5,\"\",'2011 Survey responses'!DI169)","v":""},{"$f":"IF('2011 Survey responses'!DJ169<0.5,\"\",'2011 Survey responses'!DJ169)","v":""},{"$f":"IF('2011 Survey responses'!DK169<0.5,\"\",'2011 Survey responses'!DK169)","v":""},{"$f":"IF('2011 Survey responses'!DL169<0.5,\"\",'2011 Survey responses'!DL169)","v":""},{"$f":"IF('2011 Survey responses'!DU169=4,4,IF('2011 Survey responses'!DU169=5,4,\"\"))","v":""},{"$f":"IF('2011 Survey responses'!DV169=4,3,IF('2011 Survey responses'!DV169=5,3,\"\"))","v":""},"",{"$f":"IF(CQ169=2,CQ169,IF(CO169=4,CO169,IF(CP169=3,CP169,IF('2011 Survey responses'!GT169=1,1,\"\"))))","v":""},{"$f":"IF('2011 Survey responses'!DO169<0.5,\"\",'2011 Survey responses'!DO169)","v":""},{"$f":"IF('2011 Survey responses'!DP169<0.5,\"\",'2011 Survey responses'!DP169)","v":""},{"$f":"IF('2011 Survey responses'!DQ169<0.5,\"\",'2011 Survey responses'!DQ169)","v":""},{"$f":"IF('2011 Survey responses'!DR169<0.5,\"\",'2011 Survey responses'!DR169)","v":""},{"$f":"IF('2011 Survey responses'!DS169<0.5,\"\",'2011 Survey responses'!DS169)","v":""},{"$f":"IF('2011 Survey responses'!DT169<0.5,\"\",'2011 Survey responses'!DT169)","v":""},{"$f":"IF('2011 Survey responses'!DU169<0.5,\"\",'2011 Survey responses'!DU169)","v":""},{"$f":"IF('2011 Survey responses'!DV169<0.5,\"\",'2011 Survey responses'!DV169)","v":""},{"$f":"IF('2011 Survey responses'!DW169<0.5,\"\",'2011 Survey responses'!DW169)","v":""},{"$f":"IF('2011 Survey responses'!DX169<0.5,\"\",'2011 Survey responses'!DX169)","v":""},{"$f":"IF('2011 Survey responses'!DY169<0.5,\"\",'2011 Survey responses'!DY169)","v":""},{"$f":"IF('2011 Survey responses'!DZ169<0.5,\"\",'2011 Survey responses'!DZ169)","v":""},{"$f":"IF('2011 Survey responses'!EA169<0.5,\"\",'2011 Survey responses'!EA169)","v":""},{"$f":"IF('2011 Survey responses'!EB169<0.5,\"\",'2011 Survey responses'!EB169)","v":""},{"$f":"IF('2011 Survey responses'!EC169<0.5,\"\",'2011 Survey responses'!EC169)","v":""},{"$f":"IF('2011 Survey responses'!ED169<0.5,\"\",'2011 Survey responses'!ED169)","v":""},{"$f":"IF('2011 Survey responses'!EE169<0.5,\"\",'2011 Survey responses'!EE169)","v":""},{"$f":"IF('2011 Survey responses'!EF169<0.5,\"\",'2011 Survey responses'!EF169)","v":""},{"$f":"IF('2011 Survey responses'!EG169<0.5,\"\",'2011 Survey responses'!EG169)","v":""},{"$f":"IF('2011 Survey responses'!EH169<0.5,\"\",'2011 Survey responses'!EH169)","v":""},{"$f":"IF('2011 Survey responses'!EI169<0.5,\"\",'2011 Survey responses'!EI169)","v":""},{"$f":"IF('2011 Survey responses'!EJ169<0.5,\"\",'2011 Survey responses'!EJ169)","v":""},{"$f":"IF('2011 Survey responses'!EK169<0.5,\"\",'2011 Survey responses'!EK169)","v":""},{"$f":"IF('2011 Survey responses'!EL169<0.5,\"\",'2011 Survey responses'!EL169)","v":""},{"$f":"IF('2011 Survey responses'!EM169<0.5,\"\",'2011 Survey responses'!EM169)","v":""},{"$f":"IF('2011 Survey responses'!EN169<0.5,\"\",'2011 Survey responses'!EN169)","v":""},{"$f":"IF('2011 Survey responses'!EO169<0.5,\"\",'2011 Survey responses'!EO169)","v":""},{"$f":"IF('2011 Survey responses'!EP169<0.5,\"\",'2011 Survey responses'!EP169)","v":""},{"$f":"IF(('2011 Survey responses'!EW169+'2011 Survey responses'!EX169)>=2,AVERAGE('2011 Survey responses'!EW169,'2011 Survey responses'!EY169),\"\")","v":""},{"$f":"IF('2011 Survey responses'!EX169<0.5,\"\",'2011 Survey responses'!EX169)","v":""},{"$f":"IF('2011 Survey responses'!EZ169<0.5,\"\",'2011 Survey responses'!EZ169)","v":""},{"$f":"IF('2011 Survey responses'!FB169<0.5,\"\",'2011 Survey responses'!FB169)","v":""},{"$f":"IF('2011 Survey responses'!FD169<0.5,\"\",'2011 Survey responses'!FD169)","v":""},{"$f":"IF('2011 Survey responses'!FC169<0.5,\"\",'2011 Survey responses'!FC169)","v":""},{"$f":"IF(('2011 Survey responses'!EM169+'2011 Survey responses'!EN169)>=2,AVERAGE('2011 Survey responses'!EM169,'2011 Survey responses'!EN169),\"\")","v":""},{"$f":"IF('2011 Survey responses'!ES169<0.5,\"\",'2011 Survey responses'!ES169)","v":""},{"$f":"IF(('2011 Survey responses'!ET169+'2011 Survey responses'!EU169)>=2,AVERAGE('2011 Survey responses'!ET169,'2011 Survey responses'!EU169),\"\")","v":""},{"$f":"IF('2011 Survey responses'!EV169<0.5,\"\",'2011 Survey responses'!EV169)","v":""},{"$f":"IF('2011 Survey responses'!FA169<0.5,\"\",'2011 Survey responses'!FA169)","v":""},{"$f":"IF('2011 Survey responses'!ER169<0.5,\"\",'2011 Survey responses'!ER169)","v":""},{"$f":"IF(('2011 Survey responses'!EO169+'2011 Survey responses'!EP169)>=2,AVERAGE('2011 Survey responses'!EO169,'2011 Survey responses'!EP169),\"\")","v":""},{"$f":"IF('2011 Survey responses'!EQ169<0.5,\"\",'2011 Survey responses'!EQ169)","v":""},{"$f":"IF('2011 Survey responses'!ET169<0.5,\"\",'2011 Survey responses'!ET169)","v":""},{"$f":"IF('2011 Survey responses'!EU169<0.5,\"\",'2011 Survey responses'!EU169)","v":""},{"$f":"IF('2011 Survey responses'!EW169<0.5,\"\",'2011 Survey responses'!EW169)","v":""},{"$f":"IF('2011 Survey responses'!EY169<0.5,\"\",'2011 Survey responses'!EY169)","v":""},{"$f":"IF('2011 Survey responses'!FU169<0.5,\"\",'2011 Survey responses'!FU169)","v":""},{"$f":"IF(('2011 Survey responses'!FL169+'2011 Survey responses'!FM169)>=2,AVERAGE('2011 Survey responses'!FL169,'2011 Survey responses'!FM169),\"\")","v":""},{"$f":"IF(('2011 Survey responses'!FO169+'2011 Survey responses'!FQ169)>=2,AVERAGE('2011 Survey responses'!FO169,'2011 Survey responses'!FQ169),\"\")","v":""},{"$f":"IF('2011 Survey responses'!FJ169<0.5,\"\",'2011 Survey responses'!FJ169)","v":""},{"$f":"IF('2011 Survey responses'!FT169<0.5,\"\",'2011 Survey responses'!FT169)","v":""},{"$f":"IF('2011 Survey responses'!FR169<0.5,\"\",'2011 Survey responses'!FR169)","v":""},{"$f":"IF('2011 Survey responses'!FK169<0.5,\"\",'2011 Survey responses'!FK169)","v":""},{"$f":"IF('2011 Survey responses'!FP169<0.5,\"\",'2011 Survey responses'!FP169)","v":""},{"$f":"IF('2011 Survey responses'!FN169<0.5,\"\",'2011 Survey responses'!FN169)","v":""},{"$f":"IF(('2011 Survey responses'!FE169+'2011 Survey responses'!FF169)>=2,AVERAGE('2011 Survey responses'!FE169,'2011 Survey responses'!FF169),\"\")","v":""},{"$f":"IF('2011 Survey responses'!FS169<0.5,\"\",'2011 Survey responses'!FS169)","v":""},{"$f":"IF('2011 Survey responses'!FV169<0.5,\"\",'2011 Survey responses'!FV169)","v":""},{"$f":"IF(('2011 Survey responses'!FG169+'2011 Survey responses'!FH169)>=2,AVERAGE('2011 Survey responses'!FG169,'2011 Survey responses'!FH169),\"\")","v":""},{"$f":"IF('2011 Survey responses'!FI169<0.5,\"\",'2011 Survey responses'!FI169)","v":""},{"$f":"IF('2011 Survey responses'!FE169<0.5,\"\",'2011 Survey responses'!FE169)","v":""},{"$f":"IF('2011 Survey responses'!FF169<0.5,\"\",'2011 Survey responses'!FF169)","v":""},{"$f":"IF('2011 Survey responses'!FG169<0.5,\"\",'2011 Survey responses'!FG169)","v":""},{"$f":"IF('2011 Survey responses'!FH169<0.5,\"\",'2011 Survey responses'!FH169)","v":""},{"$f":"IF('2011 Survey responses'!FL169<0.5,\"\",'2011 Survey responses'!FL169)","v":""},{"$f":"IF('2011 Survey responses'!FM169<0.5,\"\",'2011 Survey responses'!FM169)","v":""},{"$f":"IF('2011 Survey responses'!FO169<0.5,\"\",'2011 Survey responses'!FO169)","v":""},{"$f":"IF('2011 Survey responses'!FQ169<0.5,\"\",'2011 Survey responses'!FQ169)","v":""}]
["Tajikistan",{"$f":"IF(SUM(F170)<1,\"\",AVERAGEIF('2011 Survey responses'!B170:CP170,\">1\"))","v":3},{"$f":"IF(SUM(F170)<1,\"\",AVERAGEIF('2011 Survey responses'!B170:AO170,\">1\"))","v":2.625},{"$f":"IF(SUM(F170)<1,\"\",AVERAGEIF('2011 Survey responses'!B170:BV170,\">1\"))","v":2.7647058823529411},{"$f":"IF(SUM(F170)<1,\"\",AVERAGEIF('2011 Survey responses'!V170:BV170,\">1\"))","v":2.7058823529411766},{"$f":"IF(SUM('2011 Survey responses'!B170:U170)<1,\"\",(AVERAGEIFS('2011 Survey responses'!B170:U170,'2011 Survey responses'!B170:U170,\">1\")))","v":2.8823529411764706},{"$f":"IF(SUM('2011 Survey responses'!B170:H170)<1,\"\",(AVERAGEIFS('2011 Survey responses'!B170:H170,'2011 Survey responses'!B170:H170,\">1\")))","v":2.6},{"$f":"IF(SUM('2011 Survey responses'!I170:S170)<1,\"\",(AVERAGEIFS('2011 Survey responses'!I170:S170,'2011 Survey responses'!I170:S170,\">1\")))","v":3},{"$f":"IF(SUM('2011 Survey responses'!T170:U170)<2.1,\"\",(AVERAGEIFS('2011 Survey responses'!T170:U170,'2011 Survey responses'!T170:U170,\">1\")))","v":3},{"$f":"IF(SUM('2011 Survey responses'!B170:C170)<2.1,\"\",((SUMIF('2011 Survey responses'!B170:C170,\">1\")+SUMIF('2011 Survey responses'!F170,\">1\"))/(COUNTIF('2011 Survey responses'!B170:C170,\">1\")+COUNTIF('2011 Survey responses'!F170,\">1\"))))","v":2.3333333333333335},{"$f":"IF(SUM('2011 Survey responses'!D170:E170)<2.1,\"\",(AVERAGEIFS('2011 Survey responses'!D170:E170,'2011 Survey responses'!D170:E170,\">1\")))","v":4},{"$f":"IF(('2011 Survey responses'!B170+'2011 Survey responses'!D170)<2.1,\"\",((SUMIF('2011 Survey responses'!B170,\">1\")+SUMIF('2011 Survey responses'!D170,\">1\")+SUMIF('2011 Survey responses'!F170,\">1\")+SUMIF('2011 Survey responses'!K170,\">1\"))/(COUNTIF('2011 Survey responses'!B170,\">1\")+COUNTIF('2011 Survey responses'!D170,\">1\")+COUNTIF('2011 Survey responses'!F170,\">1\")+COUNTIF('2011 Survey responses'!K170,\">1\"))))","v":3.5},{"$f":"IF(SUM('2011 Survey responses'!G170:H170)<2.1,\"\",(AVERAGEIFS('2011 Survey responses'!G170:H170,'2011 Survey responses'!G170:H170,\">1\")))","v":2},{"$f":"IF(SUM('2011 Survey responses'!F170:G170)<1.5,\"\",MAX('2011 Survey responses'!F170,'2011 Survey responses'!G170))","v":2},{"$f":"IF(SUM('2011 Survey responses'!G170:H170)<1,\"\",MAX('2011 Survey responses'!G170,'2011 Survey responses'!H170))","v":2},{"$f":"IF(SUM('2011 Survey responses'!I170:L170)<4.1,\"\",(AVERAGEIFS('2011 Survey responses'!I170:L170,'2011 Survey responses'!I170:L170,\">1\")))","v":3.5},{"$f":"IF(SUM('2011 Survey responses'!M170:S170)<4.1,\"\",(AVERAGEIFS('2011 Survey responses'!M170:S170,'2011 Survey responses'!M170:S170,\">1\")))","v":2.6666666666666665},{"$f":"IF(SUM('2011 Survey responses'!T170:U170)<2.1,\"\",(AVERAGEIFS('2011 Survey responses'!T170:U170,'2011 Survey responses'!T170:U170,\">1\")))","v":3},{"$f":"IF(SUM('2011 Survey responses'!V170:AO170)<1,\"\",(AVERAGEIFS('2011 Survey responses'!V170:AO170,'2011 Survey responses'!V170:AO170,\">1\")))","v":2.3333333333333335},{"$f":"IF(SUM('2011 Survey responses'!V170:AA170)<1,\"\",(AVERAGEIFS('2011 Survey responses'!V170:AA170,'2011 Survey responses'!V170:AA170,\">1\")))","v":2.6},{"$f":"IF(SUM('2011 Survey responses'!AB170:AH170)<1,\"\",(AVERAGEIFS('2011 Survey responses'!AB170:AH170,'2011 Survey responses'!AB170:AH170,\">1\")))","v":2},{"$f":"IF(SUM('2011 Survey responses'!AI170:AO170)<1,\"\",(AVERAGEIFS('2011 Survey responses'!AI170:AO170,'2011 Survey responses'!AI170:AO170,\">1\")))","v":2.5},{"$f":"IF(('2011 Survey responses'!Y170+'2011 Survey responses'!AI170+'2011 Survey responses'!AK170)<3.1,\"\",((SUMIF('2011 Survey responses'!Y170,\">1\")+SUMIF('2011 Survey responses'!AI170,\">1\")+SUMIF('2011 Survey responses'!AK170,\">1\")+SUMIF('2011 Survey responses'!AM170,\">1\"))/(COUNTIF('2011 Survey responses'!Y170,\">1\")+COUNTIF('2011 Survey responses'!AI170,\">1\")+COUNTIF('2011 Survey responses'!AK170,\">1\")+COUNTIF('2011 Survey responses'!AM170,\">1\"))))","v":2},{"$f":"IF(('2011 Survey responses'!W170)<1.1,\"\",('2011 Survey responses'!W170))","v":2},{"$f":"IF(('2011 Survey responses'!Y170)<1.1,\"\",('2011 Survey responses'!Y170))","v":2},{"$f":"IF(('2011 Survey responses'!Z170)<1.1,\"\",('2011 Survey responses'!Z170))","v":3},{"$f":"IF(('2011 Survey responses'!V170+'2011 Survey responses'!X170+'2011 Survey responses'!AA170)<3.1,\"\",((SUMIF('2011 Survey responses'!V170,\">1\")+SUMIF('2011 Survey responses'!X170,\">1\")+SUMIF('2011 Survey responses'!AA170,\">1\"))/(COUNTIF('2011 Survey responses'!V170,\">1\")+COUNTIF('2011 Survey responses'!X170,\">1\")+COUNTIF('2011 Survey responses'!AA170,\">1\"))))","v":3},{"$f":"IF(('2011 Survey responses'!V170+'2011 Survey responses'!Y170+'2011 Survey responses'!AA170)<3.1,\"\",((SUMIF('2011 Survey responses'!V170,\">1\")+SUMIF('2011 Survey responses'!Y170,\">1\")+SUMIF('2011 Survey responses'!AA170,\">1\"))/(COUNTIF('2011 Survey responses'!V170,\">1\")+COUNTIF('2011 Survey responses'!Y170,\">1\")+COUNTIF('2011 Survey responses'!AA170,\">1\"))))","v":2.6666666666666665},{"$f":"IF(SUM('2011 Survey responses'!AB170:AH170)<1,\"\",(AVERAGEIFS('2011 Survey responses'!AB170:AH170,'2011 Survey responses'!AB170:AH170,\">1\")))","v":2},{"$f":"IF(SUM('2011 Survey responses'!AI170:AO170)<7.1,\"\",(AVERAGEIFS('2011 Survey responses'!AI170:AO170,'2011 Survey responses'!AI170:AO170,\">1\")))","v":2.5},{"$f":"IF(('2011 Survey responses'!AH170)<1.1,\"\",('2011 Survey responses'!AH170))","v":2},{"$f":"IF(SUM('2011 Survey responses'!AP170:BV170)<1,\"\",(AVERAGEIFS('2011 Survey responses'!AP170:BV170,'2011 Survey responses'!AP170:BV170,\">1\")))","v":3},{"$f":"IF(SUM('2011 Survey responses'!AP170:AS170)<4.1,\"\",(AVERAGEIFS('2011 Survey responses'!AP170:AS170,'2011 Survey responses'!AP170:AS170,\">1\")))","v":2.3333333333333335},{"$f":"IF(SUM('2011 Survey responses'!AT170:BF170)<1,\"\",(AVERAGEIFS('2011 Survey responses'!AT170:BF170,'2011 Survey responses'!AT170:BF170,\">1\")))","v":2.6},{"$f":"IF(SUM('2011 Survey responses'!BG170:BO170)<1,\"\",(AVERAGEIFS('2011 Survey responses'!BG170:BO170,'2011 Survey responses'!BG170:BO170,\">1\")))","v":3.5714285714285716},{"$f":"IF(SUM('2011 Survey responses'!BP170:BS170)<1,\"\",(AVERAGEIFS('2011 Survey responses'!BP170:BS170,'2011 Survey responses'!BP170:BS170,\">1\")))","v":3},{"$f":"IF(SUM('2011 Survey responses'!BT170:BV170)<3.1,\"\",(AVERAGEIFS('2011 Survey responses'!BT170:BV170,'2011 Survey responses'!BT170:BV170,\">1\")))","v":3},{"$f":"IF(('2011 Survey responses'!AQ170+'2011 Survey responses'!AR170+'2011 Survey responses'!BG170)<3.1,\"\",((SUMIF('2011 Survey responses'!AQ170,\">1\")+SUMIF('2011 Survey responses'!AR170,\">1\")+SUMIF('2011 Survey responses'!BG170,\">1\"))/(COUNTIF('2011 Survey responses'!AQ170,\">1\")+COUNTIF('2011 Survey responses'!AR170,\">1\")+COUNTIF('2011 Survey responses'!BG170,\">1\"))))","v":4},{"$f":"IF(SUM('2011 Survey responses'!AP170:AS170)<4.1,\"\",(AVERAGEIFS('2011 Survey responses'!AP170:AS170,'2011 Survey responses'!AP170:AS170,\">1\")))","v":2.3333333333333335},{"$f":"IF(('2011 Survey responses'!AU170+'2011 Survey responses'!AX170+'2011 Survey responses'!BA170+'2011 Survey responses'!BC170+'2011 Survey responses'!BD170)<5.1,\"\",(SUMIF('2011 Survey responses'!AU170,\">1\")+SUMIF('2011 Survey responses'!AX170,\">1\")+SUMIF('2011 Survey responses'!BA170,\">1\")+SUMIF('2011 Survey responses'!BC170,\">1\")+SUMIF('2011 Survey responses'!BD170,\">1\"))/(COUNTIF('2011 Survey responses'!AU170,\">1\")+COUNTIF('2011 Survey responses'!AX170,\">1\")+COUNTIF('2011 Survey responses'!BA170,\">1\")+COUNTIF('2011 Survey responses'!BC170,\">1\")+COUNTIF('2011 Survey responses'!BD170,\">1\")))","v":2.3333333333333335},{"$f":"IF(('2011 Survey responses'!AT170)<1.1,\"\",('2011 Survey responses'!AT170))","v":""},{"$f":"IF(SUM('2011 Survey responses'!AV170:AW170)<2.1,\"\",(AVERAGEIFS('2011 Survey responses'!AV170:AW170,'2011 Survey responses'!AV170:AW170,\">1\")))","v":2},{"$f":"IF(('2011 Survey responses'!AW170+'2011 Survey responses'!AY170)<2.1,\"\",(SUMIF('2011 Survey responses'!AW170,\">1\")+SUMIF('2011 Survey responses'!AY170,\">1\"))/(COUNTIF('2011 Survey responses'!AW170,\">1\")+COUNTIF('2011 Survey responses'!AY170,\">1\")))","v":2},{"$f":"IF(('2011 Survey responses'!AZ170)<1.1,\"\",('2011 Survey responses'!AZ170))","v":""},1,1,1,1,{"$f":"IF(('2011 Survey responses'!BE170)<1.1,\"\",('2011 Survey responses'!BE170))","v":4},{"$f":"IF(('2011 Survey responses'!AY170+'2011 Survey responses'!BB170+'2011 Survey responses'!BF170)<3.1,\"\",(SUMIF('2011 Survey responses'!AY170,\">1\")+SUMIF('2011 Survey responses'!BB170,\">1\")+SUMIF('2011 Survey responses'!BF170,\">1\"))/(COUNTIF('2011 Survey responses'!AY170,\">1\")+COUNTIF('2011 Survey responses'!BB170,\">1\")+COUNTIF('2011 Survey responses'!BF170,\">1\")))","v":""},3.2857142857142856,{"$f":"IF(SUM('2011 Survey responses'!BT170:BV170)<3.1,\"\",(AVERAGEIFS('2011 Survey responses'!BT170:BV170,'2011 Survey responses'!BT170:BV170,\">1\")))","v":3},{"$f":"IF(SUM('2011 Survey responses'!BW170:CP170)<1,\"\",(AVERAGEIFS('2011 Survey responses'!BW170:CP170,'2011 Survey responses'!BW170:CP170,\">1\")))","v":3.8571428571428572},{"$f":"IF(SUM('2011 Survey responses'!BW170:CF170)<1,\"\",(AVERAGEIFS('2011 Survey responses'!BW170:CF170,'2011 Survey responses'!BW170:CF170,\">1\")))","v":4},{"$f":"IF(SUM('2011 Survey responses'!CG170:CP170)<1,\"\",(AVERAGEIFS('2011 Survey responses'!CG170:CP170,'2011 Survey responses'!CG170:CP170,\">1\")))","v":3.7142857142857144},{"$f":"IF(SUM('2011 Survey responses'!BX170:CF170)<1,\"\",(AVERAGEIFS('2011 Survey responses'!BX170:CF170,'2011 Survey responses'!BX170:CF170,\">1\")))","v":4},{"$f":"IF(SUM('2011 Survey responses'!CH170:CP170)<1,\"\",(AVERAGEIFS('2011 Survey responses'!CH170:CP170,'2011 Survey responses'!CH170:CP170,\">1\")))","v":3.6666666666666665},{"$f":"IF(SUM('2011 Survey responses'!BW170:CP170)<1,\"\",(AVERAGEIFS('2011 Survey responses'!BW170:CP170,'2011 Survey responses'!BW170:CP170,\">1\")))","v":3.8571428571428572},{"$f":"IF(('2011 Survey responses'!BW170+'2011 Survey responses'!CG170)<2.1,\"\",(SUMIF('2011 Survey responses'!BW170,\">1\")+SUMIF('2011 Survey responses'!CG170,\">1\"))/(COUNTIF('2011 Survey responses'!BW170,\">1\")+COUNTIF('2011 Survey responses'!CG170,\">1\")))","v":4},{"$f":"IF(('2011 Survey responses'!BX170+'2011 Survey responses'!CH170)<2.1,\"\",(SUMIF('2011 Survey responses'!BX170,\">1\")+SUMIF('2011 Survey responses'!CH170,\">1\"))/(COUNTIF('2011 Survey responses'!BX170,\">1\")+COUNTIF('2011 Survey responses'!CH170,\">1\")))","v":4},{"$f":"IF(('2011 Survey responses'!BY170+'2011 Survey responses'!CI170)<2.1,\"\",(SUMIF('2011 Survey responses'!BY170,\">1\")+SUMIF('2011 Survey responses'!CI170,\">1\"))/(COUNTIF('2011 Survey responses'!BY170,\">1\")+COUNTIF('2011 Survey responses'!CI170,\">1\")))","v":4},{"$f":"IF('2011 Survey responses'!CQ170<0.5,\"\",'2011 Survey responses'!CQ170)","v":3},{"$f":"IF('2011 Survey responses'!CR170<0.5,\"\",'2011 Survey responses'!CR170)","v":4},{"$f":"IF('2011 Survey responses'!CS170<0.5,\"\",'2011 Survey responses'!CS170)","v":4},{"$f":"IF('2011 Survey responses'!CT170<0.5,\"\",'2011 Survey responses'!CT170)","v":4},{"$f":"IF('2011 Survey responses'!CU170<0.5,\"\",'2011 Survey responses'!CU170)","v":4},{"$f":"IF('2011 Survey responses'!CV170<0.5,\"\",'2011 Survey responses'!CV170)","v":3},{"$f":"IF(SUM('2011 Survey responses'!CW170:DL170)<1,\"\",(AVERAGE('2011 Survey responses'!CW170:DL170)))","v":1.625},{"$f":"IF(SUM('2011 Survey responses'!CW170:CZ170)<1,\"\",(AVERAGE('2011 Survey responses'!CW170:CZ170)))","v":2.5},{"$f":"IF(SUM('2011 Survey responses'!DA170:DD170)<1,\"\",(AVERAGE('2011 Survey responses'!DA170:DD170)))","v":1.25},{"$f":"IF(SUM('2011 Survey responses'!DE170:DH170)<1,\"\",(AVERAGE('2011 Survey responses'!DE170:DH170)))","v":1.75},{"$f":"IF(SUM('2011 Survey responses'!DI170:DL170)<1,\"\",(AVERAGE('2011 Survey responses'!DI170:DL170)))","v":1},{"$f":"IF(('2011 Survey responses'!CW170+'2011 Survey responses'!DA170+'2011 Survey responses'!DE170+'2011 Survey responses'!DI170)<1,\"\",AVERAGE('2011 Survey responses'!CW170,'2011 Survey responses'!DA170,'2011 Survey responses'!DE170,'2011 Survey responses'!DI170))","v":1.5},{"$f":"IF(('2011 Survey responses'!CX170+'2011 Survey responses'!DB170+'2011 Survey responses'!DF170+'2011 Survey responses'!DJ170)<1,\"\",AVERAGE('2011 Survey responses'!CX170,'2011 Survey responses'!DB170,'2011 Survey responses'!DF170,'2011 Survey responses'!DJ170))","v":1},{"$f":"IF(('2011 Survey responses'!CY170+'2011 Survey responses'!DC170+'2011 Survey responses'!DG170+'2011 Survey responses'!DK170)<1,\"\",AVERAGE('2011 Survey responses'!CY170,'2011 Survey responses'!DC170,'2011 Survey responses'!DG170,'2011 Survey responses'!DK170))","v":2.25},{"$f":"IF(('2011 Survey responses'!CZ170+'2011 Survey responses'!DD170+'2011 Survey responses'!DH170+'2011 Survey responses'!DL170)<1,\"\",AVERAGE('2011 Survey responses'!CZ170,'2011 Survey responses'!DD170,'2011 Survey responses'!DH170,'2011 Survey responses'!DL170))","v":1.75},{"$f":"IF('2011 Survey responses'!CW170<0.5,\"\",'2011 Survey responses'!CW170)","v":2},{"$f":"IF('2011 Survey responses'!CX170<0.5,\"\",'2011 Survey responses'!CX170)","v":1},{"$f":"IF('2011 Survey responses'!CY170<0.5,\"\",'2011 Survey responses'!CY170)","v":4},{"$f":"IF('2011 Survey responses'!CZ170<0.5,\"\",'2011 Survey responses'!CZ170)","v":3},{"$f":"IF('2011 Survey responses'!DA170<0.5,\"\",'2011 Survey responses'!DA170)","v":1},{"$f":"IF('2011 Survey responses'!DB170<0.5,\"\",'2011 Survey responses'!DB170)","v":1},{"$f":"IF('2011 Survey responses'!DC170<0.5,\"\",'2011 Survey responses'!DC170)","v":2},{"$f":"IF('2011 Survey responses'!DD170<0.5,\"\",'2011 Survey responses'!DD170)","v":1},{"$f":"IF('2011 Survey responses'!DE170<0.5,\"\",'2011 Survey responses'!DE170)","v":2},{"$f":"IF('2011 Survey responses'!DF170<0.5,\"\",'2011 Survey responses'!DF170)","v":1},{"$f":"IF('2011 Survey responses'!DG170<0.5,\"\",'2011 Survey responses'!DG170)","v":2},{"$f":"IF('2011 Survey responses'!DH170<0.5,\"\",'2011 Survey responses'!DH170)","v":2},{"$f":"IF('2011 Survey responses'!DI170<0.5,\"\",'2011 Survey responses'!DI170)","v":1},{"$f":"IF('2011 Survey responses'!DJ170<0.5,\"\",'2011 Survey responses'!DJ170)","v":1},{"$f":"IF('2011 Survey responses'!DK170<0.5,\"\",'2011 Survey responses'!DK170)","v":1},{"$f":"IF('2011 Survey responses'!DL170<0.5,\"\",'2011 Survey responses'!DL170)","v":1},{"$f":"IF('2011 Survey responses'!DU170=4,4,IF('2011 Survey responses'!DU170=5,4,\"\"))","v":4},{"$f":"IF('2011 Survey responses'!DV170=4,3,IF('2011 Survey responses'!DV170=5,3,\"\"))","v":3},2,{"$f":"IF(CQ170=2,CQ170,IF(CO170=4,CO170,IF(CP170=3,CP170,IF('2011 Survey responses'!GT170=1,1,\"\"))))","v":2},{"$f":"IF('2011 Survey responses'!DO170<0.5,\"\",'2011 Survey responses'!DO170)","v":5},{"$f":"IF('2011 Survey responses'!DP170<0.5,\"\",'2011 Survey responses'!DP170)","v":5},{"$f":"IF('2011 Survey responses'!DQ170<0.5,\"\",'2011 Survey responses'!DQ170)","v":2},{"$f":"IF('2011 Survey responses'!DR170<0.5,\"\",'2011 Survey responses'!DR170)","v":5},{"$f":"IF('2011 Survey responses'!DS170<0.5,\"\",'2011 Survey responses'!DS170)","v":2},{"$f":"IF('2011 Survey responses'!DT170<0.5,\"\",'2011 Survey responses'!DT170)","v":3},{"$f":"IF('2011 Survey responses'!DU170<0.5,\"\",'2011 Survey responses'!DU170)","v":5},{"$f":"IF('2011 Survey responses'!DV170<0.5,\"\",'2011 Survey responses'!DV170)","v":4},{"$f":"IF('2011 Survey responses'!DW170<0.5,\"\",'2011 Survey responses'!DW170)","v":3},{"$f":"IF('2011 Survey responses'!DX170<0.5,\"\",'2011 Survey responses'!DX170)","v":4},{"$f":"IF('2011 Survey responses'!DY170<0.5,\"\",'2011 Survey responses'!DY170)","v":2},{"$f":"IF('2011 Survey responses'!DZ170<0.5,\"\",'2011 Survey responses'!DZ170)","v":2},{"$f":"IF('2011 Survey responses'!EA170<0.5,\"\",'2011 Survey responses'!EA170)","v":4},{"$f":"IF('2011 Survey responses'!EB170<0.5,\"\",'2011 Survey responses'!EB170)","v":5},{"$f":"IF('2011 Survey responses'!EC170<0.5,\"\",'2011 Survey responses'!EC170)","v":2},{"$f":"IF('2011 Survey responses'!ED170<0.5,\"\",'2011 Survey responses'!ED170)","v":5},{"$f":"IF('2011 Survey responses'!EE170<0.5,\"\",'2011 Survey responses'!EE170)","v":1},{"$f":"IF('2011 Survey responses'!EF170<0.5,\"\",'2011 Survey responses'!EF170)","v":4},{"$f":"IF('2011 Survey responses'!EG170<0.5,\"\",'2011 Survey responses'!EG170)","v":5},{"$f":"IF('2011 Survey responses'!EH170<0.5,\"\",'2011 Survey responses'!EH170)","v":4},{"$f":"IF('2011 Survey responses'!EI170<0.5,\"\",'2011 Survey responses'!EI170)","v":4},{"$f":"IF('2011 Survey responses'!EJ170<0.5,\"\",'2011 Survey responses'!EJ170)","v":4},{"$f":"IF('2011 Survey responses'!EK170<0.5,\"\",'2011 Survey responses'!EK170)","v":2},{"$f":"IF('2011 Survey responses'!EL170<0.5,\"\",'2011 Survey responses'!EL170)","v":2},{"$f":"IF('2011 Survey responses'!EM170<0.5,\"\",'2011 Survey responses'!EM170)","v":4},{"$f":"IF('2011 Survey responses'!EN170<0.5,\"\",'2011 Survey responses'!EN170)","v":4},{"$f":"IF('2011 Survey responses'!EO170<0.5,\"\",'2011 Survey responses'!EO170)","v":4},{"$f":"IF('2011 Survey responses'!EP170<0.5,\"\",'2011 Survey responses'!EP170)","v":4},{"$f":"IF(('2011 Survey responses'!EW170+'2011 Survey responses'!EX170)>=2,AVERAGE('2011 Survey responses'!EW170,'2011 Survey responses'!EY170),\"\")","v":5},{"$f":"IF('2011 Survey responses'!EX170<0.5,\"\",'2011 Survey responses'!EX170)","v":5},{"$f":"IF('2011 Survey responses'!EZ170<0.5,\"\",'2011 Survey responses'!EZ170)","v":4},{"$f":"IF('2011 Survey responses'!FB170<0.5,\"\",'2011 Survey responses'!FB170)","v":5},{"$f":"IF('2011 Survey responses'!FD170<0.5,\"\",'2011 Survey responses'!FD170)","v":4},{"$f":"IF('2011 Survey responses'!FC170<0.5,\"\",'2011 Survey responses'!FC170)","v":3},{"$f":"IF(('2011 Survey responses'!EM170+'2011 Survey responses'!EN170)>=2,AVERAGE('2011 Survey responses'!EM170,'2011 Survey responses'!EN170),\"\")","v":4},{"$f":"IF('2011 Survey responses'!ES170<0.5,\"\",'2011 Survey responses'!ES170)","v":4},{"$f":"IF(('2011 Survey responses'!ET170+'2011 Survey responses'!EU170)>=2,AVERAGE('2011 Survey responses'!ET170,'2011 Survey responses'!EU170),\"\")","v":4},{"$f":"IF('2011 Survey responses'!EV170<0.5,\"\",'2011 Survey responses'!EV170)","v":3},{"$f":"IF('2011 Survey responses'!FA170<0.5,\"\",'2011 Survey responses'!FA170)","v":4},{"$f":"IF('2011 Survey responses'!ER170<0.5,\"\",'2011 Survey responses'!ER170)","v":3},{"$f":"IF(('2011 Survey responses'!EO170+'2011 Survey responses'!EP170)>=2,AVERAGE('2011 Survey responses'!EO170,'2011 Survey responses'!EP170),\"\")","v":4},{"$f":"IF('2011 Survey responses'!EQ170<0.5,\"\",'2011 Survey responses'!EQ170)","v":3},{"$f":"IF('2011 Survey responses'!ET170<0.5,\"\",'2011 Survey responses'!ET170)","v":4},{"$f":"IF('2011 Survey responses'!EU170<0.5,\"\",'2011 Survey responses'!EU170)","v":4},{"$f":"IF('2011 Survey responses'!EW170<0.5,\"\",'2011 Survey responses'!EW170)","v":5},{"$f":"IF('2011 Survey responses'!EY170<0.5,\"\",'2011 Survey responses'!EY170)","v":5},{"$f":"IF('2011 Survey responses'!FU170<0.5,\"\",'2011 Survey responses'!FU170)","v":3},{"$f":"IF(('2011 Survey responses'!FL170+'2011 Survey responses'!FM170)>=2,AVERAGE('2011 Survey responses'!FL170,'2011 Survey responses'!FM170),\"\")","v":4},{"$f":"IF(('2011 Survey responses'!FO170+'2011 Survey responses'!FQ170)>=2,AVERAGE('2011 Survey responses'!FO170,'2011 Survey responses'!FQ170),\"\")","v":5},{"$f":"IF('2011 Survey responses'!FJ170<0.5,\"\",'2011 Survey responses'!FJ170)","v":3},{"$f":"IF('2011 Survey responses'!FT170<0.5,\"\",'2011 Survey responses'!FT170)","v":5},{"$f":"IF('2011 Survey responses'!FR170<0.5,\"\",'2011 Survey responses'!FR170)","v":4},{"$f":"IF('2011 Survey responses'!FK170<0.5,\"\",'2011 Survey responses'!FK170)","v":4},{"$f":"IF('2011 Survey responses'!FP170<0.5,\"\",'2011 Survey responses'!FP170)","v":5},{"$f":"IF('2011 Survey responses'!FN170<0.5,\"\",'2011 Survey responses'!FN170)","v":4},{"$f":"IF(('2011 Survey responses'!FE170+'2011 Survey responses'!FF170)>=2,AVERAGE('2011 Survey responses'!FE170,'2011 Survey responses'!FF170),\"\")","v":5},{"$f":"IF('2011 Survey responses'!FS170<0.5,\"\",'2011 Survey responses'!FS170)","v":5},{"$f":"IF('2011 Survey responses'!FV170<0.5,\"\",'2011 Survey responses'!FV170)","v":3},{"$f":"IF(('2011 Survey responses'!FG170+'2011 Survey responses'!FH170)>=2,AVERAGE('2011 Survey responses'!FG170,'2011 Survey responses'!FH170),\"\")","v":5},{"$f":"IF('2011 Survey responses'!FI170<0.5,\"\",'2011 Survey responses'!FI170)","v":3},{"$f":"IF('2011 Survey responses'!FE170<0.5,\"\",'2011 Survey responses'!FE170)","v":5},{"$f":"IF('2011 Survey responses'!FF170<0.5,\"\",'2011 Survey responses'!FF170)","v":5},{"$f":"IF('2011 Survey responses'!FG170<0.5,\"\",'2011 Survey responses'!FG170)","v":5},{"$f":"IF('2011 Survey responses'!FH170<0.5,\"\",'2011 Survey responses'!FH170)","v":5},{"$f":"IF('2011 Survey responses'!FL170<0.5,\"\",'2011 Survey responses'!FL170)","v":4},{"$f":"IF('2011 Survey responses'!FM170<0.5,\"\",'2011 Survey responses'!FM170)","v":4},{"$f":"IF('2011 Survey responses'!FO170<0.5,\"\",'2011 Survey responses'!FO170)","v":5},{"$f":"IF('2011 Survey responses'!FQ170<0.5,\"\",'2011 Survey responses'!FQ170)","v":5}]
["Thailand",{"$f":"IF(SUM(F171)<1,\"\",AVERAGEIF('2011 Survey responses'!B171:CP171,\">1\"))","v":3.2391304347826089},{"$f":"IF(SUM(F171)<1,\"\",AVERAGEIF('2011 Survey responses'!B171:AO171,\">1\"))","v":3.2},{"$f":"IF(SUM(F171)<1,\"\",AVERAGEIF('2011 Survey responses'!B171:BV171,\">1\"))","v":3.2083333333333335},{"$f":"IF(SUM(F171)<1,\"\",AVERAGEIF('2011 Survey responses'!V171:BV171,\">1\"))","v":3.3461538461538463},{"$f":"IF(SUM('2011 Survey responses'!B171:U171)<1,\"\",(AVERAGEIFS('2011 Survey responses'!B171:U171,'2011 Survey responses'!B171:U171,\">1\")))","v":2.85},{"$f":"IF(SUM('2011 Survey responses'!B171:H171)<1,\"\",(AVERAGEIFS('2011 Survey responses'!B171:H171,'2011 Survey responses'!B171:H171,\">1\")))","v":2.8571428571428572},{"$f":"IF(SUM('2011 Survey responses'!I171:S171)<1,\"\",(AVERAGEIFS('2011 Survey responses'!I171:S171,'2011 Survey responses'!I171:S171,\">1\")))","v":2.8181818181818183},{"$f":"IF(SUM('2011 Survey responses'!T171:U171)<2.1,\"\",(AVERAGEIFS('2011 Survey responses'!T171:U171,'2011 Survey responses'!T171:U171,\">1\")))","v":3},{"$f":"IF(SUM('2011 Survey responses'!B171:C171)<2.1,\"\",((SUMIF('2011 Survey responses'!B171:C171,\">1\")+SUMIF('2011 Survey responses'!F171,\">1\"))/(COUNTIF('2011 Survey responses'!B171:C171,\">1\")+COUNTIF('2011 Survey responses'!F171,\">1\"))))","v":3.3333333333333335},{"$f":"IF(SUM('2011 Survey responses'!D171:E171)<2.1,\"\",(AVERAGEIFS('2011 Survey responses'!D171:E171,'2011 Survey responses'!D171:E171,\">1\")))","v":2},{"$f":"IF(('2011 Survey responses'!B171+'2011 Survey responses'!D171)<2.1,\"\",((SUMIF('2011 Survey responses'!B171,\">1\")+SUMIF('2011 Survey responses'!D171,\">1\")+SUMIF('2011 Survey responses'!F171,\">1\")+SUMIF('2011 Survey responses'!K171,\">1\"))/(COUNTIF('2011 Survey responses'!B171,\">1\")+COUNTIF('2011 Survey responses'!D171,\">1\")+COUNTIF('2011 Survey responses'!F171,\">1\")+COUNTIF('2011 Survey responses'!K171,\">1\"))))","v":3.25},{"$f":"IF(SUM('2011 Survey responses'!G171:H171)<2.1,\"\",(AVERAGEIFS('2011 Survey responses'!G171:H171,'2011 Survey responses'!G171:H171,\">1\")))","v":3},{"$f":"IF(SUM('2011 Survey responses'!F171:G171)<1.5,\"\",MAX('2011 Survey responses'!F171,'2011 Survey responses'!G171))","v":4},{"$f":"IF(SUM('2011 Survey responses'!G171:H171)<1,\"\",MAX('2011 Survey responses'!G171,'2011 Survey responses'!H171))","v":3},{"$f":"IF(SUM('2011 Survey responses'!I171:L171)<4.1,\"\",(AVERAGEIFS('2011 Survey responses'!I171:L171,'2011 Survey responses'!I171:L171,\">1\")))","v":3.25},{"$f":"IF(SUM('2011 Survey responses'!M171:S171)<4.1,\"\",(AVERAGEIFS('2011 Survey responses'!M171:S171,'2011 Survey responses'!M171:S171,\">1\")))","v":2.5714285714285716},{"$f":"IF(SUM('2011 Survey responses'!T171:U171)<2.1,\"\",(AVERAGEIFS('2011 Survey responses'!T171:U171,'2011 Survey responses'!T171:U171,\">1\")))","v":3},{"$f":"IF(SUM('2011 Survey responses'!V171:AO171)<1,\"\",(AVERAGEIFS('2011 Survey responses'!V171:AO171,'2011 Survey responses'!V171:AO171,\">1\")))","v":3.55},{"$f":"IF(SUM('2011 Survey responses'!V171:AA171)<1,\"\",(AVERAGEIFS('2011 Survey responses'!V171:AA171,'2011 Survey responses'!V171:AA171,\">1\")))","v":3.5},{"$f":"IF(SUM('2011 Survey responses'!AB171:AH171)<1,\"\",(AVERAGEIFS('2011 Survey responses'!AB171:AH171,'2011 Survey responses'!AB171:AH171,\">1\")))","v":3.5714285714285716},{"$f":"IF(SUM('2011 Survey responses'!AI171:AO171)<1,\"\",(AVERAGEIFS('2011 Survey responses'!AI171:AO171,'2011 Survey responses'!AI171:AO171,\">1\")))","v":3.5714285714285716},{"$f":"IF(('2011 Survey responses'!Y171+'2011 Survey responses'!AI171+'2011 Survey responses'!AK171)<3.1,\"\",((SUMIF('2011 Survey responses'!Y171,\">1\")+SUMIF('2011 Survey responses'!AI171,\">1\")+SUMIF('2011 Survey responses'!AK171,\">1\")+SUMIF('2011 Survey responses'!AM171,\">1\"))/(COUNTIF('2011 Survey responses'!Y171,\">1\")+COUNTIF('2011 Survey responses'!AI171,\">1\")+COUNTIF('2011 Survey responses'!AK171,\">1\")+COUNTIF('2011 Survey responses'!AM171,\">1\"))))","v":3.5},{"$f":"IF(('2011 Survey responses'!W171)<1.1,\"\",('2011 Survey responses'!W171))","v":4},{"$f":"IF(('2011 Survey responses'!Y171)<1.1,\"\",('2011 Survey responses'!Y171))","v":3},{"$f":"IF(('2011 Survey responses'!Z171)<1.1,\"\",('2011 Survey responses'!Z171))","v":3},{"$f":"IF(('2011 Survey responses'!V171+'2011 Survey responses'!X171+'2011 Survey responses'!AA171)<3.1,\"\",((SUMIF('2011 Survey responses'!V171,\">1\")+SUMIF('2011 Survey responses'!X171,\">1\")+SUMIF('2011 Survey responses'!AA171,\">1\"))/(COUNTIF('2011 Survey responses'!V171,\">1\")+COUNTIF('2011 Survey responses'!X171,\">1\")+COUNTIF('2011 Survey responses'!AA171,\">1\"))))","v":3.6666666666666665},{"$f":"IF(('2011 Survey responses'!V171+'2011 Survey responses'!Y171+'2011 Survey responses'!AA171)<3.1,\"\",((SUMIF('2011 Survey responses'!V171,\">1\")+SUMIF('2011 Survey responses'!Y171,\">1\")+SUMIF('2011 Survey responses'!AA171,\">1\"))/(COUNTIF('2011 Survey responses'!V171,\">1\")+COUNTIF('2011 Survey responses'!Y171,\">1\")+COUNTIF('2011 Survey responses'!AA171,\">1\"))))","v":3.3333333333333335},{"$f":"IF(SUM('2011 Survey responses'!AB171:AH171)<1,\"\",(AVERAGEIFS('2011 Survey responses'!AB171:AH171,'2011 Survey responses'!AB171:AH171,\">1\")))","v":3.5714285714285716},{"$f":"IF(SUM('2011 Survey responses'!AI171:AO171)<7.1,\"\",(AVERAGEIFS('2011 Survey responses'!AI171:AO171,'2011 Survey responses'!AI171:AO171,\">1\")))","v":3.5714285714285716},{"$f":"IF(('2011 Survey responses'!AH171)<1.1,\"\",('2011 Survey responses'!AH171))","v":3},{"$f":"IF(SUM('2011 Survey responses'!AP171:BV171)<1,\"\",(AVERAGEIFS('2011 Survey responses'!AP171:BV171,'2011 Survey responses'!AP171:BV171,\">1\")))","v":3.21875},{"$f":"IF(SUM('2011 Survey responses'!AP171:AS171)<4.1,\"\",(AVERAGEIFS('2011 Survey responses'!AP171:AS171,'2011 Survey responses'!AP171:AS171,\">1\")))","v":3.25},{"$f":"IF(SUM('2011 Survey responses'!AT171:BF171)<1,\"\",(AVERAGEIFS('2011 Survey responses'!AT171:BF171,'2011 Survey responses'!AT171:BF171,\">1\")))","v":3.3846153846153846},{"$f":"IF(SUM('2011 Survey responses'!BG171:BO171)<1,\"\",(AVERAGEIFS('2011 Survey responses'!BG171:BO171,'2011 Survey responses'!BG171:BO171,\">1\")))","v":3.4444444444444446},{"$f":"IF(SUM('2011 Survey responses'!BP171:BS171)<1,\"\",(AVERAGEIFS('2011 Survey responses'!BP171:BS171,'2011 Survey responses'!BP171:BS171,\">1\")))","v":2.75},{"$f":"IF(SUM('2011 Survey responses'!BT171:BV171)<3.1,\"\",(AVERAGEIFS('2011 Survey responses'!BT171:BV171,'2011 Survey responses'!BT171:BV171,\">1\")))","v":2},{"$f":"IF(('2011 Survey responses'!AQ171+'2011 Survey responses'!AR171+'2011 Survey responses'!BG171)<3.1,\"\",((SUMIF('2011 Survey responses'!AQ171,\">1\")+SUMIF('2011 Survey responses'!AR171,\">1\")+SUMIF('2011 Survey responses'!BG171,\">1\"))/(COUNTIF('2011 Survey responses'!AQ171,\">1\")+COUNTIF('2011 Survey responses'!AR171,\">1\")+COUNTIF('2011 Survey responses'!BG171,\">1\"))))","v":3.6666666666666665},{"$f":"IF(SUM('2011 Survey responses'!AP171:AS171)<4.1,\"\",(AVERAGEIFS('2011 Survey responses'!AP171:AS171,'2011 Survey responses'!AP171:AS171,\">1\")))","v":3.25},{"$f":"IF(('2011 Survey responses'!AU171+'2011 Survey responses'!AX171+'2011 Survey responses'!BA171+'2011 Survey responses'!BC171+'2011 Survey responses'!BD171)<5.1,\"\",(SUMIF('2011 Survey responses'!AU171,\">1\")+SUMIF('2011 Survey responses'!AX171,\">1\")+SUMIF('2011 Survey responses'!BA171,\">1\")+SUMIF('2011 Survey responses'!BC171,\">1\")+SUMIF('2011 Survey responses'!BD171,\">1\"))/(COUNTIF('2011 Survey responses'!AU171,\">1\")+COUNTIF('2011 Survey responses'!AX171,\">1\")+COUNTIF('2011 Survey responses'!BA171,\">1\")+COUNTIF('2011 Survey responses'!BC171,\">1\")+COUNTIF('2011 Survey responses'!BD171,\">1\")))","v":3.6},{"$f":"IF(('2011 Survey responses'!AT171)<1.1,\"\",('2011 Survey responses'!AT171))","v":3},{"$f":"IF(SUM('2011 Survey responses'!AV171:AW171)<2.1,\"\",(AVERAGEIFS('2011 Survey responses'!AV171:AW171,'2011 Survey responses'!AV171:AW171,\">1\")))","v":3},{"$f":"IF(('2011 Survey responses'!AW171+'2011 Survey responses'!AY171)<2.1,\"\",(SUMIF('2011 Survey responses'!AW171,\">1\")+SUMIF('2011 Survey responses'!AY171,\">1\"))/(COUNTIF('2011 Survey responses'!AW171,\">1\")+COUNTIF('2011 Survey responses'!AY171,\">1\")))","v":3.5},{"$f":"IF(('2011 Survey responses'!AZ171)<1.1,\"\",('2011 Survey responses'!AZ171))","v":3},3,3,2,1,{"$f":"IF(('2011 Survey responses'!BE171)<1.1,\"\",('2011 Survey responses'!BE171))","v":3},{"$f":"IF(('2011 Survey responses'!AY171+'2011 Survey responses'!BB171+'2011 Survey responses'!BF171)<3.1,\"\",(SUMIF('2011 Survey responses'!AY171,\">1\")+SUMIF('2011 Survey responses'!BB171,\">1\")+SUMIF('2011 Survey responses'!BF171,\">1\"))/(COUNTIF('2011 Survey responses'!AY171,\">1\")+COUNTIF('2011 Survey responses'!BB171,\">1\")+COUNTIF('2011 Survey responses'!BF171,\">1\")))","v":3.6666666666666665},3.0972222222222223,{"$f":"IF(SUM('2011 Survey responses'!BT171:BV171)<3.1,\"\",(AVERAGEIFS('2011 Survey responses'!BT171:BV171,'2011 Survey responses'!BT171:BV171,\">1\")))","v":2},{"$f":"IF(SUM('2011 Survey responses'!BW171:CP171)<1,\"\",(AVERAGEIFS('2011 Survey responses'!BW171:CP171,'2011 Survey responses'!BW171:CP171,\">1\")))","v":3.35},{"$f":"IF(SUM('2011 Survey responses'!BW171:CF171)<1,\"\",(AVERAGEIFS('2011 Survey responses'!BW171:CF171,'2011 Survey responses'!BW171:CF171,\">1\")))","v":3.4},{"$f":"IF(SUM('2011 Survey responses'!CG171:CP171)<1,\"\",(AVERAGEIFS('2011 Survey responses'!CG171:CP171,'2011 Survey responses'!CG171:CP171,\">1\")))","v":3.3},{"$f":"IF(SUM('2011 Survey responses'!BX171:CF171)<1,\"\",(AVERAGEIFS('2011 Survey responses'!BX171:CF171,'2011 Survey responses'!BX171:CF171,\">1\")))","v":3.3333333333333335},{"$f":"IF(SUM('2011 Survey responses'!CH171:CP171)<1,\"\",(AVERAGEIFS('2011 Survey responses'!CH171:CP171,'2011 Survey responses'!CH171:CP171,\">1\")))","v":3.2222222222222223},{"$f":"IF(SUM('2011 Survey responses'!BW171:CP171)<1,\"\",(AVERAGEIFS('2011 Survey responses'!BW171:CP171,'2011 Survey responses'!BW171:CP171,\">1\")))","v":3.35},{"$f":"IF(('2011 Survey responses'!BW171+'2011 Survey responses'!CG171)<2.1,\"\",(SUMIF('2011 Survey responses'!BW171,\">1\")+SUMIF('2011 Survey responses'!CG171,\">1\"))/(COUNTIF('2011 Survey responses'!BW171,\">1\")+COUNTIF('2011 Survey responses'!CG171,\">1\")))","v":4},{"$f":"IF(('2011 Survey responses'!BX171+'2011 Survey responses'!CH171)<2.1,\"\",(SUMIF('2011 Survey responses'!BX171,\">1\")+SUMIF('2011 Survey responses'!CH171,\">1\"))/(COUNTIF('2011 Survey responses'!BX171,\">1\")+COUNTIF('2011 Survey responses'!CH171,\">1\")))","v":4.5},{"$f":"IF(('2011 Survey responses'!BY171+'2011 Survey responses'!CI171)<2.1,\"\",(SUMIF('2011 Survey responses'!BY171,\">1\")+SUMIF('2011 Survey responses'!CI171,\">1\"))/(COUNTIF('2011 Survey responses'!BY171,\">1\")+COUNTIF('2011 Survey responses'!CI171,\">1\")))","v":4},{"$f":"IF('2011 Survey responses'!CQ171<0.5,\"\",'2011 Survey responses'!CQ171)","v":""},{"$f":"IF('2011 Survey responses'!CR171<0.5,\"\",'2011 Survey responses'!CR171)","v":""},{"$f":"IF('2011 Survey responses'!CS171<0.5,\"\",'2011 Survey responses'!CS171)","v":""},{"$f":"IF('2011 Survey responses'!CT171<0.5,\"\",'2011 Survey responses'!CT171)","v":""},{"$f":"IF('2011 Survey responses'!CU171<0.5,\"\",'2011 Survey responses'!CU171)","v":""},{"$f":"IF('2011 Survey responses'!CV171<0.5,\"\",'2011 Survey responses'!CV171)","v":""},{"$f":"IF(SUM('2011 Survey responses'!CW171:DL171)<1,\"\",(AVERAGE('2011 Survey responses'!CW171:DL171)))","v":2.875},{"$f":"IF(SUM('2011 Survey responses'!CW171:CZ171)<1,\"\",(AVERAGE('2011 Survey responses'!CW171:CZ171)))","v":3},{"$f":"IF(SUM('2011 Survey responses'!DA171:DD171)<1,\"\",(AVERAGE('2011 Survey responses'!DA171:DD171)))","v":3},{"$f":"IF(SUM('2011 Survey responses'!DE171:DH171)<1,\"\",(AVERAGE('2011 Survey responses'!DE171:DH171)))","v":2.5},{"$f":"IF(SUM('2011 Survey responses'!DI171:DL171)<1,\"\",(AVERAGE('2011 Survey responses'!DI171:DL171)))","v":3},{"$f":"IF(('2011 Survey responses'!CW171+'2011 Survey responses'!DA171+'2011 Survey responses'!DE171+'2011 Survey responses'!DI171)<1,\"\",AVERAGE('2011 Survey responses'!CW171,'2011 Survey responses'!DA171,'2011 Survey responses'!DE171,'2011 Survey responses'!DI171))","v":3},{"$f":"IF(('2011 Survey responses'!CX171+'2011 Survey responses'!DB171+'2011 Survey responses'!DF171+'2011 Survey responses'!DJ171)<1,\"\",AVERAGE('2011 Survey responses'!CX171,'2011 Survey responses'!DB171,'2011 Survey responses'!DF171,'2011 Survey responses'!DJ171))","v":2.75},{"$f":"IF(('2011 Survey responses'!CY171+'2011 Survey responses'!DC171+'2011 Survey responses'!DG171+'2011 Survey responses'!DK171)<1,\"\",AVERAGE('2011 Survey responses'!CY171,'2011 Survey responses'!DC171,'2011 Survey responses'!DG171,'2011 Survey responses'!DK171))","v":3},{"$f":"IF(('2011 Survey responses'!CZ171+'2011 Survey responses'!DD171+'2011 Survey responses'!DH171+'2011 Survey responses'!DL171)<1,\"\",AVERAGE('2011 Survey responses'!CZ171,'2011 Survey responses'!DD171,'2011 Survey responses'!DH171,'2011 Survey responses'!DL171))","v":2.75},{"$f":"IF('2011 Survey responses'!CW171<0.5,\"\",'2011 Survey responses'!CW171)","v":3},{"$f":"IF('2011 Survey responses'!CX171<0.5,\"\",'2011 Survey responses'!CX171)","v":3},{"$f":"IF('2011 Survey responses'!CY171<0.5,\"\",'2011 Survey responses'!CY171)","v":3},{"$f":"IF('2011 Survey responses'!CZ171<0.5,\"\",'2011 Survey responses'!CZ171)","v":3},{"$f":"IF('2011 Survey responses'!DA171<0.5,\"\",'2011 Survey responses'!DA171)","v":3},{"$f":"IF('2011 Survey responses'!DB171<0.5,\"\",'2011 Survey responses'!DB171)","v":3},{"$f":"IF('2011 Survey responses'!DC171<0.5,\"\",'2011 Survey responses'!DC171)","v":3},{"$f":"IF('2011 Survey responses'!DD171<0.5,\"\",'2011 Survey responses'!DD171)","v":3},{"$f":"IF('2011 Survey responses'!DE171<0.5,\"\",'2011 Survey responses'!DE171)","v":3},{"$f":"IF('2011 Survey responses'!DF171<0.5,\"\",'2011 Survey responses'!DF171)","v":2},{"$f":"IF('2011 Survey responses'!DG171<0.5,\"\",'2011 Survey responses'!DG171)","v":3},{"$f":"IF('2011 Survey responses'!DH171<0.5,\"\",'2011 Survey responses'!DH171)","v":2},{"$f":"IF('2011 Survey responses'!DI171<0.5,\"\",'2011 Survey responses'!DI171)","v":3},{"$f":"IF('2011 Survey responses'!DJ171<0.5,\"\",'2011 Survey responses'!DJ171)","v":3},{"$f":"IF('2011 Survey responses'!DK171<0.5,\"\",'2011 Survey responses'!DK171)","v":3},{"$f":"IF('2011 Survey responses'!DL171<0.5,\"\",'2011 Survey responses'!DL171)","v":3},{"$f":"IF('2011 Survey responses'!DU171=4,4,IF('2011 Survey responses'!DU171=5,4,\"\"))","v":4},{"$f":"IF('2011 Survey responses'!DV171=4,3,IF('2011 Survey responses'!DV171=5,3,\"\"))","v":3},2,{"$f":"IF(CQ171=2,CQ171,IF(CO171=4,CO171,IF(CP171=3,CP171,IF('2011 Survey responses'!GT171=1,1,\"\"))))","v":2},{"$f":"IF('2011 Survey responses'!DO171<0.5,\"\",'2011 Survey responses'!DO171)","v":4},{"$f":"IF('2011 Survey responses'!DP171<0.5,\"\",'2011 Survey responses'!DP171)","v":4},{"$f":"IF('2011 Survey responses'!DQ171<0.5,\"\",'2011 Survey responses'!DQ171)","v":3},{"$f":"IF('2011 Survey responses'!DR171<0.5,\"\",'2011 Survey responses'!DR171)","v":3},{"$f":"IF('2011 Survey responses'!DS171<0.5,\"\",'2011 Survey responses'!DS171)","v":3},{"$f":"IF('2011 Survey responses'!DT171<0.5,\"\",'2011 Survey responses'!DT171)","v":4},{"$f":"IF('2011 Survey responses'!DU171<0.5,\"\",'2011 Survey responses'!DU171)","v":4},{"$f":"IF('2011 Survey responses'!DV171<0.5,\"\",'2011 Survey responses'!DV171)","v":4},{"$f":"IF('2011 Survey responses'!DW171<0.5,\"\",'2011 Survey responses'!DW171)","v":4},{"$f":"IF('2011 Survey responses'!DX171<0.5,\"\",'2011 Survey responses'!DX171)","v":3},{"$f":"IF('2011 Survey responses'!DY171<0.5,\"\",'2011 Survey responses'!DY171)","v":4},{"$f":"IF('2011 Survey responses'!DZ171<0.5,\"\",'2011 Survey responses'!DZ171)","v":3},{"$f":"IF('2011 Survey responses'!EA171<0.5,\"\",'2011 Survey responses'!EA171)","v":4},{"$f":"IF('2011 Survey responses'!EB171<0.5,\"\",'2011 Survey responses'!EB171)","v":4},{"$f":"IF('2011 Survey responses'!EC171<0.5,\"\",'2011 Survey responses'!EC171)","v":4},{"$f":"IF('2011 Survey responses'!ED171<0.5,\"\",'2011 Survey responses'!ED171)","v":4},{"$f":"IF('2011 Survey responses'!EE171<0.5,\"\",'2011 Survey responses'!EE171)","v":3},{"$f":"IF('2011 Survey responses'!EF171<0.5,\"\",'2011 Survey responses'!EF171)","v":4},{"$f":"IF('2011 Survey responses'!EG171<0.5,\"\",'2011 Survey responses'!EG171)","v":4},{"$f":"IF('2011 Survey responses'!EH171<0.5,\"\",'2011 Survey responses'!EH171)","v":4},{"$f":"IF('2011 Survey responses'!EI171<0.5,\"\",'2011 Survey responses'!EI171)","v":3},{"$f":"IF('2011 Survey responses'!EJ171<0.5,\"\",'2011 Survey responses'!EJ171)","v":3},{"$f":"IF('2011 Survey responses'!EK171<0.5,\"\",'2011 Survey responses'!EK171)","v":3},{"$f":"IF('2011 Survey responses'!EL171<0.5,\"\",'2011 Survey responses'!EL171)","v":3},{"$f":"IF('2011 Survey responses'!EM171<0.5,\"\",'2011 Survey responses'!EM171)","v":4},{"$f":"IF('2011 Survey responses'!EN171<0.5,\"\",'2011 Survey responses'!EN171)","v":3},{"$f":"IF('2011 Survey responses'!EO171<0.5,\"\",'2011 Survey responses'!EO171)","v":3},{"$f":"IF('2011 Survey responses'!EP171<0.5,\"\",'2011 Survey responses'!EP171)","v":4},{"$f":"IF(('2011 Survey responses'!EW171+'2011 Survey responses'!EX171)>=2,AVERAGE('2011 Survey responses'!EW171,'2011 Survey responses'!EY171),\"\")","v":3},{"$f":"IF('2011 Survey responses'!EX171<0.5,\"\",'2011 Survey responses'!EX171)","v":3},{"$f":"IF('2011 Survey responses'!EZ171<0.5,\"\",'2011 Survey responses'!EZ171)","v":4},{"$f":"IF('2011 Survey responses'!FB171<0.5,\"\",'2011 Survey responses'!FB171)","v":4},{"$f":"IF('2011 Survey responses'!FD171<0.5,\"\",'2011 Survey responses'!FD171)","v":4},{"$f":"IF('2011 Survey responses'!FC171<0.5,\"\",'2011 Survey responses'!FC171)","v":4},{"$f":"IF(('2011 Survey responses'!EM171+'2011 Survey responses'!EN171)>=2,AVERAGE('2011 Survey responses'!EM171,'2011 Survey responses'!EN171),\"\")","v":3.5},{"$f":"IF('2011 Survey responses'!ES171<0.5,\"\",'2011 Survey responses'!ES171)","v":4},{"$f":"IF(('2011 Survey responses'!ET171+'2011 Survey responses'!EU171)>=2,AVERAGE('2011 Survey responses'!ET171,'2011 Survey responses'!EU171),\"\")","v":4},{"$f":"IF('2011 Survey responses'!EV171<0.5,\"\",'2011 Survey responses'!EV171)","v":4},{"$f":"IF('2011 Survey responses'!FA171<0.5,\"\",'2011 Survey responses'!FA171)","v":4},{"$f":"IF('2011 Survey responses'!ER171<0.5,\"\",'2011 Survey responses'!ER171)","v":4},{"$f":"IF(('2011 Survey responses'!EO171+'2011 Survey responses'!EP171)>=2,AVERAGE('2011 Survey responses'!EO171,'2011 Survey responses'!EP171),\"\")","v":3.5},{"$f":"IF('2011 Survey responses'!EQ171<0.5,\"\",'2011 Survey responses'!EQ171)","v":3},{"$f":"IF('2011 Survey responses'!ET171<0.5,\"\",'2011 Survey responses'!ET171)","v":4},{"$f":"IF('2011 Survey responses'!EU171<0.5,\"\",'2011 Survey responses'!EU171)","v":4},{"$f":"IF('2011 Survey responses'!EW171<0.5,\"\",'2011 Survey responses'!EW171)","v":3},{"$f":"IF('2011 Survey responses'!EY171<0.5,\"\",'2011 Survey responses'!EY171)","v":3},{"$f":"IF('2011 Survey responses'!FU171<0.5,\"\",'2011 Survey responses'!FU171)","v":4},{"$f":"IF(('2011 Survey responses'!FL171+'2011 Survey responses'!FM171)>=2,AVERAGE('2011 Survey responses'!FL171,'2011 Survey responses'!FM171),\"\")","v":4},{"$f":"IF(('2011 Survey responses'!FO171+'2011 Survey responses'!FQ171)>=2,AVERAGE('2011 Survey responses'!FO171,'2011 Survey responses'!FQ171),\"\")","v":4},{"$f":"IF('2011 Survey responses'!FJ171<0.5,\"\",'2011 Survey responses'!FJ171)","v":4},{"$f":"IF('2011 Survey responses'!FT171<0.5,\"\",'2011 Survey responses'!FT171)","v":4},{"$f":"IF('2011 Survey responses'!FR171<0.5,\"\",'2011 Survey responses'!FR171)","v":3},{"$f":"IF('2011 Survey responses'!FK171<0.5,\"\",'2011 Survey responses'!FK171)","v":3},{"$f":"IF('2011 Survey responses'!FP171<0.5,\"\",'2011 Survey responses'!FP171)","v":3},{"$f":"IF('2011 Survey responses'!FN171<0.5,\"\",'2011 Survey responses'!FN171)","v":3},{"$f":"IF(('2011 Survey responses'!FE171+'2011 Survey responses'!FF171)>=2,AVERAGE('2011 Survey responses'!FE171,'2011 Survey responses'!FF171),\"\")","v":4},{"$f":"IF('2011 Survey responses'!FS171<0.5,\"\",'2011 Survey responses'!FS171)","v":3},{"$f":"IF('2011 Survey responses'!FV171<0.5,\"\",'2011 Survey responses'!FV171)","v":3},{"$f":"IF(('2011 Survey responses'!FG171+'2011 Survey responses'!FH171)>=2,AVERAGE('2011 Survey responses'!FG171,'2011 Survey responses'!FH171),\"\")","v":3},{"$f":"IF('2011 Survey responses'!FI171<0.5,\"\",'2011 Survey responses'!FI171)","v":3},{"$f":"IF('2011 Survey responses'!FE171<0.5,\"\",'2011 Survey responses'!FE171)","v":4},{"$f":"IF('2011 Survey responses'!FF171<0.5,\"\",'2011 Survey responses'!FF171)","v":4},{"$f":"IF('2011 Survey responses'!FG171<0.5,\"\",'2011 Survey responses'!FG171)","v":3},{"$f":"IF('2011 Survey responses'!FH171<0.5,\"\",'2011 Survey responses'!FH171)","v":3},{"$f":"IF('2011 Survey responses'!FL171<0.5,\"\",'2011 Survey responses'!FL171)","v":4},{"$f":"IF('2011 Survey responses'!FM171<0.5,\"\",'2011 Survey responses'!FM171)","v":4},{"$f":"IF('2011 Survey responses'!FO171<0.5,\"\",'2011 Survey responses'!FO171)","v":4},{"$f":"IF('2011 Survey responses'!FQ171<0.5,\"\",'2011 Survey responses'!FQ171)","v":4}]
["The former Yugoslav Republic of Macedonia",{"$f":"IF(SUM(F172)<1,\"\",AVERAGEIF('2011 Survey responses'!B172:CP172,\">1\"))","v":2.788732394366197},{"$f":"IF(SUM(F172)<1,\"\",AVERAGEIF('2011 Survey responses'!B172:AO172,\">1\"))","v":2.4411764705882355},{"$f":"IF(SUM(F172)<1,\"\",AVERAGEIF('2011 Survey responses'!B172:BV172,\">1\"))","v":2.4736842105263159},{"$f":"IF(SUM(F172)<1,\"\",AVERAGEIF('2011 Survey responses'!V172:BV172,\">1\"))","v":2.2790697674418605},{"$f":"IF(SUM('2011 Survey responses'!B172:U172)<1,\"\",(AVERAGEIFS('2011 Survey responses'!B172:U172,'2011 Survey responses'!B172:U172,\">1\")))","v":3.0714285714285716},{"$f":"IF(SUM('2011 Survey responses'!B172:H172)<1,\"\",(AVERAGEIFS('2011 Survey responses'!B172:H172,'2011 Survey responses'!B172:H172,\">1\")))","v":2.4},{"$f":"IF(SUM('2011 Survey responses'!I172:S172)<1,\"\",(AVERAGEIFS('2011 Survey responses'!I172:S172,'2011 Survey responses'!I172:S172,\">1\")))","v":3.2857142857142856},{"$f":"IF(SUM('2011 Survey responses'!T172:U172)<2.1,\"\",(AVERAGEIFS('2011 Survey responses'!T172:U172,'2011 Survey responses'!T172:U172,\">1\")))","v":4},{"$f":"IF(SUM('2011 Survey responses'!B172:C172)<2.1,\"\",((SUMIF('2011 Survey responses'!B172:C172,\">1\")+SUMIF('2011 Survey responses'!F172,\">1\"))/(COUNTIF('2011 Survey responses'!B172:C172,\">1\")+COUNTIF('2011 Survey responses'!F172,\">1\"))))","v":2.6666666666666665},{"$f":"IF(SUM('2011 Survey responses'!D172:E172)<2.1,\"\",(AVERAGEIFS('2011 Survey responses'!D172:E172,'2011 Survey responses'!D172:E172,\">1\")))","v":2},{"$f":"IF(('2011 Survey responses'!B172+'2011 Survey responses'!D172)<2.1,\"\",((SUMIF('2011 Survey responses'!B172,\">1\")+SUMIF('2011 Survey responses'!D172,\">1\")+SUMIF('2011 Survey responses'!F172,\">1\")+SUMIF('2011 Survey responses'!K172,\">1\"))/(COUNTIF('2011 Survey responses'!B172,\">1\")+COUNTIF('2011 Survey responses'!D172,\">1\")+COUNTIF('2011 Survey responses'!F172,\">1\")+COUNTIF('2011 Survey responses'!K172,\">1\"))))","v":2.5},{"$f":"IF(SUM('2011 Survey responses'!G172:H172)<2.1,\"\",(AVERAGEIFS('2011 Survey responses'!G172:H172,'2011 Survey responses'!G172:H172,\">1\")))","v":""},{"$f":"IF(SUM('2011 Survey responses'!F172:G172)<1.5,\"\",MAX('2011 Survey responses'!F172,'2011 Survey responses'!G172))","v":2},{"$f":"IF(SUM('2011 Survey responses'!G172:H172)<1,\"\",MAX('2011 Survey responses'!G172,'2011 Survey responses'!H172))","v":""},{"$f":"IF(SUM('2011 Survey responses'!I172:L172)<4.1,\"\",(AVERAGEIFS('2011 Survey responses'!I172:L172,'2011 Survey responses'!I172:L172,\">1\")))","v":3.25},{"$f":"IF(SUM('2011 Survey responses'!M172:S172)<4.1,\"\",(AVERAGEIFS('2011 Survey responses'!M172:S172,'2011 Survey responses'!M172:S172,\">1\")))","v":3.3333333333333335},{"$f":"IF(SUM('2011 Survey responses'!T172:U172)<2.1,\"\",(AVERAGEIFS('2011 Survey responses'!T172:U172,'2011 Survey responses'!T172:U172,\">1\")))","v":4},{"$f":"IF(SUM('2011 Survey responses'!V172:AO172)<1,\"\",(AVERAGEIFS('2011 Survey responses'!V172:AO172,'2011 Survey responses'!V172:AO172,\">1\")))","v":2},{"$f":"IF(SUM('2011 Survey responses'!V172:AA172)<1,\"\",(AVERAGEIFS('2011 Survey responses'!V172:AA172,'2011 Survey responses'!V172:AA172,\">1\")))","v":2},{"$f":"IF(SUM('2011 Survey responses'!AB172:AH172)<1,\"\",(AVERAGEIFS('2011 Survey responses'!AB172:AH172,'2011 Survey responses'!AB172:AH172,\">1\")))","v":2},{"$f":"IF(SUM('2011 Survey responses'!AI172:AO172)<1,\"\",(AVERAGEIFS('2011 Survey responses'!AI172:AO172,'2011 Survey responses'!AI172:AO172,\">1\")))","v":2},{"$f":"IF(('2011 Survey responses'!Y172+'2011 Survey responses'!AI172+'2011 Survey responses'!AK172)<3.1,\"\",((SUMIF('2011 Survey responses'!Y172,\">1\")+SUMIF('2011 Survey responses'!AI172,\">1\")+SUMIF('2011 Survey responses'!AK172,\">1\")+SUMIF('2011 Survey responses'!AM172,\">1\"))/(COUNTIF('2011 Survey responses'!Y172,\">1\")+COUNTIF('2011 Survey responses'!AI172,\">1\")+COUNTIF('2011 Survey responses'!AK172,\">1\")+COUNTIF('2011 Survey responses'!AM172,\">1\"))))","v":2},{"$f":"IF(('2011 Survey responses'!W172)<1.1,\"\",('2011 Survey responses'!W172))","v":2},{"$f":"IF(('2011 Survey responses'!Y172)<1.1,\"\",('2011 Survey responses'!Y172))","v":2},{"$f":"IF(('2011 Survey responses'!Z172)<1.1,\"\",('2011 Survey responses'!Z172))","v":2},{"$f":"IF(('2011 Survey responses'!V172+'2011 Survey responses'!X172+'2011 Survey responses'!AA172)<3.1,\"\",((SUMIF('2011 Survey responses'!V172,\">1\")+SUMIF('2011 Survey responses'!X172,\">1\")+SUMIF('2011 Survey responses'!AA172,\">1\"))/(COUNTIF('2011 Survey responses'!V172,\">1\")+COUNTIF('2011 Survey responses'!X172,\">1\")+COUNTIF('2011 Survey responses'!AA172,\">1\"))))","v":2},{"$f":"IF(('2011 Survey responses'!V172+'2011 Survey responses'!Y172+'2011 Survey responses'!AA172)<3.1,\"\",((SUMIF('2011 Survey responses'!V172,\">1\")+SUMIF('2011 Survey responses'!Y172,\">1\")+SUMIF('2011 Survey responses'!AA172,\">1\"))/(COUNTIF('2011 Survey responses'!V172,\">1\")+COUNTIF('2011 Survey responses'!Y172,\">1\")+COUNTIF('2011 Survey responses'!AA172,\">1\"))))","v":2},{"$f":"IF(SUM('2011 Survey responses'!AB172:AH172)<1,\"\",(AVERAGEIFS('2011 Survey responses'!AB172:AH172,'2011 Survey responses'!AB172:AH172,\">1\")))","v":2},{"$f":"IF(SUM('2011 Survey responses'!AI172:AO172)<7.1,\"\",(AVERAGEIFS('2011 Survey responses'!AI172:AO172,'2011 Survey responses'!AI172:AO172,\">1\")))","v":2},{"$f":"IF(('2011 Survey responses'!AH172)<1.1,\"\",('2011 Survey responses'!AH172))","v":2},{"$f":"IF(SUM('2011 Survey responses'!AP172:BV172)<1,\"\",(AVERAGEIFS('2011 Survey responses'!AP172:BV172,'2011 Survey responses'!AP172:BV172,\">1\")))","v":2.5217391304347827},{"$f":"IF(SUM('2011 Survey responses'!AP172:AS172)<4.1,\"\",(AVERAGEIFS('2011 Survey responses'!AP172:AS172,'2011 Survey responses'!AP172:AS172,\">1\")))","v":2},{"$f":"IF(SUM('2011 Survey responses'!AT172:BF172)<1,\"\",(AVERAGEIFS('2011 Survey responses'!AT172:BF172,'2011 Survey responses'!AT172:BF172,\">1\")))","v":2},{"$f":"IF(SUM('2011 Survey responses'!BG172:BO172)<1,\"\",(AVERAGEIFS('2011 Survey responses'!BG172:BO172,'2011 Survey responses'!BG172:BO172,\">1\")))","v":3.3333333333333335},{"$f":"IF(SUM('2011 Survey responses'!BP172:BS172)<1,\"\",(AVERAGEIFS('2011 Survey responses'!BP172:BS172,'2011 Survey responses'!BP172:BS172,\">1\")))","v":2},{"$f":"IF(SUM('2011 Survey responses'!BT172:BV172)<3.1,\"\",(AVERAGEIFS('2011 Survey responses'!BT172:BV172,'2011 Survey responses'!BT172:BV172,\">1\")))","v":2},{"$f":"IF(('2011 Survey responses'!AQ172+'2011 Survey responses'!AR172+'2011 Survey responses'!BG172)<3.1,\"\",((SUMIF('2011 Survey responses'!AQ172,\">1\")+SUMIF('2011 Survey responses'!AR172,\">1\")+SUMIF('2011 Survey responses'!BG172,\">1\"))/(COUNTIF('2011 Survey responses'!AQ172,\">1\")+COUNTIF('2011 Survey responses'!AR172,\">1\")+COUNTIF('2011 Survey responses'!BG172,\">1\"))))","v":3},{"$f":"IF(SUM('2011 Survey responses'!AP172:AS172)<4.1,\"\",(AVERAGEIFS('2011 Survey responses'!AP172:AS172,'2011 Survey responses'!AP172:AS172,\">1\")))","v":2},{"$f":"IF(('2011 Survey responses'!AU172+'2011 Survey responses'!AX172+'2011 Survey responses'!BA172+'2011 Survey responses'!BC172+'2011 Survey responses'!BD172)<5.1,\"\",(SUMIF('2011 Survey responses'!AU172,\">1\")+SUMIF('2011 Survey responses'!AX172,\">1\")+SUMIF('2011 Survey responses'!BA172,\">1\")+SUMIF('2011 Survey responses'!BC172,\">1\")+SUMIF('2011 Survey responses'!BD172,\">1\"))/(COUNTIF('2011 Survey responses'!AU172,\">1\")+COUNTIF('2011 Survey responses'!AX172,\">1\")+COUNTIF('2011 Survey responses'!BA172,\">1\")+COUNTIF('2011 Survey responses'!BC172,\">1\")+COUNTIF('2011 Survey responses'!BD172,\">1\")))","v":2},{"$f":"IF(('2011 Survey responses'!AT172)<1.1,\"\",('2011 Survey responses'!AT172))","v":2},{"$f":"IF(SUM('2011 Survey responses'!AV172:AW172)<2.1,\"\",(AVERAGEIFS('2011 Survey responses'!AV172:AW172,'2011 Survey responses'!AV172:AW172,\">1\")))","v":""},{"$f":"IF(('2011 Survey responses'!AW172+'2011 Survey responses'!AY172)<2.1,\"\",(SUMIF('2011 Survey responses'!AW172,\">1\")+SUMIF('2011 Survey responses'!AY172,\">1\"))/(COUNTIF('2011 Survey responses'!AW172,\">1\")+COUNTIF('2011 Survey responses'!AY172,\">1\")))","v":""},{"$f":"IF(('2011 Survey responses'!AZ172)<1.1,\"\",('2011 Survey responses'!AZ172))","v":""},null,2,null,2,{"$f":"IF(('2011 Survey responses'!BE172)<1.1,\"\",('2011 Survey responses'!BE172))","v":""},{"$f":"IF(('2011 Survey responses'!AY172+'2011 Survey responses'!BB172+'2011 Survey responses'!BF172)<3.1,\"\",(SUMIF('2011 Survey responses'!AY172,\">1\")+SUMIF('2011 Survey responses'!BB172,\">1\")+SUMIF('2011 Survey responses'!BF172,\">1\"))/(COUNTIF('2011 Survey responses'!AY172,\">1\")+COUNTIF('2011 Survey responses'!BB172,\">1\")+COUNTIF('2011 Survey responses'!BF172,\">1\")))","v":""},2.666666666666667,{"$f":"IF(SUM('2011 Survey responses'!BT172:BV172)<3.1,\"\",(AVERAGEIFS('2011 Survey responses'!BT172:BV172,'2011 Survey responses'!BT172:BV172,\">1\")))","v":2},{"$f":"IF(SUM('2011 Survey responses'!BW172:CP172)<1,\"\",(AVERAGEIFS('2011 Survey responses'!BW172:CP172,'2011 Survey responses'!BW172:CP172,\">1\")))","v":4.0714285714285712},{"$f":"IF(SUM('2011 Survey responses'!BW172:CF172)<1,\"\",(AVERAGEIFS('2011 Survey responses'!BW172:CF172,'2011 Survey responses'!BW172:CF172,\">1\")))","v":4.1428571428571432},{"$f":"IF(SUM('2011 Survey responses'!CG172:CP172)<1,\"\",(AVERAGEIFS('2011 Survey responses'!CG172:CP172,'2011 Survey responses'!CG172:CP172,\">1\")))","v":4},{"$f":"IF(SUM('2011 Survey responses'!BX172:CF172)<1,\"\",(AVERAGEIFS('2011 Survey responses'!BX172:CF172,'2011 Survey responses'!BX172:CF172,\">1\")))","v":4.166666666666667},{"$f":"IF(SUM('2011 Survey responses'!CH172:CP172)<1,\"\",(AVERAGEIFS('2011 Survey responses'!CH172:CP172,'2011 Survey responses'!CH172:CP172,\">1\")))","v":4},{"$f":"IF(SUM('2011 Survey responses'!BW172:CP172)<1,\"\",(AVERAGEIFS('2011 Survey responses'!BW172:CP172,'2011 Survey responses'!BW172:CP172,\">1\")))","v":4.0714285714285712},{"$f":"IF(('2011 Survey responses'!BW172+'2011 Survey responses'!CG172)<2.1,\"\",(SUMIF('2011 Survey responses'!BW172,\">1\")+SUMIF('2011 Survey responses'!CG172,\">1\"))/(COUNTIF('2011 Survey responses'!BW172,\">1\")+COUNTIF('2011 Survey responses'!CG172,\">1\")))","v":4},{"$f":"IF(('2011 Survey responses'!BX172+'2011 Survey responses'!CH172)<2.1,\"\",(SUMIF('2011 Survey responses'!BX172,\">1\")+SUMIF('2011 Survey responses'!CH172,\">1\"))/(COUNTIF('2011 Survey responses'!BX172,\">1\")+COUNTIF('2011 Survey responses'!CH172,\">1\")))","v":4},{"$f":"IF(('2011 Survey responses'!BY172+'2011 Survey responses'!CI172)<2.1,\"\",(SUMIF('2011 Survey responses'!BY172,\">1\")+SUMIF('2011 Survey responses'!CI172,\">1\"))/(COUNTIF('2011 Survey responses'!BY172,\">1\")+COUNTIF('2011 Survey responses'!CI172,\">1\")))","v":4},{"$f":"IF('2011 Survey responses'!CQ172<0.5,\"\",'2011 Survey responses'!CQ172)","v":1},{"$f":"IF('2011 Survey responses'!CR172<0.5,\"\",'2011 Survey responses'!CR172)","v":1},{"$f":"IF('2011 Survey responses'!CS172<0.5,\"\",'2011 Survey responses'!CS172)","v":4},{"$f":"IF('2011 Survey responses'!CT172<0.5,\"\",'2011 Survey responses'!CT172)","v":2},{"$f":"IF('2011 Survey responses'!CU172<0.5,\"\",'2011 Survey responses'!CU172)","v":3},{"$f":"IF('2011 Survey responses'!CV172<0.5,\"\",'2011 Survey responses'!CV172)","v":3},{"$f":"IF(SUM('2011 Survey responses'!CW172:DL172)<1,\"\",(AVERAGE('2011 Survey responses'!CW172:DL172)))","v":2},{"$f":"IF(SUM('2011 Survey responses'!CW172:CZ172)<1,\"\",(AVERAGE('2011 Survey responses'!CW172:CZ172)))","v":2},{"$f":"IF(SUM('2011 Survey responses'!DA172:DD172)<1,\"\",(AVERAGE('2011 Survey responses'!DA172:DD172)))","v":2},{"$f":"IF(SUM('2011 Survey responses'!DE172:DH172)<1,\"\",(AVERAGE('2011 Survey responses'!DE172:DH172)))","v":2},{"$f":"IF(SUM('2011 Survey responses'!DI172:DL172)<1,\"\",(AVERAGE('2011 Survey responses'!DI172:DL172)))","v":2},{"$f":"IF(('2011 Survey responses'!CW172+'2011 Survey responses'!DA172+'2011 Survey responses'!DE172+'2011 Survey responses'!DI172)<1,\"\",AVERAGE('2011 Survey responses'!CW172,'2011 Survey responses'!DA172,'2011 Survey responses'!DE172,'2011 Survey responses'!DI172))","v":""},{"$f":"IF(('2011 Survey responses'!CX172+'2011 Survey responses'!DB172+'2011 Survey responses'!DF172+'2011 Survey responses'!DJ172)<1,\"\",AVERAGE('2011 Survey responses'!CX172,'2011 Survey responses'!DB172,'2011 Survey responses'!DF172,'2011 Survey responses'!DJ172))","v":""},{"$f":"IF(('2011 Survey responses'!CY172+'2011 Survey responses'!DC172+'2011 Survey responses'!DG172+'2011 Survey responses'!DK172)<1,\"\",AVERAGE('2011 Survey responses'!CY172,'2011 Survey responses'!DC172,'2011 Survey responses'!DG172,'2011 Survey responses'!DK172))","v":""},{"$f":"IF(('2011 Survey responses'!CZ172+'2011 Survey responses'!DD172+'2011 Survey responses'!DH172+'2011 Survey responses'!DL172)<1,\"\",AVERAGE('2011 Survey responses'!CZ172,'2011 Survey responses'!DD172,'2011 Survey responses'!DH172,'2011 Survey responses'!DL172))","v":2},{"$f":"IF('2011 Survey responses'!CW172<0.5,\"\",'2011 Survey responses'!CW172)","v":""},{"$f":"IF('2011 Survey responses'!CX172<0.5,\"\",'2011 Survey responses'!CX172)","v":""},{"$f":"IF('2011 Survey responses'!CY172<0.5,\"\",'2011 Survey responses'!CY172)","v":""},{"$f":"IF('2011 Survey responses'!CZ172<0.5,\"\",'2011 Survey responses'!CZ172)","v":2},{"$f":"IF('2011 Survey responses'!DA172<0.5,\"\",'2011 Survey responses'!DA172)","v":""},{"$f":"IF('2011 Survey responses'!DB172<0.5,\"\",'2011 Survey responses'!DB172)","v":""},{"$f":"IF('2011 Survey responses'!DC172<0.5,\"\",'2011 Survey responses'!DC172)","v":""},{"$f":"IF('2011 Survey responses'!DD172<0.5,\"\",'2011 Survey responses'!DD172)","v":2},{"$f":"IF('2011 Survey responses'!DE172<0.5,\"\",'2011 Survey responses'!DE172)","v":""},{"$f":"IF('2011 Survey responses'!DF172<0.5,\"\",'2011 Survey responses'!DF172)","v":""},{"$f":"IF('2011 Survey responses'!DG172<0.5,\"\",'2011 Survey responses'!DG172)","v":""},{"$f":"IF('2011 Survey responses'!DH172<0.5,\"\",'2011 Survey responses'!DH172)","v":2},{"$f":"IF('2011 Survey responses'!DI172<0.5,\"\",'2011 Survey responses'!DI172)","v":""},{"$f":"IF('2011 Survey responses'!DJ172<0.5,\"\",'2011 Survey responses'!DJ172)","v":""},{"$f":"IF('2011 Survey responses'!DK172<0.5,\"\",'2011 Survey responses'!DK172)","v":""},{"$f":"IF('2011 Survey responses'!DL172<0.5,\"\",'2011 Survey responses'!DL172)","v":2},{"$f":"IF('2011 Survey responses'!DU172=4,4,IF('2011 Survey responses'!DU172=5,4,\"\"))","v":""},{"$f":"IF('2011 Survey responses'!DV172=4,3,IF('2011 Survey responses'!DV172=5,3,\"\"))","v":""},"",{"$f":"IF(CQ172=2,CQ172,IF(CO172=4,CO172,IF(CP172=3,CP172,IF('2011 Survey responses'!GT172=1,1,\"\"))))","v":1},{"$f":"IF('2011 Survey responses'!DO172<0.5,\"\",'2011 Survey responses'!DO172)","v":4},{"$f":"IF('2011 Survey responses'!DP172<0.5,\"\",'2011 Survey responses'!DP172)","v":5},{"$f":"IF('2011 Survey responses'!DQ172<0.5,\"\",'2011 Survey responses'!DQ172)","v":3},{"$f":"IF('2011 Survey responses'!DR172<0.5,\"\",'2011 Survey responses'!DR172)","v":4},{"$f":"IF('2011 Survey responses'!DS172<0.5,\"\",'2011 Survey responses'!DS172)","v":3},{"$f":"IF('2011 Survey responses'!DT172<0.5,\"\",'2011 Survey responses'!DT172)","v":3},{"$f":"IF('2011 Survey responses'!DU172<0.5,\"\",'2011 Survey responses'!DU172)","v":2},{"$f":"IF('2011 Survey responses'!DV172<0.5,\"\",'2011 Survey responses'!DV172)","v":2},{"$f":"IF('2011 Survey responses'!DW172<0.5,\"\",'2011 Survey responses'!DW172)","v":4},{"$f":"IF('2011 Survey responses'!DX172<0.5,\"\",'2011 Survey responses'!DX172)","v":5},{"$f":"IF('2011 Survey responses'!DY172<0.5,\"\",'2011 Survey responses'!DY172)","v":4},{"$f":"IF('2011 Survey responses'!DZ172<0.5,\"\",'2011 Survey responses'!DZ172)","v":5},{"$f":"IF('2011 Survey responses'!EA172<0.5,\"\",'2011 Survey responses'!EA172)","v":3},{"$f":"IF('2011 Survey responses'!EB172<0.5,\"\",'2011 Survey responses'!EB172)","v":4},{"$f":"IF('2011 Survey responses'!EC172<0.5,\"\",'2011 Survey responses'!EC172)","v":4},{"$f":"IF('2011 Survey responses'!ED172<0.5,\"\",'2011 Survey responses'!ED172)","v":4},{"$f":"IF('2011 Survey responses'!EE172<0.5,\"\",'2011 Survey responses'!EE172)","v":3},{"$f":"IF('2011 Survey responses'!EF172<0.5,\"\",'2011 Survey responses'!EF172)","v":4},{"$f":"IF('2011 Survey responses'!EG172<0.5,\"\",'2011 Survey responses'!EG172)","v":3},{"$f":"IF('2011 Survey responses'!EH172<0.5,\"\",'2011 Survey responses'!EH172)","v":3},{"$f":"IF('2011 Survey responses'!EI172<0.5,\"\",'2011 Survey responses'!EI172)","v":4},{"$f":"IF('2011 Survey responses'!EJ172<0.5,\"\",'2011 Survey responses'!EJ172)","v":4},{"$f":"IF('2011 Survey responses'!EK172<0.5,\"\",'2011 Survey responses'!EK172)","v":4},{"$f":"IF('2011 Survey responses'!EL172<0.5,\"\",'2011 Survey responses'!EL172)","v":4},{"$f":"IF('2011 Survey responses'!EM172<0.5,\"\",'2011 Survey responses'!EM172)","v":5},{"$f":"IF('2011 Survey responses'!EN172<0.5,\"\",'2011 Survey responses'!EN172)","v":4},{"$f":"IF('2011 Survey responses'!EO172<0.5,\"\",'2011 Survey responses'!EO172)","v":4},{"$f":"IF('2011 Survey responses'!EP172<0.5,\"\",'2011 Survey responses'!EP172)","v":4},{"$f":"IF(('2011 Survey responses'!EW172+'2011 Survey responses'!EX172)>=2,AVERAGE('2011 Survey responses'!EW172,'2011 Survey responses'!EY172),\"\")","v":4},{"$f":"IF('2011 Survey responses'!EX172<0.5,\"\",'2011 Survey responses'!EX172)","v":4},{"$f":"IF('2011 Survey responses'!EZ172<0.5,\"\",'2011 Survey responses'!EZ172)","v":5},{"$f":"IF('2011 Survey responses'!FB172<0.5,\"\",'2011 Survey responses'!FB172)","v":3},{"$f":"IF('2011 Survey responses'!FD172<0.5,\"\",'2011 Survey responses'!FD172)","v":4},{"$f":"IF('2011 Survey responses'!FC172<0.5,\"\",'2011 Survey responses'!FC172)","v":3},{"$f":"IF(('2011 Survey responses'!EM172+'2011 Survey responses'!EN172)>=2,AVERAGE('2011 Survey responses'!EM172,'2011 Survey responses'!EN172),\"\")","v":4.5},{"$f":"IF('2011 Survey responses'!ES172<0.5,\"\",'2011 Survey responses'!ES172)","v":5},{"$f":"IF(('2011 Survey responses'!ET172+'2011 Survey responses'!EU172)>=2,AVERAGE('2011 Survey responses'!ET172,'2011 Survey responses'!EU172),\"\")","v":4.5},{"$f":"IF('2011 Survey responses'!EV172<0.5,\"\",'2011 Survey responses'!EV172)","v":5},{"$f":"IF('2011 Survey responses'!FA172<0.5,\"\",'2011 Survey responses'!FA172)","v":5},{"$f":"IF('2011 Survey responses'!ER172<0.5,\"\",'2011 Survey responses'!ER172)","v":3},{"$f":"IF(('2011 Survey responses'!EO172+'2011 Survey responses'!EP172)>=2,AVERAGE('2011 Survey responses'!EO172,'2011 Survey responses'!EP172),\"\")","v":4},{"$f":"IF('2011 Survey responses'!EQ172<0.5,\"\",'2011 Survey responses'!EQ172)","v":3},{"$f":"IF('2011 Survey responses'!ET172<0.5,\"\",'2011 Survey responses'!ET172)","v":5},{"$f":"IF('2011 Survey responses'!EU172<0.5,\"\",'2011 Survey responses'!EU172)","v":4},{"$f":"IF('2011 Survey responses'!EW172<0.5,\"\",'2011 Survey responses'!EW172)","v":4},{"$f":"IF('2011 Survey responses'!EY172<0.5,\"\",'2011 Survey responses'!EY172)","v":4},{"$f":"IF('2011 Survey responses'!FU172<0.5,\"\",'2011 Survey responses'!FU172)","v":4},{"$f":"IF(('2011 Survey responses'!FL172+'2011 Survey responses'!FM172)>=2,AVERAGE('2011 Survey responses'!FL172,'2011 Survey responses'!FM172),\"\")","v":4},{"$f":"IF(('2011 Survey responses'!FO172+'2011 Survey responses'!FQ172)>=2,AVERAGE('2011 Survey responses'!FO172,'2011 Survey responses'!FQ172),\"\")","v":3},{"$f":"IF('2011 Survey responses'!FJ172<0.5,\"\",'2011 Survey responses'!FJ172)","v":3},{"$f":"IF('2011 Survey responses'!FT172<0.5,\"\",'2011 Survey responses'!FT172)","v":3},{"$f":"IF('2011 Survey responses'!FR172<0.5,\"\",'2011 Survey responses'!FR172)","v":3},{"$f":"IF('2011 Survey responses'!FK172<0.5,\"\",'2011 Survey responses'!FK172)","v":3},{"$f":"IF('2011 Survey responses'!FP172<0.5,\"\",'2011 Survey responses'!FP172)","v":3},{"$f":"IF('2011 Survey responses'!FN172<0.5,\"\",'2011 Survey responses'!FN172)","v":4},{"$f":"IF(('2011 Survey responses'!FE172+'2011 Survey responses'!FF172)>=2,AVERAGE('2011 Survey responses'!FE172,'2011 Survey responses'!FF172),\"\")","v":4},{"$f":"IF('2011 Survey responses'!FS172<0.5,\"\",'2011 Survey responses'!FS172)","v":4},{"$f":"IF('2011 Survey responses'!FV172<0.5,\"\",'2011 Survey responses'!FV172)","v":4},{"$f":"IF(('2011 Survey responses'!FG172+'2011 Survey responses'!FH172)>=2,AVERAGE('2011 Survey responses'!FG172,'2011 Survey responses'!FH172),\"\")","v":3},{"$f":"IF('2011 Survey responses'!FI172<0.5,\"\",'2011 Survey responses'!FI172)","v":3},{"$f":"IF('2011 Survey responses'!FE172<0.5,\"\",'2011 Survey responses'!FE172)","v":4},{"$f":"IF('2011 Survey responses'!FF172<0.5,\"\",'2011 Survey responses'!FF172)","v":4},{"$f":"IF('2011 Survey responses'!FG172<0.5,\"\",'2011 Survey responses'!FG172)","v":3},{"$f":"IF('2011 Survey responses'!FH172<0.5,\"\",'2011 Survey responses'!FH172)","v":3},{"$f":"IF('2011 Survey responses'!FL172<0.5,\"\",'2011 Survey responses'!FL172)","v":4},{"$f":"IF('2011 Survey responses'!FM172<0.5,\"\",'2011 Survey responses'!FM172)","v":4},{"$f":"IF('2011 Survey responses'!FO172<0.5,\"\",'2011 Survey responses'!FO172)","v":3},{"$f":"IF('2011 Survey responses'!FQ172<0.5,\"\",'2011 Survey responses'!FQ172)","v":3}]
["Timor-Leste",{"$f":"IF(SUM(F173)<1,\"\",AVERAGEIF('2011 Survey responses'!B173:CP173,\">1\"))","v":2.5283018867924527},{"$f":"IF(SUM(F173)<1,\"\",AVERAGEIF('2011 Survey responses'!B173:AO173,\">1\"))","v":2.1578947368421053},{"$f":"IF(SUM(F173)<1,\"\",AVERAGEIF('2011 Survey responses'!B173:BV173,\">1\"))","v":2.2432432432432434},{"$f":"IF(SUM(F173)<1,\"\",AVERAGEIF('2011 Survey responses'!V173:BV173,\">1\"))","v":2.3076923076923075},{"$f":"IF(SUM('2011 Survey responses'!B173:U173)<1,\"\",(AVERAGEIFS('2011 Survey responses'!B173:U173,'2011 Survey responses'!B173:U173,\">1\")))","v":2.0909090909090908},{"$f":"IF(SUM('2011 Survey responses'!B173:H173)<1,\"\",(AVERAGEIFS('2011 Survey responses'!B173:H173,'2011 Survey responses'!B173:H173,\">1\")))","v":2},{"$f":"IF(SUM('2011 Survey responses'!I173:S173)<1,\"\",(AVERAGEIFS('2011 Survey responses'!I173:S173,'2011 Survey responses'!I173:S173,\">1\")))","v":2.1428571428571428},{"$f":"IF(SUM('2011 Survey responses'!T173:U173)<2.1,\"\",(AVERAGEIFS('2011 Survey responses'!T173:U173,'2011 Survey responses'!T173:U173,\">1\")))","v":2},{"$f":"IF(SUM('2011 Survey responses'!B173:C173)<2.1,\"\",((SUMIF('2011 Survey responses'!B173:C173,\">1\")+SUMIF('2011 Survey responses'!F173,\">1\"))/(COUNTIF('2011 Survey responses'!B173:C173,\">1\")+COUNTIF('2011 Survey responses'!F173,\">1\"))))","v":2},{"$f":"IF(SUM('2011 Survey responses'!D173:E173)<2.1,\"\",(AVERAGEIFS('2011 Survey responses'!D173:E173,'2011 Survey responses'!D173:E173,\">1\")))","v":2},{"$f":"IF(('2011 Survey responses'!B173+'2011 Survey responses'!D173)<2.1,\"\",((SUMIF('2011 Survey responses'!B173,\">1\")+SUMIF('2011 Survey responses'!D173,\">1\")+SUMIF('2011 Survey responses'!F173,\">1\")+SUMIF('2011 Survey responses'!K173,\">1\"))/(COUNTIF('2011 Survey responses'!B173,\">1\")+COUNTIF('2011 Survey responses'!D173,\">1\")+COUNTIF('2011 Survey responses'!F173,\">1\")+COUNTIF('2011 Survey responses'!K173,\">1\"))))","v":2},{"$f":"IF(SUM('2011 Survey responses'!G173:H173)<2.1,\"\",(AVERAGEIFS('2011 Survey responses'!G173:H173,'2011 Survey responses'!G173:H173,\">1\")))","v":""},{"$f":"IF(SUM('2011 Survey responses'!F173:G173)<1.5,\"\",MAX('2011 Survey responses'!F173,'2011 Survey responses'!G173))","v":2},{"$f":"IF(SUM('2011 Survey responses'!G173:H173)<1,\"\",MAX('2011 Survey responses'!G173,'2011 Survey responses'!H173))","v":1},{"$f":"IF(SUM('2011 Survey responses'!I173:L173)<4.1,\"\",(AVERAGEIFS('2011 Survey responses'!I173:L173,'2011 Survey responses'!I173:L173,\">1\")))","v":2},{"$f":"IF(SUM('2011 Survey responses'!M173:S173)<4.1,\"\",(AVERAGEIFS('2011 Survey responses'!M173:S173,'2011 Survey responses'!M173:S173,\">1\")))","v":2.2000000000000002},{"$f":"IF(SUM('2011 Survey responses'!T173:U173)<2.1,\"\",(AVERAGEIFS('2011 Survey responses'!T173:U173,'2011 Survey responses'!T173:U173,\">1\")))","v":2},{"$f":"IF(SUM('2011 Survey responses'!V173:AO173)<1,\"\",(AVERAGEIFS('2011 Survey responses'!V173:AO173,'2011 Survey responses'!V173:AO173,\">1\")))","v":2.25},{"$f":"IF(SUM('2011 Survey responses'!V173:AA173)<1,\"\",(AVERAGEIFS('2011 Survey responses'!V173:AA173,'2011 Survey responses'!V173:AA173,\">1\")))","v":2},{"$f":"IF(SUM('2011 Survey responses'!AB173:AH173)<1,\"\",(AVERAGEIFS('2011 Survey responses'!AB173:AH173,'2011 Survey responses'!AB173:AH173,\">1\")))","v":2.6666666666666665},{"$f":"IF(SUM('2011 Survey responses'!AI173:AO173)<1,\"\",(AVERAGEIFS('2011 Survey responses'!AI173:AO173,'2011 Survey responses'!AI173:AO173,\">1\")))","v":2},{"$f":"IF(('2011 Survey responses'!Y173+'2011 Survey responses'!AI173+'2011 Survey responses'!AK173)<3.1,\"\",((SUMIF('2011 Survey responses'!Y173,\">1\")+SUMIF('2011 Survey responses'!AI173,\">1\")+SUMIF('2011 Survey responses'!AK173,\">1\")+SUMIF('2011 Survey responses'!AM173,\">1\"))/(COUNTIF('2011 Survey responses'!Y173,\">1\")+COUNTIF('2011 Survey responses'!AI173,\">1\")+COUNTIF('2011 Survey responses'!AK173,\">1\")+COUNTIF('2011 Survey responses'!AM173,\">1\"))))","v":2},{"$f":"IF(('2011 Survey responses'!W173)<1.1,\"\",('2011 Survey responses'!W173))","v":2},{"$f":"IF(('2011 Survey responses'!Y173)<1.1,\"\",('2011 Survey responses'!Y173))","v":""},{"$f":"IF(('2011 Survey responses'!Z173)<1.1,\"\",('2011 Survey responses'!Z173))","v":2},{"$f":"IF(('2011 Survey responses'!V173+'2011 Survey responses'!X173+'2011 Survey responses'!AA173)<3.1,\"\",((SUMIF('2011 Survey responses'!V173,\">1\")+SUMIF('2011 Survey responses'!X173,\">1\")+SUMIF('2011 Survey responses'!AA173,\">1\"))/(COUNTIF('2011 Survey responses'!V173,\">1\")+COUNTIF('2011 Survey responses'!X173,\">1\")+COUNTIF('2011 Survey responses'!AA173,\">1\"))))","v":2},{"$f":"IF(('2011 Survey responses'!V173+'2011 Survey responses'!Y173+'2011 Survey responses'!AA173)<3.1,\"\",((SUMIF('2011 Survey responses'!V173,\">1\")+SUMIF('2011 Survey responses'!Y173,\">1\")+SUMIF('2011 Survey responses'!AA173,\">1\"))/(COUNTIF('2011 Survey responses'!V173,\">1\")+COUNTIF('2011 Survey responses'!Y173,\">1\")+COUNTIF('2011 Survey responses'!AA173,\">1\"))))","v":2},{"$f":"IF(SUM('2011 Survey responses'!AB173:AH173)<1,\"\",(AVERAGEIFS('2011 Survey responses'!AB173:AH173,'2011 Survey responses'!AB173:AH173,\">1\")))","v":2.6666666666666665},{"$f":"IF(SUM('2011 Survey responses'!AI173:AO173)<7.1,\"\",(AVERAGEIFS('2011 Survey responses'!AI173:AO173,'2011 Survey responses'!AI173:AO173,\">1\")))","v":2},{"$f":"IF(('2011 Survey responses'!AH173)<1.1,\"\",('2011 Survey responses'!AH173))","v":4},{"$f":"IF(SUM('2011 Survey responses'!AP173:BV173)<1,\"\",(AVERAGEIFS('2011 Survey responses'!AP173:BV173,'2011 Survey responses'!AP173:BV173,\">1\")))","v":2.3333333333333335},{"$f":"IF(SUM('2011 Survey responses'!AP173:AS173)<4.1,\"\",(AVERAGEIFS('2011 Survey responses'!AP173:AS173,'2011 Survey responses'!AP173:AS173,\">1\")))","v":2.6666666666666665},{"$f":"IF(SUM('2011 Survey responses'!AT173:BF173)<1,\"\",(AVERAGEIFS('2011 Survey responses'!AT173:BF173,'2011 Survey responses'!AT173:BF173,\">1\")))","v":2},{"$f":"IF(SUM('2011 Survey responses'!BG173:BO173)<1,\"\",(AVERAGEIFS('2011 Survey responses'!BG173:BO173,'2011 Survey responses'!BG173:BO173,\">1\")))","v":2.6666666666666665},{"$f":"IF(SUM('2011 Survey responses'!BP173:BS173)<1,\"\",(AVERAGEIFS('2011 Survey responses'!BP173:BS173,'2011 Survey responses'!BP173:BS173,\">1\")))","v":2},{"$f":"IF(SUM('2011 Survey responses'!BT173:BV173)<3.1,\"\",(AVERAGEIFS('2011 Survey responses'!BT173:BV173,'2011 Survey responses'!BT173:BV173,\">1\")))","v":""},{"$f":"IF(('2011 Survey responses'!AQ173+'2011 Survey responses'!AR173+'2011 Survey responses'!BG173)<3.1,\"\",((SUMIF('2011 Survey responses'!AQ173,\">1\")+SUMIF('2011 Survey responses'!AR173,\">1\")+SUMIF('2011 Survey responses'!BG173,\">1\"))/(COUNTIF('2011 Survey responses'!AQ173,\">1\")+COUNTIF('2011 Survey responses'!AR173,\">1\")+COUNTIF('2011 Survey responses'!BG173,\">1\"))))","v":2.6666666666666665},{"$f":"IF(SUM('2011 Survey responses'!AP173:AS173)<4.1,\"\",(AVERAGEIFS('2011 Survey responses'!AP173:AS173,'2011 Survey responses'!AP173:AS173,\">1\")))","v":2.6666666666666665},{"$f":"IF(('2011 Survey responses'!AU173+'2011 Survey responses'!AX173+'2011 Survey responses'!BA173+'2011 Survey responses'!BC173+'2011 Survey responses'!BD173)<5.1,\"\",(SUMIF('2011 Survey responses'!AU173,\">1\")+SUMIF('2011 Survey responses'!AX173,\">1\")+SUMIF('2011 Survey responses'!BA173,\">1\")+SUMIF('2011 Survey responses'!BC173,\">1\")+SUMIF('2011 Survey responses'!BD173,\">1\"))/(COUNTIF('2011 Survey responses'!AU173,\">1\")+COUNTIF('2011 Survey responses'!AX173,\">1\")+COUNTIF('2011 Survey responses'!BA173,\">1\")+COUNTIF('2011 Survey responses'!BC173,\">1\")+COUNTIF('2011 Survey responses'!BD173,\">1\")))","v":2},{"$f":"IF(('2011 Survey responses'!AT173)<1.1,\"\",('2011 Survey responses'!AT173))","v":2},{"$f":"IF(SUM('2011 Survey responses'!AV173:AW173)<2.1,\"\",(AVERAGEIFS('2011 Survey responses'!AV173:AW173,'2011 Survey responses'!AV173:AW173,\">1\")))","v":2},{"$f":"IF(('2011 Survey responses'!AW173+'2011 Survey responses'!AY173)<2.1,\"\",(SUMIF('2011 Survey responses'!AW173,\">1\")+SUMIF('2011 Survey responses'!AY173,\">1\"))/(COUNTIF('2011 Survey responses'!AW173,\">1\")+COUNTIF('2011 Survey responses'!AY173,\">1\")))","v":2},{"$f":"IF(('2011 Survey responses'!AZ173)<1.1,\"\",('2011 Survey responses'!AZ173))","v":""},1,1,1,1,{"$f":"IF(('2011 Survey responses'!BE173)<1.1,\"\",('2011 Survey responses'!BE173))","v":2},{"$f":"IF(('2011 Survey responses'!AY173+'2011 Survey responses'!BB173+'2011 Survey responses'!BF173)<3.1,\"\",(SUMIF('2011 Survey responses'!AY173,\">1\")+SUMIF('2011 Survey responses'!BB173,\">1\")+SUMIF('2011 Survey responses'!BF173,\">1\"))/(COUNTIF('2011 Survey responses'!AY173,\">1\")+COUNTIF('2011 Survey responses'!BB173,\">1\")+COUNTIF('2011 Survey responses'!BF173,\">1\")))","v":2},2.333333333333333,{"$f":"IF(SUM('2011 Survey responses'!BT173:BV173)<3.1,\"\",(AVERAGEIFS('2011 Survey responses'!BT173:BV173,'2011 Survey responses'!BT173:BV173,\">1\")))","v":""},{"$f":"IF(SUM('2011 Survey responses'!BW173:CP173)<1,\"\",(AVERAGEIFS('2011 Survey responses'!BW173:CP173,'2011 Survey responses'!BW173:CP173,\">1\")))","v":3.1875},{"$f":"IF(SUM('2011 Survey responses'!BW173:CF173)<1,\"\",(AVERAGEIFS('2011 Survey responses'!BW173:CF173,'2011 Survey responses'!BW173:CF173,\">1\")))","v":3.125},{"$f":"IF(SUM('2011 Survey responses'!CG173:CP173)<1,\"\",(AVERAGEIFS('2011 Survey responses'!CG173:CP173,'2011 Survey responses'!CG173:CP173,\">1\")))","v":3.25},{"$f":"IF(SUM('2011 Survey responses'!BX173:CF173)<1,\"\",(AVERAGEIFS('2011 Survey responses'!BX173:CF173,'2011 Survey responses'!BX173:CF173,\">1\")))","v":3.2857142857142856},{"$f":"IF(SUM('2011 Survey responses'!CH173:CP173)<1,\"\",(AVERAGEIFS('2011 Survey responses'!CH173:CP173,'2011 Survey responses'!CH173:CP173,\">1\")))","v":3.4285714285714284},{"$f":"IF(SUM('2011 Survey responses'!BW173:CP173)<1,\"\",(AVERAGEIFS('2011 Survey responses'!BW173:CP173,'2011 Survey responses'!BW173:CP173,\">1\")))","v":3.1875},{"$f":"IF(('2011 Survey responses'!BW173+'2011 Survey responses'!CG173)<2.1,\"\",(SUMIF('2011 Survey responses'!BW173,\">1\")+SUMIF('2011 Survey responses'!CG173,\">1\"))/(COUNTIF('2011 Survey responses'!BW173,\">1\")+COUNTIF('2011 Survey responses'!CG173,\">1\")))","v":2},{"$f":"IF(('2011 Survey responses'!BX173+'2011 Survey responses'!CH173)<2.1,\"\",(SUMIF('2011 Survey responses'!BX173,\">1\")+SUMIF('2011 Survey responses'!CH173,\">1\"))/(COUNTIF('2011 Survey responses'!BX173,\">1\")+COUNTIF('2011 Survey responses'!CH173,\">1\")))","v":3.5},{"$f":"IF(('2011 Survey responses'!BY173+'2011 Survey responses'!CI173)<2.1,\"\",(SUMIF('2011 Survey responses'!BY173,\">1\")+SUMIF('2011 Survey responses'!CI173,\">1\"))/(COUNTIF('2011 Survey responses'!BY173,\">1\")+COUNTIF('2011 Survey responses'!CI173,\">1\")))","v":5},{"$f":"IF('2011 Survey responses'!CQ173<0.5,\"\",'2011 Survey responses'!CQ173)","v":4},{"$f":"IF('2011 Survey responses'!CR173<0.5,\"\",'2011 Survey responses'!CR173)","v":4},{"$f":"IF('2011 Survey responses'!CS173<0.5,\"\",'2011 Survey responses'!CS173)","v":2},{"$f":"IF('2011 Survey responses'!CT173<0.5,\"\",'2011 Survey responses'!CT173)","v":2},{"$f":"IF('2011 Survey responses'!CU173<0.5,\"\",'2011 Survey responses'!CU173)","v":2},{"$f":"IF('2011 Survey responses'!CV173<0.5,\"\",'2011 Survey responses'!CV173)","v":2},{"$f":"IF(SUM('2011 Survey responses'!CW173:DL173)<1,\"\",(AVERAGE('2011 Survey responses'!CW173:DL173)))","v":1.3125},{"$f":"IF(SUM('2011 Survey responses'!CW173:CZ173)<1,\"\",(AVERAGE('2011 Survey responses'!CW173:CZ173)))","v":1},{"$f":"IF(SUM('2011 Survey responses'!DA173:DD173)<1,\"\",(AVERAGE('2011 Survey responses'!DA173:DD173)))","v":1.25},{"$f":"IF(SUM('2011 Survey responses'!DE173:DH173)<1,\"\",(AVERAGE('2011 Survey responses'!DE173:DH173)))","v":1},{"$f":"IF(SUM('2011 Survey responses'!DI173:DL173)<1,\"\",(AVERAGE('2011 Survey responses'!DI173:DL173)))","v":2},{"$f":"IF(('2011 Survey responses'!CW173+'2011 Survey responses'!DA173+'2011 Survey responses'!DE173+'2011 Survey responses'!DI173)<1,\"\",AVERAGE('2011 Survey responses'!CW173,'2011 Survey responses'!DA173,'2011 Survey responses'!DE173,'2011 Survey responses'!DI173))","v":1.5},{"$f":"IF(('2011 Survey responses'!CX173+'2011 Survey responses'!DB173+'2011 Survey responses'!DF173+'2011 Survey responses'!DJ173)<1,\"\",AVERAGE('2011 Survey responses'!CX173,'2011 Survey responses'!DB173,'2011 Survey responses'!DF173,'2011 Survey responses'!DJ173))","v":1.25},{"$f":"IF(('2011 Survey responses'!CY173+'2011 Survey responses'!DC173+'2011 Survey responses'!DG173+'2011 Survey responses'!DK173)<1,\"\",AVERAGE('2011 Survey responses'!CY173,'2011 Survey responses'!DC173,'2011 Survey responses'!DG173,'2011 Survey responses'!DK173))","v":1},{"$f":"IF(('2011 Survey responses'!CZ173+'2011 Survey responses'!DD173+'2011 Survey responses'!DH173+'2011 Survey responses'!DL173)<1,\"\",AVERAGE('2011 Survey responses'!CZ173,'2011 Survey responses'!DD173,'2011 Survey responses'!DH173,'2011 Survey responses'!DL173))","v":1.5},{"$f":"IF('2011 Survey responses'!CW173<0.5,\"\",'2011 Survey responses'!CW173)","v":1},{"$f":"IF('2011 Survey responses'!CX173<0.5,\"\",'2011 Survey responses'!CX173)","v":1},{"$f":"IF('2011 Survey responses'!CY173<0.5,\"\",'2011 Survey responses'!CY173)","v":1},{"$f":"IF('2011 Survey responses'!CZ173<0.5,\"\",'2011 Survey responses'!CZ173)","v":1},{"$f":"IF('2011 Survey responses'!DA173<0.5,\"\",'2011 Survey responses'!DA173)","v":1},{"$f":"IF('2011 Survey responses'!DB173<0.5,\"\",'2011 Survey responses'!DB173)","v":1},{"$f":"IF('2011 Survey responses'!DC173<0.5,\"\",'2011 Survey responses'!DC173)","v":1},{"$f":"IF('2011 Survey responses'!DD173<0.5,\"\",'2011 Survey responses'!DD173)","v":2},{"$f":"IF('2011 Survey responses'!DE173<0.5,\"\",'2011 Survey responses'!DE173)","v":1},{"$f":"IF('2011 Survey responses'!DF173<0.5,\"\",'2011 Survey responses'!DF173)","v":1},{"$f":"IF('2011 Survey responses'!DG173<0.5,\"\",'2011 Survey responses'!DG173)","v":1},{"$f":"IF('2011 Survey responses'!DH173<0.5,\"\",'2011 Survey responses'!DH173)","v":1},{"$f":"IF('2011 Survey responses'!DI173<0.5,\"\",'2011 Survey responses'!DI173)","v":3},{"$f":"IF('2011 Survey responses'!DJ173<0.5,\"\",'2011 Survey responses'!DJ173)","v":2},{"$f":"IF('2011 Survey responses'!DK173<0.5,\"\",'2011 Survey responses'!DK173)","v":1},{"$f":"IF('2011 Survey responses'!DL173<0.5,\"\",'2011 Survey responses'!DL173)","v":2},{"$f":"IF('2011 Survey responses'!DU173=4,4,IF('2011 Survey responses'!DU173=5,4,\"\"))","v":4},{"$f":"IF('2011 Survey responses'!DV173=4,3,IF('2011 Survey responses'!DV173=5,3,\"\"))","v":3},2,{"$f":"IF(CQ173=2,CQ173,IF(CO173=4,CO173,IF(CP173=3,CP173,IF('2011 Survey responses'!GT173=1,1,\"\"))))","v":2},{"$f":"IF('2011 Survey responses'!DO173<0.5,\"\",'2011 Survey responses'!DO173)","v":2},{"$f":"IF('2011 Survey responses'!DP173<0.5,\"\",'2011 Survey responses'!DP173)","v":4},{"$f":"IF('2011 Survey responses'!DQ173<0.5,\"\",'2011 Survey responses'!DQ173)","v":1},{"$f":"IF('2011 Survey responses'!DR173<0.5,\"\",'2011 Survey responses'!DR173)","v":2},{"$f":"IF('2011 Survey responses'!DS173<0.5,\"\",'2011 Survey responses'!DS173)","v":2},{"$f":"IF('2011 Survey responses'!DT173<0.5,\"\",'2011 Survey responses'!DT173)","v":3},{"$f":"IF('2011 Survey responses'!DU173<0.5,\"\",'2011 Survey responses'!DU173)","v":4},{"$f":"IF('2011 Survey responses'!DV173<0.5,\"\",'2011 Survey responses'!DV173)","v":5},{"$f":"IF('2011 Survey responses'!DW173<0.5,\"\",'2011 Survey responses'!DW173)","v":4},{"$f":"IF('2011 Survey responses'!DX173<0.5,\"\",'2011 Survey responses'!DX173)","v":3},{"$f":"IF('2011 Survey responses'!DY173<0.5,\"\",'2011 Survey responses'!DY173)","v":2},{"$f":"IF('2011 Survey responses'!DZ173<0.5,\"\",'2011 Survey responses'!DZ173)","v":2},{"$f":"IF('2011 Survey responses'!EA173<0.5,\"\",'2011 Survey responses'!EA173)","v":3},{"$f":"IF('2011 Survey responses'!EB173<0.5,\"\",'2011 Survey responses'!EB173)","v":2},{"$f":"IF('2011 Survey responses'!EC173<0.5,\"\",'2011 Survey responses'!EC173)","v":3},{"$f":"IF('2011 Survey responses'!ED173<0.5,\"\",'2011 Survey responses'!ED173)","v":3},{"$f":"IF('2011 Survey responses'!EE173<0.5,\"\",'2011 Survey responses'!EE173)","v":3},{"$f":"IF('2011 Survey responses'!EF173<0.5,\"\",'2011 Survey responses'!EF173)","v":4},{"$f":"IF('2011 Survey responses'!EG173<0.5,\"\",'2011 Survey responses'!EG173)","v":3},{"$f":"IF('2011 Survey responses'!EH173<0.5,\"\",'2011 Survey responses'!EH173)","v":4},{"$f":"IF('2011 Survey responses'!EI173<0.5,\"\",'2011 Survey responses'!EI173)","v":3},{"$f":"IF('2011 Survey responses'!EJ173<0.5,\"\",'2011 Survey responses'!EJ173)","v":3},{"$f":"IF('2011 Survey responses'!EK173<0.5,\"\",'2011 Survey responses'!EK173)","v":3},{"$f":"IF('2011 Survey responses'!EL173<0.5,\"\",'2011 Survey responses'!EL173)","v":3},{"$f":"IF('2011 Survey responses'!EM173<0.5,\"\",'2011 Survey responses'!EM173)","v":4},{"$f":"IF('2011 Survey responses'!EN173<0.5,\"\",'2011 Survey responses'!EN173)","v":2},{"$f":"IF('2011 Survey responses'!EO173<0.5,\"\",'2011 Survey responses'!EO173)","v":3},{"$f":"IF('2011 Survey responses'!EP173<0.5,\"\",'2011 Survey responses'!EP173)","v":2},{"$f":"IF(('2011 Survey responses'!EW173+'2011 Survey responses'!EX173)>=2,AVERAGE('2011 Survey responses'!EW173,'2011 Survey responses'!EY173),\"\")","v":4},{"$f":"IF('2011 Survey responses'!EX173<0.5,\"\",'2011 Survey responses'!EX173)","v":2},{"$f":"IF('2011 Survey responses'!EZ173<0.5,\"\",'2011 Survey responses'!EZ173)","v":2},{"$f":"IF('2011 Survey responses'!FB173<0.5,\"\",'2011 Survey responses'!FB173)","v":3},{"$f":"IF('2011 Survey responses'!FD173<0.5,\"\",'2011 Survey responses'!FD173)","v":1},{"$f":"IF('2011 Survey responses'!FC173<0.5,\"\",'2011 Survey responses'!FC173)","v":4},{"$f":"IF(('2011 Survey responses'!EM173+'2011 Survey responses'!EN173)>=2,AVERAGE('2011 Survey responses'!EM173,'2011 Survey responses'!EN173),\"\")","v":3},{"$f":"IF('2011 Survey responses'!ES173<0.5,\"\",'2011 Survey responses'!ES173)","v":3},{"$f":"IF(('2011 Survey responses'!ET173+'2011 Survey responses'!EU173)>=2,AVERAGE('2011 Survey responses'!ET173,'2011 Survey responses'!EU173),\"\")","v":2},{"$f":"IF('2011 Survey responses'!EV173<0.5,\"\",'2011 Survey responses'!EV173)","v":4},{"$f":"IF('2011 Survey responses'!FA173<0.5,\"\",'2011 Survey responses'!FA173)","v":2},{"$f":"IF('2011 Survey responses'!ER173<0.5,\"\",'2011 Survey responses'!ER173)","v":3},{"$f":"IF(('2011 Survey responses'!EO173+'2011 Survey responses'!EP173)>=2,AVERAGE('2011 Survey responses'!EO173,'2011 Survey responses'!EP173),\"\")","v":2.5},{"$f":"IF('2011 Survey responses'!EQ173<0.5,\"\",'2011 Survey responses'!EQ173)","v":1},{"$f":"IF('2011 Survey responses'!ET173<0.5,\"\",'2011 Survey responses'!ET173)","v":3},{"$f":"IF('2011 Survey responses'!EU173<0.5,\"\",'2011 Survey responses'!EU173)","v":1},{"$f":"IF('2011 Survey responses'!EW173<0.5,\"\",'2011 Survey responses'!EW173)","v":4},{"$f":"IF('2011 Survey responses'!EY173<0.5,\"\",'2011 Survey responses'!EY173)","v":4},{"$f":"IF('2011 Survey responses'!FU173<0.5,\"\",'2011 Survey responses'!FU173)","v":2},{"$f":"IF(('2011 Survey responses'!FL173+'2011 Survey responses'!FM173)>=2,AVERAGE('2011 Survey responses'!FL173,'2011 Survey responses'!FM173),\"\")","v":2.5},{"$f":"IF(('2011 Survey responses'!FO173+'2011 Survey responses'!FQ173)>=2,AVERAGE('2011 Survey responses'!FO173,'2011 Survey responses'!FQ173),\"\")","v":1.5},{"$f":"IF('2011 Survey responses'!FJ173<0.5,\"\",'2011 Survey responses'!FJ173)","v":2},{"$f":"IF('2011 Survey responses'!FT173<0.5,\"\",'2011 Survey responses'!FT173)","v":2},{"$f":"IF('2011 Survey responses'!FR173<0.5,\"\",'2011 Survey responses'!FR173)","v":2},{"$f":"IF('2011 Survey responses'!FK173<0.5,\"\",'2011 Survey responses'!FK173)","v":2},{"$f":"IF('2011 Survey responses'!FP173<0.5,\"\",'2011 Survey responses'!FP173)","v":2},{"$f":"IF('2011 Survey responses'!FN173<0.5,\"\",'2011 Survey responses'!FN173)","v":2},{"$f":"IF(('2011 Survey responses'!FE173+'2011 Survey responses'!FF173)>=2,AVERAGE('2011 Survey responses'!FE173,'2011 Survey responses'!FF173),\"\")","v":2.5},{"$f":"IF('2011 Survey responses'!FS173<0.5,\"\",'2011 Survey responses'!FS173)","v":3},{"$f":"IF('2011 Survey responses'!FV173<0.5,\"\",'2011 Survey responses'!FV173)","v":3},{"$f":"IF(('2011 Survey responses'!FG173+'2011 Survey responses'!FH173)>=2,AVERAGE('2011 Survey responses'!FG173,'2011 Survey responses'!FH173),\"\")","v":2.5},{"$f":"IF('2011 Survey responses'!FI173<0.5,\"\",'2011 Survey responses'!FI173)","v":3},{"$f":"IF('2011 Survey responses'!FE173<0.5,\"\",'2011 Survey responses'!FE173)","v":2},{"$f":"IF('2011 Survey responses'!FF173<0.5,\"\",'2011 Survey responses'!FF173)","v":3},{"$f":"IF('2011 Survey responses'!FG173<0.5,\"\",'2011 Survey responses'!FG173)","v":2},{"$f":"IF('2011 Survey responses'!FH173<0.5,\"\",'2011 Survey responses'!FH173)","v":3},{"$f":"IF('2011 Survey responses'!FL173<0.5,\"\",'2011 Survey responses'!FL173)","v":2},{"$f":"IF('2011 Survey responses'!FM173<0.5,\"\",'2011 Survey responses'!FM173)","v":3},{"$f":"IF('2011 Survey responses'!FO173<0.5,\"\",'2011 Survey responses'!FO173)","v":2},{"$f":"IF('2011 Survey responses'!FQ173<0.5,\"\",'2011 Survey responses'!FQ173)","v":1}]
["Togo",{"$f":"IF(SUM(F174)<1,\"\",AVERAGEIF('2011 Survey responses'!B174:CP174,\">1\"))","v":3.4125000000000001},{"$f":"IF(SUM(F174)<1,\"\",AVERAGEIF('2011 Survey responses'!B174:AO174,\">1\"))","v":3.657142857142857},{"$f":"IF(SUM(F174)<1,\"\",AVERAGEIF('2011 Survey responses'!B174:BV174,\">1\"))","v":3.4923076923076923},{"$f":"IF(SUM(F174)<1,\"\",AVERAGEIF('2011 Survey responses'!V174:BV174,\">1\"))","v":3.4},{"$f":"IF(SUM('2011 Survey responses'!B174:U174)<1,\"\",(AVERAGEIFS('2011 Survey responses'!B174:U174,'2011 Survey responses'!B174:U174,\">1\")))","v":3.8},{"$f":"IF(SUM('2011 Survey responses'!B174:H174)<1,\"\",(AVERAGEIFS('2011 Survey responses'!B174:H174,'2011 Survey responses'!B174:H174,\">1\")))","v":4},{"$f":"IF(SUM('2011 Survey responses'!I174:S174)<1,\"\",(AVERAGEIFS('2011 Survey responses'!I174:S174,'2011 Survey responses'!I174:S174,\">1\")))","v":3.4444444444444446},{"$f":"IF(SUM('2011 Survey responses'!T174:U174)<2.1,\"\",(AVERAGEIFS('2011 Survey responses'!T174:U174,'2011 Survey responses'!T174:U174,\">1\")))","v":5},{"$f":"IF(SUM('2011 Survey responses'!B174:C174)<2.1,\"\",((SUMIF('2011 Survey responses'!B174:C174,\">1\")+SUMIF('2011 Survey responses'!F174,\">1\"))/(COUNTIF('2011 Survey responses'!B174:C174,\">1\")+COUNTIF('2011 Survey responses'!F174,\">1\"))))","v":4},{"$f":"IF(SUM('2011 Survey responses'!D174:E174)<2.1,\"\",(AVERAGEIFS('2011 Survey responses'!D174:E174,'2011 Survey responses'!D174:E174,\">1\")))","v":4},{"$f":"IF(('2011 Survey responses'!B174+'2011 Survey responses'!D174)<2.1,\"\",((SUMIF('2011 Survey responses'!B174,\">1\")+SUMIF('2011 Survey responses'!D174,\">1\")+SUMIF('2011 Survey responses'!F174,\">1\")+SUMIF('2011 Survey responses'!K174,\">1\"))/(COUNTIF('2011 Survey responses'!B174,\">1\")+COUNTIF('2011 Survey responses'!D174,\">1\")+COUNTIF('2011 Survey responses'!F174,\">1\")+COUNTIF('2011 Survey responses'!K174,\">1\"))))","v":3.75},{"$f":"IF(SUM('2011 Survey responses'!G174:H174)<2.1,\"\",(AVERAGEIFS('2011 Survey responses'!G174:H174,'2011 Survey responses'!G174:H174,\">1\")))","v":4},{"$f":"IF(SUM('2011 Survey responses'!F174:G174)<1.5,\"\",MAX('2011 Survey responses'!F174,'2011 Survey responses'!G174))","v":4},{"$f":"IF(SUM('2011 Survey responses'!G174:H174)<1,\"\",MAX('2011 Survey responses'!G174,'2011 Survey responses'!H174))","v":4},{"$f":"IF(SUM('2011 Survey responses'!I174:L174)<4.1,\"\",(AVERAGEIFS('2011 Survey responses'!I174:L174,'2011 Survey responses'!I174:L174,\">1\")))","v":3.6666666666666665},{"$f":"IF(SUM('2011 Survey responses'!M174:S174)<4.1,\"\",(AVERAGEIFS('2011 Survey responses'!M174:S174,'2011 Survey responses'!M174:S174,\">1\")))","v":3.3333333333333335},{"$f":"IF(SUM('2011 Survey responses'!T174:U174)<2.1,\"\",(AVERAGEIFS('2011 Survey responses'!T174:U174,'2011 Survey responses'!T174:U174,\">1\")))","v":5},{"$f":"IF(SUM('2011 Survey responses'!V174:AO174)<1,\"\",(AVERAGEIFS('2011 Survey responses'!V174:AO174,'2011 Survey responses'!V174:AO174,\">1\")))","v":3.55},{"$f":"IF(SUM('2011 Survey responses'!V174:AA174)<1,\"\",(AVERAGEIFS('2011 Survey responses'!V174:AA174,'2011 Survey responses'!V174:AA174,\">1\")))","v":3.5},{"$f":"IF(SUM('2011 Survey responses'!AB174:AH174)<1,\"\",(AVERAGEIFS('2011 Survey responses'!AB174:AH174,'2011 Survey responses'!AB174:AH174,\">1\")))","v":4},{"$f":"IF(SUM('2011 Survey responses'!AI174:AO174)<1,\"\",(AVERAGEIFS('2011 Survey responses'!AI174:AO174,'2011 Survey responses'!AI174:AO174,\">1\")))","v":3.1428571428571428},{"$f":"IF(('2011 Survey responses'!Y174+'2011 Survey responses'!AI174+'2011 Survey responses'!AK174)<3.1,\"\",((SUMIF('2011 Survey responses'!Y174,\">1\")+SUMIF('2011 Survey responses'!AI174,\">1\")+SUMIF('2011 Survey responses'!AK174,\">1\")+SUMIF('2011 Survey responses'!AM174,\">1\"))/(COUNTIF('2011 Survey responses'!Y174,\">1\")+COUNTIF('2011 Survey responses'!AI174,\">1\")+COUNTIF('2011 Survey responses'!AK174,\">1\")+COUNTIF('2011 Survey responses'!AM174,\">1\"))))","v":3.5},{"$f":"IF(('2011 Survey responses'!W174)<1.1,\"\",('2011 Survey responses'!W174))","v":3},{"$f":"IF(('2011 Survey responses'!Y174)<1.1,\"\",('2011 Survey responses'!Y174))","v":4},{"$f":"IF(('2011 Survey responses'!Z174)<1.1,\"\",('2011 Survey responses'!Z174))","v":4},{"$f":"IF(('2011 Survey responses'!V174+'2011 Survey responses'!X174+'2011 Survey responses'!AA174)<3.1,\"\",((SUMIF('2011 Survey responses'!V174,\">1\")+SUMIF('2011 Survey responses'!X174,\">1\")+SUMIF('2011 Survey responses'!AA174,\">1\"))/(COUNTIF('2011 Survey responses'!V174,\">1\")+COUNTIF('2011 Survey responses'!X174,\">1\")+COUNTIF('2011 Survey responses'!AA174,\">1\"))))","v":3.3333333333333335},{"$f":"IF(('2011 Survey responses'!V174+'2011 Survey responses'!Y174+'2011 Survey responses'!AA174)<3.1,\"\",((SUMIF('2011 Survey responses'!V174,\">1\")+SUMIF('2011 Survey responses'!Y174,\">1\")+SUMIF('2011 Survey responses'!AA174,\">1\"))/(COUNTIF('2011 Survey responses'!V174,\">1\")+COUNTIF('2011 Survey responses'!Y174,\">1\")+COUNTIF('2011 Survey responses'!AA174,\">1\"))))","v":3.3333333333333335},{"$f":"IF(SUM('2011 Survey responses'!AB174:AH174)<1,\"\",(AVERAGEIFS('2011 Survey responses'!AB174:AH174,'2011 Survey responses'!AB174:AH174,\">1\")))","v":4},{"$f":"IF(SUM('2011 Survey responses'!AI174:AO174)<7.1,\"\",(AVERAGEIFS('2011 Survey responses'!AI174:AO174,'2011 Survey responses'!AI174:AO174,\">1\")))","v":3.1428571428571428},{"$f":"IF(('2011 Survey responses'!AH174)<1.1,\"\",('2011 Survey responses'!AH174))","v":4},{"$f":"IF(SUM('2011 Survey responses'!AP174:BV174)<1,\"\",(AVERAGEIFS('2011 Survey responses'!AP174:BV174,'2011 Survey responses'!AP174:BV174,\">1\")))","v":3.3},{"$f":"IF(SUM('2011 Survey responses'!AP174:AS174)<4.1,\"\",(AVERAGEIFS('2011 Survey responses'!AP174:AS174,'2011 Survey responses'!AP174:AS174,\">1\")))","v":3.3333333333333335},{"$f":"IF(SUM('2011 Survey responses'!AT174:BF174)<1,\"\",(AVERAGEIFS('2011 Survey responses'!AT174:BF174,'2011 Survey responses'!AT174:BF174,\">1\")))","v":3.5833333333333335},{"$f":"IF(SUM('2011 Survey responses'!BG174:BO174)<1,\"\",(AVERAGEIFS('2011 Survey responses'!BG174:BO174,'2011 Survey responses'!BG174:BO174,\">1\")))","v":3.125},{"$f":"IF(SUM('2011 Survey responses'!BP174:BS174)<1,\"\",(AVERAGEIFS('2011 Survey responses'!BP174:BS174,'2011 Survey responses'!BP174:BS174,\">1\")))","v":3.75},{"$f":"IF(SUM('2011 Survey responses'!BT174:BV174)<3.1,\"\",(AVERAGEIFS('2011 Survey responses'!BT174:BV174,'2011 Survey responses'!BT174:BV174,\">1\")))","v":2},{"$f":"IF(('2011 Survey responses'!AQ174+'2011 Survey responses'!AR174+'2011 Survey responses'!BG174)<3.1,\"\",((SUMIF('2011 Survey responses'!AQ174,\">1\")+SUMIF('2011 Survey responses'!AR174,\">1\")+SUMIF('2011 Survey responses'!BG174,\">1\"))/(COUNTIF('2011 Survey responses'!AQ174,\">1\")+COUNTIF('2011 Survey responses'!AR174,\">1\")+COUNTIF('2011 Survey responses'!BG174,\">1\"))))","v":4},{"$f":"IF(SUM('2011 Survey responses'!AP174:AS174)<4.1,\"\",(AVERAGEIFS('2011 Survey responses'!AP174:AS174,'2011 Survey responses'!AP174:AS174,\">1\")))","v":3.3333333333333335},{"$f":"IF(('2011 Survey responses'!AU174+'2011 Survey responses'!AX174+'2011 Survey responses'!BA174+'2011 Survey responses'!BC174+'2011 Survey responses'!BD174)<5.1,\"\",(SUMIF('2011 Survey responses'!AU174,\">1\")+SUMIF('2011 Survey responses'!AX174,\">1\")+SUMIF('2011 Survey responses'!BA174,\">1\")+SUMIF('2011 Survey responses'!BC174,\">1\")+SUMIF('2011 Survey responses'!BD174,\">1\"))/(COUNTIF('2011 Survey responses'!AU174,\">1\")+COUNTIF('2011 Survey responses'!AX174,\">1\")+COUNTIF('2011 Survey responses'!BA174,\">1\")+COUNTIF('2011 Survey responses'!BC174,\">1\")+COUNTIF('2011 Survey responses'!BD174,\">1\")))","v":3.5},{"$f":"IF(('2011 Survey responses'!AT174)<1.1,\"\",('2011 Survey responses'!AT174))","v":4},{"$f":"IF(SUM('2011 Survey responses'!AV174:AW174)<2.1,\"\",(AVERAGEIFS('2011 Survey responses'!AV174:AW174,'2011 Survey responses'!AV174:AW174,\">1\")))","v":4},{"$f":"IF(('2011 Survey responses'!AW174+'2011 Survey responses'!AY174)<2.1,\"\",(SUMIF('2011 Survey responses'!AW174,\">1\")+SUMIF('2011 Survey responses'!AY174,\">1\"))/(COUNTIF('2011 Survey responses'!AW174,\">1\")+COUNTIF('2011 Survey responses'!AY174,\">1\")))","v":3},{"$f":"IF(('2011 Survey responses'!AZ174)<1.1,\"\",('2011 Survey responses'!AZ174))","v":4},null,null,null,null,{"$f":"IF(('2011 Survey responses'!BE174)<1.1,\"\",('2011 Survey responses'!BE174))","v":4},{"$f":"IF(('2011 Survey responses'!AY174+'2011 Survey responses'!BB174+'2011 Survey responses'!BF174)<3.1,\"\",(SUMIF('2011 Survey responses'!AY174,\">1\")+SUMIF('2011 Survey responses'!BB174,\">1\")+SUMIF('2011 Survey responses'!BF174,\">1\"))/(COUNTIF('2011 Survey responses'!AY174,\">1\")+COUNTIF('2011 Survey responses'!BB174,\">1\")+COUNTIF('2011 Survey responses'!BF174,\">1\")))","v":3},3.4375,{"$f":"IF(SUM('2011 Survey responses'!BT174:BV174)<3.1,\"\",(AVERAGEIFS('2011 Survey responses'!BT174:BV174,'2011 Survey responses'!BT174:BV174,\">1\")))","v":2},{"$f":"IF(SUM('2011 Survey responses'!BW174:CP174)<1,\"\",(AVERAGEIFS('2011 Survey responses'!BW174:CP174,'2011 Survey responses'!BW174:CP174,\">1\")))","v":3.0666666666666669},{"$f":"IF(SUM('2011 Survey responses'!BW174:CF174)<1,\"\",(AVERAGEIFS('2011 Survey responses'!BW174:CF174,'2011 Survey responses'!BW174:CF174,\">1\")))","v":2.6666666666666665},{"$f":"IF(SUM('2011 Survey responses'!CG174:CP174)<1,\"\",(AVERAGEIFS('2011 Survey responses'!CG174:CP174,'2011 Survey responses'!CG174:CP174,\">1\")))","v":3.3333333333333335},{"$f":"IF(SUM('2011 Survey responses'!BX174:CF174)<1,\"\",(AVERAGEIFS('2011 Survey responses'!BX174:CF174,'2011 Survey responses'!BX174:CF174,\">1\")))","v":2.8},{"$f":"IF(SUM('2011 Survey responses'!CH174:CP174)<1,\"\",(AVERAGEIFS('2011 Survey responses'!CH174:CP174,'2011 Survey responses'!CH174:CP174,\">1\")))","v":3.5},{"$f":"IF(SUM('2011 Survey responses'!BW174:CP174)<1,\"\",(AVERAGEIFS('2011 Survey responses'!BW174:CP174,'2011 Survey responses'!BW174:CP174,\">1\")))","v":3.0666666666666669},{"$f":"IF(('2011 Survey responses'!BW174+'2011 Survey responses'!CG174)<2.1,\"\",(SUMIF('2011 Survey responses'!BW174,\">1\")+SUMIF('2011 Survey responses'!CG174,\">1\"))/(COUNTIF('2011 Survey responses'!BW174,\">1\")+COUNTIF('2011 Survey responses'!CG174,\">1\")))","v":2},{"$f":"IF(('2011 Survey responses'!BX174+'2011 Survey responses'!CH174)<2.1,\"\",(SUMIF('2011 Survey responses'!BX174,\">1\")+SUMIF('2011 Survey responses'!CH174,\">1\"))/(COUNTIF('2011 Survey responses'!BX174,\">1\")+COUNTIF('2011 Survey responses'!CH174,\">1\")))","v":3},{"$f":"IF(('2011 Survey responses'!BY174+'2011 Survey responses'!CI174)<2.1,\"\",(SUMIF('2011 Survey responses'!BY174,\">1\")+SUMIF('2011 Survey responses'!CI174,\">1\"))/(COUNTIF('2011 Survey responses'!BY174,\">1\")+COUNTIF('2011 Survey responses'!CI174,\">1\")))","v":3.5},{"$f":"IF('2011 Survey responses'!CQ174<0.5,\"\",'2011 Survey responses'!CQ174)","v":4},{"$f":"IF('2011 Survey responses'!CR174<0.5,\"\",'2011 Survey responses'!CR174)","v":4},{"$f":"IF('2011 Survey responses'!CS174<0.5,\"\",'2011 Survey responses'!CS174)","v":4},{"$f":"IF('2011 Survey responses'!CT174<0.5,\"\",'2011 Survey responses'!CT174)","v":4},{"$f":"IF('2011 Survey responses'!CU174<0.5,\"\",'2011 Survey responses'!CU174)","v":2},{"$f":"IF('2011 Survey responses'!CV174<0.5,\"\",'2011 Survey responses'!CV174)","v":1},{"$f":"IF(SUM('2011 Survey responses'!CW174:DL174)<1,\"\",(AVERAGE('2011 Survey responses'!CW174:DL174)))","v":3.5},{"$f":"IF(SUM('2011 Survey responses'!CW174:CZ174)<1,\"\",(AVERAGE('2011 Survey responses'!CW174:CZ174)))","v":4},{"$f":"IF(SUM('2011 Survey responses'!DA174:DD174)<1,\"\",(AVERAGE('2011 Survey responses'!DA174:DD174)))","v":3},{"$f":"IF(SUM('2011 Survey responses'!DE174:DH174)<1,\"\",(AVERAGE('2011 Survey responses'!DE174:DH174)))","v":3.5},{"$f":"IF(SUM('2011 Survey responses'!DI174:DL174)<1,\"\",(AVERAGE('2011 Survey responses'!DI174:DL174)))","v":3.5},{"$f":"IF(('2011 Survey responses'!CW174+'2011 Survey responses'!DA174+'2011 Survey responses'!DE174+'2011 Survey responses'!DI174)<1,\"\",AVERAGE('2011 Survey responses'!CW174,'2011 Survey responses'!DA174,'2011 Survey responses'!DE174,'2011 Survey responses'!DI174))","v":3.5},{"$f":"IF(('2011 Survey responses'!CX174+'2011 Survey responses'!DB174+'2011 Survey responses'!DF174+'2011 Survey responses'!DJ174)<1,\"\",AVERAGE('2011 Survey responses'!CX174,'2011 Survey responses'!DB174,'2011 Survey responses'!DF174,'2011 Survey responses'!DJ174))","v":3.5},{"$f":"IF(('2011 Survey responses'!CY174+'2011 Survey responses'!DC174+'2011 Survey responses'!DG174+'2011 Survey responses'!DK174)<1,\"\",AVERAGE('2011 Survey responses'!CY174,'2011 Survey responses'!DC174,'2011 Survey responses'!DG174,'2011 Survey responses'!DK174))","v":3.5},{"$f":"IF(('2011 Survey responses'!CZ174+'2011 Survey responses'!DD174+'2011 Survey responses'!DH174+'2011 Survey responses'!DL174)<1,\"\",AVERAGE('2011 Survey responses'!CZ174,'2011 Survey responses'!DD174,'2011 Survey responses'!DH174,'2011 Survey responses'!DL174))","v":3.5},{"$f":"IF('2011 Survey responses'!CW174<0.5,\"\",'2011 Survey responses'!CW174)","v":4},{"$f":"IF('2011 Survey responses'!CX174<0.5,\"\",'2011 Survey responses'!CX174)","v":4},{"$f":"IF('2011 Survey responses'!CY174<0.5,\"\",'2011 Survey responses'!CY174)","v":4},{"$f":"IF('2011 Survey responses'!CZ174<0.5,\"\",'2011 Survey responses'!CZ174)","v":4},{"$f":"IF('2011 Survey responses'!DA174<0.5,\"\",'2011 Survey responses'!DA174)","v":3},{"$f":"IF('2011 Survey responses'!DB174<0.5,\"\",'2011 Survey responses'!DB174)","v":3},{"$f":"IF('2011 Survey responses'!DC174<0.5,\"\",'2011 Survey responses'!DC174)","v":3},{"$f":"IF('2011 Survey responses'!DD174<0.5,\"\",'2011 Survey responses'!DD174)","v":3},{"$f":"IF('2011 Survey responses'!DE174<0.5,\"\",'2011 Survey responses'!DE174)","v":3},{"$f":"IF('2011 Survey responses'!DF174<0.5,\"\",'2011 Survey responses'!DF174)","v":3},{"$f":"IF('2011 Survey responses'!DG174<0.5,\"\",'2011 Survey responses'!DG174)","v":5},{"$f":"IF('2011 Survey responses'!DH174<0.5,\"\",'2011 Survey responses'!DH174)","v":3},{"$f":"IF('2011 Survey responses'!DI174<0.5,\"\",'2011 Survey responses'!DI174)","v":4},{"$f":"IF('2011 Survey responses'!DJ174<0.5,\"\",'2011 Survey responses'!DJ174)","v":4},{"$f":"IF('2011 Survey responses'!DK174<0.5,\"\",'2011 Survey responses'!DK174)","v":2},{"$f":"IF('2011 Survey responses'!DL174<0.5,\"\",'2011 Survey responses'!DL174)","v":4},{"$f":"IF('2011 Survey responses'!DU174=4,4,IF('2011 Survey responses'!DU174=5,4,\"\"))","v":4},{"$f":"IF('2011 Survey responses'!DV174=4,3,IF('2011 Survey responses'!DV174=5,3,\"\"))","v":""},"",{"$f":"IF(CQ174=2,CQ174,IF(CO174=4,CO174,IF(CP174=3,CP174,IF('2011 Survey responses'!#REF!=1,1,\"\"))))","v":4},{"$f":"IF('2011 Survey responses'!DO174<0.5,\"\",'2011 Survey responses'!DO174)","v":4},{"$f":"IF('2011 Survey responses'!DP174<0.5,\"\",'2011 Survey responses'!DP174)","v":5},{"$f":"IF('2011 Survey responses'!DQ174<0.5,\"\",'2011 Survey responses'!DQ174)","v":4},{"$f":"IF('2011 Survey responses'!DR174<0.5,\"\",'2011 Survey responses'!DR174)","v":4},{"$f":"IF('2011 Survey responses'!DS174<0.5,\"\",'2011 Survey responses'!DS174)","v":3},{"$f":"IF('2011 Survey responses'!DT174<0.5,\"\",'2011 Survey responses'!DT174)","v":4},{"$f":"IF('2011 Survey responses'!DU174<0.5,\"\",'2011 Survey responses'!DU174)","v":4},{"$f":"IF('2011 Survey responses'!DV174<0.5,\"\",'2011 Survey responses'!DV174)","v":3},{"$f":"IF('2011 Survey responses'!DW174<0.5,\"\",'2011 Survey responses'!DW174)","v":4},{"$f":"IF('2011 Survey responses'!DX174<0.5,\"\",'2011 Survey responses'!DX174)","v":4},{"$f":"IF('2011 Survey responses'!DY174<0.5,\"\",'2011 Survey responses'!DY174)","v":4},{"$f":"IF('2011 Survey responses'!DZ174<0.5,\"\",'2011 Survey responses'!DZ174)","v":4},{"$f":"IF('2011 Survey responses'!EA174<0.5,\"\",'2011 Survey responses'!EA174)","v":5},{"$f":"IF('2011 Survey responses'!EB174<0.5,\"\",'2011 Survey responses'!EB174)","v":5},{"$f":"IF('2011 Survey responses'!EC174<0.5,\"\",'2011 Survey responses'!EC174)","v":4},{"$f":"IF('2011 Survey responses'!ED174<0.5,\"\",'2011 Survey responses'!ED174)","v":4},{"$f":"IF('2011 Survey responses'!EE174<0.5,\"\",'2011 Survey responses'!EE174)","v":4},{"$f":"IF('2011 Survey responses'!EF174<0.5,\"\",'2011 Survey responses'!EF174)","v":4},{"$f":"IF('2011 Survey responses'!EG174<0.5,\"\",'2011 Survey responses'!EG174)","v":5},{"$f":"IF('2011 Survey responses'!EH174<0.5,\"\",'2011 Survey responses'!EH174)","v":4},{"$f":"IF('2011 Survey responses'!EI174<0.5,\"\",'2011 Survey responses'!EI174)","v":4},{"$f":"IF('2011 Survey responses'!EJ174<0.5,\"\",'2011 Survey responses'!EJ174)","v":4},{"$f":"IF('2011 Survey responses'!EK174<0.5,\"\",'2011 Survey responses'!EK174)","v":4},{"$f":"IF('2011 Survey responses'!EL174<0.5,\"\",'2011 Survey responses'!EL174)","v":4},{"$f":"IF('2011 Survey responses'!EM174<0.5,\"\",'2011 Survey responses'!EM174)","v":4},{"$f":"IF('2011 Survey responses'!EN174<0.5,\"\",'2011 Survey responses'!EN174)","v":4},{"$f":"IF('2011 Survey responses'!EO174<0.5,\"\",'2011 Survey responses'!EO174)","v":4},{"$f":"IF('2011 Survey responses'!EP174<0.5,\"\",'2011 Survey responses'!EP174)","v":4},{"$f":"IF(('2011 Survey responses'!EW174+'2011 Survey responses'!EX174)>=2,AVERAGE('2011 Survey responses'!EW174,'2011 Survey responses'!EY174),\"\")","v":4.5},{"$f":"IF('2011 Survey responses'!EX174<0.5,\"\",'2011 Survey responses'!EX174)","v":5},{"$f":"IF('2011 Survey responses'!EZ174<0.5,\"\",'2011 Survey responses'!EZ174)","v":5},{"$f":"IF('2011 Survey responses'!FB174<0.5,\"\",'2011 Survey responses'!FB174)","v":4},{"$f":"IF('2011 Survey responses'!FD174<0.5,\"\",'2011 Survey responses'!FD174)","v":4},{"$f":"IF('2011 Survey responses'!FC174<0.5,\"\",'2011 Survey responses'!FC174)","v":4},{"$f":"IF(('2011 Survey responses'!EM174+'2011 Survey responses'!EN174)>=2,AVERAGE('2011 Survey responses'!EM174,'2011 Survey responses'!EN174),\"\")","v":4},{"$f":"IF('2011 Survey responses'!ES174<0.5,\"\",'2011 Survey responses'!ES174)","v":4},{"$f":"IF(('2011 Survey responses'!ET174+'2011 Survey responses'!EU174)>=2,AVERAGE('2011 Survey responses'!ET174,'2011 Survey responses'!EU174),\"\")","v":5},{"$f":"IF('2011 Survey responses'!EV174<0.5,\"\",'2011 Survey responses'!EV174)","v":4},{"$f":"IF('2011 Survey responses'!FA174<0.5,\"\",'2011 Survey responses'!FA174)","v":4},{"$f":"IF('2011 Survey responses'!ER174<0.5,\"\",'2011 Survey responses'!ER174)","v":5},{"$f":"IF(('2011 Survey responses'!EO174+'2011 Survey responses'!EP174)>=2,AVERAGE('2011 Survey responses'!EO174,'2011 Survey responses'!EP174),\"\")","v":4},{"$f":"IF('2011 Survey responses'!EQ174<0.5,\"\",'2011 Survey responses'!EQ174)","v":4},{"$f":"IF('2011 Survey responses'!ET174<0.5,\"\",'2011 Survey responses'!ET174)","v":5},{"$f":"IF('2011 Survey responses'!EU174<0.5,\"\",'2011 Survey responses'!EU174)","v":5},{"$f":"IF('2011 Survey responses'!EW174<0.5,\"\",'2011 Survey responses'!EW174)","v":4},{"$f":"IF('2011 Survey responses'!EY174<0.5,\"\",'2011 Survey responses'!EY174)","v":5},{"$f":"IF('2011 Survey responses'!FU174<0.5,\"\",'2011 Survey responses'!FU174)","v":3},{"$f":"IF(('2011 Survey responses'!FL174+'2011 Survey responses'!FM174)>=2,AVERAGE('2011 Survey responses'!FL174,'2011 Survey responses'!FM174),\"\")","v":4},{"$f":"IF(('2011 Survey responses'!FO174+'2011 Survey responses'!FQ174)>=2,AVERAGE('2011 Survey responses'!FO174,'2011 Survey responses'!FQ174),\"\")","v":4.5},{"$f":"IF('2011 Survey responses'!FJ174<0.5,\"\",'2011 Survey responses'!FJ174)","v":4},{"$f":"IF('2011 Survey responses'!FT174<0.5,\"\",'2011 Survey responses'!FT174)","v":4},{"$f":"IF('2011 Survey responses'!FR174<0.5,\"\",'2011 Survey responses'!FR174)","v":4},{"$f":"IF('2011 Survey responses'!FK174<0.5,\"\",'2011 Survey responses'!FK174)","v":4},{"$f":"IF('2011 Survey responses'!FP174<0.5,\"\",'2011 Survey responses'!FP174)","v":4},{"$f":"IF('2011 Survey responses'!FN174<0.5,\"\",'2011 Survey responses'!FN174)","v":5},{"$f":"IF(('2011 Survey responses'!FE174+'2011 Survey responses'!FF174)>=2,AVERAGE('2011 Survey responses'!FE174,'2011 Survey responses'!FF174),\"\")","v":4},{"$f":"IF('2011 Survey responses'!FS174<0.5,\"\",'2011 Survey responses'!FS174)","v":4},{"$f":"IF('2011 Survey responses'!FV174<0.5,\"\",'2011 Survey responses'!FV174)","v":3},{"$f":"IF(('2011 Survey responses'!FG174+'2011 Survey responses'!FH174)>=2,AVERAGE('2011 Survey responses'!FG174,'2011 Survey responses'!FH174),\"\")","v":4},{"$f":"IF('2011 Survey responses'!FI174<0.5,\"\",'2011 Survey responses'!FI174)","v":4},{"$f":"IF('2011 Survey responses'!FE174<0.5,\"\",'2011 Survey responses'!FE174)","v":4},{"$f":"IF('2011 Survey responses'!FF174<0.5,\"\",'2011 Survey responses'!FF174)","v":4},{"$f":"IF('2011 Survey responses'!FG174<0.5,\"\",'2011 Survey responses'!FG174)","v":4},{"$f":"IF('2011 Survey responses'!FH174<0.5,\"\",'2011 Survey responses'!FH174)","v":4},{"$f":"IF('2011 Survey responses'!FL174<0.5,\"\",'2011 Survey responses'!FL174)","v":4},{"$f":"IF('2011 Survey responses'!FM174<0.5,\"\",'2011 Survey responses'!FM174)","v":4},{"$f":"IF('2011 Survey responses'!FO174<0.5,\"\",'2011 Survey responses'!FO174)","v":4},{"$f":"IF('2011 Survey responses'!FQ174<0.5,\"\",'2011 Survey responses'!FQ174)","v":5}]
["Tonga",{"$f":"IF(SUM(F175)<1,\"\",AVERAGEIF('2011 Survey responses'!B175:CP175,\">1\"))","v":3.2337662337662336},{"$f":"IF(SUM(F175)<1,\"\",AVERAGEIF('2011 Survey responses'!B175:AO175,\">1\"))","v":3.4242424242424243},{"$f":"IF(SUM(F175)<1,\"\",AVERAGEIF('2011 Survey responses'!B175:BV175,\">1\"))","v":3.2096774193548385},{"$f":"IF(SUM(F175)<1,\"\",AVERAGEIF('2011 Survey responses'!V175:BV175,\">1\"))","v":3.1956521739130435},{"$f":"IF(SUM('2011 Survey responses'!B175:U175)<1,\"\",(AVERAGEIFS('2011 Survey responses'!B175:U175,'2011 Survey responses'!B175:U175,\">1\")))","v":3.25},{"$f":"IF(SUM('2011 Survey responses'!B175:H175)<1,\"\",(AVERAGEIFS('2011 Survey responses'!B175:H175,'2011 Survey responses'!B175:H175,\">1\")))","v":4},{"$f":"IF(SUM('2011 Survey responses'!I175:S175)<1,\"\",(AVERAGEIFS('2011 Survey responses'!I175:S175,'2011 Survey responses'!I175:S175,\">1\")))","v":2.9090909090909092},{"$f":"IF(SUM('2011 Survey responses'!T175:U175)<2.1,\"\",(AVERAGEIFS('2011 Survey responses'!T175:U175,'2011 Survey responses'!T175:U175,\">1\")))","v":""},{"$f":"IF(SUM('2011 Survey responses'!B175:C175)<2.1,\"\",((SUMIF('2011 Survey responses'!B175:C175,\">1\")+SUMIF('2011 Survey responses'!F175,\">1\"))/(COUNTIF('2011 Survey responses'!B175:C175,\">1\")+COUNTIF('2011 Survey responses'!F175,\">1\"))))","v":4.5},{"$f":"IF(SUM('2011 Survey responses'!D175:E175)<2.1,\"\",(AVERAGEIFS('2011 Survey responses'!D175:E175,'2011 Survey responses'!D175:E175,\">1\")))","v":6},{"$f":"IF(('2011 Survey responses'!B175+'2011 Survey responses'!D175)<2.1,\"\",((SUMIF('2011 Survey responses'!B175,\">1\")+SUMIF('2011 Survey responses'!D175,\">1\")+SUMIF('2011 Survey responses'!F175,\">1\")+SUMIF('2011 Survey responses'!K175,\">1\"))/(COUNTIF('2011 Survey responses'!B175,\">1\")+COUNTIF('2011 Survey responses'!D175,\">1\")+COUNTIF('2011 Survey responses'!F175,\">1\")+COUNTIF('2011 Survey responses'!K175,\">1\"))))","v":4.75},{"$f":"IF(SUM('2011 Survey responses'!G175:H175)<2.1,\"\",(AVERAGEIFS('2011 Survey responses'!G175:H175,'2011 Survey responses'!G175:H175,\">1\")))","v":2.5},{"$f":"IF(SUM('2011 Survey responses'!F175:G175)<1.5,\"\",MAX('2011 Survey responses'!F175,'2011 Survey responses'!G175))","v":3},{"$f":"IF(SUM('2011 Survey responses'!G175:H175)<1,\"\",MAX('2011 Survey responses'!G175,'2011 Survey responses'!H175))","v":3},{"$f":"IF(SUM('2011 Survey responses'!I175:L175)<4.1,\"\",(AVERAGEIFS('2011 Survey responses'!I175:L175,'2011 Survey responses'!I175:L175,\">1\")))","v":3.25},{"$f":"IF(SUM('2011 Survey responses'!M175:S175)<4.1,\"\",(AVERAGEIFS('2011 Survey responses'!M175:S175,'2011 Survey responses'!M175:S175,\">1\")))","v":2.7142857142857144},{"$f":"IF(SUM('2011 Survey responses'!T175:U175)<2.1,\"\",(AVERAGEIFS('2011 Survey responses'!T175:U175,'2011 Survey responses'!T175:U175,\">1\")))","v":""},{"$f":"IF(SUM('2011 Survey responses'!V175:AO175)<1,\"\",(AVERAGEIFS('2011 Survey responses'!V175:AO175,'2011 Survey responses'!V175:AO175,\">1\")))","v":3.5882352941176472},{"$f":"IF(SUM('2011 Survey responses'!V175:AA175)<1,\"\",(AVERAGEIFS('2011 Survey responses'!V175:AA175,'2011 Survey responses'!V175:AA175,\">1\")))","v":5},{"$f":"IF(SUM('2011 Survey responses'!AB175:AH175)<1,\"\",(AVERAGEIFS('2011 Survey responses'!AB175:AH175,'2011 Survey responses'!AB175:AH175,\">1\")))","v":3.5714285714285716},{"$f":"IF(SUM('2011 Survey responses'!AI175:AO175)<1,\"\",(AVERAGEIFS('2011 Survey responses'!AI175:AO175,'2011 Survey responses'!AI175:AO175,\">1\")))","v":3},{"$f":"IF(('2011 Survey responses'!Y175+'2011 Survey responses'!AI175+'2011 Survey responses'!AK175)<3.1,\"\",((SUMIF('2011 Survey responses'!Y175,\">1\")+SUMIF('2011 Survey responses'!AI175,\">1\")+SUMIF('2011 Survey responses'!AK175,\">1\")+SUMIF('2011 Survey responses'!AM175,\">1\"))/(COUNTIF('2011 Survey responses'!Y175,\">1\")+COUNTIF('2011 Survey responses'!AI175,\">1\")+COUNTIF('2011 Survey responses'!AK175,\">1\")+COUNTIF('2011 Survey responses'!AM175,\">1\"))))","v":3.5},{"$f":"IF(('2011 Survey responses'!W175)<1.1,\"\",('2011 Survey responses'!W175))","v":5},{"$f":"IF(('2011 Survey responses'!Y175)<1.1,\"\",('2011 Survey responses'!Y175))","v":5},{"$f":"IF(('2011 Survey responses'!Z175)<1.1,\"\",('2011 Survey responses'!Z175))","v":""},{"$f":"IF(('2011 Survey responses'!V175+'2011 Survey responses'!X175+'2011 Survey responses'!AA175)<3.1,\"\",((SUMIF('2011 Survey responses'!V175,\">1\")+SUMIF('2011 Survey responses'!X175,\">1\")+SUMIF('2011 Survey responses'!AA175,\">1\"))/(COUNTIF('2011 Survey responses'!V175,\">1\")+COUNTIF('2011 Survey responses'!X175,\">1\")+COUNTIF('2011 Survey responses'!AA175,\">1\"))))","v":5},{"$f":"IF(('2011 Survey responses'!V175+'2011 Survey responses'!Y175+'2011 Survey responses'!AA175)<3.1,\"\",((SUMIF('2011 Survey responses'!V175,\">1\")+SUMIF('2011 Survey responses'!Y175,\">1\")+SUMIF('2011 Survey responses'!AA175,\">1\"))/(COUNTIF('2011 Survey responses'!V175,\">1\")+COUNTIF('2011 Survey responses'!Y175,\">1\")+COUNTIF('2011 Survey responses'!AA175,\">1\"))))","v":5},{"$f":"IF(SUM('2011 Survey responses'!AB175:AH175)<1,\"\",(AVERAGEIFS('2011 Survey responses'!AB175:AH175,'2011 Survey responses'!AB175:AH175,\">1\")))","v":3.5714285714285716},{"$f":"IF(SUM('2011 Survey responses'!AI175:AO175)<7.1,\"\",(AVERAGEIFS('2011 Survey responses'!AI175:AO175,'2011 Survey responses'!AI175:AO175,\">1\")))","v":3},{"$f":"IF(('2011 Survey responses'!AH175)<1.1,\"\",('2011 Survey responses'!AH175))","v":4},{"$f":"IF(SUM('2011 Survey responses'!AP175:BV175)<1,\"\",(AVERAGEIFS('2011 Survey responses'!AP175:BV175,'2011 Survey responses'!AP175:BV175,\">1\")))","v":2.9655172413793105},{"$f":"IF(SUM('2011 Survey responses'!AP175:AS175)<4.1,\"\",(AVERAGEIFS('2011 Survey responses'!AP175:AS175,'2011 Survey responses'!AP175:AS175,\">1\")))","v":2.75},{"$f":"IF(SUM('2011 Survey responses'!AT175:BF175)<1,\"\",(AVERAGEIFS('2011 Survey responses'!AT175:BF175,'2011 Survey responses'!AT175:BF175,\">1\")))","v":3},{"$f":"IF(SUM('2011 Survey responses'!BG175:BO175)<1,\"\",(AVERAGEIFS('2011 Survey responses'!BG175:BO175,'2011 Survey responses'!BG175:BO175,\">1\")))","v":3.2222222222222223},{"$f":"IF(SUM('2011 Survey responses'!BP175:BS175)<1,\"\",(AVERAGEIFS('2011 Survey responses'!BP175:BS175,'2011 Survey responses'!BP175:BS175,\">1\")))","v":2.25},{"$f":"IF(SUM('2011 Survey responses'!BT175:BV175)<3.1,\"\",(AVERAGEIFS('2011 Survey responses'!BT175:BV175,'2011 Survey responses'!BT175:BV175,\">1\")))","v":3.5},{"$f":"IF(('2011 Survey responses'!AQ175+'2011 Survey responses'!AR175+'2011 Survey responses'!BG175)<3.1,\"\",((SUMIF('2011 Survey responses'!AQ175,\">1\")+SUMIF('2011 Survey responses'!AR175,\">1\")+SUMIF('2011 Survey responses'!BG175,\">1\"))/(COUNTIF('2011 Survey responses'!AQ175,\">1\")+COUNTIF('2011 Survey responses'!AR175,\">1\")+COUNTIF('2011 Survey responses'!BG175,\">1\"))))","v":3},{"$f":"IF(SUM('2011 Survey responses'!AP175:AS175)<4.1,\"\",(AVERAGEIFS('2011 Survey responses'!AP175:AS175,'2011 Survey responses'!AP175:AS175,\">1\")))","v":2.75},{"$f":"IF(('2011 Survey responses'!AU175+'2011 Survey responses'!AX175+'2011 Survey responses'!BA175+'2011 Survey responses'!BC175+'2011 Survey responses'!BD175)<5.1,\"\",(SUMIF('2011 Survey responses'!AU175,\">1\")+SUMIF('2011 Survey responses'!AX175,\">1\")+SUMIF('2011 Survey responses'!BA175,\">1\")+SUMIF('2011 Survey responses'!BC175,\">1\")+SUMIF('2011 Survey responses'!BD175,\">1\"))/(COUNTIF('2011 Survey responses'!AU175,\">1\")+COUNTIF('2011 Survey responses'!AX175,\">1\")+COUNTIF('2011 Survey responses'!BA175,\">1\")+COUNTIF('2011 Survey responses'!BC175,\">1\")+COUNTIF('2011 Survey responses'!BD175,\">1\")))","v":2.3333333333333335},{"$f":"IF(('2011 Survey responses'!AT175)<1.1,\"\",('2011 Survey responses'!AT175))","v":3},{"$f":"IF(SUM('2011 Survey responses'!AV175:AW175)<2.1,\"\",(AVERAGEIFS('2011 Survey responses'!AV175:AW175,'2011 Survey responses'!AV175:AW175,\">1\")))","v":2},{"$f":"IF(('2011 Survey responses'!AW175+'2011 Survey responses'!AY175)<2.1,\"\",(SUMIF('2011 Survey responses'!AW175,\">1\")+SUMIF('2011 Survey responses'!AY175,\">1\"))/(COUNTIF('2011 Survey responses'!AW175,\">1\")+COUNTIF('2011 Survey responses'!AY175,\">1\")))","v":2.5},{"$f":"IF(('2011 Survey responses'!AZ175)<1.1,\"\",('2011 Survey responses'!AZ175))","v":5},5,2,2,1,{"$f":"IF(('2011 Survey responses'!BE175)<1.1,\"\",('2011 Survey responses'!BE175))","v":4},{"$f":"IF(('2011 Survey responses'!AY175+'2011 Survey responses'!BB175+'2011 Survey responses'!BF175)<3.1,\"\",(SUMIF('2011 Survey responses'!AY175,\">1\")+SUMIF('2011 Survey responses'!BB175,\">1\")+SUMIF('2011 Survey responses'!BF175,\">1\"))/(COUNTIF('2011 Survey responses'!AY175,\">1\")+COUNTIF('2011 Survey responses'!BB175,\">1\")+COUNTIF('2011 Survey responses'!BF175,\">1\")))","v":3},2.7361111111111112,{"$f":"IF(SUM('2011 Survey responses'!BT175:BV175)<3.1,\"\",(AVERAGEIFS('2011 Survey responses'!BT175:BV175,'2011 Survey responses'!BT175:BV175,\">1\")))","v":3.5},{"$f":"IF(SUM('2011 Survey responses'!BW175:CP175)<1,\"\",(AVERAGEIFS('2011 Survey responses'!BW175:CP175,'2011 Survey responses'!BW175:CP175,\">1\")))","v":3.3333333333333335},{"$f":"IF(SUM('2011 Survey responses'!BW175:CF175)<1,\"\",(AVERAGEIFS('2011 Survey responses'!BW175:CF175,'2011 Survey responses'!BW175:CF175,\">1\")))","v":3},{"$f":"IF(SUM('2011 Survey responses'!CG175:CP175)<1,\"\",(AVERAGEIFS('2011 Survey responses'!CG175:CP175,'2011 Survey responses'!CG175:CP175,\">1\")))","v":3.7142857142857144},{"$f":"IF(SUM('2011 Survey responses'!BX175:CF175)<1,\"\",(AVERAGEIFS('2011 Survey responses'!BX175:CF175,'2011 Survey responses'!BX175:CF175,\">1\")))","v":2.8571428571428572},{"$f":"IF(SUM('2011 Survey responses'!CH175:CP175)<1,\"\",(AVERAGEIFS('2011 Survey responses'!CH175:CP175,'2011 Survey responses'!CH175:CP175,\">1\")))","v":3.5},{"$f":"IF(SUM('2011 Survey responses'!BW175:CP175)<1,\"\",(AVERAGEIFS('2011 Survey responses'!BW175:CP175,'2011 Survey responses'!BW175:CP175,\">1\")))","v":3.3333333333333335},{"$f":"IF(('2011 Survey responses'!BW175+'2011 Survey responses'!CG175)<2.1,\"\",(SUMIF('2011 Survey responses'!BW175,\">1\")+SUMIF('2011 Survey responses'!CG175,\">1\"))/(COUNTIF('2011 Survey responses'!BW175,\">1\")+COUNTIF('2011 Survey responses'!CG175,\">1\")))","v":4.5},{"$f":"IF(('2011 Survey responses'!BX175+'2011 Survey responses'!CH175)<2.1,\"\",(SUMIF('2011 Survey responses'!BX175,\">1\")+SUMIF('2011 Survey responses'!CH175,\">1\"))/(COUNTIF('2011 Survey responses'!BX175,\">1\")+COUNTIF('2011 Survey responses'!CH175,\">1\")))","v":2.5},{"$f":"IF(('2011 Survey responses'!BY175+'2011 Survey responses'!CI175)<2.1,\"\",(SUMIF('2011 Survey responses'!BY175,\">1\")+SUMIF('2011 Survey responses'!CI175,\">1\"))/(COUNTIF('2011 Survey responses'!BY175,\">1\")+COUNTIF('2011 Survey responses'!CI175,\">1\")))","v":""},{"$f":"IF('2011 Survey responses'!CQ175<0.5,\"\",'2011 Survey responses'!CQ175)","v":2},{"$f":"IF('2011 Survey responses'!CR175<0.5,\"\",'2011 Survey responses'!CR175)","v":3},{"$f":"IF('2011 Survey responses'!CS175<0.5,\"\",'2011 Survey responses'!CS175)","v":5},{"$f":"IF('2011 Survey responses'!CT175<0.5,\"\",'2011 Survey responses'!CT175)","v":2},{"$f":"IF('2011 Survey responses'!CU175<0.5,\"\",'2011 Survey responses'!CU175)","v":4},{"$f":"IF('2011 Survey responses'!CV175<0.5,\"\",'2011 Survey responses'!CV175)","v":2},{"$f":"IF(SUM('2011 Survey responses'!CW175:DL175)<1,\"\",(AVERAGE('2011 Survey responses'!CW175:DL175)))","v":2.1875},{"$f":"IF(SUM('2011 Survey responses'!CW175:CZ175)<1,\"\",(AVERAGE('2011 Survey responses'!CW175:CZ175)))","v":2},{"$f":"IF(SUM('2011 Survey responses'!DA175:DD175)<1,\"\",(AVERAGE('2011 Survey responses'!DA175:DD175)))","v":2.75},{"$f":"IF(SUM('2011 Survey responses'!DE175:DH175)<1,\"\",(AVERAGE('2011 Survey responses'!DE175:DH175)))","v":2.25},{"$f":"IF(SUM('2011 Survey responses'!DI175:DL175)<1,\"\",(AVERAGE('2011 Survey responses'!DI175:DL175)))","v":1.75},{"$f":"IF(('2011 Survey responses'!CW175+'2011 Survey responses'!DA175+'2011 Survey responses'!DE175+'2011 Survey responses'!DI175)<1,\"\",AVERAGE('2011 Survey responses'!CW175,'2011 Survey responses'!DA175,'2011 Survey responses'!DE175,'2011 Survey responses'!DI175))","v":2.5},{"$f":"IF(('2011 Survey responses'!CX175+'2011 Survey responses'!DB175+'2011 Survey responses'!DF175+'2011 Survey responses'!DJ175)<1,\"\",AVERAGE('2011 Survey responses'!CX175,'2011 Survey responses'!DB175,'2011 Survey responses'!DF175,'2011 Survey responses'!DJ175))","v":2.75},{"$f":"IF(('2011 Survey responses'!CY175+'2011 Survey responses'!DC175+'2011 Survey responses'!DG175+'2011 Survey responses'!DK175)<1,\"\",AVERAGE('2011 Survey responses'!CY175,'2011 Survey responses'!DC175,'2011 Survey responses'!DG175,'2011 Survey responses'!DK175))","v":1.25},{"$f":"IF(('2011 Survey responses'!CZ175+'2011 Survey responses'!DD175+'2011 Survey responses'!DH175+'2011 Survey responses'!DL175)<1,\"\",AVERAGE('2011 Survey responses'!CZ175,'2011 Survey responses'!DD175,'2011 Survey responses'!DH175,'2011 Survey responses'!DL175))","v":2.25},{"$f":"IF('2011 Survey responses'!CW175<0.5,\"\",'2011 Survey responses'!CW175)","v":2},{"$f":"IF('2011 Survey responses'!CX175<0.5,\"\",'2011 Survey responses'!CX175)","v":3},{"$f":"IF('2011 Survey responses'!CY175<0.5,\"\",'2011 Survey responses'!CY175)","v":1},{"$f":"IF('2011 Survey responses'!CZ175<0.5,\"\",'2011 Survey responses'!CZ175)","v":2},{"$f":"IF('2011 Survey responses'!DA175<0.5,\"\",'2011 Survey responses'!DA175)","v":3},{"$f":"IF('2011 Survey responses'!DB175<0.5,\"\",'2011 Survey responses'!DB175)","v":3},{"$f":"IF('2011 Survey responses'!DC175<0.5,\"\",'2011 Survey responses'!DC175)","v":2},{"$f":"IF('2011 Survey responses'!DD175<0.5,\"\",'2011 Survey responses'!DD175)","v":3},{"$f":"IF('2011 Survey responses'!DE175<0.5,\"\",'2011 Survey responses'!DE175)","v":3},{"$f":"IF('2011 Survey responses'!DF175<0.5,\"\",'2011 Survey responses'!DF175)","v":3},{"$f":"IF('2011 Survey responses'!DG175<0.5,\"\",'2011 Survey responses'!DG175)","v":1},{"$f":"IF('2011 Survey responses'!DH175<0.5,\"\",'2011 Survey responses'!DH175)","v":2},{"$f":"IF('2011 Survey responses'!DI175<0.5,\"\",'2011 Survey responses'!DI175)","v":2},{"$f":"IF('2011 Survey responses'!DJ175<0.5,\"\",'2011 Survey responses'!DJ175)","v":2},{"$f":"IF('2011 Survey responses'!DK175<0.5,\"\",'2011 Survey responses'!DK175)","v":1},{"$f":"IF('2011 Survey responses'!DL175<0.5,\"\",'2011 Survey responses'!DL175)","v":2},{"$f":"IF('2011 Survey responses'!DU175=4,4,IF('2011 Survey responses'!DU175=5,4,\"\"))","v":""},{"$f":"IF('2011 Survey responses'!DV175=4,3,IF('2011 Survey responses'!DV175=5,3,\"\"))","v":3},"",{"$f":"IF(CQ175=2,CQ175,IF(CO175=4,CO175,IF(CP175=3,CP175,IF('2011 Survey responses'!GT175=1,1,\"\"))))","v":3},{"$f":"IF('2011 Survey responses'!DO175<0.5,\"\",'2011 Survey responses'!DO175)","v":2},{"$f":"IF('2011 Survey responses'!DP175<0.5,\"\",'2011 Survey responses'!DP175)","v":4},{"$f":"IF('2011 Survey responses'!DQ175<0.5,\"\",'2011 Survey responses'!DQ175)","v":3},{"$f":"IF('2011 Survey responses'!DR175<0.5,\"\",'2011 Survey responses'!DR175)","v":1},{"$f":"IF('2011 Survey responses'!DS175<0.5,\"\",'2011 Survey responses'!DS175)","v":3},{"$f":"IF('2011 Survey responses'!DT175<0.5,\"\",'2011 Survey responses'!DT175)","v":4},{"$f":"IF('2011 Survey responses'!DU175<0.5,\"\",'2011 Survey responses'!DU175)","v":1},{"$f":"IF('2011 Survey responses'!DV175<0.5,\"\",'2011 Survey responses'!DV175)","v":4},{"$f":"IF('2011 Survey responses'!DW175<0.5,\"\",'2011 Survey responses'!DW175)","v":3},{"$f":"IF('2011 Survey responses'!DX175<0.5,\"\",'2011 Survey responses'!DX175)","v":4},{"$f":"IF('2011 Survey responses'!DY175<0.5,\"\",'2011 Survey responses'!DY175)","v":3},{"$f":"IF('2011 Survey responses'!DZ175<0.5,\"\",'2011 Survey responses'!DZ175)","v":4},{"$f":"IF('2011 Survey responses'!EA175<0.5,\"\",'2011 Survey responses'!EA175)","v":4},{"$f":"IF('2011 Survey responses'!EB175<0.5,\"\",'2011 Survey responses'!EB175)","v":3},{"$f":"IF('2011 Survey responses'!EC175<0.5,\"\",'2011 Survey responses'!EC175)","v":3},{"$f":"IF('2011 Survey responses'!ED175<0.5,\"\",'2011 Survey responses'!ED175)","v":1},{"$f":"IF('2011 Survey responses'!EE175<0.5,\"\",'2011 Survey responses'!EE175)","v":3},{"$f":"IF('2011 Survey responses'!EF175<0.5,\"\",'2011 Survey responses'!EF175)","v":5},{"$f":"IF('2011 Survey responses'!EG175<0.5,\"\",'2011 Survey responses'!EG175)","v":1},{"$f":"IF('2011 Survey responses'!EH175<0.5,\"\",'2011 Survey responses'!EH175)","v":3},{"$f":"IF('2011 Survey responses'!EI175<0.5,\"\",'2011 Survey responses'!EI175)","v":4},{"$f":"IF('2011 Survey responses'!EJ175<0.5,\"\",'2011 Survey responses'!EJ175)","v":4},{"$f":"IF('2011 Survey responses'!EK175<0.5,\"\",'2011 Survey responses'!EK175)","v":4},{"$f":"IF('2011 Survey responses'!EL175<0.5,\"\",'2011 Survey responses'!EL175)","v":5},{"$f":"IF('2011 Survey responses'!EM175<0.5,\"\",'2011 Survey responses'!EM175)","v":4},{"$f":"IF('2011 Survey responses'!EN175<0.5,\"\",'2011 Survey responses'!EN175)","v":4},{"$f":"IF('2011 Survey responses'!EO175<0.5,\"\",'2011 Survey responses'!EO175)","v":3},{"$f":"IF('2011 Survey responses'!EP175<0.5,\"\",'2011 Survey responses'!EP175)","v":1},{"$f":"IF(('2011 Survey responses'!EW175+'2011 Survey responses'!EX175)>=2,AVERAGE('2011 Survey responses'!EW175,'2011 Survey responses'!EY175),\"\")","v":4},{"$f":"IF('2011 Survey responses'!EX175<0.5,\"\",'2011 Survey responses'!EX175)","v":4},{"$f":"IF('2011 Survey responses'!EZ175<0.5,\"\",'2011 Survey responses'!EZ175)","v":4},{"$f":"IF('2011 Survey responses'!FB175<0.5,\"\",'2011 Survey responses'!FB175)","v":4},{"$f":"IF('2011 Survey responses'!FD175<0.5,\"\",'2011 Survey responses'!FD175)","v":4},{"$f":"IF('2011 Survey responses'!FC175<0.5,\"\",'2011 Survey responses'!FC175)","v":4},{"$f":"IF(('2011 Survey responses'!EM175+'2011 Survey responses'!EN175)>=2,AVERAGE('2011 Survey responses'!EM175,'2011 Survey responses'!EN175),\"\")","v":4},{"$f":"IF('2011 Survey responses'!ES175<0.5,\"\",'2011 Survey responses'!ES175)","v":4},{"$f":"IF(('2011 Survey responses'!ET175+'2011 Survey responses'!EU175)>=2,AVERAGE('2011 Survey responses'!ET175,'2011 Survey responses'!EU175),\"\")","v":4},{"$f":"IF('2011 Survey responses'!EV175<0.5,\"\",'2011 Survey responses'!EV175)","v":5},{"$f":"IF('2011 Survey responses'!FA175<0.5,\"\",'2011 Survey responses'!FA175)","v":4},{"$f":"IF('2011 Survey responses'!ER175<0.5,\"\",'2011 Survey responses'!ER175)","v":5},{"$f":"IF(('2011 Survey responses'!EO175+'2011 Survey responses'!EP175)>=2,AVERAGE('2011 Survey responses'!EO175,'2011 Survey responses'!EP175),\"\")","v":2},{"$f":"IF('2011 Survey responses'!EQ175<0.5,\"\",'2011 Survey responses'!EQ175)","v":4},{"$f":"IF('2011 Survey responses'!ET175<0.5,\"\",'2011 Survey responses'!ET175)","v":4},{"$f":"IF('2011 Survey responses'!EU175<0.5,\"\",'2011 Survey responses'!EU175)","v":4},{"$f":"IF('2011 Survey responses'!EW175<0.5,\"\",'2011 Survey responses'!EW175)","v":4},{"$f":"IF('2011 Survey responses'!EY175<0.5,\"\",'2011 Survey responses'!EY175)","v":4},{"$f":"IF('2011 Survey responses'!FU175<0.5,\"\",'2011 Survey responses'!FU175)","v":4},{"$f":"IF(('2011 Survey responses'!FL175+'2011 Survey responses'!FM175)>=2,AVERAGE('2011 Survey responses'!FL175,'2011 Survey responses'!FM175),\"\")","v":5},{"$f":"IF(('2011 Survey responses'!FO175+'2011 Survey responses'!FQ175)>=2,AVERAGE('2011 Survey responses'!FO175,'2011 Survey responses'!FQ175),\"\")","v":4},{"$f":"IF('2011 Survey responses'!FJ175<0.5,\"\",'2011 Survey responses'!FJ175)","v":4},{"$f":"IF('2011 Survey responses'!FT175<0.5,\"\",'2011 Survey responses'!FT175)","v":4},{"$f":"IF('2011 Survey responses'!FR175<0.5,\"\",'2011 Survey responses'!FR175)","v":4},{"$f":"IF('2011 Survey responses'!FK175<0.5,\"\",'2011 Survey responses'!FK175)","v":4},{"$f":"IF('2011 Survey responses'!FP175<0.5,\"\",'2011 Survey responses'!FP175)","v":4},{"$f":"IF('2011 Survey responses'!FN175<0.5,\"\",'2011 Survey responses'!FN175)","v":5},{"$f":"IF(('2011 Survey responses'!FE175+'2011 Survey responses'!FF175)>=2,AVERAGE('2011 Survey responses'!FE175,'2011 Survey responses'!FF175),\"\")","v":5},{"$f":"IF('2011 Survey responses'!FS175<0.5,\"\",'2011 Survey responses'!FS175)","v":4},{"$f":"IF('2011 Survey responses'!FV175<0.5,\"\",'2011 Survey responses'!FV175)","v":4},{"$f":"IF(('2011 Survey responses'!FG175+'2011 Survey responses'!FH175)>=2,AVERAGE('2011 Survey responses'!FG175,'2011 Survey responses'!FH175),\"\")","v":2.5},{"$f":"IF('2011 Survey responses'!FI175<0.5,\"\",'2011 Survey responses'!FI175)","v":4},{"$f":"IF('2011 Survey responses'!FE175<0.5,\"\",'2011 Survey responses'!FE175)","v":5},{"$f":"IF('2011 Survey responses'!FF175<0.5,\"\",'2011 Survey responses'!FF175)","v":5},{"$f":"IF('2011 Survey responses'!FG175<0.5,\"\",'2011 Survey responses'!FG175)","v":1},{"$f":"IF('2011 Survey responses'!FH175<0.5,\"\",'2011 Survey responses'!FH175)","v":4},{"$f":"IF('2011 Survey responses'!FL175<0.5,\"\",'2011 Survey responses'!FL175)","v":5},{"$f":"IF('2011 Survey responses'!FM175<0.5,\"\",'2011 Survey responses'!FM175)","v":5},{"$f":"IF('2011 Survey responses'!FO175<0.5,\"\",'2011 Survey responses'!FO175)","v":4},{"$f":"IF('2011 Survey responses'!FQ175<0.5,\"\",'2011 Survey responses'!FQ175)","v":4}]
["Trinidad and Tobago",{"$f":"IF(SUM(F176)<1,\"\",AVERAGEIF('2011 Survey responses'!B176:CP176,\">1\"))","v":""},{"$f":"IF(SUM(F176)<1,\"\",AVERAGEIF('2011 Survey responses'!B176:AO176,\">1\"))","v":""},{"$f":"IF(SUM(F176)<1,\"\",AVERAGEIF('2011 Survey responses'!B176:BV176,\">1\"))","v":""},{"$f":"IF(SUM(F176)<1,\"\",AVERAGEIF('2011 Survey responses'!V176:BV176,\">1\"))","v":""},{"$f":"IF(SUM('2011 Survey responses'!B176:U176)<1,\"\",(AVERAGEIFS('2011 Survey responses'!B176:U176,'2011 Survey responses'!B176:U176,\">1\")))","v":""},{"$f":"IF(SUM('2011 Survey responses'!B176:H176)<1,\"\",(AVERAGEIFS('2011 Survey responses'!B176:H176,'2011 Survey responses'!B176:H176,\">1\")))","v":""},{"$f":"IF(SUM('2011 Survey responses'!I176:S176)<1,\"\",(AVERAGEIFS('2011 Survey responses'!I176:S176,'2011 Survey responses'!I176:S176,\">1\")))","v":""},{"$f":"IF(SUM('2011 Survey responses'!T176:U176)<2.1,\"\",(AVERAGEIFS('2011 Survey responses'!T176:U176,'2011 Survey responses'!T176:U176,\">1\")))","v":""},{"$f":"IF(SUM('2011 Survey responses'!B176:C176)<2.1,\"\",((SUMIF('2011 Survey responses'!B176:C176,\">1\")+SUMIF('2011 Survey responses'!F176,\">1\"))/(COUNTIF('2011 Survey responses'!B176:C176,\">1\")+COUNTIF('2011 Survey responses'!F176,\">1\"))))","v":""},{"$f":"IF(SUM('2011 Survey responses'!D176:E176)<2.1,\"\",(AVERAGEIFS('2011 Survey responses'!D176:E176,'2011 Survey responses'!D176:E176,\">1\")))","v":""},{"$f":"IF(('2011 Survey responses'!B176+'2011 Survey responses'!D176)<2.1,\"\",((SUMIF('2011 Survey responses'!B176,\">1\")+SUMIF('2011 Survey responses'!D176,\">1\")+SUMIF('2011 Survey responses'!F176,\">1\")+SUMIF('2011 Survey responses'!K176,\">1\"))/(COUNTIF('2011 Survey responses'!B176,\">1\")+COUNTIF('2011 Survey responses'!D176,\">1\")+COUNTIF('2011 Survey responses'!F176,\">1\")+COUNTIF('2011 Survey responses'!K176,\">1\"))))","v":""},{"$f":"IF(SUM('2011 Survey responses'!G176:H176)<2.1,\"\",(AVERAGEIFS('2011 Survey responses'!G176:H176,'2011 Survey responses'!G176:H176,\">1\")))","v":""},{"$f":"IF(SUM('2011 Survey responses'!F176:G176)<1.5,\"\",MAX('2011 Survey responses'!F176,'2011 Survey responses'!G176))","v":""},{"$f":"IF(SUM('2011 Survey responses'!G176:H176)<1,\"\",MAX('2011 Survey responses'!G176,'2011 Survey responses'!H176))","v":""},{"$f":"IF(SUM('2011 Survey responses'!I176:L176)<4.1,\"\",(AVERAGEIFS('2011 Survey responses'!I176:L176,'2011 Survey responses'!I176:L176,\">1\")))","v":""},{"$f":"IF(SUM('2011 Survey responses'!M176:S176)<4.1,\"\",(AVERAGEIFS('2011 Survey responses'!M176:S176,'2011 Survey responses'!M176:S176,\">1\")))","v":""},{"$f":"IF(SUM('2011 Survey responses'!T176:U176)<2.1,\"\",(AVERAGEIFS('2011 Survey responses'!T176:U176,'2011 Survey responses'!T176:U176,\">1\")))","v":""},{"$f":"IF(SUM('2011 Survey responses'!V176:AO176)<1,\"\",(AVERAGEIFS('2011 Survey responses'!V176:AO176,'2011 Survey responses'!V176:AO176,\">1\")))","v":""},{"$f":"IF(SUM('2011 Survey responses'!V176:AA176)<1,\"\",(AVERAGEIFS('2011 Survey responses'!V176:AA176,'2011 Survey responses'!V176:AA176,\">1\")))","v":""},{"$f":"IF(SUM('2011 Survey responses'!AB176:AH176)<1,\"\",(AVERAGEIFS('2011 Survey responses'!AB176:AH176,'2011 Survey responses'!AB176:AH176,\">1\")))","v":""},{"$f":"IF(SUM('2011 Survey responses'!AI176:AO176)<1,\"\",(AVERAGEIFS('2011 Survey responses'!AI176:AO176,'2011 Survey responses'!AI176:AO176,\">1\")))","v":""},{"$f":"IF(('2011 Survey responses'!Y176+'2011 Survey responses'!AI176+'2011 Survey responses'!AK176)<3.1,\"\",((SUMIF('2011 Survey responses'!Y176,\">1\")+SUMIF('2011 Survey responses'!AI176,\">1\")+SUMIF('2011 Survey responses'!AK176,\">1\")+SUMIF('2011 Survey responses'!AM176,\">1\"))/(COUNTIF('2011 Survey responses'!Y176,\">1\")+COUNTIF('2011 Survey responses'!AI176,\">1\")+COUNTIF('2011 Survey responses'!AK176,\">1\")+COUNTIF('2011 Survey responses'!AM176,\">1\"))))","v":""},{"$f":"IF(('2011 Survey responses'!W176)<1.1,\"\",('2011 Survey responses'!W176))","v":""},{"$f":"IF(('2011 Survey responses'!Y176)<1.1,\"\",('2011 Survey responses'!Y176))","v":""},{"$f":"IF(('2011 Survey responses'!Z176)<1.1,\"\",('2011 Survey responses'!Z176))","v":""},{"$f":"IF(('2011 Survey responses'!V176+'2011 Survey responses'!X176+'2011 Survey responses'!AA176)<3.1,\"\",((SUMIF('2011 Survey responses'!V176,\">1\")+SUMIF('2011 Survey responses'!X176,\">1\")+SUMIF('2011 Survey responses'!AA176,\">1\"))/(COUNTIF('2011 Survey responses'!V176,\">1\")+COUNTIF('2011 Survey responses'!X176,\">1\")+COUNTIF('2011 Survey responses'!AA176,\">1\"))))","v":""},{"$f":"IF(('2011 Survey responses'!V176+'2011 Survey responses'!Y176+'2011 Survey responses'!AA176)<3.1,\"\",((SUMIF('2011 Survey responses'!V176,\">1\")+SUMIF('2011 Survey responses'!Y176,\">1\")+SUMIF('2011 Survey responses'!AA176,\">1\"))/(COUNTIF('2011 Survey responses'!V176,\">1\")+COUNTIF('2011 Survey responses'!Y176,\">1\")+COUNTIF('2011 Survey responses'!AA176,\">1\"))))","v":""},{"$f":"IF(SUM('2011 Survey responses'!AB176:AH176)<1,\"\",(AVERAGEIFS('2011 Survey responses'!AB176:AH176,'2011 Survey responses'!AB176:AH176,\">1\")))","v":""},{"$f":"IF(SUM('2011 Survey responses'!AI176:AO176)<7.1,\"\",(AVERAGEIFS('2011 Survey responses'!AI176:AO176,'2011 Survey responses'!AI176:AO176,\">1\")))","v":""},{"$f":"IF(('2011 Survey responses'!AH176)<1.1,\"\",('2011 Survey responses'!AH176))","v":""},{"$f":"IF(SUM('2011 Survey responses'!AP176:BV176)<1,\"\",(AVERAGEIFS('2011 Survey responses'!AP176:BV176,'2011 Survey responses'!AP176:BV176,\">1\")))","v":""},{"$f":"IF(SUM('2011 Survey responses'!AP176:AS176)<4.1,\"\",(AVERAGEIFS('2011 Survey responses'!AP176:AS176,'2011 Survey responses'!AP176:AS176,\">1\")))","v":""},{"$f":"IF(SUM('2011 Survey responses'!AT176:BF176)<1,\"\",(AVERAGEIFS('2011 Survey responses'!AT176:BF176,'2011 Survey responses'!AT176:BF176,\">1\")))","v":""},{"$f":"IF(SUM('2011 Survey responses'!BG176:BO176)<1,\"\",(AVERAGEIFS('2011 Survey responses'!BG176:BO176,'2011 Survey responses'!BG176:BO176,\">1\")))","v":""},{"$f":"IF(SUM('2011 Survey responses'!BP176:BS176)<1,\"\",(AVERAGEIFS('2011 Survey responses'!BP176:BS176,'2011 Survey responses'!BP176:BS176,\">1\")))","v":""},{"$f":"IF(SUM('2011 Survey responses'!BT176:BV176)<3.1,\"\",(AVERAGEIFS('2011 Survey responses'!BT176:BV176,'2011 Survey responses'!BT176:BV176,\">1\")))","v":""},{"$f":"IF(('2011 Survey responses'!AQ176+'2011 Survey responses'!AR176+'2011 Survey responses'!BG176)<3.1,\"\",((SUMIF('2011 Survey responses'!AQ176,\">1\")+SUMIF('2011 Survey responses'!AR176,\">1\")+SUMIF('2011 Survey responses'!BG176,\">1\"))/(COUNTIF('2011 Survey responses'!AQ176,\">1\")+COUNTIF('2011 Survey responses'!AR176,\">1\")+COUNTIF('2011 Survey responses'!BG176,\">1\"))))","v":""},{"$f":"IF(SUM('2011 Survey responses'!AP176:AS176)<4.1,\"\",(AVERAGEIFS('2011 Survey responses'!AP176:AS176,'2011 Survey responses'!AP176:AS176,\">1\")))","v":""},{"$f":"IF(('2011 Survey responses'!AU176+'2011 Survey responses'!AX176+'2011 Survey responses'!BA176+'2011 Survey responses'!BC176+'2011 Survey responses'!BD176)<5.1,\"\",(SUMIF('2011 Survey responses'!AU176,\">1\")+SUMIF('2011 Survey responses'!AX176,\">1\")+SUMIF('2011 Survey responses'!BA176,\">1\")+SUMIF('2011 Survey responses'!BC176,\">1\")+SUMIF('2011 Survey responses'!BD176,\">1\"))/(COUNTIF('2011 Survey responses'!AU176,\">1\")+COUNTIF('2011 Survey responses'!AX176,\">1\")+COUNTIF('2011 Survey responses'!BA176,\">1\")+COUNTIF('2011 Survey responses'!BC176,\">1\")+COUNTIF('2011 Survey responses'!BD176,\">1\")))","v":""},{"$f":"IF(('2011 Survey responses'!AT176)<1.1,\"\",('2011 Survey responses'!AT176))","v":""},{"$f":"IF(SUM('2011 Survey responses'!AV176:AW176)<2.1,\"\",(AVERAGEIFS('2011 Survey responses'!AV176:AW176,'2011 Survey responses'!AV176:AW176,\">1\")))","v":""},{"$f":"IF(('2011 Survey responses'!AW176+'2011 Survey responses'!AY176)<2.1,\"\",(SUMIF('2011 Survey responses'!AW176,\">1\")+SUMIF('2011 Survey responses'!AY176,\">1\"))/(COUNTIF('2011 Survey responses'!AW176,\">1\")+COUNTIF('2011 Survey responses'!AY176,\">1\")))","v":""},{"$f":"IF(('2011 Survey responses'!AZ176)<1.1,\"\",('2011 Survey responses'!AZ176))","v":""},null,null,null,null,{"$f":"IF(('2011 Survey responses'!BE176)<1.1,\"\",('2011 Survey responses'!BE176))","v":""},{"$f":"IF(('2011 Survey responses'!AY176+'2011 Survey responses'!BB176+'2011 Survey responses'!BF176)<3.1,\"\",(SUMIF('2011 Survey responses'!AY176,\">1\")+SUMIF('2011 Survey responses'!BB176,\">1\")+SUMIF('2011 Survey responses'!BF176,\">1\"))/(COUNTIF('2011 Survey responses'!AY176,\">1\")+COUNTIF('2011 Survey responses'!BB176,\">1\")+COUNTIF('2011 Survey responses'!BF176,\">1\")))","v":""},"",{"$f":"IF(SUM('2011 Survey responses'!BT176:BV176)<3.1,\"\",(AVERAGEIFS('2011 Survey responses'!BT176:BV176,'2011 Survey responses'!BT176:BV176,\">1\")))","v":""},{"$f":"IF(SUM('2011 Survey responses'!BW176:CP176)<1,\"\",(AVERAGEIFS('2011 Survey responses'!BW176:CP176,'2011 Survey responses'!BW176:CP176,\">1\")))","v":""},{"$f":"IF(SUM('2011 Survey responses'!BW176:CF176)<1,\"\",(AVERAGEIFS('2011 Survey responses'!BW176:CF176,'2011 Survey responses'!BW176:CF176,\">1\")))","v":""},{"$f":"IF(SUM('2011 Survey responses'!CG176:CP176)<1,\"\",(AVERAGEIFS('2011 Survey responses'!CG176:CP176,'2011 Survey responses'!CG176:CP176,\">1\")))","v":""},{"$f":"IF(SUM('2011 Survey responses'!BX176:CF176)<1,\"\",(AVERAGEIFS('2011 Survey responses'!BX176:CF176,'2011 Survey responses'!BX176:CF176,\">1\")))","v":""},{"$f":"IF(SUM('2011 Survey responses'!CH176:CP176)<1,\"\",(AVERAGEIFS('2011 Survey responses'!CH176:CP176,'2011 Survey responses'!CH176:CP176,\">1\")))","v":""},{"$f":"IF(SUM('2011 Survey responses'!BW176:CP176)<1,\"\",(AVERAGEIFS('2011 Survey responses'!BW176:CP176,'2011 Survey responses'!BW176:CP176,\">1\")))","v":""},{"$f":"IF(('2011 Survey responses'!BW176+'2011 Survey responses'!CG176)<2.1,\"\",(SUMIF('2011 Survey responses'!BW176,\">1\")+SUMIF('2011 Survey responses'!CG176,\">1\"))/(COUNTIF('2011 Survey responses'!BW176,\">1\")+COUNTIF('2011 Survey responses'!CG176,\">1\")))","v":""},{"$f":"IF(('2011 Survey responses'!BX176+'2011 Survey responses'!CH176)<2.1,\"\",(SUMIF('2011 Survey responses'!BX176,\">1\")+SUMIF('2011 Survey responses'!CH176,\">1\"))/(COUNTIF('2011 Survey responses'!BX176,\">1\")+COUNTIF('2011 Survey responses'!CH176,\">1\")))","v":""},{"$f":"IF(('2011 Survey responses'!BY176+'2011 Survey responses'!CI176)<2.1,\"\",(SUMIF('2011 Survey responses'!BY176,\">1\")+SUMIF('2011 Survey responses'!CI176,\">1\"))/(COUNTIF('2011 Survey responses'!BY176,\">1\")+COUNTIF('2011 Survey responses'!CI176,\">1\")))","v":""},{"$f":"IF('2011 Survey responses'!CQ176<0.5,\"\",'2011 Survey responses'!CQ176)","v":""},{"$f":"IF('2011 Survey responses'!CR176<0.5,\"\",'2011 Survey responses'!CR176)","v":""},{"$f":"IF('2011 Survey responses'!CS176<0.5,\"\",'2011 Survey responses'!CS176)","v":""},{"$f":"IF('2011 Survey responses'!CT176<0.5,\"\",'2011 Survey responses'!CT176)","v":""},{"$f":"IF('2011 Survey responses'!CU176<0.5,\"\",'2011 Survey responses'!CU176)","v":""},{"$f":"IF('2011 Survey responses'!CV176<0.5,\"\",'2011 Survey responses'!CV176)","v":""},{"$f":"IF(SUM('2011 Survey responses'!CW176:DL176)<1,\"\",(AVERAGE('2011 Survey responses'!CW176:DL176)))","v":""},{"$f":"IF(SUM('2011 Survey responses'!CW176:CZ176)<1,\"\",(AVERAGE('2011 Survey responses'!CW176:CZ176)))","v":""},{"$f":"IF(SUM('2011 Survey responses'!DA176:DD176)<1,\"\",(AVERAGE('2011 Survey responses'!DA176:DD176)))","v":""},{"$f":"IF(SUM('2011 Survey responses'!DE176:DH176)<1,\"\",(AVERAGE('2011 Survey responses'!DE176:DH176)))","v":""},{"$f":"IF(SUM('2011 Survey responses'!DI176:DL176)<1,\"\",(AVERAGE('2011 Survey responses'!DI176:DL176)))","v":""},{"$f":"IF(('2011 Survey responses'!CW176+'2011 Survey responses'!DA176+'2011 Survey responses'!DE176+'2011 Survey responses'!DI176)<1,\"\",AVERAGE('2011 Survey responses'!CW176,'2011 Survey responses'!DA176,'2011 Survey responses'!DE176,'2011 Survey responses'!DI176))","v":""},{"$f":"IF(('2011 Survey responses'!CX176+'2011 Survey responses'!DB176+'2011 Survey responses'!DF176+'2011 Survey responses'!DJ176)<1,\"\",AVERAGE('2011 Survey responses'!CX176,'2011 Survey responses'!DB176,'2011 Survey responses'!DF176,'2011 Survey responses'!DJ176))","v":""},{"$f":"IF(('2011 Survey responses'!CY176+'2011 Survey responses'!DC176+'2011 Survey responses'!DG176+'2011 Survey responses'!DK176)<1,\"\",AVERAGE('2011 Survey responses'!CY176,'2011 Survey responses'!DC176,'2011 Survey responses'!DG176,'2011 Survey responses'!DK176))","v":""},{"$f":"IF(('2011 Survey responses'!CZ176+'2011 Survey responses'!DD176+'2011 Survey responses'!DH176+'2011 Survey responses'!DL176)<1,\"\",AVERAGE('2011 Survey responses'!CZ176,'2011 Survey responses'!DD176,'2011 Survey responses'!DH176,'2011 Survey responses'!DL176))","v":""},{"$f":"IF('2011 Survey responses'!CW176<0.5,\"\",'2011 Survey responses'!CW176)","v":""},{"$f":"IF('2011 Survey responses'!CX176<0.5,\"\",'2011 Survey responses'!CX176)","v":""},{"$f":"IF('2011 Survey responses'!CY176<0.5,\"\",'2011 Survey responses'!CY176)","v":""},{"$f":"IF('2011 Survey responses'!CZ176<0.5,\"\",'2011 Survey responses'!CZ176)","v":""},{"$f":"IF('2011 Survey responses'!DA176<0.5,\"\",'2011 Survey responses'!DA176)","v":""},{"$f":"IF('2011 Survey responses'!DB176<0.5,\"\",'2011 Survey responses'!DB176)","v":""},{"$f":"IF('2011 Survey responses'!DC176<0.5,\"\",'2011 Survey responses'!DC176)","v":""},{"$f":"IF('2011 Survey responses'!DD176<0.5,\"\",'2011 Survey responses'!DD176)","v":""},{"$f":"IF('2011 Survey responses'!DE176<0.5,\"\",'2011 Survey responses'!DE176)","v":""},{"$f":"IF('2011 Survey responses'!DF176<0.5,\"\",'2011 Survey responses'!DF176)","v":""},{"$f":"IF('2011 Survey responses'!DG176<0.5,\"\",'2011 Survey responses'!DG176)","v":""},{"$f":"IF('2011 Survey responses'!DH176<0.5,\"\",'2011 Survey responses'!DH176)","v":""},{"$f":"IF('2011 Survey responses'!DI176<0.5,\"\",'2011 Survey responses'!DI176)","v":""},{"$f":"IF('2011 Survey responses'!DJ176<0.5,\"\",'2011 Survey responses'!DJ176)","v":""},{"$f":"IF('2011 Survey responses'!DK176<0.5,\"\",'2011 Survey responses'!DK176)","v":""},{"$f":"IF('2011 Survey responses'!DL176<0.5,\"\",'2011 Survey responses'!DL176)","v":""},{"$f":"IF('2011 Survey responses'!DU176=4,4,IF('2011 Survey responses'!DU176=5,4,\"\"))","v":""},{"$f":"IF('2011 Survey responses'!DV176=4,3,IF('2011 Survey responses'!DV176=5,3,\"\"))","v":""},"",{"$f":"IF(CQ176=2,CQ176,IF(CO176=4,CO176,IF(CP176=3,CP176,IF('2011 Survey responses'!GT176=1,1,\"\"))))","v":""},{"$f":"IF('2011 Survey responses'!DO176<0.5,\"\",'2011 Survey responses'!DO176)","v":""},{"$f":"IF('2011 Survey responses'!DP176<0.5,\"\",'2011 Survey responses'!DP176)","v":""},{"$f":"IF('2011 Survey responses'!DQ176<0.5,\"\",'2011 Survey responses'!DQ176)","v":""},{"$f":"IF('2011 Survey responses'!DR176<0.5,\"\",'2011 Survey responses'!DR176)","v":""},{"$f":"IF('2011 Survey responses'!DS176<0.5,\"\",'2011 Survey responses'!DS176)","v":""},{"$f":"IF('2011 Survey responses'!DT176<0.5,\"\",'2011 Survey responses'!DT176)","v":""},{"$f":"IF('2011 Survey responses'!DU176<0.5,\"\",'2011 Survey responses'!DU176)","v":""},{"$f":"IF('2011 Survey responses'!DV176<0.5,\"\",'2011 Survey responses'!DV176)","v":""},{"$f":"IF('2011 Survey responses'!DW176<0.5,\"\",'2011 Survey responses'!DW176)","v":""},{"$f":"IF('2011 Survey responses'!DX176<0.5,\"\",'2011 Survey responses'!DX176)","v":""},{"$f":"IF('2011 Survey responses'!DY176<0.5,\"\",'2011 Survey responses'!DY176)","v":""},{"$f":"IF('2011 Survey responses'!DZ176<0.5,\"\",'2011 Survey responses'!DZ176)","v":""},{"$f":"IF('2011 Survey responses'!EA176<0.5,\"\",'2011 Survey responses'!EA176)","v":""},{"$f":"IF('2011 Survey responses'!EB176<0.5,\"\",'2011 Survey responses'!EB176)","v":""},{"$f":"IF('2011 Survey responses'!EC176<0.5,\"\",'2011 Survey responses'!EC176)","v":""},{"$f":"IF('2011 Survey responses'!ED176<0.5,\"\",'2011 Survey responses'!ED176)","v":""},{"$f":"IF('2011 Survey responses'!EE176<0.5,\"\",'2011 Survey responses'!EE176)","v":""},{"$f":"IF('2011 Survey responses'!EF176<0.5,\"\",'2011 Survey responses'!EF176)","v":""},{"$f":"IF('2011 Survey responses'!EG176<0.5,\"\",'2011 Survey responses'!EG176)","v":""},{"$f":"IF('2011 Survey responses'!EH176<0.5,\"\",'2011 Survey responses'!EH176)","v":""},{"$f":"IF('2011 Survey responses'!EI176<0.5,\"\",'2011 Survey responses'!EI176)","v":""},{"$f":"IF('2011 Survey responses'!EJ176<0.5,\"\",'2011 Survey responses'!EJ176)","v":""},{"$f":"IF('2011 Survey responses'!EK176<0.5,\"\",'2011 Survey responses'!EK176)","v":""},{"$f":"IF('2011 Survey responses'!EL176<0.5,\"\",'2011 Survey responses'!EL176)","v":""},{"$f":"IF('2011 Survey responses'!EM176<0.5,\"\",'2011 Survey responses'!EM176)","v":""},{"$f":"IF('2011 Survey responses'!EN176<0.5,\"\",'2011 Survey responses'!EN176)","v":""},{"$f":"IF('2011 Survey responses'!EO176<0.5,\"\",'2011 Survey responses'!EO176)","v":""},{"$f":"IF('2011 Survey responses'!EP176<0.5,\"\",'2011 Survey responses'!EP176)","v":""},{"$f":"IF(('2011 Survey responses'!EW176+'2011 Survey responses'!EX176)>=2,AVERAGE('2011 Survey responses'!EW176,'2011 Survey responses'!EY176),\"\")","v":""},{"$f":"IF('2011 Survey responses'!EX176<0.5,\"\",'2011 Survey responses'!EX176)","v":""},{"$f":"IF('2011 Survey responses'!EZ176<0.5,\"\",'2011 Survey responses'!EZ176)","v":""},{"$f":"IF('2011 Survey responses'!FB176<0.5,\"\",'2011 Survey responses'!FB176)","v":""},{"$f":"IF('2011 Survey responses'!FD176<0.5,\"\",'2011 Survey responses'!FD176)","v":""},{"$f":"IF('2011 Survey responses'!FC176<0.5,\"\",'2011 Survey responses'!FC176)","v":""},{"$f":"IF(('2011 Survey responses'!EM176+'2011 Survey responses'!EN176)>=2,AVERAGE('2011 Survey responses'!EM176,'2011 Survey responses'!EN176),\"\")","v":""},{"$f":"IF('2011 Survey responses'!ES176<0.5,\"\",'2011 Survey responses'!ES176)","v":""},{"$f":"IF(('2011 Survey responses'!ET176+'2011 Survey responses'!EU176)>=2,AVERAGE('2011 Survey responses'!ET176,'2011 Survey responses'!EU176),\"\")","v":""},{"$f":"IF('2011 Survey responses'!EV176<0.5,\"\",'2011 Survey responses'!EV176)","v":""},{"$f":"IF('2011 Survey responses'!FA176<0.5,\"\",'2011 Survey responses'!FA176)","v":""},{"$f":"IF('2011 Survey responses'!ER176<0.5,\"\",'2011 Survey responses'!ER176)","v":""},{"$f":"IF(('2011 Survey responses'!EO176+'2011 Survey responses'!EP176)>=2,AVERAGE('2011 Survey responses'!EO176,'2011 Survey responses'!EP176),\"\")","v":""},{"$f":"IF('2011 Survey responses'!EQ176<0.5,\"\",'2011 Survey responses'!EQ176)","v":""},{"$f":"IF('2011 Survey responses'!ET176<0.5,\"\",'2011 Survey responses'!ET176)","v":""},{"$f":"IF('2011 Survey responses'!EU176<0.5,\"\",'2011 Survey responses'!EU176)","v":""},{"$f":"IF('2011 Survey responses'!EW176<0.5,\"\",'2011 Survey responses'!EW176)","v":""},{"$f":"IF('2011 Survey responses'!EY176<0.5,\"\",'2011 Survey responses'!EY176)","v":""},{"$f":"IF('2011 Survey responses'!FU176<0.5,\"\",'2011 Survey responses'!FU176)","v":""},{"$f":"IF(('2011 Survey responses'!FL176+'2011 Survey responses'!FM176)>=2,AVERAGE('2011 Survey responses'!FL176,'2011 Survey responses'!FM176),\"\")","v":""},{"$f":"IF(('2011 Survey responses'!FO176+'2011 Survey responses'!FQ176)>=2,AVERAGE('2011 Survey responses'!FO176,'2011 Survey responses'!FQ176),\"\")","v":""},{"$f":"IF('2011 Survey responses'!FJ176<0.5,\"\",'2011 Survey responses'!FJ176)","v":""},{"$f":"IF('2011 Survey responses'!FT176<0.5,\"\",'2011 Survey responses'!FT176)","v":""},{"$f":"IF('2011 Survey responses'!FR176<0.5,\"\",'2011 Survey responses'!FR176)","v":""},{"$f":"IF('2011 Survey responses'!FK176<0.5,\"\",'2011 Survey responses'!FK176)","v":""},{"$f":"IF('2011 Survey responses'!FP176<0.5,\"\",'2011 Survey responses'!FP176)","v":""},{"$f":"IF('2011 Survey responses'!FN176<0.5,\"\",'2011 Survey responses'!FN176)","v":""},{"$f":"IF(('2011 Survey responses'!FE176+'2011 Survey responses'!FF176)>=2,AVERAGE('2011 Survey responses'!FE176,'2011 Survey responses'!FF176),\"\")","v":""},{"$f":"IF('2011 Survey responses'!FS176<0.5,\"\",'2011 Survey responses'!FS176)","v":""},{"$f":"IF('2011 Survey responses'!FV176<0.5,\"\",'2011 Survey responses'!FV176)","v":""},{"$f":"IF(('2011 Survey responses'!FG176+'2011 Survey responses'!FH176)>=2,AVERAGE('2011 Survey responses'!FG176,'2011 Survey responses'!FH176),\"\")","v":""},{"$f":"IF('2011 Survey responses'!FI176<0.5,\"\",'2011 Survey responses'!FI176)","v":""},{"$f":"IF('2011 Survey responses'!FE176<0.5,\"\",'2011 Survey responses'!FE176)","v":""},{"$f":"IF('2011 Survey responses'!FF176<0.5,\"\",'2011 Survey responses'!FF176)","v":""},{"$f":"IF('2011 Survey responses'!FG176<0.5,\"\",'2011 Survey responses'!FG176)","v":""},{"$f":"IF('2011 Survey responses'!FH176<0.5,\"\",'2011 Survey responses'!FH176)","v":""},{"$f":"IF('2011 Survey responses'!FL176<0.5,\"\",'2011 Survey responses'!FL176)","v":""},{"$f":"IF('2011 Survey responses'!FM176<0.5,\"\",'2011 Survey responses'!FM176)","v":""},{"$f":"IF('2011 Survey responses'!FO176<0.5,\"\",'2011 Survey responses'!FO176)","v":""},{"$f":"IF('2011 Survey responses'!FQ176<0.5,\"\",'2011 Survey responses'!FQ176)","v":""}]
["Tunisia",{"$f":"IF(SUM(F177)<1,\"\",AVERAGEIF('2011 Survey responses'!B177:CP177,\">1\"))","v":4.7317073170731705},{"$f":"IF(SUM(F177)<1,\"\",AVERAGEIF('2011 Survey responses'!B177:AO177,\">1\"))","v":4.6969696969696972},{"$f":"IF(SUM(F177)<1,\"\",AVERAGEIF('2011 Survey responses'!B177:BV177,\">1\"))","v":4.6969696969696972},{"$f":"IF(SUM(F177)<1,\"\",AVERAGEIF('2011 Survey responses'!V177:BV177,\">1\"))","v":4.645833333333333},{"$f":"IF(SUM('2011 Survey responses'!B177:U177)<1,\"\",(AVERAGEIFS('2011 Survey responses'!B177:U177,'2011 Survey responses'!B177:U177,\">1\")))","v":4.833333333333333},{"$f":"IF(SUM('2011 Survey responses'!B177:H177)<1,\"\",(AVERAGEIFS('2011 Survey responses'!B177:H177,'2011 Survey responses'!B177:H177,\">1\")))","v":5.2},{"$f":"IF(SUM('2011 Survey responses'!I177:S177)<1,\"\",(AVERAGEIFS('2011 Survey responses'!I177:S177,'2011 Survey responses'!I177:S177,\">1\")))","v":4.6363636363636367},{"$f":"IF(SUM('2011 Survey responses'!T177:U177)<2.1,\"\",(AVERAGEIFS('2011 Survey responses'!T177:U177,'2011 Survey responses'!T177:U177,\">1\")))","v":5},{"$f":"IF(SUM('2011 Survey responses'!B177:C177)<2.1,\"\",((SUMIF('2011 Survey responses'!B177:C177,\">1\")+SUMIF('2011 Survey responses'!F177,\">1\"))/(COUNTIF('2011 Survey responses'!B177:C177,\">1\")+COUNTIF('2011 Survey responses'!F177,\">1\"))))","v":5.5},{"$f":"IF(SUM('2011 Survey responses'!D177:E177)<2.1,\"\",(AVERAGEIFS('2011 Survey responses'!D177:E177,'2011 Survey responses'!D177:E177,\">1\")))","v":6},{"$f":"IF(('2011 Survey responses'!B177+'2011 Survey responses'!D177)<2.1,\"\",((SUMIF('2011 Survey responses'!B177,\">1\")+SUMIF('2011 Survey responses'!D177,\">1\")+SUMIF('2011 Survey responses'!F177,\">1\")+SUMIF('2011 Survey responses'!K177,\">1\"))/(COUNTIF('2011 Survey responses'!B177,\">1\")+COUNTIF('2011 Survey responses'!D177,\">1\")+COUNTIF('2011 Survey responses'!F177,\">1\")+COUNTIF('2011 Survey responses'!K177,\">1\"))))","v":5.5},{"$f":"IF(SUM('2011 Survey responses'!G177:H177)<2.1,\"\",(AVERAGEIFS('2011 Survey responses'!G177:H177,'2011 Survey responses'!G177:H177,\">1\")))","v":4.5},{"$f":"IF(SUM('2011 Survey responses'!F177:G177)<1.5,\"\",MAX('2011 Survey responses'!F177,'2011 Survey responses'!G177))","v":5},{"$f":"IF(SUM('2011 Survey responses'!G177:H177)<1,\"\",MAX('2011 Survey responses'!G177,'2011 Survey responses'!H177))","v":5},{"$f":"IF(SUM('2011 Survey responses'!I177:L177)<4.1,\"\",(AVERAGEIFS('2011 Survey responses'!I177:L177,'2011 Survey responses'!I177:L177,\">1\")))","v":4.5},{"$f":"IF(SUM('2011 Survey responses'!M177:S177)<4.1,\"\",(AVERAGEIFS('2011 Survey responses'!M177:S177,'2011 Survey responses'!M177:S177,\">1\")))","v":4.7142857142857144},{"$f":"IF(SUM('2011 Survey responses'!T177:U177)<2.1,\"\",(AVERAGEIFS('2011 Survey responses'!T177:U177,'2011 Survey responses'!T177:U177,\">1\")))","v":5},{"$f":"IF(SUM('2011 Survey responses'!V177:AO177)<1,\"\",(AVERAGEIFS('2011 Survey responses'!V177:AO177,'2011 Survey responses'!V177:AO177,\">1\")))","v":4.5333333333333332},{"$f":"IF(SUM('2011 Survey responses'!V177:AA177)<1,\"\",(AVERAGEIFS('2011 Survey responses'!V177:AA177,'2011 Survey responses'!V177:AA177,\">1\")))","v":5},{"$f":"IF(SUM('2011 Survey responses'!AB177:AH177)<1,\"\",(AVERAGEIFS('2011 Survey responses'!AB177:AH177,'2011 Survey responses'!AB177:AH177,\">1\")))","v":3.25},{"$f":"IF(SUM('2011 Survey responses'!AI177:AO177)<1,\"\",(AVERAGEIFS('2011 Survey responses'!AI177:AO177,'2011 Survey responses'!AI177:AO177,\">1\")))","v":5},{"$f":"IF(('2011 Survey responses'!Y177+'2011 Survey responses'!AI177+'2011 Survey responses'!AK177)<3.1,\"\",((SUMIF('2011 Survey responses'!Y177,\">1\")+SUMIF('2011 Survey responses'!AI177,\">1\")+SUMIF('2011 Survey responses'!AK177,\">1\")+SUMIF('2011 Survey responses'!AM177,\">1\"))/(COUNTIF('2011 Survey responses'!Y177,\">1\")+COUNTIF('2011 Survey responses'!AI177,\">1\")+COUNTIF('2011 Survey responses'!AK177,\">1\")+COUNTIF('2011 Survey responses'!AM177,\">1\"))))","v":5},{"$f":"IF(('2011 Survey responses'!W177)<1.1,\"\",('2011 Survey responses'!W177))","v":5},{"$f":"IF(('2011 Survey responses'!Y177)<1.1,\"\",('2011 Survey responses'!Y177))","v":5},{"$f":"IF(('2011 Survey responses'!Z177)<1.1,\"\",('2011 Survey responses'!Z177))","v":5},{"$f":"IF(('2011 Survey responses'!V177+'2011 Survey responses'!X177+'2011 Survey responses'!AA177)<3.1,\"\",((SUMIF('2011 Survey responses'!V177,\">1\")+SUMIF('2011 Survey responses'!X177,\">1\")+SUMIF('2011 Survey responses'!AA177,\">1\"))/(COUNTIF('2011 Survey responses'!V177,\">1\")+COUNTIF('2011 Survey responses'!X177,\">1\")+COUNTIF('2011 Survey responses'!AA177,\">1\"))))","v":5},{"$f":"IF(('2011 Survey responses'!V177+'2011 Survey responses'!Y177+'2011 Survey responses'!AA177)<3.1,\"\",((SUMIF('2011 Survey responses'!V177,\">1\")+SUMIF('2011 Survey responses'!Y177,\">1\")+SUMIF('2011 Survey responses'!AA177,\">1\"))/(COUNTIF('2011 Survey responses'!V177,\">1\")+COUNTIF('2011 Survey responses'!Y177,\">1\")+COUNTIF('2011 Survey responses'!AA177,\">1\"))))","v":5},{"$f":"IF(SUM('2011 Survey responses'!AB177:AH177)<1,\"\",(AVERAGEIFS('2011 Survey responses'!AB177:AH177,'2011 Survey responses'!AB177:AH177,\">1\")))","v":3.25},{"$f":"IF(SUM('2011 Survey responses'!AI177:AO177)<7.1,\"\",(AVERAGEIFS('2011 Survey responses'!AI177:AO177,'2011 Survey responses'!AI177:AO177,\">1\")))","v":5},{"$f":"IF(('2011 Survey responses'!AH177)<1.1,\"\",('2011 Survey responses'!AH177))","v":2},{"$f":"IF(SUM('2011 Survey responses'!AP177:BV177)<1,\"\",(AVERAGEIFS('2011 Survey responses'!AP177:BV177,'2011 Survey responses'!AP177:BV177,\">1\")))","v":4.6969696969696972},{"$f":"IF(SUM('2011 Survey responses'!AP177:AS177)<4.1,\"\",(AVERAGEIFS('2011 Survey responses'!AP177:AS177,'2011 Survey responses'!AP177:AS177,\">1\")))","v":5},{"$f":"IF(SUM('2011 Survey responses'!AT177:BF177)<1,\"\",(AVERAGEIFS('2011 Survey responses'!AT177:BF177,'2011 Survey responses'!AT177:BF177,\">1\")))","v":4.6923076923076925},{"$f":"IF(SUM('2011 Survey responses'!BG177:BO177)<1,\"\",(AVERAGEIFS('2011 Survey responses'!BG177:BO177,'2011 Survey responses'!BG177:BO177,\">1\")))","v":5},{"$f":"IF(SUM('2011 Survey responses'!BP177:BS177)<1,\"\",(AVERAGEIFS('2011 Survey responses'!BP177:BS177,'2011 Survey responses'!BP177:BS177,\">1\")))","v":4.25},{"$f":"IF(SUM('2011 Survey responses'!BT177:BV177)<3.1,\"\",(AVERAGEIFS('2011 Survey responses'!BT177:BV177,'2011 Survey responses'!BT177:BV177,\">1\")))","v":4},{"$f":"IF(('2011 Survey responses'!AQ177+'2011 Survey responses'!AR177+'2011 Survey responses'!BG177)<3.1,\"\",((SUMIF('2011 Survey responses'!AQ177,\">1\")+SUMIF('2011 Survey responses'!AR177,\">1\")+SUMIF('2011 Survey responses'!BG177,\">1\"))/(COUNTIF('2011 Survey responses'!AQ177,\">1\")+COUNTIF('2011 Survey responses'!AR177,\">1\")+COUNTIF('2011 Survey responses'!BG177,\">1\"))))","v":5},{"$f":"IF(SUM('2011 Survey responses'!AP177:AS177)<4.1,\"\",(AVERAGEIFS('2011 Survey responses'!AP177:AS177,'2011 Survey responses'!AP177:AS177,\">1\")))","v":5},{"$f":"IF(('2011 Survey responses'!AU177+'2011 Survey responses'!AX177+'2011 Survey responses'!BA177+'2011 Survey responses'!BC177+'2011 Survey responses'!BD177)<5.1,\"\",(SUMIF('2011 Survey responses'!AU177,\">1\")+SUMIF('2011 Survey responses'!AX177,\">1\")+SUMIF('2011 Survey responses'!BA177,\">1\")+SUMIF('2011 Survey responses'!BC177,\">1\")+SUMIF('2011 Survey responses'!BD177,\">1\"))/(COUNTIF('2011 Survey responses'!AU177,\">1\")+COUNTIF('2011 Survey responses'!AX177,\">1\")+COUNTIF('2011 Survey responses'!BA177,\">1\")+COUNTIF('2011 Survey responses'!BC177,\">1\")+COUNTIF('2011 Survey responses'!BD177,\">1\")))","v":4.4000000000000004},{"$f":"IF(('2011 Survey responses'!AT177)<1.1,\"\",('2011 Survey responses'!AT177))","v":5},{"$f":"IF(SUM('2011 Survey responses'!AV177:AW177)<2.1,\"\",(AVERAGEIFS('2011 Survey responses'!AV177:AW177,'2011 Survey responses'!AV177:AW177,\">1\")))","v":5},{"$f":"IF(('2011 Survey responses'!AW177+'2011 Survey responses'!AY177)<2.1,\"\",(SUMIF('2011 Survey responses'!AW177,\">1\")+SUMIF('2011 Survey responses'!AY177,\">1\"))/(COUNTIF('2011 Survey responses'!AW177,\">1\")+COUNTIF('2011 Survey responses'!AY177,\">1\")))","v":5},{"$f":"IF(('2011 Survey responses'!AZ177)<1.1,\"\",('2011 Survey responses'!AZ177))","v":5},5,4,4,4,{"$f":"IF(('2011 Survey responses'!BE177)<1.1,\"\",('2011 Survey responses'!BE177))","v":5},{"$f":"IF(('2011 Survey responses'!AY177+'2011 Survey responses'!BB177+'2011 Survey responses'!BF177)<3.1,\"\",(SUMIF('2011 Survey responses'!AY177,\">1\")+SUMIF('2011 Survey responses'!BB177,\">1\")+SUMIF('2011 Survey responses'!BF177,\">1\"))/(COUNTIF('2011 Survey responses'!AY177,\">1\")+COUNTIF('2011 Survey responses'!BB177,\">1\")+COUNTIF('2011 Survey responses'!BF177,\">1\")))","v":4.666666666666667},4.625,{"$f":"IF(SUM('2011 Survey responses'!BT177:BV177)<3.1,\"\",(AVERAGEIFS('2011 Survey responses'!BT177:BV177,'2011 Survey responses'!BT177:BV177,\">1\")))","v":4},{"$f":"IF(SUM('2011 Survey responses'!BW177:CP177)<1,\"\",(AVERAGEIFS('2011 Survey responses'!BW177:CP177,'2011 Survey responses'!BW177:CP177,\">1\")))","v":4.875},{"$f":"IF(SUM('2011 Survey responses'!BW177:CF177)<1,\"\",(AVERAGEIFS('2011 Survey responses'!BW177:CF177,'2011 Survey responses'!BW177:CF177,\">1\")))","v":4.875},{"$f":"IF(SUM('2011 Survey responses'!CG177:CP177)<1,\"\",(AVERAGEIFS('2011 Survey responses'!CG177:CP177,'2011 Survey responses'!CG177:CP177,\">1\")))","v":4.875},{"$f":"IF(SUM('2011 Survey responses'!BX177:CF177)<1,\"\",(AVERAGEIFS('2011 Survey responses'!BX177:CF177,'2011 Survey responses'!BX177:CF177,\">1\")))","v":4.8571428571428568},{"$f":"IF(SUM('2011 Survey responses'!CH177:CP177)<1,\"\",(AVERAGEIFS('2011 Survey responses'!CH177:CP177,'2011 Survey responses'!CH177:CP177,\">1\")))","v":4.8571428571428568},{"$f":"IF(SUM('2011 Survey responses'!BW177:CP177)<1,\"\",(AVERAGEIFS('2011 Survey responses'!BW177:CP177,'2011 Survey responses'!BW177:CP177,\">1\")))","v":4.875},{"$f":"IF(('2011 Survey responses'!BW177+'2011 Survey responses'!CG177)<2.1,\"\",(SUMIF('2011 Survey responses'!BW177,\">1\")+SUMIF('2011 Survey responses'!CG177,\">1\"))/(COUNTIF('2011 Survey responses'!BW177,\">1\")+COUNTIF('2011 Survey responses'!CG177,\">1\")))","v":5},{"$f":"IF(('2011 Survey responses'!BX177+'2011 Survey responses'!CH177)<2.1,\"\",(SUMIF('2011 Survey responses'!BX177,\">1\")+SUMIF('2011 Survey responses'!CH177,\">1\"))/(COUNTIF('2011 Survey responses'!BX177,\">1\")+COUNTIF('2011 Survey responses'!CH177,\">1\")))","v":5},{"$f":"IF(('2011 Survey responses'!BY177+'2011 Survey responses'!CI177)<2.1,\"\",(SUMIF('2011 Survey responses'!BY177,\">1\")+SUMIF('2011 Survey responses'!CI177,\">1\"))/(COUNTIF('2011 Survey responses'!BY177,\">1\")+COUNTIF('2011 Survey responses'!CI177,\">1\")))","v":""},{"$f":"IF('2011 Survey responses'!CQ177<0.5,\"\",'2011 Survey responses'!CQ177)","v":4},{"$f":"IF('2011 Survey responses'!CR177<0.5,\"\",'2011 Survey responses'!CR177)","v":5},{"$f":"IF('2011 Survey responses'!CS177<0.5,\"\",'2011 Survey responses'!CS177)","v":5},{"$f":"IF('2011 Survey responses'!CT177<0.5,\"\",'2011 Survey responses'!CT177)","v":4},{"$f":"IF('2011 Survey responses'!CU177<0.5,\"\",'2011 Survey responses'!CU177)","v":4},{"$f":"IF('2011 Survey responses'!CV177<0.5,\"\",'2011 Survey responses'!CV177)","v":4},{"$f":"IF(SUM('2011 Survey responses'!CW177:DL177)<1,\"\",(AVERAGE('2011 Survey responses'!CW177:DL177)))","v":3.0625},{"$f":"IF(SUM('2011 Survey responses'!CW177:CZ177)<1,\"\",(AVERAGE('2011 Survey responses'!CW177:CZ177)))","v":3.75},{"$f":"IF(SUM('2011 Survey responses'!DA177:DD177)<1,\"\",(AVERAGE('2011 Survey responses'!DA177:DD177)))","v":2},{"$f":"IF(SUM('2011 Survey responses'!DE177:DH177)<1,\"\",(AVERAGE('2011 Survey responses'!DE177:DH177)))","v":2.5},{"$f":"IF(SUM('2011 Survey responses'!DI177:DL177)<1,\"\",(AVERAGE('2011 Survey responses'!DI177:DL177)))","v":4},{"$f":"IF(('2011 Survey responses'!CW177+'2011 Survey responses'!DA177+'2011 Survey responses'!DE177+'2011 Survey responses'!DI177)<1,\"\",AVERAGE('2011 Survey responses'!CW177,'2011 Survey responses'!DA177,'2011 Survey responses'!DE177,'2011 Survey responses'!DI177))","v":3.5},{"$f":"IF(('2011 Survey responses'!CX177+'2011 Survey responses'!DB177+'2011 Survey responses'!DF177+'2011 Survey responses'!DJ177)<1,\"\",AVERAGE('2011 Survey responses'!CX177,'2011 Survey responses'!DB177,'2011 Survey responses'!DF177,'2011 Survey responses'!DJ177))","v":3},{"$f":"IF(('2011 Survey responses'!CY177+'2011 Survey responses'!DC177+'2011 Survey responses'!DG177+'2011 Survey responses'!DK177)<1,\"\",AVERAGE('2011 Survey responses'!CY177,'2011 Survey responses'!DC177,'2011 Survey responses'!DG177,'2011 Survey responses'!DK177))","v":2.75},{"$f":"IF(('2011 Survey responses'!CZ177+'2011 Survey responses'!DD177+'2011 Survey responses'!DH177+'2011 Survey responses'!DL177)<1,\"\",AVERAGE('2011 Survey responses'!CZ177,'2011 Survey responses'!DD177,'2011 Survey responses'!DH177,'2011 Survey responses'!DL177))","v":3},{"$f":"IF('2011 Survey responses'!CW177<0.5,\"\",'2011 Survey responses'!CW177)","v":4},{"$f":"IF('2011 Survey responses'!CX177<0.5,\"\",'2011 Survey responses'!CX177)","v":3},{"$f":"IF('2011 Survey responses'!CY177<0.5,\"\",'2011 Survey responses'!CY177)","v":4},{"$f":"IF('2011 Survey responses'!CZ177<0.5,\"\",'2011 Survey responses'!CZ177)","v":4},{"$f":"IF('2011 Survey responses'!DA177<0.5,\"\",'2011 Survey responses'!DA177)","v":2},{"$f":"IF('2011 Survey responses'!DB177<0.5,\"\",'2011 Survey responses'!DB177)","v":2},{"$f":"IF('2011 Survey responses'!DC177<0.5,\"\",'2011 Survey responses'!DC177)","v":2},{"$f":"IF('2011 Survey responses'!DD177<0.5,\"\",'2011 Survey responses'!DD177)","v":2},{"$f":"IF('2011 Survey responses'!DE177<0.5,\"\",'2011 Survey responses'!DE177)","v":3},{"$f":"IF('2011 Survey responses'!DF177<0.5,\"\",'2011 Survey responses'!DF177)","v":3},{"$f":"IF('2011 Survey responses'!DG177<0.5,\"\",'2011 Survey responses'!DG177)","v":2},{"$f":"IF('2011 Survey responses'!DH177<0.5,\"\",'2011 Survey responses'!DH177)","v":2},{"$f":"IF('2011 Survey responses'!DI177<0.5,\"\",'2011 Survey responses'!DI177)","v":5},{"$f":"IF('2011 Survey responses'!DJ177<0.5,\"\",'2011 Survey responses'!DJ177)","v":4},{"$f":"IF('2011 Survey responses'!DK177<0.5,\"\",'2011 Survey responses'!DK177)","v":3},{"$f":"IF('2011 Survey responses'!DL177<0.5,\"\",'2011 Survey responses'!DL177)","v":4},{"$f":"IF('2011 Survey responses'!DU177=4,4,IF('2011 Survey responses'!DU177=5,4,\"\"))","v":4},{"$f":"IF('2011 Survey responses'!DV177=4,3,IF('2011 Survey responses'!DV177=5,3,\"\"))","v":3},2,{"$f":"IF(CQ177=2,CQ177,IF(CO177=4,CO177,IF(CP177=3,CP177,IF('2011 Survey responses'!GT177=1,1,\"\"))))","v":2},{"$f":"IF('2011 Survey responses'!DO177<0.5,\"\",'2011 Survey responses'!DO177)","v":3},{"$f":"IF('2011 Survey responses'!DP177<0.5,\"\",'2011 Survey responses'!DP177)","v":4},{"$f":"IF('2011 Survey responses'!DQ177<0.5,\"\",'2011 Survey responses'!DQ177)","v":4},{"$f":"IF('2011 Survey responses'!DR177<0.5,\"\",'2011 Survey responses'!DR177)","v":1},{"$f":"IF('2011 Survey responses'!DS177<0.5,\"\",'2011 Survey responses'!DS177)","v":3},{"$f":"IF('2011 Survey responses'!DT177<0.5,\"\",'2011 Survey responses'!DT177)","v":4},{"$f":"IF('2011 Survey responses'!DU177<0.5,\"\",'2011 Survey responses'!DU177)","v":4},{"$f":"IF('2011 Survey responses'!DV177<0.5,\"\",'2011 Survey responses'!DV177)","v":5},{"$f":"IF('2011 Survey responses'!DW177<0.5,\"\",'2011 Survey responses'!DW177)","v":2},{"$f":"IF('2011 Survey responses'!DX177<0.5,\"\",'2011 Survey responses'!DX177)","v":2},{"$f":"IF('2011 Survey responses'!DY177<0.5,\"\",'2011 Survey responses'!DY177)","v":1},{"$f":"IF('2011 Survey responses'!DZ177<0.5,\"\",'2011 Survey responses'!DZ177)","v":4},{"$f":"IF('2011 Survey responses'!EA177<0.5,\"\",'2011 Survey responses'!EA177)","v":5},{"$f":"IF('2011 Survey responses'!EB177<0.5,\"\",'2011 Survey responses'!EB177)","v":5},{"$f":"IF('2011 Survey responses'!EC177<0.5,\"\",'2011 Survey responses'!EC177)","v":4},{"$f":"IF('2011 Survey responses'!ED177<0.5,\"\",'2011 Survey responses'!ED177)","v":3},{"$f":"IF('2011 Survey responses'!EE177<0.5,\"\",'2011 Survey responses'!EE177)","v":4},{"$f":"IF('2011 Survey responses'!EF177<0.5,\"\",'2011 Survey responses'!EF177)","v":5},{"$f":"IF('2011 Survey responses'!EG177<0.5,\"\",'2011 Survey responses'!EG177)","v":5},{"$f":"IF('2011 Survey responses'!EH177<0.5,\"\",'2011 Survey responses'!EH177)","v":5},{"$f":"IF('2011 Survey responses'!EI177<0.5,\"\",'2011 Survey responses'!EI177)","v":3},{"$f":"IF('2011 Survey responses'!EJ177<0.5,\"\",'2011 Survey responses'!EJ177)","v":3},{"$f":"IF('2011 Survey responses'!EK177<0.5,\"\",'2011 Survey responses'!EK177)","v":3},{"$f":"IF('2011 Survey responses'!EL177<0.5,\"\",'2011 Survey responses'!EL177)","v":5},{"$f":"IF('2011 Survey responses'!EM177<0.5,\"\",'2011 Survey responses'!EM177)","v":4},{"$f":"IF('2011 Survey responses'!EN177<0.5,\"\",'2011 Survey responses'!EN177)","v":5},{"$f":"IF('2011 Survey responses'!EO177<0.5,\"\",'2011 Survey responses'!EO177)","v":3},{"$f":"IF('2011 Survey responses'!EP177<0.5,\"\",'2011 Survey responses'!EP177)","v":1},{"$f":"IF(('2011 Survey responses'!EW177+'2011 Survey responses'!EX177)>=2,AVERAGE('2011 Survey responses'!EW177,'2011 Survey responses'!EY177),\"\")","v":4},{"$f":"IF('2011 Survey responses'!EX177<0.5,\"\",'2011 Survey responses'!EX177)","v":3},{"$f":"IF('2011 Survey responses'!EZ177<0.5,\"\",'2011 Survey responses'!EZ177)","v":4},{"$f":"IF('2011 Survey responses'!FB177<0.5,\"\",'2011 Survey responses'!FB177)","v":4},{"$f":"IF('2011 Survey responses'!FD177<0.5,\"\",'2011 Survey responses'!FD177)","v":5},{"$f":"IF('2011 Survey responses'!FC177<0.5,\"\",'2011 Survey responses'!FC177)","v":3},{"$f":"IF(('2011 Survey responses'!EM177+'2011 Survey responses'!EN177)>=2,AVERAGE('2011 Survey responses'!EM177,'2011 Survey responses'!EN177),\"\")","v":4.5},{"$f":"IF('2011 Survey responses'!ES177<0.5,\"\",'2011 Survey responses'!ES177)","v":5},{"$f":"IF(('2011 Survey responses'!ET177+'2011 Survey responses'!EU177)>=2,AVERAGE('2011 Survey responses'!ET177,'2011 Survey responses'!EU177),\"\")","v":4},{"$f":"IF('2011 Survey responses'!EV177<0.5,\"\",'2011 Survey responses'!EV177)","v":4},{"$f":"IF('2011 Survey responses'!FA177<0.5,\"\",'2011 Survey responses'!FA177)","v":3},{"$f":"IF('2011 Survey responses'!ER177<0.5,\"\",'2011 Survey responses'!ER177)","v":5},{"$f":"IF(('2011 Survey responses'!EO177+'2011 Survey responses'!EP177)>=2,AVERAGE('2011 Survey responses'!EO177,'2011 Survey responses'!EP177),\"\")","v":2},{"$f":"IF('2011 Survey responses'!EQ177<0.5,\"\",'2011 Survey responses'!EQ177)","v":3},{"$f":"IF('2011 Survey responses'!ET177<0.5,\"\",'2011 Survey responses'!ET177)","v":4},{"$f":"IF('2011 Survey responses'!EU177<0.5,\"\",'2011 Survey responses'!EU177)","v":4},{"$f":"IF('2011 Survey responses'!EW177<0.5,\"\",'2011 Survey responses'!EW177)","v":4},{"$f":"IF('2011 Survey responses'!EY177<0.5,\"\",'2011 Survey responses'!EY177)","v":4},{"$f":"IF('2011 Survey responses'!FU177<0.5,\"\",'2011 Survey responses'!FU177)","v":4},{"$f":"IF(('2011 Survey responses'!FL177+'2011 Survey responses'!FM177)>=2,AVERAGE('2011 Survey responses'!FL177,'2011 Survey responses'!FM177),\"\")","v":4},{"$f":"IF(('2011 Survey responses'!FO177+'2011 Survey responses'!FQ177)>=2,AVERAGE('2011 Survey responses'!FO177,'2011 Survey responses'!FQ177),\"\")","v":5},{"$f":"IF('2011 Survey responses'!FJ177<0.5,\"\",'2011 Survey responses'!FJ177)","v":5},{"$f":"IF('2011 Survey responses'!FT177<0.5,\"\",'2011 Survey responses'!FT177)","v":4},{"$f":"IF('2011 Survey responses'!FR177<0.5,\"\",'2011 Survey responses'!FR177)","v":4},{"$f":"IF('2011 Survey responses'!FK177<0.5,\"\",'2011 Survey responses'!FK177)","v":5},{"$f":"IF('2011 Survey responses'!FP177<0.5,\"\",'2011 Survey responses'!FP177)","v":3},{"$f":"IF('2011 Survey responses'!FN177<0.5,\"\",'2011 Survey responses'!FN177)","v":4},{"$f":"IF(('2011 Survey responses'!FE177+'2011 Survey responses'!FF177)>=2,AVERAGE('2011 Survey responses'!FE177,'2011 Survey responses'!FF177),\"\")","v":4.5},{"$f":"IF('2011 Survey responses'!FS177<0.5,\"\",'2011 Survey responses'!FS177)","v":3},{"$f":"IF('2011 Survey responses'!FV177<0.5,\"\",'2011 Survey responses'!FV177)","v":4},{"$f":"IF(('2011 Survey responses'!FG177+'2011 Survey responses'!FH177)>=2,AVERAGE('2011 Survey responses'!FG177,'2011 Survey responses'!FH177),\"\")","v":3},{"$f":"IF('2011 Survey responses'!FI177<0.5,\"\",'2011 Survey responses'!FI177)","v":3},{"$f":"IF('2011 Survey responses'!FE177<0.5,\"\",'2011 Survey responses'!FE177)","v":4},{"$f":"IF('2011 Survey responses'!FF177<0.5,\"\",'2011 Survey responses'!FF177)","v":5},{"$f":"IF('2011 Survey responses'!FG177<0.5,\"\",'2011 Survey responses'!FG177)","v":3},{"$f":"IF('2011 Survey responses'!FH177<0.5,\"\",'2011 Survey responses'!FH177)","v":3},{"$f":"IF('2011 Survey responses'!FL177<0.5,\"\",'2011 Survey responses'!FL177)","v":4},{"$f":"IF('2011 Survey responses'!FM177<0.5,\"\",'2011 Survey responses'!FM177)","v":4},{"$f":"IF('2011 Survey responses'!FO177<0.5,\"\",'2011 Survey responses'!FO177)","v":5},{"$f":"IF('2011 Survey responses'!FQ177<0.5,\"\",'2011 Survey responses'!FQ177)","v":5}]
["Turkey",{"$f":"IF(SUM(F178)<1,\"\",AVERAGEIF('2011 Survey responses'!B178:CP178,\">1\"))","v":""},{"$f":"IF(SUM(F178)<1,\"\",AVERAGEIF('2011 Survey responses'!B178:AO178,\">1\"))","v":""},{"$f":"IF(SUM(F178)<1,\"\",AVERAGEIF('2011 Survey responses'!B178:BV178,\">1\"))","v":""},{"$f":"IF(SUM(F178)<1,\"\",AVERAGEIF('2011 Survey responses'!V178:BV178,\">1\"))","v":""},{"$f":"IF(SUM('2011 Survey responses'!B178:U178)<1,\"\",(AVERAGEIFS('2011 Survey responses'!B178:U178,'2011 Survey responses'!B178:U178,\">1\")))","v":""},{"$f":"IF(SUM('2011 Survey responses'!B178:H178)<1,\"\",(AVERAGEIFS('2011 Survey responses'!B178:H178,'2011 Survey responses'!B178:H178,\">1\")))","v":""},{"$f":"IF(SUM('2011 Survey responses'!I178:S178)<1,\"\",(AVERAGEIFS('2011 Survey responses'!I178:S178,'2011 Survey responses'!I178:S178,\">1\")))","v":""},{"$f":"IF(SUM('2011 Survey responses'!T178:U178)<2.1,\"\",(AVERAGEIFS('2011 Survey responses'!T178:U178,'2011 Survey responses'!T178:U178,\">1\")))","v":""},{"$f":"IF(SUM('2011 Survey responses'!B178:C178)<2.1,\"\",((SUMIF('2011 Survey responses'!B178:C178,\">1\")+SUMIF('2011 Survey responses'!F178,\">1\"))/(COUNTIF('2011 Survey responses'!B178:C178,\">1\")+COUNTIF('2011 Survey responses'!F178,\">1\"))))","v":""},{"$f":"IF(SUM('2011 Survey responses'!D178:E178)<2.1,\"\",(AVERAGEIFS('2011 Survey responses'!D178:E178,'2011 Survey responses'!D178:E178,\">1\")))","v":""},{"$f":"IF(('2011 Survey responses'!B178+'2011 Survey responses'!D178)<2.1,\"\",((SUMIF('2011 Survey responses'!B178,\">1\")+SUMIF('2011 Survey responses'!D178,\">1\")+SUMIF('2011 Survey responses'!F178,\">1\")+SUMIF('2011 Survey responses'!K178,\">1\"))/(COUNTIF('2011 Survey responses'!B178,\">1\")+COUNTIF('2011 Survey responses'!D178,\">1\")+COUNTIF('2011 Survey responses'!F178,\">1\")+COUNTIF('2011 Survey responses'!K178,\">1\"))))","v":""},{"$f":"IF(SUM('2011 Survey responses'!G178:H178)<2.1,\"\",(AVERAGEIFS('2011 Survey responses'!G178:H178,'2011 Survey responses'!G178:H178,\">1\")))","v":""},{"$f":"IF(SUM('2011 Survey responses'!F178:G178)<1.5,\"\",MAX('2011 Survey responses'!F178,'2011 Survey responses'!G178))","v":""},{"$f":"IF(SUM('2011 Survey responses'!G178:H178)<1,\"\",MAX('2011 Survey responses'!G178,'2011 Survey responses'!H178))","v":""},{"$f":"IF(SUM('2011 Survey responses'!I178:L178)<4.1,\"\",(AVERAGEIFS('2011 Survey responses'!I178:L178,'2011 Survey responses'!I178:L178,\">1\")))","v":""},{"$f":"IF(SUM('2011 Survey responses'!M178:S178)<4.1,\"\",(AVERAGEIFS('2011 Survey responses'!M178:S178,'2011 Survey responses'!M178:S178,\">1\")))","v":""},{"$f":"IF(SUM('2011 Survey responses'!T178:U178)<2.1,\"\",(AVERAGEIFS('2011 Survey responses'!T178:U178,'2011 Survey responses'!T178:U178,\">1\")))","v":""},{"$f":"IF(SUM('2011 Survey responses'!V178:AO178)<1,\"\",(AVERAGEIFS('2011 Survey responses'!V178:AO178,'2011 Survey responses'!V178:AO178,\">1\")))","v":""},{"$f":"IF(SUM('2011 Survey responses'!V178:AA178)<1,\"\",(AVERAGEIFS('2011 Survey responses'!V178:AA178,'2011 Survey responses'!V178:AA178,\">1\")))","v":""},{"$f":"IF(SUM('2011 Survey responses'!AB178:AH178)<1,\"\",(AVERAGEIFS('2011 Survey responses'!AB178:AH178,'2011 Survey responses'!AB178:AH178,\">1\")))","v":""},{"$f":"IF(SUM('2011 Survey responses'!AI178:AO178)<1,\"\",(AVERAGEIFS('2011 Survey responses'!AI178:AO178,'2011 Survey responses'!AI178:AO178,\">1\")))","v":""},{"$f":"IF(('2011 Survey responses'!Y178+'2011 Survey responses'!AI178+'2011 Survey responses'!AK178)<3.1,\"\",((SUMIF('2011 Survey responses'!Y178,\">1\")+SUMIF('2011 Survey responses'!AI178,\">1\")+SUMIF('2011 Survey responses'!AK178,\">1\")+SUMIF('2011 Survey responses'!AM178,\">1\"))/(COUNTIF('2011 Survey responses'!Y178,\">1\")+COUNTIF('2011 Survey responses'!AI178,\">1\")+COUNTIF('2011 Survey responses'!AK178,\">1\")+COUNTIF('2011 Survey responses'!AM178,\">1\"))))","v":""},{"$f":"IF(('2011 Survey responses'!W178)<1.1,\"\",('2011 Survey responses'!W178))","v":""},{"$f":"IF(('2011 Survey responses'!Y178)<1.1,\"\",('2011 Survey responses'!Y178))","v":""},{"$f":"IF(('2011 Survey responses'!Z178)<1.1,\"\",('2011 Survey responses'!Z178))","v":""},{"$f":"IF(('2011 Survey responses'!V178+'2011 Survey responses'!X178+'2011 Survey responses'!AA178)<3.1,\"\",((SUMIF('2011 Survey responses'!V178,\">1\")+SUMIF('2011 Survey responses'!X178,\">1\")+SUMIF('2011 Survey responses'!AA178,\">1\"))/(COUNTIF('2011 Survey responses'!V178,\">1\")+COUNTIF('2011 Survey responses'!X178,\">1\")+COUNTIF('2011 Survey responses'!AA178,\">1\"))))","v":""},{"$f":"IF(('2011 Survey responses'!V178+'2011 Survey responses'!Y178+'2011 Survey responses'!AA178)<3.1,\"\",((SUMIF('2011 Survey responses'!V178,\">1\")+SUMIF('2011 Survey responses'!Y178,\">1\")+SUMIF('2011 Survey responses'!AA178,\">1\"))/(COUNTIF('2011 Survey responses'!V178,\">1\")+COUNTIF('2011 Survey responses'!Y178,\">1\")+COUNTIF('2011 Survey responses'!AA178,\">1\"))))","v":""},{"$f":"IF(SUM('2011 Survey responses'!AB178:AH178)<1,\"\",(AVERAGEIFS('2011 Survey responses'!AB178:AH178,'2011 Survey responses'!AB178:AH178,\">1\")))","v":""},{"$f":"IF(SUM('2011 Survey responses'!AI178:AO178)<7.1,\"\",(AVERAGEIFS('2011 Survey responses'!AI178:AO178,'2011 Survey responses'!AI178:AO178,\">1\")))","v":""},{"$f":"IF(('2011 Survey responses'!AH178)<1.1,\"\",('2011 Survey responses'!AH178))","v":""},{"$f":"IF(SUM('2011 Survey responses'!AP178:BV178)<1,\"\",(AVERAGEIFS('2011 Survey responses'!AP178:BV178,'2011 Survey responses'!AP178:BV178,\">1\")))","v":""},{"$f":"IF(SUM('2011 Survey responses'!AP178:AS178)<4.1,\"\",(AVERAGEIFS('2011 Survey responses'!AP178:AS178,'2011 Survey responses'!AP178:AS178,\">1\")))","v":""},{"$f":"IF(SUM('2011 Survey responses'!AT178:BF178)<1,\"\",(AVERAGEIFS('2011 Survey responses'!AT178:BF178,'2011 Survey responses'!AT178:BF178,\">1\")))","v":""},{"$f":"IF(SUM('2011 Survey responses'!BG178:BO178)<1,\"\",(AVERAGEIFS('2011 Survey responses'!BG178:BO178,'2011 Survey responses'!BG178:BO178,\">1\")))","v":""},{"$f":"IF(SUM('2011 Survey responses'!BP178:BS178)<1,\"\",(AVERAGEIFS('2011 Survey responses'!BP178:BS178,'2011 Survey responses'!BP178:BS178,\">1\")))","v":""},{"$f":"IF(SUM('2011 Survey responses'!BT178:BV178)<3.1,\"\",(AVERAGEIFS('2011 Survey responses'!BT178:BV178,'2011 Survey responses'!BT178:BV178,\">1\")))","v":""},{"$f":"IF(('2011 Survey responses'!AQ178+'2011 Survey responses'!AR178+'2011 Survey responses'!BG178)<3.1,\"\",((SUMIF('2011 Survey responses'!AQ178,\">1\")+SUMIF('2011 Survey responses'!AR178,\">1\")+SUMIF('2011 Survey responses'!BG178,\">1\"))/(COUNTIF('2011 Survey responses'!AQ178,\">1\")+COUNTIF('2011 Survey responses'!AR178,\">1\")+COUNTIF('2011 Survey responses'!BG178,\">1\"))))","v":""},{"$f":"IF(SUM('2011 Survey responses'!AP178:AS178)<4.1,\"\",(AVERAGEIFS('2011 Survey responses'!AP178:AS178,'2011 Survey responses'!AP178:AS178,\">1\")))","v":""},{"$f":"IF(('2011 Survey responses'!AU178+'2011 Survey responses'!AX178+'2011 Survey responses'!BA178+'2011 Survey responses'!BC178+'2011 Survey responses'!BD178)<5.1,\"\",(SUMIF('2011 Survey responses'!AU178,\">1\")+SUMIF('2011 Survey responses'!AX178,\">1\")+SUMIF('2011 Survey responses'!BA178,\">1\")+SUMIF('2011 Survey responses'!BC178,\">1\")+SUMIF('2011 Survey responses'!BD178,\">1\"))/(COUNTIF('2011 Survey responses'!AU178,\">1\")+COUNTIF('2011 Survey responses'!AX178,\">1\")+COUNTIF('2011 Survey responses'!BA178,\">1\")+COUNTIF('2011 Survey responses'!BC178,\">1\")+COUNTIF('2011 Survey responses'!BD178,\">1\")))","v":""},{"$f":"IF(('2011 Survey responses'!AT178)<1.1,\"\",('2011 Survey responses'!AT178))","v":""},{"$f":"IF(SUM('2011 Survey responses'!AV178:AW178)<2.1,\"\",(AVERAGEIFS('2011 Survey responses'!AV178:AW178,'2011 Survey responses'!AV178:AW178,\">1\")))","v":""},{"$f":"IF(('2011 Survey responses'!AW178+'2011 Survey responses'!AY178)<2.1,\"\",(SUMIF('2011 Survey responses'!AW178,\">1\")+SUMIF('2011 Survey responses'!AY178,\">1\"))/(COUNTIF('2011 Survey responses'!AW178,\">1\")+COUNTIF('2011 Survey responses'!AY178,\">1\")))","v":""},{"$f":"IF(('2011 Survey responses'!AZ178)<1.1,\"\",('2011 Survey responses'!AZ178))","v":""},null,null,null,null,{"$f":"IF(('2011 Survey responses'!BE178)<1.1,\"\",('2011 Survey responses'!BE178))","v":""},{"$f":"IF(('2011 Survey responses'!AY178+'2011 Survey responses'!BB178+'2011 Survey responses'!BF178)<3.1,\"\",(SUMIF('2011 Survey responses'!AY178,\">1\")+SUMIF('2011 Survey responses'!BB178,\">1\")+SUMIF('2011 Survey responses'!BF178,\">1\"))/(COUNTIF('2011 Survey responses'!AY178,\">1\")+COUNTIF('2011 Survey responses'!BB178,\">1\")+COUNTIF('2011 Survey responses'!BF178,\">1\")))","v":""},"",{"$f":"IF(SUM('2011 Survey responses'!BT178:BV178)<3.1,\"\",(AVERAGEIFS('2011 Survey responses'!BT178:BV178,'2011 Survey responses'!BT178:BV178,\">1\")))","v":""},{"$f":"IF(SUM('2011 Survey responses'!BW178:CP178)<1,\"\",(AVERAGEIFS('2011 Survey responses'!BW178:CP178,'2011 Survey responses'!BW178:CP178,\">1\")))","v":""},{"$f":"IF(SUM('2011 Survey responses'!BW178:CF178)<1,\"\",(AVERAGEIFS('2011 Survey responses'!BW178:CF178,'2011 Survey responses'!BW178:CF178,\">1\")))","v":""},{"$f":"IF(SUM('2011 Survey responses'!CG178:CP178)<1,\"\",(AVERAGEIFS('2011 Survey responses'!CG178:CP178,'2011 Survey responses'!CG178:CP178,\">1\")))","v":""},{"$f":"IF(SUM('2011 Survey responses'!BX178:CF178)<1,\"\",(AVERAGEIFS('2011 Survey responses'!BX178:CF178,'2011 Survey responses'!BX178:CF178,\">1\")))","v":""},{"$f":"IF(SUM('2011 Survey responses'!CH178:CP178)<1,\"\",(AVERAGEIFS('2011 Survey responses'!CH178:CP178,'2011 Survey responses'!CH178:CP178,\">1\")))","v":""},{"$f":"IF(SUM('2011 Survey responses'!BW178:CP178)<1,\"\",(AVERAGEIFS('2011 Survey responses'!BW178:CP178,'2011 Survey responses'!BW178:CP178,\">1\")))","v":""},{"$f":"IF(('2011 Survey responses'!BW178+'2011 Survey responses'!CG178)<2.1,\"\",(SUMIF('2011 Survey responses'!BW178,\">1\")+SUMIF('2011 Survey responses'!CG178,\">1\"))/(COUNTIF('2011 Survey responses'!BW178,\">1\")+COUNTIF('2011 Survey responses'!CG178,\">1\")))","v":""},{"$f":"IF(('2011 Survey responses'!BX178+'2011 Survey responses'!CH178)<2.1,\"\",(SUMIF('2011 Survey responses'!BX178,\">1\")+SUMIF('2011 Survey responses'!CH178,\">1\"))/(COUNTIF('2011 Survey responses'!BX178,\">1\")+COUNTIF('2011 Survey responses'!CH178,\">1\")))","v":""},{"$f":"IF(('2011 Survey responses'!BY178+'2011 Survey responses'!CI178)<2.1,\"\",(SUMIF('2011 Survey responses'!BY178,\">1\")+SUMIF('2011 Survey responses'!CI178,\">1\"))/(COUNTIF('2011 Survey responses'!BY178,\">1\")+COUNTIF('2011 Survey responses'!CI178,\">1\")))","v":""},{"$f":"IF('2011 Survey responses'!CQ178<0.5,\"\",'2011 Survey responses'!CQ178)","v":""},{"$f":"IF('2011 Survey responses'!CR178<0.5,\"\",'2011 Survey responses'!CR178)","v":""},{"$f":"IF('2011 Survey responses'!CS178<0.5,\"\",'2011 Survey responses'!CS178)","v":""},{"$f":"IF('2011 Survey responses'!CT178<0.5,\"\",'2011 Survey responses'!CT178)","v":""},{"$f":"IF('2011 Survey responses'!CU178<0.5,\"\",'2011 Survey responses'!CU178)","v":""},{"$f":"IF('2011 Survey responses'!CV178<0.5,\"\",'2011 Survey responses'!CV178)","v":""},{"$f":"IF(SUM('2011 Survey responses'!CW178:DL178)<1,\"\",(AVERAGE('2011 Survey responses'!CW178:DL178)))","v":""},{"$f":"IF(SUM('2011 Survey responses'!CW178:CZ178)<1,\"\",(AVERAGE('2011 Survey responses'!CW178:CZ178)))","v":""},{"$f":"IF(SUM('2011 Survey responses'!DA178:DD178)<1,\"\",(AVERAGE('2011 Survey responses'!DA178:DD178)))","v":""},{"$f":"IF(SUM('2011 Survey responses'!DE178:DH178)<1,\"\",(AVERAGE('2011 Survey responses'!DE178:DH178)))","v":""},{"$f":"IF(SUM('2011 Survey responses'!DI178:DL178)<1,\"\",(AVERAGE('2011 Survey responses'!DI178:DL178)))","v":""},{"$f":"IF(('2011 Survey responses'!CW178+'2011 Survey responses'!DA178+'2011 Survey responses'!DE178+'2011 Survey responses'!DI178)<1,\"\",AVERAGE('2011 Survey responses'!CW178,'2011 Survey responses'!DA178,'2011 Survey responses'!DE178,'2011 Survey responses'!DI178))","v":""},{"$f":"IF(('2011 Survey responses'!CX178+'2011 Survey responses'!DB178+'2011 Survey responses'!DF178+'2011 Survey responses'!DJ178)<1,\"\",AVERAGE('2011 Survey responses'!CX178,'2011 Survey responses'!DB178,'2011 Survey responses'!DF178,'2011 Survey responses'!DJ178))","v":""},{"$f":"IF(('2011 Survey responses'!CY178+'2011 Survey responses'!DC178+'2011 Survey responses'!DG178+'2011 Survey responses'!DK178)<1,\"\",AVERAGE('2011 Survey responses'!CY178,'2011 Survey responses'!DC178,'2011 Survey responses'!DG178,'2011 Survey responses'!DK178))","v":""},{"$f":"IF(('2011 Survey responses'!CZ178+'2011 Survey responses'!DD178+'2011 Survey responses'!DH178+'2011 Survey responses'!DL178)<1,\"\",AVERAGE('2011 Survey responses'!CZ178,'2011 Survey responses'!DD178,'2011 Survey responses'!DH178,'2011 Survey responses'!DL178))","v":""},{"$f":"IF('2011 Survey responses'!CW178<0.5,\"\",'2011 Survey responses'!CW178)","v":""},{"$f":"IF('2011 Survey responses'!CX178<0.5,\"\",'2011 Survey responses'!CX178)","v":""},{"$f":"IF('2011 Survey responses'!CY178<0.5,\"\",'2011 Survey responses'!CY178)","v":""},{"$f":"IF('2011 Survey responses'!CZ178<0.5,\"\",'2011 Survey responses'!CZ178)","v":""},{"$f":"IF('2011 Survey responses'!DA178<0.5,\"\",'2011 Survey responses'!DA178)","v":""},{"$f":"IF('2011 Survey responses'!DB178<0.5,\"\",'2011 Survey responses'!DB178)","v":""},{"$f":"IF('2011 Survey responses'!DC178<0.5,\"\",'2011 Survey responses'!DC178)","v":""},{"$f":"IF('2011 Survey responses'!DD178<0.5,\"\",'2011 Survey responses'!DD178)","v":""},{"$f":"IF('2011 Survey responses'!DE178<0.5,\"\",'2011 Survey responses'!DE178)","v":""},{"$f":"IF('2011 Survey responses'!DF178<0.5,\"\",'2011 Survey responses'!DF178)","v":""},{"$f":"IF('2011 Survey responses'!DG178<0.5,\"\",'2011 Survey responses'!DG178)","v":""},{"$f":"IF('2011 Survey responses'!DH178<0.5,\"\",'2011 Survey responses'!DH178)","v":""},{"$f":"IF('2011 Survey responses'!DI178<0.5,\"\",'2011 Survey responses'!DI178)","v":""},{"$f":"IF('2011 Survey responses'!DJ178<0.5,\"\",'2011 Survey responses'!DJ178)","v":""},{"$f":"IF('2011 Survey responses'!DK178<0.5,\"\",'2011 Survey responses'!DK178)","v":""},{"$f":"IF('2011 Survey responses'!DL178<0.5,\"\",'2011 Survey responses'!DL178)","v":""},{"$f":"IF('2011 Survey responses'!DU178=4,4,IF('2011 Survey responses'!DU178=5,4,\"\"))","v":""},{"$f":"IF('2011 Survey responses'!DV178=4,3,IF('2011 Survey responses'!DV178=5,3,\"\"))","v":""},"",{"$f":"IF(CQ178=2,CQ178,IF(CO178=4,CO178,IF(CP178=3,CP178,IF('2011 Survey responses'!GT178=1,1,\"\"))))","v":""},{"$f":"IF('2011 Survey responses'!DO178<0.5,\"\",'2011 Survey responses'!DO178)","v":""},{"$f":"IF('2011 Survey responses'!DP178<0.5,\"\",'2011 Survey responses'!DP178)","v":""},{"$f":"IF('2011 Survey responses'!DQ178<0.5,\"\",'2011 Survey responses'!DQ178)","v":""},{"$f":"IF('2011 Survey responses'!DR178<0.5,\"\",'2011 Survey responses'!DR178)","v":""},{"$f":"IF('2011 Survey responses'!DS178<0.5,\"\",'2011 Survey responses'!DS178)","v":""},{"$f":"IF('2011 Survey responses'!DT178<0.5,\"\",'2011 Survey responses'!DT178)","v":""},{"$f":"IF('2011 Survey responses'!DU178<0.5,\"\",'2011 Survey responses'!DU178)","v":""},{"$f":"IF('2011 Survey responses'!DV178<0.5,\"\",'2011 Survey responses'!DV178)","v":""},{"$f":"IF('2011 Survey responses'!DW178<0.5,\"\",'2011 Survey responses'!DW178)","v":""},{"$f":"IF('2011 Survey responses'!DX178<0.5,\"\",'2011 Survey responses'!DX178)","v":""},{"$f":"IF('2011 Survey responses'!DY178<0.5,\"\",'2011 Survey responses'!DY178)","v":""},{"$f":"IF('2011 Survey responses'!DZ178<0.5,\"\",'2011 Survey responses'!DZ178)","v":""},{"$f":"IF('2011 Survey responses'!EA178<0.5,\"\",'2011 Survey responses'!EA178)","v":""},{"$f":"IF('2011 Survey responses'!EB178<0.5,\"\",'2011 Survey responses'!EB178)","v":""},{"$f":"IF('2011 Survey responses'!EC178<0.5,\"\",'2011 Survey responses'!EC178)","v":""},{"$f":"IF('2011 Survey responses'!ED178<0.5,\"\",'2011 Survey responses'!ED178)","v":""},{"$f":"IF('2011 Survey responses'!EE178<0.5,\"\",'2011 Survey responses'!EE178)","v":""},{"$f":"IF('2011 Survey responses'!EF178<0.5,\"\",'2011 Survey responses'!EF178)","v":""},{"$f":"IF('2011 Survey responses'!EG178<0.5,\"\",'2011 Survey responses'!EG178)","v":""},{"$f":"IF('2011 Survey responses'!EH178<0.5,\"\",'2011 Survey responses'!EH178)","v":""},{"$f":"IF('2011 Survey responses'!EI178<0.5,\"\",'2011 Survey responses'!EI178)","v":""},{"$f":"IF('2011 Survey responses'!EJ178<0.5,\"\",'2011 Survey responses'!EJ178)","v":""},{"$f":"IF('2011 Survey responses'!EK178<0.5,\"\",'2011 Survey responses'!EK178)","v":""},{"$f":"IF('2011 Survey responses'!EL178<0.5,\"\",'2011 Survey responses'!EL178)","v":""},{"$f":"IF('2011 Survey responses'!EM178<0.5,\"\",'2011 Survey responses'!EM178)","v":""},{"$f":"IF('2011 Survey responses'!EN178<0.5,\"\",'2011 Survey responses'!EN178)","v":""},{"$f":"IF('2011 Survey responses'!EO178<0.5,\"\",'2011 Survey responses'!EO178)","v":""},{"$f":"IF('2011 Survey responses'!EP178<0.5,\"\",'2011 Survey responses'!EP178)","v":""},{"$f":"IF(('2011 Survey responses'!EW178+'2011 Survey responses'!EX178)>=2,AVERAGE('2011 Survey responses'!EW178,'2011 Survey responses'!EY178),\"\")","v":""},{"$f":"IF('2011 Survey responses'!EX178<0.5,\"\",'2011 Survey responses'!EX178)","v":""},{"$f":"IF('2011 Survey responses'!EZ178<0.5,\"\",'2011 Survey responses'!EZ178)","v":""},{"$f":"IF('2011 Survey responses'!FB178<0.5,\"\",'2011 Survey responses'!FB178)","v":""},{"$f":"IF('2011 Survey responses'!FD178<0.5,\"\",'2011 Survey responses'!FD178)","v":""},{"$f":"IF('2011 Survey responses'!FC178<0.5,\"\",'2011 Survey responses'!FC178)","v":""},{"$f":"IF(('2011 Survey responses'!EM178+'2011 Survey responses'!EN178)>=2,AVERAGE('2011 Survey responses'!EM178,'2011 Survey responses'!EN178),\"\")","v":""},{"$f":"IF('2011 Survey responses'!ES178<0.5,\"\",'2011 Survey responses'!ES178)","v":""},{"$f":"IF(('2011 Survey responses'!ET178+'2011 Survey responses'!EU178)>=2,AVERAGE('2011 Survey responses'!ET178,'2011 Survey responses'!EU178),\"\")","v":""},{"$f":"IF('2011 Survey responses'!EV178<0.5,\"\",'2011 Survey responses'!EV178)","v":""},{"$f":"IF('2011 Survey responses'!FA178<0.5,\"\",'2011 Survey responses'!FA178)","v":""},{"$f":"IF('2011 Survey responses'!ER178<0.5,\"\",'2011 Survey responses'!ER178)","v":""},{"$f":"IF(('2011 Survey responses'!EO178+'2011 Survey responses'!EP178)>=2,AVERAGE('2011 Survey responses'!EO178,'2011 Survey responses'!EP178),\"\")","v":""},{"$f":"IF('2011 Survey responses'!EQ178<0.5,\"\",'2011 Survey responses'!EQ178)","v":""},{"$f":"IF('2011 Survey responses'!ET178<0.5,\"\",'2011 Survey responses'!ET178)","v":""},{"$f":"IF('2011 Survey responses'!EU178<0.5,\"\",'2011 Survey responses'!EU178)","v":""},{"$f":"IF('2011 Survey responses'!EW178<0.5,\"\",'2011 Survey responses'!EW178)","v":""},{"$f":"IF('2011 Survey responses'!EY178<0.5,\"\",'2011 Survey responses'!EY178)","v":""},{"$f":"IF('2011 Survey responses'!FU178<0.5,\"\",'2011 Survey responses'!FU178)","v":""},{"$f":"IF(('2011 Survey responses'!FL178+'2011 Survey responses'!FM178)>=2,AVERAGE('2011 Survey responses'!FL178,'2011 Survey responses'!FM178),\"\")","v":""},{"$f":"IF(('2011 Survey responses'!FO178+'2011 Survey responses'!FQ178)>=2,AVERAGE('2011 Survey responses'!FO178,'2011 Survey responses'!FQ178),\"\")","v":""},{"$f":"IF('2011 Survey responses'!FJ178<0.5,\"\",'2011 Survey responses'!FJ178)","v":""},{"$f":"IF('2011 Survey responses'!FT178<0.5,\"\",'2011 Survey responses'!FT178)","v":""},{"$f":"IF('2011 Survey responses'!FR178<0.5,\"\",'2011 Survey responses'!FR178)","v":""},{"$f":"IF('2011 Survey responses'!FK178<0.5,\"\",'2011 Survey responses'!FK178)","v":""},{"$f":"IF('2011 Survey responses'!FP178<0.5,\"\",'2011 Survey responses'!FP178)","v":""},{"$f":"IF('2011 Survey responses'!FN178<0.5,\"\",'2011 Survey responses'!FN178)","v":""},{"$f":"IF(('2011 Survey responses'!FE178+'2011 Survey responses'!FF178)>=2,AVERAGE('2011 Survey responses'!FE178,'2011 Survey responses'!FF178),\"\")","v":""},{"$f":"IF('2011 Survey responses'!FS178<0.5,\"\",'2011 Survey responses'!FS178)","v":""},{"$f":"IF('2011 Survey responses'!FV178<0.5,\"\",'2011 Survey responses'!FV178)","v":""},{"$f":"IF(('2011 Survey responses'!FG178+'2011 Survey responses'!FH178)>=2,AVERAGE('2011 Survey responses'!FG178,'2011 Survey responses'!FH178),\"\")","v":""},{"$f":"IF('2011 Survey responses'!FI178<0.5,\"\",'2011 Survey responses'!FI178)","v":""},{"$f":"IF('2011 Survey responses'!FE178<0.5,\"\",'2011 Survey responses'!FE178)","v":""},{"$f":"IF('2011 Survey responses'!FF178<0.5,\"\",'2011 Survey responses'!FF178)","v":""},{"$f":"IF('2011 Survey responses'!FG178<0.5,\"\",'2011 Survey responses'!FG178)","v":""},{"$f":"IF('2011 Survey responses'!FH178<0.5,\"\",'2011 Survey responses'!FH178)","v":""},{"$f":"IF('2011 Survey responses'!FL178<0.5,\"\",'2011 Survey responses'!FL178)","v":""},{"$f":"IF('2011 Survey responses'!FM178<0.5,\"\",'2011 Survey responses'!FM178)","v":""},{"$f":"IF('2011 Survey responses'!FO178<0.5,\"\",'2011 Survey responses'!FO178)","v":""},{"$f":"IF('2011 Survey responses'!FQ178<0.5,\"\",'2011 Survey responses'!FQ178)","v":""}]
["Turkmenistan",{"$f":"IF(SUM(F179)<1,\"\",AVERAGEIF('2011 Survey responses'!B179:CP179,\">1\"))","v":""},{"$f":"IF(SUM(F179)<1,\"\",AVERAGEIF('2011 Survey responses'!B179:AO179,\">1\"))","v":""},{"$f":"IF(SUM(F179)<1,\"\",AVERAGEIF('2011 Survey responses'!B179:BV179,\">1\"))","v":""},{"$f":"IF(SUM(F179)<1,\"\",AVERAGEIF('2011 Survey responses'!V179:BV179,\">1\"))","v":""},{"$f":"IF(SUM('2011 Survey responses'!B179:U179)<1,\"\",(AVERAGEIFS('2011 Survey responses'!B179:U179,'2011 Survey responses'!B179:U179,\">1\")))","v":""},{"$f":"IF(SUM('2011 Survey responses'!B179:H179)<1,\"\",(AVERAGEIFS('2011 Survey responses'!B179:H179,'2011 Survey responses'!B179:H179,\">1\")))","v":""},{"$f":"IF(SUM('2011 Survey responses'!I179:S179)<1,\"\",(AVERAGEIFS('2011 Survey responses'!I179:S179,'2011 Survey responses'!I179:S179,\">1\")))","v":""},{"$f":"IF(SUM('2011 Survey responses'!T179:U179)<2.1,\"\",(AVERAGEIFS('2011 Survey responses'!T179:U179,'2011 Survey responses'!T179:U179,\">1\")))","v":""},{"$f":"IF(SUM('2011 Survey responses'!B179:C179)<2.1,\"\",((SUMIF('2011 Survey responses'!B179:C179,\">1\")+SUMIF('2011 Survey responses'!F179,\">1\"))/(COUNTIF('2011 Survey responses'!B179:C179,\">1\")+COUNTIF('2011 Survey responses'!F179,\">1\"))))","v":""},{"$f":"IF(SUM('2011 Survey responses'!D179:E179)<2.1,\"\",(AVERAGEIFS('2011 Survey responses'!D179:E179,'2011 Survey responses'!D179:E179,\">1\")))","v":""},{"$f":"IF(('2011 Survey responses'!B179+'2011 Survey responses'!D179)<2.1,\"\",((SUMIF('2011 Survey responses'!B179,\">1\")+SUMIF('2011 Survey responses'!D179,\">1\")+SUMIF('2011 Survey responses'!F179,\">1\")+SUMIF('2011 Survey responses'!K179,\">1\"))/(COUNTIF('2011 Survey responses'!B179,\">1\")+COUNTIF('2011 Survey responses'!D179,\">1\")+COUNTIF('2011 Survey responses'!F179,\">1\")+COUNTIF('2011 Survey responses'!K179,\">1\"))))","v":""},{"$f":"IF(SUM('2011 Survey responses'!G179:H179)<2.1,\"\",(AVERAGEIFS('2011 Survey responses'!G179:H179,'2011 Survey responses'!G179:H179,\">1\")))","v":""},{"$f":"IF(SUM('2011 Survey responses'!F179:G179)<1.5,\"\",MAX('2011 Survey responses'!F179,'2011 Survey responses'!G179))","v":""},{"$f":"IF(SUM('2011 Survey responses'!G179:H179)<1,\"\",MAX('2011 Survey responses'!G179,'2011 Survey responses'!H179))","v":""},{"$f":"IF(SUM('2011 Survey responses'!I179:L179)<4.1,\"\",(AVERAGEIFS('2011 Survey responses'!I179:L179,'2011 Survey responses'!I179:L179,\">1\")))","v":""},{"$f":"IF(SUM('2011 Survey responses'!M179:S179)<4.1,\"\",(AVERAGEIFS('2011 Survey responses'!M179:S179,'2011 Survey responses'!M179:S179,\">1\")))","v":""},{"$f":"IF(SUM('2011 Survey responses'!T179:U179)<2.1,\"\",(AVERAGEIFS('2011 Survey responses'!T179:U179,'2011 Survey responses'!T179:U179,\">1\")))","v":""},{"$f":"IF(SUM('2011 Survey responses'!V179:AO179)<1,\"\",(AVERAGEIFS('2011 Survey responses'!V179:AO179,'2011 Survey responses'!V179:AO179,\">1\")))","v":""},{"$f":"IF(SUM('2011 Survey responses'!V179:AA179)<1,\"\",(AVERAGEIFS('2011 Survey responses'!V179:AA179,'2011 Survey responses'!V179:AA179,\">1\")))","v":""},{"$f":"IF(SUM('2011 Survey responses'!AB179:AH179)<1,\"\",(AVERAGEIFS('2011 Survey responses'!AB179:AH179,'2011 Survey responses'!AB179:AH179,\">1\")))","v":""},{"$f":"IF(SUM('2011 Survey responses'!AI179:AO179)<1,\"\",(AVERAGEIFS('2011 Survey responses'!AI179:AO179,'2011 Survey responses'!AI179:AO179,\">1\")))","v":""},{"$f":"IF(('2011 Survey responses'!Y179+'2011 Survey responses'!AI179+'2011 Survey responses'!AK179)<3.1,\"\",((SUMIF('2011 Survey responses'!Y179,\">1\")+SUMIF('2011 Survey responses'!AI179,\">1\")+SUMIF('2011 Survey responses'!AK179,\">1\")+SUMIF('2011 Survey responses'!AM179,\">1\"))/(COUNTIF('2011 Survey responses'!Y179,\">1\")+COUNTIF('2011 Survey responses'!AI179,\">1\")+COUNTIF('2011 Survey responses'!AK179,\">1\")+COUNTIF('2011 Survey responses'!AM179,\">1\"))))","v":""},{"$f":"IF(('2011 Survey responses'!W179)<1.1,\"\",('2011 Survey responses'!W179))","v":""},{"$f":"IF(('2011 Survey responses'!Y179)<1.1,\"\",('2011 Survey responses'!Y179))","v":""},{"$f":"IF(('2011 Survey responses'!Z179)<1.1,\"\",('2011 Survey responses'!Z179))","v":""},{"$f":"IF(('2011 Survey responses'!V179+'2011 Survey responses'!X179+'2011 Survey responses'!AA179)<3.1,\"\",((SUMIF('2011 Survey responses'!V179,\">1\")+SUMIF('2011 Survey responses'!X179,\">1\")+SUMIF('2011 Survey responses'!AA179,\">1\"))/(COUNTIF('2011 Survey responses'!V179,\">1\")+COUNTIF('2011 Survey responses'!X179,\">1\")+COUNTIF('2011 Survey responses'!AA179,\">1\"))))","v":""},{"$f":"IF(('2011 Survey responses'!V179+'2011 Survey responses'!Y179+'2011 Survey responses'!AA179)<3.1,\"\",((SUMIF('2011 Survey responses'!V179,\">1\")+SUMIF('2011 Survey responses'!Y179,\">1\")+SUMIF('2011 Survey responses'!AA179,\">1\"))/(COUNTIF('2011 Survey responses'!V179,\">1\")+COUNTIF('2011 Survey responses'!Y179,\">1\")+COUNTIF('2011 Survey responses'!AA179,\">1\"))))","v":""},{"$f":"IF(SUM('2011 Survey responses'!AB179:AH179)<1,\"\",(AVERAGEIFS('2011 Survey responses'!AB179:AH179,'2011 Survey responses'!AB179:AH179,\">1\")))","v":""},{"$f":"IF(SUM('2011 Survey responses'!AI179:AO179)<7.1,\"\",(AVERAGEIFS('2011 Survey responses'!AI179:AO179,'2011 Survey responses'!AI179:AO179,\">1\")))","v":""},{"$f":"IF(('2011 Survey responses'!AH179)<1.1,\"\",('2011 Survey responses'!AH179))","v":""},{"$f":"IF(SUM('2011 Survey responses'!AP179:BV179)<1,\"\",(AVERAGEIFS('2011 Survey responses'!AP179:BV179,'2011 Survey responses'!AP179:BV179,\">1\")))","v":""},{"$f":"IF(SUM('2011 Survey responses'!AP179:AS179)<4.1,\"\",(AVERAGEIFS('2011 Survey responses'!AP179:AS179,'2011 Survey responses'!AP179:AS179,\">1\")))","v":""},{"$f":"IF(SUM('2011 Survey responses'!AT179:BF179)<1,\"\",(AVERAGEIFS('2011 Survey responses'!AT179:BF179,'2011 Survey responses'!AT179:BF179,\">1\")))","v":""},{"$f":"IF(SUM('2011 Survey responses'!BG179:BO179)<1,\"\",(AVERAGEIFS('2011 Survey responses'!BG179:BO179,'2011 Survey responses'!BG179:BO179,\">1\")))","v":""},{"$f":"IF(SUM('2011 Survey responses'!BP179:BS179)<1,\"\",(AVERAGEIFS('2011 Survey responses'!BP179:BS179,'2011 Survey responses'!BP179:BS179,\">1\")))","v":""},{"$f":"IF(SUM('2011 Survey responses'!BT179:BV179)<3.1,\"\",(AVERAGEIFS('2011 Survey responses'!BT179:BV179,'2011 Survey responses'!BT179:BV179,\">1\")))","v":""},{"$f":"IF(('2011 Survey responses'!AQ179+'2011 Survey responses'!AR179+'2011 Survey responses'!BG179)<3.1,\"\",((SUMIF('2011 Survey responses'!AQ179,\">1\")+SUMIF('2011 Survey responses'!AR179,\">1\")+SUMIF('2011 Survey responses'!BG179,\">1\"))/(COUNTIF('2011 Survey responses'!AQ179,\">1\")+COUNTIF('2011 Survey responses'!AR179,\">1\")+COUNTIF('2011 Survey responses'!BG179,\">1\"))))","v":""},{"$f":"IF(SUM('2011 Survey responses'!AP179:AS179)<4.1,\"\",(AVERAGEIFS('2011 Survey responses'!AP179:AS179,'2011 Survey responses'!AP179:AS179,\">1\")))","v":""},{"$f":"IF(('2011 Survey responses'!AU179+'2011 Survey responses'!AX179+'2011 Survey responses'!BA179+'2011 Survey responses'!BC179+'2011 Survey responses'!BD179)<5.1,\"\",(SUMIF('2011 Survey responses'!AU179,\">1\")+SUMIF('2011 Survey responses'!AX179,\">1\")+SUMIF('2011 Survey responses'!BA179,\">1\")+SUMIF('2011 Survey responses'!BC179,\">1\")+SUMIF('2011 Survey responses'!BD179,\">1\"))/(COUNTIF('2011 Survey responses'!AU179,\">1\")+COUNTIF('2011 Survey responses'!AX179,\">1\")+COUNTIF('2011 Survey responses'!BA179,\">1\")+COUNTIF('2011 Survey responses'!BC179,\">1\")+COUNTIF('2011 Survey responses'!BD179,\">1\")))","v":""},{"$f":"IF(('2011 Survey responses'!AT179)<1.1,\"\",('2011 Survey responses'!AT179))","v":""},{"$f":"IF(SUM('2011 Survey responses'!AV179:AW179)<2.1,\"\",(AVERAGEIFS('2011 Survey responses'!AV179:AW179,'2011 Survey responses'!AV179:AW179,\">1\")))","v":""},{"$f":"IF(('2011 Survey responses'!AW179+'2011 Survey responses'!AY179)<2.1,\"\",(SUMIF('2011 Survey responses'!AW179,\">1\")+SUMIF('2011 Survey responses'!AY179,\">1\"))/(COUNTIF('2011 Survey responses'!AW179,\">1\")+COUNTIF('2011 Survey responses'!AY179,\">1\")))","v":""},{"$f":"IF(('2011 Survey responses'!AZ179)<1.1,\"\",('2011 Survey responses'!AZ179))","v":""},null,null,null,null,{"$f":"IF(('2011 Survey responses'!BE179)<1.1,\"\",('2011 Survey responses'!BE179))","v":""},{"$f":"IF(('2011 Survey responses'!AY179+'2011 Survey responses'!BB179+'2011 Survey responses'!BF179)<3.1,\"\",(SUMIF('2011 Survey responses'!AY179,\">1\")+SUMIF('2011 Survey responses'!BB179,\">1\")+SUMIF('2011 Survey responses'!BF179,\">1\"))/(COUNTIF('2011 Survey responses'!AY179,\">1\")+COUNTIF('2011 Survey responses'!BB179,\">1\")+COUNTIF('2011 Survey responses'!BF179,\">1\")))","v":""},"",{"$f":"IF(SUM('2011 Survey responses'!BT179:BV179)<3.1,\"\",(AVERAGEIFS('2011 Survey responses'!BT179:BV179,'2011 Survey responses'!BT179:BV179,\">1\")))","v":""},{"$f":"IF(SUM('2011 Survey responses'!BW179:CP179)<1,\"\",(AVERAGEIFS('2011 Survey responses'!BW179:CP179,'2011 Survey responses'!BW179:CP179,\">1\")))","v":""},{"$f":"IF(SUM('2011 Survey responses'!BW179:CF179)<1,\"\",(AVERAGEIFS('2011 Survey responses'!BW179:CF179,'2011 Survey responses'!BW179:CF179,\">1\")))","v":""},{"$f":"IF(SUM('2011 Survey responses'!CG179:CP179)<1,\"\",(AVERAGEIFS('2011 Survey responses'!CG179:CP179,'2011 Survey responses'!CG179:CP179,\">1\")))","v":""},{"$f":"IF(SUM('2011 Survey responses'!BX179:CF179)<1,\"\",(AVERAGEIFS('2011 Survey responses'!BX179:CF179,'2011 Survey responses'!BX179:CF179,\">1\")))","v":""},{"$f":"IF(SUM('2011 Survey responses'!CH179:CP179)<1,\"\",(AVERAGEIFS('2011 Survey responses'!CH179:CP179,'2011 Survey responses'!CH179:CP179,\">1\")))","v":""},{"$f":"IF(SUM('2011 Survey responses'!BW179:CP179)<1,\"\",(AVERAGEIFS('2011 Survey responses'!BW179:CP179,'2011 Survey responses'!BW179:CP179,\">1\")))","v":""},{"$f":"IF(('2011 Survey responses'!BW179+'2011 Survey responses'!CG179)<2.1,\"\",(SUMIF('2011 Survey responses'!BW179,\">1\")+SUMIF('2011 Survey responses'!CG179,\">1\"))/(COUNTIF('2011 Survey responses'!BW179,\">1\")+COUNTIF('2011 Survey responses'!CG179,\">1\")))","v":""},{"$f":"IF(('2011 Survey responses'!BX179+'2011 Survey responses'!CH179)<2.1,\"\",(SUMIF('2011 Survey responses'!BX179,\">1\")+SUMIF('2011 Survey responses'!CH179,\">1\"))/(COUNTIF('2011 Survey responses'!BX179,\">1\")+COUNTIF('2011 Survey responses'!CH179,\">1\")))","v":""},{"$f":"IF(('2011 Survey responses'!BY179+'2011 Survey responses'!CI179)<2.1,\"\",(SUMIF('2011 Survey responses'!BY179,\">1\")+SUMIF('2011 Survey responses'!CI179,\">1\"))/(COUNTIF('2011 Survey responses'!BY179,\">1\")+COUNTIF('2011 Survey responses'!CI179,\">1\")))","v":""},{"$f":"IF('2011 Survey responses'!CQ179<0.5,\"\",'2011 Survey responses'!CQ179)","v":""},{"$f":"IF('2011 Survey responses'!CR179<0.5,\"\",'2011 Survey responses'!CR179)","v":""},{"$f":"IF('2011 Survey responses'!CS179<0.5,\"\",'2011 Survey responses'!CS179)","v":""},{"$f":"IF('2011 Survey responses'!CT179<0.5,\"\",'2011 Survey responses'!CT179)","v":""},{"$f":"IF('2011 Survey responses'!CU179<0.5,\"\",'2011 Survey responses'!CU179)","v":""},{"$f":"IF('2011 Survey responses'!CV179<0.5,\"\",'2011 Survey responses'!CV179)","v":""},{"$f":"IF(SUM('2011 Survey responses'!CW179:DL179)<1,\"\",(AVERAGE('2011 Survey responses'!CW179:DL179)))","v":""},{"$f":"IF(SUM('2011 Survey responses'!CW179:CZ179)<1,\"\",(AVERAGE('2011 Survey responses'!CW179:CZ179)))","v":""},{"$f":"IF(SUM('2011 Survey responses'!DA179:DD179)<1,\"\",(AVERAGE('2011 Survey responses'!DA179:DD179)))","v":""},{"$f":"IF(SUM('2011 Survey responses'!DE179:DH179)<1,\"\",(AVERAGE('2011 Survey responses'!DE179:DH179)))","v":""},{"$f":"IF(SUM('2011 Survey responses'!DI179:DL179)<1,\"\",(AVERAGE('2011 Survey responses'!DI179:DL179)))","v":""},{"$f":"IF(('2011 Survey responses'!CW179+'2011 Survey responses'!DA179+'2011 Survey responses'!DE179+'2011 Survey responses'!DI179)<1,\"\",AVERAGE('2011 Survey responses'!CW179,'2011 Survey responses'!DA179,'2011 Survey responses'!DE179,'2011 Survey responses'!DI179))","v":""},{"$f":"IF(('2011 Survey responses'!CX179+'2011 Survey responses'!DB179+'2011 Survey responses'!DF179+'2011 Survey responses'!DJ179)<1,\"\",AVERAGE('2011 Survey responses'!CX179,'2011 Survey responses'!DB179,'2011 Survey responses'!DF179,'2011 Survey responses'!DJ179))","v":""},{"$f":"IF(('2011 Survey responses'!CY179+'2011 Survey responses'!DC179+'2011 Survey responses'!DG179+'2011 Survey responses'!DK179)<1,\"\",AVERAGE('2011 Survey responses'!CY179,'2011 Survey responses'!DC179,'2011 Survey responses'!DG179,'2011 Survey responses'!DK179))","v":""},{"$f":"IF(('2011 Survey responses'!CZ179+'2011 Survey responses'!DD179+'2011 Survey responses'!DH179+'2011 Survey responses'!DL179)<1,\"\",AVERAGE('2011 Survey responses'!CZ179,'2011 Survey responses'!DD179,'2011 Survey responses'!DH179,'2011 Survey responses'!DL179))","v":""},{"$f":"IF('2011 Survey responses'!CW179<0.5,\"\",'2011 Survey responses'!CW179)","v":""},{"$f":"IF('2011 Survey responses'!CX179<0.5,\"\",'2011 Survey responses'!CX179)","v":""},{"$f":"IF('2011 Survey responses'!CY179<0.5,\"\",'2011 Survey responses'!CY179)","v":""},{"$f":"IF('2011 Survey responses'!CZ179<0.5,\"\",'2011 Survey responses'!CZ179)","v":""},{"$f":"IF('2011 Survey responses'!DA179<0.5,\"\",'2011 Survey responses'!DA179)","v":""},{"$f":"IF('2011 Survey responses'!DB179<0.5,\"\",'2011 Survey responses'!DB179)","v":""},{"$f":"IF('2011 Survey responses'!DC179<0.5,\"\",'2011 Survey responses'!DC179)","v":""},{"$f":"IF('2011 Survey responses'!DD179<0.5,\"\",'2011 Survey responses'!DD179)","v":""},{"$f":"IF('2011 Survey responses'!DE179<0.5,\"\",'2011 Survey responses'!DE179)","v":""},{"$f":"IF('2011 Survey responses'!DF179<0.5,\"\",'2011 Survey responses'!DF179)","v":""},{"$f":"IF('2011 Survey responses'!DG179<0.5,\"\",'2011 Survey responses'!DG179)","v":""},{"$f":"IF('2011 Survey responses'!DH179<0.5,\"\",'2011 Survey responses'!DH179)","v":""},{"$f":"IF('2011 Survey responses'!DI179<0.5,\"\",'2011 Survey responses'!DI179)","v":""},{"$f":"IF('2011 Survey responses'!DJ179<0.5,\"\",'2011 Survey responses'!DJ179)","v":""},{"$f":"IF('2011 Survey responses'!DK179<0.5,\"\",'2011 Survey responses'!DK179)","v":""},{"$f":"IF('2011 Survey responses'!DL179<0.5,\"\",'2011 Survey responses'!DL179)","v":""},{"$f":"IF('2011 Survey responses'!DU179=4,4,IF('2011 Survey responses'!DU179=5,4,\"\"))","v":""},{"$f":"IF('2011 Survey responses'!DV179=4,3,IF('2011 Survey responses'!DV179=5,3,\"\"))","v":""},"",{"$f":"IF(CQ179=2,CQ179,IF(CO179=4,CO179,IF(CP179=3,CP179,IF('2011 Survey responses'!GT179=1,1,\"\"))))","v":""},{"$f":"IF('2011 Survey responses'!DO179<0.5,\"\",'2011 Survey responses'!DO179)","v":""},{"$f":"IF('2011 Survey responses'!DP179<0.5,\"\",'2011 Survey responses'!DP179)","v":""},{"$f":"IF('2011 Survey responses'!DQ179<0.5,\"\",'2011 Survey responses'!DQ179)","v":""},{"$f":"IF('2011 Survey responses'!DR179<0.5,\"\",'2011 Survey responses'!DR179)","v":""},{"$f":"IF('2011 Survey responses'!DS179<0.5,\"\",'2011 Survey responses'!DS179)","v":""},{"$f":"IF('2011 Survey responses'!DT179<0.5,\"\",'2011 Survey responses'!DT179)","v":""},{"$f":"IF('2011 Survey responses'!DU179<0.5,\"\",'2011 Survey responses'!DU179)","v":""},{"$f":"IF('2011 Survey responses'!DV179<0.5,\"\",'2011 Survey responses'!DV179)","v":""},{"$f":"IF('2011 Survey responses'!DW179<0.5,\"\",'2011 Survey responses'!DW179)","v":""},{"$f":"IF('2011 Survey responses'!DX179<0.5,\"\",'2011 Survey responses'!DX179)","v":""},{"$f":"IF('2011 Survey responses'!DY179<0.5,\"\",'2011 Survey responses'!DY179)","v":""},{"$f":"IF('2011 Survey responses'!DZ179<0.5,\"\",'2011 Survey responses'!DZ179)","v":""},{"$f":"IF('2011 Survey responses'!EA179<0.5,\"\",'2011 Survey responses'!EA179)","v":""},{"$f":"IF('2011 Survey responses'!EB179<0.5,\"\",'2011 Survey responses'!EB179)","v":""},{"$f":"IF('2011 Survey responses'!EC179<0.5,\"\",'2011 Survey responses'!EC179)","v":""},{"$f":"IF('2011 Survey responses'!ED179<0.5,\"\",'2011 Survey responses'!ED179)","v":""},{"$f":"IF('2011 Survey responses'!EE179<0.5,\"\",'2011 Survey responses'!EE179)","v":""},{"$f":"IF('2011 Survey responses'!EF179<0.5,\"\",'2011 Survey responses'!EF179)","v":""},{"$f":"IF('2011 Survey responses'!EG179<0.5,\"\",'2011 Survey responses'!EG179)","v":""},{"$f":"IF('2011 Survey responses'!EH179<0.5,\"\",'2011 Survey responses'!EH179)","v":""},{"$f":"IF('2011 Survey responses'!EI179<0.5,\"\",'2011 Survey responses'!EI179)","v":""},{"$f":"IF('2011 Survey responses'!EJ179<0.5,\"\",'2011 Survey responses'!EJ179)","v":""},{"$f":"IF('2011 Survey responses'!EK179<0.5,\"\",'2011 Survey responses'!EK179)","v":""},{"$f":"IF('2011 Survey responses'!EL179<0.5,\"\",'2011 Survey responses'!EL179)","v":""},{"$f":"IF('2011 Survey responses'!EM179<0.5,\"\",'2011 Survey responses'!EM179)","v":""},{"$f":"IF('2011 Survey responses'!EN179<0.5,\"\",'2011 Survey responses'!EN179)","v":""},{"$f":"IF('2011 Survey responses'!EO179<0.5,\"\",'2011 Survey responses'!EO179)","v":""},{"$f":"IF('2011 Survey responses'!EP179<0.5,\"\",'2011 Survey responses'!EP179)","v":""},{"$f":"IF(('2011 Survey responses'!EW179+'2011 Survey responses'!EX179)>=2,AVERAGE('2011 Survey responses'!EW179,'2011 Survey responses'!EY179),\"\")","v":""},{"$f":"IF('2011 Survey responses'!EX179<0.5,\"\",'2011 Survey responses'!EX179)","v":""},{"$f":"IF('2011 Survey responses'!EZ179<0.5,\"\",'2011 Survey responses'!EZ179)","v":""},{"$f":"IF('2011 Survey responses'!FB179<0.5,\"\",'2011 Survey responses'!FB179)","v":""},{"$f":"IF('2011 Survey responses'!FD179<0.5,\"\",'2011 Survey responses'!FD179)","v":""},{"$f":"IF('2011 Survey responses'!FC179<0.5,\"\",'2011 Survey responses'!FC179)","v":""},{"$f":"IF(('2011 Survey responses'!EM179+'2011 Survey responses'!EN179)>=2,AVERAGE('2011 Survey responses'!EM179,'2011 Survey responses'!EN179),\"\")","v":""},{"$f":"IF('2011 Survey responses'!ES179<0.5,\"\",'2011 Survey responses'!ES179)","v":""},{"$f":"IF(('2011 Survey responses'!ET179+'2011 Survey responses'!EU179)>=2,AVERAGE('2011 Survey responses'!ET179,'2011 Survey responses'!EU179),\"\")","v":""},{"$f":"IF('2011 Survey responses'!EV179<0.5,\"\",'2011 Survey responses'!EV179)","v":""},{"$f":"IF('2011 Survey responses'!FA179<0.5,\"\",'2011 Survey responses'!FA179)","v":""},{"$f":"IF('2011 Survey responses'!ER179<0.5,\"\",'2011 Survey responses'!ER179)","v":""},{"$f":"IF(('2011 Survey responses'!EO179+'2011 Survey responses'!EP179)>=2,AVERAGE('2011 Survey responses'!EO179,'2011 Survey responses'!EP179),\"\")","v":""},{"$f":"IF('2011 Survey responses'!EQ179<0.5,\"\",'2011 Survey responses'!EQ179)","v":""},{"$f":"IF('2011 Survey responses'!ET179<0.5,\"\",'2011 Survey responses'!ET179)","v":""},{"$f":"IF('2011 Survey responses'!EU179<0.5,\"\",'2011 Survey responses'!EU179)","v":""},{"$f":"IF('2011 Survey responses'!EW179<0.5,\"\",'2011 Survey responses'!EW179)","v":""},{"$f":"IF('2011 Survey responses'!EY179<0.5,\"\",'2011 Survey responses'!EY179)","v":""},{"$f":"IF('2011 Survey responses'!FU179<0.5,\"\",'2011 Survey responses'!FU179)","v":""},{"$f":"IF(('2011 Survey responses'!FL179+'2011 Survey responses'!FM179)>=2,AVERAGE('2011 Survey responses'!FL179,'2011 Survey responses'!FM179),\"\")","v":""},{"$f":"IF(('2011 Survey responses'!FO179+'2011 Survey responses'!FQ179)>=2,AVERAGE('2011 Survey responses'!FO179,'2011 Survey responses'!FQ179),\"\")","v":""},{"$f":"IF('2011 Survey responses'!FJ179<0.5,\"\",'2011 Survey responses'!FJ179)","v":""},{"$f":"IF('2011 Survey responses'!FT179<0.5,\"\",'2011 Survey responses'!FT179)","v":""},{"$f":"IF('2011 Survey responses'!FR179<0.5,\"\",'2011 Survey responses'!FR179)","v":""},{"$f":"IF('2011 Survey responses'!FK179<0.5,\"\",'2011 Survey responses'!FK179)","v":""},{"$f":"IF('2011 Survey responses'!FP179<0.5,\"\",'2011 Survey responses'!FP179)","v":""},{"$f":"IF('2011 Survey responses'!FN179<0.5,\"\",'2011 Survey responses'!FN179)","v":""},{"$f":"IF(('2011 Survey responses'!FE179+'2011 Survey responses'!FF179)>=2,AVERAGE('2011 Survey responses'!FE179,'2011 Survey responses'!FF179),\"\")","v":""},{"$f":"IF('2011 Survey responses'!FS179<0.5,\"\",'2011 Survey responses'!FS179)","v":""},{"$f":"IF('2011 Survey responses'!FV179<0.5,\"\",'2011 Survey responses'!FV179)","v":""},{"$f":"IF(('2011 Survey responses'!FG179+'2011 Survey responses'!FH179)>=2,AVERAGE('2011 Survey responses'!FG179,'2011 Survey responses'!FH179),\"\")","v":""},{"$f":"IF('2011 Survey responses'!FI179<0.5,\"\",'2011 Survey responses'!FI179)","v":""},{"$f":"IF('2011 Survey responses'!FE179<0.5,\"\",'2011 Survey responses'!FE179)","v":""},{"$f":"IF('2011 Survey responses'!FF179<0.5,\"\",'2011 Survey responses'!FF179)","v":""},{"$f":"IF('2011 Survey responses'!FG179<0.5,\"\",'2011 Survey responses'!FG179)","v":""},{"$f":"IF('2011 Survey responses'!FH179<0.5,\"\",'2011 Survey responses'!FH179)","v":""},{"$f":"IF('2011 Survey responses'!FL179<0.5,\"\",'2011 Survey responses'!FL179)","v":""},{"$f":"IF('2011 Survey responses'!FM179<0.5,\"\",'2011 Survey responses'!FM179)","v":""},{"$f":"IF('2011 Survey responses'!FO179<0.5,\"\",'2011 Survey responses'!FO179)","v":""},{"$f":"IF('2011 Survey responses'!FQ179<0.5,\"\",'2011 Survey responses'!FQ179)","v":""}]
["Tuvalu",{"$f":"IF(SUM(F180)<1,\"\",AVERAGEIF('2011 Survey responses'!B180:CP180,\">1\"))","v":""},{"$f":"IF(SUM(F180)<1,\"\",AVERAGEIF('2011 Survey responses'!B180:AO180,\">1\"))","v":""},{"$f":"IF(SUM(F180)<1,\"\",AVERAGEIF('2011 Survey responses'!B180:BV180,\">1\"))","v":""},{"$f":"IF(SUM(F180)<1,\"\",AVERAGEIF('2011 Survey responses'!V180:BV180,\">1\"))","v":""},{"$f":"IF(SUM('2011 Survey responses'!B180:U180)<1,\"\",(AVERAGEIFS('2011 Survey responses'!B180:U180,'2011 Survey responses'!B180:U180,\">1\")))","v":""},{"$f":"IF(SUM('2011 Survey responses'!B180:H180)<1,\"\",(AVERAGEIFS('2011 Survey responses'!B180:H180,'2011 Survey responses'!B180:H180,\">1\")))","v":""},{"$f":"IF(SUM('2011 Survey responses'!I180:S180)<1,\"\",(AVERAGEIFS('2011 Survey responses'!I180:S180,'2011 Survey responses'!I180:S180,\">1\")))","v":""},{"$f":"IF(SUM('2011 Survey responses'!T180:U180)<2.1,\"\",(AVERAGEIFS('2011 Survey responses'!T180:U180,'2011 Survey responses'!T180:U180,\">1\")))","v":""},{"$f":"IF(SUM('2011 Survey responses'!B180:C180)<2.1,\"\",((SUMIF('2011 Survey responses'!B180:C180,\">1\")+SUMIF('2011 Survey responses'!F180,\">1\"))/(COUNTIF('2011 Survey responses'!B180:C180,\">1\")+COUNTIF('2011 Survey responses'!F180,\">1\"))))","v":""},{"$f":"IF(SUM('2011 Survey responses'!D180:E180)<2.1,\"\",(AVERAGEIFS('2011 Survey responses'!D180:E180,'2011 Survey responses'!D180:E180,\">1\")))","v":""},{"$f":"IF(('2011 Survey responses'!B180+'2011 Survey responses'!D180)<2.1,\"\",((SUMIF('2011 Survey responses'!B180,\">1\")+SUMIF('2011 Survey responses'!D180,\">1\")+SUMIF('2011 Survey responses'!F180,\">1\")+SUMIF('2011 Survey responses'!K180,\">1\"))/(COUNTIF('2011 Survey responses'!B180,\">1\")+COUNTIF('2011 Survey responses'!D180,\">1\")+COUNTIF('2011 Survey responses'!F180,\">1\")+COUNTIF('2011 Survey responses'!K180,\">1\"))))","v":""},{"$f":"IF(SUM('2011 Survey responses'!G180:H180)<2.1,\"\",(AVERAGEIFS('2011 Survey responses'!G180:H180,'2011 Survey responses'!G180:H180,\">1\")))","v":""},{"$f":"IF(SUM('2011 Survey responses'!F180:G180)<1.5,\"\",MAX('2011 Survey responses'!F180,'2011 Survey responses'!G180))","v":""},{"$f":"IF(SUM('2011 Survey responses'!G180:H180)<1,\"\",MAX('2011 Survey responses'!G180,'2011 Survey responses'!H180))","v":""},{"$f":"IF(SUM('2011 Survey responses'!I180:L180)<4.1,\"\",(AVERAGEIFS('2011 Survey responses'!I180:L180,'2011 Survey responses'!I180:L180,\">1\")))","v":""},{"$f":"IF(SUM('2011 Survey responses'!M180:S180)<4.1,\"\",(AVERAGEIFS('2011 Survey responses'!M180:S180,'2011 Survey responses'!M180:S180,\">1\")))","v":""},{"$f":"IF(SUM('2011 Survey responses'!T180:U180)<2.1,\"\",(AVERAGEIFS('2011 Survey responses'!T180:U180,'2011 Survey responses'!T180:U180,\">1\")))","v":""},{"$f":"IF(SUM('2011 Survey responses'!V180:AO180)<1,\"\",(AVERAGEIFS('2011 Survey responses'!V180:AO180,'2011 Survey responses'!V180:AO180,\">1\")))","v":""},{"$f":"IF(SUM('2011 Survey responses'!V180:AA180)<1,\"\",(AVERAGEIFS('2011 Survey responses'!V180:AA180,'2011 Survey responses'!V180:AA180,\">1\")))","v":""},{"$f":"IF(SUM('2011 Survey responses'!AB180:AH180)<1,\"\",(AVERAGEIFS('2011 Survey responses'!AB180:AH180,'2011 Survey responses'!AB180:AH180,\">1\")))","v":""},{"$f":"IF(SUM('2011 Survey responses'!AI180:AO180)<1,\"\",(AVERAGEIFS('2011 Survey responses'!AI180:AO180,'2011 Survey responses'!AI180:AO180,\">1\")))","v":""},{"$f":"IF(('2011 Survey responses'!Y180+'2011 Survey responses'!AI180+'2011 Survey responses'!AK180)<3.1,\"\",((SUMIF('2011 Survey responses'!Y180,\">1\")+SUMIF('2011 Survey responses'!AI180,\">1\")+SUMIF('2011 Survey responses'!AK180,\">1\")+SUMIF('2011 Survey responses'!AM180,\">1\"))/(COUNTIF('2011 Survey responses'!Y180,\">1\")+COUNTIF('2011 Survey responses'!AI180,\">1\")+COUNTIF('2011 Survey responses'!AK180,\">1\")+COUNTIF('2011 Survey responses'!AM180,\">1\"))))","v":""},{"$f":"IF(('2011 Survey responses'!W180)<1.1,\"\",('2011 Survey responses'!W180))","v":""},{"$f":"IF(('2011 Survey responses'!Y180)<1.1,\"\",('2011 Survey responses'!Y180))","v":""},{"$f":"IF(('2011 Survey responses'!Z180)<1.1,\"\",('2011 Survey responses'!Z180))","v":""},{"$f":"IF(('2011 Survey responses'!V180+'2011 Survey responses'!X180+'2011 Survey responses'!AA180)<3.1,\"\",((SUMIF('2011 Survey responses'!V180,\">1\")+SUMIF('2011 Survey responses'!X180,\">1\")+SUMIF('2011 Survey responses'!AA180,\">1\"))/(COUNTIF('2011 Survey responses'!V180,\">1\")+COUNTIF('2011 Survey responses'!X180,\">1\")+COUNTIF('2011 Survey responses'!AA180,\">1\"))))","v":""},{"$f":"IF(('2011 Survey responses'!V180+'2011 Survey responses'!Y180+'2011 Survey responses'!AA180)<3.1,\"\",((SUMIF('2011 Survey responses'!V180,\">1\")+SUMIF('2011 Survey responses'!Y180,\">1\")+SUMIF('2011 Survey responses'!AA180,\">1\"))/(COUNTIF('2011 Survey responses'!V180,\">1\")+COUNTIF('2011 Survey responses'!Y180,\">1\")+COUNTIF('2011 Survey responses'!AA180,\">1\"))))","v":""},{"$f":"IF(SUM('2011 Survey responses'!AB180:AH180)<1,\"\",(AVERAGEIFS('2011 Survey responses'!AB180:AH180,'2011 Survey responses'!AB180:AH180,\">1\")))","v":""},{"$f":"IF(SUM('2011 Survey responses'!AI180:AO180)<7.1,\"\",(AVERAGEIFS('2011 Survey responses'!AI180:AO180,'2011 Survey responses'!AI180:AO180,\">1\")))","v":""},{"$f":"IF(('2011 Survey responses'!AH180)<1.1,\"\",('2011 Survey responses'!AH180))","v":""},{"$f":"IF(SUM('2011 Survey responses'!AP180:BV180)<1,\"\",(AVERAGEIFS('2011 Survey responses'!AP180:BV180,'2011 Survey responses'!AP180:BV180,\">1\")))","v":""},{"$f":"IF(SUM('2011 Survey responses'!AP180:AS180)<4.1,\"\",(AVERAGEIFS('2011 Survey responses'!AP180:AS180,'2011 Survey responses'!AP180:AS180,\">1\")))","v":""},{"$f":"IF(SUM('2011 Survey responses'!AT180:BF180)<1,\"\",(AVERAGEIFS('2011 Survey responses'!AT180:BF180,'2011 Survey responses'!AT180:BF180,\">1\")))","v":""},{"$f":"IF(SUM('2011 Survey responses'!BG180:BO180)<1,\"\",(AVERAGEIFS('2011 Survey responses'!BG180:BO180,'2011 Survey responses'!BG180:BO180,\">1\")))","v":""},{"$f":"IF(SUM('2011 Survey responses'!BP180:BS180)<1,\"\",(AVERAGEIFS('2011 Survey responses'!BP180:BS180,'2011 Survey responses'!BP180:BS180,\">1\")))","v":""},{"$f":"IF(SUM('2011 Survey responses'!BT180:BV180)<3.1,\"\",(AVERAGEIFS('2011 Survey responses'!BT180:BV180,'2011 Survey responses'!BT180:BV180,\">1\")))","v":""},{"$f":"IF(('2011 Survey responses'!AQ180+'2011 Survey responses'!AR180+'2011 Survey responses'!BG180)<3.1,\"\",((SUMIF('2011 Survey responses'!AQ180,\">1\")+SUMIF('2011 Survey responses'!AR180,\">1\")+SUMIF('2011 Survey responses'!BG180,\">1\"))/(COUNTIF('2011 Survey responses'!AQ180,\">1\")+COUNTIF('2011 Survey responses'!AR180,\">1\")+COUNTIF('2011 Survey responses'!BG180,\">1\"))))","v":""},{"$f":"IF(SUM('2011 Survey responses'!AP180:AS180)<4.1,\"\",(AVERAGEIFS('2011 Survey responses'!AP180:AS180,'2011 Survey responses'!AP180:AS180,\">1\")))","v":""},{"$f":"IF(('2011 Survey responses'!AU180+'2011 Survey responses'!AX180+'2011 Survey responses'!BA180+'2011 Survey responses'!BC180+'2011 Survey responses'!BD180)<5.1,\"\",(SUMIF('2011 Survey responses'!AU180,\">1\")+SUMIF('2011 Survey responses'!AX180,\">1\")+SUMIF('2011 Survey responses'!BA180,\">1\")+SUMIF('2011 Survey responses'!BC180,\">1\")+SUMIF('2011 Survey responses'!BD180,\">1\"))/(COUNTIF('2011 Survey responses'!AU180,\">1\")+COUNTIF('2011 Survey responses'!AX180,\">1\")+COUNTIF('2011 Survey responses'!BA180,\">1\")+COUNTIF('2011 Survey responses'!BC180,\">1\")+COUNTIF('2011 Survey responses'!BD180,\">1\")))","v":""},{"$f":"IF(('2011 Survey responses'!AT180)<1.1,\"\",('2011 Survey responses'!AT180))","v":""},{"$f":"IF(SUM('2011 Survey responses'!AV180:AW180)<2.1,\"\",(AVERAGEIFS('2011 Survey responses'!AV180:AW180,'2011 Survey responses'!AV180:AW180,\">1\")))","v":""},{"$f":"IF(('2011 Survey responses'!AW180+'2011 Survey responses'!AY180)<2.1,\"\",(SUMIF('2011 Survey responses'!AW180,\">1\")+SUMIF('2011 Survey responses'!AY180,\">1\"))/(COUNTIF('2011 Survey responses'!AW180,\">1\")+COUNTIF('2011 Survey responses'!AY180,\">1\")))","v":""},{"$f":"IF(('2011 Survey responses'!AZ180)<1.1,\"\",('2011 Survey responses'!AZ180))","v":""},null,null,null,null,{"$f":"IF(('2011 Survey responses'!BE180)<1.1,\"\",('2011 Survey responses'!BE180))","v":""},{"$f":"IF(('2011 Survey responses'!AY180+'2011 Survey responses'!BB180+'2011 Survey responses'!BF180)<3.1,\"\",(SUMIF('2011 Survey responses'!AY180,\">1\")+SUMIF('2011 Survey responses'!BB180,\">1\")+SUMIF('2011 Survey responses'!BF180,\">1\"))/(COUNTIF('2011 Survey responses'!AY180,\">1\")+COUNTIF('2011 Survey responses'!BB180,\">1\")+COUNTIF('2011 Survey responses'!BF180,\">1\")))","v":""},"",{"$f":"IF(SUM('2011 Survey responses'!BT180:BV180)<3.1,\"\",(AVERAGEIFS('2011 Survey responses'!BT180:BV180,'2011 Survey responses'!BT180:BV180,\">1\")))","v":""},{"$f":"IF(SUM('2011 Survey responses'!BW180:CP180)<1,\"\",(AVERAGEIFS('2011 Survey responses'!BW180:CP180,'2011 Survey responses'!BW180:CP180,\">1\")))","v":""},{"$f":"IF(SUM('2011 Survey responses'!BW180:CF180)<1,\"\",(AVERAGEIFS('2011 Survey responses'!BW180:CF180,'2011 Survey responses'!BW180:CF180,\">1\")))","v":""},{"$f":"IF(SUM('2011 Survey responses'!CG180:CP180)<1,\"\",(AVERAGEIFS('2011 Survey responses'!CG180:CP180,'2011 Survey responses'!CG180:CP180,\">1\")))","v":""},{"$f":"IF(SUM('2011 Survey responses'!BX180:CF180)<1,\"\",(AVERAGEIFS('2011 Survey responses'!BX180:CF180,'2011 Survey responses'!BX180:CF180,\">1\")))","v":""},{"$f":"IF(SUM('2011 Survey responses'!CH180:CP180)<1,\"\",(AVERAGEIFS('2011 Survey responses'!CH180:CP180,'2011 Survey responses'!CH180:CP180,\">1\")))","v":""},{"$f":"IF(SUM('2011 Survey responses'!BW180:CP180)<1,\"\",(AVERAGEIFS('2011 Survey responses'!BW180:CP180,'2011 Survey responses'!BW180:CP180,\">1\")))","v":""},{"$f":"IF(('2011 Survey responses'!BW180+'2011 Survey responses'!CG180)<2.1,\"\",(SUMIF('2011 Survey responses'!BW180,\">1\")+SUMIF('2011 Survey responses'!CG180,\">1\"))/(COUNTIF('2011 Survey responses'!BW180,\">1\")+COUNTIF('2011 Survey responses'!CG180,\">1\")))","v":""},{"$f":"IF(('2011 Survey responses'!BX180+'2011 Survey responses'!CH180)<2.1,\"\",(SUMIF('2011 Survey responses'!BX180,\">1\")+SUMIF('2011 Survey responses'!CH180,\">1\"))/(COUNTIF('2011 Survey responses'!BX180,\">1\")+COUNTIF('2011 Survey responses'!CH180,\">1\")))","v":""},{"$f":"IF(('2011 Survey responses'!BY180+'2011 Survey responses'!CI180)<2.1,\"\",(SUMIF('2011 Survey responses'!BY180,\">1\")+SUMIF('2011 Survey responses'!CI180,\">1\"))/(COUNTIF('2011 Survey responses'!BY180,\">1\")+COUNTIF('2011 Survey responses'!CI180,\">1\")))","v":""},{"$f":"IF('2011 Survey responses'!CQ180<0.5,\"\",'2011 Survey responses'!CQ180)","v":""},{"$f":"IF('2011 Survey responses'!CR180<0.5,\"\",'2011 Survey responses'!CR180)","v":""},{"$f":"IF('2011 Survey responses'!CS180<0.5,\"\",'2011 Survey responses'!CS180)","v":""},{"$f":"IF('2011 Survey responses'!CT180<0.5,\"\",'2011 Survey responses'!CT180)","v":""},{"$f":"IF('2011 Survey responses'!CU180<0.5,\"\",'2011 Survey responses'!CU180)","v":""},{"$f":"IF('2011 Survey responses'!CV180<0.5,\"\",'2011 Survey responses'!CV180)","v":""},{"$f":"IF(SUM('2011 Survey responses'!CW180:DL180)<1,\"\",(AVERAGE('2011 Survey responses'!CW180:DL180)))","v":""},{"$f":"IF(SUM('2011 Survey responses'!CW180:CZ180)<1,\"\",(AVERAGE('2011 Survey responses'!CW180:CZ180)))","v":""},{"$f":"IF(SUM('2011 Survey responses'!DA180:DD180)<1,\"\",(AVERAGE('2011 Survey responses'!DA180:DD180)))","v":""},{"$f":"IF(SUM('2011 Survey responses'!DE180:DH180)<1,\"\",(AVERAGE('2011 Survey responses'!DE180:DH180)))","v":""},{"$f":"IF(SUM('2011 Survey responses'!DI180:DL180)<1,\"\",(AVERAGE('2011 Survey responses'!DI180:DL180)))","v":""},{"$f":"IF(('2011 Survey responses'!CW180+'2011 Survey responses'!DA180+'2011 Survey responses'!DE180+'2011 Survey responses'!DI180)<1,\"\",AVERAGE('2011 Survey responses'!CW180,'2011 Survey responses'!DA180,'2011 Survey responses'!DE180,'2011 Survey responses'!DI180))","v":""},{"$f":"IF(('2011 Survey responses'!CX180+'2011 Survey responses'!DB180+'2011 Survey responses'!DF180+'2011 Survey responses'!DJ180)<1,\"\",AVERAGE('2011 Survey responses'!CX180,'2011 Survey responses'!DB180,'2011 Survey responses'!DF180,'2011 Survey responses'!DJ180))","v":""},{"$f":"IF(('2011 Survey responses'!CY180+'2011 Survey responses'!DC180+'2011 Survey responses'!DG180+'2011 Survey responses'!DK180)<1,\"\",AVERAGE('2011 Survey responses'!CY180,'2011 Survey responses'!DC180,'2011 Survey responses'!DG180,'2011 Survey responses'!DK180))","v":""},{"$f":"IF(('2011 Survey responses'!CZ180+'2011 Survey responses'!DD180+'2011 Survey responses'!DH180+'2011 Survey responses'!DL180)<1,\"\",AVERAGE('2011 Survey responses'!CZ180,'2011 Survey responses'!DD180,'2011 Survey responses'!DH180,'2011 Survey responses'!DL180))","v":""},{"$f":"IF('2011 Survey responses'!CW180<0.5,\"\",'2011 Survey responses'!CW180)","v":""},{"$f":"IF('2011 Survey responses'!CX180<0.5,\"\",'2011 Survey responses'!CX180)","v":""},{"$f":"IF('2011 Survey responses'!CY180<0.5,\"\",'2011 Survey responses'!CY180)","v":""},{"$f":"IF('2011 Survey responses'!CZ180<0.5,\"\",'2011 Survey responses'!CZ180)","v":""},{"$f":"IF('2011 Survey responses'!DA180<0.5,\"\",'2011 Survey responses'!DA180)","v":""},{"$f":"IF('2011 Survey responses'!DB180<0.5,\"\",'2011 Survey responses'!DB180)","v":""},{"$f":"IF('2011 Survey responses'!DC180<0.5,\"\",'2011 Survey responses'!DC180)","v":""},{"$f":"IF('2011 Survey responses'!DD180<0.5,\"\",'2011 Survey responses'!DD180)","v":""},{"$f":"IF('2011 Survey responses'!DE180<0.5,\"\",'2011 Survey responses'!DE180)","v":""},{"$f":"IF('2011 Survey responses'!DF180<0.5,\"\",'2011 Survey responses'!DF180)","v":""},{"$f":"IF('2011 Survey responses'!DG180<0.5,\"\",'2011 Survey responses'!DG180)","v":""},{"$f":"IF('2011 Survey responses'!DH180<0.5,\"\",'2011 Survey responses'!DH180)","v":""},{"$f":"IF('2011 Survey responses'!DI180<0.5,\"\",'2011 Survey responses'!DI180)","v":""},{"$f":"IF('2011 Survey responses'!DJ180<0.5,\"\",'2011 Survey responses'!DJ180)","v":""},{"$f":"IF('2011 Survey responses'!DK180<0.5,\"\",'2011 Survey responses'!DK180)","v":""},{"$f":"IF('2011 Survey responses'!DL180<0.5,\"\",'2011 Survey responses'!DL180)","v":""},{"$f":"IF('2011 Survey responses'!DU180=4,4,IF('2011 Survey responses'!DU180=5,4,\"\"))","v":""},{"$f":"IF('2011 Survey responses'!DV180=4,3,IF('2011 Survey responses'!DV180=5,3,\"\"))","v":""},"",{"$f":"IF(CQ180=2,CQ180,IF(CO180=4,CO180,IF(CP180=3,CP180,IF('2011 Survey responses'!GT180=1,1,\"\"))))","v":""},{"$f":"IF('2011 Survey responses'!DO180<0.5,\"\",'2011 Survey responses'!DO180)","v":""},{"$f":"IF('2011 Survey responses'!DP180<0.5,\"\",'2011 Survey responses'!DP180)","v":""},{"$f":"IF('2011 Survey responses'!DQ180<0.5,\"\",'2011 Survey responses'!DQ180)","v":""},{"$f":"IF('2011 Survey responses'!DR180<0.5,\"\",'2011 Survey responses'!DR180)","v":""},{"$f":"IF('2011 Survey responses'!DS180<0.5,\"\",'2011 Survey responses'!DS180)","v":""},{"$f":"IF('2011 Survey responses'!DT180<0.5,\"\",'2011 Survey responses'!DT180)","v":""},{"$f":"IF('2011 Survey responses'!DU180<0.5,\"\",'2011 Survey responses'!DU180)","v":""},{"$f":"IF('2011 Survey responses'!DV180<0.5,\"\",'2011 Survey responses'!DV180)","v":""},{"$f":"IF('2011 Survey responses'!DW180<0.5,\"\",'2011 Survey responses'!DW180)","v":""},{"$f":"IF('2011 Survey responses'!DX180<0.5,\"\",'2011 Survey responses'!DX180)","v":""},{"$f":"IF('2011 Survey responses'!DY180<0.5,\"\",'2011 Survey responses'!DY180)","v":""},{"$f":"IF('2011 Survey responses'!DZ180<0.5,\"\",'2011 Survey responses'!DZ180)","v":""},{"$f":"IF('2011 Survey responses'!EA180<0.5,\"\",'2011 Survey responses'!EA180)","v":""},{"$f":"IF('2011 Survey responses'!EB180<0.5,\"\",'2011 Survey responses'!EB180)","v":""},{"$f":"IF('2011 Survey responses'!EC180<0.5,\"\",'2011 Survey responses'!EC180)","v":""},{"$f":"IF('2011 Survey responses'!ED180<0.5,\"\",'2011 Survey responses'!ED180)","v":""},{"$f":"IF('2011 Survey responses'!EE180<0.5,\"\",'2011 Survey responses'!EE180)","v":""},{"$f":"IF('2011 Survey responses'!EF180<0.5,\"\",'2011 Survey responses'!EF180)","v":""},{"$f":"IF('2011 Survey responses'!EG180<0.5,\"\",'2011 Survey responses'!EG180)","v":""},{"$f":"IF('2011 Survey responses'!EH180<0.5,\"\",'2011 Survey responses'!EH180)","v":""},{"$f":"IF('2011 Survey responses'!EI180<0.5,\"\",'2011 Survey responses'!EI180)","v":""},{"$f":"IF('2011 Survey responses'!EJ180<0.5,\"\",'2011 Survey responses'!EJ180)","v":""},{"$f":"IF('2011 Survey responses'!EK180<0.5,\"\",'2011 Survey responses'!EK180)","v":""},{"$f":"IF('2011 Survey responses'!EL180<0.5,\"\",'2011 Survey responses'!EL180)","v":""},{"$f":"IF('2011 Survey responses'!EM180<0.5,\"\",'2011 Survey responses'!EM180)","v":""},{"$f":"IF('2011 Survey responses'!EN180<0.5,\"\",'2011 Survey responses'!EN180)","v":""},{"$f":"IF('2011 Survey responses'!EO180<0.5,\"\",'2011 Survey responses'!EO180)","v":""},{"$f":"IF('2011 Survey responses'!EP180<0.5,\"\",'2011 Survey responses'!EP180)","v":""},{"$f":"IF(('2011 Survey responses'!EW180+'2011 Survey responses'!EX180)>=2,AVERAGE('2011 Survey responses'!EW180,'2011 Survey responses'!EY180),\"\")","v":""},{"$f":"IF('2011 Survey responses'!EX180<0.5,\"\",'2011 Survey responses'!EX180)","v":""},{"$f":"IF('2011 Survey responses'!EZ180<0.5,\"\",'2011 Survey responses'!EZ180)","v":""},{"$f":"IF('2011 Survey responses'!FB180<0.5,\"\",'2011 Survey responses'!FB180)","v":""},{"$f":"IF('2011 Survey responses'!FD180<0.5,\"\",'2011 Survey responses'!FD180)","v":""},{"$f":"IF('2011 Survey responses'!FC180<0.5,\"\",'2011 Survey responses'!FC180)","v":""},{"$f":"IF(('2011 Survey responses'!EM180+'2011 Survey responses'!EN180)>=2,AVERAGE('2011 Survey responses'!EM180,'2011 Survey responses'!EN180),\"\")","v":""},{"$f":"IF('2011 Survey responses'!ES180<0.5,\"\",'2011 Survey responses'!ES180)","v":""},{"$f":"IF(('2011 Survey responses'!ET180+'2011 Survey responses'!EU180)>=2,AVERAGE('2011 Survey responses'!ET180,'2011 Survey responses'!EU180),\"\")","v":""},{"$f":"IF('2011 Survey responses'!EV180<0.5,\"\",'2011 Survey responses'!EV180)","v":""},{"$f":"IF('2011 Survey responses'!FA180<0.5,\"\",'2011 Survey responses'!FA180)","v":""},{"$f":"IF('2011 Survey responses'!ER180<0.5,\"\",'2011 Survey responses'!ER180)","v":""},{"$f":"IF(('2011 Survey responses'!EO180+'2011 Survey responses'!EP180)>=2,AVERAGE('2011 Survey responses'!EO180,'2011 Survey responses'!EP180),\"\")","v":""},{"$f":"IF('2011 Survey responses'!EQ180<0.5,\"\",'2011 Survey responses'!EQ180)","v":""},{"$f":"IF('2011 Survey responses'!ET180<0.5,\"\",'2011 Survey responses'!ET180)","v":""},{"$f":"IF('2011 Survey responses'!EU180<0.5,\"\",'2011 Survey responses'!EU180)","v":""},{"$f":"IF('2011 Survey responses'!EW180<0.5,\"\",'2011 Survey responses'!EW180)","v":""},{"$f":"IF('2011 Survey responses'!EY180<0.5,\"\",'2011 Survey responses'!EY180)","v":""},{"$f":"IF('2011 Survey responses'!FU180<0.5,\"\",'2011 Survey responses'!FU180)","v":""},{"$f":"IF(('2011 Survey responses'!FL180+'2011 Survey responses'!FM180)>=2,AVERAGE('2011 Survey responses'!FL180,'2011 Survey responses'!FM180),\"\")","v":""},{"$f":"IF(('2011 Survey responses'!FO180+'2011 Survey responses'!FQ180)>=2,AVERAGE('2011 Survey responses'!FO180,'2011 Survey responses'!FQ180),\"\")","v":""},{"$f":"IF('2011 Survey responses'!FJ180<0.5,\"\",'2011 Survey responses'!FJ180)","v":""},{"$f":"IF('2011 Survey responses'!FT180<0.5,\"\",'2011 Survey responses'!FT180)","v":""},{"$f":"IF('2011 Survey responses'!FR180<0.5,\"\",'2011 Survey responses'!FR180)","v":""},{"$f":"IF('2011 Survey responses'!FK180<0.5,\"\",'2011 Survey responses'!FK180)","v":""},{"$f":"IF('2011 Survey responses'!FP180<0.5,\"\",'2011 Survey responses'!FP180)","v":""},{"$f":"IF('2011 Survey responses'!FN180<0.5,\"\",'2011 Survey responses'!FN180)","v":""},{"$f":"IF(('2011 Survey responses'!FE180+'2011 Survey responses'!FF180)>=2,AVERAGE('2011 Survey responses'!FE180,'2011 Survey responses'!FF180),\"\")","v":""},{"$f":"IF('2011 Survey responses'!FS180<0.5,\"\",'2011 Survey responses'!FS180)","v":""},{"$f":"IF('2011 Survey responses'!FV180<0.5,\"\",'2011 Survey responses'!FV180)","v":""},{"$f":"IF(('2011 Survey responses'!FG180+'2011 Survey responses'!FH180)>=2,AVERAGE('2011 Survey responses'!FG180,'2011 Survey responses'!FH180),\"\")","v":""},{"$f":"IF('2011 Survey responses'!FI180<0.5,\"\",'2011 Survey responses'!FI180)","v":""},{"$f":"IF('2011 Survey responses'!FE180<0.5,\"\",'2011 Survey responses'!FE180)","v":""},{"$f":"IF('2011 Survey responses'!FF180<0.5,\"\",'2011 Survey responses'!FF180)","v":""},{"$f":"IF('2011 Survey responses'!FG180<0.5,\"\",'2011 Survey responses'!FG180)","v":""},{"$f":"IF('2011 Survey responses'!FH180<0.5,\"\",'2011 Survey responses'!FH180)","v":""},{"$f":"IF('2011 Survey responses'!FL180<0.5,\"\",'2011 Survey responses'!FL180)","v":""},{"$f":"IF('2011 Survey responses'!FM180<0.5,\"\",'2011 Survey responses'!FM180)","v":""},{"$f":"IF('2011 Survey responses'!FO180<0.5,\"\",'2011 Survey responses'!FO180)","v":""},{"$f":"IF('2011 Survey responses'!FQ180<0.5,\"\",'2011 Survey responses'!FQ180)","v":""}]
["Uganda",{"$f":"IF(SUM(F181)<1,\"\",AVERAGEIF('2011 Survey responses'!B181:CP181,\">1\"))","v":3.8351648351648353},{"$f":"IF(SUM(F181)<1,\"\",AVERAGEIF('2011 Survey responses'!B181:AO181,\">1\"))","v":3.75},{"$f":"IF(SUM(F181)<1,\"\",AVERAGEIF('2011 Survey responses'!B181:BV181,\">1\"))","v":3.7808219178082192},{"$f":"IF(SUM(F181)<1,\"\",AVERAGEIF('2011 Survey responses'!V181:BV181,\">1\"))","v":3.8301886792452828},{"$f":"IF(SUM('2011 Survey responses'!B181:U181)<1,\"\",(AVERAGEIFS('2011 Survey responses'!B181:U181,'2011 Survey responses'!B181:U181,\">1\")))","v":3.65},{"$f":"IF(SUM('2011 Survey responses'!B181:H181)<1,\"\",(AVERAGEIFS('2011 Survey responses'!B181:H181,'2011 Survey responses'!B181:H181,\">1\")))","v":4},{"$f":"IF(SUM('2011 Survey responses'!I181:S181)<1,\"\",(AVERAGEIFS('2011 Survey responses'!I181:S181,'2011 Survey responses'!I181:S181,\">1\")))","v":3.5454545454545454},{"$f":"IF(SUM('2011 Survey responses'!T181:U181)<2.1,\"\",(AVERAGEIFS('2011 Survey responses'!T181:U181,'2011 Survey responses'!T181:U181,\">1\")))","v":3},{"$f":"IF(SUM('2011 Survey responses'!B181:C181)<2.1,\"\",((SUMIF('2011 Survey responses'!B181:C181,\">1\")+SUMIF('2011 Survey responses'!F181,\">1\"))/(COUNTIF('2011 Survey responses'!B181:C181,\">1\")+COUNTIF('2011 Survey responses'!F181,\">1\"))))","v":4.666666666666667},{"$f":"IF(SUM('2011 Survey responses'!D181:E181)<2.1,\"\",(AVERAGEIFS('2011 Survey responses'!D181:E181,'2011 Survey responses'!D181:E181,\">1\")))","v":5},{"$f":"IF(('2011 Survey responses'!B181+'2011 Survey responses'!D181)<2.1,\"\",((SUMIF('2011 Survey responses'!B181,\">1\")+SUMIF('2011 Survey responses'!D181,\">1\")+SUMIF('2011 Survey responses'!F181,\">1\")+SUMIF('2011 Survey responses'!K181,\">1\"))/(COUNTIF('2011 Survey responses'!B181,\">1\")+COUNTIF('2011 Survey responses'!D181,\">1\")+COUNTIF('2011 Survey responses'!F181,\">1\")+COUNTIF('2011 Survey responses'!K181,\">1\"))))","v":4},{"$f":"IF(SUM('2011 Survey responses'!G181:H181)<2.1,\"\",(AVERAGEIFS('2011 Survey responses'!G181:H181,'2011 Survey responses'!G181:H181,\">1\")))","v":2},{"$f":"IF(SUM('2011 Survey responses'!F181:G181)<1.5,\"\",MAX('2011 Survey responses'!F181,'2011 Survey responses'!G181))","v":4},{"$f":"IF(SUM('2011 Survey responses'!G181:H181)<1,\"\",MAX('2011 Survey responses'!G181,'2011 Survey responses'!H181))","v":2},{"$f":"IF(SUM('2011 Survey responses'!I181:L181)<4.1,\"\",(AVERAGEIFS('2011 Survey responses'!I181:L181,'2011 Survey responses'!I181:L181,\">1\")))","v":3.5},{"$f":"IF(SUM('2011 Survey responses'!M181:S181)<4.1,\"\",(AVERAGEIFS('2011 Survey responses'!M181:S181,'2011 Survey responses'!M181:S181,\">1\")))","v":3.5714285714285716},{"$f":"IF(SUM('2011 Survey responses'!T181:U181)<2.1,\"\",(AVERAGEIFS('2011 Survey responses'!T181:U181,'2011 Survey responses'!T181:U181,\">1\")))","v":3},{"$f":"IF(SUM('2011 Survey responses'!V181:AO181)<1,\"\",(AVERAGEIFS('2011 Survey responses'!V181:AO181,'2011 Survey responses'!V181:AO181,\">1\")))","v":3.85},{"$f":"IF(SUM('2011 Survey responses'!V181:AA181)<1,\"\",(AVERAGEIFS('2011 Survey responses'!V181:AA181,'2011 Survey responses'!V181:AA181,\">1\")))","v":4},{"$f":"IF(SUM('2011 Survey responses'!AB181:AH181)<1,\"\",(AVERAGEIFS('2011 Survey responses'!AB181:AH181,'2011 Survey responses'!AB181:AH181,\">1\")))","v":3.7142857142857144},{"$f":"IF(SUM('2011 Survey responses'!AI181:AO181)<1,\"\",(AVERAGEIFS('2011 Survey responses'!AI181:AO181,'2011 Survey responses'!AI181:AO181,\">1\")))","v":3.8571428571428572},{"$f":"IF(('2011 Survey responses'!Y181+'2011 Survey responses'!AI181+'2011 Survey responses'!AK181)<3.1,\"\",((SUMIF('2011 Survey responses'!Y181,\">1\")+SUMIF('2011 Survey responses'!AI181,\">1\")+SUMIF('2011 Survey responses'!AK181,\">1\")+SUMIF('2011 Survey responses'!AM181,\">1\"))/(COUNTIF('2011 Survey responses'!Y181,\">1\")+COUNTIF('2011 Survey responses'!AI181,\">1\")+COUNTIF('2011 Survey responses'!AK181,\">1\")+COUNTIF('2011 Survey responses'!AM181,\">1\"))))","v":4.25},{"$f":"IF(('2011 Survey responses'!W181)<1.1,\"\",('2011 Survey responses'!W181))","v":4},{"$f":"IF(('2011 Survey responses'!Y181)<1.1,\"\",('2011 Survey responses'!Y181))","v":4},{"$f":"IF(('2011 Survey responses'!Z181)<1.1,\"\",('2011 Survey responses'!Z181))","v":4},{"$f":"IF(('2011 Survey responses'!V181+'2011 Survey responses'!X181+'2011 Survey responses'!AA181)<3.1,\"\",((SUMIF('2011 Survey responses'!V181,\">1\")+SUMIF('2011 Survey responses'!X181,\">1\")+SUMIF('2011 Survey responses'!AA181,\">1\"))/(COUNTIF('2011 Survey responses'!V181,\">1\")+COUNTIF('2011 Survey responses'!X181,\">1\")+COUNTIF('2011 Survey responses'!AA181,\">1\"))))","v":4},{"$f":"IF(('2011 Survey responses'!V181+'2011 Survey responses'!Y181+'2011 Survey responses'!AA181)<3.1,\"\",((SUMIF('2011 Survey responses'!V181,\">1\")+SUMIF('2011 Survey responses'!Y181,\">1\")+SUMIF('2011 Survey responses'!AA181,\">1\"))/(COUNTIF('2011 Survey responses'!V181,\">1\")+COUNTIF('2011 Survey responses'!Y181,\">1\")+COUNTIF('2011 Survey responses'!AA181,\">1\"))))","v":4},{"$f":"IF(SUM('2011 Survey responses'!AB181:AH181)<1,\"\",(AVERAGEIFS('2011 Survey responses'!AB181:AH181,'2011 Survey responses'!AB181:AH181,\">1\")))","v":3.7142857142857144},{"$f":"IF(SUM('2011 Survey responses'!AI181:AO181)<7.1,\"\",(AVERAGEIFS('2011 Survey responses'!AI181:AO181,'2011 Survey responses'!AI181:AO181,\">1\")))","v":3.8571428571428572},{"$f":"IF(('2011 Survey responses'!AH181)<1.1,\"\",('2011 Survey responses'!AH181))","v":4},{"$f":"IF(SUM('2011 Survey responses'!AP181:BV181)<1,\"\",(AVERAGEIFS('2011 Survey responses'!AP181:BV181,'2011 Survey responses'!AP181:BV181,\">1\")))","v":3.8181818181818183},{"$f":"IF(SUM('2011 Survey responses'!AP181:AS181)<4.1,\"\",(AVERAGEIFS('2011 Survey responses'!AP181:AS181,'2011 Survey responses'!AP181:AS181,\">1\")))","v":4.25},{"$f":"IF(SUM('2011 Survey responses'!AT181:BF181)<1,\"\",(AVERAGEIFS('2011 Survey responses'!AT181:BF181,'2011 Survey responses'!AT181:BF181,\">1\")))","v":4.0769230769230766},{"$f":"IF(SUM('2011 Survey responses'!BG181:BO181)<1,\"\",(AVERAGEIFS('2011 Survey responses'!BG181:BO181,'2011 Survey responses'!BG181:BO181,\">1\")))","v":4.2222222222222223},{"$f":"IF(SUM('2011 Survey responses'!BP181:BS181)<1,\"\",(AVERAGEIFS('2011 Survey responses'!BP181:BS181,'2011 Survey responses'!BP181:BS181,\">1\")))","v":2},{"$f":"IF(SUM('2011 Survey responses'!BT181:BV181)<3.1,\"\",(AVERAGEIFS('2011 Survey responses'!BT181:BV181,'2011 Survey responses'!BT181:BV181,\">1\")))","v":3.3333333333333335},{"$f":"IF(('2011 Survey responses'!AQ181+'2011 Survey responses'!AR181+'2011 Survey responses'!BG181)<3.1,\"\",((SUMIF('2011 Survey responses'!AQ181,\">1\")+SUMIF('2011 Survey responses'!AR181,\">1\")+SUMIF('2011 Survey responses'!BG181,\">1\"))/(COUNTIF('2011 Survey responses'!AQ181,\">1\")+COUNTIF('2011 Survey responses'!AR181,\">1\")+COUNTIF('2011 Survey responses'!BG181,\">1\"))))","v":5},{"$f":"IF(SUM('2011 Survey responses'!AP181:AS181)<4.1,\"\",(AVERAGEIFS('2011 Survey responses'!AP181:AS181,'2011 Survey responses'!AP181:AS181,\">1\")))","v":4.25},{"$f":"IF(('2011 Survey responses'!AU181+'2011 Survey responses'!AX181+'2011 Survey responses'!BA181+'2011 Survey responses'!BC181+'2011 Survey responses'!BD181)<5.1,\"\",(SUMIF('2011 Survey responses'!AU181,\">1\")+SUMIF('2011 Survey responses'!AX181,\">1\")+SUMIF('2011 Survey responses'!BA181,\">1\")+SUMIF('2011 Survey responses'!BC181,\">1\")+SUMIF('2011 Survey responses'!BD181,\">1\"))/(COUNTIF('2011 Survey responses'!AU181,\">1\")+COUNTIF('2011 Survey responses'!AX181,\">1\")+COUNTIF('2011 Survey responses'!BA181,\">1\")+COUNTIF('2011 Survey responses'!BC181,\">1\")+COUNTIF('2011 Survey responses'!BD181,\">1\")))","v":3.8},{"$f":"IF(('2011 Survey responses'!AT181)<1.1,\"\",('2011 Survey responses'!AT181))","v":5},{"$f":"IF(SUM('2011 Survey responses'!AV181:AW181)<2.1,\"\",(AVERAGEIFS('2011 Survey responses'!AV181:AW181,'2011 Survey responses'!AV181:AW181,\">1\")))","v":4.5},{"$f":"IF(('2011 Survey responses'!AW181+'2011 Survey responses'!AY181)<2.1,\"\",(SUMIF('2011 Survey responses'!AW181,\">1\")+SUMIF('2011 Survey responses'!AY181,\">1\"))/(COUNTIF('2011 Survey responses'!AW181,\">1\")+COUNTIF('2011 Survey responses'!AY181,\">1\")))","v":3.5},{"$f":"IF(('2011 Survey responses'!AZ181)<1.1,\"\",('2011 Survey responses'!AZ181))","v":2},2,2,2,2,{"$f":"IF(('2011 Survey responses'!BE181)<1.1,\"\",('2011 Survey responses'!BE181))","v":5},{"$f":"IF(('2011 Survey responses'!AY181+'2011 Survey responses'!BB181+'2011 Survey responses'!BF181)<3.1,\"\",(SUMIF('2011 Survey responses'!AY181,\">1\")+SUMIF('2011 Survey responses'!BB181,\">1\")+SUMIF('2011 Survey responses'!BF181,\">1\"))/(COUNTIF('2011 Survey responses'!AY181,\">1\")+COUNTIF('2011 Survey responses'!BB181,\">1\")+COUNTIF('2011 Survey responses'!BF181,\">1\")))","v":4.333333333333333},3.1111111111111112,{"$f":"IF(SUM('2011 Survey responses'!BT181:BV181)<3.1,\"\",(AVERAGEIFS('2011 Survey responses'!BT181:BV181,'2011 Survey responses'!BT181:BV181,\">1\")))","v":3.3333333333333335},{"$f":"IF(SUM('2011 Survey responses'!BW181:CP181)<1,\"\",(AVERAGEIFS('2011 Survey responses'!BW181:CP181,'2011 Survey responses'!BW181:CP181,\">1\")))","v":4.0555555555555554},{"$f":"IF(SUM('2011 Survey responses'!BW181:CF181)<1,\"\",(AVERAGEIFS('2011 Survey responses'!BW181:CF181,'2011 Survey responses'!BW181:CF181,\">1\")))","v":4},{"$f":"IF(SUM('2011 Survey responses'!CG181:CP181)<1,\"\",(AVERAGEIFS('2011 Survey responses'!CG181:CP181,'2011 Survey responses'!CG181:CP181,\">1\")))","v":4.1111111111111107},{"$f":"IF(SUM('2011 Survey responses'!BX181:CF181)<1,\"\",(AVERAGEIFS('2011 Survey responses'!BX181:CF181,'2011 Survey responses'!BX181:CF181,\">1\")))","v":4},{"$f":"IF(SUM('2011 Survey responses'!CH181:CP181)<1,\"\",(AVERAGEIFS('2011 Survey responses'!CH181:CP181,'2011 Survey responses'!CH181:CP181,\">1\")))","v":4.125},{"$f":"IF(SUM('2011 Survey responses'!BW181:CP181)<1,\"\",(AVERAGEIFS('2011 Survey responses'!BW181:CP181,'2011 Survey responses'!BW181:CP181,\">1\")))","v":4.0555555555555554},{"$f":"IF(('2011 Survey responses'!BW181+'2011 Survey responses'!CG181)<2.1,\"\",(SUMIF('2011 Survey responses'!BW181,\">1\")+SUMIF('2011 Survey responses'!CG181,\">1\"))/(COUNTIF('2011 Survey responses'!BW181,\">1\")+COUNTIF('2011 Survey responses'!CG181,\">1\")))","v":4},{"$f":"IF(('2011 Survey responses'!BX181+'2011 Survey responses'!CH181)<2.1,\"\",(SUMIF('2011 Survey responses'!BX181,\">1\")+SUMIF('2011 Survey responses'!CH181,\">1\"))/(COUNTIF('2011 Survey responses'!BX181,\">1\")+COUNTIF('2011 Survey responses'!CH181,\">1\")))","v":2},{"$f":"IF(('2011 Survey responses'!BY181+'2011 Survey responses'!CI181)<2.1,\"\",(SUMIF('2011 Survey responses'!BY181,\">1\")+SUMIF('2011 Survey responses'!CI181,\">1\"))/(COUNTIF('2011 Survey responses'!BY181,\">1\")+COUNTIF('2011 Survey responses'!CI181,\">1\")))","v":5},{"$f":"IF('2011 Survey responses'!CQ181<0.5,\"\",'2011 Survey responses'!CQ181)","v":3},{"$f":"IF('2011 Survey responses'!CR181<0.5,\"\",'2011 Survey responses'!CR181)","v":4},{"$f":"IF('2011 Survey responses'!CS181<0.5,\"\",'2011 Survey responses'!CS181)","v":5},{"$f":"IF('2011 Survey responses'!CT181<0.5,\"\",'2011 Survey responses'!CT181)","v":1},{"$f":"IF('2011 Survey responses'!CU181<0.5,\"\",'2011 Survey responses'!CU181)","v":5},{"$f":"IF('2011 Survey responses'!CV181<0.5,\"\",'2011 Survey responses'!CV181)","v":1},{"$f":"IF(SUM('2011 Survey responses'!CW181:DL181)<1,\"\",(AVERAGE('2011 Survey responses'!CW181:DL181)))","v":3.1875},{"$f":"IF(SUM('2011 Survey responses'!CW181:CZ181)<1,\"\",(AVERAGE('2011 Survey responses'!CW181:CZ181)))","v":3.25},{"$f":"IF(SUM('2011 Survey responses'!DA181:DD181)<1,\"\",(AVERAGE('2011 Survey responses'!DA181:DD181)))","v":3.5},{"$f":"IF(SUM('2011 Survey responses'!DE181:DH181)<1,\"\",(AVERAGE('2011 Survey responses'!DE181:DH181)))","v":2.75},{"$f":"IF(SUM('2011 Survey responses'!DI181:DL181)<1,\"\",(AVERAGE('2011 Survey responses'!DI181:DL181)))","v":3.25},{"$f":"IF(('2011 Survey responses'!CW181+'2011 Survey responses'!DA181+'2011 Survey responses'!DE181+'2011 Survey responses'!DI181)<1,\"\",AVERAGE('2011 Survey responses'!CW181,'2011 Survey responses'!DA181,'2011 Survey responses'!DE181,'2011 Survey responses'!DI181))","v":2.5},{"$f":"IF(('2011 Survey responses'!CX181+'2011 Survey responses'!DB181+'2011 Survey responses'!DF181+'2011 Survey responses'!DJ181)<1,\"\",AVERAGE('2011 Survey responses'!CX181,'2011 Survey responses'!DB181,'2011 Survey responses'!DF181,'2011 Survey responses'!DJ181))","v":3.25},{"$f":"IF(('2011 Survey responses'!CY181+'2011 Survey responses'!DC181+'2011 Survey responses'!DG181+'2011 Survey responses'!DK181)<1,\"\",AVERAGE('2011 Survey responses'!CY181,'2011 Survey responses'!DC181,'2011 Survey responses'!DG181,'2011 Survey responses'!DK181))","v":3.5},{"$f":"IF(('2011 Survey responses'!CZ181+'2011 Survey responses'!DD181+'2011 Survey responses'!DH181+'2011 Survey responses'!DL181)<1,\"\",AVERAGE('2011 Survey responses'!CZ181,'2011 Survey responses'!DD181,'2011 Survey responses'!DH181,'2011 Survey responses'!DL181))","v":3.5},{"$f":"IF('2011 Survey responses'!CW181<0.5,\"\",'2011 Survey responses'!CW181)","v":3},{"$f":"IF('2011 Survey responses'!CX181<0.5,\"\",'2011 Survey responses'!CX181)","v":3},{"$f":"IF('2011 Survey responses'!CY181<0.5,\"\",'2011 Survey responses'!CY181)","v":4},{"$f":"IF('2011 Survey responses'!CZ181<0.5,\"\",'2011 Survey responses'!CZ181)","v":3},{"$f":"IF('2011 Survey responses'!DA181<0.5,\"\",'2011 Survey responses'!DA181)","v":2},{"$f":"IF('2011 Survey responses'!DB181<0.5,\"\",'2011 Survey responses'!DB181)","v":4},{"$f":"IF('2011 Survey responses'!DC181<0.5,\"\",'2011 Survey responses'!DC181)","v":4},{"$f":"IF('2011 Survey responses'!DD181<0.5,\"\",'2011 Survey responses'!DD181)","v":4},{"$f":"IF('2011 Survey responses'!DE181<0.5,\"\",'2011 Survey responses'!DE181)","v":2},{"$f":"IF('2011 Survey responses'!DF181<0.5,\"\",'2011 Survey responses'!DF181)","v":2},{"$f":"IF('2011 Survey responses'!DG181<0.5,\"\",'2011 Survey responses'!DG181)","v":4},{"$f":"IF('2011 Survey responses'!DH181<0.5,\"\",'2011 Survey responses'!DH181)","v":3},{"$f":"IF('2011 Survey responses'!DI181<0.5,\"\",'2011 Survey responses'!DI181)","v":3},{"$f":"IF('2011 Survey responses'!DJ181<0.5,\"\",'2011 Survey responses'!DJ181)","v":4},{"$f":"IF('2011 Survey responses'!DK181<0.5,\"\",'2011 Survey responses'!DK181)","v":2},{"$f":"IF('2011 Survey responses'!DL181<0.5,\"\",'2011 Survey responses'!DL181)","v":4},{"$f":"IF('2011 Survey responses'!DU181=4,4,IF('2011 Survey responses'!DU181=5,4,\"\"))","v":4},{"$f":"IF('2011 Survey responses'!DV181=4,3,IF('2011 Survey responses'!DV181=5,3,\"\"))","v":3},2,{"$f":"IF(CQ181=2,CQ181,IF(CO181=4,CO181,IF(CP181=3,CP181,IF('2011 Survey responses'!GT181=1,1,\"\"))))","v":2},{"$f":"IF('2011 Survey responses'!DO181<0.5,\"\",'2011 Survey responses'!DO181)","v":4},{"$f":"IF('2011 Survey responses'!DP181<0.5,\"\",'2011 Survey responses'!DP181)","v":4},{"$f":"IF('2011 Survey responses'!DQ181<0.5,\"\",'2011 Survey responses'!DQ181)","v":4},{"$f":"IF('2011 Survey responses'!DR181<0.5,\"\",'2011 Survey responses'!DR181)","v":4},{"$f":"IF('2011 Survey responses'!DS181<0.5,\"\",'2011 Survey responses'!DS181)","v":3},{"$f":"IF('2011 Survey responses'!DT181<0.5,\"\",'2011 Survey responses'!DT181)","v":4},{"$f":"IF('2011 Survey responses'!DU181<0.5,\"\",'2011 Survey responses'!DU181)","v":4},{"$f":"IF('2011 Survey responses'!DV181<0.5,\"\",'2011 Survey responses'!DV181)","v":4},{"$f":"IF('2011 Survey responses'!DW181<0.5,\"\",'2011 Survey responses'!DW181)","v":3},{"$f":"IF('2011 Survey responses'!DX181<0.5,\"\",'2011 Survey responses'!DX181)","v":3},{"$f":"IF('2011 Survey responses'!DY181<0.5,\"\",'2011 Survey responses'!DY181)","v":4},{"$f":"IF('2011 Survey responses'!DZ181<0.5,\"\",'2011 Survey responses'!DZ181)","v":4},{"$f":"IF('2011 Survey responses'!EA181<0.5,\"\",'2011 Survey responses'!EA181)","v":4},{"$f":"IF('2011 Survey responses'!EB181<0.5,\"\",'2011 Survey responses'!EB181)","v":5},{"$f":"IF('2011 Survey responses'!EC181<0.5,\"\",'2011 Survey responses'!EC181)","v":4},{"$f":"IF('2011 Survey responses'!ED181<0.5,\"\",'2011 Survey responses'!ED181)","v":5},{"$f":"IF('2011 Survey responses'!EE181<0.5,\"\",'2011 Survey responses'!EE181)","v":3},{"$f":"IF('2011 Survey responses'!EF181<0.5,\"\",'2011 Survey responses'!EF181)","v":4},{"$f":"IF('2011 Survey responses'!EG181<0.5,\"\",'2011 Survey responses'!EG181)","v":5},{"$f":"IF('2011 Survey responses'!EH181<0.5,\"\",'2011 Survey responses'!EH181)","v":5},{"$f":"IF('2011 Survey responses'!EI181<0.5,\"\",'2011 Survey responses'!EI181)","v":4},{"$f":"IF('2011 Survey responses'!EJ181<0.5,\"\",'2011 Survey responses'!EJ181)","v":4},{"$f":"IF('2011 Survey responses'!EK181<0.5,\"\",'2011 Survey responses'!EK181)","v":5},{"$f":"IF('2011 Survey responses'!EL181<0.5,\"\",'2011 Survey responses'!EL181)","v":4},{"$f":"IF('2011 Survey responses'!EM181<0.5,\"\",'2011 Survey responses'!EM181)","v":4},{"$f":"IF('2011 Survey responses'!EN181<0.5,\"\",'2011 Survey responses'!EN181)","v":4},{"$f":"IF('2011 Survey responses'!EO181<0.5,\"\",'2011 Survey responses'!EO181)","v":4},{"$f":"IF('2011 Survey responses'!EP181<0.5,\"\",'2011 Survey responses'!EP181)","v":3},{"$f":"IF(('2011 Survey responses'!EW181+'2011 Survey responses'!EX181)>=2,AVERAGE('2011 Survey responses'!EW181,'2011 Survey responses'!EY181),\"\")","v":4},{"$f":"IF('2011 Survey responses'!EX181<0.5,\"\",'2011 Survey responses'!EX181)","v":4},{"$f":"IF('2011 Survey responses'!EZ181<0.5,\"\",'2011 Survey responses'!EZ181)","v":4},{"$f":"IF('2011 Survey responses'!FB181<0.5,\"\",'2011 Survey responses'!FB181)","v":4},{"$f":"IF('2011 Survey responses'!FD181<0.5,\"\",'2011 Survey responses'!FD181)","v":4},{"$f":"IF('2011 Survey responses'!FC181<0.5,\"\",'2011 Survey responses'!FC181)","v":4},{"$f":"IF(('2011 Survey responses'!EM181+'2011 Survey responses'!EN181)>=2,AVERAGE('2011 Survey responses'!EM181,'2011 Survey responses'!EN181),\"\")","v":4},{"$f":"IF('2011 Survey responses'!ES181<0.5,\"\",'2011 Survey responses'!ES181)","v":4},{"$f":"IF(('2011 Survey responses'!ET181+'2011 Survey responses'!EU181)>=2,AVERAGE('2011 Survey responses'!ET181,'2011 Survey responses'!EU181),\"\")","v":4},{"$f":"IF('2011 Survey responses'!EV181<0.5,\"\",'2011 Survey responses'!EV181)","v":3},{"$f":"IF('2011 Survey responses'!FA181<0.5,\"\",'2011 Survey responses'!FA181)","v":4},{"$f":"IF('2011 Survey responses'!ER181<0.5,\"\",'2011 Survey responses'!ER181)","v":4},{"$f":"IF(('2011 Survey responses'!EO181+'2011 Survey responses'!EP181)>=2,AVERAGE('2011 Survey responses'!EO181,'2011 Survey responses'!EP181),\"\")","v":3.5},{"$f":"IF('2011 Survey responses'!EQ181<0.5,\"\",'2011 Survey responses'!EQ181)","v":2},{"$f":"IF('2011 Survey responses'!ET181<0.5,\"\",'2011 Survey responses'!ET181)","v":4},{"$f":"IF('2011 Survey responses'!EU181<0.5,\"\",'2011 Survey responses'!EU181)","v":4},{"$f":"IF('2011 Survey responses'!EW181<0.5,\"\",'2011 Survey responses'!EW181)","v":4},{"$f":"IF('2011 Survey responses'!EY181<0.5,\"\",'2011 Survey responses'!EY181)","v":4},{"$f":"IF('2011 Survey responses'!FU181<0.5,\"\",'2011 Survey responses'!FU181)","v":5},{"$f":"IF(('2011 Survey responses'!FL181+'2011 Survey responses'!FM181)>=2,AVERAGE('2011 Survey responses'!FL181,'2011 Survey responses'!FM181),\"\")","v":4},{"$f":"IF(('2011 Survey responses'!FO181+'2011 Survey responses'!FQ181)>=2,AVERAGE('2011 Survey responses'!FO181,'2011 Survey responses'!FQ181),\"\")","v":4},{"$f":"IF('2011 Survey responses'!FJ181<0.5,\"\",'2011 Survey responses'!FJ181)","v":4},{"$f":"IF('2011 Survey responses'!FT181<0.5,\"\",'2011 Survey responses'!FT181)","v":5},{"$f":"IF('2011 Survey responses'!FR181<0.5,\"\",'2011 Survey responses'!FR181)","v":5},{"$f":"IF('2011 Survey responses'!FK181<0.5,\"\",'2011 Survey responses'!FK181)","v":4},{"$f":"IF('2011 Survey responses'!FP181<0.5,\"\",'2011 Survey responses'!FP181)","v":4},{"$f":"IF('2011 Survey responses'!FN181<0.5,\"\",'2011 Survey responses'!FN181)","v":3},{"$f":"IF(('2011 Survey responses'!FE181+'2011 Survey responses'!FF181)>=2,AVERAGE('2011 Survey responses'!FE181,'2011 Survey responses'!FF181),\"\")","v":3.5},{"$f":"IF('2011 Survey responses'!FS181<0.5,\"\",'2011 Survey responses'!FS181)","v":4},{"$f":"IF('2011 Survey responses'!FV181<0.5,\"\",'2011 Survey responses'!FV181)","v":4},{"$f":"IF(('2011 Survey responses'!FG181+'2011 Survey responses'!FH181)>=2,AVERAGE('2011 Survey responses'!FG181,'2011 Survey responses'!FH181),\"\")","v":3.5},{"$f":"IF('2011 Survey responses'!FI181<0.5,\"\",'2011 Survey responses'!FI181)","v":3},{"$f":"IF('2011 Survey responses'!FE181<0.5,\"\",'2011 Survey responses'!FE181)","v":4},{"$f":"IF('2011 Survey responses'!FF181<0.5,\"\",'2011 Survey responses'!FF181)","v":3},{"$f":"IF('2011 Survey responses'!FG181<0.5,\"\",'2011 Survey responses'!FG181)","v":4},{"$f":"IF('2011 Survey responses'!FH181<0.5,\"\",'2011 Survey responses'!FH181)","v":3},{"$f":"IF('2011 Survey responses'!FL181<0.5,\"\",'2011 Survey responses'!FL181)","v":4},{"$f":"IF('2011 Survey responses'!FM181<0.5,\"\",'2011 Survey responses'!FM181)","v":4},{"$f":"IF('2011 Survey responses'!FO181<0.5,\"\",'2011 Survey responses'!FO181)","v":4},{"$f":"IF('2011 Survey responses'!FQ181<0.5,\"\",'2011 Survey responses'!FQ181)","v":4}]
["Ukraine",{"$f":"IF(SUM(F182)<1,\"\",AVERAGEIF('2011 Survey responses'!B182:CP182,\">1\"))","v":""},{"$f":"IF(SUM(F182)<1,\"\",AVERAGEIF('2011 Survey responses'!B182:AO182,\">1\"))","v":""},{"$f":"IF(SUM(F182)<1,\"\",AVERAGEIF('2011 Survey responses'!B182:BV182,\">1\"))","v":""},{"$f":"IF(SUM(F182)<1,\"\",AVERAGEIF('2011 Survey responses'!V182:BV182,\">1\"))","v":""},{"$f":"IF(SUM('2011 Survey responses'!B182:U182)<1,\"\",(AVERAGEIFS('2011 Survey responses'!B182:U182,'2011 Survey responses'!B182:U182,\">1\")))","v":""},{"$f":"IF(SUM('2011 Survey responses'!B182:H182)<1,\"\",(AVERAGEIFS('2011 Survey responses'!B182:H182,'2011 Survey responses'!B182:H182,\">1\")))","v":""},{"$f":"IF(SUM('2011 Survey responses'!I182:S182)<1,\"\",(AVERAGEIFS('2011 Survey responses'!I182:S182,'2011 Survey responses'!I182:S182,\">1\")))","v":""},{"$f":"IF(SUM('2011 Survey responses'!T182:U182)<2.1,\"\",(AVERAGEIFS('2011 Survey responses'!T182:U182,'2011 Survey responses'!T182:U182,\">1\")))","v":""},{"$f":"IF(SUM('2011 Survey responses'!B182:C182)<2.1,\"\",((SUMIF('2011 Survey responses'!B182:C182,\">1\")+SUMIF('2011 Survey responses'!F182,\">1\"))/(COUNTIF('2011 Survey responses'!B182:C182,\">1\")+COUNTIF('2011 Survey responses'!F182,\">1\"))))","v":""},{"$f":"IF(SUM('2011 Survey responses'!D182:E182)<2.1,\"\",(AVERAGEIFS('2011 Survey responses'!D182:E182,'2011 Survey responses'!D182:E182,\">1\")))","v":""},{"$f":"IF(('2011 Survey responses'!B182+'2011 Survey responses'!D182)<2.1,\"\",((SUMIF('2011 Survey responses'!B182,\">1\")+SUMIF('2011 Survey responses'!D182,\">1\")+SUMIF('2011 Survey responses'!F182,\">1\")+SUMIF('2011 Survey responses'!K182,\">1\"))/(COUNTIF('2011 Survey responses'!B182,\">1\")+COUNTIF('2011 Survey responses'!D182,\">1\")+COUNTIF('2011 Survey responses'!F182,\">1\")+COUNTIF('2011 Survey responses'!K182,\">1\"))))","v":""},{"$f":"IF(SUM('2011 Survey responses'!G182:H182)<2.1,\"\",(AVERAGEIFS('2011 Survey responses'!G182:H182,'2011 Survey responses'!G182:H182,\">1\")))","v":""},{"$f":"IF(SUM('2011 Survey responses'!F182:G182)<1.5,\"\",MAX('2011 Survey responses'!F182,'2011 Survey responses'!G182))","v":""},{"$f":"IF(SUM('2011 Survey responses'!G182:H182)<1,\"\",MAX('2011 Survey responses'!G182,'2011 Survey responses'!H182))","v":""},{"$f":"IF(SUM('2011 Survey responses'!I182:L182)<4.1,\"\",(AVERAGEIFS('2011 Survey responses'!I182:L182,'2011 Survey responses'!I182:L182,\">1\")))","v":""},{"$f":"IF(SUM('2011 Survey responses'!M182:S182)<4.1,\"\",(AVERAGEIFS('2011 Survey responses'!M182:S182,'2011 Survey responses'!M182:S182,\">1\")))","v":""},{"$f":"IF(SUM('2011 Survey responses'!T182:U182)<2.1,\"\",(AVERAGEIFS('2011 Survey responses'!T182:U182,'2011 Survey responses'!T182:U182,\">1\")))","v":""},{"$f":"IF(SUM('2011 Survey responses'!V182:AO182)<1,\"\",(AVERAGEIFS('2011 Survey responses'!V182:AO182,'2011 Survey responses'!V182:AO182,\">1\")))","v":""},{"$f":"IF(SUM('2011 Survey responses'!V182:AA182)<1,\"\",(AVERAGEIFS('2011 Survey responses'!V182:AA182,'2011 Survey responses'!V182:AA182,\">1\")))","v":""},{"$f":"IF(SUM('2011 Survey responses'!AB182:AH182)<1,\"\",(AVERAGEIFS('2011 Survey responses'!AB182:AH182,'2011 Survey responses'!AB182:AH182,\">1\")))","v":""},{"$f":"IF(SUM('2011 Survey responses'!AI182:AO182)<1,\"\",(AVERAGEIFS('2011 Survey responses'!AI182:AO182,'2011 Survey responses'!AI182:AO182,\">1\")))","v":""},{"$f":"IF(('2011 Survey responses'!Y182+'2011 Survey responses'!AI182+'2011 Survey responses'!AK182)<3.1,\"\",((SUMIF('2011 Survey responses'!Y182,\">1\")+SUMIF('2011 Survey responses'!AI182,\">1\")+SUMIF('2011 Survey responses'!AK182,\">1\")+SUMIF('2011 Survey responses'!AM182,\">1\"))/(COUNTIF('2011 Survey responses'!Y182,\">1\")+COUNTIF('2011 Survey responses'!AI182,\">1\")+COUNTIF('2011 Survey responses'!AK182,\">1\")+COUNTIF('2011 Survey responses'!AM182,\">1\"))))","v":""},{"$f":"IF(('2011 Survey responses'!W182)<1.1,\"\",('2011 Survey responses'!W182))","v":""},{"$f":"IF(('2011 Survey responses'!Y182)<1.1,\"\",('2011 Survey responses'!Y182))","v":""},{"$f":"IF(('2011 Survey responses'!Z182)<1.1,\"\",('2011 Survey responses'!Z182))","v":""},{"$f":"IF(('2011 Survey responses'!V182+'2011 Survey responses'!X182+'2011 Survey responses'!AA182)<3.1,\"\",((SUMIF('2011 Survey responses'!V182,\">1\")+SUMIF('2011 Survey responses'!X182,\">1\")+SUMIF('2011 Survey responses'!AA182,\">1\"))/(COUNTIF('2011 Survey responses'!V182,\">1\")+COUNTIF('2011 Survey responses'!X182,\">1\")+COUNTIF('2011 Survey responses'!AA182,\">1\"))))","v":""},{"$f":"IF(('2011 Survey responses'!V182+'2011 Survey responses'!Y182+'2011 Survey responses'!AA182)<3.1,\"\",((SUMIF('2011 Survey responses'!V182,\">1\")+SUMIF('2011 Survey responses'!Y182,\">1\")+SUMIF('2011 Survey responses'!AA182,\">1\"))/(COUNTIF('2011 Survey responses'!V182,\">1\")+COUNTIF('2011 Survey responses'!Y182,\">1\")+COUNTIF('2011 Survey responses'!AA182,\">1\"))))","v":""},{"$f":"IF(SUM('2011 Survey responses'!AB182:AH182)<1,\"\",(AVERAGEIFS('2011 Survey responses'!AB182:AH182,'2011 Survey responses'!AB182:AH182,\">1\")))","v":""},{"$f":"IF(SUM('2011 Survey responses'!AI182:AO182)<7.1,\"\",(AVERAGEIFS('2011 Survey responses'!AI182:AO182,'2011 Survey responses'!AI182:AO182,\">1\")))","v":""},{"$f":"IF(('2011 Survey responses'!AH182)<1.1,\"\",('2011 Survey responses'!AH182))","v":""},{"$f":"IF(SUM('2011 Survey responses'!AP182:BV182)<1,\"\",(AVERAGEIFS('2011 Survey responses'!AP182:BV182,'2011 Survey responses'!AP182:BV182,\">1\")))","v":""},{"$f":"IF(SUM('2011 Survey responses'!AP182:AS182)<4.1,\"\",(AVERAGEIFS('2011 Survey responses'!AP182:AS182,'2011 Survey responses'!AP182:AS182,\">1\")))","v":""},{"$f":"IF(SUM('2011 Survey responses'!AT182:BF182)<1,\"\",(AVERAGEIFS('2011 Survey responses'!AT182:BF182,'2011 Survey responses'!AT182:BF182,\">1\")))","v":""},{"$f":"IF(SUM('2011 Survey responses'!BG182:BO182)<1,\"\",(AVERAGEIFS('2011 Survey responses'!BG182:BO182,'2011 Survey responses'!BG182:BO182,\">1\")))","v":""},{"$f":"IF(SUM('2011 Survey responses'!BP182:BS182)<1,\"\",(AVERAGEIFS('2011 Survey responses'!BP182:BS182,'2011 Survey responses'!BP182:BS182,\">1\")))","v":""},{"$f":"IF(SUM('2011 Survey responses'!BT182:BV182)<3.1,\"\",(AVERAGEIFS('2011 Survey responses'!BT182:BV182,'2011 Survey responses'!BT182:BV182,\">1\")))","v":""},{"$f":"IF(('2011 Survey responses'!AQ182+'2011 Survey responses'!AR182+'2011 Survey responses'!BG182)<3.1,\"\",((SUMIF('2011 Survey responses'!AQ182,\">1\")+SUMIF('2011 Survey responses'!AR182,\">1\")+SUMIF('2011 Survey responses'!BG182,\">1\"))/(COUNTIF('2011 Survey responses'!AQ182,\">1\")+COUNTIF('2011 Survey responses'!AR182,\">1\")+COUNTIF('2011 Survey responses'!BG182,\">1\"))))","v":""},{"$f":"IF(SUM('2011 Survey responses'!AP182:AS182)<4.1,\"\",(AVERAGEIFS('2011 Survey responses'!AP182:AS182,'2011 Survey responses'!AP182:AS182,\">1\")))","v":""},{"$f":"IF(('2011 Survey responses'!AU182+'2011 Survey responses'!AX182+'2011 Survey responses'!BA182+'2011 Survey responses'!BC182+'2011 Survey responses'!BD182)<5.1,\"\",(SUMIF('2011 Survey responses'!AU182,\">1\")+SUMIF('2011 Survey responses'!AX182,\">1\")+SUMIF('2011 Survey responses'!BA182,\">1\")+SUMIF('2011 Survey responses'!BC182,\">1\")+SUMIF('2011 Survey responses'!BD182,\">1\"))/(COUNTIF('2011 Survey responses'!AU182,\">1\")+COUNTIF('2011 Survey responses'!AX182,\">1\")+COUNTIF('2011 Survey responses'!BA182,\">1\")+COUNTIF('2011 Survey responses'!BC182,\">1\")+COUNTIF('2011 Survey responses'!BD182,\">1\")))","v":""},{"$f":"IF(('2011 Survey responses'!AT182)<1.1,\"\",('2011 Survey responses'!AT182))","v":""},{"$f":"IF(SUM('2011 Survey responses'!AV182:AW182)<2.1,\"\",(AVERAGEIFS('2011 Survey responses'!AV182:AW182,'2011 Survey responses'!AV182:AW182,\">1\")))","v":""},{"$f":"IF(('2011 Survey responses'!AW182+'2011 Survey responses'!AY182)<2.1,\"\",(SUMIF('2011 Survey responses'!AW182,\">1\")+SUMIF('2011 Survey responses'!AY182,\">1\"))/(COUNTIF('2011 Survey responses'!AW182,\">1\")+COUNTIF('2011 Survey responses'!AY182,\">1\")))","v":""},{"$f":"IF(('2011 Survey responses'!AZ182)<1.1,\"\",('2011 Survey responses'!AZ182))","v":""},null,null,null,null,{"$f":"IF(('2011 Survey responses'!BE182)<1.1,\"\",('2011 Survey responses'!BE182))","v":""},{"$f":"IF(('2011 Survey responses'!AY182+'2011 Survey responses'!BB182+'2011 Survey responses'!BF182)<3.1,\"\",(SUMIF('2011 Survey responses'!AY182,\">1\")+SUMIF('2011 Survey responses'!BB182,\">1\")+SUMIF('2011 Survey responses'!BF182,\">1\"))/(COUNTIF('2011 Survey responses'!AY182,\">1\")+COUNTIF('2011 Survey responses'!BB182,\">1\")+COUNTIF('2011 Survey responses'!BF182,\">1\")))","v":""},"",{"$f":"IF(SUM('2011 Survey responses'!BT182:BV182)<3.1,\"\",(AVERAGEIFS('2011 Survey responses'!BT182:BV182,'2011 Survey responses'!BT182:BV182,\">1\")))","v":""},{"$f":"IF(SUM('2011 Survey responses'!BW182:CP182)<1,\"\",(AVERAGEIFS('2011 Survey responses'!BW182:CP182,'2011 Survey responses'!BW182:CP182,\">1\")))","v":""},{"$f":"IF(SUM('2011 Survey responses'!BW182:CF182)<1,\"\",(AVERAGEIFS('2011 Survey responses'!BW182:CF182,'2011 Survey responses'!BW182:CF182,\">1\")))","v":""},{"$f":"IF(SUM('2011 Survey responses'!CG182:CP182)<1,\"\",(AVERAGEIFS('2011 Survey responses'!CG182:CP182,'2011 Survey responses'!CG182:CP182,\">1\")))","v":""},{"$f":"IF(SUM('2011 Survey responses'!BX182:CF182)<1,\"\",(AVERAGEIFS('2011 Survey responses'!BX182:CF182,'2011 Survey responses'!BX182:CF182,\">1\")))","v":""},{"$f":"IF(SUM('2011 Survey responses'!CH182:CP182)<1,\"\",(AVERAGEIFS('2011 Survey responses'!CH182:CP182,'2011 Survey responses'!CH182:CP182,\">1\")))","v":""},{"$f":"IF(SUM('2011 Survey responses'!BW182:CP182)<1,\"\",(AVERAGEIFS('2011 Survey responses'!BW182:CP182,'2011 Survey responses'!BW182:CP182,\">1\")))","v":""},{"$f":"IF(('2011 Survey responses'!BW182+'2011 Survey responses'!CG182)<2.1,\"\",(SUMIF('2011 Survey responses'!BW182,\">1\")+SUMIF('2011 Survey responses'!CG182,\">1\"))/(COUNTIF('2011 Survey responses'!BW182,\">1\")+COUNTIF('2011 Survey responses'!CG182,\">1\")))","v":""},{"$f":"IF(('2011 Survey responses'!BX182+'2011 Survey responses'!CH182)<2.1,\"\",(SUMIF('2011 Survey responses'!BX182,\">1\")+SUMIF('2011 Survey responses'!CH182,\">1\"))/(COUNTIF('2011 Survey responses'!BX182,\">1\")+COUNTIF('2011 Survey responses'!CH182,\">1\")))","v":""},{"$f":"IF(('2011 Survey responses'!BY182+'2011 Survey responses'!CI182)<2.1,\"\",(SUMIF('2011 Survey responses'!BY182,\">1\")+SUMIF('2011 Survey responses'!CI182,\">1\"))/(COUNTIF('2011 Survey responses'!BY182,\">1\")+COUNTIF('2011 Survey responses'!CI182,\">1\")))","v":""},{"$f":"IF('2011 Survey responses'!CQ182<0.5,\"\",'2011 Survey responses'!CQ182)","v":""},{"$f":"IF('2011 Survey responses'!CR182<0.5,\"\",'2011 Survey responses'!CR182)","v":""},{"$f":"IF('2011 Survey responses'!CS182<0.5,\"\",'2011 Survey responses'!CS182)","v":""},{"$f":"IF('2011 Survey responses'!CT182<0.5,\"\",'2011 Survey responses'!CT182)","v":""},{"$f":"IF('2011 Survey responses'!CU182<0.5,\"\",'2011 Survey responses'!CU182)","v":""},{"$f":"IF('2011 Survey responses'!CV182<0.5,\"\",'2011 Survey responses'!CV182)","v":""},{"$f":"IF(SUM('2011 Survey responses'!CW182:DL182)<1,\"\",(AVERAGE('2011 Survey responses'!CW182:DL182)))","v":""},{"$f":"IF(SUM('2011 Survey responses'!CW182:CZ182)<1,\"\",(AVERAGE('2011 Survey responses'!CW182:CZ182)))","v":""},{"$f":"IF(SUM('2011 Survey responses'!DA182:DD182)<1,\"\",(AVERAGE('2011 Survey responses'!DA182:DD182)))","v":""},{"$f":"IF(SUM('2011 Survey responses'!DE182:DH182)<1,\"\",(AVERAGE('2011 Survey responses'!DE182:DH182)))","v":""},{"$f":"IF(SUM('2011 Survey responses'!DI182:DL182)<1,\"\",(AVERAGE('2011 Survey responses'!DI182:DL182)))","v":""},{"$f":"IF(('2011 Survey responses'!CW182+'2011 Survey responses'!DA182+'2011 Survey responses'!DE182+'2011 Survey responses'!DI182)<1,\"\",AVERAGE('2011 Survey responses'!CW182,'2011 Survey responses'!DA182,'2011 Survey responses'!DE182,'2011 Survey responses'!DI182))","v":""},{"$f":"IF(('2011 Survey responses'!CX182+'2011 Survey responses'!DB182+'2011 Survey responses'!DF182+'2011 Survey responses'!DJ182)<1,\"\",AVERAGE('2011 Survey responses'!CX182,'2011 Survey responses'!DB182,'2011 Survey responses'!DF182,'2011 Survey responses'!DJ182))","v":""},{"$f":"IF(('2011 Survey responses'!CY182+'2011 Survey responses'!DC182+'2011 Survey responses'!DG182+'2011 Survey responses'!DK182)<1,\"\",AVERAGE('2011 Survey responses'!CY182,'2011 Survey responses'!DC182,'2011 Survey responses'!DG182,'2011 Survey responses'!DK182))","v":""},{"$f":"IF(('2011 Survey responses'!CZ182+'2011 Survey responses'!DD182+'2011 Survey responses'!DH182+'2011 Survey responses'!DL182)<1,\"\",AVERAGE('2011 Survey responses'!CZ182,'2011 Survey responses'!DD182,'2011 Survey responses'!DH182,'2011 Survey responses'!DL182))","v":""},{"$f":"IF('2011 Survey responses'!CW182<0.5,\"\",'2011 Survey responses'!CW182)","v":""},{"$f":"IF('2011 Survey responses'!CX182<0.5,\"\",'2011 Survey responses'!CX182)","v":""},{"$f":"IF('2011 Survey responses'!CY182<0.5,\"\",'2011 Survey responses'!CY182)","v":""},{"$f":"IF('2011 Survey responses'!CZ182<0.5,\"\",'2011 Survey responses'!CZ182)","v":""},{"$f":"IF('2011 Survey responses'!DA182<0.5,\"\",'2011 Survey responses'!DA182)","v":""},{"$f":"IF('2011 Survey responses'!DB182<0.5,\"\",'2011 Survey responses'!DB182)","v":""},{"$f":"IF('2011 Survey responses'!DC182<0.5,\"\",'2011 Survey responses'!DC182)","v":""},{"$f":"IF('2011 Survey responses'!DD182<0.5,\"\",'2011 Survey responses'!DD182)","v":""},{"$f":"IF('2011 Survey responses'!DE182<0.5,\"\",'2011 Survey responses'!DE182)","v":""},{"$f":"IF('2011 Survey responses'!DF182<0.5,\"\",'2011 Survey responses'!DF182)","v":""},{"$f":"IF('2011 Survey responses'!DG182<0.5,\"\",'2011 Survey responses'!DG182)","v":""},{"$f":"IF('2011 Survey responses'!DH182<0.5,\"\",'2011 Survey responses'!DH182)","v":""},{"$f":"IF('2011 Survey responses'!DI182<0.5,\"\",'2011 Survey responses'!DI182)","v":""},{"$f":"IF('2011 Survey responses'!DJ182<0.5,\"\",'2011 Survey responses'!DJ182)","v":""},{"$f":"IF('2011 Survey responses'!DK182<0.5,\"\",'2011 Survey responses'!DK182)","v":""},{"$f":"IF('2011 Survey responses'!DL182<0.5,\"\",'2011 Survey responses'!DL182)","v":""},{"$f":"IF('2011 Survey responses'!DU182=4,4,IF('2011 Survey responses'!DU182=5,4,\"\"))","v":""},{"$f":"IF('2011 Survey responses'!DV182=4,3,IF('2011 Survey responses'!DV182=5,3,\"\"))","v":""},"",{"$f":"IF(CQ182=2,CQ182,IF(CO182=4,CO182,IF(CP182=3,CP182,IF('2011 Survey responses'!GT182=1,1,\"\"))))","v":""},{"$f":"IF('2011 Survey responses'!DO182<0.5,\"\",'2011 Survey responses'!DO182)","v":""},{"$f":"IF('2011 Survey responses'!DP182<0.5,\"\",'2011 Survey responses'!DP182)","v":""},{"$f":"IF('2011 Survey responses'!DQ182<0.5,\"\",'2011 Survey responses'!DQ182)","v":""},{"$f":"IF('2011 Survey responses'!DR182<0.5,\"\",'2011 Survey responses'!DR182)","v":""},{"$f":"IF('2011 Survey responses'!DS182<0.5,\"\",'2011 Survey responses'!DS182)","v":""},{"$f":"IF('2011 Survey responses'!DT182<0.5,\"\",'2011 Survey responses'!DT182)","v":""},{"$f":"IF('2011 Survey responses'!DU182<0.5,\"\",'2011 Survey responses'!DU182)","v":""},{"$f":"IF('2011 Survey responses'!DV182<0.5,\"\",'2011 Survey responses'!DV182)","v":""},{"$f":"IF('2011 Survey responses'!DW182<0.5,\"\",'2011 Survey responses'!DW182)","v":""},{"$f":"IF('2011 Survey responses'!DX182<0.5,\"\",'2011 Survey responses'!DX182)","v":""},{"$f":"IF('2011 Survey responses'!DY182<0.5,\"\",'2011 Survey responses'!DY182)","v":""},{"$f":"IF('2011 Survey responses'!DZ182<0.5,\"\",'2011 Survey responses'!DZ182)","v":""},{"$f":"IF('2011 Survey responses'!EA182<0.5,\"\",'2011 Survey responses'!EA182)","v":""},{"$f":"IF('2011 Survey responses'!EB182<0.5,\"\",'2011 Survey responses'!EB182)","v":""},{"$f":"IF('2011 Survey responses'!EC182<0.5,\"\",'2011 Survey responses'!EC182)","v":""},{"$f":"IF('2011 Survey responses'!ED182<0.5,\"\",'2011 Survey responses'!ED182)","v":""},{"$f":"IF('2011 Survey responses'!EE182<0.5,\"\",'2011 Survey responses'!EE182)","v":""},{"$f":"IF('2011 Survey responses'!EF182<0.5,\"\",'2011 Survey responses'!EF182)","v":""},{"$f":"IF('2011 Survey responses'!EG182<0.5,\"\",'2011 Survey responses'!EG182)","v":""},{"$f":"IF('2011 Survey responses'!EH182<0.5,\"\",'2011 Survey responses'!EH182)","v":""},{"$f":"IF('2011 Survey responses'!EI182<0.5,\"\",'2011 Survey responses'!EI182)","v":""},{"$f":"IF('2011 Survey responses'!EJ182<0.5,\"\",'2011 Survey responses'!EJ182)","v":""},{"$f":"IF('2011 Survey responses'!EK182<0.5,\"\",'2011 Survey responses'!EK182)","v":""},{"$f":"IF('2011 Survey responses'!EL182<0.5,\"\",'2011 Survey responses'!EL182)","v":""},{"$f":"IF('2011 Survey responses'!EM182<0.5,\"\",'2011 Survey responses'!EM182)","v":""},{"$f":"IF('2011 Survey responses'!EN182<0.5,\"\",'2011 Survey responses'!EN182)","v":""},{"$f":"IF('2011 Survey responses'!EO182<0.5,\"\",'2011 Survey responses'!EO182)","v":""},{"$f":"IF('2011 Survey responses'!EP182<0.5,\"\",'2011 Survey responses'!EP182)","v":""},{"$f":"IF(('2011 Survey responses'!EW182+'2011 Survey responses'!EX182)>=2,AVERAGE('2011 Survey responses'!EW182,'2011 Survey responses'!EY182),\"\")","v":""},{"$f":"IF('2011 Survey responses'!EX182<0.5,\"\",'2011 Survey responses'!EX182)","v":""},{"$f":"IF('2011 Survey responses'!EZ182<0.5,\"\",'2011 Survey responses'!EZ182)","v":""},{"$f":"IF('2011 Survey responses'!FB182<0.5,\"\",'2011 Survey responses'!FB182)","v":""},{"$f":"IF('2011 Survey responses'!FD182<0.5,\"\",'2011 Survey responses'!FD182)","v":""},{"$f":"IF('2011 Survey responses'!FC182<0.5,\"\",'2011 Survey responses'!FC182)","v":""},{"$f":"IF(('2011 Survey responses'!EM182+'2011 Survey responses'!EN182)>=2,AVERAGE('2011 Survey responses'!EM182,'2011 Survey responses'!EN182),\"\")","v":""},{"$f":"IF('2011 Survey responses'!ES182<0.5,\"\",'2011 Survey responses'!ES182)","v":""},{"$f":"IF(('2011 Survey responses'!ET182+'2011 Survey responses'!EU182)>=2,AVERAGE('2011 Survey responses'!ET182,'2011 Survey responses'!EU182),\"\")","v":""},{"$f":"IF('2011 Survey responses'!EV182<0.5,\"\",'2011 Survey responses'!EV182)","v":""},{"$f":"IF('2011 Survey responses'!FA182<0.5,\"\",'2011 Survey responses'!FA182)","v":""},{"$f":"IF('2011 Survey responses'!ER182<0.5,\"\",'2011 Survey responses'!ER182)","v":""},{"$f":"IF(('2011 Survey responses'!EO182+'2011 Survey responses'!EP182)>=2,AVERAGE('2011 Survey responses'!EO182,'2011 Survey responses'!EP182),\"\")","v":""},{"$f":"IF('2011 Survey responses'!EQ182<0.5,\"\",'2011 Survey responses'!EQ182)","v":""},{"$f":"IF('2011 Survey responses'!ET182<0.5,\"\",'2011 Survey responses'!ET182)","v":""},{"$f":"IF('2011 Survey responses'!EU182<0.5,\"\",'2011 Survey responses'!EU182)","v":""},{"$f":"IF('2011 Survey responses'!EW182<0.5,\"\",'2011 Survey responses'!EW182)","v":""},{"$f":"IF('2011 Survey responses'!EY182<0.5,\"\",'2011 Survey responses'!EY182)","v":""},{"$f":"IF('2011 Survey responses'!FU182<0.5,\"\",'2011 Survey responses'!FU182)","v":""},{"$f":"IF(('2011 Survey responses'!FL182+'2011 Survey responses'!FM182)>=2,AVERAGE('2011 Survey responses'!FL182,'2011 Survey responses'!FM182),\"\")","v":""},{"$f":"IF(('2011 Survey responses'!FO182+'2011 Survey responses'!FQ182)>=2,AVERAGE('2011 Survey responses'!FO182,'2011 Survey responses'!FQ182),\"\")","v":""},{"$f":"IF('2011 Survey responses'!FJ182<0.5,\"\",'2011 Survey responses'!FJ182)","v":""},{"$f":"IF('2011 Survey responses'!FT182<0.5,\"\",'2011 Survey responses'!FT182)","v":""},{"$f":"IF('2011 Survey responses'!FR182<0.5,\"\",'2011 Survey responses'!FR182)","v":""},{"$f":"IF('2011 Survey responses'!FK182<0.5,\"\",'2011 Survey responses'!FK182)","v":""},{"$f":"IF('2011 Survey responses'!FP182<0.5,\"\",'2011 Survey responses'!FP182)","v":""},{"$f":"IF('2011 Survey responses'!FN182<0.5,\"\",'2011 Survey responses'!FN182)","v":""},{"$f":"IF(('2011 Survey responses'!FE182+'2011 Survey responses'!FF182)>=2,AVERAGE('2011 Survey responses'!FE182,'2011 Survey responses'!FF182),\"\")","v":""},{"$f":"IF('2011 Survey responses'!FS182<0.5,\"\",'2011 Survey responses'!FS182)","v":""},{"$f":"IF('2011 Survey responses'!FV182<0.5,\"\",'2011 Survey responses'!FV182)","v":""},{"$f":"IF(('2011 Survey responses'!FG182+'2011 Survey responses'!FH182)>=2,AVERAGE('2011 Survey responses'!FG182,'2011 Survey responses'!FH182),\"\")","v":""},{"$f":"IF('2011 Survey responses'!FI182<0.5,\"\",'2011 Survey responses'!FI182)","v":""},{"$f":"IF('2011 Survey responses'!FE182<0.5,\"\",'2011 Survey responses'!FE182)","v":""},{"$f":"IF('2011 Survey responses'!FF182<0.5,\"\",'2011 Survey responses'!FF182)","v":""},{"$f":"IF('2011 Survey responses'!FG182<0.5,\"\",'2011 Survey responses'!FG182)","v":""},{"$f":"IF('2011 Survey responses'!FH182<0.5,\"\",'2011 Survey responses'!FH182)","v":""},{"$f":"IF('2011 Survey responses'!FL182<0.5,\"\",'2011 Survey responses'!FL182)","v":""},{"$f":"IF('2011 Survey responses'!FM182<0.5,\"\",'2011 Survey responses'!FM182)","v":""},{"$f":"IF('2011 Survey responses'!FO182<0.5,\"\",'2011 Survey responses'!FO182)","v":""},{"$f":"IF('2011 Survey responses'!FQ182<0.5,\"\",'2011 Survey responses'!FQ182)","v":""}]
["United Arab Emirates",{"$f":"IF(SUM(F183)<1,\"\",AVERAGEIF('2011 Survey responses'!B183:CP183,\">1\"))","v":3.7386363636363638},{"$f":"IF(SUM(F183)<1,\"\",AVERAGEIF('2011 Survey responses'!B183:AO183,\">1\"))","v":3.9142857142857141},{"$f":"IF(SUM(F183)<1,\"\",AVERAGEIF('2011 Survey responses'!B183:BV183,\">1\"))","v":3.6617647058823528},{"$f":"IF(SUM(F183)<1,\"\",AVERAGEIF('2011 Survey responses'!V183:BV183,\">1\"))","v":3.74},{"$f":"IF(SUM('2011 Survey responses'!B183:U183)<1,\"\",(AVERAGEIFS('2011 Survey responses'!B183:U183,'2011 Survey responses'!B183:U183,\">1\")))","v":3.4444444444444446},{"$f":"IF(SUM('2011 Survey responses'!B183:H183)<1,\"\",(AVERAGEIFS('2011 Survey responses'!B183:H183,'2011 Survey responses'!B183:H183,\">1\")))","v":3.8333333333333335},{"$f":"IF(SUM('2011 Survey responses'!I183:S183)<1,\"\",(AVERAGEIFS('2011 Survey responses'!I183:S183,'2011 Survey responses'!I183:S183,\">1\")))","v":3.1818181818181817},{"$f":"IF(SUM('2011 Survey responses'!T183:U183)<2.1,\"\",(AVERAGEIFS('2011 Survey responses'!T183:U183,'2011 Survey responses'!T183:U183,\">1\")))","v":4},{"$f":"IF(SUM('2011 Survey responses'!B183:C183)<2.1,\"\",((SUMIF('2011 Survey responses'!B183:C183,\">1\")+SUMIF('2011 Survey responses'!F183,\">1\"))/(COUNTIF('2011 Survey responses'!B183:C183,\">1\")+COUNTIF('2011 Survey responses'!F183,\">1\"))))","v":4},{"$f":"IF(SUM('2011 Survey responses'!D183:E183)<2.1,\"\",(AVERAGEIFS('2011 Survey responses'!D183:E183,'2011 Survey responses'!D183:E183,\">1\")))","v":4.5},{"$f":"IF(('2011 Survey responses'!B183+'2011 Survey responses'!D183)<2.1,\"\",((SUMIF('2011 Survey responses'!B183,\">1\")+SUMIF('2011 Survey responses'!D183,\">1\")+SUMIF('2011 Survey responses'!F183,\">1\")+SUMIF('2011 Survey responses'!K183,\">1\"))/(COUNTIF('2011 Survey responses'!B183,\">1\")+COUNTIF('2011 Survey responses'!D183,\">1\")+COUNTIF('2011 Survey responses'!F183,\">1\")+COUNTIF('2011 Survey responses'!K183,\">1\"))))","v":4},{"$f":"IF(SUM('2011 Survey responses'!G183:H183)<2.1,\"\",(AVERAGEIFS('2011 Survey responses'!G183:H183,'2011 Survey responses'!G183:H183,\">1\")))","v":3},{"$f":"IF(SUM('2011 Survey responses'!F183:G183)<1.5,\"\",MAX('2011 Survey responses'!F183,'2011 Survey responses'!G183))","v":3},{"$f":"IF(SUM('2011 Survey responses'!G183:H183)<1,\"\",MAX('2011 Survey responses'!G183,'2011 Survey responses'!H183))","v":3},{"$f":"IF(SUM('2011 Survey responses'!I183:L183)<4.1,\"\",(AVERAGEIFS('2011 Survey responses'!I183:L183,'2011 Survey responses'!I183:L183,\">1\")))","v":3.5},{"$f":"IF(SUM('2011 Survey responses'!M183:S183)<4.1,\"\",(AVERAGEIFS('2011 Survey responses'!M183:S183,'2011 Survey responses'!M183:S183,\">1\")))","v":3},{"$f":"IF(SUM('2011 Survey responses'!T183:U183)<2.1,\"\",(AVERAGEIFS('2011 Survey responses'!T183:U183,'2011 Survey responses'!T183:U183,\">1\")))","v":4},{"$f":"IF(SUM('2011 Survey responses'!V183:AO183)<1,\"\",(AVERAGEIFS('2011 Survey responses'!V183:AO183,'2011 Survey responses'!V183:AO183,\">1\")))","v":4.4117647058823533},{"$f":"IF(SUM('2011 Survey responses'!V183:AA183)<1,\"\",(AVERAGEIFS('2011 Survey responses'!V183:AA183,'2011 Survey responses'!V183:AA183,\">1\")))","v":4},{"$f":"IF(SUM('2011 Survey responses'!AB183:AH183)<1,\"\",(AVERAGEIFS('2011 Survey responses'!AB183:AH183,'2011 Survey responses'!AB183:AH183,\">1\")))","v":4},{"$f":"IF(SUM('2011 Survey responses'!AI183:AO183)<1,\"\",(AVERAGEIFS('2011 Survey responses'!AI183:AO183,'2011 Survey responses'!AI183:AO183,\">1\")))","v":5},{"$f":"IF(('2011 Survey responses'!Y183+'2011 Survey responses'!AI183+'2011 Survey responses'!AK183)<3.1,\"\",((SUMIF('2011 Survey responses'!Y183,\">1\")+SUMIF('2011 Survey responses'!AI183,\">1\")+SUMIF('2011 Survey responses'!AK183,\">1\")+SUMIF('2011 Survey responses'!AM183,\">1\"))/(COUNTIF('2011 Survey responses'!Y183,\">1\")+COUNTIF('2011 Survey responses'!AI183,\">1\")+COUNTIF('2011 Survey responses'!AK183,\">1\")+COUNTIF('2011 Survey responses'!AM183,\">1\"))))","v":4.75},{"$f":"IF(('2011 Survey responses'!W183)<1.1,\"\",('2011 Survey responses'!W183))","v":4},{"$f":"IF(('2011 Survey responses'!Y183)<1.1,\"\",('2011 Survey responses'!Y183))","v":4},{"$f":"IF(('2011 Survey responses'!Z183)<1.1,\"\",('2011 Survey responses'!Z183))","v":4},{"$f":"IF(('2011 Survey responses'!V183+'2011 Survey responses'!X183+'2011 Survey responses'!AA183)<3.1,\"\",((SUMIF('2011 Survey responses'!V183,\">1\")+SUMIF('2011 Survey responses'!X183,\">1\")+SUMIF('2011 Survey responses'!AA183,\">1\"))/(COUNTIF('2011 Survey responses'!V183,\">1\")+COUNTIF('2011 Survey responses'!X183,\">1\")+COUNTIF('2011 Survey responses'!AA183,\">1\"))))","v":""},{"$f":"IF(('2011 Survey responses'!V183+'2011 Survey responses'!Y183+'2011 Survey responses'!AA183)<3.1,\"\",((SUMIF('2011 Survey responses'!V183,\">1\")+SUMIF('2011 Survey responses'!Y183,\">1\")+SUMIF('2011 Survey responses'!AA183,\">1\"))/(COUNTIF('2011 Survey responses'!V183,\">1\")+COUNTIF('2011 Survey responses'!Y183,\">1\")+COUNTIF('2011 Survey responses'!AA183,\">1\"))))","v":4},{"$f":"IF(SUM('2011 Survey responses'!AB183:AH183)<1,\"\",(AVERAGEIFS('2011 Survey responses'!AB183:AH183,'2011 Survey responses'!AB183:AH183,\">1\")))","v":4},{"$f":"IF(SUM('2011 Survey responses'!AI183:AO183)<7.1,\"\",(AVERAGEIFS('2011 Survey responses'!AI183:AO183,'2011 Survey responses'!AI183:AO183,\">1\")))","v":5},{"$f":"IF(('2011 Survey responses'!AH183)<1.1,\"\",('2011 Survey responses'!AH183))","v":4},{"$f":"IF(SUM('2011 Survey responses'!AP183:BV183)<1,\"\",(AVERAGEIFS('2011 Survey responses'!AP183:BV183,'2011 Survey responses'!AP183:BV183,\">1\")))","v":3.393939393939394},{"$f":"IF(SUM('2011 Survey responses'!AP183:AS183)<4.1,\"\",(AVERAGEIFS('2011 Survey responses'!AP183:AS183,'2011 Survey responses'!AP183:AS183,\">1\")))","v":4},{"$f":"IF(SUM('2011 Survey responses'!AT183:BF183)<1,\"\",(AVERAGEIFS('2011 Survey responses'!AT183:BF183,'2011 Survey responses'!AT183:BF183,\">1\")))","v":3.1538461538461537},{"$f":"IF(SUM('2011 Survey responses'!BG183:BO183)<1,\"\",(AVERAGEIFS('2011 Survey responses'!BG183:BO183,'2011 Survey responses'!BG183:BO183,\">1\")))","v":3},{"$f":"IF(SUM('2011 Survey responses'!BP183:BS183)<1,\"\",(AVERAGEIFS('2011 Survey responses'!BP183:BS183,'2011 Survey responses'!BP183:BS183,\">1\")))","v":4},{"$f":"IF(SUM('2011 Survey responses'!BT183:BV183)<3.1,\"\",(AVERAGEIFS('2011 Survey responses'!BT183:BV183,'2011 Survey responses'!BT183:BV183,\">1\")))","v":4},{"$f":"IF(('2011 Survey responses'!AQ183+'2011 Survey responses'!AR183+'2011 Survey responses'!BG183)<3.1,\"\",((SUMIF('2011 Survey responses'!AQ183,\">1\")+SUMIF('2011 Survey responses'!AR183,\">1\")+SUMIF('2011 Survey responses'!BG183,\">1\"))/(COUNTIF('2011 Survey responses'!AQ183,\">1\")+COUNTIF('2011 Survey responses'!AR183,\">1\")+COUNTIF('2011 Survey responses'!BG183,\">1\"))))","v":3.6666666666666665},{"$f":"IF(SUM('2011 Survey responses'!AP183:AS183)<4.1,\"\",(AVERAGEIFS('2011 Survey responses'!AP183:AS183,'2011 Survey responses'!AP183:AS183,\">1\")))","v":4},{"$f":"IF(('2011 Survey responses'!AU183+'2011 Survey responses'!AX183+'2011 Survey responses'!BA183+'2011 Survey responses'!BC183+'2011 Survey responses'!BD183)<5.1,\"\",(SUMIF('2011 Survey responses'!AU183,\">1\")+SUMIF('2011 Survey responses'!AX183,\">1\")+SUMIF('2011 Survey responses'!BA183,\">1\")+SUMIF('2011 Survey responses'!BC183,\">1\")+SUMIF('2011 Survey responses'!BD183,\">1\"))/(COUNTIF('2011 Survey responses'!AU183,\">1\")+COUNTIF('2011 Survey responses'!AX183,\">1\")+COUNTIF('2011 Survey responses'!BA183,\">1\")+COUNTIF('2011 Survey responses'!BC183,\">1\")+COUNTIF('2011 Survey responses'!BD183,\">1\")))","v":3.4},{"$f":"IF(('2011 Survey responses'!AT183)<1.1,\"\",('2011 Survey responses'!AT183))","v":3},{"$f":"IF(SUM('2011 Survey responses'!AV183:AW183)<2.1,\"\",(AVERAGEIFS('2011 Survey responses'!AV183:AW183,'2011 Survey responses'!AV183:AW183,\">1\")))","v":3},{"$f":"IF(('2011 Survey responses'!AW183+'2011 Survey responses'!AY183)<2.1,\"\",(SUMIF('2011 Survey responses'!AW183,\">1\")+SUMIF('2011 Survey responses'!AY183,\">1\"))/(COUNTIF('2011 Survey responses'!AW183,\">1\")+COUNTIF('2011 Survey responses'!AY183,\">1\")))","v":3},{"$f":"IF(('2011 Survey responses'!AZ183)<1.1,\"\",('2011 Survey responses'!AZ183))","v":3},3,3,4,4,{"$f":"IF(('2011 Survey responses'!BE183)<1.1,\"\",('2011 Survey responses'!BE183))","v":3},{"$f":"IF(('2011 Survey responses'!AY183+'2011 Survey responses'!BB183+'2011 Survey responses'!BF183)<3.1,\"\",(SUMIF('2011 Survey responses'!AY183,\">1\")+SUMIF('2011 Survey responses'!BB183,\">1\")+SUMIF('2011 Survey responses'!BF183,\">1\"))/(COUNTIF('2011 Survey responses'!AY183,\">1\")+COUNTIF('2011 Survey responses'!BB183,\">1\")+COUNTIF('2011 Survey responses'!BF183,\">1\")))","v":3},3.5,{"$f":"IF(SUM('2011 Survey responses'!BT183:BV183)<3.1,\"\",(AVERAGEIFS('2011 Survey responses'!BT183:BV183,'2011 Survey responses'!BT183:BV183,\">1\")))","v":4},{"$f":"IF(SUM('2011 Survey responses'!BW183:CP183)<1,\"\",(AVERAGEIFS('2011 Survey responses'!BW183:CP183,'2011 Survey responses'!BW183:CP183,\">1\")))","v":4},{"$f":"IF(SUM('2011 Survey responses'!BW183:CF183)<1,\"\",(AVERAGEIFS('2011 Survey responses'!BW183:CF183,'2011 Survey responses'!BW183:CF183,\">1\")))","v":4},{"$f":"IF(SUM('2011 Survey responses'!CG183:CP183)<1,\"\",(AVERAGEIFS('2011 Survey responses'!CG183:CP183,'2011 Survey responses'!CG183:CP183,\">1\")))","v":4},{"$f":"IF(SUM('2011 Survey responses'!BX183:CF183)<1,\"\",(AVERAGEIFS('2011 Survey responses'!BX183:CF183,'2011 Survey responses'!BX183:CF183,\">1\")))","v":4},{"$f":"IF(SUM('2011 Survey responses'!CH183:CP183)<1,\"\",(AVERAGEIFS('2011 Survey responses'!CH183:CP183,'2011 Survey responses'!CH183:CP183,\">1\")))","v":4},{"$f":"IF(SUM('2011 Survey responses'!BW183:CP183)<1,\"\",(AVERAGEIFS('2011 Survey responses'!BW183:CP183,'2011 Survey responses'!BW183:CP183,\">1\")))","v":4},{"$f":"IF(('2011 Survey responses'!BW183+'2011 Survey responses'!CG183)<2.1,\"\",(SUMIF('2011 Survey responses'!BW183,\">1\")+SUMIF('2011 Survey responses'!CG183,\">1\"))/(COUNTIF('2011 Survey responses'!BW183,\">1\")+COUNTIF('2011 Survey responses'!CG183,\">1\")))","v":4},{"$f":"IF(('2011 Survey responses'!BX183+'2011 Survey responses'!CH183)<2.1,\"\",(SUMIF('2011 Survey responses'!BX183,\">1\")+SUMIF('2011 Survey responses'!CH183,\">1\"))/(COUNTIF('2011 Survey responses'!BX183,\">1\")+COUNTIF('2011 Survey responses'!CH183,\">1\")))","v":4},{"$f":"IF(('2011 Survey responses'!BY183+'2011 Survey responses'!CI183)<2.1,\"\",(SUMIF('2011 Survey responses'!BY183,\">1\")+SUMIF('2011 Survey responses'!CI183,\">1\"))/(COUNTIF('2011 Survey responses'!BY183,\">1\")+COUNTIF('2011 Survey responses'!CI183,\">1\")))","v":4},{"$f":"IF('2011 Survey responses'!CQ183<0.5,\"\",'2011 Survey responses'!CQ183)","v":4},{"$f":"IF('2011 Survey responses'!CR183<0.5,\"\",'2011 Survey responses'!CR183)","v":4},{"$f":"IF('2011 Survey responses'!CS183<0.5,\"\",'2011 Survey responses'!CS183)","v":4},{"$f":"IF('2011 Survey responses'!CT183<0.5,\"\",'2011 Survey responses'!CT183)","v":4},{"$f":"IF('2011 Survey responses'!CU183<0.5,\"\",'2011 Survey responses'!CU183)","v":4},{"$f":"IF('2011 Survey responses'!CV183<0.5,\"\",'2011 Survey responses'!CV183)","v":4},{"$f":"IF(SUM('2011 Survey responses'!CW183:DL183)<1,\"\",(AVERAGE('2011 Survey responses'!CW183:DL183)))","v":3.9375},{"$f":"IF(SUM('2011 Survey responses'!CW183:CZ183)<1,\"\",(AVERAGE('2011 Survey responses'!CW183:CZ183)))","v":3.75},{"$f":"IF(SUM('2011 Survey responses'!DA183:DD183)<1,\"\",(AVERAGE('2011 Survey responses'!DA183:DD183)))","v":4},{"$f":"IF(SUM('2011 Survey responses'!DE183:DH183)<1,\"\",(AVERAGE('2011 Survey responses'!DE183:DH183)))","v":4},{"$f":"IF(SUM('2011 Survey responses'!DI183:DL183)<1,\"\",(AVERAGE('2011 Survey responses'!DI183:DL183)))","v":4},{"$f":"IF(('2011 Survey responses'!CW183+'2011 Survey responses'!DA183+'2011 Survey responses'!DE183+'2011 Survey responses'!DI183)<1,\"\",AVERAGE('2011 Survey responses'!CW183,'2011 Survey responses'!DA183,'2011 Survey responses'!DE183,'2011 Survey responses'!DI183))","v":4},{"$f":"IF(('2011 Survey responses'!CX183+'2011 Survey responses'!DB183+'2011 Survey responses'!DF183+'2011 Survey responses'!DJ183)<1,\"\",AVERAGE('2011 Survey responses'!CX183,'2011 Survey responses'!DB183,'2011 Survey responses'!DF183,'2011 Survey responses'!DJ183))","v":4},{"$f":"IF(('2011 Survey responses'!CY183+'2011 Survey responses'!DC183+'2011 Survey responses'!DG183+'2011 Survey responses'!DK183)<1,\"\",AVERAGE('2011 Survey responses'!CY183,'2011 Survey responses'!DC183,'2011 Survey responses'!DG183,'2011 Survey responses'!DK183))","v":3.75},{"$f":"IF(('2011 Survey responses'!CZ183+'2011 Survey responses'!DD183+'2011 Survey responses'!DH183+'2011 Survey responses'!DL183)<1,\"\",AVERAGE('2011 Survey responses'!CZ183,'2011 Survey responses'!DD183,'2011 Survey responses'!DH183,'2011 Survey responses'!DL183))","v":4},{"$f":"IF('2011 Survey responses'!CW183<0.5,\"\",'2011 Survey responses'!CW183)","v":4},{"$f":"IF('2011 Survey responses'!CX183<0.5,\"\",'2011 Survey responses'!CX183)","v":4},{"$f":"IF('2011 Survey responses'!CY183<0.5,\"\",'2011 Survey responses'!CY183)","v":3},{"$f":"IF('2011 Survey responses'!CZ183<0.5,\"\",'2011 Survey responses'!CZ183)","v":4},{"$f":"IF('2011 Survey responses'!DA183<0.5,\"\",'2011 Survey responses'!DA183)","v":4},{"$f":"IF('2011 Survey responses'!DB183<0.5,\"\",'2011 Survey responses'!DB183)","v":4},{"$f":"IF('2011 Survey responses'!DC183<0.5,\"\",'2011 Survey responses'!DC183)","v":4},{"$f":"IF('2011 Survey responses'!DD183<0.5,\"\",'2011 Survey responses'!DD183)","v":4},{"$f":"IF('2011 Survey responses'!DE183<0.5,\"\",'2011 Survey responses'!DE183)","v":4},{"$f":"IF('2011 Survey responses'!DF183<0.5,\"\",'2011 Survey responses'!DF183)","v":4},{"$f":"IF('2011 Survey responses'!DG183<0.5,\"\",'2011 Survey responses'!DG183)","v":4},{"$f":"IF('2011 Survey responses'!DH183<0.5,\"\",'2011 Survey responses'!DH183)","v":4},{"$f":"IF('2011 Survey responses'!DI183<0.5,\"\",'2011 Survey responses'!DI183)","v":4},{"$f":"IF('2011 Survey responses'!DJ183<0.5,\"\",'2011 Survey responses'!DJ183)","v":4},{"$f":"IF('2011 Survey responses'!DK183<0.5,\"\",'2011 Survey responses'!DK183)","v":4},{"$f":"IF('2011 Survey responses'!DL183<0.5,\"\",'2011 Survey responses'!DL183)","v":4},{"$f":"IF('2011 Survey responses'!DU183=4,4,IF('2011 Survey responses'!DU183=5,4,\"\"))","v":4},{"$f":"IF('2011 Survey responses'!DV183=4,3,IF('2011 Survey responses'!DV183=5,3,\"\"))","v":3},2,{"$f":"IF(CQ183=2,CQ183,IF(CO183=4,CO183,IF(CP183=3,CP183,IF('2011 Survey responses'!GT183=1,1,\"\"))))","v":2},{"$f":"IF('2011 Survey responses'!DO183<0.5,\"\",'2011 Survey responses'!DO183)","v":3},{"$f":"IF('2011 Survey responses'!DP183<0.5,\"\",'2011 Survey responses'!DP183)","v":5},{"$f":"IF('2011 Survey responses'!DQ183<0.5,\"\",'2011 Survey responses'!DQ183)","v":5},{"$f":"IF('2011 Survey responses'!DR183<0.5,\"\",'2011 Survey responses'!DR183)","v":5},{"$f":"IF('2011 Survey responses'!DS183<0.5,\"\",'2011 Survey responses'!DS183)","v":4},{"$f":"IF('2011 Survey responses'!DT183<0.5,\"\",'2011 Survey responses'!DT183)","v":5},{"$f":"IF('2011 Survey responses'!DU183<0.5,\"\",'2011 Survey responses'!DU183)","v":5},{"$f":"IF('2011 Survey responses'!DV183<0.5,\"\",'2011 Survey responses'!DV183)","v":5},{"$f":"IF('2011 Survey responses'!DW183<0.5,\"\",'2011 Survey responses'!DW183)","v":5},{"$f":"IF('2011 Survey responses'!DX183<0.5,\"\",'2011 Survey responses'!DX183)","v":5},{"$f":"IF('2011 Survey responses'!DY183<0.5,\"\",'2011 Survey responses'!DY183)","v":5},{"$f":"IF('2011 Survey responses'!DZ183<0.5,\"\",'2011 Survey responses'!DZ183)","v":5},{"$f":"IF('2011 Survey responses'!EA183<0.5,\"\",'2011 Survey responses'!EA183)","v":4},{"$f":"IF('2011 Survey responses'!EB183<0.5,\"\",'2011 Survey responses'!EB183)","v":5},{"$f":"IF('2011 Survey responses'!EC183<0.5,\"\",'2011 Survey responses'!EC183)","v":5},{"$f":"IF('2011 Survey responses'!ED183<0.5,\"\",'2011 Survey responses'!ED183)","v":4},{"$f":"IF('2011 Survey responses'!EE183<0.5,\"\",'2011 Survey responses'!EE183)","v":3},{"$f":"IF('2011 Survey responses'!EF183<0.5,\"\",'2011 Survey responses'!EF183)","v":5},{"$f":"IF('2011 Survey responses'!EG183<0.5,\"\",'2011 Survey responses'!EG183)","v":5},{"$f":"IF('2011 Survey responses'!EH183<0.5,\"\",'2011 Survey responses'!EH183)","v":5},{"$f":"IF('2011 Survey responses'!EI183<0.5,\"\",'2011 Survey responses'!EI183)","v":5},{"$f":"IF('2011 Survey responses'!EJ183<0.5,\"\",'2011 Survey responses'!EJ183)","v":5},{"$f":"IF('2011 Survey responses'!EK183<0.5,\"\",'2011 Survey responses'!EK183)","v":5},{"$f":"IF('2011 Survey responses'!EL183<0.5,\"\",'2011 Survey responses'!EL183)","v":5},{"$f":"IF('2011 Survey responses'!EM183<0.5,\"\",'2011 Survey responses'!EM183)","v":5},{"$f":"IF('2011 Survey responses'!EN183<0.5,\"\",'2011 Survey responses'!EN183)","v":5},{"$f":"IF('2011 Survey responses'!EO183<0.5,\"\",'2011 Survey responses'!EO183)","v":5},{"$f":"IF('2011 Survey responses'!EP183<0.5,\"\",'2011 Survey responses'!EP183)","v":5},{"$f":"IF(('2011 Survey responses'!EW183+'2011 Survey responses'!EX183)>=2,AVERAGE('2011 Survey responses'!EW183,'2011 Survey responses'!EY183),\"\")","v":4},{"$f":"IF('2011 Survey responses'!EX183<0.5,\"\",'2011 Survey responses'!EX183)","v":4},{"$f":"IF('2011 Survey responses'!EZ183<0.5,\"\",'2011 Survey responses'!EZ183)","v":4},{"$f":"IF('2011 Survey responses'!FB183<0.5,\"\",'2011 Survey responses'!FB183)","v":4},{"$f":"IF('2011 Survey responses'!FD183<0.5,\"\",'2011 Survey responses'!FD183)","v":4},{"$f":"IF('2011 Survey responses'!FC183<0.5,\"\",'2011 Survey responses'!FC183)","v":4},{"$f":"IF(('2011 Survey responses'!EM183+'2011 Survey responses'!EN183)>=2,AVERAGE('2011 Survey responses'!EM183,'2011 Survey responses'!EN183),\"\")","v":5},{"$f":"IF('2011 Survey responses'!ES183<0.5,\"\",'2011 Survey responses'!ES183)","v":5},{"$f":"IF(('2011 Survey responses'!ET183+'2011 Survey responses'!EU183)>=2,AVERAGE('2011 Survey responses'!ET183,'2011 Survey responses'!EU183),\"\")","v":4},{"$f":"IF('2011 Survey responses'!EV183<0.5,\"\",'2011 Survey responses'!EV183)","v":4},{"$f":"IF('2011 Survey responses'!FA183<0.5,\"\",'2011 Survey responses'!FA183)","v":4},{"$f":"IF('2011 Survey responses'!ER183<0.5,\"\",'2011 Survey responses'!ER183)","v":5},{"$f":"IF(('2011 Survey responses'!EO183+'2011 Survey responses'!EP183)>=2,AVERAGE('2011 Survey responses'!EO183,'2011 Survey responses'!EP183),\"\")","v":5},{"$f":"IF('2011 Survey responses'!EQ183<0.5,\"\",'2011 Survey responses'!EQ183)","v":5},{"$f":"IF('2011 Survey responses'!ET183<0.5,\"\",'2011 Survey responses'!ET183)","v":4},{"$f":"IF('2011 Survey responses'!EU183<0.5,\"\",'2011 Survey responses'!EU183)","v":4},{"$f":"IF('2011 Survey responses'!EW183<0.5,\"\",'2011 Survey responses'!EW183)","v":4},{"$f":"IF('2011 Survey responses'!EY183<0.5,\"\",'2011 Survey responses'!EY183)","v":4},{"$f":"IF('2011 Survey responses'!FU183<0.5,\"\",'2011 Survey responses'!FU183)","v":4},{"$f":"IF(('2011 Survey responses'!FL183+'2011 Survey responses'!FM183)>=2,AVERAGE('2011 Survey responses'!FL183,'2011 Survey responses'!FM183),\"\")","v":4},{"$f":"IF(('2011 Survey responses'!FO183+'2011 Survey responses'!FQ183)>=2,AVERAGE('2011 Survey responses'!FO183,'2011 Survey responses'!FQ183),\"\")","v":4},{"$f":"IF('2011 Survey responses'!FJ183<0.5,\"\",'2011 Survey responses'!FJ183)","v":4},{"$f":"IF('2011 Survey responses'!FT183<0.5,\"\",'2011 Survey responses'!FT183)","v":4},{"$f":"IF('2011 Survey responses'!FR183<0.5,\"\",'2011 Survey responses'!FR183)","v":4},{"$f":"IF('2011 Survey responses'!FK183<0.5,\"\",'2011 Survey responses'!FK183)","v":4},{"$f":"IF('2011 Survey responses'!FP183<0.5,\"\",'2011 Survey responses'!FP183)","v":4},{"$f":"IF('2011 Survey responses'!FN183<0.5,\"\",'2011 Survey responses'!FN183)","v":4},{"$f":"IF(('2011 Survey responses'!FE183+'2011 Survey responses'!FF183)>=2,AVERAGE('2011 Survey responses'!FE183,'2011 Survey responses'!FF183),\"\")","v":4},{"$f":"IF('2011 Survey responses'!FS183<0.5,\"\",'2011 Survey responses'!FS183)","v":4},{"$f":"IF('2011 Survey responses'!FV183<0.5,\"\",'2011 Survey responses'!FV183)","v":4},{"$f":"IF(('2011 Survey responses'!FG183+'2011 Survey responses'!FH183)>=2,AVERAGE('2011 Survey responses'!FG183,'2011 Survey responses'!FH183),\"\")","v":4},{"$f":"IF('2011 Survey responses'!FI183<0.5,\"\",'2011 Survey responses'!FI183)","v":4},{"$f":"IF('2011 Survey responses'!FE183<0.5,\"\",'2011 Survey responses'!FE183)","v":4},{"$f":"IF('2011 Survey responses'!FF183<0.5,\"\",'2011 Survey responses'!FF183)","v":4},{"$f":"IF('2011 Survey responses'!FG183<0.5,\"\",'2011 Survey responses'!FG183)","v":4},{"$f":"IF('2011 Survey responses'!FH183<0.5,\"\",'2011 Survey responses'!FH183)","v":4},{"$f":"IF('2011 Survey responses'!FL183<0.5,\"\",'2011 Survey responses'!FL183)","v":4},{"$f":"IF('2011 Survey responses'!FM183<0.5,\"\",'2011 Survey responses'!FM183)","v":4},{"$f":"IF('2011 Survey responses'!FO183<0.5,\"\",'2011 Survey responses'!FO183)","v":4},{"$f":"IF('2011 Survey responses'!FQ183<0.5,\"\",'2011 Survey responses'!FQ183)","v":4}]
["United Kingdom of Great Britain and Northern Ireland",{"$f":"IF(SUM(F184)<1,\"\",AVERAGEIF('2011 Survey responses'!B184:CP184,\">1\"))","v":5.0142857142857142},{"$f":"IF(SUM(F184)<1,\"\",AVERAGEIF('2011 Survey responses'!B184:AO184,\">1\"))","v":5.03125},{"$f":"IF(SUM(F184)<1,\"\",AVERAGEIF('2011 Survey responses'!B184:BV184,\">1\"))","v":5.0476190476190474},{"$f":"IF(SUM(F184)<1,\"\",AVERAGEIF('2011 Survey responses'!V184:BV184,\">1\"))","v":5.042553191489362},{"$f":"IF(SUM('2011 Survey responses'!B184:U184)<1,\"\",(AVERAGEIFS('2011 Survey responses'!B184:U184,'2011 Survey responses'!B184:U184,\">1\")))","v":5.0625},{"$f":"IF(SUM('2011 Survey responses'!B184:H184)<1,\"\",(AVERAGEIFS('2011 Survey responses'!B184:H184,'2011 Survey responses'!B184:H184,\">1\")))","v":5.4285714285714288},{"$f":"IF(SUM('2011 Survey responses'!I184:S184)<1,\"\",(AVERAGEIFS('2011 Survey responses'!I184:S184,'2011 Survey responses'!I184:S184,\">1\")))","v":4.75},{"$f":"IF(SUM('2011 Survey responses'!T184:U184)<2.1,\"\",(AVERAGEIFS('2011 Survey responses'!T184:U184,'2011 Survey responses'!T184:U184,\">1\")))","v":5},{"$f":"IF(SUM('2011 Survey responses'!B184:C184)<2.1,\"\",((SUMIF('2011 Survey responses'!B184:C184,\">1\")+SUMIF('2011 Survey responses'!F184,\">1\"))/(COUNTIF('2011 Survey responses'!B184:C184,\">1\")+COUNTIF('2011 Survey responses'!F184,\">1\"))))","v":6},{"$f":"IF(SUM('2011 Survey responses'!D184:E184)<2.1,\"\",(AVERAGEIFS('2011 Survey responses'!D184:E184,'2011 Survey responses'!D184:E184,\">1\")))","v":6},{"$f":"IF(('2011 Survey responses'!B184+'2011 Survey responses'!D184)<2.1,\"\",((SUMIF('2011 Survey responses'!B184,\">1\")+SUMIF('2011 Survey responses'!D184,\">1\")+SUMIF('2011 Survey responses'!F184,\">1\")+SUMIF('2011 Survey responses'!K184,\">1\"))/(COUNTIF('2011 Survey responses'!B184,\">1\")+COUNTIF('2011 Survey responses'!D184,\">1\")+COUNTIF('2011 Survey responses'!F184,\">1\")+COUNTIF('2011 Survey responses'!K184,\">1\"))))","v":6},{"$f":"IF(SUM('2011 Survey responses'!G184:H184)<2.1,\"\",(AVERAGEIFS('2011 Survey responses'!G184:H184,'2011 Survey responses'!G184:H184,\">1\")))","v":4},{"$f":"IF(SUM('2011 Survey responses'!F184:G184)<1.5,\"\",MAX('2011 Survey responses'!F184,'2011 Survey responses'!G184))","v":6},{"$f":"IF(SUM('2011 Survey responses'!G184:H184)<1,\"\",MAX('2011 Survey responses'!G184,'2011 Survey responses'!H184))","v":4},{"$f":"IF(SUM('2011 Survey responses'!I184:L184)<4.1,\"\",(AVERAGEIFS('2011 Survey responses'!I184:L184,'2011 Survey responses'!I184:L184,\">1\")))","v":4},{"$f":"IF(SUM('2011 Survey responses'!M184:S184)<4.1,\"\",(AVERAGEIFS('2011 Survey responses'!M184:S184,'2011 Survey responses'!M184:S184,\">1\")))","v":5},{"$f":"IF(SUM('2011 Survey responses'!T184:U184)<2.1,\"\",(AVERAGEIFS('2011 Survey responses'!T184:U184,'2011 Survey responses'!T184:U184,\">1\")))","v":5},{"$f":"IF(SUM('2011 Survey responses'!V184:AO184)<1,\"\",(AVERAGEIFS('2011 Survey responses'!V184:AO184,'2011 Survey responses'!V184:AO184,\">1\")))","v":5},{"$f":"IF(SUM('2011 Survey responses'!V184:AA184)<1,\"\",(AVERAGEIFS('2011 Survey responses'!V184:AA184,'2011 Survey responses'!V184:AA184,\">1\")))","v":5},{"$f":"IF(SUM('2011 Survey responses'!AB184:AH184)<1,\"\",(AVERAGEIFS('2011 Survey responses'!AB184:AH184,'2011 Survey responses'!AB184:AH184,\">1\")))","v":5},{"$f":"IF(SUM('2011 Survey responses'!AI184:AO184)<1,\"\",(AVERAGEIFS('2011 Survey responses'!AI184:AO184,'2011 Survey responses'!AI184:AO184,\">1\")))","v":5},{"$f":"IF(('2011 Survey responses'!Y184+'2011 Survey responses'!AI184+'2011 Survey responses'!AK184)<3.1,\"\",((SUMIF('2011 Survey responses'!Y184,\">1\")+SUMIF('2011 Survey responses'!AI184,\">1\")+SUMIF('2011 Survey responses'!AK184,\">1\")+SUMIF('2011 Survey responses'!AM184,\">1\"))/(COUNTIF('2011 Survey responses'!Y184,\">1\")+COUNTIF('2011 Survey responses'!AI184,\">1\")+COUNTIF('2011 Survey responses'!AK184,\">1\")+COUNTIF('2011 Survey responses'!AM184,\">1\"))))","v":5},{"$f":"IF(('2011 Survey responses'!W184)<1.1,\"\",('2011 Survey responses'!W184))","v":5},{"$f":"IF(('2011 Survey responses'!Y184)<1.1,\"\",('2011 Survey responses'!Y184))","v":5},{"$f":"IF(('2011 Survey responses'!Z184)<1.1,\"\",('2011 Survey responses'!Z184))","v":""},{"$f":"IF(('2011 Survey responses'!V184+'2011 Survey responses'!X184+'2011 Survey responses'!AA184)<3.1,\"\",((SUMIF('2011 Survey responses'!V184,\">1\")+SUMIF('2011 Survey responses'!X184,\">1\")+SUMIF('2011 Survey responses'!AA184,\">1\"))/(COUNTIF('2011 Survey responses'!V184,\">1\")+COUNTIF('2011 Survey responses'!X184,\">1\")+COUNTIF('2011 Survey responses'!AA184,\">1\"))))","v":5},{"$f":"IF(('2011 Survey responses'!V184+'2011 Survey responses'!Y184+'2011 Survey responses'!AA184)<3.1,\"\",((SUMIF('2011 Survey responses'!V184,\">1\")+SUMIF('2011 Survey responses'!Y184,\">1\")+SUMIF('2011 Survey responses'!AA184,\">1\"))/(COUNTIF('2011 Survey responses'!V184,\">1\")+COUNTIF('2011 Survey responses'!Y184,\">1\")+COUNTIF('2011 Survey responses'!AA184,\">1\"))))","v":5},{"$f":"IF(SUM('2011 Survey responses'!AB184:AH184)<1,\"\",(AVERAGEIFS('2011 Survey responses'!AB184:AH184,'2011 Survey responses'!AB184:AH184,\">1\")))","v":5},{"$f":"IF(SUM('2011 Survey responses'!AI184:AO184)<7.1,\"\",(AVERAGEIFS('2011 Survey responses'!AI184:AO184,'2011 Survey responses'!AI184:AO184,\">1\")))","v":5},{"$f":"IF(('2011 Survey responses'!AH184)<1.1,\"\",('2011 Survey responses'!AH184))","v":""},{"$f":"IF(SUM('2011 Survey responses'!AP184:BV184)<1,\"\",(AVERAGEIFS('2011 Survey responses'!AP184:BV184,'2011 Survey responses'!AP184:BV184,\">1\")))","v":5.064516129032258},{"$f":"IF(SUM('2011 Survey responses'!AP184:AS184)<4.1,\"\",(AVERAGEIFS('2011 Survey responses'!AP184:AS184,'2011 Survey responses'!AP184:AS184,\">1\")))","v":5},{"$f":"IF(SUM('2011 Survey responses'!AT184:BF184)<1,\"\",(AVERAGEIFS('2011 Survey responses'!AT184:BF184,'2011 Survey responses'!AT184:BF184,\">1\")))","v":4.75},{"$f":"IF(SUM('2011 Survey responses'!BG184:BO184)<1,\"\",(AVERAGEIFS('2011 Survey responses'!BG184:BO184,'2011 Survey responses'!BG184:BO184,\">1\")))","v":5.375},{"$f":"IF(SUM('2011 Survey responses'!BP184:BS184)<1,\"\",(AVERAGEIFS('2011 Survey responses'!BP184:BS184,'2011 Survey responses'!BP184:BS184,\">1\")))","v":5},{"$f":"IF(SUM('2011 Survey responses'!BT184:BV184)<3.1,\"\",(AVERAGEIFS('2011 Survey responses'!BT184:BV184,'2011 Survey responses'!BT184:BV184,\">1\")))","v":5.666666666666667},{"$f":"IF(('2011 Survey responses'!AQ184+'2011 Survey responses'!AR184+'2011 Survey responses'!BG184)<3.1,\"\",((SUMIF('2011 Survey responses'!AQ184,\">1\")+SUMIF('2011 Survey responses'!AR184,\">1\")+SUMIF('2011 Survey responses'!BG184,\">1\"))/(COUNTIF('2011 Survey responses'!AQ184,\">1\")+COUNTIF('2011 Survey responses'!AR184,\">1\")+COUNTIF('2011 Survey responses'!BG184,\">1\"))))","v":5.5},{"$f":"IF(SUM('2011 Survey responses'!AP184:AS184)<4.1,\"\",(AVERAGEIFS('2011 Survey responses'!AP184:AS184,'2011 Survey responses'!AP184:AS184,\">1\")))","v":5},{"$f":"IF(('2011 Survey responses'!AU184+'2011 Survey responses'!AX184+'2011 Survey responses'!BA184+'2011 Survey responses'!BC184+'2011 Survey responses'!BD184)<5.1,\"\",(SUMIF('2011 Survey responses'!AU184,\">1\")+SUMIF('2011 Survey responses'!AX184,\">1\")+SUMIF('2011 Survey responses'!BA184,\">1\")+SUMIF('2011 Survey responses'!BC184,\">1\")+SUMIF('2011 Survey responses'!BD184,\">1\"))/(COUNTIF('2011 Survey responses'!AU184,\">1\")+COUNTIF('2011 Survey responses'!AX184,\">1\")+COUNTIF('2011 Survey responses'!BA184,\">1\")+COUNTIF('2011 Survey responses'!BC184,\">1\")+COUNTIF('2011 Survey responses'!BD184,\">1\")))","v":4.5999999999999996},{"$f":"IF(('2011 Survey responses'!AT184)<1.1,\"\",('2011 Survey responses'!AT184))","v":6},{"$f":"IF(SUM('2011 Survey responses'!AV184:AW184)<2.1,\"\",(AVERAGEIFS('2011 Survey responses'!AV184:AW184,'2011 Survey responses'!AV184:AW184,\">1\")))","v":4.5},{"$f":"IF(('2011 Survey responses'!AW184+'2011 Survey responses'!AY184)<2.1,\"\",(SUMIF('2011 Survey responses'!AW184,\">1\")+SUMIF('2011 Survey responses'!AY184,\">1\"))/(COUNTIF('2011 Survey responses'!AW184,\">1\")+COUNTIF('2011 Survey responses'!AY184,\">1\")))","v":4},{"$f":"IF(('2011 Survey responses'!AZ184)<1.1,\"\",('2011 Survey responses'!AZ184))","v":4},4,3,5,5,{"$f":"IF(('2011 Survey responses'!BE184)<1.1,\"\",('2011 Survey responses'!BE184))","v":""},{"$f":"IF(('2011 Survey responses'!AY184+'2011 Survey responses'!BB184+'2011 Survey responses'!BF184)<3.1,\"\",(SUMIF('2011 Survey responses'!AY184,\">1\")+SUMIF('2011 Survey responses'!BB184,\">1\")+SUMIF('2011 Survey responses'!BF184,\">1\"))/(COUNTIF('2011 Survey responses'!AY184,\">1\")+COUNTIF('2011 Survey responses'!BB184,\">1\")+COUNTIF('2011 Survey responses'!BF184,\">1\")))","v":5},5.1875,{"$f":"IF(SUM('2011 Survey responses'!BT184:BV184)<3.1,\"\",(AVERAGEIFS('2011 Survey responses'!BT184:BV184,'2011 Survey responses'!BT184:BV184,\">1\")))","v":5.666666666666667},{"$f":"IF(SUM('2011 Survey responses'!BW184:CP184)<1,\"\",(AVERAGEIFS('2011 Survey responses'!BW184:CP184,'2011 Survey responses'!BW184:CP184,\">1\")))","v":4.7142857142857144},{"$f":"IF(SUM('2011 Survey responses'!BW184:CF184)<1,\"\",(AVERAGEIFS('2011 Survey responses'!BW184:CF184,'2011 Survey responses'!BW184:CF184,\">1\")))","v":4.5},{"$f":"IF(SUM('2011 Survey responses'!CG184:CP184)<1,\"\",(AVERAGEIFS('2011 Survey responses'!CG184:CP184,'2011 Survey responses'!CG184:CP184,\">1\")))","v":6},{"$f":"IF(SUM('2011 Survey responses'!BX184:CF184)<1,\"\",(AVERAGEIFS('2011 Survey responses'!BX184:CF184,'2011 Survey responses'!BX184:CF184,\">1\")))","v":5},{"$f":"IF(SUM('2011 Survey responses'!CH184:CP184)<1,\"\",(AVERAGEIFS('2011 Survey responses'!CH184:CP184,'2011 Survey responses'!CH184:CP184,\">1\")))","v":6},{"$f":"IF(SUM('2011 Survey responses'!BW184:CP184)<1,\"\",(AVERAGEIFS('2011 Survey responses'!BW184:CP184,'2011 Survey responses'!BW184:CP184,\">1\")))","v":4.7142857142857144},{"$f":"IF(('2011 Survey responses'!BW184+'2011 Survey responses'!CG184)<2.1,\"\",(SUMIF('2011 Survey responses'!BW184,\">1\")+SUMIF('2011 Survey responses'!CG184,\">1\"))/(COUNTIF('2011 Survey responses'!BW184,\">1\")+COUNTIF('2011 Survey responses'!CG184,\">1\")))","v":2},{"$f":"IF(('2011 Survey responses'!BX184+'2011 Survey responses'!CH184)<2.1,\"\",(SUMIF('2011 Survey responses'!BX184,\">1\")+SUMIF('2011 Survey responses'!CH184,\">1\"))/(COUNTIF('2011 Survey responses'!BX184,\">1\")+COUNTIF('2011 Survey responses'!CH184,\">1\")))","v":""},{"$f":"IF(('2011 Survey responses'!BY184+'2011 Survey responses'!CI184)<2.1,\"\",(SUMIF('2011 Survey responses'!BY184,\">1\")+SUMIF('2011 Survey responses'!CI184,\">1\"))/(COUNTIF('2011 Survey responses'!BY184,\">1\")+COUNTIF('2011 Survey responses'!CI184,\">1\")))","v":3},{"$f":"IF('2011 Survey responses'!CQ184<0.5,\"\",'2011 Survey responses'!CQ184)","v":2},{"$f":"IF('2011 Survey responses'!CR184<0.5,\"\",'2011 Survey responses'!CR184)","v":2},{"$f":"IF('2011 Survey responses'!CS184<0.5,\"\",'2011 Survey responses'!CS184)","v":1},{"$f":"IF('2011 Survey responses'!CT184<0.5,\"\",'2011 Survey responses'!CT184)","v":4},{"$f":"IF('2011 Survey responses'!CU184<0.5,\"\",'2011 Survey responses'!CU184)","v":4},{"$f":"IF('2011 Survey responses'!CV184<0.5,\"\",'2011 Survey responses'!CV184)","v":4},{"$f":"IF(SUM('2011 Survey responses'!CW184:DL184)<1,\"\",(AVERAGE('2011 Survey responses'!CW184:DL184)))","v":3.25},{"$f":"IF(SUM('2011 Survey responses'!CW184:CZ184)<1,\"\",(AVERAGE('2011 Survey responses'!CW184:CZ184)))","v":3.25},{"$f":"IF(SUM('2011 Survey responses'!DA184:DD184)<1,\"\",(AVERAGE('2011 Survey responses'!DA184:DD184)))","v":3.25},{"$f":"IF(SUM('2011 Survey responses'!DE184:DH184)<1,\"\",(AVERAGE('2011 Survey responses'!DE184:DH184)))","v":3.25},{"$f":"IF(SUM('2011 Survey responses'!DI184:DL184)<1,\"\",(AVERAGE('2011 Survey responses'!DI184:DL184)))","v":3.25},{"$f":"IF(('2011 Survey responses'!CW184+'2011 Survey responses'!DA184+'2011 Survey responses'!DE184+'2011 Survey responses'!DI184)<1,\"\",AVERAGE('2011 Survey responses'!CW184,'2011 Survey responses'!DA184,'2011 Survey responses'!DE184,'2011 Survey responses'!DI184))","v":3},{"$f":"IF(('2011 Survey responses'!CX184+'2011 Survey responses'!DB184+'2011 Survey responses'!DF184+'2011 Survey responses'!DJ184)<1,\"\",AVERAGE('2011 Survey responses'!CX184,'2011 Survey responses'!DB184,'2011 Survey responses'!DF184,'2011 Survey responses'!DJ184))","v":3},{"$f":"IF(('2011 Survey responses'!CY184+'2011 Survey responses'!DC184+'2011 Survey responses'!DG184+'2011 Survey responses'!DK184)<1,\"\",AVERAGE('2011 Survey responses'!CY184,'2011 Survey responses'!DC184,'2011 Survey responses'!DG184,'2011 Survey responses'!DK184))","v":4},{"$f":"IF(('2011 Survey responses'!CZ184+'2011 Survey responses'!DD184+'2011 Survey responses'!DH184+'2011 Survey responses'!DL184)<1,\"\",AVERAGE('2011 Survey responses'!CZ184,'2011 Survey responses'!DD184,'2011 Survey responses'!DH184,'2011 Survey responses'!DL184))","v":3},{"$f":"IF('2011 Survey responses'!CW184<0.5,\"\",'2011 Survey responses'!CW184)","v":3},{"$f":"IF('2011 Survey responses'!CX184<0.5,\"\",'2011 Survey responses'!CX184)","v":3},{"$f":"IF('2011 Survey responses'!CY184<0.5,\"\",'2011 Survey responses'!CY184)","v":4},{"$f":"IF('2011 Survey responses'!CZ184<0.5,\"\",'2011 Survey responses'!CZ184)","v":3},{"$f":"IF('2011 Survey responses'!DA184<0.5,\"\",'2011 Survey responses'!DA184)","v":3},{"$f":"IF('2011 Survey responses'!DB184<0.5,\"\",'2011 Survey responses'!DB184)","v":3},{"$f":"IF('2011 Survey responses'!DC184<0.5,\"\",'2011 Survey responses'!DC184)","v":4},{"$f":"IF('2011 Survey responses'!DD184<0.5,\"\",'2011 Survey responses'!DD184)","v":3},{"$f":"IF('2011 Survey responses'!DE184<0.5,\"\",'2011 Survey responses'!DE184)","v":3},{"$f":"IF('2011 Survey responses'!DF184<0.5,\"\",'2011 Survey responses'!DF184)","v":3},{"$f":"IF('2011 Survey responses'!DG184<0.5,\"\",'2011 Survey responses'!DG184)","v":4},{"$f":"IF('2011 Survey responses'!DH184<0.5,\"\",'2011 Survey responses'!DH184)","v":3},{"$f":"IF('2011 Survey responses'!DI184<0.5,\"\",'2011 Survey responses'!DI184)","v":3},{"$f":"IF('2011 Survey responses'!DJ184<0.5,\"\",'2011 Survey responses'!DJ184)","v":3},{"$f":"IF('2011 Survey responses'!DK184<0.5,\"\",'2011 Survey responses'!DK184)","v":4},{"$f":"IF('2011 Survey responses'!DL184<0.5,\"\",'2011 Survey responses'!DL184)","v":3},{"$f":"IF('2011 Survey responses'!DU184=4,4,IF('2011 Survey responses'!DU184=5,4,\"\"))","v":""},{"$f":"IF('2011 Survey responses'!DV184=4,3,IF('2011 Survey responses'!DV184=5,3,\"\"))","v":""},"",{"$f":"IF(CQ184=2,CQ184,IF(CO184=4,CO184,IF(CP184=3,CP184,IF('2011 Survey responses'!GT184=1,1,\"\"))))","v":1},{"$f":"IF('2011 Survey responses'!DO184<0.5,\"\",'2011 Survey responses'!DO184)","v":3},{"$f":"IF('2011 Survey responses'!DP184<0.5,\"\",'2011 Survey responses'!DP184)","v":5},{"$f":"IF('2011 Survey responses'!DQ184<0.5,\"\",'2011 Survey responses'!DQ184)","v":3},{"$f":"IF('2011 Survey responses'!DR184<0.5,\"\",'2011 Survey responses'!DR184)","v":3},{"$f":"IF('2011 Survey responses'!DS184<0.5,\"\",'2011 Survey responses'!DS184)","v":4},{"$f":"IF('2011 Survey responses'!DT184<0.5,\"\",'2011 Survey responses'!DT184)","v":5},{"$f":"IF('2011 Survey responses'!DU184<0.5,\"\",'2011 Survey responses'!DU184)","v":2},{"$f":"IF('2011 Survey responses'!DV184<0.5,\"\",'2011 Survey responses'!DV184)","v":3},{"$f":"IF('2011 Survey responses'!DW184<0.5,\"\",'2011 Survey responses'!DW184)","v":3},{"$f":"IF('2011 Survey responses'!DX184<0.5,\"\",'2011 Survey responses'!DX184)","v":3},{"$f":"IF('2011 Survey responses'!DY184<0.5,\"\",'2011 Survey responses'!DY184)","v":3},{"$f":"IF('2011 Survey responses'!DZ184<0.5,\"\",'2011 Survey responses'!DZ184)","v":3},{"$f":"IF('2011 Survey responses'!EA184<0.5,\"\",'2011 Survey responses'!EA184)","v":3},{"$f":"IF('2011 Survey responses'!EB184<0.5,\"\",'2011 Survey responses'!EB184)","v":3},{"$f":"IF('2011 Survey responses'!EC184<0.5,\"\",'2011 Survey responses'!EC184)","v":3},{"$f":"IF('2011 Survey responses'!ED184<0.5,\"\",'2011 Survey responses'!ED184)","v":3},{"$f":"IF('2011 Survey responses'!EE184<0.5,\"\",'2011 Survey responses'!EE184)","v":3},{"$f":"IF('2011 Survey responses'!EF184<0.5,\"\",'2011 Survey responses'!EF184)","v":3},{"$f":"IF('2011 Survey responses'!EG184<0.5,\"\",'2011 Survey responses'!EG184)","v":5},{"$f":"IF('2011 Survey responses'!EH184<0.5,\"\",'2011 Survey responses'!EH184)","v":5},{"$f":"IF('2011 Survey responses'!EI184<0.5,\"\",'2011 Survey responses'!EI184)","v":5},{"$f":"IF('2011 Survey responses'!EJ184<0.5,\"\",'2011 Survey responses'!EJ184)","v":5},{"$f":"IF('2011 Survey responses'!EK184<0.5,\"\",'2011 Survey responses'!EK184)","v":5},{"$f":"IF('2011 Survey responses'!EL184<0.5,\"\",'2011 Survey responses'!EL184)","v":5},{"$f":"IF('2011 Survey responses'!EM184<0.5,\"\",'2011 Survey responses'!EM184)","v":2},{"$f":"IF('2011 Survey responses'!EN184<0.5,\"\",'2011 Survey responses'!EN184)","v":2},{"$f":"IF('2011 Survey responses'!EO184<0.5,\"\",'2011 Survey responses'!EO184)","v":1},{"$f":"IF('2011 Survey responses'!EP184<0.5,\"\",'2011 Survey responses'!EP184)","v":1},{"$f":"IF(('2011 Survey responses'!EW184+'2011 Survey responses'!EX184)>=2,AVERAGE('2011 Survey responses'!EW184,'2011 Survey responses'!EY184),\"\")","v":3},{"$f":"IF('2011 Survey responses'!EX184<0.5,\"\",'2011 Survey responses'!EX184)","v":2},{"$f":"IF('2011 Survey responses'!EZ184<0.5,\"\",'2011 Survey responses'!EZ184)","v":2},{"$f":"IF('2011 Survey responses'!FB184<0.5,\"\",'2011 Survey responses'!FB184)","v":3},{"$f":"IF('2011 Survey responses'!FD184<0.5,\"\",'2011 Survey responses'!FD184)","v":4},{"$f":"IF('2011 Survey responses'!FC184<0.5,\"\",'2011 Survey responses'!FC184)","v":3},{"$f":"IF(('2011 Survey responses'!EM184+'2011 Survey responses'!EN184)>=2,AVERAGE('2011 Survey responses'!EM184,'2011 Survey responses'!EN184),\"\")","v":2},{"$f":"IF('2011 Survey responses'!ES184<0.5,\"\",'2011 Survey responses'!ES184)","v":3},{"$f":"IF(('2011 Survey responses'!ET184+'2011 Survey responses'!EU184)>=2,AVERAGE('2011 Survey responses'!ET184,'2011 Survey responses'!EU184),\"\")","v":3},{"$f":"IF('2011 Survey responses'!EV184<0.5,\"\",'2011 Survey responses'!EV184)","v":2},{"$f":"IF('2011 Survey responses'!FA184<0.5,\"\",'2011 Survey responses'!FA184)","v":3},{"$f":"IF('2011 Survey responses'!ER184<0.5,\"\",'2011 Survey responses'!ER184)","v":4},{"$f":"IF(('2011 Survey responses'!EO184+'2011 Survey responses'!EP184)>=2,AVERAGE('2011 Survey responses'!EO184,'2011 Survey responses'!EP184),\"\")","v":1},{"$f":"IF('2011 Survey responses'!EQ184<0.5,\"\",'2011 Survey responses'!EQ184)","v":2},{"$f":"IF('2011 Survey responses'!ET184<0.5,\"\",'2011 Survey responses'!ET184)","v":3},{"$f":"IF('2011 Survey responses'!EU184<0.5,\"\",'2011 Survey responses'!EU184)","v":3},{"$f":"IF('2011 Survey responses'!EW184<0.5,\"\",'2011 Survey responses'!EW184)","v":3},{"$f":"IF('2011 Survey responses'!EY184<0.5,\"\",'2011 Survey responses'!EY184)","v":3},{"$f":"IF('2011 Survey responses'!FU184<0.5,\"\",'2011 Survey responses'!FU184)","v":4},{"$f":"IF(('2011 Survey responses'!FL184+'2011 Survey responses'!FM184)>=2,AVERAGE('2011 Survey responses'!FL184,'2011 Survey responses'!FM184),\"\")","v":4},{"$f":"IF(('2011 Survey responses'!FO184+'2011 Survey responses'!FQ184)>=2,AVERAGE('2011 Survey responses'!FO184,'2011 Survey responses'!FQ184),\"\")","v":4},{"$f":"IF('2011 Survey responses'!FJ184<0.5,\"\",'2011 Survey responses'!FJ184)","v":4},{"$f":"IF('2011 Survey responses'!FT184<0.5,\"\",'2011 Survey responses'!FT184)","v":4},{"$f":"IF('2011 Survey responses'!FR184<0.5,\"\",'2011 Survey responses'!FR184)","v":4},{"$f":"IF('2011 Survey responses'!FK184<0.5,\"\",'2011 Survey responses'!FK184)","v":4},{"$f":"IF('2011 Survey responses'!FP184<0.5,\"\",'2011 Survey responses'!FP184)","v":4},{"$f":"IF('2011 Survey responses'!FN184<0.5,\"\",'2011 Survey responses'!FN184)","v":4},{"$f":"IF(('2011 Survey responses'!FE184+'2011 Survey responses'!FF184)>=2,AVERAGE('2011 Survey responses'!FE184,'2011 Survey responses'!FF184),\"\")","v":4},{"$f":"IF('2011 Survey responses'!FS184<0.5,\"\",'2011 Survey responses'!FS184)","v":4},{"$f":"IF('2011 Survey responses'!FV184<0.5,\"\",'2011 Survey responses'!FV184)","v":4},{"$f":"IF(('2011 Survey responses'!FG184+'2011 Survey responses'!FH184)>=2,AVERAGE('2011 Survey responses'!FG184,'2011 Survey responses'!FH184),\"\")","v":4},{"$f":"IF('2011 Survey responses'!FI184<0.5,\"\",'2011 Survey responses'!FI184)","v":4},{"$f":"IF('2011 Survey responses'!FE184<0.5,\"\",'2011 Survey responses'!FE184)","v":4},{"$f":"IF('2011 Survey responses'!FF184<0.5,\"\",'2011 Survey responses'!FF184)","v":4},{"$f":"IF('2011 Survey responses'!FG184<0.5,\"\",'2011 Survey responses'!FG184)","v":4},{"$f":"IF('2011 Survey responses'!FH184<0.5,\"\",'2011 Survey responses'!FH184)","v":4},{"$f":"IF('2011 Survey responses'!FL184<0.5,\"\",'2011 Survey responses'!FL184)","v":4},{"$f":"IF('2011 Survey responses'!FM184<0.5,\"\",'2011 Survey responses'!FM184)","v":4},{"$f":"IF('2011 Survey responses'!FO184<0.5,\"\",'2011 Survey responses'!FO184)","v":4},{"$f":"IF('2011 Survey responses'!FQ184<0.5,\"\",'2011 Survey responses'!FQ184)","v":4}]
["United Republic of Tanzania",{"$f":"IF(SUM(F185)<1,\"\",AVERAGEIF('2011 Survey responses'!B185:CP185,\">1\"))","v":3.9506172839506171},{"$f":"IF(SUM(F185)<1,\"\",AVERAGEIF('2011 Survey responses'!B185:AO185,\">1\"))","v":4.0571428571428569},{"$f":"IF(SUM(F185)<1,\"\",AVERAGEIF('2011 Survey responses'!B185:BV185,\">1\"))","v":4.0151515151515156},{"$f":"IF(SUM(F185)<1,\"\",AVERAGEIF('2011 Survey responses'!V185:BV185,\">1\"))","v":4.1764705882352944},{"$f":"IF(SUM('2011 Survey responses'!B185:U185)<1,\"\",(AVERAGEIFS('2011 Survey responses'!B185:U185,'2011 Survey responses'!B185:U185,\">1\")))","v":3.4666666666666668},{"$f":"IF(SUM('2011 Survey responses'!B185:H185)<1,\"\",(AVERAGEIFS('2011 Survey responses'!B185:H185,'2011 Survey responses'!B185:H185,\">1\")))","v":3.25},{"$f":"IF(SUM('2011 Survey responses'!I185:S185)<1,\"\",(AVERAGEIFS('2011 Survey responses'!I185:S185,'2011 Survey responses'!I185:S185,\">1\")))","v":3.5555555555555554},{"$f":"IF(SUM('2011 Survey responses'!T185:U185)<2.1,\"\",(AVERAGEIFS('2011 Survey responses'!T185:U185,'2011 Survey responses'!T185:U185,\">1\")))","v":3.5},{"$f":"IF(SUM('2011 Survey responses'!B185:C185)<2.1,\"\",((SUMIF('2011 Survey responses'!B185:C185,\">1\")+SUMIF('2011 Survey responses'!F185,\">1\"))/(COUNTIF('2011 Survey responses'!B185:C185,\">1\")+COUNTIF('2011 Survey responses'!F185,\">1\"))))","v":3.5},{"$f":"IF(SUM('2011 Survey responses'!D185:E185)<2.1,\"\",(AVERAGEIFS('2011 Survey responses'!D185:E185,'2011 Survey responses'!D185:E185,\">1\")))","v":4},{"$f":"IF(('2011 Survey responses'!B185+'2011 Survey responses'!D185)<2.1,\"\",((SUMIF('2011 Survey responses'!B185,\">1\")+SUMIF('2011 Survey responses'!D185,\">1\")+SUMIF('2011 Survey responses'!F185,\">1\")+SUMIF('2011 Survey responses'!K185,\">1\"))/(COUNTIF('2011 Survey responses'!B185,\">1\")+COUNTIF('2011 Survey responses'!D185,\">1\")+COUNTIF('2011 Survey responses'!F185,\">1\")+COUNTIF('2011 Survey responses'!K185,\">1\"))))","v":3.75},{"$f":"IF(SUM('2011 Survey responses'!G185:H185)<2.1,\"\",(AVERAGEIFS('2011 Survey responses'!G185:H185,'2011 Survey responses'!G185:H185,\">1\")))","v":2},{"$f":"IF(SUM('2011 Survey responses'!F185:G185)<1.5,\"\",MAX('2011 Survey responses'!F185,'2011 Survey responses'!G185))","v":2},{"$f":"IF(SUM('2011 Survey responses'!G185:H185)<1,\"\",MAX('2011 Survey responses'!G185,'2011 Survey responses'!H185))","v":2},{"$f":"IF(SUM('2011 Survey responses'!I185:L185)<4.1,\"\",(AVERAGEIFS('2011 Survey responses'!I185:L185,'2011 Survey responses'!I185:L185,\">1\")))","v":3.5},{"$f":"IF(SUM('2011 Survey responses'!M185:S185)<4.1,\"\",(AVERAGEIFS('2011 Survey responses'!M185:S185,'2011 Survey responses'!M185:S185,\">1\")))","v":3.6},{"$f":"IF(SUM('2011 Survey responses'!T185:U185)<2.1,\"\",(AVERAGEIFS('2011 Survey responses'!T185:U185,'2011 Survey responses'!T185:U185,\">1\")))","v":3.5},{"$f":"IF(SUM('2011 Survey responses'!V185:AO185)<1,\"\",(AVERAGEIFS('2011 Survey responses'!V185:AO185,'2011 Survey responses'!V185:AO185,\">1\")))","v":4.5},{"$f":"IF(SUM('2011 Survey responses'!V185:AA185)<1,\"\",(AVERAGEIFS('2011 Survey responses'!V185:AA185,'2011 Survey responses'!V185:AA185,\">1\")))","v":5},{"$f":"IF(SUM('2011 Survey responses'!AB185:AH185)<1,\"\",(AVERAGEIFS('2011 Survey responses'!AB185:AH185,'2011 Survey responses'!AB185:AH185,\">1\")))","v":4},{"$f":"IF(SUM('2011 Survey responses'!AI185:AO185)<1,\"\",(AVERAGEIFS('2011 Survey responses'!AI185:AO185,'2011 Survey responses'!AI185:AO185,\">1\")))","v":4.5714285714285712},{"$f":"IF(('2011 Survey responses'!Y185+'2011 Survey responses'!AI185+'2011 Survey responses'!AK185)<3.1,\"\",((SUMIF('2011 Survey responses'!Y185,\">1\")+SUMIF('2011 Survey responses'!AI185,\">1\")+SUMIF('2011 Survey responses'!AK185,\">1\")+SUMIF('2011 Survey responses'!AM185,\">1\"))/(COUNTIF('2011 Survey responses'!Y185,\">1\")+COUNTIF('2011 Survey responses'!AI185,\">1\")+COUNTIF('2011 Survey responses'!AK185,\">1\")+COUNTIF('2011 Survey responses'!AM185,\">1\"))))","v":4.75},{"$f":"IF(('2011 Survey responses'!W185)<1.1,\"\",('2011 Survey responses'!W185))","v":5},{"$f":"IF(('2011 Survey responses'!Y185)<1.1,\"\",('2011 Survey responses'!Y185))","v":5},{"$f":"IF(('2011 Survey responses'!Z185)<1.1,\"\",('2011 Survey responses'!Z185))","v":5},{"$f":"IF(('2011 Survey responses'!V185+'2011 Survey responses'!X185+'2011 Survey responses'!AA185)<3.1,\"\",((SUMIF('2011 Survey responses'!V185,\">1\")+SUMIF('2011 Survey responses'!X185,\">1\")+SUMIF('2011 Survey responses'!AA185,\">1\"))/(COUNTIF('2011 Survey responses'!V185,\">1\")+COUNTIF('2011 Survey responses'!X185,\">1\")+COUNTIF('2011 Survey responses'!AA185,\">1\"))))","v":5},{"$f":"IF(('2011 Survey responses'!V185+'2011 Survey responses'!Y185+'2011 Survey responses'!AA185)<3.1,\"\",((SUMIF('2011 Survey responses'!V185,\">1\")+SUMIF('2011 Survey responses'!Y185,\">1\")+SUMIF('2011 Survey responses'!AA185,\">1\"))/(COUNTIF('2011 Survey responses'!V185,\">1\")+COUNTIF('2011 Survey responses'!Y185,\">1\")+COUNTIF('2011 Survey responses'!AA185,\">1\"))))","v":5},{"$f":"IF(SUM('2011 Survey responses'!AB185:AH185)<1,\"\",(AVERAGEIFS('2011 Survey responses'!AB185:AH185,'2011 Survey responses'!AB185:AH185,\">1\")))","v":4},{"$f":"IF(SUM('2011 Survey responses'!AI185:AO185)<7.1,\"\",(AVERAGEIFS('2011 Survey responses'!AI185:AO185,'2011 Survey responses'!AI185:AO185,\">1\")))","v":4.5714285714285712},{"$f":"IF(('2011 Survey responses'!AH185)<1.1,\"\",('2011 Survey responses'!AH185))","v":4},{"$f":"IF(SUM('2011 Survey responses'!AP185:BV185)<1,\"\",(AVERAGEIFS('2011 Survey responses'!AP185:BV185,'2011 Survey responses'!AP185:BV185,\">1\")))","v":3.967741935483871},{"$f":"IF(SUM('2011 Survey responses'!AP185:AS185)<4.1,\"\",(AVERAGEIFS('2011 Survey responses'!AP185:AS185,'2011 Survey responses'!AP185:AS185,\">1\")))","v":5},{"$f":"IF(SUM('2011 Survey responses'!AT185:BF185)<1,\"\",(AVERAGEIFS('2011 Survey responses'!AT185:BF185,'2011 Survey responses'!AT185:BF185,\">1\")))","v":3.8461538461538463},{"$f":"IF(SUM('2011 Survey responses'!BG185:BO185)<1,\"\",(AVERAGEIFS('2011 Survey responses'!BG185:BO185,'2011 Survey responses'!BG185:BO185,\">1\")))","v":4},{"$f":"IF(SUM('2011 Survey responses'!BP185:BS185)<1,\"\",(AVERAGEIFS('2011 Survey responses'!BP185:BS185,'2011 Survey responses'!BP185:BS185,\">1\")))","v":3},{"$f":"IF(SUM('2011 Survey responses'!BT185:BV185)<3.1,\"\",(AVERAGEIFS('2011 Survey responses'!BT185:BV185,'2011 Survey responses'!BT185:BV185,\">1\")))","v":4},{"$f":"IF(('2011 Survey responses'!AQ185+'2011 Survey responses'!AR185+'2011 Survey responses'!BG185)<3.1,\"\",((SUMIF('2011 Survey responses'!AQ185,\">1\")+SUMIF('2011 Survey responses'!AR185,\">1\")+SUMIF('2011 Survey responses'!BG185,\">1\"))/(COUNTIF('2011 Survey responses'!AQ185,\">1\")+COUNTIF('2011 Survey responses'!AR185,\">1\")+COUNTIF('2011 Survey responses'!BG185,\">1\"))))","v":5},{"$f":"IF(SUM('2011 Survey responses'!AP185:AS185)<4.1,\"\",(AVERAGEIFS('2011 Survey responses'!AP185:AS185,'2011 Survey responses'!AP185:AS185,\">1\")))","v":5},{"$f":"IF(('2011 Survey responses'!AU185+'2011 Survey responses'!AX185+'2011 Survey responses'!BA185+'2011 Survey responses'!BC185+'2011 Survey responses'!BD185)<5.1,\"\",(SUMIF('2011 Survey responses'!AU185,\">1\")+SUMIF('2011 Survey responses'!AX185,\">1\")+SUMIF('2011 Survey responses'!BA185,\">1\")+SUMIF('2011 Survey responses'!BC185,\">1\")+SUMIF('2011 Survey responses'!BD185,\">1\"))/(COUNTIF('2011 Survey responses'!AU185,\">1\")+COUNTIF('2011 Survey responses'!AX185,\">1\")+COUNTIF('2011 Survey responses'!BA185,\">1\")+COUNTIF('2011 Survey responses'!BC185,\">1\")+COUNTIF('2011 Survey responses'!BD185,\">1\")))","v":3.6},{"$f":"IF(('2011 Survey responses'!AT185)<1.1,\"\",('2011 Survey responses'!AT185))","v":4},{"$f":"IF(SUM('2011 Survey responses'!AV185:AW185)<2.1,\"\",(AVERAGEIFS('2011 Survey responses'!AV185:AW185,'2011 Survey responses'!AV185:AW185,\">1\")))","v":4},{"$f":"IF(('2011 Survey responses'!AW185+'2011 Survey responses'!AY185)<2.1,\"\",(SUMIF('2011 Survey responses'!AW185,\">1\")+SUMIF('2011 Survey responses'!AY185,\">1\"))/(COUNTIF('2011 Survey responses'!AW185,\">1\")+COUNTIF('2011 Survey responses'!AY185,\">1\")))","v":4},{"$f":"IF(('2011 Survey responses'!AZ185)<1.1,\"\",('2011 Survey responses'!AZ185))","v":4},4,4,3,1,{"$f":"IF(('2011 Survey responses'!BE185)<1.1,\"\",('2011 Survey responses'!BE185))","v":4},{"$f":"IF(('2011 Survey responses'!AY185+'2011 Survey responses'!BB185+'2011 Survey responses'!BF185)<3.1,\"\",(SUMIF('2011 Survey responses'!AY185,\">1\")+SUMIF('2011 Survey responses'!BB185,\">1\")+SUMIF('2011 Survey responses'!BF185,\">1\"))/(COUNTIF('2011 Survey responses'!AY185,\">1\")+COUNTIF('2011 Survey responses'!BB185,\">1\")+COUNTIF('2011 Survey responses'!BF185,\">1\")))","v":4},3.5,{"$f":"IF(SUM('2011 Survey responses'!BT185:BV185)<3.1,\"\",(AVERAGEIFS('2011 Survey responses'!BT185:BV185,'2011 Survey responses'!BT185:BV185,\">1\")))","v":4},{"$f":"IF(SUM('2011 Survey responses'!BW185:CP185)<1,\"\",(AVERAGEIFS('2011 Survey responses'!BW185:CP185,'2011 Survey responses'!BW185:CP185,\">1\")))","v":3.6666666666666665},{"$f":"IF(SUM('2011 Survey responses'!BW185:CF185)<1,\"\",(AVERAGEIFS('2011 Survey responses'!BW185:CF185,'2011 Survey responses'!BW185:CF185,\">1\")))","v":3.375},{"$f":"IF(SUM('2011 Survey responses'!CG185:CP185)<1,\"\",(AVERAGEIFS('2011 Survey responses'!CG185:CP185,'2011 Survey responses'!CG185:CP185,\">1\")))","v":4},{"$f":"IF(SUM('2011 Survey responses'!BX185:CF185)<1,\"\",(AVERAGEIFS('2011 Survey responses'!BX185:CF185,'2011 Survey responses'!BX185:CF185,\">1\")))","v":3.375},{"$f":"IF(SUM('2011 Survey responses'!CH185:CP185)<1,\"\",(AVERAGEIFS('2011 Survey responses'!CH185:CP185,'2011 Survey responses'!CH185:CP185,\">1\")))","v":4},{"$f":"IF(SUM('2011 Survey responses'!BW185:CP185)<1,\"\",(AVERAGEIFS('2011 Survey responses'!BW185:CP185,'2011 Survey responses'!BW185:CP185,\">1\")))","v":3.6666666666666665},{"$f":"IF(('2011 Survey responses'!BW185+'2011 Survey responses'!CG185)<2.1,\"\",(SUMIF('2011 Survey responses'!BW185,\">1\")+SUMIF('2011 Survey responses'!CG185,\">1\"))/(COUNTIF('2011 Survey responses'!BW185,\">1\")+COUNTIF('2011 Survey responses'!CG185,\">1\")))","v":4},{"$f":"IF(('2011 Survey responses'!BX185+'2011 Survey responses'!CH185)<2.1,\"\",(SUMIF('2011 Survey responses'!BX185,\">1\")+SUMIF('2011 Survey responses'!CH185,\">1\"))/(COUNTIF('2011 Survey responses'!BX185,\">1\")+COUNTIF('2011 Survey responses'!CH185,\">1\")))","v":4},{"$f":"IF(('2011 Survey responses'!BY185+'2011 Survey responses'!CI185)<2.1,\"\",(SUMIF('2011 Survey responses'!BY185,\">1\")+SUMIF('2011 Survey responses'!CI185,\">1\"))/(COUNTIF('2011 Survey responses'!BY185,\">1\")+COUNTIF('2011 Survey responses'!CI185,\">1\")))","v":4},{"$f":"IF('2011 Survey responses'!CQ185<0.5,\"\",'2011 Survey responses'!CQ185)","v":4},{"$f":"IF('2011 Survey responses'!CR185<0.5,\"\",'2011 Survey responses'!CR185)","v":4},{"$f":"IF('2011 Survey responses'!CS185<0.5,\"\",'2011 Survey responses'!CS185)","v":4},{"$f":"IF('2011 Survey responses'!CT185<0.5,\"\",'2011 Survey responses'!CT185)","v":4},{"$f":"IF('2011 Survey responses'!CU185<0.5,\"\",'2011 Survey responses'!CU185)","v":4},{"$f":"IF('2011 Survey responses'!CV185<0.5,\"\",'2011 Survey responses'!CV185)","v":1},{"$f":"IF(SUM('2011 Survey responses'!CW185:DL185)<1,\"\",(AVERAGE('2011 Survey responses'!CW185:DL185)))","v":3},{"$f":"IF(SUM('2011 Survey responses'!CW185:CZ185)<1,\"\",(AVERAGE('2011 Survey responses'!CW185:CZ185)))","v":3.5},{"$f":"IF(SUM('2011 Survey responses'!DA185:DD185)<1,\"\",(AVERAGE('2011 Survey responses'!DA185:DD185)))","v":3.25},{"$f":"IF(SUM('2011 Survey responses'!DE185:DH185)<1,\"\",(AVERAGE('2011 Survey responses'!DE185:DH185)))","v":3.25},{"$f":"IF(SUM('2011 Survey responses'!DI185:DL185)<1,\"\",(AVERAGE('2011 Survey responses'!DI185:DL185)))","v":2},{"$f":"IF(('2011 Survey responses'!CW185+'2011 Survey responses'!DA185+'2011 Survey responses'!DE185+'2011 Survey responses'!DI185)<1,\"\",AVERAGE('2011 Survey responses'!CW185,'2011 Survey responses'!DA185,'2011 Survey responses'!DE185,'2011 Survey responses'!DI185))","v":3},{"$f":"IF(('2011 Survey responses'!CX185+'2011 Survey responses'!DB185+'2011 Survey responses'!DF185+'2011 Survey responses'!DJ185)<1,\"\",AVERAGE('2011 Survey responses'!CX185,'2011 Survey responses'!DB185,'2011 Survey responses'!DF185,'2011 Survey responses'!DJ185))","v":2.75},{"$f":"IF(('2011 Survey responses'!CY185+'2011 Survey responses'!DC185+'2011 Survey responses'!DG185+'2011 Survey responses'!DK185)<1,\"\",AVERAGE('2011 Survey responses'!CY185,'2011 Survey responses'!DC185,'2011 Survey responses'!DG185,'2011 Survey responses'!DK185))","v":3.5},{"$f":"IF(('2011 Survey responses'!CZ185+'2011 Survey responses'!DD185+'2011 Survey responses'!DH185+'2011 Survey responses'!DL185)<1,\"\",AVERAGE('2011 Survey responses'!CZ185,'2011 Survey responses'!DD185,'2011 Survey responses'!DH185,'2011 Survey responses'!DL185))","v":2.75},{"$f":"IF('2011 Survey responses'!CW185<0.5,\"\",'2011 Survey responses'!CW185)","v":3},{"$f":"IF('2011 Survey responses'!CX185<0.5,\"\",'2011 Survey responses'!CX185)","v":4},{"$f":"IF('2011 Survey responses'!CY185<0.5,\"\",'2011 Survey responses'!CY185)","v":4},{"$f":"IF('2011 Survey responses'!CZ185<0.5,\"\",'2011 Survey responses'!CZ185)","v":3},{"$f":"IF('2011 Survey responses'!DA185<0.5,\"\",'2011 Survey responses'!DA185)","v":3},{"$f":"IF('2011 Survey responses'!DB185<0.5,\"\",'2011 Survey responses'!DB185)","v":3},{"$f":"IF('2011 Survey responses'!DC185<0.5,\"\",'2011 Survey responses'!DC185)","v":4},{"$f":"IF('2011 Survey responses'!DD185<0.5,\"\",'2011 Survey responses'!DD185)","v":3},{"$f":"IF('2011 Survey responses'!DE185<0.5,\"\",'2011 Survey responses'!DE185)","v":4},{"$f":"IF('2011 Survey responses'!DF185<0.5,\"\",'2011 Survey responses'!DF185)","v":2},{"$f":"IF('2011 Survey responses'!DG185<0.5,\"\",'2011 Survey responses'!DG185)","v":4},{"$f":"IF('2011 Survey responses'!DH185<0.5,\"\",'2011 Survey responses'!DH185)","v":3},{"$f":"IF('2011 Survey responses'!DI185<0.5,\"\",'2011 Survey responses'!DI185)","v":2},{"$f":"IF('2011 Survey responses'!DJ185<0.5,\"\",'2011 Survey responses'!DJ185)","v":2},{"$f":"IF('2011 Survey responses'!DK185<0.5,\"\",'2011 Survey responses'!DK185)","v":2},{"$f":"IF('2011 Survey responses'!DL185<0.5,\"\",'2011 Survey responses'!DL185)","v":2},{"$f":"IF('2011 Survey responses'!DU185=4,4,IF('2011 Survey responses'!DU185=5,4,\"\"))","v":""},{"$f":"IF('2011 Survey responses'!DV185=4,3,IF('2011 Survey responses'!DV185=5,3,\"\"))","v":3},"",{"$f":"IF(CQ185=2,CQ185,IF(CO185=4,CO185,IF(CP185=3,CP185,IF('2011 Survey responses'!GT185=1,1,\"\"))))","v":3},{"$f":"IF('2011 Survey responses'!DO185<0.5,\"\",'2011 Survey responses'!DO185)","v":4},{"$f":"IF('2011 Survey responses'!DP185<0.5,\"\",'2011 Survey responses'!DP185)","v":3},{"$f":"IF('2011 Survey responses'!DQ185<0.5,\"\",'2011 Survey responses'!DQ185)","v":3},{"$f":"IF('2011 Survey responses'!DR185<0.5,\"\",'2011 Survey responses'!DR185)","v":3},{"$f":"IF('2011 Survey responses'!DS185<0.5,\"\",'2011 Survey responses'!DS185)","v":4},{"$f":"IF('2011 Survey responses'!DT185<0.5,\"\",'2011 Survey responses'!DT185)","v":3},{"$f":"IF('2011 Survey responses'!DU185<0.5,\"\",'2011 Survey responses'!DU185)","v":3},{"$f":"IF('2011 Survey responses'!DV185<0.5,\"\",'2011 Survey responses'!DV185)","v":4},{"$f":"IF('2011 Survey responses'!DW185<0.5,\"\",'2011 Survey responses'!DW185)","v":4},{"$f":"IF('2011 Survey responses'!DX185<0.5,\"\",'2011 Survey responses'!DX185)","v":3},{"$f":"IF('2011 Survey responses'!DY185<0.5,\"\",'2011 Survey responses'!DY185)","v":3},{"$f":"IF('2011 Survey responses'!DZ185<0.5,\"\",'2011 Survey responses'!DZ185)","v":3},{"$f":"IF('2011 Survey responses'!EA185<0.5,\"\",'2011 Survey responses'!EA185)","v":4},{"$f":"IF('2011 Survey responses'!EB185<0.5,\"\",'2011 Survey responses'!EB185)","v":3},{"$f":"IF('2011 Survey responses'!EC185<0.5,\"\",'2011 Survey responses'!EC185)","v":3},{"$f":"IF('2011 Survey responses'!ED185<0.5,\"\",'2011 Survey responses'!ED185)","v":3},{"$f":"IF('2011 Survey responses'!EE185<0.5,\"\",'2011 Survey responses'!EE185)","v":4},{"$f":"IF('2011 Survey responses'!EF185<0.5,\"\",'2011 Survey responses'!EF185)","v":3},{"$f":"IF('2011 Survey responses'!EG185<0.5,\"\",'2011 Survey responses'!EG185)","v":3},{"$f":"IF('2011 Survey responses'!EH185<0.5,\"\",'2011 Survey responses'!EH185)","v":4},{"$f":"IF('2011 Survey responses'!EI185<0.5,\"\",'2011 Survey responses'!EI185)","v":4},{"$f":"IF('2011 Survey responses'!EJ185<0.5,\"\",'2011 Survey responses'!EJ185)","v":3},{"$f":"IF('2011 Survey responses'!EK185<0.5,\"\",'2011 Survey responses'!EK185)","v":3},{"$f":"IF('2011 Survey responses'!EL185<0.5,\"\",'2011 Survey responses'!EL185)","v":3},{"$f":"IF('2011 Survey responses'!EM185<0.5,\"\",'2011 Survey responses'!EM185)","v":4},{"$f":"IF('2011 Survey responses'!EN185<0.5,\"\",'2011 Survey responses'!EN185)","v":4},{"$f":"IF('2011 Survey responses'!EO185<0.5,\"\",'2011 Survey responses'!EO185)","v":4},{"$f":"IF('2011 Survey responses'!EP185<0.5,\"\",'2011 Survey responses'!EP185)","v":4},{"$f":"IF(('2011 Survey responses'!EW185+'2011 Survey responses'!EX185)>=2,AVERAGE('2011 Survey responses'!EW185,'2011 Survey responses'!EY185),\"\")","v":4},{"$f":"IF('2011 Survey responses'!EX185<0.5,\"\",'2011 Survey responses'!EX185)","v":4},{"$f":"IF('2011 Survey responses'!EZ185<0.5,\"\",'2011 Survey responses'!EZ185)","v":4},{"$f":"IF('2011 Survey responses'!FB185<0.5,\"\",'2011 Survey responses'!FB185)","v":3},{"$f":"IF('2011 Survey responses'!FD185<0.5,\"\",'2011 Survey responses'!FD185)","v":4},{"$f":"IF('2011 Survey responses'!FC185<0.5,\"\",'2011 Survey responses'!FC185)","v":4},{"$f":"IF(('2011 Survey responses'!EM185+'2011 Survey responses'!EN185)>=2,AVERAGE('2011 Survey responses'!EM185,'2011 Survey responses'!EN185),\"\")","v":4},{"$f":"IF('2011 Survey responses'!ES185<0.5,\"\",'2011 Survey responses'!ES185)","v":4},{"$f":"IF(('2011 Survey responses'!ET185+'2011 Survey responses'!EU185)>=2,AVERAGE('2011 Survey responses'!ET185,'2011 Survey responses'!EU185),\"\")","v":4},{"$f":"IF('2011 Survey responses'!EV185<0.5,\"\",'2011 Survey responses'!EV185)","v":""},{"$f":"IF('2011 Survey responses'!FA185<0.5,\"\",'2011 Survey responses'!FA185)","v":3},{"$f":"IF('2011 Survey responses'!ER185<0.5,\"\",'2011 Survey responses'!ER185)","v":4},{"$f":"IF(('2011 Survey responses'!EO185+'2011 Survey responses'!EP185)>=2,AVERAGE('2011 Survey responses'!EO185,'2011 Survey responses'!EP185),\"\")","v":4},{"$f":"IF('2011 Survey responses'!EQ185<0.5,\"\",'2011 Survey responses'!EQ185)","v":3},{"$f":"IF('2011 Survey responses'!ET185<0.5,\"\",'2011 Survey responses'!ET185)","v":4},{"$f":"IF('2011 Survey responses'!EU185<0.5,\"\",'2011 Survey responses'!EU185)","v":4},{"$f":"IF('2011 Survey responses'!EW185<0.5,\"\",'2011 Survey responses'!EW185)","v":4},{"$f":"IF('2011 Survey responses'!EY185<0.5,\"\",'2011 Survey responses'!EY185)","v":4},{"$f":"IF('2011 Survey responses'!FU185<0.5,\"\",'2011 Survey responses'!FU185)","v":3},{"$f":"IF(('2011 Survey responses'!FL185+'2011 Survey responses'!FM185)>=2,AVERAGE('2011 Survey responses'!FL185,'2011 Survey responses'!FM185),\"\")","v":4},{"$f":"IF(('2011 Survey responses'!FO185+'2011 Survey responses'!FQ185)>=2,AVERAGE('2011 Survey responses'!FO185,'2011 Survey responses'!FQ185),\"\")","v":5},{"$f":"IF('2011 Survey responses'!FJ185<0.5,\"\",'2011 Survey responses'!FJ185)","v":5},{"$f":"IF('2011 Survey responses'!FT185<0.5,\"\",'2011 Survey responses'!FT185)","v":3},{"$f":"IF('2011 Survey responses'!FR185<0.5,\"\",'2011 Survey responses'!FR185)","v":5},{"$f":"IF('2011 Survey responses'!FK185<0.5,\"\",'2011 Survey responses'!FK185)","v":4},{"$f":"IF('2011 Survey responses'!FP185<0.5,\"\",'2011 Survey responses'!FP185)","v":5},{"$f":"IF('2011 Survey responses'!FN185<0.5,\"\",'2011 Survey responses'!FN185)","v":1},{"$f":"IF(('2011 Survey responses'!FE185+'2011 Survey responses'!FF185)>=2,AVERAGE('2011 Survey responses'!FE185,'2011 Survey responses'!FF185),\"\")","v":5},{"$f":"IF('2011 Survey responses'!FS185<0.5,\"\",'2011 Survey responses'!FS185)","v":5},{"$f":"IF('2011 Survey responses'!FV185<0.5,\"\",'2011 Survey responses'!FV185)","v":3},{"$f":"IF(('2011 Survey responses'!FG185+'2011 Survey responses'!FH185)>=2,AVERAGE('2011 Survey responses'!FG185,'2011 Survey responses'!FH185),\"\")","v":4},{"$f":"IF('2011 Survey responses'!FI185<0.5,\"\",'2011 Survey responses'!FI185)","v":3},{"$f":"IF('2011 Survey responses'!FE185<0.5,\"\",'2011 Survey responses'!FE185)","v":5},{"$f":"IF('2011 Survey responses'!FF185<0.5,\"\",'2011 Survey responses'!FF185)","v":5},{"$f":"IF('2011 Survey responses'!FG185<0.5,\"\",'2011 Survey responses'!FG185)","v":4},{"$f":"IF('2011 Survey responses'!FH185<0.5,\"\",'2011 Survey responses'!FH185)","v":4},{"$f":"IF('2011 Survey responses'!FL185<0.5,\"\",'2011 Survey responses'!FL185)","v":4},{"$f":"IF('2011 Survey responses'!FM185<0.5,\"\",'2011 Survey responses'!FM185)","v":4},{"$f":"IF('2011 Survey responses'!FO185<0.5,\"\",'2011 Survey responses'!FO185)","v":5},{"$f":"IF('2011 Survey responses'!FQ185<0.5,\"\",'2011 Survey responses'!FQ185)","v":5}]
["United States of America",{"$f":"IF(SUM(F186)<1,\"\",AVERAGEIF('2011 Survey responses'!B186:CP186,\">1\"))","v":""},{"$f":"IF(SUM(F186)<1,\"\",AVERAGEIF('2011 Survey responses'!B186:AO186,\">1\"))","v":""},{"$f":"IF(SUM(F186)<1,\"\",AVERAGEIF('2011 Survey responses'!B186:BV186,\">1\"))","v":""},{"$f":"IF(SUM(F186)<1,\"\",AVERAGEIF('2011 Survey responses'!V186:BV186,\">1\"))","v":""},{"$f":"IF(SUM('2011 Survey responses'!B186:U186)<1,\"\",(AVERAGEIFS('2011 Survey responses'!B186:U186,'2011 Survey responses'!B186:U186,\">1\")))","v":""},{"$f":"IF(SUM('2011 Survey responses'!B186:H186)<1,\"\",(AVERAGEIFS('2011 Survey responses'!B186:H186,'2011 Survey responses'!B186:H186,\">1\")))","v":""},{"$f":"IF(SUM('2011 Survey responses'!I186:S186)<1,\"\",(AVERAGEIFS('2011 Survey responses'!I186:S186,'2011 Survey responses'!I186:S186,\">1\")))","v":""},{"$f":"IF(SUM('2011 Survey responses'!T186:U186)<2.1,\"\",(AVERAGEIFS('2011 Survey responses'!T186:U186,'2011 Survey responses'!T186:U186,\">1\")))","v":""},{"$f":"IF(SUM('2011 Survey responses'!B186:C186)<2.1,\"\",((SUMIF('2011 Survey responses'!B186:C186,\">1\")+SUMIF('2011 Survey responses'!F186,\">1\"))/(COUNTIF('2011 Survey responses'!B186:C186,\">1\")+COUNTIF('2011 Survey responses'!F186,\">1\"))))","v":""},{"$f":"IF(SUM('2011 Survey responses'!D186:E186)<2.1,\"\",(AVERAGEIFS('2011 Survey responses'!D186:E186,'2011 Survey responses'!D186:E186,\">1\")))","v":""},{"$f":"IF(('2011 Survey responses'!B186+'2011 Survey responses'!D186)<2.1,\"\",((SUMIF('2011 Survey responses'!B186,\">1\")+SUMIF('2011 Survey responses'!D186,\">1\")+SUMIF('2011 Survey responses'!F186,\">1\")+SUMIF('2011 Survey responses'!K186,\">1\"))/(COUNTIF('2011 Survey responses'!B186,\">1\")+COUNTIF('2011 Survey responses'!D186,\">1\")+COUNTIF('2011 Survey responses'!F186,\">1\")+COUNTIF('2011 Survey responses'!K186,\">1\"))))","v":""},{"$f":"IF(SUM('2011 Survey responses'!G186:H186)<2.1,\"\",(AVERAGEIFS('2011 Survey responses'!G186:H186,'2011 Survey responses'!G186:H186,\">1\")))","v":""},{"$f":"IF(SUM('2011 Survey responses'!F186:G186)<1.5,\"\",MAX('2011 Survey responses'!F186,'2011 Survey responses'!G186))","v":""},{"$f":"IF(SUM('2011 Survey responses'!G186:H186)<1,\"\",MAX('2011 Survey responses'!G186,'2011 Survey responses'!H186))","v":""},{"$f":"IF(SUM('2011 Survey responses'!I186:L186)<4.1,\"\",(AVERAGEIFS('2011 Survey responses'!I186:L186,'2011 Survey responses'!I186:L186,\">1\")))","v":""},{"$f":"IF(SUM('2011 Survey responses'!M186:S186)<4.1,\"\",(AVERAGEIFS('2011 Survey responses'!M186:S186,'2011 Survey responses'!M186:S186,\">1\")))","v":""},{"$f":"IF(SUM('2011 Survey responses'!T186:U186)<2.1,\"\",(AVERAGEIFS('2011 Survey responses'!T186:U186,'2011 Survey responses'!T186:U186,\">1\")))","v":""},{"$f":"IF(SUM('2011 Survey responses'!V186:AO186)<1,\"\",(AVERAGEIFS('2011 Survey responses'!V186:AO186,'2011 Survey responses'!V186:AO186,\">1\")))","v":""},{"$f":"IF(SUM('2011 Survey responses'!V186:AA186)<1,\"\",(AVERAGEIFS('2011 Survey responses'!V186:AA186,'2011 Survey responses'!V186:AA186,\">1\")))","v":""},{"$f":"IF(SUM('2011 Survey responses'!AB186:AH186)<1,\"\",(AVERAGEIFS('2011 Survey responses'!AB186:AH186,'2011 Survey responses'!AB186:AH186,\">1\")))","v":""},{"$f":"IF(SUM('2011 Survey responses'!AI186:AO186)<1,\"\",(AVERAGEIFS('2011 Survey responses'!AI186:AO186,'2011 Survey responses'!AI186:AO186,\">1\")))","v":""},{"$f":"IF(('2011 Survey responses'!Y186+'2011 Survey responses'!AI186+'2011 Survey responses'!AK186)<3.1,\"\",((SUMIF('2011 Survey responses'!Y186,\">1\")+SUMIF('2011 Survey responses'!AI186,\">1\")+SUMIF('2011 Survey responses'!AK186,\">1\")+SUMIF('2011 Survey responses'!AM186,\">1\"))/(COUNTIF('2011 Survey responses'!Y186,\">1\")+COUNTIF('2011 Survey responses'!AI186,\">1\")+COUNTIF('2011 Survey responses'!AK186,\">1\")+COUNTIF('2011 Survey responses'!AM186,\">1\"))))","v":""},{"$f":"IF(('2011 Survey responses'!W186)<1.1,\"\",('2011 Survey responses'!W186))","v":""},{"$f":"IF(('2011 Survey responses'!Y186)<1.1,\"\",('2011 Survey responses'!Y186))","v":""},{"$f":"IF(('2011 Survey responses'!Z186)<1.1,\"\",('2011 Survey responses'!Z186))","v":""},{"$f":"IF(('2011 Survey responses'!V186+'2011 Survey responses'!X186+'2011 Survey responses'!AA186)<3.1,\"\",((SUMIF('2011 Survey responses'!V186,\">1\")+SUMIF('2011 Survey responses'!X186,\">1\")+SUMIF('2011 Survey responses'!AA186,\">1\"))/(COUNTIF('2011 Survey responses'!V186,\">1\")+COUNTIF('2011 Survey responses'!X186,\">1\")+COUNTIF('2011 Survey responses'!AA186,\">1\"))))","v":""},{"$f":"IF(('2011 Survey responses'!V186+'2011 Survey responses'!Y186+'2011 Survey responses'!AA186)<3.1,\"\",((SUMIF('2011 Survey responses'!V186,\">1\")+SUMIF('2011 Survey responses'!Y186,\">1\")+SUMIF('2011 Survey responses'!AA186,\">1\"))/(COUNTIF('2011 Survey responses'!V186,\">1\")+COUNTIF('2011 Survey responses'!Y186,\">1\")+COUNTIF('2011 Survey responses'!AA186,\">1\"))))","v":""},{"$f":"IF(SUM('2011 Survey responses'!AB186:AH186)<1,\"\",(AVERAGEIFS('2011 Survey responses'!AB186:AH186,'2011 Survey responses'!AB186:AH186,\">1\")))","v":""},{"$f":"IF(SUM('2011 Survey responses'!AI186:AO186)<7.1,\"\",(AVERAGEIFS('2011 Survey responses'!AI186:AO186,'2011 Survey responses'!AI186:AO186,\">1\")))","v":""},{"$f":"IF(('2011 Survey responses'!AH186)<1.1,\"\",('2011 Survey responses'!AH186))","v":""},{"$f":"IF(SUM('2011 Survey responses'!AP186:BV186)<1,\"\",(AVERAGEIFS('2011 Survey responses'!AP186:BV186,'2011 Survey responses'!AP186:BV186,\">1\")))","v":""},{"$f":"IF(SUM('2011 Survey responses'!AP186:AS186)<4.1,\"\",(AVERAGEIFS('2011 Survey responses'!AP186:AS186,'2011 Survey responses'!AP186:AS186,\">1\")))","v":""},{"$f":"IF(SUM('2011 Survey responses'!AT186:BF186)<1,\"\",(AVERAGEIFS('2011 Survey responses'!AT186:BF186,'2011 Survey responses'!AT186:BF186,\">1\")))","v":""},{"$f":"IF(SUM('2011 Survey responses'!BG186:BO186)<1,\"\",(AVERAGEIFS('2011 Survey responses'!BG186:BO186,'2011 Survey responses'!BG186:BO186,\">1\")))","v":""},{"$f":"IF(SUM('2011 Survey responses'!BP186:BS186)<1,\"\",(AVERAGEIFS('2011 Survey responses'!BP186:BS186,'2011 Survey responses'!BP186:BS186,\">1\")))","v":""},{"$f":"IF(SUM('2011 Survey responses'!BT186:BV186)<3.1,\"\",(AVERAGEIFS('2011 Survey responses'!BT186:BV186,'2011 Survey responses'!BT186:BV186,\">1\")))","v":""},{"$f":"IF(('2011 Survey responses'!AQ186+'2011 Survey responses'!AR186+'2011 Survey responses'!BG186)<3.1,\"\",((SUMIF('2011 Survey responses'!AQ186,\">1\")+SUMIF('2011 Survey responses'!AR186,\">1\")+SUMIF('2011 Survey responses'!BG186,\">1\"))/(COUNTIF('2011 Survey responses'!AQ186,\">1\")+COUNTIF('2011 Survey responses'!AR186,\">1\")+COUNTIF('2011 Survey responses'!BG186,\">1\"))))","v":""},{"$f":"IF(SUM('2011 Survey responses'!AP186:AS186)<4.1,\"\",(AVERAGEIFS('2011 Survey responses'!AP186:AS186,'2011 Survey responses'!AP186:AS186,\">1\")))","v":""},{"$f":"IF(('2011 Survey responses'!AU186+'2011 Survey responses'!AX186+'2011 Survey responses'!BA186+'2011 Survey responses'!BC186+'2011 Survey responses'!BD186)<5.1,\"\",(SUMIF('2011 Survey responses'!AU186,\">1\")+SUMIF('2011 Survey responses'!AX186,\">1\")+SUMIF('2011 Survey responses'!BA186,\">1\")+SUMIF('2011 Survey responses'!BC186,\">1\")+SUMIF('2011 Survey responses'!BD186,\">1\"))/(COUNTIF('2011 Survey responses'!AU186,\">1\")+COUNTIF('2011 Survey responses'!AX186,\">1\")+COUNTIF('2011 Survey responses'!BA186,\">1\")+COUNTIF('2011 Survey responses'!BC186,\">1\")+COUNTIF('2011 Survey responses'!BD186,\">1\")))","v":""},{"$f":"IF(('2011 Survey responses'!AT186)<1.1,\"\",('2011 Survey responses'!AT186))","v":""},{"$f":"IF(SUM('2011 Survey responses'!AV186:AW186)<2.1,\"\",(AVERAGEIFS('2011 Survey responses'!AV186:AW186,'2011 Survey responses'!AV186:AW186,\">1\")))","v":""},{"$f":"IF(('2011 Survey responses'!AW186+'2011 Survey responses'!AY186)<2.1,\"\",(SUMIF('2011 Survey responses'!AW186,\">1\")+SUMIF('2011 Survey responses'!AY186,\">1\"))/(COUNTIF('2011 Survey responses'!AW186,\">1\")+COUNTIF('2011 Survey responses'!AY186,\">1\")))","v":""},{"$f":"IF(('2011 Survey responses'!AZ186)<1.1,\"\",('2011 Survey responses'!AZ186))","v":""},null,null,null,null,{"$f":"IF(('2011 Survey responses'!BE186)<1.1,\"\",('2011 Survey responses'!BE186))","v":""},{"$f":"IF(('2011 Survey responses'!AY186+'2011 Survey responses'!BB186+'2011 Survey responses'!BF186)<3.1,\"\",(SUMIF('2011 Survey responses'!AY186,\">1\")+SUMIF('2011 Survey responses'!BB186,\">1\")+SUMIF('2011 Survey responses'!BF186,\">1\"))/(COUNTIF('2011 Survey responses'!AY186,\">1\")+COUNTIF('2011 Survey responses'!BB186,\">1\")+COUNTIF('2011 Survey responses'!BF186,\">1\")))","v":""},"",{"$f":"IF(SUM('2011 Survey responses'!BT186:BV186)<3.1,\"\",(AVERAGEIFS('2011 Survey responses'!BT186:BV186,'2011 Survey responses'!BT186:BV186,\">1\")))","v":""},{"$f":"IF(SUM('2011 Survey responses'!BW186:CP186)<1,\"\",(AVERAGEIFS('2011 Survey responses'!BW186:CP186,'2011 Survey responses'!BW186:CP186,\">1\")))","v":""},{"$f":"IF(SUM('2011 Survey responses'!BW186:CF186)<1,\"\",(AVERAGEIFS('2011 Survey responses'!BW186:CF186,'2011 Survey responses'!BW186:CF186,\">1\")))","v":""},{"$f":"IF(SUM('2011 Survey responses'!CG186:CP186)<1,\"\",(AVERAGEIFS('2011 Survey responses'!CG186:CP186,'2011 Survey responses'!CG186:CP186,\">1\")))","v":""},{"$f":"IF(SUM('2011 Survey responses'!BX186:CF186)<1,\"\",(AVERAGEIFS('2011 Survey responses'!BX186:CF186,'2011 Survey responses'!BX186:CF186,\">1\")))","v":""},{"$f":"IF(SUM('2011 Survey responses'!CH186:CP186)<1,\"\",(AVERAGEIFS('2011 Survey responses'!CH186:CP186,'2011 Survey responses'!CH186:CP186,\">1\")))","v":""},{"$f":"IF(SUM('2011 Survey responses'!BW186:CP186)<1,\"\",(AVERAGEIFS('2011 Survey responses'!BW186:CP186,'2011 Survey responses'!BW186:CP186,\">1\")))","v":""},{"$f":"IF(('2011 Survey responses'!BW186+'2011 Survey responses'!CG186)<2.1,\"\",(SUMIF('2011 Survey responses'!BW186,\">1\")+SUMIF('2011 Survey responses'!CG186,\">1\"))/(COUNTIF('2011 Survey responses'!BW186,\">1\")+COUNTIF('2011 Survey responses'!CG186,\">1\")))","v":""},{"$f":"IF(('2011 Survey responses'!BX186+'2011 Survey responses'!CH186)<2.1,\"\",(SUMIF('2011 Survey responses'!BX186,\">1\")+SUMIF('2011 Survey responses'!CH186,\">1\"))/(COUNTIF('2011 Survey responses'!BX186,\">1\")+COUNTIF('2011 Survey responses'!CH186,\">1\")))","v":""},{"$f":"IF(('2011 Survey responses'!BY186+'2011 Survey responses'!CI186)<2.1,\"\",(SUMIF('2011 Survey responses'!BY186,\">1\")+SUMIF('2011 Survey responses'!CI186,\">1\"))/(COUNTIF('2011 Survey responses'!BY186,\">1\")+COUNTIF('2011 Survey responses'!CI186,\">1\")))","v":""},{"$f":"IF('2011 Survey responses'!CQ186<0.5,\"\",'2011 Survey responses'!CQ186)","v":""},{"$f":"IF('2011 Survey responses'!CR186<0.5,\"\",'2011 Survey responses'!CR186)","v":""},{"$f":"IF('2011 Survey responses'!CS186<0.5,\"\",'2011 Survey responses'!CS186)","v":""},{"$f":"IF('2011 Survey responses'!CT186<0.5,\"\",'2011 Survey responses'!CT186)","v":""},{"$f":"IF('2011 Survey responses'!CU186<0.5,\"\",'2011 Survey responses'!CU186)","v":""},{"$f":"IF('2011 Survey responses'!CV186<0.5,\"\",'2011 Survey responses'!CV186)","v":""},{"$f":"IF(SUM('2011 Survey responses'!CW186:DL186)<1,\"\",(AVERAGE('2011 Survey responses'!CW186:DL186)))","v":""},{"$f":"IF(SUM('2011 Survey responses'!CW186:CZ186)<1,\"\",(AVERAGE('2011 Survey responses'!CW186:CZ186)))","v":""},{"$f":"IF(SUM('2011 Survey responses'!DA186:DD186)<1,\"\",(AVERAGE('2011 Survey responses'!DA186:DD186)))","v":""},{"$f":"IF(SUM('2011 Survey responses'!DE186:DH186)<1,\"\",(AVERAGE('2011 Survey responses'!DE186:DH186)))","v":""},{"$f":"IF(SUM('2011 Survey responses'!DI186:DL186)<1,\"\",(AVERAGE('2011 Survey responses'!DI186:DL186)))","v":""},{"$f":"IF(('2011 Survey responses'!CW186+'2011 Survey responses'!DA186+'2011 Survey responses'!DE186+'2011 Survey responses'!DI186)<1,\"\",AVERAGE('2011 Survey responses'!CW186,'2011 Survey responses'!DA186,'2011 Survey responses'!DE186,'2011 Survey responses'!DI186))","v":""},{"$f":"IF(('2011 Survey responses'!CX186+'2011 Survey responses'!DB186+'2011 Survey responses'!DF186+'2011 Survey responses'!DJ186)<1,\"\",AVERAGE('2011 Survey responses'!CX186,'2011 Survey responses'!DB186,'2011 Survey responses'!DF186,'2011 Survey responses'!DJ186))","v":""},{"$f":"IF(('2011 Survey responses'!CY186+'2011 Survey responses'!DC186+'2011 Survey responses'!DG186+'2011 Survey responses'!DK186)<1,\"\",AVERAGE('2011 Survey responses'!CY186,'2011 Survey responses'!DC186,'2011 Survey responses'!DG186,'2011 Survey responses'!DK186))","v":""},{"$f":"IF(('2011 Survey responses'!CZ186+'2011 Survey responses'!DD186+'2011 Survey responses'!DH186+'2011 Survey responses'!DL186)<1,\"\",AVERAGE('2011 Survey responses'!CZ186,'2011 Survey responses'!DD186,'2011 Survey responses'!DH186,'2011 Survey responses'!DL186))","v":""},{"$f":"IF('2011 Survey responses'!CW186<0.5,\"\",'2011 Survey responses'!CW186)","v":""},{"$f":"IF('2011 Survey responses'!CX186<0.5,\"\",'2011 Survey responses'!CX186)","v":""},{"$f":"IF('2011 Survey responses'!CY186<0.5,\"\",'2011 Survey responses'!CY186)","v":""},{"$f":"IF('2011 Survey responses'!CZ186<0.5,\"\",'2011 Survey responses'!CZ186)","v":""},{"$f":"IF('2011 Survey responses'!DA186<0.5,\"\",'2011 Survey responses'!DA186)","v":""},{"$f":"IF('2011 Survey responses'!DB186<0.5,\"\",'2011 Survey responses'!DB186)","v":""},{"$f":"IF('2011 Survey responses'!DC186<0.5,\"\",'2011 Survey responses'!DC186)","v":""},{"$f":"IF('2011 Survey responses'!DD186<0.5,\"\",'2011 Survey responses'!DD186)","v":""},{"$f":"IF('2011 Survey responses'!DE186<0.5,\"\",'2011 Survey responses'!DE186)","v":""},{"$f":"IF('2011 Survey responses'!DF186<0.5,\"\",'2011 Survey responses'!DF186)","v":""},{"$f":"IF('2011 Survey responses'!DG186<0.5,\"\",'2011 Survey responses'!DG186)","v":""},{"$f":"IF('2011 Survey responses'!DH186<0.5,\"\",'2011 Survey responses'!DH186)","v":""},{"$f":"IF('2011 Survey responses'!DI186<0.5,\"\",'2011 Survey responses'!DI186)","v":""},{"$f":"IF('2011 Survey responses'!DJ186<0.5,\"\",'2011 Survey responses'!DJ186)","v":""},{"$f":"IF('2011 Survey responses'!DK186<0.5,\"\",'2011 Survey responses'!DK186)","v":""},{"$f":"IF('2011 Survey responses'!DL186<0.5,\"\",'2011 Survey responses'!DL186)","v":""},{"$f":"IF('2011 Survey responses'!DU186=4,4,IF('2011 Survey responses'!DU186=5,4,\"\"))","v":""},{"$f":"IF('2011 Survey responses'!DV186=4,3,IF('2011 Survey responses'!DV186=5,3,\"\"))","v":""},"",{"$f":"IF(CQ186=2,CQ186,IF(CO186=4,CO186,IF(CP186=3,CP186,IF('2011 Survey responses'!GT186=1,1,\"\"))))","v":""},{"$f":"IF('2011 Survey responses'!DO186<0.5,\"\",'2011 Survey responses'!DO186)","v":""},{"$f":"IF('2011 Survey responses'!DP186<0.5,\"\",'2011 Survey responses'!DP186)","v":""},{"$f":"IF('2011 Survey responses'!DQ186<0.5,\"\",'2011 Survey responses'!DQ186)","v":""},{"$f":"IF('2011 Survey responses'!DR186<0.5,\"\",'2011 Survey responses'!DR186)","v":""},{"$f":"IF('2011 Survey responses'!DS186<0.5,\"\",'2011 Survey responses'!DS186)","v":""},{"$f":"IF('2011 Survey responses'!DT186<0.5,\"\",'2011 Survey responses'!DT186)","v":""},{"$f":"IF('2011 Survey responses'!DU186<0.5,\"\",'2011 Survey responses'!DU186)","v":""},{"$f":"IF('2011 Survey responses'!DV186<0.5,\"\",'2011 Survey responses'!DV186)","v":""},{"$f":"IF('2011 Survey responses'!DW186<0.5,\"\",'2011 Survey responses'!DW186)","v":""},{"$f":"IF('2011 Survey responses'!DX186<0.5,\"\",'2011 Survey responses'!DX186)","v":""},{"$f":"IF('2011 Survey responses'!DY186<0.5,\"\",'2011 Survey responses'!DY186)","v":""},{"$f":"IF('2011 Survey responses'!DZ186<0.5,\"\",'2011 Survey responses'!DZ186)","v":""},{"$f":"IF('2011 Survey responses'!EA186<0.5,\"\",'2011 Survey responses'!EA186)","v":""},{"$f":"IF('2011 Survey responses'!EB186<0.5,\"\",'2011 Survey responses'!EB186)","v":""},{"$f":"IF('2011 Survey responses'!EC186<0.5,\"\",'2011 Survey responses'!EC186)","v":""},{"$f":"IF('2011 Survey responses'!ED186<0.5,\"\",'2011 Survey responses'!ED186)","v":""},{"$f":"IF('2011 Survey responses'!EE186<0.5,\"\",'2011 Survey responses'!EE186)","v":""},{"$f":"IF('2011 Survey responses'!EF186<0.5,\"\",'2011 Survey responses'!EF186)","v":""},{"$f":"IF('2011 Survey responses'!EG186<0.5,\"\",'2011 Survey responses'!EG186)","v":""},{"$f":"IF('2011 Survey responses'!EH186<0.5,\"\",'2011 Survey responses'!EH186)","v":""},{"$f":"IF('2011 Survey responses'!EI186<0.5,\"\",'2011 Survey responses'!EI186)","v":""},{"$f":"IF('2011 Survey responses'!EJ186<0.5,\"\",'2011 Survey responses'!EJ186)","v":""},{"$f":"IF('2011 Survey responses'!EK186<0.5,\"\",'2011 Survey responses'!EK186)","v":""},{"$f":"IF('2011 Survey responses'!EL186<0.5,\"\",'2011 Survey responses'!EL186)","v":""},{"$f":"IF('2011 Survey responses'!EM186<0.5,\"\",'2011 Survey responses'!EM186)","v":""},{"$f":"IF('2011 Survey responses'!EN186<0.5,\"\",'2011 Survey responses'!EN186)","v":""},{"$f":"IF('2011 Survey responses'!EO186<0.5,\"\",'2011 Survey responses'!EO186)","v":""},{"$f":"IF('2011 Survey responses'!EP186<0.5,\"\",'2011 Survey responses'!EP186)","v":""},{"$f":"IF(('2011 Survey responses'!EW186+'2011 Survey responses'!EX186)>=2,AVERAGE('2011 Survey responses'!EW186,'2011 Survey responses'!EY186),\"\")","v":""},{"$f":"IF('2011 Survey responses'!EX186<0.5,\"\",'2011 Survey responses'!EX186)","v":""},{"$f":"IF('2011 Survey responses'!EZ186<0.5,\"\",'2011 Survey responses'!EZ186)","v":""},{"$f":"IF('2011 Survey responses'!FB186<0.5,\"\",'2011 Survey responses'!FB186)","v":""},{"$f":"IF('2011 Survey responses'!FD186<0.5,\"\",'2011 Survey responses'!FD186)","v":""},{"$f":"IF('2011 Survey responses'!FC186<0.5,\"\",'2011 Survey responses'!FC186)","v":""},{"$f":"IF(('2011 Survey responses'!EM186+'2011 Survey responses'!EN186)>=2,AVERAGE('2011 Survey responses'!EM186,'2011 Survey responses'!EN186),\"\")","v":""},{"$f":"IF('2011 Survey responses'!ES186<0.5,\"\",'2011 Survey responses'!ES186)","v":""},{"$f":"IF(('2011 Survey responses'!ET186+'2011 Survey responses'!EU186)>=2,AVERAGE('2011 Survey responses'!ET186,'2011 Survey responses'!EU186),\"\")","v":""},{"$f":"IF('2011 Survey responses'!EV186<0.5,\"\",'2011 Survey responses'!EV186)","v":""},{"$f":"IF('2011 Survey responses'!FA186<0.5,\"\",'2011 Survey responses'!FA186)","v":""},{"$f":"IF('2011 Survey responses'!ER186<0.5,\"\",'2011 Survey responses'!ER186)","v":""},{"$f":"IF(('2011 Survey responses'!EO186+'2011 Survey responses'!EP186)>=2,AVERAGE('2011 Survey responses'!EO186,'2011 Survey responses'!EP186),\"\")","v":""},{"$f":"IF('2011 Survey responses'!EQ186<0.5,\"\",'2011 Survey responses'!EQ186)","v":""},{"$f":"IF('2011 Survey responses'!ET186<0.5,\"\",'2011 Survey responses'!ET186)","v":""},{"$f":"IF('2011 Survey responses'!EU186<0.5,\"\",'2011 Survey responses'!EU186)","v":""},{"$f":"IF('2011 Survey responses'!EW186<0.5,\"\",'2011 Survey responses'!EW186)","v":""},{"$f":"IF('2011 Survey responses'!EY186<0.5,\"\",'2011 Survey responses'!EY186)","v":""},{"$f":"IF('2011 Survey responses'!FU186<0.5,\"\",'2011 Survey responses'!FU186)","v":""},{"$f":"IF(('2011 Survey responses'!FL186+'2011 Survey responses'!FM186)>=2,AVERAGE('2011 Survey responses'!FL186,'2011 Survey responses'!FM186),\"\")","v":""},{"$f":"IF(('2011 Survey responses'!FO186+'2011 Survey responses'!FQ186)>=2,AVERAGE('2011 Survey responses'!FO186,'2011 Survey responses'!FQ186),\"\")","v":""},{"$f":"IF('2011 Survey responses'!FJ186<0.5,\"\",'2011 Survey responses'!FJ186)","v":""},{"$f":"IF('2011 Survey responses'!FT186<0.5,\"\",'2011 Survey responses'!FT186)","v":""},{"$f":"IF('2011 Survey responses'!FR186<0.5,\"\",'2011 Survey responses'!FR186)","v":""},{"$f":"IF('2011 Survey responses'!FK186<0.5,\"\",'2011 Survey responses'!FK186)","v":""},{"$f":"IF('2011 Survey responses'!FP186<0.5,\"\",'2011 Survey responses'!FP186)","v":""},{"$f":"IF('2011 Survey responses'!FN186<0.5,\"\",'2011 Survey responses'!FN186)","v":""},{"$f":"IF(('2011 Survey responses'!FE186+'2011 Survey responses'!FF186)>=2,AVERAGE('2011 Survey responses'!FE186,'2011 Survey responses'!FF186),\"\")","v":""},{"$f":"IF('2011 Survey responses'!FS186<0.5,\"\",'2011 Survey responses'!FS186)","v":""},{"$f":"IF('2011 Survey responses'!FV186<0.5,\"\",'2011 Survey responses'!FV186)","v":""},{"$f":"IF(('2011 Survey responses'!FG186+'2011 Survey responses'!FH186)>=2,AVERAGE('2011 Survey responses'!FG186,'2011 Survey responses'!FH186),\"\")","v":""},{"$f":"IF('2011 Survey responses'!FI186<0.5,\"\",'2011 Survey responses'!FI186)","v":""},{"$f":"IF('2011 Survey responses'!FE186<0.5,\"\",'2011 Survey responses'!FE186)","v":""},{"$f":"IF('2011 Survey responses'!FF186<0.5,\"\",'2011 Survey responses'!FF186)","v":""},{"$f":"IF('2011 Survey responses'!FG186<0.5,\"\",'2011 Survey responses'!FG186)","v":""},{"$f":"IF('2011 Survey responses'!FH186<0.5,\"\",'2011 Survey responses'!FH186)","v":""},{"$f":"IF('2011 Survey responses'!FL186<0.5,\"\",'2011 Survey responses'!FL186)","v":""},{"$f":"IF('2011 Survey responses'!FM186<0.5,\"\",'2011 Survey responses'!FM186)","v":""},{"$f":"IF('2011 Survey responses'!FO186<0.5,\"\",'2011 Survey responses'!FO186)","v":""},{"$f":"IF('2011 Survey responses'!FQ186<0.5,\"\",'2011 Survey responses'!FQ186)","v":""}]
["Uruguay",{"$f":"IF(SUM(F187)<1,\"\",AVERAGEIF('2011 Survey responses'!B187:CP187,\">1\"))","v":4.3125},{"$f":"IF(SUM(F187)<1,\"\",AVERAGEIF('2011 Survey responses'!B187:AO187,\">1\"))","v":4.5},{"$f":"IF(SUM(F187)<1,\"\",AVERAGEIF('2011 Survey responses'!B187:BV187,\">1\"))","v":4.2769230769230768},{"$f":"IF(SUM(F187)<1,\"\",AVERAGEIF('2011 Survey responses'!V187:BV187,\">1\"))","v":4.1428571428571432},{"$f":"IF(SUM('2011 Survey responses'!B187:U187)<1,\"\",(AVERAGEIFS('2011 Survey responses'!B187:U187,'2011 Survey responses'!B187:U187,\">1\")))","v":4.6875},{"$f":"IF(SUM('2011 Survey responses'!B187:H187)<1,\"\",(AVERAGEIFS('2011 Survey responses'!B187:H187,'2011 Survey responses'!B187:H187,\">1\")))","v":5.5},{"$f":"IF(SUM('2011 Survey responses'!I187:S187)<1,\"\",(AVERAGEIFS('2011 Survey responses'!I187:S187,'2011 Survey responses'!I187:S187,\">1\")))","v":4.3},{"$f":"IF(SUM('2011 Survey responses'!T187:U187)<2.1,\"\",(AVERAGEIFS('2011 Survey responses'!T187:U187,'2011 Survey responses'!T187:U187,\">1\")))","v":5},{"$f":"IF(SUM('2011 Survey responses'!B187:C187)<2.1,\"\",((SUMIF('2011 Survey responses'!B187:C187,\">1\")+SUMIF('2011 Survey responses'!F187,\">1\"))/(COUNTIF('2011 Survey responses'!B187:C187,\">1\")+COUNTIF('2011 Survey responses'!F187,\">1\"))))","v":5},{"$f":"IF(SUM('2011 Survey responses'!D187:E187)<2.1,\"\",(AVERAGEIFS('2011 Survey responses'!D187:E187,'2011 Survey responses'!D187:E187,\">1\")))","v":6},{"$f":"IF(('2011 Survey responses'!B187+'2011 Survey responses'!D187)<2.1,\"\",((SUMIF('2011 Survey responses'!B187,\">1\")+SUMIF('2011 Survey responses'!D187,\">1\")+SUMIF('2011 Survey responses'!F187,\">1\")+SUMIF('2011 Survey responses'!K187,\">1\"))/(COUNTIF('2011 Survey responses'!B187,\">1\")+COUNTIF('2011 Survey responses'!D187,\">1\")+COUNTIF('2011 Survey responses'!F187,\">1\")+COUNTIF('2011 Survey responses'!K187,\">1\"))))","v":5.25},{"$f":"IF(SUM('2011 Survey responses'!G187:H187)<2.1,\"\",(AVERAGEIFS('2011 Survey responses'!G187:H187,'2011 Survey responses'!G187:H187,\">1\")))","v":6},{"$f":"IF(SUM('2011 Survey responses'!F187:G187)<1.5,\"\",MAX('2011 Survey responses'!F187,'2011 Survey responses'!G187))","v":5},{"$f":"IF(SUM('2011 Survey responses'!G187:H187)<1,\"\",MAX('2011 Survey responses'!G187,'2011 Survey responses'!H187))","v":6},{"$f":"IF(SUM('2011 Survey responses'!I187:L187)<4.1,\"\",(AVERAGEIFS('2011 Survey responses'!I187:L187,'2011 Survey responses'!I187:L187,\">1\")))","v":5},{"$f":"IF(SUM('2011 Survey responses'!M187:S187)<4.1,\"\",(AVERAGEIFS('2011 Survey responses'!M187:S187,'2011 Survey responses'!M187:S187,\">1\")))","v":3.8333333333333335},{"$f":"IF(SUM('2011 Survey responses'!T187:U187)<2.1,\"\",(AVERAGEIFS('2011 Survey responses'!T187:U187,'2011 Survey responses'!T187:U187,\">1\")))","v":5},{"$f":"IF(SUM('2011 Survey responses'!V187:AO187)<1,\"\",(AVERAGEIFS('2011 Survey responses'!V187:AO187,'2011 Survey responses'!V187:AO187,\">1\")))","v":4.333333333333333},{"$f":"IF(SUM('2011 Survey responses'!V187:AA187)<1,\"\",(AVERAGEIFS('2011 Survey responses'!V187:AA187,'2011 Survey responses'!V187:AA187,\">1\")))","v":4},{"$f":"IF(SUM('2011 Survey responses'!AB187:AH187)<1,\"\",(AVERAGEIFS('2011 Survey responses'!AB187:AH187,'2011 Survey responses'!AB187:AH187,\">1\")))","v":5},{"$f":"IF(SUM('2011 Survey responses'!AI187:AO187)<1,\"\",(AVERAGEIFS('2011 Survey responses'!AI187:AO187,'2011 Survey responses'!AI187:AO187,\">1\")))","v":3.8},{"$f":"IF(('2011 Survey responses'!Y187+'2011 Survey responses'!AI187+'2011 Survey responses'!AK187)<3.1,\"\",((SUMIF('2011 Survey responses'!Y187,\">1\")+SUMIF('2011 Survey responses'!AI187,\">1\")+SUMIF('2011 Survey responses'!AK187,\">1\")+SUMIF('2011 Survey responses'!AM187,\">1\"))/(COUNTIF('2011 Survey responses'!Y187,\">1\")+COUNTIF('2011 Survey responses'!AI187,\">1\")+COUNTIF('2011 Survey responses'!AK187,\">1\")+COUNTIF('2011 Survey responses'!AM187,\">1\"))))","v":3.75},{"$f":"IF(('2011 Survey responses'!W187)<1.1,\"\",('2011 Survey responses'!W187))","v":3},{"$f":"IF(('2011 Survey responses'!Y187)<1.1,\"\",('2011 Survey responses'!Y187))","v":5},{"$f":"IF(('2011 Survey responses'!Z187)<1.1,\"\",('2011 Survey responses'!Z187))","v":5},{"$f":"IF(('2011 Survey responses'!V187+'2011 Survey responses'!X187+'2011 Survey responses'!AA187)<3.1,\"\",((SUMIF('2011 Survey responses'!V187,\">1\")+SUMIF('2011 Survey responses'!X187,\">1\")+SUMIF('2011 Survey responses'!AA187,\">1\"))/(COUNTIF('2011 Survey responses'!V187,\">1\")+COUNTIF('2011 Survey responses'!X187,\">1\")+COUNTIF('2011 Survey responses'!AA187,\">1\"))))","v":3.6666666666666665},{"$f":"IF(('2011 Survey responses'!V187+'2011 Survey responses'!Y187+'2011 Survey responses'!AA187)<3.1,\"\",((SUMIF('2011 Survey responses'!V187,\">1\")+SUMIF('2011 Survey responses'!Y187,\">1\")+SUMIF('2011 Survey responses'!AA187,\">1\"))/(COUNTIF('2011 Survey responses'!V187,\">1\")+COUNTIF('2011 Survey responses'!Y187,\">1\")+COUNTIF('2011 Survey responses'!AA187,\">1\"))))","v":4.666666666666667},{"$f":"IF(SUM('2011 Survey responses'!AB187:AH187)<1,\"\",(AVERAGEIFS('2011 Survey responses'!AB187:AH187,'2011 Survey responses'!AB187:AH187,\">1\")))","v":5},{"$f":"IF(SUM('2011 Survey responses'!AI187:AO187)<7.1,\"\",(AVERAGEIFS('2011 Survey responses'!AI187:AO187,'2011 Survey responses'!AI187:AO187,\">1\")))","v":3.8},{"$f":"IF(('2011 Survey responses'!AH187)<1.1,\"\",('2011 Survey responses'!AH187))","v":5},{"$f":"IF(SUM('2011 Survey responses'!AP187:BV187)<1,\"\",(AVERAGEIFS('2011 Survey responses'!AP187:BV187,'2011 Survey responses'!AP187:BV187,\">1\")))","v":4.032258064516129},{"$f":"IF(SUM('2011 Survey responses'!AP187:AS187)<4.1,\"\",(AVERAGEIFS('2011 Survey responses'!AP187:AS187,'2011 Survey responses'!AP187:AS187,\">1\")))","v":4.25},{"$f":"IF(SUM('2011 Survey responses'!AT187:BF187)<1,\"\",(AVERAGEIFS('2011 Survey responses'!AT187:BF187,'2011 Survey responses'!AT187:BF187,\">1\")))","v":4.083333333333333},{"$f":"IF(SUM('2011 Survey responses'!BG187:BO187)<1,\"\",(AVERAGEIFS('2011 Survey responses'!BG187:BO187,'2011 Survey responses'!BG187:BO187,\">1\")))","v":4.4444444444444446},{"$f":"IF(SUM('2011 Survey responses'!BP187:BS187)<1,\"\",(AVERAGEIFS('2011 Survey responses'!BP187:BS187,'2011 Survey responses'!BP187:BS187,\">1\")))","v":3.75},{"$f":"IF(SUM('2011 Survey responses'!BT187:BV187)<3.1,\"\",(AVERAGEIFS('2011 Survey responses'!BT187:BV187,'2011 Survey responses'!BT187:BV187,\">1\")))","v":2},{"$f":"IF(('2011 Survey responses'!AQ187+'2011 Survey responses'!AR187+'2011 Survey responses'!BG187)<3.1,\"\",((SUMIF('2011 Survey responses'!AQ187,\">1\")+SUMIF('2011 Survey responses'!AR187,\">1\")+SUMIF('2011 Survey responses'!BG187,\">1\"))/(COUNTIF('2011 Survey responses'!AQ187,\">1\")+COUNTIF('2011 Survey responses'!AR187,\">1\")+COUNTIF('2011 Survey responses'!BG187,\">1\"))))","v":5.666666666666667},{"$f":"IF(SUM('2011 Survey responses'!AP187:AS187)<4.1,\"\",(AVERAGEIFS('2011 Survey responses'!AP187:AS187,'2011 Survey responses'!AP187:AS187,\">1\")))","v":4.25},{"$f":"IF(('2011 Survey responses'!AU187+'2011 Survey responses'!AX187+'2011 Survey responses'!BA187+'2011 Survey responses'!BC187+'2011 Survey responses'!BD187)<5.1,\"\",(SUMIF('2011 Survey responses'!AU187,\">1\")+SUMIF('2011 Survey responses'!AX187,\">1\")+SUMIF('2011 Survey responses'!BA187,\">1\")+SUMIF('2011 Survey responses'!BC187,\">1\")+SUMIF('2011 Survey responses'!BD187,\">1\"))/(COUNTIF('2011 Survey responses'!AU187,\">1\")+COUNTIF('2011 Survey responses'!AX187,\">1\")+COUNTIF('2011 Survey responses'!BA187,\">1\")+COUNTIF('2011 Survey responses'!BC187,\">1\")+COUNTIF('2011 Survey responses'!BD187,\">1\")))","v":4.25},{"$f":"IF(('2011 Survey responses'!AT187)<1.1,\"\",('2011 Survey responses'!AT187))","v":2},{"$f":"IF(SUM('2011 Survey responses'!AV187:AW187)<2.1,\"\",(AVERAGEIFS('2011 Survey responses'!AV187:AW187,'2011 Survey responses'!AV187:AW187,\">1\")))","v":5},{"$f":"IF(('2011 Survey responses'!AW187+'2011 Survey responses'!AY187)<2.1,\"\",(SUMIF('2011 Survey responses'!AW187,\">1\")+SUMIF('2011 Survey responses'!AY187,\">1\"))/(COUNTIF('2011 Survey responses'!AW187,\">1\")+COUNTIF('2011 Survey responses'!AY187,\">1\")))","v":4},{"$f":"IF(('2011 Survey responses'!AZ187)<1.1,\"\",('2011 Survey responses'!AZ187))","v":5},5,1,2,1,{"$f":"IF(('2011 Survey responses'!BE187)<1.1,\"\",('2011 Survey responses'!BE187))","v":5},{"$f":"IF(('2011 Survey responses'!AY187+'2011 Survey responses'!BB187+'2011 Survey responses'!BF187)<3.1,\"\",(SUMIF('2011 Survey responses'!AY187,\">1\")+SUMIF('2011 Survey responses'!BB187,\">1\")+SUMIF('2011 Survey responses'!BF187,\">1\"))/(COUNTIF('2011 Survey responses'!AY187,\">1\")+COUNTIF('2011 Survey responses'!BB187,\">1\")+COUNTIF('2011 Survey responses'!BF187,\">1\")))","v":3.3333333333333335},4.0972222222222223,{"$f":"IF(SUM('2011 Survey responses'!BT187:BV187)<3.1,\"\",(AVERAGEIFS('2011 Survey responses'!BT187:BV187,'2011 Survey responses'!BT187:BV187,\">1\")))","v":2},{"$f":"IF(SUM('2011 Survey responses'!BW187:CP187)<1,\"\",(AVERAGEIFS('2011 Survey responses'!BW187:CP187,'2011 Survey responses'!BW187:CP187,\">1\")))","v":4.4666666666666668},{"$f":"IF(SUM('2011 Survey responses'!BW187:CF187)<1,\"\",(AVERAGEIFS('2011 Survey responses'!BW187:CF187,'2011 Survey responses'!BW187:CF187,\">1\")))","v":4.5555555555555554},{"$f":"IF(SUM('2011 Survey responses'!CG187:CP187)<1,\"\",(AVERAGEIFS('2011 Survey responses'!CG187:CP187,'2011 Survey responses'!CG187:CP187,\">1\")))","v":4.333333333333333},{"$f":"IF(SUM('2011 Survey responses'!BX187:CF187)<1,\"\",(AVERAGEIFS('2011 Survey responses'!BX187:CF187,'2011 Survey responses'!BX187:CF187,\">1\")))","v":4.625},{"$f":"IF(SUM('2011 Survey responses'!CH187:CP187)<1,\"\",(AVERAGEIFS('2011 Survey responses'!CH187:CP187,'2011 Survey responses'!CH187:CP187,\">1\")))","v":4.333333333333333},{"$f":"IF(SUM('2011 Survey responses'!BW187:CP187)<1,\"\",(AVERAGEIFS('2011 Survey responses'!BW187:CP187,'2011 Survey responses'!BW187:CP187,\">1\")))","v":4.4666666666666668},{"$f":"IF(('2011 Survey responses'!BW187+'2011 Survey responses'!CG187)<2.1,\"\",(SUMIF('2011 Survey responses'!BW187,\">1\")+SUMIF('2011 Survey responses'!CG187,\">1\"))/(COUNTIF('2011 Survey responses'!BW187,\">1\")+COUNTIF('2011 Survey responses'!CG187,\">1\")))","v":4},{"$f":"IF(('2011 Survey responses'!BX187+'2011 Survey responses'!CH187)<2.1,\"\",(SUMIF('2011 Survey responses'!BX187,\">1\")+SUMIF('2011 Survey responses'!CH187,\">1\"))/(COUNTIF('2011 Survey responses'!BX187,\">1\")+COUNTIF('2011 Survey responses'!CH187,\">1\")))","v":5},{"$f":"IF(('2011 Survey responses'!BY187+'2011 Survey responses'!CI187)<2.1,\"\",(SUMIF('2011 Survey responses'!BY187,\">1\")+SUMIF('2011 Survey responses'!CI187,\">1\"))/(COUNTIF('2011 Survey responses'!BY187,\">1\")+COUNTIF('2011 Survey responses'!CI187,\">1\")))","v":6},{"$f":"IF('2011 Survey responses'!CQ187<0.5,\"\",'2011 Survey responses'!CQ187)","v":4},{"$f":"IF('2011 Survey responses'!CR187<0.5,\"\",'2011 Survey responses'!CR187)","v":4},{"$f":"IF('2011 Survey responses'!CS187<0.5,\"\",'2011 Survey responses'!CS187)","v":4},{"$f":"IF('2011 Survey responses'!CT187<0.5,\"\",'2011 Survey responses'!CT187)","v":2},{"$f":"IF('2011 Survey responses'!CU187<0.5,\"\",'2011 Survey responses'!CU187)","v":2},{"$f":"IF('2011 Survey responses'!CV187<0.5,\"\",'2011 Survey responses'!CV187)","v":2},{"$f":"IF(SUM('2011 Survey responses'!CW187:DL187)<1,\"\",(AVERAGE('2011 Survey responses'!CW187:DL187)))","v":3.3125},{"$f":"IF(SUM('2011 Survey responses'!CW187:CZ187)<1,\"\",(AVERAGE('2011 Survey responses'!CW187:CZ187)))","v":3.5},{"$f":"IF(SUM('2011 Survey responses'!DA187:DD187)<1,\"\",(AVERAGE('2011 Survey responses'!DA187:DD187)))","v":3},{"$f":"IF(SUM('2011 Survey responses'!DE187:DH187)<1,\"\",(AVERAGE('2011 Survey responses'!DE187:DH187)))","v":3.75},{"$f":"IF(SUM('2011 Survey responses'!DI187:DL187)<1,\"\",(AVERAGE('2011 Survey responses'!DI187:DL187)))","v":3},{"$f":"IF(('2011 Survey responses'!CW187+'2011 Survey responses'!DA187+'2011 Survey responses'!DE187+'2011 Survey responses'!DI187)<1,\"\",AVERAGE('2011 Survey responses'!CW187,'2011 Survey responses'!DA187,'2011 Survey responses'!DE187,'2011 Survey responses'!DI187))","v":3.75},{"$f":"IF(('2011 Survey responses'!CX187+'2011 Survey responses'!DB187+'2011 Survey responses'!DF187+'2011 Survey responses'!DJ187)<1,\"\",AVERAGE('2011 Survey responses'!CX187,'2011 Survey responses'!DB187,'2011 Survey responses'!DF187,'2011 Survey responses'!DJ187))","v":3},{"$f":"IF(('2011 Survey responses'!CY187+'2011 Survey responses'!DC187+'2011 Survey responses'!DG187+'2011 Survey responses'!DK187)<1,\"\",AVERAGE('2011 Survey responses'!CY187,'2011 Survey responses'!DC187,'2011 Survey responses'!DG187,'2011 Survey responses'!DK187))","v":3},{"$f":"IF(('2011 Survey responses'!CZ187+'2011 Survey responses'!DD187+'2011 Survey responses'!DH187+'2011 Survey responses'!DL187)<1,\"\",AVERAGE('2011 Survey responses'!CZ187,'2011 Survey responses'!DD187,'2011 Survey responses'!DH187,'2011 Survey responses'!DL187))","v":3.5},{"$f":"IF('2011 Survey responses'!CW187<0.5,\"\",'2011 Survey responses'!CW187)","v":4},{"$f":"IF('2011 Survey responses'!CX187<0.5,\"\",'2011 Survey responses'!CX187)","v":3},{"$f":"IF('2011 Survey responses'!CY187<0.5,\"\",'2011 Survey responses'!CY187)","v":3},{"$f":"IF('2011 Survey responses'!CZ187<0.5,\"\",'2011 Survey responses'!CZ187)","v":4},{"$f":"IF('2011 Survey responses'!DA187<0.5,\"\",'2011 Survey responses'!DA187)","v":3},{"$f":"IF('2011 Survey responses'!DB187<0.5,\"\",'2011 Survey responses'!DB187)","v":3},{"$f":"IF('2011 Survey responses'!DC187<0.5,\"\",'2011 Survey responses'!DC187)","v":3},{"$f":"IF('2011 Survey responses'!DD187<0.5,\"\",'2011 Survey responses'!DD187)","v":3},{"$f":"IF('2011 Survey responses'!DE187<0.5,\"\",'2011 Survey responses'!DE187)","v":4},{"$f":"IF('2011 Survey responses'!DF187<0.5,\"\",'2011 Survey responses'!DF187)","v":4},{"$f":"IF('2011 Survey responses'!DG187<0.5,\"\",'2011 Survey responses'!DG187)","v":3},{"$f":"IF('2011 Survey responses'!DH187<0.5,\"\",'2011 Survey responses'!DH187)","v":4},{"$f":"IF('2011 Survey responses'!DI187<0.5,\"\",'2011 Survey responses'!DI187)","v":4},{"$f":"IF('2011 Survey responses'!DJ187<0.5,\"\",'2011 Survey responses'!DJ187)","v":2},{"$f":"IF('2011 Survey responses'!DK187<0.5,\"\",'2011 Survey responses'!DK187)","v":3},{"$f":"IF('2011 Survey responses'!DL187<0.5,\"\",'2011 Survey responses'!DL187)","v":3},{"$f":"IF('2011 Survey responses'!DU187=4,4,IF('2011 Survey responses'!DU187=5,4,\"\"))","v":""},{"$f":"IF('2011 Survey responses'!DV187=4,3,IF('2011 Survey responses'!DV187=5,3,\"\"))","v":3},"",{"$f":"IF(CQ187=2,CQ187,IF(CO187=4,CO187,IF(CP187=3,CP187,IF('2011 Survey responses'!GT187=1,1,\"\"))))","v":3},{"$f":"IF('2011 Survey responses'!DO187<0.5,\"\",'2011 Survey responses'!DO187)","v":4},{"$f":"IF('2011 Survey responses'!DP187<0.5,\"\",'2011 Survey responses'!DP187)","v":5},{"$f":"IF('2011 Survey responses'!DQ187<0.5,\"\",'2011 Survey responses'!DQ187)","v":4},{"$f":"IF('2011 Survey responses'!DR187<0.5,\"\",'2011 Survey responses'!DR187)","v":5},{"$f":"IF('2011 Survey responses'!DS187<0.5,\"\",'2011 Survey responses'!DS187)","v":3},{"$f":"IF('2011 Survey responses'!DT187<0.5,\"\",'2011 Survey responses'!DT187)","v":3},{"$f":"IF('2011 Survey responses'!DU187<0.5,\"\",'2011 Survey responses'!DU187)","v":3},{"$f":"IF('2011 Survey responses'!DV187<0.5,\"\",'2011 Survey responses'!DV187)","v":4},{"$f":"IF('2011 Survey responses'!DW187<0.5,\"\",'2011 Survey responses'!DW187)","v":1},{"$f":"IF('2011 Survey responses'!DX187<0.5,\"\",'2011 Survey responses'!DX187)","v":1},{"$f":"IF('2011 Survey responses'!DY187<0.5,\"\",'2011 Survey responses'!DY187)","v":2},{"$f":"IF('2011 Survey responses'!DZ187<0.5,\"\",'2011 Survey responses'!DZ187)","v":2},{"$f":"IF('2011 Survey responses'!EA187<0.5,\"\",'2011 Survey responses'!EA187)","v":5},{"$f":"IF('2011 Survey responses'!EB187<0.5,\"\",'2011 Survey responses'!EB187)","v":5},{"$f":"IF('2011 Survey responses'!EC187<0.5,\"\",'2011 Survey responses'!EC187)","v":4},{"$f":"IF('2011 Survey responses'!ED187<0.5,\"\",'2011 Survey responses'!ED187)","v":3},{"$f":"IF('2011 Survey responses'!EE187<0.5,\"\",'2011 Survey responses'!EE187)","v":4},{"$f":"IF('2011 Survey responses'!EF187<0.5,\"\",'2011 Survey responses'!EF187)","v":5},{"$f":"IF('2011 Survey responses'!EG187<0.5,\"\",'2011 Survey responses'!EG187)","v":5},{"$f":"IF('2011 Survey responses'!EH187<0.5,\"\",'2011 Survey responses'!EH187)","v":5},{"$f":"IF('2011 Survey responses'!EI187<0.5,\"\",'2011 Survey responses'!EI187)","v":3},{"$f":"IF('2011 Survey responses'!EJ187<0.5,\"\",'2011 Survey responses'!EJ187)","v":3},{"$f":"IF('2011 Survey responses'!EK187<0.5,\"\",'2011 Survey responses'!EK187)","v":4},{"$f":"IF('2011 Survey responses'!EL187<0.5,\"\",'2011 Survey responses'!EL187)","v":3},{"$f":"IF('2011 Survey responses'!EM187<0.5,\"\",'2011 Survey responses'!EM187)","v":4},{"$f":"IF('2011 Survey responses'!EN187<0.5,\"\",'2011 Survey responses'!EN187)","v":1},{"$f":"IF('2011 Survey responses'!EO187<0.5,\"\",'2011 Survey responses'!EO187)","v":5},{"$f":"IF('2011 Survey responses'!EP187<0.5,\"\",'2011 Survey responses'!EP187)","v":1},{"$f":"IF(('2011 Survey responses'!EW187+'2011 Survey responses'!EX187)>=2,AVERAGE('2011 Survey responses'!EW187,'2011 Survey responses'!EY187),\"\")","v":3.5},{"$f":"IF('2011 Survey responses'!EX187<0.5,\"\",'2011 Survey responses'!EX187)","v":4},{"$f":"IF('2011 Survey responses'!EZ187<0.5,\"\",'2011 Survey responses'!EZ187)","v":4},{"$f":"IF('2011 Survey responses'!FB187<0.5,\"\",'2011 Survey responses'!FB187)","v":5},{"$f":"IF('2011 Survey responses'!FD187<0.5,\"\",'2011 Survey responses'!FD187)","v":5},{"$f":"IF('2011 Survey responses'!FC187<0.5,\"\",'2011 Survey responses'!FC187)","v":5},{"$f":"IF(('2011 Survey responses'!EM187+'2011 Survey responses'!EN187)>=2,AVERAGE('2011 Survey responses'!EM187,'2011 Survey responses'!EN187),\"\")","v":2.5},{"$f":"IF('2011 Survey responses'!ES187<0.5,\"\",'2011 Survey responses'!ES187)","v":4},{"$f":"IF(('2011 Survey responses'!ET187+'2011 Survey responses'!EU187)>=2,AVERAGE('2011 Survey responses'!ET187,'2011 Survey responses'!EU187),\"\")","v":4.5},{"$f":"IF('2011 Survey responses'!EV187<0.5,\"\",'2011 Survey responses'!EV187)","v":5},{"$f":"IF('2011 Survey responses'!FA187<0.5,\"\",'2011 Survey responses'!FA187)","v":5},{"$f":"IF('2011 Survey responses'!ER187<0.5,\"\",'2011 Survey responses'!ER187)","v":5},{"$f":"IF(('2011 Survey responses'!EO187+'2011 Survey responses'!EP187)>=2,AVERAGE('2011 Survey responses'!EO187,'2011 Survey responses'!EP187),\"\")","v":3},{"$f":"IF('2011 Survey responses'!EQ187<0.5,\"\",'2011 Survey responses'!EQ187)","v":2},{"$f":"IF('2011 Survey responses'!ET187<0.5,\"\",'2011 Survey responses'!ET187)","v":5},{"$f":"IF('2011 Survey responses'!EU187<0.5,\"\",'2011 Survey responses'!EU187)","v":4},{"$f":"IF('2011 Survey responses'!EW187<0.5,\"\",'2011 Survey responses'!EW187)","v":4},{"$f":"IF('2011 Survey responses'!EY187<0.5,\"\",'2011 Survey responses'!EY187)","v":3},{"$f":"IF('2011 Survey responses'!FU187<0.5,\"\",'2011 Survey responses'!FU187)","v":5},{"$f":"IF(('2011 Survey responses'!FL187+'2011 Survey responses'!FM187)>=2,AVERAGE('2011 Survey responses'!FL187,'2011 Survey responses'!FM187),\"\")","v":4.5},{"$f":"IF(('2011 Survey responses'!FO187+'2011 Survey responses'!FQ187)>=2,AVERAGE('2011 Survey responses'!FO187,'2011 Survey responses'!FQ187),\"\")","v":4},{"$f":"IF('2011 Survey responses'!FJ187<0.5,\"\",'2011 Survey responses'!FJ187)","v":5},{"$f":"IF('2011 Survey responses'!FT187<0.5,\"\",'2011 Survey responses'!FT187)","v":5},{"$f":"IF('2011 Survey responses'!FR187<0.5,\"\",'2011 Survey responses'!FR187)","v":4},{"$f":"IF('2011 Survey responses'!FK187<0.5,\"\",'2011 Survey responses'!FK187)","v":5},{"$f":"IF('2011 Survey responses'!FP187<0.5,\"\",'2011 Survey responses'!FP187)","v":4},{"$f":"IF('2011 Survey responses'!FN187<0.5,\"\",'2011 Survey responses'!FN187)","v":5},{"$f":"IF(('2011 Survey responses'!FE187+'2011 Survey responses'!FF187)>=2,AVERAGE('2011 Survey responses'!FE187,'2011 Survey responses'!FF187),\"\")","v":4},{"$f":"IF('2011 Survey responses'!FS187<0.5,\"\",'2011 Survey responses'!FS187)","v":4},{"$f":"IF('2011 Survey responses'!FV187<0.5,\"\",'2011 Survey responses'!FV187)","v":4},{"$f":"IF(('2011 Survey responses'!FG187+'2011 Survey responses'!FH187)>=2,AVERAGE('2011 Survey responses'!FG187,'2011 Survey responses'!FH187),\"\")","v":4.5},{"$f":"IF('2011 Survey responses'!FI187<0.5,\"\",'2011 Survey responses'!FI187)","v":4},{"$f":"IF('2011 Survey responses'!FE187<0.5,\"\",'2011 Survey responses'!FE187)","v":5},{"$f":"IF('2011 Survey responses'!FF187<0.5,\"\",'2011 Survey responses'!FF187)","v":3},{"$f":"IF('2011 Survey responses'!FG187<0.5,\"\",'2011 Survey responses'!FG187)","v":5},{"$f":"IF('2011 Survey responses'!FH187<0.5,\"\",'2011 Survey responses'!FH187)","v":4},{"$f":"IF('2011 Survey responses'!FL187<0.5,\"\",'2011 Survey responses'!FL187)","v":5},{"$f":"IF('2011 Survey responses'!FM187<0.5,\"\",'2011 Survey responses'!FM187)","v":4},{"$f":"IF('2011 Survey responses'!FO187<0.5,\"\",'2011 Survey responses'!FO187)","v":4},{"$f":"IF('2011 Survey responses'!FQ187<0.5,\"\",'2011 Survey responses'!FQ187)","v":4}]
["Uzbekistan",{"$f":"IF(SUM(F188)<1,\"\",AVERAGEIF('2011 Survey responses'!B188:CP188,\">1\"))","v":3.0459770114942528},{"$f":"IF(SUM(F188)<1,\"\",AVERAGEIF('2011 Survey responses'!B188:AO188,\">1\"))","v":3.6388888888888888},{"$f":"IF(SUM(F188)<1,\"\",AVERAGEIF('2011 Survey responses'!B188:BV188,\">1\"))","v":3.2173913043478262},{"$f":"IF(SUM(F188)<1,\"\",AVERAGEIF('2011 Survey responses'!V188:BV188,\">1\"))","v":3},{"$f":"IF(SUM('2011 Survey responses'!B188:U188)<1,\"\",(AVERAGEIFS('2011 Survey responses'!B188:U188,'2011 Survey responses'!B188:U188,\">1\")))","v":3.7894736842105261},{"$f":"IF(SUM('2011 Survey responses'!B188:H188)<1,\"\",(AVERAGEIFS('2011 Survey responses'!B188:H188,'2011 Survey responses'!B188:H188,\">1\")))","v":4.166666666666667},{"$f":"IF(SUM('2011 Survey responses'!I188:S188)<1,\"\",(AVERAGEIFS('2011 Survey responses'!I188:S188,'2011 Survey responses'!I188:S188,\">1\")))","v":3.7272727272727271},{"$f":"IF(SUM('2011 Survey responses'!T188:U188)<2.1,\"\",(AVERAGEIFS('2011 Survey responses'!T188:U188,'2011 Survey responses'!T188:U188,\">1\")))","v":3},{"$f":"IF(SUM('2011 Survey responses'!B188:C188)<2.1,\"\",((SUMIF('2011 Survey responses'!B188:C188,\">1\")+SUMIF('2011 Survey responses'!F188,\">1\"))/(COUNTIF('2011 Survey responses'!B188:C188,\">1\")+COUNTIF('2011 Survey responses'!F188,\">1\"))))","v":3.6666666666666665},{"$f":"IF(SUM('2011 Survey responses'!D188:E188)<2.1,\"\",(AVERAGEIFS('2011 Survey responses'!D188:E188,'2011 Survey responses'!D188:E188,\">1\")))","v":5},{"$f":"IF(('2011 Survey responses'!B188+'2011 Survey responses'!D188)<2.1,\"\",((SUMIF('2011 Survey responses'!B188,\">1\")+SUMIF('2011 Survey responses'!D188,\">1\")+SUMIF('2011 Survey responses'!F188,\">1\")+SUMIF('2011 Survey responses'!K188,\">1\"))/(COUNTIF('2011 Survey responses'!B188,\">1\")+COUNTIF('2011 Survey responses'!D188,\">1\")+COUNTIF('2011 Survey responses'!F188,\">1\")+COUNTIF('2011 Survey responses'!K188,\">1\"))))","v":3.75},{"$f":"IF(SUM('2011 Survey responses'!G188:H188)<2.1,\"\",(AVERAGEIFS('2011 Survey responses'!G188:H188,'2011 Survey responses'!G188:H188,\">1\")))","v":4.5},{"$f":"IF(SUM('2011 Survey responses'!F188:G188)<1.5,\"\",MAX('2011 Survey responses'!F188,'2011 Survey responses'!G188))","v":5},{"$f":"IF(SUM('2011 Survey responses'!G188:H188)<1,\"\",MAX('2011 Survey responses'!G188,'2011 Survey responses'!H188))","v":5},{"$f":"IF(SUM('2011 Survey responses'!I188:L188)<4.1,\"\",(AVERAGEIFS('2011 Survey responses'!I188:L188,'2011 Survey responses'!I188:L188,\">1\")))","v":3.25},{"$f":"IF(SUM('2011 Survey responses'!M188:S188)<4.1,\"\",(AVERAGEIFS('2011 Survey responses'!M188:S188,'2011 Survey responses'!M188:S188,\">1\")))","v":4},{"$f":"IF(SUM('2011 Survey responses'!T188:U188)<2.1,\"\",(AVERAGEIFS('2011 Survey responses'!T188:U188,'2011 Survey responses'!T188:U188,\">1\")))","v":3},{"$f":"IF(SUM('2011 Survey responses'!V188:AO188)<1,\"\",(AVERAGEIFS('2011 Survey responses'!V188:AO188,'2011 Survey responses'!V188:AO188,\">1\")))","v":3.4705882352941178},{"$f":"IF(SUM('2011 Survey responses'!V188:AA188)<1,\"\",(AVERAGEIFS('2011 Survey responses'!V188:AA188,'2011 Survey responses'!V188:AA188,\">1\")))","v":2.6},{"$f":"IF(SUM('2011 Survey responses'!AB188:AH188)<1,\"\",(AVERAGEIFS('2011 Survey responses'!AB188:AH188,'2011 Survey responses'!AB188:AH188,\">1\")))","v":4.2},{"$f":"IF(SUM('2011 Survey responses'!AI188:AO188)<1,\"\",(AVERAGEIFS('2011 Survey responses'!AI188:AO188,'2011 Survey responses'!AI188:AO188,\">1\")))","v":3.5714285714285716},{"$f":"IF(('2011 Survey responses'!Y188+'2011 Survey responses'!AI188+'2011 Survey responses'!AK188)<3.1,\"\",((SUMIF('2011 Survey responses'!Y188,\">1\")+SUMIF('2011 Survey responses'!AI188,\">1\")+SUMIF('2011 Survey responses'!AK188,\">1\")+SUMIF('2011 Survey responses'!AM188,\">1\"))/(COUNTIF('2011 Survey responses'!Y188,\">1\")+COUNTIF('2011 Survey responses'!AI188,\">1\")+COUNTIF('2011 Survey responses'!AK188,\">1\")+COUNTIF('2011 Survey responses'!AM188,\">1\"))))","v":3.25},{"$f":"IF(('2011 Survey responses'!W188)<1.1,\"\",('2011 Survey responses'!W188))","v":2},{"$f":"IF(('2011 Survey responses'!Y188)<1.1,\"\",('2011 Survey responses'!Y188))","v":2},{"$f":"IF(('2011 Survey responses'!Z188)<1.1,\"\",('2011 Survey responses'!Z188))","v":2},{"$f":"IF(('2011 Survey responses'!V188+'2011 Survey responses'!X188+'2011 Survey responses'!AA188)<3.1,\"\",((SUMIF('2011 Survey responses'!V188,\">1\")+SUMIF('2011 Survey responses'!X188,\">1\")+SUMIF('2011 Survey responses'!AA188,\">1\"))/(COUNTIF('2011 Survey responses'!V188,\">1\")+COUNTIF('2011 Survey responses'!X188,\">1\")+COUNTIF('2011 Survey responses'!AA188,\">1\"))))","v":3.5},{"$f":"IF(('2011 Survey responses'!V188+'2011 Survey responses'!Y188+'2011 Survey responses'!AA188)<3.1,\"\",((SUMIF('2011 Survey responses'!V188,\">1\")+SUMIF('2011 Survey responses'!Y188,\">1\")+SUMIF('2011 Survey responses'!AA188,\">1\"))/(COUNTIF('2011 Survey responses'!V188,\">1\")+COUNTIF('2011 Survey responses'!Y188,\">1\")+COUNTIF('2011 Survey responses'!AA188,\">1\"))))","v":3.5},{"$f":"IF(SUM('2011 Survey responses'!AB188:AH188)<1,\"\",(AVERAGEIFS('2011 Survey responses'!AB188:AH188,'2011 Survey responses'!AB188:AH188,\">1\")))","v":4.2},{"$f":"IF(SUM('2011 Survey responses'!AI188:AO188)<7.1,\"\",(AVERAGEIFS('2011 Survey responses'!AI188:AO188,'2011 Survey responses'!AI188:AO188,\">1\")))","v":3.5714285714285716},{"$f":"IF(('2011 Survey responses'!AH188)<1.1,\"\",('2011 Survey responses'!AH188))","v":4},{"$f":"IF(SUM('2011 Survey responses'!AP188:BV188)<1,\"\",(AVERAGEIFS('2011 Survey responses'!AP188:BV188,'2011 Survey responses'!AP188:BV188,\">1\")))","v":2.7575757575757578},{"$f":"IF(SUM('2011 Survey responses'!AP188:AS188)<4.1,\"\",(AVERAGEIFS('2011 Survey responses'!AP188:AS188,'2011 Survey responses'!AP188:AS188,\">1\")))","v":2.5},{"$f":"IF(SUM('2011 Survey responses'!AT188:BF188)<1,\"\",(AVERAGEIFS('2011 Survey responses'!AT188:BF188,'2011 Survey responses'!AT188:BF188,\">1\")))","v":2.8461538461538463},{"$f":"IF(SUM('2011 Survey responses'!BG188:BO188)<1,\"\",(AVERAGEIFS('2011 Survey responses'!BG188:BO188,'2011 Survey responses'!BG188:BO188,\">1\")))","v":2.5555555555555554},{"$f":"IF(SUM('2011 Survey responses'!BP188:BS188)<1,\"\",(AVERAGEIFS('2011 Survey responses'!BP188:BS188,'2011 Survey responses'!BP188:BS188,\">1\")))","v":3.75},{"$f":"IF(SUM('2011 Survey responses'!BT188:BV188)<3.1,\"\",(AVERAGEIFS('2011 Survey responses'!BT188:BV188,'2011 Survey responses'!BT188:BV188,\">1\")))","v":2},{"$f":"IF(('2011 Survey responses'!AQ188+'2011 Survey responses'!AR188+'2011 Survey responses'!BG188)<3.1,\"\",((SUMIF('2011 Survey responses'!AQ188,\">1\")+SUMIF('2011 Survey responses'!AR188,\">1\")+SUMIF('2011 Survey responses'!BG188,\">1\"))/(COUNTIF('2011 Survey responses'!AQ188,\">1\")+COUNTIF('2011 Survey responses'!AR188,\">1\")+COUNTIF('2011 Survey responses'!BG188,\">1\"))))","v":3},{"$f":"IF(SUM('2011 Survey responses'!AP188:AS188)<4.1,\"\",(AVERAGEIFS('2011 Survey responses'!AP188:AS188,'2011 Survey responses'!AP188:AS188,\">1\")))","v":2.5},{"$f":"IF(('2011 Survey responses'!AU188+'2011 Survey responses'!AX188+'2011 Survey responses'!BA188+'2011 Survey responses'!BC188+'2011 Survey responses'!BD188)<5.1,\"\",(SUMIF('2011 Survey responses'!AU188,\">1\")+SUMIF('2011 Survey responses'!AX188,\">1\")+SUMIF('2011 Survey responses'!BA188,\">1\")+SUMIF('2011 Survey responses'!BC188,\">1\")+SUMIF('2011 Survey responses'!BD188,\">1\"))/(COUNTIF('2011 Survey responses'!AU188,\">1\")+COUNTIF('2011 Survey responses'!AX188,\">1\")+COUNTIF('2011 Survey responses'!BA188,\">1\")+COUNTIF('2011 Survey responses'!BC188,\">1\")+COUNTIF('2011 Survey responses'!BD188,\">1\")))","v":2.8},{"$f":"IF(('2011 Survey responses'!AT188)<1.1,\"\",('2011 Survey responses'!AT188))","v":2},{"$f":"IF(SUM('2011 Survey responses'!AV188:AW188)<2.1,\"\",(AVERAGEIFS('2011 Survey responses'!AV188:AW188,'2011 Survey responses'!AV188:AW188,\">1\")))","v":2.5},{"$f":"IF(('2011 Survey responses'!AW188+'2011 Survey responses'!AY188)<2.1,\"\",(SUMIF('2011 Survey responses'!AW188,\">1\")+SUMIF('2011 Survey responses'!AY188,\">1\"))/(COUNTIF('2011 Survey responses'!AW188,\">1\")+COUNTIF('2011 Survey responses'!AY188,\">1\")))","v":3},{"$f":"IF(('2011 Survey responses'!AZ188)<1.1,\"\",('2011 Survey responses'!AZ188))","v":4},4,3,4,2,{"$f":"IF(('2011 Survey responses'!BE188)<1.1,\"\",('2011 Survey responses'!BE188))","v":3},{"$f":"IF(('2011 Survey responses'!AY188+'2011 Survey responses'!BB188+'2011 Survey responses'!BF188)<3.1,\"\",(SUMIF('2011 Survey responses'!AY188,\">1\")+SUMIF('2011 Survey responses'!BB188,\">1\")+SUMIF('2011 Survey responses'!BF188,\">1\"))/(COUNTIF('2011 Survey responses'!AY188,\">1\")+COUNTIF('2011 Survey responses'!BB188,\">1\")+COUNTIF('2011 Survey responses'!BF188,\">1\")))","v":3},3.1527777777777777,{"$f":"IF(SUM('2011 Survey responses'!BT188:BV188)<3.1,\"\",(AVERAGEIFS('2011 Survey responses'!BT188:BV188,'2011 Survey responses'!BT188:BV188,\">1\")))","v":2},{"$f":"IF(SUM('2011 Survey responses'!BW188:CP188)<1,\"\",(AVERAGEIFS('2011 Survey responses'!BW188:CP188,'2011 Survey responses'!BW188:CP188,\">1\")))","v":2.3888888888888888},{"$f":"IF(SUM('2011 Survey responses'!BW188:CF188)<1,\"\",(AVERAGEIFS('2011 Survey responses'!BW188:CF188,'2011 Survey responses'!BW188:CF188,\">1\")))","v":2.6666666666666665},{"$f":"IF(SUM('2011 Survey responses'!CG188:CP188)<1,\"\",(AVERAGEIFS('2011 Survey responses'!CG188:CP188,'2011 Survey responses'!CG188:CP188,\">1\")))","v":2.1111111111111112},{"$f":"IF(SUM('2011 Survey responses'!BX188:CF188)<1,\"\",(AVERAGEIFS('2011 Survey responses'!BX188:CF188,'2011 Survey responses'!BX188:CF188,\">1\")))","v":2.75},{"$f":"IF(SUM('2011 Survey responses'!CH188:CP188)<1,\"\",(AVERAGEIFS('2011 Survey responses'!CH188:CP188,'2011 Survey responses'!CH188:CP188,\">1\")))","v":2.125},{"$f":"IF(SUM('2011 Survey responses'!BW188:CP188)<1,\"\",(AVERAGEIFS('2011 Survey responses'!BW188:CP188,'2011 Survey responses'!BW188:CP188,\">1\")))","v":2.3888888888888888},{"$f":"IF(('2011 Survey responses'!BW188+'2011 Survey responses'!CG188)<2.1,\"\",(SUMIF('2011 Survey responses'!BW188,\">1\")+SUMIF('2011 Survey responses'!CG188,\">1\"))/(COUNTIF('2011 Survey responses'!BW188,\">1\")+COUNTIF('2011 Survey responses'!CG188,\">1\")))","v":2},{"$f":"IF(('2011 Survey responses'!BX188+'2011 Survey responses'!CH188)<2.1,\"\",(SUMIF('2011 Survey responses'!BX188,\">1\")+SUMIF('2011 Survey responses'!CH188,\">1\"))/(COUNTIF('2011 Survey responses'!BX188,\">1\")+COUNTIF('2011 Survey responses'!CH188,\">1\")))","v":3},{"$f":"IF(('2011 Survey responses'!BY188+'2011 Survey responses'!CI188)<2.1,\"\",(SUMIF('2011 Survey responses'!BY188,\">1\")+SUMIF('2011 Survey responses'!CI188,\">1\"))/(COUNTIF('2011 Survey responses'!BY188,\">1\")+COUNTIF('2011 Survey responses'!CI188,\">1\")))","v":3.5},{"$f":"IF('2011 Survey responses'!CQ188<0.5,\"\",'2011 Survey responses'!CQ188)","v":3},{"$f":"IF('2011 Survey responses'!CR188<0.5,\"\",'2011 Survey responses'!CR188)","v":5},{"$f":"IF('2011 Survey responses'!CS188<0.5,\"\",'2011 Survey responses'!CS188)","v":4},{"$f":"IF('2011 Survey responses'!CT188<0.5,\"\",'2011 Survey responses'!CT188)","v":1},{"$f":"IF('2011 Survey responses'!CU188<0.5,\"\",'2011 Survey responses'!CU188)","v":1},{"$f":"IF('2011 Survey responses'!CV188<0.5,\"\",'2011 Survey responses'!CV188)","v":1},{"$f":"IF(SUM('2011 Survey responses'!CW188:DL188)<1,\"\",(AVERAGE('2011 Survey responses'!CW188:DL188)))","v":2.5},{"$f":"IF(SUM('2011 Survey responses'!CW188:CZ188)<1,\"\",(AVERAGE('2011 Survey responses'!CW188:CZ188)))","v":2.25},{"$f":"IF(SUM('2011 Survey responses'!DA188:DD188)<1,\"\",(AVERAGE('2011 Survey responses'!DA188:DD188)))","v":2.5},{"$f":"IF(SUM('2011 Survey responses'!DE188:DH188)<1,\"\",(AVERAGE('2011 Survey responses'!DE188:DH188)))","v":3},{"$f":"IF(SUM('2011 Survey responses'!DI188:DL188)<1,\"\",(AVERAGE('2011 Survey responses'!DI188:DL188)))","v":2.25},{"$f":"IF(('2011 Survey responses'!CW188+'2011 Survey responses'!DA188+'2011 Survey responses'!DE188+'2011 Survey responses'!DI188)<1,\"\",AVERAGE('2011 Survey responses'!CW188,'2011 Survey responses'!DA188,'2011 Survey responses'!DE188,'2011 Survey responses'!DI188))","v":2.75},{"$f":"IF(('2011 Survey responses'!CX188+'2011 Survey responses'!DB188+'2011 Survey responses'!DF188+'2011 Survey responses'!DJ188)<1,\"\",AVERAGE('2011 Survey responses'!CX188,'2011 Survey responses'!DB188,'2011 Survey responses'!DF188,'2011 Survey responses'!DJ188))","v":2.5},{"$f":"IF(('2011 Survey responses'!CY188+'2011 Survey responses'!DC188+'2011 Survey responses'!DG188+'2011 Survey responses'!DK188)<1,\"\",AVERAGE('2011 Survey responses'!CY188,'2011 Survey responses'!DC188,'2011 Survey responses'!DG188,'2011 Survey responses'!DK188))","v":2.5},{"$f":"IF(('2011 Survey responses'!CZ188+'2011 Survey responses'!DD188+'2011 Survey responses'!DH188+'2011 Survey responses'!DL188)<1,\"\",AVERAGE('2011 Survey responses'!CZ188,'2011 Survey responses'!DD188,'2011 Survey responses'!DH188,'2011 Survey responses'!DL188))","v":2.25},{"$f":"IF('2011 Survey responses'!CW188<0.5,\"\",'2011 Survey responses'!CW188)","v":3},{"$f":"IF('2011 Survey responses'!CX188<0.5,\"\",'2011 Survey responses'!CX188)","v":2},{"$f":"IF('2011 Survey responses'!CY188<0.5,\"\",'2011 Survey responses'!CY188)","v":2},{"$f":"IF('2011 Survey responses'!CZ188<0.5,\"\",'2011 Survey responses'!CZ188)","v":2},{"$f":"IF('2011 Survey responses'!DA188<0.5,\"\",'2011 Survey responses'!DA188)","v":3},{"$f":"IF('2011 Survey responses'!DB188<0.5,\"\",'2011 Survey responses'!DB188)","v":3},{"$f":"IF('2011 Survey responses'!DC188<0.5,\"\",'2011 Survey responses'!DC188)","v":2},{"$f":"IF('2011 Survey responses'!DD188<0.5,\"\",'2011 Survey responses'!DD188)","v":2},{"$f":"IF('2011 Survey responses'!DE188<0.5,\"\",'2011 Survey responses'!DE188)","v":3},{"$f":"IF('2011 Survey responses'!DF188<0.5,\"\",'2011 Survey responses'!DF188)","v":3},{"$f":"IF('2011 Survey responses'!DG188<0.5,\"\",'2011 Survey responses'!DG188)","v":3},{"$f":"IF('2011 Survey responses'!DH188<0.5,\"\",'2011 Survey responses'!DH188)","v":3},{"$f":"IF('2011 Survey responses'!DI188<0.5,\"\",'2011 Survey responses'!DI188)","v":2},{"$f":"IF('2011 Survey responses'!DJ188<0.5,\"\",'2011 Survey responses'!DJ188)","v":2},{"$f":"IF('2011 Survey responses'!DK188<0.5,\"\",'2011 Survey responses'!DK188)","v":3},{"$f":"IF('2011 Survey responses'!DL188<0.5,\"\",'2011 Survey responses'!DL188)","v":2},{"$f":"IF('2011 Survey responses'!DU188=4,4,IF('2011 Survey responses'!DU188=5,4,\"\"))","v":4},{"$f":"IF('2011 Survey responses'!DV188=4,3,IF('2011 Survey responses'!DV188=5,3,\"\"))","v":3},2,{"$f":"IF(CQ188=2,CQ188,IF(CO188=4,CO188,IF(CP188=3,CP188,IF('2011 Survey responses'!GT188=1,1,\"\"))))","v":2},{"$f":"IF('2011 Survey responses'!DO188<0.5,\"\",'2011 Survey responses'!DO188)","v":5},{"$f":"IF('2011 Survey responses'!DP188<0.5,\"\",'2011 Survey responses'!DP188)","v":5},{"$f":"IF('2011 Survey responses'!DQ188<0.5,\"\",'2011 Survey responses'!DQ188)","v":4},{"$f":"IF('2011 Survey responses'!DR188<0.5,\"\",'2011 Survey responses'!DR188)","v":4},{"$f":"IF('2011 Survey responses'!DS188<0.5,\"\",'2011 Survey responses'!DS188)","v":5},{"$f":"IF('2011 Survey responses'!DT188<0.5,\"\",'2011 Survey responses'!DT188)","v":4},{"$f":"IF('2011 Survey responses'!DU188<0.5,\"\",'2011 Survey responses'!DU188)","v":4},{"$f":"IF('2011 Survey responses'!DV188<0.5,\"\",'2011 Survey responses'!DV188)","v":5},{"$f":"IF('2011 Survey responses'!DW188<0.5,\"\",'2011 Survey responses'!DW188)","v":5},{"$f":"IF('2011 Survey responses'!DX188<0.5,\"\",'2011 Survey responses'!DX188)","v":5},{"$f":"IF('2011 Survey responses'!DY188<0.5,\"\",'2011 Survey responses'!DY188)","v":4},{"$f":"IF('2011 Survey responses'!DZ188<0.5,\"\",'2011 Survey responses'!DZ188)","v":4},{"$f":"IF('2011 Survey responses'!EA188<0.5,\"\",'2011 Survey responses'!EA188)","v":5},{"$f":"IF('2011 Survey responses'!EB188<0.5,\"\",'2011 Survey responses'!EB188)","v":5},{"$f":"IF('2011 Survey responses'!EC188<0.5,\"\",'2011 Survey responses'!EC188)","v":4},{"$f":"IF('2011 Survey responses'!ED188<0.5,\"\",'2011 Survey responses'!ED188)","v":3},{"$f":"IF('2011 Survey responses'!EE188<0.5,\"\",'2011 Survey responses'!EE188)","v":5},{"$f":"IF('2011 Survey responses'!EF188<0.5,\"\",'2011 Survey responses'!EF188)","v":4},{"$f":"IF('2011 Survey responses'!EG188<0.5,\"\",'2011 Survey responses'!EG188)","v":4},{"$f":"IF('2011 Survey responses'!EH188<0.5,\"\",'2011 Survey responses'!EH188)","v":5},{"$f":"IF('2011 Survey responses'!EI188<0.5,\"\",'2011 Survey responses'!EI188)","v":5},{"$f":"IF('2011 Survey responses'!EJ188<0.5,\"\",'2011 Survey responses'!EJ188)","v":4},{"$f":"IF('2011 Survey responses'!EK188<0.5,\"\",'2011 Survey responses'!EK188)","v":4},{"$f":"IF('2011 Survey responses'!EL188<0.5,\"\",'2011 Survey responses'!EL188)","v":4},{"$f":"IF('2011 Survey responses'!EM188<0.5,\"\",'2011 Survey responses'!EM188)","v":4},{"$f":"IF('2011 Survey responses'!EN188<0.5,\"\",'2011 Survey responses'!EN188)","v":4},{"$f":"IF('2011 Survey responses'!EO188<0.5,\"\",'2011 Survey responses'!EO188)","v":5},{"$f":"IF('2011 Survey responses'!EP188<0.5,\"\",'2011 Survey responses'!EP188)","v":5},{"$f":"IF(('2011 Survey responses'!EW188+'2011 Survey responses'!EX188)>=2,AVERAGE('2011 Survey responses'!EW188,'2011 Survey responses'!EY188),\"\")","v":3},{"$f":"IF('2011 Survey responses'!EX188<0.5,\"\",'2011 Survey responses'!EX188)","v":5},{"$f":"IF('2011 Survey responses'!EZ188<0.5,\"\",'2011 Survey responses'!EZ188)","v":5},{"$f":"IF('2011 Survey responses'!FB188<0.5,\"\",'2011 Survey responses'!FB188)","v":4},{"$f":"IF('2011 Survey responses'!FD188<0.5,\"\",'2011 Survey responses'!FD188)","v":5},{"$f":"IF('2011 Survey responses'!FC188<0.5,\"\",'2011 Survey responses'!FC188)","v":4},{"$f":"IF(('2011 Survey responses'!EM188+'2011 Survey responses'!EN188)>=2,AVERAGE('2011 Survey responses'!EM188,'2011 Survey responses'!EN188),\"\")","v":4},{"$f":"IF('2011 Survey responses'!ES188<0.5,\"\",'2011 Survey responses'!ES188)","v":5},{"$f":"IF(('2011 Survey responses'!ET188+'2011 Survey responses'!EU188)>=2,AVERAGE('2011 Survey responses'!ET188,'2011 Survey responses'!EU188),\"\")","v":3.5},{"$f":"IF('2011 Survey responses'!EV188<0.5,\"\",'2011 Survey responses'!EV188)","v":4},{"$f":"IF('2011 Survey responses'!FA188<0.5,\"\",'2011 Survey responses'!FA188)","v":4},{"$f":"IF('2011 Survey responses'!ER188<0.5,\"\",'2011 Survey responses'!ER188)","v":5},{"$f":"IF(('2011 Survey responses'!EO188+'2011 Survey responses'!EP188)>=2,AVERAGE('2011 Survey responses'!EO188,'2011 Survey responses'!EP188),\"\")","v":5},{"$f":"IF('2011 Survey responses'!EQ188<0.5,\"\",'2011 Survey responses'!EQ188)","v":2},{"$f":"IF('2011 Survey responses'!ET188<0.5,\"\",'2011 Survey responses'!ET188)","v":4},{"$f":"IF('2011 Survey responses'!EU188<0.5,\"\",'2011 Survey responses'!EU188)","v":3},{"$f":"IF('2011 Survey responses'!EW188<0.5,\"\",'2011 Survey responses'!EW188)","v":3},{"$f":"IF('2011 Survey responses'!EY188<0.5,\"\",'2011 Survey responses'!EY188)","v":3},{"$f":"IF('2011 Survey responses'!FU188<0.5,\"\",'2011 Survey responses'!FU188)","v":4},{"$f":"IF(('2011 Survey responses'!FL188+'2011 Survey responses'!FM188)>=2,AVERAGE('2011 Survey responses'!FL188,'2011 Survey responses'!FM188),\"\")","v":4},{"$f":"IF(('2011 Survey responses'!FO188+'2011 Survey responses'!FQ188)>=2,AVERAGE('2011 Survey responses'!FO188,'2011 Survey responses'!FQ188),\"\")","v":4},{"$f":"IF('2011 Survey responses'!FJ188<0.5,\"\",'2011 Survey responses'!FJ188)","v":5},{"$f":"IF('2011 Survey responses'!FT188<0.5,\"\",'2011 Survey responses'!FT188)","v":4},{"$f":"IF('2011 Survey responses'!FR188<0.5,\"\",'2011 Survey responses'!FR188)","v":5},{"$f":"IF('2011 Survey responses'!FK188<0.5,\"\",'2011 Survey responses'!FK188)","v":5},{"$f":"IF('2011 Survey responses'!FP188<0.5,\"\",'2011 Survey responses'!FP188)","v":5},{"$f":"IF('2011 Survey responses'!FN188<0.5,\"\",'2011 Survey responses'!FN188)","v":5},{"$f":"IF(('2011 Survey responses'!FE188+'2011 Survey responses'!FF188)>=2,AVERAGE('2011 Survey responses'!FE188,'2011 Survey responses'!FF188),\"\")","v":5},{"$f":"IF('2011 Survey responses'!FS188<0.5,\"\",'2011 Survey responses'!FS188)","v":5},{"$f":"IF('2011 Survey responses'!FV188<0.5,\"\",'2011 Survey responses'!FV188)","v":5},{"$f":"IF(('2011 Survey responses'!FG188+'2011 Survey responses'!FH188)>=2,AVERAGE('2011 Survey responses'!FG188,'2011 Survey responses'!FH188),\"\")","v":5},{"$f":"IF('2011 Survey responses'!FI188<0.5,\"\",'2011 Survey responses'!FI188)","v":2},{"$f":"IF('2011 Survey responses'!FE188<0.5,\"\",'2011 Survey responses'!FE188)","v":5},{"$f":"IF('2011 Survey responses'!FF188<0.5,\"\",'2011 Survey responses'!FF188)","v":5},{"$f":"IF('2011 Survey responses'!FG188<0.5,\"\",'2011 Survey responses'!FG188)","v":5},{"$f":"IF('2011 Survey responses'!FH188<0.5,\"\",'2011 Survey responses'!FH188)","v":5},{"$f":"IF('2011 Survey responses'!FL188<0.5,\"\",'2011 Survey responses'!FL188)","v":4},{"$f":"IF('2011 Survey responses'!FM188<0.5,\"\",'2011 Survey responses'!FM188)","v":4},{"$f":"IF('2011 Survey responses'!FO188<0.5,\"\",'2011 Survey responses'!FO188)","v":4},{"$f":"IF('2011 Survey responses'!FQ188<0.5,\"\",'2011 Survey responses'!FQ188)","v":4}]
["Vanuatu",{"$f":"IF(SUM(F189)<1,\"\",AVERAGEIF('2011 Survey responses'!B189:CP189,\">1\"))","v":""},{"$f":"IF(SUM(F189)<1,\"\",AVERAGEIF('2011 Survey responses'!B189:AO189,\">1\"))","v":""},{"$f":"IF(SUM(F189)<1,\"\",AVERAGEIF('2011 Survey responses'!B189:BV189,\">1\"))","v":""},{"$f":"IF(SUM(F189)<1,\"\",AVERAGEIF('2011 Survey responses'!V189:BV189,\">1\"))","v":""},{"$f":"IF(SUM('2011 Survey responses'!B189:U189)<1,\"\",(AVERAGEIFS('2011 Survey responses'!B189:U189,'2011 Survey responses'!B189:U189,\">1\")))","v":""},{"$f":"IF(SUM('2011 Survey responses'!B189:H189)<1,\"\",(AVERAGEIFS('2011 Survey responses'!B189:H189,'2011 Survey responses'!B189:H189,\">1\")))","v":""},{"$f":"IF(SUM('2011 Survey responses'!I189:S189)<1,\"\",(AVERAGEIFS('2011 Survey responses'!I189:S189,'2011 Survey responses'!I189:S189,\">1\")))","v":""},{"$f":"IF(SUM('2011 Survey responses'!T189:U189)<2.1,\"\",(AVERAGEIFS('2011 Survey responses'!T189:U189,'2011 Survey responses'!T189:U189,\">1\")))","v":""},{"$f":"IF(SUM('2011 Survey responses'!B189:C189)<2.1,\"\",((SUMIF('2011 Survey responses'!B189:C189,\">1\")+SUMIF('2011 Survey responses'!F189,\">1\"))/(COUNTIF('2011 Survey responses'!B189:C189,\">1\")+COUNTIF('2011 Survey responses'!F189,\">1\"))))","v":""},{"$f":"IF(SUM('2011 Survey responses'!D189:E189)<2.1,\"\",(AVERAGEIFS('2011 Survey responses'!D189:E189,'2011 Survey responses'!D189:E189,\">1\")))","v":""},{"$f":"IF(('2011 Survey responses'!B189+'2011 Survey responses'!D189)<2.1,\"\",((SUMIF('2011 Survey responses'!B189,\">1\")+SUMIF('2011 Survey responses'!D189,\">1\")+SUMIF('2011 Survey responses'!F189,\">1\")+SUMIF('2011 Survey responses'!K189,\">1\"))/(COUNTIF('2011 Survey responses'!B189,\">1\")+COUNTIF('2011 Survey responses'!D189,\">1\")+COUNTIF('2011 Survey responses'!F189,\">1\")+COUNTIF('2011 Survey responses'!K189,\">1\"))))","v":""},{"$f":"IF(SUM('2011 Survey responses'!G189:H189)<2.1,\"\",(AVERAGEIFS('2011 Survey responses'!G189:H189,'2011 Survey responses'!G189:H189,\">1\")))","v":""},{"$f":"IF(SUM('2011 Survey responses'!F189:G189)<1.5,\"\",MAX('2011 Survey responses'!F189,'2011 Survey responses'!G189))","v":""},{"$f":"IF(SUM('2011 Survey responses'!G189:H189)<1,\"\",MAX('2011 Survey responses'!G189,'2011 Survey responses'!H189))","v":""},{"$f":"IF(SUM('2011 Survey responses'!I189:L189)<4.1,\"\",(AVERAGEIFS('2011 Survey responses'!I189:L189,'2011 Survey responses'!I189:L189,\">1\")))","v":""},{"$f":"IF(SUM('2011 Survey responses'!M189:S189)<4.1,\"\",(AVERAGEIFS('2011 Survey responses'!M189:S189,'2011 Survey responses'!M189:S189,\">1\")))","v":""},{"$f":"IF(SUM('2011 Survey responses'!T189:U189)<2.1,\"\",(AVERAGEIFS('2011 Survey responses'!T189:U189,'2011 Survey responses'!T189:U189,\">1\")))","v":""},{"$f":"IF(SUM('2011 Survey responses'!V189:AO189)<1,\"\",(AVERAGEIFS('2011 Survey responses'!V189:AO189,'2011 Survey responses'!V189:AO189,\">1\")))","v":""},{"$f":"IF(SUM('2011 Survey responses'!V189:AA189)<1,\"\",(AVERAGEIFS('2011 Survey responses'!V189:AA189,'2011 Survey responses'!V189:AA189,\">1\")))","v":""},{"$f":"IF(SUM('2011 Survey responses'!AB189:AH189)<1,\"\",(AVERAGEIFS('2011 Survey responses'!AB189:AH189,'2011 Survey responses'!AB189:AH189,\">1\")))","v":""},{"$f":"IF(SUM('2011 Survey responses'!AI189:AO189)<1,\"\",(AVERAGEIFS('2011 Survey responses'!AI189:AO189,'2011 Survey responses'!AI189:AO189,\">1\")))","v":""},{"$f":"IF(('2011 Survey responses'!Y189+'2011 Survey responses'!AI189+'2011 Survey responses'!AK189)<3.1,\"\",((SUMIF('2011 Survey responses'!Y189,\">1\")+SUMIF('2011 Survey responses'!AI189,\">1\")+SUMIF('2011 Survey responses'!AK189,\">1\")+SUMIF('2011 Survey responses'!AM189,\">1\"))/(COUNTIF('2011 Survey responses'!Y189,\">1\")+COUNTIF('2011 Survey responses'!AI189,\">1\")+COUNTIF('2011 Survey responses'!AK189,\">1\")+COUNTIF('2011 Survey responses'!AM189,\">1\"))))","v":""},{"$f":"IF(('2011 Survey responses'!W189)<1.1,\"\",('2011 Survey responses'!W189))","v":""},{"$f":"IF(('2011 Survey responses'!Y189)<1.1,\"\",('2011 Survey responses'!Y189))","v":""},{"$f":"IF(('2011 Survey responses'!Z189)<1.1,\"\",('2011 Survey responses'!Z189))","v":""},{"$f":"IF(('2011 Survey responses'!V189+'2011 Survey responses'!X189+'2011 Survey responses'!AA189)<3.1,\"\",((SUMIF('2011 Survey responses'!V189,\">1\")+SUMIF('2011 Survey responses'!X189,\">1\")+SUMIF('2011 Survey responses'!AA189,\">1\"))/(COUNTIF('2011 Survey responses'!V189,\">1\")+COUNTIF('2011 Survey responses'!X189,\">1\")+COUNTIF('2011 Survey responses'!AA189,\">1\"))))","v":""},{"$f":"IF(('2011 Survey responses'!V189+'2011 Survey responses'!Y189+'2011 Survey responses'!AA189)<3.1,\"\",((SUMIF('2011 Survey responses'!V189,\">1\")+SUMIF('2011 Survey responses'!Y189,\">1\")+SUMIF('2011 Survey responses'!AA189,\">1\"))/(COUNTIF('2011 Survey responses'!V189,\">1\")+COUNTIF('2011 Survey responses'!Y189,\">1\")+COUNTIF('2011 Survey responses'!AA189,\">1\"))))","v":""},{"$f":"IF(SUM('2011 Survey responses'!AB189:AH189)<1,\"\",(AVERAGEIFS('2011 Survey responses'!AB189:AH189,'2011 Survey responses'!AB189:AH189,\">1\")))","v":""},{"$f":"IF(SUM('2011 Survey responses'!AI189:AO189)<7.1,\"\",(AVERAGEIFS('2011 Survey responses'!AI189:AO189,'2011 Survey responses'!AI189:AO189,\">1\")))","v":""},{"$f":"IF(('2011 Survey responses'!AH189)<1.1,\"\",('2011 Survey responses'!AH189))","v":""},{"$f":"IF(SUM('2011 Survey responses'!AP189:BV189)<1,\"\",(AVERAGEIFS('2011 Survey responses'!AP189:BV189,'2011 Survey responses'!AP189:BV189,\">1\")))","v":""},{"$f":"IF(SUM('2011 Survey responses'!AP189:AS189)<4.1,\"\",(AVERAGEIFS('2011 Survey responses'!AP189:AS189,'2011 Survey responses'!AP189:AS189,\">1\")))","v":""},{"$f":"IF(SUM('2011 Survey responses'!AT189:BF189)<1,\"\",(AVERAGEIFS('2011 Survey responses'!AT189:BF189,'2011 Survey responses'!AT189:BF189,\">1\")))","v":""},{"$f":"IF(SUM('2011 Survey responses'!BG189:BO189)<1,\"\",(AVERAGEIFS('2011 Survey responses'!BG189:BO189,'2011 Survey responses'!BG189:BO189,\">1\")))","v":""},{"$f":"IF(SUM('2011 Survey responses'!BP189:BS189)<1,\"\",(AVERAGEIFS('2011 Survey responses'!BP189:BS189,'2011 Survey responses'!BP189:BS189,\">1\")))","v":""},{"$f":"IF(SUM('2011 Survey responses'!BT189:BV189)<3.1,\"\",(AVERAGEIFS('2011 Survey responses'!BT189:BV189,'2011 Survey responses'!BT189:BV189,\">1\")))","v":""},{"$f":"IF(('2011 Survey responses'!AQ189+'2011 Survey responses'!AR189+'2011 Survey responses'!BG189)<3.1,\"\",((SUMIF('2011 Survey responses'!AQ189,\">1\")+SUMIF('2011 Survey responses'!AR189,\">1\")+SUMIF('2011 Survey responses'!BG189,\">1\"))/(COUNTIF('2011 Survey responses'!AQ189,\">1\")+COUNTIF('2011 Survey responses'!AR189,\">1\")+COUNTIF('2011 Survey responses'!BG189,\">1\"))))","v":""},{"$f":"IF(SUM('2011 Survey responses'!AP189:AS189)<4.1,\"\",(AVERAGEIFS('2011 Survey responses'!AP189:AS189,'2011 Survey responses'!AP189:AS189,\">1\")))","v":""},{"$f":"IF(('2011 Survey responses'!AU189+'2011 Survey responses'!AX189+'2011 Survey responses'!BA189+'2011 Survey responses'!BC189+'2011 Survey responses'!BD189)<5.1,\"\",(SUMIF('2011 Survey responses'!AU189,\">1\")+SUMIF('2011 Survey responses'!AX189,\">1\")+SUMIF('2011 Survey responses'!BA189,\">1\")+SUMIF('2011 Survey responses'!BC189,\">1\")+SUMIF('2011 Survey responses'!BD189,\">1\"))/(COUNTIF('2011 Survey responses'!AU189,\">1\")+COUNTIF('2011 Survey responses'!AX189,\">1\")+COUNTIF('2011 Survey responses'!BA189,\">1\")+COUNTIF('2011 Survey responses'!BC189,\">1\")+COUNTIF('2011 Survey responses'!BD189,\">1\")))","v":""},{"$f":"IF(('2011 Survey responses'!AT189)<1.1,\"\",('2011 Survey responses'!AT189))","v":""},{"$f":"IF(SUM('2011 Survey responses'!AV189:AW189)<2.1,\"\",(AVERAGEIFS('2011 Survey responses'!AV189:AW189,'2011 Survey responses'!AV189:AW189,\">1\")))","v":""},{"$f":"IF(('2011 Survey responses'!AW189+'2011 Survey responses'!AY189)<2.1,\"\",(SUMIF('2011 Survey responses'!AW189,\">1\")+SUMIF('2011 Survey responses'!AY189,\">1\"))/(COUNTIF('2011 Survey responses'!AW189,\">1\")+COUNTIF('2011 Survey responses'!AY189,\">1\")))","v":""},{"$f":"IF(('2011 Survey responses'!AZ189)<1.1,\"\",('2011 Survey responses'!AZ189))","v":""},null,null,null,null,{"$f":"IF(('2011 Survey responses'!BE189)<1.1,\"\",('2011 Survey responses'!BE189))","v":""},{"$f":"IF(('2011 Survey responses'!AY189+'2011 Survey responses'!BB189+'2011 Survey responses'!BF189)<3.1,\"\",(SUMIF('2011 Survey responses'!AY189,\">1\")+SUMIF('2011 Survey responses'!BB189,\">1\")+SUMIF('2011 Survey responses'!BF189,\">1\"))/(COUNTIF('2011 Survey responses'!AY189,\">1\")+COUNTIF('2011 Survey responses'!BB189,\">1\")+COUNTIF('2011 Survey responses'!BF189,\">1\")))","v":""},"",{"$f":"IF(SUM('2011 Survey responses'!BT189:BV189)<3.1,\"\",(AVERAGEIFS('2011 Survey responses'!BT189:BV189,'2011 Survey responses'!BT189:BV189,\">1\")))","v":""},{"$f":"IF(SUM('2011 Survey responses'!BW189:CP189)<1,\"\",(AVERAGEIFS('2011 Survey responses'!BW189:CP189,'2011 Survey responses'!BW189:CP189,\">1\")))","v":""},{"$f":"IF(SUM('2011 Survey responses'!BW189:CF189)<1,\"\",(AVERAGEIFS('2011 Survey responses'!BW189:CF189,'2011 Survey responses'!BW189:CF189,\">1\")))","v":""},{"$f":"IF(SUM('2011 Survey responses'!CG189:CP189)<1,\"\",(AVERAGEIFS('2011 Survey responses'!CG189:CP189,'2011 Survey responses'!CG189:CP189,\">1\")))","v":""},{"$f":"IF(SUM('2011 Survey responses'!BX189:CF189)<1,\"\",(AVERAGEIFS('2011 Survey responses'!BX189:CF189,'2011 Survey responses'!BX189:CF189,\">1\")))","v":""},{"$f":"IF(SUM('2011 Survey responses'!CH189:CP189)<1,\"\",(AVERAGEIFS('2011 Survey responses'!CH189:CP189,'2011 Survey responses'!CH189:CP189,\">1\")))","v":""},{"$f":"IF(SUM('2011 Survey responses'!BW189:CP189)<1,\"\",(AVERAGEIFS('2011 Survey responses'!BW189:CP189,'2011 Survey responses'!BW189:CP189,\">1\")))","v":""},{"$f":"IF(('2011 Survey responses'!BW189+'2011 Survey responses'!CG189)<2.1,\"\",(SUMIF('2011 Survey responses'!BW189,\">1\")+SUMIF('2011 Survey responses'!CG189,\">1\"))/(COUNTIF('2011 Survey responses'!BW189,\">1\")+COUNTIF('2011 Survey responses'!CG189,\">1\")))","v":""},{"$f":"IF(('2011 Survey responses'!BX189+'2011 Survey responses'!CH189)<2.1,\"\",(SUMIF('2011 Survey responses'!BX189,\">1\")+SUMIF('2011 Survey responses'!CH189,\">1\"))/(COUNTIF('2011 Survey responses'!BX189,\">1\")+COUNTIF('2011 Survey responses'!CH189,\">1\")))","v":""},{"$f":"IF(('2011 Survey responses'!BY189+'2011 Survey responses'!CI189)<2.1,\"\",(SUMIF('2011 Survey responses'!BY189,\">1\")+SUMIF('2011 Survey responses'!CI189,\">1\"))/(COUNTIF('2011 Survey responses'!BY189,\">1\")+COUNTIF('2011 Survey responses'!CI189,\">1\")))","v":""},{"$f":"IF('2011 Survey responses'!CQ189<0.5,\"\",'2011 Survey responses'!CQ189)","v":""},{"$f":"IF('2011 Survey responses'!CR189<0.5,\"\",'2011 Survey responses'!CR189)","v":""},{"$f":"IF('2011 Survey responses'!CS189<0.5,\"\",'2011 Survey responses'!CS189)","v":""},{"$f":"IF('2011 Survey responses'!CT189<0.5,\"\",'2011 Survey responses'!CT189)","v":""},{"$f":"IF('2011 Survey responses'!CU189<0.5,\"\",'2011 Survey responses'!CU189)","v":""},{"$f":"IF('2011 Survey responses'!CV189<0.5,\"\",'2011 Survey responses'!CV189)","v":""},{"$f":"IF(SUM('2011 Survey responses'!CW189:DL189)<1,\"\",(AVERAGE('2011 Survey responses'!CW189:DL189)))","v":""},{"$f":"IF(SUM('2011 Survey responses'!CW189:CZ189)<1,\"\",(AVERAGE('2011 Survey responses'!CW189:CZ189)))","v":""},{"$f":"IF(SUM('2011 Survey responses'!DA189:DD189)<1,\"\",(AVERAGE('2011 Survey responses'!DA189:DD189)))","v":""},{"$f":"IF(SUM('2011 Survey responses'!DE189:DH189)<1,\"\",(AVERAGE('2011 Survey responses'!DE189:DH189)))","v":""},{"$f":"IF(SUM('2011 Survey responses'!DI189:DL189)<1,\"\",(AVERAGE('2011 Survey responses'!DI189:DL189)))","v":""},{"$f":"IF(('2011 Survey responses'!CW189+'2011 Survey responses'!DA189+'2011 Survey responses'!DE189+'2011 Survey responses'!DI189)<1,\"\",AVERAGE('2011 Survey responses'!CW189,'2011 Survey responses'!DA189,'2011 Survey responses'!DE189,'2011 Survey responses'!DI189))","v":""},{"$f":"IF(('2011 Survey responses'!CX189+'2011 Survey responses'!DB189+'2011 Survey responses'!DF189+'2011 Survey responses'!DJ189)<1,\"\",AVERAGE('2011 Survey responses'!CX189,'2011 Survey responses'!DB189,'2011 Survey responses'!DF189,'2011 Survey responses'!DJ189))","v":""},{"$f":"IF(('2011 Survey responses'!CY189+'2011 Survey responses'!DC189+'2011 Survey responses'!DG189+'2011 Survey responses'!DK189)<1,\"\",AVERAGE('2011 Survey responses'!CY189,'2011 Survey responses'!DC189,'2011 Survey responses'!DG189,'2011 Survey responses'!DK189))","v":""},{"$f":"IF(('2011 Survey responses'!CZ189+'2011 Survey responses'!DD189+'2011 Survey responses'!DH189+'2011 Survey responses'!DL189)<1,\"\",AVERAGE('2011 Survey responses'!CZ189,'2011 Survey responses'!DD189,'2011 Survey responses'!DH189,'2011 Survey responses'!DL189))","v":""},{"$f":"IF('2011 Survey responses'!CW189<0.5,\"\",'2011 Survey responses'!CW189)","v":""},{"$f":"IF('2011 Survey responses'!CX189<0.5,\"\",'2011 Survey responses'!CX189)","v":""},{"$f":"IF('2011 Survey responses'!CY189<0.5,\"\",'2011 Survey responses'!CY189)","v":""},{"$f":"IF('2011 Survey responses'!CZ189<0.5,\"\",'2011 Survey responses'!CZ189)","v":""},{"$f":"IF('2011 Survey responses'!DA189<0.5,\"\",'2011 Survey responses'!DA189)","v":""},{"$f":"IF('2011 Survey responses'!DB189<0.5,\"\",'2011 Survey responses'!DB189)","v":""},{"$f":"IF('2011 Survey responses'!DC189<0.5,\"\",'2011 Survey responses'!DC189)","v":""},{"$f":"IF('2011 Survey responses'!DD189<0.5,\"\",'2011 Survey responses'!DD189)","v":""},{"$f":"IF('2011 Survey responses'!DE189<0.5,\"\",'2011 Survey responses'!DE189)","v":""},{"$f":"IF('2011 Survey responses'!DF189<0.5,\"\",'2011 Survey responses'!DF189)","v":""},{"$f":"IF('2011 Survey responses'!DG189<0.5,\"\",'2011 Survey responses'!DG189)","v":""},{"$f":"IF('2011 Survey responses'!DH189<0.5,\"\",'2011 Survey responses'!DH189)","v":""},{"$f":"IF('2011 Survey responses'!DI189<0.5,\"\",'2011 Survey responses'!DI189)","v":""},{"$f":"IF('2011 Survey responses'!DJ189<0.5,\"\",'2011 Survey responses'!DJ189)","v":""},{"$f":"IF('2011 Survey responses'!DK189<0.5,\"\",'2011 Survey responses'!DK189)","v":""},{"$f":"IF('2011 Survey responses'!DL189<0.5,\"\",'2011 Survey responses'!DL189)","v":""},{"$f":"IF('2011 Survey responses'!DU189=4,4,IF('2011 Survey responses'!DU189=5,4,\"\"))","v":""},{"$f":"IF('2011 Survey responses'!DV189=4,3,IF('2011 Survey responses'!DV189=5,3,\"\"))","v":""},"",{"$f":"IF(CQ189=2,CQ189,IF(CO189=4,CO189,IF(CP189=3,CP189,IF('2011 Survey responses'!GT189=1,1,\"\"))))","v":""},{"$f":"IF('2011 Survey responses'!DO189<0.5,\"\",'2011 Survey responses'!DO189)","v":""},{"$f":"IF('2011 Survey responses'!DP189<0.5,\"\",'2011 Survey responses'!DP189)","v":""},{"$f":"IF('2011 Survey responses'!DQ189<0.5,\"\",'2011 Survey responses'!DQ189)","v":""},{"$f":"IF('2011 Survey responses'!DR189<0.5,\"\",'2011 Survey responses'!DR189)","v":""},{"$f":"IF('2011 Survey responses'!DS189<0.5,\"\",'2011 Survey responses'!DS189)","v":""},{"$f":"IF('2011 Survey responses'!DT189<0.5,\"\",'2011 Survey responses'!DT189)","v":""},{"$f":"IF('2011 Survey responses'!DU189<0.5,\"\",'2011 Survey responses'!DU189)","v":""},{"$f":"IF('2011 Survey responses'!DV189<0.5,\"\",'2011 Survey responses'!DV189)","v":""},{"$f":"IF('2011 Survey responses'!DW189<0.5,\"\",'2011 Survey responses'!DW189)","v":""},{"$f":"IF('2011 Survey responses'!DX189<0.5,\"\",'2011 Survey responses'!DX189)","v":""},{"$f":"IF('2011 Survey responses'!DY189<0.5,\"\",'2011 Survey responses'!DY189)","v":""},{"$f":"IF('2011 Survey responses'!DZ189<0.5,\"\",'2011 Survey responses'!DZ189)","v":""},{"$f":"IF('2011 Survey responses'!EA189<0.5,\"\",'2011 Survey responses'!EA189)","v":""},{"$f":"IF('2011 Survey responses'!EB189<0.5,\"\",'2011 Survey responses'!EB189)","v":""},{"$f":"IF('2011 Survey responses'!EC189<0.5,\"\",'2011 Survey responses'!EC189)","v":""},{"$f":"IF('2011 Survey responses'!ED189<0.5,\"\",'2011 Survey responses'!ED189)","v":""},{"$f":"IF('2011 Survey responses'!EE189<0.5,\"\",'2011 Survey responses'!EE189)","v":""},{"$f":"IF('2011 Survey responses'!EF189<0.5,\"\",'2011 Survey responses'!EF189)","v":""},{"$f":"IF('2011 Survey responses'!EG189<0.5,\"\",'2011 Survey responses'!EG189)","v":""},{"$f":"IF('2011 Survey responses'!EH189<0.5,\"\",'2011 Survey responses'!EH189)","v":""},{"$f":"IF('2011 Survey responses'!EI189<0.5,\"\",'2011 Survey responses'!EI189)","v":""},{"$f":"IF('2011 Survey responses'!EJ189<0.5,\"\",'2011 Survey responses'!EJ189)","v":""},{"$f":"IF('2011 Survey responses'!EK189<0.5,\"\",'2011 Survey responses'!EK189)","v":""},{"$f":"IF('2011 Survey responses'!EL189<0.5,\"\",'2011 Survey responses'!EL189)","v":""},{"$f":"IF('2011 Survey responses'!EM189<0.5,\"\",'2011 Survey responses'!EM189)","v":""},{"$f":"IF('2011 Survey responses'!EN189<0.5,\"\",'2011 Survey responses'!EN189)","v":""},{"$f":"IF('2011 Survey responses'!EO189<0.5,\"\",'2011 Survey responses'!EO189)","v":""},{"$f":"IF('2011 Survey responses'!EP189<0.5,\"\",'2011 Survey responses'!EP189)","v":""},{"$f":"IF(('2011 Survey responses'!EW189+'2011 Survey responses'!EX189)>=2,AVERAGE('2011 Survey responses'!EW189,'2011 Survey responses'!EY189),\"\")","v":""},{"$f":"IF('2011 Survey responses'!EX189<0.5,\"\",'2011 Survey responses'!EX189)","v":""},{"$f":"IF('2011 Survey responses'!EZ189<0.5,\"\",'2011 Survey responses'!EZ189)","v":""},{"$f":"IF('2011 Survey responses'!FB189<0.5,\"\",'2011 Survey responses'!FB189)","v":""},{"$f":"IF('2011 Survey responses'!FD189<0.5,\"\",'2011 Survey responses'!FD189)","v":""},{"$f":"IF('2011 Survey responses'!FC189<0.5,\"\",'2011 Survey responses'!FC189)","v":""},{"$f":"IF(('2011 Survey responses'!EM189+'2011 Survey responses'!EN189)>=2,AVERAGE('2011 Survey responses'!EM189,'2011 Survey responses'!EN189),\"\")","v":""},{"$f":"IF('2011 Survey responses'!ES189<0.5,\"\",'2011 Survey responses'!ES189)","v":""},{"$f":"IF(('2011 Survey responses'!ET189+'2011 Survey responses'!EU189)>=2,AVERAGE('2011 Survey responses'!ET189,'2011 Survey responses'!EU189),\"\")","v":""},{"$f":"IF('2011 Survey responses'!EV189<0.5,\"\",'2011 Survey responses'!EV189)","v":""},{"$f":"IF('2011 Survey responses'!FA189<0.5,\"\",'2011 Survey responses'!FA189)","v":""},{"$f":"IF('2011 Survey responses'!ER189<0.5,\"\",'2011 Survey responses'!ER189)","v":""},{"$f":"IF(('2011 Survey responses'!EO189+'2011 Survey responses'!EP189)>=2,AVERAGE('2011 Survey responses'!EO189,'2011 Survey responses'!EP189),\"\")","v":""},{"$f":"IF('2011 Survey responses'!EQ189<0.5,\"\",'2011 Survey responses'!EQ189)","v":""},{"$f":"IF('2011 Survey responses'!ET189<0.5,\"\",'2011 Survey responses'!ET189)","v":""},{"$f":"IF('2011 Survey responses'!EU189<0.5,\"\",'2011 Survey responses'!EU189)","v":""},{"$f":"IF('2011 Survey responses'!EW189<0.5,\"\",'2011 Survey responses'!EW189)","v":""},{"$f":"IF('2011 Survey responses'!EY189<0.5,\"\",'2011 Survey responses'!EY189)","v":""},{"$f":"IF('2011 Survey responses'!FU189<0.5,\"\",'2011 Survey responses'!FU189)","v":""},{"$f":"IF(('2011 Survey responses'!FL189+'2011 Survey responses'!FM189)>=2,AVERAGE('2011 Survey responses'!FL189,'2011 Survey responses'!FM189),\"\")","v":""},{"$f":"IF(('2011 Survey responses'!FO189+'2011 Survey responses'!FQ189)>=2,AVERAGE('2011 Survey responses'!FO189,'2011 Survey responses'!FQ189),\"\")","v":""},{"$f":"IF('2011 Survey responses'!FJ189<0.5,\"\",'2011 Survey responses'!FJ189)","v":""},{"$f":"IF('2011 Survey responses'!FT189<0.5,\"\",'2011 Survey responses'!FT189)","v":""},{"$f":"IF('2011 Survey responses'!FR189<0.5,\"\",'2011 Survey responses'!FR189)","v":""},{"$f":"IF('2011 Survey responses'!FK189<0.5,\"\",'2011 Survey responses'!FK189)","v":""},{"$f":"IF('2011 Survey responses'!FP189<0.5,\"\",'2011 Survey responses'!FP189)","v":""},{"$f":"IF('2011 Survey responses'!FN189<0.5,\"\",'2011 Survey responses'!FN189)","v":""},{"$f":"IF(('2011 Survey responses'!FE189+'2011 Survey responses'!FF189)>=2,AVERAGE('2011 Survey responses'!FE189,'2011 Survey responses'!FF189),\"\")","v":""},{"$f":"IF('2011 Survey responses'!FS189<0.5,\"\",'2011 Survey responses'!FS189)","v":""},{"$f":"IF('2011 Survey responses'!FV189<0.5,\"\",'2011 Survey responses'!FV189)","v":""},{"$f":"IF(('2011 Survey responses'!FG189+'2011 Survey responses'!FH189)>=2,AVERAGE('2011 Survey responses'!FG189,'2011 Survey responses'!FH189),\"\")","v":""},{"$f":"IF('2011 Survey responses'!FI189<0.5,\"\",'2011 Survey responses'!FI189)","v":""},{"$f":"IF('2011 Survey responses'!FE189<0.5,\"\",'2011 Survey responses'!FE189)","v":""},{"$f":"IF('2011 Survey responses'!FF189<0.5,\"\",'2011 Survey responses'!FF189)","v":""},{"$f":"IF('2011 Survey responses'!FG189<0.5,\"\",'2011 Survey responses'!FG189)","v":""},{"$f":"IF('2011 Survey responses'!FH189<0.5,\"\",'2011 Survey responses'!FH189)","v":""},{"$f":"IF('2011 Survey responses'!FL189<0.5,\"\",'2011 Survey responses'!FL189)","v":""},{"$f":"IF('2011 Survey responses'!FM189<0.5,\"\",'2011 Survey responses'!FM189)","v":""},{"$f":"IF('2011 Survey responses'!FO189<0.5,\"\",'2011 Survey responses'!FO189)","v":""},{"$f":"IF('2011 Survey responses'!FQ189<0.5,\"\",'2011 Survey responses'!FQ189)","v":""}]
["Venezuela (Bolivarian Republic of)",{"$f":"IF(SUM(F190)<1,\"\",AVERAGEIF('2011 Survey responses'!B190:CP190,\">1\"))","v":""},{"$f":"IF(SUM(F190)<1,\"\",AVERAGEIF('2011 Survey responses'!B190:AO190,\">1\"))","v":""},{"$f":"IF(SUM(F190)<1,\"\",AVERAGEIF('2011 Survey responses'!B190:BV190,\">1\"))","v":""},{"$f":"IF(SUM(F190)<1,\"\",AVERAGEIF('2011 Survey responses'!V190:BV190,\">1\"))","v":""},{"$f":"IF(SUM('2011 Survey responses'!B190:U190)<1,\"\",(AVERAGEIFS('2011 Survey responses'!B190:U190,'2011 Survey responses'!B190:U190,\">1\")))","v":""},{"$f":"IF(SUM('2011 Survey responses'!B190:H190)<1,\"\",(AVERAGEIFS('2011 Survey responses'!B190:H190,'2011 Survey responses'!B190:H190,\">1\")))","v":""},{"$f":"IF(SUM('2011 Survey responses'!I190:S190)<1,\"\",(AVERAGEIFS('2011 Survey responses'!I190:S190,'2011 Survey responses'!I190:S190,\">1\")))","v":""},{"$f":"IF(SUM('2011 Survey responses'!T190:U190)<2.1,\"\",(AVERAGEIFS('2011 Survey responses'!T190:U190,'2011 Survey responses'!T190:U190,\">1\")))","v":""},{"$f":"IF(SUM('2011 Survey responses'!B190:C190)<2.1,\"\",((SUMIF('2011 Survey responses'!B190:C190,\">1\")+SUMIF('2011 Survey responses'!F190,\">1\"))/(COUNTIF('2011 Survey responses'!B190:C190,\">1\")+COUNTIF('2011 Survey responses'!F190,\">1\"))))","v":""},{"$f":"IF(SUM('2011 Survey responses'!D190:E190)<2.1,\"\",(AVERAGEIFS('2011 Survey responses'!D190:E190,'2011 Survey responses'!D190:E190,\">1\")))","v":""},{"$f":"IF(('2011 Survey responses'!B190+'2011 Survey responses'!D190)<2.1,\"\",((SUMIF('2011 Survey responses'!B190,\">1\")+SUMIF('2011 Survey responses'!D190,\">1\")+SUMIF('2011 Survey responses'!F190,\">1\")+SUMIF('2011 Survey responses'!K190,\">1\"))/(COUNTIF('2011 Survey responses'!B190,\">1\")+COUNTIF('2011 Survey responses'!D190,\">1\")+COUNTIF('2011 Survey responses'!F190,\">1\")+COUNTIF('2011 Survey responses'!K190,\">1\"))))","v":""},{"$f":"IF(SUM('2011 Survey responses'!G190:H190)<2.1,\"\",(AVERAGEIFS('2011 Survey responses'!G190:H190,'2011 Survey responses'!G190:H190,\">1\")))","v":""},{"$f":"IF(SUM('2011 Survey responses'!F190:G190)<1.5,\"\",MAX('2011 Survey responses'!F190,'2011 Survey responses'!G190))","v":""},{"$f":"IF(SUM('2011 Survey responses'!G190:H190)<1,\"\",MAX('2011 Survey responses'!G190,'2011 Survey responses'!H190))","v":""},{"$f":"IF(SUM('2011 Survey responses'!I190:L190)<4.1,\"\",(AVERAGEIFS('2011 Survey responses'!I190:L190,'2011 Survey responses'!I190:L190,\">1\")))","v":""},{"$f":"IF(SUM('2011 Survey responses'!M190:S190)<4.1,\"\",(AVERAGEIFS('2011 Survey responses'!M190:S190,'2011 Survey responses'!M190:S190,\">1\")))","v":""},{"$f":"IF(SUM('2011 Survey responses'!T190:U190)<2.1,\"\",(AVERAGEIFS('2011 Survey responses'!T190:U190,'2011 Survey responses'!T190:U190,\">1\")))","v":""},{"$f":"IF(SUM('2011 Survey responses'!V190:AO190)<1,\"\",(AVERAGEIFS('2011 Survey responses'!V190:AO190,'2011 Survey responses'!V190:AO190,\">1\")))","v":""},{"$f":"IF(SUM('2011 Survey responses'!V190:AA190)<1,\"\",(AVERAGEIFS('2011 Survey responses'!V190:AA190,'2011 Survey responses'!V190:AA190,\">1\")))","v":""},{"$f":"IF(SUM('2011 Survey responses'!AB190:AH190)<1,\"\",(AVERAGEIFS('2011 Survey responses'!AB190:AH190,'2011 Survey responses'!AB190:AH190,\">1\")))","v":""},{"$f":"IF(SUM('2011 Survey responses'!AI190:AO190)<1,\"\",(AVERAGEIFS('2011 Survey responses'!AI190:AO190,'2011 Survey responses'!AI190:AO190,\">1\")))","v":""},{"$f":"IF(('2011 Survey responses'!Y190+'2011 Survey responses'!AI190+'2011 Survey responses'!AK190)<3.1,\"\",((SUMIF('2011 Survey responses'!Y190,\">1\")+SUMIF('2011 Survey responses'!AI190,\">1\")+SUMIF('2011 Survey responses'!AK190,\">1\")+SUMIF('2011 Survey responses'!AM190,\">1\"))/(COUNTIF('2011 Survey responses'!Y190,\">1\")+COUNTIF('2011 Survey responses'!AI190,\">1\")+COUNTIF('2011 Survey responses'!AK190,\">1\")+COUNTIF('2011 Survey responses'!AM190,\">1\"))))","v":""},{"$f":"IF(('2011 Survey responses'!W190)<1.1,\"\",('2011 Survey responses'!W190))","v":""},{"$f":"IF(('2011 Survey responses'!Y190)<1.1,\"\",('2011 Survey responses'!Y190))","v":""},{"$f":"IF(('2011 Survey responses'!Z190)<1.1,\"\",('2011 Survey responses'!Z190))","v":""},{"$f":"IF(('2011 Survey responses'!V190+'2011 Survey responses'!X190+'2011 Survey responses'!AA190)<3.1,\"\",((SUMIF('2011 Survey responses'!V190,\">1\")+SUMIF('2011 Survey responses'!X190,\">1\")+SUMIF('2011 Survey responses'!AA190,\">1\"))/(COUNTIF('2011 Survey responses'!V190,\">1\")+COUNTIF('2011 Survey responses'!X190,\">1\")+COUNTIF('2011 Survey responses'!AA190,\">1\"))))","v":""},{"$f":"IF(('2011 Survey responses'!V190+'2011 Survey responses'!Y190+'2011 Survey responses'!AA190)<3.1,\"\",((SUMIF('2011 Survey responses'!V190,\">1\")+SUMIF('2011 Survey responses'!Y190,\">1\")+SUMIF('2011 Survey responses'!AA190,\">1\"))/(COUNTIF('2011 Survey responses'!V190,\">1\")+COUNTIF('2011 Survey responses'!Y190,\">1\")+COUNTIF('2011 Survey responses'!AA190,\">1\"))))","v":""},{"$f":"IF(SUM('2011 Survey responses'!AB190:AH190)<1,\"\",(AVERAGEIFS('2011 Survey responses'!AB190:AH190,'2011 Survey responses'!AB190:AH190,\">1\")))","v":""},{"$f":"IF(SUM('2011 Survey responses'!AI190:AO190)<7.1,\"\",(AVERAGEIFS('2011 Survey responses'!AI190:AO190,'2011 Survey responses'!AI190:AO190,\">1\")))","v":""},{"$f":"IF(('2011 Survey responses'!AH190)<1.1,\"\",('2011 Survey responses'!AH190))","v":""},{"$f":"IF(SUM('2011 Survey responses'!AP190:BV190)<1,\"\",(AVERAGEIFS('2011 Survey responses'!AP190:BV190,'2011 Survey responses'!AP190:BV190,\">1\")))","v":""},{"$f":"IF(SUM('2011 Survey responses'!AP190:AS190)<4.1,\"\",(AVERAGEIFS('2011 Survey responses'!AP190:AS190,'2011 Survey responses'!AP190:AS190,\">1\")))","v":""},{"$f":"IF(SUM('2011 Survey responses'!AT190:BF190)<1,\"\",(AVERAGEIFS('2011 Survey responses'!AT190:BF190,'2011 Survey responses'!AT190:BF190,\">1\")))","v":""},{"$f":"IF(SUM('2011 Survey responses'!BG190:BO190)<1,\"\",(AVERAGEIFS('2011 Survey responses'!BG190:BO190,'2011 Survey responses'!BG190:BO190,\">1\")))","v":""},{"$f":"IF(SUM('2011 Survey responses'!BP190:BS190)<1,\"\",(AVERAGEIFS('2011 Survey responses'!BP190:BS190,'2011 Survey responses'!BP190:BS190,\">1\")))","v":""},{"$f":"IF(SUM('2011 Survey responses'!BT190:BV190)<3.1,\"\",(AVERAGEIFS('2011 Survey responses'!BT190:BV190,'2011 Survey responses'!BT190:BV190,\">1\")))","v":""},{"$f":"IF(('2011 Survey responses'!AQ190+'2011 Survey responses'!AR190+'2011 Survey responses'!BG190)<3.1,\"\",((SUMIF('2011 Survey responses'!AQ190,\">1\")+SUMIF('2011 Survey responses'!AR190,\">1\")+SUMIF('2011 Survey responses'!BG190,\">1\"))/(COUNTIF('2011 Survey responses'!AQ190,\">1\")+COUNTIF('2011 Survey responses'!AR190,\">1\")+COUNTIF('2011 Survey responses'!BG190,\">1\"))))","v":""},{"$f":"IF(SUM('2011 Survey responses'!AP190:AS190)<4.1,\"\",(AVERAGEIFS('2011 Survey responses'!AP190:AS190,'2011 Survey responses'!AP190:AS190,\">1\")))","v":""},{"$f":"IF(('2011 Survey responses'!AU190+'2011 Survey responses'!AX190+'2011 Survey responses'!BA190+'2011 Survey responses'!BC190+'2011 Survey responses'!BD190)<5.1,\"\",(SUMIF('2011 Survey responses'!AU190,\">1\")+SUMIF('2011 Survey responses'!AX190,\">1\")+SUMIF('2011 Survey responses'!BA190,\">1\")+SUMIF('2011 Survey responses'!BC190,\">1\")+SUMIF('2011 Survey responses'!BD190,\">1\"))/(COUNTIF('2011 Survey responses'!AU190,\">1\")+COUNTIF('2011 Survey responses'!AX190,\">1\")+COUNTIF('2011 Survey responses'!BA190,\">1\")+COUNTIF('2011 Survey responses'!BC190,\">1\")+COUNTIF('2011 Survey responses'!BD190,\">1\")))","v":""},{"$f":"IF(('2011 Survey responses'!AT190)<1.1,\"\",('2011 Survey responses'!AT190))","v":""},{"$f":"IF(SUM('2011 Survey responses'!AV190:AW190)<2.1,\"\",(AVERAGEIFS('2011 Survey responses'!AV190:AW190,'2011 Survey responses'!AV190:AW190,\">1\")))","v":""},{"$f":"IF(('2011 Survey responses'!AW190+'2011 Survey responses'!AY190)<2.1,\"\",(SUMIF('2011 Survey responses'!AW190,\">1\")+SUMIF('2011 Survey responses'!AY190,\">1\"))/(COUNTIF('2011 Survey responses'!AW190,\">1\")+COUNTIF('2011 Survey responses'!AY190,\">1\")))","v":""},{"$f":"IF(('2011 Survey responses'!AZ190)<1.1,\"\",('2011 Survey responses'!AZ190))","v":""},null,null,null,null,{"$f":"IF(('2011 Survey responses'!BE190)<1.1,\"\",('2011 Survey responses'!BE190))","v":""},{"$f":"IF(('2011 Survey responses'!AY190+'2011 Survey responses'!BB190+'2011 Survey responses'!BF190)<3.1,\"\",(SUMIF('2011 Survey responses'!AY190,\">1\")+SUMIF('2011 Survey responses'!BB190,\">1\")+SUMIF('2011 Survey responses'!BF190,\">1\"))/(COUNTIF('2011 Survey responses'!AY190,\">1\")+COUNTIF('2011 Survey responses'!BB190,\">1\")+COUNTIF('2011 Survey responses'!BF190,\">1\")))","v":""},"",{"$f":"IF(SUM('2011 Survey responses'!BT190:BV190)<3.1,\"\",(AVERAGEIFS('2011 Survey responses'!BT190:BV190,'2011 Survey responses'!BT190:BV190,\">1\")))","v":""},{"$f":"IF(SUM('2011 Survey responses'!BW190:CP190)<1,\"\",(AVERAGEIFS('2011 Survey responses'!BW190:CP190,'2011 Survey responses'!BW190:CP190,\">1\")))","v":""},{"$f":"IF(SUM('2011 Survey responses'!BW190:CF190)<1,\"\",(AVERAGEIFS('2011 Survey responses'!BW190:CF190,'2011 Survey responses'!BW190:CF190,\">1\")))","v":""},{"$f":"IF(SUM('2011 Survey responses'!CG190:CP190)<1,\"\",(AVERAGEIFS('2011 Survey responses'!CG190:CP190,'2011 Survey responses'!CG190:CP190,\">1\")))","v":""},{"$f":"IF(SUM('2011 Survey responses'!BX190:CF190)<1,\"\",(AVERAGEIFS('2011 Survey responses'!BX190:CF190,'2011 Survey responses'!BX190:CF190,\">1\")))","v":""},{"$f":"IF(SUM('2011 Survey responses'!CH190:CP190)<1,\"\",(AVERAGEIFS('2011 Survey responses'!CH190:CP190,'2011 Survey responses'!CH190:CP190,\">1\")))","v":""},{"$f":"IF(SUM('2011 Survey responses'!BW190:CP190)<1,\"\",(AVERAGEIFS('2011 Survey responses'!BW190:CP190,'2011 Survey responses'!BW190:CP190,\">1\")))","v":""},{"$f":"IF(('2011 Survey responses'!BW190+'2011 Survey responses'!CG190)<2.1,\"\",(SUMIF('2011 Survey responses'!BW190,\">1\")+SUMIF('2011 Survey responses'!CG190,\">1\"))/(COUNTIF('2011 Survey responses'!BW190,\">1\")+COUNTIF('2011 Survey responses'!CG190,\">1\")))","v":""},{"$f":"IF(('2011 Survey responses'!BX190+'2011 Survey responses'!CH190)<2.1,\"\",(SUMIF('2011 Survey responses'!BX190,\">1\")+SUMIF('2011 Survey responses'!CH190,\">1\"))/(COUNTIF('2011 Survey responses'!BX190,\">1\")+COUNTIF('2011 Survey responses'!CH190,\">1\")))","v":""},{"$f":"IF(('2011 Survey responses'!BY190+'2011 Survey responses'!CI190)<2.1,\"\",(SUMIF('2011 Survey responses'!BY190,\">1\")+SUMIF('2011 Survey responses'!CI190,\">1\"))/(COUNTIF('2011 Survey responses'!BY190,\">1\")+COUNTIF('2011 Survey responses'!CI190,\">1\")))","v":""},{"$f":"IF('2011 Survey responses'!CQ190<0.5,\"\",'2011 Survey responses'!CQ190)","v":""},{"$f":"IF('2011 Survey responses'!CR190<0.5,\"\",'2011 Survey responses'!CR190)","v":""},{"$f":"IF('2011 Survey responses'!CS190<0.5,\"\",'2011 Survey responses'!CS190)","v":""},{"$f":"IF('2011 Survey responses'!CT190<0.5,\"\",'2011 Survey responses'!CT190)","v":""},{"$f":"IF('2011 Survey responses'!CU190<0.5,\"\",'2011 Survey responses'!CU190)","v":""},{"$f":"IF('2011 Survey responses'!CV190<0.5,\"\",'2011 Survey responses'!CV190)","v":""},{"$f":"IF(SUM('2011 Survey responses'!CW190:DL190)<1,\"\",(AVERAGE('2011 Survey responses'!CW190:DL190)))","v":""},{"$f":"IF(SUM('2011 Survey responses'!CW190:CZ190)<1,\"\",(AVERAGE('2011 Survey responses'!CW190:CZ190)))","v":""},{"$f":"IF(SUM('2011 Survey responses'!DA190:DD190)<1,\"\",(AVERAGE('2011 Survey responses'!DA190:DD190)))","v":""},{"$f":"IF(SUM('2011 Survey responses'!DE190:DH190)<1,\"\",(AVERAGE('2011 Survey responses'!DE190:DH190)))","v":""},{"$f":"IF(SUM('2011 Survey responses'!DI190:DL190)<1,\"\",(AVERAGE('2011 Survey responses'!DI190:DL190)))","v":""},{"$f":"IF(('2011 Survey responses'!CW190+'2011 Survey responses'!DA190+'2011 Survey responses'!DE190+'2011 Survey responses'!DI190)<1,\"\",AVERAGE('2011 Survey responses'!CW190,'2011 Survey responses'!DA190,'2011 Survey responses'!DE190,'2011 Survey responses'!DI190))","v":""},{"$f":"IF(('2011 Survey responses'!CX190+'2011 Survey responses'!DB190+'2011 Survey responses'!DF190+'2011 Survey responses'!DJ190)<1,\"\",AVERAGE('2011 Survey responses'!CX190,'2011 Survey responses'!DB190,'2011 Survey responses'!DF190,'2011 Survey responses'!DJ190))","v":""},{"$f":"IF(('2011 Survey responses'!CY190+'2011 Survey responses'!DC190+'2011 Survey responses'!DG190+'2011 Survey responses'!DK190)<1,\"\",AVERAGE('2011 Survey responses'!CY190,'2011 Survey responses'!DC190,'2011 Survey responses'!DG190,'2011 Survey responses'!DK190))","v":""},{"$f":"IF(('2011 Survey responses'!CZ190+'2011 Survey responses'!DD190+'2011 Survey responses'!DH190+'2011 Survey responses'!DL190)<1,\"\",AVERAGE('2011 Survey responses'!CZ190,'2011 Survey responses'!DD190,'2011 Survey responses'!DH190,'2011 Survey responses'!DL190))","v":""},{"$f":"IF('2011 Survey responses'!CW190<0.5,\"\",'2011 Survey responses'!CW190)","v":""},{"$f":"IF('2011 Survey responses'!CX190<0.5,\"\",'2011 Survey responses'!CX190)","v":""},{"$f":"IF('2011 Survey responses'!CY190<0.5,\"\",'2011 Survey responses'!CY190)","v":""},{"$f":"IF('2011 Survey responses'!CZ190<0.5,\"\",'2011 Survey responses'!CZ190)","v":""},{"$f":"IF('2011 Survey responses'!DA190<0.5,\"\",'2011 Survey responses'!DA190)","v":""},{"$f":"IF('2011 Survey responses'!DB190<0.5,\"\",'2011 Survey responses'!DB190)","v":""},{"$f":"IF('2011 Survey responses'!DC190<0.5,\"\",'2011 Survey responses'!DC190)","v":""},{"$f":"IF('2011 Survey responses'!DD190<0.5,\"\",'2011 Survey responses'!DD190)","v":""},{"$f":"IF('2011 Survey responses'!DE190<0.5,\"\",'2011 Survey responses'!DE190)","v":""},{"$f":"IF('2011 Survey responses'!DF190<0.5,\"\",'2011 Survey responses'!DF190)","v":""},{"$f":"IF('2011 Survey responses'!DG190<0.5,\"\",'2011 Survey responses'!DG190)","v":""},{"$f":"IF('2011 Survey responses'!DH190<0.5,\"\",'2011 Survey responses'!DH190)","v":""},{"$f":"IF('2011 Survey responses'!DI190<0.5,\"\",'2011 Survey responses'!DI190)","v":""},{"$f":"IF('2011 Survey responses'!DJ190<0.5,\"\",'2011 Survey responses'!DJ190)","v":""},{"$f":"IF('2011 Survey responses'!DK190<0.5,\"\",'2011 Survey responses'!DK190)","v":""},{"$f":"IF('2011 Survey responses'!DL190<0.5,\"\",'2011 Survey responses'!DL190)","v":""},{"$f":"IF('2011 Survey responses'!DU190=4,4,IF('2011 Survey responses'!DU190=5,4,\"\"))","v":""},{"$f":"IF('2011 Survey responses'!DV190=4,3,IF('2011 Survey responses'!DV190=5,3,\"\"))","v":""},"",{"$f":"IF(CQ190=2,CQ190,IF(CO190=4,CO190,IF(CP190=3,CP190,IF('2011 Survey responses'!GT190=1,1,\"\"))))","v":""},{"$f":"IF('2011 Survey responses'!DO190<0.5,\"\",'2011 Survey responses'!DO190)","v":""},{"$f":"IF('2011 Survey responses'!DP190<0.5,\"\",'2011 Survey responses'!DP190)","v":""},{"$f":"IF('2011 Survey responses'!DQ190<0.5,\"\",'2011 Survey responses'!DQ190)","v":""},{"$f":"IF('2011 Survey responses'!DR190<0.5,\"\",'2011 Survey responses'!DR190)","v":""},{"$f":"IF('2011 Survey responses'!DS190<0.5,\"\",'2011 Survey responses'!DS190)","v":""},{"$f":"IF('2011 Survey responses'!DT190<0.5,\"\",'2011 Survey responses'!DT190)","v":""},{"$f":"IF('2011 Survey responses'!DU190<0.5,\"\",'2011 Survey responses'!DU190)","v":""},{"$f":"IF('2011 Survey responses'!DV190<0.5,\"\",'2011 Survey responses'!DV190)","v":""},{"$f":"IF('2011 Survey responses'!DW190<0.5,\"\",'2011 Survey responses'!DW190)","v":""},{"$f":"IF('2011 Survey responses'!DX190<0.5,\"\",'2011 Survey responses'!DX190)","v":""},{"$f":"IF('2011 Survey responses'!DY190<0.5,\"\",'2011 Survey responses'!DY190)","v":""},{"$f":"IF('2011 Survey responses'!DZ190<0.5,\"\",'2011 Survey responses'!DZ190)","v":""},{"$f":"IF('2011 Survey responses'!EA190<0.5,\"\",'2011 Survey responses'!EA190)","v":""},{"$f":"IF('2011 Survey responses'!EB190<0.5,\"\",'2011 Survey responses'!EB190)","v":""},{"$f":"IF('2011 Survey responses'!EC190<0.5,\"\",'2011 Survey responses'!EC190)","v":""},{"$f":"IF('2011 Survey responses'!ED190<0.5,\"\",'2011 Survey responses'!ED190)","v":""},{"$f":"IF('2011 Survey responses'!EE190<0.5,\"\",'2011 Survey responses'!EE190)","v":""},{"$f":"IF('2011 Survey responses'!EF190<0.5,\"\",'2011 Survey responses'!EF190)","v":""},{"$f":"IF('2011 Survey responses'!EG190<0.5,\"\",'2011 Survey responses'!EG190)","v":""},{"$f":"IF('2011 Survey responses'!EH190<0.5,\"\",'2011 Survey responses'!EH190)","v":""},{"$f":"IF('2011 Survey responses'!EI190<0.5,\"\",'2011 Survey responses'!EI190)","v":""},{"$f":"IF('2011 Survey responses'!EJ190<0.5,\"\",'2011 Survey responses'!EJ190)","v":""},{"$f":"IF('2011 Survey responses'!EK190<0.5,\"\",'2011 Survey responses'!EK190)","v":""},{"$f":"IF('2011 Survey responses'!EL190<0.5,\"\",'2011 Survey responses'!EL190)","v":""},{"$f":"IF('2011 Survey responses'!EM190<0.5,\"\",'2011 Survey responses'!EM190)","v":""},{"$f":"IF('2011 Survey responses'!EN190<0.5,\"\",'2011 Survey responses'!EN190)","v":""},{"$f":"IF('2011 Survey responses'!EO190<0.5,\"\",'2011 Survey responses'!EO190)","v":""},{"$f":"IF('2011 Survey responses'!EP190<0.5,\"\",'2011 Survey responses'!EP190)","v":""},{"$f":"IF(('2011 Survey responses'!EW190+'2011 Survey responses'!EX190)>=2,AVERAGE('2011 Survey responses'!EW190,'2011 Survey responses'!EY190),\"\")","v":""},{"$f":"IF('2011 Survey responses'!EX190<0.5,\"\",'2011 Survey responses'!EX190)","v":""},{"$f":"IF('2011 Survey responses'!EZ190<0.5,\"\",'2011 Survey responses'!EZ190)","v":""},{"$f":"IF('2011 Survey responses'!FB190<0.5,\"\",'2011 Survey responses'!FB190)","v":""},{"$f":"IF('2011 Survey responses'!FD190<0.5,\"\",'2011 Survey responses'!FD190)","v":""},{"$f":"IF('2011 Survey responses'!FC190<0.5,\"\",'2011 Survey responses'!FC190)","v":""},{"$f":"IF(('2011 Survey responses'!EM190+'2011 Survey responses'!EN190)>=2,AVERAGE('2011 Survey responses'!EM190,'2011 Survey responses'!EN190),\"\")","v":""},{"$f":"IF('2011 Survey responses'!ES190<0.5,\"\",'2011 Survey responses'!ES190)","v":""},{"$f":"IF(('2011 Survey responses'!ET190+'2011 Survey responses'!EU190)>=2,AVERAGE('2011 Survey responses'!ET190,'2011 Survey responses'!EU190),\"\")","v":""},{"$f":"IF('2011 Survey responses'!EV190<0.5,\"\",'2011 Survey responses'!EV190)","v":""},{"$f":"IF('2011 Survey responses'!FA190<0.5,\"\",'2011 Survey responses'!FA190)","v":""},{"$f":"IF('2011 Survey responses'!ER190<0.5,\"\",'2011 Survey responses'!ER190)","v":""},{"$f":"IF(('2011 Survey responses'!EO190+'2011 Survey responses'!EP190)>=2,AVERAGE('2011 Survey responses'!EO190,'2011 Survey responses'!EP190),\"\")","v":""},{"$f":"IF('2011 Survey responses'!EQ190<0.5,\"\",'2011 Survey responses'!EQ190)","v":""},{"$f":"IF('2011 Survey responses'!ET190<0.5,\"\",'2011 Survey responses'!ET190)","v":""},{"$f":"IF('2011 Survey responses'!EU190<0.5,\"\",'2011 Survey responses'!EU190)","v":""},{"$f":"IF('2011 Survey responses'!EW190<0.5,\"\",'2011 Survey responses'!EW190)","v":""},{"$f":"IF('2011 Survey responses'!EY190<0.5,\"\",'2011 Survey responses'!EY190)","v":""},{"$f":"IF('2011 Survey responses'!FU190<0.5,\"\",'2011 Survey responses'!FU190)","v":""},{"$f":"IF(('2011 Survey responses'!FL190+'2011 Survey responses'!FM190)>=2,AVERAGE('2011 Survey responses'!FL190,'2011 Survey responses'!FM190),\"\")","v":""},{"$f":"IF(('2011 Survey responses'!FO190+'2011 Survey responses'!FQ190)>=2,AVERAGE('2011 Survey responses'!FO190,'2011 Survey responses'!FQ190),\"\")","v":""},{"$f":"IF('2011 Survey responses'!FJ190<0.5,\"\",'2011 Survey responses'!FJ190)","v":""},{"$f":"IF('2011 Survey responses'!FT190<0.5,\"\",'2011 Survey responses'!FT190)","v":""},{"$f":"IF('2011 Survey responses'!FR190<0.5,\"\",'2011 Survey responses'!FR190)","v":""},{"$f":"IF('2011 Survey responses'!FK190<0.5,\"\",'2011 Survey responses'!FK190)","v":""},{"$f":"IF('2011 Survey responses'!FP190<0.5,\"\",'2011 Survey responses'!FP190)","v":""},{"$f":"IF('2011 Survey responses'!FN190<0.5,\"\",'2011 Survey responses'!FN190)","v":""},{"$f":"IF(('2011 Survey responses'!FE190+'2011 Survey responses'!FF190)>=2,AVERAGE('2011 Survey responses'!FE190,'2011 Survey responses'!FF190),\"\")","v":""},{"$f":"IF('2011 Survey responses'!FS190<0.5,\"\",'2011 Survey responses'!FS190)","v":""},{"$f":"IF('2011 Survey responses'!FV190<0.5,\"\",'2011 Survey responses'!FV190)","v":""},{"$f":"IF(('2011 Survey responses'!FG190+'2011 Survey responses'!FH190)>=2,AVERAGE('2011 Survey responses'!FG190,'2011 Survey responses'!FH190),\"\")","v":""},{"$f":"IF('2011 Survey responses'!FI190<0.5,\"\",'2011 Survey responses'!FI190)","v":""},{"$f":"IF('2011 Survey responses'!FE190<0.5,\"\",'2011 Survey responses'!FE190)","v":""},{"$f":"IF('2011 Survey responses'!FF190<0.5,\"\",'2011 Survey responses'!FF190)","v":""},{"$f":"IF('2011 Survey responses'!FG190<0.5,\"\",'2011 Survey responses'!FG190)","v":""},{"$f":"IF('2011 Survey responses'!FH190<0.5,\"\",'2011 Survey responses'!FH190)","v":""},{"$f":"IF('2011 Survey responses'!FL190<0.5,\"\",'2011 Survey responses'!FL190)","v":""},{"$f":"IF('2011 Survey responses'!FM190<0.5,\"\",'2011 Survey responses'!FM190)","v":""},{"$f":"IF('2011 Survey responses'!FO190<0.5,\"\",'2011 Survey responses'!FO190)","v":""},{"$f":"IF('2011 Survey responses'!FQ190<0.5,\"\",'2011 Survey responses'!FQ190)","v":""}]
["Viet Nam",{"$f":"IF(SUM(F191)<1,\"\",AVERAGEIF('2011 Survey responses'!B191:CP191,\">1\"))","v":2.4285714285714284},{"$f":"IF(SUM(F191)<1,\"\",AVERAGEIF('2011 Survey responses'!B191:AO191,\">1\"))","v":2.3846153846153846},{"$f":"IF(SUM(F191)<1,\"\",AVERAGEIF('2011 Survey responses'!B191:BV191,\">1\"))","v":2.352112676056338},{"$f":"IF(SUM(F191)<1,\"\",AVERAGEIF('2011 Survey responses'!V191:BV191,\">1\"))","v":2.2692307692307692},{"$f":"IF(SUM('2011 Survey responses'!B191:U191)<1,\"\",(AVERAGEIFS('2011 Survey responses'!B191:U191,'2011 Survey responses'!B191:U191,\">1\")))","v":2.5789473684210527},{"$f":"IF(SUM('2011 Survey responses'!B191:H191)<1,\"\",(AVERAGEIFS('2011 Survey responses'!B191:H191,'2011 Survey responses'!B191:H191,\">1\")))","v":3.6666666666666665},{"$f":"IF(SUM('2011 Survey responses'!I191:S191)<1,\"\",(AVERAGEIFS('2011 Survey responses'!I191:S191,'2011 Survey responses'!I191:S191,\">1\")))","v":2.0909090909090908},{"$f":"IF(SUM('2011 Survey responses'!T191:U191)<2.1,\"\",(AVERAGEIFS('2011 Survey responses'!T191:U191,'2011 Survey responses'!T191:U191,\">1\")))","v":2},{"$f":"IF(SUM('2011 Survey responses'!B191:C191)<2.1,\"\",((SUMIF('2011 Survey responses'!B191:C191,\">1\")+SUMIF('2011 Survey responses'!F191,\">1\"))/(COUNTIF('2011 Survey responses'!B191:C191,\">1\")+COUNTIF('2011 Survey responses'!F191,\">1\"))))","v":4.333333333333333},{"$f":"IF(SUM('2011 Survey responses'!D191:E191)<2.1,\"\",(AVERAGEIFS('2011 Survey responses'!D191:E191,'2011 Survey responses'!D191:E191,\">1\")))","v":5},{"$f":"IF(('2011 Survey responses'!B191+'2011 Survey responses'!D191)<2.1,\"\",((SUMIF('2011 Survey responses'!B191,\">1\")+SUMIF('2011 Survey responses'!D191,\">1\")+SUMIF('2011 Survey responses'!F191,\">1\")+SUMIF('2011 Survey responses'!K191,\">1\"))/(COUNTIF('2011 Survey responses'!B191,\">1\")+COUNTIF('2011 Survey responses'!D191,\">1\")+COUNTIF('2011 Survey responses'!F191,\">1\")+COUNTIF('2011 Survey responses'!K191,\">1\"))))","v":4},{"$f":"IF(SUM('2011 Survey responses'!G191:H191)<2.1,\"\",(AVERAGEIFS('2011 Survey responses'!G191:H191,'2011 Survey responses'!G191:H191,\">1\")))","v":2},{"$f":"IF(SUM('2011 Survey responses'!F191:G191)<1.5,\"\",MAX('2011 Survey responses'!F191,'2011 Survey responses'!G191))","v":4},{"$f":"IF(SUM('2011 Survey responses'!G191:H191)<1,\"\",MAX('2011 Survey responses'!G191,'2011 Survey responses'!H191))","v":2},{"$f":"IF(SUM('2011 Survey responses'!I191:L191)<4.1,\"\",(AVERAGEIFS('2011 Survey responses'!I191:L191,'2011 Survey responses'!I191:L191,\">1\")))","v":2},{"$f":"IF(SUM('2011 Survey responses'!M191:S191)<4.1,\"\",(AVERAGEIFS('2011 Survey responses'!M191:S191,'2011 Survey responses'!M191:S191,\">1\")))","v":2.1428571428571428},{"$f":"IF(SUM('2011 Survey responses'!T191:U191)<2.1,\"\",(AVERAGEIFS('2011 Survey responses'!T191:U191,'2011 Survey responses'!T191:U191,\">1\")))","v":2},{"$f":"IF(SUM('2011 Survey responses'!V191:AO191)<1,\"\",(AVERAGEIFS('2011 Survey responses'!V191:AO191,'2011 Survey responses'!V191:AO191,\">1\")))","v":2.2000000000000002},{"$f":"IF(SUM('2011 Survey responses'!V191:AA191)<1,\"\",(AVERAGEIFS('2011 Survey responses'!V191:AA191,'2011 Survey responses'!V191:AA191,\">1\")))","v":2.1666666666666665},{"$f":"IF(SUM('2011 Survey responses'!AB191:AH191)<1,\"\",(AVERAGEIFS('2011 Survey responses'!AB191:AH191,'2011 Survey responses'!AB191:AH191,\">1\")))","v":2.4285714285714284},{"$f":"IF(SUM('2011 Survey responses'!AI191:AO191)<1,\"\",(AVERAGEIFS('2011 Survey responses'!AI191:AO191,'2011 Survey responses'!AI191:AO191,\">1\")))","v":2},{"$f":"IF(('2011 Survey responses'!Y191+'2011 Survey responses'!AI191+'2011 Survey responses'!AK191)<3.1,\"\",((SUMIF('2011 Survey responses'!Y191,\">1\")+SUMIF('2011 Survey responses'!AI191,\">1\")+SUMIF('2011 Survey responses'!AK191,\">1\")+SUMIF('2011 Survey responses'!AM191,\">1\"))/(COUNTIF('2011 Survey responses'!Y191,\">1\")+COUNTIF('2011 Survey responses'!AI191,\">1\")+COUNTIF('2011 Survey responses'!AK191,\">1\")+COUNTIF('2011 Survey responses'!AM191,\">1\"))))","v":2},{"$f":"IF(('2011 Survey responses'!W191)<1.1,\"\",('2011 Survey responses'!W191))","v":2},{"$f":"IF(('2011 Survey responses'!Y191)<1.1,\"\",('2011 Survey responses'!Y191))","v":2},{"$f":"IF(('2011 Survey responses'!Z191)<1.1,\"\",('2011 Survey responses'!Z191))","v":2},{"$f":"IF(('2011 Survey responses'!V191+'2011 Survey responses'!X191+'2011 Survey responses'!AA191)<3.1,\"\",((SUMIF('2011 Survey responses'!V191,\">1\")+SUMIF('2011 Survey responses'!X191,\">1\")+SUMIF('2011 Survey responses'!AA191,\">1\"))/(COUNTIF('2011 Survey responses'!V191,\">1\")+COUNTIF('2011 Survey responses'!X191,\">1\")+COUNTIF('2011 Survey responses'!AA191,\">1\"))))","v":2.3333333333333335},{"$f":"IF(('2011 Survey responses'!V191+'2011 Survey responses'!Y191+'2011 Survey responses'!AA191)<3.1,\"\",((SUMIF('2011 Survey responses'!V191,\">1\")+SUMIF('2011 Survey responses'!Y191,\">1\")+SUMIF('2011 Survey responses'!AA191,\">1\"))/(COUNTIF('2011 Survey responses'!V191,\">1\")+COUNTIF('2011 Survey responses'!Y191,\">1\")+COUNTIF('2011 Survey responses'!AA191,\">1\"))))","v":2.3333333333333335},{"$f":"IF(SUM('2011 Survey responses'!AB191:AH191)<1,\"\",(AVERAGEIFS('2011 Survey responses'!AB191:AH191,'2011 Survey responses'!AB191:AH191,\">1\")))","v":2.4285714285714284},{"$f":"IF(SUM('2011 Survey responses'!AI191:AO191)<7.1,\"\",(AVERAGEIFS('2011 Survey responses'!AI191:AO191,'2011 Survey responses'!AI191:AO191,\">1\")))","v":2},{"$f":"IF(('2011 Survey responses'!AH191)<1.1,\"\",('2011 Survey responses'!AH191))","v":2},{"$f":"IF(SUM('2011 Survey responses'!AP191:BV191)<1,\"\",(AVERAGEIFS('2011 Survey responses'!AP191:BV191,'2011 Survey responses'!AP191:BV191,\">1\")))","v":2.3125},{"$f":"IF(SUM('2011 Survey responses'!AP191:AS191)<4.1,\"\",(AVERAGEIFS('2011 Survey responses'!AP191:AS191,'2011 Survey responses'!AP191:AS191,\">1\")))","v":2},{"$f":"IF(SUM('2011 Survey responses'!AT191:BF191)<1,\"\",(AVERAGEIFS('2011 Survey responses'!AT191:BF191,'2011 Survey responses'!AT191:BF191,\">1\")))","v":2},{"$f":"IF(SUM('2011 Survey responses'!BG191:BO191)<1,\"\",(AVERAGEIFS('2011 Survey responses'!BG191:BO191,'2011 Survey responses'!BG191:BO191,\">1\")))","v":3.1111111111111112},{"$f":"IF(SUM('2011 Survey responses'!BP191:BS191)<1,\"\",(AVERAGEIFS('2011 Survey responses'!BP191:BS191,'2011 Survey responses'!BP191:BS191,\">1\")))","v":2},{"$f":"IF(SUM('2011 Survey responses'!BT191:BV191)<3.1,\"\",(AVERAGEIFS('2011 Survey responses'!BT191:BV191,'2011 Survey responses'!BT191:BV191,\">1\")))","v":2},{"$f":"IF(('2011 Survey responses'!AQ191+'2011 Survey responses'!AR191+'2011 Survey responses'!BG191)<3.1,\"\",((SUMIF('2011 Survey responses'!AQ191,\">1\")+SUMIF('2011 Survey responses'!AR191,\">1\")+SUMIF('2011 Survey responses'!BG191,\">1\"))/(COUNTIF('2011 Survey responses'!AQ191,\">1\")+COUNTIF('2011 Survey responses'!AR191,\">1\")+COUNTIF('2011 Survey responses'!BG191,\">1\"))))","v":3},{"$f":"IF(SUM('2011 Survey responses'!AP191:AS191)<4.1,\"\",(AVERAGEIFS('2011 Survey responses'!AP191:AS191,'2011 Survey responses'!AP191:AS191,\">1\")))","v":2},{"$f":"IF(('2011 Survey responses'!AU191+'2011 Survey responses'!AX191+'2011 Survey responses'!BA191+'2011 Survey responses'!BC191+'2011 Survey responses'!BD191)<5.1,\"\",(SUMIF('2011 Survey responses'!AU191,\">1\")+SUMIF('2011 Survey responses'!AX191,\">1\")+SUMIF('2011 Survey responses'!BA191,\">1\")+SUMIF('2011 Survey responses'!BC191,\">1\")+SUMIF('2011 Survey responses'!BD191,\">1\"))/(COUNTIF('2011 Survey responses'!AU191,\">1\")+COUNTIF('2011 Survey responses'!AX191,\">1\")+COUNTIF('2011 Survey responses'!BA191,\">1\")+COUNTIF('2011 Survey responses'!BC191,\">1\")+COUNTIF('2011 Survey responses'!BD191,\">1\")))","v":2},{"$f":"IF(('2011 Survey responses'!AT191)<1.1,\"\",('2011 Survey responses'!AT191))","v":2},{"$f":"IF(SUM('2011 Survey responses'!AV191:AW191)<2.1,\"\",(AVERAGEIFS('2011 Survey responses'!AV191:AW191,'2011 Survey responses'!AV191:AW191,\">1\")))","v":2},{"$f":"IF(('2011 Survey responses'!AW191+'2011 Survey responses'!AY191)<2.1,\"\",(SUMIF('2011 Survey responses'!AW191,\">1\")+SUMIF('2011 Survey responses'!AY191,\">1\"))/(COUNTIF('2011 Survey responses'!AW191,\">1\")+COUNTIF('2011 Survey responses'!AY191,\">1\")))","v":2},{"$f":"IF(('2011 Survey responses'!AZ191)<1.1,\"\",('2011 Survey responses'!AZ191))","v":2},null,null,null,null,{"$f":"IF(('2011 Survey responses'!BE191)<1.1,\"\",('2011 Survey responses'!BE191))","v":2},{"$f":"IF(('2011 Survey responses'!AY191+'2011 Survey responses'!BB191+'2011 Survey responses'!BF191)<3.1,\"\",(SUMIF('2011 Survey responses'!AY191,\">1\")+SUMIF('2011 Survey responses'!BB191,\">1\")+SUMIF('2011 Survey responses'!BF191,\">1\"))/(COUNTIF('2011 Survey responses'!AY191,\">1\")+COUNTIF('2011 Survey responses'!BB191,\">1\")+COUNTIF('2011 Survey responses'!BF191,\">1\")))","v":2},2.5555555555555554,{"$f":"IF(SUM('2011 Survey responses'!BT191:BV191)<3.1,\"\",(AVERAGEIFS('2011 Survey responses'!BT191:BV191,'2011 Survey responses'!BT191:BV191,\">1\")))","v":2},{"$f":"IF(SUM('2011 Survey responses'!BW191:CP191)<1,\"\",(AVERAGEIFS('2011 Survey responses'!BW191:CP191,'2011 Survey responses'!BW191:CP191,\">1\")))","v":2.7},{"$f":"IF(SUM('2011 Survey responses'!BW191:CF191)<1,\"\",(AVERAGEIFS('2011 Survey responses'!BW191:CF191,'2011 Survey responses'!BW191:CF191,\">1\")))","v":2.8},{"$f":"IF(SUM('2011 Survey responses'!CG191:CP191)<1,\"\",(AVERAGEIFS('2011 Survey responses'!CG191:CP191,'2011 Survey responses'!CG191:CP191,\">1\")))","v":2.6},{"$f":"IF(SUM('2011 Survey responses'!BX191:CF191)<1,\"\",(AVERAGEIFS('2011 Survey responses'!BX191:CF191,'2011 Survey responses'!BX191:CF191,\">1\")))","v":2.8888888888888888},{"$f":"IF(SUM('2011 Survey responses'!CH191:CP191)<1,\"\",(AVERAGEIFS('2011 Survey responses'!CH191:CP191,'2011 Survey responses'!CH191:CP191,\">1\")))","v":2.6666666666666665},{"$f":"IF(SUM('2011 Survey responses'!BW191:CP191)<1,\"\",(AVERAGEIFS('2011 Survey responses'!BW191:CP191,'2011 Survey responses'!BW191:CP191,\">1\")))","v":2.7},{"$f":"IF(('2011 Survey responses'!BW191+'2011 Survey responses'!CG191)<2.1,\"\",(SUMIF('2011 Survey responses'!BW191,\">1\")+SUMIF('2011 Survey responses'!CG191,\">1\"))/(COUNTIF('2011 Survey responses'!BW191,\">1\")+COUNTIF('2011 Survey responses'!CG191,\">1\")))","v":2},{"$f":"IF(('2011 Survey responses'!BX191+'2011 Survey responses'!CH191)<2.1,\"\",(SUMIF('2011 Survey responses'!BX191,\">1\")+SUMIF('2011 Survey responses'!CH191,\">1\"))/(COUNTIF('2011 Survey responses'!BX191,\">1\")+COUNTIF('2011 Survey responses'!CH191,\">1\")))","v":3},{"$f":"IF(('2011 Survey responses'!BY191+'2011 Survey responses'!CI191)<2.1,\"\",(SUMIF('2011 Survey responses'!BY191,\">1\")+SUMIF('2011 Survey responses'!CI191,\">1\"))/(COUNTIF('2011 Survey responses'!BY191,\">1\")+COUNTIF('2011 Survey responses'!CI191,\">1\")))","v":3},{"$f":"IF('2011 Survey responses'!CQ191<0.5,\"\",'2011 Survey responses'!CQ191)","v":1},{"$f":"IF('2011 Survey responses'!CR191<0.5,\"\",'2011 Survey responses'!CR191)","v":4},{"$f":"IF('2011 Survey responses'!CS191<0.5,\"\",'2011 Survey responses'!CS191)","v":2},{"$f":"IF('2011 Survey responses'!CT191<0.5,\"\",'2011 Survey responses'!CT191)","v":3},{"$f":"IF('2011 Survey responses'!CU191<0.5,\"\",'2011 Survey responses'!CU191)","v":3},{"$f":"IF('2011 Survey responses'!CV191<0.5,\"\",'2011 Survey responses'!CV191)","v":3},{"$f":"IF(SUM('2011 Survey responses'!CW191:DL191)<1,\"\",(AVERAGE('2011 Survey responses'!CW191:DL191)))","v":2.75},{"$f":"IF(SUM('2011 Survey responses'!CW191:CZ191)<1,\"\",(AVERAGE('2011 Survey responses'!CW191:CZ191)))","v":3},{"$f":"IF(SUM('2011 Survey responses'!DA191:DD191)<1,\"\",(AVERAGE('2011 Survey responses'!DA191:DD191)))","v":3},{"$f":"IF(SUM('2011 Survey responses'!DE191:DH191)<1,\"\",(AVERAGE('2011 Survey responses'!DE191:DH191)))","v":2},{"$f":"IF(SUM('2011 Survey responses'!DI191:DL191)<1,\"\",(AVERAGE('2011 Survey responses'!DI191:DL191)))","v":3},{"$f":"IF(('2011 Survey responses'!CW191+'2011 Survey responses'!DA191+'2011 Survey responses'!DE191+'2011 Survey responses'!DI191)<1,\"\",AVERAGE('2011 Survey responses'!CW191,'2011 Survey responses'!DA191,'2011 Survey responses'!DE191,'2011 Survey responses'!DI191))","v":2.75},{"$f":"IF(('2011 Survey responses'!CX191+'2011 Survey responses'!DB191+'2011 Survey responses'!DF191+'2011 Survey responses'!DJ191)<1,\"\",AVERAGE('2011 Survey responses'!CX191,'2011 Survey responses'!DB191,'2011 Survey responses'!DF191,'2011 Survey responses'!DJ191))","v":2.75},{"$f":"IF(('2011 Survey responses'!CY191+'2011 Survey responses'!DC191+'2011 Survey responses'!DG191+'2011 Survey responses'!DK191)<1,\"\",AVERAGE('2011 Survey responses'!CY191,'2011 Survey responses'!DC191,'2011 Survey responses'!DG191,'2011 Survey responses'!DK191))","v":2.75},{"$f":"IF(('2011 Survey responses'!CZ191+'2011 Survey responses'!DD191+'2011 Survey responses'!DH191+'2011 Survey responses'!DL191)<1,\"\",AVERAGE('2011 Survey responses'!CZ191,'2011 Survey responses'!DD191,'2011 Survey responses'!DH191,'2011 Survey responses'!DL191))","v":2.75},{"$f":"IF('2011 Survey responses'!CW191<0.5,\"\",'2011 Survey responses'!CW191)","v":3},{"$f":"IF('2011 Survey responses'!CX191<0.5,\"\",'2011 Survey responses'!CX191)","v":3},{"$f":"IF('2011 Survey responses'!CY191<0.5,\"\",'2011 Survey responses'!CY191)","v":3},{"$f":"IF('2011 Survey responses'!CZ191<0.5,\"\",'2011 Survey responses'!CZ191)","v":3},{"$f":"IF('2011 Survey responses'!DA191<0.5,\"\",'2011 Survey responses'!DA191)","v":3},{"$f":"IF('2011 Survey responses'!DB191<0.5,\"\",'2011 Survey responses'!DB191)","v":3},{"$f":"IF('2011 Survey responses'!DC191<0.5,\"\",'2011 Survey responses'!DC191)","v":3},{"$f":"IF('2011 Survey responses'!DD191<0.5,\"\",'2011 Survey responses'!DD191)","v":3},{"$f":"IF('2011 Survey responses'!DE191<0.5,\"\",'2011 Survey responses'!DE191)","v":2},{"$f":"IF('2011 Survey responses'!DF191<0.5,\"\",'2011 Survey responses'!DF191)","v":2},{"$f":"IF('2011 Survey responses'!DG191<0.5,\"\",'2011 Survey responses'!DG191)","v":2},{"$f":"IF('2011 Survey responses'!DH191<0.5,\"\",'2011 Survey responses'!DH191)","v":2},{"$f":"IF('2011 Survey responses'!DI191<0.5,\"\",'2011 Survey responses'!DI191)","v":3},{"$f":"IF('2011 Survey responses'!DJ191<0.5,\"\",'2011 Survey responses'!DJ191)","v":3},{"$f":"IF('2011 Survey responses'!DK191<0.5,\"\",'2011 Survey responses'!DK191)","v":3},{"$f":"IF('2011 Survey responses'!DL191<0.5,\"\",'2011 Survey responses'!DL191)","v":3},{"$f":"IF('2011 Survey responses'!DU191=4,4,IF('2011 Survey responses'!DU191=5,4,\"\"))","v":4},{"$f":"IF('2011 Survey responses'!DV191=4,3,IF('2011 Survey responses'!DV191=5,3,\"\"))","v":3},2,{"$f":"IF(CQ191=2,CQ191,IF(CO191=4,CO191,IF(CP191=3,CP191,IF('2011 Survey responses'!GT191=1,1,\"\"))))","v":2},{"$f":"IF('2011 Survey responses'!DO191<0.5,\"\",'2011 Survey responses'!DO191)","v":3},{"$f":"IF('2011 Survey responses'!DP191<0.5,\"\",'2011 Survey responses'!DP191)","v":5},{"$f":"IF('2011 Survey responses'!DQ191<0.5,\"\",'2011 Survey responses'!DQ191)","v":4},{"$f":"IF('2011 Survey responses'!DR191<0.5,\"\",'2011 Survey responses'!DR191)","v":4},{"$f":"IF('2011 Survey responses'!DS191<0.5,\"\",'2011 Survey responses'!DS191)","v":4},{"$f":"IF('2011 Survey responses'!DT191<0.5,\"\",'2011 Survey responses'!DT191)","v":4},{"$f":"IF('2011 Survey responses'!DU191<0.5,\"\",'2011 Survey responses'!DU191)","v":5},{"$f":"IF('2011 Survey responses'!DV191<0.5,\"\",'2011 Survey responses'!DV191)","v":5},{"$f":"IF('2011 Survey responses'!DW191<0.5,\"\",'2011 Survey responses'!DW191)","v":4},{"$f":"IF('2011 Survey responses'!DX191<0.5,\"\",'2011 Survey responses'!DX191)","v":4},{"$f":"IF('2011 Survey responses'!DY191<0.5,\"\",'2011 Survey responses'!DY191)","v":4},{"$f":"IF('2011 Survey responses'!DZ191<0.5,\"\",'2011 Survey responses'!DZ191)","v":4},{"$f":"IF('2011 Survey responses'!EA191<0.5,\"\",'2011 Survey responses'!EA191)","v":5},{"$f":"IF('2011 Survey responses'!EB191<0.5,\"\",'2011 Survey responses'!EB191)","v":5},{"$f":"IF('2011 Survey responses'!EC191<0.5,\"\",'2011 Survey responses'!EC191)","v":5},{"$f":"IF('2011 Survey responses'!ED191<0.5,\"\",'2011 Survey responses'!ED191)","v":5},{"$f":"IF('2011 Survey responses'!EE191<0.5,\"\",'2011 Survey responses'!EE191)","v":4},{"$f":"IF('2011 Survey responses'!EF191<0.5,\"\",'2011 Survey responses'!EF191)","v":5},{"$f":"IF('2011 Survey responses'!EG191<0.5,\"\",'2011 Survey responses'!EG191)","v":5},{"$f":"IF('2011 Survey responses'!EH191<0.5,\"\",'2011 Survey responses'!EH191)","v":5},{"$f":"IF('2011 Survey responses'!EI191<0.5,\"\",'2011 Survey responses'!EI191)","v":5},{"$f":"IF('2011 Survey responses'!EJ191<0.5,\"\",'2011 Survey responses'!EJ191)","v":5},{"$f":"IF('2011 Survey responses'!EK191<0.5,\"\",'2011 Survey responses'!EK191)","v":5},{"$f":"IF('2011 Survey responses'!EL191<0.5,\"\",'2011 Survey responses'!EL191)","v":5},{"$f":"IF('2011 Survey responses'!EM191<0.5,\"\",'2011 Survey responses'!EM191)","v":5},{"$f":"IF('2011 Survey responses'!EN191<0.5,\"\",'2011 Survey responses'!EN191)","v":4},{"$f":"IF('2011 Survey responses'!EO191<0.5,\"\",'2011 Survey responses'!EO191)","v":4},{"$f":"IF('2011 Survey responses'!EP191<0.5,\"\",'2011 Survey responses'!EP191)","v":4},{"$f":"IF(('2011 Survey responses'!EW191+'2011 Survey responses'!EX191)>=2,AVERAGE('2011 Survey responses'!EW191,'2011 Survey responses'!EY191),\"\")","v":3.5},{"$f":"IF('2011 Survey responses'!EX191<0.5,\"\",'2011 Survey responses'!EX191)","v":3},{"$f":"IF('2011 Survey responses'!EZ191<0.5,\"\",'2011 Survey responses'!EZ191)","v":4},{"$f":"IF('2011 Survey responses'!FB191<0.5,\"\",'2011 Survey responses'!FB191)","v":4},{"$f":"IF('2011 Survey responses'!FD191<0.5,\"\",'2011 Survey responses'!FD191)","v":4},{"$f":"IF('2011 Survey responses'!FC191<0.5,\"\",'2011 Survey responses'!FC191)","v":5},{"$f":"IF(('2011 Survey responses'!EM191+'2011 Survey responses'!EN191)>=2,AVERAGE('2011 Survey responses'!EM191,'2011 Survey responses'!EN191),\"\")","v":4.5},{"$f":"IF('2011 Survey responses'!ES191<0.5,\"\",'2011 Survey responses'!ES191)","v":3},{"$f":"IF(('2011 Survey responses'!ET191+'2011 Survey responses'!EU191)>=2,AVERAGE('2011 Survey responses'!ET191,'2011 Survey responses'!EU191),\"\")","v":3},{"$f":"IF('2011 Survey responses'!EV191<0.5,\"\",'2011 Survey responses'!EV191)","v":4},{"$f":"IF('2011 Survey responses'!FA191<0.5,\"\",'2011 Survey responses'!FA191)","v":4},{"$f":"IF('2011 Survey responses'!ER191<0.5,\"\",'2011 Survey responses'!ER191)","v":3},{"$f":"IF(('2011 Survey responses'!EO191+'2011 Survey responses'!EP191)>=2,AVERAGE('2011 Survey responses'!EO191,'2011 Survey responses'!EP191),\"\")","v":4},{"$f":"IF('2011 Survey responses'!EQ191<0.5,\"\",'2011 Survey responses'!EQ191)","v":3},{"$f":"IF('2011 Survey responses'!ET191<0.5,\"\",'2011 Survey responses'!ET191)","v":3},{"$f":"IF('2011 Survey responses'!EU191<0.5,\"\",'2011 Survey responses'!EU191)","v":3},{"$f":"IF('2011 Survey responses'!EW191<0.5,\"\",'2011 Survey responses'!EW191)","v":4},{"$f":"IF('2011 Survey responses'!EY191<0.5,\"\",'2011 Survey responses'!EY191)","v":3},{"$f":"IF('2011 Survey responses'!FU191<0.5,\"\",'2011 Survey responses'!FU191)","v":4},{"$f":"IF(('2011 Survey responses'!FL191+'2011 Survey responses'!FM191)>=2,AVERAGE('2011 Survey responses'!FL191,'2011 Survey responses'!FM191),\"\")","v":4},{"$f":"IF(('2011 Survey responses'!FO191+'2011 Survey responses'!FQ191)>=2,AVERAGE('2011 Survey responses'!FO191,'2011 Survey responses'!FQ191),\"\")","v":4},{"$f":"IF('2011 Survey responses'!FJ191<0.5,\"\",'2011 Survey responses'!FJ191)","v":4},{"$f":"IF('2011 Survey responses'!FT191<0.5,\"\",'2011 Survey responses'!FT191)","v":4},{"$f":"IF('2011 Survey responses'!FR191<0.5,\"\",'2011 Survey responses'!FR191)","v":4},{"$f":"IF('2011 Survey responses'!FK191<0.5,\"\",'2011 Survey responses'!FK191)","v":4},{"$f":"IF('2011 Survey responses'!FP191<0.5,\"\",'2011 Survey responses'!FP191)","v":4},{"$f":"IF('2011 Survey responses'!FN191<0.5,\"\",'2011 Survey responses'!FN191)","v":4},{"$f":"IF(('2011 Survey responses'!FE191+'2011 Survey responses'!FF191)>=2,AVERAGE('2011 Survey responses'!FE191,'2011 Survey responses'!FF191),\"\")","v":4.5},{"$f":"IF('2011 Survey responses'!FS191<0.5,\"\",'2011 Survey responses'!FS191)","v":4},{"$f":"IF('2011 Survey responses'!FV191<0.5,\"\",'2011 Survey responses'!FV191)","v":4},{"$f":"IF(('2011 Survey responses'!FG191+'2011 Survey responses'!FH191)>=2,AVERAGE('2011 Survey responses'!FG191,'2011 Survey responses'!FH191),\"\")","v":4},{"$f":"IF('2011 Survey responses'!FI191<0.5,\"\",'2011 Survey responses'!FI191)","v":4},{"$f":"IF('2011 Survey responses'!FE191<0.5,\"\",'2011 Survey responses'!FE191)","v":5},{"$f":"IF('2011 Survey responses'!FF191<0.5,\"\",'2011 Survey responses'!FF191)","v":4},{"$f":"IF('2011 Survey responses'!FG191<0.5,\"\",'2011 Survey responses'!FG191)","v":4},{"$f":"IF('2011 Survey responses'!FH191<0.5,\"\",'2011 Survey responses'!FH191)","v":4},{"$f":"IF('2011 Survey responses'!FL191<0.5,\"\",'2011 Survey responses'!FL191)","v":4},{"$f":"IF('2011 Survey responses'!FM191<0.5,\"\",'2011 Survey responses'!FM191)","v":4},{"$f":"IF('2011 Survey responses'!FO191<0.5,\"\",'2011 Survey responses'!FO191)","v":4},{"$f":"IF('2011 Survey responses'!FQ191<0.5,\"\",'2011 Survey responses'!FQ191)","v":4}]
["Yemen",{"$f":"IF(SUM(F192)<1,\"\",AVERAGEIF('2011 Survey responses'!B192:CP192,\">1\"))","v":""},{"$f":"IF(SUM(F192)<1,\"\",AVERAGEIF('2011 Survey responses'!B192:AO192,\">1\"))","v":""},{"$f":"IF(SUM(F192)<1,\"\",AVERAGEIF('2011 Survey responses'!B192:BV192,\">1\"))","v":""},{"$f":"IF(SUM(F192)<1,\"\",AVERAGEIF('2011 Survey responses'!V192:BV192,\">1\"))","v":""},{"$f":"IF(SUM('2011 Survey responses'!B192:U192)<1,\"\",(AVERAGEIFS('2011 Survey responses'!B192:U192,'2011 Survey responses'!B192:U192,\">1\")))","v":""},{"$f":"IF(SUM('2011 Survey responses'!B192:H192)<1,\"\",(AVERAGEIFS('2011 Survey responses'!B192:H192,'2011 Survey responses'!B192:H192,\">1\")))","v":""},{"$f":"IF(SUM('2011 Survey responses'!I192:S192)<1,\"\",(AVERAGEIFS('2011 Survey responses'!I192:S192,'2011 Survey responses'!I192:S192,\">1\")))","v":""},{"$f":"IF(SUM('2011 Survey responses'!T192:U192)<2.1,\"\",(AVERAGEIFS('2011 Survey responses'!T192:U192,'2011 Survey responses'!T192:U192,\">1\")))","v":""},{"$f":"IF(SUM('2011 Survey responses'!B192:C192)<2.1,\"\",((SUMIF('2011 Survey responses'!B192:C192,\">1\")+SUMIF('2011 Survey responses'!F192,\">1\"))/(COUNTIF('2011 Survey responses'!B192:C192,\">1\")+COUNTIF('2011 Survey responses'!F192,\">1\"))))","v":""},{"$f":"IF(SUM('2011 Survey responses'!D192:E192)<2.1,\"\",(AVERAGEIFS('2011 Survey responses'!D192:E192,'2011 Survey responses'!D192:E192,\">1\")))","v":""},{"$f":"IF(('2011 Survey responses'!B192+'2011 Survey responses'!D192)<2.1,\"\",((SUMIF('2011 Survey responses'!B192,\">1\")+SUMIF('2011 Survey responses'!D192,\">1\")+SUMIF('2011 Survey responses'!F192,\">1\")+SUMIF('2011 Survey responses'!K192,\">1\"))/(COUNTIF('2011 Survey responses'!B192,\">1\")+COUNTIF('2011 Survey responses'!D192,\">1\")+COUNTIF('2011 Survey responses'!F192,\">1\")+COUNTIF('2011 Survey responses'!K192,\">1\"))))","v":""},{"$f":"IF(SUM('2011 Survey responses'!G192:H192)<2.1,\"\",(AVERAGEIFS('2011 Survey responses'!G192:H192,'2011 Survey responses'!G192:H192,\">1\")))","v":""},{"$f":"IF(SUM('2011 Survey responses'!F192:G192)<1.5,\"\",MAX('2011 Survey responses'!F192,'2011 Survey responses'!G192))","v":""},{"$f":"IF(SUM('2011 Survey responses'!G192:H192)<1,\"\",MAX('2011 Survey responses'!G192,'2011 Survey responses'!H192))","v":""},{"$f":"IF(SUM('2011 Survey responses'!I192:L192)<4.1,\"\",(AVERAGEIFS('2011 Survey responses'!I192:L192,'2011 Survey responses'!I192:L192,\">1\")))","v":""},{"$f":"IF(SUM('2011 Survey responses'!M192:S192)<4.1,\"\",(AVERAGEIFS('2011 Survey responses'!M192:S192,'2011 Survey responses'!M192:S192,\">1\")))","v":""},{"$f":"IF(SUM('2011 Survey responses'!T192:U192)<2.1,\"\",(AVERAGEIFS('2011 Survey responses'!T192:U192,'2011 Survey responses'!T192:U192,\">1\")))","v":""},{"$f":"IF(SUM('2011 Survey responses'!V192:AO192)<1,\"\",(AVERAGEIFS('2011 Survey responses'!V192:AO192,'2011 Survey responses'!V192:AO192,\">1\")))","v":""},{"$f":"IF(SUM('2011 Survey responses'!V192:AA192)<1,\"\",(AVERAGEIFS('2011 Survey responses'!V192:AA192,'2011 Survey responses'!V192:AA192,\">1\")))","v":""},{"$f":"IF(SUM('2011 Survey responses'!AB192:AH192)<1,\"\",(AVERAGEIFS('2011 Survey responses'!AB192:AH192,'2011 Survey responses'!AB192:AH192,\">1\")))","v":""},{"$f":"IF(SUM('2011 Survey responses'!AI192:AO192)<1,\"\",(AVERAGEIFS('2011 Survey responses'!AI192:AO192,'2011 Survey responses'!AI192:AO192,\">1\")))","v":""},{"$f":"IF(('2011 Survey responses'!Y192+'2011 Survey responses'!AI192+'2011 Survey responses'!AK192)<3.1,\"\",((SUMIF('2011 Survey responses'!Y192,\">1\")+SUMIF('2011 Survey responses'!AI192,\">1\")+SUMIF('2011 Survey responses'!AK192,\">1\")+SUMIF('2011 Survey responses'!AM192,\">1\"))/(COUNTIF('2011 Survey responses'!Y192,\">1\")+COUNTIF('2011 Survey responses'!AI192,\">1\")+COUNTIF('2011 Survey responses'!AK192,\">1\")+COUNTIF('2011 Survey responses'!AM192,\">1\"))))","v":""},{"$f":"IF(('2011 Survey responses'!W192)<1.1,\"\",('2011 Survey responses'!W192))","v":""},{"$f":"IF(('2011 Survey responses'!Y192)<1.1,\"\",('2011 Survey responses'!Y192))","v":""},{"$f":"IF(('2011 Survey responses'!Z192)<1.1,\"\",('2011 Survey responses'!Z192))","v":""},{"$f":"IF(('2011 Survey responses'!V192+'2011 Survey responses'!X192+'2011 Survey responses'!AA192)<3.1,\"\",((SUMIF('2011 Survey responses'!V192,\">1\")+SUMIF('2011 Survey responses'!X192,\">1\")+SUMIF('2011 Survey responses'!AA192,\">1\"))/(COUNTIF('2011 Survey responses'!V192,\">1\")+COUNTIF('2011 Survey responses'!X192,\">1\")+COUNTIF('2011 Survey responses'!AA192,\">1\"))))","v":""},{"$f":"IF(('2011 Survey responses'!V192+'2011 Survey responses'!Y192+'2011 Survey responses'!AA192)<3.1,\"\",((SUMIF('2011 Survey responses'!V192,\">1\")+SUMIF('2011 Survey responses'!Y192,\">1\")+SUMIF('2011 Survey responses'!AA192,\">1\"))/(COUNTIF('2011 Survey responses'!V192,\">1\")+COUNTIF('2011 Survey responses'!Y192,\">1\")+COUNTIF('2011 Survey responses'!AA192,\">1\"))))","v":""},{"$f":"IF(SUM('2011 Survey responses'!AB192:AH192)<1,\"\",(AVERAGEIFS('2011 Survey responses'!AB192:AH192,'2011 Survey responses'!AB192:AH192,\">1\")))","v":""},{"$f":"IF(SUM('2011 Survey responses'!AI192:AO192)<7.1,\"\",(AVERAGEIFS('2011 Survey responses'!AI192:AO192,'2011 Survey responses'!AI192:AO192,\">1\")))","v":""},{"$f":"IF(('2011 Survey responses'!AH192)<1.1,\"\",('2011 Survey responses'!AH192))","v":""},{"$f":"IF(SUM('2011 Survey responses'!AP192:BV192)<1,\"\",(AVERAGEIFS('2011 Survey responses'!AP192:BV192,'2011 Survey responses'!AP192:BV192,\">1\")))","v":""},{"$f":"IF(SUM('2011 Survey responses'!AP192:AS192)<4.1,\"\",(AVERAGEIFS('2011 Survey responses'!AP192:AS192,'2011 Survey responses'!AP192:AS192,\">1\")))","v":""},{"$f":"IF(SUM('2011 Survey responses'!AT192:BF192)<1,\"\",(AVERAGEIFS('2011 Survey responses'!AT192:BF192,'2011 Survey responses'!AT192:BF192,\">1\")))","v":""},{"$f":"IF(SUM('2011 Survey responses'!BG192:BO192)<1,\"\",(AVERAGEIFS('2011 Survey responses'!BG192:BO192,'2011 Survey responses'!BG192:BO192,\">1\")))","v":""},{"$f":"IF(SUM('2011 Survey responses'!BP192:BS192)<1,\"\",(AVERAGEIFS('2011 Survey responses'!BP192:BS192,'2011 Survey responses'!BP192:BS192,\">1\")))","v":""},{"$f":"IF(SUM('2011 Survey responses'!BT192:BV192)<3.1,\"\",(AVERAGEIFS('2011 Survey responses'!BT192:BV192,'2011 Survey responses'!BT192:BV192,\">1\")))","v":""},{"$f":"IF(('2011 Survey responses'!AQ192+'2011 Survey responses'!AR192+'2011 Survey responses'!BG192)<3.1,\"\",((SUMIF('2011 Survey responses'!AQ192,\">1\")+SUMIF('2011 Survey responses'!AR192,\">1\")+SUMIF('2011 Survey responses'!BG192,\">1\"))/(COUNTIF('2011 Survey responses'!AQ192,\">1\")+COUNTIF('2011 Survey responses'!AR192,\">1\")+COUNTIF('2011 Survey responses'!BG192,\">1\"))))","v":""},{"$f":"IF(SUM('2011 Survey responses'!AP192:AS192)<4.1,\"\",(AVERAGEIFS('2011 Survey responses'!AP192:AS192,'2011 Survey responses'!AP192:AS192,\">1\")))","v":""},{"$f":"IF(('2011 Survey responses'!AU192+'2011 Survey responses'!AX192+'2011 Survey responses'!BA192+'2011 Survey responses'!BC192+'2011 Survey responses'!BD192)<5.1,\"\",(SUMIF('2011 Survey responses'!AU192,\">1\")+SUMIF('2011 Survey responses'!AX192,\">1\")+SUMIF('2011 Survey responses'!BA192,\">1\")+SUMIF('2011 Survey responses'!BC192,\">1\")+SUMIF('2011 Survey responses'!BD192,\">1\"))/(COUNTIF('2011 Survey responses'!AU192,\">1\")+COUNTIF('2011 Survey responses'!AX192,\">1\")+COUNTIF('2011 Survey responses'!BA192,\">1\")+COUNTIF('2011 Survey responses'!BC192,\">1\")+COUNTIF('2011 Survey responses'!BD192,\">1\")))","v":""},{"$f":"IF(('2011 Survey responses'!AT192)<1.1,\"\",('2011 Survey responses'!AT192))","v":""},{"$f":"IF(SUM('2011 Survey responses'!AV192:AW192)<2.1,\"\",(AVERAGEIFS('2011 Survey responses'!AV192:AW192,'2011 Survey responses'!AV192:AW192,\">1\")))","v":""},{"$f":"IF(('2011 Survey responses'!AW192+'2011 Survey responses'!AY192)<2.1,\"\",(SUMIF('2011 Survey responses'!AW192,\">1\")+SUMIF('2011 Survey responses'!AY192,\">1\"))/(COUNTIF('2011 Survey responses'!AW192,\">1\")+COUNTIF('2011 Survey responses'!AY192,\">1\")))","v":""},{"$f":"IF(('2011 Survey responses'!AZ192)<1.1,\"\",('2011 Survey responses'!AZ192))","v":""},null,null,null,null,{"$f":"IF(('2011 Survey responses'!BE192)<1.1,\"\",('2011 Survey responses'!BE192))","v":""},{"$f":"IF(('2011 Survey responses'!AY192+'2011 Survey responses'!BB192+'2011 Survey responses'!BF192)<3.1,\"\",(SUMIF('2011 Survey responses'!AY192,\">1\")+SUMIF('2011 Survey responses'!BB192,\">1\")+SUMIF('2011 Survey responses'!BF192,\">1\"))/(COUNTIF('2011 Survey responses'!AY192,\">1\")+COUNTIF('2011 Survey responses'!BB192,\">1\")+COUNTIF('2011 Survey responses'!BF192,\">1\")))","v":""},"",{"$f":"IF(SUM('2011 Survey responses'!BT192:BV192)<3.1,\"\",(AVERAGEIFS('2011 Survey responses'!BT192:BV192,'2011 Survey responses'!BT192:BV192,\">1\")))","v":""},{"$f":"IF(SUM('2011 Survey responses'!BW192:CP192)<1,\"\",(AVERAGEIFS('2011 Survey responses'!BW192:CP192,'2011 Survey responses'!BW192:CP192,\">1\")))","v":""},{"$f":"IF(SUM('2011 Survey responses'!BW192:CF192)<1,\"\",(AVERAGEIFS('2011 Survey responses'!BW192:CF192,'2011 Survey responses'!BW192:CF192,\">1\")))","v":""},{"$f":"IF(SUM('2011 Survey responses'!CG192:CP192)<1,\"\",(AVERAGEIFS('2011 Survey responses'!CG192:CP192,'2011 Survey responses'!CG192:CP192,\">1\")))","v":""},{"$f":"IF(SUM('2011 Survey responses'!BX192:CF192)<1,\"\",(AVERAGEIFS('2011 Survey responses'!BX192:CF192,'2011 Survey responses'!BX192:CF192,\">1\")))","v":""},{"$f":"IF(SUM('2011 Survey responses'!CH192:CP192)<1,\"\",(AVERAGEIFS('2011 Survey responses'!CH192:CP192,'2011 Survey responses'!CH192:CP192,\">1\")))","v":""},{"$f":"IF(SUM('2011 Survey responses'!BW192:CP192)<1,\"\",(AVERAGEIFS('2011 Survey responses'!BW192:CP192,'2011 Survey responses'!BW192:CP192,\">1\")))","v":""},{"$f":"IF(('2011 Survey responses'!BW192+'2011 Survey responses'!CG192)<2.1,\"\",(SUMIF('2011 Survey responses'!BW192,\">1\")+SUMIF('2011 Survey responses'!CG192,\">1\"))/(COUNTIF('2011 Survey responses'!BW192,\">1\")+COUNTIF('2011 Survey responses'!CG192,\">1\")))","v":""},{"$f":"IF(('2011 Survey responses'!BX192+'2011 Survey responses'!CH192)<2.1,\"\",(SUMIF('2011 Survey responses'!BX192,\">1\")+SUMIF('2011 Survey responses'!CH192,\">1\"))/(COUNTIF('2011 Survey responses'!BX192,\">1\")+COUNTIF('2011 Survey responses'!CH192,\">1\")))","v":""},{"$f":"IF(('2011 Survey responses'!BY192+'2011 Survey responses'!CI192)<2.1,\"\",(SUMIF('2011 Survey responses'!BY192,\">1\")+SUMIF('2011 Survey responses'!CI192,\">1\"))/(COUNTIF('2011 Survey responses'!BY192,\">1\")+COUNTIF('2011 Survey responses'!CI192,\">1\")))","v":""},{"$f":"IF('2011 Survey responses'!CQ192<0.5,\"\",'2011 Survey responses'!CQ192)","v":""},{"$f":"IF('2011 Survey responses'!CR192<0.5,\"\",'2011 Survey responses'!CR192)","v":""},{"$f":"IF('2011 Survey responses'!CS192<0.5,\"\",'2011 Survey responses'!CS192)","v":""},{"$f":"IF('2011 Survey responses'!CT192<0.5,\"\",'2011 Survey responses'!CT192)","v":""},{"$f":"IF('2011 Survey responses'!CU192<0.5,\"\",'2011 Survey responses'!CU192)","v":""},{"$f":"IF('2011 Survey responses'!CV192<0.5,\"\",'2011 Survey responses'!CV192)","v":""},{"$f":"IF(SUM('2011 Survey responses'!CW192:DL192)<1,\"\",(AVERAGE('2011 Survey responses'!CW192:DL192)))","v":""},{"$f":"IF(SUM('2011 Survey responses'!CW192:CZ192)<1,\"\",(AVERAGE('2011 Survey responses'!CW192:CZ192)))","v":""},{"$f":"IF(SUM('2011 Survey responses'!DA192:DD192)<1,\"\",(AVERAGE('2011 Survey responses'!DA192:DD192)))","v":""},{"$f":"IF(SUM('2011 Survey responses'!DE192:DH192)<1,\"\",(AVERAGE('2011 Survey responses'!DE192:DH192)))","v":""},{"$f":"IF(SUM('2011 Survey responses'!DI192:DL192)<1,\"\",(AVERAGE('2011 Survey responses'!DI192:DL192)))","v":""},{"$f":"IF(('2011 Survey responses'!CW192+'2011 Survey responses'!DA192+'2011 Survey responses'!DE192+'2011 Survey responses'!DI192)<1,\"\",AVERAGE('2011 Survey responses'!CW192,'2011 Survey responses'!DA192,'2011 Survey responses'!DE192,'2011 Survey responses'!DI192))","v":""},{"$f":"IF(('2011 Survey responses'!CX192+'2011 Survey responses'!DB192+'2011 Survey responses'!DF192+'2011 Survey responses'!DJ192)<1,\"\",AVERAGE('2011 Survey responses'!CX192,'2011 Survey responses'!DB192,'2011 Survey responses'!DF192,'2011 Survey responses'!DJ192))","v":""},{"$f":"IF(('2011 Survey responses'!CY192+'2011 Survey responses'!DC192+'2011 Survey responses'!DG192+'2011 Survey responses'!DK192)<1,\"\",AVERAGE('2011 Survey responses'!CY192,'2011 Survey responses'!DC192,'2011 Survey responses'!DG192,'2011 Survey responses'!DK192))","v":""},{"$f":"IF(('2011 Survey responses'!CZ192+'2011 Survey responses'!DD192+'2011 Survey responses'!DH192+'2011 Survey responses'!DL192)<1,\"\",AVERAGE('2011 Survey responses'!CZ192,'2011 Survey responses'!DD192,'2011 Survey responses'!DH192,'2011 Survey responses'!DL192))","v":""},{"$f":"IF('2011 Survey responses'!CW192<0.5,\"\",'2011 Survey responses'!CW192)","v":""},{"$f":"IF('2011 Survey responses'!CX192<0.5,\"\",'2011 Survey responses'!CX192)","v":""},{"$f":"IF('2011 Survey responses'!CY192<0.5,\"\",'2011 Survey responses'!CY192)","v":""},{"$f":"IF('2011 Survey responses'!CZ192<0.5,\"\",'2011 Survey responses'!CZ192)","v":""},{"$f":"IF('2011 Survey responses'!DA192<0.5,\"\",'2011 Survey responses'!DA192)","v":""},{"$f":"IF('2011 Survey responses'!DB192<0.5,\"\",'2011 Survey responses'!DB192)","v":""},{"$f":"IF('2011 Survey responses'!DC192<0.5,\"\",'2011 Survey responses'!DC192)","v":""},{"$f":"IF('2011 Survey responses'!DD192<0.5,\"\",'2011 Survey responses'!DD192)","v":""},{"$f":"IF('2011 Survey responses'!DE192<0.5,\"\",'2011 Survey responses'!DE192)","v":""},{"$f":"IF('2011 Survey responses'!DF192<0.5,\"\",'2011 Survey responses'!DF192)","v":""},{"$f":"IF('2011 Survey responses'!DG192<0.5,\"\",'2011 Survey responses'!DG192)","v":""},{"$f":"IF('2011 Survey responses'!DH192<0.5,\"\",'2011 Survey responses'!DH192)","v":""},{"$f":"IF('2011 Survey responses'!DI192<0.5,\"\",'2011 Survey responses'!DI192)","v":""},{"$f":"IF('2011 Survey responses'!DJ192<0.5,\"\",'2011 Survey responses'!DJ192)","v":""},{"$f":"IF('2011 Survey responses'!DK192<0.5,\"\",'2011 Survey responses'!DK192)","v":""},{"$f":"IF('2011 Survey responses'!DL192<0.5,\"\",'2011 Survey responses'!DL192)","v":""},{"$f":"IF('2011 Survey responses'!DU192=4,4,IF('2011 Survey responses'!DU192=5,4,\"\"))","v":""},{"$f":"IF('2011 Survey responses'!DV192=4,3,IF('2011 Survey responses'!DV192=5,3,\"\"))","v":""},"",{"$f":"IF(CQ192=2,CQ192,IF(CO192=4,CO192,IF(CP192=3,CP192,IF('2011 Survey responses'!GT192=1,1,\"\"))))","v":""},{"$f":"IF('2011 Survey responses'!DO192<0.5,\"\",'2011 Survey responses'!DO192)","v":""},{"$f":"IF('2011 Survey responses'!DP192<0.5,\"\",'2011 Survey responses'!DP192)","v":""},{"$f":"IF('2011 Survey responses'!DQ192<0.5,\"\",'2011 Survey responses'!DQ192)","v":""},{"$f":"IF('2011 Survey responses'!DR192<0.5,\"\",'2011 Survey responses'!DR192)","v":""},{"$f":"IF('2011 Survey responses'!DS192<0.5,\"\",'2011 Survey responses'!DS192)","v":""},{"$f":"IF('2011 Survey responses'!DT192<0.5,\"\",'2011 Survey responses'!DT192)","v":""},{"$f":"IF('2011 Survey responses'!DU192<0.5,\"\",'2011 Survey responses'!DU192)","v":""},{"$f":"IF('2011 Survey responses'!DV192<0.5,\"\",'2011 Survey responses'!DV192)","v":""},{"$f":"IF('2011 Survey responses'!DW192<0.5,\"\",'2011 Survey responses'!DW192)","v":""},{"$f":"IF('2011 Survey responses'!DX192<0.5,\"\",'2011 Survey responses'!DX192)","v":""},{"$f":"IF('2011 Survey responses'!DY192<0.5,\"\",'2011 Survey responses'!DY192)","v":""},{"$f":"IF('2011 Survey responses'!DZ192<0.5,\"\",'2011 Survey responses'!DZ192)","v":""},{"$f":"IF('2011 Survey responses'!EA192<0.5,\"\",'2011 Survey responses'!EA192)","v":""},{"$f":"IF('2011 Survey responses'!EB192<0.5,\"\",'2011 Survey responses'!EB192)","v":""},{"$f":"IF('2011 Survey responses'!EC192<0.5,\"\",'2011 Survey responses'!EC192)","v":""},{"$f":"IF('2011 Survey responses'!ED192<0.5,\"\",'2011 Survey responses'!ED192)","v":""},{"$f":"IF('2011 Survey responses'!EE192<0.5,\"\",'2011 Survey responses'!EE192)","v":""},{"$f":"IF('2011 Survey responses'!EF192<0.5,\"\",'2011 Survey responses'!EF192)","v":""},{"$f":"IF('2011 Survey responses'!EG192<0.5,\"\",'2011 Survey responses'!EG192)","v":""},{"$f":"IF('2011 Survey responses'!EH192<0.5,\"\",'2011 Survey responses'!EH192)","v":""},{"$f":"IF('2011 Survey responses'!EI192<0.5,\"\",'2011 Survey responses'!EI192)","v":""},{"$f":"IF('2011 Survey responses'!EJ192<0.5,\"\",'2011 Survey responses'!EJ192)","v":""},{"$f":"IF('2011 Survey responses'!EK192<0.5,\"\",'2011 Survey responses'!EK192)","v":""},{"$f":"IF('2011 Survey responses'!EL192<0.5,\"\",'2011 Survey responses'!EL192)","v":""},{"$f":"IF('2011 Survey responses'!EM192<0.5,\"\",'2011 Survey responses'!EM192)","v":""},{"$f":"IF('2011 Survey responses'!EN192<0.5,\"\",'2011 Survey responses'!EN192)","v":""},{"$f":"IF('2011 Survey responses'!EO192<0.5,\"\",'2011 Survey responses'!EO192)","v":""},{"$f":"IF('2011 Survey responses'!EP192<0.5,\"\",'2011 Survey responses'!EP192)","v":""},{"$f":"IF(('2011 Survey responses'!EW192+'2011 Survey responses'!EX192)>=2,AVERAGE('2011 Survey responses'!EW192,'2011 Survey responses'!EY192),\"\")","v":""},{"$f":"IF('2011 Survey responses'!EX192<0.5,\"\",'2011 Survey responses'!EX192)","v":""},{"$f":"IF('2011 Survey responses'!EZ192<0.5,\"\",'2011 Survey responses'!EZ192)","v":""},{"$f":"IF('2011 Survey responses'!FB192<0.5,\"\",'2011 Survey responses'!FB192)","v":""},{"$f":"IF('2011 Survey responses'!FD192<0.5,\"\",'2011 Survey responses'!FD192)","v":""},{"$f":"IF('2011 Survey responses'!FC192<0.5,\"\",'2011 Survey responses'!FC192)","v":""},{"$f":"IF(('2011 Survey responses'!EM192+'2011 Survey responses'!EN192)>=2,AVERAGE('2011 Survey responses'!EM192,'2011 Survey responses'!EN192),\"\")","v":""},{"$f":"IF('2011 Survey responses'!ES192<0.5,\"\",'2011 Survey responses'!ES192)","v":""},{"$f":"IF(('2011 Survey responses'!ET192+'2011 Survey responses'!EU192)>=2,AVERAGE('2011 Survey responses'!ET192,'2011 Survey responses'!EU192),\"\")","v":""},{"$f":"IF('2011 Survey responses'!EV192<0.5,\"\",'2011 Survey responses'!EV192)","v":""},{"$f":"IF('2011 Survey responses'!FA192<0.5,\"\",'2011 Survey responses'!FA192)","v":""},{"$f":"IF('2011 Survey responses'!ER192<0.5,\"\",'2011 Survey responses'!ER192)","v":""},{"$f":"IF(('2011 Survey responses'!EO192+'2011 Survey responses'!EP192)>=2,AVERAGE('2011 Survey responses'!EO192,'2011 Survey responses'!EP192),\"\")","v":""},{"$f":"IF('2011 Survey responses'!EQ192<0.5,\"\",'2011 Survey responses'!EQ192)","v":""},{"$f":"IF('2011 Survey responses'!ET192<0.5,\"\",'2011 Survey responses'!ET192)","v":""},{"$f":"IF('2011 Survey responses'!EU192<0.5,\"\",'2011 Survey responses'!EU192)","v":""},{"$f":"IF('2011 Survey responses'!EW192<0.5,\"\",'2011 Survey responses'!EW192)","v":""},{"$f":"IF('2011 Survey responses'!EY192<0.5,\"\",'2011 Survey responses'!EY192)","v":""},{"$f":"IF('2011 Survey responses'!FU192<0.5,\"\",'2011 Survey responses'!FU192)","v":""},{"$f":"IF(('2011 Survey responses'!FL192+'2011 Survey responses'!FM192)>=2,AVERAGE('2011 Survey responses'!FL192,'2011 Survey responses'!FM192),\"\")","v":""},{"$f":"IF(('2011 Survey responses'!FO192+'2011 Survey responses'!FQ192)>=2,AVERAGE('2011 Survey responses'!FO192,'2011 Survey responses'!FQ192),\"\")","v":""},{"$f":"IF('2011 Survey responses'!FJ192<0.5,\"\",'2011 Survey responses'!FJ192)","v":""},{"$f":"IF('2011 Survey responses'!FT192<0.5,\"\",'2011 Survey responses'!FT192)","v":""},{"$f":"IF('2011 Survey responses'!FR192<0.5,\"\",'2011 Survey responses'!FR192)","v":""},{"$f":"IF('2011 Survey responses'!FK192<0.5,\"\",'2011 Survey responses'!FK192)","v":""},{"$f":"IF('2011 Survey responses'!FP192<0.5,\"\",'2011 Survey responses'!FP192)","v":""},{"$f":"IF('2011 Survey responses'!FN192<0.5,\"\",'2011 Survey responses'!FN192)","v":""},{"$f":"IF(('2011 Survey responses'!FE192+'2011 Survey responses'!FF192)>=2,AVERAGE('2011 Survey responses'!FE192,'2011 Survey responses'!FF192),\"\")","v":""},{"$f":"IF('2011 Survey responses'!FS192<0.5,\"\",'2011 Survey responses'!FS192)","v":""},{"$f":"IF('2011 Survey responses'!FV192<0.5,\"\",'2011 Survey responses'!FV192)","v":""},{"$f":"IF(('2011 Survey responses'!FG192+'2011 Survey responses'!FH192)>=2,AVERAGE('2011 Survey responses'!FG192,'2011 Survey responses'!FH192),\"\")","v":""},{"$f":"IF('2011 Survey responses'!FI192<0.5,\"\",'2011 Survey responses'!FI192)","v":""},{"$f":"IF('2011 Survey responses'!FE192<0.5,\"\",'2011 Survey responses'!FE192)","v":""},{"$f":"IF('2011 Survey responses'!FF192<0.5,\"\",'2011 Survey responses'!FF192)","v":""},{"$f":"IF('2011 Survey responses'!FG192<0.5,\"\",'2011 Survey responses'!FG192)","v":""},{"$f":"IF('2011 Survey responses'!FH192<0.5,\"\",'2011 Survey responses'!FH192)","v":""},{"$f":"IF('2011 Survey responses'!FL192<0.5,\"\",'2011 Survey responses'!FL192)","v":""},{"$f":"IF('2011 Survey responses'!FM192<0.5,\"\",'2011 Survey responses'!FM192)","v":""},{"$f":"IF('2011 Survey responses'!FO192<0.5,\"\",'2011 Survey responses'!FO192)","v":""},{"$f":"IF('2011 Survey responses'!FQ192<0.5,\"\",'2011 Survey responses'!FQ192)","v":""}]
["Zambia",{"$f":"IF(SUM(F193)<1,\"\",AVERAGEIF('2011 Survey responses'!B193:CP193,\">1\"))","v":3.7317073170731709},{"$f":"IF(SUM(F193)<1,\"\",AVERAGEIF('2011 Survey responses'!B193:AO193,\">1\"))","v":3.125},{"$f":"IF(SUM(F193)<1,\"\",AVERAGEIF('2011 Survey responses'!B193:BV193,\">1\"))","v":3.578125},{"$f":"IF(SUM(F193)<1,\"\",AVERAGEIF('2011 Survey responses'!V193:BV193,\">1\"))","v":3.5510204081632653},{"$f":"IF(SUM('2011 Survey responses'!B193:U193)<1,\"\",(AVERAGEIFS('2011 Survey responses'!B193:U193,'2011 Survey responses'!B193:U193,\">1\")))","v":3.6666666666666665},{"$f":"IF(SUM('2011 Survey responses'!B193:H193)<1,\"\",(AVERAGEIFS('2011 Survey responses'!B193:H193,'2011 Survey responses'!B193:H193,\">1\")))","v":3.25},{"$f":"IF(SUM('2011 Survey responses'!I193:S193)<1,\"\",(AVERAGEIFS('2011 Survey responses'!I193:S193,'2011 Survey responses'!I193:S193,\">1\")))","v":3.6666666666666665},{"$f":"IF(SUM('2011 Survey responses'!T193:U193)<2.1,\"\",(AVERAGEIFS('2011 Survey responses'!T193:U193,'2011 Survey responses'!T193:U193,\">1\")))","v":4.5},{"$f":"IF(SUM('2011 Survey responses'!B193:C193)<2.1,\"\",((SUMIF('2011 Survey responses'!B193:C193,\">1\")+SUMIF('2011 Survey responses'!F193,\">1\"))/(COUNTIF('2011 Survey responses'!B193:C193,\">1\")+COUNTIF('2011 Survey responses'!F193,\">1\"))))","v":3.5},{"$f":"IF(SUM('2011 Survey responses'!D193:E193)<2.1,\"\",(AVERAGEIFS('2011 Survey responses'!D193:E193,'2011 Survey responses'!D193:E193,\">1\")))","v":3},{"$f":"IF(('2011 Survey responses'!B193+'2011 Survey responses'!D193)<2.1,\"\",((SUMIF('2011 Survey responses'!B193,\">1\")+SUMIF('2011 Survey responses'!D193,\">1\")+SUMIF('2011 Survey responses'!F193,\">1\")+SUMIF('2011 Survey responses'!K193,\">1\"))/(COUNTIF('2011 Survey responses'!B193,\">1\")+COUNTIF('2011 Survey responses'!D193,\">1\")+COUNTIF('2011 Survey responses'!F193,\">1\")+COUNTIF('2011 Survey responses'!K193,\">1\"))))","v":3.5},{"$f":"IF(SUM('2011 Survey responses'!G193:H193)<2.1,\"\",(AVERAGEIFS('2011 Survey responses'!G193:H193,'2011 Survey responses'!G193:H193,\">1\")))","v":3},{"$f":"IF(SUM('2011 Survey responses'!F193:G193)<1.5,\"\",MAX('2011 Survey responses'!F193,'2011 Survey responses'!G193))","v":3},{"$f":"IF(SUM('2011 Survey responses'!G193:H193)<1,\"\",MAX('2011 Survey responses'!G193,'2011 Survey responses'!H193))","v":3},{"$f":"IF(SUM('2011 Survey responses'!I193:L193)<4.1,\"\",(AVERAGEIFS('2011 Survey responses'!I193:L193,'2011 Survey responses'!I193:L193,\">1\")))","v":3.5},{"$f":"IF(SUM('2011 Survey responses'!M193:S193)<4.1,\"\",(AVERAGEIFS('2011 Survey responses'!M193:S193,'2011 Survey responses'!M193:S193,\">1\")))","v":3.8},{"$f":"IF(SUM('2011 Survey responses'!T193:U193)<2.1,\"\",(AVERAGEIFS('2011 Survey responses'!T193:U193,'2011 Survey responses'!T193:U193,\">1\")))","v":4.5},{"$f":"IF(SUM('2011 Survey responses'!V193:AO193)<1,\"\",(AVERAGEIFS('2011 Survey responses'!V193:AO193,'2011 Survey responses'!V193:AO193,\">1\")))","v":2.6470588235294117},{"$f":"IF(SUM('2011 Survey responses'!V193:AA193)<1,\"\",(AVERAGEIFS('2011 Survey responses'!V193:AA193,'2011 Survey responses'!V193:AA193,\">1\")))","v":2},{"$f":"IF(SUM('2011 Survey responses'!AB193:AH193)<1,\"\",(AVERAGEIFS('2011 Survey responses'!AB193:AH193,'2011 Survey responses'!AB193:AH193,\">1\")))","v":2.8571428571428572},{"$f":"IF(SUM('2011 Survey responses'!AI193:AO193)<1,\"\",(AVERAGEIFS('2011 Survey responses'!AI193:AO193,'2011 Survey responses'!AI193:AO193,\">1\")))","v":3.25},{"$f":"IF(('2011 Survey responses'!Y193+'2011 Survey responses'!AI193+'2011 Survey responses'!AK193)<3.1,\"\",((SUMIF('2011 Survey responses'!Y193,\">1\")+SUMIF('2011 Survey responses'!AI193,\">1\")+SUMIF('2011 Survey responses'!AK193,\">1\")+SUMIF('2011 Survey responses'!AM193,\">1\"))/(COUNTIF('2011 Survey responses'!Y193,\">1\")+COUNTIF('2011 Survey responses'!AI193,\">1\")+COUNTIF('2011 Survey responses'!AK193,\">1\")+COUNTIF('2011 Survey responses'!AM193,\">1\"))))","v":2.75},{"$f":"IF(('2011 Survey responses'!W193)<1.1,\"\",('2011 Survey responses'!W193))","v":2},{"$f":"IF(('2011 Survey responses'!Y193)<1.1,\"\",('2011 Survey responses'!Y193))","v":2},{"$f":"IF(('2011 Survey responses'!Z193)<1.1,\"\",('2011 Survey responses'!Z193))","v":2},{"$f":"IF(('2011 Survey responses'!V193+'2011 Survey responses'!X193+'2011 Survey responses'!AA193)<3.1,\"\",((SUMIF('2011 Survey responses'!V193,\">1\")+SUMIF('2011 Survey responses'!X193,\">1\")+SUMIF('2011 Survey responses'!AA193,\">1\"))/(COUNTIF('2011 Survey responses'!V193,\">1\")+COUNTIF('2011 Survey responses'!X193,\">1\")+COUNTIF('2011 Survey responses'!AA193,\">1\"))))","v":2},{"$f":"IF(('2011 Survey responses'!V193+'2011 Survey responses'!Y193+'2011 Survey responses'!AA193)<3.1,\"\",((SUMIF('2011 Survey responses'!V193,\">1\")+SUMIF('2011 Survey responses'!Y193,\">1\")+SUMIF('2011 Survey responses'!AA193,\">1\"))/(COUNTIF('2011 Survey responses'!V193,\">1\")+COUNTIF('2011 Survey responses'!Y193,\">1\")+COUNTIF('2011 Survey responses'!AA193,\">1\"))))","v":2},{"$f":"IF(SUM('2011 Survey responses'!AB193:AH193)<1,\"\",(AVERAGEIFS('2011 Survey responses'!AB193:AH193,'2011 Survey responses'!AB193:AH193,\">1\")))","v":2.8571428571428572},{"$f":"IF(SUM('2011 Survey responses'!AI193:AO193)<7.1,\"\",(AVERAGEIFS('2011 Survey responses'!AI193:AO193,'2011 Survey responses'!AI193:AO193,\">1\")))","v":3.25},{"$f":"IF(('2011 Survey responses'!AH193)<1.1,\"\",('2011 Survey responses'!AH193))","v":2},{"$f":"IF(SUM('2011 Survey responses'!AP193:BV193)<1,\"\",(AVERAGEIFS('2011 Survey responses'!AP193:BV193,'2011 Survey responses'!AP193:BV193,\">1\")))","v":4.03125},{"$f":"IF(SUM('2011 Survey responses'!AP193:AS193)<4.1,\"\",(AVERAGEIFS('2011 Survey responses'!AP193:AS193,'2011 Survey responses'!AP193:AS193,\">1\")))","v":4.25},{"$f":"IF(SUM('2011 Survey responses'!AT193:BF193)<1,\"\",(AVERAGEIFS('2011 Survey responses'!AT193:BF193,'2011 Survey responses'!AT193:BF193,\">1\")))","v":3.9166666666666665},{"$f":"IF(SUM('2011 Survey responses'!BG193:BO193)<1,\"\",(AVERAGEIFS('2011 Survey responses'!BG193:BO193,'2011 Survey responses'!BG193:BO193,\">1\")))","v":4.4444444444444446},{"$f":"IF(SUM('2011 Survey responses'!BP193:BS193)<1,\"\",(AVERAGEIFS('2011 Survey responses'!BP193:BS193,'2011 Survey responses'!BP193:BS193,\">1\")))","v":4.25},{"$f":"IF(SUM('2011 Survey responses'!BT193:BV193)<3.1,\"\",(AVERAGEIFS('2011 Survey responses'!BT193:BV193,'2011 Survey responses'!BT193:BV193,\">1\")))","v":2.6666666666666665},{"$f":"IF(('2011 Survey responses'!AQ193+'2011 Survey responses'!AR193+'2011 Survey responses'!BG193)<3.1,\"\",((SUMIF('2011 Survey responses'!AQ193,\">1\")+SUMIF('2011 Survey responses'!AR193,\">1\")+SUMIF('2011 Survey responses'!BG193,\">1\"))/(COUNTIF('2011 Survey responses'!AQ193,\">1\")+COUNTIF('2011 Survey responses'!AR193,\">1\")+COUNTIF('2011 Survey responses'!BG193,\">1\"))))","v":4.666666666666667},{"$f":"IF(SUM('2011 Survey responses'!AP193:AS193)<4.1,\"\",(AVERAGEIFS('2011 Survey responses'!AP193:AS193,'2011 Survey responses'!AP193:AS193,\">1\")))","v":4.25},{"$f":"IF(('2011 Survey responses'!AU193+'2011 Survey responses'!AX193+'2011 Survey responses'!BA193+'2011 Survey responses'!BC193+'2011 Survey responses'!BD193)<5.1,\"\",(SUMIF('2011 Survey responses'!AU193,\">1\")+SUMIF('2011 Survey responses'!AX193,\">1\")+SUMIF('2011 Survey responses'!BA193,\">1\")+SUMIF('2011 Survey responses'!BC193,\">1\")+SUMIF('2011 Survey responses'!BD193,\">1\"))/(COUNTIF('2011 Survey responses'!AU193,\">1\")+COUNTIF('2011 Survey responses'!AX193,\">1\")+COUNTIF('2011 Survey responses'!BA193,\">1\")+COUNTIF('2011 Survey responses'!BC193,\">1\")+COUNTIF('2011 Survey responses'!BD193,\">1\")))","v":4.25},{"$f":"IF(('2011 Survey responses'!AT193)<1.1,\"\",('2011 Survey responses'!AT193))","v":4},{"$f":"IF(SUM('2011 Survey responses'!AV193:AW193)<2.1,\"\",(AVERAGEIFS('2011 Survey responses'!AV193:AW193,'2011 Survey responses'!AV193:AW193,\">1\")))","v":4.5},{"$f":"IF(('2011 Survey responses'!AW193+'2011 Survey responses'!AY193)<2.1,\"\",(SUMIF('2011 Survey responses'!AW193,\">1\")+SUMIF('2011 Survey responses'!AY193,\">1\"))/(COUNTIF('2011 Survey responses'!AW193,\">1\")+COUNTIF('2011 Survey responses'!AY193,\">1\")))","v":4.5},{"$f":"IF(('2011 Survey responses'!AZ193)<1.1,\"\",('2011 Survey responses'!AZ193))","v":4},4,1,4,2,{"$f":"IF(('2011 Survey responses'!BE193)<1.1,\"\",('2011 Survey responses'!BE193))","v":3},{"$f":"IF(('2011 Survey responses'!AY193+'2011 Survey responses'!BB193+'2011 Survey responses'!BF193)<3.1,\"\",(SUMIF('2011 Survey responses'!AY193,\">1\")+SUMIF('2011 Survey responses'!BB193,\">1\")+SUMIF('2011 Survey responses'!BF193,\">1\"))/(COUNTIF('2011 Survey responses'!AY193,\">1\")+COUNTIF('2011 Survey responses'!BB193,\">1\")+COUNTIF('2011 Survey responses'!BF193,\">1\")))","v":3.3333333333333335},4.3472222222222223,{"$f":"IF(SUM('2011 Survey responses'!BT193:BV193)<3.1,\"\",(AVERAGEIFS('2011 Survey responses'!BT193:BV193,'2011 Survey responses'!BT193:BV193,\">1\")))","v":2.6666666666666665},{"$f":"IF(SUM('2011 Survey responses'!BW193:CP193)<1,\"\",(AVERAGEIFS('2011 Survey responses'!BW193:CP193,'2011 Survey responses'!BW193:CP193,\">1\")))","v":4.2777777777777777},{"$f":"IF(SUM('2011 Survey responses'!BW193:CF193)<1,\"\",(AVERAGEIFS('2011 Survey responses'!BW193:CF193,'2011 Survey responses'!BW193:CF193,\">1\")))","v":4.1111111111111107},{"$f":"IF(SUM('2011 Survey responses'!CG193:CP193)<1,\"\",(AVERAGEIFS('2011 Survey responses'!CG193:CP193,'2011 Survey responses'!CG193:CP193,\">1\")))","v":4.4444444444444446},{"$f":"IF(SUM('2011 Survey responses'!BX193:CF193)<1,\"\",(AVERAGEIFS('2011 Survey responses'!BX193:CF193,'2011 Survey responses'!BX193:CF193,\">1\")))","v":4.125},{"$f":"IF(SUM('2011 Survey responses'!CH193:CP193)<1,\"\",(AVERAGEIFS('2011 Survey responses'!CH193:CP193,'2011 Survey responses'!CH193:CP193,\">1\")))","v":4.375},{"$f":"IF(SUM('2011 Survey responses'!BW193:CP193)<1,\"\",(AVERAGEIFS('2011 Survey responses'!BW193:CP193,'2011 Survey responses'!BW193:CP193,\">1\")))","v":4.2777777777777777},{"$f":"IF(('2011 Survey responses'!BW193+'2011 Survey responses'!CG193)<2.1,\"\",(SUMIF('2011 Survey responses'!BW193,\">1\")+SUMIF('2011 Survey responses'!CG193,\">1\"))/(COUNTIF('2011 Survey responses'!BW193,\">1\")+COUNTIF('2011 Survey responses'!CG193,\">1\")))","v":4.5},{"$f":"IF(('2011 Survey responses'!BX193+'2011 Survey responses'!CH193)<2.1,\"\",(SUMIF('2011 Survey responses'!BX193,\">1\")+SUMIF('2011 Survey responses'!CH193,\">1\"))/(COUNTIF('2011 Survey responses'!BX193,\">1\")+COUNTIF('2011 Survey responses'!CH193,\">1\")))","v":4},{"$f":"IF(('2011 Survey responses'!BY193+'2011 Survey responses'!CI193)<2.1,\"\",(SUMIF('2011 Survey responses'!BY193,\">1\")+SUMIF('2011 Survey responses'!CI193,\">1\"))/(COUNTIF('2011 Survey responses'!BY193,\">1\")+COUNTIF('2011 Survey responses'!CI193,\">1\")))","v":5},{"$f":"IF('2011 Survey responses'!CQ193<0.5,\"\",'2011 Survey responses'!CQ193)","v":5},{"$f":"IF('2011 Survey responses'!CR193<0.5,\"\",'2011 Survey responses'!CR193)","v":5},{"$f":"IF('2011 Survey responses'!CS193<0.5,\"\",'2011 Survey responses'!CS193)","v":5},{"$f":"IF('2011 Survey responses'!CT193<0.5,\"\",'2011 Survey responses'!CT193)","v":5},{"$f":"IF('2011 Survey responses'!CU193<0.5,\"\",'2011 Survey responses'!CU193)","v":4},{"$f":"IF('2011 Survey responses'!CV193<0.5,\"\",'2011 Survey responses'!CV193)","v":1},{"$f":"IF(SUM('2011 Survey responses'!CW193:DL193)<1,\"\",(AVERAGE('2011 Survey responses'!CW193:DL193)))","v":2},{"$f":"IF(SUM('2011 Survey responses'!CW193:CZ193)<1,\"\",(AVERAGE('2011 Survey responses'!CW193:CZ193)))","v":2.75},{"$f":"IF(SUM('2011 Survey responses'!DA193:DD193)<1,\"\",(AVERAGE('2011 Survey responses'!DA193:DD193)))","v":2},{"$f":"IF(SUM('2011 Survey responses'!DE193:DH193)<1,\"\",(AVERAGE('2011 Survey responses'!DE193:DH193)))","v":1.5},{"$f":"IF(SUM('2011 Survey responses'!DI193:DL193)<1,\"\",(AVERAGE('2011 Survey responses'!DI193:DL193)))","v":1.75},{"$f":"IF(('2011 Survey responses'!CW193+'2011 Survey responses'!DA193+'2011 Survey responses'!DE193+'2011 Survey responses'!DI193)<1,\"\",AVERAGE('2011 Survey responses'!CW193,'2011 Survey responses'!DA193,'2011 Survey responses'!DE193,'2011 Survey responses'!DI193))","v":3.25},{"$f":"IF(('2011 Survey responses'!CX193+'2011 Survey responses'!DB193+'2011 Survey responses'!DF193+'2011 Survey responses'!DJ193)<1,\"\",AVERAGE('2011 Survey responses'!CX193,'2011 Survey responses'!DB193,'2011 Survey responses'!DF193,'2011 Survey responses'!DJ193))","v":1.25},{"$f":"IF(('2011 Survey responses'!CY193+'2011 Survey responses'!DC193+'2011 Survey responses'!DG193+'2011 Survey responses'!DK193)<1,\"\",AVERAGE('2011 Survey responses'!CY193,'2011 Survey responses'!DC193,'2011 Survey responses'!DG193,'2011 Survey responses'!DK193))","v":1.25},{"$f":"IF(('2011 Survey responses'!CZ193+'2011 Survey responses'!DD193+'2011 Survey responses'!DH193+'2011 Survey responses'!DL193)<1,\"\",AVERAGE('2011 Survey responses'!CZ193,'2011 Survey responses'!DD193,'2011 Survey responses'!DH193,'2011 Survey responses'!DL193))","v":2.25},{"$f":"IF('2011 Survey responses'!CW193<0.5,\"\",'2011 Survey responses'!CW193)","v":4},{"$f":"IF('2011 Survey responses'!CX193<0.5,\"\",'2011 Survey responses'!CX193)","v":2},{"$f":"IF('2011 Survey responses'!CY193<0.5,\"\",'2011 Survey responses'!CY193)","v":2},{"$f":"IF('2011 Survey responses'!CZ193<0.5,\"\",'2011 Survey responses'!CZ193)","v":3},{"$f":"IF('2011 Survey responses'!DA193<0.5,\"\",'2011 Survey responses'!DA193)","v":4},{"$f":"IF('2011 Survey responses'!DB193<0.5,\"\",'2011 Survey responses'!DB193)","v":1},{"$f":"IF('2011 Survey responses'!DC193<0.5,\"\",'2011 Survey responses'!DC193)","v":1},{"$f":"IF('2011 Survey responses'!DD193<0.5,\"\",'2011 Survey responses'!DD193)","v":2},{"$f":"IF('2011 Survey responses'!DE193<0.5,\"\",'2011 Survey responses'!DE193)","v":2},{"$f":"IF('2011 Survey responses'!DF193<0.5,\"\",'2011 Survey responses'!DF193)","v":1},{"$f":"IF('2011 Survey responses'!DG193<0.5,\"\",'2011 Survey responses'!DG193)","v":1},{"$f":"IF('2011 Survey responses'!DH193<0.5,\"\",'2011 Survey responses'!DH193)","v":2},{"$f":"IF('2011 Survey responses'!DI193<0.5,\"\",'2011 Survey responses'!DI193)","v":3},{"$f":"IF('2011 Survey responses'!DJ193<0.5,\"\",'2011 Survey responses'!DJ193)","v":1},{"$f":"IF('2011 Survey responses'!DK193<0.5,\"\",'2011 Survey responses'!DK193)","v":1},{"$f":"IF('2011 Survey responses'!DL193<0.5,\"\",'2011 Survey responses'!DL193)","v":2},{"$f":"IF('2011 Survey responses'!DU193=4,4,IF('2011 Survey responses'!DU193=5,4,\"\"))","v":""},{"$f":"IF('2011 Survey responses'!DV193=4,3,IF('2011 Survey responses'!DV193=5,3,\"\"))","v":""},"",{"$f":"IF(CQ193=2,CQ193,IF(CO193=4,CO193,IF(CP193=3,CP193,IF('2011 Survey responses'!GT193=1,1,\"\"))))","v":1},{"$f":"IF('2011 Survey responses'!DO193<0.5,\"\",'2011 Survey responses'!DO193)","v":4},{"$f":"IF('2011 Survey responses'!DP193<0.5,\"\",'2011 Survey responses'!DP193)","v":5},{"$f":"IF('2011 Survey responses'!DQ193<0.5,\"\",'2011 Survey responses'!DQ193)","v":4},{"$f":"IF('2011 Survey responses'!DR193<0.5,\"\",'2011 Survey responses'!DR193)","v":4},{"$f":"IF('2011 Survey responses'!DS193<0.5,\"\",'2011 Survey responses'!DS193)","v":4},{"$f":"IF('2011 Survey responses'!DT193<0.5,\"\",'2011 Survey responses'!DT193)","v":3},{"$f":"IF('2011 Survey responses'!DU193<0.5,\"\",'2011 Survey responses'!DU193)","v":3},{"$f":"IF('2011 Survey responses'!DV193<0.5,\"\",'2011 Survey responses'!DV193)","v":3},{"$f":"IF('2011 Survey responses'!DW193<0.5,\"\",'2011 Survey responses'!DW193)","v":5},{"$f":"IF('2011 Survey responses'!DX193<0.5,\"\",'2011 Survey responses'!DX193)","v":3},{"$f":"IF('2011 Survey responses'!DY193<0.5,\"\",'2011 Survey responses'!DY193)","v":4},{"$f":"IF('2011 Survey responses'!DZ193<0.5,\"\",'2011 Survey responses'!DZ193)","v":3},{"$f":"IF('2011 Survey responses'!EA193<0.5,\"\",'2011 Survey responses'!EA193)","v":4},{"$f":"IF('2011 Survey responses'!EB193<0.5,\"\",'2011 Survey responses'!EB193)","v":5},{"$f":"IF('2011 Survey responses'!EC193<0.5,\"\",'2011 Survey responses'!EC193)","v":4},{"$f":"IF('2011 Survey responses'!ED193<0.5,\"\",'2011 Survey responses'!ED193)","v":4},{"$f":"IF('2011 Survey responses'!EE193<0.5,\"\",'2011 Survey responses'!EE193)","v":4},{"$f":"IF('2011 Survey responses'!EF193<0.5,\"\",'2011 Survey responses'!EF193)","v":3},{"$f":"IF('2011 Survey responses'!EG193<0.5,\"\",'2011 Survey responses'!EG193)","v":3},{"$f":"IF('2011 Survey responses'!EH193<0.5,\"\",'2011 Survey responses'!EH193)","v":3},{"$f":"IF('2011 Survey responses'!EI193<0.5,\"\",'2011 Survey responses'!EI193)","v":4},{"$f":"IF('2011 Survey responses'!EJ193<0.5,\"\",'2011 Survey responses'!EJ193)","v":4},{"$f":"IF('2011 Survey responses'!EK193<0.5,\"\",'2011 Survey responses'!EK193)","v":4},{"$f":"IF('2011 Survey responses'!EL193<0.5,\"\",'2011 Survey responses'!EL193)","v":4},{"$f":"IF('2011 Survey responses'!EM193<0.5,\"\",'2011 Survey responses'!EM193)","v":4},{"$f":"IF('2011 Survey responses'!EN193<0.5,\"\",'2011 Survey responses'!EN193)","v":2},{"$f":"IF('2011 Survey responses'!EO193<0.5,\"\",'2011 Survey responses'!EO193)","v":2},{"$f":"IF('2011 Survey responses'!EP193<0.5,\"\",'2011 Survey responses'!EP193)","v":3},{"$f":"IF(('2011 Survey responses'!EW193+'2011 Survey responses'!EX193)>=2,AVERAGE('2011 Survey responses'!EW193,'2011 Survey responses'!EY193),\"\")","v":5},{"$f":"IF('2011 Survey responses'!EX193<0.5,\"\",'2011 Survey responses'!EX193)","v":4},{"$f":"IF('2011 Survey responses'!EZ193<0.5,\"\",'2011 Survey responses'!EZ193)","v":4},{"$f":"IF('2011 Survey responses'!FB193<0.5,\"\",'2011 Survey responses'!FB193)","v":4},{"$f":"IF('2011 Survey responses'!FD193<0.5,\"\",'2011 Survey responses'!FD193)","v":3},{"$f":"IF('2011 Survey responses'!FC193<0.5,\"\",'2011 Survey responses'!FC193)","v":3},{"$f":"IF(('2011 Survey responses'!EM193+'2011 Survey responses'!EN193)>=2,AVERAGE('2011 Survey responses'!EM193,'2011 Survey responses'!EN193),\"\")","v":3},{"$f":"IF('2011 Survey responses'!ES193<0.5,\"\",'2011 Survey responses'!ES193)","v":4},{"$f":"IF(('2011 Survey responses'!ET193+'2011 Survey responses'!EU193)>=2,AVERAGE('2011 Survey responses'!ET193,'2011 Survey responses'!EU193),\"\")","v":3.5},{"$f":"IF('2011 Survey responses'!EV193<0.5,\"\",'2011 Survey responses'!EV193)","v":4},{"$f":"IF('2011 Survey responses'!FA193<0.5,\"\",'2011 Survey responses'!FA193)","v":3},{"$f":"IF('2011 Survey responses'!ER193<0.5,\"\",'2011 Survey responses'!ER193)","v":4},{"$f":"IF(('2011 Survey responses'!EO193+'2011 Survey responses'!EP193)>=2,AVERAGE('2011 Survey responses'!EO193,'2011 Survey responses'!EP193),\"\")","v":2.5},{"$f":"IF('2011 Survey responses'!EQ193<0.5,\"\",'2011 Survey responses'!EQ193)","v":1},{"$f":"IF('2011 Survey responses'!ET193<0.5,\"\",'2011 Survey responses'!ET193)","v":4},{"$f":"IF('2011 Survey responses'!EU193<0.5,\"\",'2011 Survey responses'!EU193)","v":3},{"$f":"IF('2011 Survey responses'!EW193<0.5,\"\",'2011 Survey responses'!EW193)","v":5},{"$f":"IF('2011 Survey responses'!EY193<0.5,\"\",'2011 Survey responses'!EY193)","v":5},{"$f":"IF('2011 Survey responses'!FU193<0.5,\"\",'2011 Survey responses'!FU193)","v":4},{"$f":"IF(('2011 Survey responses'!FL193+'2011 Survey responses'!FM193)>=2,AVERAGE('2011 Survey responses'!FL193,'2011 Survey responses'!FM193),\"\")","v":4.5},{"$f":"IF(('2011 Survey responses'!FO193+'2011 Survey responses'!FQ193)>=2,AVERAGE('2011 Survey responses'!FO193,'2011 Survey responses'!FQ193),\"\")","v":4},{"$f":"IF('2011 Survey responses'!FJ193<0.5,\"\",'2011 Survey responses'!FJ193)","v":4},{"$f":"IF('2011 Survey responses'!FT193<0.5,\"\",'2011 Survey responses'!FT193)","v":4},{"$f":"IF('2011 Survey responses'!FR193<0.5,\"\",'2011 Survey responses'!FR193)","v":4},{"$f":"IF('2011 Survey responses'!FK193<0.5,\"\",'2011 Survey responses'!FK193)","v":4},{"$f":"IF('2011 Survey responses'!FP193<0.5,\"\",'2011 Survey responses'!FP193)","v":4},{"$f":"IF('2011 Survey responses'!FN193<0.5,\"\",'2011 Survey responses'!FN193)","v":5},{"$f":"IF(('2011 Survey responses'!FE193+'2011 Survey responses'!FF193)>=2,AVERAGE('2011 Survey responses'!FE193,'2011 Survey responses'!FF193),\"\")","v":3.5},{"$f":"IF('2011 Survey responses'!FS193<0.5,\"\",'2011 Survey responses'!FS193)","v":4},{"$f":"IF('2011 Survey responses'!FV193<0.5,\"\",'2011 Survey responses'!FV193)","v":4},{"$f":"IF(('2011 Survey responses'!FG193+'2011 Survey responses'!FH193)>=2,AVERAGE('2011 Survey responses'!FG193,'2011 Survey responses'!FH193),\"\")","v":3.5},{"$f":"IF('2011 Survey responses'!FI193<0.5,\"\",'2011 Survey responses'!FI193)","v":3},{"$f":"IF('2011 Survey responses'!FE193<0.5,\"\",'2011 Survey responses'!FE193)","v":4},{"$f":"IF('2011 Survey responses'!FF193<0.5,\"\",'2011 Survey responses'!FF193)","v":3},{"$f":"IF('2011 Survey responses'!FG193<0.5,\"\",'2011 Survey responses'!FG193)","v":4},{"$f":"IF('2011 Survey responses'!FH193<0.5,\"\",'2011 Survey responses'!FH193)","v":3},{"$f":"IF('2011 Survey responses'!FL193<0.5,\"\",'2011 Survey responses'!FL193)","v":5},{"$f":"IF('2011 Survey responses'!FM193<0.5,\"\",'2011 Survey responses'!FM193)","v":4},{"$f":"IF('2011 Survey responses'!FO193<0.5,\"\",'2011 Survey responses'!FO193)","v":4},{"$f":"IF('2011 Survey responses'!FQ193<0.5,\"\",'2011 Survey responses'!FQ193)","v":4}]
["Zimbabwe",{"$f":"IF(SUM(F194)<1,\"\",AVERAGEIF('2011 Survey responses'!B194:CP194,\">1\"))","v":4.5274725274725274},{"$f":"IF(SUM(F194)<1,\"\",AVERAGEIF('2011 Survey responses'!B194:AO194,\">1\"))","v":4.2249999999999996},{"$f":"IF(SUM(F194)<1,\"\",AVERAGEIF('2011 Survey responses'!B194:BV194,\">1\"))","v":4.5753424657534243},{"$f":"IF(SUM(F194)<1,\"\",AVERAGEIF('2011 Survey responses'!V194:BV194,\">1\"))","v":4.9433962264150946},{"$f":"IF(SUM('2011 Survey responses'!B194:U194)<1,\"\",(AVERAGEIFS('2011 Survey responses'!B194:U194,'2011 Survey responses'!B194:U194,\">1\")))","v":3.6},{"$f":"IF(SUM('2011 Survey responses'!B194:H194)<1,\"\",(AVERAGEIFS('2011 Survey responses'!B194:H194,'2011 Survey responses'!B194:H194,\">1\")))","v":3.7142857142857144},{"$f":"IF(SUM('2011 Survey responses'!I194:S194)<1,\"\",(AVERAGEIFS('2011 Survey responses'!I194:S194,'2011 Survey responses'!I194:S194,\">1\")))","v":3.0909090909090908},{"$f":"IF(SUM('2011 Survey responses'!T194:U194)<2.1,\"\",(AVERAGEIFS('2011 Survey responses'!T194:U194,'2011 Survey responses'!T194:U194,\">1\")))","v":6},{"$f":"IF(SUM('2011 Survey responses'!B194:C194)<2.1,\"\",((SUMIF('2011 Survey responses'!B194:C194,\">1\")+SUMIF('2011 Survey responses'!F194,\">1\"))/(COUNTIF('2011 Survey responses'!B194:C194,\">1\")+COUNTIF('2011 Survey responses'!F194,\">1\"))))","v":3.3333333333333335},{"$f":"IF(SUM('2011 Survey responses'!D194:E194)<2.1,\"\",(AVERAGEIFS('2011 Survey responses'!D194:E194,'2011 Survey responses'!D194:E194,\">1\")))","v":6},{"$f":"IF(('2011 Survey responses'!B194+'2011 Survey responses'!D194)<2.1,\"\",((SUMIF('2011 Survey responses'!B194,\">1\")+SUMIF('2011 Survey responses'!D194,\">1\")+SUMIF('2011 Survey responses'!F194,\">1\")+SUMIF('2011 Survey responses'!K194,\">1\"))/(COUNTIF('2011 Survey responses'!B194,\">1\")+COUNTIF('2011 Survey responses'!D194,\">1\")+COUNTIF('2011 Survey responses'!F194,\">1\")+COUNTIF('2011 Survey responses'!K194,\">1\"))))","v":4.75},{"$f":"IF(SUM('2011 Survey responses'!G194:H194)<2.1,\"\",(AVERAGEIFS('2011 Survey responses'!G194:H194,'2011 Survey responses'!G194:H194,\">1\")))","v":2},{"$f":"IF(SUM('2011 Survey responses'!F194:G194)<1.5,\"\",MAX('2011 Survey responses'!F194,'2011 Survey responses'!G194))","v":6},{"$f":"IF(SUM('2011 Survey responses'!G194:H194)<1,\"\",MAX('2011 Survey responses'!G194,'2011 Survey responses'!H194))","v":2},{"$f":"IF(SUM('2011 Survey responses'!I194:L194)<4.1,\"\",(AVERAGEIFS('2011 Survey responses'!I194:L194,'2011 Survey responses'!I194:L194,\">1\")))","v":2.75},{"$f":"IF(SUM('2011 Survey responses'!M194:S194)<4.1,\"\",(AVERAGEIFS('2011 Survey responses'!M194:S194,'2011 Survey responses'!M194:S194,\">1\")))","v":3.2857142857142856},{"$f":"IF(SUM('2011 Survey responses'!T194:U194)<2.1,\"\",(AVERAGEIFS('2011 Survey responses'!T194:U194,'2011 Survey responses'!T194:U194,\">1\")))","v":6},{"$f":"IF(SUM('2011 Survey responses'!V194:AO194)<1,\"\",(AVERAGEIFS('2011 Survey responses'!V194:AO194,'2011 Survey responses'!V194:AO194,\">1\")))","v":4.8499999999999996},{"$f":"IF(SUM('2011 Survey responses'!V194:AA194)<1,\"\",(AVERAGEIFS('2011 Survey responses'!V194:AA194,'2011 Survey responses'!V194:AA194,\">1\")))","v":6},{"$f":"IF(SUM('2011 Survey responses'!AB194:AH194)<1,\"\",(AVERAGEIFS('2011 Survey responses'!AB194:AH194,'2011 Survey responses'!AB194:AH194,\">1\")))","v":4.5714285714285712},{"$f":"IF(SUM('2011 Survey responses'!AI194:AO194)<1,\"\",(AVERAGEIFS('2011 Survey responses'!AI194:AO194,'2011 Survey responses'!AI194:AO194,\">1\")))","v":4.1428571428571432},{"$f":"IF(('2011 Survey responses'!Y194+'2011 Survey responses'!AI194+'2011 Survey responses'!AK194)<3.1,\"\",((SUMIF('2011 Survey responses'!Y194,\">1\")+SUMIF('2011 Survey responses'!AI194,\">1\")+SUMIF('2011 Survey responses'!AK194,\">1\")+SUMIF('2011 Survey responses'!AM194,\">1\"))/(COUNTIF('2011 Survey responses'!Y194,\">1\")+COUNTIF('2011 Survey responses'!AI194,\">1\")+COUNTIF('2011 Survey responses'!AK194,\">1\")+COUNTIF('2011 Survey responses'!AM194,\">1\"))))","v":4.5},{"$f":"IF(('2011 Survey responses'!W194)<1.1,\"\",('2011 Survey responses'!W194))","v":6},{"$f":"IF(('2011 Survey responses'!Y194)<1.1,\"\",('2011 Survey responses'!Y194))","v":6},{"$f":"IF(('2011 Survey responses'!Z194)<1.1,\"\",('2011 Survey responses'!Z194))","v":6},{"$f":"IF(('2011 Survey responses'!V194+'2011 Survey responses'!X194+'2011 Survey responses'!AA194)<3.1,\"\",((SUMIF('2011 Survey responses'!V194,\">1\")+SUMIF('2011 Survey responses'!X194,\">1\")+SUMIF('2011 Survey responses'!AA194,\">1\"))/(COUNTIF('2011 Survey responses'!V194,\">1\")+COUNTIF('2011 Survey responses'!X194,\">1\")+COUNTIF('2011 Survey responses'!AA194,\">1\"))))","v":6},{"$f":"IF(('2011 Survey responses'!V194+'2011 Survey responses'!Y194+'2011 Survey responses'!AA194)<3.1,\"\",((SUMIF('2011 Survey responses'!V194,\">1\")+SUMIF('2011 Survey responses'!Y194,\">1\")+SUMIF('2011 Survey responses'!AA194,\">1\"))/(COUNTIF('2011 Survey responses'!V194,\">1\")+COUNTIF('2011 Survey responses'!Y194,\">1\")+COUNTIF('2011 Survey responses'!AA194,\">1\"))))","v":6},{"$f":"IF(SUM('2011 Survey responses'!AB194:AH194)<1,\"\",(AVERAGEIFS('2011 Survey responses'!AB194:AH194,'2011 Survey responses'!AB194:AH194,\">1\")))","v":4.5714285714285712},{"$f":"IF(SUM('2011 Survey responses'!AI194:AO194)<7.1,\"\",(AVERAGEIFS('2011 Survey responses'!AI194:AO194,'2011 Survey responses'!AI194:AO194,\">1\")))","v":4.1428571428571432},{"$f":"IF(('2011 Survey responses'!AH194)<1.1,\"\",('2011 Survey responses'!AH194))","v":5},{"$f":"IF(SUM('2011 Survey responses'!AP194:BV194)<1,\"\",(AVERAGEIFS('2011 Survey responses'!AP194:BV194,'2011 Survey responses'!AP194:BV194,\">1\")))","v":5},{"$f":"IF(SUM('2011 Survey responses'!AP194:AS194)<4.1,\"\",(AVERAGEIFS('2011 Survey responses'!AP194:AS194,'2011 Survey responses'!AP194:AS194,\">1\")))","v":4.75},{"$f":"IF(SUM('2011 Survey responses'!AT194:BF194)<1,\"\",(AVERAGEIFS('2011 Survey responses'!AT194:BF194,'2011 Survey responses'!AT194:BF194,\">1\")))","v":4.6923076923076925},{"$f":"IF(SUM('2011 Survey responses'!BG194:BO194)<1,\"\",(AVERAGEIFS('2011 Survey responses'!BG194:BO194,'2011 Survey responses'!BG194:BO194,\">1\")))","v":5.4444444444444446},{"$f":"IF(SUM('2011 Survey responses'!BP194:BS194)<1,\"\",(AVERAGEIFS('2011 Survey responses'!BP194:BS194,'2011 Survey responses'!BP194:BS194,\">1\")))","v":5},{"$f":"IF(SUM('2011 Survey responses'!BT194:BV194)<3.1,\"\",(AVERAGEIFS('2011 Survey responses'!BT194:BV194,'2011 Survey responses'!BT194:BV194,\">1\")))","v":5.333333333333333},{"$f":"IF(('2011 Survey responses'!AQ194+'2011 Survey responses'!AR194+'2011 Survey responses'!BG194)<3.1,\"\",((SUMIF('2011 Survey responses'!AQ194,\">1\")+SUMIF('2011 Survey responses'!AR194,\">1\")+SUMIF('2011 Survey responses'!BG194,\">1\"))/(COUNTIF('2011 Survey responses'!AQ194,\">1\")+COUNTIF('2011 Survey responses'!AR194,\">1\")+COUNTIF('2011 Survey responses'!BG194,\">1\"))))","v":5.333333333333333},{"$f":"IF(SUM('2011 Survey responses'!AP194:AS194)<4.1,\"\",(AVERAGEIFS('2011 Survey responses'!AP194:AS194,'2011 Survey responses'!AP194:AS194,\">1\")))","v":4.75},{"$f":"IF(('2011 Survey responses'!AU194+'2011 Survey responses'!AX194+'2011 Survey responses'!BA194+'2011 Survey responses'!BC194+'2011 Survey responses'!BD194)<5.1,\"\",(SUMIF('2011 Survey responses'!AU194,\">1\")+SUMIF('2011 Survey responses'!AX194,\">1\")+SUMIF('2011 Survey responses'!BA194,\">1\")+SUMIF('2011 Survey responses'!BC194,\">1\")+SUMIF('2011 Survey responses'!BD194,\">1\"))/(COUNTIF('2011 Survey responses'!AU194,\">1\")+COUNTIF('2011 Survey responses'!AX194,\">1\")+COUNTIF('2011 Survey responses'!BA194,\">1\")+COUNTIF('2011 Survey responses'!BC194,\">1\")+COUNTIF('2011 Survey responses'!BD194,\">1\")))","v":4.5999999999999996},{"$f":"IF(('2011 Survey responses'!AT194)<1.1,\"\",('2011 Survey responses'!AT194))","v":4},{"$f":"IF(SUM('2011 Survey responses'!AV194:AW194)<2.1,\"\",(AVERAGEIFS('2011 Survey responses'!AV194:AW194,'2011 Survey responses'!AV194:AW194,\">1\")))","v":3.5},{"$f":"IF(('2011 Survey responses'!AW194+'2011 Survey responses'!AY194)<2.1,\"\",(SUMIF('2011 Survey responses'!AW194,\">1\")+SUMIF('2011 Survey responses'!AY194,\">1\"))/(COUNTIF('2011 Survey responses'!AW194,\">1\")+COUNTIF('2011 Survey responses'!AY194,\">1\")))","v":4},{"$f":"IF(('2011 Survey responses'!AZ194)<1.1,\"\",('2011 Survey responses'!AZ194))","v":5},null,null,null,null,{"$f":"IF(('2011 Survey responses'!BE194)<1.1,\"\",('2011 Survey responses'!BE194))","v":6},{"$f":"IF(('2011 Survey responses'!AY194+'2011 Survey responses'!BB194+'2011 Survey responses'!BF194)<3.1,\"\",(SUMIF('2011 Survey responses'!AY194,\">1\")+SUMIF('2011 Survey responses'!BB194,\">1\")+SUMIF('2011 Survey responses'!BF194,\">1\"))/(COUNTIF('2011 Survey responses'!AY194,\">1\")+COUNTIF('2011 Survey responses'!BB194,\">1\")+COUNTIF('2011 Survey responses'!BF194,\">1\")))","v":5.333333333333333},5.2222222222222223,{"$f":"IF(SUM('2011 Survey responses'!BT194:BV194)<3.1,\"\",(AVERAGEIFS('2011 Survey responses'!BT194:BV194,'2011 Survey responses'!BT194:BV194,\">1\")))","v":5.333333333333333},{"$f":"IF(SUM('2011 Survey responses'!BW194:CP194)<1,\"\",(AVERAGEIFS('2011 Survey responses'!BW194:CP194,'2011 Survey responses'!BW194:CP194,\">1\")))","v":4.333333333333333},{"$f":"IF(SUM('2011 Survey responses'!BW194:CF194)<1,\"\",(AVERAGEIFS('2011 Survey responses'!BW194:CF194,'2011 Survey responses'!BW194:CF194,\">1\")))","v":4.5555555555555554},{"$f":"IF(SUM('2011 Survey responses'!CG194:CP194)<1,\"\",(AVERAGEIFS('2011 Survey responses'!CG194:CP194,'2011 Survey responses'!CG194:CP194,\">1\")))","v":4.1111111111111107},{"$f":"IF(SUM('2011 Survey responses'!BX194:CF194)<1,\"\",(AVERAGEIFS('2011 Survey responses'!BX194:CF194,'2011 Survey responses'!BX194:CF194,\">1\")))","v":4.5},{"$f":"IF(SUM('2011 Survey responses'!CH194:CP194)<1,\"\",(AVERAGEIFS('2011 Survey responses'!CH194:CP194,'2011 Survey responses'!CH194:CP194,\">1\")))","v":4},{"$f":"IF(SUM('2011 Survey responses'!BW194:CP194)<1,\"\",(AVERAGEIFS('2011 Survey responses'!BW194:CP194,'2011 Survey responses'!BW194:CP194,\">1\")))","v":4.333333333333333},{"$f":"IF(('2011 Survey responses'!BW194+'2011 Survey responses'!CG194)<2.1,\"\",(SUMIF('2011 Survey responses'!BW194,\">1\")+SUMIF('2011 Survey responses'!CG194,\">1\"))/(COUNTIF('2011 Survey responses'!BW194,\">1\")+COUNTIF('2011 Survey responses'!CG194,\">1\")))","v":5},{"$f":"IF(('2011 Survey responses'!BX194+'2011 Survey responses'!CH194)<2.1,\"\",(SUMIF('2011 Survey responses'!BX194,\">1\")+SUMIF('2011 Survey responses'!CH194,\">1\"))/(COUNTIF('2011 Survey responses'!BX194,\">1\")+COUNTIF('2011 Survey responses'!CH194,\">1\")))","v":5},{"$f":"IF(('2011 Survey responses'!BY194+'2011 Survey responses'!CI194)<2.1,\"\",(SUMIF('2011 Survey responses'!BY194,\">1\")+SUMIF('2011 Survey responses'!CI194,\">1\"))/(COUNTIF('2011 Survey responses'!BY194,\">1\")+COUNTIF('2011 Survey responses'!CI194,\">1\")))","v":5},{"$f":"IF('2011 Survey responses'!CQ194<0.5,\"\",'2011 Survey responses'!CQ194)","v":3},{"$f":"IF('2011 Survey responses'!CR194<0.5,\"\",'2011 Survey responses'!CR194)","v":3},{"$f":"IF('2011 Survey responses'!CS194<0.5,\"\",'2011 Survey responses'!CS194)","v":2},{"$f":"IF('2011 Survey responses'!CT194<0.5,\"\",'2011 Survey responses'!CT194)","v":2},{"$f":"IF('2011 Survey responses'!CU194<0.5,\"\",'2011 Survey responses'!CU194)","v":5},{"$f":"IF('2011 Survey responses'!CV194<0.5,\"\",'2011 Survey responses'!CV194)","v":5},{"$f":"IF(SUM('2011 Survey responses'!CW194:DL194)<1,\"\",(AVERAGE('2011 Survey responses'!CW194:DL194)))","v":2.3125},{"$f":"IF(SUM('2011 Survey responses'!CW194:CZ194)<1,\"\",(AVERAGE('2011 Survey responses'!CW194:CZ194)))","v":2.25},{"$f":"IF(SUM('2011 Survey responses'!DA194:DD194)<1,\"\",(AVERAGE('2011 Survey responses'!DA194:DD194)))","v":2},{"$f":"IF(SUM('2011 Survey responses'!DE194:DH194)<1,\"\",(AVERAGE('2011 Survey responses'!DE194:DH194)))","v":3},{"$f":"IF(SUM('2011 Survey responses'!DI194:DL194)<1,\"\",(AVERAGE('2011 Survey responses'!DI194:DL194)))","v":2},{"$f":"IF(('2011 Survey responses'!CW194+'2011 Survey responses'!DA194+'2011 Survey responses'!DE194+'2011 Survey responses'!DI194)<1,\"\",AVERAGE('2011 Survey responses'!CW194,'2011 Survey responses'!DA194,'2011 Survey responses'!DE194,'2011 Survey responses'!DI194))","v":2.25},{"$f":"IF(('2011 Survey responses'!CX194+'2011 Survey responses'!DB194+'2011 Survey responses'!DF194+'2011 Survey responses'!DJ194)<1,\"\",AVERAGE('2011 Survey responses'!CX194,'2011 Survey responses'!DB194,'2011 Survey responses'!DF194,'2011 Survey responses'!DJ194))","v":2.25},{"$f":"IF(('2011 Survey responses'!CY194+'2011 Survey responses'!DC194+'2011 Survey responses'!DG194+'2011 Survey responses'!DK194)<1,\"\",AVERAGE('2011 Survey responses'!CY194,'2011 Survey responses'!DC194,'2011 Survey responses'!DG194,'2011 Survey responses'!DK194))","v":2.25},{"$f":"IF(('2011 Survey responses'!CZ194+'2011 Survey responses'!DD194+'2011 Survey responses'!DH194+'2011 Survey responses'!DL194)<1,\"\",AVERAGE('2011 Survey responses'!CZ194,'2011 Survey responses'!DD194,'2011 Survey responses'!DH194,'2011 Survey responses'!DL194))","v":2.5},{"$f":"IF('2011 Survey responses'!CW194<0.5,\"\",'2011 Survey responses'!CW194)","v":2},{"$f":"IF('2011 Survey responses'!CX194<0.5,\"\",'2011 Survey responses'!CX194)","v":2},{"$f":"IF('2011 Survey responses'!CY194<0.5,\"\",'2011 Survey responses'!CY194)","v":2},{"$f":"IF('2011 Survey responses'!CZ194<0.5,\"\",'2011 Survey responses'!CZ194)","v":3},{"$f":"IF('2011 Survey responses'!DA194<0.5,\"\",'2011 Survey responses'!DA194)","v":2},{"$f":"IF('2011 Survey responses'!DB194<0.5,\"\",'2011 Survey responses'!DB194)","v":2},{"$f":"IF('2011 Survey responses'!DC194<0.5,\"\",'2011 Survey responses'!DC194)","v":2},{"$f":"IF('2011 Survey responses'!DD194<0.5,\"\",'2011 Survey responses'!DD194)","v":2},{"$f":"IF('2011 Survey responses'!DE194<0.5,\"\",'2011 Survey responses'!DE194)","v":3},{"$f":"IF('2011 Survey responses'!DF194<0.5,\"\",'2011 Survey responses'!DF194)","v":3},{"$f":"IF('2011 Survey responses'!DG194<0.5,\"\",'2011 Survey responses'!DG194)","v":3},{"$f":"IF('2011 Survey responses'!DH194<0.5,\"\",'2011 Survey responses'!DH194)","v":3},{"$f":"IF('2011 Survey responses'!DI194<0.5,\"\",'2011 Survey responses'!DI194)","v":2},{"$f":"IF('2011 Survey responses'!DJ194<0.5,\"\",'2011 Survey responses'!DJ194)","v":2},{"$f":"IF('2011 Survey responses'!DK194<0.5,\"\",'2011 Survey responses'!DK194)","v":2},{"$f":"IF('2011 Survey responses'!DL194<0.5,\"\",'2011 Survey responses'!DL194)","v":2},{"$f":"IF('2011 Survey responses'!DU194=4,4,IF('2011 Survey responses'!DU194=5,4,\"\"))","v":4},{"$f":"IF('2011 Survey responses'!DV194=4,3,IF('2011 Survey responses'!DV194=5,3,\"\"))","v":3},2,{"$f":"IF(CQ194=2,CQ194,IF(CO194=4,CO194,IF(CP194=3,CP194,IF('2011 Survey responses'!GT194=1,1,\"\"))))","v":2},{"$f":"IF('2011 Survey responses'!DO194<0.5,\"\",'2011 Survey responses'!DO194)","v":4},{"$f":"IF('2011 Survey responses'!DP194<0.5,\"\",'2011 Survey responses'!DP194)","v":5},{"$f":"IF('2011 Survey responses'!DQ194<0.5,\"\",'2011 Survey responses'!DQ194)","v":4},{"$f":"IF('2011 Survey responses'!DR194<0.5,\"\",'2011 Survey responses'!DR194)","v":4},{"$f":"IF('2011 Survey responses'!DS194<0.5,\"\",'2011 Survey responses'!DS194)","v":4},{"$f":"IF('2011 Survey responses'!DT194<0.5,\"\",'2011 Survey responses'!DT194)","v":5},{"$f":"IF('2011 Survey responses'!DU194<0.5,\"\",'2011 Survey responses'!DU194)","v":4},{"$f":"IF('2011 Survey responses'!DV194<0.5,\"\",'2011 Survey responses'!DV194)","v":4},{"$f":"IF('2011 Survey responses'!DW194<0.5,\"\",'2011 Survey responses'!DW194)","v":4},{"$f":"IF('2011 Survey responses'!DX194<0.5,\"\",'2011 Survey responses'!DX194)","v":4},{"$f":"IF('2011 Survey responses'!DY194<0.5,\"\",'2011 Survey responses'!DY194)","v":5},{"$f":"IF('2011 Survey responses'!DZ194<0.5,\"\",'2011 Survey responses'!DZ194)","v":4},{"$f":"IF('2011 Survey responses'!EA194<0.5,\"\",'2011 Survey responses'!EA194)","v":5},{"$f":"IF('2011 Survey responses'!EB194<0.5,\"\",'2011 Survey responses'!EB194)","v":5},{"$f":"IF('2011 Survey responses'!EC194<0.5,\"\",'2011 Survey responses'!EC194)","v":5},{"$f":"IF('2011 Survey responses'!ED194<0.5,\"\",'2011 Survey responses'!ED194)","v":5},{"$f":"IF('2011 Survey responses'!EE194<0.5,\"\",'2011 Survey responses'!EE194)","v":4},{"$f":"IF('2011 Survey responses'!EF194<0.5,\"\",'2011 Survey responses'!EF194)","v":4},{"$f":"IF('2011 Survey responses'!EG194<0.5,\"\",'2011 Survey responses'!EG194)","v":5},{"$f":"IF('2011 Survey responses'!EH194<0.5,\"\",'2011 Survey responses'!EH194)","v":5},{"$f":"IF('2011 Survey responses'!EI194<0.5,\"\",'2011 Survey responses'!EI194)","v":5},{"$f":"IF('2011 Survey responses'!EJ194<0.5,\"\",'2011 Survey responses'!EJ194)","v":5},{"$f":"IF('2011 Survey responses'!EK194<0.5,\"\",'2011 Survey responses'!EK194)","v":5},{"$f":"IF('2011 Survey responses'!EL194<0.5,\"\",'2011 Survey responses'!EL194)","v":5},{"$f":"IF('2011 Survey responses'!EM194<0.5,\"\",'2011 Survey responses'!EM194)","v":5},{"$f":"IF('2011 Survey responses'!EN194<0.5,\"\",'2011 Survey responses'!EN194)","v":5},{"$f":"IF('2011 Survey responses'!EO194<0.5,\"\",'2011 Survey responses'!EO194)","v":4},{"$f":"IF('2011 Survey responses'!EP194<0.5,\"\",'2011 Survey responses'!EP194)","v":""},{"$f":"IF(('2011 Survey responses'!EW194+'2011 Survey responses'!EX194)>=2,AVERAGE('2011 Survey responses'!EW194,'2011 Survey responses'!EY194),\"\")","v":5},{"$f":"IF('2011 Survey responses'!EX194<0.5,\"\",'2011 Survey responses'!EX194)","v":5},{"$f":"IF('2011 Survey responses'!EZ194<0.5,\"\",'2011 Survey responses'!EZ194)","v":5},{"$f":"IF('2011 Survey responses'!FB194<0.5,\"\",'2011 Survey responses'!FB194)","v":5},{"$f":"IF('2011 Survey responses'!FD194<0.5,\"\",'2011 Survey responses'!FD194)","v":5},{"$f":"IF('2011 Survey responses'!FC194<0.5,\"\",'2011 Survey responses'!FC194)","v":5},{"$f":"IF(('2011 Survey responses'!EM194+'2011 Survey responses'!EN194)>=2,AVERAGE('2011 Survey responses'!EM194,'2011 Survey responses'!EN194),\"\")","v":5},{"$f":"IF('2011 Survey responses'!ES194<0.5,\"\",'2011 Survey responses'!ES194)","v":5},{"$f":"IF(('2011 Survey responses'!ET194+'2011 Survey responses'!EU194)>=2,AVERAGE('2011 Survey responses'!ET194,'2011 Survey responses'!EU194),\"\")","v":5},{"$f":"IF('2011 Survey responses'!EV194<0.5,\"\",'2011 Survey responses'!EV194)","v":5},{"$f":"IF('2011 Survey responses'!FA194<0.5,\"\",'2011 Survey responses'!FA194)","v":4},{"$f":"IF('2011 Survey responses'!ER194<0.5,\"\",'2011 Survey responses'!ER194)","v":5},{"$f":"IF(('2011 Survey responses'!EO194+'2011 Survey responses'!EP194)>=2,AVERAGE('2011 Survey responses'!EO194,'2011 Survey responses'!EP194),\"\")","v":4},{"$f":"IF('2011 Survey responses'!EQ194<0.5,\"\",'2011 Survey responses'!EQ194)","v":4},{"$f":"IF('2011 Survey responses'!ET194<0.5,\"\",'2011 Survey responses'!ET194)","v":5},{"$f":"IF('2011 Survey responses'!EU194<0.5,\"\",'2011 Survey responses'!EU194)","v":5},{"$f":"IF('2011 Survey responses'!EW194<0.5,\"\",'2011 Survey responses'!EW194)","v":5},{"$f":"IF('2011 Survey responses'!EY194<0.5,\"\",'2011 Survey responses'!EY194)","v":5},{"$f":"IF('2011 Survey responses'!FU194<0.5,\"\",'2011 Survey responses'!FU194)","v":5},{"$f":"IF(('2011 Survey responses'!FL194+'2011 Survey responses'!FM194)>=2,AVERAGE('2011 Survey responses'!FL194,'2011 Survey responses'!FM194),\"\")","v":2},{"$f":"IF(('2011 Survey responses'!FO194+'2011 Survey responses'!FQ194)>=2,AVERAGE('2011 Survey responses'!FO194,'2011 Survey responses'!FQ194),\"\")","v":""},{"$f":"IF('2011 Survey responses'!FJ194<0.5,\"\",'2011 Survey responses'!FJ194)","v":3},{"$f":"IF('2011 Survey responses'!FT194<0.5,\"\",'2011 Survey responses'!FT194)","v":3},{"$f":"IF('2011 Survey responses'!FR194<0.5,\"\",'2011 Survey responses'!FR194)","v":2},{"$f":"IF('2011 Survey responses'!FK194<0.5,\"\",'2011 Survey responses'!FK194)","v":2},{"$f":"IF('2011 Survey responses'!FP194<0.5,\"\",'2011 Survey responses'!FP194)","v":1},{"$f":"IF('2011 Survey responses'!FN194<0.5,\"\",'2011 Survey responses'!FN194)","v":3},{"$f":"IF(('2011 Survey responses'!FE194+'2011 Survey responses'!FF194)>=2,AVERAGE('2011 Survey responses'!FE194,'2011 Survey responses'!FF194),\"\")","v":1},{"$f":"IF('2011 Survey responses'!FS194<0.5,\"\",'2011 Survey responses'!FS194)","v":2},{"$f":"IF('2011 Survey responses'!FV194<0.5,\"\",'2011 Survey responses'!FV194)","v":2},{"$f":"IF(('2011 Survey responses'!FG194+'2011 Survey responses'!FH194)>=2,AVERAGE('2011 Survey responses'!FG194,'2011 Survey responses'!FH194),\"\")","v":2.5},{"$f":"IF('2011 Survey responses'!FI194<0.5,\"\",'2011 Survey responses'!FI194)","v":""},{"$f":"IF('2011 Survey responses'!FE194<0.5,\"\",'2011 Survey responses'!FE194)","v":1},{"$f":"IF('2011 Survey responses'!FF194<0.5,\"\",'2011 Survey responses'!FF194)","v":1},{"$f":"IF('2011 Survey responses'!FG194<0.5,\"\",'2011 Survey responses'!FG194)","v":4},{"$f":"IF('2011 Survey responses'!FH194<0.5,\"\",'2011 Survey responses'!FH194)","v":1},{"$f":"IF('2011 Survey responses'!FL194<0.5,\"\",'2011 Survey responses'!FL194)","v":2},{"$f":"IF('2011 Survey responses'!FM194<0.5,\"\",'2011 Survey responses'!FM194)","v":2},{"$f":"IF('2011 Survey responses'!FO194<0.5,\"\",'2011 Survey responses'!FO194)","v":""},{"$f":"IF('2011 Survey responses'!FQ194<0.5,\"\",'2011 Survey responses'!FQ194)","v":1}]
[]
[null,null,null,null,null,null,null,null,null,null,null,null,null,null,null,null,null,null,null,null,null,null,null,null,null,null,null,null,null,null,null,"Sierra Leone"]
["Total responses: Low HDI",{"$f":"COUNTIFS(B$3:B$194,\">0\",ID_HDIG,1)","v":32},{"$f":"COUNTIFS(C$3:C$194,\">0\",ID_HDIG,1)","v":32},32,32,32,32,32,30,30,29,30,26,32,31,32,32,30,32,32,32,32,32,30,30,27,30,31,32,32,29,32,31,32,32,32,30,31,31,31,27,30,28,26,27,25,26,26,28,31,32,30,31,31,31,31,30,31,30,29,30,31,30,29,30,30,31,29,29,29,29,{"$f":"COUNTIFS(BT$3:BT$194,\">0\",ID_HDIG,1)","v":29},29,29,29,29,29,29,29,29,29,29,29,29,29,29,29,29,29,29,29,29,19,21,15,32,31,31,30,30,31,31,31,31,31,31,31,31,31,31,31,31,31,31,31,30,31,31,31,31,31,31,30,29,{"$f":"COUNTIFS(DU$3:DU$194,\">0\",ID_HDIG,1)","v":31},31,31,31,31,31,31,31,30,30,31,31,30,31,30,30,{"$f":"COUNTIFS(EK$3:EK$194,\">0\",ID_HDIG,1)","v":31},31,{"$f":"COUNTIFS(EM$3:EM$194,\">0\",ID_HDIG,1)","v":31},31,30,31,{"$f":"COUNTIFS(EQ$3:EQ$194,\">0\",ID_HDIG,1)","v":31},31,30,31,31,31,{"$f":"COUNTIFS(EW$3:EW$194,\">0\",ID_HDIG,1)","v":31},{"$f":"COUNTIFS(EX$3:EX$194,\">0\",ID_HDIG,1)","v":31},{"$f":"COUNTIFS(EY$3:EY$194,\">0\",ID_HDIG,1)","v":31},{"$f":"COUNTIFS(EZ$3:EZ$194,\">0\",ID_HDIG,1)","v":30},31,31,31,30,31,31,29,31]
["Total responses: Medium HDI",{"$f":"COUNTIFS(B$3:B$194,\">0\",ID_HDIG,2)","v":31},31,31,31,31,31,31,28,31,30,31,28,31,31,31,31,28,31,31,31,30,31,29,30,24,31,31,31,30,29,31,30,31,31,31,30,31,30,31,29,31,31,27,29,27,29,28,26,30,31,30,31,31,31,31,31,31,31,29,30,29,29,30,29,29,27,30,30,30,30,{"$f":"COUNTIFS(BT$3:BT$194,\">0\",ID_HDIG,2)","v":30},30,30,30,30,30,30,30,30,30,30,30,30,30,30,30,30,30,30,30,30,22,25,18,31,29,30,30,30,29,30,30,31,31,31,31,31,30,31,31,31,31,31,31,31,31,31,31,31,31,31,30,30,{"$f":"COUNTIFS(DU$3:DU$194,\">0\",ID_HDIG,2)","v":31},31,31,31,31,31,31,31,31,31,31,30,30,30,31,31,{"$f":"COUNTIFS(EK$3:EK$194,\">0\",ID_HDIG,2)","v":31},31,{"$f":"COUNTIFS(EM$3:EM$194,\">0\",ID_HDIG,2)","v":30},30,30,31,{"$f":"COUNTIFS(EQ$3:EQ$194,\">0\",ID_HDIG,2)","v":30},29,31,30,30,31,{"$f":"COUNTIFS(EW$3:EW$194,\">0\",ID_HDIG,2)","v":30},{"$f":"COUNTIFS(EX$3:EX$194,\">0\",ID_HDIG,2)","v":30},{"$f":"COUNTIFS(EY$3:EY$194,\">0\",ID_HDIG,2)","v":29},{"$f":"COUNTIFS(EZ$3:EZ$194,\">0\",ID_HDIG,2)","v":30},31,31,29,29,30,30,30,30]
["Total responses: High HDI",{"$f":"COUNTIFS(B$3:B$194,\">0\",ID_HDIG,3)","v":36},36,36,36,36,36,35,31,35,35,35,33,36,35,35,35,31,36,35,36,36,36,32,33,25,33,34,36,36,27,36,36,36,36,35,34,36,36,36,32,33,35,35,34,35,33,34,24,35,36,34,36,36,36,36,36,36,35,34,29,35,34,34,34,35,34,33,33,33,33,{"$f":"COUNTIFS(BT$3:BT$194,\">0\",ID_HDIG,3)","v":33},32,32,32,33,32,32,32,33,32,32,32,33,32,32,32,33,32,32,32,33,23,24,17,36,36,36,36,35,35,34,35,35,35,34,35,34,35,35,35,34,35,35,36,36,36,35,36,35,36,36,36,35,{"$f":"COUNTIFS(DU$3:DU$194,\">0\",ID_HDIG,3)","v":36},36,36,36,36,35,36,35,36,35,36,36,36,35,36,35,{"$f":"COUNTIFS(EK$3:EK$194,\">0\",ID_HDIG,3)","v":35},36,{"$f":"COUNTIFS(EM$3:EM$194,\">0\",ID_HDIG,3)","v":35},34,35,35,{"$f":"COUNTIFS(EQ$3:EQ$194,\">0\",ID_HDIG,3)","v":36},36,35,35,35,34,{"$f":"COUNTIFS(EW$3:EW$194,\">0\",ID_HDIG,3)","v":36},{"$f":"COUNTIFS(EX$3:EX$194,\">0\",ID_HDIG,3)","v":36},{"$f":"COUNTIFS(EY$3:EY$194,\">0\",ID_HDIG,3)","v":34},{"$f":"COUNTIFS(EZ$3:EZ$194,\">0\",ID_HDIG,3)","v":33},35,34,33,33,35,33,35,35]
["Total responses: Very High HDI",{"$f":"COUNTIFS(B$3:B$194,\">0\",ID_HDIG,4)","v":34},34,34,34,34,34,33,29,33,33,34,30,32,33,33,33,29,34,34,34,34,34,32,31,28,31,33,34,34,15,34,34,34,34,34,33,34,34,34,32,32,31,31,32,32,33,30,27,34,34,33,33,33,33,33,33,33,33,18,24,31,31,32,33,34,31,31,31,31,31,{"$f":"COUNTIFS(BT$3:BT$194,\">0\",ID_HDIG,4)","v":31},31,30,31,28,31,30,31,28,31,30,31,28,31,30,31,28,31,30,31,28,15,15,9,34,34,34,34,33,34,33,33,33,33,33,32,32,34,34,33,33,33,32,34,33,34,34,34,34,34,32,33,32,{"$f":"COUNTIFS(DU$3:DU$194,\">0\",ID_HDIG,4)","v":33},33,34,34,34,34,34,33,34,33,34,33,33,32,34,33,{"$f":"COUNTIFS(EK$3:EK$194,\">0\",ID_HDIG,4)","v":33},33,{"$f":"COUNTIFS(EM$3:EM$194,\">0\",ID_HDIG,4)","v":34},34,34,33,{"$f":"COUNTIFS(EQ$3:EQ$194,\">0\",ID_HDIG,4)","v":34},34,33,32,34,34,{"$f":"COUNTIFS(EW$3:EW$194,\">0\",ID_HDIG,4)","v":34},{"$f":"COUNTIFS(EX$3:EX$194,\">0\",ID_HDIG,4)","v":34},{"$f":"COUNTIFS(EY$3:EY$194,\">0\",ID_HDIG,4)","v":32},{"$f":"COUNTIFS(EZ$3:EZ$194,\">0\",ID_HDIG,4)","v":32},34,33,32,31,34,33,34,32]
["Total number of responses: Global",{"$f":"COUNT(B3:B194)","v":133},133,133,133,133,133,131,118,129,127,130,117,131,130,131,131,118,133,132,133,132,133,123,124,104,125,129,133,132,100,133,131,{"$f":"COUNT(AH3:AH194)","v":133},133,132,127,132,131,132,120,126,125,119,{"$f":"COUNT(AS3:AS194)","v":122},119,{"$f":"COUNT(AU3:AU194)","v":121},118,105,130,133,127,131,131,131,131,130,131,129,{"$f":"COUNT(BH3:BH194)","v":110},{"$f":"COUNT(BI3:BI194)","v":113},126,124,125,126,128,123,123,123,123,123,{"$f":"COUNT(BT3:BT194)","v":123},122,121,122,120,122,121,122,120,122,121,122,120,122,121,122,120,122,121,122,120,79,85,59,133,130,131,130,128,129,128,129,{"$f":"COUNT(CZ3:CZ194)","v":130},130,129,129,128,130,131,130,129,130,129,132,130,132,131,132,131,132,130,129,126,131,131,132,132,132,131,132,130,131,129,132,{"$f":"COUNT(EF3:EF194)","v":130},129,128,131,129,130,131,{"$f":"COUNT(EM3:EM194)","v":130},129,129,130,{"$f":"COUNT(EQ3:EQ194)","v":131},130,129,128,130,{"$f":"COUNT(EV3:EV194)","v":130},131,131,126,125,131,129,125,123,130,127,128,128]
[]
["% responded: Low HDI",{"$f":"B197/Responses!$B$6","v":1},{"$f":"C197/Responses!$B$6","v":1},{"$f":"D197/Responses!$B$6","v":1},{"$f":"E197/Responses!$B$6","v":1},{"$f":"F197/Responses!$B$6","v":1},{"$f":"G197/Responses!$B$6","v":1},{"$f":"H197/Responses!$B$6","v":1},{"$f":"I197/Responses!$B$6","v":0.9375},{"$f":"J197/Responses!$B$6","v":0.9375},{"$f":"K197/Responses!$B$6","v":0.90625},{"$f":"L197/Responses!$B$6","v":0.9375},{"$f":"M197/Responses!$B$6","v":0.8125},{"$f":"N197/Responses!$B$6","v":1},{"$f":"O197/Responses!$B$6","v":0.96875},{"$f":"P197/Responses!$B$6","v":1},{"$f":"Q197/Responses!$B$6","v":1},{"$f":"R197/Responses!$B$6","v":0.9375},{"$f":"S197/Responses!$B$6","v":1},{"$f":"T197/Responses!$B$6","v":1},{"$f":"U197/Responses!$B$6","v":1},{"$f":"V197/Responses!$B$6","v":1},{"$f":"W197/Responses!$B$6","v":1},{"$f":"X197/Responses!$B$6","v":0.9375},{"$f":"Y197/Responses!$B$6","v":0.9375},{"$f":"Z197/Responses!$B$6","v":0.84375},{"$f":"AA197/Responses!$B$6","v":0.9375},{"$f":"AB197/Responses!$B$6","v":0.96875},{"$f":"AC197/Responses!$B$6","v":1},{"$f":"AD197/Responses!$B$6","v":1},{"$f":"AE197/Responses!$B$6","v":0.90625},{"$f":"AF197/Responses!$B$6","v":1},{"$f":"AG197/Responses!$B$6","v":0.96875},{"$f":"AH197/Responses!$B$6","v":1},{"$f":"AI197/Responses!$B$6","v":1},{"$f":"AJ197/Responses!$B$6","v":1},{"$f":"AK197/Responses!$B$6","v":0.9375},{"$f":"AL197/Responses!$B$6","v":0.96875},{"$f":"AM197/Responses!$B$6","v":0.96875},{"$f":"AN197/Responses!$B$6","v":0.96875},{"$f":"AO197/Responses!$B$6","v":0.84375},{"$f":"AP197/Responses!$B$6","v":0.9375},{"$f":"AQ197/Responses!$B$6","v":0.875},{"$f":"AR197/Responses!$B$6","v":0.8125},{"$f":"AS197/Responses!$B$6","v":0.84375},{"$f":"AT197/Responses!$B$6","v":0.78125},{"$f":"AU197/Responses!$B$6","v":0.8125},{"$f":"AV197/Responses!$B$6","v":0.8125},{"$f":"AW197/Responses!$B$6","v":0.875},{"$f":"AX197/Responses!$B$6","v":0.96875},{"$f":"AY197/Responses!$B$6","v":1},{"$f":"AZ197/Responses!$B$6","v":0.9375},{"$f":"BA197/Responses!$B$6","v":0.96875},{"$f":"BB197/Responses!$B$6","v":0.96875},{"$f":"BC197/Responses!$B$6","v":0.96875},{"$f":"BD197/Responses!$B$6","v":0.96875},{"$f":"BE197/Responses!$B$6","v":0.9375},{"$f":"BF197/Responses!$B$6","v":0.96875},{"$f":"BG197/Responses!$B$6","v":0.9375},{"$f":"BH197/Responses!$B$6","v":0.90625},{"$f":"BI197/Responses!$B$6","v":0.9375},{"$f":"BJ197/Responses!$B$6","v":0.96875},{"$f":"BK197/Responses!$B$6","v":0.9375},{"$f":"BL197/Responses!$B$6","v":0.90625},{"$f":"BM197/Responses!$B$6","v":0.9375},{"$f":"BN197/Responses!$B$6","v":0.9375},{"$f":"BO197/Responses!$B$6","v":0.96875},{"$f":"BP197/Responses!$B$6","v":0.90625},{"$f":"BQ197/Responses!$B$6","v":0.90625},{"$f":"BR197/Responses!$B$6","v":0.90625},{"$f":"BS197/Responses!$B$6","v":0.90625},{"$f":"BT197/Responses!$B$6","v":0.90625},{"$f":"BU197/Responses!$B$6","v":0.90625},{"$f":"BV197/Responses!$B$6","v":0.90625},{"$f":"BW197/Responses!$B$6","v":0.90625},{"$f":"BX197/Responses!$B$6","v":0.90625},{"$f":"BY197/Responses!$B$6","v":0.90625},{"$f":"BZ197/Responses!$B$6","v":0.90625},{"$f":"CA197/Responses!$B$6","v":0.90625},{"$f":"CB197/Responses!$B$6","v":0.90625},{"$f":"CC197/Responses!$B$6","v":0.90625},{"$f":"CD197/Responses!$B$6","v":0.90625},{"$f":"CE197/Responses!$B$6","v":0.90625},{"$f":"CF197/Responses!$B$6","v":0.90625},{"$f":"CG197/Responses!$B$6","v":0.90625},{"$f":"CH197/Responses!$B$6","v":0.90625},{"$f":"CI197/Responses!$B$6","v":0.90625},{"$f":"CJ197/Responses!$B$6","v":0.90625},{"$f":"CK197/Responses!$B$6","v":0.90625},{"$f":"CL197/Responses!$B$6","v":0.90625},{"$f":"CM197/Responses!$B$6","v":0.90625},{"$f":"CN197/Responses!$B$6","v":0.90625},{"$f":"CO197/Responses!$B$6","v":0.59375},{"$f":"CP197/Responses!$B$6","v":0.65625},{"$f":"CQ197/Responses!$B$6","v":0.46875},{"$f":"CR197/Responses!$B$6","v":1},{"$f":"CS197/Responses!$B$6","v":0.96875},{"$f":"CT197/Responses!$B$6","v":0.96875},{"$f":"CU197/Responses!$B$6","v":0.9375},{"$f":"CV197/Responses!$B$6","v":0.9375},{"$f":"CW197/Responses!$B$6","v":0.96875},{"$f":"CX197/Responses!$B$6","v":0.96875},{"$f":"CY197/Responses!$B$6","v":0.96875},{"$f":"CZ197/Responses!$B$6","v":0.96875},{"$f":"DA197/Responses!$B$6","v":0.96875},{"$f":"DB197/Responses!$B$6","v":0.96875},{"$f":"DC197/Responses!$B$6","v":0.96875},{"$f":"DD197/Responses!$B$6","v":0.96875},{"$f":"DE197/Responses!$B$6","v":0.96875},{"$f":"DF197/Responses!$B$6","v":0.96875},{"$f":"DG197/Responses!$B$6","v":0.96875},{"$f":"DH197/Responses!$B$6","v":0.96875},{"$f":"DI197/Responses!$B$6","v":0.96875},{"$f":"DJ197/Responses!$B$6","v":0.96875},{"$f":"DK197/Responses!$B$6","v":0.96875},{"$f":"DL197/Responses!$B$6","v":0.9375},{"$f":"DM197/Responses!$B$6","v":0.96875},{"$f":"DN197/Responses!$B$6","v":0.96875},{"$f":"DO197/Responses!$B$6","v":0.96875},{"$f":"DP197/Responses!$B$6","v":0.96875},{"$f":"DQ197/Responses!$B$6","v":0.96875},{"$f":"DR197/Responses!$B$6","v":0.96875},{"$f":"DS197/Responses!$B$6","v":0.9375},{"$f":"DT197/Responses!$B$6","v":0.90625},{"$f":"DU197/Responses!$B$6","v":0.96875},{"$f":"DV197/Responses!$B$6","v":0.96875},{"$f":"DW197/Responses!$B$6","v":0.96875},{"$f":"DX197/Responses!$B$6","v":0.96875},{"$f":"DY197/Responses!$B$6","v":0.96875},{"$f":"DZ197/Responses!$B$6","v":0.96875},{"$f":"EA197/Responses!$B$6","v":0.96875},{"$f":"EB197/Responses!$B$6","v":0.96875},{"$f":"EC197/Responses!$B$6","v":0.9375},{"$f":"ED197/Responses!$B$6","v":0.9375},{"$f":"EE197/Responses!$B$6","v":0.96875},{"$f":"EF197/Responses!$B$6","v":0.96875},{"$f":"EG197/Responses!$B$6","v":0.9375},{"$f":"EH197/Responses!$B$6","v":0.96875},{"$f":"EI197/Responses!$B$6","v":0.9375},{"$f":"EJ197/Responses!$B$6","v":0.9375},{"$f":"EK197/Responses!$B$6","v":0.96875},{"$f":"EL197/Responses!$B$6","v":0.96875},{"$f":"EM197/Responses!$B$6","v":0.96875},{"$f":"EN197/Responses!$B$6","v":0.96875},{"$f":"EO197/Responses!$B$6","v":0.9375},{"$f":"EP197/Responses!$B$6","v":0.96875},{"$f":"EQ197/Responses!$B$6","v":0.96875},{"$f":"ER197/Responses!$B$6","v":0.96875},{"$f":"ES197/Responses!$B$6","v":0.9375},{"$f":"ET197/Responses!$B$6","v":0.96875},{"$f":"EU197/Responses!$B$6","v":0.96875},{"$f":"EV197/Responses!$B$6","v":0.96875},{"$f":"EW197/Responses!$B$6","v":0.96875},{"$f":"EX197/Responses!$B$6","v":0.96875},{"$f":"EY197/Responses!$B$6","v":0.96875},{"$f":"EZ197/Responses!$B$6","v":0.9375},{"$f":"FA197/Responses!$B$6","v":0.96875},{"$f":"FB197/Responses!$B$6","v":0.96875},{"$f":"FC197/Responses!$B$6","v":0.96875},{"$f":"FD197/Responses!$B$6","v":0.9375},{"$f":"FE197/Responses!$B$6","v":0.96875},{"$f":"FF197/Responses!$B$6","v":0.96875},{"$f":"FG197/Responses!$B$6","v":0.90625},{"$f":"FH197/Responses!$B$6","v":0.96875}]
["% responded: Medium HDI",{"$f":"B198/Responses!$B$7","v":1},{"$f":"C198/Responses!$B$7","v":1},{"$f":"D198/Responses!$B$7","v":1},{"$f":"E198/Responses!$B$7","v":1},{"$f":"F198/Responses!$B$7","v":1},{"$f":"G198/Responses!$B$7","v":1},{"$f":"H198/Responses!$B$7","v":1},{"$f":"I198/Responses!$B$7","v":0.90322580645161288},{"$f":"J198/Responses!$B$7","v":1},{"$f":"K198/Responses!$B$7","v":0.967741935483871},{"$f":"L198/Responses!$B$7","v":1},{"$f":"M198/Responses!$B$7","v":0.90322580645161288},{"$f":"N198/Responses!$B$7","v":1},{"$f":"O198/Responses!$B$7","v":1},{"$f":"P198/Responses!$B$7","v":1},{"$f":"Q198/Responses!$B$7","v":1},{"$f":"R198/Responses!$B$7","v":0.90322580645161288},{"$f":"S198/Responses!$B$7","v":1},{"$f":"T198/Responses!$B$7","v":1},{"$f":"U198/Responses!$B$7","v":1},{"$f":"V198/Responses!$B$7","v":0.967741935483871},{"$f":"W198/Responses!$B$7","v":1},{"$f":"X198/Responses!$B$7","v":0.93548387096774188},{"$f":"Y198/Responses!$B$7","v":0.967741935483871},{"$f":"Z198/Responses!$B$7","v":0.77419354838709675},{"$f":"AA198/Responses!$B$7","v":1},{"$f":"AB198/Responses!$B$7","v":1},{"$f":"AC198/Responses!$B$7","v":1},{"$f":"AD198/Responses!$B$7","v":0.967741935483871},{"$f":"AE198/Responses!$B$7","v":0.93548387096774188},{"$f":"AF198/Responses!$B$7","v":1},{"$f":"AG198/Responses!$B$7","v":0.967741935483871},{"$f":"AH198/Responses!$B$7","v":1},{"$f":"AI198/Responses!$B$7","v":1},{"$f":"AJ198/Responses!$B$7","v":1},{"$f":"AK198/Responses!$B$7","v":0.967741935483871},{"$f":"AL198/Responses!$B$7","v":1},{"$f":"AM198/Responses!$B$7","v":0.967741935483871},{"$f":"AN198/Responses!$B$7","v":1},{"$f":"AO198/Responses!$B$7","v":0.93548387096774188},{"$f":"AP198/Responses!$B$7","v":1},{"$f":"AQ198/Responses!$B$7","v":1},{"$f":"AR198/Responses!$B$7","v":0.87096774193548387},{"$f":"AS198/Responses!$B$7","v":0.93548387096774188},{"$f":"AT198/Responses!$B$7","v":0.87096774193548387},{"$f":"AU198/Responses!$B$7","v":0.93548387096774188},{"$f":"AV198/Responses!$B$7","v":0.90322580645161288},{"$f":"AW198/Responses!$B$7","v":0.83870967741935487},{"$f":"AX198/Responses!$B$7","v":0.967741935483871},{"$f":"AY198/Responses!$B$7","v":1},{"$f":"AZ198/Responses!$B$7","v":0.967741935483871},{"$f":"BA198/Responses!$B$7","v":1},{"$f":"BB198/Responses!$B$7","v":1},{"$f":"BC198/Responses!$B$7","v":1},{"$f":"BD198/Responses!$B$7","v":1},{"$f":"BE198/Responses!$B$7","v":1},{"$f":"BF198/Responses!$B$7","v":1},{"$f":"BG198/Responses!$B$7","v":1},{"$f":"BH198/Responses!$B$7","v":0.93548387096774188},{"$f":"BI198/Responses!$B$7","v":0.967741935483871},{"$f":"BJ198/Responses!$B$7","v":0.93548387096774188},{"$f":"BK198/Responses!$B$7","v":0.93548387096774188},{"$f":"BL198/Responses!$B$7","v":0.967741935483871},{"$f":"BM198/Responses!$B$7","v":0.93548387096774188},{"$f":"BN198/Responses!$B$7","v":0.93548387096774188},{"$f":"BO198/Responses!$B$7","v":0.87096774193548387},{"$f":"BP198/Responses!$B$7","v":0.967741935483871},{"$f":"BQ198/Responses!$B$7","v":0.967741935483871},{"$f":"BR198/Responses!$B$7","v":0.967741935483871},{"$f":"BS198/Responses!$B$7","v":0.967741935483871},{"$f":"BT198/Responses!$B$7","v":0.967741935483871},{"$f":"BU198/Responses!$B$7","v":0.967741935483871},{"$f":"BV198/Responses!$B$7","v":0.967741935483871},{"$f":"BW198/Responses!$B$7","v":0.967741935483871},{"$f":"BX198/Responses!$B$7","v":0.967741935483871},{"$f":"BY198/Responses!$B$7","v":0.967741935483871},{"$f":"BZ198/Responses!$B$7","v":0.967741935483871},{"$f":"CA198/Responses!$B$7","v":0.967741935483871},{"$f":"CB198/Responses!$B$7","v":0.967741935483871},{"$f":"CC198/Responses!$B$7","v":0.967741935483871},{"$f":"CD198/Responses!$B$7","v":0.967741935483871},{"$f":"CE198/Responses!$B$7","v":0.967741935483871},{"$f":"CF198/Responses!$B$7","v":0.967741935483871},{"$f":"CG198/Responses!$B$7","v":0.967741935483871},{"$f":"CH198/Responses!$B$7","v":0.967741935483871},{"$f":"CI198/Responses!$B$7","v":0.967741935483871},{"$f":"CJ198/Responses!$B$7","v":0.967741935483871},{"$f":"CK198/Responses!$B$7","v":0.967741935483871},{"$f":"CL198/Responses!$B$7","v":0.967741935483871},{"$f":"CM198/Responses!$B$7","v":0.967741935483871},{"$f":"CN198/Responses!$B$7","v":0.967741935483871},{"$f":"CO198/Responses!$B$7","v":0.70967741935483875},{"$f":"CP198/Responses!$B$7","v":0.80645161290322576},{"$f":"CQ198/Responses!$B$7","v":0.58064516129032262},{"$f":"CR198/Responses!$B$7","v":1},{"$f":"CS198/Responses!$B$7","v":0.93548387096774188},{"$f":"CT198/Responses!$B$7","v":0.967741935483871},{"$f":"CU198/Responses!$B$7","v":0.967741935483871},{"$f":"CV198/Responses!$B$7","v":0.967741935483871},{"$f":"CW198/Responses!$B$7","v":0.93548387096774188},{"$f":"CX198/Responses!$B$7","v":0.967741935483871},{"$f":"CY198/Responses!$B$7","v":0.967741935483871},{"$f":"CZ198/Responses!$B$7","v":1},{"$f":"DA198/Responses!$B$7","v":1},{"$f":"DB198/Responses!$B$7","v":1},{"$f":"DC198/Responses!$B$7","v":1},{"$f":"DD198/Responses!$B$7","v":1},{"$f":"DE198/Responses!$B$7","v":0.967741935483871},{"$f":"DF198/Responses!$B$7","v":1},{"$f":"DG198/Responses!$B$7","v":1},{"$f":"DH198/Responses!$B$7","v":1},{"$f":"DI198/Responses!$B$7","v":1},{"$f":"DJ198/Responses!$B$7","v":1},{"$f":"DK198/Responses!$B$7","v":1},{"$f":"DL198/Responses!$B$7","v":1},{"$f":"DM198/Responses!$B$7","v":1},{"$f":"DN198/Responses!$B$7","v":1},{"$f":"DO198/Responses!$B$7","v":1},{"$f":"DP198/Responses!$B$7","v":1},{"$f":"DQ198/Responses!$B$7","v":1},{"$f":"DR198/Responses!$B$7","v":1},{"$f":"DS198/Responses!$B$7","v":0.967741935483871},{"$f":"DT198/Responses!$B$7","v":0.967741935483871},{"$f":"DU198/Responses!$B$7","v":1},{"$f":"DV198/Responses!$B$7","v":1},{"$f":"DW198/Responses!$B$7","v":1},{"$f":"DX198/Responses!$B$7","v":1},{"$f":"DY198/Responses!$B$7","v":1},{"$f":"DZ198/Responses!$B$7","v":1},{"$f":"EA198/Responses!$B$7","v":1},{"$f":"EB198/Responses!$B$7","v":1},{"$f":"EC198/Responses!$B$7","v":1},{"$f":"ED198/Responses!$B$7","v":1},{"$f":"EE198/Responses!$B$7","v":1},{"$f":"EF198/Responses!$B$7","v":0.967741935483871},{"$f":"EG198/Responses!$B$7","v":0.967741935483871},{"$f":"EH198/Responses!$B$7","v":0.967741935483871},{"$f":"EI198/Responses!$B$7","v":1},{"$f":"EJ198/Responses!$B$7","v":1},{"$f":"EK198/Responses!$B$7","v":1},{"$f":"EL198/Responses!$B$7","v":1},{"$f":"EM198/Responses!$B$7","v":0.967741935483871},{"$f":"EN198/Responses!$B$7","v":0.967741935483871},{"$f":"EO198/Responses!$B$7","v":0.967741935483871},{"$f":"EP198/Responses!$B$7","v":1},{"$f":"EQ198/Responses!$B$7","v":0.967741935483871},{"$f":"ER198/Responses!$B$7","v":0.93548387096774188},{"$f":"ES198/Responses!$B$7","v":1},{"$f":"ET198/Responses!$B$7","v":0.967741935483871},{"$f":"EU198/Responses!$B$7","v":0.967741935483871},{"$f":"EV198/Responses!$B$7","v":1},{"$f":"EW198/Responses!$B$7","v":0.967741935483871},{"$f":"EX198/Responses!$B$7","v":0.967741935483871},{"$f":"EY198/Responses!$B$7","v":0.93548387096774188},{"$f":"EZ198/Responses!$B$7","v":0.967741935483871},{"$f":"FA198/Responses!$B$7","v":1},{"$f":"FB198/Responses!$B$7","v":1},{"$f":"FC198/Responses!$B$7","v":0.93548387096774188},{"$f":"FD198/Responses!$B$7","v":0.93548387096774188},{"$f":"FE198/Responses!$B$7","v":0.967741935483871},{"$f":"FF198/Responses!$B$7","v":0.967741935483871},{"$f":"FG198/Responses!$B$7","v":0.967741935483871},{"$f":"FH198/Responses!$B$7","v":0.967741935483871}]
["% responded: High HDI",{"$f":"B199/Responses!$B$8","v":1},{"$f":"C199/Responses!$B$8","v":1},{"$f":"D199/Responses!$B$8","v":1},{"$f":"E199/Responses!$B$8","v":1},{"$f":"F199/Responses!$B$8","v":1},{"$f":"G199/Responses!$B$8","v":1},{"$f":"H199/Responses!$B$8","v":0.97222222222222221},{"$f":"I199/Responses!$B$8","v":0.86111111111111116},{"$f":"J199/Responses!$B$8","v":0.97222222222222221},{"$f":"K199/Responses!$B$8","v":0.97222222222222221},{"$f":"L199/Responses!$B$8","v":0.97222222222222221},{"$f":"M199/Responses!$B$8","v":0.91666666666666663},{"$f":"N199/Responses!$B$8","v":1},{"$f":"O199/Responses!$B$8","v":0.97222222222222221},{"$f":"P199/Responses!$B$8","v":0.97222222222222221},{"$f":"Q199/Responses!$B$8","v":0.97222222222222221},{"$f":"R199/Responses!$B$8","v":0.86111111111111116},{"$f":"S199/Responses!$B$8","v":1},{"$f":"T199/Responses!$B$8","v":0.97222222222222221},{"$f":"U199/Responses!$B$8","v":1},{"$f":"V199/Responses!$B$8","v":1},{"$f":"W199/Responses!$B$8","v":1},{"$f":"X199/Responses!$B$8","v":0.88888888888888884},{"$f":"Y199/Responses!$B$8","v":0.91666666666666663},{"$f":"Z199/Responses!$B$8","v":0.69444444444444442},{"$f":"AA199/Responses!$B$8","v":0.91666666666666663},{"$f":"AB199/Responses!$B$8","v":0.94444444444444442},{"$f":"AC199/Responses!$B$8","v":1},{"$f":"AD199/Responses!$B$8","v":1},{"$f":"AE199/Responses!$B$8","v":0.75},{"$f":"AF199/Responses!$B$8","v":1},{"$f":"AG199/Responses!$B$8","v":1},{"$f":"AH199/Responses!$B$8","v":1},{"$f":"AI199/Responses!$B$8","v":1},{"$f":"AJ199/Responses!$B$8","v":0.97222222222222221},{"$f":"AK199/Responses!$B$8","v":0.94444444444444442},{"$f":"AL199/Responses!$B$8","v":1},{"$f":"AM199/Responses!$B$8","v":1},{"$f":"AN199/Responses!$B$8","v":1},{"$f":"AO199/Responses!$B$8","v":0.88888888888888884},{"$f":"AP199/Responses!$B$8","v":0.91666666666666663},{"$f":"AQ199/Responses!$B$8","v":0.97222222222222221},{"$f":"AR199/Responses!$B$8","v":0.97222222222222221},{"$f":"AS199/Responses!$B$8","v":0.94444444444444442},{"$f":"AT199/Responses!$B$8","v":0.97222222222222221},{"$f":"AU199/Responses!$B$8","v":0.91666666666666663},{"$f":"AV199/Responses!$B$8","v":0.94444444444444442},{"$f":"AW199/Responses!$B$8","v":0.66666666666666663},{"$f":"AX199/Responses!$B$8","v":0.97222222222222221},{"$f":"AY199/Responses!$B$8","v":1},{"$f":"AZ199/Responses!$B$8","v":0.94444444444444442},{"$f":"BA199/Responses!$B$8","v":1},{"$f":"BB199/Responses!$B$8","v":1},{"$f":"BC199/Responses!$B$8","v":1},{"$f":"BD199/Responses!$B$8","v":1},{"$f":"BE199/Responses!$B$8","v":1},{"$f":"BF199/Responses!$B$8","v":1},{"$f":"BG199/Responses!$B$8","v":0.97222222222222221},{"$f":"BH199/Responses!$B$8","v":0.94444444444444442},{"$f":"BI199/Responses!$B$8","v":0.80555555555555558},{"$f":"BJ199/Responses!$B$8","v":0.97222222222222221},{"$f":"BK199/Responses!$B$8","v":0.94444444444444442},{"$f":"BL199/Responses!$B$8","v":0.94444444444444442},{"$f":"BM199/Responses!$B$8","v":0.94444444444444442},{"$f":"BN199/Responses!$B$8","v":0.97222222222222221},{"$f":"BO199/Responses!$B$8","v":0.94444444444444442},{"$f":"BP199/Responses!$B$8","v":0.91666666666666663},{"$f":"BQ199/Responses!$B$8","v":0.91666666666666663},{"$f":"BR199/Responses!$B$8","v":0.91666666666666663},{"$f":"BS199/Responses!$B$8","v":0.91666666666666663},{"$f":"BT199/Responses!$B$8","v":0.91666666666666663},{"$f":"BU199/Responses!$B$8","v":0.88888888888888884},{"$f":"BV199/Responses!$B$8","v":0.88888888888888884},{"$f":"BW199/Responses!$B$8","v":0.88888888888888884},{"$f":"BX199/Responses!$B$8","v":0.91666666666666663},{"$f":"BY199/Responses!$B$8","v":0.88888888888888884},{"$f":"BZ199/Responses!$B$8","v":0.88888888888888884},{"$f":"CA199/Responses!$B$8","v":0.88888888888888884},{"$f":"CB199/Responses!$B$8","v":0.91666666666666663},{"$f":"CC199/Responses!$B$8","v":0.88888888888888884},{"$f":"CD199/Responses!$B$8","v":0.88888888888888884},{"$f":"CE199/Responses!$B$8","v":0.88888888888888884},{"$f":"CF199/Responses!$B$8","v":0.91666666666666663},{"$f":"CG199/Responses!$B$8","v":0.88888888888888884},{"$f":"CH199/Responses!$B$8","v":0.88888888888888884},{"$f":"CI199/Responses!$B$8","v":0.88888888888888884},{"$f":"CJ199/Responses!$B$8","v":0.91666666666666663},{"$f":"CK199/Responses!$B$8","v":0.88888888888888884},{"$f":"CL199/Responses!$B$8","v":0.88888888888888884},{"$f":"CM199/Responses!$B$8","v":0.88888888888888884},{"$f":"CN199/Responses!$B$8","v":0.91666666666666663},{"$f":"CO199/Responses!$B$8","v":0.63888888888888884},{"$f":"CP199/Responses!$B$8","v":0.66666666666666663},{"$f":"CQ199/Responses!$B$8","v":0.47222222222222221},{"$f":"CR199/Responses!$B$8","v":1},{"$f":"CS199/Responses!$B$8","v":1},{"$f":"CT199/Responses!$B$8","v":1},{"$f":"CU199/Responses!$B$8","v":1},{"$f":"CV199/Responses!$B$8","v":0.97222222222222221},{"$f":"CW199/Responses!$B$8","v":0.97222222222222221},{"$f":"CX199/Responses!$B$8","v":0.94444444444444442},{"$f":"CY199/Responses!$B$8","v":0.97222222222222221},{"$f":"CZ199/Responses!$B$8","v":0.97222222222222221},{"$f":"DA199/Responses!$B$8","v":0.97222222222222221},{"$f":"DB199/Responses!$B$8","v":0.94444444444444442},{"$f":"DC199/Responses!$B$8","v":0.97222222222222221},{"$f":"DD199/Responses!$B$8","v":0.94444444444444442},{"$f":"DE199/Responses!$B$8","v":0.97222222222222221},{"$f":"DF199/Responses!$B$8","v":0.97222222222222221},{"$f":"DG199/Responses!$B$8","v":0.97222222222222221},{"$f":"DH199/Responses!$B$8","v":0.94444444444444442},{"$f":"DI199/Responses!$B$8","v":0.97222222222222221},{"$f":"DJ199/Responses!$B$8","v":0.97222222222222221},{"$f":"DK199/Responses!$B$8","v":1},{"$f":"DL199/Responses!$B$8","v":1},{"$f":"DM199/Responses!$B$8","v":1},{"$f":"DN199/Responses!$B$8","v":0.97222222222222221},{"$f":"DO199/Responses!$B$8","v":1},{"$f":"DP199/Responses!$B$8","v":0.97222222222222221},{"$f":"DQ199/Responses!$B$8","v":1},{"$f":"DR199/Responses!$B$8","v":1},{"$f":"DS199/Responses!$B$8","v":1},{"$f":"DT199/Responses!$B$8","v":0.97222222222222221},{"$f":"DU199/Responses!$B$8","v":1},{"$f":"DV199/Responses!$B$8","v":1},{"$f":"DW199/Responses!$B$8","v":1},{"$f":"DX199/Responses!$B$8","v":1},{"$f":"DY199/Responses!$B$8","v":1},{"$f":"DZ199/Responses!$B$8","v":0.97222222222222221},{"$f":"EA199/Responses!$B$8","v":1},{"$f":"EB199/Responses!$B$8","v":0.97222222222222221},{"$f":"EC199/Responses!$B$8","v":1},{"$f":"ED199/Responses!$B$8","v":0.97222222222222221},{"$f":"EE199/Responses!$B$8","v":1},{"$f":"EF199/Responses!$B$8","v":1},{"$f":"EG199/Responses!$B$8","v":1},{"$f":"EH199/Responses!$B$8","v":0.97222222222222221},{"$f":"EI199/Responses!$B$8","v":1},{"$f":"EJ199/Responses!$B$8","v":0.97222222222222221},{"$f":"EK199/Responses!$B$8","v":0.97222222222222221},{"$f":"EL199/Responses!$B$8","v":1},{"$f":"EM199/Responses!$B$8","v":0.97222222222222221},{"$f":"EN199/Responses!$B$8","v":0.94444444444444442},{"$f":"EO199/Responses!$B$8","v":0.97222222222222221},{"$f":"EP199/Responses!$B$8","v":0.97222222222222221},{"$f":"EQ199/Responses!$B$8","v":1},{"$f":"ER199/Responses!$B$8","v":1},{"$f":"ES199/Responses!$B$8","v":0.97222222222222221},{"$f":"ET199/Responses!$B$8","v":0.97222222222222221},{"$f":"EU199/Responses!$B$8","v":0.97222222222222221},{"$f":"EV199/Responses!$B$8","v":0.94444444444444442},{"$f":"EW199/Responses!$B$8","v":1},{"$f":"EX199/Responses!$B$8","v":1},{"$f":"EY199/Responses!$B$8","v":0.94444444444444442},{"$f":"EZ199/Responses!$B$8","v":0.91666666666666663},{"$f":"FA199/Responses!$B$8","v":0.97222222222222221},{"$f":"FB199/Responses!$B$8","v":0.94444444444444442},{"$f":"FC199/Responses!$B$8","v":0.91666666666666663},{"$f":"FD199/Responses!$B$8","v":0.91666666666666663},{"$f":"FE199/Responses!$B$8","v":0.97222222222222221},{"$f":"FF199/Responses!$B$8","v":0.91666666666666663},{"$f":"FG199/Responses!$B$8","v":0.97222222222222221},{"$f":"FH199/Responses!$B$8","v":0.97222222222222221}]
["% responded: Very High HDI",{"$f":"B200/Responses!$B$9","v":1},{"$f":"C200/Responses!$B$9","v":1},{"$f":"D200/Responses!$B$9","v":1},{"$f":"E200/Responses!$B$9","v":1},{"$f":"F200/Responses!$B$9","v":1},{"$f":"G200/Responses!$B$9","v":1},{"$f":"H200/Responses!$B$9","v":0.97058823529411764},{"$f":"I200/Responses!$B$9","v":0.8529411764705882},{"$f":"J200/Responses!$B$9","v":0.97058823529411764},{"$f":"K200/Responses!$B$9","v":0.97058823529411764},{"$f":"L200/Responses!$B$9","v":1},{"$f":"M200/Responses!$B$9","v":0.88235294117647056},{"$f":"N200/Responses!$B$9","v":0.94117647058823528},{"$f":"O200/Responses!$B$9","v":0.97058823529411764},{"$f":"P200/Responses!$B$9","v":0.97058823529411764},{"$f":"Q200/Responses!$B$9","v":0.97058823529411764},{"$f":"R200/Responses!$B$9","v":0.8529411764705882},{"$f":"S200/Responses!$B$9","v":1},{"$f":"T200/Responses!$B$9","v":1},{"$f":"U200/Responses!$B$9","v":1},{"$f":"V200/Responses!$B$9","v":1},{"$f":"W200/Responses!$B$9","v":1},{"$f":"X200/Responses!$B$9","v":0.94117647058823528},{"$f":"Y200/Responses!$B$9","v":0.91176470588235292},{"$f":"Z200/Responses!$B$9","v":0.82352941176470584},{"$f":"AA200/Responses!$B$9","v":0.91176470588235292},{"$f":"AB200/Responses!$B$9","v":0.97058823529411764},{"$f":"AC200/Responses!$B$9","v":1},{"$f":"AD200/Responses!$B$9","v":1},{"$f":"AE200/Responses!$B$9","v":0.44117647058823528},{"$f":"AF200/Responses!$B$9","v":1},{"$f":"AG200/Responses!$B$9","v":1},{"$f":"AH200/Responses!$B$9","v":1},{"$f":"AI200/Responses!$B$9","v":1},{"$f":"AJ200/Responses!$B$9","v":1},{"$f":"AK200/Responses!$B$9","v":0.97058823529411764},{"$f":"AL200/Responses!$B$9","v":1},{"$f":"AM200/Responses!$B$9","v":1},{"$f":"AN200/Responses!$B$9","v":1},{"$f":"AO200/Responses!$B$9","v":0.94117647058823528},{"$f":"AP200/Responses!$B$9","v":0.94117647058823528},{"$f":"AQ200/Responses!$B$9","v":0.91176470588235292},{"$f":"AR200/Responses!$B$9","v":0.91176470588235292},{"$f":"AS200/Responses!$B$9","v":0.94117647058823528},{"$f":"AT200/Responses!$B$9","v":0.94117647058823528},{"$f":"AU200/Responses!$B$9","v":0.97058823529411764},{"$f":"AV200/Responses!$B$9","v":0.88235294117647056},{"$f":"AW200/Responses!$B$9","v":0.79411764705882348},{"$f":"AX200/Responses!$B$9","v":1},{"$f":"AY200/Responses!$B$9","v":1},{"$f":"AZ200/Responses!$B$9","v":0.97058823529411764},{"$f":"BA200/Responses!$B$9","v":0.97058823529411764},{"$f":"BB200/Responses!$B$9","v":0.97058823529411764},{"$f":"BC200/Responses!$B$9","v":0.97058823529411764},{"$f":"BD200/Responses!$B$9","v":0.97058823529411764},{"$f":"BE200/Responses!$B$9","v":0.97058823529411764},{"$f":"BF200/Responses!$B$9","v":0.97058823529411764},{"$f":"BG200/Responses!$B$9","v":0.97058823529411764},{"$f":"BH200/Responses!$B$9","v":0.52941176470588236},{"$f":"BI200/Responses!$B$9","v":0.70588235294117652},{"$f":"BJ200/Responses!$B$9","v":0.91176470588235292},{"$f":"BK200/Responses!$B$9","v":0.91176470588235292},{"$f":"BL200/Responses!$B$9","v":0.94117647058823528},{"$f":"BM200/Responses!$B$9","v":0.97058823529411764},{"$f":"BN200/Responses!$B$9","v":1},{"$f":"BO200/Responses!$B$9","v":0.91176470588235292},{"$f":"BP200/Responses!$B$9","v":0.91176470588235292},{"$f":"BQ200/Responses!$B$9","v":0.91176470588235292},{"$f":"BR200/Responses!$B$9","v":0.91176470588235292},{"$f":"BS200/Responses!$B$9","v":0.91176470588235292},{"$f":"BT200/Responses!$B$9","v":0.91176470588235292},{"$f":"BU200/Responses!$B$9","v":0.91176470588235292},{"$f":"BV200/Responses!$B$9","v":0.88235294117647056},{"$f":"BW200/Responses!$B$9","v":0.91176470588235292},{"$f":"BX200/Responses!$B$9","v":0.82352941176470584},{"$f":"BY200/Responses!$B$9","v":0.91176470588235292},{"$f":"BZ200/Responses!$B$9","v":0.88235294117647056},{"$f":"CA200/Responses!$B$9","v":0.91176470588235292},{"$f":"CB200/Responses!$B$9","v":0.82352941176470584},{"$f":"CC200/Responses!$B$9","v":0.91176470588235292},{"$f":"CD200/Responses!$B$9","v":0.88235294117647056},{"$f":"CE200/Responses!$B$9","v":0.91176470588235292},{"$f":"CF200/Responses!$B$9","v":0.82352941176470584},{"$f":"CG200/Responses!$B$9","v":0.91176470588235292},{"$f":"CH200/Responses!$B$9","v":0.88235294117647056},{"$f":"CI200/Responses!$B$9","v":0.91176470588235292},{"$f":"CJ200/Responses!$B$9","v":0.82352941176470584},{"$f":"CK200/Responses!$B$9","v":0.91176470588235292},{"$f":"CL200/Responses!$B$9","v":0.88235294117647056},{"$f":"CM200/Responses!$B$9","v":0.91176470588235292},{"$f":"CN200/Responses!$B$9","v":0.82352941176470584},{"$f":"CO200/Responses!$B$9","v":0.44117647058823528},{"$f":"CP200/Responses!$B$9","v":0.44117647058823528},{"$f":"CQ200/Responses!$B$9","v":0.26470588235294118},{"$f":"CR200/Responses!$B$9","v":1},{"$f":"CS200/Responses!$B$9","v":1},{"$f":"CT200/Responses!$B$9","v":1},{"$f":"CU200/Responses!$B$9","v":1},{"$f":"CV200/Responses!$B$9","v":0.97058823529411764},{"$f":"CW200/Responses!$B$9","v":1},{"$f":"CX200/Responses!$B$9","v":0.97058823529411764},{"$f":"CY200/Responses!$B$9","v":0.97058823529411764},{"$f":"CZ200/Responses!$B$9","v":0.97058823529411764},{"$f":"DA200/Responses!$B$9","v":0.97058823529411764},{"$f":"DB200/Responses!$B$9","v":0.97058823529411764},{"$f":"DC200/Responses!$B$9","v":0.94117647058823528},{"$f":"DD200/Responses!$B$9","v":0.94117647058823528},{"$f":"DE200/Responses!$B$9","v":1},{"$f":"DF200/Responses!$B$9","v":1},{"$f":"DG200/Responses!$B$9","v":0.97058823529411764},{"$f":"DH200/Responses!$B$9","v":0.97058823529411764},{"$f":"DI200/Responses!$B$9","v":0.97058823529411764},{"$f":"DJ200/Responses!$B$9","v":0.94117647058823528},{"$f":"DK200/Responses!$B$9","v":1},{"$f":"DL200/Responses!$B$9","v":0.97058823529411764},{"$f":"DM200/Responses!$B$9","v":1},{"$f":"DN200/Responses!$B$9","v":1},{"$f":"DO200/Responses!$B$9","v":1},{"$f":"DP200/Responses!$B$9","v":1},{"$f":"DQ200/Responses!$B$9","v":1},{"$f":"DR200/Responses!$B$9","v":0.94117647058823528},{"$f":"DS200/Responses!$B$9","v":0.97058823529411764},{"$f":"DT200/Responses!$B$9","v":0.94117647058823528},{"$f":"DU200/Responses!$B$9","v":0.97058823529411764},{"$f":"DV200/Responses!$B$9","v":0.97058823529411764},{"$f":"DW200/Responses!$B$9","v":1},{"$f":"DX200/Responses!$B$9","v":1},{"$f":"DY200/Responses!$B$9","v":1},{"$f":"DZ200/Responses!$B$9","v":1},{"$f":"EA200/Responses!$B$9","v":1},{"$f":"EB200/Responses!$B$9","v":0.97058823529411764},{"$f":"EC200/Responses!$B$9","v":1},{"$f":"ED200/Responses!$B$9","v":0.97058823529411764},{"$f":"EE200/Responses!$B$9","v":1},{"$f":"EF200/Responses!$B$9","v":0.97058823529411764},{"$f":"EG200/Responses!$B$9","v":0.97058823529411764},{"$f":"EH200/Responses!$B$9","v":0.94117647058823528},{"$f":"EI200/Responses!$B$9","v":1},{"$f":"EJ200/Responses!$B$9","v":0.97058823529411764},{"$f":"EK200/Responses!$B$9","v":0.97058823529411764},{"$f":"EL200/Responses!$B$9","v":0.97058823529411764},{"$f":"EM200/Responses!$B$9","v":1},{"$f":"EN200/Responses!$B$9","v":1},{"$f":"EO200/Responses!$B$9","v":1},{"$f":"EP200/Responses!$B$9","v":0.97058823529411764},{"$f":"EQ200/Responses!$B$9","v":1},{"$f":"ER200/Responses!$B$9","v":1},{"$f":"ES200/Responses!$B$9","v":0.97058823529411764},{"$f":"ET200/Responses!$B$9","v":0.94117647058823528},{"$f":"EU200/Responses!$B$9","v":1},{"$f":"EV200/Responses!$B$9","v":1},{"$f":"EW200/Responses!$B$9","v":1},{"$f":"EX200/Responses!$B$9","v":1},{"$f":"EY200/Responses!$B$9","v":0.94117647058823528},{"$f":"EZ200/Responses!$B$9","v":0.94117647058823528},{"$f":"FA200/Responses!$B$9","v":1},{"$f":"FB200/Responses!$B$9","v":0.97058823529411764},{"$f":"FC200/Responses!$B$9","v":0.94117647058823528},{"$f":"FD200/Responses!$B$9","v":0.91176470588235292},{"$f":"FE200/Responses!$B$9","v":1},{"$f":"FF200/Responses!$B$9","v":0.97058823529411764},{"$f":"FG200/Responses!$B$9","v":1},{"$f":"FH200/Responses!$B$9","v":0.94117647058823528}]
["% responded: Global",{"$f":"B201/Responses!$B$4","v":1},{"$f":"C201/Responses!$B$4","v":1},{"$f":"D201/Responses!$B$4","v":1},{"$f":"E201/Responses!$B$4","v":1},{"$f":"F201/Responses!$B$4","v":1},{"$f":"G201/Responses!$B$4","v":1},{"$f":"H201/Responses!$B$4","v":0.98496240601503759},{"$f":"I201/Responses!$B$4","v":0.88721804511278191},{"$f":"J201/Responses!$B$4","v":0.96992481203007519},{"$f":"K201/Responses!$B$4","v":0.95488721804511278},{"$f":"L201/Responses!$B$4","v":0.97744360902255634},{"$f":"M201/Responses!$B$4","v":0.87969924812030076},{"$f":"N201/Responses!$B$4","v":0.98496240601503759},{"$f":"O201/Responses!$B$4","v":0.97744360902255634},{"$f":"P201/Responses!$B$4","v":0.98496240601503759},{"$f":"Q201/Responses!$B$4","v":0.98496240601503759},{"$f":"R201/Responses!$B$4","v":0.88721804511278191},{"$f":"S201/Responses!$B$4","v":1},{"$f":"T201/Responses!$B$4","v":0.99248120300751874},{"$f":"U201/Responses!$B$4","v":1},{"$f":"V201/Responses!$B$4","v":0.99248120300751874},{"$f":"W201/Responses!$B$4","v":1},{"$f":"X201/Responses!$B$4","v":0.92481203007518797},{"$f":"Y201/Responses!$B$4","v":0.93233082706766912},{"$f":"Z201/Responses!$B$4","v":0.78195488721804507},{"$f":"AA201/Responses!$B$4","v":0.93984962406015038},{"$f":"AB201/Responses!$B$4","v":0.96992481203007519},{"$f":"AC201/Responses!$B$4","v":1},{"$f":"AD201/Responses!$B$4","v":0.99248120300751874},{"$f":"AE201/Responses!$B$4","v":0.75187969924812026},{"$f":"AF201/Responses!$B$4","v":1},{"$f":"AG201/Responses!$B$4","v":0.98496240601503759},{"$f":"AH201/Responses!$B$4","v":1},{"$f":"AI201/Responses!$B$4","v":1},{"$f":"AJ201/Responses!$B$4","v":0.99248120300751874},{"$f":"AK201/Responses!$B$4","v":0.95488721804511278},{"$f":"AL201/Responses!$B$4","v":0.99248120300751874},{"$f":"AM201/Responses!$B$4","v":0.98496240601503759},{"$f":"AN201/Responses!$B$4","v":0.99248120300751874},{"$f":"AO201/Responses!$B$4","v":0.90225563909774431},{"$f":"AP201/Responses!$B$4","v":0.94736842105263153},{"$f":"AQ201/Responses!$B$4","v":0.93984962406015038},{"$f":"AR201/Responses!$B$4","v":0.89473684210526316},{"$f":"AS201/Responses!$B$4","v":0.91729323308270672},{"$f":"AT201/Responses!$B$4","v":0.89473684210526316},{"$f":"AU201/Responses!$B$4","v":0.90977443609022557},{"$f":"AV201/Responses!$B$4","v":0.88721804511278191},{"$f":"AW201/Responses!$B$4","v":0.78947368421052633},{"$f":"AX201/Responses!$B$4","v":0.97744360902255634},{"$f":"AY201/Responses!$B$4","v":1},{"$f":"AZ201/Responses!$B$4","v":0.95488721804511278},{"$f":"BA201/Responses!$B$4","v":0.98496240601503759},{"$f":"BB201/Responses!$B$4","v":0.98496240601503759},{"$f":"BC201/Responses!$B$4","v":0.98496240601503759},{"$f":"BD201/Responses!$B$4","v":0.98496240601503759},{"$f":"BE201/Responses!$B$4","v":0.97744360902255634},{"$f":"BF201/Responses!$B$4","v":0.98496240601503759},{"$f":"BG201/Responses!$B$4","v":0.96992481203007519},{"$f":"BH201/Responses!$B$4","v":0.82706766917293228},{"$f":"BI201/Responses!$B$4","v":0.84962406015037595},{"$f":"BJ201/Responses!$B$4","v":0.94736842105263153},{"$f":"BK201/Responses!$B$4","v":0.93233082706766912},{"$f":"BL201/Responses!$B$4","v":0.93984962406015038},{"$f":"BM201/Responses!$B$4","v":0.94736842105263153},{"$f":"BN201/Responses!$B$4","v":0.96240601503759393},{"$f":"BO201/Responses!$B$4","v":0.92481203007518797},{"$f":"BP201/Responses!$B$4","v":0.92481203007518797},{"$f":"BQ201/Responses!$B$4","v":0.92481203007518797},{"$f":"BR201/Responses!$B$4","v":0.92481203007518797},{"$f":"BS201/Responses!$B$4","v":0.92481203007518797},{"$f":"BT201/Responses!$B$4","v":0.92481203007518797},{"$f":"BU201/Responses!$B$4","v":0.91729323308270672},{"$f":"BV201/Responses!$B$4","v":0.90977443609022557},{"$f":"BW201/Responses!$B$4","v":0.91729323308270672},{"$f":"BX201/Responses!$B$4","v":0.90225563909774431},{"$f":"BY201/Responses!$B$4","v":0.91729323308270672},{"$f":"BZ201/Responses!$B$4","v":0.90977443609022557},{"$f":"CA201/Responses!$B$4","v":0.91729323308270672},{"$f":"CB201/Responses!$B$4","v":0.90225563909774431},{"$f":"CC201/Responses!$B$4","v":0.91729323308270672},{"$f":"CD201/Responses!$B$4","v":0.90977443609022557},{"$f":"CE201/Responses!$B$4","v":0.91729323308270672},{"$f":"CF201/Responses!$B$4","v":0.90225563909774431},{"$f":"CG201/Responses!$B$4","v":0.91729323308270672},{"$f":"CH201/Responses!$B$4","v":0.90977443609022557},{"$f":"CI201/Responses!$B$4","v":0.91729323308270672},{"$f":"CJ201/Responses!$B$4","v":0.90225563909774431},{"$f":"CK201/Responses!$B$4","v":0.91729323308270672},{"$f":"CL201/Responses!$B$4","v":0.90977443609022557},{"$f":"CM201/Responses!$B$4","v":0.91729323308270672},{"$f":"CN201/Responses!$B$4","v":0.90225563909774431},{"$f":"CO201/Responses!$B$4","v":0.59398496240601506},{"$f":"CP201/Responses!$B$4","v":0.63909774436090228},{"$f":"CQ201/Responses!$B$4","v":0.44360902255639095},{"$f":"CR201/Responses!$B$4","v":1},{"$f":"CS201/Responses!$B$4","v":0.97744360902255634},{"$f":"CT201/Responses!$B$4","v":0.98496240601503759},{"$f":"CU201/Responses!$B$4","v":0.97744360902255634},{"$f":"CV201/Responses!$B$4","v":0.96240601503759393},{"$f":"CW201/Responses!$B$4","v":0.96992481203007519},{"$f":"CX201/Responses!$B$4","v":0.96240601503759393},{"$f":"CY201/Responses!$B$4","v":0.96992481203007519},{"$f":"CZ201/Responses!$B$4","v":0.97744360902255634},{"$f":"DA201/Responses!$B$4","v":0.97744360902255634},{"$f":"DB201/Responses!$B$4","v":0.96992481203007519},{"$f":"DC201/Responses!$B$4","v":0.96992481203007519},{"$f":"DD201/Responses!$B$4","v":0.96240601503759393},{"$f":"DE201/Responses!$B$4","v":0.97744360902255634},{"$f":"DF201/Responses!$B$4","v":0.98496240601503759},{"$f":"DG201/Responses!$B$4","v":0.97744360902255634},{"$f":"DH201/Responses!$B$4","v":0.96992481203007519},{"$f":"DI201/Responses!$B$4","v":0.97744360902255634},{"$f":"DJ201/Responses!$B$4","v":0.96992481203007519},{"$f":"DK201/Responses!$B$4","v":0.99248120300751874},{"$f":"DL201/Responses!$B$4","v":0.97744360902255634},{"$f":"DM201/Responses!$B$4","v":0.99248120300751874},{"$f":"DN201/Responses!$B$4","v":0.98496240601503759},{"$f":"DO201/Responses!$B$4","v":0.99248120300751874},{"$f":"DP201/Responses!$B$4","v":0.98496240601503759},{"$f":"DQ201/Responses!$B$4","v":0.99248120300751874},{"$f":"DR201/Responses!$B$4","v":0.97744360902255634},{"$f":"DS201/Responses!$B$4","v":0.96992481203007519},{"$f":"DT201/Responses!$B$4","v":0.94736842105263153},{"$f":"DU201/Responses!$B$4","v":0.98496240601503759},{"$f":"DV201/Responses!$B$4","v":0.98496240601503759},{"$f":"DW201/Responses!$B$4","v":0.99248120300751874},{"$f":"DX201/Responses!$B$4","v":0.99248120300751874},{"$f":"DY201/Responses!$B$4","v":0.99248120300751874},{"$f":"DZ201/Responses!$B$4","v":0.98496240601503759},{"$f":"EA201/Responses!$B$4","v":0.99248120300751874},{"$f":"EB201/Responses!$B$4","v":0.97744360902255634},{"$f":"EC201/Responses!$B$4","v":0.98496240601503759},{"$f":"ED201/Responses!$B$4","v":0.96992481203007519},{"$f":"EE201/Responses!$B$4","v":0.99248120300751874},{"$f":"EF201/Responses!$B$4","v":0.97744360902255634},{"$f":"EG201/Responses!$B$4","v":0.96992481203007519},{"$f":"EH201/Responses!$B$4","v":0.96240601503759393},{"$f":"EI201/Responses!$B$4","v":0.98496240601503759},{"$f":"EJ201/Responses!$B$4","v":0.96992481203007519},{"$f":"EK201/Responses!$B$4","v":0.97744360902255634},{"$f":"EL201/Responses!$B$4","v":0.98496240601503759},{"$f":"EM201/Responses!$B$4","v":0.97744360902255634},{"$f":"EN201/Responses!$B$4","v":0.96992481203007519},{"$f":"EO201/Responses!$B$4","v":0.96992481203007519},{"$f":"EP201/Responses!$B$4","v":0.97744360902255634},{"$f":"EQ201/Responses!$B$4","v":0.98496240601503759},{"$f":"ER201/Responses!$B$4","v":0.97744360902255634},{"$f":"ES201/Responses!$B$4","v":0.96992481203007519},{"$f":"ET201/Responses!$B$4","v":0.96240601503759393},{"$f":"EU201/Responses!$B$4","v":0.97744360902255634},{"$f":"EV201/Responses!$B$4","v":0.97744360902255634},{"$f":"EW201/Responses!$B$4","v":0.98496240601503759},{"$f":"EX201/Responses!$B$4","v":0.98496240601503759},{"$f":"EY201/Responses!$B$4","v":0.94736842105263153},{"$f":"EZ201/Responses!$B$4","v":0.93984962406015038},{"$f":"FA201/Responses!$B$4","v":0.98496240601503759},{"$f":"FB201/Responses!$B$4","v":0.96992481203007519},{"$f":"FC201/Responses!$B$4","v":0.93984962406015038},{"$f":"FD201/Responses!$B$4","v":0.92481203007518797},{"$f":"FE201/Responses!$B$4","v":0.97744360902255634},{"$f":"FF201/Responses!$B$4","v":0.95488721804511278},{"$f":"FG201/Responses!$B$4","v":0.96240601503759393},{"$f":"FH201/Responses!$B$4","v":0.96240601503759393}]
[]
["Total responses: LAC",{"$f":"COUNTIFS(B$3:B$194,\">0\",ID_REG,1)","v":22},22,22,22,22,22,22,18,21,20,21,21,22,22,22,22,18,22,21,22,22,22,20,19,12,20,20,22,22,17,22,22,{"$f":"COUNTIFS(AH$3:AH$194,\">0\",ID_REG,1)","v":22},22,21,21,22,22,22,20,21,22,20,22,22,21,21,12,22,22,21,22,22,22,22,22,22,21,22,18,20,21,21,21,21,21,20,20,20,20,{"$f":"COUNTIFS(BT$3:BT$194,\">0\",ID_REG,1)","v":20},20,20,20,20,20,20,20,20,20,20,20,20,20,20,20,20,20,20,20,20,17,18,15,22,22,22,21,22,22,21,22,{"$f":"COUNTIFS(CZ$3:CZ$194,\">0\",ID_REG,1)","v":22},22,22,22,22,22,22,22,22,22,22,22,22,22,22,22,22,22,21,22,22,{"$f":"COUNTIFS(DU$3:DU$194,\">0\",ID_REG,1)","v":22},22,22,22,22,22,22,21,22,22,22,22,22,22,22,22,22,22,{"$f":"COUNTIFS(EM$3:EM$194,\">0\",ID_REG,1)","v":22},21,22,22,{"$f":"COUNTIFS(EQ$3:EQ$194,\">0\",ID_REG,1)","v":22},22,22,22,22,21,{"$f":"COUNTIFS(EW$3:EW$194,\">0\",ID_REG,1)","v":22},{"$f":"COUNTIFS(EX$3:EX$194,\">0\",ID_REG,1)","v":22},{"$f":"COUNTIFS(EY$3:EY$194,\">0\",ID_REG,1)","v":21},{"$f":"COUNTIFS(EZ$3:EZ$194,\">0\",ID_REG,1)","v":20},22,21,20,21,22,21,22,{"$f":"COUNTIFS(FH$3:FH$194,\">0\",ID_REG,1)","v":22}]
["Total responses: ASP",{"$f":"COUNTIFS(B$3:B$194,\">0\",ID_REG,2)","v":28},28,28,28,28,28,28,22,27,27,27,27,28,28,28,28,22,28,28,28,28,28,27,26,20,26,28,28,28,25,28,28,{"$f":"COUNTIFS(AH$3:AH$194,\">0\",ID_REG,2)","v":28},28,28,27,28,28,28,27,28,27,27,27,27,27,27,23,28,28,27,28,28,28,28,28,28,28,24,26,25,25,26,25,26,26,27,27,27,27,{"$f":"COUNTIFS(BT$3:BT$194,\">0\",ID_REG,2)","v":27},27,27,27,27,27,27,27,27,27,27,27,27,27,27,27,27,27,27,27,27,18,22,15,28,28,28,28,27,28,28,28,{"$f":"COUNTIFS(CZ$3:CZ$194,\">0\",ID_REG,2)","v":28},28,28,28,28,28,28,28,27,28,28,28,28,28,28,28,28,28,28,28,28,{"$f":"COUNTIFS(DU$3:DU$194,\">0\",ID_REG,2)","v":28},28,28,28,28,28,28,28,28,28,28,28,28,27,28,28,28,28,{"$f":"COUNTIFS(EM$3:EM$194,\">0\",ID_REG,2)","v":27},27,27,28,{"$f":"COUNTIFS(EQ$3:EQ$194,\">0\",ID_REG,2)","v":27},26,28,27,27,28,{"$f":"COUNTIFS(EW$3:EW$194,\">0\",ID_REG,2)","v":27},{"$f":"COUNTIFS(EX$3:EX$194,\">0\",ID_REG,2)","v":27},{"$f":"COUNTIFS(EY$3:EY$194,\">0\",ID_REG,2)","v":27},{"$f":"COUNTIFS(EZ$3:EZ$194,\">0\",ID_REG,2)","v":27},28,28,27,27,27,27,27,{"$f":"COUNTIFS(FH$3:FH$194,\">0\",ID_REG,2)","v":27}]
["Total responses: AFR",{"$f":"COUNTIFS(B$3:B$194,\">0\",ID_REG,3)","v":40},40,40,40,40,40,40,38,39,37,39,32,40,39,40,40,38,40,40,40,39,40,36,38,33,38,39,40,39,36,40,38,{"$f":"COUNTIFS(AH$3:AH$194,\">0\",ID_REG,3)","v":40},40,40,39,39,38,39,34,38,37,34,34,30,33,33,34,39,40,39,39,39,39,39,38,39,38,37,35,40,39,38,39,38,37,37,37,37,37,{"$f":"COUNTIFS(BT$3:BT$194,\">0\",ID_REG,3)","v":37},37,37,37,37,37,37,37,37,37,37,37,37,37,37,37,37,37,37,37,37,21,30,18,40,37,38,38,37,36,37,37,{"$f":"COUNTIFS(CZ$3:CZ$194,\">0\",ID_REG,3)","v":38},38,38,38,38,38,39,39,39,39,39,39,38,39,39,39,39,39,39,37,36,{"$f":"COUNTIFS(DU$3:DU$194,\">0\",ID_REG,3)","v":39},39,39,39,39,39,39,39,38,38,39,38,37,39,38,38,39,39,{"$f":"COUNTIFS(EM$3:EM$194,\">0\",ID_REG,3)","v":39},39,38,39,{"$f":"COUNTIFS(EQ$3:EQ$194,\">0\",ID_REG,3)","v":39},39,38,39,39,39,{"$f":"COUNTIFS(EW$3:EW$194,\">0\",ID_REG,3)","v":39},{"$f":"COUNTIFS(EX$3:EX$194,\">0\",ID_REG,3)","v":39},{"$f":"COUNTIFS(EY$3:EY$194,\">0\",ID_REG,3)","v":37},{"$f":"COUNTIFS(EZ$3:EZ$194,\">0\",ID_REG,3)","v":38},39,39,37,36,39,38,37,{"$f":"COUNTIFS(FH$3:FH$194,\">0\",ID_REG,3)","v":39}]
["Total responses: EES",{"$f":"COUNTIFS(B$3:B$194,\">0\",ID_REG,4)","v":19},19,19,19,19,19,18,19,19,19,19,17,19,18,18,18,19,19,19,19,19,19,17,19,18,18,19,19,19,15,19,19,{"$f":"COUNTIFS(AH$3:AH$194,\">0\",ID_REG,4)","v":19},19,19,17,19,19,19,15,17,18,17,17,18,17,17,17,17,19,17,19,19,19,19,19,19,19,15,16,18,17,18,18,19,17,18,18,18,18,{"$f":"COUNTIFS(BT$3:BT$194,\">0\",ID_REG,4)","v":18},17,17,17,17,17,17,17,17,17,17,17,17,17,17,17,17,17,17,17,17,14,6,5,19,19,19,19,19,19,19,19,{"$f":"COUNTIFS(CZ$3:CZ$194,\">0\",ID_REG,4)","v":19},19,18,18,17,18,18,18,18,18,18,19,19,19,18,19,18,19,18,19,17,{"$f":"COUNTIFS(DU$3:DU$194,\">0\",ID_REG,4)","v":19},19,19,19,19,18,19,19,19,18,19,19,19,18,19,17,18,19,{"$f":"COUNTIFS(EM$3:EM$194,\">0\",ID_REG,4)","v":18},18,18,18,{"$f":"COUNTIFS(EQ$3:EQ$194,\">0\",ID_REG,4)","v":19},19,18,18,18,18,{"$f":"COUNTIFS(EW$3:EW$194,\">0\",ID_REG,4)","v":19},{"$f":"COUNTIFS(EX$3:EX$194,\">0\",ID_REG,4)","v":19},{"$f":"COUNTIFS(EY$3:EY$194,\">0\",ID_REG,4)","v":19},{"$f":"COUNTIFS(EZ$3:EZ$194,\">0\",ID_REG,4)","v":18},18,17,19,17,18,17,18,{"$f":"COUNTIFS(FH$3:FH$194,\">0\",ID_REG,4)","v":18}]
["Total responses: WEO",{"$f":"COUNTIFS(B$3:B$194,\">0\",ID_REG,5)","v":24},24,24,24,24,24,23,21,23,24,24,20,22,23,23,23,21,24,24,24,24,24,23,22,21,23,23,24,24,7,24,24,{"$f":"COUNTIFS(AH$3:AH$194,\">0\",ID_REG,5)","v":24},24,24,23,24,24,24,24,22,21,21,22,22,23,20,19,24,24,23,23,23,23,23,23,23,23,12,18,23,22,22,23,24,22,21,21,21,21,{"$f":"COUNTIFS(BT$3:BT$194,\">0\",ID_REG,5)","v":21},21,20,21,19,21,20,21,19,21,20,21,19,21,20,21,19,21,20,21,19,9,9,6,24,24,24,24,23,24,23,23,{"$f":"COUNTIFS(CZ$3:CZ$194,\">0\",ID_REG,5)","v":23},23,23,23,23,24,24,23,23,23,22,24,23,24,24,24,24,24,24,23,23,{"$f":"COUNTIFS(DU$3:DU$194,\">0\",ID_REG,5)","v":23},23,24,24,24,24,24,23,24,23,24,23,23,22,24,24,23,23,{"$f":"COUNTIFS(EM$3:EM$194,\">0\",ID_REG,5)","v":24},24,24,23,{"$f":"COUNTIFS(EQ$3:EQ$194,\">0\",ID_REG,5)","v":24},24,23,22,24,24,{"$f":"COUNTIFS(EW$3:EW$194,\">0\",ID_REG,5)","v":24},{"$f":"COUNTIFS(EX$3:EX$194,\">0\",ID_REG,5)","v":24},{"$f":"COUNTIFS(EY$3:EY$194,\">0\",ID_REG,5)","v":22},{"$f":"COUNTIFS(EZ$3:EZ$194,\">0\",ID_REG,5)","v":22},24,24,22,22,24,24,24,{"$f":"COUNTIFS(FH$3:FH$194,\">0\",ID_REG,5)","v":22},null,null,null,null,null,null,null,null,null,null,null,null,null,null,null,null,null,null,null,null,null,null,null,null,null,null,null,null,null,null,null,null,"Total Check",{"$f":"COUNTIF(GP29:GP202,\">0\")","v":0},null,null,null,null,null,null,null,null,null,null,null,null,null,null,null,null,null,null,null,null,"Total No. check",{"$f":"SUM(HL30:HL203)","v":0}]
[]
["% responded: LAC",{"$f":"B209/Responses!$B$12","v":1},{"$f":"C209/Responses!$B$12","v":1},{"$f":"D209/Responses!$B$12","v":1},{"$f":"E209/Responses!$B$12","v":1},{"$f":"F209/Responses!$B$12","v":1},{"$f":"G209/Responses!$B$12","v":1},{"$f":"H209/Responses!$B$12","v":1},{"$f":"I209/Responses!$B$12","v":0.81818181818181823},{"$f":"J209/Responses!$B$12","v":0.95454545454545459},{"$f":"K209/Responses!$B$12","v":0.90909090909090906},{"$f":"L209/Responses!$B$12","v":0.95454545454545459},{"$f":"M209/Responses!$B$12","v":0.95454545454545459},{"$f":"N209/Responses!$B$12","v":1},{"$f":"O209/Responses!$B$12","v":1},{"$f":"P209/Responses!$B$12","v":1},{"$f":"Q209/Responses!$B$12","v":1},{"$f":"R209/Responses!$B$12","v":0.81818181818181823},{"$f":"S209/Responses!$B$12","v":1},{"$f":"T209/Responses!$B$12","v":0.95454545454545459},{"$f":"U209/Responses!$B$12","v":1},{"$f":"V209/Responses!$B$12","v":1},{"$f":"W209/Responses!$B$12","v":1},{"$f":"X209/Responses!$B$12","v":0.90909090909090906},{"$f":"Y209/Responses!$B$12","v":0.86363636363636365},{"$f":"Z209/Responses!$B$12","v":0.54545454545454541},{"$f":"AA209/Responses!$B$12","v":0.90909090909090906},{"$f":"AB209/Responses!$B$12","v":0.90909090909090906},{"$f":"AC209/Responses!$B$12","v":1},{"$f":"AD209/Responses!$B$12","v":1},{"$f":"AE209/Responses!$B$12","v":0.77272727272727271},{"$f":"AF209/Responses!$B$12","v":1},{"$f":"AG209/Responses!$B$12","v":1},{"$f":"AH209/Responses!$B$12","v":1},{"$f":"AI209/Responses!$B$12","v":1},{"$f":"AJ209/Responses!$B$12","v":0.95454545454545459},{"$f":"AK209/Responses!$B$12","v":0.95454545454545459},{"$f":"AL209/Responses!$B$12","v":1},{"$f":"AM209/Responses!$B$12","v":1},{"$f":"AN209/Responses!$B$12","v":1},{"$f":"AO209/Responses!$B$12","v":0.90909090909090906},{"$f":"AP209/Responses!$B$12","v":0.95454545454545459},{"$f":"AQ209/Responses!$B$12","v":1},{"$f":"AR209/Responses!$B$12","v":0.90909090909090906},{"$f":"AS209/Responses!$B$12","v":1},{"$f":"AT209/Responses!$B$12","v":1},{"$f":"AU209/Responses!$B$12","v":0.95454545454545459},{"$f":"AV209/Responses!$B$12","v":0.95454545454545459},{"$f":"AW209/Responses!$B$12","v":0.54545454545454541},{"$f":"AX209/Responses!$B$12","v":1},{"$f":"AY209/Responses!$B$12","v":1},{"$f":"AZ209/Responses!$B$12","v":0.95454545454545459},{"$f":"BA209/Responses!$B$12","v":1},{"$f":"BB209/Responses!$B$12","v":1},{"$f":"BC209/Responses!$B$12","v":1},{"$f":"BD209/Responses!$B$12","v":1},{"$f":"BE209/Responses!$B$12","v":1},{"$f":"BF209/Responses!$B$12","v":1},{"$f":"BG209/Responses!$B$12","v":0.95454545454545459},{"$f":"BH209/Responses!$B$12","v":1},{"$f":"BI209/Responses!$B$12","v":0.81818181818181823},{"$f":"BJ209/Responses!$B$12","v":0.90909090909090906},{"$f":"BK209/Responses!$B$12","v":0.95454545454545459},{"$f":"BL209/Responses!$B$12","v":0.95454545454545459},{"$f":"BM209/Responses!$B$12","v":0.95454545454545459},{"$f":"BN209/Responses!$B$12","v":0.95454545454545459},{"$f":"BO209/Responses!$B$12","v":0.95454545454545459},{"$f":"BP209/Responses!$B$12","v":0.90909090909090906},{"$f":"BQ209/Responses!$B$12","v":0.90909090909090906},{"$f":"BR209/Responses!$B$12","v":0.90909090909090906},{"$f":"BS209/Responses!$B$12","v":0.90909090909090906},{"$f":"BT209/Responses!$B$12","v":0.90909090909090906},{"$f":"BU209/Responses!$B$12","v":0.90909090909090906},{"$f":"BV209/Responses!$B$12","v":0.90909090909090906},{"$f":"BW209/Responses!$B$12","v":0.90909090909090906},{"$f":"BX209/Responses!$B$12","v":0.90909090909090906},{"$f":"BY209/Responses!$B$12","v":0.90909090909090906},{"$f":"BZ209/Responses!$B$12","v":0.90909090909090906},{"$f":"CA209/Responses!$B$12","v":0.90909090909090906},{"$f":"CB209/Responses!$B$12","v":0.90909090909090906},{"$f":"CC209/Responses!$B$12","v":0.90909090909090906},{"$f":"CD209/Responses!$B$12","v":0.90909090909090906},{"$f":"CE209/Responses!$B$12","v":0.90909090909090906},{"$f":"CF209/Responses!$B$12","v":0.90909090909090906},{"$f":"CG209/Responses!$B$12","v":0.90909090909090906},{"$f":"CH209/Responses!$B$12","v":0.90909090909090906},{"$f":"CI209/Responses!$B$12","v":0.90909090909090906},{"$f":"CJ209/Responses!$B$12","v":0.90909090909090906},{"$f":"CK209/Responses!$B$12","v":0.90909090909090906},{"$f":"CL209/Responses!$B$12","v":0.90909090909090906},{"$f":"CM209/Responses!$B$12","v":0.90909090909090906},{"$f":"CN209/Responses!$B$12","v":0.90909090909090906},{"$f":"CO209/Responses!$B$12","v":0.77272727272727271},{"$f":"CP209/Responses!$B$12","v":0.81818181818181823},{"$f":"CQ209/Responses!$B$12","v":0.68181818181818177},{"$f":"CR209/Responses!$B$12","v":1},{"$f":"CS209/Responses!$B$12","v":1},{"$f":"CT209/Responses!$B$12","v":1},{"$f":"CU209/Responses!$B$12","v":0.95454545454545459},{"$f":"CV209/Responses!$B$12","v":1},{"$f":"CW209/Responses!$B$12","v":1},{"$f":"CX209/Responses!$B$12","v":0.95454545454545459},{"$f":"CY209/Responses!$B$12","v":1},{"$f":"CZ209/Responses!$B$12","v":1},{"$f":"DA209/Responses!$B$12","v":1},{"$f":"DB209/Responses!$B$12","v":1},{"$f":"DC209/Responses!$B$12","v":1},{"$f":"DD209/Responses!$B$12","v":1},{"$f":"DE209/Responses!$B$12","v":1},{"$f":"DF209/Responses!$B$12","v":1},{"$f":"DG209/Responses!$B$12","v":1},{"$f":"DH209/Responses!$B$12","v":1},{"$f":"DI209/Responses!$B$12","v":1},{"$f":"DJ209/Responses!$B$12","v":1},{"$f":"DK209/Responses!$B$12","v":1},{"$f":"DL209/Responses!$B$12","v":1},{"$f":"DM209/Responses!$B$12","v":1},{"$f":"DN209/Responses!$B$12","v":1},{"$f":"DO209/Responses!$B$12","v":1},{"$f":"DP209/Responses!$B$12","v":1},{"$f":"DQ209/Responses!$B$12","v":1},{"$f":"DR209/Responses!$B$12","v":0.95454545454545459},{"$f":"DS209/Responses!$B$12","v":1},{"$f":"DT209/Responses!$B$12","v":1},{"$f":"DU209/Responses!$B$12","v":1},{"$f":"DV209/Responses!$B$12","v":1},{"$f":"DW209/Responses!$B$12","v":1},{"$f":"DX209/Responses!$B$12","v":1},{"$f":"DY209/Responses!$B$12","v":1},{"$f":"DZ209/Responses!$B$12","v":1},{"$f":"EA209/Responses!$B$12","v":1},{"$f":"EB209/Responses!$B$12","v":0.95454545454545459},{"$f":"EC209/Responses!$B$12","v":1},{"$f":"ED209/Responses!$B$12","v":1},{"$f":"EE209/Responses!$B$12","v":1},{"$f":"EF209/Responses!$B$12","v":1},{"$f":"EG209/Responses!$B$12","v":1},{"$f":"EH209/Responses!$B$12","v":1},{"$f":"EI209/Responses!$B$12","v":1},{"$f":"EJ209/Responses!$B$12","v":1},{"$f":"EK209/Responses!$B$12","v":1},{"$f":"EL209/Responses!$B$12","v":1},{"$f":"EM209/Responses!$B$12","v":1},{"$f":"EN209/Responses!$B$12","v":0.95454545454545459},{"$f":"EO209/Responses!$B$12","v":1},{"$f":"EP209/Responses!$B$12","v":1},{"$f":"EQ209/Responses!$B$12","v":1},{"$f":"ER209/Responses!$B$12","v":1},{"$f":"ES209/Responses!$B$12","v":1},{"$f":"ET209/Responses!$B$12","v":1},{"$f":"EU209/Responses!$B$12","v":1},{"$f":"EV209/Responses!$B$12","v":0.95454545454545459},{"$f":"EW209/Responses!$B$12","v":1},{"$f":"EX209/Responses!$B$12","v":1},{"$f":"EY209/Responses!$B$12","v":0.95454545454545459},{"$f":"EZ209/Responses!$B$12","v":0.90909090909090906},{"$f":"FA209/Responses!$B$12","v":1},{"$f":"FB209/Responses!$B$12","v":0.95454545454545459},{"$f":"FC209/Responses!$B$12","v":0.90909090909090906},{"$f":"FD209/Responses!$B$12","v":0.95454545454545459},{"$f":"FE209/Responses!$B$12","v":1},{"$f":"FF209/Responses!$B$12","v":0.95454545454545459},{"$f":"FG209/Responses!$B$12","v":1},{"$f":"FH209/Responses!$B$12","v":1}]
["% responded: ASP",{"$f":"B210/Responses!$B$13","v":1},{"$f":"C210/Responses!$B$13","v":1},{"$f":"D210/Responses!$B$13","v":1},{"$f":"E210/Responses!$B$13","v":1},{"$f":"F210/Responses!$B$13","v":1},{"$f":"G210/Responses!$B$13","v":1},{"$f":"H210/Responses!$B$13","v":1},{"$f":"I210/Responses!$B$13","v":0.7857142857142857},{"$f":"J210/Responses!$B$13","v":0.9642857142857143},{"$f":"K210/Responses!$B$13","v":0.9642857142857143},{"$f":"L210/Responses!$B$13","v":0.9642857142857143},{"$f":"M210/Responses!$B$13","v":0.9642857142857143},{"$f":"N210/Responses!$B$13","v":1},{"$f":"O210/Responses!$B$13","v":1},{"$f":"P210/Responses!$B$13","v":1},{"$f":"Q210/Responses!$B$13","v":1},{"$f":"R210/Responses!$B$13","v":0.7857142857142857},{"$f":"S210/Responses!$B$13","v":1},{"$f":"T210/Responses!$B$13","v":1},{"$f":"U210/Responses!$B$13","v":1},{"$f":"V210/Responses!$B$13","v":1},{"$f":"W210/Responses!$B$13","v":1},{"$f":"X210/Responses!$B$13","v":0.9642857142857143},{"$f":"Y210/Responses!$B$13","v":0.9285714285714286},{"$f":"Z210/Responses!$B$13","v":0.7142857142857143},{"$f":"AA210/Responses!$B$13","v":0.9285714285714286},{"$f":"AB210/Responses!$B$13","v":1},{"$f":"AC210/Responses!$B$13","v":1},{"$f":"AD210/Responses!$B$13","v":1},{"$f":"AE210/Responses!$B$13","v":0.8928571428571429},{"$f":"AF210/Responses!$B$13","v":1},{"$f":"AG210/Responses!$B$13","v":1},{"$f":"AH210/Responses!$B$13","v":1},{"$f":"AI210/Responses!$B$13","v":1},{"$f":"AJ210/Responses!$B$13","v":1},{"$f":"AK210/Responses!$B$13","v":0.9642857142857143},{"$f":"AL210/Responses!$B$13","v":1},{"$f":"AM210/Responses!$B$13","v":1},{"$f":"AN210/Responses!$B$13","v":1},{"$f":"AO210/Responses!$B$13","v":0.9642857142857143},{"$f":"AP210/Responses!$B$13","v":1},{"$f":"AQ210/Responses!$B$13","v":0.9642857142857143},{"$f":"AR210/Responses!$B$13","v":0.9642857142857143},{"$f":"AS210/Responses!$B$13","v":0.9642857142857143},{"$f":"AT210/Responses!$B$13","v":0.9642857142857143},{"$f":"AU210/Responses!$B$13","v":0.9642857142857143},{"$f":"AV210/Responses!$B$13","v":0.9642857142857143},{"$f":"AW210/Responses!$B$13","v":0.8214285714285714},{"$f":"AX210/Responses!$B$13","v":1},{"$f":"AY210/Responses!$B$13","v":1},{"$f":"AZ210/Responses!$B$13","v":0.9642857142857143},{"$f":"BA210/Responses!$B$13","v":1},{"$f":"BB210/Responses!$B$13","v":1},{"$f":"BC210/Responses!$B$13","v":1},{"$f":"BD210/Responses!$B$13","v":1},{"$f":"BE210/Responses!$B$13","v":1},{"$f":"BF210/Responses!$B$13","v":1},{"$f":"BG210/Responses!$B$13","v":1},{"$f":"BH210/Responses!$B$13","v":0.8571428571428571},{"$f":"BI210/Responses!$B$13","v":0.9285714285714286},{"$f":"BJ210/Responses!$B$13","v":0.8928571428571429},{"$f":"BK210/Responses!$B$13","v":0.8928571428571429},{"$f":"BL210/Responses!$B$13","v":0.9285714285714286},{"$f":"BM210/Responses!$B$13","v":0.8928571428571429},{"$f":"BN210/Responses!$B$13","v":0.9285714285714286},{"$f":"BO210/Responses!$B$13","v":0.9285714285714286},{"$f":"BP210/Responses!$B$13","v":0.9642857142857143},{"$f":"BQ210/Responses!$B$13","v":0.9642857142857143},{"$f":"BR210/Responses!$B$13","v":0.9642857142857143},{"$f":"BS210/Responses!$B$13","v":0.9642857142857143},{"$f":"BT210/Responses!$B$13","v":0.9642857142857143},{"$f":"BU210/Responses!$B$13","v":0.9642857142857143},{"$f":"BV210/Responses!$B$13","v":0.9642857142857143},{"$f":"BW210/Responses!$B$13","v":0.9642857142857143},{"$f":"BX210/Responses!$B$13","v":0.9642857142857143},{"$f":"BY210/Responses!$B$13","v":0.9642857142857143},{"$f":"BZ210/Responses!$B$13","v":0.9642857142857143},{"$f":"CA210/Responses!$B$13","v":0.9642857142857143},{"$f":"CB210/Responses!$B$13","v":0.9642857142857143},{"$f":"CC210/Responses!$B$13","v":0.9642857142857143},{"$f":"CD210/Responses!$B$13","v":0.9642857142857143},{"$f":"CE210/Responses!$B$13","v":0.9642857142857143},{"$f":"CF210/Responses!$B$13","v":0.9642857142857143},{"$f":"CG210/Responses!$B$13","v":0.9642857142857143},{"$f":"CH210/Responses!$B$13","v":0.9642857142857143},{"$f":"CI210/Responses!$B$13","v":0.9642857142857143},{"$f":"CJ210/Responses!$B$13","v":0.9642857142857143},{"$f":"CK210/Responses!$B$13","v":0.9642857142857143},{"$f":"CL210/Responses!$B$13","v":0.9642857142857143},{"$f":"CM210/Responses!$B$13","v":0.9642857142857143},{"$f":"CN210/Responses!$B$13","v":0.9642857142857143},{"$f":"CO210/Responses!$B$13","v":0.6428571428571429},{"$f":"CP210/Responses!$B$13","v":0.7857142857142857},{"$f":"CQ210/Responses!$B$13","v":0.5357142857142857},{"$f":"CR210/Responses!$B$13","v":1},{"$f":"CS210/Responses!$B$13","v":1},{"$f":"CT210/Responses!$B$13","v":1},{"$f":"CU210/Responses!$B$13","v":1},{"$f":"CV210/Responses!$B$13","v":0.9642857142857143},{"$f":"CW210/Responses!$B$13","v":1},{"$f":"CX210/Responses!$B$13","v":1},{"$f":"CY210/Responses!$B$13","v":1},{"$f":"CZ210/Responses!$B$13","v":1},{"$f":"DA210/Responses!$B$13","v":1},{"$f":"DB210/Responses!$B$13","v":1},{"$f":"DC210/Responses!$B$13","v":1},{"$f":"DD210/Responses!$B$13","v":1},{"$f":"DE210/Responses!$B$13","v":1},{"$f":"DF210/Responses!$B$13","v":1},{"$f":"DG210/Responses!$B$13","v":1},{"$f":"DH210/Responses!$B$13","v":0.9642857142857143},{"$f":"DI210/Responses!$B$13","v":1},{"$f":"DJ210/Responses!$B$13","v":1},{"$f":"DK210/Responses!$B$13","v":1},{"$f":"DL210/Responses!$B$13","v":1},{"$f":"DM210/Responses!$B$13","v":1},{"$f":"DN210/Responses!$B$13","v":1},{"$f":"DO210/Responses!$B$13","v":1},{"$f":"DP210/Responses!$B$13","v":1},{"$f":"DQ210/Responses!$B$13","v":1},{"$f":"DR210/Responses!$B$13","v":1},{"$f":"DS210/Responses!$B$13","v":1},{"$f":"DT210/Responses!$B$13","v":1},{"$f":"DU210/Responses!$B$13","v":1},{"$f":"DV210/Responses!$B$13","v":1},{"$f":"DW210/Responses!$B$13","v":1},{"$f":"DX210/Responses!$B$13","v":1},{"$f":"DY210/Responses!$B$13","v":1},{"$f":"DZ210/Responses!$B$13","v":1},{"$f":"EA210/Responses!$B$13","v":1},{"$f":"EB210/Responses!$B$13","v":1},{"$f":"EC210/Responses!$B$13","v":1},{"$f":"ED210/Responses!$B$13","v":1},{"$f":"EE210/Responses!$B$13","v":1},{"$f":"EF210/Responses!$B$13","v":1},{"$f":"EG210/Responses!$B$13","v":1},{"$f":"EH210/Responses!$B$13","v":0.9642857142857143},{"$f":"EI210/Responses!$B$13","v":1},{"$f":"EJ210/Responses!$B$13","v":1},{"$f":"EK210/Responses!$B$13","v":1},{"$f":"EL210/Responses!$B$13","v":1},{"$f":"EM210/Responses!$B$13","v":0.9642857142857143},{"$f":"EN210/Responses!$B$13","v":0.9642857142857143},{"$f":"EO210/Responses!$B$13","v":0.9642857142857143},{"$f":"EP210/Responses!$B$13","v":1},{"$f":"EQ210/Responses!$B$13","v":0.9642857142857143},{"$f":"ER210/Responses!$B$13","v":0.9285714285714286},{"$f":"ES210/Responses!$B$13","v":1},{"$f":"ET210/Responses!$B$13","v":0.9642857142857143},{"$f":"EU210/Responses!$B$13","v":0.9642857142857143},{"$f":"EV210/Responses!$B$13","v":1},{"$f":"EW210/Responses!$B$13","v":0.9642857142857143},{"$f":"EX210/Responses!$B$13","v":0.9642857142857143},{"$f":"EY210/Responses!$B$13","v":0.9642857142857143},{"$f":"EZ210/Responses!$B$13","v":0.9642857142857143},{"$f":"FA210/Responses!$B$13","v":1},{"$f":"FB210/Responses!$B$13","v":1},{"$f":"FC210/Responses!$B$13","v":0.9642857142857143},{"$f":"FD210/Responses!$B$13","v":0.9642857142857143},{"$f":"FE210/Responses!$B$13","v":0.9642857142857143},{"$f":"FF210/Responses!$B$13","v":0.9642857142857143},{"$f":"FG210/Responses!$B$13","v":0.9642857142857143},{"$f":"FH210/Responses!$B$13","v":0.9642857142857143}]
["% responded: AFR",{"$f":"B211/Responses!$B$14","v":1},{"$f":"C211/Responses!$B$14","v":1},{"$f":"D211/Responses!$B$14","v":1},{"$f":"E211/Responses!$B$14","v":1},{"$f":"F211/Responses!$B$14","v":1},{"$f":"G211/Responses!$B$14","v":1},{"$f":"H211/Responses!$B$14","v":1},{"$f":"I211/Responses!$B$14","v":0.95},{"$f":"J211/Responses!$B$14","v":0.97499999999999998},{"$f":"K211/Responses!$B$14","v":0.92500000000000004},{"$f":"L211/Responses!$B$14","v":0.97499999999999998},{"$f":"M211/Responses!$B$14","v":0.8},{"$f":"N211/Responses!$B$14","v":1},{"$f":"O211/Responses!$B$14","v":0.97499999999999998},{"$f":"P211/Responses!$B$14","v":1},{"$f":"Q211/Responses!$B$14","v":1},{"$f":"R211/Responses!$B$14","v":0.95},{"$f":"S211/Responses!$B$14","v":1},{"$f":"T211/Responses!$B$14","v":1},{"$f":"U211/Responses!$B$14","v":1},{"$f":"V211/Responses!$B$14","v":0.97499999999999998},{"$f":"W211/Responses!$B$14","v":1},{"$f":"X211/Responses!$B$14","v":0.9},{"$f":"Y211/Responses!$B$14","v":0.95},{"$f":"Z211/Responses!$B$14","v":0.82499999999999996},{"$f":"AA211/Responses!$B$14","v":0.95},{"$f":"AB211/Responses!$B$14","v":0.97499999999999998},{"$f":"AC211/Responses!$B$14","v":1},{"$f":"AD211/Responses!$B$14","v":0.97499999999999998},{"$f":"AE211/Responses!$B$14","v":0.9},{"$f":"AF211/Responses!$B$14","v":1},{"$f":"AG211/Responses!$B$14","v":0.95},{"$f":"AH211/Responses!$B$14","v":1},{"$f":"AI211/Responses!$B$14","v":1},{"$f":"AJ211/Responses!$B$14","v":1},{"$f":"AK211/Responses!$B$14","v":0.97499999999999998},{"$f":"AL211/Responses!$B$14","v":0.97499999999999998},{"$f":"AM211/Responses!$B$14","v":0.95},{"$f":"AN211/Responses!$B$14","v":0.97499999999999998},{"$f":"AO211/Responses!$B$14","v":0.85},{"$f":"AP211/Responses!$B$14","v":0.95},{"$f":"AQ211/Responses!$B$14","v":0.92500000000000004},{"$f":"AR211/Responses!$B$14","v":0.85},{"$f":"AS211/Responses!$B$14","v":0.85},{"$f":"AT211/Responses!$B$14","v":0.75},{"$f":"AU211/Responses!$B$14","v":0.82499999999999996},{"$f":"AV211/Responses!$B$14","v":0.82499999999999996},{"$f":"AW211/Responses!$B$14","v":0.85},{"$f":"AX211/Responses!$B$14","v":0.97499999999999998},{"$f":"AY211/Responses!$B$14","v":1},{"$f":"AZ211/Responses!$B$14","v":0.97499999999999998},{"$f":"BA211/Responses!$B$14","v":0.97499999999999998},{"$f":"BB211/Responses!$B$14","v":0.97499999999999998},{"$f":"BC211/Responses!$B$14","v":0.97499999999999998},{"$f":"BD211/Responses!$B$14","v":0.97499999999999998},{"$f":"BE211/Responses!$B$14","v":0.95},{"$f":"BF211/Responses!$B$14","v":0.97499999999999998},{"$f":"BG211/Responses!$B$14","v":0.95},{"$f":"BH211/Responses!$B$14","v":0.92500000000000004},{"$f":"BI211/Responses!$B$14","v":0.875},{"$f":"BJ211/Responses!$B$14","v":1},{"$f":"BK211/Responses!$B$14","v":0.97499999999999998},{"$f":"BL211/Responses!$B$14","v":0.95},{"$f":"BM211/Responses!$B$14","v":0.97499999999999998},{"$f":"BN211/Responses!$B$14","v":0.95},{"$f":"BO211/Responses!$B$14","v":0.92500000000000004},{"$f":"BP211/Responses!$B$14","v":0.92500000000000004},{"$f":"BQ211/Responses!$B$14","v":0.92500000000000004},{"$f":"BR211/Responses!$B$14","v":0.92500000000000004},{"$f":"BS211/Responses!$B$14","v":0.92500000000000004},{"$f":"BT211/Responses!$B$14","v":0.92500000000000004},{"$f":"BU211/Responses!$B$14","v":0.92500000000000004},{"$f":"BV211/Responses!$B$14","v":0.92500000000000004},{"$f":"BW211/Responses!$B$14","v":0.92500000000000004},{"$f":"BX211/Responses!$B$14","v":0.92500000000000004},{"$f":"BY211/Responses!$B$14","v":0.92500000000000004},{"$f":"BZ211/Responses!$B$14","v":0.92500000000000004},{"$f":"CA211/Responses!$B$14","v":0.92500000000000004},{"$f":"CB211/Responses!$B$14","v":0.92500000000000004},{"$f":"CC211/Responses!$B$14","v":0.92500000000000004},{"$f":"CD211/Responses!$B$14","v":0.92500000000000004},{"$f":"CE211/Responses!$B$14","v":0.92500000000000004},{"$f":"CF211/Responses!$B$14","v":0.92500000000000004},{"$f":"CG211/Responses!$B$14","v":0.92500000000000004},{"$f":"CH211/Responses!$B$14","v":0.92500000000000004},{"$f":"CI211/Responses!$B$14","v":0.92500000000000004},{"$f":"CJ211/Responses!$B$14","v":0.92500000000000004},{"$f":"CK211/Responses!$B$14","v":0.92500000000000004},{"$f":"CL211/Responses!$B$14","v":0.92500000000000004},{"$f":"CM211/Responses!$B$14","v":0.92500000000000004},{"$f":"CN211/Responses!$B$14","v":0.92500000000000004},{"$f":"CO211/Responses!$B$14","v":0.52500000000000002},{"$f":"CP211/Responses!$B$14","v":0.75},{"$f":"CQ211/Responses!$B$14","v":0.45},{"$f":"CR211/Responses!$B$14","v":1},{"$f":"CS211/Responses!$B$14","v":0.92500000000000004},{"$f":"CT211/Responses!$B$14","v":0.95},{"$f":"CU211/Responses!$B$14","v":0.95},{"$f":"CV211/Responses!$B$14","v":0.92500000000000004},{"$f":"CW211/Responses!$B$14","v":0.9},{"$f":"CX211/Responses!$B$14","v":0.92500000000000004},{"$f":"CY211/Responses!$B$14","v":0.92500000000000004},{"$f":"CZ211/Responses!$B$14","v":0.95},{"$f":"DA211/Responses!$B$14","v":0.95},{"$f":"DB211/Responses!$B$14","v":0.95},{"$f":"DC211/Responses!$B$14","v":0.95},{"$f":"DD211/Responses!$B$14","v":0.95},{"$f":"DE211/Responses!$B$14","v":0.95},{"$f":"DF211/Responses!$B$14","v":0.97499999999999998},{"$f":"DG211/Responses!$B$14","v":0.97499999999999998},{"$f":"DH211/Responses!$B$14","v":0.97499999999999998},{"$f":"DI211/Responses!$B$14","v":0.97499999999999998},{"$f":"DJ211/Responses!$B$14","v":0.97499999999999998},{"$f":"DK211/Responses!$B$14","v":0.97499999999999998},{"$f":"DL211/Responses!$B$14","v":0.95},{"$f":"DM211/Responses!$B$14","v":0.97499999999999998},{"$f":"DN211/Responses!$B$14","v":0.97499999999999998},{"$f":"DO211/Responses!$B$14","v":0.97499999999999998},{"$f":"DP211/Responses!$B$14","v":0.97499999999999998},{"$f":"DQ211/Responses!$B$14","v":0.97499999999999998},{"$f":"DR211/Responses!$B$14","v":0.97499999999999998},{"$f":"DS211/Responses!$B$14","v":0.92500000000000004},{"$f":"DT211/Responses!$B$14","v":0.9},{"$f":"DU211/Responses!$B$14","v":0.97499999999999998},{"$f":"DV211/Responses!$B$14","v":0.97499999999999998},{"$f":"DW211/Responses!$B$14","v":0.97499999999999998},{"$f":"DX211/Responses!$B$14","v":0.97499999999999998},{"$f":"DY211/Responses!$B$14","v":0.97499999999999998},{"$f":"DZ211/Responses!$B$14","v":0.97499999999999998},{"$f":"EA211/Responses!$B$14","v":0.97499999999999998},{"$f":"EB211/Responses!$B$14","v":0.97499999999999998},{"$f":"EC211/Responses!$B$14","v":0.95},{"$f":"ED211/Responses!$B$14","v":0.95},{"$f":"EE211/Responses!$B$14","v":0.97499999999999998},{"$f":"EF211/Responses!$B$14","v":0.95},{"$f":"EG211/Responses!$B$14","v":0.92500000000000004},{"$f":"EH211/Responses!$B$14","v":0.97499999999999998},{"$f":"EI211/Responses!$B$14","v":0.95},{"$f":"EJ211/Responses!$B$14","v":0.95},{"$f":"EK211/Responses!$B$14","v":0.97499999999999998},{"$f":"EL211/Responses!$B$14","v":0.97499999999999998},{"$f":"EM211/Responses!$B$14","v":0.97499999999999998},{"$f":"EN211/Responses!$B$14","v":0.97499999999999998},{"$f":"EO211/Responses!$B$14","v":0.95},{"$f":"EP211/Responses!$B$14","v":0.97499999999999998},{"$f":"EQ211/Responses!$B$14","v":0.97499999999999998},{"$f":"ER211/Responses!$B$14","v":0.97499999999999998},{"$f":"ES211/Responses!$B$14","v":0.95},{"$f":"ET211/Responses!$B$14","v":0.97499999999999998},{"$f":"EU211/Responses!$B$14","v":0.97499999999999998},{"$f":"EV211/Responses!$B$14","v":0.97499999999999998},{"$f":"EW211/Responses!$B$14","v":0.97499999999999998},{"$f":"EX211/Responses!$B$14","v":0.97499999999999998},{"$f":"EY211/Responses!$B$14","v":0.92500000000000004},{"$f":"EZ211/Responses!$B$14","v":0.95},{"$f":"FA211/Responses!$B$14","v":0.97499999999999998},{"$f":"FB211/Responses!$B$14","v":0.97499999999999998},{"$f":"FC211/Responses!$B$14","v":0.92500000000000004},{"$f":"FD211/Responses!$B$14","v":0.9},{"$f":"FE211/Responses!$B$14","v":0.97499999999999998},{"$f":"FF211/Responses!$B$14","v":0.95},{"$f":"FG211/Responses!$B$14","v":0.92500000000000004},{"$f":"FH211/Responses!$B$14","v":0.97499999999999998}]
["% responded: EES",{"$f":"B212/Responses!$B$15","v":1},{"$f":"C212/Responses!$B$15","v":1},{"$f":"D212/Responses!$B$15","v":1},{"$f":"E212/Responses!$B$15","v":1},{"$f":"F212/Responses!$B$15","v":1},{"$f":"G212/Responses!$B$15","v":1},{"$f":"H212/Responses!$B$15","v":0.94736842105263153},{"$f":"I212/Responses!$B$15","v":1},{"$f":"J212/Responses!$B$15","v":1},{"$f":"K212/Responses!$B$15","v":1},{"$f":"L212/Responses!$B$15","v":1},{"$f":"M212/Responses!$B$15","v":0.89473684210526316},{"$f":"N212/Responses!$B$15","v":1},{"$f":"O212/Responses!$B$15","v":0.94736842105263153},{"$f":"P212/Responses!$B$15","v":0.94736842105263153},{"$f":"Q212/Responses!$B$15","v":0.94736842105263153},{"$f":"R212/Responses!$B$15","v":1},{"$f":"S212/Responses!$B$15","v":1},{"$f":"T212/Responses!$B$15","v":1},{"$f":"U212/Responses!$B$15","v":1},{"$f":"V212/Responses!$B$15","v":1},{"$f":"W212/Responses!$B$15","v":1},{"$f":"X212/Responses!$B$15","v":0.89473684210526316},{"$f":"Y212/Responses!$B$15","v":1},{"$f":"Z212/Responses!$B$15","v":0.94736842105263153},{"$f":"AA212/Responses!$B$15","v":0.94736842105263153},{"$f":"AB212/Responses!$B$15","v":1},{"$f":"AC212/Responses!$B$15","v":1},{"$f":"AD212/Responses!$B$15","v":1},{"$f":"AE212/Responses!$B$15","v":0.78947368421052633},{"$f":"AF212/Responses!$B$15","v":1},{"$f":"AG212/Responses!$B$15","v":1},{"$f":"AH212/Responses!$B$15","v":1},{"$f":"AI212/Responses!$B$15","v":1},{"$f":"AJ212/Responses!$B$15","v":1},{"$f":"AK212/Responses!$B$15","v":0.89473684210526316},{"$f":"AL212/Responses!$B$15","v":1},{"$f":"AM212/Responses!$B$15","v":1},{"$f":"AN212/Responses!$B$15","v":1},{"$f":"AO212/Responses!$B$15","v":0.78947368421052633},{"$f":"AP212/Responses!$B$15","v":0.89473684210526316},{"$f":"AQ212/Responses!$B$15","v":0.94736842105263153},{"$f":"AR212/Responses!$B$15","v":0.89473684210526316},{"$f":"AS212/Responses!$B$15","v":0.89473684210526316},{"$f":"AT212/Responses!$B$15","v":0.94736842105263153},{"$f":"AU212/Responses!$B$15","v":0.89473684210526316},{"$f":"AV212/Responses!$B$15","v":0.89473684210526316},{"$f":"AW212/Responses!$B$15","v":0.89473684210526316},{"$f":"AX212/Responses!$B$15","v":0.89473684210526316},{"$f":"AY212/Responses!$B$15","v":1},{"$f":"AZ212/Responses!$B$15","v":0.89473684210526316},{"$f":"BA212/Responses!$B$15","v":1},{"$f":"BB212/Responses!$B$15","v":1},{"$f":"BC212/Responses!$B$15","v":1},{"$f":"BD212/Responses!$B$15","v":1},{"$f":"BE212/Responses!$B$15","v":1},{"$f":"BF212/Responses!$B$15","v":1},{"$f":"BG212/Responses!$B$15","v":1},{"$f":"BH212/Responses!$B$15","v":0.78947368421052633},{"$f":"BI212/Responses!$B$15","v":0.84210526315789469},{"$f":"BJ212/Responses!$B$15","v":0.94736842105263153},{"$f":"BK212/Responses!$B$15","v":0.89473684210526316},{"$f":"BL212/Responses!$B$15","v":0.94736842105263153},{"$f":"BM212/Responses!$B$15","v":0.94736842105263153},{"$f":"BN212/Responses!$B$15","v":1},{"$f":"BO212/Responses!$B$15","v":0.89473684210526316},{"$f":"BP212/Responses!$B$15","v":0.94736842105263153},{"$f":"BQ212/Responses!$B$15","v":0.94736842105263153},{"$f":"BR212/Responses!$B$15","v":0.94736842105263153},{"$f":"BS212/Responses!$B$15","v":0.94736842105263153},{"$f":"BT212/Responses!$B$15","v":0.94736842105263153},{"$f":"BU212/Responses!$B$15","v":0.89473684210526316},{"$f":"BV212/Responses!$B$15","v":0.89473684210526316},{"$f":"BW212/Responses!$B$15","v":0.89473684210526316},{"$f":"BX212/Responses!$B$15","v":0.89473684210526316},{"$f":"BY212/Responses!$B$15","v":0.89473684210526316},{"$f":"BZ212/Responses!$B$15","v":0.89473684210526316},{"$f":"CA212/Responses!$B$15","v":0.89473684210526316},{"$f":"CB212/Responses!$B$15","v":0.89473684210526316},{"$f":"CC212/Responses!$B$15","v":0.89473684210526316},{"$f":"CD212/Responses!$B$15","v":0.89473684210526316},{"$f":"CE212/Responses!$B$15","v":0.89473684210526316},{"$f":"CF212/Responses!$B$15","v":0.89473684210526316},{"$f":"CG212/Responses!$B$15","v":0.89473684210526316},{"$f":"CH212/Responses!$B$15","v":0.89473684210526316},{"$f":"CI212/Responses!$B$15","v":0.89473684210526316},{"$f":"CJ212/Responses!$B$15","v":0.89473684210526316},{"$f":"CK212/Responses!$B$15","v":0.89473684210526316},{"$f":"CL212/Responses!$B$15","v":0.89473684210526316},{"$f":"CM212/Responses!$B$15","v":0.89473684210526316},{"$f":"CN212/Responses!$B$15","v":0.89473684210526316},{"$f":"CO212/Responses!$B$15","v":0.73684210526315785},{"$f":"CP212/Responses!$B$15","v":0.31578947368421051},{"$f":"CQ212/Responses!$B$15","v":0.26315789473684209},{"$f":"CR212/Responses!$B$15","v":1},{"$f":"CS212/Responses!$B$15","v":1},{"$f":"CT212/Responses!$B$15","v":1},{"$f":"CU212/Responses!$B$15","v":1},{"$f":"CV212/Responses!$B$15","v":1},{"$f":"CW212/Responses!$B$15","v":1},{"$f":"CX212/Responses!$B$15","v":1},{"$f":"CY212/Responses!$B$15","v":1},{"$f":"CZ212/Responses!$B$15","v":1},{"$f":"DA212/Responses!$B$15","v":1},{"$f":"DB212/Responses!$B$15","v":0.94736842105263153},{"$f":"DC212/Responses!$B$15","v":0.94736842105263153},{"$f":"DD212/Responses!$B$15","v":0.89473684210526316},{"$f":"DE212/Responses!$B$15","v":0.94736842105263153},{"$f":"DF212/Responses!$B$15","v":0.94736842105263153},{"$f":"DG212/Responses!$B$15","v":0.94736842105263153},{"$f":"DH212/Responses!$B$15","v":0.94736842105263153},{"$f":"DI212/Responses!$B$15","v":0.94736842105263153},{"$f":"DJ212/Responses!$B$15","v":0.94736842105263153},{"$f":"DK212/Responses!$B$15","v":1},{"$f":"DL212/Responses!$B$15","v":1},{"$f":"DM212/Responses!$B$15","v":1},{"$f":"DN212/Responses!$B$15","v":0.94736842105263153},{"$f":"DO212/Responses!$B$15","v":1},{"$f":"DP212/Responses!$B$15","v":0.94736842105263153},{"$f":"DQ212/Responses!$B$15","v":1},{"$f":"DR212/Responses!$B$15","v":0.94736842105263153},{"$f":"DS212/Responses!$B$15","v":1},{"$f":"DT212/Responses!$B$15","v":0.89473684210526316},{"$f":"DU212/Responses!$B$15","v":1},{"$f":"DV212/Responses!$B$15","v":1},{"$f":"DW212/Responses!$B$15","v":1},{"$f":"DX212/Responses!$B$15","v":1},{"$f":"DY212/Responses!$B$15","v":1},{"$f":"DZ212/Responses!$B$15","v":0.94736842105263153},{"$f":"EA212/Responses!$B$15","v":1},{"$f":"EB212/Responses!$B$15","v":1},{"$f":"EC212/Responses!$B$15","v":1},{"$f":"ED212/Responses!$B$15","v":0.94736842105263153},{"$f":"EE212/Responses!$B$15","v":1},{"$f":"EF212/Responses!$B$15","v":1},{"$f":"EG212/Responses!$B$15","v":1},{"$f":"EH212/Responses!$B$15","v":0.94736842105263153},{"$f":"EI212/Responses!$B$15","v":1},{"$f":"EJ212/Responses!$B$15","v":0.89473684210526316},{"$f":"EK212/Responses!$B$15","v":0.94736842105263153},{"$f":"EL212/Responses!$B$15","v":1},{"$f":"EM212/Responses!$B$15","v":0.94736842105263153},{"$f":"EN212/Responses!$B$15","v":0.94736842105263153},{"$f":"EO212/Responses!$B$15","v":0.94736842105263153},{"$f":"EP212/Responses!$B$15","v":0.94736842105263153},{"$f":"EQ212/Responses!$B$15","v":1},{"$f":"ER212/Responses!$B$15","v":1},{"$f":"ES212/Responses!$B$15","v":0.94736842105263153},{"$f":"ET212/Responses!$B$15","v":0.94736842105263153},{"$f":"EU212/Responses!$B$15","v":0.94736842105263153},{"$f":"EV212/Responses!$B$15","v":0.94736842105263153},{"$f":"EW212/Responses!$B$15","v":1},{"$f":"EX212/Responses!$B$15","v":1},{"$f":"EY212/Responses!$B$15","v":1},{"$f":"EZ212/Responses!$B$15","v":0.94736842105263153},{"$f":"FA212/Responses!$B$15","v":0.94736842105263153},{"$f":"FB212/Responses!$B$15","v":0.89473684210526316},{"$f":"FC212/Responses!$B$15","v":1},{"$f":"FD212/Responses!$B$15","v":0.89473684210526316},{"$f":"FE212/Responses!$B$15","v":0.94736842105263153},{"$f":"FF212/Responses!$B$15","v":0.89473684210526316},{"$f":"FG212/Responses!$B$15","v":0.94736842105263153},{"$f":"FH212/Responses!$B$15","v":0.94736842105263153}]
["% responded: WEO",{"$f":"B213/Responses!$B$16","v":1},{"$f":"C213/Responses!$B$16","v":1},{"$f":"D213/Responses!$B$16","v":1},{"$f":"E213/Responses!$B$16","v":1},{"$f":"F213/Responses!$B$16","v":1},{"$f":"G213/Responses!$B$16","v":1},{"$f":"H213/Responses!$B$16","v":0.95833333333333337},{"$f":"I213/Responses!$B$16","v":0.875},{"$f":"J213/Responses!$B$16","v":0.95833333333333337},{"$f":"K213/Responses!$B$16","v":1},{"$f":"L213/Responses!$B$16","v":1},{"$f":"M213/Responses!$B$16","v":0.83333333333333337},{"$f":"N213/Responses!$B$16","v":0.91666666666666663},{"$f":"O213/Responses!$B$16","v":0.95833333333333337},{"$f":"P213/Responses!$B$16","v":0.95833333333333337},{"$f":"Q213/Responses!$B$16","v":0.95833333333333337},{"$f":"R213/Responses!$B$16","v":0.875},{"$f":"S213/Responses!$B$16","v":1},{"$f":"T213/Responses!$B$16","v":1},{"$f":"U213/Responses!$B$16","v":1},{"$f":"V213/Responses!$B$16","v":1},{"$f":"W213/Responses!$B$16","v":1},{"$f":"X213/Responses!$B$16","v":0.95833333333333337},{"$f":"Y213/Responses!$B$16","v":0.91666666666666663},{"$f":"Z213/Responses!$B$16","v":0.875},{"$f":"AA213/Responses!$B$16","v":0.95833333333333337},{"$f":"AB213/Responses!$B$16","v":0.95833333333333337},{"$f":"AC213/Responses!$B$16","v":1},{"$f":"AD213/Responses!$B$16","v":1},{"$f":"AE213/Responses!$B$16","v":0.29166666666666669},{"$f":"AF213/Responses!$B$16","v":1},{"$f":"AG213/Responses!$B$16","v":1},{"$f":"AH213/Responses!$B$16","v":1},{"$f":"AI213/Responses!$B$16","v":1},{"$f":"AJ213/Responses!$B$16","v":1},{"$f":"AK213/Responses!$B$16","v":0.95833333333333337},{"$f":"AL213/Responses!$B$16","v":1},{"$f":"AM213/Responses!$B$16","v":1},{"$f":"AN213/Responses!$B$16","v":1},{"$f":"AO213/Responses!$B$16","v":1},{"$f":"AP213/Responses!$B$16","v":0.91666666666666663},{"$f":"AQ213/Responses!$B$16","v":0.875},{"$f":"AR213/Responses!$B$16","v":0.875},{"$f":"AS213/Responses!$B$16","v":0.91666666666666663},{"$f":"AT213/Responses!$B$16","v":0.91666666666666663},{"$f":"AU213/Responses!$B$16","v":0.95833333333333337},{"$f":"AV213/Responses!$B$16","v":0.83333333333333337},{"$f":"AW213/Responses!$B$16","v":0.79166666666666663},{"$f":"AX213/Responses!$B$16","v":1},{"$f":"AY213/Responses!$B$16","v":1},{"$f":"AZ213/Responses!$B$16","v":0.95833333333333337},{"$f":"BA213/Responses!$B$16","v":0.95833333333333337},{"$f":"BB213/Responses!$B$16","v":0.95833333333333337},{"$f":"BC213/Responses!$B$16","v":0.95833333333333337},{"$f":"BD213/Responses!$B$16","v":0.95833333333333337},{"$f":"BE213/Responses!$B$16","v":0.95833333333333337},{"$f":"BF213/Responses!$B$16","v":0.95833333333333337},{"$f":"BG213/Responses!$B$16","v":0.95833333333333337},{"$f":"BH213/Responses!$B$16","v":0.5},{"$f":"BI213/Responses!$B$16","v":0.75},{"$f":"BJ213/Responses!$B$16","v":0.95833333333333337},{"$f":"BK213/Responses!$B$16","v":0.91666666666666663},{"$f":"BL213/Responses!$B$16","v":0.91666666666666663},{"$f":"BM213/Responses!$B$16","v":0.95833333333333337},{"$f":"BN213/Responses!$B$16","v":1},{"$f":"BO213/Responses!$B$16","v":0.91666666666666663},{"$f":"BP213/Responses!$B$16","v":0.875},{"$f":"BQ213/Responses!$B$16","v":0.875},{"$f":"BR213/Responses!$B$16","v":0.875},{"$f":"BS213/Responses!$B$16","v":0.875},{"$f":"BT213/Responses!$B$16","v":0.875},{"$f":"BU213/Responses!$B$16","v":0.875},{"$f":"BV213/Responses!$B$16","v":0.83333333333333337},{"$f":"BW213/Responses!$B$16","v":0.875},{"$f":"BX213/Responses!$B$16","v":0.79166666666666663},{"$f":"BY213/Responses!$B$16","v":0.875},{"$f":"BZ213/Responses!$B$16","v":0.83333333333333337},{"$f":"CA213/Responses!$B$16","v":0.875},{"$f":"CB213/Responses!$B$16","v":0.79166666666666663},{"$f":"CC213/Responses!$B$16","v":0.875},{"$f":"CD213/Responses!$B$16","v":0.83333333333333337},{"$f":"CE213/Responses!$B$16","v":0.875},{"$f":"CF213/Responses!$B$16","v":0.79166666666666663},{"$f":"CG213/Responses!$B$16","v":0.875},{"$f":"CH213/Responses!$B$16","v":0.83333333333333337},{"$f":"CI213/Responses!$B$16","v":0.875},{"$f":"CJ213/Responses!$B$16","v":0.79166666666666663},{"$f":"CK213/Responses!$B$16","v":0.875},{"$f":"CL213/Responses!$B$16","v":0.83333333333333337},{"$f":"CM213/Responses!$B$16","v":0.875},{"$f":"CN213/Responses!$B$16","v":0.79166666666666663},{"$f":"CO213/Responses!$B$16","v":0.375},{"$f":"CP213/Responses!$B$16","v":0.375},{"$f":"CQ213/Responses!$B$16","v":0.25},{"$f":"CR213/Responses!$B$16","v":1},{"$f":"CS213/Responses!$B$16","v":1},{"$f":"CT213/Responses!$B$16","v":1},{"$f":"CU213/Responses!$B$16","v":1},{"$f":"CV213/Responses!$B$16","v":0.95833333333333337},{"$f":"CW213/Responses!$B$16","v":1},{"$f":"CX213/Responses!$B$16","v":0.95833333333333337},{"$f":"CY213/Responses!$B$16","v":0.95833333333333337},{"$f":"CZ213/Responses!$B$16","v":0.95833333333333337},{"$f":"DA213/Responses!$B$16","v":0.95833333333333337},{"$f":"DB213/Responses!$B$16","v":0.95833333333333337},{"$f":"DC213/Responses!$B$16","v":0.95833333333333337},{"$f":"DD213/Responses!$B$16","v":0.95833333333333337},{"$f":"DE213/Responses!$B$16","v":1},{"$f":"DF213/Responses!$B$16","v":1},{"$f":"DG213/Responses!$B$16","v":0.95833333333333337},{"$f":"DH213/Responses!$B$16","v":0.95833333333333337},{"$f":"DI213/Responses!$B$16","v":0.95833333333333337},{"$f":"DJ213/Responses!$B$16","v":0.91666666666666663},{"$f":"DK213/Responses!$B$16","v":1},{"$f":"DL213/Responses!$B$16","v":0.95833333333333337},{"$f":"DM213/Responses!$B$16","v":1},{"$f":"DN213/Responses!$B$16","v":1},{"$f":"DO213/Responses!$B$16","v":1},{"$f":"DP213/Responses!$B$16","v":1},{"$f":"DQ213/Responses!$B$16","v":1},{"$f":"DR213/Responses!$B$16","v":1},{"$f":"DS213/Responses!$B$16","v":0.95833333333333337},{"$f":"DT213/Responses!$B$16","v":0.95833333333333337},{"$f":"DU213/Responses!$B$16","v":0.95833333333333337},{"$f":"DV213/Responses!$B$16","v":0.95833333333333337},{"$f":"DW213/Responses!$B$16","v":1},{"$f":"DX213/Responses!$B$16","v":1},{"$f":"DY213/Responses!$B$16","v":1},{"$f":"DZ213/Responses!$B$16","v":1},{"$f":"EA213/Responses!$B$16","v":1},{"$f":"EB213/Responses!$B$16","v":0.95833333333333337},{"$f":"EC213/Responses!$B$16","v":1},{"$f":"ED213/Responses!$B$16","v":0.95833333333333337},{"$f":"EE213/Responses!$B$16","v":1},{"$f":"EF213/Responses!$B$16","v":0.95833333333333337},{"$f":"EG213/Responses!$B$16","v":0.95833333333333337},{"$f":"EH213/Responses!$B$16","v":0.91666666666666663},{"$f":"EI213/Responses!$B$16","v":1},{"$f":"EJ213/Responses!$B$16","v":1},{"$f":"EK213/Responses!$B$16","v":0.95833333333333337},{"$f":"EL213/Responses!$B$16","v":0.95833333333333337},{"$f":"EM213/Responses!$B$16","v":1},{"$f":"EN213/Responses!$B$16","v":1},{"$f":"EO213/Responses!$B$16","v":1},{"$f":"EP213/Responses!$B$16","v":0.95833333333333337},{"$f":"EQ213/Responses!$B$16","v":1},{"$f":"ER213/Responses!$B$16","v":1},{"$f":"ES213/Responses!$B$16","v":0.95833333333333337},{"$f":"ET213/Responses!$B$16","v":0.91666666666666663},{"$f":"EU213/Responses!$B$16","v":1},{"$f":"EV213/Responses!$B$16","v":1},{"$f":"EW213/Responses!$B$16","v":1},{"$f":"EX213/Responses!$B$16","v":1},{"$f":"EY213/Responses!$B$16","v":0.91666666666666663},{"$f":"EZ213/Responses!$B$16","v":0.91666666666666663},{"$f":"FA213/Responses!$B$16","v":1},{"$f":"FB213/Responses!$B$16","v":1},{"$f":"FC213/Responses!$B$16","v":0.91666666666666663},{"$f":"FD213/Responses!$B$16","v":0.91666666666666663},{"$f":"FE213/Responses!$B$16","v":1},{"$f":"FF213/Responses!$B$16","v":1},{"$f":"FG213/Responses!$B$16","v":1},{"$f":"FH213/Responses!$B$16","v":0.91666666666666663}]
[]
["Low HD: % of responses as 0-1,5 (or 1 for Qs 5-7)",{"$f":"(COUNTIFS(B$3:B$194,\"<1.5\",ID_HDIG,1))/B$197","v":0},0,0,0,0,0,0,0,0,0,0,0,0,0.16129032258064516,0,0,0,0,0,0,0,0,0,0,0,0,0,0,0,0,0,0,{"$f":"(COUNTIFS(AH$3:AH$194,\"<1.5\",ID_HDIG,1))/AH$197","v":0},0,0,0,0,0,0,0,0,0,0,0.18518518518518517,0.44,0.26923076923076922,0.34615384615384615,0,0,0,0,0,0,0,0,0,0,0,0,0,0.22580645161290322,0.13333333333333333,0.10344827586206896,0.3,{"$f":"(COUNTIFS(BN$3:BN$194,\"<1.5\",ID_HDIG,1))/BN$197","v":0.4},0.64516129032258063,0.10344827586206896,0.13793103448275862,0.10344827586206896,0.20689655172413793,3.4482758620689655E-2,6.8965517241379309E-2,0.13793103448275862,0.2413793103448276,6.8965517241379309E-2,0.17241379310344829,0.13793103448275862,0.20689655172413793,0.13793103448275862,0.10344827586206896,0.13793103448275862,0.20689655172413793,6.8965517241379309E-2,0.20689655172413793,0.2413793103448276,0.2413793103448276,0.20689655172413793,3.4482758620689655E-2,6.8965517241379309E-2,0.17241379310344829,3.4482758620689655E-2,0,0,0,0.21875,0,{"$f":"(COUNTIFS(CT$3:CT$194,\"<1.5\",ID_HDIG,1))/CT$197","v":0},3.3333333333333333E-2,3.3333333333333333E-2,0,0,3.2258064516129031E-2,3.2258064516129031E-2,0,0,0,0,3.2258064516129031E-2,3.2258064516129031E-2,0,9.6774193548387094E-2,6.4516129032258063E-2,6.4516129032258063E-2,0,0,0,0,0,0,3.2258064516129031E-2,0,0.13333333333333333,0.10344827586206896,0,0,0,0,3.2258064516129031E-2,{"$f":"(COUNTIFS(DZ$3:DZ$194,\"<1.5\",ID_HDIG,1))/DZ$197","v":0},0,0,0,6.6666666666666666E-2,0,0,0.1,9.6774193548387094E-2,0,3.3333333333333333E-2,3.2258064516129031E-2,0,3.2258064516129031E-2,0,6.6666666666666666E-2,3.2258064516129031E-2,6.4516129032258063E-2,0,0,6.4516129032258063E-2,9.6774193548387094E-2,3.2258064516129031E-2,3.2258064516129031E-2,3.2258064516129031E-2,0,3.3333333333333333E-2,3.2258064516129031E-2,9.6774193548387094E-2,0,6.6666666666666666E-2,0,0,6.8965517241379309E-2,0.12903225806451613]
["Low HD: % of responses as 1,5-2,5 (or 2 for Qs 5-7)",{"$f":"(COUNTIFS(B$3:B$194,\">=1.5\",B$3:B$194,\"<2.5\",ID_HDIG,1))/B$197","v":9.375E-2},0.125,0.15625,0.1875,0.15625,0.1875,0.21875,0.2,0.26666666666666666,0.13793103448275862,0.1,0.5,0.40625,0.41935483870967744,0.15625,0.25,0.2,0.21875,0.28125,0.21875,0.28125,0.21875,0.56666666666666665,0.43333333333333335,0.37037037037037035,0.26666666666666666,0.29032258064516131,0.21875,0.28125,0.27586206896551724,0.1875,0.22580645161290322,{"$f":"(COUNTIFS(AH$3:AH$194,\">=1.5\",AH$3:AH$194,\"<2.5\",ID_HDIG,1))/AH$197","v":0.25},0.125,0.28125,0.43333333333333335,0.16129032258064516,0.22580645161290322,0.29032258064516131,0.44444444444444442,0.5,0.39285714285714285,0.57692307692307687,0.51851851851851849,0.44,0.42307692307692307,0.53846153846153844,0.2857142857142857,0.25806451612903225,0.125,0.43333333333333335,6.4516129032258063E-2,9.6774193548387094E-2,6.4516129032258063E-2,6.4516129032258063E-2,3.3333333333333333E-2,6.4516129032258063E-2,0.2,0.10344827586206896,6.6666666666666666E-2,3.2258064516129031E-2,0,0.13793103448275862,0.3,{"$f":"(COUNTIFS(BN$3:BN$194,\">=1.5\",BN$3:BN$194,\"<2.5\",ID_HDIG,1))/BN$197","v":0.16666666666666666},0.25806451612903225,0.27586206896551724,0.17241379310344829,0.2413793103448276,0.2413793103448276,0.31034482758620691,0.27586206896551724,0.17241379310344829,0.17241379310344829,0.20689655172413793,0.17241379310344829,0.20689655172413793,0.27586206896551724,0.17241379310344829,0.31034482758620691,0.20689655172413793,0.2413793103448276,0.27586206896551724,0.27586206896551724,0.27586206896551724,0.27586206896551724,0.20689655172413793,0.17241379310344829,0.2413793103448276,0.41379310344827586,0.27586206896551724,0,0,1,0.46875,9.6774193548387094E-2,{"$f":"(COUNTIFS(CT$3:CT$194,\">=1.5\",CT$3:CT$194,\"<2.5\",ID_HDIG,1))/CT$197","v":3.2258064516129031E-2},0.13333333333333333,6.6666666666666666E-2,0.32258064516129031,6.4516129032258063E-2,0.12903225806451613,9.6774193548387094E-2,0.19354838709677419,0.29032258064516131,6.4516129032258063E-2,0.16129032258064516,0.16129032258064516,0.16129032258064516,0.16129032258064516,0.12903225806451613,0.19354838709677419,0.12903225806451613,9.6774193548387094E-2,3.3333333333333333E-2,0,0,6.4516129032258063E-2,9.6774193548387094E-2,3.2258064516129031E-2,9.6774193548387094E-2,3.3333333333333333E-2,6.8965517241379309E-2,0,6.4516129032258063E-2,6.4516129032258063E-2,3.2258064516129031E-2,0.12903225806451613,{"$f":"(COUNTIFS(DZ$3:DZ$194,\">=1.5\",DZ$3:DZ$194,\"<2.5\",ID_HDIG,1))/DZ$197","v":9.6774193548387094E-2},3.2258064516129031E-2,6.4516129032258063E-2,6.6666666666666666E-2,0,6.4516129032258063E-2,3.2258064516129031E-2,3.3333333333333333E-2,0.29032258064516131,6.6666666666666666E-2,6.6666666666666666E-2,0,0,0.12903225806451613,0.12903225806451613,0.1,0.16129032258064516,0.12903225806451613,0.25806451612903225,0.23333333333333334,0.12903225806451613,9.6774193548387094E-2,0.12903225806451613,0.16129032258064516,0.12903225806451613,0.12903225806451613,6.6666666666666666E-2,0.19354838709677419,6.4516129032258063E-2,0.22580645161290322,0.1,0.22580645161290322,0.12903225806451613,0.10344827586206896,0.12903225806451613]
["Low HD: % of responses as 2,5-3,5 (or 3 for Qs 5-7)",{"$f":"(COUNTIFS(B$3:B$194,\">=2.5\",B$3:B$194,\"<3.5\",ID_HDIG,1))/B$197","v":0.53125},0.5,0.46875,0.40625,0.34375,0.40625,0.34375,6.6666666666666666E-2,0.23333333333333334,0.17241379310344829,0.26666666666666666,0.26923076923076922,0.25,0.19354838709677419,0.34375,0.28125,6.6666666666666666E-2,0.34375,0.3125,0.34375,0.3125,0.3125,6.6666666666666666E-2,0.2,0,0.26666666666666666,0.32258064516129031,0.34375,0.3125,0.13793103448275862,0.5,0.38709677419354838,{"$f":"(COUNTIFS(AH$3:AH$194,\">=2.5\",AH$3:AH$194,\"<3.5\",ID_HDIG,1))/AH$197","v":0.40625},0.34375,0.34375,0.3,0.35483870967741937,0.38709677419354838,0.32258064516129031,3.7037037037037035E-2,0.2,0.25,0.11538461538461539,7.407407407407407E-2,0,0.11538461538461539,3.8461538461538464E-2,0.17857142857142858,0.38709677419354838,0.53125,0.3,0.25806451612903225,0.35483870967741937,0.25806451612903225,0.25806451612903225,0.26666666666666666,0.25806451612903225,0.13333333333333333,6.8965517241379309E-2,6.6666666666666666E-2,0.12903225806451613,0.13333333333333333,0.10344827586206896,3.3333333333333333E-2,{"$f":"(COUNTIFS(BN$3:BN$194,\">=2.5\",BN$3:BN$194,\"<3.5\",ID_HDIG,1))/BN$197","v":0.13333333333333333},0,0.41379310344827586,0.41379310344827586,0.44827586206896552,0.37931034482758619,0.34482758620689657,0.41379310344827586,0.44827586206896552,0.34482758620689657,0.48275862068965519,0.37931034482758619,0.27586206896551724,0.2413793103448276,0.44827586206896552,0.37931034482758619,0.44827586206896552,0.31034482758620691,0.48275862068965519,0.31034482758620691,0.31034482758620691,0.27586206896551724,0.48275862068965519,0.51724137931034486,0.37931034482758619,0.27586206896551724,0.34482758620689657,0,1,0,0.1875,0.19354838709677419,{"$f":"(COUNTIFS(CT$3:CT$194,\">=2.5\",CT$3:CT$194,\"<3.5\",ID_HDIG,1))/CT$197","v":6.4516129032258063E-2},0.4,0.23333333333333334,0.35483870967741937,0.12903225806451613,0.22580645161290322,0.19354838709677419,0.29032258064516131,0.35483870967741937,0.25806451612903225,0.19354838709677419,0.19354838709677419,3.2258064516129031E-2,0.29032258064516131,0.19354838709677419,0.35483870967741937,6.4516129032258063E-2,0.25806451612903225,0.2,0.16129032258064516,0.19354838709677419,0.22580645161290322,0.22580645161290322,3.2258064516129031E-2,0.19354838709677419,0.23333333333333334,0.31034482758620691,6.4516129032258063E-2,0,0.19354838709677419,0.25806451612903225,0.16129032258064516,{"$f":"(COUNTIFS(DZ$3:DZ$194,\">=2.5\",DZ$3:DZ$194,\"<3.5\",ID_HDIG,1))/DZ$197","v":0.19354838709677419},0.12903225806451613,0.22580645161290322,0.16666666666666666,0.16666666666666666,0.29032258064516131,0.25806451612903225,0.23333333333333334,0.35483870967741937,0.2,0.26666666666666666,6.4516129032258063E-2,3.2258064516129031E-2,0.12903225806451613,0.16129032258064516,0.1,9.6774193548387094E-2,0.12903225806451613,9.6774193548387094E-2,0.13333333333333333,9.6774193548387094E-2,0.12903225806451613,0.12903225806451613,9.6774193548387094E-2,0.19354838709677419,0.29032258064516131,0.4,9.6774193548387094E-2,0.25806451612903225,0.19354838709677419,0.33333333333333331,6.4516129032258063E-2,0.12903225806451613,0.10344827586206896,6.4516129032258063E-2]
["Low HD: % of responses as 3,5-4,5 (or 4 for Qs 5-7)",{"$f":"(COUNTIFS(B$3:B$194,\">=3.5\",B$3:B$194,\"<4.5\",ID_HDIG,1))/B$197","v":0.28125},0.28125,0.28125,0.3125,0.34375,0.28125,0.28125,0.23333333333333334,0.33333333333333331,0.31034482758620691,0.43333333333333335,0.15384615384615385,0.1875,0.16129032258064516,0.25,0.375,0.23333333333333334,0.28125,0.25,0.21875,0.28125,0.3125,0.13333333333333333,0.2,0.37037037037037035,0.3,0.16129032258064516,0.21875,0.28125,0.41379310344827586,0.25,0.25806451612903225,{"$f":"(COUNTIFS(AH$3:AH$194,\">=3.5\",AH$3:AH$194,\"<4.5\",ID_HDIG,1))/AH$197","v":0.28125},0.375,0.3125,0.23333333333333334,0.25806451612903225,0.25806451612903225,0.25806451612903225,0.33333333333333331,0.2,0.21428571428571427,0.23076923076923078,0.18518518518518517,0.12,0.15384615384615385,7.6923076923076927E-2,0.2857142857142857,0.19354838709677419,0.25,0.23333333333333334,0.61290322580645162,0.41935483870967744,0.61290322580645162,0.61290322580645162,0.6333333333333333,0.61290322580645162,0.33333333333333331,0.51724137931034486,0.33333333333333331,0.5161290322580645,0.6,0.48275862068965519,0.3,{"$f":"(COUNTIFS(BN$3:BN$194,\">=3.5\",BN$3:BN$194,\"<4.5\",ID_HDIG,1))/BN$197","v":0.2},0,0.20689655172413793,0.27586206896551724,0.20689655172413793,0.17241379310344829,0.31034482758620691,0.2413793103448276,0.20689655172413793,0.2413793103448276,0.2413793103448276,0.2413793103448276,0.34482758620689657,0.27586206896551724,0.20689655172413793,0.20689655172413793,0.17241379310344829,0.2413793103448276,0.17241379310344829,0.20689655172413793,0.17241379310344829,0.17241379310344829,0.10344827586206896,0.17241379310344829,0.27586206896551724,0.13793103448275862,0.34482758620689657,1,0,0,0.125,0.58064516129032262,{"$f":"(COUNTIFS(CT$3:CT$194,\">=3.5\",CT$3:CT$194,\"<4.5\",ID_HDIG,1))/CT$197","v":0.32258064516129031},0.4,0.6,0.25806451612903225,0.5161290322580645,0.45161290322580644,0.4838709677419355,0.35483870967741937,0.22580645161290322,0.54838709677419351,0.54838709677419351,0.38709677419354838,0.12903225806451613,0.41935483870967744,0.35483870967741937,0.32258064516129031,0.38709677419354838,0.22580645161290322,0.43333333333333335,0.64516129032258063,0.58064516129032262,0.32258064516129031,0.41935483870967744,0.58064516129032262,0.58064516129032262,0.46666666666666667,0.51724137931034486,0.41935483870967744,0.5161290322580645,0.41935483870967744,0.45161290322580644,0.38709677419354838,{"$f":"(COUNTIFS(DZ$3:DZ$194,\">=3.5\",DZ$3:DZ$194,\"<4.5\",ID_HDIG,1))/DZ$197","v":0.38709677419354838},0.54838709677419351,0.5161290322580645,0.53333333333333333,0.56666666666666665,0.41935483870967744,0.5161290322580645,0.5,0.19354838709677419,0.46666666666666667,0.43333333333333335,0.54838709677419351,0.4838709677419355,0.4838709677419355,0.4838709677419355,0.4,0.4838709677419355,0.45161290322580644,0.45161290322580644,0.53333333333333333,0.54838709677419351,0.38709677419354838,0.41935483870967744,0.54838709677419351,0.5161290322580645,0.38709677419354838,0.46666666666666667,0.38709677419354838,0.38709677419354838,0.41935483870967744,0.4,0.4838709677419355,0.58064516129032262,0.48275862068965519,0.38709677419354838]
["Low HD: % of responses as 4,5-5,5 (or 5 for Qs 5-7)",{"$f":"(COUNTIFS(B$3:B$194,\">=4.5\",B$3:B$194,\"<5.5\",ID_HDIG,1))/B$197","v":9.375E-2},9.375E-2,9.375E-2,9.375E-2,0.15625,9.375E-2,0.125,0.4,6.6666666666666666E-2,0.2413793103448276,0.13333333333333333,7.6923076923076927E-2,6.25E-2,6.4516129032258063E-2,0.1875,6.25E-2,0.4,0.15625,0.125,0.1875,0.125,0.15625,0.1,0.1,0.14814814814814814,0.1,0.16129032258064516,0.1875,0.125,0.13793103448275862,6.25E-2,0.12903225806451613,{"$f":"(COUNTIFS(AH$3:AH$194,\">=4.5\",AH$3:AH$194,\"<5.5\",ID_HDIG,1))/AH$197","v":6.25E-2},0.125,6.25E-2,3.3333333333333333E-2,0.16129032258064516,0.12903225806451613,0.12903225806451613,0.14814814814814814,6.6666666666666666E-2,7.1428571428571425E-2,7.6923076923076927E-2,3.7037037037037035E-2,0,3.8461538461538464E-2,0,0.21428571428571427,0.12903225806451613,6.25E-2,3.3333333333333333E-2,3.2258064516129031E-2,9.6774193548387094E-2,3.2258064516129031E-2,3.2258064516129031E-2,3.3333333333333333E-2,3.2258064516129031E-2,0.23333333333333334,0.17241379310344829,0.4,9.6774193548387094E-2,0.13333333333333333,0.17241379310344829,6.6666666666666666E-2,{"$f":"(COUNTIFS(BN$3:BN$194,\">=4.5\",BN$3:BN$194,\"<5.5\",ID_HDIG,1))/BN$197","v":0.1},9.6774193548387094E-2,0,0,0,0,0,0,3.4482758620689655E-2,0,0,3.4482758620689655E-2,3.4482758620689655E-2,0,3.4482758620689655E-2,0,3.4482758620689655E-2,0,0,0,0,3.4482758620689655E-2,0,0.10344827586206896,3.4482758620689655E-2,0,0,0,0,0,0,0.12903225806451613,{"$f":"(COUNTIFS(CT$3:CT$194,\">=4.5\",CT$3:CT$194,\"<5.5\",ID_HDIG,1))/CT$197","v":0.58064516129032262},3.3333333333333333E-2,6.6666666666666666E-2,6.4516129032258063E-2,0.29032258064516131,0.16129032258064516,0.19354838709677419,0.16129032258064516,0.12903225806451613,0.12903225806451613,9.6774193548387094E-2,0.22580645161290322,0.64516129032258063,0.12903225806451613,0.22580645161290322,6.4516129032258063E-2,0.35483870967741937,0.41935483870967744,0.33333333333333331,0.19354838709677419,0.22580645161290322,0.38709677419354838,0.25806451612903225,0.32258064516129031,0.12903225806451613,0.13333333333333333,0,0.5161290322580645,0.41935483870967744,0.32258064516129031,0.25806451612903225,0.29032258064516131,{"$f":"(COUNTIFS(DZ$3:DZ$194,\">=4.5\",DZ$3:DZ$194,\"<5.5\",ID_HDIG,1))/DZ$197","v":0.32258064516129031},0.29032258064516131,0.19354838709677419,0.23333333333333334,0.2,0.22580645161290322,0.19354838709677419,0.13333333333333333,6.4516129032258063E-2,0.26666666666666666,0.2,0.35483870967741937,0.4838709677419355,0.22580645161290322,0.22580645161290322,0.33333333333333331,0.22580645161290322,0.22580645161290322,0.19354838709677419,0.1,0.16129032258064516,0.29032258064516131,0.29032258064516131,0.16129032258064516,0.12903225806451613,0.19354838709677419,3.3333333333333333E-2,0.29032258064516131,0.19354838709677419,0.16129032258064516,0.1,0.22580645161290322,0.16129032258064516,0.2413793103448276,0.29032258064516131]
["Low HD: % of responses as 5,5-6",{"$f":"(COUNTIFS(B$3:B$194,\">=5.5\",ID_HDIG,1))/B$197","v":0},0,0,0,0,3.125E-2,3.125E-2,0.1,0.1,0.13793103448275862,6.6666666666666666E-2,0,9.375E-2,0,6.25E-2,3.125E-2,0.1,0,3.125E-2,3.125E-2,0,0,0.13333333333333333,6.6666666666666666E-2,0.1111111111111111,6.6666666666666666E-2,6.4516129032258063E-2,3.125E-2,0,3.4482758620689655E-2,0,0,{"$f":"(COUNTIFS(AH$3:AH$194,\">=5.5\",ID_HDIG,1))/AH$197","v":0},3.125E-2,0,0,6.4516129032258063E-2,0,0,3.7037037037037035E-2,3.3333333333333333E-2,7.1428571428571425E-2,0,0,0,0,0,3.5714285714285712E-2,3.2258064516129031E-2,3.125E-2,0,3.2258064516129031E-2,3.2258064516129031E-2,3.2258064516129031E-2,3.2258064516129031E-2,3.3333333333333333E-2,3.2258064516129031E-2,0.1,0.13793103448275862,0.13333333333333333,0]
["Medium HD: % of responses as 1",{"$f":"(COUNTIFS(B$3:B$194,\"<1.5\",ID_HDIG,2))/B$198","v":0},0,0,0,0,0,0,0,0,0,0,0,3.2258064516129031E-2,9.6774193548387094E-2,0,0,0,0,0,0,0,0,0,0,0,0,0,0,0,0,0,0,{"$f":"(COUNTIFS(AH$3:AH$194,\"<1.5\",ID_HDIG,2))/AH$198","v":0},0,0,0,0,0,0,0,0,0,0,0.13793103448275862,0.22222222222222221,6.8965517241379309E-2,0.25,0,0,0,0,0,0,0,0,0,0,0,0,0,0.2413793103448276,6.8965517241379309E-2,6.6666666666666666E-2,0.17241379310344829,{"$f":"(COUNTIFS(BN$3:BN$194,\"<1.5\",ID_HDIG,2))/BN$198","v":0.10344827586206896},0.51851851851851849,6.6666666666666666E-2,3.3333333333333333E-2,0.1,3.3333333333333333E-2,0.1,6.6666666666666666E-2,6.6666666666666666E-2,6.6666666666666666E-2,3.3333333333333333E-2,6.6666666666666666E-2,0.1,6.6666666666666666E-2,3.3333333333333333E-2,0.13333333333333333,0.16666666666666666,0.1,0.1,3.3333333333333333E-2,0.13333333333333333,0.1,3.3333333333333333E-2,0.13333333333333333,0.1,0.1,0.1,0,0,0,6.4516129032258063E-2,3.4482758620689655E-2,{"$f":"(COUNTIFS(CT$3:CT$194,\"<1.5\",ID_HDIG,2))/CT$198","v":0},0,0,0,0,3.3333333333333333E-2,6.4516129032258063E-2,3.2258064516129031E-2,9.6774193548387094E-2,0,3.2258064516129031E-2,3.3333333333333333E-2,0,3.2258064516129031E-2,0,9.6774193548387094E-2,0,0,3.2258064516129031E-2,6.4516129032258063E-2,9.6774193548387094E-2,3.2258064516129031E-2,6.4516129032258063E-2,0,3.2258064516129031E-2,0.16666666666666666,0.16666666666666666,0,3.2258064516129031E-2,0,0,0,{"$f":"(COUNTIFS(DZ$3:DZ$194,\"<1.5\",ID_HDIG,2))/DZ$198","v":0},0,3.2258064516129031E-2,0,6.4516129032258063E-2,3.2258064516129031E-2,3.3333333333333333E-2,0.13333333333333333,0.1,0,6.4516129032258063E-2,0,3.2258064516129031E-2,0,0,3.3333333333333333E-2,0,3.3333333333333333E-2,6.8965517241379309E-2,0,3.3333333333333333E-2,0.1,9.6774193548387094E-2,0,0,0,0,0.12903225806451613,9.6774193548387094E-2,0,0,0,0,6.6666666666666666E-2,3.3333333333333333E-2]
["Medium HD: % of responses as 2 1,5-2,5 (or 2 for Qs 5-7)",{"$f":"(COUNTIFS(B$3:B$194,\">=1.5\",B$3:B$194,\"<2.5\",ID_HDIG,2))/B$198","v":3.2258064516129031E-2},3.2258064516129031E-2,9.6774193548387094E-2,9.6774193548387094E-2,0.16129032258064516,0.19354838709677419,0.22580645161290322,0.25,0.25806451612903225,0.23333333333333334,6.4516129032258063E-2,0.5357142857142857,0.32258064516129031,0.4838709677419355,0.12903225806451613,0.25806451612903225,0.25,9.6774193548387094E-2,0.19354838709677419,0.19354838709677419,0.2,0.22580645161290322,0.31034482758620691,0.46666666666666667,0.5,0.12903225806451613,0.19354838709677419,0.19354838709677419,0.2,0.34482758620689657,9.6774193548387094E-2,0.16666666666666666,{"$f":"(COUNTIFS(AH$3:AH$194,\">=1.5\",AH$3:AH$194,\"<2.5\",ID_HDIG,2))/AH$198","v":0.16129032258064516},3.2258064516129031E-2,0.29032258064516131,0.33333333333333331,3.2258064516129031E-2,0.16666666666666666,0.19354838709677419,0.34482758620689657,0.32258064516129031,0.45161290322580644,0.29629629629629628,0.2413793103448276,0.25925925925925924,0.41379310344827586,0.39285714285714285,0.38461538461538464,0.3,6.4516129032258063E-2,0.33333333333333331,9.6774193548387094E-2,6.4516129032258063E-2,0.12903225806451613,9.6774193548387094E-2,0.12903225806451613,9.6774193548387094E-2,0.25806451612903225,6.8965517241379309E-2,0.1,3.4482758620689655E-2,0.10344827586206896,0.16666666666666666,0.37931034482758619,{"$f":"(COUNTIFS(BN$3:BN$194,\">=1.5\",BN$3:BN$194,\"<2.5\",ID_HDIG,2))/BN$198","v":0.27586206896551724},0.29629629629629628,0.2,0.3,0.2,0.3,0.16666666666666666,0.16666666666666666,0.2,0.23333333333333334,0.26666666666666666,0.23333333333333334,0.3,0.3,0.33333333333333331,0.13333333333333333,0.13333333333333333,0.23333333333333334,0.23333333333333334,0.3,0.23333333333333334,0.3,0.36666666666666664,0.13333333333333333,0.2,0.23333333333333334,0.16666666666666666,0,0,1,0.58064516129032262,6.8965517241379309E-2,{"$f":"(COUNTIFS(CT$3:CT$194,\">=1.5\",CT$3:CT$194,\"<2.5\",ID_HDIG,2))/CT$198","v":0},0.1,0.1,0.13793103448275862,0,6.6666666666666666E-2,0,3.2258064516129031E-2,0.12903225806451613,3.2258064516129031E-2,9.6774193548387094E-2,0.13333333333333333,9.6774193548387094E-2,6.4516129032258063E-2,9.6774193548387094E-2,6.4516129032258063E-2,0,0,0,0,0,9.6774193548387094E-2,9.6774193548387094E-2,0,3.2258064516129031E-2,0,3.3333333333333333E-2,0,3.2258064516129031E-2,0,0,0,{"$f":"(COUNTIFS(DZ$3:DZ$194,\">=1.5\",DZ$3:DZ$194,\"<2.5\",ID_HDIG,2))/DZ$198","v":0},3.2258064516129031E-2,0,0,3.2258064516129031E-2,0,6.6666666666666666E-2,6.6666666666666666E-2,0.2,0,0,0,0,3.3333333333333333E-2,3.3333333333333333E-2,3.3333333333333333E-2,0.12903225806451613,3.3333333333333333E-2,0,0.12903225806451613,0,0.1,9.6774193548387094E-2,0.1,3.3333333333333333E-2,6.8965517241379309E-2,0.13333333333333333,0.16129032258064516,9.6774193548387094E-2,0.10344827586206896,6.8965517241379309E-2,0.1,3.3333333333333333E-2,0.13333333333333333,6.6666666666666666E-2]
["Medium HD: % of responses as 2,5-3,5 (or 3 for Qs 5-7)",{"$f":"(COUNTIFS(B$3:B$194,\">=2.5\",B$3:B$194,\"<3.5\",ID_HDIG,2))/B$198","v":0.54838709677419351},0.5161290322580645,0.45161290322580644,0.4838709677419355,0.38709677419354838,0.41935483870967744,0.35483870967741937,0.21428571428571427,0.19354838709677419,0.1,0.35483870967741937,0.10714285714285714,9.6774193548387094E-2,9.6774193548387094E-2,0.35483870967741937,0.5161290322580645,0.21428571428571427,0.45161290322580644,0.35483870967741937,0.25806451612903225,0.26666666666666666,0.29032258064516131,0.2413793103448276,0.13333333333333333,8.3333333333333329E-2,0.29032258064516131,0.35483870967741937,0.25806451612903225,0.26666666666666666,0.20689655172413793,0.5161290322580645,0.36666666666666664,{"$f":"(COUNTIFS(AH$3:AH$194,\">=2.5\",AH$3:AH$194,\"<3.5\",ID_HDIG,2))/AH$198","v":0.45161290322580644},0.32258064516129031,0.25806451612903225,0.36666666666666664,0.29032258064516131,0.36666666666666664,0.35483870967741937,0.17241379310344829,0.29032258064516131,9.6774193548387094E-2,0.1111111111111111,0.10344827586206896,0.22222222222222221,0.10344827586206896,3.5714285714285712E-2,0.19230769230769232,0.3,0.41935483870967744,0.36666666666666664,0.22580645161290322,0.25806451612903225,0.16129032258064516,0.19354838709677419,0.19354838709677419,0.22580645161290322,0,0.17241379310344829,0.1,0.13793103448275862,0.20689655172413793,0.16666666666666666,3.4482758620689655E-2,{"$f":"(COUNTIFS(BN$3:BN$194,\">=2.5\",BN$3:BN$194,\"<3.5\",ID_HDIG,2))/BN$198","v":3.4482758620689655E-2},7.407407407407407E-2,0.36666666666666664,0.26666666666666666,0.36666666666666664,0.36666666666666664,0.33333333333333331,0.33333333333333331,0.36666666666666664,0.33333333333333331,0.33333333333333331,0.26666666666666666,0.26666666666666666,0.2,0.16666666666666666,0.4,0.4,0.36666666666666664,0.33333333333333331,0.33333333333333331,0.4,0.33333333333333331,0.26666666666666666,0.3,0.26666666666666666,0.4,0.33333333333333331,0,1,0,0.22580645161290322,0.2413793103448276,{"$f":"(COUNTIFS(CT$3:CT$194,\">=2.5\",CT$3:CT$194,\"<3.5\",ID_HDIG,2))/CT$198","v":6.6666666666666666E-2},0.26666666666666666,0.36666666666666664,0.34482758620689657,0.13333333333333333,0.16666666666666666,0.12903225806451613,0.25806451612903225,0.12903225806451613,0.16129032258064516,0.19354838709677419,0.2,0,0.19354838709677419,0.29032258064516131,0.32258064516129031,3.2258064516129031E-2,0.22580645161290322,0.16129032258064516,0.29032258064516131,0.25806451612903225,0.19354838709677419,0.32258064516129031,0.16129032258064516,0.12903225806451613,0.2,0.2,0.19354838709677419,0.16129032258064516,0.19354838709677419,0.12903225806451613,0.19354838709677419,{"$f":"(COUNTIFS(DZ$3:DZ$194,\">=2.5\",DZ$3:DZ$194,\"<3.5\",ID_HDIG,2))/DZ$198","v":9.6774193548387094E-2},9.6774193548387094E-2,0.19354838709677419,0.19354838709677419,0.25806451612903225,0.19354838709677419,0.3,0.13333333333333333,0.56666666666666665,0.12903225806451613,0.22580645161290322,0.22580645161290322,0.22580645161290322,0.26666666666666666,0.23333333333333334,0.16666666666666666,0.16129032258064516,0.2,0.31034482758620691,0.22580645161290322,0.26666666666666666,0.16666666666666666,0.16129032258064516,0.4,0.43333333333333335,0.44827586206896552,0.46666666666666667,6.4516129032258063E-2,0.19354838709677419,0.44827586206896552,0.44827586206896552,0.16666666666666666,0.3,6.6666666666666666E-2,0.16666666666666666]
["Medium HD: % of responses as 3,5-4,5 (or 4 for Qs 5-7)",{"$f":"(COUNTIFS(B$3:B$194,\">=3.5\",B$3:B$194,\"<4.5\",ID_HDIG,2))/B$198","v":0.25806451612903225},0.32258064516129031,0.29032258064516131,0.25806451612903225,0.32258064516129031,0.12903225806451613,0.35483870967741937,0.14285714285714285,0.29032258064516131,0.26666666666666666,0.35483870967741937,0.14285714285714285,0.29032258064516131,0.12903225806451613,0.29032258064516131,0.12903225806451613,0.14285714285714285,0.29032258064516131,0.22580645161290322,0.35483870967741937,0.33333333333333331,0.29032258064516131,0.27586206896551724,0.13333333333333333,0.20833333333333334,0.29032258064516131,0.19354838709677419,0.35483870967741937,0.33333333333333331,0.31034482758620691,0.25806451612903225,0.2,{"$f":"(COUNTIFS(AH$3:AH$194,\">=3.5\",AH$3:AH$194,\"<4.5\",ID_HDIG,2))/AH$198","v":0.22580645161290322},0.35483870967741937,0.29032258064516131,0.13333333333333333,0.35483870967741937,0.2,0.32258064516129031,0.20689655172413793,0.12903225806451613,0.16129032258064516,0.40740740740740738,0.34482758620689657,0.1111111111111111,0.34482758620689657,0.14285714285714285,0.19230769230769232,0.2,0.35483870967741937,0.13333333333333333,0.4838709677419355,0.32258064516129031,0.5161290322580645,0.45161290322580644,0.4838709677419355,0.4838709677419355,0.25806451612903225,0.2413793103448276,0.16666666666666666,0.51724137931034486,0.37931034482758619,0.33333333333333331,0.2413793103448276,{"$f":"(COUNTIFS(BN$3:BN$194,\">=3.5\",BN$3:BN$194,\"<4.5\",ID_HDIG,2))/BN$198","v":0.41379310344827586},7.407407407407407E-2,0.33333333333333331,0.3,0.3,0.3,0.36666666666666664,0.36666666666666664,0.3,0.33333333333333331,0.3,0.33333333333333331,0.23333333333333334,0.3,0.33333333333333331,0.26666666666666666,0.26666666666666666,0.26666666666666666,0.3,0.33333333333333331,0.23333333333333334,0.26666666666666666,0.33333333333333331,0.33333333333333331,0.4,0.26666666666666666,0.36666666666666664,1,0,0,0.12903225806451613,0.48275862068965519,{"$f":"(COUNTIFS(CT$3:CT$194,\">=3.5\",CT$3:CT$194,\"<4.5\",ID_HDIG,2))/CT$198","v":0.26666666666666666},0.6,0.36666666666666664,0.37931034482758619,0.6,0.4,0.41935483870967744,0.38709677419354838,0.45161290322580644,0.54838709677419351,0.5161290322580645,0.36666666666666664,0.29032258064516131,0.38709677419354838,0.32258064516129031,0.41935483870967744,0.38709677419354838,0.45161290322580644,0.41935483870967744,0.29032258064516131,0.5161290322580645,0.38709677419354838,0.35483870967741937,0.5161290322580645,0.58064516129032262,0.43333333333333335,0.46666666666666667,0.4838709677419355,0.41935483870967744,0.4838709677419355,0.61290322580645162,0.58064516129032262,{"$f":"(COUNTIFS(DZ$3:DZ$194,\">=3.5\",DZ$3:DZ$194,\"<4.5\",ID_HDIG,2))/DZ$198","v":0.58064516129032262},0.54838709677419351,0.58064516129032262,0.54838709677419351,0.5161290322580645,0.67741935483870963,0.43333333333333335,0.46666666666666667,0.13333333333333333,0.58064516129032262,0.58064516129032262,0.5161290322580645,0.41935483870967744,0.53333333333333333,0.56666666666666665,0.5,0.45161290322580644,0.53333333333333333,0.37931034482758619,0.4838709677419355,0.4,0.4,0.29032258064516131,0.3,0.36666666666666664,0.2413793103448276,0.3,0.32258064516129031,0.32258064516129031,0.20689655172413793,0.27586206896551724,0.56666666666666665,0.53333333333333333,0.46666666666666667,0.46666666666666667]
["Medium HD: % of responses as 4,5-5,5 (or 5 for Qs 5-7)",{"$f":"(COUNTIFS(B$3:B$194,\">=4.5\",B$3:B$194,\"<5.5\",ID_HDIG,2))/B$198","v":0.16129032258064516},0.12903225806451613,0.16129032258064516,0.16129032258064516,0.12903225806451613,0.25806451612903225,6.4516129032258063E-2,0.2857142857142857,0.22580645161290322,0.23333333333333334,0.22580645161290322,0.17857142857142858,0.22580645161290322,0.16129032258064516,0.19354838709677419,9.6774193548387094E-2,0.2857142857142857,9.6774193548387094E-2,0.22580645161290322,0.12903225806451613,0.13333333333333333,0.12903225806451613,0.13793103448275862,0.2,0.16666666666666666,0.22580645161290322,0.22580645161290322,0.12903225806451613,0.13333333333333333,0.10344827586206896,0.12903225806451613,0.23333333333333334,{"$f":"(COUNTIFS(AH$3:AH$194,\">=4.5\",AH$3:AH$194,\"<5.5\",ID_HDIG,2))/AH$198","v":0.12903225806451613},0.25806451612903225,0.16129032258064516,0.13333333333333333,0.32258064516129031,0.23333333333333334,9.6774193548387094E-2,0.2413793103448276,0.16129032258064516,0.16129032258064516,0.14814814814814814,0.13793103448275862,0.14814814814814814,6.8965517241379309E-2,0.10714285714285714,0.19230769230769232,0.16666666666666666,0.16129032258064516,0.13333333333333333,0.12903225806451613,0.29032258064516131,0.12903225806451613,0.19354838709677419,0.12903225806451613,0.12903225806451613,0.38709677419354838,0.44827586206896552,0.53333333333333333,6.8965517241379309E-2,0.2413793103448276,0.26666666666666666,0.17241379310344829,{"$f":"(COUNTIFS(BN$3:BN$194,\">=4.5\",BN$3:BN$194,\"<5.5\",ID_HDIG,2))/BN$198","v":0.17241379310344829},3.7037037037037035E-2,3.3333333333333333E-2,0.1,3.3333333333333333E-2,0,3.3333333333333333E-2,6.6666666666666666E-2,6.6666666666666666E-2,3.3333333333333333E-2,6.6666666666666666E-2,0.1,0.1,0.13333333333333333,0.13333333333333333,6.6666666666666666E-2,3.3333333333333333E-2,3.3333333333333333E-2,3.3333333333333333E-2,0,0,0,0,0.1,3.3333333333333333E-2,0,3.3333333333333333E-2,0,0,0,0,0.17241379310344829,{"$f":"(COUNTIFS(CT$3:CT$194,\">=4.5\",CT$3:CT$194,\"<5.5\",ID_HDIG,2))/CT$198","v":0.66666666666666663},3.3333333333333333E-2,0.16666666666666666,0.13793103448275862,0.26666666666666666,0.33333333333333331,0.38709677419354838,0.29032258064516131,0.19354838709677419,0.25806451612903225,0.16129032258064516,0.26666666666666666,0.61290322580645162,0.32258064516129031,0.29032258064516131,9.6774193548387094E-2,0.58064516129032262,0.32258064516129031,0.38709677419354838,0.35483870967741937,0.12903225806451613,0.29032258064516131,0.16129032258064516,0.32258064516129031,0.22580645161290322,0.2,0.13333333333333333,0.32258064516129031,0.35483870967741937,0.32258064516129031,0.25806451612903225,0.22580645161290322,{"$f":"(COUNTIFS(DZ$3:DZ$194,\">=4.5\",DZ$3:DZ$194,\"<5.5\",ID_HDIG,2))/DZ$198","v":0.32258064516129031},0.32258064516129031,0.19354838709677419,0.25806451612903225,0.12903225806451613,9.6774193548387094E-2,0.16666666666666666,0.2,0,0.29032258064516131,0.12903225806451613,0.25806451612903225,0.32258064516129031,0.16666666666666666,0.16666666666666666,0.26666666666666666,0.25806451612903225,0.2,0.2413793103448276,0.16129032258064516,0.3,0.23333333333333334,0.35483870967741937,0.2,0.16666666666666666,0.2413793103448276,0.1,0.32258064516129031,0.29032258064516131,0.2413793103448276,0.20689655172413793,0.16666666666666666,0.13333333333333333,0.26666666666666666,0.26666666666666666]
["Medium HD: % of responses as 5,5-6",{"$f":"(COUNTIFS(B$3:B$194,\">=5.5\",ID_HDIG,2))/B$198","v":0},0,0,0,0,0,0,0.10714285714285714,3.2258064516129031E-2,0.16666666666666666,0,3.5714285714285712E-2,3.2258064516129031E-2,3.2258064516129031E-2,3.2258064516129031E-2,0,0.10714285714285714,6.4516129032258063E-2,0,6.4516129032258063E-2,6.6666666666666666E-2,6.4516129032258063E-2,3.4482758620689655E-2,6.6666666666666666E-2,4.1666666666666664E-2,6.4516129032258063E-2,3.2258064516129031E-2,6.4516129032258063E-2,6.6666666666666666E-2,3.4482758620689655E-2,0,3.3333333333333333E-2,{"$f":"(COUNTIFS(AH$3:AH$194,\">=5.5\",ID_HDIG,2))/AH$198","v":3.2258064516129031E-2},3.2258064516129031E-2,0,3.3333333333333333E-2,0,3.3333333333333333E-2,3.2258064516129031E-2,3.4482758620689655E-2,9.6774193548387094E-2,0.12903225806451613,3.7037037037037035E-2,3.4482758620689655E-2,3.7037037037037035E-2,0,7.1428571428571425E-2,3.8461538461538464E-2,3.3333333333333333E-2,0,3.3333333333333333E-2,6.4516129032258063E-2,6.4516129032258063E-2,6.4516129032258063E-2,6.4516129032258063E-2,6.4516129032258063E-2,6.4516129032258063E-2,9.6774193548387094E-2,6.8965517241379309E-2,0.1,0]
["High HD: % of responses as 1",{"$f":"(COUNTIFS(B$3:B$194,\"<1.5\",ID_HDIG,3))/B$199","v":0},0,0,0,0,0,0,0,0,0,0,0,2.7777777777777776E-2,5.7142857142857141E-2,0,0,0,0,0,0,0,0,0,0,0,0,0,0,0,0,0,0,{"$f":"(COUNTIFS(AH$3:AH$194,\"<1.5\",ID_HDIG,3))/AH$199","v":0},0,0,0,0,0,0,0,0,0,0,0,0.2,0.12121212121212122,0.20588235294117646,0,0,0,0,0,0,0,0,0,0,0,0,0,8.5714285714285715E-2,8.8235294117647065E-2,2.9411764705882353E-2,0.20588235294117646,{"$f":"(COUNTIFS(BN$3:BN$194,\"<1.5\",ID_HDIG,3))/BN$199","v":0.11428571428571428},0.29411764705882354,3.0303030303030304E-2,0,3.0303030303030304E-2,3.0303030303030304E-2,0,0,3.125E-2,9.375E-2,0,3.125E-2,0,9.375E-2,0,9.375E-2,9.375E-2,9.375E-2,3.0303030303030304E-2,3.125E-2,6.25E-2,9.375E-2,3.0303030303030304E-2,3.125E-2,3.125E-2,6.25E-2,0,0,0,0,0.16666666666666666,2.7777777777777776E-2,{"$f":"(COUNTIFS(CT$3:CT$194,\"<1.5\",ID_HDIG,3))/CT$199","v":2.7777777777777776E-2},8.3333333333333329E-2,0.17142857142857143,0.11428571428571428,0,2.8571428571428571E-2,2.8571428571428571E-2,8.5714285714285715E-2,0.17647058823529413,5.7142857142857141E-2,8.8235294117647065E-2,8.5714285714285715E-2,2.8571428571428571E-2,0,2.9411764705882353E-2,0,0,5.5555555555555552E-2,2.7777777777777776E-2,0,0,5.5555555555555552E-2,5.7142857142857141E-2,0,0.1111111111111111,0.22222222222222221,0.31428571428571428,2.7777777777777776E-2,5.5555555555555552E-2,5.5555555555555552E-2,2.7777777777777776E-2,2.7777777777777776E-2,{"$f":"(COUNTIFS(DZ$3:DZ$194,\"<1.5\",ID_HDIG,3))/DZ$199","v":0},0,8.5714285714285715E-2,0,0,2.7777777777777776E-2,2.7777777777777776E-2,0.22222222222222221,8.5714285714285715E-2,0,8.5714285714285715E-2,2.8571428571428571E-2,5.5555555555555552E-2,2.8571428571428571E-2,2.9411764705882353E-2,8.5714285714285715E-2,0.14285714285714285,5.5555555555555552E-2,8.3333333333333329E-2,2.8571428571428571E-2,8.5714285714285715E-2,5.7142857142857141E-2,5.8823529411764705E-2,5.5555555555555552E-2,2.7777777777777776E-2,5.8823529411764705E-2,3.0303030303030304E-2,8.5714285714285715E-2,5.8823529411764705E-2,9.0909090909090912E-2,6.0606060606060608E-2,8.5714285714285715E-2,3.0303030303030304E-2,0.11428571428571428,8.5714285714285715E-2]
["High HD: % of responses as 2 1,5-2,5 (or 2 for Qs 5-7)",{"$f":"(COUNTIFS(B$3:B$194,\">=1.5\",B$3:B$194,\"<2.5\",ID_HDIG,3))/B$199","v":8.3333333333333329E-2},0.1111111111111111,0.1111111111111111,0.1111111111111111,0.1111111111111111,0.19444444444444445,0.2,0.16129032258064516,0.17142857142857143,0.2,0.14285714285714285,0.39393939393939392,0.3888888888888889,0.37142857142857144,0.2,0.2,0.16129032258064516,8.3333333333333329E-2,0.2,8.3333333333333329E-2,0.25,0.16666666666666666,0.25,0.36363636363636365,0.36,0.27272727272727271,0.26470588235294118,8.3333333333333329E-2,0.25,0.40740740740740738,0.1111111111111111,0.27777777777777779,{"$f":"(COUNTIFS(AH$3:AH$194,\">=1.5\",AH$3:AH$194,\"<2.5\",ID_HDIG,3))/AH$199","v":0.19444444444444445},2.7777777777777776E-2,0.25714285714285712,0.35294117647058826,0.19444444444444445,0.27777777777777779,0.25,0.375,0.33333333333333331,0.31428571428571428,0.42857142857142855,0.41176470588235292,0.4,0.48484848484848486,0.5,0.20833333333333334,0.22857142857142856,5.5555555555555552E-2,0.35294117647058826,5.5555555555555552E-2,5.5555555555555552E-2,5.5555555555555552E-2,5.5555555555555552E-2,5.5555555555555552E-2,5.5555555555555552E-2,5.7142857142857141E-2,0.11764705882352941,0.10344827586206896,5.7142857142857141E-2,5.8823529411764705E-2,0.11764705882352941,0.17647058823529413,{"$f":"(COUNTIFS(BN$3:BN$194,\">=1.5\",BN$3:BN$194,\"<2.5\",ID_HDIG,3))/BN$199","v":0.17142857142857143},0.35294117647058826,0.15151515151515152,0.18181818181818182,0.18181818181818182,0.18181818181818182,0.18181818181818182,0.15625,9.375E-2,0.125,0.18181818181818182,0.21875,0.21875,0.21875,0.21212121212121213,0.1875,0.125,0.25,0.27272727272727271,0.1875,0.1875,0.28125,0.27272727272727271,0.15625,0.15625,0.28125,0.21212121212121213,0,0,1,0.47222222222222221,8.3333333333333329E-2,{"$f":"(COUNTIFS(CT$3:CT$194,\">=1.5\",CT$3:CT$194,\"<2.5\",ID_HDIG,3))/CT$199","v":0},0.1111111111111111,0.22857142857142856,0.17142857142857143,0.11764705882352941,0.17142857142857143,8.5714285714285715E-2,0.11428571428571428,5.8823529411764705E-2,0.11428571428571428,5.8823529411764705E-2,0.11428571428571428,5.7142857142857141E-2,0.17142857142857143,2.9411764705882353E-2,5.7142857142857141E-2,2.8571428571428571E-2,2.7777777777777776E-2,8.3333333333333329E-2,0.1388888888888889,5.7142857142857141E-2,0.1111111111111111,5.7142857142857141E-2,2.7777777777777776E-2,5.5555555555555552E-2,5.5555555555555552E-2,5.7142857142857141E-2,2.7777777777777776E-2,0,2.7777777777777776E-2,2.7777777777777776E-2,2.7777777777777776E-2,{"$f":"(COUNTIFS(DZ$3:DZ$194,\">=1.5\",DZ$3:DZ$194,\"<2.5\",ID_HDIG,3))/DZ$199","v":2.8571428571428571E-2},0,2.8571428571428571E-2,8.3333333333333329E-2,0.11428571428571428,5.5555555555555552E-2,5.5555555555555552E-2,8.3333333333333329E-2,0.2857142857142857,5.5555555555555552E-2,5.7142857142857141E-2,2.8571428571428571E-2,2.7777777777777776E-2,2.8571428571428571E-2,8.8235294117647065E-2,5.7142857142857141E-2,2.8571428571428571E-2,5.5555555555555552E-2,8.3333333333333329E-2,0.11428571428571428,5.7142857142857141E-2,8.5714285714285715E-2,0.14705882352941177,0.1111111111111111,0.1111111111111111,0.11764705882352941,0.15151515151515152,0.14285714285714285,0.14705882352941177,0.12121212121212122,0.12121212121212122,5.7142857142857141E-2,0.12121212121212122,2.8571428571428571E-2,5.7142857142857141E-2]
["High HD: % of responses as 2,5-3,5 (or 3 for Qs 5-7)",{"$f":"(COUNTIFS(B$3:B$194,\">=2.5\",B$3:B$194,\"<3.5\",ID_HDIG,3))/B$199","v":0.44444444444444442},0.47222222222222221,0.47222222222222221,0.44444444444444442,0.5,0.33333333333333331,0.4,0.19354838709677419,0.25714285714285712,0.14285714285714285,0.25714285714285712,0.27272727272727271,0.16666666666666666,0.22857142857142856,0.37142857142857144,0.42857142857142855,0.19354838709677419,0.3888888888888889,0.2857142857142857,0.3611111111111111,0.27777777777777779,0.27777777777777779,0.125,9.0909090909090912E-2,0.04,0.21212121212121213,0.26470588235294118,0.3611111111111111,0.27777777777777779,7.407407407407407E-2,0.41666666666666669,0.16666666666666666,{"$f":"(COUNTIFS(AH$3:AH$194,\">=2.5\",AH$3:AH$194,\"<3.5\",ID_HDIG,3))/AH$199","v":0.3611111111111111},0.16666666666666666,0.34285714285714286,0.29411764705882354,0.19444444444444445,0.16666666666666666,0.30555555555555558,9.375E-2,0.27272727272727271,0.17142857142857143,8.5714285714285715E-2,8.8235294117647065E-2,5.7142857142857141E-2,3.0303030303030304E-2,0.11764705882352941,8.3333333333333329E-2,0.34285714285714286,0.41666666666666669,0.29411764705882354,0.22222222222222221,0.16666666666666666,0.25,0.16666666666666666,0.27777777777777779,0.22222222222222221,0.14285714285714285,0.20588235294117646,0.20689655172413793,0.11428571428571428,8.8235294117647065E-2,0.11764705882352941,5.8823529411764705E-2,{"$f":"(COUNTIFS(BN$3:BN$194,\">=2.5\",BN$3:BN$194,\"<3.5\",ID_HDIG,3))/BN$199","v":8.5714285714285715E-2},5.8823529411764705E-2,0.51515151515151514,0.45454545454545453,0.45454545454545453,0.48484848484848486,0.42424242424242425,0.40625,0.59375,0.46875,0.45454545454545453,0.375,0.46875,0.4375,0.45454545454545453,0.4375,0.5,0.40625,0.39393939393939392,0.5,0.4375,0.3125,0.45454545454545453,0.40625,0.40625,0.375,0.42424242424242425,0,1,0,0.19444444444444445,0.22222222222222221,{"$f":"(COUNTIFS(CT$3:CT$194,\">=2.5\",CT$3:CT$194,\"<3.5\",ID_HDIG,3))/CT$199","v":0.19444444444444445},0.44444444444444442,0.17142857142857143,0.34285714285714286,0.23529411764705882,0.14285714285714285,0.2,0.2857142857142857,0.23529411764705882,8.5714285714285715E-2,0.17647058823529413,0.17142857142857143,0.14285714285714285,0.2857142857142857,0.38235294117647056,0.4,0.11428571428571428,0.25,0.22222222222222221,0.27777777777777779,0.34285714285714286,0.16666666666666666,0.37142857142857144,0.16666666666666666,0.22222222222222221,0.27777777777777779,0.22857142857142856,2.7777777777777776E-2,8.3333333333333329E-2,8.3333333333333329E-2,0.1111111111111111,0.1388888888888889,{"$f":"(COUNTIFS(DZ$3:DZ$194,\">=2.5\",DZ$3:DZ$194,\"<3.5\",ID_HDIG,3))/DZ$199","v":0.34285714285714286},0.25,0.14285714285714285,0.22222222222222221,0.2,0.30555555555555558,0.30555555555555558,0.25,0.4,0.19444444444444445,0.2857142857142857,5.7142857142857141E-2,5.5555555555555552E-2,0.14285714285714285,8.8235294117647065E-2,0.11428571428571428,8.5714285714285715E-2,0.19444444444444445,0.1111111111111111,0.17142857142857143,0.17142857142857143,0.17142857142857143,0.11764705882352941,0.22222222222222221,0.22222222222222221,0.26470588235294118,0.33333333333333331,0.17142857142857143,0.20588235294117646,0.27272727272727271,0.27272727272727271,0.11428571428571428,0.21212121212121213,0.11428571428571428,0.14285714285714285]
["High HD: % of responses as 3,5-4,5 (or 4 for Qs 5-7)",{"$f":"(COUNTIFS(B$3:B$194,\">=3.5\",B$3:B$194,\"<4.5\",ID_HDIG,3))/B$199","v":0.30555555555555558},0.25,0.25,0.30555555555555558,0.16666666666666666,0.19444444444444445,0.25714285714285712,0.25806451612903225,0.22857142857142856,0.2,0.25714285714285712,0.12121212121212122,0.1111111111111111,0.11428571428571428,0.2,0.22857142857142856,0.25806451612903225,0.3611111111111111,0.22857142857142856,0.27777777777777779,0.27777777777777779,0.3888888888888889,0.25,0.24242424242424243,0.2,0.18181818181818182,0.14705882352941177,0.27777777777777779,0.27777777777777779,0.29629629629629628,0.30555555555555558,0.27777777777777779,{"$f":"(COUNTIFS(AH$3:AH$194,\">=3.5\",AH$3:AH$194,\"<4.5\",ID_HDIG,3))/AH$199","v":0.27777777777777779},0.5,0.2,0.29411764705882354,0.22222222222222221,0.27777777777777779,0.30555555555555558,0.1875,0.15151515151515152,0.2857142857142857,0.2,0.20588235294117646,0.22857142857142856,0.24242424242424243,0.17647058823529413,0.25,0.25714285714285712,0.27777777777777779,0.29411764705882354,0.44444444444444442,0.47222222222222221,0.44444444444444442,0.44444444444444442,0.41666666666666669,0.44444444444444442,0.25714285714285712,0.26470588235294118,0.20689655172413793,0.6,0.61764705882352944,0.58823529411764708,0.38235294117647056,{"$f":"(COUNTIFS(BN$3:BN$194,\">=3.5\",BN$3:BN$194,\"<4.5\",ID_HDIG,3))/BN$199","v":0.6},0.26470588235294118,0.27272727272727271,0.24242424242424243,0.30303030303030304,0.27272727272727271,0.27272727272727271,0.40625,0.25,0.21875,0.30303030303030304,0.3125,0.21875,0.125,0.24242424242424243,0.25,0.25,0.15625,0.27272727272727271,0.25,0.28125,0.21875,0.21212121212121213,0.21875,0.34375,0.21875,0.24242424242424243,1,0,0,0.16666666666666666,0.5,{"$f":"(COUNTIFS(CT$3:CT$194,\">=3.5\",CT$3:CT$194,\"<4.5\",ID_HDIG,3))/CT$199","v":0.19444444444444445},0.33333333333333331,0.2857142857142857,0.2857142857142857,0.44117647058823528,0.4,0.51428571428571423,0.4,0.3235294117647059,0.48571428571428571,0.38235294117647056,0.37142857142857144,0.2857142857142857,0.37142857142857144,0.35294117647058826,0.42857142857142855,0.42857142857142855,0.22222222222222221,0.27777777777777779,0.3888888888888889,0.31428571428571428,0.33333333333333331,0.17142857142857143,0.61111111111111116,0.47222222222222221,0.3888888888888889,0.37142857142857144,0.47222222222222221,0.61111111111111116,0.55555555555555558,0.52777777777777779,0.52777777777777779,{"$f":"(COUNTIFS(DZ$3:DZ$194,\">=3.5\",DZ$3:DZ$194,\"<4.5\",ID_HDIG,3))/DZ$199","v":0.31428571428571428},0.58333333333333337,0.65714285714285714,0.5,0.37142857142857144,0.41666666666666669,0.47222222222222221,0.41666666666666669,0.22857142857142856,0.55555555555555558,0.45714285714285713,0.54285714285714282,0.52777777777777779,0.42857142857142855,0.61764705882352944,0.4,0.65714285714285714,0.3888888888888889,0.55555555555555558,0.45714285714285713,0.42857142857142855,0.4,0.52941176470588236,0.44444444444444442,0.44444444444444442,0.35294117647058826,0.48484848484848486,0.45714285714285713,0.47058823529411764,0.30303030303030304,0.45454545454545453,0.5714285714285714,0.45454545454545453,0.51428571428571423,0.37142857142857144]
["High HD: % of responses as 4,5-5,5 (or 5 for Qs 5-7)",{"$f":"(COUNTIFS(B$3:B$194,\">=4.5\",B$3:B$194,\"<5.5\",ID_HDIG,3))/B$199","v":0.16666666666666666},0.1388888888888889,0.16666666666666666,0.1388888888888889,0.22222222222222221,0.19444444444444445,0.14285714285714285,0.22580645161290322,0.25714285714285712,0.17142857142857143,0.22857142857142856,0.18181818181818182,0.25,0.2,0.22857142857142856,0.14285714285714285,0.22580645161290322,0.1111111111111111,0.22857142857142856,0.22222222222222221,0.16666666666666666,0.1388888888888889,0.28125,0.24242424242424243,0.32,0.24242424242424243,0.23529411764705882,0.22222222222222221,0.16666666666666666,0.18518518518518517,0.16666666666666666,0.25,{"$f":"(COUNTIFS(AH$3:AH$194,\">=4.5\",AH$3:AH$194,\"<5.5\",ID_HDIG,3))/AH$199","v":0.16666666666666666},0.22222222222222221,0.17142857142857143,5.8823529411764705E-2,0.27777777777777779,0.25,0.1388888888888889,0.28125,0.18181818181818182,0.17142857142857143,0.25714285714285712,0.26470588235294118,0.11428571428571428,0.12121212121212122,0,0.41666666666666669,0.14285714285714285,0.22222222222222221,5.8823529411764705E-2,0.25,0.30555555555555558,0.22222222222222221,0.33333333333333331,0.22222222222222221,0.25,0.45714285714285713,0.38235294117647056,0.34482758620689657,0.14285714285714285,0.14705882352941177,0.14705882352941177,0.17647058823529413,{"$f":"(COUNTIFS(BN$3:BN$194,\">=4.5\",BN$3:BN$194,\"<5.5\",ID_HDIG,3))/BN$199","v":2.8571428571428571E-2},2.9411764705882353E-2,3.0303030303030304E-2,0.12121212121212122,3.0303030303030304E-2,3.0303030303030304E-2,0.12121212121212122,3.125E-2,3.125E-2,9.375E-2,6.0606060606060608E-2,6.25E-2,9.375E-2,0.125,9.0909090909090912E-2,3.125E-2,3.125E-2,9.375E-2,3.0303030303030304E-2,3.125E-2,3.125E-2,9.375E-2,3.0303030303030304E-2,0.1875,6.25E-2,6.25E-2,0.12121212121212122,0,0,0,0,0.16666666666666666,{"$f":"(COUNTIFS(CT$3:CT$194,\">=4.5\",CT$3:CT$194,\"<5.5\",ID_HDIG,3))/CT$199","v":0.58333333333333337},2.7777777777777776E-2,0.14285714285714285,8.5714285714285715E-2,0.20588235294117646,0.25714285714285712,0.17142857142857143,0.11428571428571428,0.20588235294117646,0.25714285714285712,0.29411764705882354,0.25714285714285712,0.48571428571428571,0.17142857142857143,0.20588235294117646,0.11428571428571428,0.42857142857142855,0.44444444444444442,0.3888888888888889,0.19444444444444445,0.2857142857142857,0.33333333333333331,0.34285714285714286,0.19444444444444445,0.1388888888888889,5.5555555555555552E-2,2.8571428571428571E-2,0.44444444444444442,0.25,0.27777777777777779,0.30555555555555558,0.27777777777777779,{"$f":"(COUNTIFS(DZ$3:DZ$194,\">=4.5\",DZ$3:DZ$194,\"<5.5\",ID_HDIG,3))/DZ$199","v":0.31428571428571428},0.16666666666666666,8.5714285714285715E-2,0.19444444444444445,0.31428571428571428,0.19444444444444445,0.1388888888888889,2.7777777777777776E-2,0,0.19444444444444445,0.11428571428571428,0.34285714285714286,0.33333333333333331,0.37142857142857144,0.17647058823529413,0.34285714285714286,8.5714285714285715E-2,0.30555555555555558,0.16666666666666666,0.22857142857142856,0.25714285714285712,0.2857142857142857,0.14705882352941177,0.16666666666666666,0.19444444444444445,0.20588235294117646,0,0.14285714285714285,0.11764705882352941,0.21212121212121213,9.0909090909090912E-2,0.17142857142857143,0.18181818181818182,0.22857142857142856,0.34285714285714286]
["High HD: % of responses as 5,5-6",{"$f":"(COUNTIFS(B$3:B$194,\">=5.5\",ID_HDIG,3))/B$199","v":0},2.7777777777777776E-2,0,0,0,8.3333333333333329E-2,0,0.16129032258064516,8.5714285714285715E-2,0.2857142857142857,0.11428571428571428,3.0303030303030304E-2,5.5555555555555552E-2,2.8571428571428571E-2,0,0,0.16129032258064516,5.5555555555555552E-2,5.7142857142857141E-2,5.5555555555555552E-2,2.7777777777777776E-2,2.7777777777777776E-2,9.375E-2,6.0606060606060608E-2,0.08,9.0909090909090912E-2,8.8235294117647065E-2,5.5555555555555552E-2,2.7777777777777776E-2,3.7037037037037035E-2,0,2.7777777777777776E-2,{"$f":"(COUNTIFS(AH$3:AH$194,\">=5.5\",ID_HDIG,3))/AH$199","v":0},8.3333333333333329E-2,2.8571428571428571E-2,0,0.1111111111111111,2.7777777777777776E-2,0,6.25E-2,6.0606060606060608E-2,5.7142857142857141E-2,2.8571428571428571E-2,2.9411764705882353E-2,0,0,0,4.1666666666666664E-2,2.8571428571428571E-2,2.7777777777777776E-2,0,2.7777777777777776E-2,0,2.7777777777777776E-2,0,2.7777777777777776E-2,2.7777777777777776E-2,8.5714285714285715E-2,2.9411764705882353E-2,0.13793103448275862,0]
["Very High HD: % of responses as 1",{"$f":"(COUNTIFS(B$3:B$194,\"<1.5\",ID_HDIG,4))/B$200","v":0},0,0,0,0,0,0,0,0,0,0,0,3.125E-2,9.0909090909090912E-2,0,0,0,0,0,0,0,0,0,0,0,0,0,0,0,0,0,0,{"$f":"(COUNTIFS(AH$3:AH$194,\"<1.5\",ID_HDIG,4))/AH$200","v":0},0,0,0,0,0,0,0,0,0,0,6.25E-2,0.3125,0.12121212121212122,0.33333333333333331,0,0,0,0,0,0,0,0,0,0,0,0,0,0.12903225806451613,9.6774193548387094E-2,0.125,0.21212121212121213,{"$f":"(COUNTIFS(BN$3:BN$194,\"<1.5\",ID_HDIG,4))/BN$200","v":0.11764705882352941},0.32258064516129031,0,0,0,0,0,3.2258064516129031E-2,6.6666666666666666E-2,0,0.10714285714285714,3.2258064516129031E-2,0.16666666666666666,0,0.10714285714285714,9.6774193548387094E-2,0.16666666666666666,0,0.10714285714285714,6.4516129032258063E-2,0.13333333333333333,0,0.14285714285714285,3.2258064516129031E-2,6.6666666666666666E-2,0,0.10714285714285714,0,0,0,0.38235294117647056,0.20588235294117646,{"$f":"(COUNTIFS(CT$3:CT$194,\"<1.5\",ID_HDIG,4))/CT$200","v":0.14705882352941177},0.20588235294117646,0.15151515151515152,0.11764705882352941,0.21212121212121213,0.15151515151515152,0.18181818181818182,0.27272727272727271,0.24242424242424243,9.375E-2,9.375E-2,8.8235294117647065E-2,8.8235294117647065E-2,0.15151515151515152,3.0303030303030304E-2,3.0303030303030304E-2,3.125E-2,2.9411764705882353E-2,3.0303030303030304E-2,2.9411764705882353E-2,2.9411764705882353E-2,8.8235294117647065E-2,2.9411764705882353E-2,0.26470588235294118,0.3125,0.36363636363636365,0.4375,9.0909090909090912E-2,9.0909090909090912E-2,8.8235294117647065E-2,2.9411764705882353E-2,5.8823529411764705E-2,{"$f":"(COUNTIFS(DZ$3:DZ$194,\"<1.5\",ID_HDIG,4))/DZ$200","v":2.9411764705882353E-2},0.23529411764705882,9.0909090909090912E-2,5.8823529411764705E-2,0.21212121212121213,8.8235294117647065E-2,0.12121212121212122,0.33333333333333331,0.21875,5.8823529411764705E-2,0.12121212121212122,0.12121212121212122,0.12121212121212122,2.9411764705882353E-2,2.9411764705882353E-2,2.9411764705882353E-2,3.0303030303030304E-2,0,2.9411764705882353E-2,3.0303030303030304E-2,3.125E-2,5.8823529411764705E-2,2.9411764705882353E-2,2.9411764705882353E-2,0,3.125E-2,0,5.8823529411764705E-2,3.0303030303030304E-2,3.125E-2,3.2258064516129031E-2,2.9411764705882353E-2,3.0303030303030304E-2,2.9411764705882353E-2,3.125E-2]
["Very High HD: % of responses as 2 1,5-2,5 (or 2 for Qs 5-7)",{"$f":"(COUNTIFS(B$3:B$194,\">=1.5\",B$3:B$194,\"<2.5\",ID_HDIG,4))/B$200","v":0},0,0,0,0,0,3.0303030303030304E-2,6.8965517241379309E-2,0,0,0,0.13333333333333333,6.25E-2,0.12121212121212122,3.0303030303030304E-2,3.0303030303030304E-2,6.8965517241379309E-2,0,0,5.8823529411764705E-2,0,5.8823529411764705E-2,3.125E-2,9.6774193548387094E-2,3.5714285714285712E-2,0,3.0303030303030304E-2,5.8823529411764705E-2,0,6.6666666666666666E-2,0,0,{"$f":"(COUNTIFS(AH$3:AH$194,\">=1.5\",AH$3:AH$194,\"<2.5\",ID_HDIG,4))/AH$200","v":2.9411764705882353E-2},0,2.9411764705882353E-2,3.0303030303030304E-2,0,0,2.9411764705882353E-2,6.25E-2,0.125,0.19354838709677419,0.16129032258064516,0.15625,0.125,0.18181818181818182,0.13333333333333333,7.407407407407407E-2,0,0,3.0303030303030304E-2,0,0,0,0,0,0,6.0606060606060608E-2,0,4.1666666666666664E-2,9.6774193548387094E-2,0.61290322580645162,0.5625,0.18181818181818182,{"$f":"(COUNTIFS(BN$3:BN$194,\">=1.5\",BN$3:BN$194,\"<2.5\",ID_HDIG,4))/BN$200","v":5.8823529411764705E-2},0.29032258064516131,9.6774193548387094E-2,9.6774193548387094E-2,0.16129032258064516,9.6774193548387094E-2,9.6774193548387094E-2,9.6774193548387094E-2,0.13333333333333333,0,3.5714285714285712E-2,0.12903225806451613,6.6666666666666666E-2,3.2258064516129031E-2,3.5714285714285712E-2,6.4516129032258063E-2,6.6666666666666666E-2,3.2258064516129031E-2,7.1428571428571425E-2,0.12903225806451613,0.13333333333333333,3.2258064516129031E-2,3.5714285714285712E-2,9.6774193548387094E-2,3.3333333333333333E-2,9.6774193548387094E-2,3.5714285714285712E-2,0,0,1,0.26470588235294118,0.23529411764705882,{"$f":"(COUNTIFS(CT$3:CT$194,\">=1.5\",CT$3:CT$194,\"<2.5\",ID_HDIG,4))/CT$200","v":0.14705882352941177},0.11764705882352941,0.24242424242424243,8.8235294117647065E-2,9.0909090909090912E-2,0.12121212121212122,0.18181818181818182,0.18181818181818182,0.18181818181818182,6.25E-2,9.375E-2,0.11764705882352941,0.20588235294117646,3.0303030303030304E-2,6.0606060606060608E-2,3.0303030303030304E-2,0.125,0,0,0,0,0.14705882352941177,0.11764705882352941,0.17647058823529413,0.125,0.15151515151515152,0.15625,6.0606060606060608E-2,9.0909090909090912E-2,5.8823529411764705E-2,0.14705882352941177,8.8235294117647065E-2,{"$f":"(COUNTIFS(DZ$3:DZ$194,\">=1.5\",DZ$3:DZ$194,\"<2.5\",ID_HDIG,4))/DZ$200","v":8.8235294117647065E-2},0.11764705882352941,3.0303030303030304E-2,2.9411764705882353E-2,9.0909090909090912E-2,5.8823529411764705E-2,6.0606060606060608E-2,0.18181818181818182,0.15625,5.8823529411764705E-2,0.12121212121212122,3.0303030303030304E-2,3.0303030303030304E-2,2.9411764705882353E-2,0,5.8823529411764705E-2,6.0606060606060608E-2,5.8823529411764705E-2,2.9411764705882353E-2,0,6.25E-2,5.8823529411764705E-2,5.8823529411764705E-2,2.9411764705882353E-2,2.9411764705882353E-2,3.125E-2,9.375E-2,5.8823529411764705E-2,9.0909090909090912E-2,3.125E-2,6.4516129032258063E-2,0,3.0303030303030304E-2,5.8823529411764705E-2,9.375E-2]
["Very High HD: % of responses as 2,5-3,5 (or 3 for Qs 5-7)",{"$f":"(COUNTIFS(B$3:B$194,\">=2.5\",B$3:B$194,\"<3.5\",ID_HDIG,4))/B$200","v":5.8823529411764705E-2},5.8823529411764705E-2,5.8823529411764705E-2,2.9411764705882353E-2,0.11764705882352941,5.8823529411764705E-2,0.12121212121212122,0.13793103448275862,6.0606060606060608E-2,0,2.9411764705882353E-2,0.16666666666666666,9.375E-2,0.12121212121212122,6.0606060606060608E-2,0.15151515151515152,0.13793103448275862,5.8823529411764705E-2,2.9411764705882353E-2,0,8.8235294117647065E-2,5.8823529411764705E-2,0,0,0.14285714285714285,0,3.0303030303030304E-2,0,8.8235294117647065E-2,6.6666666666666666E-2,8.8235294117647065E-2,0,{"$f":"(COUNTIFS(AH$3:AH$194,\">=2.5\",AH$3:AH$194,\"<3.5\",ID_HDIG,4))/AH$200","v":0.11764705882352941},5.8823529411764705E-2,8.8235294117647065E-2,6.0606060606060608E-2,2.9411764705882353E-2,0,0.11764705882352941,3.125E-2,0.125,9.6774193548387094E-2,3.2258064516129031E-2,3.125E-2,0.125,3.0303030303030304E-2,0,0.1111111111111111,0.11764705882352941,2.9411764705882353E-2,6.0606060606060608E-2,6.0606060606060608E-2,6.0606060606060608E-2,9.0909090909090912E-2,6.0606060606060608E-2,9.0909090909090912E-2,6.0606060606060608E-2,3.0303030303030304E-2,0.16666666666666666,8.3333333333333329E-2,0.16129032258064516,0,6.25E-2,3.0303030303030304E-2,{"$f":"(COUNTIFS(BN$3:BN$194,\">=2.5\",BN$3:BN$194,\"<3.5\",ID_HDIG,4))/BN$200","v":0},0,0.29032258064516131,0.19354838709677419,0.35483870967741937,0.32258064516129031,0.19354838709677419,0.32258064516129031,0.33333333333333331,0.19354838709677419,0.17857142857142858,0.29032258064516131,0.33333333333333331,0.16129032258064516,0.21428571428571427,0.45161290322580644,0.43333333333333335,0.22580645161290322,0.35714285714285715,0.45161290322580644,0.33333333333333331,9.6774193548387094E-2,0.21428571428571427,0.29032258064516131,0.36666666666666664,9.6774193548387094E-2,0.21428571428571427,0,1,0,0.17647058823529413,0.20588235294117646,{"$f":"(COUNTIFS(CT$3:CT$194,\">=2.5\",CT$3:CT$194,\"<3.5\",ID_HDIG,4))/CT$200","v":0.17647058823529413},0.41176470588235292,0.30303030303030304,0.26470588235294118,0.33333333333333331,0.27272727272727271,0.18181818181818182,0.24242424242424243,0.27272727272727271,0.40625,0.375,0.38235294117647056,0.23529411764705882,0.45454545454545453,0.42424242424242425,0.27272727272727271,0.34375,0.17647058823529413,0.33333333333333331,0.47058823529411764,0.41176470588235292,0.11764705882352941,0.11764705882352941,8.8235294117647065E-2,0.15625,0.24242424242424243,0.1875,0.18181818181818182,0.27272727272727271,0.20588235294117646,0.23529411764705882,0.26470588235294118,{"$f":"(COUNTIFS(DZ$3:DZ$194,\">=2.5\",DZ$3:DZ$194,\"<3.5\",ID_HDIG,4))/DZ$200","v":0.26470588235294118},0.20588235294117646,0.33333333333333331,0.44117647058823528,0.21212121212121213,0.3235294117647059,0.33333333333333331,0.24242424242424243,0.53125,0.3235294117647059,0.42424242424242425,0.24242424242424243,0.27272727272727271,8.8235294117647065E-2,0.14705882352941177,0.14705882352941177,9.0909090909090912E-2,0.17647058823529413,0.11764705882352941,9.0909090909090912E-2,0.15625,0.17647058823529413,0.20588235294117646,0.17647058823529413,0.23529411764705882,0.53125,0.40625,0.17647058823529413,0.24242424242424243,0.53125,0.5161290322580645,0.14705882352941177,0.24242424242424243,0.20588235294117646,0.21875]
["Very High HD: % of responses as 3,5-4,5 (or 4 for Qs 5-7)",{"$f":"(COUNTIFS(B$3:B$194,\">=3.5\",B$3:B$194,\"<4.5\",ID_HDIG,4))/B$200","v":0.11764705882352941},0.20588235294117646,0.17647058823529413,0.14705882352941177,0.26470588235294118,0.20588235294117646,0.30303030303030304,0.10344827586206896,0.24242424242424243,3.0303030303030304E-2,0.17647058823529413,0.13333333333333333,0.15625,0.15151515151515152,0.36363636363636365,0.33333333333333331,0.10344827586206896,8.8235294117647065E-2,0.14705882352941177,0.14705882352941177,8.8235294117647065E-2,0.11764705882352941,0.125,0.19354838709677419,0.10714285714285714,3.2258064516129031E-2,9.0909090909090912E-2,0.14705882352941177,8.8235294117647065E-2,6.6666666666666666E-2,8.8235294117647065E-2,0.17647058823529413,{"$f":"(COUNTIFS(AH$3:AH$194,\">=3.5\",AH$3:AH$194,\"<4.5\",ID_HDIG,4))/AH$200","v":0.26470588235294118},0,0.20588235294117646,0.24242424242424243,5.8823529411764705E-2,0.17647058823529413,0.29411764705882354,0.1875,0.15625,0.16129032258064516,0.29032258064516131,0.28125,0.1875,0.21212121212121213,0.13333333333333333,7.407407407407407E-2,0.29411764705882354,0.20588235294117646,0.24242424242424243,0.21212121212121213,0.18181818181818182,0.18181818181818182,0.18181818181818182,0.21212121212121213,0.21212121212121213,9.0909090909090912E-2,0.22222222222222221,0.125,0.4838709677419355,0.16129032258064516,0.15625,0.48484848484848486,{"$f":"(COUNTIFS(BN$3:BN$194,\">=3.5\",BN$3:BN$194,\"<4.5\",ID_HDIG,4))/BN$200","v":0.70588235294117652},0.29032258064516131,0.54838709677419351,0.58064516129032262,0.38709677419354838,0.54838709677419351,0.4838709677419355,0.35483870967741937,0.33333333333333331,0.45161290322580644,0.5357142857142857,0.32258064516129031,0.26666666666666666,0.35483870967741937,0.42857142857142855,0.19354838709677419,0.23333333333333334,0.41935483870967744,0.32142857142857145,0.22580645161290322,0.36666666666666664,0.61290322580645162,0.5,0.29032258064516131,0.3,0.41935483870967744,0.35714285714285715,1,0,0,0.17647058823529413,0.29411764705882354,{"$f":"(COUNTIFS(CT$3:CT$194,\">=3.5\",CT$3:CT$194,\"<4.5\",ID_HDIG,4))/CT$200","v":0.26470588235294118},0.20588235294117646,0.21212121212121213,0.44117647058823528,0.18181818181818182,0.30303030303030304,0.27272727272727271,0.12121212121212122,0.18181818181818182,0.21875,0.21875,0.20588235294117646,0.3235294117647059,0.21212121212121213,0.39393939393939392,0.30303030303030304,0.28125,0.41176470588235292,0.33333333333333331,0.23529411764705882,0.26470588235294118,0.38235294117647056,0.44117647058823528,0.3235294117647059,0.3125,0.12121212121212122,0.15625,0.39393939393939392,0.33333333333333331,0.5,0.44117647058823528,0.47058823529411764,{"$f":"(COUNTIFS(DZ$3:DZ$194,\">=3.5\",DZ$3:DZ$194,\"<4.5\",ID_HDIG,4))/DZ$200","v":0.5},0.3235294117647059,0.39393939393939392,0.3235294117647059,0.30303030303030304,0.38235294117647056,0.36363636363636365,0.15151515151515152,0,0.38235294117647056,0.24242424242424243,0.42424242424242425,0.33333333333333331,0.44117647058823528,0.5,0.35294117647058826,0.36363636363636365,0.44117647058823528,0.52941176470588236,0.48484848484848486,0.4375,0.35294117647058826,0.38235294117647056,0.47058823529411764,0.47058823529411764,0.34375,0.3125,0.38235294117647056,0.33333333333333331,0.3125,0.35483870967741937,0.47058823529411764,0.36363636363636365,0.29411764705882354,0.3125]
["Very High HD: % of responses as 4,5-5,5 (or 5 for Qs 5-7)",{"$f":"(COUNTIFS(B$3:B$194,\">=4.5\",B$3:B$194,\"<5.5\",ID_HDIG,4))/B$200","v":0.61764705882352944},0.47058823529411764,0.52941176470588236,0.52941176470588236,0.47058823529411764,0.29411764705882354,0.45454545454545453,0.27586206896551724,0.24242424242424243,0.24242424242424243,0.3235294117647059,0.36666666666666664,0.28125,0.30303030303030304,0.21212121212121213,0.42424242424242425,0.27586206896551724,0.5,0.29411764705882354,0.3235294117647059,0.41176470588235292,0.3235294117647059,0.28125,0.32258064516129031,0.25,0.29032258064516131,0.30303030303030304,0.3235294117647059,0.41176470588235292,0.26666666666666666,0.52941176470588236,0.41176470588235292,{"$f":"(COUNTIFS(AH$3:AH$194,\">=4.5\",AH$3:AH$194,\"<5.5\",ID_HDIG,4))/AH$200","v":0.3235294117647059},0.47058823529411764,0.44117647058823528,0.33333333333333331,0.26470588235294118,0.41176470588235292,0.29411764705882354,0.21875,0.28125,0.22580645161290322,0.22580645161290322,0.21875,0.15625,0.24242424242424243,0.3,0.29629629629629628,0.26470588235294118,0.44117647058823528,0.33333333333333331,0.42424242424242425,0.42424242424242425,0.36363636363636365,0.48484848484848486,0.39393939393939392,0.42424242424242425,0.24242424242424243,5.5555555555555552E-2,0.25,0.12903225806451613,0.12903225806451613,9.375E-2,9.0909090909090912E-2,{"$f":"(COUNTIFS(BN$3:BN$194,\">=4.5\",BN$3:BN$194,\"<5.5\",ID_HDIG,4))/BN$200","v":0.11764705882352941},9.6774193548387094E-2,6.4516129032258063E-2,0.12903225806451613,9.6774193548387094E-2,3.2258064516129031E-2,0.22580645161290322,0.19354838709677419,0.13333333333333333,0.35483870967741937,0.14285714285714285,0.22580645161290322,0.16666666666666666,0.45161290322580644,0.21428571428571427,0.19354838709677419,0.1,0.32258064516129031,0.14285714285714285,0.12903225806451613,3.3333333333333333E-2,0.25806451612903225,0.10714285714285714,0.29032258064516131,0.23333333333333334,0.38709677419354838,0.2857142857142857,0,0,0,0,5.8823529411764705E-2,{"$f":"(COUNTIFS(CT$3:CT$194,\">=4.5\",CT$3:CT$194,\"<5.5\",ID_HDIG,4))/CT$200","v":0.26470588235294118},5.8823529411764705E-2,9.0909090909090912E-2,8.8235294117647065E-2,0.18181818181818182,0.15151515151515152,0.18181818181818182,0.18181818181818182,0.12121212121212122,0.21875,0.21875,0.20588235294117646,0.14705882352941177,0.15151515151515152,9.0909090909090912E-2,0.36363636363636365,0.21875,0.38235294117647056,0.30303030303030304,0.26470588235294118,0.29411764705882354,0.26470588235294118,0.29411764705882354,0.14705882352941177,9.375E-2,0.12121212121212122,6.25E-2,0.27272727272727271,0.21212121212121213,0.14705882352941177,0.14705882352941177,0.11764705882352941,{"$f":"(COUNTIFS(DZ$3:DZ$194,\">=4.5\",DZ$3:DZ$194,\"<5.5\",ID_HDIG,4))/DZ$200","v":0.11764705882352941},0.11764705882352941,0.15151515151515152,0.14705882352941177,0.18181818181818182,0.14705882352941177,0.12121212121212122,9.0909090909090912E-2,9.375E-2,0.17647058823529413,9.0909090909090912E-2,0.18181818181818182,0.24242424242424243,0.41176470588235292,0.3235294117647059,0.41176470588235292,0.45454545454545453,0.3235294117647059,0.29411764705882354,0.39393939393939392,0.3125,0.35294117647058826,0.3235294117647059,0.29411764705882354,0.26470588235294118,6.25E-2,0.1875,0.3235294117647059,0.30303030303030304,9.375E-2,3.2258064516129031E-2,0.35294117647058826,0.33333333333333331,0.41176470588235292,0.34375]
["Very High HD: % of responses as 5,5-6",{"$f":"(COUNTIFS(B$3:B$194,\">=5.5\",ID_HDIG,4))/B$200","v":0.20588235294117646},0.26470588235294118,0.23529411764705882,0.29411764705882354,0.14705882352941177,0.44117647058823528,9.0909090909090912E-2,0.41379310344827586,0.45454545454545453,0.72727272727272729,0.47058823529411764,0.2,0.375,0.21212121212121213,0.33333333333333331,6.0606060606060608E-2,0.41379310344827586,0.35294117647058826,0.52941176470588236,0.47058823529411764,0.41176470588235292,0.44117647058823528,0.5625,0.38709677419354838,0.4642857142857143,0.67741935483870963,0.54545454545454541,0.47058823529411764,0.41176470588235292,0.53333333333333333,0.29411764705882354,0.41176470588235292,{"$f":"(COUNTIFS(AH$3:AH$194,\">=5.5\",ID_HDIG,4))/AH$200","v":0.26470588235294118},0.47058823529411764,0.23529411764705882,0.33333333333333331,0.6470588235294118,0.41176470588235292,0.26470588235294118,0.5,0.3125,0.32258064516129031,0.29032258064516131,0.25,9.375E-2,0.21212121212121213,0.1,0.44444444444444442,0.3235294117647059,0.3235294117647059,0.33333333333333331,0.30303030303030304,0.33333333333333331,0.36363636363636365,0.27272727272727271,0.30303030303030304,0.30303030303030304,0.5757575757575758,0.55555555555555558,0.5,0]
["Total: % of responses as 1",{"$f":"(COUNTIF(B$3:B$194,\"<1.5\"))/B$201","v":0},0,0,0,0,0,0,0,0,0,0,0,2.2900763358778626E-2,0.1,0,0,0,0,0,0,0,0,0,0,0,0,0,0,0,0,0,0,{"$f":"(COUNTIF(AH$3:AH$194,\"<1.5\"))/AH$201","v":0},0,0,0,0,0,0,0,0,0,0,9.0163934426229511E-2,0.2857142857142857,0.14049586776859505,0.27966101694915252,0,0,0,0,0,0,0,0,0,0,0,0,0,0.16666666666666666,9.6774193548387094E-2,0.08,0.22222222222222221,{"$f":"(COUNTIF(BN$3:BN$194,\"<1.5\"))/BN$201","v":0.1796875},0.43902439024390244,4.878048780487805E-2,4.065040650406504E-2,5.6910569105691054E-2,6.5040650406504072E-2,3.2520325203252036E-2,4.0983606557377046E-2,7.43801652892562E-2,9.8360655737704916E-2,0.05,7.3770491803278687E-2,9.9173553719008267E-2,9.0163934426229511E-2,6.6666666666666666E-2,0.10655737704918032,0.14049586776859505,9.8360655737704916E-2,7.4999999999999997E-2,8.1967213114754092E-2,0.14049586776859505,0.10655737704918032,0.1,5.737704918032787E-2,6.6115702479338845E-2,8.1967213114754092E-2,5.8333333333333334E-2,0,0,0,0.21052631578947367,6.9230769230769235E-2,{"$f":"(COUNTIF(CT$3:CT$194,\"<1.5\"))/CT$201","v":4.5801526717557252E-2},8.461538461538462E-2,9.375E-2,6.2015503875968991E-2,5.46875E-2,6.2015503875968991E-2,7.6923076923076927E-2,0.1,0.13178294573643412,3.875968992248062E-2,5.46875E-2,6.1538461538461542E-2,3.8167938931297711E-2,4.6153846153846156E-2,3.875968992248062E-2,4.6153846153846156E-2,2.3255813953488372E-2,2.2727272727272728E-2,2.3076923076923078E-2,2.2727272727272728E-2,3.0534351145038167E-2,4.5454545454545456E-2,3.8167938931297711E-2,7.575757575757576E-2,0.11538461538461539,0.22480620155038761,0.26190476190476192,3.0534351145038167E-2,4.5801526717557252E-2,3.787878787878788E-2,1.5151515151515152E-2,3.0303030303030304E-2,{"$f":"(COUNTIF(DZ$3:DZ$194,\"<1.5\"))/DZ$201","v":7.6335877862595417E-3},6.0606060606060608E-2,5.3846153846153849E-2,1.5267175572519083E-2,8.5271317829457363E-2,3.787878787878788E-2,4.6153846153846156E-2,0.20155038759689922,0.125,1.5267175572519083E-2,7.7519379844961239E-2,4.6153846153846156E-2,5.3435114503816793E-2,2.3076923076923078E-2,1.5503875968992248E-2,5.4263565891472867E-2,5.3846153846153849E-2,3.8167938931297711E-2,4.6153846153846156E-2,1.5503875968992248E-2,5.46875E-2,7.6923076923076927E-2,5.3846153846153849E-2,3.0534351145038167E-2,1.5267175572519083E-2,2.3809523809523808E-2,1.6E-2,7.6335877862595422E-2,6.9767441860465115E-2,3.2000000000000001E-2,4.065040650406504E-2,3.0769230769230771E-2,1.5748031496062992E-2,7.03125E-2,7.03125E-2]
["Total: % of responses as 2 1,5-2,5 (or 2 for Qs 5-7)",{"$f":"(COUNTIFS(B$3:B$194,\">=1.5\",B$3:B$194,\"<2.5\"))/B$201","v":5.2631578947368418E-2},6.7669172932330823E-2,9.0225563909774431E-2,9.7744360902255634E-2,0.10526315789473684,0.14285714285714285,0.16793893129770993,0.16949152542372881,0.17054263565891473,0.14173228346456693,7.6923076923076927E-2,0.38461538461538464,0.29770992366412213,0.34615384615384615,0.12977099236641221,0.18320610687022901,0.16949152542372881,9.7744360902255634E-2,0.16666666666666666,0.13533834586466165,0.18181818181818182,0.16541353383458646,0.28455284552845528,0.33870967741935482,0.30769230769230771,0.16800000000000001,0.19379844961240311,0.13533834586466165,0.18181818181818182,0.3,9.7744360902255634E-2,0.16793893129770993,{"$f":"(COUNTIFS(AH$3:AH$194,\">=1.5\",AH$3:AH$194,\"<2.5\"))/AH$201","v":0.15789473684210525},4.5112781954887216E-2,0.21212121212121213,0.28346456692913385,9.8484848484848481E-2,0.16793893129770993,0.18939393939393939,0.3,0.31746031746031744,0.33600000000000002,0.36134453781512604,0.32786885245901637,0.30252100840336132,0.37190082644628097,0.38983050847457629,0.23809523809523808,0.19230769230769232,6.0150375939849621E-2,0.28346456692913385,5.3435114503816793E-2,5.3435114503816793E-2,6.1068702290076333E-2,5.3435114503816793E-2,5.3846153846153849E-2,5.3435114503816793E-2,0.13953488372093023,8.1818181818181818E-2,7.9646017699115043E-2,5.5555555555555552E-2,0.19354838709677419,0.248,0.25396825396825395,{"$f":"(COUNTIFS(BN$3:BN$194,\">=1.5\",BN$3:BN$194,\"<2.5\"))/BN$201","v":0.1640625},0.30081300813008133,0.17886178861788618,0.18699186991869918,0.1951219512195122,0.2032520325203252,0.18699186991869918,0.1721311475409836,0.1487603305785124,0.13114754098360656,0.17499999999999999,0.18852459016393441,0.19834710743801653,0.20491803278688525,0.19166666666666668,0.1721311475409836,0.13223140495867769,0.18852459016393441,0.21666666666666667,0.22131147540983606,0.20661157024793389,0.22131147540983606,0.22500000000000001,0.13934426229508196,0.15702479338842976,0.25409836065573771,0.17499999999999999,0,0,1,0.44360902255639095,0.12307692307692308,{"$f":"(COUNTIFS(CT$3:CT$194,\">=1.5\",CT$3:CT$194,\"<2.5\"))/CT$201","v":4.5801526717557252E-2},0.11538461538461539,0.1640625,0.17829457364341086,7.03125E-2,0.12403100775193798,9.2307692307692313E-2,0.13076923076923078,0.16279069767441862,6.9767441860465115E-2,0.1015625,0.13076923076923078,0.12977099236641221,0.1076923076923077,7.7519379844961239E-2,8.461538461538462E-2,6.9767441860465115E-2,3.0303030303030304E-2,3.0769230769230771E-2,3.787878787878788E-2,1.5267175572519083E-2,0.10606060606060606,9.1603053435114504E-2,6.0606060606060608E-2,7.6923076923076927E-2,6.2015503875968991E-2,7.9365079365079361E-2,2.2900763358778626E-2,4.5801526717557252E-2,3.787878787878788E-2,5.3030303030303032E-2,6.0606060606060608E-2,{"$f":"(COUNTIFS(DZ$3:DZ$194,\">=1.5\",DZ$3:DZ$194,\"<2.5\"))/DZ$201","v":5.3435114503816793E-2},4.5454545454545456E-2,3.0769230769230771E-2,4.5801526717557252E-2,6.2015503875968991E-2,4.5454545454545456E-2,5.3846153846153849E-2,9.3023255813953487E-2,0.234375,4.5801526717557252E-2,6.2015503875968991E-2,1.5384615384615385E-2,1.5267175572519083E-2,5.3846153846153849E-2,6.2015503875968991E-2,6.2015503875968991E-2,9.2307692307692313E-2,6.8702290076335881E-2,9.2307692307692313E-2,0.11627906976744186,6.25E-2,8.461538461538462E-2,0.1076923076923077,9.9236641221374045E-2,7.6335877862595422E-2,8.7301587301587297E-2,0.112,0.13740458015267176,0.10077519379844961,0.12,8.943089430894309E-2,9.2307692307692313E-2,7.874015748031496E-2,7.8125E-2,8.59375E-2]
["Total: % of responses as 2,5-3,5 (or 3 for Qs 5-7)",{"$f":"(COUNTIFS(B$3:B$194,\">=2.5\",B$3:B$194,\"<3.5\"))/B$201","v":0.39097744360902253},0.38345864661654133,0.36090225563909772,0.33834586466165412,0.33834586466165412,0.3007518796992481,0.30534351145038169,0.15254237288135594,0.18604651162790697,0.10236220472440945,0.22307692307692309,0.20512820512820512,0.15267175572519084,0.16153846153846155,0.28244274809160308,0.34351145038167941,0.15254237288135594,0.30827067669172931,0.24242424242424243,0.24060150375939848,0.23484848484848486,0.23308270676691728,0.10569105691056911,0.10483870967741936,6.7307692307692304E-2,0.192,0.24031007751937986,0.24060150375939848,0.23484848484848486,0.13,0.37593984962406013,0.22137404580152673,{"$f":"(COUNTIFS(AH$3:AH$194,\">=2.5\",AH$3:AH$194,\"<3.5\"))/AH$201","v":0.33082706766917291},0.21804511278195488,0.25757575757575757,0.25196850393700787,0.21212121212121213,0.22137404580152673,0.27272727272727271,8.3333333333333329E-2,0.22222222222222221,0.152,8.4033613445378158E-2,7.3770491803278687E-2,0.10084033613445378,6.6115702479338845E-2,5.0847457627118647E-2,0.14285714285714285,0.2846153846153846,0.34586466165413532,0.25196850393700787,0.19083969465648856,0.20610687022900764,0.19083969465648856,0.16793893129770993,0.2076923076923077,0.19083969465648856,7.7519379844961239E-2,0.15454545454545454,0.11504424778761062,0.13492063492063491,0.10483870967741936,0.112,3.968253968253968E-2,{"$f":"(COUNTIFS(BN$3:BN$194,\">=2.5\",BN$3:BN$194,\"<3.5\"))/BN$201","v":6.25E-2},3.2520325203252036E-2,0.3983739837398374,0.33333333333333331,0.4065040650406504,0.3902439024390244,0.32520325203252032,0.36885245901639346,0.43801652892561982,0.33606557377049179,0.36666666666666664,0.32786885245901637,0.33884297520661155,0.26229508196721313,0.32500000000000001,0.41803278688524592,0.4462809917355372,0.32786885245901637,0.39166666666666666,0.40163934426229508,0.37190082644628097,0.25409836065573771,0.35833333333333334,0.37704918032786883,0.35537190082644626,0.28688524590163933,0.33333333333333331,0,1,0,0.19548872180451127,0.2153846153846154,{"$f":"(COUNTIFS(CT$3:CT$194,\">=2.5\",CT$3:CT$194,\"<3.5\"))/CT$201","v":0.12977099236641221},0.38461538461538464,0.265625,0.32558139534883723,0.2109375,0.20155038759689922,0.17692307692307693,0.26923076923076922,0.24806201550387597,0.22480620155038761,0.234375,0.23846153846153847,0.10687022900763359,0.30769230769230771,0.32558139534883723,0.33846153846153848,0.13953488372093023,0.22727272727272727,0.23076923076923078,0.30303030303030304,0.30534351145038169,0.17424242424242425,0.25954198473282442,0.11363636363636363,0.17692307692307693,0.24031007751937986,0.23015873015873015,0.11450381679389313,0.12977099236641221,0.16666666666666666,0.18181818181818182,0.18939393939393939,{"$f":"(COUNTIFS(DZ$3:DZ$194,\">=2.5\",DZ$3:DZ$194,\"<3.5\"))/DZ$201","v":0.22900763358778625},0.17424242424242425,0.22307692307692309,0.25954198473282442,0.20930232558139536,0.28030303030303028,0.3,0.21705426356589147,0.4609375,0.21374045801526717,0.30232558139534882,0.14615384615384616,0.14503816793893129,0.15384615384615385,0.15503875968992248,0.13178294573643412,0.1076923076923077,0.17557251908396945,0.15384615384615385,0.15503875968992248,0.171875,0.16153846153846155,0.15384615384615385,0.22137404580152673,0.26717557251908397,0.38095238095238093,0.4,0.12977099236641221,0.22480620155038761,0.36,0.3902439024390244,0.12307692307692308,0.22047244094488189,0.125,0.1484375]
["Total: % of responses as 3,5-4,5 (or 4 for Qs 5-7)",{"$f":"(COUNTIFS(B$3:B$194,\">=3.5\",B$3:B$194,\"<4.5\"))/B$201","v":0.24060150375939848},0.26315789473684209,0.24812030075187969,0.25563909774436089,0.27067669172932329,0.20300751879699247,0.29770992366412213,0.1864406779661017,0.27131782945736432,0.19685039370078741,0.3,0.13675213675213677,0.18320610687022901,0.13846153846153847,0.27480916030534353,0.26717557251908397,0.1864406779661017,0.25563909774436089,0.21212121212121213,0.24812030075187969,0.24242424242424243,0.2781954887218045,0.1951219512195122,0.19354838709677419,0.22115384615384615,0.2,0.14728682170542637,0.24812030075187969,0.24242424242424243,0.3,0.22556390977443608,0.22900763358778625,{"$f":"(COUNTIFS(AH$3:AH$194,\">=3.5\",AH$3:AH$194,\"<4.5\"))/AH$201","v":0.26315789473684209},0.30827067669172931,0.25,0.2283464566929134,0.2196969696969697,0.22900763358778625,0.29545454545454547,0.22500000000000001,0.15873015873015872,0.20799999999999999,0.27731092436974791,0.25409836065573771,0.16806722689075632,0.23966942148760331,0.13559322033898305,0.2,0.23846153846153847,0.27067669172932329,0.2283464566929134,0.4351145038167939,0.35114503816793891,0.4351145038167939,0.41984732824427479,0.43076923076923079,0.4351145038167939,0.23255813953488372,0.31818181818181818,0.21238938053097345,0.53174603174603174,0.44354838709677419,0.39200000000000002,0.35714285714285715,{"$f":"(COUNTIFS(BN$3:BN$194,\">=3.5\",BN$3:BN$194,\"<4.5\"))/BN$201","v":0.4921875},0.16260162601626016,0.34146341463414637,0.34959349593495936,0.30081300813008133,0.32520325203252032,0.35772357723577236,0.34426229508196721,0.27272727272727271,0.31147540983606559,0.34166666666666667,0.30327868852459017,0.26446280991735538,0.26229508196721313,0.3,0.22950819672131148,0.23140495867768596,0.27049180327868855,0.26666666666666666,0.25409836065573771,0.26446280991735538,0.31967213114754101,0.28333333333333333,0.25409836065573771,0.33057851239669422,0.26229508196721313,0.32500000000000001,1,0,0,0.15037593984962405,0.46153846153846156,{"$f":"(COUNTIFS(CT$3:CT$194,\">=3.5\",CT$3:CT$194,\"<4.5\"))/CT$201","v":0.25954198473282442},0.37692307692307692,0.359375,0.34108527131782945,0.4296875,0.38759689922480622,0.42307692307692307,0.31538461538461537,0.29457364341085274,0.44961240310077522,0.4140625,0.33076923076923076,0.25954198473282442,0.34615384615384615,0.35658914728682173,0.36923076923076925,0.37209302325581395,0.32575757575757575,0.36153846153846153,0.38636363636363635,0.41221374045801529,0.35606060606060608,0.34351145038167941,0.50757575757575757,0.48461538461538461,0.34883720930232559,0.37301587301587302,0.44274809160305345,0.47328244274809161,0.49242424242424243,0.50757575757575757,0.49242424242424243,{"$f":"(COUNTIFS(DZ$3:DZ$194,\">=3.5\",DZ$3:DZ$194,\"<4.5\"))/DZ$201","v":0.44274809160305345},0.5,0.53846153846153844,0.47328244274809161,0.43410852713178294,0.46969696969696972,0.44615384615384618,0.37984496124031009,0.140625,0.49618320610687022,0.4263565891472868,0.50769230769230766,0.44274809160305345,0.46923076923076923,0.54263565891472865,0.41085271317829458,0.49230769230769234,0.45038167938931295,0.48461538461538461,0.48837209302325579,0.453125,0.38461538461538464,0.40769230769230769,0.44274809160305345,0.45038167938931295,0.33333333333333331,0.39200000000000002,0.38931297709923662,0.37984496124031009,0.312,0.37398373983739835,0.52307692307692311,0.48031496062992124,0.4375,0.3828125]
["Total: % of responses as 4,5-5,5 (or 5 for Qs 5-7)",{"$f":"(COUNTIFS(B$3:B$194,\">=4.5\",B$3:B$194,\"<5.5\"))/B$201","v":0.26315789473684209},0.21052631578947367,0.24060150375939848,0.23308270676691728,0.24812030075187969,0.21052631578947367,0.19847328244274809,0.29661016949152541,0.20155038759689922,0.22047244094488189,0.23076923076923078,0.20512820512820512,0.20610687022900764,0.18461538461538463,0.20610687022900764,0.18320610687022901,0.29661016949152541,0.21804511278195488,0.2196969696969697,0.21804511278195488,0.21212121212121213,0.18796992481203006,0.2032520325203252,0.21774193548387097,0.22115384615384615,0.216,0.23255813953488372,0.21804511278195488,0.21212121212121213,0.16,0.22556390977443608,0.25954198473282442,{"$f":"(COUNTIFS(AH$3:AH$194,\">=4.5\",AH$3:AH$194,\"<5.5\"))/AH$201","v":0.17293233082706766},0.27067669172932329,0.21212121212121213,0.14173228346456693,0.25757575757575757,0.25954198473282442,0.16666666666666666,0.22500000000000001,0.17460317460317459,0.16,0.18487394957983194,0.1721311475409836,0.1092436974789916,0.12396694214876033,0.10169491525423729,0.27619047619047621,0.17692307692307693,0.22556390977443608,0.14173228346456693,0.21374045801526717,0.28244274809160308,0.19083969465648856,0.26717557251908397,0.2,0.21374045801526717,0.33333333333333331,0.29090909090909089,0.38938053097345132,0.1111111111111111,0.16129032258064516,0.16800000000000001,0.12698412698412698,{"$f":"(COUNTIFS(BN$3:BN$194,\">=4.5\",BN$3:BN$194,\"<5.5\"))/BN$201","v":0.1015625},6.5040650406504072E-2,3.2520325203252036E-2,8.943089430894309E-2,4.065040650406504E-2,1.6260162601626018E-2,9.7560975609756101E-2,7.3770491803278687E-2,6.6115702479338845E-2,0.12295081967213115,6.6666666666666666E-2,0.10655737704918032,9.9173553719008267E-2,0.18032786885245902,0.11666666666666667,7.3770491803278687E-2,4.9586776859504134E-2,0.11475409836065574,0.05,4.0983606557377046E-2,1.6528925619834711E-2,9.8360655737704916E-2,3.3333333333333333E-2,0.1721311475409836,9.0909090909090912E-2,0.11475409836065574,0.10833333333333334,0,0,0,0,0.13076923076923078,{"$f":"(COUNTIFS(CT$3:CT$194,\">=4.5\",CT$3:CT$194,\"<5.5\"))/CT$201","v":0.51908396946564883},3.8461538461538464E-2,0.1171875,9.3023255813953487E-2,0.234375,0.22480620155038761,0.23076923076923078,0.18461538461538463,0.16279069767441862,0.21705426356589147,0.1953125,0.23846153846153847,0.46564885496183206,0.19230769230769232,0.20155038759689922,0.16153846153846155,0.39534883720930231,0.39393939393939392,0.35384615384615387,0.25,0.23664122137404581,0.31818181818181818,0.26717557251908397,0.24242424242424243,0.14615384615384616,0.12403100775193798,5.5555555555555552E-2,0.38931297709923662,0.30534351145038169,0.26515151515151514,0.24242424242424243,0.22727272727272727,{"$f":"(COUNTIFS(DZ$3:DZ$194,\">=4.5\",DZ$3:DZ$194,\"<5.5\"))/DZ$201","v":0.26717557251908397},0.2196969696969697,0.15384615384615385,0.20610687022900764,0.20930232558139536,0.16666666666666666,0.15384615384615385,0.10852713178294573,3.90625E-2,0.22900763358778625,0.13178294573643412,0.2846153846153846,0.34351145038167941,0.3,0.22480620155038761,0.34108527131782945,0.25384615384615383,0.26717557251908397,0.22307692307692309,0.22480620155038761,0.2578125,0.29230769230769232,0.27692307692307694,0.20610687022900764,0.19083969465648856,0.17460317460317459,0.08,0.26717557251908397,0.22480620155038761,0.17599999999999999,0.10569105691056911,0.23076923076923078,0.20472440944881889,0.2890625,0.3125]
["Total: % of responses as 5,5-6",{"$f":"(COUNTIFS(B$3:B$194,\">=5.5\"))/B$201","v":5.2631578947368418E-2},7.5187969924812026E-2,6.0150375939849621E-2,7.5187969924812026E-2,3.7593984962406013E-2,0.14285714285714285,3.0534351145038167E-2,0.19491525423728814,0.17054263565891473,0.33858267716535434,0.16923076923076924,6.8376068376068383E-2,0.13740458015267176,6.9230769230769235E-2,0.10687022900763359,2.2900763358778626E-2,0.19491525423728814,0.12030075187969924,0.15909090909090909,0.15789473684210525,0.12878787878787878,0.13533834586466165,0.21138211382113822,0.14516129032258066,0.18269230769230768,0.224,0.18604651162790697,0.15789473684210525,0.12878787878787878,0.11,7.5187969924812026E-2,0.12213740458015267,{"$f":"(COUNTIFS(AH$3:AH$194,\">=5.5\"))/AH$201","v":7.5187969924812026E-2},0.15789473684210525,6.8181818181818177E-2,9.4488188976377951E-2,0.21212121212121213,0.12213740458015267,7.575757575757576E-2,0.16666666666666666,0.12698412698412698,0.14399999999999999,9.2436974789915971E-2,8.1967213114754092E-2,3.3613445378151259E-2,5.7851239669421489E-2,4.2372881355932202E-2,0.14285714285714285,0.1076923076923077,9.7744360902255634E-2,9.4488188976377951E-2,0.10687022900763359,0.10687022900763359,0.12213740458015267,9.1603053435114504E-2,0.1076923076923077,0.10687022900763359,0.21705426356589147,0.15454545454545454,0.20353982300884957,0]
[]
["Low HD:no, of responses as 0-1,5 (or 1 for Qs 5-7)",{"$f":"(COUNTIFS(B$3:B$194,\"<1.5\",ID_HDIG,1))","v":0},0,0,0,0,0,0,0,0,0,0,0,0,5,0,0,0,0,0,0,0,0,0,0,0,0,0,0,0,0,0,0,{"$f":"(COUNTIFS(AH$3:AH$194,\"<1.5\",ID_HDIG,1))","v":0},0,0,0,0,0,0,0,0,0,0,5,11,7,9,0,0,0,0,0,0,0,0,0,null,{"$f":"(COUNTIFS(BG$3:BG$194,\"<1.5\",ID_HDIG,1))","v":0},{"$f":"(COUNTIFS(BH$3:BH$194,\"<1.5\",ID_HDIG,1))","v":0},{"$f":"(COUNTIFS(BI$3:BI$194,\"<1.5\",ID_HDIG,1))","v":0},{"$f":"(COUNTIFS(BJ$3:BJ$194,\"<1.5\",ID_HDIG,1))","v":7},null,null,null,null,null,{"$f":"(COUNTIFS(BP$3:BP$194,\"<1.5\",ID_HDIG,1))","v":3},4,3,6,1,2,4,7,2,5,4,6,4,3,4,6,2,6,7,7,6,1,2,5,1,0,0,0,7,0,0,1,{"$f":"(COUNTIFS(CV$3:CV$194,\"<1.5\",ID_HDIG,1))","v":1},0,0,1,1,0,0,0,0,1,1,0,3,2,2,0,0,0,0,0,0,1,0,4,3,0,0,0,0,1,0,0,{"$f":"(COUNTIFS(EB$3:EB$194,\"<1.5\",ID_HDIG,1))","v":0},0,2,0,0,3,3,0,1,1,0,1,0,2,1,2,0,0,2,3,1,1,1,0,1,1,3,0,2,0,0,2,4]
["Low HD: no, of responses as 1,5-2,5 (or 2 for Qs 5-7)",{"$f":"(COUNTIFS(B$3:B$194,\">=1.5\",B$3:B$194,\"<2.5\",ID_HDIG,1))","v":3},4,5,6,5,6,7,6,8,4,3,13,13,13,5,8,6,7,9,7,9,7,17,13,10,8,9,7,9,8,6,7,{"$f":"(COUNTIFS(AH$3:AH$194,\">=1.5\",AH$3:AH$194,\"<2.5\",ID_HDIG,1))","v":8},4,9,13,5,7,9,12,15,11,15,14,11,11,14,8,8,4,13,2,3,2,2,1,null,{"$f":"(COUNTIFS(BG$3:BG$194,\">=1.5\",BG$3:BG$194,\"<2.5\",ID_HDIG,1))","v":6},{"$f":"(COUNTIFS(BH$3:BH$194,\">=1.5\",BH$3:BH$194,\"<2.5\",ID_HDIG,1))","v":3},{"$f":"(COUNTIFS(BI$3:BI$194,\">=1.5\",BI$3:BI$194,\"<2.5\",ID_HDIG,1))","v":2},{"$f":"(COUNTIFS(BJ$3:BJ$194,\">=1.5\",BJ$3:BJ$194,\"<2.5\",ID_HDIG,1))","v":1},null,null,null,null,null,{"$f":"(COUNTIFS(BP$3:BP$194,\">=1.5\",BP$3:BP$194,\"<2.5\",ID_HDIG,1))","v":8},5,7,7,9,8,5,5,6,5,6,8,5,9,6,7,8,8,8,8,6,5,7,12,8,0,0,15,15,3,1,4,{"$f":"(COUNTIFS(CV$3:CV$194,\">=1.5\",CV$3:CV$194,\"<2.5\",ID_HDIG,1))","v":2},10,2,4,3,6,9,2,5,5,5,5,4,6,4,3,1,0,0,2,3,1,3,1,2,0,2,2,1,4,3,1,{"$f":"(COUNTIFS(EB$3:EB$194,\">=1.5\",EB$3:EB$194,\"<2.5\",ID_HDIG,1))","v":2},2,0,2,1,1,9,2,2,0,0,4,4,3,5,4,8,7,4,3,4,5,4,4,2,6,2,7,3,7,4,3,4]
["Low HD: no, of responses as 2,5-3,5 (or 3 for Qs 5-7)",{"$f":"(COUNTIFS(B$3:B$194,\">=2.5\",B$3:B$194,\"<3.5\",ID_HDIG,1))","v":17},16,15,13,11,13,11,2,7,5,8,7,8,6,11,9,2,11,10,11,10,10,2,6,0,8,10,11,10,4,16,12,{"$f":"(COUNTIFS(AH$3:AH$194,\">=2.5\",AH$3:AH$194,\"<3.5\",ID_HDIG,1))","v":13},11,11,9,11,12,10,1,6,7,3,2,0,3,1,5,12,17,9,8,11,8,8,8,null,{"$f":"(COUNTIFS(BG$3:BG$194,\">=2.5\",BG$3:BG$194,\"<3.5\",ID_HDIG,1))","v":4},{"$f":"(COUNTIFS(BH$3:BH$194,\">=2.5\",BH$3:BH$194,\"<3.5\",ID_HDIG,1))","v":2},{"$f":"(COUNTIFS(BI$3:BI$194,\">=2.5\",BI$3:BI$194,\"<3.5\",ID_HDIG,1))","v":2},{"$f":"(COUNTIFS(BJ$3:BJ$194,\">=2.5\",BJ$3:BJ$194,\"<3.5\",ID_HDIG,1))","v":4},null,null,null,null,null,{"$f":"(COUNTIFS(BP$3:BP$194,\">=2.5\",BP$3:BP$194,\"<3.5\",ID_HDIG,1))","v":12},12,13,11,10,12,13,10,14,11,8,7,13,11,13,9,14,9,9,8,14,15,11,8,10,0,21,0,6,6,2,12,{"$f":"(COUNTIFS(CV$3:CV$194,\">=2.5\",CV$3:CV$194,\"<3.5\",ID_HDIG,1))","v":7},11,4,7,6,9,11,8,6,6,1,9,6,11,2,8,6,5,6,7,7,1,6,7,9,2,0,6,8,5,6,4,{"$f":"(COUNTIFS(EB$3:EB$194,\">=2.5\",EB$3:EB$194,\"<3.5\",ID_HDIG,1))","v":7},5,5,9,8,7,11,6,8,2,1,4,5,3,3,4,3,4,3,4,4,3,6,9,12,3,8,6,10,2,4,3,2]
["Low HD: no, of responses as 3,5-4,5 (or 4 for Qs 5-7)",{"$f":"(COUNTIFS(B$3:B$194,\">=3.5\",B$3:B$194,\"<4.5\",ID_HDIG,1))","v":9},9,9,10,11,9,9,7,10,9,13,4,6,5,8,12,7,9,8,7,9,10,4,6,10,9,5,7,9,12,8,8,{"$f":"(COUNTIFS(AH$3:AH$194,\">=3.5\",AH$3:AH$194,\"<4.5\",ID_HDIG,1))","v":9},12,10,7,8,8,8,9,6,6,6,5,3,4,2,8,6,8,7,19,13,19,19,19,null,{"$f":"(COUNTIFS(BG$3:BG$194,\">=3.5\",BG$3:BG$194,\"<4.5\",ID_HDIG,1))","v":10},{"$f":"(COUNTIFS(BH$3:BH$194,\">=3.5\",BH$3:BH$194,\"<4.5\",ID_HDIG,1))","v":15},{"$f":"(COUNTIFS(BI$3:BI$194,\">=3.5\",BI$3:BI$194,\"<4.5\",ID_HDIG,1))","v":10},{"$f":"(COUNTIFS(BJ$3:BJ$194,\">=3.5\",BJ$3:BJ$194,\"<4.5\",ID_HDIG,1))","v":16},null,null,null,null,null,{"$f":"(COUNTIFS(BP$3:BP$194,\">=3.5\",BP$3:BP$194,\"<4.5\",ID_HDIG,1))","v":6},8,6,5,9,7,6,7,7,7,10,8,6,6,5,7,5,6,5,5,3,5,8,4,10,19,0,0,4,18,10,12,{"$f":"(COUNTIFS(CV$3:CV$194,\">=3.5\",CV$3:CV$194,\"<4.5\",ID_HDIG,1))","v":18},8,16,14,15,11,7,17,17,12,4,13,11,10,12,7,13,20,18,10,13,18,18,14,15,13,16,13,14,12,12,17,{"$f":"(COUNTIFS(EB$3:EB$194,\">=3.5\",EB$3:EB$194,\"<4.5\",ID_HDIG,1))","v":16},16,17,13,16,15,6,14,13,17,15,15,15,12,15,14,14,16,17,12,13,17,16,12,14,12,12,13,12,15,18,14,12]
["Low HD: no, of responses as 4,5-5,5 (or 5 for Qs 5-7)",{"$f":"(COUNTIFS(B$3:B$194,\">=4.5\",B$3:B$194,\"<5.5\",ID_HDIG,1))","v":3},3,3,3,5,3,4,12,2,7,4,2,2,2,6,2,12,5,4,6,4,5,3,3,4,3,5,6,4,4,2,4,{"$f":"(COUNTIFS(AH$3:AH$194,\">=4.5\",AH$3:AH$194,\"<5.5\",ID_HDIG,1))","v":2},4,2,1,5,4,4,4,2,2,2,1,0,1,0,6,4,2,1,1,3,1,1,1,null,{"$f":"(COUNTIFS(BG$3:BG$194,\">=4.5\",BG$3:BG$194,\"<5.5\",ID_HDIG,1))","v":7},{"$f":"(COUNTIFS(BH$3:BH$194,\">=4.5\",BH$3:BH$194,\"<5.5\",ID_HDIG,1))","v":5},{"$f":"(COUNTIFS(BI$3:BI$194,\">=4.5\",BI$3:BI$194,\"<5.5\",ID_HDIG,1))","v":12},{"$f":"(COUNTIFS(BJ$3:BJ$194,\">=4.5\",BJ$3:BJ$194,\"<5.5\",ID_HDIG,1))","v":3},null,null,null,null,null,{"$f":"(COUNTIFS(BP$3:BP$194,\">=4.5\",BP$3:BP$194,\"<5.5\",ID_HDIG,1))","v":0},0,0,0,0,0,1,0,0,1,1,0,1,0,1,0,0,0,0,1,0,3,1,0,0,0,0,0,0,4,18,1,{"$f":"(COUNTIFS(CV$3:CV$194,\">=4.5\",CV$3:CV$194,\"<5.5\",ID_HDIG,1))","v":2},2,9,5,6,5,4,4,3,7,20,4,7,2,11,13,10,6,7,12,8,10,4,4,0,16,13,10,8,9,10,9,{"$f":"(COUNTIFS(EB$3:EB$194,\">=4.5\",EB$3:EB$194,\"<5.5\",ID_HDIG,1))","v":6},7,6,7,6,4,2,8,6,11,15,7,7,10,7,7,6,3,5,9,9,5,4,6,1,9,6,5,3,7,5,7,9]
["Low HD: no, of responses as 5,5-6",{"$f":"(COUNTIFS(B$3:B$194,\">=5.5\",ID_HDIG,1))","v":0},0,0,0,0,1,1,3,3,4,2,0,3,0,2,1,3,0,1,1,0,0,4,2,3,2,2,1,0,1,0,0,{"$f":"(COUNTIFS(AH$3:AH$194,\">=5.5\",ID_HDIG,1))","v":0},1,0,0,2,0,0,1,1,2,0,0,0,0,0,1,1,1,0,1,1,1,1,1,null,{"$f":"(COUNTIFS(BG$3:BG$194,\">=5.5\",ID_HDIG,1))","v":3},{"$f":"(COUNTIFS(BH$3:BH$194,\">=5.5\",ID_HDIG,1))","v":4},{"$f":"(COUNTIFS(BI$3:BI$194,\">=5.5\",ID_HDIG,1))","v":4},{"$f":"(COUNTIFS(BJ$3:BJ$194,\">=5.5\",ID_HDIG,1))","v":0}]
["Medium HD: no, of responses as 1",{"$f":"(COUNTIFS(B$3:B$194,\"<1.5\",ID_HDIG,2))","v":0},0,0,0,0,0,0,0,0,0,0,0,1,3,0,0,0,0,0,0,0,0,0,0,0,0,0,0,0,0,0,0,{"$f":"(COUNTIFS(AH$3:AH$194,\"<1.5\",ID_HDIG,2))","v":0},0,0,0,0,0,0,0,0,0,0,4,6,2,7,0,0,0,0,0,0,0,0,0,null,{"$f":"(COUNTIFS(BG$3:BG$194,\"<1.5\",ID_HDIG,2))","v":0},{"$f":"(COUNTIFS(BH$3:BH$194,\"<1.5\",ID_HDIG,2))","v":0},{"$f":"(COUNTIFS(BI$3:BI$194,\"<1.5\",ID_HDIG,2))","v":0},{"$f":"(COUNTIFS(BJ$3:BJ$194,\"<1.5\",ID_HDIG,2))","v":7},null,null,null,null,null,{"$f":"(COUNTIFS(BP$3:BP$194,\"<1.5\",ID_HDIG,2))","v":2},1,3,1,3,2,2,2,1,2,3,2,1,4,5,3,3,1,4,3,1,4,3,3,3,0,0,0,2,1,0,0,{"$f":"(COUNTIFS(CV$3:CV$194,\"<1.5\",ID_HDIG,2))","v":0},0,0,1,2,1,3,0,1,1,0,1,0,3,0,0,1,2,3,1,2,0,1,5,5,0,1,0,0,0,0,0,{"$f":"(COUNTIFS(EB$3:EB$194,\"<1.5\",ID_HDIG,2))","v":1},0,2,1,1,4,3,0,2,0,1,0,0,1,0,1,2,0,1,3,3,0,0,0,0,4,3,0,0,0,0,2,1]
["Medium HD: no, of responses as 2 1,5-2,5 (or 2 for Qs 5-7)",{"$f":"(COUNTIFS(B$3:B$194,\">=1.5\",B$3:B$194,\"<2.5\",ID_HDIG,2))","v":1},1,3,3,5,6,7,7,8,7,2,15,10,15,4,8,7,3,6,6,6,7,9,14,12,4,6,6,6,10,3,5,{"$f":"(COUNTIFS(AH$3:AH$194,\">=1.5\",AH$3:AH$194,\"<2.5\",ID_HDIG,2))","v":5},1,9,10,1,5,6,10,10,14,8,7,7,12,11,10,9,2,10,3,2,4,3,4,null,{"$f":"(COUNTIFS(BG$3:BG$194,\">=1.5\",BG$3:BG$194,\"<2.5\",ID_HDIG,2))","v":8},{"$f":"(COUNTIFS(BH$3:BH$194,\">=1.5\",BH$3:BH$194,\"<2.5\",ID_HDIG,2))","v":2},{"$f":"(COUNTIFS(BI$3:BI$194,\">=1.5\",BI$3:BI$194,\"<2.5\",ID_HDIG,2))","v":3},{"$f":"(COUNTIFS(BJ$3:BJ$194,\">=1.5\",BJ$3:BJ$194,\"<2.5\",ID_HDIG,2))","v":1},null,null,null,null,null,{"$f":"(COUNTIFS(BP$3:BP$194,\">=1.5\",BP$3:BP$194,\"<2.5\",ID_HDIG,2))","v":6},9,6,9,5,5,6,7,8,7,9,9,10,4,4,7,7,9,7,9,11,4,6,7,5,0,0,18,18,2,0,3,{"$f":"(COUNTIFS(CV$3:CV$194,\">=1.5\",CV$3:CV$194,\"<2.5\",ID_HDIG,2))","v":3},4,0,2,0,1,4,1,3,4,3,2,3,2,0,0,0,0,0,3,3,0,1,0,1,0,1,0,0,0,0,1,{"$f":"(COUNTIFS(EB$3:EB$194,\">=1.5\",EB$3:EB$194,\"<2.5\",ID_HDIG,2))","v":0},0,1,0,2,2,6,0,0,0,0,1,1,1,4,1,0,4,0,3,3,3,1,2,4,5,3,3,2,3,1,4,2]
["Medium HD: no, of responses as 2,5-3,5 (or 3 for Qs 5-7)",{"$f":"(COUNTIFS(B$3:B$194,\">=2.5\",B$3:B$194,\"<3.5\",ID_HDIG,2))","v":17},16,14,15,12,13,11,6,6,3,11,3,3,3,11,16,6,14,11,8,8,9,7,4,2,9,11,8,8,6,16,11,{"$f":"(COUNTIFS(AH$3:AH$194,\">=2.5\",AH$3:AH$194,\"<3.5\",ID_HDIG,2))","v":14},10,8,11,9,11,11,5,9,3,3,3,6,3,1,5,9,13,11,7,8,5,6,6,null,{"$f":"(COUNTIFS(BG$3:BG$194,\">=2.5\",BG$3:BG$194,\"<3.5\",ID_HDIG,2))","v":0},{"$f":"(COUNTIFS(BH$3:BH$194,\">=2.5\",BH$3:BH$194,\"<3.5\",ID_HDIG,2))","v":5},{"$f":"(COUNTIFS(BI$3:BI$194,\">=2.5\",BI$3:BI$194,\"<3.5\",ID_HDIG,2))","v":3},{"$f":"(COUNTIFS(BJ$3:BJ$194,\">=2.5\",BJ$3:BJ$194,\"<3.5\",ID_HDIG,2))","v":4},null,null,null,null,null,{"$f":"(COUNTIFS(BP$3:BP$194,\">=2.5\",BP$3:BP$194,\"<3.5\",ID_HDIG,2))","v":11},8,11,11,10,10,11,10,10,8,8,6,5,12,12,11,10,10,12,10,8,9,8,12,10,0,25,0,7,7,2,8,{"$f":"(COUNTIFS(CV$3:CV$194,\">=2.5\",CV$3:CV$194,\"<3.5\",ID_HDIG,2))","v":11},10,4,5,4,8,4,5,6,6,0,6,9,10,1,7,5,9,8,6,10,5,4,6,6,6,5,6,4,6,3,3,{"$f":"(COUNTIFS(EB$3:EB$194,\">=2.5\",EB$3:EB$194,\"<3.5\",ID_HDIG,2))","v":6},6,8,6,9,4,17,4,7,7,7,8,7,5,5,6,9,7,8,5,5,12,13,13,14,2,6,13,13,5,9,2,5]
["Medium HD: no, of responses as 3,5-4,5 (or 4 for Qs 5-7)",{"$f":"(COUNTIFS(B$3:B$194,\">=3.5\",B$3:B$194,\"<4.5\",ID_HDIG,2))","v":8},10,9,8,10,4,11,4,9,8,11,4,9,4,9,4,4,9,7,11,10,9,8,4,5,9,6,11,10,9,8,6,{"$f":"(COUNTIFS(AH$3:AH$194,\">=3.5\",AH$3:AH$194,\"<4.5\",ID_HDIG,2))","v":7},11,9,4,11,6,10,6,4,5,11,10,3,10,4,5,6,11,4,15,10,16,14,15,null,{"$f":"(COUNTIFS(BG$3:BG$194,\">=3.5\",BG$3:BG$194,\"<4.5\",ID_HDIG,2))","v":8},{"$f":"(COUNTIFS(BH$3:BH$194,\">=3.5\",BH$3:BH$194,\"<4.5\",ID_HDIG,2))","v":7},{"$f":"(COUNTIFS(BI$3:BI$194,\">=3.5\",BI$3:BI$194,\"<4.5\",ID_HDIG,2))","v":5},{"$f":"(COUNTIFS(BJ$3:BJ$194,\">=3.5\",BJ$3:BJ$194,\"<4.5\",ID_HDIG,2))","v":15},null,null,null,null,null,{"$f":"(COUNTIFS(BP$3:BP$194,\">=3.5\",BP$3:BP$194,\"<4.5\",ID_HDIG,2))","v":10},9,9,9,11,11,9,10,9,10,7,9,10,8,8,8,9,10,7,8,10,10,12,8,11,22,0,0,4,14,8,18,{"$f":"(COUNTIFS(CV$3:CV$194,\">=3.5\",CV$3:CV$194,\"<4.5\",ID_HDIG,2))","v":11},11,18,12,13,12,14,17,16,11,9,12,10,13,12,14,13,9,16,12,11,16,18,13,14,15,13,15,19,18,18,17,{"$f":"(COUNTIFS(EB$3:EB$194,\">=3.5\",EB$3:EB$194,\"<4.5\",ID_HDIG,2))","v":18},17,16,21,13,14,4,18,18,16,13,16,17,15,14,16,11,15,12,12,9,9,11,7,9,10,10,6,8,17,16,14,14]
["Medium HD: no, of responses as 4,5-5,5 (or 5 for Qs 5-7)",{"$f":"(COUNTIFS(B$3:B$194,\">=4.5\",B$3:B$194,\"<5.5\",ID_HDIG,2))","v":5},4,5,5,4,8,2,8,7,7,7,5,7,5,6,3,8,3,7,4,4,4,4,6,4,7,7,4,4,3,4,7,{"$f":"(COUNTIFS(AH$3:AH$194,\">=4.5\",AH$3:AH$194,\"<5.5\",ID_HDIG,2))","v":4},8,5,4,10,7,3,7,5,5,4,4,4,2,3,5,5,5,4,4,9,4,6,4,null,{"$f":"(COUNTIFS(BG$3:BG$194,\">=4.5\",BG$3:BG$194,\"<5.5\",ID_HDIG,2))","v":12},{"$f":"(COUNTIFS(BH$3:BH$194,\">=4.5\",BH$3:BH$194,\"<5.5\",ID_HDIG,2))","v":13},{"$f":"(COUNTIFS(BI$3:BI$194,\">=4.5\",BI$3:BI$194,\"<5.5\",ID_HDIG,2))","v":16},{"$f":"(COUNTIFS(BJ$3:BJ$194,\">=4.5\",BJ$3:BJ$194,\"<5.5\",ID_HDIG,2))","v":2},null,null,null,null,null,{"$f":"(COUNTIFS(BP$3:BP$194,\">=4.5\",BP$3:BP$194,\"<5.5\",ID_HDIG,2))","v":1},3,1,0,1,2,2,1,2,3,3,4,4,2,1,1,1,0,0,0,0,3,1,0,1,0,0,0,0,5,20,1,{"$f":"(COUNTIFS(CV$3:CV$194,\">=4.5\",CV$3:CV$194,\"<5.5\",ID_HDIG,2))","v":5},4,8,10,12,9,6,8,5,8,19,10,9,3,18,10,12,11,4,9,5,10,7,6,4,10,11,10,8,7,10,10,{"$f":"(COUNTIFS(EB$3:EB$194,\">=4.5\",EB$3:EB$194,\"<5.5\",ID_HDIG,2))","v":6},8,4,3,5,6,0,9,4,8,10,5,5,8,8,6,7,5,9,7,11,6,5,7,3,10,9,7,6,5,4,8,8]
["Medium HD: no, of responses as 5,5-6",{"$f":"(COUNTIFS(B$3:B$194,\">=5.5\",ID_HDIG,2))","v":0},0,0,0,0,0,0,3,1,5,0,1,1,1,1,0,3,2,0,2,2,2,1,2,1,2,1,2,2,1,0,1,{"$f":"(COUNTIFS(AH$3:AH$194,\">=5.5\",ID_HDIG,2))","v":1},1,0,1,0,1,1,1,3,4,1,1,1,0,2,1,1,0,1,2,2,2,2,2,null,{"$f":"(COUNTIFS(BG$3:BG$194,\">=5.5\",ID_HDIG,2))","v":3},{"$f":"(COUNTIFS(BH$3:BH$194,\">=5.5\",ID_HDIG,2))","v":2},{"$f":"(COUNTIFS(BI$3:BI$194,\">=5.5\",ID_HDIG,2))","v":3},{"$f":"(COUNTIFS(BJ$3:BJ$194,\">=5.5\",ID_HDIG,2))","v":0}]
["High HD: no, of responses as 1",{"$f":"(COUNTIFS(B$3:B$194,\"<1.5\",ID_HDIG,3))","v":0},0,0,0,0,0,0,0,0,0,0,0,1,2,0,0,0,0,0,0,0,0,0,0,0,0,0,0,0,0,0,0,{"$f":"(COUNTIFS(AH$3:AH$194,\"<1.5\",ID_HDIG,3))","v":0},0,0,0,0,0,0,0,0,0,0,0,7,4,7,0,0,0,0,0,0,0,0,0,null,{"$f":"(COUNTIFS(BG$3:BG$194,\"<1.5\",ID_HDIG,3))","v":0},{"$f":"(COUNTIFS(BH$3:BH$194,\"<1.5\",ID_HDIG,3))","v":0},{"$f":"(COUNTIFS(BI$3:BI$194,\"<1.5\",ID_HDIG,3))","v":0},{"$f":"(COUNTIFS(BJ$3:BJ$194,\"<1.5\",ID_HDIG,3))","v":3},null,null,null,null,null,{"$f":"(COUNTIFS(BP$3:BP$194,\"<1.5\",ID_HDIG,3))","v":1},0,1,1,0,0,1,3,0,1,0,3,0,3,3,3,1,1,2,3,1,1,1,2,0,0,0,0,6,1,1,3,{"$f":"(COUNTIFS(CV$3:CV$194,\"<1.5\",ID_HDIG,3))","v":6},4,0,1,1,3,6,2,3,3,1,0,1,0,0,2,1,0,0,2,2,0,4,8,11,1,2,2,1,1,0,0,{"$f":"(COUNTIFS(EB$3:EB$194,\"<1.5\",ID_HDIG,3))","v":3},0,0,1,1,8,3,0,3,1,2,1,1,3,5,2,3,1,3,2,2,2,1,2,1,3,2,3,2,3,1,4,3]
["High HD: no, of responses as 2 1,5-2,5 (or 2 for Qs 5-7)",{"$f":"(COUNTIFS(B$3:B$194,\">=1.5\",B$3:B$194,\"<2.5\",ID_HDIG,3))","v":3},4,4,4,4,7,7,5,6,7,5,13,14,13,7,7,5,3,7,3,9,6,8,12,9,9,9,3,9,11,4,10,{"$f":"(COUNTIFS(AH$3:AH$194,\">=1.5\",AH$3:AH$194,\"<2.5\",ID_HDIG,3))","v":7},1,9,12,7,10,9,12,11,11,15,14,14,16,17,5,8,2,12,2,2,2,2,2,null,{"$f":"(COUNTIFS(BG$3:BG$194,\">=1.5\",BG$3:BG$194,\"<2.5\",ID_HDIG,3))","v":2},{"$f":"(COUNTIFS(BH$3:BH$194,\">=1.5\",BH$3:BH$194,\"<2.5\",ID_HDIG,3))","v":4},{"$f":"(COUNTIFS(BI$3:BI$194,\">=1.5\",BI$3:BI$194,\"<2.5\",ID_HDIG,3))","v":3},{"$f":"(COUNTIFS(BJ$3:BJ$194,\">=1.5\",BJ$3:BJ$194,\"<2.5\",ID_HDIG,3))","v":2},null,null,null,null,null,{"$f":"(COUNTIFS(BP$3:BP$194,\">=1.5\",BP$3:BP$194,\"<2.5\",ID_HDIG,3))","v":5},6,6,6,6,5,3,4,6,7,7,7,7,6,4,8,9,6,6,9,9,5,5,9,7,0,0,17,17,3,0,4,{"$f":"(COUNTIFS(CV$3:CV$194,\">=1.5\",CV$3:CV$194,\"<2.5\",ID_HDIG,3))","v":8},6,4,6,3,4,2,4,2,4,2,6,1,2,1,1,3,5,2,4,2,1,2,2,2,1,0,1,1,1,1,0,{"$f":"(COUNTIFS(EB$3:EB$194,\">=1.5\",EB$3:EB$194,\"<2.5\",ID_HDIG,3))","v":1},3,4,2,2,3,10,2,2,1,1,1,3,2,1,2,3,4,2,3,5,4,4,4,5,5,5,4,4,2,4,1,2]
["High HD: no, of responses as 2,5-3,5 (or 3 for Qs 5-7)",{"$f":"(COUNTIFS(B$3:B$194,\">=2.5\",B$3:B$194,\"<3.5\",ID_HDIG,3))","v":16},17,17,16,18,12,14,6,9,5,9,9,6,8,13,15,6,14,10,13,10,10,4,3,1,7,9,13,10,2,15,6,{"$f":"(COUNTIFS(AH$3:AH$194,\">=2.5\",AH$3:AH$194,\"<3.5\",ID_HDIG,3))","v":13},6,12,10,7,6,11,3,9,6,3,3,2,1,4,2,12,15,10,8,6,9,6,10,null,{"$f":"(COUNTIFS(BG$3:BG$194,\">=2.5\",BG$3:BG$194,\"<3.5\",ID_HDIG,3))","v":5},{"$f":"(COUNTIFS(BH$3:BH$194,\">=2.5\",BH$3:BH$194,\"<3.5\",ID_HDIG,3))","v":7},{"$f":"(COUNTIFS(BI$3:BI$194,\">=2.5\",BI$3:BI$194,\"<3.5\",ID_HDIG,3))","v":6},{"$f":"(COUNTIFS(BJ$3:BJ$194,\">=2.5\",BJ$3:BJ$194,\"<3.5\",ID_HDIG,3))","v":4},null,null,null,null,null,{"$f":"(COUNTIFS(BP$3:BP$194,\">=2.5\",BP$3:BP$194,\"<3.5\",ID_HDIG,3))","v":17},15,15,16,14,13,19,15,15,12,15,14,15,14,16,13,13,16,14,10,15,13,13,12,14,0,24,0,7,8,7,16,{"$f":"(COUNTIFS(CV$3:CV$194,\">=2.5\",CV$3:CV$194,\"<3.5\",ID_HDIG,3))","v":6},12,8,5,7,10,8,3,6,6,5,10,13,14,4,9,8,10,12,6,13,6,8,10,8,1,3,3,4,5,12,9,{"$f":"(COUNTIFS(EB$3:EB$194,\">=2.5\",EB$3:EB$194,\"<3.5\",ID_HDIG,3))","v":5},8,7,11,11,9,14,7,10,2,2,5,3,4,3,7,4,6,6,6,4,8,8,9,11,6,7,9,9,4,7,4,5]
["High HD: no, of responses as 3,5-4,5 (or 4 for Qs 5-7)",{"$f":"(COUNTIFS(B$3:B$194,\">=3.5\",B$3:B$194,\"<4.5\",ID_HDIG,3))","v":11},9,9,11,6,7,9,8,8,7,9,4,4,4,7,8,8,13,8,10,10,14,8,8,5,6,5,10,10,8,11,10,{"$f":"(COUNTIFS(AH$3:AH$194,\">=3.5\",AH$3:AH$194,\"<4.5\",ID_HDIG,3))","v":10},18,7,10,8,10,11,6,5,10,7,7,8,8,6,6,9,10,10,16,17,16,16,15,null,{"$f":"(COUNTIFS(BG$3:BG$194,\">=3.5\",BG$3:BG$194,\"<4.5\",ID_HDIG,3))","v":9},{"$f":"(COUNTIFS(BH$3:BH$194,\">=3.5\",BH$3:BH$194,\"<4.5\",ID_HDIG,3))","v":9},{"$f":"(COUNTIFS(BI$3:BI$194,\">=3.5\",BI$3:BI$194,\"<4.5\",ID_HDIG,3))","v":6},{"$f":"(COUNTIFS(BJ$3:BJ$194,\">=3.5\",BJ$3:BJ$194,\"<4.5\",ID_HDIG,3))","v":21},null,null,null,null,null,{"$f":"(COUNTIFS(BP$3:BP$194,\">=3.5\",BP$3:BP$194,\"<4.5\",ID_HDIG,3))","v":9},8,10,9,9,13,8,7,10,10,7,4,8,8,8,5,9,8,9,7,7,7,11,7,8,23,0,0,6,18,7,12,{"$f":"(COUNTIFS(CV$3:CV$194,\">=3.5\",CV$3:CV$194,\"<4.5\",ID_HDIG,3))","v":10},10,15,14,18,14,11,17,13,13,10,13,12,15,15,8,10,14,11,12,6,22,17,14,13,17,22,20,19,19,11,21,{"$f":"(COUNTIFS(EB$3:EB$194,\">=3.5\",EB$3:EB$194,\"<4.5\",ID_HDIG,3))","v":23},18,13,15,17,15,8,20,16,19,19,15,21,14,23,14,20,16,15,14,18,16,16,12,16,16,16,10,15,20,15,18,13]
["High HD: no, of responses as 4,5-5,5 (or 5 for Qs 5-7)",{"$f":"(COUNTIFS(B$3:B$194,\">=4.5\",B$3:B$194,\"<5.5\",ID_HDIG,3))","v":6},5,6,5,8,7,5,7,9,6,8,6,9,7,8,5,7,4,8,8,6,5,9,8,8,8,8,8,6,5,6,9,{"$f":"(COUNTIFS(AH$3:AH$194,\">=4.5\",AH$3:AH$194,\"<5.5\",ID_HDIG,3))","v":6},8,6,2,10,9,5,9,6,6,9,9,4,4,0,10,5,8,2,9,11,8,12,8,null,{"$f":"(COUNTIFS(BG$3:BG$194,\">=4.5\",BG$3:BG$194,\"<5.5\",ID_HDIG,3))","v":16},{"$f":"(COUNTIFS(BH$3:BH$194,\">=4.5\",BH$3:BH$194,\"<5.5\",ID_HDIG,3))","v":13},{"$f":"(COUNTIFS(BI$3:BI$194,\">=4.5\",BI$3:BI$194,\"<5.5\",ID_HDIG,3))","v":10},{"$f":"(COUNTIFS(BJ$3:BJ$194,\">=4.5\",BJ$3:BJ$194,\"<5.5\",ID_HDIG,3))","v":5},null,null,null,null,null,{"$f":"(COUNTIFS(BP$3:BP$194,\">=4.5\",BP$3:BP$194,\"<5.5\",ID_HDIG,3))","v":1},4,1,1,4,1,1,3,2,2,3,4,3,1,1,3,1,1,1,3,1,6,2,2,4,0,0,0,0,6,21,1,{"$f":"(COUNTIFS(CV$3:CV$194,\">=4.5\",CV$3:CV$194,\"<5.5\",ID_HDIG,3))","v":5},3,7,9,6,4,7,9,10,9,17,6,7,4,15,16,14,7,10,12,12,7,5,2,1,16,9,10,11,10,11,6,{"$f":"(COUNTIFS(EB$3:EB$194,\">=4.5\",EB$3:EB$194,\"<5.5\",ID_HDIG,3))","v":3},7,11,7,5,1,0,7,4,12,12,13,6,12,3,11,6,8,9,10,5,6,7,7,0,5,4,7,3,6,6,8,12]
["High HD: no, of responses as 5,5-6",{"$f":"(COUNTIFS(B$3:B$194,\">=5.5\",ID_HDIG,3))","v":0},1,0,0,0,3,0,5,3,10,4,1,2,1,0,0,5,2,2,2,1,1,3,2,2,3,3,2,1,1,0,1,{"$f":"(COUNTIFS(AH$3:AH$194,\">=5.5\",ID_HDIG,3))","v":0},3,1,0,4,1,0,2,2,2,1,1,0,0,0,1,1,1,0,1,0,1,0,1,null,{"$f":"(COUNTIFS(BG$3:BG$194,\">=5.5\",ID_HDIG,3))","v":3},{"$f":"(COUNTIFS(BH$3:BH$194,\">=5.5\",ID_HDIG,3))","v":1},{"$f":"(COUNTIFS(BI$3:BI$194,\">=5.5\",ID_HDIG,3))","v":4},{"$f":"(COUNTIFS(BJ$3:BJ$194,\">=5.5\",ID_HDIG,3))","v":0}]
["Very High HD: no, of responses as 1",{"$f":"(COUNTIFS(B$3:B$194,\"<=1.5\",ID_HDIG,4))","v":0},0,0,0,0,0,0,0,0,0,0,0,1,3,0,0,0,0,0,0,0,0,0,0,0,0,0,0,0,0,0,0,{"$f":"(COUNTIFS(AH$3:AH$194,\"<=1.5\",ID_HDIG,4))","v":0},0,0,0,0,0,0,0,0,0,0,2,10,4,10,0,0,0,0,0,0,0,0,0,null,{"$f":"(COUNTIFS(BG$3:BG$194,\"<=1.5\",ID_HDIG,4))","v":0},{"$f":"(COUNTIFS(BH$3:BH$194,\"<=1.5\",ID_HDIG,4))","v":0},{"$f":"(COUNTIFS(BI$3:BI$194,\"<=1.5\",ID_HDIG,4))","v":0},{"$f":"(COUNTIFS(BJ$3:BJ$194,\"<=1.5\",ID_HDIG,4))","v":4},null,null,null,null,null,{"$f":"(COUNTIFS(BP$3:BP$194,\"<=1.5\",ID_HDIG,4))","v":0},0,1,0,0,1,4,0,3,1,5,0,3,3,5,0,3,2,4,0,4,1,2,0,3,0,0,0,13,7,5,7,{"$f":"(COUNTIFS(CV$3:CV$194,\"<=1.5\",ID_HDIG,4))","v":5},4,7,5,6,9,8,3,3,3,3,5,1,1,1,1,1,1,1,3,1,9,10,12,14,3,3,3,1,2,1,8,{"$f":"(COUNTIFS(EB$3:EB$194,\"<=1.5\",ID_HDIG,4))","v":3},2,7,3,4,12,7,2,4,4,4,1,1,1,1,0,1,1,1,2,1,1,0,1,0,2,1,1,1,1,1,1,1]
["Very High HD: no, of responses as 2 1,5-2,5 (or 2 for Qs 5-7)",{"$f":"(COUNTIFS(B$3:B$194,\">=1.5\",B$3:B$194,\"<2.5\",ID_HDIG,4))","v":0},0,0,0,0,0,1,2,0,0,0,4,2,4,1,1,2,0,0,2,0,2,1,3,1,0,1,2,0,1,0,0,{"$f":"(COUNTIFS(AH$3:AH$194,\">=1.5\",AH$3:AH$194,\"<2.5\",ID_HDIG,4))","v":1},0,1,1,0,0,1,2,4,6,5,5,4,6,4,2,0,0,1,0,0,0,0,0,null,{"$f":"(COUNTIFS(BG$3:BG$194,\">=1.5\",BG$3:BG$194,\"<2.5\",ID_HDIG,4))","v":2},{"$f":"(COUNTIFS(BH$3:BH$194,\">=1.5\",BH$3:BH$194,\"<2.5\",ID_HDIG,4))","v":0},{"$f":"(COUNTIFS(BI$3:BI$194,\">=1.5\",BI$3:BI$194,\"<2.5\",ID_HDIG,4))","v":1},{"$f":"(COUNTIFS(BJ$3:BJ$194,\">=1.5\",BJ$3:BJ$194,\"<2.5\",ID_HDIG,4))","v":3},null,null,null,null,null,{"$f":"(COUNTIFS(BP$3:BP$194,\">=1.5\",BP$3:BP$194,\"<2.5\",ID_HDIG,4))","v":3},3,5,3,3,3,4,0,1,4,2,1,1,2,2,1,2,4,4,1,1,3,1,3,1,0,0,9,9,8,5,4,{"$f":"(COUNTIFS(CV$3:CV$194,\">=1.5\",CV$3:CV$194,\"<2.5\",ID_HDIG,4))","v":8},3,3,4,6,6,6,2,3,4,7,1,2,1,4,0,0,0,0,5,4,6,4,5,5,2,3,2,5,3,3,4,{"$f":"(COUNTIFS(EB$3:EB$194,\">=1.5\",EB$3:EB$194,\"<2.5\",ID_HDIG,4))","v":1},1,3,2,2,6,5,2,4,1,1,1,0,2,2,2,1,0,2,2,2,1,1,1,3,2,3,1,2,0,1,2,3]
["Very High HD: no, of responses as 2,5-3,5 (or 3 for Qs 5-7)",{"$f":"(COUNTIFS(B$3:B$194,\">=2.5\",B$3:B$194,\"<3.5\",ID_HDIG,4))","v":2},2,2,1,4,2,4,4,2,0,1,5,3,4,2,5,4,2,1,0,3,2,0,0,4,0,1,0,3,1,3,0,{"$f":"(COUNTIFS(AH$3:AH$194,\">=2.5\",AH$3:AH$194,\"<3.5\",ID_HDIG,4))","v":4},2,3,2,1,0,4,1,4,3,1,1,4,1,0,3,4,1,2,2,2,3,2,3,null,{"$f":"(COUNTIFS(BG$3:BG$194,\">=2.5\",BG$3:BG$194,\"<3.5\",ID_HDIG,4))","v":1},{"$f":"(COUNTIFS(BH$3:BH$194,\">=2.5\",BH$3:BH$194,\"<3.5\",ID_HDIG,4))","v":3},{"$f":"(COUNTIFS(BI$3:BI$194,\">=2.5\",BI$3:BI$194,\"<3.5\",ID_HDIG,4))","v":2},{"$f":"(COUNTIFS(BJ$3:BJ$194,\">=2.5\",BJ$3:BJ$194,\"<3.5\",ID_HDIG,4))","v":5},null,null,null,null,null,{"$f":"(COUNTIFS(BP$3:BP$194,\">=2.5\",BP$3:BP$194,\"<3.5\",ID_HDIG,4))","v":9},6,11,10,6,10,10,6,5,9,10,5,6,14,13,7,10,14,10,3,6,9,11,3,6,0,15,0,6,7,6,14,{"$f":"(COUNTIFS(CV$3:CV$194,\">=2.5\",CV$3:CV$194,\"<3.5\",ID_HDIG,4))","v":10},9,11,9,6,8,9,13,12,13,8,15,14,9,11,6,11,16,14,4,4,3,5,8,6,6,9,7,8,9,9,7,{"$f":"(COUNTIFS(EB$3:EB$194,\">=2.5\",EB$3:EB$194,\"<3.5\",ID_HDIG,4))","v":11},15,7,11,11,8,17,11,14,8,9,3,5,5,3,6,4,3,5,6,7,6,8,17,13,6,8,17,16,5,8,7,7]
["Very High HD: no, of responses as 3,5-4,5 (or 4 for Qs 5-7)",{"$f":"(COUNTIFS(B$3:B$194,\">=3.5\",B$3:B$194,\"<4.5\",ID_HDIG,4))","v":4},7,6,5,9,7,10,3,8,1,6,4,5,5,12,11,3,3,5,5,3,4,4,6,3,1,3,5,3,1,3,6,{"$f":"(COUNTIFS(AH$3:AH$194,\">=3.5\",AH$3:AH$194,\"<4.5\",ID_HDIG,4))","v":9},0,7,8,2,6,10,6,5,5,9,9,6,7,4,2,10,7,8,7,6,6,6,7,null,{"$f":"(COUNTIFS(BG$3:BG$194,\">=3.5\",BG$3:BG$194,\"<4.5\",ID_HDIG,4))","v":3},{"$f":"(COUNTIFS(BH$3:BH$194,\">=3.5\",BH$3:BH$194,\"<4.5\",ID_HDIG,4))","v":4},{"$f":"(COUNTIFS(BI$3:BI$194,\">=3.5\",BI$3:BI$194,\"<4.5\",ID_HDIG,4))","v":3},{"$f":"(COUNTIFS(BJ$3:BJ$194,\">=3.5\",BJ$3:BJ$194,\"<4.5\",ID_HDIG,4))","v":15},null,null,null,null,null,{"$f":"(COUNTIFS(BP$3:BP$194,\">=3.5\",BP$3:BP$194,\"<4.5\",ID_HDIG,4))","v":17},18,12,17,15,11,10,14,15,10,8,11,12,6,7,13,9,7,11,19,14,9,9,13,10,15,0,0,6,10,9,7,{"$f":"(COUNTIFS(CV$3:CV$194,\">=3.5\",CV$3:CV$194,\"<4.5\",ID_HDIG,4))","v":7},15,6,10,9,4,6,7,7,7,11,7,13,10,9,14,11,8,9,13,15,11,10,4,5,13,11,17,15,16,17,11,{"$f":"(COUNTIFS(EB$3:EB$194,\">=3.5\",EB$3:EB$194,\"<4.5\",ID_HDIG,4))","v":13},11,10,13,12,5,0,13,8,14,11,15,17,12,12,15,18,16,14,12,13,16,16,11,10,13,11,10,11,16,12,10,10]
["Very High HD: no, of responses as 4,5-5,5 (or 5 for Qs 5-7)",{"$f":"(COUNTIFS(B$3:B$194,\">=4.5\",B$3:B$194,\"<5.5\",ID_HDIG,4))","v":21},16,18,18,16,10,15,8,8,8,11,11,9,10,7,14,8,17,10,11,14,11,9,10,7,9,10,11,14,4,18,14,{"$f":"(COUNTIFS(AH$3:AH$194,\">=4.5\",AH$3:AH$194,\"<5.5\",ID_HDIG,4))","v":11},16,15,11,9,14,10,7,9,7,7,7,5,8,9,8,9,15,11,14,14,12,16,13,null,{"$f":"(COUNTIFS(BG$3:BG$194,\">=4.5\",BG$3:BG$194,\"<5.5\",ID_HDIG,4))","v":8},{"$f":"(COUNTIFS(BH$3:BH$194,\">=4.5\",BH$3:BH$194,\"<5.5\",ID_HDIG,4))","v":1},{"$f":"(COUNTIFS(BI$3:BI$194,\">=4.5\",BI$3:BI$194,\"<5.5\",ID_HDIG,4))","v":6},{"$f":"(COUNTIFS(BJ$3:BJ$194,\">=4.5\",BJ$3:BJ$194,\"<5.5\",ID_HDIG,4))","v":4},null,null,null,null,null,{"$f":"(COUNTIFS(BP$3:BP$194,\">=4.5\",BP$3:BP$194,\"<5.5\",ID_HDIG,4))","v":2},4,3,1,7,6,4,11,4,7,5,14,6,6,3,10,4,4,1,8,3,9,7,12,8,0,0,0,0,2,9,2,{"$f":"(COUNTIFS(CV$3:CV$194,\">=4.5\",CV$3:CV$194,\"<5.5\",ID_HDIG,4))","v":3},3,6,5,6,6,4,7,7,7,5,5,3,12,7,13,10,9,10,9,10,5,3,4,2,9,7,5,5,4,4,4,{"$f":"(COUNTIFS(EB$3:EB$194,\">=4.5\",EB$3:EB$194,\"<5.5\",ID_HDIG,4))","v":5},5,6,5,4,3,3,6,3,6,8,14,11,14,15,11,10,13,10,12,11,10,9,2,6,11,10,3,1,12,11,14,11]
["Very High HD: no, of responses as 5,5-6",{"$f":"(COUNTIFS(B$3:B$194,\">=5.5\",ID_HDIG,4))","v":7},9,8,10,5,15,3,12,15,24,16,6,12,7,11,2,12,12,18,16,14,15,18,12,13,21,18,16,14,8,10,14,{"$f":"(COUNTIFS(AH$3:AH$194,\">=5.5\",ID_HDIG,4))","v":9},16,8,11,22,14,9,16,10,10,9,8,3,7,3,12,11,11,11,10,11,12,9,10,null,{"$f":"(COUNTIFS(BG$3:BG$194,\">=5.5\",ID_HDIG,4))","v":19},{"$f":"(COUNTIFS(BH$3:BH$194,\">=5.5\",ID_HDIG,4))","v":10},{"$f":"(COUNTIFS(BI$3:BI$194,\">=5.5\",ID_HDIG,4))","v":12},{"$f":"(COUNTIFS(BJ$3:BJ$194,\">=5.5\",ID_HDIG,4))","v":0}]
["Total: no, of responses as 1",{"$f":"(COUNTIF(B$3:B$194,\"<1.5\"))","v":0},0,0,0,0,0,0,0,0,0,0,0,3,13,0,0,0,0,0,0,0,0,0,0,0,0,0,0,0,0,0,0,{"$f":"(COUNTIF(AH$3:AH$194,\"<1.5\"))","v":0},0,0,0,0,0,0,0,0,0,0,11,34,17,33,0,0,0,0,0,0,0,0,0,null,{"$f":"(COUNTIF(BG$3:BG$194,\"<1.5\"))","v":0},{"$f":"(COUNTIF(BH$3:BH$194,\"<1.5\"))","v":0},{"$f":"(COUNTIF(BI$3:BI$194,\"<1.5\"))","v":0},{"$f":"(COUNTIF(BJ$3:BJ$194,\"<1.5\"))","v":21},null,null,null,null,null,{"$f":"(COUNTIF(BP$3:BP$194,\"<1.5\"))","v":6},5,7,8,4,5,9,12,6,9,12,11,8,13,17,12,9,10,17,13,12,7,8,10,7,0,0,0,28,9,6,11,{"$f":"(COUNTIF(CV$3:CV$194,\"<1.5\"))","v":12},8,7,8,10,13,17,5,7,8,5,6,5,6,3,3,3,3,4,6,5,10,15,29,33,4,6,5,2,4,1,8,{"$f":"(COUNTIF(EB$3:EB$194,\"<1.5\"))","v":7},2,11,5,6,26,16,2,10,6,7,3,2,7,7,5,6,2,7,10,7,4,2,3,2,10,9,4,5,4,2,9,9]
["Total: no, of responses as 2 1,5-2,5 (or 2 for Qs 5-7)",{"$f":"(COUNTIFS(B$3:B$194,\">=1.5\",B$3:B$194,\"<2.5\"))","v":7},9,12,13,14,19,22,20,22,18,10,45,39,45,17,24,20,13,22,18,24,22,35,42,32,21,25,18,24,30,13,22,{"$f":"(COUNTIFS(AH$3:AH$194,\">=1.5\",AH$3:AH$194,\"<2.5\"))","v":21},6,28,36,13,22,25,36,40,42,43,40,36,45,46,25,25,8,36,7,7,8,7,7,null,{"$f":"(COUNTIFS(BG$3:BG$194,\">=1.5\",BG$3:BG$194,\"<2.5\"))","v":18},{"$f":"(COUNTIFS(BH$3:BH$194,\">=1.5\",BH$3:BH$194,\"<2.5\"))","v":9},{"$f":"(COUNTIFS(BI$3:BI$194,\">=1.5\",BI$3:BI$194,\"<2.5\"))","v":9},{"$f":"(COUNTIFS(BJ$3:BJ$194,\">=1.5\",BJ$3:BJ$194,\"<2.5\"))","v":7},null,null,null,null,null,{"$f":"(COUNTIFS(BP$3:BP$194,\">=1.5\",BP$3:BP$194,\"<2.5\"))","v":22},23,24,25,23,21,18,16,21,23,24,25,23,21,16,23,26,27,25,27,27,17,19,31,21,0,0,59,59,16,6,15,{"$f":"(COUNTIFS(CV$3:CV$194,\">=1.5\",CV$3:CV$194,\"<2.5\"))","v":21},23,9,16,12,17,21,9,13,17,17,14,10,11,9,4,4,5,2,14,12,8,10,8,10,3,6,5,7,8,7,6,{"$f":"(COUNTIFS(EB$3:EB$194,\">=1.5\",EB$3:EB$194,\"<2.5\"))","v":4},6,8,6,7,12,30,6,8,2,2,7,8,8,12,9,12,15,8,11,14,13,10,11,14,18,13,15,11,12,10,10,11]
["Total: no, of responses as 2,5-3,5 (or 3 for Qs 5-7)",{"$f":"(COUNTIFS(B$3:B$194,\">=2.5\",B$3:B$194,\"<3.5\"))","v":52},51,48,45,45,40,40,18,24,13,29,24,20,21,37,45,18,41,32,32,31,31,13,13,7,24,31,32,31,13,50,29,{"$f":"(COUNTIFS(AH$3:AH$194,\">=2.5\",AH$3:AH$194,\"<3.5\"))","v":44},29,34,32,28,29,36,10,28,19,10,9,12,8,6,15,37,46,32,25,27,25,22,27,null,{"$f":"(COUNTIFS(BG$3:BG$194,\">=2.5\",BG$3:BG$194,\"<3.5\"))","v":10},{"$f":"(COUNTIFS(BH$3:BH$194,\">=2.5\",BH$3:BH$194,\"<3.5\"))","v":17},{"$f":"(COUNTIFS(BI$3:BI$194,\">=2.5\",BI$3:BI$194,\"<3.5\"))","v":13},{"$f":"(COUNTIFS(BJ$3:BJ$194,\">=2.5\",BJ$3:BJ$194,\"<3.5\"))","v":17},null,null,null,null,null,{"$f":"(COUNTIFS(BP$3:BP$194,\">=2.5\",BP$3:BP$194,\"<3.5\"))","v":49},41,50,48,40,45,53,41,44,40,41,32,39,51,54,40,47,49,45,31,43,46,43,35,40,0,85,0,26,28,17,50,{"$f":"(COUNTIFS(CV$3:CV$194,\">=2.5\",CV$3:CV$194,\"<3.5\"))","v":34},42,27,26,23,35,32,29,30,31,14,40,42,44,18,30,30,40,40,23,34,15,23,31,29,15,17,22,24,25,30,23,{"$f":"(COUNTIFS(EB$3:EB$194,\">=2.5\",EB$3:EB$194,\"<3.5\"))","v":29},34,27,37,39,28,59,28,39,19,19,20,20,17,14,23,20,20,22,21,20,29,35,48,50,17,29,45,48,16,28,16,19]
["Total: no, of responses as 3,5-4,5 (or 4 for Qs 5-7)",{"$f":"(COUNTIFS(B$3:B$194,\">=3.5\",B$3:B$194,\"<4.5\"))","v":32},35,33,34,36,27,39,22,35,25,39,16,24,18,36,35,22,34,28,33,32,37,24,24,23,25,19,33,32,30,30,30,{"$f":"(COUNTIFS(AH$3:AH$194,\">=3.5\",AH$3:AH$194,\"<4.5\"))","v":35},41,33,29,29,30,39,27,20,26,33,31,20,29,16,21,31,36,29,57,46,57,55,56,null,{"$f":"(COUNTIFS(BG$3:BG$194,\">=3.5\",BG$3:BG$194,\"<4.5\"))","v":30},{"$f":"(COUNTIFS(BH$3:BH$194,\">=3.5\",BH$3:BH$194,\"<4.5\"))","v":35},{"$f":"(COUNTIFS(BI$3:BI$194,\">=3.5\",BI$3:BI$194,\"<4.5\"))","v":24},{"$f":"(COUNTIFS(BJ$3:BJ$194,\">=3.5\",BJ$3:BJ$194,\"<4.5\"))","v":67},null,null,null,null,null,{"$f":"(COUNTIFS(BP$3:BP$194,\">=3.5\",BP$3:BP$194,\"<4.5\"))","v":42},43,37,40,44,42,33,38,41,37,32,32,36,28,28,33,32,31,32,39,34,31,40,32,39,79,0,0,20,60,34,49,{"$f":"(COUNTIFS(CV$3:CV$194,\">=3.5\",CV$3:CV$194,\"<4.5\"))","v":46},44,55,50,55,41,38,58,53,43,34,45,46,48,48,43,47,51,54,47,45,67,63,45,47,58,62,65,67,65,58,66,{"$f":"(COUNTIFS(EB$3:EB$194,\">=3.5\",EB$3:EB$194,\"<4.5\"))","v":70},62,56,62,58,49,18,65,55,66,58,61,70,53,64,59,63,63,58,50,53,58,59,42,49,51,49,39,46,68,61,56,49]
["Total: no, of responses as 4,5-5,5 (or 5 for Qs 5-7)",{"$f":"(COUNTIFS(B$3:B$194,\">=4.5\",B$3:B$194,\"<5.5\"))","v":35},28,32,31,33,28,26,35,26,28,30,24,27,24,27,24,35,29,29,29,28,25,25,27,23,27,30,29,28,16,30,34,{"$f":"(COUNTIFS(AH$3:AH$194,\">=4.5\",AH$3:AH$194,\"<5.5\"))","v":23},36,28,18,34,34,22,27,22,20,22,21,13,15,12,29,23,30,18,28,37,25,35,26,null,{"$f":"(COUNTIFS(BG$3:BG$194,\">=4.5\",BG$3:BG$194,\"<5.5\"))","v":43},{"$f":"(COUNTIFS(BH$3:BH$194,\">=4.5\",BH$3:BH$194,\"<5.5\"))","v":32},{"$f":"(COUNTIFS(BI$3:BI$194,\">=4.5\",BI$3:BI$194,\"<5.5\"))","v":44},{"$f":"(COUNTIFS(BJ$3:BJ$194,\">=4.5\",BJ$3:BJ$194,\"<5.5\"))","v":14},null,null,null,null,null,{"$f":"(COUNTIFS(BP$3:BP$194,\">=4.5\",BP$3:BP$194,\"<5.5\"))","v":4},11,5,2,12,9,8,15,8,13,12,22,14,9,6,14,6,5,2,12,4,21,11,14,13,0,0,0,0,17,68,5,{"$f":"(COUNTIFS(CV$3:CV$194,\">=4.5\",CV$3:CV$194,\"<5.5\"))","v":15},12,30,29,30,24,21,28,25,31,61,25,26,21,51,52,46,33,31,42,35,32,19,16,7,51,40,35,32,30,35,29,{"$f":"(COUNTIFS(EB$3:EB$194,\">=4.5\",EB$3:EB$194,\"<5.5\"))","v":20},27,27,22,20,14,5,30,17,37,45,39,29,44,33,35,29,29,33,38,36,27,25,22,10,35,29,22,13,30,26,37,40]
["Total: no, of responses as 5,5-6",{"$f":"(COUNTIFS(B$3:B$194,\">=5.5\"))","v":7},10,8,10,5,19,4,23,22,43,22,8,18,9,14,3,23,16,21,21,17,18,26,18,19,28,24,21,17,11,10,16,{"$f":"(COUNTIFS(AH$3:AH$194,\">=5.5\"))","v":10},21,9,12,28,16,10,20,16,18,11,10,4,7,5,15,14,13,12,14,14,16,12,14,null,{"$f":"(COUNTIFS(BG$3:BG$194,\">=5.5\"))","v":28},{"$f":"(COUNTIFS(BH$3:BH$194,\">=5.5\"))","v":17},{"$f":"(COUNTIFS(BI$3:BI$194,\">=5.5\"))","v":23},{"$f":"(COUNTIFS(BJ$3:BJ$194,\">=5.5\"))","v":0}]
[]
["AFR: % of responses as 1",{"$f":"(COUNTIFS(B$3:B$194,\"<=1.5\",ID_REG,3))/B211","v":0},0,0,0,0,0,0,0,0,0,0,0,2.5000000000000001E-2,0.17948717948717949,0,0,0,0,0,0,0,0,0,0,0,0,0,0,0,0,0,0,{"$f":"(COUNTIFS(AH$3:AH$194,\"<=1.5\",ID_REG,3))/AH211","v":0},0,0,0,0,0,0,0,0,0,0,0.14705882352941177,0.36666666666666664,0.18181818181818182,0.30303030303030304,0,0,0,0,0,0,0,0,0,0,0,0,0,0.15,5.128205128205128E-2,5.2631578947368418E-2,0.23076923076923078,{"$f":"(COUNTIFS(BN$3:BN$194,\"<=1.5\",ID_REG,3))/BN211","v":0.31578947368421051},0.67567567567567566,8.1081081081081086E-2,8.1081081081081086E-2,8.1081081081081086E-2,0.1891891891891892,5.4054054054054057E-2,8.1081081081081086E-2,0.10810810810810811,0.16216216216216217,8.1081081081081086E-2,0.13513513513513514,8.1081081081081086E-2,0.10810810810810811,8.1081081081081086E-2,8.1081081081081086E-2,0.10810810810810811,0.13513513513513514,8.1081081081081086E-2,0.16216216216216217,0.1891891891891892,0.1891891891891892,0.16216216216216217,8.1081081081081086E-2,8.1081081081081086E-2,0.10810810810810811,5.4054054054054057E-2,0,0,0,0.17499999999999999,0,{"$f":"(COUNTIFS(CT$3:CT$194,\"<=1.5\",ID_REG,3))/CT211","v":0},0,5.4054054054054057E-2,0,0,2.7027027027027029E-2,7.8947368421052627E-2,2.6315789473684209E-2,5.2631578947368418E-2,2.6315789473684209E-2,0,0,2.564102564102564E-2,0,5.128205128205128E-2,2.564102564102564E-2,0,0,2.6315789473684209E-2,2.564102564102564E-2,7.6923076923076927E-2,2.564102564102564E-2,2.564102564102564E-2,2.564102564102564E-2,0,0.16216216216216217,0.19444444444444445,0,2.564102564102564E-2,0,0,0,{"$f":"(COUNTIFS(DZ$3:DZ$194,\"<=1.5\",ID_REG,3))/DZ211","v":0},2.564102564102564E-2,2.564102564102564E-2,0,7.8947368421052627E-2,2.564102564102564E-2,0,0.16216216216216217,7.6923076923076927E-2,0,2.6315789473684209E-2,2.564102564102564E-2,2.564102564102564E-2,2.564102564102564E-2,0,7.8947368421052627E-2,2.564102564102564E-2,7.6923076923076927E-2,2.564102564102564E-2,0,7.6923076923076927E-2,0.12820512820512819,0.12820512820512819,2.564102564102564E-2,2.564102564102564E-2,2.7027027027027029E-2,2.6315789473684209E-2,7.6923076923076927E-2,0.12820512820512819,0,5.5555555555555552E-2,0,0,8.1081081081081086E-2,0.10256410256410256]
["AFR: % of responses as 2",{"$f":"(COUNTIFS(B$3:B$194,\">=1.5\",B$3:B$194,\"<2.5\",ID_REG,3))/B211","v":2.5000000000000001E-2},2.5000000000000001E-2,7.4999999999999997E-2,0.1,7.4999999999999997E-2,0.15,0.17499999999999999,0.13157894736842105,0.23076923076923078,8.1081081081081086E-2,7.6923076923076927E-2,0.4375,0.32500000000000001,0.35897435897435898,0.125,0.2,0.13157894736842105,0.1,0.15,0.17499999999999999,0.20512820512820512,0.2,0.3888888888888889,0.34210526315789475,0.24242424242424243,0.13157894736842105,0.17948717948717949,0.17499999999999999,0.20512820512820512,0.33333333333333331,0.1,0.18421052631578946,{"$f":"(COUNTIFS(AH$3:AH$194,\">=1.5\",AH$3:AH$194,\"<2.5\",ID_REG,3))/AH211","v":0.15},0.1,0.27500000000000002,0.33333333333333331,0.12820512820512819,0.18421052631578946,0.20512820512820512,0.3235294117647059,0.39473684210526316,0.35135135135135137,0.41176470588235292,0.38235294117647056,0.3,0.45454545454545453,0.45454545454545453,0.20588235294117646,0.20512820512820512,0.1,0.33333333333333331,5.128205128205128E-2,5.128205128205128E-2,5.128205128205128E-2,5.128205128205128E-2,2.6315789473684209E-2,5.128205128205128E-2,0.15789473684210525,8.1081081081081086E-2,8.5714285714285715E-2,0.05,0.10256410256410256,0.15789473684210525,0.28205128205128205,{"$f":"(COUNTIFS(BN$3:BN$194,\">=1.5\",BN$3:BN$194,\"<2.5\",ID_REG,3))/BN211","v":0.15789473684210525},0.1891891891891892,0.21621621621621623,0.1891891891891892,0.1891891891891892,0.16216216216216217,0.21621621621621623,0.21621621621621623,0.1891891891891892,0.21621621621621623,0.1891891891891892,0.16216216216216217,0.21621621621621623,0.29729729729729731,0.1891891891891892,0.27027027027027029,0.1891891891891892,0.24324324324324326,0.21621621621621623,0.1891891891891892,0.21621621621621623,0.24324324324324326,0.24324324324324326,0.10810810810810811,0.1891891891891892,0.40540540540540543,0.21621621621621623,0,0,1,0.45,2.7027027027027029E-2,{"$f":"(COUNTIFS(CT$3:CT$194,\">=1.5\",CT$3:CT$194,\"<2.5\",ID_REG,3))/CT211","v":0},5.2631578947368418E-2,5.4054054054054057E-2,0.27777777777777779,2.7027027027027029E-2,0.1891891891891892,5.2631578947368418E-2,0.15789473684210525,0.26315789473684209,2.6315789473684209E-2,0.10526315789473684,0.10526315789473684,0.10256410256410256,0.12820512820512819,0.12820512820512819,0.12820512820512819,0.10256410256410256,7.6923076923076927E-2,2.6315789473684209E-2,0,0,0.10256410256410256,0.12820512820512819,2.564102564102564E-2,7.6923076923076927E-2,2.7027027027027029E-2,2.7777777777777776E-2,0,5.128205128205128E-2,2.564102564102564E-2,2.564102564102564E-2,7.6923076923076927E-2,{"$f":"(COUNTIFS(DZ$3:DZ$194,\">=1.5\",DZ$3:DZ$194,\"<2.5\",ID_REG,3))/DZ211","v":5.128205128205128E-2},2.564102564102564E-2,5.128205128205128E-2,2.6315789473684209E-2,2.6315789473684209E-2,2.564102564102564E-2,7.8947368421052627E-2,8.1081081081081086E-2,0.28205128205128205,2.6315789473684209E-2,7.8947368421052627E-2,0,0,0.10256410256410256,0.10256410256410256,7.8947368421052627E-2,0.12820512820512819,7.6923076923076927E-2,0.17948717948717949,0.18421052631578946,7.6923076923076927E-2,7.6923076923076927E-2,0.10256410256410256,0.12820512820512819,0.12820512820512819,0.13513513513513514,5.2631578947368418E-2,0.15384615384615385,5.128205128205128E-2,0.1891891891891892,0.1111111111111111,0.15384615384615385,0.10526315789473684,8.1081081081081086E-2,0.12820512820512819]
["AFR: % of responses as 3",{"$f":"(COUNTIFS(B$3:B$194,\">=2.5\",B$3:B$194,\"<3.5\",ID_REG,3))/B211","v":0.47499999999999998},0.47499999999999998,0.4,0.4,0.35,0.35,0.32500000000000001,5.2631578947368418E-2,0.17948717948717949,0.13513513513513514,0.25641025641025639,0.21875,0.22500000000000001,0.15384615384615385,0.32500000000000001,0.35,5.2631578947368418E-2,0.375,0.32500000000000001,0.32500000000000001,0.33333333333333331,0.27500000000000002,0.1111111111111111,0.13157894736842105,0,0.28947368421052633,0.33333333333333331,0.32500000000000001,0.33333333333333331,0.1111111111111111,0.45,0.28947368421052633,{"$f":"(COUNTIFS(AH$3:AH$194,\">=2.5\",AH$3:AH$194,\"<3.5\",ID_REG,3))/AH211","v":0.375},0.25,0.32500000000000001,0.33333333333333331,0.28205128205128205,0.28947368421052633,0.28205128205128205,2.9411764705882353E-2,0.18421052631578946,0.1891891891891892,8.8235294117647065E-2,5.8823529411764705E-2,3.3333333333333333E-2,6.0606060606060608E-2,3.0303030303030304E-2,0.14705882352941177,0.35897435897435898,0.45,0.33333333333333331,0.20512820512820512,0.28205128205128205,0.20512820512820512,0.17948717948717949,0.21052631578947367,0.20512820512820512,5.2631578947368418E-2,2.7027027027027029E-2,2.8571428571428571E-2,0.15,0.12820512820512819,0.10526315789473684,2.564102564102564E-2,{"$f":"(COUNTIFS(BN$3:BN$194,\">=2.5\",BN$3:BN$194,\"<3.5\",ID_REG,3))/BN211","v":7.8947368421052627E-2},0,0.40540540540540543,0.32432432432432434,0.45945945945945948,0.45945945945945948,0.32432432432432434,0.27027027027027029,0.43243243243243246,0.29729729729729731,0.43243243243243246,0.27027027027027029,0.27027027027027029,0.16216216216216217,0.32432432432432434,0.32432432432432434,0.43243243243243246,0.35135135135135137,0.45945945945945948,0.3783783783783784,0.40540540540540543,0.27027027027027029,0.3783783783783784,0.40540540540540543,0.29729729729729731,0.27027027027027029,0.29729729729729731,0,1,0,0.3,0.16216216216216217,{"$f":"(COUNTIFS(CT$3:CT$194,\">=2.5\",CT$3:CT$194,\"<3.5\",ID_REG,3))/CT211","v":5.2631578947368418E-2},0.34210526315789475,0.21621621621621623,0.3611111111111111,0.10810810810810811,0.21621621621621623,7.8947368421052627E-2,0.23684210526315788,0.21052631578947367,0.23684210526315788,0.21052631578947367,0.15789473684210525,2.564102564102564E-2,0.23076923076923078,0.23076923076923078,0.41025641025641024,5.128205128205128E-2,0.35897435897435898,0.23684210526315788,0.25641025641025639,0.25641025641025639,0.30769230769230771,0.25641025641025639,2.564102564102564E-2,0.12820512820512819,0.1891891891891892,0.25,7.6923076923076927E-2,5.128205128205128E-2,0.15384615384615385,0.25641025641025639,0.23076923076923078,{"$f":"(COUNTIFS(DZ$3:DZ$194,\">=2.5\",DZ$3:DZ$194,\"<3.5\",ID_REG,3))/DZ211","v":0.25641025641025639},0.10256410256410256,0.12820512820512819,0.18421052631578946,0.18421052631578946,0.30769230769230771,0.21052631578947367,0.13513513513513514,0.4358974358974359,0.15789473684210525,0.15789473684210525,7.6923076923076927E-2,5.128205128205128E-2,0.17948717948717949,0.15384615384615385,5.2631578947368418E-2,0.10256410256410256,0.20512820512820512,0.20512820512820512,0.13157894736842105,0.10256410256410256,0.17948717948717949,0.10256410256410256,0.23076923076923078,0.20512820512820512,0.29729729729729731,0.47368421052631576,7.6923076923076927E-2,0.20512820512820512,0.24324324324324326,0.3611111111111111,0.10256410256410256,0.18421052631578946,5.4054054054054057E-2,2.564102564102564E-2]
["AFR: % of responses as 4",{"$f":"(COUNTIFS(B$3:B$194,\">=3.5\",B$3:B$194,\"<4.5\",ID_REG,3))/B211","v":0.375},0.375,0.4,0.375,0.42499999999999999,0.22500000000000001,0.35,0.23684210526315788,0.30769230769230771,0.27027027027027029,0.38461538461538464,0.1875,0.22500000000000001,0.17948717948717949,0.3,0.3,0.23684210526315788,0.35,0.25,0.25,0.28205128205128205,0.3,0.19444444444444445,0.26315789473684209,0.42424242424242425,0.26315789473684209,0.15384615384615385,0.25,0.28205128205128205,0.3611111111111111,0.32500000000000001,0.26315789473684209,{"$f":"(COUNTIFS(AH$3:AH$194,\">=3.5\",AH$3:AH$194,\"<4.5\",ID_REG,3))/AH211","v":0.35},0.4,0.27500000000000002,0.23076923076923078,0.23076923076923078,0.26315789473684209,0.38461538461538464,0.3235294117647059,0.18421052631578946,0.1891891891891892,0.3235294117647059,0.26470588235294118,0.26666666666666666,0.24242424242424243,9.0909090909090912E-2,0.29411764705882354,0.20512820512820512,0.3,0.23076923076923078,0.58974358974358976,0.41025641025641024,0.5641025641025641,0.5641025641025641,0.60526315789473684,0.58974358974358976,0.34210526315789475,0.48648648648648651,0.2857142857142857,0.52500000000000002,0.51282051282051277,0.42105263157894735,0.35897435897435898,{"$f":"(COUNTIFS(BN$3:BN$194,\">=3.5\",BN$3:BN$194,\"<4.5\",ID_REG,3))/BN211","v":0.34210526315789475},2.7027027027027029E-2,0.29729729729729731,0.3783783783783784,0.27027027027027029,0.21621621621621623,0.3783783783783784,0.43243243243243246,0.27027027027027029,0.35135135135135137,0.32432432432432434,0.40540540540540543,0.3783783783783784,0.35135135135135137,0.35135135135135137,0.29729729729729731,0.24324324324324326,0.27027027027027029,0.24324324324324326,0.27027027027027029,0.1891891891891892,0.27027027027027029,0.21621621621621623,0.29729729729729731,0.40540540540540543,0.21621621621621623,0.40540540540540543,1,0,0,7.4999999999999997E-2,0.70270270270270274,{"$f":"(COUNTIFS(CT$3:CT$194,\">=3.5\",CT$3:CT$194,\"<4.5\",ID_REG,3))/CT211","v":0.31578947368421051},0.55263157894736847,0.51351351351351349,0.30555555555555558,0.56756756756756754,0.43243243243243246,0.55263157894736847,0.42105263157894735,0.34210526315789475,0.52631578947368418,0.52631578947368418,0.5,0.12820512820512819,0.46153846153846156,0.33333333333333331,0.41025641025641024,0.41025641025641024,0.25641025641025639,0.36842105263157893,0.58974358974358976,0.53846153846153844,0.28205128205128205,0.38461538461538464,0.58974358974358976,0.5641025641025641,0.45945945945945948,0.47222222222222221,0.46153846153846156,0.53846153846153844,0.46153846153846156,0.51282051282051277,0.38461538461538464,{"$f":"(COUNTIFS(DZ$3:DZ$194,\">=3.5\",DZ$3:DZ$194,\"<4.5\",ID_REG,3))/DZ211","v":0.38461538461538464},0.51282051282051277,0.58974358974358976,0.57894736842105265,0.52631578947368418,0.4358974358974359,0.5,0.48648648648648651,0.15384615384615385,0.60526315789473684,0.57894736842105265,0.58974358974358976,0.48717948717948717,0.48717948717948717,0.51282051282051277,0.36842105263157893,0.48717948717948717,0.48717948717948717,0.38461538461538464,0.52631578947368418,0.51282051282051277,0.33333333333333331,0.38461538461538464,0.46153846153846156,0.51282051282051277,0.32432432432432434,0.39473684210526316,0.38461538461538464,0.35897435897435898,0.35135135135135137,0.33333333333333331,0.51282051282051277,0.5,0.45945945945945948,0.38461538461538464]
["AFR: % of responses as 5",{"$f":"(COUNTIFS(B$3:B$194,\">=4.5\",B$3:B$194,\"<5.5\",ID_REG,3))/B211","v":0.125},0.125,0.125,0.125,0.15,0.22500000000000001,0.125,0.47368421052631576,0.17948717948717949,0.27027027027027029,0.17948717948717949,0.15625,0.125,0.12820512820512819,0.2,0.125,0.47368421052631576,0.15,0.25,0.2,0.15384615384615385,0.2,0.22222222222222221,0.18421052631578946,0.21212121212121213,0.23684210526315788,0.28205128205128205,0.2,0.15384615384615385,0.16666666666666666,0.125,0.23684210526315788,{"$f":"(COUNTIFS(AH$3:AH$194,\">=4.5\",AH$3:AH$194,\"<5.5\",ID_REG,3))/AH211","v":0.1},0.22500000000000001,0.125,7.6923076923076927E-2,0.33333333333333331,0.23684210526315788,0.10256410256410256,0.26470588235294118,0.21052631578947367,0.1891891891891892,0.17647058823529413,0.14705882352941177,3.3333333333333333E-2,6.0606060606060608E-2,6.0606060606060608E-2,0.29411764705882354,0.17948717948717949,0.125,7.6923076923076927E-2,0.12820512820512819,0.23076923076923078,0.15384615384615385,0.17948717948717949,0.13157894736842105,0.12820512820512819,0.36842105263157893,0.32432432432432434,0.48571428571428571,0.125,0.20512820512820512,0.26315789473684209,0.10256410256410256,{"$f":"(COUNTIFS(BN$3:BN$194,\">=4.5\",BN$3:BN$194,\"<5.5\",ID_REG,3))/BN211","v":0.10526315789473684},0.10810810810810811,0,2.7027027027027029E-2,0,0,2.7027027027027029E-2,0,2.7027027027027029E-2,0,0,2.7027027027027029E-2,5.4054054054054057E-2,8.1081081081081086E-2,5.4054054054054057E-2,2.7027027027027029E-2,2.7027027027027029E-2,0,0,0,0,2.7027027027027029E-2,0,0.10810810810810811,2.7027027027027029E-2,0,2.7027027027027029E-2,0,0,0,0,0.10810810810810811,{"$f":"(COUNTIFS(CT$3:CT$194,\">=4.5\",CT$3:CT$194,\"<5.5\",ID_REG,3))/CT211","v":0.63157894736842102},5.2631578947368418E-2,0.16216216216216217,5.5555555555555552E-2,0.29729729729729731,0.13513513513513514,0.23684210526315788,0.15789473684210525,0.13157894736842105,0.18421052631578946,0.15789473684210525,0.23684210526315788,0.71794871794871795,0.17948717948717949,0.25641025641025639,2.564102564102564E-2,0.4358974358974359,0.30769230769230771,0.34210526315789475,0.12820512820512819,0.12820512820512819,0.28205128205128205,0.20512820512820512,0.33333333333333331,0.23076923076923078,0.16216216216216217,5.5555555555555552E-2,0.46153846153846156,0.33333333333333331,0.35897435897435898,0.20512820512820512,0.30769230769230771,{"$f":"(COUNTIFS(DZ$3:DZ$194,\">=4.5\",DZ$3:DZ$194,\"<5.5\",ID_REG,3))/DZ211","v":0.30769230769230771},0.35897435897435898,0.20512820512820512,0.21052631578947367,0.18421052631578946,0.20512820512820512,0.21052631578947367,0.16216216216216217,5.128205128205128E-2,0.21052631578947367,0.15789473684210525,0.30769230769230771,0.4358974358974359,0.20512820512820512,0.23076923076923078,0.42105263157894735,0.25641025641025639,0.15384615384615385,0.20512820512820512,0.15789473684210525,0.23076923076923078,0.28205128205128205,0.33333333333333331,0.15384615384615385,0.12820512820512819,0.24324324324324326,5.2631578947368418E-2,0.30769230769230771,0.25641025641025639,0.21621621621621623,0.1388888888888889,0.23076923076923078,0.21052631578947367,0.32432432432432434,0.35897435897435898]
["AFR: % of responses as 6",{"$f":"(COUNTIFS(B$3:B$194,\">=5.5\",ID_REG,3))/B211","v":0},0,0,0,0,0.05,2.5000000000000001E-2,0.10526315789473684,0.10256410256410256,0.24324324324324326,0.10256410256410256,0,7.4999999999999997E-2,0,0.05,2.5000000000000001E-2,0.10526315789473684,2.5000000000000001E-2,2.5000000000000001E-2,0.05,2.564102564102564E-2,2.5000000000000001E-2,8.3333333333333329E-2,7.8947368421052627E-2,0.12121212121212122,7.8947368421052627E-2,5.128205128205128E-2,0.05,2.564102564102564E-2,2.7777777777777776E-2,0,2.6315789473684209E-2,{"$f":"(COUNTIFS(AH$3:AH$194,\">=5.5\",ID_REG,3))/AH211","v":2.5000000000000001E-2},2.5000000000000001E-2,0,2.564102564102564E-2,2.564102564102564E-2,2.6315789473684209E-2,2.564102564102564E-2,5.8823529411764705E-2,2.6315789473684209E-2,8.1081081081081086E-2,0,0,0,0,6.0606060606060608E-2,5.8823529411764705E-2,5.128205128205128E-2,2.5000000000000001E-2,2.564102564102564E-2,2.564102564102564E-2,2.564102564102564E-2,2.564102564102564E-2,2.564102564102564E-2,2.6315789473684209E-2,2.564102564102564E-2,7.8947368421052627E-2,8.1081081081081086E-2,0.11428571428571428,0]
["ASP: % of responses as 1",{"$f":"(COUNTIFS(B$3:B$194,\"<=1.5\",ID_REG,2))/B210","v":0},0,0,0,0,0,0,0,0,0,0,0,0,3.5714285714285712E-2,0,0,0,0,0,0,0,0,0,0,0,0,0,0,0,0,0,0,{"$f":"(COUNTIFS(AH$3:AH$194,\"<=1.5\",ID_REG,2))/AH210","v":0},0,0,0,0,0,0,0,0,0,0,3.7037037037037035E-2,0.14814814814814814,7.407407407407407E-2,0.25925925925925924,0,0,0,0,0,0,0,0,0,0,0,0,0,0.16,0.16,0.11538461538461539,0.24,{"$f":"(COUNTIFS(BN$3:BN$194,\"<=1.5\",ID_REG,2))/BN210","v":0.11538461538461539},0.42307692307692307,3.7037037037037035E-2,3.7037037037037035E-2,7.407407407407407E-2,3.7037037037037035E-2,3.7037037037037035E-2,7.407407407407407E-2,0.1111111111111111,0.18518518518518517,3.7037037037037035E-2,3.7037037037037035E-2,7.407407407407407E-2,0.18518518518518517,3.7037037037037035E-2,7.407407407407407E-2,0.1111111111111111,0.18518518518518517,0,3.7037037037037035E-2,0.1111111111111111,0.14814814814814814,3.7037037037037035E-2,3.7037037037037035E-2,3.7037037037037035E-2,0.14814814814814814,0,0,0,0,0.10714285714285714,7.1428571428571425E-2,{"$f":"(COUNTIFS(CT$3:CT$194,\"<=1.5\",ID_REG,2))/CT210","v":0},3.5714285714285712E-2,7.407407407407407E-2,3.5714285714285712E-2,0,7.1428571428571425E-2,0,0,7.1428571428571425E-2,0,7.1428571428571425E-2,7.1428571428571425E-2,0,0,0.1111111111111111,7.1428571428571425E-2,7.1428571428571425E-2,7.1428571428571425E-2,0,3.5714285714285712E-2,0,3.5714285714285712E-2,7.1428571428571425E-2,0,7.1428571428571425E-2,0.17857142857142858,0.17857142857142858,3.5714285714285712E-2,3.5714285714285712E-2,0,0,3.5714285714285712E-2,{"$f":"(COUNTIFS(DZ$3:DZ$194,\"<=1.5\",ID_REG,2))/DZ210","v":0},0,0,0,0,0,0,0.14285714285714285,0.1111111111111111,0,0.10714285714285714,0,3.5714285714285712E-2,3.7037037037037035E-2,3.7037037037037035E-2,7.407407407407407E-2,0,0,3.8461538461538464E-2,3.5714285714285712E-2,3.7037037037037035E-2,7.407407407407407E-2,3.5714285714285712E-2,0,0,0,0,3.5714285714285712E-2,3.5714285714285712E-2,3.7037037037037035E-2,0,3.7037037037037035E-2,3.7037037037037035E-2,7.407407407407407E-2,7.407407407407407E-2]
["ASP: % of responses as 2",{"$f":"(COUNTIFS(B$3:B$194,\">=1.5\",B$3:B$194,\"<2.5\",ID_REG,2))/B210","v":7.1428571428571425E-2},0.14285714285714285,0.10714285714285714,0.10714285714285714,0.17857142857142858,0.17857142857142858,0.21428571428571427,0.36363636363636365,0.22222222222222221,0.29629629629629628,0.1111111111111111,0.44444444444444442,0.35714285714285715,0.42857142857142855,0.21428571428571427,0.21428571428571427,0.36363636363636365,0.14285714285714285,0.21428571428571427,0.10714285714285714,0.21428571428571427,0.14285714285714285,0.22222222222222221,0.34615384615384615,0.5,0.19230769230769232,0.21428571428571427,0.10714285714285714,0.21428571428571427,0.24,0.10714285714285714,0.10714285714285714,{"$f":"(COUNTIFS(AH$3:AH$194,\">=1.5\",AH$3:AH$194,\"<2.5\",ID_REG,2))/AH210","v":0.14285714285714285},3.5714285714285712E-2,0.21428571428571427,0.37037037037037035,7.1428571428571425E-2,0.10714285714285714,0.14285714285714285,0.22222222222222221,0.25,0.25925925925925924,0.29629629629629628,0.25925925925925924,0.25925925925925924,0.29629629629629628,0.33333333333333331,0.34782608695652173,0.17857142857142858,3.5714285714285712E-2,0.37037037037037035,3.5714285714285712E-2,7.1428571428571425E-2,3.5714285714285712E-2,7.1428571428571425E-2,3.5714285714285712E-2,3.5714285714285712E-2,0.14285714285714285,0,3.8461538461538464E-2,0.04,0.12,0.26923076923076922,0.36,{"$f":"(COUNTIFS(BN$3:BN$194,\">=1.5\",BN$3:BN$194,\"<2.5\",ID_REG,2))/BN210","v":0.19230769230769232},0.38461538461538464,0.18518518518518517,0.22222222222222221,0.18518518518518517,0.25925925925925924,0.22222222222222221,0.1111111111111111,7.407407407407407E-2,0.18518518518518517,0.18518518518518517,0.22222222222222221,0.14814814814814814,0.22222222222222221,0.22222222222222221,7.407407407407407E-2,0.1111111111111111,0.22222222222222221,0.22222222222222221,0.22222222222222221,0.18518518518518517,0.33333333333333331,0.25925925925925924,0.14814814814814814,0.18518518518518517,0.18518518518518517,0.18518518518518517,0,0,1,0.5357142857142857,0.21428571428571427,{"$f":"(COUNTIFS(CT$3:CT$194,\">=1.5\",CT$3:CT$194,\"<2.5\",ID_REG,2))/CT210","v":3.5714285714285712E-2},7.1428571428571425E-2,0.1111111111111111,0.17857142857142858,7.1428571428571425E-2,3.5714285714285712E-2,3.5714285714285712E-2,7.1428571428571425E-2,0.10714285714285714,0.10714285714285714,0.10714285714285714,0.17857142857142858,0.17857142857142858,7.1428571428571425E-2,3.7037037037037035E-2,0.10714285714285714,3.5714285714285712E-2,0,0,3.5714285714285712E-2,0,0,0,0,3.5714285714285712E-2,3.5714285714285712E-2,7.1428571428571425E-2,3.5714285714285712E-2,3.5714285714285712E-2,7.1428571428571425E-2,3.5714285714285712E-2,7.1428571428571425E-2,{"$f":"(COUNTIFS(DZ$3:DZ$194,\">=1.5\",DZ$3:DZ$194,\"<2.5\",ID_REG,2))/DZ210","v":0.10714285714285714},3.5714285714285712E-2,3.5714285714285712E-2,3.5714285714285712E-2,3.5714285714285712E-2,7.1428571428571425E-2,0,0.10714285714285714,0.18518518518518517,3.5714285714285712E-2,0,3.5714285714285712E-2,0,7.407407407407407E-2,3.7037037037037035E-2,3.7037037037037035E-2,0.17857142857142858,0.1111111111111111,3.8461538461538464E-2,0.14285714285714285,3.7037037037037035E-2,0.1111111111111111,0.10714285714285714,0.1111111111111111,3.7037037037037035E-2,3.7037037037037035E-2,0.1111111111111111,0.21428571428571427,0.10714285714285714,0.1111111111111111,3.7037037037037035E-2,0.14814814814814814,3.7037037037037035E-2,0.14814814814814814,3.7037037037037035E-2]
["ASP: % of responses as 3",{"$f":"(COUNTIFS(B$3:B$194,\">=2.5\",B$3:B$194,\"<3.5\",ID_REG,2))/B210","v":0.4642857142857143},0.39285714285714285,0.42857142857142855,0.39285714285714285,0.42857142857142855,0.42857142857142855,0.35714285714285715,0.13636363636363635,0.22222222222222221,0.14814814814814814,0.29629629629629628,0.22222222222222221,0.14285714285714285,0.21428571428571427,0.32142857142857145,0.4642857142857143,0.13636363636363635,0.25,0.21428571428571427,0.2857142857142857,0.10714285714285714,0.17857142857142858,0.14814814814814814,0.23076923076923078,0.05,0.15384615384615385,0.25,0.2857142857142857,0.10714285714285714,0.24,0.5,0.39285714285714285,{"$f":"(COUNTIFS(AH$3:AH$194,\">=2.5\",AH$3:AH$194,\"<3.5\",ID_REG,2))/AH210","v":0.4642857142857143},0.35714285714285715,0.21428571428571427,0.22222222222222221,0.32142857142857145,0.39285714285714285,0.35714285714285715,0.29629629629629628,0.35714285714285715,0.22222222222222221,0.18518518518518517,0.18518518518518517,0.22222222222222221,0.14814814814814814,7.407407407407407E-2,0.17391304347826086,0.39285714285714285,0.39285714285714285,0.22222222222222221,0.25,0.25,0.21428571428571427,0.21428571428571427,0.25,0.25,7.1428571428571425E-2,0.20833333333333334,0.19230769230769232,0,0.24,0.19230769230769232,0.08,{"$f":"(COUNTIFS(BN$3:BN$194,\">=2.5\",BN$3:BN$194,\"<3.5\",ID_REG,2))/BN210","v":7.6923076923076927E-2},3.8461538461538464E-2,0.33333333333333331,0.29629629629629628,0.37037037037037035,0.25925925925925924,0.29629629629629628,0.48148148148148145,0.44444444444444442,0.22222222222222221,0.37037037037037035,0.29629629629629628,0.40740740740740738,0.29629629629629628,0.25925925925925924,0.55555555555555558,0.44444444444444442,0.18518518518518517,0.40740740740740738,0.33333333333333331,0.37037037037037035,0.18518518518518517,0.33333333333333331,0.40740740740740738,0.33333333333333331,0.29629629629629628,0.33333333333333331,0,1,0,0.25,0.2857142857142857,{"$f":"(COUNTIFS(CT$3:CT$194,\">=2.5\",CT$3:CT$194,\"<3.5\",ID_REG,2))/CT210","v":0.10714285714285714},0.35714285714285715,0.37037037037037035,0.35714285714285715,0.14285714285714285,0.25,0.17857142857142858,0.25,0.21428571428571427,0.17857142857142858,0.17857142857142858,0.2857142857142857,3.5714285714285712E-2,0.2857142857142857,0.29629629629629628,0.39285714285714285,3.5714285714285712E-2,0.14285714285714285,0.17857142857142858,0.21428571428571427,0.25,7.1428571428571425E-2,0.25,0.14285714285714285,0.17857142857142858,0.2857142857142857,0.21428571428571427,0.14285714285714285,0.14285714285714285,0.25,0.14285714285714285,0.10714285714285714,{"$f":"(COUNTIFS(DZ$3:DZ$194,\">=2.5\",DZ$3:DZ$194,\"<3.5\",ID_REG,2))/DZ210","v":3.5714285714285712E-2},0.14285714285714285,0.2857142857142857,0.21428571428571427,0.25,0.25,0.35714285714285715,0.21428571428571427,0.40740740740740738,0.14285714285714285,0.2857142857142857,0.21428571428571427,0.17857142857142858,0.18518518518518517,0.18518518518518517,0.25925925925925924,0.10714285714285714,0.14814814814814814,0.15384615384615385,0.14285714285714285,0.33333333333333331,7.407407407407407E-2,0.17857142857142858,0.29629629629629628,0.40740740740740738,0.48148148148148145,0.29629629629629628,7.1428571428571425E-2,0.25,0.40740740740740738,0.44444444444444442,7.407407407407407E-2,0.22222222222222221,0.18518518518518517,0.25925925925925924]
["ASP: % of responses as 4",{"$f":"(COUNTIFS(B$3:B$194,\">=3.5\",B$3:B$194,\"<4.5\",ID_REG,2))/B210","v":0.21428571428571427},0.2857142857142857,0.21428571428571427,0.2857142857142857,0.14285714285714285,0.17857142857142858,0.2857142857142857,0.13636363636363635,0.25925925925925924,0.18518518518518517,0.29629629629629628,0.1111111111111111,0.17857142857142858,0.10714285714285714,0.14285714285714285,0.21428571428571427,0.13636363636363635,0.39285714285714285,0.32142857142857145,0.42857142857142855,0.39285714285714285,0.42857142857142855,0.33333333333333331,0.19230769230769232,0.15,0.38461538461538464,0.25,0.42857142857142855,0.39285714285714285,0.4,0.21428571428571427,0.25,{"$f":"(COUNTIFS(AH$3:AH$194,\">=3.5\",AH$3:AH$194,\"<4.5\",ID_REG,2))/AH210","v":0.17857142857142858},0.2857142857142857,0.35714285714285715,0.25925925925925924,0.2857142857142857,0.25,0.2857142857142857,0.22222222222222221,0.14285714285714285,0.22222222222222221,0.22222222222222221,0.22222222222222221,7.407407407407407E-2,0.33333333333333331,0.22222222222222221,0.17391304347826086,0.17857142857142858,0.2857142857142857,0.25925925925925924,0.4642857142857143,0.2857142857142857,0.5714285714285714,0.42857142857142855,0.5357142857142857,0.4642857142857143,0.21428571428571427,0.20833333333333334,0.19230769230769232,0.76,0.4,0.34615384615384615,0.24,{"$f":"(COUNTIFS(BN$3:BN$194,\">=3.5\",BN$3:BN$194,\"<4.5\",ID_REG,2))/BN210","v":0.42307692307692307},0.15384615384615385,0.37037037037037035,0.33333333333333331,0.33333333333333331,0.40740740740740738,0.40740740740740738,0.25925925925925924,0.29629629629629628,0.25925925925925924,0.29629629629629628,0.22222222222222221,0.25925925925925924,0.18518518518518517,0.29629629629629628,0.18518518518518517,0.25925925925925924,0.25925925925925924,0.25925925925925924,0.33333333333333331,0.29629629629629628,0.22222222222222221,0.29629629629629628,0.18518518518518517,0.37037037037037035,0.25925925925925924,0.37037037037037035,1,0,0,0.10714285714285714,0.2857142857142857,{"$f":"(COUNTIFS(CT$3:CT$194,\">=3.5\",CT$3:CT$194,\"<4.5\",ID_REG,2))/CT210","v":0.35714285714285715},0.5,0.37037037037037035,0.25,0.5357142857142857,0.35714285714285715,0.4642857142857143,0.32142857142857145,0.39285714285714285,0.5357142857142857,0.5357142857142857,0.25,0.35714285714285715,0.32142857142857145,0.33333333333333331,0.32142857142857145,0.35714285714285715,0.4642857142857143,0.39285714285714285,0.2857142857142857,0.39285714285714285,0.42857142857142855,0.25,0.6785714285714286,0.6071428571428571,0.35714285714285715,0.42857142857142855,0.6071428571428571,0.5714285714285714,0.5,0.6071428571428571,0.6428571428571429,{"$f":"(COUNTIFS(DZ$3:DZ$194,\">=3.5\",DZ$3:DZ$194,\"<4.5\",ID_REG,2))/DZ210","v":0.6428571428571429},0.6785714285714286,0.5357142857142857,0.5357142857142857,0.6071428571428571,0.6071428571428571,0.4642857142857143,0.35714285714285715,0.25925925925925924,0.5714285714285714,0.4642857142857143,0.6071428571428571,0.6071428571428571,0.51851851851851849,0.59259259259259256,0.59259259259259256,0.6071428571428571,0.55555555555555558,0.57692307692307687,0.5714285714285714,0.48148148148148145,0.59259259259259256,0.4642857142857143,0.48148148148148145,0.44444444444444442,0.40740740740740738,0.55555555555555558,0.5,0.4642857142857143,0.33333333333333331,0.44444444444444442,0.55555555555555558,0.62962962962962965,0.51851851851851849,0.51851851851851849]
["ASP: % of responses as 5",{"$f":"(COUNTIFS(B$3:B$194,\">=4.5\",B$3:B$194,\"<5.5\",ID_REG,2))/B210","v":0.21428571428571427},0.14285714285714285,0.21428571428571427,0.17857142857142858,0.21428571428571427,0.14285714285714285,0.10714285714285714,0.22727272727272727,0.14814814814814814,0.14814814814814814,0.22222222222222221,0.14814814814814814,0.17857142857142858,0.14285714285714285,0.21428571428571427,0.10714285714285714,0.22727272727272727,0.14285714285714285,0.17857142857142858,0.10714285714285714,0.21428571428571427,0.17857142857142858,0.18518518518518517,0.19230769230769232,0.25,0.15384615384615385,0.21428571428571427,0.10714285714285714,0.21428571428571427,0.08,0.14285714285714285,0.17857142857142858,{"$f":"(COUNTIFS(AH$3:AH$194,\">=4.5\",AH$3:AH$194,\"<5.5\",ID_REG,2))/AH210","v":0.17857142857142858},0.21428571428571427,0.17857142857142858,0.1111111111111111,0.21428571428571427,0.17857142857142858,0.17857142857142858,0.22222222222222221,0.10714285714285714,0.14814814814814814,0.22222222222222221,0.22222222222222221,0.22222222222222221,0.1111111111111111,7.407407407407407E-2,0.2608695652173913,0.21428571428571427,0.25,0.1111111111111111,0.10714285714285714,0.25,3.5714285714285712E-2,0.17857142857142858,7.1428571428571425E-2,0.10714285714285714,0.39285714285714285,0.41666666666666669,0.42307692307692307,0.04,0.08,7.6923076923076927E-2,0.08,{"$f":"(COUNTIFS(BN$3:BN$194,\">=4.5\",BN$3:BN$194,\"<5.5\",ID_REG,2))/BN210","v":0.19230769230769232},0,7.407407407407407E-2,0.1111111111111111,7.407407407407407E-2,3.7037037037037035E-2,7.407407407407407E-2,0.14814814814814814,0.1111111111111111,0.14814814814814814,0.14814814814814814,0.22222222222222221,0.1111111111111111,0.1111111111111111,0.18518518518518517,0.1111111111111111,7.407407407407407E-2,0.14814814814814814,0.1111111111111111,7.407407407407407E-2,3.7037037037037035E-2,0.1111111111111111,7.407407407407407E-2,0.22222222222222221,7.407407407407407E-2,0.1111111111111111,0.1111111111111111,0,0,0,0,0.14285714285714285,{"$f":"(COUNTIFS(CT$3:CT$194,\">=4.5\",CT$3:CT$194,\"<5.5\",ID_REG,2))/CT210","v":0.5},3.5714285714285712E-2,7.407407407407407E-2,0.17857142857142858,0.25,0.2857142857142857,0.32142857142857145,0.35714285714285715,0.21428571428571427,0.17857142857142858,0.10714285714285714,0.21428571428571427,0.42857142857142855,0.32142857142857145,0.22222222222222221,0.10714285714285714,0.5,0.32142857142857145,0.42857142857142855,0.42857142857142855,0.35714285714285715,0.4642857142857143,0.42857142857142855,0.17857142857142858,0.10714285714285714,0.14285714285714285,0.10714285714285714,0.21428571428571427,0.21428571428571427,0.17857142857142858,0.21428571428571427,0.14285714285714285,{"$f":"(COUNTIFS(DZ$3:DZ$194,\">=4.5\",DZ$3:DZ$194,\"<5.5\",ID_REG,2))/DZ210","v":0.21428571428571427},0.14285714285714285,0.14285714285714285,0.21428571428571427,0.10714285714285714,7.1428571428571425E-2,0.17857142857142858,0.17857142857142858,3.7037037037037035E-2,0.25,0.14285714285714285,0.14285714285714285,0.17857142857142858,0.18518518518518517,0.14814814814814814,7.407407407407407E-2,0.10714285714285714,0.18518518518518517,0.19230769230769232,0.10714285714285714,0.1111111111111111,0.14814814814814814,0.21428571428571427,0.1111111111111111,0.1111111111111111,7.407407407407407E-2,3.7037037037037035E-2,0.17857142857142858,0.14285714285714285,0.1111111111111111,7.407407407407407E-2,0.18518518518518517,7.407407407407407E-2,7.407407407407407E-2,0.1111111111111111]
["ASP: % of responses as 6",{"$f":"(COUNTIFS(B$3:B$194,\">=5.5\",ID_REG,2))/B210","v":3.5714285714285712E-2},3.5714285714285712E-2,3.5714285714285712E-2,3.5714285714285712E-2,3.5714285714285712E-2,7.1428571428571425E-2,3.5714285714285712E-2,0.13636363636363635,0.14814814814814814,0.22222222222222221,7.407407407407407E-2,7.407407407407407E-2,0.14285714285714285,7.1428571428571425E-2,0.10714285714285714,0,0.13636363636363635,7.1428571428571425E-2,7.1428571428571425E-2,7.1428571428571425E-2,7.1428571428571425E-2,7.1428571428571425E-2,0.1111111111111111,3.8461538461538464E-2,0.05,0.11538461538461539,7.1428571428571425E-2,7.1428571428571425E-2,7.1428571428571425E-2,0.04,3.5714285714285712E-2,7.1428571428571425E-2,{"$f":"(COUNTIFS(AH$3:AH$194,\">=5.5\",ID_REG,2))/AH210","v":3.5714285714285712E-2},0.10714285714285714,3.5714285714285712E-2,3.7037037037037035E-2,0.10714285714285714,7.1428571428571425E-2,3.5714285714285712E-2,3.7037037037037035E-2,0.14285714285714285,0.14814814814814814,7.407407407407407E-2,7.407407407407407E-2,7.407407407407407E-2,3.7037037037037035E-2,3.7037037037037035E-2,4.3478260869565216E-2,3.5714285714285712E-2,3.5714285714285712E-2,3.7037037037037035E-2,0.14285714285714285,0.14285714285714285,0.14285714285714285,0.10714285714285714,0.10714285714285714,0.14285714285714285,0.17857142857142858,0.16666666666666666,0.15384615384615385,0]
["EES: % of responses as 1",{"$f":"(COUNTIFS(B$3:B$194,\"<=1.5\",ID_REG,4))/B212","v":0},0,0,0,0,0,0,0,0,0,0,0,5.2631578947368418E-2,5.5555555555555552E-2,0,0,0,0,0,0,0,0,0,0,0,0,0,0,0,0,0,0,{"$f":"(COUNTIFS(AH$3:AH$194,\"<=1.5\",ID_REG,4))/AH212","v":0},0,0,0,0,0,0,0,0,0,0,5.8823529411764705E-2,0.22222222222222221,0.23529411764705882,0.17647058823529413,0,0,0,0,0,0,0,0,0,0,0,0,0,0.1111111111111111,0.11764705882352941,0,0.27777777777777779,{"$f":"(COUNTIFS(BN$3:BN$194,\"<=1.5\",ID_REG,4))/BN212","v":0.10526315789473684},0.47058823529411764,0,0,5.5555555555555552E-2,0,5.5555555555555552E-2,5.8823529411764705E-2,5.8823529411764705E-2,0,0,0,0.11764705882352941,0,0,5.8823529411764705E-2,0.11764705882352941,0,5.8823529411764705E-2,0,5.8823529411764705E-2,0,0,5.8823529411764705E-2,5.8823529411764705E-2,5.8823529411764705E-2,5.8823529411764705E-2,0,0,0,0.21052631578947367,0,{"$f":"(COUNTIFS(CT$3:CT$194,\"<=1.5\",ID_REG,4))/CT212","v":0},0.10526315789473684,5.2631578947368418E-2,5.2631578947368418E-2,5.2631578947368418E-2,0,0,0,5.5555555555555552E-2,0,5.8823529411764705E-2,0.1111111111111111,0,0.1111111111111111,0,5.5555555555555552E-2,0,0,5.2631578947368418E-2,0,0,0,0,0,0,5.2631578947368418E-2,5.8823529411764705E-2,5.2631578947368418E-2,5.2631578947368418E-2,5.2631578947368418E-2,5.2631578947368418E-2,5.2631578947368418E-2,{"$f":"(COUNTIFS(DZ$3:DZ$194,\"<=1.5\",ID_REG,4))/DZ212","v":0},0,5.2631578947368418E-2,0,5.5555555555555552E-2,0,5.2631578947368418E-2,5.2631578947368418E-2,5.5555555555555552E-2,0,0,5.5555555555555552E-2,5.2631578947368418E-2,0,5.5555555555555552E-2,5.5555555555555552E-2,0.1111111111111111,0.10526315789473684,5.2631578947368418E-2,0,5.5555555555555552E-2,5.5555555555555552E-2,5.5555555555555552E-2,5.2631578947368418E-2,0,0,5.5555555555555552E-2,5.5555555555555552E-2,5.8823529411764705E-2,0,0,5.5555555555555552E-2,0,5.5555555555555552E-2,5.5555555555555552E-2]
["EES: % of responses as 2",{"$f":"(COUNTIFS(B$3:B$194,\">=1.5\",B$3:B$194,\"<2.5\",ID_REG,4))/B212","v":5.2631578947368418E-2},5.2631578947368418E-2,0.10526315789473684,0.10526315789473684,5.2631578947368418E-2,0.21052631578947367,0.1111111111111111,0.10526315789473684,0.15789473684210525,0.15789473684210525,0.10526315789473684,0.47058823529411764,0.36842105263157893,0.44444444444444442,5.5555555555555552E-2,0.1111111111111111,0.10526315789473684,0.15789473684210525,0.21052631578947367,0.10526315789473684,0.26315789473684209,0.15789473684210525,0.47058823529411764,0.36842105263157893,0.44444444444444442,0.16666666666666666,0.21052631578947367,0.10526315789473684,0.26315789473684209,0.33333333333333331,0.10526315789473684,0.26315789473684209,{"$f":"(COUNTIFS(AH$3:AH$194,\">=1.5\",AH$3:AH$194,\"<2.5\",ID_REG,4))/AH212","v":0.26315789473684209},5.2631578947368418E-2,0.26315789473684209,0.29411764705882354,0.10526315789473684,0.26315789473684209,0.36842105263157893,0.53333333333333333,0.35294117647058826,0.3888888888888889,0.41176470588235292,0.35294117647058826,0.3888888888888889,0.47058823529411764,0.58823529411764708,0.29411764705882354,0.11764705882352941,0.10526315789473684,0.29411764705882354,0.15789473684210525,0.15789473684210525,0.15789473684210525,0.15789473684210525,0.15789473684210525,0.15789473684210525,0.21052631578947367,0.26666666666666666,0.1875,0,0,0,0.22222222222222221,{"$f":"(COUNTIFS(BN$3:BN$194,\">=1.5\",BN$3:BN$194,\"<2.5\",ID_REG,4))/BN212","v":5.2631578947368418E-2},0.17647058823529413,0.16666666666666666,0.16666666666666666,0.16666666666666666,0.22222222222222221,0.22222222222222221,0.11764705882352941,0.11764705882352941,0.11764705882352941,0.29411764705882354,0.11764705882352941,0.23529411764705882,0.11764705882352941,0.29411764705882354,0.11764705882352941,0.11764705882352941,0.23529411764705882,0.29411764705882354,0.17647058823529413,0.17647058823529413,0.17647058823529413,0.29411764705882354,0.17647058823529413,0.17647058823529413,0.17647058823529413,0.29411764705882354,0,0,1,0.26315789473684209,5.2631578947368418E-2,{"$f":"(COUNTIFS(CT$3:CT$194,\">=1.5\",CT$3:CT$194,\"<2.5\",ID_REG,4))/CT212","v":5.2631578947368418E-2},0.26315789473684209,0.21052631578947367,0.15789473684210525,5.2631578947368418E-2,0.15789473684210525,0.15789473684210525,0.15789473684210525,0.22222222222222221,5.5555555555555552E-2,5.8823529411764705E-2,5.5555555555555552E-2,0.16666666666666666,0.27777777777777779,5.5555555555555552E-2,0,5.5555555555555552E-2,5.2631578947368418E-2,5.2631578947368418E-2,0.10526315789473684,5.5555555555555552E-2,0.26315789473684209,0.22222222222222221,0.10526315789473684,0.16666666666666666,0.10526315789473684,0.17647058823529413,0,0,5.2631578947368418E-2,5.2631578947368418E-2,5.2631578947368418E-2,{"$f":"(COUNTIFS(DZ$3:DZ$194,\">=1.5\",DZ$3:DZ$194,\"<2.5\",ID_REG,4))/DZ212","v":5.5555555555555552E-2},5.2631578947368418E-2,0,0,5.5555555555555552E-2,0.10526315789473684,0,5.2631578947368418E-2,0.1111111111111111,5.2631578947368418E-2,0.11764705882352941,0,0,5.5555555555555552E-2,0.16666666666666666,0.1111111111111111,0,5.2631578947368418E-2,0,0.16666666666666666,0.1111111111111111,0.1111111111111111,0.16666666666666666,0.10526315789473684,0.10526315789473684,0.21052631578947367,0.22222222222222221,0.16666666666666666,0.17647058823529413,0.21052631578947367,0.23529411764705882,0.1111111111111111,0.29411764705882354,0.1111111111111111,0.1111111111111111]
["EES: % of responses as 3",{"$f":"(COUNTIFS(B$3:B$194,\">=2.5\",B$3:B$194,\"<3.5\",ID_REG,4))/B212","v":0.47368421052631576},0.42105263157894735,0.42105263157894735,0.42105263157894735,0.36842105263157893,0.31578947368421051,0.27777777777777779,0.21052631578947367,0.26315789473684209,5.2631578947368418E-2,0.15789473684210525,5.8823529411764705E-2,5.2631578947368418E-2,0,0.33333333333333331,0.3888888888888889,0.21052631578947367,0.31578947368421051,0.26315789473684209,0.21052631578947367,0.31578947368421051,0.36842105263157893,0,0,5.5555555555555552E-2,0.22222222222222221,0.15789473684210525,0.21052631578947367,0.31578947368421051,0.13333333333333333,0.42105263157894735,0.21052631578947367,{"$f":"(COUNTIFS(AH$3:AH$194,\">=2.5\",AH$3:AH$194,\"<3.5\",ID_REG,4))/AH212","v":0.36842105263157893},0.15789473684210525,0.26315789473684209,0.17647058823529413,0.15789473684210525,0.21052631578947367,0.26315789473684209,0,0.17647058823529413,5.5555555555555552E-2,5.8823529411764705E-2,5.8823529411764705E-2,0.1111111111111111,0,0,0.17647058823529413,0.29411764705882354,0.36842105263157893,0.17647058823529413,0.26315789473684209,0.26315789473684209,0.21052631578947367,0.31578947368421051,0.26315789473684209,0.26315789473684209,5.2631578947368418E-2,0.2,0.1875,0.33333333333333331,5.8823529411764705E-2,0.1111111111111111,0,{"$f":"(COUNTIFS(BN$3:BN$194,\">=2.5\",BN$3:BN$194,\"<3.5\",ID_REG,4))/BN212","v":0.10526315789473684},0.17647058823529413,0.5,0.44444444444444442,0.5,0.5,0.27777777777777779,0.52941176470588236,0.58823529411764708,0.47058823529411764,0.29411764705882354,0.58823529411764708,0.47058823529411764,0.41176470588235292,0.41176470588235292,0.58823529411764708,0.58823529411764708,0.41176470588235292,0.35294117647058826,0.70588235294117652,0.58823529411764708,0.41176470588235292,0.41176470588235292,0.35294117647058826,0.47058823529411764,0.35294117647058826,0.23529411764705882,0,1,0,5.2631578947368418E-2,0.21052631578947367,{"$f":"(COUNTIFS(CT$3:CT$194,\">=2.5\",CT$3:CT$194,\"<3.5\",ID_REG,4))/CT212","v":0.21052631578947367},0.36842105263157893,0.26315789473684209,0.21052631578947367,0.42105263157894735,0.10526315789473684,0.52631578947368418,0.47368421052631576,0.33333333333333331,0.1111111111111111,0.23529411764705882,0.44444444444444442,0.27777777777777779,0.3888888888888889,0.33333333333333331,0.33333333333333331,0.16666666666666666,0.21052631578947367,0.26315789473684209,0.26315789473684209,0.3888888888888889,0.10526315789473684,0.27777777777777779,0.15789473684210525,0.16666666666666666,0.21052631578947367,0.17647058823529413,5.2631578947368418E-2,0.10526315789473684,0.10526315789473684,0.21052631578947367,0.10526315789473684,{"$f":"(COUNTIFS(DZ$3:DZ$194,\">=2.5\",DZ$3:DZ$194,\"<3.5\",ID_REG,4))/DZ212","v":0.3888888888888889},0.15789473684210525,0.21052631578947367,0.36842105263157893,0.16666666666666666,0.36842105263157893,0.42105263157894735,0.26315789473684209,0.72222222222222221,0.31578947368421051,0.41176470588235292,0.1111111111111111,0.10526315789473684,0.22222222222222221,0.16666666666666666,5.5555555555555552E-2,0.22222222222222221,0.21052631578947367,0.15789473684210525,0.16666666666666666,5.5555555555555552E-2,0.16666666666666666,0.1111111111111111,0.21052631578947367,0.31578947368421051,0.26315789473684209,0.33333333333333331,0.16666666666666666,5.8823529411764705E-2,0.26315789473684209,0.23529411764705882,0.1111111111111111,5.8823529411764705E-2,5.5555555555555552E-2,5.5555555555555552E-2]
["EES: % of responses as 4",{"$f":"(COUNTIFS(B$3:B$194,\">=3.5\",B$3:B$194,\"<4.5\",ID_REG,4))/B212","v":0.15789473684210525},0.21052631578947367,0.15789473684210525,0.15789473684210525,0.31578947368421051,0.15789473684210525,0.44444444444444442,0.31578947368421051,0.36842105263157893,0.31578947368421051,0.42105263157894735,0.23529411764705882,0.15789473684210525,0.22222222222222221,0.3888888888888889,0.33333333333333331,0.31578947368421051,0.15789473684210525,5.2631578947368418E-2,0.21052631578947367,0.10526315789473684,0.15789473684210525,5.8823529411764705E-2,0.10526315789473684,5.5555555555555552E-2,0.1111111111111111,0.15789473684210525,0.21052631578947367,0.10526315789473684,0.13333333333333333,0.15789473684210525,0.21052631578947367,{"$f":"(COUNTIFS(AH$3:AH$194,\">=3.5\",AH$3:AH$194,\"<4.5\",ID_REG,4))/AH212","v":5.2631578947368418E-2},0.31578947368421051,0.26315789473684209,0.35294117647058826,0.31578947368421051,0.21052631578947367,0.15789473684210525,0.13333333333333333,0.11764705882352941,0.22222222222222221,0.17647058823529413,0.17647058823529413,0.16666666666666666,0.23529411764705882,0.11764705882352941,0.11764705882352941,0.35294117647058826,0.26315789473684209,0.35294117647058826,0.36842105263157893,0.31578947368421051,0.42105263157894735,0.26315789473684209,0.42105263157894735,0.36842105263157893,0.31578947368421051,0.33333333333333331,0.4375,0.3888888888888889,0.6470588235294118,0.88888888888888884,0.3888888888888889,{"$f":"(COUNTIFS(BN$3:BN$194,\">=3.5\",BN$3:BN$194,\"<4.5\",ID_REG,4))/BN212","v":0.63157894736842102},0.11764705882352941,0.33333333333333331,0.27777777777777779,0.27777777777777779,0.27777777777777779,0.33333333333333331,0.35294117647058826,0.23529411764705882,0.17647058823529413,0.41176470588235292,0.17647058823529413,0.11764705882352941,0.17647058823529413,0.17647058823529413,0.23529411764705882,0.17647058823529413,0.17647058823529413,0.29411764705882354,0.11764705882352941,0.17647058823529413,0.23529411764705882,0.29411764705882354,0.23529411764705882,0.23529411764705882,0.29411764705882354,0.35294117647058826,1,0,0,0.47368421052631576,0.57894736842105265,{"$f":"(COUNTIFS(CT$3:CT$194,\">=3.5\",CT$3:CT$194,\"<4.5\",ID_REG,4))/CT212","v":0.15789473684210525},0.26315789473684209,0.31578947368421051,0.47368421052631576,0.36842105263157893,0.36842105263157893,0.21052631578947367,0.26315789473684209,0.16666666666666666,0.55555555555555558,0.47058823529411764,0.27777777777777779,0.3888888888888889,0.22222222222222221,0.5,0.33333333333333331,0.61111111111111116,0.36842105263157893,0.47368421052631576,0.52631578947368418,0.5,0.47368421052631576,0.3888888888888889,0.57894736842105265,0.61111111111111116,0.52631578947368418,0.52941176470588236,0.36842105263157893,0.47368421052631576,0.57894736842105265,0.47368421052631576,0.68421052631578949,{"$f":"(COUNTIFS(DZ$3:DZ$194,\">=3.5\",DZ$3:DZ$194,\"<4.5\",ID_REG,4))/DZ212","v":0.44444444444444442},0.63157894736842102,0.63157894736842102,0.36842105263157893,0.3888888888888889,0.36842105263157893,0.42105263157894735,0.52631578947368418,0.1111111111111111,0.36842105263157893,0.29411764705882354,0.44444444444444442,0.36842105263157893,0.55555555555555558,0.61111111111111116,0.3888888888888889,0.27777777777777779,0.42105263157894735,0.68421052631578949,0.5,0.5,0.33333333333333331,0.44444444444444442,0.47368421052631576,0.47368421052631576,0.26315789473684209,0.27777777777777779,0.44444444444444442,0.47058823529411764,0.26315789473684209,0.35294117647058826,0.66666666666666663,0.58823529411764708,0.44444444444444442,0.3888888888888889]
["EES: % of responses as 5",{"$f":"(COUNTIFS(B$3:B$194,\">=4.5\",B$3:B$194,\"<5.5\",ID_REG,4))/B212","v":0.31578947368421051},0.31578947368421051,0.31578947368421051,0.31578947368421051,0.26315789473684209,0.31578947368421051,0.16666666666666666,0.21052631578947367,0.21052631578947367,0.21052631578947367,0.26315789473684209,0.23529411764705882,0.31578947368421051,0.27777777777777779,0.16666666666666666,0.16666666666666666,0.21052631578947367,0.31578947368421051,0.26315789473684209,0.31578947368421051,0.31578947368421051,0.26315789473684209,0.23529411764705882,0.36842105263157893,0.27777777777777779,0.22222222222222221,0.21052631578947367,0.31578947368421051,0.31578947368421051,0.26666666666666666,0.31578947368421051,0.21052631578947367,{"$f":"(COUNTIFS(AH$3:AH$194,\">=4.5\",AH$3:AH$194,\"<5.5\",ID_REG,4))/AH212","v":0.31578947368421051},0.31578947368421051,0.15789473684210525,0.17647058823529413,0.15789473684210525,0.21052631578947367,0.21052631578947367,0.2,0.23529411764705882,0.27777777777777779,0.23529411764705882,0.23529411764705882,0.1111111111111111,5.8823529411764705E-2,0.11764705882352941,0.35294117647058826,0.17647058823529413,0.21052631578947367,0.17647058823529413,0.15789473684210525,0.26315789473684209,0.15789473684210525,0.26315789473684209,0.10526315789473684,0.15789473684210525,0.26315789473684209,0.13333333333333333,6.25E-2,0.16666666666666666,0.17647058823529413,0,0.1111111111111111,{"$f":"(COUNTIFS(BN$3:BN$194,\">=4.5\",BN$3:BN$194,\"<5.5\",ID_REG,4))/BN212","v":0.10526315789473684},5.8823529411764705E-2,0,0.1111111111111111,0,0,0.1111111111111111,0,0,0.23529411764705882,0,0.11764705882352941,5.8823529411764705E-2,0.29411764705882354,0.11764705882352941,0,0,0.17647058823529413,0,0,0,0.17647058823529413,0,0.17647058823529413,5.8823529411764705E-2,0.11764705882352941,5.8823529411764705E-2,0,0,0,0,0.15789473684210525,{"$f":"(COUNTIFS(CT$3:CT$194,\">=4.5\",CT$3:CT$194,\"<5.5\",ID_REG,4))/CT212","v":0.57894736842105265},0,0.15789473684210525,0.10526315789473684,0.10526315789473684,0.36842105263157893,0.10526315789473684,0.10526315789473684,0.22222222222222221,0.27777777777777779,0.17647058823529413,0.1111111111111111,0.16666666666666666,0,0.1111111111111111,0.27777777777777779,0.16666666666666666,0.36842105263157893,0.15789473684210525,0.10526315789473684,5.5555555555555552E-2,0.15789473684210525,0.1111111111111111,0.15789473684210525,5.5555555555555552E-2,0.10526315789473684,5.8823529411764705E-2,0.52631578947368418,0.36842105263157893,0.21052631578947367,0.21052631578947367,0.10526315789473684,{"$f":"(COUNTIFS(DZ$3:DZ$194,\">=4.5\",DZ$3:DZ$194,\"<5.5\",ID_REG,4))/DZ212","v":0.1111111111111111},0.15789473684210525,0.10526315789473684,0.26315789473684209,0.33333333333333331,0.15789473684210525,0.10526315789473684,0.10526315789473684,0,0.26315789473684209,0.17647058823529413,0.3888888888888889,0.47368421052631576,0.16666666666666666,5.5555555555555552E-2,0.3888888888888889,0.3888888888888889,0.21052631578947367,0.10526315789473684,0.16666666666666666,0.27777777777777779,0.33333333333333331,0.22222222222222221,0.15789473684210525,0.10526315789473684,0.26315789473684209,0.1111111111111111,0.16666666666666666,0.23529411764705882,0.26315789473684209,0.17647058823529413,5.5555555555555552E-2,5.8823529411764705E-2,0.33333333333333331,0.3888888888888889]
["EES: % of responses as 6",{"$f":"(COUNTIFS(B$3:B$194,\">=5.5\",ID_REG,4))/B212","v":0},0,0,0,0,0,0,0.15789473684210525,0,0.26315789473684209,5.2631578947368418E-2,0,5.2631578947368418E-2,0,5.5555555555555552E-2,0,0.15789473684210525,5.2631578947368418E-2,0.21052631578947367,0.15789473684210525,0,5.2631578947368418E-2,0.23529411764705882,0.15789473684210525,0.16666666666666666,0.27777777777777779,0.26315789473684209,0.15789473684210525,0,0.13333333333333333,0,0.10526315789473684,{"$f":"(COUNTIFS(AH$3:AH$194,\">=5.5\",ID_REG,4))/AH212","v":0},0.15789473684210525,5.2631578947368418E-2,0,0.26315789473684209,0.10526315789473684,0,0.13333333333333333,0.11764705882352941,5.5555555555555552E-2,0.11764705882352941,0.11764705882352941,0,0,0,5.8823529411764705E-2,5.8823529411764705E-2,5.2631578947368418E-2,0,5.2631578947368418E-2,0,5.2631578947368418E-2,0,5.2631578947368418E-2,5.2631578947368418E-2,0.15789473684210525,6.6666666666666666E-2,0.125,0]
["LAC: % of responses as 1",{"$f":"(COUNTIFS(B$3:B$194,\"<=1.5\",ID_REG,1))/B209","v":0},0,0,0,0,0,0,0,0,0,0,0,0,4.5454545454545456E-2,0,0,0,0,0,0,0,0,0,0,0,0,0,0,0,0,0,0,{"$f":"(COUNTIFS(AH$3:AH$194,\"<=1.5\",ID_REG,1))/AH209","v":0},0,0,0,0,0,0,0,0,0,0,9.0909090909090912E-2,0.27272727272727271,4.7619047619047616E-2,0.19047619047619047,0,0,0,0,0,0,0,0,0,0,0,0,0,0.25,4.7619047619047616E-2,4.7619047619047616E-2,0.14285714285714285,{"$f":"(COUNTIFS(BN$3:BN$194,\"<=1.5\",ID_REG,1))/BN209","v":0.14285714285714285},0.14285714285714285,0.1,0.05,0.15,0.1,0.05,0.1,0.1,0.1,0.1,0.1,0.05,0.1,0.05,0.2,0.2,0.1,0.1,0.05,0.1,0.1,0.05,0.05,0.05,0.05,0.05,0,0,0,9.0909090909090912E-2,4.5454545454545456E-2,{"$f":"(COUNTIFS(CT$3:CT$194,\"<=1.5\",ID_REG,1))/CT209","v":9.0909090909090912E-2},9.5238095238095233E-2,9.0909090909090912E-2,0.13636363636363635,4.7619047619047616E-2,0,4.5454545454545456E-2,0.13636363636363635,0.22727272727272727,4.5454545454545456E-2,9.0909090909090912E-2,4.5454545454545456E-2,9.0909090909090912E-2,4.5454545454545456E-2,0,4.5454545454545456E-2,0,0,0,0,0,9.0909090909090912E-2,4.5454545454545456E-2,0,0.19047619047619047,0.31818181818181818,0.40909090909090912,0,0,4.5454545454545456E-2,0,0,{"$f":"(COUNTIFS(DZ$3:DZ$194,\"<=1.5\",ID_REG,1))/DZ209","v":0},0,9.5238095238095233E-2,0,9.0909090909090912E-2,4.5454545454545456E-2,4.5454545454545456E-2,0.36363636363636365,0.13636363636363635,0,0.13636363636363635,0,0,0,0,9.0909090909090912E-2,0.13636363636363635,0,9.0909090909090912E-2,0,4.5454545454545456E-2,4.5454545454545456E-2,9.5238095238095233E-2,4.5454545454545456E-2,4.5454545454545456E-2,9.5238095238095233E-2,0,0.13636363636363635,4.7619047619047616E-2,0.1,9.5238095238095233E-2,4.5454545454545456E-2,0,9.0909090909090912E-2,4.5454545454545456E-2]
["LAC: % of responses as 2",{"$f":"(COUNTIFS(B$3:B$194,\">=1.5\",B$3:B$194,\"<2.5\",ID_REG,1))/B209","v":0.13636363636363635},0.13636363636363635,0.18181818181818182,0.18181818181818182,0.22727272727272727,0.18181818181818182,0.27272727272727271,0.22222222222222221,0.19047619047619047,0.2,9.5238095238095233E-2,0.42857142857142855,0.36363636363636365,0.40909090909090912,0.18181818181818182,0.31818181818181818,0.22222222222222221,9.0909090909090912E-2,0.2857142857142857,0.22727272727272727,0.22727272727272727,0.27272727272727271,0.3,0.63157894736842102,0.41666666666666669,0.4,0.4,0.22727272727272727,0.22727272727272727,0.41176470588235292,0.18181818181818182,0.31818181818181818,{"$f":"(COUNTIFS(AH$3:AH$194,\">=1.5\",AH$3:AH$194,\"<2.5\",ID_REG,1))/AH209","v":0.22727272727272727},0,0.23809523809523808,0.33333333333333331,0.18181818181818182,0.31818181818181818,0.22727272727272727,0.45,0.42857142857142855,0.5,0.5,0.45454545454545453,0.45454545454545453,0.61904761904761907,0.47619047619047616,0.25,0.45454545454545453,4.5454545454545456E-2,0.33333333333333331,4.5454545454545456E-2,0,9.0909090909090912E-2,0,9.0909090909090912E-2,4.5454545454545456E-2,9.5238095238095233E-2,9.0909090909090912E-2,0.1111111111111111,0.05,0,9.5238095238095233E-2,0.19047619047619047,{"$f":"(COUNTIFS(BN$3:BN$194,\">=1.5\",BN$3:BN$194,\"<2.5\",ID_REG,1))/BN209","v":0.38095238095238093},0.5714285714285714,0.15,0.2,0.2,0.25,0.1,0.25,0.2,0.05,0.15,0.25,0.3,0.25,0.2,0.25,0.1,0.15,0.25,0.4,0.35,0.25,0.25,0.15,0.15,0.25,0.1,0,0,1,0.68181818181818177,9.0909090909090912E-2,{"$f":"(COUNTIFS(CT$3:CT$194,\">=1.5\",CT$3:CT$194,\"<2.5\",ID_REG,1))/CT209","v":0},0.14285714285714285,0.36363636363636365,0.18181818181818182,9.5238095238095233E-2,0.13636363636363635,9.0909090909090912E-2,0.13636363636363635,0,9.0909090909090912E-2,9.0909090909090912E-2,0.18181818181818182,0,4.5454545454545456E-2,4.5454545454545456E-2,9.0909090909090912E-2,0,0,9.0909090909090912E-2,9.0909090909090912E-2,4.5454545454545456E-2,9.0909090909090912E-2,4.5454545454545456E-2,4.5454545454545456E-2,0,4.5454545454545456E-2,4.5454545454545456E-2,0,0,0,0,0,{"$f":"(COUNTIFS(DZ$3:DZ$194,\">=1.5\",DZ$3:DZ$194,\"<2.5\",ID_REG,1))/DZ209","v":0},0,0,0.13636363636363635,9.0909090909090912E-2,0,9.0909090909090912E-2,4.5454545454545456E-2,0.36363636363636365,4.5454545454545456E-2,4.5454545454545456E-2,0,4.5454545454545456E-2,0,0,4.5454545454545456E-2,4.5454545454545456E-2,4.5454545454545456E-2,0.13636363636363635,4.5454545454545456E-2,4.5454545454545456E-2,9.0909090909090912E-2,0.14285714285714285,0.13636363636363635,4.5454545454545456E-2,4.7619047619047616E-2,0.2,9.0909090909090912E-2,0.14285714285714285,0.05,4.7619047619047616E-2,0,0,0,4.5454545454545456E-2]
["LAC: % of responses as 3",{"$f":"(COUNTIFS(B$3:B$194,\">=2.5\",B$3:B$194,\"<3.5\",ID_REG,1))/B209","v":0.45454545454545453},0.54545454545454541,0.5,0.45454545454545453,0.45454545454545453,0.36363636363636365,0.45454545454545453,0.3888888888888889,0.2857142857142857,0.15,0.38095238095238093,0.33333333333333331,0.22727272727272727,0.27272727272727271,0.36363636363636365,0.40909090909090912,0.3888888888888889,0.54545454545454541,0.33333333333333331,0.31818181818181818,0.36363636363636365,0.31818181818181818,0.25,0.10526315789473684,0.16666666666666666,0.25,0.4,0.31818181818181818,0.36363636363636365,5.8823529411764705E-2,0.40909090909090912,0.13636363636363635,{"$f":"(COUNTIFS(AH$3:AH$194,\">=2.5\",AH$3:AH$194,\"<3.5\",ID_REG,1))/AH209","v":0.36363636363636365},0.27272727272727271,0.38095238095238093,0.42857142857142855,0.22727272727272727,0.13636363636363635,0.40909090909090912,0.05,0.2857142857142857,0.13636363636363635,0.05,4.5454545454545456E-2,4.5454545454545456E-2,4.7619047619047616E-2,0.14285714285714285,0.16666666666666666,0.22727272727272727,0.45454545454545453,0.42857142857142855,0.18181818181818182,0.13636363636363635,0.22727272727272727,9.0909090909090912E-2,0.22727272727272727,0.18181818181818182,0.19047619047619047,0.27272727272727271,0.1111111111111111,0.05,4.7619047619047616E-2,9.5238095238095233E-2,4.7619047619047616E-2,{"$f":"(COUNTIFS(BN$3:BN$194,\">=2.5\",BN$3:BN$194,\"<3.5\",ID_REG,1))/BN209","v":4.7619047619047616E-2},0,0.5,0.4,0.4,0.45,0.55000000000000004,0.35,0.5,0.6,0.5,0.35,0.35,0.55000000000000004,0.45,0.35,0.45,0.5,0.35,0.3,0.25,0.4,0.5,0.45,0.45,0.5,0.6,0,1,0,0.13636363636363635,0.18181818181818182,{"$f":"(COUNTIFS(CT$3:CT$194,\">=2.5\",CT$3:CT$194,\"<3.5\",ID_REG,1))/CT209","v":0.13636363636363635},0.38095238095238093,0.18181818181818182,0.31818181818181818,0.19047619047619047,9.0909090909090912E-2,4.5454545454545456E-2,0.22727272727272727,0.27272727272727271,0.18181818181818182,0.18181818181818182,9.0909090909090912E-2,9.0909090909090912E-2,0.22727272727272727,0.40909090909090912,0.31818181818181818,0.18181818181818182,0.13636363636363635,9.0909090909090912E-2,0.31818181818181818,0.31818181818181818,0.13636363636363635,0.40909090909090912,0.18181818181818182,0.2857142857142857,0.31818181818181818,0.31818181818181818,9.0909090909090912E-2,9.0909090909090912E-2,4.5454545454545456E-2,0,0.22727272727272727,{"$f":"(COUNTIFS(DZ$3:DZ$194,\">=2.5\",DZ$3:DZ$194,\"<3.5\",ID_REG,1))/DZ209","v":0.18181818181818182},0.31818181818181818,0.23809523809523808,0.18181818181818182,0.22727272727272727,0.13636363636363635,0.27272727272727271,0.31818181818181818,0.36363636363636365,0.22727272727272727,0.27272727272727271,9.0909090909090912E-2,0.13636363636363635,9.0909090909090912E-2,0.14285714285714285,9.0909090909090912E-2,4.5454545454545456E-2,9.0909090909090912E-2,9.0909090909090912E-2,0.27272727272727271,0.18181818181818182,0.22727272727272727,0.14285714285714285,0.13636363636363635,0.22727272727272727,0.42857142857142855,0.35,0.18181818181818182,0.33333333333333331,0.5,0.42857142857142855,0.22727272727272727,0.42857142857142855,9.0909090909090912E-2,0.18181818181818182]
["LAC: % of responses as 4",{"$f":"(COUNTIFS(B$3:B$194,\">=3.5\",B$3:B$194,\"<4.5\",ID_REG,1))/B209","v":0.27272727272727271},0.18181818181818182,0.18181818181818182,0.22727272727272727,0.18181818181818182,0.27272727272727271,0.13636363636363635,0.1111111111111111,0.2857142857142857,0.2,0.2857142857142857,4.7619047619047616E-2,0.22727272727272727,9.0909090909090912E-2,0.27272727272727271,0.13636363636363635,0.1111111111111111,0.18181818181818182,0.2857142857142857,0.13636363636363635,0.22727272727272727,0.31818181818181818,0.2,0.10526315789473684,0.25,0.1,0.05,0.13636363636363635,0.22727272727272727,0.29411764705882354,0.27272727272727271,0.27272727272727271,{"$f":"(COUNTIFS(AH$3:AH$194,\">=3.5\",AH$3:AH$194,\"<4.5\",ID_REG,1))/AH209","v":0.27272727272727271},0.5,0.23809523809523808,0.19047619047619047,0.22727272727272727,0.27272727272727271,0.22727272727272727,0.15,9.5238095238095233E-2,0.18181818181818182,0.3,0.27272727272727271,0.18181818181818182,0.23809523809523808,0.14285714285714285,0.33333333333333331,0.18181818181818182,0.36363636363636365,0.19047619047619047,0.54545454545454541,0.63636363636363635,0.45454545454545453,0.63636363636363635,0.40909090909090912,0.54545454545454541,0.19047619047619047,0.22727272727272727,5.5555555555555552E-2,0.5,0.5714285714285714,0.38095238095238093,0.38095238095238093,{"$f":"(COUNTIFS(BN$3:BN$194,\">=3.5\",BN$3:BN$194,\"<4.5\",ID_REG,1))/BN209","v":0.42857142857142855},0.2857142857142857,0.2,0.3,0.25,0.25,0.15,0.3,0.2,0.25,0.2,0.25,0.2,0.05,0.25,0.15,0.2,0.2,0.25,0.25,0.3,0.25,0.2,0.2,0.25,0.1,0.1,1,0,0,9.0909090909090912E-2,0.45454545454545453,{"$f":"(COUNTIFS(CT$3:CT$194,\">=3.5\",CT$3:CT$194,\"<4.5\",ID_REG,1))/CT209","v":0.13636363636363635},0.33333333333333331,0.27272727272727271,0.31818181818181818,0.33333333333333331,0.40909090909090912,0.45454545454545453,0.31818181818181818,0.27272727272727271,0.36363636363636365,0.22727272727272727,0.31818181818181818,0.13636363636363635,0.40909090909090912,0.31818181818181818,0.36363636363636365,0.22727272727272727,0.18181818181818182,0.27272727272727271,0.22727272727272727,0.22727272727272727,0.31818181818181818,0.22727272727272727,0.36363636363636365,0.33333333333333331,0.22727272727272727,0.22727272727272727,0.27272727272727271,0.36363636363636365,0.5,0.5,0.36363636363636365,{"$f":"(COUNTIFS(DZ$3:DZ$194,\">=3.5\",DZ$3:DZ$194,\"<4.5\",ID_REG,1))/DZ209","v":0.27272727272727271},0.40909090909090912,0.5714285714285714,0.40909090909090912,0.22727272727272727,0.54545454545454541,0.5,0.31818181818181818,0.13636363636363635,0.40909090909090912,0.45454545454545453,0.36363636363636365,0.27272727272727271,0.36363636363636365,0.61904761904761907,0.36363636363636365,0.63636363636363635,0.31818181818181818,0.40909090909090912,0.36363636363636365,0.27272727272727271,0.31818181818181818,0.47619047619047616,0.36363636363636365,0.31818181818181818,0.23809523809523808,0.4,0.31818181818181818,0.33333333333333331,0.2,0.33333333333333331,0.5,0.33333333333333331,0.45454545454545453,0.31818181818181818]
["LAC: % of responses as 5",{"$f":"(COUNTIFS(B$3:B$194,\">=4.5\",B$3:B$194,\"<5.5\",ID_REG,1))/B209","v":0.13636363636363635},9.0909090909090912E-2,0.13636363636363635,0.13636363636363635,0.13636363636363635,9.0909090909090912E-2,0.13636363636363635,0.16666666666666666,0.19047619047619047,0.2,0.19047619047619047,0.14285714285714285,0.18181818181818182,0.13636363636363635,0.18181818181818182,0.13636363636363635,0.16666666666666666,0.13636363636363635,4.7619047619047616E-2,0.22727272727272727,0.13636363636363635,4.5454545454545456E-2,0.1,0.10526315789473684,0.16666666666666666,0.2,0.1,0.22727272727272727,0.13636363636363635,0.17647058823529413,0.13636363636363635,0.27272727272727271,{"$f":"(COUNTIFS(AH$3:AH$194,\">=4.5\",AH$3:AH$194,\"<5.5\",ID_REG,1))/AH209","v":0.13636363636363635},0.18181818181818182,0.14285714285714285,0,0.27272727272727271,0.27272727272727271,0.13636363636363635,0.25,0.14285714285714285,9.0909090909090912E-2,0.15,0.13636363636363635,4.5454545454545456E-2,4.7619047619047616E-2,0,0.16666666666666666,9.0909090909090912E-2,0.13636363636363635,0,0.22727272727272727,0.22727272727272727,0.22727272727272727,0.27272727272727271,0.27272727272727271,0.22727272727272727,0.42857142857142855,0.36363636363636365,0.55555555555555558,0.15,0.33333333333333331,0.38095238095238093,0.23809523809523808,{"$f":"(COUNTIFS(BN$3:BN$194,\">=4.5\",BN$3:BN$194,\"<5.5\",ID_REG,1))/BN209","v":0},0,0.05,0.05,0.05,0,0.15,0.05,0.05,0,0.1,0.05,0.1,0.05,0.05,0.05,0.05,0.05,0.05,0,0,0,0,0.15,0.1,0.1,0.15,0,0,0,0,0.22727272727272727,{"$f":"(COUNTIFS(CT$3:CT$194,\">=4.5\",CT$3:CT$194,\"<5.5\",ID_REG,1))/CT209","v":0.63636363636363635},4.7619047619047616E-2,9.0909090909090912E-2,4.5454545454545456E-2,0.33333333333333331,0.36363636363636365,0.36363636363636365,0.18181818181818182,0.22727272727272727,0.31818181818181818,0.40909090909090912,0.36363636363636365,0.68181818181818177,0.27272727272727271,0.22727272727272727,0.18181818181818182,0.59090909090909094,0.68181818181818177,0.54545454545454541,0.36363636363636365,0.40909090909090912,0.36363636363636365,0.27272727272727271,0.40909090909090912,0.19047619047619047,9.0909090909090912E-2,0,0.63636363636363635,0.54545454545454541,0.40909090909090912,0.5,0.40909090909090912,{"$f":"(COUNTIFS(DZ$3:DZ$194,\">=4.5\",DZ$3:DZ$194,\"<5.5\",ID_REG,1))/DZ209","v":0.54545454545454541},0.27272727272727271,9.5238095238095233E-2,0.27272727272727271,0.36363636363636365,0.27272727272727271,9.0909090909090912E-2,0,0,0.31818181818181818,9.0909090909090912E-2,0.54545454545454541,0.54545454545454541,0.54545454545454541,0.23809523809523808,0.45454545454545453,0.13636363636363635,0.54545454545454541,0.27272727272727271,0.31818181818181818,0.45454545454545453,0.31818181818181818,0.19047619047619047,0.31818181818181818,0.36363636363636365,0.19047619047619047,0.05,0.27272727272727271,0.14285714285714285,0.15,9.5238095238095233E-2,0.22727272727272727,0.23809523809523808,0.36363636363636365,0.40909090909090912]
["LAC: % of responses as 6",{"$f":"(COUNTIFS(B$3:B$194,\">=5.5\",ID_REG,1))/B209","v":0},4.5454545454545456E-2,0,0,0,9.0909090909090912E-2,0,0.1111111111111111,4.7619047619047616E-2,0.25,4.7619047619047616E-2,4.7619047619047616E-2,0,4.5454545454545456E-2,0,0,0.1111111111111111,4.5454545454545456E-2,4.7619047619047616E-2,9.0909090909090912E-2,4.5454545454545456E-2,4.5454545454545456E-2,0.15,5.2631578947368418E-2,0,0.05,0.05,9.0909090909090912E-2,4.5454545454545456E-2,5.8823529411764705E-2,0,0,{"$f":"(COUNTIFS(AH$3:AH$194,\">=5.5\",ID_REG,1))/AH209","v":0},4.5454545454545456E-2,0,4.7619047619047616E-2,9.0909090909090912E-2,0,0,0.1,4.7619047619047616E-2,9.0909090909090912E-2,0,0,0,0,4.7619047619047616E-2,8.3333333333333329E-2,4.5454545454545456E-2,0,4.7619047619047616E-2,0,0,0,0,0,0,9.5238095238095233E-2,4.5454545454545456E-2,0.16666666666666666,0]
["WEO: % of responses as 1",{"$f":"(COUNTIFS(B$3:B$194,\"<=1.5\",ID_REG,5))/B213","v":0},0,0,0,0,0,0,0,0,0,0,0,4.5454545454545456E-2,0.13043478260869565,0,0,0,0,0,0,0,0,0,0,0,0,0,0,0,0,0,0,{"$f":"(COUNTIFS(AH$3:AH$194,\"<=1.5\",ID_REG,5))/AH213","v":0},0,0,0,0,0,0,0,0,0,0,9.0909090909090912E-2,0.40909090909090912,0.17391304347826086,0.45,0,0,0,0,0,0,0,0,0,0,0,0,0,0.17391304347826086,0.13636363636363635,0.18181818181818182,0.21739130434782608,{"$f":"(COUNTIFS(BN$3:BN$194,\"<=1.5\",ID_REG,5))/BN213","v":0.125},0.31818181818181818,0,0,4.7619047619047616E-2,0,0,4.7619047619047616E-2,0.2,0,0.15789473684210525,4.7619047619047616E-2,0.2,0,0.15789473684210525,0.14285714285714285,0.2,0,0.15789473684210525,9.5238095238095233E-2,0.2,0,0.21052631578947367,4.7619047619047616E-2,0.1,0,0.15789473684210525,0,0,0,0.5,0.25,{"$f":"(COUNTIFS(CT$3:CT$194,\"<=1.5\",ID_REG,5))/CT213","v":0.16666666666666666},0.25,0.21739130434782608,0.125,0.21739130434782608,0.21739130434782608,0.2608695652173913,0.39130434782608697,0.30434782608695654,0.13043478260869565,8.6956521739130432E-2,0.125,8.3333333333333329E-2,0.13043478260869565,0,4.3478260869565216E-2,4.5454545454545456E-2,4.1666666666666664E-2,4.3478260869565216E-2,4.1666666666666664E-2,4.1666666666666664E-2,8.3333333333333329E-2,4.1666666666666664E-2,0.375,0.375,0.43478260869565216,0.47826086956521741,0.13043478260869565,0.13043478260869565,0.125,4.1666666666666664E-2,8.3333333333333329E-2,{"$f":"(COUNTIFS(DZ$3:DZ$194,\"<=1.5\",ID_REG,5))/DZ213","v":4.1666666666666664E-2},0.33333333333333331,0.13043478260869565,8.3333333333333329E-2,0.21739130434782608,0.125,0.17391304347826086,0.39130434782608697,0.27272727272727271,8.3333333333333329E-2,0.125,0.17391304347826086,0.17391304347826086,4.1666666666666664E-2,4.1666666666666664E-2,4.1666666666666664E-2,4.3478260869565216E-2,0,4.1666666666666664E-2,4.3478260869565216E-2,4.5454545454545456E-2,4.1666666666666664E-2,4.1666666666666664E-2,4.1666666666666664E-2,0,4.5454545454545456E-2,0,8.3333333333333329E-2,4.1666666666666664E-2,4.5454545454545456E-2,4.5454545454545456E-2,4.1666666666666664E-2,4.1666666666666664E-2,4.1666666666666664E-2,4.5454545454545456E-2]
["WEO: % of responses as 2",{"$f":"(COUNTIFS(B$3:B$194,\">=1.5\",B$3:B$194,\"<2.5\",ID_REG,5))/B213","v":0},0,0,0,0,0,4.3478260869565216E-2,4.7619047619047616E-2,0,0,0,0.1,4.5454545454545456E-2,8.6956521739130432E-2,4.3478260869565216E-2,4.3478260869565216E-2,4.7619047619047616E-2,0,0,4.1666666666666664E-2,0,4.1666666666666664E-2,4.3478260869565216E-2,4.5454545454545456E-2,4.7619047619047616E-2,0,0,4.1666666666666664E-2,0,0,0,0,{"$f":"(COUNTIFS(AH$3:AH$194,\">=1.5\",AH$3:AH$194,\"<2.5\",ID_REG,5))/AH213","v":4.1666666666666664E-2},0,4.1666666666666664E-2,4.3478260869565216E-2,0,0,4.1666666666666664E-2,8.3333333333333329E-2,0.13636363636363635,0.19047619047619047,0.19047619047619047,0.18181818181818182,0.13636363636363635,4.3478260869565216E-2,0.1,0.10526315789473684,0,0,4.3478260869565216E-2,0,0,0,0,0,0,8.6956521739130432E-2,0,0,0.13043478260869565,0.77272727272727271,0.72727272727272729,0.17391304347826086,{"$f":"(COUNTIFS(BN$3:BN$194,\">=1.5\",BN$3:BN$194,\"<2.5\",ID_REG,5))/BN213","v":4.1666666666666664E-2},0.22727272727272727,0.14285714285714285,0.14285714285714285,0.23809523809523808,0.14285714285714285,0.14285714285714285,0.14285714285714285,0.15,0,5.2631578947368418E-2,0.19047619047619047,0.1,4.7619047619047616E-2,5.2631578947368418E-2,9.5238095238095233E-2,0.1,4.7619047619047616E-2,0.10526315789473684,0.14285714285714285,0.1,4.7619047619047616E-2,5.2631578947368418E-2,0.14285714285714285,0.05,0.14285714285714285,5.2631578947368418E-2,0,0,1,0.25,0.25,{"$f":"(COUNTIFS(CT$3:CT$194,\">=1.5\",CT$3:CT$194,\"<2.5\",ID_REG,5))/CT213","v":0.16666666666666666},0.125,0.17391304347826086,4.1666666666666664E-2,0.13043478260869565,8.6956521739130432E-2,0.17391304347826086,0.13043478260869565,0.17391304347826086,8.6956521739130432E-2,0.13043478260869565,0.125,0.20833333333333334,4.3478260869565216E-2,8.6956521739130432E-2,4.3478260869565216E-2,0.13636363636363635,0,0,0,0,0.125,8.3333333333333329E-2,0.16666666666666666,0.125,0.13043478260869565,0.13043478260869565,8.6956521739130432E-2,0.13043478260869565,4.1666666666666664E-2,0.16666666666666666,8.3333333333333329E-2,{"$f":"(COUNTIFS(DZ$3:DZ$194,\">=1.5\",DZ$3:DZ$194,\"<2.5\",ID_REG,5))/DZ213","v":4.1666666666666664E-2},0.125,4.3478260869565216E-2,4.1666666666666664E-2,0.13043478260869565,4.1666666666666664E-2,8.6956521739130432E-2,0.17391304347826086,0.18181818181818182,8.3333333333333329E-2,8.3333333333333329E-2,4.3478260869565216E-2,4.3478260869565216E-2,0,0,4.1666666666666664E-2,4.3478260869565216E-2,4.1666666666666664E-2,4.1666666666666664E-2,0,4.5454545454545456E-2,4.1666666666666664E-2,4.1666666666666664E-2,0,4.1666666666666664E-2,0,4.5454545454545456E-2,4.1666666666666664E-2,8.3333333333333329E-2,0,4.5454545454545456E-2,0,0,4.1666666666666664E-2,9.0909090909090912E-2]
["WEO: % of responses as 3",{"$f":"(COUNTIFS(B$3:B$194,\">=2.5\",B$3:B$194,\"<3.5\",ID_REG,5))/B213","v":4.1666666666666664E-2},4.1666666666666664E-2,4.1666666666666664E-2,0,8.3333333333333329E-2,0,8.6956521739130432E-2,9.5238095238095233E-2,0,0,0,0.15,4.5454545454545456E-2,0.13043478260869565,4.3478260869565216E-2,8.6956521739130432E-2,9.5238095238095233E-2,4.1666666666666664E-2,4.1666666666666664E-2,0,4.1666666666666664E-2,4.1666666666666664E-2,0,0,0.14285714285714285,0,0,0,4.1666666666666664E-2,0,4.1666666666666664E-2,0,{"$f":"(COUNTIFS(AH$3:AH$194,\">=2.5\",AH$3:AH$194,\"<3.5\",ID_REG,5))/AH213","v":4.1666666666666664E-2},0,8.3333333333333329E-2,4.3478260869565216E-2,0,0,4.1666666666666664E-2,0,9.0909090909090912E-2,9.5238095238095233E-2,0,0,9.0909090909090912E-2,4.3478260869565216E-2,0,5.2631578947368418E-2,8.3333333333333329E-2,0,4.3478260869565216E-2,4.3478260869565216E-2,4.3478260869565216E-2,8.6956521739130432E-2,4.3478260869565216E-2,8.6956521739130432E-2,4.3478260869565216E-2,4.3478260869565216E-2,0.16666666666666666,0.1111111111111111,0.17391304347826086,0,4.5454545454545456E-2,4.3478260869565216E-2,{"$f":"(COUNTIFS(BN$3:BN$194,\">=2.5\",BN$3:BN$194,\"<3.5\",ID_REG,5))/BN213","v":0},0,0.2857142857142857,0.23809523809523808,0.2857142857142857,0.2857142857142857,0.19047619047619047,0.2857142857142857,0.25,0.19047619047619047,0.15789473684210525,0.23809523809523808,0.25,0,0.21052631578947367,0.33333333333333331,0.35,0.23809523809523808,0.31578947368421051,0.38095238095238093,0.25,4.7619047619047616E-2,0.15789473684210525,0.23809523809523808,0.3,4.7619047619047616E-2,0.21052631578947367,0,1,0,0.125,0.25,{"$f":"(COUNTIFS(CT$3:CT$194,\">=2.5\",CT$3:CT$194,\"<3.5\",ID_REG,5))/CT213","v":0.20833333333333334},0.5,0.30434782608695654,0.33333333333333331,0.30434782608695654,0.30434782608695654,0.17391304347826086,0.21739130434782608,0.2608695652173913,0.39130434782608697,0.39130434782608697,0.29166666666666669,0.20833333333333334,0.47826086956521741,0.43478260869565216,0.17391304347826086,0.36363636363636365,0.20833333333333334,0.39130434782608697,0.5,0.375,0.16666666666666666,0.125,0.125,0.16666666666666666,0.21739130434782608,0.17391304347826086,0.21739130434782608,0.30434782608695654,0.25,0.25,0.25,{"$f":"(COUNTIFS(DZ$3:DZ$194,\">=2.5\",DZ$3:DZ$194,\"<3.5\",ID_REG,5))/DZ213","v":0.33333333333333331},0.20833333333333334,0.30434782608695654,0.41666666666666669,0.21739130434782608,0.33333333333333331,0.30434782608695654,0.21739130434782608,0.45454545454545453,0.29166666666666669,0.5,0.2608695652173913,0.30434782608695654,8.3333333333333329E-2,0.125,0.20833333333333334,8.6956521739130432E-2,0.20833333333333334,0.125,8.6956521739130432E-2,0.18181818181818182,0.16666666666666666,0.25,0.20833333333333334,0.20833333333333334,0.45454545454545453,0.5,0.20833333333333334,0.25,0.45454545454545453,0.45454545454545453,0.125,0.20833333333333334,0.25,0.27272727272727271]
["WEO: % of responses as 4",{"$f":"(COUNTIFS(B$3:B$194,\">=3.5\",B$3:B$194,\"<4.5\",ID_REG,5))/B213","v":8.3333333333333329E-2},0.16666666666666666,0.16666666666666666,0.125,0.20833333333333334,0.16666666666666666,0.2608695652173913,9.5238095238095233E-2,0.13043478260869565,0,8.3333333333333329E-2,0.1,9.0909090909090912E-2,8.6956521739130432E-2,0.30434782608695654,0.34782608695652173,9.5238095238095233E-2,8.3333333333333329E-2,8.3333333333333329E-2,0.16666666666666666,0.125,0.125,0.13043478260869565,0.22727272727272727,9.5238095238095233E-2,4.3478260869565216E-2,8.6956521739130432E-2,0.16666666666666666,0.125,0,8.3333333333333329E-2,0.125,{"$f":"(COUNTIFS(AH$3:AH$194,\">=3.5\",AH$3:AH$194,\"<4.5\",ID_REG,5))/AH213","v":0.375},0,8.3333333333333329E-2,0.13043478260869565,4.1666666666666664E-2,0.125,0.33333333333333331,0.20833333333333334,0.22727272727272727,0.23809523809523808,0.33333333333333331,0.31818181818181818,0.13636363636363635,0.13043478260869565,0.1,5.2631578947368418E-2,0.33333333333333331,0.125,0.13043478260869565,8.6956521739130432E-2,8.6956521739130432E-2,4.3478260869565216E-2,8.6956521739130432E-2,4.3478260869565216E-2,8.6956521739130432E-2,4.3478260869565216E-2,0.16666666666666666,5.5555555555555552E-2,0.43478260869565216,9.0909090909090912E-2,0,0.43478260869565216,{"$f":"(COUNTIFS(BN$3:BN$194,\">=3.5\",BN$3:BN$194,\"<4.5\",ID_REG,5))/BN213","v":0.75},0.31818181818181818,0.52380952380952384,0.42857142857142855,0.38095238095238093,0.52380952380952384,0.47619047619047616,0.33333333333333331,0.35,0.47619047619047616,0.52631578947368418,0.38095238095238093,0.25,0.47619047619047616,0.36842105263157893,0.23809523809523808,0.25,0.42857142857142855,0.31578947368421051,0.23809523809523808,0.4,0.66666666666666663,0.47368421052631576,0.33333333333333331,0.3,0.47619047619047616,0.31578947368421051,1,0,0,0.125,0.20833333333333334,{"$f":"(COUNTIFS(CT$3:CT$194,\">=3.5\",CT$3:CT$194,\"<4.5\",ID_REG,5))/CT213","v":0.25},8.3333333333333329E-2,0.21739130434782608,0.41666666666666669,0.21739130434782608,0.34782608695652173,0.30434782608695654,0.17391304347826086,0.21739130434782608,0.21739130434782608,0.21739130434782608,0.20833333333333334,0.375,0.21739130434782608,0.34782608695652173,0.39130434782608697,0.27272727272727271,0.375,0.30434782608695654,0.20833333333333334,0.33333333333333331,0.33333333333333331,0.45833333333333331,0.25,0.25,0.13043478260869565,0.17391304347826086,0.43478260869565216,0.34782608695652173,0.45833333333333331,0.41666666666666669,0.45833333333333331,{"$f":"(COUNTIFS(DZ$3:DZ$194,\">=3.5\",DZ$3:DZ$194,\"<4.5\",ID_REG,5))/DZ213","v":0.45833333333333331},0.25,0.34782608695652173,0.375,0.30434782608695654,0.375,0.30434782608695654,0.17391304347826086,0,0.41666666666666669,0.20833333333333334,0.43478260869565216,0.39130434782608697,0.41666666666666669,0.41666666666666669,0.33333333333333331,0.39130434782608697,0.41666666666666669,0.45833333333333331,0.43478260869565216,0.45454545454545453,0.33333333333333331,0.29166666666666669,0.41666666666666669,0.45833333333333331,0.40909090909090912,0.27272727272727271,0.29166666666666669,0.29166666666666669,0.36363636363636365,0.40909090909090912,0.41666666666666669,0.33333333333333331,0.29166666666666669,0.27272727272727271]
["WEO: % of responses as 5",{"$f":"(COUNTIFS(B$3:B$194,\">=4.5\",B$3:B$194,\"<5.5\",ID_REG,5))/B213","v":0.625},0.45833333333333331,0.5,0.5,0.54166666666666663,0.29166666666666669,0.52173913043478259,0.23809523809523808,0.30434782608695654,0.25,0.33333333333333331,0.4,0.31818181818181818,0.30434782608695654,0.2608695652173913,0.43478260869565216,0.23809523809523808,0.41666666666666669,0.33333333333333331,0.29166666666666669,0.29166666666666669,0.25,0.2608695652173913,0.27272727272727271,0.19047619047619047,0.2608695652173913,0.30434782608695654,0.29166666666666669,0.29166666666666669,0.14285714285714285,0.5,0.41666666666666669,{"$f":"(COUNTIFS(AH$3:AH$194,\">=4.5\",AH$3:AH$194,\"<5.5\",ID_REG,5))/AH213","v":0.20833333333333334},0.45833333333333331,0.5,0.39130434782608697,0.25,0.41666666666666669,0.25,0.16666666666666666,0.18181818181818182,9.5238095238095233E-2,0.14285714285714285,0.13636363636363635,0.13636363636363635,0.34782608695652173,0.3,0.26315789473684209,0.20833333333333334,0.45833333333333331,0.39130434782608697,0.52173913043478259,0.47826086956521741,0.43478260869565216,0.52173913043478259,0.47826086956521741,0.52173913043478259,0.17391304347826086,0,0.27777777777777779,8.6956521739130432E-2,0,4.5454545454545456E-2,0.13043478260869565,{"$f":"(COUNTIFS(BN$3:BN$194,\">=4.5\",BN$3:BN$194,\"<5.5\",ID_REG,5))/BN213","v":8.3333333333333329E-2},0.13636363636363635,4.7619047619047616E-2,0.19047619047619047,9.5238095238095233E-2,4.7619047619047616E-2,0.19047619047619047,0.19047619047619047,0.15,0.33333333333333331,0.10526315789473684,0.14285714285714285,0.2,0.47619047619047616,0.21052631578947367,0.19047619047619047,0.1,0.2857142857142857,0.10526315789473684,0.14285714285714285,0.05,0.23809523809523808,0.10526315789473684,0.23809523809523808,0.25,0.33333333333333331,0.26315789473684209,0,0,0,0,4.1666666666666664E-2,{"$f":"(COUNTIFS(CT$3:CT$194,\">=4.5\",CT$3:CT$194,\"<5.5\",ID_REG,5))/CT213","v":0.20833333333333334},4.1666666666666664E-2,8.6956521739130432E-2,8.3333333333333329E-2,0.13043478260869565,4.3478260869565216E-2,8.6956521739130432E-2,8.6956521739130432E-2,4.3478260869565216E-2,0.17391304347826086,0.17391304347826086,0.25,0.125,0.13043478260869565,0.13043478260869565,0.34782608695652173,0.18181818181818182,0.375,0.2608695652173913,0.25,0.25,0.29166666666666669,0.29166666666666669,8.3333333333333329E-2,8.3333333333333329E-2,8.6956521739130432E-2,4.3478260869565216E-2,0.13043478260869565,8.6956521739130432E-2,0.125,0.125,0.125,{"$f":"(COUNTIFS(DZ$3:DZ$194,\">=4.5\",DZ$3:DZ$194,\"<5.5\",ID_REG,5))/DZ213","v":0.125},8.3333333333333329E-2,0.17391304347826086,8.3333333333333329E-2,0.13043478260869565,0.125,0.13043478260869565,4.3478260869565216E-2,9.0909090909090912E-2,0.125,8.3333333333333329E-2,8.6956521739130432E-2,8.6956521739130432E-2,0.45833333333333331,0.41666666666666669,0.375,0.43478260869565216,0.33333333333333331,0.33333333333333331,0.43478260869565216,0.27272727272727271,0.41666666666666669,0.375,0.33333333333333331,0.29166666666666669,9.0909090909090912E-2,0.18181818181818182,0.375,0.33333333333333331,0.13636363636363635,4.5454545454545456E-2,0.41666666666666669,0.41666666666666669,0.375,0.31818181818181818]
["WEO: % of responses as 6",{"$f":"(COUNTIFS(B$3:B$194,\">=5.5\",ID_REG,5))/B213","v":0.25},0.33333333333333331,0.29166666666666669,0.375,0.16666666666666666,0.54166666666666663,8.6956521739130432E-2,0.52380952380952384,0.56521739130434778,0.75,0.58333333333333337,0.25,0.45454545454545453,0.2608695652173913,0.34782608695652173,8.6956521739130432E-2,0.52380952380952384,0.45833333333333331,0.54166666666666663,0.5,0.54166666666666663,0.54166666666666663,0.56521739130434778,0.45454545454545453,0.52380952380952384,0.69565217391304346,0.60869565217391308,0.5,0.54166666666666663,0.8571428571428571,0.375,0.45833333333333331,{"$f":"(COUNTIFS(AH$3:AH$194,\">=5.5\",ID_REG,5))/AH213","v":0.33333333333333331},0.54166666666666663,0.29166666666666669,0.39130434782608697,0.70833333333333337,0.45833333333333331,0.33333333333333331,0.54166666666666663,0.36363636363636365,0.38095238095238093,0.33333333333333331,0.27272727272727271,9.0909090909090912E-2,0.2608695652173913,0.05,0.52631578947368418,0.375,0.41666666666666669,0.39130434782608697,0.34782608695652173,0.39130434782608697,0.43478260869565216,0.34782608695652173,0.39130434782608697,0.34782608695652173,0.65217391304347827,0.66666666666666663,0.55555555555555558,0]
[]
["Total number of responses",{"$f":"COUNTIF(B3:B194,\">0.5\")","v":133},133,133,133,133,133,131,118,129,127,130,117,131,130,131,131,118,133,132,133,132,133,123,124,104,125,129,133,132,100,133,131,{"$f":"COUNTIF(AH3:AH194,\">0.5\")","v":133},133,132,127,132,131,132,120,126,125,119,122,119,121,118,105,130,133,127,131,131,131,131,130,null,{"$f":"COUNTIF(BG3:BG194,\">0.5\")","v":129},110,113,126,124,125,126,128,123,123,123,123,123,123,122,121,122,120,122,121,122,120,122,121,122,120,122,121,122,120,122,121,{"$f":"COUNTIF(CM3:CM194,\">0.5\")","v":122},120,79,85,59,133,130,131,130,128,129,128,129,130,130,129,129,128,130,131,130,129,130,129,132,130,132,131,132,131,132,130,{"$f":"COUNTIF(DS3:DS194,\">0.5\")","v":129},126,131,131,132,132,132,131,132,130,131,129,132,130,129,128,131,129,130,131,130,129,129,130,131,130,129,128,130,130,131,131,{"$f":"COUNTIF(EY3:EY194,\">0.5\")","v":126},125,131,129,125,123,130,127,128,128,null,null,null,null,null,null,null,null,null,null,null,null,null,null,null,null,null,null,null,null,null,null,null,null,null,null,null,null,null,null,null,null,null,null,null,null,null,null,null,null,null,null,null,null,null,null,"Online Check",{"$f":"COUNTIF(HD3:HD194,1)","v":0}]
[]
["The below should probably be deleted"]
[]
[]
[]
["Qs 1-4"]
["Total no, responses as 0-1,5",{"$f":"COUNTIF(B$3:B$194,\"<1,5\")","v":59},59,59,59,59,59,61,74,63,65,62,75,61,62,61,61,74,59,60,59,60,59,69,68,88,67,63,59,60,92,59,61,{"$f":"COUNTIF(AH$3:AH$194,\"<1,5\")","v":59},59,60,65,60,61,60,72,66,67,73,11,34,17,33,87,62,59,65,61,61,61,59,59,null,{"$f":"COUNTIF(BG$3:BG$194,\"<1,5\")","v":63},{"$f":"COUNTIF(BH$3:BH$194,\"<1,5\")","v":82},{"$f":"COUNTIF(BI$3:BI$194,\"<1,5\")","v":79},{"$f":"COUNTIF(BJ$3:BJ$194,\"<1,5\")","v":66}]
["Total no, responses as 1,6-3,5",{"$f":"COUNTIFS(B$3:B$194,\">1,5\",B$3:B$194,\"<3,5\")","v":0},0,0,0,0,0,0,0,0,0,0,0,0,0,0,0,0,0,0,0,0,0,0,0,0,0,0,0,0,0,0,0,{"$f":"COUNTIFS(AH$3:AH$194,\">1,5\",AH$3:AH$194,\"<3,5\")","v":0},0,0,0,0,0,0,0,0,0,0,49,48,53,52,0,0,0,0,0,0,0,0,0,null,{"$f":"COUNTIFS(BG$3:BG$194,\">1,5\",BG$3:BG$194,\"<3,5\")","v":0},{"$f":"COUNTIFS(BH$3:BH$194,\">1,5\",BH$3:BH$194,\"<3,5\")","v":0},{"$f":"COUNTIFS(BI$3:BI$194,\">1,5\",BI$3:BI$194,\"<3,5\")","v":0},{"$f":"COUNTIFS(BJ$3:BJ$194,\">1,5\",BJ$3:BJ$194,\"<3,5\")","v":0}]
["Total no, responses as 3,6-5,5",{"$f":"COUNTIFS(B$3:B$194,\">3,5\",B$3:B$194,\"<5,5\")","v":0},0,0,0,0,0,0,0,0,0,0,0,0,0,0,0,0,0,0,0,0,0,0,0,0,0,0,0,0,0,0,0,{"$f":"COUNTIFS(AH$3:AH$194,\">3,5\",AH$3:AH$194,\"<5,5\")","v":0},0,0,0,0,0,0,0,0,0,0,52,33,44,28,0,0,0,0,0,0,0,0,0,null,{"$f":"COUNTIFS(BG$3:BG$194,\">3,5\",BG$3:BG$194,\"<5,5\")","v":0},{"$f":"COUNTIFS(BH$3:BH$194,\">3,5\",BH$3:BH$194,\"<5,5\")","v":0},{"$f":"COUNTIFS(BI$3:BI$194,\">3,5\",BI$3:BI$194,\"<5,5\")","v":0},{"$f":"COUNTIFS(BJ$3:BJ$194,\">3,5\",BJ$3:BJ$194,\"<5,5\")","v":0}]
["Total no, responses as 5,6-6",{"$f":"COUNTIF(B$3:B$194,\">5,5\")","v":0},0,0,0,0,0,0,0,0,0,0,0,0,0,0,0,0,0,0,0,0,0,0,0,0,0,0,0,0,0,0,0,{"$f":"COUNTIF(AH$3:AH$194,\">5,5\")","v":0},0,0,0,0,0,0,0,0,0,0,10,4,7,5,0,0,0,0,0,0,0,0,0,null,{"$f":"COUNTIF(BG$3:BG$194,\">5,5\")","v":0},{"$f":"COUNTIF(BH$3:BH$194,\">5,5\")","v":0},{"$f":"COUNTIF(BI$3:BI$194,\">5,5\")","v":0},{"$f":"COUNTIF(BJ$3:BJ$194,\">5,5\")","v":0}]
["Qs 6-7"]
["Total no. responses as 1, 2 or 3 (<3.5 for Q6 averages)",null,null,null,null,null,null,null,null,null,null,null,null,null,null,null,null,null,null,null,null,null,null,null,null,null,null,null,null,null,null,null,null,null,null,null,null,null,null,null,null,null,null,null,null,null,null,null,null,null,null,null,null,null,null,null,null,null,null,null,null,null,null,null,null,null,null,{"$f":"COUNTIF(BP$3:BP$194,\"<3.5\")","v":77},{"$f":"COUNTIF(BQ$3:BQ$194,\"<3.5\")","v":69},81,81,67,71,80,69,71,{"$f":"COUNTIF(BY$3:BY$194,1)+COUNTIF(BY$3:BY$194,2)+COUNTIF(BY$3:BY$194,3)","v":72},77,68,70,85,87,75,82,86,87,71,82,70,70,76,68,0,85,59,113,53,29,76,67,73,43,50,45,65,70,43,50,56,36,60,57,61,30,37,37,48,46,43,51,33,48,68,72,{"$f":"COUNTIF(DU$3:DU$194,1)+COUNTIF(DU$3:DU$194,2)+COUNTIF(DU$3:DU$194,3)","v":19},29,32,33,37,38,27,40,33,46,48,52,59,105,{"$f":"COUNTIF(EI$3:EI$194,1)+COUNTIF(EI$3:EI$194,2)+COUNTIF(EI$3:EI$194,3)","v":36},57,27,28,{"$f":"COUNTIF(EM$3:EM$194,1)+COUNTIF(EM$3:EM$194,2)+COUNTIF(EM$3:EM$194,3)","v":30},24,23,33,{"$f":"COUNTIF(EQ$3:EQ$194,1)+COUNTIF(EQ$3:EQ$194,2)+COUNTIF(EQ$3:EQ$194,3)","v":37},38,37,37,42,32,{"$f":"COUNTIF(EW$3:EW$194,1)+COUNTIF(EW$3:EW$194,2)+COUNTIF(EW$3:EW$194,3)","v":46},{"$f":"COUNTIF(EX$3:EX$194,1)+COUNTIF(EX$3:EX$194,2)+COUNTIF(EX$3:EX$194,3)","v":47},{"$f":"COUNTIF(EY$3:EY$194,1)+COUNTIF(EY$3:EY$194,2)+COUNTIF(EY$3:EY$194,3)","v":55},{"$f":"COUNTIF(EZ$3:EZ$194,1)+COUNTIF(EZ$3:EZ$194,2)+COUNTIF(EZ$3:EZ$194,3)","v":66},45,51,64,64,32,40,35,39]
["Total no. responses as 4 (3.5-4.5 for Q& averages)",null,null,null,null,null,null,null,null,null,null,null,null,null,null,null,null,null,null,null,null,null,null,null,null,null,null,null,null,null,null,null,null,null,null,null,null,null,null,null,null,null,null,null,null,null,null,null,null,null,null,null,null,null,null,null,null,null,null,null,null,null,null,null,null,null,null,{"$f":"COUNTIFS(BP$3:BP$194,\">3.5\",BP$3:BP$194,\"<4.5\")","v":39},{"$f":"COUNTIFS(BQ$3:BQ$194,\">3.5\",BQ$3:BQ$194,\"<4.5\")","v":34},30,30,36,29,24,30,31,{"$f":"COUNTIF(BY$3:BY$194,4)","v":37},32,32,36,28,28,33,32,31,32,39,34,31,40,32,39,79,0,0,20,60,34,49,46,44,55,50,55,41,38,58,53,43,34,45,46,48,48,43,47,51,54,47,45,67,63,45,47,{"$f":"COUNTIF(DU$3:DU$194,4)","v":44},62,65,67,65,58,53,70,48,56,62,58,38,18,{"$f":"COUNTIF(EI$3:EI$194,4)","v":65},55,66,58,{"$f":"COUNTIF(EM$3:EM$194,4)","v":61},59,46,64,{"$f":"COUNTIF(EQ$3:EQ$194,4)","v":59},63,63,58,50,41,{"$f":"COUNTIF(EW$3:EW$194,4)","v":58},{"$f":"COUNTIF(EX$3:EX$194,4)","v":59},{"$f":"COUNTIF(EY$3:EY$194,4)","v":36},{"$f":"COUNTIF(EZ$3:EZ$194,4)","v":49},51,49,39,46,68,61,56,49]
["Total no. responses as 5 (>4.5 for Q& averages)",null,null,null,null,null,null,null,null,null,null,null,null,null,null,null,null,null,null,null,null,null,null,null,null,null,null,null,null,null,null,null,null,null,null,null,null,null,null,null,null,null,null,null,null,null,null,null,null,null,null,null,null,null,null,null,null,null,null,null,null,null,null,null,null,null,null,{"$f":"COUNTIF(BP$3:BP$194,\">4.5\")","v":3},{"$f":"COUNTIF(BQ$3:BQ$194,\">4.5\")","v":7},4,2,10,7,5,8,4,{"$f":"COUNTIF(BY$3:BY$194,5)","v":13},12,22,14,9,6,14,6,5,2,12,4,21,11,14,13,0,0,0,0,17,68,5,15,12,30,29,30,24,21,28,25,31,61,25,26,21,51,52,46,33,31,42,35,32,19,16,7,{"$f":"COUNTIF(DU$3:DU$194,5)","v":29},40,35,32,30,35,15,20,17,27,22,20,6,5,{"$f":"COUNTIF(EI$3:EI$194,5)","v":30},17,37,45,{"$f":"COUNTIF(EM$3:EM$194,5)","v":39},24,31,33,{"$f":"COUNTIF(EQ$3:EQ$194,5)","v":35},29,29,33,38,24,{"$f":"COUNTIF(EW$3:EW$194,5)","v":27},{"$f":"COUNTIF(EX$3:EX$194,5)","v":25},{"$f":"COUNTIF(EY$3:EY$194,5)","v":14},{"$f":"COUNTIF(EZ$3:EZ$194,5)","v":10},35,29,22,13,30,26,37,40]
[]
["Lowest 5 scores (ignoring 1's) for selected question averages only (Qs 1-4)",null,null,null,null,null,null,null,null,null,null,null,null,null,null,null,null,null,null,null,null,null,null,null,null,null,null,null,null,null,null,"Albania",null,null,null,null,null,null,null,null,null,null,null,null,null,null,null,null,null,null,null,null,"Armenia"]
[null,null,null,null,null,null,null,null,null,null,null,null,null,null,null,null,null,null,null,null,null,null,null,null,null,null,null,null,null,null,null,"Armenia",null,null,null,null,null,null,null,null,null,null,null,null,null,null,null,null,null,null,null,null,"Grenada"]
[null,null,null,null,null,null,null,null,null,null,null,null,null,null,null,null,null,null,null,null,null,null,null,null,null,null,null,null,null,null,null,"Congo",null,null,null,null,null,null,null,null,null,null,null,null,null,null,null,null,null,null,null,null,"Mongolia"]
[null,null,null,null,null,null,null,null,null,null,null,null,null,null,null,null,null,null,null,null,null,null,null,null,null,null,null,null,null,null,null,"Côte d'Ivoire",null,null,null,null,null,null,null,null,null,null,null,null,null,null,null,null,null,null,null,null,"Republic of Moldova"]
[]
[]
[]
["Total no. Responses <4",{"$f":"COUNTIF(B$3:B$194,\"<4\")","v":76},{"$f":"COUNTIF(C$3:C$194,\"<4\")","v":77},78,{"$f":"COUNTIF(E$3:E$194,\"<4\")","v":76},{"$f":"COUNTIF(F$3:F$194,\"<4\")","v":81},{"$f":"COUNTIF(G$3:G$194,\"<4\")","v":71},{"$f":"COUNTIF(H$3:H$194,\"<4\")","v":85},42,62,35,56,72,62,79,71,89,42,72,66,67,70,77,48,55,39,58,62,67,70,43,75,68,85,60,79,75,51,68,80,46,74,71,53,60,82,70,85,40,71,78,75,56,50,55,50,51,null,34,32,27,45]
["Total no. Responses >=4",{"$f":"COUNTIF(B$3:B$194,\">=4\")","v":57},{"$f":"COUNTIF(C$3:C$194,\">=4\")","v":56},55,{"$f":"COUNTIF(E$3:E$194,\">=4\")","v":57},{"$f":"COUNTIF(F$3:F$194,\">=4\")","v":52},{"$f":"COUNTIF(G$3:G$194,\">=4\")","v":62},{"$f":"COUNTIF(H$3:H$194,\">=4\")","v":46},76,67,92,74,45,69,51,60,42,76,61,66,66,62,56,75,69,65,67,67,66,62,57,58,63,48,73,53,52,81,63,52,74,52,54,66,62,37,51,33,65,59,55,52,75,81,76,81,79,null,95,78,86,81]
[]
["HDI: Low HD - average",{"$f":"AVERAGEIFS(B$3:B$194,B$3:B$194,\">0\",ID_HDIG,1)","v":3.3986624973488899},3.3886582378660366,3.3125720216235806,3.2663474036584339,3.4555027597585162,3.367261904761905,3.3886803300865798,4.083333333333333,3.4333333333333331,4.0344827586206895,3.6472222222222217,2.7692307692307692,3.1875,2.5483870967741935,3.520833333333333,3.2855654761904756,4.083333333333333,3.3513502128246699,3.3010416666666664,3.4494047619047619,3.2703125000000002,3.278645833333333,3.1666666666666665,3.1666666666666665,3.6296296296296298,3.3722222222222218,3.365591397849462,3.4494047619047619,3.2703125000000002,3.5172413793103448,3.2127329554025454,3.1693548387096775,{"$f":"AVERAGEIFS(AH$3:AH$194,AH$3:AH$194,\">0\",ID_HDIG,1)","v":3.1077114725552226},3.581063988095238,3.052083333333333,2.8777777777777778,3.5806451612903225,3.1693548387096775,3.1241935483870966,3.2962962962962963,2.8333333333333335,3.0714285714285716,2.8076923076923075,2.3703703703703702,1.8,2.2692307692307692,1.8461538461538463,3.5357142857142856,3.2956989247311825,3.3165736607142864,2.8777777777777778,3.7073758677211686,3.6543906810035849,3.7523169482846899,3.6627752176139272,3.8081216931216932,null,{"$f":"AVERAGEIFS(BG$3:BG$194,BG$3:BG$194,\">0\",ID_HDIG,1)","v":3.8166666666666669},4.0862068965517242,4.3499999999999996,3.225806451612903,3.6,3.4827586206896552,2.5333333333333332,2.4333333333333331,1.6451612903225807,2.7068965517241379,2.7844827586206895,2.6982758620689653,2.4741379310344827,2.8706896551724137,2.7844827586206895,2.7672413793103448,2.5086206896551726,2.7672413793103448,2.7931034482758621,2.9310344827586206,2.5862068965517242,2.8275862068965516,2.6896551724137931,2.7586206896551726,2.5862068965517242,2.7586206896551726,2.5172413793103448,2.4137931034482758,2.4827586206896552,2.4827586206896552,3.1379310344827585,2.9655172413793105,2.3793103448275863,3,{"$f":"AVERAGEIFS(CO$3:CO$194,CO$3:CO$194,\">0\",ID_HDIG,1)","v":4},3,2,2.21875,3.7419354838709675,4.4516129032258061,3.2666666666666666,3.6,3.064516129032258,4.032258064516129,3.5806451612903225,3.7096774193548385,3.4838709677419355,3.193548387096774,3.7419354838709675,3.5806451612903225,3.6129032258064515,4.193548387096774,3.5161290322580645,3.4838709677419355,3.129032258064516,3.838709677419355,3.967741935483871,4.0666666666666664,4.032258064516129,4.032258064516129,4.032258064516129,3.838709677419355,4.129032258064516,3.7419354838709675,3.4333333333333331,3.2413793103448274,{"$f":"AVERAGEIFS(DU$3:DU$194,DU$3:DU$194,\">0\",ID_HDIG,1)","v":4.32258064516129},4.290322580645161,4,3.935483870967742,3.774193548387097,3.935483870967742,3.935483870967742,3.838709677419355,3.8166666666666669,3.8333333333333335,3.806451612903226,3.870967741935484,3.35,2.838709677419355,3.9333333333333331,3.7,4.193548387096774,4.4516129032258061,3.7419354838709675,3.7419354838709675,3.7166666666666668,3.7096774193548385,3.6451612903225805,3.5806451612903225,3.5,3.6129032258064515,3.6774193548387095,3.6129032258064515,3.6451612903225805,3.5806451612903225,3.467741935483871,3.4,{"$f":"AVERAGEIFS(FA$3:FA$194,FA$3:FA$194,\">0\",ID_HDIG,1)","v":3.7096774193548385},3.5161290322580645,3.5161290322580645,3.3666666666666667,3.7096774193548385,3.774193548387097,3.7241379310344827,3.5806451612903225]
["HDI: Medium HD - average",{"$f":"AVERAGEIFS(B$3:B$194,B$3:B$194,\">0\",ID_HDIG,2)","v":3.5404838988093492},3.4338022809066699,3.4536526960633807,3.4890383559411604,3.3333873748010361,3.4674347158218133,3.2170367267141464,3.6428571428571428,3.5053763440860211,3.9333333333333331,3.6908602150537635,3.0178571428571428,3.4516129032258065,2.870967741935484,3.5080645161290329,3.0260368663594477,3.6428571428571428,3.5140681399894422,3.4424731182795694,3.5840245775729644,3.5206349206349206,3.370967741935484,3.3448275862068964,3.2666666666666666,3.1666666666666665,3.6236559139784954,3.5053763440860211,3.5840245775729644,3.5206349206349206,3.2758620689655173,3.4762923908533732,3.3972222222222226,{"$f":"AVERAGEIFS(AH$3:AH$194,AH$3:AH$194,\">0\",ID_HDIG,2)","v":3.391119633055117},3.8598310291858677,3.2096774193548385,3.1444444444444448,3.9301075268817209,3.3972222222222226,3.4553763440860212,3.4482758620689653,3.2419354838709675,3.2580645161290325,3.5185185185185186,3.2068965517241379,2.8148148148148149,2.9310344827586206,2.6785714285714284,3.3076923076923075,3.3555555555555561,3.5347542242703538,3.1444444444444448,3.846384927006369,3.904569892473118,3.7963261648745519,3.9121607782898105,3.7773937532002053,null,{"$f":"AVERAGEIFS(BG$3:BG$194,BG$3:BG$194,\">0\",ID_HDIG,2)","v":3.967741935483871},4.1551724137931032,4.3166666666666664,3.1379310344827585,3.6206896551724137,3.5666666666666669,2.8620689655172415,3.2758620689655173,1.8148148148148149,2.9750000000000001,3.1083333333333334,2.9249999999999998,2.8416666666666668,3.0249999999999999,3.0666666666666669,2.9,2.9083333333333332,3.0249999999999999,3.1666666666666665,2.9333333333333331,3.1333333333333333,3.2,3,2.8666666666666667,2.9,2.9333333333333331,2.9666666666666668,2.7333333333333334,2.7666666666666666,2.9,3.1333333333333333,3.0666666666666669,2.8333333333333335,3.0666666666666669,{"$f":"AVERAGEIFS(CO$3:CO$194,CO$3:CO$194,\">0\",ID_HDIG,2)","v":4},3,2,2.4193548387096775,3.6896551724137931,4.5999999999999996,3.5666666666666669,3.6,3.5172413793103448,4.1333333333333337,3.9333333333333331,4.064516129032258,3.870967741935484,3.5161290322580645,4.032258064516129,3.6774193548387095,3.7,4.419354838709677,3.903225806451613,3.806451612903226,3.3548387096774195,4.5483870967741939,4.096774193548387,4.129032258064516,3.870967741935484,3.5806451612903225,3.806451612903226,3.4516129032258065,4.161290322580645,3.935483870967742,3.5,3.3666666666666667,{"$f":"AVERAGEIFS(DU$3:DU$194,DU$3:DU$194,\">0\",ID_HDIG,2)","v":4.0161290322580649},4.032258064516129,4.129032258064516,4.129032258064516,4.032258064516129,4.225806451612903,4.0483870967741939,3.903225806451613,3.935483870967742,3.6129032258064515,3.806451612903226,3.6333333333333333,3.4333333333333331,2.7333333333333334,4.161290322580645,3.7096774193548385,4.032258064516129,4,3.8333333333333335,3.7833333333333332,3.8,3.838709677419355,3.8333333333333335,3.7241379310344827,3.6774193548387095,3.9333333333333331,3.5666666666666669,3.5806451612903225,3.6,3.6666666666666665,3.603448275862069,3.3666666666666667,{"$f":"AVERAGEIFS(FA$3:FA$194,FA$3:FA$194,\">0\",ID_HDIG,2)","v":3.5483870967741935},3.6129032258064515,3.5862068965517242,3.6206896551724137,3.8,3.7666666666666666,3.7333333333333334,3.8666666666666667]
["HDI: High HD - average",{"$f":"AVERAGEIFS(B$3:B$194,B$3:B$194,\">0\",ID_HDIG,3)","v":3.6308283837005053},3.5372016539909779,3.5495901273399824,3.5805963604180095,3.4570335027507375,3.5712301587301578,3.300307153164296,3.9838709677419355,3.7095238095238097,4.128571428571429,3.8190476190476197,3.0454545454545454,3.3333333333333335,3.1142857142857143,3.3547619047619044,3.2653741496598632,3.9838709677419355,3.6146904347658992,3.6471428571428568,3.7706349206349206,3.4585978835978839,3.4606481481481479,3.84375,3.5454545454545454,3.72,3.6313131313131319,3.6323529411764706,3.7706349206349206,3.4585978835978839,3.3703703703703702,3.5561964789754126,3.4999999999999996,{"$f":"AVERAGEIFS(AH$3:AH$194,AH$3:AH$194,\">0\",ID_HDIG,3)","v":3.3777308339808343},4.0609567901234573,3.2738095238095237,3.0931372549019609,3.9814814814814818,3.4999999999999996,3.3754629629629638,3.5625,3.2878787878787881,3.3285714285714287,3.3714285714285714,3.4117647058823528,2.657142857142857,2.7575757575757578,2.2647058823529411,4,3.4000000000000004,3.6728395061728389,3.0931372549019609,3.9570143469266288,3.9640652557319225,3.951201499118167,3.9556657848324517,3.924988977072311,null,{"$f":"AVERAGEIFS(BG$3:BG$194,BG$3:BG$194,\">0\",ID_HDIG,3)","v":4.1714285714285717},3.8235294117647061,4.1034482758620694,3.657142857142857,3.6764705882352939,3.7058823529411766,3.1470588235294117,3.2571428571428571,2.3823529411764706,3.0492424242424243,3.106060606060606,2.9393939393939394,2.9696969696969697,3.1818181818181817,3.1328125,3.1171875,2.9375,3.106060606060606,3.15625,3.1875,2.96875,3.2121212121212119,2.9375,3,2.90625,3,3.0625,3.03125,2.9375,2.9393939393939394,3.375,3.25,2.9375,3.2727272727272729,{"$f":"AVERAGEIFS(CO$3:CO$194,CO$3:CO$194,\">0\",ID_HDIG,3)","v":4},3,2,2.3611111111111112,3.6944444444444446,4.3055555555555554,3.1111111111111112,3,3.0571428571428569,3.7352941176470589,3.6857142857142855,3.7142857142857144,3.342857142857143,3.3235294117647061,3.7714285714285714,3.7352941176470589,3.6,4.1428571428571432,3.5428571428571427,3.6764705882352939,3.6,4.2571428571428571,3.9722222222222223,3.9166666666666665,3.6388888888888888,3.8285714285714287,3.7777777777777777,3.6857142857142855,3.9722222222222223,3.4722222222222223,3,2.7428571428571429,{"$f":"AVERAGEIFS(DU$3:DU$194,DU$3:DU$194,\">0\",ID_HDIG,3)","v":4.0972222222222223},4,3.9722222222222223,4.0555555555555554,4,3.9142857142857141,3.7222222222222223,3.6285714285714286,3.6805555555555554,3.8857142857142857,3.6944444444444446,3.6388888888888888,2.8888888888888888,2.7714285714285714,3.8888888888888888,3.4571428571428573,4.1428571428571432,4.0555555555555554,4.0857142857142854,3.7058823529411766,3.7714285714285714,3.5142857142857142,3.8333333333333335,3.6388888888888888,3.7428571428571429,3.7142857142857144,3.7714285714285714,3.4705882352941178,3.5555555555555554,3.6666666666666665,3.4558823529411766,3.2727272727272729,{"$f":"AVERAGEIFS(FA$3:FA$194,FA$3:FA$194,\">0\",ID_HDIG,3)","v":3.4285714285714284},3.4411764705882355,3.4242424242424243,3.393939393939394,3.6857142857142855,3.6363636363636362,3.7142857142857144,3.8285714285714287]
["HDI: Very high HD - average",{"$f":"AVERAGEIFS(B$3:B$194,B$3:B$194,\">0\",ID_HDIG,4)","v":4.9515623141071829},4.9241265674587211,4.9395537034101205,5.0280862594099025,4.6573915473728809,4.9834733893557432,4.4421946740128559,4.7586206896551726,5.0353535353535364,5.666666666666667,5.1372549019607838,4.3,4.71875,4.0909090909090908,4.6388888888888884,4.3241702741702728,4.7586206896551726,5.1613686064537454,5.2225490196078432,5.1161764705882362,5.1689775910364153,4.9754901960784315,5.34375,4.903225806451613,4.9642857142857144,5.5967741935483861,5.2272727272727275,5.1161764705882362,5.1689775910364153,5.1333333333333337,4.9509999101288038,5.0833333333333339,{"$f":"AVERAGEIFS(AH$3:AH$194,AH$3:AH$194,\">0\",ID_HDIG,4)","v":4.6536576168929109},5.3728991596638656,4.7230392156862742,4.808080808080808,5.5196078431372539,5.0833333333333339,4.6093137254901952,5.0625,4.4375,4.32258064516129,4.4516129032258061,4.1875,3.03125,3.9090909090909092,3.2333333333333334,4.9259259259259256,4.7352941176470589,5.0479691876750721,4.808080808080808,4.9656475283480628,4.9627224627224633,4.9915223665223669,4.9173160173160175,4.9719215969215957,null,{"$f":"AVERAGEIFS(BG$3:BG$194,BG$3:BG$194,\">0\",ID_HDIG,4)","v":5.166666666666667},4.9444444444444446,5.0625,3.3870967741935485,2.6129032258064515,2.53125,3.0606060606060606,3.6470588235294117,2.5483870967741935,3.5766129032258069,3.6612903225806455,3.438172043010753,3.4354838709677415,3.771505376344086,3.4596774193548385,3.2166666666666668,4.112903225806452,3.5,3.5806451612903225,3.2,4.225806451612903,3.6071428571428572,3.3225806451612905,3.0333333333333332,4.032258064516129,3.3214285714285716,3.225806451612903,3.0333333333333332,4.096774193548387,3.3928571428571428,3.7096774193548385,3.6,4.096774193548387,3.6785714285714284,{"$f":"AVERAGEIFS(CO$3:CO$194,CO$3:CO$194,\">0\",ID_HDIG,4)","v":4},3,2,2.1470588235294117,2.7647058823529411,3.3529411764705883,2.7941176470588234,2.8484848484848486,3.2941176470588234,3.0303030303030303,3.1818181818181817,3.0909090909090908,2.7575757575757578,2.7575757575757578,3.40625,3.375,3.3235294117647061,3.2352941176470589,3.1818181818181817,3.4545454545454546,3.9393939393939394,3.53125,4.117647058823529,3.8787878787878789,3.7058823529411766,3.7941176470588234,3.5882352941176472,3.8529411764705883,2.9117647058823528,2.75,2.4848484848484849,2.25,{"$f":"AVERAGEIFS(DU$3:DU$194,DU$3:DU$194,\">0\",ID_HDIG,4)","v":3.5303030303030303},3.4848484848484849,3.5588235294117645,3.5294117647058822,3.5,3.5882352941176472,2.8823529411764706,3.4848484848484849,3.3382352941176472,3.1515151515151514,3.4411764705882355,3.3030303030303032,2.4090909090909092,2.59375,3.5588235294117645,3.0606060606060606,3.5151515151515151,3.5454545454545454,4.1764705882352944,4.0147058823529411,3.9411764705882355,4.1515151515151514,4.0294117647058822,4.0294117647058822,4.2121212121212119,3.9375,3.8823529411764706,3.8088235294117645,3.9705882352941178,3.9705882352941178,3.34375,3.59375,{"$f":"AVERAGEIFS(FA$3:FA$194,FA$3:FA$194,\">0\",ID_HDIG,4)","v":3.8529411764705883},3.7878787878787881,3.40625,3.2903225806451615,4.117647058823529,3.9393939393939394,4,3.84375]
["HDI: Global - average",null,null,null,null,null,null,null,null,null,null,null,null,null,null,null,null,null,null,null,null,null,null,null,null,null,null,null,null,null,null,null,null,null,null,null,null,null,null,null,null,null,null,null,null,null,null,null,null,null,null,null,null,null,null,null,null,null,{"$f":"AVERAGEIFS(BG$3:BG$194,BG$3:BG$194,\">0\")","v":4.2945736434108523},4.163636363636364,4.4292035398230087,3.3650793650793651,3.379032258064516,3.32,2.9126984126984126,3.171875,2.1138211382113821,3.0833333333333339,3.1707317073170738,3.0047425474254745,2.9390243902439024,3.2188346883468837,3.1168032786885247,3.0041322314049586,3.127049180327869,3.0958333333333332,3.180327868852459,3.0661157024793386,3.237704918032787,3.2083333333333335,2.9918032786885247,2.9173553719008263,3.1147540983606556,3,2.9508196721311477,2.8099173553719008,3.081967213114754,2.9249999999999998,3.3442622950819674,3.2231404958677685,3.0737704918032787,3.25,{"$f":"AVERAGEIFS(CO$3:CO$194,CO$3:CO$194,\">0\")","v":4},3,2,2.2857142857142856,3.4615384615384617,4.1603053435114505,3.1692307692307691,3.2421875,3.2248062015503876,3.71875,3.5891472868217056,3.6384615384615384,3.3538461538461539,3.193798449612403,3.7364341085271318,3.59375,3.5538461538461537,3.9847328244274811,3.5307692307692307,3.6046511627906979,3.5153846153846153,4.0465116279069768,4.0378787878787881,3.9923076923076923,3.8030303030303032,3.8091603053435112,3.7954545454545454,3.7099236641221376,3.7803030303030303,3.4692307692307693,3.0852713178294575,2.8809523809523809,{"$f":"AVERAGEIFS(DU$3:DU$194,DU$3:DU$194,\">0\")","v":3.9885496183206106},3.946564885496183,3.9090909090909092,3.9090909090909092,3.8257575757575757,3.9083969465648853,3.6325757575757578,3.7076923076923078,3.6832061068702289,3.6201550387596901,3.6818181818181817,3.6076923076923078,3,2.734375,3.8778625954198471,3.4728682170542635,3.9692307692307693,4.0076335877862599,3.9692307692307693,3.8139534883720931,3.8100775193798451,3.8,3.8396946564885495,3.7461538461538462,3.7906976744186047,3.796875,3.7307692307692308,3.6192307692307693,3.6946564885496183,3.7251908396946565,3.4642857142857144,3.4079999999999999,{"$f":"AVERAGEIFS(FA$3:FA$194,FA$3:FA$194,\">0\")","v":3.6335877862595418},3.5891472868217056,3.48,3.4146341463414633,3.8307692307692309,3.7795275590551181,3.796875,3.78125]

{"sheet":"2007 Survey responses","index":24,"n_rows":223,"n_cols":72,"rows_kept":223,"cut":false,"hidden":true,"merged":[]}
["Countries","UN-Water survey","Part 1 : Enabling Conditions for water resources management (WRM)",null,null,null,null,null,null,null,null,null,null,null,null,null,null,null,"Part 2 : Main elements of WRM policies, strategies, programmes & plans  ",null,null,null,null,null,null,null,"Part 2 : Main elements of WRM policies, strategies, programmes and plans  ",null,null,null,null,null,null,null,null,null,null,null,null,null,"Part 2 : Main elements of WRM policies, strategies, programmes and plans  ",null,null,null,null,"Part 2 : Main elements of WRM policies, strategies, programmes and plans  ",null,null,null,null,"Part 2 : Main elements of WRM policies, strategies, programmes and plans  ",null,null,null,null,null,null,null,null,null,null,"Part 2 : Main elements of WRM policies, strategies, programmes and plans  ",null,null,null,null,null,"Part 2 : Main elements of WRM policies, strategies, programmes and plans  "]
[null,"Y: answered","Scores : 1= Not relevant; 2= Under consideration; 3=In place but not yet implemented",null,null,null,null,null,null,null,null,null,null,null,null,null,null,null,"Scores : 1= Not relevant; 2= Under consideration; 3=In place but not yet implemented",null,null,null,null,null,null,null,"Scores : 1= Not relevant; 2= Under consideration; 3=In place but not yet implemented",null,null,null,null,null,null,null,null,null,null,null,null,null,"Scores : 1= Not relevant; 2= Under consideration; 3=In place but not yet implemented",null,null,null,null,"Scores : 1= Not relevant; 2= Under consideration; 3=In place but not yet implemented",null,null,null,null,"Scores : 1= Not relevant; 2= Under consideration; 3=In place but not yet implemented",null,null,null,null,null,null,null,null,null,null,"Scores : 1= Not relevant; 2= Under consideration; 3=In place but not yet implemented",null,null,null,null,null,"Scores : 1= Not relevant; 2= Under consideration; 3=In place but not yet implemented"]
[null,"UN-DESA Quest","4=In place but partially implemented; 5=Fully implemented",null,null,null,null,null,null,null,null,null,null,null,"Question 4",null,null,null,"4=In place but partially implemented; 5=Fully implemented",null,null,null,null,null,null,null,"4=In place but partially implemented; 5=Fully implemented",null,null,null,null,null,null,null,null,null,null,null,null,null,"4=In place but partially implemented; 5=Fully implemented",null,null,null,null,"4=In place but partially implemented; 5=Fully implemented",null,null,null,null,"4=In place but partially implemented; 5=Fully implemented",null,null,null,null,null,null,null,null,null,null,"4=In place but partially implemented; 5=Fully implemented",null,null,null,null,null,"4=In place but partially implemented; 5=Fully implemented"]
[null,"X: partial ","MAIN NATIONAL INSTRUMENTS",null,null,null,null,"OTHER NATIONAL FEDERAL STRATEGIES ",null,null,null,"INT'L AGREEMENTS",null,null,null,null,null,null,"WATER RESOURCE DEVELOPMENT ",null,null,null,null,null,null,null,"WATER RESOURCE MANAGEMENT  ",null,null,null,null,null,null,null,null,null,null,null,null,null,"WATER USE ",null,null,null,null,"MONITORING, INFORMATION MANAGEMENT & DISSEMINATION",null,null,null,null,"CAPACITY BUILDING AND ENABLING ENVIRONMENT",null,null,null,null,null,null,null,null,null,null,"STAKEHOLDER (STHR) PARTICIPATION",null,null,null,null,null,"FINANCING"]
[null,"answers through","Water","Natn'l/Fed","Natn'l/Fed","Natn'l/Fed","Natn'l/Fed",null,null,null,null,null,null,null,"National","Donors","National","Others","Assessment","Regulatory","Basin","Desalination ","Rainwater","Harvesting","Supply","Progs for","P&P for","Program","P&P","Groundwater ","P&P","P&P","P&P","Efficient","Legislative","Demand","Drainage","Mechanisms","Norms","Joint","Wtr Demand","P&P","P&P","P&P","P&P","Functional","Standard data","IWRM info","Info","IWRM impact","Assessment","CB","River basin","Institutional","Institutional","Link","Assessment","Enforce","Advisory","Tech transfer","Pro-poor","Process for","Decentralized","Gender","Public awareness","Mechanisms for","WRM","WS","Financial","Procedures for","Gradual","Subsidies /"]
[null,"UNEP","policy","water law","IWRM plan","Water Plan","IWRM or Water (efficiency) plan","PRS","NDP","NSDS","NEAP","Regional","Transboundary",null,null,"& IFIs","& donor",null,"of WR","norms","studies",null,"harvest","fogs","augmentation","recycling","W-Shed Man","efficiency","catchments","Man","reverse deg","avoid floods","desertification","allocation ","protection ","Man","integration","\"c-use\"","for EIA","management ","survey","for Agri use","for Muni use","for Indu use","other uses","networks","collection","system","Xchange","Reports","CB needs","programmes","man institution","reform ","coordination","mechanisms","R&D needs","laws","programmes","program","P&P","STHR participation","WRM structures","mainstreaming","campaigns","trans-boundary issues","partnerships","Investment plan","strategy","financ'l sustainability","cost recovery","MC programs"]
["Afghanistan",null,null,null,null,null,{"$f":"MAX(E7,F7)","v":0}]
["Albania",null,null,null,null,null,{"$f":"MAX(E8,F8)","v":0}]
["Algeria","X",4,4,2,1,2,null,null,null,null,null,null,null,null,null,null,null,null,2,2,null,null,null,2,2,2,2,2,null,2,null,null,2,null,2,null,null,null,null,2,2,2,2,2,2,2,2,2,2,2,2,4,2,4,null,2,2,null,null,null,4,4,null,null,null,null,null,null,null,2]
["Andorra",null,null,null,null,null,0]
["Angola","X",2,3,2,1,2,1,1,null,3,1,1,null,null,null,null,null,null,null,null,null,null,null,null,null,3,null,null,null,null,null,null,null,null,null,null,null,null,null,null,null,1,1,1,null,null,null,null,null,null,null,3,null,null,1,null,3]
["Antigua and Barbuda","X",1,2,1,1,1,1,1,null,1,null,null,null,null,null,null,null,null,1,1,null,null,null,null,null,1,1,null,null,null,null,null,null,1,4,null,null,null,null,null,4,1,1,1,null,null,null,null,null,null,null,1,null,3,1,null,null,null,null,null,3,2,null,null,null,null,null,null,null,3]
["Argentina","Y",4,1,2,1,2,4,4,4,4,3,2,null,null,null,"x",null,4,2,4,1,1,1,4,4,4,4,4,4,2,4,2,2,4,2,4,4,4,4,2,4,4,2,2,4,4,4,4,2,4,4,4,2,4,2,4,4,2,2,4,2,4,1,4,4,4,4,4,2,2,1]
["Armenia","Y",4,4,2,2,2,1,1,4,null,5,2,null,null,null,"x",null,4,2,2,1,1,1,1,1,2,4,2,2,2,1,4,1,4,2,1,4,2,1,2,2,2,2,2,4,4,4,4,1,2,2,4,4,4,4,1,4,4,2,4,4,4,5,4,2,2,4,4,4,4,2]
["Australia","Y",4,2,4,4,4,4,1,1,4,1,1,null,"x",null,null,null,4,4,2,3,5,1,4,4,5,4,5,4,5,null,5,4,5,5,4,4,5,5,4,4,5,4,4,4,4,2,4,4,4,4,5,4,5,4,5,4,5,5,1,4,5,1,1,1,5,1,1,1,4,5]
["Austria","Y",5,5,4,1,4,1,1,1,1,4,4,null," x",null,null,null,5,5,4,1,1,1,1,5,5,5,5,5,5,5,5,5,5,5,1,5,5,5,5,5,5,5,1,5,5,4,4,4,5,5,5,5,5,5,5,5,5,5,1,5,5,5,5,5,5,5,5,5,5,1]
["Azerbaijan","Y",1,5,1,1,1,4,2,2,4,1,1,null,null,null,null,null,2,2,2,1,1,1,1,3,2,2,2,1,4,3,2,1,4,1,4,3,4,1,2,2,3,1,1,5,5,2,4,2,2,2,2,3,2,4,3,5,4,2,3,4,1,1,3,2,2,2,null,2,4,1]
["Bahamas","X",2,3,2,1,2,1,3,null,3,3,3,null,null,null,null,null,null,1,1,null,null,null,null,null,1,1,null,null,null,null,null,null,1,4,null,null,null,null,null,4,1,1,1,null,null,null,null,null,null,null,1,null,3,2,null,4,null,null,null,2,3,null,null,null,null,null,null,null,1]
["Bahrain",null,null,null,null,null,0]
["Bangladesh",null,null,null,null,null,0]
["Barbados","Y",4,4,4,4,4,5,4,4,3,2,1,null,"x",null,null,null,5,4,5,4,5,1,5,2,5,4,4,5,4,4,4,4,4,4,5,4,5,1,5,5,5,4,2,4,4,2,2,2,3,4,1,4,4,4,4,5,5,5,5,5,1,1,5,1,4,5,5,5,5,2]
["Belarus",null,null,null,null,null,0]
["Belgium",null,null,null,null,null,0]
["Belize","X",2,3,2,1,2,1,1,null,3,2,2,null,null,null,null,null,null,4,3,null,null,null,null,null,3,1,null,null,null,null,null,null,3,4,null,null,null,null,null,4,1,1,1,null,null,null,null,null,null,null,1,null,4,1,null,4,null,null,null,4,4,null,null,null,null,null,null,null,3]
["Benin",null,null,null,null,null,0]
["Bhutan",null,null,null,null,null,0]
["Bolivia (Plurinational State of)","X",2,2,2,null,2,null,4,null,null,2,2,null,null,null,null,null,2,2,2,null,null,null,2,2,2,2,2,null,2,null,null,2,2,2,null,null,null,null,2,4,2,2,2,2,2,2,2,2,2,2,4,2,4,2,2,4,null,null,null,4,4,2,null,null,null,null,null,null,2]
["Bosnia and Herzegovina",null,null,null,null,null,0]
["Botswana","X",2,4,2,null,2,null,null,null,null,null,null,null,null,null,null,null,2,2,2,null,null,2,2,null,2,2,2,null,null,null,null,2,2,2,null,null,null,null,2,2,2,2,2,2,2,2,2,2,2,2,2,2,4,2,2,4,null,null,4,2,2,2,null,null,4,null,null,null,2]
["Brazil","X",4,4,4,1,4,4,4,null,4,null,null,null,null,null,null,null,4,4,4,null,null,null,null,2,4,4,4,null,null,null,null,null,4,null,null,null,null,null,4,4,4,4,4,null,null,null,null,null,4,4,4,4,4,4,4,4,null,null,null,4,4,null,null,null,null,null,null,null,4]
["Brunei Darussalam",null,null,null,null,null,0]
["Bulgaria",null,null,null,null,null,0]
["Burkina Faso","Y",5,4,4,1,4,4,4,4,null,4,4,null,null,"x",null,null,4,4,4,1,2,1,4,2,4,3,3,4,4,4,4,4,3,4,5,5,4,5,4,4,4,2,2,4,4,4,4,4,2,2,3,4,5,2,4,4,4,2,4,4,5,4,4,5,5,4,4,4,3,2]
["Burundi",null,null,null,null,null,0]
["Cambodia","Y",4,3,4,4,4,5,5,4,4,4,4,null,null,"x",null,null,5,5,5,2,2,1,2,2,3,4,4,5,null,5,5,4,4,4,4,4,5,4,4,5,5,5,4,4,4,4,4,4,4,4,2,2,5,4,3,2,3,4,4,4,5,5,5,4,4,5,5,5,4,2]
["Cameroon",null,null,null,null,null,0]
["Canada",null,null,null,null,null,0]
["Cape Verde","Y",5,5,4,4,4,4,5,5,null,5,1,null,null,null,"x",null,4,4,4,5,4,3,4,3,4,3,4,4,5,3,5,4,5,4,4,4,5,1,4,4,5,3,3,3,4,3,5,3,4,3,3,5,4,3,4,3,3,3,4,4,5,3,4,1,5,5,4,3,5,4]
["Central African Republic",null,null,null,null,null,0]
["Chad",null,null,null,null,null,0]
["Chile","X",4,4,2,null,2,4,null,null,4,4,4,null,null,null,null,null,2,2,2,null,null,null,2,2,4,2,2,null,2,null,null,null,2,2,null,null,null,null,2,2,2,2,2,2,2,2,2,2,2,2,2,2,2,2,2,2,null,null,null,4,4,null,null,null,null,null,null,null,2]
["China","Y",4,5,3,2,3,4,5,4,4,3,2,null,"x",null,null,null,5,4,4,4,4,2,4,4,4,4,4,4,4,4,4,4,4,4,4,4,4,3,5,4,4,4,4,4,4,4,4,2,4,4,5,4,2,4,5,4,2,4,4,4,1,2,4,4,4,4,2,2,4,2]
["Colombia","Y",4,2,4,4,4,4,4,4,4,4,4,null,null,null,"x","x",4,4,4,4,4,null,4,4,4,4,4,4,4,4,4,4,4,4,4,4,4,4,4,4,4,4,4,5,4,4,4,2,4,4,4,4,4,4,4,4,4,4,4,4,4,1,4,4,4,4,4,4,4,4]
["Comoros",null,null,null,null,null,0]
["Congo","X",2,4,2,1,2,null,null,null,null,null,null,null,null,null,"x",null,2,2,2,null,null,null,2,2,2,2,2,null,null,null,null,2,2,2,null,null,null,null,2,2,2,2,2,2,2,2,2,2,2,2]
["Costa Rica",null,null,null,null,null,0]
["Côte d'Ivoire","Y",4,5,3,3,3,1,1,2,5,3,3,null,null,null,"x",null,4,4,4,3,3,2,4,4,3,3,3,4,3,2,2,4,4,4,4,4,3,3,5,5,5,5,5,4,4,4,4,2,2,2,2,2,4,4,4,3,2,3,3,2,2,2,2,2,2,3,4,4,2,2]
["Croatia","X",2,4,2,1,2,4,4,null,4,null,null,null,null,"x",null,null,2,4,2,null,null,null,null,2,2,2,2,null,2,null,null,2,2,2,null,null,null,null,2,2,2,2,2,2,2,2,2,2,2,2,2,2,2,2,2,2,null,null,null,4,2,2,4]
["Cuba","Y",3,5,2,2,2,2,3,5,3,4,2,null,null,null,"x",null,4,2,2,1,1,1,2,2,3,3,3,3,2,3,3,2,5,2,3,2,2,2,2,4,4,4,2,4,3,3,3,2,4,4,5,2,2,2,2,4,2,2,1,2,2,2,3,3,3,3,2,2,3,3]
["Cyprus","Y",5,5,4,4,4,1,4,4,4,4,1,null,null,null,"x",null,4,4,4,2,3,1,4,2,5,4,4,5,4,4,4,5,4,4,4,5,5,5,5,4,4,4,4,5,5,4,5,4,5,4,5,4,5,5,4,4,5,4,1,5,4,5,4,1,4,5,4,4,1,1]
["Czech Republic","Y",2,4,2,null,2,1,2,2,2,1,1,null,"x",null,null,null,5,2,2,4,1,1,4,4,2,4,2,2,3,2,2,2,4,4,1,5,5,1,5,4,4,4,4,4,3,2,2,2,1,1,1,2,2,2,2,2,1,2,1,4,5,1,1,1,2,2,2,2,4,4]
["Democratic People's Republic of Korea","Y",3,5,3,2,3,1,2,2,3,3,3,null,"x",null,null,null,3,2,3,1,1,1,2,"3 & 4(for waste water",null,4,3,3,3,5,2,2,5,5,"1 (rarely relevant)",2,5,2,3,4,4,4,null,5,5,4,2,3,2,2,4,4,4,2,3,4,3,3,1,4,3,2,4,4,3,2,3,3,2,2]
["Democratic Republic of the Congo","Y",5,5,1,1,1,null,null,null,4,null,2,null,"x",null,null,null,5,1,1,1,1,1,1,5,4,5,4,5,5,1,1,5,5,4,1,4,5,1,3,5,5,5,5,5,5,4,2,2,1,2,5,1,5,3,3,5,1,1,1,5,5,1,1,4,1,5,5,5,5,1]
["Denmark",null,null,null,null,null,0]
["Djibouti","X",4,null,1,3,3,1,null,null,null,1,1,null,null,null,null,null,null,2,null,null,null,null,null,null,3,null,null,null,null,null,null,null,1,null,null,null,null,null,null,null,null,3,3,null,null,null,null,null,null,null,3,null,null,null,null,4,null,null,null,null,1,null,null,null,null,null,null,null,3]
["Dominica",null,null,null,null,null,0]
["Dominican Republic","X",4,4,null,null,0,null,null,null,null,null,null,null,null,null,null,null,null,null,null,null,null,null,null,null,null,null,null,null,null,null,null,null,null,null,null,null,null,null,null,null,null,null,null,null,null,null,null,null,null,null,4,null,4,null,null,4,null,null,null,null,null,null,null,null,null,4,4]
["Ecuador","Y",4,4,4,4,4,4,3,null,4,3,3,null,null,null,"x",null,5,2,2,4,4,2,4,4,null,4,4,4,null,null,4,4,null,4,4,4,4,5,4,4,4,4,null,4,4,4,4,3,null,null,null,null,4,null,4,null,4,2,4,4,2,4,4,2,4,4,null,null,2,2]
["Egypt","X",4,4,null,null,0,4,4,null,4,null,4,null,null,null,null,null,null,4,4,null,null,null,null,null,4,null,null,null,null,null,null,null,null,null,null,null,null,null,null,4,null,null,null,null,null,null,null,null,null,null,4,null,4,4,null,4,null,null,null,4,4,null,null,null,null,null,null,null,4]
["El Salvador",null,null,null,null,null,0]
["Equatorial Guinea","Y",2,2,2,1,2,1,1,1,1,1,4,null,null,null,"x",null,2,2,2,1,2,1,2,2,4,2,4,2,2,2,2,2,2,2,2,2,4,1,2,3,3,2,2,4,2,2,2,2,2,2,2,2,2,1,2,2,2,2,3,2,4,2,4,1,2,2,2,2,4,4]
["Eritrea","Y",4,5,3,1,3,4,1,4,4,4,4,null,null,null,"x",null,5,4,4,1,1,1,2,4,4,4,4,4,4,3,1,1,4,5,1,4,4,4,5,4,4,4,4,5,4,4,2,2,3,4,1,4,4,4,3,5,4,2,1,5,5,1,4,4,4,4,4,4,4,4]
["Estonia",null,null,null,null,null,0]
["Ethiopia",null,null,null,null,null,0]
["Fiji","Y",5,5,4,4,4,1,1,4,1,4,4,null,"x",null,null,null,5,5,4,1,1,1,1,1,4,5,4,4,4,4,2,5,5,5,1,5,5,5,5,4,5,5,5,5,5,4,5,5,2,4,5,1,5,4,5,5,4,4,1,5,5,5,1,5,4,1,2,5,5,1]
["Finland","Y",5,5,5,5,5,1,5,5,5,5,5,null,"x",null,null,null,5,5,4,1,2,1,5,5,5,4,4,4,4,4,5,5,5,5,5,5,5,5,4,4,5,5,5,5,5,5,5,4,5,5,5,5,5,4,4,5,4,4,5,5,5,1,5,5,1,5,5,5,5,1]
["France",null,null,null,null,null,0]
["Gabon",null,null,null,null,null,0]
["Gambia","Y",2,4,1,1,1,4,1,1,2,1,1,null,null,null,null,"x",4,2,2,1,1,1,1,1,1,2,1,1,1,1,2,1,4,1,1,1,5,1,1,2,2,1,1,4,4,1,1,1,1,1,2,2,2,1,1,4,1,1,4,2,2,1,4,4,4,1,1,1,2,1]
["Georgia","Y",5,5,2,1,2,1,1,5,1,2,5,null,"x",null,null,null,5,5,2,1,1,1,5,5,5,4,5,2,2,4,1,5,5,5,1,5,5,2,5,5,5,5,5,5,5,4,4,4,5,5,4,4,5,5,5,5,5,5,1,5,5,5,5,5,5,5,5,5,5,5]
["Germany","Y",3,4,2,2,2,null,4,4,4,4,4,null,null,null,"x",null,4,4,4,1,3,1,4,2,4,2,4,3,4,3,4,4,4,3,2,2,5,4,4,4,4,4,4,4,4,2,2,4,3,4,4,4,5,3,2,4,4,2,4,4,4,2,4,4,5,3,4,3,4,3]
["Ghana","Y",5,5,4,4,{"$f":"MAX(E72,F72)","v":4},4,4,null,4,4,4,null,"x",null,null,null,4,2,4,4,null,2,2,2,4,4,4,4,3,2,2,4,4,2,4,4,4,4,2,4,4,4,4,5,4,4,4,4,4,4,5,5,4,4,4,2,2,2,null,4,5,1,2,4,null,4,4,4,3,2]
["Greece","X",3,3,1,1,1,1,1,null,1,null,null,null,null,null,null,null,null,2,1,null,null,null,null,null,1,1,null,null,null,null,null,null,1,4,null,null,null,null,null,4,1,1,1,null,null,null,null,null,null,null,1,null,1,1,null,4,null,null,null,1,1,null,null,null,null,null,null,null,3]
["Grenada","Y",4,2,2,1,2,4,3,1,3,2,4,null,null,"x",null,null,2,4,4,1,4,1,2,3,4,2,3,2,2,2,4,2,2,2,2,1,4,2,2,2,2,2,2,3,3,2,2,2,4,4,4,2,3,2,3,null,4,3,2,3,3,2,2,2,4,2,2,2,2,2]
["Guatemala","Y",2,3,2,2,2,4,2,2,null,4,2,null,null,null,null,"x",4,4,2,1,2,1,4,1,2,4,2,2,4,2,4,2,3,2,2,4,3,4,2,4,4,2,2,4,4,2,2,2,4,4,4,4,4,2,2,4,2,2,2,4,4,4,2,4,4,2,4,2,2,2]
["Guinea",null,null,null,null,null,0]
["Guinea-Bissau",null,null,null,null,null,0]
["Guyana",null,null,null,null,null,0]
["Haiti","X",2,4,2,1,2,4,null,null,null,null,null,null,null,null,null,null,2,2,2,null,null,null,2,2,4,2,2,null,2,null,null,2,2,2,null,null,null,null,2,2,2,2,2,2,2,2,2,2,2,2,4,2,4,4,2,4,null,null,null,2,4,null,null,null,null,null,null,null,2]
["Honduras","Y",4,5,4,4,4,1,5,5,5,2,2,null,null,null,"x",null,5,5,4,1,1,1,1,4,4,4,4,5,4,4,3,4,5,4,2,4,5,2,4,3,5,5,5,5,5,4,4,5,5,5,4,4,4,4,5,5,4,3,3,4,4,1,4,5,4,5,4,4,4,4]
["Hungary",null,null,null,null,null,0]
["Iceland",null,null,null,null,null,0]
["India","X",4,4,2,null,2,null,null,null,null,null,null,null,null,null,null,null,4,4,4,null,null,null,null,null,2,2,2,null,2,null,null,null,4,4,null,null,null,null,2,4,4,2,4,2,2,2,2,2,2,2,2,2,2,2,2,4,null,null,null,4,4,null,null,null,null,null,null,null,2]
["Indonesia",null,null,null,null,null,0]
["Iran (Islamic Republic of)",null,null,null,null,null,0]
["Iraq","Y",4,4,3,1,3,1,5,3,5,4,4,null,"x",null,null,null,5,4,3,2,2,1,2,2,2,4,3,2,2,2,1,1,5,4,1,2,5,4,1,4,4,4,4,1,5,4,5,4,5,4,5,1,1,1,5,5,4,4,1,5,5,5,5,5,4,5,5,5,4,4]
["Ireland",null,null,null,null,null,0]
["Israel",null,null,null,null,null,0]
["Italy","Y",5,5,4,2,4,2,2,2,2,1,1,null,null,null,"x",null,5,5,5,1,4,1,1,2,4,4,2,5,2,4,3,5,5,3,4,5,5,1,5,4,4,4,4,5,5,4,4,1,5,2,1,4,5,5,5,5,4,4,4,5,1,4,5,1,5,2,2,2,4,2]
["Jamaica","Y",5,5,5,5,5,1,5,5,5,1,1,null,"x",null,null,null,5,5,5,2,1,1,5,5,5,5,5,2,5,5,1,4,5,5,5,2,5,5,5,5,5,5,5,5,5,5,5,5,5,5,5,5,5,5,5,5,1,1,1,5,5,1,1,1,5,1,1,1,1,1]
["Japan","Y",4,2,4,2,4,2,4,2,2,3,3,null,null,null,"x",null,5,4,5,2,4,1,4,5,2,4,4,4,4,3,3,4,4,4,2,2,5,3,5,4,4,4,4,4,4,4,4,4,3,2,1,2,4,4,2,4,4,4,4,2,4,2,2,4,4,4,4,4,4,4]
["Jordan","Y",4,4,2,2,2,null,null,null,null,null,null,null,null,"x",null,null,null,2,2,1,1,1,1,1,2,2,2,2,2,1,2,2,2,2,1,1,1,2,2,2,2,2,2,2,2,2,1,2,1,1,2,1,2,2,2,2,2,2,2,2,2,2,2,2,2,2,2,2,2,2]
["Kazakhstan",null,null,null,null,null,0]
["Kenya",null,null,null,null,null,0]
["Kiribati",null,null,null,null,null,0]
["Kuwait","Y",4,4,4,4,4,1,4,4,4,1,1,null,"x",null,null,null,4,4,4,2,4,1,4,4,4,4,4,4,4,5,5,4,5,4,4,2,5,2,5,4,5,5,5,4,4,4,4,2,2,2,4,4,4,4,4,4,4,2,4,4,4,1,4,2,4,5,4,4,4,2]
["Kyrgyzstan",null,null,null,null,null,0]
["Lao People's Democratic Republic","Y",2,4,1,1,1,4,3,1,4,1,1,null,null,"x",null,null,1,1,1,1,1,1,1,1,1,1,1,1,2,2,2,1,4,1,1,4,5,1,1,4,4,1,1,4,4,1,1,1,1,1,3,3,4,1,1,1,1,1,3,4,4,1,1,2,2,1,1,1,1,1]
["Latvia","X",3,3,3,3,3,null,3,null,3,2,2,null,null,null,null,null,null,4,3,null,null,null,null,null,3,3,null,null,null,null,null,null,3,4,null,null,null,null,null,4,3,3,3,null,null,null,null,null,null,null,1,null,4,3,null,4,null,null,null,4,4,null,null,null,null,null,null,null,3]
["Lebanon","Y",4,4,4,4,4,4,2,2,2,4,4,null,"x",null,null,null,5,4,1,2,1,1,3,null,4,4,3,3,4,2,1,1,4,3,1,4,5,4,4,4,4,4,4,5,5,4,3,4,5,5,4,2,4,4,4,4,4,3,3,5,5,2,4,3,3,4,4,5,4,1]
["Lesotho",null,null,null,null,null,0]
["Liberia","Y",4,2,4,2,4,4,4,null,4,4,4,null,null,null,"x",null,3,3,3,1,4,1,4,4,4,5,4,4,4,3,4,3,4,3,3,3,5,4,2,4,3,3,3,5,3,3,3,4,2,2,3,3,3,3,3,3,3,3,3,4,4,4,4,5,4,2,3,3,3,3]
["Libyan Arab Jamahiriya ","Y",2,2,3,2,3,3,3,3,null,4,2,null,null,null,"x",null,3,2,2,1,2,1,2,2,2,3,2,4,2,2,2,2,2,2,2,2,4,2,2,2,4,3,2,2,2,2,2,2,3,2,2,2,3,2,2,2,2,2,2,3,2,2,2,2,2,2,2,2,2,2]
["Liechtenstein","X",4,1,2,null,2,null,null,null,null,1,1,null,null,null,null,null,null,2,null,null,null,null,null,null,null,3,null,null,null,null,null,null,3,3,null,null,null,null,null,4]
["Lithuania",null,null,null,null,null,0]
["Luxembourg",null,null,null,null,null,0]
["Madagascar",null,null,null,null,null,0]
["Malawi",null,null,null,null,null,0]
["Malaysia",null,null,null,null,null,0]
["Maldives","Y",4,2,2,2,2,1,3,4,4,2,2,null,null,"x",null,null,5,2,2,1,4,1,4,2,4,4,4,3,4,4,4,4,4,4,4,4,4,4,2,4,4,4,4,5,5,5,5,4,4,4,2,4,4,4,4,5,4,4,4,4,4,4,4,4,4,2,2,4,4,2]
["Mali",null,null,null,null,null,0]
["Malta",null,null,null,null,null,0]
["Marshall Islands",null,null,null,null,null,0]
["Mauritania","Y",2,4,2,2,2,3,4,4,4,2,2,null,null,null,"x",null,5,2,2,5,4,1,2,2,2,5,2,4,4,4,2,2,4,4,null,1,5,1,4,3,2,2,2,4,4,4,4,2,5,2,1,2,4,4,5,2,2,2,1,5,1,1,2,1,5,2,null,2,2,2]
["Mauritius",null,null,null,null,null,0]
["Mexico","X",4,4,2,1,2,1,1,null,1,null,null,null,null,null,"x",null,2,2,2,null,null,null,2,2,2,2,2,null,null,null,null,2,2,2,null,null,null,null,2,2,2,2,2,2,2,2,2,2,2,2,2,2,2,2,2,2,null,null,null,4,4]
["Micronesia (Federated States of)","X",2,2,2,1,2,1,1,null,1,null,1,null,null,null,"x",null,2,2,2,null,null,null,null,2,2,2,2,null,2,null,null,null,4,2,null,null,null,null,4,2,2,2,2,2,2,2,2,null,2,2,2,2,2,2,2,4,null,null,4,2,2,2,2,2,null,null,null,null,2]
["Monaco","Y",5,4,4,4,4,1,4,3,1,2,2,null,null,null,"x",null,5,4,4,4,3,2,1,4,4,4,4,4,4,3,4,4,4,4,4,4,5,4,4,5,5,5,5,5,4,4,4,2,4,4,4,4,4,4,4,4,3,4,4,5,4,4,4,5,4,5,4,4,3,4]
["Mongolia",null,null,null,null,null,0]
["Montenegro",null,null,null,null,null,0]
["Morocco",null,null,null,null,null,0]
["Mozambique",null,null,null,null,null,0]
["Myanmar",null,null,null,null,null,0]
["Namibia","X",4,4,2,null,2,null,null,null,null,null,null,null,null,null,null,null,2,2,2,null,null,null,2,2,2,2,2,null,2,null,null,2,2,2,null,null,null,null,2,4,4,null,4,2,2,2,2,2,4,2,4,2,4,2,4,4,null,null,null,4,4,null,null,null,null,null,null,null,2]
["Nauru","X",4,4,2,1,2,1,1,null,1,null,null,null,null,null,"x",null,2,2,2,null,null,null,null,2,4,2,2,null,2,null,null,null,2,2,null,null,null,null,2,2,2,2,2,2,2,2,2,2,2,2,4,2,2,2,2,4,null,null,null,2,2,2,2,2,2,null,null,null,2]
["Nepal",null,null,null,null,null,0]
["Netherlands","Y",4,2,2,2,2,1,2,4,3,1,1,null,null,null,null,null,4,4,4,2,2,1,4,4,4,2,2,2,2,4,4,2,4,2,2,4,4,4,4,2,2,2,2,5,2,2,2,2,2,4,4,2,2,2,2,2,2,2,4,4,2,2,2,4,2,2,2,2,4,2]
["New Zealand",null,null,null,null,null,0]
["Nicaragua",null,null,null,null,null,0]
["Niger","Y",5,5,5,1,5,1,1,4,3,1,1,null,"x",null,null,null,5,5,5,1,5,1,5,5,5,5,5,5,5,4,5,5,5,5,1,5,5,5,5,5,5,5,5,5,5,5,5,5,5,5,5,5,5,5,5,5,5,5,1,5,5,1,1,5,5,5,5,5,5,1]
["Nigeria","Y",2,5,3,2,3,1,1,1,5,1,4,null,"x",null,null,null,4,5,4,1,2,1,5,2,5,2,5,5,4,5,4,2,5,4,null,5,5,4,4,5,5,5,5,5,4,4,4,2,2,2,5,5,5,2,5,5,4,4,1,5,5,1,5,1,5,1,1,2,2,2]
["Norway","X",4,2,2,null,2,null,4,null,null,null,null,null,null,null,null,null,2,2,2,null,null,null,2,2,2,2,2,null,2,null,null,null,2,2,null,null,null,null,2,2,2,2,2,2,2,2,2,null,2,2,4,2,4,4,2,4,null,null,null,4,4,null,null,null,null,null,null,null,2]
["Oman",null,null,null,null,null,0]
["Pakistan",null,null,null,null,null,0]
["Palau","Y",5,5,5,1,5,4,5,null,4,4,4,null,"x",null,null,null,5,5,4,1,1,1,1,4,4,4,4,4,5,5,4,5,5,4,1,5,5,5,5,1,5,5,5,5,5,5,1,4,4,5,5,4,5,5,5,5,5,5,1,5,5,1,1,5,4,1,1,1,2,1]
["Panama",null,null,null,null,null,{"$f":"MAX(E136,F136)","v":0}]
["Papua New Guinea",null,null,null,null,null,0]
["Paraguay",null,null,null,null,null,0]
["Peru","X",4,4,null,null,0,null,4,null,4,null,null,null,null,null,null,null,null,4,4,null,null,null,null,null,4,4,null,null,null,null,null,null,null,null,null,null,null,null,null,null,null,null,null,null,null,null,null,null,null,null,4,null,4,null,null,4]
["Philippines",null,null,null,null,null,0]
["Poland","X",2,2,null,null,0,null,null,null,null,null,null,null,null,null,null,null,null,4,4,null,null,null,null,null,4,null,null,null,null,null,null,null,4,4,null,null,null,null,null,null,null,null,null,null,null,null,null,null,null,null,4,null,4,4,null,null,null,null,null,4,4,null,null,null,null,null,null,null,2]
["Portugal","X",2,4,3,1,3,1,1,null,3,2,2,null,null,null,null,null,null,4,1,null,null,null,null,null,3,3,null,null,null,null,null,null,3,4,null,null,null,null,null,4,1,1,1,null,null,null,null,null,null,null,3,null,3,1,null,4,null,null,null,3,3,null,null,null,null,null,null,null,3]
["Qatar","Y",5,5,5,4,5,1,1,4,4,4,4,null,null,null,"x",null,4,4,4,2,4,2,3,4,5,4,4,4,4,4,4,5,4,4,4,4,5,4,4,5,5,5,5,5,4,4,4,2,5,4,4,4,5,4,4,4,4,4,4,5,5,5,4,4,4,4,4,4,4,2]
["Republic of Korea",null,null,null,null,null,0]
["Republic of Moldova","Y",1,4,4,3,4,1,3,4,4,1,1,null,"x",null,null,"x",4,4,null,2,null,null,null,4,3,4,2,2,2,4,2,4,4,5,4,2,4,4,2,3,4,null,3,4,5,4,2,2,null,null,3,2,2,3,2,3,null,null,null,4,3,1,1,4,4,null,4,2,2,1]
["Romania",null,null,null,null,null,0]
["Russian Federation","Y",5,5,4,4,4,4,4,4,null,5,5,null,null,null,null,null,5,5,5,1,1,1,5,5,5,5,5,5,5,5,5,5,5,5,5,5,5,5,5,5,5,5,5,5,5,5,5,5,5,5,5,5,5,5,5,5,4,3,3,5,5,2,5,5,5,5,5,5,5,5]
["Rwanda",null,null,null,null,null,0]
["Saint Kitts and Nevis",null,null,null,null,null,0]
["Saint Lucia","Y",2,5,2,2,2,1,1,1,1,4,4,null,null,null,null,null,4,2,4,2,2,1,3,2,3,2,2,4,2,3,2,2,2,2,2,3,2,1,2,2,2,2,2,4,2,2,2,1,3,2,1,1,1,2,2,2,1,2,2,2,1,1,2,1,1,2,2,2,4,1]
["Saint Vincent and the Grenadines","X",4,3,2,1,2,1,1,null,3,null,null,null,null,null,null,null,null,4,null,null,null,null,null,null,3,3,null,null,null,null,null,null,3,4,null,null,null,null,null,1,3,1,1,null,null,null,null,null,null,null,3,null,4,1,null,3,null,null,null,4,4,null,null,null,null,null,null,null,3]
["Samoa",null,null,null,null,null,0]
["San Marino",null,null,null,null,null,0]
["Sao Tome and Principe",null,null,null,null,null,0]
["Saudi Arabia",null,null,null,null,null,0]
["Senegal",null,null,null,null,null,0]
["Serbia",null,null,null,null,null,0]
["Seychelles","Y",4,4,4,1,4,4,4,2,2,4,4,null,null,null,null,null,4,2,4,1,1,1,4,4,2,4,2,2,2,5,2,4,2,2,4,4,4,4,4,2,2,2,2,4,2,2,2,2,2,2,4,2,4,2,4,4,2,4,2,4,2,2,2,4,4,2,2,2,4,2]
["Sierra Leone","Y",4,4,2,4,4,1,3,4,4,1,1,null,null,null,"x",null,4,4,2,4,3,1,4,2,4,4,4,3,3,4,4,2,4,4,2,4,3,1,2,2,4,4,2,4,4,4,3,2,3,4,1,2,2,4,2,3,4,3,1,2,1,1,4,1,null,2,2,3,2,2]
["Singapore","Y",2,2,2,2,2,2,2,2,null,3,2,null,null,null,null,null,2,2,2,1,1,1,1,1,2,2,3,2,3,2,1,2,2,2,2,2,3,2,2,2,3,2,2,2,2,2,2,2,2,2,2,2,2,2,2,2,2,2,2,2,3,2,2,2,2,2,2,2,2,2]
["Slovakia",null,null,null,null,null,0]
["Slovenia",null,null,null,null,null,0]
["Solomon Islands",null,null,null,null,null,0]
["Somalia",null,null,null,null,null,0]
["South Africa",null,null,null,null,null,0]
["Spain","X",4,4,4,1,4,null,null,null,null,null,4,null,null,null,null,null,4,4,4,null,null,null,4,4,4,4,4,null,4,null,null,4,4,null,null,null,4,4,4,4,4,4,4,2,2,2,2,2,4,4,4,4,4,4,4,4,null,null,4,4,4,4,4,4,5,null,null,null,3]
["Sri Lanka","Y",4,5,5,5,5,null,null,null,null,4,5,null,null,null,null,"x",5,5,5,5,5,1,5,5,5,5,5,5,5,5,5,5,5,5,5,5,5,5,5,5,5,5,5,5,5,5,5,5,5,5,5,5,5,5,5,5,5,5,1,5,5,5,1,5,5,5,5,5,1,5]
["Sudan",null,null,null,null,null,0]
["Suriname",null,null,null,null,null,0]
["Swaziland",null,null,null,null,null,0]
["Sweden","X",2,4,2,1,2,null,null,null,null,null,null,null,null,null,"x",null,4,2,4,1,null,null,null,2,2,2,2,null,2,2,2,2,2,2,null,null,null,null,2,2,2,2,2,2,2,2,2,2,2,2,4,2,4,2,2,4,null,null,4,4,4,2,4,4,5,null,null,null,2]
["Switzerland","Y",5,5,5,1,5,2,3,2,2,4,1,null,"x",null,null,null,4,3,4,1,1,1,1,"1&5",3,1,4,4,4,3,1,2,5,2,null,1,5,5,5,5,5,5,5,5,4,4,4,4,2,3,5,4,4,2,2,4,2,4,"1&4",5,5,1,4,4,5,1,2,3,2,1]
["Syrian Arab Republic","Y",5,5,2,1,2,1,1,1,1,4,5,null,"x",null,null,null,4,5,4,1,1,1,1,5,4,4,4,4,4,4,2,2,5,1,5,1,5,5,5,5,5,5,5,5,5,4,5,4,5,5,2,2,2,4,4,4,2,4,1,4,5,1,1,5,4,4,2,4,1,1]
["Tajikistan","Y",4,4,3,4,4,3,4,4,4,2,4,null,null,null,"x",null,5,null,4,1,4,1,4,4,4,4,4,3,3,2,3,4,4,4,4,4,null,2,4,4,3,3,2,4,3,4,2,2,3,4,4,4,4,2,1,4,4,2,2,4,4,1,4,4,null,null,null,5,2,4]
["Thailand","Y",4,4,1,1,1,5,5,null,null,1,2,null,null,"x",null,null,2,3,1,null,1,1,1,1,1,2,1,2,1,1,1,1,4,4,1,4,1,4,2,2,1,1,1,4,4,1,1,1,2,1,2,4,1,1,1,4,1,1,1,4,1,1,1,4,2,4,1,1,4,1]
["The former Yugoslav Republic of Macedonia ","X",4,4,4,null,4,null,null,null,null,null,4,null,null,null,"x",null,null,4,4,null,null,null,null,4,4,4,null,null,null,null,null,null,null,4,null,null,null,null,4,4,4,4,4,4,2,2,2,2,4,4,4,4,4,4,4,4,4,null,4,4,4,3,4,4,5]
["Timor-Leste","X",4,4,2,null,2,null,4,null,4,null,null,null,null,null,null,null,4,4,4,null,null,null,4,4,4,null,null,null,null,null,null,null,null,null,null,null,null,null,null,null,null,null,null,null,null,null,null,null,null,null,4,null,4,4,null,4,null,null,null,3,3,null,null,null,null,null,null,null,3]
["Togo",null,null,null,null,null,0]
["Tonga","Y",3,3,3,2,3,3,3,3,null,3,3,null,null,"x",null,null,2,2,2,1,2,1,3,2,3,4,2,2,2,2,4,2,2,2,2,2,3,3,2,2,2,2,2,4,4,2,2,2,2,2,2,2,3,2,2,2,2,2,3,2,2,2,3,3,4,2,2,2,4,2]
["Trinidad and Tobago",null,null,null,null,null,0]
["Tunisia",null,null,null,null,null,0]
["Turkey","Y",5,5,5,5,5,1,1,1,1,1,1,null,null,null,"x",null,5,5,5,3,2,1,5,4,5,5,4,5,4,4,5,4,5,4,5,5,4,2,5,5,5,5,5,5,5,4,4,4,4,4,1,4,4,4,4,4,4,3,4,4,5,4,4,3,4,5,5,4,4,5]
["Turkmenistan","Y",5,4,3,3,3,2,2,2,null,1,1,null,null,null,"x",null,5,3,3,2,1,1,3,3,3,3,3,3,null,5,3,2,4,3,4,3,4,3,4,5,4,3,3,4,2,2,3,2,null,null,null,null,null,null,null,null,null,null,null,5,4,4,3,4,4,5,5,5]
["Tuvalu","Y",4,4,1,3,3,5,1,5,5,5,5,null,null,null,null,null,4,2,2,4,3,1,1,2,1,4,1,4,4,4,4,4,3,3,3,3,4,4,4,4,4,4,4,4,4,2,2,2,2,2,1,4,2,2,4,4,1,4,1,2,2,2,2,4,2,4,4,4,4,4]
["Uganda",null,null,null,null,null,0]
["Ukraine","Y",4,4,4,2,4,4,3,4,null,4,2,null,null,null,"x",null,5,5,4,1,4,1,2,4,4,2,4,5,4,4,4,5,5,2,2,2,4,4,2,2,2,2,2,5,5,2,2,2,4,4,4,4,4,2,2,4,2,2,4,4,4,4,4,2,2,4,4,4,4,2]
["United Arab Emirates",null,null,null,null,null,0]
["United Kingdom of Great Britain and Northern Ireland",null,null,null,null,null,0]
["United Republic of Tanzania",null,null,null,null,null,0]
["United States of America","Y",4,5,1,4,4,null,4,4,4,1,1,null,"x",null,null,"x",5,5,5,5,5,5,5,5,5,5,5,4,5,5,4,5,5,5,5,4,5,5,"4,5",5,5,5,5,5,5,5,5,5,5,5,5,5,5,5,5,5,5,5,5,5,5,5,5,5,5,1,5,5,5,5]
["Uruguay","X",2,4,null,null,0,null,null,null,null,null,null,null,null,null,null,null,null,4,4,null,null,null,null,null,4,null,null,null,null,null,null,null,4,4,null,null,null,null,null,null,null,null,null,null,null,null,null,null,null,null,4,null,4,null,null,null,null,null,null,null,null,null,null,null,null,null,null,null,4]
["Uzbekistan","Y",2,3,1,1,1,2,1,1,3,1,2,null,null,"x",null,null,4,2,4,1,1,1,2,2,3,3,2,2,3,2,3,2,4,1,2,2,2,2,3,4,4,2,2,4,4,2,2,2,3,3,4,4,2,1,2,2,3,2,1,4,4,2,4,2,4,1,1,1,1,1]
["Vanuatu",null,null,null,null,null,0]
["Venezuela (Bolivarian Republic of)","X",4,4,2,null,2,4,4,null,4,null,null,null,null,null,null,null,2,2,2,null,null,null,2,2,2,2,2,null,null,null,null,2,2,2,null,null,null,null,2,4,2,2,2,2,2,2,2,2,2,2,2,2,2,2,2,2,null,null,null,2,2,2,null,null,null,null,null,null,2]
["Viet Nam","Y",4,4,4,4,4,4,4,4,4,4,4,null,null,null,"x",null,4,2,4,2,2,1,2,4,4,4,3,4,4,4,4,2,4,3,2,2,4,4,2,2,2,2,2,4,4,2,2,2,2,3,4,4,4,4,3,4,2,2,2,2,4,2,2,2,4,4,2,2,3,3]
["Yemen",null,null,null,null,null,0]
["Zambia","X",4,4,2,1,2,4,4,null,4,null,null,null,null,null,"x",null,4,4,4,null,null,null,4,null,4,2,2,null,2,null,null,null,4,4,4,null,null,null,4,4,4,4,4,2,2,2,2,2,2,4,2,2,4,2,2,4,2,2,4,4,2,2,4,null,5,null,null,null,2]
["Zimbabwe","X",4,4,4,1,4,null,null,null,null,null,null,null,null,null,null,null,4,null,null,1,null,null,null,null,2,null,2,null,null,null,null,null,null,null,null,null,null,null,null,null,null,null,null,null,null,null,null,null,null,null,4,null,null,null,null,4,null,null,4,4,4,null,4,null,5]
[]
[]
[]
[null,"No.","Percentage"]
["Total",{"$f":"COUNTIF(B7:B198,\"Y\")+COUNTIF(B7:B198,\"X\")","v":102},{"$f":"B203/192","v":0.53125},null,{"$f":"COUNTIFS($B$7:$B$198,\"*\",$E$7:$E$198,\">0\")","v":97}]
[]
["LDC",{"$f":"COUNTIF(Indicator_data!$AL$3:$AL$188,1)","v":28},{"$f":"B205/(COUNTIF(Indicator_data!$H$3:$H$188,1))","v":0.62222222222222223}]
["Developing",{"$f":"COUNTIF(Indicator_data!$AL$3:$AL$188,2)","v":66},{"$f":"B206/(COUNTIF(Indicator_data!$H$3:$H$188,2))","v":0.71739130434782605}]
["Developed",{"$f":"COUNTIF(Indicator_data!$AL$3:$AL$188,3)","v":36},{"$f":"B207/(COUNTIF(Indicator_data!$H$3:$H$188,3))","v":0.73469387755102045}]
[]
["Low HDI",{"$f":"COUNTIFS($B$7:$B$198,\"Y\",ID_HDIG,1)+COUNTIFS($B$7:$B$198,\"X\",ID_HDIG,1)","v":15}]
["Medium HDI",{"$f":"COUNTIFS($B$7:$B$198,\"Y\",ID_HDIG,2)+COUNTIFS($B$7:$B$198,\"X\",ID_HDIG,2)","v":30}]
["High HDI",{"$f":"COUNTIFS($B$7:$B$198,\"Y\",ID_HDIG,3)+COUNTIFS($B$7:$B$198,\"X\",ID_HDIG,3)","v":28}]
["Very High HDI",{"$f":"COUNTIFS($B$7:$B$198,\"Y\",ID_HDIG,4)+COUNTIFS($B$7:$B$198,\"X\",ID_HDIG,4)","v":26}]
["Total check",{"$f":"SUM(B209:B212)","v":99}]
[]
["Africa",{"$f":"COUNTIF(Indicator_data!$AM$3:$AM$188,1)","v":38},{"$f":"B215/(COUNTIF(Indicator_data!$F$3:$F$188,1))","v":0.74509803921568629}]
["Americas",{"$f":"COUNTIF(Indicator_data!$AM$3:$AM$188,2)","v":23},{"$f":"B216/(COUNTIF(Indicator_data!$F$3:$F$188,2))","v":0.67647058823529416}]
["Asia",{"$f":"COUNTIF(Indicator_data!$AM$3:$AM$188,3)","v":30},{"$f":"B217/(COUNTIF(Indicator_data!$F$3:$F$188,3))","v":0.66666666666666663}]
["Europe",{"$f":"COUNTIF(Indicator_data!$AM$3:$AM$188,4)","v":32},{"$f":"B218/(COUNTIF(Indicator_data!$F$3:$F$188,4))","v":0.7441860465116279}]
["Oceania",{"$f":"COUNTIF(Indicator_data!$AM$3:$AM$188,5)","v":7},{"$f":"B219/(COUNTIF(Indicator_data!$F$3:$F$188,5))","v":0.53846153846153844}]
[]
["Total % responses as 2 ",null,null,null,{"$f":"(COUNTIF(E$7:E$198,2))/$B$203","v":0.38235294117647056},{"$f":"(COUNTIF(F$7:F$198,2))/$B$203","v":0.18627450980392157},{"$f":"(COUNTIF(G$7:G$198,1))/$B$203","v":7.8431372549019607E-2}]
["Total % responses as 3",null,null,null,{"$f":"(COUNTIF(E$7:E$198,3))/$B$203","v":0.11764705882352941},{"$f":"(COUNTIF(F$7:F$198,3))/$B$203","v":5.8823529411764705E-2},{"$f":"(COUNTIF(G$7:G$198,2)+COUNTIF(G$7:G$198,3))/$B$203","v":0.5}]
["Total % responses as 4 or 5",null,null,null,{"$f":"(COUNTIF(E$7:E$198,4)+COUNTIF(E$7:E$198,5))/$B$203","v":0.34313725490196079},{"$f":"(COUNTIF(F$7:F$198,4)+COUNTIF(F$7:F$198,5))/$B$203","v":0.22549019607843138},{"$f":"(COUNTIF(G$7:G$198,4)+COUNTIF(G$7:G$198,5))/$B$203","v":0.37254901960784315}]

{"sheet":"Responses","index":25,"n_rows":198,"n_cols":28,"rows_kept":198,"cut":false,"hidden":true,"merged":[]}
["Responses entered into DB",null,null,null,null,"Responses received (Level 1as of 4/8/11, Level 2 as of 9/8/11)"]
[null,null,null,null,null,"UN-Member country","Order of priority","Follow-up lead","Responsible NO","Submitted questionnaire","Need for revision","Finalized submission","Method of submission","Follow up","Entered online","Extended deadline","Submitted Level 2 report","Follow-up on Level 2 report status","Total L1 respondents (1=no submission;2=need for revision; 3=finalized)","Notes","Total L2 respondents (1=not approached;2=no submission;3=submission expected; 4=submission received."]
[null,"No.","% responded within each category","% of total",null,"Afghanistan",null,"SIWI",null,null,null,null,null,null,null,null,null,null,{"$f":"IF(SUM(K3:L3)<1,1,CONCATENATE(K3,L3))","v":1},null,1,null,"received","in his July report"]
["Total",{"$f":"SUM('2011 Survey responses'!GT3:GT194)","v":133},{"$f":"B4/192","v":0.69270833333333337},null,null,"Albania",2,"GWP MED","John","14-june",null,3,"email, initial vers. 19 May",null,"x",null,40774,"Unclear, Anthi follows-up",{"$f":"IF(SUM(K4:L4)<1,1,CONCATENATE(K4,L4))","v":"3"},null,4,"Antigua and Barbuda","Yes","Yes"]
[null,null,null,null,null,"Algeria*",0,"GWP MED","John","2015-06-10",null,3,"fax",null,"x",null,null,null,"3","* Several responses submitted, need to define official submission",1,"Armenia","Yes","Yes"]
["Low HDI",{"$f":"COUNTIFS(ID_HDIG,1,'2011 Survey responses'!$GT$3:$GT$194,\">0\")","v":32},{"$f":"B6/COUNTIF(ID_HDIG,1)","v":0.71111111111111114},{"$f":"B6/$B$4","v":0.24060150375939848},null,"Andorra",0,"SIWI",null,"2015-04-16",null,3,"online",null,"x",null,null,null,"3",null,1,"Bangladesh","Yes","Yes"]
["Medium HDI",{"$f":"COUNTIFS(ID_HDIG,2,'2011 Survey responses'!$GT$3:$GT$194,\">0\")","v":31},{"$f":"B7/COUNTIF(ID_HDIG,2)","v":0.65957446808510634},{"$f":"B7/$B$4","v":0.23308270676691728},null,"Angola",0,"GWP SAF","Alex","2015-04-16",null,3,"email",null,"x",null,null,null,"3",null,1,"Brazil","Yes","Yes"]
["High HDI",{"$f":"COUNTIFS(ID_HDIG,3,'2011 Survey responses'!$GT$3:$GT$194,\">0\")","v":36},{"$f":"B8/COUNTIF(ID_HDIG,3)","v":0.75},0.27067669172932329,null,"Antigua and Barbuda",0,"GWP CARIB","Alex","2015-04-16",null,3,"email",null,"x",null,"29-june, PT accepted",null,"3",null,4,"Cameroon","Yes","Yes"]
["Very High HDI",{"$f":"COUNTIFS(ID_HDIG,4,'2011 Survey responses'!$GT$3:$GT$194,\">0\")","v":34},{"$f":"B9/COUNTIF(ID_HDIG,4)","v":0.72340425531914898},0.25563909774436089,null,"Argentina",null,"GWP SAM","Gabriela",null,null,null,null,null,null,null,null,null,1,null,1,"Cape Verde","Yes (French version)","Yes"]
[null,null,null,null,null,"Armenia",3,"GWP CACENA","Danka","2015-04-21",2,null,"email, revisions 18-may",null,"x",null,"19-july",null,"2",null,4,"China","Yes","Yes"]
["UNCSD regions",null,null,null,null,"Australia",0,"WWAP",null,"2015-04-22",null,3,"email",null,"x",null,"GJL: july",null,"3",null,4,"Costa Rica","Yes","Yes"]
["Latin America & Caribbean",{"$f":"COUNTIFS(ID_REG,1,'2011 Survey responses'!GT$3:GT$194,1)","v":22},{"$f":"B12/COUNTIF(ID_REG,1)","v":0.66666666666666663},{"$f":"B12/$B$4","v":0.16541353383458646},null,"Austria",null,"SIWI",null,null,null,null,null,null,null,null,null,null,1,null,1,"Guatemala","Yes","Yes"]
["Asia & Pacific",{"$f":"COUNTIFS(ID_REG,2,'2011 Survey responses'!GT$3:GT$194,1)","v":28},{"$f":"B13/COUNTIF(ID_REG,2)","v":0.5957446808510638},0.21052631578947367,null,"Azerbaijan",0,"GWP CACENA","Danka","2015-04-23",null,3,"email",null,"x",null,null,null,"3",null,1,"Jamaica","Yes","Yes"]
["Africa",{"$f":"COUNTIFS(ID_REG,3,'2011 Survey responses'!GT$3:GT$194,1)","v":40},{"$f":"B14/COUNTIF(ID_REG,3)","v":0.75471698113207553},0.3007518796992481,null,"Bahamas",0,"GWP CARIB","Alex","2015-04-17",null,3,"online",null,"x",null,null,null,"3",null,1,"Mozambique","Yes","Yes"]
["Eastern European States",{"$f":"COUNTIFS(ID_REG,4,'2011 Survey responses'!GT$3:GT$194,1)","v":19},{"$f":"B15/COUNTIF(ID_REG,4)","v":0.70370370370370372},0.14285714285714285,null,"Bahrain",null,"SIWI",null,null,null,null,null,null,null,null,null,null,1,null,1,"Namibia","Yes","Yes"]
["Western European and Others",{"$f":"COUNTIFS(ID_REG,5,'2011 Survey responses'!GT$3:GT$194,1)","v":24},{"$f":"B16/COUNTIF(ID_REG,5)","v":0.75},0.18045112781954886,null,"Bangladesh",0,"GWP SAS","Mercy","2015-04-26",null,3,"email",null,"x",null,"20-june, PT accepted",null,"3",null,4,"Pakistan","Yes","Yes"]
[null,null,null,null,null,"Barbados",null,"GWP CARIB","Alex","2015-04-22",2,null,"email",null,"x",null,null,null,"2",null,1,"Sri Lanka","Yes","Yes"]
["Level 2",null,null,null,null,"Belarus",null,"SIWI",null,null,null,null,null,null,null,null,null,null,1,null,1,"Tanzania","Yes","Yes"]
["Low HDI",{"$f":"COUNTIFS(ID_HDIG,1,ID_L2,4)","v":8},null,null,null,"Belgium",null,"SIWI",null,"30-june",null,3,"email",null,"x",null,null,null,"3",null,1,"Uganda","Yes","Yes"]
["Medium HDI",{"$f":"COUNTIFS(ID_HDIG,2,ID_L2,4)","v":10},null,null,null,"Belize",0,"GWP CAM","Gabriela","2015-04-20",null,3,"online",null,"x",null,null,null,"3",null,1,"Ghana","Yes","No"]
["High HDI",{"$f":"COUNTIFS(ID_HDIG,3,ID_L2,4)","v":9},null,null,null,"Benin",1,"GWP WAF","Aurelie","29-june",2,null,"email",null,"x",null,40771,null,"2",null,4,"Uruguay","Yes","No"]
["Very High HDI",{"$f":"COUNTIFS(ID_HDIG,4,ID_L2,4)","v":3},null,null,null,"Bhutan",null,"GWP SAS","Mercy","2015-04-26",2,null,"email",null,"x",null,null,null,"2",null,1,"Uzbekistan","Yes","No"]
[null,null,null,null,null,"Bolivia (Plurinational State of)",null,"GWP SAM","Gabriela",null,null,null,null,null,null,null,null,null,1,null,1,"Benin","Yes (French version)","No"]
["UNCSD regions",null,null,null,null,"Bosnia and Herzegovina",null,"SIWI",null,"5-may",2,null,"email",null,"x",null,null,null,"2",null,1,"Estonia",null,null,"Expected soon"]
["Latin America & Caribbean",{"$f":"COUNTIFS(ID_REG,1,ID_L2,4)","v":7},null,null,null,"Botswana",null,"GWP SAF","Alex","30-june",2,null,"email",null,"x",null,null,null,"2",null,1,"Mexico",null,null,"Expected soon"]
["Asia & Pacific",{"$f":"COUNTIFS(ID_REG,2,ID_L2,4)","v":7},null,null,null,"Brazil",0,"GWP SAM","Gabriela","2015-04-26",null,3,"email",null,"x",null,"8-july, PT accepted",null,"3",null,4,"Rwanda",null,null,"Expected soon"]
["Africa",{"$f":"COUNTIFS(ID_REG,3,ID_L2,4)","v":10},null,null,null,"Brunei Darussalam",null,"SIWI",null,null,null,null,null,null,null,null,null,null,1,null,1,"Samoa","Yes (draft version)","No"]
["Eastern European States",{"$f":"COUNTIFS(ID_REG,4,ID_L2,4)","v":4},null,null,null,"Bulgaria",0,"GWP CEE","Danka","3-may",null,3,"email",null,"x",null,null,null,"3",null,1,"Albania",null,null,null,"Unclear"]
["Western European and Others",{"$f":"COUNTIFS(ID_REG,5,ID_L2,4)","v":2},null,null,null,"Burkina Faso",0,"GWP WAF","Aurelie","2015-04-17",2,null,"email",null,"x",null,null,null,"2",null,1,"Cambodia","Yes","No"]
[null,null,null,null,null,"Burundi*",0,"GWP EAF","Alex","2015-04-17",null,3,"online",null,"x",null,null,null,"3",null,1,"Jordan",null,null,null,"Unclear"]
[null,null,null,null,null,"Cambodia",3,"GWP SEA","Mercy","2-july",null,3,"email",null,"x",null,"2015-08-06",null,"3",null,4,"Tunisia","Yes","No"]
[null,null,null,null,null,"Cameroon",2,"GWP CAF","Aurelie","16-may",2,null,"email",null,"x",null,"25-june",null,"2",null,4,"Australia","Yes","No"]
[null,null,null,null,null,"Canada",null,"SIWI",null,"20-july",2,null,"email",null,"x",null,null,null,"2",null,1,"Spain","Yes","No"]
[null,null,null,null,null,"Cape Verde",0,"GWP WAF","Aurelie","2015-04-19",null,3,"email",null,"x",null,40773,null,"3",null,4,"Kazakhstan",null,null,null,null,null,"Not expected"]
[null,null,null,null,null,"Central African Republic",null,"GWP CAF","Aurelie",null,null,null,null,null,null,null,null,null,1,null,1,"Phillippines",null,null,null,null,null,"Not expected"]
[null,null,null,null,null,"Chad",null,"GWP CAF","Aurelie","2015-04-19",null,3,"email",null,"x",null,null,null,"3",null,1,"Republic of Korea",null,null,null,null,null,"Not expected"]
[null,null,null,null,null,"Chile",null,"GWP SAM","Gabriela","2015-08-05",null,3,"online",null,"x",null,null,null,"3",null,1,"Vietnam",null,null,null,null,null,"Not expected"]
[null,null,null,null,null,"China",2,"GWP China","John","17-may",null,3,"email",null,"x",null,"22-july",null,"3",null,4]
[null,null,null,null,null,"Colombia",null,"GWP SAM","Gabriela",null,null,null,null,null,null,null,null,null,1,null,1]
[null,null,null,null,null,"Comoros",null,"SIWI",null,null,null,null,null,null,null,null,null,null,1,null,1]
[null,null,null,null,null,"Congo",null,"GWP CAF","Aurelie","30-may",null,3,"email, French version",null,"x",null,null,null,"3",null,1]
[null,null,null,null,null,"Costa Rica",2,"GWP CAM","Gabriela","6-may",2,null,"email",null,"x",null,"7-june, PT accepted",null,"2",null,4]
[null,null,null,null,null,"Côte D'Ivoire",null,"GWP WAF","Aurelie","29-june",null,3,"email",null,"x",null,null,null,"3",null,1]
[null,null,null,null,null,"Croatia",null,"SIWI",null,null,null,null,null,null,null,null,null,null,1,null,1]
[null,null,null,null,null,"Cuba",null,"SIWI","Alex","16-may",null,3,"email",null,"x",null,null,null,"3",null,1]
[null,null,null,null,null,"Cyprus",0,"GWP MED","John","2015-04-21",null,3,"online",null,"x",null,null,null,"3",null,1]
[null,null,null,null,null,"Czech Republic",null,"GWP CEE","Danka","27-may",null,3,"email, revised May 31",null,"x",null,null,null,"3",null,1]
[null,null,null,null,null,"Democratic People's Republic of Korea",null,"SIWI",null,"5-may",2,null,"email",null,"x",null,null,null,"2",null,1]
[null,null,null,null,null,"Democratic Republic of the Congo",null,"GWP SAF","Alex",null,null,null,null,null,null,null,null,null,1,null,1]
[null,null,null,null,null,"Denmark",null,"SIWI",null,"8-june",2,null,"email",null,"x",null,null,null,"2",null,1]
[null,null,null,null,null,"Djibouti",null,"GWP EAF","Alex",null,null,null,null,null,null,null,null,null,1,null,1]
[null,null,null,null,null,"Dominica*",0,"GWP CARIB","Alex","2015-04-20",null,3,"online, 2 responses",null,"x",null,null,null,"3",null,1]
[null,null,null,null,null,"Dominican Republic",null,"GWP CARIB","Alex",null,null,null,"No respondent online.",null,null,null,null,null,1,null,1]
[null,null,null,null,null,"Ecuador",null,"GWP SAM","Gabriela","30-june",null,3,"email",null,"x",null,null,null,"3",null,1]
[null,null,null,null,null,"Egypt",0,"GWP MED","John","2015-04-12",null,3,"online",null,"x",null,null,null,"3",null,1]
[null,null,null,null,null,"El Salvador",null,"GWP CAM","Gabriela","1-july",2,null,"email, online 1 july",null,"x",null,null,null,"2",null,1]
[null,null,null,null,null,"Equatorial Guinea",null,"GWP CAF","Aurelie",null,null,null,null,null,null,null,null,null,1,null,1]
[null,null,null,null,null,"Eritrea",null,"GWP EAF","Alex",null,null,null,null,null,null,null,null,null,1,null,1]
[null,null,null,null,null,"Estonia",0,"GWP CEE","Danka","2015-04-22",null,3,"email",null,"x",null,40772,null,"3",null,4]
[null,null,null,null,null,"Ethiopia",null,"GWP EAF","Alex","5-july",2,null,"email",null,"x",null,null,null,"2",null,1]
[null,null,null,null,null,"Fiji",null,"SIWI",null,"2015-04-20",2,null,"email",null,"x",null,null,null,"2",null,1]
[null,null,null,null,null,"Finland",null,"SIWI",null,"2015-04-21",2,null,"email",null,"x",null,null,null,"2",null,1]
[null,null,null,null,null,"France",null,"SIWI",null,"27-june",null,3,"email",null,"x",null,null,null,"3",null,1]
[null,null,null,null,null,"Gabon",null,"GWP CAF","Aurelie","19-may",null,3,"email, revision 20-may",null,"x",null,null,null,"3",null,1]
[null,null,null,null,null,"Gambia",null,"GWP WAF","Aurelie",null,null,null,null,null,null,null,null,null,1,null,1]
[null,null,null,null,null,"Georgia*",null,"GWP CACENA","Danka","2015-04-21",2,null,"email, post",null,"x",null,null,null,"2",null,1]
[null,null,null,null,null,"Germany",0,"SIWI",null,"2015-04-19",null,3,"email",null,"x",null,null,null,"3",null,1]
[null,null,null,null,null,"Ghana",1,"GWP WAF","Aurelie","23-june",2,null,"email",null,"x",null,"13-july",null,{"$f":"IF(SUM(K68:L68)<1,1,CONCATENATE(K68,L68))","v":"2"},null,4]
[null,null,null,null,null,"Greece",null,"GWP MED","John","2015-04-28",2,null,"email",null,"x",null,null,null,"2",null,1]
[null,null,null,null,null,"Grenada",null,"GWP CARIB","Alex","23-may",2,null,"email, May 27",null,"x",null,null,null,"2",null,1]
[null,null,null,null,null,"Guatemala",1,"GWP CAM","Gabriela","7-june",2,null,"email",null,"x",null,"13-may, PT accepted",null,"2",null,4]
[null,null,null,null,null,"Guinea",null,"GWP WAF","Aurelie","29-june",null,3,"email",null,"x",null,null,null,"3",null,1]
[null,null,null,null,null,"Guinea Bissau",null,"GWP WAF","Aurelie",null,null,null,null,null,null,null,null,null,1,null,1]
[null,null,null,null,null,"Guyana",null,"GWP CARIB","Alex",null,null,null,null,null,null,null,null,null,1,null,1]
[null,null,null,null,null,"Haiti",null,"SIWI","Alex","13-june",null,3,"email",null,"x",null,null,null,"3",null,1]
[null,null,null,null,null,"Honduras",null,"GWP CAM","Gabriela",null,null,null,null,null,null,"x",null,null,1,null,1]
[null,null,null,null,null,"Hungary",null,"GWP CEE","Danka",null,null,null,null,null,null,null,null,null,1,null,1]
[null,null,null,null,null,"Iceland",null,"SIWI",null,"2015-04-09",null,3,"email",null,"x",null,null,null,"3",null,1]
[null,null,null,null,null,"India",null,"GWP SAS","Mercy","26-july",null,null,"OBS: no quest, just a note",null,null,null,null,null,1,null,1]
[null,null,null,null,null,"Indonesia",null,"GWP SEA","Mercy","4-july",null,3,"online",null,"x",null,null,null,"3",null,1]
[null,null,null,null,null,"Iran (Islamic Republic of)",0,"SIWI",null,"2015-04-21",null,3,"online",null,"x",null,null,null,"3",null,1]
[null,null,null,null,null,"Iraq",null,"SIWI",null,"2015-04-27",2,null,"fax",null,"x",null,null,null,"2",null,1]
[null,null,null,null,null,"Ireland",null,"SIWI",null,"2015-04-22",2,null,"email",null,"x",null,null,null,"2",null,1]
[null,null,null,null,null,"Israel",null,"GWP MED","John",40812,null,3,"online",null,"x",null,null,null,"3",null,1]
[null,null,null,null,null,"Italy",null,"SIWI",null,null,null,null,null,null,null,null,null,null,1,null,1]
[null,null,null,null,null,"Jamaica",1,"GWP CARIB","Alex","25-may",2,null,"email",null,"x",null,"9-july, PT accepted",null,"2",null,4]
[null,null,null,null,null,"Japan",null,"SIWI",null,"14-june",2,null,"email",null,"x",null,null,null,"2",null,1]
[null,null,null,null,null,"Jordan",3,"GWP MED","John","2015-04-22",2,null,"email, edited v May 10","Email April 26","x",null,40802,"Unclear, Anthi follows-up","2",null,4]
[null,null,null,null,null,"Kazakhstan",1,"GWP CACENA","Danka",null,null,null,null,null,null,null,null,"Not expected to submit",1,null,2]
[null,null,null,null,null,"Kenya",null,"GWP EAF","Alex","30-june",2,null,"email",null,"x",null,null,null,"2",null,1]
[null,null,null,null,null,"Kiribati",null,"SIWI",null,null,null,null,null,null,null,null,null,null,1,null,1]
[null,null,null,null,null,"Kuwait",null,"SIWI",null,null,null,null,null,null,null,null,null,null,1,null,1]
[null,null,null,null,null,"Kyrgyzstan",null,"GWP CACENA","Danka",null,null,null,null,null,null,null,null,null,1,null,1]
[null,null,null,null,null,"Lao People’s Democratic Republic",null,"GWP SEA","Mercy",null,null,null,null,null,null,"x",null,null,1,null,1]
[null,null,null,null,null,"Latvia",0,"GWP CEE","Danka","2015-04-19",null,3,"email",null,"x",null,null,null,"3",null,1]
[null,null,null,null,null,"Lebanon",null,"GWP MED","John",40773,null,3,"email",null,"x",null,null,null,"3",null,1]
[null,null,null,null,null,"Lesotho",null,"GWP SAF","Alex","14-july",2,null,"email",null,"x",null,null,null,"2",null,1]
[null,null,null,null,null,"Liberia",null,"GWP WAF","Aurelie",null,null,null,null,null,null,null,null,null,1,null,1]
[null,null,null,null,null,"Libyan Arab Jamahiriya",0,"GWP MED","John","2015-04-21",null,3,"online",null,"x",null,null,null,"3",null,1]
[null,null,null,null,null,"Liechtenstein",null,"SIWI",null,null,null,null,null,null,null,"x",null,null,1,null,1]
[null,null,null,null,null,"Lithuania",null,"GWP CEE","Danka","2015-04-22",null,3,"email, revised May 6",null,"x",null,null,null,"3",null,1]
[null,null,null,null,null,"Luxembourg",null,"SIWI",null,null,null,null,null,null,null,null,null,null,1,null,1]
[null,null,null,null,null,"Madagascar",null,"GWP SAF","Alex",null,null,null,null,null,null,null,null,null,1,null,1]
[null,null,null,null,null,"Malawi",0,"GWP SAF","Alex","2015-04-15",null,3,"email",null,"x",null,null,null,"3",null,1]
[null,null,null,null,null,"Malaysia",null,"GWP SEA","Mercy","10-may",null,3,"online",null,"x",null,null,null,"3",null,1]
[null,null,null,null,null,"Maldives",null,"GWP SAS","Mercy",null,null,null,null,null,null,null,null,null,1,null,1]
[null,null,null,null,null,"Mali",null,"GWP WAF","Aurelie",null,null,null,null,null,null,null,null,null,1,null,1]
[null,null,null,null,null,"Malta",null,"GWP MED","John",null,null,null,null,null,null,null,null,null,1,null,1]
[null,null,null,null,null,"Marshall Islands",null,"SIWI",null,"2015-04-20",null,3,"Online (named nr)","Email April 29","x",null,null,null,"3",null,1]
[null,null,null,null,null,"Mauritania",null,"GWP WAF","Aurelie",null,null,null,null,null,null,null,null,null,1,null,1]
[null,null,null,null,null,"Mauritius",null,"SIWI",null,"1-june",2,null,"email",null,"x",null,null,null,"2",null,1]
[null,null,null,null,null,"Mexico",1,"WWAP",null,"19-may",null,3,"email",null,"x",null,40814,null,"3",null,4]
[null,null,null,null,null,"Micronesia (Federated States of)",null,"SIWI",null,null,null,null,null,null,null,null,null,null,1,null,1]
[null,null,null,null,null,"Monaco",0,"SIWI",null,"2015-04-21",null,3,"online",null,"x",null,null,null,"3",null,1]
[null,null,null,null,null,"Mongolia",0,"SIWI",null,"2015-04-20",null,3,"online",null,"x",null,null,null,"3",null,1]
[null,null,null,null,null,"Montenegro",null,"SIWI",null,"1-july",null,3,"email",null,"x",null,null,null,"3",null,1]
[null,null,null,null,null,"Morocco",null,"GWP MED","John","29-july",null,3,"email",null,"x",null,null,null,"3",null,1]
[null,null,null,null,null,"Mozambique",1,"GWP SAF","Alex","9-june",null,3,"online & email",null,"x",null,"15-june, PT accepted",null,"3",null,4]
[null,null,null,null,null,"Myanmar",null,"GWP SEA","Mercy","5-may",null,3,"email",null,"x",null,null,null,"3",null,1]
[null,null,null,null,null,"Namibia",1,"GWP SAF","Alex","15-june",null,3,"email (few errors)",null,"x",null,"15-june, PT accepted",null,"3",null,4]
[null,null,null,null,null,"Nauru",null,"SIWI",null,null,null,null,null,null,null,null,null,null,1,null,1]
[null,null,null,null,null,"Nepal",null,"GWP SAS","Mercy",null,null,null,null,null,null,null,null,null,1,null,1]
[null,null,null,null,null,"Netherlands",null,"SIWI",null,40795,null,3,"email","2015-04-30","x",null,null,null,"3",null,1]
[null,null,null,null,null,"New Zealand",null,"SIWI",null,"13-may",null,3,"email",null,"x",null,null,null,"3",null,1]
[null,null,null,null,null,"Nicaragua",0,"GWP CAM","Gabriela","2015-04-20",null,3,"online",null,"x",null,null,null,"3",null,1]
[null,null,null,null,null,"Niger",null,"GWP WAF","Aurelie",null,null,null,null,null,null,"x",null,null,1,null,1]
[null,null,null,null,null,"Nigeria",0,"GWP WAF","Aurelie","2015-04-16",null,3,"email",null,"x",null,null,null,"3",null,1]
[null,null,null,null,null,"Norway",null,"SIWI",null,"30-june",null,3,"online",null,"x",null,null,null,"3",null,1]
[null,null,null,null,null,"Oman",null,"SIWI",null,null,null,null,null,null,null,null,null,null,1,null,1]
[null,null,null,null,null,"Pakistan",0,"GWP SAS","Mercy","2015-05-01",null,3,"email",null,"x",null,"3-may, PT accepted",null,"3",null,4]
[null,null,null,null,null,"Palau",null,"SIWI",null,null,null,null,null,null,null,"x",null,null,1,null,1]
[null,null,null,null,null,"Panama",null,"GWP CAM","Gabriela","6-may",2,null,"email",null,"x",null,null,null,{"$f":"IF(SUM(K132:L132)<1,1,CONCATENATE(K132,L132))","v":"2"},null,1]
[null,null,null,null,null,"Papua New Guinea",null,"SIWI",null,null,null,null,null,null,null,null,null,null,1,null,1]
[null,null,null,null,null,"Paraguay",null,"GWP SAM","Gabriela",null,null,null,null,null,null,null,null,null,1,null,1]
[null,null,null,null,null,"Peru",0,"GWP SAM","Gabriela","2015-04-20",2,null,"email",null,"x",null,null,null,"2",null,1]
[null,null,null,null,null,"Philippines",0,"GWP SEA","Mercy","2015-04-26",null,3,"online",null,"x",null,null,"Not expected to submit","3",null,2]
[null,null,null,null,null,"Poland",null,"GWP CEE","Danka","4-may",2,null,"email",null,"x",null,null,null,"2",null,1]
[null,null,null,null,null,"Portugal",0,"SIWI",null,"2015-04-21",null,3,"online",null,"x",null,null,null,"3",null,1]
[null,null,null,null,null,"Qatar",null,"SIWI",null,null,null,null,null,null,null,null,null,null,1,null,1]
[null,null,null,null,null,"Republic of Korea",0,"WWAP",null,"2015-04-16",null,3,"email",null,"x",null,null,"Not expected to submit","3",null,2]
[null,null,null,null,null,"Republic of Moldova",0,"GWP CEE","Danka","2015-04-20",null,3,"email & fax",null,"x",null,null,null,"3",null,1]
[null,null,null,null,null,"Romania",null,"GWP CEE","Danka","2015-04-27",2,null,"email",null,"x",null,null,null,"2",null,1]
[null,null,null,null,null,"Russian Federation",null,"SIWI",null,null,null,null,null,null,null,null,null,null,1,null,1]
[null,null,null,null,null,"Rwanda",1,"GWP EAF","Alex","20-june",null,3,"email",null,"x",null,40798,null,"3",null,4]
[null,null,null,null,null,"Saint Kitts and Nevis",0,"GWP CARIB","Alex","2015-04-28",null,3,"online",null,"x",null,null,null,"3",null,1]
[null,null,null,null,null,"Saint Lucia",0,"GWP CARIB","Alex","2015-04-22",null,3,"online",null,"x",null,null,null,"3",null,1]
[null,null,null,null,null,"Saint Vincent and the Grenadines",null,"GWP CARIB","Alex",null,null,null,null,null,null,null,null,null,1,null,1]
[null,null,null,null,null,"Samoa",1,"UNDP",null,"29-june",null,3,"email",null,"x",null,"2015-08-06",null,"3",null,4]
[null,null,null,null,null,"San Marino",null,"SIWI",null,null,null,null,null,null,null,null,null,null,1,null,1]
[null,null,null,null,null,"Sao Tome and Principe",0,"GWP CAF","Aurelie","2015-04-27",null,3,"email",null,"x",null,null,null,"3",null,1]
[null,null,null,null,null,"Saudi Arabia",null,"SIWI",null,"10-may",null,3,"email",null,"x",null,null,null,"3",null,1]
[null,null,null,null,null,"Senegal",null,"GWP WAF","Aurelie",null,null,null,null,null,null,null,null,null,1,null,1]
[null,null,null,null,null,"Serbia",null,"SIWI",null,"4-may",null,3,"email",null,"x",null,null,null,"3",null,1]
[null,null,null,null,null,"Seychelles",null,"GWP EAF","Alex",null,null,null,null,null,null,null,null,null,1,null,1]
[null,null,null,null,null,"Sierra Leone",0,"GWP WAF","Aurelie","2015-04-20",null,3,"email","April 20 email, update 21","x",null,null,null,"3",null,1]
[null,null,null,null,null,"Singapore",0,"SIWI",null,"2015-04-19",null,3,"online",null,"x",null,null,null,"3",null,1]
[null,null,null,null,null,"Slovakia",null,"GWP CEE","Danka","2015-04-16",2,null,"email",null,"x",null,null,null,"2",null,1]
[null,null,null,null,null,"Slovenia",null,"GWP CEE","Danka",null,null,null,null,null,null,null,null,null,1,null,1]
[null,null,null,null,null,"Solomon Islands",null,"SIWI",null,"28-june",null,3,"online",null,"x",null,null,null,"3",null,1]
[null,null,null,null,null,"Somalia",null,"SIWI",null,null,null,null,null,null,null,null,null,null,1,null,1]
[null,null,null,null,null,"South Africa",null,"GWP SAF","Alex",40814,2,null,"email",null,"x",null,null,null,"2",null,1]
[null,null,null,null,null,"Spain",0,"WWAP",null,"2015-04-19",null,3,"email",null,"x",null,"GJL: july",null,"3",null,4]
[null,null,null,null,null,"Sri Lanka",2,"GWP SAS","Mercy","23-may",null,3,"email",null,"x",null,"17-june, PT accepted",null,"3",null,4]
[null,null,null,null,null,"Sudan",0,"GWP EAF","Alex","3-may",2,null,"email",null,"x",null,null,null,{"$f":"IF(SUM(K164:L164)<1,1,CONCATENATE(K164,L164))","v":"2"},null,1]
[null,null,null,null,null,"Suriname",null,"SIWI",null,null,null,null,null,null,null,null,null,null,1,null,1]
[null,null,null,null,null,"Swaziland",0,"GWP SAF","Alex","2015-04-21",null,3,"online",null,"x",null,null,null,"3",null,1]
[null,null,null,null,null,"Sweden",null,"SIWI",null,"13-may",null,3,"email","2015-04-21","x",null,null,null,"3",null,1]
[null,null,null,null,null,"Switzerland",null,"SIWI",null,"2015-04-20",2,null,"email",null,"x",null,null,null,"2",null,1]
[null,null,null,null,null,"Syrian Arab Republic",null,"GWP MED","John",null,null,null,null,null,null,null,null,null,1,null,1]
[null,null,null,null,null,"Tajikistan",null,"GWP CACENA","Danka","2015-04-25",2,null,"email, revised May 7",null,"x",null,null,null,"2",null,1]
[null,null,null,null,null,"Thailand*",0,"GWP SEA","Mercy","2015-04-21",null,3,"online, April 20 & 25",null,"x",null,null,null,"3",null,1]
[null,null,null,null,null,"The former Yugoslav Republic of Macedonia",null,"GWP MED","John","10-may",2,null,"email",null,"x",null,null,null,"2",null,1]
[null,null,null,null,null,"Timor-Leste",null,"SIWI",null,"31-may",null,3,"online",null,"x",null,null,null,"3",null,1]
[null,null,null,null,null,"Togo",null,"GWP WAF","Aurelie",null,null,null,null,null,null,null,null,null,1,null,1]
[null,null,null,null,null,"Tonga",0,"SIWI",null,"2015-04-26",null,3,"email",null,"x",null,null,null,"3",null,1]
[null,null,null,null,null,"Trinidad and Tobago",null,"GWP CARIB","Alex",null,null,null,null,null,null,null,null,null,1,null,1]
[null,null,null,null,null,"Tunisia",2,"GWP MED","John","8-june",2,null,"email",null,"x",null,"2015-08-09",null,"2",null,4]
[null,null,null,null,null,"Turkey",null,"GWP MED","John",null,null,null,null,null,null,null,null,null,1,null,1]
[null,null,null,null,null,"Turkmenistan",null,"GWP CACENA","Danka",null,null,null,null,null,null,null,null,null,1,null,1]
[null,null,null,null,null,"Tuvalu",null,"SIWI",null,null,null,null,null,null,null,null,null,null,1,null,1]
[null,null,null,null,null,"Uganda",0,"GWP EAF","Alex","2015-04-19",null,3,"email",null,"x",null,"18-may, PT accepted",null,"3",null,4]
[null,null,null,null,null,"Ukraine",null,"GWP CEE","Danka",null,null,null,null,null,null,null,null,null,1,null,1]
[null,null,null,null,null,"United Arab Emirates",null,"SIWI",null,"4-july",null,3,"email",null,"x",null,null,null,"3",null,1]
[null,null,null,null,null,"United Kingdom of Great Britain and Northern Ireland",null,"SIWI",null,"9-may",null,3,"online",null,"x",null,null,null,"3",null,1]
[null,null,null,null,null,"United Republic of Tanzania",1,"UNDP","Alex","26-may",2,null,"email",null,"x",null,"7-july, PT accepted",null,"2",null,4]
[null,null,null,null,null,"United States of America",null,"SIWI",null,null,null,null,null,null,null,null,null,null,1,null,1]
[null,null,null,null,null,"Uruguay",0,"GWP SAM","Gabriela","2015-04-19",null,3,"online",null,"x",null,40804,null,"3",null,4]
[null,null,null,null,null,"Uzbekistan",2,"GWP CACENA","Danka","7-may",null,3,"email",null,"x",null,"22-july",null,"3","NB: Received new version through UN mission June 30, no respondent stated",4]
[null,null,null,null,null,"Vanuatu",null,"SIWI",null,null,null,null,null,null,null,null,null,null,1,null,1]
[null,null,null,null,null,"Venezuela (Bolivarian Republic of)",null,"GWP SAM","Gabriela",null,null,null,null,null,null,null,null,null,1,null,1]
[null,null,null,null,null,"Viet Nam",1,"GWP SEA","Mercy",null,null,null,null,null,null,"x","To be decided",null,1,null,2]
[null,null,null,null,null,"Yemen",null,"SIWI",null,null,null,null,null,null,null,null,null,null,1,null,1]
[null,null,null,null,null,"Zambia",0,"GWP SAF","Alex","2015-04-29",null,3,"email",null,"x",null,null,null,"3",null,1]
[null,null,null,null,null,"Zimbabwe",null,"GWP SAF","Alex",null,null,null,null,null,null,null,null,null,{"$f":"IF(SUM(K194:L194)<1,1,CONCATENATE(K194,L194))","v":1},null,1]
[null,null,null,null,null,null,null,null,null,null,{"$f":"COUNTIF(K3:K194,2)","v":41},{"$f":"COUNTIF(L3:L194,3)","v":85},null,null,null,null,null,null,{"$f":"COUNTIF(S3:S194,2)","v":41},"Need for revision",{"$f":"COUNTIF($U$3:$U$194,\">1\")","v":34},"Approached"]
[null,null,null,null,null,null,null,null,null,null,null,null,null,null,null,null,null,null,{"$f":"COUNTIF(S3:S194,3)","v":85},"Finalized",{"$f":"COUNTIF($U$3:$U$194,2)","v":4},"Not expected"]
[null,null,null,null,null,null,null,null,null,null,null,null,null,null,null,null,null,null,{"$f":"SUM(S195:S196)","v":126},"Total respondents",{"$f":"COUNTIF($U$3:$U$194,3)","v":0},"Response expected"]
[null,null,null,null,null,null,null,null,null,null,null,null,null,null,null,null,null,null,null,null,{"$f":"COUNTIF($U$3:$U$194,4)","v":30},"Response received"]

{"sheet":"2007_comparison","index":26,"n_rows":269,"n_cols":61,"rows_kept":269,"cut":false,"hidden":true,"merged":[]}
[null,"2007 Nat/Fed IWRM plan","2011 1.1.1 e National/Federal IWRM plans or equivalent","Adjusted 2011 1.1.1e (6=5;4or5=4)",null,null,"2007 Nat/Fed water plan","2011 1.1.1 f Separate Nat/Fed water efficiency plans","Adjusted 2011 1.1.1f (6=5;4or5=4)",null,null,"2007 Nat/Fed water plan","2011 1.1.1 g Water efficiency in IWRM plan or equiv.","Adjusted 2011 1.1.1g (6=5;4or5=4)",null,null,"2007 Nat/Fed water plan","2011 1.1.1 f,g (max) Water efficiency ","Adjusted 2011 1.1.1g (6=5;4or5=4)",null,null,"2007 Water Policy","2011 1.1.1 a) National/federal water resources policy","Adjusted 2011 1.1.1a (6=5;4or5=4)",null,null,"2007 Nat/Fed Water law","2011 1.1.1 c) National/federal water laws","Adjusted 2011 1.1.1c (6=5;4or5=4)",null,null,"2007 PRS with WRM","2011 1.1.2 b) PRS with WRM","Adjusted 2011 1.1.2b (6=5;4or5=4)",null,null,"2007 NSDS with WRM","2011 1.1.2 c) Nat. Strategy for Sust. Devp. with WRM","Adjusted 2011 1.1.2c (6=5;4or5=4)",null,null,"2007 NDP with WRM","2011 1.1.2 d) Nat. Devp. Plan with WRM","Adjusted 2011 1.1.2d (6=5;4or5=4)",null,null,"2007 NEAP with WRM","2011 1.1.2 e) National Environmental Action Plan with WRM","Adjusted 2011 1.1.2e (6=5;4or5=4)",null,null,"2007 Regional agreements","2011 1.1.3 a) Regional/ sub-regional WRM agreements","Adjusted 2011 1.1.3a (6=5;4or5=4)",null,null,"2007 Transboundary agreements","2011 1.1.3 b) Transboundary  WRM agreements for specific river basins","Adjusted 2011 1.1.3b (6=5;4or5=4)"]
["Afghanistan",{"$f":"IF(AND('2011 Survey responses'!$F3>0,'2007 Survey responses'!E7>0),'2007 Survey responses'!E7,\"\")","v":""},{"$f":"IF(AND('2011 Survey responses'!$F3>0,'2007 Survey responses'!E7>0),'2011 Survey responses'!$F3,\"\")","v":""},{"$f":"IF(C2=0,\"\",IF(C2=6,5,IF(C2=5,4,C2)))","v":""},null,null,{"$f":"IF(AND('2011 Survey responses'!$G3>0,'2007 Survey responses'!$F7>0),'2007 Survey responses'!$F7,\"\")","v":""},{"$f":"IF(AND('2011 Survey responses'!$G3>0,'2007 Survey responses'!$F7>0),'2011 Survey responses'!$G3,\"\")","v":""},{"$f":"IF(H2=0,\"\",IF(H2=6,5,IF(H2=5,4,H2)))","v":""},null,null,{"$f":"IF(AND('2011 Survey responses'!$H3>0,'2007 Survey responses'!$F7>0),'2007 Survey responses'!$F7,\"\")","v":""},{"$f":"IF(AND('2011 Survey responses'!$H3>0,'2007 Survey responses'!$F7>0),'2011 Survey responses'!$H3,\"\")","v":""},{"$f":"IF(M2=0,\"\",IF(M2=6,5,IF(M2=5,4,M2)))","v":""},null,null,{"$f":"IF(AND(Question_grouping!O3>0,'2007 Survey responses'!$F7>0),'2007 Survey responses'!$F7,\"\")","v":""},{"$f":"IF(AND(Question_grouping!O3>0,'2007 Survey responses'!$F7>0),Question_grouping!O3,\"\")","v":""},{"$f":"IF(R2=0,\"\",IF(R2=6,5,IF(R2=5,4,R2)))","v":""},null,null,{"$f":"IF(AND('2011 Survey responses'!$B3>0,'2007 Survey responses'!$C7>0),'2007 Survey responses'!$C7,\"\")","v":""},{"$f":"IF(AND('2011 Survey responses'!$B3>0,'2007 Survey responses'!$C7>0),'2011 Survey responses'!$B3,\"\")","v":""},{"$f":"IF(W2=0,\"\",IF(W2=6,5,IF(W2=5,4,W2)))","v":""},null,null,{"$f":"IF(AND('2011 Survey responses'!$D3>0,'2007 Survey responses'!$D7>0),'2007 Survey responses'!$D7,\"\")","v":""},{"$f":"IF(AND('2011 Survey responses'!$D3>0,'2007 Survey responses'!$D7>0),'2011 Survey responses'!$D3,\"\")","v":""},{"$f":"IF(AB2=0,\"\",IF(AB2=6,5,IF(AB2=5,4,AB2)))","v":""},null,null,{"$f":"IF(AND('2011 Survey responses'!$J3>0,'2007 Survey responses'!$H7>0),'2007 Survey responses'!$H7,\"\")","v":""},{"$f":"IF(AND('2011 Survey responses'!$J3>0,'2007 Survey responses'!$H7>0),'2011 Survey responses'!$J3,\"\")","v":""},{"$f":"IF(AG2=0,\"\",IF(AG2=6,5,IF(AG2=5,4,AG2)))","v":""},null,null,{"$f":"IF(AND('2011 Survey responses'!$K3>0,'2007 Survey responses'!$J7>0),'2007 Survey responses'!$J7,\"\")","v":""},{"$f":"IF(AND('2011 Survey responses'!$K3>0,'2007 Survey responses'!$J7>0),'2011 Survey responses'!$K3,\"\")","v":""},{"$f":"IF(AL2=0,\"\",IF(AL2=6,5,IF(AL2=5,4,AL2)))","v":""},null,null,{"$f":"IF(AND('2011 Survey responses'!$L3>0,'2007 Survey responses'!$I7>0),'2007 Survey responses'!$I7,\"\")","v":""},{"$f":"IF(AND('2011 Survey responses'!$L3>0,'2007 Survey responses'!$I7>0),'2011 Survey responses'!$L3,\"\")","v":""},{"$f":"IF(AQ2=0,\"\",IF(AQ2=6,5,IF(AQ2=5,4,AQ2)))","v":""},null,null,{"$f":"IF(AND('2011 Survey responses'!$M3>0,'2007 Survey responses'!$K7>0),'2007 Survey responses'!$K7,\"\")","v":""},{"$f":"IF(AND('2011 Survey responses'!$M3>0,'2007 Survey responses'!$K7>0),'2011 Survey responses'!$M3,\"\")","v":""},{"$f":"IF(AV2=0,\"\",IF(AV2=6,5,IF(AV2=5,4,AV2)))","v":""},null,null,{"$f":"IF(AND('2011 Survey responses'!T3>0,'2007 Survey responses'!L7>0),'2007 Survey responses'!L7,\"\")","v":""},{"$f":"IF('2007 Survey responses'!$B7>0,IF(AND('2011 Survey responses'!T3>0,'2007 Survey responses'!L7>0),'2011 Survey responses'!T3,\"\"),\"\")","v":""},{"$f":"IF(BA2=0,\"\",IF(BA2=6,5,IF(BA2=5,4,BA2)))","v":""},null,null,{"$f":"IF(AND('2011 Survey responses'!$U3>0,'2007 Survey responses'!$M7>0),'2007 Survey responses'!$M7,\"\")","v":""},{"$f":"IF(AND('2011 Survey responses'!$U3>0,'2007 Survey responses'!$M7>0),'2011 Survey responses'!$U3,\"\")","v":""},{"$f":"IF(BF2=0,\"\",IF(BF2=6,5,IF(BF2=5,4,BF2)))","v":""}]
["Albania",{"$f":"IF(AND('2011 Survey responses'!$F4>0,'2007 Survey responses'!E8>0),'2007 Survey responses'!E8,\"\")","v":""},{"$f":"IF(AND('2011 Survey responses'!$F4>0,'2007 Survey responses'!E8>0),'2011 Survey responses'!$F4,\"\")","v":""},"",null,null,{"$f":"IF(AND('2011 Survey responses'!$G4>0,'2007 Survey responses'!$F8>0),'2007 Survey responses'!$F8,\"\")","v":""},{"$f":"IF(AND('2011 Survey responses'!$G4>0,'2007 Survey responses'!$F8>0),'2011 Survey responses'!$G4,\"\")","v":""},"",null,null,{"$f":"IF(AND('2011 Survey responses'!$H4>0,'2007 Survey responses'!$F8>0),'2007 Survey responses'!$F8,\"\")","v":""},{"$f":"IF(AND('2011 Survey responses'!$H4>0,'2007 Survey responses'!$F8>0),'2011 Survey responses'!$H4,\"\")","v":""},"",null,null,{"$f":"IF(AND(Question_grouping!O4>0,'2007 Survey responses'!$F8>0),'2007 Survey responses'!$F8,\"\")","v":""},{"$f":"IF(AND(Question_grouping!O4>0,'2007 Survey responses'!$F8>0),Question_grouping!O4,\"\")","v":""},"",null,null,{"$f":"IF(AND('2011 Survey responses'!$B4>0,'2007 Survey responses'!$C8>0),'2007 Survey responses'!$C8,\"\")","v":""},{"$f":"IF(AND('2011 Survey responses'!$B4>0,'2007 Survey responses'!$C8>0),'2011 Survey responses'!$B4,\"\")","v":""},"",null,null,{"$f":"IF(AND('2011 Survey responses'!$D4>0,'2007 Survey responses'!$D8>0),'2007 Survey responses'!$D8,\"\")","v":""},{"$f":"IF(AND('2011 Survey responses'!$D4>0,'2007 Survey responses'!$D8>0),'2011 Survey responses'!$D4,\"\")","v":""},"",null,null,{"$f":"IF(AND('2011 Survey responses'!$J4>0,'2007 Survey responses'!$H8>0),'2007 Survey responses'!$H8,\"\")","v":""},{"$f":"IF(AND('2011 Survey responses'!$J4>0,'2007 Survey responses'!$H8>0),'2011 Survey responses'!$J4,\"\")","v":""},"",null,null,{"$f":"IF(AND('2011 Survey responses'!$K4>0,'2007 Survey responses'!$J8>0),'2007 Survey responses'!$J8,\"\")","v":""},{"$f":"IF(AND('2011 Survey responses'!$K4>0,'2007 Survey responses'!$J8>0),'2011 Survey responses'!$K4,\"\")","v":""},"",null,null,{"$f":"IF(AND('2011 Survey responses'!$L4>0,'2007 Survey responses'!$I8>0),'2007 Survey responses'!$I8,\"\")","v":""},{"$f":"IF(AND('2011 Survey responses'!$L4>0,'2007 Survey responses'!$I8>0),'2011 Survey responses'!$L4,\"\")","v":""},"",null,null,{"$f":"IF(AND('2011 Survey responses'!$M4>0,'2007 Survey responses'!$K8>0),'2007 Survey responses'!$K8,\"\")","v":""},{"$f":"IF(AND('2011 Survey responses'!$M4>0,'2007 Survey responses'!$K8>0),'2011 Survey responses'!$M4,\"\")","v":""},"",null,null,{"$f":"IF('2007 Survey responses'!$B8>0,IF(AND('2011 Survey responses'!T4>0,'2007 Survey responses'!L8>0),'2007 Survey responses'!L8,\"\"),\"\")","v":""},{"$f":"IF('2007 Survey responses'!$B8>0,IF(AND('2011 Survey responses'!T4>0,'2007 Survey responses'!L8>0),'2011 Survey responses'!T4,\"\"),\"\")","v":""},"",null,null,{"$f":"IF(AND('2011 Survey responses'!$U4>0,'2007 Survey responses'!$M8>0),'2007 Survey responses'!$M8,\"\")","v":""},{"$f":"IF(AND('2011 Survey responses'!$U4>0,'2007 Survey responses'!$M8>0),'2011 Survey responses'!$U4,\"\")","v":""},""]
["Algeria",{"$f":"IF(AND('2011 Survey responses'!$F5>0,'2007 Survey responses'!E9>0),'2007 Survey responses'!E9,\"\")","v":2},{"$f":"IF(AND('2011 Survey responses'!$F5>0,'2007 Survey responses'!E9>0),'2011 Survey responses'!$F5,\"\")","v":5},4,null,null,{"$f":"IF(AND('2011 Survey responses'!$G5>0,'2007 Survey responses'!$F9>0),'2007 Survey responses'!$F9,\"\")","v":1},{"$f":"IF(AND('2011 Survey responses'!$G5>0,'2007 Survey responses'!$F9>0),'2011 Survey responses'!$G5,\"\")","v":1},1,null,null,{"$f":"IF(AND('2011 Survey responses'!$H5>0,'2007 Survey responses'!$F9>0),'2007 Survey responses'!$F9,\"\")","v":1},{"$f":"IF(AND('2011 Survey responses'!$H5>0,'2007 Survey responses'!$F9>0),'2011 Survey responses'!$H5,\"\")","v":1},1,null,null,{"$f":"IF(AND(Question_grouping!O5>0,'2007 Survey responses'!$F9>0),'2007 Survey responses'!$F9,\"\")","v":1},{"$f":"IF(AND(Question_grouping!O5>0,'2007 Survey responses'!$F9>0),Question_grouping!O5,\"\")","v":1},1,null,null,{"$f":"IF(AND('2011 Survey responses'!$B5>0,'2007 Survey responses'!$C9>0),'2007 Survey responses'!$C9,\"\")","v":4},{"$f":"IF(AND('2011 Survey responses'!$B5>0,'2007 Survey responses'!$C9>0),'2011 Survey responses'!$B5,\"\")","v":5},4,null,null,{"$f":"IF(AND('2011 Survey responses'!$D5>0,'2007 Survey responses'!$D9>0),'2007 Survey responses'!$D9,\"\")","v":4},{"$f":"IF(AND('2011 Survey responses'!$D5>0,'2007 Survey responses'!$D9>0),'2011 Survey responses'!$D5,\"\")","v":6},5,null,null,{"$f":"IF(AND('2011 Survey responses'!$J5>0,'2007 Survey responses'!$H9>0),'2007 Survey responses'!$H9,\"\")","v":""},{"$f":"IF(AND('2011 Survey responses'!$J5>0,'2007 Survey responses'!$H9>0),'2011 Survey responses'!$J5,\"\")","v":""},"",null,null,{"$f":"IF(AND('2011 Survey responses'!$K5>0,'2007 Survey responses'!$J9>0),'2007 Survey responses'!$J9,\"\")","v":""},{"$f":"IF(AND('2011 Survey responses'!$K5>0,'2007 Survey responses'!$J9>0),'2011 Survey responses'!$K5,\"\")","v":""},"",null,null,{"$f":"IF(AND('2011 Survey responses'!$L5>0,'2007 Survey responses'!$I9>0),'2007 Survey responses'!$I9,\"\")","v":""},{"$f":"IF(AND('2011 Survey responses'!$L5>0,'2007 Survey responses'!$I9>0),'2011 Survey responses'!$L5,\"\")","v":""},"",null,null,{"$f":"IF(AND('2011 Survey responses'!$M5>0,'2007 Survey responses'!$K9>0),'2007 Survey responses'!$K9,\"\")","v":""},{"$f":"IF(AND('2011 Survey responses'!$M5>0,'2007 Survey responses'!$K9>0),'2011 Survey responses'!$M5,\"\")","v":""},"",null,null,{"$f":"IF('2007 Survey responses'!$B9>0,IF(AND('2011 Survey responses'!T5>0,'2007 Survey responses'!L9>0),'2007 Survey responses'!L9,\"\"),\"\")","v":""},{"$f":"IF('2007 Survey responses'!$B9>0,IF(AND('2011 Survey responses'!T5>0,'2007 Survey responses'!L9>0),'2011 Survey responses'!T5,\"\"),\"\")","v":""},"",null,null,{"$f":"IF(AND('2011 Survey responses'!$U5>0,'2007 Survey responses'!$M9>0),'2007 Survey responses'!$M9,\"\")","v":""},{"$f":"IF(AND('2011 Survey responses'!$U5>0,'2007 Survey responses'!$M9>0),'2011 Survey responses'!$U5,\"\")","v":""},""]
["Andorra",{"$f":"IF(AND('2011 Survey responses'!$F6>0,'2007 Survey responses'!E10>0),'2007 Survey responses'!E10,\"\")","v":""},{"$f":"IF(AND('2011 Survey responses'!$F6>0,'2007 Survey responses'!E10>0),'2011 Survey responses'!$F6,\"\")","v":""},"",null,null,{"$f":"IF(AND('2011 Survey responses'!$G6>0,'2007 Survey responses'!$F10>0),'2007 Survey responses'!$F10,\"\")","v":""},{"$f":"IF(AND('2011 Survey responses'!$G6>0,'2007 Survey responses'!$F10>0),'2011 Survey responses'!$G6,\"\")","v":""},"",null,null,{"$f":"IF(AND('2011 Survey responses'!$H6>0,'2007 Survey responses'!$F10>0),'2007 Survey responses'!$F10,\"\")","v":""},{"$f":"IF(AND('2011 Survey responses'!$H6>0,'2007 Survey responses'!$F10>0),'2011 Survey responses'!$H6,\"\")","v":""},"",null,null,{"$f":"IF(AND(Question_grouping!O6>0,'2007 Survey responses'!$F10>0),'2007 Survey responses'!$F10,\"\")","v":""},{"$f":"IF(AND(Question_grouping!O6>0,'2007 Survey responses'!$F10>0),Question_grouping!O6,\"\")","v":""},"",null,null,{"$f":"IF(AND('2011 Survey responses'!$B6>0,'2007 Survey responses'!$C10>0),'2007 Survey responses'!$C10,\"\")","v":""},{"$f":"IF(AND('2011 Survey responses'!$B6>0,'2007 Survey responses'!$C10>0),'2011 Survey responses'!$B6,\"\")","v":""},"",null,null,{"$f":"IF(AND('2011 Survey responses'!$D6>0,'2007 Survey responses'!$D10>0),'2007 Survey responses'!$D10,\"\")","v":""},{"$f":"IF(AND('2011 Survey responses'!$D6>0,'2007 Survey responses'!$D10>0),'2011 Survey responses'!$D6,\"\")","v":""},"",null,null,{"$f":"IF(AND('2011 Survey responses'!$J6>0,'2007 Survey responses'!$H10>0),'2007 Survey responses'!$H10,\"\")","v":""},{"$f":"IF(AND('2011 Survey responses'!$J6>0,'2007 Survey responses'!$H10>0),'2011 Survey responses'!$J6,\"\")","v":""},"",null,null,{"$f":"IF(AND('2011 Survey responses'!$K6>0,'2007 Survey responses'!$J10>0),'2007 Survey responses'!$J10,\"\")","v":""},{"$f":"IF(AND('2011 Survey responses'!$K6>0,'2007 Survey responses'!$J10>0),'2011 Survey responses'!$K6,\"\")","v":""},"",null,null,{"$f":"IF(AND('2011 Survey responses'!$L6>0,'2007 Survey responses'!$I10>0),'2007 Survey responses'!$I10,\"\")","v":""},{"$f":"IF(AND('2011 Survey responses'!$L6>0,'2007 Survey responses'!$I10>0),'2011 Survey responses'!$L6,\"\")","v":""},"",null,null,{"$f":"IF(AND('2011 Survey responses'!$M6>0,'2007 Survey responses'!$K10>0),'2007 Survey responses'!$K10,\"\")","v":""},{"$f":"IF(AND('2011 Survey responses'!$M6>0,'2007 Survey responses'!$K10>0),'2011 Survey responses'!$M6,\"\")","v":""},"",null,null,{"$f":"IF('2007 Survey responses'!$B10>0,IF(AND('2011 Survey responses'!T6>0,'2007 Survey responses'!L10>0),'2007 Survey responses'!L10,\"\"),\"\")","v":""},{"$f":"IF('2007 Survey responses'!$B10>0,IF(AND('2011 Survey responses'!T6>0,'2007 Survey responses'!L10>0),'2011 Survey responses'!T6,\"\"),\"\")","v":""},"",null,null,{"$f":"IF(AND('2011 Survey responses'!$U6>0,'2007 Survey responses'!$M10>0),'2007 Survey responses'!$M10,\"\")","v":""},{"$f":"IF(AND('2011 Survey responses'!$U6>0,'2007 Survey responses'!$M10>0),'2011 Survey responses'!$U6,\"\")","v":""},""]
["Angola",{"$f":"IF(AND('2011 Survey responses'!$F7>0,'2007 Survey responses'!E11>0),'2007 Survey responses'!E11,\"\")","v":2},{"$f":"IF(AND('2011 Survey responses'!$F7>0,'2007 Survey responses'!E11>0),'2011 Survey responses'!$F7,\"\")","v":2},2,null,null,{"$f":"IF(AND('2011 Survey responses'!$G7>0,'2007 Survey responses'!$F11>0),'2007 Survey responses'!$F11,\"\")","v":1},{"$f":"IF(AND('2011 Survey responses'!$G7>0,'2007 Survey responses'!$F11>0),'2011 Survey responses'!$G7,\"\")","v":1},1,null,null,{"$f":"IF(AND('2011 Survey responses'!$H7>0,'2007 Survey responses'!$F11>0),'2007 Survey responses'!$F11,\"\")","v":1},{"$f":"IF(AND('2011 Survey responses'!$H7>0,'2007 Survey responses'!$F11>0),'2011 Survey responses'!$H7,\"\")","v":1},1,null,null,{"$f":"IF(AND(Question_grouping!O7>0,'2007 Survey responses'!$F11>0),'2007 Survey responses'!$F11,\"\")","v":1},{"$f":"IF(AND(Question_grouping!O7>0,'2007 Survey responses'!$F11>0),Question_grouping!O7,\"\")","v":1},1,null,null,{"$f":"IF(AND('2011 Survey responses'!$B7>0,'2007 Survey responses'!$C11>0),'2007 Survey responses'!$C11,\"\")","v":2},{"$f":"IF(AND('2011 Survey responses'!$B7>0,'2007 Survey responses'!$C11>0),'2011 Survey responses'!$B7,\"\")","v":5},4,null,null,{"$f":"IF(AND('2011 Survey responses'!$D7>0,'2007 Survey responses'!$D11>0),'2007 Survey responses'!$D11,\"\")","v":3},{"$f":"IF(AND('2011 Survey responses'!$D7>0,'2007 Survey responses'!$D11>0),'2011 Survey responses'!$D7,\"\")","v":4},4,null,null,{"$f":"IF(AND('2011 Survey responses'!$J7>0,'2007 Survey responses'!$H11>0),'2007 Survey responses'!$H11,\"\")","v":1},{"$f":"IF(AND('2011 Survey responses'!$J7>0,'2007 Survey responses'!$H11>0),'2011 Survey responses'!$J7,\"\")","v":5},4,null,null,{"$f":"IF(AND('2011 Survey responses'!$K7>0,'2007 Survey responses'!$J11>0),'2007 Survey responses'!$J11,\"\")","v":""},{"$f":"IF(AND('2011 Survey responses'!$K7>0,'2007 Survey responses'!$J11>0),'2011 Survey responses'!$K7,\"\")","v":""},"",null,null,{"$f":"IF(AND('2011 Survey responses'!$L7>0,'2007 Survey responses'!$I11>0),'2007 Survey responses'!$I11,\"\")","v":1},{"$f":"IF(AND('2011 Survey responses'!$L7>0,'2007 Survey responses'!$I11>0),'2011 Survey responses'!$L7,\"\")","v":1},1,null,null,{"$f":"IF(AND('2011 Survey responses'!$M7>0,'2007 Survey responses'!$K11>0),'2007 Survey responses'!$K11,\"\")","v":3},{"$f":"IF(AND('2011 Survey responses'!$M7>0,'2007 Survey responses'!$K11>0),'2011 Survey responses'!$M7,\"\")","v":5},4,null,null,{"$f":"IF('2007 Survey responses'!$B11>0,IF(AND('2011 Survey responses'!T7>0,'2007 Survey responses'!L11>0),'2007 Survey responses'!L11,\"\"),\"\")","v":1},{"$f":"IF('2007 Survey responses'!$B11>0,IF(AND('2011 Survey responses'!T7>0,'2007 Survey responses'!L11>0),'2011 Survey responses'!T7,\"\"),\"\")","v":5},4,null,null,{"$f":"IF(AND('2011 Survey responses'!$U7>0,'2007 Survey responses'!$M11>0),'2007 Survey responses'!$M11,\"\")","v":1},{"$f":"IF(AND('2011 Survey responses'!$U7>0,'2007 Survey responses'!$M11>0),'2011 Survey responses'!$U7,\"\")","v":5},4]
["Antigua and Barbuda",{"$f":"IF(AND('2011 Survey responses'!$F8>0,'2007 Survey responses'!E12>0),'2007 Survey responses'!E12,\"\")","v":1},{"$f":"IF(AND('2011 Survey responses'!$F8>0,'2007 Survey responses'!E12>0),'2011 Survey responses'!$F8,\"\")","v":2},2,null,null,{"$f":"IF(AND('2011 Survey responses'!$G8>0,'2007 Survey responses'!$F12>0),'2007 Survey responses'!$F12,\"\")","v":1},{"$f":"IF(AND('2011 Survey responses'!$G8>0,'2007 Survey responses'!$F12>0),'2011 Survey responses'!$G8,\"\")","v":1},1,null,null,{"$f":"IF(AND('2011 Survey responses'!$H8>0,'2007 Survey responses'!$F12>0),'2007 Survey responses'!$F12,\"\")","v":1},{"$f":"IF(AND('2011 Survey responses'!$H8>0,'2007 Survey responses'!$F12>0),'2011 Survey responses'!$H8,\"\")","v":2},2,null,null,{"$f":"IF(AND(Question_grouping!O8>0,'2007 Survey responses'!$F12>0),'2007 Survey responses'!$F12,\"\")","v":1},{"$f":"IF(AND(Question_grouping!O8>0,'2007 Survey responses'!$F12>0),Question_grouping!O8,\"\")","v":2},2,null,null,{"$f":"IF(AND('2011 Survey responses'!$B8>0,'2007 Survey responses'!$C12>0),'2007 Survey responses'!$C12,\"\")","v":1},{"$f":"IF(AND('2011 Survey responses'!$B8>0,'2007 Survey responses'!$C12>0),'2011 Survey responses'!$B8,\"\")","v":3},3,null,null,{"$f":"IF(AND('2011 Survey responses'!$D8>0,'2007 Survey responses'!$D12>0),'2007 Survey responses'!$D12,\"\")","v":2},{"$f":"IF(AND('2011 Survey responses'!$D8>0,'2007 Survey responses'!$D12>0),'2011 Survey responses'!$D8,\"\")","v":6},5,null,null,{"$f":"IF(AND('2011 Survey responses'!$J8>0,'2007 Survey responses'!$H12>0),'2007 Survey responses'!$H12,\"\")","v":1},{"$f":"IF(AND('2011 Survey responses'!$J8>0,'2007 Survey responses'!$H12>0),'2011 Survey responses'!$J8,\"\")","v":1},1,null,null,{"$f":"IF(AND('2011 Survey responses'!$K8>0,'2007 Survey responses'!$J12>0),'2007 Survey responses'!$J12,\"\")","v":""},{"$f":"IF(AND('2011 Survey responses'!$K8>0,'2007 Survey responses'!$J12>0),'2011 Survey responses'!$K8,\"\")","v":""},"",null,null,{"$f":"IF(AND('2011 Survey responses'!$L8>0,'2007 Survey responses'!$I12>0),'2007 Survey responses'!$I12,\"\")","v":1},{"$f":"IF(AND('2011 Survey responses'!$L8>0,'2007 Survey responses'!$I12>0),'2011 Survey responses'!$L8,\"\")","v":4},4,null,null,{"$f":"IF(AND('2011 Survey responses'!$M8>0,'2007 Survey responses'!$K12>0),'2007 Survey responses'!$K12,\"\")","v":""},{"$f":"IF(AND('2011 Survey responses'!$M8>0,'2007 Survey responses'!$K12>0),'2011 Survey responses'!$M8,\"\")","v":""},"",null,null,{"$f":"IF('2007 Survey responses'!$B12>0,IF(AND('2011 Survey responses'!T8>0,'2007 Survey responses'!L12>0),'2007 Survey responses'!L12,\"\"),\"\")","v":""},{"$f":"IF('2007 Survey responses'!$B12>0,IF(AND('2011 Survey responses'!T8>0,'2007 Survey responses'!L12>0),'2011 Survey responses'!T8,\"\"),\"\")","v":""},"",null,null,{"$f":"IF(AND('2011 Survey responses'!$U8>0,'2007 Survey responses'!$M12>0),'2007 Survey responses'!$M12,\"\")","v":""},{"$f":"IF(AND('2011 Survey responses'!$U8>0,'2007 Survey responses'!$M12>0),'2011 Survey responses'!$U8,\"\")","v":""},""]
["Argentina",{"$f":"IF(AND('2011 Survey responses'!$F9>0,'2007 Survey responses'!E13>0),'2007 Survey responses'!E13,\"\")","v":""},{"$f":"IF(AND('2011 Survey responses'!$F9>0,'2007 Survey responses'!E13>0),'2011 Survey responses'!$F9,\"\")","v":""},"",null,null,{"$f":"IF(AND('2011 Survey responses'!$G9>0,'2007 Survey responses'!$F13>0),'2007 Survey responses'!$F13,\"\")","v":""},{"$f":"IF(AND('2011 Survey responses'!$G9>0,'2007 Survey responses'!$F13>0),'2011 Survey responses'!$G9,\"\")","v":""},"",null,null,{"$f":"IF(AND('2011 Survey responses'!$H9>0,'2007 Survey responses'!$F13>0),'2007 Survey responses'!$F13,\"\")","v":""},{"$f":"IF(AND('2011 Survey responses'!$H9>0,'2007 Survey responses'!$F13>0),'2011 Survey responses'!$H9,\"\")","v":""},"",null,null,{"$f":"IF(AND(Question_grouping!O9>0,'2007 Survey responses'!$F13>0),'2007 Survey responses'!$F13,\"\")","v":1},{"$f":"IF(AND(Question_grouping!O9>0,'2007 Survey responses'!$F13>0),Question_grouping!O9,\"\")","v":""},"",null,null,{"$f":"IF(AND('2011 Survey responses'!$B9>0,'2007 Survey responses'!$C13>0),'2007 Survey responses'!$C13,\"\")","v":""},{"$f":"IF(AND('2011 Survey responses'!$B9>0,'2007 Survey responses'!$C13>0),'2011 Survey responses'!$B9,\"\")","v":""},"",null,null,{"$f":"IF(AND('2011 Survey responses'!$D9>0,'2007 Survey responses'!$D13>0),'2007 Survey responses'!$D13,\"\")","v":""},{"$f":"IF(AND('2011 Survey responses'!$D9>0,'2007 Survey responses'!$D13>0),'2011 Survey responses'!$D9,\"\")","v":""},"",null,null,{"$f":"IF(AND('2011 Survey responses'!$J9>0,'2007 Survey responses'!$H13>0),'2007 Survey responses'!$H13,\"\")","v":""},{"$f":"IF(AND('2011 Survey responses'!$J9>0,'2007 Survey responses'!$H13>0),'2011 Survey responses'!$J9,\"\")","v":""},"",null,null,{"$f":"IF(AND('2011 Survey responses'!$K9>0,'2007 Survey responses'!$J13>0),'2007 Survey responses'!$J13,\"\")","v":""},{"$f":"IF(AND('2011 Survey responses'!$K9>0,'2007 Survey responses'!$J13>0),'2011 Survey responses'!$K9,\"\")","v":""},"",null,null,{"$f":"IF(AND('2011 Survey responses'!$L9>0,'2007 Survey responses'!$I13>0),'2007 Survey responses'!$I13,\"\")","v":""},{"$f":"IF(AND('2011 Survey responses'!$L9>0,'2007 Survey responses'!$I13>0),'2011 Survey responses'!$L9,\"\")","v":""},"",null,null,{"$f":"IF(AND('2011 Survey responses'!$M9>0,'2007 Survey responses'!$K13>0),'2007 Survey responses'!$K13,\"\")","v":""},{"$f":"IF(AND('2011 Survey responses'!$M9>0,'2007 Survey responses'!$K13>0),'2011 Survey responses'!$M9,\"\")","v":""},"",null,null,{"$f":"IF('2007 Survey responses'!$B13>0,IF(AND('2011 Survey responses'!T9>0,'2007 Survey responses'!L13>0),'2007 Survey responses'!L13,\"\"),\"\")","v":""},{"$f":"IF('2007 Survey responses'!$B13>0,IF(AND('2011 Survey responses'!T9>0,'2007 Survey responses'!L13>0),'2011 Survey responses'!T9,\"\"),\"\")","v":""},"",null,null,{"$f":"IF(AND('2011 Survey responses'!$U9>0,'2007 Survey responses'!$M13>0),'2007 Survey responses'!$M13,\"\")","v":""},{"$f":"IF(AND('2011 Survey responses'!$U9>0,'2007 Survey responses'!$M13>0),'2011 Survey responses'!$U9,\"\")","v":""},""]
["Armenia",{"$f":"IF(AND('2011 Survey responses'!$F10>0,'2007 Survey responses'!E14>0),'2007 Survey responses'!E14,\"\")","v":2},{"$f":"IF(AND('2011 Survey responses'!$F10>0,'2007 Survey responses'!E14>0),'2011 Survey responses'!$F10,\"\")","v":5},4,null,null,{"$f":"IF(AND('2011 Survey responses'!$G10>0,'2007 Survey responses'!$F14>0),'2007 Survey responses'!$F14,\"\")","v":2},{"$f":"IF(AND('2011 Survey responses'!$G10>0,'2007 Survey responses'!$F14>0),'2011 Survey responses'!$G10,\"\")","v":4},4,null,null,{"$f":"IF(AND('2011 Survey responses'!$H10>0,'2007 Survey responses'!$F14>0),'2007 Survey responses'!$F14,\"\")","v":2},{"$f":"IF(AND('2011 Survey responses'!$H10>0,'2007 Survey responses'!$F14>0),'2011 Survey responses'!$H10,\"\")","v":2},2,null,null,{"$f":"IF(AND(Question_grouping!O10>0,'2007 Survey responses'!$F14>0),'2007 Survey responses'!$F14,\"\")","v":2},{"$f":"IF(AND(Question_grouping!O10>0,'2007 Survey responses'!$F14>0),Question_grouping!O10,\"\")","v":4},4,null,null,{"$f":"IF(AND('2011 Survey responses'!$B10>0,'2007 Survey responses'!$C14>0),'2007 Survey responses'!$C14,\"\")","v":4},{"$f":"IF(AND('2011 Survey responses'!$B10>0,'2007 Survey responses'!$C14>0),'2011 Survey responses'!$B10,\"\")","v":5},4,null,null,{"$f":"IF(AND('2011 Survey responses'!$D10>0,'2007 Survey responses'!$D14>0),'2007 Survey responses'!$D14,\"\")","v":4},{"$f":"IF(AND('2011 Survey responses'!$D10>0,'2007 Survey responses'!$D14>0),'2011 Survey responses'!$D10,\"\")","v":5},4,null,null,{"$f":"IF(AND('2011 Survey responses'!$J10>0,'2007 Survey responses'!$H14>0),'2007 Survey responses'!$H14,\"\")","v":1},{"$f":"IF(AND('2011 Survey responses'!$J10>0,'2007 Survey responses'!$H14>0),'2011 Survey responses'!$J10,\"\")","v":2},2,null,null,{"$f":"IF(AND('2011 Survey responses'!$K10>0,'2007 Survey responses'!$J14>0),'2007 Survey responses'!$J14,\"\")","v":4},{"$f":"IF(AND('2011 Survey responses'!$K10>0,'2007 Survey responses'!$J14>0),'2011 Survey responses'!$K10,\"\")","v":2},2,null,null,{"$f":"IF(AND('2011 Survey responses'!$L10>0,'2007 Survey responses'!$I14>0),'2007 Survey responses'!$I14,\"\")","v":1},{"$f":"IF(AND('2011 Survey responses'!$L10>0,'2007 Survey responses'!$I14>0),'2011 Survey responses'!$L10,\"\")","v":5},4,null,null,{"$f":"IF(AND('2011 Survey responses'!$M10>0,'2007 Survey responses'!$K14>0),'2007 Survey responses'!$K14,\"\")","v":""},{"$f":"IF(AND('2011 Survey responses'!$M10>0,'2007 Survey responses'!$K14>0),'2011 Survey responses'!$M10,\"\")","v":""},"",null,null,{"$f":"IF('2007 Survey responses'!$B14>0,IF(AND('2011 Survey responses'!T10>0,'2007 Survey responses'!L14>0),'2007 Survey responses'!L14,\"\"),\"\")","v":5},{"$f":"IF('2007 Survey responses'!$B14>0,IF(AND('2011 Survey responses'!T10>0,'2007 Survey responses'!L14>0),'2011 Survey responses'!T10,\"\"),\"\")","v":2},2,null,null,{"$f":"IF(AND('2011 Survey responses'!$U10>0,'2007 Survey responses'!$M14>0),'2007 Survey responses'!$M14,\"\")","v":2},{"$f":"IF(AND('2011 Survey responses'!$U10>0,'2007 Survey responses'!$M14>0),'2011 Survey responses'!$U10,\"\")","v":2},2]
["Australia",{"$f":"IF(AND('2011 Survey responses'!$F11>0,'2007 Survey responses'!E15>0),'2007 Survey responses'!E15,\"\")","v":4},{"$f":"IF(AND('2011 Survey responses'!$F11>0,'2007 Survey responses'!E15>0),'2011 Survey responses'!$F11,\"\")","v":5},4,null,null,{"$f":"IF(AND('2011 Survey responses'!$G11>0,'2007 Survey responses'!$F15>0),'2007 Survey responses'!$F15,\"\")","v":4},{"$f":"IF(AND('2011 Survey responses'!$G11>0,'2007 Survey responses'!$F15>0),'2011 Survey responses'!$G11,\"\")","v":1},1,null,null,{"$f":"IF(AND('2011 Survey responses'!$H11>0,'2007 Survey responses'!$F15>0),'2007 Survey responses'!$F15,\"\")","v":4},{"$f":"IF(AND('2011 Survey responses'!$H11>0,'2007 Survey responses'!$F15>0),'2011 Survey responses'!$H11,\"\")","v":5},4,null,null,{"$f":"IF(AND(Question_grouping!O11>0,'2007 Survey responses'!$F15>0),'2007 Survey responses'!$F15,\"\")","v":4},{"$f":"IF(AND(Question_grouping!O11>0,'2007 Survey responses'!$F15>0),Question_grouping!O11,\"\")","v":5},4,null,null,{"$f":"IF(AND('2011 Survey responses'!$B11>0,'2007 Survey responses'!$C15>0),'2007 Survey responses'!$C15,\"\")","v":4},{"$f":"IF(AND('2011 Survey responses'!$B11>0,'2007 Survey responses'!$C15>0),'2011 Survey responses'!$B11,\"\")","v":6},5,null,null,{"$f":"IF(AND('2011 Survey responses'!$D11>0,'2007 Survey responses'!$D15>0),'2007 Survey responses'!$D15,\"\")","v":2},{"$f":"IF(AND('2011 Survey responses'!$D11>0,'2007 Survey responses'!$D15>0),'2011 Survey responses'!$D11,\"\")","v":6},5,null,null,{"$f":"IF(AND('2011 Survey responses'!$J11>0,'2007 Survey responses'!$H15>0),'2007 Survey responses'!$H15,\"\")","v":4},{"$f":"IF(AND('2011 Survey responses'!$J11>0,'2007 Survey responses'!$H15>0),'2011 Survey responses'!$J11,\"\")","v":1},1,null,null,{"$f":"IF(AND('2011 Survey responses'!$K11>0,'2007 Survey responses'!$J15>0),'2007 Survey responses'!$J15,\"\")","v":1},{"$f":"IF(AND('2011 Survey responses'!$K11>0,'2007 Survey responses'!$J15>0),'2011 Survey responses'!$K11,\"\")","v":6},5,null,null,{"$f":"IF(AND('2011 Survey responses'!$L11>0,'2007 Survey responses'!$I15>0),'2007 Survey responses'!$I15,\"\")","v":1},{"$f":"IF(AND('2011 Survey responses'!$L11>0,'2007 Survey responses'!$I15>0),'2011 Survey responses'!$L11,\"\")","v":1},1,null,null,{"$f":"IF(AND('2011 Survey responses'!$M11>0,'2007 Survey responses'!$K15>0),'2007 Survey responses'!$K15,\"\")","v":4},{"$f":"IF(AND('2011 Survey responses'!$M11>0,'2007 Survey responses'!$K15>0),'2011 Survey responses'!$M11,\"\")","v":5},4,null,null,{"$f":"IF('2007 Survey responses'!$B15>0,IF(AND('2011 Survey responses'!T11>0,'2007 Survey responses'!L15>0),'2007 Survey responses'!L15,\"\"),\"\")","v":1},{"$f":"IF('2007 Survey responses'!$B15>0,IF(AND('2011 Survey responses'!T11>0,'2007 Survey responses'!L15>0),'2011 Survey responses'!T11,\"\"),\"\")","v":1},1,null,null,{"$f":"IF(AND('2011 Survey responses'!$U11>0,'2007 Survey responses'!$M15>0),'2007 Survey responses'!$M15,\"\")","v":1},{"$f":"IF(AND('2011 Survey responses'!$U11>0,'2007 Survey responses'!$M15>0),'2011 Survey responses'!$U11,\"\")","v":1},1]
["Austria",{"$f":"IF(AND('2011 Survey responses'!$F12>0,'2007 Survey responses'!E16>0),'2007 Survey responses'!E16,\"\")","v":""},{"$f":"IF(AND('2011 Survey responses'!$F12>0,'2007 Survey responses'!E16>0),'2011 Survey responses'!$F12,\"\")","v":""},"",null,null,{"$f":"IF(AND('2011 Survey responses'!$G12>0,'2007 Survey responses'!$F16>0),'2007 Survey responses'!$F16,\"\")","v":""},{"$f":"IF(AND('2011 Survey responses'!$G12>0,'2007 Survey responses'!$F16>0),'2011 Survey responses'!$G12,\"\")","v":""},"",null,null,{"$f":"IF(AND('2011 Survey responses'!$H12>0,'2007 Survey responses'!$F16>0),'2007 Survey responses'!$F16,\"\")","v":""},{"$f":"IF(AND('2011 Survey responses'!$H12>0,'2007 Survey responses'!$F16>0),'2011 Survey responses'!$H12,\"\")","v":""},"",null,null,{"$f":"IF(AND(Question_grouping!O12>0,'2007 Survey responses'!$F16>0),'2007 Survey responses'!$F16,\"\")","v":1},{"$f":"IF(AND(Question_grouping!O12>0,'2007 Survey responses'!$F16>0),Question_grouping!O12,\"\")","v":""},"",null,null,{"$f":"IF(AND('2011 Survey responses'!$B12>0,'2007 Survey responses'!$C16>0),'2007 Survey responses'!$C16,\"\")","v":""},{"$f":"IF(AND('2011 Survey responses'!$B12>0,'2007 Survey responses'!$C16>0),'2011 Survey responses'!$B12,\"\")","v":""},"",null,null,{"$f":"IF(AND('2011 Survey responses'!$D12>0,'2007 Survey responses'!$D16>0),'2007 Survey responses'!$D16,\"\")","v":""},{"$f":"IF(AND('2011 Survey responses'!$D12>0,'2007 Survey responses'!$D16>0),'2011 Survey responses'!$D12,\"\")","v":""},"",null,null,{"$f":"IF(AND('2011 Survey responses'!$J12>0,'2007 Survey responses'!$H16>0),'2007 Survey responses'!$H16,\"\")","v":""},{"$f":"IF(AND('2011 Survey responses'!$J12>0,'2007 Survey responses'!$H16>0),'2011 Survey responses'!$J12,\"\")","v":""},"",null,null,{"$f":"IF(AND('2011 Survey responses'!$K12>0,'2007 Survey responses'!$J16>0),'2007 Survey responses'!$J16,\"\")","v":""},{"$f":"IF(AND('2011 Survey responses'!$K12>0,'2007 Survey responses'!$J16>0),'2011 Survey responses'!$K12,\"\")","v":""},"",null,null,{"$f":"IF(AND('2011 Survey responses'!$L12>0,'2007 Survey responses'!$I16>0),'2007 Survey responses'!$I16,\"\")","v":""},{"$f":"IF(AND('2011 Survey responses'!$L12>0,'2007 Survey responses'!$I16>0),'2011 Survey responses'!$L12,\"\")","v":""},"",null,null,{"$f":"IF(AND('2011 Survey responses'!$M12>0,'2007 Survey responses'!$K16>0),'2007 Survey responses'!$K16,\"\")","v":""},{"$f":"IF(AND('2011 Survey responses'!$M12>0,'2007 Survey responses'!$K16>0),'2011 Survey responses'!$M12,\"\")","v":""},"",null,null,{"$f":"IF('2007 Survey responses'!$B16>0,IF(AND('2011 Survey responses'!T12>0,'2007 Survey responses'!L16>0),'2007 Survey responses'!L16,\"\"),\"\")","v":""},{"$f":"IF('2007 Survey responses'!$B16>0,IF(AND('2011 Survey responses'!T12>0,'2007 Survey responses'!L16>0),'2011 Survey responses'!T12,\"\"),\"\")","v":""},"",null,null,{"$f":"IF(AND('2011 Survey responses'!$U12>0,'2007 Survey responses'!$M16>0),'2007 Survey responses'!$M16,\"\")","v":""},{"$f":"IF(AND('2011 Survey responses'!$U12>0,'2007 Survey responses'!$M16>0),'2011 Survey responses'!$U12,\"\")","v":""},""]
["Azerbaijan",{"$f":"IF(AND('2011 Survey responses'!$F13>0,'2007 Survey responses'!E17>0),'2007 Survey responses'!E17,\"\")","v":1},{"$f":"IF(AND('2011 Survey responses'!$F13>0,'2007 Survey responses'!E17>0),'2011 Survey responses'!$F13,\"\")","v":4},4,null,null,{"$f":"IF(AND('2011 Survey responses'!$G13>0,'2007 Survey responses'!$F17>0),'2007 Survey responses'!$F17,\"\")","v":1},{"$f":"IF(AND('2011 Survey responses'!$G13>0,'2007 Survey responses'!$F17>0),'2011 Survey responses'!$G13,\"\")","v":2},2,null,null,{"$f":"IF(AND('2011 Survey responses'!$H13>0,'2007 Survey responses'!$F17>0),'2007 Survey responses'!$F17,\"\")","v":1},{"$f":"IF(AND('2011 Survey responses'!$H13>0,'2007 Survey responses'!$F17>0),'2011 Survey responses'!$H13,\"\")","v":2},2,null,null,{"$f":"IF(AND(Question_grouping!O13>0,'2007 Survey responses'!$F17>0),'2007 Survey responses'!$F17,\"\")","v":1},{"$f":"IF(AND(Question_grouping!O13>0,'2007 Survey responses'!$F17>0),Question_grouping!O13,\"\")","v":2},2,null,null,{"$f":"IF(AND('2011 Survey responses'!$B13>0,'2007 Survey responses'!$C17>0),'2007 Survey responses'!$C17,\"\")","v":1},{"$f":"IF(AND('2011 Survey responses'!$B13>0,'2007 Survey responses'!$C17>0),'2011 Survey responses'!$B13,\"\")","v":4},4,null,null,{"$f":"IF(AND('2011 Survey responses'!$D13>0,'2007 Survey responses'!$D17>0),'2007 Survey responses'!$D17,\"\")","v":5},{"$f":"IF(AND('2011 Survey responses'!$D13>0,'2007 Survey responses'!$D17>0),'2011 Survey responses'!$D13,\"\")","v":4},4,null,null,{"$f":"IF(AND('2011 Survey responses'!$J13>0,'2007 Survey responses'!$H17>0),'2007 Survey responses'!$H17,\"\")","v":4},{"$f":"IF(AND('2011 Survey responses'!$J13>0,'2007 Survey responses'!$H17>0),'2011 Survey responses'!$J13,\"\")","v":4},4,null,null,{"$f":"IF(AND('2011 Survey responses'!$K13>0,'2007 Survey responses'!$J17>0),'2007 Survey responses'!$J17,\"\")","v":2},{"$f":"IF(AND('2011 Survey responses'!$K13>0,'2007 Survey responses'!$J17>0),'2011 Survey responses'!$K13,\"\")","v":4},4,null,null,{"$f":"IF(AND('2011 Survey responses'!$L13>0,'2007 Survey responses'!$I17>0),'2007 Survey responses'!$I17,\"\")","v":2},{"$f":"IF(AND('2011 Survey responses'!$L13>0,'2007 Survey responses'!$I17>0),'2011 Survey responses'!$L13,\"\")","v":4},4,null,null,{"$f":"IF(AND('2011 Survey responses'!$M13>0,'2007 Survey responses'!$K17>0),'2007 Survey responses'!$K17,\"\")","v":4},{"$f":"IF(AND('2011 Survey responses'!$M13>0,'2007 Survey responses'!$K17>0),'2011 Survey responses'!$M13,\"\")","v":4},4,null,null,{"$f":"IF('2007 Survey responses'!$B17>0,IF(AND('2011 Survey responses'!T13>0,'2007 Survey responses'!L17>0),'2007 Survey responses'!L17,\"\"),\"\")","v":1},{"$f":"IF('2007 Survey responses'!$B17>0,IF(AND('2011 Survey responses'!T13>0,'2007 Survey responses'!L17>0),'2011 Survey responses'!T13,\"\"),\"\")","v":2},2,null,null,{"$f":"IF(AND('2011 Survey responses'!$U13>0,'2007 Survey responses'!$M17>0),'2007 Survey responses'!$M17,\"\")","v":1},{"$f":"IF(AND('2011 Survey responses'!$U13>0,'2007 Survey responses'!$M17>0),'2011 Survey responses'!$U13,\"\")","v":4},4]
["Bahamas",{"$f":"IF(AND('2011 Survey responses'!$F14>0,'2007 Survey responses'!E18>0),'2007 Survey responses'!E18,\"\")","v":2},{"$f":"IF(AND('2011 Survey responses'!$F14>0,'2007 Survey responses'!E18>0),'2011 Survey responses'!$F14,\"\")","v":4},4,null,null,{"$f":"IF(AND('2011 Survey responses'!$G14>0,'2007 Survey responses'!$F18>0),'2007 Survey responses'!$F18,\"\")","v":1},{"$f":"IF(AND('2011 Survey responses'!$G14>0,'2007 Survey responses'!$F18>0),'2011 Survey responses'!$G14,\"\")","v":4},4,null,null,{"$f":"IF(AND('2011 Survey responses'!$H14>0,'2007 Survey responses'!$F18>0),'2007 Survey responses'!$F18,\"\")","v":1},{"$f":"IF(AND('2011 Survey responses'!$H14>0,'2007 Survey responses'!$F18>0),'2011 Survey responses'!$H14,\"\")","v":4},4,null,null,{"$f":"IF(AND(Question_grouping!O14>0,'2007 Survey responses'!$F18>0),'2007 Survey responses'!$F18,\"\")","v":1},{"$f":"IF(AND(Question_grouping!O14>0,'2007 Survey responses'!$F18>0),Question_grouping!O14,\"\")","v":4},4,null,null,{"$f":"IF(AND('2011 Survey responses'!$B14>0,'2007 Survey responses'!$C18>0),'2007 Survey responses'!$C18,\"\")","v":2},{"$f":"IF(AND('2011 Survey responses'!$B14>0,'2007 Survey responses'!$C18>0),'2011 Survey responses'!$B14,\"\")","v":4},4,null,null,{"$f":"IF(AND('2011 Survey responses'!$D14>0,'2007 Survey responses'!$D18>0),'2007 Survey responses'!$D18,\"\")","v":3},{"$f":"IF(AND('2011 Survey responses'!$D14>0,'2007 Survey responses'!$D18>0),'2011 Survey responses'!$D14,\"\")","v":4},4,null,null,{"$f":"IF(AND('2011 Survey responses'!$J14>0,'2007 Survey responses'!$H18>0),'2007 Survey responses'!$H18,\"\")","v":1},{"$f":"IF(AND('2011 Survey responses'!$J14>0,'2007 Survey responses'!$H18>0),'2011 Survey responses'!$J14,\"\")","v":1},1,null,null,{"$f":"IF(AND('2011 Survey responses'!$K14>0,'2007 Survey responses'!$J18>0),'2007 Survey responses'!$J18,\"\")","v":""},{"$f":"IF(AND('2011 Survey responses'!$K14>0,'2007 Survey responses'!$J18>0),'2011 Survey responses'!$K14,\"\")","v":""},"",null,null,{"$f":"IF(AND('2011 Survey responses'!$L14>0,'2007 Survey responses'!$I18>0),'2007 Survey responses'!$I18,\"\")","v":3},{"$f":"IF(AND('2011 Survey responses'!$L14>0,'2007 Survey responses'!$I18>0),'2011 Survey responses'!$L14,\"\")","v":3},3,null,null,{"$f":"IF(AND('2011 Survey responses'!$M14>0,'2007 Survey responses'!$K18>0),'2007 Survey responses'!$K18,\"\")","v":3},{"$f":"IF(AND('2011 Survey responses'!$M14>0,'2007 Survey responses'!$K18>0),'2011 Survey responses'!$M14,\"\")","v":4},4,null,null,{"$f":"IF('2007 Survey responses'!$B18>0,IF(AND('2011 Survey responses'!T14>0,'2007 Survey responses'!L18>0),'2007 Survey responses'!L18,\"\"),\"\")","v":3},{"$f":"IF('2007 Survey responses'!$B18>0,IF(AND('2011 Survey responses'!T14>0,'2007 Survey responses'!L18>0),'2011 Survey responses'!T14,\"\"),\"\")","v":5},4,null,null,{"$f":"IF(AND('2011 Survey responses'!$U14>0,'2007 Survey responses'!$M18>0),'2007 Survey responses'!$M18,\"\")","v":3},{"$f":"IF(AND('2011 Survey responses'!$U14>0,'2007 Survey responses'!$M18>0),'2011 Survey responses'!$U14,\"\")","v":1},1]
["Bahrain",{"$f":"IF(AND('2011 Survey responses'!$F15>0,'2007 Survey responses'!E19>0),'2007 Survey responses'!E19,\"\")","v":""},{"$f":"IF(AND('2011 Survey responses'!$F15>0,'2007 Survey responses'!E19>0),'2011 Survey responses'!$F15,\"\")","v":""},"",null,null,{"$f":"IF(AND('2011 Survey responses'!$G15>0,'2007 Survey responses'!$F19>0),'2007 Survey responses'!$F19,\"\")","v":""},{"$f":"IF(AND('2011 Survey responses'!$G15>0,'2007 Survey responses'!$F19>0),'2011 Survey responses'!$G15,\"\")","v":""},"",null,null,{"$f":"IF(AND('2011 Survey responses'!$H15>0,'2007 Survey responses'!$F19>0),'2007 Survey responses'!$F19,\"\")","v":""},{"$f":"IF(AND('2011 Survey responses'!$H15>0,'2007 Survey responses'!$F19>0),'2011 Survey responses'!$H15,\"\")","v":""},"",null,null,{"$f":"IF(AND(Question_grouping!O15>0,'2007 Survey responses'!$F19>0),'2007 Survey responses'!$F19,\"\")","v":""},{"$f":"IF(AND(Question_grouping!O15>0,'2007 Survey responses'!$F19>0),Question_grouping!O15,\"\")","v":""},"",null,null,{"$f":"IF(AND('2011 Survey responses'!$B15>0,'2007 Survey responses'!$C19>0),'2007 Survey responses'!$C19,\"\")","v":""},{"$f":"IF(AND('2011 Survey responses'!$B15>0,'2007 Survey responses'!$C19>0),'2011 Survey responses'!$B15,\"\")","v":""},"",null,null,{"$f":"IF(AND('2011 Survey responses'!$D15>0,'2007 Survey responses'!$D19>0),'2007 Survey responses'!$D19,\"\")","v":""},{"$f":"IF(AND('2011 Survey responses'!$D15>0,'2007 Survey responses'!$D19>0),'2011 Survey responses'!$D15,\"\")","v":""},"",null,null,{"$f":"IF(AND('2011 Survey responses'!$J15>0,'2007 Survey responses'!$H19>0),'2007 Survey responses'!$H19,\"\")","v":""},{"$f":"IF(AND('2011 Survey responses'!$J15>0,'2007 Survey responses'!$H19>0),'2011 Survey responses'!$J15,\"\")","v":""},"",null,null,{"$f":"IF(AND('2011 Survey responses'!$K15>0,'2007 Survey responses'!$J19>0),'2007 Survey responses'!$J19,\"\")","v":""},{"$f":"IF(AND('2011 Survey responses'!$K15>0,'2007 Survey responses'!$J19>0),'2011 Survey responses'!$K15,\"\")","v":""},"",null,null,{"$f":"IF(AND('2011 Survey responses'!$L15>0,'2007 Survey responses'!$I19>0),'2007 Survey responses'!$I19,\"\")","v":""},{"$f":"IF(AND('2011 Survey responses'!$L15>0,'2007 Survey responses'!$I19>0),'2011 Survey responses'!$L15,\"\")","v":""},"",null,null,{"$f":"IF(AND('2011 Survey responses'!$M15>0,'2007 Survey responses'!$K19>0),'2007 Survey responses'!$K19,\"\")","v":""},{"$f":"IF(AND('2011 Survey responses'!$M15>0,'2007 Survey responses'!$K19>0),'2011 Survey responses'!$M15,\"\")","v":""},"",null,null,{"$f":"IF('2007 Survey responses'!$B19>0,IF(AND('2011 Survey responses'!T15>0,'2007 Survey responses'!L19>0),'2007 Survey responses'!L19,\"\"),\"\")","v":""},{"$f":"IF('2007 Survey responses'!$B19>0,IF(AND('2011 Survey responses'!T15>0,'2007 Survey responses'!L19>0),'2011 Survey responses'!T15,\"\"),\"\")","v":""},"",null,null,{"$f":"IF(AND('2011 Survey responses'!$U15>0,'2007 Survey responses'!$M19>0),'2007 Survey responses'!$M19,\"\")","v":""},{"$f":"IF(AND('2011 Survey responses'!$U15>0,'2007 Survey responses'!$M19>0),'2011 Survey responses'!$U15,\"\")","v":""},""]
["Bangladesh",{"$f":"IF(AND('2011 Survey responses'!$F16>0,'2007 Survey responses'!E20>0),'2007 Survey responses'!E20,\"\")","v":""},{"$f":"IF(AND('2011 Survey responses'!$F16>0,'2007 Survey responses'!E20>0),'2011 Survey responses'!$F16,\"\")","v":""},"",null,null,{"$f":"IF(AND('2011 Survey responses'!$G16>0,'2007 Survey responses'!$F20>0),'2007 Survey responses'!$F20,\"\")","v":""},{"$f":"IF(AND('2011 Survey responses'!$G16>0,'2007 Survey responses'!$F20>0),'2011 Survey responses'!$G16,\"\")","v":""},"",null,null,{"$f":"IF(AND('2011 Survey responses'!$H16>0,'2007 Survey responses'!$F20>0),'2007 Survey responses'!$F20,\"\")","v":""},{"$f":"IF(AND('2011 Survey responses'!$H16>0,'2007 Survey responses'!$F20>0),'2011 Survey responses'!$H16,\"\")","v":""},"",null,null,{"$f":"IF(AND(Question_grouping!O16>0,'2007 Survey responses'!$F20>0),'2007 Survey responses'!$F20,\"\")","v":""},{"$f":"IF(AND(Question_grouping!O16>0,'2007 Survey responses'!$F20>0),Question_grouping!O16,\"\")","v":""},"",null,null,{"$f":"IF(AND('2011 Survey responses'!$B16>0,'2007 Survey responses'!$C20>0),'2007 Survey responses'!$C20,\"\")","v":""},{"$f":"IF(AND('2011 Survey responses'!$B16>0,'2007 Survey responses'!$C20>0),'2011 Survey responses'!$B16,\"\")","v":""},"",null,null,{"$f":"IF(AND('2011 Survey responses'!$D16>0,'2007 Survey responses'!$D20>0),'2007 Survey responses'!$D20,\"\")","v":""},{"$f":"IF(AND('2011 Survey responses'!$D16>0,'2007 Survey responses'!$D20>0),'2011 Survey responses'!$D16,\"\")","v":""},"",null,null,{"$f":"IF(AND('2011 Survey responses'!$J16>0,'2007 Survey responses'!$H20>0),'2007 Survey responses'!$H20,\"\")","v":""},{"$f":"IF(AND('2011 Survey responses'!$J16>0,'2007 Survey responses'!$H20>0),'2011 Survey responses'!$J16,\"\")","v":""},"",null,null,{"$f":"IF(AND('2011 Survey responses'!$K16>0,'2007 Survey responses'!$J20>0),'2007 Survey responses'!$J20,\"\")","v":""},{"$f":"IF(AND('2011 Survey responses'!$K16>0,'2007 Survey responses'!$J20>0),'2011 Survey responses'!$K16,\"\")","v":""},"",null,null,{"$f":"IF(AND('2011 Survey responses'!$L16>0,'2007 Survey responses'!$I20>0),'2007 Survey responses'!$I20,\"\")","v":""},{"$f":"IF(AND('2011 Survey responses'!$L16>0,'2007 Survey responses'!$I20>0),'2011 Survey responses'!$L16,\"\")","v":""},"",null,null,{"$f":"IF(AND('2011 Survey responses'!$M16>0,'2007 Survey responses'!$K20>0),'2007 Survey responses'!$K20,\"\")","v":""},{"$f":"IF(AND('2011 Survey responses'!$M16>0,'2007 Survey responses'!$K20>0),'2011 Survey responses'!$M16,\"\")","v":""},"",null,null,{"$f":"IF('2007 Survey responses'!$B20>0,IF(AND('2011 Survey responses'!T16>0,'2007 Survey responses'!L20>0),'2007 Survey responses'!L20,\"\"),\"\")","v":""},{"$f":"IF('2007 Survey responses'!$B20>0,IF(AND('2011 Survey responses'!T16>0,'2007 Survey responses'!L20>0),'2011 Survey responses'!T16,\"\"),\"\")","v":""},"",null,null,{"$f":"IF(AND('2011 Survey responses'!$U16>0,'2007 Survey responses'!$M20>0),'2007 Survey responses'!$M20,\"\")","v":""},{"$f":"IF(AND('2011 Survey responses'!$U16>0,'2007 Survey responses'!$M20>0),'2011 Survey responses'!$U16,\"\")","v":""},""]
["Barbados",{"$f":"IF(AND('2011 Survey responses'!$F17>0,'2007 Survey responses'!E21>0),'2007 Survey responses'!E21,\"\")","v":4},{"$f":"IF(AND('2011 Survey responses'!$F17>0,'2007 Survey responses'!E21>0),'2011 Survey responses'!$F17,\"\")","v":2},2,null,null,{"$f":"IF(AND('2011 Survey responses'!$G17>0,'2007 Survey responses'!$F21>0),'2007 Survey responses'!$F21,\"\")","v":4},{"$f":"IF(AND('2011 Survey responses'!$G17>0,'2007 Survey responses'!$F21>0),'2011 Survey responses'!$G17,\"\")","v":2},2,null,null,{"$f":"IF(AND('2011 Survey responses'!$H17>0,'2007 Survey responses'!$F21>0),'2007 Survey responses'!$F21,\"\")","v":4},{"$f":"IF(AND('2011 Survey responses'!$H17>0,'2007 Survey responses'!$F21>0),'2011 Survey responses'!$H17,\"\")","v":2},2,null,null,{"$f":"IF(AND(Question_grouping!O17>0,'2007 Survey responses'!$F21>0),'2007 Survey responses'!$F21,\"\")","v":4},{"$f":"IF(AND(Question_grouping!O17>0,'2007 Survey responses'!$F21>0),Question_grouping!O17,\"\")","v":2},2,null,null,{"$f":"IF(AND('2011 Survey responses'!$B17>0,'2007 Survey responses'!$C21>0),'2007 Survey responses'!$C21,\"\")","v":4},{"$f":"IF(AND('2011 Survey responses'!$B17>0,'2007 Survey responses'!$C21>0),'2011 Survey responses'!$B17,\"\")","v":5},4,null,null,{"$f":"IF(AND('2011 Survey responses'!$D17>0,'2007 Survey responses'!$D21>0),'2007 Survey responses'!$D21,\"\")","v":4},{"$f":"IF(AND('2011 Survey responses'!$D17>0,'2007 Survey responses'!$D21>0),'2011 Survey responses'!$D17,\"\")","v":2},2,null,null,{"$f":"IF(AND('2011 Survey responses'!$J17>0,'2007 Survey responses'!$H21>0),'2007 Survey responses'!$H21,\"\")","v":""},{"$f":"IF(AND('2011 Survey responses'!$J17>0,'2007 Survey responses'!$H21>0),'2011 Survey responses'!$J17,\"\")","v":""},"",null,null,{"$f":"IF(AND('2011 Survey responses'!$K17>0,'2007 Survey responses'!$J21>0),'2007 Survey responses'!$J21,\"\")","v":4},{"$f":"IF(AND('2011 Survey responses'!$K17>0,'2007 Survey responses'!$J21>0),'2011 Survey responses'!$K17,\"\")","v":4},4,null,null,{"$f":"IF(AND('2011 Survey responses'!$L17>0,'2007 Survey responses'!$I21>0),'2007 Survey responses'!$I21,\"\")","v":4},{"$f":"IF(AND('2011 Survey responses'!$L17>0,'2007 Survey responses'!$I21>0),'2011 Survey responses'!$L17,\"\")","v":4},4,null,null,{"$f":"IF(AND('2011 Survey responses'!$M17>0,'2007 Survey responses'!$K21>0),'2007 Survey responses'!$K21,\"\")","v":3},{"$f":"IF(AND('2011 Survey responses'!$M17>0,'2007 Survey responses'!$K21>0),'2011 Survey responses'!$M17,\"\")","v":3},3,null,null,{"$f":"IF('2007 Survey responses'!$B21>0,IF(AND('2011 Survey responses'!T17>0,'2007 Survey responses'!L21>0),'2007 Survey responses'!L21,\"\"),\"\")","v":""},{"$f":"IF('2007 Survey responses'!$B21>0,IF(AND('2011 Survey responses'!T17>0,'2007 Survey responses'!L21>0),'2011 Survey responses'!T17,\"\"),\"\")","v":""},"",null,null,{"$f":"IF(AND('2011 Survey responses'!$U17>0,'2007 Survey responses'!$M21>0),'2007 Survey responses'!$M21,\"\")","v":1},{"$f":"IF(AND('2011 Survey responses'!$U17>0,'2007 Survey responses'!$M21>0),'2011 Survey responses'!$U17,\"\")","v":1},1]
["Belarus",{"$f":"IF(AND('2011 Survey responses'!$F18>0,'2007 Survey responses'!E22>0),'2007 Survey responses'!E22,\"\")","v":""},{"$f":"IF(AND('2011 Survey responses'!$F18>0,'2007 Survey responses'!E22>0),'2011 Survey responses'!$F18,\"\")","v":""},"",null,null,{"$f":"IF(AND('2011 Survey responses'!$G18>0,'2007 Survey responses'!$F22>0),'2007 Survey responses'!$F22,\"\")","v":""},{"$f":"IF(AND('2011 Survey responses'!$G18>0,'2007 Survey responses'!$F22>0),'2011 Survey responses'!$G18,\"\")","v":""},"",null,null,{"$f":"IF(AND('2011 Survey responses'!$H18>0,'2007 Survey responses'!$F22>0),'2007 Survey responses'!$F22,\"\")","v":""},{"$f":"IF(AND('2011 Survey responses'!$H18>0,'2007 Survey responses'!$F22>0),'2011 Survey responses'!$H18,\"\")","v":""},"",null,null,{"$f":"IF(AND(Question_grouping!O18>0,'2007 Survey responses'!$F22>0),'2007 Survey responses'!$F22,\"\")","v":""},{"$f":"IF(AND(Question_grouping!O18>0,'2007 Survey responses'!$F22>0),Question_grouping!O18,\"\")","v":""},"",null,null,{"$f":"IF(AND('2011 Survey responses'!$B18>0,'2007 Survey responses'!$C22>0),'2007 Survey responses'!$C22,\"\")","v":""},{"$f":"IF(AND('2011 Survey responses'!$B18>0,'2007 Survey responses'!$C22>0),'2011 Survey responses'!$B18,\"\")","v":""},"",null,null,{"$f":"IF(AND('2011 Survey responses'!$D18>0,'2007 Survey responses'!$D22>0),'2007 Survey responses'!$D22,\"\")","v":""},{"$f":"IF(AND('2011 Survey responses'!$D18>0,'2007 Survey responses'!$D22>0),'2011 Survey responses'!$D18,\"\")","v":""},"",null,null,{"$f":"IF(AND('2011 Survey responses'!$J18>0,'2007 Survey responses'!$H22>0),'2007 Survey responses'!$H22,\"\")","v":""},{"$f":"IF(AND('2011 Survey responses'!$J18>0,'2007 Survey responses'!$H22>0),'2011 Survey responses'!$J18,\"\")","v":""},"",null,null,{"$f":"IF(AND('2011 Survey responses'!$K18>0,'2007 Survey responses'!$J22>0),'2007 Survey responses'!$J22,\"\")","v":""},{"$f":"IF(AND('2011 Survey responses'!$K18>0,'2007 Survey responses'!$J22>0),'2011 Survey responses'!$K18,\"\")","v":""},"",null,null,{"$f":"IF(AND('2011 Survey responses'!$L18>0,'2007 Survey responses'!$I22>0),'2007 Survey responses'!$I22,\"\")","v":""},{"$f":"IF(AND('2011 Survey responses'!$L18>0,'2007 Survey responses'!$I22>0),'2011 Survey responses'!$L18,\"\")","v":""},"",null,null,{"$f":"IF(AND('2011 Survey responses'!$M18>0,'2007 Survey responses'!$K22>0),'2007 Survey responses'!$K22,\"\")","v":""},{"$f":"IF(AND('2011 Survey responses'!$M18>0,'2007 Survey responses'!$K22>0),'2011 Survey responses'!$M18,\"\")","v":""},"",null,null,{"$f":"IF('2007 Survey responses'!$B22>0,IF(AND('2011 Survey responses'!T18>0,'2007 Survey responses'!L22>0),'2007 Survey responses'!L22,\"\"),\"\")","v":""},{"$f":"IF('2007 Survey responses'!$B22>0,IF(AND('2011 Survey responses'!T18>0,'2007 Survey responses'!L22>0),'2011 Survey responses'!T18,\"\"),\"\")","v":""},"",null,null,{"$f":"IF(AND('2011 Survey responses'!$U18>0,'2007 Survey responses'!$M22>0),'2007 Survey responses'!$M22,\"\")","v":""},{"$f":"IF(AND('2011 Survey responses'!$U18>0,'2007 Survey responses'!$M22>0),'2011 Survey responses'!$U18,\"\")","v":""},""]
["Belgium",{"$f":"IF(AND('2011 Survey responses'!$F19>0,'2007 Survey responses'!E23>0),'2007 Survey responses'!E23,\"\")","v":""},{"$f":"IF(AND('2011 Survey responses'!$F19>0,'2007 Survey responses'!E23>0),'2011 Survey responses'!$F19,\"\")","v":""},"",null,null,{"$f":"IF(AND('2011 Survey responses'!$G19>0,'2007 Survey responses'!$F23>0),'2007 Survey responses'!$F23,\"\")","v":""},{"$f":"IF(AND('2011 Survey responses'!$G19>0,'2007 Survey responses'!$F23>0),'2011 Survey responses'!$G19,\"\")","v":""},"",null,null,{"$f":"IF(AND('2011 Survey responses'!$H19>0,'2007 Survey responses'!$F23>0),'2007 Survey responses'!$F23,\"\")","v":""},{"$f":"IF(AND('2011 Survey responses'!$H19>0,'2007 Survey responses'!$F23>0),'2011 Survey responses'!$H19,\"\")","v":""},"",null,null,{"$f":"IF(AND(Question_grouping!O19>0,'2007 Survey responses'!$F23>0),'2007 Survey responses'!$F23,\"\")","v":""},{"$f":"IF(AND(Question_grouping!O19>0,'2007 Survey responses'!$F23>0),Question_grouping!O19,\"\")","v":""},"",null,null,{"$f":"IF(AND('2011 Survey responses'!$B19>0,'2007 Survey responses'!$C23>0),'2007 Survey responses'!$C23,\"\")","v":""},{"$f":"IF(AND('2011 Survey responses'!$B19>0,'2007 Survey responses'!$C23>0),'2011 Survey responses'!$B19,\"\")","v":""},"",null,null,{"$f":"IF(AND('2011 Survey responses'!$D19>0,'2007 Survey responses'!$D23>0),'2007 Survey responses'!$D23,\"\")","v":""},{"$f":"IF(AND('2011 Survey responses'!$D19>0,'2007 Survey responses'!$D23>0),'2011 Survey responses'!$D19,\"\")","v":""},"",null,null,{"$f":"IF(AND('2011 Survey responses'!$J19>0,'2007 Survey responses'!$H23>0),'2007 Survey responses'!$H23,\"\")","v":""},{"$f":"IF(AND('2011 Survey responses'!$J19>0,'2007 Survey responses'!$H23>0),'2011 Survey responses'!$J19,\"\")","v":""},"",null,null,{"$f":"IF(AND('2011 Survey responses'!$K19>0,'2007 Survey responses'!$J23>0),'2007 Survey responses'!$J23,\"\")","v":""},{"$f":"IF(AND('2011 Survey responses'!$K19>0,'2007 Survey responses'!$J23>0),'2011 Survey responses'!$K19,\"\")","v":""},"",null,null,{"$f":"IF(AND('2011 Survey responses'!$L19>0,'2007 Survey responses'!$I23>0),'2007 Survey responses'!$I23,\"\")","v":""},{"$f":"IF(AND('2011 Survey responses'!$L19>0,'2007 Survey responses'!$I23>0),'2011 Survey responses'!$L19,\"\")","v":""},"",null,null,{"$f":"IF(AND('2011 Survey responses'!$M19>0,'2007 Survey responses'!$K23>0),'2007 Survey responses'!$K23,\"\")","v":""},{"$f":"IF(AND('2011 Survey responses'!$M19>0,'2007 Survey responses'!$K23>0),'2011 Survey responses'!$M19,\"\")","v":""},"",null,null,{"$f":"IF('2007 Survey responses'!$B23>0,IF(AND('2011 Survey responses'!T19>0,'2007 Survey responses'!L23>0),'2007 Survey responses'!L23,\"\"),\"\")","v":""},{"$f":"IF('2007 Survey responses'!$B23>0,IF(AND('2011 Survey responses'!T19>0,'2007 Survey responses'!L23>0),'2011 Survey responses'!T19,\"\"),\"\")","v":""},"",null,null,{"$f":"IF(AND('2011 Survey responses'!$U19>0,'2007 Survey responses'!$M23>0),'2007 Survey responses'!$M23,\"\")","v":""},{"$f":"IF(AND('2011 Survey responses'!$U19>0,'2007 Survey responses'!$M23>0),'2011 Survey responses'!$U19,\"\")","v":""},""]
["Belize",{"$f":"IF(AND('2011 Survey responses'!$F20>0,'2007 Survey responses'!E24>0),'2007 Survey responses'!E24,\"\")","v":2},{"$f":"IF(AND('2011 Survey responses'!$F20>0,'2007 Survey responses'!E24>0),'2011 Survey responses'!$F20,\"\")","v":3},3,null,null,{"$f":"IF(AND('2011 Survey responses'!$G20>0,'2007 Survey responses'!$F24>0),'2007 Survey responses'!$F24,\"\")","v":1},{"$f":"IF(AND('2011 Survey responses'!$G20>0,'2007 Survey responses'!$F24>0),'2011 Survey responses'!$G20,\"\")","v":1},1,null,null,{"$f":"IF(AND('2011 Survey responses'!$H20>0,'2007 Survey responses'!$F24>0),'2007 Survey responses'!$F24,\"\")","v":1},{"$f":"IF(AND('2011 Survey responses'!$H20>0,'2007 Survey responses'!$F24>0),'2011 Survey responses'!$H20,\"\")","v":3},3,null,null,{"$f":"IF(AND(Question_grouping!O20>0,'2007 Survey responses'!$F24>0),'2007 Survey responses'!$F24,\"\")","v":1},{"$f":"IF(AND(Question_grouping!O20>0,'2007 Survey responses'!$F24>0),Question_grouping!O20,\"\")","v":3},3,null,null,{"$f":"IF(AND('2011 Survey responses'!$B20>0,'2007 Survey responses'!$C24>0),'2007 Survey responses'!$C24,\"\")","v":2},{"$f":"IF(AND('2011 Survey responses'!$B20>0,'2007 Survey responses'!$C24>0),'2011 Survey responses'!$B20,\"\")","v":3},3,null,null,{"$f":"IF(AND('2011 Survey responses'!$D20>0,'2007 Survey responses'!$D24>0),'2007 Survey responses'!$D24,\"\")","v":3},{"$f":"IF(AND('2011 Survey responses'!$D20>0,'2007 Survey responses'!$D24>0),'2011 Survey responses'!$D20,\"\")","v":3},3,null,null,{"$f":"IF(AND('2011 Survey responses'!$J20>0,'2007 Survey responses'!$H24>0),'2007 Survey responses'!$H24,\"\")","v":1},{"$f":"IF(AND('2011 Survey responses'!$J20>0,'2007 Survey responses'!$H24>0),'2011 Survey responses'!$J20,\"\")","v":2},2,null,null,{"$f":"IF(AND('2011 Survey responses'!$K20>0,'2007 Survey responses'!$J24>0),'2007 Survey responses'!$J24,\"\")","v":""},{"$f":"IF(AND('2011 Survey responses'!$K20>0,'2007 Survey responses'!$J24>0),'2011 Survey responses'!$K20,\"\")","v":""},"",null,null,{"$f":"IF(AND('2011 Survey responses'!$L20>0,'2007 Survey responses'!$I24>0),'2007 Survey responses'!$I24,\"\")","v":1},{"$f":"IF(AND('2011 Survey responses'!$L20>0,'2007 Survey responses'!$I24>0),'2011 Survey responses'!$L20,\"\")","v":3},3,null,null,{"$f":"IF(AND('2011 Survey responses'!$M20>0,'2007 Survey responses'!$K24>0),'2007 Survey responses'!$K24,\"\")","v":3},{"$f":"IF(AND('2011 Survey responses'!$M20>0,'2007 Survey responses'!$K24>0),'2011 Survey responses'!$M20,\"\")","v":3},3,null,null,{"$f":"IF('2007 Survey responses'!$B24>0,IF(AND('2011 Survey responses'!T20>0,'2007 Survey responses'!L24>0),'2007 Survey responses'!L24,\"\"),\"\")","v":2},{"$f":"IF('2007 Survey responses'!$B24>0,IF(AND('2011 Survey responses'!T20>0,'2007 Survey responses'!L24>0),'2011 Survey responses'!T20,\"\"),\"\")","v":2},2,null,null,{"$f":"IF(AND('2011 Survey responses'!$U20>0,'2007 Survey responses'!$M24>0),'2007 Survey responses'!$M24,\"\")","v":2},{"$f":"IF(AND('2011 Survey responses'!$U20>0,'2007 Survey responses'!$M24>0),'2011 Survey responses'!$U20,\"\")","v":2},2]
["Benin",{"$f":"IF(AND('2011 Survey responses'!$F21>0,'2007 Survey responses'!E25>0),'2007 Survey responses'!E25,\"\")","v":""},{"$f":"IF(AND('2011 Survey responses'!$F21>0,'2007 Survey responses'!E25>0),'2011 Survey responses'!$F21,\"\")","v":""},"",null,null,{"$f":"IF(AND('2011 Survey responses'!$G21>0,'2007 Survey responses'!$F25>0),'2007 Survey responses'!$F25,\"\")","v":""},{"$f":"IF(AND('2011 Survey responses'!$G21>0,'2007 Survey responses'!$F25>0),'2011 Survey responses'!$G21,\"\")","v":""},"",null,null,{"$f":"IF(AND('2011 Survey responses'!$H21>0,'2007 Survey responses'!$F25>0),'2007 Survey responses'!$F25,\"\")","v":""},{"$f":"IF(AND('2011 Survey responses'!$H21>0,'2007 Survey responses'!$F25>0),'2011 Survey responses'!$H21,\"\")","v":""},"",null,null,{"$f":"IF(AND(Question_grouping!O21>0,'2007 Survey responses'!$F25>0),'2007 Survey responses'!$F25,\"\")","v":""},{"$f":"IF(AND(Question_grouping!O21>0,'2007 Survey responses'!$F25>0),Question_grouping!O21,\"\")","v":""},"",null,null,{"$f":"IF(AND('2011 Survey responses'!$B21>0,'2007 Survey responses'!$C25>0),'2007 Survey responses'!$C25,\"\")","v":""},{"$f":"IF(AND('2011 Survey responses'!$B21>0,'2007 Survey responses'!$C25>0),'2011 Survey responses'!$B21,\"\")","v":""},"",null,null,{"$f":"IF(AND('2011 Survey responses'!$D21>0,'2007 Survey responses'!$D25>0),'2007 Survey responses'!$D25,\"\")","v":""},{"$f":"IF(AND('2011 Survey responses'!$D21>0,'2007 Survey responses'!$D25>0),'2011 Survey responses'!$D21,\"\")","v":""},"",null,null,{"$f":"IF(AND('2011 Survey responses'!$J21>0,'2007 Survey responses'!$H25>0),'2007 Survey responses'!$H25,\"\")","v":""},{"$f":"IF(AND('2011 Survey responses'!$J21>0,'2007 Survey responses'!$H25>0),'2011 Survey responses'!$J21,\"\")","v":""},"",null,null,{"$f":"IF(AND('2011 Survey responses'!$K21>0,'2007 Survey responses'!$J25>0),'2007 Survey responses'!$J25,\"\")","v":""},{"$f":"IF(AND('2011 Survey responses'!$K21>0,'2007 Survey responses'!$J25>0),'2011 Survey responses'!$K21,\"\")","v":""},"",null,null,{"$f":"IF(AND('2011 Survey responses'!$L21>0,'2007 Survey responses'!$I25>0),'2007 Survey responses'!$I25,\"\")","v":""},{"$f":"IF(AND('2011 Survey responses'!$L21>0,'2007 Survey responses'!$I25>0),'2011 Survey responses'!$L21,\"\")","v":""},"",null,null,{"$f":"IF(AND('2011 Survey responses'!$M21>0,'2007 Survey responses'!$K25>0),'2007 Survey responses'!$K25,\"\")","v":""},{"$f":"IF(AND('2011 Survey responses'!$M21>0,'2007 Survey responses'!$K25>0),'2011 Survey responses'!$M21,\"\")","v":""},"",null,null,{"$f":"IF('2007 Survey responses'!$B25>0,IF(AND('2011 Survey responses'!T21>0,'2007 Survey responses'!L25>0),'2007 Survey responses'!L25,\"\"),\"\")","v":""},{"$f":"IF('2007 Survey responses'!$B25>0,IF(AND('2011 Survey responses'!T21>0,'2007 Survey responses'!L25>0),'2011 Survey responses'!T21,\"\"),\"\")","v":""},"",null,null,{"$f":"IF(AND('2011 Survey responses'!$U21>0,'2007 Survey responses'!$M25>0),'2007 Survey responses'!$M25,\"\")","v":""},{"$f":"IF(AND('2011 Survey responses'!$U21>0,'2007 Survey responses'!$M25>0),'2011 Survey responses'!$U21,\"\")","v":""},""]
["Bhutan",{"$f":"IF(AND('2011 Survey responses'!$F22>0,'2007 Survey responses'!E26>0),'2007 Survey responses'!E26,\"\")","v":""},{"$f":"IF(AND('2011 Survey responses'!$F22>0,'2007 Survey responses'!E26>0),'2011 Survey responses'!$F22,\"\")","v":""},"",null,null,{"$f":"IF(AND('2011 Survey responses'!$G22>0,'2007 Survey responses'!$F26>0),'2007 Survey responses'!$F26,\"\")","v":""},{"$f":"IF(AND('2011 Survey responses'!$G22>0,'2007 Survey responses'!$F26>0),'2011 Survey responses'!$G22,\"\")","v":""},"",null,null,{"$f":"IF(AND('2011 Survey responses'!$H22>0,'2007 Survey responses'!$F26>0),'2007 Survey responses'!$F26,\"\")","v":""},{"$f":"IF(AND('2011 Survey responses'!$H22>0,'2007 Survey responses'!$F26>0),'2011 Survey responses'!$H22,\"\")","v":""},"",null,null,{"$f":"IF(AND(Question_grouping!O22>0,'2007 Survey responses'!$F26>0),'2007 Survey responses'!$F26,\"\")","v":""},{"$f":"IF(AND(Question_grouping!O22>0,'2007 Survey responses'!$F26>0),Question_grouping!O22,\"\")","v":""},"",null,null,{"$f":"IF(AND('2011 Survey responses'!$B22>0,'2007 Survey responses'!$C26>0),'2007 Survey responses'!$C26,\"\")","v":""},{"$f":"IF(AND('2011 Survey responses'!$B22>0,'2007 Survey responses'!$C26>0),'2011 Survey responses'!$B22,\"\")","v":""},"",null,null,{"$f":"IF(AND('2011 Survey responses'!$D22>0,'2007 Survey responses'!$D26>0),'2007 Survey responses'!$D26,\"\")","v":""},{"$f":"IF(AND('2011 Survey responses'!$D22>0,'2007 Survey responses'!$D26>0),'2011 Survey responses'!$D22,\"\")","v":""},"",null,null,{"$f":"IF(AND('2011 Survey responses'!$J22>0,'2007 Survey responses'!$H26>0),'2007 Survey responses'!$H26,\"\")","v":""},{"$f":"IF(AND('2011 Survey responses'!$J22>0,'2007 Survey responses'!$H26>0),'2011 Survey responses'!$J22,\"\")","v":""},"",null,null,{"$f":"IF(AND('2011 Survey responses'!$K22>0,'2007 Survey responses'!$J26>0),'2007 Survey responses'!$J26,\"\")","v":""},{"$f":"IF(AND('2011 Survey responses'!$K22>0,'2007 Survey responses'!$J26>0),'2011 Survey responses'!$K22,\"\")","v":""},"",null,null,{"$f":"IF(AND('2011 Survey responses'!$L22>0,'2007 Survey responses'!$I26>0),'2007 Survey responses'!$I26,\"\")","v":""},{"$f":"IF(AND('2011 Survey responses'!$L22>0,'2007 Survey responses'!$I26>0),'2011 Survey responses'!$L22,\"\")","v":""},"",null,null,{"$f":"IF(AND('2011 Survey responses'!$M22>0,'2007 Survey responses'!$K26>0),'2007 Survey responses'!$K26,\"\")","v":""},{"$f":"IF(AND('2011 Survey responses'!$M22>0,'2007 Survey responses'!$K26>0),'2011 Survey responses'!$M22,\"\")","v":""},"",null,null,{"$f":"IF('2007 Survey responses'!$B26>0,IF(AND('2011 Survey responses'!T22>0,'2007 Survey responses'!L26>0),'2007 Survey responses'!L26,\"\"),\"\")","v":""},{"$f":"IF('2007 Survey responses'!$B26>0,IF(AND('2011 Survey responses'!T22>0,'2007 Survey responses'!L26>0),'2011 Survey responses'!T22,\"\"),\"\")","v":""},"",null,null,{"$f":"IF(AND('2011 Survey responses'!$U22>0,'2007 Survey responses'!$M26>0),'2007 Survey responses'!$M26,\"\")","v":""},{"$f":"IF(AND('2011 Survey responses'!$U22>0,'2007 Survey responses'!$M26>0),'2011 Survey responses'!$U22,\"\")","v":""},""]
["Bolivia (Plurinational State of)",{"$f":"IF(AND('2011 Survey responses'!$F23>0,'2007 Survey responses'!E27>0),'2007 Survey responses'!E27,\"\")","v":""},{"$f":"IF(AND('2011 Survey responses'!$F23>0,'2007 Survey responses'!E27>0),'2011 Survey responses'!$F23,\"\")","v":""},"",null,null,{"$f":"IF(AND('2011 Survey responses'!$G23>0,'2007 Survey responses'!$F27>0),'2007 Survey responses'!$F27,\"\")","v":""},{"$f":"IF(AND('2011 Survey responses'!$G23>0,'2007 Survey responses'!$F27>0),'2011 Survey responses'!$G23,\"\")","v":""},"",null,null,{"$f":"IF(AND('2011 Survey responses'!$H23>0,'2007 Survey responses'!$F27>0),'2007 Survey responses'!$F27,\"\")","v":""},{"$f":"IF(AND('2011 Survey responses'!$H23>0,'2007 Survey responses'!$F27>0),'2011 Survey responses'!$H23,\"\")","v":""},"",null,null,{"$f":"IF(AND(Question_grouping!O23>0,'2007 Survey responses'!$F27>0),'2007 Survey responses'!$F27,\"\")","v":""},{"$f":"IF(AND(Question_grouping!O23>0,'2007 Survey responses'!$F27>0),Question_grouping!O23,\"\")","v":""},"",null,null,{"$f":"IF(AND('2011 Survey responses'!$B23>0,'2007 Survey responses'!$C27>0),'2007 Survey responses'!$C27,\"\")","v":""},{"$f":"IF(AND('2011 Survey responses'!$B23>0,'2007 Survey responses'!$C27>0),'2011 Survey responses'!$B23,\"\")","v":""},"",null,null,{"$f":"IF(AND('2011 Survey responses'!$D23>0,'2007 Survey responses'!$D27>0),'2007 Survey responses'!$D27,\"\")","v":""},{"$f":"IF(AND('2011 Survey responses'!$D23>0,'2007 Survey responses'!$D27>0),'2011 Survey responses'!$D23,\"\")","v":""},"",null,null,{"$f":"IF(AND('2011 Survey responses'!$J23>0,'2007 Survey responses'!$H27>0),'2007 Survey responses'!$H27,\"\")","v":""},{"$f":"IF(AND('2011 Survey responses'!$J23>0,'2007 Survey responses'!$H27>0),'2011 Survey responses'!$J23,\"\")","v":""},"",null,null,{"$f":"IF(AND('2011 Survey responses'!$K23>0,'2007 Survey responses'!$J27>0),'2007 Survey responses'!$J27,\"\")","v":""},{"$f":"IF(AND('2011 Survey responses'!$K23>0,'2007 Survey responses'!$J27>0),'2011 Survey responses'!$K23,\"\")","v":""},"",null,null,{"$f":"IF(AND('2011 Survey responses'!$L23>0,'2007 Survey responses'!$I27>0),'2007 Survey responses'!$I27,\"\")","v":""},{"$f":"IF(AND('2011 Survey responses'!$L23>0,'2007 Survey responses'!$I27>0),'2011 Survey responses'!$L23,\"\")","v":""},"",null,null,{"$f":"IF(AND('2011 Survey responses'!$M23>0,'2007 Survey responses'!$K27>0),'2007 Survey responses'!$K27,\"\")","v":""},{"$f":"IF(AND('2011 Survey responses'!$M23>0,'2007 Survey responses'!$K27>0),'2011 Survey responses'!$M23,\"\")","v":""},"",null,null,{"$f":"IF('2007 Survey responses'!$B27>0,IF(AND('2011 Survey responses'!T23>0,'2007 Survey responses'!L27>0),'2007 Survey responses'!L27,\"\"),\"\")","v":""},{"$f":"IF('2007 Survey responses'!$B27>0,IF(AND('2011 Survey responses'!T23>0,'2007 Survey responses'!L27>0),'2011 Survey responses'!T23,\"\"),\"\")","v":""},"",null,null,{"$f":"IF(AND('2011 Survey responses'!$U23>0,'2007 Survey responses'!$M27>0),'2007 Survey responses'!$M27,\"\")","v":""},{"$f":"IF(AND('2011 Survey responses'!$U23>0,'2007 Survey responses'!$M27>0),'2011 Survey responses'!$U23,\"\")","v":""},""]
["Bosnia and Herzegovina",{"$f":"IF(AND('2011 Survey responses'!$F24>0,'2007 Survey responses'!E28>0),'2007 Survey responses'!E28,\"\")","v":""},{"$f":"IF(AND('2011 Survey responses'!$F24>0,'2007 Survey responses'!E28>0),'2011 Survey responses'!$F24,\"\")","v":""},"",null,null,{"$f":"IF(AND('2011 Survey responses'!$G24>0,'2007 Survey responses'!$F28>0),'2007 Survey responses'!$F28,\"\")","v":""},{"$f":"IF(AND('2011 Survey responses'!$G24>0,'2007 Survey responses'!$F28>0),'2011 Survey responses'!$G24,\"\")","v":""},"",null,null,{"$f":"IF(AND('2011 Survey responses'!$H24>0,'2007 Survey responses'!$F28>0),'2007 Survey responses'!$F28,\"\")","v":""},{"$f":"IF(AND('2011 Survey responses'!$H24>0,'2007 Survey responses'!$F28>0),'2011 Survey responses'!$H24,\"\")","v":""},"",null,null,{"$f":"IF(AND(Question_grouping!O24>0,'2007 Survey responses'!$F28>0),'2007 Survey responses'!$F28,\"\")","v":""},{"$f":"IF(AND(Question_grouping!O24>0,'2007 Survey responses'!$F28>0),Question_grouping!O24,\"\")","v":""},"",null,null,{"$f":"IF(AND('2011 Survey responses'!$B24>0,'2007 Survey responses'!$C28>0),'2007 Survey responses'!$C28,\"\")","v":""},{"$f":"IF(AND('2011 Survey responses'!$B24>0,'2007 Survey responses'!$C28>0),'2011 Survey responses'!$B24,\"\")","v":""},"",null,null,{"$f":"IF(AND('2011 Survey responses'!$D24>0,'2007 Survey responses'!$D28>0),'2007 Survey responses'!$D28,\"\")","v":""},{"$f":"IF(AND('2011 Survey responses'!$D24>0,'2007 Survey responses'!$D28>0),'2011 Survey responses'!$D24,\"\")","v":""},"",null,null,{"$f":"IF(AND('2011 Survey responses'!$J24>0,'2007 Survey responses'!$H28>0),'2007 Survey responses'!$H28,\"\")","v":""},{"$f":"IF(AND('2011 Survey responses'!$J24>0,'2007 Survey responses'!$H28>0),'2011 Survey responses'!$J24,\"\")","v":""},"",null,null,{"$f":"IF(AND('2011 Survey responses'!$K24>0,'2007 Survey responses'!$J28>0),'2007 Survey responses'!$J28,\"\")","v":""},{"$f":"IF(AND('2011 Survey responses'!$K24>0,'2007 Survey responses'!$J28>0),'2011 Survey responses'!$K24,\"\")","v":""},"",null,null,{"$f":"IF(AND('2011 Survey responses'!$L24>0,'2007 Survey responses'!$I28>0),'2007 Survey responses'!$I28,\"\")","v":""},{"$f":"IF(AND('2011 Survey responses'!$L24>0,'2007 Survey responses'!$I28>0),'2011 Survey responses'!$L24,\"\")","v":""},"",null,null,{"$f":"IF(AND('2011 Survey responses'!$M24>0,'2007 Survey responses'!$K28>0),'2007 Survey responses'!$K28,\"\")","v":""},{"$f":"IF(AND('2011 Survey responses'!$M24>0,'2007 Survey responses'!$K28>0),'2011 Survey responses'!$M24,\"\")","v":""},"",null,null,{"$f":"IF('2007 Survey responses'!$B28>0,IF(AND('2011 Survey responses'!T24>0,'2007 Survey responses'!L28>0),'2007 Survey responses'!L28,\"\"),\"\")","v":""},{"$f":"IF('2007 Survey responses'!$B28>0,IF(AND('2011 Survey responses'!T24>0,'2007 Survey responses'!L28>0),'2011 Survey responses'!T24,\"\"),\"\")","v":""},"",null,null,{"$f":"IF(AND('2011 Survey responses'!$U24>0,'2007 Survey responses'!$M28>0),'2007 Survey responses'!$M28,\"\")","v":""},{"$f":"IF(AND('2011 Survey responses'!$U24>0,'2007 Survey responses'!$M28>0),'2011 Survey responses'!$U24,\"\")","v":""},""]
["Botswana",{"$f":"IF(AND('2011 Survey responses'!$F25>0,'2007 Survey responses'!E29>0),'2007 Survey responses'!E29,\"\")","v":2},{"$f":"IF(AND('2011 Survey responses'!$F25>0,'2007 Survey responses'!E29>0),'2011 Survey responses'!$F25,\"\")","v":2},2,null,null,{"$f":"IF(AND('2011 Survey responses'!$G25>0,'2007 Survey responses'!$F29>0),'2007 Survey responses'!$F29,\"\")","v":""},{"$f":"IF(AND('2011 Survey responses'!$G25>0,'2007 Survey responses'!$F29>0),'2011 Survey responses'!$G25,\"\")","v":""},"",null,null,{"$f":"IF(AND('2011 Survey responses'!$H25>0,'2007 Survey responses'!$F29>0),'2007 Survey responses'!$F29,\"\")","v":""},{"$f":"IF(AND('2011 Survey responses'!$H25>0,'2007 Survey responses'!$F29>0),'2011 Survey responses'!$H25,\"\")","v":""},"",null,null,{"$f":"IF(AND(Question_grouping!O25>0,'2007 Survey responses'!$F29>0),'2007 Survey responses'!$F29,\"\")","v":""},{"$f":"IF(AND(Question_grouping!O25>0,'2007 Survey responses'!$F29>0),Question_grouping!O25,\"\")","v":""},"",null,null,{"$f":"IF(AND('2011 Survey responses'!$B25>0,'2007 Survey responses'!$C29>0),'2007 Survey responses'!$C29,\"\")","v":2},{"$f":"IF(AND('2011 Survey responses'!$B25>0,'2007 Survey responses'!$C29>0),'2011 Survey responses'!$B25,\"\")","v":2},2,null,null,{"$f":"IF(AND('2011 Survey responses'!$D25>0,'2007 Survey responses'!$D29>0),'2007 Survey responses'!$D29,\"\")","v":4},{"$f":"IF(AND('2011 Survey responses'!$D25>0,'2007 Survey responses'!$D29>0),'2011 Survey responses'!$D25,\"\")","v":6},5,null,null,{"$f":"IF(AND('2011 Survey responses'!$J25>0,'2007 Survey responses'!$H29>0),'2007 Survey responses'!$H29,\"\")","v":""},{"$f":"IF(AND('2011 Survey responses'!$J25>0,'2007 Survey responses'!$H29>0),'2011 Survey responses'!$J25,\"\")","v":""},"",null,null,{"$f":"IF(AND('2011 Survey responses'!$K25>0,'2007 Survey responses'!$J29>0),'2007 Survey responses'!$J29,\"\")","v":""},{"$f":"IF(AND('2011 Survey responses'!$K25>0,'2007 Survey responses'!$J29>0),'2011 Survey responses'!$K25,\"\")","v":""},"",null,null,{"$f":"IF(AND('2011 Survey responses'!$L25>0,'2007 Survey responses'!$I29>0),'2007 Survey responses'!$I29,\"\")","v":""},{"$f":"IF(AND('2011 Survey responses'!$L25>0,'2007 Survey responses'!$I29>0),'2011 Survey responses'!$L25,\"\")","v":""},"",null,null,{"$f":"IF(AND('2011 Survey responses'!$M25>0,'2007 Survey responses'!$K29>0),'2007 Survey responses'!$K29,\"\")","v":""},{"$f":"IF(AND('2011 Survey responses'!$M25>0,'2007 Survey responses'!$K29>0),'2011 Survey responses'!$M25,\"\")","v":""},"",null,null,{"$f":"IF('2007 Survey responses'!$B29>0,IF(AND('2011 Survey responses'!T25>0,'2007 Survey responses'!L29>0),'2007 Survey responses'!L29,\"\"),\"\")","v":""},{"$f":"IF('2007 Survey responses'!$B29>0,IF(AND('2011 Survey responses'!T25>0,'2007 Survey responses'!L29>0),'2011 Survey responses'!T25,\"\"),\"\")","v":""},"",null,null,{"$f":"IF(AND('2011 Survey responses'!$U25>0,'2007 Survey responses'!$M29>0),'2007 Survey responses'!$M29,\"\")","v":""},{"$f":"IF(AND('2011 Survey responses'!$U25>0,'2007 Survey responses'!$M29>0),'2011 Survey responses'!$U25,\"\")","v":""},""]
["Brazil",{"$f":"IF(AND('2011 Survey responses'!$F26>0,'2007 Survey responses'!E30>0),'2007 Survey responses'!E30,\"\")","v":4},{"$f":"IF(AND('2011 Survey responses'!$F26>0,'2007 Survey responses'!E30>0),'2011 Survey responses'!$F26,\"\")","v":4},4,null,null,{"$f":"IF(AND('2011 Survey responses'!$G26>0,'2007 Survey responses'!$F30>0),'2007 Survey responses'!$F30,\"\")","v":1},{"$f":"IF(AND('2011 Survey responses'!$G26>0,'2007 Survey responses'!$F30>0),'2011 Survey responses'!$G26,\"\")","v":3},3,null,null,{"$f":"IF(AND('2011 Survey responses'!$H26>0,'2007 Survey responses'!$F30>0),'2007 Survey responses'!$F30,\"\")","v":1},{"$f":"IF(AND('2011 Survey responses'!$H26>0,'2007 Survey responses'!$F30>0),'2011 Survey responses'!$H26,\"\")","v":2},2,null,null,{"$f":"IF(AND(Question_grouping!O26>0,'2007 Survey responses'!$F30>0),'2007 Survey responses'!$F30,\"\")","v":1},{"$f":"IF(AND(Question_grouping!O26>0,'2007 Survey responses'!$F30>0),Question_grouping!O26,\"\")","v":3},3,null,null,{"$f":"IF(AND('2011 Survey responses'!$B26>0,'2007 Survey responses'!$C30>0),'2007 Survey responses'!$C30,\"\")","v":4},{"$f":"IF(AND('2011 Survey responses'!$B26>0,'2007 Survey responses'!$C30>0),'2011 Survey responses'!$B26,\"\")","v":5},4,null,null,{"$f":"IF(AND('2011 Survey responses'!$D26>0,'2007 Survey responses'!$D30>0),'2007 Survey responses'!$D30,\"\")","v":4},{"$f":"IF(AND('2011 Survey responses'!$D26>0,'2007 Survey responses'!$D30>0),'2011 Survey responses'!$D26,\"\")","v":5},4,null,null,{"$f":"IF(AND('2011 Survey responses'!$J26>0,'2007 Survey responses'!$H30>0),'2007 Survey responses'!$H30,\"\")","v":4},{"$f":"IF(AND('2011 Survey responses'!$J26>0,'2007 Survey responses'!$H30>0),'2011 Survey responses'!$J26,\"\")","v":2},2,null,null,{"$f":"IF(AND('2011 Survey responses'!$K26>0,'2007 Survey responses'!$J30>0),'2007 Survey responses'!$J30,\"\")","v":""},{"$f":"IF(AND('2011 Survey responses'!$K26>0,'2007 Survey responses'!$J30>0),'2011 Survey responses'!$K26,\"\")","v":""},"",null,null,{"$f":"IF(AND('2011 Survey responses'!$L26>0,'2007 Survey responses'!$I30>0),'2007 Survey responses'!$I30,\"\")","v":4},{"$f":"IF(AND('2011 Survey responses'!$L26>0,'2007 Survey responses'!$I30>0),'2011 Survey responses'!$L26,\"\")","v":2},2,null,null,{"$f":"IF(AND('2011 Survey responses'!$M26>0,'2007 Survey responses'!$K30>0),'2007 Survey responses'!$K30,\"\")","v":4},{"$f":"IF(AND('2011 Survey responses'!$M26>0,'2007 Survey responses'!$K30>0),'2011 Survey responses'!$M26,\"\")","v":4},4,null,null,{"$f":"IF('2007 Survey responses'!$B30>0,IF(AND('2011 Survey responses'!T26>0,'2007 Survey responses'!L30>0),'2007 Survey responses'!L30,\"\"),\"\")","v":""},{"$f":"IF('2007 Survey responses'!$B30>0,IF(AND('2011 Survey responses'!T26>0,'2007 Survey responses'!L30>0),'2011 Survey responses'!T26,\"\"),\"\")","v":""},"",null,null,{"$f":"IF(AND('2011 Survey responses'!$U26>0,'2007 Survey responses'!$M30>0),'2007 Survey responses'!$M30,\"\")","v":""},{"$f":"IF(AND('2011 Survey responses'!$U26>0,'2007 Survey responses'!$M30>0),'2011 Survey responses'!$U26,\"\")","v":""},""]
["Brunei Darussalam",{"$f":"IF(AND('2011 Survey responses'!$F27>0,'2007 Survey responses'!E31>0),'2007 Survey responses'!E31,\"\")","v":""},{"$f":"IF(AND('2011 Survey responses'!$F27>0,'2007 Survey responses'!E31>0),'2011 Survey responses'!$F27,\"\")","v":""},"",null,null,{"$f":"IF(AND('2011 Survey responses'!$G27>0,'2007 Survey responses'!$F31>0),'2007 Survey responses'!$F31,\"\")","v":""},{"$f":"IF(AND('2011 Survey responses'!$G27>0,'2007 Survey responses'!$F31>0),'2011 Survey responses'!$G27,\"\")","v":""},"",null,null,{"$f":"IF(AND('2011 Survey responses'!$H27>0,'2007 Survey responses'!$F31>0),'2007 Survey responses'!$F31,\"\")","v":""},{"$f":"IF(AND('2011 Survey responses'!$H27>0,'2007 Survey responses'!$F31>0),'2011 Survey responses'!$H27,\"\")","v":""},"",null,null,{"$f":"IF(AND(Question_grouping!O27>0,'2007 Survey responses'!$F31>0),'2007 Survey responses'!$F31,\"\")","v":""},{"$f":"IF(AND(Question_grouping!O27>0,'2007 Survey responses'!$F31>0),Question_grouping!O27,\"\")","v":""},"",null,null,{"$f":"IF(AND('2011 Survey responses'!$B27>0,'2007 Survey responses'!$C31>0),'2007 Survey responses'!$C31,\"\")","v":""},{"$f":"IF(AND('2011 Survey responses'!$B27>0,'2007 Survey responses'!$C31>0),'2011 Survey responses'!$B27,\"\")","v":""},"",null,null,{"$f":"IF(AND('2011 Survey responses'!$D27>0,'2007 Survey responses'!$D31>0),'2007 Survey responses'!$D31,\"\")","v":""},{"$f":"IF(AND('2011 Survey responses'!$D27>0,'2007 Survey responses'!$D31>0),'2011 Survey responses'!$D27,\"\")","v":""},"",null,null,{"$f":"IF(AND('2011 Survey responses'!$J27>0,'2007 Survey responses'!$H31>0),'2007 Survey responses'!$H31,\"\")","v":""},{"$f":"IF(AND('2011 Survey responses'!$J27>0,'2007 Survey responses'!$H31>0),'2011 Survey responses'!$J27,\"\")","v":""},"",null,null,{"$f":"IF(AND('2011 Survey responses'!$K27>0,'2007 Survey responses'!$J31>0),'2007 Survey responses'!$J31,\"\")","v":""},{"$f":"IF(AND('2011 Survey responses'!$K27>0,'2007 Survey responses'!$J31>0),'2011 Survey responses'!$K27,\"\")","v":""},"",null,null,{"$f":"IF(AND('2011 Survey responses'!$L27>0,'2007 Survey responses'!$I31>0),'2007 Survey responses'!$I31,\"\")","v":""},{"$f":"IF(AND('2011 Survey responses'!$L27>0,'2007 Survey responses'!$I31>0),'2011 Survey responses'!$L27,\"\")","v":""},"",null,null,{"$f":"IF(AND('2011 Survey responses'!$M27>0,'2007 Survey responses'!$K31>0),'2007 Survey responses'!$K31,\"\")","v":""},{"$f":"IF(AND('2011 Survey responses'!$M27>0,'2007 Survey responses'!$K31>0),'2011 Survey responses'!$M27,\"\")","v":""},"",null,null,{"$f":"IF('2007 Survey responses'!$B31>0,IF(AND('2011 Survey responses'!T27>0,'2007 Survey responses'!L31>0),'2007 Survey responses'!L31,\"\"),\"\")","v":""},{"$f":"IF('2007 Survey responses'!$B31>0,IF(AND('2011 Survey responses'!T27>0,'2007 Survey responses'!L31>0),'2011 Survey responses'!T27,\"\"),\"\")","v":""},"",null,null,{"$f":"IF(AND('2011 Survey responses'!$U27>0,'2007 Survey responses'!$M31>0),'2007 Survey responses'!$M31,\"\")","v":""},{"$f":"IF(AND('2011 Survey responses'!$U27>0,'2007 Survey responses'!$M31>0),'2011 Survey responses'!$U27,\"\")","v":""},""]
["Bulgaria",{"$f":"IF(AND('2011 Survey responses'!$F28>0,'2007 Survey responses'!E32>0),'2007 Survey responses'!E32,\"\")","v":""},{"$f":"IF(AND('2011 Survey responses'!$F28>0,'2007 Survey responses'!E32>0),'2011 Survey responses'!$F28,\"\")","v":""},"",null,null,{"$f":"IF(AND('2011 Survey responses'!$G28>0,'2007 Survey responses'!$F32>0),'2007 Survey responses'!$F32,\"\")","v":""},{"$f":"IF(AND('2011 Survey responses'!$G28>0,'2007 Survey responses'!$F32>0),'2011 Survey responses'!$G28,\"\")","v":""},"",null,null,{"$f":"IF(AND('2011 Survey responses'!$H28>0,'2007 Survey responses'!$F32>0),'2007 Survey responses'!$F32,\"\")","v":""},{"$f":"IF(AND('2011 Survey responses'!$H28>0,'2007 Survey responses'!$F32>0),'2011 Survey responses'!$H28,\"\")","v":""},"",null,null,{"$f":"IF(AND(Question_grouping!O28>0,'2007 Survey responses'!$F32>0),'2007 Survey responses'!$F32,\"\")","v":""},{"$f":"IF(AND(Question_grouping!O28>0,'2007 Survey responses'!$F32>0),Question_grouping!O28,\"\")","v":""},"",null,null,{"$f":"IF(AND('2011 Survey responses'!$B28>0,'2007 Survey responses'!$C32>0),'2007 Survey responses'!$C32,\"\")","v":""},{"$f":"IF(AND('2011 Survey responses'!$B28>0,'2007 Survey responses'!$C32>0),'2011 Survey responses'!$B28,\"\")","v":""},"",null,null,{"$f":"IF(AND('2011 Survey responses'!$D28>0,'2007 Survey responses'!$D32>0),'2007 Survey responses'!$D32,\"\")","v":""},{"$f":"IF(AND('2011 Survey responses'!$D28>0,'2007 Survey responses'!$D32>0),'2011 Survey responses'!$D28,\"\")","v":""},"",null,null,{"$f":"IF(AND('2011 Survey responses'!$J28>0,'2007 Survey responses'!$H32>0),'2007 Survey responses'!$H32,\"\")","v":""},{"$f":"IF(AND('2011 Survey responses'!$J28>0,'2007 Survey responses'!$H32>0),'2011 Survey responses'!$J28,\"\")","v":""},"",null,null,{"$f":"IF(AND('2011 Survey responses'!$K28>0,'2007 Survey responses'!$J32>0),'2007 Survey responses'!$J32,\"\")","v":""},{"$f":"IF(AND('2011 Survey responses'!$K28>0,'2007 Survey responses'!$J32>0),'2011 Survey responses'!$K28,\"\")","v":""},"",null,null,{"$f":"IF(AND('2011 Survey responses'!$L28>0,'2007 Survey responses'!$I32>0),'2007 Survey responses'!$I32,\"\")","v":""},{"$f":"IF(AND('2011 Survey responses'!$L28>0,'2007 Survey responses'!$I32>0),'2011 Survey responses'!$L28,\"\")","v":""},"",null,null,{"$f":"IF(AND('2011 Survey responses'!$M28>0,'2007 Survey responses'!$K32>0),'2007 Survey responses'!$K32,\"\")","v":""},{"$f":"IF(AND('2011 Survey responses'!$M28>0,'2007 Survey responses'!$K32>0),'2011 Survey responses'!$M28,\"\")","v":""},"",null,null,{"$f":"IF('2007 Survey responses'!$B32>0,IF(AND('2011 Survey responses'!T28>0,'2007 Survey responses'!L32>0),'2007 Survey responses'!L32,\"\"),\"\")","v":""},{"$f":"IF('2007 Survey responses'!$B32>0,IF(AND('2011 Survey responses'!T28>0,'2007 Survey responses'!L32>0),'2011 Survey responses'!T28,\"\"),\"\")","v":""},"",null,null,{"$f":"IF(AND('2011 Survey responses'!$U28>0,'2007 Survey responses'!$M32>0),'2007 Survey responses'!$M32,\"\")","v":""},{"$f":"IF(AND('2011 Survey responses'!$U28>0,'2007 Survey responses'!$M32>0),'2011 Survey responses'!$U28,\"\")","v":""},""]
["Burkina Faso",{"$f":"IF(AND('2011 Survey responses'!$F29>0,'2007 Survey responses'!E33>0),'2007 Survey responses'!E33,\"\")","v":4},{"$f":"IF(AND('2011 Survey responses'!$F29>0,'2007 Survey responses'!E33>0),'2011 Survey responses'!$F29,\"\")","v":6},5,null,null,{"$f":"IF(AND('2011 Survey responses'!$G29>0,'2007 Survey responses'!$F33>0),'2007 Survey responses'!$F33,\"\")","v":1},{"$f":"IF(AND('2011 Survey responses'!$G29>0,'2007 Survey responses'!$F33>0),'2011 Survey responses'!$G29,\"\")","v":1},1,null,null,{"$f":"IF(AND('2011 Survey responses'!$H29>0,'2007 Survey responses'!$F33>0),'2007 Survey responses'!$F33,\"\")","v":1},{"$f":"IF(AND('2011 Survey responses'!$H29>0,'2007 Survey responses'!$F33>0),'2011 Survey responses'!$H29,\"\")","v":5},4,null,null,{"$f":"IF(AND(Question_grouping!O29>0,'2007 Survey responses'!$F33>0),'2007 Survey responses'!$F33,\"\")","v":1},{"$f":"IF(AND(Question_grouping!O29>0,'2007 Survey responses'!$F33>0),Question_grouping!O29,\"\")","v":5},4,null,null,{"$f":"IF(AND('2011 Survey responses'!$B29>0,'2007 Survey responses'!$C33>0),'2007 Survey responses'!$C33,\"\")","v":5},{"$f":"IF(AND('2011 Survey responses'!$B29>0,'2007 Survey responses'!$C33>0),'2011 Survey responses'!$B29,\"\")","v":6},5,null,null,{"$f":"IF(AND('2011 Survey responses'!$D29>0,'2007 Survey responses'!$D33>0),'2007 Survey responses'!$D33,\"\")","v":4},{"$f":"IF(AND('2011 Survey responses'!$D29>0,'2007 Survey responses'!$D33>0),'2011 Survey responses'!$D29,\"\")","v":5},4,null,null,{"$f":"IF(AND('2011 Survey responses'!$J29>0,'2007 Survey responses'!$H33>0),'2007 Survey responses'!$H33,\"\")","v":4},{"$f":"IF(AND('2011 Survey responses'!$J29>0,'2007 Survey responses'!$H33>0),'2011 Survey responses'!$J29,\"\")","v":5},4,null,null,{"$f":"IF(AND('2011 Survey responses'!$K29>0,'2007 Survey responses'!$J33>0),'2007 Survey responses'!$J33,\"\")","v":4},{"$f":"IF(AND('2011 Survey responses'!$K29>0,'2007 Survey responses'!$J33>0),'2011 Survey responses'!$K29,\"\")","v":5},4,null,null,{"$f":"IF(AND('2011 Survey responses'!$L29>0,'2007 Survey responses'!$I33>0),'2007 Survey responses'!$I33,\"\")","v":4},{"$f":"IF(AND('2011 Survey responses'!$L29>0,'2007 Survey responses'!$I33>0),'2011 Survey responses'!$L29,\"\")","v":5},4,null,null,{"$f":"IF(AND('2011 Survey responses'!$M29>0,'2007 Survey responses'!$K33>0),'2007 Survey responses'!$K33,\"\")","v":""},{"$f":"IF(AND('2011 Survey responses'!$M29>0,'2007 Survey responses'!$K33>0),'2011 Survey responses'!$M29,\"\")","v":""},"",null,null,{"$f":"IF('2007 Survey responses'!$B33>0,IF(AND('2011 Survey responses'!T29>0,'2007 Survey responses'!L33>0),'2007 Survey responses'!L33,\"\"),\"\")","v":4},{"$f":"IF('2007 Survey responses'!$B33>0,IF(AND('2011 Survey responses'!T29>0,'2007 Survey responses'!L33>0),'2011 Survey responses'!T29,\"\"),\"\")","v":5},4,null,null,{"$f":"IF(AND('2011 Survey responses'!$U29>0,'2007 Survey responses'!$M33>0),'2007 Survey responses'!$M33,\"\")","v":4},{"$f":"IF(AND('2011 Survey responses'!$U29>0,'2007 Survey responses'!$M33>0),'2011 Survey responses'!$U29,\"\")","v":5},4]
["Burundi",{"$f":"IF(AND('2011 Survey responses'!$F30>0,'2007 Survey responses'!E34>0),'2007 Survey responses'!E34,\"\")","v":""},{"$f":"IF(AND('2011 Survey responses'!$F30>0,'2007 Survey responses'!E34>0),'2011 Survey responses'!$F30,\"\")","v":""},"",null,null,{"$f":"IF(AND('2011 Survey responses'!$G30>0,'2007 Survey responses'!$F34>0),'2007 Survey responses'!$F34,\"\")","v":""},{"$f":"IF(AND('2011 Survey responses'!$G30>0,'2007 Survey responses'!$F34>0),'2011 Survey responses'!$G30,\"\")","v":""},"",null,null,{"$f":"IF(AND('2011 Survey responses'!$H30>0,'2007 Survey responses'!$F34>0),'2007 Survey responses'!$F34,\"\")","v":""},{"$f":"IF(AND('2011 Survey responses'!$H30>0,'2007 Survey responses'!$F34>0),'2011 Survey responses'!$H30,\"\")","v":""},"",null,null,{"$f":"IF(AND(Question_grouping!O30>0,'2007 Survey responses'!$F34>0),'2007 Survey responses'!$F34,\"\")","v":""},{"$f":"IF(AND(Question_grouping!O30>0,'2007 Survey responses'!$F34>0),Question_grouping!O30,\"\")","v":""},"",null,null,{"$f":"IF(AND('2011 Survey responses'!$B30>0,'2007 Survey responses'!$C34>0),'2007 Survey responses'!$C34,\"\")","v":""},{"$f":"IF(AND('2011 Survey responses'!$B30>0,'2007 Survey responses'!$C34>0),'2011 Survey responses'!$B30,\"\")","v":""},"",null,null,{"$f":"IF(AND('2011 Survey responses'!$D30>0,'2007 Survey responses'!$D34>0),'2007 Survey responses'!$D34,\"\")","v":""},{"$f":"IF(AND('2011 Survey responses'!$D30>0,'2007 Survey responses'!$D34>0),'2011 Survey responses'!$D30,\"\")","v":""},"",null,null,{"$f":"IF(AND('2011 Survey responses'!$J30>0,'2007 Survey responses'!$H34>0),'2007 Survey responses'!$H34,\"\")","v":""},{"$f":"IF(AND('2011 Survey responses'!$J30>0,'2007 Survey responses'!$H34>0),'2011 Survey responses'!$J30,\"\")","v":""},"",null,null,{"$f":"IF(AND('2011 Survey responses'!$K30>0,'2007 Survey responses'!$J34>0),'2007 Survey responses'!$J34,\"\")","v":""},{"$f":"IF(AND('2011 Survey responses'!$K30>0,'2007 Survey responses'!$J34>0),'2011 Survey responses'!$K30,\"\")","v":""},"",null,null,{"$f":"IF(AND('2011 Survey responses'!$L30>0,'2007 Survey responses'!$I34>0),'2007 Survey responses'!$I34,\"\")","v":""},{"$f":"IF(AND('2011 Survey responses'!$L30>0,'2007 Survey responses'!$I34>0),'2011 Survey responses'!$L30,\"\")","v":""},"",null,null,{"$f":"IF(AND('2011 Survey responses'!$M30>0,'2007 Survey responses'!$K34>0),'2007 Survey responses'!$K34,\"\")","v":""},{"$f":"IF(AND('2011 Survey responses'!$M30>0,'2007 Survey responses'!$K34>0),'2011 Survey responses'!$M30,\"\")","v":""},"",null,null,{"$f":"IF('2007 Survey responses'!$B34>0,IF(AND('2011 Survey responses'!T30>0,'2007 Survey responses'!L34>0),'2007 Survey responses'!L34,\"\"),\"\")","v":""},{"$f":"IF('2007 Survey responses'!$B34>0,IF(AND('2011 Survey responses'!T30>0,'2007 Survey responses'!L34>0),'2011 Survey responses'!T30,\"\"),\"\")","v":""},"",null,null,{"$f":"IF(AND('2011 Survey responses'!$U30>0,'2007 Survey responses'!$M34>0),'2007 Survey responses'!$M34,\"\")","v":""},{"$f":"IF(AND('2011 Survey responses'!$U30>0,'2007 Survey responses'!$M34>0),'2011 Survey responses'!$U30,\"\")","v":""},""]
["Cambodia",{"$f":"IF(AND('2011 Survey responses'!$F31>0,'2007 Survey responses'!E35>0),'2007 Survey responses'!E35,\"\")","v":4},{"$f":"IF(AND('2011 Survey responses'!$F31>0,'2007 Survey responses'!E35>0),'2011 Survey responses'!$F31,\"\")","v":5},4,null,null,{"$f":"IF(AND('2011 Survey responses'!$G31>0,'2007 Survey responses'!$F35>0),'2007 Survey responses'!$F35,\"\")","v":4},{"$f":"IF(AND('2011 Survey responses'!$G31>0,'2007 Survey responses'!$F35>0),'2011 Survey responses'!$G31,\"\")","v":5},4,null,null,{"$f":"IF(AND('2011 Survey responses'!$H31>0,'2007 Survey responses'!$F35>0),'2007 Survey responses'!$F35,\"\")","v":4},{"$f":"IF(AND('2011 Survey responses'!$H31>0,'2007 Survey responses'!$F35>0),'2011 Survey responses'!$H31,\"\")","v":5},4,null,null,{"$f":"IF(AND(Question_grouping!O31>0,'2007 Survey responses'!$F35>0),'2007 Survey responses'!$F35,\"\")","v":4},{"$f":"IF(AND(Question_grouping!O31>0,'2007 Survey responses'!$F35>0),Question_grouping!O31,\"\")","v":5},4,null,null,{"$f":"IF(AND('2011 Survey responses'!$B31>0,'2007 Survey responses'!$C35>0),'2007 Survey responses'!$C35,\"\")","v":4},{"$f":"IF(AND('2011 Survey responses'!$B31>0,'2007 Survey responses'!$C35>0),'2011 Survey responses'!$B31,\"\")","v":5},4,null,null,{"$f":"IF(AND('2011 Survey responses'!$D31>0,'2007 Survey responses'!$D35>0),'2007 Survey responses'!$D35,\"\")","v":3},{"$f":"IF(AND('2011 Survey responses'!$D31>0,'2007 Survey responses'!$D35>0),'2011 Survey responses'!$D31,\"\")","v":6},5,null,null,{"$f":"IF(AND('2011 Survey responses'!$J31>0,'2007 Survey responses'!$H35>0),'2007 Survey responses'!$H35,\"\")","v":5},{"$f":"IF(AND('2011 Survey responses'!$J31>0,'2007 Survey responses'!$H35>0),'2011 Survey responses'!$J31,\"\")","v":5},4,null,null,{"$f":"IF(AND('2011 Survey responses'!$K31>0,'2007 Survey responses'!$J35>0),'2007 Survey responses'!$J35,\"\")","v":4},{"$f":"IF(AND('2011 Survey responses'!$K31>0,'2007 Survey responses'!$J35>0),'2011 Survey responses'!$K31,\"\")","v":5},4,null,null,{"$f":"IF(AND('2011 Survey responses'!$L31>0,'2007 Survey responses'!$I35>0),'2007 Survey responses'!$I35,\"\")","v":5},{"$f":"IF(AND('2011 Survey responses'!$L31>0,'2007 Survey responses'!$I35>0),'2011 Survey responses'!$L31,\"\")","v":5},4,null,null,{"$f":"IF(AND('2011 Survey responses'!$M31>0,'2007 Survey responses'!$K35>0),'2007 Survey responses'!$K35,\"\")","v":4},{"$f":"IF(AND('2011 Survey responses'!$M31>0,'2007 Survey responses'!$K35>0),'2011 Survey responses'!$M31,\"\")","v":5},4,null,null,{"$f":"IF('2007 Survey responses'!$B35>0,IF(AND('2011 Survey responses'!T31>0,'2007 Survey responses'!L35>0),'2007 Survey responses'!L35,\"\"),\"\")","v":4},{"$f":"IF('2007 Survey responses'!$B35>0,IF(AND('2011 Survey responses'!T31>0,'2007 Survey responses'!L35>0),'2011 Survey responses'!T31,\"\"),\"\")","v":5},4,null,null,{"$f":"IF(AND('2011 Survey responses'!$U31>0,'2007 Survey responses'!$M35>0),'2007 Survey responses'!$M35,\"\")","v":4},{"$f":"IF(AND('2011 Survey responses'!$U31>0,'2007 Survey responses'!$M35>0),'2011 Survey responses'!$U31,\"\")","v":5},4]
["Cameroon",{"$f":"IF(AND('2011 Survey responses'!$F32>0,'2007 Survey responses'!E36>0),'2007 Survey responses'!E36,\"\")","v":""},{"$f":"IF(AND('2011 Survey responses'!$F32>0,'2007 Survey responses'!E36>0),'2011 Survey responses'!$F32,\"\")","v":""},"",null,null,{"$f":"IF(AND('2011 Survey responses'!$G32>0,'2007 Survey responses'!$F36>0),'2007 Survey responses'!$F36,\"\")","v":""},{"$f":"IF(AND('2011 Survey responses'!$G32>0,'2007 Survey responses'!$F36>0),'2011 Survey responses'!$G32,\"\")","v":""},"",null,null,{"$f":"IF(AND('2011 Survey responses'!$H32>0,'2007 Survey responses'!$F36>0),'2007 Survey responses'!$F36,\"\")","v":""},{"$f":"IF(AND('2011 Survey responses'!$H32>0,'2007 Survey responses'!$F36>0),'2011 Survey responses'!$H32,\"\")","v":""},"",null,null,{"$f":"IF(AND(Question_grouping!O32>0,'2007 Survey responses'!$F36>0),'2007 Survey responses'!$F36,\"\")","v":""},{"$f":"IF(AND(Question_grouping!O32>0,'2007 Survey responses'!$F36>0),Question_grouping!O32,\"\")","v":""},"",null,null,{"$f":"IF(AND('2011 Survey responses'!$B32>0,'2007 Survey responses'!$C36>0),'2007 Survey responses'!$C36,\"\")","v":""},{"$f":"IF(AND('2011 Survey responses'!$B32>0,'2007 Survey responses'!$C36>0),'2011 Survey responses'!$B32,\"\")","v":""},"",null,null,{"$f":"IF(AND('2011 Survey responses'!$D32>0,'2007 Survey responses'!$D36>0),'2007 Survey responses'!$D36,\"\")","v":""},{"$f":"IF(AND('2011 Survey responses'!$D32>0,'2007 Survey responses'!$D36>0),'2011 Survey responses'!$D32,\"\")","v":""},"",null,null,{"$f":"IF(AND('2011 Survey responses'!$J32>0,'2007 Survey responses'!$H36>0),'2007 Survey responses'!$H36,\"\")","v":""},{"$f":"IF(AND('2011 Survey responses'!$J32>0,'2007 Survey responses'!$H36>0),'2011 Survey responses'!$J32,\"\")","v":""},"",null,null,{"$f":"IF(AND('2011 Survey responses'!$K32>0,'2007 Survey responses'!$J36>0),'2007 Survey responses'!$J36,\"\")","v":""},{"$f":"IF(AND('2011 Survey responses'!$K32>0,'2007 Survey responses'!$J36>0),'2011 Survey responses'!$K32,\"\")","v":""},"",null,null,{"$f":"IF(AND('2011 Survey responses'!$L32>0,'2007 Survey responses'!$I36>0),'2007 Survey responses'!$I36,\"\")","v":""},{"$f":"IF(AND('2011 Survey responses'!$L32>0,'2007 Survey responses'!$I36>0),'2011 Survey responses'!$L32,\"\")","v":""},"",null,null,{"$f":"IF(AND('2011 Survey responses'!$M32>0,'2007 Survey responses'!$K36>0),'2007 Survey responses'!$K36,\"\")","v":""},{"$f":"IF(AND('2011 Survey responses'!$M32>0,'2007 Survey responses'!$K36>0),'2011 Survey responses'!$M32,\"\")","v":""},"",null,null,{"$f":"IF('2007 Survey responses'!$B36>0,IF(AND('2011 Survey responses'!T32>0,'2007 Survey responses'!L36>0),'2007 Survey responses'!L36,\"\"),\"\")","v":""},{"$f":"IF('2007 Survey responses'!$B36>0,IF(AND('2011 Survey responses'!T32>0,'2007 Survey responses'!L36>0),'2011 Survey responses'!T32,\"\"),\"\")","v":""},"",null,null,{"$f":"IF(AND('2011 Survey responses'!$U32>0,'2007 Survey responses'!$M36>0),'2007 Survey responses'!$M36,\"\")","v":""},{"$f":"IF(AND('2011 Survey responses'!$U32>0,'2007 Survey responses'!$M36>0),'2011 Survey responses'!$U32,\"\")","v":""},""]
["Canada",{"$f":"IF(AND('2011 Survey responses'!$F33>0,'2007 Survey responses'!E37>0),'2007 Survey responses'!E37,\"\")","v":""},{"$f":"IF(AND('2011 Survey responses'!$F33>0,'2007 Survey responses'!E37>0),'2011 Survey responses'!$F33,\"\")","v":""},"",null,null,{"$f":"IF(AND('2011 Survey responses'!$G33>0,'2007 Survey responses'!$F37>0),'2007 Survey responses'!$F37,\"\")","v":""},{"$f":"IF(AND('2011 Survey responses'!$G33>0,'2007 Survey responses'!$F37>0),'2011 Survey responses'!$G33,\"\")","v":""},"",null,null,{"$f":"IF(AND('2011 Survey responses'!$H33>0,'2007 Survey responses'!$F37>0),'2007 Survey responses'!$F37,\"\")","v":""},{"$f":"IF(AND('2011 Survey responses'!$H33>0,'2007 Survey responses'!$F37>0),'2011 Survey responses'!$H33,\"\")","v":""},"",null,null,{"$f":"IF(AND(Question_grouping!O33>0,'2007 Survey responses'!$F37>0),'2007 Survey responses'!$F37,\"\")","v":""},{"$f":"IF(AND(Question_grouping!O33>0,'2007 Survey responses'!$F37>0),Question_grouping!O33,\"\")","v":""},"",null,null,{"$f":"IF(AND('2011 Survey responses'!$B33>0,'2007 Survey responses'!$C37>0),'2007 Survey responses'!$C37,\"\")","v":""},{"$f":"IF(AND('2011 Survey responses'!$B33>0,'2007 Survey responses'!$C37>0),'2011 Survey responses'!$B33,\"\")","v":""},"",null,null,{"$f":"IF(AND('2011 Survey responses'!$D33>0,'2007 Survey responses'!$D37>0),'2007 Survey responses'!$D37,\"\")","v":""},{"$f":"IF(AND('2011 Survey responses'!$D33>0,'2007 Survey responses'!$D37>0),'2011 Survey responses'!$D33,\"\")","v":""},"",null,null,{"$f":"IF(AND('2011 Survey responses'!$J33>0,'2007 Survey responses'!$H37>0),'2007 Survey responses'!$H37,\"\")","v":""},{"$f":"IF(AND('2011 Survey responses'!$J33>0,'2007 Survey responses'!$H37>0),'2011 Survey responses'!$J33,\"\")","v":""},"",null,null,{"$f":"IF(AND('2011 Survey responses'!$K33>0,'2007 Survey responses'!$J37>0),'2007 Survey responses'!$J37,\"\")","v":""},{"$f":"IF(AND('2011 Survey responses'!$K33>0,'2007 Survey responses'!$J37>0),'2011 Survey responses'!$K33,\"\")","v":""},"",null,null,{"$f":"IF(AND('2011 Survey responses'!$L33>0,'2007 Survey responses'!$I37>0),'2007 Survey responses'!$I37,\"\")","v":""},{"$f":"IF(AND('2011 Survey responses'!$L33>0,'2007 Survey responses'!$I37>0),'2011 Survey responses'!$L33,\"\")","v":""},"",null,null,{"$f":"IF(AND('2011 Survey responses'!$M33>0,'2007 Survey responses'!$K37>0),'2007 Survey responses'!$K37,\"\")","v":""},{"$f":"IF(AND('2011 Survey responses'!$M33>0,'2007 Survey responses'!$K37>0),'2011 Survey responses'!$M33,\"\")","v":""},"",null,null,{"$f":"IF('2007 Survey responses'!$B37>0,IF(AND('2011 Survey responses'!T33>0,'2007 Survey responses'!L37>0),'2007 Survey responses'!L37,\"\"),\"\")","v":""},{"$f":"IF('2007 Survey responses'!$B37>0,IF(AND('2011 Survey responses'!T33>0,'2007 Survey responses'!L37>0),'2011 Survey responses'!T33,\"\"),\"\")","v":""},"",null,null,{"$f":"IF(AND('2011 Survey responses'!$U33>0,'2007 Survey responses'!$M37>0),'2007 Survey responses'!$M37,\"\")","v":""},{"$f":"IF(AND('2011 Survey responses'!$U33>0,'2007 Survey responses'!$M37>0),'2011 Survey responses'!$U33,\"\")","v":""},""]
["Cape Verde",{"$f":"IF(AND('2011 Survey responses'!$F34>0,'2007 Survey responses'!E38>0),'2007 Survey responses'!E38,\"\")","v":4},{"$f":"IF(AND('2011 Survey responses'!$F34>0,'2007 Survey responses'!E38>0),'2011 Survey responses'!$F34,\"\")","v":4},4,null,null,{"$f":"IF(AND('2011 Survey responses'!$G34>0,'2007 Survey responses'!$F38>0),'2007 Survey responses'!$F38,\"\")","v":4},{"$f":"IF(AND('2011 Survey responses'!$G34>0,'2007 Survey responses'!$F38>0),'2011 Survey responses'!$G34,\"\")","v":4},4,null,null,{"$f":"IF(AND('2011 Survey responses'!$H34>0,'2007 Survey responses'!$F38>0),'2007 Survey responses'!$F38,\"\")","v":4},{"$f":"IF(AND('2011 Survey responses'!$H34>0,'2007 Survey responses'!$F38>0),'2011 Survey responses'!$H34,\"\")","v":4},4,null,null,{"$f":"IF(AND(Question_grouping!O34>0,'2007 Survey responses'!$F38>0),'2007 Survey responses'!$F38,\"\")","v":4},{"$f":"IF(AND(Question_grouping!O34>0,'2007 Survey responses'!$F38>0),Question_grouping!O34,\"\")","v":4},4,null,null,{"$f":"IF(AND('2011 Survey responses'!$B34>0,'2007 Survey responses'!$C38>0),'2007 Survey responses'!$C38,\"\")","v":5},{"$f":"IF(AND('2011 Survey responses'!$B34>0,'2007 Survey responses'!$C38>0),'2011 Survey responses'!$B34,\"\")","v":5},4,null,null,{"$f":"IF(AND('2011 Survey responses'!$D34>0,'2007 Survey responses'!$D38>0),'2007 Survey responses'!$D38,\"\")","v":5},{"$f":"IF(AND('2011 Survey responses'!$D34>0,'2007 Survey responses'!$D38>0),'2011 Survey responses'!$D34,\"\")","v":5},4,null,null,{"$f":"IF(AND('2011 Survey responses'!$J34>0,'2007 Survey responses'!$H38>0),'2007 Survey responses'!$H38,\"\")","v":4},{"$f":"IF(AND('2011 Survey responses'!$J34>0,'2007 Survey responses'!$H38>0),'2011 Survey responses'!$J34,\"\")","v":4},4,null,null,{"$f":"IF(AND('2011 Survey responses'!$K34>0,'2007 Survey responses'!$J38>0),'2007 Survey responses'!$J38,\"\")","v":5},{"$f":"IF(AND('2011 Survey responses'!$K34>0,'2007 Survey responses'!$J38>0),'2011 Survey responses'!$K34,\"\")","v":4},4,null,null,{"$f":"IF(AND('2011 Survey responses'!$L34>0,'2007 Survey responses'!$I38>0),'2007 Survey responses'!$I38,\"\")","v":5},{"$f":"IF(AND('2011 Survey responses'!$L34>0,'2007 Survey responses'!$I38>0),'2011 Survey responses'!$L34,\"\")","v":4},4,null,null,{"$f":"IF(AND('2011 Survey responses'!$M34>0,'2007 Survey responses'!$K38>0),'2007 Survey responses'!$K38,\"\")","v":""},{"$f":"IF(AND('2011 Survey responses'!$M34>0,'2007 Survey responses'!$K38>0),'2011 Survey responses'!$M34,\"\")","v":""},"",null,null,{"$f":"IF('2007 Survey responses'!$B38>0,IF(AND('2011 Survey responses'!T34>0,'2007 Survey responses'!L38>0),'2007 Survey responses'!L38,\"\"),\"\")","v":5},{"$f":"IF('2007 Survey responses'!$B38>0,IF(AND('2011 Survey responses'!T34>0,'2007 Survey responses'!L38>0),'2011 Survey responses'!T34,\"\"),\"\")","v":4},4,null,null,{"$f":"IF(AND('2011 Survey responses'!$U34>0,'2007 Survey responses'!$M38>0),'2007 Survey responses'!$M38,\"\")","v":1},{"$f":"IF(AND('2011 Survey responses'!$U34>0,'2007 Survey responses'!$M38>0),'2011 Survey responses'!$U34,\"\")","v":1},1]
["Central African Republic",{"$f":"IF(AND('2011 Survey responses'!$F35>0,'2007 Survey responses'!E39>0),'2007 Survey responses'!E39,\"\")","v":""},{"$f":"IF(AND('2011 Survey responses'!$F35>0,'2007 Survey responses'!E39>0),'2011 Survey responses'!$F35,\"\")","v":""},{"$f":"IF(C34=0,\"\",IF(C34=6,5,IF(C34=5,4,C34)))","v":""},null,null,{"$f":"IF(AND('2011 Survey responses'!$G35>0,'2007 Survey responses'!$F39>0),'2007 Survey responses'!$F39,\"\")","v":""},{"$f":"IF(AND('2011 Survey responses'!$G35>0,'2007 Survey responses'!$F39>0),'2011 Survey responses'!$G35,\"\")","v":""},{"$f":"IF(H34=0,\"\",IF(H34=6,5,IF(H34=5,4,H34)))","v":""},null,null,{"$f":"IF(AND('2011 Survey responses'!$H35>0,'2007 Survey responses'!$F39>0),'2007 Survey responses'!$F39,\"\")","v":""},{"$f":"IF(AND('2011 Survey responses'!$H35>0,'2007 Survey responses'!$F39>0),'2011 Survey responses'!$H35,\"\")","v":""},"",null,null,{"$f":"IF(AND(Question_grouping!O35>0,'2007 Survey responses'!$F39>0),'2007 Survey responses'!$F39,\"\")","v":""},{"$f":"IF(AND(Question_grouping!O35>0,'2007 Survey responses'!$F39>0),Question_grouping!O35,\"\")","v":""},"",null,null,{"$f":"IF(AND('2011 Survey responses'!$B35>0,'2007 Survey responses'!$C39>0),'2007 Survey responses'!$C39,\"\")","v":""},{"$f":"IF(AND('2011 Survey responses'!$B35>0,'2007 Survey responses'!$C39>0),'2011 Survey responses'!$B35,\"\")","v":""},"",null,null,{"$f":"IF(AND('2011 Survey responses'!$D35>0,'2007 Survey responses'!$D39>0),'2007 Survey responses'!$D39,\"\")","v":""},{"$f":"IF(AND('2011 Survey responses'!$D35>0,'2007 Survey responses'!$D39>0),'2011 Survey responses'!$D35,\"\")","v":""},"",null,null,{"$f":"IF(AND('2011 Survey responses'!$J35>0,'2007 Survey responses'!$H39>0),'2007 Survey responses'!$H39,\"\")","v":""},{"$f":"IF(AND('2011 Survey responses'!$J35>0,'2007 Survey responses'!$H39>0),'2011 Survey responses'!$J35,\"\")","v":""},"",null,null,{"$f":"IF(AND('2011 Survey responses'!$K35>0,'2007 Survey responses'!$J39>0),'2007 Survey responses'!$J39,\"\")","v":""},{"$f":"IF(AND('2011 Survey responses'!$K35>0,'2007 Survey responses'!$J39>0),'2011 Survey responses'!$K35,\"\")","v":""},"",null,null,{"$f":"IF(AND('2011 Survey responses'!$L35>0,'2007 Survey responses'!$I39>0),'2007 Survey responses'!$I39,\"\")","v":""},{"$f":"IF(AND('2011 Survey responses'!$L35>0,'2007 Survey responses'!$I39>0),'2011 Survey responses'!$L35,\"\")","v":""},"",null,null,{"$f":"IF(AND('2011 Survey responses'!$M35>0,'2007 Survey responses'!$K39>0),'2007 Survey responses'!$K39,\"\")","v":""},{"$f":"IF(AND('2011 Survey responses'!$M35>0,'2007 Survey responses'!$K39>0),'2011 Survey responses'!$M35,\"\")","v":""},"",null,null,{"$f":"IF('2007 Survey responses'!$B39>0,IF(AND('2011 Survey responses'!T35>0,'2007 Survey responses'!L39>0),'2007 Survey responses'!L39,\"\"),\"\")","v":""},{"$f":"IF('2007 Survey responses'!$B39>0,IF(AND('2011 Survey responses'!T35>0,'2007 Survey responses'!L39>0),'2011 Survey responses'!T35,\"\"),\"\")","v":""},"",null,null,{"$f":"IF(AND('2011 Survey responses'!$U35>0,'2007 Survey responses'!$M39>0),'2007 Survey responses'!$M39,\"\")","v":""},{"$f":"IF(AND('2011 Survey responses'!$U35>0,'2007 Survey responses'!$M39>0),'2011 Survey responses'!$U35,\"\")","v":""},""]
["Chad",{"$f":"IF(AND('2011 Survey responses'!$F36>0,'2007 Survey responses'!E40>0),'2007 Survey responses'!E40,\"\")","v":""},{"$f":"IF(AND('2011 Survey responses'!$F36>0,'2007 Survey responses'!E40>0),'2011 Survey responses'!$F36,\"\")","v":""},"",null,null,{"$f":"IF(AND('2011 Survey responses'!$G36>0,'2007 Survey responses'!$F40>0),'2007 Survey responses'!$F40,\"\")","v":""},{"$f":"IF(AND('2011 Survey responses'!$G36>0,'2007 Survey responses'!$F40>0),'2011 Survey responses'!$G36,\"\")","v":""},"",null,null,{"$f":"IF(AND('2011 Survey responses'!$H36>0,'2007 Survey responses'!$F40>0),'2007 Survey responses'!$F40,\"\")","v":""},{"$f":"IF(AND('2011 Survey responses'!$H36>0,'2007 Survey responses'!$F40>0),'2011 Survey responses'!$H36,\"\")","v":""},"",null,null,{"$f":"IF(AND(Question_grouping!O36>0,'2007 Survey responses'!$F40>0),'2007 Survey responses'!$F40,\"\")","v":""},{"$f":"IF(AND(Question_grouping!O36>0,'2007 Survey responses'!$F40>0),Question_grouping!O36,\"\")","v":""},"",null,null,{"$f":"IF(AND('2011 Survey responses'!$B36>0,'2007 Survey responses'!$C40>0),'2007 Survey responses'!$C40,\"\")","v":""},{"$f":"IF(AND('2011 Survey responses'!$B36>0,'2007 Survey responses'!$C40>0),'2011 Survey responses'!$B36,\"\")","v":""},"",null,null,{"$f":"IF(AND('2011 Survey responses'!$D36>0,'2007 Survey responses'!$D40>0),'2007 Survey responses'!$D40,\"\")","v":""},{"$f":"IF(AND('2011 Survey responses'!$D36>0,'2007 Survey responses'!$D40>0),'2011 Survey responses'!$D36,\"\")","v":""},"",null,null,{"$f":"IF(AND('2011 Survey responses'!$J36>0,'2007 Survey responses'!$H40>0),'2007 Survey responses'!$H40,\"\")","v":""},{"$f":"IF(AND('2011 Survey responses'!$J36>0,'2007 Survey responses'!$H40>0),'2011 Survey responses'!$J36,\"\")","v":""},"",null,null,{"$f":"IF(AND('2011 Survey responses'!$K36>0,'2007 Survey responses'!$J40>0),'2007 Survey responses'!$J40,\"\")","v":""},{"$f":"IF(AND('2011 Survey responses'!$K36>0,'2007 Survey responses'!$J40>0),'2011 Survey responses'!$K36,\"\")","v":""},"",null,null,{"$f":"IF(AND('2011 Survey responses'!$L36>0,'2007 Survey responses'!$I40>0),'2007 Survey responses'!$I40,\"\")","v":""},{"$f":"IF(AND('2011 Survey responses'!$L36>0,'2007 Survey responses'!$I40>0),'2011 Survey responses'!$L36,\"\")","v":""},"",null,null,{"$f":"IF(AND('2011 Survey responses'!$M36>0,'2007 Survey responses'!$K40>0),'2007 Survey responses'!$K40,\"\")","v":""},{"$f":"IF(AND('2011 Survey responses'!$M36>0,'2007 Survey responses'!$K40>0),'2011 Survey responses'!$M36,\"\")","v":""},"",null,null,{"$f":"IF('2007 Survey responses'!$B40>0,IF(AND('2011 Survey responses'!T36>0,'2007 Survey responses'!L40>0),'2007 Survey responses'!L40,\"\"),\"\")","v":""},{"$f":"IF('2007 Survey responses'!$B40>0,IF(AND('2011 Survey responses'!T36>0,'2007 Survey responses'!L40>0),'2011 Survey responses'!T36,\"\"),\"\")","v":""},"",null,null,{"$f":"IF(AND('2011 Survey responses'!$U36>0,'2007 Survey responses'!$M40>0),'2007 Survey responses'!$M40,\"\")","v":""},{"$f":"IF(AND('2011 Survey responses'!$U36>0,'2007 Survey responses'!$M40>0),'2011 Survey responses'!$U36,\"\")","v":""},""]
["Chile",{"$f":"IF(AND('2011 Survey responses'!$F37>0,'2007 Survey responses'!E41>0),'2007 Survey responses'!E41,\"\")","v":2},{"$f":"IF(AND('2011 Survey responses'!$F37>0,'2007 Survey responses'!E41>0),'2011 Survey responses'!$F37,\"\")","v":2},2,null,null,{"$f":"IF(AND('2011 Survey responses'!$G37>0,'2007 Survey responses'!$F41>0),'2007 Survey responses'!$F41,\"\")","v":""},{"$f":"IF(AND('2011 Survey responses'!$G37>0,'2007 Survey responses'!$F41>0),'2011 Survey responses'!$G37,\"\")","v":""},"",null,null,{"$f":"IF(AND('2011 Survey responses'!$H37>0,'2007 Survey responses'!$F41>0),'2007 Survey responses'!$F41,\"\")","v":""},{"$f":"IF(AND('2011 Survey responses'!$H37>0,'2007 Survey responses'!$F41>0),'2011 Survey responses'!$H37,\"\")","v":""},"",null,null,{"$f":"IF(AND(Question_grouping!O37>0,'2007 Survey responses'!$F41>0),'2007 Survey responses'!$F41,\"\")","v":""},{"$f":"IF(AND(Question_grouping!O37>0,'2007 Survey responses'!$F41>0),Question_grouping!O37,\"\")","v":""},"",null,null,{"$f":"IF(AND('2011 Survey responses'!$B37>0,'2007 Survey responses'!$C41>0),'2007 Survey responses'!$C41,\"\")","v":4},{"$f":"IF(AND('2011 Survey responses'!$B37>0,'2007 Survey responses'!$C41>0),'2011 Survey responses'!$B37,\"\")","v":5},4,null,null,{"$f":"IF(AND('2011 Survey responses'!$D37>0,'2007 Survey responses'!$D41>0),'2007 Survey responses'!$D41,\"\")","v":4},{"$f":"IF(AND('2011 Survey responses'!$D37>0,'2007 Survey responses'!$D41>0),'2011 Survey responses'!$D37,\"\")","v":6},5,null,null,{"$f":"IF(AND('2011 Survey responses'!$J37>0,'2007 Survey responses'!$H41>0),'2007 Survey responses'!$H41,\"\")","v":4},{"$f":"IF(AND('2011 Survey responses'!$J37>0,'2007 Survey responses'!$H41>0),'2011 Survey responses'!$J37,\"\")","v":2},2,null,null,{"$f":"IF(AND('2011 Survey responses'!$K37>0,'2007 Survey responses'!$J41>0),'2007 Survey responses'!$J41,\"\")","v":""},{"$f":"IF(AND('2011 Survey responses'!$K37>0,'2007 Survey responses'!$J41>0),'2011 Survey responses'!$K37,\"\")","v":""},"",null,null,{"$f":"IF(AND('2011 Survey responses'!$L37>0,'2007 Survey responses'!$I41>0),'2007 Survey responses'!$I41,\"\")","v":""},{"$f":"IF(AND('2011 Survey responses'!$L37>0,'2007 Survey responses'!$I41>0),'2011 Survey responses'!$L37,\"\")","v":""},"",null,null,{"$f":"IF(AND('2011 Survey responses'!$M37>0,'2007 Survey responses'!$K41>0),'2007 Survey responses'!$K41,\"\")","v":4},{"$f":"IF(AND('2011 Survey responses'!$M37>0,'2007 Survey responses'!$K41>0),'2011 Survey responses'!$M37,\"\")","v":4},4,null,null,{"$f":"IF('2007 Survey responses'!$B41>0,IF(AND('2011 Survey responses'!T37>0,'2007 Survey responses'!L41>0),'2007 Survey responses'!L41,\"\"),\"\")","v":4},{"$f":"IF('2007 Survey responses'!$B41>0,IF(AND('2011 Survey responses'!T37>0,'2007 Survey responses'!L41>0),'2011 Survey responses'!T37,\"\"),\"\")","v":4},4,null,null,{"$f":"IF(AND('2011 Survey responses'!$U37>0,'2007 Survey responses'!$M41>0),'2007 Survey responses'!$M41,\"\")","v":4},{"$f":"IF(AND('2011 Survey responses'!$U37>0,'2007 Survey responses'!$M41>0),'2011 Survey responses'!$U37,\"\")","v":2},2]
["China",{"$f":"IF(AND('2011 Survey responses'!$F38>0,'2007 Survey responses'!E42>0),'2007 Survey responses'!E42,\"\")","v":3},{"$f":"IF(AND('2011 Survey responses'!$F38>0,'2007 Survey responses'!E42>0),'2011 Survey responses'!$F38,\"\")","v":5},4,null,null,{"$f":"IF(AND('2011 Survey responses'!$G38>0,'2007 Survey responses'!$F42>0),'2007 Survey responses'!$F42,\"\")","v":2},{"$f":"IF(AND('2011 Survey responses'!$G38>0,'2007 Survey responses'!$F42>0),'2011 Survey responses'!$G38,\"\")","v":5},4,null,null,{"$f":"IF(AND('2011 Survey responses'!$H38>0,'2007 Survey responses'!$F42>0),'2007 Survey responses'!$F42,\"\")","v":2},{"$f":"IF(AND('2011 Survey responses'!$H38>0,'2007 Survey responses'!$F42>0),'2011 Survey responses'!$H38,\"\")","v":5},4,null,null,{"$f":"IF(AND(Question_grouping!O38>0,'2007 Survey responses'!$F42>0),'2007 Survey responses'!$F42,\"\")","v":2},{"$f":"IF(AND(Question_grouping!O38>0,'2007 Survey responses'!$F42>0),Question_grouping!O38,\"\")","v":5},4,null,null,{"$f":"IF(AND('2011 Survey responses'!$B38>0,'2007 Survey responses'!$C42>0),'2007 Survey responses'!$C42,\"\")","v":4},{"$f":"IF(AND('2011 Survey responses'!$B38>0,'2007 Survey responses'!$C42>0),'2011 Survey responses'!$B38,\"\")","v":5},4,null,null,{"$f":"IF(AND('2011 Survey responses'!$D38>0,'2007 Survey responses'!$D42>0),'2007 Survey responses'!$D42,\"\")","v":5},{"$f":"IF(AND('2011 Survey responses'!$D38>0,'2007 Survey responses'!$D42>0),'2011 Survey responses'!$D38,\"\")","v":5},4,null,null,{"$f":"IF(AND('2011 Survey responses'!$J38>0,'2007 Survey responses'!$H42>0),'2007 Survey responses'!$H42,\"\")","v":4},{"$f":"IF(AND('2011 Survey responses'!$J38>0,'2007 Survey responses'!$H42>0),'2011 Survey responses'!$J38,\"\")","v":5},4,null,null,{"$f":"IF(AND('2011 Survey responses'!$K38>0,'2007 Survey responses'!$J42>0),'2007 Survey responses'!$J42,\"\")","v":4},{"$f":"IF(AND('2011 Survey responses'!$K38>0,'2007 Survey responses'!$J42>0),'2011 Survey responses'!$K38,\"\")","v":5},4,null,null,{"$f":"IF(AND('2011 Survey responses'!$L38>0,'2007 Survey responses'!$I42>0),'2007 Survey responses'!$I42,\"\")","v":5},{"$f":"IF(AND('2011 Survey responses'!$L38>0,'2007 Survey responses'!$I42>0),'2011 Survey responses'!$L38,\"\")","v":5},4,null,null,{"$f":"IF(AND('2011 Survey responses'!$M38>0,'2007 Survey responses'!$K42>0),'2007 Survey responses'!$K42,\"\")","v":4},{"$f":"IF(AND('2011 Survey responses'!$M38>0,'2007 Survey responses'!$K42>0),'2011 Survey responses'!$M38,\"\")","v":5},4,null,null,{"$f":"IF('2007 Survey responses'!$B42>0,IF(AND('2011 Survey responses'!T38>0,'2007 Survey responses'!L42>0),'2007 Survey responses'!L42,\"\"),\"\")","v":3},{"$f":"IF('2007 Survey responses'!$B42>0,IF(AND('2011 Survey responses'!T38>0,'2007 Survey responses'!L42>0),'2011 Survey responses'!T38,\"\"),\"\")","v":2},2,null,null,{"$f":"IF(AND('2011 Survey responses'!$U38>0,'2007 Survey responses'!$M42>0),'2007 Survey responses'!$M42,\"\")","v":2},{"$f":"IF(AND('2011 Survey responses'!$U38>0,'2007 Survey responses'!$M42>0),'2011 Survey responses'!$U38,\"\")","v":2},2]
["Colombia",{"$f":"IF(AND('2011 Survey responses'!$F39>0,'2007 Survey responses'!E43>0),'2007 Survey responses'!E43,\"\")","v":""},{"$f":"IF(AND('2011 Survey responses'!$F39>0,'2007 Survey responses'!E43>0),'2011 Survey responses'!$F39,\"\")","v":""},"",null,null,{"$f":"IF(AND('2011 Survey responses'!$G39>0,'2007 Survey responses'!$F43>0),'2007 Survey responses'!$F43,\"\")","v":""},{"$f":"IF(AND('2011 Survey responses'!$G39>0,'2007 Survey responses'!$F43>0),'2011 Survey responses'!$G39,\"\")","v":""},"",null,null,{"$f":"IF(AND('2011 Survey responses'!$H39>0,'2007 Survey responses'!$F43>0),'2007 Survey responses'!$F43,\"\")","v":""},{"$f":"IF(AND('2011 Survey responses'!$H39>0,'2007 Survey responses'!$F43>0),'2011 Survey responses'!$H39,\"\")","v":""},"",null,null,{"$f":"IF(AND(Question_grouping!O39>0,'2007 Survey responses'!$F43>0),'2007 Survey responses'!$F43,\"\")","v":4},{"$f":"IF(AND(Question_grouping!O39>0,'2007 Survey responses'!$F43>0),Question_grouping!O39,\"\")","v":""},"",null,null,{"$f":"IF(AND('2011 Survey responses'!$B39>0,'2007 Survey responses'!$C43>0),'2007 Survey responses'!$C43,\"\")","v":""},{"$f":"IF(AND('2011 Survey responses'!$B39>0,'2007 Survey responses'!$C43>0),'2011 Survey responses'!$B39,\"\")","v":""},"",null,null,{"$f":"IF(AND('2011 Survey responses'!$D39>0,'2007 Survey responses'!$D43>0),'2007 Survey responses'!$D43,\"\")","v":""},{"$f":"IF(AND('2011 Survey responses'!$D39>0,'2007 Survey responses'!$D43>0),'2011 Survey responses'!$D39,\"\")","v":""},"",null,null,{"$f":"IF(AND('2011 Survey responses'!$J39>0,'2007 Survey responses'!$H43>0),'2007 Survey responses'!$H43,\"\")","v":""},{"$f":"IF(AND('2011 Survey responses'!$J39>0,'2007 Survey responses'!$H43>0),'2011 Survey responses'!$J39,\"\")","v":""},"",null,null,{"$f":"IF(AND('2011 Survey responses'!$K39>0,'2007 Survey responses'!$J43>0),'2007 Survey responses'!$J43,\"\")","v":""},{"$f":"IF(AND('2011 Survey responses'!$K39>0,'2007 Survey responses'!$J43>0),'2011 Survey responses'!$K39,\"\")","v":""},"",null,null,{"$f":"IF(AND('2011 Survey responses'!$L39>0,'2007 Survey responses'!$I43>0),'2007 Survey responses'!$I43,\"\")","v":""},{"$f":"IF(AND('2011 Survey responses'!$L39>0,'2007 Survey responses'!$I43>0),'2011 Survey responses'!$L39,\"\")","v":""},"",null,null,{"$f":"IF(AND('2011 Survey responses'!$M39>0,'2007 Survey responses'!$K43>0),'2007 Survey responses'!$K43,\"\")","v":""},{"$f":"IF(AND('2011 Survey responses'!$M39>0,'2007 Survey responses'!$K43>0),'2011 Survey responses'!$M39,\"\")","v":""},"",null,null,{"$f":"IF('2007 Survey responses'!$B43>0,IF(AND('2011 Survey responses'!T39>0,'2007 Survey responses'!L43>0),'2007 Survey responses'!L43,\"\"),\"\")","v":""},{"$f":"IF('2007 Survey responses'!$B43>0,IF(AND('2011 Survey responses'!T39>0,'2007 Survey responses'!L43>0),'2011 Survey responses'!T39,\"\"),\"\")","v":""},"",null,null,{"$f":"IF(AND('2011 Survey responses'!$U39>0,'2007 Survey responses'!$M43>0),'2007 Survey responses'!$M43,\"\")","v":""},{"$f":"IF(AND('2011 Survey responses'!$U39>0,'2007 Survey responses'!$M43>0),'2011 Survey responses'!$U39,\"\")","v":""},""]
["Comoros",{"$f":"IF(AND('2011 Survey responses'!$F40>0,'2007 Survey responses'!E44>0),'2007 Survey responses'!E44,\"\")","v":""},{"$f":"IF(AND('2011 Survey responses'!$F40>0,'2007 Survey responses'!E44>0),'2011 Survey responses'!$F40,\"\")","v":""},"",null,null,{"$f":"IF(AND('2011 Survey responses'!$G40>0,'2007 Survey responses'!$F44>0),'2007 Survey responses'!$F44,\"\")","v":""},{"$f":"IF(AND('2011 Survey responses'!$G40>0,'2007 Survey responses'!$F44>0),'2011 Survey responses'!$G40,\"\")","v":""},"",null,null,{"$f":"IF(AND('2011 Survey responses'!$H40>0,'2007 Survey responses'!$F44>0),'2007 Survey responses'!$F44,\"\")","v":""},{"$f":"IF(AND('2011 Survey responses'!$H40>0,'2007 Survey responses'!$F44>0),'2011 Survey responses'!$H40,\"\")","v":""},"",null,null,{"$f":"IF(AND(Question_grouping!O40>0,'2007 Survey responses'!$F44>0),'2007 Survey responses'!$F44,\"\")","v":""},{"$f":"IF(AND(Question_grouping!O40>0,'2007 Survey responses'!$F44>0),Question_grouping!O40,\"\")","v":""},"",null,null,{"$f":"IF(AND('2011 Survey responses'!$B40>0,'2007 Survey responses'!$C44>0),'2007 Survey responses'!$C44,\"\")","v":""},{"$f":"IF(AND('2011 Survey responses'!$B40>0,'2007 Survey responses'!$C44>0),'2011 Survey responses'!$B40,\"\")","v":""},"",null,null,{"$f":"IF(AND('2011 Survey responses'!$D40>0,'2007 Survey responses'!$D44>0),'2007 Survey responses'!$D44,\"\")","v":""},{"$f":"IF(AND('2011 Survey responses'!$D40>0,'2007 Survey responses'!$D44>0),'2011 Survey responses'!$D40,\"\")","v":""},"",null,null,{"$f":"IF(AND('2011 Survey responses'!$J40>0,'2007 Survey responses'!$H44>0),'2007 Survey responses'!$H44,\"\")","v":""},{"$f":"IF(AND('2011 Survey responses'!$J40>0,'2007 Survey responses'!$H44>0),'2011 Survey responses'!$J40,\"\")","v":""},"",null,null,{"$f":"IF(AND('2011 Survey responses'!$K40>0,'2007 Survey responses'!$J44>0),'2007 Survey responses'!$J44,\"\")","v":""},{"$f":"IF(AND('2011 Survey responses'!$K40>0,'2007 Survey responses'!$J44>0),'2011 Survey responses'!$K40,\"\")","v":""},"",null,null,{"$f":"IF(AND('2011 Survey responses'!$L40>0,'2007 Survey responses'!$I44>0),'2007 Survey responses'!$I44,\"\")","v":""},{"$f":"IF(AND('2011 Survey responses'!$L40>0,'2007 Survey responses'!$I44>0),'2011 Survey responses'!$L40,\"\")","v":""},"",null,null,{"$f":"IF(AND('2011 Survey responses'!$M40>0,'2007 Survey responses'!$K44>0),'2007 Survey responses'!$K44,\"\")","v":""},{"$f":"IF(AND('2011 Survey responses'!$M40>0,'2007 Survey responses'!$K44>0),'2011 Survey responses'!$M40,\"\")","v":""},"",null,null,{"$f":"IF('2007 Survey responses'!$B44>0,IF(AND('2011 Survey responses'!T40>0,'2007 Survey responses'!L44>0),'2007 Survey responses'!L44,\"\"),\"\")","v":""},{"$f":"IF('2007 Survey responses'!$B44>0,IF(AND('2011 Survey responses'!T40>0,'2007 Survey responses'!L44>0),'2011 Survey responses'!T40,\"\"),\"\")","v":""},"",null,null,{"$f":"IF(AND('2011 Survey responses'!$U40>0,'2007 Survey responses'!$M44>0),'2007 Survey responses'!$M44,\"\")","v":""},{"$f":"IF(AND('2011 Survey responses'!$U40>0,'2007 Survey responses'!$M44>0),'2011 Survey responses'!$U40,\"\")","v":""},""]
["Congo",{"$f":"IF(AND('2011 Survey responses'!$F41>0,'2007 Survey responses'!E45>0),'2007 Survey responses'!E45,\"\")","v":2},{"$f":"IF(AND('2011 Survey responses'!$F41>0,'2007 Survey responses'!E45>0),'2011 Survey responses'!$F41,\"\")","v":1},1,null,null,{"$f":"IF(AND('2011 Survey responses'!$G41>0,'2007 Survey responses'!$F45>0),'2007 Survey responses'!$F45,\"\")","v":1},{"$f":"IF(AND('2011 Survey responses'!$G41>0,'2007 Survey responses'!$F45>0),'2011 Survey responses'!$G41,\"\")","v":1},1,null,null,{"$f":"IF(AND('2011 Survey responses'!$H41>0,'2007 Survey responses'!$F45>0),'2007 Survey responses'!$F45,\"\")","v":1},{"$f":"IF(AND('2011 Survey responses'!$H41>0,'2007 Survey responses'!$F45>0),'2011 Survey responses'!$H41,\"\")","v":1},1,null,null,{"$f":"IF(AND(Question_grouping!O41>0,'2007 Survey responses'!$F45>0),'2007 Survey responses'!$F45,\"\")","v":1},{"$f":"IF(AND(Question_grouping!O41>0,'2007 Survey responses'!$F45>0),Question_grouping!O41,\"\")","v":1},1,null,null,{"$f":"IF(AND('2011 Survey responses'!$B41>0,'2007 Survey responses'!$C45>0),'2007 Survey responses'!$C45,\"\")","v":2},{"$f":"IF(AND('2011 Survey responses'!$B41>0,'2007 Survey responses'!$C45>0),'2011 Survey responses'!$B41,\"\")","v":2},2,null,null,{"$f":"IF(AND('2011 Survey responses'!$D41>0,'2007 Survey responses'!$D45>0),'2007 Survey responses'!$D45,\"\")","v":4},{"$f":"IF(AND('2011 Survey responses'!$D41>0,'2007 Survey responses'!$D45>0),'2011 Survey responses'!$D41,\"\")","v":4},4,null,null,{"$f":"IF(AND('2011 Survey responses'!$J41>0,'2007 Survey responses'!$H45>0),'2007 Survey responses'!$H45,\"\")","v":""},{"$f":"IF(AND('2011 Survey responses'!$J41>0,'2007 Survey responses'!$H45>0),'2011 Survey responses'!$J41,\"\")","v":""},"",null,null,{"$f":"IF(AND('2011 Survey responses'!$K41>0,'2007 Survey responses'!$J45>0),'2007 Survey responses'!$J45,\"\")","v":""},{"$f":"IF(AND('2011 Survey responses'!$K41>0,'2007 Survey responses'!$J45>0),'2011 Survey responses'!$K41,\"\")","v":""},"",null,null,{"$f":"IF(AND('2011 Survey responses'!$L41>0,'2007 Survey responses'!$I45>0),'2007 Survey responses'!$I45,\"\")","v":""},{"$f":"IF(AND('2011 Survey responses'!$L41>0,'2007 Survey responses'!$I45>0),'2011 Survey responses'!$L41,\"\")","v":""},"",null,null,{"$f":"IF(AND('2011 Survey responses'!$M41>0,'2007 Survey responses'!$K45>0),'2007 Survey responses'!$K45,\"\")","v":""},{"$f":"IF(AND('2011 Survey responses'!$M41>0,'2007 Survey responses'!$K45>0),'2011 Survey responses'!$M41,\"\")","v":""},"",null,null,{"$f":"IF('2007 Survey responses'!$B45>0,IF(AND('2011 Survey responses'!T41>0,'2007 Survey responses'!L45>0),'2007 Survey responses'!L45,\"\"),\"\")","v":""},{"$f":"IF('2007 Survey responses'!$B45>0,IF(AND('2011 Survey responses'!T41>0,'2007 Survey responses'!L45>0),'2011 Survey responses'!T41,\"\"),\"\")","v":""},"",null,null,{"$f":"IF(AND('2011 Survey responses'!$U41>0,'2007 Survey responses'!$M45>0),'2007 Survey responses'!$M45,\"\")","v":""},{"$f":"IF(AND('2011 Survey responses'!$U41>0,'2007 Survey responses'!$M45>0),'2011 Survey responses'!$U41,\"\")","v":""},""]
["Costa Rica",{"$f":"IF(AND('2011 Survey responses'!$F42>0,'2007 Survey responses'!E46>0),'2007 Survey responses'!E46,\"\")","v":""},{"$f":"IF(AND('2011 Survey responses'!$F42>0,'2007 Survey responses'!E46>0),'2011 Survey responses'!$F42,\"\")","v":""},"",null,null,{"$f":"IF(AND('2011 Survey responses'!$G42>0,'2007 Survey responses'!$F46>0),'2007 Survey responses'!$F46,\"\")","v":""},{"$f":"IF(AND('2011 Survey responses'!$G42>0,'2007 Survey responses'!$F46>0),'2011 Survey responses'!$G42,\"\")","v":""},"",null,null,{"$f":"IF(AND('2011 Survey responses'!$H42>0,'2007 Survey responses'!$F46>0),'2007 Survey responses'!$F46,\"\")","v":""},{"$f":"IF(AND('2011 Survey responses'!$H42>0,'2007 Survey responses'!$F46>0),'2011 Survey responses'!$H42,\"\")","v":""},"",null,null,{"$f":"IF(AND(Question_grouping!O42>0,'2007 Survey responses'!$F46>0),'2007 Survey responses'!$F46,\"\")","v":""},{"$f":"IF(AND(Question_grouping!O42>0,'2007 Survey responses'!$F46>0),Question_grouping!O42,\"\")","v":""},"",null,null,{"$f":"IF(AND('2011 Survey responses'!$B42>0,'2007 Survey responses'!$C46>0),'2007 Survey responses'!$C46,\"\")","v":""},{"$f":"IF(AND('2011 Survey responses'!$B42>0,'2007 Survey responses'!$C46>0),'2011 Survey responses'!$B42,\"\")","v":""},"",null,null,{"$f":"IF(AND('2011 Survey responses'!$D42>0,'2007 Survey responses'!$D46>0),'2007 Survey responses'!$D46,\"\")","v":""},{"$f":"IF(AND('2011 Survey responses'!$D42>0,'2007 Survey responses'!$D46>0),'2011 Survey responses'!$D42,\"\")","v":""},"",null,null,{"$f":"IF(AND('2011 Survey responses'!$J42>0,'2007 Survey responses'!$H46>0),'2007 Survey responses'!$H46,\"\")","v":""},{"$f":"IF(AND('2011 Survey responses'!$J42>0,'2007 Survey responses'!$H46>0),'2011 Survey responses'!$J42,\"\")","v":""},"",null,null,{"$f":"IF(AND('2011 Survey responses'!$K42>0,'2007 Survey responses'!$J46>0),'2007 Survey responses'!$J46,\"\")","v":""},{"$f":"IF(AND('2011 Survey responses'!$K42>0,'2007 Survey responses'!$J46>0),'2011 Survey responses'!$K42,\"\")","v":""},"",null,null,{"$f":"IF(AND('2011 Survey responses'!$L42>0,'2007 Survey responses'!$I46>0),'2007 Survey responses'!$I46,\"\")","v":""},{"$f":"IF(AND('2011 Survey responses'!$L42>0,'2007 Survey responses'!$I46>0),'2011 Survey responses'!$L42,\"\")","v":""},"",null,null,{"$f":"IF(AND('2011 Survey responses'!$M42>0,'2007 Survey responses'!$K46>0),'2007 Survey responses'!$K46,\"\")","v":""},{"$f":"IF(AND('2011 Survey responses'!$M42>0,'2007 Survey responses'!$K46>0),'2011 Survey responses'!$M42,\"\")","v":""},"",null,null,{"$f":"IF('2007 Survey responses'!$B46>0,IF(AND('2011 Survey responses'!T42>0,'2007 Survey responses'!L46>0),'2007 Survey responses'!L46,\"\"),\"\")","v":""},{"$f":"IF('2007 Survey responses'!$B46>0,IF(AND('2011 Survey responses'!T42>0,'2007 Survey responses'!L46>0),'2011 Survey responses'!T42,\"\"),\"\")","v":""},"",null,null,{"$f":"IF(AND('2011 Survey responses'!$U42>0,'2007 Survey responses'!$M46>0),'2007 Survey responses'!$M46,\"\")","v":""},{"$f":"IF(AND('2011 Survey responses'!$U42>0,'2007 Survey responses'!$M46>0),'2011 Survey responses'!$U42,\"\")","v":""},""]
["Côte d'Ivoire",{"$f":"IF(AND('2011 Survey responses'!$F43>0,'2007 Survey responses'!E47>0),'2007 Survey responses'!E47,\"\")","v":3},{"$f":"IF(AND('2011 Survey responses'!$F43>0,'2007 Survey responses'!E47>0),'2011 Survey responses'!$F43,\"\")","v":3},3,null,null,{"$f":"IF(AND('2011 Survey responses'!$G43>0,'2007 Survey responses'!$F47>0),'2007 Survey responses'!$F47,\"\")","v":""},{"$f":"IF(AND('2011 Survey responses'!$G43>0,'2007 Survey responses'!$F47>0),'2011 Survey responses'!$G43,\"\")","v":""},"",null,null,{"$f":"IF(AND('2011 Survey responses'!$H43>0,'2007 Survey responses'!$F47>0),'2007 Survey responses'!$F47,\"\")","v":3},{"$f":"IF(AND('2011 Survey responses'!$H43>0,'2007 Survey responses'!$F47>0),'2011 Survey responses'!$H43,\"\")","v":1},1,null,null,{"$f":"IF(AND(Question_grouping!O43>0,'2007 Survey responses'!$F47>0),'2007 Survey responses'!$F47,\"\")","v":3},{"$f":"IF(AND(Question_grouping!O43>0,'2007 Survey responses'!$F47>0),Question_grouping!O43,\"\")","v":1},1,null,null,{"$f":"IF(AND('2011 Survey responses'!$B43>0,'2007 Survey responses'!$C47>0),'2007 Survey responses'!$C47,\"\")","v":4},{"$f":"IF(AND('2011 Survey responses'!$B43>0,'2007 Survey responses'!$C47>0),'2011 Survey responses'!$B43,\"\")","v":3},3,null,null,{"$f":"IF(AND('2011 Survey responses'!$D43>0,'2007 Survey responses'!$D47>0),'2007 Survey responses'!$D47,\"\")","v":5},{"$f":"IF(AND('2011 Survey responses'!$D43>0,'2007 Survey responses'!$D47>0),'2011 Survey responses'!$D43,\"\")","v":3},3,null,null,{"$f":"IF(AND('2011 Survey responses'!$J43>0,'2007 Survey responses'!$H47>0),'2007 Survey responses'!$H47,\"\")","v":1},{"$f":"IF(AND('2011 Survey responses'!$J43>0,'2007 Survey responses'!$H47>0),'2011 Survey responses'!$J43,\"\")","v":3},3,null,null,{"$f":"IF(AND('2011 Survey responses'!$K43>0,'2007 Survey responses'!$J47>0),'2007 Survey responses'!$J47,\"\")","v":2},{"$f":"IF(AND('2011 Survey responses'!$K43>0,'2007 Survey responses'!$J47>0),'2011 Survey responses'!$K43,\"\")","v":3},3,null,null,{"$f":"IF(AND('2011 Survey responses'!$L43>0,'2007 Survey responses'!$I47>0),'2007 Survey responses'!$I47,\"\")","v":1},{"$f":"IF(AND('2011 Survey responses'!$L43>0,'2007 Survey responses'!$I47>0),'2011 Survey responses'!$L43,\"\")","v":2},2,null,null,{"$f":"IF(AND('2011 Survey responses'!$M43>0,'2007 Survey responses'!$K47>0),'2007 Survey responses'!$K47,\"\")","v":5},{"$f":"IF(AND('2011 Survey responses'!$M43>0,'2007 Survey responses'!$K47>0),'2011 Survey responses'!$M43,\"\")","v":3},3,null,null,{"$f":"IF('2007 Survey responses'!$B47>0,IF(AND('2011 Survey responses'!T43>0,'2007 Survey responses'!L47>0),'2007 Survey responses'!L47,\"\"),\"\")","v":3},{"$f":"IF('2007 Survey responses'!$B47>0,IF(AND('2011 Survey responses'!T43>0,'2007 Survey responses'!L47>0),'2011 Survey responses'!T43,\"\"),\"\")","v":5},4,null,null,{"$f":"IF(AND('2011 Survey responses'!$U43>0,'2007 Survey responses'!$M47>0),'2007 Survey responses'!$M47,\"\")","v":3},{"$f":"IF(AND('2011 Survey responses'!$U43>0,'2007 Survey responses'!$M47>0),'2011 Survey responses'!$U43,\"\")","v":5},4]
["Croatia",{"$f":"IF(AND('2011 Survey responses'!$F44>0,'2007 Survey responses'!E48>0),'2007 Survey responses'!E48,\"\")","v":""},{"$f":"IF(AND('2011 Survey responses'!$F44>0,'2007 Survey responses'!E48>0),'2011 Survey responses'!$F44,\"\")","v":""},"",null,null,{"$f":"IF(AND('2011 Survey responses'!$G44>0,'2007 Survey responses'!$F48>0),'2007 Survey responses'!$F48,\"\")","v":""},{"$f":"IF(AND('2011 Survey responses'!$G44>0,'2007 Survey responses'!$F48>0),'2011 Survey responses'!$G44,\"\")","v":""},"",null,null,{"$f":"IF(AND('2011 Survey responses'!$H44>0,'2007 Survey responses'!$F48>0),'2007 Survey responses'!$F48,\"\")","v":""},{"$f":"IF(AND('2011 Survey responses'!$H44>0,'2007 Survey responses'!$F48>0),'2011 Survey responses'!$H44,\"\")","v":""},"",null,null,{"$f":"IF(AND(Question_grouping!O44>0,'2007 Survey responses'!$F48>0),'2007 Survey responses'!$F48,\"\")","v":1},{"$f":"IF(AND(Question_grouping!O44>0,'2007 Survey responses'!$F48>0),Question_grouping!O44,\"\")","v":""},"",null,null,{"$f":"IF(AND('2011 Survey responses'!$B44>0,'2007 Survey responses'!$C48>0),'2007 Survey responses'!$C48,\"\")","v":""},{"$f":"IF(AND('2011 Survey responses'!$B44>0,'2007 Survey responses'!$C48>0),'2011 Survey responses'!$B44,\"\")","v":""},"",null,null,{"$f":"IF(AND('2011 Survey responses'!$D44>0,'2007 Survey responses'!$D48>0),'2007 Survey responses'!$D48,\"\")","v":""},{"$f":"IF(AND('2011 Survey responses'!$D44>0,'2007 Survey responses'!$D48>0),'2011 Survey responses'!$D44,\"\")","v":""},"",null,null,{"$f":"IF(AND('2011 Survey responses'!$J44>0,'2007 Survey responses'!$H48>0),'2007 Survey responses'!$H48,\"\")","v":""},{"$f":"IF(AND('2011 Survey responses'!$J44>0,'2007 Survey responses'!$H48>0),'2011 Survey responses'!$J44,\"\")","v":""},"",null,null,{"$f":"IF(AND('2011 Survey responses'!$K44>0,'2007 Survey responses'!$J48>0),'2007 Survey responses'!$J48,\"\")","v":""},{"$f":"IF(AND('2011 Survey responses'!$K44>0,'2007 Survey responses'!$J48>0),'2011 Survey responses'!$K44,\"\")","v":""},"",null,null,{"$f":"IF(AND('2011 Survey responses'!$L44>0,'2007 Survey responses'!$I48>0),'2007 Survey responses'!$I48,\"\")","v":""},{"$f":"IF(AND('2011 Survey responses'!$L44>0,'2007 Survey responses'!$I48>0),'2011 Survey responses'!$L44,\"\")","v":""},"",null,null,{"$f":"IF(AND('2011 Survey responses'!$M44>0,'2007 Survey responses'!$K48>0),'2007 Survey responses'!$K48,\"\")","v":""},{"$f":"IF(AND('2011 Survey responses'!$M44>0,'2007 Survey responses'!$K48>0),'2011 Survey responses'!$M44,\"\")","v":""},"",null,null,{"$f":"IF('2007 Survey responses'!$B48>0,IF(AND('2011 Survey responses'!T44>0,'2007 Survey responses'!L48>0),'2007 Survey responses'!L48,\"\"),\"\")","v":""},{"$f":"IF('2007 Survey responses'!$B48>0,IF(AND('2011 Survey responses'!T44>0,'2007 Survey responses'!L48>0),'2011 Survey responses'!T44,\"\"),\"\")","v":""},"",null,null,{"$f":"IF(AND('2011 Survey responses'!$U44>0,'2007 Survey responses'!$M48>0),'2007 Survey responses'!$M48,\"\")","v":""},{"$f":"IF(AND('2011 Survey responses'!$U44>0,'2007 Survey responses'!$M48>0),'2011 Survey responses'!$U44,\"\")","v":""},""]
["Cuba",{"$f":"IF(AND('2011 Survey responses'!$F45>0,'2007 Survey responses'!E49>0),'2007 Survey responses'!E49,\"\")","v":2},{"$f":"IF(AND('2011 Survey responses'!$F45>0,'2007 Survey responses'!E49>0),'2011 Survey responses'!$F45,\"\")","v":5},4,null,null,{"$f":"IF(AND('2011 Survey responses'!$G45>0,'2007 Survey responses'!$F49>0),'2007 Survey responses'!$F49,\"\")","v":2},{"$f":"IF(AND('2011 Survey responses'!$G45>0,'2007 Survey responses'!$F49>0),'2011 Survey responses'!$G45,\"\")","v":1},1,null,null,{"$f":"IF(AND('2011 Survey responses'!$H45>0,'2007 Survey responses'!$F49>0),'2007 Survey responses'!$F49,\"\")","v":2},{"$f":"IF(AND('2011 Survey responses'!$H45>0,'2007 Survey responses'!$F49>0),'2011 Survey responses'!$H45,\"\")","v":5},4,null,null,{"$f":"IF(AND(Question_grouping!O45>0,'2007 Survey responses'!$F49>0),'2007 Survey responses'!$F49,\"\")","v":2},{"$f":"IF(AND(Question_grouping!O45>0,'2007 Survey responses'!$F49>0),Question_grouping!O45,\"\")","v":5},4,null,null,{"$f":"IF(AND('2011 Survey responses'!$B45>0,'2007 Survey responses'!$C49>0),'2007 Survey responses'!$C49,\"\")","v":3},{"$f":"IF(AND('2011 Survey responses'!$B45>0,'2007 Survey responses'!$C49>0),'2011 Survey responses'!$B45,\"\")","v":5},4,null,null,{"$f":"IF(AND('2011 Survey responses'!$D45>0,'2007 Survey responses'!$D49>0),'2007 Survey responses'!$D49,\"\")","v":5},{"$f":"IF(AND('2011 Survey responses'!$D45>0,'2007 Survey responses'!$D49>0),'2011 Survey responses'!$D45,\"\")","v":5},4,null,null,{"$f":"IF(AND('2011 Survey responses'!$J45>0,'2007 Survey responses'!$H49>0),'2007 Survey responses'!$H49,\"\")","v":2},{"$f":"IF(AND('2011 Survey responses'!$J45>0,'2007 Survey responses'!$H49>0),'2011 Survey responses'!$J45,\"\")","v":5},4,null,null,{"$f":"IF(AND('2011 Survey responses'!$K45>0,'2007 Survey responses'!$J49>0),'2007 Survey responses'!$J49,\"\")","v":5},{"$f":"IF(AND('2011 Survey responses'!$K45>0,'2007 Survey responses'!$J49>0),'2011 Survey responses'!$K45,\"\")","v":5},4,null,null,{"$f":"IF(AND('2011 Survey responses'!$L45>0,'2007 Survey responses'!$I49>0),'2007 Survey responses'!$I49,\"\")","v":3},{"$f":"IF(AND('2011 Survey responses'!$L45>0,'2007 Survey responses'!$I49>0),'2011 Survey responses'!$L45,\"\")","v":5},4,null,null,{"$f":"IF(AND('2011 Survey responses'!$M45>0,'2007 Survey responses'!$K49>0),'2007 Survey responses'!$K49,\"\")","v":3},{"$f":"IF(AND('2011 Survey responses'!$M45>0,'2007 Survey responses'!$K49>0),'2011 Survey responses'!$M45,\"\")","v":5},4,null,null,{"$f":"IF('2007 Survey responses'!$B49>0,IF(AND('2011 Survey responses'!T45>0,'2007 Survey responses'!L49>0),'2007 Survey responses'!L49,\"\"),\"\")","v":4},{"$f":"IF('2007 Survey responses'!$B49>0,IF(AND('2011 Survey responses'!T45>0,'2007 Survey responses'!L49>0),'2011 Survey responses'!T45,\"\"),\"\")","v":5},4,null,null,{"$f":"IF(AND('2011 Survey responses'!$U45>0,'2007 Survey responses'!$M49>0),'2007 Survey responses'!$M49,\"\")","v":2},{"$f":"IF(AND('2011 Survey responses'!$U45>0,'2007 Survey responses'!$M49>0),'2011 Survey responses'!$U45,\"\")","v":1},1]
["Cyprus",{"$f":"IF(AND('2011 Survey responses'!$F46>0,'2007 Survey responses'!E50>0),'2007 Survey responses'!E50,\"\")","v":4},{"$f":"IF(AND('2011 Survey responses'!$F46>0,'2007 Survey responses'!E50>0),'2011 Survey responses'!$F46,\"\")","v":3},3,null,null,{"$f":"IF(AND('2011 Survey responses'!$G46>0,'2007 Survey responses'!$F50>0),'2007 Survey responses'!$F50,\"\")","v":4},{"$f":"IF(AND('2011 Survey responses'!$G46>0,'2007 Survey responses'!$F50>0),'2011 Survey responses'!$G46,\"\")","v":1},1,null,null,{"$f":"IF(AND('2011 Survey responses'!$H46>0,'2007 Survey responses'!$F50>0),'2007 Survey responses'!$F50,\"\")","v":4},{"$f":"IF(AND('2011 Survey responses'!$H46>0,'2007 Survey responses'!$F50>0),'2011 Survey responses'!$H46,\"\")","v":5},4,null,null,{"$f":"IF(AND(Question_grouping!O46>0,'2007 Survey responses'!$F50>0),'2007 Survey responses'!$F50,\"\")","v":4},{"$f":"IF(AND(Question_grouping!O46>0,'2007 Survey responses'!$F50>0),Question_grouping!O46,\"\")","v":5},4,null,null,{"$f":"IF(AND('2011 Survey responses'!$B46>0,'2007 Survey responses'!$C50>0),'2007 Survey responses'!$C50,\"\")","v":5},{"$f":"IF(AND('2011 Survey responses'!$B46>0,'2007 Survey responses'!$C50>0),'2011 Survey responses'!$B46,\"\")","v":5},4,null,null,{"$f":"IF(AND('2011 Survey responses'!$D46>0,'2007 Survey responses'!$D50>0),'2007 Survey responses'!$D50,\"\")","v":5},{"$f":"IF(AND('2011 Survey responses'!$D46>0,'2007 Survey responses'!$D50>0),'2011 Survey responses'!$D46,\"\")","v":6},5,null,null,{"$f":"IF(AND('2011 Survey responses'!$J46>0,'2007 Survey responses'!$H50>0),'2007 Survey responses'!$H50,\"\")","v":1},{"$f":"IF(AND('2011 Survey responses'!$J46>0,'2007 Survey responses'!$H50>0),'2011 Survey responses'!$J46,\"\")","v":1},1,null,null,{"$f":"IF(AND('2011 Survey responses'!$K46>0,'2007 Survey responses'!$J50>0),'2007 Survey responses'!$J50,\"\")","v":4},{"$f":"IF(AND('2011 Survey responses'!$K46>0,'2007 Survey responses'!$J50>0),'2011 Survey responses'!$K46,\"\")","v":6},5,null,null,{"$f":"IF(AND('2011 Survey responses'!$L46>0,'2007 Survey responses'!$I50>0),'2007 Survey responses'!$I50,\"\")","v":4},{"$f":"IF(AND('2011 Survey responses'!$L46>0,'2007 Survey responses'!$I50>0),'2011 Survey responses'!$L46,\"\")","v":1},1,null,null,{"$f":"IF(AND('2011 Survey responses'!$M46>0,'2007 Survey responses'!$K50>0),'2007 Survey responses'!$K50,\"\")","v":4},{"$f":"IF(AND('2011 Survey responses'!$M46>0,'2007 Survey responses'!$K50>0),'2011 Survey responses'!$M46,\"\")","v":1},1,null,null,{"$f":"IF('2007 Survey responses'!$B50>0,IF(AND('2011 Survey responses'!T46>0,'2007 Survey responses'!L50>0),'2007 Survey responses'!L50,\"\"),\"\")","v":4},{"$f":"IF('2007 Survey responses'!$B50>0,IF(AND('2011 Survey responses'!T46>0,'2007 Survey responses'!L50>0),'2011 Survey responses'!T46,\"\"),\"\")","v":2},2,null,null,{"$f":"IF(AND('2011 Survey responses'!$U46>0,'2007 Survey responses'!$M50>0),'2007 Survey responses'!$M50,\"\")","v":1},{"$f":"IF(AND('2011 Survey responses'!$U46>0,'2007 Survey responses'!$M50>0),'2011 Survey responses'!$U46,\"\")","v":2},2]
["Czech Republic",{"$f":"IF(AND('2011 Survey responses'!$F47>0,'2007 Survey responses'!E51>0),'2007 Survey responses'!E51,\"\")","v":2},{"$f":"IF(AND('2011 Survey responses'!$F47>0,'2007 Survey responses'!E51>0),'2011 Survey responses'!$F47,\"\")","v":5},4,null,null,{"$f":"IF(AND('2011 Survey responses'!$G47>0,'2007 Survey responses'!$F51>0),'2007 Survey responses'!$F51,\"\")","v":""},{"$f":"IF(AND('2011 Survey responses'!$G47>0,'2007 Survey responses'!$F51>0),'2011 Survey responses'!$G47,\"\")","v":""},"",null,null,{"$f":"IF(AND('2011 Survey responses'!$H47>0,'2007 Survey responses'!$F51>0),'2007 Survey responses'!$F51,\"\")","v":""},{"$f":"IF(AND('2011 Survey responses'!$H47>0,'2007 Survey responses'!$F51>0),'2011 Survey responses'!$H47,\"\")","v":""},"",null,null,{"$f":"IF(AND(Question_grouping!O47>0,'2007 Survey responses'!$F51>0),'2007 Survey responses'!$F51,\"\")","v":""},{"$f":"IF(AND(Question_grouping!O47>0,'2007 Survey responses'!$F51>0),Question_grouping!O47,\"\")","v":""},"",null,null,{"$f":"IF(AND('2011 Survey responses'!$B47>0,'2007 Survey responses'!$C51>0),'2007 Survey responses'!$C51,\"\")","v":2},{"$f":"IF(AND('2011 Survey responses'!$B47>0,'2007 Survey responses'!$C51>0),'2011 Survey responses'!$B47,\"\")","v":5},4,null,null,{"$f":"IF(AND('2011 Survey responses'!$D47>0,'2007 Survey responses'!$D51>0),'2007 Survey responses'!$D51,\"\")","v":4},{"$f":"IF(AND('2011 Survey responses'!$D47>0,'2007 Survey responses'!$D51>0),'2011 Survey responses'!$D47,\"\")","v":6},5,null,null,{"$f":"IF(AND('2011 Survey responses'!$J47>0,'2007 Survey responses'!$H51>0),'2007 Survey responses'!$H51,\"\")","v":1},{"$f":"IF(AND('2011 Survey responses'!$J47>0,'2007 Survey responses'!$H51>0),'2011 Survey responses'!$J47,\"\")","v":1},1,null,null,{"$f":"IF(AND('2011 Survey responses'!$K47>0,'2007 Survey responses'!$J51>0),'2007 Survey responses'!$J51,\"\")","v":2},{"$f":"IF(AND('2011 Survey responses'!$K47>0,'2007 Survey responses'!$J51>0),'2011 Survey responses'!$K47,\"\")","v":5},4,null,null,{"$f":"IF(AND('2011 Survey responses'!$L47>0,'2007 Survey responses'!$I51>0),'2007 Survey responses'!$I51,\"\")","v":2},{"$f":"IF(AND('2011 Survey responses'!$L47>0,'2007 Survey responses'!$I51>0),'2011 Survey responses'!$L47,\"\")","v":2},2,null,null,{"$f":"IF(AND('2011 Survey responses'!$M47>0,'2007 Survey responses'!$K51>0),'2007 Survey responses'!$K51,\"\")","v":2},{"$f":"IF(AND('2011 Survey responses'!$M47>0,'2007 Survey responses'!$K51>0),'2011 Survey responses'!$M47,\"\")","v":6},5,null,null,{"$f":"IF('2007 Survey responses'!$B51>0,IF(AND('2011 Survey responses'!T47>0,'2007 Survey responses'!L51>0),'2007 Survey responses'!L51,\"\"),\"\")","v":1},{"$f":"IF('2007 Survey responses'!$B51>0,IF(AND('2011 Survey responses'!T47>0,'2007 Survey responses'!L51>0),'2011 Survey responses'!T47,\"\"),\"\")","v":6},5,null,null,{"$f":"IF(AND('2011 Survey responses'!$U47>0,'2007 Survey responses'!$M51>0),'2007 Survey responses'!$M51,\"\")","v":1},{"$f":"IF(AND('2011 Survey responses'!$U47>0,'2007 Survey responses'!$M51>0),'2011 Survey responses'!$U47,\"\")","v":6},5]
["Democratic People's Republic of Korea",{"$f":"IF(AND('2011 Survey responses'!$F48>0,'2007 Survey responses'!E52>0),'2007 Survey responses'!E52,\"\")","v":3},{"$f":"IF(AND('2011 Survey responses'!$F48>0,'2007 Survey responses'!E52>0),'2011 Survey responses'!$F48,\"\")","v":2},2,null,null,{"$f":"IF(AND('2011 Survey responses'!$G48>0,'2007 Survey responses'!$F52>0),'2007 Survey responses'!$F52,\"\")","v":2},{"$f":"IF(AND('2011 Survey responses'!$G48>0,'2007 Survey responses'!$F52>0),'2011 Survey responses'!$G48,\"\")","v":2},2,null,null,{"$f":"IF(AND('2011 Survey responses'!$H48>0,'2007 Survey responses'!$F52>0),'2007 Survey responses'!$F52,\"\")","v":2},{"$f":"IF(AND('2011 Survey responses'!$H48>0,'2007 Survey responses'!$F52>0),'2011 Survey responses'!$H48,\"\")","v":2},2,null,null,{"$f":"IF(AND(Question_grouping!O48>0,'2007 Survey responses'!$F52>0),'2007 Survey responses'!$F52,\"\")","v":2},{"$f":"IF(AND(Question_grouping!O48>0,'2007 Survey responses'!$F52>0),Question_grouping!O48,\"\")","v":2},2,null,null,{"$f":"IF(AND('2011 Survey responses'!$B48>0,'2007 Survey responses'!$C52>0),'2007 Survey responses'!$C52,\"\")","v":3},{"$f":"IF(AND('2011 Survey responses'!$B48>0,'2007 Survey responses'!$C52>0),'2011 Survey responses'!$B48,\"\")","v":4},4,null,null,{"$f":"IF(AND('2011 Survey responses'!$D48>0,'2007 Survey responses'!$D52>0),'2007 Survey responses'!$D52,\"\")","v":5},{"$f":"IF(AND('2011 Survey responses'!$D48>0,'2007 Survey responses'!$D52>0),'2011 Survey responses'!$D48,\"\")","v":4},4,null,null,{"$f":"IF(AND('2011 Survey responses'!$J48>0,'2007 Survey responses'!$H52>0),'2007 Survey responses'!$H52,\"\")","v":""},{"$f":"IF(AND('2011 Survey responses'!$J48>0,'2007 Survey responses'!$H52>0),'2011 Survey responses'!$J48,\"\")","v":""},"",null,null,{"$f":"IF(AND('2011 Survey responses'!$K48>0,'2007 Survey responses'!$J52>0),'2007 Survey responses'!$J52,\"\")","v":2},{"$f":"IF(AND('2011 Survey responses'!$K48>0,'2007 Survey responses'!$J52>0),'2011 Survey responses'!$K48,\"\")","v":2},2,null,null,{"$f":"IF(AND('2011 Survey responses'!$L48>0,'2007 Survey responses'!$I52>0),'2007 Survey responses'!$I52,\"\")","v":2},{"$f":"IF(AND('2011 Survey responses'!$L48>0,'2007 Survey responses'!$I52>0),'2011 Survey responses'!$L48,\"\")","v":2},2,null,null,{"$f":"IF(AND('2011 Survey responses'!$M48>0,'2007 Survey responses'!$K52>0),'2007 Survey responses'!$K52,\"\")","v":3},{"$f":"IF(AND('2011 Survey responses'!$M48>0,'2007 Survey responses'!$K52>0),'2011 Survey responses'!$M48,\"\")","v":2},2,null,null,{"$f":"IF('2007 Survey responses'!$B52>0,IF(AND('2011 Survey responses'!T48>0,'2007 Survey responses'!L52>0),'2007 Survey responses'!L52,\"\"),\"\")","v":3},{"$f":"IF('2007 Survey responses'!$B52>0,IF(AND('2011 Survey responses'!T48>0,'2007 Survey responses'!L52>0),'2011 Survey responses'!T48,\"\"),\"\")","v":2},2,null,null,{"$f":"IF(AND('2011 Survey responses'!$U48>0,'2007 Survey responses'!$M52>0),'2007 Survey responses'!$M52,\"\")","v":3},{"$f":"IF(AND('2011 Survey responses'!$U48>0,'2007 Survey responses'!$M52>0),'2011 Survey responses'!$U48,\"\")","v":2},2]
["Democratic Republic of the Congo",{"$f":"IF(AND('2011 Survey responses'!$F49>0,'2007 Survey responses'!E53>0),'2007 Survey responses'!E53,\"\")","v":""},{"$f":"IF(AND('2011 Survey responses'!$F49>0,'2007 Survey responses'!E53>0),'2011 Survey responses'!$F49,\"\")","v":""},"",null,null,{"$f":"IF(AND('2011 Survey responses'!$G49>0,'2007 Survey responses'!$F53>0),'2007 Survey responses'!$F53,\"\")","v":""},{"$f":"IF(AND('2011 Survey responses'!$G49>0,'2007 Survey responses'!$F53>0),'2011 Survey responses'!$G49,\"\")","v":""},"",null,null,{"$f":"IF(AND('2011 Survey responses'!$H49>0,'2007 Survey responses'!$F53>0),'2007 Survey responses'!$F53,\"\")","v":""},{"$f":"IF(AND('2011 Survey responses'!$H49>0,'2007 Survey responses'!$F53>0),'2011 Survey responses'!$H49,\"\")","v":""},"",null,null,{"$f":"IF(AND(Question_grouping!O49>0,'2007 Survey responses'!$F53>0),'2007 Survey responses'!$F53,\"\")","v":1},{"$f":"IF(AND(Question_grouping!O49>0,'2007 Survey responses'!$F53>0),Question_grouping!O49,\"\")","v":""},"",null,null,{"$f":"IF(AND('2011 Survey responses'!$B49>0,'2007 Survey responses'!$C53>0),'2007 Survey responses'!$C53,\"\")","v":""},{"$f":"IF(AND('2011 Survey responses'!$B49>0,'2007 Survey responses'!$C53>0),'2011 Survey responses'!$B49,\"\")","v":""},"",null,null,{"$f":"IF(AND('2011 Survey responses'!$D49>0,'2007 Survey responses'!$D53>0),'2007 Survey responses'!$D53,\"\")","v":""},{"$f":"IF(AND('2011 Survey responses'!$D49>0,'2007 Survey responses'!$D53>0),'2011 Survey responses'!$D49,\"\")","v":""},"",null,null,{"$f":"IF(AND('2011 Survey responses'!$J49>0,'2007 Survey responses'!$H53>0),'2007 Survey responses'!$H53,\"\")","v":""},{"$f":"IF(AND('2011 Survey responses'!$J49>0,'2007 Survey responses'!$H53>0),'2011 Survey responses'!$J49,\"\")","v":""},"",null,null,{"$f":"IF(AND('2011 Survey responses'!$K49>0,'2007 Survey responses'!$J53>0),'2007 Survey responses'!$J53,\"\")","v":""},{"$f":"IF(AND('2011 Survey responses'!$K49>0,'2007 Survey responses'!$J53>0),'2011 Survey responses'!$K49,\"\")","v":""},"",null,null,{"$f":"IF(AND('2011 Survey responses'!$L49>0,'2007 Survey responses'!$I53>0),'2007 Survey responses'!$I53,\"\")","v":""},{"$f":"IF(AND('2011 Survey responses'!$L49>0,'2007 Survey responses'!$I53>0),'2011 Survey responses'!$L49,\"\")","v":""},"",null,null,{"$f":"IF(AND('2011 Survey responses'!$M49>0,'2007 Survey responses'!$K53>0),'2007 Survey responses'!$K53,\"\")","v":""},{"$f":"IF(AND('2011 Survey responses'!$M49>0,'2007 Survey responses'!$K53>0),'2011 Survey responses'!$M49,\"\")","v":""},"",null,null,{"$f":"IF('2007 Survey responses'!$B53>0,IF(AND('2011 Survey responses'!T49>0,'2007 Survey responses'!L53>0),'2007 Survey responses'!L53,\"\"),\"\")","v":""},{"$f":"IF('2007 Survey responses'!$B53>0,IF(AND('2011 Survey responses'!T49>0,'2007 Survey responses'!L53>0),'2011 Survey responses'!T49,\"\"),\"\")","v":""},"",null,null,{"$f":"IF(AND('2011 Survey responses'!$U49>0,'2007 Survey responses'!$M53>0),'2007 Survey responses'!$M53,\"\")","v":""},{"$f":"IF(AND('2011 Survey responses'!$U49>0,'2007 Survey responses'!$M53>0),'2011 Survey responses'!$U49,\"\")","v":""},""]
["Denmark",{"$f":"IF(AND('2011 Survey responses'!$F50>0,'2007 Survey responses'!E54>0),'2007 Survey responses'!E54,\"\")","v":""},{"$f":"IF(AND('2011 Survey responses'!$F50>0,'2007 Survey responses'!E54>0),'2011 Survey responses'!$F50,\"\")","v":""},"",null,null,{"$f":"IF(AND('2011 Survey responses'!$G50>0,'2007 Survey responses'!$F54>0),'2007 Survey responses'!$F54,\"\")","v":""},{"$f":"IF(AND('2011 Survey responses'!$G50>0,'2007 Survey responses'!$F54>0),'2011 Survey responses'!$G50,\"\")","v":""},"",null,null,{"$f":"IF(AND('2011 Survey responses'!$H50>0,'2007 Survey responses'!$F54>0),'2007 Survey responses'!$F54,\"\")","v":""},{"$f":"IF(AND('2011 Survey responses'!$H50>0,'2007 Survey responses'!$F54>0),'2011 Survey responses'!$H50,\"\")","v":""},"",null,null,{"$f":"IF(AND(Question_grouping!O50>0,'2007 Survey responses'!$F54>0),'2007 Survey responses'!$F54,\"\")","v":""},{"$f":"IF(AND(Question_grouping!O50>0,'2007 Survey responses'!$F54>0),Question_grouping!O50,\"\")","v":""},"",null,null,{"$f":"IF(AND('2011 Survey responses'!$B50>0,'2007 Survey responses'!$C54>0),'2007 Survey responses'!$C54,\"\")","v":""},{"$f":"IF(AND('2011 Survey responses'!$B50>0,'2007 Survey responses'!$C54>0),'2011 Survey responses'!$B50,\"\")","v":""},"",null,null,{"$f":"IF(AND('2011 Survey responses'!$D50>0,'2007 Survey responses'!$D54>0),'2007 Survey responses'!$D54,\"\")","v":""},{"$f":"IF(AND('2011 Survey responses'!$D50>0,'2007 Survey responses'!$D54>0),'2011 Survey responses'!$D50,\"\")","v":""},"",null,null,{"$f":"IF(AND('2011 Survey responses'!$J50>0,'2007 Survey responses'!$H54>0),'2007 Survey responses'!$H54,\"\")","v":""},{"$f":"IF(AND('2011 Survey responses'!$J50>0,'2007 Survey responses'!$H54>0),'2011 Survey responses'!$J50,\"\")","v":""},"",null,null,{"$f":"IF(AND('2011 Survey responses'!$K50>0,'2007 Survey responses'!$J54>0),'2007 Survey responses'!$J54,\"\")","v":""},{"$f":"IF(AND('2011 Survey responses'!$K50>0,'2007 Survey responses'!$J54>0),'2011 Survey responses'!$K50,\"\")","v":""},"",null,null,{"$f":"IF(AND('2011 Survey responses'!$L50>0,'2007 Survey responses'!$I54>0),'2007 Survey responses'!$I54,\"\")","v":""},{"$f":"IF(AND('2011 Survey responses'!$L50>0,'2007 Survey responses'!$I54>0),'2011 Survey responses'!$L50,\"\")","v":""},"",null,null,{"$f":"IF(AND('2011 Survey responses'!$M50>0,'2007 Survey responses'!$K54>0),'2007 Survey responses'!$K54,\"\")","v":""},{"$f":"IF(AND('2011 Survey responses'!$M50>0,'2007 Survey responses'!$K54>0),'2011 Survey responses'!$M50,\"\")","v":""},"",null,null,{"$f":"IF('2007 Survey responses'!$B54>0,IF(AND('2011 Survey responses'!T50>0,'2007 Survey responses'!L54>0),'2007 Survey responses'!L54,\"\"),\"\")","v":""},{"$f":"IF('2007 Survey responses'!$B54>0,IF(AND('2011 Survey responses'!T50>0,'2007 Survey responses'!L54>0),'2011 Survey responses'!T50,\"\"),\"\")","v":""},"",null,null,{"$f":"IF(AND('2011 Survey responses'!$U50>0,'2007 Survey responses'!$M54>0),'2007 Survey responses'!$M54,\"\")","v":""},{"$f":"IF(AND('2011 Survey responses'!$U50>0,'2007 Survey responses'!$M54>0),'2011 Survey responses'!$U50,\"\")","v":""},""]
["Djibouti",{"$f":"IF(AND('2011 Survey responses'!$F51>0,'2007 Survey responses'!E55>0),'2007 Survey responses'!E55,\"\")","v":""},{"$f":"IF(AND('2011 Survey responses'!$F51>0,'2007 Survey responses'!E55>0),'2011 Survey responses'!$F51,\"\")","v":""},"",null,null,{"$f":"IF(AND('2011 Survey responses'!$G51>0,'2007 Survey responses'!$F55>0),'2007 Survey responses'!$F55,\"\")","v":""},{"$f":"IF(AND('2011 Survey responses'!$G51>0,'2007 Survey responses'!$F55>0),'2011 Survey responses'!$G51,\"\")","v":""},"",null,null,{"$f":"IF(AND('2011 Survey responses'!$H51>0,'2007 Survey responses'!$F55>0),'2007 Survey responses'!$F55,\"\")","v":""},{"$f":"IF(AND('2011 Survey responses'!$H51>0,'2007 Survey responses'!$F55>0),'2011 Survey responses'!$H51,\"\")","v":""},"",null,null,{"$f":"IF(AND(Question_grouping!O51>0,'2007 Survey responses'!$F55>0),'2007 Survey responses'!$F55,\"\")","v":3},{"$f":"IF(AND(Question_grouping!O51>0,'2007 Survey responses'!$F55>0),Question_grouping!O51,\"\")","v":""},"",null,null,{"$f":"IF(AND('2011 Survey responses'!$B51>0,'2007 Survey responses'!$C55>0),'2007 Survey responses'!$C55,\"\")","v":""},{"$f":"IF(AND('2011 Survey responses'!$B51>0,'2007 Survey responses'!$C55>0),'2011 Survey responses'!$B51,\"\")","v":""},"",null,null,{"$f":"IF(AND('2011 Survey responses'!$D51>0,'2007 Survey responses'!$D55>0),'2007 Survey responses'!$D55,\"\")","v":""},{"$f":"IF(AND('2011 Survey responses'!$D51>0,'2007 Survey responses'!$D55>0),'2011 Survey responses'!$D51,\"\")","v":""},"",null,null,{"$f":"IF(AND('2011 Survey responses'!$J51>0,'2007 Survey responses'!$H55>0),'2007 Survey responses'!$H55,\"\")","v":""},{"$f":"IF(AND('2011 Survey responses'!$J51>0,'2007 Survey responses'!$H55>0),'2011 Survey responses'!$J51,\"\")","v":""},"",null,null,{"$f":"IF(AND('2011 Survey responses'!$K51>0,'2007 Survey responses'!$J55>0),'2007 Survey responses'!$J55,\"\")","v":""},{"$f":"IF(AND('2011 Survey responses'!$K51>0,'2007 Survey responses'!$J55>0),'2011 Survey responses'!$K51,\"\")","v":""},"",null,null,{"$f":"IF(AND('2011 Survey responses'!$L51>0,'2007 Survey responses'!$I55>0),'2007 Survey responses'!$I55,\"\")","v":""},{"$f":"IF(AND('2011 Survey responses'!$L51>0,'2007 Survey responses'!$I55>0),'2011 Survey responses'!$L51,\"\")","v":""},"",null,null,{"$f":"IF(AND('2011 Survey responses'!$M51>0,'2007 Survey responses'!$K55>0),'2007 Survey responses'!$K55,\"\")","v":""},{"$f":"IF(AND('2011 Survey responses'!$M51>0,'2007 Survey responses'!$K55>0),'2011 Survey responses'!$M51,\"\")","v":""},"",null,null,{"$f":"IF('2007 Survey responses'!$B55>0,IF(AND('2011 Survey responses'!T51>0,'2007 Survey responses'!L55>0),'2007 Survey responses'!L55,\"\"),\"\")","v":""},{"$f":"IF('2007 Survey responses'!$B55>0,IF(AND('2011 Survey responses'!T51>0,'2007 Survey responses'!L55>0),'2011 Survey responses'!T51,\"\"),\"\")","v":""},"",null,null,{"$f":"IF(AND('2011 Survey responses'!$U51>0,'2007 Survey responses'!$M55>0),'2007 Survey responses'!$M55,\"\")","v":""},{"$f":"IF(AND('2011 Survey responses'!$U51>0,'2007 Survey responses'!$M55>0),'2011 Survey responses'!$U51,\"\")","v":""},""]
["Dominica",{"$f":"IF(AND('2011 Survey responses'!$F52>0,'2007 Survey responses'!E56>0),'2007 Survey responses'!E56,\"\")","v":""},{"$f":"IF(AND('2011 Survey responses'!$F52>0,'2007 Survey responses'!E56>0),'2011 Survey responses'!$F52,\"\")","v":""},"",null,null,{"$f":"IF(AND('2011 Survey responses'!$G52>0,'2007 Survey responses'!$F56>0),'2007 Survey responses'!$F56,\"\")","v":""},{"$f":"IF(AND('2011 Survey responses'!$G52>0,'2007 Survey responses'!$F56>0),'2011 Survey responses'!$G52,\"\")","v":""},"",null,null,{"$f":"IF(AND('2011 Survey responses'!$H52>0,'2007 Survey responses'!$F56>0),'2007 Survey responses'!$F56,\"\")","v":""},{"$f":"IF(AND('2011 Survey responses'!$H52>0,'2007 Survey responses'!$F56>0),'2011 Survey responses'!$H52,\"\")","v":""},"",null,null,{"$f":"IF(AND(Question_grouping!O52>0,'2007 Survey responses'!$F56>0),'2007 Survey responses'!$F56,\"\")","v":""},{"$f":"IF(AND(Question_grouping!O52>0,'2007 Survey responses'!$F56>0),Question_grouping!O52,\"\")","v":""},"",null,null,{"$f":"IF(AND('2011 Survey responses'!$B52>0,'2007 Survey responses'!$C56>0),'2007 Survey responses'!$C56,\"\")","v":""},{"$f":"IF(AND('2011 Survey responses'!$B52>0,'2007 Survey responses'!$C56>0),'2011 Survey responses'!$B52,\"\")","v":""},"",null,null,{"$f":"IF(AND('2011 Survey responses'!$D52>0,'2007 Survey responses'!$D56>0),'2007 Survey responses'!$D56,\"\")","v":""},{"$f":"IF(AND('2011 Survey responses'!$D52>0,'2007 Survey responses'!$D56>0),'2011 Survey responses'!$D52,\"\")","v":""},"",null,null,{"$f":"IF(AND('2011 Survey responses'!$J52>0,'2007 Survey responses'!$H56>0),'2007 Survey responses'!$H56,\"\")","v":""},{"$f":"IF(AND('2011 Survey responses'!$J52>0,'2007 Survey responses'!$H56>0),'2011 Survey responses'!$J52,\"\")","v":""},"",null,null,{"$f":"IF(AND('2011 Survey responses'!$K52>0,'2007 Survey responses'!$J56>0),'2007 Survey responses'!$J56,\"\")","v":""},{"$f":"IF(AND('2011 Survey responses'!$K52>0,'2007 Survey responses'!$J56>0),'2011 Survey responses'!$K52,\"\")","v":""},"",null,null,{"$f":"IF(AND('2011 Survey responses'!$L52>0,'2007 Survey responses'!$I56>0),'2007 Survey responses'!$I56,\"\")","v":""},{"$f":"IF(AND('2011 Survey responses'!$L52>0,'2007 Survey responses'!$I56>0),'2011 Survey responses'!$L52,\"\")","v":""},"",null,null,{"$f":"IF(AND('2011 Survey responses'!$M52>0,'2007 Survey responses'!$K56>0),'2007 Survey responses'!$K56,\"\")","v":""},{"$f":"IF(AND('2011 Survey responses'!$M52>0,'2007 Survey responses'!$K56>0),'2011 Survey responses'!$M52,\"\")","v":""},"",null,null,{"$f":"IF('2007 Survey responses'!$B56>0,IF(AND('2011 Survey responses'!T52>0,'2007 Survey responses'!L56>0),'2007 Survey responses'!L56,\"\"),\"\")","v":""},{"$f":"IF('2007 Survey responses'!$B56>0,IF(AND('2011 Survey responses'!T52>0,'2007 Survey responses'!L56>0),'2011 Survey responses'!T52,\"\"),\"\")","v":""},"",null,null,{"$f":"IF(AND('2011 Survey responses'!$U52>0,'2007 Survey responses'!$M56>0),'2007 Survey responses'!$M56,\"\")","v":""},{"$f":"IF(AND('2011 Survey responses'!$U52>0,'2007 Survey responses'!$M56>0),'2011 Survey responses'!$U52,\"\")","v":""},""]
["Dominican Republic",{"$f":"IF(AND('2011 Survey responses'!$F53>0,'2007 Survey responses'!E57>0),'2007 Survey responses'!E57,\"\")","v":""},{"$f":"IF(AND('2011 Survey responses'!$F53>0,'2007 Survey responses'!E57>0),'2011 Survey responses'!$F53,\"\")","v":""},"",null,null,{"$f":"IF(AND('2011 Survey responses'!$G53>0,'2007 Survey responses'!$F57>0),'2007 Survey responses'!$F57,\"\")","v":""},{"$f":"IF(AND('2011 Survey responses'!$G53>0,'2007 Survey responses'!$F57>0),'2011 Survey responses'!$G53,\"\")","v":""},"",null,null,{"$f":"IF(AND('2011 Survey responses'!$H53>0,'2007 Survey responses'!$F57>0),'2007 Survey responses'!$F57,\"\")","v":""},{"$f":"IF(AND('2011 Survey responses'!$H53>0,'2007 Survey responses'!$F57>0),'2011 Survey responses'!$H53,\"\")","v":""},"",null,null,{"$f":"IF(AND(Question_grouping!O53>0,'2007 Survey responses'!$F57>0),'2007 Survey responses'!$F57,\"\")","v":""},{"$f":"IF(AND(Question_grouping!O53>0,'2007 Survey responses'!$F57>0),Question_grouping!O53,\"\")","v":""},"",null,null,{"$f":"IF(AND('2011 Survey responses'!$B53>0,'2007 Survey responses'!$C57>0),'2007 Survey responses'!$C57,\"\")","v":""},{"$f":"IF(AND('2011 Survey responses'!$B53>0,'2007 Survey responses'!$C57>0),'2011 Survey responses'!$B53,\"\")","v":""},"",null,null,{"$f":"IF(AND('2011 Survey responses'!$D53>0,'2007 Survey responses'!$D57>0),'2007 Survey responses'!$D57,\"\")","v":""},{"$f":"IF(AND('2011 Survey responses'!$D53>0,'2007 Survey responses'!$D57>0),'2011 Survey responses'!$D53,\"\")","v":""},"",null,null,{"$f":"IF(AND('2011 Survey responses'!$J53>0,'2007 Survey responses'!$H57>0),'2007 Survey responses'!$H57,\"\")","v":""},{"$f":"IF(AND('2011 Survey responses'!$J53>0,'2007 Survey responses'!$H57>0),'2011 Survey responses'!$J53,\"\")","v":""},"",null,null,{"$f":"IF(AND('2011 Survey responses'!$K53>0,'2007 Survey responses'!$J57>0),'2007 Survey responses'!$J57,\"\")","v":""},{"$f":"IF(AND('2011 Survey responses'!$K53>0,'2007 Survey responses'!$J57>0),'2011 Survey responses'!$K53,\"\")","v":""},"",null,null,{"$f":"IF(AND('2011 Survey responses'!$L53>0,'2007 Survey responses'!$I57>0),'2007 Survey responses'!$I57,\"\")","v":""},{"$f":"IF(AND('2011 Survey responses'!$L53>0,'2007 Survey responses'!$I57>0),'2011 Survey responses'!$L53,\"\")","v":""},"",null,null,{"$f":"IF(AND('2011 Survey responses'!$M53>0,'2007 Survey responses'!$K57>0),'2007 Survey responses'!$K57,\"\")","v":""},{"$f":"IF(AND('2011 Survey responses'!$M53>0,'2007 Survey responses'!$K57>0),'2011 Survey responses'!$M53,\"\")","v":""},"",null,null,{"$f":"IF('2007 Survey responses'!$B57>0,IF(AND('2011 Survey responses'!T53>0,'2007 Survey responses'!L57>0),'2007 Survey responses'!L57,\"\"),\"\")","v":""},{"$f":"IF('2007 Survey responses'!$B57>0,IF(AND('2011 Survey responses'!T53>0,'2007 Survey responses'!L57>0),'2011 Survey responses'!T53,\"\"),\"\")","v":""},"",null,null,{"$f":"IF(AND('2011 Survey responses'!$U53>0,'2007 Survey responses'!$M57>0),'2007 Survey responses'!$M57,\"\")","v":""},{"$f":"IF(AND('2011 Survey responses'!$U53>0,'2007 Survey responses'!$M57>0),'2011 Survey responses'!$U53,\"\")","v":""},""]
["Ecuador",{"$f":"IF(AND('2011 Survey responses'!$F54>0,'2007 Survey responses'!E58>0),'2007 Survey responses'!E58,\"\")","v":4},{"$f":"IF(AND('2011 Survey responses'!$F54>0,'2007 Survey responses'!E58>0),'2011 Survey responses'!$F54,\"\")","v":2},2,null,null,{"$f":"IF(AND('2011 Survey responses'!$G54>0,'2007 Survey responses'!$F58>0),'2007 Survey responses'!$F58,\"\")","v":4},{"$f":"IF(AND('2011 Survey responses'!$G54>0,'2007 Survey responses'!$F58>0),'2011 Survey responses'!$G54,\"\")","v":2},2,null,null,{"$f":"IF(AND('2011 Survey responses'!$H54>0,'2007 Survey responses'!$F58>0),'2007 Survey responses'!$F58,\"\")","v":4},{"$f":"IF(AND('2011 Survey responses'!$H54>0,'2007 Survey responses'!$F58>0),'2011 Survey responses'!$H54,\"\")","v":2},2,null,null,{"$f":"IF(AND(Question_grouping!O54>0,'2007 Survey responses'!$F58>0),'2007 Survey responses'!$F58,\"\")","v":4},{"$f":"IF(AND(Question_grouping!O54>0,'2007 Survey responses'!$F58>0),Question_grouping!O54,\"\")","v":2},2,null,null,{"$f":"IF(AND('2011 Survey responses'!$B54>0,'2007 Survey responses'!$C58>0),'2007 Survey responses'!$C58,\"\")","v":4},{"$f":"IF(AND('2011 Survey responses'!$B54>0,'2007 Survey responses'!$C58>0),'2011 Survey responses'!$B54,\"\")","v":4},4,null,null,{"$f":"IF(AND('2011 Survey responses'!$D54>0,'2007 Survey responses'!$D58>0),'2007 Survey responses'!$D58,\"\")","v":4},{"$f":"IF(AND('2011 Survey responses'!$D54>0,'2007 Survey responses'!$D58>0),'2011 Survey responses'!$D54,\"\")","v":3},3,null,null,{"$f":"IF(AND('2011 Survey responses'!$J54>0,'2007 Survey responses'!$H58>0),'2007 Survey responses'!$H58,\"\")","v":4},{"$f":"IF(AND('2011 Survey responses'!$J54>0,'2007 Survey responses'!$H58>0),'2011 Survey responses'!$J54,\"\")","v":2},2,null,null,{"$f":"IF(AND('2011 Survey responses'!$K54>0,'2007 Survey responses'!$J58>0),'2007 Survey responses'!$J58,\"\")","v":""},{"$f":"IF(AND('2011 Survey responses'!$K54>0,'2007 Survey responses'!$J58>0),'2011 Survey responses'!$K54,\"\")","v":""},"",null,null,{"$f":"IF(AND('2011 Survey responses'!$L54>0,'2007 Survey responses'!$I58>0),'2007 Survey responses'!$I58,\"\")","v":3},{"$f":"IF(AND('2011 Survey responses'!$L54>0,'2007 Survey responses'!$I58>0),'2011 Survey responses'!$L54,\"\")","v":4},4,null,null,{"$f":"IF(AND('2011 Survey responses'!$M54>0,'2007 Survey responses'!$K58>0),'2007 Survey responses'!$K58,\"\")","v":4},{"$f":"IF(AND('2011 Survey responses'!$M54>0,'2007 Survey responses'!$K58>0),'2011 Survey responses'!$M54,\"\")","v":2},2,null,null,{"$f":"IF('2007 Survey responses'!$B58>0,IF(AND('2011 Survey responses'!T54>0,'2007 Survey responses'!L58>0),'2007 Survey responses'!L58,\"\"),\"\")","v":3},{"$f":"IF('2007 Survey responses'!$B58>0,IF(AND('2011 Survey responses'!T54>0,'2007 Survey responses'!L58>0),'2011 Survey responses'!T54,\"\"),\"\")","v":2},2,null,null,{"$f":"IF(AND('2011 Survey responses'!$U54>0,'2007 Survey responses'!$M58>0),'2007 Survey responses'!$M58,\"\")","v":3},{"$f":"IF(AND('2011 Survey responses'!$U54>0,'2007 Survey responses'!$M58>0),'2011 Survey responses'!$U54,\"\")","v":4},4]
["Egypt",{"$f":"IF(AND('2011 Survey responses'!$F55>0,'2007 Survey responses'!E59>0),'2007 Survey responses'!E59,\"\")","v":""},{"$f":"IF(AND('2011 Survey responses'!$F55>0,'2007 Survey responses'!E59>0),'2011 Survey responses'!$F55,\"\")","v":""},"",null,null,{"$f":"IF(AND('2011 Survey responses'!$G55>0,'2007 Survey responses'!$F59>0),'2007 Survey responses'!$F59,\"\")","v":""},{"$f":"IF(AND('2011 Survey responses'!$G55>0,'2007 Survey responses'!$F59>0),'2011 Survey responses'!$G55,\"\")","v":""},"",null,null,{"$f":"IF(AND('2011 Survey responses'!$H55>0,'2007 Survey responses'!$F59>0),'2007 Survey responses'!$F59,\"\")","v":""},{"$f":"IF(AND('2011 Survey responses'!$H55>0,'2007 Survey responses'!$F59>0),'2011 Survey responses'!$H55,\"\")","v":""},"",null,null,{"$f":"IF(AND(Question_grouping!O55>0,'2007 Survey responses'!$F59>0),'2007 Survey responses'!$F59,\"\")","v":""},{"$f":"IF(AND(Question_grouping!O55>0,'2007 Survey responses'!$F59>0),Question_grouping!O55,\"\")","v":""},"",null,null,{"$f":"IF(AND('2011 Survey responses'!$B55>0,'2007 Survey responses'!$C59>0),'2007 Survey responses'!$C59,\"\")","v":4},{"$f":"IF(AND('2011 Survey responses'!$B55>0,'2007 Survey responses'!$C59>0),'2011 Survey responses'!$B55,\"\")","v":4},4,null,null,{"$f":"IF(AND('2011 Survey responses'!$D55>0,'2007 Survey responses'!$D59>0),'2007 Survey responses'!$D59,\"\")","v":4},{"$f":"IF(AND('2011 Survey responses'!$D55>0,'2007 Survey responses'!$D59>0),'2011 Survey responses'!$D55,\"\")","v":5},4,null,null,{"$f":"IF(AND('2011 Survey responses'!$J55>0,'2007 Survey responses'!$H59>0),'2007 Survey responses'!$H59,\"\")","v":4},{"$f":"IF(AND('2011 Survey responses'!$J55>0,'2007 Survey responses'!$H59>0),'2011 Survey responses'!$J55,\"\")","v":4},4,null,null,{"$f":"IF(AND('2011 Survey responses'!$K55>0,'2007 Survey responses'!$J59>0),'2007 Survey responses'!$J59,\"\")","v":""},{"$f":"IF(AND('2011 Survey responses'!$K55>0,'2007 Survey responses'!$J59>0),'2011 Survey responses'!$K55,\"\")","v":""},"",null,null,{"$f":"IF(AND('2011 Survey responses'!$L55>0,'2007 Survey responses'!$I59>0),'2007 Survey responses'!$I59,\"\")","v":4},{"$f":"IF(AND('2011 Survey responses'!$L55>0,'2007 Survey responses'!$I59>0),'2011 Survey responses'!$L55,\"\")","v":4},4,null,null,{"$f":"IF(AND('2011 Survey responses'!$M55>0,'2007 Survey responses'!$K59>0),'2007 Survey responses'!$K59,\"\")","v":4},{"$f":"IF(AND('2011 Survey responses'!$M55>0,'2007 Survey responses'!$K59>0),'2011 Survey responses'!$M55,\"\")","v":4},4,null,null,{"$f":"IF('2007 Survey responses'!$B59>0,IF(AND('2011 Survey responses'!T55>0,'2007 Survey responses'!L59>0),'2007 Survey responses'!L59,\"\"),\"\")","v":""},{"$f":"IF('2007 Survey responses'!$B59>0,IF(AND('2011 Survey responses'!T55>0,'2007 Survey responses'!L59>0),'2011 Survey responses'!T55,\"\"),\"\")","v":""},"",null,null,{"$f":"IF(AND('2011 Survey responses'!$U55>0,'2007 Survey responses'!$M59>0),'2007 Survey responses'!$M59,\"\")","v":4},{"$f":"IF(AND('2011 Survey responses'!$U55>0,'2007 Survey responses'!$M59>0),'2011 Survey responses'!$U55,\"\")","v":6},5]
["El Salvador",{"$f":"IF(AND('2011 Survey responses'!$F56>0,'2007 Survey responses'!E60>0),'2007 Survey responses'!E60,\"\")","v":""},{"$f":"IF(AND('2011 Survey responses'!$F56>0,'2007 Survey responses'!E60>0),'2011 Survey responses'!$F56,\"\")","v":""},"",null,null,{"$f":"IF(AND('2011 Survey responses'!$G56>0,'2007 Survey responses'!$F60>0),'2007 Survey responses'!$F60,\"\")","v":""},{"$f":"IF(AND('2011 Survey responses'!$G56>0,'2007 Survey responses'!$F60>0),'2011 Survey responses'!$G56,\"\")","v":""},"",null,null,{"$f":"IF(AND('2011 Survey responses'!$H56>0,'2007 Survey responses'!$F60>0),'2007 Survey responses'!$F60,\"\")","v":""},{"$f":"IF(AND('2011 Survey responses'!$H56>0,'2007 Survey responses'!$F60>0),'2011 Survey responses'!$H56,\"\")","v":""},"",null,null,{"$f":"IF(AND(Question_grouping!O56>0,'2007 Survey responses'!$F60>0),'2007 Survey responses'!$F60,\"\")","v":""},{"$f":"IF(AND(Question_grouping!O56>0,'2007 Survey responses'!$F60>0),Question_grouping!O56,\"\")","v":""},"",null,null,{"$f":"IF(AND('2011 Survey responses'!$B56>0,'2007 Survey responses'!$C60>0),'2007 Survey responses'!$C60,\"\")","v":""},{"$f":"IF(AND('2011 Survey responses'!$B56>0,'2007 Survey responses'!$C60>0),'2011 Survey responses'!$B56,\"\")","v":""},"",null,null,{"$f":"IF(AND('2011 Survey responses'!$D56>0,'2007 Survey responses'!$D60>0),'2007 Survey responses'!$D60,\"\")","v":""},{"$f":"IF(AND('2011 Survey responses'!$D56>0,'2007 Survey responses'!$D60>0),'2011 Survey responses'!$D56,\"\")","v":""},"",null,null,{"$f":"IF(AND('2011 Survey responses'!$J56>0,'2007 Survey responses'!$H60>0),'2007 Survey responses'!$H60,\"\")","v":""},{"$f":"IF(AND('2011 Survey responses'!$J56>0,'2007 Survey responses'!$H60>0),'2011 Survey responses'!$J56,\"\")","v":""},"",null,null,{"$f":"IF(AND('2011 Survey responses'!$K56>0,'2007 Survey responses'!$J60>0),'2007 Survey responses'!$J60,\"\")","v":""},{"$f":"IF(AND('2011 Survey responses'!$K56>0,'2007 Survey responses'!$J60>0),'2011 Survey responses'!$K56,\"\")","v":""},"",null,null,{"$f":"IF(AND('2011 Survey responses'!$L56>0,'2007 Survey responses'!$I60>0),'2007 Survey responses'!$I60,\"\")","v":""},{"$f":"IF(AND('2011 Survey responses'!$L56>0,'2007 Survey responses'!$I60>0),'2011 Survey responses'!$L56,\"\")","v":""},"",null,null,{"$f":"IF(AND('2011 Survey responses'!$M56>0,'2007 Survey responses'!$K60>0),'2007 Survey responses'!$K60,\"\")","v":""},{"$f":"IF(AND('2011 Survey responses'!$M56>0,'2007 Survey responses'!$K60>0),'2011 Survey responses'!$M56,\"\")","v":""},"",null,null,{"$f":"IF('2007 Survey responses'!$B60>0,IF(AND('2011 Survey responses'!T56>0,'2007 Survey responses'!L60>0),'2007 Survey responses'!L60,\"\"),\"\")","v":""},{"$f":"IF('2007 Survey responses'!$B60>0,IF(AND('2011 Survey responses'!T56>0,'2007 Survey responses'!L60>0),'2011 Survey responses'!T56,\"\"),\"\")","v":""},"",null,null,{"$f":"IF(AND('2011 Survey responses'!$U56>0,'2007 Survey responses'!$M60>0),'2007 Survey responses'!$M60,\"\")","v":""},{"$f":"IF(AND('2011 Survey responses'!$U56>0,'2007 Survey responses'!$M60>0),'2011 Survey responses'!$U56,\"\")","v":""},""]
["Equatorial Guinea",{"$f":"IF(AND('2011 Survey responses'!$F57>0,'2007 Survey responses'!E61>0),'2007 Survey responses'!E61,\"\")","v":""},{"$f":"IF(AND('2011 Survey responses'!$F57>0,'2007 Survey responses'!E61>0),'2011 Survey responses'!$F57,\"\")","v":""},"",null,null,{"$f":"IF(AND('2011 Survey responses'!$G57>0,'2007 Survey responses'!$F61>0),'2007 Survey responses'!$F61,\"\")","v":""},{"$f":"IF(AND('2011 Survey responses'!$G57>0,'2007 Survey responses'!$F61>0),'2011 Survey responses'!$G57,\"\")","v":""},"",null,null,{"$f":"IF(AND('2011 Survey responses'!$H57>0,'2007 Survey responses'!$F61>0),'2007 Survey responses'!$F61,\"\")","v":""},{"$f":"IF(AND('2011 Survey responses'!$H57>0,'2007 Survey responses'!$F61>0),'2011 Survey responses'!$H57,\"\")","v":""},"",null,null,{"$f":"IF(AND(Question_grouping!O57>0,'2007 Survey responses'!$F61>0),'2007 Survey responses'!$F61,\"\")","v":1},{"$f":"IF(AND(Question_grouping!O57>0,'2007 Survey responses'!$F61>0),Question_grouping!O57,\"\")","v":""},"",null,null,{"$f":"IF(AND('2011 Survey responses'!$B57>0,'2007 Survey responses'!$C61>0),'2007 Survey responses'!$C61,\"\")","v":""},{"$f":"IF(AND('2011 Survey responses'!$B57>0,'2007 Survey responses'!$C61>0),'2011 Survey responses'!$B57,\"\")","v":""},"",null,null,{"$f":"IF(AND('2011 Survey responses'!$D57>0,'2007 Survey responses'!$D61>0),'2007 Survey responses'!$D61,\"\")","v":""},{"$f":"IF(AND('2011 Survey responses'!$D57>0,'2007 Survey responses'!$D61>0),'2011 Survey responses'!$D57,\"\")","v":""},"",null,null,{"$f":"IF(AND('2011 Survey responses'!$J57>0,'2007 Survey responses'!$H61>0),'2007 Survey responses'!$H61,\"\")","v":""},{"$f":"IF(AND('2011 Survey responses'!$J57>0,'2007 Survey responses'!$H61>0),'2011 Survey responses'!$J57,\"\")","v":""},"",null,null,{"$f":"IF(AND('2011 Survey responses'!$K57>0,'2007 Survey responses'!$J61>0),'2007 Survey responses'!$J61,\"\")","v":""},{"$f":"IF(AND('2011 Survey responses'!$K57>0,'2007 Survey responses'!$J61>0),'2011 Survey responses'!$K57,\"\")","v":""},"",null,null,{"$f":"IF(AND('2011 Survey responses'!$L57>0,'2007 Survey responses'!$I61>0),'2007 Survey responses'!$I61,\"\")","v":""},{"$f":"IF(AND('2011 Survey responses'!$L57>0,'2007 Survey responses'!$I61>0),'2011 Survey responses'!$L57,\"\")","v":""},"",null,null,{"$f":"IF(AND('2011 Survey responses'!$M57>0,'2007 Survey responses'!$K61>0),'2007 Survey responses'!$K61,\"\")","v":""},{"$f":"IF(AND('2011 Survey responses'!$M57>0,'2007 Survey responses'!$K61>0),'2011 Survey responses'!$M57,\"\")","v":""},"",null,null,{"$f":"IF('2007 Survey responses'!$B61>0,IF(AND('2011 Survey responses'!T57>0,'2007 Survey responses'!L61>0),'2007 Survey responses'!L61,\"\"),\"\")","v":""},{"$f":"IF('2007 Survey responses'!$B61>0,IF(AND('2011 Survey responses'!T57>0,'2007 Survey responses'!L61>0),'2011 Survey responses'!T57,\"\"),\"\")","v":""},"",null,null,{"$f":"IF(AND('2011 Survey responses'!$U57>0,'2007 Survey responses'!$M61>0),'2007 Survey responses'!$M61,\"\")","v":""},{"$f":"IF(AND('2011 Survey responses'!$U57>0,'2007 Survey responses'!$M61>0),'2011 Survey responses'!$U57,\"\")","v":""},""]
["Eritrea",{"$f":"IF(AND('2011 Survey responses'!$F58>0,'2007 Survey responses'!E62>0),'2007 Survey responses'!E62,\"\")","v":""},{"$f":"IF(AND('2011 Survey responses'!$F58>0,'2007 Survey responses'!E62>0),'2011 Survey responses'!$F58,\"\")","v":""},"",null,null,{"$f":"IF(AND('2011 Survey responses'!$G58>0,'2007 Survey responses'!$F62>0),'2007 Survey responses'!$F62,\"\")","v":""},{"$f":"IF(AND('2011 Survey responses'!$G58>0,'2007 Survey responses'!$F62>0),'2011 Survey responses'!$G58,\"\")","v":""},"",null,null,{"$f":"IF(AND('2011 Survey responses'!$H58>0,'2007 Survey responses'!$F62>0),'2007 Survey responses'!$F62,\"\")","v":""},{"$f":"IF(AND('2011 Survey responses'!$H58>0,'2007 Survey responses'!$F62>0),'2011 Survey responses'!$H58,\"\")","v":""},"",null,null,{"$f":"IF(AND(Question_grouping!O58>0,'2007 Survey responses'!$F62>0),'2007 Survey responses'!$F62,\"\")","v":1},{"$f":"IF(AND(Question_grouping!O58>0,'2007 Survey responses'!$F62>0),Question_grouping!O58,\"\")","v":""},"",null,null,{"$f":"IF(AND('2011 Survey responses'!$B58>0,'2007 Survey responses'!$C62>0),'2007 Survey responses'!$C62,\"\")","v":""},{"$f":"IF(AND('2011 Survey responses'!$B58>0,'2007 Survey responses'!$C62>0),'2011 Survey responses'!$B58,\"\")","v":""},"",null,null,{"$f":"IF(AND('2011 Survey responses'!$D58>0,'2007 Survey responses'!$D62>0),'2007 Survey responses'!$D62,\"\")","v":""},{"$f":"IF(AND('2011 Survey responses'!$D58>0,'2007 Survey responses'!$D62>0),'2011 Survey responses'!$D58,\"\")","v":""},"",null,null,{"$f":"IF(AND('2011 Survey responses'!$J58>0,'2007 Survey responses'!$H62>0),'2007 Survey responses'!$H62,\"\")","v":""},{"$f":"IF(AND('2011 Survey responses'!$J58>0,'2007 Survey responses'!$H62>0),'2011 Survey responses'!$J58,\"\")","v":""},"",null,null,{"$f":"IF(AND('2011 Survey responses'!$K58>0,'2007 Survey responses'!$J62>0),'2007 Survey responses'!$J62,\"\")","v":""},{"$f":"IF(AND('2011 Survey responses'!$K58>0,'2007 Survey responses'!$J62>0),'2011 Survey responses'!$K58,\"\")","v":""},"",null,null,{"$f":"IF(AND('2011 Survey responses'!$L58>0,'2007 Survey responses'!$I62>0),'2007 Survey responses'!$I62,\"\")","v":""},{"$f":"IF(AND('2011 Survey responses'!$L58>0,'2007 Survey responses'!$I62>0),'2011 Survey responses'!$L58,\"\")","v":""},"",null,null,{"$f":"IF(AND('2011 Survey responses'!$M58>0,'2007 Survey responses'!$K62>0),'2007 Survey responses'!$K62,\"\")","v":""},{"$f":"IF(AND('2011 Survey responses'!$M58>0,'2007 Survey responses'!$K62>0),'2011 Survey responses'!$M58,\"\")","v":""},"",null,null,{"$f":"IF('2007 Survey responses'!$B62>0,IF(AND('2011 Survey responses'!T58>0,'2007 Survey responses'!L62>0),'2007 Survey responses'!L62,\"\"),\"\")","v":""},{"$f":"IF('2007 Survey responses'!$B62>0,IF(AND('2011 Survey responses'!T58>0,'2007 Survey responses'!L62>0),'2011 Survey responses'!T58,\"\"),\"\")","v":""},"",null,null,{"$f":"IF(AND('2011 Survey responses'!$U58>0,'2007 Survey responses'!$M62>0),'2007 Survey responses'!$M62,\"\")","v":""},{"$f":"IF(AND('2011 Survey responses'!$U58>0,'2007 Survey responses'!$M62>0),'2011 Survey responses'!$U58,\"\")","v":""},""]
["Estonia",{"$f":"IF(AND('2011 Survey responses'!$F59>0,'2007 Survey responses'!E63>0),'2007 Survey responses'!E63,\"\")","v":""},{"$f":"IF(AND('2011 Survey responses'!$F59>0,'2007 Survey responses'!E63>0),'2011 Survey responses'!$F59,\"\")","v":""},"",null,null,{"$f":"IF(AND('2011 Survey responses'!$G59>0,'2007 Survey responses'!$F63>0),'2007 Survey responses'!$F63,\"\")","v":""},{"$f":"IF(AND('2011 Survey responses'!$G59>0,'2007 Survey responses'!$F63>0),'2011 Survey responses'!$G59,\"\")","v":""},"",null,null,{"$f":"IF(AND('2011 Survey responses'!$H59>0,'2007 Survey responses'!$F63>0),'2007 Survey responses'!$F63,\"\")","v":""},{"$f":"IF(AND('2011 Survey responses'!$H59>0,'2007 Survey responses'!$F63>0),'2011 Survey responses'!$H59,\"\")","v":""},"",null,null,{"$f":"IF(AND(Question_grouping!O59>0,'2007 Survey responses'!$F63>0),'2007 Survey responses'!$F63,\"\")","v":""},{"$f":"IF(AND(Question_grouping!O59>0,'2007 Survey responses'!$F63>0),Question_grouping!O59,\"\")","v":""},"",null,null,{"$f":"IF(AND('2011 Survey responses'!$B59>0,'2007 Survey responses'!$C63>0),'2007 Survey responses'!$C63,\"\")","v":""},{"$f":"IF(AND('2011 Survey responses'!$B59>0,'2007 Survey responses'!$C63>0),'2011 Survey responses'!$B59,\"\")","v":""},"",null,null,{"$f":"IF(AND('2011 Survey responses'!$D59>0,'2007 Survey responses'!$D63>0),'2007 Survey responses'!$D63,\"\")","v":""},{"$f":"IF(AND('2011 Survey responses'!$D59>0,'2007 Survey responses'!$D63>0),'2011 Survey responses'!$D59,\"\")","v":""},"",null,null,{"$f":"IF(AND('2011 Survey responses'!$J59>0,'2007 Survey responses'!$H63>0),'2007 Survey responses'!$H63,\"\")","v":""},{"$f":"IF(AND('2011 Survey responses'!$J59>0,'2007 Survey responses'!$H63>0),'2011 Survey responses'!$J59,\"\")","v":""},"",null,null,{"$f":"IF(AND('2011 Survey responses'!$K59>0,'2007 Survey responses'!$J63>0),'2007 Survey responses'!$J63,\"\")","v":""},{"$f":"IF(AND('2011 Survey responses'!$K59>0,'2007 Survey responses'!$J63>0),'2011 Survey responses'!$K59,\"\")","v":""},"",null,null,{"$f":"IF(AND('2011 Survey responses'!$L59>0,'2007 Survey responses'!$I63>0),'2007 Survey responses'!$I63,\"\")","v":""},{"$f":"IF(AND('2011 Survey responses'!$L59>0,'2007 Survey responses'!$I63>0),'2011 Survey responses'!$L59,\"\")","v":""},"",null,null,{"$f":"IF(AND('2011 Survey responses'!$M59>0,'2007 Survey responses'!$K63>0),'2007 Survey responses'!$K63,\"\")","v":""},{"$f":"IF(AND('2011 Survey responses'!$M59>0,'2007 Survey responses'!$K63>0),'2011 Survey responses'!$M59,\"\")","v":""},"",null,null,{"$f":"IF('2007 Survey responses'!$B63>0,IF(AND('2011 Survey responses'!T59>0,'2007 Survey responses'!L63>0),'2007 Survey responses'!L63,\"\"),\"\")","v":""},{"$f":"IF('2007 Survey responses'!$B63>0,IF(AND('2011 Survey responses'!T59>0,'2007 Survey responses'!L63>0),'2011 Survey responses'!T59,\"\"),\"\")","v":""},"",null,null,{"$f":"IF(AND('2011 Survey responses'!$U59>0,'2007 Survey responses'!$M63>0),'2007 Survey responses'!$M63,\"\")","v":""},{"$f":"IF(AND('2011 Survey responses'!$U59>0,'2007 Survey responses'!$M63>0),'2011 Survey responses'!$U59,\"\")","v":""},""]
["Ethiopia",{"$f":"IF(AND('2011 Survey responses'!$F60>0,'2007 Survey responses'!E64>0),'2007 Survey responses'!E64,\"\")","v":""},{"$f":"IF(AND('2011 Survey responses'!$F60>0,'2007 Survey responses'!E64>0),'2011 Survey responses'!$F60,\"\")","v":""},"",null,null,{"$f":"IF(AND('2011 Survey responses'!$G60>0,'2007 Survey responses'!$F64>0),'2007 Survey responses'!$F64,\"\")","v":""},{"$f":"IF(AND('2011 Survey responses'!$G60>0,'2007 Survey responses'!$F64>0),'2011 Survey responses'!$G60,\"\")","v":""},"",null,null,{"$f":"IF(AND('2011 Survey responses'!$H60>0,'2007 Survey responses'!$F64>0),'2007 Survey responses'!$F64,\"\")","v":""},{"$f":"IF(AND('2011 Survey responses'!$H60>0,'2007 Survey responses'!$F64>0),'2011 Survey responses'!$H60,\"\")","v":""},"",null,null,{"$f":"IF(AND(Question_grouping!O60>0,'2007 Survey responses'!$F64>0),'2007 Survey responses'!$F64,\"\")","v":""},{"$f":"IF(AND(Question_grouping!O60>0,'2007 Survey responses'!$F64>0),Question_grouping!O60,\"\")","v":""},"",null,null,{"$f":"IF(AND('2011 Survey responses'!$B60>0,'2007 Survey responses'!$C64>0),'2007 Survey responses'!$C64,\"\")","v":""},{"$f":"IF(AND('2011 Survey responses'!$B60>0,'2007 Survey responses'!$C64>0),'2011 Survey responses'!$B60,\"\")","v":""},"",null,null,{"$f":"IF(AND('2011 Survey responses'!$D60>0,'2007 Survey responses'!$D64>0),'2007 Survey responses'!$D64,\"\")","v":""},{"$f":"IF(AND('2011 Survey responses'!$D60>0,'2007 Survey responses'!$D64>0),'2011 Survey responses'!$D60,\"\")","v":""},"",null,null,{"$f":"IF(AND('2011 Survey responses'!$J60>0,'2007 Survey responses'!$H64>0),'2007 Survey responses'!$H64,\"\")","v":""},{"$f":"IF(AND('2011 Survey responses'!$J60>0,'2007 Survey responses'!$H64>0),'2011 Survey responses'!$J60,\"\")","v":""},"",null,null,{"$f":"IF(AND('2011 Survey responses'!$K60>0,'2007 Survey responses'!$J64>0),'2007 Survey responses'!$J64,\"\")","v":""},{"$f":"IF(AND('2011 Survey responses'!$K60>0,'2007 Survey responses'!$J64>0),'2011 Survey responses'!$K60,\"\")","v":""},"",null,null,{"$f":"IF(AND('2011 Survey responses'!$L60>0,'2007 Survey responses'!$I64>0),'2007 Survey responses'!$I64,\"\")","v":""},{"$f":"IF(AND('2011 Survey responses'!$L60>0,'2007 Survey responses'!$I64>0),'2011 Survey responses'!$L60,\"\")","v":""},"",null,null,{"$f":"IF(AND('2011 Survey responses'!$M60>0,'2007 Survey responses'!$K64>0),'2007 Survey responses'!$K64,\"\")","v":""},{"$f":"IF(AND('2011 Survey responses'!$M60>0,'2007 Survey responses'!$K64>0),'2011 Survey responses'!$M60,\"\")","v":""},"",null,null,{"$f":"IF('2007 Survey responses'!$B64>0,IF(AND('2011 Survey responses'!T60>0,'2007 Survey responses'!L64>0),'2007 Survey responses'!L64,\"\"),\"\")","v":""},{"$f":"IF('2007 Survey responses'!$B64>0,IF(AND('2011 Survey responses'!T60>0,'2007 Survey responses'!L64>0),'2011 Survey responses'!T60,\"\"),\"\")","v":""},"",null,null,{"$f":"IF(AND('2011 Survey responses'!$U60>0,'2007 Survey responses'!$M64>0),'2007 Survey responses'!$M64,\"\")","v":""},{"$f":"IF(AND('2011 Survey responses'!$U60>0,'2007 Survey responses'!$M64>0),'2011 Survey responses'!$U60,\"\")","v":""},""]
["Fiji",{"$f":"IF(AND('2011 Survey responses'!$F61>0,'2007 Survey responses'!E65>0),'2007 Survey responses'!E65,\"\")","v":4},{"$f":"IF(AND('2011 Survey responses'!$F61>0,'2007 Survey responses'!E65>0),'2011 Survey responses'!$F61,\"\")","v":3},3,null,null,{"$f":"IF(AND('2011 Survey responses'!$G61>0,'2007 Survey responses'!$F65>0),'2007 Survey responses'!$F65,\"\")","v":4},{"$f":"IF(AND('2011 Survey responses'!$G61>0,'2007 Survey responses'!$F65>0),'2011 Survey responses'!$G61,\"\")","v":2},2,null,null,{"$f":"IF(AND('2011 Survey responses'!$H61>0,'2007 Survey responses'!$F65>0),'2007 Survey responses'!$F65,\"\")","v":4},{"$f":"IF(AND('2011 Survey responses'!$H61>0,'2007 Survey responses'!$F65>0),'2011 Survey responses'!$H61,\"\")","v":2},2,null,null,{"$f":"IF(AND(Question_grouping!O61>0,'2007 Survey responses'!$F65>0),'2007 Survey responses'!$F65,\"\")","v":4},{"$f":"IF(AND(Question_grouping!O61>0,'2007 Survey responses'!$F65>0),Question_grouping!O61,\"\")","v":2},2,null,null,{"$f":"IF(AND('2011 Survey responses'!$B61>0,'2007 Survey responses'!$C65>0),'2007 Survey responses'!$C65,\"\")","v":5},{"$f":"IF(AND('2011 Survey responses'!$B61>0,'2007 Survey responses'!$C65>0),'2011 Survey responses'!$B61,\"\")","v":3},3,null,null,{"$f":"IF(AND('2011 Survey responses'!$D61>0,'2007 Survey responses'!$D65>0),'2007 Survey responses'!$D65,\"\")","v":5},{"$f":"IF(AND('2011 Survey responses'!$D61>0,'2007 Survey responses'!$D65>0),'2011 Survey responses'!$D61,\"\")","v":3},3,null,null,{"$f":"IF(AND('2011 Survey responses'!$J61>0,'2007 Survey responses'!$H65>0),'2007 Survey responses'!$H65,\"\")","v":1},{"$f":"IF(AND('2011 Survey responses'!$J61>0,'2007 Survey responses'!$H65>0),'2011 Survey responses'!$J61,\"\")","v":2},2,null,null,{"$f":"IF(AND('2011 Survey responses'!$K61>0,'2007 Survey responses'!$J65>0),'2007 Survey responses'!$J65,\"\")","v":4},{"$f":"IF(AND('2011 Survey responses'!$K61>0,'2007 Survey responses'!$J65>0),'2011 Survey responses'!$K61,\"\")","v":3},3,null,null,{"$f":"IF(AND('2011 Survey responses'!$L61>0,'2007 Survey responses'!$I65>0),'2007 Survey responses'!$I65,\"\")","v":1},{"$f":"IF(AND('2011 Survey responses'!$L61>0,'2007 Survey responses'!$I65>0),'2011 Survey responses'!$L61,\"\")","v":3},3,null,null,{"$f":"IF(AND('2011 Survey responses'!$M61>0,'2007 Survey responses'!$K65>0),'2007 Survey responses'!$K65,\"\")","v":1},{"$f":"IF(AND('2011 Survey responses'!$M61>0,'2007 Survey responses'!$K65>0),'2011 Survey responses'!$M61,\"\")","v":3},3,null,null,{"$f":"IF('2007 Survey responses'!$B65>0,IF(AND('2011 Survey responses'!T61>0,'2007 Survey responses'!L65>0),'2007 Survey responses'!L65,\"\"),\"\")","v":4},{"$f":"IF('2007 Survey responses'!$B65>0,IF(AND('2011 Survey responses'!T61>0,'2007 Survey responses'!L65>0),'2011 Survey responses'!T61,\"\"),\"\")","v":2},2,null,null,{"$f":"IF(AND('2011 Survey responses'!$U61>0,'2007 Survey responses'!$M65>0),'2007 Survey responses'!$M65,\"\")","v":4},{"$f":"IF(AND('2011 Survey responses'!$U61>0,'2007 Survey responses'!$M65>0),'2011 Survey responses'!$U61,\"\")","v":2},2]
["Finland",{"$f":"IF(AND('2011 Survey responses'!$F62>0,'2007 Survey responses'!E66>0),'2007 Survey responses'!E66,\"\")","v":5},{"$f":"IF(AND('2011 Survey responses'!$F62>0,'2007 Survey responses'!E66>0),'2011 Survey responses'!$F62,\"\")","v":6},5,null,null,{"$f":"IF(AND('2011 Survey responses'!$G62>0,'2007 Survey responses'!$F66>0),'2007 Survey responses'!$F66,\"\")","v":5},{"$f":"IF(AND('2011 Survey responses'!$G62>0,'2007 Survey responses'!$F66>0),'2011 Survey responses'!$G62,\"\")","v":5},4,null,null,{"$f":"IF(AND('2011 Survey responses'!$H62>0,'2007 Survey responses'!$F66>0),'2007 Survey responses'!$F66,\"\")","v":5},{"$f":"IF(AND('2011 Survey responses'!$H62>0,'2007 Survey responses'!$F66>0),'2011 Survey responses'!$H62,\"\")","v":5},4,null,null,{"$f":"IF(AND(Question_grouping!O62>0,'2007 Survey responses'!$F66>0),'2007 Survey responses'!$F66,\"\")","v":5},{"$f":"IF(AND(Question_grouping!O62>0,'2007 Survey responses'!$F66>0),Question_grouping!O62,\"\")","v":5},4,null,null,{"$f":"IF(AND('2011 Survey responses'!$B62>0,'2007 Survey responses'!$C66>0),'2007 Survey responses'!$C66,\"\")","v":5},{"$f":"IF(AND('2011 Survey responses'!$B62>0,'2007 Survey responses'!$C66>0),'2011 Survey responses'!$B62,\"\")","v":6},5,null,null,{"$f":"IF(AND('2011 Survey responses'!$D62>0,'2007 Survey responses'!$D66>0),'2007 Survey responses'!$D66,\"\")","v":5},{"$f":"IF(AND('2011 Survey responses'!$D62>0,'2007 Survey responses'!$D66>0),'2011 Survey responses'!$D62,\"\")","v":6},5,null,null,{"$f":"IF(AND('2011 Survey responses'!$J62>0,'2007 Survey responses'!$H66>0),'2007 Survey responses'!$H66,\"\")","v":1},{"$f":"IF(AND('2011 Survey responses'!$J62>0,'2007 Survey responses'!$H66>0),'2011 Survey responses'!$J62,\"\")","v":1},1,null,null,{"$f":"IF(AND('2011 Survey responses'!$K62>0,'2007 Survey responses'!$J66>0),'2007 Survey responses'!$J66,\"\")","v":5},{"$f":"IF(AND('2011 Survey responses'!$K62>0,'2007 Survey responses'!$J66>0),'2011 Survey responses'!$K62,\"\")","v":6},5,null,null,{"$f":"IF(AND('2011 Survey responses'!$L62>0,'2007 Survey responses'!$I66>0),'2007 Survey responses'!$I66,\"\")","v":5},{"$f":"IF(AND('2011 Survey responses'!$L62>0,'2007 Survey responses'!$I66>0),'2011 Survey responses'!$L62,\"\")","v":1},1,null,null,{"$f":"IF(AND('2011 Survey responses'!$M62>0,'2007 Survey responses'!$K66>0),'2007 Survey responses'!$K66,\"\")","v":5},{"$f":"IF(AND('2011 Survey responses'!$M62>0,'2007 Survey responses'!$K66>0),'2011 Survey responses'!$M62,\"\")","v":1},1,null,null,{"$f":"IF('2007 Survey responses'!$B66>0,IF(AND('2011 Survey responses'!T62>0,'2007 Survey responses'!L66>0),'2007 Survey responses'!L66,\"\"),\"\")","v":5},{"$f":"IF('2007 Survey responses'!$B66>0,IF(AND('2011 Survey responses'!T62>0,'2007 Survey responses'!L66>0),'2011 Survey responses'!T62,\"\"),\"\")","v":6},5,null,null,{"$f":"IF(AND('2011 Survey responses'!$U62>0,'2007 Survey responses'!$M66>0),'2007 Survey responses'!$M66,\"\")","v":5},{"$f":"IF(AND('2011 Survey responses'!$U62>0,'2007 Survey responses'!$M66>0),'2011 Survey responses'!$U62,\"\")","v":6},5]
["France",{"$f":"IF(AND('2011 Survey responses'!$F63>0,'2007 Survey responses'!E67>0),'2007 Survey responses'!E67,\"\")","v":""},{"$f":"IF(AND('2011 Survey responses'!$F63>0,'2007 Survey responses'!E67>0),'2011 Survey responses'!$F63,\"\")","v":""},"",null,null,{"$f":"IF(AND('2011 Survey responses'!$G63>0,'2007 Survey responses'!$F67>0),'2007 Survey responses'!$F67,\"\")","v":""},{"$f":"IF(AND('2011 Survey responses'!$G63>0,'2007 Survey responses'!$F67>0),'2011 Survey responses'!$G63,\"\")","v":""},"",null,null,{"$f":"IF(AND('2011 Survey responses'!$H63>0,'2007 Survey responses'!$F67>0),'2007 Survey responses'!$F67,\"\")","v":""},{"$f":"IF(AND('2011 Survey responses'!$H63>0,'2007 Survey responses'!$F67>0),'2011 Survey responses'!$H63,\"\")","v":""},"",null,null,{"$f":"IF(AND(Question_grouping!O63>0,'2007 Survey responses'!$F67>0),'2007 Survey responses'!$F67,\"\")","v":""},{"$f":"IF(AND(Question_grouping!O63>0,'2007 Survey responses'!$F67>0),Question_grouping!O63,\"\")","v":""},"",null,null,{"$f":"IF(AND('2011 Survey responses'!$B63>0,'2007 Survey responses'!$C67>0),'2007 Survey responses'!$C67,\"\")","v":""},{"$f":"IF(AND('2011 Survey responses'!$B63>0,'2007 Survey responses'!$C67>0),'2011 Survey responses'!$B63,\"\")","v":""},"",null,null,{"$f":"IF(AND('2011 Survey responses'!$D63>0,'2007 Survey responses'!$D67>0),'2007 Survey responses'!$D67,\"\")","v":""},{"$f":"IF(AND('2011 Survey responses'!$D63>0,'2007 Survey responses'!$D67>0),'2011 Survey responses'!$D63,\"\")","v":""},"",null,null,{"$f":"IF(AND('2011 Survey responses'!$J63>0,'2007 Survey responses'!$H67>0),'2007 Survey responses'!$H67,\"\")","v":""},{"$f":"IF(AND('2011 Survey responses'!$J63>0,'2007 Survey responses'!$H67>0),'2011 Survey responses'!$J63,\"\")","v":""},"",null,null,{"$f":"IF(AND('2011 Survey responses'!$K63>0,'2007 Survey responses'!$J67>0),'2007 Survey responses'!$J67,\"\")","v":""},{"$f":"IF(AND('2011 Survey responses'!$K63>0,'2007 Survey responses'!$J67>0),'2011 Survey responses'!$K63,\"\")","v":""},"",null,null,{"$f":"IF(AND('2011 Survey responses'!$L63>0,'2007 Survey responses'!$I67>0),'2007 Survey responses'!$I67,\"\")","v":""},{"$f":"IF(AND('2011 Survey responses'!$L63>0,'2007 Survey responses'!$I67>0),'2011 Survey responses'!$L63,\"\")","v":""},"",null,null,{"$f":"IF(AND('2011 Survey responses'!$M63>0,'2007 Survey responses'!$K67>0),'2007 Survey responses'!$K67,\"\")","v":""},{"$f":"IF(AND('2011 Survey responses'!$M63>0,'2007 Survey responses'!$K67>0),'2011 Survey responses'!$M63,\"\")","v":""},"",null,null,{"$f":"IF('2007 Survey responses'!$B67>0,IF(AND('2011 Survey responses'!T63>0,'2007 Survey responses'!L67>0),'2007 Survey responses'!L67,\"\"),\"\")","v":""},{"$f":"IF('2007 Survey responses'!$B67>0,IF(AND('2011 Survey responses'!T63>0,'2007 Survey responses'!L67>0),'2011 Survey responses'!T63,\"\"),\"\")","v":""},"",null,null,{"$f":"IF(AND('2011 Survey responses'!$U63>0,'2007 Survey responses'!$M67>0),'2007 Survey responses'!$M67,\"\")","v":""},{"$f":"IF(AND('2011 Survey responses'!$U63>0,'2007 Survey responses'!$M67>0),'2011 Survey responses'!$U63,\"\")","v":""},""]
["Gabon",{"$f":"IF(AND('2011 Survey responses'!$F64>0,'2007 Survey responses'!E68>0),'2007 Survey responses'!E68,\"\")","v":""},{"$f":"IF(AND('2011 Survey responses'!$F64>0,'2007 Survey responses'!E68>0),'2011 Survey responses'!$F64,\"\")","v":""},"",null,null,{"$f":"IF(AND('2011 Survey responses'!$G64>0,'2007 Survey responses'!$F68>0),'2007 Survey responses'!$F68,\"\")","v":""},{"$f":"IF(AND('2011 Survey responses'!$G64>0,'2007 Survey responses'!$F68>0),'2011 Survey responses'!$G64,\"\")","v":""},"",null,null,{"$f":"IF(AND('2011 Survey responses'!$H64>0,'2007 Survey responses'!$F68>0),'2007 Survey responses'!$F68,\"\")","v":""},{"$f":"IF(AND('2011 Survey responses'!$H64>0,'2007 Survey responses'!$F68>0),'2011 Survey responses'!$H64,\"\")","v":""},"",null,null,{"$f":"IF(AND(Question_grouping!O64>0,'2007 Survey responses'!$F68>0),'2007 Survey responses'!$F68,\"\")","v":""},{"$f":"IF(AND(Question_grouping!O64>0,'2007 Survey responses'!$F68>0),Question_grouping!O64,\"\")","v":""},"",null,null,{"$f":"IF(AND('2011 Survey responses'!$B64>0,'2007 Survey responses'!$C68>0),'2007 Survey responses'!$C68,\"\")","v":""},{"$f":"IF(AND('2011 Survey responses'!$B64>0,'2007 Survey responses'!$C68>0),'2011 Survey responses'!$B64,\"\")","v":""},"",null,null,{"$f":"IF(AND('2011 Survey responses'!$D64>0,'2007 Survey responses'!$D68>0),'2007 Survey responses'!$D68,\"\")","v":""},{"$f":"IF(AND('2011 Survey responses'!$D64>0,'2007 Survey responses'!$D68>0),'2011 Survey responses'!$D64,\"\")","v":""},"",null,null,{"$f":"IF(AND('2011 Survey responses'!$J64>0,'2007 Survey responses'!$H68>0),'2007 Survey responses'!$H68,\"\")","v":""},{"$f":"IF(AND('2011 Survey responses'!$J64>0,'2007 Survey responses'!$H68>0),'2011 Survey responses'!$J64,\"\")","v":""},"",null,null,{"$f":"IF(AND('2011 Survey responses'!$K64>0,'2007 Survey responses'!$J68>0),'2007 Survey responses'!$J68,\"\")","v":""},{"$f":"IF(AND('2011 Survey responses'!$K64>0,'2007 Survey responses'!$J68>0),'2011 Survey responses'!$K64,\"\")","v":""},"",null,null,{"$f":"IF(AND('2011 Survey responses'!$L64>0,'2007 Survey responses'!$I68>0),'2007 Survey responses'!$I68,\"\")","v":""},{"$f":"IF(AND('2011 Survey responses'!$L64>0,'2007 Survey responses'!$I68>0),'2011 Survey responses'!$L64,\"\")","v":""},"",null,null,{"$f":"IF(AND('2011 Survey responses'!$M64>0,'2007 Survey responses'!$K68>0),'2007 Survey responses'!$K68,\"\")","v":""},{"$f":"IF(AND('2011 Survey responses'!$M64>0,'2007 Survey responses'!$K68>0),'2011 Survey responses'!$M64,\"\")","v":""},"",null,null,{"$f":"IF('2007 Survey responses'!$B68>0,IF(AND('2011 Survey responses'!T64>0,'2007 Survey responses'!L68>0),'2007 Survey responses'!L68,\"\"),\"\")","v":""},{"$f":"IF('2007 Survey responses'!$B68>0,IF(AND('2011 Survey responses'!T64>0,'2007 Survey responses'!L68>0),'2011 Survey responses'!T64,\"\"),\"\")","v":""},"",null,null,{"$f":"IF(AND('2011 Survey responses'!$U64>0,'2007 Survey responses'!$M68>0),'2007 Survey responses'!$M68,\"\")","v":""},{"$f":"IF(AND('2011 Survey responses'!$U64>0,'2007 Survey responses'!$M68>0),'2011 Survey responses'!$U64,\"\")","v":""},""]
["Gambia",{"$f":"IF(AND('2011 Survey responses'!$F65>0,'2007 Survey responses'!E69>0),'2007 Survey responses'!E69,\"\")","v":1},{"$f":"IF(AND('2011 Survey responses'!$F65>0,'2007 Survey responses'!E69>0),'2011 Survey responses'!$F65,\"\")","v":3},3,null,null,{"$f":"IF(AND('2011 Survey responses'!$G65>0,'2007 Survey responses'!$F69>0),'2007 Survey responses'!$F69,\"\")","v":""},{"$f":"IF(AND('2011 Survey responses'!$G65>0,'2007 Survey responses'!$F69>0),'2011 Survey responses'!$G65,\"\")","v":""},"",null,null,{"$f":"IF(AND('2011 Survey responses'!$H65>0,'2007 Survey responses'!$F69>0),'2007 Survey responses'!$F69,\"\")","v":""},{"$f":"IF(AND('2011 Survey responses'!$H65>0,'2007 Survey responses'!$F69>0),'2011 Survey responses'!$H65,\"\")","v":""},"",null,null,{"$f":"IF(AND(Question_grouping!O65>0,'2007 Survey responses'!$F69>0),'2007 Survey responses'!$F69,\"\")","v":1},{"$f":"IF(AND(Question_grouping!O65>0,'2007 Survey responses'!$F69>0),Question_grouping!O65,\"\")","v":""},"",null,null,{"$f":"IF(AND('2011 Survey responses'!$B65>0,'2007 Survey responses'!$C69>0),'2007 Survey responses'!$C69,\"\")","v":2},{"$f":"IF(AND('2011 Survey responses'!$B65>0,'2007 Survey responses'!$C69>0),'2011 Survey responses'!$B65,\"\")","v":4},4,null,null,{"$f":"IF(AND('2011 Survey responses'!$D65>0,'2007 Survey responses'!$D69>0),'2007 Survey responses'!$D69,\"\")","v":""},{"$f":"IF(AND('2011 Survey responses'!$D65>0,'2007 Survey responses'!$D69>0),'2011 Survey responses'!$D65,\"\")","v":""},"",null,null,{"$f":"IF(AND('2011 Survey responses'!$J65>0,'2007 Survey responses'!$H69>0),'2007 Survey responses'!$H69,\"\")","v":4},{"$f":"IF(AND('2011 Survey responses'!$J65>0,'2007 Survey responses'!$H69>0),'2011 Survey responses'!$J65,\"\")","v":6},5,null,null,{"$f":"IF(AND('2011 Survey responses'!$K65>0,'2007 Survey responses'!$J69>0),'2007 Survey responses'!$J69,\"\")","v":1},{"$f":"IF(AND('2011 Survey responses'!$K65>0,'2007 Survey responses'!$J69>0),'2011 Survey responses'!$K65,\"\")","v":4},4,null,null,{"$f":"IF(AND('2011 Survey responses'!$L65>0,'2007 Survey responses'!$I69>0),'2007 Survey responses'!$I69,\"\")","v":1},{"$f":"IF(AND('2011 Survey responses'!$L65>0,'2007 Survey responses'!$I69>0),'2011 Survey responses'!$L65,\"\")","v":3},3,null,null,{"$f":"IF(AND('2011 Survey responses'!$M65>0,'2007 Survey responses'!$K69>0),'2007 Survey responses'!$K69,\"\")","v":2},{"$f":"IF(AND('2011 Survey responses'!$M65>0,'2007 Survey responses'!$K69>0),'2011 Survey responses'!$M65,\"\")","v":3},3,null,null,{"$f":"IF('2007 Survey responses'!$B69>0,IF(AND('2011 Survey responses'!T65>0,'2007 Survey responses'!L69>0),'2007 Survey responses'!L69,\"\"),\"\")","v":1},{"$f":"IF('2007 Survey responses'!$B69>0,IF(AND('2011 Survey responses'!T65>0,'2007 Survey responses'!L69>0),'2011 Survey responses'!T65,\"\"),\"\")","v":5},4,null,null,{"$f":"IF(AND('2011 Survey responses'!$U65>0,'2007 Survey responses'!$M69>0),'2007 Survey responses'!$M69,\"\")","v":1},{"$f":"IF(AND('2011 Survey responses'!$U65>0,'2007 Survey responses'!$M69>0),'2011 Survey responses'!$U65,\"\")","v":5},4]
["Georgia",{"$f":"IF(AND('2011 Survey responses'!$F66>0,'2007 Survey responses'!E70>0),'2007 Survey responses'!E70,\"\")","v":2},{"$f":"IF(AND('2011 Survey responses'!$F66>0,'2007 Survey responses'!E70>0),'2011 Survey responses'!$F66,\"\")","v":1},1,null,null,{"$f":"IF(AND('2011 Survey responses'!$G66>0,'2007 Survey responses'!$F70>0),'2007 Survey responses'!$F70,\"\")","v":1},{"$f":"IF(AND('2011 Survey responses'!$G66>0,'2007 Survey responses'!$F70>0),'2011 Survey responses'!$G66,\"\")","v":1},1,null,null,{"$f":"IF(AND('2011 Survey responses'!$H66>0,'2007 Survey responses'!$F70>0),'2007 Survey responses'!$F70,\"\")","v":1},{"$f":"IF(AND('2011 Survey responses'!$H66>0,'2007 Survey responses'!$F70>0),'2011 Survey responses'!$H66,\"\")","v":1},1,null,null,{"$f":"IF(AND(Question_grouping!O66>0,'2007 Survey responses'!$F70>0),'2007 Survey responses'!$F70,\"\")","v":1},{"$f":"IF(AND(Question_grouping!O66>0,'2007 Survey responses'!$F70>0),Question_grouping!O66,\"\")","v":1},1,null,null,{"$f":"IF(AND('2011 Survey responses'!$B66>0,'2007 Survey responses'!$C70>0),'2007 Survey responses'!$C70,\"\")","v":5},{"$f":"IF(AND('2011 Survey responses'!$B66>0,'2007 Survey responses'!$C70>0),'2011 Survey responses'!$B66,\"\")","v":2},2,null,null,{"$f":"IF(AND('2011 Survey responses'!$D66>0,'2007 Survey responses'!$D70>0),'2007 Survey responses'!$D70,\"\")","v":5},{"$f":"IF(AND('2011 Survey responses'!$D66>0,'2007 Survey responses'!$D70>0),'2011 Survey responses'!$D66,\"\")","v":3},3,null,null,{"$f":"IF(AND('2011 Survey responses'!$J66>0,'2007 Survey responses'!$H70>0),'2007 Survey responses'!$H70,\"\")","v":1},{"$f":"IF(AND('2011 Survey responses'!$J66>0,'2007 Survey responses'!$H70>0),'2011 Survey responses'!$J66,\"\")","v":4},4,null,null,{"$f":"IF(AND('2011 Survey responses'!$K66>0,'2007 Survey responses'!$J70>0),'2007 Survey responses'!$J70,\"\")","v":5},{"$f":"IF(AND('2011 Survey responses'!$K66>0,'2007 Survey responses'!$J70>0),'2011 Survey responses'!$K66,\"\")","v":2},2,null,null,{"$f":"IF(AND('2011 Survey responses'!$L66>0,'2007 Survey responses'!$I70>0),'2007 Survey responses'!$I70,\"\")","v":1},{"$f":"IF(AND('2011 Survey responses'!$L66>0,'2007 Survey responses'!$I70>0),'2011 Survey responses'!$L66,\"\")","v":1},1,null,null,{"$f":"IF(AND('2011 Survey responses'!$M66>0,'2007 Survey responses'!$K70>0),'2007 Survey responses'!$K70,\"\")","v":1},{"$f":"IF(AND('2011 Survey responses'!$M66>0,'2007 Survey responses'!$K70>0),'2011 Survey responses'!$M66,\"\")","v":2},2,null,null,{"$f":"IF('2007 Survey responses'!$B70>0,IF(AND('2011 Survey responses'!T66>0,'2007 Survey responses'!L70>0),'2007 Survey responses'!L70,\"\"),\"\")","v":2},{"$f":"IF('2007 Survey responses'!$B70>0,IF(AND('2011 Survey responses'!T66>0,'2007 Survey responses'!L70>0),'2011 Survey responses'!T66,\"\"),\"\")","v":2},2,null,null,{"$f":"IF(AND('2011 Survey responses'!$U66>0,'2007 Survey responses'!$M70>0),'2007 Survey responses'!$M70,\"\")","v":5},{"$f":"IF(AND('2011 Survey responses'!$U66>0,'2007 Survey responses'!$M70>0),'2011 Survey responses'!$U66,\"\")","v":4},4]
["Germany",{"$f":"IF(AND('2011 Survey responses'!$F67>0,'2007 Survey responses'!E71>0),'2007 Survey responses'!E71,\"\")","v":2},{"$f":"IF(AND('2011 Survey responses'!$F67>0,'2007 Survey responses'!E71>0),'2011 Survey responses'!$F67,\"\")","v":5},{"$f":"IF(C66=0,\"\",IF(C66=6,5,IF(C66=5,4,C66)))","v":4},null,null,{"$f":"IF(AND('2011 Survey responses'!$G67>0,'2007 Survey responses'!$F71>0),'2007 Survey responses'!$F71,\"\")","v":2},{"$f":"IF(AND('2011 Survey responses'!$G67>0,'2007 Survey responses'!$F71>0),'2011 Survey responses'!$G67,\"\")","v":1},{"$f":"IF(H66=0,\"\",IF(H66=6,5,IF(H66=5,4,H66)))","v":1},null,null,{"$f":"IF(AND('2011 Survey responses'!$H67>0,'2007 Survey responses'!$F71>0),'2007 Survey responses'!$F71,\"\")","v":2},{"$f":"IF(AND('2011 Survey responses'!$H67>0,'2007 Survey responses'!$F71>0),'2011 Survey responses'!$H67,\"\")","v":5},{"$f":"IF(M66=0,\"\",IF(M66=6,5,IF(M66=5,4,M66)))","v":4},null,null,{"$f":"IF(AND(Question_grouping!O67>0,'2007 Survey responses'!$F71>0),'2007 Survey responses'!$F71,\"\")","v":2},{"$f":"IF(AND(Question_grouping!O67>0,'2007 Survey responses'!$F71>0),Question_grouping!O67,\"\")","v":5},{"$f":"IF(R66=0,\"\",IF(R66=6,5,IF(R66=5,4,R66)))","v":4},null,null,{"$f":"IF(AND('2011 Survey responses'!$B67>0,'2007 Survey responses'!$C71>0),'2007 Survey responses'!$C71,\"\")","v":3},{"$f":"IF(AND('2011 Survey responses'!$B67>0,'2007 Survey responses'!$C71>0),'2011 Survey responses'!$B67,\"\")","v":6},{"$f":"IF(W66=0,\"\",IF(W66=6,5,IF(W66=5,4,W66)))","v":5},null,null,{"$f":"IF(AND('2011 Survey responses'!$D67>0,'2007 Survey responses'!$D71>0),'2007 Survey responses'!$D71,\"\")","v":4},{"$f":"IF(AND('2011 Survey responses'!$D67>0,'2007 Survey responses'!$D71>0),'2011 Survey responses'!$D67,\"\")","v":6},{"$f":"IF(AB66=0,\"\",IF(AB66=6,5,IF(AB66=5,4,AB66)))","v":5},null,null,{"$f":"IF(AND('2011 Survey responses'!$J67>0,'2007 Survey responses'!$H71>0),'2007 Survey responses'!$H71,\"\")","v":""},{"$f":"IF(AND('2011 Survey responses'!$J67>0,'2007 Survey responses'!$H71>0),'2011 Survey responses'!$J67,\"\")","v":""},{"$f":"IF(AG66=0,\"\",IF(AG66=6,5,IF(AG66=5,4,AG66)))","v":""},null,null,{"$f":"IF(AND('2011 Survey responses'!$K67>0,'2007 Survey responses'!$J71>0),'2007 Survey responses'!$J71,\"\")","v":4},{"$f":"IF(AND('2011 Survey responses'!$K67>0,'2007 Survey responses'!$J71>0),'2011 Survey responses'!$K67,\"\")","v":5},{"$f":"IF(AL66=0,\"\",IF(AL66=6,5,IF(AL66=5,4,AL66)))","v":4},null,null,{"$f":"IF(AND('2011 Survey responses'!$L67>0,'2007 Survey responses'!$I71>0),'2007 Survey responses'!$I71,\"\")","v":4},{"$f":"IF(AND('2011 Survey responses'!$L67>0,'2007 Survey responses'!$I71>0),'2011 Survey responses'!$L67,\"\")","v":1},{"$f":"IF(AQ66=0,\"\",IF(AQ66=6,5,IF(AQ66=5,4,AQ66)))","v":1},null,null,{"$f":"IF(AND('2011 Survey responses'!$M67>0,'2007 Survey responses'!$K71>0),'2007 Survey responses'!$K71,\"\")","v":4},{"$f":"IF(AND('2011 Survey responses'!$M67>0,'2007 Survey responses'!$K71>0),'2011 Survey responses'!$M67,\"\")","v":1},{"$f":"IF(AV66=0,\"\",IF(AV66=6,5,IF(AV66=5,4,AV66)))","v":1},null,null,{"$f":"IF('2007 Survey responses'!$B71>0,IF(AND('2011 Survey responses'!T67>0,'2007 Survey responses'!L71>0),'2007 Survey responses'!L71,\"\"),\"\")","v":4},{"$f":"IF('2007 Survey responses'!$B71>0,IF(AND('2011 Survey responses'!T67>0,'2007 Survey responses'!L71>0),'2011 Survey responses'!T67,\"\"),\"\")","v":6},{"$f":"IF(BA66=0,\"\",IF(BA66=6,5,IF(BA66=5,4,BA66)))","v":5},null,null,{"$f":"IF(AND('2011 Survey responses'!$U67>0,'2007 Survey responses'!$M71>0),'2007 Survey responses'!$M71,\"\")","v":4},{"$f":"IF(AND('2011 Survey responses'!$U67>0,'2007 Survey responses'!$M71>0),'2011 Survey responses'!$U67,\"\")","v":6},{"$f":"IF(BF66=0,\"\",IF(BF66=6,5,IF(BF66=5,4,BF66)))","v":5}]
["Ghana",{"$f":"IF(AND('2011 Survey responses'!$F68>0,'2007 Survey responses'!E72>0),'2007 Survey responses'!E72,\"\")","v":4},{"$f":"IF(AND('2011 Survey responses'!$F68>0,'2007 Survey responses'!E72>0),'2011 Survey responses'!$F68,\"\")","v":2},2,null,null,{"$f":"IF(AND('2011 Survey responses'!$G68>0,'2007 Survey responses'!$F72>0),'2007 Survey responses'!$F72,\"\")","v":4},{"$f":"IF(AND('2011 Survey responses'!$G68>0,'2007 Survey responses'!$F72>0),'2011 Survey responses'!$G68,\"\")","v":1},1,null,null,{"$f":"IF(AND('2011 Survey responses'!$H68>0,'2007 Survey responses'!$F72>0),'2007 Survey responses'!$F72,\"\")","v":4},{"$f":"IF(AND('2011 Survey responses'!$H68>0,'2007 Survey responses'!$F72>0),'2011 Survey responses'!$H68,\"\")","v":1},1,null,null,{"$f":"IF(AND(Question_grouping!O68>0,'2007 Survey responses'!$F72>0),'2007 Survey responses'!$F72,\"\")","v":4},{"$f":"IF(AND(Question_grouping!O68>0,'2007 Survey responses'!$F72>0),Question_grouping!O68,\"\")","v":1},1,null,null,{"$f":"IF(AND('2011 Survey responses'!$B68>0,'2007 Survey responses'!$C72>0),'2007 Survey responses'!$C72,\"\")","v":5},{"$f":"IF(AND('2011 Survey responses'!$B68>0,'2007 Survey responses'!$C72>0),'2011 Survey responses'!$B68,\"\")","v":5},4,null,null,{"$f":"IF(AND('2011 Survey responses'!$D68>0,'2007 Survey responses'!$D72>0),'2007 Survey responses'!$D72,\"\")","v":5},{"$f":"IF(AND('2011 Survey responses'!$D68>0,'2007 Survey responses'!$D72>0),'2011 Survey responses'!$D68,\"\")","v":6},5,null,null,{"$f":"IF(AND('2011 Survey responses'!$J68>0,'2007 Survey responses'!$H72>0),'2007 Survey responses'!$H72,\"\")","v":4},{"$f":"IF(AND('2011 Survey responses'!$J68>0,'2007 Survey responses'!$H72>0),'2011 Survey responses'!$J68,\"\")","v":4},4,null,null,{"$f":"IF(AND('2011 Survey responses'!$K68>0,'2007 Survey responses'!$J72>0),'2007 Survey responses'!$J72,\"\")","v":""},{"$f":"IF(AND('2011 Survey responses'!$K68>0,'2007 Survey responses'!$J72>0),'2011 Survey responses'!$K68,\"\")","v":""},"",null,null,{"$f":"IF(AND('2011 Survey responses'!$L68>0,'2007 Survey responses'!$I72>0),'2007 Survey responses'!$I72,\"\")","v":4},{"$f":"IF(AND('2011 Survey responses'!$L68>0,'2007 Survey responses'!$I72>0),'2011 Survey responses'!$L68,\"\")","v":4},4,null,null,{"$f":"IF(AND('2011 Survey responses'!$M68>0,'2007 Survey responses'!$K72>0),'2007 Survey responses'!$K72,\"\")","v":4},{"$f":"IF(AND('2011 Survey responses'!$M68>0,'2007 Survey responses'!$K72>0),'2011 Survey responses'!$M68,\"\")","v":4},4,null,null,{"$f":"IF('2007 Survey responses'!$B72>0,IF(AND('2011 Survey responses'!T68>0,'2007 Survey responses'!L72>0),'2007 Survey responses'!L72,\"\"),\"\")","v":4},{"$f":"IF('2007 Survey responses'!$B72>0,IF(AND('2011 Survey responses'!T68>0,'2007 Survey responses'!L72>0),'2011 Survey responses'!T68,\"\"),\"\")","v":5},4,null,null,{"$f":"IF(AND('2011 Survey responses'!$U68>0,'2007 Survey responses'!$M72>0),'2007 Survey responses'!$M72,\"\")","v":4},{"$f":"IF(AND('2011 Survey responses'!$U68>0,'2007 Survey responses'!$M72>0),'2011 Survey responses'!$U68,\"\")","v":6},5]
["Greece",{"$f":"IF(AND('2011 Survey responses'!$F69>0,'2007 Survey responses'!E73>0),'2007 Survey responses'!E73,\"\")","v":1},{"$f":"IF(AND('2011 Survey responses'!$F69>0,'2007 Survey responses'!E73>0),'2011 Survey responses'!$F69,\"\")","v":4},4,null,null,{"$f":"IF(AND('2011 Survey responses'!$G69>0,'2007 Survey responses'!$F73>0),'2007 Survey responses'!$F73,\"\")","v":""},{"$f":"IF(AND('2011 Survey responses'!$G69>0,'2007 Survey responses'!$F73>0),'2011 Survey responses'!$G69,\"\")","v":""},"",null,null,{"$f":"IF(AND('2011 Survey responses'!$H69>0,'2007 Survey responses'!$F73>0),'2007 Survey responses'!$F73,\"\")","v":""},{"$f":"IF(AND('2011 Survey responses'!$H69>0,'2007 Survey responses'!$F73>0),'2011 Survey responses'!$H69,\"\")","v":""},"",null,null,{"$f":"IF(AND(Question_grouping!O69>0,'2007 Survey responses'!$F73>0),'2007 Survey responses'!$F73,\"\")","v":1},{"$f":"IF(AND(Question_grouping!O69>0,'2007 Survey responses'!$F73>0),Question_grouping!O69,\"\")","v":""},"",null,null,{"$f":"IF(AND('2011 Survey responses'!$B69>0,'2007 Survey responses'!$C73>0),'2007 Survey responses'!$C73,\"\")","v":3},{"$f":"IF(AND('2011 Survey responses'!$B69>0,'2007 Survey responses'!$C73>0),'2011 Survey responses'!$B69,\"\")","v":5},4,null,null,{"$f":"IF(AND('2011 Survey responses'!$D69>0,'2007 Survey responses'!$D73>0),'2007 Survey responses'!$D73,\"\")","v":3},{"$f":"IF(AND('2011 Survey responses'!$D69>0,'2007 Survey responses'!$D73>0),'2011 Survey responses'!$D69,\"\")","v":5},4,null,null,{"$f":"IF(AND('2011 Survey responses'!$J69>0,'2007 Survey responses'!$H73>0),'2007 Survey responses'!$H73,\"\")","v":""},{"$f":"IF(AND('2011 Survey responses'!$J69>0,'2007 Survey responses'!$H73>0),'2011 Survey responses'!$J69,\"\")","v":""},"",null,null,{"$f":"IF(AND('2011 Survey responses'!$K69>0,'2007 Survey responses'!$J73>0),'2007 Survey responses'!$J73,\"\")","v":""},{"$f":"IF(AND('2011 Survey responses'!$K69>0,'2007 Survey responses'!$J73>0),'2011 Survey responses'!$K69,\"\")","v":""},"",null,null,{"$f":"IF(AND('2011 Survey responses'!$L69>0,'2007 Survey responses'!$I73>0),'2007 Survey responses'!$I73,\"\")","v":""},{"$f":"IF(AND('2011 Survey responses'!$L69>0,'2007 Survey responses'!$I73>0),'2011 Survey responses'!$L69,\"\")","v":""},"",null,null,{"$f":"IF(AND('2011 Survey responses'!$M69>0,'2007 Survey responses'!$K73>0),'2007 Survey responses'!$K73,\"\")","v":""},{"$f":"IF(AND('2011 Survey responses'!$M69>0,'2007 Survey responses'!$K73>0),'2011 Survey responses'!$M69,\"\")","v":""},"",null,null,{"$f":"IF('2007 Survey responses'!$B73>0,IF(AND('2011 Survey responses'!T69>0,'2007 Survey responses'!L73>0),'2007 Survey responses'!L73,\"\"),\"\")","v":""},{"$f":"IF('2007 Survey responses'!$B73>0,IF(AND('2011 Survey responses'!T69>0,'2007 Survey responses'!L73>0),'2011 Survey responses'!T69,\"\"),\"\")","v":""},"",null,null,{"$f":"IF(AND('2011 Survey responses'!$U69>0,'2007 Survey responses'!$M73>0),'2007 Survey responses'!$M73,\"\")","v":""},{"$f":"IF(AND('2011 Survey responses'!$U69>0,'2007 Survey responses'!$M73>0),'2011 Survey responses'!$U69,\"\")","v":""},""]
["Grenada",{"$f":"IF(AND('2011 Survey responses'!$F70>0,'2007 Survey responses'!E74>0),'2007 Survey responses'!E74,\"\")","v":2},{"$f":"IF(AND('2011 Survey responses'!$F70>0,'2007 Survey responses'!E74>0),'2011 Survey responses'!$F70,\"\")","v":3},3,null,null,{"$f":"IF(AND('2011 Survey responses'!$G70>0,'2007 Survey responses'!$F74>0),'2007 Survey responses'!$F74,\"\")","v":1},{"$f":"IF(AND('2011 Survey responses'!$G70>0,'2007 Survey responses'!$F74>0),'2011 Survey responses'!$G70,\"\")","v":1},1,null,null,{"$f":"IF(AND('2011 Survey responses'!$H70>0,'2007 Survey responses'!$F74>0),'2007 Survey responses'!$F74,\"\")","v":1},{"$f":"IF(AND('2011 Survey responses'!$H70>0,'2007 Survey responses'!$F74>0),'2011 Survey responses'!$H70,\"\")","v":1},1,null,null,{"$f":"IF(AND(Question_grouping!O70>0,'2007 Survey responses'!$F74>0),'2007 Survey responses'!$F74,\"\")","v":1},{"$f":"IF(AND(Question_grouping!O70>0,'2007 Survey responses'!$F74>0),Question_grouping!O70,\"\")","v":1},1,null,null,{"$f":"IF(AND('2011 Survey responses'!$B70>0,'2007 Survey responses'!$C74>0),'2007 Survey responses'!$C74,\"\")","v":4},{"$f":"IF(AND('2011 Survey responses'!$B70>0,'2007 Survey responses'!$C74>0),'2011 Survey responses'!$B70,\"\")","v":4},4,null,null,{"$f":"IF(AND('2011 Survey responses'!$D70>0,'2007 Survey responses'!$D74>0),'2007 Survey responses'!$D74,\"\")","v":2},{"$f":"IF(AND('2011 Survey responses'!$D70>0,'2007 Survey responses'!$D74>0),'2011 Survey responses'!$D70,\"\")","v":3},3,null,null,{"$f":"IF(AND('2011 Survey responses'!$J70>0,'2007 Survey responses'!$H74>0),'2007 Survey responses'!$H74,\"\")","v":4},{"$f":"IF(AND('2011 Survey responses'!$J70>0,'2007 Survey responses'!$H74>0),'2011 Survey responses'!$J70,\"\")","v":2},2,null,null,{"$f":"IF(AND('2011 Survey responses'!$K70>0,'2007 Survey responses'!$J74>0),'2007 Survey responses'!$J74,\"\")","v":1},{"$f":"IF(AND('2011 Survey responses'!$K70>0,'2007 Survey responses'!$J74>0),'2011 Survey responses'!$K70,\"\")","v":2},2,null,null,{"$f":"IF(AND('2011 Survey responses'!$L70>0,'2007 Survey responses'!$I74>0),'2007 Survey responses'!$I74,\"\")","v":3},{"$f":"IF(AND('2011 Survey responses'!$L70>0,'2007 Survey responses'!$I74>0),'2011 Survey responses'!$L70,\"\")","v":2},2,null,null,{"$f":"IF(AND('2011 Survey responses'!$M70>0,'2007 Survey responses'!$K74>0),'2007 Survey responses'!$K74,\"\")","v":3},{"$f":"IF(AND('2011 Survey responses'!$M70>0,'2007 Survey responses'!$K74>0),'2011 Survey responses'!$M70,\"\")","v":2},2,null,null,{"$f":"IF('2007 Survey responses'!$B74>0,IF(AND('2011 Survey responses'!T70>0,'2007 Survey responses'!L74>0),'2007 Survey responses'!L74,\"\"),\"\")","v":2},{"$f":"IF('2007 Survey responses'!$B74>0,IF(AND('2011 Survey responses'!T70>0,'2007 Survey responses'!L74>0),'2011 Survey responses'!T70,\"\"),\"\")","v":3},3,null,null,{"$f":"IF(AND('2011 Survey responses'!$U70>0,'2007 Survey responses'!$M74>0),'2007 Survey responses'!$M74,\"\")","v":4},{"$f":"IF(AND('2011 Survey responses'!$U70>0,'2007 Survey responses'!$M74>0),'2011 Survey responses'!$U70,\"\")","v":1},1]
["Guatemala",{"$f":"IF(AND('2011 Survey responses'!$F71>0,'2007 Survey responses'!E75>0),'2007 Survey responses'!E75,\"\")","v":2},{"$f":"IF(AND('2011 Survey responses'!$F71>0,'2007 Survey responses'!E75>0),'2011 Survey responses'!$F71,\"\")","v":4},4,null,null,{"$f":"IF(AND('2011 Survey responses'!$G71>0,'2007 Survey responses'!$F75>0),'2007 Survey responses'!$F75,\"\")","v":2},{"$f":"IF(AND('2011 Survey responses'!$G71>0,'2007 Survey responses'!$F75>0),'2011 Survey responses'!$G71,\"\")","v":2},2,null,null,{"$f":"IF(AND('2011 Survey responses'!$H71>0,'2007 Survey responses'!$F75>0),'2007 Survey responses'!$F75,\"\")","v":2},{"$f":"IF(AND('2011 Survey responses'!$H71>0,'2007 Survey responses'!$F75>0),'2011 Survey responses'!$H71,\"\")","v":3},3,null,null,{"$f":"IF(AND(Question_grouping!O71>0,'2007 Survey responses'!$F75>0),'2007 Survey responses'!$F75,\"\")","v":2},{"$f":"IF(AND(Question_grouping!O71>0,'2007 Survey responses'!$F75>0),Question_grouping!O71,\"\")","v":3},3,null,null,{"$f":"IF(AND('2011 Survey responses'!$B71>0,'2007 Survey responses'!$C75>0),'2007 Survey responses'!$C75,\"\")","v":2},{"$f":"IF(AND('2011 Survey responses'!$B71>0,'2007 Survey responses'!$C75>0),'2011 Survey responses'!$B71,\"\")","v":4},4,null,null,{"$f":"IF(AND('2011 Survey responses'!$D71>0,'2007 Survey responses'!$D75>0),'2007 Survey responses'!$D75,\"\")","v":3},{"$f":"IF(AND('2011 Survey responses'!$D71>0,'2007 Survey responses'!$D75>0),'2011 Survey responses'!$D71,\"\")","v":2},2,null,null,{"$f":"IF(AND('2011 Survey responses'!$J71>0,'2007 Survey responses'!$H75>0),'2007 Survey responses'!$H75,\"\")","v":4},{"$f":"IF(AND('2011 Survey responses'!$J71>0,'2007 Survey responses'!$H75>0),'2011 Survey responses'!$J71,\"\")","v":5},4,null,null,{"$f":"IF(AND('2011 Survey responses'!$K71>0,'2007 Survey responses'!$J75>0),'2007 Survey responses'!$J75,\"\")","v":2},{"$f":"IF(AND('2011 Survey responses'!$K71>0,'2007 Survey responses'!$J75>0),'2011 Survey responses'!$K71,\"\")","v":3},3,null,null,{"$f":"IF(AND('2011 Survey responses'!$L71>0,'2007 Survey responses'!$I75>0),'2007 Survey responses'!$I75,\"\")","v":2},{"$f":"IF(AND('2011 Survey responses'!$L71>0,'2007 Survey responses'!$I75>0),'2011 Survey responses'!$L71,\"\")","v":3},3,null,null,{"$f":"IF(AND('2011 Survey responses'!$M71>0,'2007 Survey responses'!$K75>0),'2007 Survey responses'!$K75,\"\")","v":""},{"$f":"IF(AND('2011 Survey responses'!$M71>0,'2007 Survey responses'!$K75>0),'2011 Survey responses'!$M71,\"\")","v":""},"",null,null,{"$f":"IF('2007 Survey responses'!$B75>0,IF(AND('2011 Survey responses'!T71>0,'2007 Survey responses'!L75>0),'2007 Survey responses'!L75,\"\"),\"\")","v":4},{"$f":"IF('2007 Survey responses'!$B75>0,IF(AND('2011 Survey responses'!T71>0,'2007 Survey responses'!L75>0),'2011 Survey responses'!T71,\"\"),\"\")","v":2},2,null,null,{"$f":"IF(AND('2011 Survey responses'!$U71>0,'2007 Survey responses'!$M75>0),'2007 Survey responses'!$M75,\"\")","v":2},{"$f":"IF(AND('2011 Survey responses'!$U71>0,'2007 Survey responses'!$M75>0),'2011 Survey responses'!$U71,\"\")","v":1},1]
["Guinea",{"$f":"IF(AND('2011 Survey responses'!$F72>0,'2007 Survey responses'!E76>0),'2007 Survey responses'!E76,\"\")","v":""},{"$f":"IF(AND('2011 Survey responses'!$F72>0,'2007 Survey responses'!E76>0),'2011 Survey responses'!$F72,\"\")","v":""},"",null,null,{"$f":"IF(AND('2011 Survey responses'!$G72>0,'2007 Survey responses'!$F76>0),'2007 Survey responses'!$F76,\"\")","v":""},{"$f":"IF(AND('2011 Survey responses'!$G72>0,'2007 Survey responses'!$F76>0),'2011 Survey responses'!$G72,\"\")","v":""},"",null,null,{"$f":"IF(AND('2011 Survey responses'!$H72>0,'2007 Survey responses'!$F76>0),'2007 Survey responses'!$F76,\"\")","v":""},{"$f":"IF(AND('2011 Survey responses'!$H72>0,'2007 Survey responses'!$F76>0),'2011 Survey responses'!$H72,\"\")","v":""},"",null,null,{"$f":"IF(AND(Question_grouping!O72>0,'2007 Survey responses'!$F76>0),'2007 Survey responses'!$F76,\"\")","v":""},{"$f":"IF(AND(Question_grouping!O72>0,'2007 Survey responses'!$F76>0),Question_grouping!O72,\"\")","v":""},"",null,null,{"$f":"IF(AND('2011 Survey responses'!$B72>0,'2007 Survey responses'!$C76>0),'2007 Survey responses'!$C76,\"\")","v":""},{"$f":"IF(AND('2011 Survey responses'!$B72>0,'2007 Survey responses'!$C76>0),'2011 Survey responses'!$B72,\"\")","v":""},"",null,null,{"$f":"IF(AND('2011 Survey responses'!$D72>0,'2007 Survey responses'!$D76>0),'2007 Survey responses'!$D76,\"\")","v":""},{"$f":"IF(AND('2011 Survey responses'!$D72>0,'2007 Survey responses'!$D76>0),'2011 Survey responses'!$D72,\"\")","v":""},"",null,null,{"$f":"IF(AND('2011 Survey responses'!$J72>0,'2007 Survey responses'!$H76>0),'2007 Survey responses'!$H76,\"\")","v":""},{"$f":"IF(AND('2011 Survey responses'!$J72>0,'2007 Survey responses'!$H76>0),'2011 Survey responses'!$J72,\"\")","v":""},"",null,null,{"$f":"IF(AND('2011 Survey responses'!$K72>0,'2007 Survey responses'!$J76>0),'2007 Survey responses'!$J76,\"\")","v":""},{"$f":"IF(AND('2011 Survey responses'!$K72>0,'2007 Survey responses'!$J76>0),'2011 Survey responses'!$K72,\"\")","v":""},"",null,null,{"$f":"IF(AND('2011 Survey responses'!$L72>0,'2007 Survey responses'!$I76>0),'2007 Survey responses'!$I76,\"\")","v":""},{"$f":"IF(AND('2011 Survey responses'!$L72>0,'2007 Survey responses'!$I76>0),'2011 Survey responses'!$L72,\"\")","v":""},"",null,null,{"$f":"IF(AND('2011 Survey responses'!$M72>0,'2007 Survey responses'!$K76>0),'2007 Survey responses'!$K76,\"\")","v":""},{"$f":"IF(AND('2011 Survey responses'!$M72>0,'2007 Survey responses'!$K76>0),'2011 Survey responses'!$M72,\"\")","v":""},"",null,null,{"$f":"IF('2007 Survey responses'!$B76>0,IF(AND('2011 Survey responses'!T72>0,'2007 Survey responses'!L76>0),'2007 Survey responses'!L76,\"\"),\"\")","v":""},{"$f":"IF('2007 Survey responses'!$B76>0,IF(AND('2011 Survey responses'!T72>0,'2007 Survey responses'!L76>0),'2011 Survey responses'!T72,\"\"),\"\")","v":""},"",null,null,{"$f":"IF(AND('2011 Survey responses'!$U72>0,'2007 Survey responses'!$M76>0),'2007 Survey responses'!$M76,\"\")","v":""},{"$f":"IF(AND('2011 Survey responses'!$U72>0,'2007 Survey responses'!$M76>0),'2011 Survey responses'!$U72,\"\")","v":""},""]
["Guinea-Bissau",{"$f":"IF(AND('2011 Survey responses'!$F73>0,'2007 Survey responses'!E77>0),'2007 Survey responses'!E77,\"\")","v":""},{"$f":"IF(AND('2011 Survey responses'!$F73>0,'2007 Survey responses'!E77>0),'2011 Survey responses'!$F73,\"\")","v":""},"",null,null,{"$f":"IF(AND('2011 Survey responses'!$G73>0,'2007 Survey responses'!$F77>0),'2007 Survey responses'!$F77,\"\")","v":""},{"$f":"IF(AND('2011 Survey responses'!$G73>0,'2007 Survey responses'!$F77>0),'2011 Survey responses'!$G73,\"\")","v":""},"",null,null,{"$f":"IF(AND('2011 Survey responses'!$H73>0,'2007 Survey responses'!$F77>0),'2007 Survey responses'!$F77,\"\")","v":""},{"$f":"IF(AND('2011 Survey responses'!$H73>0,'2007 Survey responses'!$F77>0),'2011 Survey responses'!$H73,\"\")","v":""},"",null,null,{"$f":"IF(AND(Question_grouping!O73>0,'2007 Survey responses'!$F77>0),'2007 Survey responses'!$F77,\"\")","v":""},{"$f":"IF(AND(Question_grouping!O73>0,'2007 Survey responses'!$F77>0),Question_grouping!O73,\"\")","v":""},"",null,null,{"$f":"IF(AND('2011 Survey responses'!$B73>0,'2007 Survey responses'!$C77>0),'2007 Survey responses'!$C77,\"\")","v":""},{"$f":"IF(AND('2011 Survey responses'!$B73>0,'2007 Survey responses'!$C77>0),'2011 Survey responses'!$B73,\"\")","v":""},"",null,null,{"$f":"IF(AND('2011 Survey responses'!$D73>0,'2007 Survey responses'!$D77>0),'2007 Survey responses'!$D77,\"\")","v":""},{"$f":"IF(AND('2011 Survey responses'!$D73>0,'2007 Survey responses'!$D77>0),'2011 Survey responses'!$D73,\"\")","v":""},"",null,null,{"$f":"IF(AND('2011 Survey responses'!$J73>0,'2007 Survey responses'!$H77>0),'2007 Survey responses'!$H77,\"\")","v":""},{"$f":"IF(AND('2011 Survey responses'!$J73>0,'2007 Survey responses'!$H77>0),'2011 Survey responses'!$J73,\"\")","v":""},"",null,null,{"$f":"IF(AND('2011 Survey responses'!$K73>0,'2007 Survey responses'!$J77>0),'2007 Survey responses'!$J77,\"\")","v":""},{"$f":"IF(AND('2011 Survey responses'!$K73>0,'2007 Survey responses'!$J77>0),'2011 Survey responses'!$K73,\"\")","v":""},"",null,null,{"$f":"IF(AND('2011 Survey responses'!$L73>0,'2007 Survey responses'!$I77>0),'2007 Survey responses'!$I77,\"\")","v":""},{"$f":"IF(AND('2011 Survey responses'!$L73>0,'2007 Survey responses'!$I77>0),'2011 Survey responses'!$L73,\"\")","v":""},"",null,null,{"$f":"IF(AND('2011 Survey responses'!$M73>0,'2007 Survey responses'!$K77>0),'2007 Survey responses'!$K77,\"\")","v":""},{"$f":"IF(AND('2011 Survey responses'!$M73>0,'2007 Survey responses'!$K77>0),'2011 Survey responses'!$M73,\"\")","v":""},"",null,null,{"$f":"IF('2007 Survey responses'!$B77>0,IF(AND('2011 Survey responses'!T73>0,'2007 Survey responses'!L77>0),'2007 Survey responses'!L77,\"\"),\"\")","v":""},{"$f":"IF('2007 Survey responses'!$B77>0,IF(AND('2011 Survey responses'!T73>0,'2007 Survey responses'!L77>0),'2011 Survey responses'!T73,\"\"),\"\")","v":""},"",null,null,{"$f":"IF(AND('2011 Survey responses'!$U73>0,'2007 Survey responses'!$M77>0),'2007 Survey responses'!$M77,\"\")","v":""},{"$f":"IF(AND('2011 Survey responses'!$U73>0,'2007 Survey responses'!$M77>0),'2011 Survey responses'!$U73,\"\")","v":""},""]
["Guyana",{"$f":"IF(AND('2011 Survey responses'!$F74>0,'2007 Survey responses'!E78>0),'2007 Survey responses'!E78,\"\")","v":""},{"$f":"IF(AND('2011 Survey responses'!$F74>0,'2007 Survey responses'!E78>0),'2011 Survey responses'!$F74,\"\")","v":""},"",null,null,{"$f":"IF(AND('2011 Survey responses'!$G74>0,'2007 Survey responses'!$F78>0),'2007 Survey responses'!$F78,\"\")","v":""},{"$f":"IF(AND('2011 Survey responses'!$G74>0,'2007 Survey responses'!$F78>0),'2011 Survey responses'!$G74,\"\")","v":""},"",null,null,{"$f":"IF(AND('2011 Survey responses'!$H74>0,'2007 Survey responses'!$F78>0),'2007 Survey responses'!$F78,\"\")","v":""},{"$f":"IF(AND('2011 Survey responses'!$H74>0,'2007 Survey responses'!$F78>0),'2011 Survey responses'!$H74,\"\")","v":""},"",null,null,{"$f":"IF(AND(Question_grouping!O74>0,'2007 Survey responses'!$F78>0),'2007 Survey responses'!$F78,\"\")","v":""},{"$f":"IF(AND(Question_grouping!O74>0,'2007 Survey responses'!$F78>0),Question_grouping!O74,\"\")","v":""},"",null,null,{"$f":"IF(AND('2011 Survey responses'!$B74>0,'2007 Survey responses'!$C78>0),'2007 Survey responses'!$C78,\"\")","v":""},{"$f":"IF(AND('2011 Survey responses'!$B74>0,'2007 Survey responses'!$C78>0),'2011 Survey responses'!$B74,\"\")","v":""},"",null,null,{"$f":"IF(AND('2011 Survey responses'!$D74>0,'2007 Survey responses'!$D78>0),'2007 Survey responses'!$D78,\"\")","v":""},{"$f":"IF(AND('2011 Survey responses'!$D74>0,'2007 Survey responses'!$D78>0),'2011 Survey responses'!$D74,\"\")","v":""},"",null,null,{"$f":"IF(AND('2011 Survey responses'!$J74>0,'2007 Survey responses'!$H78>0),'2007 Survey responses'!$H78,\"\")","v":""},{"$f":"IF(AND('2011 Survey responses'!$J74>0,'2007 Survey responses'!$H78>0),'2011 Survey responses'!$J74,\"\")","v":""},"",null,null,{"$f":"IF(AND('2011 Survey responses'!$K74>0,'2007 Survey responses'!$J78>0),'2007 Survey responses'!$J78,\"\")","v":""},{"$f":"IF(AND('2011 Survey responses'!$K74>0,'2007 Survey responses'!$J78>0),'2011 Survey responses'!$K74,\"\")","v":""},"",null,null,{"$f":"IF(AND('2011 Survey responses'!$L74>0,'2007 Survey responses'!$I78>0),'2007 Survey responses'!$I78,\"\")","v":""},{"$f":"IF(AND('2011 Survey responses'!$L74>0,'2007 Survey responses'!$I78>0),'2011 Survey responses'!$L74,\"\")","v":""},"",null,null,{"$f":"IF(AND('2011 Survey responses'!$M74>0,'2007 Survey responses'!$K78>0),'2007 Survey responses'!$K78,\"\")","v":""},{"$f":"IF(AND('2011 Survey responses'!$M74>0,'2007 Survey responses'!$K78>0),'2011 Survey responses'!$M74,\"\")","v":""},"",null,null,{"$f":"IF('2007 Survey responses'!$B78>0,IF(AND('2011 Survey responses'!T74>0,'2007 Survey responses'!L78>0),'2007 Survey responses'!L78,\"\"),\"\")","v":""},{"$f":"IF('2007 Survey responses'!$B78>0,IF(AND('2011 Survey responses'!T74>0,'2007 Survey responses'!L78>0),'2011 Survey responses'!T74,\"\"),\"\")","v":""},"",null,null,{"$f":"IF(AND('2011 Survey responses'!$U74>0,'2007 Survey responses'!$M78>0),'2007 Survey responses'!$M78,\"\")","v":""},{"$f":"IF(AND('2011 Survey responses'!$U74>0,'2007 Survey responses'!$M78>0),'2011 Survey responses'!$U74,\"\")","v":""},""]
["Haiti",{"$f":"IF(AND('2011 Survey responses'!$F75>0,'2007 Survey responses'!E79>0),'2007 Survey responses'!E79,\"\")","v":2},{"$f":"IF(AND('2011 Survey responses'!$F75>0,'2007 Survey responses'!E79>0),'2011 Survey responses'!$F75,\"\")","v":2},2,null,null,{"$f":"IF(AND('2011 Survey responses'!$G75>0,'2007 Survey responses'!$F79>0),'2007 Survey responses'!$F79,\"\")","v":1},{"$f":"IF(AND('2011 Survey responses'!$G75>0,'2007 Survey responses'!$F79>0),'2011 Survey responses'!$G75,\"\")","v":2},2,null,null,{"$f":"IF(AND('2011 Survey responses'!$H75>0,'2007 Survey responses'!$F79>0),'2007 Survey responses'!$F79,\"\")","v":1},{"$f":"IF(AND('2011 Survey responses'!$H75>0,'2007 Survey responses'!$F79>0),'2011 Survey responses'!$H75,\"\")","v":2},2,null,null,{"$f":"IF(AND(Question_grouping!O75>0,'2007 Survey responses'!$F79>0),'2007 Survey responses'!$F79,\"\")","v":1},{"$f":"IF(AND(Question_grouping!O75>0,'2007 Survey responses'!$F79>0),Question_grouping!O75,\"\")","v":2},2,null,null,{"$f":"IF(AND('2011 Survey responses'!$B75>0,'2007 Survey responses'!$C79>0),'2007 Survey responses'!$C79,\"\")","v":2},{"$f":"IF(AND('2011 Survey responses'!$B75>0,'2007 Survey responses'!$C79>0),'2011 Survey responses'!$B75,\"\")","v":2},2,null,null,{"$f":"IF(AND('2011 Survey responses'!$D75>0,'2007 Survey responses'!$D79>0),'2007 Survey responses'!$D79,\"\")","v":4},{"$f":"IF(AND('2011 Survey responses'!$D75>0,'2007 Survey responses'!$D79>0),'2011 Survey responses'!$D75,\"\")","v":4},4,null,null,{"$f":"IF(AND('2011 Survey responses'!$J75>0,'2007 Survey responses'!$H79>0),'2007 Survey responses'!$H79,\"\")","v":4},{"$f":"IF(AND('2011 Survey responses'!$J75>0,'2007 Survey responses'!$H79>0),'2011 Survey responses'!$J75,\"\")","v":3},3,null,null,{"$f":"IF(AND('2011 Survey responses'!$K75>0,'2007 Survey responses'!$J79>0),'2007 Survey responses'!$J79,\"\")","v":""},{"$f":"IF(AND('2011 Survey responses'!$K75>0,'2007 Survey responses'!$J79>0),'2011 Survey responses'!$K75,\"\")","v":""},"",null,null,{"$f":"IF(AND('2011 Survey responses'!$L75>0,'2007 Survey responses'!$I79>0),'2007 Survey responses'!$I79,\"\")","v":""},{"$f":"IF(AND('2011 Survey responses'!$L75>0,'2007 Survey responses'!$I79>0),'2011 Survey responses'!$L75,\"\")","v":""},"",null,null,{"$f":"IF(AND('2011 Survey responses'!$M75>0,'2007 Survey responses'!$K79>0),'2007 Survey responses'!$K79,\"\")","v":""},{"$f":"IF(AND('2011 Survey responses'!$M75>0,'2007 Survey responses'!$K79>0),'2011 Survey responses'!$M75,\"\")","v":""},"",null,null,{"$f":"IF('2007 Survey responses'!$B79>0,IF(AND('2011 Survey responses'!T75>0,'2007 Survey responses'!L79>0),'2007 Survey responses'!L79,\"\"),\"\")","v":""},{"$f":"IF('2007 Survey responses'!$B79>0,IF(AND('2011 Survey responses'!T75>0,'2007 Survey responses'!L79>0),'2011 Survey responses'!T75,\"\"),\"\")","v":""},"",null,null,{"$f":"IF(AND('2011 Survey responses'!$U75>0,'2007 Survey responses'!$M79>0),'2007 Survey responses'!$M79,\"\")","v":""},{"$f":"IF(AND('2011 Survey responses'!$U75>0,'2007 Survey responses'!$M79>0),'2011 Survey responses'!$U75,\"\")","v":""},""]
["Honduras",{"$f":"IF(AND('2011 Survey responses'!$F76>0,'2007 Survey responses'!E80>0),'2007 Survey responses'!E80,\"\")","v":""},{"$f":"IF(AND('2011 Survey responses'!$F76>0,'2007 Survey responses'!E80>0),'2011 Survey responses'!$F76,\"\")","v":""},"",null,null,{"$f":"IF(AND('2011 Survey responses'!$G76>0,'2007 Survey responses'!$F80>0),'2007 Survey responses'!$F80,\"\")","v":""},{"$f":"IF(AND('2011 Survey responses'!$G76>0,'2007 Survey responses'!$F80>0),'2011 Survey responses'!$G76,\"\")","v":""},"",null,null,{"$f":"IF(AND('2011 Survey responses'!$H76>0,'2007 Survey responses'!$F80>0),'2007 Survey responses'!$F80,\"\")","v":""},{"$f":"IF(AND('2011 Survey responses'!$H76>0,'2007 Survey responses'!$F80>0),'2011 Survey responses'!$H76,\"\")","v":""},"",null,null,{"$f":"IF(AND(Question_grouping!O76>0,'2007 Survey responses'!$F80>0),'2007 Survey responses'!$F80,\"\")","v":4},{"$f":"IF(AND(Question_grouping!O76>0,'2007 Survey responses'!$F80>0),Question_grouping!O76,\"\")","v":""},"",null,null,{"$f":"IF(AND('2011 Survey responses'!$B76>0,'2007 Survey responses'!$C80>0),'2007 Survey responses'!$C80,\"\")","v":""},{"$f":"IF(AND('2011 Survey responses'!$B76>0,'2007 Survey responses'!$C80>0),'2011 Survey responses'!$B76,\"\")","v":""},"",null,null,{"$f":"IF(AND('2011 Survey responses'!$D76>0,'2007 Survey responses'!$D80>0),'2007 Survey responses'!$D80,\"\")","v":""},{"$f":"IF(AND('2011 Survey responses'!$D76>0,'2007 Survey responses'!$D80>0),'2011 Survey responses'!$D76,\"\")","v":""},"",null,null,{"$f":"IF(AND('2011 Survey responses'!$J76>0,'2007 Survey responses'!$H80>0),'2007 Survey responses'!$H80,\"\")","v":""},{"$f":"IF(AND('2011 Survey responses'!$J76>0,'2007 Survey responses'!$H80>0),'2011 Survey responses'!$J76,\"\")","v":""},"",null,null,{"$f":"IF(AND('2011 Survey responses'!$K76>0,'2007 Survey responses'!$J80>0),'2007 Survey responses'!$J80,\"\")","v":""},{"$f":"IF(AND('2011 Survey responses'!$K76>0,'2007 Survey responses'!$J80>0),'2011 Survey responses'!$K76,\"\")","v":""},"",null,null,{"$f":"IF(AND('2011 Survey responses'!$L76>0,'2007 Survey responses'!$I80>0),'2007 Survey responses'!$I80,\"\")","v":""},{"$f":"IF(AND('2011 Survey responses'!$L76>0,'2007 Survey responses'!$I80>0),'2011 Survey responses'!$L76,\"\")","v":""},"",null,null,{"$f":"IF(AND('2011 Survey responses'!$M76>0,'2007 Survey responses'!$K80>0),'2007 Survey responses'!$K80,\"\")","v":""},{"$f":"IF(AND('2011 Survey responses'!$M76>0,'2007 Survey responses'!$K80>0),'2011 Survey responses'!$M76,\"\")","v":""},"",null,null,{"$f":"IF('2007 Survey responses'!$B80>0,IF(AND('2011 Survey responses'!T76>0,'2007 Survey responses'!L80>0),'2007 Survey responses'!L80,\"\"),\"\")","v":""},{"$f":"IF('2007 Survey responses'!$B80>0,IF(AND('2011 Survey responses'!T76>0,'2007 Survey responses'!L80>0),'2011 Survey responses'!T76,\"\"),\"\")","v":""},"",null,null,{"$f":"IF(AND('2011 Survey responses'!$U76>0,'2007 Survey responses'!$M80>0),'2007 Survey responses'!$M80,\"\")","v":""},{"$f":"IF(AND('2011 Survey responses'!$U76>0,'2007 Survey responses'!$M80>0),'2011 Survey responses'!$U76,\"\")","v":""},""]
["Hungary",{"$f":"IF(AND('2011 Survey responses'!$F77>0,'2007 Survey responses'!E81>0),'2007 Survey responses'!E81,\"\")","v":""},{"$f":"IF(AND('2011 Survey responses'!$F77>0,'2007 Survey responses'!E81>0),'2011 Survey responses'!$F77,\"\")","v":""},"",null,null,{"$f":"IF(AND('2011 Survey responses'!$G77>0,'2007 Survey responses'!$F81>0),'2007 Survey responses'!$F81,\"\")","v":""},{"$f":"IF(AND('2011 Survey responses'!$G77>0,'2007 Survey responses'!$F81>0),'2011 Survey responses'!$G77,\"\")","v":""},"",null,null,{"$f":"IF(AND('2011 Survey responses'!$H77>0,'2007 Survey responses'!$F81>0),'2007 Survey responses'!$F81,\"\")","v":""},{"$f":"IF(AND('2011 Survey responses'!$H77>0,'2007 Survey responses'!$F81>0),'2011 Survey responses'!$H77,\"\")","v":""},"",null,null,{"$f":"IF(AND(Question_grouping!O77>0,'2007 Survey responses'!$F81>0),'2007 Survey responses'!$F81,\"\")","v":""},{"$f":"IF(AND(Question_grouping!O77>0,'2007 Survey responses'!$F81>0),Question_grouping!O77,\"\")","v":""},"",null,null,{"$f":"IF(AND('2011 Survey responses'!$B77>0,'2007 Survey responses'!$C81>0),'2007 Survey responses'!$C81,\"\")","v":""},{"$f":"IF(AND('2011 Survey responses'!$B77>0,'2007 Survey responses'!$C81>0),'2011 Survey responses'!$B77,\"\")","v":""},"",null,null,{"$f":"IF(AND('2011 Survey responses'!$D77>0,'2007 Survey responses'!$D81>0),'2007 Survey responses'!$D81,\"\")","v":""},{"$f":"IF(AND('2011 Survey responses'!$D77>0,'2007 Survey responses'!$D81>0),'2011 Survey responses'!$D77,\"\")","v":""},"",null,null,{"$f":"IF(AND('2011 Survey responses'!$J77>0,'2007 Survey responses'!$H81>0),'2007 Survey responses'!$H81,\"\")","v":""},{"$f":"IF(AND('2011 Survey responses'!$J77>0,'2007 Survey responses'!$H81>0),'2011 Survey responses'!$J77,\"\")","v":""},"",null,null,{"$f":"IF(AND('2011 Survey responses'!$K77>0,'2007 Survey responses'!$J81>0),'2007 Survey responses'!$J81,\"\")","v":""},{"$f":"IF(AND('2011 Survey responses'!$K77>0,'2007 Survey responses'!$J81>0),'2011 Survey responses'!$K77,\"\")","v":""},"",null,null,{"$f":"IF(AND('2011 Survey responses'!$L77>0,'2007 Survey responses'!$I81>0),'2007 Survey responses'!$I81,\"\")","v":""},{"$f":"IF(AND('2011 Survey responses'!$L77>0,'2007 Survey responses'!$I81>0),'2011 Survey responses'!$L77,\"\")","v":""},"",null,null,{"$f":"IF(AND('2011 Survey responses'!$M77>0,'2007 Survey responses'!$K81>0),'2007 Survey responses'!$K81,\"\")","v":""},{"$f":"IF(AND('2011 Survey responses'!$M77>0,'2007 Survey responses'!$K81>0),'2011 Survey responses'!$M77,\"\")","v":""},"",null,null,{"$f":"IF('2007 Survey responses'!$B81>0,IF(AND('2011 Survey responses'!T77>0,'2007 Survey responses'!L81>0),'2007 Survey responses'!L81,\"\"),\"\")","v":""},{"$f":"IF('2007 Survey responses'!$B81>0,IF(AND('2011 Survey responses'!T77>0,'2007 Survey responses'!L81>0),'2011 Survey responses'!T77,\"\"),\"\")","v":""},"",null,null,{"$f":"IF(AND('2011 Survey responses'!$U77>0,'2007 Survey responses'!$M81>0),'2007 Survey responses'!$M81,\"\")","v":""},{"$f":"IF(AND('2011 Survey responses'!$U77>0,'2007 Survey responses'!$M81>0),'2011 Survey responses'!$U77,\"\")","v":""},""]
["Iceland",{"$f":"IF(AND('2011 Survey responses'!$F78>0,'2007 Survey responses'!E82>0),'2007 Survey responses'!E82,\"\")","v":""},{"$f":"IF(AND('2011 Survey responses'!$F78>0,'2007 Survey responses'!E82>0),'2011 Survey responses'!$F78,\"\")","v":""},"",null,null,{"$f":"IF(AND('2011 Survey responses'!$G78>0,'2007 Survey responses'!$F82>0),'2007 Survey responses'!$F82,\"\")","v":""},{"$f":"IF(AND('2011 Survey responses'!$G78>0,'2007 Survey responses'!$F82>0),'2011 Survey responses'!$G78,\"\")","v":""},"",null,null,{"$f":"IF(AND('2011 Survey responses'!$H78>0,'2007 Survey responses'!$F82>0),'2007 Survey responses'!$F82,\"\")","v":""},{"$f":"IF(AND('2011 Survey responses'!$H78>0,'2007 Survey responses'!$F82>0),'2011 Survey responses'!$H78,\"\")","v":""},"",null,null,{"$f":"IF(AND(Question_grouping!O78>0,'2007 Survey responses'!$F82>0),'2007 Survey responses'!$F82,\"\")","v":""},{"$f":"IF(AND(Question_grouping!O78>0,'2007 Survey responses'!$F82>0),Question_grouping!O78,\"\")","v":""},"",null,null,{"$f":"IF(AND('2011 Survey responses'!$B78>0,'2007 Survey responses'!$C82>0),'2007 Survey responses'!$C82,\"\")","v":""},{"$f":"IF(AND('2011 Survey responses'!$B78>0,'2007 Survey responses'!$C82>0),'2011 Survey responses'!$B78,\"\")","v":""},"",null,null,{"$f":"IF(AND('2011 Survey responses'!$D78>0,'2007 Survey responses'!$D82>0),'2007 Survey responses'!$D82,\"\")","v":""},{"$f":"IF(AND('2011 Survey responses'!$D78>0,'2007 Survey responses'!$D82>0),'2011 Survey responses'!$D78,\"\")","v":""},"",null,null,{"$f":"IF(AND('2011 Survey responses'!$J78>0,'2007 Survey responses'!$H82>0),'2007 Survey responses'!$H82,\"\")","v":""},{"$f":"IF(AND('2011 Survey responses'!$J78>0,'2007 Survey responses'!$H82>0),'2011 Survey responses'!$J78,\"\")","v":""},"",null,null,{"$f":"IF(AND('2011 Survey responses'!$K78>0,'2007 Survey responses'!$J82>0),'2007 Survey responses'!$J82,\"\")","v":""},{"$f":"IF(AND('2011 Survey responses'!$K78>0,'2007 Survey responses'!$J82>0),'2011 Survey responses'!$K78,\"\")","v":""},"",null,null,{"$f":"IF(AND('2011 Survey responses'!$L78>0,'2007 Survey responses'!$I82>0),'2007 Survey responses'!$I82,\"\")","v":""},{"$f":"IF(AND('2011 Survey responses'!$L78>0,'2007 Survey responses'!$I82>0),'2011 Survey responses'!$L78,\"\")","v":""},"",null,null,{"$f":"IF(AND('2011 Survey responses'!$M78>0,'2007 Survey responses'!$K82>0),'2007 Survey responses'!$K82,\"\")","v":""},{"$f":"IF(AND('2011 Survey responses'!$M78>0,'2007 Survey responses'!$K82>0),'2011 Survey responses'!$M78,\"\")","v":""},"",null,null,{"$f":"IF('2007 Survey responses'!$B82>0,IF(AND('2011 Survey responses'!T78>0,'2007 Survey responses'!L82>0),'2007 Survey responses'!L82,\"\"),\"\")","v":""},{"$f":"IF('2007 Survey responses'!$B82>0,IF(AND('2011 Survey responses'!T78>0,'2007 Survey responses'!L82>0),'2011 Survey responses'!T78,\"\"),\"\")","v":""},"",null,null,{"$f":"IF(AND('2011 Survey responses'!$U78>0,'2007 Survey responses'!$M82>0),'2007 Survey responses'!$M82,\"\")","v":""},{"$f":"IF(AND('2011 Survey responses'!$U78>0,'2007 Survey responses'!$M82>0),'2011 Survey responses'!$U78,\"\")","v":""},""]
["India",{"$f":"IF(AND('2011 Survey responses'!$F79>0,'2007 Survey responses'!E83>0),'2007 Survey responses'!E83,\"\")","v":""},{"$f":"IF(AND('2011 Survey responses'!$F79>0,'2007 Survey responses'!E83>0),'2011 Survey responses'!$F79,\"\")","v":""},"",null,null,{"$f":"IF(AND('2011 Survey responses'!$G79>0,'2007 Survey responses'!$F83>0),'2007 Survey responses'!$F83,\"\")","v":""},{"$f":"IF(AND('2011 Survey responses'!$G79>0,'2007 Survey responses'!$F83>0),'2011 Survey responses'!$G79,\"\")","v":""},"",null,null,{"$f":"IF(AND('2011 Survey responses'!$H79>0,'2007 Survey responses'!$F83>0),'2007 Survey responses'!$F83,\"\")","v":""},{"$f":"IF(AND('2011 Survey responses'!$H79>0,'2007 Survey responses'!$F83>0),'2011 Survey responses'!$H79,\"\")","v":""},"",null,null,{"$f":"IF(AND(Question_grouping!O79>0,'2007 Survey responses'!$F83>0),'2007 Survey responses'!$F83,\"\")","v":""},{"$f":"IF(AND(Question_grouping!O79>0,'2007 Survey responses'!$F83>0),Question_grouping!O79,\"\")","v":""},"",null,null,{"$f":"IF(AND('2011 Survey responses'!$B79>0,'2007 Survey responses'!$C83>0),'2007 Survey responses'!$C83,\"\")","v":""},{"$f":"IF(AND('2011 Survey responses'!$B79>0,'2007 Survey responses'!$C83>0),'2011 Survey responses'!$B79,\"\")","v":""},"",null,null,{"$f":"IF(AND('2011 Survey responses'!$D79>0,'2007 Survey responses'!$D83>0),'2007 Survey responses'!$D83,\"\")","v":""},{"$f":"IF(AND('2011 Survey responses'!$D79>0,'2007 Survey responses'!$D83>0),'2011 Survey responses'!$D79,\"\")","v":""},"",null,null,{"$f":"IF(AND('2011 Survey responses'!$J79>0,'2007 Survey responses'!$H83>0),'2007 Survey responses'!$H83,\"\")","v":""},{"$f":"IF(AND('2011 Survey responses'!$J79>0,'2007 Survey responses'!$H83>0),'2011 Survey responses'!$J79,\"\")","v":""},"",null,null,{"$f":"IF(AND('2011 Survey responses'!$K79>0,'2007 Survey responses'!$J83>0),'2007 Survey responses'!$J83,\"\")","v":""},{"$f":"IF(AND('2011 Survey responses'!$K79>0,'2007 Survey responses'!$J83>0),'2011 Survey responses'!$K79,\"\")","v":""},"",null,null,{"$f":"IF(AND('2011 Survey responses'!$L79>0,'2007 Survey responses'!$I83>0),'2007 Survey responses'!$I83,\"\")","v":""},{"$f":"IF(AND('2011 Survey responses'!$L79>0,'2007 Survey responses'!$I83>0),'2011 Survey responses'!$L79,\"\")","v":""},"",null,null,{"$f":"IF(AND('2011 Survey responses'!$M79>0,'2007 Survey responses'!$K83>0),'2007 Survey responses'!$K83,\"\")","v":""},{"$f":"IF(AND('2011 Survey responses'!$M79>0,'2007 Survey responses'!$K83>0),'2011 Survey responses'!$M79,\"\")","v":""},"",null,null,{"$f":"IF('2007 Survey responses'!$B83>0,IF(AND('2011 Survey responses'!T79>0,'2007 Survey responses'!L83>0),'2007 Survey responses'!L83,\"\"),\"\")","v":""},{"$f":"IF('2007 Survey responses'!$B83>0,IF(AND('2011 Survey responses'!T79>0,'2007 Survey responses'!L83>0),'2011 Survey responses'!T79,\"\"),\"\")","v":""},"",null,null,{"$f":"IF(AND('2011 Survey responses'!$U79>0,'2007 Survey responses'!$M83>0),'2007 Survey responses'!$M83,\"\")","v":""},{"$f":"IF(AND('2011 Survey responses'!$U79>0,'2007 Survey responses'!$M83>0),'2011 Survey responses'!$U79,\"\")","v":""},""]
["Indonesia",{"$f":"IF(AND('2011 Survey responses'!$F80>0,'2007 Survey responses'!E84>0),'2007 Survey responses'!E84,\"\")","v":""},{"$f":"IF(AND('2011 Survey responses'!$F80>0,'2007 Survey responses'!E84>0),'2011 Survey responses'!$F80,\"\")","v":""},"",null,null,{"$f":"IF(AND('2011 Survey responses'!$G80>0,'2007 Survey responses'!$F84>0),'2007 Survey responses'!$F84,\"\")","v":""},{"$f":"IF(AND('2011 Survey responses'!$G80>0,'2007 Survey responses'!$F84>0),'2011 Survey responses'!$G80,\"\")","v":""},"",null,null,{"$f":"IF(AND('2011 Survey responses'!$H80>0,'2007 Survey responses'!$F84>0),'2007 Survey responses'!$F84,\"\")","v":""},{"$f":"IF(AND('2011 Survey responses'!$H80>0,'2007 Survey responses'!$F84>0),'2011 Survey responses'!$H80,\"\")","v":""},"",null,null,{"$f":"IF(AND(Question_grouping!O80>0,'2007 Survey responses'!$F84>0),'2007 Survey responses'!$F84,\"\")","v":""},{"$f":"IF(AND(Question_grouping!O80>0,'2007 Survey responses'!$F84>0),Question_grouping!O80,\"\")","v":""},"",null,null,{"$f":"IF(AND('2011 Survey responses'!$B80>0,'2007 Survey responses'!$C84>0),'2007 Survey responses'!$C84,\"\")","v":""},{"$f":"IF(AND('2011 Survey responses'!$B80>0,'2007 Survey responses'!$C84>0),'2011 Survey responses'!$B80,\"\")","v":""},"",null,null,{"$f":"IF(AND('2011 Survey responses'!$D80>0,'2007 Survey responses'!$D84>0),'2007 Survey responses'!$D84,\"\")","v":""},{"$f":"IF(AND('2011 Survey responses'!$D80>0,'2007 Survey responses'!$D84>0),'2011 Survey responses'!$D80,\"\")","v":""},"",null,null,{"$f":"IF(AND('2011 Survey responses'!$J80>0,'2007 Survey responses'!$H84>0),'2007 Survey responses'!$H84,\"\")","v":""},{"$f":"IF(AND('2011 Survey responses'!$J80>0,'2007 Survey responses'!$H84>0),'2011 Survey responses'!$J80,\"\")","v":""},"",null,null,{"$f":"IF(AND('2011 Survey responses'!$K80>0,'2007 Survey responses'!$J84>0),'2007 Survey responses'!$J84,\"\")","v":""},{"$f":"IF(AND('2011 Survey responses'!$K80>0,'2007 Survey responses'!$J84>0),'2011 Survey responses'!$K80,\"\")","v":""},"",null,null,{"$f":"IF(AND('2011 Survey responses'!$L80>0,'2007 Survey responses'!$I84>0),'2007 Survey responses'!$I84,\"\")","v":""},{"$f":"IF(AND('2011 Survey responses'!$L80>0,'2007 Survey responses'!$I84>0),'2011 Survey responses'!$L80,\"\")","v":""},"",null,null,{"$f":"IF(AND('2011 Survey responses'!$M80>0,'2007 Survey responses'!$K84>0),'2007 Survey responses'!$K84,\"\")","v":""},{"$f":"IF(AND('2011 Survey responses'!$M80>0,'2007 Survey responses'!$K84>0),'2011 Survey responses'!$M80,\"\")","v":""},"",null,null,{"$f":"IF('2007 Survey responses'!$B84>0,IF(AND('2011 Survey responses'!T80>0,'2007 Survey responses'!L84>0),'2007 Survey responses'!L84,\"\"),\"\")","v":""},{"$f":"IF('2007 Survey responses'!$B84>0,IF(AND('2011 Survey responses'!T80>0,'2007 Survey responses'!L84>0),'2011 Survey responses'!T80,\"\"),\"\")","v":""},"",null,null,{"$f":"IF(AND('2011 Survey responses'!$U80>0,'2007 Survey responses'!$M84>0),'2007 Survey responses'!$M84,\"\")","v":""},{"$f":"IF(AND('2011 Survey responses'!$U80>0,'2007 Survey responses'!$M84>0),'2011 Survey responses'!$U80,\"\")","v":""},""]
["Iran (Islamic Republic of)",{"$f":"IF(AND('2011 Survey responses'!$F81>0,'2007 Survey responses'!E85>0),'2007 Survey responses'!E85,\"\")","v":""},{"$f":"IF(AND('2011 Survey responses'!$F81>0,'2007 Survey responses'!E85>0),'2011 Survey responses'!$F81,\"\")","v":""},"",null,null,{"$f":"IF(AND('2011 Survey responses'!$G81>0,'2007 Survey responses'!$F85>0),'2007 Survey responses'!$F85,\"\")","v":""},{"$f":"IF(AND('2011 Survey responses'!$G81>0,'2007 Survey responses'!$F85>0),'2011 Survey responses'!$G81,\"\")","v":""},"",null,null,{"$f":"IF(AND('2011 Survey responses'!$H81>0,'2007 Survey responses'!$F85>0),'2007 Survey responses'!$F85,\"\")","v":""},{"$f":"IF(AND('2011 Survey responses'!$H81>0,'2007 Survey responses'!$F85>0),'2011 Survey responses'!$H81,\"\")","v":""},"",null,null,{"$f":"IF(AND(Question_grouping!O81>0,'2007 Survey responses'!$F85>0),'2007 Survey responses'!$F85,\"\")","v":""},{"$f":"IF(AND(Question_grouping!O81>0,'2007 Survey responses'!$F85>0),Question_grouping!O81,\"\")","v":""},"",null,null,{"$f":"IF(AND('2011 Survey responses'!$B81>0,'2007 Survey responses'!$C85>0),'2007 Survey responses'!$C85,\"\")","v":""},{"$f":"IF(AND('2011 Survey responses'!$B81>0,'2007 Survey responses'!$C85>0),'2011 Survey responses'!$B81,\"\")","v":""},"",null,null,{"$f":"IF(AND('2011 Survey responses'!$D81>0,'2007 Survey responses'!$D85>0),'2007 Survey responses'!$D85,\"\")","v":""},{"$f":"IF(AND('2011 Survey responses'!$D81>0,'2007 Survey responses'!$D85>0),'2011 Survey responses'!$D81,\"\")","v":""},"",null,null,{"$f":"IF(AND('2011 Survey responses'!$J81>0,'2007 Survey responses'!$H85>0),'2007 Survey responses'!$H85,\"\")","v":""},{"$f":"IF(AND('2011 Survey responses'!$J81>0,'2007 Survey responses'!$H85>0),'2011 Survey responses'!$J81,\"\")","v":""},"",null,null,{"$f":"IF(AND('2011 Survey responses'!$K81>0,'2007 Survey responses'!$J85>0),'2007 Survey responses'!$J85,\"\")","v":""},{"$f":"IF(AND('2011 Survey responses'!$K81>0,'2007 Survey responses'!$J85>0),'2011 Survey responses'!$K81,\"\")","v":""},"",null,null,{"$f":"IF(AND('2011 Survey responses'!$L81>0,'2007 Survey responses'!$I85>0),'2007 Survey responses'!$I85,\"\")","v":""},{"$f":"IF(AND('2011 Survey responses'!$L81>0,'2007 Survey responses'!$I85>0),'2011 Survey responses'!$L81,\"\")","v":""},"",null,null,{"$f":"IF(AND('2011 Survey responses'!$M81>0,'2007 Survey responses'!$K85>0),'2007 Survey responses'!$K85,\"\")","v":""},{"$f":"IF(AND('2011 Survey responses'!$M81>0,'2007 Survey responses'!$K85>0),'2011 Survey responses'!$M81,\"\")","v":""},"",null,null,{"$f":"IF('2007 Survey responses'!$B85>0,IF(AND('2011 Survey responses'!T81>0,'2007 Survey responses'!L85>0),'2007 Survey responses'!L85,\"\"),\"\")","v":""},{"$f":"IF('2007 Survey responses'!$B85>0,IF(AND('2011 Survey responses'!T81>0,'2007 Survey responses'!L85>0),'2011 Survey responses'!T81,\"\"),\"\")","v":""},"",null,null,{"$f":"IF(AND('2011 Survey responses'!$U81>0,'2007 Survey responses'!$M85>0),'2007 Survey responses'!$M85,\"\")","v":""},{"$f":"IF(AND('2011 Survey responses'!$U81>0,'2007 Survey responses'!$M85>0),'2011 Survey responses'!$U81,\"\")","v":""},""]
["Iraq",{"$f":"IF(AND('2011 Survey responses'!$F82>0,'2007 Survey responses'!E86>0),'2007 Survey responses'!E86,\"\")","v":3},{"$f":"IF(AND('2011 Survey responses'!$F82>0,'2007 Survey responses'!E86>0),'2011 Survey responses'!$F82,\"\")","v":2},2,null,null,{"$f":"IF(AND('2011 Survey responses'!$G82>0,'2007 Survey responses'!$F86>0),'2007 Survey responses'!$F86,\"\")","v":1},{"$f":"IF(AND('2011 Survey responses'!$G82>0,'2007 Survey responses'!$F86>0),'2011 Survey responses'!$G82,\"\")","v":2},2,null,null,{"$f":"IF(AND('2011 Survey responses'!$H82>0,'2007 Survey responses'!$F86>0),'2007 Survey responses'!$F86,\"\")","v":1},{"$f":"IF(AND('2011 Survey responses'!$H82>0,'2007 Survey responses'!$F86>0),'2011 Survey responses'!$H82,\"\")","v":1},1,null,null,{"$f":"IF(AND(Question_grouping!O82>0,'2007 Survey responses'!$F86>0),'2007 Survey responses'!$F86,\"\")","v":1},{"$f":"IF(AND(Question_grouping!O82>0,'2007 Survey responses'!$F86>0),Question_grouping!O82,\"\")","v":2},2,null,null,{"$f":"IF(AND('2011 Survey responses'!$B82>0,'2007 Survey responses'!$C86>0),'2007 Survey responses'!$C86,\"\")","v":4},{"$f":"IF(AND('2011 Survey responses'!$B82>0,'2007 Survey responses'!$C86>0),'2011 Survey responses'!$B82,\"\")","v":2},2,null,null,{"$f":"IF(AND('2011 Survey responses'!$D82>0,'2007 Survey responses'!$D86>0),'2007 Survey responses'!$D86,\"\")","v":4},{"$f":"IF(AND('2011 Survey responses'!$D82>0,'2007 Survey responses'!$D86>0),'2011 Survey responses'!$D82,\"\")","v":1},1,null,null,{"$f":"IF(AND('2011 Survey responses'!$J82>0,'2007 Survey responses'!$H86>0),'2007 Survey responses'!$H86,\"\")","v":1},{"$f":"IF(AND('2011 Survey responses'!$J82>0,'2007 Survey responses'!$H86>0),'2011 Survey responses'!$J82,\"\")","v":3},3,null,null,{"$f":"IF(AND('2011 Survey responses'!$K82>0,'2007 Survey responses'!$J86>0),'2007 Survey responses'!$J86,\"\")","v":3},{"$f":"IF(AND('2011 Survey responses'!$K82>0,'2007 Survey responses'!$J86>0),'2011 Survey responses'!$K82,\"\")","v":5},4,null,null,{"$f":"IF(AND('2011 Survey responses'!$L82>0,'2007 Survey responses'!$I86>0),'2007 Survey responses'!$I86,\"\")","v":5},{"$f":"IF(AND('2011 Survey responses'!$L82>0,'2007 Survey responses'!$I86>0),'2011 Survey responses'!$L82,\"\")","v":5},4,null,null,{"$f":"IF(AND('2011 Survey responses'!$M82>0,'2007 Survey responses'!$K86>0),'2007 Survey responses'!$K86,\"\")","v":5},{"$f":"IF(AND('2011 Survey responses'!$M82>0,'2007 Survey responses'!$K86>0),'2011 Survey responses'!$M82,\"\")","v":2},2,null,null,{"$f":"IF('2007 Survey responses'!$B86>0,IF(AND('2011 Survey responses'!T82>0,'2007 Survey responses'!L86>0),'2007 Survey responses'!L86,\"\"),\"\")","v":4},{"$f":"IF('2007 Survey responses'!$B86>0,IF(AND('2011 Survey responses'!T82>0,'2007 Survey responses'!L86>0),'2011 Survey responses'!T82,\"\"),\"\")","v":1},1,null,null,{"$f":"IF(AND('2011 Survey responses'!$U82>0,'2007 Survey responses'!$M86>0),'2007 Survey responses'!$M86,\"\")","v":4},{"$f":"IF(AND('2011 Survey responses'!$U82>0,'2007 Survey responses'!$M86>0),'2011 Survey responses'!$U82,\"\")","v":1},1]
["Ireland",{"$f":"IF(AND('2011 Survey responses'!$F83>0,'2007 Survey responses'!E87>0),'2007 Survey responses'!E87,\"\")","v":""},{"$f":"IF(AND('2011 Survey responses'!$F83>0,'2007 Survey responses'!E87>0),'2011 Survey responses'!$F83,\"\")","v":""},"",null,null,{"$f":"IF(AND('2011 Survey responses'!$G83>0,'2007 Survey responses'!$F87>0),'2007 Survey responses'!$F87,\"\")","v":""},{"$f":"IF(AND('2011 Survey responses'!$G83>0,'2007 Survey responses'!$F87>0),'2011 Survey responses'!$G83,\"\")","v":""},"",null,null,{"$f":"IF(AND('2011 Survey responses'!$H83>0,'2007 Survey responses'!$F87>0),'2007 Survey responses'!$F87,\"\")","v":""},{"$f":"IF(AND('2011 Survey responses'!$H83>0,'2007 Survey responses'!$F87>0),'2011 Survey responses'!$H83,\"\")","v":""},"",null,null,{"$f":"IF(AND(Question_grouping!O83>0,'2007 Survey responses'!$F87>0),'2007 Survey responses'!$F87,\"\")","v":""},{"$f":"IF(AND(Question_grouping!O83>0,'2007 Survey responses'!$F87>0),Question_grouping!O83,\"\")","v":""},"",null,null,{"$f":"IF(AND('2011 Survey responses'!$B83>0,'2007 Survey responses'!$C87>0),'2007 Survey responses'!$C87,\"\")","v":""},{"$f":"IF(AND('2011 Survey responses'!$B83>0,'2007 Survey responses'!$C87>0),'2011 Survey responses'!$B83,\"\")","v":""},"",null,null,{"$f":"IF(AND('2011 Survey responses'!$D83>0,'2007 Survey responses'!$D87>0),'2007 Survey responses'!$D87,\"\")","v":""},{"$f":"IF(AND('2011 Survey responses'!$D83>0,'2007 Survey responses'!$D87>0),'2011 Survey responses'!$D83,\"\")","v":""},"",null,null,{"$f":"IF(AND('2011 Survey responses'!$J83>0,'2007 Survey responses'!$H87>0),'2007 Survey responses'!$H87,\"\")","v":""},{"$f":"IF(AND('2011 Survey responses'!$J83>0,'2007 Survey responses'!$H87>0),'2011 Survey responses'!$J83,\"\")","v":""},"",null,null,{"$f":"IF(AND('2011 Survey responses'!$K83>0,'2007 Survey responses'!$J87>0),'2007 Survey responses'!$J87,\"\")","v":""},{"$f":"IF(AND('2011 Survey responses'!$K83>0,'2007 Survey responses'!$J87>0),'2011 Survey responses'!$K83,\"\")","v":""},"",null,null,{"$f":"IF(AND('2011 Survey responses'!$L83>0,'2007 Survey responses'!$I87>0),'2007 Survey responses'!$I87,\"\")","v":""},{"$f":"IF(AND('2011 Survey responses'!$L83>0,'2007 Survey responses'!$I87>0),'2011 Survey responses'!$L83,\"\")","v":""},"",null,null,{"$f":"IF(AND('2011 Survey responses'!$M83>0,'2007 Survey responses'!$K87>0),'2007 Survey responses'!$K87,\"\")","v":""},{"$f":"IF(AND('2011 Survey responses'!$M83>0,'2007 Survey responses'!$K87>0),'2011 Survey responses'!$M83,\"\")","v":""},"",null,null,{"$f":"IF('2007 Survey responses'!$B87>0,IF(AND('2011 Survey responses'!T83>0,'2007 Survey responses'!L87>0),'2007 Survey responses'!L87,\"\"),\"\")","v":""},{"$f":"IF('2007 Survey responses'!$B87>0,IF(AND('2011 Survey responses'!T83>0,'2007 Survey responses'!L87>0),'2011 Survey responses'!T83,\"\"),\"\")","v":""},"",null,null,{"$f":"IF(AND('2011 Survey responses'!$U83>0,'2007 Survey responses'!$M87>0),'2007 Survey responses'!$M87,\"\")","v":""},{"$f":"IF(AND('2011 Survey responses'!$U83>0,'2007 Survey responses'!$M87>0),'2011 Survey responses'!$U83,\"\")","v":""},""]
["Israel",{"$f":"IF(AND('2011 Survey responses'!$F84>0,'2007 Survey responses'!E88>0),'2007 Survey responses'!E88,\"\")","v":""},{"$f":"IF(AND('2011 Survey responses'!$F84>0,'2007 Survey responses'!E88>0),'2011 Survey responses'!$F84,\"\")","v":""},"",null,null,{"$f":"IF(AND('2011 Survey responses'!$G84>0,'2007 Survey responses'!$F88>0),'2007 Survey responses'!$F88,\"\")","v":""},{"$f":"IF(AND('2011 Survey responses'!$G84>0,'2007 Survey responses'!$F88>0),'2011 Survey responses'!$G84,\"\")","v":""},"",null,null,{"$f":"IF(AND('2011 Survey responses'!$H84>0,'2007 Survey responses'!$F88>0),'2007 Survey responses'!$F88,\"\")","v":""},{"$f":"IF(AND('2011 Survey responses'!$H84>0,'2007 Survey responses'!$F88>0),'2011 Survey responses'!$H84,\"\")","v":""},"",null,null,{"$f":"IF(AND(Question_grouping!O84>0,'2007 Survey responses'!$F88>0),'2007 Survey responses'!$F88,\"\")","v":""},{"$f":"IF(AND(Question_grouping!O84>0,'2007 Survey responses'!$F88>0),Question_grouping!O84,\"\")","v":""},"",null,null,{"$f":"IF(AND('2011 Survey responses'!$B84>0,'2007 Survey responses'!$C88>0),'2007 Survey responses'!$C88,\"\")","v":""},{"$f":"IF(AND('2011 Survey responses'!$B84>0,'2007 Survey responses'!$C88>0),'2011 Survey responses'!$B84,\"\")","v":""},"",null,null,{"$f":"IF(AND('2011 Survey responses'!$D84>0,'2007 Survey responses'!$D88>0),'2007 Survey responses'!$D88,\"\")","v":""},{"$f":"IF(AND('2011 Survey responses'!$D84>0,'2007 Survey responses'!$D88>0),'2011 Survey responses'!$D84,\"\")","v":""},"",null,null,{"$f":"IF(AND('2011 Survey responses'!$J84>0,'2007 Survey responses'!$H88>0),'2007 Survey responses'!$H88,\"\")","v":""},{"$f":"IF(AND('2011 Survey responses'!$J84>0,'2007 Survey responses'!$H88>0),'2011 Survey responses'!$J84,\"\")","v":""},"",null,null,{"$f":"IF(AND('2011 Survey responses'!$K84>0,'2007 Survey responses'!$J88>0),'2007 Survey responses'!$J88,\"\")","v":""},{"$f":"IF(AND('2011 Survey responses'!$K84>0,'2007 Survey responses'!$J88>0),'2011 Survey responses'!$K84,\"\")","v":""},"",null,null,{"$f":"IF(AND('2011 Survey responses'!$L84>0,'2007 Survey responses'!$I88>0),'2007 Survey responses'!$I88,\"\")","v":""},{"$f":"IF(AND('2011 Survey responses'!$L84>0,'2007 Survey responses'!$I88>0),'2011 Survey responses'!$L84,\"\")","v":""},"",null,null,{"$f":"IF(AND('2011 Survey responses'!$M84>0,'2007 Survey responses'!$K88>0),'2007 Survey responses'!$K88,\"\")","v":""},{"$f":"IF(AND('2011 Survey responses'!$M84>0,'2007 Survey responses'!$K88>0),'2011 Survey responses'!$M84,\"\")","v":""},"",null,null,{"$f":"IF('2007 Survey responses'!$B88>0,IF(AND('2011 Survey responses'!T84>0,'2007 Survey responses'!L88>0),'2007 Survey responses'!L88,\"\"),\"\")","v":""},{"$f":"IF('2007 Survey responses'!$B88>0,IF(AND('2011 Survey responses'!T84>0,'2007 Survey responses'!L88>0),'2011 Survey responses'!T84,\"\"),\"\")","v":""},"",null,null,{"$f":"IF(AND('2011 Survey responses'!$U84>0,'2007 Survey responses'!$M88>0),'2007 Survey responses'!$M88,\"\")","v":""},{"$f":"IF(AND('2011 Survey responses'!$U84>0,'2007 Survey responses'!$M88>0),'2011 Survey responses'!$U84,\"\")","v":""},""]
["Italy",{"$f":"IF(AND('2011 Survey responses'!$F85>0,'2007 Survey responses'!E89>0),'2007 Survey responses'!E89,\"\")","v":""},{"$f":"IF(AND('2011 Survey responses'!$F85>0,'2007 Survey responses'!E89>0),'2011 Survey responses'!$F85,\"\")","v":""},"",null,null,{"$f":"IF(AND('2011 Survey responses'!$G85>0,'2007 Survey responses'!$F89>0),'2007 Survey responses'!$F89,\"\")","v":""},{"$f":"IF(AND('2011 Survey responses'!$G85>0,'2007 Survey responses'!$F89>0),'2011 Survey responses'!$G85,\"\")","v":""},"",null,null,{"$f":"IF(AND('2011 Survey responses'!$H85>0,'2007 Survey responses'!$F89>0),'2007 Survey responses'!$F89,\"\")","v":""},{"$f":"IF(AND('2011 Survey responses'!$H85>0,'2007 Survey responses'!$F89>0),'2011 Survey responses'!$H85,\"\")","v":""},"",null,null,{"$f":"IF(AND(Question_grouping!O85>0,'2007 Survey responses'!$F89>0),'2007 Survey responses'!$F89,\"\")","v":2},{"$f":"IF(AND(Question_grouping!O85>0,'2007 Survey responses'!$F89>0),Question_grouping!O85,\"\")","v":""},"",null,null,{"$f":"IF(AND('2011 Survey responses'!$B85>0,'2007 Survey responses'!$C89>0),'2007 Survey responses'!$C89,\"\")","v":""},{"$f":"IF(AND('2011 Survey responses'!$B85>0,'2007 Survey responses'!$C89>0),'2011 Survey responses'!$B85,\"\")","v":""},"",null,null,{"$f":"IF(AND('2011 Survey responses'!$D85>0,'2007 Survey responses'!$D89>0),'2007 Survey responses'!$D89,\"\")","v":""},{"$f":"IF(AND('2011 Survey responses'!$D85>0,'2007 Survey responses'!$D89>0),'2011 Survey responses'!$D85,\"\")","v":""},"",null,null,{"$f":"IF(AND('2011 Survey responses'!$J85>0,'2007 Survey responses'!$H89>0),'2007 Survey responses'!$H89,\"\")","v":""},{"$f":"IF(AND('2011 Survey responses'!$J85>0,'2007 Survey responses'!$H89>0),'2011 Survey responses'!$J85,\"\")","v":""},"",null,null,{"$f":"IF(AND('2011 Survey responses'!$K85>0,'2007 Survey responses'!$J89>0),'2007 Survey responses'!$J89,\"\")","v":""},{"$f":"IF(AND('2011 Survey responses'!$K85>0,'2007 Survey responses'!$J89>0),'2011 Survey responses'!$K85,\"\")","v":""},"",null,null,{"$f":"IF(AND('2011 Survey responses'!$L85>0,'2007 Survey responses'!$I89>0),'2007 Survey responses'!$I89,\"\")","v":""},{"$f":"IF(AND('2011 Survey responses'!$L85>0,'2007 Survey responses'!$I89>0),'2011 Survey responses'!$L85,\"\")","v":""},"",null,null,{"$f":"IF(AND('2011 Survey responses'!$M85>0,'2007 Survey responses'!$K89>0),'2007 Survey responses'!$K89,\"\")","v":""},{"$f":"IF(AND('2011 Survey responses'!$M85>0,'2007 Survey responses'!$K89>0),'2011 Survey responses'!$M85,\"\")","v":""},"",null,null,{"$f":"IF('2007 Survey responses'!$B89>0,IF(AND('2011 Survey responses'!T85>0,'2007 Survey responses'!L89>0),'2007 Survey responses'!L89,\"\"),\"\")","v":""},{"$f":"IF('2007 Survey responses'!$B89>0,IF(AND('2011 Survey responses'!T85>0,'2007 Survey responses'!L89>0),'2011 Survey responses'!T85,\"\"),\"\")","v":""},"",null,null,{"$f":"IF(AND('2011 Survey responses'!$U85>0,'2007 Survey responses'!$M89>0),'2007 Survey responses'!$M89,\"\")","v":""},{"$f":"IF(AND('2011 Survey responses'!$U85>0,'2007 Survey responses'!$M89>0),'2011 Survey responses'!$U85,\"\")","v":""},""]
["Jamaica",{"$f":"IF(AND('2011 Survey responses'!$F86>0,'2007 Survey responses'!E90>0),'2007 Survey responses'!E90,\"\")","v":5},{"$f":"IF(AND('2011 Survey responses'!$F86>0,'2007 Survey responses'!E90>0),'2011 Survey responses'!$F86,\"\")","v":5},4,null,null,{"$f":"IF(AND('2011 Survey responses'!$G86>0,'2007 Survey responses'!$F90>0),'2007 Survey responses'!$F90,\"\")","v":5},{"$f":"IF(AND('2011 Survey responses'!$G86>0,'2007 Survey responses'!$F90>0),'2011 Survey responses'!$G86,\"\")","v":1},1,null,null,{"$f":"IF(AND('2011 Survey responses'!$H86>0,'2007 Survey responses'!$F90>0),'2007 Survey responses'!$F90,\"\")","v":5},{"$f":"IF(AND('2011 Survey responses'!$H86>0,'2007 Survey responses'!$F90>0),'2011 Survey responses'!$H86,\"\")","v":5},4,null,null,{"$f":"IF(AND(Question_grouping!O86>0,'2007 Survey responses'!$F90>0),'2007 Survey responses'!$F90,\"\")","v":5},{"$f":"IF(AND(Question_grouping!O86>0,'2007 Survey responses'!$F90>0),Question_grouping!O86,\"\")","v":5},4,null,null,{"$f":"IF(AND('2011 Survey responses'!$B86>0,'2007 Survey responses'!$C90>0),'2007 Survey responses'!$C90,\"\")","v":5},{"$f":"IF(AND('2011 Survey responses'!$B86>0,'2007 Survey responses'!$C90>0),'2011 Survey responses'!$B86,\"\")","v":6},5,null,null,{"$f":"IF(AND('2011 Survey responses'!$D86>0,'2007 Survey responses'!$D90>0),'2007 Survey responses'!$D90,\"\")","v":5},{"$f":"IF(AND('2011 Survey responses'!$D86>0,'2007 Survey responses'!$D90>0),'2011 Survey responses'!$D86,\"\")","v":6},5,null,null,{"$f":"IF(AND('2011 Survey responses'!$J86>0,'2007 Survey responses'!$H90>0),'2007 Survey responses'!$H90,\"\")","v":1},{"$f":"IF(AND('2011 Survey responses'!$J86>0,'2007 Survey responses'!$H90>0),'2011 Survey responses'!$J86,\"\")","v":5},4,null,null,{"$f":"IF(AND('2011 Survey responses'!$K86>0,'2007 Survey responses'!$J90>0),'2007 Survey responses'!$J90,\"\")","v":5},{"$f":"IF(AND('2011 Survey responses'!$K86>0,'2007 Survey responses'!$J90>0),'2011 Survey responses'!$K86,\"\")","v":5},4,null,null,{"$f":"IF(AND('2011 Survey responses'!$L86>0,'2007 Survey responses'!$I90>0),'2007 Survey responses'!$I90,\"\")","v":5},{"$f":"IF(AND('2011 Survey responses'!$L86>0,'2007 Survey responses'!$I90>0),'2011 Survey responses'!$L86,\"\")","v":5},4,null,null,{"$f":"IF(AND('2011 Survey responses'!$M86>0,'2007 Survey responses'!$K90>0),'2007 Survey responses'!$K90,\"\")","v":5},{"$f":"IF(AND('2011 Survey responses'!$M86>0,'2007 Survey responses'!$K90>0),'2011 Survey responses'!$M86,\"\")","v":5},4,null,null,{"$f":"IF('2007 Survey responses'!$B90>0,IF(AND('2011 Survey responses'!T86>0,'2007 Survey responses'!L90>0),'2007 Survey responses'!L90,\"\"),\"\")","v":1},{"$f":"IF('2007 Survey responses'!$B90>0,IF(AND('2011 Survey responses'!T86>0,'2007 Survey responses'!L90>0),'2011 Survey responses'!T86,\"\"),\"\")","v":1},1,null,null,{"$f":"IF(AND('2011 Survey responses'!$U86>0,'2007 Survey responses'!$M90>0),'2007 Survey responses'!$M90,\"\")","v":1},{"$f":"IF(AND('2011 Survey responses'!$U86>0,'2007 Survey responses'!$M90>0),'2011 Survey responses'!$U86,\"\")","v":1},1]
["Japan",{"$f":"IF(AND('2011 Survey responses'!$F87>0,'2007 Survey responses'!E91>0),'2007 Survey responses'!E91,\"\")","v":4},{"$f":"IF(AND('2011 Survey responses'!$F87>0,'2007 Survey responses'!E91>0),'2011 Survey responses'!$F87,\"\")","v":6},5,null,null,{"$f":"IF(AND('2011 Survey responses'!$G87>0,'2007 Survey responses'!$F91>0),'2007 Survey responses'!$F91,\"\")","v":2},{"$f":"IF(AND('2011 Survey responses'!$G87>0,'2007 Survey responses'!$F91>0),'2011 Survey responses'!$G87,\"\")","v":6},5,null,null,{"$f":"IF(AND('2011 Survey responses'!$H87>0,'2007 Survey responses'!$F91>0),'2007 Survey responses'!$F91,\"\")","v":2},{"$f":"IF(AND('2011 Survey responses'!$H87>0,'2007 Survey responses'!$F91>0),'2011 Survey responses'!$H87,\"\")","v":6},5,null,null,{"$f":"IF(AND(Question_grouping!O87>0,'2007 Survey responses'!$F91>0),'2007 Survey responses'!$F91,\"\")","v":2},{"$f":"IF(AND(Question_grouping!O87>0,'2007 Survey responses'!$F91>0),Question_grouping!O87,\"\")","v":6},5,null,null,{"$f":"IF(AND('2011 Survey responses'!$B87>0,'2007 Survey responses'!$C91>0),'2007 Survey responses'!$C91,\"\")","v":4},{"$f":"IF(AND('2011 Survey responses'!$B87>0,'2007 Survey responses'!$C91>0),'2011 Survey responses'!$B87,\"\")","v":6},5,null,null,{"$f":"IF(AND('2011 Survey responses'!$D87>0,'2007 Survey responses'!$D91>0),'2007 Survey responses'!$D91,\"\")","v":2},{"$f":"IF(AND('2011 Survey responses'!$D87>0,'2007 Survey responses'!$D91>0),'2011 Survey responses'!$D87,\"\")","v":6},5,null,null,{"$f":"IF(AND('2011 Survey responses'!$J87>0,'2007 Survey responses'!$H91>0),'2007 Survey responses'!$H91,\"\")","v":2},{"$f":"IF(AND('2011 Survey responses'!$J87>0,'2007 Survey responses'!$H91>0),'2011 Survey responses'!$J87,\"\")","v":1},1,null,null,{"$f":"IF(AND('2011 Survey responses'!$K87>0,'2007 Survey responses'!$J91>0),'2007 Survey responses'!$J91,\"\")","v":2},{"$f":"IF(AND('2011 Survey responses'!$K87>0,'2007 Survey responses'!$J91>0),'2011 Survey responses'!$K87,\"\")","v":6},5,null,null,{"$f":"IF(AND('2011 Survey responses'!$L87>0,'2007 Survey responses'!$I91>0),'2007 Survey responses'!$I91,\"\")","v":4},{"$f":"IF(AND('2011 Survey responses'!$L87>0,'2007 Survey responses'!$I91>0),'2011 Survey responses'!$L87,\"\")","v":6},5,null,null,{"$f":"IF(AND('2011 Survey responses'!$M87>0,'2007 Survey responses'!$K91>0),'2007 Survey responses'!$K91,\"\")","v":2},{"$f":"IF(AND('2011 Survey responses'!$M87>0,'2007 Survey responses'!$K91>0),'2011 Survey responses'!$M87,\"\")","v":6},5,null,null,{"$f":"IF('2007 Survey responses'!$B91>0,IF(AND('2011 Survey responses'!T87>0,'2007 Survey responses'!L91>0),'2007 Survey responses'!L91,\"\"),\"\")","v":3},{"$f":"IF('2007 Survey responses'!$B91>0,IF(AND('2011 Survey responses'!T87>0,'2007 Survey responses'!L91>0),'2011 Survey responses'!T87,\"\"),\"\")","v":1},1,null,null,{"$f":"IF(AND('2011 Survey responses'!$U87>0,'2007 Survey responses'!$M91>0),'2007 Survey responses'!$M91,\"\")","v":3},{"$f":"IF(AND('2011 Survey responses'!$U87>0,'2007 Survey responses'!$M91>0),'2011 Survey responses'!$U87,\"\")","v":1},1]
["Jordan",{"$f":"IF(AND('2011 Survey responses'!$F88>0,'2007 Survey responses'!E92>0),'2007 Survey responses'!E92,\"\")","v":2},{"$f":"IF(AND('2011 Survey responses'!$F88>0,'2007 Survey responses'!E92>0),'2011 Survey responses'!$F88,\"\")","v":6},5,null,null,{"$f":"IF(AND('2011 Survey responses'!$G88>0,'2007 Survey responses'!$F92>0),'2007 Survey responses'!$F92,\"\")","v":2},{"$f":"IF(AND('2011 Survey responses'!$G88>0,'2007 Survey responses'!$F92>0),'2011 Survey responses'!$G88,\"\")","v":6},5,null,null,{"$f":"IF(AND('2011 Survey responses'!$H88>0,'2007 Survey responses'!$F92>0),'2007 Survey responses'!$F92,\"\")","v":2},{"$f":"IF(AND('2011 Survey responses'!$H88>0,'2007 Survey responses'!$F92>0),'2011 Survey responses'!$H88,\"\")","v":6},5,null,null,{"$f":"IF(AND(Question_grouping!O88>0,'2007 Survey responses'!$F92>0),'2007 Survey responses'!$F92,\"\")","v":2},{"$f":"IF(AND(Question_grouping!O88>0,'2007 Survey responses'!$F92>0),Question_grouping!O88,\"\")","v":6},5,null,null,{"$f":"IF(AND('2011 Survey responses'!$B88>0,'2007 Survey responses'!$C92>0),'2007 Survey responses'!$C92,\"\")","v":4},{"$f":"IF(AND('2011 Survey responses'!$B88>0,'2007 Survey responses'!$C92>0),'2011 Survey responses'!$B88,\"\")","v":6},5,null,null,{"$f":"IF(AND('2011 Survey responses'!$D88>0,'2007 Survey responses'!$D92>0),'2007 Survey responses'!$D92,\"\")","v":4},{"$f":"IF(AND('2011 Survey responses'!$D88>0,'2007 Survey responses'!$D92>0),'2011 Survey responses'!$D88,\"\")","v":2},2,null,null,{"$f":"IF(AND('2011 Survey responses'!$J88>0,'2007 Survey responses'!$H92>0),'2007 Survey responses'!$H92,\"\")","v":""},{"$f":"IF(AND('2011 Survey responses'!$J88>0,'2007 Survey responses'!$H92>0),'2011 Survey responses'!$J88,\"\")","v":""},"",null,null,{"$f":"IF(AND('2011 Survey responses'!$K88>0,'2007 Survey responses'!$J92>0),'2007 Survey responses'!$J92,\"\")","v":""},{"$f":"IF(AND('2011 Survey responses'!$K88>0,'2007 Survey responses'!$J92>0),'2011 Survey responses'!$K88,\"\")","v":""},"",null,null,{"$f":"IF(AND('2011 Survey responses'!$L88>0,'2007 Survey responses'!$I92>0),'2007 Survey responses'!$I92,\"\")","v":""},{"$f":"IF(AND('2011 Survey responses'!$L88>0,'2007 Survey responses'!$I92>0),'2011 Survey responses'!$L88,\"\")","v":""},"",null,null,{"$f":"IF(AND('2011 Survey responses'!$M88>0,'2007 Survey responses'!$K92>0),'2007 Survey responses'!$K92,\"\")","v":""},{"$f":"IF(AND('2011 Survey responses'!$M88>0,'2007 Survey responses'!$K92>0),'2011 Survey responses'!$M88,\"\")","v":""},"",null,null,{"$f":"IF('2007 Survey responses'!$B92>0,IF(AND('2011 Survey responses'!T88>0,'2007 Survey responses'!L92>0),'2007 Survey responses'!L92,\"\"),\"\")","v":""},{"$f":"IF('2007 Survey responses'!$B92>0,IF(AND('2011 Survey responses'!T88>0,'2007 Survey responses'!L92>0),'2011 Survey responses'!T88,\"\"),\"\")","v":""},"",null,null,{"$f":"IF(AND('2011 Survey responses'!$U88>0,'2007 Survey responses'!$M92>0),'2007 Survey responses'!$M92,\"\")","v":""},{"$f":"IF(AND('2011 Survey responses'!$U88>0,'2007 Survey responses'!$M92>0),'2011 Survey responses'!$U88,\"\")","v":""},""]
["Kazakhstan",{"$f":"IF(AND('2011 Survey responses'!$F89>0,'2007 Survey responses'!E93>0),'2007 Survey responses'!E93,\"\")","v":""},{"$f":"IF(AND('2011 Survey responses'!$F89>0,'2007 Survey responses'!E93>0),'2011 Survey responses'!$F89,\"\")","v":""},"",null,null,{"$f":"IF(AND('2011 Survey responses'!$G89>0,'2007 Survey responses'!$F93>0),'2007 Survey responses'!$F93,\"\")","v":""},{"$f":"IF(AND('2011 Survey responses'!$G89>0,'2007 Survey responses'!$F93>0),'2011 Survey responses'!$G89,\"\")","v":""},"",null,null,{"$f":"IF(AND('2011 Survey responses'!$H89>0,'2007 Survey responses'!$F93>0),'2007 Survey responses'!$F93,\"\")","v":""},{"$f":"IF(AND('2011 Survey responses'!$H89>0,'2007 Survey responses'!$F93>0),'2011 Survey responses'!$H89,\"\")","v":""},"",null,null,{"$f":"IF(AND(Question_grouping!O89>0,'2007 Survey responses'!$F93>0),'2007 Survey responses'!$F93,\"\")","v":""},{"$f":"IF(AND(Question_grouping!O89>0,'2007 Survey responses'!$F93>0),Question_grouping!O89,\"\")","v":""},"",null,null,{"$f":"IF(AND('2011 Survey responses'!$B89>0,'2007 Survey responses'!$C93>0),'2007 Survey responses'!$C93,\"\")","v":""},{"$f":"IF(AND('2011 Survey responses'!$B89>0,'2007 Survey responses'!$C93>0),'2011 Survey responses'!$B89,\"\")","v":""},"",null,null,{"$f":"IF(AND('2011 Survey responses'!$D89>0,'2007 Survey responses'!$D93>0),'2007 Survey responses'!$D93,\"\")","v":""},{"$f":"IF(AND('2011 Survey responses'!$D89>0,'2007 Survey responses'!$D93>0),'2011 Survey responses'!$D89,\"\")","v":""},"",null,null,{"$f":"IF(AND('2011 Survey responses'!$J89>0,'2007 Survey responses'!$H93>0),'2007 Survey responses'!$H93,\"\")","v":""},{"$f":"IF(AND('2011 Survey responses'!$J89>0,'2007 Survey responses'!$H93>0),'2011 Survey responses'!$J89,\"\")","v":""},"",null,null,{"$f":"IF(AND('2011 Survey responses'!$K89>0,'2007 Survey responses'!$J93>0),'2007 Survey responses'!$J93,\"\")","v":""},{"$f":"IF(AND('2011 Survey responses'!$K89>0,'2007 Survey responses'!$J93>0),'2011 Survey responses'!$K89,\"\")","v":""},"",null,null,{"$f":"IF(AND('2011 Survey responses'!$L89>0,'2007 Survey responses'!$I93>0),'2007 Survey responses'!$I93,\"\")","v":""},{"$f":"IF(AND('2011 Survey responses'!$L89>0,'2007 Survey responses'!$I93>0),'2011 Survey responses'!$L89,\"\")","v":""},"",null,null,{"$f":"IF(AND('2011 Survey responses'!$M89>0,'2007 Survey responses'!$K93>0),'2007 Survey responses'!$K93,\"\")","v":""},{"$f":"IF(AND('2011 Survey responses'!$M89>0,'2007 Survey responses'!$K93>0),'2011 Survey responses'!$M89,\"\")","v":""},"",null,null,{"$f":"IF('2007 Survey responses'!$B93>0,IF(AND('2011 Survey responses'!T89>0,'2007 Survey responses'!L93>0),'2007 Survey responses'!L93,\"\"),\"\")","v":""},{"$f":"IF('2007 Survey responses'!$B93>0,IF(AND('2011 Survey responses'!T89>0,'2007 Survey responses'!L93>0),'2011 Survey responses'!T89,\"\"),\"\")","v":""},"",null,null,{"$f":"IF(AND('2011 Survey responses'!$U89>0,'2007 Survey responses'!$M93>0),'2007 Survey responses'!$M93,\"\")","v":""},{"$f":"IF(AND('2011 Survey responses'!$U89>0,'2007 Survey responses'!$M93>0),'2011 Survey responses'!$U89,\"\")","v":""},""]
["Kenya",{"$f":"IF(AND('2011 Survey responses'!$F90>0,'2007 Survey responses'!E94>0),'2007 Survey responses'!E94,\"\")","v":""},{"$f":"IF(AND('2011 Survey responses'!$F90>0,'2007 Survey responses'!E94>0),'2011 Survey responses'!$F90,\"\")","v":""},"",null,null,{"$f":"IF(AND('2011 Survey responses'!$G90>0,'2007 Survey responses'!$F94>0),'2007 Survey responses'!$F94,\"\")","v":""},{"$f":"IF(AND('2011 Survey responses'!$G90>0,'2007 Survey responses'!$F94>0),'2011 Survey responses'!$G90,\"\")","v":""},"",null,null,{"$f":"IF(AND('2011 Survey responses'!$H90>0,'2007 Survey responses'!$F94>0),'2007 Survey responses'!$F94,\"\")","v":""},{"$f":"IF(AND('2011 Survey responses'!$H90>0,'2007 Survey responses'!$F94>0),'2011 Survey responses'!$H90,\"\")","v":""},"",null,null,{"$f":"IF(AND(Question_grouping!O90>0,'2007 Survey responses'!$F94>0),'2007 Survey responses'!$F94,\"\")","v":""},{"$f":"IF(AND(Question_grouping!O90>0,'2007 Survey responses'!$F94>0),Question_grouping!O90,\"\")","v":""},"",null,null,{"$f":"IF(AND('2011 Survey responses'!$B90>0,'2007 Survey responses'!$C94>0),'2007 Survey responses'!$C94,\"\")","v":""},{"$f":"IF(AND('2011 Survey responses'!$B90>0,'2007 Survey responses'!$C94>0),'2011 Survey responses'!$B90,\"\")","v":""},"",null,null,{"$f":"IF(AND('2011 Survey responses'!$D90>0,'2007 Survey responses'!$D94>0),'2007 Survey responses'!$D94,\"\")","v":""},{"$f":"IF(AND('2011 Survey responses'!$D90>0,'2007 Survey responses'!$D94>0),'2011 Survey responses'!$D90,\"\")","v":""},"",null,null,{"$f":"IF(AND('2011 Survey responses'!$J90>0,'2007 Survey responses'!$H94>0),'2007 Survey responses'!$H94,\"\")","v":""},{"$f":"IF(AND('2011 Survey responses'!$J90>0,'2007 Survey responses'!$H94>0),'2011 Survey responses'!$J90,\"\")","v":""},"",null,null,{"$f":"IF(AND('2011 Survey responses'!$K90>0,'2007 Survey responses'!$J94>0),'2007 Survey responses'!$J94,\"\")","v":""},{"$f":"IF(AND('2011 Survey responses'!$K90>0,'2007 Survey responses'!$J94>0),'2011 Survey responses'!$K90,\"\")","v":""},"",null,null,{"$f":"IF(AND('2011 Survey responses'!$L90>0,'2007 Survey responses'!$I94>0),'2007 Survey responses'!$I94,\"\")","v":""},{"$f":"IF(AND('2011 Survey responses'!$L90>0,'2007 Survey responses'!$I94>0),'2011 Survey responses'!$L90,\"\")","v":""},"",null,null,{"$f":"IF(AND('2011 Survey responses'!$M90>0,'2007 Survey responses'!$K94>0),'2007 Survey responses'!$K94,\"\")","v":""},{"$f":"IF(AND('2011 Survey responses'!$M90>0,'2007 Survey responses'!$K94>0),'2011 Survey responses'!$M90,\"\")","v":""},"",null,null,{"$f":"IF('2007 Survey responses'!$B94>0,IF(AND('2011 Survey responses'!T90>0,'2007 Survey responses'!L94>0),'2007 Survey responses'!L94,\"\"),\"\")","v":""},{"$f":"IF('2007 Survey responses'!$B94>0,IF(AND('2011 Survey responses'!T90>0,'2007 Survey responses'!L94>0),'2011 Survey responses'!T90,\"\"),\"\")","v":""},"",null,null,{"$f":"IF(AND('2011 Survey responses'!$U90>0,'2007 Survey responses'!$M94>0),'2007 Survey responses'!$M94,\"\")","v":""},{"$f":"IF(AND('2011 Survey responses'!$U90>0,'2007 Survey responses'!$M94>0),'2011 Survey responses'!$U90,\"\")","v":""},""]
["Kiribati",{"$f":"IF(AND('2011 Survey responses'!$F91>0,'2007 Survey responses'!E95>0),'2007 Survey responses'!E95,\"\")","v":""},{"$f":"IF(AND('2011 Survey responses'!$F91>0,'2007 Survey responses'!E95>0),'2011 Survey responses'!$F91,\"\")","v":""},"",null,null,{"$f":"IF(AND('2011 Survey responses'!$G91>0,'2007 Survey responses'!$F95>0),'2007 Survey responses'!$F95,\"\")","v":""},{"$f":"IF(AND('2011 Survey responses'!$G91>0,'2007 Survey responses'!$F95>0),'2011 Survey responses'!$G91,\"\")","v":""},"",null,null,{"$f":"IF(AND('2011 Survey responses'!$H91>0,'2007 Survey responses'!$F95>0),'2007 Survey responses'!$F95,\"\")","v":""},{"$f":"IF(AND('2011 Survey responses'!$H91>0,'2007 Survey responses'!$F95>0),'2011 Survey responses'!$H91,\"\")","v":""},"",null,null,{"$f":"IF(AND(Question_grouping!O91>0,'2007 Survey responses'!$F95>0),'2007 Survey responses'!$F95,\"\")","v":""},{"$f":"IF(AND(Question_grouping!O91>0,'2007 Survey responses'!$F95>0),Question_grouping!O91,\"\")","v":""},"",null,null,{"$f":"IF(AND('2011 Survey responses'!$B91>0,'2007 Survey responses'!$C95>0),'2007 Survey responses'!$C95,\"\")","v":""},{"$f":"IF(AND('2011 Survey responses'!$B91>0,'2007 Survey responses'!$C95>0),'2011 Survey responses'!$B91,\"\")","v":""},"",null,null,{"$f":"IF(AND('2011 Survey responses'!$D91>0,'2007 Survey responses'!$D95>0),'2007 Survey responses'!$D95,\"\")","v":""},{"$f":"IF(AND('2011 Survey responses'!$D91>0,'2007 Survey responses'!$D95>0),'2011 Survey responses'!$D91,\"\")","v":""},"",null,null,{"$f":"IF(AND('2011 Survey responses'!$J91>0,'2007 Survey responses'!$H95>0),'2007 Survey responses'!$H95,\"\")","v":""},{"$f":"IF(AND('2011 Survey responses'!$J91>0,'2007 Survey responses'!$H95>0),'2011 Survey responses'!$J91,\"\")","v":""},"",null,null,{"$f":"IF(AND('2011 Survey responses'!$K91>0,'2007 Survey responses'!$J95>0),'2007 Survey responses'!$J95,\"\")","v":""},{"$f":"IF(AND('2011 Survey responses'!$K91>0,'2007 Survey responses'!$J95>0),'2011 Survey responses'!$K91,\"\")","v":""},"",null,null,{"$f":"IF(AND('2011 Survey responses'!$L91>0,'2007 Survey responses'!$I95>0),'2007 Survey responses'!$I95,\"\")","v":""},{"$f":"IF(AND('2011 Survey responses'!$L91>0,'2007 Survey responses'!$I95>0),'2011 Survey responses'!$L91,\"\")","v":""},"",null,null,{"$f":"IF(AND('2011 Survey responses'!$M91>0,'2007 Survey responses'!$K95>0),'2007 Survey responses'!$K95,\"\")","v":""},{"$f":"IF(AND('2011 Survey responses'!$M91>0,'2007 Survey responses'!$K95>0),'2011 Survey responses'!$M91,\"\")","v":""},"",null,null,{"$f":"IF('2007 Survey responses'!$B95>0,IF(AND('2011 Survey responses'!T91>0,'2007 Survey responses'!L95>0),'2007 Survey responses'!L95,\"\"),\"\")","v":""},{"$f":"IF('2007 Survey responses'!$B95>0,IF(AND('2011 Survey responses'!T91>0,'2007 Survey responses'!L95>0),'2011 Survey responses'!T91,\"\"),\"\")","v":""},"",null,null,{"$f":"IF(AND('2011 Survey responses'!$U91>0,'2007 Survey responses'!$M95>0),'2007 Survey responses'!$M95,\"\")","v":""},{"$f":"IF(AND('2011 Survey responses'!$U91>0,'2007 Survey responses'!$M95>0),'2011 Survey responses'!$U91,\"\")","v":""},""]
["Kuwait",{"$f":"IF(AND('2011 Survey responses'!$F92>0,'2007 Survey responses'!E96>0),'2007 Survey responses'!E96,\"\")","v":""},{"$f":"IF(AND('2011 Survey responses'!$F92>0,'2007 Survey responses'!E96>0),'2011 Survey responses'!$F92,\"\")","v":""},"",null,null,{"$f":"IF(AND('2011 Survey responses'!$G92>0,'2007 Survey responses'!$F96>0),'2007 Survey responses'!$F96,\"\")","v":""},{"$f":"IF(AND('2011 Survey responses'!$G92>0,'2007 Survey responses'!$F96>0),'2011 Survey responses'!$G92,\"\")","v":""},"",null,null,{"$f":"IF(AND('2011 Survey responses'!$H92>0,'2007 Survey responses'!$F96>0),'2007 Survey responses'!$F96,\"\")","v":""},{"$f":"IF(AND('2011 Survey responses'!$H92>0,'2007 Survey responses'!$F96>0),'2011 Survey responses'!$H92,\"\")","v":""},"",null,null,{"$f":"IF(AND(Question_grouping!O92>0,'2007 Survey responses'!$F96>0),'2007 Survey responses'!$F96,\"\")","v":4},{"$f":"IF(AND(Question_grouping!O92>0,'2007 Survey responses'!$F96>0),Question_grouping!O92,\"\")","v":""},"",null,null,{"$f":"IF(AND('2011 Survey responses'!$B92>0,'2007 Survey responses'!$C96>0),'2007 Survey responses'!$C96,\"\")","v":""},{"$f":"IF(AND('2011 Survey responses'!$B92>0,'2007 Survey responses'!$C96>0),'2011 Survey responses'!$B92,\"\")","v":""},"",null,null,{"$f":"IF(AND('2011 Survey responses'!$D92>0,'2007 Survey responses'!$D96>0),'2007 Survey responses'!$D96,\"\")","v":""},{"$f":"IF(AND('2011 Survey responses'!$D92>0,'2007 Survey responses'!$D96>0),'2011 Survey responses'!$D92,\"\")","v":""},"",null,null,{"$f":"IF(AND('2011 Survey responses'!$J92>0,'2007 Survey responses'!$H96>0),'2007 Survey responses'!$H96,\"\")","v":""},{"$f":"IF(AND('2011 Survey responses'!$J92>0,'2007 Survey responses'!$H96>0),'2011 Survey responses'!$J92,\"\")","v":""},"",null,null,{"$f":"IF(AND('2011 Survey responses'!$K92>0,'2007 Survey responses'!$J96>0),'2007 Survey responses'!$J96,\"\")","v":""},{"$f":"IF(AND('2011 Survey responses'!$K92>0,'2007 Survey responses'!$J96>0),'2011 Survey responses'!$K92,\"\")","v":""},"",null,null,{"$f":"IF(AND('2011 Survey responses'!$L92>0,'2007 Survey responses'!$I96>0),'2007 Survey responses'!$I96,\"\")","v":""},{"$f":"IF(AND('2011 Survey responses'!$L92>0,'2007 Survey responses'!$I96>0),'2011 Survey responses'!$L92,\"\")","v":""},"",null,null,{"$f":"IF(AND('2011 Survey responses'!$M92>0,'2007 Survey responses'!$K96>0),'2007 Survey responses'!$K96,\"\")","v":""},{"$f":"IF(AND('2011 Survey responses'!$M92>0,'2007 Survey responses'!$K96>0),'2011 Survey responses'!$M92,\"\")","v":""},"",null,null,{"$f":"IF('2007 Survey responses'!$B96>0,IF(AND('2011 Survey responses'!T92>0,'2007 Survey responses'!L96>0),'2007 Survey responses'!L96,\"\"),\"\")","v":""},{"$f":"IF('2007 Survey responses'!$B96>0,IF(AND('2011 Survey responses'!T92>0,'2007 Survey responses'!L96>0),'2011 Survey responses'!T92,\"\"),\"\")","v":""},"",null,null,{"$f":"IF(AND('2011 Survey responses'!$U92>0,'2007 Survey responses'!$M96>0),'2007 Survey responses'!$M96,\"\")","v":""},{"$f":"IF(AND('2011 Survey responses'!$U92>0,'2007 Survey responses'!$M96>0),'2011 Survey responses'!$U92,\"\")","v":""},""]
["Kyrgyzstan",{"$f":"IF(AND('2011 Survey responses'!$F93>0,'2007 Survey responses'!E97>0),'2007 Survey responses'!E97,\"\")","v":""},{"$f":"IF(AND('2011 Survey responses'!$F93>0,'2007 Survey responses'!E97>0),'2011 Survey responses'!$F93,\"\")","v":""},"",null,null,{"$f":"IF(AND('2011 Survey responses'!$G93>0,'2007 Survey responses'!$F97>0),'2007 Survey responses'!$F97,\"\")","v":""},{"$f":"IF(AND('2011 Survey responses'!$G93>0,'2007 Survey responses'!$F97>0),'2011 Survey responses'!$G93,\"\")","v":""},"",null,null,{"$f":"IF(AND('2011 Survey responses'!$H93>0,'2007 Survey responses'!$F97>0),'2007 Survey responses'!$F97,\"\")","v":""},{"$f":"IF(AND('2011 Survey responses'!$H93>0,'2007 Survey responses'!$F97>0),'2011 Survey responses'!$H93,\"\")","v":""},"",null,null,{"$f":"IF(AND(Question_grouping!O93>0,'2007 Survey responses'!$F97>0),'2007 Survey responses'!$F97,\"\")","v":""},{"$f":"IF(AND(Question_grouping!O93>0,'2007 Survey responses'!$F97>0),Question_grouping!O93,\"\")","v":""},"",null,null,{"$f":"IF(AND('2011 Survey responses'!$B93>0,'2007 Survey responses'!$C97>0),'2007 Survey responses'!$C97,\"\")","v":""},{"$f":"IF(AND('2011 Survey responses'!$B93>0,'2007 Survey responses'!$C97>0),'2011 Survey responses'!$B93,\"\")","v":""},"",null,null,{"$f":"IF(AND('2011 Survey responses'!$D93>0,'2007 Survey responses'!$D97>0),'2007 Survey responses'!$D97,\"\")","v":""},{"$f":"IF(AND('2011 Survey responses'!$D93>0,'2007 Survey responses'!$D97>0),'2011 Survey responses'!$D93,\"\")","v":""},"",null,null,{"$f":"IF(AND('2011 Survey responses'!$J93>0,'2007 Survey responses'!$H97>0),'2007 Survey responses'!$H97,\"\")","v":""},{"$f":"IF(AND('2011 Survey responses'!$J93>0,'2007 Survey responses'!$H97>0),'2011 Survey responses'!$J93,\"\")","v":""},"",null,null,{"$f":"IF(AND('2011 Survey responses'!$K93>0,'2007 Survey responses'!$J97>0),'2007 Survey responses'!$J97,\"\")","v":""},{"$f":"IF(AND('2011 Survey responses'!$K93>0,'2007 Survey responses'!$J97>0),'2011 Survey responses'!$K93,\"\")","v":""},"",null,null,{"$f":"IF(AND('2011 Survey responses'!$L93>0,'2007 Survey responses'!$I97>0),'2007 Survey responses'!$I97,\"\")","v":""},{"$f":"IF(AND('2011 Survey responses'!$L93>0,'2007 Survey responses'!$I97>0),'2011 Survey responses'!$L93,\"\")","v":""},"",null,null,{"$f":"IF(AND('2011 Survey responses'!$M93>0,'2007 Survey responses'!$K97>0),'2007 Survey responses'!$K97,\"\")","v":""},{"$f":"IF(AND('2011 Survey responses'!$M93>0,'2007 Survey responses'!$K97>0),'2011 Survey responses'!$M93,\"\")","v":""},"",null,null,{"$f":"IF('2007 Survey responses'!$B97>0,IF(AND('2011 Survey responses'!T93>0,'2007 Survey responses'!L97>0),'2007 Survey responses'!L97,\"\"),\"\")","v":""},{"$f":"IF('2007 Survey responses'!$B97>0,IF(AND('2011 Survey responses'!T93>0,'2007 Survey responses'!L97>0),'2011 Survey responses'!T93,\"\"),\"\")","v":""},"",null,null,{"$f":"IF(AND('2011 Survey responses'!$U93>0,'2007 Survey responses'!$M97>0),'2007 Survey responses'!$M97,\"\")","v":""},{"$f":"IF(AND('2011 Survey responses'!$U93>0,'2007 Survey responses'!$M97>0),'2011 Survey responses'!$U93,\"\")","v":""},""]
["Lao People's Democratic Republic",{"$f":"IF(AND('2011 Survey responses'!$F94>0,'2007 Survey responses'!E98>0),'2007 Survey responses'!E98,\"\")","v":""},{"$f":"IF(AND('2011 Survey responses'!$F94>0,'2007 Survey responses'!E98>0),'2011 Survey responses'!$F94,\"\")","v":""},"",null,null,{"$f":"IF(AND('2011 Survey responses'!$G94>0,'2007 Survey responses'!$F98>0),'2007 Survey responses'!$F98,\"\")","v":""},{"$f":"IF(AND('2011 Survey responses'!$G94>0,'2007 Survey responses'!$F98>0),'2011 Survey responses'!$G94,\"\")","v":""},"",null,null,{"$f":"IF(AND('2011 Survey responses'!$H94>0,'2007 Survey responses'!$F98>0),'2007 Survey responses'!$F98,\"\")","v":""},{"$f":"IF(AND('2011 Survey responses'!$H94>0,'2007 Survey responses'!$F98>0),'2011 Survey responses'!$H94,\"\")","v":""},"",null,null,{"$f":"IF(AND(Question_grouping!O94>0,'2007 Survey responses'!$F98>0),'2007 Survey responses'!$F98,\"\")","v":1},{"$f":"IF(AND(Question_grouping!O94>0,'2007 Survey responses'!$F98>0),Question_grouping!O94,\"\")","v":""},"",null,null,{"$f":"IF(AND('2011 Survey responses'!$B94>0,'2007 Survey responses'!$C98>0),'2007 Survey responses'!$C98,\"\")","v":""},{"$f":"IF(AND('2011 Survey responses'!$B94>0,'2007 Survey responses'!$C98>0),'2011 Survey responses'!$B94,\"\")","v":""},"",null,null,{"$f":"IF(AND('2011 Survey responses'!$D94>0,'2007 Survey responses'!$D98>0),'2007 Survey responses'!$D98,\"\")","v":""},{"$f":"IF(AND('2011 Survey responses'!$D94>0,'2007 Survey responses'!$D98>0),'2011 Survey responses'!$D94,\"\")","v":""},"",null,null,{"$f":"IF(AND('2011 Survey responses'!$J94>0,'2007 Survey responses'!$H98>0),'2007 Survey responses'!$H98,\"\")","v":""},{"$f":"IF(AND('2011 Survey responses'!$J94>0,'2007 Survey responses'!$H98>0),'2011 Survey responses'!$J94,\"\")","v":""},"",null,null,{"$f":"IF(AND('2011 Survey responses'!$K94>0,'2007 Survey responses'!$J98>0),'2007 Survey responses'!$J98,\"\")","v":""},{"$f":"IF(AND('2011 Survey responses'!$K94>0,'2007 Survey responses'!$J98>0),'2011 Survey responses'!$K94,\"\")","v":""},"",null,null,{"$f":"IF(AND('2011 Survey responses'!$L94>0,'2007 Survey responses'!$I98>0),'2007 Survey responses'!$I98,\"\")","v":""},{"$f":"IF(AND('2011 Survey responses'!$L94>0,'2007 Survey responses'!$I98>0),'2011 Survey responses'!$L94,\"\")","v":""},"",null,null,{"$f":"IF(AND('2011 Survey responses'!$M94>0,'2007 Survey responses'!$K98>0),'2007 Survey responses'!$K98,\"\")","v":""},{"$f":"IF(AND('2011 Survey responses'!$M94>0,'2007 Survey responses'!$K98>0),'2011 Survey responses'!$M94,\"\")","v":""},"",null,null,{"$f":"IF('2007 Survey responses'!$B98>0,IF(AND('2011 Survey responses'!T94>0,'2007 Survey responses'!L98>0),'2007 Survey responses'!L98,\"\"),\"\")","v":""},{"$f":"IF('2007 Survey responses'!$B98>0,IF(AND('2011 Survey responses'!T94>0,'2007 Survey responses'!L98>0),'2011 Survey responses'!T94,\"\"),\"\")","v":""},"",null,null,{"$f":"IF(AND('2011 Survey responses'!$U94>0,'2007 Survey responses'!$M98>0),'2007 Survey responses'!$M98,\"\")","v":""},{"$f":"IF(AND('2011 Survey responses'!$U94>0,'2007 Survey responses'!$M98>0),'2011 Survey responses'!$U94,\"\")","v":""},""]
["Latvia",{"$f":"IF(AND('2011 Survey responses'!$F95>0,'2007 Survey responses'!E99>0),'2007 Survey responses'!E99,\"\")","v":3},{"$f":"IF(AND('2011 Survey responses'!$F95>0,'2007 Survey responses'!E99>0),'2011 Survey responses'!$F95,\"\")","v":5},4,null,null,{"$f":"IF(AND('2011 Survey responses'!$G95>0,'2007 Survey responses'!$F99>0),'2007 Survey responses'!$F99,\"\")","v":3},{"$f":"IF(AND('2011 Survey responses'!$G95>0,'2007 Survey responses'!$F99>0),'2011 Survey responses'!$G95,\"\")","v":1},1,null,null,{"$f":"IF(AND('2011 Survey responses'!$H95>0,'2007 Survey responses'!$F99>0),'2007 Survey responses'!$F99,\"\")","v":3},{"$f":"IF(AND('2011 Survey responses'!$H95>0,'2007 Survey responses'!$F99>0),'2011 Survey responses'!$H95,\"\")","v":3},3,null,null,{"$f":"IF(AND(Question_grouping!O95>0,'2007 Survey responses'!$F99>0),'2007 Survey responses'!$F99,\"\")","v":3},{"$f":"IF(AND(Question_grouping!O95>0,'2007 Survey responses'!$F99>0),Question_grouping!O95,\"\")","v":3},3,null,null,{"$f":"IF(AND('2011 Survey responses'!$B95>0,'2007 Survey responses'!$C99>0),'2007 Survey responses'!$C99,\"\")","v":3},{"$f":"IF(AND('2011 Survey responses'!$B95>0,'2007 Survey responses'!$C99>0),'2011 Survey responses'!$B95,\"\")","v":5},4,null,null,{"$f":"IF(AND('2011 Survey responses'!$D95>0,'2007 Survey responses'!$D99>0),'2007 Survey responses'!$D99,\"\")","v":3},{"$f":"IF(AND('2011 Survey responses'!$D95>0,'2007 Survey responses'!$D99>0),'2011 Survey responses'!$D95,\"\")","v":5},4,null,null,{"$f":"IF(AND('2011 Survey responses'!$J95>0,'2007 Survey responses'!$H99>0),'2007 Survey responses'!$H99,\"\")","v":""},{"$f":"IF(AND('2011 Survey responses'!$J95>0,'2007 Survey responses'!$H99>0),'2011 Survey responses'!$J95,\"\")","v":""},"",null,null,{"$f":"IF(AND('2011 Survey responses'!$K95>0,'2007 Survey responses'!$J99>0),'2007 Survey responses'!$J99,\"\")","v":""},{"$f":"IF(AND('2011 Survey responses'!$K95>0,'2007 Survey responses'!$J99>0),'2011 Survey responses'!$K95,\"\")","v":""},"",null,null,{"$f":"IF(AND('2011 Survey responses'!$L95>0,'2007 Survey responses'!$I99>0),'2007 Survey responses'!$I99,\"\")","v":3},{"$f":"IF(AND('2011 Survey responses'!$L95>0,'2007 Survey responses'!$I99>0),'2011 Survey responses'!$L95,\"\")","v":4},4,null,null,{"$f":"IF(AND('2011 Survey responses'!$M95>0,'2007 Survey responses'!$K99>0),'2007 Survey responses'!$K99,\"\")","v":3},{"$f":"IF(AND('2011 Survey responses'!$M95>0,'2007 Survey responses'!$K99>0),'2011 Survey responses'!$M95,\"\")","v":5},4,null,null,{"$f":"IF('2007 Survey responses'!$B99>0,IF(AND('2011 Survey responses'!T95>0,'2007 Survey responses'!L99>0),'2007 Survey responses'!L99,\"\"),\"\")","v":2},{"$f":"IF('2007 Survey responses'!$B99>0,IF(AND('2011 Survey responses'!T95>0,'2007 Survey responses'!L99>0),'2011 Survey responses'!T95,\"\"),\"\")","v":1},1,null,null,{"$f":"IF(AND('2011 Survey responses'!$U95>0,'2007 Survey responses'!$M99>0),'2007 Survey responses'!$M99,\"\")","v":2},{"$f":"IF(AND('2011 Survey responses'!$U95>0,'2007 Survey responses'!$M99>0),'2011 Survey responses'!$U95,\"\")","v":3},3]
["Lebanon",{"$f":"IF(AND('2011 Survey responses'!$F96>0,'2007 Survey responses'!E100>0),'2007 Survey responses'!E100,\"\")","v":4},{"$f":"IF(AND('2011 Survey responses'!$F96>0,'2007 Survey responses'!E100>0),'2011 Survey responses'!$F96,\"\")","v":2},2,null,null,{"$f":"IF(AND('2011 Survey responses'!$G96>0,'2007 Survey responses'!$F100>0),'2007 Survey responses'!$F100,\"\")","v":4},{"$f":"IF(AND('2011 Survey responses'!$G96>0,'2007 Survey responses'!$F100>0),'2011 Survey responses'!$G96,\"\")","v":1},1,null,null,{"$f":"IF(AND('2011 Survey responses'!$H96>0,'2007 Survey responses'!$F100>0),'2007 Survey responses'!$F100,\"\")","v":4},{"$f":"IF(AND('2011 Survey responses'!$H96>0,'2007 Survey responses'!$F100>0),'2011 Survey responses'!$H96,\"\")","v":2},2,null,null,{"$f":"IF(AND(Question_grouping!O96>0,'2007 Survey responses'!$F100>0),'2007 Survey responses'!$F100,\"\")","v":4},{"$f":"IF(AND(Question_grouping!O96>0,'2007 Survey responses'!$F100>0),Question_grouping!O96,\"\")","v":2},2,null,null,{"$f":"IF(AND('2011 Survey responses'!$B96>0,'2007 Survey responses'!$C100>0),'2007 Survey responses'!$C100,\"\")","v":4},{"$f":"IF(AND('2011 Survey responses'!$B96>0,'2007 Survey responses'!$C100>0),'2011 Survey responses'!$B96,\"\")","v":4},4,null,null,{"$f":"IF(AND('2011 Survey responses'!$D96>0,'2007 Survey responses'!$D100>0),'2007 Survey responses'!$D100,\"\")","v":4},{"$f":"IF(AND('2011 Survey responses'!$D96>0,'2007 Survey responses'!$D100>0),'2011 Survey responses'!$D96,\"\")","v":4},4,null,null,{"$f":"IF(AND('2011 Survey responses'!$J96>0,'2007 Survey responses'!$H100>0),'2007 Survey responses'!$H100,\"\")","v":4},{"$f":"IF(AND('2011 Survey responses'!$J96>0,'2007 Survey responses'!$H100>0),'2011 Survey responses'!$J96,\"\")","v":1},1,null,null,{"$f":"IF(AND('2011 Survey responses'!$K96>0,'2007 Survey responses'!$J100>0),'2007 Survey responses'!$J100,\"\")","v":2},{"$f":"IF(AND('2011 Survey responses'!$K96>0,'2007 Survey responses'!$J100>0),'2011 Survey responses'!$K96,\"\")","v":1},1,null,null,{"$f":"IF(AND('2011 Survey responses'!$L96>0,'2007 Survey responses'!$I100>0),'2007 Survey responses'!$I100,\"\")","v":2},{"$f":"IF(AND('2011 Survey responses'!$L96>0,'2007 Survey responses'!$I100>0),'2011 Survey responses'!$L96,\"\")","v":1},1,null,null,{"$f":"IF(AND('2011 Survey responses'!$M96>0,'2007 Survey responses'!$K100>0),'2007 Survey responses'!$K100,\"\")","v":2},{"$f":"IF(AND('2011 Survey responses'!$M96>0,'2007 Survey responses'!$K100>0),'2011 Survey responses'!$M96,\"\")","v":3},3,null,null,{"$f":"IF('2007 Survey responses'!$B100>0,IF(AND('2011 Survey responses'!T96>0,'2007 Survey responses'!L100>0),'2007 Survey responses'!L100,\"\"),\"\")","v":4},{"$f":"IF('2007 Survey responses'!$B100>0,IF(AND('2011 Survey responses'!T96>0,'2007 Survey responses'!L100>0),'2011 Survey responses'!T96,\"\"),\"\")","v":5},4,null,null,{"$f":"IF(AND('2011 Survey responses'!$U96>0,'2007 Survey responses'!$M100>0),'2007 Survey responses'!$M100,\"\")","v":4},{"$f":"IF(AND('2011 Survey responses'!$U96>0,'2007 Survey responses'!$M100>0),'2011 Survey responses'!$U96,\"\")","v":5},4]
["Lesotho",{"$f":"IF(AND('2011 Survey responses'!$F97>0,'2007 Survey responses'!E101>0),'2007 Survey responses'!E101,\"\")","v":""},{"$f":"IF(AND('2011 Survey responses'!$F97>0,'2007 Survey responses'!E101>0),'2011 Survey responses'!$F97,\"\")","v":""},"",null,null,{"$f":"IF(AND('2011 Survey responses'!$G97>0,'2007 Survey responses'!$F101>0),'2007 Survey responses'!$F101,\"\")","v":""},{"$f":"IF(AND('2011 Survey responses'!$G97>0,'2007 Survey responses'!$F101>0),'2011 Survey responses'!$G97,\"\")","v":""},"",null,null,{"$f":"IF(AND('2011 Survey responses'!$H97>0,'2007 Survey responses'!$F101>0),'2007 Survey responses'!$F101,\"\")","v":""},{"$f":"IF(AND('2011 Survey responses'!$H97>0,'2007 Survey responses'!$F101>0),'2011 Survey responses'!$H97,\"\")","v":""},"",null,null,{"$f":"IF(AND(Question_grouping!O97>0,'2007 Survey responses'!$F101>0),'2007 Survey responses'!$F101,\"\")","v":""},{"$f":"IF(AND(Question_grouping!O97>0,'2007 Survey responses'!$F101>0),Question_grouping!O97,\"\")","v":""},"",null,null,{"$f":"IF(AND('2011 Survey responses'!$B97>0,'2007 Survey responses'!$C101>0),'2007 Survey responses'!$C101,\"\")","v":""},{"$f":"IF(AND('2011 Survey responses'!$B97>0,'2007 Survey responses'!$C101>0),'2011 Survey responses'!$B97,\"\")","v":""},"",null,null,{"$f":"IF(AND('2011 Survey responses'!$D97>0,'2007 Survey responses'!$D101>0),'2007 Survey responses'!$D101,\"\")","v":""},{"$f":"IF(AND('2011 Survey responses'!$D97>0,'2007 Survey responses'!$D101>0),'2011 Survey responses'!$D97,\"\")","v":""},"",null,null,{"$f":"IF(AND('2011 Survey responses'!$J97>0,'2007 Survey responses'!$H101>0),'2007 Survey responses'!$H101,\"\")","v":""},{"$f":"IF(AND('2011 Survey responses'!$J97>0,'2007 Survey responses'!$H101>0),'2011 Survey responses'!$J97,\"\")","v":""},"",null,null,{"$f":"IF(AND('2011 Survey responses'!$K97>0,'2007 Survey responses'!$J101>0),'2007 Survey responses'!$J101,\"\")","v":""},{"$f":"IF(AND('2011 Survey responses'!$K97>0,'2007 Survey responses'!$J101>0),'2011 Survey responses'!$K97,\"\")","v":""},"",null,null,{"$f":"IF(AND('2011 Survey responses'!$L97>0,'2007 Survey responses'!$I101>0),'2007 Survey responses'!$I101,\"\")","v":""},{"$f":"IF(AND('2011 Survey responses'!$L97>0,'2007 Survey responses'!$I101>0),'2011 Survey responses'!$L97,\"\")","v":""},"",null,null,{"$f":"IF(AND('2011 Survey responses'!$M97>0,'2007 Survey responses'!$K101>0),'2007 Survey responses'!$K101,\"\")","v":""},{"$f":"IF(AND('2011 Survey responses'!$M97>0,'2007 Survey responses'!$K101>0),'2011 Survey responses'!$M97,\"\")","v":""},"",null,null,{"$f":"IF('2007 Survey responses'!$B101>0,IF(AND('2011 Survey responses'!T97>0,'2007 Survey responses'!L101>0),'2007 Survey responses'!L101,\"\"),\"\")","v":""},{"$f":"IF('2007 Survey responses'!$B101>0,IF(AND('2011 Survey responses'!T97>0,'2007 Survey responses'!L101>0),'2011 Survey responses'!T97,\"\"),\"\")","v":""},"",null,null,{"$f":"IF(AND('2011 Survey responses'!$U97>0,'2007 Survey responses'!$M101>0),'2007 Survey responses'!$M101,\"\")","v":""},{"$f":"IF(AND('2011 Survey responses'!$U97>0,'2007 Survey responses'!$M101>0),'2011 Survey responses'!$U97,\"\")","v":""},""]
["Liberia",{"$f":"IF(AND('2011 Survey responses'!$F98>0,'2007 Survey responses'!E102>0),'2007 Survey responses'!E102,\"\")","v":4},{"$f":"IF(AND('2011 Survey responses'!$F98>0,'2007 Survey responses'!E102>0),'2011 Survey responses'!$F98,\"\")","v":2},2,null,null,{"$f":"IF(AND('2011 Survey responses'!$G98>0,'2007 Survey responses'!$F102>0),'2007 Survey responses'!$F102,\"\")","v":2},{"$f":"IF(AND('2011 Survey responses'!$G98>0,'2007 Survey responses'!$F102>0),'2011 Survey responses'!$G98,\"\")","v":1},1,null,null,{"$f":"IF(AND('2011 Survey responses'!$H98>0,'2007 Survey responses'!$F102>0),'2007 Survey responses'!$F102,\"\")","v":2},{"$f":"IF(AND('2011 Survey responses'!$H98>0,'2007 Survey responses'!$F102>0),'2011 Survey responses'!$H98,\"\")","v":2},2,null,null,{"$f":"IF(AND(Question_grouping!O98>0,'2007 Survey responses'!$F102>0),'2007 Survey responses'!$F102,\"\")","v":2},{"$f":"IF(AND(Question_grouping!O98>0,'2007 Survey responses'!$F102>0),Question_grouping!O98,\"\")","v":2},2,null,null,{"$f":"IF(AND('2011 Survey responses'!$B98>0,'2007 Survey responses'!$C102>0),'2007 Survey responses'!$C102,\"\")","v":""},{"$f":"IF(AND('2011 Survey responses'!$B98>0,'2007 Survey responses'!$C102>0),'2011 Survey responses'!$B98,\"\")","v":""},"",null,null,{"$f":"IF(AND('2011 Survey responses'!$D98>0,'2007 Survey responses'!$D102>0),'2007 Survey responses'!$D102,\"\")","v":""},{"$f":"IF(AND('2011 Survey responses'!$D98>0,'2007 Survey responses'!$D102>0),'2011 Survey responses'!$D98,\"\")","v":""},"",null,null,{"$f":"IF(AND('2011 Survey responses'!$J98>0,'2007 Survey responses'!$H102>0),'2007 Survey responses'!$H102,\"\")","v":4},{"$f":"IF(AND('2011 Survey responses'!$J98>0,'2007 Survey responses'!$H102>0),'2011 Survey responses'!$J98,\"\")","v":5},4,null,null,{"$f":"IF(AND('2011 Survey responses'!$K98>0,'2007 Survey responses'!$J102>0),'2007 Survey responses'!$J102,\"\")","v":""},{"$f":"IF(AND('2011 Survey responses'!$K98>0,'2007 Survey responses'!$J102>0),'2011 Survey responses'!$K98,\"\")","v":""},"",null,null,{"$f":"IF(AND('2011 Survey responses'!$L98>0,'2007 Survey responses'!$I102>0),'2007 Survey responses'!$I102,\"\")","v":4},{"$f":"IF(AND('2011 Survey responses'!$L98>0,'2007 Survey responses'!$I102>0),'2011 Survey responses'!$L98,\"\")","v":2},2,null,null,{"$f":"IF(AND('2011 Survey responses'!$M98>0,'2007 Survey responses'!$K102>0),'2007 Survey responses'!$K102,\"\")","v":4},{"$f":"IF(AND('2011 Survey responses'!$M98>0,'2007 Survey responses'!$K102>0),'2011 Survey responses'!$M98,\"\")","v":3},3,null,null,{"$f":"IF('2007 Survey responses'!$B102>0,IF(AND('2011 Survey responses'!T98>0,'2007 Survey responses'!L102>0),'2007 Survey responses'!L102,\"\"),\"\")","v":4},{"$f":"IF('2007 Survey responses'!$B102>0,IF(AND('2011 Survey responses'!T98>0,'2007 Survey responses'!L102>0),'2011 Survey responses'!T98,\"\"),\"\")","v":5},4,null,null,{"$f":"IF(AND('2011 Survey responses'!$U98>0,'2007 Survey responses'!$M102>0),'2007 Survey responses'!$M102,\"\")","v":""},{"$f":"IF(AND('2011 Survey responses'!$U98>0,'2007 Survey responses'!$M102>0),'2011 Survey responses'!$U98,\"\")","v":""},""]
["Libyan Arab Jamahiriya ",{"$f":"IF(AND('2011 Survey responses'!$F99>0,'2007 Survey responses'!E103>0),'2007 Survey responses'!E103,\"\")","v":3},{"$f":"IF(AND('2011 Survey responses'!$F99>0,'2007 Survey responses'!E103>0),'2011 Survey responses'!$F99,\"\")","v":6},{"$f":"IF(C98=0,\"\",IF(C98=6,5,IF(C98=5,4,C98)))","v":5},null,null,{"$f":"IF(AND('2011 Survey responses'!$G99>0,'2007 Survey responses'!$F103>0),'2007 Survey responses'!$F103,\"\")","v":2},{"$f":"IF(AND('2011 Survey responses'!$G99>0,'2007 Survey responses'!$F103>0),'2011 Survey responses'!$G99,\"\")","v":1},{"$f":"IF(H98=0,\"\",IF(H98=6,5,IF(H98=5,4,H98)))","v":1},null,null,{"$f":"IF(AND('2011 Survey responses'!$H99>0,'2007 Survey responses'!$F103>0),'2007 Survey responses'!$F103,\"\")","v":2},{"$f":"IF(AND('2011 Survey responses'!$H99>0,'2007 Survey responses'!$F103>0),'2011 Survey responses'!$H99,\"\")","v":4},4,null,null,{"$f":"IF(AND(Question_grouping!O99>0,'2007 Survey responses'!$F103>0),'2007 Survey responses'!$F103,\"\")","v":2},{"$f":"IF(AND(Question_grouping!O99>0,'2007 Survey responses'!$F103>0),Question_grouping!O99,\"\")","v":4},4,null,null,{"$f":"IF(AND('2011 Survey responses'!$B99>0,'2007 Survey responses'!$C103>0),'2007 Survey responses'!$C103,\"\")","v":2},{"$f":"IF(AND('2011 Survey responses'!$B99>0,'2007 Survey responses'!$C103>0),'2011 Survey responses'!$B99,\"\")","v":6},5,null,null,{"$f":"IF(AND('2011 Survey responses'!$D99>0,'2007 Survey responses'!$D103>0),'2007 Survey responses'!$D103,\"\")","v":2},{"$f":"IF(AND('2011 Survey responses'!$D99>0,'2007 Survey responses'!$D103>0),'2011 Survey responses'!$D99,\"\")","v":6},5,null,null,{"$f":"IF(AND('2011 Survey responses'!$J99>0,'2007 Survey responses'!$H103>0),'2007 Survey responses'!$H103,\"\")","v":3},{"$f":"IF(AND('2011 Survey responses'!$J99>0,'2007 Survey responses'!$H103>0),'2011 Survey responses'!$J99,\"\")","v":4},4,null,null,{"$f":"IF(AND('2011 Survey responses'!$K99>0,'2007 Survey responses'!$J103>0),'2007 Survey responses'!$J103,\"\")","v":3},{"$f":"IF(AND('2011 Survey responses'!$K99>0,'2007 Survey responses'!$J103>0),'2011 Survey responses'!$K99,\"\")","v":4},4,null,null,{"$f":"IF(AND('2011 Survey responses'!$L99>0,'2007 Survey responses'!$I103>0),'2007 Survey responses'!$I103,\"\")","v":3},{"$f":"IF(AND('2011 Survey responses'!$L99>0,'2007 Survey responses'!$I103>0),'2011 Survey responses'!$L99,\"\")","v":4},4,null,null,{"$f":"IF(AND('2011 Survey responses'!$M99>0,'2007 Survey responses'!$K103>0),'2007 Survey responses'!$K103,\"\")","v":""},{"$f":"IF(AND('2011 Survey responses'!$M99>0,'2007 Survey responses'!$K103>0),'2011 Survey responses'!$M99,\"\")","v":""},"",null,null,{"$f":"IF('2007 Survey responses'!$B103>0,IF(AND('2011 Survey responses'!T99>0,'2007 Survey responses'!L103>0),'2007 Survey responses'!L103,\"\"),\"\")","v":4},{"$f":"IF('2007 Survey responses'!$B103>0,IF(AND('2011 Survey responses'!T99>0,'2007 Survey responses'!L103>0),'2011 Survey responses'!T99,\"\"),\"\")","v":5},4,null,null,{"$f":"IF(AND('2011 Survey responses'!$U99>0,'2007 Survey responses'!$M103>0),'2007 Survey responses'!$M103,\"\")","v":2},{"$f":"IF(AND('2011 Survey responses'!$U99>0,'2007 Survey responses'!$M103>0),'2011 Survey responses'!$U99,\"\")","v":1},1]
["Liechtenstein",{"$f":"IF(AND('2011 Survey responses'!$F100>0,'2007 Survey responses'!E104>0),'2007 Survey responses'!E104,\"\")","v":""},{"$f":"IF(AND('2011 Survey responses'!$F100>0,'2007 Survey responses'!E104>0),'2011 Survey responses'!$F100,\"\")","v":""},"",null,null,{"$f":"IF(AND('2011 Survey responses'!$G100>0,'2007 Survey responses'!$F104>0),'2007 Survey responses'!$F104,\"\")","v":""},{"$f":"IF(AND('2011 Survey responses'!$G100>0,'2007 Survey responses'!$F104>0),'2011 Survey responses'!$G100,\"\")","v":""},"",null,null,{"$f":"IF(AND('2011 Survey responses'!$H100>0,'2007 Survey responses'!$F104>0),'2007 Survey responses'!$F104,\"\")","v":""},{"$f":"IF(AND('2011 Survey responses'!$H100>0,'2007 Survey responses'!$F104>0),'2011 Survey responses'!$H100,\"\")","v":""},"",null,null,{"$f":"IF(AND(Question_grouping!O100>0,'2007 Survey responses'!$F104>0),'2007 Survey responses'!$F104,\"\")","v":""},{"$f":"IF(AND(Question_grouping!O100>0,'2007 Survey responses'!$F104>0),Question_grouping!O100,\"\")","v":""},"",null,null,{"$f":"IF(AND('2011 Survey responses'!$B100>0,'2007 Survey responses'!$C104>0),'2007 Survey responses'!$C104,\"\")","v":""},{"$f":"IF(AND('2011 Survey responses'!$B100>0,'2007 Survey responses'!$C104>0),'2011 Survey responses'!$B100,\"\")","v":""},"",null,null,{"$f":"IF(AND('2011 Survey responses'!$D100>0,'2007 Survey responses'!$D104>0),'2007 Survey responses'!$D104,\"\")","v":""},{"$f":"IF(AND('2011 Survey responses'!$D100>0,'2007 Survey responses'!$D104>0),'2011 Survey responses'!$D100,\"\")","v":""},"",null,null,{"$f":"IF(AND('2011 Survey responses'!$J100>0,'2007 Survey responses'!$H104>0),'2007 Survey responses'!$H104,\"\")","v":""},{"$f":"IF(AND('2011 Survey responses'!$J100>0,'2007 Survey responses'!$H104>0),'2011 Survey responses'!$J100,\"\")","v":""},"",null,null,{"$f":"IF(AND('2011 Survey responses'!$K100>0,'2007 Survey responses'!$J104>0),'2007 Survey responses'!$J104,\"\")","v":""},{"$f":"IF(AND('2011 Survey responses'!$K100>0,'2007 Survey responses'!$J104>0),'2011 Survey responses'!$K100,\"\")","v":""},"",null,null,{"$f":"IF(AND('2011 Survey responses'!$L100>0,'2007 Survey responses'!$I104>0),'2007 Survey responses'!$I104,\"\")","v":""},{"$f":"IF(AND('2011 Survey responses'!$L100>0,'2007 Survey responses'!$I104>0),'2011 Survey responses'!$L100,\"\")","v":""},"",null,null,{"$f":"IF(AND('2011 Survey responses'!$M100>0,'2007 Survey responses'!$K104>0),'2007 Survey responses'!$K104,\"\")","v":""},{"$f":"IF(AND('2011 Survey responses'!$M100>0,'2007 Survey responses'!$K104>0),'2011 Survey responses'!$M100,\"\")","v":""},"",null,null,{"$f":"IF('2007 Survey responses'!$B104>0,IF(AND('2011 Survey responses'!T100>0,'2007 Survey responses'!L104>0),'2007 Survey responses'!L104,\"\"),\"\")","v":""},{"$f":"IF('2007 Survey responses'!$B104>0,IF(AND('2011 Survey responses'!T100>0,'2007 Survey responses'!L104>0),'2011 Survey responses'!T100,\"\"),\"\")","v":""},"",null,null,{"$f":"IF(AND('2011 Survey responses'!$U100>0,'2007 Survey responses'!$M104>0),'2007 Survey responses'!$M104,\"\")","v":""},{"$f":"IF(AND('2011 Survey responses'!$U100>0,'2007 Survey responses'!$M104>0),'2011 Survey responses'!$U100,\"\")","v":""},""]
["Lithuania",{"$f":"IF(AND('2011 Survey responses'!$F101>0,'2007 Survey responses'!E105>0),'2007 Survey responses'!E105,\"\")","v":""},{"$f":"IF(AND('2011 Survey responses'!$F101>0,'2007 Survey responses'!E105>0),'2011 Survey responses'!$F101,\"\")","v":""},"",null,null,{"$f":"IF(AND('2011 Survey responses'!$G101>0,'2007 Survey responses'!$F105>0),'2007 Survey responses'!$F105,\"\")","v":""},{"$f":"IF(AND('2011 Survey responses'!$G101>0,'2007 Survey responses'!$F105>0),'2011 Survey responses'!$G101,\"\")","v":""},"",null,null,{"$f":"IF(AND('2011 Survey responses'!$H101>0,'2007 Survey responses'!$F105>0),'2007 Survey responses'!$F105,\"\")","v":""},{"$f":"IF(AND('2011 Survey responses'!$H101>0,'2007 Survey responses'!$F105>0),'2011 Survey responses'!$H101,\"\")","v":""},"",null,null,{"$f":"IF(AND(Question_grouping!O101>0,'2007 Survey responses'!$F105>0),'2007 Survey responses'!$F105,\"\")","v":""},{"$f":"IF(AND(Question_grouping!O101>0,'2007 Survey responses'!$F105>0),Question_grouping!O101,\"\")","v":""},"",null,null,{"$f":"IF(AND('2011 Survey responses'!$B101>0,'2007 Survey responses'!$C105>0),'2007 Survey responses'!$C105,\"\")","v":""},{"$f":"IF(AND('2011 Survey responses'!$B101>0,'2007 Survey responses'!$C105>0),'2011 Survey responses'!$B101,\"\")","v":""},"",null,null,{"$f":"IF(AND('2011 Survey responses'!$D101>0,'2007 Survey responses'!$D105>0),'2007 Survey responses'!$D105,\"\")","v":""},{"$f":"IF(AND('2011 Survey responses'!$D101>0,'2007 Survey responses'!$D105>0),'2011 Survey responses'!$D101,\"\")","v":""},"",null,null,{"$f":"IF(AND('2011 Survey responses'!$J101>0,'2007 Survey responses'!$H105>0),'2007 Survey responses'!$H105,\"\")","v":""},{"$f":"IF(AND('2011 Survey responses'!$J101>0,'2007 Survey responses'!$H105>0),'2011 Survey responses'!$J101,\"\")","v":""},"",null,null,{"$f":"IF(AND('2011 Survey responses'!$K101>0,'2007 Survey responses'!$J105>0),'2007 Survey responses'!$J105,\"\")","v":""},{"$f":"IF(AND('2011 Survey responses'!$K101>0,'2007 Survey responses'!$J105>0),'2011 Survey responses'!$K101,\"\")","v":""},"",null,null,{"$f":"IF(AND('2011 Survey responses'!$L101>0,'2007 Survey responses'!$I105>0),'2007 Survey responses'!$I105,\"\")","v":""},{"$f":"IF(AND('2011 Survey responses'!$L101>0,'2007 Survey responses'!$I105>0),'2011 Survey responses'!$L101,\"\")","v":""},"",null,null,{"$f":"IF(AND('2011 Survey responses'!$M101>0,'2007 Survey responses'!$K105>0),'2007 Survey responses'!$K105,\"\")","v":""},{"$f":"IF(AND('2011 Survey responses'!$M101>0,'2007 Survey responses'!$K105>0),'2011 Survey responses'!$M101,\"\")","v":""},"",null,null,{"$f":"IF('2007 Survey responses'!$B105>0,IF(AND('2011 Survey responses'!T101>0,'2007 Survey responses'!L105>0),'2007 Survey responses'!L105,\"\"),\"\")","v":""},{"$f":"IF('2007 Survey responses'!$B105>0,IF(AND('2011 Survey responses'!T101>0,'2007 Survey responses'!L105>0),'2011 Survey responses'!T101,\"\"),\"\")","v":""},"",null,null,{"$f":"IF(AND('2011 Survey responses'!$U101>0,'2007 Survey responses'!$M105>0),'2007 Survey responses'!$M105,\"\")","v":""},{"$f":"IF(AND('2011 Survey responses'!$U101>0,'2007 Survey responses'!$M105>0),'2011 Survey responses'!$U101,\"\")","v":""},""]
["Luxembourg",{"$f":"IF(AND('2011 Survey responses'!$F102>0,'2007 Survey responses'!E106>0),'2007 Survey responses'!E106,\"\")","v":""},{"$f":"IF(AND('2011 Survey responses'!$F102>0,'2007 Survey responses'!E106>0),'2011 Survey responses'!$F102,\"\")","v":""},"",null,null,{"$f":"IF(AND('2011 Survey responses'!$G102>0,'2007 Survey responses'!$F106>0),'2007 Survey responses'!$F106,\"\")","v":""},{"$f":"IF(AND('2011 Survey responses'!$G102>0,'2007 Survey responses'!$F106>0),'2011 Survey responses'!$G102,\"\")","v":""},"",null,null,{"$f":"IF(AND('2011 Survey responses'!$H102>0,'2007 Survey responses'!$F106>0),'2007 Survey responses'!$F106,\"\")","v":""},{"$f":"IF(AND('2011 Survey responses'!$H102>0,'2007 Survey responses'!$F106>0),'2011 Survey responses'!$H102,\"\")","v":""},"",null,null,{"$f":"IF(AND(Question_grouping!O102>0,'2007 Survey responses'!$F106>0),'2007 Survey responses'!$F106,\"\")","v":""},{"$f":"IF(AND(Question_grouping!O102>0,'2007 Survey responses'!$F106>0),Question_grouping!O102,\"\")","v":""},"",null,null,{"$f":"IF(AND('2011 Survey responses'!$B102>0,'2007 Survey responses'!$C106>0),'2007 Survey responses'!$C106,\"\")","v":""},{"$f":"IF(AND('2011 Survey responses'!$B102>0,'2007 Survey responses'!$C106>0),'2011 Survey responses'!$B102,\"\")","v":""},"",null,null,{"$f":"IF(AND('2011 Survey responses'!$D102>0,'2007 Survey responses'!$D106>0),'2007 Survey responses'!$D106,\"\")","v":""},{"$f":"IF(AND('2011 Survey responses'!$D102>0,'2007 Survey responses'!$D106>0),'2011 Survey responses'!$D102,\"\")","v":""},"",null,null,{"$f":"IF(AND('2011 Survey responses'!$J102>0,'2007 Survey responses'!$H106>0),'2007 Survey responses'!$H106,\"\")","v":""},{"$f":"IF(AND('2011 Survey responses'!$J102>0,'2007 Survey responses'!$H106>0),'2011 Survey responses'!$J102,\"\")","v":""},"",null,null,{"$f":"IF(AND('2011 Survey responses'!$K102>0,'2007 Survey responses'!$J106>0),'2007 Survey responses'!$J106,\"\")","v":""},{"$f":"IF(AND('2011 Survey responses'!$K102>0,'2007 Survey responses'!$J106>0),'2011 Survey responses'!$K102,\"\")","v":""},"",null,null,{"$f":"IF(AND('2011 Survey responses'!$L102>0,'2007 Survey responses'!$I106>0),'2007 Survey responses'!$I106,\"\")","v":""},{"$f":"IF(AND('2011 Survey responses'!$L102>0,'2007 Survey responses'!$I106>0),'2011 Survey responses'!$L102,\"\")","v":""},"",null,null,{"$f":"IF(AND('2011 Survey responses'!$M102>0,'2007 Survey responses'!$K106>0),'2007 Survey responses'!$K106,\"\")","v":""},{"$f":"IF(AND('2011 Survey responses'!$M102>0,'2007 Survey responses'!$K106>0),'2011 Survey responses'!$M102,\"\")","v":""},"",null,null,{"$f":"IF('2007 Survey responses'!$B106>0,IF(AND('2011 Survey responses'!T102>0,'2007 Survey responses'!L106>0),'2007 Survey responses'!L106,\"\"),\"\")","v":""},{"$f":"IF('2007 Survey responses'!$B106>0,IF(AND('2011 Survey responses'!T102>0,'2007 Survey responses'!L106>0),'2011 Survey responses'!T102,\"\"),\"\")","v":""},"",null,null,{"$f":"IF(AND('2011 Survey responses'!$U102>0,'2007 Survey responses'!$M106>0),'2007 Survey responses'!$M106,\"\")","v":""},{"$f":"IF(AND('2011 Survey responses'!$U102>0,'2007 Survey responses'!$M106>0),'2011 Survey responses'!$U102,\"\")","v":""},""]
["Madagascar",{"$f":"IF(AND('2011 Survey responses'!$F103>0,'2007 Survey responses'!E107>0),'2007 Survey responses'!E107,\"\")","v":""},{"$f":"IF(AND('2011 Survey responses'!$F103>0,'2007 Survey responses'!E107>0),'2011 Survey responses'!$F103,\"\")","v":""},"",null,null,{"$f":"IF(AND('2011 Survey responses'!$G103>0,'2007 Survey responses'!$F107>0),'2007 Survey responses'!$F107,\"\")","v":""},{"$f":"IF(AND('2011 Survey responses'!$G103>0,'2007 Survey responses'!$F107>0),'2011 Survey responses'!$G103,\"\")","v":""},"",null,null,{"$f":"IF(AND('2011 Survey responses'!$H103>0,'2007 Survey responses'!$F107>0),'2007 Survey responses'!$F107,\"\")","v":""},{"$f":"IF(AND('2011 Survey responses'!$H103>0,'2007 Survey responses'!$F107>0),'2011 Survey responses'!$H103,\"\")","v":""},"",null,null,{"$f":"IF(AND(Question_grouping!O103>0,'2007 Survey responses'!$F107>0),'2007 Survey responses'!$F107,\"\")","v":""},{"$f":"IF(AND(Question_grouping!O103>0,'2007 Survey responses'!$F107>0),Question_grouping!O103,\"\")","v":""},"",null,null,{"$f":"IF(AND('2011 Survey responses'!$B103>0,'2007 Survey responses'!$C107>0),'2007 Survey responses'!$C107,\"\")","v":""},{"$f":"IF(AND('2011 Survey responses'!$B103>0,'2007 Survey responses'!$C107>0),'2011 Survey responses'!$B103,\"\")","v":""},"",null,null,{"$f":"IF(AND('2011 Survey responses'!$D103>0,'2007 Survey responses'!$D107>0),'2007 Survey responses'!$D107,\"\")","v":""},{"$f":"IF(AND('2011 Survey responses'!$D103>0,'2007 Survey responses'!$D107>0),'2011 Survey responses'!$D103,\"\")","v":""},"",null,null,{"$f":"IF(AND('2011 Survey responses'!$J103>0,'2007 Survey responses'!$H107>0),'2007 Survey responses'!$H107,\"\")","v":""},{"$f":"IF(AND('2011 Survey responses'!$J103>0,'2007 Survey responses'!$H107>0),'2011 Survey responses'!$J103,\"\")","v":""},"",null,null,{"$f":"IF(AND('2011 Survey responses'!$K103>0,'2007 Survey responses'!$J107>0),'2007 Survey responses'!$J107,\"\")","v":""},{"$f":"IF(AND('2011 Survey responses'!$K103>0,'2007 Survey responses'!$J107>0),'2011 Survey responses'!$K103,\"\")","v":""},"",null,null,{"$f":"IF(AND('2011 Survey responses'!$L103>0,'2007 Survey responses'!$I107>0),'2007 Survey responses'!$I107,\"\")","v":""},{"$f":"IF(AND('2011 Survey responses'!$L103>0,'2007 Survey responses'!$I107>0),'2011 Survey responses'!$L103,\"\")","v":""},"",null,null,{"$f":"IF(AND('2011 Survey responses'!$M103>0,'2007 Survey responses'!$K107>0),'2007 Survey responses'!$K107,\"\")","v":""},{"$f":"IF(AND('2011 Survey responses'!$M103>0,'2007 Survey responses'!$K107>0),'2011 Survey responses'!$M103,\"\")","v":""},"",null,null,{"$f":"IF('2007 Survey responses'!$B107>0,IF(AND('2011 Survey responses'!T103>0,'2007 Survey responses'!L107>0),'2007 Survey responses'!L107,\"\"),\"\")","v":""},{"$f":"IF('2007 Survey responses'!$B107>0,IF(AND('2011 Survey responses'!T103>0,'2007 Survey responses'!L107>0),'2011 Survey responses'!T103,\"\"),\"\")","v":""},"",null,null,{"$f":"IF(AND('2011 Survey responses'!$U103>0,'2007 Survey responses'!$M107>0),'2007 Survey responses'!$M107,\"\")","v":""},{"$f":"IF(AND('2011 Survey responses'!$U103>0,'2007 Survey responses'!$M107>0),'2011 Survey responses'!$U103,\"\")","v":""},""]
["Malawi",{"$f":"IF(AND('2011 Survey responses'!$F104>0,'2007 Survey responses'!E108>0),'2007 Survey responses'!E108,\"\")","v":""},{"$f":"IF(AND('2011 Survey responses'!$F104>0,'2007 Survey responses'!E108>0),'2011 Survey responses'!$F104,\"\")","v":""},"",null,null,{"$f":"IF(AND('2011 Survey responses'!$G104>0,'2007 Survey responses'!$F108>0),'2007 Survey responses'!$F108,\"\")","v":""},{"$f":"IF(AND('2011 Survey responses'!$G104>0,'2007 Survey responses'!$F108>0),'2011 Survey responses'!$G104,\"\")","v":""},"",null,null,{"$f":"IF(AND('2011 Survey responses'!$H104>0,'2007 Survey responses'!$F108>0),'2007 Survey responses'!$F108,\"\")","v":""},{"$f":"IF(AND('2011 Survey responses'!$H104>0,'2007 Survey responses'!$F108>0),'2011 Survey responses'!$H104,\"\")","v":""},"",null,null,{"$f":"IF(AND(Question_grouping!O104>0,'2007 Survey responses'!$F108>0),'2007 Survey responses'!$F108,\"\")","v":""},{"$f":"IF(AND(Question_grouping!O104>0,'2007 Survey responses'!$F108>0),Question_grouping!O104,\"\")","v":""},"",null,null,{"$f":"IF(AND('2011 Survey responses'!$B104>0,'2007 Survey responses'!$C108>0),'2007 Survey responses'!$C108,\"\")","v":""},{"$f":"IF(AND('2011 Survey responses'!$B104>0,'2007 Survey responses'!$C108>0),'2011 Survey responses'!$B104,\"\")","v":""},"",null,null,{"$f":"IF(AND('2011 Survey responses'!$D104>0,'2007 Survey responses'!$D108>0),'2007 Survey responses'!$D108,\"\")","v":""},{"$f":"IF(AND('2011 Survey responses'!$D104>0,'2007 Survey responses'!$D108>0),'2011 Survey responses'!$D104,\"\")","v":""},"",null,null,{"$f":"IF(AND('2011 Survey responses'!$J104>0,'2007 Survey responses'!$H108>0),'2007 Survey responses'!$H108,\"\")","v":""},{"$f":"IF(AND('2011 Survey responses'!$J104>0,'2007 Survey responses'!$H108>0),'2011 Survey responses'!$J104,\"\")","v":""},"",null,null,{"$f":"IF(AND('2011 Survey responses'!$K104>0,'2007 Survey responses'!$J108>0),'2007 Survey responses'!$J108,\"\")","v":""},{"$f":"IF(AND('2011 Survey responses'!$K104>0,'2007 Survey responses'!$J108>0),'2011 Survey responses'!$K104,\"\")","v":""},"",null,null,{"$f":"IF(AND('2011 Survey responses'!$L104>0,'2007 Survey responses'!$I108>0),'2007 Survey responses'!$I108,\"\")","v":""},{"$f":"IF(AND('2011 Survey responses'!$L104>0,'2007 Survey responses'!$I108>0),'2011 Survey responses'!$L104,\"\")","v":""},"",null,null,{"$f":"IF(AND('2011 Survey responses'!$M104>0,'2007 Survey responses'!$K108>0),'2007 Survey responses'!$K108,\"\")","v":""},{"$f":"IF(AND('2011 Survey responses'!$M104>0,'2007 Survey responses'!$K108>0),'2011 Survey responses'!$M104,\"\")","v":""},"",null,null,{"$f":"IF('2007 Survey responses'!$B108>0,IF(AND('2011 Survey responses'!T104>0,'2007 Survey responses'!L108>0),'2007 Survey responses'!L108,\"\"),\"\")","v":""},{"$f":"IF('2007 Survey responses'!$B108>0,IF(AND('2011 Survey responses'!T104>0,'2007 Survey responses'!L108>0),'2011 Survey responses'!T104,\"\"),\"\")","v":""},"",null,null,{"$f":"IF(AND('2011 Survey responses'!$U104>0,'2007 Survey responses'!$M108>0),'2007 Survey responses'!$M108,\"\")","v":""},{"$f":"IF(AND('2011 Survey responses'!$U104>0,'2007 Survey responses'!$M108>0),'2011 Survey responses'!$U104,\"\")","v":""},""]
["Malaysia",{"$f":"IF(AND('2011 Survey responses'!$F105>0,'2007 Survey responses'!E109>0),'2007 Survey responses'!E109,\"\")","v":""},{"$f":"IF(AND('2011 Survey responses'!$F105>0,'2007 Survey responses'!E109>0),'2011 Survey responses'!$F105,\"\")","v":""},"",null,null,{"$f":"IF(AND('2011 Survey responses'!$G105>0,'2007 Survey responses'!$F109>0),'2007 Survey responses'!$F109,\"\")","v":""},{"$f":"IF(AND('2011 Survey responses'!$G105>0,'2007 Survey responses'!$F109>0),'2011 Survey responses'!$G105,\"\")","v":""},"",null,null,{"$f":"IF(AND('2011 Survey responses'!$H105>0,'2007 Survey responses'!$F109>0),'2007 Survey responses'!$F109,\"\")","v":""},{"$f":"IF(AND('2011 Survey responses'!$H105>0,'2007 Survey responses'!$F109>0),'2011 Survey responses'!$H105,\"\")","v":""},"",null,null,{"$f":"IF(AND(Question_grouping!O105>0,'2007 Survey responses'!$F109>0),'2007 Survey responses'!$F109,\"\")","v":""},{"$f":"IF(AND(Question_grouping!O105>0,'2007 Survey responses'!$F109>0),Question_grouping!O105,\"\")","v":""},"",null,null,{"$f":"IF(AND('2011 Survey responses'!$B105>0,'2007 Survey responses'!$C109>0),'2007 Survey responses'!$C109,\"\")","v":""},{"$f":"IF(AND('2011 Survey responses'!$B105>0,'2007 Survey responses'!$C109>0),'2011 Survey responses'!$B105,\"\")","v":""},"",null,null,{"$f":"IF(AND('2011 Survey responses'!$D105>0,'2007 Survey responses'!$D109>0),'2007 Survey responses'!$D109,\"\")","v":""},{"$f":"IF(AND('2011 Survey responses'!$D105>0,'2007 Survey responses'!$D109>0),'2011 Survey responses'!$D105,\"\")","v":""},"",null,null,{"$f":"IF(AND('2011 Survey responses'!$J105>0,'2007 Survey responses'!$H109>0),'2007 Survey responses'!$H109,\"\")","v":""},{"$f":"IF(AND('2011 Survey responses'!$J105>0,'2007 Survey responses'!$H109>0),'2011 Survey responses'!$J105,\"\")","v":""},"",null,null,{"$f":"IF(AND('2011 Survey responses'!$K105>0,'2007 Survey responses'!$J109>0),'2007 Survey responses'!$J109,\"\")","v":""},{"$f":"IF(AND('2011 Survey responses'!$K105>0,'2007 Survey responses'!$J109>0),'2011 Survey responses'!$K105,\"\")","v":""},"",null,null,{"$f":"IF(AND('2011 Survey responses'!$L105>0,'2007 Survey responses'!$I109>0),'2007 Survey responses'!$I109,\"\")","v":""},{"$f":"IF(AND('2011 Survey responses'!$L105>0,'2007 Survey responses'!$I109>0),'2011 Survey responses'!$L105,\"\")","v":""},"",null,null,{"$f":"IF(AND('2011 Survey responses'!$M105>0,'2007 Survey responses'!$K109>0),'2007 Survey responses'!$K109,\"\")","v":""},{"$f":"IF(AND('2011 Survey responses'!$M105>0,'2007 Survey responses'!$K109>0),'2011 Survey responses'!$M105,\"\")","v":""},"",null,null,{"$f":"IF('2007 Survey responses'!$B109>0,IF(AND('2011 Survey responses'!T105>0,'2007 Survey responses'!L109>0),'2007 Survey responses'!L109,\"\"),\"\")","v":""},{"$f":"IF('2007 Survey responses'!$B109>0,IF(AND('2011 Survey responses'!T105>0,'2007 Survey responses'!L109>0),'2011 Survey responses'!T105,\"\"),\"\")","v":""},"",null,null,{"$f":"IF(AND('2011 Survey responses'!$U105>0,'2007 Survey responses'!$M109>0),'2007 Survey responses'!$M109,\"\")","v":""},{"$f":"IF(AND('2011 Survey responses'!$U105>0,'2007 Survey responses'!$M109>0),'2011 Survey responses'!$U105,\"\")","v":""},""]
["Maldives",{"$f":"IF(AND('2011 Survey responses'!$F106>0,'2007 Survey responses'!E110>0),'2007 Survey responses'!E110,\"\")","v":""},{"$f":"IF(AND('2011 Survey responses'!$F106>0,'2007 Survey responses'!E110>0),'2011 Survey responses'!$F106,\"\")","v":""},"",null,null,{"$f":"IF(AND('2011 Survey responses'!$G106>0,'2007 Survey responses'!$F110>0),'2007 Survey responses'!$F110,\"\")","v":""},{"$f":"IF(AND('2011 Survey responses'!$G106>0,'2007 Survey responses'!$F110>0),'2011 Survey responses'!$G106,\"\")","v":""},"",null,null,{"$f":"IF(AND('2011 Survey responses'!$H106>0,'2007 Survey responses'!$F110>0),'2007 Survey responses'!$F110,\"\")","v":""},{"$f":"IF(AND('2011 Survey responses'!$H106>0,'2007 Survey responses'!$F110>0),'2011 Survey responses'!$H106,\"\")","v":""},"",null,null,{"$f":"IF(AND(Question_grouping!O106>0,'2007 Survey responses'!$F110>0),'2007 Survey responses'!$F110,\"\")","v":2},{"$f":"IF(AND(Question_grouping!O106>0,'2007 Survey responses'!$F110>0),Question_grouping!O106,\"\")","v":""},"",null,null,{"$f":"IF(AND('2011 Survey responses'!$B106>0,'2007 Survey responses'!$C110>0),'2007 Survey responses'!$C110,\"\")","v":""},{"$f":"IF(AND('2011 Survey responses'!$B106>0,'2007 Survey responses'!$C110>0),'2011 Survey responses'!$B106,\"\")","v":""},"",null,null,{"$f":"IF(AND('2011 Survey responses'!$D106>0,'2007 Survey responses'!$D110>0),'2007 Survey responses'!$D110,\"\")","v":""},{"$f":"IF(AND('2011 Survey responses'!$D106>0,'2007 Survey responses'!$D110>0),'2011 Survey responses'!$D106,\"\")","v":""},"",null,null,{"$f":"IF(AND('2011 Survey responses'!$J106>0,'2007 Survey responses'!$H110>0),'2007 Survey responses'!$H110,\"\")","v":""},{"$f":"IF(AND('2011 Survey responses'!$J106>0,'2007 Survey responses'!$H110>0),'2011 Survey responses'!$J106,\"\")","v":""},"",null,null,{"$f":"IF(AND('2011 Survey responses'!$K106>0,'2007 Survey responses'!$J110>0),'2007 Survey responses'!$J110,\"\")","v":""},{"$f":"IF(AND('2011 Survey responses'!$K106>0,'2007 Survey responses'!$J110>0),'2011 Survey responses'!$K106,\"\")","v":""},"",null,null,{"$f":"IF(AND('2011 Survey responses'!$L106>0,'2007 Survey responses'!$I110>0),'2007 Survey responses'!$I110,\"\")","v":""},{"$f":"IF(AND('2011 Survey responses'!$L106>0,'2007 Survey responses'!$I110>0),'2011 Survey responses'!$L106,\"\")","v":""},"",null,null,{"$f":"IF(AND('2011 Survey responses'!$M106>0,'2007 Survey responses'!$K110>0),'2007 Survey responses'!$K110,\"\")","v":""},{"$f":"IF(AND('2011 Survey responses'!$M106>0,'2007 Survey responses'!$K110>0),'2011 Survey responses'!$M106,\"\")","v":""},"",null,null,{"$f":"IF('2007 Survey responses'!$B110>0,IF(AND('2011 Survey responses'!T106>0,'2007 Survey responses'!L110>0),'2007 Survey responses'!L110,\"\"),\"\")","v":""},{"$f":"IF('2007 Survey responses'!$B110>0,IF(AND('2011 Survey responses'!T106>0,'2007 Survey responses'!L110>0),'2011 Survey responses'!T106,\"\"),\"\")","v":""},"",null,null,{"$f":"IF(AND('2011 Survey responses'!$U106>0,'2007 Survey responses'!$M110>0),'2007 Survey responses'!$M110,\"\")","v":""},{"$f":"IF(AND('2011 Survey responses'!$U106>0,'2007 Survey responses'!$M110>0),'2011 Survey responses'!$U106,\"\")","v":""},""]
["Mali",{"$f":"IF(AND('2011 Survey responses'!$F107>0,'2007 Survey responses'!E111>0),'2007 Survey responses'!E111,\"\")","v":""},{"$f":"IF(AND('2011 Survey responses'!$F107>0,'2007 Survey responses'!E111>0),'2011 Survey responses'!$F107,\"\")","v":""},"",null,null,{"$f":"IF(AND('2011 Survey responses'!$G107>0,'2007 Survey responses'!$F111>0),'2007 Survey responses'!$F111,\"\")","v":""},{"$f":"IF(AND('2011 Survey responses'!$G107>0,'2007 Survey responses'!$F111>0),'2011 Survey responses'!$G107,\"\")","v":""},"",null,null,{"$f":"IF(AND('2011 Survey responses'!$H107>0,'2007 Survey responses'!$F111>0),'2007 Survey responses'!$F111,\"\")","v":""},{"$f":"IF(AND('2011 Survey responses'!$H107>0,'2007 Survey responses'!$F111>0),'2011 Survey responses'!$H107,\"\")","v":""},"",null,null,{"$f":"IF(AND(Question_grouping!O107>0,'2007 Survey responses'!$F111>0),'2007 Survey responses'!$F111,\"\")","v":""},{"$f":"IF(AND(Question_grouping!O107>0,'2007 Survey responses'!$F111>0),Question_grouping!O107,\"\")","v":""},"",null,null,{"$f":"IF(AND('2011 Survey responses'!$B107>0,'2007 Survey responses'!$C111>0),'2007 Survey responses'!$C111,\"\")","v":""},{"$f":"IF(AND('2011 Survey responses'!$B107>0,'2007 Survey responses'!$C111>0),'2011 Survey responses'!$B107,\"\")","v":""},"",null,null,{"$f":"IF(AND('2011 Survey responses'!$D107>0,'2007 Survey responses'!$D111>0),'2007 Survey responses'!$D111,\"\")","v":""},{"$f":"IF(AND('2011 Survey responses'!$D107>0,'2007 Survey responses'!$D111>0),'2011 Survey responses'!$D107,\"\")","v":""},"",null,null,{"$f":"IF(AND('2011 Survey responses'!$J107>0,'2007 Survey responses'!$H111>0),'2007 Survey responses'!$H111,\"\")","v":""},{"$f":"IF(AND('2011 Survey responses'!$J107>0,'2007 Survey responses'!$H111>0),'2011 Survey responses'!$J107,\"\")","v":""},"",null,null,{"$f":"IF(AND('2011 Survey responses'!$K107>0,'2007 Survey responses'!$J111>0),'2007 Survey responses'!$J111,\"\")","v":""},{"$f":"IF(AND('2011 Survey responses'!$K107>0,'2007 Survey responses'!$J111>0),'2011 Survey responses'!$K107,\"\")","v":""},"",null,null,{"$f":"IF(AND('2011 Survey responses'!$L107>0,'2007 Survey responses'!$I111>0),'2007 Survey responses'!$I111,\"\")","v":""},{"$f":"IF(AND('2011 Survey responses'!$L107>0,'2007 Survey responses'!$I111>0),'2011 Survey responses'!$L107,\"\")","v":""},"",null,null,{"$f":"IF(AND('2011 Survey responses'!$M107>0,'2007 Survey responses'!$K111>0),'2007 Survey responses'!$K111,\"\")","v":""},{"$f":"IF(AND('2011 Survey responses'!$M107>0,'2007 Survey responses'!$K111>0),'2011 Survey responses'!$M107,\"\")","v":""},"",null,null,{"$f":"IF('2007 Survey responses'!$B111>0,IF(AND('2011 Survey responses'!T107>0,'2007 Survey responses'!L111>0),'2007 Survey responses'!L111,\"\"),\"\")","v":""},{"$f":"IF('2007 Survey responses'!$B111>0,IF(AND('2011 Survey responses'!T107>0,'2007 Survey responses'!L111>0),'2011 Survey responses'!T107,\"\"),\"\")","v":""},"",null,null,{"$f":"IF(AND('2011 Survey responses'!$U107>0,'2007 Survey responses'!$M111>0),'2007 Survey responses'!$M111,\"\")","v":""},{"$f":"IF(AND('2011 Survey responses'!$U107>0,'2007 Survey responses'!$M111>0),'2011 Survey responses'!$U107,\"\")","v":""},""]
["Malta",{"$f":"IF(AND('2011 Survey responses'!$F108>0,'2007 Survey responses'!E112>0),'2007 Survey responses'!E112,\"\")","v":""},{"$f":"IF(AND('2011 Survey responses'!$F108>0,'2007 Survey responses'!E112>0),'2011 Survey responses'!$F108,\"\")","v":""},"",null,null,{"$f":"IF(AND('2011 Survey responses'!$G108>0,'2007 Survey responses'!$F112>0),'2007 Survey responses'!$F112,\"\")","v":""},{"$f":"IF(AND('2011 Survey responses'!$G108>0,'2007 Survey responses'!$F112>0),'2011 Survey responses'!$G108,\"\")","v":""},"",null,null,{"$f":"IF(AND('2011 Survey responses'!$H108>0,'2007 Survey responses'!$F112>0),'2007 Survey responses'!$F112,\"\")","v":""},{"$f":"IF(AND('2011 Survey responses'!$H108>0,'2007 Survey responses'!$F112>0),'2011 Survey responses'!$H108,\"\")","v":""},"",null,null,{"$f":"IF(AND(Question_grouping!O108>0,'2007 Survey responses'!$F112>0),'2007 Survey responses'!$F112,\"\")","v":""},{"$f":"IF(AND(Question_grouping!O108>0,'2007 Survey responses'!$F112>0),Question_grouping!O108,\"\")","v":""},"",null,null,{"$f":"IF(AND('2011 Survey responses'!$B108>0,'2007 Survey responses'!$C112>0),'2007 Survey responses'!$C112,\"\")","v":""},{"$f":"IF(AND('2011 Survey responses'!$B108>0,'2007 Survey responses'!$C112>0),'2011 Survey responses'!$B108,\"\")","v":""},"",null,null,{"$f":"IF(AND('2011 Survey responses'!$D108>0,'2007 Survey responses'!$D112>0),'2007 Survey responses'!$D112,\"\")","v":""},{"$f":"IF(AND('2011 Survey responses'!$D108>0,'2007 Survey responses'!$D112>0),'2011 Survey responses'!$D108,\"\")","v":""},"",null,null,{"$f":"IF(AND('2011 Survey responses'!$J108>0,'2007 Survey responses'!$H112>0),'2007 Survey responses'!$H112,\"\")","v":""},{"$f":"IF(AND('2011 Survey responses'!$J108>0,'2007 Survey responses'!$H112>0),'2011 Survey responses'!$J108,\"\")","v":""},"",null,null,{"$f":"IF(AND('2011 Survey responses'!$K108>0,'2007 Survey responses'!$J112>0),'2007 Survey responses'!$J112,\"\")","v":""},{"$f":"IF(AND('2011 Survey responses'!$K108>0,'2007 Survey responses'!$J112>0),'2011 Survey responses'!$K108,\"\")","v":""},"",null,null,{"$f":"IF(AND('2011 Survey responses'!$L108>0,'2007 Survey responses'!$I112>0),'2007 Survey responses'!$I112,\"\")","v":""},{"$f":"IF(AND('2011 Survey responses'!$L108>0,'2007 Survey responses'!$I112>0),'2011 Survey responses'!$L108,\"\")","v":""},"",null,null,{"$f":"IF(AND('2011 Survey responses'!$M108>0,'2007 Survey responses'!$K112>0),'2007 Survey responses'!$K112,\"\")","v":""},{"$f":"IF(AND('2011 Survey responses'!$M108>0,'2007 Survey responses'!$K112>0),'2011 Survey responses'!$M108,\"\")","v":""},"",null,null,{"$f":"IF('2007 Survey responses'!$B112>0,IF(AND('2011 Survey responses'!T108>0,'2007 Survey responses'!L112>0),'2007 Survey responses'!L112,\"\"),\"\")","v":""},{"$f":"IF('2007 Survey responses'!$B112>0,IF(AND('2011 Survey responses'!T108>0,'2007 Survey responses'!L112>0),'2011 Survey responses'!T108,\"\"),\"\")","v":""},"",null,null,{"$f":"IF(AND('2011 Survey responses'!$U108>0,'2007 Survey responses'!$M112>0),'2007 Survey responses'!$M112,\"\")","v":""},{"$f":"IF(AND('2011 Survey responses'!$U108>0,'2007 Survey responses'!$M112>0),'2011 Survey responses'!$U108,\"\")","v":""},""]
["Marshall Islands",{"$f":"IF(AND('2011 Survey responses'!$F109>0,'2007 Survey responses'!E113>0),'2007 Survey responses'!E113,\"\")","v":""},{"$f":"IF(AND('2011 Survey responses'!$F109>0,'2007 Survey responses'!E113>0),'2011 Survey responses'!$F109,\"\")","v":""},"",null,null,{"$f":"IF(AND('2011 Survey responses'!$G109>0,'2007 Survey responses'!$F113>0),'2007 Survey responses'!$F113,\"\")","v":""},{"$f":"IF(AND('2011 Survey responses'!$G109>0,'2007 Survey responses'!$F113>0),'2011 Survey responses'!$G109,\"\")","v":""},"",null,null,{"$f":"IF(AND('2011 Survey responses'!$H109>0,'2007 Survey responses'!$F113>0),'2007 Survey responses'!$F113,\"\")","v":""},{"$f":"IF(AND('2011 Survey responses'!$H109>0,'2007 Survey responses'!$F113>0),'2011 Survey responses'!$H109,\"\")","v":""},"",null,null,{"$f":"IF(AND(Question_grouping!O109>0,'2007 Survey responses'!$F113>0),'2007 Survey responses'!$F113,\"\")","v":""},{"$f":"IF(AND(Question_grouping!O109>0,'2007 Survey responses'!$F113>0),Question_grouping!O109,\"\")","v":""},"",null,null,{"$f":"IF(AND('2011 Survey responses'!$B109>0,'2007 Survey responses'!$C113>0),'2007 Survey responses'!$C113,\"\")","v":""},{"$f":"IF(AND('2011 Survey responses'!$B109>0,'2007 Survey responses'!$C113>0),'2011 Survey responses'!$B109,\"\")","v":""},"",null,null,{"$f":"IF(AND('2011 Survey responses'!$D109>0,'2007 Survey responses'!$D113>0),'2007 Survey responses'!$D113,\"\")","v":""},{"$f":"IF(AND('2011 Survey responses'!$D109>0,'2007 Survey responses'!$D113>0),'2011 Survey responses'!$D109,\"\")","v":""},"",null,null,{"$f":"IF(AND('2011 Survey responses'!$J109>0,'2007 Survey responses'!$H113>0),'2007 Survey responses'!$H113,\"\")","v":""},{"$f":"IF(AND('2011 Survey responses'!$J109>0,'2007 Survey responses'!$H113>0),'2011 Survey responses'!$J109,\"\")","v":""},"",null,null,{"$f":"IF(AND('2011 Survey responses'!$K109>0,'2007 Survey responses'!$J113>0),'2007 Survey responses'!$J113,\"\")","v":""},{"$f":"IF(AND('2011 Survey responses'!$K109>0,'2007 Survey responses'!$J113>0),'2011 Survey responses'!$K109,\"\")","v":""},"",null,null,{"$f":"IF(AND('2011 Survey responses'!$L109>0,'2007 Survey responses'!$I113>0),'2007 Survey responses'!$I113,\"\")","v":""},{"$f":"IF(AND('2011 Survey responses'!$L109>0,'2007 Survey responses'!$I113>0),'2011 Survey responses'!$L109,\"\")","v":""},"",null,null,{"$f":"IF(AND('2011 Survey responses'!$M109>0,'2007 Survey responses'!$K113>0),'2007 Survey responses'!$K113,\"\")","v":""},{"$f":"IF(AND('2011 Survey responses'!$M109>0,'2007 Survey responses'!$K113>0),'2011 Survey responses'!$M109,\"\")","v":""},"",null,null,{"$f":"IF('2007 Survey responses'!$B113>0,IF(AND('2011 Survey responses'!T109>0,'2007 Survey responses'!L113>0),'2007 Survey responses'!L113,\"\"),\"\")","v":""},{"$f":"IF('2007 Survey responses'!$B113>0,IF(AND('2011 Survey responses'!T109>0,'2007 Survey responses'!L113>0),'2011 Survey responses'!T109,\"\"),\"\")","v":""},"",null,null,{"$f":"IF(AND('2011 Survey responses'!$U109>0,'2007 Survey responses'!$M113>0),'2007 Survey responses'!$M113,\"\")","v":""},{"$f":"IF(AND('2011 Survey responses'!$U109>0,'2007 Survey responses'!$M113>0),'2011 Survey responses'!$U109,\"\")","v":""},""]
["Mauritania",{"$f":"IF(AND('2011 Survey responses'!$F110>0,'2007 Survey responses'!E114>0),'2007 Survey responses'!E114,\"\")","v":""},{"$f":"IF(AND('2011 Survey responses'!$F110>0,'2007 Survey responses'!E114>0),'2011 Survey responses'!$F110,\"\")","v":""},"",null,null,{"$f":"IF(AND('2011 Survey responses'!$G110>0,'2007 Survey responses'!$F114>0),'2007 Survey responses'!$F114,\"\")","v":""},{"$f":"IF(AND('2011 Survey responses'!$G110>0,'2007 Survey responses'!$F114>0),'2011 Survey responses'!$G110,\"\")","v":""},"",null,null,{"$f":"IF(AND('2011 Survey responses'!$H110>0,'2007 Survey responses'!$F114>0),'2007 Survey responses'!$F114,\"\")","v":""},{"$f":"IF(AND('2011 Survey responses'!$H110>0,'2007 Survey responses'!$F114>0),'2011 Survey responses'!$H110,\"\")","v":""},"",null,null,{"$f":"IF(AND(Question_grouping!O110>0,'2007 Survey responses'!$F114>0),'2007 Survey responses'!$F114,\"\")","v":2},{"$f":"IF(AND(Question_grouping!O110>0,'2007 Survey responses'!$F114>0),Question_grouping!O110,\"\")","v":""},"",null,null,{"$f":"IF(AND('2011 Survey responses'!$B110>0,'2007 Survey responses'!$C114>0),'2007 Survey responses'!$C114,\"\")","v":""},{"$f":"IF(AND('2011 Survey responses'!$B110>0,'2007 Survey responses'!$C114>0),'2011 Survey responses'!$B110,\"\")","v":""},"",null,null,{"$f":"IF(AND('2011 Survey responses'!$D110>0,'2007 Survey responses'!$D114>0),'2007 Survey responses'!$D114,\"\")","v":""},{"$f":"IF(AND('2011 Survey responses'!$D110>0,'2007 Survey responses'!$D114>0),'2011 Survey responses'!$D110,\"\")","v":""},"",null,null,{"$f":"IF(AND('2011 Survey responses'!$J110>0,'2007 Survey responses'!$H114>0),'2007 Survey responses'!$H114,\"\")","v":""},{"$f":"IF(AND('2011 Survey responses'!$J110>0,'2007 Survey responses'!$H114>0),'2011 Survey responses'!$J110,\"\")","v":""},"",null,null,{"$f":"IF(AND('2011 Survey responses'!$K110>0,'2007 Survey responses'!$J114>0),'2007 Survey responses'!$J114,\"\")","v":""},{"$f":"IF(AND('2011 Survey responses'!$K110>0,'2007 Survey responses'!$J114>0),'2011 Survey responses'!$K110,\"\")","v":""},"",null,null,{"$f":"IF(AND('2011 Survey responses'!$L110>0,'2007 Survey responses'!$I114>0),'2007 Survey responses'!$I114,\"\")","v":""},{"$f":"IF(AND('2011 Survey responses'!$L110>0,'2007 Survey responses'!$I114>0),'2011 Survey responses'!$L110,\"\")","v":""},"",null,null,{"$f":"IF(AND('2011 Survey responses'!$M110>0,'2007 Survey responses'!$K114>0),'2007 Survey responses'!$K114,\"\")","v":""},{"$f":"IF(AND('2011 Survey responses'!$M110>0,'2007 Survey responses'!$K114>0),'2011 Survey responses'!$M110,\"\")","v":""},"",null,null,{"$f":"IF('2007 Survey responses'!$B114>0,IF(AND('2011 Survey responses'!T110>0,'2007 Survey responses'!L114>0),'2007 Survey responses'!L114,\"\"),\"\")","v":""},{"$f":"IF('2007 Survey responses'!$B114>0,IF(AND('2011 Survey responses'!T110>0,'2007 Survey responses'!L114>0),'2011 Survey responses'!T110,\"\"),\"\")","v":""},"",null,null,{"$f":"IF(AND('2011 Survey responses'!$U110>0,'2007 Survey responses'!$M114>0),'2007 Survey responses'!$M114,\"\")","v":""},{"$f":"IF(AND('2011 Survey responses'!$U110>0,'2007 Survey responses'!$M114>0),'2011 Survey responses'!$U110,\"\")","v":""},""]
["Mauritius",{"$f":"IF(AND('2011 Survey responses'!$F111>0,'2007 Survey responses'!E115>0),'2007 Survey responses'!E115,\"\")","v":""},{"$f":"IF(AND('2011 Survey responses'!$F111>0,'2007 Survey responses'!E115>0),'2011 Survey responses'!$F111,\"\")","v":""},"",null,null,{"$f":"IF(AND('2011 Survey responses'!$G111>0,'2007 Survey responses'!$F115>0),'2007 Survey responses'!$F115,\"\")","v":""},{"$f":"IF(AND('2011 Survey responses'!$G111>0,'2007 Survey responses'!$F115>0),'2011 Survey responses'!$G111,\"\")","v":""},"",null,null,{"$f":"IF(AND('2011 Survey responses'!$H111>0,'2007 Survey responses'!$F115>0),'2007 Survey responses'!$F115,\"\")","v":""},{"$f":"IF(AND('2011 Survey responses'!$H111>0,'2007 Survey responses'!$F115>0),'2011 Survey responses'!$H111,\"\")","v":""},"",null,null,{"$f":"IF(AND(Question_grouping!O111>0,'2007 Survey responses'!$F115>0),'2007 Survey responses'!$F115,\"\")","v":""},{"$f":"IF(AND(Question_grouping!O111>0,'2007 Survey responses'!$F115>0),Question_grouping!O111,\"\")","v":""},"",null,null,{"$f":"IF(AND('2011 Survey responses'!$B111>0,'2007 Survey responses'!$C115>0),'2007 Survey responses'!$C115,\"\")","v":""},{"$f":"IF(AND('2011 Survey responses'!$B111>0,'2007 Survey responses'!$C115>0),'2011 Survey responses'!$B111,\"\")","v":""},"",null,null,{"$f":"IF(AND('2011 Survey responses'!$D111>0,'2007 Survey responses'!$D115>0),'2007 Survey responses'!$D115,\"\")","v":""},{"$f":"IF(AND('2011 Survey responses'!$D111>0,'2007 Survey responses'!$D115>0),'2011 Survey responses'!$D111,\"\")","v":""},"",null,null,{"$f":"IF(AND('2011 Survey responses'!$J111>0,'2007 Survey responses'!$H115>0),'2007 Survey responses'!$H115,\"\")","v":""},{"$f":"IF(AND('2011 Survey responses'!$J111>0,'2007 Survey responses'!$H115>0),'2011 Survey responses'!$J111,\"\")","v":""},"",null,null,{"$f":"IF(AND('2011 Survey responses'!$K111>0,'2007 Survey responses'!$J115>0),'2007 Survey responses'!$J115,\"\")","v":""},{"$f":"IF(AND('2011 Survey responses'!$K111>0,'2007 Survey responses'!$J115>0),'2011 Survey responses'!$K111,\"\")","v":""},"",null,null,{"$f":"IF(AND('2011 Survey responses'!$L111>0,'2007 Survey responses'!$I115>0),'2007 Survey responses'!$I115,\"\")","v":""},{"$f":"IF(AND('2011 Survey responses'!$L111>0,'2007 Survey responses'!$I115>0),'2011 Survey responses'!$L111,\"\")","v":""},"",null,null,{"$f":"IF(AND('2011 Survey responses'!$M111>0,'2007 Survey responses'!$K115>0),'2007 Survey responses'!$K115,\"\")","v":""},{"$f":"IF(AND('2011 Survey responses'!$M111>0,'2007 Survey responses'!$K115>0),'2011 Survey responses'!$M111,\"\")","v":""},"",null,null,{"$f":"IF('2007 Survey responses'!$B115>0,IF(AND('2011 Survey responses'!T111>0,'2007 Survey responses'!L115>0),'2007 Survey responses'!L115,\"\"),\"\")","v":""},{"$f":"IF('2007 Survey responses'!$B115>0,IF(AND('2011 Survey responses'!T111>0,'2007 Survey responses'!L115>0),'2011 Survey responses'!T111,\"\"),\"\")","v":""},"",null,null,{"$f":"IF(AND('2011 Survey responses'!$U111>0,'2007 Survey responses'!$M115>0),'2007 Survey responses'!$M115,\"\")","v":""},{"$f":"IF(AND('2011 Survey responses'!$U111>0,'2007 Survey responses'!$M115>0),'2011 Survey responses'!$U111,\"\")","v":""},""]
["Mexico",{"$f":"IF(AND('2011 Survey responses'!$F112>0,'2007 Survey responses'!E116>0),'2007 Survey responses'!E116,\"\")","v":2},{"$f":"IF(AND('2011 Survey responses'!$F112>0,'2007 Survey responses'!E116>0),'2011 Survey responses'!$F112,\"\")","v":5},4,null,null,{"$f":"IF(AND('2011 Survey responses'!$G112>0,'2007 Survey responses'!$F116>0),'2007 Survey responses'!$F116,\"\")","v":1},{"$f":"IF(AND('2011 Survey responses'!$G112>0,'2007 Survey responses'!$F116>0),'2011 Survey responses'!$G112,\"\")","v":1},1,null,null,{"$f":"IF(AND('2011 Survey responses'!$H112>0,'2007 Survey responses'!$F116>0),'2007 Survey responses'!$F116,\"\")","v":1},{"$f":"IF(AND('2011 Survey responses'!$H112>0,'2007 Survey responses'!$F116>0),'2011 Survey responses'!$H112,\"\")","v":5},4,null,null,{"$f":"IF(AND(Question_grouping!O112>0,'2007 Survey responses'!$F116>0),'2007 Survey responses'!$F116,\"\")","v":1},{"$f":"IF(AND(Question_grouping!O112>0,'2007 Survey responses'!$F116>0),Question_grouping!O112,\"\")","v":5},4,null,null,{"$f":"IF(AND('2011 Survey responses'!$B112>0,'2007 Survey responses'!$C116>0),'2007 Survey responses'!$C116,\"\")","v":4},{"$f":"IF(AND('2011 Survey responses'!$B112>0,'2007 Survey responses'!$C116>0),'2011 Survey responses'!$B112,\"\")","v":5},4,null,null,{"$f":"IF(AND('2011 Survey responses'!$D112>0,'2007 Survey responses'!$D116>0),'2007 Survey responses'!$D116,\"\")","v":4},{"$f":"IF(AND('2011 Survey responses'!$D112>0,'2007 Survey responses'!$D116>0),'2011 Survey responses'!$D112,\"\")","v":5},4,null,null,{"$f":"IF(AND('2011 Survey responses'!$J112>0,'2007 Survey responses'!$H116>0),'2007 Survey responses'!$H116,\"\")","v":1},{"$f":"IF(AND('2011 Survey responses'!$J112>0,'2007 Survey responses'!$H116>0),'2011 Survey responses'!$J112,\"\")","v":2},2,null,null,{"$f":"IF(AND('2011 Survey responses'!$K112>0,'2007 Survey responses'!$J116>0),'2007 Survey responses'!$J116,\"\")","v":""},{"$f":"IF(AND('2011 Survey responses'!$K112>0,'2007 Survey responses'!$J116>0),'2011 Survey responses'!$K112,\"\")","v":""},"",null,null,{"$f":"IF(AND('2011 Survey responses'!$L112>0,'2007 Survey responses'!$I116>0),'2007 Survey responses'!$I116,\"\")","v":1},{"$f":"IF(AND('2011 Survey responses'!$L112>0,'2007 Survey responses'!$I116>0),'2011 Survey responses'!$L112,\"\")","v":5},4,null,null,{"$f":"IF(AND('2011 Survey responses'!$M112>0,'2007 Survey responses'!$K116>0),'2007 Survey responses'!$K116,\"\")","v":1},{"$f":"IF(AND('2011 Survey responses'!$M112>0,'2007 Survey responses'!$K116>0),'2011 Survey responses'!$M112,\"\")","v":5},4,null,null,{"$f":"IF('2007 Survey responses'!$B116>0,IF(AND('2011 Survey responses'!T112>0,'2007 Survey responses'!L116>0),'2007 Survey responses'!L116,\"\"),\"\")","v":""},{"$f":"IF('2007 Survey responses'!$B116>0,IF(AND('2011 Survey responses'!T112>0,'2007 Survey responses'!L116>0),'2011 Survey responses'!T112,\"\"),\"\")","v":""},"",null,null,{"$f":"IF(AND('2011 Survey responses'!$U112>0,'2007 Survey responses'!$M116>0),'2007 Survey responses'!$M116,\"\")","v":""},{"$f":"IF(AND('2011 Survey responses'!$U112>0,'2007 Survey responses'!$M116>0),'2011 Survey responses'!$U112,\"\")","v":""},""]
["Micronesia (Federated States of)",{"$f":"IF(AND('2011 Survey responses'!$F113>0,'2007 Survey responses'!E117>0),'2007 Survey responses'!E117,\"\")","v":""},{"$f":"IF(AND('2011 Survey responses'!$F113>0,'2007 Survey responses'!E117>0),'2011 Survey responses'!$F113,\"\")","v":""},"",null,null,{"$f":"IF(AND('2011 Survey responses'!$G113>0,'2007 Survey responses'!$F117>0),'2007 Survey responses'!$F117,\"\")","v":""},{"$f":"IF(AND('2011 Survey responses'!$G113>0,'2007 Survey responses'!$F117>0),'2011 Survey responses'!$G113,\"\")","v":""},"",null,null,{"$f":"IF(AND('2011 Survey responses'!$H113>0,'2007 Survey responses'!$F117>0),'2007 Survey responses'!$F117,\"\")","v":""},{"$f":"IF(AND('2011 Survey responses'!$H113>0,'2007 Survey responses'!$F117>0),'2011 Survey responses'!$H113,\"\")","v":""},"",null,null,{"$f":"IF(AND(Question_grouping!O113>0,'2007 Survey responses'!$F117>0),'2007 Survey responses'!$F117,\"\")","v":1},{"$f":"IF(AND(Question_grouping!O113>0,'2007 Survey responses'!$F117>0),Question_grouping!O113,\"\")","v":""},"",null,null,{"$f":"IF(AND('2011 Survey responses'!$B113>0,'2007 Survey responses'!$C117>0),'2007 Survey responses'!$C117,\"\")","v":""},{"$f":"IF(AND('2011 Survey responses'!$B113>0,'2007 Survey responses'!$C117>0),'2011 Survey responses'!$B113,\"\")","v":""},"",null,null,{"$f":"IF(AND('2011 Survey responses'!$D113>0,'2007 Survey responses'!$D117>0),'2007 Survey responses'!$D117,\"\")","v":""},{"$f":"IF(AND('2011 Survey responses'!$D113>0,'2007 Survey responses'!$D117>0),'2011 Survey responses'!$D113,\"\")","v":""},"",null,null,{"$f":"IF(AND('2011 Survey responses'!$J113>0,'2007 Survey responses'!$H117>0),'2007 Survey responses'!$H117,\"\")","v":""},{"$f":"IF(AND('2011 Survey responses'!$J113>0,'2007 Survey responses'!$H117>0),'2011 Survey responses'!$J113,\"\")","v":""},"",null,null,{"$f":"IF(AND('2011 Survey responses'!$K113>0,'2007 Survey responses'!$J117>0),'2007 Survey responses'!$J117,\"\")","v":""},{"$f":"IF(AND('2011 Survey responses'!$K113>0,'2007 Survey responses'!$J117>0),'2011 Survey responses'!$K113,\"\")","v":""},"",null,null,{"$f":"IF(AND('2011 Survey responses'!$L113>0,'2007 Survey responses'!$I117>0),'2007 Survey responses'!$I117,\"\")","v":""},{"$f":"IF(AND('2011 Survey responses'!$L113>0,'2007 Survey responses'!$I117>0),'2011 Survey responses'!$L113,\"\")","v":""},"",null,null,{"$f":"IF(AND('2011 Survey responses'!$M113>0,'2007 Survey responses'!$K117>0),'2007 Survey responses'!$K117,\"\")","v":""},{"$f":"IF(AND('2011 Survey responses'!$M113>0,'2007 Survey responses'!$K117>0),'2011 Survey responses'!$M113,\"\")","v":""},"",null,null,{"$f":"IF('2007 Survey responses'!$B117>0,IF(AND('2011 Survey responses'!T113>0,'2007 Survey responses'!L117>0),'2007 Survey responses'!L117,\"\"),\"\")","v":""},{"$f":"IF('2007 Survey responses'!$B117>0,IF(AND('2011 Survey responses'!T113>0,'2007 Survey responses'!L117>0),'2011 Survey responses'!T113,\"\"),\"\")","v":""},"",null,null,{"$f":"IF(AND('2011 Survey responses'!$U113>0,'2007 Survey responses'!$M117>0),'2007 Survey responses'!$M117,\"\")","v":""},{"$f":"IF(AND('2011 Survey responses'!$U113>0,'2007 Survey responses'!$M117>0),'2011 Survey responses'!$U113,\"\")","v":""},""]
["Monaco",{"$f":"IF(AND('2011 Survey responses'!$F114>0,'2007 Survey responses'!E118>0),'2007 Survey responses'!E118,\"\")","v":4},{"$f":"IF(AND('2011 Survey responses'!$F114>0,'2007 Survey responses'!E118>0),'2011 Survey responses'!$F114,\"\")","v":5},4,null,null,{"$f":"IF(AND('2011 Survey responses'!$G114>0,'2007 Survey responses'!$F118>0),'2007 Survey responses'!$F118,\"\")","v":4},{"$f":"IF(AND('2011 Survey responses'!$G114>0,'2007 Survey responses'!$F118>0),'2011 Survey responses'!$G114,\"\")","v":1},1,null,null,{"$f":"IF(AND('2011 Survey responses'!$H114>0,'2007 Survey responses'!$F118>0),'2007 Survey responses'!$F118,\"\")","v":4},{"$f":"IF(AND('2011 Survey responses'!$H114>0,'2007 Survey responses'!$F118>0),'2011 Survey responses'!$H114,\"\")","v":6},5,null,null,{"$f":"IF(AND(Question_grouping!O114>0,'2007 Survey responses'!$F118>0),'2007 Survey responses'!$F118,\"\")","v":4},{"$f":"IF(AND(Question_grouping!O114>0,'2007 Survey responses'!$F118>0),Question_grouping!O114,\"\")","v":6},5,null,null,{"$f":"IF(AND('2011 Survey responses'!$B114>0,'2007 Survey responses'!$C118>0),'2007 Survey responses'!$C118,\"\")","v":5},{"$f":"IF(AND('2011 Survey responses'!$B114>0,'2007 Survey responses'!$C118>0),'2011 Survey responses'!$B114,\"\")","v":5},4,null,null,{"$f":"IF(AND('2011 Survey responses'!$D114>0,'2007 Survey responses'!$D118>0),'2007 Survey responses'!$D118,\"\")","v":4},{"$f":"IF(AND('2011 Survey responses'!$D114>0,'2007 Survey responses'!$D118>0),'2011 Survey responses'!$D114,\"\")","v":5},4,null,null,{"$f":"IF(AND('2011 Survey responses'!$J114>0,'2007 Survey responses'!$H118>0),'2007 Survey responses'!$H118,\"\")","v":1},{"$f":"IF(AND('2011 Survey responses'!$J114>0,'2007 Survey responses'!$H118>0),'2011 Survey responses'!$J114,\"\")","v":1},1,null,null,{"$f":"IF(AND('2011 Survey responses'!$K114>0,'2007 Survey responses'!$J118>0),'2007 Survey responses'!$J118,\"\")","v":3},{"$f":"IF(AND('2011 Survey responses'!$K114>0,'2007 Survey responses'!$J118>0),'2011 Survey responses'!$K114,\"\")","v":5},4,null,null,{"$f":"IF(AND('2011 Survey responses'!$L114>0,'2007 Survey responses'!$I118>0),'2007 Survey responses'!$I118,\"\")","v":4},{"$f":"IF(AND('2011 Survey responses'!$L114>0,'2007 Survey responses'!$I118>0),'2011 Survey responses'!$L114,\"\")","v":5},4,null,null,{"$f":"IF(AND('2011 Survey responses'!$M114>0,'2007 Survey responses'!$K118>0),'2007 Survey responses'!$K118,\"\")","v":1},{"$f":"IF(AND('2011 Survey responses'!$M114>0,'2007 Survey responses'!$K118>0),'2011 Survey responses'!$M114,\"\")","v":5},4,null,null,{"$f":"IF('2007 Survey responses'!$B118>0,IF(AND('2011 Survey responses'!T114>0,'2007 Survey responses'!L118>0),'2007 Survey responses'!L118,\"\"),\"\")","v":2},{"$f":"IF('2007 Survey responses'!$B118>0,IF(AND('2011 Survey responses'!T114>0,'2007 Survey responses'!L118>0),'2011 Survey responses'!T114,\"\"),\"\")","v":5},4,null,null,{"$f":"IF(AND('2011 Survey responses'!$U114>0,'2007 Survey responses'!$M118>0),'2007 Survey responses'!$M118,\"\")","v":2},{"$f":"IF(AND('2011 Survey responses'!$U114>0,'2007 Survey responses'!$M118>0),'2011 Survey responses'!$U114,\"\")","v":3},3]
["Mongolia",{"$f":"IF(AND('2011 Survey responses'!$F115>0,'2007 Survey responses'!E119>0),'2007 Survey responses'!E119,\"\")","v":""},{"$f":"IF(AND('2011 Survey responses'!$F115>0,'2007 Survey responses'!E119>0),'2011 Survey responses'!$F115,\"\")","v":""},"",null,null,{"$f":"IF(AND('2011 Survey responses'!$G115>0,'2007 Survey responses'!$F119>0),'2007 Survey responses'!$F119,\"\")","v":""},{"$f":"IF(AND('2011 Survey responses'!$G115>0,'2007 Survey responses'!$F119>0),'2011 Survey responses'!$G115,\"\")","v":""},"",null,null,{"$f":"IF(AND('2011 Survey responses'!$H115>0,'2007 Survey responses'!$F119>0),'2007 Survey responses'!$F119,\"\")","v":""},{"$f":"IF(AND('2011 Survey responses'!$H115>0,'2007 Survey responses'!$F119>0),'2011 Survey responses'!$H115,\"\")","v":""},"",null,null,{"$f":"IF(AND(Question_grouping!O115>0,'2007 Survey responses'!$F119>0),'2007 Survey responses'!$F119,\"\")","v":""},{"$f":"IF(AND(Question_grouping!O115>0,'2007 Survey responses'!$F119>0),Question_grouping!O115,\"\")","v":""},"",null,null,{"$f":"IF(AND('2011 Survey responses'!$B115>0,'2007 Survey responses'!$C119>0),'2007 Survey responses'!$C119,\"\")","v":""},{"$f":"IF(AND('2011 Survey responses'!$B115>0,'2007 Survey responses'!$C119>0),'2011 Survey responses'!$B115,\"\")","v":""},"",null,null,{"$f":"IF(AND('2011 Survey responses'!$D115>0,'2007 Survey responses'!$D119>0),'2007 Survey responses'!$D119,\"\")","v":""},{"$f":"IF(AND('2011 Survey responses'!$D115>0,'2007 Survey responses'!$D119>0),'2011 Survey responses'!$D115,\"\")","v":""},"",null,null,{"$f":"IF(AND('2011 Survey responses'!$J115>0,'2007 Survey responses'!$H119>0),'2007 Survey responses'!$H119,\"\")","v":""},{"$f":"IF(AND('2011 Survey responses'!$J115>0,'2007 Survey responses'!$H119>0),'2011 Survey responses'!$J115,\"\")","v":""},"",null,null,{"$f":"IF(AND('2011 Survey responses'!$K115>0,'2007 Survey responses'!$J119>0),'2007 Survey responses'!$J119,\"\")","v":""},{"$f":"IF(AND('2011 Survey responses'!$K115>0,'2007 Survey responses'!$J119>0),'2011 Survey responses'!$K115,\"\")","v":""},"",null,null,{"$f":"IF(AND('2011 Survey responses'!$L115>0,'2007 Survey responses'!$I119>0),'2007 Survey responses'!$I119,\"\")","v":""},{"$f":"IF(AND('2011 Survey responses'!$L115>0,'2007 Survey responses'!$I119>0),'2011 Survey responses'!$L115,\"\")","v":""},"",null,null,{"$f":"IF(AND('2011 Survey responses'!$M115>0,'2007 Survey responses'!$K119>0),'2007 Survey responses'!$K119,\"\")","v":""},{"$f":"IF(AND('2011 Survey responses'!$M115>0,'2007 Survey responses'!$K119>0),'2011 Survey responses'!$M115,\"\")","v":""},"",null,null,{"$f":"IF('2007 Survey responses'!$B119>0,IF(AND('2011 Survey responses'!T115>0,'2007 Survey responses'!L119>0),'2007 Survey responses'!L119,\"\"),\"\")","v":""},{"$f":"IF('2007 Survey responses'!$B119>0,IF(AND('2011 Survey responses'!T115>0,'2007 Survey responses'!L119>0),'2011 Survey responses'!T115,\"\"),\"\")","v":""},"",null,null,{"$f":"IF(AND('2011 Survey responses'!$U115>0,'2007 Survey responses'!$M119>0),'2007 Survey responses'!$M119,\"\")","v":""},{"$f":"IF(AND('2011 Survey responses'!$U115>0,'2007 Survey responses'!$M119>0),'2011 Survey responses'!$U115,\"\")","v":""},""]
["Montenegro",{"$f":"IF(AND('2011 Survey responses'!$F116>0,'2007 Survey responses'!E120>0),'2007 Survey responses'!E120,\"\")","v":""},{"$f":"IF(AND('2011 Survey responses'!$F116>0,'2007 Survey responses'!E120>0),'2011 Survey responses'!$F116,\"\")","v":""},"",null,null,{"$f":"IF(AND('2011 Survey responses'!$G116>0,'2007 Survey responses'!$F120>0),'2007 Survey responses'!$F120,\"\")","v":""},{"$f":"IF(AND('2011 Survey responses'!$G116>0,'2007 Survey responses'!$F120>0),'2011 Survey responses'!$G116,\"\")","v":""},"",null,null,{"$f":"IF(AND('2011 Survey responses'!$H116>0,'2007 Survey responses'!$F120>0),'2007 Survey responses'!$F120,\"\")","v":""},{"$f":"IF(AND('2011 Survey responses'!$H116>0,'2007 Survey responses'!$F120>0),'2011 Survey responses'!$H116,\"\")","v":""},"",null,null,{"$f":"IF(AND(Question_grouping!O116>0,'2007 Survey responses'!$F120>0),'2007 Survey responses'!$F120,\"\")","v":""},{"$f":"IF(AND(Question_grouping!O116>0,'2007 Survey responses'!$F120>0),Question_grouping!O116,\"\")","v":""},"",null,null,{"$f":"IF(AND('2011 Survey responses'!$B116>0,'2007 Survey responses'!$C120>0),'2007 Survey responses'!$C120,\"\")","v":""},{"$f":"IF(AND('2011 Survey responses'!$B116>0,'2007 Survey responses'!$C120>0),'2011 Survey responses'!$B116,\"\")","v":""},"",null,null,{"$f":"IF(AND('2011 Survey responses'!$D116>0,'2007 Survey responses'!$D120>0),'2007 Survey responses'!$D120,\"\")","v":""},{"$f":"IF(AND('2011 Survey responses'!$D116>0,'2007 Survey responses'!$D120>0),'2011 Survey responses'!$D116,\"\")","v":""},"",null,null,{"$f":"IF(AND('2011 Survey responses'!$J116>0,'2007 Survey responses'!$H120>0),'2007 Survey responses'!$H120,\"\")","v":""},{"$f":"IF(AND('2011 Survey responses'!$J116>0,'2007 Survey responses'!$H120>0),'2011 Survey responses'!$J116,\"\")","v":""},"",null,null,{"$f":"IF(AND('2011 Survey responses'!$K116>0,'2007 Survey responses'!$J120>0),'2007 Survey responses'!$J120,\"\")","v":""},{"$f":"IF(AND('2011 Survey responses'!$K116>0,'2007 Survey responses'!$J120>0),'2011 Survey responses'!$K116,\"\")","v":""},"",null,null,{"$f":"IF(AND('2011 Survey responses'!$L116>0,'2007 Survey responses'!$I120>0),'2007 Survey responses'!$I120,\"\")","v":""},{"$f":"IF(AND('2011 Survey responses'!$L116>0,'2007 Survey responses'!$I120>0),'2011 Survey responses'!$L116,\"\")","v":""},"",null,null,{"$f":"IF(AND('2011 Survey responses'!$M116>0,'2007 Survey responses'!$K120>0),'2007 Survey responses'!$K120,\"\")","v":""},{"$f":"IF(AND('2011 Survey responses'!$M116>0,'2007 Survey responses'!$K120>0),'2011 Survey responses'!$M116,\"\")","v":""},"",null,null,{"$f":"IF('2007 Survey responses'!$B120>0,IF(AND('2011 Survey responses'!T116>0,'2007 Survey responses'!L120>0),'2007 Survey responses'!L120,\"\"),\"\")","v":""},{"$f":"IF('2007 Survey responses'!$B120>0,IF(AND('2011 Survey responses'!T116>0,'2007 Survey responses'!L120>0),'2011 Survey responses'!T116,\"\"),\"\")","v":""},"",null,null,{"$f":"IF(AND('2011 Survey responses'!$U116>0,'2007 Survey responses'!$M120>0),'2007 Survey responses'!$M120,\"\")","v":""},{"$f":"IF(AND('2011 Survey responses'!$U116>0,'2007 Survey responses'!$M120>0),'2011 Survey responses'!$U116,\"\")","v":""},""]
["Morocco",{"$f":"IF(AND('2011 Survey responses'!$F117>0,'2007 Survey responses'!E121>0),'2007 Survey responses'!E121,\"\")","v":""},{"$f":"IF(AND('2011 Survey responses'!$F117>0,'2007 Survey responses'!E121>0),'2011 Survey responses'!$F117,\"\")","v":""},"",null,null,{"$f":"IF(AND('2011 Survey responses'!$G117>0,'2007 Survey responses'!$F121>0),'2007 Survey responses'!$F121,\"\")","v":""},{"$f":"IF(AND('2011 Survey responses'!$G117>0,'2007 Survey responses'!$F121>0),'2011 Survey responses'!$G117,\"\")","v":""},"",null,null,{"$f":"IF(AND('2011 Survey responses'!$H117>0,'2007 Survey responses'!$F121>0),'2007 Survey responses'!$F121,\"\")","v":""},{"$f":"IF(AND('2011 Survey responses'!$H117>0,'2007 Survey responses'!$F121>0),'2011 Survey responses'!$H117,\"\")","v":""},"",null,null,{"$f":"IF(AND(Question_grouping!O117>0,'2007 Survey responses'!$F121>0),'2007 Survey responses'!$F121,\"\")","v":""},{"$f":"IF(AND(Question_grouping!O117>0,'2007 Survey responses'!$F121>0),Question_grouping!O117,\"\")","v":""},"",null,null,{"$f":"IF(AND('2011 Survey responses'!$B117>0,'2007 Survey responses'!$C121>0),'2007 Survey responses'!$C121,\"\")","v":""},{"$f":"IF(AND('2011 Survey responses'!$B117>0,'2007 Survey responses'!$C121>0),'2011 Survey responses'!$B117,\"\")","v":""},"",null,null,{"$f":"IF(AND('2011 Survey responses'!$D117>0,'2007 Survey responses'!$D121>0),'2007 Survey responses'!$D121,\"\")","v":""},{"$f":"IF(AND('2011 Survey responses'!$D117>0,'2007 Survey responses'!$D121>0),'2011 Survey responses'!$D117,\"\")","v":""},"",null,null,{"$f":"IF(AND('2011 Survey responses'!$J117>0,'2007 Survey responses'!$H121>0),'2007 Survey responses'!$H121,\"\")","v":""},{"$f":"IF(AND('2011 Survey responses'!$J117>0,'2007 Survey responses'!$H121>0),'2011 Survey responses'!$J117,\"\")","v":""},"",null,null,{"$f":"IF(AND('2011 Survey responses'!$K117>0,'2007 Survey responses'!$J121>0),'2007 Survey responses'!$J121,\"\")","v":""},{"$f":"IF(AND('2011 Survey responses'!$K117>0,'2007 Survey responses'!$J121>0),'2011 Survey responses'!$K117,\"\")","v":""},"",null,null,{"$f":"IF(AND('2011 Survey responses'!$L117>0,'2007 Survey responses'!$I121>0),'2007 Survey responses'!$I121,\"\")","v":""},{"$f":"IF(AND('2011 Survey responses'!$L117>0,'2007 Survey responses'!$I121>0),'2011 Survey responses'!$L117,\"\")","v":""},"",null,null,{"$f":"IF(AND('2011 Survey responses'!$M117>0,'2007 Survey responses'!$K121>0),'2007 Survey responses'!$K121,\"\")","v":""},{"$f":"IF(AND('2011 Survey responses'!$M117>0,'2007 Survey responses'!$K121>0),'2011 Survey responses'!$M117,\"\")","v":""},"",null,null,{"$f":"IF('2007 Survey responses'!$B121>0,IF(AND('2011 Survey responses'!T117>0,'2007 Survey responses'!L121>0),'2007 Survey responses'!L121,\"\"),\"\")","v":""},{"$f":"IF('2007 Survey responses'!$B121>0,IF(AND('2011 Survey responses'!T117>0,'2007 Survey responses'!L121>0),'2011 Survey responses'!T117,\"\"),\"\")","v":""},"",null,null,{"$f":"IF(AND('2011 Survey responses'!$U117>0,'2007 Survey responses'!$M121>0),'2007 Survey responses'!$M121,\"\")","v":""},{"$f":"IF(AND('2011 Survey responses'!$U117>0,'2007 Survey responses'!$M121>0),'2011 Survey responses'!$U117,\"\")","v":""},""]
["Mozambique",{"$f":"IF(AND('2011 Survey responses'!$F118>0,'2007 Survey responses'!E122>0),'2007 Survey responses'!E122,\"\")","v":""},{"$f":"IF(AND('2011 Survey responses'!$F118>0,'2007 Survey responses'!E122>0),'2011 Survey responses'!$F118,\"\")","v":""},"",null,null,{"$f":"IF(AND('2011 Survey responses'!$G118>0,'2007 Survey responses'!$F122>0),'2007 Survey responses'!$F122,\"\")","v":""},{"$f":"IF(AND('2011 Survey responses'!$G118>0,'2007 Survey responses'!$F122>0),'2011 Survey responses'!$G118,\"\")","v":""},"",null,null,{"$f":"IF(AND('2011 Survey responses'!$H118>0,'2007 Survey responses'!$F122>0),'2007 Survey responses'!$F122,\"\")","v":""},{"$f":"IF(AND('2011 Survey responses'!$H118>0,'2007 Survey responses'!$F122>0),'2011 Survey responses'!$H118,\"\")","v":""},"",null,null,{"$f":"IF(AND(Question_grouping!O118>0,'2007 Survey responses'!$F122>0),'2007 Survey responses'!$F122,\"\")","v":""},{"$f":"IF(AND(Question_grouping!O118>0,'2007 Survey responses'!$F122>0),Question_grouping!O118,\"\")","v":""},"",null,null,{"$f":"IF(AND('2011 Survey responses'!$B118>0,'2007 Survey responses'!$C122>0),'2007 Survey responses'!$C122,\"\")","v":""},{"$f":"IF(AND('2011 Survey responses'!$B118>0,'2007 Survey responses'!$C122>0),'2011 Survey responses'!$B118,\"\")","v":""},"",null,null,{"$f":"IF(AND('2011 Survey responses'!$D118>0,'2007 Survey responses'!$D122>0),'2007 Survey responses'!$D122,\"\")","v":""},{"$f":"IF(AND('2011 Survey responses'!$D118>0,'2007 Survey responses'!$D122>0),'2011 Survey responses'!$D118,\"\")","v":""},"",null,null,{"$f":"IF(AND('2011 Survey responses'!$J118>0,'2007 Survey responses'!$H122>0),'2007 Survey responses'!$H122,\"\")","v":""},{"$f":"IF(AND('2011 Survey responses'!$J118>0,'2007 Survey responses'!$H122>0),'2011 Survey responses'!$J118,\"\")","v":""},"",null,null,{"$f":"IF(AND('2011 Survey responses'!$K118>0,'2007 Survey responses'!$J122>0),'2007 Survey responses'!$J122,\"\")","v":""},{"$f":"IF(AND('2011 Survey responses'!$K118>0,'2007 Survey responses'!$J122>0),'2011 Survey responses'!$K118,\"\")","v":""},"",null,null,{"$f":"IF(AND('2011 Survey responses'!$L118>0,'2007 Survey responses'!$I122>0),'2007 Survey responses'!$I122,\"\")","v":""},{"$f":"IF(AND('2011 Survey responses'!$L118>0,'2007 Survey responses'!$I122>0),'2011 Survey responses'!$L118,\"\")","v":""},"",null,null,{"$f":"IF(AND('2011 Survey responses'!$M118>0,'2007 Survey responses'!$K122>0),'2007 Survey responses'!$K122,\"\")","v":""},{"$f":"IF(AND('2011 Survey responses'!$M118>0,'2007 Survey responses'!$K122>0),'2011 Survey responses'!$M118,\"\")","v":""},"",null,null,{"$f":"IF('2007 Survey responses'!$B122>0,IF(AND('2011 Survey responses'!T118>0,'2007 Survey responses'!L122>0),'2007 Survey responses'!L122,\"\"),\"\")","v":""},{"$f":"IF('2007 Survey responses'!$B122>0,IF(AND('2011 Survey responses'!T118>0,'2007 Survey responses'!L122>0),'2011 Survey responses'!T118,\"\"),\"\")","v":""},"",null,null,{"$f":"IF(AND('2011 Survey responses'!$U118>0,'2007 Survey responses'!$M122>0),'2007 Survey responses'!$M122,\"\")","v":""},{"$f":"IF(AND('2011 Survey responses'!$U118>0,'2007 Survey responses'!$M122>0),'2011 Survey responses'!$U118,\"\")","v":""},""]
["Myanmar",{"$f":"IF(AND('2011 Survey responses'!$F119>0,'2007 Survey responses'!E123>0),'2007 Survey responses'!E123,\"\")","v":""},{"$f":"IF(AND('2011 Survey responses'!$F119>0,'2007 Survey responses'!E123>0),'2011 Survey responses'!$F119,\"\")","v":""},"",null,null,{"$f":"IF(AND('2011 Survey responses'!$G119>0,'2007 Survey responses'!$F123>0),'2007 Survey responses'!$F123,\"\")","v":""},{"$f":"IF(AND('2011 Survey responses'!$G119>0,'2007 Survey responses'!$F123>0),'2011 Survey responses'!$G119,\"\")","v":""},"",null,null,{"$f":"IF(AND('2011 Survey responses'!$H119>0,'2007 Survey responses'!$F123>0),'2007 Survey responses'!$F123,\"\")","v":""},{"$f":"IF(AND('2011 Survey responses'!$H119>0,'2007 Survey responses'!$F123>0),'2011 Survey responses'!$H119,\"\")","v":""},"",null,null,{"$f":"IF(AND(Question_grouping!O119>0,'2007 Survey responses'!$F123>0),'2007 Survey responses'!$F123,\"\")","v":""},{"$f":"IF(AND(Question_grouping!O119>0,'2007 Survey responses'!$F123>0),Question_grouping!O119,\"\")","v":""},"",null,null,{"$f":"IF(AND('2011 Survey responses'!$B119>0,'2007 Survey responses'!$C123>0),'2007 Survey responses'!$C123,\"\")","v":""},{"$f":"IF(AND('2011 Survey responses'!$B119>0,'2007 Survey responses'!$C123>0),'2011 Survey responses'!$B119,\"\")","v":""},"",null,null,{"$f":"IF(AND('2011 Survey responses'!$D119>0,'2007 Survey responses'!$D123>0),'2007 Survey responses'!$D123,\"\")","v":""},{"$f":"IF(AND('2011 Survey responses'!$D119>0,'2007 Survey responses'!$D123>0),'2011 Survey responses'!$D119,\"\")","v":""},"",null,null,{"$f":"IF(AND('2011 Survey responses'!$J119>0,'2007 Survey responses'!$H123>0),'2007 Survey responses'!$H123,\"\")","v":""},{"$f":"IF(AND('2011 Survey responses'!$J119>0,'2007 Survey responses'!$H123>0),'2011 Survey responses'!$J119,\"\")","v":""},"",null,null,{"$f":"IF(AND('2011 Survey responses'!$K119>0,'2007 Survey responses'!$J123>0),'2007 Survey responses'!$J123,\"\")","v":""},{"$f":"IF(AND('2011 Survey responses'!$K119>0,'2007 Survey responses'!$J123>0),'2011 Survey responses'!$K119,\"\")","v":""},"",null,null,{"$f":"IF(AND('2011 Survey responses'!$L119>0,'2007 Survey responses'!$I123>0),'2007 Survey responses'!$I123,\"\")","v":""},{"$f":"IF(AND('2011 Survey responses'!$L119>0,'2007 Survey responses'!$I123>0),'2011 Survey responses'!$L119,\"\")","v":""},"",null,null,{"$f":"IF(AND('2011 Survey responses'!$M119>0,'2007 Survey responses'!$K123>0),'2007 Survey responses'!$K123,\"\")","v":""},{"$f":"IF(AND('2011 Survey responses'!$M119>0,'2007 Survey responses'!$K123>0),'2011 Survey responses'!$M119,\"\")","v":""},"",null,null,{"$f":"IF('2007 Survey responses'!$B123>0,IF(AND('2011 Survey responses'!T119>0,'2007 Survey responses'!L123>0),'2007 Survey responses'!L123,\"\"),\"\")","v":""},{"$f":"IF('2007 Survey responses'!$B123>0,IF(AND('2011 Survey responses'!T119>0,'2007 Survey responses'!L123>0),'2011 Survey responses'!T119,\"\"),\"\")","v":""},"",null,null,{"$f":"IF(AND('2011 Survey responses'!$U119>0,'2007 Survey responses'!$M123>0),'2007 Survey responses'!$M123,\"\")","v":""},{"$f":"IF(AND('2011 Survey responses'!$U119>0,'2007 Survey responses'!$M123>0),'2011 Survey responses'!$U119,\"\")","v":""},""]
["Namibia",{"$f":"IF(AND('2011 Survey responses'!$F120>0,'2007 Survey responses'!E124>0),'2007 Survey responses'!E124,\"\")","v":2},{"$f":"IF(AND('2011 Survey responses'!$F120>0,'2007 Survey responses'!E124>0),'2011 Survey responses'!$F120,\"\")","v":3},3,null,null,{"$f":"IF(AND('2011 Survey responses'!$G120>0,'2007 Survey responses'!$F124>0),'2007 Survey responses'!$F124,\"\")","v":""},{"$f":"IF(AND('2011 Survey responses'!$G120>0,'2007 Survey responses'!$F124>0),'2011 Survey responses'!$G120,\"\")","v":""},"",null,null,{"$f":"IF(AND('2011 Survey responses'!$H120>0,'2007 Survey responses'!$F124>0),'2007 Survey responses'!$F124,\"\")","v":""},{"$f":"IF(AND('2011 Survey responses'!$H120>0,'2007 Survey responses'!$F124>0),'2011 Survey responses'!$H120,\"\")","v":""},"",null,null,{"$f":"IF(AND(Question_grouping!O120>0,'2007 Survey responses'!$F124>0),'2007 Survey responses'!$F124,\"\")","v":""},{"$f":"IF(AND(Question_grouping!O120>0,'2007 Survey responses'!$F124>0),Question_grouping!O120,\"\")","v":""},"",null,null,{"$f":"IF(AND('2011 Survey responses'!$B120>0,'2007 Survey responses'!$C124>0),'2007 Survey responses'!$C124,\"\")","v":4},{"$f":"IF(AND('2011 Survey responses'!$B120>0,'2007 Survey responses'!$C124>0),'2011 Survey responses'!$B120,\"\")","v":6},5,null,null,{"$f":"IF(AND('2011 Survey responses'!$D120>0,'2007 Survey responses'!$D124>0),'2007 Survey responses'!$D124,\"\")","v":4},{"$f":"IF(AND('2011 Survey responses'!$D120>0,'2007 Survey responses'!$D124>0),'2011 Survey responses'!$D120,\"\")","v":2},2,null,null,{"$f":"IF(AND('2011 Survey responses'!$J120>0,'2007 Survey responses'!$H124>0),'2007 Survey responses'!$H124,\"\")","v":""},{"$f":"IF(AND('2011 Survey responses'!$J120>0,'2007 Survey responses'!$H124>0),'2011 Survey responses'!$J120,\"\")","v":""},"",null,null,{"$f":"IF(AND('2011 Survey responses'!$K120>0,'2007 Survey responses'!$J124>0),'2007 Survey responses'!$J124,\"\")","v":""},{"$f":"IF(AND('2011 Survey responses'!$K120>0,'2007 Survey responses'!$J124>0),'2011 Survey responses'!$K120,\"\")","v":""},"",null,null,{"$f":"IF(AND('2011 Survey responses'!$L120>0,'2007 Survey responses'!$I124>0),'2007 Survey responses'!$I124,\"\")","v":""},{"$f":"IF(AND('2011 Survey responses'!$L120>0,'2007 Survey responses'!$I124>0),'2011 Survey responses'!$L120,\"\")","v":""},"",null,null,{"$f":"IF(AND('2011 Survey responses'!$M120>0,'2007 Survey responses'!$K124>0),'2007 Survey responses'!$K124,\"\")","v":""},{"$f":"IF(AND('2011 Survey responses'!$M120>0,'2007 Survey responses'!$K124>0),'2011 Survey responses'!$M120,\"\")","v":""},"",null,null,{"$f":"IF('2007 Survey responses'!$B124>0,IF(AND('2011 Survey responses'!T120>0,'2007 Survey responses'!L124>0),'2007 Survey responses'!L124,\"\"),\"\")","v":""},{"$f":"IF('2007 Survey responses'!$B124>0,IF(AND('2011 Survey responses'!T120>0,'2007 Survey responses'!L124>0),'2011 Survey responses'!T120,\"\"),\"\")","v":""},"",null,null,{"$f":"IF(AND('2011 Survey responses'!$U120>0,'2007 Survey responses'!$M124>0),'2007 Survey responses'!$M124,\"\")","v":""},{"$f":"IF(AND('2011 Survey responses'!$U120>0,'2007 Survey responses'!$M124>0),'2011 Survey responses'!$U120,\"\")","v":""},""]
["Nauru",{"$f":"IF(AND('2011 Survey responses'!$F121>0,'2007 Survey responses'!E125>0),'2007 Survey responses'!E125,\"\")","v":""},{"$f":"IF(AND('2011 Survey responses'!$F121>0,'2007 Survey responses'!E125>0),'2011 Survey responses'!$F121,\"\")","v":""},"",null,null,{"$f":"IF(AND('2011 Survey responses'!$G121>0,'2007 Survey responses'!$F125>0),'2007 Survey responses'!$F125,\"\")","v":""},{"$f":"IF(AND('2011 Survey responses'!$G121>0,'2007 Survey responses'!$F125>0),'2011 Survey responses'!$G121,\"\")","v":""},"",null,null,{"$f":"IF(AND('2011 Survey responses'!$H121>0,'2007 Survey responses'!$F125>0),'2007 Survey responses'!$F125,\"\")","v":""},{"$f":"IF(AND('2011 Survey responses'!$H121>0,'2007 Survey responses'!$F125>0),'2011 Survey responses'!$H121,\"\")","v":""},"",null,null,{"$f":"IF(AND(Question_grouping!O121>0,'2007 Survey responses'!$F125>0),'2007 Survey responses'!$F125,\"\")","v":1},{"$f":"IF(AND(Question_grouping!O121>0,'2007 Survey responses'!$F125>0),Question_grouping!O121,\"\")","v":""},"",null,null,{"$f":"IF(AND('2011 Survey responses'!$B121>0,'2007 Survey responses'!$C125>0),'2007 Survey responses'!$C125,\"\")","v":""},{"$f":"IF(AND('2011 Survey responses'!$B121>0,'2007 Survey responses'!$C125>0),'2011 Survey responses'!$B121,\"\")","v":""},"",null,null,{"$f":"IF(AND('2011 Survey responses'!$D121>0,'2007 Survey responses'!$D125>0),'2007 Survey responses'!$D125,\"\")","v":""},{"$f":"IF(AND('2011 Survey responses'!$D121>0,'2007 Survey responses'!$D125>0),'2011 Survey responses'!$D121,\"\")","v":""},"",null,null,{"$f":"IF(AND('2011 Survey responses'!$J121>0,'2007 Survey responses'!$H125>0),'2007 Survey responses'!$H125,\"\")","v":""},{"$f":"IF(AND('2011 Survey responses'!$J121>0,'2007 Survey responses'!$H125>0),'2011 Survey responses'!$J121,\"\")","v":""},"",null,null,{"$f":"IF(AND('2011 Survey responses'!$K121>0,'2007 Survey responses'!$J125>0),'2007 Survey responses'!$J125,\"\")","v":""},{"$f":"IF(AND('2011 Survey responses'!$K121>0,'2007 Survey responses'!$J125>0),'2011 Survey responses'!$K121,\"\")","v":""},"",null,null,{"$f":"IF(AND('2011 Survey responses'!$L121>0,'2007 Survey responses'!$I125>0),'2007 Survey responses'!$I125,\"\")","v":""},{"$f":"IF(AND('2011 Survey responses'!$L121>0,'2007 Survey responses'!$I125>0),'2011 Survey responses'!$L121,\"\")","v":""},"",null,null,{"$f":"IF(AND('2011 Survey responses'!$M121>0,'2007 Survey responses'!$K125>0),'2007 Survey responses'!$K125,\"\")","v":""},{"$f":"IF(AND('2011 Survey responses'!$M121>0,'2007 Survey responses'!$K125>0),'2011 Survey responses'!$M121,\"\")","v":""},"",null,null,{"$f":"IF('2007 Survey responses'!$B125>0,IF(AND('2011 Survey responses'!T121>0,'2007 Survey responses'!L125>0),'2007 Survey responses'!L125,\"\"),\"\")","v":""},{"$f":"IF('2007 Survey responses'!$B125>0,IF(AND('2011 Survey responses'!T121>0,'2007 Survey responses'!L125>0),'2011 Survey responses'!T121,\"\"),\"\")","v":""},"",null,null,{"$f":"IF(AND('2011 Survey responses'!$U121>0,'2007 Survey responses'!$M125>0),'2007 Survey responses'!$M125,\"\")","v":""},{"$f":"IF(AND('2011 Survey responses'!$U121>0,'2007 Survey responses'!$M125>0),'2011 Survey responses'!$U121,\"\")","v":""},""]
["Nepal",{"$f":"IF(AND('2011 Survey responses'!$F122>0,'2007 Survey responses'!E126>0),'2007 Survey responses'!E126,\"\")","v":""},{"$f":"IF(AND('2011 Survey responses'!$F122>0,'2007 Survey responses'!E126>0),'2011 Survey responses'!$F122,\"\")","v":""},"",null,null,{"$f":"IF(AND('2011 Survey responses'!$G122>0,'2007 Survey responses'!$F126>0),'2007 Survey responses'!$F126,\"\")","v":""},{"$f":"IF(AND('2011 Survey responses'!$G122>0,'2007 Survey responses'!$F126>0),'2011 Survey responses'!$G122,\"\")","v":""},"",null,null,{"$f":"IF(AND('2011 Survey responses'!$H122>0,'2007 Survey responses'!$F126>0),'2007 Survey responses'!$F126,\"\")","v":""},{"$f":"IF(AND('2011 Survey responses'!$H122>0,'2007 Survey responses'!$F126>0),'2011 Survey responses'!$H122,\"\")","v":""},"",null,null,{"$f":"IF(AND(Question_grouping!O122>0,'2007 Survey responses'!$F126>0),'2007 Survey responses'!$F126,\"\")","v":""},{"$f":"IF(AND(Question_grouping!O122>0,'2007 Survey responses'!$F126>0),Question_grouping!O122,\"\")","v":""},"",null,null,{"$f":"IF(AND('2011 Survey responses'!$B122>0,'2007 Survey responses'!$C126>0),'2007 Survey responses'!$C126,\"\")","v":""},{"$f":"IF(AND('2011 Survey responses'!$B122>0,'2007 Survey responses'!$C126>0),'2011 Survey responses'!$B122,\"\")","v":""},"",null,null,{"$f":"IF(AND('2011 Survey responses'!$D122>0,'2007 Survey responses'!$D126>0),'2007 Survey responses'!$D126,\"\")","v":""},{"$f":"IF(AND('2011 Survey responses'!$D122>0,'2007 Survey responses'!$D126>0),'2011 Survey responses'!$D122,\"\")","v":""},"",null,null,{"$f":"IF(AND('2011 Survey responses'!$J122>0,'2007 Survey responses'!$H126>0),'2007 Survey responses'!$H126,\"\")","v":""},{"$f":"IF(AND('2011 Survey responses'!$J122>0,'2007 Survey responses'!$H126>0),'2011 Survey responses'!$J122,\"\")","v":""},"",null,null,{"$f":"IF(AND('2011 Survey responses'!$K122>0,'2007 Survey responses'!$J126>0),'2007 Survey responses'!$J126,\"\")","v":""},{"$f":"IF(AND('2011 Survey responses'!$K122>0,'2007 Survey responses'!$J126>0),'2011 Survey responses'!$K122,\"\")","v":""},"",null,null,{"$f":"IF(AND('2011 Survey responses'!$L122>0,'2007 Survey responses'!$I126>0),'2007 Survey responses'!$I126,\"\")","v":""},{"$f":"IF(AND('2011 Survey responses'!$L122>0,'2007 Survey responses'!$I126>0),'2011 Survey responses'!$L122,\"\")","v":""},"",null,null,{"$f":"IF(AND('2011 Survey responses'!$M122>0,'2007 Survey responses'!$K126>0),'2007 Survey responses'!$K126,\"\")","v":""},{"$f":"IF(AND('2011 Survey responses'!$M122>0,'2007 Survey responses'!$K126>0),'2011 Survey responses'!$M122,\"\")","v":""},"",null,null,{"$f":"IF('2007 Survey responses'!$B126>0,IF(AND('2011 Survey responses'!T122>0,'2007 Survey responses'!L126>0),'2007 Survey responses'!L126,\"\"),\"\")","v":""},{"$f":"IF('2007 Survey responses'!$B126>0,IF(AND('2011 Survey responses'!T122>0,'2007 Survey responses'!L126>0),'2011 Survey responses'!T122,\"\"),\"\")","v":""},"",null,null,{"$f":"IF(AND('2011 Survey responses'!$U122>0,'2007 Survey responses'!$M126>0),'2007 Survey responses'!$M126,\"\")","v":""},{"$f":"IF(AND('2011 Survey responses'!$U122>0,'2007 Survey responses'!$M126>0),'2011 Survey responses'!$U122,\"\")","v":""},""]
["Netherlands",{"$f":"IF(AND('2011 Survey responses'!$F123>0,'2007 Survey responses'!E127>0),'2007 Survey responses'!E127,\"\")","v":2},{"$f":"IF(AND('2011 Survey responses'!$F123>0,'2007 Survey responses'!E127>0),'2011 Survey responses'!$F123,\"\")","v":6},5,null,null,{"$f":"IF(AND('2011 Survey responses'!$G123>0,'2007 Survey responses'!$F127>0),'2007 Survey responses'!$F127,\"\")","v":2},{"$f":"IF(AND('2011 Survey responses'!$G123>0,'2007 Survey responses'!$F127>0),'2011 Survey responses'!$G123,\"\")","v":1},1,null,null,{"$f":"IF(AND('2011 Survey responses'!$H123>0,'2007 Survey responses'!$F127>0),'2007 Survey responses'!$F127,\"\")","v":2},{"$f":"IF(AND('2011 Survey responses'!$H123>0,'2007 Survey responses'!$F127>0),'2011 Survey responses'!$H123,\"\")","v":1},1,null,null,{"$f":"IF(AND(Question_grouping!O123>0,'2007 Survey responses'!$F127>0),'2007 Survey responses'!$F127,\"\")","v":2},{"$f":"IF(AND(Question_grouping!O123>0,'2007 Survey responses'!$F127>0),Question_grouping!O123,\"\")","v":1},1,null,null,{"$f":"IF(AND('2011 Survey responses'!$B123>0,'2007 Survey responses'!$C127>0),'2007 Survey responses'!$C127,\"\")","v":4},{"$f":"IF(AND('2011 Survey responses'!$B123>0,'2007 Survey responses'!$C127>0),'2011 Survey responses'!$B123,\"\")","v":6},5,null,null,{"$f":"IF(AND('2011 Survey responses'!$D123>0,'2007 Survey responses'!$D127>0),'2007 Survey responses'!$D127,\"\")","v":2},{"$f":"IF(AND('2011 Survey responses'!$D123>0,'2007 Survey responses'!$D127>0),'2011 Survey responses'!$D123,\"\")","v":6},5,null,null,{"$f":"IF(AND('2011 Survey responses'!$J123>0,'2007 Survey responses'!$H127>0),'2007 Survey responses'!$H127,\"\")","v":1},{"$f":"IF(AND('2011 Survey responses'!$J123>0,'2007 Survey responses'!$H127>0),'2011 Survey responses'!$J123,\"\")","v":1},1,null,null,{"$f":"IF(AND('2011 Survey responses'!$K123>0,'2007 Survey responses'!$J127>0),'2007 Survey responses'!$J127,\"\")","v":4},{"$f":"IF(AND('2011 Survey responses'!$K123>0,'2007 Survey responses'!$J127>0),'2011 Survey responses'!$K123,\"\")","v":4},4,null,null,{"$f":"IF(AND('2011 Survey responses'!$L123>0,'2007 Survey responses'!$I127>0),'2007 Survey responses'!$I127,\"\")","v":2},{"$f":"IF(AND('2011 Survey responses'!$L123>0,'2007 Survey responses'!$I127>0),'2011 Survey responses'!$L123,\"\")","v":1},1,null,null,{"$f":"IF(AND('2011 Survey responses'!$M123>0,'2007 Survey responses'!$K127>0),'2007 Survey responses'!$K127,\"\")","v":3},{"$f":"IF(AND('2011 Survey responses'!$M123>0,'2007 Survey responses'!$K127>0),'2011 Survey responses'!$M123,\"\")","v":6},5,null,null,{"$f":"IF('2007 Survey responses'!$B127>0,IF(AND('2011 Survey responses'!T123>0,'2007 Survey responses'!L127>0),'2007 Survey responses'!L127,\"\"),\"\")","v":1},{"$f":"IF('2007 Survey responses'!$B127>0,IF(AND('2011 Survey responses'!T123>0,'2007 Survey responses'!L127>0),'2011 Survey responses'!T123,\"\"),\"\")","v":6},5,null,null,{"$f":"IF(AND('2011 Survey responses'!$U123>0,'2007 Survey responses'!$M127>0),'2007 Survey responses'!$M127,\"\")","v":1},{"$f":"IF(AND('2011 Survey responses'!$U123>0,'2007 Survey responses'!$M127>0),'2011 Survey responses'!$U123,\"\")","v":6},5]
["New Zealand",{"$f":"IF(AND('2011 Survey responses'!$F124>0,'2007 Survey responses'!E128>0),'2007 Survey responses'!E128,\"\")","v":""},{"$f":"IF(AND('2011 Survey responses'!$F124>0,'2007 Survey responses'!E128>0),'2011 Survey responses'!$F124,\"\")","v":""},"",null,null,{"$f":"IF(AND('2011 Survey responses'!$G124>0,'2007 Survey responses'!$F128>0),'2007 Survey responses'!$F128,\"\")","v":""},{"$f":"IF(AND('2011 Survey responses'!$G124>0,'2007 Survey responses'!$F128>0),'2011 Survey responses'!$G124,\"\")","v":""},"",null,null,{"$f":"IF(AND('2011 Survey responses'!$H124>0,'2007 Survey responses'!$F128>0),'2007 Survey responses'!$F128,\"\")","v":""},{"$f":"IF(AND('2011 Survey responses'!$H124>0,'2007 Survey responses'!$F128>0),'2011 Survey responses'!$H124,\"\")","v":""},"",null,null,{"$f":"IF(AND(Question_grouping!O124>0,'2007 Survey responses'!$F128>0),'2007 Survey responses'!$F128,\"\")","v":""},{"$f":"IF(AND(Question_grouping!O124>0,'2007 Survey responses'!$F128>0),Question_grouping!O124,\"\")","v":""},"",null,null,{"$f":"IF(AND('2011 Survey responses'!$B124>0,'2007 Survey responses'!$C128>0),'2007 Survey responses'!$C128,\"\")","v":""},{"$f":"IF(AND('2011 Survey responses'!$B124>0,'2007 Survey responses'!$C128>0),'2011 Survey responses'!$B124,\"\")","v":""},"",null,null,{"$f":"IF(AND('2011 Survey responses'!$D124>0,'2007 Survey responses'!$D128>0),'2007 Survey responses'!$D128,\"\")","v":""},{"$f":"IF(AND('2011 Survey responses'!$D124>0,'2007 Survey responses'!$D128>0),'2011 Survey responses'!$D124,\"\")","v":""},"",null,null,{"$f":"IF(AND('2011 Survey responses'!$J124>0,'2007 Survey responses'!$H128>0),'2007 Survey responses'!$H128,\"\")","v":""},{"$f":"IF(AND('2011 Survey responses'!$J124>0,'2007 Survey responses'!$H128>0),'2011 Survey responses'!$J124,\"\")","v":""},"",null,null,{"$f":"IF(AND('2011 Survey responses'!$K124>0,'2007 Survey responses'!$J128>0),'2007 Survey responses'!$J128,\"\")","v":""},{"$f":"IF(AND('2011 Survey responses'!$K124>0,'2007 Survey responses'!$J128>0),'2011 Survey responses'!$K124,\"\")","v":""},"",null,null,{"$f":"IF(AND('2011 Survey responses'!$L124>0,'2007 Survey responses'!$I128>0),'2007 Survey responses'!$I128,\"\")","v":""},{"$f":"IF(AND('2011 Survey responses'!$L124>0,'2007 Survey responses'!$I128>0),'2011 Survey responses'!$L124,\"\")","v":""},"",null,null,{"$f":"IF(AND('2011 Survey responses'!$M124>0,'2007 Survey responses'!$K128>0),'2007 Survey responses'!$K128,\"\")","v":""},{"$f":"IF(AND('2011 Survey responses'!$M124>0,'2007 Survey responses'!$K128>0),'2011 Survey responses'!$M124,\"\")","v":""},"",null,null,{"$f":"IF('2007 Survey responses'!$B128>0,IF(AND('2011 Survey responses'!T124>0,'2007 Survey responses'!L128>0),'2007 Survey responses'!L128,\"\"),\"\")","v":""},{"$f":"IF('2007 Survey responses'!$B128>0,IF(AND('2011 Survey responses'!T124>0,'2007 Survey responses'!L128>0),'2011 Survey responses'!T124,\"\"),\"\")","v":""},"",null,null,{"$f":"IF(AND('2011 Survey responses'!$U124>0,'2007 Survey responses'!$M128>0),'2007 Survey responses'!$M128,\"\")","v":""},{"$f":"IF(AND('2011 Survey responses'!$U124>0,'2007 Survey responses'!$M128>0),'2011 Survey responses'!$U124,\"\")","v":""},""]
["Nicaragua",{"$f":"IF(AND('2011 Survey responses'!$F125>0,'2007 Survey responses'!E129>0),'2007 Survey responses'!E129,\"\")","v":""},{"$f":"IF(AND('2011 Survey responses'!$F125>0,'2007 Survey responses'!E129>0),'2011 Survey responses'!$F125,\"\")","v":""},"",null,null,{"$f":"IF(AND('2011 Survey responses'!$G125>0,'2007 Survey responses'!$F129>0),'2007 Survey responses'!$F129,\"\")","v":""},{"$f":"IF(AND('2011 Survey responses'!$G125>0,'2007 Survey responses'!$F129>0),'2011 Survey responses'!$G125,\"\")","v":""},"",null,null,{"$f":"IF(AND('2011 Survey responses'!$H125>0,'2007 Survey responses'!$F129>0),'2007 Survey responses'!$F129,\"\")","v":""},{"$f":"IF(AND('2011 Survey responses'!$H125>0,'2007 Survey responses'!$F129>0),'2011 Survey responses'!$H125,\"\")","v":""},"",null,null,{"$f":"IF(AND(Question_grouping!O125>0,'2007 Survey responses'!$F129>0),'2007 Survey responses'!$F129,\"\")","v":""},{"$f":"IF(AND(Question_grouping!O125>0,'2007 Survey responses'!$F129>0),Question_grouping!O125,\"\")","v":""},"",null,null,{"$f":"IF(AND('2011 Survey responses'!$B125>0,'2007 Survey responses'!$C129>0),'2007 Survey responses'!$C129,\"\")","v":""},{"$f":"IF(AND('2011 Survey responses'!$B125>0,'2007 Survey responses'!$C129>0),'2011 Survey responses'!$B125,\"\")","v":""},"",null,null,{"$f":"IF(AND('2011 Survey responses'!$D125>0,'2007 Survey responses'!$D129>0),'2007 Survey responses'!$D129,\"\")","v":""},{"$f":"IF(AND('2011 Survey responses'!$D125>0,'2007 Survey responses'!$D129>0),'2011 Survey responses'!$D125,\"\")","v":""},"",null,null,{"$f":"IF(AND('2011 Survey responses'!$J125>0,'2007 Survey responses'!$H129>0),'2007 Survey responses'!$H129,\"\")","v":""},{"$f":"IF(AND('2011 Survey responses'!$J125>0,'2007 Survey responses'!$H129>0),'2011 Survey responses'!$J125,\"\")","v":""},"",null,null,{"$f":"IF(AND('2011 Survey responses'!$K125>0,'2007 Survey responses'!$J129>0),'2007 Survey responses'!$J129,\"\")","v":""},{"$f":"IF(AND('2011 Survey responses'!$K125>0,'2007 Survey responses'!$J129>0),'2011 Survey responses'!$K125,\"\")","v":""},"",null,null,{"$f":"IF(AND('2011 Survey responses'!$L125>0,'2007 Survey responses'!$I129>0),'2007 Survey responses'!$I129,\"\")","v":""},{"$f":"IF(AND('2011 Survey responses'!$L125>0,'2007 Survey responses'!$I129>0),'2011 Survey responses'!$L125,\"\")","v":""},"",null,null,{"$f":"IF(AND('2011 Survey responses'!$M125>0,'2007 Survey responses'!$K129>0),'2007 Survey responses'!$K129,\"\")","v":""},{"$f":"IF(AND('2011 Survey responses'!$M125>0,'2007 Survey responses'!$K129>0),'2011 Survey responses'!$M125,\"\")","v":""},"",null,null,{"$f":"IF('2007 Survey responses'!$B129>0,IF(AND('2011 Survey responses'!T125>0,'2007 Survey responses'!L129>0),'2007 Survey responses'!L129,\"\"),\"\")","v":""},{"$f":"IF('2007 Survey responses'!$B129>0,IF(AND('2011 Survey responses'!T125>0,'2007 Survey responses'!L129>0),'2011 Survey responses'!T125,\"\"),\"\")","v":""},"",null,null,{"$f":"IF(AND('2011 Survey responses'!$U125>0,'2007 Survey responses'!$M129>0),'2007 Survey responses'!$M129,\"\")","v":""},{"$f":"IF(AND('2011 Survey responses'!$U125>0,'2007 Survey responses'!$M129>0),'2011 Survey responses'!$U125,\"\")","v":""},""]
["Niger",{"$f":"IF(AND('2011 Survey responses'!$F126>0,'2007 Survey responses'!E130>0),'2007 Survey responses'!E130,\"\")","v":""},{"$f":"IF(AND('2011 Survey responses'!$F126>0,'2007 Survey responses'!E130>0),'2011 Survey responses'!$F126,\"\")","v":""},"",null,null,{"$f":"IF(AND('2011 Survey responses'!$G126>0,'2007 Survey responses'!$F130>0),'2007 Survey responses'!$F130,\"\")","v":""},{"$f":"IF(AND('2011 Survey responses'!$G126>0,'2007 Survey responses'!$F130>0),'2011 Survey responses'!$G126,\"\")","v":""},"",null,null,{"$f":"IF(AND('2011 Survey responses'!$H126>0,'2007 Survey responses'!$F130>0),'2007 Survey responses'!$F130,\"\")","v":""},{"$f":"IF(AND('2011 Survey responses'!$H126>0,'2007 Survey responses'!$F130>0),'2011 Survey responses'!$H126,\"\")","v":""},"",null,null,{"$f":"IF(AND(Question_grouping!O126>0,'2007 Survey responses'!$F130>0),'2007 Survey responses'!$F130,\"\")","v":1},{"$f":"IF(AND(Question_grouping!O126>0,'2007 Survey responses'!$F130>0),Question_grouping!O126,\"\")","v":""},"",null,null,{"$f":"IF(AND('2011 Survey responses'!$B126>0,'2007 Survey responses'!$C130>0),'2007 Survey responses'!$C130,\"\")","v":""},{"$f":"IF(AND('2011 Survey responses'!$B126>0,'2007 Survey responses'!$C130>0),'2011 Survey responses'!$B126,\"\")","v":""},"",null,null,{"$f":"IF(AND('2011 Survey responses'!$D126>0,'2007 Survey responses'!$D130>0),'2007 Survey responses'!$D130,\"\")","v":""},{"$f":"IF(AND('2011 Survey responses'!$D126>0,'2007 Survey responses'!$D130>0),'2011 Survey responses'!$D126,\"\")","v":""},"",null,null,{"$f":"IF(AND('2011 Survey responses'!$J126>0,'2007 Survey responses'!$H130>0),'2007 Survey responses'!$H130,\"\")","v":""},{"$f":"IF(AND('2011 Survey responses'!$J126>0,'2007 Survey responses'!$H130>0),'2011 Survey responses'!$J126,\"\")","v":""},"",null,null,{"$f":"IF(AND('2011 Survey responses'!$K126>0,'2007 Survey responses'!$J130>0),'2007 Survey responses'!$J130,\"\")","v":""},{"$f":"IF(AND('2011 Survey responses'!$K126>0,'2007 Survey responses'!$J130>0),'2011 Survey responses'!$K126,\"\")","v":""},"",null,null,{"$f":"IF(AND('2011 Survey responses'!$L126>0,'2007 Survey responses'!$I130>0),'2007 Survey responses'!$I130,\"\")","v":""},{"$f":"IF(AND('2011 Survey responses'!$L126>0,'2007 Survey responses'!$I130>0),'2011 Survey responses'!$L126,\"\")","v":""},"",null,null,{"$f":"IF(AND('2011 Survey responses'!$M126>0,'2007 Survey responses'!$K130>0),'2007 Survey responses'!$K130,\"\")","v":""},{"$f":"IF(AND('2011 Survey responses'!$M126>0,'2007 Survey responses'!$K130>0),'2011 Survey responses'!$M126,\"\")","v":""},"",null,null,{"$f":"IF('2007 Survey responses'!$B130>0,IF(AND('2011 Survey responses'!T126>0,'2007 Survey responses'!L130>0),'2007 Survey responses'!L130,\"\"),\"\")","v":""},{"$f":"IF('2007 Survey responses'!$B130>0,IF(AND('2011 Survey responses'!T126>0,'2007 Survey responses'!L130>0),'2011 Survey responses'!T126,\"\"),\"\")","v":""},"",null,null,{"$f":"IF(AND('2011 Survey responses'!$U126>0,'2007 Survey responses'!$M130>0),'2007 Survey responses'!$M130,\"\")","v":""},{"$f":"IF(AND('2011 Survey responses'!$U126>0,'2007 Survey responses'!$M130>0),'2011 Survey responses'!$U126,\"\")","v":""},""]
["Nigeria",{"$f":"IF(AND('2011 Survey responses'!$F127>0,'2007 Survey responses'!E131>0),'2007 Survey responses'!E131,\"\")","v":3},{"$f":"IF(AND('2011 Survey responses'!$F127>0,'2007 Survey responses'!E131>0),'2011 Survey responses'!$F127,\"\")","v":3},3,null,null,{"$f":"IF(AND('2011 Survey responses'!$G127>0,'2007 Survey responses'!$F131>0),'2007 Survey responses'!$F131,\"\")","v":2},{"$f":"IF(AND('2011 Survey responses'!$G127>0,'2007 Survey responses'!$F131>0),'2011 Survey responses'!$G127,\"\")","v":2},2,null,null,{"$f":"IF(AND('2011 Survey responses'!$H127>0,'2007 Survey responses'!$F131>0),'2007 Survey responses'!$F131,\"\")","v":2},{"$f":"IF(AND('2011 Survey responses'!$H127>0,'2007 Survey responses'!$F131>0),'2011 Survey responses'!$H127,\"\")","v":2},2,null,null,{"$f":"IF(AND(Question_grouping!O127>0,'2007 Survey responses'!$F131>0),'2007 Survey responses'!$F131,\"\")","v":2},{"$f":"IF(AND(Question_grouping!O127>0,'2007 Survey responses'!$F131>0),Question_grouping!O127,\"\")","v":2},2,null,null,{"$f":"IF(AND('2011 Survey responses'!$B127>0,'2007 Survey responses'!$C131>0),'2007 Survey responses'!$C131,\"\")","v":2},{"$f":"IF(AND('2011 Survey responses'!$B127>0,'2007 Survey responses'!$C131>0),'2011 Survey responses'!$B127,\"\")","v":4},4,null,null,{"$f":"IF(AND('2011 Survey responses'!$D127>0,'2007 Survey responses'!$D131>0),'2007 Survey responses'!$D131,\"\")","v":5},{"$f":"IF(AND('2011 Survey responses'!$D127>0,'2007 Survey responses'!$D131>0),'2011 Survey responses'!$D127,\"\")","v":4},4,null,null,{"$f":"IF(AND('2011 Survey responses'!$J127>0,'2007 Survey responses'!$H131>0),'2007 Survey responses'!$H131,\"\")","v":1},{"$f":"IF(AND('2011 Survey responses'!$J127>0,'2007 Survey responses'!$H131>0),'2011 Survey responses'!$J127,\"\")","v":2},2,null,null,{"$f":"IF(AND('2011 Survey responses'!$K127>0,'2007 Survey responses'!$J131>0),'2007 Survey responses'!$J131,\"\")","v":1},{"$f":"IF(AND('2011 Survey responses'!$K127>0,'2007 Survey responses'!$J131>0),'2011 Survey responses'!$K127,\"\")","v":4},4,null,null,{"$f":"IF(AND('2011 Survey responses'!$L127>0,'2007 Survey responses'!$I131>0),'2007 Survey responses'!$I131,\"\")","v":1},{"$f":"IF(AND('2011 Survey responses'!$L127>0,'2007 Survey responses'!$I131>0),'2011 Survey responses'!$L127,\"\")","v":3},3,null,null,{"$f":"IF(AND('2011 Survey responses'!$M127>0,'2007 Survey responses'!$K131>0),'2007 Survey responses'!$K131,\"\")","v":5},{"$f":"IF(AND('2011 Survey responses'!$M127>0,'2007 Survey responses'!$K131>0),'2011 Survey responses'!$M127,\"\")","v":2},2,null,null,{"$f":"IF('2007 Survey responses'!$B131>0,IF(AND('2011 Survey responses'!T127>0,'2007 Survey responses'!L131>0),'2007 Survey responses'!L131,\"\"),\"\")","v":1},{"$f":"IF('2007 Survey responses'!$B131>0,IF(AND('2011 Survey responses'!T127>0,'2007 Survey responses'!L131>0),'2011 Survey responses'!T127,\"\"),\"\")","v":4},4,null,null,{"$f":"IF(AND('2011 Survey responses'!$U127>0,'2007 Survey responses'!$M131>0),'2007 Survey responses'!$M131,\"\")","v":4},{"$f":"IF(AND('2011 Survey responses'!$U127>0,'2007 Survey responses'!$M131>0),'2011 Survey responses'!$U127,\"\")","v":4},4]
["Norway",{"$f":"IF(AND('2011 Survey responses'!$F128>0,'2007 Survey responses'!E132>0),'2007 Survey responses'!E132,\"\")","v":2},{"$f":"IF(AND('2011 Survey responses'!$F128>0,'2007 Survey responses'!E132>0),'2011 Survey responses'!$F128,\"\")","v":1},1,null,null,{"$f":"IF(AND('2011 Survey responses'!$G128>0,'2007 Survey responses'!$F132>0),'2007 Survey responses'!$F132,\"\")","v":""},{"$f":"IF(AND('2011 Survey responses'!$G128>0,'2007 Survey responses'!$F132>0),'2011 Survey responses'!$G128,\"\")","v":""},"",null,null,{"$f":"IF(AND('2011 Survey responses'!$H128>0,'2007 Survey responses'!$F132>0),'2007 Survey responses'!$F132,\"\")","v":""},{"$f":"IF(AND('2011 Survey responses'!$H128>0,'2007 Survey responses'!$F132>0),'2011 Survey responses'!$H128,\"\")","v":""},"",null,null,{"$f":"IF(AND(Question_grouping!O128>0,'2007 Survey responses'!$F132>0),'2007 Survey responses'!$F132,\"\")","v":""},{"$f":"IF(AND(Question_grouping!O128>0,'2007 Survey responses'!$F132>0),Question_grouping!O128,\"\")","v":""},"",null,null,{"$f":"IF(AND('2011 Survey responses'!$B128>0,'2007 Survey responses'!$C132>0),'2007 Survey responses'!$C132,\"\")","v":4},{"$f":"IF(AND('2011 Survey responses'!$B128>0,'2007 Survey responses'!$C132>0),'2011 Survey responses'!$B128,\"\")","v":5},4,null,null,{"$f":"IF(AND('2011 Survey responses'!$D128>0,'2007 Survey responses'!$D132>0),'2007 Survey responses'!$D132,\"\")","v":2},{"$f":"IF(AND('2011 Survey responses'!$D128>0,'2007 Survey responses'!$D132>0),'2011 Survey responses'!$D128,\"\")","v":6},5,null,null,{"$f":"IF(AND('2011 Survey responses'!$J128>0,'2007 Survey responses'!$H132>0),'2007 Survey responses'!$H132,\"\")","v":""},{"$f":"IF(AND('2011 Survey responses'!$J128>0,'2007 Survey responses'!$H132>0),'2011 Survey responses'!$J128,\"\")","v":""},"",null,null,{"$f":"IF(AND('2011 Survey responses'!$K128>0,'2007 Survey responses'!$J132>0),'2007 Survey responses'!$J132,\"\")","v":""},{"$f":"IF(AND('2011 Survey responses'!$K128>0,'2007 Survey responses'!$J132>0),'2011 Survey responses'!$K128,\"\")","v":""},"",null,null,{"$f":"IF(AND('2011 Survey responses'!$L128>0,'2007 Survey responses'!$I132>0),'2007 Survey responses'!$I132,\"\")","v":4},{"$f":"IF(AND('2011 Survey responses'!$L128>0,'2007 Survey responses'!$I132>0),'2011 Survey responses'!$L128,\"\")","v":1},1,null,null,{"$f":"IF(AND('2011 Survey responses'!$M128>0,'2007 Survey responses'!$K132>0),'2007 Survey responses'!$K132,\"\")","v":""},{"$f":"IF(AND('2011 Survey responses'!$M128>0,'2007 Survey responses'!$K132>0),'2011 Survey responses'!$M128,\"\")","v":""},"",null,null,{"$f":"IF('2007 Survey responses'!$B132>0,IF(AND('2011 Survey responses'!T128>0,'2007 Survey responses'!L132>0),'2007 Survey responses'!L132,\"\"),\"\")","v":""},{"$f":"IF('2007 Survey responses'!$B132>0,IF(AND('2011 Survey responses'!T128>0,'2007 Survey responses'!L132>0),'2011 Survey responses'!T128,\"\"),\"\")","v":""},"",null,null,{"$f":"IF(AND('2011 Survey responses'!$U128>0,'2007 Survey responses'!$M132>0),'2007 Survey responses'!$M132,\"\")","v":""},{"$f":"IF(AND('2011 Survey responses'!$U128>0,'2007 Survey responses'!$M132>0),'2011 Survey responses'!$U128,\"\")","v":""},""]
["Oman",{"$f":"IF(AND('2011 Survey responses'!$F129>0,'2007 Survey responses'!E133>0),'2007 Survey responses'!E133,\"\")","v":""},{"$f":"IF(AND('2011 Survey responses'!$F129>0,'2007 Survey responses'!E133>0),'2011 Survey responses'!$F129,\"\")","v":""},"",null,null,{"$f":"IF(AND('2011 Survey responses'!$G129>0,'2007 Survey responses'!$F133>0),'2007 Survey responses'!$F133,\"\")","v":""},{"$f":"IF(AND('2011 Survey responses'!$G129>0,'2007 Survey responses'!$F133>0),'2011 Survey responses'!$G129,\"\")","v":""},"",null,null,{"$f":"IF(AND('2011 Survey responses'!$H129>0,'2007 Survey responses'!$F133>0),'2007 Survey responses'!$F133,\"\")","v":""},{"$f":"IF(AND('2011 Survey responses'!$H129>0,'2007 Survey responses'!$F133>0),'2011 Survey responses'!$H129,\"\")","v":""},"",null,null,{"$f":"IF(AND(Question_grouping!O129>0,'2007 Survey responses'!$F133>0),'2007 Survey responses'!$F133,\"\")","v":""},{"$f":"IF(AND(Question_grouping!O129>0,'2007 Survey responses'!$F133>0),Question_grouping!O129,\"\")","v":""},"",null,null,{"$f":"IF(AND('2011 Survey responses'!$B129>0,'2007 Survey responses'!$C133>0),'2007 Survey responses'!$C133,\"\")","v":""},{"$f":"IF(AND('2011 Survey responses'!$B129>0,'2007 Survey responses'!$C133>0),'2011 Survey responses'!$B129,\"\")","v":""},"",null,null,{"$f":"IF(AND('2011 Survey responses'!$D129>0,'2007 Survey responses'!$D133>0),'2007 Survey responses'!$D133,\"\")","v":""},{"$f":"IF(AND('2011 Survey responses'!$D129>0,'2007 Survey responses'!$D133>0),'2011 Survey responses'!$D129,\"\")","v":""},"",null,null,{"$f":"IF(AND('2011 Survey responses'!$J129>0,'2007 Survey responses'!$H133>0),'2007 Survey responses'!$H133,\"\")","v":""},{"$f":"IF(AND('2011 Survey responses'!$J129>0,'2007 Survey responses'!$H133>0),'2011 Survey responses'!$J129,\"\")","v":""},"",null,null,{"$f":"IF(AND('2011 Survey responses'!$K129>0,'2007 Survey responses'!$J133>0),'2007 Survey responses'!$J133,\"\")","v":""},{"$f":"IF(AND('2011 Survey responses'!$K129>0,'2007 Survey responses'!$J133>0),'2011 Survey responses'!$K129,\"\")","v":""},"",null,null,{"$f":"IF(AND('2011 Survey responses'!$L129>0,'2007 Survey responses'!$I133>0),'2007 Survey responses'!$I133,\"\")","v":""},{"$f":"IF(AND('2011 Survey responses'!$L129>0,'2007 Survey responses'!$I133>0),'2011 Survey responses'!$L129,\"\")","v":""},"",null,null,{"$f":"IF(AND('2011 Survey responses'!$M129>0,'2007 Survey responses'!$K133>0),'2007 Survey responses'!$K133,\"\")","v":""},{"$f":"IF(AND('2011 Survey responses'!$M129>0,'2007 Survey responses'!$K133>0),'2011 Survey responses'!$M129,\"\")","v":""},"",null,null,{"$f":"IF('2007 Survey responses'!$B133>0,IF(AND('2011 Survey responses'!T129>0,'2007 Survey responses'!L133>0),'2007 Survey responses'!L133,\"\"),\"\")","v":""},{"$f":"IF('2007 Survey responses'!$B133>0,IF(AND('2011 Survey responses'!T129>0,'2007 Survey responses'!L133>0),'2011 Survey responses'!T129,\"\"),\"\")","v":""},"",null,null,{"$f":"IF(AND('2011 Survey responses'!$U129>0,'2007 Survey responses'!$M133>0),'2007 Survey responses'!$M133,\"\")","v":""},{"$f":"IF(AND('2011 Survey responses'!$U129>0,'2007 Survey responses'!$M133>0),'2011 Survey responses'!$U129,\"\")","v":""},""]
["Pakistan",{"$f":"IF(AND('2011 Survey responses'!$F130>0,'2007 Survey responses'!E134>0),'2007 Survey responses'!E134,\"\")","v":""},{"$f":"IF(AND('2011 Survey responses'!$F130>0,'2007 Survey responses'!E134>0),'2011 Survey responses'!$F130,\"\")","v":""},"",null,null,{"$f":"IF(AND('2011 Survey responses'!$G130>0,'2007 Survey responses'!$F134>0),'2007 Survey responses'!$F134,\"\")","v":""},{"$f":"IF(AND('2011 Survey responses'!$G130>0,'2007 Survey responses'!$F134>0),'2011 Survey responses'!$G130,\"\")","v":""},"",null,null,{"$f":"IF(AND('2011 Survey responses'!$H130>0,'2007 Survey responses'!$F134>0),'2007 Survey responses'!$F134,\"\")","v":""},{"$f":"IF(AND('2011 Survey responses'!$H130>0,'2007 Survey responses'!$F134>0),'2011 Survey responses'!$H130,\"\")","v":""},"",null,null,{"$f":"IF(AND(Question_grouping!O130>0,'2007 Survey responses'!$F134>0),'2007 Survey responses'!$F134,\"\")","v":""},{"$f":"IF(AND(Question_grouping!O130>0,'2007 Survey responses'!$F134>0),Question_grouping!O130,\"\")","v":""},"",null,null,{"$f":"IF(AND('2011 Survey responses'!$B130>0,'2007 Survey responses'!$C134>0),'2007 Survey responses'!$C134,\"\")","v":""},{"$f":"IF(AND('2011 Survey responses'!$B130>0,'2007 Survey responses'!$C134>0),'2011 Survey responses'!$B130,\"\")","v":""},"",null,null,{"$f":"IF(AND('2011 Survey responses'!$D130>0,'2007 Survey responses'!$D134>0),'2007 Survey responses'!$D134,\"\")","v":""},{"$f":"IF(AND('2011 Survey responses'!$D130>0,'2007 Survey responses'!$D134>0),'2011 Survey responses'!$D130,\"\")","v":""},"",null,null,{"$f":"IF(AND('2011 Survey responses'!$J130>0,'2007 Survey responses'!$H134>0),'2007 Survey responses'!$H134,\"\")","v":""},{"$f":"IF(AND('2011 Survey responses'!$J130>0,'2007 Survey responses'!$H134>0),'2011 Survey responses'!$J130,\"\")","v":""},"",null,null,{"$f":"IF(AND('2011 Survey responses'!$K130>0,'2007 Survey responses'!$J134>0),'2007 Survey responses'!$J134,\"\")","v":""},{"$f":"IF(AND('2011 Survey responses'!$K130>0,'2007 Survey responses'!$J134>0),'2011 Survey responses'!$K130,\"\")","v":""},"",null,null,{"$f":"IF(AND('2011 Survey responses'!$L130>0,'2007 Survey responses'!$I134>0),'2007 Survey responses'!$I134,\"\")","v":""},{"$f":"IF(AND('2011 Survey responses'!$L130>0,'2007 Survey responses'!$I134>0),'2011 Survey responses'!$L130,\"\")","v":""},"",null,null,{"$f":"IF(AND('2011 Survey responses'!$M130>0,'2007 Survey responses'!$K134>0),'2007 Survey responses'!$K134,\"\")","v":""},{"$f":"IF(AND('2011 Survey responses'!$M130>0,'2007 Survey responses'!$K134>0),'2011 Survey responses'!$M130,\"\")","v":""},"",null,null,{"$f":"IF('2007 Survey responses'!$B134>0,IF(AND('2011 Survey responses'!T130>0,'2007 Survey responses'!L134>0),'2007 Survey responses'!L134,\"\"),\"\")","v":""},{"$f":"IF('2007 Survey responses'!$B134>0,IF(AND('2011 Survey responses'!T130>0,'2007 Survey responses'!L134>0),'2011 Survey responses'!T130,\"\"),\"\")","v":""},"",null,null,{"$f":"IF(AND('2011 Survey responses'!$U130>0,'2007 Survey responses'!$M134>0),'2007 Survey responses'!$M134,\"\")","v":""},{"$f":"IF(AND('2011 Survey responses'!$U130>0,'2007 Survey responses'!$M134>0),'2011 Survey responses'!$U130,\"\")","v":""},""]
["Palau",{"$f":"IF(AND('2011 Survey responses'!$F131>0,'2007 Survey responses'!E135>0),'2007 Survey responses'!E135,\"\")","v":""},{"$f":"IF(AND('2011 Survey responses'!$F131>0,'2007 Survey responses'!E135>0),'2011 Survey responses'!$F131,\"\")","v":""},{"$f":"IF(C130=0,\"\",IF(C130=6,5,IF(C130=5,4,C130)))","v":""},null,null,{"$f":"IF(AND('2011 Survey responses'!$G131>0,'2007 Survey responses'!$F135>0),'2007 Survey responses'!$F135,\"\")","v":""},{"$f":"IF(AND('2011 Survey responses'!$G131>0,'2007 Survey responses'!$F135>0),'2011 Survey responses'!$G131,\"\")","v":""},{"$f":"IF(H130=0,\"\",IF(H130=6,5,IF(H130=5,4,H130)))","v":""},null,null,{"$f":"IF(AND('2011 Survey responses'!$H131>0,'2007 Survey responses'!$F135>0),'2007 Survey responses'!$F135,\"\")","v":""},{"$f":"IF(AND('2011 Survey responses'!$H131>0,'2007 Survey responses'!$F135>0),'2011 Survey responses'!$H131,\"\")","v":""},{"$f":"IF(M130=0,\"\",IF(M130=6,5,IF(M130=5,4,M130)))","v":""},null,null,{"$f":"IF(AND(Question_grouping!O131>0,'2007 Survey responses'!$F135>0),'2007 Survey responses'!$F135,\"\")","v":1},{"$f":"IF(AND(Question_grouping!O131>0,'2007 Survey responses'!$F135>0),Question_grouping!O131,\"\")","v":""},{"$f":"IF(R130=0,\"\",IF(R130=6,5,IF(R130=5,4,R130)))","v":""},null,null,{"$f":"IF(AND('2011 Survey responses'!$B131>0,'2007 Survey responses'!$C135>0),'2007 Survey responses'!$C135,\"\")","v":""},{"$f":"IF(AND('2011 Survey responses'!$B131>0,'2007 Survey responses'!$C135>0),'2011 Survey responses'!$B131,\"\")","v":""},{"$f":"IF(W130=0,\"\",IF(W130=6,5,IF(W130=5,4,W130)))","v":""},null,null,{"$f":"IF(AND('2011 Survey responses'!$D131>0,'2007 Survey responses'!$D135>0),'2007 Survey responses'!$D135,\"\")","v":""},{"$f":"IF(AND('2011 Survey responses'!$D131>0,'2007 Survey responses'!$D135>0),'2011 Survey responses'!$D131,\"\")","v":""},{"$f":"IF(AB130=0,\"\",IF(AB130=6,5,IF(AB130=5,4,AB130)))","v":""},null,null,{"$f":"IF(AND('2011 Survey responses'!$J131>0,'2007 Survey responses'!$H135>0),'2007 Survey responses'!$H135,\"\")","v":""},{"$f":"IF(AND('2011 Survey responses'!$J131>0,'2007 Survey responses'!$H135>0),'2011 Survey responses'!$J131,\"\")","v":""},{"$f":"IF(AG130=0,\"\",IF(AG130=6,5,IF(AG130=5,4,AG130)))","v":""},null,null,{"$f":"IF(AND('2011 Survey responses'!$K131>0,'2007 Survey responses'!$J135>0),'2007 Survey responses'!$J135,\"\")","v":""},{"$f":"IF(AND('2011 Survey responses'!$K131>0,'2007 Survey responses'!$J135>0),'2011 Survey responses'!$K131,\"\")","v":""},{"$f":"IF(AL130=0,\"\",IF(AL130=6,5,IF(AL130=5,4,AL130)))","v":""},null,null,{"$f":"IF(AND('2011 Survey responses'!$L131>0,'2007 Survey responses'!$I135>0),'2007 Survey responses'!$I135,\"\")","v":""},{"$f":"IF(AND('2011 Survey responses'!$L131>0,'2007 Survey responses'!$I135>0),'2011 Survey responses'!$L131,\"\")","v":""},{"$f":"IF(AQ130=0,\"\",IF(AQ130=6,5,IF(AQ130=5,4,AQ130)))","v":""},null,null,{"$f":"IF(AND('2011 Survey responses'!$M131>0,'2007 Survey responses'!$K135>0),'2007 Survey responses'!$K135,\"\")","v":""},{"$f":"IF(AND('2011 Survey responses'!$M131>0,'2007 Survey responses'!$K135>0),'2011 Survey responses'!$M131,\"\")","v":""},{"$f":"IF(AV130=0,\"\",IF(AV130=6,5,IF(AV130=5,4,AV130)))","v":""},null,null,{"$f":"IF('2007 Survey responses'!$B135>0,IF(AND('2011 Survey responses'!T131>0,'2007 Survey responses'!L135>0),'2007 Survey responses'!L135,\"\"),\"\")","v":""},{"$f":"IF('2007 Survey responses'!$B135>0,IF(AND('2011 Survey responses'!T131>0,'2007 Survey responses'!L135>0),'2011 Survey responses'!T131,\"\"),\"\")","v":""},{"$f":"IF(BA130=0,\"\",IF(BA130=6,5,IF(BA130=5,4,BA130)))","v":""},null,null,{"$f":"IF(AND('2011 Survey responses'!$U131>0,'2007 Survey responses'!$M135>0),'2007 Survey responses'!$M135,\"\")","v":""},{"$f":"IF(AND('2011 Survey responses'!$U131>0,'2007 Survey responses'!$M135>0),'2011 Survey responses'!$U131,\"\")","v":""},{"$f":"IF(BF130=0,\"\",IF(BF130=6,5,IF(BF130=5,4,BF130)))","v":""}]
["Panama",{"$f":"IF(AND('2011 Survey responses'!$F132>0,'2007 Survey responses'!E136>0),'2007 Survey responses'!E136,\"\")","v":""},{"$f":"IF(AND('2011 Survey responses'!$F132>0,'2007 Survey responses'!E136>0),'2011 Survey responses'!$F132,\"\")","v":""},"",null,null,{"$f":"IF(AND('2011 Survey responses'!$G132>0,'2007 Survey responses'!$F136>0),'2007 Survey responses'!$F136,\"\")","v":""},{"$f":"IF(AND('2011 Survey responses'!$G132>0,'2007 Survey responses'!$F136>0),'2011 Survey responses'!$G132,\"\")","v":""},"",null,null,{"$f":"IF(AND('2011 Survey responses'!$H132>0,'2007 Survey responses'!$F136>0),'2007 Survey responses'!$F136,\"\")","v":""},{"$f":"IF(AND('2011 Survey responses'!$H132>0,'2007 Survey responses'!$F136>0),'2011 Survey responses'!$H132,\"\")","v":""},"",null,null,{"$f":"IF(AND(Question_grouping!O132>0,'2007 Survey responses'!$F136>0),'2007 Survey responses'!$F136,\"\")","v":""},{"$f":"IF(AND(Question_grouping!O132>0,'2007 Survey responses'!$F136>0),Question_grouping!O132,\"\")","v":""},"",null,null,{"$f":"IF(AND('2011 Survey responses'!$B132>0,'2007 Survey responses'!$C136>0),'2007 Survey responses'!$C136,\"\")","v":""},{"$f":"IF(AND('2011 Survey responses'!$B132>0,'2007 Survey responses'!$C136>0),'2011 Survey responses'!$B132,\"\")","v":""},"",null,null,{"$f":"IF(AND('2011 Survey responses'!$D132>0,'2007 Survey responses'!$D136>0),'2007 Survey responses'!$D136,\"\")","v":""},{"$f":"IF(AND('2011 Survey responses'!$D132>0,'2007 Survey responses'!$D136>0),'2011 Survey responses'!$D132,\"\")","v":""},"",null,null,{"$f":"IF(AND('2011 Survey responses'!$J132>0,'2007 Survey responses'!$H136>0),'2007 Survey responses'!$H136,\"\")","v":""},{"$f":"IF(AND('2011 Survey responses'!$J132>0,'2007 Survey responses'!$H136>0),'2011 Survey responses'!$J132,\"\")","v":""},"",null,null,{"$f":"IF(AND('2011 Survey responses'!$K132>0,'2007 Survey responses'!$J136>0),'2007 Survey responses'!$J136,\"\")","v":""},{"$f":"IF(AND('2011 Survey responses'!$K132>0,'2007 Survey responses'!$J136>0),'2011 Survey responses'!$K132,\"\")","v":""},"",null,null,{"$f":"IF(AND('2011 Survey responses'!$L132>0,'2007 Survey responses'!$I136>0),'2007 Survey responses'!$I136,\"\")","v":""},{"$f":"IF(AND('2011 Survey responses'!$L132>0,'2007 Survey responses'!$I136>0),'2011 Survey responses'!$L132,\"\")","v":""},"",null,null,{"$f":"IF(AND('2011 Survey responses'!$M132>0,'2007 Survey responses'!$K136>0),'2007 Survey responses'!$K136,\"\")","v":""},{"$f":"IF(AND('2011 Survey responses'!$M132>0,'2007 Survey responses'!$K136>0),'2011 Survey responses'!$M132,\"\")","v":""},"",null,null,{"$f":"IF('2007 Survey responses'!$B136>0,IF(AND('2011 Survey responses'!T132>0,'2007 Survey responses'!L136>0),'2007 Survey responses'!L136,\"\"),\"\")","v":""},{"$f":"IF('2007 Survey responses'!$B136>0,IF(AND('2011 Survey responses'!T132>0,'2007 Survey responses'!L136>0),'2011 Survey responses'!T132,\"\"),\"\")","v":""},"",null,null,{"$f":"IF(AND('2011 Survey responses'!$U132>0,'2007 Survey responses'!$M136>0),'2007 Survey responses'!$M136,\"\")","v":""},{"$f":"IF(AND('2011 Survey responses'!$U132>0,'2007 Survey responses'!$M136>0),'2011 Survey responses'!$U132,\"\")","v":""},""]
["Papua New Guinea",{"$f":"IF(AND('2011 Survey responses'!$F133>0,'2007 Survey responses'!E137>0),'2007 Survey responses'!E137,\"\")","v":""},{"$f":"IF(AND('2011 Survey responses'!$F133>0,'2007 Survey responses'!E137>0),'2011 Survey responses'!$F133,\"\")","v":""},"",null,null,{"$f":"IF(AND('2011 Survey responses'!$G133>0,'2007 Survey responses'!$F137>0),'2007 Survey responses'!$F137,\"\")","v":""},{"$f":"IF(AND('2011 Survey responses'!$G133>0,'2007 Survey responses'!$F137>0),'2011 Survey responses'!$G133,\"\")","v":""},"",null,null,{"$f":"IF(AND('2011 Survey responses'!$H133>0,'2007 Survey responses'!$F137>0),'2007 Survey responses'!$F137,\"\")","v":""},{"$f":"IF(AND('2011 Survey responses'!$H133>0,'2007 Survey responses'!$F137>0),'2011 Survey responses'!$H133,\"\")","v":""},"",null,null,{"$f":"IF(AND(Question_grouping!O133>0,'2007 Survey responses'!$F137>0),'2007 Survey responses'!$F137,\"\")","v":""},{"$f":"IF(AND(Question_grouping!O133>0,'2007 Survey responses'!$F137>0),Question_grouping!O133,\"\")","v":""},"",null,null,{"$f":"IF(AND('2011 Survey responses'!$B133>0,'2007 Survey responses'!$C137>0),'2007 Survey responses'!$C137,\"\")","v":""},{"$f":"IF(AND('2011 Survey responses'!$B133>0,'2007 Survey responses'!$C137>0),'2011 Survey responses'!$B133,\"\")","v":""},"",null,null,{"$f":"IF(AND('2011 Survey responses'!$D133>0,'2007 Survey responses'!$D137>0),'2007 Survey responses'!$D137,\"\")","v":""},{"$f":"IF(AND('2011 Survey responses'!$D133>0,'2007 Survey responses'!$D137>0),'2011 Survey responses'!$D133,\"\")","v":""},"",null,null,{"$f":"IF(AND('2011 Survey responses'!$J133>0,'2007 Survey responses'!$H137>0),'2007 Survey responses'!$H137,\"\")","v":""},{"$f":"IF(AND('2011 Survey responses'!$J133>0,'2007 Survey responses'!$H137>0),'2011 Survey responses'!$J133,\"\")","v":""},"",null,null,{"$f":"IF(AND('2011 Survey responses'!$K133>0,'2007 Survey responses'!$J137>0),'2007 Survey responses'!$J137,\"\")","v":""},{"$f":"IF(AND('2011 Survey responses'!$K133>0,'2007 Survey responses'!$J137>0),'2011 Survey responses'!$K133,\"\")","v":""},"",null,null,{"$f":"IF(AND('2011 Survey responses'!$L133>0,'2007 Survey responses'!$I137>0),'2007 Survey responses'!$I137,\"\")","v":""},{"$f":"IF(AND('2011 Survey responses'!$L133>0,'2007 Survey responses'!$I137>0),'2011 Survey responses'!$L133,\"\")","v":""},"",null,null,{"$f":"IF(AND('2011 Survey responses'!$M133>0,'2007 Survey responses'!$K137>0),'2007 Survey responses'!$K137,\"\")","v":""},{"$f":"IF(AND('2011 Survey responses'!$M133>0,'2007 Survey responses'!$K137>0),'2011 Survey responses'!$M133,\"\")","v":""},"",null,null,{"$f":"IF('2007 Survey responses'!$B137>0,IF(AND('2011 Survey responses'!T133>0,'2007 Survey responses'!L137>0),'2007 Survey responses'!L137,\"\"),\"\")","v":""},{"$f":"IF('2007 Survey responses'!$B137>0,IF(AND('2011 Survey responses'!T133>0,'2007 Survey responses'!L137>0),'2011 Survey responses'!T133,\"\"),\"\")","v":""},"",null,null,{"$f":"IF(AND('2011 Survey responses'!$U133>0,'2007 Survey responses'!$M137>0),'2007 Survey responses'!$M137,\"\")","v":""},{"$f":"IF(AND('2011 Survey responses'!$U133>0,'2007 Survey responses'!$M137>0),'2011 Survey responses'!$U133,\"\")","v":""},""]
["Paraguay",{"$f":"IF(AND('2011 Survey responses'!$F134>0,'2007 Survey responses'!E138>0),'2007 Survey responses'!E138,\"\")","v":""},{"$f":"IF(AND('2011 Survey responses'!$F134>0,'2007 Survey responses'!E138>0),'2011 Survey responses'!$F134,\"\")","v":""},"",null,null,{"$f":"IF(AND('2011 Survey responses'!$G134>0,'2007 Survey responses'!$F138>0),'2007 Survey responses'!$F138,\"\")","v":""},{"$f":"IF(AND('2011 Survey responses'!$G134>0,'2007 Survey responses'!$F138>0),'2011 Survey responses'!$G134,\"\")","v":""},"",null,null,{"$f":"IF(AND('2011 Survey responses'!$H134>0,'2007 Survey responses'!$F138>0),'2007 Survey responses'!$F138,\"\")","v":""},{"$f":"IF(AND('2011 Survey responses'!$H134>0,'2007 Survey responses'!$F138>0),'2011 Survey responses'!$H134,\"\")","v":""},"",null,null,{"$f":"IF(AND(Question_grouping!O134>0,'2007 Survey responses'!$F138>0),'2007 Survey responses'!$F138,\"\")","v":""},{"$f":"IF(AND(Question_grouping!O134>0,'2007 Survey responses'!$F138>0),Question_grouping!O134,\"\")","v":""},"",null,null,{"$f":"IF(AND('2011 Survey responses'!$B134>0,'2007 Survey responses'!$C138>0),'2007 Survey responses'!$C138,\"\")","v":""},{"$f":"IF(AND('2011 Survey responses'!$B134>0,'2007 Survey responses'!$C138>0),'2011 Survey responses'!$B134,\"\")","v":""},"",null,null,{"$f":"IF(AND('2011 Survey responses'!$D134>0,'2007 Survey responses'!$D138>0),'2007 Survey responses'!$D138,\"\")","v":""},{"$f":"IF(AND('2011 Survey responses'!$D134>0,'2007 Survey responses'!$D138>0),'2011 Survey responses'!$D134,\"\")","v":""},"",null,null,{"$f":"IF(AND('2011 Survey responses'!$J134>0,'2007 Survey responses'!$H138>0),'2007 Survey responses'!$H138,\"\")","v":""},{"$f":"IF(AND('2011 Survey responses'!$J134>0,'2007 Survey responses'!$H138>0),'2011 Survey responses'!$J134,\"\")","v":""},"",null,null,{"$f":"IF(AND('2011 Survey responses'!$K134>0,'2007 Survey responses'!$J138>0),'2007 Survey responses'!$J138,\"\")","v":""},{"$f":"IF(AND('2011 Survey responses'!$K134>0,'2007 Survey responses'!$J138>0),'2011 Survey responses'!$K134,\"\")","v":""},"",null,null,{"$f":"IF(AND('2011 Survey responses'!$L134>0,'2007 Survey responses'!$I138>0),'2007 Survey responses'!$I138,\"\")","v":""},{"$f":"IF(AND('2011 Survey responses'!$L134>0,'2007 Survey responses'!$I138>0),'2011 Survey responses'!$L134,\"\")","v":""},"",null,null,{"$f":"IF(AND('2011 Survey responses'!$M134>0,'2007 Survey responses'!$K138>0),'2007 Survey responses'!$K138,\"\")","v":""},{"$f":"IF(AND('2011 Survey responses'!$M134>0,'2007 Survey responses'!$K138>0),'2011 Survey responses'!$M134,\"\")","v":""},"",null,null,{"$f":"IF('2007 Survey responses'!$B138>0,IF(AND('2011 Survey responses'!T134>0,'2007 Survey responses'!L138>0),'2007 Survey responses'!L138,\"\"),\"\")","v":""},{"$f":"IF('2007 Survey responses'!$B138>0,IF(AND('2011 Survey responses'!T134>0,'2007 Survey responses'!L138>0),'2011 Survey responses'!T134,\"\"),\"\")","v":""},"",null,null,{"$f":"IF(AND('2011 Survey responses'!$U134>0,'2007 Survey responses'!$M138>0),'2007 Survey responses'!$M138,\"\")","v":""},{"$f":"IF(AND('2011 Survey responses'!$U134>0,'2007 Survey responses'!$M138>0),'2011 Survey responses'!$U134,\"\")","v":""},""]
["Peru",{"$f":"IF(AND('2011 Survey responses'!$F135>0,'2007 Survey responses'!E139>0),'2007 Survey responses'!E139,\"\")","v":""},{"$f":"IF(AND('2011 Survey responses'!$F135>0,'2007 Survey responses'!E139>0),'2011 Survey responses'!$F135,\"\")","v":""},"",null,null,{"$f":"IF(AND('2011 Survey responses'!$G135>0,'2007 Survey responses'!$F139>0),'2007 Survey responses'!$F139,\"\")","v":""},{"$f":"IF(AND('2011 Survey responses'!$G135>0,'2007 Survey responses'!$F139>0),'2011 Survey responses'!$G135,\"\")","v":""},"",null,null,{"$f":"IF(AND('2011 Survey responses'!$H135>0,'2007 Survey responses'!$F139>0),'2007 Survey responses'!$F139,\"\")","v":""},{"$f":"IF(AND('2011 Survey responses'!$H135>0,'2007 Survey responses'!$F139>0),'2011 Survey responses'!$H135,\"\")","v":""},"",null,null,{"$f":"IF(AND(Question_grouping!O135>0,'2007 Survey responses'!$F139>0),'2007 Survey responses'!$F139,\"\")","v":""},{"$f":"IF(AND(Question_grouping!O135>0,'2007 Survey responses'!$F139>0),Question_grouping!O135,\"\")","v":""},"",null,null,{"$f":"IF(AND('2011 Survey responses'!$B135>0,'2007 Survey responses'!$C139>0),'2007 Survey responses'!$C139,\"\")","v":4},{"$f":"IF(AND('2011 Survey responses'!$B135>0,'2007 Survey responses'!$C139>0),'2011 Survey responses'!$B135,\"\")","v":4},4,null,null,{"$f":"IF(AND('2011 Survey responses'!$D135>0,'2007 Survey responses'!$D139>0),'2007 Survey responses'!$D139,\"\")","v":4},{"$f":"IF(AND('2011 Survey responses'!$D135>0,'2007 Survey responses'!$D139>0),'2011 Survey responses'!$D135,\"\")","v":4},4,null,null,{"$f":"IF(AND('2011 Survey responses'!$J135>0,'2007 Survey responses'!$H139>0),'2007 Survey responses'!$H139,\"\")","v":""},{"$f":"IF(AND('2011 Survey responses'!$J135>0,'2007 Survey responses'!$H139>0),'2011 Survey responses'!$J135,\"\")","v":""},"",null,null,{"$f":"IF(AND('2011 Survey responses'!$K135>0,'2007 Survey responses'!$J139>0),'2007 Survey responses'!$J139,\"\")","v":""},{"$f":"IF(AND('2011 Survey responses'!$K135>0,'2007 Survey responses'!$J139>0),'2011 Survey responses'!$K135,\"\")","v":""},"",null,null,{"$f":"IF(AND('2011 Survey responses'!$L135>0,'2007 Survey responses'!$I139>0),'2007 Survey responses'!$I139,\"\")","v":4},{"$f":"IF(AND('2011 Survey responses'!$L135>0,'2007 Survey responses'!$I139>0),'2011 Survey responses'!$L135,\"\")","v":2},2,null,null,{"$f":"IF(AND('2011 Survey responses'!$M135>0,'2007 Survey responses'!$K139>0),'2007 Survey responses'!$K139,\"\")","v":4},{"$f":"IF(AND('2011 Survey responses'!$M135>0,'2007 Survey responses'!$K139>0),'2011 Survey responses'!$M135,\"\")","v":2},2,null,null,{"$f":"IF('2007 Survey responses'!$B139>0,IF(AND('2011 Survey responses'!T135>0,'2007 Survey responses'!L139>0),'2007 Survey responses'!L139,\"\"),\"\")","v":""},{"$f":"IF('2007 Survey responses'!$B139>0,IF(AND('2011 Survey responses'!T135>0,'2007 Survey responses'!L139>0),'2011 Survey responses'!T135,\"\"),\"\")","v":""},"",null,null,{"$f":"IF(AND('2011 Survey responses'!$U135>0,'2007 Survey responses'!$M139>0),'2007 Survey responses'!$M139,\"\")","v":""},{"$f":"IF(AND('2011 Survey responses'!$U135>0,'2007 Survey responses'!$M139>0),'2011 Survey responses'!$U135,\"\")","v":""},""]
["Philippines",{"$f":"IF(AND('2011 Survey responses'!$F136>0,'2007 Survey responses'!E140>0),'2007 Survey responses'!E140,\"\")","v":""},{"$f":"IF(AND('2011 Survey responses'!$F136>0,'2007 Survey responses'!E140>0),'2011 Survey responses'!$F136,\"\")","v":""},"",null,null,{"$f":"IF(AND('2011 Survey responses'!$G136>0,'2007 Survey responses'!$F140>0),'2007 Survey responses'!$F140,\"\")","v":""},{"$f":"IF(AND('2011 Survey responses'!$G136>0,'2007 Survey responses'!$F140>0),'2011 Survey responses'!$G136,\"\")","v":""},"",null,null,{"$f":"IF(AND('2011 Survey responses'!$H136>0,'2007 Survey responses'!$F140>0),'2007 Survey responses'!$F140,\"\")","v":""},{"$f":"IF(AND('2011 Survey responses'!$H136>0,'2007 Survey responses'!$F140>0),'2011 Survey responses'!$H136,\"\")","v":""},"",null,null,{"$f":"IF(AND(Question_grouping!O136>0,'2007 Survey responses'!$F140>0),'2007 Survey responses'!$F140,\"\")","v":""},{"$f":"IF(AND(Question_grouping!O136>0,'2007 Survey responses'!$F140>0),Question_grouping!O136,\"\")","v":""},"",null,null,{"$f":"IF(AND('2011 Survey responses'!$B136>0,'2007 Survey responses'!$C140>0),'2007 Survey responses'!$C140,\"\")","v":""},{"$f":"IF(AND('2011 Survey responses'!$B136>0,'2007 Survey responses'!$C140>0),'2011 Survey responses'!$B136,\"\")","v":""},"",null,null,{"$f":"IF(AND('2011 Survey responses'!$D136>0,'2007 Survey responses'!$D140>0),'2007 Survey responses'!$D140,\"\")","v":""},{"$f":"IF(AND('2011 Survey responses'!$D136>0,'2007 Survey responses'!$D140>0),'2011 Survey responses'!$D136,\"\")","v":""},"",null,null,{"$f":"IF(AND('2011 Survey responses'!$J136>0,'2007 Survey responses'!$H140>0),'2007 Survey responses'!$H140,\"\")","v":""},{"$f":"IF(AND('2011 Survey responses'!$J136>0,'2007 Survey responses'!$H140>0),'2011 Survey responses'!$J136,\"\")","v":""},"",null,null,{"$f":"IF(AND('2011 Survey responses'!$K136>0,'2007 Survey responses'!$J140>0),'2007 Survey responses'!$J140,\"\")","v":""},{"$f":"IF(AND('2011 Survey responses'!$K136>0,'2007 Survey responses'!$J140>0),'2011 Survey responses'!$K136,\"\")","v":""},"",null,null,{"$f":"IF(AND('2011 Survey responses'!$L136>0,'2007 Survey responses'!$I140>0),'2007 Survey responses'!$I140,\"\")","v":""},{"$f":"IF(AND('2011 Survey responses'!$L136>0,'2007 Survey responses'!$I140>0),'2011 Survey responses'!$L136,\"\")","v":""},"",null,null,{"$f":"IF(AND('2011 Survey responses'!$M136>0,'2007 Survey responses'!$K140>0),'2007 Survey responses'!$K140,\"\")","v":""},{"$f":"IF(AND('2011 Survey responses'!$M136>0,'2007 Survey responses'!$K140>0),'2011 Survey responses'!$M136,\"\")","v":""},"",null,null,{"$f":"IF('2007 Survey responses'!$B140>0,IF(AND('2011 Survey responses'!T136>0,'2007 Survey responses'!L140>0),'2007 Survey responses'!L140,\"\"),\"\")","v":""},{"$f":"IF('2007 Survey responses'!$B140>0,IF(AND('2011 Survey responses'!T136>0,'2007 Survey responses'!L140>0),'2011 Survey responses'!T136,\"\"),\"\")","v":""},"",null,null,{"$f":"IF(AND('2011 Survey responses'!$U136>0,'2007 Survey responses'!$M140>0),'2007 Survey responses'!$M140,\"\")","v":""},{"$f":"IF(AND('2011 Survey responses'!$U136>0,'2007 Survey responses'!$M140>0),'2011 Survey responses'!$U136,\"\")","v":""},""]
["Poland",{"$f":"IF(AND('2011 Survey responses'!$F137>0,'2007 Survey responses'!E141>0),'2007 Survey responses'!E141,\"\")","v":""},{"$f":"IF(AND('2011 Survey responses'!$F137>0,'2007 Survey responses'!E141>0),'2011 Survey responses'!$F137,\"\")","v":""},"",null,null,{"$f":"IF(AND('2011 Survey responses'!$G137>0,'2007 Survey responses'!$F141>0),'2007 Survey responses'!$F141,\"\")","v":""},{"$f":"IF(AND('2011 Survey responses'!$G137>0,'2007 Survey responses'!$F141>0),'2011 Survey responses'!$G137,\"\")","v":""},"",null,null,{"$f":"IF(AND('2011 Survey responses'!$H137>0,'2007 Survey responses'!$F141>0),'2007 Survey responses'!$F141,\"\")","v":""},{"$f":"IF(AND('2011 Survey responses'!$H137>0,'2007 Survey responses'!$F141>0),'2011 Survey responses'!$H137,\"\")","v":""},"",null,null,{"$f":"IF(AND(Question_grouping!O137>0,'2007 Survey responses'!$F141>0),'2007 Survey responses'!$F141,\"\")","v":""},{"$f":"IF(AND(Question_grouping!O137>0,'2007 Survey responses'!$F141>0),Question_grouping!O137,\"\")","v":""},"",null,null,{"$f":"IF(AND('2011 Survey responses'!$B137>0,'2007 Survey responses'!$C141>0),'2007 Survey responses'!$C141,\"\")","v":2},{"$f":"IF(AND('2011 Survey responses'!$B137>0,'2007 Survey responses'!$C141>0),'2011 Survey responses'!$B137,\"\")","v":2},2,null,null,{"$f":"IF(AND('2011 Survey responses'!$D137>0,'2007 Survey responses'!$D141>0),'2007 Survey responses'!$D141,\"\")","v":2},{"$f":"IF(AND('2011 Survey responses'!$D137>0,'2007 Survey responses'!$D141>0),'2011 Survey responses'!$D137,\"\")","v":6},5,null,null,{"$f":"IF(AND('2011 Survey responses'!$J137>0,'2007 Survey responses'!$H141>0),'2007 Survey responses'!$H141,\"\")","v":""},{"$f":"IF(AND('2011 Survey responses'!$J137>0,'2007 Survey responses'!$H141>0),'2011 Survey responses'!$J137,\"\")","v":""},"",null,null,{"$f":"IF(AND('2011 Survey responses'!$K137>0,'2007 Survey responses'!$J141>0),'2007 Survey responses'!$J141,\"\")","v":""},{"$f":"IF(AND('2011 Survey responses'!$K137>0,'2007 Survey responses'!$J141>0),'2011 Survey responses'!$K137,\"\")","v":""},"",null,null,{"$f":"IF(AND('2011 Survey responses'!$L137>0,'2007 Survey responses'!$I141>0),'2007 Survey responses'!$I141,\"\")","v":""},{"$f":"IF(AND('2011 Survey responses'!$L137>0,'2007 Survey responses'!$I141>0),'2011 Survey responses'!$L137,\"\")","v":""},"",null,null,{"$f":"IF(AND('2011 Survey responses'!$M137>0,'2007 Survey responses'!$K141>0),'2007 Survey responses'!$K141,\"\")","v":""},{"$f":"IF(AND('2011 Survey responses'!$M137>0,'2007 Survey responses'!$K141>0),'2011 Survey responses'!$M137,\"\")","v":""},"",null,null,{"$f":"IF('2007 Survey responses'!$B141>0,IF(AND('2011 Survey responses'!T137>0,'2007 Survey responses'!L141>0),'2007 Survey responses'!L141,\"\"),\"\")","v":""},{"$f":"IF('2007 Survey responses'!$B141>0,IF(AND('2011 Survey responses'!T137>0,'2007 Survey responses'!L141>0),'2011 Survey responses'!T137,\"\"),\"\")","v":""},"",null,null,{"$f":"IF(AND('2011 Survey responses'!$U137>0,'2007 Survey responses'!$M141>0),'2007 Survey responses'!$M141,\"\")","v":""},{"$f":"IF(AND('2011 Survey responses'!$U137>0,'2007 Survey responses'!$M141>0),'2011 Survey responses'!$U137,\"\")","v":""},""]
["Portugal",{"$f":"IF(AND('2011 Survey responses'!$F138>0,'2007 Survey responses'!E142>0),'2007 Survey responses'!E142,\"\")","v":3},{"$f":"IF(AND('2011 Survey responses'!$F138>0,'2007 Survey responses'!E142>0),'2011 Survey responses'!$F138,\"\")","v":2},2,null,null,{"$f":"IF(AND('2011 Survey responses'!$G138>0,'2007 Survey responses'!$F142>0),'2007 Survey responses'!$F142,\"\")","v":1},{"$f":"IF(AND('2011 Survey responses'!$G138>0,'2007 Survey responses'!$F142>0),'2011 Survey responses'!$G138,\"\")","v":3},3,null,null,{"$f":"IF(AND('2011 Survey responses'!$H138>0,'2007 Survey responses'!$F142>0),'2007 Survey responses'!$F142,\"\")","v":1},{"$f":"IF(AND('2011 Survey responses'!$H138>0,'2007 Survey responses'!$F142>0),'2011 Survey responses'!$H138,\"\")","v":2},2,null,null,{"$f":"IF(AND(Question_grouping!O138>0,'2007 Survey responses'!$F142>0),'2007 Survey responses'!$F142,\"\")","v":1},{"$f":"IF(AND(Question_grouping!O138>0,'2007 Survey responses'!$F142>0),Question_grouping!O138,\"\")","v":3},3,null,null,{"$f":"IF(AND('2011 Survey responses'!$B138>0,'2007 Survey responses'!$C142>0),'2007 Survey responses'!$C142,\"\")","v":2},{"$f":"IF(AND('2011 Survey responses'!$B138>0,'2007 Survey responses'!$C142>0),'2011 Survey responses'!$B138,\"\")","v":5},4,null,null,{"$f":"IF(AND('2011 Survey responses'!$D138>0,'2007 Survey responses'!$D142>0),'2007 Survey responses'!$D142,\"\")","v":4},{"$f":"IF(AND('2011 Survey responses'!$D138>0,'2007 Survey responses'!$D142>0),'2011 Survey responses'!$D138,\"\")","v":5},4,null,null,{"$f":"IF(AND('2011 Survey responses'!$J138>0,'2007 Survey responses'!$H142>0),'2007 Survey responses'!$H142,\"\")","v":1},{"$f":"IF(AND('2011 Survey responses'!$J138>0,'2007 Survey responses'!$H142>0),'2011 Survey responses'!$J138,\"\")","v":2},2,null,null,{"$f":"IF(AND('2011 Survey responses'!$K138>0,'2007 Survey responses'!$J142>0),'2007 Survey responses'!$J142,\"\")","v":""},{"$f":"IF(AND('2011 Survey responses'!$K138>0,'2007 Survey responses'!$J142>0),'2011 Survey responses'!$K138,\"\")","v":""},"",null,null,{"$f":"IF(AND('2011 Survey responses'!$L138>0,'2007 Survey responses'!$I142>0),'2007 Survey responses'!$I142,\"\")","v":1},{"$f":"IF(AND('2011 Survey responses'!$L138>0,'2007 Survey responses'!$I142>0),'2011 Survey responses'!$L138,\"\")","v":2},2,null,null,{"$f":"IF(AND('2011 Survey responses'!$M138>0,'2007 Survey responses'!$K142>0),'2007 Survey responses'!$K142,\"\")","v":3},{"$f":"IF(AND('2011 Survey responses'!$M138>0,'2007 Survey responses'!$K142>0),'2011 Survey responses'!$M138,\"\")","v":2},2,null,null,{"$f":"IF('2007 Survey responses'!$B142>0,IF(AND('2011 Survey responses'!T138>0,'2007 Survey responses'!L142>0),'2007 Survey responses'!L142,\"\"),\"\")","v":2},{"$f":"IF('2007 Survey responses'!$B142>0,IF(AND('2011 Survey responses'!T138>0,'2007 Survey responses'!L142>0),'2011 Survey responses'!T138,\"\"),\"\")","v":5},4,null,null,{"$f":"IF(AND('2011 Survey responses'!$U138>0,'2007 Survey responses'!$M142>0),'2007 Survey responses'!$M142,\"\")","v":2},{"$f":"IF(AND('2011 Survey responses'!$U138>0,'2007 Survey responses'!$M142>0),'2011 Survey responses'!$U138,\"\")","v":6},5]
["Qatar",{"$f":"IF(AND('2011 Survey responses'!$F139>0,'2007 Survey responses'!E143>0),'2007 Survey responses'!E143,\"\")","v":""},{"$f":"IF(AND('2011 Survey responses'!$F139>0,'2007 Survey responses'!E143>0),'2011 Survey responses'!$F139,\"\")","v":""},"",null,null,{"$f":"IF(AND('2011 Survey responses'!$G139>0,'2007 Survey responses'!$F143>0),'2007 Survey responses'!$F143,\"\")","v":""},{"$f":"IF(AND('2011 Survey responses'!$G139>0,'2007 Survey responses'!$F143>0),'2011 Survey responses'!$G139,\"\")","v":""},"",null,null,{"$f":"IF(AND('2011 Survey responses'!$H139>0,'2007 Survey responses'!$F143>0),'2007 Survey responses'!$F143,\"\")","v":""},{"$f":"IF(AND('2011 Survey responses'!$H139>0,'2007 Survey responses'!$F143>0),'2011 Survey responses'!$H139,\"\")","v":""},"",null,null,{"$f":"IF(AND(Question_grouping!O139>0,'2007 Survey responses'!$F143>0),'2007 Survey responses'!$F143,\"\")","v":4},{"$f":"IF(AND(Question_grouping!O139>0,'2007 Survey responses'!$F143>0),Question_grouping!O139,\"\")","v":""},"",null,null,{"$f":"IF(AND('2011 Survey responses'!$B139>0,'2007 Survey responses'!$C143>0),'2007 Survey responses'!$C143,\"\")","v":""},{"$f":"IF(AND('2011 Survey responses'!$B139>0,'2007 Survey responses'!$C143>0),'2011 Survey responses'!$B139,\"\")","v":""},"",null,null,{"$f":"IF(AND('2011 Survey responses'!$D139>0,'2007 Survey responses'!$D143>0),'2007 Survey responses'!$D143,\"\")","v":""},{"$f":"IF(AND('2011 Survey responses'!$D139>0,'2007 Survey responses'!$D143>0),'2011 Survey responses'!$D139,\"\")","v":""},"",null,null,{"$f":"IF(AND('2011 Survey responses'!$J139>0,'2007 Survey responses'!$H143>0),'2007 Survey responses'!$H143,\"\")","v":""},{"$f":"IF(AND('2011 Survey responses'!$J139>0,'2007 Survey responses'!$H143>0),'2011 Survey responses'!$J139,\"\")","v":""},"",null,null,{"$f":"IF(AND('2011 Survey responses'!$K139>0,'2007 Survey responses'!$J143>0),'2007 Survey responses'!$J143,\"\")","v":""},{"$f":"IF(AND('2011 Survey responses'!$K139>0,'2007 Survey responses'!$J143>0),'2011 Survey responses'!$K139,\"\")","v":""},"",null,null,{"$f":"IF(AND('2011 Survey responses'!$L139>0,'2007 Survey responses'!$I143>0),'2007 Survey responses'!$I143,\"\")","v":""},{"$f":"IF(AND('2011 Survey responses'!$L139>0,'2007 Survey responses'!$I143>0),'2011 Survey responses'!$L139,\"\")","v":""},"",null,null,{"$f":"IF(AND('2011 Survey responses'!$M139>0,'2007 Survey responses'!$K143>0),'2007 Survey responses'!$K143,\"\")","v":""},{"$f":"IF(AND('2011 Survey responses'!$M139>0,'2007 Survey responses'!$K143>0),'2011 Survey responses'!$M139,\"\")","v":""},"",null,null,{"$f":"IF('2007 Survey responses'!$B143>0,IF(AND('2011 Survey responses'!T139>0,'2007 Survey responses'!L143>0),'2007 Survey responses'!L143,\"\"),\"\")","v":""},{"$f":"IF('2007 Survey responses'!$B143>0,IF(AND('2011 Survey responses'!T139>0,'2007 Survey responses'!L143>0),'2011 Survey responses'!T139,\"\"),\"\")","v":""},"",null,null,{"$f":"IF(AND('2011 Survey responses'!$U139>0,'2007 Survey responses'!$M143>0),'2007 Survey responses'!$M143,\"\")","v":""},{"$f":"IF(AND('2011 Survey responses'!$U139>0,'2007 Survey responses'!$M143>0),'2011 Survey responses'!$U139,\"\")","v":""},""]
["Republic of Korea",{"$f":"IF(AND('2011 Survey responses'!$F140>0,'2007 Survey responses'!E144>0),'2007 Survey responses'!E144,\"\")","v":""},{"$f":"IF(AND('2011 Survey responses'!$F140>0,'2007 Survey responses'!E144>0),'2011 Survey responses'!$F140,\"\")","v":""},"",null,null,{"$f":"IF(AND('2011 Survey responses'!$G140>0,'2007 Survey responses'!$F144>0),'2007 Survey responses'!$F144,\"\")","v":""},{"$f":"IF(AND('2011 Survey responses'!$G140>0,'2007 Survey responses'!$F144>0),'2011 Survey responses'!$G140,\"\")","v":""},"",null,null,{"$f":"IF(AND('2011 Survey responses'!$H140>0,'2007 Survey responses'!$F144>0),'2007 Survey responses'!$F144,\"\")","v":""},{"$f":"IF(AND('2011 Survey responses'!$H140>0,'2007 Survey responses'!$F144>0),'2011 Survey responses'!$H140,\"\")","v":""},"",null,null,{"$f":"IF(AND(Question_grouping!O140>0,'2007 Survey responses'!$F144>0),'2007 Survey responses'!$F144,\"\")","v":""},{"$f":"IF(AND(Question_grouping!O140>0,'2007 Survey responses'!$F144>0),Question_grouping!O140,\"\")","v":""},"",null,null,{"$f":"IF(AND('2011 Survey responses'!$B140>0,'2007 Survey responses'!$C144>0),'2007 Survey responses'!$C144,\"\")","v":""},{"$f":"IF(AND('2011 Survey responses'!$B140>0,'2007 Survey responses'!$C144>0),'2011 Survey responses'!$B140,\"\")","v":""},"",null,null,{"$f":"IF(AND('2011 Survey responses'!$D140>0,'2007 Survey responses'!$D144>0),'2007 Survey responses'!$D144,\"\")","v":""},{"$f":"IF(AND('2011 Survey responses'!$D140>0,'2007 Survey responses'!$D144>0),'2011 Survey responses'!$D140,\"\")","v":""},"",null,null,{"$f":"IF(AND('2011 Survey responses'!$J140>0,'2007 Survey responses'!$H144>0),'2007 Survey responses'!$H144,\"\")","v":""},{"$f":"IF(AND('2011 Survey responses'!$J140>0,'2007 Survey responses'!$H144>0),'2011 Survey responses'!$J140,\"\")","v":""},"",null,null,{"$f":"IF(AND('2011 Survey responses'!$K140>0,'2007 Survey responses'!$J144>0),'2007 Survey responses'!$J144,\"\")","v":""},{"$f":"IF(AND('2011 Survey responses'!$K140>0,'2007 Survey responses'!$J144>0),'2011 Survey responses'!$K140,\"\")","v":""},"",null,null,{"$f":"IF(AND('2011 Survey responses'!$L140>0,'2007 Survey responses'!$I144>0),'2007 Survey responses'!$I144,\"\")","v":""},{"$f":"IF(AND('2011 Survey responses'!$L140>0,'2007 Survey responses'!$I144>0),'2011 Survey responses'!$L140,\"\")","v":""},"",null,null,{"$f":"IF(AND('2011 Survey responses'!$M140>0,'2007 Survey responses'!$K144>0),'2007 Survey responses'!$K144,\"\")","v":""},{"$f":"IF(AND('2011 Survey responses'!$M140>0,'2007 Survey responses'!$K144>0),'2011 Survey responses'!$M140,\"\")","v":""},"",null,null,{"$f":"IF('2007 Survey responses'!$B144>0,IF(AND('2011 Survey responses'!T140>0,'2007 Survey responses'!L144>0),'2007 Survey responses'!L144,\"\"),\"\")","v":""},{"$f":"IF('2007 Survey responses'!$B144>0,IF(AND('2011 Survey responses'!T140>0,'2007 Survey responses'!L144>0),'2011 Survey responses'!T140,\"\"),\"\")","v":""},"",null,null,{"$f":"IF(AND('2011 Survey responses'!$U140>0,'2007 Survey responses'!$M144>0),'2007 Survey responses'!$M144,\"\")","v":""},{"$f":"IF(AND('2011 Survey responses'!$U140>0,'2007 Survey responses'!$M144>0),'2011 Survey responses'!$U140,\"\")","v":""},""]
["Republic of Moldova",{"$f":"IF(AND('2011 Survey responses'!$F141>0,'2007 Survey responses'!E145>0),'2007 Survey responses'!E145,\"\")","v":4},{"$f":"IF(AND('2011 Survey responses'!$F141>0,'2007 Survey responses'!E145>0),'2011 Survey responses'!$F141,\"\")","v":2},2,null,null,{"$f":"IF(AND('2011 Survey responses'!$G141>0,'2007 Survey responses'!$F145>0),'2007 Survey responses'!$F145,\"\")","v":3},{"$f":"IF(AND('2011 Survey responses'!$G141>0,'2007 Survey responses'!$F145>0),'2011 Survey responses'!$G141,\"\")","v":2},2,null,null,{"$f":"IF(AND('2011 Survey responses'!$H141>0,'2007 Survey responses'!$F145>0),'2007 Survey responses'!$F145,\"\")","v":3},{"$f":"IF(AND('2011 Survey responses'!$H141>0,'2007 Survey responses'!$F145>0),'2011 Survey responses'!$H141,\"\")","v":2},2,null,null,{"$f":"IF(AND(Question_grouping!O141>0,'2007 Survey responses'!$F145>0),'2007 Survey responses'!$F145,\"\")","v":3},{"$f":"IF(AND(Question_grouping!O141>0,'2007 Survey responses'!$F145>0),Question_grouping!O141,\"\")","v":2},2,null,null,{"$f":"IF(AND('2011 Survey responses'!$B141>0,'2007 Survey responses'!$C145>0),'2007 Survey responses'!$C145,\"\")","v":1},{"$f":"IF(AND('2011 Survey responses'!$B141>0,'2007 Survey responses'!$C145>0),'2011 Survey responses'!$B141,\"\")","v":4},4,null,null,{"$f":"IF(AND('2011 Survey responses'!$D141>0,'2007 Survey responses'!$D145>0),'2007 Survey responses'!$D145,\"\")","v":4},{"$f":"IF(AND('2011 Survey responses'!$D141>0,'2007 Survey responses'!$D145>0),'2011 Survey responses'!$D141,\"\")","v":2},2,null,null,{"$f":"IF(AND('2011 Survey responses'!$J141>0,'2007 Survey responses'!$H145>0),'2007 Survey responses'!$H145,\"\")","v":1},{"$f":"IF(AND('2011 Survey responses'!$J141>0,'2007 Survey responses'!$H145>0),'2011 Survey responses'!$J141,\"\")","v":2},2,null,null,{"$f":"IF(AND('2011 Survey responses'!$K141>0,'2007 Survey responses'!$J145>0),'2007 Survey responses'!$J145,\"\")","v":4},{"$f":"IF(AND('2011 Survey responses'!$K141>0,'2007 Survey responses'!$J145>0),'2011 Survey responses'!$K141,\"\")","v":2},2,null,null,{"$f":"IF(AND('2011 Survey responses'!$L141>0,'2007 Survey responses'!$I145>0),'2007 Survey responses'!$I145,\"\")","v":3},{"$f":"IF(AND('2011 Survey responses'!$L141>0,'2007 Survey responses'!$I145>0),'2011 Survey responses'!$L141,\"\")","v":2},2,null,null,{"$f":"IF(AND('2011 Survey responses'!$M141>0,'2007 Survey responses'!$K145>0),'2007 Survey responses'!$K145,\"\")","v":4},{"$f":"IF(AND('2011 Survey responses'!$M141>0,'2007 Survey responses'!$K145>0),'2011 Survey responses'!$M141,\"\")","v":3},3,null,null,{"$f":"IF('2007 Survey responses'!$B145>0,IF(AND('2011 Survey responses'!T141>0,'2007 Survey responses'!L145>0),'2007 Survey responses'!L145,\"\"),\"\")","v":1},{"$f":"IF('2007 Survey responses'!$B145>0,IF(AND('2011 Survey responses'!T141>0,'2007 Survey responses'!L145>0),'2011 Survey responses'!T141,\"\"),\"\")","v":4},4,null,null,{"$f":"IF(AND('2011 Survey responses'!$U141>0,'2007 Survey responses'!$M145>0),'2007 Survey responses'!$M145,\"\")","v":1},{"$f":"IF(AND('2011 Survey responses'!$U141>0,'2007 Survey responses'!$M145>0),'2011 Survey responses'!$U141,\"\")","v":3},3]
["Romania",{"$f":"IF(AND('2011 Survey responses'!$F142>0,'2007 Survey responses'!E146>0),'2007 Survey responses'!E146,\"\")","v":""},{"$f":"IF(AND('2011 Survey responses'!$F142>0,'2007 Survey responses'!E146>0),'2011 Survey responses'!$F142,\"\")","v":""},"",null,null,{"$f":"IF(AND('2011 Survey responses'!$G142>0,'2007 Survey responses'!$F146>0),'2007 Survey responses'!$F146,\"\")","v":""},{"$f":"IF(AND('2011 Survey responses'!$G142>0,'2007 Survey responses'!$F146>0),'2011 Survey responses'!$G142,\"\")","v":""},"",null,null,{"$f":"IF(AND('2011 Survey responses'!$H142>0,'2007 Survey responses'!$F146>0),'2007 Survey responses'!$F146,\"\")","v":""},{"$f":"IF(AND('2011 Survey responses'!$H142>0,'2007 Survey responses'!$F146>0),'2011 Survey responses'!$H142,\"\")","v":""},"",null,null,{"$f":"IF(AND(Question_grouping!O142>0,'2007 Survey responses'!$F146>0),'2007 Survey responses'!$F146,\"\")","v":""},{"$f":"IF(AND(Question_grouping!O142>0,'2007 Survey responses'!$F146>0),Question_grouping!O142,\"\")","v":""},"",null,null,{"$f":"IF(AND('2011 Survey responses'!$B142>0,'2007 Survey responses'!$C146>0),'2007 Survey responses'!$C146,\"\")","v":""},{"$f":"IF(AND('2011 Survey responses'!$B142>0,'2007 Survey responses'!$C146>0),'2011 Survey responses'!$B142,\"\")","v":""},"",null,null,{"$f":"IF(AND('2011 Survey responses'!$D142>0,'2007 Survey responses'!$D146>0),'2007 Survey responses'!$D146,\"\")","v":""},{"$f":"IF(AND('2011 Survey responses'!$D142>0,'2007 Survey responses'!$D146>0),'2011 Survey responses'!$D142,\"\")","v":""},"",null,null,{"$f":"IF(AND('2011 Survey responses'!$J142>0,'2007 Survey responses'!$H146>0),'2007 Survey responses'!$H146,\"\")","v":""},{"$f":"IF(AND('2011 Survey responses'!$J142>0,'2007 Survey responses'!$H146>0),'2011 Survey responses'!$J142,\"\")","v":""},"",null,null,{"$f":"IF(AND('2011 Survey responses'!$K142>0,'2007 Survey responses'!$J146>0),'2007 Survey responses'!$J146,\"\")","v":""},{"$f":"IF(AND('2011 Survey responses'!$K142>0,'2007 Survey responses'!$J146>0),'2011 Survey responses'!$K142,\"\")","v":""},"",null,null,{"$f":"IF(AND('2011 Survey responses'!$L142>0,'2007 Survey responses'!$I146>0),'2007 Survey responses'!$I146,\"\")","v":""},{"$f":"IF(AND('2011 Survey responses'!$L142>0,'2007 Survey responses'!$I146>0),'2011 Survey responses'!$L142,\"\")","v":""},"",null,null,{"$f":"IF(AND('2011 Survey responses'!$M142>0,'2007 Survey responses'!$K146>0),'2007 Survey responses'!$K146,\"\")","v":""},{"$f":"IF(AND('2011 Survey responses'!$M142>0,'2007 Survey responses'!$K146>0),'2011 Survey responses'!$M142,\"\")","v":""},"",null,null,{"$f":"IF('2007 Survey responses'!$B146>0,IF(AND('2011 Survey responses'!T142>0,'2007 Survey responses'!L146>0),'2007 Survey responses'!L146,\"\"),\"\")","v":""},{"$f":"IF('2007 Survey responses'!$B146>0,IF(AND('2011 Survey responses'!T142>0,'2007 Survey responses'!L146>0),'2011 Survey responses'!T142,\"\"),\"\")","v":""},"",null,null,{"$f":"IF(AND('2011 Survey responses'!$U142>0,'2007 Survey responses'!$M146>0),'2007 Survey responses'!$M146,\"\")","v":""},{"$f":"IF(AND('2011 Survey responses'!$U142>0,'2007 Survey responses'!$M146>0),'2011 Survey responses'!$U142,\"\")","v":""},""]
["Russian Federation",{"$f":"IF(AND('2011 Survey responses'!$F143>0,'2007 Survey responses'!E147>0),'2007 Survey responses'!E147,\"\")","v":4},{"$f":"IF(AND('2011 Survey responses'!$F143>0,'2007 Survey responses'!E147>0),'2011 Survey responses'!$F143,\"\")","v":5},4,null,null,{"$f":"IF(AND('2011 Survey responses'!$G143>0,'2007 Survey responses'!$F147>0),'2007 Survey responses'!$F147,\"\")","v":4},{"$f":"IF(AND('2011 Survey responses'!$G143>0,'2007 Survey responses'!$F147>0),'2011 Survey responses'!$G143,\"\")","v":2},2,null,null,{"$f":"IF(AND('2011 Survey responses'!$H143>0,'2007 Survey responses'!$F147>0),'2007 Survey responses'!$F147,\"\")","v":4},{"$f":"IF(AND('2011 Survey responses'!$H143>0,'2007 Survey responses'!$F147>0),'2011 Survey responses'!$H143,\"\")","v":5},4,null,null,{"$f":"IF(AND(Question_grouping!O143>0,'2007 Survey responses'!$F147>0),'2007 Survey responses'!$F147,\"\")","v":4},{"$f":"IF(AND(Question_grouping!O143>0,'2007 Survey responses'!$F147>0),Question_grouping!O143,\"\")","v":5},4,null,null,{"$f":"IF(AND('2011 Survey responses'!$B143>0,'2007 Survey responses'!$C147>0),'2007 Survey responses'!$C147,\"\")","v":5},{"$f":"IF(AND('2011 Survey responses'!$B143>0,'2007 Survey responses'!$C147>0),'2011 Survey responses'!$B143,\"\")","v":5},4,null,null,{"$f":"IF(AND('2011 Survey responses'!$D143>0,'2007 Survey responses'!$D147>0),'2007 Survey responses'!$D147,\"\")","v":5},{"$f":"IF(AND('2011 Survey responses'!$D143>0,'2007 Survey responses'!$D147>0),'2011 Survey responses'!$D143,\"\")","v":5},4,null,null,{"$f":"IF(AND('2011 Survey responses'!$J143>0,'2007 Survey responses'!$H147>0),'2007 Survey responses'!$H147,\"\")","v":""},{"$f":"IF(AND('2011 Survey responses'!$J143>0,'2007 Survey responses'!$H147>0),'2011 Survey responses'!$J143,\"\")","v":""},"",null,null,{"$f":"IF(AND('2011 Survey responses'!$K143>0,'2007 Survey responses'!$J147>0),'2007 Survey responses'!$J147,\"\")","v":""},{"$f":"IF(AND('2011 Survey responses'!$K143>0,'2007 Survey responses'!$J147>0),'2011 Survey responses'!$K143,\"\")","v":""},"",null,null,{"$f":"IF(AND('2011 Survey responses'!$L143>0,'2007 Survey responses'!$I147>0),'2007 Survey responses'!$I147,\"\")","v":""},{"$f":"IF(AND('2011 Survey responses'!$L143>0,'2007 Survey responses'!$I147>0),'2011 Survey responses'!$L143,\"\")","v":""},"",null,null,{"$f":"IF(AND('2011 Survey responses'!$M143>0,'2007 Survey responses'!$K147>0),'2007 Survey responses'!$K147,\"\")","v":""},{"$f":"IF(AND('2011 Survey responses'!$M143>0,'2007 Survey responses'!$K147>0),'2011 Survey responses'!$M143,\"\")","v":""},"",null,null,{"$f":"IF('2007 Survey responses'!$B147>0,IF(AND('2011 Survey responses'!T143>0,'2007 Survey responses'!L147>0),'2007 Survey responses'!L147,\"\"),\"\")","v":""},{"$f":"IF('2007 Survey responses'!$B147>0,IF(AND('2011 Survey responses'!T143>0,'2007 Survey responses'!L147>0),'2011 Survey responses'!T143,\"\"),\"\")","v":""},"",null,null,{"$f":"IF(AND('2011 Survey responses'!$U143>0,'2007 Survey responses'!$M147>0),'2007 Survey responses'!$M147,\"\")","v":5},{"$f":"IF(AND('2011 Survey responses'!$U143>0,'2007 Survey responses'!$M147>0),'2011 Survey responses'!$U143,\"\")","v":5},4]
["Rwanda",{"$f":"IF(AND('2011 Survey responses'!$F144>0,'2007 Survey responses'!E148>0),'2007 Survey responses'!E148,\"\")","v":""},{"$f":"IF(AND('2011 Survey responses'!$F144>0,'2007 Survey responses'!E148>0),'2011 Survey responses'!$F144,\"\")","v":""},"",null,null,{"$f":"IF(AND('2011 Survey responses'!$G144>0,'2007 Survey responses'!$F148>0),'2007 Survey responses'!$F148,\"\")","v":""},{"$f":"IF(AND('2011 Survey responses'!$G144>0,'2007 Survey responses'!$F148>0),'2011 Survey responses'!$G144,\"\")","v":""},"",null,null,{"$f":"IF(AND('2011 Survey responses'!$H144>0,'2007 Survey responses'!$F148>0),'2007 Survey responses'!$F148,\"\")","v":""},{"$f":"IF(AND('2011 Survey responses'!$H144>0,'2007 Survey responses'!$F148>0),'2011 Survey responses'!$H144,\"\")","v":""},"",null,null,{"$f":"IF(AND(Question_grouping!O144>0,'2007 Survey responses'!$F148>0),'2007 Survey responses'!$F148,\"\")","v":""},{"$f":"IF(AND(Question_grouping!O144>0,'2007 Survey responses'!$F148>0),Question_grouping!O144,\"\")","v":""},"",null,null,{"$f":"IF(AND('2011 Survey responses'!$B144>0,'2007 Survey responses'!$C148>0),'2007 Survey responses'!$C148,\"\")","v":""},{"$f":"IF(AND('2011 Survey responses'!$B144>0,'2007 Survey responses'!$C148>0),'2011 Survey responses'!$B144,\"\")","v":""},"",null,null,{"$f":"IF(AND('2011 Survey responses'!$D144>0,'2007 Survey responses'!$D148>0),'2007 Survey responses'!$D148,\"\")","v":""},{"$f":"IF(AND('2011 Survey responses'!$D144>0,'2007 Survey responses'!$D148>0),'2011 Survey responses'!$D144,\"\")","v":""},"",null,null,{"$f":"IF(AND('2011 Survey responses'!$J144>0,'2007 Survey responses'!$H148>0),'2007 Survey responses'!$H148,\"\")","v":""},{"$f":"IF(AND('2011 Survey responses'!$J144>0,'2007 Survey responses'!$H148>0),'2011 Survey responses'!$J144,\"\")","v":""},"",null,null,{"$f":"IF(AND('2011 Survey responses'!$K144>0,'2007 Survey responses'!$J148>0),'2007 Survey responses'!$J148,\"\")","v":""},{"$f":"IF(AND('2011 Survey responses'!$K144>0,'2007 Survey responses'!$J148>0),'2011 Survey responses'!$K144,\"\")","v":""},"",null,null,{"$f":"IF(AND('2011 Survey responses'!$L144>0,'2007 Survey responses'!$I148>0),'2007 Survey responses'!$I148,\"\")","v":""},{"$f":"IF(AND('2011 Survey responses'!$L144>0,'2007 Survey responses'!$I148>0),'2011 Survey responses'!$L144,\"\")","v":""},"",null,null,{"$f":"IF(AND('2011 Survey responses'!$M144>0,'2007 Survey responses'!$K148>0),'2007 Survey responses'!$K148,\"\")","v":""},{"$f":"IF(AND('2011 Survey responses'!$M144>0,'2007 Survey responses'!$K148>0),'2011 Survey responses'!$M144,\"\")","v":""},"",null,null,{"$f":"IF('2007 Survey responses'!$B148>0,IF(AND('2011 Survey responses'!T144>0,'2007 Survey responses'!L148>0),'2007 Survey responses'!L148,\"\"),\"\")","v":""},{"$f":"IF('2007 Survey responses'!$B148>0,IF(AND('2011 Survey responses'!T144>0,'2007 Survey responses'!L148>0),'2011 Survey responses'!T144,\"\"),\"\")","v":""},"",null,null,{"$f":"IF(AND('2011 Survey responses'!$U144>0,'2007 Survey responses'!$M148>0),'2007 Survey responses'!$M148,\"\")","v":""},{"$f":"IF(AND('2011 Survey responses'!$U144>0,'2007 Survey responses'!$M148>0),'2011 Survey responses'!$U144,\"\")","v":""},""]
["Saint Kitts and Nevis",{"$f":"IF(AND('2011 Survey responses'!$F145>0,'2007 Survey responses'!E149>0),'2007 Survey responses'!E149,\"\")","v":""},{"$f":"IF(AND('2011 Survey responses'!$F145>0,'2007 Survey responses'!E149>0),'2011 Survey responses'!$F145,\"\")","v":""},"",null,null,{"$f":"IF(AND('2011 Survey responses'!$G145>0,'2007 Survey responses'!$F149>0),'2007 Survey responses'!$F149,\"\")","v":""},{"$f":"IF(AND('2011 Survey responses'!$G145>0,'2007 Survey responses'!$F149>0),'2011 Survey responses'!$G145,\"\")","v":""},"",null,null,{"$f":"IF(AND('2011 Survey responses'!$H145>0,'2007 Survey responses'!$F149>0),'2007 Survey responses'!$F149,\"\")","v":""},{"$f":"IF(AND('2011 Survey responses'!$H145>0,'2007 Survey responses'!$F149>0),'2011 Survey responses'!$H145,\"\")","v":""},"",null,null,{"$f":"IF(AND(Question_grouping!O145>0,'2007 Survey responses'!$F149>0),'2007 Survey responses'!$F149,\"\")","v":""},{"$f":"IF(AND(Question_grouping!O145>0,'2007 Survey responses'!$F149>0),Question_grouping!O145,\"\")","v":""},"",null,null,{"$f":"IF(AND('2011 Survey responses'!$B145>0,'2007 Survey responses'!$C149>0),'2007 Survey responses'!$C149,\"\")","v":""},{"$f":"IF(AND('2011 Survey responses'!$B145>0,'2007 Survey responses'!$C149>0),'2011 Survey responses'!$B145,\"\")","v":""},"",null,null,{"$f":"IF(AND('2011 Survey responses'!$D145>0,'2007 Survey responses'!$D149>0),'2007 Survey responses'!$D149,\"\")","v":""},{"$f":"IF(AND('2011 Survey responses'!$D145>0,'2007 Survey responses'!$D149>0),'2011 Survey responses'!$D145,\"\")","v":""},"",null,null,{"$f":"IF(AND('2011 Survey responses'!$J145>0,'2007 Survey responses'!$H149>0),'2007 Survey responses'!$H149,\"\")","v":""},{"$f":"IF(AND('2011 Survey responses'!$J145>0,'2007 Survey responses'!$H149>0),'2011 Survey responses'!$J145,\"\")","v":""},"",null,null,{"$f":"IF(AND('2011 Survey responses'!$K145>0,'2007 Survey responses'!$J149>0),'2007 Survey responses'!$J149,\"\")","v":""},{"$f":"IF(AND('2011 Survey responses'!$K145>0,'2007 Survey responses'!$J149>0),'2011 Survey responses'!$K145,\"\")","v":""},"",null,null,{"$f":"IF(AND('2011 Survey responses'!$L145>0,'2007 Survey responses'!$I149>0),'2007 Survey responses'!$I149,\"\")","v":""},{"$f":"IF(AND('2011 Survey responses'!$L145>0,'2007 Survey responses'!$I149>0),'2011 Survey responses'!$L145,\"\")","v":""},"",null,null,{"$f":"IF(AND('2011 Survey responses'!$M145>0,'2007 Survey responses'!$K149>0),'2007 Survey responses'!$K149,\"\")","v":""},{"$f":"IF(AND('2011 Survey responses'!$M145>0,'2007 Survey responses'!$K149>0),'2011 Survey responses'!$M145,\"\")","v":""},"",null,null,{"$f":"IF('2007 Survey responses'!$B149>0,IF(AND('2011 Survey responses'!T145>0,'2007 Survey responses'!L149>0),'2007 Survey responses'!L149,\"\"),\"\")","v":""},{"$f":"IF('2007 Survey responses'!$B149>0,IF(AND('2011 Survey responses'!T145>0,'2007 Survey responses'!L149>0),'2011 Survey responses'!T145,\"\"),\"\")","v":""},"",null,null,{"$f":"IF(AND('2011 Survey responses'!$U145>0,'2007 Survey responses'!$M149>0),'2007 Survey responses'!$M149,\"\")","v":""},{"$f":"IF(AND('2011 Survey responses'!$U145>0,'2007 Survey responses'!$M149>0),'2011 Survey responses'!$U145,\"\")","v":""},""]
["Saint Lucia",{"$f":"IF(AND('2011 Survey responses'!$F146>0,'2007 Survey responses'!E150>0),'2007 Survey responses'!E150,\"\")","v":2},{"$f":"IF(AND('2011 Survey responses'!$F146>0,'2007 Survey responses'!E150>0),'2011 Survey responses'!$F146,\"\")","v":3},3,null,null,{"$f":"IF(AND('2011 Survey responses'!$G146>0,'2007 Survey responses'!$F150>0),'2007 Survey responses'!$F150,\"\")","v":2},{"$f":"IF(AND('2011 Survey responses'!$G146>0,'2007 Survey responses'!$F150>0),'2011 Survey responses'!$G146,\"\")","v":2},2,null,null,{"$f":"IF(AND('2011 Survey responses'!$H146>0,'2007 Survey responses'!$F150>0),'2007 Survey responses'!$F150,\"\")","v":2},{"$f":"IF(AND('2011 Survey responses'!$H146>0,'2007 Survey responses'!$F150>0),'2011 Survey responses'!$H146,\"\")","v":3},3,null,null,{"$f":"IF(AND(Question_grouping!O146>0,'2007 Survey responses'!$F150>0),'2007 Survey responses'!$F150,\"\")","v":2},{"$f":"IF(AND(Question_grouping!O146>0,'2007 Survey responses'!$F150>0),Question_grouping!O146,\"\")","v":3},3,null,null,{"$f":"IF(AND('2011 Survey responses'!$B146>0,'2007 Survey responses'!$C150>0),'2007 Survey responses'!$C150,\"\")","v":2},{"$f":"IF(AND('2011 Survey responses'!$B146>0,'2007 Survey responses'!$C150>0),'2011 Survey responses'!$B146,\"\")","v":5},4,null,null,{"$f":"IF(AND('2011 Survey responses'!$D146>0,'2007 Survey responses'!$D150>0),'2007 Survey responses'!$D150,\"\")","v":5},{"$f":"IF(AND('2011 Survey responses'!$D146>0,'2007 Survey responses'!$D150>0),'2011 Survey responses'!$D146,\"\")","v":6},5,null,null,{"$f":"IF(AND('2011 Survey responses'!$J146>0,'2007 Survey responses'!$H150>0),'2007 Survey responses'!$H150,\"\")","v":1},{"$f":"IF(AND('2011 Survey responses'!$J146>0,'2007 Survey responses'!$H150>0),'2011 Survey responses'!$J146,\"\")","v":2},2,null,null,{"$f":"IF(AND('2011 Survey responses'!$K146>0,'2007 Survey responses'!$J150>0),'2007 Survey responses'!$J150,\"\")","v":1},{"$f":"IF(AND('2011 Survey responses'!$K146>0,'2007 Survey responses'!$J150>0),'2011 Survey responses'!$K146,\"\")","v":2},2,null,null,{"$f":"IF(AND('2011 Survey responses'!$L146>0,'2007 Survey responses'!$I150>0),'2007 Survey responses'!$I150,\"\")","v":1},{"$f":"IF(AND('2011 Survey responses'!$L146>0,'2007 Survey responses'!$I150>0),'2011 Survey responses'!$L146,\"\")","v":3},3,null,null,{"$f":"IF(AND('2011 Survey responses'!$M146>0,'2007 Survey responses'!$K150>0),'2007 Survey responses'!$K150,\"\")","v":1},{"$f":"IF(AND('2011 Survey responses'!$M146>0,'2007 Survey responses'!$K150>0),'2011 Survey responses'!$M146,\"\")","v":3},3,null,null,{"$f":"IF('2007 Survey responses'!$B150>0,IF(AND('2011 Survey responses'!T146>0,'2007 Survey responses'!L150>0),'2007 Survey responses'!L150,\"\"),\"\")","v":4},{"$f":"IF('2007 Survey responses'!$B150>0,IF(AND('2011 Survey responses'!T146>0,'2007 Survey responses'!L150>0),'2011 Survey responses'!T146,\"\"),\"\")","v":2},2,null,null,{"$f":"IF(AND('2011 Survey responses'!$U146>0,'2007 Survey responses'!$M150>0),'2007 Survey responses'!$M150,\"\")","v":4},{"$f":"IF(AND('2011 Survey responses'!$U146>0,'2007 Survey responses'!$M150>0),'2011 Survey responses'!$U146,\"\")","v":1},1]
["Saint Vincent and the Grenadines",{"$f":"IF(AND('2011 Survey responses'!$F147>0,'2007 Survey responses'!E151>0),'2007 Survey responses'!E151,\"\")","v":""},{"$f":"IF(AND('2011 Survey responses'!$F147>0,'2007 Survey responses'!E151>0),'2011 Survey responses'!$F147,\"\")","v":""},"",null,null,{"$f":"IF(AND('2011 Survey responses'!$G147>0,'2007 Survey responses'!$F151>0),'2007 Survey responses'!$F151,\"\")","v":""},{"$f":"IF(AND('2011 Survey responses'!$G147>0,'2007 Survey responses'!$F151>0),'2011 Survey responses'!$G147,\"\")","v":""},"",null,null,{"$f":"IF(AND('2011 Survey responses'!$H147>0,'2007 Survey responses'!$F151>0),'2007 Survey responses'!$F151,\"\")","v":""},{"$f":"IF(AND('2011 Survey responses'!$H147>0,'2007 Survey responses'!$F151>0),'2011 Survey responses'!$H147,\"\")","v":""},"",null,null,{"$f":"IF(AND(Question_grouping!O147>0,'2007 Survey responses'!$F151>0),'2007 Survey responses'!$F151,\"\")","v":1},{"$f":"IF(AND(Question_grouping!O147>0,'2007 Survey responses'!$F151>0),Question_grouping!O147,\"\")","v":""},"",null,null,{"$f":"IF(AND('2011 Survey responses'!$B147>0,'2007 Survey responses'!$C151>0),'2007 Survey responses'!$C151,\"\")","v":""},{"$f":"IF(AND('2011 Survey responses'!$B147>0,'2007 Survey responses'!$C151>0),'2011 Survey responses'!$B147,\"\")","v":""},"",null,null,{"$f":"IF(AND('2011 Survey responses'!$D147>0,'2007 Survey responses'!$D151>0),'2007 Survey responses'!$D151,\"\")","v":""},{"$f":"IF(AND('2011 Survey responses'!$D147>0,'2007 Survey responses'!$D151>0),'2011 Survey responses'!$D147,\"\")","v":""},"",null,null,{"$f":"IF(AND('2011 Survey responses'!$J147>0,'2007 Survey responses'!$H151>0),'2007 Survey responses'!$H151,\"\")","v":""},{"$f":"IF(AND('2011 Survey responses'!$J147>0,'2007 Survey responses'!$H151>0),'2011 Survey responses'!$J147,\"\")","v":""},"",null,null,{"$f":"IF(AND('2011 Survey responses'!$K147>0,'2007 Survey responses'!$J151>0),'2007 Survey responses'!$J151,\"\")","v":""},{"$f":"IF(AND('2011 Survey responses'!$K147>0,'2007 Survey responses'!$J151>0),'2011 Survey responses'!$K147,\"\")","v":""},"",null,null,{"$f":"IF(AND('2011 Survey responses'!$L147>0,'2007 Survey responses'!$I151>0),'2007 Survey responses'!$I151,\"\")","v":""},{"$f":"IF(AND('2011 Survey responses'!$L147>0,'2007 Survey responses'!$I151>0),'2011 Survey responses'!$L147,\"\")","v":""},"",null,null,{"$f":"IF(AND('2011 Survey responses'!$M147>0,'2007 Survey responses'!$K151>0),'2007 Survey responses'!$K151,\"\")","v":""},{"$f":"IF(AND('2011 Survey responses'!$M147>0,'2007 Survey responses'!$K151>0),'2011 Survey responses'!$M147,\"\")","v":""},"",null,null,{"$f":"IF('2007 Survey responses'!$B151>0,IF(AND('2011 Survey responses'!T147>0,'2007 Survey responses'!L151>0),'2007 Survey responses'!L151,\"\"),\"\")","v":""},{"$f":"IF('2007 Survey responses'!$B151>0,IF(AND('2011 Survey responses'!T147>0,'2007 Survey responses'!L151>0),'2011 Survey responses'!T147,\"\"),\"\")","v":""},"",null,null,{"$f":"IF(AND('2011 Survey responses'!$U147>0,'2007 Survey responses'!$M151>0),'2007 Survey responses'!$M151,\"\")","v":""},{"$f":"IF(AND('2011 Survey responses'!$U147>0,'2007 Survey responses'!$M151>0),'2011 Survey responses'!$U147,\"\")","v":""},""]
["Samoa",{"$f":"IF(AND('2011 Survey responses'!$F148>0,'2007 Survey responses'!E152>0),'2007 Survey responses'!E152,\"\")","v":""},{"$f":"IF(AND('2011 Survey responses'!$F148>0,'2007 Survey responses'!E152>0),'2011 Survey responses'!$F148,\"\")","v":""},"",null,null,{"$f":"IF(AND('2011 Survey responses'!$G148>0,'2007 Survey responses'!$F152>0),'2007 Survey responses'!$F152,\"\")","v":""},{"$f":"IF(AND('2011 Survey responses'!$G148>0,'2007 Survey responses'!$F152>0),'2011 Survey responses'!$G148,\"\")","v":""},"",null,null,{"$f":"IF(AND('2011 Survey responses'!$H148>0,'2007 Survey responses'!$F152>0),'2007 Survey responses'!$F152,\"\")","v":""},{"$f":"IF(AND('2011 Survey responses'!$H148>0,'2007 Survey responses'!$F152>0),'2011 Survey responses'!$H148,\"\")","v":""},"",null,null,{"$f":"IF(AND(Question_grouping!O148>0,'2007 Survey responses'!$F152>0),'2007 Survey responses'!$F152,\"\")","v":""},{"$f":"IF(AND(Question_grouping!O148>0,'2007 Survey responses'!$F152>0),Question_grouping!O148,\"\")","v":""},"",null,null,{"$f":"IF(AND('2011 Survey responses'!$B148>0,'2007 Survey responses'!$C152>0),'2007 Survey responses'!$C152,\"\")","v":""},{"$f":"IF(AND('2011 Survey responses'!$B148>0,'2007 Survey responses'!$C152>0),'2011 Survey responses'!$B148,\"\")","v":""},"",null,null,{"$f":"IF(AND('2011 Survey responses'!$D148>0,'2007 Survey responses'!$D152>0),'2007 Survey responses'!$D152,\"\")","v":""},{"$f":"IF(AND('2011 Survey responses'!$D148>0,'2007 Survey responses'!$D152>0),'2011 Survey responses'!$D148,\"\")","v":""},"",null,null,{"$f":"IF(AND('2011 Survey responses'!$J148>0,'2007 Survey responses'!$H152>0),'2007 Survey responses'!$H152,\"\")","v":""},{"$f":"IF(AND('2011 Survey responses'!$J148>0,'2007 Survey responses'!$H152>0),'2011 Survey responses'!$J148,\"\")","v":""},"",null,null,{"$f":"IF(AND('2011 Survey responses'!$K148>0,'2007 Survey responses'!$J152>0),'2007 Survey responses'!$J152,\"\")","v":""},{"$f":"IF(AND('2011 Survey responses'!$K148>0,'2007 Survey responses'!$J152>0),'2011 Survey responses'!$K148,\"\")","v":""},"",null,null,{"$f":"IF(AND('2011 Survey responses'!$L148>0,'2007 Survey responses'!$I152>0),'2007 Survey responses'!$I152,\"\")","v":""},{"$f":"IF(AND('2011 Survey responses'!$L148>0,'2007 Survey responses'!$I152>0),'2011 Survey responses'!$L148,\"\")","v":""},"",null,null,{"$f":"IF(AND('2011 Survey responses'!$M148>0,'2007 Survey responses'!$K152>0),'2007 Survey responses'!$K152,\"\")","v":""},{"$f":"IF(AND('2011 Survey responses'!$M148>0,'2007 Survey responses'!$K152>0),'2011 Survey responses'!$M148,\"\")","v":""},"",null,null,{"$f":"IF('2007 Survey responses'!$B152>0,IF(AND('2011 Survey responses'!T148>0,'2007 Survey responses'!L152>0),'2007 Survey responses'!L152,\"\"),\"\")","v":""},{"$f":"IF('2007 Survey responses'!$B152>0,IF(AND('2011 Survey responses'!T148>0,'2007 Survey responses'!L152>0),'2011 Survey responses'!T148,\"\"),\"\")","v":""},"",null,null,{"$f":"IF(AND('2011 Survey responses'!$U148>0,'2007 Survey responses'!$M152>0),'2007 Survey responses'!$M152,\"\")","v":""},{"$f":"IF(AND('2011 Survey responses'!$U148>0,'2007 Survey responses'!$M152>0),'2011 Survey responses'!$U148,\"\")","v":""},""]
["San Marino",{"$f":"IF(AND('2011 Survey responses'!$F149>0,'2007 Survey responses'!E153>0),'2007 Survey responses'!E153,\"\")","v":""},{"$f":"IF(AND('2011 Survey responses'!$F149>0,'2007 Survey responses'!E153>0),'2011 Survey responses'!$F149,\"\")","v":""},"",null,null,{"$f":"IF(AND('2011 Survey responses'!$G149>0,'2007 Survey responses'!$F153>0),'2007 Survey responses'!$F153,\"\")","v":""},{"$f":"IF(AND('2011 Survey responses'!$G149>0,'2007 Survey responses'!$F153>0),'2011 Survey responses'!$G149,\"\")","v":""},"",null,null,{"$f":"IF(AND('2011 Survey responses'!$H149>0,'2007 Survey responses'!$F153>0),'2007 Survey responses'!$F153,\"\")","v":""},{"$f":"IF(AND('2011 Survey responses'!$H149>0,'2007 Survey responses'!$F153>0),'2011 Survey responses'!$H149,\"\")","v":""},"",null,null,{"$f":"IF(AND(Question_grouping!O149>0,'2007 Survey responses'!$F153>0),'2007 Survey responses'!$F153,\"\")","v":""},{"$f":"IF(AND(Question_grouping!O149>0,'2007 Survey responses'!$F153>0),Question_grouping!O149,\"\")","v":""},"",null,null,{"$f":"IF(AND('2011 Survey responses'!$B149>0,'2007 Survey responses'!$C153>0),'2007 Survey responses'!$C153,\"\")","v":""},{"$f":"IF(AND('2011 Survey responses'!$B149>0,'2007 Survey responses'!$C153>0),'2011 Survey responses'!$B149,\"\")","v":""},"",null,null,{"$f":"IF(AND('2011 Survey responses'!$D149>0,'2007 Survey responses'!$D153>0),'2007 Survey responses'!$D153,\"\")","v":""},{"$f":"IF(AND('2011 Survey responses'!$D149>0,'2007 Survey responses'!$D153>0),'2011 Survey responses'!$D149,\"\")","v":""},"",null,null,{"$f":"IF(AND('2011 Survey responses'!$J149>0,'2007 Survey responses'!$H153>0),'2007 Survey responses'!$H153,\"\")","v":""},{"$f":"IF(AND('2011 Survey responses'!$J149>0,'2007 Survey responses'!$H153>0),'2011 Survey responses'!$J149,\"\")","v":""},"",null,null,{"$f":"IF(AND('2011 Survey responses'!$K149>0,'2007 Survey responses'!$J153>0),'2007 Survey responses'!$J153,\"\")","v":""},{"$f":"IF(AND('2011 Survey responses'!$K149>0,'2007 Survey responses'!$J153>0),'2011 Survey responses'!$K149,\"\")","v":""},"",null,null,{"$f":"IF(AND('2011 Survey responses'!$L149>0,'2007 Survey responses'!$I153>0),'2007 Survey responses'!$I153,\"\")","v":""},{"$f":"IF(AND('2011 Survey responses'!$L149>0,'2007 Survey responses'!$I153>0),'2011 Survey responses'!$L149,\"\")","v":""},"",null,null,{"$f":"IF(AND('2011 Survey responses'!$M149>0,'2007 Survey responses'!$K153>0),'2007 Survey responses'!$K153,\"\")","v":""},{"$f":"IF(AND('2011 Survey responses'!$M149>0,'2007 Survey responses'!$K153>0),'2011 Survey responses'!$M149,\"\")","v":""},"",null,null,{"$f":"IF('2007 Survey responses'!$B153>0,IF(AND('2011 Survey responses'!T149>0,'2007 Survey responses'!L153>0),'2007 Survey responses'!L153,\"\"),\"\")","v":""},{"$f":"IF('2007 Survey responses'!$B153>0,IF(AND('2011 Survey responses'!T149>0,'2007 Survey responses'!L153>0),'2011 Survey responses'!T149,\"\"),\"\")","v":""},"",null,null,{"$f":"IF(AND('2011 Survey responses'!$U149>0,'2007 Survey responses'!$M153>0),'2007 Survey responses'!$M153,\"\")","v":""},{"$f":"IF(AND('2011 Survey responses'!$U149>0,'2007 Survey responses'!$M153>0),'2011 Survey responses'!$U149,\"\")","v":""},""]
["Sao Tome and Principe",{"$f":"IF(AND('2011 Survey responses'!$F150>0,'2007 Survey responses'!E154>0),'2007 Survey responses'!E154,\"\")","v":""},{"$f":"IF(AND('2011 Survey responses'!$F150>0,'2007 Survey responses'!E154>0),'2011 Survey responses'!$F150,\"\")","v":""},"",null,null,{"$f":"IF(AND('2011 Survey responses'!$G150>0,'2007 Survey responses'!$F154>0),'2007 Survey responses'!$F154,\"\")","v":""},{"$f":"IF(AND('2011 Survey responses'!$G150>0,'2007 Survey responses'!$F154>0),'2011 Survey responses'!$G150,\"\")","v":""},"",null,null,{"$f":"IF(AND('2011 Survey responses'!$H150>0,'2007 Survey responses'!$F154>0),'2007 Survey responses'!$F154,\"\")","v":""},{"$f":"IF(AND('2011 Survey responses'!$H150>0,'2007 Survey responses'!$F154>0),'2011 Survey responses'!$H150,\"\")","v":""},"",null,null,{"$f":"IF(AND(Question_grouping!O150>0,'2007 Survey responses'!$F154>0),'2007 Survey responses'!$F154,\"\")","v":""},{"$f":"IF(AND(Question_grouping!O150>0,'2007 Survey responses'!$F154>0),Question_grouping!O150,\"\")","v":""},"",null,null,{"$f":"IF(AND('2011 Survey responses'!$B150>0,'2007 Survey responses'!$C154>0),'2007 Survey responses'!$C154,\"\")","v":""},{"$f":"IF(AND('2011 Survey responses'!$B150>0,'2007 Survey responses'!$C154>0),'2011 Survey responses'!$B150,\"\")","v":""},"",null,null,{"$f":"IF(AND('2011 Survey responses'!$D150>0,'2007 Survey responses'!$D154>0),'2007 Survey responses'!$D154,\"\")","v":""},{"$f":"IF(AND('2011 Survey responses'!$D150>0,'2007 Survey responses'!$D154>0),'2011 Survey responses'!$D150,\"\")","v":""},"",null,null,{"$f":"IF(AND('2011 Survey responses'!$J150>0,'2007 Survey responses'!$H154>0),'2007 Survey responses'!$H154,\"\")","v":""},{"$f":"IF(AND('2011 Survey responses'!$J150>0,'2007 Survey responses'!$H154>0),'2011 Survey responses'!$J150,\"\")","v":""},"",null,null,{"$f":"IF(AND('2011 Survey responses'!$K150>0,'2007 Survey responses'!$J154>0),'2007 Survey responses'!$J154,\"\")","v":""},{"$f":"IF(AND('2011 Survey responses'!$K150>0,'2007 Survey responses'!$J154>0),'2011 Survey responses'!$K150,\"\")","v":""},"",null,null,{"$f":"IF(AND('2011 Survey responses'!$L150>0,'2007 Survey responses'!$I154>0),'2007 Survey responses'!$I154,\"\")","v":""},{"$f":"IF(AND('2011 Survey responses'!$L150>0,'2007 Survey responses'!$I154>0),'2011 Survey responses'!$L150,\"\")","v":""},"",null,null,{"$f":"IF(AND('2011 Survey responses'!$M150>0,'2007 Survey responses'!$K154>0),'2007 Survey responses'!$K154,\"\")","v":""},{"$f":"IF(AND('2011 Survey responses'!$M150>0,'2007 Survey responses'!$K154>0),'2011 Survey responses'!$M150,\"\")","v":""},"",null,null,{"$f":"IF('2007 Survey responses'!$B154>0,IF(AND('2011 Survey responses'!T150>0,'2007 Survey responses'!L154>0),'2007 Survey responses'!L154,\"\"),\"\")","v":""},{"$f":"IF('2007 Survey responses'!$B154>0,IF(AND('2011 Survey responses'!T150>0,'2007 Survey responses'!L154>0),'2011 Survey responses'!T150,\"\"),\"\")","v":""},"",null,null,{"$f":"IF(AND('2011 Survey responses'!$U150>0,'2007 Survey responses'!$M154>0),'2007 Survey responses'!$M154,\"\")","v":""},{"$f":"IF(AND('2011 Survey responses'!$U150>0,'2007 Survey responses'!$M154>0),'2011 Survey responses'!$U150,\"\")","v":""},""]
["Saudi Arabia",{"$f":"IF(AND('2011 Survey responses'!$F151>0,'2007 Survey responses'!E155>0),'2007 Survey responses'!E155,\"\")","v":""},{"$f":"IF(AND('2011 Survey responses'!$F151>0,'2007 Survey responses'!E155>0),'2011 Survey responses'!$F151,\"\")","v":""},"",null,null,{"$f":"IF(AND('2011 Survey responses'!$G151>0,'2007 Survey responses'!$F155>0),'2007 Survey responses'!$F155,\"\")","v":""},{"$f":"IF(AND('2011 Survey responses'!$G151>0,'2007 Survey responses'!$F155>0),'2011 Survey responses'!$G151,\"\")","v":""},"",null,null,{"$f":"IF(AND('2011 Survey responses'!$H151>0,'2007 Survey responses'!$F155>0),'2007 Survey responses'!$F155,\"\")","v":""},{"$f":"IF(AND('2011 Survey responses'!$H151>0,'2007 Survey responses'!$F155>0),'2011 Survey responses'!$H151,\"\")","v":""},"",null,null,{"$f":"IF(AND(Question_grouping!O151>0,'2007 Survey responses'!$F155>0),'2007 Survey responses'!$F155,\"\")","v":""},{"$f":"IF(AND(Question_grouping!O151>0,'2007 Survey responses'!$F155>0),Question_grouping!O151,\"\")","v":""},"",null,null,{"$f":"IF(AND('2011 Survey responses'!$B151>0,'2007 Survey responses'!$C155>0),'2007 Survey responses'!$C155,\"\")","v":""},{"$f":"IF(AND('2011 Survey responses'!$B151>0,'2007 Survey responses'!$C155>0),'2011 Survey responses'!$B151,\"\")","v":""},"",null,null,{"$f":"IF(AND('2011 Survey responses'!$D151>0,'2007 Survey responses'!$D155>0),'2007 Survey responses'!$D155,\"\")","v":""},{"$f":"IF(AND('2011 Survey responses'!$D151>0,'2007 Survey responses'!$D155>0),'2011 Survey responses'!$D151,\"\")","v":""},"",null,null,{"$f":"IF(AND('2011 Survey responses'!$J151>0,'2007 Survey responses'!$H155>0),'2007 Survey responses'!$H155,\"\")","v":""},{"$f":"IF(AND('2011 Survey responses'!$J151>0,'2007 Survey responses'!$H155>0),'2011 Survey responses'!$J151,\"\")","v":""},"",null,null,{"$f":"IF(AND('2011 Survey responses'!$K151>0,'2007 Survey responses'!$J155>0),'2007 Survey responses'!$J155,\"\")","v":""},{"$f":"IF(AND('2011 Survey responses'!$K151>0,'2007 Survey responses'!$J155>0),'2011 Survey responses'!$K151,\"\")","v":""},"",null,null,{"$f":"IF(AND('2011 Survey responses'!$L151>0,'2007 Survey responses'!$I155>0),'2007 Survey responses'!$I155,\"\")","v":""},{"$f":"IF(AND('2011 Survey responses'!$L151>0,'2007 Survey responses'!$I155>0),'2011 Survey responses'!$L151,\"\")","v":""},"",null,null,{"$f":"IF(AND('2011 Survey responses'!$M151>0,'2007 Survey responses'!$K155>0),'2007 Survey responses'!$K155,\"\")","v":""},{"$f":"IF(AND('2011 Survey responses'!$M151>0,'2007 Survey responses'!$K155>0),'2011 Survey responses'!$M151,\"\")","v":""},"",null,null,{"$f":"IF('2007 Survey responses'!$B155>0,IF(AND('2011 Survey responses'!T151>0,'2007 Survey responses'!L155>0),'2007 Survey responses'!L155,\"\"),\"\")","v":""},{"$f":"IF('2007 Survey responses'!$B155>0,IF(AND('2011 Survey responses'!T151>0,'2007 Survey responses'!L155>0),'2011 Survey responses'!T151,\"\"),\"\")","v":""},"",null,null,{"$f":"IF(AND('2011 Survey responses'!$U151>0,'2007 Survey responses'!$M155>0),'2007 Survey responses'!$M155,\"\")","v":""},{"$f":"IF(AND('2011 Survey responses'!$U151>0,'2007 Survey responses'!$M155>0),'2011 Survey responses'!$U151,\"\")","v":""},""]
["Senegal",{"$f":"IF(AND('2011 Survey responses'!$F152>0,'2007 Survey responses'!E156>0),'2007 Survey responses'!E156,\"\")","v":""},{"$f":"IF(AND('2011 Survey responses'!$F152>0,'2007 Survey responses'!E156>0),'2011 Survey responses'!$F152,\"\")","v":""},"",null,null,{"$f":"IF(AND('2011 Survey responses'!$G152>0,'2007 Survey responses'!$F156>0),'2007 Survey responses'!$F156,\"\")","v":""},{"$f":"IF(AND('2011 Survey responses'!$G152>0,'2007 Survey responses'!$F156>0),'2011 Survey responses'!$G152,\"\")","v":""},"",null,null,{"$f":"IF(AND('2011 Survey responses'!$H152>0,'2007 Survey responses'!$F156>0),'2007 Survey responses'!$F156,\"\")","v":""},{"$f":"IF(AND('2011 Survey responses'!$H152>0,'2007 Survey responses'!$F156>0),'2011 Survey responses'!$H152,\"\")","v":""},"",null,null,{"$f":"IF(AND(Question_grouping!O152>0,'2007 Survey responses'!$F156>0),'2007 Survey responses'!$F156,\"\")","v":""},{"$f":"IF(AND(Question_grouping!O152>0,'2007 Survey responses'!$F156>0),Question_grouping!O152,\"\")","v":""},"",null,null,{"$f":"IF(AND('2011 Survey responses'!$B152>0,'2007 Survey responses'!$C156>0),'2007 Survey responses'!$C156,\"\")","v":""},{"$f":"IF(AND('2011 Survey responses'!$B152>0,'2007 Survey responses'!$C156>0),'2011 Survey responses'!$B152,\"\")","v":""},"",null,null,{"$f":"IF(AND('2011 Survey responses'!$D152>0,'2007 Survey responses'!$D156>0),'2007 Survey responses'!$D156,\"\")","v":""},{"$f":"IF(AND('2011 Survey responses'!$D152>0,'2007 Survey responses'!$D156>0),'2011 Survey responses'!$D152,\"\")","v":""},"",null,null,{"$f":"IF(AND('2011 Survey responses'!$J152>0,'2007 Survey responses'!$H156>0),'2007 Survey responses'!$H156,\"\")","v":""},{"$f":"IF(AND('2011 Survey responses'!$J152>0,'2007 Survey responses'!$H156>0),'2011 Survey responses'!$J152,\"\")","v":""},"",null,null,{"$f":"IF(AND('2011 Survey responses'!$K152>0,'2007 Survey responses'!$J156>0),'2007 Survey responses'!$J156,\"\")","v":""},{"$f":"IF(AND('2011 Survey responses'!$K152>0,'2007 Survey responses'!$J156>0),'2011 Survey responses'!$K152,\"\")","v":""},"",null,null,{"$f":"IF(AND('2011 Survey responses'!$L152>0,'2007 Survey responses'!$I156>0),'2007 Survey responses'!$I156,\"\")","v":""},{"$f":"IF(AND('2011 Survey responses'!$L152>0,'2007 Survey responses'!$I156>0),'2011 Survey responses'!$L152,\"\")","v":""},"",null,null,{"$f":"IF(AND('2011 Survey responses'!$M152>0,'2007 Survey responses'!$K156>0),'2007 Survey responses'!$K156,\"\")","v":""},{"$f":"IF(AND('2011 Survey responses'!$M152>0,'2007 Survey responses'!$K156>0),'2011 Survey responses'!$M152,\"\")","v":""},"",null,null,{"$f":"IF('2007 Survey responses'!$B156>0,IF(AND('2011 Survey responses'!T152>0,'2007 Survey responses'!L156>0),'2007 Survey responses'!L156,\"\"),\"\")","v":""},{"$f":"IF('2007 Survey responses'!$B156>0,IF(AND('2011 Survey responses'!T152>0,'2007 Survey responses'!L156>0),'2011 Survey responses'!T152,\"\"),\"\")","v":""},"",null,null,{"$f":"IF(AND('2011 Survey responses'!$U152>0,'2007 Survey responses'!$M156>0),'2007 Survey responses'!$M156,\"\")","v":""},{"$f":"IF(AND('2011 Survey responses'!$U152>0,'2007 Survey responses'!$M156>0),'2011 Survey responses'!$U152,\"\")","v":""},""]
["Serbia",{"$f":"IF(AND('2011 Survey responses'!$F153>0,'2007 Survey responses'!E157>0),'2007 Survey responses'!E157,\"\")","v":""},{"$f":"IF(AND('2011 Survey responses'!$F153>0,'2007 Survey responses'!E157>0),'2011 Survey responses'!$F153,\"\")","v":""},"",null,null,{"$f":"IF(AND('2011 Survey responses'!$G153>0,'2007 Survey responses'!$F157>0),'2007 Survey responses'!$F157,\"\")","v":""},{"$f":"IF(AND('2011 Survey responses'!$G153>0,'2007 Survey responses'!$F157>0),'2011 Survey responses'!$G153,\"\")","v":""},"",null,null,{"$f":"IF(AND('2011 Survey responses'!$H153>0,'2007 Survey responses'!$F157>0),'2007 Survey responses'!$F157,\"\")","v":""},{"$f":"IF(AND('2011 Survey responses'!$H153>0,'2007 Survey responses'!$F157>0),'2011 Survey responses'!$H153,\"\")","v":""},"",null,null,{"$f":"IF(AND(Question_grouping!O153>0,'2007 Survey responses'!$F157>0),'2007 Survey responses'!$F157,\"\")","v":""},{"$f":"IF(AND(Question_grouping!O153>0,'2007 Survey responses'!$F157>0),Question_grouping!O153,\"\")","v":""},"",null,null,{"$f":"IF(AND('2011 Survey responses'!$B153>0,'2007 Survey responses'!$C157>0),'2007 Survey responses'!$C157,\"\")","v":""},{"$f":"IF(AND('2011 Survey responses'!$B153>0,'2007 Survey responses'!$C157>0),'2011 Survey responses'!$B153,\"\")","v":""},"",null,null,{"$f":"IF(AND('2011 Survey responses'!$D153>0,'2007 Survey responses'!$D157>0),'2007 Survey responses'!$D157,\"\")","v":""},{"$f":"IF(AND('2011 Survey responses'!$D153>0,'2007 Survey responses'!$D157>0),'2011 Survey responses'!$D153,\"\")","v":""},"",null,null,{"$f":"IF(AND('2011 Survey responses'!$J153>0,'2007 Survey responses'!$H157>0),'2007 Survey responses'!$H157,\"\")","v":""},{"$f":"IF(AND('2011 Survey responses'!$J153>0,'2007 Survey responses'!$H157>0),'2011 Survey responses'!$J153,\"\")","v":""},"",null,null,{"$f":"IF(AND('2011 Survey responses'!$K153>0,'2007 Survey responses'!$J157>0),'2007 Survey responses'!$J157,\"\")","v":""},{"$f":"IF(AND('2011 Survey responses'!$K153>0,'2007 Survey responses'!$J157>0),'2011 Survey responses'!$K153,\"\")","v":""},"",null,null,{"$f":"IF(AND('2011 Survey responses'!$L153>0,'2007 Survey responses'!$I157>0),'2007 Survey responses'!$I157,\"\")","v":""},{"$f":"IF(AND('2011 Survey responses'!$L153>0,'2007 Survey responses'!$I157>0),'2011 Survey responses'!$L153,\"\")","v":""},"",null,null,{"$f":"IF(AND('2011 Survey responses'!$M153>0,'2007 Survey responses'!$K157>0),'2007 Survey responses'!$K157,\"\")","v":""},{"$f":"IF(AND('2011 Survey responses'!$M153>0,'2007 Survey responses'!$K157>0),'2011 Survey responses'!$M153,\"\")","v":""},"",null,null,{"$f":"IF('2007 Survey responses'!$B157>0,IF(AND('2011 Survey responses'!T153>0,'2007 Survey responses'!L157>0),'2007 Survey responses'!L157,\"\"),\"\")","v":""},{"$f":"IF('2007 Survey responses'!$B157>0,IF(AND('2011 Survey responses'!T153>0,'2007 Survey responses'!L157>0),'2011 Survey responses'!T153,\"\"),\"\")","v":""},"",null,null,{"$f":"IF(AND('2011 Survey responses'!$U153>0,'2007 Survey responses'!$M157>0),'2007 Survey responses'!$M157,\"\")","v":""},{"$f":"IF(AND('2011 Survey responses'!$U153>0,'2007 Survey responses'!$M157>0),'2011 Survey responses'!$U153,\"\")","v":""},""]
["Seychelles",{"$f":"IF(AND('2011 Survey responses'!$F154>0,'2007 Survey responses'!E158>0),'2007 Survey responses'!E158,\"\")","v":""},{"$f":"IF(AND('2011 Survey responses'!$F154>0,'2007 Survey responses'!E158>0),'2011 Survey responses'!$F154,\"\")","v":""},"",null,null,{"$f":"IF(AND('2011 Survey responses'!$G154>0,'2007 Survey responses'!$F158>0),'2007 Survey responses'!$F158,\"\")","v":""},{"$f":"IF(AND('2011 Survey responses'!$G154>0,'2007 Survey responses'!$F158>0),'2011 Survey responses'!$G154,\"\")","v":""},"",null,null,{"$f":"IF(AND('2011 Survey responses'!$H154>0,'2007 Survey responses'!$F158>0),'2007 Survey responses'!$F158,\"\")","v":""},{"$f":"IF(AND('2011 Survey responses'!$H154>0,'2007 Survey responses'!$F158>0),'2011 Survey responses'!$H154,\"\")","v":""},"",null,null,{"$f":"IF(AND(Question_grouping!O154>0,'2007 Survey responses'!$F158>0),'2007 Survey responses'!$F158,\"\")","v":1},{"$f":"IF(AND(Question_grouping!O154>0,'2007 Survey responses'!$F158>0),Question_grouping!O154,\"\")","v":""},"",null,null,{"$f":"IF(AND('2011 Survey responses'!$B154>0,'2007 Survey responses'!$C158>0),'2007 Survey responses'!$C158,\"\")","v":""},{"$f":"IF(AND('2011 Survey responses'!$B154>0,'2007 Survey responses'!$C158>0),'2011 Survey responses'!$B154,\"\")","v":""},"",null,null,{"$f":"IF(AND('2011 Survey responses'!$D154>0,'2007 Survey responses'!$D158>0),'2007 Survey responses'!$D158,\"\")","v":""},{"$f":"IF(AND('2011 Survey responses'!$D154>0,'2007 Survey responses'!$D158>0),'2011 Survey responses'!$D154,\"\")","v":""},"",null,null,{"$f":"IF(AND('2011 Survey responses'!$J154>0,'2007 Survey responses'!$H158>0),'2007 Survey responses'!$H158,\"\")","v":""},{"$f":"IF(AND('2011 Survey responses'!$J154>0,'2007 Survey responses'!$H158>0),'2011 Survey responses'!$J154,\"\")","v":""},"",null,null,{"$f":"IF(AND('2011 Survey responses'!$K154>0,'2007 Survey responses'!$J158>0),'2007 Survey responses'!$J158,\"\")","v":""},{"$f":"IF(AND('2011 Survey responses'!$K154>0,'2007 Survey responses'!$J158>0),'2011 Survey responses'!$K154,\"\")","v":""},"",null,null,{"$f":"IF(AND('2011 Survey responses'!$L154>0,'2007 Survey responses'!$I158>0),'2007 Survey responses'!$I158,\"\")","v":""},{"$f":"IF(AND('2011 Survey responses'!$L154>0,'2007 Survey responses'!$I158>0),'2011 Survey responses'!$L154,\"\")","v":""},"",null,null,{"$f":"IF(AND('2011 Survey responses'!$M154>0,'2007 Survey responses'!$K158>0),'2007 Survey responses'!$K158,\"\")","v":""},{"$f":"IF(AND('2011 Survey responses'!$M154>0,'2007 Survey responses'!$K158>0),'2011 Survey responses'!$M154,\"\")","v":""},"",null,null,{"$f":"IF('2007 Survey responses'!$B158>0,IF(AND('2011 Survey responses'!T154>0,'2007 Survey responses'!L158>0),'2007 Survey responses'!L158,\"\"),\"\")","v":""},{"$f":"IF('2007 Survey responses'!$B158>0,IF(AND('2011 Survey responses'!T154>0,'2007 Survey responses'!L158>0),'2011 Survey responses'!T154,\"\"),\"\")","v":""},"",null,null,{"$f":"IF(AND('2011 Survey responses'!$U154>0,'2007 Survey responses'!$M158>0),'2007 Survey responses'!$M158,\"\")","v":""},{"$f":"IF(AND('2011 Survey responses'!$U154>0,'2007 Survey responses'!$M158>0),'2011 Survey responses'!$U154,\"\")","v":""},""]
["Sierra Leone",{"$f":"IF(AND('2011 Survey responses'!$F155>0,'2007 Survey responses'!E159>0),'2007 Survey responses'!E159,\"\")","v":2},{"$f":"IF(AND('2011 Survey responses'!$F155>0,'2007 Survey responses'!E159>0),'2011 Survey responses'!$F155,\"\")","v":2},2,null,null,{"$f":"IF(AND('2011 Survey responses'!$G155>0,'2007 Survey responses'!$F159>0),'2007 Survey responses'!$F159,\"\")","v":4},{"$f":"IF(AND('2011 Survey responses'!$G155>0,'2007 Survey responses'!$F159>0),'2011 Survey responses'!$G155,\"\")","v":2},2,null,null,{"$f":"IF(AND('2011 Survey responses'!$H155>0,'2007 Survey responses'!$F159>0),'2007 Survey responses'!$F159,\"\")","v":4},{"$f":"IF(AND('2011 Survey responses'!$H155>0,'2007 Survey responses'!$F159>0),'2011 Survey responses'!$H155,\"\")","v":2},2,null,null,{"$f":"IF(AND(Question_grouping!O155>0,'2007 Survey responses'!$F159>0),'2007 Survey responses'!$F159,\"\")","v":4},{"$f":"IF(AND(Question_grouping!O155>0,'2007 Survey responses'!$F159>0),Question_grouping!O155,\"\")","v":2},2,null,null,{"$f":"IF(AND('2011 Survey responses'!$B155>0,'2007 Survey responses'!$C159>0),'2007 Survey responses'!$C159,\"\")","v":4},{"$f":"IF(AND('2011 Survey responses'!$B155>0,'2007 Survey responses'!$C159>0),'2011 Survey responses'!$B155,\"\")","v":2},2,null,null,{"$f":"IF(AND('2011 Survey responses'!$D155>0,'2007 Survey responses'!$D159>0),'2007 Survey responses'!$D159,\"\")","v":4},{"$f":"IF(AND('2011 Survey responses'!$D155>0,'2007 Survey responses'!$D159>0),'2011 Survey responses'!$D155,\"\")","v":2},2,null,null,{"$f":"IF(AND('2011 Survey responses'!$J155>0,'2007 Survey responses'!$H159>0),'2007 Survey responses'!$H159,\"\")","v":1},{"$f":"IF(AND('2011 Survey responses'!$J155>0,'2007 Survey responses'!$H159>0),'2011 Survey responses'!$J155,\"\")","v":3},3,null,null,{"$f":"IF(AND('2011 Survey responses'!$K155>0,'2007 Survey responses'!$J159>0),'2007 Survey responses'!$J159,\"\")","v":4},{"$f":"IF(AND('2011 Survey responses'!$K155>0,'2007 Survey responses'!$J159>0),'2011 Survey responses'!$K155,\"\")","v":2},2,null,null,{"$f":"IF(AND('2011 Survey responses'!$L155>0,'2007 Survey responses'!$I159>0),'2007 Survey responses'!$I159,\"\")","v":3},{"$f":"IF(AND('2011 Survey responses'!$L155>0,'2007 Survey responses'!$I159>0),'2011 Survey responses'!$L155,\"\")","v":2},2,null,null,{"$f":"IF(AND('2011 Survey responses'!$M155>0,'2007 Survey responses'!$K159>0),'2007 Survey responses'!$K159,\"\")","v":4},{"$f":"IF(AND('2011 Survey responses'!$M155>0,'2007 Survey responses'!$K159>0),'2011 Survey responses'!$M155,\"\")","v":2},2,null,null,{"$f":"IF('2007 Survey responses'!$B159>0,IF(AND('2011 Survey responses'!T155>0,'2007 Survey responses'!L159>0),'2007 Survey responses'!L159,\"\"),\"\")","v":1},{"$f":"IF('2007 Survey responses'!$B159>0,IF(AND('2011 Survey responses'!T155>0,'2007 Survey responses'!L159>0),'2011 Survey responses'!T155,\"\"),\"\")","v":2},2,null,null,{"$f":"IF(AND('2011 Survey responses'!$U155>0,'2007 Survey responses'!$M159>0),'2007 Survey responses'!$M159,\"\")","v":1},{"$f":"IF(AND('2011 Survey responses'!$U155>0,'2007 Survey responses'!$M159>0),'2011 Survey responses'!$U155,\"\")","v":2},2]
["Singapore",{"$f":"IF(AND('2011 Survey responses'!$F156>0,'2007 Survey responses'!E160>0),'2007 Survey responses'!E160,\"\")","v":2},{"$f":"IF(AND('2011 Survey responses'!$F156>0,'2007 Survey responses'!E160>0),'2011 Survey responses'!$F156,\"\")","v":6},5,null,null,{"$f":"IF(AND('2011 Survey responses'!$G156>0,'2007 Survey responses'!$F160>0),'2007 Survey responses'!$F160,\"\")","v":2},{"$f":"IF(AND('2011 Survey responses'!$G156>0,'2007 Survey responses'!$F160>0),'2011 Survey responses'!$G156,\"\")","v":1},1,null,null,{"$f":"IF(AND('2011 Survey responses'!$H156>0,'2007 Survey responses'!$F160>0),'2007 Survey responses'!$F160,\"\")","v":2},{"$f":"IF(AND('2011 Survey responses'!$H156>0,'2007 Survey responses'!$F160>0),'2011 Survey responses'!$H156,\"\")","v":6},5,null,null,{"$f":"IF(AND(Question_grouping!O156>0,'2007 Survey responses'!$F160>0),'2007 Survey responses'!$F160,\"\")","v":2},{"$f":"IF(AND(Question_grouping!O156>0,'2007 Survey responses'!$F160>0),Question_grouping!O156,\"\")","v":6},5,null,null,{"$f":"IF(AND('2011 Survey responses'!$B156>0,'2007 Survey responses'!$C160>0),'2007 Survey responses'!$C160,\"\")","v":2},{"$f":"IF(AND('2011 Survey responses'!$B156>0,'2007 Survey responses'!$C160>0),'2011 Survey responses'!$B156,\"\")","v":6},5,null,null,{"$f":"IF(AND('2011 Survey responses'!$D156>0,'2007 Survey responses'!$D160>0),'2007 Survey responses'!$D160,\"\")","v":2},{"$f":"IF(AND('2011 Survey responses'!$D156>0,'2007 Survey responses'!$D160>0),'2011 Survey responses'!$D156,\"\")","v":6},5,null,null,{"$f":"IF(AND('2011 Survey responses'!$J156>0,'2007 Survey responses'!$H160>0),'2007 Survey responses'!$H160,\"\")","v":2},{"$f":"IF(AND('2011 Survey responses'!$J156>0,'2007 Survey responses'!$H160>0),'2011 Survey responses'!$J156,\"\")","v":6},5,null,null,{"$f":"IF(AND('2011 Survey responses'!$K156>0,'2007 Survey responses'!$J160>0),'2007 Survey responses'!$J160,\"\")","v":2},{"$f":"IF(AND('2011 Survey responses'!$K156>0,'2007 Survey responses'!$J160>0),'2011 Survey responses'!$K156,\"\")","v":6},5,null,null,{"$f":"IF(AND('2011 Survey responses'!$L156>0,'2007 Survey responses'!$I160>0),'2007 Survey responses'!$I160,\"\")","v":2},{"$f":"IF(AND('2011 Survey responses'!$L156>0,'2007 Survey responses'!$I160>0),'2011 Survey responses'!$L156,\"\")","v":6},5,null,null,{"$f":"IF(AND('2011 Survey responses'!$M156>0,'2007 Survey responses'!$K160>0),'2007 Survey responses'!$K160,\"\")","v":""},{"$f":"IF(AND('2011 Survey responses'!$M156>0,'2007 Survey responses'!$K160>0),'2011 Survey responses'!$M156,\"\")","v":""},"",null,null,{"$f":"IF('2007 Survey responses'!$B160>0,IF(AND('2011 Survey responses'!T156>0,'2007 Survey responses'!L160>0),'2007 Survey responses'!L160,\"\"),\"\")","v":3},{"$f":"IF('2007 Survey responses'!$B160>0,IF(AND('2011 Survey responses'!T156>0,'2007 Survey responses'!L160>0),'2011 Survey responses'!T156,\"\"),\"\")","v":1},1,null,null,{"$f":"IF(AND('2011 Survey responses'!$U156>0,'2007 Survey responses'!$M160>0),'2007 Survey responses'!$M160,\"\")","v":2},{"$f":"IF(AND('2011 Survey responses'!$U156>0,'2007 Survey responses'!$M160>0),'2011 Survey responses'!$U156,\"\")","v":1},1]
["Slovakia",{"$f":"IF(AND('2011 Survey responses'!$F157>0,'2007 Survey responses'!E161>0),'2007 Survey responses'!E161,\"\")","v":""},{"$f":"IF(AND('2011 Survey responses'!$F157>0,'2007 Survey responses'!E161>0),'2011 Survey responses'!$F157,\"\")","v":""},"",null,null,{"$f":"IF(AND('2011 Survey responses'!$G157>0,'2007 Survey responses'!$F161>0),'2007 Survey responses'!$F161,\"\")","v":""},{"$f":"IF(AND('2011 Survey responses'!$G157>0,'2007 Survey responses'!$F161>0),'2011 Survey responses'!$G157,\"\")","v":""},"",null,null,{"$f":"IF(AND('2011 Survey responses'!$H157>0,'2007 Survey responses'!$F161>0),'2007 Survey responses'!$F161,\"\")","v":""},{"$f":"IF(AND('2011 Survey responses'!$H157>0,'2007 Survey responses'!$F161>0),'2011 Survey responses'!$H157,\"\")","v":""},"",null,null,{"$f":"IF(AND(Question_grouping!O157>0,'2007 Survey responses'!$F161>0),'2007 Survey responses'!$F161,\"\")","v":""},{"$f":"IF(AND(Question_grouping!O157>0,'2007 Survey responses'!$F161>0),Question_grouping!O157,\"\")","v":""},"",null,null,{"$f":"IF(AND('2011 Survey responses'!$B157>0,'2007 Survey responses'!$C161>0),'2007 Survey responses'!$C161,\"\")","v":""},{"$f":"IF(AND('2011 Survey responses'!$B157>0,'2007 Survey responses'!$C161>0),'2011 Survey responses'!$B157,\"\")","v":""},"",null,null,{"$f":"IF(AND('2011 Survey responses'!$D157>0,'2007 Survey responses'!$D161>0),'2007 Survey responses'!$D161,\"\")","v":""},{"$f":"IF(AND('2011 Survey responses'!$D157>0,'2007 Survey responses'!$D161>0),'2011 Survey responses'!$D157,\"\")","v":""},"",null,null,{"$f":"IF(AND('2011 Survey responses'!$J157>0,'2007 Survey responses'!$H161>0),'2007 Survey responses'!$H161,\"\")","v":""},{"$f":"IF(AND('2011 Survey responses'!$J157>0,'2007 Survey responses'!$H161>0),'2011 Survey responses'!$J157,\"\")","v":""},"",null,null,{"$f":"IF(AND('2011 Survey responses'!$K157>0,'2007 Survey responses'!$J161>0),'2007 Survey responses'!$J161,\"\")","v":""},{"$f":"IF(AND('2011 Survey responses'!$K157>0,'2007 Survey responses'!$J161>0),'2011 Survey responses'!$K157,\"\")","v":""},"",null,null,{"$f":"IF(AND('2011 Survey responses'!$L157>0,'2007 Survey responses'!$I161>0),'2007 Survey responses'!$I161,\"\")","v":""},{"$f":"IF(AND('2011 Survey responses'!$L157>0,'2007 Survey responses'!$I161>0),'2011 Survey responses'!$L157,\"\")","v":""},"",null,null,{"$f":"IF(AND('2011 Survey responses'!$M157>0,'2007 Survey responses'!$K161>0),'2007 Survey responses'!$K161,\"\")","v":""},{"$f":"IF(AND('2011 Survey responses'!$M157>0,'2007 Survey responses'!$K161>0),'2011 Survey responses'!$M157,\"\")","v":""},"",null,null,{"$f":"IF('2007 Survey responses'!$B161>0,IF(AND('2011 Survey responses'!T157>0,'2007 Survey responses'!L161>0),'2007 Survey responses'!L161,\"\"),\"\")","v":""},{"$f":"IF('2007 Survey responses'!$B161>0,IF(AND('2011 Survey responses'!T157>0,'2007 Survey responses'!L161>0),'2011 Survey responses'!T157,\"\"),\"\")","v":""},"",null,null,{"$f":"IF(AND('2011 Survey responses'!$U157>0,'2007 Survey responses'!$M161>0),'2007 Survey responses'!$M161,\"\")","v":""},{"$f":"IF(AND('2011 Survey responses'!$U157>0,'2007 Survey responses'!$M161>0),'2011 Survey responses'!$U157,\"\")","v":""},""]
["Slovenia",{"$f":"IF(AND('2011 Survey responses'!$F158>0,'2007 Survey responses'!E162>0),'2007 Survey responses'!E162,\"\")","v":""},{"$f":"IF(AND('2011 Survey responses'!$F158>0,'2007 Survey responses'!E162>0),'2011 Survey responses'!$F158,\"\")","v":""},"",null,null,{"$f":"IF(AND('2011 Survey responses'!$G158>0,'2007 Survey responses'!$F162>0),'2007 Survey responses'!$F162,\"\")","v":""},{"$f":"IF(AND('2011 Survey responses'!$G158>0,'2007 Survey responses'!$F162>0),'2011 Survey responses'!$G158,\"\")","v":""},"",null,null,{"$f":"IF(AND('2011 Survey responses'!$H158>0,'2007 Survey responses'!$F162>0),'2007 Survey responses'!$F162,\"\")","v":""},{"$f":"IF(AND('2011 Survey responses'!$H158>0,'2007 Survey responses'!$F162>0),'2011 Survey responses'!$H158,\"\")","v":""},"",null,null,{"$f":"IF(AND(Question_grouping!O158>0,'2007 Survey responses'!$F162>0),'2007 Survey responses'!$F162,\"\")","v":""},{"$f":"IF(AND(Question_grouping!O158>0,'2007 Survey responses'!$F162>0),Question_grouping!O158,\"\")","v":""},"",null,null,{"$f":"IF(AND('2011 Survey responses'!$B158>0,'2007 Survey responses'!$C162>0),'2007 Survey responses'!$C162,\"\")","v":""},{"$f":"IF(AND('2011 Survey responses'!$B158>0,'2007 Survey responses'!$C162>0),'2011 Survey responses'!$B158,\"\")","v":""},"",null,null,{"$f":"IF(AND('2011 Survey responses'!$D158>0,'2007 Survey responses'!$D162>0),'2007 Survey responses'!$D162,\"\")","v":""},{"$f":"IF(AND('2011 Survey responses'!$D158>0,'2007 Survey responses'!$D162>0),'2011 Survey responses'!$D158,\"\")","v":""},"",null,null,{"$f":"IF(AND('2011 Survey responses'!$J158>0,'2007 Survey responses'!$H162>0),'2007 Survey responses'!$H162,\"\")","v":""},{"$f":"IF(AND('2011 Survey responses'!$J158>0,'2007 Survey responses'!$H162>0),'2011 Survey responses'!$J158,\"\")","v":""},"",null,null,{"$f":"IF(AND('2011 Survey responses'!$K158>0,'2007 Survey responses'!$J162>0),'2007 Survey responses'!$J162,\"\")","v":""},{"$f":"IF(AND('2011 Survey responses'!$K158>0,'2007 Survey responses'!$J162>0),'2011 Survey responses'!$K158,\"\")","v":""},"",null,null,{"$f":"IF(AND('2011 Survey responses'!$L158>0,'2007 Survey responses'!$I162>0),'2007 Survey responses'!$I162,\"\")","v":""},{"$f":"IF(AND('2011 Survey responses'!$L158>0,'2007 Survey responses'!$I162>0),'2011 Survey responses'!$L158,\"\")","v":""},"",null,null,{"$f":"IF(AND('2011 Survey responses'!$M158>0,'2007 Survey responses'!$K162>0),'2007 Survey responses'!$K162,\"\")","v":""},{"$f":"IF(AND('2011 Survey responses'!$M158>0,'2007 Survey responses'!$K162>0),'2011 Survey responses'!$M158,\"\")","v":""},"",null,null,{"$f":"IF('2007 Survey responses'!$B162>0,IF(AND('2011 Survey responses'!T158>0,'2007 Survey responses'!L162>0),'2007 Survey responses'!L162,\"\"),\"\")","v":""},{"$f":"IF('2007 Survey responses'!$B162>0,IF(AND('2011 Survey responses'!T158>0,'2007 Survey responses'!L162>0),'2011 Survey responses'!T158,\"\"),\"\")","v":""},"",null,null,{"$f":"IF(AND('2011 Survey responses'!$U158>0,'2007 Survey responses'!$M162>0),'2007 Survey responses'!$M162,\"\")","v":""},{"$f":"IF(AND('2011 Survey responses'!$U158>0,'2007 Survey responses'!$M162>0),'2011 Survey responses'!$U158,\"\")","v":""},""]
["Solomon Islands",{"$f":"IF(AND('2011 Survey responses'!$F159>0,'2007 Survey responses'!E163>0),'2007 Survey responses'!E163,\"\")","v":""},{"$f":"IF(AND('2011 Survey responses'!$F159>0,'2007 Survey responses'!E163>0),'2011 Survey responses'!$F159,\"\")","v":""},"",null,null,{"$f":"IF(AND('2011 Survey responses'!$G159>0,'2007 Survey responses'!$F163>0),'2007 Survey responses'!$F163,\"\")","v":""},{"$f":"IF(AND('2011 Survey responses'!$G159>0,'2007 Survey responses'!$F163>0),'2011 Survey responses'!$G159,\"\")","v":""},"",null,null,{"$f":"IF(AND('2011 Survey responses'!$H159>0,'2007 Survey responses'!$F163>0),'2007 Survey responses'!$F163,\"\")","v":""},{"$f":"IF(AND('2011 Survey responses'!$H159>0,'2007 Survey responses'!$F163>0),'2011 Survey responses'!$H159,\"\")","v":""},"",null,null,{"$f":"IF(AND(Question_grouping!O159>0,'2007 Survey responses'!$F163>0),'2007 Survey responses'!$F163,\"\")","v":""},{"$f":"IF(AND(Question_grouping!O159>0,'2007 Survey responses'!$F163>0),Question_grouping!O159,\"\")","v":""},"",null,null,{"$f":"IF(AND('2011 Survey responses'!$B159>0,'2007 Survey responses'!$C163>0),'2007 Survey responses'!$C163,\"\")","v":""},{"$f":"IF(AND('2011 Survey responses'!$B159>0,'2007 Survey responses'!$C163>0),'2011 Survey responses'!$B159,\"\")","v":""},"",null,null,{"$f":"IF(AND('2011 Survey responses'!$D159>0,'2007 Survey responses'!$D163>0),'2007 Survey responses'!$D163,\"\")","v":""},{"$f":"IF(AND('2011 Survey responses'!$D159>0,'2007 Survey responses'!$D163>0),'2011 Survey responses'!$D159,\"\")","v":""},"",null,null,{"$f":"IF(AND('2011 Survey responses'!$J159>0,'2007 Survey responses'!$H163>0),'2007 Survey responses'!$H163,\"\")","v":""},{"$f":"IF(AND('2011 Survey responses'!$J159>0,'2007 Survey responses'!$H163>0),'2011 Survey responses'!$J159,\"\")","v":""},"",null,null,{"$f":"IF(AND('2011 Survey responses'!$K159>0,'2007 Survey responses'!$J163>0),'2007 Survey responses'!$J163,\"\")","v":""},{"$f":"IF(AND('2011 Survey responses'!$K159>0,'2007 Survey responses'!$J163>0),'2011 Survey responses'!$K159,\"\")","v":""},"",null,null,{"$f":"IF(AND('2011 Survey responses'!$L159>0,'2007 Survey responses'!$I163>0),'2007 Survey responses'!$I163,\"\")","v":""},{"$f":"IF(AND('2011 Survey responses'!$L159>0,'2007 Survey responses'!$I163>0),'2011 Survey responses'!$L159,\"\")","v":""},"",null,null,{"$f":"IF(AND('2011 Survey responses'!$M159>0,'2007 Survey responses'!$K163>0),'2007 Survey responses'!$K163,\"\")","v":""},{"$f":"IF(AND('2011 Survey responses'!$M159>0,'2007 Survey responses'!$K163>0),'2011 Survey responses'!$M159,\"\")","v":""},"",null,null,{"$f":"IF('2007 Survey responses'!$B163>0,IF(AND('2011 Survey responses'!T159>0,'2007 Survey responses'!L163>0),'2007 Survey responses'!L163,\"\"),\"\")","v":""},{"$f":"IF('2007 Survey responses'!$B163>0,IF(AND('2011 Survey responses'!T159>0,'2007 Survey responses'!L163>0),'2011 Survey responses'!T159,\"\"),\"\")","v":""},"",null,null,{"$f":"IF(AND('2011 Survey responses'!$U159>0,'2007 Survey responses'!$M163>0),'2007 Survey responses'!$M163,\"\")","v":""},{"$f":"IF(AND('2011 Survey responses'!$U159>0,'2007 Survey responses'!$M163>0),'2011 Survey responses'!$U159,\"\")","v":""},""]
["Somalia",{"$f":"IF(AND('2011 Survey responses'!$F160>0,'2007 Survey responses'!E164>0),'2007 Survey responses'!E164,\"\")","v":""},{"$f":"IF(AND('2011 Survey responses'!$F160>0,'2007 Survey responses'!E164>0),'2011 Survey responses'!$F160,\"\")","v":""},"",null,null,{"$f":"IF(AND('2011 Survey responses'!$G160>0,'2007 Survey responses'!$F164>0),'2007 Survey responses'!$F164,\"\")","v":""},{"$f":"IF(AND('2011 Survey responses'!$G160>0,'2007 Survey responses'!$F164>0),'2011 Survey responses'!$G160,\"\")","v":""},"",null,null,{"$f":"IF(AND('2011 Survey responses'!$H160>0,'2007 Survey responses'!$F164>0),'2007 Survey responses'!$F164,\"\")","v":""},{"$f":"IF(AND('2011 Survey responses'!$H160>0,'2007 Survey responses'!$F164>0),'2011 Survey responses'!$H160,\"\")","v":""},"",null,null,{"$f":"IF(AND(Question_grouping!O160>0,'2007 Survey responses'!$F164>0),'2007 Survey responses'!$F164,\"\")","v":""},{"$f":"IF(AND(Question_grouping!O160>0,'2007 Survey responses'!$F164>0),Question_grouping!O160,\"\")","v":""},"",null,null,{"$f":"IF(AND('2011 Survey responses'!$B160>0,'2007 Survey responses'!$C164>0),'2007 Survey responses'!$C164,\"\")","v":""},{"$f":"IF(AND('2011 Survey responses'!$B160>0,'2007 Survey responses'!$C164>0),'2011 Survey responses'!$B160,\"\")","v":""},"",null,null,{"$f":"IF(AND('2011 Survey responses'!$D160>0,'2007 Survey responses'!$D164>0),'2007 Survey responses'!$D164,\"\")","v":""},{"$f":"IF(AND('2011 Survey responses'!$D160>0,'2007 Survey responses'!$D164>0),'2011 Survey responses'!$D160,\"\")","v":""},"",null,null,{"$f":"IF(AND('2011 Survey responses'!$J160>0,'2007 Survey responses'!$H164>0),'2007 Survey responses'!$H164,\"\")","v":""},{"$f":"IF(AND('2011 Survey responses'!$J160>0,'2007 Survey responses'!$H164>0),'2011 Survey responses'!$J160,\"\")","v":""},"",null,null,{"$f":"IF(AND('2011 Survey responses'!$K160>0,'2007 Survey responses'!$J164>0),'2007 Survey responses'!$J164,\"\")","v":""},{"$f":"IF(AND('2011 Survey responses'!$K160>0,'2007 Survey responses'!$J164>0),'2011 Survey responses'!$K160,\"\")","v":""},"",null,null,{"$f":"IF(AND('2011 Survey responses'!$L160>0,'2007 Survey responses'!$I164>0),'2007 Survey responses'!$I164,\"\")","v":""},{"$f":"IF(AND('2011 Survey responses'!$L160>0,'2007 Survey responses'!$I164>0),'2011 Survey responses'!$L160,\"\")","v":""},"",null,null,{"$f":"IF(AND('2011 Survey responses'!$M160>0,'2007 Survey responses'!$K164>0),'2007 Survey responses'!$K164,\"\")","v":""},{"$f":"IF(AND('2011 Survey responses'!$M160>0,'2007 Survey responses'!$K164>0),'2011 Survey responses'!$M160,\"\")","v":""},"",null,null,{"$f":"IF('2007 Survey responses'!$B164>0,IF(AND('2011 Survey responses'!T160>0,'2007 Survey responses'!L164>0),'2007 Survey responses'!L164,\"\"),\"\")","v":""},{"$f":"IF('2007 Survey responses'!$B164>0,IF(AND('2011 Survey responses'!T160>0,'2007 Survey responses'!L164>0),'2011 Survey responses'!T160,\"\"),\"\")","v":""},"",null,null,{"$f":"IF(AND('2011 Survey responses'!$U160>0,'2007 Survey responses'!$M164>0),'2007 Survey responses'!$M164,\"\")","v":""},{"$f":"IF(AND('2011 Survey responses'!$U160>0,'2007 Survey responses'!$M164>0),'2011 Survey responses'!$U160,\"\")","v":""},""]
["South Africa",{"$f":"IF(AND('2011 Survey responses'!$F161>0,'2007 Survey responses'!E165>0),'2007 Survey responses'!E165,\"\")","v":""},{"$f":"IF(AND('2011 Survey responses'!$F161>0,'2007 Survey responses'!E165>0),'2011 Survey responses'!$F161,\"\")","v":""},"",null,null,{"$f":"IF(AND('2011 Survey responses'!$G161>0,'2007 Survey responses'!$F165>0),'2007 Survey responses'!$F165,\"\")","v":""},{"$f":"IF(AND('2011 Survey responses'!$G161>0,'2007 Survey responses'!$F165>0),'2011 Survey responses'!$G161,\"\")","v":""},"",null,null,{"$f":"IF(AND('2011 Survey responses'!$H161>0,'2007 Survey responses'!$F165>0),'2007 Survey responses'!$F165,\"\")","v":""},{"$f":"IF(AND('2011 Survey responses'!$H161>0,'2007 Survey responses'!$F165>0),'2011 Survey responses'!$H161,\"\")","v":""},"",null,null,{"$f":"IF(AND(Question_grouping!O161>0,'2007 Survey responses'!$F165>0),'2007 Survey responses'!$F165,\"\")","v":""},{"$f":"IF(AND(Question_grouping!O161>0,'2007 Survey responses'!$F165>0),Question_grouping!O161,\"\")","v":""},"",null,null,{"$f":"IF(AND('2011 Survey responses'!$B161>0,'2007 Survey responses'!$C165>0),'2007 Survey responses'!$C165,\"\")","v":""},{"$f":"IF(AND('2011 Survey responses'!$B161>0,'2007 Survey responses'!$C165>0),'2011 Survey responses'!$B161,\"\")","v":""},"",null,null,{"$f":"IF(AND('2011 Survey responses'!$D161>0,'2007 Survey responses'!$D165>0),'2007 Survey responses'!$D165,\"\")","v":""},{"$f":"IF(AND('2011 Survey responses'!$D161>0,'2007 Survey responses'!$D165>0),'2011 Survey responses'!$D161,\"\")","v":""},"",null,null,{"$f":"IF(AND('2011 Survey responses'!$J161>0,'2007 Survey responses'!$H165>0),'2007 Survey responses'!$H165,\"\")","v":""},{"$f":"IF(AND('2011 Survey responses'!$J161>0,'2007 Survey responses'!$H165>0),'2011 Survey responses'!$J161,\"\")","v":""},"",null,null,{"$f":"IF(AND('2011 Survey responses'!$K161>0,'2007 Survey responses'!$J165>0),'2007 Survey responses'!$J165,\"\")","v":""},{"$f":"IF(AND('2011 Survey responses'!$K161>0,'2007 Survey responses'!$J165>0),'2011 Survey responses'!$K161,\"\")","v":""},"",null,null,{"$f":"IF(AND('2011 Survey responses'!$L161>0,'2007 Survey responses'!$I165>0),'2007 Survey responses'!$I165,\"\")","v":""},{"$f":"IF(AND('2011 Survey responses'!$L161>0,'2007 Survey responses'!$I165>0),'2011 Survey responses'!$L161,\"\")","v":""},"",null,null,{"$f":"IF(AND('2011 Survey responses'!$M161>0,'2007 Survey responses'!$K165>0),'2007 Survey responses'!$K165,\"\")","v":""},{"$f":"IF(AND('2011 Survey responses'!$M161>0,'2007 Survey responses'!$K165>0),'2011 Survey responses'!$M161,\"\")","v":""},"",null,null,{"$f":"IF('2007 Survey responses'!$B165>0,IF(AND('2011 Survey responses'!T161>0,'2007 Survey responses'!L165>0),'2007 Survey responses'!L165,\"\"),\"\")","v":""},{"$f":"IF('2007 Survey responses'!$B165>0,IF(AND('2011 Survey responses'!T161>0,'2007 Survey responses'!L165>0),'2011 Survey responses'!T161,\"\"),\"\")","v":""},"",null,null,{"$f":"IF(AND('2011 Survey responses'!$U161>0,'2007 Survey responses'!$M165>0),'2007 Survey responses'!$M165,\"\")","v":""},{"$f":"IF(AND('2011 Survey responses'!$U161>0,'2007 Survey responses'!$M165>0),'2011 Survey responses'!$U161,\"\")","v":""},""]
["Spain",{"$f":"IF(AND('2011 Survey responses'!$F162>0,'2007 Survey responses'!E166>0),'2007 Survey responses'!E166,\"\")","v":4},{"$f":"IF(AND('2011 Survey responses'!$F162>0,'2007 Survey responses'!E166>0),'2011 Survey responses'!$F162,\"\")","v":6},5,null,null,{"$f":"IF(AND('2011 Survey responses'!$G162>0,'2007 Survey responses'!$F166>0),'2007 Survey responses'!$F166,\"\")","v":1},{"$f":"IF(AND('2011 Survey responses'!$G162>0,'2007 Survey responses'!$F166>0),'2011 Survey responses'!$G162,\"\")","v":6},5,null,null,{"$f":"IF(AND('2011 Survey responses'!$H162>0,'2007 Survey responses'!$F166>0),'2007 Survey responses'!$F166,\"\")","v":1},{"$f":"IF(AND('2011 Survey responses'!$H162>0,'2007 Survey responses'!$F166>0),'2011 Survey responses'!$H162,\"\")","v":6},5,null,null,{"$f":"IF(AND(Question_grouping!O162>0,'2007 Survey responses'!$F166>0),'2007 Survey responses'!$F166,\"\")","v":1},{"$f":"IF(AND(Question_grouping!O162>0,'2007 Survey responses'!$F166>0),Question_grouping!O162,\"\")","v":6},5,null,null,{"$f":"IF(AND('2011 Survey responses'!$B162>0,'2007 Survey responses'!$C166>0),'2007 Survey responses'!$C166,\"\")","v":4},{"$f":"IF(AND('2011 Survey responses'!$B162>0,'2007 Survey responses'!$C166>0),'2011 Survey responses'!$B162,\"\")","v":6},5,null,null,{"$f":"IF(AND('2011 Survey responses'!$D162>0,'2007 Survey responses'!$D166>0),'2007 Survey responses'!$D166,\"\")","v":4},{"$f":"IF(AND('2011 Survey responses'!$D162>0,'2007 Survey responses'!$D166>0),'2011 Survey responses'!$D162,\"\")","v":6},5,null,null,{"$f":"IF(AND('2011 Survey responses'!$J162>0,'2007 Survey responses'!$H166>0),'2007 Survey responses'!$H166,\"\")","v":""},{"$f":"IF(AND('2011 Survey responses'!$J162>0,'2007 Survey responses'!$H166>0),'2011 Survey responses'!$J162,\"\")","v":""},"",null,null,{"$f":"IF(AND('2011 Survey responses'!$K162>0,'2007 Survey responses'!$J166>0),'2007 Survey responses'!$J166,\"\")","v":""},{"$f":"IF(AND('2011 Survey responses'!$K162>0,'2007 Survey responses'!$J166>0),'2011 Survey responses'!$K162,\"\")","v":""},"",null,null,{"$f":"IF(AND('2011 Survey responses'!$L162>0,'2007 Survey responses'!$I166>0),'2007 Survey responses'!$I166,\"\")","v":""},{"$f":"IF(AND('2011 Survey responses'!$L162>0,'2007 Survey responses'!$I166>0),'2011 Survey responses'!$L162,\"\")","v":""},"",null,null,{"$f":"IF(AND('2011 Survey responses'!$M162>0,'2007 Survey responses'!$K166>0),'2007 Survey responses'!$K166,\"\")","v":""},{"$f":"IF(AND('2011 Survey responses'!$M162>0,'2007 Survey responses'!$K166>0),'2011 Survey responses'!$M162,\"\")","v":""},"",null,null,{"$f":"IF('2007 Survey responses'!$B166>0,IF(AND('2011 Survey responses'!T162>0,'2007 Survey responses'!L166>0),'2007 Survey responses'!L166,\"\"),\"\")","v":""},{"$f":"IF('2007 Survey responses'!$B166>0,IF(AND('2011 Survey responses'!T162>0,'2007 Survey responses'!L166>0),'2011 Survey responses'!T162,\"\"),\"\")","v":""},"",null,null,{"$f":"IF(AND('2011 Survey responses'!$U162>0,'2007 Survey responses'!$M166>0),'2007 Survey responses'!$M166,\"\")","v":4},{"$f":"IF(AND('2011 Survey responses'!$U162>0,'2007 Survey responses'!$M166>0),'2011 Survey responses'!$U162,\"\")","v":6},5]
["Sri Lanka",{"$f":"IF(AND('2011 Survey responses'!$F163>0,'2007 Survey responses'!E167>0),'2007 Survey responses'!E167,\"\")","v":5},{"$f":"IF(AND('2011 Survey responses'!$F163>0,'2007 Survey responses'!E167>0),'2011 Survey responses'!$F163,\"\")","v":5},{"$f":"IF(C162=0,\"\",IF(C162=6,5,IF(C162=5,4,C162)))","v":4},null,null,{"$f":"IF(AND('2011 Survey responses'!$G163>0,'2007 Survey responses'!$F167>0),'2007 Survey responses'!$F167,\"\")","v":5},{"$f":"IF(AND('2011 Survey responses'!$G163>0,'2007 Survey responses'!$F167>0),'2011 Survey responses'!$G163,\"\")","v":4},{"$f":"IF(H162=0,\"\",IF(H162=6,5,IF(H162=5,4,H162)))","v":4},null,null,{"$f":"IF(AND('2011 Survey responses'!$H163>0,'2007 Survey responses'!$F167>0),'2007 Survey responses'!$F167,\"\")","v":5},{"$f":"IF(AND('2011 Survey responses'!$H163>0,'2007 Survey responses'!$F167>0),'2011 Survey responses'!$H163,\"\")","v":4},4,null,null,{"$f":"IF(AND(Question_grouping!O163>0,'2007 Survey responses'!$F167>0),'2007 Survey responses'!$F167,\"\")","v":5},{"$f":"IF(AND(Question_grouping!O163>0,'2007 Survey responses'!$F167>0),Question_grouping!O163,\"\")","v":4},4,null,null,{"$f":"IF(AND('2011 Survey responses'!$B163>0,'2007 Survey responses'!$C167>0),'2007 Survey responses'!$C167,\"\")","v":4},{"$f":"IF(AND('2011 Survey responses'!$B163>0,'2007 Survey responses'!$C167>0),'2011 Survey responses'!$B163,\"\")","v":2},2,null,null,{"$f":"IF(AND('2011 Survey responses'!$D163>0,'2007 Survey responses'!$D167>0),'2007 Survey responses'!$D167,\"\")","v":5},{"$f":"IF(AND('2011 Survey responses'!$D163>0,'2007 Survey responses'!$D167>0),'2011 Survey responses'!$D163,\"\")","v":2},2,null,null,{"$f":"IF(AND('2011 Survey responses'!$J163>0,'2007 Survey responses'!$H167>0),'2007 Survey responses'!$H167,\"\")","v":""},{"$f":"IF(AND('2011 Survey responses'!$J163>0,'2007 Survey responses'!$H167>0),'2011 Survey responses'!$J163,\"\")","v":""},"",null,null,{"$f":"IF(AND('2011 Survey responses'!$K163>0,'2007 Survey responses'!$J167>0),'2007 Survey responses'!$J167,\"\")","v":""},{"$f":"IF(AND('2011 Survey responses'!$K163>0,'2007 Survey responses'!$J167>0),'2011 Survey responses'!$K163,\"\")","v":""},"",null,null,{"$f":"IF(AND('2011 Survey responses'!$L163>0,'2007 Survey responses'!$I167>0),'2007 Survey responses'!$I167,\"\")","v":""},{"$f":"IF(AND('2011 Survey responses'!$L163>0,'2007 Survey responses'!$I167>0),'2011 Survey responses'!$L163,\"\")","v":""},"",null,null,{"$f":"IF(AND('2011 Survey responses'!$M163>0,'2007 Survey responses'!$K167>0),'2007 Survey responses'!$K167,\"\")","v":""},{"$f":"IF(AND('2011 Survey responses'!$M163>0,'2007 Survey responses'!$K167>0),'2011 Survey responses'!$M163,\"\")","v":""},"",null,null,{"$f":"IF('2007 Survey responses'!$B167>0,IF(AND('2011 Survey responses'!T163>0,'2007 Survey responses'!L167>0),'2007 Survey responses'!L167,\"\"),\"\")","v":4},{"$f":"IF('2007 Survey responses'!$B167>0,IF(AND('2011 Survey responses'!T163>0,'2007 Survey responses'!L167>0),'2011 Survey responses'!T163,\"\"),\"\")","v":1},1,null,null,{"$f":"IF(AND('2011 Survey responses'!$U163>0,'2007 Survey responses'!$M167>0),'2007 Survey responses'!$M167,\"\")","v":5},{"$f":"IF(AND('2011 Survey responses'!$U163>0,'2007 Survey responses'!$M167>0),'2011 Survey responses'!$U163,\"\")","v":1},1]
["Sudan",{"$f":"IF(AND('2011 Survey responses'!$F164>0,'2007 Survey responses'!E168>0),'2007 Survey responses'!E168,\"\")","v":""},{"$f":"IF(AND('2011 Survey responses'!$F164>0,'2007 Survey responses'!E168>0),'2011 Survey responses'!$F164,\"\")","v":""},"",null,null,{"$f":"IF(AND('2011 Survey responses'!$G164>0,'2007 Survey responses'!$F168>0),'2007 Survey responses'!$F168,\"\")","v":""},{"$f":"IF(AND('2011 Survey responses'!$G164>0,'2007 Survey responses'!$F168>0),'2011 Survey responses'!$G164,\"\")","v":""},"",null,null,{"$f":"IF(AND('2011 Survey responses'!$H164>0,'2007 Survey responses'!$F168>0),'2007 Survey responses'!$F168,\"\")","v":""},{"$f":"IF(AND('2011 Survey responses'!$H164>0,'2007 Survey responses'!$F168>0),'2011 Survey responses'!$H164,\"\")","v":""},"",null,null,{"$f":"IF(AND(Question_grouping!O164>0,'2007 Survey responses'!$F168>0),'2007 Survey responses'!$F168,\"\")","v":""},{"$f":"IF(AND(Question_grouping!O164>0,'2007 Survey responses'!$F168>0),Question_grouping!O164,\"\")","v":""},"",null,null,{"$f":"IF(AND('2011 Survey responses'!$B164>0,'2007 Survey responses'!$C168>0),'2007 Survey responses'!$C168,\"\")","v":""},{"$f":"IF(AND('2011 Survey responses'!$B164>0,'2007 Survey responses'!$C168>0),'2011 Survey responses'!$B164,\"\")","v":""},"",null,null,{"$f":"IF(AND('2011 Survey responses'!$D164>0,'2007 Survey responses'!$D168>0),'2007 Survey responses'!$D168,\"\")","v":""},{"$f":"IF(AND('2011 Survey responses'!$D164>0,'2007 Survey responses'!$D168>0),'2011 Survey responses'!$D164,\"\")","v":""},"",null,null,{"$f":"IF(AND('2011 Survey responses'!$J164>0,'2007 Survey responses'!$H168>0),'2007 Survey responses'!$H168,\"\")","v":""},{"$f":"IF(AND('2011 Survey responses'!$J164>0,'2007 Survey responses'!$H168>0),'2011 Survey responses'!$J164,\"\")","v":""},"",null,null,{"$f":"IF(AND('2011 Survey responses'!$K164>0,'2007 Survey responses'!$J168>0),'2007 Survey responses'!$J168,\"\")","v":""},{"$f":"IF(AND('2011 Survey responses'!$K164>0,'2007 Survey responses'!$J168>0),'2011 Survey responses'!$K164,\"\")","v":""},"",null,null,{"$f":"IF(AND('2011 Survey responses'!$L164>0,'2007 Survey responses'!$I168>0),'2007 Survey responses'!$I168,\"\")","v":""},{"$f":"IF(AND('2011 Survey responses'!$L164>0,'2007 Survey responses'!$I168>0),'2011 Survey responses'!$L164,\"\")","v":""},"",null,null,{"$f":"IF(AND('2011 Survey responses'!$M164>0,'2007 Survey responses'!$K168>0),'2007 Survey responses'!$K168,\"\")","v":""},{"$f":"IF(AND('2011 Survey responses'!$M164>0,'2007 Survey responses'!$K168>0),'2011 Survey responses'!$M164,\"\")","v":""},"",null,null,{"$f":"IF('2007 Survey responses'!$B168>0,IF(AND('2011 Survey responses'!T164>0,'2007 Survey responses'!L168>0),'2007 Survey responses'!L168,\"\"),\"\")","v":""},{"$f":"IF('2007 Survey responses'!$B168>0,IF(AND('2011 Survey responses'!T164>0,'2007 Survey responses'!L168>0),'2011 Survey responses'!T164,\"\"),\"\")","v":""},"",null,null,{"$f":"IF(AND('2011 Survey responses'!$U164>0,'2007 Survey responses'!$M168>0),'2007 Survey responses'!$M168,\"\")","v":""},{"$f":"IF(AND('2011 Survey responses'!$U164>0,'2007 Survey responses'!$M168>0),'2011 Survey responses'!$U164,\"\")","v":""},""]
["Suriname",{"$f":"IF(AND('2011 Survey responses'!$F165>0,'2007 Survey responses'!E169>0),'2007 Survey responses'!E169,\"\")","v":""},{"$f":"IF(AND('2011 Survey responses'!$F165>0,'2007 Survey responses'!E169>0),'2011 Survey responses'!$F165,\"\")","v":""},"",null,null,{"$f":"IF(AND('2011 Survey responses'!$G165>0,'2007 Survey responses'!$F169>0),'2007 Survey responses'!$F169,\"\")","v":""},{"$f":"IF(AND('2011 Survey responses'!$G165>0,'2007 Survey responses'!$F169>0),'2011 Survey responses'!$G165,\"\")","v":""},"",null,null,{"$f":"IF(AND('2011 Survey responses'!$H165>0,'2007 Survey responses'!$F169>0),'2007 Survey responses'!$F169,\"\")","v":""},{"$f":"IF(AND('2011 Survey responses'!$H165>0,'2007 Survey responses'!$F169>0),'2011 Survey responses'!$H165,\"\")","v":""},"",null,null,{"$f":"IF(AND(Question_grouping!O165>0,'2007 Survey responses'!$F169>0),'2007 Survey responses'!$F169,\"\")","v":""},{"$f":"IF(AND(Question_grouping!O165>0,'2007 Survey responses'!$F169>0),Question_grouping!O165,\"\")","v":""},"",null,null,{"$f":"IF(AND('2011 Survey responses'!$B165>0,'2007 Survey responses'!$C169>0),'2007 Survey responses'!$C169,\"\")","v":""},{"$f":"IF(AND('2011 Survey responses'!$B165>0,'2007 Survey responses'!$C169>0),'2011 Survey responses'!$B165,\"\")","v":""},"",null,null,{"$f":"IF(AND('2011 Survey responses'!$D165>0,'2007 Survey responses'!$D169>0),'2007 Survey responses'!$D169,\"\")","v":""},{"$f":"IF(AND('2011 Survey responses'!$D165>0,'2007 Survey responses'!$D169>0),'2011 Survey responses'!$D165,\"\")","v":""},"",null,null,{"$f":"IF(AND('2011 Survey responses'!$J165>0,'2007 Survey responses'!$H169>0),'2007 Survey responses'!$H169,\"\")","v":""},{"$f":"IF(AND('2011 Survey responses'!$J165>0,'2007 Survey responses'!$H169>0),'2011 Survey responses'!$J165,\"\")","v":""},"",null,null,{"$f":"IF(AND('2011 Survey responses'!$K165>0,'2007 Survey responses'!$J169>0),'2007 Survey responses'!$J169,\"\")","v":""},{"$f":"IF(AND('2011 Survey responses'!$K165>0,'2007 Survey responses'!$J169>0),'2011 Survey responses'!$K165,\"\")","v":""},"",null,null,{"$f":"IF(AND('2011 Survey responses'!$L165>0,'2007 Survey responses'!$I169>0),'2007 Survey responses'!$I169,\"\")","v":""},{"$f":"IF(AND('2011 Survey responses'!$L165>0,'2007 Survey responses'!$I169>0),'2011 Survey responses'!$L165,\"\")","v":""},"",null,null,{"$f":"IF(AND('2011 Survey responses'!$M165>0,'2007 Survey responses'!$K169>0),'2007 Survey responses'!$K169,\"\")","v":""},{"$f":"IF(AND('2011 Survey responses'!$M165>0,'2007 Survey responses'!$K169>0),'2011 Survey responses'!$M165,\"\")","v":""},"",null,null,{"$f":"IF('2007 Survey responses'!$B169>0,IF(AND('2011 Survey responses'!T165>0,'2007 Survey responses'!L169>0),'2007 Survey responses'!L169,\"\"),\"\")","v":""},{"$f":"IF('2007 Survey responses'!$B169>0,IF(AND('2011 Survey responses'!T165>0,'2007 Survey responses'!L169>0),'2011 Survey responses'!T165,\"\"),\"\")","v":""},"",null,null,{"$f":"IF(AND('2011 Survey responses'!$U165>0,'2007 Survey responses'!$M169>0),'2007 Survey responses'!$M169,\"\")","v":""},{"$f":"IF(AND('2011 Survey responses'!$U165>0,'2007 Survey responses'!$M169>0),'2011 Survey responses'!$U165,\"\")","v":""},""]
["Swaziland",{"$f":"IF(AND('2011 Survey responses'!$F166>0,'2007 Survey responses'!E170>0),'2007 Survey responses'!E170,\"\")","v":""},{"$f":"IF(AND('2011 Survey responses'!$F166>0,'2007 Survey responses'!E170>0),'2011 Survey responses'!$F166,\"\")","v":""},"",null,null,{"$f":"IF(AND('2011 Survey responses'!$G166>0,'2007 Survey responses'!$F170>0),'2007 Survey responses'!$F170,\"\")","v":""},{"$f":"IF(AND('2011 Survey responses'!$G166>0,'2007 Survey responses'!$F170>0),'2011 Survey responses'!$G166,\"\")","v":""},"",null,null,{"$f":"IF(AND('2011 Survey responses'!$H166>0,'2007 Survey responses'!$F170>0),'2007 Survey responses'!$F170,\"\")","v":""},{"$f":"IF(AND('2011 Survey responses'!$H166>0,'2007 Survey responses'!$F170>0),'2011 Survey responses'!$H166,\"\")","v":""},"",null,null,{"$f":"IF(AND(Question_grouping!O166>0,'2007 Survey responses'!$F170>0),'2007 Survey responses'!$F170,\"\")","v":""},{"$f":"IF(AND(Question_grouping!O166>0,'2007 Survey responses'!$F170>0),Question_grouping!O166,\"\")","v":""},"",null,null,{"$f":"IF(AND('2011 Survey responses'!$B166>0,'2007 Survey responses'!$C170>0),'2007 Survey responses'!$C170,\"\")","v":""},{"$f":"IF(AND('2011 Survey responses'!$B166>0,'2007 Survey responses'!$C170>0),'2011 Survey responses'!$B166,\"\")","v":""},"",null,null,{"$f":"IF(AND('2011 Survey responses'!$D166>0,'2007 Survey responses'!$D170>0),'2007 Survey responses'!$D170,\"\")","v":""},{"$f":"IF(AND('2011 Survey responses'!$D166>0,'2007 Survey responses'!$D170>0),'2011 Survey responses'!$D166,\"\")","v":""},"",null,null,{"$f":"IF(AND('2011 Survey responses'!$J166>0,'2007 Survey responses'!$H170>0),'2007 Survey responses'!$H170,\"\")","v":""},{"$f":"IF(AND('2011 Survey responses'!$J166>0,'2007 Survey responses'!$H170>0),'2011 Survey responses'!$J166,\"\")","v":""},"",null,null,{"$f":"IF(AND('2011 Survey responses'!$K166>0,'2007 Survey responses'!$J170>0),'2007 Survey responses'!$J170,\"\")","v":""},{"$f":"IF(AND('2011 Survey responses'!$K166>0,'2007 Survey responses'!$J170>0),'2011 Survey responses'!$K166,\"\")","v":""},"",null,null,{"$f":"IF(AND('2011 Survey responses'!$L166>0,'2007 Survey responses'!$I170>0),'2007 Survey responses'!$I170,\"\")","v":""},{"$f":"IF(AND('2011 Survey responses'!$L166>0,'2007 Survey responses'!$I170>0),'2011 Survey responses'!$L166,\"\")","v":""},"",null,null,{"$f":"IF(AND('2011 Survey responses'!$M166>0,'2007 Survey responses'!$K170>0),'2007 Survey responses'!$K170,\"\")","v":""},{"$f":"IF(AND('2011 Survey responses'!$M166>0,'2007 Survey responses'!$K170>0),'2011 Survey responses'!$M166,\"\")","v":""},"",null,null,{"$f":"IF('2007 Survey responses'!$B170>0,IF(AND('2011 Survey responses'!T166>0,'2007 Survey responses'!L170>0),'2007 Survey responses'!L170,\"\"),\"\")","v":""},{"$f":"IF('2007 Survey responses'!$B170>0,IF(AND('2011 Survey responses'!T166>0,'2007 Survey responses'!L170>0),'2011 Survey responses'!T166,\"\"),\"\")","v":""},"",null,null,{"$f":"IF(AND('2011 Survey responses'!$U166>0,'2007 Survey responses'!$M170>0),'2007 Survey responses'!$M170,\"\")","v":""},{"$f":"IF(AND('2011 Survey responses'!$U166>0,'2007 Survey responses'!$M170>0),'2011 Survey responses'!$U166,\"\")","v":""},""]
["Sweden",{"$f":"IF(AND('2011 Survey responses'!$F167>0,'2007 Survey responses'!E171>0),'2007 Survey responses'!E171,\"\")","v":2},{"$f":"IF(AND('2011 Survey responses'!$F167>0,'2007 Survey responses'!E171>0),'2011 Survey responses'!$F167,\"\")","v":6},5,null,null,{"$f":"IF(AND('2011 Survey responses'!$G167>0,'2007 Survey responses'!$F171>0),'2007 Survey responses'!$F171,\"\")","v":1},{"$f":"IF(AND('2011 Survey responses'!$G167>0,'2007 Survey responses'!$F171>0),'2011 Survey responses'!$G167,\"\")","v":6},5,null,null,{"$f":"IF(AND('2011 Survey responses'!$H167>0,'2007 Survey responses'!$F171>0),'2007 Survey responses'!$F171,\"\")","v":1},{"$f":"IF(AND('2011 Survey responses'!$H167>0,'2007 Survey responses'!$F171>0),'2011 Survey responses'!$H167,\"\")","v":4},4,null,null,{"$f":"IF(AND(Question_grouping!O167>0,'2007 Survey responses'!$F171>0),'2007 Survey responses'!$F171,\"\")","v":1},{"$f":"IF(AND(Question_grouping!O167>0,'2007 Survey responses'!$F171>0),Question_grouping!O167,\"\")","v":6},5,null,null,{"$f":"IF(AND('2011 Survey responses'!$B167>0,'2007 Survey responses'!$C171>0),'2007 Survey responses'!$C171,\"\")","v":2},{"$f":"IF(AND('2011 Survey responses'!$B167>0,'2007 Survey responses'!$C171>0),'2011 Survey responses'!$B167,\"\")","v":6},5,null,null,{"$f":"IF(AND('2011 Survey responses'!$D167>0,'2007 Survey responses'!$D171>0),'2007 Survey responses'!$D171,\"\")","v":4},{"$f":"IF(AND('2011 Survey responses'!$D167>0,'2007 Survey responses'!$D171>0),'2011 Survey responses'!$D167,\"\")","v":6},5,null,null,{"$f":"IF(AND('2011 Survey responses'!$J167>0,'2007 Survey responses'!$H171>0),'2007 Survey responses'!$H171,\"\")","v":""},{"$f":"IF(AND('2011 Survey responses'!$J167>0,'2007 Survey responses'!$H171>0),'2011 Survey responses'!$J167,\"\")","v":""},"",null,null,{"$f":"IF(AND('2011 Survey responses'!$K167>0,'2007 Survey responses'!$J171>0),'2007 Survey responses'!$J171,\"\")","v":""},{"$f":"IF(AND('2011 Survey responses'!$K167>0,'2007 Survey responses'!$J171>0),'2011 Survey responses'!$K167,\"\")","v":""},"",null,null,{"$f":"IF(AND('2011 Survey responses'!$L167>0,'2007 Survey responses'!$I171>0),'2007 Survey responses'!$I171,\"\")","v":""},{"$f":"IF(AND('2011 Survey responses'!$L167>0,'2007 Survey responses'!$I171>0),'2011 Survey responses'!$L167,\"\")","v":""},"",null,null,{"$f":"IF(AND('2011 Survey responses'!$M167>0,'2007 Survey responses'!$K171>0),'2007 Survey responses'!$K171,\"\")","v":""},{"$f":"IF(AND('2011 Survey responses'!$M167>0,'2007 Survey responses'!$K171>0),'2011 Survey responses'!$M167,\"\")","v":""},"",null,null,{"$f":"IF('2007 Survey responses'!$B171>0,IF(AND('2011 Survey responses'!T167>0,'2007 Survey responses'!L171>0),'2007 Survey responses'!L171,\"\"),\"\")","v":""},{"$f":"IF('2007 Survey responses'!$B171>0,IF(AND('2011 Survey responses'!T167>0,'2007 Survey responses'!L171>0),'2011 Survey responses'!T167,\"\"),\"\")","v":""},"",null,null,{"$f":"IF(AND('2011 Survey responses'!$U167>0,'2007 Survey responses'!$M171>0),'2007 Survey responses'!$M171,\"\")","v":""},{"$f":"IF(AND('2011 Survey responses'!$U167>0,'2007 Survey responses'!$M171>0),'2011 Survey responses'!$U167,\"\")","v":""},""]
["Switzerland",{"$f":"IF(AND('2011 Survey responses'!$F168>0,'2007 Survey responses'!E172>0),'2007 Survey responses'!E172,\"\")","v":""},{"$f":"IF(AND('2011 Survey responses'!$F168>0,'2007 Survey responses'!E172>0),'2011 Survey responses'!$F168,\"\")","v":""},"",null,null,{"$f":"IF(AND('2011 Survey responses'!$G168>0,'2007 Survey responses'!$F172>0),'2007 Survey responses'!$F172,\"\")","v":1},{"$f":"IF(AND('2011 Survey responses'!$G168>0,'2007 Survey responses'!$F172>0),'2011 Survey responses'!$G168,\"\")","v":1},1,null,null,{"$f":"IF(AND('2011 Survey responses'!$H168>0,'2007 Survey responses'!$F172>0),'2007 Survey responses'!$F172,\"\")","v":1},{"$f":"IF(AND('2011 Survey responses'!$H168>0,'2007 Survey responses'!$F172>0),'2011 Survey responses'!$H168,\"\")","v":1},1,null,null,{"$f":"IF(AND(Question_grouping!O168>0,'2007 Survey responses'!$F172>0),'2007 Survey responses'!$F172,\"\")","v":1},{"$f":"IF(AND(Question_grouping!O168>0,'2007 Survey responses'!$F172>0),Question_grouping!O168,\"\")","v":1},1,null,null,{"$f":"IF(AND('2011 Survey responses'!$B168>0,'2007 Survey responses'!$C172>0),'2007 Survey responses'!$C172,\"\")","v":5},{"$f":"IF(AND('2011 Survey responses'!$B168>0,'2007 Survey responses'!$C172>0),'2011 Survey responses'!$B168,\"\")","v":6},5,null,null,{"$f":"IF(AND('2011 Survey responses'!$D168>0,'2007 Survey responses'!$D172>0),'2007 Survey responses'!$D172,\"\")","v":5},{"$f":"IF(AND('2011 Survey responses'!$D168>0,'2007 Survey responses'!$D172>0),'2011 Survey responses'!$D168,\"\")","v":6},5,null,null,{"$f":"IF(AND('2011 Survey responses'!$J168>0,'2007 Survey responses'!$H172>0),'2007 Survey responses'!$H172,\"\")","v":2},{"$f":"IF(AND('2011 Survey responses'!$J168>0,'2007 Survey responses'!$H172>0),'2011 Survey responses'!$J168,\"\")","v":1},1,null,null,{"$f":"IF(AND('2011 Survey responses'!$K168>0,'2007 Survey responses'!$J172>0),'2007 Survey responses'!$J172,\"\")","v":2},{"$f":"IF(AND('2011 Survey responses'!$K168>0,'2007 Survey responses'!$J172>0),'2011 Survey responses'!$K168,\"\")","v":5},4,null,null,{"$f":"IF(AND('2011 Survey responses'!$L168>0,'2007 Survey responses'!$I172>0),'2007 Survey responses'!$I172,\"\")","v":3},{"$f":"IF(AND('2011 Survey responses'!$L168>0,'2007 Survey responses'!$I172>0),'2011 Survey responses'!$L168,\"\")","v":1},1,null,null,{"$f":"IF(AND('2011 Survey responses'!$M168>0,'2007 Survey responses'!$K172>0),'2007 Survey responses'!$K172,\"\")","v":2},{"$f":"IF(AND('2011 Survey responses'!$M168>0,'2007 Survey responses'!$K172>0),'2011 Survey responses'!$M168,\"\")","v":1},1,null,null,{"$f":"IF('2007 Survey responses'!$B172>0,IF(AND('2011 Survey responses'!T168>0,'2007 Survey responses'!L172>0),'2007 Survey responses'!L172,\"\"),\"\")","v":4},{"$f":"IF('2007 Survey responses'!$B172>0,IF(AND('2011 Survey responses'!T168>0,'2007 Survey responses'!L172>0),'2011 Survey responses'!T168,\"\"),\"\")","v":5},4,null,null,{"$f":"IF(AND('2011 Survey responses'!$U168>0,'2007 Survey responses'!$M172>0),'2007 Survey responses'!$M172,\"\")","v":1},{"$f":"IF(AND('2011 Survey responses'!$U168>0,'2007 Survey responses'!$M172>0),'2011 Survey responses'!$U168,\"\")","v":6},5]
["Syrian Arab Republic",{"$f":"IF(AND('2011 Survey responses'!$F169>0,'2007 Survey responses'!E173>0),'2007 Survey responses'!E173,\"\")","v":""},{"$f":"IF(AND('2011 Survey responses'!$F169>0,'2007 Survey responses'!E173>0),'2011 Survey responses'!$F169,\"\")","v":""},"",null,null,{"$f":"IF(AND('2011 Survey responses'!$G169>0,'2007 Survey responses'!$F173>0),'2007 Survey responses'!$F173,\"\")","v":""},{"$f":"IF(AND('2011 Survey responses'!$G169>0,'2007 Survey responses'!$F173>0),'2011 Survey responses'!$G169,\"\")","v":""},"",null,null,{"$f":"IF(AND('2011 Survey responses'!$H169>0,'2007 Survey responses'!$F173>0),'2007 Survey responses'!$F173,\"\")","v":""},{"$f":"IF(AND('2011 Survey responses'!$H169>0,'2007 Survey responses'!$F173>0),'2011 Survey responses'!$H169,\"\")","v":""},"",null,null,{"$f":"IF(AND(Question_grouping!O169>0,'2007 Survey responses'!$F173>0),'2007 Survey responses'!$F173,\"\")","v":1},{"$f":"IF(AND(Question_grouping!O169>0,'2007 Survey responses'!$F173>0),Question_grouping!O169,\"\")","v":""},"",null,null,{"$f":"IF(AND('2011 Survey responses'!$B169>0,'2007 Survey responses'!$C173>0),'2007 Survey responses'!$C173,\"\")","v":""},{"$f":"IF(AND('2011 Survey responses'!$B169>0,'2007 Survey responses'!$C173>0),'2011 Survey responses'!$B169,\"\")","v":""},"",null,null,{"$f":"IF(AND('2011 Survey responses'!$D169>0,'2007 Survey responses'!$D173>0),'2007 Survey responses'!$D173,\"\")","v":""},{"$f":"IF(AND('2011 Survey responses'!$D169>0,'2007 Survey responses'!$D173>0),'2011 Survey responses'!$D169,\"\")","v":""},"",null,null,{"$f":"IF(AND('2011 Survey responses'!$J169>0,'2007 Survey responses'!$H173>0),'2007 Survey responses'!$H173,\"\")","v":""},{"$f":"IF(AND('2011 Survey responses'!$J169>0,'2007 Survey responses'!$H173>0),'2011 Survey responses'!$J169,\"\")","v":""},"",null,null,{"$f":"IF(AND('2011 Survey responses'!$K169>0,'2007 Survey responses'!$J173>0),'2007 Survey responses'!$J173,\"\")","v":""},{"$f":"IF(AND('2011 Survey responses'!$K169>0,'2007 Survey responses'!$J173>0),'2011 Survey responses'!$K169,\"\")","v":""},"",null,null,{"$f":"IF(AND('2011 Survey responses'!$L169>0,'2007 Survey responses'!$I173>0),'2007 Survey responses'!$I173,\"\")","v":""},{"$f":"IF(AND('2011 Survey responses'!$L169>0,'2007 Survey responses'!$I173>0),'2011 Survey responses'!$L169,\"\")","v":""},"",null,null,{"$f":"IF(AND('2011 Survey responses'!$M169>0,'2007 Survey responses'!$K173>0),'2007 Survey responses'!$K173,\"\")","v":""},{"$f":"IF(AND('2011 Survey responses'!$M169>0,'2007 Survey responses'!$K173>0),'2011 Survey responses'!$M169,\"\")","v":""},"",null,null,{"$f":"IF('2007 Survey responses'!$B173>0,IF(AND('2011 Survey responses'!T169>0,'2007 Survey responses'!L173>0),'2007 Survey responses'!L173,\"\"),\"\")","v":""},{"$f":"IF('2007 Survey responses'!$B173>0,IF(AND('2011 Survey responses'!T169>0,'2007 Survey responses'!L173>0),'2011 Survey responses'!T169,\"\"),\"\")","v":""},"",null,null,{"$f":"IF(AND('2011 Survey responses'!$U169>0,'2007 Survey responses'!$M173>0),'2007 Survey responses'!$M173,\"\")","v":""},{"$f":"IF(AND('2011 Survey responses'!$U169>0,'2007 Survey responses'!$M173>0),'2011 Survey responses'!$U169,\"\")","v":""},""]
["Tajikistan",{"$f":"IF(AND('2011 Survey responses'!$F170>0,'2007 Survey responses'!E174>0),'2007 Survey responses'!E174,\"\")","v":3},{"$f":"IF(AND('2011 Survey responses'!$F170>0,'2007 Survey responses'!E174>0),'2011 Survey responses'!$F170,\"\")","v":2},2,null,null,{"$f":"IF(AND('2011 Survey responses'!$G170>0,'2007 Survey responses'!$F174>0),'2007 Survey responses'!$F174,\"\")","v":4},{"$f":"IF(AND('2011 Survey responses'!$G170>0,'2007 Survey responses'!$F174>0),'2011 Survey responses'!$G170,\"\")","v":1},1,null,null,{"$f":"IF(AND('2011 Survey responses'!$H170>0,'2007 Survey responses'!$F174>0),'2007 Survey responses'!$F174,\"\")","v":4},{"$f":"IF(AND('2011 Survey responses'!$H170>0,'2007 Survey responses'!$F174>0),'2011 Survey responses'!$H170,\"\")","v":2},2,null,null,{"$f":"IF(AND(Question_grouping!O170>0,'2007 Survey responses'!$F174>0),'2007 Survey responses'!$F174,\"\")","v":4},{"$f":"IF(AND(Question_grouping!O170>0,'2007 Survey responses'!$F174>0),Question_grouping!O170,\"\")","v":2},2,null,null,{"$f":"IF(AND('2011 Survey responses'!$B170>0,'2007 Survey responses'!$C174>0),'2007 Survey responses'!$C174,\"\")","v":4},{"$f":"IF(AND('2011 Survey responses'!$B170>0,'2007 Survey responses'!$C174>0),'2011 Survey responses'!$B170,\"\")","v":3},3,null,null,{"$f":"IF(AND('2011 Survey responses'!$D170>0,'2007 Survey responses'!$D174>0),'2007 Survey responses'!$D174,\"\")","v":4},{"$f":"IF(AND('2011 Survey responses'!$D170>0,'2007 Survey responses'!$D174>0),'2011 Survey responses'!$D170,\"\")","v":4},4,null,null,{"$f":"IF(AND('2011 Survey responses'!$J170>0,'2007 Survey responses'!$H174>0),'2007 Survey responses'!$H174,\"\")","v":3},{"$f":"IF(AND('2011 Survey responses'!$J170>0,'2007 Survey responses'!$H174>0),'2011 Survey responses'!$J170,\"\")","v":5},4,null,null,{"$f":"IF(AND('2011 Survey responses'!$K170>0,'2007 Survey responses'!$J174>0),'2007 Survey responses'!$J174,\"\")","v":4},{"$f":"IF(AND('2011 Survey responses'!$K170>0,'2007 Survey responses'!$J174>0),'2011 Survey responses'!$K170,\"\")","v":5},4,null,null,{"$f":"IF(AND('2011 Survey responses'!$L170>0,'2007 Survey responses'!$I174>0),'2007 Survey responses'!$I174,\"\")","v":4},{"$f":"IF(AND('2011 Survey responses'!$L170>0,'2007 Survey responses'!$I174>0),'2011 Survey responses'!$L170,\"\")","v":2},2,null,null,{"$f":"IF(AND('2011 Survey responses'!$M170>0,'2007 Survey responses'!$K174>0),'2007 Survey responses'!$K174,\"\")","v":4},{"$f":"IF(AND('2011 Survey responses'!$M170>0,'2007 Survey responses'!$K174>0),'2011 Survey responses'!$M170,\"\")","v":3},3,null,null,{"$f":"IF('2007 Survey responses'!$B174>0,IF(AND('2011 Survey responses'!T170>0,'2007 Survey responses'!L174>0),'2007 Survey responses'!L174,\"\"),\"\")","v":2},{"$f":"IF('2007 Survey responses'!$B174>0,IF(AND('2011 Survey responses'!T170>0,'2007 Survey responses'!L174>0),'2011 Survey responses'!T170,\"\"),\"\")","v":4},4,null,null,{"$f":"IF(AND('2011 Survey responses'!$U170>0,'2007 Survey responses'!$M174>0),'2007 Survey responses'!$M174,\"\")","v":4},{"$f":"IF(AND('2011 Survey responses'!$U170>0,'2007 Survey responses'!$M174>0),'2011 Survey responses'!$U170,\"\")","v":2},2]
["Thailand",{"$f":"IF(AND('2011 Survey responses'!$F171>0,'2007 Survey responses'!E175>0),'2007 Survey responses'!E175,\"\")","v":1},{"$f":"IF(AND('2011 Survey responses'!$F171>0,'2007 Survey responses'!E175>0),'2011 Survey responses'!$F171,\"\")","v":4},4,null,null,{"$f":"IF(AND('2011 Survey responses'!$G171>0,'2007 Survey responses'!$F175>0),'2007 Survey responses'!$F175,\"\")","v":1},{"$f":"IF(AND('2011 Survey responses'!$G171>0,'2007 Survey responses'!$F175>0),'2011 Survey responses'!$G171,\"\")","v":3},3,null,null,{"$f":"IF(AND('2011 Survey responses'!$H171>0,'2007 Survey responses'!$F175>0),'2007 Survey responses'!$F175,\"\")","v":1},{"$f":"IF(AND('2011 Survey responses'!$H171>0,'2007 Survey responses'!$F175>0),'2011 Survey responses'!$H171,\"\")","v":3},3,null,null,{"$f":"IF(AND(Question_grouping!O171>0,'2007 Survey responses'!$F175>0),'2007 Survey responses'!$F175,\"\")","v":1},{"$f":"IF(AND(Question_grouping!O171>0,'2007 Survey responses'!$F175>0),Question_grouping!O171,\"\")","v":3},3,null,null,{"$f":"IF(AND('2011 Survey responses'!$B171>0,'2007 Survey responses'!$C175>0),'2007 Survey responses'!$C175,\"\")","v":4},{"$f":"IF(AND('2011 Survey responses'!$B171>0,'2007 Survey responses'!$C175>0),'2011 Survey responses'!$B171,\"\")","v":3},3,null,null,{"$f":"IF(AND('2011 Survey responses'!$D171>0,'2007 Survey responses'!$D175>0),'2007 Survey responses'!$D175,\"\")","v":4},{"$f":"IF(AND('2011 Survey responses'!$D171>0,'2007 Survey responses'!$D175>0),'2011 Survey responses'!$D171,\"\")","v":2},2,null,null,{"$f":"IF(AND('2011 Survey responses'!$J171>0,'2007 Survey responses'!$H175>0),'2007 Survey responses'!$H175,\"\")","v":5},{"$f":"IF(AND('2011 Survey responses'!$J171>0,'2007 Survey responses'!$H175>0),'2011 Survey responses'!$J171,\"\")","v":3},3,null,null,{"$f":"IF(AND('2011 Survey responses'!$K171>0,'2007 Survey responses'!$J175>0),'2007 Survey responses'!$J175,\"\")","v":""},{"$f":"IF(AND('2011 Survey responses'!$K171>0,'2007 Survey responses'!$J175>0),'2011 Survey responses'!$K171,\"\")","v":""},"",null,null,{"$f":"IF(AND('2011 Survey responses'!$L171>0,'2007 Survey responses'!$I175>0),'2007 Survey responses'!$I175,\"\")","v":5},{"$f":"IF(AND('2011 Survey responses'!$L171>0,'2007 Survey responses'!$I175>0),'2011 Survey responses'!$L171,\"\")","v":3},3,null,null,{"$f":"IF(AND('2011 Survey responses'!$M171>0,'2007 Survey responses'!$K175>0),'2007 Survey responses'!$K175,\"\")","v":""},{"$f":"IF(AND('2011 Survey responses'!$M171>0,'2007 Survey responses'!$K175>0),'2011 Survey responses'!$M171,\"\")","v":""},"",null,null,{"$f":"IF('2007 Survey responses'!$B175>0,IF(AND('2011 Survey responses'!T171>0,'2007 Survey responses'!L175>0),'2007 Survey responses'!L175,\"\"),\"\")","v":1},{"$f":"IF('2007 Survey responses'!$B175>0,IF(AND('2011 Survey responses'!T171>0,'2007 Survey responses'!L175>0),'2011 Survey responses'!T171,\"\"),\"\")","v":3},3,null,null,{"$f":"IF(AND('2011 Survey responses'!$U171>0,'2007 Survey responses'!$M175>0),'2007 Survey responses'!$M175,\"\")","v":2},{"$f":"IF(AND('2011 Survey responses'!$U171>0,'2007 Survey responses'!$M175>0),'2011 Survey responses'!$U171,\"\")","v":3},3]
["The former Yugoslav Republic of Macedonia ",{"$f":"IF(AND('2011 Survey responses'!$F172>0,'2007 Survey responses'!E176>0),'2007 Survey responses'!E176,\"\")","v":4},{"$f":"IF(AND('2011 Survey responses'!$F172>0,'2007 Survey responses'!E176>0),'2011 Survey responses'!$F172,\"\")","v":2},2,null,null,{"$f":"IF(AND('2011 Survey responses'!$G172>0,'2007 Survey responses'!$F176>0),'2007 Survey responses'!$F176,\"\")","v":""},{"$f":"IF(AND('2011 Survey responses'!$G172>0,'2007 Survey responses'!$F176>0),'2011 Survey responses'!$G172,\"\")","v":""},"",null,null,{"$f":"IF(AND('2011 Survey responses'!$H172>0,'2007 Survey responses'!$F176>0),'2007 Survey responses'!$F176,\"\")","v":""},{"$f":"IF(AND('2011 Survey responses'!$H172>0,'2007 Survey responses'!$F176>0),'2011 Survey responses'!$H172,\"\")","v":""},"",null,null,{"$f":"IF(AND(Question_grouping!O172>0,'2007 Survey responses'!$F176>0),'2007 Survey responses'!$F176,\"\")","v":""},{"$f":"IF(AND(Question_grouping!O172>0,'2007 Survey responses'!$F176>0),Question_grouping!O172,\"\")","v":""},"",null,null,{"$f":"IF(AND('2011 Survey responses'!$B172>0,'2007 Survey responses'!$C176>0),'2007 Survey responses'!$C176,\"\")","v":4},{"$f":"IF(AND('2011 Survey responses'!$B172>0,'2007 Survey responses'!$C176>0),'2011 Survey responses'!$B172,\"\")","v":2},2,null,null,{"$f":"IF(AND('2011 Survey responses'!$D172>0,'2007 Survey responses'!$D176>0),'2007 Survey responses'!$D176,\"\")","v":4},{"$f":"IF(AND('2011 Survey responses'!$D172>0,'2007 Survey responses'!$D176>0),'2011 Survey responses'!$D172,\"\")","v":2},2,null,null,{"$f":"IF(AND('2011 Survey responses'!$J172>0,'2007 Survey responses'!$H176>0),'2007 Survey responses'!$H176,\"\")","v":""},{"$f":"IF(AND('2011 Survey responses'!$J172>0,'2007 Survey responses'!$H176>0),'2011 Survey responses'!$J172,\"\")","v":""},"",null,null,{"$f":"IF(AND('2011 Survey responses'!$K172>0,'2007 Survey responses'!$J176>0),'2007 Survey responses'!$J176,\"\")","v":""},{"$f":"IF(AND('2011 Survey responses'!$K172>0,'2007 Survey responses'!$J176>0),'2011 Survey responses'!$K172,\"\")","v":""},"",null,null,{"$f":"IF(AND('2011 Survey responses'!$L172>0,'2007 Survey responses'!$I176>0),'2007 Survey responses'!$I176,\"\")","v":""},{"$f":"IF(AND('2011 Survey responses'!$L172>0,'2007 Survey responses'!$I176>0),'2011 Survey responses'!$L172,\"\")","v":""},"",null,null,{"$f":"IF(AND('2011 Survey responses'!$M172>0,'2007 Survey responses'!$K176>0),'2007 Survey responses'!$K176,\"\")","v":""},{"$f":"IF(AND('2011 Survey responses'!$M172>0,'2007 Survey responses'!$K176>0),'2011 Survey responses'!$M172,\"\")","v":""},"",null,null,{"$f":"IF('2007 Survey responses'!$B176>0,IF(AND('2011 Survey responses'!T172>0,'2007 Survey responses'!L176>0),'2007 Survey responses'!L176,\"\"),\"\")","v":""},{"$f":"IF('2007 Survey responses'!$B176>0,IF(AND('2011 Survey responses'!T172>0,'2007 Survey responses'!L176>0),'2011 Survey responses'!T172,\"\"),\"\")","v":""},"",null,null,{"$f":"IF(AND('2011 Survey responses'!$U172>0,'2007 Survey responses'!$M176>0),'2007 Survey responses'!$M176,\"\")","v":4},{"$f":"IF(AND('2011 Survey responses'!$U172>0,'2007 Survey responses'!$M176>0),'2011 Survey responses'!$U172,\"\")","v":4},4]
["Timor-Leste",{"$f":"IF(AND('2011 Survey responses'!$F173>0,'2007 Survey responses'!E177>0),'2007 Survey responses'!E177,\"\")","v":2},{"$f":"IF(AND('2011 Survey responses'!$F173>0,'2007 Survey responses'!E177>0),'2011 Survey responses'!$F173,\"\")","v":2},2,null,null,{"$f":"IF(AND('2011 Survey responses'!$G173>0,'2007 Survey responses'!$F177>0),'2007 Survey responses'!$F177,\"\")","v":""},{"$f":"IF(AND('2011 Survey responses'!$G173>0,'2007 Survey responses'!$F177>0),'2011 Survey responses'!$G173,\"\")","v":""},"",null,null,{"$f":"IF(AND('2011 Survey responses'!$H173>0,'2007 Survey responses'!$F177>0),'2007 Survey responses'!$F177,\"\")","v":""},{"$f":"IF(AND('2011 Survey responses'!$H173>0,'2007 Survey responses'!$F177>0),'2011 Survey responses'!$H173,\"\")","v":""},"",null,null,{"$f":"IF(AND(Question_grouping!O173>0,'2007 Survey responses'!$F177>0),'2007 Survey responses'!$F177,\"\")","v":""},{"$f":"IF(AND(Question_grouping!O173>0,'2007 Survey responses'!$F177>0),Question_grouping!O173,\"\")","v":""},"",null,null,{"$f":"IF(AND('2011 Survey responses'!$B173>0,'2007 Survey responses'!$C177>0),'2007 Survey responses'!$C177,\"\")","v":4},{"$f":"IF(AND('2011 Survey responses'!$B173>0,'2007 Survey responses'!$C177>0),'2011 Survey responses'!$B173,\"\")","v":2},2,null,null,{"$f":"IF(AND('2011 Survey responses'!$D173>0,'2007 Survey responses'!$D177>0),'2007 Survey responses'!$D177,\"\")","v":4},{"$f":"IF(AND('2011 Survey responses'!$D173>0,'2007 Survey responses'!$D177>0),'2011 Survey responses'!$D173,\"\")","v":2},2,null,null,{"$f":"IF(AND('2011 Survey responses'!$J173>0,'2007 Survey responses'!$H177>0),'2007 Survey responses'!$H177,\"\")","v":""},{"$f":"IF(AND('2011 Survey responses'!$J173>0,'2007 Survey responses'!$H177>0),'2011 Survey responses'!$J173,\"\")","v":""},"",null,null,{"$f":"IF(AND('2011 Survey responses'!$K173>0,'2007 Survey responses'!$J177>0),'2007 Survey responses'!$J177,\"\")","v":""},{"$f":"IF(AND('2011 Survey responses'!$K173>0,'2007 Survey responses'!$J177>0),'2011 Survey responses'!$K173,\"\")","v":""},"",null,null,{"$f":"IF(AND('2011 Survey responses'!$L173>0,'2007 Survey responses'!$I177>0),'2007 Survey responses'!$I177,\"\")","v":4},{"$f":"IF(AND('2011 Survey responses'!$L173>0,'2007 Survey responses'!$I177>0),'2011 Survey responses'!$L173,\"\")","v":2},2,null,null,{"$f":"IF(AND('2011 Survey responses'!$M173>0,'2007 Survey responses'!$K177>0),'2007 Survey responses'!$K177,\"\")","v":4},{"$f":"IF(AND('2011 Survey responses'!$M173>0,'2007 Survey responses'!$K177>0),'2011 Survey responses'!$M173,\"\")","v":2},2,null,null,{"$f":"IF('2007 Survey responses'!$B177>0,IF(AND('2011 Survey responses'!T173>0,'2007 Survey responses'!L177>0),'2007 Survey responses'!L177,\"\"),\"\")","v":""},{"$f":"IF('2007 Survey responses'!$B177>0,IF(AND('2011 Survey responses'!T173>0,'2007 Survey responses'!L177>0),'2011 Survey responses'!T173,\"\"),\"\")","v":""},"",null,null,{"$f":"IF(AND('2011 Survey responses'!$U173>0,'2007 Survey responses'!$M177>0),'2007 Survey responses'!$M177,\"\")","v":""},{"$f":"IF(AND('2011 Survey responses'!$U173>0,'2007 Survey responses'!$M177>0),'2011 Survey responses'!$U173,\"\")","v":""},""]
["Togo",{"$f":"IF(AND('2011 Survey responses'!$F174>0,'2007 Survey responses'!E178>0),'2007 Survey responses'!E178,\"\")","v":""},{"$f":"IF(AND('2011 Survey responses'!$F174>0,'2007 Survey responses'!E178>0),'2011 Survey responses'!$F174,\"\")","v":""},"",null,null,{"$f":"IF(AND('2011 Survey responses'!$G174>0,'2007 Survey responses'!$F178>0),'2007 Survey responses'!$F178,\"\")","v":""},{"$f":"IF(AND('2011 Survey responses'!$G174>0,'2007 Survey responses'!$F178>0),'2011 Survey responses'!$G174,\"\")","v":""},"",null,null,{"$f":"IF(AND('2011 Survey responses'!$H174>0,'2007 Survey responses'!$F178>0),'2007 Survey responses'!$F178,\"\")","v":""},{"$f":"IF(AND('2011 Survey responses'!$H174>0,'2007 Survey responses'!$F178>0),'2011 Survey responses'!$H174,\"\")","v":""},"",null,null,{"$f":"IF(AND(Question_grouping!O174>0,'2007 Survey responses'!$F178>0),'2007 Survey responses'!$F178,\"\")","v":""},{"$f":"IF(AND(Question_grouping!O174>0,'2007 Survey responses'!$F178>0),Question_grouping!O174,\"\")","v":""},"",null,null,{"$f":"IF(AND('2011 Survey responses'!$B174>0,'2007 Survey responses'!$C178>0),'2007 Survey responses'!$C178,\"\")","v":""},{"$f":"IF(AND('2011 Survey responses'!$B174>0,'2007 Survey responses'!$C178>0),'2011 Survey responses'!$B174,\"\")","v":""},"",null,null,{"$f":"IF(AND('2011 Survey responses'!$D174>0,'2007 Survey responses'!$D178>0),'2007 Survey responses'!$D178,\"\")","v":""},{"$f":"IF(AND('2011 Survey responses'!$D174>0,'2007 Survey responses'!$D178>0),'2011 Survey responses'!$D174,\"\")","v":""},"",null,null,{"$f":"IF(AND('2011 Survey responses'!$J174>0,'2007 Survey responses'!$H178>0),'2007 Survey responses'!$H178,\"\")","v":""},{"$f":"IF(AND('2011 Survey responses'!$J174>0,'2007 Survey responses'!$H178>0),'2011 Survey responses'!$J174,\"\")","v":""},"",null,null,{"$f":"IF(AND('2011 Survey responses'!$K174>0,'2007 Survey responses'!$J178>0),'2007 Survey responses'!$J178,\"\")","v":""},{"$f":"IF(AND('2011 Survey responses'!$K174>0,'2007 Survey responses'!$J178>0),'2011 Survey responses'!$K174,\"\")","v":""},"",null,null,{"$f":"IF(AND('2011 Survey responses'!$L174>0,'2007 Survey responses'!$I178>0),'2007 Survey responses'!$I178,\"\")","v":""},{"$f":"IF(AND('2011 Survey responses'!$L174>0,'2007 Survey responses'!$I178>0),'2011 Survey responses'!$L174,\"\")","v":""},"",null,null,{"$f":"IF(AND('2011 Survey responses'!$M174>0,'2007 Survey responses'!$K178>0),'2007 Survey responses'!$K178,\"\")","v":""},{"$f":"IF(AND('2011 Survey responses'!$M174>0,'2007 Survey responses'!$K178>0),'2011 Survey responses'!$M174,\"\")","v":""},"",null,null,{"$f":"IF('2007 Survey responses'!$B178>0,IF(AND('2011 Survey responses'!T174>0,'2007 Survey responses'!L178>0),'2007 Survey responses'!L178,\"\"),\"\")","v":""},{"$f":"IF('2007 Survey responses'!$B178>0,IF(AND('2011 Survey responses'!T174>0,'2007 Survey responses'!L178>0),'2011 Survey responses'!T174,\"\"),\"\")","v":""},"",null,null,{"$f":"IF(AND('2011 Survey responses'!$U174>0,'2007 Survey responses'!$M178>0),'2007 Survey responses'!$M178,\"\")","v":""},{"$f":"IF(AND('2011 Survey responses'!$U174>0,'2007 Survey responses'!$M178>0),'2011 Survey responses'!$U174,\"\")","v":""},""]
["Tonga",{"$f":"IF(AND('2011 Survey responses'!$F175>0,'2007 Survey responses'!E179>0),'2007 Survey responses'!E179,\"\")","v":3},{"$f":"IF(AND('2011 Survey responses'!$F175>0,'2007 Survey responses'!E179>0),'2011 Survey responses'!$F175,\"\")","v":3},3,null,null,{"$f":"IF(AND('2011 Survey responses'!$G175>0,'2007 Survey responses'!$F179>0),'2007 Survey responses'!$F179,\"\")","v":2},{"$f":"IF(AND('2011 Survey responses'!$G175>0,'2007 Survey responses'!$F179>0),'2011 Survey responses'!$G175,\"\")","v":3},3,null,null,{"$f":"IF(AND('2011 Survey responses'!$H175>0,'2007 Survey responses'!$F179>0),'2007 Survey responses'!$F179,\"\")","v":2},{"$f":"IF(AND('2011 Survey responses'!$H175>0,'2007 Survey responses'!$F179>0),'2011 Survey responses'!$H175,\"\")","v":2},2,null,null,{"$f":"IF(AND(Question_grouping!O175>0,'2007 Survey responses'!$F179>0),'2007 Survey responses'!$F179,\"\")","v":2},{"$f":"IF(AND(Question_grouping!O175>0,'2007 Survey responses'!$F179>0),Question_grouping!O175,\"\")","v":3},3,null,null,{"$f":"IF(AND('2011 Survey responses'!$B175>0,'2007 Survey responses'!$C179>0),'2007 Survey responses'!$C179,\"\")","v":3},{"$f":"IF(AND('2011 Survey responses'!$B175>0,'2007 Survey responses'!$C179>0),'2011 Survey responses'!$B175,\"\")","v":6},5,null,null,{"$f":"IF(AND('2011 Survey responses'!$D175>0,'2007 Survey responses'!$D179>0),'2007 Survey responses'!$D179,\"\")","v":3},{"$f":"IF(AND('2011 Survey responses'!$D175>0,'2007 Survey responses'!$D179>0),'2011 Survey responses'!$D175,\"\")","v":6},5,null,null,{"$f":"IF(AND('2011 Survey responses'!$J175>0,'2007 Survey responses'!$H179>0),'2007 Survey responses'!$H179,\"\")","v":3},{"$f":"IF(AND('2011 Survey responses'!$J175>0,'2007 Survey responses'!$H179>0),'2011 Survey responses'!$J175,\"\")","v":2},2,null,null,{"$f":"IF(AND('2011 Survey responses'!$K175>0,'2007 Survey responses'!$J179>0),'2007 Survey responses'!$J179,\"\")","v":3},{"$f":"IF(AND('2011 Survey responses'!$K175>0,'2007 Survey responses'!$J179>0),'2011 Survey responses'!$K175,\"\")","v":4},4,null,null,{"$f":"IF(AND('2011 Survey responses'!$L175>0,'2007 Survey responses'!$I179>0),'2007 Survey responses'!$I179,\"\")","v":3},{"$f":"IF(AND('2011 Survey responses'!$L175>0,'2007 Survey responses'!$I179>0),'2011 Survey responses'!$L175,\"\")","v":4},4,null,null,{"$f":"IF(AND('2011 Survey responses'!$M175>0,'2007 Survey responses'!$K179>0),'2007 Survey responses'!$K179,\"\")","v":""},{"$f":"IF(AND('2011 Survey responses'!$M175>0,'2007 Survey responses'!$K179>0),'2011 Survey responses'!$M175,\"\")","v":""},"",null,null,{"$f":"IF('2007 Survey responses'!$B179>0,IF(AND('2011 Survey responses'!T175>0,'2007 Survey responses'!L179>0),'2007 Survey responses'!L179,\"\"),\"\")","v":3},{"$f":"IF('2007 Survey responses'!$B179>0,IF(AND('2011 Survey responses'!T175>0,'2007 Survey responses'!L179>0),'2011 Survey responses'!T175,\"\"),\"\")","v":1},1,null,null,{"$f":"IF(AND('2011 Survey responses'!$U175>0,'2007 Survey responses'!$M179>0),'2007 Survey responses'!$M179,\"\")","v":3},{"$f":"IF(AND('2011 Survey responses'!$U175>0,'2007 Survey responses'!$M179>0),'2011 Survey responses'!$U175,\"\")","v":1},1]
["Trinidad and Tobago",{"$f":"IF(AND('2011 Survey responses'!$F176>0,'2007 Survey responses'!E180>0),'2007 Survey responses'!E180,\"\")","v":""},{"$f":"IF(AND('2011 Survey responses'!$F176>0,'2007 Survey responses'!E180>0),'2011 Survey responses'!$F176,\"\")","v":""},"",null,null,{"$f":"IF(AND('2011 Survey responses'!$G176>0,'2007 Survey responses'!$F180>0),'2007 Survey responses'!$F180,\"\")","v":""},{"$f":"IF(AND('2011 Survey responses'!$G176>0,'2007 Survey responses'!$F180>0),'2011 Survey responses'!$G176,\"\")","v":""},"",null,null,{"$f":"IF(AND('2011 Survey responses'!$H176>0,'2007 Survey responses'!$F180>0),'2007 Survey responses'!$F180,\"\")","v":""},{"$f":"IF(AND('2011 Survey responses'!$H176>0,'2007 Survey responses'!$F180>0),'2011 Survey responses'!$H176,\"\")","v":""},"",null,null,{"$f":"IF(AND(Question_grouping!O176>0,'2007 Survey responses'!$F180>0),'2007 Survey responses'!$F180,\"\")","v":""},{"$f":"IF(AND(Question_grouping!O176>0,'2007 Survey responses'!$F180>0),Question_grouping!O176,\"\")","v":""},"",null,null,{"$f":"IF(AND('2011 Survey responses'!$B176>0,'2007 Survey responses'!$C180>0),'2007 Survey responses'!$C180,\"\")","v":""},{"$f":"IF(AND('2011 Survey responses'!$B176>0,'2007 Survey responses'!$C180>0),'2011 Survey responses'!$B176,\"\")","v":""},"",null,null,{"$f":"IF(AND('2011 Survey responses'!$D176>0,'2007 Survey responses'!$D180>0),'2007 Survey responses'!$D180,\"\")","v":""},{"$f":"IF(AND('2011 Survey responses'!$D176>0,'2007 Survey responses'!$D180>0),'2011 Survey responses'!$D176,\"\")","v":""},"",null,null,{"$f":"IF(AND('2011 Survey responses'!$J176>0,'2007 Survey responses'!$H180>0),'2007 Survey responses'!$H180,\"\")","v":""},{"$f":"IF(AND('2011 Survey responses'!$J176>0,'2007 Survey responses'!$H180>0),'2011 Survey responses'!$J176,\"\")","v":""},"",null,null,{"$f":"IF(AND('2011 Survey responses'!$K176>0,'2007 Survey responses'!$J180>0),'2007 Survey responses'!$J180,\"\")","v":""},{"$f":"IF(AND('2011 Survey responses'!$K176>0,'2007 Survey responses'!$J180>0),'2011 Survey responses'!$K176,\"\")","v":""},"",null,null,{"$f":"IF(AND('2011 Survey responses'!$L176>0,'2007 Survey responses'!$I180>0),'2007 Survey responses'!$I180,\"\")","v":""},{"$f":"IF(AND('2011 Survey responses'!$L176>0,'2007 Survey responses'!$I180>0),'2011 Survey responses'!$L176,\"\")","v":""},"",null,null,{"$f":"IF(AND('2011 Survey responses'!$M176>0,'2007 Survey responses'!$K180>0),'2007 Survey responses'!$K180,\"\")","v":""},{"$f":"IF(AND('2011 Survey responses'!$M176>0,'2007 Survey responses'!$K180>0),'2011 Survey responses'!$M176,\"\")","v":""},"",null,null,{"$f":"IF('2007 Survey responses'!$B180>0,IF(AND('2011 Survey responses'!T176>0,'2007 Survey responses'!L180>0),'2007 Survey responses'!L180,\"\"),\"\")","v":""},{"$f":"IF('2007 Survey responses'!$B180>0,IF(AND('2011 Survey responses'!T176>0,'2007 Survey responses'!L180>0),'2011 Survey responses'!T176,\"\"),\"\")","v":""},"",null,null,{"$f":"IF(AND('2011 Survey responses'!$U176>0,'2007 Survey responses'!$M180>0),'2007 Survey responses'!$M180,\"\")","v":""},{"$f":"IF(AND('2011 Survey responses'!$U176>0,'2007 Survey responses'!$M180>0),'2011 Survey responses'!$U176,\"\")","v":""},""]
["Tunisia",{"$f":"IF(AND('2011 Survey responses'!$F177>0,'2007 Survey responses'!E181>0),'2007 Survey responses'!E181,\"\")","v":""},{"$f":"IF(AND('2011 Survey responses'!$F177>0,'2007 Survey responses'!E181>0),'2011 Survey responses'!$F177,\"\")","v":""},"",null,null,{"$f":"IF(AND('2011 Survey responses'!$G177>0,'2007 Survey responses'!$F181>0),'2007 Survey responses'!$F181,\"\")","v":""},{"$f":"IF(AND('2011 Survey responses'!$G177>0,'2007 Survey responses'!$F181>0),'2011 Survey responses'!$G177,\"\")","v":""},"",null,null,{"$f":"IF(AND('2011 Survey responses'!$H177>0,'2007 Survey responses'!$F181>0),'2007 Survey responses'!$F181,\"\")","v":""},{"$f":"IF(AND('2011 Survey responses'!$H177>0,'2007 Survey responses'!$F181>0),'2011 Survey responses'!$H177,\"\")","v":""},"",null,null,{"$f":"IF(AND(Question_grouping!O177>0,'2007 Survey responses'!$F181>0),'2007 Survey responses'!$F181,\"\")","v":""},{"$f":"IF(AND(Question_grouping!O177>0,'2007 Survey responses'!$F181>0),Question_grouping!O177,\"\")","v":""},"",null,null,{"$f":"IF(AND('2011 Survey responses'!$B177>0,'2007 Survey responses'!$C181>0),'2007 Survey responses'!$C181,\"\")","v":""},{"$f":"IF(AND('2011 Survey responses'!$B177>0,'2007 Survey responses'!$C181>0),'2011 Survey responses'!$B177,\"\")","v":""},"",null,null,{"$f":"IF(AND('2011 Survey responses'!$D177>0,'2007 Survey responses'!$D181>0),'2007 Survey responses'!$D181,\"\")","v":""},{"$f":"IF(AND('2011 Survey responses'!$D177>0,'2007 Survey responses'!$D181>0),'2011 Survey responses'!$D177,\"\")","v":""},"",null,null,{"$f":"IF(AND('2011 Survey responses'!$J177>0,'2007 Survey responses'!$H181>0),'2007 Survey responses'!$H181,\"\")","v":""},{"$f":"IF(AND('2011 Survey responses'!$J177>0,'2007 Survey responses'!$H181>0),'2011 Survey responses'!$J177,\"\")","v":""},"",null,null,{"$f":"IF(AND('2011 Survey responses'!$K177>0,'2007 Survey responses'!$J181>0),'2007 Survey responses'!$J181,\"\")","v":""},{"$f":"IF(AND('2011 Survey responses'!$K177>0,'2007 Survey responses'!$J181>0),'2011 Survey responses'!$K177,\"\")","v":""},"",null,null,{"$f":"IF(AND('2011 Survey responses'!$L177>0,'2007 Survey responses'!$I181>0),'2007 Survey responses'!$I181,\"\")","v":""},{"$f":"IF(AND('2011 Survey responses'!$L177>0,'2007 Survey responses'!$I181>0),'2011 Survey responses'!$L177,\"\")","v":""},"",null,null,{"$f":"IF(AND('2011 Survey responses'!$M177>0,'2007 Survey responses'!$K181>0),'2007 Survey responses'!$K181,\"\")","v":""},{"$f":"IF(AND('2011 Survey responses'!$M177>0,'2007 Survey responses'!$K181>0),'2011 Survey responses'!$M177,\"\")","v":""},"",null,null,{"$f":"IF('2007 Survey responses'!$B181>0,IF(AND('2011 Survey responses'!T177>0,'2007 Survey responses'!L181>0),'2007 Survey responses'!L181,\"\"),\"\")","v":""},{"$f":"IF('2007 Survey responses'!$B181>0,IF(AND('2011 Survey responses'!T177>0,'2007 Survey responses'!L181>0),'2011 Survey responses'!T177,\"\"),\"\")","v":""},"",null,null,{"$f":"IF(AND('2011 Survey responses'!$U177>0,'2007 Survey responses'!$M181>0),'2007 Survey responses'!$M181,\"\")","v":""},{"$f":"IF(AND('2011 Survey responses'!$U177>0,'2007 Survey responses'!$M181>0),'2011 Survey responses'!$U177,\"\")","v":""},""]
["Turkey",{"$f":"IF(AND('2011 Survey responses'!$F178>0,'2007 Survey responses'!E182>0),'2007 Survey responses'!E182,\"\")","v":""},{"$f":"IF(AND('2011 Survey responses'!$F178>0,'2007 Survey responses'!E182>0),'2011 Survey responses'!$F178,\"\")","v":""},"",null,null,{"$f":"IF(AND('2011 Survey responses'!$G178>0,'2007 Survey responses'!$F182>0),'2007 Survey responses'!$F182,\"\")","v":""},{"$f":"IF(AND('2011 Survey responses'!$G178>0,'2007 Survey responses'!$F182>0),'2011 Survey responses'!$G178,\"\")","v":""},"",null,null,{"$f":"IF(AND('2011 Survey responses'!$H178>0,'2007 Survey responses'!$F182>0),'2007 Survey responses'!$F182,\"\")","v":""},{"$f":"IF(AND('2011 Survey responses'!$H178>0,'2007 Survey responses'!$F182>0),'2011 Survey responses'!$H178,\"\")","v":""},"",null,null,{"$f":"IF(AND(Question_grouping!O178>0,'2007 Survey responses'!$F182>0),'2007 Survey responses'!$F182,\"\")","v":5},{"$f":"IF(AND(Question_grouping!O178>0,'2007 Survey responses'!$F182>0),Question_grouping!O178,\"\")","v":""},"",null,null,{"$f":"IF(AND('2011 Survey responses'!$B178>0,'2007 Survey responses'!$C182>0),'2007 Survey responses'!$C182,\"\")","v":""},{"$f":"IF(AND('2011 Survey responses'!$B178>0,'2007 Survey responses'!$C182>0),'2011 Survey responses'!$B178,\"\")","v":""},"",null,null,{"$f":"IF(AND('2011 Survey responses'!$D178>0,'2007 Survey responses'!$D182>0),'2007 Survey responses'!$D182,\"\")","v":""},{"$f":"IF(AND('2011 Survey responses'!$D178>0,'2007 Survey responses'!$D182>0),'2011 Survey responses'!$D178,\"\")","v":""},"",null,null,{"$f":"IF(AND('2011 Survey responses'!$J178>0,'2007 Survey responses'!$H182>0),'2007 Survey responses'!$H182,\"\")","v":""},{"$f":"IF(AND('2011 Survey responses'!$J178>0,'2007 Survey responses'!$H182>0),'2011 Survey responses'!$J178,\"\")","v":""},"",null,null,{"$f":"IF(AND('2011 Survey responses'!$K178>0,'2007 Survey responses'!$J182>0),'2007 Survey responses'!$J182,\"\")","v":""},{"$f":"IF(AND('2011 Survey responses'!$K178>0,'2007 Survey responses'!$J182>0),'2011 Survey responses'!$K178,\"\")","v":""},"",null,null,{"$f":"IF(AND('2011 Survey responses'!$L178>0,'2007 Survey responses'!$I182>0),'2007 Survey responses'!$I182,\"\")","v":""},{"$f":"IF(AND('2011 Survey responses'!$L178>0,'2007 Survey responses'!$I182>0),'2011 Survey responses'!$L178,\"\")","v":""},"",null,null,{"$f":"IF(AND('2011 Survey responses'!$M178>0,'2007 Survey responses'!$K182>0),'2007 Survey responses'!$K182,\"\")","v":""},{"$f":"IF(AND('2011 Survey responses'!$M178>0,'2007 Survey responses'!$K182>0),'2011 Survey responses'!$M178,\"\")","v":""},"",null,null,{"$f":"IF('2007 Survey responses'!$B182>0,IF(AND('2011 Survey responses'!T178>0,'2007 Survey responses'!L182>0),'2007 Survey responses'!L182,\"\"),\"\")","v":""},{"$f":"IF('2007 Survey responses'!$B182>0,IF(AND('2011 Survey responses'!T178>0,'2007 Survey responses'!L182>0),'2011 Survey responses'!T178,\"\"),\"\")","v":""},"",null,null,{"$f":"IF(AND('2011 Survey responses'!$U178>0,'2007 Survey responses'!$M182>0),'2007 Survey responses'!$M182,\"\")","v":""},{"$f":"IF(AND('2011 Survey responses'!$U178>0,'2007 Survey responses'!$M182>0),'2011 Survey responses'!$U178,\"\")","v":""},""]
["Turkmenistan",{"$f":"IF(AND('2011 Survey responses'!$F179>0,'2007 Survey responses'!E183>0),'2007 Survey responses'!E183,\"\")","v":""},{"$f":"IF(AND('2011 Survey responses'!$F179>0,'2007 Survey responses'!E183>0),'2011 Survey responses'!$F179,\"\")","v":""},"",null,null,{"$f":"IF(AND('2011 Survey responses'!$G179>0,'2007 Survey responses'!$F183>0),'2007 Survey responses'!$F183,\"\")","v":""},{"$f":"IF(AND('2011 Survey responses'!$G179>0,'2007 Survey responses'!$F183>0),'2011 Survey responses'!$G179,\"\")","v":""},"",null,null,{"$f":"IF(AND('2011 Survey responses'!$H179>0,'2007 Survey responses'!$F183>0),'2007 Survey responses'!$F183,\"\")","v":""},{"$f":"IF(AND('2011 Survey responses'!$H179>0,'2007 Survey responses'!$F183>0),'2011 Survey responses'!$H179,\"\")","v":""},"",null,null,{"$f":"IF(AND(Question_grouping!O179>0,'2007 Survey responses'!$F183>0),'2007 Survey responses'!$F183,\"\")","v":3},{"$f":"IF(AND(Question_grouping!O179>0,'2007 Survey responses'!$F183>0),Question_grouping!O179,\"\")","v":""},"",null,null,{"$f":"IF(AND('2011 Survey responses'!$B179>0,'2007 Survey responses'!$C183>0),'2007 Survey responses'!$C183,\"\")","v":""},{"$f":"IF(AND('2011 Survey responses'!$B179>0,'2007 Survey responses'!$C183>0),'2011 Survey responses'!$B179,\"\")","v":""},"",null,null,{"$f":"IF(AND('2011 Survey responses'!$D179>0,'2007 Survey responses'!$D183>0),'2007 Survey responses'!$D183,\"\")","v":""},{"$f":"IF(AND('2011 Survey responses'!$D179>0,'2007 Survey responses'!$D183>0),'2011 Survey responses'!$D179,\"\")","v":""},"",null,null,{"$f":"IF(AND('2011 Survey responses'!$J179>0,'2007 Survey responses'!$H183>0),'2007 Survey responses'!$H183,\"\")","v":""},{"$f":"IF(AND('2011 Survey responses'!$J179>0,'2007 Survey responses'!$H183>0),'2011 Survey responses'!$J179,\"\")","v":""},"",null,null,{"$f":"IF(AND('2011 Survey responses'!$K179>0,'2007 Survey responses'!$J183>0),'2007 Survey responses'!$J183,\"\")","v":""},{"$f":"IF(AND('2011 Survey responses'!$K179>0,'2007 Survey responses'!$J183>0),'2011 Survey responses'!$K179,\"\")","v":""},"",null,null,{"$f":"IF(AND('2011 Survey responses'!$L179>0,'2007 Survey responses'!$I183>0),'2007 Survey responses'!$I183,\"\")","v":""},{"$f":"IF(AND('2011 Survey responses'!$L179>0,'2007 Survey responses'!$I183>0),'2011 Survey responses'!$L179,\"\")","v":""},"",null,null,{"$f":"IF(AND('2011 Survey responses'!$M179>0,'2007 Survey responses'!$K183>0),'2007 Survey responses'!$K183,\"\")","v":""},{"$f":"IF(AND('2011 Survey responses'!$M179>0,'2007 Survey responses'!$K183>0),'2011 Survey responses'!$M179,\"\")","v":""},"",null,null,{"$f":"IF('2007 Survey responses'!$B183>0,IF(AND('2011 Survey responses'!T179>0,'2007 Survey responses'!L183>0),'2007 Survey responses'!L183,\"\"),\"\")","v":""},{"$f":"IF('2007 Survey responses'!$B183>0,IF(AND('2011 Survey responses'!T179>0,'2007 Survey responses'!L183>0),'2011 Survey responses'!T179,\"\"),\"\")","v":""},"",null,null,{"$f":"IF(AND('2011 Survey responses'!$U179>0,'2007 Survey responses'!$M183>0),'2007 Survey responses'!$M183,\"\")","v":""},{"$f":"IF(AND('2011 Survey responses'!$U179>0,'2007 Survey responses'!$M183>0),'2011 Survey responses'!$U179,\"\")","v":""},""]
["Tuvalu",{"$f":"IF(AND('2011 Survey responses'!$F180>0,'2007 Survey responses'!E184>0),'2007 Survey responses'!E184,\"\")","v":""},{"$f":"IF(AND('2011 Survey responses'!$F180>0,'2007 Survey responses'!E184>0),'2011 Survey responses'!$F180,\"\")","v":""},"",null,null,{"$f":"IF(AND('2011 Survey responses'!$G180>0,'2007 Survey responses'!$F184>0),'2007 Survey responses'!$F184,\"\")","v":""},{"$f":"IF(AND('2011 Survey responses'!$G180>0,'2007 Survey responses'!$F184>0),'2011 Survey responses'!$G180,\"\")","v":""},"",null,null,{"$f":"IF(AND('2011 Survey responses'!$H180>0,'2007 Survey responses'!$F184>0),'2007 Survey responses'!$F184,\"\")","v":""},{"$f":"IF(AND('2011 Survey responses'!$H180>0,'2007 Survey responses'!$F184>0),'2011 Survey responses'!$H180,\"\")","v":""},"",null,null,{"$f":"IF(AND(Question_grouping!O180>0,'2007 Survey responses'!$F184>0),'2007 Survey responses'!$F184,\"\")","v":3},{"$f":"IF(AND(Question_grouping!O180>0,'2007 Survey responses'!$F184>0),Question_grouping!O180,\"\")","v":""},"",null,null,{"$f":"IF(AND('2011 Survey responses'!$B180>0,'2007 Survey responses'!$C184>0),'2007 Survey responses'!$C184,\"\")","v":""},{"$f":"IF(AND('2011 Survey responses'!$B180>0,'2007 Survey responses'!$C184>0),'2011 Survey responses'!$B180,\"\")","v":""},"",null,null,{"$f":"IF(AND('2011 Survey responses'!$D180>0,'2007 Survey responses'!$D184>0),'2007 Survey responses'!$D184,\"\")","v":""},{"$f":"IF(AND('2011 Survey responses'!$D180>0,'2007 Survey responses'!$D184>0),'2011 Survey responses'!$D180,\"\")","v":""},"",null,null,{"$f":"IF(AND('2011 Survey responses'!$J180>0,'2007 Survey responses'!$H184>0),'2007 Survey responses'!$H184,\"\")","v":""},{"$f":"IF(AND('2011 Survey responses'!$J180>0,'2007 Survey responses'!$H184>0),'2011 Survey responses'!$J180,\"\")","v":""},"",null,null,{"$f":"IF(AND('2011 Survey responses'!$K180>0,'2007 Survey responses'!$J184>0),'2007 Survey responses'!$J184,\"\")","v":""},{"$f":"IF(AND('2011 Survey responses'!$K180>0,'2007 Survey responses'!$J184>0),'2011 Survey responses'!$K180,\"\")","v":""},"",null,null,{"$f":"IF(AND('2011 Survey responses'!$L180>0,'2007 Survey responses'!$I184>0),'2007 Survey responses'!$I184,\"\")","v":""},{"$f":"IF(AND('2011 Survey responses'!$L180>0,'2007 Survey responses'!$I184>0),'2011 Survey responses'!$L180,\"\")","v":""},"",null,null,{"$f":"IF(AND('2011 Survey responses'!$M180>0,'2007 Survey responses'!$K184>0),'2007 Survey responses'!$K184,\"\")","v":""},{"$f":"IF(AND('2011 Survey responses'!$M180>0,'2007 Survey responses'!$K184>0),'2011 Survey responses'!$M180,\"\")","v":""},"",null,null,{"$f":"IF('2007 Survey responses'!$B184>0,IF(AND('2011 Survey responses'!T180>0,'2007 Survey responses'!L184>0),'2007 Survey responses'!L184,\"\"),\"\")","v":""},{"$f":"IF('2007 Survey responses'!$B184>0,IF(AND('2011 Survey responses'!T180>0,'2007 Survey responses'!L184>0),'2011 Survey responses'!T180,\"\"),\"\")","v":""},"",null,null,{"$f":"IF(AND('2011 Survey responses'!$U180>0,'2007 Survey responses'!$M184>0),'2007 Survey responses'!$M184,\"\")","v":""},{"$f":"IF(AND('2011 Survey responses'!$U180>0,'2007 Survey responses'!$M184>0),'2011 Survey responses'!$U180,\"\")","v":""},""]
["Uganda",{"$f":"IF(AND('2011 Survey responses'!$F181>0,'2007 Survey responses'!E185>0),'2007 Survey responses'!E185,\"\")","v":""},{"$f":"IF(AND('2011 Survey responses'!$F181>0,'2007 Survey responses'!E185>0),'2011 Survey responses'!$F181,\"\")","v":""},"",null,null,{"$f":"IF(AND('2011 Survey responses'!$G181>0,'2007 Survey responses'!$F185>0),'2007 Survey responses'!$F185,\"\")","v":""},{"$f":"IF(AND('2011 Survey responses'!$G181>0,'2007 Survey responses'!$F185>0),'2011 Survey responses'!$G181,\"\")","v":""},"",null,null,{"$f":"IF(AND('2011 Survey responses'!$H181>0,'2007 Survey responses'!$F185>0),'2007 Survey responses'!$F185,\"\")","v":""},{"$f":"IF(AND('2011 Survey responses'!$H181>0,'2007 Survey responses'!$F185>0),'2011 Survey responses'!$H181,\"\")","v":""},"",null,null,{"$f":"IF(AND(Question_grouping!O181>0,'2007 Survey responses'!$F185>0),'2007 Survey responses'!$F185,\"\")","v":""},{"$f":"IF(AND(Question_grouping!O181>0,'2007 Survey responses'!$F185>0),Question_grouping!O181,\"\")","v":""},"",null,null,{"$f":"IF(AND('2011 Survey responses'!$B181>0,'2007 Survey responses'!$C185>0),'2007 Survey responses'!$C185,\"\")","v":""},{"$f":"IF(AND('2011 Survey responses'!$B181>0,'2007 Survey responses'!$C185>0),'2011 Survey responses'!$B181,\"\")","v":""},"",null,null,{"$f":"IF(AND('2011 Survey responses'!$D181>0,'2007 Survey responses'!$D185>0),'2007 Survey responses'!$D185,\"\")","v":""},{"$f":"IF(AND('2011 Survey responses'!$D181>0,'2007 Survey responses'!$D185>0),'2011 Survey responses'!$D181,\"\")","v":""},"",null,null,{"$f":"IF(AND('2011 Survey responses'!$J181>0,'2007 Survey responses'!$H185>0),'2007 Survey responses'!$H185,\"\")","v":""},{"$f":"IF(AND('2011 Survey responses'!$J181>0,'2007 Survey responses'!$H185>0),'2011 Survey responses'!$J181,\"\")","v":""},"",null,null,{"$f":"IF(AND('2011 Survey responses'!$K181>0,'2007 Survey responses'!$J185>0),'2007 Survey responses'!$J185,\"\")","v":""},{"$f":"IF(AND('2011 Survey responses'!$K181>0,'2007 Survey responses'!$J185>0),'2011 Survey responses'!$K181,\"\")","v":""},"",null,null,{"$f":"IF(AND('2011 Survey responses'!$L181>0,'2007 Survey responses'!$I185>0),'2007 Survey responses'!$I185,\"\")","v":""},{"$f":"IF(AND('2011 Survey responses'!$L181>0,'2007 Survey responses'!$I185>0),'2011 Survey responses'!$L181,\"\")","v":""},"",null,null,{"$f":"IF(AND('2011 Survey responses'!$M181>0,'2007 Survey responses'!$K185>0),'2007 Survey responses'!$K185,\"\")","v":""},{"$f":"IF(AND('2011 Survey responses'!$M181>0,'2007 Survey responses'!$K185>0),'2011 Survey responses'!$M181,\"\")","v":""},"",null,null,{"$f":"IF('2007 Survey responses'!$B185>0,IF(AND('2011 Survey responses'!T181>0,'2007 Survey responses'!L185>0),'2007 Survey responses'!L185,\"\"),\"\")","v":""},{"$f":"IF('2007 Survey responses'!$B185>0,IF(AND('2011 Survey responses'!T181>0,'2007 Survey responses'!L185>0),'2011 Survey responses'!T181,\"\"),\"\")","v":""},"",null,null,{"$f":"IF(AND('2011 Survey responses'!$U181>0,'2007 Survey responses'!$M185>0),'2007 Survey responses'!$M185,\"\")","v":""},{"$f":"IF(AND('2011 Survey responses'!$U181>0,'2007 Survey responses'!$M185>0),'2011 Survey responses'!$U181,\"\")","v":""},""]
["Ukraine",{"$f":"IF(AND('2011 Survey responses'!$F182>0,'2007 Survey responses'!E186>0),'2007 Survey responses'!E186,\"\")","v":""},{"$f":"IF(AND('2011 Survey responses'!$F182>0,'2007 Survey responses'!E186>0),'2011 Survey responses'!$F182,\"\")","v":""},"",null,null,{"$f":"IF(AND('2011 Survey responses'!$G182>0,'2007 Survey responses'!$F186>0),'2007 Survey responses'!$F186,\"\")","v":""},{"$f":"IF(AND('2011 Survey responses'!$G182>0,'2007 Survey responses'!$F186>0),'2011 Survey responses'!$G182,\"\")","v":""},"",null,null,{"$f":"IF(AND('2011 Survey responses'!$H182>0,'2007 Survey responses'!$F186>0),'2007 Survey responses'!$F186,\"\")","v":""},{"$f":"IF(AND('2011 Survey responses'!$H182>0,'2007 Survey responses'!$F186>0),'2011 Survey responses'!$H182,\"\")","v":""},"",null,null,{"$f":"IF(AND(Question_grouping!O182>0,'2007 Survey responses'!$F186>0),'2007 Survey responses'!$F186,\"\")","v":2},{"$f":"IF(AND(Question_grouping!O182>0,'2007 Survey responses'!$F186>0),Question_grouping!O182,\"\")","v":""},"",null,null,{"$f":"IF(AND('2011 Survey responses'!$B182>0,'2007 Survey responses'!$C186>0),'2007 Survey responses'!$C186,\"\")","v":""},{"$f":"IF(AND('2011 Survey responses'!$B182>0,'2007 Survey responses'!$C186>0),'2011 Survey responses'!$B182,\"\")","v":""},"",null,null,{"$f":"IF(AND('2011 Survey responses'!$D182>0,'2007 Survey responses'!$D186>0),'2007 Survey responses'!$D186,\"\")","v":""},{"$f":"IF(AND('2011 Survey responses'!$D182>0,'2007 Survey responses'!$D186>0),'2011 Survey responses'!$D182,\"\")","v":""},"",null,null,{"$f":"IF(AND('2011 Survey responses'!$J182>0,'2007 Survey responses'!$H186>0),'2007 Survey responses'!$H186,\"\")","v":""},{"$f":"IF(AND('2011 Survey responses'!$J182>0,'2007 Survey responses'!$H186>0),'2011 Survey responses'!$J182,\"\")","v":""},"",null,null,{"$f":"IF(AND('2011 Survey responses'!$K182>0,'2007 Survey responses'!$J186>0),'2007 Survey responses'!$J186,\"\")","v":""},{"$f":"IF(AND('2011 Survey responses'!$K182>0,'2007 Survey responses'!$J186>0),'2011 Survey responses'!$K182,\"\")","v":""},"",null,null,{"$f":"IF(AND('2011 Survey responses'!$L182>0,'2007 Survey responses'!$I186>0),'2007 Survey responses'!$I186,\"\")","v":""},{"$f":"IF(AND('2011 Survey responses'!$L182>0,'2007 Survey responses'!$I186>0),'2011 Survey responses'!$L182,\"\")","v":""},"",null,null,{"$f":"IF(AND('2011 Survey responses'!$M182>0,'2007 Survey responses'!$K186>0),'2007 Survey responses'!$K186,\"\")","v":""},{"$f":"IF(AND('2011 Survey responses'!$M182>0,'2007 Survey responses'!$K186>0),'2011 Survey responses'!$M182,\"\")","v":""},"",null,null,{"$f":"IF('2007 Survey responses'!$B186>0,IF(AND('2011 Survey responses'!T182>0,'2007 Survey responses'!L186>0),'2007 Survey responses'!L186,\"\"),\"\")","v":""},{"$f":"IF('2007 Survey responses'!$B186>0,IF(AND('2011 Survey responses'!T182>0,'2007 Survey responses'!L186>0),'2011 Survey responses'!T182,\"\"),\"\")","v":""},"",null,null,{"$f":"IF(AND('2011 Survey responses'!$U182>0,'2007 Survey responses'!$M186>0),'2007 Survey responses'!$M186,\"\")","v":""},{"$f":"IF(AND('2011 Survey responses'!$U182>0,'2007 Survey responses'!$M186>0),'2011 Survey responses'!$U182,\"\")","v":""},""]
["United Arab Emirates",{"$f":"IF(AND('2011 Survey responses'!$F183>0,'2007 Survey responses'!E187>0),'2007 Survey responses'!E187,\"\")","v":""},{"$f":"IF(AND('2011 Survey responses'!$F183>0,'2007 Survey responses'!E187>0),'2011 Survey responses'!$F183,\"\")","v":""},"",null,null,{"$f":"IF(AND('2011 Survey responses'!$G183>0,'2007 Survey responses'!$F187>0),'2007 Survey responses'!$F187,\"\")","v":""},{"$f":"IF(AND('2011 Survey responses'!$G183>0,'2007 Survey responses'!$F187>0),'2011 Survey responses'!$G183,\"\")","v":""},"",null,null,{"$f":"IF(AND('2011 Survey responses'!$H183>0,'2007 Survey responses'!$F187>0),'2007 Survey responses'!$F187,\"\")","v":""},{"$f":"IF(AND('2011 Survey responses'!$H183>0,'2007 Survey responses'!$F187>0),'2011 Survey responses'!$H183,\"\")","v":""},"",null,null,{"$f":"IF(AND(Question_grouping!O183>0,'2007 Survey responses'!$F187>0),'2007 Survey responses'!$F187,\"\")","v":""},{"$f":"IF(AND(Question_grouping!O183>0,'2007 Survey responses'!$F187>0),Question_grouping!O183,\"\")","v":""},"",null,null,{"$f":"IF(AND('2011 Survey responses'!$B183>0,'2007 Survey responses'!$C187>0),'2007 Survey responses'!$C187,\"\")","v":""},{"$f":"IF(AND('2011 Survey responses'!$B183>0,'2007 Survey responses'!$C187>0),'2011 Survey responses'!$B183,\"\")","v":""},"",null,null,{"$f":"IF(AND('2011 Survey responses'!$D183>0,'2007 Survey responses'!$D187>0),'2007 Survey responses'!$D187,\"\")","v":""},{"$f":"IF(AND('2011 Survey responses'!$D183>0,'2007 Survey responses'!$D187>0),'2011 Survey responses'!$D183,\"\")","v":""},"",null,null,{"$f":"IF(AND('2011 Survey responses'!$J183>0,'2007 Survey responses'!$H187>0),'2007 Survey responses'!$H187,\"\")","v":""},{"$f":"IF(AND('2011 Survey responses'!$J183>0,'2007 Survey responses'!$H187>0),'2011 Survey responses'!$J183,\"\")","v":""},"",null,null,{"$f":"IF(AND('2011 Survey responses'!$K183>0,'2007 Survey responses'!$J187>0),'2007 Survey responses'!$J187,\"\")","v":""},{"$f":"IF(AND('2011 Survey responses'!$K183>0,'2007 Survey responses'!$J187>0),'2011 Survey responses'!$K183,\"\")","v":""},"",null,null,{"$f":"IF(AND('2011 Survey responses'!$L183>0,'2007 Survey responses'!$I187>0),'2007 Survey responses'!$I187,\"\")","v":""},{"$f":"IF(AND('2011 Survey responses'!$L183>0,'2007 Survey responses'!$I187>0),'2011 Survey responses'!$L183,\"\")","v":""},"",null,null,{"$f":"IF(AND('2011 Survey responses'!$M183>0,'2007 Survey responses'!$K187>0),'2007 Survey responses'!$K187,\"\")","v":""},{"$f":"IF(AND('2011 Survey responses'!$M183>0,'2007 Survey responses'!$K187>0),'2011 Survey responses'!$M183,\"\")","v":""},"",null,null,{"$f":"IF('2007 Survey responses'!$B187>0,IF(AND('2011 Survey responses'!T183>0,'2007 Survey responses'!L187>0),'2007 Survey responses'!L187,\"\"),\"\")","v":""},{"$f":"IF('2007 Survey responses'!$B187>0,IF(AND('2011 Survey responses'!T183>0,'2007 Survey responses'!L187>0),'2011 Survey responses'!T183,\"\"),\"\")","v":""},"",null,null,{"$f":"IF(AND('2011 Survey responses'!$U183>0,'2007 Survey responses'!$M187>0),'2007 Survey responses'!$M187,\"\")","v":""},{"$f":"IF(AND('2011 Survey responses'!$U183>0,'2007 Survey responses'!$M187>0),'2011 Survey responses'!$U183,\"\")","v":""},""]
["United Kingdom of Great Britain and Northern Ireland",{"$f":"IF(AND('2011 Survey responses'!$F184>0,'2007 Survey responses'!E188>0),'2007 Survey responses'!E188,\"\")","v":""},{"$f":"IF(AND('2011 Survey responses'!$F184>0,'2007 Survey responses'!E188>0),'2011 Survey responses'!$F184,\"\")","v":""},"",null,null,{"$f":"IF(AND('2011 Survey responses'!$G184>0,'2007 Survey responses'!$F188>0),'2007 Survey responses'!$F188,\"\")","v":""},{"$f":"IF(AND('2011 Survey responses'!$G184>0,'2007 Survey responses'!$F188>0),'2011 Survey responses'!$G184,\"\")","v":""},"",null,null,{"$f":"IF(AND('2011 Survey responses'!$H184>0,'2007 Survey responses'!$F188>0),'2007 Survey responses'!$F188,\"\")","v":""},{"$f":"IF(AND('2011 Survey responses'!$H184>0,'2007 Survey responses'!$F188>0),'2011 Survey responses'!$H184,\"\")","v":""},"",null,null,{"$f":"IF(AND(Question_grouping!O184>0,'2007 Survey responses'!$F188>0),'2007 Survey responses'!$F188,\"\")","v":""},{"$f":"IF(AND(Question_grouping!O184>0,'2007 Survey responses'!$F188>0),Question_grouping!O184,\"\")","v":""},"",null,null,{"$f":"IF(AND('2011 Survey responses'!$B184>0,'2007 Survey responses'!$C188>0),'2007 Survey responses'!$C188,\"\")","v":""},{"$f":"IF(AND('2011 Survey responses'!$B184>0,'2007 Survey responses'!$C188>0),'2011 Survey responses'!$B184,\"\")","v":""},"",null,null,{"$f":"IF(AND('2011 Survey responses'!$D184>0,'2007 Survey responses'!$D188>0),'2007 Survey responses'!$D188,\"\")","v":""},{"$f":"IF(AND('2011 Survey responses'!$D184>0,'2007 Survey responses'!$D188>0),'2011 Survey responses'!$D184,\"\")","v":""},"",null,null,{"$f":"IF(AND('2011 Survey responses'!$J184>0,'2007 Survey responses'!$H188>0),'2007 Survey responses'!$H188,\"\")","v":""},{"$f":"IF(AND('2011 Survey responses'!$J184>0,'2007 Survey responses'!$H188>0),'2011 Survey responses'!$J184,\"\")","v":""},"",null,null,{"$f":"IF(AND('2011 Survey responses'!$K184>0,'2007 Survey responses'!$J188>0),'2007 Survey responses'!$J188,\"\")","v":""},{"$f":"IF(AND('2011 Survey responses'!$K184>0,'2007 Survey responses'!$J188>0),'2011 Survey responses'!$K184,\"\")","v":""},"",null,null,{"$f":"IF(AND('2011 Survey responses'!$L184>0,'2007 Survey responses'!$I188>0),'2007 Survey responses'!$I188,\"\")","v":""},{"$f":"IF(AND('2011 Survey responses'!$L184>0,'2007 Survey responses'!$I188>0),'2011 Survey responses'!$L184,\"\")","v":""},"",null,null,{"$f":"IF(AND('2011 Survey responses'!$M184>0,'2007 Survey responses'!$K188>0),'2007 Survey responses'!$K188,\"\")","v":""},{"$f":"IF(AND('2011 Survey responses'!$M184>0,'2007 Survey responses'!$K188>0),'2011 Survey responses'!$M184,\"\")","v":""},"",null,null,{"$f":"IF('2007 Survey responses'!$B188>0,IF(AND('2011 Survey responses'!T184>0,'2007 Survey responses'!L188>0),'2007 Survey responses'!L188,\"\"),\"\")","v":""},{"$f":"IF('2007 Survey responses'!$B188>0,IF(AND('2011 Survey responses'!T184>0,'2007 Survey responses'!L188>0),'2011 Survey responses'!T184,\"\"),\"\")","v":""},"",null,null,{"$f":"IF(AND('2011 Survey responses'!$U184>0,'2007 Survey responses'!$M188>0),'2007 Survey responses'!$M188,\"\")","v":""},{"$f":"IF(AND('2011 Survey responses'!$U184>0,'2007 Survey responses'!$M188>0),'2011 Survey responses'!$U184,\"\")","v":""},""]
["United Republic of Tanzania",{"$f":"IF(AND('2011 Survey responses'!$F185>0,'2007 Survey responses'!E189>0),'2007 Survey responses'!E189,\"\")","v":""},{"$f":"IF(AND('2011 Survey responses'!$F185>0,'2007 Survey responses'!E189>0),'2011 Survey responses'!$F185,\"\")","v":""},"",null,null,{"$f":"IF(AND('2011 Survey responses'!$G185>0,'2007 Survey responses'!$F189>0),'2007 Survey responses'!$F189,\"\")","v":""},{"$f":"IF(AND('2011 Survey responses'!$G185>0,'2007 Survey responses'!$F189>0),'2011 Survey responses'!$G185,\"\")","v":""},"",null,null,{"$f":"IF(AND('2011 Survey responses'!$H185>0,'2007 Survey responses'!$F189>0),'2007 Survey responses'!$F189,\"\")","v":""},{"$f":"IF(AND('2011 Survey responses'!$H185>0,'2007 Survey responses'!$F189>0),'2011 Survey responses'!$H185,\"\")","v":""},"",null,null,{"$f":"IF(AND(Question_grouping!O185>0,'2007 Survey responses'!$F189>0),'2007 Survey responses'!$F189,\"\")","v":""},{"$f":"IF(AND(Question_grouping!O185>0,'2007 Survey responses'!$F189>0),Question_grouping!O185,\"\")","v":""},"",null,null,{"$f":"IF(AND('2011 Survey responses'!$B185>0,'2007 Survey responses'!$C189>0),'2007 Survey responses'!$C189,\"\")","v":""},{"$f":"IF(AND('2011 Survey responses'!$B185>0,'2007 Survey responses'!$C189>0),'2011 Survey responses'!$B185,\"\")","v":""},"",null,null,{"$f":"IF(AND('2011 Survey responses'!$D185>0,'2007 Survey responses'!$D189>0),'2007 Survey responses'!$D189,\"\")","v":""},{"$f":"IF(AND('2011 Survey responses'!$D185>0,'2007 Survey responses'!$D189>0),'2011 Survey responses'!$D185,\"\")","v":""},"",null,null,{"$f":"IF(AND('2011 Survey responses'!$J185>0,'2007 Survey responses'!$H189>0),'2007 Survey responses'!$H189,\"\")","v":""},{"$f":"IF(AND('2011 Survey responses'!$J185>0,'2007 Survey responses'!$H189>0),'2011 Survey responses'!$J185,\"\")","v":""},"",null,null,{"$f":"IF(AND('2011 Survey responses'!$K185>0,'2007 Survey responses'!$J189>0),'2007 Survey responses'!$J189,\"\")","v":""},{"$f":"IF(AND('2011 Survey responses'!$K185>0,'2007 Survey responses'!$J189>0),'2011 Survey responses'!$K185,\"\")","v":""},"",null,null,{"$f":"IF(AND('2011 Survey responses'!$L185>0,'2007 Survey responses'!$I189>0),'2007 Survey responses'!$I189,\"\")","v":""},{"$f":"IF(AND('2011 Survey responses'!$L185>0,'2007 Survey responses'!$I189>0),'2011 Survey responses'!$L185,\"\")","v":""},"",null,null,{"$f":"IF(AND('2011 Survey responses'!$M185>0,'2007 Survey responses'!$K189>0),'2007 Survey responses'!$K189,\"\")","v":""},{"$f":"IF(AND('2011 Survey responses'!$M185>0,'2007 Survey responses'!$K189>0),'2011 Survey responses'!$M185,\"\")","v":""},"",null,null,{"$f":"IF('2007 Survey responses'!$B189>0,IF(AND('2011 Survey responses'!T185>0,'2007 Survey responses'!L189>0),'2007 Survey responses'!L189,\"\"),\"\")","v":""},{"$f":"IF('2007 Survey responses'!$B189>0,IF(AND('2011 Survey responses'!T185>0,'2007 Survey responses'!L189>0),'2011 Survey responses'!T185,\"\"),\"\")","v":""},"",null,null,{"$f":"IF(AND('2011 Survey responses'!$U185>0,'2007 Survey responses'!$M189>0),'2007 Survey responses'!$M189,\"\")","v":""},{"$f":"IF(AND('2011 Survey responses'!$U185>0,'2007 Survey responses'!$M189>0),'2011 Survey responses'!$U185,\"\")","v":""},""]
["United States of America",{"$f":"IF(AND('2011 Survey responses'!$F186>0,'2007 Survey responses'!E190>0),'2007 Survey responses'!E190,\"\")","v":""},{"$f":"IF(AND('2011 Survey responses'!$F186>0,'2007 Survey responses'!E190>0),'2011 Survey responses'!$F186,\"\")","v":""},"",null,null,{"$f":"IF(AND('2011 Survey responses'!$G186>0,'2007 Survey responses'!$F190>0),'2007 Survey responses'!$F190,\"\")","v":""},{"$f":"IF(AND('2011 Survey responses'!$G186>0,'2007 Survey responses'!$F190>0),'2011 Survey responses'!$G186,\"\")","v":""},"",null,null,{"$f":"IF(AND('2011 Survey responses'!$H186>0,'2007 Survey responses'!$F190>0),'2007 Survey responses'!$F190,\"\")","v":""},{"$f":"IF(AND('2011 Survey responses'!$H186>0,'2007 Survey responses'!$F190>0),'2011 Survey responses'!$H186,\"\")","v":""},"",null,null,{"$f":"IF(AND(Question_grouping!O186>0,'2007 Survey responses'!$F190>0),'2007 Survey responses'!$F190,\"\")","v":4},{"$f":"IF(AND(Question_grouping!O186>0,'2007 Survey responses'!$F190>0),Question_grouping!O186,\"\")","v":""},"",null,null,{"$f":"IF(AND('2011 Survey responses'!$B186>0,'2007 Survey responses'!$C190>0),'2007 Survey responses'!$C190,\"\")","v":""},{"$f":"IF(AND('2011 Survey responses'!$B186>0,'2007 Survey responses'!$C190>0),'2011 Survey responses'!$B186,\"\")","v":""},"",null,null,{"$f":"IF(AND('2011 Survey responses'!$D186>0,'2007 Survey responses'!$D190>0),'2007 Survey responses'!$D190,\"\")","v":""},{"$f":"IF(AND('2011 Survey responses'!$D186>0,'2007 Survey responses'!$D190>0),'2011 Survey responses'!$D186,\"\")","v":""},"",null,null,{"$f":"IF(AND('2011 Survey responses'!$J186>0,'2007 Survey responses'!$H190>0),'2007 Survey responses'!$H190,\"\")","v":""},{"$f":"IF(AND('2011 Survey responses'!$J186>0,'2007 Survey responses'!$H190>0),'2011 Survey responses'!$J186,\"\")","v":""},"",null,null,{"$f":"IF(AND('2011 Survey responses'!$K186>0,'2007 Survey responses'!$J190>0),'2007 Survey responses'!$J190,\"\")","v":""},{"$f":"IF(AND('2011 Survey responses'!$K186>0,'2007 Survey responses'!$J190>0),'2011 Survey responses'!$K186,\"\")","v":""},"",null,null,{"$f":"IF(AND('2011 Survey responses'!$L186>0,'2007 Survey responses'!$I190>0),'2007 Survey responses'!$I190,\"\")","v":""},{"$f":"IF(AND('2011 Survey responses'!$L186>0,'2007 Survey responses'!$I190>0),'2011 Survey responses'!$L186,\"\")","v":""},"",null,null,{"$f":"IF(AND('2011 Survey responses'!$M186>0,'2007 Survey responses'!$K190>0),'2007 Survey responses'!$K190,\"\")","v":""},{"$f":"IF(AND('2011 Survey responses'!$M186>0,'2007 Survey responses'!$K190>0),'2011 Survey responses'!$M186,\"\")","v":""},"",null,null,{"$f":"IF('2007 Survey responses'!$B190>0,IF(AND('2011 Survey responses'!T186>0,'2007 Survey responses'!L190>0),'2007 Survey responses'!L190,\"\"),\"\")","v":""},{"$f":"IF('2007 Survey responses'!$B190>0,IF(AND('2011 Survey responses'!T186>0,'2007 Survey responses'!L190>0),'2011 Survey responses'!T186,\"\"),\"\")","v":""},"",null,null,{"$f":"IF(AND('2011 Survey responses'!$U186>0,'2007 Survey responses'!$M190>0),'2007 Survey responses'!$M190,\"\")","v":""},{"$f":"IF(AND('2011 Survey responses'!$U186>0,'2007 Survey responses'!$M190>0),'2011 Survey responses'!$U186,\"\")","v":""},""]
["Uruguay",{"$f":"IF(AND('2011 Survey responses'!$F187>0,'2007 Survey responses'!E191>0),'2007 Survey responses'!E191,\"\")","v":""},{"$f":"IF(AND('2011 Survey responses'!$F187>0,'2007 Survey responses'!E191>0),'2011 Survey responses'!$F187,\"\")","v":""},"",null,null,{"$f":"IF(AND('2011 Survey responses'!$G187>0,'2007 Survey responses'!$F191>0),'2007 Survey responses'!$F191,\"\")","v":""},{"$f":"IF(AND('2011 Survey responses'!$G187>0,'2007 Survey responses'!$F191>0),'2011 Survey responses'!$G187,\"\")","v":""},"",null,null,{"$f":"IF(AND('2011 Survey responses'!$H187>0,'2007 Survey responses'!$F191>0),'2007 Survey responses'!$F191,\"\")","v":""},{"$f":"IF(AND('2011 Survey responses'!$H187>0,'2007 Survey responses'!$F191>0),'2011 Survey responses'!$H187,\"\")","v":""},"",null,null,{"$f":"IF(AND(Question_grouping!O187>0,'2007 Survey responses'!$F191>0),'2007 Survey responses'!$F191,\"\")","v":""},{"$f":"IF(AND(Question_grouping!O187>0,'2007 Survey responses'!$F191>0),Question_grouping!O187,\"\")","v":""},"",null,null,{"$f":"IF(AND('2011 Survey responses'!$B187>0,'2007 Survey responses'!$C191>0),'2007 Survey responses'!$C191,\"\")","v":2},{"$f":"IF(AND('2011 Survey responses'!$B187>0,'2007 Survey responses'!$C191>0),'2011 Survey responses'!$B187,\"\")","v":5},4,null,null,{"$f":"IF(AND('2011 Survey responses'!$D187>0,'2007 Survey responses'!$D191>0),'2007 Survey responses'!$D191,\"\")","v":4},{"$f":"IF(AND('2011 Survey responses'!$D187>0,'2007 Survey responses'!$D191>0),'2011 Survey responses'!$D187,\"\")","v":6},5,null,null,{"$f":"IF(AND('2011 Survey responses'!$J187>0,'2007 Survey responses'!$H191>0),'2007 Survey responses'!$H191,\"\")","v":""},{"$f":"IF(AND('2011 Survey responses'!$J187>0,'2007 Survey responses'!$H191>0),'2011 Survey responses'!$J187,\"\")","v":""},"",null,null,{"$f":"IF(AND('2011 Survey responses'!$K187>0,'2007 Survey responses'!$J191>0),'2007 Survey responses'!$J191,\"\")","v":""},{"$f":"IF(AND('2011 Survey responses'!$K187>0,'2007 Survey responses'!$J191>0),'2011 Survey responses'!$K187,\"\")","v":""},"",null,null,{"$f":"IF(AND('2011 Survey responses'!$L187>0,'2007 Survey responses'!$I191>0),'2007 Survey responses'!$I191,\"\")","v":""},{"$f":"IF(AND('2011 Survey responses'!$L187>0,'2007 Survey responses'!$I191>0),'2011 Survey responses'!$L187,\"\")","v":""},"",null,null,{"$f":"IF(AND('2011 Survey responses'!$M187>0,'2007 Survey responses'!$K191>0),'2007 Survey responses'!$K191,\"\")","v":""},{"$f":"IF(AND('2011 Survey responses'!$M187>0,'2007 Survey responses'!$K191>0),'2011 Survey responses'!$M187,\"\")","v":""},"",null,null,{"$f":"IF('2007 Survey responses'!$B191>0,IF(AND('2011 Survey responses'!T187>0,'2007 Survey responses'!L191>0),'2007 Survey responses'!L191,\"\"),\"\")","v":""},{"$f":"IF('2007 Survey responses'!$B191>0,IF(AND('2011 Survey responses'!T187>0,'2007 Survey responses'!L191>0),'2011 Survey responses'!T187,\"\"),\"\")","v":""},"",null,null,{"$f":"IF(AND('2011 Survey responses'!$U187>0,'2007 Survey responses'!$M191>0),'2007 Survey responses'!$M191,\"\")","v":""},{"$f":"IF(AND('2011 Survey responses'!$U187>0,'2007 Survey responses'!$M191>0),'2011 Survey responses'!$U187,\"\")","v":""},""]
["Uzbekistan",{"$f":"IF(AND('2011 Survey responses'!$F188>0,'2007 Survey responses'!E192>0),'2007 Survey responses'!E192,\"\")","v":1},{"$f":"IF(AND('2011 Survey responses'!$F188>0,'2007 Survey responses'!E192>0),'2011 Survey responses'!$F188,\"\")","v":3},3,null,null,{"$f":"IF(AND('2011 Survey responses'!$G188>0,'2007 Survey responses'!$F192>0),'2007 Survey responses'!$F192,\"\")","v":1},{"$f":"IF(AND('2011 Survey responses'!$G188>0,'2007 Survey responses'!$F192>0),'2011 Survey responses'!$G188,\"\")","v":5},4,null,null,{"$f":"IF(AND('2011 Survey responses'!$H188>0,'2007 Survey responses'!$F192>0),'2007 Survey responses'!$F192,\"\")","v":1},{"$f":"IF(AND('2011 Survey responses'!$H188>0,'2007 Survey responses'!$F192>0),'2011 Survey responses'!$H188,\"\")","v":4},4,null,null,{"$f":"IF(AND(Question_grouping!O188>0,'2007 Survey responses'!$F192>0),'2007 Survey responses'!$F192,\"\")","v":1},{"$f":"IF(AND(Question_grouping!O188>0,'2007 Survey responses'!$F192>0),Question_grouping!O188,\"\")","v":5},4,null,null,{"$f":"IF(AND('2011 Survey responses'!$B188>0,'2007 Survey responses'!$C192>0),'2007 Survey responses'!$C192,\"\")","v":2},{"$f":"IF(AND('2011 Survey responses'!$B188>0,'2007 Survey responses'!$C192>0),'2011 Survey responses'!$B188,\"\")","v":4},4,null,null,{"$f":"IF(AND('2011 Survey responses'!$D188>0,'2007 Survey responses'!$D192>0),'2007 Survey responses'!$D192,\"\")","v":3},{"$f":"IF(AND('2011 Survey responses'!$D188>0,'2007 Survey responses'!$D192>0),'2011 Survey responses'!$D188,\"\")","v":5},4,null,null,{"$f":"IF(AND('2011 Survey responses'!$J188>0,'2007 Survey responses'!$H192>0),'2007 Survey responses'!$H192,\"\")","v":2},{"$f":"IF(AND('2011 Survey responses'!$J188>0,'2007 Survey responses'!$H192>0),'2011 Survey responses'!$J188,\"\")","v":4},4,null,null,{"$f":"IF(AND('2011 Survey responses'!$K188>0,'2007 Survey responses'!$J192>0),'2007 Survey responses'!$J192,\"\")","v":1},{"$f":"IF(AND('2011 Survey responses'!$K188>0,'2007 Survey responses'!$J192>0),'2011 Survey responses'!$K188,\"\")","v":3},3,null,null,{"$f":"IF(AND('2011 Survey responses'!$L188>0,'2007 Survey responses'!$I192>0),'2007 Survey responses'!$I192,\"\")","v":1},{"$f":"IF(AND('2011 Survey responses'!$L188>0,'2007 Survey responses'!$I192>0),'2011 Survey responses'!$L188,\"\")","v":3},3,null,null,{"$f":"IF(AND('2011 Survey responses'!$M188>0,'2007 Survey responses'!$K192>0),'2007 Survey responses'!$K192,\"\")","v":3},{"$f":"IF(AND('2011 Survey responses'!$M188>0,'2007 Survey responses'!$K192>0),'2011 Survey responses'!$M188,\"\")","v":4},4,null,null,{"$f":"IF('2007 Survey responses'!$B192>0,IF(AND('2011 Survey responses'!T188>0,'2007 Survey responses'!L192>0),'2007 Survey responses'!L192,\"\"),\"\")","v":1},{"$f":"IF('2007 Survey responses'!$B192>0,IF(AND('2011 Survey responses'!T188>0,'2007 Survey responses'!L192>0),'2011 Survey responses'!T188,\"\"),\"\")","v":3},3,null,null,{"$f":"IF(AND('2011 Survey responses'!$U188>0,'2007 Survey responses'!$M192>0),'2007 Survey responses'!$M192,\"\")","v":2},{"$f":"IF(AND('2011 Survey responses'!$U188>0,'2007 Survey responses'!$M192>0),'2011 Survey responses'!$U188,\"\")","v":3},3]
["Vanuatu",{"$f":"IF(AND('2011 Survey responses'!$F189>0,'2007 Survey responses'!E193>0),'2007 Survey responses'!E193,\"\")","v":""},{"$f":"IF(AND('2011 Survey responses'!$F189>0,'2007 Survey responses'!E193>0),'2011 Survey responses'!$F189,\"\")","v":""},"",null,null,{"$f":"IF(AND('2011 Survey responses'!$G189>0,'2007 Survey responses'!$F193>0),'2007 Survey responses'!$F193,\"\")","v":""},{"$f":"IF(AND('2011 Survey responses'!$G189>0,'2007 Survey responses'!$F193>0),'2011 Survey responses'!$G189,\"\")","v":""},"",null,null,{"$f":"IF(AND('2011 Survey responses'!$H189>0,'2007 Survey responses'!$F193>0),'2007 Survey responses'!$F193,\"\")","v":""},{"$f":"IF(AND('2011 Survey responses'!$H189>0,'2007 Survey responses'!$F193>0),'2011 Survey responses'!$H189,\"\")","v":""},"",null,null,{"$f":"IF(AND(Question_grouping!O189>0,'2007 Survey responses'!$F193>0),'2007 Survey responses'!$F193,\"\")","v":""},{"$f":"IF(AND(Question_grouping!O189>0,'2007 Survey responses'!$F193>0),Question_grouping!O189,\"\")","v":""},"",null,null,{"$f":"IF(AND('2011 Survey responses'!$B189>0,'2007 Survey responses'!$C193>0),'2007 Survey responses'!$C193,\"\")","v":""},{"$f":"IF(AND('2011 Survey responses'!$B189>0,'2007 Survey responses'!$C193>0),'2011 Survey responses'!$B189,\"\")","v":""},"",null,null,{"$f":"IF(AND('2011 Survey responses'!$D189>0,'2007 Survey responses'!$D193>0),'2007 Survey responses'!$D193,\"\")","v":""},{"$f":"IF(AND('2011 Survey responses'!$D189>0,'2007 Survey responses'!$D193>0),'2011 Survey responses'!$D189,\"\")","v":""},"",null,null,{"$f":"IF(AND('2011 Survey responses'!$J189>0,'2007 Survey responses'!$H193>0),'2007 Survey responses'!$H193,\"\")","v":""},{"$f":"IF(AND('2011 Survey responses'!$J189>0,'2007 Survey responses'!$H193>0),'2011 Survey responses'!$J189,\"\")","v":""},"",null,null,{"$f":"IF(AND('2011 Survey responses'!$K189>0,'2007 Survey responses'!$J193>0),'2007 Survey responses'!$J193,\"\")","v":""},{"$f":"IF(AND('2011 Survey responses'!$K189>0,'2007 Survey responses'!$J193>0),'2011 Survey responses'!$K189,\"\")","v":""},"",null,null,{"$f":"IF(AND('2011 Survey responses'!$L189>0,'2007 Survey responses'!$I193>0),'2007 Survey responses'!$I193,\"\")","v":""},{"$f":"IF(AND('2011 Survey responses'!$L189>0,'2007 Survey responses'!$I193>0),'2011 Survey responses'!$L189,\"\")","v":""},"",null,null,{"$f":"IF(AND('2011 Survey responses'!$M189>0,'2007 Survey responses'!$K193>0),'2007 Survey responses'!$K193,\"\")","v":""},{"$f":"IF(AND('2011 Survey responses'!$M189>0,'2007 Survey responses'!$K193>0),'2011 Survey responses'!$M189,\"\")","v":""},"",null,null,{"$f":"IF('2007 Survey responses'!$B193>0,IF(AND('2011 Survey responses'!T189>0,'2007 Survey responses'!L193>0),'2007 Survey responses'!L193,\"\"),\"\")","v":""},{"$f":"IF('2007 Survey responses'!$B193>0,IF(AND('2011 Survey responses'!T189>0,'2007 Survey responses'!L193>0),'2011 Survey responses'!T189,\"\"),\"\")","v":""},"",null,null,{"$f":"IF(AND('2011 Survey responses'!$U189>0,'2007 Survey responses'!$M193>0),'2007 Survey responses'!$M193,\"\")","v":""},{"$f":"IF(AND('2011 Survey responses'!$U189>0,'2007 Survey responses'!$M193>0),'2011 Survey responses'!$U189,\"\")","v":""},""]
["Venezuela (Bolivarian Republic of)",{"$f":"IF(AND('2011 Survey responses'!$F190>0,'2007 Survey responses'!E194>0),'2007 Survey responses'!E194,\"\")","v":""},{"$f":"IF(AND('2011 Survey responses'!$F190>0,'2007 Survey responses'!E194>0),'2011 Survey responses'!$F190,\"\")","v":""},"",null,null,{"$f":"IF(AND('2011 Survey responses'!$G190>0,'2007 Survey responses'!$F194>0),'2007 Survey responses'!$F194,\"\")","v":""},{"$f":"IF(AND('2011 Survey responses'!$G190>0,'2007 Survey responses'!$F194>0),'2011 Survey responses'!$G190,\"\")","v":""},"",null,null,{"$f":"IF(AND('2011 Survey responses'!$H190>0,'2007 Survey responses'!$F194>0),'2007 Survey responses'!$F194,\"\")","v":""},{"$f":"IF(AND('2011 Survey responses'!$H190>0,'2007 Survey responses'!$F194>0),'2011 Survey responses'!$H190,\"\")","v":""},"",null,null,{"$f":"IF(AND(Question_grouping!O190>0,'2007 Survey responses'!$F194>0),'2007 Survey responses'!$F194,\"\")","v":""},{"$f":"IF(AND(Question_grouping!O190>0,'2007 Survey responses'!$F194>0),Question_grouping!O190,\"\")","v":""},"",null,null,{"$f":"IF(AND('2011 Survey responses'!$B190>0,'2007 Survey responses'!$C194>0),'2007 Survey responses'!$C194,\"\")","v":""},{"$f":"IF(AND('2011 Survey responses'!$B190>0,'2007 Survey responses'!$C194>0),'2011 Survey responses'!$B190,\"\")","v":""},"",null,null,{"$f":"IF(AND('2011 Survey responses'!$D190>0,'2007 Survey responses'!$D194>0),'2007 Survey responses'!$D194,\"\")","v":""},{"$f":"IF(AND('2011 Survey responses'!$D190>0,'2007 Survey responses'!$D194>0),'2011 Survey responses'!$D190,\"\")","v":""},"",null,null,{"$f":"IF(AND('2011 Survey responses'!$J190>0,'2007 Survey responses'!$H194>0),'2007 Survey responses'!$H194,\"\")","v":""},{"$f":"IF(AND('2011 Survey responses'!$J190>0,'2007 Survey responses'!$H194>0),'2011 Survey responses'!$J190,\"\")","v":""},"",null,null,{"$f":"IF(AND('2011 Survey responses'!$K190>0,'2007 Survey responses'!$J194>0),'2007 Survey responses'!$J194,\"\")","v":""},{"$f":"IF(AND('2011 Survey responses'!$K190>0,'2007 Survey responses'!$J194>0),'2011 Survey responses'!$K190,\"\")","v":""},"",null,null,{"$f":"IF(AND('2011 Survey responses'!$L190>0,'2007 Survey responses'!$I194>0),'2007 Survey responses'!$I194,\"\")","v":""},{"$f":"IF(AND('2011 Survey responses'!$L190>0,'2007 Survey responses'!$I194>0),'2011 Survey responses'!$L190,\"\")","v":""},"",null,null,{"$f":"IF(AND('2011 Survey responses'!$M190>0,'2007 Survey responses'!$K194>0),'2007 Survey responses'!$K194,\"\")","v":""},{"$f":"IF(AND('2011 Survey responses'!$M190>0,'2007 Survey responses'!$K194>0),'2011 Survey responses'!$M190,\"\")","v":""},"",null,null,{"$f":"IF('2007 Survey responses'!$B194>0,IF(AND('2011 Survey responses'!T190>0,'2007 Survey responses'!L194>0),'2007 Survey responses'!L194,\"\"),\"\")","v":""},{"$f":"IF('2007 Survey responses'!$B194>0,IF(AND('2011 Survey responses'!T190>0,'2007 Survey responses'!L194>0),'2011 Survey responses'!T190,\"\"),\"\")","v":""},"",null,null,{"$f":"IF(AND('2011 Survey responses'!$U190>0,'2007 Survey responses'!$M194>0),'2007 Survey responses'!$M194,\"\")","v":""},{"$f":"IF(AND('2011 Survey responses'!$U190>0,'2007 Survey responses'!$M194>0),'2011 Survey responses'!$U190,\"\")","v":""},""]
["Viet Nam",{"$f":"IF(AND('2011 Survey responses'!$F191>0,'2007 Survey responses'!E195>0),'2007 Survey responses'!E195,\"\")","v":4},{"$f":"IF(AND('2011 Survey responses'!$F191>0,'2007 Survey responses'!E195>0),'2011 Survey responses'!$F191,\"\")","v":4},4,null,null,{"$f":"IF(AND('2011 Survey responses'!$G191>0,'2007 Survey responses'!$F195>0),'2007 Survey responses'!$F195,\"\")","v":4},{"$f":"IF(AND('2011 Survey responses'!$G191>0,'2007 Survey responses'!$F195>0),'2011 Survey responses'!$G191,\"\")","v":2},2,null,null,{"$f":"IF(AND('2011 Survey responses'!$H191>0,'2007 Survey responses'!$F195>0),'2007 Survey responses'!$F195,\"\")","v":4},{"$f":"IF(AND('2011 Survey responses'!$H191>0,'2007 Survey responses'!$F195>0),'2011 Survey responses'!$H191,\"\")","v":2},2,null,null,{"$f":"IF(AND(Question_grouping!O191>0,'2007 Survey responses'!$F195>0),'2007 Survey responses'!$F195,\"\")","v":4},{"$f":"IF(AND(Question_grouping!O191>0,'2007 Survey responses'!$F195>0),Question_grouping!O191,\"\")","v":2},2,null,null,{"$f":"IF(AND('2011 Survey responses'!$B191>0,'2007 Survey responses'!$C195>0),'2007 Survey responses'!$C195,\"\")","v":4},{"$f":"IF(AND('2011 Survey responses'!$B191>0,'2007 Survey responses'!$C195>0),'2011 Survey responses'!$B191,\"\")","v":5},4,null,null,{"$f":"IF(AND('2011 Survey responses'!$D191>0,'2007 Survey responses'!$D195>0),'2007 Survey responses'!$D195,\"\")","v":4},{"$f":"IF(AND('2011 Survey responses'!$D191>0,'2007 Survey responses'!$D195>0),'2011 Survey responses'!$D191,\"\")","v":5},4,null,null,{"$f":"IF(AND('2011 Survey responses'!$J191>0,'2007 Survey responses'!$H195>0),'2007 Survey responses'!$H195,\"\")","v":4},{"$f":"IF(AND('2011 Survey responses'!$J191>0,'2007 Survey responses'!$H195>0),'2011 Survey responses'!$J191,\"\")","v":2},2,null,null,{"$f":"IF(AND('2011 Survey responses'!$K191>0,'2007 Survey responses'!$J195>0),'2007 Survey responses'!$J195,\"\")","v":4},{"$f":"IF(AND('2011 Survey responses'!$K191>0,'2007 Survey responses'!$J195>0),'2011 Survey responses'!$K191,\"\")","v":2},2,null,null,{"$f":"IF(AND('2011 Survey responses'!$L191>0,'2007 Survey responses'!$I195>0),'2007 Survey responses'!$I195,\"\")","v":4},{"$f":"IF(AND('2011 Survey responses'!$L191>0,'2007 Survey responses'!$I195>0),'2011 Survey responses'!$L191,\"\")","v":2},2,null,null,{"$f":"IF(AND('2011 Survey responses'!$M191>0,'2007 Survey responses'!$K195>0),'2007 Survey responses'!$K195,\"\")","v":4},{"$f":"IF(AND('2011 Survey responses'!$M191>0,'2007 Survey responses'!$K195>0),'2011 Survey responses'!$M191,\"\")","v":2},2,null,null,{"$f":"IF('2007 Survey responses'!$B195>0,IF(AND('2011 Survey responses'!T191>0,'2007 Survey responses'!L195>0),'2007 Survey responses'!L195,\"\"),\"\")","v":4},{"$f":"IF('2007 Survey responses'!$B195>0,IF(AND('2011 Survey responses'!T191>0,'2007 Survey responses'!L195>0),'2011 Survey responses'!T191,\"\"),\"\")","v":2},2,null,null,{"$f":"IF(AND('2011 Survey responses'!$U191>0,'2007 Survey responses'!$M195>0),'2007 Survey responses'!$M195,\"\")","v":4},{"$f":"IF(AND('2011 Survey responses'!$U191>0,'2007 Survey responses'!$M195>0),'2011 Survey responses'!$U191,\"\")","v":2},2]
["Yemen",{"$f":"IF(AND('2011 Survey responses'!$F192>0,'2007 Survey responses'!E196>0),'2007 Survey responses'!E196,\"\")","v":""},{"$f":"IF(AND('2011 Survey responses'!$F192>0,'2007 Survey responses'!E196>0),'2011 Survey responses'!$F192,\"\")","v":""},"",null,null,{"$f":"IF(AND('2011 Survey responses'!$G192>0,'2007 Survey responses'!$F196>0),'2007 Survey responses'!$F196,\"\")","v":""},{"$f":"IF(AND('2011 Survey responses'!$G192>0,'2007 Survey responses'!$F196>0),'2011 Survey responses'!$G192,\"\")","v":""},"",null,null,{"$f":"IF(AND('2011 Survey responses'!$H192>0,'2007 Survey responses'!$F196>0),'2007 Survey responses'!$F196,\"\")","v":""},{"$f":"IF(AND('2011 Survey responses'!$H192>0,'2007 Survey responses'!$F196>0),'2011 Survey responses'!$H192,\"\")","v":""},"",null,null,{"$f":"IF(AND(Question_grouping!O192>0,'2007 Survey responses'!$F196>0),'2007 Survey responses'!$F196,\"\")","v":""},{"$f":"IF(AND(Question_grouping!O192>0,'2007 Survey responses'!$F196>0),Question_grouping!O192,\"\")","v":""},"",null,null,{"$f":"IF(AND('2011 Survey responses'!$B192>0,'2007 Survey responses'!$C196>0),'2007 Survey responses'!$C196,\"\")","v":""},{"$f":"IF(AND('2011 Survey responses'!$B192>0,'2007 Survey responses'!$C196>0),'2011 Survey responses'!$B192,\"\")","v":""},"",null,null,{"$f":"IF(AND('2011 Survey responses'!$D192>0,'2007 Survey responses'!$D196>0),'2007 Survey responses'!$D196,\"\")","v":""},{"$f":"IF(AND('2011 Survey responses'!$D192>0,'2007 Survey responses'!$D196>0),'2011 Survey responses'!$D192,\"\")","v":""},"",null,null,{"$f":"IF(AND('2011 Survey responses'!$J192>0,'2007 Survey responses'!$H196>0),'2007 Survey responses'!$H196,\"\")","v":""},{"$f":"IF(AND('2011 Survey responses'!$J192>0,'2007 Survey responses'!$H196>0),'2011 Survey responses'!$J192,\"\")","v":""},"",null,null,{"$f":"IF(AND('2011 Survey responses'!$K192>0,'2007 Survey responses'!$J196>0),'2007 Survey responses'!$J196,\"\")","v":""},{"$f":"IF(AND('2011 Survey responses'!$K192>0,'2007 Survey responses'!$J196>0),'2011 Survey responses'!$K192,\"\")","v":""},"",null,null,{"$f":"IF(AND('2011 Survey responses'!$L192>0,'2007 Survey responses'!$I196>0),'2007 Survey responses'!$I196,\"\")","v":""},{"$f":"IF(AND('2011 Survey responses'!$L192>0,'2007 Survey responses'!$I196>0),'2011 Survey responses'!$L192,\"\")","v":""},"",null,null,{"$f":"IF(AND('2011 Survey responses'!$M192>0,'2007 Survey responses'!$K196>0),'2007 Survey responses'!$K196,\"\")","v":""},{"$f":"IF(AND('2011 Survey responses'!$M192>0,'2007 Survey responses'!$K196>0),'2011 Survey responses'!$M192,\"\")","v":""},"",null,null,{"$f":"IF('2007 Survey responses'!$B196>0,IF(AND('2011 Survey responses'!T192>0,'2007 Survey responses'!L196>0),'2007 Survey responses'!L196,\"\"),\"\")","v":""},{"$f":"IF('2007 Survey responses'!$B196>0,IF(AND('2011 Survey responses'!T192>0,'2007 Survey responses'!L196>0),'2011 Survey responses'!T192,\"\"),\"\")","v":""},"",null,null,{"$f":"IF(AND('2011 Survey responses'!$U192>0,'2007 Survey responses'!$M196>0),'2007 Survey responses'!$M196,\"\")","v":""},{"$f":"IF(AND('2011 Survey responses'!$U192>0,'2007 Survey responses'!$M196>0),'2011 Survey responses'!$U192,\"\")","v":""},""]
["Zambia",{"$f":"IF(AND('2011 Survey responses'!$F193>0,'2007 Survey responses'!E197>0),'2007 Survey responses'!E197,\"\")","v":2},{"$f":"IF(AND('2011 Survey responses'!$F193>0,'2007 Survey responses'!E197>0),'2011 Survey responses'!$F193,\"\")","v":3},3,null,null,{"$f":"IF(AND('2011 Survey responses'!$G193>0,'2007 Survey responses'!$F197>0),'2007 Survey responses'!$F197,\"\")","v":1},{"$f":"IF(AND('2011 Survey responses'!$G193>0,'2007 Survey responses'!$F197>0),'2011 Survey responses'!$G193,\"\")","v":1},1,null,null,{"$f":"IF(AND('2011 Survey responses'!$H193>0,'2007 Survey responses'!$F197>0),'2007 Survey responses'!$F197,\"\")","v":1},{"$f":"IF(AND('2011 Survey responses'!$H193>0,'2007 Survey responses'!$F197>0),'2011 Survey responses'!$H193,\"\")","v":3},3,null,null,{"$f":"IF(AND(Question_grouping!O193>0,'2007 Survey responses'!$F197>0),'2007 Survey responses'!$F197,\"\")","v":1},{"$f":"IF(AND(Question_grouping!O193>0,'2007 Survey responses'!$F197>0),Question_grouping!O193,\"\")","v":3},3,null,null,{"$f":"IF(AND('2011 Survey responses'!$B193>0,'2007 Survey responses'!$C197>0),'2007 Survey responses'!$C197,\"\")","v":4},{"$f":"IF(AND('2011 Survey responses'!$B193>0,'2007 Survey responses'!$C197>0),'2011 Survey responses'!$B193,\"\")","v":4},4,null,null,{"$f":"IF(AND('2011 Survey responses'!$D193>0,'2007 Survey responses'!$D197>0),'2007 Survey responses'!$D197,\"\")","v":4},{"$f":"IF(AND('2011 Survey responses'!$D193>0,'2007 Survey responses'!$D197>0),'2011 Survey responses'!$D193,\"\")","v":3},3,null,null,{"$f":"IF(AND('2011 Survey responses'!$J193>0,'2007 Survey responses'!$H197>0),'2007 Survey responses'!$H197,\"\")","v":4},{"$f":"IF(AND('2011 Survey responses'!$J193>0,'2007 Survey responses'!$H197>0),'2011 Survey responses'!$J193,\"\")","v":3},3,null,null,{"$f":"IF(AND('2011 Survey responses'!$K193>0,'2007 Survey responses'!$J197>0),'2007 Survey responses'!$J197,\"\")","v":""},{"$f":"IF(AND('2011 Survey responses'!$K193>0,'2007 Survey responses'!$J197>0),'2011 Survey responses'!$K193,\"\")","v":""},"",null,null,{"$f":"IF(AND('2011 Survey responses'!$L193>0,'2007 Survey responses'!$I197>0),'2007 Survey responses'!$I197,\"\")","v":4},{"$f":"IF(AND('2011 Survey responses'!$L193>0,'2007 Survey responses'!$I197>0),'2011 Survey responses'!$L193,\"\")","v":4},4,null,null,{"$f":"IF(AND('2011 Survey responses'!$M193>0,'2007 Survey responses'!$K197>0),'2007 Survey responses'!$K197,\"\")","v":4},{"$f":"IF(AND('2011 Survey responses'!$M193>0,'2007 Survey responses'!$K197>0),'2011 Survey responses'!$M193,\"\")","v":4},4,null,null,{"$f":"IF('2007 Survey responses'!$B197>0,IF(AND('2011 Survey responses'!T193>0,'2007 Survey responses'!L197>0),'2007 Survey responses'!L197,\"\"),\"\")","v":""},{"$f":"IF('2007 Survey responses'!$B197>0,IF(AND('2011 Survey responses'!T193>0,'2007 Survey responses'!L197>0),'2011 Survey responses'!T193,\"\"),\"\")","v":""},"",null,null,{"$f":"IF(AND('2011 Survey responses'!$U193>0,'2007 Survey responses'!$M197>0),'2007 Survey responses'!$M197,\"\")","v":""},{"$f":"IF(AND('2011 Survey responses'!$U193>0,'2007 Survey responses'!$M197>0),'2011 Survey responses'!$U193,\"\")","v":""},""]
["Zimbabwe",{"$f":"IF(AND('2011 Survey responses'!$F194>0,'2007 Survey responses'!E198>0),'2007 Survey responses'!E198,\"\")","v":4},{"$f":"IF(AND('2011 Survey responses'!$F194>0,'2007 Survey responses'!E198>0),'2011 Survey responses'!$F194,\"\")","v":6},5,null,null,{"$f":"IF(AND('2011 Survey responses'!$G194>0,'2007 Survey responses'!$F198>0),'2007 Survey responses'!$F198,\"\")","v":1},{"$f":"IF(AND('2011 Survey responses'!$G194>0,'2007 Survey responses'!$F198>0),'2011 Survey responses'!$G194,\"\")","v":2},2,null,null,{"$f":"IF(AND('2011 Survey responses'!$H194>0,'2007 Survey responses'!$F198>0),'2007 Survey responses'!$F198,\"\")","v":1},{"$f":"IF(AND('2011 Survey responses'!$H194>0,'2007 Survey responses'!$F198>0),'2011 Survey responses'!$H194,\"\")","v":2},2,null,null,{"$f":"IF(AND(Question_grouping!O194>0,'2007 Survey responses'!$F198>0),'2007 Survey responses'!$F198,\"\")","v":1},{"$f":"IF(AND(Question_grouping!O194>0,'2007 Survey responses'!$F198>0),Question_grouping!O194,\"\")","v":2},2,null,null,{"$f":"IF(AND('2011 Survey responses'!$B194>0,'2007 Survey responses'!$C198>0),'2007 Survey responses'!$C198,\"\")","v":4},{"$f":"IF(AND('2011 Survey responses'!$B194>0,'2007 Survey responses'!$C198>0),'2011 Survey responses'!$B194,\"\")","v":2},2,null,null,{"$f":"IF(AND('2011 Survey responses'!$D194>0,'2007 Survey responses'!$D198>0),'2007 Survey responses'!$D198,\"\")","v":4},{"$f":"IF(AND('2011 Survey responses'!$D194>0,'2007 Survey responses'!$D198>0),'2011 Survey responses'!$D194,\"\")","v":6},5,null,null,{"$f":"IF(AND('2011 Survey responses'!$J194>0,'2007 Survey responses'!$H198>0),'2007 Survey responses'!$H198,\"\")","v":""},{"$f":"IF(AND('2011 Survey responses'!$J194>0,'2007 Survey responses'!$H198>0),'2011 Survey responses'!$J194,\"\")","v":""},"",null,null,{"$f":"IF(AND('2011 Survey responses'!$K194>0,'2007 Survey responses'!$J198>0),'2007 Survey responses'!$J198,\"\")","v":""},{"$f":"IF(AND('2011 Survey responses'!$K194>0,'2007 Survey responses'!$J198>0),'2011 Survey responses'!$K194,\"\")","v":""},"",null,null,{"$f":"IF(AND('2011 Survey responses'!$L194>0,'2007 Survey responses'!$I198>0),'2007 Survey responses'!$I198,\"\")","v":""},{"$f":"IF(AND('2011 Survey responses'!$L194>0,'2007 Survey responses'!$I198>0),'2011 Survey responses'!$L194,\"\")","v":""},"",null,null,{"$f":"IF(AND('2011 Survey responses'!$M194>0,'2007 Survey responses'!$K198>0),'2007 Survey responses'!$K198,\"\")","v":""},{"$f":"IF(AND('2011 Survey responses'!$M194>0,'2007 Survey responses'!$K198>0),'2011 Survey responses'!$M194,\"\")","v":""},"",null,null,{"$f":"IF('2007 Survey responses'!$B198>0,IF(AND('2011 Survey responses'!T194>0,'2007 Survey responses'!L198>0),'2007 Survey responses'!L198,\"\"),\"\")","v":""},{"$f":"IF('2007 Survey responses'!$B198>0,IF(AND('2011 Survey responses'!T194>0,'2007 Survey responses'!L198>0),'2011 Survey responses'!T194,\"\"),\"\")","v":""},"",null,null,{"$f":"IF(AND('2011 Survey responses'!$U194>0,'2007 Survey responses'!$M198>0),'2007 Survey responses'!$M198,\"\")","v":""},{"$f":"IF(AND('2011 Survey responses'!$U194>0,'2007 Survey responses'!$M198>0),'2011 Survey responses'!$U194,\"\")","v":""},""]
[]
["Total comparable responses",{"$f":"COUNTIF(B2:B193,\">0\")","v":65},{"$f":"COUNTIF(C2:C193,\">0\")","v":65},{"$f":"COUNTIF(D2:D193,\">0\")","v":65},null,null,{"$f":"COUNTIF(G2:G193,\">0\")","v":56},{"$f":"COUNTIF(H2:H193,\">0\")","v":56},{"$f":"COUNTIF(I2:I193,\">0\")","v":56},null,null,{"$f":"COUNTIF(L2:L193,\">0\")","v":57},{"$f":"COUNTIF(M2:M193,\">0\")","v":57},{"$f":"COUNTIF(N2:N193,\">0\")","v":57},null,null,{"$f":"COUNTIF(Q2:Q193,\">0\")","v":86},{"$f":"COUNTIF(R2:R193,\">0\")","v":57},{"$f":"COUNTIF(S2:S193,\">0\")","v":57},null,null,{"$f":"COUNTIF(V2:V193,\">0\")","v":69},{"$f":"COUNTIF(W2:W193,\">0\")","v":69},{"$f":"COUNTIF(X2:X193,\">0\")","v":69},null,null,{"$f":"COUNTIF(AA2:AA193,\">0\")","v":68},{"$f":"COUNTIF(AB2:AB193,\">0\")","v":68},{"$f":"COUNTIF(AC2:AC193,\">0\")","v":68},null,null,{"$f":"COUNTIF(AF2:AF193,\">0\")","v":49},{"$f":"COUNTIF(AG2:AG193,\">0\")","v":49},{"$f":"COUNTIF(AH2:AH193,\">0\")","v":49},null,null,{"$f":"COUNTIF(AK2:AK193,\">0\")","v":37},{"$f":"COUNTIF(AL2:AL193,\">0\")","v":37},{"$f":"COUNTIF(AM2:AM193,\">0\")","v":37},null,null,{"$f":"COUNTIF(AP2:AP193,\">0\")","v":54},{"$f":"COUNTIF(AQ2:AQ193,\">0\")","v":54},{"$f":"COUNTIF(AR2:AR193,\">0\")","v":54},null,null,{"$f":"COUNTIF(AU2:AU193,\">0\")","v":45},{"$f":"COUNTIF(AV2:AV193,\">0\")","v":45},{"$f":"COUNTIF(AW2:AW193,\">0\")","v":45},null,null,{"$f":"COUNTIF(AZ2:AZ193,\">0\")","v":47},{"$f":"COUNTIF(BA2:BA193,\">0\")","v":47},{"$f":"COUNTIF(BB2:BB193,\">0\")","v":47},null,null,{"$f":"COUNTIF(BE2:BE193,\">0\")","v":51},{"$f":"COUNTIF(BF2:BF193,\">0\")","v":51},{"$f":"COUNTIF(BG2:BG193,\">0\")","v":51}]
[]
["HDI: Low HD - average",{"$f":"AVERAGEIFS(B$2:B$193,B$2:B$193,\">0\",ID_HDIG,1)","v":2.6363636363636362},{"$f":"AVERAGEIFS(C$2:C$193,C$2:C$193,\">0\",ID_HDIG,1)","v":3.0909090909090908},{"$f":"AVERAGEIFS(D$2:D$193,D$2:D$193,\">0\",ID_HDIG,1)","v":2.9090909090909092},null,null,{"$f":"AVERAGEIFS(G$2:G$193,G$2:G$193,\">0\",ID_HDIG,1)","v":1.625},{"$f":"AVERAGEIFS(H$2:H$193,H$2:H$193,\">0\",ID_HDIG,1)","v":1.5},{"$f":"AVERAGEIFS(I$2:I$193,I$2:I$193,\">0\",ID_HDIG,1)","v":1.5},null,null,{"$f":"AVERAGEIFS(L$2:L$193,L$2:L$193,\">0\",ID_HDIG,1)","v":1.7777777777777777},{"$f":"AVERAGEIFS(M$2:M$193,M$2:M$193,\">0\",ID_HDIG,1)","v":2.2222222222222223},{"$f":"AVERAGEIFS(N$2:N$193,N$2:N$193,\">0\",ID_HDIG,1)","v":2.1111111111111112},null,null,{"$f":"AVERAGEIFS(Q$2:Q$193,Q$2:Q$193,\">0\",ID_HDIG,1)","v":1.7142857142857142},{"$f":"AVERAGEIFS(R$2:R$193,R$2:R$193,\">0\",ID_HDIG,1)","v":2.2222222222222223},{"$f":"AVERAGEIFS(S$2:S$193,S$2:S$193,\">0\",ID_HDIG,1)","v":2.1111111111111112},null,null,{"$f":"AVERAGEIFS(V$2:V$193,V$2:V$193,\">0\",ID_HDIG,1)","v":3.3},{"$f":"AVERAGEIFS(W$2:W$193,W$2:W$193,\">0\",ID_HDIG,1)","v":3.4},{"$f":"AVERAGEIFS(X$2:X$193,X$2:X$193,\">0\",ID_HDIG,1)","v":3.2},null,null,{"$f":"AVERAGEIFS(AA$2:AA$193,AA$2:AA$193,\">0\",ID_HDIG,1)","v":4.1111111111111107},{"$f":"AVERAGEIFS(AB$2:AB$193,AB$2:AB$193,\">0\",ID_HDIG,1)","v":3.6666666666666665},{"$f":"AVERAGEIFS(AC$2:AC$193,AC$2:AC$193,\">0\",ID_HDIG,1)","v":3.4444444444444446},null,null,{"$f":"AVERAGEIFS(AF$2:AF$193,AF$2:AF$193,\">0\",ID_HDIG,1)","v":2.6666666666666665},{"$f":"AVERAGEIFS(AG$2:AG$193,AG$2:AG$193,\">0\",ID_HDIG,1)","v":3.8888888888888888},{"$f":"AVERAGEIFS(AH$2:AH$193,AH$2:AH$193,\">0\",ID_HDIG,1)","v":3.4444444444444446},null,null,{"$f":"AVERAGEIFS(AK$2:AK$193,AK$2:AK$193,\">0\",ID_HDIG,1)","v":2.4},{"$f":"AVERAGEIFS(AL$2:AL$193,AL$2:AL$193,\">0\",ID_HDIG,1)","v":3.6},{"$f":"AVERAGEIFS(AM$2:AM$193,AM$2:AM$193,\">0\",ID_HDIG,1)","v":3.4},null,null,{"$f":"AVERAGEIFS(AP$2:AP$193,AP$2:AP$193,\">0\",ID_HDIG,1)","v":2.5555555555555554},{"$f":"AVERAGEIFS(AQ$2:AQ$193,AQ$2:AQ$193,\">0\",ID_HDIG,1)","v":2.6666666666666665},{"$f":"AVERAGEIFS(AR$2:AR$193,AR$2:AR$193,\">0\",ID_HDIG,1)","v":2.5555555555555554},null,null,{"$f":"AVERAGEIFS(AU$2:AU$193,AU$2:AU$193,\">0\",ID_HDIG,1)","v":3.875},{"$f":"AVERAGEIFS(AV$2:AV$193,AV$2:AV$193,\">0\",ID_HDIG,1)","v":3},{"$f":"AVERAGEIFS(AW$2:AW$193,AW$2:AW$193,\">0\",ID_HDIG,1)","v":2.875},null,null,{"$f":"AVERAGEIFS(AZ$2:AZ$193,AZ$2:AZ$193,\">0\",ID_HDIG,1)","v":2.1428571428571428},{"$f":"AVERAGEIFS(BA$2:BA$193,BA$2:BA$193,\">0\",ID_HDIG,1)","v":4.4285714285714288},{"$f":"AVERAGEIFS(BB$2:BB$193,BB$2:BB$193,\">0\",ID_HDIG,1)","v":3.7142857142857144},null,null,{"$f":"AVERAGEIFS(BE$2:BE$193,BE$2:BE$193,\">0\",ID_HDIG,1)","v":2.3333333333333335},{"$f":"AVERAGEIFS(BF$2:BF$193,BF$2:BF$193,\">0\",ID_HDIG,1)","v":4.333333333333333},{"$f":"AVERAGEIFS(BG$2:BG$193,BG$2:BG$193,\">0\",ID_HDIG,1)","v":3.6666666666666665}]
[]
["HDI: Medium HD - average",{"$f":"AVERAGEIFS(B$2:B$193,B$2:B$193,\">0\",ID_HDIG,2)","v":2.8947368421052633},{"$f":"AVERAGEIFS(C$2:C$193,C$2:C$193,\">0\",ID_HDIG,2)","v":3.3684210526315788},{"$f":"AVERAGEIFS(D$2:D$193,D$2:D$193,\">0\",ID_HDIG,2)","v":3.1052631578947367},null,null,{"$f":"AVERAGEIFS(G$2:G$193,G$2:G$193,\">0\",ID_HDIG,2)","v":2.6470588235294117},{"$f":"AVERAGEIFS(H$2:H$193,H$2:H$193,\">0\",ID_HDIG,2)","v":2.8235294117647061},{"$f":"AVERAGEIFS(I$2:I$193,I$2:I$193,\">0\",ID_HDIG,2)","v":2.5882352941176472},null,null,{"$f":"AVERAGEIFS(L$2:L$193,L$2:L$193,\">0\",ID_HDIG,2)","v":2.6470588235294117},{"$f":"AVERAGEIFS(M$2:M$193,M$2:M$193,\">0\",ID_HDIG,2)","v":2.8235294117647061},{"$f":"AVERAGEIFS(N$2:N$193,N$2:N$193,\">0\",ID_HDIG,2)","v":2.6470588235294117},null,null,{"$f":"AVERAGEIFS(Q$2:Q$193,Q$2:Q$193,\">0\",ID_HDIG,2)","v":2.4166666666666665},{"$f":"AVERAGEIFS(R$2:R$193,R$2:R$193,\">0\",ID_HDIG,2)","v":2.9411764705882355},{"$f":"AVERAGEIFS(S$2:S$193,S$2:S$193,\">0\",ID_HDIG,2)","v":2.7058823529411766},null,null,{"$f":"AVERAGEIFS(V$2:V$193,V$2:V$193,\">0\",ID_HDIG,2)","v":3.55},{"$f":"AVERAGEIFS(W$2:W$193,W$2:W$193,\">0\",ID_HDIG,2)","v":3.95},{"$f":"AVERAGEIFS(X$2:X$193,X$2:X$193,\">0\",ID_HDIG,2)","v":3.55},null,null,{"$f":"AVERAGEIFS(AA$2:AA$193,AA$2:AA$193,\">0\",ID_HDIG,2)","v":4.1500000000000004},{"$f":"AVERAGEIFS(AB$2:AB$193,AB$2:AB$193,\">0\",ID_HDIG,2)","v":3.85},{"$f":"AVERAGEIFS(AC$2:AC$193,AC$2:AC$193,\">0\",ID_HDIG,2)","v":3.4},null,null,{"$f":"AVERAGEIFS(AF$2:AF$193,AF$2:AF$193,\">0\",ID_HDIG,2)","v":3.2307692307692308},{"$f":"AVERAGEIFS(AG$2:AG$193,AG$2:AG$193,\">0\",ID_HDIG,2)","v":3.6923076923076925},{"$f":"AVERAGEIFS(AH$2:AH$193,AH$2:AH$193,\">0\",ID_HDIG,2)","v":3.3846153846153846},null,null,{"$f":"AVERAGEIFS(AK$2:AK$193,AK$2:AK$193,\">0\",ID_HDIG,2)","v":3.3636363636363638},{"$f":"AVERAGEIFS(AL$2:AL$193,AL$2:AL$193,\">0\",ID_HDIG,2)","v":3.5454545454545454},{"$f":"AVERAGEIFS(AM$2:AM$193,AM$2:AM$193,\">0\",ID_HDIG,2)","v":3.1818181818181817},null,null,{"$f":"AVERAGEIFS(AP$2:AP$193,AP$2:AP$193,\">0\",ID_HDIG,2)","v":3.5714285714285716},{"$f":"AVERAGEIFS(AQ$2:AQ$193,AQ$2:AQ$193,\">0\",ID_HDIG,2)","v":3.3571428571428572},{"$f":"AVERAGEIFS(AR$2:AR$193,AR$2:AR$193,\">0\",ID_HDIG,2)","v":3.1428571428571428},null,null,{"$f":"AVERAGEIFS(AU$2:AU$193,AU$2:AU$193,\">0\",ID_HDIG,2)","v":3.6363636363636362},{"$f":"AVERAGEIFS(AV$2:AV$193,AV$2:AV$193,\">0\",ID_HDIG,2)","v":3.3636363636363638},{"$f":"AVERAGEIFS(AW$2:AW$193,AW$2:AW$193,\">0\",ID_HDIG,2)","v":3.1818181818181817},null,null,{"$f":"AVERAGEIFS(AZ$2:AZ$193,AZ$2:AZ$193,\">0\",ID_HDIG,2)","v":3.1428571428571428},{"$f":"AVERAGEIFS(BA$2:BA$193,BA$2:BA$193,\">0\",ID_HDIG,2)","v":2.8571428571428572},{"$f":"AVERAGEIFS(BB$2:BB$193,BB$2:BB$193,\">0\",ID_HDIG,2)","v":2.7142857142857144},null,null,{"$f":"AVERAGEIFS(BE$2:BE$193,BE$2:BE$193,\">0\",ID_HDIG,2)","v":3.0666666666666669},{"$f":"AVERAGEIFS(BF$2:BF$193,BF$2:BF$193,\">0\",ID_HDIG,2)","v":2.6666666666666665},{"$f":"AVERAGEIFS(BG$2:BG$193,BG$2:BG$193,\">0\",ID_HDIG,2)","v":2.4666666666666668}]
[]
["HDI: High HD - average",{"$f":"AVERAGEIFS(B$2:B$193,B$2:B$193,\">0\",ID_HDIG,3)","v":2.7222222222222223},{"$f":"AVERAGEIFS(C$2:C$193,C$2:C$193,\">0\",ID_HDIG,3)","v":3.5555555555555554},{"$f":"AVERAGEIFS(D$2:D$193,D$2:D$193,\">0\",ID_HDIG,3)","v":3.2222222222222223},null,null,{"$f":"AVERAGEIFS(G$2:G$193,G$2:G$193,\">0\",ID_HDIG,3)","v":2.0588235294117645},{"$f":"AVERAGEIFS(H$2:H$193,H$2:H$193,\">0\",ID_HDIG,3)","v":1.8235294117647058},{"$f":"AVERAGEIFS(I$2:I$193,I$2:I$193,\">0\",ID_HDIG,3)","v":1.8235294117647058},null,null,{"$f":"AVERAGEIFS(L$2:L$193,L$2:L$193,\">0\",ID_HDIG,3)","v":2.0588235294117645},{"$f":"AVERAGEIFS(M$2:M$193,M$2:M$193,\">0\",ID_HDIG,3)","v":2.9411764705882355},{"$f":"AVERAGEIFS(N$2:N$193,N$2:N$193,\">0\",ID_HDIG,3)","v":2.7058823529411766},null,null,{"$f":"AVERAGEIFS(Q$2:Q$193,Q$2:Q$193,\">0\",ID_HDIG,3)","v":2.2083333333333335},{"$f":"AVERAGEIFS(R$2:R$193,R$2:R$193,\">0\",ID_HDIG,3)","v":3.1764705882352939},{"$f":"AVERAGEIFS(S$2:S$193,S$2:S$193,\">0\",ID_HDIG,3)","v":2.9411764705882355},null,null,{"$f":"AVERAGEIFS(V$2:V$193,V$2:V$193,\">0\",ID_HDIG,3)","v":3.25},{"$f":"AVERAGEIFS(W$2:W$193,W$2:W$193,\">0\",ID_HDIG,3)","v":4.3499999999999996},{"$f":"AVERAGEIFS(X$2:X$193,X$2:X$193,\">0\",ID_HDIG,3)","v":3.85},null,null,{"$f":"AVERAGEIFS(AA$2:AA$193,AA$2:AA$193,\">0\",ID_HDIG,3)","v":3.85},{"$f":"AVERAGEIFS(AB$2:AB$193,AB$2:AB$193,\">0\",ID_HDIG,3)","v":4.55},{"$f":"AVERAGEIFS(AC$2:AC$193,AC$2:AC$193,\">0\",ID_HDIG,3)","v":4},null,null,{"$f":"AVERAGEIFS(AF$2:AF$193,AF$2:AF$193,\">0\",ID_HDIG,3)","v":2.25},{"$f":"AVERAGEIFS(AG$2:AG$193,AG$2:AG$193,\">0\",ID_HDIG,3)","v":2.5625},{"$f":"AVERAGEIFS(AH$2:AH$193,AH$2:AH$193,\">0\",ID_HDIG,3)","v":2.4375},null,null,{"$f":"AVERAGEIFS(AK$2:AK$193,AK$2:AK$193,\">0\",ID_HDIG,3)","v":3.1},{"$f":"AVERAGEIFS(AL$2:AL$193,AL$2:AL$193,\">0\",ID_HDIG,3)","v":3.1},{"$f":"AVERAGEIFS(AM$2:AM$193,AM$2:AM$193,\">0\",ID_HDIG,3)","v":2.9},null,null,{"$f":"AVERAGEIFS(AP$2:AP$193,AP$2:AP$193,\">0\",ID_HDIG,3)","v":2.4117647058823528},{"$f":"AVERAGEIFS(AQ$2:AQ$193,AQ$2:AQ$193,\">0\",ID_HDIG,3)","v":3.3529411764705883},{"$f":"AVERAGEIFS(AR$2:AR$193,AR$2:AR$193,\">0\",ID_HDIG,3)","v":3.1176470588235294},null,null,{"$f":"AVERAGEIFS(AU$2:AU$193,AU$2:AU$193,\">0\",ID_HDIG,3)","v":2.9230769230769229},{"$f":"AVERAGEIFS(AV$2:AV$193,AV$2:AV$193,\">0\",ID_HDIG,3)","v":3.3846153846153846},{"$f":"AVERAGEIFS(AW$2:AW$193,AW$2:AW$193,\">0\",ID_HDIG,3)","v":3.1538461538461537},null,null,{"$f":"AVERAGEIFS(AZ$2:AZ$193,AZ$2:AZ$193,\">0\",ID_HDIG,3)","v":2.9230769230769229},{"$f":"AVERAGEIFS(BA$2:BA$193,BA$2:BA$193,\">0\",ID_HDIG,3)","v":2.8461538461538463},{"$f":"AVERAGEIFS(BB$2:BB$193,BB$2:BB$193,\">0\",ID_HDIG,3)","v":2.5384615384615383},null,null,{"$f":"AVERAGEIFS(BE$2:BE$193,BE$2:BE$193,\">0\",ID_HDIG,3)","v":3},{"$f":"AVERAGEIFS(BF$2:BF$193,BF$2:BF$193,\">0\",ID_HDIG,3)","v":2.4666666666666668},{"$f":"AVERAGEIFS(BG$2:BG$193,BG$2:BG$193,\">0\",ID_HDIG,3)","v":2.3333333333333335}]
[]
["HDI: Very high HD - average",{"$f":"AVERAGEIFS(B$2:B$193,B$2:B$193,\">0\",ID_HDIG,4)","v":2.9411764705882355},{"$f":"AVERAGEIFS(C$2:C$193,C$2:C$193,\">0\",ID_HDIG,4)","v":4.4117647058823533},{"$f":"AVERAGEIFS(D$2:D$193,D$2:D$193,\">0\",ID_HDIG,4)","v":3.7647058823529411},null,null,{"$f":"AVERAGEIFS(G$2:G$193,G$2:G$193,\">0\",ID_HDIG,4)","v":2.5714285714285716},{"$f":"AVERAGEIFS(H$2:H$193,H$2:H$193,\">0\",ID_HDIG,4)","v":2.5714285714285716},{"$f":"AVERAGEIFS(I$2:I$193,I$2:I$193,\">0\",ID_HDIG,4)","v":2.2857142857142856},null,null,{"$f":"AVERAGEIFS(L$2:L$193,L$2:L$193,\">0\",ID_HDIG,4)","v":2.5714285714285716},{"$f":"AVERAGEIFS(M$2:M$193,M$2:M$193,\">0\",ID_HDIG,4)","v":4.0714285714285712},{"$f":"AVERAGEIFS(N$2:N$193,N$2:N$193,\">0\",ID_HDIG,4)","v":3.5},null,null,{"$f":"AVERAGEIFS(Q$2:Q$193,Q$2:Q$193,\">0\",ID_HDIG,4)","v":2.3809523809523809},{"$f":"AVERAGEIFS(R$2:R$193,R$2:R$193,\">0\",ID_HDIG,4)","v":4.2857142857142856},{"$f":"AVERAGEIFS(S$2:S$193,S$2:S$193,\">0\",ID_HDIG,4)","v":3.6428571428571428},null,null,{"$f":"AVERAGEIFS(V$2:V$193,V$2:V$193,\">0\",ID_HDIG,4)","v":3.5263157894736841},{"$f":"AVERAGEIFS(W$2:W$193,W$2:W$193,\">0\",ID_HDIG,4)","v":5.3157894736842106},{"$f":"AVERAGEIFS(X$2:X$193,X$2:X$193,\">0\",ID_HDIG,4)","v":4.3684210526315788},null,null,{"$f":"AVERAGEIFS(AA$2:AA$193,AA$2:AA$193,\">0\",ID_HDIG,4)","v":3.4210526315789473},{"$f":"AVERAGEIFS(AB$2:AB$193,AB$2:AB$193,\">0\",ID_HDIG,4)","v":5.5789473684210522},{"$f":"AVERAGEIFS(AC$2:AC$193,AC$2:AC$193,\">0\",ID_HDIG,4)","v":4.6315789473684212},null,null,{"$f":"AVERAGEIFS(AF$2:AF$193,AF$2:AF$193,\">0\",ID_HDIG,4)","v":1.8181818181818181},{"$f":"AVERAGEIFS(AG$2:AG$193,AG$2:AG$193,\">0\",ID_HDIG,4)","v":1.6363636363636365},{"$f":"AVERAGEIFS(AH$2:AH$193,AH$2:AH$193,\">0\",ID_HDIG,4)","v":1.5454545454545454},null,null,{"$f":"AVERAGEIFS(AK$2:AK$193,AK$2:AK$193,\">0\",ID_HDIG,4)","v":3},{"$f":"AVERAGEIFS(AL$2:AL$193,AL$2:AL$193,\">0\",ID_HDIG,4)","v":5.2727272727272725},{"$f":"AVERAGEIFS(AM$2:AM$193,AM$2:AM$193,\">0\",ID_HDIG,4)","v":4.4545454545454541},null,null,{"$f":"AVERAGEIFS(AP$2:AP$193,AP$2:AP$193,\">0\",ID_HDIG,4)","v":3.0714285714285716},{"$f":"AVERAGEIFS(AQ$2:AQ$193,AQ$2:AQ$193,\">0\",ID_HDIG,4)","v":2.5714285714285716},{"$f":"AVERAGEIFS(AR$2:AR$193,AR$2:AR$193,\">0\",ID_HDIG,4)","v":2.3571428571428572},null,null,{"$f":"AVERAGEIFS(AU$2:AU$193,AU$2:AU$193,\">0\",ID_HDIG,4)","v":3.0769230769230771},{"$f":"AVERAGEIFS(AV$2:AV$193,AV$2:AV$193,\">0\",ID_HDIG,4)","v":3.5384615384615383},{"$f":"AVERAGEIFS(AW$2:AW$193,AW$2:AW$193,\">0\",ID_HDIG,4)","v":3.0769230769230771},null,null,{"$f":"AVERAGEIFS(AZ$2:AZ$193,AZ$2:AZ$193,\">0\",ID_HDIG,4)","v":2.7692307692307692},{"$f":"AVERAGEIFS(BA$2:BA$193,BA$2:BA$193,\">0\",ID_HDIG,4)","v":3.7692307692307692},{"$f":"AVERAGEIFS(BB$2:BB$193,BB$2:BB$193,\">0\",ID_HDIG,4)","v":3.2307692307692308},null,null,{"$f":"AVERAGEIFS(BE$2:BE$193,BE$2:BE$193,\">0\",ID_HDIG,4)","v":2.2666666666666666},{"$f":"AVERAGEIFS(BF$2:BF$193,BF$2:BF$193,\">0\",ID_HDIG,4)","v":3.7333333333333334},{"$f":"AVERAGEIFS(BG$2:BG$193,BG$2:BG$193,\">0\",ID_HDIG,4)","v":3.2666666666666666}]
[]
["Low HDI no. of common responses",{"$f":"COUNTIFS($B$2:$B$193,\">0\",ID_HDIG,1)","v":11},null,{"$f":"COUNTIFS($D$2:$D$193,\">0\",ID_HDIG,1)","v":11},null,null,{"$f":"COUNTIFS($G$2:$G$193,\">0\",ID_HDIG,1)","v":8},null,{"$f":"COUNTIFS($G$2:$G$193,\">0\",ID_HDIG,1)","v":8},null,null,{"$f":"COUNTIFS(L$2:L$193,\">0\",ID_HDIG,1)","v":9},null,{"$f":"COUNTIFS(N$2:N$193,\">0\",ID_HDIG,1)","v":9},null,null,{"$f":"COUNTIFS(Q$2:Q$193,\">0\",ID_HDIG,1)","v":14},null,{"$f":"COUNTIFS(S$2:S$193,\">0\",ID_HDIG,1)","v":9},null,null,{"$f":"COUNTIFS($V$2:$V$193,\">0\",ID_HDIG,1)","v":10},null,{"$f":"COUNTIFS($X$2:$X$193,\">0\",ID_HDIG,1)","v":10},null,null,{"$f":"COUNTIFS($AA$2:AA$193,\">0\",ID_HDIG,1)","v":9},null,{"$f":"COUNTIFS($AC$2:$AC$193,\">0\",ID_HDIG,1)","v":9},null,null,{"$f":"COUNTIFS($AF$2:AF$193,\">0\",ID_HDIG,1)","v":9},null,{"$f":"COUNTIFS(AH$2:AH$193,\">0\",ID_HDIG,1)","v":9},null,null,{"$f":"COUNTIFS(AK$2:AK$193,\">0\",ID_HDIG,1)","v":5},null,{"$f":"COUNTIFS(AM$2:AM$193,\">0\",ID_HDIG,1)","v":5},null,null,{"$f":"COUNTIFS(AP$2:AP$193,\">0\",ID_HDIG,1)","v":9},null,{"$f":"COUNTIFS(AR$2:AR$193,\">0\",ID_HDIG,1)","v":9},null,null,{"$f":"COUNTIFS(AU$2:AU$193,\">0\",ID_HDIG,1)","v":8},null,{"$f":"COUNTIFS(AW$2:AW$193,\">0\",ID_HDIG,1)","v":8},null,null,{"$f":"COUNTIFS(AZ$2:AZ$193,\">0\",ID_HDIG,1)","v":7},null,{"$f":"COUNTIFS(BB$2:BB$193,\">0\",ID_HDIG,1)","v":7},null,null,{"$f":"COUNTIFS(BE$2:BE$193,\">0\",ID_HDIG,1)","v":6},null,{"$f":"COUNTIFS(BG$2:BG$193,\">0\",ID_HDIG,1)","v":6}]
["Medium HDI no. of common responses",{"$f":"COUNTIFS($B$2:$B$193,\">0\",ID_HDIG,2)","v":19},null,{"$f":"COUNTIFS($D$2:$D$193,\">0\",ID_HDIG,2)","v":19},null,null,{"$f":"COUNTIFS($G$2:$G$193,\">0\",ID_HDIG,2)","v":17},null,{"$f":"COUNTIFS($G$2:$G$193,\">0\",ID_HDIG,2)","v":17},null,null,{"$f":"COUNTIFS(L$2:L$193,\">0\",ID_HDIG,2)","v":17},null,{"$f":"COUNTIFS(N$2:N$193,\">0\",ID_HDIG,2)","v":17},null,null,{"$f":"COUNTIFS(Q$2:Q$193,\">0\",ID_HDIG,2)","v":24},null,{"$f":"COUNTIFS(S$2:S$193,\">0\",ID_HDIG,2)","v":17},null,null,{"$f":"COUNTIFS($V$2:$V$193,\">0\",ID_HDIG,2)","v":20},null,{"$f":"COUNTIFS($X$2:$X$193,\">0\",ID_HDIG,2)","v":20},null,null,{"$f":"COUNTIFS($AA$2:$AA$193,\">0\",ID_HDIG,2)","v":20},null,{"$f":"COUNTIFS($AC$2:$AC$193,\">0\",ID_HDIG,2)","v":20},null,null,{"$f":"COUNTIFS(AF$2:AF$193,\">0\",ID_HDIG,2)","v":13},null,{"$f":"COUNTIFS(AH$2:AH$193,\">0\",ID_HDIG,2)","v":13},null,null,{"$f":"COUNTIFS(AK$2:AK$193,\">0\",ID_HDIG,2)","v":11},null,{"$f":"COUNTIFS(AM$2:AM$193,\">0\",ID_HDIG,2)","v":11},null,null,{"$f":"COUNTIFS(AP$2:AP$193,\">0\",ID_HDIG,2)","v":14},null,{"$f":"COUNTIFS(AR$2:AR$193,\">0\",ID_HDIG,2)","v":14},null,null,{"$f":"COUNTIFS(AU$2:AU$193,\">0\",ID_HDIG,2)","v":11},null,{"$f":"COUNTIFS(AW$2:AW$193,\">0\",ID_HDIG,2)","v":11},null,null,{"$f":"COUNTIFS(AZ$2:AZ$193,\">0\",ID_HDIG,2)","v":14},null,{"$f":"COUNTIFS(BB$2:BB$193,\">0\",ID_HDIG,2)","v":14},null,null,{"$f":"COUNTIFS(BE$2:BE$193,\">0\",ID_HDIG,2)","v":15},null,{"$f":"COUNTIFS(BG$2:BG$193,\">0\",ID_HDIG,2)","v":15}]
["High HDI no. of common responses",{"$f":"COUNTIFS($B$2:$B$193,\">0\",ID_HDIG,3)","v":18},null,{"$f":"COUNTIFS($D$2:$D$193,\">0\",ID_HDIG,3)","v":18},null,null,{"$f":"COUNTIFS($G$2:$G$193,\">0\",ID_HDIG,3)","v":17},null,{"$f":"COUNTIFS($G$2:$G$193,\">0\",ID_HDIG,3)","v":17},null,null,{"$f":"COUNTIFS(L$2:L$193,\">0\",ID_HDIG,3)","v":17},null,{"$f":"COUNTIFS(N$2:N$193,\">0\",ID_HDIG,3)","v":17},null,null,{"$f":"COUNTIFS(Q$2:Q$193,\">0\",ID_HDIG,3)","v":24},null,{"$f":"COUNTIFS(S$2:S$193,\">0\",ID_HDIG,3)","v":17},null,null,{"$f":"COUNTIFS($V$2:$V$193,\">0\",ID_HDIG,3)","v":20},null,{"$f":"COUNTIFS($X$2:$X$193,\">0\",ID_HDIG,3)","v":20},null,null,{"$f":"COUNTIFS($AA$2:$AA$193,\">0\",ID_HDIG,3)","v":20},null,{"$f":"COUNTIFS($AC$2:$AC$193,\">0\",ID_HDIG,3)","v":20},null,null,{"$f":"COUNTIFS(AF$2:AF$193,\">0\",ID_HDIG,3)","v":16},null,{"$f":"COUNTIFS(AH$2:AH$193,\">0\",ID_HDIG,3)","v":16},null,null,{"$f":"COUNTIFS(AK$2:AK$193,\">0\",ID_HDIG,3)","v":10},null,{"$f":"COUNTIFS(AM$2:AM$193,\">0\",ID_HDIG,3)","v":10},null,null,{"$f":"COUNTIFS(AP$2:AP$193,\">0\",ID_HDIG,3)","v":17},null,{"$f":"COUNTIFS(AR$2:AR$193,\">0\",ID_HDIG,3)","v":17},null,null,{"$f":"COUNTIFS(AU$2:AU$193,\">0\",ID_HDIG,3)","v":13},null,{"$f":"COUNTIFS(AW$2:AW$193,\">0\",ID_HDIG,3)","v":13},null,null,{"$f":"COUNTIFS(AZ$2:AZ$193,\">0\",ID_HDIG,3)","v":13},null,{"$f":"COUNTIFS(BB$2:BB$193,\">0\",ID_HDIG,3)","v":13},null,null,{"$f":"COUNTIFS(BE$2:BE$193,\">0\",ID_HDIG,3)","v":15},null,{"$f":"COUNTIFS(BG$2:BG$193,\">0\",ID_HDIG,3)","v":15}]
["Very high HDI no. of common responses",{"$f":"COUNTIFS($B$2:$B$193,\">0\",ID_HDIG,4)","v":17},null,{"$f":"COUNTIFS($D$2:$D$193,\">0\",ID_HDIG,4)","v":17},null,null,{"$f":"COUNTIFS($G$2:$G$193,\">0\",ID_HDIG,4)","v":14},null,{"$f":"COUNTIFS($G$2:$G$193,\">0\",ID_HDIG,4)","v":14},null,null,{"$f":"COUNTIFS(L$2:L$193,\">0\",ID_HDIG,4)","v":14},null,{"$f":"COUNTIFS(N$2:N$193,\">0\",ID_HDIG,4)","v":14},null,null,{"$f":"COUNTIFS(Q$2:Q$193,\">0\",ID_HDIG,4)","v":21},null,{"$f":"COUNTIFS(S$2:S$193,\">0\",ID_HDIG,4)","v":14},null,null,{"$f":"COUNTIFS($V$2:$V$193,\">0\",ID_HDIG,4)","v":19},null,{"$f":"COUNTIFS($X$2:$X$193,\">0\",ID_HDIG,4)","v":19},null,null,{"$f":"COUNTIFS($AA$2:$AA$193,\">0\",ID_HDIG,4)","v":19},null,{"$f":"COUNTIFS($AC$2:$AC$193,\">0\",ID_HDIG,4)","v":19},null,null,{"$f":"COUNTIFS(AF$2:AF$193,\">0\",ID_HDIG,4)","v":11},null,{"$f":"COUNTIFS(AH$2:AH$193,\">0\",ID_HDIG,4)","v":11},null,null,{"$f":"COUNTIFS(AK$2:AK$193,\">0\",ID_HDIG,4)","v":11},null,{"$f":"COUNTIFS(AM$2:AM$193,\">0\",ID_HDIG,4)","v":11},null,null,{"$f":"COUNTIFS(AP$2:AP$193,\">0\",ID_HDIG,4)","v":14},null,{"$f":"COUNTIFS(AR$2:AR$193,\">0\",ID_HDIG,4)","v":14},null,null,{"$f":"COUNTIFS(AU$2:AU$193,\">0\",ID_HDIG,4)","v":13},null,{"$f":"COUNTIFS(AW$2:AW$193,\">0\",ID_HDIG,4)","v":13},null,null,{"$f":"COUNTIFS(AZ$2:AZ$193,\">0\",ID_HDIG,4)","v":13},null,{"$f":"COUNTIFS(BB$2:BB$193,\">0\",ID_HDIG,4)","v":13},null,null,{"$f":"COUNTIFS(BE$2:BE$193,\">0\",ID_HDIG,4)","v":15},null,{"$f":"COUNTIFS(BG$2:BG$193,\">0\",ID_HDIG,4)","v":15}]
[]
[]
[]
["Low HD: % of responses as 1",{"$f":"(COUNTIFS(B$2:B$193,1,ID_HDIG,1))/$B$205","v":9.0909090909090912E-2},null,{"$f":"(COUNTIFS(D$2:D$193,1,ID_HDIG,1))/$B$205","v":0},null,null,{"$f":"(COUNTIFS(G$2:G$193,1,ID_HDIG,1))/G$205","v":0.625},null,{"$f":"(COUNTIFS(I$2:I$193,1,ID_HDIG,1))/I$205","v":0.5},null,null,{"$f":"(COUNTIFS(L$2:L$193,1,ID_HDIG,1))/L$205","v":0.55555555555555558},null,{"$f":"(COUNTIFS(N$2:N$193,1,ID_HDIG,1))/N$205","v":0.22222222222222221},null,null,{"$f":"(COUNTIFS(Q$2:Q$193,1,ID_HDIG,1))/Q$205","v":0.5714285714285714},null,{"$f":"(COUNTIFS(S$2:S$193,1,ID_HDIG,1))/S$205","v":0.22222222222222221},null,null,{"$f":"(COUNTIFS(V$2:V$193,1,ID_HDIG,1))/V$205","v":0},null,{"$f":"(COUNTIFS(X$2:X$193,1,ID_HDIG,1))/X$205","v":0},null,null,{"$f":"(COUNTIFS(AA$2:AA$193,1,ID_HDIG,1))/AA$205","v":0},null,{"$f":"(COUNTIFS(AC$2:AC$193,1,ID_HDIG,1))/AC$205","v":0},null,null,{"$f":"(COUNTIFS(AF$2:AF$193,1,ID_HDIG,1))/AF$205","v":0.44444444444444442},null,{"$f":"(COUNTIFS(AH$2:AH$193,1,ID_HDIG,1))/AH$205","v":0},null,null,{"$f":"(COUNTIFS(AK$2:AK$193,1,ID_HDIG,1))/AK$205","v":0.4},null,{"$f":"(COUNTIFS(AM$2:AM$193,1,ID_HDIG,1))/AM$205","v":0},null,null,{"$f":"(COUNTIFS(AP$2:AP$193,1,ID_HDIG,1))/AP$205","v":0.44444444444444442},null,{"$f":"(COUNTIFS(AR$2:AR$193,1,ID_HDIG,1))/AR$205","v":0.1111111111111111},null,null,{"$f":"(COUNTIFS(AU$2:AU$193,1,ID_HDIG,1))/AU$205","v":0},null,{"$f":"(COUNTIFS(AW$2:AW$193,1,ID_HDIG,1))/AW$205","v":0},null,null,{"$f":"(COUNTIFS(AZ$2:AZ$193,1,ID_HDIG,1))/AZ$205","v":0.5714285714285714},null,{"$f":"(COUNTIFS(BB$2:BB$193,1,ID_HDIG,1))/BB$205","v":0},null,null,{"$f":"(COUNTIFS(BE$2:BE$193,1,ID_HDIG,1))/BE$205","v":0.5},null,{"$f":"(COUNTIFS(BG$2:BG$193,1,ID_HDIG,1))/BG$205","v":0}]
["Low HD: % of responses as 2",{"$f":"(COUNTIFS(B$2:B$193,2,ID_HDIG,1))/$B$205","v":0.45454545454545453},null,{"$f":"(COUNTIFS(D$2:D$193,2,ID_HDIG,1))/$B$205","v":0.45454545454545453},null,null,{"$f":"(COUNTIFS(G$2:G$193,2,ID_HDIG,1))/G$205","v":0.25},null,{"$f":"(COUNTIFS(I$2:I$193,2,ID_HDIG,1))/I$205","v":0.5},null,null,{"$f":"(COUNTIFS(L$2:L$193,2,ID_HDIG,1))/L$205","v":0.22222222222222221},null,{"$f":"(COUNTIFS(N$2:N$193,2,ID_HDIG,1))/N$205","v":0.55555555555555558},null,null,{"$f":"(COUNTIFS(Q$2:Q$193,2,ID_HDIG,1))/Q$205","v":0.21428571428571427},null,{"$f":"(COUNTIFS(S$2:S$193,2,ID_HDIG,1))/S$205","v":0.55555555555555558},null,null,{"$f":"(COUNTIFS(V$2:V$193,2,ID_HDIG,1))/V$205","v":0.4},null,{"$f":"(COUNTIFS(X$2:X$193,2,ID_HDIG,1))/X$205","v":0.4},null,null,{"$f":"(COUNTIFS(AA$2:AA$193,2,ID_HDIG,1))/AA$205","v":0},null,{"$f":"(COUNTIFS(AC$2:AC$193,2,ID_HDIG,1))/AC$205","v":0.22222222222222221},null,null,{"$f":"(COUNTIFS(AF$2:AF$193,2,ID_HDIG,1))/AF$205","v":0},null,{"$f":"(COUNTIFS(AH$2:AH$193,2,ID_HDIG,1))/AH$205","v":0.1111111111111111},null,null,{"$f":"(COUNTIFS(AK$2:AK$193,2,ID_HDIG,1))/AK$205","v":0.2},null,{"$f":"(COUNTIFS(AM$2:AM$193,2,ID_HDIG,1))/AM$205","v":0.2},null,null,{"$f":"(COUNTIFS(AP$2:AP$193,2,ID_HDIG,1))/AP$205","v":0},null,{"$f":"(COUNTIFS(AR$2:AR$193,2,ID_HDIG,1))/AR$205","v":0.44444444444444442},null,null,{"$f":"(COUNTIFS(AU$2:AU$193,2,ID_HDIG,1))/AU$205","v":0.125},null,{"$f":"(COUNTIFS(AW$2:AW$193,2,ID_HDIG,1))/AW$205","v":0.375},null,null,{"$f":"(COUNTIFS(AZ$2:AZ$193,2,ID_HDIG,1))/AZ$205","v":0},null,{"$f":"(COUNTIFS(BB$2:BB$193,2,ID_HDIG,1))/BB$205","v":0.14285714285714285},null,null,{"$f":"(COUNTIFS(BE$2:BE$193,2,ID_HDIG,1))/BE$205","v":0},null,{"$f":"(COUNTIFS(BG$2:BG$193,2,ID_HDIG,1))/BG$205","v":0.16666666666666666}]
["Low HD: % of responses as 3",{"$f":"(COUNTIFS(B$2:B$193,3,ID_HDIG,1))/$B$205","v":0.18181818181818182},null,{"$f":"(COUNTIFS(D$2:D$193,3,ID_HDIG,1))/$B$205","v":0.36363636363636365},null,null,{"$f":"(COUNTIFS(G$2:G$193,3,ID_HDIG,1))/G$205","v":0},null,{"$f":"(COUNTIFS(I$2:I$193,3,ID_HDIG,1))/I$205","v":0},null,null,{"$f":"(COUNTIFS(L$2:L$193,3,ID_HDIG,1))/L$205","v":0.1111111111111111},null,{"$f":"(COUNTIFS(N$2:N$193,3,ID_HDIG,1))/N$205","v":0.1111111111111111},null,null,{"$f":"(COUNTIFS(Q$2:Q$193,3,ID_HDIG,1))/Q$205","v":0.14285714285714285},null,{"$f":"(COUNTIFS(S$2:S$193,3,ID_HDIG,1))/S$205","v":0.1111111111111111},null,null,{"$f":"(COUNTIFS(V$2:V$193,3,ID_HDIG,1))/V$205","v":0},null,{"$f":"(COUNTIFS(X$2:X$193,3,ID_HDIG,1))/X$205","v":0.1},null,null,{"$f":"(COUNTIFS(AA$2:AA$193,3,ID_HDIG,1))/AA$205","v":0.1111111111111111},null,{"$f":"(COUNTIFS(AC$2:AC$193,3,ID_HDIG,1))/AC$205","v":0.22222222222222221},null,null,{"$f":"(COUNTIFS(AF$2:AF$193,3,ID_HDIG,1))/AF$205","v":0},null,{"$f":"(COUNTIFS(AH$2:AH$193,3,ID_HDIG,1))/AH$205","v":0.44444444444444442},null,null,{"$f":"(COUNTIFS(AK$2:AK$193,3,ID_HDIG,1))/AK$205","v":0},null,{"$f":"(COUNTIFS(AM$2:AM$193,3,ID_HDIG,1))/AM$205","v":0.2},null,null,{"$f":"(COUNTIFS(AP$2:AP$193,3,ID_HDIG,1))/AP$205","v":0.1111111111111111},null,{"$f":"(COUNTIFS(AR$2:AR$193,3,ID_HDIG,1))/AR$205","v":0.22222222222222221},null,null,{"$f":"(COUNTIFS(AU$2:AU$193,3,ID_HDIG,1))/AU$205","v":0.125},null,{"$f":"(COUNTIFS(AW$2:AW$193,3,ID_HDIG,1))/AW$205","v":0.375},null,null,{"$f":"(COUNTIFS(AZ$2:AZ$193,3,ID_HDIG,1))/AZ$205","v":0.14285714285714285},null,{"$f":"(COUNTIFS(BB$2:BB$193,3,ID_HDIG,1))/BB$205","v":0},null,null,{"$f":"(COUNTIFS(BE$2:BE$193,3,ID_HDIG,1))/BE$205","v":0.16666666666666666},null,{"$f":"(COUNTIFS(BG$2:BG$193,3,ID_HDIG,1))/BG$205","v":0}]
["Low HD: % of responses as 4",{"$f":"(COUNTIFS(B$2:B$193,4,ID_HDIG,1))/$B$205","v":0.27272727272727271},null,{"$f":"(COUNTIFS(D$2:D$193,4,ID_HDIG,1))/$B$205","v":0},null,null,{"$f":"(COUNTIFS(G$2:G$193,4,ID_HDIG,1))/G$205","v":0.125},null,{"$f":"(COUNTIFS(I$2:I$193,4,ID_HDIG,1))/I$205","v":0},null,null,{"$f":"(COUNTIFS(L$2:L$193,4,ID_HDIG,1))/L$205","v":0.1111111111111111},null,{"$f":"(COUNTIFS(N$2:N$193,4,ID_HDIG,1))/N$205","v":0.1111111111111111},null,null,{"$f":"(COUNTIFS(Q$2:Q$193,4,ID_HDIG,1))/Q$205","v":7.1428571428571425E-2},null,{"$f":"(COUNTIFS(S$2:S$193,4,ID_HDIG,1))/S$205","v":0.1111111111111111},null,null,{"$f":"(COUNTIFS(V$2:V$193,4,ID_HDIG,1))/V$205","v":0.5},null,{"$f":"(COUNTIFS(X$2:X$193,4,ID_HDIG,1))/X$205","v":0.4},null,null,{"$f":"(COUNTIFS(AA$2:AA$193,4,ID_HDIG,1))/AA$205","v":0.66666666666666663},null,{"$f":"(COUNTIFS(AC$2:AC$193,4,ID_HDIG,1))/AC$205","v":0.44444444444444442},null,null,{"$f":"(COUNTIFS(AF$2:AF$193,4,ID_HDIG,1))/AF$205","v":0.55555555555555558},null,{"$f":"(COUNTIFS(AH$2:AH$193,4,ID_HDIG,1))/AH$205","v":0.33333333333333331},null,null,{"$f":"(COUNTIFS(AK$2:AK$193,4,ID_HDIG,1))/AK$205","v":0.4},null,{"$f":"(COUNTIFS(AM$2:AM$193,4,ID_HDIG,1))/AM$205","v":0.6},null,null,{"$f":"(COUNTIFS(AP$2:AP$193,4,ID_HDIG,1))/AP$205","v":0.44444444444444442},null,{"$f":"(COUNTIFS(AR$2:AR$193,4,ID_HDIG,1))/AR$205","v":0.22222222222222221},null,null,{"$f":"(COUNTIFS(AU$2:AU$193,4,ID_HDIG,1))/AU$205","v":0.5},null,{"$f":"(COUNTIFS(AW$2:AW$193,4,ID_HDIG,1))/AW$205","v":0.25},null,null,{"$f":"(COUNTIFS(AZ$2:AZ$193,4,ID_HDIG,1))/AZ$205","v":0.2857142857142857},null,{"$f":"(COUNTIFS(BB$2:BB$193,4,ID_HDIG,1))/BB$205","v":0.8571428571428571},null,null,{"$f":"(COUNTIFS(BE$2:BE$193,4,ID_HDIG,1))/BE$205","v":0.33333333333333331},null,{"$f":"(COUNTIFS(BG$2:BG$193,4,ID_HDIG,1))/BG$205","v":0.83333333333333337}]
["Low HD: % of responses as 5",{"$f":"(COUNTIFS(B$2:B$193,5,ID_HDIG,1))/$B$205","v":0},null,{"$f":"(COUNTIFS(D$2:D$193,5,ID_HDIG,1))/$B$205","v":0.18181818181818182},null,null,{"$f":"(COUNTIFS(G$2:G$193,5,ID_HDIG,1))/G$205","v":0},null,{"$f":"(COUNTIFS(I$2:I$193,5,ID_HDIG,1))/I$205","v":0},null,null,{"$f":"(COUNTIFS(L$2:L$193,5,ID_HDIG,1))/L$205","v":0},null,{"$f":"(COUNTIFS(N$2:N$193,5,ID_HDIG,1))/N$205","v":0},null,null,{"$f":"(COUNTIFS(Q$2:Q$193,5,ID_HDIG,1))/Q$205","v":0},null,{"$f":"(COUNTIFS(S$2:S$193,5,ID_HDIG,1))/S$205","v":0},null,null,{"$f":"(COUNTIFS(V$2:V$193,5,ID_HDIG,1))/V$205","v":0.1},null,{"$f":"(COUNTIFS(X$2:X$193,5,ID_HDIG,1))/X$205","v":0.1},null,null,{"$f":"(COUNTIFS(AA$2:AA$193,5,ID_HDIG,1))/AA$205","v":0.22222222222222221},null,{"$f":"(COUNTIFS(AC$2:AC$193,5,ID_HDIG,1))/AC$205","v":0.1111111111111111},null,null,{"$f":"(COUNTIFS(AF$2:AF$193,5,ID_HDIG,1))/AF$205","v":0},null,{"$f":"(COUNTIFS(AH$2:AH$193,5,ID_HDIG,1))/AH$205","v":0.1111111111111111},null,null,{"$f":"(COUNTIFS(AK$2:AK$193,5,ID_HDIG,1))/AK$205","v":0},null,{"$f":"(COUNTIFS(AM$2:AM$193,5,ID_HDIG,1))/AM$205","v":0},null,null,{"$f":"(COUNTIFS(AP$2:AP$193,5,ID_HDIG,1))/AP$205","v":0},null,{"$f":"(COUNTIFS(AR$2:AR$193,5,ID_HDIG,1))/AR$205","v":0},null,null,{"$f":"(COUNTIFS(AU$2:AU$193,5,ID_HDIG,1))/AU$205","v":0.25},null,{"$f":"(COUNTIFS(AW$2:AW$193,5,ID_HDIG,1))/AW$205","v":0},null,null,{"$f":"(COUNTIFS(AZ$2:AZ$193,5,ID_HDIG,1))/AZ$205","v":0},null,{"$f":"(COUNTIFS(BB$2:BB$193,5,ID_HDIG,1))/BB$205","v":0},null,null,{"$f":"(COUNTIFS(BE$2:BE$193,5,ID_HDIG,1))/BE$205","v":0},null,{"$f":"(COUNTIFS(BG$2:BG$193,5,ID_HDIG,1))/BG$205","v":0}]
["Medium HD: % of responses as 1",{"$f":"(COUNTIFS(B$2:B$193,1,ID_HDIG,2))/$B$206","v":0.10526315789473684},null,{"$f":"(COUNTIFS(D$2:D$193,1,ID_HDIG,2))/$B$206","v":5.2631578947368418E-2},null,null,{"$f":"(COUNTIFS(G$2:G$193,1,ID_HDIG,2))/G$206","v":0.29411764705882354},null,{"$f":"(COUNTIFS(I$2:I$193,1,ID_HDIG,2))/I$206","v":0.23529411764705882},null,null,{"$f":"(COUNTIFS(L$2:L$193,1,ID_HDIG,2))/L$206","v":0.29411764705882354},null,{"$f":"(COUNTIFS(N$2:N$193,1,ID_HDIG,2))/N$206","v":0.23529411764705882},null,null,{"$f":"(COUNTIFS(Q$2:Q$193,1,ID_HDIG,2))/Q$206","v":0.375},null,{"$f":"(COUNTIFS(S$2:S$193,1,ID_HDIG,2))/S$206","v":0.17647058823529413},null,null,{"$f":"(COUNTIFS(V$2:V$193,1,ID_HDIG,2))/V$206","v":0.05},null,{"$f":"(COUNTIFS(X$2:X$193,1,ID_HDIG,2))/X$206","v":0},null,null,{"$f":"(COUNTIFS(AA$2:AA$193,1,ID_HDIG,2))/AA$206","v":0},null,{"$f":"(COUNTIFS(AC$2:AC$193,1,ID_HDIG,2))/AC$206","v":0.05},null,null,{"$f":"(COUNTIFS(AF$2:AF$193,1,ID_HDIG,2))/AF$206","v":0.23076923076923078},null,{"$f":"(COUNTIFS(AH$2:AH$193,1,ID_HDIG,2))/AH$206","v":0},null,null,{"$f":"(COUNTIFS(AK$2:AK$193,1,ID_HDIG,2))/AK$206","v":9.0909090909090912E-2},null,{"$f":"(COUNTIFS(AM$2:AM$193,1,ID_HDIG,2))/AM$206","v":0},null,null,{"$f":"(COUNTIFS(AP$2:AP$193,1,ID_HDIG,2))/AP$206","v":0.14285714285714285},null,{"$f":"(COUNTIFS(AR$2:AR$193,1,ID_HDIG,2))/AR$206","v":0},null,null,{"$f":"(COUNTIFS(AU$2:AU$193,1,ID_HDIG,2))/AU$206","v":9.0909090909090912E-2},null,{"$f":"(COUNTIFS(AW$2:AW$193,1,ID_HDIG,2))/AW$206","v":0},null,null,{"$f":"(COUNTIFS(AZ$2:AZ$193,1,ID_HDIG,2))/AZ$206","v":0.21428571428571427},null,{"$f":"(COUNTIFS(BB$2:BB$193,1,ID_HDIG,2))/BB$206","v":0.14285714285714285},null,null,{"$f":"(COUNTIFS(BE$2:BE$193,1,ID_HDIG,2))/BE$206","v":0.13333333333333333},null,{"$f":"(COUNTIFS(BG$2:BG$193,1,ID_HDIG,2))/BG$206","v":0.26666666666666666}]
["Medium HD: % of responses as 2",{"$f":"(COUNTIFS(B$2:B$193,2,ID_HDIG,2))/$B$206","v":0.31578947368421051},null,{"$f":"(COUNTIFS(D$2:D$193,2,ID_HDIG,2))/$B$206","v":0.31578947368421051},null,null,{"$f":"(COUNTIFS(G$2:G$193,2,ID_HDIG,2))/G$206","v":0.23529411764705882},null,{"$f":"(COUNTIFS(I$2:I$193,2,ID_HDIG,2))/I$206","v":0.35294117647058826},null,null,{"$f":"(COUNTIFS(L$2:L$193,2,ID_HDIG,2))/L$206","v":0.23529411764705882},null,{"$f":"(COUNTIFS(N$2:N$193,2,ID_HDIG,2))/N$206","v":0.29411764705882354},null,null,{"$f":"(COUNTIFS(Q$2:Q$193,2,ID_HDIG,2))/Q$206","v":0.20833333333333334},null,{"$f":"(COUNTIFS(S$2:S$193,2,ID_HDIG,2))/S$206","v":0.35294117647058826},null,null,{"$f":"(COUNTIFS(V$2:V$193,2,ID_HDIG,2))/V$206","v":0.2},null,{"$f":"(COUNTIFS(X$2:X$193,2,ID_HDIG,2))/X$206","v":0.2},null,null,{"$f":"(COUNTIFS(AA$2:AA$193,2,ID_HDIG,2))/AA$206","v":0},null,{"$f":"(COUNTIFS(AC$2:AC$193,2,ID_HDIG,2))/AC$206","v":0.3},null,null,{"$f":"(COUNTIFS(AF$2:AF$193,2,ID_HDIG,2))/AF$206","v":7.6923076923076927E-2},null,{"$f":"(COUNTIFS(AH$2:AH$193,2,ID_HDIG,2))/AH$206","v":0.23076923076923078},null,null,{"$f":"(COUNTIFS(AK$2:AK$193,2,ID_HDIG,2))/AK$206","v":0.18181818181818182},null,{"$f":"(COUNTIFS(AM$2:AM$193,2,ID_HDIG,2))/AM$206","v":0.27272727272727271},null,null,{"$f":"(COUNTIFS(AP$2:AP$193,2,ID_HDIG,2))/AP$206","v":0.14285714285714285},null,{"$f":"(COUNTIFS(AR$2:AR$193,2,ID_HDIG,2))/AR$206","v":0.2857142857142857},null,null,{"$f":"(COUNTIFS(AU$2:AU$193,2,ID_HDIG,2))/AU$206","v":0},null,{"$f":"(COUNTIFS(AW$2:AW$193,2,ID_HDIG,2))/AW$206","v":0.27272727272727271},null,null,{"$f":"(COUNTIFS(AZ$2:AZ$193,2,ID_HDIG,2))/AZ$206","v":7.1428571428571425E-2},null,{"$f":"(COUNTIFS(BB$2:BB$193,2,ID_HDIG,2))/BB$206","v":0.35714285714285715},null,null,{"$f":"(COUNTIFS(BE$2:BE$193,2,ID_HDIG,2))/BE$206","v":0.26666666666666666},null,{"$f":"(COUNTIFS(BG$2:BG$193,2,ID_HDIG,2))/BG$206","v":0.33333333333333331}]
["Medium HD: % of responses as 3",{"$f":"(COUNTIFS(B$2:B$193,3,ID_HDIG,2))/$B$206","v":0.21052631578947367},null,{"$f":"(COUNTIFS(D$2:D$193,3,ID_HDIG,2))/$B$206","v":0.15789473684210525},null,null,{"$f":"(COUNTIFS(G$2:G$193,3,ID_HDIG,2))/G$206","v":5.8823529411764705E-2},null,{"$f":"(COUNTIFS(I$2:I$193,3,ID_HDIG,2))/I$206","v":5.8823529411764705E-2},null,null,{"$f":"(COUNTIFS(L$2:L$193,3,ID_HDIG,2))/L$206","v":5.8823529411764705E-2},null,{"$f":"(COUNTIFS(N$2:N$193,3,ID_HDIG,2))/N$206","v":0.11764705882352941},null,null,{"$f":"(COUNTIFS(Q$2:Q$193,3,ID_HDIG,2))/Q$206","v":8.3333333333333329E-2},null,{"$f":"(COUNTIFS(S$2:S$193,3,ID_HDIG,2))/S$206","v":0.11764705882352941},null,null,{"$f":"(COUNTIFS(V$2:V$193,3,ID_HDIG,2))/V$206","v":0.05},null,{"$f":"(COUNTIFS(X$2:X$193,3,ID_HDIG,2))/X$206","v":0.15},null,null,{"$f":"(COUNTIFS(AA$2:AA$193,3,ID_HDIG,2))/AA$206","v":0.15},null,{"$f":"(COUNTIFS(AC$2:AC$193,3,ID_HDIG,2))/AC$206","v":0.05},null,null,{"$f":"(COUNTIFS(AF$2:AF$193,3,ID_HDIG,2))/AF$206","v":7.6923076923076927E-2},null,{"$f":"(COUNTIFS(AH$2:AH$193,3,ID_HDIG,2))/AH$206","v":0.15384615384615385},null,null,{"$f":"(COUNTIFS(AK$2:AK$193,3,ID_HDIG,2))/AK$206","v":9.0909090909090912E-2},null,{"$f":"(COUNTIFS(AM$2:AM$193,3,ID_HDIG,2))/AM$206","v":0.27272727272727271},null,null,{"$f":"(COUNTIFS(AP$2:AP$193,3,ID_HDIG,2))/AP$206","v":7.1428571428571425E-2},null,{"$f":"(COUNTIFS(AR$2:AR$193,3,ID_HDIG,2))/AR$206","v":0.2857142857142857},null,null,{"$f":"(COUNTIFS(AU$2:AU$193,3,ID_HDIG,2))/AU$206","v":0.18181818181818182},null,{"$f":"(COUNTIFS(AW$2:AW$193,3,ID_HDIG,2))/AW$206","v":0.27272727272727271},null,null,{"$f":"(COUNTIFS(AZ$2:AZ$193,3,ID_HDIG,2))/AZ$206","v":0.14285714285714285},null,{"$f":"(COUNTIFS(BB$2:BB$193,3,ID_HDIG,2))/BB$206","v":0.14285714285714285},null,null,{"$f":"(COUNTIFS(BE$2:BE$193,3,ID_HDIG,2))/BE$206","v":6.6666666666666666E-2},null,{"$f":"(COUNTIFS(BG$2:BG$193,3,ID_HDIG,2))/BG$206","v":0.2}]
["Medium HD: % of responses as 4",{"$f":"(COUNTIFS(B$2:B$193,4,ID_HDIG,2))/$B$206","v":0.31578947368421051},null,{"$f":"(COUNTIFS(D$2:D$193,4,ID_HDIG,2))/$B$206","v":0.42105263157894735},null,null,{"$f":"(COUNTIFS(G$2:G$193,4,ID_HDIG,2))/G$206","v":0.35294117647058826},null,{"$f":"(COUNTIFS(I$2:I$193,4,ID_HDIG,2))/I$206","v":0.29411764705882354},null,null,{"$f":"(COUNTIFS(L$2:L$193,4,ID_HDIG,2))/L$206","v":0.35294117647058826},null,{"$f":"(COUNTIFS(N$2:N$193,4,ID_HDIG,2))/N$206","v":0.29411764705882354},null,null,{"$f":"(COUNTIFS(Q$2:Q$193,4,ID_HDIG,2))/Q$206","v":0.29166666666666669},null,{"$f":"(COUNTIFS(S$2:S$193,4,ID_HDIG,2))/S$206","v":0.29411764705882354},null,null,{"$f":"(COUNTIFS(V$2:V$193,4,ID_HDIG,2))/V$206","v":0.55000000000000004},null,{"$f":"(COUNTIFS(X$2:X$193,4,ID_HDIG,2))/X$206","v":0.55000000000000004},null,null,{"$f":"(COUNTIFS(AA$2:AA$193,4,ID_HDIG,2))/AA$206","v":0.55000000000000004},null,{"$f":"(COUNTIFS(AC$2:AC$193,4,ID_HDIG,2))/AC$206","v":0.4},null,null,{"$f":"(COUNTIFS(AF$2:AF$193,4,ID_HDIG,2))/AF$206","v":0.46153846153846156},null,{"$f":"(COUNTIFS(AH$2:AH$193,4,ID_HDIG,2))/AH$206","v":0.61538461538461542},null,null,{"$f":"(COUNTIFS(AK$2:AK$193,4,ID_HDIG,2))/AK$206","v":0.54545454545454541},null,{"$f":"(COUNTIFS(AM$2:AM$193,4,ID_HDIG,2))/AM$206","v":0.45454545454545453},null,null,{"$f":"(COUNTIFS(AP$2:AP$193,4,ID_HDIG,2))/AP$206","v":0.2857142857142857},null,{"$f":"(COUNTIFS(AR$2:AR$193,4,ID_HDIG,2))/AR$206","v":0.42857142857142855},null,null,{"$f":"(COUNTIFS(AU$2:AU$193,4,ID_HDIG,2))/AU$206","v":0.63636363636363635},null,{"$f":"(COUNTIFS(AW$2:AW$193,4,ID_HDIG,2))/AW$206","v":0.45454545454545453},null,null,{"$f":"(COUNTIFS(AZ$2:AZ$193,4,ID_HDIG,2))/AZ$206","v":0.5},null,{"$f":"(COUNTIFS(BB$2:BB$193,4,ID_HDIG,2))/BB$206","v":0.35714285714285715},null,null,{"$f":"(COUNTIFS(BE$2:BE$193,4,ID_HDIG,2))/BE$206","v":0.46666666666666667},null,{"$f":"(COUNTIFS(BG$2:BG$193,4,ID_HDIG,2))/BG$206","v":6.6666666666666666E-2}]
["Medium HD: % of responses as 5",{"$f":"(COUNTIFS(B$2:B$193,5,ID_HDIG,2))/$B$206","v":5.2631578947368418E-2},null,{"$f":"(COUNTIFS(D$2:D$193,5,ID_HDIG,2))/$B$206","v":5.2631578947368418E-2},null,null,{"$f":"(COUNTIFS(G$2:G$193,5,ID_HDIG,2))/G$206","v":5.8823529411764705E-2},null,{"$f":"(COUNTIFS(I$2:I$193,5,ID_HDIG,2))/I$206","v":5.8823529411764705E-2},null,null,{"$f":"(COUNTIFS(L$2:L$193,5,ID_HDIG,2))/L$206","v":5.8823529411764705E-2},null,{"$f":"(COUNTIFS(N$2:N$193,5,ID_HDIG,2))/N$206","v":5.8823529411764705E-2},null,null,{"$f":"(COUNTIFS(Q$2:Q$193,5,ID_HDIG,2))/Q$206","v":4.1666666666666664E-2},null,{"$f":"(COUNTIFS(S$2:S$193,5,ID_HDIG,2))/S$206","v":5.8823529411764705E-2},null,null,{"$f":"(COUNTIFS(V$2:V$193,5,ID_HDIG,2))/V$206","v":0.15},null,{"$f":"(COUNTIFS(X$2:X$193,5,ID_HDIG,2))/X$206","v":0.1},null,null,{"$f":"(COUNTIFS(AA$2:AA$193,5,ID_HDIG,2))/AA$206","v":0.3},null,{"$f":"(COUNTIFS(AC$2:AC$193,5,ID_HDIG,2))/AC$206","v":0.2},null,null,{"$f":"(COUNTIFS(AF$2:AF$193,5,ID_HDIG,2))/AF$206","v":0.15384615384615385},null,{"$f":"(COUNTIFS(AH$2:AH$193,5,ID_HDIG,2))/AH$206","v":0},null,null,{"$f":"(COUNTIFS(AK$2:AK$193,5,ID_HDIG,2))/AK$206","v":9.0909090909090912E-2},null,{"$f":"(COUNTIFS(AM$2:AM$193,5,ID_HDIG,2))/AM$206","v":0},null,null,{"$f":"(COUNTIFS(AP$2:AP$193,5,ID_HDIG,2))/AP$206","v":0.35714285714285715},null,{"$f":"(COUNTIFS(AR$2:AR$193,5,ID_HDIG,2))/AR$206","v":0},null,null,{"$f":"(COUNTIFS(AU$2:AU$193,5,ID_HDIG,2))/AU$206","v":9.0909090909090912E-2},null,{"$f":"(COUNTIFS(AW$2:AW$193,5,ID_HDIG,2))/AW$206","v":0},null,null,{"$f":"(COUNTIFS(AZ$2:AZ$193,5,ID_HDIG,2))/AZ$206","v":7.1428571428571425E-2},null,{"$f":"(COUNTIFS(BB$2:BB$193,5,ID_HDIG,2))/BB$206","v":0},null,null,{"$f":"(COUNTIFS(BE$2:BE$193,5,ID_HDIG,2))/BE$206","v":6.6666666666666666E-2},null,{"$f":"(COUNTIFS(BG$2:BG$193,5,ID_HDIG,2))/BG$206","v":0.13333333333333333}]
["High HD: % of responses as 1",{"$f":"(COUNTIFS(B$2:B$193,1,ID_HDIG,3))/$B$207","v":0.1111111111111111},null,{"$f":"(COUNTIFS(D$2:D$193,1,ID_HDIG,3))/$B$207","v":5.5555555555555552E-2},null,null,{"$f":"(COUNTIFS(G$2:G$193,1,ID_HDIG,3))/G$207","v":0.47058823529411764},null,{"$f":"(COUNTIFS(I$2:I$193,1,ID_HDIG,3))/I$207","v":0.52941176470588236},null,null,{"$f":"(COUNTIFS(L$2:L$193,1,ID_HDIG,3))/L$207","v":0.47058823529411764},null,{"$f":"(COUNTIFS(N$2:N$193,1,ID_HDIG,3))/N$207","v":0.11764705882352941},null,null,{"$f":"(COUNTIFS(Q$2:Q$193,1,ID_HDIG,3))/Q$207","v":0.45833333333333331},null,{"$f":"(COUNTIFS(S$2:S$193,1,ID_HDIG,3))/S$207","v":0.11764705882352941},null,null,{"$f":"(COUNTIFS(V$2:V$193,1,ID_HDIG,3))/V$207","v":0.1},null,{"$f":"(COUNTIFS(X$2:X$193,1,ID_HDIG,3))/X$207","v":0},null,null,{"$f":"(COUNTIFS(AA$2:AA$193,1,ID_HDIG,3))/AA$207","v":0},null,{"$f":"(COUNTIFS(AC$2:AC$193,1,ID_HDIG,3))/AC$207","v":0},null,null,{"$f":"(COUNTIFS(AF$2:AF$193,1,ID_HDIG,3))/AF$207","v":0.5},null,{"$f":"(COUNTIFS(AH$2:AH$193,1,ID_HDIG,3))/AH$207","v":0.1875},null,null,{"$f":"(COUNTIFS(AK$2:AK$193,1,ID_HDIG,3))/AK$207","v":0.2},null,{"$f":"(COUNTIFS(AM$2:AM$193,1,ID_HDIG,3))/AM$207","v":0.1},null,null,{"$f":"(COUNTIFS(AP$2:AP$193,1,ID_HDIG,3))/AP$207","v":0.35294117647058826},null,{"$f":"(COUNTIFS(AR$2:AR$193,1,ID_HDIG,3))/AR$207","v":0.11764705882352941},null,null,{"$f":"(COUNTIFS(AU$2:AU$193,1,ID_HDIG,3))/AU$207","v":0.23076923076923078},null,{"$f":"(COUNTIFS(AW$2:AW$193,1,ID_HDIG,3))/AW$207","v":0},null,null,{"$f":"(COUNTIFS(AZ$2:AZ$193,1,ID_HDIG,3))/AZ$207","v":0.15384615384615385},null,{"$f":"(COUNTIFS(BB$2:BB$193,1,ID_HDIG,3))/BB$207","v":0.15384615384615385},null,null,{"$f":"(COUNTIFS(BE$2:BE$193,1,ID_HDIG,3))/BE$207","v":0.13333333333333333},null,{"$f":"(COUNTIFS(BG$2:BG$193,1,ID_HDIG,3))/BG$207","v":0.46666666666666667}]
["High HD: % of responses as 2",{"$f":"(COUNTIFS(B$2:B$193,2,ID_HDIG,3))/$B$207","v":0.44444444444444442},null,{"$f":"(COUNTIFS(D$2:D$193,2,ID_HDIG,3))/$B$207","v":0.22222222222222221},null,null,{"$f":"(COUNTIFS(G$2:G$193,2,ID_HDIG,3))/G$207","v":0.29411764705882354},null,{"$f":"(COUNTIFS(I$2:I$193,2,ID_HDIG,3))/I$207","v":0.23529411764705882},null,null,{"$f":"(COUNTIFS(L$2:L$193,2,ID_HDIG,3))/L$207","v":0.29411764705882354},null,{"$f":"(COUNTIFS(N$2:N$193,2,ID_HDIG,3))/N$207","v":0.41176470588235292},null,null,{"$f":"(COUNTIFS(Q$2:Q$193,2,ID_HDIG,3))/Q$207","v":0.25},null,{"$f":"(COUNTIFS(S$2:S$193,2,ID_HDIG,3))/S$207","v":0.23529411764705882},null,null,{"$f":"(COUNTIFS(V$2:V$193,2,ID_HDIG,3))/V$207","v":0.25},null,{"$f":"(COUNTIFS(X$2:X$193,2,ID_HDIG,3))/X$207","v":0.1},null,null,{"$f":"(COUNTIFS(AA$2:AA$193,2,ID_HDIG,3))/AA$207","v":0.15},null,{"$f":"(COUNTIFS(AC$2:AC$193,2,ID_HDIG,3))/AC$207","v":0.05},null,null,{"$f":"(COUNTIFS(AF$2:AF$193,2,ID_HDIG,3))/AF$207","v":6.25E-2},null,{"$f":"(COUNTIFS(AH$2:AH$193,2,ID_HDIG,3))/AH$207","v":0.5},null,null,{"$f":"(COUNTIFS(AK$2:AK$193,2,ID_HDIG,3))/AK$207","v":0.2},null,{"$f":"(COUNTIFS(AM$2:AM$193,2,ID_HDIG,3))/AM$207","v":0.4},null,null,{"$f":"(COUNTIFS(AP$2:AP$193,2,ID_HDIG,3))/AP$207","v":0.11764705882352941},null,{"$f":"(COUNTIFS(AR$2:AR$193,2,ID_HDIG,3))/AR$207","v":0.17647058823529413},null,null,{"$f":"(COUNTIFS(AU$2:AU$193,2,ID_HDIG,3))/AU$207","v":7.6923076923076927E-2},null,{"$f":"(COUNTIFS(AW$2:AW$193,2,ID_HDIG,3))/AW$207","v":0.30769230769230771},null,null,{"$f":"(COUNTIFS(AZ$2:AZ$193,2,ID_HDIG,3))/AZ$207","v":0.23076923076923078},null,{"$f":"(COUNTIFS(BB$2:BB$193,2,ID_HDIG,3))/BB$207","v":0.46153846153846156},null,null,{"$f":"(COUNTIFS(BE$2:BE$193,2,ID_HDIG,3))/BE$207","v":0.26666666666666666},null,{"$f":"(COUNTIFS(BG$2:BG$193,2,ID_HDIG,3))/BG$207","v":0.13333333333333333}]
["High HD: % of responses as 3",{"$f":"(COUNTIFS(B$2:B$193,3,ID_HDIG,3))/$B$207","v":0.1111111111111111},null,{"$f":"(COUNTIFS(D$2:D$193,3,ID_HDIG,3))/$B$207","v":0.22222222222222221},null,null,{"$f":"(COUNTIFS(G$2:G$193,3,ID_HDIG,3))/G$207","v":0},null,{"$f":"(COUNTIFS(I$2:I$193,3,ID_HDIG,3))/I$207","v":0.11764705882352941},null,null,{"$f":"(COUNTIFS(L$2:L$193,3,ID_HDIG,3))/L$207","v":0},null,{"$f":"(COUNTIFS(N$2:N$193,3,ID_HDIG,3))/N$207","v":0.11764705882352941},null,null,{"$f":"(COUNTIFS(Q$2:Q$193,3,ID_HDIG,3))/Q$207","v":0},null,{"$f":"(COUNTIFS(S$2:S$193,3,ID_HDIG,3))/S$207","v":0.23529411764705882},null,null,{"$f":"(COUNTIFS(V$2:V$193,3,ID_HDIG,3))/V$207","v":0.1},null,{"$f":"(COUNTIFS(X$2:X$193,3,ID_HDIG,3))/X$207","v":0.1},null,null,{"$f":"(COUNTIFS(AA$2:AA$193,3,ID_HDIG,3))/AA$207","v":0.15},null,{"$f":"(COUNTIFS(AC$2:AC$193,3,ID_HDIG,3))/AC$207","v":0.2},null,null,{"$f":"(COUNTIFS(AF$2:AF$193,3,ID_HDIG,3))/AF$207","v":0.125},null,{"$f":"(COUNTIFS(AH$2:AH$193,3,ID_HDIG,3))/AH$207","v":0},null,null,{"$f":"(COUNTIFS(AK$2:AK$193,3,ID_HDIG,3))/AK$207","v":0.2},null,{"$f":"(COUNTIFS(AM$2:AM$193,3,ID_HDIG,3))/AM$207","v":0},null,null,{"$f":"(COUNTIFS(AP$2:AP$193,3,ID_HDIG,3))/AP$207","v":0.35294117647058826},null,{"$f":"(COUNTIFS(AR$2:AR$193,3,ID_HDIG,3))/AR$207","v":0.17647058823529413},null,null,{"$f":"(COUNTIFS(AU$2:AU$193,3,ID_HDIG,3))/AU$207","v":0.30769230769230771},null,{"$f":"(COUNTIFS(AW$2:AW$193,3,ID_HDIG,3))/AW$207","v":0.23076923076923078},null,null,{"$f":"(COUNTIFS(AZ$2:AZ$193,3,ID_HDIG,3))/AZ$207","v":0.23076923076923078},null,{"$f":"(COUNTIFS(BB$2:BB$193,3,ID_HDIG,3))/BB$207","v":7.6923076923076927E-2},null,null,{"$f":"(COUNTIFS(BE$2:BE$193,3,ID_HDIG,3))/BE$207","v":0.2},null,{"$f":"(COUNTIFS(BG$2:BG$193,3,ID_HDIG,3))/BG$207","v":0}]
["High HD: % of responses as 4",{"$f":"(COUNTIFS(B$2:B$193,4,ID_HDIG,3))/$B$207","v":0.27777777777777779},null,{"$f":"(COUNTIFS(D$2:D$193,4,ID_HDIG,3))/$B$207","v":0.44444444444444442},null,null,{"$f":"(COUNTIFS(G$2:G$193,4,ID_HDIG,3))/G$207","v":0.17647058823529413},null,{"$f":"(COUNTIFS(I$2:I$193,4,ID_HDIG,3))/I$207","v":0.11764705882352941},null,null,{"$f":"(COUNTIFS(L$2:L$193,4,ID_HDIG,3))/L$207","v":0.17647058823529413},null,{"$f":"(COUNTIFS(N$2:N$193,4,ID_HDIG,3))/N$207","v":0.35294117647058826},null,null,{"$f":"(COUNTIFS(Q$2:Q$193,4,ID_HDIG,3))/Q$207","v":0.20833333333333334},null,{"$f":"(COUNTIFS(S$2:S$193,4,ID_HDIG,3))/S$207","v":0.41176470588235292},null,null,{"$f":"(COUNTIFS(V$2:V$193,4,ID_HDIG,3))/V$207","v":0.4},null,{"$f":"(COUNTIFS(X$2:X$193,4,ID_HDIG,3))/X$207","v":0.65},null,null,{"$f":"(COUNTIFS(AA$2:AA$193,4,ID_HDIG,3))/AA$207","v":0.4},null,{"$f":"(COUNTIFS(AC$2:AC$193,4,ID_HDIG,3))/AC$207","v":0.45},null,null,{"$f":"(COUNTIFS(AF$2:AF$193,4,ID_HDIG,3))/AF$207","v":0.3125},null,{"$f":"(COUNTIFS(AH$2:AH$193,4,ID_HDIG,3))/AH$207","v":0.3125},null,null,{"$f":"(COUNTIFS(AK$2:AK$193,4,ID_HDIG,3))/AK$207","v":0.1},null,{"$f":"(COUNTIFS(AM$2:AM$193,4,ID_HDIG,3))/AM$207","v":0.5},null,null,{"$f":"(COUNTIFS(AP$2:AP$193,4,ID_HDIG,3))/AP$207","v":0.11764705882352941},null,{"$f":"(COUNTIFS(AR$2:AR$193,4,ID_HDIG,3))/AR$207","v":0.52941176470588236},null,null,{"$f":"(COUNTIFS(AU$2:AU$193,4,ID_HDIG,3))/AU$207","v":0.30769230769230771},null,{"$f":"(COUNTIFS(AW$2:AW$193,4,ID_HDIG,3))/AW$207","v":0.46153846153846156},null,null,{"$f":"(COUNTIFS(AZ$2:AZ$193,4,ID_HDIG,3))/AZ$207","v":0.30769230769230771},null,{"$f":"(COUNTIFS(BB$2:BB$193,4,ID_HDIG,3))/BB$207","v":0.30769230769230771},null,null,{"$f":"(COUNTIFS(BE$2:BE$193,4,ID_HDIG,3))/BE$207","v":0.26666666666666666},null,{"$f":"(COUNTIFS(BG$2:BG$193,4,ID_HDIG,3))/BG$207","v":0.4}]
["High HD: % of responses as 5",{"$f":"(COUNTIFS(B$2:B$193,5,ID_HDIG,3))/$B$207","v":5.5555555555555552E-2},null,{"$f":"(COUNTIFS(D$2:D$193,5,ID_HDIG,3))/$B$207","v":5.5555555555555552E-2},null,null,{"$f":"(COUNTIFS(G$2:G$193,5,ID_HDIG,3))/G$207","v":5.8823529411764705E-2},null,{"$f":"(COUNTIFS(I$2:I$193,5,ID_HDIG,3))/I$207","v":0},null,null,{"$f":"(COUNTIFS(L$2:L$193,5,ID_HDIG,3))/L$207","v":5.8823529411764705E-2},null,{"$f":"(COUNTIFS(N$2:N$193,5,ID_HDIG,3))/N$207","v":0},null,null,{"$f":"(COUNTIFS(Q$2:Q$193,5,ID_HDIG,3))/Q$207","v":8.3333333333333329E-2},null,{"$f":"(COUNTIFS(S$2:S$193,5,ID_HDIG,3))/S$207","v":0},null,null,{"$f":"(COUNTIFS(V$2:V$193,5,ID_HDIG,3))/V$207","v":0.15},null,{"$f":"(COUNTIFS(X$2:X$193,5,ID_HDIG,3))/X$207","v":0.15},null,null,{"$f":"(COUNTIFS(AA$2:AA$193,5,ID_HDIG,3))/AA$207","v":0.3},null,{"$f":"(COUNTIFS(AC$2:AC$193,5,ID_HDIG,3))/AC$207","v":0.3},null,null,{"$f":"(COUNTIFS(AF$2:AF$193,5,ID_HDIG,3))/AF$207","v":0},null,{"$f":"(COUNTIFS(AH$2:AH$193,5,ID_HDIG,3))/AH$207","v":0},null,null,{"$f":"(COUNTIFS(AK$2:AK$193,5,ID_HDIG,3))/AK$207","v":0.3},null,{"$f":"(COUNTIFS(AM$2:AM$193,5,ID_HDIG,3))/AM$207","v":0},null,null,{"$f":"(COUNTIFS(AP$2:AP$193,5,ID_HDIG,3))/AP$207","v":5.8823529411764705E-2},null,{"$f":"(COUNTIFS(AR$2:AR$193,5,ID_HDIG,3))/AR$207","v":0},null,null,{"$f":"(COUNTIFS(AU$2:AU$193,5,ID_HDIG,3))/AU$207","v":7.6923076923076927E-2},null,{"$f":"(COUNTIFS(AW$2:AW$193,5,ID_HDIG,3))/AW$207","v":0},null,null,{"$f":"(COUNTIFS(AZ$2:AZ$193,5,ID_HDIG,3))/AZ$207","v":7.6923076923076927E-2},null,{"$f":"(COUNTIFS(BB$2:BB$193,5,ID_HDIG,3))/BB$207","v":0},null,null,{"$f":"(COUNTIFS(BE$2:BE$193,5,ID_HDIG,3))/BE$207","v":0.13333333333333333},null,{"$f":"(COUNTIFS(BG$2:BG$193,5,ID_HDIG,3))/BG$207","v":0}]
["Very High HD: % of responses as 1",{"$f":"(COUNTIFS(B$2:B$193,1,ID_HDIG,4))/$B$208","v":5.8823529411764705E-2},null,{"$f":"(COUNTIFS(D$2:D$193,1,ID_HDIG,4))/$B$208","v":5.8823529411764705E-2},null,null,{"$f":"(COUNTIFS(G$2:G$193,1,ID_HDIG,4))/G$208","v":0.2857142857142857},null,{"$f":"(COUNTIFS(I$2:I$193,1,ID_HDIG,4))/I$208","v":0.5714285714285714},null,null,{"$f":"(COUNTIFS(L$2:L$193,1,ID_HDIG,4))/L$208","v":0.2857142857142857},null,{"$f":"(COUNTIFS(N$2:N$193,1,ID_HDIG,4))/N$208","v":0.14285714285714285},null,null,{"$f":"(COUNTIFS(Q$2:Q$193,1,ID_HDIG,4))/Q$208","v":0.38095238095238093},null,{"$f":"(COUNTIFS(S$2:S$193,1,ID_HDIG,4))/S$208","v":0.14285714285714285},null,null,{"$f":"(COUNTIFS(V$2:V$193,1,ID_HDIG,4))/V$208","v":0},null,{"$f":"(COUNTIFS(X$2:X$193,1,ID_HDIG,4))/X$208","v":0},null,null,{"$f":"(COUNTIFS(AA$2:AA$193,1,ID_HDIG,4))/AA$208","v":0},null,{"$f":"(COUNTIFS(AC$2:AC$193,1,ID_HDIG,4))/AC$208","v":0},null,null,{"$f":"(COUNTIFS(AF$2:AF$193,1,ID_HDIG,4))/AF$208","v":0.54545454545454541},null,{"$f":"(COUNTIFS(AH$2:AH$193,1,ID_HDIG,4))/AH$208","v":0.72727272727272729},null,null,{"$f":"(COUNTIFS(AK$2:AK$193,1,ID_HDIG,4))/AK$208","v":9.0909090909090912E-2},null,{"$f":"(COUNTIFS(AM$2:AM$193,1,ID_HDIG,4))/AM$208","v":0},null,null,{"$f":"(COUNTIFS(AP$2:AP$193,1,ID_HDIG,4))/AP$208","v":0.14285714285714285},null,{"$f":"(COUNTIFS(AR$2:AR$193,1,ID_HDIG,4))/AR$208","v":0.5},null,null,{"$f":"(COUNTIFS(AU$2:AU$193,1,ID_HDIG,4))/AU$208","v":7.6923076923076927E-2},null,{"$f":"(COUNTIFS(AW$2:AW$193,1,ID_HDIG,4))/AW$208","v":0.30769230769230771},null,null,{"$f":"(COUNTIFS(AZ$2:AZ$193,1,ID_HDIG,4))/AZ$208","v":0.23076923076923078},null,{"$f":"(COUNTIFS(BB$2:BB$193,1,ID_HDIG,4))/BB$208","v":0.30769230769230771},null,null,{"$f":"(COUNTIFS(BE$2:BE$193,1,ID_HDIG,4))/BE$208","v":0.4},null,{"$f":"(COUNTIFS(BG$2:BG$193,1,ID_HDIG,4))/BG$208","v":0.26666666666666666}]
["Very High HD: % of responses as 2",{"$f":"(COUNTIFS(B$2:B$193,2,ID_HDIG,4))/$B$208","v":0.41176470588235292},null,{"$f":"(COUNTIFS(D$2:D$193,2,ID_HDIG,4))/$B$208","v":0.17647058823529413},null,null,{"$f":"(COUNTIFS(G$2:G$193,2,ID_HDIG,4))/G$208","v":0.2857142857142857},null,{"$f":"(COUNTIFS(I$2:I$193,2,ID_HDIG,4))/I$208","v":7.1428571428571425E-2},null,null,{"$f":"(COUNTIFS(L$2:L$193,2,ID_HDIG,4))/L$208","v":0.2857142857142857},null,{"$f":"(COUNTIFS(N$2:N$193,2,ID_HDIG,4))/N$208","v":0.14285714285714285},null,null,{"$f":"(COUNTIFS(Q$2:Q$193,2,ID_HDIG,4))/Q$208","v":0.23809523809523808},null,{"$f":"(COUNTIFS(S$2:S$193,2,ID_HDIG,4))/S$208","v":7.1428571428571425E-2},null,null,{"$f":"(COUNTIFS(V$2:V$193,2,ID_HDIG,4))/V$208","v":0.26315789473684209},null,{"$f":"(COUNTIFS(X$2:X$193,2,ID_HDIG,4))/X$208","v":5.2631578947368418E-2},null,null,{"$f":"(COUNTIFS(AA$2:AA$193,2,ID_HDIG,4))/AA$208","v":0.31578947368421051},null,{"$f":"(COUNTIFS(AC$2:AC$193,2,ID_HDIG,4))/AC$208","v":5.2631578947368418E-2},null,null,{"$f":"(COUNTIFS(AF$2:AF$193,2,ID_HDIG,4))/AF$208","v":0.27272727272727271},null,{"$f":"(COUNTIFS(AH$2:AH$193,2,ID_HDIG,4))/AH$208","v":0.18181818181818182},null,null,{"$f":"(COUNTIFS(AK$2:AK$193,2,ID_HDIG,4))/AK$208","v":0.36363636363636365},null,{"$f":"(COUNTIFS(AM$2:AM$193,2,ID_HDIG,4))/AM$208","v":0},null,null,{"$f":"(COUNTIFS(AP$2:AP$193,2,ID_HDIG,4))/AP$208","v":0.21428571428571427},null,{"$f":"(COUNTIFS(AR$2:AR$193,2,ID_HDIG,4))/AR$208","v":0.14285714285714285},null,null,{"$f":"(COUNTIFS(AU$2:AU$193,2,ID_HDIG,4))/AU$208","v":0.23076923076923078},null,{"$f":"(COUNTIFS(AW$2:AW$193,2,ID_HDIG,4))/AW$208","v":7.6923076923076927E-2},null,null,{"$f":"(COUNTIFS(AZ$2:AZ$193,2,ID_HDIG,4))/AZ$208","v":0.23076923076923078},null,{"$f":"(COUNTIFS(BB$2:BB$193,2,ID_HDIG,4))/BB$208","v":7.6923076923076927E-2},null,null,{"$f":"(COUNTIFS(BE$2:BE$193,2,ID_HDIG,4))/BE$208","v":0.26666666666666666},null,{"$f":"(COUNTIFS(BG$2:BG$193,2,ID_HDIG,4))/BG$208","v":0.13333333333333333}]
["Very High HD: % of responses as 3",{"$f":"(COUNTIFS(B$2:B$193,3,ID_HDIG,4))/$B$208","v":0.11764705882352941},null,{"$f":"(COUNTIFS(D$2:D$193,3,ID_HDIG,4))/$B$208","v":5.8823529411764705E-2},null,null,{"$f":"(COUNTIFS(G$2:G$193,3,ID_HDIG,4))/G$208","v":7.1428571428571425E-2},null,{"$f":"(COUNTIFS(I$2:I$193,3,ID_HDIG,4))/I$208","v":7.1428571428571425E-2},null,null,{"$f":"(COUNTIFS(L$2:L$193,3,ID_HDIG,4))/L$208","v":7.1428571428571425E-2},null,{"$f":"(COUNTIFS(N$2:N$193,3,ID_HDIG,4))/N$208","v":7.1428571428571425E-2},null,null,{"$f":"(COUNTIFS(Q$2:Q$193,3,ID_HDIG,4))/Q$208","v":4.7619047619047616E-2},null,{"$f":"(COUNTIFS(S$2:S$193,3,ID_HDIG,4))/S$208","v":0.14285714285714285},null,null,{"$f":"(COUNTIFS(V$2:V$193,3,ID_HDIG,4))/V$208","v":0.15789473684210525},null,{"$f":"(COUNTIFS(X$2:X$193,3,ID_HDIG,4))/X$208","v":0},null,null,{"$f":"(COUNTIFS(AA$2:AA$193,3,ID_HDIG,4))/AA$208","v":0.10526315789473684},null,{"$f":"(COUNTIFS(AC$2:AC$193,3,ID_HDIG,4))/AC$208","v":0},null,null,{"$f":"(COUNTIFS(AF$2:AF$193,3,ID_HDIG,4))/AF$208","v":0},null,{"$f":"(COUNTIFS(AH$2:AH$193,3,ID_HDIG,4))/AH$208","v":0},null,null,{"$f":"(COUNTIFS(AK$2:AK$193,3,ID_HDIG,4))/AK$208","v":9.0909090909090912E-2},null,{"$f":"(COUNTIFS(AM$2:AM$193,3,ID_HDIG,4))/AM$208","v":0},null,null,{"$f":"(COUNTIFS(AP$2:AP$193,3,ID_HDIG,4))/AP$208","v":0.14285714285714285},null,{"$f":"(COUNTIFS(AR$2:AR$193,3,ID_HDIG,4))/AR$208","v":0},null,null,{"$f":"(COUNTIFS(AU$2:AU$193,3,ID_HDIG,4))/AU$208","v":0.30769230769230771},null,{"$f":"(COUNTIFS(AW$2:AW$193,3,ID_HDIG,4))/AW$208","v":7.6923076923076927E-2},null,null,{"$f":"(COUNTIFS(AZ$2:AZ$193,3,ID_HDIG,4))/AZ$208","v":0.15384615384615385},null,{"$f":"(COUNTIFS(BB$2:BB$193,3,ID_HDIG,4))/BB$208","v":0},null,null,{"$f":"(COUNTIFS(BE$2:BE$193,3,ID_HDIG,4))/BE$208","v":6.6666666666666666E-2},null,{"$f":"(COUNTIFS(BG$2:BG$193,3,ID_HDIG,4))/BG$208","v":0.13333333333333333}]
["Very High HD: % of responses as 4",{"$f":"(COUNTIFS(B$2:B$193,4,ID_HDIG,4))/$B$208","v":0.35294117647058826},null,{"$f":"(COUNTIFS(D$2:D$193,4,ID_HDIG,4))/$B$208","v":0.35294117647058826},null,null,{"$f":"(COUNTIFS(G$2:G$193,4,ID_HDIG,4))/G$208","v":0.2857142857142857},null,{"$f":"(COUNTIFS(I$2:I$193,4,ID_HDIG,4))/I$208","v":7.1428571428571425E-2},null,null,{"$f":"(COUNTIFS(L$2:L$193,4,ID_HDIG,4))/L$208","v":0.2857142857142857},null,{"$f":"(COUNTIFS(N$2:N$193,4,ID_HDIG,4))/N$208","v":0.35714285714285715},null,null,{"$f":"(COUNTIFS(Q$2:Q$193,4,ID_HDIG,4))/Q$208","v":0.2857142857142857},null,{"$f":"(COUNTIFS(S$2:S$193,4,ID_HDIG,4))/S$208","v":0.2857142857142857},null,null,{"$f":"(COUNTIFS(V$2:V$193,4,ID_HDIG,4))/V$208","v":0.36842105263157893},null,{"$f":"(COUNTIFS(X$2:X$193,4,ID_HDIG,4))/X$208","v":0.47368421052631576},null,null,{"$f":"(COUNTIFS(AA$2:AA$193,4,ID_HDIG,4))/AA$208","v":0.42105263157894735},null,{"$f":"(COUNTIFS(AC$2:AC$193,4,ID_HDIG,4))/AC$208","v":0.21052631578947367},null,null,{"$f":"(COUNTIFS(AF$2:AF$193,4,ID_HDIG,4))/AF$208","v":0.18181818181818182},null,{"$f":"(COUNTIFS(AH$2:AH$193,4,ID_HDIG,4))/AH$208","v":0},null,null,{"$f":"(COUNTIFS(AK$2:AK$193,4,ID_HDIG,4))/AK$208","v":0.36363636363636365},null,{"$f":"(COUNTIFS(AM$2:AM$193,4,ID_HDIG,4))/AM$208","v":0.54545454545454541},null,null,{"$f":"(COUNTIFS(AP$2:AP$193,4,ID_HDIG,4))/AP$208","v":0.42857142857142855},null,{"$f":"(COUNTIFS(AR$2:AR$193,4,ID_HDIG,4))/AR$208","v":0.21428571428571427},null,null,{"$f":"(COUNTIFS(AU$2:AU$193,4,ID_HDIG,4))/AU$208","v":0.30769230769230771},null,{"$f":"(COUNTIFS(AW$2:AW$193,4,ID_HDIG,4))/AW$208","v":0.30769230769230771},null,null,{"$f":"(COUNTIFS(AZ$2:AZ$193,4,ID_HDIG,4))/AZ$208","v":0.30769230769230771},null,{"$f":"(COUNTIFS(BB$2:BB$193,4,ID_HDIG,4))/BB$208","v":0.30769230769230771},null,null,{"$f":"(COUNTIFS(BE$2:BE$193,4,ID_HDIG,4))/BE$208","v":0.2},null,{"$f":"(COUNTIFS(BG$2:BG$193,4,ID_HDIG,4))/BG$208","v":0}]
["Very High HD: % of responses as 5",{"$f":"(COUNTIFS(B$2:B$193,5,ID_HDIG,4))/$B$208","v":5.8823529411764705E-2},null,{"$f":"(COUNTIFS(D$2:D$193,5,ID_HDIG,4))/$B$208","v":0.35294117647058826},null,null,{"$f":"(COUNTIFS(G$2:G$193,5,ID_HDIG,4))/G$208","v":7.1428571428571425E-2},null,{"$f":"(COUNTIFS(I$2:I$193,5,ID_HDIG,4))/I$208","v":0.21428571428571427},null,null,{"$f":"(COUNTIFS(L$2:L$193,5,ID_HDIG,4))/L$208","v":7.1428571428571425E-2},null,{"$f":"(COUNTIFS(N$2:N$193,5,ID_HDIG,4))/N$208","v":0.2857142857142857},null,null,{"$f":"(COUNTIFS(Q$2:Q$193,5,ID_HDIG,4))/Q$208","v":4.7619047619047616E-2},null,{"$f":"(COUNTIFS(S$2:S$193,5,ID_HDIG,4))/S$208","v":0.35714285714285715},null,null,{"$f":"(COUNTIFS(V$2:V$193,5,ID_HDIG,4))/V$208","v":0.21052631578947367},null,{"$f":"(COUNTIFS(X$2:X$193,5,ID_HDIG,4))/X$208","v":0.47368421052631576},null,null,{"$f":"(COUNTIFS(AA$2:AA$193,5,ID_HDIG,4))/AA$208","v":0.15789473684210525},null,{"$f":"(COUNTIFS(AC$2:AC$193,5,ID_HDIG,4))/AC$208","v":0.73684210526315785},null,null,{"$f":"(COUNTIFS(AF$2:AF$193,5,ID_HDIG,4))/AF$208","v":0},null,{"$f":"(COUNTIFS(AH$2:AH$193,5,ID_HDIG,4))/AH$208","v":9.0909090909090912E-2},null,null,{"$f":"(COUNTIFS(AK$2:AK$193,5,ID_HDIG,4))/AK$208","v":9.0909090909090912E-2},null,{"$f":"(COUNTIFS(AM$2:AM$193,5,ID_HDIG,4))/AM$208","v":0.45454545454545453},null,null,{"$f":"(COUNTIFS(AP$2:AP$193,5,ID_HDIG,4))/AP$208","v":7.1428571428571425E-2},null,{"$f":"(COUNTIFS(AR$2:AR$193,5,ID_HDIG,4))/AR$208","v":0.14285714285714285},null,null,{"$f":"(COUNTIFS(AU$2:AU$193,5,ID_HDIG,4))/AU$208","v":7.6923076923076927E-2},null,{"$f":"(COUNTIFS(AW$2:AW$193,5,ID_HDIG,4))/AW$208","v":0.23076923076923078},null,null,{"$f":"(COUNTIFS(AZ$2:AZ$193,5,ID_HDIG,4))/AZ$208","v":7.6923076923076927E-2},null,{"$f":"(COUNTIFS(BB$2:BB$193,5,ID_HDIG,4))/BB$208","v":0.30769230769230771},null,null,{"$f":"(COUNTIFS(BE$2:BE$193,5,ID_HDIG,4))/BE$208","v":6.6666666666666666E-2},null,{"$f":"(COUNTIFS(BG$2:BG$193,5,ID_HDIG,4))/BG$208","v":0.46666666666666667}]
[]
[null,1,2,3,4,5,1,2,3,4,5,1,2,3,4,5,1,2,3,4,5,1,2,3,4,5,1,2,3,4,5,1,2,3,4,5,1,2,3,4,5,1,2,3,4,5,1,2,3,4,5,1,2,3,4,5,1,2,3,4,5]
[null,"Not relevant","Under consideration","In place, not yet implemented ","In place, partially implemented","Fully implemented","Not relevant","Under consideration","In place but not yet implemented ","In place but partially implemented","Fully implemented","Not relevant","Under consideration","In place but not yet implemented ","In place but partially implemented","Fully implemented","Not relevant","Under consideration","In place but not yet implemented ","In place but partially implemented","Fully implemented","Not relevant","Under consideration","In place but not yet implemented ","In place but partially implemented","Fully implemented","Not relevant","Under consideration","In place but not yet implemented ","In place but partially implemented","Fully implemented","Not relevant","Under consideration","In place but not yet implemented ","In place but partially implemented","Fully implemented","Not relevant","Under consideration","In place but not yet implemented ","In place but partially implemented","Fully implemented","Not relevant","Under consideration","In place but not yet implemented ","In place but partially implemented","Fully implemented","Not relevant","Under consideration","In place but not yet implemented ","In place but partially implemented","Fully implemented","Not relevant","Under consideration","In place but not yet implemented ","In place but partially implemented","Fully implemented","Not relevant","Under consideration","In place but not yet implemented ","In place but partially implemented","Fully implemented"]
["Low HDI: 2007",{"$f":"TRANSPOSE($B$212:$B$216)","v":9.0909090909090912E-2},0.45454545454545453,0.18181818181818182,0.27272727272727271,0,{"$f":"TRANSPOSE($G$212:$G$216)","v":0.625},0.25,0,0.125,0,{"$f":"TRANSPOSE($L$212:$L$216)","v":0.55555555555555558},0.22222222222222221,0.1111111111111111,0.1111111111111111,0,{"$f":"TRANSPOSE($Q$212:$Q$216)","v":0.5714285714285714},0.21428571428571427,0.14285714285714285,7.1428571428571425E-2,0,{"$f":"TRANSPOSE(V$212:V$216)","v":0},0.4,0,0.5,0.1,{"$f":"TRANSPOSE(AA$212:AA$216)","v":0},0,0.1111111111111111,0.66666666666666663,0.22222222222222221,{"$f":"TRANSPOSE(AF$212:AF$216)","v":0.44444444444444442},0,0,0.55555555555555558,0,{"$f":"TRANSPOSE(AK$212:AK$216)","v":0.4},0.2,0,0.4,0,{"$f":"TRANSPOSE(AP$212:AP$216)","v":0.44444444444444442},0,0.1111111111111111,0.44444444444444442,0,{"$f":"TRANSPOSE(AU$212:AU$216)","v":0},0.125,0.125,0.5,0.25,{"$f":"TRANSPOSE(AZ$212:AZ$216)","v":0.5714285714285714},0,0.14285714285714285,0.2857142857142857,0,{"$f":"TRANSPOSE(BE$212:BE$216)","v":0.5},0,0.16666666666666666,0.33333333333333331,0]
["Low HDI: 2011",{"$f":"TRANSPOSE($D$212:$D$216)","v":0},0.45454545454545453,0.36363636363636365,0,0.18181818181818182,{"$f":"TRANSPOSE($I$212:$I$216)","v":0.5},0.5,0,0,0,{"$f":"TRANSPOSE($N$212:$N$216)","v":0.22222222222222221},0.55555555555555558,0.1111111111111111,0.1111111111111111,0,{"$f":"TRANSPOSE($S$212:$S$216)","v":0.22222222222222221},0.55555555555555558,0.1111111111111111,0.1111111111111111,0,{"$f":"TRANSPOSE(X$212:X$216)","v":0},0.4,0.1,0.4,0.1,{"$f":"TRANSPOSE(AC$212:AC$216)","v":0},0.22222222222222221,0.22222222222222221,0.44444444444444442,0.1111111111111111,{"$f":"TRANSPOSE(AH$212:AH$216)","v":0},0.1111111111111111,0.44444444444444442,0.33333333333333331,0.1111111111111111,{"$f":"TRANSPOSE(AM$212:AM$216)","v":0},0.2,0.2,0.6,0,{"$f":"TRANSPOSE(AR$212:AR$216)","v":0.1111111111111111},0.44444444444444442,0.22222222222222221,0.22222222222222221,0,{"$f":"TRANSPOSE(AW$212:AW$216)","v":0},0.375,0.375,0.25,0,{"$f":"TRANSPOSE(BB$212:BB$216)","v":0},0.14285714285714285,0,0.8571428571428571,0,{"$f":"TRANSPOSE(BG$212:BG$216)","v":0},0.16666666666666666,0,0.83333333333333337,0]
["Medium HDI: 2007",{"$f":"TRANSPOSE($B$217:$B$221)","v":0.10526315789473684},0.31578947368421051,0.21052631578947367,0.31578947368421051,5.2631578947368418E-2,{"$f":"TRANSPOSE($G$217:$G$221)","v":0.29411764705882354},0.23529411764705882,5.8823529411764705E-2,0.35294117647058826,5.8823529411764705E-2,{"$f":"TRANSPOSE($L$217:$L$221)","v":0.29411764705882354},0.23529411764705882,5.8823529411764705E-2,0.35294117647058826,5.8823529411764705E-2,{"$f":"TRANSPOSE($Q$217:$Q$221)","v":0.375},0.20833333333333334,8.3333333333333329E-2,0.29166666666666669,4.1666666666666664E-2,{"$f":"TRANSPOSE(V$217:V$221)","v":0.05},0.2,0.05,0.55000000000000004,0.15,{"$f":"TRANSPOSE(AA$217:AA$221)","v":0},0,0.15,0.55000000000000004,0.3,{"$f":"TRANSPOSE(AF$217:AF$221)","v":0.23076923076923078},7.6923076923076927E-2,7.6923076923076927E-2,0.46153846153846156,0.15384615384615385,{"$f":"TRANSPOSE(AK$217:AK$221)","v":9.0909090909090912E-2},0.18181818181818182,9.0909090909090912E-2,0.54545454545454541,9.0909090909090912E-2,{"$f":"TRANSPOSE(AP$217:AP$221)","v":0.14285714285714285},0.14285714285714285,7.1428571428571425E-2,0.2857142857142857,0.35714285714285715,{"$f":"TRANSPOSE(AU$217:AU$221)","v":9.0909090909090912E-2},0,0.18181818181818182,0.63636363636363635,9.0909090909090912E-2,{"$f":"TRANSPOSE(AZ$217:AZ$221)","v":0.21428571428571427},7.1428571428571425E-2,0.14285714285714285,0.5,7.1428571428571425E-2,{"$f":"TRANSPOSE(BE$217:BE$221)","v":0.13333333333333333},0.26666666666666666,6.6666666666666666E-2,0.46666666666666667,6.6666666666666666E-2]
["Medium HDI: 2011",{"$f":"TRANSPOSE($D$217:$D$221)","v":5.2631578947368418E-2},0.31578947368421051,0.15789473684210525,0.42105263157894735,5.2631578947368418E-2,{"$f":"TRANSPOSE($I$217:$I$221)","v":0.23529411764705882},0.35294117647058826,5.8823529411764705E-2,0.29411764705882354,5.8823529411764705E-2,{"$f":"TRANSPOSE($N$217:$N$221)","v":0.23529411764705882},0.29411764705882354,0.11764705882352941,0.29411764705882354,5.8823529411764705E-2,{"$f":"TRANSPOSE($S$217:$S$221)","v":0.17647058823529413},0.35294117647058826,0.11764705882352941,0.29411764705882354,5.8823529411764705E-2,{"$f":"TRANSPOSE(X$217:X$221)","v":0},0.2,0.15,0.55000000000000004,0.1,{"$f":"TRANSPOSE(AC$217:AC$221)","v":0.05},0.3,0.05,0.4,0.2,{"$f":"TRANSPOSE(AH$217:AH$221)","v":0},0.23076923076923078,0.15384615384615385,0.61538461538461542,0,{"$f":"TRANSPOSE(AM$217:AM$221)","v":0},0.27272727272727271,0.27272727272727271,0.45454545454545453,0,{"$f":"TRANSPOSE(AR$217:AR$221)","v":0},0.2857142857142857,0.2857142857142857,0.42857142857142855,0,{"$f":"TRANSPOSE(AW$217:AW$221)","v":0},0.27272727272727271,0.27272727272727271,0.45454545454545453,0,{"$f":"TRANSPOSE(BB$217:BB$221)","v":0.14285714285714285},0.35714285714285715,0.14285714285714285,0.35714285714285715,0,{"$f":"TRANSPOSE(BG$217:BG$221)","v":0.26666666666666666},0.33333333333333331,0.2,6.6666666666666666E-2,0.13333333333333333]
["High HDI: 2007",{"$f":"TRANSPOSE($B$222:$B$226)","v":0.1111111111111111},0.44444444444444442,0.1111111111111111,0.27777777777777779,5.5555555555555552E-2,{"$f":"TRANSPOSE($G$222:$G$226)","v":0.47058823529411764},0.29411764705882354,0,0.17647058823529413,5.8823529411764705E-2,{"$f":"TRANSPOSE($L$222:$L$226)","v":0.47058823529411764},0.29411764705882354,0,0.17647058823529413,5.8823529411764705E-2,{"$f":"TRANSPOSE($Q$222:$Q$226)","v":0.45833333333333331},0.25,0,0.20833333333333334,8.3333333333333329E-2,{"$f":"TRANSPOSE(V$222:V$226)","v":0.1},0.25,0.1,0.4,0.15,{"$f":"TRANSPOSE(AA$222:AA$226)","v":0},0.15,0.15,0.4,0.3,{"$f":"TRANSPOSE(AF$222:AF$226)","v":0.5},6.25E-2,0.125,0.3125,0,{"$f":"TRANSPOSE(AK$222:AK$226)","v":0.2},0.2,0.2,0.1,0.3,{"$f":"TRANSPOSE(AP$222:AP$226)","v":0.35294117647058826},0.11764705882352941,0.35294117647058826,0.11764705882352941,5.8823529411764705E-2,{"$f":"TRANSPOSE(AU$222:AU$226)","v":0.23076923076923078},7.6923076923076927E-2,0.30769230769230771,0.30769230769230771,7.6923076923076927E-2,{"$f":"TRANSPOSE(AZ$222:AZ$226)","v":0.15384615384615385},0.23076923076923078,0.23076923076923078,0.30769230769230771,7.6923076923076927E-2,{"$f":"TRANSPOSE(BE$222:BE$226)","v":0.13333333333333333},0.26666666666666666,0.2,0.26666666666666666,0.13333333333333333]
["High HDI: 2011",{"$f":"TRANSPOSE($D$222:$D$226)","v":5.5555555555555552E-2},0.22222222222222221,0.22222222222222221,0.44444444444444442,5.5555555555555552E-2,{"$f":"TRANSPOSE($I$222:$I$226)","v":0.52941176470588236},0.23529411764705882,0.11764705882352941,0.11764705882352941,0,{"$f":"TRANSPOSE($N$222:$N$226)","v":0.11764705882352941},0.41176470588235292,0.11764705882352941,0.35294117647058826,0,{"$f":"TRANSPOSE($S$222:$S$226)","v":0.11764705882352941},0.23529411764705882,0.23529411764705882,0.41176470588235292,0,{"$f":"TRANSPOSE(X$222:X$226)","v":0},0.1,0.1,0.65,0.15,{"$f":"TRANSPOSE(AC$222:AC$226)","v":0},0.05,0.2,0.45,0.3,{"$f":"TRANSPOSE(AH$222:AH$226)","v":0.1875},0.5,0,0.3125,0,{"$f":"TRANSPOSE(AM$222:AM$226)","v":0.1},0.4,0,0.5,0,{"$f":"TRANSPOSE(AR$222:AR$226)","v":0.11764705882352941},0.17647058823529413,0.17647058823529413,0.52941176470588236,0,{"$f":"TRANSPOSE(AW$222:AW$226)","v":0},0.30769230769230771,0.23076923076923078,0.46153846153846156,0,{"$f":"TRANSPOSE(BB$222:BB$226)","v":0.15384615384615385},0.46153846153846156,7.6923076923076927E-2,0.30769230769230771,0,{"$f":"TRANSPOSE(BG$222:BG$226)","v":0.46666666666666667},0.13333333333333333,0,0.4,0]
["Very High HDI: 2007",{"$f":"TRANSPOSE($B$227:$B$231)","v":5.8823529411764705E-2},0.41176470588235292,0.11764705882352941,0.35294117647058826,5.8823529411764705E-2,{"$f":"TRANSPOSE($G$227:$G$231)","v":0.2857142857142857},0.2857142857142857,7.1428571428571425E-2,0.2857142857142857,7.1428571428571425E-2,{"$f":"TRANSPOSE($L$227:$L$231)","v":0.2857142857142857},0.2857142857142857,7.1428571428571425E-2,0.2857142857142857,7.1428571428571425E-2,{"$f":"TRANSPOSE($Q$227:$Q$231)","v":0.38095238095238093},0.23809523809523808,4.7619047619047616E-2,0.2857142857142857,4.7619047619047616E-2,{"$f":"TRANSPOSE(V$227:V$231)","v":0},0.26315789473684209,0.15789473684210525,0.36842105263157893,0.21052631578947367,{"$f":"TRANSPOSE(AA$227:AA$231)","v":0},0.31578947368421051,0.10526315789473684,0.42105263157894735,0.15789473684210525,{"$f":"TRANSPOSE(AF$227:AF$231)","v":0.54545454545454541},0.27272727272727271,0,0.18181818181818182,0,{"$f":"TRANSPOSE(AK$227:AK$231)","v":9.0909090909090912E-2},0.36363636363636365,9.0909090909090912E-2,0.36363636363636365,9.0909090909090912E-2,{"$f":"TRANSPOSE(AP$227:AP$231)","v":0.14285714285714285},0.21428571428571427,0.14285714285714285,0.42857142857142855,7.1428571428571425E-2,{"$f":"TRANSPOSE(AU$227:AU$231)","v":7.6923076923076927E-2},0.23076923076923078,0.30769230769230771,0.30769230769230771,7.6923076923076927E-2,{"$f":"TRANSPOSE(AZ$227:AZ$231)","v":0.23076923076923078},0.23076923076923078,0.15384615384615385,0.30769230769230771,7.6923076923076927E-2,{"$f":"TRANSPOSE(BE$227:BE$231)","v":0.4},0.26666666666666666,6.6666666666666666E-2,0.2,6.6666666666666666E-2]
["Very High HDI: 2011",{"$f":"TRANSPOSE($D$227:$D$231)","v":5.8823529411764705E-2},0.17647058823529413,5.8823529411764705E-2,0.35294117647058826,0.35294117647058826,{"$f":"TRANSPOSE($I$227:$I$231)","v":0.5714285714285714},7.1428571428571425E-2,7.1428571428571425E-2,7.1428571428571425E-2,0.21428571428571427,{"$f":"TRANSPOSE($N$227:$N$231)","v":0.14285714285714285},0.14285714285714285,7.1428571428571425E-2,0.35714285714285715,0.2857142857142857,{"$f":"TRANSPOSE($S$227:$S$231)","v":0.14285714285714285},7.1428571428571425E-2,0.14285714285714285,0.2857142857142857,0.35714285714285715,{"$f":"TRANSPOSE(X$227:X$231)","v":0},5.2631578947368418E-2,0,0.47368421052631576,0.47368421052631576,{"$f":"TRANSPOSE(AC$227:AC$231)","v":0},5.2631578947368418E-2,0,0.21052631578947367,0.73684210526315785,{"$f":"TRANSPOSE(AH$227:AH$231)","v":0.72727272727272729},0.18181818181818182,0,0,9.0909090909090912E-2,{"$f":"TRANSPOSE(AM$227:AM$231)","v":0},0,0,0.54545454545454541,0.45454545454545453,{"$f":"TRANSPOSE(AR$227:AR$231)","v":0.5},0.14285714285714285,0,0.21428571428571427,0.14285714285714285,{"$f":"TRANSPOSE(AW$227:AW$231)","v":0.30769230769230771},7.6923076923076927E-2,7.6923076923076927E-2,0.30769230769230771,0.23076923076923078,{"$f":"TRANSPOSE(BB$227:BB$231)","v":0.30769230769230771},7.6923076923076927E-2,0,0.30769230769230771,0.30769230769230771,{"$f":"TRANSPOSE(BG$227:BG$231)","v":0.26666666666666666},0.13333333333333333,0.13333333333333333,0,0.46666666666666667]
[]
[null,1,2,3,4,5,1,2,3,4,5,1,2,3,4,5,1,2,3,4,5,1,2,3,4,5,1,2,3,4,5,1,2,3,4,5,1,2,3,4,5,1,2,3,4,5,1,2,3,4,5,1,2,3,4,5,1,2,3,4,5]
[null,{"$f":"F234","v":"Fully implemented"},"Under implementation","Developed, not implemented",{"$f":"C234","v":"Under consideration"},{"$f":"B234","v":"Not relevant"},{"$f":"K234","v":"Fully implemented"},{"$f":"J234","v":"In place but partially implemented"},{"$f":"I234","v":"In place but not yet implemented "},{"$f":"H234","v":"Under consideration"},{"$f":"G234","v":"Not relevant"},{"$f":"P234","v":"Fully implemented"},{"$f":"O234","v":"In place but partially implemented"},{"$f":"N234","v":"In place but not yet implemented "},{"$f":"M234","v":"Under consideration"},{"$f":"L234","v":"Not relevant"},{"$f":"U234","v":"Fully implemented"},{"$f":"T234","v":"In place but partially implemented"},{"$f":"S234","v":"In place but not yet implemented "},{"$f":"R234","v":"Under consideration"},{"$f":"Q234","v":"Not relevant"},{"$f":"Z234","v":"Fully implemented"},{"$f":"Y234","v":"In place but partially implemented"},{"$f":"X234","v":"In place but not yet implemented "},{"$f":"W234","v":"Under consideration"},{"$f":"V234","v":"Not relevant"},{"$f":"AE234","v":"Fully implemented"},{"$f":"AD234","v":"In place but partially implemented"},{"$f":"AC234","v":"In place but not yet implemented "},{"$f":"AB234","v":"Under consideration"},{"$f":"AA234","v":"Not relevant"},{"$f":"AJ234","v":"Fully implemented"},{"$f":"AI234","v":"In place but partially implemented"},{"$f":"AH234","v":"In place but not yet implemented "},{"$f":"AG234","v":"Under consideration"},{"$f":"AF234","v":"Not relevant"},{"$f":"AO234","v":"Fully implemented"},{"$f":"AN234","v":"In place but partially implemented"},{"$f":"AM234","v":"In place but not yet implemented "},{"$f":"AL234","v":"Under consideration"},{"$f":"AK234","v":"Not relevant"},{"$f":"AT234","v":"Fully implemented"},{"$f":"AS234","v":"In place but partially implemented"},{"$f":"AR234","v":"In place but not yet implemented "},{"$f":"AQ234","v":"Under consideration"},{"$f":"AP234","v":"Not relevant"},{"$f":"AY234","v":"Fully implemented"},{"$f":"AX234","v":"In place but partially implemented"},{"$f":"AW234","v":"In place but not yet implemented "},{"$f":"AV234","v":"Under consideration"},{"$f":"AU234","v":"Not relevant"},{"$f":"BD234","v":"Fully implemented"},{"$f":"BC234","v":"In place but partially implemented"},{"$f":"BB234","v":"In place but not yet implemented "},{"$f":"BA234","v":"Under consideration"},{"$f":"AZ234","v":"Not relevant"},{"$f":"BI234","v":"Fully implemented"},{"$f":"BH234","v":"In place but partially implemented"},{"$f":"BG234","v":"In place but not yet implemented "},{"$f":"BF234","v":"Under consideration"},{"$f":"BE234","v":"Not relevant"}]
["Low HDI: 2007",{"$f":"F235","v":0},{"$f":"E235","v":0.27272727272727271},{"$f":"D235","v":0.18181818181818182},{"$f":"C235","v":0.45454545454545453},{"$f":"B235","v":9.0909090909090912E-2},{"$f":"K235","v":0},{"$f":"J235","v":0.125},{"$f":"I235","v":0},{"$f":"H235","v":0.25},{"$f":"G235","v":0.625},{"$f":"P235","v":0},{"$f":"O235","v":0.1111111111111111},{"$f":"N235","v":0.1111111111111111},{"$f":"M235","v":0.22222222222222221},{"$f":"L235","v":0.55555555555555558},{"$f":"U235","v":0},{"$f":"T235","v":7.1428571428571425E-2},{"$f":"S235","v":0.14285714285714285},{"$f":"R235","v":0.21428571428571427},{"$f":"Q235","v":0.5714285714285714},{"$f":"Z235","v":0.1},{"$f":"Y235","v":0.5},{"$f":"X235","v":0},{"$f":"W235","v":0.4},{"$f":"V235","v":0},{"$f":"AE235","v":0.22222222222222221},{"$f":"AD235","v":0.66666666666666663},{"$f":"AC235","v":0.1111111111111111},{"$f":"AB235","v":0},{"$f":"AA235","v":0},{"$f":"AJ235","v":0},{"$f":"AI235","v":0.55555555555555558},{"$f":"AH235","v":0},{"$f":"AG235","v":0},{"$f":"AF235","v":0.44444444444444442},{"$f":"AO235","v":0},{"$f":"AN235","v":0.4},{"$f":"AM235","v":0},{"$f":"AL235","v":0.2},{"$f":"AK235","v":0.4},{"$f":"AT235","v":0},{"$f":"AS235","v":0.44444444444444442},{"$f":"AR235","v":0.1111111111111111},{"$f":"AQ235","v":0},{"$f":"AP235","v":0.44444444444444442},{"$f":"AY235","v":0.25},{"$f":"AX235","v":0.5},{"$f":"AW235","v":0.125},{"$f":"AV235","v":0.125},{"$f":"AU235","v":0},{"$f":"BD235","v":0},{"$f":"BC235","v":0.2857142857142857},{"$f":"BB235","v":0.14285714285714285},{"$f":"BA235","v":0},{"$f":"AZ235","v":0.5714285714285714},{"$f":"BI235","v":0},{"$f":"BH235","v":0.33333333333333331},{"$f":"BG235","v":0.16666666666666666},{"$f":"BF235","v":0},{"$f":"BE235","v":0.5}]
["Low HDI: 2011",{"$f":"F236","v":0.18181818181818182},{"$f":"E236","v":0},{"$f":"D236","v":0.36363636363636365},{"$f":"C236","v":0.45454545454545453},{"$f":"B236","v":0},{"$f":"K236","v":0},{"$f":"J236","v":0},{"$f":"I236","v":0},{"$f":"H236","v":0.5},{"$f":"G236","v":0.5},{"$f":"P236","v":0},{"$f":"O236","v":0.1111111111111111},{"$f":"N236","v":0.1111111111111111},{"$f":"M236","v":0.55555555555555558},{"$f":"L236","v":0.22222222222222221},{"$f":"U236","v":0},{"$f":"T236","v":0.1111111111111111},{"$f":"S236","v":0.1111111111111111},{"$f":"R236","v":0.55555555555555558},{"$f":"Q236","v":0.22222222222222221},{"$f":"Z236","v":0.1},{"$f":"Y236","v":0.4},{"$f":"X236","v":0.1},{"$f":"W236","v":0.4},{"$f":"V236","v":0},{"$f":"AE236","v":0.1111111111111111},{"$f":"AD236","v":0.44444444444444442},{"$f":"AC236","v":0.22222222222222221},{"$f":"AB236","v":0.22222222222222221},{"$f":"AA236","v":0},{"$f":"AJ236","v":0.1111111111111111},{"$f":"AI236","v":0.33333333333333331},{"$f":"AH236","v":0.44444444444444442},{"$f":"AG236","v":0.1111111111111111},{"$f":"AF236","v":0},{"$f":"AO236","v":0},{"$f":"AN236","v":0.6},{"$f":"AM236","v":0.2},{"$f":"AL236","v":0.2},{"$f":"AK236","v":0},{"$f":"AT236","v":0},{"$f":"AS236","v":0.22222222222222221},{"$f":"AR236","v":0.22222222222222221},{"$f":"AQ236","v":0.44444444444444442},{"$f":"AP236","v":0.1111111111111111},{"$f":"AY236","v":0},{"$f":"AX236","v":0.25},{"$f":"AW236","v":0.375},{"$f":"AV236","v":0.375},{"$f":"AU236","v":0},{"$f":"BD236","v":0},{"$f":"BC236","v":0.8571428571428571},{"$f":"BB236","v":0},{"$f":"BA236","v":0.14285714285714285},{"$f":"AZ236","v":0},{"$f":"BI236","v":0},{"$f":"BH236","v":0.83333333333333337},{"$f":"BG236","v":0},{"$f":"BF236","v":0.16666666666666666},{"$f":"BE236","v":0}]
["Medium HDI: 2007",5.2631578947368418E-2,0.31578947368421051,0.21052631578947367,0.31578947368421051,0.10526315789473684,5.8823529411764705E-2,0.35294117647058826,5.8823529411764705E-2,0.23529411764705882,0.29411764705882354,5.8823529411764705E-2,0.35294117647058826,5.8823529411764705E-2,0.23529411764705882,0.29411764705882354,4.1666666666666664E-2,0.29166666666666669,8.3333333333333329E-2,0.20833333333333334,0.375,0.15,0.55000000000000004,0.05,0.2,0.05,0.3,0.55000000000000004,0.15,0,0,0.15384615384615385,0.46153846153846156,7.6923076923076927E-2,7.6923076923076927E-2,0.23076923076923078,9.0909090909090912E-2,0.54545454545454541,9.0909090909090912E-2,0.18181818181818182,9.0909090909090912E-2,0.35714285714285715,0.2857142857142857,7.1428571428571425E-2,0.14285714285714285,0.14285714285714285,9.0909090909090912E-2,0.63636363636363635,0.18181818181818182,0,9.0909090909090912E-2,7.1428571428571425E-2,0.5,0.14285714285714285,7.1428571428571425E-2,0.21428571428571427,6.6666666666666666E-2,0.46666666666666667,6.6666666666666666E-2,0.26666666666666666,0.13333333333333333]
["Medium HDI: 2011",5.2631578947368418E-2,0.42105263157894735,0.15789473684210525,0.31578947368421051,5.2631578947368418E-2,5.8823529411764705E-2,0.29411764705882354,5.8823529411764705E-2,0.35294117647058826,0.23529411764705882,5.8823529411764705E-2,0.29411764705882354,0.11764705882352941,0.29411764705882354,0.23529411764705882,5.8823529411764705E-2,0.29411764705882354,0.11764705882352941,0.35294117647058826,0.17647058823529413,0.1,0.55000000000000004,0.15,0.2,0,0.2,0.4,0.05,0.3,0.05,0,0.61538461538461542,0.15384615384615385,0.23076923076923078,0,0,0.45454545454545453,0.27272727272727271,0.27272727272727271,0,0,0.42857142857142855,0.2857142857142857,0.2857142857142857,0,0,0.45454545454545453,0.27272727272727271,0.27272727272727271,0,0,0.35714285714285715,0.14285714285714285,0.35714285714285715,0.14285714285714285,0.13333333333333333,6.6666666666666666E-2,0.2,0.33333333333333331,0.26666666666666666]
["High HDI: 2007",5.5555555555555552E-2,0.27777777777777779,0.1111111111111111,0.44444444444444442,0.1111111111111111,5.8823529411764705E-2,0.17647058823529413,0,0.29411764705882354,0.47058823529411764,5.8823529411764705E-2,0.17647058823529413,0,0.29411764705882354,0.47058823529411764,8.3333333333333329E-2,0.20833333333333334,0,0.25,0.45833333333333331,0.15,0.4,0.1,0.25,0.1,0.3,0.4,0.15,0.15,0,0,0.3125,0.125,6.25E-2,0.5,0.3,0.1,0.2,0.2,0.2,5.8823529411764705E-2,0.11764705882352941,0.35294117647058826,0.11764705882352941,0.35294117647058826,7.6923076923076927E-2,0.30769230769230771,0.30769230769230771,7.6923076923076927E-2,0.23076923076923078,7.6923076923076927E-2,0.30769230769230771,0.23076923076923078,0.23076923076923078,0.15384615384615385,0.13333333333333333,0.26666666666666666,0.2,0.26666666666666666,0.13333333333333333]
["High HDI: 2011",5.5555555555555552E-2,0.44444444444444442,0.22222222222222221,0.22222222222222221,5.5555555555555552E-2,0,0.11764705882352941,0.11764705882352941,0.23529411764705882,0.52941176470588236,0,0.35294117647058826,0.11764705882352941,0.41176470588235292,0.11764705882352941,0,0.41176470588235292,0.23529411764705882,0.23529411764705882,0.11764705882352941,0.15,0.65,0.1,0.1,0,0.3,0.45,0.2,0.05,0,0,0.3125,0,0.5,0.1875,0,0.5,0,0.4,0.1,0,0.52941176470588236,0.17647058823529413,0.17647058823529413,0.11764705882352941,0,0.46153846153846156,0.23076923076923078,0.30769230769230771,0,0,0.30769230769230771,7.6923076923076927E-2,0.46153846153846156,0.15384615384615385,0,0.4,0,0.13333333333333333,0.46666666666666667]
["Very High HDI: 2007",5.8823529411764705E-2,0.35294117647058826,0.11764705882352941,0.41176470588235292,5.8823529411764705E-2,7.1428571428571425E-2,0.2857142857142857,7.1428571428571425E-2,0.2857142857142857,0.2857142857142857,7.1428571428571425E-2,0.2857142857142857,7.1428571428571425E-2,0.2857142857142857,0.2857142857142857,4.7619047619047616E-2,0.2857142857142857,4.7619047619047616E-2,0.23809523809523808,0.38095238095238093,0.21052631578947367,0.36842105263157893,0.15789473684210525,0.26315789473684209,0,0.15789473684210525,0.42105263157894735,0.10526315789473684,0.31578947368421051,0,0,0.18181818181818182,0,0.27272727272727271,0.54545454545454541,9.0909090909090912E-2,0.36363636363636365,9.0909090909090912E-2,0.36363636363636365,9.0909090909090912E-2,7.1428571428571425E-2,0.42857142857142855,0.14285714285714285,0.21428571428571427,0.14285714285714285,7.6923076923076927E-2,0.30769230769230771,0.30769230769230771,0.23076923076923078,7.6923076923076927E-2,7.6923076923076927E-2,0.30769230769230771,0.15384615384615385,0.23076923076923078,0.23076923076923078,6.6666666666666666E-2,0.2,6.6666666666666666E-2,0.26666666666666666,0.4]
["Very High HDI: 2011",0.35294117647058826,0.35294117647058826,5.8823529411764705E-2,0.17647058823529413,5.8823529411764705E-2,0.21428571428571427,7.1428571428571425E-2,7.1428571428571425E-2,7.1428571428571425E-2,0.5714285714285714,0.2857142857142857,0.35714285714285715,7.1428571428571425E-2,0.14285714285714285,0.14285714285714285,0.35714285714285715,0.2857142857142857,0.14285714285714285,7.1428571428571425E-2,0.14285714285714285,0.47368421052631576,0.47368421052631576,0,5.2631578947368418E-2,0,0.73684210526315785,0.21052631578947367,0,5.2631578947368418E-2,0,9.0909090909090912E-2,0,0,0.18181818181818182,0.72727272727272729,0.45454545454545453,0.54545454545454541,0,0,0,0.14285714285714285,0.21428571428571427,0,0.14285714285714285,0.5,0.23076923076923078,0.30769230769230771,7.6923076923076927E-2,7.6923076923076927E-2,0.30769230769230771,0.30769230769230771,0.30769230769230771,0,7.6923076923076927E-2,0.30769230769230771,0.46666666666666667,0,0.13333333333333333,0.13333333333333333,0.26666666666666666]
[]
[null,"Not relevant","Under consideration","In place but not yet implemented ","In place but partially implemented","Fully implemented","Not relevant","Under consideration","In place but not yet implemented ","In place but partially implemented","Fully implemented","Not relevant","Under consideration","In place but not yet implemented ","In place but partially implemented","Fully implemented","Not relevant","Under consideration","In place but not yet implemented ","In place but partially implemented","Fully implemented","Not relevant","Under consideration","In place but not yet implemented ","In place but partially implemented","Fully implemented","Not relevant","Under consideration","In place but not yet implemented ","In place but partially implemented","Fully implemented","Not relevant","Under consideration","In place but not yet implemented ","In place but partially implemented","Fully implemented","Not relevant","Under consideration","In place but not yet implemented ","In place but partially implemented","Fully implemented","Not relevant","Under consideration","In place but not yet implemented ","In place but partially implemented","Fully implemented","Not relevant","Under consideration","In place but not yet implemented ","In place but partially implemented","Fully implemented","Not relevant","Under consideration","In place but not yet implemented ","In place but partially implemented","Fully implemented","Not relevant","Under consideration","In place but not yet implemented ","In place but partially implemented","Fully implemented"]
[]
["2007 - Low & medium HDI",{"$f":"B235+B237","v":0.19617224880382775},0.77033492822966498,0.3923444976076555,0.58851674641148322,5.2631578947368418E-2,0.91911764705882359,0.48529411764705882,5.8823529411764705E-2,0.47794117647058826,5.8823529411764705E-2,0.84967320261437917,0.45751633986928103,0.16993464052287582,0.46405228758169936,5.8823529411764705E-2,0.9464285714285714,0.42261904761904762,0.22619047619047616,0.36309523809523814,4.1666666666666664E-2,0.05,0.60000000000000009,0.05,1.05,0.25,0,0,0.26111111111111107,1.2166666666666668,0.52222222222222214,0.67521367521367526,7.6923076923076927E-2,{"$f":"AH235+AH237","v":7.6923076923076927E-2},1.017094017094017,0.15384615384615385,0.49090909090909096,0.38181818181818183,9.0909090909090912E-2,0.94545454545454544,9.0909090909090912E-2,0.58730158730158721,0.14285714285714285,0.18253968253968253,0.73015873015873012,0.35714285714285715,9.0909090909090912E-2,0.125,0.30681818181818182,1.1363636363636362,0.34090909090909094,{"$f":"AZ235+AZ237","v":0.7857142857142857},7.1428571428571425E-2,0.2857142857142857,0.7857142857142857,7.1428571428571425E-2,0.6333333333333333,0.26666666666666666,0.23333333333333334,0.8,6.6666666666666666E-2]
["2011 - Low & medium HDI",{"$f":"B236+B238","v":5.2631578947368418E-2},0.77033492822966498,0.52153110047846885,0.42105263157894735,0.23444976076555024,0.73529411764705888,0.85294117647058831,5.8823529411764705E-2,0.29411764705882354,5.8823529411764705E-2,0.45751633986928103,0.84967320261437917,0.22875816993464052,0.40522875816993464,5.8823529411764705E-2,0.39869281045751637,0.90849673202614389,0.22875816993464052,0.40522875816993464,5.8823529411764705E-2,0,0.60000000000000009,0.25,0.95000000000000007,0.2,0.05,0.52222222222222214,0.2722222222222222,0.84444444444444444,0.31111111111111112,0,0.34188034188034189,{"$f":"AH236+AH238","v":0.59829059829059827},0.94871794871794868,0.1111111111111111,0,0.47272727272727272,0.47272727272727272,1.0545454545454545,0,0.1111111111111111,0.73015873015873012,0.50793650793650791,0.6507936507936507,0,0,0.64772727272727271,0.64772727272727271,0.70454545454545459,0,{"$f":"AZ236+AZ238","v":0.14285714285714285},0.5,0.14285714285714285,1.2142857142857142,0,0.26666666666666666,0.5,0.2,0.9,0.13333333333333333]
[]
["2007 - High & very high HDI",{"$f":"B241+B239","v":0.16993464052287582},0.85620915032679734,0.22875816993464052,0.63071895424836599,0.11437908496732026,0.75630252100840334,0.57983193277310918,7.1428571428571425E-2,0.46218487394957986,0.13025210084033612,0.75630252100840334,0.57983193277310918,7.1428571428571425E-2,0.46218487394957986,0.13025210084033612,0.83928571428571419,0.48809523809523808,4.7619047619047616E-2,0.49404761904761907,0.13095238095238093,0.1,0.51315789473684204,0.25789473684210529,0.76842105263157889,0.36052631578947369,0,0.46578947368421053,0.25526315789473686,0.82105263157894737,0.45789473684210524,1.0454545454545454,0.33522727272727271,{"$f":"AH241+AH239","v":0.125},0.49431818181818182,0,0.29090909090909089,0.56363636363636371,0.29090909090909089,0.46363636363636362,0.39090909090909087,0.49579831932773111,0.33193277310924368,0.49579831932773111,0.54621848739495793,0.13025210084033612,0.30769230769230771,0.30769230769230771,0.61538461538461542,0.61538461538461542,0.15384615384615385,{"$f":"AZ241+AZ239","v":0.38461538461538464},0.46153846153846156,0.38461538461538464,0.61538461538461542,0.15384615384615385,0.53333333333333333,0.53333333333333333,0.26666666666666666,0.46666666666666667,0.2]
["2011 - High & very high HDI",{"$f":"B242+B240","v":0.11437908496732026},0.39869281045751637,0.28104575163398693,0.79738562091503273,0.40849673202614378,1.1008403361344539,0.30672268907563027,0.18907563025210083,0.18907563025210083,0.21428571428571427,0.26050420168067223,0.55462184873949583,0.18907563025210083,0.71008403361344541,0.2857142857142857,0.26050420168067223,0.30672268907563027,0.37815126050420167,0.69747899159663862,0.35714285714285715,0,0.15263157894736842,0.1,1.1236842105263158,0.62368421052631573,0,0.10263157894736842,0.2,0.66052631578947363,1.0368421052631578,0.91477272727272729,0.68181818181818188,{"$f":"AH242+AH240","v":0},0.3125,9.0909090909090912E-2,0.1,0.4,0,1.0454545454545454,0.45454545454545453,0.61764705882352944,0.31932773109243695,0.17647058823529413,0.74369747899159666,0.14285714285714285,0.30769230769230771,0.38461538461538464,0.30769230769230771,0.76923076923076927,0.23076923076923078,{"$f":"AZ242+AZ240","v":0.46153846153846156},0.53846153846153855,7.6923076923076927E-2,0.61538461538461542,0.30769230769230771,0.73333333333333339,0.26666666666666666,0.13333333333333333,0.4,0.46666666666666667]
[]
[null,"Fully implemented","In place but partially implemented","In place but not yet implemented ","Under consideration","Not relevant","Fully implemented","In place but partially implemented","In place but not yet implemented ","Under consideration","Not relevant","Fully implemented","In place but partially implemented","In place but not yet implemented ","Under consideration","Not relevant","Fully implemented","In place but partially implemented","In place but not yet implemented ","Under consideration","Not relevant","Fully implemented","In place but partially implemented","In place but not yet implemented ","Under consideration","Not relevant","Fully implemented","In place but partially implemented","In place but not yet implemented ","Under consideration","Not relevant","Fully implemented","In place but partially implemented","In place but not yet implemented ","Under consideration","Not relevant","Fully implemented","In place but partially implemented","In place but not yet implemented ","Under consideration","Not relevant","Fully implemented","In place but partially implemented","In place but not yet implemented ","Under consideration","Not relevant","Fully implemented","In place but partially implemented","In place but not yet implemented ","Under consideration","Not relevant","Fully implemented","In place but partially implemented","In place but not yet implemented ","Under consideration","Not relevant","Fully implemented","In place but partially implemented","In place but not yet implemented ","Under consideration","Not relevant"]
[]
["2007 - Low & medium HDI",{"$f":"F257/2","v":2.6315789473684209E-2},{"$f":"E257/2","v":0.29425837320574161},{"$f":"D257/2","v":0.19617224880382775},{"$f":"C257/2","v":0.38516746411483249},{"$f":"B257/2","v":9.8086124401913874E-2},{"$f":"K257/2","v":2.9411764705882353E-2},{"$f":"J257/2","v":0.23897058823529413},{"$f":"I257/2","v":2.9411764705882353E-2},{"$f":"H257/2","v":0.24264705882352941},{"$f":"G257/2","v":0.4595588235294118},{"$f":"P257/2","v":2.9411764705882353E-2},{"$f":"O257/2","v":0.23202614379084968},{"$f":"N257/2","v":8.4967320261437912E-2},{"$f":"M257/2","v":0.22875816993464052},{"$f":"L257/2","v":0.42483660130718959},{"$f":"U257/2","v":2.0833333333333332E-2},{"$f":"T257/2","v":0.18154761904761907},{"$f":"S257/2","v":0.11309523809523808},{"$f":"R257/2","v":0.21130952380952381},{"$f":"Q257/2","v":0.4732142857142857},{"$f":"Z257/2","v":0.125},{"$f":"Y257/2","v":0.52500000000000002},{"$f":"X257/2","v":2.5000000000000001E-2},{"$f":"W257/2","v":0.30000000000000004},{"$f":"V257/2","v":2.5000000000000001E-2},{"$f":"AE257/2","v":0.26111111111111107},{"$f":"AD257/2","v":0.60833333333333339},{"$f":"AC257/2","v":0.13055555555555554},{"$f":"AB257/2","v":0},{"$f":"AA257/2","v":0},{"$f":"AJ257/2","v":7.6923076923076927E-2},{"$f":"AI257/2","v":0.50854700854700852},{"$f":"AH257/2","v":3.8461538461538464E-2},{"$f":"AG257/2","v":3.8461538461538464E-2},{"$f":"AF257/2","v":0.33760683760683763},{"$f":"AO257/2","v":4.5454545454545456E-2},{"$f":"AN257/2","v":0.47272727272727272},{"$f":"AM257/2","v":4.5454545454545456E-2},{"$f":"AL257/2","v":0.19090909090909092},{"$f":"AK257/2","v":0.24545454545454548},{"$f":"AT257/2","v":0.17857142857142858},{"$f":"AS257/2","v":0.36507936507936506},{"$f":"AR257/2","v":9.1269841269841265E-2},{"$f":"AQ257/2","v":7.1428571428571425E-2},{"$f":"AP257/2","v":0.29365079365079361},{"$f":"AY257/2","v":0.17045454545454547},{"$f":"AX257/2","v":0.56818181818181812},{"$f":"AW257/2","v":0.15340909090909091},{"$f":"AV257/2","v":6.25E-2},{"$f":"AU257/2","v":4.5454545454545456E-2},{"$f":"BD257/2","v":3.5714285714285712E-2},{"$f":"BC257/2","v":0.39285714285714285},{"$f":"BB257/2","v":0.14285714285714285},{"$f":"BA257/2","v":3.5714285714285712E-2},{"$f":"AZ257/2","v":0.39285714285714285},{"$f":"BI257/2","v":3.3333333333333333E-2},{"$f":"BH257/2","v":0.4},{"$f":"BG257/2","v":0.11666666666666667},{"$f":"BF257/2","v":0.13333333333333333},{"$f":"BE257/2","v":0.31666666666666665}]
["2011 - Low & medium HDI",{"$f":"F258/2","v":0.11722488038277512},{"$f":"E258/2","v":0.21052631578947367},{"$f":"D258/2","v":0.26076555023923442},{"$f":"C258/2","v":0.38516746411483249},{"$f":"B258/2","v":2.6315789473684209E-2},{"$f":"K258/2","v":2.9411764705882353E-2},{"$f":"J258/2","v":0.14705882352941177},{"$f":"I258/2","v":2.9411764705882353E-2},{"$f":"H258/2","v":0.42647058823529416},{"$f":"G258/2","v":0.36764705882352944},{"$f":"P258/2","v":2.9411764705882353E-2},{"$f":"O258/2","v":0.20261437908496732},{"$f":"N258/2","v":0.11437908496732026},{"$f":"M258/2","v":0.42483660130718959},{"$f":"L258/2","v":0.22875816993464052},{"$f":"U258/2","v":2.9411764705882353E-2},{"$f":"T258/2","v":0.20261437908496732},{"$f":"S258/2","v":0.11437908496732026},{"$f":"R258/2","v":0.45424836601307195},{"$f":"Q258/2","v":0.19934640522875818},{"$f":"Z258/2","v":0.1},{"$f":"Y258/2","v":0.47500000000000003},{"$f":"X258/2","v":0.125},{"$f":"W258/2","v":0.30000000000000004},{"$f":"V258/2","v":0},{"$f":"AE258/2","v":0.15555555555555556},{"$f":"AD258/2","v":0.42222222222222222},{"$f":"AC258/2","v":0.1361111111111111},{"$f":"AB258/2","v":0.26111111111111107},{"$f":"AA258/2","v":2.5000000000000001E-2},{"$f":"AJ258/2","v":5.5555555555555552E-2},{"$f":"AI258/2","v":0.47435897435897434},{"$f":"AH258/2","v":0.29914529914529914},{"$f":"AG258/2","v":0.17094017094017094},{"$f":"AF258/2","v":0},{"$f":"AO258/2","v":0},{"$f":"AN258/2","v":0.52727272727272723},{"$f":"AM258/2","v":0.23636363636363636},{"$f":"AL258/2","v":0.23636363636363636},{"$f":"AK258/2","v":0},{"$f":"AT258/2","v":0},{"$f":"AS258/2","v":0.32539682539682535},{"$f":"AR258/2","v":0.25396825396825395},{"$f":"AQ258/2","v":0.36507936507936506},{"$f":"AP258/2","v":5.5555555555555552E-2},{"$f":"AY258/2","v":0},{"$f":"AX258/2","v":0.35227272727272729},{"$f":"AW258/2","v":0.32386363636363635},{"$f":"AV258/2","v":0.32386363636363635},{"$f":"AU258/2","v":0},{"$f":"BD258/2","v":0},{"$f":"BC258/2","v":0.6071428571428571},{"$f":"BB258/2","v":7.1428571428571425E-2},{"$f":"BA258/2","v":0.25},{"$f":"AZ258/2","v":7.1428571428571425E-2},{"$f":"BI258/2","v":6.6666666666666666E-2},{"$f":"BH258/2","v":0.45},{"$f":"BG258/2","v":0.1},{"$f":"BF258/2","v":0.25},{"$f":"BE258/2","v":0.13333333333333333}]
[]
["2007 - High & very high HDI",{"$f":"F260/2","v":5.7189542483660129E-2},{"$f":"E260/2","v":0.315359477124183},{"$f":"D260/2","v":0.11437908496732026},{"$f":"C260/2","v":0.42810457516339867},{"$f":"B260/2","v":8.4967320261437912E-2},{"$f":"K260/2","v":6.5126050420168058E-2},{"$f":"J260/2","v":0.23109243697478993},{"$f":"I260/2","v":3.5714285714285712E-2},{"$f":"H260/2","v":0.28991596638655459},{"$f":"G260/2","v":0.37815126050420167},{"$f":"P260/2","v":6.5126050420168058E-2},{"$f":"O260/2","v":0.23109243697478993},{"$f":"N260/2","v":3.5714285714285712E-2},{"$f":"M260/2","v":0.28991596638655459},{"$f":"L260/2","v":0.37815126050420167},{"$f":"U260/2","v":6.5476190476190466E-2},{"$f":"T260/2","v":0.24702380952380953},{"$f":"S260/2","v":2.3809523809523808E-2},{"$f":"R260/2","v":0.24404761904761904},{"$f":"Q260/2","v":0.4196428571428571},{"$f":"Z260/2","v":0.18026315789473685},{"$f":"Y260/2","v":0.38421052631578945},{"$f":"X260/2","v":0.12894736842105264},{"$f":"W260/2","v":0.25657894736842102},{"$f":"V260/2","v":0.05},{"$f":"AE260/2","v":0.22894736842105262},{"$f":"AD260/2","v":0.41052631578947368},{"$f":"AC260/2","v":0.12763157894736843},{"$f":"AB260/2","v":0.23289473684210527},{"$f":"AA260/2","v":0},{"$f":"AJ260/2","v":0},{"$f":"AI260/2","v":0.24715909090909091},{"$f":"AH260/2","v":6.25E-2},{"$f":"AG260/2","v":0.16761363636363635},{"$f":"AF260/2","v":0.52272727272727271},{"$f":"AO260/2","v":0.19545454545454544},{"$f":"AN260/2","v":0.23181818181818181},{"$f":"AM260/2","v":0.14545454545454545},{"$f":"AL260/2","v":0.28181818181818186},{"$f":"AK260/2","v":0.14545454545454545},{"$f":"AT260/2","v":6.5126050420168058E-2},{"$f":"AS260/2","v":0.27310924369747897},{"$f":"AR260/2","v":0.24789915966386555},{"$f":"AQ260/2","v":0.16596638655462184},{"$f":"AP260/2","v":0.24789915966386555},{"$f":"AY260/2","v":7.6923076923076927E-2},{"$f":"AX260/2","v":0.30769230769230771},{"$f":"AW260/2","v":0.30769230769230771},{"$f":"AV260/2","v":0.15384615384615385},{"$f":"AU260/2","v":0.15384615384615385},{"$f":"BD260/2","v":7.6923076923076927E-2},{"$f":"BC260/2","v":0.30769230769230771},{"$f":"BB260/2","v":0.19230769230769232},{"$f":"BA260/2","v":0.23076923076923078},{"$f":"AZ260/2","v":0.19230769230769232},{"$f":"BI260/2","v":0.1},{"$f":"BH260/2","v":0.23333333333333334},{"$f":"BG260/2","v":0.13333333333333333},{"$f":"BF260/2","v":0.26666666666666666},{"$f":"BE260/2","v":0.26666666666666666}]
["2011 - High & very high HDI",{"$f":"F261/2","v":0.20424836601307189},{"$f":"E261/2","v":0.39869281045751637},{"$f":"D261/2","v":0.14052287581699346},{"$f":"C261/2","v":0.19934640522875818},{"$f":"B261/2","v":5.7189542483660129E-2},{"$f":"K261/2","v":0.10714285714285714},{"$f":"J261/2","v":9.4537815126050417E-2},{"$f":"I261/2","v":9.4537815126050417E-2},{"$f":"H261/2","v":0.15336134453781514},{"$f":"G261/2","v":0.55042016806722693},{"$f":"P261/2","v":0.14285714285714285},{"$f":"O261/2","v":0.3550420168067227},{"$f":"N261/2","v":9.4537815126050417E-2},{"$f":"M261/2","v":0.27731092436974791},{"$f":"L261/2","v":0.13025210084033612},{"$f":"U261/2","v":0.17857142857142858},{"$f":"T261/2","v":0.34873949579831931},{"$f":"S261/2","v":0.18907563025210083},{"$f":"R261/2","v":0.15336134453781514},{"$f":"Q261/2","v":0.13025210084033612},{"$f":"Z261/2","v":0.31184210526315786},{"$f":"Y261/2","v":0.56184210526315792},{"$f":"X261/2","v":0.05},{"$f":"W261/2","v":7.6315789473684212E-2},{"$f":"V261/2","v":0},{"$f":"AE261/2","v":0.51842105263157889},{"$f":"AD261/2","v":0.33026315789473681},{"$f":"AC261/2","v":0.1},{"$f":"AB261/2","v":5.131578947368421E-2},{"$f":"AA261/2","v":0},{"$f":"AJ261/2","v":4.5454545454545456E-2},{"$f":"AI261/2","v":0.15625},{"$f":"AH261/2","v":0},{"$f":"AG261/2","v":0.34090909090909094},{"$f":"AF261/2","v":0.45738636363636365},{"$f":"AO261/2","v":0.22727272727272727},{"$f":"AN261/2","v":0.52272727272727271},{"$f":"AM261/2","v":0},{"$f":"AL261/2","v":0.2},{"$f":"AK261/2","v":0.05},{"$f":"AT261/2","v":7.1428571428571425E-2},{"$f":"AS261/2","v":0.37184873949579833},{"$f":"AR261/2","v":8.8235294117647065E-2},{"$f":"AQ261/2","v":0.15966386554621848},{"$f":"AP261/2","v":0.30882352941176472},{"$f":"AY261/2","v":0.11538461538461539},{"$f":"AX261/2","v":0.38461538461538464},{"$f":"AW261/2","v":0.15384615384615385},{"$f":"AV261/2","v":0.19230769230769232},{"$f":"AU261/2","v":0.15384615384615385},{"$f":"BD261/2","v":0.15384615384615385},{"$f":"BC261/2","v":0.30769230769230771},{"$f":"BB261/2","v":3.8461538461538464E-2},{"$f":"BA261/2","v":0.26923076923076927},{"$f":"AZ261/2","v":0.23076923076923078},{"$f":"BI261/2","v":0.23333333333333334},{"$f":"BH261/2","v":0.2},{"$f":"BG261/2","v":6.6666666666666666E-2},{"$f":"BF261/2","v":0.13333333333333333},{"$f":"BE261/2","v":0.3666666666666667}]

{"sheet":"2008_comparison_HID","index":27,"n_rows":31,"n_cols":20,"rows_kept":31,"cut":false,"hidden":true,"merged":[]}
[0,0,0,0,0.1,0,0.1,0,0,0,0,0,0,0,0,0,0,0,0,0]
[0,0.25,0,0.25,0.1,0.125,0.1,0.125,0,0,0,0,0,0.125,0,0.125,0,0.25,0,0.25]
[1.3500000000000002E-2,0.25,1.3500000000000002E-2,0.25,0.14600000000000002,0.125,0.14600000000000002,0.125,3.85E-2,0,3.85E-2,0,4.5999999999999999E-2,0.125,4.5999999999999999E-2,0.125,3.6714285714285713E-2,0.25,3.6714285714285713E-2,0.25]
[1.3500000000000002E-2,0,1.3500000000000002E-2,0.25,0.14600000000000002,0,0.14600000000000002,0.125,3.85E-2,0,3.85E-2,0.25,4.5999999999999999E-2,0,4.5999999999999999E-2,0.125,3.6714285714285713E-2,0,3.6714285714285713E-2,0.625]
[1.3500000000000002E-2,0,2.7000000000000003E-2,0.25,0.14600000000000002,0,0.192,0.125,3.85E-2,0.25,7.6999999999999999E-2,0.25,4.5999999999999999E-2,0,9.1999999999999998E-2,0.125,3.6714285714285713E-2,0.375,7.3428571428571426E-2,0.625]
[2.7000000000000003E-2,0,2.7000000000000003E-2,0.25,0.192,0,0.192,0.25,7.6999999999999999E-2,0.25,7.6999999999999999E-2,0.25,9.1999999999999998E-2,0,9.1999999999999998E-2,0.125,7.3428571428571426E-2,0.375,7.3428571428571426E-2,0.75]
[2.7000000000000003E-2,0,4.0500000000000008E-2,0.25,0.192,0,0.23800000000000002,0.25,7.6999999999999999E-2,0,0.11549999999999999,0.25,9.1999999999999998E-2,0,0.13800000000000001,0.125,7.3428571428571426E-2,0,0.11014285714285714,0.75]
[2.7000000000000003E-2,0,4.0500000000000008E-2,0.375,0.192,0.125,0.23800000000000002,0.25,7.6999999999999999E-2,0,0.11549999999999999,0.375,9.1999999999999998E-2,0,0.13800000000000001,0.25,7.3428571428571426E-2,0.125,0.11014285714285714,0.875]
[4.0500000000000008E-2,0,5.4000000000000006E-2,0.375,0.23800000000000002,0.125,0.28400000000000003,0.25,0.11549999999999999,0,0.154,0.375,0.13800000000000001,0,0.184,0.25,0.11014285714285714,0.125,0.14685714285714285,0.875]
[4.0500000000000008E-2,0,5.4000000000000006E-2,0.5,0.23800000000000002,0,0.28400000000000003,0.375,0.11549999999999999,0,0.154,0.5,0.13800000000000001,0,0.184,0.25,0.11014285714285714,0,0.14685714285714285,0.875]
[4.0500000000000008E-2,0.125,6.7500000000000004E-2,0.5,0.23800000000000002,0,0.33,0.375,0.11549999999999999,0.125,0.1925,0.5,0.13800000000000001,0.125,0.22999999999999998,0.25,0.11014285714285714,0.125,0.18357142857142855,0.875]
[5.4000000000000006E-2,0.125,6.7500000000000004E-2,0.75,0.28400000000000003,0,0.33,0.625,0.154,0.125,0.1925,0.625,0.184,0.125,0.22999999999999998,0.5,0.14685714285714285,0.125,0.18357142857142855,0.875]
[5.4000000000000006E-2,0,8.1000000000000016E-2,0.75,0.28400000000000003,0,0.37600000000000006,0.625,0.154,0,0.23099999999999998,0.625,0.184,0,0.27600000000000002,0.5,0.14685714285714285,0,0.22028571428571428,0.875]
[5.4000000000000006E-2,0.125,8.1000000000000016E-2,0.75,0.28400000000000003,0.125,0.37600000000000006,0.625,0.154,0.125,0.23099999999999998,0.875,0.184,0,0.27600000000000002,0.5,0.14685714285714285,0,0.22028571428571428,0.875]
[6.7500000000000004E-2,0.125,9.4500000000000015E-2,0.75,0.33,0.125,0.42200000000000004,0.625,0.1925,0.125,0.26950000000000002,0.875,0.22999999999999998,0,0.32200000000000001,0.5,0.18357142857142855,0,0.25700000000000001,0.875]
[6.7500000000000004E-2,0,9.4500000000000015E-2,0.875,0.33,0,0.42200000000000004,0.625,0.1925,0,0.26950000000000002,0.875,0.22999999999999998,0,0.32200000000000001,0.625,0.18357142857142855,0,0.25700000000000001,0.875]
[6.7500000000000004E-2,0.25,0.10800000000000001,0.875,0.33,0.25,0.46800000000000008,0.625,0.1925,0.125,0.308,0.875,0.22999999999999998,0.25,0.36799999999999999,0.625,0.18357142857142855,0,0.29371428571428571,0.875]
[8.1000000000000016E-2,0.25,0.10800000000000001,0.875,0.37600000000000006,0.25,0.46800000000000008,0.875,0.23099999999999998,0.125,0.308,0.875,0.27600000000000002,0.25,0.36799999999999999,0.75,0.22028571428571428,0,0.29371428571428571,0.875]
[8.1000000000000016E-2,0,0.12150000000000001,0.875,0.37600000000000006,0,0.51400000000000001,0.875,0.23099999999999998,0,0.34649999999999997,0.875,0.27600000000000002,0,0.41399999999999998,0.75,0.22028571428571428,0,0.3304285714285714,0.875]
[8.1000000000000016E-2,0,0.12150000000000001,1,0.37600000000000006,0,0.51400000000000001,1,0.23099999999999998,0.25,0.34649999999999997,1,0.27600000000000002,0,0.41399999999999998,1,0.22028571428571428,0,0.3304285714285714,1]
[9.4500000000000015E-2,0,0.13500000000000001,1,0.42200000000000004,0,0.56000000000000005,1,0.26950000000000002,0.25,0.38500000000000001,1,0.32200000000000001,0,0.45999999999999996,1,0.25700000000000001,0,0.3671428571428571,1]
[9.4500000000000015E-2,0,0.13500000000000001,1,0.42200000000000004,0,0.56000000000000005,1,0.26950000000000002,0,0.38500000000000001,1,0.32200000000000001,0,0.45999999999999996,1,0.25700000000000001,0,0.3671428571428571,1]
[9.4500000000000015E-2,0.125,null,null,0.42200000000000004,0,null,null,0.26950000000000002,0,null,null,0.32200000000000001,0.125,null,null,0.25700000000000001,0]
[0.10800000000000001,0.125,null,null,0.46800000000000008,0,null,null,0.308,0,null,null,0.36799999999999999,0.125,null,null,0.29371428571428571,0]
[0.10800000000000001,0,null,null,0.46800000000000008,0,null,null,0.308,0,null,null,0.36799999999999999,0,null,null,0.29371428571428571,0]
[0.10800000000000001,0,null,null,0.46800000000000008,0.25,null,null,0.308,0,null,null,0.36799999999999999,0.125,null,null,0.29371428571428571,0]
[0.12150000000000001,0,null,null,0.51400000000000001,0.25,null,null,0.34649999999999997,0,null,null,0.41399999999999998,0.125,null,null,0.3304285714285714,0]
[0.12150000000000001,0,null,null,0.51400000000000001,0,null,null,0.34649999999999997,0,null,null,0.41399999999999998,0,null,null,0.3304285714285714,0]
[0.12150000000000001,0.125,null,null,0.51400000000000001,0.125,null,null,0.34649999999999997,0.125,null,null,0.41399999999999998,0.25,null,null,0.3304285714285714,0.125]
[0.13500000000000001,0.125,null,null,0.56000000000000005,0.125,null,null,0.38500000000000001,0.125,null,null,0.45999999999999996,0.25,null,null,0.3671428571428571,0.125]
[0.13500000000000001,0,null,null,0.56000000000000005,0,null,null,0.38500000000000001,0,null,null,0.45999999999999996,0,null,null,0.3671428571428571,0]

{"sheet":"Quality Control","index":28,"n_rows":72,"n_cols":11,"rows_kept":72,"cut":false,"hidden":true,"merged":[[0,0,0,10],[1,1,1,2],[1,7,1,8],[1,5,69,5],[15,7,16,7]]}
["Quality Check"]
["a",null,null,"Verdict","Note",null,"b",null,null,"Verdict","Note"]
[null,"i:  Percentage and number of countries giving each possible response to each question and question grouping per HDI category and region (and underlying equations)",null,null,null,null,null,"Check 25% of figures based on latest draft report - ensure that they are referencing the correct cells."]
[]
[null,"Sheet - 2011 Survey responses",null,null,null,null,null,null,"Figures Checked"]
[null,null,"Formulas Checked:",null,null,null,null,null,"Figure 2.1 - 1.1a","OK!"]
[null,null,"Total Response","OK!",null,null,null,null,"Figure 2.5 - 1.1e","OK!"]
[null,null,"% of Response","OK!",null,null,null,null,"Figure 3.2 - 2.1d","OK!"]
[null,null,"Total responses (Major Regions)","OK!",null,null,null,null,"Figure 4.1 - 3.1","OK!"]
[null,null,"% responded (Major Regions)","OK!",null,null,null,null,"Figure 4.5 - 3.5","OK!"]
[null,null,"Low HD: % of responses","OK!",null,null,null,null,"Figure 5.1 - 4.1a","OK!"]
[null,null,"Medium HD: % of responses","OK!",null,null,null,null,"Figure 6.2 - 5.1b","OK!"]
[null,null,"High HD: % of responses","OK!",null,null,null,null,"Figure 6.6 - 5.1f","OK!"]
[null,null,"Very High HD: % of responses","OK!",null,null,null,null,"Figure 8.1 - The impacts of improved water resources management on development over the past 20 years.","OK!"]
[null,null,"Global: % of responses","OK!",null,null,null,null,"Figure 8.3 - Economic Impacts","OK!"]
[null,"Can be found in A253","Global: % of responses as 2-6","Semi OK!","Would have been easier to =sum(B$247:B$251) ",null,null,null,"Figure 10.1 - Water use challenge: Priority: Water for environment","OK!"]
[null,null,"LAC: % of responses","OK!",null,null,null,null,"Figure 10.3 - Water for environment (Global)","OK!"]
[null,null,"ASP: % of responses","OK!"]
[null,null,"AFR: % of responses","OK!",null,null,null,null,"Figure 10.8 - Water use challenge - priority level: Water for energy","OK!"]
[null,null,"EES: % of responses","OK!",null,null,null,null,"Figure 10.12 - 1.1f,gmax","OK!"]
[null,null,"WEO: % of responses","OK!",null,null,null,null,"Figure 10.16 - 3.2h","OK!"]
[null,null,"Global: % of responses","OK!"]
[null,null,null,null,null,null,null,"Cant find the following Graphs"]
[null,null,"All Under \"The below is less relevant and could be deleted\" is correct. In row 315-318 i would have added >1 or ignore 1 in the text.","Semi OK!",null,null,null,null,"Figure 3.4"]
[null,null,null,null,null,null,null,null,"Figure 4.6"]
[null,"Sheet - Responses",null,null,null,null,null,null,"Figure 4.7"]
[null,"Can be found in C4","Replace 192 with ID_HDIG or somthing else to make it dynamic?","Semi OK!",null,null,null,null,"Figure 4.8"]
[null,null,null,null,null,null,null,null,"Figure 5.3"]
[null,"Sheet - Question_grouping"]
[null,null,"All of the formulas are to some extend flawed and cannot be calculated by a standard setup from excell 2010 because \".\" has been used instead of \",\". Ex 1.5 instead of 1,5 this returns zero every time in my excel no matter the range","Not OK!\n(in my excel)"]
[]
[null,null,"Total responses","OK!"]
[null,null,"% responded","OK!"]
[null,null,"Total responses Major Region","OK!"]
[null,null,"% responded Major Region","OK!"]
[]
[null,null,"Low HD % of responses","OK!"]
[null,null,"Medium HD % of responses","OK!"]
[null,"Can be found in B239","High HD % of responses","NOT OK!","The use of <=1.5 is wrong if you use >=1.5 --2.5> after"]
[null,null,"Very High HD % of responses","OK!"]
[null,null,"Total % of responses","OK!"]
[]
[null,null,"Low HD no. Of responses","OK!"]
[null,null,"Medium HD no. Of responses","OK!"]
[null,null,"High HD no. Of responses","OK!"]
[null,"Can be found in B270","Very High HD no. Of responses","NOT OK!","The use of <=1.5 is wrong if you use >=1.5 --2.5> after"]
[null,null,"Total no. Of responses","OK!"]
[]
[null,"Can be found in B283","LAC:% of responses","NOT OK!","The use of <=1.5 is wrong if you use >=1.5 --2.5> after"]
[null,"Can be found in B289","ASP: % of responses","NOT OK!","The use of <=1.5 is wrong if you use >=1.5 --2.5> after"]
[null,"Can be found in B295","AFR: % of responses","NOT OK!","The use of <=1.5 is wrong if you use >=1.5 --2.5> after"]
[null,"Can be found in B301","EES: % of responses","NOT OK!","The use of <=1.5 is wrong if you use >=1.5 --2.5> after"]
[null,"Can be found in B307","WEO: % of responses","NOT OK!","The use of <=1.5 is wrong if you use >=1.5 --2.5> after"]
[]
[null,"ii: Percetage of countries given in the 2008 vs 2011 comparison (and underlying equations)"]
[]
[null,"Sheet - 2007_comparison"]
[null,null,"Removed all the first criterias as they were not needed.","Simplified!"]
[null,null,"Column B-D","OK!"]
[null,null,"Column G-I","OK!"]
[null,null,"Column L-N","OK!"]
[null,null,"Column Q-S","Not OK!","Missing formulas in column R have been added/ After adding found out it is exactly the same as Column L-N."]
[null,null,"Column V-X","OK!"]
[null,null,"Column AA-AC","OK!"]
[null,null,"Column AF-AH","OK!"]
[null,null,"Column AK-AM","OK!"]
[null,null,"Column AP-AR","OK!"]
[null,null,"Column AU-AW","OK!"]
[null,null,"Column AZ-BB","OK!"]
[null,null,"Column BE-BG","OK!"]
[null,"NOTES",null,null,null,null,null,"Notes"]
[null,null,"All Average Calculations does not take 1 into account even though the question is on a scale from 1-5","NOT OK!","Changed one of them but didnt change the other since it had a very big impact and wanted to know if this was correct",null,null,null,"A lot of graphs was missing from the original excel sheet that i had but i ahve recreated most of them except a few as mentioned above"]

{"sheet":"Changelog","index":29,"n_rows":22,"n_cols":1,"rows_kept":22,"cut":false,"hidden":true,"merged":[]}
["15 dec. 2011"]
["v1.1"]
["Deleted following Tabs"]
["Survey Quality Checks"]
["Cross cutting themes"]
["Factor analysis"]
["Reg_breakdown_SP"]
[]
["Added following Tabs"]
["Changelog"]
["Quality Controll"]
[]
["Made Quality Check to entire worksheet and optimized formulas"]
[]
["20 dec. 2011"]
["v1.2"]
["Changed all bar figure templates and began adding missing graphs that was missing."]
[]
["21 dec. 2011"]
["v1.3 (Final)"]
["Deleted all Figure sheets except bar and column"]
["All figures are now in two sheets and up to date"]

{"sheet":"Indicator_data","index":30,"n_rows":210,"n_cols":40,"rows_kept":210,"cut":false,"hidden":true,"merged":[]}
[null,null,"HDI ","HDI groupings","Major region","Major region (OLD)","Sub-region","UN Development status","DAC List of ODA Recipients","GDP per capita ","Total population","Population Density","Average annual population growth rate","Income Gini coefficient","Urban Population","% rural population","Land area","Surface area (land and water)","SIDS, landlocked, other","Transboundary Area","Transboundary Dependency ratio","Total renewable water resources per capita (actual)","Log Total renewable water resources per capita (actual)","Agriculture, value added","% Access to improved water supply","% Access to improved sanitation","% of produce from irrigated agriculture","% of produce from rainfed agriculture?","% of withdrawals for agriculture","% of withdrawals for municipal use","% of withdrawals for industry","% of total withdrawals from groundwater","Disaster Risk Index (Average Number of People Killed per Million Inhabitants","Corruption Index","Infrastructure: Artificial water storage per capita","Climate Vulnerability Index","Responded","Responded category",null,"Responded category"]
["Indicator code","Code","HDI","HDIR","REG","REG (OLD)","SRG","DEV","DAC","GDP","POP","POPDEN","POPGR","GINI","UPOP",null,"LAREA","SAREA","TYPE","TBA","TBDEP","TRWR/C","Log TRWR/C","AGR",null,null,null,null,null,null,null,null,null,null,null,null,null,"DEV calc","REG calc","HDIG calc"]
["Afghanistan","AFG",0.35,1,2,3,12,1,1,0,29.117488999999999,null,3.448,0,22.6,76,65223,652230,2,70,15.38,2389,{"$f":"LOG(V3)","v":3.3782161497498779},33.518386870160164,48,37,null,null,98.79,0.66700000000000004,0.55579999999999996,null,49.06,-1.35,null,null,{"$f":"LOOKUP(A3,'2011 Survey responses'!$A$3:$A$194,'2011 Survey responses'!$FX$3:$FX$194)","v":0},{"$f":"IF(AK3>0,H3,0)","v":0},{"$f":"IF(AK3>0,F3,0)","v":0},{"$f":"IF(AK3>0,D3,0)","v":0}]
["Albania","ALB",0.72,3,4,4,17,3,3,7195.1812466513902,3.1690870000000002,110.6859607625,0.373,33,51.91,53,2740,28748,3,50,35.49,13268,{"$f":"LOG(V4)","v":4.1228054628474444},21.397193169331512,97,98,null,null,57.67,29.95,12.37,null,0.25,-0.85,null,null,{"$f":"LOOKUP(A4,'2011 Survey responses'!$A$3:$A$194,'2011 Survey responses'!$FX$3:$FX$194)","v":2},3,4,3]
["Algeria","DZA",0.68,2,3,1,3,2,3,7424.6305242014696,35.422589000000002,14.588068140100001,1.5049999999999999,35.299999999999997,66.5,35,238174,2381741,3,15,3.5990000000000002,339.5,2.5308397786165204,8.5777087368164722,83,95,null,null,63.95,22.51,13.54,null,6.02,-0.7,null,null,{"$f":"LOOKUP(A5,'2011 Survey responses'!$A$3:$A$194,'2011 Survey responses'!$FX$3:$FX$194)","v":2},2,1,2]
["Andorra","AND",0.82,4,5,4,17,3,5,0,8.6684999999999998E-2,179.2393162393,1.661,0,88,10,47,468,2,100,0,0,null,0,100,100,null,null,null,null,null,null,null,null,null,null,{"$f":"LOOKUP(A6,'2011 Survey responses'!$A$3:$A$194,'2011 Survey responses'!$FX$3:$FX$194)","v":1},3,4,4]
["Angola","AGO",0.4,1,3,1,2,1,1,5452.0581751441796,18.992706999999999,null,2.6720000000000002,58.6,58.5,43,124670,1246700,3,68,0,8213,3.9145018228273138,8.2819397729164539,50,57,null,null,32.79,38.409999999999997,28.81,null,0.13,-1.1200000000000001,null,null,{"$f":"LOOKUP(A7,'2011 Survey responses'!$A$3:$A$194,'2011 Survey responses'!$FX$3:$FX$194)","v":2},1,1,1]
["Antigua and Barbuda","ATG",null,3,1,2,6,2,4,19709.054305785801,8.8550000000000004E-2,null,1.1659999999999999,0,30.34,57,44,443,1,0,0,597.70000000000005,2.7764832558336816,3.3386904859962114,0,0,null,null,20,60,20,null,5.26,-0.84,null,null,{"$f":"LOOKUP(A8,'2011 Survey responses'!$A$3:$A$194,'2011 Survey responses'!$FX$3:$FX$194)","v":2},2,2,3]
["Argentina","ARG",0.78,4,1,2,8,2,4,13247.900632197799,40.665731999999998,14.294926269599999,0.97499999999999998,48.8,92.39,8,273669,2780400,3,31,66.09,20410,4.3098430047160701,8.9059593588735364,97,90,null,null,66.069999999999993,21.71,12.2,null,0.38,-0.77,null,null,{"$f":"LOOKUP(A9,'2011 Survey responses'!$A$3:$A$194,'2011 Survey responses'!$FX$3:$FX$194)","v":0},0,0,0]
["Armenia","ARM",0.7,3,4,3,14,2,3,5610.6168827032798,3.090379,108.7325084894,0.16500000000000001,30.2,64.19,36,2820,29743,2,100,11.71,2525,3.4022613824546801,20.024324272358474,96,90,52,{"$f":"100-AA10","v":48},65.760000000000005,29.82,4.4219999999999997,22,323.68,-0.72,null,null,{"$f":"LOOKUP(A10,'2011 Survey responses'!$A$3:$A$194,'2011 Survey responses'!$FX$3:$FX$194)","v":2},2,3,3]
["Australia","AUS",0.94,4,5,5,19,3,5,33369.477092045199,21.511887999999999,2.7949132764,1.0669999999999999,35.200000000000003,89.11,11,768230,7741220,3,0,0,23346,4.3682124811873866,2.8276979408063272,100,100,null,null,73.78,15.59,10.63,22,0.59,1.91,null,null,{"$f":"LOOKUP(A11,'2011 Survey responses'!$A$3:$A$194,'2011 Survey responses'!$FX$3:$FX$194)","v":2},3,5,4]
["Austria","AUT",0.85,4,5,4,18,3,5,36050.973285346801,8.3874910000000007,99.397276770299996,0.374,29.1,67.55,33,8245,83871,2,100,29.21,9320,3.9694159123539814,1.6536562859171742,100,100,null,null,2.734,18.27,79,31,0.19,1.85,null,null,{"$f":"LOOKUP(A12,'2011 Survey responses'!$A$3:$A$194,'2011 Survey responses'!$FX$3:$FX$194)","v":0},0,0,0]
["Azerbaijan","AZE",0.71,3,4,3,14,2,3,8101.7335101806802,8.9339279999999999,100.2321016166,1.107,16.8,51.93,48,8262.9,86600,2,70,76.599999999999994,3972,3.5990092398233435,7.7727602112487713,80,45,null,null,76.41,4.2670000000000003,19.329999999999998,6,0.28999999999999998,-1.07,null,null,{"$f":"LOOKUP(A13,'2011 Survey responses'!$A$3:$A$194,'2011 Survey responses'!$FX$3:$FX$194)","v":2},2,3,3]
["Bahamas","BHS",0.78,3,1,2,6,2,null,0,0.34573599999999999,24.263071075100001,1.2070000000000001,0,84.1,16,1001,13880,1,0,0,59.17,1.7721015692770119,1.5564892285862628,0,100,null,null,null,null,null,null,0.89,1.41,null,null,{"$f":"LOOKUP(A14,'2011 Survey responses'!$A$3:$A$194,'2011 Survey responses'!$FX$3:$FX$194)","v":1},2,2,3]
["Bahrain","BHR",0.8,4,2,3,14,2,null,0,0.80713100000000004,1460.7376262693999,2.0750000000000002,0,88.61,11,71,760,3,0,96.55,149.5,2.1746411926604483,0,0,0,0,{"$f":"100-AA15","v":100},44.54,49.78,5.68,100,null,0.95,null,null,{"$f":"LOOKUP(A15,'2011 Survey responses'!$A$3:$A$194,'2011 Survey responses'!$FX$3:$FX$194)","v":0},0,0,0]
["Bangladesh","BGD",0.47,1,2,3,12,1,1,1233.3910820367,164.42549099999999,1003.48615953,1.4239999999999999,31,28.07,73,13017,143998,3,98,91.44,7669,3.8847387377696316,19.347491646569079,80,53,47,{"$f":"100-AA16","v":53},87.82,10.039999999999999,2.1469999999999998,79,68.84,-1.1200000000000001,null,null,{"$f":"LOOKUP(A16,'2011 Survey responses'!$A$3:$A$194,'2011 Survey responses'!$FX$3:$FX$194)","v":2},1,3,1]
["Barbados","BRB",0.79,4,1,2,6,2,4,0,0.256552,639.38837209300004,0.25900000000000001,0,44.47,60,43,430,1,0,0,313.7,2.4965145186977451,3.7650418111360393,100,100,null,null,32.840000000000003,28.74,38.42,null,0,1.29,null,null,{"$f":"LOOKUP(A17,'2011 Survey responses'!$A$3:$A$194,'2011 Survey responses'!$FX$3:$FX$194)","v":2},2,2,4]
["Belarus","BLR",0.73,3,4,4,15,3,4,11332.772362014,9.5879399999999997,46.632182080900002,-0.47099999999999997,28.8,74.7,27,20290,207600,2,96,35.86,5992,3.77757180469141,9.6466561865783547,100,93,null,null,19.36,26.88,53.76,null,0.03,-0.78,null,null,{"$f":"LOOKUP(A18,'2011 Survey responses'!$A$3:$A$194,'2011 Survey responses'!$FX$3:$FX$194)","v":0},0,0,0]
["Belgium","BEL",0.87,4,5,4,18,3,5,33519.522756667298,10.697588,349.4125393082,0.53500000000000003,33,97.41,3,3028,30528,3,72,34.43,1728,3.2375437381428744,0.79301891941900915,100,100,null,null,0.59519999999999995,11.71,87.69,10,0.04,1.5669999999999999,null,null,{"$f":"LOOKUP(A19,'2011 Survey responses'!$A$3:$A$194,'2011 Survey responses'!$FX$3:$FX$194)","v":2},3,4,4]
["Belize","BLZ",0.69,3,1,2,7,2,4,6415.2499672816703,0.31292799999999998,14.025080553900001,2.0609999999999999,59.6,52.25,48,2281,22966,1,39,13.77,61628,4.7897780738955671,13.589855490610152,99,90,null,null,20,6.6669999999999998,73.33,null,3.21,-0.25,null,null,{"$f":"LOOKUP(A20,'2011 Survey responses'!$A$3:$A$194,'2011 Survey responses'!$FX$3:$FX$194)","v":1},2,2,3]
["Benin","BEN",0.44,1,3,1,5,1,1,1356.7627711119401,9.211741,73.028742164099995,3.1539999999999999,38.6,42.04,59,11062,112622,3,95,60.97,3047,3.4838724542226736,32.19986734468273,75,12,null,null,45.38,31.54,23.08,32,0.94,-0.61,null,null,{"$f":"LOOKUP(A21,'2011 Survey responses'!$A$3:$A$194,'2011 Survey responses'!$FX$3:$FX$194)","v":2},1,1,1]
["Bhutan","BTN",null,2,2,3,12,1,1,4395.2457072176703,0.708484,17.4788508621,1.728,46.7,34.71,65,3839.4,38394,2,99,0,113537,5.05513741463258,20.819146568381139,92,65,null,null,94.08,5.03,0.88759999999999994,0,5.44,0.91,null,null,{"$f":"LOOKUP(A22,'2011 Survey responses'!$A$3:$A$194,'2011 Survey responses'!$FX$3:$FX$194)","v":2},1,3,2]
["Bolivia (Plurinational State of)","BOL",0.64,2,1,2,8,2,3,3954.3680808693898,10.030832,9.1278142403999993,1.768,57.2,66.55,34,108330,1098581,2,96,51.24,64215,4.807636486889991,13.54789034141587,86,25,null,null,57.23,27.59,15.18,null,3.12,-0.82,null,null,{"$f":"LOOKUP(A23,'2011 Survey responses'!$A$3:$A$194,'2011 Survey responses'!$FX$3:$FX$194)","v":0},0,0,0]
["Bosnia and Herzegovina","BIH",0.71,3,4,4,17,3,3,7513.5136232524401,3.759633,75.048635662199999,-0.115,36.299999999999997,48.62,53,5120,51197,3,93,5.3330000000000002,9939,3.9973426906016223,9.6260580669957232,99,95,null,null,null,null,null,null,0,-0.6,null,null,{"$f":"LOOKUP(A24,'2011 Survey responses'!$A$3:$A$194,'2011 Survey responses'!$FX$3:$FX$194)","v":2},3,4,3]
["Botswana","BWA",0.63,2,3,1,4,2,4,12378.0930291369,1.9775689999999999,3.0158865978999998,1.452,61,61.13,40,56673,581730,2,100,80.39,6372,3.8042757671290941,2.1371144426344224,95,60,2.6,{"$f":"100-AA25","v":97.4},41.24,40.72,18.04,66,1.26,0.76,null,null,{"$f":"LOOKUP(A25,'2011 Survey responses'!$A$3:$A$194,'2011 Survey responses'!$FX$3:$FX$194)","v":2},2,1,2]
["Brazil","BRA",0.7,3,1,2,8,2,4,9517.0999514451996,195.42325199999999,22.268414916600001,0.98,55,86.53,14,845942,8514877,3,60,34.19,42886,4.6323155412509909,5.7445444877237843,97,80,null,null,54.59,27.95,17.46,null,0.72,-0.05,null,null,{"$f":"LOOKUP(A26,'2011 Survey responses'!$A$3:$A$194,'2011 Survey responses'!$FX$3:$FX$194)","v":2},2,2,3]
["Brunei Darussalam","BRN",0.81,4,2,3,13,2,null,0,0.40704499999999999,69.037294015599997,1.9039999999999999,0,75.650000000000006,25,527,5765,3,11,0,21684,4.336139398608557,0.78012868727373597,0,0,100,{"$f":"100-AA27","v":0},null,null,null,1,null,0.32,null,null,{"$f":"LOOKUP(A27,'2011 Survey responses'!$A$3:$A$194,'2011 Survey responses'!$FX$3:$FX$194)","v":0},0,0,0]
["Bulgaria","BGR",0.74,3,4,4,15,3,5,11258.964835623799,7.4972820000000002,68.754182487199998,-0.63600000000000001,29.2,71.459999999999994,29,10861,110879,3,86,1.4079999999999999,2805,3.4479328655921804,7.0565210638425935,100,100,null,null,16.28,15.98,67.739999999999995,10,0.02,-0.17,null,null,{"$f":"LOOKUP(A28,'2011 Survey responses'!$A$3:$A$194,'2011 Survey responses'!$FX$3:$FX$194)","v":2},3,4,3]
["Burkina Faso","BFA",0.31,1,3,1,5,1,1,1073.43120141028,16.286705999999999,53.966842145800001,3.39,39.6,25.69,80,27360,274200,2,100,0,820.5,2.9140785853891118,33.70408207753907,76,11,3.2,{"$f":"100-AA29","v":96.8},70.05,28.31,1.635,null,0.24,-0.04,null,null,{"$f":"LOOKUP(A29,'2011 Survey responses'!$A$3:$A$194,'2011 Survey responses'!$FX$3:$FX$194)","v":2},1,1,1]
["Burundi","BDI",0.28000000000000003,1,3,1,1,1,1,353.78483829575703,8.5188620000000004,null,2.875,33.299999999999997,11,90,2568,27830,2,100,19.75,1553,3.1911714557285586,34.848648062244898,72,46,null,null,77.08,17.010000000000002,5.9029999999999996,null,0.14000000000000001,-1.02,null,null,{"$f":"LOOKUP(A30,'2011 Survey responses'!$A$3:$A$194,'2011 Survey responses'!$FX$3:$FX$194)","v":1},1,1,1]
["Cambodia","KHM",0.49,2,2,3,13,1,1,1760.4259899231699,15.053112,80.144723396000003,1.643,44.2,20.11,78,17652,181035,3,91,74.67,32695,4.514481341698783,33.22293179783351,61,29,null,null,94,4.4870000000000001,1.5109999999999999,null,4.24,-0.9,null,null,{"$f":"LOOKUP(A31,'2011 Survey responses'!$A$3:$A$194,'2011 Survey responses'!$FX$3:$FX$194)","v":2},1,3,2]
["Cameroon","CMR",0.46,1,3,1,2,2,3,2047.39632051326,19.958351,null,2.2629999999999999,44.6,58.4,43,47271,475440,3,56,4.3780000000000001,14957,4.1748444936554554,19.619096473235377,74,47,null,null,76.09,16.79,7.1189999999999998,null,0.13,-1.1000000000000001,null,null,{"$f":"LOOKUP(A32,'2011 Survey responses'!$A$3:$A$194,'2011 Survey responses'!$FX$3:$FX$194)","v":2},2,1,1]
["Canada","CAN",0.89,4,5,2,9,3,5,36038.540057999497,33.889747,3.3378506250000002,0.95699999999999996,32.6,80.58,20,909351,9984670,3,24,1.792,87255,4.9407903228540491,1.7371375359759709,100,100,null,null,11.77,19.559999999999999,68.680000000000007,4,0.18,2.0299999999999998,null,null,{"$f":"LOOKUP(A33,'2011 Survey responses'!$A$3:$A$194,'2011 Survey responses'!$FX$3:$FX$194)","v":2},3,2,4]
["Cape Verde","CPV",0.53,2,3,1,5,2,3,3239.01974119036,0.51258199999999998,123.9266055046,1.421,50.4,61.09,40,403,4033,1,0,0,601.20000000000005,2.7790189719148706,9.2226402901503199,84,54,2.5,{"$f":"100-AA34","v":97.5},90.91,7.2729999999999997,1.8180000000000001,null,4.92,0.33,null,null,{"$f":"LOOKUP(A34,'2011 Survey responses'!$A$3:$A$194,'2011 Survey responses'!$FX$3:$FX$194)","v":2},2,1,2]
["Central African Republic","CAF",0.32,1,3,1,2,1,1,679.98848661397903,4.5059449999999996,null,1.881,43.6,38.94,61,62300,622984,2,100,2.355,33280,4.5221833176186861,54.349640531201807,67,34,null,null,1.4970000000000001,82.04,16.47,null,0.11,-1.02,null,null,{"$f":"LOOKUP(A35,'2011 Survey responses'!$A$3:$A$194,'2011 Survey responses'!$FX$3:$FX$194)","v":0},{"$f":"IF(AK35>0,H35,0)","v":0},{"$f":"IF(AK35>0,F35,0)","v":0},{"$f":"IF(AK35>0,D35,0)","v":0}]
["Chad","TCD",0.3,1,3,1,2,1,1,1345.11253938699,11.506130000000001,null,2.7690000000000001,39.799999999999997,27.63,73,125920,1284000,2,95,65.12,3940,3.5954962218255742,12.518080499136438,50,9,null,null,51.77,24.11,24.11,null,25.89,-1.02,null,null,{"$f":"LOOKUP(A36,'2011 Survey responses'!$A$3:$A$194,'2011 Survey responses'!$FX$3:$FX$194)","v":2},1,1,1]
["Chile","CHL",0.78,4,1,2,8,2,4,13369.624432305,17.134708,22.170910803000002,1.002,52,89,12,74380,756102,3,12,4.1210000000000004,54868,4.7393191299647297,3.8072166906960874,96,96,null,null,70.28,9.1980000000000004,20.49,null,2.4700000000000002,1.55,null,null,{"$f":"LOOKUP(A37,'2011 Survey responses'!$A$3:$A$194,'2011 Survey responses'!$FX$3:$FX$194)","v":1},2,2,4]
["China","CHN",0.66,2,2,3,11,2,3,5510.5494281536403,1354.1464430000001,null,0.629,41.5,46.96,57,932748.9,9596961,3,32,0.96189999999999998,2112,3.3246939138617746,11.016583241058775,89,55,67,{"$f":"100-AA38","v":33},64.61,12.19,23.21,18,1.88,-0.41,null,null,{"$f":"LOOKUP(A38,'2011 Survey responses'!$A$3:$A$194,'2011 Survey responses'!$FX$3:$FX$194)","v":2},2,3,2]
["Colombia","COL",0.69,3,1,2,8,2,3,8212.0055921696294,46.300196,38.931760773800001,1.456,58.5,75.069999999999993,26,110950,1138910,3,66,0.93810000000000004,47365,4.675457541641209,7.9165464585316752,92,74,null,null,38.89,56.89,4.2220000000000004,null,3.76,-0.47,null,null,{"$f":"LOOKUP(A39,'2011 Survey responses'!$A$3:$A$194,'2011 Survey responses'!$FX$3:$FX$194)","v":0},0,0,0]
["Comoros","COM",0.43,1,3,1,1,1,1,1080.52009093685,0.69135100000000005,null,2.2930000000000001,64.3,28.19,72,186,2235,1,0,0,1412,3.1498346967157849,46.731411984417832,95,36,null,null,47,48,5,null,6.15,-0.73,null,null,{"$f":"LOOKUP(A40,'2011 Survey responses'!$A$3:$A$194,'2011 Survey responses'!$FX$3:$FX$194)","v":0},0,0,0]
["Congo","COG",0.49,2,3,1,2,2,3,3647.2006503873499,3.7586780000000002,10.970119883000001,1.9079999999999999,47.3,62.12,39,34150,342000,3,80,73.319999999999993,230152,5.3620147532260383,4.213880774231507,71,30,null,null,8.6959999999999997,69.569999999999993,21.74,52,0.04,-0.94,null,null,{"$f":"LOOKUP(A41,'2011 Survey responses'!$A$3:$A$194,'2011 Survey responses'!$FX$3:$FX$194)","v":2},2,1,2]
["Costa Rica","CRI",0.73,3,1,2,7,2,4,10390.401883656599,4.6398270000000004,88.711585127199996,1.39,48.9,64.42,37,5106,51100,3,29,0,24873,4.3957281698646442,8.1579352860910035,97,95,null,null,53.36,29.48,17.16,null,2.61,0.88,null,null,{"$f":"LOOKUP(A42,'2011 Survey responses'!$A$3:$A$194,'2011 Survey responses'!$FX$3:$FX$194)","v":2},2,2,3]
["Côte d'Ivoire","CIV",0.4,1,3,1,5,2,2,1526.2455144492201,21.570746,64.525232352200007,2.282,48.4,50.56,51,31800,322463,3,55,5.2990000000000004,3941,3.5956064348656032,23.790597727660252,80,23,null,null,42.58,38.270000000000003,19.13,null,0.11,-0.86,null,null,{"$f":"LOOKUP(A43,'2011 Survey responses'!$A$3:$A$194,'2011 Survey responses'!$FX$3:$FX$194)","v":2},2,1,1]
["Croatia","HRV",0.77,4,4,4,17,3,4,17218.585371551599,4.4096590000000004,78.356504223100004,-0.15,29,57.74,43,5391,56594,3,63,64.27,23853,4.3775430081774003,5.6517437606207634,99,99,null,null,1.7430000000000001,84.63,13.63,null,0,0.23,null,null,{"$f":"LOOKUP(A44,'2011 Survey responses'!$A$3:$A$194,'2011 Survey responses'!$FX$3:$FX$194)","v":0},0,0,0]
["Cuba","CUB",null,3,1,2,6,2,4,0,11.204351000000001,102.25546475439999,0.02,0,75.23,24,10982,110860,1,0,0,3402,3.5317343092765503,5.0256886636199543,94,91,null,null,74.650000000000006,15.45,9.9009999999999998,null,0.68,-0.13,null,null,{"$f":"LOOKUP(A45,'2011 Survey responses'!$A$3:$A$194,'2011 Survey responses'!$FX$3:$FX$194)","v":2},2,2,3]
["Cyprus","CYP",0.81,4,4,3,14,2,null,0,0.87972300000000003,85.720462652699993,1.02,0,70.319999999999993,30,924,9251,3,0,0,904.9,2.9566005882131767,2.371440787383015,100,100,14,{"$f":"100-AA46","v":86},74.55,23.65,1.7989999999999999,67,0.13,0.89,null,null,{"$f":"LOOKUP(A46,'2011 Survey responses'!$A$3:$A$194,'2011 Survey responses'!$FX$3:$FX$194)","v":1},2,3,4]
["Czech Republic","CZE",0.84,4,4,4,15,3,5,23340.9672369039,10.410786,132.24741013120001,0.41899999999999998,25.8,73.540000000000006,27,7725,78867,2,100,0,1274,3.1051694279993316,2.5828004742087236,100,98,null,null,1.766,41.76,56.5,32,0.13,0.38,null,null,{"$f":"LOOKUP(A47,'2011 Survey responses'!$A$3:$A$194,'2011 Survey responses'!$FX$3:$FX$194)","v":2},3,4,4]
["Democratic People's Republic of Korea","PRK",null,2,2,3,11,2,2,0,23.990703,null,0.38900000000000001,0,60.22,37,12041,120538,3,43,13.16,3239,3.5104109480101768,0,100,0,null,null,71.819999999999993,12.42,15.75,null,605.9,-1.18,null,null,{"$f":"LOOKUP(A48,'2011 Survey responses'!$A$3:$A$194,'2011 Survey responses'!$FX$3:$FX$194)","v":2},2,3,2]
["Democratic Republic of the Congo","COD",0.24,1,3,1,2,1,1,297.10672576985002,67.827494999999999,29.032035202100001,2.7629999999999999,44.4,35.22,66,226705,2344858,3,100,29.85,19967,4.3003128179343699,43.355450426916605,46,23,null,null,17.68,62.57,19.75,null,7.0000000000000007E-2,-1.42,null,null,{"$f":"LOOKUP(A49,'2011 Survey responses'!$A$3:$A$194,'2011 Survey responses'!$FX$3:$FX$194)","v":0},0,0,0]
["Denmark","DNK",0.87,4,5,4,16,3,5,34294.155359394601,5.4812830000000003,127.3732306122,0.23499999999999999,24.7,86.87,13,4243,43094,3,0,0,1099,3.0409976924234905,1.166862066420767,100,100,null,null,36.06,58.48,5.4550000000000001,{"$f":"0.65/0.66*100","v":98.484848484848484},0.17,2.2599999999999998,null,null,{"$f":"LOOKUP(A50,'2011 Survey responses'!$A$3:$A$194,'2011 Survey responses'!$FX$3:$FX$194)","v":2},3,4,4]
["Djibouti","DJI",0.4,1,3,1,1,1,1,1978.2307361242099,0.87905299999999997,null,1.762,39.9,76.23,13,2318,23200,3,51,0,353.4,2.5482665451707454,3.6318545624690866,92,56,100,{"$f":"100-AA51","v":0},15.79,84.21,0,95,17.66,-0.73,null,null,{"$f":"LOOKUP(A51,'2011 Survey responses'!$A$3:$A$194,'2011 Survey responses'!$FX$3:$FX$194)","v":0},0,0,0]
["Dominica","DMA",null,3,1,2,6,2,4,8037.50800055934,6.6515000000000005E-2,95.912117177100001,-0.28100000000000003,0,67.239999999999995,27,75,751,1,0,0,0,null,18.051347500298608,0,0,null,null,null,null,null,null,1.99,0.52,null,null,{"$f":"LOOKUP(A52,'2011 Survey responses'!$A$3:$A$194,'2011 Survey responses'!$FX$3:$FX$194)","v":1},2,2,3]
["Dominican Republic","DOM",0.66,2,1,2,6,2,3,7595.4267459856601,10.225482,197.76061720530001,1.4019999999999999,48.4,69.180000000000007,31,4832,48670,1,5,0,2110,3.3242824552976926,6.7213503358200004,86,83,null,null,64.28,33.86,1.865,null,3.11,-0.39,null,null,{"$f":"LOOKUP(A53,'2011 Survey responses'!$A$3:$A$194,'2011 Survey responses'!$FX$3:$FX$194)","v":0},0,0,0]
["Ecuador","ECU",0.7,3,1,2,8,2,3,7402.4858914266297,13.774908999999999,53.848424141599999,1.0620000000000001,54.4,66.95,34,27684,283561,3,60,0,31481,4.4980485193536124,6.8184261046053605,94,92,null,null,91.54,5.95,2.5259999999999998,null,5.59,-1.02,null,null,{"$f":"LOOKUP(A54,'2011 Survey responses'!$A$3:$A$194,'2011 Survey responses'!$FX$3:$FX$194)","v":2},2,2,3]
["Egypt","EGY",0.62,2,3,1,3,2,3,5006.4157602876603,84.474427000000006,75.043480039900004,1.8129999999999999,32.1,43.4,57,99545,1001450,3,29,96.86,702.8,2.8468317528232574,13.981794653128102,99,94,100,{"$f":"100-AA55","v":0},86.38,7.76,5.8570000000000002,null,0.98,-0.28999999999999998,null,null,{"$f":"LOOKUP(A55,'2011 Survey responses'!$A$3:$A$194,'2011 Survey responses'!$FX$3:$FX$194)","v":1},2,1,2]
["El Salvador","SLV",0.66,2,1,2,7,2,3,6279.9388674563297,6.1941259999999998,291.0872167823,0.443,46.9,64.31,39,2072,21041,3,56,29.65,4113,3.6141587095091752,11.617977298393196,87,87,null,null,55.23,27.54,17.22,null,19.010000000000002,-0.54,null,null,{"$f":"LOOKUP(A56,'2011 Survey responses'!$A$3:$A$194,'2011 Survey responses'!$FX$3:$FX$194)","v":1},2,2,2]
["Equatorial Guinea","GNQ",0.54,2,3,1,2,1,1,31308.944527050699,0.69338500000000003,null,2.6019999999999999,0,39.700000000000003,61,2805,28051,3,80,0,39454,4.5960910402416042,2.7012431967911716,0,0,null,null,5.7469999999999999,79.31,14.94,null,null,-1.89,null,null,{"$f":"LOOKUP(A57,'2011 Survey responses'!$A$3:$A$194,'2011 Survey responses'!$FX$3:$FX$194)","v":0},0,0,0]
["Eritrea","ERI",null,null,3,1,1,1,1,584.27202963297998,5.2239940000000002,null,3.1040000000000001,0,21.58,79,10100,117600,3,52,55.56,1279,3.106870544478654,20.063252978929103,61,14,null,null,94.5,5.3259999999999996,0.17180000000000001,null,0,0.04,null,null,{"$f":"LOOKUP(A58,'2011 Survey responses'!$A$3:$A$194,'2011 Survey responses'!$FX$3:$FX$194)","v":0},0,0,0]
["Estonia","EST",0.81,4,4,4,16,3,5,18638.8132171447,1.339459,29.643244079900001,-0.11,36,69.489999999999995,31,4239,45228,3,55,0.74960000000000004,9553,3.9801397777457543,3.2430589763570374,98,95,null,null,0.44540000000000002,3.0070000000000001,96.55,17,null,0.66,null,null,{"$f":"LOOKUP(A59,'2011 Survey responses'!$A$3:$A$194,'2011 Survey responses'!$FX$3:$FX$194)","v":2},3,4,4]
["Ethiopia","ETH",0.33,1,3,1,1,1,1,802.40320016619,84.975605999999999,71.738657973399995,2.5880000000000001,29.8,16.66,83,100000,1104300,2,88,0,1512,3.1795517911651876,47.070591004807653,38,12,null,null,93.63,5.9909999999999997,0.37780000000000002,null,272.57,-0.35,null,null,{"$f":"LOOKUP(A60,'2011 Survey responses'!$A$3:$A$194,'2011 Survey responses'!$FX$3:$FX$194)","v":2},1,1,1]
["Fiji","FIJ",0.67,2,2,5,20,2,4,4050.7498124631402,0.85409800000000002,null,0.62,0,51.86,48,1827,18274,1,0,0,33827,4.5292634834155852,47.070591004807653,0,0,null,null,61.2,28.03,10.77,null,10.08,0.12,null,null,{"$f":"LOOKUP(A61,'2011 Survey responses'!$A$3:$A$194,'2011 Survey responses'!$FX$3:$FX$194)","v":2},2,5,2]
["Finland","FIN",0.87,4,5,4,16,3,5,33471.653362855301,5.3458259999999997,15.7004025537,0.38300000000000001,26.9,85.09,37,30409,338145,3,51,2.7269999999999999,20739,4.3167878116020955,2.7469664168403911,100,100,null,null,3.06,24.72,72.22,{"$f":"0.285/2.27*100","v":12.555066079295152},0,2.39,null,null,{"$f":"LOOKUP(A62,'2011 Survey responses'!$A$3:$A$194,'2011 Survey responses'!$FX$3:$FX$194)","v":2},3,4,4]
["France","FRA",0.87,4,5,4,18,3,5,31576.531881410399,62.636580000000002,112.92372076159999,0.52500000000000002,32.700000000000003,85.25,23,54766,643801,3,48,5.2130000000000001,3401,3.5316066319327222,2.074300556625015,100,100,null,null,12.41,18.260000000000002,69.319999999999993,18,0.28000000000000003,1.45,null,null,{"$f":"LOOKUP(A63,'2011 Survey responses'!$A$3:$A$194,'2011 Survey responses'!$FX$3:$FX$194)","v":2},3,4,4]
["Gabon","GAB",0.65,2,3,1,2,2,4,13426.9565132936,1.501266,null,1.841,41.5,86.03,15,25767,267667,3,85,0,113260,5.05407655729051,4.7586008931312893,87,33,null,null,38.46,52.77,8.7690000000000001,null,0,-0.55000000000000004,null,null,{"$f":"LOOKUP(A64,'2011 Survey responses'!$A$3:$A$194,'2011 Survey responses'!$FX$3:$FX$194)","v":2},2,1,2]
["Gambia","GMB",0.39,1,3,1,5,1,1,1259.61650052907,1.750732,null,2.746,47.3,58.15,43,1000,11295,3,55,62.5,4819,3.6829569263012085,29.415509474611202,92,67,19.600000000000001,{"$f":"100-AA65","v":80.400000000000006},28.05,47.55,24.4,null,2.98,-0.83,null,null,{"$f":"LOOKUP(A65,'2011 Survey responses'!$A$3:$A$194,'2011 Survey responses'!$FX$3:$FX$194)","v":2},1,1,1]
["Georgia","GEO",0.7,3,4,3,14,2,3,4525.7771383509898,4.2191910000000004,62.895265423200001,-1.1299999999999999,40.799999999999997,52.75,47,6949,69700,3,56,8.2110000000000003,14704,4.1674354940420359,11.839956174620831,98,95,null,null,65.08,22.09,12.83,{"$f":"0.549/1.621*100","v":33.867982726711908},3.38,-1.03,null,null,{"$f":"LOOKUP(A66,'2011 Survey responses'!$A$3:$A$194,'2011 Survey responses'!$FX$3:$FX$194)","v":2},2,3,3]
["Germany","DEU",0.89,4,5,4,18,3,5,33664.585239308202,82.056775000000002,229.97314022969999,-8.5999999999999993E-2,28.3,73.849999999999994,26,34877,357022,3,71,30.52,1872,3.2723058444020863,0.87539782769472585,100,100,null,null,0.25080000000000002,15.88,83.87,{"$f":"5.825/32.3*100","v":18.034055727554183},0.03,1.82,null,null,{"$f":"LOOKUP(A67,'2011 Survey responses'!$A$3:$A$194,'2011 Survey responses'!$FX$3:$FX$194)","v":2},{"$f":"IF(AK67>0,H67,0)","v":3},{"$f":"IF(AK67>0,F67,0)","v":4},{"$f":"IF(AK67>0,D67,0)","v":4}]
["Ghana","GHA",0.47,2,3,1,5,2,2,1342.15560778129,24.332754999999999,96.007374241700006,2.093,42.8,51.47,50,22754,238533,3,89,43.05,2278,{"$f":"LOG(V68)","v":3.3575537197430814},32.604155696596969,82,13,null,null,66.400000000000006,23.93,9.6739999999999995,null,0.65,-0.4,null,null,{"$f":"LOOKUP(A68,'2011 Survey responses'!$A$3:$A$194,'2011 Survey responses'!$FX$3:$FX$194)","v":2},2,1,2]
["Greece","GRC",0.86,4,5,4,17,3,5,27598.7009883266,11.183393000000001,85.157043582399993,0.215,34.299999999999997,61.41,39,12890,131957,3,19,21.89,6667,3.8239304551255637,3.6461861667786173,100,98,null,null,89.3,8.9329999999999998,1.7629999999999999,{"$f":"3.651/9.461*100","v":38.590001056970721},1.44,0.57999999999999996,null,null,{"$f":"LOOKUP(A69,'2011 Survey responses'!$A$3:$A$194,'2011 Survey responses'!$FX$3:$FX$194)","v":2},3,4,4]
["Grenada","GRD",null,3,1,2,6,2,4,7894.2975394432697,0.104342,318.25581395350002,0.35599999999999998,0,39.29,69,34,344,1,0,0,0,null,5.5600536859498586,0,98,null,null,null,null,null,null,0,0.71,null,null,{"$f":"LOOKUP(A70,'2011 Survey responses'!$A$3:$A$194,'2011 Survey responses'!$FX$3:$FX$194)","v":2},2,2,3]
["Guatemala","GTM",0.56000000000000005,2,1,2,7,2,3,4399.9717031627597,14.376880999999999,125.6124585587,2.4649999999999999,53.7,49.46,51,10716,108889,3,73,1.86,8132,3.9101973699660011,12.463946405652827,94,81,null,null,54.89,14.65,30.44,null,6.34,-0.71,null,null,{"$f":"LOOKUP(A71,'2011 Survey responses'!$A$3:$A$194,'2011 Survey responses'!$FX$3:$FX$194)","v":2},2,2,2]
["Guinea","GIN",0.34,1,3,1,5,1,1,1112.8374623361001,10.323755,41.418084496299997,2.2599999999999998,43.3,35.36,66,24572,245857,3,83,0,22984,4.3614256129838909,23.087570654824383,71,19,null,null,83.95,12.86,3.2160000000000002,null,2.27,-0.57999999999999996,null,null,{"$f":"LOOKUP(A72,'2011 Survey responses'!$A$3:$A$194,'2011 Survey responses'!$FX$3:$FX$194)","v":2},1,1,1]
["Guinea-Bissau","GNB",0.28999999999999998,1,3,1,5,1,1,497.09225766984702,1.6473800000000001,null,2.2429999999999999,35.5,30,70,2812,36125,1,45,48.39,19683,4.2940912924769616,0,60,21,null,null,82.29,13.14,4.5709999999999997,{"$f":"0.031/0.175*100","v":17.714285714285715},0.06,-0.61,null,null,{"$f":"LOOKUP(A73,'2011 Survey responses'!$A$3:$A$194,'2011 Survey responses'!$FX$3:$FX$194)","v":0},0,0,0]
["Guyana","GUY",0.61,2,1,2,8,2,3,2349.1966308022502,0.76144199999999995,3.5641557619999999,-6.3E-2,43.2,28.6,72,19685,214969,1,76,0,315858,5.4994918811096198,24.573076365368202,94,81,null,null,97.56,1.829,0.60980000000000001,null,0,-0.5,null,null,{"$f":"LOOKUP(A74,'2011 Survey responses'!$A$3:$A$194,'2011 Survey responses'!$FX$3:$FX$194)","v":0},0,0,0]
["Haiti","HTI",0.4,1,1,2,6,1,1,1087.7401113963299,10.188174999999999,null,1.589,59.5,52.09,53,2756,27750,1,27,7.2370000000000001,1421,3.1525940779274699,0,63,17,null,null,77.5,18.77,3.75,null,13.72,-1.7,null,null,{"$f":"LOOKUP(A75,'2011 Survey responses'!$A$3:$A$194,'2011 Survey responses'!$FX$3:$FX$194)","v":2},1,2,1]
["Honduras","HND",0.6,2,1,2,7,2,3,3664.4578041612999,7.6155840000000001,68.510711872800002,1.9950000000000001,55.3,51.6,52,11189,112090,3,22,0,13107,4.1175032994292309,13.112342466860309,86,71,null,null,57.79,17.39,24.83,null,143.61000000000001,-0.78,null,null,{"$f":"LOOKUP(A76,'2011 Survey responses'!$A$3:$A$194,'2011 Survey responses'!$FX$3:$FX$194)","v":0},0,0,0]
["Hungary","HUN",0.81,4,4,4,15,3,5,18040.406992541499,9.973141,107.9050178441,-0.20799999999999999,30,68.099999999999994,32,8961,93028,2,100,94.23,10388,4.0165319409572655,4.1387672194622516,100,100,null,null,5.5810000000000004,11.93,82.49,null,0.25,0.6,null,null,{"$f":"LOOKUP(A77,'2011 Survey responses'!$A$3:$A$194,'2011 Survey responses'!$FX$3:$FX$194)","v":0},0,0,0]
["Iceland","ISL",0.87,4,5,4,16,3,5,35544.710015284298,0.32927899999999999,3.1005339805999999,2.149,0,93.42,8,10025,103000,3,0,0,539683,5.7321387380161619,6.1892035063407675,100,100,56,{"$f":"100-AA78","v":44},42.42,49.09,8.4849999999999994,{"$f":"0.16/0.165*100","v":96.969696969696969},0,2.19,null,null,{"$f":"LOOKUP(A78,'2011 Survey responses'!$A$3:$A$194,'2011 Survey responses'!$FX$3:$FX$194)","v":2},3,4,4]
["India","IND",0.52,2,2,3,12,2,3,2747.4392049941898,1214.4643120000001,349.89473005349998,1.431,36.799999999999997,30.01,71,297319,3287263,3,44,30.52,1618,3.2089785172762535,18.142922555774607,88,31,null,null,90.41,7.359,2.234,{"$f":"251/761*100","v":32.982917214191851},3.51,-0.25,null,null,{"$f":"LOOKUP(A79,'2011 Survey responses'!$A$3:$A$194,'2011 Survey responses'!$FX$3:$FX$194)","v":0},0,0,0]
["Indonesia","IDN",0.6,2,2,3,13,2,3,3674.0161869027502,232.51677100000001,119.5874157675,1.179,37.6,44.28,48,181157,1904569,3,6,0,8881,3.9484618700612835,14.258722632651285,80,52,null,null,81.87,11.59,6.53,{"$f":"17.61/113.3*100","v":15.542806707855251},2.06,-1.1599999999999999,null,null,{"$f":"LOOKUP(A80,'2011 Survey responses'!$A$3:$A$194,'2011 Survey responses'!$FX$3:$FX$194)","v":1},2,3,2]
["Iran (Islamic Republic of)","IRN",0.7,3,2,3,12,2,3,10782.8988477853,75.077546999999996,44.563982194899999,1.1830000000000001,38.299999999999997,70.75,32,162855,1648195,3,22,6.556,1876,3.2732328340430454,10.256785760209228,0,0,61,{"$f":"100-AA81","v":39},92.18,6.6449999999999996,1.179,{"$f":"53.1/93.1*100","v":57.035445757250272},40.29,-0.38,null,null,{"$f":"LOOKUP(A81,'2011 Survey responses'!$A$3:$A$194,'2011 Survey responses'!$FX$3:$FX$194)","v":1},2,3,3]
["Iraq","IRQ",null,2,2,3,14,2,3,0,31.466698000000001,73.280734484600003,2.165,0,66.17,33,43737,438317,3,73,53.45,2512,3.4000196350651586,0,79,73,null,null,78.790000000000006,6.5149999999999997,14.7,null,0.05,-1.43,null,null,{"$f":"LOOKUP(A82,'2011 Survey responses'!$A$3:$A$194,'2011 Survey responses'!$FX$3:$FX$194)","v":2},2,3,2]
["Ireland","IRL",0.9,4,5,4,16,3,5,39253.0886453688,4.5890019999999998,62.927440126400001,1.833,34.299999999999997,61.94,39,6889,70273,3,5,5.7690000000000001,11720,4.0689276116820716,1.3158756189013761,100,99,null,null,null,null,null,null,0.51,1.67,null,null,{"$f":"LOOKUP(A83,'2011 Survey responses'!$A$3:$A$194,'2011 Survey responses'!$FX$3:$FX$194)","v":2},3,4,4]
["Israel","ISR",0.87,4,5,3,14,2,5,25402.677679758701,7.2850330000000003,331.1342424792,1.6990000000000001,39.200000000000003,91.85,8,2164,20770,3,52,57.87,252.4,2.4020893505720968,0,100,100,null,null,57.78,36.44,5.7830000000000004,null,0.17,1.08,null,null,{"$f":"LOOKUP(A84,'2011 Survey responses'!$A$3:$A$194,'2011 Survey responses'!$FX$3:$FX$194)","v":1},2,3,4]
["Italy","ITA",0.85,4,5,4,17,3,5,28166.970378714199,60.097563999999998,198.5563590145,0.48899999999999999,36,68.36,32,29414,301340,3,28,4.5999999999999996,3210,3.5065050324048719,2.0449872893949452,100,0,null,null,44.07,20.059999999999999,35.869999999999997,null,4.2699999999999996,0.8,null,null,{"$f":"LOOKUP(A85,'2011 Survey responses'!$A$3:$A$194,'2011 Survey responses'!$FX$3:$FX$194)","v":0},0,0,0]
["Jamaica","JAM",0.69,3,1,2,6,2,4,7121.7854731441103,2.7299090000000001,244.505800464,0.46100000000000002,45.5,52.01,47,1083,10991,1,0,0,3473,3.5407047833107623,5.7280003937421569,94,83,null,null,34.21,43.87,21.93,null,2.81,-0.46,null,null,{"$f":"LOOKUP(A86,'2011 Survey responses'!$A$3:$A$194,'2011 Survey responses'!$FX$3:$FX$194)","v":2},2,2,3]
["Japan","JPN",0.88,4,5,3,11,3,5,31483.961817323299,126.995411,337.90384462729997,-7.0999999999999994E-2,24.9,66.83,34,36450,377915,3,0,0,3378,3.5286596452349897,1.4726337812171724,100,100,98,{"$f":"100-AA87","v":2},63.13,19.32,17.55,{"$f":"15.77/89.03*100","v":17.713130405481298},2.87,1.2,null,null,{"$f":"LOOKUP(A87,'2011 Survey responses'!$A$3:$A$194,'2011 Survey responses'!$FX$3:$FX$194)","v":2},3,3,4]
["Jordan","JOR",0.68,2,2,3,14,2,3,4882.8526088725403,6.4723920000000001,65.478722213500006,3.0179999999999998,37.700000000000003,78.53,22,8824,89342,3,26,27.21,152.69999999999999,2.1838390370564214,2.8195343814932512,96,98,30,{"$f":"100-AA88","v":70},64.959999999999994,30.96,4.0810000000000004,{"$f":"0.5533/0.9311*100","v":59.424336805928469},0.35,0,null,null,{"$f":"LOOKUP(A88,'2011 Survey responses'!$A$3:$A$194,'2011 Survey responses'!$FX$3:$FX$194)","v":2},2,3,2]
["Kazakhstan","KAZ",0.71,3,4,3,10,3,4,10458.1281629266,15.75346,5.7521373260999997,0.72299999999999998,30.9,58.51,42,269970,2724900,2,64,31.19,7061,3.8488662114947791,6.1846681086114952,95,97,6.3,{"$f":"100-AA89","v":93.7},86.63,1.238,12.13,null,0.35,-1.05,null,null,{"$f":"LOOKUP(A89,'2011 Survey responses'!$A$3:$A$194,'2011 Survey responses'!$FX$3:$FX$194)","v":0},0,0,0]
["Kenya","KEN",0.47,1,3,1,1,2,2,1469.5963647876099,40.862900000000003,65.992725292800003,2.6360000000000001,47.7,22.18,78,56914,580367,3,68,32.57,792,2.8987251815894934,23.547542879792395,59,31,null,null,79.16,17.18,3.6560000000000001,null,0.78,-1.05,null,null,{"$f":"LOOKUP(A90,'2011 Survey responses'!$A$3:$A$194,'2011 Survey responses'!$FX$3:$FX$194)","v":2},2,1,1]
["Kiribati","KIR",null,2,2,5,21,1,1,2296.28019413212,9.9546999999999997E-2,null,1.5760000000000001,0,43.9,50,81,811,1,0,0,0,null,27.022379169461789,0,0,null,null,null,null,null,null,0,-0.44,null,null,{"$f":"LOOKUP(A91,'2011 Survey responses'!$A$3:$A$194,'2011 Survey responses'!$FX$3:$FX$194)","v":0},0,0,0]
["Kuwait","KWT",0.77,3,2,3,14,2,null,0,3.0507439999999999,140.0746997418,2.4430000000000001,0,98.38,2,1782,17818,3,0,100,6.8520000000000003,0.83581735429347292,0,99,100,100,{"$f":"100-AA92","v":0},53.87,43.86,2.278,100,0.06,1.06,null,null,{"$f":"LOOKUP(A92,'2011 Survey responses'!$A$3:$A$194,'2011 Survey responses'!$FX$3:$FX$194)","v":0},0,0,0]
["Kyrgyzstan","KGZ",0.6,2,4,3,10,2,2,2022.53363807816,5.5502390000000004,25.3948317338,1.222,33.5,34.549999999999997,64,19180,199951,2,86,0,4263,3.6297153326471321,31.254789428025585,90,93,60,{"$f":"100-AA93","v":40},93.75,3.1749999999999998,3.0750000000000002,null,0.62,-0.84,null,null,{"$f":"LOOKUP(A93,'2011 Survey responses'!$A$3:$A$194,'2011 Survey responses'!$FX$3:$FX$194)","v":0},0,0,0]
["Lao People's Democratic Republic","LAO",0.5,2,2,3,13,1,1,1985.7019655587201,6.4360929999999996,25.339438344600001,1.8080000000000001,32.6,33.18,69,23080,236800,2,96,42.91,53747,4.7303542282191477,35.321266996296586,57,53,null,null,90,4.3330000000000002,5.6669999999999998,null,1.36,-1.25,null,null,{"$f":"LOOKUP(A94,'2011 Survey responses'!$A$3:$A$194,'2011 Survey responses'!$FX$3:$FX$194)","v":0},0,0,0]
["Latvia","LVA",0.77,4,5,4,16,3,5,15592.3361865402,2.240265,35.101132297600003,-0.45700000000000002,36.299999999999997,67.72,32,6225,64589,3,93,52.78,15693,4.1957059747470984,3.4484941436234706,99,78,null,null,11.62,38.74,49.64,null,null,0.09,null,null,{"$f":"LOOKUP(A95,'2011 Survey responses'!$A$3:$A$194,'2011 Survey responses'!$FX$3:$FX$194)","v":2},3,4,4]
["Lebanon","LBN",null,3,2,3,14,2,4,10694.144176980401,4.2545830000000002,null,0.83,0,87.24,13,1023,10400,3,28,0.78539999999999999,1074,3.0310042813635367,6.4348191765919065,100,0,39,{"$f":"100-AA96","v":61},59.54,29.01,11.45,{"$f":"0.7/1.263*100","v":55.423594615993665},0.44,-0.34,null,null,{"$f":"LOOKUP(A96,'2011 Survey responses'!$A$3:$A$194,'2011 Survey responses'!$FX$3:$FX$194)","v":2},2,3,3]
["Lesotho","LSO",0.43,1,3,1,4,1,1,1467.64988044338,2.0841820000000002,null,0.873,52.5,26.88,75,3035,30355,2,65,0,1475,3.1687920203141817,8.5588126822164021,85,29,0,{"$f":"100-AA97","v":100},20,40,40,null,1.1299999999999999,-0.28000000000000003,null,null,{"$f":"LOOKUP(A97,'2011 Survey responses'!$A$3:$A$194,'2011 Survey responses'!$FX$3:$FX$194)","v":2},1,1,1]
["Liberia","LBR",0.3,1,3,1,5,1,1,358.41296798641002,4.1017669999999997,null,4.1440000000000001,52.6,47.82,40,9632,111369,3,72,13.79,61165,4.7865029800701127,59.758554548164355,68,17,null,null,33.61,39.83,26.55,null,0.22,-0.98,null,null,{"$f":"LOOKUP(A98,'2011 Survey responses'!$A$3:$A$194,'2011 Survey responses'!$FX$3:$FX$194)","v":2},1,1,1]
["Libyan Arab Jamahiriya ","LBY",0.76,3,3,1,3,2,4,14236.541384730701,6.5456190000000003,null,2,0,77.89,22,175954,1759540,3,0,0,95.33,1.9792295930221553,2.0682906582207168,0,97,null,null,82.85,14.1,3.0510000000000002,100,0,-0.82,null,null,{"$f":"LOOKUP(A99,'2011 Survey responses'!$A$3:$A$194,'2011 Survey responses'!$FX$3:$FX$194)","v":1},{"$f":"IF(AK99>0,H99,0)","v":2},{"$f":"IF(AK99>0,F99,0)","v":1},{"$f":"IF(AK99>0,D99,0)","v":3}]
["Liechtenstein","LIE",0.89,4,5,4,18,3,5,0,3.619E-2,221.53749999999999,0.83199999999999996,0,14.31,null,16,160,2,100,0,0,null,0,null,null,null,null,null,null,null,null,null,1.29,null,null,{"$f":"LOOKUP(A100,'2011 Survey responses'!$A$3:$A$194,'2011 Survey responses'!$FX$3:$FX$194)","v":0},0,0,0]
["Lithuania","LTU",0.78,4,5,4,16,3,5,17466.791491010899,3.2553239999999999,51.425941807000001,-0.96499999999999997,35.799999999999997,66.98,33,6268,65300,3,97,37.51,7498,3.874945436085532,4.2813104767603818,0,0,null,null,3.448,6.56,89.99,null,0.08,0.25,null,null,{"$f":"LOOKUP(A101,'2011 Survey responses'!$A$3:$A$194,'2011 Survey responses'!$FX$3:$FX$194)","v":2},3,4,4]
["Luxembourg","LUX",0.85,4,5,4,18,3,5,70980.871901150007,0.49177199999999999,188.95978344930001,1.161,0,85.19,18,259,2586,2,100,67.739999999999995,6445,3.8092229216894218,0.37827176958572395,100,100,null,null,0.3322,63.12,36.54,{"$f":"0.032/0.0602*100","v":53.156146179402},0,2,null,null,{"$f":"LOOKUP(A102,'2011 Survey responses'!$A$3:$A$194,'2011 Survey responses'!$FX$3:$FX$194)","v":0},0,0,0]
["Madagascar","MDG",0.44,1,3,1,1,1,1,969.52622781302296,20.146442,32.135745203500001,2.6859999999999999,47.2,30.19,71,58154,587041,3,0,0,17634,4.2463508364562559,27.076332078816534,41,11,67,{"$f":"100-AA103","v":33},97.48,1.627,0.89100000000000001,{"$f":"0.024/(14.95+0.024)*100","v":0.16027781487912382},4.6500000000000004,0.14000000000000001,null,null,{"$f":"LOOKUP(A103,'2011 Survey responses'!$A$3:$A$194,'2011 Survey responses'!$FX$3:$FX$194)","v":2},1,1,1]
["Malawi","MWI",0.39,1,3,1,1,1,1,773.44781432668105,15.691784,115.0380135715,2.7810000000000001,39,19.77,81,9408,118484,2,94,6.5970000000000004,1164,3.0659529803138699,30.949170987032186,80,56,2,{"$f":"100-AA104","v":98},83.55,12.34,4.1159999999999997,null,2.4300000000000002,-0.91,null,null,{"$f":"LOOKUP(A104,'2011 Survey responses'!$A$3:$A$194,'2011 Survey responses'!$FX$3:$FX$194)","v":2},1,1,1]
["Malaysia","MYS",0.74,3,2,3,13,2,4,13139.340478409,27.913989999999998,83.8224502196,1.7050000000000001,37.9,72.17,30,32855,329847,3,3,0,21470,4.3318320444362488,9.4032034257227011,100,96,70,{"$f":"100-AA105","v":30},45.16,24.62,30.22,null,0.89,0.38,null,null,{"$f":"LOOKUP(A105,'2011 Survey responses'!$A$3:$A$194,'2011 Survey responses'!$FX$3:$FX$194)","v":1},2,3,3]
["Maldives","MDV",0.6,2,2,3,12,2,null,5087.2811905611097,0.31391999999999998,1031.9266666666999,1.42,37.4,40.1,62,30,298,1,0,0,98.36,1.9928185200666795,7.2041197717934251,91,98,null,null,0,94.92,5.085,null,0,0.04,null,null,{"$f":"LOOKUP(A106,'2011 Survey responses'!$A$3:$A$194,'2011 Survey responses'!$FX$3:$FX$194)","v":0},0,0,0]
["Mali","MLI",0.31,1,3,1,5,1,1,1042.2104950840201,13.323104000000001,10.2451878419,2.3719999999999999,39,35.86,68,122019,1240192,2,57,40,7870,3.8959747323590648,36.67739088189137,56,36,22.4,{"$f":"100-AA107","v":77.599999999999994},90.13,9.0129999999999999,0.85550000000000004,null,0.2,-0.32,null,null,{"$f":"LOOKUP(A107,'2011 Survey responses'!$A$3:$A$194,'2011 Survey responses'!$FX$3:$FX$194)","v":0},0,0,0]
["Malta","MLT",0.82,4,5,4,17,3,null,0,0.409999,1303.8006329114,0.36599999999999999,0,94.67,6,32,316,3,0,0,124.1,2.09377178149873,2.3266660217285176,100,100,0,{"$f":"100-AA108","v":100},35.25,63.82,0.92759999999999998,null,null,0.8,null,null,{"$f":"LOOKUP(A108,'2011 Survey responses'!$A$3:$A$194,'2011 Survey responses'!$FX$3:$FX$194)","v":0},0,0,0]
["Marshall Islands","MHL",null,3,2,5,21,2,3,0,6.3397999999999996E-2,294.1215469613,2.226,0,71.760000000000005,32,18,181,1,0,0,0,null,0,94,73,66,{"$f":"100-AA109","v":34},null,null,null,null,0,-0.02,null,null,{"$f":"LOOKUP(A109,'2011 Survey responses'!$A$3:$A$194,'2011 Survey responses'!$FX$3:$FX$194)","v":1},2,5,3]
["Mauritania","MRT",0.43,1,3,1,5,1,1,0,3.365675,3.0813636009000001,2.399,39,41.43,59,103070,1030700,3,22,96.49,3546,3.5497387312648989,19.28667488911049,49,26,null,null,93.69,4.7409999999999997,1.58,null,52.63,0.23,null,null,{"$f":"LOOKUP(A110,'2011 Survey responses'!$A$3:$A$194,'2011 Survey responses'!$FX$3:$FX$194)","v":0},0,0,0]
["Mauritius","MUS",0.7,3,3,1,1,2,4,11164.995995775,1.2965690000000001,644.33411214950002,0.69499999999999995,0,41.84,58,203,2040,1,0,0,2149,3.3322364154914434,5.0360096387860001,99,91,42,{"$f":"100-AA111","v":58},67.72,29.52,2.7589999999999999,{"$f":"0.148/0.725*100","v":20.413793103448274},0.31,0.53,null,null,{"$f":"LOOKUP(A111,'2011 Survey responses'!$A$3:$A$194,'2011 Survey responses'!$FX$3:$FX$194)","v":2},2,1,3]
["Mexico","MEX",0.75,3,1,2,7,2,4,13406.742625246599,110.64515400000001,54.3086314986,0.98499999999999999,51.6,77.83,23,194395,1964375,3,21,10.55,4212,3.624488362513449,3.7997657463111323,94,85,null,null,76.69,14.04,9.2729999999999997,{"$f":"28.3/78.93*100","v":35.85455466869378},7.26,-0.19,null,null,{"$f":"LOOKUP(A112,'2011 Survey responses'!$A$3:$A$194,'2011 Survey responses'!$FX$3:$FX$194)","v":2},2,2,3]
["Micronesia (Federated States of)","FSM",0.61,2,2,5,21,2,3,2616.09098057969,0.11110100000000001,153.8831908832,0.30599999999999999,0,22.66,78,70,702,1,0,0,0,null,0,0,0,null,null,null,null,null,null,2.33,-0.44,null,null,{"$f":"LOOKUP(A113,'2011 Survey responses'!$A$3:$A$194,'2011 Survey responses'!$FX$3:$FX$194)","v":0},0,0,0]
["Monaco","MCO",null,4,5,4,18,3,5,0,3.2904000000000003E-2,null,0.27600000000000002,0,100,0,2,2,3,0,0,0,null,0,0,0,null,null,null,null,null,null,null,null,null,null,{"$f":"LOOKUP(A114,'2011 Survey responses'!$A$3:$A$194,'2011 Survey responses'!$FX$3:$FX$194)","v":1},3,4,4]
["Mongolia","MNG",0.62,2,2,3,11,2,3,3296.52255398849,2.701117,1.7002410332,1.153,36.6,62.03,43,155356,1564116,2,40,0,13177,4.1198165459372156,22.811406208898866,76,50,null,null,45.98,23.15,30.87,null,2,-0.14000000000000001,null,null,{"$f":"LOOKUP(A115,'2011 Survey responses'!$A$3:$A$194,'2011 Survey responses'!$FX$3:$FX$194)","v":1},2,3,2]
["Montenegro","MNE",0.77,3,4,4,17,3,4,10683.483202260501,0.62551599999999996,45.525919490299998,2.9000000000000001E-2,36.9,61.46,40,1345,13812,3,82.848247900376478,0,0,null,9.8041833711188975,98,92,null,null,null,null,null,null,null,null,null,null,{"$f":"LOOKUP(A116,'2011 Survey responses'!$A$3:$A$194,'2011 Survey responses'!$FX$3:$FX$194)","v":2},3,4,3]
["Morocco","MAR",0.56999999999999995,2,3,1,3,2,3,4056.3148242595998,32.381283000000003,69.817489642799998,1.2,40.9,58.24,44,44630,446550,3,20,0,917.5,2.9626060729241268,15.262346571992657,81,69,15,{"$f":"100-AA117","v":85},87.38,9.7620000000000005,2.8570000000000002,{"$f":"3.166/12.59*100","v":25.146942017474181},1.48,-0.04,null,null,{"$f":"LOOKUP(A117,'2011 Survey responses'!$A$3:$A$194,'2011 Survey responses'!$FX$3:$FX$194)","v":2},2,1,2]
["Mozambique","MOZ",0.28000000000000003,1,3,1,1,1,1,790.60846590971096,23.405670000000001,26.015864718900001,2.327,47.1,38.43,63,78638,799380,3,54,53.8,9699,3.9867269593312185,28.891844478844479,47,17,2,{"$f":"100-AA118","v":98},73.900000000000006,22.83,3.2650000000000001,null,327.51,-1.01,null,null,{"$f":"LOOKUP(A118,'2011 Survey responses'!$A$3:$A$194,'2011 Survey responses'!$FX$3:$FX$194)","v":1},1,1,1]
["Myanmar","MMR",0.45,1,2,3,13,1,1,0,50.495671999999999,86.282734584899998,0.87,0,33.65,67,65352,676578,3,79,14.13,23566,4.3722858733452767,0,71,81,null,null,88.99,10,1,{"$f":"2.991/33.23*100","v":9.0009027986758952},0.25,-1.37,null,null,{"$f":"LOOKUP(A119,'2011 Survey responses'!$A$3:$A$194,'2011 Survey responses'!$FX$3:$FX$194)","v":2},1,3,1]
["Namibia","NAM",0.61,2,3,1,4,2,3,5862.5934663508997,2.212037,2.5055273284999999,1.925,74.3,37.979999999999997,63,82329,824292,3,68,65.239999999999995,8319,3.9200711242975239,9.9677787176584154,92,33,43.9,{"$f":"100-AA120","v":56.1},71,24.33,4.6669999999999998,{"$f":"0.132/0.2997*100","v":44.044044044044043},0,0.21,null,null,{"$f":"LOOKUP(A120,'2011 Survey responses'!$A$3:$A$194,'2011 Survey responses'!$FX$3:$FX$194)","v":2},2,1,2]
["Nauru","NRU",null,null,2,5,21,2,4,0,1.0253999999999999E-2,null,0.28100000000000003,0,100,0,2,21,1,0,0,0,null,34.407632539632353,0,0,null,null,null,null,null,null,null,null,null,null,{"$f":"LOOKUP(A121,'2011 Survey responses'!$A$3:$A$194,'2011 Survey responses'!$FX$3:$FX$194)","v":0},0,0,0]
["Nepal","NPL",0.43,1,2,3,12,1,1,1028.08614713053,29.852682000000001,183.2205311827,1.845,47.3,18.62,83,14335,147181,2,100,5.7089999999999996,7296,3.8630848253203598,34.407632539632353,88,31,null,null,97.61,2.0089999999999999,0.40160000000000001,null,13.58,-0.3,null,null,{"$f":"LOOKUP(A122,'2011 Survey responses'!$A$3:$A$194,'2011 Survey responses'!$FX$3:$FX$194)","v":0},0,0,0]
["Netherlands","NLD",0.89,4,5,4,18,3,5,37589.650283787298,16.653345999999999,440.25946664269998,0.40899999999999997,30.9,82.86,18,3376,41543,3,34,87.91,5506,3.7408362070573116,1.9848090755835177,100,100,null,null,0.66920000000000002,11.8,87.49,{"$f":"0.967/10.61*100","v":9.1140433553251654},0.01,2.15,null,null,{"$f":"LOOKUP(A123,'2011 Survey responses'!$A$3:$A$194,'2011 Survey responses'!$FX$3:$FX$194)","v":2},3,4,4]
["New Zealand","NZL",0.91,4,5,5,19,3,5,24642.1491713219,4.3034569999999999,15.7834412331,0.91700000000000004,36.200000000000003,86.2,13,26771,267710,3,0,0,77305,4.8882075845028501,5.5170250313882425,100,0,null,null,74.33,21.46,4.2080000000000002,null,0.24,2.2799999999999998,null,null,{"$f":"LOOKUP(A124,'2011 Survey responses'!$A$3:$A$194,'2011 Survey responses'!$FX$3:$FX$194)","v":2},3,5,4]
["Nicaragua","NIC",0.56999999999999995,2,1,2,7,2,3,2479.1675421134501,5.8222649999999998,43.481901927499997,1.302,52.3,57.32,43,11999,130370,3,39,3.5339999999999998,34692,4.5402293377182827,19.780215948182569,85,52,null,null,83.85,14.05,2.0960000000000001,null,39.840000000000003,-0.44,null,null,{"$f":"LOOKUP(A125,'2011 Survey responses'!$A$3:$A$194,'2011 Survey responses'!$FX$3:$FX$194)","v":1},2,2,2]
["Niger","NER",0.26,1,3,1,5,1,1,632.22403099330802,15.891482,11.2839905288,3.86,43.9,17.11,84,126670,1267000,2,100,89.6,2288,3.3594560201209864,0,48,9,null,null,87.99,10.8,1.2010000000000001,null,0.56000000000000005,-1.1000000000000001,null,null,{"$f":"LOOKUP(A126,'2011 Survey responses'!$A$3:$A$194,'2011 Survey responses'!$FX$3:$FX$194)","v":0},0,0,0]
["Nigeria","NGA",0.42,1,3,1,5,2,2,1924.3016076891199,158.258917,null,2.327,42.9,49.8,52,91077,923768,3,87,22.78,1893,3.2771506139637969,32.489082138474153,58,32,14.2,{"$f":"100-AA127","v":85.8},53.44,31.45,15.07,null,0.17,-1.35,null,null,{"$f":"LOOKUP(A127,'2011 Survey responses'!$A$3:$A$194,'2011 Survey responses'!$FX$3:$FX$194)","v":2},2,1,1]
["Norway","NOR",0.94,4,5,4,16,3,5,49711.353508525499,4.855315,14.726610806,0.92700000000000005,25.8,79.41,23,30428,323802,3,6,0,80134,4.9038168216948614,1.3612453206337523,100,100,null,null,28.75,28.34,42.91,null,0.01,2,null,null,{"$f":"LOOKUP(A128,'2011 Survey responses'!$A$3:$A$194,'2011 Survey responses'!$FX$3:$FX$194)","v":1},3,4,4]
["Oman","OMN",null,3,2,3,14,2,4,0,2.9051140000000002,9.2647108238999998,2.0830000000000002,0,73.040000000000006,28,30950,309500,3,0,0,502.7,2.7013088852280753,0,88,0,100,{"$f":"100-AA129","v":0},88.42,10.14,1.4379999999999999,100,1.04,1.03,null,null,{"$f":"LOOKUP(A129,'2011 Survey responses'!$A$3:$A$194,'2011 Survey responses'!$FX$3:$FX$194)","v":0},0,0,0]
["Pakistan","PAK",0.49,1,2,3,12,2,2,2444.05539514882,184.7533,203.95807033080001,2.1629999999999998,31.2,35.9,64,77088,796095,3,74,76.17,1304,3.1152775913959014,20.833713879246893,90,45,null,null,93.95,5.2590000000000003,0.76290000000000002,{"$f":"61.6/183.5*100","v":33.56948228882834},2.61,-0.73,null,null,{"$f":"LOOKUP(A130,'2011 Survey responses'!$A$3:$A$194,'2011 Survey responses'!$FX$3:$FX$194)","v":2},2,3,1]
["Palau","PLW",null,3,2,5,21,2,4,0,2.0531000000000001E-2,46.596949891100003,0.39900000000000002,0,83.39,30,46,459,1,0,0,0,null,3.4891792900919758,0,0,null,null,null,null,null,null,null,null,null,null,{"$f":"LOOKUP(A131,'2011 Survey responses'!$A$3:$A$194,'2011 Survey responses'!$FX$3:$FX$194)","v":0},{"$f":"IF(AK131>0,H131,0)","v":0},{"$f":"IF(AK131>0,F131,0)","v":0},{"$f":"IF(AK131>0,D131,0)","v":0}]
["Panama","PAN",0.76,3,1,2,7,2,4,11557.8308298476,3.5084749999999998,45.020963443299998,1.6439999999999999,54.9,74.8,27,7434,75420,3,7,0.3785,43542,{"$f":"LOG(V132)","v":4.6389083734651857},6.4986770685810642,93,69,null,null,50.92,45.76,3.3210000000000002,null,1.7,-0.24,null,null,{"$f":"LOOKUP(A132,'2011 Survey responses'!$A$3:$A$194,'2011 Survey responses'!$FX$3:$FX$194)","v":2},2,2,3]
["Papua New Guinea","PNG",0.43,1,2,5,20,2,2,2041.1054960883,6.8883869999999998,null,2.371,50.9,12.53,88,45286,462840,1,29,0,121788,5.0856044985552682,35.997498479267669,40,45,null,null,0.36849999999999999,56.93,42.7,null,3.3,-0.9,null,null,{"$f":"LOOKUP(A133,'2011 Survey responses'!$A$3:$A$194,'2011 Survey responses'!$FX$3:$FX$194)","v":0},0,0,0]
["Paraguay","PRY",0.64,2,1,2,8,2,3,4352.6460522487796,6.459727,15.3168098301,1.7989999999999999,53.2,61.5,40,39730,406752,2,100,72.02,53863,4.7312905385883353,21.251631661989229,86,70,null,null,71.430000000000007,20.41,8.1630000000000003,null,1.17,-1.22,null,null,{"$f":"LOOKUP(A134,'2011 Survey responses'!$A$3:$A$194,'2011 Survey responses'!$FX$3:$FX$194)","v":0},0,0,0]
["Peru","PER",0.72,3,1,2,8,2,3,7863.1006595775798,29.496120000000001,22.414157620200001,1.159,50.5,76.92,29,128000,1285216,3,80,15.53,66338,4.8217623739959894,7.1391250203582546,82,68,null,null,84.9,6.8410000000000002,8.2629999999999999,null,5.22,-0.2,null,null,{"$f":"LOOKUP(A135,'2011 Survey responses'!$A$3:$A$194,'2011 Survey responses'!$FX$3:$FX$194)","v":2},2,2,3]
["Philippines","PHL",0.64,2,2,3,13,2,3,3244.1821445321598,93.616853000000006,301.524,1.8149999999999999,44,48.9,35,29817,300000,3,0,0,5302,3.7244397233970745,14.470462697970344,91,76,null,null,82.23,7.6449999999999996,10.119999999999999,{"$f":"3.206/81.56*100","v":3.9308484551250613},17.489999999999998,-0.52,null,null,{"$f":"LOOKUP(A136,'2011 Survey responses'!$A$3:$A$194,'2011 Survey responses'!$FX$3:$FX$194)","v":1},2,3,2]
["Poland","POL",0.8,4,4,4,15,3,5,16387.5579051604,38.038094000000001,121.8990357708,-8.4000000000000005E-2,34.9,60.96,39,30425,312685,3,91,12.99,1617,3.2087100199064009,4.1039518967831228,100,90,null,null,9.6910000000000007,30.66,59.64,null,0.08,0.39,null,null,{"$f":"LOOKUP(A137,'2011 Survey responses'!$A$3:$A$194,'2011 Survey responses'!$FX$3:$FX$194)","v":2},3,4,4]
["Portugal","PRT",0.8,4,5,4,17,3,5,21136.158413333302,10.732357,115.3481648387,0.34899999999999998,38.5,60.7,41,9150,92090,3,49,44.69,6434,3.808481056565951,2.5282441332206589,99,100,null,null,73,7.6210000000000004,19.38,null,0.73,1.33,null,null,{"$f":"LOOKUP(A138,'2011 Survey responses'!$A$3:$A$194,'2011 Survey responses'!$FX$3:$FX$194)","v":1},3,4,4]
["Qatar","QAT",0.8,4,2,3,14,2,null,0,1.5083219999999999,125.0201967892,10.653,41.1,95.83,4,1159,11586,3,0,3.448,3207,3.5060989599284405,0,100,100,100,{"$f":"100-AA139","v":0},59.01,39.19,1.802,100,null,0.92,null,null,{"$f":"LOOKUP(A139,'2011 Survey responses'!$A$3:$A$194,'2011 Survey responses'!$FX$3:$FX$194)","v":0},0,0,0]
["Republic of Korea","KOR",0.88,4,2,3,11,2,5,25498.361821793402,48.500717000000002,486.90642023689998,0.38900000000000001,31.6,82.96,19,9692,99720,3,26,6.9580000000000002,1447,3.1604685311190375,2.9320712339671737,98,100,null,null,62.03,25.99,11.97,null,2.86,0.33,null,null,{"$f":"LOOKUP(A140,'2011 Survey responses'!$A$3:$A$194,'2011 Survey responses'!$FX$3:$FX$194)","v":2},2,3,4]
["Republic of Moldova","MDA",0.62,2,4,4,15,3,5,2703.7138068177501,3.575574,105.4809430952,-1.002,37.4,46.95,58,3289,33851,2,100,91.42,3207,3.5060989599284405,13.932398703423663,90,79,null,null,39.69,8.5640000000000001,51.76,null,null,null,null,null,{"$f":"LOOKUP(A141,'2011 Survey responses'!$A$3:$A$194,'2011 Survey responses'!$FX$3:$FX$194)","v":2},3,4,2]
["Romania","ROU",0.77,3,4,4,15,3,5,11761.4048575253,21.190154,90.2066017593,-0.41499999999999998,32.1,57.47,46,22989,238391,3,97,80.040000000000006,9920,3.9965116721541785,8.743509855950574,0,72,null,null,17.03,21.89,61.08,{"$f":"0.628/6.876*100","v":9.1332169866201287},0.49,-0.34,null,null,{"$f":"LOOKUP(A142,'2011 Survey responses'!$A$3:$A$194,'2011 Survey responses'!$FX$3:$FX$194)","v":2},3,4,3]
["Russian Federation","RUS",0.72,3,4,4,15,3,5,14916.9518521665,140.36656099999999,8.3023979306999998,-0.39500000000000002,43.7,73.17,27,1637774,17098242,3,47,4.3170000000000002,31883,4.5035591791653236,4.5987719454827678,96,87,null,null,19.940000000000001,20.239999999999998,59.82,null,0.9,-0.9,null,null,{"$f":"LOOKUP(A143,'2011 Survey responses'!$A$3:$A$194,'2011 Survey responses'!$FX$3:$FX$194)","v":2},3,4,3]
["Rwanda","RWA",0.39,1,3,1,1,1,1,944.57485830966095,10.277212,null,2.6720000000000002,46.7,18.850000000000001,82,2467,26338,2,100,0,977.3,2.9900278987702946,35.827888779641981,65,54,null,null,68,24,8,null,0.34,-0.57999999999999996,null,null,{"$f":"LOOKUP(A144,'2011 Survey responses'!$A$3:$A$194,'2011 Survey responses'!$FX$3:$FX$194)","v":2},1,1,1]
["Saint Kitts and Nevis","KNA",null,3,1,2,6,2,4,14937.0783404672,5.2367999999999998E-2,null,1.2729999999999999,0,32.409999999999997,65,26,261,1,0,0,470.6,2.6726519228400023,2.7892820446715541,100,96,null,null,null,null,null,null,6.91,0.4,null,null,{"$f":"LOOKUP(A145,'2011 Survey responses'!$A$3:$A$194,'2011 Survey responses'!$FX$3:$FX$194)","v":1},2,2,3]
["Saint Lucia","LCA",null,3,1,2,6,2,4,9156.9124238041604,0.17394200000000001,null,1.032,42.6,27.97,72,61,616,1,0,0,0,null,4.2637348787441756,98,0,null,null,null,null,null,0,21.74,0.4,null,null,{"$f":"LOOKUP(A146,'2011 Survey responses'!$A$3:$A$194,'2011 Survey responses'!$FX$3:$FX$194)","v":1},2,2,3]
["Saint Vincent and the Grenadines","VCT",null,3,1,2,6,2,4,8461.7231437418995,0.10928400000000001,null,0.104,0,49.33,53,39,389,1,0,0,0,null,7.7478280069727798,0,0,null,null,null,null,null,null,1.37,0.4,null,null,{"$f":"LOOKUP(A147,'2011 Survey responses'!$A$3:$A$194,'2011 Survey responses'!$FX$3:$FX$194)","v":0},0,0,0]
["Samoa","WSM",null,2,2,5,22,1,1,4145.1119102659904,0.17894299999999999,66.2825150611,-3.0000000000000001E-3,0,20.23,77,283,2831,1,0,0,0,null,12.198763610505413,0,100,null,null,null,null,null,null,6.28,-0.06,null,null,{"$f":"LOOKUP(A148,'2011 Survey responses'!$A$3:$A$194,'2011 Survey responses'!$FX$3:$FX$194)","v":2},1,5,2]
["San Marino","SMR",null,null,5,4,17,3,5,0,3.1537000000000003E-2,530.91803278689997,0.83799999999999997,0,94.09,6,6,61,2,0,0,0,null,0,0,0,null,null,null,null,null,null,null,null,null,null,{"$f":"LOOKUP(A149,'2011 Survey responses'!$A$3:$A$194,'2011 Survey responses'!$FX$3:$FX$194)","v":0},0,0,0]
["Sao Tome and Principe","STP",0.49,1,3,1,2,1,1,1606.8832918984999,0.16539699999999999,163.7417012448,1.6080000000000001,50.6,62.23,39,96,964,1,0,0,13625,4.13433651094868,16.806073688732607,89,26,null,null,null,null,null,null,0,-0.25,null,null,{"$f":"LOOKUP(A150,'2011 Survey responses'!$A$3:$A$194,'2011 Survey responses'!$FX$3:$FX$194)","v":2},1,1,1]
["Saudi Arabia","SAU",0.75,3,2,3,14,2,null,22109.6395678685,26.245968999999999,11.5398034135,2.1150000000000002,0,82.07,18,214969,2149690,3,1.0978327107629473E-2,0,95.23,1.9787737843301225,2.8422189728106009,0,0,100,{"$f":"100-AA151","v":0},88,8.9990000000000006,3,{"$f":"21.54/22.64*100","v":95.141342756183747},0.13,0.56999999999999995,null,null,{"$f":"LOOKUP(A151,'2011 Survey responses'!$A$3:$A$194,'2011 Survey responses'!$FX$3:$FX$194)","v":2},2,3,3]
["Senegal","SEN",0.41,1,3,1,5,1,1,1637.83043786748,12.860716999999999,57.661715517300003,2.621,39.200000000000003,42.38,58,19253,196722,3,46,33.51,3177,3.5020172148271476,15.381900624482981,69,51,null,null,92.98,4.4119999999999999,2.6110000000000002,null,1.22,-0.17,null,null,{"$f":"LOOKUP(A152,'2011 Survey responses'!$A$3:$A$194,'2011 Survey responses'!$FX$3:$FX$194)","v":0},0,0,0]
["Serbia","SRB",0.74,3,4,4,17,3,4,10741.102659410501,9.8558570000000003,83.184006518700002,0,28.2,56.06,48,8836,77474,2,113.98791852750601,0,0,null,14.268624339291815,99,92,null,null,1.8680000000000001,16.57,81.56,{"$f":"0.528/4.121*100","v":12.812424168891045},null,null,null,null,{"$f":"LOOKUP(A153,'2011 Survey responses'!$A$3:$A$194,'2011 Survey responses'!$FX$3:$FX$194)","v":2},3,4,3]
["Seychelles","SEY",null,3,3,1,1,2,4,19899.902916545299,8.4599999999999995E-2,192.52236714220001,0.47,0,55.32,44,46,455,1,0,0,0,null,15.381900624482981,0,0,null,null,6.569,65.69,27.74,0,3.08,0.52,null,null,{"$f":"LOOKUP(A154,'2011 Survey responses'!$A$3:$A$194,'2011 Survey responses'!$FX$3:$FX$194)","v":0},0,0,0]
["Sierra Leone","SLE",0.32,1,3,1,5,1,1,708.26841554901705,5.8356640000000004,null,2.6680000000000001,42.5,38.4,62,7162,71740,3,38,0,28777,4.4590455167946068,50.815506187967372,49,13,38,{"$f":"100-AA155","v":62},70.97,19.36,9.6720000000000006,null,1.02,-0.82,null,null,{"$f":"LOOKUP(A155,'2011 Survey responses'!$A$3:$A$194,'2011 Survey responses'!$FX$3:$FX$194)","v":2},1,1,1]
["Singapore","SGP",0.85,4,2,3,13,2,null,45553.089186560297,4.8366910000000001,5130.5633802817001,2.5070000000000001,42.5,100,0,69.7,697,1,0,0,130,2.1139433523068369,0,0,0,null,null,null,null,null,null,null,2.2999999999999998,null,null,{"$f":"LOOKUP(A156,'2011 Survey responses'!$A$3:$A$194,'2011 Survey responses'!$FX$3:$FX$194)","v":1},2,3,4]
["Slovakia","SVK",0.82,4,4,4,15,3,5,20546.234027061801,5.4116400000000002,110.2631074495,9.6000000000000002E-2,25.8,54.97,44,4810,49035,2,100,74.849999999999994,9278,3.9674543681827408,3.2935004130523424,100,100,null,null,3.198,46.51,50.29,{"$f":"0.4484/1.171*100","v":38.292058070025618},0.49,0.28000000000000003,null,null,{"$f":"LOOKUP(A157,'2011 Survey responses'!$A$3:$A$194,'2011 Survey responses'!$FX$3:$FX$194)","v":2},3,4,4]
["Slovenia","SVN",0.83,4,4,4,17,3,5,26940.790162973401,2.024912,99.769595027899996,0.23599999999999999,31.2,49.51,52,2014,20273,3,90,41.42,15816,4.199096656305616,2.4882216317773649,99,100,null,null,0.21229999999999999,17.52,82.27,{"$f":"0.19/0.942*100","v":20.169851380042463},0,0.89,null,null,{"$f":"LOOKUP(A158,'2011 Survey responses'!$A$3:$A$194,'2011 Survey responses'!$FX$3:$FX$194)","v":0},0,0,0]
["Solomon Islands","SLB",0.49,1,2,5,20,1,1,2412.5558899477501,0.53569900000000004,17.545404208200001,2.4569999999999999,0,18.55,82,2799,28896,1,0,0,87476,4.9418889159105834,38.92272002255153,0,0,null,null,null,null,null,null,15.42,-0.86,null,null,{"$f":"LOOKUP(A159,'2011 Survey responses'!$A$3:$A$194,'2011 Survey responses'!$FX$3:$FX$194)","v":1},1,5,1]
["Somalia","SOM",null,null,3,1,1,1,1,0,9.3586019999999994,null,2.2709999999999999,0,37.450000000000003,63,62734,637657,3,35,59.18,1647,3.2166935991697545,0,30,23,null,null,99.48,0.45479999999999998,6.0600000000000001E-2,{"$f":"0.012/3.298*100","v":0.3638568829593693},19.88,-1.19,null,null,{"$f":"LOOKUP(A160,'2011 Survey responses'!$A$3:$A$194,'2011 Survey responses'!$FX$3:$FX$194)","v":0},0,0,0]
["South Africa","ZAF",0.6,2,3,1,4,2,4,9343.3980408267998,50.492407999999998,39.873484587299998,0.98199999999999998,57.8,61.7,39,121447,1219090,3,65,10.4,1007,3.003029470553618,3.0271198968045043,91,77,9,{"$f":"100-AA161","v":91},62.69,31.23,6.048,null,1.67,0.36,null,null,{"$f":"LOOKUP(A161,'2011 Survey responses'!$A$3:$A$194,'2011 Survey responses'!$FX$3:$FX$194)","v":2},2,1,2]
["Spain","ESP",0.86,4,5,4,17,3,5,28442.0733928343,45.316586000000001,90.106928568000001,1.0209999999999999,34.700000000000003,77.400000000000006,23,49898,505370,3,58,0.26910000000000001,2506,3.398981066658131,2.8368766439303763,100,100,null,null,60.51,17.760000000000002,21.74,{"$f":"5.7/32.36*100","v":17.614338689740421},0.34,1.46,null,null,{"$f":"LOOKUP(A162,'2011 Survey responses'!$A$3:$A$194,'2011 Survey responses'!$FX$3:$FX$194)","v":2},3,4,4]
["Sri Lanka","LKA",0.66,2,2,3,12,2,3,4215.2460732630998,20.409946000000001,308.1237616217,0.88100000000000001,41.1,14.31,85,6463,65610,3,0,0,2632,3.4202858849419178,12.162907941115723,90,91,null,null,87.34,6.2160000000000002,6.4169999999999998,null,1.66,-0.14000000000000001,null,null,{"$f":"LOOKUP(A163,'2011 Survey responses'!$A$3:$A$194,'2011 Survey responses'!$FX$3:$FX$194)","v":2},{"$f":"IF(AK163>0,H163,0)","v":2},{"$f":"IF(AK163>0,F163,0)","v":3},{"$f":"IF(AK163>0,D163,0)","v":2}]
["Sudan","SDN",0.38,1,3,1,3,1,1,1990.2914609259799,43.192438000000003,15.24175986,2.1970000000000001,0,40.1,57,237600,2505813,3,83,76.92,1560,3.1931245983544616,29.222216568662475,57,34,20,{"$f":"100-AA164","v":80},97.12,2.282,0.59940000000000004,null,275.43,-1.0900000000000001,null,null,{"$f":"LOOKUP(A164,'2011 Survey responses'!$A$3:$A$194,'2011 Survey responses'!$FX$3:$FX$194)","v":2},1,1,1]
["Suriname","SUR",0.65,2,1,2,8,2,4,6937.5540772399299,0.52434499999999995,3.1562202416999998,0.96,52.8,69.38,25,15600,163820,1,51,27.87,236893,5.374552227855359,5.0022817652375684,93,84,null,null,92.54,4.4779999999999998,2.9849999999999999,null,null,0.19,null,null,{"$f":"LOOKUP(A165,'2011 Survey responses'!$A$3:$A$194,'2011 Survey responses'!$FX$3:$FX$194)","v":0},0,0,0]
["Swaziland","SWZ",0.5,2,3,1,4,2,3,4555.1717713523303,1.2019040000000001,null,1.333,50.7,21.37,75,1720,17364,2,98,41.46,3861,3.5866998016240492,7.6198168162903004,69,55,null,null,96.55,2.3029999999999999,1.1519999999999999,null,34.770000000000003,-0.26,null,null,{"$f":"LOOKUP(A166,'2011 Survey responses'!$A$3:$A$194,'2011 Survey responses'!$FX$3:$FX$194)","v":1},2,1,2]
["Sweden","SWE",0.89,4,5,4,16,3,5,33753.1351257856,9.2930259999999993,20.474659945100001,0.49399999999999999,25,84.68,15,41033,450295,3,16,1.724,18903,4.2765307343347896,1.5825186919050347,100,100,null,null,4.09,37.229999999999997,58.68,{"$f":"0.346/2.616*100","v":13.226299694189599},0,2.25,null,null,{"$f":"LOOKUP(A167,'2011 Survey responses'!$A$3:$A$194,'2011 Survey responses'!$FX$3:$FX$194)","v":2},3,4,4]
["Switzerland","CHE",0.87,4,5,4,18,3,5,37779.519734773297,7.5945609999999997,185.2769338857,0.40899999999999997,33.700000000000003,73.62,27,4000,41277,2,100,24.49,7095,3.8509523997934929,1.2245999317612175,100,100,null,null,1.913,40.590000000000003,57.5,null,0.11,2.17,null,null,{"$f":"LOOKUP(A168,'2011 Survey responses'!$A$3:$A$194,'2011 Survey responses'!$FX$3:$FX$194)","v":2},3,4,4]
["Syrian Arab Republic","SYR",0.59,2,2,3,14,2,3,4103.7143700878696,22.505091,106.080570256,3.2589999999999999,0,55.74,46,18363,185180,3,73,72.36,791.4,2.8983960459300091,19.423034529887193,89,96,45,{"$f":"100-AA169","v":55},87.53,8.8010000000000002,3.6720000000000002,null,0,-0.28999999999999998,null,null,{"$f":"LOOKUP(A169,'2011 Survey responses'!$A$3:$A$194,'2011 Survey responses'!$FX$3:$FX$194)","v":0},0,0,0]
["Tajikistan","TJK",0.57999999999999996,2,4,3,10,2,2,1761.3154949761899,7.0748449999999998,50.976589797300001,1.5860000000000001,33.6,26.32,74,13996,143100,2,10,16.72,2338,3.3688445068258215,23.666010299015682,70,94,84.5,{"$f":"100-AA170","v":15.5},91.64,3.6789999999999998,4.6820000000000004,null,14.64,-1.07,null,null,{"$f":"LOOKUP(A170,'2011 Survey responses'!$A$3:$A$194,'2011 Survey responses'!$FX$3:$FX$194)","v":2},2,3,2]
["Thailand","THA",0.65,2,2,3,13,2,3,7119.53951074007,68.139238000000006,129.56034455880001,0.65400000000000003,42.5,33.96,67,51089,513120,3,40,48.81,6509,3.8135142715418833,11.002094147616893,98,96,null,null,90.37,4.7789999999999999,4.8460000000000001,{"$f":"9.827/57.31*100","v":17.1470947478625},1.91,-0.15,null,null,{"$f":"LOOKUP(A171,'2011 Survey responses'!$A$3:$A$194,'2011 Survey responses'!$FX$3:$FX$194)","v":1},2,3,2]
["The former Yugoslav Republic of Macedonia \n","MKD",0.7,3,4,4,17,3,3,8837.3248842574903,2.0433599999999998,79.605569167300004,7.9000000000000001E-2,42.8,59.31,33,2543,25713,2,99,15.62,3136,3.4963760540124009,11.703359405507211,100,89,null,null,12.26,21.11,66.63,{"$f":"0.068/1.028*100","v":6.6147859922178993},0,-0.73,null,null,{"$f":"LOOKUP(A172,'2011 Survey responses'!$A$3:$A$194,'2011 Survey responses'!$FX$3:$FX$194)","v":2},3,4,3]
["Timor-Leste","TLS",0.5,1,2,3,13,1,1,740.29684981962998,1.171163,null,3.3290000000000002,31.9,28.12,73,1487,14874,1,0,0,0,null,0,69,50,null,null,91.38,8.4469999999999992,0.1706,null,null,null,null,null,{"$f":"LOOKUP(A173,'2011 Survey responses'!$A$3:$A$194,'2011 Survey responses'!$FX$3:$FX$194)","v":1},1,3,1]
["Togo","TGO",0.43,1,3,1,5,1,1,766.69028766284896,6.78003,98.547151536499996,2.4710000000000001,34.4,43.44,58,5439,56785,3,85,21.77,2276,3.3571722577230334,43.650332536396832,60,12,null,null,44.97,52.66,2.367,null,0.04,-0.68,null,null,{"$f":"LOOKUP(A174,'2011 Survey responses'!$A$3:$A$194,'2011 Survey responses'!$FX$3:$FX$194)","v":2},1,1,1]
["Tonga","TON",0.68,3,2,5,22,2,null,3534.7726550020998,0.10426000000000001,null,0.46200000000000002,0,23.43,75,72,747,1,0,0,0,null,20.301816492759684,100,97,null,null,null,null,null,null,3.97,-0.44,null,null,{"$f":"LOOKUP(A175,'2011 Survey responses'!$A$3:$A$194,'2011 Survey responses'!$FX$3:$FX$194)","v":2},2,5,3]
["Trinidad and Tobago","TTO",0.74,3,1,2,6,2,4,22874.529724915999,1.3437250000000001,255.0851851852,0.38200000000000001,40.299999999999997,13.88,87,513,5128,1,0,0,2881,3.4595432582804131,0.44104390325724818,94,92,null,null,8.6359999999999992,66.150000000000006,25.22,"?",0.19,-0.04,null,null,{"$f":"LOOKUP(A176,'2011 Survey responses'!$A$3:$A$194,'2011 Survey responses'!$FX$3:$FX$194)","v":0},0,0,0]
["Tunisia","TUN",0.68,3,3,1,3,2,3,7390.82307368287,10.373957000000001,63.131226697599999,0.97899999999999998,40.799999999999997,67.28,33,15536,163610,3,10,8.7050000000000001,451.9,2.6550423413312019,9.9377643203223993,94,85,3.5,{"$f":"100-AA177","v":96.5},85.61,10.96,3.43,{"$f":"1.9/2.837*100","v":66.972153683468449},1.1100000000000001,0.35,null,null,{"$f":"LOOKUP(A177,'2011 Survey responses'!$A$3:$A$194,'2011 Survey responses'!$FX$3:$FX$194)","v":2},2,1,3]
["Turkey","TUR",0.68,3,5,3,14,2,4,12263.517651148601,75.705146999999997,90.712668557200004,1.236,41.2,69.650000000000006,31,76963,783562,3,34,1.0069999999999999,2890,3.4608978427565478,9.3898851920303343,99,90,null,null,73.819999999999993,15.46,10.72,{"$f":"10.5/42*100","v":25},16.46,-0.38,null,null,{"$f":"LOOKUP(A178,'2011 Survey responses'!$A$3:$A$194,'2011 Survey responses'!$FX$3:$FX$194)","v":0},0,0,0]
["Turkmenistan","TKM",0.67,2,4,3,10,2,3,6137.9739835725704,5.1765020000000002,null,1.331,40.799999999999997,49.5,51,46993,488100,2,11,97.09,4901,3.6902847025126295,15.975475701169703,0,98,100,{"$f":"100-AA179","v":0},96.51,2.3969999999999998,1.0840000000000001,null,0,-1.21,null,null,{"$f":"LOOKUP(A179,'2011 Survey responses'!$A$3:$A$194,'2011 Survey responses'!$FX$3:$FX$194)","v":0},0,0,0]
["Tuvalu","TUV",null,null,2,5,22,1,1,0,9.9699999999999997E-3,null,0.42199999999999999,0,50.39,51,3,26,1,0,0,0,null,0,101,81,null,null,null,null,null,null,0,null,null,null,{"$f":"LOOKUP(A180,'2011 Survey responses'!$A$3:$A$194,'2011 Survey responses'!$FX$3:$FX$194)","v":0},0,0,0]
["Uganda","UGA",0.42,1,3,1,1,1,1,1076.5365971143301,33.796461000000001,122.5112813082,3.27,42.6,13.3,87,19710,241038,2,100,40.909999999999997,2085,3.3191060593097763,24.668712839490205,67,48,null,null,36.409999999999997,45.93,17.66,null,0.66,-0.92,null,null,{"$f":"LOOKUP(A181,'2011 Survey responses'!$A$3:$A$194,'2011 Survey responses'!$FX$3:$FX$194)","v":2},1,1,1]
["Ukraine","UKR",0.71,3,4,4,15,3,3,6720.8662303928804,45.433414999999997,76.839542667800004,-0.65100000000000002,27.6,68.790000000000006,32,57933,603550,3,76,61.95,3035,3.4821586954112762,8.6173367511444816,98,95,null,null,51.17,12.48,36.36,null,7.0000000000000007E-2,-0.96,null,null,{"$f":"LOOKUP(A182,'2011 Survey responses'!$A$3:$A$194,'2011 Survey responses'!$FX$3:$FX$194)","v":0},0,0,0]
["United Arab Emirates","ARE",0.82,4,2,3,14,2,null,0,4.7073070000000001,56.997607655499998,2.8159999999999998,0,84.05,22,8360,83600,3,0,0,33.44,1.5242662687669788,2.0364865758886772,100,97,100,{"$f":"100-AA183","v":0},82.84,15.43,1.726,100,null,1.19,null,null,{"$f":"LOOKUP(A183,'2011 Survey responses'!$A$3:$A$194,'2011 Survey responses'!$FX$3:$FX$194)","v":2},2,3,4]
["United Kingdom of Great Britain and Northern Ireland","GBR",0.85,4,5,4,16,3,5,33732.821421356297,61.899272000000003,252.70893371759999,0.53700000000000003,36,79.64,10,24193,243610,3,4,1.361,2392,3.3787611753163733,0.70531350712960339,100,100,null,null,8.39,45.48,46.12,{"$f":"2.158/12.96*100","v":16.651234567901234},0.17,1.97,null,null,{"$f":"LOOKUP(A184,'2011 Survey responses'!$A$3:$A$194,'2011 Survey responses'!$FX$3:$FX$194)","v":1},3,4,4]
["United Republic of Tanzania","TAN",0.4,1,3,1,1,1,1,1167.34315532406,45.039572999999997,42.959008006700003,2.8759999999999999,34.6,26.38,75,88580,947300,3,43,12.75,451.9,2.6550423413312019,19.423034529887193,54,24,null,null,89.35,10.17,0.48230000000000001,null,0.75,-1,null,null,{"$f":"LOOKUP(A185,'2011 Survey responses'!$A$3:$A$194,'2011 Survey responses'!$FX$3:$FX$194)","v":2},1,1,1]
["United States of America","USA",0.9,4,5,2,9,3,5,43179.4232408588,317.64108700000003,31.577199135400001,0.96099999999999997,40.799999999999997,82.29,18,916192,9826675,3,62,8.1790000000000003,2266,3.3552599055273786,1.1561895705808052,99,100,null,null,40.22,13.68,46.11,{"$f":"108.3/477.8*100","v":22.666387609878612},0.97,1.77,null,null,{"$f":"LOOKUP(A186,'2011 Survey responses'!$A$3:$A$194,'2011 Survey responses'!$FX$3:$FX$194)","v":0},0,0,0]
["Uruguay","URY",0.77,3,1,2,8,2,4,11770.2501504786,3.3722219999999998,18.9203643277,0.28000000000000003,47.1,92.48,8,17502,176215,3,80,57.55,41505,4.618100418196633,10.339531920646111,100,100,null,null,86.61,11.2,2.1859999999999999,{"$f":"0.14/3.66*100","v":3.8251366120218582},0.03,0.79,null,null,{"$f":"LOOKUP(A187,'2011 Survey responses'!$A$3:$A$194,'2011 Survey responses'!$FX$3:$FX$194)","v":1},2,2,3]
["Uzbekistan","UZB",0.62,2,4,3,10,2,2,2455.01042327091,27.794295999999999,null,1.0900000000000001,36.700000000000003,36.25,63,42540,447400,2,53,77.37,1854,3.2681097298084785,23.785419383698169,87,100,61.5,{"$f":"100-AA188","v":38.5},91.21,6.133,2.657,null,0.22,-1.03,null,null,{"$f":"LOOKUP(A188,'2011 Survey responses'!$A$3:$A$194,'2011 Survey responses'!$FX$3:$FX$194)","v":2},2,3,2]
["Vanuatu","VUT",null,2,2,5,20,1,1,3677.1348410629798,0.245786,null,2.5430000000000001,0,25.56,75,1219,12189,1,0,0,0,null,22.729324204541406,83,53,null,null,null,null,null,null,33.299999999999997,-0.44,null,null,{"$f":"LOOKUP(A189,'2011 Survey responses'!$A$3:$A$194,'2011 Survey responses'!$FX$3:$FX$194)","v":0},0,0,0]
["Venezuela (Bolivarian Republic of)","VEN",0.7,3,1,2,8,2,4,11835.123542637501,29.043555000000001,30.628565319900002,1.663,43.4,93.35,7,88205,912050,3,76,41.42,43846,4.6419299795226943,4.0228682330012324,0,0,null,null,43.8,48.67,7.5359999999999996,null,70.540000000000006,-0.94,null,null,{"$f":"LOOKUP(A190,'2011 Survey responses'!$A$3:$A$194,'2011 Survey responses'!$FX$3:$FX$194)","v":0},0,0,0]
["Viet Nam","VNM",0.56999999999999995,2,2,3,13,2,2,2574.1440999730398,89.028740999999997,257.00268650010003,1.145,37.799999999999997,30.38,72,31007,331210,3,59,59.35,10151,4.0065088277752903,20.971934297477592,94,75,94.5,{"$f":"100-AA191","v":5.5},94.78,1.47,3.7469999999999999,{"$f":"1.402/82.03*100","v":1.709130805802755},8.36,-0.68,null,null,{"$f":"LOOKUP(A191,'2011 Survey responses'!$A$3:$A$194,'2011 Survey responses'!$FX$3:$FX$194)","v":2},2,3,2]
["Yemen","YEM",0.44,1,2,3,14,1,1,2218.3942875542398,24.255928000000001,42.044214800900001,2.86,37.700000000000003,31.8,69,52797,527968,3,0,0,91.64,1.96208508051736,0,62,52,20,{"$f":"100-AA192","v":80},90.74,7.4329999999999998,1.823,{"$f":"2.397/3.39*100","v":70.707964601769902},9.57,-0.69,null,null,{"$f":"LOOKUP(A192,'2011 Survey responses'!$A$3:$A$194,'2011 Survey responses'!$FX$3:$FX$194)","v":0},0,0,0]
["Zambia","ZMB",0.4,1,3,1,1,1,1,1253.14918545766,13.257269000000001,16.643092323800001,2.4340000000000002,50.7,35.700000000000003,65,74339,752618,2,100,23.76,8336,3.9209577059554492,21.604645711413639,60,49,5.4,{"$f":"100-AA193","v":94.6},75.86,16.670000000000002,7.4710000000000001,{"$f":"0.067/1.747*100","v":3.8351459645105899},0,-0.97,null,null,{"$f":"LOOKUP(A193,'2011 Survey responses'!$A$3:$A$194,'2011 Survey responses'!$FX$3:$FX$194)","v":2},1,1,1]
["Zimbabwe","ZWE",0.14000000000000001,1,3,1,1,2,2,0,12.644041,31.093492886899998,0.26900000000000002,50.1,38.25,63,38685,390757,2,100,38.700000000000003,2558,3.4079005401426352,20.279924630628749,82,44,null,null,78.91,14.01,7.0869999999999997,{"$f":"0.42/4.205*100","v":9.988109393579073},0.47,-1.17,null,null,{"$f":"LOOKUP(A194,'2011 Survey responses'!$A$3:$A$194,'2011 Survey responses'!$FX$3:$FX$194)","v":2},2,1,1]
[null,null,null,null,null,null,null,null,null,null,null,null,null,null,null,null,null,null,null,null,null,null,null,null,null,null,null,null,null,null,null,null,null,null,null,null,null,null,null,{"$f":"COUNTIF(AN6:AN194,1)","v":32}]
["Total no. Of values",null,{"$f":"COUNTIF(C3:C194,\">0\")","v":168},{"$f":"COUNTIF(D3:D194,\">0\")","v":187},192,192,192,192,180,166,192,152,172,146,192,188,192,192,192,143,116,171,{"$f":"LOG(V196)","v":2.2329961103921536},170,165,165,44,38,165,166,165,66,149,{"$f":"COUNT(AH3:AH194)","v":182}]
["Units",null,"Unitless","1=Low HD; 2=Medium HD; 3=High HD; 4= very high HD","1=Latin America & Caribbean; 2=Asia & Pacific; 3=Africa; 4=Eastern European States; 5=Western European and Others","1=Africa; 2= Americas; 3=Asia; 4=Europe; 5=Oceania ","1 to 22 denote sub-regions (see below table for full key). ","1=LDC;2=Developing; 3=Developed","1=LDC; 2=Other Low Income Countries; 3=Lower Middle Income; 4=Upper Middle Income; 5=developed","constant 2005 PPP $","millions","people/km2","%","Unitless","% of population",null,"thousand ha","km2","1=SIDS; 2=landlocked; 3=other","% of country within TB basin(s)","Proportional external / internal resources - %","m3/person/yr",{"$error":"#VALUE!"},"% of GDP"," ",null,null,null,null,null,null,null,null,null,null,null,"0=not responded; 1=online; 2=email/fax"]
["Year",null,2011,null,{"$f":"F198","v":2011},2011,null,null,null,2008,2010,2008,2010,2008,2010,2008,2009,2009,2008,2008,2008,2008,3.3027637084729817,2008,2008,2008,"various","various","varios","various","various","various",2004,2002]
["Source",null,null,"UNDP",null,"UN Data","UN Data","UN Data","OECD",null,null,"UNSD",null,null,null,"JMP - WHO & UNICEF",null,"CIA Factbook",null,"TFDD","Aquastat","Aquastat ",{"$error":"#VALUE!"},"WB Development Indicators ","JMP - WHO & UNICF","JMP - WHO & UNICEF","FAO / Aquastat","FAO / Aquastat","FAO / Aquastat","FAO / Aquastat","FAO / Aquastat","FAO / Aquastat","UNDP","World Bank"]
["Link","http://unstats.un.org/unsd/methods/m49/m49alpha.htm",null,"http://hdr.undp.org/en/statistics/ ",null,"http://unstats.un.org/unsd/methods/m49/m49regin.htm","http://unstats.un.org/unsd/methods/m49/m49regin.htm","http://unstats.un.org/unsd/methods/m49/m49regin.htm","http://www.oecd.org/document/45/0,3746,en_2649_34447_2093101_1_1_1_1,00.html ",null,null,"http://unstats.un.org/unsd/demographic/products/dyb/dyb2008.htm ",null,null,null,"http://www.wssinfo.org/data-estimates/table/",null,"https://www.cia.gov/library/publications/the-world-factbook/rankorder/2147rank.html","http://www.un.org/esa/dsd/dsd_aofw_sids/sids_members.shtml ","http://www.transboundarywaters.orst.edu/publications/register/tables/IRB_table_5.html",null,"http://www.fao.org/nr/water/aquastat/data/query/index.html?lang=en",{"$error":"#VALUE!"},"http://data.worldbank.org/indicator/NV.AGR.TOTL.ZS","http://www.wssinfo.org/data-estimates/table/","http://www.wssinfo.org/data-estimates/table/","http://www.fao.org/nr/water/aquastat/main/index.stm","http://www.fao.org/nr/water/aquastat/main/index.stm","http://www.fao.org/nr/water/aquastat/main/index.stm","http://www.fao.org/nr/water/aquastat/main/index.stm","http://www.fao.org/nr/water/aquastat/main/index.stm","http://www.fao.org/nr/water/aquastat/main/index.stm","A Global Report - Reducing Disaster Risk, A Challenge for Development","World Bank estimates (From +2.5 maximum control of corruption to -2.5 minimum control of corruption). World Bank Governance Matters III. Http://www.worldbank.org/wbi/governance"]
["Notes",null,null,null,{"$f":"F201","v":0},null,"1=Eastern Afr; 2=Middle Afr; 3=Northern Afr; 4=Southern Afr; 5=Western Afr; 6=Caribbean;7=Cetral Am; 8=S.Am; 9=Northern Am;10=Cetral As; 11=Eastern As; 12=Southern As; 13=South-Eastern As; 14=Western As; 15=Eastern Europ; 16=Northern Eu; 17=Southern Eu; 18=Western Eu; 19=Aus&NZ; 20=Melanesia;21=Micronesia;22=Polynesia",null,null,null,null,"whilst it claims 2008, many of the years are in fact much earlier (see indicator_working_calcs sheets)",null,null,null,null,null,null,null,null,null,null,{"$error":"#NUM!"}]
[]
["Blank cells",null,{"$f":"COUNTIF(C3:C194,\"\")","v":24},{"$f":"COUNTIF(D3:D194,\"\")","v":5},0,0,0,0,12,0,0,40,0,0,0,1,0,0,0,0,0,0,null,0,1,1,145,145,26,26,26,122,20,10,192,192,0,0,0,0]
[null,null,1,null,{"$f":"F204","v":14},14,15,16,null,2,3,null,4,5,6,null,7,8,9,10,11,12,null,13]
[]
[]
[]
[]
[]
["All regions",620,233.7,null,null,null,null,null,null,32.1]

{"sheet":"XLSTAT_STATPLANET_prep","index":31,"n_rows":194,"n_cols":197,"rows_kept":194,"cut":false,"hidden":true,"merged":[[0,138,0,140],[0,93,0,98],[0,99,0,104],[0,105,0,111],[0,112,0,113],[0,114,0,117],[0,118,0,119],[0,120,0,122],[0,123,0,129],[0,130,0,131],[0,132,0,135],[0,136,0,137],[0,87,0,92],[0,5,0,7],[0,8,0,15],[0,50,0,55],[0,65,0,80],[0,81,0,86]]}
["NB","Colour coding: ",null,null,"Purple= Overall agregates","Blue = sub-question aggregates",null,null,"Green = Specifc question aggregates",null,null,null,null,null,null,null,null,null,null,null,null,null,null,null,null,null,null,null,null,null,null,null,null,null,null,null,null,null,null,null,null,null,null,null,null,null,null,null,null,null,"5.1 Sources of financing for the development of water resources",null,null,null,null,null,null,null,null,null,null,null,null,null,null,"6.1 Improved Water Resources Management",null,null,null,null,null,null,null,null,null,null,null,null,null,null,null,"7.1.1 Water Uses",null,null,null,null,null,"7.1.2 Threats to the resource",null,null,null,null,null,"7.2.1 Water Uses",null,null,null,null,null,"7.2.2 Threats to the resource",null,null,null,null,null,"7.3.1 Levels of management",null,null,null,null,null,null,"7.3.2 Management between sectors",null,"7.3.3 Other governance issues",null,null,null,"7.3.4 Managing resource information",null,"7.3.5 Specific types of management",null,null,"7.4.1 Levels of management",null,null,null,null,null,null,"7.4.2 Management between sectors",null,"7.4.3 Other governance issues",null,null,null,"7.4.4 Managing resource information",null,"7.4.5 Specific types of management",null,null,null,null,null,null,null,null,null,null,null,null,null,null,null,null,null,null,null,null,null,null,null,null,null,null,"HDI ","HDI groupings","Major region","Major region (OLD)","Sub-region","UN Development status","DAC List of ODA Recipients","GDP per capita ","Total population","Population Density","Average annual population growth rate","Income Gini coefficient","Urban Population","% rural population","Land area","Surface area (land and water)","SIDS, landlocked, other","Transboundary Area","Transboundary Dependency ratio","Total renewable water resources per capita (actual)","Log Total renewable water resources per capita (actual)","Agriculture, value added","% Access to improved water supply","% Access to improved sanitation","% of produce from irrigated agriculture","% of produce from rainfed agriculture?","% of withdrawals for agriculture","% of withdrawals for municipal use","% of withdrawals for industry","% of total withdrawals from groundwater","Disaster Risk Index (Average Number of People Killed per Million Inhabitants","Corruption Index"]
["Countries","Overall simple average score Q's 1-4 (removing '1's)","Simple average score Q's 1-2 (removing '1's)","Simple average score Q's 1-3 (removing '1's)","Simple average score Q's 2-3 (removing '1's)","1,Policy, Planning, & Legal Framework (removing '1's) ","1,1,1 Main instruments for WRM","1,1,2 Sectoral instruments incorporating WRM ","1,1,3 International agreements","Policy, Plans (1,1,1 a, b, e)","Legislation (1,1,1 c, d)","Policy, strategic planning and legal frameworks - for Impacts (1,1,1a,c,e, 1,1,2c)","Water Efficiency Planning (1,1,1 f,g)","IWRM OR water efficiency plans (max 1,1,1 e,f)","Efficiency (separate plans or in IWRM plan) (max 1,1,1f,g)","Integration into development planning (1,1,2 a to d","Sectoral Integration (1,1,2 e to k)","Transboundary agreements (1,1,3 a, b)","2, Governance & Institutional Frameworks (removing '1's)","2,1,1 Institutional Frameworks ","2,1,2 Stakeholder Participation","2,1,3 Capacity Building","Governance and institutional frameworks - for Impacts (2,1,1,d, 2,1,3,a, 2,1,3,c, 2,1,3,e)","Groundwater institutions (2,1,1 b)","Cross-sector management (2,1,1 d)","Transboundary institutions (2,1,1 e)","Decentralisation (2,1,1 a,c,f)","2,1,1 a,d,f","Stakeholder Participation (2,1,2 a to g)","Capacity Building (2,1,3 a to g)","Gender (2,1,2 g)","3, Management Instruments (removing '1's)","3,1,1 WRM development instruments","3,1,2 WRM programs","3,1,3 Monitoring & information management","3,1,4 Knowledge sharing","3,1,5 Financing of WRM","Management instruments - for impacts (3,1,1b,c, 3,1,3a) ","Instruments for WR development (3,1,1 a to d)","WR management programs (3,1,2 b,e,h,j,k)","GW Management program (3,1,2 a)","Sectoral integration programs (3,1,2 c,d)","Water allocation programs (3,1,2d,f)","???","Demand management measures to improve water use efficiency in all sectors (3,1,2g)","Program for  re-use or recycling of water (3,1,2h)","c) Programs for transferring improved and cost effective water saving technologies","b) Subsidies for promoting water efficiency","Transboundary programs (3,1,2 l)","Programs for water and environment (3,1,2 f,i,m)","Monitoring and knowledge sharing (3,1,3 a to i & 3,1,4 a to d)","Cost recovery mechanisms (3,1,5 a to c)","4, Infrastructure Development & Financing (removing '1's)","4,1,1 Investment Plans and programs","4,1,2 Mobilizing financing for WRM infrastructure","4,1,1 Investment Plans and programs (b-j)","4,1,2 Mobilizing financing for WRM infrastructure (b-j)","Investment & financing (4,1 & 4,2)","Water resources in financing & investment plans (for impacts) (4,1,1a + 4,1,2a)","Financing for irrigation (4,1,1b&4,1,2b)","Infrastructure development and mobilizing financing for energy / hydropower (4,1,1c&4,1,2c)","5,1 a) Government budget allocation (as % of GDP) for water resources development","5,1 b) Grants and loans from aid agencies for water resources development","5,1 c) Investments from International Financing Institutions (e,g, World Bank) for water resources development","5,1 d) Investments from private sources (e,g, banks and private operators, non-profit) for water resources devpt,","5,1 e) Revenues (e,g, from water use charges/tariffs) used for water resources development","5,1 f) Payments for ecosystem services and related benefit/cost transfer schemes ","6,1 Simple average outcome (a-d)","6,1 a simple average (policy, planning, legal)","6,1 b simple average (governance, institutional frameworks)","6,1 c simple average (management instruments)","6,1 d simple average (infrastructure)","6,1 Impacts on Economic development (simple average)","6,1 Impacts on Social development (simple average)","6,1 Impacts on Environment development (simple average)","6,1 Impacts on Overall development (simple average)","6,1 a) Improved policy, strategic planning and legal frameworks - Economic devpt objectives  impact in past 20 years","6,1 a) Improved policy, strategic planning and legal frameworks - Social devpt objectives impact in past 20 years","6,1 a) Improved policy, strategic planning and legal frameworks - Environmental objectives  impact in past 20 years","6,1 a) Improved policy, strategic planning and legal frameworks - Overall national devpt impact in past 20 years","6,1 b) Improved governance and institutional frameworks - Economic devpt objectives  impact in past 20 years","6,1 b) Improved governance and institutional frameworks - Social devpt objectives impact in past 20 years","6,1 b) Improved governance and institutional frameworks - Environmental objectives  impact in past 20 years","6,1 b) Improved governance and institutional frameworks - Overall national devpt impact in past 20 years","6,1 c) Improved management instruments - Economic development objectives  impact in past 20 years","6,1 c) Improved management instruments - Social development objectives impact in past 20 years","6,1 c) Improved management instruments - Environmental objectives  impact in past 20 years","6,1 c) Improved management instruments - Overall national development impact in past 20 years","6,1 d) Improved infrastructure development - Economic development objectives  impact in past 20 years","6,1 d) Improved infrastructure development - Social development objectives impact in past 20 years","6,1 d) Improved infrastructure development - Environmental objectives  impact in past 20 years","6,1 d) Improved infrastructure development - Overall national development impact in past 20 years","Floods High/Highest priority","Droughts High/Highest priority","Floods and Droughts high/highest priority","Summary: Floods & Droughts priorities","7,1,1 a) Water for agriculture","7,1,1  b) Water for domestic use","7,1,1 c) Water for industry","7,1,1 d) Water for energy","7,1,1 e) Water for ecosystems / environment","7,1,1 f) Water for growing cities","7,1,,2 a) Floods","7,1,2 b) Droughts","7,1,2 c) Water scarcity (surface water)","7,1,2 d) Water scarcity (groundwater)","7,1,2 e) Water quality (surface water)","7,1,2 f) Water quality (groundwater)","7,2,1 a) Water for agriculture","7,2,1 b) Water for domestic use","7,2,1 c) Water for industry","7,2,1 d) Water for energy","7,2,1 e) Water for ecosystems / environment","7,2,1 f) Water for growing cities","7,2,2 a) Floods","7,2,2 b) Droughts","7,2,2 c) Water scarcity (surface water)","7,2,2 d) Water scarcity (groundwater)","7,2,2 e) Water quality (surface water)","7,2,2 f) Water quality (groundwater)","7,3,1 a) Institutional capacity at national level","7,3,1 b) Institutional capacity at sub-national level","7,3,1 c) Transboundary capacity at international level","7,3,1 d) Transboundary capacity at national/sub-national level","Infrastructure development and financing (Average 7,3,3 b,d)","7,3,3 c) Financing of water resources management","7,3,4 a) Monitoring the resource","7,3,5 a) Disaster management","7,3,5 c) Water use efficiency management","7,3,5 b) Climate change adaptation management","Institutional capacity at different levels (7,3,1a,b)","7,3,1 g) Coordination between levels and types of management","Coordination between sectors at different levels (7,3,2a,b)","7,3,3 a) Legislation","7,3,4 b) Knowledge sharing","7,3,1 f) Stakeholder participation","Transboundary capacity at different levels (7,3,1c,d)","7,3,1 e) Management through private enterprise","7,3,2 a) Coordination between sectors at national level","7,3,2 b) Coordination between sectors at sub-national level","7,3,3 b) Infrastructure development","7,3,3 d) Financing of infrastructure","7,4,5 b) Climate change adaptation management","Coordination between sectors at different levels - CHANGE (7,4,2a,b)","Infrastructure development and financing - CHANGE (Average 7,4,3 b,d)","7,4,1 f) Stakeholder participation","7,4,5 a) Disaster management","7,4,4 a) Monitoring the resource","7,4,1 g) Coordination between levels and types of management","7,4,3 c) Financing of water resources management","7,4,3 a) Legislation","Institutional capacity at different levels - CHANGE (7,4,1a,b)","7,4,4 b) Knowledge sharing","7,4,5 c) Water use efficiency management","Transboundary capacity at different levels - CHANGE (7,4,1c,d)","7,4,1 e) Management through private enterprise","7,4,1 a) Institutional capacity at national level","7,4,1 b) Institutional capacity at sub-national level","7,4,1 c) Transboundary capacity at international level","7,4,1 d) Transboundary capacity at national/sub-national level","7,4,2 a) Coordination between sectors at national level","7,4,2 b) Coordination between sectors at sub-national level","7,4,3 b) Infrastructure development","7,4,3 d) Financing of infrastructure","Code","HDI","HDIR","REG","REG (OLD)","SRG","DEV","DAC","GDP","POP","POPDEN","POPGR","GINI","UPOP",null,"LAREA","SAREA","TYPE","TBA","TBDEP","TRWR/C","Log TRWR/C","AGR"]
["Afghanistan",null,null,null,null,null,null,null,null,null,null,null,null,null,null,null,null,null,null,null,null,null,null,null,null,null,null,null,null,null,null,null,null,null,null,null,null,null,null,null,null,null,null,null,null,null,null,null,null,null,null,null,null,null,null,null,null,null,null,null,null,null,null,null,null,null,null,null,null,null,null,null,null,null,null,null,null,null,null,null,null,null,null,null,null,null,null,null,null,null,null,null,null,null,null,null,null,null,null,null,null,null,null,null,null,null,null,null,null,null,null,null,null,null,null,null,null,null,null,null,null,null,null,null,null,null,null,null,null,null,null,null,null,null,null,null,null,null,null,null,null,null,null,null,null,null,null,null,null,null,null,null,null,null,null,null,null,null,null,null,null,null,null,null,"AFG",0.35,1,2,3,12,1,1,0,29.117488999999999,null,3.448,0,22.6,76,65223,652230,2,70,15.38,2389,3.3782161497498779,33.518386870160164,48,37,null,null,98.79,0.66700000000000004,0.55579999999999996,null,49.06,-1.35]
["Albania",2.7916666666666665,3.2941176470588234,2.7931034482758621,2.7317073170731709,2.9411764705882355,2,3.5,4,2,2,2,2,2,2,3,4,4,3.6470588235294117,5,3.8571428571428572,2,2.75,5,5,5,5,5,3.8571428571428572,2,4,2.0833333333333335,2,2.2222222222222223,2,2,2,2,2,2,2,2,2,2,2,1,1,2,2,3,2,2,2.7857142857142856,2.6666666666666665,2.875,2.8,3,2.7857142857142856,2,2,3,3,3,3,1,1,1,2.9375,2.75,3,3,3,3,2.75,3,3,3,2,3,3,3,3,3,3,3,3,3,3,3,3,3,3,4,null,null,4,4,5,3,5,4,4,4,3,4,3,4,4,4,5,4,5,4,4,4,3,4,4,4,3,4,3,3,3,4.5,4,3,4,4,3,3.5,4,3.5,5,3,4,3,4,4,3,5,4,3,4,5,4,4,4,4,4,5,4,4,4,4,4,4,4,4,4,4,4,5,5,"ALB",0.72,3,4,4,17,3,3,7195.1812466513902,3.1690870000000002,110.6859607625,0.373,33,51.91,53,2740,28748,3,50,35.49,13268,4.1228054628474444,21.397193169331512,97,98,null,null,57.67,29.95,12.37,null,0.25,-0.85]
["Algeria",4.1624999999999996,4.2,4.129032258064516,4.0851063829787231,4.2666666666666666,5.25,3.8,5,5,6,5.25,null,5,1,5,3,5,4.1333333333333337,4.5,4.5,3.7142857142857144,4.25,null,6,2,5,5.333333333333333,4.5,3.7142857142857144,2,4.0625,4.666666666666667,3.9230769230769229,3.7777777777777777,3.25,6,3.6666666666666665,4.666666666666667,3.8,4,4.5,3.5,4,4,3,4,6,5,3.3333333333333335,3.5138888888888888,6,4.2777777777777777,4.5555555555555554,4,4.5,4,4.2777777777777777,4.5,4.5,null,4,2,3,2,5,1,3.75,3.75,4.25,3.25,3.75,4,3.75,3.25,4,4,4,3,4,5,4,4,4,3,3,3,4,4,4,3,4,4,3,2,2,null,4,4,3,null,5,5,5,5,5,5,5,null,5,5,4,3,5,4,5,1,1,2,1,4,4,1,1,2.5,1,5,4,4,4,4,1,4,1,1,null,1,1,4,4,4,1,2,3,1,3,1,1,3,1,1,1,3,2,3,3,1,1,3,3,3,3,1,1,"DZA",0.68,2,3,1,3,2,3,7424.6305242014696,35.422589000000002,14.588068140100001,1.5049999999999999,35.299999999999997,66.5,35,238174,2381741,3,15,3.5990000000000002,339.5,2.5308397786165204,8.5777087368164722,83,95,null,null,63.95,22.51,13.54,null,6.02,-0.7]
["Andorra",4.5949367088607591,4.3030303030303028,4.46875,4.5510204081632653,4.2,4.333333333333333,3.8571428571428572,5,5,5,4.5,3,5,3,4,3.8,5,4.3888888888888893,4.5,4.1428571428571432,4.5999999999999996,5,4,4,5,4.666666666666667,4.666666666666667,4.1428571428571432,4.5999999999999996,5,4.645161290322581,4.75,4.333333333333333,5,4.75,4.5,5,4.75,4.4000000000000004,5,5,4,4,4,4,4,1,5,3.6666666666666665,4.875,4.5,5.1333333333333337,5,5.2857142857142856,5,5.333333333333333,5.1333333333333337,5,null,6,4,2,2,4,4,4,4.125,4.25,3.5,4,4.75,3.25,4.5,5,3.75,3,5,5,4,3,4,5,2,3,4,5,4,4,5,5,5,4,null,null,4,2,3,2,3,3,4,4,2,2,2,3,4,4,5,4,4,5,5,5,4,4,4,5,4,5,4,5,4,3.5,3,5,4,4,4,4.5,4,3.5,5,5,3,4.5,3,4,3,4,3,5,5,4,5,5,5,5,4,3,4.5,5,5,4.5,3,4,5,5,4,5,5,5,3,"AND",0.82,4,5,4,17,3,5,0,8.6684999999999998E-2,179.2393162393,1.661,0,88,10,47,468,2,100,0,0,null,0,100,100]
["Angola",3.1206896551724137,3.096774193548387,2.9791666666666665,2.4838709677419355,3.8823529411764706,4,3.6,5,4,4,3.5,null,2,1,3.3333333333333335,3.7142857142857144,5,2.1428571428571428,2.4,2,2,2,2,2,2,3,2.6666666666666665,2,2,null,2.7647058823529411,2,2.3333333333333335,3.5,4,2,2.6666666666666665,2,2,null,null,null,null,1,1,1,1,2,3,3.75,2,3.8,3.75,3.8333333333333335,3.75,4.2,3.8,null,4,5,4,3,3,2,1,2,2.625,2,2.75,3,2.75,2.25,2.75,2.75,2.75,1,2,3,2,2,3,3,3,3,3,3,3,3,3,2,3,null,null,null,1,4,5,3,4,3,5,2,2,2,2,4,4,3,5,3,4,4,5,3,3,3,3,5,5,5,4,4,4,4,4,4,4,2,3,4.5,4,3,5,4,4,4,1,3,3,4,4,4,4,5,4,4,3,3,4,4,3,3,3,4,3,3,3,4,4,4,4,null,5,"AGO",0.4,1,3,1,2,1,1,5452.0581751441796,18.992706999999999,null,2.6720000000000002,58.6,58.5,43,124670,1246700,3,68,0,8213,3.9145018228273138,8.2819397729164539,50,57,null,null,32.79,38.409999999999997,28.81,null,0.13,-1.1200000000000001]
["Antigua and Barbuda",3.2567567567567566,2.9583333333333335,3.0892857142857144,3.0652173913043477,3.2,3.25,3.1666666666666665,null,2.5,6,3.75,2,2,2,3.6666666666666665,2.6666666666666665,null,2.7857142857142856,2.3333333333333335,2.5,3.4,3.25,3,2,null,2,2,2.5,3.4,null,3.1875,3.5,2.8333333333333335,4,3,2,4,3.5,3.4,5,2,2,2,2,2,4,2,null,2,3.5,2,3.7777777777777777,3.7777777777777777,3.7777777777777777,3.75,4,3.7777777777777777,3,2,null,2,4,2,4,4,2,2.8125,2.75,3,2.75,2.75,2.75,3,2.5,3,2,3,3,3,3,3,3,3,3,3,2,3,3,3,2,3,4,3,2,2,4,5,3,2,2,2,5,5,4,4,4,3,2,4,4,3,3,3,5,4,4,4,5,4,4,1,1,1,4.5,4,4,4,3,3,2.5,4,2,4,3,3,1,2,3,1,5,4,5,3.5,5,4,5,5,5,5,4,3.5,4,5,3,4,4,3,3,3,4,3,5,5,"ATG",null,3,1,2,6,2,4,19709.054305785801,8.8550000000000004E-2,null,1.1659999999999999,0,30.34,57,44,443,1,0,0,597.70000000000005,2.7764832558336816,3.3386904859962114,0,0,null,null,20,60,20,null,5.26,-0.84]
["Argentina",null,null,null,null,null,null,null,null,null,null,null,null,null,null,null,null,null,null,null,null,null,null,null,null,null,null,null,null,null,null,null,null,null,null,null,null,null,null,null,null,null,null,null,null,null,null,null,null,null,null,null,null,null,null,null,null,null,null,null,null,null,null,null,null,null,null,null,null,null,null,null,null,null,null,null,null,null,null,null,null,null,null,null,null,null,null,null,null,null,null,null,null,null,null,null,null,null,null,null,null,null,null,null,null,null,null,null,null,null,null,null,null,null,null,null,null,null,null,null,null,null,null,null,null,null,null,null,null,null,null,null,null,null,null,null,null,null,null,null,null,null,null,null,null,null,null,null,null,null,null,null,null,null,null,null,null,null,null,null,null,null,null,null,"ARG",0.78,4,1,2,8,2,4,13247.900632197799,40.665731999999998,14.294926269599999,0.97499999999999998,48.8,92.39,8,273669,2780400,3,31,66.09,20410,4.3098430047160701,8.9059593588735364,97,90,null,null,66.069999999999993,21.71,12.2,null,0.38,-0.77]
["Armenia",2.3255813953488373,2.5750000000000002,2.4,2.2000000000000002,2.9,3.5714285714285716,2.6363636363636362,2,4,3.5,4.25,3,5,4,2.75,2.5714285714285716,2,2.25,2,2.5714285714285716,2.1428571428571428,2.25,2,2,2,2,2,2.5714285714285716,2.1428571428571428,2,2.1666666666666665,2,2.0769230769230771,2.5,2,2,2.3333333333333335,2,2,2,2,2,3,3,2,1,2,2,2,2.25,2,2,2,2,2,2,2,2,2,2,3,4,4,2,2,1,2.5,3,3,2,2,2.5,2.5,2.5,2.5,3,3,3,3,3,3,3,3,2,2,2,2,2,2,2,2,null,null,null,1,4,3,2,2,4,2,2,3,4,4,3,3,4,4,3,3,4,3,3,3,4,4,3,3,4,3,3,2,3.5,4,3,3,3,3,3.5,3,3,3,3,3,2.5,3,3,3,3,4,4,4,4,4,4,4,4,4,4,4,4,4,4,4,4,4,4,4,4,4,4,4,"ARM",0.7,3,4,3,14,2,3,5610.6168827032798,3.090379,108.7325084894,0.16500000000000001,30.2,64.19,36,2820,29743,2,100,11.71,2525,3.4022613824546801,20.024324272358474,96,90,52,48,65.760000000000005,29.82,4.4219999999999997,22,323.68,-0.72]
["Australia",5.475609756097561,5.0999999999999996,5.32258064516129,5.4489795918367347,4.8461538461538458,5.5,4.2857142857142856,null,5.666666666666667,5.5,5.75,5,5,5,5.5,3.8,null,5.2941176470588234,6,3.5,5.7142857142857144,6,6,6,6,6,6,3.5,5.7142857142857144,null,5.53125,6,6,5.1111111111111107,4.75,5,6,6,6,6,6,6,6,6,6,5,1,6,6,4.9305555555555554,5,5.95,5.9,6,6,6,5.95,5.5,6,6,4,2,2,4,4,4,4,4,4,4,4,4,4,4,4,4,4,4,4,4,4,4,4,4,4,4,4,4,4,4,4,null,3,null,3,4,4,3,3,4,4,3,5,4,4,3,3,5,5,5,5,5,5,4,5,5,5,4,4,4,4,1,5,3.5,3,4,3,4,4,4,4,3.5,2,4,4,3,3,4,3,4,3,4,3,3,4,4,4,4,3,3,5,4,4,2.5,3,5,5,3,2,3,3,3,3,"AUS",0.94,4,5,5,19,3,5,33369.477092045199,21.511887999999999,2.7949132764,1.0669999999999999,35.200000000000003,89.11,11,768230,7741220,3,0,0,23346,4.3682124811873866,2.8276979408063272,100,100,null,null,73.78,15.59,10.63,22,0.59,1.91]
["Austria",null,null,null,null,null,null,null,null,null,null,null,null,null,null,null,null,null,null,null,null,null,null,null,null,null,null,null,null,null,null,null,null,null,null,null,null,null,null,null,null,null,null,null,null,null,null,null,null,null,null,null,null,null,null,null,null,null,null,null,null,null,null,null,null,null,null,null,null,null,null,null,null,null,null,null,null,null,null,null,null,null,null,null,null,null,null,null,null,null,null,null,null,null,null,null,null,null,null,null,null,null,null,null,null,null,null,null,null,null,null,null,null,null,null,null,null,null,null,null,null,null,null,null,null,null,null,null,null,null,null,null,null,null,null,null,null,null,null,null,null,null,null,null,null,null,null,null,null,null,null,null,null,null,null,null,null,null,null,null,null,null,null,null,"AUT",0.85,4,5,4,18,3,5,36050.973285346801,8.3874910000000007,99.397276770299996,0.374,29.1,67.55,33,8245,83871,2,100,29.21,9320,3.9694159123539814,1.6536562859171742,100,100,null,null,2.734,18.27,79,31,0.19,1.85]
["Azerbaijan",3.4888888888888889,3.3,3.5277777777777777,3.5384615384615383,3.5,3.4285714285714284,3.6363636363636362,3,4,4,4,2,4,2,3.5,3.7142857142857144,3,3.1,2.6666666666666665,3.1428571428571428,3.4285714285714284,3.5,2,4,2,2.6666666666666665,3.3333333333333335,3.1428571428571428,3.4285714285714284,2,3.8125,3.5,3.3076923076923075,4.8888888888888893,2.6666666666666665,4.333333333333333,4.333333333333333,3.5,3.2,2,3,4,4,4,2,2,4,4,3.6666666666666665,3.7777777777777777,4.333333333333333,3.3333333333333335,3.3333333333333335,3.3333333333333335,3.25,3.25,3.3333333333333335,4,4,4,4,1,4,1,4,1,4.1875,4.5,4.25,4,4,4.25,4,4.5,4,5,4,5,4,4,4,5,4,4,4,4,4,4,4,4,4,4,null,null,4,3,3,1,1,1,3,4,3,3,1,4,1,4,2,2,4,3,4,5,4,4,3,5,4,3,4,3,3,1,1,1,1,1,3,3.5,1,2.5,2,2,1,3,2,2,3,1,1,2,1.5,1,1,1,1,2,1,2,1,1,2,2,2,1,1,2,2,1,2,1,1,"AZE",0.71,3,4,3,14,2,3,8101.7335101806802,8.9339279999999999,100.2321016166,1.107,16.8,51.93,48,8262.9,86600,2,70,76.599999999999994,3972,3.5990092398233435,7.7727602112487713,80,45,null,null,76.41,4.2670000000000003,19.329999999999998,6,0.28999999999999998,-1.07]
["Bahamas",3.6551724137931036,3.4285714285714284,3.4925373134328357,3.489795918367347,3.5,3.7142857142857144,3.2,5,3.6666666666666665,3.5,3.75,4,4,4,3.6666666666666665,3,5,3.3529411764705883,2.3333333333333335,3.4285714285714284,3.7142857142857144,3.25,3,2,null,2,2,3.4285714285714284,3.7142857142857144,2,3.5625,4.25,3.25,4,3.25,3,4,4.25,3.4,5,3,3.5,4,4,2,2,3,null,2.3333333333333335,3.625,3,4.2,4.3,4.0999999999999996,4.333333333333333,4,4.2,4.5,4,2,5,4,3,3,3,2,3.3125,3.5,3.25,3,3.5,3.5,3,3,3.75,4,3,3,4,3,3,3,4,3,3,3,3,4,3,3,4,4,3,2,2,2,5,3,2,3,3,4,5,1,4,2,5,2,5,4,3,3,4,4,5,3,5,3,5,5,3,1,1,4.5,4,4,4,4,5,4,3,3.5,5,3,2,1,2,4,3,5,4,5,3.5,3,1,4,2,2,3,3,3.5,2,3,1,2,4,3,1,1,4,3,3,3,"BHS",0.78,3,1,2,6,2,null,0,0.34573599999999999,24.263071075100001,1.2070000000000001,0,84.1,16,1001,13880,1,0,0,59.17,1.7721015692770119,1.5564892285862628,0,100,null,null,null,null,null,null,0.89,1.41]
["Bahrain",null,null,null,null,null,null,null,null,null,null,null,null,null,null,null,null,null,null,null,null,null,null,null,null,null,null,null,null,null,null,null,null,null,null,null,null,null,null,null,null,null,null,null,null,null,null,null,null,null,null,null,null,null,null,null,null,null,null,null,null,null,null,null,null,null,null,null,null,null,null,null,null,null,null,null,null,null,null,null,null,null,null,null,null,null,null,null,null,null,null,null,null,null,null,null,null,null,null,null,null,null,null,null,null,null,null,null,null,null,null,null,null,null,null,null,null,null,null,null,null,null,null,null,null,null,null,null,null,null,null,null,null,null,null,null,null,null,null,null,null,null,null,null,null,null,null,null,null,null,null,null,null,null,null,null,null,null,null,null,null,null,null,null,"BHR",0.8,4,2,3,14,2,null,0,0.80713100000000004,1460.7376262693999,2.0750000000000002,0,88.61,11,71,760,3,0,96.55,149.5,2.1746411926604483,0,0,0,0,100,44.54,49.78,5.68,100,null,0.95]
["Bangladesh",4.5930232558139537,4.5882352941176467,4.5303030303030303,4.54,4.5,4,4.5454545454545459,6,6,2,4,2,6,2,5,4.2857142857142856,6,4.666666666666667,4.4000000000000004,4.8571428571428568,4.666666666666667,5,6,6,2,4,6,4.8571428571428568,4.666666666666667,4,4.46875,4.5,4.1538461538461542,5.333333333333333,4,3.5,5.666666666666667,4.5,4.8,5,2,4,2,2,2,3,2,5,4.666666666666667,4.6666666666666661,3.5,4.8,4.5999999999999996,5,4.4444444444444446,4.8888888888888893,4.8,6,6,6,4,4,4,1,3,1,3.625,4,3,3.5,4,4.25,3.75,3,3.5,5,4,3,4,3,3,3,3,4,4,3,3,5,4,3,4,4,null,null,4,4,5,4,4,5,5,5,3,5,5,4,4,5,5,5,4,1,1,4,4,5,5,5,5,4,4,4,4,5,5,5,4,4,5,4,5,5,4,5,4,4,3,5,5,5,5,4,4,3,4,4,4,4,3,4,4,4,4,3,4,4,4,3,3,4,4,3,3,"BGD",0.47,1,2,3,12,1,1,1233.3910820367,164.42549099999999,1003.48615953,1.4239999999999999,31,28.07,73,13017,143998,3,98,91.44,7669,3.8847387377696316,19.347491646569079,80,53,47,53,87.82,10.039999999999999,2.1469999999999998,79,68.84,-1.1200000000000001]
["Barbados",3.3205128205128207,2.8571428571428572,3.1,3.1086956521739131,3.0714285714285716,2.6,3.3333333333333335,null,3.5,null,3.25,2,2,2,4,3,null,2.6428571428571428,3.5,2.2857142857142856,2.8,2.25,5,2,null,null,2,2.2857142857142856,2.8,2,3.3125,3.5,3.0833333333333335,3.4444444444444446,3.5,3.3333333333333335,3.3333333333333335,3.5,3.2,5,2,2,4,4,2,2,4,null,2.6666666666666665,3.4722222222222223,3.3333333333333335,4.0555555555555554,4,4.1111111111111107,4,4,4.0555555555555554,4.5,4,null,null,5,5,1,1,2,3.0625,3.5,3.25,2.5,3,2.75,3,3.25,3.25,3,4,3,4,3,3,4,3,2,2,3,3,3,3,3,3,4,3,2,2,4,4,4,2,2,4,4,4,2,5,3,5,3,5,4,3,3,5,5,5,3,5,4,5,4,null,2,1,5,4,4,4,4,4,4,4,4,4,4,3,1.5,3,4,4,5,5,4,3.5,4.5,4,4,4,4,4,4,4,4,4,3,3,5,3,3,3,4,3,5,4,"BRB",0.79,4,1,2,6,2,4,0,0.256552,639.38837209300004,0.25900000000000001,0,44.47,60,43,430,1,0,0,313.7,2.4965145186977451,3.7650418111360393,100,100,null,null,32.840000000000003,28.74,38.42,null,0,1.29]
["Belarus",null,null,null,null,null,null,null,null,null,null,null,null,null,null,null,null,null,null,null,null,null,null,null,null,null,null,null,null,null,null,null,null,null,null,null,null,null,null,null,null,null,null,null,null,null,null,null,null,null,null,null,null,null,null,null,null,null,null,null,null,null,null,null,null,null,null,null,null,null,null,null,null,null,null,null,null,null,null,null,null,null,null,null,null,null,null,null,null,null,null,null,null,null,null,null,null,null,null,null,null,null,null,null,null,null,null,null,null,null,null,null,null,null,null,null,null,null,null,null,null,null,null,null,null,null,null,null,null,null,null,null,null,null,null,null,null,null,null,null,null,null,null,null,null,null,null,null,null,null,null,null,null,null,null,null,null,null,null,null,null,null,null,null,"BLR",0.73,3,4,4,15,3,4,11332.772362014,9.5879399999999997,46.632182080900002,-0.47099999999999997,28.8,74.7,27,20290,207600,2,96,35.86,5992,3.77757180469141,9.6466561865783547,100,93,null,null,19.36,26.88,53.76,null,0.03,-0.78]
["Belgium",5.2413793103448274,5.6052631578947372,5.23943661971831,5.1730769230769234,5.4210526315789478,5.5714285714285712,5.2,6,5.666666666666667,6,5.75,5,5,5,6,4.666666666666667,6,5.7894736842105265,6,6,5.4285714285714288,5.5,6,6,6,6,6,6,5.4285714285714288,null,4.8181818181818183,4.75,3.8461538461538463,5.5555555555555554,5.75,5.666666666666667,6,4.75,3.8,5,3,2,2,2,2,5,5,5,4.333333333333333,5.6527777777777777,5.666666666666667,5.25,5.125,5.375,5,5.2857142857142856,5.25,6,null,5,4,null,null,4,4,2,2.6875,2.75,2.75,2.75,2.5,2.75,3,4,1,3,3,4,1,3,3,4,1,3,3,4,1,2,3,4,1,4,3,2,2,2,3,3,3,3,3,4,4,4,4,5,5,4,4,4,3,4,4,5,4,4,4,4,4,3,3,3,3,4,4,4,4,4,3,3,3,3,3,3,3,3,2,3,3,4,4,4,4,5,4,5,4,5,4,4,3,3,4,4,3,3,3,4,4,4,4,5,5,"BEL",0.87,4,5,4,18,3,5,33519.522756667298,10.697588,349.4125393082,0.53500000000000003,33,97.41,3,3028,30528,3,72,34.43,1728,3.2375437381428744,0.79301891941900915,100,100,null,null,0.59519999999999995,11.71,87.69,10,0.04,1.5669999999999999]
["Belize",2.9615384615384617,2.5142857142857142,2.8095238095238093,2.9333333333333331,2.5,3,2.3636363636363638,2,3,3,2.75,3,3,3,2.5,2.2857142857142856,2,2.5294117647058822,2.25,3.1428571428571428,2,2.25,null,3,2,2,2.3333333333333335,3.1428571428571428,2,4,3.1785714285714284,2,3.6,3.75,2,3,2.3333333333333335,2,4.5,null,3,3,3,3,1,2,3,3,3,2.875,3,3.6,4,3.1428571428571428,4.1428571428571432,3.1666666666666665,3.6,3,2.5,5.5,4,4,4,2,2,2,3.125,3.25,3.5,2.5,3.25,2.5,2.75,4,3.25,2,3,5,3,3,3,4,4,2,2,3,3,3,3,4,3,null,null,null,1,1,1,1,1,1,3,2,1,1,1,1,1,4,5,3,5,4,5,3,3,3,3,3,3,3,3,3,3,3.5,5,5,5,5,5,3,4,2.5,3,5,4,3,3,4,1,5,2,5,3.5,1,4,5,1,4,1,4,1,3,1,1,4,1,1,1,1,3,4,1,1,"BLZ",0.69,3,1,2,7,2,4,6415.2499672816703,0.31292799999999998,14.025080553900001,2.0609999999999999,59.6,52.25,48,2281,22966,1,39,13.77,61628,4.7897780738955671,13.589855490610152,99,90,null,null,20,6.6669999999999998,73.33,null,3.21,-0.25]
["Benin",4.0235294117647058,4.8250000000000002,4.0857142857142854,3.88,4.5999999999999996,4.1428571428571432,5,4,4,4,4.25,4.5,4,5,5,5,4,5.05,4,6,5,4.75,4,4,4,4,4,6,5,6,3.1,3.5,3.5833333333333335,2.1111111111111112,3.5,null,3.3333333333333335,3.5,3.5,2,3.5,5,2,2,2,2,null,3,5,2.8055555555555554,null,3.7333333333333334,4,3.5,4,3.4285714285714284,3.7333333333333334,4,4,4,1,4,3,4,1,1,3.875,4,4,4,3.5,3.75,3.75,4,4,4,4,4,4,4,4,4,4,4,4,4,4,3,3,4,4,4,3,2,2,5,4,4,4,5,5,5,5,5,5,5,5,2,2,2,2,2,2,3,4,4,4,4,4,4,4,4,4,5,5,5,5,5,5,4,5,null,5,5,5,4,4,null,null,5,5,4,4,4,4,4,4,4,4,4,4,4,4,4,4,4,4,4,4,4,4,4,4,"BEN",0.44,1,3,1,5,1,1,1356.7627711119401,9.211741,73.028742164099995,3.1539999999999999,38.6,42.04,59,11062,112622,3,95,60.97,3047,3.4838724542226736,32.19986734468273,75,12,null,null,45.38,31.54,23.08,32,0.94,-0.61]
["Bhutan",2.9555555555555557,2.8648648648648649,2.9714285714285715,3,2.8888888888888888,2.5714285714285716,3.0909090909090908,null,2.3333333333333335,2.5,3,3,3,3,3.25,3,null,2.8421052631578947,2.4,3,3,2.75,2,2,null,2.6666666666666665,2,3,3,3,3.0909090909090908,3,3,3.2222222222222223,3.25,3,3,3,3.2,3,2.5,2.5,3,3,3,3,3,3,3,3.2361111111111112,3,2.9,2.9,2.9,3,3,2.9,2,2.5,3,1,3,2,2,4,2,null,null,null,null,null,null,null,null,null,null,null,null,null,null,null,null,null,null,null,null,null,null,null,null,null,4,3,2,2,4,4,3,4,5,4,4,4,3,1,4,1,3,4,3,5,5,4,4,4,1,4,4,1,4,4,4,4,4,4,3,4,4,4,4,5,4.5,4,3,5,4,3,5,4,4,4,null,null,null,4,null,null,3,null,null,3.5,null,null,3,3,4,3,3,3,null,null,null,null,"BTN",null,2,2,3,12,1,1,4395.2457072176703,0.708484,17.4788508621,1.728,46.7,34.71,65,3839.4,38394,2,99,0,113537,5.05513741463258,20.819146568381139,92,65,null,null,94.08,5.03,0.88759999999999994,0,5.44,0.91]
["Bolivia (Plurinational State of)",null,null,null,null,null,null,null,null,null,null,null,null,null,null,null,null,null,null,null,null,null,null,null,null,null,null,null,null,null,null,null,null,null,null,null,null,null,null,null,null,null,null,null,null,null,null,null,null,null,null,null,null,null,null,null,null,null,null,null,null,null,null,null,null,null,null,null,null,null,null,null,null,null,null,null,null,null,null,null,null,null,null,null,null,null,null,null,null,null,null,null,null,null,null,null,null,null,null,null,null,null,null,null,null,null,null,null,null,null,null,null,null,null,null,null,null,null,null,null,null,null,null,null,null,null,null,null,null,null,null,null,null,null,null,null,null,null,null,null,null,null,null,null,null,null,null,null,null,null,null,null,null,null,null,null,null,null,null,null,null,null,null,null,"BOL",0.64,2,1,2,8,2,3,3954.3680808693898,10.030832,9.1278142403999993,1.768,57.2,66.55,34,108330,1098581,2,96,51.24,64215,4.807636486889991,13.54789034141587,86,25,null,null,57.23,27.59,15.18,null,3.12,-0.82]
["Bosnia and Herzegovina",3.3012048192771086,3.0882352941176472,3.283582089552239,3.48,2.7058823529411766,2.7142857142857144,2.375,4,2.6666666666666665,3.5,2.75,2,2,2,2.5,2.25,4,3.4705882352941178,2.5,3.75,4.1428571428571432,3.5,2,2,2,3,3,3.75,4.1428571428571432,5,3.4848484848484849,3.5,3.7692307692307692,3.8888888888888888,2.25,2.6666666666666665,4.333333333333333,3.5,3.2,4,4,3.5,4,4,2,2,2,5,4,3.0694444444444446,2.6666666666666665,3.375,2.7777777777777777,4.1428571428571432,2.75,4.166666666666667,3.375,3.5,3.5,4,4,4,4,1,3,3,2.5,3,2,3,2,2.5,2.5,2.5,2.5,3,3,3,3,2,2,2,2,3,3,3,3,2,2,2,2,4,null,null,4,3,3,3,3,3,3,4,3,2,2,4,4,3,3,3,3,4,4,5,5,4,4,4,4,4,4,4,4,4,4,4,4,4,4,4,4,5,4,4,4,4,4,5,5,4,4,3,4,4,3,3,3,3,4,3,3.5,3,3,4,1,3,4,4,4,4,4,4,4,"BIH",0.71,3,4,4,17,3,3,7513.5136232524401,3.759633,75.048635662199999,-0.115,36.299999999999997,48.62,53,5120,51197,3,93,5.3330000000000002,9939,3.9973426906016223,9.6260580669957232,99,95,null,null,null,null,null,null,0,-0.6]
["Botswana",3.3975903614457832,3.6578947368421053,3.5,3.4680851063829787,3.5789473684210527,3.1428571428571428,3.7,4.5,2,6,3.5,2,2,2,3.75,3.6666666666666665,4.5,3.736842105263158,3.6,3.4285714285714284,4.1428571428571432,4.5,4,4,4,3,3.3333333333333335,3.4285714285714284,4.1428571428571432,2,3.2857142857142856,2.75,3.4,3.5555555555555554,3,3,3.3333333333333335,2.75,3.3333333333333335,6,2,2,2,2,null,2,1,4,3.3333333333333335,3.2777777777777777,3,3,2.5555555555555554,3.5,2.375,3.1428571428571428,3,5,3.5,5,4,3,2,2,1,1,3.3125,3.25,3,3,4,3.25,3.25,3.5,3.25,3,3,4,3,3,3,3,3,3,3,3,3,4,4,4,4,null,3,null,3,null,null,null,null,null,null,null,4,4,4,4,4,4,4,4,4,3,4,4,3,3,3,3,3,5,5,4,4,4,4,5,5,5,5,5,4,4,5,5,4,4,3,4,4,4,4,3,4,4,4,4,3,4,4,3,1,3,3,2,3,1,1,2,2,4,4,4,4,"BWA",0.63,2,3,1,4,2,4,12378.0930291369,1.9775689999999999,3.0158865978999998,1.452,61,61.13,40,56673,581730,2,100,80.39,6372,3.8042757671290941,2.1371144426344224,95,60,2.6,97.4,41.24,40.72,18.04,66,1.26,0.76]
["Brazil",3.7419354838709675,3.85,3.8493150684931505,4.0377358490566042,3.35,4,2.8181818181818183,4,4.333333333333333,5,4.25,2.5,4,3,2.75,2.8571428571428572,4,4.3499999999999996,3.5,4.8571428571428568,4.5714285714285712,4,4,2,3,4,4,4.8571428571428568,4.5714285714285712,4,3.8484848484848486,4.75,3.7692307692307692,3.8888888888888888,3.5,3.3333333333333335,5.333333333333333,4.75,3.8,4,3,4,4,4,4,2,2,4,4,3.6944444444444446,3.3333333333333335,3.35,3.7,3,3.5555555555555554,2.8888888888888888,3.35,4.5,3,5,5,4,4,4,1,4,2.875,2.75,3,3,2.75,1.75,4,2.75,3,1,4,3,3,2,4,3,3,2,4,3,3,2,4,2,3,4,3,2,2,4,4,4,4,4,5,4,4,4,4,4,4,5,5,5,5,5,5,5,4,4,4,4,3,2,4,3,3,4,3,3,4,4,3,3,4,4,2,3,3,3,1,4,4,4,4,4,4,4,1,2,2,5,4,1,2,2,2,2,3,2,2,2,2,3,5,4,4,"BRA",0.7,3,1,2,8,2,4,9517.0999514451996,195.42325199999999,22.268414916600001,0.98,55,86.53,14,845942,8514877,3,60,34.19,42886,4.6323155412509909,5.7445444877237843,97,80,null,null,54.59,27.95,17.46,null,0.72,-0.05]
["Brunei Darussalam",null,null,null,null,null,null,null,null,null,null,null,null,null,null,null,null,null,null,null,null,null,null,null,null,null,null,null,null,null,null,null,null,null,null,null,null,null,null,null,null,null,null,null,null,null,null,null,null,null,null,null,null,null,null,null,null,null,null,null,null,null,null,null,null,null,null,null,null,null,null,null,null,null,null,null,null,null,null,null,null,null,null,null,null,null,null,null,null,null,null,null,null,null,null,null,null,null,null,null,null,null,null,null,null,null,null,null,null,null,null,null,null,null,null,null,null,null,null,null,null,null,null,null,null,null,null,null,null,null,null,null,null,null,null,null,null,null,null,null,null,null,null,null,null,null,null,null,null,null,null,null,null,null,null,null,null,null,null,null,null,null,null,null,"BRN",0.81,4,2,3,13,2,null,0,0.40704499999999999,69.037294015599997,1.9039999999999999,0,75.650000000000006,25,527,5765,3,11,0,21684,4.336139398608557,0.78012868727373597,0,0,100,0,null,null,null,1,null,0.32]
["Bulgaria",5.3095238095238093,5.1470588235294121,5.2388059701492535,5.4423076923076925,4.5333333333333332,4.8,4.2222222222222223,6,4.666666666666667,6,4.5,4,5,4,3.5,4.4285714285714288,6,5.6315789473684212,6,6,5,5.25,6,6,6,6,6,6,5,null,5.333333333333333,5.75,5.1538461538461542,6,5.5,3.3333333333333335,6,5.75,4.8,5,5,5.5,6,6,4,5,2,5,5.666666666666667,5.75,3.3333333333333335,5.5882352941176467,5.2222222222222223,6,5.125,6,5.5882352941176467,6,6,6,5,4,4,4,4,1,4.375,4.75,4.25,4.25,4.25,4.25,4.25,4.75,4.25,4,5,5,5,4,4,5,4,4,4,5,4,5,4,4,4,4,3,2,2,4,5,3,4,4,4,5,4,4,5,5,4,1,4,2,4,5,5,4,4,2,3,2,3,4,3,4,4,5,4,4,5,4,4,3.5,4,4,5,3,4,4,3,4,4,5,5,5,2,2,1,3,4,2,2,2,2,3,4,2,2,2,2,2,2,2,2,2,2,"BGR",0.74,3,4,4,15,3,5,11258.964835623799,7.4972820000000002,68.754182487199998,-0.63600000000000001,29.2,71.459999999999994,29,10861,110879,3,86,1.4079999999999999,2805,3.4479328655921804,7.0565210638425935,100,100,null,null,16.28,15.98,67.739999999999995,10,0.02,-0.17]
["Burkina Faso",5.2873563218390807,5.1111111111111107,5.2028985507246377,5.25,5.0588235294117645,5.5,4.9090909090909092,5,6,5,5.5,5,6,5,4.75,5,5,5.1578947368421053,5.2,5.2857142857142856,5,5,6,5,5,5,5,5.2857142857142856,5,4,5.3030303030303028,4.75,5.3076923076923075,5.8888888888888893,5.25,4.333333333333333,6,4.75,5,6,5.5,5.5,5,5,4,5,4,5,5.666666666666667,5.5694444444444446,4.333333333333333,5.6111111111111107,5.666666666666667,5.5555555555555554,5.625,5.5,5.6111111111111107,6,6,6,4,4,4,4,4,2,3,3,3,3,3,3,3,3,3,3,3,3,3,3,3,3,3,3,3,3,3,3,3,3,3,null,3,null,3,4,5,5,3,2,4,1,5,4,4,4,4,4,4,4,4,4,4,3,2,4,4,3,2,1,2,1,2,3,5,5,5,5,5,1.5,5,5,1,5,5,1.5,5,5,5,1,5,4,4,4,4,4,4,4,4,5,4.5,4,4,4,4,5,4,4,4,4,4,4,4,"BFA",0.31,1,3,1,5,1,1,1073.43120141028,16.286705999999999,53.966842145800001,3.39,39.6,25.69,80,27360,274200,2,100,0,820.5,2.9140785853891118,33.70408207753907,76,11,3.2,96.8,70.05,28.31,1.635,null,0.24,-0.04]
["Burundi",2.7321428571428572,2.6129032258064515,2.78,2.9714285714285715,2.3333333333333335,3,2,2,3,3,3,3,3,3,2,2,2,2.875,3.3333333333333335,3,2.5714285714285716,3.25,null,3,5,null,2.5,3,2.5714285714285716,null,3.0526315789473686,3.5,2.1666666666666665,4.5999999999999996,3,2,4,3.5,null,null,null,2,2,2,null,null,2,2,null,3.8,2,2.3333333333333335,2.4,2,2.5,{"$error":"#DIV/0!"},2.3333333333333335,2,null,null,2,4,4,2,2,2,1.25,1,1,1,2,1.25,1.25,1.25,1.25,1,1,1,1,1,1,1,1,1,1,1,1,2,2,2,2,4,3,2,2,4,5,3,4,4,4,4,5,2,2,3,3,3,2,3,2,3,4,3,4,4,4,5,4,4,4,4,3,4.5,5,5,4,4,5,4,4,4,5,4,4,3.5,2,4,4,4,5,3,2.5,2.5,2,2,2,2,3,2,2.5,2,3,2.5,3,2,3,2,3,2,3,3,2,"BDI",0.28000000000000003,1,3,1,1,1,1,353.78483829575703,8.5188620000000004,null,2.875,33.299999999999997,11,90,2568,27830,2,100,19.75,1553,3.1911714557285586,34.848648062244898,72,46,null,null,77.08,17.010000000000002,5.9029999999999996,null,0.14000000000000001,-1.02]
["Cambodia",4.4285714285714288,4.6500000000000004,4.493150684931507,4.4905660377358494,4.5,5,4.0909090909090908,5,4.666666666666667,5.5,5.25,5,5,5,4.5,3.8571428571428572,5,4.8,4.666666666666667,4.7142857142857144,5,5,4,5,5,4.666666666666667,5,4.7142857142857144,5,5,4.3030303030303028,3.75,4.3076923076923075,4.666666666666667,4.75,3.3333333333333335,4.666666666666667,3.75,4.2,3,4,5,4,4,2,4,2,5,5,4.7083333333333339,3.3333333333333335,4.166666666666667,4.5555555555555554,3.7777777777777777,4.5,3.75,4.166666666666667,4.5,4.5,3.5,4,4,4,4,4,4,4,4,4,4,4,4.25,4,3.75,4,4,4,4,4,4,4,4,4,4,4,4,4,5,4,3,4,4,3,2,2,5,5,4,4,4,4,4,4,3,3,3,4,5,4,4,4,4,4,4,4,3,3,4,3,4,5,4,5,4,4,4,4,4,4,4.5,4,4,4,4,4,4.5,4,4,4,4,4,4,4,4,4,4,4,4,4,4,4.5,4,4,4,4,4,5,4,4,4,4,4,4,"KHM",0.49,2,2,3,13,1,1,1760.4259899231699,15.053112,80.144723396000003,1.643,44.2,20.11,78,17652,181035,3,91,74.67,32695,4.514481341698783,33.22293179783351,61,29,null,null,94,4.4870000000000001,1.5109999999999999,null,4.24,-0.9]
["Cameroon",2.9125000000000001,2.9,2.71875,2.5909090909090908,3,2.5714285714285716,3.0909090909090908,4,2,4,2.75,2,2,2,2.75,3.2857142857142856,4,2.8,2.6666666666666665,3,2.7142857142857144,2.25,2,2,4,2.6666666666666665,2,3,2.7142857142857144,2,2.4166666666666665,2.3333333333333335,2.625,2.2857142857142856,2,2.6666666666666665,2,2.3333333333333335,3,null,2,null,null,1,1,2,2,3,2,2.1428571428571428,2.6666666666666665,3.6875,3.5714285714285716,3.7777777777777777,3.5714285714285716,3.625,3.6875,5,4,4.5,4,4,4,4,3,2,2.75,3,3,2.25,2.75,2.5,2.75,3,2.75,2,3,4,3,3,3,3,3,2,2,3,2,3,3,2,3,null,3,null,3,3,4,3,4,2,4,3,4,2,2,4,4,4,5,4,5,4,5,5,5,4,4,5,4,4,4,5,4,4,4,3,3,3,4,4,2,2.5,4,3,3,4.5,3,3,2,4,4,5,4,4.5,5,5,4,4,4,5,4,4,4,4.5,4,4,4,5,4,4,4,5,4,"CMR",0.46,1,3,1,2,2,3,2047.39632051326,19.958351,null,2.2629999999999999,44.6,58.4,43,47271,475440,3,56,4.3780000000000001,14957,4.1748444936554554,19.619096473235377,74,47,null,null,76.09,16.79,7.1189999999999998,null,0.13,-1.1000000000000001]
["Canada",5.096385542168675,5.2424242424242422,5.0151515151515156,5.0576923076923075,4.8571428571428568,5,4.5714285714285712,6,4.333333333333333,6,5,5,4,5,5,4.4000000000000004,6,5.5263157894736841,5.5,5.666666666666667,5.4285714285714288,5,4,6,6,5.666666666666667,5.666666666666667,5.666666666666667,5.4285714285714288,null,4.7878787878787881,5.5,4.1538461538461542,5.4444444444444446,5.25,4,6,5.5,4.2,4,3.5,3,2,2,4,5,4,6,4.666666666666667,5.3472222222222223,4,5.4117647058823533,5.333333333333333,5.5,5.25,5.4285714285714288,5.4117647058823533,6,6,6,1,2,2,1,4,1,2.3125,2.5,2.25,2.5,2,2,2,3.25,2,2,2,4,2,2,2,3,2,2,2,4,2,2,2,2,2,4,3,2,2,3,4,3,4,3,3,4,4,3,3,4,3,5,3,1,5,4,4,4,4,4,4,4,5,2,2,2,2,4,3,3,4,3,3,2,2,2,3,4,2,2,1,2,2,4,4,4,4,4,4,4,3,4,4,4,3.5,4,4,3,3,3,4,3,3,4,4,4,4,"CAN",0.89,4,5,2,9,3,5,36038.540057999497,33.889747,3.3378506250000002,0.95699999999999996,32.6,80.58,20,909351,9984670,3,24,1.792,87255,4.9407903228540491,1.7371375359759709,100,100,null,null,11.77,19.559999999999999,68.680000000000007,4,0.18,2.0299999999999998]
["Cape Verde",3.9550561797752808,3.736842105263158,3.9130434782608696,3.9,3.9473684210526314,4.5714285714285712,3.5454545454545454,4,4.666666666666667,5,4.5,4,4,4,4,3.2857142857142856,4,3.5263157894736841,4.2,4,2.5714285714285716,3.25,5,5,null,3.6666666666666665,4.666666666666667,4,2.5714285714285716,4,4.129032258064516,4.5,4.416666666666667,4.625,2.75,3,4.666666666666667,4.5,4.4000000000000004,5,4.5,5,5,5,5,3,4,null,4,3.6875,3,4.0999999999999996,4.5,3.7,4.4444444444444446,3.5555555555555554,4.0999999999999996,5,5,3,4,4,4,4,4,5,3.3125,3.25,3,4,3,3.5,3.25,3.25,3.25,4,3,3,3,3,3,3,3,4,4,4,4,3,3,3,3,null,3,null,3,4,5,4,2,3,4,3,4,4,4,4,4,4,5,4,3,4,5,4,4,4,4,4,4,4,4,1,1,3.5,4,3,3,3,3,4,3,3,3,3,3,1,3,3,3,3,4,4,4,4,4,3,3,4,4,4,4,3,4,3,4,4,4,3,3,4,4,4,4,"CPV",0.53,2,3,1,5,2,3,3239.01974119036,0.51258199999999998,123.9266055046,1.421,50.4,61.09,40,403,4033,1,0,0,601.20000000000005,2.7790189719148706,9.2226402901503199,84,54,2.5,97.5,90.91,7.2729999999999997,1.8180000000000001,null,4.92,0.33]
["Central African Republic",null,null,null,null,null,null,null,null,null,null,null,null,null,null,null,null,null,null,null,null,null,null,null,null,null,null,null,null,null,null,null,null,null,null,null,null,null,null,null,null,null,null,null,null,null,null,null,null,null,null,null,null,null,null,null,null,null,null,null,null,null,null,null,null,null,null,null,null,null,null,null,null,null,null,null,null,null,null,null,null,null,null,null,null,null,null,null,null,null,null,null,null,null,null,null,null,null,null,null,null,null,null,null,null,null,null,null,null,null,null,null,null,null,null,null,null,null,null,null,null,null,null,null,null,null,null,null,null,null,null,null,null,null,null,null,null,null,null,null,null,null,null,null,null,null,null,null,null,null,null,null,null,null,null,null,null,null,null,null,null,null,null,null,"CAF",0.32,1,3,1,2,1,1,679.98848661397903,4.5059449999999996,null,1.881,43.6,38.94,61,62300,622984,2,100,2.355,33280,4.5221833176186861,54.349640531201807,67,34,null,null,1.4970000000000001,82.04,16.47,null,0.11,-1.02]
["Chad",3.0777777777777779,3.1282051282051282,3.0694444444444446,3.1132075471698113,2.9473684210526314,2.4285714285714284,2.9,5,2.6666666666666665,2.5,3,2,2,2,2.75,3,5,3.3,5,2,3.1428571428571428,3.25,5,5,5,5,5,2,3.1428571428571428,2,3,4,2.7692307692307692,3.6666666666666665,2,2,3.6666666666666665,4,2.6,5,3,2,2,2,2,2,2,3,2.3333333333333335,2.833333333333333,2,3.1111111111111112,3.1111111111111112,3.1111111111111112,3,3,3.1111111111111112,4,4,2,4,4,5,1,1,1,1.875,2.5,2,1,2,2.25,2.25,1.25,1.75,3,4,1,2,2,2,2,2,1,1,1,1,3,2,1,2,4,3,2,2,4,5,3,2,3,5,4,4,4,4,4,4,4,5,4,3,2,4,4,4,4,4,4,4,5,4,4,3,4,4,4,4,4,4,4.5,3,3,4,4,3,3.5,3,3,3,4,4,4,3,4,3,4,4,3,4,4,4.5,4,4,3.5,3,5,4,4,3,3,3,4,4,"TCD",0.3,1,3,1,2,1,1,1345.11253938699,11.506130000000001,null,2.7690000000000001,39.799999999999997,27.63,73,125920,1284000,2,95,65.12,3940,3.5954962218255742,12.518080499136438,50,9,null,null,51.77,24.11,24.11,null,25.89,-1.02]
["Chile",4.7826086956521738,4.2820512820512819,4.7222222222222223,5.1509433962264151,3.5263157894736841,3.5,3.6363636363636362,3,3,6,4.25,3,4,4,3,4,3,5,4.166666666666667,5.8571428571428568,4.8571428571428568,3.5,6,2,3,4.666666666666667,3.3333333333333335,5.8571428571428568,4.8571428571428568,6,5.2424242424242422,5.25,5.1538461538461542,5.4444444444444446,4.5,6,5.333333333333333,5.25,5.2,6,5,6,4,4,4,4,6,4,5.666666666666667,4.9722222222222223,6,5,5,5,4.8888888888888893,4.8888888888888893,5,6,6,6,4,5,5,4,2,2,4.5625,4.25,5,4,5,4.75,4.75,4.25,4.5,5,5,3,4,5,5,5,5,4,4,4,4,5,5,5,5,null,3,null,3,4,1,1,2,4,1,2,5,5,4,3,3,4,1,1,4,5,3,4,5,5,5,1,4,4,4,3,3,4.5,5,4,4,3,4,4,4,3,1,4,4,3,3,3,3,4,5,5,4,4.5,2,5,4,4,5,2,4,4,5,3,2,4,4,3,3,4,4,4,5,"CHL",0.78,4,1,2,8,2,4,13369.624432305,17.134708,22.170910803000002,1.002,52,89,12,74380,756102,3,12,4.1210000000000004,54868,4.7393191299647297,3.8072166906960874,96,96,null,null,70.28,9.1980000000000004,20.49,null,2.4700000000000002,1.55]
["China",4.924731182795699,4.3499999999999996,4.6986301369863011,4.7547169811320753,4.55,5,4.7272727272727275,2,5,5,5,5,5,5,5,4.5714285714285712,2,4.1500000000000004,3.8333333333333335,3.5714285714285716,5,4.75,4,4,4,3.6666666666666665,3.6666666666666665,3.5714285714285716,5,2,5.1212121212121211,4.5,4.9230769230769234,5.8888888888888893,4.5,5.333333333333333,5.333333333333333,4.5,5.4,5,5.5,5.5,5,5,5,4,5,2,4.666666666666667,5.1944444444444446,5.333333333333333,5.75,5.8,5.7,5.7777777777777777,5.666666666666667,5.75,6,6,6,4,3,3,4,5,1,4.375,4.75,4,4,4.75,4.5,4.5,4,4.5,5,5,4,5,4,4,4,4,4,4,4,4,5,5,4,5,4,3,2,2,3,4,4,3,4,5,5,5,5,4,4,4,3,4,4,3,4,5,4,4,3,4,4,3,3,3,3,3,3,4,3,4,4,4,3,4,4,3,4,3,3,2,4,4,3,3,3,4,2.5,4,3,3,4,4,4,2,3,3,4,3,2,2,4,4,4,4,3,2,"CHN",0.66,2,2,3,11,2,3,5510.5494281536403,1354.1464430000001,null,0.629,41.5,46.96,57,932748.9,9596961,3,32,0.96189999999999998,2112,3.3246939138617746,11.016583241058775,89,55,67,33,64.61,12.19,23.21,18,1.88,-0.41]
["Colombia",null,null,null,null,null,null,null,null,null,null,null,null,null,null,null,null,null,null,null,null,null,null,null,null,null,null,null,null,null,null,null,null,null,null,null,null,null,null,null,null,null,null,null,null,null,null,null,null,null,null,null,null,null,null,null,null,null,null,null,null,null,null,null,null,null,null,null,null,null,null,null,null,null,null,null,null,null,null,null,null,null,null,null,null,null,null,null,null,null,null,null,null,null,null,null,null,null,null,null,null,null,null,null,null,null,null,null,null,null,null,null,null,null,null,null,null,null,null,null,null,null,null,null,null,null,null,null,null,null,null,null,null,null,null,null,null,null,null,null,null,null,null,null,null,null,null,null,null,null,null,null,null,null,null,null,null,null,null,null,null,null,null,null,"COL",0.69,3,1,2,8,2,3,8212.0055921696294,46.300196,38.931760773800001,1.456,58.5,75.069999999999993,26,110950,1138910,3,66,0.93810000000000004,47365,4.675457541641209,7.9165464585316752,92,74,null,null,38.89,56.89,4.2220000000000004,null,3.76,-0.47]
["Comoros",null,null,null,null,null,null,null,null,null,null,null,null,null,null,null,null,null,null,null,null,null,null,null,null,null,null,null,null,null,null,null,null,null,null,null,null,null,null,null,null,null,null,null,null,null,null,null,null,null,null,null,null,null,null,null,null,null,null,null,null,null,null,null,null,null,null,null,null,null,null,null,null,null,null,null,null,null,null,null,null,null,null,null,null,null,null,null,null,null,null,null,null,null,null,null,null,null,null,null,null,null,null,null,null,null,null,null,null,null,null,null,null,null,null,null,null,null,null,null,null,null,null,null,null,null,null,null,null,null,null,null,null,null,null,null,null,null,null,null,null,null,null,null,null,null,null,null,null,null,null,null,null,null,null,null,null,null,null,null,null,null,null,null,"COM",0.43,1,3,1,1,1,1,1080.52009093685,0.69135100000000005,null,2.2930000000000001,64.3,28.19,72,186,2235,1,0,0,1412,3.1498346967157849,46.731411984417832,95,36,null,null,47,48,5,null,6.15,-0.73]
["Congo",2.6739130434782608,2.5,2.375,2.3684210526315788,2.3846153846153846,3,2,3.5,2,4,2.6666666666666665,null,1,1,2,2,3.5,2.7142857142857144,3.25,2,null,2,null,2,4,3.5,3,2,null,null,2.1666666666666665,null,2.4,2,2,2,2,null,2,null,2,2,null,1,1,1,1,4,2,2,2,3.3571428571428572,3.2857142857142856,3.4285714285714284,3.5,3.6666666666666665,3.3571428571428572,2,null,5,2,2,1,1,2,1,2,2,3,2,1,2,2,2,2,2,2,2,2,3,3,3,3,2,2,2,2,1,1,1,1,4,null,null,4,4,5,4,5,4,5,4,1,1,1,4,2,4,5,4,5,3,5,3,3,3,3,3,3,4,4,4,4,4,4,5,4,4,5,4,4,4,4,5,4,4,2,4,4,4,4,3,3,2,2,3,3,2,3,2,2.5,3,3,2.5,3,2,3,2,3,3,3,2,2,"COG",0.49,2,3,1,2,2,3,3647.2006503873499,3.7586780000000002,10.970119883000001,1.9079999999999999,47.3,62.12,39,34150,342000,3,80,73.319999999999993,230152,5.3620147532260383,4.213880774231507,71,30,null,null,8.6959999999999997,69.569999999999993,21.74,52,0.04,-0.94]
["Costa Rica",3.6142857142857143,2.90625,3.375,3.5128205128205128,3.0588235294117645,3.5,2.9090909090909092,3,4.5,2,4,3,4,3,3.25,2.7142857142857144,3,2.7333333333333334,2.6666666666666665,2.3333333333333335,3.1666666666666665,3.6666666666666665,4,null,2,2,2,2.3333333333333335,3.1666666666666665,2,4,5.25,3.8181818181818183,3.6666666666666665,null,null,5.333333333333333,5.25,3.5,2,3,4.5,5,5,5,null,null,null,5,3.6666666666666665,null,4.5714285714285712,4.625,4.5,4.7142857142857144,4.5,4.5714285714285712,4,4,5,3,3,5,5,4,4,2.4375,2.25,1.5,3,3,2.5,2.25,2.5,2.5,3,2,2,2,1,1,2,2,3,3,3,3,3,3,3,3,4,3,2,2,5,5,3,4,3,4,4,4,3,3,5,5,4,5,5,4,3,4,5,4,3,4,2,3,5,3,4,3,5,5,5,5,5,5,4,5,4.5,5,5,4,3.5,2,5,4,5,5,5,3.5,5,4,4,5,3,5,5,3,5,4,4,2,3,3,4,4,4,3,5,5,"CRI",0.73,3,1,2,7,2,4,10390.401883656599,4.6398270000000004,88.711585127199996,1.39,48.9,64.42,37,5106,51100,3,29,0,24873,4.3957281698646442,8.1579352860910035,97,95,null,null,53.36,29.48,17.16,null,2.61,0.88]
["Côte d'Ivoire",2.6538461538461537,2.56,2.4,2.1379310344827585,3.0909090909090908,3,2.5,5,3,3,3,null,3,1,2.6666666666666665,2.3333333333333335,5,2.1428571428571428,2.4,2,2,2,2,2,4,2,2,2,2,null,2.1333333333333333,2,2,2.5,2,2,2,2,2,2,2,null,null,1,1,1,1,2,2,2.25,2,3.5,3.2857142857142856,3.8,3.5,4.25,3.5,2,4.5,5,1,1,2,1,1,1,1.625,1,1.75,1,2.75,1.75,1.75,1.25,1.75,1,1,1,1,2,2,1,2,1,1,1,1,3,3,2,3,null,3,null,3,3,5,4,4,2,5,2,4,3,5,5,5,3,5,4,3,3,4,2,3,3,5,5,5,4,4,3,3,4.5,4,4,4,4,4,4,4,4,1,4,2,3,2,4,4,4,5,1,3,2,3,1,2,3,2,4,3,4,1,4,3,3,3,4,4,3,3,2,2,"CIV",0.4,1,3,1,5,2,2,1526.2455144492201,21.570746,64.525232352200007,2.282,48.4,50.56,51,31800,322463,3,55,5.2990000000000004,3941,3.5956064348656032,23.790597727660252,80,23,null,null,42.58,38.270000000000003,19.13,null,0.11,-0.86]
["Croatia",null,null,null,null,null,null,null,null,null,null,null,null,null,null,null,null,null,null,null,null,null,null,null,null,null,null,null,null,null,null,null,null,null,null,null,null,null,null,null,null,null,null,null,null,null,null,null,null,null,null,null,null,null,null,null,null,null,null,null,null,null,null,null,null,null,null,null,null,null,null,null,null,null,null,null,null,null,null,null,null,null,null,null,null,null,null,null,null,null,null,null,null,null,null,null,null,null,null,null,null,null,null,null,null,null,null,null,null,null,null,null,null,null,null,null,null,null,null,null,null,null,null,null,null,null,null,null,null,null,null,null,null,null,null,null,null,null,null,null,null,null,null,null,null,null,null,null,null,null,null,null,null,null,null,null,null,null,null,null,null,null,null,null,"HRV",0.77,4,4,4,17,3,4,17218.585371551599,4.4096590000000004,78.356504223100004,-0.15,29,57.74,43,5391,56594,3,63,64.27,23853,4.3775430081774003,5.6517437606207634,99,99,null,null,1.7430000000000001,84.63,13.63,null,0,0.23]
["Cuba",4.8426966292134832,4.9189189189189193,4.8115942028985508,4.7647058823529411,4.9444444444444446,5,4.9090909090909092,5,5,5,5,5,5,5,5,4.8571428571428568,5,4.8947368421052628,5.2,4.5714285714285712,5,5,5,5,null,5.333333333333333,5.333333333333333,4.5714285714285712,5,4,4.6875,4.75,4.916666666666667,5,4.5,3,5,4.75,4.8,5,5,5,5,5,4,4,3,null,5,4.75,3,4.95,4.8,5.0999999999999996,4.7777777777777777,5,4.95,5.5,5,5,4,4,2,2,2,2,4.25,4.5,4,4,4.5,4.25,4.25,4,4.5,4,5,4,5,4,4,4,4,4,4,4,4,5,4,4,5,4,3,2,2,5,5,4,2,4,4,5,5,3,3,4,3,4,4,4,4,4,4,5,5,3,3,4,3,5,5,1,1,5,4,4,5,5,5,5,4,5,4,4,4,1,1,5,5,5,5,5,5,4.5,4,5,5,5,5,4,5,5,5,5,null,5,5,null,5,5,5,4,5,"CUB",null,3,1,2,6,2,4,0,11.204351000000001,102.25546475439999,0.02,0,75.23,24,10982,110860,1,0,0,3402,3.5317343092765503,5.0256886636199543,94,91,null,null,74.650000000000006,15.45,9.9009999999999998,null,0.68,-0.13]
["Cyprus",4.615384615384615,4.7142857142857144,4.7166666666666668,4.958333333333333,3.75,4.75,3.6666666666666665,2,4,6,5,5,3,5,5.5,2.75,2,5.4375,5,6,5,5,5,5,null,5,5,6,5,6,4.71875,4.25,4.833333333333333,5.4444444444444446,3.5,4.333333333333333,5.333333333333333,4.25,5,5,5,4.5,5,5,5,2,5,null,4.333333333333333,4.4722222222222223,4.333333333333333,4.2777777777777777,4.333333333333333,4.2222222222222223,4.25,4.125,4.2777777777777777,5,5,null,5,5,3,1,4,1,3,3,3,3,3,3,3,3,3,3,3,3,3,3,3,3,3,3,3,3,3,3,3,3,3,null,3,null,3,4,5,4,2,4,5,3,5,5,5,4,4,3,3,3,3,5,3,3,5,5,5,4,4,2,4,1,1,5,5,5,5,5,5,3,4,5,5,5,4,1,3,5,5,5,5,5,5,5,5,5,5,5,5,5,5,5,5,3,5,5,5,3,3,5,5,5,5,"CYP",0.81,4,4,3,14,2,null,0,0.87972300000000003,85.720462652699993,1.02,0,70.319999999999993,30,924,9251,3,0,0,904.9,2.9566005882131767,2.371440787383015,100,100,14,86,74.55,23.65,1.7989999999999999,67,0.13,0.89]
["Czech Republic",5.0119047619047619,5,5.0882352941176467,5.1538461538461542,4.875,4.5,4.875,6,4.333333333333333,6,5.25,4,5,4,4.333333333333333,5.2,6,5.1052631578947372,5.8,4.7142857142857144,5,5.5,6,5,6,6,5.666666666666667,4.7142857142857144,5,3,5.1818181818181817,5.5,5,5.7777777777777777,4,5.333333333333333,6,5.5,4.2,6,6,4.5,6,6,4,2,5,6,4.666666666666667,4.8888888888888893,5.333333333333333,4.6875,4.875,4.5,4.7142857142857144,4.2857142857142856,4.6875,6,3,4,3,4,4,4,4,1,3.4375,3.5,3,3.5,3.75,3.25,3,3.75,3.75,3,3,4,4,3,3,3,3,3,3,4,4,4,3,4,4,4,null,null,4,2,2,2,2,2,1,4,2,3,2,3,3,3,3,3,3,3,3,5,4,3,3,2,2,2,2,2,2,3.5,3,2,4,3,4,2,3,2.5,3,2,3,2,3,3,2,4,3,4,2.5,2,3,2,3,3,2,3,2,2,3,2,2,2,2,2,2,3,2,2,2,"CZE",0.84,4,4,4,15,3,5,23340.9672369039,10.410786,132.24741013120001,0.41899999999999998,25.8,73.540000000000006,27,7725,78867,2,100,0,1274,3.1051694279993316,2.5828004742087236,100,98,null,null,1.766,41.76,56.5,32,0.13,0.38]
["Democratic People's Republic of Korea",2.896551724137931,2.657142857142857,2.6716417910447761,2.795918367346939,2.3333333333333335,3,2,2,3.3333333333333335,4,3,2,2,2,2,2,2,3,3,3.6,2.5714285714285716,2.5,3,3,2,3.5,3.5,3.6,2.5714285714285716,4,2.6875,2,2.4615384615384617,3.375,2,3.6666666666666665,3,2,2.8,2,2.5,2.5,2,2,2,2,2,2,2.3333333333333335,2.6875,3.6666666666666665,3.65,3.8,3.5,3.6666666666666665,3.3333333333333335,3.65,5,5,5,1,1,2,2,1,1,4.5,5,5,4,4,4.5,4.5,4.5,4.5,5,5,5,5,5,5,5,5,4,4,4,4,4,4,4,4,4,3,2,2,3,3,3,2,3,3,5,4,3,2,3,4,2,2,3,3,3,4,5,5,4,3,4,3,5,5,4,4,5,5,3,5,5,5,5,3,3,3,3,3,4,null,3,3,5,5,3,2,2.5,2,4,null,2,4,1,4,2,3,4,null,4,4,4,4,2,2,1,4,"PRK",null,2,2,3,11,2,2,0,23.990703,null,0.38900000000000001,0,60.22,37,12041,120538,3,43,13.16,3239,3.5104109480101768,0,100,0,null,null,71.819999999999993,12.42,15.75,null,605.9,-1.18]
["Democratic Republic of the Congo",null,null,null,null,null,null,null,null,null,null,null,null,null,null,null,null,null,null,null,null,null,null,null,null,null,null,null,null,null,null,null,null,null,null,null,null,null,null,null,null,null,null,null,null,null,null,null,null,null,null,null,null,null,null,null,null,null,null,null,null,null,null,null,null,null,null,null,null,null,null,null,null,null,null,null,null,null,null,null,null,null,null,null,null,null,null,null,null,null,null,null,null,null,null,null,null,null,null,null,null,null,null,null,null,null,null,null,null,null,null,null,null,null,null,null,null,null,null,null,null,null,null,null,null,null,null,null,null,null,null,null,null,null,null,null,null,null,null,null,null,null,null,null,null,null,null,null,null,null,null,null,null,null,null,null,null,null,null,null,null,null,null,null,"COD",0.24,1,3,1,2,1,1,297.10672576985002,67.827494999999999,29.032035202100001,2.7629999999999999,44.4,35.22,66,226705,2344858,3,100,29.85,19967,4.3003128179343699,43.355450426916605,46,23,null,null,17.68,62.57,19.75,null,7.0000000000000007E-2,-1.42]
["Denmark",4.375,4.25,4.2444444444444445,4.4444444444444446,3.4444444444444446,5.5,3.2,2,null,6,5.5,5,null,5,3.5,3,2,4.9090909090909092,3.3333333333333335,5.333333333333333,6,2,null,2,2,6,4,5.333333333333333,6,null,4.24,6,2.8,5.4285714285714288,2,4.666666666666667,6,6,3.3333333333333335,2,2,2,2,2,1,1,2,2,3.3333333333333335,3.7142857142857144,4.666666666666667,4.9090909090909092,5.2,4.666666666666667,5.2,5.2,4.9090909090909092,2,null,null,1,2,2,2,1,2,1.75,1.75,1.75,1.75,1.75,1,1,4,1,1,1,4,1,1,1,4,1,1,1,4,1,1,1,4,1,null,null,null,1,4,4,1,1,4,4,1,1,1,4,1,5,4,4,3,3,5,5,4,3,3,4,5,5,1,1,1,1,4,4,4,3,4,4,1,4,4,4,4,1,1,5,4,4,4,4,4,5,5,5,4,5,5,5,5,5,5,4,5,5,5,5,5,5,5,5,5,5,"DNK",0.87,4,5,4,16,3,5,34294.155359394601,5.4812830000000003,127.3732306122,0.23499999999999999,24.7,86.87,13,4243,43094,3,0,0,1099,3.0409976924234905,1.166862066420767,100,100,null,null,36.06,58.48,5.4550000000000001,98.484848484848484,0.17,2.2599999999999998]
["Djibouti",null,null,null,null,null,null,null,null,null,null,null,null,null,null,null,null,null,null,null,null,null,null,null,null,null,null,null,null,null,null,null,null,null,null,null,null,null,null,null,null,null,null,null,null,null,null,null,null,null,null,null,null,null,null,null,null,null,null,null,null,null,null,null,null,null,null,null,null,null,null,null,null,null,null,null,null,null,null,null,null,null,null,null,null,null,null,null,null,null,null,null,null,null,null,null,null,null,null,null,null,null,null,null,null,null,null,null,null,null,null,null,null,null,null,null,null,null,null,null,null,null,null,null,null,null,null,null,null,null,null,null,null,null,null,null,null,null,null,null,null,null,null,null,null,null,null,null,null,null,null,null,null,null,null,null,null,null,null,null,null,null,null,null,"DJI",0.4,1,3,1,1,1,1,1978.2307361242099,0.87905299999999997,null,1.762,39.9,76.23,13,2318,23200,3,51,0,353.4,2.5482665451707454,3.6318545624690866,92,56,100,0,15.79,84.21,0,95,17.66,-0.73]
["Dominica",2.396551724137931,2,2.1914893617021276,2.2571428571428571,2,2,2,null,2,2,2,2,2,2,2,2,null,2,null,2,2,2,null,null,null,null,null,2,2,null,2.4090909090909092,2.3333333333333335,2.1666666666666665,2.625,2.5,2,2.3333333333333335,2.3333333333333335,2.25,null,null,2,2,2,1,2,1,null,2,2.5625,2,3.2727272727272729,3.5,3,3.6,3.25,3.2727272727272729,2.5,3,3,4,4,4,4,4,2,2.625,2.75,2.5,2,3.25,2.25,3,2.75,2.5,2,3,3,3,2,3,3,2,2,2,2,2,3,4,3,3,null,null,null,1,2,3,3,2,1,3,2,2,2,1,3,1,3,3,4,3,3,4,4,4,4,3,4,3,3,3,1,1,4,3,4,4,3,3,3,3,3,3,4,3,1,3,3,3,4,4,3,3,3,3,3,3,3,3,3,2,3,3,3,3,2,2,3,3,3,3,3,3,"DMA",null,3,1,2,6,2,4,8037.50800055934,6.6515000000000005E-2,95.912117177100001,-0.28100000000000003,0,67.239999999999995,27,75,751,1,0,0,0,null,18.051347500298608,0,0,null,null,null,null,null,null,1.99,0.52]
["Dominican Republic",null,null,null,null,null,null,null,null,null,null,null,null,null,null,null,null,null,null,null,null,null,null,null,null,null,null,null,null,null,null,null,null,null,null,null,null,null,null,null,null,null,null,null,null,null,null,null,null,null,null,null,null,null,null,null,null,null,null,null,null,null,null,null,null,null,null,null,null,null,null,null,null,null,null,null,null,null,null,null,null,null,null,null,null,null,null,null,null,null,null,null,null,null,null,null,null,null,null,null,null,null,null,null,null,null,null,null,null,null,null,null,null,null,null,null,null,null,null,null,null,null,null,null,null,null,null,null,null,null,null,null,null,null,null,null,null,null,null,null,null,null,null,null,null,null,null,null,null,null,null,null,null,null,null,null,null,null,null,null,null,null,null,null,"DOM",0.66,2,1,2,6,2,3,7595.4267459856601,10.225482,197.76061720530001,1.4019999999999999,48.4,69.180000000000007,31,4832,48670,1,5,0,2110,3.3242824552976926,6.7213503358200004,86,83,null,null,64.28,33.86,1.865,null,3.11,-0.39]
["Ecuador",3.1847826086956523,3.2307692307692308,3.0555555555555554,3.1346153846153846,2.85,2.8571428571428572,2.8181818181818183,3,3.3333333333333335,3,3.25,2,2,2,3,2.7142857142857144,3,3.6315789473684212,3,3.8333333333333335,4,3.75,2,2,4,3.3333333333333335,3.3333333333333335,3.8333333333333335,4,2,2.8484848484848486,2.75,2.6923076923076925,3.5555555555555554,2.5,2,3,2.75,2.8,2,2,2,2,2,2,2,2,4,3,3.0277777777777777,2,3.65,4.3,3,4.2222222222222223,2.8888888888888888,3.65,4.5,4.5,4.5,1,4,4,1,4,4,1.4375,1.75,1,1,2,1.5,1.5,1.25,1.5,2,2,1,2,1,1,1,1,1,1,1,1,2,2,2,2,4,3,2,2,5,3,2,3,4,4,4,4,4,3,4,4,4,4,3,4,2,4,3,2,2,2,1,2,4,4,3,4,3,4,5,4,4,4,4,4,4,5,4,4,3.5,2,4,4,3,3,4,4,4,4,4,4,4,4,4,4,4,4,4,3,4,4,4,4,4,4,4,4,"ECU",0.7,3,1,2,8,2,3,7402.4858914266297,13.774908999999999,53.848424141599999,1.0620000000000001,54.4,66.95,34,27684,283561,3,60,0,31481,4.4980485193536124,6.8184261046053605,94,92,null,null,91.54,5.95,2.5259999999999998,null,5.59,-1.02]
["Egypt",4.0434782608695654,3.8205128205128207,3.9444444444444446,4,3.7894736842105261,4.5,3.0909090909090908,5.5,4,5,4.25,5,4,5,4,2.5714285714285716,5.5,3.85,3.8333333333333335,3.4285714285714284,4.2857142857142856,3.75,5,2,2,4.666666666666667,3.6666666666666665,3.4285714285714284,4.2857142857142856,4,4.0909090909090908,4.25,3.6153846153846154,5.1111111111111107,3.5,3.6666666666666665,5,4.25,3.6,4,4,4,4,4,2,4,5,2,3.6666666666666665,4.3055555555555554,3.6666666666666665,4.4000000000000004,4.3,4.5,4.2222222222222223,4.4444444444444446,4.4000000000000004,5,5,5,3,4,4,4,null,null,1.375,1.75,1,1,1.75,1,1.5,1.5,1.5,1,2,2,2,1,1,1,1,1,1,1,1,1,2,2,2,null,3,null,3,4,5,4,4,3,4,3,4,4,4,5,5,5,5,5,4,3,5,3,4,5,4,5,4,4,4,4,4,5,4,4,3,4,4,4,4,4,4,4,4,4,3,4,4,5,5,5,4,4.5,5,4,4,4,4,4,4,4,5,3,4,4,4,3,3,4,4,5,4,"EGY",0.62,2,3,1,3,2,3,5006.4157602876603,84.474427000000006,75.043480039900004,1.8129999999999999,32.1,43.4,57,99545,1001450,3,29,96.86,702.8,2.8468317528232574,13.981794653128102,99,94,100,0,86.38,7.76,5.8570000000000002,null,0.98,-0.28999999999999998]
["El Salvador",2.5324675324675323,2.53125,2.4333333333333331,2.4255319148936172,2.4615384615384617,2,2.8333333333333335,2.5,2,2,2,2,2,2,3.25,2,2.5,2.5789473684210527,2,3.5714285714285716,2,2,2,2,2,2,2,3.5714285714285716,2,4,2.3214285714285716,2,2,3.125,2,2,3,2,2,2,2,2,null,1,1,2,2,2,2,2.5625,2,2.8823529411764706,3.625,2.2222222222222223,3.8571428571428572,2.25,2.8823529411764706,2,3,4.5,1,5,5,2,2,2,2.1875,2,1.75,2.25,2.75,2,2,2.5,2.25,2,2,2,2,1,1,3,2,2,2,3,2,3,3,2,3,4,null,null,4,3,4,2,3,4,5,5,3,5,4,5,4,2,5,4,4,1,5,5,4,5,4,5,4,5,4,4,4,3,5,5,5,3,5,4.5,4,4.5,5,4,4,4,3,5,4,3,3,4,3,3.5,4,5,4,3,3,3,3,4,3,3,3,3,3,3,3,3,3,4,3,"SLV",0.66,2,1,2,7,2,3,6279.9388674563297,6.1941259999999998,291.0872167823,0.443,46.9,64.31,39,2072,21041,3,56,29.65,4113,3.6141587095091752,11.617977298393196,87,87,null,null,55.23,27.54,17.22,null,19.010000000000002,-0.54]
["Equatorial Guinea",null,null,null,null,null,null,null,null,null,null,null,null,null,null,null,null,null,null,null,null,null,null,null,null,null,null,null,null,null,null,null,null,null,null,null,null,null,null,null,null,null,null,null,null,null,null,null,null,null,null,null,null,null,null,null,null,null,null,null,null,null,null,null,null,null,null,null,null,null,null,null,null,null,null,null,null,null,null,null,null,null,null,null,null,null,null,null,null,null,null,null,null,null,null,null,null,null,null,null,null,null,null,null,null,null,null,null,null,null,null,null,null,null,null,null,null,null,null,null,null,null,null,null,null,null,null,null,null,null,null,null,null,null,null,null,null,null,null,null,null,null,null,null,null,null,null,null,null,null,null,null,null,null,null,null,null,null,null,null,null,null,null,null,"GNQ",0.54,2,3,1,2,1,1,31308.944527050699,0.69338500000000003,null,2.6019999999999999,0,39.700000000000003,61,2805,28051,3,80,0,39454,4.5960910402416042,2.7012431967911716,0,0,null,null,5.7469999999999999,79.31,14.94,null,null,-1.89]
["Eritrea",null,null,null,null,null,null,null,null,null,null,null,null,null,null,null,null,null,null,null,null,null,null,null,null,null,null,null,null,null,null,null,null,null,null,null,null,null,null,null,null,null,null,null,null,null,null,null,null,null,null,null,null,null,null,null,null,null,null,null,null,null,null,null,null,null,null,null,null,null,null,null,null,null,null,null,null,null,null,null,null,null,null,null,null,null,null,null,null,null,null,null,null,null,null,null,null,null,null,null,null,null,null,null,null,null,null,null,null,null,null,null,null,null,null,null,null,null,null,null,null,null,null,null,null,null,null,null,null,null,null,null,null,null,null,null,null,null,null,null,null,null,null,null,null,null,null,null,null,null,null,null,null,null,null,null,null,null,null,null,null,null,null,null,"ERI",null,1,3,1,1,1,1,584.27202963297998,5.2239940000000002,null,3.1040000000000001,0,21.58,79,10100,117600,3,52,55.56,1279,3.106870544478654,20.063252978929103,61,14,null,null,94.5,5.3259999999999996,0.17180000000000001,null,0,0.04]
["Estonia",4.5952380952380949,4.7435897435897436,4.75,4.9795918367346941,4.1578947368421053,4,4.0999999999999996,5,4,4,4.25,4,4,4,4.25,4,5,5.3,6,5,5,5.25,6,6,6,6,6,5,5,5,4.7586206896551726,5.25,4.666666666666667,5,4.5,4,5.666666666666667,5.25,4,null,5,5,5,5,1,4,2,5,5,4.75,4,3.9375,4,3.875,3.8571428571428572,3.7142857142857144,3.9375,5,null,5,4,4,4,4,4,4,3.9375,3.75,3.5,3.5,5,3.5,3.75,4.5,4,3,4,5,3,3,3,4,4,3,3,4,4,5,5,5,5,null,null,null,1,5,4,3,3,3,3,2,2,2,3,4,4,5,4,3,4,3,2,4,3,3,3,4,4,4,4,3,2,4.5,5,4,2,2,2,4,3,2.5,4,3,4,2.5,3,3,2,4,5,3,3.5,5,5,3,4,4,5,4,4.5,3,3,3,4,4,5,3,3,4,3,5,5,"EST",0.81,4,4,4,16,3,5,18638.8132171447,1.339459,29.643244079900001,-0.11,36,69.489999999999995,31,4239,45228,3,55,0.74960000000000004,9553,3.9801397777457543,3.2430589763570374,98,95,null,null,0.44540000000000002,3.0070000000000001,96.55,17,null,0.66]
["Ethiopia",4.1097560975609753,4.4375,4.015625,3.8846153846153846,4.583333333333333,4.5,4.8571428571428568,3,5,5,5.25,3,5,3,5.75,3.6666666666666665,3,4.3499999999999996,4.166666666666667,4.7142857142857144,4.1428571428571432,3.75,4,4,4,4.333333333333333,4.333333333333333,4.7142857142857144,4.1428571428571432,5,3.59375,3.75,3.6666666666666665,4.1111111111111107,2.5,3,4.666666666666667,3.75,4.5,5,2,2.5,2,2,null,2,3,3,4,3.3055555555555554,3,4.4444444444444446,4.4444444444444446,4.4444444444444446,4.375,4.375,4.4444444444444446,5,5,5,4,null,null,null,null,null,null,null,null,null,null,null,null,null,null,null,null,null,null,null,null,null,null,null,null,null,null,null,null,null,null,null,3,null,3,4,3,3,4,3,3,3,4,4,3,3,4,2,2,2,1,3,2,4,3,4,4,2,2,4,4,4,4,4,4,3,3,4,4,4,3,4,3,3,3,4,3,4,4,4,4,2,2,1,2,2,2,2,1,1,1.5,2,2,2,2,2,1,2,2,2,2,1,1,"ETH",0.33,1,3,1,1,1,1,802.40320016619,84.975605999999999,71.738657973399995,2.5880000000000001,29.8,16.66,83,100000,1104300,2,88,0,1512,3.1795517911651876,47.070591004807653,38,12,null,null,93.63,5.9909999999999997,0.37780000000000002,null,272.57,-0.35]
["Fiji",3.161290322580645,2.7,2.9589041095890409,3.2075471698113209,2.2999999999999998,2.4285714285714284,2.2727272727272729,2,2.6666666666666665,2.5,3,2,3,2,2.5,2.1428571428571428,2,3.1,3,3.8571428571428572,2.4285714285714284,2.5,4,2,2,3.3333333333333335,2.6666666666666665,3.8571428571428572,2.4285714285714284,3,3.2727272727272729,3.5,3.1538461538461537,3.7777777777777777,3.25,2,4,3.5,3.2,4,2,2,4,4,2,2,2,3,3.3333333333333335,3.5138888888888888,2,3.9,4,3.8,4,3.7777777777777777,3.9,4,4,4.5,4,4,4,2,4,1,4,4,4,4,4,4,4,4,4,4,4,4,4,4,4,4,4,4,4,4,4,4,4,4,4,null,3,null,3,1,4,4,3,3,4,3,4,2,2,4,4,3,5,5,4,4,5,3,3,4,4,5,5,4,4,3,3,4,4,4,4,4,3,4,4,4,3,4,4,3,3,4,4,4,4,3,3,2.5,3,3,3,3,3,2,3,3,3,3,2,3,3,3,3,3,3,2,3,"FIJ",0.67,2,2,5,20,2,4,4050.7498124631402,0.85409800000000002,null,0.62,0,51.86,48,1827,18274,1,0,0,33827,4.5292634834155852,47.070591004807653,0,0,null,null,61.2,28.03,10.77,null,10.08,0.12]
["Finland",5.4556962025316453,5.628571428571429,5.4776119402985071,5.5192307692307692,5.333333333333333,5.666666666666667,4.8571428571428568,6,6,6,6,5,6,5,6,4.4000000000000004,6,5.85,5.833333333333333,5.7142857142857144,6,5.75,6,5,6,6,5.666666666666667,5.7142857142857144,6,6,5.3125,4.75,5.333333333333333,5.7777777777777777,5.25,4.666666666666667,6,4.75,5.25,6,4,6,6,6,1,5,4,6,5.666666666666667,5.5138888888888893,4.666666666666667,5.333333333333333,5.4,5.2857142857142856,5.4,5.333333333333333,5.333333333333333,5,null,5,3,2,2,3,5,1,4,4.5,4.5,3.5,3.5,3.5,null,4.5,null,4,null,5,null,4,null,5,null,3,null,4,null,3,null,4,null,null,null,null,1,1,2,2,null,3,1,3,2,1,1,3,2,3,2,3,3,3,3,4,4,3,3,3,3,2,2,2,2,3,3,3,2,3,3,2,3,3,2,2,3,2,3,3,3,3,3,3,4,2.5,4,4,2,4,2,4,2,4,3,3,3,2,2,3,3,4,4,3,2,"FIN",0.87,4,5,4,16,3,5,33471.653362855301,5.3458259999999997,15.7004025537,0.38300000000000001,26.9,85.09,37,30409,338145,3,51,2.7269999999999999,20739,4.3167878116020955,2.7469664168403911,100,100,null,null,3.06,24.72,72.22,12.555066079295152,0,2.39]
["France",5.6860465116279073,5.7142857142857144,5.7058823529411766,5.784313725490196,5.4705882352941178,5.833333333333333,5.1111111111111107,6,6,6,5.75,5,6,5,5.5,5,6,5.9444444444444446,6,6,5.833333333333333,6,6,6,6,6,6,6,5.833333333333333,null,5.6969696969696972,5.75,5.6923076923076925,6,5.25,5.333333333333333,6,5.75,5.6,6,6,6,5,5,5,5,5,6,5.666666666666667,5.625,5.333333333333333,5.6111111111111107,5.5555555555555554,5.666666666666667,5.5,5.625,5.6111111111111107,6,6,6,2,4,5,5,4,4,2.5833333333333335,2.3333333333333335,2.3333333333333335,2.6666666666666665,3,2.5,1,4.25,null,2,1,4,null,2,1,4,null,3,1,4,null,3,1,5,null,4,3,2,2,3,5,3,3,4,null,4,4,2,2,5,5,5,4,3,3,5,null,5,5,5,5,4,4,1,1,3,4,2.5,1,3,4,4,4,1,4,4,3,3,5,3.5,3,4,4,4,1,5,5,3.5,4,4,4,4,3,2,3,4,5,4,3,3,3,4,4,5,5,4,3,"FRA",0.87,4,5,4,18,3,5,31576.531881410399,62.636580000000002,112.92372076159999,0.52500000000000002,32.700000000000003,85.25,23,54766,643801,3,48,5.2130000000000001,3401,3.5316066319327222,2.074300556625015,100,100,null,null,12.41,18.260000000000002,69.319999999999993,18,0.28000000000000003,1.45]
["Gabon",3.0681818181818183,2.7027027027027026,2.6857142857142855,2.7307692307692308,2.5555555555555554,2,3,2,2,2,2,2,2,2,3,3,2,2.8421052631578947,2.4,3.7142857142857144,2.2857142857142856,2,3,null,2,2.3333333333333335,2,3.7142857142857144,2.2857142857142856,2,2.6666666666666665,2,2.6923076923076925,3,2,3.3333333333333335,3.3333333333333335,2,2.6,2,2,2,4,4,2,2,6,2,3.3333333333333335,2.5,3.3333333333333335,4.5555555555555554,4.666666666666667,4.4444444444444446,4.5,4.375,4.5555555555555554,5.5,4,5.5,4,5,5,1,4,1,3.5625,4.25,3,3,4,3.5,3.5,3.75,3.5,4,4,5,4,3,3,3,3,3,3,3,3,4,4,4,4,null,null,null,1,4,5,5,5,4,5,3,1,3,1,3,3,4,5,5,5,4,5,3,1,3,1,3,3,5,3,3,1,5,5,5,4,5,5,4,5,3,5,4,3,2,3,5,1,5,5,4,3.5,5,4,4,5,4,5,5,4.5,4,5,3,4,5,4,3,3,4,3,5,5,"GAB",0.65,2,3,1,2,2,4,13426.9565132936,1.501266,null,1.841,41.5,86.03,15,25767,267667,3,85,0,113260,5.05407655729051,4.7586008931312893,87,33,null,null,38.46,52.77,8.7690000000000001,null,0,-0.55000000000000004]
["Gambia",3.4666666666666668,3.7586206896551726,3.2033898305084745,3.0851063829787235,3.6666666666666665,3.5,3.375,5,3.5,null,3.6666666666666665,null,3,null,4.333333333333333,2.8,5,3.8235294117647061,4,5,2.3333333333333335,2.5,2,3,null,5.5,4.666666666666667,5,2.3333333333333335,5,2.6666666666666665,2,2.4166666666666665,3.5,2.25,3,2,2,2.5,2,2,2,2,null,null,null,null,2,3,2.875,3,4.4375,4.5,4.375,4.2857142857142856,4.1428571428571432,4.4375,6,6,6,4,4,5,1,1,1,4.0625,4,4,4,4.25,4.25,4,4,4,4,4,4,4,4,4,4,4,4,4,4,4,5,4,4,4,4,3,2,2,5,4,4,4,4,5,4,4,3,3,3,3,4,5,3,4,4,4,5,4,3,4,3,4,5,4,4,4,4.5,5,5,5,5,5,4.5,4,5,4,4,4,4,4,5,5,4,5,5,5,5,4,5,5,4,5,5,5,5,5,5,4,5,5,5,null,5,5,5,5,"GMB",0.39,1,3,1,5,1,1,1259.61650052907,1.750732,null,2.746,47.3,58.15,43,1000,11295,3,55,62.5,4819,3.6829569263012085,29.415509474611202,92,67,19.600000000000001,80.400000000000006,28.05,47.55,24.4,null,2.98,-0.83]
["Georgia",3,3.074074074074074,3.1224489795918369,3.263157894736842,2.6363636363636362,2.3333333333333335,2.6666666666666665,3,2,3,2.3333333333333335,null,1,1,3,2.5,3,3.375,2,4,3.1428571428571428,2.75,null,2,2,null,2,4,3.1428571428571428,6,3.1818181818181817,2.6666666666666665,2.7777777777777777,4,2.5,null,4,2.6666666666666665,2.6666666666666665,null,2,3.5,2,2,1,1,1,3,3.3333333333333335,3.25,null,2.5714285714285716,2.375,2.8333333333333335,2.4285714285714284,2.8,2.5714285714285716,2.5,2.5,2.5,1,4,4,4,4,2,3.375,3,3.75,3,3.75,3.5,3.5,3,3.5,3,3,3,3,4,4,3,4,3,3,3,3,4,4,3,4,4,null,null,4,4,4,2,3,2,4,4,3,3,3,4,3,4,4,3,4,3,4,3,2,2,2,2,2,3,2,2,3,4.5,4,4,4,4,4,2.5,4,3,4,3,3,2.5,3,3,3,4,5,4,2,4.5,4,4,4,2,4,4,3,3,3,3,3,3,3,3,3,2,2,4,5,"GEO",0.7,3,4,3,14,2,3,4525.7771383509898,4.2191910000000004,62.895265423200001,-1.1299999999999999,40.799999999999997,52.75,47,6949,69700,3,56,8.2110000000000003,14704,4.1674354940420359,11.839956174620831,98,95,null,null,65.08,22.09,12.83,33.867982726711908,3.38,-1.03]
["Germany",5.6621621621621623,5.4230769230769234,5.6071428571428568,5.75,5.083333333333333,5.5,4.5,6,5.5,6,5.5,5,5,5,4.5,4.5,6,5.7142857142857144,5.8,5.5,6,5.5,6,5,6,6,5.5,5.5,6,null,5.7666666666666666,5,5.7272727272727275,6,6,6,6,5,5.8,6,6,null,5,5,5,6,1,6,5.5,6,6,5.833333333333333,5.7777777777777777,5.8888888888888893,5.75,5.875,5.833333333333333,6,6,6,4,2,2,4,4,5,1.875,2,1.5,2,2,1.75,1.5,3.25,1,2,1,4,1,1,1,3,1,2,1,4,1,2,3,2,1,null,null,null,1,2,2,3,4,3,3,3,1,1,1,3,3,3,2,5,4,5,4,4,null,3,3,1,2,1,1,1,1,2,3,1,1,3,4,1,1,3,1,1,3,1,1,3,3,1,3,5,5,3,5,4,4,4,4,3,4,5,4,4,4,4,4,4,4,5,5,3,3,"DEU",0.89,4,5,4,18,3,5,33664.585239308202,82.056775000000002,229.97314022969999,-8.5999999999999993E-2,28.3,73.849999999999994,26,34877,357022,3,71,30.52,1872,3.2723058444020863,0.87539782769472585,100,100,null,null,0.25080000000000002,15.88,83.87,18.034055727554183,0.03,1.82]
["Ghana",4.9113924050632916,5.1212121212121211,5.129032258064516,5.3469387755102042,4.3076923076923075,4.333333333333333,4,5.5,3.5,6,4.25,null,2,1,3.5,4.5,5.5,5.65,5.333333333333333,5.8571428571428568,5.7142857142857144,5.75,2,6,6,6,6,5.8571428571428568,5.7142857142857144,5,5.1379310344827589,4.5,5.5,5,5,5,4.333333333333333,4.5,5.75,5,5,5.5,4,4,null,5,1,6,6,5,5,4.117647058823529,3.625,4.5555555555555554,3.8571428571428572,4.5,4.117647058823529,3.5,4.5,5,5,4,5,2,4,1,3.75,4.25,3.75,4,3,3.75,3.75,3.75,3.75,4,4,5,4,4,4,3,4,4,4,4,4,3,3,3,3,4,3,2,2,4,5,4,5,2,4,5,5,4,2,4,3,4,5,2,2,1,5,5,5,5,3,1,2,5,5,5,4,3.5,3,5,5,3,4,5,4,4.5,4,4,5,4.5,3,5,4,3,4,4,5,5,5,5,5,5,5,5,5,5,4,5,5,5,5,5,5,5,5,5,5,"GHA",0.47,2,3,1,5,2,2,1342.15560778129,24.332754999999999,96.007374241700006,2.093,42.8,51.47,50,22754,238533,3,89,43.05,2278,3.3575537197430814,32.604155696596969,82,13,null,null,66.400000000000006,23.93,9.6739999999999995,null,0.65,-0.4]
["Greece",3.8431372549019609,3.3157894736842106,3.6904761904761907,3.6486486486486487,4,4.666666666666667,null,3,4.5,5,4.666666666666667,null,4,null,null,null,3,3.0714285714285716,3.6,2,4.333333333333333,4.333333333333333,4,4,3,3.5,3.5,2,4.333333333333333,null,4,4.5,3.6,4.625,3.3333333333333335,null,5,4.5,3.5,4,4,4,4,4,4,3,null,2,4,3.979166666666667,null,4.5555555555555554,4,5,4,5,4.5555555555555554,5,4,null,null,null,null,null,4,null,null,null,null,null,null,null,null,null,null,null,null,null,null,null,null,null,null,null,null,null,null,null,null,null,null,null,null,null,1,4,4,3,3,4,3,null,null,null,null,null,null,2,2,null,null,null,null,4,4,4,4,4,4,4,4,4,4,4,4,4,3,4,3,4,5,5,4,4,4,4,null,5,5,4,4,5,5,4,5,3,5,5,null,4,5,4,5,4,null,5,5,4,4,5,5,4,null,"GRC",0.86,4,5,4,17,3,5,27598.7009883266,11.183393000000001,85.157043582399993,0.215,34.299999999999997,61.41,39,12890,131957,3,19,21.89,6667,3.8239304551255637,3.6461861667786173,100,98,null,null,89.3,8.9329999999999998,1.7629999999999999,38.590001056970721,1.44,0.57999999999999996]
["Grenada",2.4,2.4545454545454546,2.4262295081967213,2.4565217391304346,2.3333333333333335,3.3333333333333335,2,3,3.5,3,3,null,3,1,2,2,3,2.5555555555555554,2,3.4285714285714284,2,2,2,2,null,2,2,3.4285714285714284,2,3,2.3928571428571428,2,2.1,2.8888888888888888,2.25,3,2.3333333333333335,2,2.25,2,2,2,2,2,1,2,1,null,2,2.5694444444444446,3,2.2857142857142856,2.5,2,2.5,2,2.2857142857142856,null,3,2,null,null,null,null,null,null,null,null,null,null,null,null,null,null,null,null,null,null,null,null,null,null,null,null,null,null,null,null,null,null,null,4,3,2,2,5,5,5,2,2,2,4,4,5,5,5,5,5,5,5,2,4,3,5,5,5,5,5,5,5,5,3,3,5,5,5,5,5,5,5,4,4,5,5,4,3,3,4,4,5,5,5,5,5,4,5,5,4,5,5,5,5,5,3.5,4,5,5,3,4,5,5,5,5,"GRD",null,3,1,2,6,2,4,7894.2975394432697,0.104342,318.25581395350002,0.35599999999999998,0,39.29,69,34,344,1,0,0,0,null,5.5600536859498586,0,98,null,null,null,null,null,null,0,0.71]
["Guatemala",3.0853658536585367,2.9117647058823528,2.875,2.8222222222222224,3,2.7142857142857144,3.2727272727272729,2,3.3333333333333335,2,3.25,2.5,4,3,3.75,3,2,2.8,3.25,2.4,2.8333333333333335,2.5,2,2,null,4.5,3,2.4,2.8333333333333335,2,2.8333333333333335,2.75,2.5833333333333335,3.625,2.25,2.5,4,2.75,3,2,2.5,2,null,1,3,2,2,2,2.3333333333333335,2.9375,2.5,3.8333333333333335,3.8888888888888888,3.7777777777777777,3.875,3.75,3.8333333333333335,4,4,5,1,5,5,4,2,1,1.9375,2.25,2,1.5,2,2.25,1.75,1.75,2,3,2,2,2,2,2,2,2,2,1,1,2,2,2,2,2,4,3,2,2,3,5,3,4,2,5,5,5,3,3,3,2,4,5,4,5,4,5,5,5,4,4,3,3,5,4,5,2,5,5,5,5,4,5,4.5,3,4.5,4,4,3,3.5,3,5,4,5,5,4,4,4,4,4,1,4,4,3,1.5,2,3,3,4,1,2,3,3,4,4,4,4,"GTM",0.56000000000000005,2,1,2,7,2,3,4399.9717031627597,14.376880999999999,125.6124585587,2.4649999999999999,53.7,49.46,51,10716,108889,3,73,1.86,8132,3.9101973699660011,12.463946405652827,94,81,null,null,54.89,14.65,30.44,null,6.34,-0.71]
["Guinea",3.0697674418604652,3.2,3.0697674418604652,2.6285714285714286,5,3.3333333333333335,6,6,2,6,4,null,2,1,6,6,6,2.3529411764705883,2.6666666666666665,2.2857142857142856,2,2,2,2,4,2.6666666666666665,2.6666666666666665,2.2857142857142856,2,2,2.8888888888888888,3.25,2.75,3,2.6666666666666665,3,3.3333333333333335,3.25,2.3333333333333335,null,2,2,2,2,1,1,1,4,3.5,2.833333333333333,3,null,null,null,{"$error":"#DIV/0!"},{"$error":"#DIV/0!"},{"$error":"#DIV/0!"},null,null,null,1,5,4,1,1,1,1,1,1,1,1,1,1,1,1,1,1,1,1,1,1,1,1,1,1,1,1,1,1,1,1,4,3,2,2,5,4,4,5,4,5,4,4,4,4,4,4,3,5,3,5,3,5,4,5,4,4,4,4,5,5,4,4,5,5,4,5,5,4,5,4,4,3,5,4,4,3,4,4,5,5,4,5,5,5,5,4,5,5,4,5,4,5,4,4,5,5,4,4,5,5,5,5,"GIN",0.34,1,3,1,5,1,1,1112.8374623361001,10.323755,41.418084496299997,2.2599999999999998,43.3,35.36,66,24572,245857,3,83,0,22984,4.3614256129838909,23.087570654824383,71,19,null,null,83.95,12.86,3.2160000000000002,null,2.27,-0.57999999999999996]
["Guinea-Bissau",null,null,null,null,null,null,null,null,null,null,null,null,null,null,null,null,null,null,null,null,null,null,null,null,null,null,null,null,null,null,null,null,null,null,null,null,null,null,null,null,null,null,null,null,null,null,null,null,null,null,null,null,null,null,null,null,null,null,null,null,null,null,null,null,null,null,null,null,null,null,null,null,null,null,null,null,null,null,null,null,null,null,null,null,null,null,null,null,null,null,null,null,null,null,null,null,null,null,null,null,null,null,null,null,null,null,null,null,null,null,null,null,null,null,null,null,null,null,null,null,null,null,null,null,null,null,null,null,null,null,null,null,null,null,null,null,null,null,null,null,null,null,null,null,null,null,null,null,null,null,null,null,null,null,null,null,null,null,null,null,null,null,null,"GNB",0.28999999999999998,1,3,1,5,1,1,497.09225766984702,1.6473800000000001,null,2.2429999999999999,35.5,30,70,2812,36125,1,45,48.39,19683,4.2940912924769616,0,60,21,null,null,82.29,13.14,4.5709999999999997,17.714285714285715,0.06,-0.61]
["Guyana",null,null,null,null,null,null,null,null,null,null,null,null,null,null,null,null,null,null,null,null,null,null,null,null,null,null,null,null,null,null,null,null,null,null,null,null,null,null,null,null,null,null,null,null,null,null,null,null,null,null,null,null,null,null,null,null,null,null,null,null,null,null,null,null,null,null,null,null,null,null,null,null,null,null,null,null,null,null,null,null,null,null,null,null,null,null,null,null,null,null,null,null,null,null,null,null,null,null,null,null,null,null,null,null,null,null,null,null,null,null,null,null,null,null,null,null,null,null,null,null,null,null,null,null,null,null,null,null,null,null,null,null,null,null,null,null,null,null,null,null,null,null,null,null,null,null,null,null,null,null,null,null,null,null,null,null,null,null,null,null,null,null,null,"GUY",0.61,2,1,2,8,2,3,2349.1966308022502,0.76144199999999995,3.5641557619999999,-6.3E-2,43.2,28.6,72,19685,214969,1,76,0,315858,5.4994918811096198,24.573076365368202,94,81,null,null,97.56,1.829,0.60980000000000001,null,0,-0.5]
["Haiti",2.4444444444444446,2.1052631578947367,2.23943661971831,2.2452830188679247,2.2222222222222223,2.4,2.1818181818181817,2,2,4,2.5,2,2,2,2.5,2,2,2,2,2,2,2,2,2,2,2,2,2,2,2,2.393939393939394,2,2,3,3,2,2.3333333333333335,2,2,2,2,2,2,2,2,3,2,2,2,3,2,3.2105263157894739,3.4444444444444446,3,3.5,3,3.2105263157894739,3,3,3,1,1,1,1,1,1,2.5,3,2,2,3,2.5,2.5,2.5,2.5,3,3,3,3,2,2,2,2,2,2,2,2,3,3,3,3,4,null,null,4,3,5,null,3,4,4,4,2,3,3,4,4,5,5,5,5,5,5,5,5,5,5,5,5,5,3,3,3,5,5,5,5,5,5,4,3,4,5,5,4,3,4,5,3,5,5,5,5,5,5,5,5,5,5,5,5,5,5,5,5,5,5,5,5,5,5,5,5,"HTI",0.4,1,1,2,6,1,1,1087.7401113963299,10.188174999999999,null,1.589,59.5,52.09,53,2756,27750,1,27,7.2370000000000001,1421,3.1525940779274699,0,63,17,null,null,77.5,18.77,3.75,null,13.72,-1.7]
["Honduras",null,null,null,null,null,null,null,null,null,null,null,null,null,null,null,null,null,null,null,null,null,null,null,null,null,null,null,null,null,null,null,null,null,null,null,null,null,null,null,null,null,null,null,null,null,null,null,null,null,null,null,null,null,null,null,null,null,null,null,null,null,null,null,null,null,null,null,null,null,null,null,null,null,null,null,null,null,null,null,null,null,null,null,null,null,null,null,null,null,null,null,null,null,null,null,null,null,null,null,null,null,null,null,null,null,null,null,null,null,null,null,null,null,null,null,null,null,null,null,null,null,null,null,null,null,null,null,null,null,null,null,null,null,null,null,null,null,null,null,null,null,null,null,null,null,null,null,null,null,null,null,null,null,null,null,null,null,null,null,null,null,null,null,"HND",0.6,2,1,2,7,2,3,3664.4578041612999,7.6155840000000001,68.510711872800002,1.9950000000000001,55.3,51.6,52,11189,112090,3,22,0,13107,4.1175032994292309,13.112342466860309,86,71,null,null,57.79,17.39,24.83,null,143.61000000000001,-0.78]
["Hungary",null,null,null,null,null,null,null,null,null,null,null,null,null,null,null,null,null,null,null,null,null,null,null,null,null,null,null,null,null,null,null,null,null,null,null,null,null,null,null,null,null,null,null,null,null,null,null,null,null,null,null,null,null,null,null,null,null,null,null,null,null,null,null,null,null,null,null,null,null,null,null,null,null,null,null,null,null,null,null,null,null,null,null,null,null,null,null,null,null,null,null,null,null,null,null,null,null,null,null,null,null,null,null,null,null,null,null,null,null,null,null,null,null,null,null,null,null,null,null,null,null,null,null,null,null,null,null,null,null,null,null,null,null,null,null,null,null,null,null,null,null,null,null,null,null,null,null,null,null,null,null,null,null,null,null,null,null,null,null,null,null,null,null,"HUN",0.81,4,4,4,15,3,5,18040.406992541499,9.973141,107.9050178441,-0.20799999999999999,30,68.099999999999994,32,8961,93028,2,100,94.23,10388,4.0165319409572655,4.1387672194622516,100,100,null,null,5.5810000000000004,11.93,82.49,null,0.25,0.6]
["Iceland",5.2352941176470589,5.1724137931034484,5.4909090909090912,5.9024390243902438,4.2857142857142856,4.4000000000000004,4.2222222222222223,null,6,6,6,2,6,2,4.666666666666667,4,null,6,6,6,6,6,6,null,null,6,6,6,6,6,5.8461538461538458,6,6,6,6,2,6,6,6,6,6,6,6,6,1,6,1,null,6,6,2,4.1538461538461542,5.1428571428571432,3,5,3.2,4.1538461538461542,4,null,4,1,2,2,1,2,null,5,5,5,5,5,5,5,5,5,5,5,5,5,5,5,5,5,5,5,5,5,5,5,5,5,null,null,null,1,1,1,1,1,1,1,1,1,1,1,1,1,3,3,3,3,3,3,3,3,3,3,3,3,1,1,1,1,4.5,4,4,5,4,3,1,4,3,5,4,4,1,1,4,2,5,4,4,5,4.5,5,5,4,5,4,5,4.5,5,4,null,4,5,4,null,null,5,5,5,4,"ISL",0.87,4,5,4,16,3,5,35544.710015284298,0.32927899999999999,3.1005339805999999,2.149,0,93.42,8,10025,103000,3,0,0,539683,5.7321387380161619,6.1892035063407675,100,100,56,44,42.42,49.09,8.4849999999999994,96.969696969696969,0,2.19]
["India",null,null,null,null,null,null,null,null,null,null,null,null,null,null,null,null,null,null,null,null,null,null,null,null,null,null,null,null,null,null,null,null,null,null,null,null,null,null,null,null,null,null,null,null,null,null,null,null,null,null,null,null,null,null,null,null,null,null,null,null,null,null,null,null,null,null,null,null,null,null,null,null,null,null,null,null,null,null,null,null,null,null,null,null,null,null,null,null,null,null,null,null,null,null,null,null,null,null,null,null,null,null,null,null,null,null,null,null,null,null,null,null,null,null,null,null,null,null,null,null,null,null,null,null,null,null,null,null,null,null,null,null,null,null,null,null,null,null,null,null,null,null,null,null,null,null,null,null,null,null,null,null,null,null,null,null,null,null,null,null,null,null,null,"IND",0.52,2,2,3,12,2,3,2747.4392049941898,1214.4643120000001,349.89473005349998,1.431,36.799999999999997,30.01,71,297319,3287263,3,44,30.52,1618,3.2089785172762535,18.142922555774607,88,31,null,null,90.41,7.359,2.234,32.982917214191851,3.51,-0.25]
["Indonesia",3.3863636363636362,3.2162162162162162,3.2285714285714286,3.3269230769230771,2.9444444444444446,3.1666666666666665,2.9090909090909092,2,3.6666666666666665,4,3.75,2,4,2,3,2.8571428571428572,2,3.4736842105263159,3.1666666666666665,3.5,3.7142857142857144,3.5,3,3,2,3.6666666666666665,3.6666666666666665,3.5,3.7142857142857144,3,3.2424242424242422,3.25,3.1538461538461537,3.5555555555555554,3.5,2.3333333333333335,3.6666666666666665,3.25,3.4,3,3.5,4,3,3,3,3,2,2,3,3.5277777777777777,2.3333333333333335,4,4.1111111111111107,3.8888888888888888,4,3.75,4,5,5,4.5,4,3,3,1,4,1,2.5,2,3,2,3,2.5,2.5,2.5,2.5,2,2,2,2,3,3,3,3,2,2,2,2,3,3,3,3,4,null,null,4,4,4,4,3,3,4,4,3,4,3,4,3,4,5,5,3,3,4,4,3,4,4,4,3,4,4,3,3,4,3,3,4,3,4,4,4,3.5,4,3,4,3,2,4,3,4,4,4,4,4,4,4,3,4,3,4,2,3,3,3,3,2,2,3,3,4,4,4,4,"IDN",0.6,2,2,3,13,2,3,3674.0161869027502,232.51677100000001,119.5874157675,1.179,37.6,44.28,48,181157,1904569,3,6,0,8881,3.9484618700612835,14.258722632651285,80,52,null,null,81.87,11.59,6.53,15.542806707855251,2.06,-1.1599999999999999]
["Iran (Islamic Republic of)",4.5053763440860219,4.2249999999999996,4.506849315068493,4.4716981132075473,4.5999999999999996,4.8571428571428568,4.1818181818181817,6,4.666666666666667,5.5,5.25,4.5,5,5,5,3.7142857142857144,6,3.85,5,3,3.7142857142857144,3.75,5,4,6,5,4.666666666666667,3,3.7142857142857144,3,4.8484848484848486,5,4.9230769230769234,4.8888888888888893,5,4,5,5,5,4,5,5,5,5,5,5,4,5,5,4.9444444444444446,4,4.5,4.5999999999999996,4.4000000000000004,4.5555555555555554,4.333333333333333,4.5,5,3.5,5,4,4,4,4,4,4,2.75,2.75,2.5,3,2.75,3.25,3,1.75,3,3,3,2,3,3,3,1,3,4,3,2,3,3,3,2,3,null,3,null,3,3,4,4,4,5,4,3,4,5,5,4,4,5,5,5,5,3,5,5,5,5,5,5,5,4,4,5,5,4.5,5,5,5,5,5,4,3,3.5,3,3,3,5,4,4,3,4,5,5,5,4.5,4,5,5,4,5,4,4,4,5,5,4,4,4,5,5,5,5,4,5,"IRN",0.7,3,2,3,12,2,3,10782.8988477853,75.077546999999996,44.563982194899999,1.1830000000000001,38.299999999999997,70.75,32,162855,1648195,3,22,6.556,1876,3.2732328340430454,10.256785760209228,0,0,61,39,92.18,6.6449999999999996,1.179,57.035445757250272,40.29,-0.38]
["Iraq",4.0795454545454541,3.8333333333333335,3.9705882352941178,4.115384615384615,3.5,2.8,3.8181818181818183,null,2.6666666666666665,4,3,2,2,2,4.5,3.4285714285714284,null,4.0999999999999996,4.166666666666667,3.1428571428571428,5,4.25,5,2,5,4.333333333333333,3.3333333333333335,3.1428571428571428,5,4,4.125,4.75,4.3076923076923075,3.7777777777777777,4.25,3,5,4.75,4.2,5,5,5,4,4,4,4,4,5,3.6666666666666665,4.0138888888888893,3,4.45,4.5,4.4000000000000004,4.4444444444444446,4.333333333333333,4.45,5,5,5,4,4,4,2,2,1,2.6875,3.25,2.25,2.75,2.5,3.25,2.5,2,3,4,3,2,4,3,2,2,2,3,3,2,3,3,2,2,3,4,3,2,2,5,5,4,4,3,4,4,5,5,4,4,4,5,5,3,5,4,4,4,5,5,4,4,4,4,4,5,4,5,5,4,4,4,4,4,3,4,4,4,3,4.5,1,4,4,5,5,4,4,4,3,4,4,4,4,4,4,4,4,4,3,4,4,4,4,4,4,4,4,"IRQ",null,2,2,3,14,2,3,0,31.466698000000001,73.280734484600003,2.165,0,66.17,33,43737,438317,3,73,53.45,2512,3.4000196350651586,0,79,73,null,null,78.790000000000006,6.5149999999999997,14.7,null,0.05,-1.43]
["Ireland",4.7368421052631575,4.9090909090909092,4.806451612903226,4.9375,4.3571428571428568,4.5,4,5,5,5,4.75,3.5,5,4,4.5,3.75,5,5.3157894736842106,5.2,5.2857142857142856,5.4285714285714288,5,6,4,4,6,5,5.2857142857142856,5.4285714285714288,6,4.6896551724137927,3.6666666666666665,4.6363636363636367,5.2222222222222223,4.75,4,5.5,3.6666666666666665,4.75,6,4.5,4,null,null,null,4,null,5,4,4.9861111111111107,4,4.4285714285714288,4.4285714285714288,4.4285714285714288,4.166666666666667,4.166666666666667,4.4285714285714288,6,null,null,4,2,2,2,4,5,3.875,4.5,3,4,4,3.75,3.75,4,4,4,4,5,5,3,3,3,3,4,4,4,4,4,4,4,4,4,3,2,2,2,4,3,2,4,5,4,4,3,3,5,4,3,4,3,3,4,5,5,3,3,3,5,5,4,5,2,2,null,null,5,2,5,4,4.5,null,4,null,4,null,2,null,4,4,null,null,4,5,5,null,2,5,null,null,5,5,4,5,3,null,5,5,3,3,5,5,5,null,"IRL",0.9,4,5,4,16,3,5,39253.0886453688,4.5890019999999998,62.927440126400001,1.833,34.299999999999997,61.94,39,6889,70273,3,5,5.7690000000000001,11720,4.0689276116820716,1.3158756189013761,100,99,null,null,null,null,null,null,0.51,1.67]
["Israel",5.2619047619047619,4.9705882352941178,5.2121212121212119,5.354166666666667,4.833333333333333,5.666666666666667,4.0999999999999996,6,5.333333333333333,6,5.25,6,6,6,4.333333333333333,4,6,5.125,6,6,4,4.25,6,6,6,6,6,6,4,null,5.46875,6,5.166666666666667,6,5,5,6,6,5.2,6,6,5,6,null,null,null,null,null,4,5.5,5,5.4444444444444446,5.666666666666667,5.2222222222222223,5.625,5.125,5.4444444444444446,6,6,null,3,2,2,4,4,4,4,3.75,3.75,3.75,4.75,4.75,3.5,3.5,4.25,4,3,4,4,5,3,3,4,5,3,3,4,5,5,4,5,null,3,null,3,2,3,1,2,4,3,1,4,4,4,4,4,1,1,3,3,1,1,1,1,1,1,1,1,4,3,3,1,2,2,3,4,4,4,3.5,4,3.5,4,3,3,2,3,4,3,2,2,5,3.5,5,5,5,3,5,5,5,3,3,4,3,5,4,2,3,3,4,3,5,5,"ISR",0.87,4,5,3,14,2,5,25402.677679758701,7.2850330000000003,331.1342424792,1.6990000000000001,39.200000000000003,91.85,8,2164,20770,3,52,57.87,252.4,2.4020893505720968,0,100,100,null,null,57.78,36.44,5.7830000000000004,null,0.17,1.08]
["Italy",null,null,null,null,null,null,null,null,null,null,null,null,null,null,null,null,null,null,null,null,null,null,null,null,null,null,null,null,null,null,null,null,null,null,null,null,null,null,null,null,null,null,null,null,null,null,null,null,null,null,null,null,null,null,null,null,null,null,null,null,null,null,null,null,null,null,null,null,null,null,null,null,null,null,null,null,null,null,null,null,null,null,null,null,null,null,null,null,null,null,null,null,null,null,null,null,null,null,null,null,null,null,null,null,null,null,null,null,null,null,null,null,null,null,null,null,null,null,null,null,null,null,null,null,null,null,null,null,null,null,null,null,null,null,null,null,null,null,null,null,null,null,null,null,null,null,null,null,null,null,null,null,null,null,null,null,null,null,null,null,null,null,null,"ITA",0.85,4,5,4,17,3,5,28166.970378714199,60.097563999999998,198.5563590145,0.48899999999999999,36,68.36,32,29414,301340,3,28,4.5999999999999996,3210,3.5065050324048719,2.0449872893949452,100,0,null,null,44.07,20.059999999999999,35.869999999999997,null,4.2699999999999996,0.8]
["Jamaica",5.0769230769230766,5.5862068965517242,5.166666666666667,5.1111111111111107,5.333333333333333,5.5,5.2727272727272725,null,5.5,6,5.5,5,5,5,5,5.4285714285714288,null,5.8571428571428568,6,5.833333333333333,5.8,5.75,6,6,null,6,6,5.833333333333333,5.8,null,4.774193548387097,5,4.5,5.75,4.75,3,6,5,4.2,6,6,6,2,2,2,2,2,null,4.333333333333333,5.25,3,4.7777777777777777,5.1111111111111107,4.4444444444444446,5.125,4.375,4.7777777777777777,5,5,4,4,4,4,5,4,1,3.5625,3.75,3.75,3,3.75,3.75,3.25,3.5,3.75,4,4,3,4,4,3,4,4,3,2,4,3,4,4,3,4,null,3,null,3,4,5,3,4,3,null,3,4,2,1,4,5,1,1,2,3,3,3,3,2,3,3,2,1,4,1,1,1,4.5,5,1,4,4,5,2.5,1,2,3,1,3,1,2,3,1,4,5,4,null,1.5,1,3,2,3,2,2,null,1,4,null,null,1,null,null,null,1,null,1,2,"JAM",0.69,3,1,2,6,2,4,7121.7854731441103,2.7299090000000001,244.505800464,0.46100000000000002,45.5,52.01,47,1083,10991,1,0,0,3473,3.5407047833107623,5.7280003937421569,94,83,null,null,34.21,43.87,21.93,null,2.81,-0.46]
["Japan",5.7631578947368425,5.774193548387097,5.8166666666666664,5.7555555555555555,6,6,6,null,6,6,6,6,6,6,6,6,null,5.5625,5.2,5.25,6,6,2,6,null,6,6,5.25,6,null,5.8620689655172411,6,5.6363636363636367,6,6,6,6,6,6,6,4,6,null,1,6,6,6,6,6,6,6,5.5625,5,6,5,6,5.5625,5.5,5.5,5.5,3,2,2,2,1,1,3.4375,3.5,3.25,3.5,3.5,3,3,4.25,3.5,3,3,5,3,3,3,4,3,3,3,4,4,3,3,4,4,4,3,2,2,1,1,1,1,1,1,4,4,4,1,2,2,2,2,2,2,4,2,3,3,3,3,2,4,1,1,1,1,1,1,1,5,3,4,1,3,3,1,1,3,1,2,3,3,1,1,3,4,3,3,3,3,4,3,3,3,3,3,3,3,3,3,3,3,4,4,3,3,"JPN",0.88,4,5,3,11,3,5,31483.961817323299,126.995411,337.90384462729997,-7.0999999999999994E-2,24.9,66.83,34,36450,377915,3,0,0,3378,3.5286596452349897,1.4726337812171724,100,100,98,2,63.13,19.32,17.55,17.713130405481298,2.87,1.2]
["Jordan",4.7444444444444445,5.1891891891891895,4.8428571428571425,4.9615384615384617,4.5,5.333333333333333,3.7,6,6,2,4.75,6,6,6,4.75,3,6,5.8421052631578947,5.4,6,6,5.75,6,5,5,5.5,5.333333333333333,6,6,6,4.4545454545454541,4.5,4.6923076923076925,4.666666666666667,4,3.3333333333333335,5,4.5,4.4000000000000004,5,5.5,5.5,6,6,6,5,4,4,4.333333333333333,4.3333333333333339,3.3333333333333335,4.4000000000000004,4.5,4.3,4.4444444444444446,4.2222222222222223,4.4000000000000004,5,5,5,4,4,4,5,5,2,3.875,4,3.75,3.5,4.25,4,3.5,3.75,4.25,4,3,4,5,3,4,4,4,4,3,3,4,5,4,4,4,null,3,null,3,3,5,3,3,2,3,1,5,5,5,5,4,2,4,3,3,3,3,3,5,5,5,5,5,4,4,4,4,4,4,4,3,4,4,4,4,4,4,4,4,4,4,4,4,4,4,4,4,4,4,3,4,4,4,4,5,3,4,5,5,5,5,5,5,4,4,4,4,"JOR",0.68,2,2,3,14,2,3,4882.8526088725403,6.4723920000000001,65.478722213500006,3.0179999999999998,37.700000000000003,78.53,22,8824,89342,3,26,27.21,152.69999999999999,2.1838390370564214,2.8195343814932512,96,98,30,70,64.959999999999994,30.96,4.0810000000000004,59.424336805928469,0.35,0]
["Kazakhstan",null,null,null,null,null,null,null,null,null,null,null,null,null,null,null,null,null,null,null,null,null,null,null,null,null,null,null,null,null,null,null,null,null,null,null,null,null,null,null,null,null,null,null,null,null,null,null,null,null,null,null,null,null,null,null,null,null,null,null,null,null,null,null,null,null,null,null,null,null,null,null,null,null,null,null,null,null,null,null,null,null,null,null,null,null,null,null,null,null,null,null,null,null,null,null,null,null,null,null,null,null,null,null,null,null,null,null,null,null,null,null,null,null,null,null,null,null,null,null,null,null,null,null,null,null,null,null,null,null,null,null,null,null,null,null,null,null,null,null,null,null,null,null,null,null,null,null,null,null,null,null,null,null,null,null,null,null,null,null,null,null,null,null,"KAZ",0.71,3,4,3,10,3,4,10458.1281629266,15.75346,5.7521373260999997,0.72299999999999998,30.9,58.51,42,269970,2724900,2,64,31.19,7061,3.8488662114947791,6.1846681086114952,95,97,6.3,93.7,86.63,1.238,12.13,null,0.35,-1.05]
["Kenya",3.4743589743589745,3.3529411764705883,3.3103448275862069,3.13953488372093,3.8,5.25,3.5555555555555554,2,5.5,6,5.75,4,5,4,4.666666666666667,3,2,3,3.3333333333333335,3.2857142857142856,2.3333333333333335,2.6666666666666665,3,2,2,4.333333333333333,4.333333333333333,3.2857142857142856,2.3333333333333335,4,3.25,2.25,3.4444444444444446,4,2,4,3.3333333333333335,2.25,3,2,4,3.5,null,1,1,2,1,5,3.6666666666666665,3,4,3.95,4,3.9,4,3.8888888888888888,3.95,4,4,4.5,5,3,null,2,2,2,null,null,null,null,null,null,null,null,null,null,null,null,null,null,null,null,null,null,null,null,null,null,null,null,null,4,3,2,2,3,5,2,null,4,2,4,4,3,2,3,2,5,5,5,5,4,5,5,5,5,5,5,5,2,3,null,null,3,2,2,3,2,2,2.5,2,2,4,2,3,null,2,2,2,3,3,3,5,4.5,4,4,4,4,4,5,5,4,4,3.5,4,5,5,3,4,5,5,4,5,"KEN",0.47,1,3,1,1,2,2,1469.5963647876099,40.862900000000003,65.992725292800003,2.6360000000000001,47.7,22.18,78,56914,580367,3,68,32.57,792,2.8987251815894934,23.547542879792395,59,31,null,null,79.16,17.18,3.6560000000000001,null,0.78,-1.05]
["Kiribati",null,null,null,null,null,null,null,null,null,null,null,null,null,null,null,null,null,null,null,null,null,null,null,null,null,null,null,null,null,null,null,null,null,null,null,null,null,null,null,null,null,null,null,null,null,null,null,null,null,null,null,null,null,null,null,null,null,null,null,null,null,null,null,null,null,null,null,null,null,null,null,null,null,null,null,null,null,null,null,null,null,null,null,null,null,null,null,null,null,null,null,null,null,null,null,null,null,null,null,null,null,null,null,null,null,null,null,null,null,null,null,null,null,null,null,null,null,null,null,null,null,null,null,null,null,null,null,null,null,null,null,null,null,null,null,null,null,null,null,null,null,null,null,null,null,null,null,null,null,null,null,null,null,null,null,null,null,null,null,null,null,null,null,"KIR",null,2,2,5,21,1,1,2296.28019413212,9.9546999999999997E-2,null,1.5760000000000001,0,43.9,50,81,811,1,0,0,0,null,27.022379169461789,0,0,null,null,null,null,null,null,0,-0.44]
["Kuwait",null,null,null,null,null,null,null,null,null,null,null,null,null,null,null,null,null,null,null,null,null,null,null,null,null,null,null,null,null,null,null,null,null,null,null,null,null,null,null,null,null,null,null,null,null,null,null,null,null,null,null,null,null,null,null,null,null,null,null,null,null,null,null,null,null,null,null,null,null,null,null,null,null,null,null,null,null,null,null,null,null,null,null,null,null,null,null,null,null,null,null,null,null,null,null,null,null,null,null,null,null,null,null,null,null,null,null,null,null,null,null,null,null,null,null,null,null,null,null,null,null,null,null,null,null,null,null,null,null,null,null,null,null,null,null,null,null,null,null,null,null,null,null,null,null,null,null,null,null,null,null,null,null,null,null,null,null,null,null,null,null,null,null,"KWT",0.77,3,2,3,14,2,null,0,3.0507439999999999,140.0746997418,2.4430000000000001,0,98.38,2,1782,17818,3,0,100,6.8520000000000003,0.83581735429347292,0,99,100,100,0,53.87,43.86,2.278,100,0.06,1.06]
["Kyrgyzstan",null,null,null,null,null,null,null,null,null,null,null,null,null,null,null,null,null,null,null,null,null,null,null,null,null,null,null,null,null,null,null,null,null,null,null,null,null,null,null,null,null,null,null,null,null,null,null,null,null,null,null,null,null,null,null,null,null,null,null,null,null,null,null,null,null,null,null,null,null,null,null,null,null,null,null,null,null,null,null,null,null,null,null,null,null,null,null,null,null,null,null,null,null,null,null,null,null,null,null,null,null,null,null,null,null,null,null,null,null,null,null,null,null,null,null,null,null,null,null,null,null,null,null,null,null,null,null,null,null,null,null,null,null,null,null,null,null,null,null,null,null,null,null,null,null,null,null,null,null,null,null,null,null,null,null,null,null,null,null,null,null,null,null,"KGZ",0.6,2,4,3,10,2,2,2022.53363807816,5.5502390000000004,25.3948317338,1.222,33.5,34.549999999999997,64,19180,199951,2,86,0,4263,3.6297153326471321,31.254789428025585,90,93,60,40,93.75,3.1749999999999998,3.0750000000000002,null,0.62,-0.84]
["Lao People's Democratic Republic",null,null,null,null,null,null,null,null,null,null,null,null,null,null,null,null,null,null,null,null,null,null,null,null,null,null,null,null,null,null,null,null,null,null,null,null,null,null,null,null,null,null,null,null,null,null,null,null,null,null,null,null,null,null,null,null,null,null,null,null,null,null,null,null,null,null,null,null,null,null,null,null,null,null,null,null,null,null,null,null,null,null,null,null,null,null,null,null,null,null,null,null,null,null,null,null,null,null,null,null,null,null,null,null,null,null,null,null,null,null,null,null,null,null,null,null,null,null,null,null,null,null,null,null,null,null,null,null,null,null,null,null,null,null,null,null,null,null,null,null,null,null,null,null,null,null,null,null,null,null,null,null,null,null,null,null,null,null,null,null,null,null,null,"LAO",0.5,2,2,3,13,1,1,1985.7019655587201,6.4360929999999996,25.339438344600001,1.8080000000000001,32.6,33.18,69,23080,236800,2,96,42.91,53747,4.7303542282191477,35.321266996296586,57,53,null,null,90,4.3330000000000002,5.6669999999999998,null,1.36,-1.25]
["Latvia",4.7301587301587302,4.8620689655172411,4.7254901960784315,4.7750000000000004,4.5454545454545459,4.5,4.833333333333333,3,5,5,4.75,3,5,3,4.333333333333333,5.333333333333333,3,5.0555555555555554,4.5999999999999996,4.333333333333333,6,5.75,5,5,3,5,5,4.333333333333333,6,null,4.5454545454545459,3.6666666666666665,4.2,5,4.333333333333333,5,4.333333333333333,3.6666666666666665,4,4,null,null,null,1,1,1,null,null,4.5,4.6666666666666661,5,4.75,4.8571428571428568,4.5999999999999996,4.666666666666667,4.5999999999999996,4.75,6,null,5,4,4,3,4,4,2,2.625,3,2.25,1.75,3.5,2,1.5,4.5,2.5,3,1,5,3,1,1,4,3,1,1,4,1,3,3,5,3,null,null,null,1,1,1,1,2,2,2,2,1,1,1,3,3,1,2,1,4,4,2,3,3,3,3,4,4,3,4,4,3,4.5,5,4,2,2,2,3.5,4,3.5,1,3,3,3.5,3,4,3,4,5,4,3,5,2,3,5,4,5,5,5,3,4,4,3,5,5,4,4,3,3,5,5,"LVA",0.77,4,5,4,16,3,5,15592.3361865402,2.240265,35.101132297600003,-0.45700000000000002,36.299999999999997,67.72,32,6225,64589,3,93,52.78,15693,4.1957059747470984,3.4484941436234706,99,78,null,null,11.62,38.74,49.64,null,null,0.09]
["Lebanon",3.3544303797468356,3.5,3.225806451612903,3.215686274509804,3.2727272727272729,3,2.8,5,3,4,3.3333333333333335,2,2,2,2,3,5,3.6315789473684212,3.8,3.1428571428571428,4,3.75,4,3,5,3.5,3.3333333333333335,3.1428571428571428,4,4,2.96875,2.6666666666666665,2.8461538461538463,3.8888888888888888,2.25,2,2.6666666666666665,2.6666666666666665,2.8,3,2.5,2,2,2,3,3,2,5,2.6666666666666665,3.0694444444444446,2,3.8235294117647061,3.625,4,3.7142857142857144,4,3.8235294117647061,3.5,3.5,3,4,5,3,3,1,1,2.5,2.5,2.5,2.5,2.5,3,3,1,3,3,3,1,3,3,3,1,3,3,3,1,3,3,3,1,3,null,3,null,3,4,5,3,5,3,5,3,4,4,4,4,4,4,5,3,5,4,5,4,5,5,5,5,5,4,4,4,4,4,4,5,4,4,4,4,4,4,4,4,3,4,4,4,4,4,4,4,4,3.5,4,3,4,4,3,4,3,3,3,4,4,3,3,5,3,4,4,4,3,"LBN",null,3,2,3,14,2,4,10694.144176980401,4.2545830000000002,null,0.83,0,87.24,13,1023,10400,3,28,0.78539999999999999,1074,3.0310042813635367,6.4348191765919065,100,0,39,61,59.54,29.01,11.45,55.423594615993665,0.44,-0.34]
["Lesotho",3.6164383561643834,3.4666666666666668,3.5636363636363635,3.7560975609756095,3,3.3333333333333335,2.4444444444444446,5,3,4,3,null,2,1,2.6666666666666665,2.3333333333333335,5,3.875,4.5999999999999996,3.2857142857142856,4,4,6,null,6,3.6666666666666665,3,3.2857142857142856,4,3,3.68,3,3.5,4,3.6666666666666665,4,3,3,2.6666666666666665,4,2,6,2,2,1,2,1,5,4.666666666666667,3.833333333333333,4,3.7777777777777777,3.7777777777777777,3.7777777777777777,4,4,3.7777777777777777,2,2,5,4,5,4,3,1,5,3.0625,3.5,3,2,3.75,3.25,3,2.75,3.25,4,3,3,4,3,3,3,3,2,2,2,2,4,4,3,4,null,null,null,1,null,null,null,null,null,null,null,null,null,null,null,null,null,null,null,null,null,null,null,null,null,null,null,null,null,null,null,null,null,null,null,null,null,null,null,null,null,null,null,null,null,null,null,null,null,null,null,null,null,null,null,null,null,null,null,null,null,null,null,null,null,null,null,null,null,null,null,null,"LSO",0.43,1,3,1,4,1,1,1467.64988044338,2.0841820000000002,null,0.873,52.5,26.88,75,3035,30355,2,65,0,1475,3.1687920203141817,8.5588126822164021,85,29,0,100,20,40,40,null,1.1299999999999999,-0.28000000000000003]
["Liberia",3.1864406779661016,3.28,3.1428571428571428,3.1379310344827585,3.1538461538461537,2,3.2,5,null,null,null,2,2,2,3,3.2857142857142856,5,3.4166666666666665,3,4,3,3.25,null,3,null,null,null,4,3,4,2.9411764705882355,null,3.2857142857142856,3,2.75,2,null,null,3.5,null,3,3,null,null,null,null,null,null,3,2.875,2,3.2941176470588234,3.375,3.2222222222222223,3.5714285714285716,3.25,3.2941176470588234,2.5,3.5,3.5,3,4,4,2,1,1,null,null,null,null,null,null,null,null,null,null,null,null,null,null,null,null,null,null,null,null,null,null,null,null,null,4,null,null,4,4,4,3,4,3,4,4,1,2,2,4,4,5,5,4,4,3,4,5,null,4,4,5,4,5,4,5,4,5,5,4,4,5,5,4.5,5,4.5,5,5,4,4.5,3,5,4,5,5,4,4,3.5,5,4,4,null,4,4,3.5,4,4,3,4,4,3,3,3,4,4,4,3,"LBR",0.3,1,3,1,5,1,1,358.41296798641002,4.1017669999999997,null,4.1440000000000001,52.6,47.82,40,9632,111369,3,72,13.79,61165,4.7865029800701127,59.758554548164355,68,17,null,null,33.61,39.83,26.55,null,0.22,-0.98]
["Libyan Arab Jamahiriya ",4.3456790123456788,4.382352941176471,4.2388059701492535,4.215686274509804,4.3125,5.6,3.6,5,6,6,5.5,4,6,4,4,3.3333333333333335,5,4.4444444444444446,4.75,4,4.7142857142857144,4.75,5,4,5,5,4.5,4,4.7142857142857144,2,4.0909090909090908,4.25,4.1538461538461542,4.333333333333333,4.75,2,5.333333333333333,4.25,3.8,5,5,4.5,5,5,4,4,2,5,3.3333333333333335,4.5416666666666661,2,4.8571428571428568,4.8571428571428568,4.8571428571428568,4.833333333333333,4.833333333333333,4.8571428571428568,5,5,null,4,2,2,1,1,1,2.8125,3.25,2.75,2.5,2.75,3.75,3,2,2.5,4,4,2,3,4,3,2,2,4,2,2,2,3,3,2,3,null,3,null,3,4,5,3,1,2,4,2,4,3,4,2,4,5,5,4,3,3,4,3,5,4,5,3,5,4,4,3,3,4,4,4,2,4,3,4,4,4,4,3,4,3,2,4,4,4,4,3,4,4,4,3,3,4,4,5,4,4,4,4.5,4,4,4,5,4,4,4,4,4,"LBY",0.76,3,3,1,3,2,4,14236.541384730701,6.5456190000000003,null,2,0,77.89,22,175954,1759540,3,0,0,95.33,1.9792295930221553,2.0682906582207168,0,97,null,null,82.85,14.1,3.0510000000000002,100,0,-0.82]
["Liechtenstein",null,null,null,null,null,null,null,null,null,null,null,null,null,null,null,null,null,null,null,null,null,null,null,null,null,null,null,null,null,null,null,null,null,null,null,null,null,null,null,null,null,null,null,null,null,null,null,null,null,null,null,null,null,null,null,null,null,null,null,null,null,null,null,null,null,null,null,null,null,null,null,null,null,null,null,null,null,null,null,null,null,null,null,null,null,null,null,null,null,null,null,null,null,null,null,null,null,null,null,null,null,null,null,null,null,null,null,null,null,null,null,null,null,null,null,null,null,null,null,null,null,null,null,null,null,null,null,null,null,null,null,null,null,null,null,null,null,null,null,null,null,null,null,null,null,null,null,null,null,null,null,null,null,null,null,null,null,null,null,null,null,null,null,"LIE",0.89,4,5,4,18,3,5,0,3.619E-2,221.53749999999999,0.83199999999999996,0,14.31,null,16,160,2,100,0,0,null,0,null,null,null,null,null,null,null,null,null,1.29]
["Lithuania",5.4683544303797467,5.7027027027027026,5.6307692307692312,5.5777777777777775,5.75,6,5.7272727272727275,5,6,6,6,6,6,6,5.75,5.7142857142857144,5,5.6470588235294121,5.8,6,5,5.333333333333333,6,6,5,6,6,6,5,6,5.5357142857142856,6,5.333333333333333,5.8888888888888893,4.333333333333333,5.666666666666667,6,6,5.333333333333333,6,6,null,5,5,1,1,5,5,5,5.1111111111111107,5.666666666666667,4.7142857142857144,4.5714285714285712,4.8571428571428568,4.5,4.833333333333333,4.7142857142857144,5,null,5,4,1,1,1,4,1,4.0625,4,4,3.25,5,4.75,4.75,2.75,4,5,5,2,4,5,5,2,4,4,4,2,3,5,5,5,5,null,null,null,1,1,1,1,1,1,1,1,1,1,1,4,4,1,1,1,4,2,2,4,4,3,3,2,4,3,3,3,3,4,4,4,3,4,1,3,3,3,4,4,4,3,3,3,3,4,4,1,3,5,4,3,4,3,5,5,4,4,5,3,3,5,3,3,3,3,3,5,5,"LTU",0.78,4,5,4,16,3,5,17466.791491010899,3.2553239999999999,51.425941807000001,-0.96499999999999997,35.799999999999997,66.98,33,6268,65300,3,97,37.51,7498,3.874945436085532,4.2813104767603818,0,0,null,null,3.448,6.56,89.99,null,0.08,0.25]
["Luxembourg",null,null,null,null,null,null,null,null,null,null,null,null,null,null,null,null,null,null,null,null,null,null,null,null,null,null,null,null,null,null,null,null,null,null,null,null,null,null,null,null,null,null,null,null,null,null,null,null,null,null,null,null,null,null,null,null,null,null,null,null,null,null,null,null,null,null,null,null,null,null,null,null,null,null,null,null,null,null,null,null,null,null,null,null,null,null,null,null,null,null,null,null,null,null,null,null,null,null,null,null,null,null,null,null,null,null,null,null,null,null,null,null,null,null,null,null,null,null,null,null,null,null,null,null,null,null,null,null,null,null,null,null,null,null,null,null,null,null,null,null,null,null,null,null,null,null,null,null,null,null,null,null,null,null,null,null,null,null,null,null,null,null,null,"LUX",0.85,4,5,4,18,3,5,70980.871901150007,0.49177199999999999,188.95978344930001,1.161,0,85.19,18,259,2586,2,100,67.739999999999995,6445,3.8092229216894218,0.37827176958572395,100,100,null,null,0.3322,63.12,36.54,53.156146179402,0,2]
["Madagascar",3.1948051948051948,3.032258064516129,3.0163934426229506,3.0816326530612246,2.75,2.8,2.7142857142857144,null,2,5,3,2.5,3,3,3,2.5,null,3.2105263157894739,2,4.1428571428571432,3.1428571428571428,2.75,2,2,null,2,2,4.1428571428571432,3.1428571428571428,4,3,2.5,2.5454545454545454,3.625,2.75,4,4,2.5,2.25,3,2.5,2.5,3,null,null,null,null,null,2.6666666666666665,3.1875,4,3.875,4.25,3.5,4.1428571428571432,3.5714285714285716,3.875,4,4,4,1,4,4,5,4,1,3.8125,4.25,3.75,3.25,4,4,4.75,2.75,3.75,4,5,3,5,4,5,3,3,3,4,3,3,5,5,2,4,4,3,2,2,4,5,3,3,2,4,4,4,3,2,3,2,4,5,3,2,3,5,5,4,4,4,3,3,5,5,1,1,5,5,5,4,3,2,5,3,3,3,3,5,1,5,3,3,5,5,4,4,4,4,4,3,3,4,3,3.5,4,4,3,4,3,4,3,3,4,4,4,4,"MDG",0.44,1,3,1,1,1,1,969.52622781302296,20.146442,32.135745203500001,2.6859999999999999,47.2,30.19,71,58154,587041,3,0,0,17634,4.2463508364562559,27.076332078816534,41,11,67,33,97.48,1.627,0.89100000000000001,0.16027781487912382,4.6500000000000004,0.14000000000000001]
["Malawi",3.6741573033707864,3.8157894736842106,3.676056338028169,3.5094339622641511,4.166666666666667,4.5,4,4,4.333333333333333,5,4.5,4,4,4,4,4,4,3.5,3,3.4285714285714284,4,4,2,4,4,2.6666666666666665,3.3333333333333335,3.4285714285714284,4,4,3.5151515151515151,3.5,3.2307692307692308,3.7777777777777777,4,3.3333333333333335,4,3.5,3.2,4,2,2,4,4,2,4,2,4,3.3333333333333335,3.8888888888888888,3.3333333333333335,3.6666666666666665,3.3333333333333335,4,3.5,4,3.6666666666666665,3,4,4,4,4,4,4,1,1,4,4,4,4,4,4,4,4,4,4,4,4,4,4,4,4,4,4,4,4,4,4,4,4,4,null,3,null,3,4,4,4,4,2,4,3,4,4,4,4,4,5,5,4,4,2,5,4,4,4,4,2,2,4,4,4,4,4,4,3,3,3,3,4,4,4,4,4,4,4,2,4,4,4,4,4,4,4,4,4,3,4,4,3,4,4,4,4.5,3,4,4,5,4,4,4,4,4,"MWI",0.39,1,3,1,1,1,1,773.44781432668105,15.691784,115.0380135715,2.7810000000000001,39,19.77,81,9408,118484,2,94,6.5970000000000004,1164,3.0659529803138699,30.949170987032186,80,56,2,98,83.55,12.34,4.1159999999999997,null,2.4300000000000002,-0.91]
["Malaysia",4.0769230769230766,3.6666666666666665,3.971830985915493,4.25,3.2105263157894739,2.2857142857142856,3.7272727272727271,4,2,3,2.5,2,2,2,3.25,4,4,4.0999999999999996,4.333333333333333,4,4,4,5,4,4,4.333333333333333,4.333333333333333,4,4,4,4.34375,4,4.1538461538461542,5,4,4,4.333333333333333,4,4.4000000000000004,5,3.5,3.5,4,4,4,4,1,4,4,4.5,4,4.45,4.5,4.4000000000000004,4.5555555555555554,4.4444444444444446,4.45,4,5,5,4,1,1,1,4,4,5,5,5,5,5,5,5,5,5,5,5,5,5,5,5,5,5,5,5,5,5,5,5,5,5,4,3,2,2,4,5,4,4,4,4,4,4,4,4,4,4,4,4,4,4,4,5,4,4,4,4,4,4,4,4,4,4,4,4,4,4,4,4,4,4,4,4,4,4,4,2,4,4,4,4,4,4,4,4,4,4,4,4,4,4,4,4,4,4,4,4,4,4,4,4,4,4,"MYS",0.74,3,2,3,13,2,4,13139.340478409,27.913989999999998,83.8224502196,1.7050000000000001,37.9,72.17,30,32855,329847,3,3,0,21470,4.3318320444362488,9.4032034257227011,100,96,70,30,45.16,24.62,30.22,null,0.89,0.38]
["Maldives",null,null,null,null,null,null,null,null,null,null,null,null,null,null,null,null,null,null,null,null,null,null,null,null,null,null,null,null,null,null,null,null,null,null,null,null,null,null,null,null,null,null,null,null,null,null,null,null,null,null,null,null,null,null,null,null,null,null,null,null,null,null,null,null,null,null,null,null,null,null,null,null,null,null,null,null,null,null,null,null,null,null,null,null,null,null,null,null,null,null,null,null,null,null,null,null,null,null,null,null,null,null,null,null,null,null,null,null,null,null,null,null,null,null,null,null,null,null,null,null,null,null,null,null,null,null,null,null,null,null,null,null,null,null,null,null,null,null,null,null,null,null,null,null,null,null,null,null,null,null,null,null,null,null,null,null,null,null,null,null,null,null,null,"MDV",0.6,2,2,3,12,2,null,5087.2811905611097,0.31391999999999998,1031.9266666666999,1.42,37.4,40.1,62,30,298,1,0,0,98.36,1.9928185200666795,7.2041197717934251,91,98,null,null,0,94.92,5.085,null,0,0.04]
["Mali",null,null,null,null,null,null,null,null,null,null,null,null,null,null,null,null,null,null,null,null,null,null,null,null,null,null,null,null,null,null,null,null,null,null,null,null,null,null,null,null,null,null,null,null,null,null,null,null,null,null,null,null,null,null,null,null,null,null,null,null,null,null,null,null,null,null,null,null,null,null,null,null,null,null,null,null,null,null,null,null,null,null,null,null,null,null,null,null,null,null,null,null,null,null,null,null,null,null,null,null,null,null,null,null,null,null,null,null,null,null,null,null,null,null,null,null,null,null,null,null,null,null,null,null,null,null,null,null,null,null,null,null,null,null,null,null,null,null,null,null,null,null,null,null,null,null,null,null,null,null,null,null,null,null,null,null,null,null,null,null,null,null,null,"MLI",0.31,1,3,1,5,1,1,1042.2104950840201,13.323104000000001,10.2451878419,2.3719999999999999,39,35.86,68,122019,1240192,2,57,40,7870,3.8959747323590648,36.67739088189137,56,36,22.4,77.599999999999994,90.13,9.0129999999999999,0.85550000000000004,null,0.2,-0.32]
["Malta",null,null,null,null,null,null,null,null,null,null,null,null,null,null,null,null,null,null,null,null,null,null,null,null,null,null,null,null,null,null,null,null,null,null,null,null,null,null,null,null,null,null,null,null,null,null,null,null,null,null,null,null,null,null,null,null,null,null,null,null,null,null,null,null,null,null,null,null,null,null,null,null,null,null,null,null,null,null,null,null,null,null,null,null,null,null,null,null,null,null,null,null,null,null,null,null,null,null,null,null,null,null,null,null,null,null,null,null,null,null,null,null,null,null,null,null,null,null,null,null,null,null,null,null,null,null,null,null,null,null,null,null,null,null,null,null,null,null,null,null,null,null,null,null,null,null,null,null,null,null,null,null,null,null,null,null,null,null,null,null,null,null,null,"MLT",0.82,4,5,4,17,3,null,0,0.409999,1303.8006329114,0.36599999999999999,0,94.67,6,32,316,3,0,0,124.1,2.09377178149873,2.3266660217285176,100,100,0,100,35.25,63.82,0.92759999999999998,null,null,0.8]
["Marshall Islands",2.84,2.4137931034482758,2.7419354838709675,2.8936170212765959,2.2666666666666666,2.1428571428571428,2.4285714285714284,2,2,2,2.25,2.5,2,3,2.25,2.6666666666666665,2,2.5714285714285716,3,2.8571428571428572,2,2,4,2,null,null,2,2.8571428571428572,2,2,3.0303030303030303,2.75,2.9230769230769229,3.4444444444444446,3.25,2.3333333333333335,2,2.75,3.4,4,2,2.5,3,3,3,2,2,2,2.6666666666666665,3.3472222222222223,2.3333333333333335,3.3076923076923075,3.4285714285714284,3.1666666666666665,3.5,3.2,3.3076923076923075,3,null,3,5,5,4,1,5,2,1.6875,2,1.5,1.75,1.5,1.5,1.25,2,2,2,2,2,2,1,1,2,2,2,1,2,2,1,1,2,2,null,3,null,3,3,3,3,4,2,2,2,4,5,5,5,5,3,5,4,4,3,4,3,5,5,5,5,5,4,4,4,4,4,4,4,4,4,4,4,4,5,4,4,4,4,4,5,5,4,4,4,4,3,4,4,4,4,3,3,4,4,3,4,4,4,4,4,4,4,4,3,3,"MHL",null,3,2,5,21,2,3,0,6.3397999999999996E-2,294.1215469613,2.226,0,71.760000000000005,32,18,181,1,0,0,0,null,0,94,73,66,34,null,null,null,null,0,-0.02]
["Mauritania",null,null,null,null,null,null,null,null,null,null,null,null,null,null,null,null,null,null,null,null,null,null,null,null,null,null,null,null,null,null,null,null,null,null,null,null,null,null,null,null,null,null,null,null,null,null,null,null,null,null,null,null,null,null,null,null,null,null,null,null,null,null,null,null,null,null,null,null,null,null,null,null,null,null,null,null,null,null,null,null,null,null,null,null,null,null,null,null,null,null,null,null,null,null,null,null,null,null,null,null,null,null,null,null,null,null,null,null,null,null,null,null,null,null,null,null,null,null,null,null,null,null,null,null,null,null,null,null,null,null,null,null,null,null,null,null,null,null,null,null,null,null,null,null,null,null,null,null,null,null,null,null,null,null,null,null,null,null,null,null,null,null,null,"MRT",0.43,1,3,1,5,1,1,0,3.365675,3.0813636009000001,2.399,39,41.43,59,103070,1030700,3,22,96.49,3546,3.5497387312648989,19.28667488911049,49,26,null,null,93.69,4.7409999999999997,1.58,null,52.63,0.23]
["Mauritius",3.6103896103896105,3.16,3.5964912280701755,3.8,2.8333333333333335,2,3.25,null,2,2,2,2,2,2,2.3333333333333335,3.8,null,3.4615384615384617,4.333333333333333,3.6,2.8,3,5,4,null,4,4,3.6,2.8,4,3.9375,4.5,3.9166666666666665,4,3.75,3.3333333333333335,4.666666666666667,4.5,4,5,3,3.5,2,2,4,2,2,null,4.666666666666667,3.875,3.3333333333333335,3.65,3.9,3.4,3.7777777777777777,3.3333333333333335,3.65,4.5,4.5,4.5,4,4,4,4,4,1,3.625,4,2.5,3.5,4.5,3.75,3.25,3.5,4,4,4,4,4,3,2,2,3,3,3,4,4,5,4,4,5,null,null,null,1,4,5,4,3,null,null,null,null,null,null,null,null,4,5,5,5,4,4,3,5,4,4,4,5,4,2,1,1,4.5,4,4,4,3,3,3,4,3,4,3,4,1,3,4,2,5,4,4,4,4,4,4,4,4,4,3,4,3,4,null,3,4,4,null,null,4,null,4,4,"MUS",0.7,3,3,1,1,2,4,11164.995995775,1.2965690000000001,644.33411214950002,0.69499999999999995,0,41.84,58,203,2040,1,0,0,2149,3.3322364154914434,5.0360096387860001,99,91,42,58,67.72,29.52,2.7589999999999999,20.413793103448274,0.31,0.53]
["Mexico",4.3296703296703294,4.3589743589743586,4.291666666666667,4.3207547169811322,4.2105263157894735,5,3.8181818181818183,4,5,5,5,5,5,5,4,3.7142857142857144,4,4.5,4.333333333333333,5.4285714285714288,3.7142857142857144,3.25,6,2,4,4.666666666666667,3.3333333333333335,5.4285714285714288,3.7142857142857144,2,4.2121212121212119,4.25,4,4.5555555555555554,4.25,4,5,4.25,4.2,5,4,3.5,4,4,4,5,4,5,3,4.4027777777777777,4,4.4736842105263159,4.4000000000000004,4.5555555555555554,4.333333333333333,4.5,4.4736842105263159,5,5,4.5,4,5,5,5,4,4,3,3,3,3,3,3,3,3,3,3,3,3,3,3,3,3,3,3,3,3,3,3,3,3,3,4,3,2,2,3,3,3,3,3,5,5,4,4,5,4,4,2,3,3,3,5,5,4,3,5,5,4,4,3,4,4,4,4,4,4,5,5,4,3.5,3,3,3,4,4,4,3,3,3,4,4,5,3.5,4.5,4,4,4,3,5,4,3.5,5,5,4,4,3,4,4,4,4,3,4,5,"MEX",0.75,3,1,2,7,2,4,13406.742625246599,110.64515400000001,54.3086314986,0.98499999999999999,51.6,77.83,23,194395,1964375,3,21,10.55,4212,3.624488362513449,3.7997657463111323,94,85,null,null,76.69,14.04,9.2729999999999997,35.85455466869378,7.26,-0.19]
["Micronesia (Federated States of)",null,null,null,null,null,null,null,null,null,null,null,null,null,null,null,null,null,null,null,null,null,null,null,null,null,null,null,null,null,null,null,null,null,null,null,null,null,null,null,null,null,null,null,null,null,null,null,null,null,null,null,null,null,null,null,null,null,null,null,null,null,null,null,null,null,null,null,null,null,null,null,null,null,null,null,null,null,null,null,null,null,null,null,null,null,null,null,null,null,null,null,null,null,null,null,null,null,null,null,null,null,null,null,null,null,null,null,null,null,null,null,null,null,null,null,null,null,null,null,null,null,null,null,null,null,null,null,null,null,null,null,null,null,null,null,null,null,null,null,null,null,null,null,null,null,null,null,null,null,null,null,null,null,null,null,null,null,null,null,null,null,null,null,"FSM",0.61,2,2,5,21,2,3,2616.09098057969,0.11110100000000001,153.8831908832,0.30599999999999999,0,22.66,78,70,702,1,0,0,0,null,0,0,0,null,null,null,null,null,null,2.33,-0.44]
["Monaco",5.1147540983606561,5.1304347826086953,4.9387755102040813,4.9459459459459456,4.916666666666667,5.25,5,4,5,5,5,6,5,6,5,5,4,5.3636363636363633,4,5.6,5.75,6,5,null,3,null,null,5.6,5.75,6,4.7692307692307692,5,3.75,5.4444444444444446,5,5,5.333333333333333,5,3.5,4,null,4,4,4,3,5,5,3,4,5.2222222222222223,5,5.833333333333333,5.666666666666667,6,5.6,6,5.833333333333333,6,null,null,5,2,2,2,4,2,3.3125,3,3.25,3,4,2.75,2.5,5,3,2,2,5,3,3,2,5,3,2,2,5,3,4,4,5,3,null,null,null,1,1,5,5,1,5,1,1,1,1,4,1,4,3,5,5,3,5,3,3,3,3,5,3,5,5,1,5,1,5,5,5,4,5,5,3,5,3,5,5,5,3,5,5,1,5,5,5,4,5,5,4,5,5,5,5,4,5,5,4,5,5,3,5,3,5,3,5,5,"MCO",null,4,5,4,18,3,5,0,3.2904000000000003E-2,null,0.27600000000000002,0,100,0,2,2,3,0,0,0,null,0,0,0]
["Mongolia",2.5657894736842106,2.6857142857142855,2.6779661016949152,2.5384615384615383,2.95,3.5714285714285716,2.6363636363636362,2.5,3.6666666666666665,3.5,4,3.5,4,4,3,2.4285714285714284,2.5,2.3333333333333335,2.5,2.3333333333333335,2,2,3,2,2,2.6666666666666665,2.6666666666666665,2.3333333333333335,2,null,2.6666666666666665,2.6666666666666665,2.6,3,2,2,3.3333333333333335,2.6666666666666665,2.6666666666666665,3,2.5,2,2,2,1,2,1,2,3,2.5,2,2.1764705882352939,2.375,2,2.4285714285714284,2,2.1764705882352939,2,2.5,2,null,null,5,null,5,null,1.8125,1.75,1.75,1.75,2,2.5,1.5,1.25,2,2,2,1,2,3,1,1,2,3,1,1,2,2,2,2,2,4,3,2,2,4,5,4,3,5,5,4,5,4,4,4,4,5,4,5,3,3,5,5,5,5,5,5,5,4,4,4,4,4.5,5,4,4,4,4,4,5,5,3,4,5,4,4,5,5,4,5,3,3,3,3,4,4,3,3,4,1,3,3,2,3,1,1,2,2,3,3,3,3,"MNG",0.62,2,2,3,11,2,3,3296.52255398849,2.701117,1.7002410332,1.153,36.6,62.03,43,155356,1564116,2,40,0,13177,4.1198165459372156,22.811406208898866,76,50,null,null,45.98,23.15,30.87,null,2,-0.14000000000000001]
["Montenegro",3.5357142857142856,3.5294117647058822,3.393939393939394,3.3529411764705883,3.5333333333333332,3.2,3.625,4,3.5,5,4.25,2,2,2,4.5,3.3333333333333335,4,3.5263157894736841,4,4.5,2.2857142857142856,2.5,4,4,4,4,4,4.5,2.2857142857142856,null,3.25,4,2.8461538461538463,3.7777777777777777,2.25,4,4.666666666666667,4,2.4,2,3.5,4,2,2,2,2,2,2,4,3.0138888888888888,4,4.0555555555555554,3.7777777777777777,4.333333333333333,3.75,4.25,4.0555555555555554,4.5,4,3,4,4,4,4,4,2,2.4375,2.25,2.25,2.25,3,2.25,2.25,3,2.25,2,2,3,2,2,2,3,2,2,2,3,2,3,3,3,3,4,null,null,4,4,5,3,4,4,5,5,3,3,3,5,5,3,3,2,4,4,5,5,3,3,3,3,3,5,5,4,4,4,4,4,4,4,4,5,4,5,5,4,3,4,3,5,5,4,4,4,4,5,4,4,4,4,4,5,4,4,3,4,3,4,4,4,4,4,4,5,5,"MNE",0.77,3,4,4,17,3,4,10683.483202260501,0.62551599999999996,45.525919490299998,2.9000000000000001E-2,36.9,61.46,40,1345,13812,3,82.848247900376478,0,0,null,9.8041833711188975,98,92]
["Morocco",4.9333333333333336,4.9487179487179489,4.9285714285714288,4.9000000000000004,5,5,5,5,5,5,5,5,5,5,5,5,5,4.8947368421052628,5,4.7142857142857144,5,5,5,5,null,5,5.333333333333333,4.7142857142857144,5,4,4.903225806451613,5.5,4.916666666666667,4.875,4.5,4.666666666666667,5.333333333333333,5.5,5,5,5,4.5,5,5,4,4,5,null,4.666666666666667,4.6875,4.666666666666667,4.95,5,4.9000000000000004,5,4.8888888888888893,4.95,5,5,5,4,5,5,5,4,null,4.1875,4.75,4,4,4,4.25,4.25,4,4.25,5,5,4,5,4,4,4,4,4,4,4,4,4,4,4,4,4,3,2,2,4,5,4,4,4,4,4,4,4,4,4,4,4,4,4,4,4,4,4,4,3,1,2,2,4,4,null,null,4,4,4,4,4,4,4,4,4,4,4,4,null,4,4,4,4,4,5,5,5,5,4,5,5,5,5,5,5,4,null,5,5,5,null,null,5,5,5,5,"MAR",0.56999999999999995,2,3,1,3,2,3,4056.3148242595998,32.381283000000003,69.817489642799998,1.2,40.9,58.24,44,44630,446550,3,20,0,917.5,2.9626060729241268,15.262346571992657,81,69,15,85,87.38,9.7620000000000005,2.8570000000000002,25.146942017474181,1.48,-0.04]
["Mozambique",3.7088607594936707,4.0555555555555554,3.6461538461538461,3.5,4.0588235294117645,4,3.9090909090909092,5,4,5,4,3,4,3,4,3.8571428571428572,5,4.0526315789473681,4.166666666666667,4.2857142857142856,3.6666666666666665,3.5,2,4,6,4.333333333333333,5,4.2857142857142856,3.6666666666666665,4,3.1379310344827585,2.5,3.25,3.125,3.3333333333333335,3.5,2.6666666666666665,2.5,4.25,2,3,3,3,3,1,1,1,5,2,3.229166666666667,3.5,4,4.1428571428571432,3.8571428571428572,4.166666666666667,3.8333333333333335,4,4,4,4,4,4,4,4,4,1,3,3,4,2.75,2.25,3.25,3.25,2.5,3,3,4,2,3,4,4,4,4,3,3,2,3,3,2,2,2,4,3,2,2,4,5,4,4,3,5,5,5,4,3,3,5,4,5,4,3,3,5,5,5,4,3,4,3,4,5,5,4,5,4,4,4,2,3,4.5,5,4.5,3,5,3,4.5,3,4,5,5,5,4,3,2.5,1,1,2,2,2,1,1.5,1,3,1.5,1,2,1,2,1,2,4,3,2,"MOZ",0.28000000000000003,1,3,1,1,1,1,790.60846590971096,23.405670000000001,26.015864718900001,2.327,47.1,38.43,63,78638,799380,3,54,53.8,9699,3.9867269593312185,28.891844478844479,47,17,2,98,73.900000000000006,22.83,3.2650000000000001,null,327.51,-1.01]
["Myanmar",3.2674418604651163,3.1176470588235294,2.9848484848484849,2.8627450980392157,3.4,3,3.3636363636363638,4,null,null,null,4,2,4,3,3.5714285714285716,4,2.8947368421052633,2.2000000000000002,2.5714285714285716,3.7142857142857144,3.25,2,3,2,2,2.5,2.5714285714285716,3.7142857142857144,2,2.84375,2.5,3.0769230769230771,2.5555555555555554,3.5,2,2.6666666666666665,2.5,2.8,4,3,2,2,2,2,2,1,4,3.3333333333333335,3.0277777777777777,2,4.2,4.3,4.0999999999999996,4.333333333333333,4,4.2,4.5,5,5,4,1,1,1,1,1,3,3,3,3,3,3,3,3,3,3,3,3,3,3,3,3,3,3,3,3,3,3,3,3,3,null,null,null,1,2,2,2,1,2,2,3,3,2,2,2,2,4,4,4,4,5,5,5,5,5,5,4,4,3,3,3,3,4,4,3,2,2,2,3,3,2.5,4,3,3,3,3,2,3,4,4,5,4,4,4,5,4,4,4,4,4,4,4,4,4,4,4,4,4,4,4,4,4,"MMR",0.45,1,2,3,13,1,1,0,50.495671999999999,86.282734584899998,0.87,0,33.65,67,65352,676578,3,79,14.13,23566,4.3722858733452767,0,71,81,null,null,88.99,10,1,9.0009027986758952,0.25,-1.37]
["Namibia",3.2413793103448274,2.8285714285714287,3.0597014925373136,3.1632653061224492,2.7777777777777777,3,2.2727272727272729,5,4.5,null,3.25,2,3,2,2.5,2.1428571428571428,5,2.8823529411764706,3.2,2.8571428571428572,2.6,2.25,4,2,4,3,2.6666666666666665,2.8571428571428572,2.6,2,3.3125,3,3.1538461538461537,4.2222222222222223,2.5,2.6666666666666665,4.5,3,3.4,4,3,2,2,2,4,2,2,5,2.3333333333333335,3.3611111111111112,2.6666666666666665,3.85,3.7,4,3.7777777777777777,4,3.85,3.5,4,4,4,3,3,2,2,2,2.75,3,2.5,2.5,3,2.75,3.25,2,3,3,3,2,4,2,3,2,3,3,3,2,2,3,4,2,3,4,3,2,2,4,4,3,4,3,4,4,4,4,4,3,3,4,4,3,3,3,4,4,4,3,3,3,3,3,3,4,3,3.5,2,3,4,3,4,3,3,3.5,4,3,2,3.5,3,4,3,4,3,4,3.5,4,5,4,3,4,4,4,4,3,3,4,4,4,4,4,4,4,3,4,4,"NAM",0.61,2,3,1,4,2,3,5862.5934663508997,2.212037,2.5055273284999999,1.925,74.3,37.979999999999997,63,82329,824292,3,68,65.239999999999995,8319,3.9200711242975239,9.9677787176584154,92,33,43.9,56.1,71,24.33,4.6669999999999998,44.044044044044043,0,0.21]
["Nauru",null,null,null,null,null,null,null,null,null,null,null,null,null,null,null,null,null,null,null,null,null,null,null,null,null,null,null,null,null,null,null,null,null,null,null,null,null,null,null,null,null,null,null,null,null,null,null,null,null,null,null,null,null,null,null,null,null,null,null,null,null,null,null,null,null,null,null,null,null,null,null,null,null,null,null,null,null,null,null,null,null,null,null,null,null,null,null,null,null,null,null,null,null,null,null,null,null,null,null,null,null,null,null,null,null,null,null,null,null,null,null,null,null,null,null,null,null,null,null,null,null,null,null,null,null,null,null,null,null,null,null,null,null,null,null,null,null,null,null,null,null,null,null,null,null,null,null,null,null,null,null,null,null,null,null,null,null,null,null,null,null,null,null,"NRU",null,1,2,5,21,2,4,0,1.0253999999999999E-2,null,0.28100000000000003,0,100,0,2,21,1,0,0,0,null,34.407632539632353,0,0]
["Nepal",null,null,null,null,null,null,null,null,null,null,null,null,null,null,null,null,null,null,null,null,null,null,null,null,null,null,null,null,null,null,null,null,null,null,null,null,null,null,null,null,null,null,null,null,null,null,null,null,null,null,null,null,null,null,null,null,null,null,null,null,null,null,null,null,null,null,null,null,null,null,null,null,null,null,null,null,null,null,null,null,null,null,null,null,null,null,null,null,null,null,null,null,null,null,null,null,null,null,null,null,null,null,null,null,null,null,null,null,null,null,null,null,null,null,null,null,null,null,null,null,null,null,null,null,null,null,null,null,null,null,null,null,null,null,null,null,null,null,null,null,null,null,null,null,null,null,null,null,null,null,null,null,null,null,null,null,null,null,null,null,null,null,null,"NPL",0.43,1,2,3,12,1,1,1028.08614713053,29.852682000000001,183.2205311827,1.845,47.3,18.62,83,14335,147181,2,100,5.7089999999999996,7296,3.8630848253203598,34.407632539632353,88,31,null,null,97.61,2.0089999999999999,0.40160000000000001,null,13.58,-0.3]
["Netherlands",5.8684210526315788,5.8125,5.854838709677419,5.9387755102040813,5.5384615384615383,6,5,6,6,6,5.5,null,6,1,5,5,6,6,6,6,6,6,6,6,6,6,6,6,6,null,5.9,5.5,5.916666666666667,6,6,6,6,5.5,5.75,6,6,6,6,6,1,6,1,6,6,6,6,5.9285714285714288,5.8571428571428568,6,5.833333333333333,6,5.9285714285714288,6,null,6,4,2,2,1,4,1,null,null,null,null,null,null,null,null,null,null,null,null,null,null,null,null,null,null,null,null,null,null,null,null,null,4,null,null,4,2,2,2,2,3,2,4,3,3,3,2,2,3,3,3,3,5,3,5,5,5,5,2,2,1,1,1,1,1,1,1,4,1,4,1,1,1,1,1,1,1,1,1,1,1,1,5,1,1,1,5,1,1,1,1,1,1,3,1,2,1,1,1,1,1,1,1,1,"NLD",0.89,4,5,4,18,3,5,37589.650283787298,16.653345999999999,440.25946664269998,0.40899999999999997,30.9,82.86,18,3376,41543,3,34,87.91,5506,3.7408362070573116,1.9848090755835177,100,100,null,null,0.66920000000000002,11.8,87.49,9.1140433553251654,0.01,2.15]
["New Zealand",4.5925925925925926,4.3125,4.412698412698413,4.5686274509803919,3.75,4.166666666666667,3,5,3.6666666666666665,6,3.6666666666666665,2,2,2,2,3.25,5,4.6500000000000004,4.833333333333333,5.1428571428571432,4,3.25,5,4,4,5.333333333333333,5,5.1428571428571432,4,6,4.5161290322580649,4.75,3.6666666666666665,5.333333333333333,5.25,4,5.333333333333333,4.75,3.8,4,2,2,4,4,2,5,1,null,4.333333333333333,5.2916666666666661,4,5.2222222222222223,5.2222222222222223,5.2222222222222223,5.125,5.125,5.2222222222222223,6,2.5,6,3,2,2,4,4,2,4.1875,4.25,4.25,4,4.25,4,4.25,4.5,4,4,4,5,4,4,4,5,4,3,4,5,4,5,5,3,4,null,3,null,3,4,5,4,5,4,4,3,4,5,3,4,3,5,4,4,4,4,4,3,5,5,4,5,4,2,3,null,null,3,3,4,3,4,4,2.5,4,4,4,3,4,null,3,4,4,3,3,5,4.5,2,5,5,5,5,4,4,2.5,5,4,null,4,1,4,null,null,4,5,2,2,"NZL",0.91,4,5,5,19,3,5,24642.1491713219,4.3034569999999999,15.7834412331,0.91700000000000004,36.200000000000003,86.2,13,26771,267710,3,0,0,77305,4.8882075845028501,5.5170250313882425,100,0,null,null,74.33,21.46,4.2080000000000002,null,0.24,2.2799999999999998]
["Nicaragua",2.8333333333333335,2.8974358974358974,2.7222222222222223,2.6792452830188678,2.8421052631578947,2.3333333333333335,3.1818181818181817,2.5,2,4,3,2,2,2,3.5,3,2.5,2.95,2.6666666666666665,3.4285714285714284,2.7142857142857144,2.75,3,3,2,2.6666666666666665,2.6666666666666665,3.4285714285714284,2.7142857142857144,4,2.5151515151515151,2.5,2.5384615384615383,2.8888888888888888,2,2,3.6666666666666665,2.5,3,2,2,2,2,2,2,2,2,3,2.3333333333333335,2.4444444444444446,2,3.5,3.1428571428571428,4,3.3333333333333335,4.5,3.5,2,2,4.5,1,5,5,5,2,2,1.25,1,1,2,1,1.25,1.25,1.25,1.25,1,1,1,1,1,1,1,1,2,2,2,2,1,1,1,1,4,3,2,2,4,5,4,4,3,5,5,5,4,5,5,5,5,5,5,4,2,5,5,5,5,3,4,4,5,5,3,3,5,5,4,4,4,4,5,5,5,1,4,1,3,2,5,5,5,5,4,4,4,5,5,3,3,3,5,4,3,4,3,2,4,4,3,3,4,4,5,3,"NIC",0.56999999999999995,2,1,2,7,2,3,2479.1675421134501,5.8222649999999998,43.481901927499997,1.302,52.3,57.32,43,11999,130370,3,39,3.5339999999999998,34692,4.5402293377182827,19.780215948182569,85,52,null,null,83.85,14.05,2.0960000000000001,null,39.840000000000003,-0.44]
["Niger",null,null,null,null,null,null,null,null,null,null,null,null,null,null,null,null,null,null,null,null,null,null,null,null,null,null,null,null,null,null,null,null,null,null,null,null,null,null,null,null,null,null,null,null,null,null,null,null,null,null,null,null,null,null,null,null,null,null,null,null,null,null,null,null,null,null,null,null,null,null,null,null,null,null,null,null,null,null,null,null,null,null,null,null,null,null,null,null,null,null,null,null,null,null,null,null,null,null,null,null,null,null,null,null,null,null,null,null,null,null,null,null,null,null,null,null,null,null,null,null,null,null,null,null,null,null,null,null,null,null,null,null,null,null,null,null,null,null,null,null,null,null,null,null,null,null,null,null,null,null,null,null,null,null,null,null,null,null,null,null,null,null,null,"NER",0.26,1,3,1,5,1,1,632.22403099330802,15.891482,11.2839905288,3.86,43.9,17.11,84,126670,1267000,2,100,89.6,2288,3.3594560201209864,0,48,9,null,null,87.99,10.8,1.2010000000000001,null,0.56000000000000005,-1.1000000000000001]
["Nigeria",3,3,2.9178082191780823,2.9622641509433962,2.8,3.2857142857142856,2.2727272727272729,4,3.6666666666666665,4,3.75,2,3,2,2.75,2,4,3.2,3.3333333333333335,3,3.2857142857142856,3.5,4,3,4,3,3.3333333333333335,3,3.2857142857142856,3,2.8181818181818183,3.25,2.6153846153846154,3.3333333333333335,2.5,2,3.6666666666666665,3.25,2.4,2,2,2,2,2,2,2,2,4,3.3333333333333335,2.916666666666667,2,3.3333333333333335,3.2222222222222223,3.4444444444444446,3.125,3.375,3.3333333333333335,4,4,4,5,5,5,4,3,1,2.4375,2,2.75,2,3,2.25,2.5,2.5,2.5,2,2,2,2,2,3,3,3,2,2,2,2,3,3,3,3,4,3,2,2,4,5,4,5,2,4,4,4,4,3,4,4,2,2,2,2,2,2,4,4,4,4,4,4,4,3,3,3,4.5,4,3,4,4,3,3.5,4,3.5,4,3,5,3,4,3,4,5,4,2,2,2,2,3,4,2,2,4,2,2,2,2,3,2,2,2,2,2,2,2,2,"NGA",0.42,1,3,1,5,2,2,1924.3016076891199,158.258917,null,2.327,42.9,49.8,52,91077,923768,3,87,22.78,1893,3.2771506139637969,32.489082138474153,58,32,14.2,85.8,53.44,31.45,15.07,null,0.17,-1.35]
["Norway",5.0999999999999996,5.225806451612903,5.0999999999999996,5.041666666666667,5.333333333333333,5.333333333333333,5.2857142857142856,5.5,5,6,5.666666666666667,null,1,1,6,5,5.5,5.1578947368421053,5,5,5.4285714285714288,5.25,5,5,5,5,5,5,5.4285714285714288,null,4.9655172413793105,4.75,4.4000000000000004,5.666666666666667,4.5,6,6,4.75,4,5,4,4.5,4,4,1,4,1,5,4.666666666666667,5.0833333333333339,6,null,null,null,{"$error":"#DIV/0!"},{"$error":"#DIV/0!"},{"$error":"#DIV/0!"},null,null,null,4,1,1,4,4,4,4.25,4.25,4.25,4.25,4.25,4,3,5,5,4,3,5,5,4,3,5,5,4,3,5,5,4,3,5,5,null,null,null,1,3,3,3,4,4,3,3,2,1,1,3,1,4,4,4,4,4,3,4,3,3,3,3,3,1,1,1,1,1,3,4,4,2,4,1,1,1,1,4,1,1,1,1,1,1,1,4,4,3,4,4,4,4,4,5,4,4,3,3,3,4,4,3,3,4,4,3,3,"NOR",0.94,4,5,4,16,3,5,49711.353508525499,4.855315,14.726610806,0.92700000000000005,25.8,79.41,23,30428,323802,3,6,0,80134,4.9038168216948614,1.3612453206337523,100,100,null,null,28.75,28.34,42.91,null,0.01,2]
["Oman",null,null,null,null,null,null,null,null,null,null,null,null,null,null,null,null,null,null,null,null,null,null,null,null,null,null,null,null,null,null,null,null,null,null,null,null,null,null,null,null,null,null,null,null,null,null,null,null,null,null,null,null,null,null,null,null,null,null,null,null,null,null,null,null,null,null,null,null,null,null,null,null,null,null,null,null,null,null,null,null,null,null,null,null,null,null,null,null,null,null,null,null,null,null,null,null,null,null,null,null,null,null,null,null,null,null,null,null,null,null,null,null,null,null,null,null,null,null,null,null,null,null,null,null,null,null,null,null,null,null,null,null,null,null,null,null,null,null,null,null,null,null,null,null,null,null,null,null,null,null,null,null,null,null,null,null,null,null,null,null,null,null,null,"OMN",null,3,2,3,14,2,4,0,2.9051140000000002,9.2647108238999998,2.0830000000000002,0,73.040000000000006,28,30950,309500,3,0,0,502.7,2.7013088852280753,0,88,0,100,0,88.42,10.14,1.4379999999999999,100,1.04,1.03]
["Pakistan",3.4673913043478262,3.45,3.4444444444444446,3.5961538461538463,3.05,2.8571428571428572,2.9090909090909092,4.5,2,5,3.5,2,2,2,3.5,2.5714285714285716,4.5,3.85,3.5,3.7142857142857144,4.2857142857142856,3.5,5,2,2,4,4,3.7142857142857144,4.2857142857142856,4,3.4375,3.6666666666666665,3.0769230769230771,3.8888888888888888,3.5,3.3333333333333335,3.6666666666666665,3.6666666666666665,2.4,4,4,4,4,4,2,4,4,2,3.3333333333333335,3.6944444444444446,3.3333333333333335,3.55,3.4,3.7,3.3333333333333335,3.5555555555555554,3.55,4.5,4.5,4,4,3,3,2,2,2,2.8125,2.75,2.75,2.75,3,3,3,2.25,3,3,3,2,3,3,3,2,3,3,3,2,3,3,3,3,3,4,3,2,2,5,5,3,4,3,4,5,4,5,5,4,4,1,4,2,1,1,1,5,5,5,5,5,5,4,4,5,4,4.5,4,4,5,4,4,4,3,3.5,4,4,4,4.5,2,4,3,5,4,4,4,4,4,4,4,4,4,4,4,4,4,3,4,4,4,2,4,4,4,4,4,"PAK",0.49,1,2,3,12,2,2,2444.05539514882,184.7533,203.95807033080001,2.1629999999999998,31.2,35.9,64,77088,796095,3,74,76.17,1304,3.1152775913959014,20.833713879246893,90,45,null,null,93.95,5.2590000000000003,0.76290000000000002,33.56948228882834,2.61,-0.73]
["Palau",null,null,null,null,null,null,null,null,null,null,null,null,null,null,null,null,null,null,null,null,null,null,null,null,null,null,null,null,null,null,null,null,null,null,null,null,null,null,null,null,null,null,null,null,null,null,null,null,null,null,null,null,null,null,null,null,null,null,null,null,null,null,null,null,null,null,null,null,null,null,null,null,null,null,null,null,null,null,null,null,null,null,null,null,null,null,null,null,null,null,null,null,null,null,null,null,null,null,null,null,null,null,null,null,null,null,null,null,null,null,null,null,null,null,null,null,null,null,null,null,null,null,null,null,null,null,null,null,null,null,null,null,null,null,null,null,null,null,null,null,null,null,null,null,null,null,null,null,null,null,null,null,null,null,null,null,null,null,null,null,null,null,null,"PLW",null,3,2,5,21,2,4,0,2.0531000000000001E-2,46.596949891100003,0.39900000000000002,0,83.39,30,46,459,1,0,0,0,null,3.4891792900919758,0,0]
["Panama",4.2,4.25,4.1095890410958908,4,4.4000000000000004,3.5714285714285716,4.7272727272727275,5.5,3.6666666666666665,4.5,4.5,2.5,3,3,4.5,4.8571428571428568,5.5,4.0999999999999996,3.3333333333333335,5,3.8571428571428572,4,3,4,5,2.6666666666666665,3.3333333333333335,5,3.8571428571428572,5,3.9393939393939394,4.75,3.6153846153846154,4.5555555555555554,3,3.6666666666666665,5.333333333333333,4.75,3.4,3,2.5,3,4,4,2,2,2,6,4,3.7777777777777777,3.6666666666666665,4.5882352941176467,4.333333333333333,4.875,4.5,4.8571428571428568,4.5882352941176467,4,4.5,5,4,4,4,4,4,4,null,null,null,null,null,null,null,null,null,null,null,null,null,null,null,null,null,null,null,null,null,null,null,null,null,4,3,2,2,5,5,2,5,3,5,5,5,5,5,5,5,5,5,3,4,4,5,5,5,5,5,5,5,4,3,4,4,4.5,5,4,4,3,4,3.5,4,3.5,4,4,5,4,4,4,3,4,5,5,3.5,4,4,5,4,5,5,4,4,4,3,4.5,4,4,4,5,4,4,3,4,4,"PAN",0.76,3,1,2,7,2,4,11557.8308298476,3.5084749999999998,45.020963443299998,1.6439999999999999,54.9,74.8,27,7434,75420,3,7,0.3785,43542,4.6389083734651857,6.4986770685810642,93,69,null,null,50.92,45.76,3.3210000000000002,null,1.7,-0.24]
["Papua New Guinea",null,null,null,null,null,null,null,null,null,null,null,null,null,null,null,null,null,null,null,null,null,null,null,null,null,null,null,null,null,null,null,null,null,null,null,null,null,null,null,null,null,null,null,null,null,null,null,null,null,null,null,null,null,null,null,null,null,null,null,null,null,null,null,null,null,null,null,null,null,null,null,null,null,null,null,null,null,null,null,null,null,null,null,null,null,null,null,null,null,null,null,null,null,null,null,null,null,null,null,null,null,null,null,null,null,null,null,null,null,null,null,null,null,null,null,null,null,null,null,null,null,null,null,null,null,null,null,null,null,null,null,null,null,null,null,null,null,null,null,null,null,null,null,null,null,null,null,null,null,null,null,null,null,null,null,null,null,null,null,null,null,null,null,"PNG",0.43,1,2,5,20,2,2,2041.1054960883,6.8883869999999998,null,2.371,50.9,12.53,88,45286,462840,1,29,0,121788,5.0856044985552682,35.997498479267669,40,45,null,null,0.36849999999999999,56.93,42.7,null,3.3,-0.9]
["Paraguay",null,null,null,null,null,null,null,null,null,null,null,null,null,null,null,null,null,null,null,null,null,null,null,null,null,null,null,null,null,null,null,null,null,null,null,null,null,null,null,null,null,null,null,null,null,null,null,null,null,null,null,null,null,null,null,null,null,null,null,null,null,null,null,null,null,null,null,null,null,null,null,null,null,null,null,null,null,null,null,null,null,null,null,null,null,null,null,null,null,null,null,null,null,null,null,null,null,null,null,null,null,null,null,null,null,null,null,null,null,null,null,null,null,null,null,null,null,null,null,null,null,null,null,null,null,null,null,null,null,null,null,null,null,null,null,null,null,null,null,null,null,null,null,null,null,null,null,null,null,null,null,null,null,null,null,null,null,null,null,null,null,null,null,"PRY",0.64,2,1,2,8,2,3,4352.6460522487796,6.459727,15.3168098301,1.7989999999999999,53.2,61.5,40,39730,406752,2,100,72.02,53863,4.7312905385883353,21.251631661989229,86,70,null,null,71.430000000000007,20.41,8.1630000000000003,null,1.17,-1.22]
["Peru",3.0952380952380953,2.7142857142857144,2.9090909090909092,3.125,2.3333333333333335,2.8,2,3,3,4,3,2,2,2,2,2,3,3.1176470588235294,2.6666666666666665,3.3333333333333335,3.4,3.25,2,2,4,2.6666666666666665,2.6666666666666665,3.3333333333333335,3.4,null,3.129032258064516,3.5,2.4615384615384617,3.8888888888888888,2.6666666666666665,4,4.333333333333333,3.5,2.4,4,2,2,2,2,2,1,1,4,2,3.2777777777777777,4,3.7777777777777777,3.7777777777777777,3.7777777777777777,3.625,3.75,3.7777777777777777,4.5,4.5,4.5,4,4,4,4,4,4,3.625,3.5,3.5,4,3.5,4,4,3.25,3.25,4,4,3,3,4,4,3,3,4,4,4,4,4,4,3,3,4,3,2,2,4,5,4,4,4,5,4,4,4,4,5,5,5,5,5,5,4,5,5,5,5,5,5,5,5,5,4,4,5,5,5,5,5,5,5,null,4,5,5,4,4,4,4,4,5,5,5,5,5,4,5,4,5,5,5,4.5,5,5,4,4,5,4,4,4,5,5,5,5,"PER",0.72,3,1,2,8,2,3,7863.1006595775798,29.496120000000001,22.414157620200001,1.159,50.5,76.92,29,128000,1285216,3,80,15.53,66338,4.8217623739959894,7.1391250203582546,82,68,null,null,84.9,6.8410000000000002,8.2629999999999999,null,5.22,-0.2]
["Philippines",4.7222222222222223,4.3,4.5172413793103452,4.666666666666667,4,3.4,4.2857142857142856,5,3.5,6,4.75,2,5,2,5.666666666666667,3.25,5,4.5294117647058822,4.8,4.4285714285714288,4.4000000000000004,4.25,4,5,null,5,5,4.4285714285714288,4.4000000000000004,3,4.75,4,5,5.125,4.25,4.5,5,4,4.75,5,6,5.5,5,5,5,4,1,null,5,4.6875,4.5,5.5714285714285712,5.5714285714285712,5.5714285714285712,5.5,5.5,5.5714285714285712,6,6,6,1,1,1,1,2,1,2,2,2,2,2,2,2,2,2,2,2,2,2,2,2,2,2,2,2,2,2,2,2,2,2,4,3,2,2,3,5,3,2,4,4,5,5,3,4,4,3,3,2,3,3,2,4,4,4,3,4,4,4,3,1,1,1,4,4,4,5,3,5,2,4,2.5,4,4,3,1,1,4,1,4,4,3,2.5,2.5,2,2,4,2,3,2,2.5,2,3,3,2,2,3,3,3,2,3,2,3,"PHL",0.64,2,2,3,13,2,3,3244.1821445321598,93.616853000000006,301.524,1.8149999999999999,44,48.9,35,29817,300000,3,0,0,5302,3.7244397233970745,14.470462697970344,91,76,null,null,82.23,7.6449999999999996,10.119999999999999,3.9308484551250613,17.489999999999998,-0.52]
["Poland",3.9367088607594938,4.1470588235294121,4.1230769230769226,4.291666666666667,3.6470588235294117,3.2,3.7,4.5,2.6666666666666665,6,4,2,4,2,3.6666666666666665,3.7142857142857144,4.5,4.6470588235294121,5.8,5.6,3.1428571428571428,3,6,6,5,6,6,5.6,3.1428571428571428,null,4.096774193548387,5,3.3846153846153846,5,3.3333333333333335,4,5.666666666666667,5,3.2,4,3,2,2,2,4,2,1,3,4.333333333333333,4.166666666666667,4,3.0714285714285716,3.2857142857142856,2.8571428571428572,3,3,3.0714285714285716,3.5,null,2,5,5,4,2,5,2,3.6666666666666665,3.6666666666666665,3,3.3333333333333335,4.666666666666667,4,2,5,null,5,1,5,null,3,1,5,null,3,2,5,null,5,4,5,null,4,null,null,4,4,5,4,4,4,3,5,3,3,2,5,5,3,2,1,4,4,4,4,4,4,3,2,2,4,4,4,4,5,5,4,3,4,3,4,3,3,1,3,3,4,1,3,3,5,5,4,4,5,5,4,4,4,5,1,4,4,4,4,3,4,4,4,4,4,4,5,5,"POL",0.8,4,4,4,15,3,5,16387.5579051604,38.038094000000001,121.8990357708,-8.4000000000000005E-2,34.9,60.96,39,30425,312685,3,91,12.99,1617,3.2087100199064009,4.1039518967831228,100,90,null,null,9.6910000000000007,30.66,59.64,null,0.08,0.39]
["Portugal",3.4069767441860463,3.6052631578947367,3.4788732394366195,3.5882352941176472,3.2,3.8571428571428572,2.3636363636363638,5.5,4,5,4,2.5,3,3,2.5,2.2857142857142856,5.5,4.0555555555555554,5.6,3.8333333333333335,3.1428571428571428,3.5,6,5,5,6,5.5,3.8333333333333335,3.1428571428571428,null,3.3333333333333335,3.75,2.3846153846153846,4.7777777777777777,3.25,2.6666666666666665,4.666666666666667,3.75,2,2,2,2,2,2,2,2,2,4,3,4.0138888888888893,2.6666666666666665,3.0666666666666669,2.75,3.4285714285714284,2.8571428571428572,3.3333333333333335,3.0666666666666669,3,3,3,1,1,1,1,1,1,3.5,4,3,3.75,3.25,3.5,3.75,3.25,3.5,4,4,4,4,3,3,3,3,3,4,4,4,4,4,2,3,null,null,null,1,3,4,3,5,3,4,3,3,3,3,3,3,2,4,3,5,4,4,4,4,4,4,4,4,4,4,4,4,4,4,3,4,3,3,4,3,3,4,3,2,4,3,3,3,4,4,4,4,4,4,4,4,4,4,5,4,4,4,4,4,4,4,4,4,4,4,4,4,"PRT",0.8,4,5,4,17,3,5,21136.158413333302,10.732357,115.3481648387,0.34899999999999998,38.5,60.7,41,9150,92090,3,49,44.69,6434,3.808481056565951,2.5282441332206589,99,100,null,null,73,7.6210000000000004,19.38,null,0.73,1.33]
["Qatar",null,null,null,null,null,null,null,null,null,null,null,null,null,null,null,null,null,null,null,null,null,null,null,null,null,null,null,null,null,null,null,null,null,null,null,null,null,null,null,null,null,null,null,null,null,null,null,null,null,null,null,null,null,null,null,null,null,null,null,null,null,null,null,null,null,null,null,null,null,null,null,null,null,null,null,null,null,null,null,null,null,null,null,null,null,null,null,null,null,null,null,null,null,null,null,null,null,null,null,null,null,null,null,null,null,null,null,null,null,null,null,null,null,null,null,null,null,null,null,null,null,null,null,null,null,null,null,null,null,null,null,null,null,null,null,null,null,null,null,null,null,null,null,null,null,null,null,null,null,null,null,null,null,null,null,null,null,null,null,null,null,null,null,"QAT",0.8,4,2,3,14,2,null,0,1.5083219999999999,125.0201967892,10.653,41.1,95.83,4,1159,11586,3,0,3.448,3207,3.5060989599284405,0,100,100,100,0,59.01,39.19,1.802,100,null,0.92]
["Republic of Korea",5.25,5.1538461538461542,5.1805555555555554,5.1698113207547172,5.2105263157894735,5.7142857142857144,5.3,3,6,6,6,5,6,5,5.75,5,3,5.0999999999999996,5.5,4.8571428571428568,5,5,6,5,5,5.666666666666667,5.333333333333333,4.8571428571428568,5,5,5.2121212121212119,5.5,5,5.7777777777777777,4.5,5,5.666666666666667,5.5,5,6,4.5,5,5,5,5,4,5,5,5,5.1388888888888893,5,5.5,5.5,5.5,5.4444444444444446,5.4444444444444446,5.5,6,6,6,4,2,2,2,4,1,4.1875,4,4.25,4.25,4.25,3.5,3.75,4.5,5,5,3,3,5,3,4,5,5,3,4,5,5,3,4,5,5,4,3,2,2,2,4,4,3,5,5,5,5,5,3,5,3,2,4,4,1,5,5,4,3,3,3,5,4,5,3,3,3,3.5,4,5,5,3,2,4,4,4.5,5,5,4,3,3,5,4,3,4,2,4,3.5,4,5,5,5,4,5,4,5,3,3,4,4,4,3,3,4,4,3,4,"KOR",0.88,4,2,3,11,2,5,25498.361821793402,48.500717000000002,486.90642023689998,0.38900000000000001,31.6,82.96,19,9692,99720,3,26,6.9580000000000002,1447,3.1604685311190375,2.9320712339671737,98,100,null,null,62.03,25.99,11.97,null,2.86,0.33]
["Republic of Moldova",2.6506024096385543,2.5384615384615383,2.7142857142857144,2.8039215686274508,2.4736842105263159,2.3333333333333335,2.3636363636363638,3.5,3,2,2.5,2,2,2,2,2.5714285714285716,3.5,2.6,2,2.8571428571428572,2.8571428571428572,2.5,2,2,2,2,2,2.8571428571428572,2.8571428571428572,3,2.935483870967742,2.5,2,4.333333333333333,3.5,null,3.6666666666666665,2.5,2,2,2,2,2,2,2,4,null,2,2,3.9166666666666665,null,2.3076923076923075,2.3333333333333335,2.2857142857142856,2.4,2.3333333333333335,2.3076923076923075,2,2,2,4,4,4,2,4,4,2.875,2.5,3,3,3,3,2.75,3,2.75,3,2,3,2,3,3,3,3,3,3,3,3,3,3,3,3,null,null,null,1,4,3,2,3,4,4,3,3,3,2,5,4,1,2,1,2,4,5,4,4,4,4,4,4,3,2,4,4,4,3,4,4,4,4,2.5,4,3,4,3,4,4,3,3,3,4,4,4,4,4,5,4,4,4,4,5,4,4,4,4.5,4,4,4,5,4,4,4,4,4,"MDA",0.62,2,4,4,15,3,5,2703.7138068177501,3.575574,105.4809430952,-1.002,37.4,46.95,58,3289,33851,2,100,91.42,3207,3.5060989599284405,13.932398703423663,90,79,null,null,39.69,8.5640000000000001,51.76]
["Romania",5.2068965517241379,5.1891891891891895,5.2173913043478262,5.2352941176470589,5.166666666666667,5.333333333333333,5,5.5,5.333333333333333,6,5.5,5,6,5,5,5,5.5,5.2105263157894735,5.4,5,5.2857142857142856,5.25,5,5,5,6,5.5,5,5.2857142857142856,5,5.25,5.25,5.083333333333333,5.5555555555555554,5,5.333333333333333,5.666666666666667,5.25,5.2,6,6,5,5,5,5,4,4,5,4.333333333333333,5.2777777777777777,5.333333333333333,5.166666666666667,5.1111111111111107,5.2222222222222223,5.125,5.125,5.166666666666667,5.5,5,6,4,4,4,5,4,5,3.8125,3.75,3.75,4,3.75,3.75,3.25,4.25,4,4,3,4,4,4,3,4,4,3,4,5,4,4,3,4,4,4,3,2,2,3,5,4,5,5,4,5,4,3,3,4,4,2,4,4,4,5,4,5,4,3,3,5,5,4,4,4,4,5,4,5,5,4,5,4,4,4,4,5,5,4,3,4,4,5,5,5,3,4,5,5,4,5,4,4,4,4,4,5,4,4,4,5,5,4,2,4,4,"ROU",0.77,3,4,4,15,3,5,11761.4048575253,21.190154,90.2066017593,-0.41499999999999998,32.1,57.47,46,22989,238391,3,97,80.040000000000006,9920,3.9965116721541785,8.743509855950574,0,72,null,null,17.03,21.89,61.08,9.1332169866201287,0.49,-0.34]
["Russian Federation",4.2,4.4230769230769234,4.1304347826086953,4.0263157894736841,4.625,4.5714285714285712,null,5,5,5,5,3.5,5,5,null,null,5,4.333333333333333,5,5,3.2857142857142856,3.5,null,5,5,5,5,5,3.2857142857142856,null,3.75,2,3.125,4.833333333333333,5,5,3,2,3.5,null,null,2,2,null,null,null,null,5,3,4.9166666666666661,5,5,5,5,5,5,5,5,null,null,4,null,null,null,4,null,null,null,null,null,null,null,null,null,null,null,null,null,null,null,null,null,null,null,null,null,null,null,null,null,null,4,null,null,4,3,4,1,2,3,4,4,3,3,null,5,null,null,null,null,null,null,null,2,1,3,null,5,null,4,4,4,null,4,4,4,4,4,null,4,4,4,null,4,4,4,null,4,null,null,4,null,null,null,null,1,4,null,null,null,null,2,2,5,null,null,null,5,null,null,null,null,null,"RUS",0.72,3,4,4,15,3,5,14916.9518521665,140.36656099999999,8.3023979306999998,-0.39500000000000002,43.7,73.17,27,1637774,17098242,3,47,4.3170000000000002,31883,4.5035591791653236,4.5987719454827678,96,87,null,null,19.940000000000001,20.239999999999998,59.82,null,0.9,-0.9]
["Rwanda",3.4545454545454546,3.4594594594594597,3.2857142857142856,3.0754716981132075,3.9411764705882355,3.25,4,5,3,4,3.75,3,3,3,4.75,3.5714285714285716,5,3.05,2.6666666666666665,3.2857142857142856,3.1428571428571428,2.5,2,2,4,2.6666666666666665,2,3.2857142857142856,3.1428571428571428,3,3.0909090909090908,3,3,3.4444444444444446,3.5,2,3.3333333333333335,3,3.2,2,2,2,2,2,2,4,2,4,3.6666666666666665,3.4722222222222223,2,4.1111111111111107,4.1111111111111107,4.1111111111111107,4.125,4.125,4.1111111111111107,4,4,4.5,4,4,4,2,1,1,3.375,3.25,3.25,3,4,3.25,3.25,3.75,3.25,3,3,4,3,3,3,4,3,3,3,3,3,4,4,4,4,4,3,2,2,3,4,3,4,2,4,4,4,3,2,4,4,4,5,4,5,2,5,5,5,4,4,5,5,4,4,4,4,4,5,4,5,5,5,4,4,4,4,4,3,4,3,4,4,4,4,2,2,1,2,2,2,2,3,2,2,2,2,2,2,2,2,2,2,2,2,1,1,"RWA",0.39,1,3,1,1,1,1,944.57485830966095,10.277212,null,2.6720000000000002,46.7,18.850000000000001,82,2467,26338,2,100,0,977.3,2.9900278987702946,35.827888779641981,65,54,null,null,68,24,8,null,0.34,-0.57999999999999996]
["Saint Kitts and Nevis",3.377049180327869,2.9,3.1304347826086958,3.236842105263158,2.625,2.5,2,6,null,null,null,2,3,2,2,2,6,3.0833333333333335,3,3.6666666666666665,2.8571428571428572,2.6666666666666665,4,null,null,2,null,3.6666666666666665,2.8571428571428572,null,3.3076923076923075,2,2.6666666666666665,4,3.5,4,2.6666666666666665,2,2.6666666666666665,4,4,2,2,2,1,4,4,null,2,3.75,4,4.1333333333333337,4,4.25,4,4.1428571428571432,4.1333333333333337,4.5,4.5,null,4,4,3,4,4,2,3.5,2.5,2.75,3.75,5,3.5,3.5,3.5,3.5,3,2,2,3,2,3,3,3,4,4,4,3,5,5,5,5,4,3,2,2,4,5,3,1,1,4,5,5,3,1,5,5,5,5,3,3,3,5,5,5,2,5,5,3,4,1,1,1,4,4,4,4,4,3,2.5,1,2,3,4,2,1,1,2,2,4,4,3,3,5,4,4,5,4,5,3,3,5,5,3,3,3,3,3,3,3,3,5,5,"KNA",null,3,1,2,6,2,4,14937.0783404672,5.2367999999999998E-2,null,1.2729999999999999,0,32.409999999999997,65,26,261,1,0,0,470.6,2.6726519228400023,2.7892820446715541,100,96,null,null,null,null,null,null,6.91,0.4]
["Saint Lucia",3.2823529411764705,3.1428571428571428,3.0746268656716418,3.06,3.1176470588235294,3.8,2.9090909090909092,2,4,6,4,2.5,3,3,2.5,3.1428571428571428,2,3.1666666666666665,3.5,3,3.1428571428571428,3.5,4,4,null,3,3.3333333333333335,3,3.1428571428571428,5,3,2.25,2.8333333333333335,3.6666666666666665,3,2.6666666666666665,3.3333333333333335,2.25,2.8,2,2,3,2,2,2,4,2,null,4,3.333333333333333,2.6666666666666665,4.0555555555555554,4.1111111111111107,4,4,3.875,4.0555555555555554,5,4,null,5,5,5,5,2,2,2.9375,2.5,3.5,2.75,3,3,3,2.5,3.25,3,2,2,3,3,4,3,4,3,3,2,3,3,3,3,3,4,3,2,2,4,5,4,2,5,4,4,4,4,3,4,3,4,5,4,3,4,5,5,4,4,3,5,3,3,4,1,1,5,5,5,5,5,5,3.5,4,4,2,4,4,1,2,4,4,5,5,4,4,4,4,5,4,4,4,5,4,4,4,3,3,4,4,3,3,4,4,4,4,"LCA",null,3,1,2,6,2,4,9156.9124238041604,0.17394200000000001,null,1.032,42.6,27.97,72,61,616,1,0,0,0,null,4.2637348787441756,98,0,null,null,null,null,null,0,21.74,0.4]
["Saint Vincent and the Grenadines",null,null,null,null,null,null,null,null,null,null,null,null,null,null,null,null,null,null,null,null,null,null,null,null,null,null,null,null,null,null,null,null,null,null,null,null,null,null,null,null,null,null,null,null,null,null,null,null,null,null,null,null,null,null,null,null,null,null,null,null,null,null,null,null,null,null,null,null,null,null,null,null,null,null,null,null,null,null,null,null,null,null,null,null,null,null,null,null,null,null,null,null,null,null,null,null,null,null,null,null,null,null,null,null,null,null,null,null,null,null,null,null,null,null,null,null,null,null,null,null,null,null,null,null,null,null,null,null,null,null,null,null,null,null,null,null,null,null,null,null,null,null,null,null,null,null,null,null,null,null,null,null,null,null,null,null,null,null,null,null,null,null,null,"VCT",null,3,1,2,6,2,4,8461.7231437418995,0.10928400000000001,null,0.104,0,49.33,53,39,389,1,0,0,0,null,7.7478280069727798,0,0,null,null,null,null,null,null,1.37,0.4]
["Samoa",3.7439024390243905,3.8,3.606060606060606,3.64,3.5,3.2,3.5,5,4,3,4.25,2,4,2,4,3.2857142857142856,5,4.0526315789473681,3.6,4.2857142857142856,4.1428571428571432,4,3,4,null,3.6666666666666665,4,4.2857142857142856,4.1428571428571432,4,3.3870967741935485,3.25,3.0909090909090908,3.8888888888888888,3.5,3,4,3.25,3.75,4,2.5,2,2,2,1,2,2,null,2.6666666666666665,3.6944444444444446,3,4.3125,4.25,4.375,4.4285714285714288,4.4285714285714288,4.3125,3.5,null,5,4,4,4,5,5,2,3.8125,4,3.75,3.5,4,4,3.5,3.75,4,4,4,4,4,4,3,4,4,4,3,3,4,4,4,4,4,4,null,null,4,2,5,4,4,3,4,4,3,5,4,5,5,3,5,5,5,4,5,5,4,5,4,5,4,4,4,1,3,4,5,5,5,5,5,4,4,5,5,4,5,2,3,5,5,4,4,5,4.5,5,5,5,5,5,5,5,5,5,5,3.5,4,5,5,3,4,5,4,5,5,"WSM",null,2,2,5,22,1,1,4145.1119102659904,0.17894299999999999,66.2825150611,-3.0000000000000001E-3,0,20.23,77,283,2831,1,0,0,0,null,12.198763610505413,0,100,null,null,null,null,null,null,6.28,-0.06]
["San Marino",null,null,null,null,null,null,null,null,null,null,null,null,null,null,null,null,null,null,null,null,null,null,null,null,null,null,null,null,null,null,null,null,null,null,null,null,null,null,null,null,null,null,null,null,null,null,null,null,null,null,null,null,null,null,null,null,null,null,null,null,null,null,null,null,null,null,null,null,null,null,null,null,null,null,null,null,null,null,null,null,null,null,null,null,null,null,null,null,null,null,null,null,null,null,null,null,null,null,null,null,null,null,null,null,null,null,null,null,null,null,null,null,null,null,null,null,null,null,null,null,null,null,null,null,null,null,null,null,null,null,null,null,null,null,null,null,null,null,null,null,null,null,null,null,null,null,null,null,null,null,null,null,null,null,null,null,null,null,null,null,null,null,null,"SMR",null,4,5,4,17,3,5,0,3.1537000000000003E-2,530.91803278689997,0.83799999999999997,0,94.09,6,6,61,2,0,0,0,null,0,0,0]
["Sao Tome and Principe",2.8518518518518516,2.9117647058823528,2.8095238095238093,2.7659574468085109,2.9375,2.6,3.2,2,3,3,3,2,3,2,2.3333333333333335,3.5714285714285716,2,2.8888888888888888,2.5,2.8571428571428572,3.1428571428571428,3.75,2,3,null,2.5,2.6666666666666665,2.8571428571428572,3.1428571428571428,3,2.6896551724137931,2.75,2.7,3.125,2,2.3333333333333335,3,2.75,2.5,2,3,3,3,3,2,2,2,null,3,2.5625,2.3333333333333335,3,2.6666666666666665,3.3333333333333335,2.5,3.25,3,4,4,3.5,1,4,4,2,5,5,1.9375,2,2,1,2.75,2,2,1.75,2,2,2,2,2,2,2,2,2,1,1,1,1,3,3,2,3,null,null,null,1,4,4,2,3,3,4,2,3,3,2,4,2,4,4,3,3,3,4,2,4,4,3,3,3,4,3,1,1,4,4,4,3,4,4,3.5,4,4,4,3,4,1,2,4,4,4,4,4,4,4,4,3,4,4,4,4,3.5,3,4,3,3,4,3,3,3,4,4,4,4,"STP",0.49,1,3,1,2,1,1,1606.8832918984999,0.16539699999999999,163.7417012448,1.6080000000000001,50.6,62.23,39,96,964,1,0,0,13625,4.13433651094868,16.806073688732607,89,26,null,null,null,null,null,null,0,-0.25]
["Saudi Arabia",3.3703703703703702,3.1212121212121211,3.1111111111111112,3.2608695652173911,2.7058823529411766,2.6,2.8181818181818183,2,3,2,2.75,2.5,2,3,3,2.7142857142857144,2,3.5625,2.75,4,3.7142857142857144,3.5,4,3,2,2,2.5,4,3.7142857142857144,null,3.1,2.3333333333333335,3.1666666666666665,3.625,3,2.3333333333333335,2.3333333333333335,2.3333333333333335,3.8,2,2.5,3,5,5,5,5,3,null,2.3333333333333335,3.3125,2.3333333333333335,4.2777777777777777,4.2222222222222223,4.333333333333333,4.125,4.25,4.2777777777777777,5,2.5,4,4,2,2,4,2,1,3.5625,3.5,3.5,3.5,3.75,3,4,3.75,3.5,3,4,3,4,3,4,4,3,3,4,4,3,3,4,4,4,null,null,null,1,5,4,4,null,2,5,3,2,4,4,2,2,1,2,2,null,2,2,1,3,2,3,1,1,4,4,2,2,1.5,1,2,3,2,2,4,2,3,2,2,3,2,3,3,3,2,1,1,1,1,2,2,1,1,1,1,2,2,2,3,2,2,2,3,3,1,1,1,1,"SAU",0.75,3,2,3,14,2,null,22109.6395678685,26.245968999999999,11.5398034135,2.1150000000000002,0,82.07,18,214969,2149690,3,1.0978327107629473E-2,0,95.23,1.9787737843301225,2.8422189728106009,0,0,100,0,88,8.9990000000000006,3,95.141342756183747,0.13,0.56999999999999995]
["Senegal",null,null,null,null,null,null,null,null,null,null,null,null,null,null,null,null,null,null,null,null,null,null,null,null,null,null,null,null,null,null,null,null,null,null,null,null,null,null,null,null,null,null,null,null,null,null,null,null,null,null,null,null,null,null,null,null,null,null,null,null,null,null,null,null,null,null,null,null,null,null,null,null,null,null,null,null,null,null,null,null,null,null,null,null,null,null,null,null,null,null,null,null,null,null,null,null,null,null,null,null,null,null,null,null,null,null,null,null,null,null,null,null,null,null,null,null,null,null,null,null,null,null,null,null,null,null,null,null,null,null,null,null,null,null,null,null,null,null,null,null,null,null,null,null,null,null,null,null,null,null,null,null,null,null,null,null,null,null,null,null,null,null,null,"SEN",0.41,1,3,1,5,1,1,1637.83043786748,12.860716999999999,57.661715517300003,2.621,39.200000000000003,42.38,58,19253,196722,3,46,33.51,3177,3.5020172148271476,15.381900624482981,69,51,null,null,92.98,4.4119999999999999,2.6110000000000002,null,1.22,-0.17]
["Serbia",2.9655172413793105,2.9736842105263159,2.8450704225352115,2.7547169811320753,3.1111111111111112,3.2,3,3.5,3.3333333333333335,4,3.75,2,2,2,4,2.4285714285714284,3.5,2.85,3,3.1428571428571428,2.4285714285714284,2.75,2,5,2,3,4,3.1428571428571428,2.4285714285714284,2,2.6969696969696968,2.5,2.1538461538461537,3.7777777777777777,2.5,2.3333333333333335,3.6666666666666665,2.5,2,2,2,2,2,2,2,2,2,2,2.6666666666666665,3.1388888888888888,2.3333333333333335,3.5,3.5,3.5,3.4285714285714284,3.4285714285714284,3.5,4,2,4,3,4,4,5,4,1,2.5,2.5,2.5,2.5,2.5,3,3,2,2,3,3,2,2,3,3,2,2,3,3,2,2,3,3,2,2,4,3,2,2,4,5,4,3,4,3,5,4,4,4,4,3,3,4,2,3,3,4,4,4,4,4,4,3,4,4,4,4,4.5,5,4,3,4,3,4,4,4,4,4,4,4,3,4,4,4,5,4,4,4,4,5,4,4,4,5,2,4,4,2,3,2,2,2,2,4,4,4,4,"SRB",0.74,3,4,4,17,3,4,10741.102659410501,9.8558570000000003,83.184006518700002,0,28.2,56.06,48,8836,77474,2,113.98791852750601,0,0,null,14.268624339291815,99,92,null,null,1.8680000000000001,16.57,81.56,12.812424168891045]
["Seychelles",null,null,null,null,null,null,null,null,null,null,null,null,null,null,null,null,null,null,null,null,null,null,null,null,null,null,null,null,null,null,null,null,null,null,null,null,null,null,null,null,null,null,null,null,null,null,null,null,null,null,null,null,null,null,null,null,null,null,null,null,null,null,null,null,null,null,null,null,null,null,null,null,null,null,null,null,null,null,null,null,null,null,null,null,null,null,null,null,null,null,null,null,null,null,null,null,null,null,null,null,null,null,null,null,null,null,null,null,null,null,null,null,null,null,null,null,null,null,null,null,null,null,null,null,null,null,null,null,null,null,null,null,null,null,null,null,null,null,null,null,null,null,null,null,null,null,null,null,null,null,null,null,null,null,null,null,null,null,null,null,null,null,null,"SEY",null,3,3,1,1,2,4,19899.902916545299,8.4599999999999995E-2,192.52236714220001,0.47,0,55.32,44,46,455,1,0,0,0,null,15.381900624482981,0,0,null,null,6.569,65.69,27.74,0,3.08,0.52]
["Sierra Leone",2.0114942528735633,2.0270270270270272,2.0144927536231885,2,2.0588235294117645,2,2.1,2,2,2,2,2,2,2,2.25,2,2,2,2,2,2,2,2,2,2,2,2,2,2,2,2,2,2,2,2,2,2,2,2,2,2,2,2,2,1,2,2,2,2,2,2,2,2,2,2,2,2,2,2,2,1,1,1,1,3,1,2,2,2,2,2,2,2,2,2,2,2,2,2,2,2,2,2,2,2,2,2,2,2,2,2,null,null,null,1,3,5,3,3,2,4,2,2,2,3,4,3,3,5,3,4,4,4,3,3,4,4,4,3,5,4,3,3,4,4,5,3,3,3,4.5,4,4,4,4,4,3,2,4,4,4,4,4,5,5,4,4,5,5,5,5,5,5,4,4.5,4,5,5,4,5,5,5,5,5,"SLE",0.32,1,3,1,5,1,1,708.26841554901705,5.8356640000000004,null,2.6680000000000001,42.5,38.4,62,7162,71740,3,38,0,28777,4.4590455167946068,50.815506187967372,49,13,38,62,70.97,19.36,9.6720000000000006,null,1.02,-0.82]
["Singapore",5.9152542372881358,5.9047619047619051,5.8888888888888893,5.9142857142857146,5.8,6,5.666666666666667,null,6,6,6,6,6,6,6,5,null,6,6,6,6,6,null,null,null,6,6,6,6,null,5.875,6,6,5.5,6,6,6,6,6,null,6,6,6,6,6,6,6,6,6,5.75,6,6,6,6,6,6,6,6,null,null,4,2,2,4,4,2,4.25,4.25,4.25,4.25,4.25,5,3,5,4,5,3,5,4,5,3,5,4,5,3,5,4,5,3,5,4,null,3,null,3,1,3,4,3,1,3,3,4,3,1,3,1,3,2,5,3,3,4,4,4,4,3,4,3,4,1,1,1,3,3,3,3,4,4,2.5,3,2.5,3,3,4,1,2,4,1,3,3,5,4,4,5,4,4,5,3,4,3.5,4,4,3,4,4,3,3,3,5,3,5,3,"SGP",0.85,4,2,3,13,2,null,45553.089186560297,4.8366910000000001,5130.5633802817001,2.5070000000000001,42.5,100,0,69.7,697,1,0,0,130,2.1139433523068369,0,0,0,null,null,null,null,null,null,null,2.2999999999999998]
["Slovakia",4.7249999999999996,5,4.7878787878787881,4.72,5,5,5,5,5,5,5,5,5,5,5,5,5,5,5,5,5,5,5,5,5,5,5,5,5,5,4.5757575757575761,4.75,4.6923076923076925,4.8888888888888893,4,3.6666666666666665,5,4.75,4.5999999999999996,5,4.5,5,5,5,3,2,2,5,4.666666666666667,4.4444444444444446,3.6666666666666665,4.4285714285714288,4.5714285714285712,4.2857142857142856,4.5,4.166666666666667,4.4285714285714288,5,null,null,null,null,4,4,5,null,3.5625,4.25,3.25,3.25,3.5,3.25,3,4.25,3.75,4,3,5,5,3,3,4,3,3,3,4,3,3,3,4,4,4,null,null,4,4,5,3,4,4,3,5,3,2,3,null,null,3,3,3,4,5,4,5,4,4,4,4,5,5,null,5,null,5,5,4,4,4,4,5,4,5,5,4,3,5,3,5,null,5,5,4,3,4,5,4,4,4,4,3,3,4,4,3,5,3,null,3,null,3,null,4,4,"SVK",0.82,4,4,4,15,3,5,20546.234027061801,5.4116400000000002,110.2631074495,9.6000000000000002E-2,25.8,54.97,44,4810,49035,2,100,74.849999999999994,9278,3.9674543681827408,3.2935004130523424,100,100,null,null,3.198,46.51,50.29,38.292058070025618,0.49,0.28000000000000003]
["Slovenia",null,null,null,null,null,null,null,null,null,null,null,null,null,null,null,null,null,null,null,null,null,null,null,null,null,null,null,null,null,null,null,null,null,null,null,null,null,null,null,null,null,null,null,null,null,null,null,null,null,null,null,null,null,null,null,null,null,null,null,null,null,null,null,null,null,null,null,null,null,null,null,null,null,null,null,null,null,null,null,null,null,null,null,null,null,null,null,null,null,null,null,null,null,null,null,null,null,null,null,null,null,null,null,null,null,null,null,null,null,null,null,null,null,null,null,null,null,null,null,null,null,null,null,null,null,null,null,null,null,null,null,null,null,null,null,null,null,null,null,null,null,null,null,null,null,null,null,null,null,null,null,null,null,null,null,null,null,null,null,null,null,null,null,"SVN",0.83,4,4,4,17,3,5,26940.790162973401,2.024912,99.769595027899996,0.23599999999999999,31.2,49.51,52,2014,20273,3,90,41.42,15816,4.199096656305616,2.4882216317773649,99,100,null,null,0.21229999999999999,17.52,82.27,20.169851380042463,0,0.89]
["Solomon Islands",2.360655737704918,2.0952380952380953,2.2553191489361701,2.3076923076923075,2,2,2,null,2,2,2,2,2,2,2,2,null,2.1538461538461537,2,2,2.4,2.5,2,2,null,2,2,2,2.4,2,2.3846153846153846,2.5,2.25,2.4444444444444446,3,2,3.3333333333333335,2.5,2.5,2,2,null,2,2,1,1,2,null,2,2.7222222222222223,2,2.7142857142857144,2,3.4285714285714284,2,3.3333333333333335,2.7142857142857144,3,null,3,null,null,null,null,null,2,2.4375,2.75,2.5,2.25,2.25,2.5,3,1.25,3,3,4,1,3,3,3,1,3,2,2,2,3,2,3,1,3,null,null,null,1,2,5,2,3,3,4,3,3,3,3,3,3,2,5,4,4,2,5,4,4,4,4,4,4,5,3,1,1,3.5,4,3,4,4,4,4,4,4,4,3,4,1,3,5,3,3,4,5,4.5,4,5,5,5,4,4,5,4.5,5,5,3,4,5,4,3,3,5,4,4,4,"SLB",0.49,1,2,5,20,1,1,2412.5558899477501,0.53569900000000004,17.545404208200001,2.4569999999999999,0,18.55,82,2799,28896,1,0,0,87476,4.9418889159105834,38.92272002255153,0,0,null,null,null,null,null,null,15.42,-0.86]
["Somalia",null,null,null,null,null,null,null,null,null,null,null,null,null,null,null,null,null,null,null,null,null,null,null,null,null,null,null,null,null,null,null,null,null,null,null,null,null,null,null,null,null,null,null,null,null,null,null,null,null,null,null,null,null,null,null,null,null,null,null,null,null,null,null,null,null,null,null,null,null,null,null,null,null,null,null,null,null,null,null,null,null,null,null,null,null,null,null,null,null,null,null,null,null,null,null,null,null,null,null,null,null,null,null,null,null,null,null,null,null,null,null,null,null,null,null,null,null,null,null,null,null,null,null,null,null,null,null,null,null,null,null,null,null,null,null,null,null,null,null,null,null,null,null,null,null,null,null,null,null,null,null,null,null,null,null,null,null,null,null,null,null,null,null,"SOM",null,1,3,1,1,1,1,0,9.3586019999999994,null,2.2709999999999999,0,37.450000000000003,63,62734,637657,3,35,59.18,1647,3.2166935991697545,0,30,23,null,null,99.48,0.45479999999999998,6.0600000000000001E-2,0.3638568829593693,19.88,-1.19]
["South Africa",4.2413793103448274,3.9714285714285715,4.1044776119402986,4.3076923076923075,3.4,4.75,2.6666666666666665,4,5,5,4.25,4,4,4,2.6666666666666665,2.6666666666666665,4,4.4000000000000004,4.5,5,3.7142857142857144,3.75,4,5,4,4.666666666666667,4.666666666666667,5,3.7142857142857144,5,4.25,4.5,4.0769230769230766,4.5555555555555554,4,4,4.666666666666667,4.5,3.8,4,4,4.5,4,null,null,null,null,4,4.666666666666667,4.2777777777777777,4,4.7,4.7,4.7,4.666666666666667,4.666666666666667,4.7,5,5,5,3,2,2,4,4,1,3.4375,4,3.25,3.25,3.25,4,3.25,3.25,3.25,4,4,4,4,4,3,3,3,4,3,3,3,4,3,3,3,null,3,null,3,2,5,4,5,5,4,2,4,5,5,5,5,3,5,4,4,5,5,3,3,4,4,5,4,5,5,5,5,4.5,4,4,3,5,5,5,5,5,2,4,2,5,2,5,5,4,5,5,5,4.5,4,3,4,5,5,1,5,4,5,5,3,5,5,5,5,5,5,4,5,"ZAF",0.6,2,3,1,4,2,4,9343.3980408267998,50.492407999999998,39.873484587299998,0.98199999999999998,57.8,61.7,39,121447,1219090,3,65,10.4,1007,3.003029470553618,3.0271198968045043,91,77,9,91,62.69,31.23,6.048,null,1.67,0.36]
["Spain",5.8620689655172411,5.7647058823529411,5.8358208955223878,5.94,5.5294117647058822,6,5,6,6,6,5,6,6,6,4,5.333333333333333,6,6,6,6,6,6,6,6,6,6,6,6,6,null,5.9090909090909092,6,5.8461538461538458,6,6,5.666666666666667,6,6,5.6,6,6,6,6,6,5,6,5,6,6,6,5.666666666666667,5.95,6,5.9,6,5.8888888888888893,5.95,6,6,6,4,2,2,5,4,4,4.4375,5,4.25,4.25,4.25,5,4.25,4.25,4.25,5,5,5,5,5,4,4,4,5,4,4,4,5,4,4,4,4,3,2,2,4,5,4,4,5,5,5,5,5,5,5,5,5,4,4,4,5,4,5,5,5,5,5,5,1,5,3,3,3.5,4,4,5,5,5,3,5,5,3,4,4,3,2,5,5,3,4,5,5,4.5,5,5,5,5,5,4,4.5,5,5,3,5,4,5,3,3,5,5,4,5,"ESP",0.86,4,5,4,17,3,5,28442.0733928343,45.316586000000001,90.106928568000001,1.0209999999999999,34.700000000000003,77.400000000000006,23,49898,505370,3,58,0.26910000000000001,2506,3.398981066658131,2.8368766439303763,100,100,null,null,60.51,17.760000000000002,21.74,17.614338689740421,0.34,1.46]
["Sri Lanka",3.8928571428571428,3.375,3.703125,3.66,3.8571428571428572,3.4,4.1111111111111107,null,3.5,2,3.5,4,5,4,4,4.2,null,3,2.25,2.5714285714285716,3.8571428571428572,3.5,2,2,null,2.5,2.3333333333333335,2.5714285714285716,3.8571428571428572,2,4.03125,3.75,3.75,4.333333333333333,4.5,4,4,3.75,4.4000000000000004,2,3,4,4,4,5,4,4,null,3.6666666666666665,4.4166666666666661,4,4.5,4.5999999999999996,4.4000000000000004,4.5555555555555554,4.333333333333333,4.5,5,5,5,4,3,3,2,4,2,2.5625,2,2,2.5,3.75,2.5,2.5,2.5,2.75,2,1,3,2,2,2,2,2,2,3,2,3,4,4,3,4,4,3,2,2,4,5,3,3,4,4,4,4,4,4,4,4,2,5,4,2,4,5,5,5,4,4,5,5,3,4,1,1,3,4,4,4,5,4,3.5,4,4,3,4,4,1,3,4,4,3,3,4,2.5,3.5,2,4,5,2,5,4,2.5,4,4,null,3,2,3,null,null,2,3,2,5,"LKA",0.66,2,2,3,12,2,3,4215.2460732630998,20.409946000000001,308.1237616217,0.88100000000000001,41.1,14.31,85,6463,65610,3,0,0,2632,3.4202858849419178,12.162907941115723,90,91,null,null,87.34,6.2160000000000002,6.4169999999999998,null,1.66,-0.14000000000000001]
["Sudan",4.0114942528735629,4.0769230769230766,3.955223880597015,3.8085106382978724,4.3,4.2857142857142856,4.3636363636363633,4,4.333333333333333,5.5,5,3,4,4,5,4,4,3.8421052631578947,2.6,4.5714285714285712,4,4.25,2,2,2,3.5,3,4.5714285714285712,4,5,3.7857142857142856,3,3.5833333333333335,4.875,3,3,4,3,4.2,4,2,3,4,4,4,1,2,4,3,3.9375,3,4.2,4.0999999999999996,4.3,4.1111111111111107,4.2222222222222223,4.2,4.5,5.5,5.5,3,4,2,4,4,1,3.125,3,2.75,3,3.75,3.5,3.5,2.25,3.25,3,4,2,3,3,3,2,3,4,3,2,3,4,4,3,4,4,3,2,2,4,5,3,4,3,4,5,5,5,4,5,4,2,1,2,1,3,2,2,3,3,3,3,3,4,4,3,4,4.5,5,4,4,5,5,4,4,4,4,4,4,3.5,2,4,4,4,5,4,4,5,5,4,2,4,4,4,4,4,4,5,3,4,4,5,5,4,4,5,5,"SDN",0.38,1,3,1,3,1,1,1990.2914609259799,43.192438000000003,15.24175986,2.1970000000000001,0,40.1,57,237600,2505813,3,83,76.92,1560,3.1931245983544616,29.222216568662475,57,34,20,80,97.12,2.282,0.59940000000000004,null,275.43,-1.0900000000000001]
["Suriname",null,null,null,null,null,null,null,null,null,null,null,null,null,null,null,null,null,null,null,null,null,null,null,null,null,null,null,null,null,null,null,null,null,null,null,null,null,null,null,null,null,null,null,null,null,null,null,null,null,null,null,null,null,null,null,null,null,null,null,null,null,null,null,null,null,null,null,null,null,null,null,null,null,null,null,null,null,null,null,null,null,null,null,null,null,null,null,null,null,null,null,null,null,null,null,null,null,null,null,null,null,null,null,null,null,null,null,null,null,null,null,null,null,null,null,null,null,null,null,null,null,null,null,null,null,null,null,null,null,null,null,null,null,null,null,null,null,null,null,null,null,null,null,null,null,null,null,null,null,null,null,null,null,null,null,null,null,null,null,null,null,null,null,"SUR",0.65,2,1,2,8,2,4,6937.5540772399299,0.52434499999999995,3.1562202416999998,0.96,52.8,69.38,25,15600,163820,1,51,27.87,236893,5.374552227855359,5.0022817652375684,93,84,null,null,92.54,4.4779999999999998,2.9849999999999999,null,null,0.19]
["Swaziland",2.8095238095238093,2.6111111111111112,2.6666666666666665,2.68,2.625,2.4,2.2222222222222223,5,2,4,3,2,2,2,2.6666666666666665,2,5,2.6,3.3333333333333335,2.1428571428571428,2.4285714285714284,2.75,3,4,5,2.6666666666666665,3.3333333333333335,2.1428571428571428,2.4285714285714284,2,2.7333333333333334,3.5,2.6363636363636362,3,2,2,3,3.5,2.3333333333333335,2,2,2,4,4,1,2,2,5,2.3333333333333335,2.5,2,3.3333333333333335,3.3333333333333335,3.3333333333333335,3.25,3.25,3.3333333333333335,4,4,2,5,5,5,5,2,2,3.6875,3.75,4,3.25,3.75,3.5,3.5,4,3.75,3,3,5,4,4,4,4,4,3,3,4,3,4,4,3,4,null,3,null,3,5,5,4,3,4,3,2,5,5,5,4,4,5,5,5,5,4,5,3,5,5,5,4,4,5,5,5,5,5,5,5,4,4,4,5,4,4,3,5,4,5,3,4,4,5,5,5,5,5,4,5,5,4,5,3,5,5,4,5,3,5,5,5,5,5,5,5,5,"SWZ",0.5,2,3,1,4,2,3,4555.1717713523303,1.2019040000000001,null,1.333,50.7,21.37,75,1720,17364,2,98,41.46,3861,3.5866998016240492,7.6198168162903004,69,55,null,null,96.55,2.3029999999999999,1.1519999999999999,null,34.770000000000003,-0.26]
["Sweden",5.7468354430379751,5.628571428571429,5.7538461538461538,5.9387755102040813,5.1875,5.666666666666667,5.125,4,6,6,6,5,6,6,6,4.5999999999999996,4,6,6,6,6,6,6,6,6,6,6,6,6,null,5.9,6,5.75,6,6,6,6,6,6,6,4.5,5.5,6,6,1,6,1,6,6,6,6,5.7142857142857144,5.75,5.666666666666667,5.7142857142857144,5.666666666666667,5.7142857142857144,6,6,6,2,2,2,4,4,1,4,4,4,4,4,4,4,4,4,4,4,4,4,4,4,4,4,4,4,4,4,4,4,4,4,null,null,null,1,5,2,3,4,4,2,3,3,1,2,4,3,5,4,3,2,3,3,5,3,3,4,5,5,4,4,1,1,3.5,4,4,2,3,5,4,5,4,4,5,5,1,3,4,4,3,4,5,5,3.5,5,3,4,5,4,5,5,5,2,4,4,5,5,4,4,5,5,3,4,"SWE",0.89,4,5,4,16,3,5,33753.1351257856,9.2930259999999993,20.474659945100001,0.49399999999999999,25,84.68,15,41033,450295,3,16,1.724,18903,4.2765307343347896,1.5825186919050347,100,100,null,null,4.09,37.229999999999997,58.68,13.226299694189599,0,2.25]
["Switzerland",5.1298701298701301,5.21875,5.0491803278688527,5.083333333333333,4.9230769230769234,6,4.1428571428571432,5.5,6,6,5.666666666666667,null,1,1,4,4.2,5.5,5.4210526315789478,5,5.333333333333333,5.8571428571428568,5.5,5,4,6,5,4.666666666666667,5.333333333333333,5.8571428571428568,null,4.8620689655172411,4.75,4.333333333333333,5.75,5,4.5,5.333333333333333,4.75,4.5,5,3,3,4,4,1,1,1,6,4.333333333333333,5.375,4.5,5.4375,5.5,5.375,5.4285714285714288,5.4285714285714288,5.4375,5.5,4,5,5,2,2,5,5,5,null,null,null,null,null,null,null,null,null,null,null,null,null,null,null,null,null,null,null,null,null,null,null,null,null,4,null,null,4,3,3,3,3,3,3,4,2,2,2,3,3,4,3,3,4,4,3,5,3,3,3,4,4,1,1,1,1,3,2,3,4,1,3,1,3,2.5,3,3,1,1,1,2,3,3,3,5,4,4,3,5,4,3,3,4,3,3,3,3,3,3,3,3,3,4,4,4,4,"CHE",0.87,4,5,4,18,3,5,37779.519734773297,7.5945609999999997,185.2769338857,0.40899999999999997,33.700000000000003,73.62,27,4000,41277,2,100,24.49,7095,3.8509523997934929,1.2245999317612175,100,100,null,null,1.913,40.590000000000003,57.5,null,0.11,2.17]
["Syrian Arab Republic",null,null,null,null,null,null,null,null,null,null,null,null,null,null,null,null,null,null,null,null,null,null,null,null,null,null,null,null,null,null,null,null,null,null,null,null,null,null,null,null,null,null,null,null,null,null,null,null,null,null,null,null,null,null,null,null,null,null,null,null,null,null,null,null,null,null,null,null,null,null,null,null,null,null,null,null,null,null,null,null,null,null,null,null,null,null,null,null,null,null,null,null,null,null,null,null,null,null,null,null,null,null,null,null,null,null,null,null,null,null,null,null,null,null,null,null,null,null,null,null,null,null,null,null,null,null,null,null,null,null,null,null,null,null,null,null,null,null,null,null,null,null,null,null,null,null,null,null,null,null,null,null,null,null,null,null,null,null,null,null,null,null,null,"SYR",0.59,2,2,3,14,2,3,4103.7143700878696,22.505091,106.080570256,3.2589999999999999,0,55.74,46,18363,185180,3,73,72.36,791.4,2.8983960459300091,19.423034529887193,89,96,45,55,87.53,8.8010000000000002,3.6720000000000002,null,0,-0.28999999999999998]
["Tajikistan",3,2.625,2.7647058823529411,2.7058823529411766,2.8823529411764706,2.6,3,3,2.3333333333333335,4,3.5,2,2,2,3.5,2.6666666666666665,3,2.3333333333333335,2.6,2,2.5,2,2,2,3,3,2.6666666666666665,2,2.5,2,3,2.3333333333333335,2.6,3.5714285714285716,3,3,4,2.3333333333333335,2.3333333333333335,null,2,2,null,1,1,1,1,4,null,3.2857142857142856,3,3.8571428571428572,4,3.7142857142857144,4,3.6666666666666665,3.8571428571428572,4,4,4,3,4,4,4,4,3,1.625,2.5,1.25,1.75,1,1.5,1,2.25,1.75,2,1,4,3,1,1,2,1,2,1,2,2,1,1,1,1,4,3,2,2,5,5,2,5,2,3,5,4,3,4,2,2,4,5,2,5,1,4,5,4,4,4,2,2,4,4,4,4,5,5,4,5,4,3,4,4,4,3,4,3,4,3,4,4,5,5,3,4,5,3,5,4,4,5,4,5,5,3,5,3,5,5,5,5,4,4,5,5,"TJK",0.57999999999999996,2,4,3,10,2,2,1761.3154949761899,7.0748449999999998,50.976589797300001,1.5860000000000001,33.6,26.32,74,13996,143100,2,10,16.72,2338,3.3688445068258215,23.666010299015682,70,94,84.5,15.5,91.64,3.6789999999999998,4.6820000000000004,null,14.64,-1.07]
["Thailand",3.2391304347826089,3.2,3.2083333333333335,3.3461538461538463,2.85,2.8571428571428572,2.8181818181818183,3,3.3333333333333335,2,3.25,3,4,3,3.25,2.5714285714285716,3,3.55,3.5,3.5714285714285716,3.5714285714285716,3.5,4,3,3,3.6666666666666665,3.3333333333333335,3.5714285714285716,3.5714285714285716,3,3.21875,3.25,3.3846153846153846,3.4444444444444446,2.75,2,3.6666666666666665,3.25,3.6,3,3,3.5,3,3,3,2,1,3,3.6666666666666665,3.0972222222222223,2,3.35,3.4,3.3,3.3333333333333335,3.2222222222222223,3.35,4,4.5,4,null,null,null,null,null,null,2.875,3,3,2.5,3,3,2.75,3,2.75,3,3,3,3,3,3,3,3,3,2,3,2,3,3,3,3,4,3,2,2,4,4,3,3,3,4,4,4,4,3,4,3,4,4,4,4,3,4,4,4,3,3,3,3,4,3,3,4,3,3,4,4,4,4,3.5,4,4,4,4,4,3.5,3,4,4,3,3,4,4,4,4,4,3,3,3,3,4,3,3,3,3,4,4,3,3,4,4,4,4,"THA",0.65,2,2,3,13,2,3,7119.53951074007,68.139238000000006,129.56034455880001,0.65400000000000003,42.5,33.96,67,51089,513120,3,40,48.81,6509,3.8135142715418833,11.002094147616893,98,96,null,null,90.37,4.7789999999999999,4.8460000000000001,17.1470947478625,1.91,-0.15]
["The former Yugoslav Republic of Macedonia \n",2.788732394366197,2.4411764705882355,2.4736842105263159,2.2790697674418605,3.0714285714285716,2.4,3.2857142857142856,4,2.6666666666666665,2,2.5,null,2,null,3.25,3.3333333333333335,4,2,2,2,2,2,2,2,2,2,2,2,2,2,2.5217391304347827,2,2,3.3333333333333335,2,2,3,2,2,2,null,null,null,null,2,null,2,null,null,2.666666666666667,2,4.0714285714285712,4.1428571428571432,4,4.166666666666667,4,4.0714285714285712,4,4,4,1,1,4,2,3,3,2,2,2,2,2,null,null,null,2,null,null,null,2,null,null,null,2,null,null,null,2,null,null,null,2,null,null,null,1,4,5,3,4,3,3,2,2,4,5,4,5,3,4,4,4,3,4,3,3,4,4,4,4,5,4,4,4,4,4,5,3,4,3,4.5,5,4.5,5,5,3,4,3,5,4,4,4,4,4,3,3,3,3,3,3,4,4,4,4,3,3,4,4,3,3,4,4,3,3,"MKD",0.7,3,4,4,17,3,3,8837.3248842574903,2.0433599999999998,79.605569167300004,7.9000000000000001E-2,42.8,59.31,33,2543,25713,2,99,15.62,3136,3.4963760540124009,11.703359405507211,100,89,null,null,12.26,21.11,66.63,6.6147859922178993,0,-0.73]
["Timor-Leste",2.5283018867924527,2.1578947368421053,2.2432432432432434,2.3076923076923075,2.0909090909090908,2,2.1428571428571428,2,2,2,2,null,2,1,2,2.2000000000000002,2,2.25,2,2.6666666666666665,2,2,2,null,2,2,2,2.6666666666666665,2,4,2.3333333333333335,2.6666666666666665,2,2.6666666666666665,2,null,2.6666666666666665,2.6666666666666665,2,2,2,2,null,1,1,1,1,2,2,2.333333333333333,null,3.1875,3.125,3.25,3.2857142857142856,3.4285714285714284,3.1875,2,3.5,5,4,4,2,2,2,2,1.3125,1,1.25,1,2,1.5,1.25,1,1.5,1,1,1,1,1,1,1,2,1,1,1,1,3,2,1,2,4,3,2,2,2,4,1,2,2,3,4,5,4,3,2,2,3,2,3,3,3,4,3,4,3,3,3,3,4,2,3,2,4,2,2,3,1,4,3,3,2,4,2,3,2.5,1,3,1,4,4,2,2.5,1.5,2,2,2,2,2,2,2.5,3,3,2.5,3,2,3,2,3,2,3,2,1,"TLS",0.5,1,2,3,13,1,1,740.29684981962998,1.171163,null,3.3290000000000002,31.9,28.12,73,1487,14874,1,0,0,0,null,0,69,50,null,null,91.38,8.4469999999999992,0.1706]
["Togo",3.4125000000000001,3.657142857142857,3.4923076923076923,3.4,3.8,4,3.4444444444444446,5,4,4,3.75,4,4,4,3.6666666666666665,3.3333333333333335,5,3.55,3.5,4,3.1428571428571428,3.5,3,4,4,3.3333333333333335,3.3333333333333335,4,3.1428571428571428,4,3.3,3.3333333333333335,3.5833333333333335,3.125,3.75,2,4,3.3333333333333335,3.5,4,4,3,4,null,null,null,null,4,3,3.4375,2,3.0666666666666669,2.6666666666666665,3.3333333333333335,2.8,3.5,3.0666666666666669,2,3,3.5,4,4,4,4,2,1,3.5,4,3,3.5,3.5,3.5,3.5,3.5,3.5,4,4,4,4,3,3,3,3,3,3,5,3,4,4,2,4,4,null,null,4,4,5,4,4,3,4,4,3,4,4,4,4,5,5,4,4,4,4,5,4,4,4,4,4,4,4,4,4,4.5,5,5,4,4,4,4,4,5,4,4,5,4,4,5,5,4,5,3,4,4.5,4,4,4,4,4,5,4,4,3,4,4,4,4,4,4,4,4,4,5,"TGO",0.43,1,3,1,5,1,1,766.69028766284896,6.78003,98.547151536499996,2.4710000000000001,34.4,43.44,58,5439,56785,3,85,21.77,2276,3.3571722577230334,43.650332536396832,60,12,null,null,44.97,52.66,2.367,null,0.04,-0.68]
["Tonga",3.2337662337662336,3.4242424242424243,3.2096774193548385,3.1956521739130435,3.25,4,2.9090909090909092,null,4.5,6,4.75,2.5,3,3,3.25,2.7142857142857144,null,3.5882352941176472,5,3.5714285714285716,3,3.5,5,5,null,5,5,3.5714285714285716,3,4,2.9655172413793105,2.75,3,3.2222222222222223,2.25,3.5,3,2.75,2.3333333333333335,3,2,2.5,5,5,2,2,1,4,3,2.7361111111111112,3.5,3.3333333333333335,3,3.7142857142857144,2.8571428571428572,3.5,3.3333333333333335,4.5,2.5,null,2,3,5,2,4,2,2.1875,2,2.75,2.25,1.75,2.5,2.75,1.25,2.25,2,3,1,2,3,3,2,3,3,3,1,2,2,2,1,2,null,3,null,3,2,4,3,1,3,4,1,4,3,4,3,4,4,3,3,1,3,5,1,3,4,4,4,5,4,4,3,1,4,4,4,4,4,4,4,4,4,5,4,5,2,4,4,4,4,4,4,5,4,4,4,4,4,4,5,5,4,4,2.5,4,5,5,1,4,5,5,4,4,"TON",0.68,3,2,5,22,2,null,3534.7726550020998,0.10426000000000001,null,0.46200000000000002,0,23.43,75,72,747,1,0,0,0,null,20.301816492759684,100,97,null,null,null,null,null,null,3.97,-0.44]
["Trinidad and Tobago",null,null,null,null,null,null,null,null,null,null,null,null,null,null,null,null,null,null,null,null,null,null,null,null,null,null,null,null,null,null,null,null,null,null,null,null,null,null,null,null,null,null,null,null,null,null,null,null,null,null,null,null,null,null,null,null,null,null,null,null,null,null,null,null,null,null,null,null,null,null,null,null,null,null,null,null,null,null,null,null,null,null,null,null,null,null,null,null,null,null,null,null,null,null,null,null,null,null,null,null,null,null,null,null,null,null,null,null,null,null,null,null,null,null,null,null,null,null,null,null,null,null,null,null,null,null,null,null,null,null,null,null,null,null,null,null,null,null,null,null,null,null,null,null,null,null,null,null,null,null,null,null,null,null,null,null,null,null,null,null,null,null,null,"TTO",0.74,3,1,2,6,2,4,22874.529724915999,1.3437250000000001,255.0851851852,0.38200000000000001,40.299999999999997,13.88,87,513,5128,1,0,0,2881,3.4595432582804131,0.44104390325724818,94,92,null,null,8.6359999999999992,66.150000000000006,25.22,"?",0.19,-0.04]
["Tunisia",4.7317073170731705,4.6969696969696972,4.6969696969696972,4.645833333333333,4.833333333333333,5.2,4.6363636363636367,5,5.5,6,5.5,4.5,5,5,4.5,4.7142857142857144,5,4.5333333333333332,5,3.25,5,5,5,5,5,5,5,3.25,5,2,4.6969696969696972,5,4.6923076923076925,5,4.25,4,5,5,4.4000000000000004,5,5,5,5,5,4,4,4,5,4.666666666666667,4.625,4,4.875,4.875,4.875,4.8571428571428568,4.8571428571428568,4.875,5,5,null,4,5,5,4,4,4,3.0625,3.75,2,2.5,4,3.5,3,2.75,3,4,3,4,4,2,2,2,2,3,3,2,2,5,4,3,4,4,3,2,2,3,4,4,1,3,4,4,5,2,2,1,4,5,5,4,3,4,5,5,5,3,3,3,5,4,5,3,1,4,3,4,4,5,3,4.5,5,4,4,3,5,2,3,4,4,4,4,4,4,5,5,4,4,5,3,4,4.5,3,4,3,3,4,5,3,3,4,4,5,5,"TUN",0.68,3,3,1,3,2,3,7390.82307368287,10.373957000000001,63.131226697599999,0.97899999999999998,40.799999999999997,67.28,33,15536,163610,3,10,8.7050000000000001,451.9,2.6550423413312019,9.9377643203223993,94,85,3.5,96.5,85.61,10.96,3.43,66.972153683468449,1.1100000000000001,0.35]
["Turkey",null,null,null,null,null,null,null,null,null,null,null,null,null,null,null,null,null,null,null,null,null,null,null,null,null,null,null,null,null,null,null,null,null,null,null,null,null,null,null,null,null,null,null,null,null,null,null,null,null,null,null,null,null,null,null,null,null,null,null,null,null,null,null,null,null,null,null,null,null,null,null,null,null,null,null,null,null,null,null,null,null,null,null,null,null,null,null,null,null,null,null,null,null,null,null,null,null,null,null,null,null,null,null,null,null,null,null,null,null,null,null,null,null,null,null,null,null,null,null,null,null,null,null,null,null,null,null,null,null,null,null,null,null,null,null,null,null,null,null,null,null,null,null,null,null,null,null,null,null,null,null,null,null,null,null,null,null,null,null,null,null,null,null,"TUR",0.68,3,5,3,14,2,4,12263.517651148601,75.705146999999997,90.712668557200004,1.236,41.2,69.650000000000006,31,76963,783562,3,34,1.0069999999999999,2890,3.4608978427565478,9.3898851920303343,99,90,null,null,73.819999999999993,15.46,10.72,25,16.46,-0.38]
["Turkmenistan",null,null,null,null,null,null,null,null,null,null,null,null,null,null,null,null,null,null,null,null,null,null,null,null,null,null,null,null,null,null,null,null,null,null,null,null,null,null,null,null,null,null,null,null,null,null,null,null,null,null,null,null,null,null,null,null,null,null,null,null,null,null,null,null,null,null,null,null,null,null,null,null,null,null,null,null,null,null,null,null,null,null,null,null,null,null,null,null,null,null,null,null,null,null,null,null,null,null,null,null,null,null,null,null,null,null,null,null,null,null,null,null,null,null,null,null,null,null,null,null,null,null,null,null,null,null,null,null,null,null,null,null,null,null,null,null,null,null,null,null,null,null,null,null,null,null,null,null,null,null,null,null,null,null,null,null,null,null,null,null,null,null,null,"TKM",0.67,2,4,3,10,2,3,6137.9739835725704,5.1765020000000002,null,1.331,40.799999999999997,49.5,51,46993,488100,2,11,97.09,4901,3.6902847025126295,15.975475701169703,0,98,100,0,96.51,2.3969999999999998,1.0840000000000001,null,0,-1.21]
["Tuvalu",null,null,null,null,null,null,null,null,null,null,null,null,null,null,null,null,null,null,null,null,null,null,null,null,null,null,null,null,null,null,null,null,null,null,null,null,null,null,null,null,null,null,null,null,null,null,null,null,null,null,null,null,null,null,null,null,null,null,null,null,null,null,null,null,null,null,null,null,null,null,null,null,null,null,null,null,null,null,null,null,null,null,null,null,null,null,null,null,null,null,null,null,null,null,null,null,null,null,null,null,null,null,null,null,null,null,null,null,null,null,null,null,null,null,null,null,null,null,null,null,null,null,null,null,null,null,null,null,null,null,null,null,null,null,null,null,null,null,null,null,null,null,null,null,null,null,null,null,null,null,null,null,null,null,null,null,null,null,null,null,null,null,null,"TUV",null,1,2,5,22,1,1,0,9.9699999999999997E-3,null,0.42199999999999999,0,50.39,51,3,26,1,0,0,0,null,0,101,81,null,null,null,null,null,null,0]
["Uganda",3.8351648351648353,3.75,3.7808219178082192,3.8301886792452828,3.65,4,3.5454545454545454,3,4.666666666666667,5,4,2,4,2,3.5,3.5714285714285716,3,3.85,4,3.7142857142857144,3.8571428571428572,4.25,4,4,4,4,4,3.7142857142857144,3.8571428571428572,4,3.8181818181818183,4.25,4.0769230769230766,4.2222222222222223,2,3.3333333333333335,5,4.25,3.8,5,4.5,3.5,2,2,2,2,2,5,4.333333333333333,3.1111111111111112,3.3333333333333335,4.0555555555555554,4,4.1111111111111107,4,4.125,4.0555555555555554,4,2,5,3,4,5,1,5,1,3.1875,3.25,3.5,2.75,3.25,2.5,3.25,3.5,3.5,3,3,4,3,2,4,4,4,2,2,4,3,3,4,2,4,4,3,2,2,4,4,4,4,3,4,4,4,3,3,4,4,4,5,4,5,3,4,5,5,4,4,5,4,4,4,4,3,4,4,4,4,4,4,4,4,4,3,4,4,3.5,2,4,4,4,4,5,4,4,4,5,5,4,4,3,3.5,4,4,3.5,3,4,3,4,3,4,4,4,4,"UGA",0.42,1,3,1,1,1,1,1076.5365971143301,33.796461000000001,122.5112813082,3.27,42.6,13.3,87,19710,241038,2,100,40.909999999999997,2085,3.3191060593097763,24.668712839490205,67,48,null,null,36.409999999999997,45.93,17.66,null,0.66,-0.92]
["Ukraine",null,null,null,null,null,null,null,null,null,null,null,null,null,null,null,null,null,null,null,null,null,null,null,null,null,null,null,null,null,null,null,null,null,null,null,null,null,null,null,null,null,null,null,null,null,null,null,null,null,null,null,null,null,null,null,null,null,null,null,null,null,null,null,null,null,null,null,null,null,null,null,null,null,null,null,null,null,null,null,null,null,null,null,null,null,null,null,null,null,null,null,null,null,null,null,null,null,null,null,null,null,null,null,null,null,null,null,null,null,null,null,null,null,null,null,null,null,null,null,null,null,null,null,null,null,null,null,null,null,null,null,null,null,null,null,null,null,null,null,null,null,null,null,null,null,null,null,null,null,null,null,null,null,null,null,null,null,null,null,null,null,null,null,"UKR",0.71,3,4,4,15,3,3,6720.8662303928804,45.433414999999997,76.839542667800004,-0.65100000000000002,27.6,68.790000000000006,32,57933,603550,3,76,61.95,3035,3.4821586954112762,8.6173367511444816,98,95,null,null,51.17,12.48,36.36,null,7.0000000000000007E-2,-0.96]
["United Arab Emirates",3.7386363636363638,3.9142857142857141,3.6617647058823528,3.74,3.4444444444444446,3.8333333333333335,3.1818181818181817,4,4,4.5,4,3,3,3,3.5,3,4,4.4117647058823533,4,4,5,4.75,4,4,4,null,4,4,5,4,3.393939393939394,4,3.1538461538461537,3,4,4,3.6666666666666665,4,3.4,3,3,3,3,3,3,4,4,3,3,3.5,4,4,4,4,4,4,4,4,4,4,4,4,4,4,4,4,3.9375,3.75,4,4,4,4,4,3.75,4,4,4,3,4,4,4,4,4,4,4,4,4,4,4,4,4,4,3,2,2,3,5,5,5,4,5,5,5,5,5,5,5,4,5,5,4,3,5,5,5,5,5,5,5,5,5,5,5,4,4,4,4,4,4,5,5,4,4,4,5,5,5,4,4,4,4,4,4,4,4,4,4,4,4,4,4,4,4,4,4,4,4,4,4,4,4,4,4,"ARE",0.82,4,2,3,14,2,null,0,4.7073070000000001,56.997607655499998,2.8159999999999998,0,84.05,22,8360,83600,3,0,0,33.44,1.5242662687669788,2.0364865758886772,100,97,100,0,82.84,15.43,1.726,100,null,1.19]
["United Kingdom of Great Britain and Northern Ireland",5.0142857142857142,5.03125,5.0476190476190474,5.042553191489362,5.0625,5.4285714285714288,4.75,5,6,6,6,4,6,4,4,5,5,5,5,5,5,5,5,5,null,5,5,5,5,null,5.064516129032258,5,4.75,5.375,5,5.666666666666667,5.5,5,4.5999999999999996,6,4.5,4,4,4,3,5,5,null,5,5.1875,5.666666666666667,4.7142857142857144,4.5,6,5,6,4.7142857142857144,2,null,3,2,2,1,4,4,4,3.25,3.25,3.25,3.25,3.25,3,3,4,3,3,3,4,3,3,3,4,3,3,3,4,3,3,3,4,3,null,null,null,1,3,5,3,3,4,5,2,3,3,3,3,3,3,3,3,3,3,3,5,5,5,5,5,5,2,2,1,1,3,2,2,3,4,3,2,3,3,2,3,4,1,2,3,3,3,3,4,4,4,4,4,4,4,4,4,4,4,4,4,4,4,4,4,4,4,4,4,4,"GBR",0.85,4,5,4,16,3,5,33732.821421356297,61.899272000000003,252.70893371759999,0.53700000000000003,36,79.64,10,24193,243610,3,4,1.361,2392,3.3787611753163733,0.70531350712960339,100,100,null,null,8.39,45.48,46.12,16.651234567901234,0.17,1.97]
["United Republic of Tanzania",3.9506172839506171,4.0571428571428569,4.0151515151515156,4.1764705882352944,3.4666666666666668,3.25,3.5555555555555554,3.5,3.5,4,3.75,2,2,2,3.5,3.6,3.5,4.5,5,4,4.5714285714285712,4.75,5,5,5,5,5,4,4.5714285714285712,4,3.967741935483871,5,3.8461538461538463,4,3,4,5,5,3.6,4,4,4,4,4,4,3,1,4,4,3.5,4,3.6666666666666665,3.375,4,3.375,4,3.6666666666666665,4,4,4,4,4,4,4,4,1,3,3.5,3.25,3.25,2,3,2.75,3.5,2.75,3,4,4,3,3,3,4,3,4,2,4,3,2,2,2,2,null,3,null,3,4,3,3,3,4,3,3,4,4,3,3,3,4,3,3,3,4,3,3,4,4,3,3,3,4,4,4,4,4,4,4,3,4,4,4,4,4,null,3,4,4,3,4,4,4,4,3,4,5,5,3,5,4,5,1,5,5,3,4,3,5,5,4,4,4,4,5,5,"TAN",0.4,1,3,1,1,1,1,1167.34315532406,45.039572999999997,42.959008006700003,2.8759999999999999,34.6,26.38,75,88580,947300,3,43,12.75,451.9,2.6550423413312019,19.423034529887193,54,24,null,null,89.35,10.17,0.48230000000000001,null,0.75,-1]
["United States of America",null,null,null,null,null,null,null,null,null,null,null,null,null,null,null,null,null,null,null,null,null,null,null,null,null,null,null,null,null,null,null,null,null,null,null,null,null,null,null,null,null,null,null,null,null,null,null,null,null,null,null,null,null,null,null,null,null,null,null,null,null,null,null,null,null,null,null,null,null,null,null,null,null,null,null,null,null,null,null,null,null,null,null,null,null,null,null,null,null,null,null,null,null,null,null,null,null,null,null,null,null,null,null,null,null,null,null,null,null,null,null,null,null,null,null,null,null,null,null,null,null,null,null,null,null,null,null,null,null,null,null,null,null,null,null,null,null,null,null,null,null,null,null,null,null,null,null,null,null,null,null,null,null,null,null,null,null,null,null,null,null,null,null,"USA",0.9,4,5,2,9,3,5,43179.4232408588,317.64108700000003,31.577199135400001,0.96099999999999997,40.799999999999997,82.29,18,916192,9826675,3,62,8.1790000000000003,2266,3.3552599055273786,1.1561895705808052,99,100,null,null,40.22,13.68,46.11,22.666387609878612,0.97,1.77]
["Uruguay",4.3125,4.5,4.2769230769230768,4.1428571428571432,4.6875,5.5,4.3,5,5,6,5.25,6,5,6,5,3.8333333333333335,5,4.333333333333333,4,5,3.8,3.75,3,5,5,3.6666666666666665,4.666666666666667,5,3.8,5,4.032258064516129,4.25,4.083333333333333,4.4444444444444446,3.75,2,5.666666666666667,4.25,4.25,2,5,4,5,5,1,2,1,5,3.3333333333333335,4.0972222222222223,2,4.4666666666666668,4.5555555555555554,4.333333333333333,4.625,4.333333333333333,4.4666666666666668,4,5,6,4,4,4,2,2,2,3.3125,3.5,3,3.75,3,3.75,3,3,3.5,4,3,3,4,3,3,3,3,4,4,3,4,4,2,3,3,null,3,null,3,4,5,4,5,3,3,3,4,1,1,2,2,5,5,4,3,4,5,5,5,3,3,4,3,4,1,5,1,3.5,4,4,5,5,5,2.5,4,4.5,5,5,5,3,2,5,4,4,3,5,4.5,4,5,5,4,5,4,5,4,4,4,4.5,4,5,3,5,4,5,4,4,4,"URY",0.77,3,1,2,8,2,4,11770.2501504786,3.3722219999999998,18.9203643277,0.28000000000000003,47.1,92.48,8,17502,176215,3,80,57.55,41505,4.618100418196633,10.339531920646111,100,100,null,null,86.61,11.2,2.1859999999999999,3.8251366120218582,0.03,0.79]
["Uzbekistan",3.0459770114942528,3.6388888888888888,3.2173913043478262,3,3.7894736842105261,4.166666666666667,3.7272727272727271,3,3.6666666666666665,5,3.75,4.5,5,5,3.25,4,3,3.4705882352941178,2.6,4.2,3.5714285714285716,3.25,2,2,2,3.5,3.5,4.2,3.5714285714285716,4,2.7575757575757578,2.5,2.8461538461538463,2.5555555555555554,3.75,2,3,2.5,2.8,2,2.5,3,4,4,3,4,2,3,3,3.1527777777777777,2,2.3888888888888888,2.6666666666666665,2.1111111111111112,2.75,2.125,2.3888888888888888,2,3,3.5,3,5,4,1,1,1,2.5,2.25,2.5,3,2.25,2.75,2.5,2.5,2.25,3,2,2,2,3,3,2,2,3,3,3,3,2,2,3,2,4,3,2,2,5,5,4,4,5,4,4,5,5,5,4,4,5,5,4,3,5,4,4,5,5,4,4,4,4,4,5,5,3,5,5,4,5,4,4,5,3.5,4,4,5,5,2,4,3,3,3,4,4,4,5,4,5,5,5,5,5,5,5,5,2,5,5,5,5,4,4,4,4,"UZB",0.62,2,4,3,10,2,2,2455.01042327091,27.794295999999999,null,1.0900000000000001,36.700000000000003,36.25,63,42540,447400,2,53,77.37,1854,3.2681097298084785,23.785419383698169,87,100,61.5,38.5,91.21,6.133,2.657,null,0.22,-1.03]
["Vanuatu",null,null,null,null,null,null,null,null,null,null,null,null,null,null,null,null,null,null,null,null,null,null,null,null,null,null,null,null,null,null,null,null,null,null,null,null,null,null,null,null,null,null,null,null,null,null,null,null,null,null,null,null,null,null,null,null,null,null,null,null,null,null,null,null,null,null,null,null,null,null,null,null,null,null,null,null,null,null,null,null,null,null,null,null,null,null,null,null,null,null,null,null,null,null,null,null,null,null,null,null,null,null,null,null,null,null,null,null,null,null,null,null,null,null,null,null,null,null,null,null,null,null,null,null,null,null,null,null,null,null,null,null,null,null,null,null,null,null,null,null,null,null,null,null,null,null,null,null,null,null,null,null,null,null,null,null,null,null,null,null,null,null,null,"VUT",null,2,2,5,20,1,1,3677.1348410629798,0.245786,null,2.5430000000000001,0,25.56,75,1219,12189,1,0,0,0,null,22.729324204541406,83,53,null,null,null,null,null,null,33.299999999999997,-0.44]
["Venezuela (Bolivarian Republic of)",null,null,null,null,null,null,null,null,null,null,null,null,null,null,null,null,null,null,null,null,null,null,null,null,null,null,null,null,null,null,null,null,null,null,null,null,null,null,null,null,null,null,null,null,null,null,null,null,null,null,null,null,null,null,null,null,null,null,null,null,null,null,null,null,null,null,null,null,null,null,null,null,null,null,null,null,null,null,null,null,null,null,null,null,null,null,null,null,null,null,null,null,null,null,null,null,null,null,null,null,null,null,null,null,null,null,null,null,null,null,null,null,null,null,null,null,null,null,null,null,null,null,null,null,null,null,null,null,null,null,null,null,null,null,null,null,null,null,null,null,null,null,null,null,null,null,null,null,null,null,null,null,null,null,null,null,null,null,null,null,null,null,null,"VEN",0.7,3,1,2,8,2,4,11835.123542637501,29.043555000000001,30.628565319900002,1.663,43.4,93.35,7,88205,912050,3,76,41.42,43846,4.6419299795226943,4.0228682330012324,0,0,null,null,43.8,48.67,7.5359999999999996,null,70.540000000000006,-0.94]
["Viet Nam",2.4285714285714284,2.3846153846153846,2.352112676056338,2.2692307692307692,2.5789473684210527,3.6666666666666665,2.0909090909090908,2,4.333333333333333,5,4,2,4,2,2,2.1428571428571428,2,2.2000000000000002,2.1666666666666665,2.4285714285714284,2,2,2,2,2,2.3333333333333335,2.3333333333333335,2.4285714285714284,2,2,2.3125,2,2,3.1111111111111112,2,2,3,2,2,2,2,2,2,null,null,null,null,2,2,2.5555555555555554,2,2.7,2.8,2.6,2.8888888888888888,2.6666666666666665,2.7,2,3,3,1,4,2,3,3,3,2.75,3,3,2,3,2.75,2.75,2.75,2.75,3,3,3,3,3,3,3,3,2,2,2,2,3,3,3,3,4,3,2,2,3,5,4,4,4,4,5,5,4,4,4,4,5,5,5,5,4,5,5,5,5,5,5,5,5,4,4,4,3.5,3,4,4,4,5,4.5,3,3,4,4,3,4,3,3,3,4,3,4,4,4,4,4,4,4,4,4,4.5,4,4,4,4,5,4,4,4,4,4,4,4,"VNM",0.56999999999999995,2,2,3,13,2,2,2574.1440999730398,89.028740999999997,257.00268650010003,1.145,37.799999999999997,30.38,72,31007,331210,3,59,59.35,10151,4.0065088277752903,20.971934297477592,94,75,94.5,5.5,94.78,1.47,3.7469999999999999,1.709130805802755,8.36,-0.68]
["Yemen",null,null,null,null,null,null,null,null,null,null,null,null,null,null,null,null,null,null,null,null,null,null,null,null,null,null,null,null,null,null,null,null,null,null,null,null,null,null,null,null,null,null,null,null,null,null,null,null,null,null,null,null,null,null,null,null,null,null,null,null,null,null,null,null,null,null,null,null,null,null,null,null,null,null,null,null,null,null,null,null,null,null,null,null,null,null,null,null,null,null,null,null,null,null,null,null,null,null,null,null,null,null,null,null,null,null,null,null,null,null,null,null,null,null,null,null,null,null,null,null,null,null,null,null,null,null,null,null,null,null,null,null,null,null,null,null,null,null,null,null,null,null,null,null,null,null,null,null,null,null,null,null,null,null,null,null,null,null,null,null,null,null,null,"YEM",0.44,1,2,3,14,1,1,2218.3942875542398,24.255928000000001,42.044214800900001,2.86,37.700000000000003,31.8,69,52797,527968,3,0,0,91.64,1.96208508051736,0,62,52,20,80,90.74,7.4329999999999998,1.823,70.707964601769902,9.57,-0.69]
["Zambia",3.7317073170731709,3.125,3.578125,3.5510204081632653,3.6666666666666665,3.25,3.6666666666666665,4.5,3.5,3,3.5,3,3,3,3.5,3.8,4.5,2.6470588235294117,2,2.8571428571428572,3.25,2.75,2,2,2,2,2,2.8571428571428572,3.25,2,4.03125,4.25,3.9166666666666665,4.4444444444444446,4.25,2.6666666666666665,4.666666666666667,4.25,4.25,4,4.5,4.5,4,4,1,4,2,3,3.3333333333333335,4.3472222222222223,2.6666666666666665,4.2777777777777777,4.1111111111111107,4.4444444444444446,4.125,4.375,4.2777777777777777,4.5,4,5,5,5,5,5,4,1,2,2.75,2,1.5,1.75,3.25,1.25,1.25,2.25,4,2,2,3,4,1,1,2,2,1,1,2,3,1,1,2,null,null,null,1,4,5,4,4,4,3,3,3,5,3,4,3,4,5,4,4,4,3,3,3,4,4,4,4,4,2,2,3,5,4,4,4,3,3,3,4,3.5,4,3,4,2.5,1,4,3,5,5,4,4.5,4,4,4,4,4,4,5,3.5,4,4,3.5,3,4,3,4,3,5,4,4,4,"ZMB",0.4,1,3,1,1,1,1,1253.14918545766,13.257269000000001,16.643092323800001,2.4340000000000002,50.7,35.700000000000003,65,74339,752618,2,100,23.76,8336,3.9209577059554492,21.604645711413639,60,49,5.4,94.6,75.86,16.670000000000002,7.4710000000000001,3.8351459645105899,0,-0.97]
["Zimbabwe",4.5274725274725274,4.2249999999999996,4.5753424657534243,4.9433962264150946,3.6,3.7142857142857144,3.0909090909090908,6,3.3333333333333335,6,4.75,2,6,2,2.75,3.2857142857142856,6,4.8499999999999996,6,4.5714285714285712,4.1428571428571432,4.5,6,6,6,6,6,4.5714285714285712,4.1428571428571432,5,5,4.75,4.6923076923076925,5.4444444444444446,5,5.333333333333333,5.333333333333333,4.75,4.5999999999999996,4,3.5,4,5,null,null,null,null,6,5.333333333333333,5.2222222222222223,5.333333333333333,4.333333333333333,4.5555555555555554,4.1111111111111107,4.5,4,4.333333333333333,5,5,5,3,3,2,2,5,5,2.3125,2.25,2,3,2,2.25,2.25,2.25,2.5,2,2,2,3,2,2,2,2,3,3,3,3,2,2,2,2,4,3,2,2,4,5,4,4,4,5,4,4,4,4,5,4,5,5,5,5,4,4,5,5,5,5,5,5,5,5,4,null,5,5,5,5,5,5,5,5,5,5,4,5,4,4,5,5,5,5,5,2,null,3,3,2,2,1,3,1,2,2,2.5,null,1,1,4,1,2,2,null,1,"ZWE",0.14000000000000001,1,3,1,1,2,2,0,12.644041,31.093492886899998,0.26900000000000002,50.1,38.25,63,38685,390757,2,100,38.700000000000003,2558,3.4079005401426352,20.279924630628749,82,44,null,null,78.91,14.01,7.0869999999999997,9.988109393579073,0.47,-1.17]

{"sheet":"SCA1_FIG_3.4","index":32,"n_rows":191,"n_cols":2,"rows_kept":191,"cut":false,"hidden":true,"merged":[]}
[]
[3.8823529411764706,2.6666666666666665]
[4.5,6]
[4.5999999999999996,4]
[5.0588235294117645,5]
[2.3333333333333335,2.5]
[3,2]
[]
[2.9473684210526314,5]
[]
[3.0909090909090908,2]
[]
[]
[]
[4.583333333333333,4.333333333333333]
[3.6666666666666665,4.666666666666667]
[5,2.6666666666666665]
[]
[2.2222222222222223,2]
[3.8,4.333333333333333]
[3,3]
[3.1538461538461537]
[2.75,2]
[4.166666666666667,3.3333333333333335]
[]
[]
[4.0588235294117645,5]
[3.4,2.5]
[]
[]
[]
[2.8,3.3333333333333335]
[3.05,4]
[]
[3.9411764705882355,2]
[2.9375,2.6666666666666665]
[]
[2.0588235294117645,2]
[2,2]
[]
[4.3,3]
[2.0909090909090908,2]
[3.8,3.3333333333333335]
[]
[3.65,4]
[3.4666666666666668,5]
[]
[3.6666666666666665,2]
[3.6,6]
[4.2666666666666666,5.333333333333333]
[2.8888888888888888,2]
[]
[3.5789473684210527,3.3333333333333335]
[4.5,5]
[3.9473684210526314,4.666666666666667]
[4.55,3.6666666666666665]
[2.3846153846153846,3]
[2.3333333333333335,3.5]
[]
[3.7894736842105261,3.6666666666666665]
[2.4615384615384617,2]
[]
[2.2999999999999998,2.6666666666666665]
[2.5555555555555554,2]
[4.3076923076923075,6]
[3,3]
[]
[]
[]
[2.9444444444444446,3.6666666666666665]
[3.5,3.3333333333333335]
[4.5,5.333333333333333]
[]
[]
[]
[]
[]
[2.95,2.6666666666666665]
[5,5.333333333333333]
[2.7777777777777777,2.6666666666666665]
[2.8421052631578947,2.6666666666666665]
[]
[4,5]
[2.4736842105263159,2]
[3.5,4]
[3.4,4.666666666666667]
[3.8571428571428572,2.3333333333333335]
[]
[2.625,3.3333333333333335]
[]
[2.8823529411764706,2.6666666666666665]
[2.85,3.3333333333333335]
[]
[3.7894736842105261,3.5]
[]
[2.5789473684210527,2.3333333333333335]
[2.9411764705882355,5]
[3.2,2]
[2.9,2]
[3.5,3.3333333333333335]
[3.5,2]
[]
[2.5,2.3333333333333335]
[2.7058823529411766,3]
[3.35,4]
[4.5333333333333332,6]
[]
[3.0588235294117645,2]
[4.9444444444444446,5.333333333333333]
[2]
[2.85,3.3333333333333335]
[2.6363636363636362,2]
[2.3333333333333335,2]
[4.5999999999999996,4.666666666666667]
[5.333333333333333,6]
[]
[]
[3.2727272727272729,3.3333333333333335]
[4.3125,4.5]
[3.2105263157894739,4.333333333333333]
[2.2666666666666666,2]
[2.8333333333333335,4]
[4.2105263157894735,3.3333333333333335]
[3.5333333333333332,4]
[]
[]
[4.4000000000000004,3.3333333333333335]
[2.3333333333333335,2.6666666666666665]
[5.166666666666667,5.5]
[4.625,5]
[2.625]
[3.1176470588235294,3.3333333333333335]
[]
[2.7058823529411766,2.5]
[3.1111111111111112,4]
[]
[3.0714285714285716,2]
[3.25,5]
[]
[4.833333333333333,5]
[]
[]
[4.6875,4.666666666666667]
[]
[4.2,4.666666666666667]
[]
[4.8461538461538458,6]
[]
[]
[3.0714285714285716,2]
[5.4210526315789478,6]
[]
[4.8571428571428568,5.666666666666667]
[3.5263157894736841,3.3333333333333335]
[]
[3.75,5]
[4.875,5.666666666666667]
[3.4444444444444446,4]
[4.1578947368421053,6]
[5.333333333333333,5.666666666666667]
[5.4705882352941178,6]
[5.083333333333333,5.5]
[4,3.5]
[]
[4.2857142857142856,6]
[4.3571428571428568,5]
[4.833333333333333,6]
[]
[6,6]
[4.5454545454545459,5]
[]
[5.75,6]
[]
[]
[4.916666666666667]
[5.5384615384615383,6]
[3.75,5]
[5.333333333333333,5]
[3.6470588235294117,6]
[3.2,5.5]
[]
[5.2105263157894735,5.333333333333333]
[]
[5.8,6]
[5,5]
[]
[5.5294117647058822,6]
[5.1875,6]
[4.9230769230769234,4.666666666666667]
[3.4444444444444446,4]
[5.0625,5]

{"sheet":"SCA_FIG_5.5","index":33,"n_rows":191,"n_cols":2,"rows_kept":191,"cut":false,"hidden":true,"merged":[]}
[]
[4]
[4,6]
[4.1428571428571432,4]
[5.5,6]
[3,2]
[2.5714285714285716,5]
[]
[2.4285714285714284,4]
[]
[3,2]
[]
[]
[]
[4.5,5]
[3.5,6]
[3.3333333333333335]
[]
[2.4,3]
[5.25,4]
[3.3333333333333335,2]
[2,2.5]
[2.8,4]
[4.5,3]
[]
[]
[4,4]
[3,4.5]
[]
[]
[]
[3.2857142857142856,4]
[2.8571428571428572,4.5]
[]
[3.25,4]
[2.6,4]
[]
[2,2]
[2,3]
[]
[4.2857142857142856,4.5]
[2,2]
[4,2]
[]
[4,4]
[3.25,4]
[]
[3.25,4.5]
[3.7142857142857144,5]
[5.25,4.5]
[2.5714285714285716,2]
[]
[3.1428571428571428,5]
[5,4.5]
[4.5714285714285712,5]
[5,6]
[3,2]
[3,5]
[]
[4.5,5]
[2,2]
[]
[2.4285714285714284,4]
[2,5.5]
[4.333333333333333,3.5]
[2.7142857142857144,4]
[]
[]
[]
[3.1666666666666665,5]
[2.8,5]
[5.333333333333333,5]
[]
[]
[]
[]
[]
[3.5714285714285716,2]
[5,5]
[3,3.5]
[2.3333333333333335,2]
[]
[3.4,6]
[2.3333333333333335,2]
[3.2,3.5]
[4.75,5]
[3.4,5]
[]
[2.4,4]
[]
[2.6,4]
[2.8571428571428572,4]
[]
[4.166666666666667,2]
[]
[3.6666666666666665,2]
[2,2]
[3.25,3]
[3.5714285714285716,2]
[3.4285714285714284,4]
[3.7142857142857144,4.5]
[]
[3,3]
[2.7142857142857144,3.5]
[4,4.5]
[4.8,6]
[]
[3.5,4]
[5,5.5]
[2,2.5]
[2.8571428571428572,4.5]
[2.3333333333333335,2.5]
[3.3333333333333335]
[4.8571428571428568,5]
[5.5,5]
[]
[]
[3,3.5]
[5.6,5]
[2.2857142857142856,4]
[2.1428571428571428,3]
[2,4.5]
[5,5]
[3.2,4.5]
[]
[]
[3.5714285714285716,4]
[2.8,4.5]
[5.333333333333333,5.5]
[4.5714285714285712,5]
[2.5,4.5]
[3.8,5]
[]
[2.6,5]
[3.2,4]
[]
[2.4,4]
[4,4.5]
[]
[5.2,5]
[]
[]
[5.5,4]
[]
[4.333333333333333,5]
[]
[5.5,5.5]
[]
[]
[2.6,4.5]
[5.5714285714285712,6]
[]
[5,6]
[3.5,6]
[]
[4.75,5]
[4.5,6]
[5.5,2]
[4,5]
[5.666666666666667,5]
[5.833333333333333,6]
[5.5,6]
[4.666666666666667,5]
[]
[4.4000000000000004,4]
[4.5,6]
[5.666666666666667,6]
[]
[6,5.5]
[4.5,6]
[]
[6,5]
[]
[]
[5.25,6]
[6,6]
[4.166666666666667,6]
[5.333333333333333]
[3.2,3.5]
[3.8571428571428572,3]
[]
[5.7142857142857144,6]
[]
[6,6]
[5,5]
[]
[6,6]
[5.666666666666667,6]
[6,5.5]
[3.8333333333333335,4]
[5.4285714285714288,2]

{"sheet":"SCA_FIG_4.7","index":34,"n_rows":191,"n_cols":2,"rows_kept":191,"cut":false,"hidden":true,"merged":[]}
[]
[4,2.7647058823529411]
[4,4.46875]
[4.1428571428571432,3.1]
[5.5,5.3030303030303028]
[3,3.0526315789473686]
[2.5714285714285716,2.4166666666666665]
[]
[2.4285714285714284,3]
[]
[3,2.1333333333333333]
[]
[]
[]
[4.5,3.59375]
[3.5,2.6666666666666665]
[3.3333333333333335,2.8888888888888888]
[]
[2.4,2.393939393939394]
[5.25,3.25]
[3.3333333333333335,3.68]
[2,2.9411764705882355]
[2.8,3]
[4.5,3.5151515151515151]
[]
[]
[4,3.1379310344827585]
[3,2.84375]
[]
[]
[]
[3.2857142857142856,2.8181818181818183]
[2.8571428571428572,3.4375]
[]
[3.25,3.0909090909090908]
[2.6,2.6896551724137931]
[]
[2,2]
[2,2.3846153846153846]
[]
[4.2857142857142856,3.7857142857142856]
[2,2.3333333333333335]
[4,3.3]
[]
[4,3.8181818181818183]
[3.25,3.967741935483871]
[]
[3.25,4.03125]
[3.7142857142857144,5]
[5.25,4.0625]
[2.5714285714285716,3.0909090909090908]
[]
[3.1428571428571428,3.2857142857142856]
[5,4.3030303030303028]
[4.5714285714285712,4.129032258064516]
[5,5.1212121212121211]
[3,2.1666666666666665]
[3,2.6875]
[]
[4.5,4.0909090909090908]
[2,2.3214285714285716]
[]
[2.4285714285714284,3.2727272727272729]
[2,2.6666666666666665]
[4.333333333333333,5.1379310344827589]
[2.7142857142857144,2.8333333333333335]
[]
[]
[]
[3.1666666666666665,3.2424242424242422]
[2.8,4.125]
[5.333333333333333,4.4545454545454541]
[]
[]
[]
[]
[]
[3.5714285714285716,2.6666666666666665]
[5,4.903225806451613]
[3,3.3125]
[2.3333333333333335,2.5151515151515151]
[]
[3.4,4.75]
[2.3333333333333335,2.935483870967742]
[3.2,3.3870967741935485]
[4.75,4.25]
[3.4,4.03125]
[]
[2.4,2.7333333333333334]
[]
[2.6,3]
[2.8571428571428572,3.21875]
[]
[4.166666666666667,2.7575757575757578]
[]
[3.6666666666666665,2.3125]
[2,2.0833333333333335]
[3.25,3.1875]
[3.5714285714285716,2.1666666666666665]
[3.4285714285714284,3.8125]
[3.7142857142857144,3.5625]
[]
[3,3.1785714285714284]
[2.7142857142857144,3.4848484848484849]
[4,3.8484848484848486]
[4.8,5.333333333333333]
[]
[3.5,4]
[5,4.6875]
[2,2.4090909090909092]
[2.8571428571428572,2.8484848484848486]
[2.3333333333333335,3.1818181818181817]
[3.3333333333333335,2.3928571428571428]
[4.8571428571428568,4.8484848484848486]
[5.5,4.774193548387097]
[]
[]
[3,2.96875]
[5.6,4.0909090909090908]
[2.2857142857142856,4.34375]
[2.1428571428571428,3.0303030303030303]
[2,3.9375]
[5,4.2121212121212119]
[3.2,3.25]
[]
[]
[3.5714285714285716,3.9393939393939394]
[2.8,3.129032258064516]
[5.333333333333333,5.25]
[4.5714285714285712,3.75]
[2.5,3.3076923076923075]
[3.8,3]
[]
[2.6,3.1]
[3.2,2.6969696969696968]
[]
[2.4,2.5217391304347827]
[4,2.9655172413793105]
[]
[5.2,4.6969696969696972]
[]
[]
[5.5,4.032258064516129]
[]
[4.333333333333333,4.645161290322581]
[]
[5.5,5.53125]
[]
[]
[2.6,3.3125]
[5.5714285714285712,4.8181818181818183]
[]
[5,4.7878787878787881]
[3.5,5.2424242424242422]
[]
[4.75,4.71875]
[4.5,5.1818181818181817]
[5.5,4.24]
[4,4.7586206896551726]
[5.666666666666667,5.3125]
[5.833333333333333,5.6969696969696972]
[5.5,5.7666666666666666]
[4.666666666666667,4]
[]
[4.4000000000000004,5.8461538461538458]
[4.5,4.6896551724137927]
[5.666666666666667,5.46875]
[]
[6,5.8620689655172411]
[4.5,4.5454545454545459]
[]
[6,5.5357142857142856]
[]
[]
[5.25,4.7692307692307692]
[6,5.9]
[4.166666666666667,4.5161290322580649]
[5.333333333333333,4.9655172413793105]
[3.2,4.096774193548387]
[3.8571428571428572,3.3333333333333335]
[]
[5.7142857142857144,5.2121212121212119]
[]
[6,5.875]
[5,4.5757575757575761]
[]
[6,5.9090909090909092]
[5.666666666666667,5.9]
[6,4.8620689655172411]
[3.8333333333333335,3.393939393939394]
[5.4285714285714288,5.064516129032258]